{"text_format":"1","workbook":"xlsx","n_sheets":49,"sheets":["Instructions","Home","revision history","INSTRUCTIONS - READ THIS FIRST","country","Country profile","Data coll & an","Prev & Ctrl","Lab dx","Dog popn","IEC","Cross-cutting issues","Legislation","linked mastersheet","SUMMARY (Score)","SUMMARY (S0-S5)","priorit","Prioritisation","rules","masterlist","NW Introduction","NW country","SUMMARY (Workplan)","rawdca","DCA","DCAgantt","rawpco","PCO","PCOgantt","rawlab","LAB","LABgantt","rawdpm","DPM","DPMgantt","rawiec","IECnw","IECgantt","rawcci","CCI","CCIgantt","rawleg","LEG","LEGgantt","rawgantt","Gantt (stage)","Gantt (component)","Distribution graph","Budget"],"not_rendered":{"charts":1,"images":5,"macros":1,"external_links":1,"defined_names":36,"comments":0,"pivot_tables":2},"unopened":[],"bounds":{"document_bytes":16777216,"sheet_cells":100000,"rows_first":2000,"rows_last":500,"rows_between":2000,"halvings":0,"cell_chars":16384,"cell_head_chars":4096},"cells_cut":0,"cells_raw":0,"read":"whole","date_system":"1900"}

{"sheet":"Instructions","index":0,"n_rows":11,"n_cols":2,"rows_kept":11,"cut":false,"hidden":false,"merged":[]}
[]
[null,"Comment utiliser cet outil :"]
[]
[null,"1.   Assurez-vous de cliquer sur ‘Autoriser les Macros’ ou ‘Autoriser le contenu’ sur la barre jaune située en haut et à gauche de votre écran avant d’utiliser l’outil SARE."]
[null,"2.  Les détails pour compléter le PLAN DE TRAVAIL sont basés sur l'ÉVALUATION. Répondez à toutes les sections requises de l'ÉVALUATION avant d'ouvrir les sections du PLAN DE TRAVAIL. "]
[null,"3.   Veuillez cliquer sur ‘Calculer le score SARE’ après avoir après avoir répondu à la deuxième section (Par ex. Prévention et contrôle, Législation, etc.) sous le titre ÉVALUATION. Vous n’avez pas besoin de cliquer sur Calculer le score SARE après chaque feuille de calcul dans cette section. Si vous êtes déjà passé à la section suivante et que vous devez visualiser ou modifier une des feuilles de calcul de la deuxième section de l’ÉVALUATION, il vous faudra cliquer sur ‘Calculer le score SARE’ de nouveau. Ceci peut prendre du temps en fonction de votre ordinateur pendant qu’il actualise toutes les feuilles de calcul de ce fichier."]
[null,"4. Si vous ne pouvez pas visualiser les diagrammes de Gantt, veuillez cliquer sur ‘Actualiser les diagrammes de Gantt’ sur la page d’accueil"]
[]
[null,"5. Vous pouvez enregistrer toutes les feuilles de calcul du PLAN DE TRAVAIL sous format PDF en cliquant sur le bouton en bas à droite. Assurez-vous d’avoir fini de remplir toutes les feuilles de calcul avant d’enregistrer le fichier sous format PDF."]
[]
[null,"6.\tSi des cellules sont automatiquement barrées, vous pouvez désactiver cette fonction en accédant à l'onglet Formules, puis aux Options de calcul. Décochez la case \"Formater les valeurs périmées\"."]

{"sheet":"Home","index":1,"n_rows":0,"n_cols":0,"rows_kept":0,"cut":false,"hidden":false,"merged":[]}

{"sheet":"revision history","index":2,"n_rows":4,"n_cols":2,"rows_kept":4,"cut":false,"hidden":true,"merged":[]}
["Only remarkable revision notes are saved here"]
[]
["2025-02-24","Deleted validation code for \"Years to rabies elimination\" in workplan (e.g. \"DCA\", \"PCO\", etc)  worksheets because it is causing an unexplainable error. Code is not needed anymore because the entire rows for \"Time to rabies elimination\" have been hidden."]
[null,"Code deleted:"]

{"sheet":"INSTRUCTIONS - READ THIS FIRST","index":3,"n_rows":21,"n_cols":3,"rows_kept":21,"cut":false,"hidden":true,"merged":[[24,2,24,8],[24,11,24,14],[8,9,8,11],[20,2,20,8],[22,0,22,2],[23,2,23,8],[23,11,23,14],[25,2,25,8],[25,11,25,14],[26,2,26,8],[26,11,26,14],[27,2,27,8],[27,11,27,14],[34,2,34,8],[35,2,35,8],[40,1,51,8],[55,1,58,8],[28,2,28,8]]}
[]
[]
[]
[]
[]
[]
[]
[]
[]
[]
[]
[]
[]
[]
[]
[]
[]
[]
[]
[]
[null,null,"\n"]

{"sheet":"country","index":4,"n_rows":249,"n_cols":1,"rows_kept":249,"cut":false,"hidden":true,"merged":[]}
["Afghanistan"]
["Åland Islands"]
["Albania"]
["Algeria"]
["American Samoa"]
["Andorra"]
["Angola"]
["Anguilla"]
["Antarctica"]
["Antigua and Barbuda"]
["Argentina"]
["Armenia"]
["Aruba"]
["Australia"]
["Austria"]
["Azerbaijan"]
["Bahamas"]
["Bahrain"]
["Bangladesh"]
["Barbados"]
["Belarus"]
["Belgium"]
["Belize"]
["Benin"]
["Bermuda"]
["Bhutan"]
["Bolivia (Plurinational State of)"]
["Bonaire, Sint Eustatius and Saba"]
["Bosnia and Herzegovina"]
["Botswana"]
["Bouvet Island"]
["Brazil"]
["British Indian Ocean Territory"]
["Brunei Darussalam"]
["Bulgaria"]
["Burkina Faso"]
["Burundi"]
["Cabo Verde"]
["Cambodia"]
["Cameroon"]
["Canada"]
["Cayman Islands"]
["Central African Republic"]
["Chad"]
["Chile"]
["China"]
["Christmas Island"]
["Cocos (Keeling) Islands"]
["Colombia"]
["Comoros"]
["Congo"]
["Congo (Democratic Republic of the)"]
["Cook Islands"]
["Costa Rica"]
["Côte d'Ivoire"]
["Croatia"]
["Cuba"]
["Curaçao"]
["Cyprus"]
["Czechia"]
["Denmark"]
["Djibouti"]
["Dominica"]
["Dominican Republic"]
["Ecuador"]
["Egypt"]
["El Salvador"]
["Equatorial Guinea"]
["Eritrea"]
["Estonia"]
["Ethiopia"]
["Falkland Islands (Malvinas)"]
["Faroe Islands"]
["Fiji"]
["Finland"]
["France"]
["French Guiana"]
["French Polynesia"]
["French Southern Territories"]
["Gabon"]
["Gambia"]
["Georgia"]
["Germany"]
["Ghana"]
["Gibraltar"]
["Greece"]
["Greenland"]
["Grenada"]
["Guadeloupe"]
["Guam"]
["Guatemala"]
["Guernsey"]
["Guinea"]
["Guinea-Bissau"]
["Guyana"]
["Haiti"]
["Heard Island and McDonald Islands"]
["Holy See"]
["Honduras"]
["Hong Kong"]
["Hungary"]
["Iceland"]
["India"]
["Indonesia"]
["Iran (Islamic Republic of)"]
["Iraq"]
["Ireland"]
["Isle of Man"]
["Israel"]
["Italy"]
["Jamaica"]
["Japan"]
["Jersey"]
["Jordan"]
["Kazakhstan"]
["Kenya"]
["Kiribati"]
["Korea (Democratic People's Republic of)"]
["Korea (Republic of)"]
["Kuwait"]
["Kyrgyzstan"]
["Lao People's Democratic Republic"]
["Latvia"]
["Lebanon"]
["Lesotho"]
["Liberia"]
["Libya"]
["Liechtenstein"]
["Lithuania"]
["Luxembourg"]
["Macao"]
["Macedonia (the former Yugoslav Republic of)"]
["Madagascar"]
["Malawi"]
["Malaysia"]
["Maldives"]
["Mali"]
["Malta"]
["Marshall Islands"]
["Martinique"]
["Mauritania"]
["Mauritius"]
["Mayotte"]
["Mexico"]
["Micronesia (Federated States of)"]
["Moldova (Republic of)"]
["Monaco"]
["Mongolia"]
["Montenegro"]
["Montserrat"]
["Morocco"]
["Mozambique"]
["Myanmar"]
["Namibia"]
["Nauru"]
["Nepal"]
["Netherlands"]
["New Caledonia"]
["New Zealand"]
["Nicaragua"]
["Niger"]
["Nigeria"]
["Niue"]
["Norfolk Island"]
["Northern Mariana Islands"]
["Norway"]
["Oman"]
["Pakistan"]
["Palau"]
["Palestine, State of"]
["Panama"]
["Papua New Guinea"]
["Paraguay"]
["Peru"]
["Philippines"]
["Pitcairn"]
["Poland"]
["Portugal"]
["Puerto Rico"]
["Qatar"]
["Réunion"]
["Romania"]
["Russian Federation"]
["Rwanda"]
["Saint Barthélemy"]
["Saint Helena, Ascension and Tristan da Cunha"]
["Saint Kitts and Nevis"]
["Saint Lucia"]
["Saint Martin (French part)"]
["Saint Pierre and Miquelon"]
["Saint Vincent and the Grenadines"]
["Samoa"]
["San Marino"]
["Sao Tome and Principe"]
["Saudi Arabia"]
["Senegal"]
["Serbia"]
["Seychelles"]
["Sierra Leone"]
["Singapore"]
["Sint Maarten (Dutch part)"]
["Slovakia"]
["Slovenia"]
["Solomon Islands"]
["Somalia"]
["South Africa"]
["South Georgia and the South Sandwich Islands"]
["South Sudan"]
["Spain"]
["Sri Lanka"]
["Sudan"]
["Suriname"]
["Svalbard and Jan Mayen"]
["Swaziland"]
["Sweden"]
["Switzerland"]
["Syrian Arab Republic"]
["Taiwan, Province of China[a]"]
["Tajikistan"]
["Tanzania, United Republic of"]
["Thailand"]
["Timor-Leste"]
["Togo"]
["Tokelau"]
["Tonga"]
["Trinidad and Tobago"]
["Tunisia"]
["Turkey"]
["Turkmenistan"]
["Turks and Caicos Islands"]
["Tuvalu"]
["Uganda"]
["Ukraine"]
["United Arab Emirates"]
["United Kingdom of Great Britain and Northern Ireland"]
["United States of America"]
["United States Minor Outlying Islands"]
["Uruguay"]
["Uzbekistan"]
["Vanuatu"]
["Venezuela (Bolivarian Republic of)"]
["Viet Nam"]
["Virgin Islands (British)"]
["Virgin Islands (U.S.)"]
["Wallis and Futuna"]
["Western Sahara"]
["Yemen"]
["Zambia"]
["Zimbabwe"]

{"sheet":"Country profile","index":5,"n_rows":21,"n_cols":10,"rows_kept":21,"cut":false,"hidden":true,"merged":[[18,3,18,4],[11,1,12,2],[16,1,17,2],[3,4,3,10],[20,1,31,1],[6,3,6,4],[7,3,7,4],[11,3,11,4],[12,3,12,4],[16,3,16,4],[17,3,17,4],[22,3,22,10],[11,5,11,10],[12,5,12,10],[20,3,20,10],[21,3,21,10],[2,2,2,3],[15,5,15,10],[16,5,16,10],[17,5,17,10],[5,5,5,10],[2,4,2,10],[6,5,6,10],[7,5,7,10],[10,5,10,10],[5,3,5,4],[6,1,7,2],[8,3,8,4],[10,3,10,4],[13,3,13,4],[15,3,15,4],[29,3,29,10],[30,3,30,10],[23,3,23,10],[24,3,24,10],[25,3,25,10],[26,3,26,10],[27,3,27,10],[28,3,28,10]]}
[]
[]
[null,null,"Pays :",null,"Algeria"]
[null,null,null,null,"(Veuillez utiliser le menu déroulant pour sélectionner votre pays)"]
[]
[null,null,null,"Prénom et Nom :"]
[null,"Principaux représentants du secteur de la santé humaine.",null,"Titre ou désignation :"]
[null,null,null,"Bureau ou département :"]
[null,null,null,"Date de préparation :",null,"Jour",null,"Mois",null,"Année"]
[]
[null,null,null,"Prénom et Nom :"]
[null,"Principaux représentants du secteur de la santé animale.",null,"Titre ou désignation :"]
[null,null,null,"Bureau ou département :"]
[null,null,null,"Date de préparation :",null,"Jour",null,"Mois",null,"Année"]
[]
[null,null,null,"Prénom et Nom :"]
[null,"Représentant principal pour tout autre secteur.",null,"Titre ou désignation :"]
[null,null,null,"Bureau ou département :"]
[null,null,null,"Date de préparation :",null,"Jour",null,"Mois",null,"Année"]
[]
[null,"Noms des membres du groupe de travail national pour la rage."]

{"sheet":"Data coll & an","index":6,"n_rows":50,"n_cols":12,"rows_kept":50,"cut":false,"hidden":true,"merged":[[3,7,3,10]]}
[]
[null,null,"Instructions : Si l'activité est terminée, inscrivez « 1 » dans la colonne « Statut ». Si l'activité n'a PAS été achevée ou si vous n'êtes pas sûr qu'elle l'ait été, inscrivez « 0 » dans la colonne « Statut »."]
[]
["ID","SOUS-COMPOSANTE","STADE","ACTIVITES","GUIDE DE REPONSE A LA QUESTION","STATUT","REMARQUES","RABIES BLUEPRINT REFERENCES AND OTHER LINKS"]
[{"$f":"IFERROR(INDEX(masterlist!$A$2:$F$207,SMALL(IF(masterlist!$B$2:$B$207=\"DCA\",ROW(masterlist!$A$2:$F$207)-1),ROW(1:1)),3),\"\")","v":"DCA-Sur-0-1"},{"$f":"IFERROR(INDEX(masterlist!$D$2:$D$207,MATCH(A5,masterlist!$C$2:$C$207,0)),\"\")","v":"Surveillance"},{"$f":"IFERROR(INDEX(masterlist!$E$2:$E$207,MATCH(A5,masterlist!$C$2:$C$207,0)),\"\")","v":0},{"$f":"IFERROR(INDEX(masterlist!$G$2:$G$207,MATCH(A5,masterlist!$C$2:$C$207,0)),\"\")","v":"La présence de la rage a-t-elle été officiellement OU officieusement mentionnée dans le pays ?"},{"$f":"IFERROR(INDEX(masterlist!$H$2:$H$207,MATCH(A5,masterlist!$C$2:$C$207,0)),\"\")","v":"Il ne s’agit pas nécessairement de rapports officiels mais de toute mention telle qu’on peut les trouver sur les principaux média, par exemple presse, Facebook, etc. "},1,null,{"$f":"IFERROR(HYPERLINK(INDEX(masterlist!$M$2:$M$207,MATCH(A5,masterlist!$C$2:$C$207,0)),INDEX(masterlist!$L$2:$L$207,MATCH(A5,masterlist!$C$2:$C$207,0))),\"\")","v":0},{"$f":"IFERROR(HYPERLINK(INDEX(masterlist!$O$2:$O$207,MATCH(A5,masterlist!$C$2:$C$207,0)),INDEX(masterlist!$N$2:$N$207,MATCH(A5,masterlist!$C$2:$C$207,0))),\"\")","v":0},{"$f":"IFERROR(HYPERLINK(INDEX(masterlist!$Q$2:$Q$207,MATCH(A5,masterlist!$C$2:$C$207,0)),INDEX(masterlist!$P$2:$P$207,MATCH(A5,masterlist!$C$2:$C$207,0))),\"\")","v":0},{"$f":"IFERROR(HYPERLINK(INDEX(masterlist!$S$2:$S$207,MATCH(A5,masterlist!$C$2:$C$207,0)),INDEX(masterlist!$R$2:$R$207,MATCH(A5,masterlist!$C$2:$C$207,0))),\"\")","v":0},{"$f":"IFERROR(HYPERLINK(INDEX(masterlist!$U$2:$U$207,MATCH(A5,masterlist!$C$2:$C$207,0)),INDEX(masterlist!$T$2:$T$207,MATCH(A5,masterlist!$C$2:$C$207,0))),\"\")","v":0}]
[{"$f":"IFERROR(INDEX(masterlist!$A$2:$F$207,SMALL(IF(masterlist!$B$2:$B$207=\"DCA\",ROW(masterlist!$A$2:$F$207)-1),ROW(2:2)),3),\"\")","v":"DCA-Sur-0-2"},{"$f":"IFERROR(INDEX(masterlist!$D$2:$D$207,MATCH(A6,masterlist!$C$2:$C$207,0)),\"\")","v":"Surveillance"},{"$f":"IFERROR(INDEX(masterlist!$E$2:$E$207,MATCH(A6,masterlist!$C$2:$C$207,0)),\"\")","v":0},{"$f":"IFERROR(INDEX(masterlist!$G$2:$G$207,MATCH(A6,masterlist!$C$2:$C$207,0)),\"\")","v":"Les autorités nationales ont-elles jamais signalé au moins un cas de rage confirmée à l’OMS ou à WOAH ?"},{"$f":"IFERROR(INDEX(masterlist!$H$2:$H$207,MATCH(A6,masterlist!$C$2:$C$207,0)),\"\")","v":"Année du dernier cas de rage signalé à l’OMS \n\nET/OU\n\nAnnée du dernier cas de rage signalé à l’WOAH. "},1,null,{"$f":"IFERROR(HYPERLINK(INDEX(masterlist!$M$2:$M$207,MATCH(A6,masterlist!$C$2:$C$207,0)),INDEX(masterlist!$L$2:$L$207,MATCH(A6,masterlist!$C$2:$C$207,0))),\"\")","v":"WHO Collaborating Centres and OIE Reference Laboratories"},{"$f":"IFERROR(HYPERLINK(INDEX(masterlist!$O$2:$O$207,MATCH(A6,masterlist!$C$2:$C$207,0)),INDEX(masterlist!$N$2:$N$207,MATCH(A6,masterlist!$C$2:$C$207,0))),\"\")","v":0},{"$f":"IFERROR(HYPERLINK(INDEX(masterlist!$Q$2:$Q$207,MATCH(A6,masterlist!$C$2:$C$207,0)),INDEX(masterlist!$P$2:$P$207,MATCH(A6,masterlist!$C$2:$C$207,0))),\"\")","v":0},{"$f":"IFERROR(HYPERLINK(INDEX(masterlist!$S$2:$S$207,MATCH(A6,masterlist!$C$2:$C$207,0)),INDEX(masterlist!$R$2:$R$207,MATCH(A6,masterlist!$C$2:$C$207,0))),\"\")","v":0},{"$f":"IFERROR(HYPERLINK(INDEX(masterlist!$U$2:$U$207,MATCH(A6,masterlist!$C$2:$C$207,0)),INDEX(masterlist!$T$2:$T$207,MATCH(A6,masterlist!$C$2:$C$207,0))),\"\")","v":0}]
[{"$f":"IFERROR(INDEX(masterlist!$A$2:$F$207,SMALL(IF(masterlist!$B$2:$B$207=\"DCA\",ROW(masterlist!$A$2:$F$207)-1),ROW(3:3)),3),\"\")","v":"DCA-Sur-1-3"},{"$f":"IFERROR(INDEX(masterlist!$D$2:$D$207,MATCH(A7,masterlist!$C$2:$C$207,0)),\"\")","v":"Surveillance"},{"$f":"IFERROR(INDEX(masterlist!$E$2:$E$207,MATCH(A7,masterlist!$C$2:$C$207,0)),\"\")","v":1},{"$f":"IFERROR(INDEX(masterlist!$G$2:$G$207,MATCH(A7,masterlist!$C$2:$C$207,0)),\"\")","v":"Les cas de rage canine sont-ils transmis du niveau local au niveau national ?"},{"$f":"IFERROR(INDEX(masterlist!$H$2:$H$207,MATCH(A7,masterlist!$C$2:$C$207,0)),\"\")","v":"Le ministère national est-il informé des cas de rage canine dans le pays ?"},1,null,{"$f":"IFERROR(HYPERLINK(INDEX(masterlist!$M$2:$M$207,MATCH(A7,masterlist!$C$2:$C$207,0)),INDEX(masterlist!$L$2:$L$207,MATCH(A7,masterlist!$C$2:$C$207,0))),\"\")","v":"3.1.3-Infrastructure-surveillance"},{"$f":"IFERROR(HYPERLINK(INDEX(masterlist!$O$2:$O$207,MATCH(A7,masterlist!$C$2:$C$207,0)),INDEX(masterlist!$N$2:$N$207,MATCH(A7,masterlist!$C$2:$C$207,0))),\"\")","v":"Challenges of animal health information systems and surveillance for animal diseases and zoonoses "},{"$f":"IFERROR(HYPERLINK(INDEX(masterlist!$Q$2:$Q$207,MATCH(A7,masterlist!$C$2:$C$207,0)),INDEX(masterlist!$P$2:$P$207,MATCH(A7,masterlist!$C$2:$C$207,0))),\"\")","v":"Zoonotic diseases : a guide to establishing collaboration"},{"$f":"IFERROR(HYPERLINK(INDEX(masterlist!$S$2:$S$207,MATCH(A7,masterlist!$C$2:$C$207,0)),INDEX(masterlist!$R$2:$R$207,MATCH(A7,masterlist!$C$2:$C$207,0))),\"\")","v":" 6. Reporting of rabies data"},{"$f":"IFERROR(HYPERLINK(INDEX(masterlist!$U$2:$U$207,MATCH(A7,masterlist!$C$2:$C$207,0)),INDEX(masterlist!$T$2:$T$207,MATCH(A7,masterlist!$C$2:$C$207,0))),\"\")","v":0}]
[{"$f":"IFERROR(INDEX(masterlist!$A$2:$F$207,SMALL(IF(masterlist!$B$2:$B$207=\"DCA\",ROW(masterlist!$A$2:$F$207)-1),ROW(4:4)),3),\"\")","v":"DCA-Sur-1-4"},{"$f":"IFERROR(INDEX(masterlist!$D$2:$D$207,MATCH(A8,masterlist!$C$2:$C$207,0)),\"\")","v":"Surveillance"},{"$f":"IFERROR(INDEX(masterlist!$E$2:$E$207,MATCH(A8,masterlist!$C$2:$C$207,0)),\"\")","v":1},{"$f":"IFERROR(INDEX(masterlist!$G$2:$G$207,MATCH(A8,masterlist!$C$2:$C$207,0)),\"\")","v":"Les cas de rage humaine sont-ils transmis du niveau local au niveau national ?"},{"$f":"IFERROR(INDEX(masterlist!$H$2:$H$207,MATCH(A8,masterlist!$C$2:$C$207,0)),\"\")","v":"Le ministère national est-il informé des cas de rage humaine dans le pays ?"},1,null,{"$f":"IFERROR(HYPERLINK(INDEX(masterlist!$M$2:$M$207,MATCH(A8,masterlist!$C$2:$C$207,0)),INDEX(masterlist!$L$2:$L$207,MATCH(A8,masterlist!$C$2:$C$207,0))),\"\")","v":"3.1.3-Infrastructure-surveillance"},{"$f":"IFERROR(HYPERLINK(INDEX(masterlist!$O$2:$O$207,MATCH(A8,masterlist!$C$2:$C$207,0)),INDEX(masterlist!$N$2:$N$207,MATCH(A8,masterlist!$C$2:$C$207,0))),\"\")","v":"Challenges of animal health information systems and surveillance for animal diseases and zoonoses "},{"$f":"IFERROR(HYPERLINK(INDEX(masterlist!$Q$2:$Q$207,MATCH(A8,masterlist!$C$2:$C$207,0)),INDEX(masterlist!$P$2:$P$207,MATCH(A8,masterlist!$C$2:$C$207,0))),\"\")","v":"Zoonotic diseases : a guide to establishing collaboration"},{"$f":"IFERROR(HYPERLINK(INDEX(masterlist!$S$2:$S$207,MATCH(A8,masterlist!$C$2:$C$207,0)),INDEX(masterlist!$R$2:$R$207,MATCH(A8,masterlist!$C$2:$C$207,0))),\"\")","v":" 6. Reporting of rabies data"},{"$f":"IFERROR(HYPERLINK(INDEX(masterlist!$U$2:$U$207,MATCH(A8,masterlist!$C$2:$C$207,0)),INDEX(masterlist!$T$2:$T$207,MATCH(A8,masterlist!$C$2:$C$207,0))),\"\")","v":0}]
[{"$f":"IFERROR(INDEX(masterlist!$A$2:$F$207,SMALL(IF(masterlist!$B$2:$B$207=\"DCA\",ROW(masterlist!$A$2:$F$207)-1),ROW(5:5)),3),\"\")","v":"DCA-Sur-1-5"},{"$f":"IFERROR(INDEX(masterlist!$D$2:$D$207,MATCH(A9,masterlist!$C$2:$C$207,0)),\"\")","v":"Surveillance"},{"$f":"IFERROR(INDEX(masterlist!$E$2:$E$207,MATCH(A9,masterlist!$C$2:$C$207,0)),\"\")","v":1},{"$f":"IFERROR(INDEX(masterlist!$G$2:$G$207,MATCH(A9,masterlist!$C$2:$C$207,0)),\"\")","v":"Existe-t-il une capacité d'analyse des données relatives à la rage canine au niveau national ? "},{"$f":"IFERROR(INDEX(masterlist!$H$2:$H$207,MATCH(A9,masterlist!$C$2:$C$207,0)),\"\")","v":"Cela ne doit pas nécessairement être opérationnel pour la rage, mais il doit s'agir d'une infrastructure ou de systèmes qui pourraient éventuellement être utilisés pour l'analyse des données relatives à la rage. \n\nPar exemple, infrastructure pour l’analyse des données existant pour d’autres maladies/programmes, personnel correctement formé, technologie suffisante, etc. "},1,null,{"$f":"IFERROR(HYPERLINK(INDEX(masterlist!$M$2:$M$207,MATCH(A9,masterlist!$C$2:$C$207,0)),INDEX(masterlist!$L$2:$L$207,MATCH(A9,masterlist!$C$2:$C$207,0))),\"\")","v":"3.1.3-Infrastructure-surveillance"},{"$f":"IFERROR(HYPERLINK(INDEX(masterlist!$O$2:$O$207,MATCH(A9,masterlist!$C$2:$C$207,0)),INDEX(masterlist!$N$2:$N$207,MATCH(A9,masterlist!$C$2:$C$207,0))),\"\")","v":"Challenges of animal health information systems and surveillance for animal diseases and zoonoses "},{"$f":"IFERROR(HYPERLINK(INDEX(masterlist!$Q$2:$Q$207,MATCH(A9,masterlist!$C$2:$C$207,0)),INDEX(masterlist!$P$2:$P$207,MATCH(A9,masterlist!$C$2:$C$207,0))),\"\")","v":"2.3 Animal rabies surveillance"},{"$f":"IFERROR(HYPERLINK(INDEX(masterlist!$S$2:$S$207,MATCH(A9,masterlist!$C$2:$C$207,0)),INDEX(masterlist!$R$2:$R$207,MATCH(A9,masterlist!$C$2:$C$207,0))),\"\")","v":0},{"$f":"IFERROR(HYPERLINK(INDEX(masterlist!$U$2:$U$207,MATCH(A9,masterlist!$C$2:$C$207,0)),INDEX(masterlist!$T$2:$T$207,MATCH(A9,masterlist!$C$2:$C$207,0))),\"\")","v":0}]
[{"$f":"IFERROR(INDEX(masterlist!$A$2:$F$207,SMALL(IF(masterlist!$B$2:$B$207=\"DCA\",ROW(masterlist!$A$2:$F$207)-1),ROW(6:6)),3),\"\")","v":"DCA-Sur-1-6"},{"$f":"IFERROR(INDEX(masterlist!$D$2:$D$207,MATCH(A10,masterlist!$C$2:$C$207,0)),\"\")","v":"Surveillance"},{"$f":"IFERROR(INDEX(masterlist!$E$2:$E$207,MATCH(A10,masterlist!$C$2:$C$207,0)),\"\")","v":1},{"$f":"IFERROR(INDEX(masterlist!$G$2:$G$207,MATCH(A10,masterlist!$C$2:$C$207,0)),\"\")","v":"Existe-t-il une capacité d'analyse des données relatives à la rage humaine au niveau national ? "},{"$f":"IFERROR(INDEX(masterlist!$H$2:$H$207,MATCH(A10,masterlist!$C$2:$C$207,0)),\"\")","v":"Cela ne doit pas nécessairement être opérationnel pour la rage, mais il doit s'agir d'une infrastructure ou de systèmes que les parties prenantes pourraient éventuellement utiliser pour analyser les données relatives à la rage. \n\nPar exemple, infrastructure pour l’analyse des données existant pour d’autres maladies/programmes, personnel correctement formé, technologie suffisante, etc."},1,null,{"$f":"IFERROR(HYPERLINK(INDEX(masterlist!$M$2:$M$207,MATCH(A10,masterlist!$C$2:$C$207,0)),INDEX(masterlist!$L$2:$L$207,MATCH(A10,masterlist!$C$2:$C$207,0))),\"\")","v":"3.1.3-Infrastructure-surveillance"},{"$f":"IFERROR(HYPERLINK(INDEX(masterlist!$O$2:$O$207,MATCH(A10,masterlist!$C$2:$C$207,0)),INDEX(masterlist!$N$2:$N$207,MATCH(A10,masterlist!$C$2:$C$207,0))),\"\")","v":"Challenges of animal health information systems and surveillance for animal diseases and zoonoses "},{"$f":"IFERROR(HYPERLINK(INDEX(masterlist!$Q$2:$Q$207,MATCH(A10,masterlist!$C$2:$C$207,0)),INDEX(masterlist!$P$2:$P$207,MATCH(A10,masterlist!$C$2:$C$207,0))),\"\")","v":"2.2 Human rabies surveillance"},{"$f":"IFERROR(HYPERLINK(INDEX(masterlist!$S$2:$S$207,MATCH(A10,masterlist!$C$2:$C$207,0)),INDEX(masterlist!$R$2:$R$207,MATCH(A10,masterlist!$C$2:$C$207,0))),\"\")","v":0},{"$f":"IFERROR(HYPERLINK(INDEX(masterlist!$U$2:$U$207,MATCH(A10,masterlist!$C$2:$C$207,0)),INDEX(masterlist!$T$2:$T$207,MATCH(A10,masterlist!$C$2:$C$207,0))),\"\")","v":0}]
[{"$f":"IFERROR(INDEX(masterlist!$A$2:$F$207,SMALL(IF(masterlist!$B$2:$B$207=\"DCA\",ROW(masterlist!$A$2:$F$207)-1),ROW(7:7)),3),\"\")","v":"DCA-Sur-1-7"},{"$f":"IFERROR(INDEX(masterlist!$D$2:$D$207,MATCH(A11,masterlist!$C$2:$C$207,0)),\"\")","v":"Surveillance"},{"$f":"IFERROR(INDEX(masterlist!$E$2:$E$207,MATCH(A11,masterlist!$C$2:$C$207,0)),\"\")","v":1},{"$f":"IFERROR(INDEX(masterlist!$G$2:$G$207,MATCH(A11,masterlist!$C$2:$C$207,0)),\"\")","v":"Disposez-vous d’un système de surveillance* de la rage animale ? "},{"$f":"IFERROR(INDEX(masterlist!$H$2:$H$207,MATCH(A11,masterlist!$C$2:$C$207,0)),\"\")","v":"Vous pouvez répondre “Oui” s’il est en place. Cela ne signifie pas nécessairement qu’il fonctionne de façon optimale."},1,null,{"$f":"IFERROR(HYPERLINK(INDEX(masterlist!$M$2:$M$207,MATCH(A11,masterlist!$C$2:$C$207,0)),INDEX(masterlist!$L$2:$L$207,MATCH(A11,masterlist!$C$2:$C$207,0))),\"\")","v":"3.1.3-Infrastructure-surveillance"},{"$f":"IFERROR(HYPERLINK(INDEX(masterlist!$O$2:$O$207,MATCH(A11,masterlist!$C$2:$C$207,0)),INDEX(masterlist!$N$2:$N$207,MATCH(A11,masterlist!$C$2:$C$207,0))),\"\")","v":"Challenges of animal health information systems and surveillance for animal diseases and zoonoses "},{"$f":"IFERROR(HYPERLINK(INDEX(masterlist!$Q$2:$Q$207,MATCH(A11,masterlist!$C$2:$C$207,0)),INDEX(masterlist!$P$2:$P$207,MATCH(A11,masterlist!$C$2:$C$207,0))),\"\")","v":"Zoonotic diseases : a guide to establishing collaboration"},{"$f":"IFERROR(HYPERLINK(INDEX(masterlist!$S$2:$S$207,MATCH(A11,masterlist!$C$2:$C$207,0)),INDEX(masterlist!$R$2:$R$207,MATCH(A11,masterlist!$C$2:$C$207,0))),\"\")","v":"2.3 Animal rabies surveillance"},{"$f":"IFERROR(HYPERLINK(INDEX(masterlist!$U$2:$U$207,MATCH(A11,masterlist!$C$2:$C$207,0)),INDEX(masterlist!$T$2:$T$207,MATCH(A11,masterlist!$C$2:$C$207,0))),\"\")","v":0}]
[{"$f":"IFERROR(INDEX(masterlist!$A$2:$F$207,SMALL(IF(masterlist!$B$2:$B$207=\"DCA\",ROW(masterlist!$A$2:$F$207)-1),ROW(8:8)),3),\"\")","v":"DCA-Sur-1-8"},{"$f":"IFERROR(INDEX(masterlist!$D$2:$D$207,MATCH(A12,masterlist!$C$2:$C$207,0)),\"\")","v":"Surveillance"},{"$f":"IFERROR(INDEX(masterlist!$E$2:$E$207,MATCH(A12,masterlist!$C$2:$C$207,0)),\"\")","v":1},{"$f":"IFERROR(INDEX(masterlist!$G$2:$G$207,MATCH(A12,masterlist!$C$2:$C$207,0)),\"\")","v":"Transmettez-vous chaque année toutes les données relatives à la rage animale à l’WOAH ?"},{"$f":"IFERROR(INDEX(masterlist!$H$2:$H$207,MATCH(A12,masterlist!$C$2:$C$207,0)),\"\")","v":"Vous ne devez répondre “Oui” que si vous transmettez régulièrement vos données \n\nVous devez répondre “Non” si les données ne sont transmises que de temps en temps."},0,null,{"$f":"IFERROR(HYPERLINK(INDEX(masterlist!$M$2:$M$207,MATCH(A12,masterlist!$C$2:$C$207,0)),INDEX(masterlist!$L$2:$L$207,MATCH(A12,masterlist!$C$2:$C$207,0))),\"\")","v":"6.7 International databases"},{"$f":"IFERROR(HYPERLINK(INDEX(masterlist!$O$2:$O$207,MATCH(A12,masterlist!$C$2:$C$207,0)),INDEX(masterlist!$N$2:$N$207,MATCH(A12,masterlist!$C$2:$C$207,0))),\"\")","v":0},{"$f":"IFERROR(HYPERLINK(INDEX(masterlist!$Q$2:$Q$207,MATCH(A12,masterlist!$C$2:$C$207,0)),INDEX(masterlist!$P$2:$P$207,MATCH(A12,masterlist!$C$2:$C$207,0))),\"\")","v":0},{"$f":"IFERROR(HYPERLINK(INDEX(masterlist!$S$2:$S$207,MATCH(A12,masterlist!$C$2:$C$207,0)),INDEX(masterlist!$R$2:$R$207,MATCH(A12,masterlist!$C$2:$C$207,0))),\"\")","v":0},{"$f":"IFERROR(HYPERLINK(INDEX(masterlist!$U$2:$U$207,MATCH(A12,masterlist!$C$2:$C$207,0)),INDEX(masterlist!$T$2:$T$207,MATCH(A12,masterlist!$C$2:$C$207,0))),\"\")","v":0}]
[{"$f":"IFERROR(INDEX(masterlist!$A$2:$F$207,SMALL(IF(masterlist!$B$2:$B$207=\"DCA\",ROW(masterlist!$A$2:$F$207)-1),ROW(9:9)),3),\"\")","v":"DCA-Sur-1-9"},{"$f":"IFERROR(INDEX(masterlist!$D$2:$D$207,MATCH(A13,masterlist!$C$2:$C$207,0)),\"\")","v":"Surveillance"},{"$f":"IFERROR(INDEX(masterlist!$E$2:$E$207,MATCH(A13,masterlist!$C$2:$C$207,0)),\"\")","v":1},{"$f":"IFERROR(INDEX(masterlist!$G$2:$G$207,MATCH(A13,masterlist!$C$2:$C$207,0)),\"\")","v":"Disposez-vous d’un système de surveillance* de la rage humaine ? "},{"$f":"IFERROR(INDEX(masterlist!$H$2:$H$207,MATCH(A13,masterlist!$C$2:$C$207,0)),\"\")","v":"Vous pouvez répondre “Oui” s’il est en place ? Cela ne signifie pas nécessairement qu’il fonctionne de manière optimale. "},1,null,{"$f":"IFERROR(HYPERLINK(INDEX(masterlist!$M$2:$M$207,MATCH(A13,masterlist!$C$2:$C$207,0)),INDEX(masterlist!$L$2:$L$207,MATCH(A13,masterlist!$C$2:$C$207,0))),\"\")","v":"3.1.3-Infrastructure-surveillance"},{"$f":"IFERROR(HYPERLINK(INDEX(masterlist!$O$2:$O$207,MATCH(A13,masterlist!$C$2:$C$207,0)),INDEX(masterlist!$N$2:$N$207,MATCH(A13,masterlist!$C$2:$C$207,0))),\"\")","v":"Challenges of animal health information systems and surveillance for animal diseases and zoonoses "},{"$f":"IFERROR(HYPERLINK(INDEX(masterlist!$Q$2:$Q$207,MATCH(A13,masterlist!$C$2:$C$207,0)),INDEX(masterlist!$P$2:$P$207,MATCH(A13,masterlist!$C$2:$C$207,0))),\"\")","v":"Zoonotic diseases : a guide to establishing collaboration"},{"$f":"IFERROR(HYPERLINK(INDEX(masterlist!$S$2:$S$207,MATCH(A13,masterlist!$C$2:$C$207,0)),INDEX(masterlist!$R$2:$R$207,MATCH(A13,masterlist!$C$2:$C$207,0))),\"\")","v":"2.2 Human rabies surveillance "},{"$f":"IFERROR(HYPERLINK(INDEX(masterlist!$U$2:$U$207,MATCH(A13,masterlist!$C$2:$C$207,0)),INDEX(masterlist!$T$2:$T$207,MATCH(A13,masterlist!$C$2:$C$207,0))),\"\")","v":0}]
[{"$f":"IFERROR(INDEX(masterlist!$A$2:$F$207,SMALL(IF(masterlist!$B$2:$B$207=\"DCA\",ROW(masterlist!$A$2:$F$207)-1),ROW(10:10)),3),\"\")","v":"DCA-Sur-1-10"},{"$f":"IFERROR(INDEX(masterlist!$D$2:$D$207,MATCH(A14,masterlist!$C$2:$C$207,0)),\"\")","v":"Surveillance"},{"$f":"IFERROR(INDEX(masterlist!$E$2:$E$207,MATCH(A14,masterlist!$C$2:$C$207,0)),\"\")","v":1},{"$f":"IFERROR(INDEX(masterlist!$G$2:$G$207,MATCH(A14,masterlist!$C$2:$C$207,0)),\"\")","v":"Transmettez-vous chaque année toutes les données relatives à la rage humaine à l’OMS ?"},{"$f":"IFERROR(INDEX(masterlist!$H$2:$H$207,MATCH(A14,masterlist!$C$2:$C$207,0)),\"\")","v":"Vous ne devez répondre “Oui” que si vous transmettez régulièrement vos données. \n\nVous devez répondre “Non” si les données ne sont transmises que de temps en temps. "},0,null,{"$f":"IFERROR(HYPERLINK(INDEX(masterlist!$M$2:$M$207,MATCH(A14,masterlist!$C$2:$C$207,0)),INDEX(masterlist!$L$2:$L$207,MATCH(A14,masterlist!$C$2:$C$207,0))),\"\")","v":"6.7 International databases"},{"$f":"IFERROR(HYPERLINK(INDEX(masterlist!$O$2:$O$207,MATCH(A14,masterlist!$C$2:$C$207,0)),INDEX(masterlist!$N$2:$N$207,MATCH(A14,masterlist!$C$2:$C$207,0))),\"\")","v":0},{"$f":"IFERROR(HYPERLINK(INDEX(masterlist!$Q$2:$Q$207,MATCH(A14,masterlist!$C$2:$C$207,0)),INDEX(masterlist!$P$2:$P$207,MATCH(A14,masterlist!$C$2:$C$207,0))),\"\")","v":0},{"$f":"IFERROR(HYPERLINK(INDEX(masterlist!$S$2:$S$207,MATCH(A14,masterlist!$C$2:$C$207,0)),INDEX(masterlist!$R$2:$R$207,MATCH(A14,masterlist!$C$2:$C$207,0))),\"\")","v":0},{"$f":"IFERROR(HYPERLINK(INDEX(masterlist!$U$2:$U$207,MATCH(A14,masterlist!$C$2:$C$207,0)),INDEX(masterlist!$T$2:$T$207,MATCH(A14,masterlist!$C$2:$C$207,0))),\"\")","v":0}]
[{"$f":"IFERROR(INDEX(masterlist!$A$2:$F$207,SMALL(IF(masterlist!$B$2:$B$207=\"DCA\",ROW(masterlist!$A$2:$F$207)-1),ROW(11:11)),3),\"\")","v":"DCA-Sur-1-11"},{"$f":"IFERROR(INDEX(masterlist!$D$2:$D$207,MATCH(A15,masterlist!$C$2:$C$207,0)),\"\")","v":"Surveillance"},{"$f":"IFERROR(INDEX(masterlist!$E$2:$E$207,MATCH(A15,masterlist!$C$2:$C$207,0)),\"\")","v":1},{"$f":"IFERROR(INDEX(masterlist!$G$2:$G$207,MATCH(A15,masterlist!$C$2:$C$207,0)),\"\")","v":"Les données sur les cas de morsure humaine sont-elles utilisées pour les prises de décision ?"},{"$f":"IFERROR(INDEX(masterlist!$H$2:$H$207,MATCH(A15,masterlist!$C$2:$C$207,0)),\"\")","v":"Par exemple, le nombre de cas de morsures humaines signalés est utilisé pour déterminer le nombre de doses de vaccin contre la rage humaine à acheter pour l'année suivante. "},1,null,{"$f":"IFERROR(HYPERLINK(INDEX(masterlist!$M$2:$M$207,MATCH(A15,masterlist!$C$2:$C$207,0)),INDEX(masterlist!$L$2:$L$207,MATCH(A15,masterlist!$C$2:$C$207,0))),\"\")","v":"5.3.1-Rabies-surveillance"},{"$f":"IFERROR(HYPERLINK(INDEX(masterlist!$O$2:$O$207,MATCH(A15,masterlist!$C$2:$C$207,0)),INDEX(masterlist!$N$2:$N$207,MATCH(A15,masterlist!$C$2:$C$207,0))),\"\")","v":0},{"$f":"IFERROR(HYPERLINK(INDEX(masterlist!$Q$2:$Q$207,MATCH(A15,masterlist!$C$2:$C$207,0)),INDEX(masterlist!$P$2:$P$207,MATCH(A15,masterlist!$C$2:$C$207,0))),\"\")","v":0},{"$f":"IFERROR(HYPERLINK(INDEX(masterlist!$S$2:$S$207,MATCH(A15,masterlist!$C$2:$C$207,0)),INDEX(masterlist!$R$2:$R$207,MATCH(A15,masterlist!$C$2:$C$207,0))),\"\")","v":0},{"$f":"IFERROR(HYPERLINK(INDEX(masterlist!$U$2:$U$207,MATCH(A15,masterlist!$C$2:$C$207,0)),INDEX(masterlist!$T$2:$T$207,MATCH(A15,masterlist!$C$2:$C$207,0))),\"\")","v":0}]
[{"$f":"IFERROR(INDEX(masterlist!$A$2:$F$207,SMALL(IF(masterlist!$B$2:$B$207=\"DCA\",ROW(masterlist!$A$2:$F$207)-1),ROW(12:12)),3),\"\")","v":"DCA-Sur-1-12"},{"$f":"IFERROR(INDEX(masterlist!$D$2:$D$207,MATCH(A16,masterlist!$C$2:$C$207,0)),\"\")","v":"Surveillance"},{"$f":"IFERROR(INDEX(masterlist!$E$2:$E$207,MATCH(A16,masterlist!$C$2:$C$207,0)),\"\")","v":1},{"$f":"IFERROR(INDEX(masterlist!$G$2:$G$207,MATCH(A16,masterlist!$C$2:$C$207,0)),\"\")","v":"Avez-vous jamais réalisé des études sur la taille et l’accessibilité des populations de chiens dans votre pays ?"},{"$f":"IFERROR(INDEX(masterlist!$H$2:$H$207,MATCH(A16,masterlist!$C$2:$C$207,0)),\"\")","v":"Vous pouvez répondre “Oui” si les études ont été réalisées dans une zone pilote et non pas dans tout le pays. C’est aussi possible si des organisations non-gouvernementales ont entrepris ces études à condition que les ministères du gouvernement soient informés des résultats. \n\nMentionnez les années durant lesquelles ces études ont été réalisées."},0,null,{"$f":"IFERROR(HYPERLINK(INDEX(masterlist!$M$2:$M$207,MATCH(A16,masterlist!$C$2:$C$207,0)),INDEX(masterlist!$L$2:$L$207,MATCH(A16,masterlist!$C$2:$C$207,0))),\"\")","v":"5.4.1-estimate the number of dogs"},{"$f":"IFERROR(HYPERLINK(INDEX(masterlist!$O$2:$O$207,MATCH(A16,masterlist!$C$2:$C$207,0)),INDEX(masterlist!$N$2:$N$207,MATCH(A16,masterlist!$C$2:$C$207,0))),\"\")","v":0},{"$f":"IFERROR(HYPERLINK(INDEX(masterlist!$Q$2:$Q$207,MATCH(A16,masterlist!$C$2:$C$207,0)),INDEX(masterlist!$P$2:$P$207,MATCH(A16,masterlist!$C$2:$C$207,0))),\"\")","v":0},{"$f":"IFERROR(HYPERLINK(INDEX(masterlist!$S$2:$S$207,MATCH(A16,masterlist!$C$2:$C$207,0)),INDEX(masterlist!$R$2:$R$207,MATCH(A16,masterlist!$C$2:$C$207,0))),\"\")","v":0},{"$f":"IFERROR(HYPERLINK(INDEX(masterlist!$U$2:$U$207,MATCH(A16,masterlist!$C$2:$C$207,0)),INDEX(masterlist!$T$2:$T$207,MATCH(A16,masterlist!$C$2:$C$207,0))),\"\")","v":0}]
[{"$f":"IFERROR(INDEX(masterlist!$A$2:$F$207,SMALL(IF(masterlist!$B$2:$B$207=\"DCA\",ROW(masterlist!$A$2:$F$207)-1),ROW(13:13)),3),\"\")","v":"DCA-Sur-2-13"},{"$f":"IFERROR(INDEX(masterlist!$D$2:$D$207,MATCH(A17,masterlist!$C$2:$C$207,0)),\"\")","v":"Surveillance"},{"$f":"IFERROR(INDEX(masterlist!$E$2:$E$207,MATCH(A17,masterlist!$C$2:$C$207,0)),\"\")","v":2},{"$f":"IFERROR(INDEX(masterlist!$G$2:$G$207,MATCH(A17,masterlist!$C$2:$C$207,0)),\"\")","v":"Le système de surveillance de la rage humaine recueille-t-il toutes les données appropriées sur la rage et est-il pleinement opérationnel avec des mécanismes de retour d'information entre les niveaux administratifs (national, province, district, municipalité, etc.) ?"},{"$f":"IFERROR(INDEX(masterlist!$H$2:$H$207,MATCH(A17,masterlist!$C$2:$C$207,0)),\"\")","v":"Le système doit recueillir toute les données pertinentes nécessaires à une prise de décision fondée sur les données. \n\nEn outre, ces données doivent circuler du niveau local au niveau national, être analysées et faire l'objet d'un rapport, et les résultats de l'analyse doivent ensuite être partagés avec le   niveau local. Cela doit s’appliquer à toutes les données, de manière régulière et en temps opportun."},1,null,{"$f":"IFERROR(HYPERLINK(INDEX(masterlist!$M$2:$M$207,MATCH(A17,masterlist!$C$2:$C$207,0)),INDEX(masterlist!$L$2:$L$207,MATCH(A17,masterlist!$C$2:$C$207,0))),\"\")","v":"5.1.1-epidemiology-of-rabies"},{"$f":"IFERROR(HYPERLINK(INDEX(masterlist!$O$2:$O$207,MATCH(A17,masterlist!$C$2:$C$207,0)),INDEX(masterlist!$N$2:$N$207,MATCH(A17,masterlist!$C$2:$C$207,0))),\"\")","v":"WHO International Health Regulations"},{"$f":"IFERROR(HYPERLINK(INDEX(masterlist!$Q$2:$Q$207,MATCH(A17,masterlist!$C$2:$C$207,0)),INDEX(masterlist!$P$2:$P$207,MATCH(A17,masterlist!$C$2:$C$207,0))),\"\")","v":0},{"$f":"IFERROR(HYPERLINK(INDEX(masterlist!$S$2:$S$207,MATCH(A17,masterlist!$C$2:$C$207,0)),INDEX(masterlist!$R$2:$R$207,MATCH(A17,masterlist!$C$2:$C$207,0))),\"\")","v":0},{"$f":"IFERROR(HYPERLINK(INDEX(masterlist!$U$2:$U$207,MATCH(A17,masterlist!$C$2:$C$207,0)),INDEX(masterlist!$T$2:$T$207,MATCH(A17,masterlist!$C$2:$C$207,0))),\"\")","v":0}]
[{"$f":"IFERROR(INDEX(masterlist!$A$2:$F$207,SMALL(IF(masterlist!$B$2:$B$207=\"DCA\",ROW(masterlist!$A$2:$F$207)-1),ROW(14:14)),3),\"\")","v":"DCA-Sur-2-14"},{"$f":"IFERROR(INDEX(masterlist!$D$2:$D$207,MATCH(A18,masterlist!$C$2:$C$207,0)),\"\")","v":"Surveillance"},{"$f":"IFERROR(INDEX(masterlist!$E$2:$E$207,MATCH(A18,masterlist!$C$2:$C$207,0)),\"\")","v":2},{"$f":"IFERROR(INDEX(masterlist!$G$2:$G$207,MATCH(A18,masterlist!$C$2:$C$207,0)),\"\")","v":"Le système de surveillance de la rage animale recueille-t-il toutes les données appropriées sur la rage et est-il pleinement fonctionnel avec des mécanismes de retour d'information entre les niveaux administratifs (national, province, district, municipalité, etc.) ?"},{"$f":"IFERROR(INDEX(masterlist!$H$2:$H$207,MATCH(A18,masterlist!$C$2:$C$207,0)),\"\")","v":"Le système doit recueillir toute les données pertinentes nécessaires à une prise de décision fondée sur les données. \n\nEn outre, ces données doivent circuler du niveau local au niveau national, être analysées et faire l'objet d'un rapport, et les résultats de l'analyse doivent ensuite être partagés avec le niveau local. Cela doit appliquer à toutes les données, de manière régulière et en temps opportun."},1,null,{"$f":"IFERROR(HYPERLINK(INDEX(masterlist!$M$2:$M$207,MATCH(A18,masterlist!$C$2:$C$207,0)),INDEX(masterlist!$L$2:$L$207,MATCH(A18,masterlist!$C$2:$C$207,0))),\"\")","v":"5.1.1-epidemiology-of-rabies"},{"$f":"IFERROR(HYPERLINK(INDEX(masterlist!$O$2:$O$207,MATCH(A18,masterlist!$C$2:$C$207,0)),INDEX(masterlist!$N$2:$N$207,MATCH(A18,masterlist!$C$2:$C$207,0))),\"\")","v":"OIE Terrestrial Animal Health Code"},{"$f":"IFERROR(HYPERLINK(INDEX(masterlist!$Q$2:$Q$207,MATCH(A18,masterlist!$C$2:$C$207,0)),INDEX(masterlist!$P$2:$P$207,MATCH(A18,masterlist!$C$2:$C$207,0))),\"\")","v":0},{"$f":"IFERROR(HYPERLINK(INDEX(masterlist!$S$2:$S$207,MATCH(A18,masterlist!$C$2:$C$207,0)),INDEX(masterlist!$R$2:$R$207,MATCH(A18,masterlist!$C$2:$C$207,0))),\"\")","v":0},{"$f":"IFERROR(HYPERLINK(INDEX(masterlist!$U$2:$U$207,MATCH(A18,masterlist!$C$2:$C$207,0)),INDEX(masterlist!$T$2:$T$207,MATCH(A18,masterlist!$C$2:$C$207,0))),\"\")","v":0}]
[{"$f":"IFERROR(INDEX(masterlist!$A$2:$F$207,SMALL(IF(masterlist!$B$2:$B$207=\"DCA\",ROW(masterlist!$A$2:$F$207)-1),ROW(15:15)),3),\"\")","v":"DCA-Sur-2-15"},{"$f":"IFERROR(INDEX(masterlist!$D$2:$D$207,MATCH(A19,masterlist!$C$2:$C$207,0)),\"\")","v":"Surveillance"},{"$f":"IFERROR(INDEX(masterlist!$E$2:$E$207,MATCH(A19,masterlist!$C$2:$C$207,0)),\"\")","v":2},{"$f":"IFERROR(INDEX(masterlist!$G$2:$G$207,MATCH(A19,masterlist!$C$2:$C$207,0)),\"\")","v":"Les données relatives à la rage (humaine et animale) sont-elles régulièrement partagées dans leur TOTALITE avec toutes les autres parties prenantes ?"},{"$f":"IFERROR(INDEX(masterlist!$H$2:$H$207,MATCH(A19,masterlist!$C$2:$C$207,0)),\"\")","v":"Vous ne devez répondre “oui” que si les deux secteurs partagent régulièrement leurs données. \nParties prenantes impliquées – par exemple les décideurs politiques, les éducateurs, les ONG et d'autres personnes et organisations concernées."},0,null,{"$f":"IFERROR(HYPERLINK(INDEX(masterlist!$M$2:$M$207,MATCH(A19,masterlist!$C$2:$C$207,0)),INDEX(masterlist!$L$2:$L$207,MATCH(A19,masterlist!$C$2:$C$207,0))),\"\")","v":"5.1.1-epidemiology-of-rabies"},{"$f":"IFERROR(HYPERLINK(INDEX(masterlist!$O$2:$O$207,MATCH(A19,masterlist!$C$2:$C$207,0)),INDEX(masterlist!$N$2:$N$207,MATCH(A19,masterlist!$C$2:$C$207,0))),\"\")","v":"WHO International Health Regulations"},{"$f":"IFERROR(HYPERLINK(INDEX(masterlist!$Q$2:$Q$207,MATCH(A19,masterlist!$C$2:$C$207,0)),INDEX(masterlist!$P$2:$P$207,MATCH(A19,masterlist!$C$2:$C$207,0))),\"\")","v":"OIE Terrestrial Animal Health Code"},{"$f":"IFERROR(HYPERLINK(INDEX(masterlist!$S$2:$S$207,MATCH(A19,masterlist!$C$2:$C$207,0)),INDEX(masterlist!$R$2:$R$207,MATCH(A19,masterlist!$C$2:$C$207,0))),\"\")","v":"2. Roles-and-Responsibilities"},{"$f":"IFERROR(HYPERLINK(INDEX(masterlist!$U$2:$U$207,MATCH(A19,masterlist!$C$2:$C$207,0)),INDEX(masterlist!$T$2:$T$207,MATCH(A19,masterlist!$C$2:$C$207,0))),\"\")","v":0}]
[{"$f":"IFERROR(INDEX(masterlist!$A$2:$F$207,SMALL(IF(masterlist!$B$2:$B$207=\"DCA\",ROW(masterlist!$A$2:$F$207)-1),ROW(16:16)),3),\"\")","v":"DCA-Sur-2-16"},{"$f":"IFERROR(INDEX(masterlist!$D$2:$D$207,MATCH(A20,masterlist!$C$2:$C$207,0)),\"\")","v":"Surveillance"},{"$f":"IFERROR(INDEX(masterlist!$E$2:$E$207,MATCH(A20,masterlist!$C$2:$C$207,0)),\"\")","v":2},{"$f":"IFERROR(INDEX(masterlist!$G$2:$G$207,MATCH(A20,masterlist!$C$2:$C$207,0)),\"\")","v":"Un système de surveillance de la rage One Health (comprenant des données de surveillance humaines et animales à tous les niveaux) a-t-il été mis en place ? \n\nOU\n\nExiste-t-il une structure officielle pour le partage régulier et opportun de TOUTES les données pertinentes entre les systèmes de surveillance de la santé humaine et animale ?"},{"$f":"IFERROR(INDEX(masterlist!$H$2:$H$207,MATCH(A20,masterlist!$C$2:$C$207,0)),\"\")","v":"S'il n'existe pas de système commun, des liens clairs doivent être établis entre les systèmes de santé humaine et animale."},0,null,{"$f":"IFERROR(HYPERLINK(INDEX(masterlist!$M$2:$M$207,MATCH(A20,masterlist!$C$2:$C$207,0)),INDEX(masterlist!$L$2:$L$207,MATCH(A20,masterlist!$C$2:$C$207,0))),\"\")","v":0},{"$f":"IFERROR(HYPERLINK(INDEX(masterlist!$O$2:$O$207,MATCH(A20,masterlist!$C$2:$C$207,0)),INDEX(masterlist!$N$2:$N$207,MATCH(A20,masterlist!$C$2:$C$207,0))),\"\")","v":0},{"$f":"IFERROR(HYPERLINK(INDEX(masterlist!$Q$2:$Q$207,MATCH(A20,masterlist!$C$2:$C$207,0)),INDEX(masterlist!$P$2:$P$207,MATCH(A20,masterlist!$C$2:$C$207,0))),\"\")","v":0},{"$f":"IFERROR(HYPERLINK(INDEX(masterlist!$S$2:$S$207,MATCH(A20,masterlist!$C$2:$C$207,0)),INDEX(masterlist!$R$2:$R$207,MATCH(A20,masterlist!$C$2:$C$207,0))),\"\")","v":0},{"$f":"IFERROR(HYPERLINK(INDEX(masterlist!$U$2:$U$207,MATCH(A20,masterlist!$C$2:$C$207,0)),INDEX(masterlist!$T$2:$T$207,MATCH(A20,masterlist!$C$2:$C$207,0))),\"\")","v":0}]
[{"$f":"IFERROR(INDEX(masterlist!$A$2:$F$207,SMALL(IF(masterlist!$B$2:$B$207=\"DCA\",ROW(masterlist!$A$2:$F$207)-1),ROW(17:17)),3),\"\")","v":"DCA-Sur-3-17"},{"$f":"IFERROR(INDEX(masterlist!$D$2:$D$207,MATCH(A21,masterlist!$C$2:$C$207,0)),\"\")","v":"Surveillance"},{"$f":"IFERROR(INDEX(masterlist!$E$2:$E$207,MATCH(A21,masterlist!$C$2:$C$207,0)),\"\")","v":3},{"$f":"IFERROR(INDEX(masterlist!$G$2:$G$207,MATCH(A21,masterlist!$C$2:$C$207,0)),\"\")","v":"Le nombre de prélèvements positifs diminue-t-il d’année en année tout en conservant un taux élevé de prélèvements soumis à travers le pays ?"},{"$f":"IFERROR(INDEX(masterlist!$H$2:$H$207,MATCH(A21,masterlist!$C$2:$C$207,0)),\"\")","v":"Vous ne devez répondre “Oui” que s’il existe un système effectif de surveillance en place à travers tout le pays."},0,null,{"$f":"IFERROR(HYPERLINK(INDEX(masterlist!$M$2:$M$207,MATCH(A21,masterlist!$C$2:$C$207,0)),INDEX(masterlist!$L$2:$L$207,MATCH(A21,masterlist!$C$2:$C$207,0))),\"\")","v":0},{"$f":"IFERROR(HYPERLINK(INDEX(masterlist!$O$2:$O$207,MATCH(A21,masterlist!$C$2:$C$207,0)),INDEX(masterlist!$N$2:$N$207,MATCH(A21,masterlist!$C$2:$C$207,0))),\"\")","v":0},{"$f":"IFERROR(HYPERLINK(INDEX(masterlist!$Q$2:$Q$207,MATCH(A21,masterlist!$C$2:$C$207,0)),INDEX(masterlist!$P$2:$P$207,MATCH(A21,masterlist!$C$2:$C$207,0))),\"\")","v":0},{"$f":"IFERROR(HYPERLINK(INDEX(masterlist!$S$2:$S$207,MATCH(A21,masterlist!$C$2:$C$207,0)),INDEX(masterlist!$R$2:$R$207,MATCH(A21,masterlist!$C$2:$C$207,0))),\"\")","v":0},{"$f":"IFERROR(HYPERLINK(INDEX(masterlist!$U$2:$U$207,MATCH(A21,masterlist!$C$2:$C$207,0)),INDEX(masterlist!$T$2:$T$207,MATCH(A21,masterlist!$C$2:$C$207,0))),\"\")","v":0}]
[{"$f":"IFERROR(INDEX(masterlist!$A$2:$F$207,SMALL(IF(masterlist!$B$2:$B$207=\"DCA\",ROW(masterlist!$A$2:$F$207)-1),ROW(18:18)),3),\"\")","v":"DCA-Sur-3-18"},{"$f":"IFERROR(INDEX(masterlist!$D$2:$D$207,MATCH(A22,masterlist!$C$2:$C$207,0)),\"\")","v":"Surveillance"},{"$f":"IFERROR(INDEX(masterlist!$E$2:$E$207,MATCH(A22,masterlist!$C$2:$C$207,0)),\"\")","v":3},{"$f":"IFERROR(INDEX(masterlist!$G$2:$G$207,MATCH(A22,masterlist!$C$2:$C$207,0)),\"\")","v":"Tandis que votre pays se rapproche de l’élimination de la rage humaine, avez-vous rassemblé des preuves épidémiologiques de zones exemptes de rage humaine transmise par les chiens ?"},{"$f":"IFERROR(INDEX(masterlist!$H$2:$H$207,MATCH(A22,masterlist!$C$2:$C$207,0)),\"\")","v":" "},0,null,{"$f":"IFERROR(HYPERLINK(INDEX(masterlist!$M$2:$M$207,MATCH(A22,masterlist!$C$2:$C$207,0)),INDEX(masterlist!$L$2:$L$207,MATCH(A22,masterlist!$C$2:$C$207,0))),\"\")","v":0},{"$f":"IFERROR(HYPERLINK(INDEX(masterlist!$O$2:$O$207,MATCH(A22,masterlist!$C$2:$C$207,0)),INDEX(masterlist!$N$2:$N$207,MATCH(A22,masterlist!$C$2:$C$207,0))),\"\")","v":0},{"$f":"IFERROR(HYPERLINK(INDEX(masterlist!$Q$2:$Q$207,MATCH(A22,masterlist!$C$2:$C$207,0)),INDEX(masterlist!$P$2:$P$207,MATCH(A22,masterlist!$C$2:$C$207,0))),\"\")","v":0},{"$f":"IFERROR(HYPERLINK(INDEX(masterlist!$S$2:$S$207,MATCH(A22,masterlist!$C$2:$C$207,0)),INDEX(masterlist!$R$2:$R$207,MATCH(A22,masterlist!$C$2:$C$207,0))),\"\")","v":0},{"$f":"IFERROR(HYPERLINK(INDEX(masterlist!$U$2:$U$207,MATCH(A22,masterlist!$C$2:$C$207,0)),INDEX(masterlist!$T$2:$T$207,MATCH(A22,masterlist!$C$2:$C$207,0))),\"\")","v":0}]
[{"$f":"IFERROR(INDEX(masterlist!$A$2:$F$207,SMALL(IF(masterlist!$B$2:$B$207=\"DCA\",ROW(masterlist!$A$2:$F$207)-1),ROW(19:19)),3),\"\")","v":"DCA-Sur-3-19"},{"$f":"IFERROR(INDEX(masterlist!$D$2:$D$207,MATCH(A23,masterlist!$C$2:$C$207,0)),\"\")","v":"Surveillance"},{"$f":"IFERROR(INDEX(masterlist!$E$2:$E$207,MATCH(A23,masterlist!$C$2:$C$207,0)),\"\")","v":3},{"$f":"IFERROR(INDEX(masterlist!$G$2:$G$207,MATCH(A23,masterlist!$C$2:$C$207,0)),\"\")","v":"Avez-vous rassemblé des preuves épidémiologiques de zones où les cas de rage animale causées par le variant de rage canine ont été absents pendant une période d’au moins 2 ans ?"},{"$f":"IFERROR(INDEX(masterlist!$H$2:$H$207,MATCH(A23,masterlist!$C$2:$C$207,0)),\"\")","v":"Vous pouvez répondre “Oui” s’il existe un système de surveillance efficace en place qui n’a détecté que des prélèvements négatifs pour la rage."},0,null,{"$f":"IFERROR(HYPERLINK(INDEX(masterlist!$M$2:$M$207,MATCH(A23,masterlist!$C$2:$C$207,0)),INDEX(masterlist!$L$2:$L$207,MATCH(A23,masterlist!$C$2:$C$207,0))),\"\")","v":"5.4.17 Keeping an area rabies-free"},{"$f":"IFERROR(HYPERLINK(INDEX(masterlist!$O$2:$O$207,MATCH(A23,masterlist!$C$2:$C$207,0)),INDEX(masterlist!$N$2:$N$207,MATCH(A23,masterlist!$C$2:$C$207,0))),\"\")","v":0},{"$f":"IFERROR(HYPERLINK(INDEX(masterlist!$Q$2:$Q$207,MATCH(A23,masterlist!$C$2:$C$207,0)),INDEX(masterlist!$P$2:$P$207,MATCH(A23,masterlist!$C$2:$C$207,0))),\"\")","v":0},{"$f":"IFERROR(HYPERLINK(INDEX(masterlist!$S$2:$S$207,MATCH(A23,masterlist!$C$2:$C$207,0)),INDEX(masterlist!$R$2:$R$207,MATCH(A23,masterlist!$C$2:$C$207,0))),\"\")","v":0},{"$f":"IFERROR(HYPERLINK(INDEX(masterlist!$U$2:$U$207,MATCH(A23,masterlist!$C$2:$C$207,0)),INDEX(masterlist!$T$2:$T$207,MATCH(A23,masterlist!$C$2:$C$207,0))),\"\")","v":0}]
[{"$f":"IFERROR(INDEX(masterlist!$A$2:$F$207,SMALL(IF(masterlist!$B$2:$B$207=\"DCA\",ROW(masterlist!$A$2:$F$207)-1),ROW(20:20)),3),\"\")","v":"DCA-Sur-4-20"},{"$f":"IFERROR(INDEX(masterlist!$D$2:$D$207,MATCH(A24,masterlist!$C$2:$C$207,0)),\"\")","v":"Surveillance"},{"$f":"IFERROR(INDEX(masterlist!$E$2:$E$207,MATCH(A24,masterlist!$C$2:$C$207,0)),\"\")","v":4},{"$f":"IFERROR(INDEX(masterlist!$G$2:$G$207,MATCH(A24,masterlist!$C$2:$C$207,0)),\"\")","v":"Tandis que votre pays se rapproche de l’élimination de la rage canine, les données épidémiologiques issues de la surveillance régulière de tous les animaux (non seulement les chiens) ont-elles été utilisées pour affiner la stratégie nationale de lutte contre la rage ? "},{"$f":"IFERROR(INDEX(masterlist!$H$2:$H$207,MATCH(A24,masterlist!$C$2:$C$207,0)),\"\")","v":"Par exemple bêtes de somme, bétail et faune sauvage. "},0,null,{"$f":"IFERROR(HYPERLINK(INDEX(masterlist!$M$2:$M$207,MATCH(A24,masterlist!$C$2:$C$207,0)),INDEX(masterlist!$L$2:$L$207,MATCH(A24,masterlist!$C$2:$C$207,0))),\"\")","v":"WHO International Health Regulations"},{"$f":"IFERROR(HYPERLINK(INDEX(masterlist!$O$2:$O$207,MATCH(A24,masterlist!$C$2:$C$207,0)),INDEX(masterlist!$N$2:$N$207,MATCH(A24,masterlist!$C$2:$C$207,0))),\"\")","v":0},{"$f":"IFERROR(HYPERLINK(INDEX(masterlist!$Q$2:$Q$207,MATCH(A24,masterlist!$C$2:$C$207,0)),INDEX(masterlist!$P$2:$P$207,MATCH(A24,masterlist!$C$2:$C$207,0))),\"\")","v":0},{"$f":"IFERROR(HYPERLINK(INDEX(masterlist!$S$2:$S$207,MATCH(A24,masterlist!$C$2:$C$207,0)),INDEX(masterlist!$R$2:$R$207,MATCH(A24,masterlist!$C$2:$C$207,0))),\"\")","v":0},{"$f":"IFERROR(HYPERLINK(INDEX(masterlist!$U$2:$U$207,MATCH(A24,masterlist!$C$2:$C$207,0)),INDEX(masterlist!$T$2:$T$207,MATCH(A24,masterlist!$C$2:$C$207,0))),\"\")","v":0}]
[{"$f":"IFERROR(INDEX(masterlist!$A$2:$F$207,SMALL(IF(masterlist!$B$2:$B$207=\"DCA\",ROW(masterlist!$A$2:$F$207)-1),ROW(21:21)),3),\"\")","v":"DCA-Sur-5-21"},{"$f":"IFERROR(INDEX(masterlist!$D$2:$D$207,MATCH(A25,masterlist!$C$2:$C$207,0)),\"\")","v":"Surveillance"},{"$f":"IFERROR(INDEX(masterlist!$E$2:$E$207,MATCH(A25,masterlist!$C$2:$C$207,0)),\"\")","v":5},{"$f":"IFERROR(INDEX(masterlist!$G$2:$G$207,MATCH(A25,masterlist!$C$2:$C$207,0)),\"\")","v":"L’absence de rage transmise par les chiens dans tout le pays a-t-elle été vérifiée par l’absence de cas de variant canin durant une période d’au moins 2 ans ? "},{"$f":"IFERROR(INDEX(masterlist!$H$2:$H$207,MATCH(A25,masterlist!$C$2:$C$207,0)),\"\")","v":" "},0,null,{"$f":"IFERROR(HYPERLINK(INDEX(masterlist!$M$2:$M$207,MATCH(A25,masterlist!$C$2:$C$207,0)),INDEX(masterlist!$L$2:$L$207,MATCH(A25,masterlist!$C$2:$C$207,0))),\"\")","v":"5.4.17 Keeping an area rabies-free"},{"$f":"IFERROR(HYPERLINK(INDEX(masterlist!$O$2:$O$207,MATCH(A25,masterlist!$C$2:$C$207,0)),INDEX(masterlist!$N$2:$N$207,MATCH(A25,masterlist!$C$2:$C$207,0))),\"\")","v":0},{"$f":"IFERROR(HYPERLINK(INDEX(masterlist!$Q$2:$Q$207,MATCH(A25,masterlist!$C$2:$C$207,0)),INDEX(masterlist!$P$2:$P$207,MATCH(A25,masterlist!$C$2:$C$207,0))),\"\")","v":0},{"$f":"IFERROR(HYPERLINK(INDEX(masterlist!$S$2:$S$207,MATCH(A25,masterlist!$C$2:$C$207,0)),INDEX(masterlist!$R$2:$R$207,MATCH(A25,masterlist!$C$2:$C$207,0))),\"\")","v":0},{"$f":"IFERROR(HYPERLINK(INDEX(masterlist!$U$2:$U$207,MATCH(A25,masterlist!$C$2:$C$207,0)),INDEX(masterlist!$T$2:$T$207,MATCH(A25,masterlist!$C$2:$C$207,0))),\"\")","v":0}]
[{"$f":"IFERROR(INDEX(masterlist!$A$2:$F$207,SMALL(IF(masterlist!$B$2:$B$207=\"DCA\",ROW(masterlist!$A$2:$F$207)-1),ROW(22:22)),3),\"\")","v":""},{"$f":"IFERROR(INDEX(masterlist!$D$2:$D$207,MATCH(A26,masterlist!$C$2:$C$207,0)),\"\")","v":""},{"$f":"IFERROR(INDEX(masterlist!$E$2:$E$207,MATCH(A26,masterlist!$C$2:$C$207,0)),\"\")","v":""},{"$f":"IFERROR(INDEX(masterlist!$G$2:$G$207,MATCH(A26,masterlist!$C$2:$C$207,0)),\"\")","v":""},{"$f":"IFERROR(INDEX(masterlist!$H$2:$H$207,MATCH(A26,masterlist!$C$2:$C$207,0)),\"\")","v":""},null,null,{"$f":"IFERROR(HYPERLINK(INDEX(masterlist!$M$2:$M$207,MATCH(A26,masterlist!$C$2:$C$207,0)),INDEX(masterlist!$L$2:$L$207,MATCH(A26,masterlist!$C$2:$C$207,0))),\"\")","v":""},{"$f":"IFERROR(HYPERLINK(INDEX(masterlist!$O$2:$O$207,MATCH(A26,masterlist!$C$2:$C$207,0)),INDEX(masterlist!$N$2:$N$207,MATCH(A26,masterlist!$C$2:$C$207,0))),\"\")","v":""},{"$f":"IFERROR(HYPERLINK(INDEX(masterlist!$Q$2:$Q$207,MATCH(A26,masterlist!$C$2:$C$207,0)),INDEX(masterlist!$P$2:$P$207,MATCH(A26,masterlist!$C$2:$C$207,0))),\"\")","v":""},{"$f":"IFERROR(HYPERLINK(INDEX(masterlist!$S$2:$S$207,MATCH(A26,masterlist!$C$2:$C$207,0)),INDEX(masterlist!$R$2:$R$207,MATCH(A26,masterlist!$C$2:$C$207,0))),\"\")","v":""},{"$f":"IFERROR(HYPERLINK(INDEX(masterlist!$U$2:$U$207,MATCH(A26,masterlist!$C$2:$C$207,0)),INDEX(masterlist!$T$2:$T$207,MATCH(A26,masterlist!$C$2:$C$207,0))),\"\")","v":""}]
[{"$f":"IFERROR(INDEX(masterlist!$A$2:$F$207,SMALL(IF(masterlist!$B$2:$B$207=\"DCA\",ROW(masterlist!$A$2:$F$207)-1),ROW(23:23)),3),\"\")","v":""},{"$f":"IFERROR(INDEX(masterlist!$D$2:$D$207,MATCH(A27,masterlist!$C$2:$C$207,0)),\"\")","v":""},{"$f":"IFERROR(INDEX(masterlist!$E$2:$E$207,MATCH(A27,masterlist!$C$2:$C$207,0)),\"\")","v":""},{"$f":"IFERROR(INDEX(masterlist!$G$2:$G$207,MATCH(A27,masterlist!$C$2:$C$207,0)),\"\")","v":""},{"$f":"IFERROR(INDEX(masterlist!$H$2:$H$207,MATCH(A27,masterlist!$C$2:$C$207,0)),\"\")","v":""},null,null,{"$f":"IFERROR(HYPERLINK(INDEX(masterlist!$M$2:$M$207,MATCH(A27,masterlist!$C$2:$C$207,0)),INDEX(masterlist!$L$2:$L$207,MATCH(A27,masterlist!$C$2:$C$207,0))),\"\")","v":""},{"$f":"IFERROR(HYPERLINK(INDEX(masterlist!$O$2:$O$207,MATCH(A27,masterlist!$C$2:$C$207,0)),INDEX(masterlist!$N$2:$N$207,MATCH(A27,masterlist!$C$2:$C$207,0))),\"\")","v":""},{"$f":"IFERROR(HYPERLINK(INDEX(masterlist!$Q$2:$Q$207,MATCH(A27,masterlist!$C$2:$C$207,0)),INDEX(masterlist!$P$2:$P$207,MATCH(A27,masterlist!$C$2:$C$207,0))),\"\")","v":""},{"$f":"IFERROR(HYPERLINK(INDEX(masterlist!$S$2:$S$207,MATCH(A27,masterlist!$C$2:$C$207,0)),INDEX(masterlist!$R$2:$R$207,MATCH(A27,masterlist!$C$2:$C$207,0))),\"\")","v":""},{"$f":"IFERROR(HYPERLINK(INDEX(masterlist!$U$2:$U$207,MATCH(A27,masterlist!$C$2:$C$207,0)),INDEX(masterlist!$T$2:$T$207,MATCH(A27,masterlist!$C$2:$C$207,0))),\"\")","v":""}]
[{"$f":"IFERROR(INDEX(masterlist!$A$2:$F$207,SMALL(IF(masterlist!$B$2:$B$207=\"DCA\",ROW(masterlist!$A$2:$F$207)-1),ROW(24:24)),3),\"\")","v":""},{"$f":"IFERROR(INDEX(masterlist!$D$2:$D$207,MATCH(A28,masterlist!$C$2:$C$207,0)),\"\")","v":""},{"$f":"IFERROR(INDEX(masterlist!$E$2:$E$207,MATCH(A28,masterlist!$C$2:$C$207,0)),\"\")","v":""},{"$f":"IFERROR(INDEX(masterlist!$G$2:$G$207,MATCH(A28,masterlist!$C$2:$C$207,0)),\"\")","v":""},{"$f":"IFERROR(INDEX(masterlist!$H$2:$H$207,MATCH(A28,masterlist!$C$2:$C$207,0)),\"\")","v":""},null,null,{"$f":"IFERROR(HYPERLINK(INDEX(masterlist!$M$2:$M$207,MATCH(A28,masterlist!$C$2:$C$207,0)),INDEX(masterlist!$L$2:$L$207,MATCH(A28,masterlist!$C$2:$C$207,0))),\"\")","v":""},{"$f":"IFERROR(HYPERLINK(INDEX(masterlist!$O$2:$O$207,MATCH(A28,masterlist!$C$2:$C$207,0)),INDEX(masterlist!$N$2:$N$207,MATCH(A28,masterlist!$C$2:$C$207,0))),\"\")","v":""},{"$f":"IFERROR(HYPERLINK(INDEX(masterlist!$Q$2:$Q$207,MATCH(A28,masterlist!$C$2:$C$207,0)),INDEX(masterlist!$P$2:$P$207,MATCH(A28,masterlist!$C$2:$C$207,0))),\"\")","v":""},{"$f":"IFERROR(HYPERLINK(INDEX(masterlist!$S$2:$S$207,MATCH(A28,masterlist!$C$2:$C$207,0)),INDEX(masterlist!$R$2:$R$207,MATCH(A28,masterlist!$C$2:$C$207,0))),\"\")","v":""},{"$f":"IFERROR(HYPERLINK(INDEX(masterlist!$U$2:$U$207,MATCH(A28,masterlist!$C$2:$C$207,0)),INDEX(masterlist!$T$2:$T$207,MATCH(A28,masterlist!$C$2:$C$207,0))),\"\")","v":""}]
[{"$f":"IFERROR(INDEX(masterlist!$A$2:$F$207,SMALL(IF(masterlist!$B$2:$B$207=\"DCA\",ROW(masterlist!$A$2:$F$207)-1),ROW(25:25)),3),\"\")","v":""},{"$f":"IFERROR(INDEX(masterlist!$D$2:$D$207,MATCH(A29,masterlist!$C$2:$C$207,0)),\"\")","v":""},{"$f":"IFERROR(INDEX(masterlist!$E$2:$E$207,MATCH(A29,masterlist!$C$2:$C$207,0)),\"\")","v":""},{"$f":"IFERROR(INDEX(masterlist!$G$2:$G$207,MATCH(A29,masterlist!$C$2:$C$207,0)),\"\")","v":""},{"$f":"IFERROR(INDEX(masterlist!$H$2:$H$207,MATCH(A29,masterlist!$C$2:$C$207,0)),\"\")","v":""},null,null,{"$f":"IFERROR(HYPERLINK(INDEX(masterlist!$M$2:$M$207,MATCH(A29,masterlist!$C$2:$C$207,0)),INDEX(masterlist!$L$2:$L$207,MATCH(A29,masterlist!$C$2:$C$207,0))),\"\")","v":""},{"$f":"IFERROR(HYPERLINK(INDEX(masterlist!$O$2:$O$207,MATCH(A29,masterlist!$C$2:$C$207,0)),INDEX(masterlist!$N$2:$N$207,MATCH(A29,masterlist!$C$2:$C$207,0))),\"\")","v":""},{"$f":"IFERROR(HYPERLINK(INDEX(masterlist!$Q$2:$Q$207,MATCH(A29,masterlist!$C$2:$C$207,0)),INDEX(masterlist!$P$2:$P$207,MATCH(A29,masterlist!$C$2:$C$207,0))),\"\")","v":""},{"$f":"IFERROR(HYPERLINK(INDEX(masterlist!$S$2:$S$207,MATCH(A29,masterlist!$C$2:$C$207,0)),INDEX(masterlist!$R$2:$R$207,MATCH(A29,masterlist!$C$2:$C$207,0))),\"\")","v":""},{"$f":"IFERROR(HYPERLINK(INDEX(masterlist!$U$2:$U$207,MATCH(A29,masterlist!$C$2:$C$207,0)),INDEX(masterlist!$T$2:$T$207,MATCH(A29,masterlist!$C$2:$C$207,0))),\"\")","v":""}]
[{"$f":"IFERROR(INDEX(masterlist!$A$2:$F$207,SMALL(IF(masterlist!$B$2:$B$207=\"DCA\",ROW(masterlist!$A$2:$F$207)-1),ROW(26:26)),3),\"\")","v":""},{"$f":"IFERROR(INDEX(masterlist!$D$2:$D$207,MATCH(A30,masterlist!$C$2:$C$207,0)),\"\")","v":""},{"$f":"IFERROR(INDEX(masterlist!$E$2:$E$207,MATCH(A30,masterlist!$C$2:$C$207,0)),\"\")","v":""},{"$f":"IFERROR(INDEX(masterlist!$G$2:$G$207,MATCH(A30,masterlist!$C$2:$C$207,0)),\"\")","v":""},{"$f":"IFERROR(INDEX(masterlist!$H$2:$H$207,MATCH(A30,masterlist!$C$2:$C$207,0)),\"\")","v":""},null,null,{"$f":"IFERROR(HYPERLINK(INDEX(masterlist!$M$2:$M$207,MATCH(A30,masterlist!$C$2:$C$207,0)),INDEX(masterlist!$L$2:$L$207,MATCH(A30,masterlist!$C$2:$C$207,0))),\"\")","v":""},{"$f":"IFERROR(HYPERLINK(INDEX(masterlist!$O$2:$O$207,MATCH(A30,masterlist!$C$2:$C$207,0)),INDEX(masterlist!$N$2:$N$207,MATCH(A30,masterlist!$C$2:$C$207,0))),\"\")","v":""},{"$f":"IFERROR(HYPERLINK(INDEX(masterlist!$Q$2:$Q$207,MATCH(A30,masterlist!$C$2:$C$207,0)),INDEX(masterlist!$P$2:$P$207,MATCH(A30,masterlist!$C$2:$C$207,0))),\"\")","v":""},{"$f":"IFERROR(HYPERLINK(INDEX(masterlist!$S$2:$S$207,MATCH(A30,masterlist!$C$2:$C$207,0)),INDEX(masterlist!$R$2:$R$207,MATCH(A30,masterlist!$C$2:$C$207,0))),\"\")","v":""},{"$f":"IFERROR(HYPERLINK(INDEX(masterlist!$U$2:$U$207,MATCH(A30,masterlist!$C$2:$C$207,0)),INDEX(masterlist!$T$2:$T$207,MATCH(A30,masterlist!$C$2:$C$207,0))),\"\")","v":""}]
[{"$f":"IFERROR(INDEX(masterlist!$A$2:$F$207,SMALL(IF(masterlist!$B$2:$B$207=\"DCA\",ROW(masterlist!$A$2:$F$207)-1),ROW(27:27)),3),\"\")","v":""},{"$f":"IFERROR(INDEX(masterlist!$D$2:$D$207,MATCH(A31,masterlist!$C$2:$C$207,0)),\"\")","v":""},{"$f":"IFERROR(INDEX(masterlist!$E$2:$E$207,MATCH(A31,masterlist!$C$2:$C$207,0)),\"\")","v":""},{"$f":"IFERROR(INDEX(masterlist!$G$2:$G$207,MATCH(A31,masterlist!$C$2:$C$207,0)),\"\")","v":""},{"$f":"IFERROR(INDEX(masterlist!$H$2:$H$207,MATCH(A31,masterlist!$C$2:$C$207,0)),\"\")","v":""},null,null,{"$f":"IFERROR(HYPERLINK(INDEX(masterlist!$M$2:$M$207,MATCH(A31,masterlist!$C$2:$C$207,0)),INDEX(masterlist!$L$2:$L$207,MATCH(A31,masterlist!$C$2:$C$207,0))),\"\")","v":""},{"$f":"IFERROR(HYPERLINK(INDEX(masterlist!$O$2:$O$207,MATCH(A31,masterlist!$C$2:$C$207,0)),INDEX(masterlist!$N$2:$N$207,MATCH(A31,masterlist!$C$2:$C$207,0))),\"\")","v":""},{"$f":"IFERROR(HYPERLINK(INDEX(masterlist!$Q$2:$Q$207,MATCH(A31,masterlist!$C$2:$C$207,0)),INDEX(masterlist!$P$2:$P$207,MATCH(A31,masterlist!$C$2:$C$207,0))),\"\")","v":""},{"$f":"IFERROR(HYPERLINK(INDEX(masterlist!$S$2:$S$207,MATCH(A31,masterlist!$C$2:$C$207,0)),INDEX(masterlist!$R$2:$R$207,MATCH(A31,masterlist!$C$2:$C$207,0))),\"\")","v":""},{"$f":"IFERROR(HYPERLINK(INDEX(masterlist!$U$2:$U$207,MATCH(A31,masterlist!$C$2:$C$207,0)),INDEX(masterlist!$T$2:$T$207,MATCH(A31,masterlist!$C$2:$C$207,0))),\"\")","v":""}]
[{"$f":"IFERROR(INDEX(masterlist!$A$2:$F$207,SMALL(IF(masterlist!$B$2:$B$207=\"DCA\",ROW(masterlist!$A$2:$F$207)-1),ROW(28:28)),3),\"\")","v":""},{"$f":"IFERROR(INDEX(masterlist!$D$2:$D$207,MATCH(A32,masterlist!$C$2:$C$207,0)),\"\")","v":""},{"$f":"IFERROR(INDEX(masterlist!$E$2:$E$207,MATCH(A32,masterlist!$C$2:$C$207,0)),\"\")","v":""},{"$f":"IFERROR(INDEX(masterlist!$G$2:$G$207,MATCH(A32,masterlist!$C$2:$C$207,0)),\"\")","v":""},{"$f":"IFERROR(INDEX(masterlist!$H$2:$H$207,MATCH(A32,masterlist!$C$2:$C$207,0)),\"\")","v":""},null,null,{"$f":"IFERROR(HYPERLINK(INDEX(masterlist!$M$2:$M$207,MATCH(A32,masterlist!$C$2:$C$207,0)),INDEX(masterlist!$L$2:$L$207,MATCH(A32,masterlist!$C$2:$C$207,0))),\"\")","v":""},{"$f":"IFERROR(HYPERLINK(INDEX(masterlist!$O$2:$O$207,MATCH(A32,masterlist!$C$2:$C$207,0)),INDEX(masterlist!$N$2:$N$207,MATCH(A32,masterlist!$C$2:$C$207,0))),\"\")","v":""},{"$f":"IFERROR(HYPERLINK(INDEX(masterlist!$Q$2:$Q$207,MATCH(A32,masterlist!$C$2:$C$207,0)),INDEX(masterlist!$P$2:$P$207,MATCH(A32,masterlist!$C$2:$C$207,0))),\"\")","v":""},{"$f":"IFERROR(HYPERLINK(INDEX(masterlist!$S$2:$S$207,MATCH(A32,masterlist!$C$2:$C$207,0)),INDEX(masterlist!$R$2:$R$207,MATCH(A32,masterlist!$C$2:$C$207,0))),\"\")","v":""},{"$f":"IFERROR(HYPERLINK(INDEX(masterlist!$U$2:$U$207,MATCH(A32,masterlist!$C$2:$C$207,0)),INDEX(masterlist!$T$2:$T$207,MATCH(A32,masterlist!$C$2:$C$207,0))),\"\")","v":""}]
[{"$f":"IFERROR(INDEX(masterlist!$A$2:$F$207,SMALL(IF(masterlist!$B$2:$B$207=\"DCA\",ROW(masterlist!$A$2:$F$207)-1),ROW(29:29)),3),\"\")","v":""},{"$f":"IFERROR(INDEX(masterlist!$D$2:$D$207,MATCH(A33,masterlist!$C$2:$C$207,0)),\"\")","v":""},{"$f":"IFERROR(INDEX(masterlist!$E$2:$E$207,MATCH(A33,masterlist!$C$2:$C$207,0)),\"\")","v":""},{"$f":"IFERROR(INDEX(masterlist!$G$2:$G$207,MATCH(A33,masterlist!$C$2:$C$207,0)),\"\")","v":""},{"$f":"IFERROR(INDEX(masterlist!$H$2:$H$207,MATCH(A33,masterlist!$C$2:$C$207,0)),\"\")","v":""},null,null,{"$f":"IFERROR(HYPERLINK(INDEX(masterlist!$M$2:$M$207,MATCH(A33,masterlist!$C$2:$C$207,0)),INDEX(masterlist!$L$2:$L$207,MATCH(A33,masterlist!$C$2:$C$207,0))),\"\")","v":""},{"$f":"IFERROR(HYPERLINK(INDEX(masterlist!$O$2:$O$207,MATCH(A33,masterlist!$C$2:$C$207,0)),INDEX(masterlist!$N$2:$N$207,MATCH(A33,masterlist!$C$2:$C$207,0))),\"\")","v":""},{"$f":"IFERROR(HYPERLINK(INDEX(masterlist!$Q$2:$Q$207,MATCH(A33,masterlist!$C$2:$C$207,0)),INDEX(masterlist!$P$2:$P$207,MATCH(A33,masterlist!$C$2:$C$207,0))),\"\")","v":""},{"$f":"IFERROR(HYPERLINK(INDEX(masterlist!$S$2:$S$207,MATCH(A33,masterlist!$C$2:$C$207,0)),INDEX(masterlist!$R$2:$R$207,MATCH(A33,masterlist!$C$2:$C$207,0))),\"\")","v":""},{"$f":"IFERROR(HYPERLINK(INDEX(masterlist!$U$2:$U$207,MATCH(A33,masterlist!$C$2:$C$207,0)),INDEX(masterlist!$T$2:$T$207,MATCH(A33,masterlist!$C$2:$C$207,0))),\"\")","v":""}]
[{"$f":"IFERROR(INDEX(masterlist!$A$2:$F$207,SMALL(IF(masterlist!$B$2:$B$207=\"DCA\",ROW(masterlist!$A$2:$F$207)-1),ROW(30:30)),3),\"\")","v":""},{"$f":"IFERROR(INDEX(masterlist!$D$2:$D$207,MATCH(A34,masterlist!$C$2:$C$207,0)),\"\")","v":""},{"$f":"IFERROR(INDEX(masterlist!$E$2:$E$207,MATCH(A34,masterlist!$C$2:$C$207,0)),\"\")","v":""},{"$f":"IFERROR(INDEX(masterlist!$G$2:$G$207,MATCH(A34,masterlist!$C$2:$C$207,0)),\"\")","v":""},{"$f":"IFERROR(INDEX(masterlist!$H$2:$H$207,MATCH(A34,masterlist!$C$2:$C$207,0)),\"\")","v":""},null,null,{"$f":"IFERROR(HYPERLINK(INDEX(masterlist!$M$2:$M$207,MATCH(A34,masterlist!$C$2:$C$207,0)),INDEX(masterlist!$L$2:$L$207,MATCH(A34,masterlist!$C$2:$C$207,0))),\"\")","v":""},{"$f":"IFERROR(HYPERLINK(INDEX(masterlist!$O$2:$O$207,MATCH(A34,masterlist!$C$2:$C$207,0)),INDEX(masterlist!$N$2:$N$207,MATCH(A34,masterlist!$C$2:$C$207,0))),\"\")","v":""},{"$f":"IFERROR(HYPERLINK(INDEX(masterlist!$Q$2:$Q$207,MATCH(A34,masterlist!$C$2:$C$207,0)),INDEX(masterlist!$P$2:$P$207,MATCH(A34,masterlist!$C$2:$C$207,0))),\"\")","v":""},{"$f":"IFERROR(HYPERLINK(INDEX(masterlist!$S$2:$S$207,MATCH(A34,masterlist!$C$2:$C$207,0)),INDEX(masterlist!$R$2:$R$207,MATCH(A34,masterlist!$C$2:$C$207,0))),\"\")","v":""},{"$f":"IFERROR(HYPERLINK(INDEX(masterlist!$U$2:$U$207,MATCH(A34,masterlist!$C$2:$C$207,0)),INDEX(masterlist!$T$2:$T$207,MATCH(A34,masterlist!$C$2:$C$207,0))),\"\")","v":""}]
[{"$f":"IFERROR(INDEX(masterlist!$A$2:$F$207,SMALL(IF(masterlist!$B$2:$B$207=\"DCA\",ROW(masterlist!$A$2:$F$207)-1),ROW(31:31)),3),\"\")","v":""},{"$f":"IFERROR(INDEX(masterlist!$D$2:$D$207,MATCH(A35,masterlist!$C$2:$C$207,0)),\"\")","v":""},{"$f":"IFERROR(INDEX(masterlist!$E$2:$E$207,MATCH(A35,masterlist!$C$2:$C$207,0)),\"\")","v":""},{"$f":"IFERROR(INDEX(masterlist!$G$2:$G$207,MATCH(A35,masterlist!$C$2:$C$207,0)),\"\")","v":""},{"$f":"IFERROR(INDEX(masterlist!$H$2:$H$207,MATCH(A35,masterlist!$C$2:$C$207,0)),\"\")","v":""},null,null,{"$f":"IFERROR(HYPERLINK(INDEX(masterlist!$M$2:$M$207,MATCH(A35,masterlist!$C$2:$C$207,0)),INDEX(masterlist!$L$2:$L$207,MATCH(A35,masterlist!$C$2:$C$207,0))),\"\")","v":""},{"$f":"IFERROR(HYPERLINK(INDEX(masterlist!$O$2:$O$207,MATCH(A35,masterlist!$C$2:$C$207,0)),INDEX(masterlist!$N$2:$N$207,MATCH(A35,masterlist!$C$2:$C$207,0))),\"\")","v":""},{"$f":"IFERROR(HYPERLINK(INDEX(masterlist!$Q$2:$Q$207,MATCH(A35,masterlist!$C$2:$C$207,0)),INDEX(masterlist!$P$2:$P$207,MATCH(A35,masterlist!$C$2:$C$207,0))),\"\")","v":""},{"$f":"IFERROR(HYPERLINK(INDEX(masterlist!$S$2:$S$207,MATCH(A35,masterlist!$C$2:$C$207,0)),INDEX(masterlist!$R$2:$R$207,MATCH(A35,masterlist!$C$2:$C$207,0))),\"\")","v":""},{"$f":"IFERROR(HYPERLINK(INDEX(masterlist!$U$2:$U$207,MATCH(A35,masterlist!$C$2:$C$207,0)),INDEX(masterlist!$T$2:$T$207,MATCH(A35,masterlist!$C$2:$C$207,0))),\"\")","v":""}]
[{"$f":"IFERROR(INDEX(masterlist!$A$2:$F$207,SMALL(IF(masterlist!$B$2:$B$207=\"DCA\",ROW(masterlist!$A$2:$F$207)-1),ROW(32:32)),3),\"\")","v":""},{"$f":"IFERROR(INDEX(masterlist!$D$2:$D$207,MATCH(A36,masterlist!$C$2:$C$207,0)),\"\")","v":""},{"$f":"IFERROR(INDEX(masterlist!$E$2:$E$207,MATCH(A36,masterlist!$C$2:$C$207,0)),\"\")","v":""},{"$f":"IFERROR(INDEX(masterlist!$G$2:$G$207,MATCH(A36,masterlist!$C$2:$C$207,0)),\"\")","v":""},{"$f":"IFERROR(INDEX(masterlist!$H$2:$H$207,MATCH(A36,masterlist!$C$2:$C$207,0)),\"\")","v":""},null,null,{"$f":"IFERROR(HYPERLINK(INDEX(masterlist!$M$2:$M$207,MATCH(A36,masterlist!$C$2:$C$207,0)),INDEX(masterlist!$L$2:$L$207,MATCH(A36,masterlist!$C$2:$C$207,0))),\"\")","v":""},{"$f":"IFERROR(HYPERLINK(INDEX(masterlist!$O$2:$O$207,MATCH(A36,masterlist!$C$2:$C$207,0)),INDEX(masterlist!$N$2:$N$207,MATCH(A36,masterlist!$C$2:$C$207,0))),\"\")","v":""},{"$f":"IFERROR(HYPERLINK(INDEX(masterlist!$Q$2:$Q$207,MATCH(A36,masterlist!$C$2:$C$207,0)),INDEX(masterlist!$P$2:$P$207,MATCH(A36,masterlist!$C$2:$C$207,0))),\"\")","v":""},{"$f":"IFERROR(HYPERLINK(INDEX(masterlist!$S$2:$S$207,MATCH(A36,masterlist!$C$2:$C$207,0)),INDEX(masterlist!$R$2:$R$207,MATCH(A36,masterlist!$C$2:$C$207,0))),\"\")","v":""},{"$f":"IFERROR(HYPERLINK(INDEX(masterlist!$U$2:$U$207,MATCH(A36,masterlist!$C$2:$C$207,0)),INDEX(masterlist!$T$2:$T$207,MATCH(A36,masterlist!$C$2:$C$207,0))),\"\")","v":""}]
[{"$f":"IFERROR(INDEX(masterlist!$A$2:$F$207,SMALL(IF(masterlist!$B$2:$B$207=\"DCA\",ROW(masterlist!$A$2:$F$207)-1),ROW(33:33)),3),\"\")","v":""},{"$f":"IFERROR(INDEX(masterlist!$D$2:$D$207,MATCH(A37,masterlist!$C$2:$C$207,0)),\"\")","v":""},{"$f":"IFERROR(INDEX(masterlist!$E$2:$E$207,MATCH(A37,masterlist!$C$2:$C$207,0)),\"\")","v":""},{"$f":"IFERROR(INDEX(masterlist!$G$2:$G$207,MATCH(A37,masterlist!$C$2:$C$207,0)),\"\")","v":""},{"$f":"IFERROR(INDEX(masterlist!$H$2:$H$207,MATCH(A37,masterlist!$C$2:$C$207,0)),\"\")","v":""},null,null,{"$f":"IFERROR(HYPERLINK(INDEX(masterlist!$M$2:$M$207,MATCH(A37,masterlist!$C$2:$C$207,0)),INDEX(masterlist!$L$2:$L$207,MATCH(A37,masterlist!$C$2:$C$207,0))),\"\")","v":""},{"$f":"IFERROR(HYPERLINK(INDEX(masterlist!$O$2:$O$207,MATCH(A37,masterlist!$C$2:$C$207,0)),INDEX(masterlist!$N$2:$N$207,MATCH(A37,masterlist!$C$2:$C$207,0))),\"\")","v":""},{"$f":"IFERROR(HYPERLINK(INDEX(masterlist!$Q$2:$Q$207,MATCH(A37,masterlist!$C$2:$C$207,0)),INDEX(masterlist!$P$2:$P$207,MATCH(A37,masterlist!$C$2:$C$207,0))),\"\")","v":""},{"$f":"IFERROR(HYPERLINK(INDEX(masterlist!$S$2:$S$207,MATCH(A37,masterlist!$C$2:$C$207,0)),INDEX(masterlist!$R$2:$R$207,MATCH(A37,masterlist!$C$2:$C$207,0))),\"\")","v":""},{"$f":"IFERROR(HYPERLINK(INDEX(masterlist!$U$2:$U$207,MATCH(A37,masterlist!$C$2:$C$207,0)),INDEX(masterlist!$T$2:$T$207,MATCH(A37,masterlist!$C$2:$C$207,0))),\"\")","v":""}]
[{"$f":"IFERROR(INDEX(masterlist!$A$2:$F$207,SMALL(IF(masterlist!$B$2:$B$207=\"DCA\",ROW(masterlist!$A$2:$F$207)-1),ROW(34:34)),3),\"\")","v":""},{"$f":"IFERROR(INDEX(masterlist!$D$2:$D$207,MATCH(A38,masterlist!$C$2:$C$207,0)),\"\")","v":""},{"$f":"IFERROR(INDEX(masterlist!$E$2:$E$207,MATCH(A38,masterlist!$C$2:$C$207,0)),\"\")","v":""},{"$f":"IFERROR(INDEX(masterlist!$G$2:$G$207,MATCH(A38,masterlist!$C$2:$C$207,0)),\"\")","v":""},{"$f":"IFERROR(INDEX(masterlist!$H$2:$H$207,MATCH(A38,masterlist!$C$2:$C$207,0)),\"\")","v":""},null,null,{"$f":"IFERROR(HYPERLINK(INDEX(masterlist!$M$2:$M$207,MATCH(A38,masterlist!$C$2:$C$207,0)),INDEX(masterlist!$L$2:$L$207,MATCH(A38,masterlist!$C$2:$C$207,0))),\"\")","v":""},{"$f":"IFERROR(HYPERLINK(INDEX(masterlist!$O$2:$O$207,MATCH(A38,masterlist!$C$2:$C$207,0)),INDEX(masterlist!$N$2:$N$207,MATCH(A38,masterlist!$C$2:$C$207,0))),\"\")","v":""},{"$f":"IFERROR(HYPERLINK(INDEX(masterlist!$Q$2:$Q$207,MATCH(A38,masterlist!$C$2:$C$207,0)),INDEX(masterlist!$P$2:$P$207,MATCH(A38,masterlist!$C$2:$C$207,0))),\"\")","v":""},{"$f":"IFERROR(HYPERLINK(INDEX(masterlist!$S$2:$S$207,MATCH(A38,masterlist!$C$2:$C$207,0)),INDEX(masterlist!$R$2:$R$207,MATCH(A38,masterlist!$C$2:$C$207,0))),\"\")","v":""},{"$f":"IFERROR(HYPERLINK(INDEX(masterlist!$U$2:$U$207,MATCH(A38,masterlist!$C$2:$C$207,0)),INDEX(masterlist!$T$2:$T$207,MATCH(A38,masterlist!$C$2:$C$207,0))),\"\")","v":""}]
[{"$f":"IFERROR(INDEX(masterlist!$A$2:$F$207,SMALL(IF(masterlist!$B$2:$B$207=\"DCA\",ROW(masterlist!$A$2:$F$207)-1),ROW(35:35)),3),\"\")","v":""},{"$f":"IFERROR(INDEX(masterlist!$D$2:$D$207,MATCH(A39,masterlist!$C$2:$C$207,0)),\"\")","v":""},{"$f":"IFERROR(INDEX(masterlist!$E$2:$E$207,MATCH(A39,masterlist!$C$2:$C$207,0)),\"\")","v":""},{"$f":"IFERROR(INDEX(masterlist!$G$2:$G$207,MATCH(A39,masterlist!$C$2:$C$207,0)),\"\")","v":""},{"$f":"IFERROR(INDEX(masterlist!$H$2:$H$207,MATCH(A39,masterlist!$C$2:$C$207,0)),\"\")","v":""},null,null,{"$f":"IFERROR(HYPERLINK(INDEX(masterlist!$M$2:$M$207,MATCH(A39,masterlist!$C$2:$C$207,0)),INDEX(masterlist!$L$2:$L$207,MATCH(A39,masterlist!$C$2:$C$207,0))),\"\")","v":""},{"$f":"IFERROR(HYPERLINK(INDEX(masterlist!$O$2:$O$207,MATCH(A39,masterlist!$C$2:$C$207,0)),INDEX(masterlist!$N$2:$N$207,MATCH(A39,masterlist!$C$2:$C$207,0))),\"\")","v":""},{"$f":"IFERROR(HYPERLINK(INDEX(masterlist!$Q$2:$Q$207,MATCH(A39,masterlist!$C$2:$C$207,0)),INDEX(masterlist!$P$2:$P$207,MATCH(A39,masterlist!$C$2:$C$207,0))),\"\")","v":""},{"$f":"IFERROR(HYPERLINK(INDEX(masterlist!$S$2:$S$207,MATCH(A39,masterlist!$C$2:$C$207,0)),INDEX(masterlist!$R$2:$R$207,MATCH(A39,masterlist!$C$2:$C$207,0))),\"\")","v":""},{"$f":"IFERROR(HYPERLINK(INDEX(masterlist!$U$2:$U$207,MATCH(A39,masterlist!$C$2:$C$207,0)),INDEX(masterlist!$T$2:$T$207,MATCH(A39,masterlist!$C$2:$C$207,0))),\"\")","v":""}]
[{"$f":"IFERROR(INDEX(masterlist!$A$2:$F$207,SMALL(IF(masterlist!$B$2:$B$207=\"DCA\",ROW(masterlist!$A$2:$F$207)-1),ROW(36:36)),3),\"\")","v":""},{"$f":"IFERROR(INDEX(masterlist!$D$2:$D$207,MATCH(A40,masterlist!$C$2:$C$207,0)),\"\")","v":""},{"$f":"IFERROR(INDEX(masterlist!$E$2:$E$207,MATCH(A40,masterlist!$C$2:$C$207,0)),\"\")","v":""},{"$f":"IFERROR(INDEX(masterlist!$G$2:$G$207,MATCH(A40,masterlist!$C$2:$C$207,0)),\"\")","v":""},{"$f":"IFERROR(INDEX(masterlist!$H$2:$H$207,MATCH(A40,masterlist!$C$2:$C$207,0)),\"\")","v":""},null,null,{"$f":"IFERROR(HYPERLINK(INDEX(masterlist!$M$2:$M$207,MATCH(A40,masterlist!$C$2:$C$207,0)),INDEX(masterlist!$L$2:$L$207,MATCH(A40,masterlist!$C$2:$C$207,0))),\"\")","v":""},{"$f":"IFERROR(HYPERLINK(INDEX(masterlist!$O$2:$O$207,MATCH(A40,masterlist!$C$2:$C$207,0)),INDEX(masterlist!$N$2:$N$207,MATCH(A40,masterlist!$C$2:$C$207,0))),\"\")","v":""},{"$f":"IFERROR(HYPERLINK(INDEX(masterlist!$Q$2:$Q$207,MATCH(A40,masterlist!$C$2:$C$207,0)),INDEX(masterlist!$P$2:$P$207,MATCH(A40,masterlist!$C$2:$C$207,0))),\"\")","v":""},{"$f":"IFERROR(HYPERLINK(INDEX(masterlist!$S$2:$S$207,MATCH(A40,masterlist!$C$2:$C$207,0)),INDEX(masterlist!$R$2:$R$207,MATCH(A40,masterlist!$C$2:$C$207,0))),\"\")","v":""},{"$f":"IFERROR(HYPERLINK(INDEX(masterlist!$U$2:$U$207,MATCH(A40,masterlist!$C$2:$C$207,0)),INDEX(masterlist!$T$2:$T$207,MATCH(A40,masterlist!$C$2:$C$207,0))),\"\")","v":""}]
[{"$f":"IFERROR(INDEX(masterlist!$A$2:$F$207,SMALL(IF(masterlist!$B$2:$B$207=\"DCA\",ROW(masterlist!$A$2:$F$207)-1),ROW(37:37)),3),\"\")","v":""},{"$f":"IFERROR(INDEX(masterlist!$D$2:$D$207,MATCH(A41,masterlist!$C$2:$C$207,0)),\"\")","v":""},{"$f":"IFERROR(INDEX(masterlist!$E$2:$E$207,MATCH(A41,masterlist!$C$2:$C$207,0)),\"\")","v":""},{"$f":"IFERROR(INDEX(masterlist!$G$2:$G$207,MATCH(A41,masterlist!$C$2:$C$207,0)),\"\")","v":""},{"$f":"IFERROR(INDEX(masterlist!$H$2:$H$207,MATCH(A41,masterlist!$C$2:$C$207,0)),\"\")","v":""},null,null,{"$f":"IFERROR(HYPERLINK(INDEX(masterlist!$M$2:$M$207,MATCH(A41,masterlist!$C$2:$C$207,0)),INDEX(masterlist!$L$2:$L$207,MATCH(A41,masterlist!$C$2:$C$207,0))),\"\")","v":""},{"$f":"IFERROR(HYPERLINK(INDEX(masterlist!$O$2:$O$207,MATCH(A41,masterlist!$C$2:$C$207,0)),INDEX(masterlist!$N$2:$N$207,MATCH(A41,masterlist!$C$2:$C$207,0))),\"\")","v":""},{"$f":"IFERROR(HYPERLINK(INDEX(masterlist!$Q$2:$Q$207,MATCH(A41,masterlist!$C$2:$C$207,0)),INDEX(masterlist!$P$2:$P$207,MATCH(A41,masterlist!$C$2:$C$207,0))),\"\")","v":""},{"$f":"IFERROR(HYPERLINK(INDEX(masterlist!$S$2:$S$207,MATCH(A41,masterlist!$C$2:$C$207,0)),INDEX(masterlist!$R$2:$R$207,MATCH(A41,masterlist!$C$2:$C$207,0))),\"\")","v":""},{"$f":"IFERROR(HYPERLINK(INDEX(masterlist!$U$2:$U$207,MATCH(A41,masterlist!$C$2:$C$207,0)),INDEX(masterlist!$T$2:$T$207,MATCH(A41,masterlist!$C$2:$C$207,0))),\"\")","v":""}]
[{"$f":"IFERROR(INDEX(masterlist!$A$2:$F$207,SMALL(IF(masterlist!$B$2:$B$207=\"DCA\",ROW(masterlist!$A$2:$F$207)-1),ROW(38:38)),3),\"\")","v":""},{"$f":"IFERROR(INDEX(masterlist!$D$2:$D$207,MATCH(A42,masterlist!$C$2:$C$207,0)),\"\")","v":""},{"$f":"IFERROR(INDEX(masterlist!$E$2:$E$207,MATCH(A42,masterlist!$C$2:$C$207,0)),\"\")","v":""},{"$f":"IFERROR(INDEX(masterlist!$G$2:$G$207,MATCH(A42,masterlist!$C$2:$C$207,0)),\"\")","v":""},{"$f":"IFERROR(INDEX(masterlist!$H$2:$H$207,MATCH(A42,masterlist!$C$2:$C$207,0)),\"\")","v":""},null,null,{"$f":"IFERROR(HYPERLINK(INDEX(masterlist!$M$2:$M$207,MATCH(A42,masterlist!$C$2:$C$207,0)),INDEX(masterlist!$L$2:$L$207,MATCH(A42,masterlist!$C$2:$C$207,0))),\"\")","v":""},{"$f":"IFERROR(HYPERLINK(INDEX(masterlist!$O$2:$O$207,MATCH(A42,masterlist!$C$2:$C$207,0)),INDEX(masterlist!$N$2:$N$207,MATCH(A42,masterlist!$C$2:$C$207,0))),\"\")","v":""},{"$f":"IFERROR(HYPERLINK(INDEX(masterlist!$Q$2:$Q$207,MATCH(A42,masterlist!$C$2:$C$207,0)),INDEX(masterlist!$P$2:$P$207,MATCH(A42,masterlist!$C$2:$C$207,0))),\"\")","v":""},{"$f":"IFERROR(HYPERLINK(INDEX(masterlist!$S$2:$S$207,MATCH(A42,masterlist!$C$2:$C$207,0)),INDEX(masterlist!$R$2:$R$207,MATCH(A42,masterlist!$C$2:$C$207,0))),\"\")","v":""},{"$f":"IFERROR(HYPERLINK(INDEX(masterlist!$U$2:$U$207,MATCH(A42,masterlist!$C$2:$C$207,0)),INDEX(masterlist!$T$2:$T$207,MATCH(A42,masterlist!$C$2:$C$207,0))),\"\")","v":""}]
[{"$f":"IFERROR(INDEX(masterlist!$A$2:$F$207,SMALL(IF(masterlist!$B$2:$B$207=\"DCA\",ROW(masterlist!$A$2:$F$207)-1),ROW(39:39)),3),\"\")","v":""},{"$f":"IFERROR(INDEX(masterlist!$D$2:$D$207,MATCH(A43,masterlist!$C$2:$C$207,0)),\"\")","v":""},{"$f":"IFERROR(INDEX(masterlist!$E$2:$E$207,MATCH(A43,masterlist!$C$2:$C$207,0)),\"\")","v":""},{"$f":"IFERROR(INDEX(masterlist!$G$2:$G$207,MATCH(A43,masterlist!$C$2:$C$207,0)),\"\")","v":""},{"$f":"IFERROR(INDEX(masterlist!$H$2:$H$207,MATCH(A43,masterlist!$C$2:$C$207,0)),\"\")","v":""},null,null,{"$f":"IFERROR(HYPERLINK(INDEX(masterlist!$M$2:$M$207,MATCH(A43,masterlist!$C$2:$C$207,0)),INDEX(masterlist!$L$2:$L$207,MATCH(A43,masterlist!$C$2:$C$207,0))),\"\")","v":""},{"$f":"IFERROR(HYPERLINK(INDEX(masterlist!$O$2:$O$207,MATCH(A43,masterlist!$C$2:$C$207,0)),INDEX(masterlist!$N$2:$N$207,MATCH(A43,masterlist!$C$2:$C$207,0))),\"\")","v":""},{"$f":"IFERROR(HYPERLINK(INDEX(masterlist!$Q$2:$Q$207,MATCH(A43,masterlist!$C$2:$C$207,0)),INDEX(masterlist!$P$2:$P$207,MATCH(A43,masterlist!$C$2:$C$207,0))),\"\")","v":""},{"$f":"IFERROR(HYPERLINK(INDEX(masterlist!$S$2:$S$207,MATCH(A43,masterlist!$C$2:$C$207,0)),INDEX(masterlist!$R$2:$R$207,MATCH(A43,masterlist!$C$2:$C$207,0))),\"\")","v":""},{"$f":"IFERROR(HYPERLINK(INDEX(masterlist!$U$2:$U$207,MATCH(A43,masterlist!$C$2:$C$207,0)),INDEX(masterlist!$T$2:$T$207,MATCH(A43,masterlist!$C$2:$C$207,0))),\"\")","v":""}]
[{"$f":"IFERROR(INDEX(masterlist!$A$2:$F$207,SMALL(IF(masterlist!$B$2:$B$207=\"DCA\",ROW(masterlist!$A$2:$F$207)-1),ROW(40:40)),3),\"\")","v":""},{"$f":"IFERROR(INDEX(masterlist!$D$2:$D$207,MATCH(A44,masterlist!$C$2:$C$207,0)),\"\")","v":""},{"$f":"IFERROR(INDEX(masterlist!$E$2:$E$207,MATCH(A44,masterlist!$C$2:$C$207,0)),\"\")","v":""},{"$f":"IFERROR(INDEX(masterlist!$G$2:$G$207,MATCH(A44,masterlist!$C$2:$C$207,0)),\"\")","v":""},{"$f":"IFERROR(INDEX(masterlist!$H$2:$H$207,MATCH(A44,masterlist!$C$2:$C$207,0)),\"\")","v":""},null,null,{"$f":"IFERROR(HYPERLINK(INDEX(masterlist!$M$2:$M$207,MATCH(A44,masterlist!$C$2:$C$207,0)),INDEX(masterlist!$L$2:$L$207,MATCH(A44,masterlist!$C$2:$C$207,0))),\"\")","v":""},{"$f":"IFERROR(HYPERLINK(INDEX(masterlist!$O$2:$O$207,MATCH(A44,masterlist!$C$2:$C$207,0)),INDEX(masterlist!$N$2:$N$207,MATCH(A44,masterlist!$C$2:$C$207,0))),\"\")","v":""},{"$f":"IFERROR(HYPERLINK(INDEX(masterlist!$Q$2:$Q$207,MATCH(A44,masterlist!$C$2:$C$207,0)),INDEX(masterlist!$P$2:$P$207,MATCH(A44,masterlist!$C$2:$C$207,0))),\"\")","v":""},{"$f":"IFERROR(HYPERLINK(INDEX(masterlist!$S$2:$S$207,MATCH(A44,masterlist!$C$2:$C$207,0)),INDEX(masterlist!$R$2:$R$207,MATCH(A44,masterlist!$C$2:$C$207,0))),\"\")","v":""},{"$f":"IFERROR(HYPERLINK(INDEX(masterlist!$U$2:$U$207,MATCH(A44,masterlist!$C$2:$C$207,0)),INDEX(masterlist!$T$2:$T$207,MATCH(A44,masterlist!$C$2:$C$207,0))),\"\")","v":""}]
[{"$f":"IFERROR(INDEX(masterlist!$A$2:$F$207,SMALL(IF(masterlist!$B$2:$B$207=\"DCA\",ROW(masterlist!$A$2:$F$207)-1),ROW(41:41)),3),\"\")","v":""},{"$f":"IFERROR(INDEX(masterlist!$D$2:$D$207,MATCH(A45,masterlist!$C$2:$C$207,0)),\"\")","v":""},{"$f":"IFERROR(INDEX(masterlist!$E$2:$E$207,MATCH(A45,masterlist!$C$2:$C$207,0)),\"\")","v":""},{"$f":"IFERROR(INDEX(masterlist!$G$2:$G$207,MATCH(A45,masterlist!$C$2:$C$207,0)),\"\")","v":""},{"$f":"IFERROR(INDEX(masterlist!$H$2:$H$207,MATCH(A45,masterlist!$C$2:$C$207,0)),\"\")","v":""},null,null,{"$f":"IFERROR(HYPERLINK(INDEX(masterlist!$M$2:$M$207,MATCH(A45,masterlist!$C$2:$C$207,0)),INDEX(masterlist!$L$2:$L$207,MATCH(A45,masterlist!$C$2:$C$207,0))),\"\")","v":""},{"$f":"IFERROR(HYPERLINK(INDEX(masterlist!$O$2:$O$207,MATCH(A45,masterlist!$C$2:$C$207,0)),INDEX(masterlist!$N$2:$N$207,MATCH(A45,masterlist!$C$2:$C$207,0))),\"\")","v":""},{"$f":"IFERROR(HYPERLINK(INDEX(masterlist!$Q$2:$Q$207,MATCH(A45,masterlist!$C$2:$C$207,0)),INDEX(masterlist!$P$2:$P$207,MATCH(A45,masterlist!$C$2:$C$207,0))),\"\")","v":""},{"$f":"IFERROR(HYPERLINK(INDEX(masterlist!$S$2:$S$207,MATCH(A45,masterlist!$C$2:$C$207,0)),INDEX(masterlist!$R$2:$R$207,MATCH(A45,masterlist!$C$2:$C$207,0))),\"\")","v":""},{"$f":"IFERROR(HYPERLINK(INDEX(masterlist!$U$2:$U$207,MATCH(A45,masterlist!$C$2:$C$207,0)),INDEX(masterlist!$T$2:$T$207,MATCH(A45,masterlist!$C$2:$C$207,0))),\"\")","v":""}]
[{"$f":"IFERROR(INDEX(masterlist!$A$2:$F$207,SMALL(IF(masterlist!$B$2:$B$207=\"DCA\",ROW(masterlist!$A$2:$F$207)-1),ROW(42:42)),3),\"\")","v":""},{"$f":"IFERROR(INDEX(masterlist!$D$2:$D$207,MATCH(A46,masterlist!$C$2:$C$207,0)),\"\")","v":""},{"$f":"IFERROR(INDEX(masterlist!$E$2:$E$207,MATCH(A46,masterlist!$C$2:$C$207,0)),\"\")","v":""},{"$f":"IFERROR(INDEX(masterlist!$G$2:$G$207,MATCH(A46,masterlist!$C$2:$C$207,0)),\"\")","v":""},{"$f":"IFERROR(INDEX(masterlist!$H$2:$H$207,MATCH(A46,masterlist!$C$2:$C$207,0)),\"\")","v":""},null,null,{"$f":"IFERROR(HYPERLINK(INDEX(masterlist!$M$2:$M$207,MATCH(A46,masterlist!$C$2:$C$207,0)),INDEX(masterlist!$L$2:$L$207,MATCH(A46,masterlist!$C$2:$C$207,0))),\"\")","v":""},{"$f":"IFERROR(HYPERLINK(INDEX(masterlist!$O$2:$O$207,MATCH(A46,masterlist!$C$2:$C$207,0)),INDEX(masterlist!$N$2:$N$207,MATCH(A46,masterlist!$C$2:$C$207,0))),\"\")","v":""},{"$f":"IFERROR(HYPERLINK(INDEX(masterlist!$Q$2:$Q$207,MATCH(A46,masterlist!$C$2:$C$207,0)),INDEX(masterlist!$P$2:$P$207,MATCH(A46,masterlist!$C$2:$C$207,0))),\"\")","v":""},{"$f":"IFERROR(HYPERLINK(INDEX(masterlist!$S$2:$S$207,MATCH(A46,masterlist!$C$2:$C$207,0)),INDEX(masterlist!$R$2:$R$207,MATCH(A46,masterlist!$C$2:$C$207,0))),\"\")","v":""},{"$f":"IFERROR(HYPERLINK(INDEX(masterlist!$U$2:$U$207,MATCH(A46,masterlist!$C$2:$C$207,0)),INDEX(masterlist!$T$2:$T$207,MATCH(A46,masterlist!$C$2:$C$207,0))),\"\")","v":""}]
[{"$f":"IFERROR(INDEX(masterlist!$A$2:$F$207,SMALL(IF(masterlist!$B$2:$B$207=\"DCA\",ROW(masterlist!$A$2:$F$207)-1),ROW(43:43)),3),\"\")","v":""},{"$f":"IFERROR(INDEX(masterlist!$D$2:$D$207,MATCH(A47,masterlist!$C$2:$C$207,0)),\"\")","v":""},{"$f":"IFERROR(INDEX(masterlist!$E$2:$E$207,MATCH(A47,masterlist!$C$2:$C$207,0)),\"\")","v":""},{"$f":"IFERROR(INDEX(masterlist!$G$2:$G$207,MATCH(A47,masterlist!$C$2:$C$207,0)),\"\")","v":""},{"$f":"IFERROR(INDEX(masterlist!$H$2:$H$207,MATCH(A47,masterlist!$C$2:$C$207,0)),\"\")","v":""},null,null,{"$f":"IFERROR(HYPERLINK(INDEX(masterlist!$M$2:$M$207,MATCH(A47,masterlist!$C$2:$C$207,0)),INDEX(masterlist!$L$2:$L$207,MATCH(A47,masterlist!$C$2:$C$207,0))),\"\")","v":""},{"$f":"IFERROR(HYPERLINK(INDEX(masterlist!$O$2:$O$207,MATCH(A47,masterlist!$C$2:$C$207,0)),INDEX(masterlist!$N$2:$N$207,MATCH(A47,masterlist!$C$2:$C$207,0))),\"\")","v":""},{"$f":"IFERROR(HYPERLINK(INDEX(masterlist!$Q$2:$Q$207,MATCH(A47,masterlist!$C$2:$C$207,0)),INDEX(masterlist!$P$2:$P$207,MATCH(A47,masterlist!$C$2:$C$207,0))),\"\")","v":""},{"$f":"IFERROR(HYPERLINK(INDEX(masterlist!$S$2:$S$207,MATCH(A47,masterlist!$C$2:$C$207,0)),INDEX(masterlist!$R$2:$R$207,MATCH(A47,masterlist!$C$2:$C$207,0))),\"\")","v":""},{"$f":"IFERROR(HYPERLINK(INDEX(masterlist!$U$2:$U$207,MATCH(A47,masterlist!$C$2:$C$207,0)),INDEX(masterlist!$T$2:$T$207,MATCH(A47,masterlist!$C$2:$C$207,0))),\"\")","v":""}]
[{"$f":"IFERROR(INDEX(masterlist!$A$2:$F$207,SMALL(IF(masterlist!$B$2:$B$207=\"DCA\",ROW(masterlist!$A$2:$F$207)-1),ROW(44:44)),3),\"\")","v":""},{"$f":"IFERROR(INDEX(masterlist!$D$2:$D$207,MATCH(A48,masterlist!$C$2:$C$207,0)),\"\")","v":""},{"$f":"IFERROR(INDEX(masterlist!$E$2:$E$207,MATCH(A48,masterlist!$C$2:$C$207,0)),\"\")","v":""},{"$f":"IFERROR(INDEX(masterlist!$G$2:$G$207,MATCH(A48,masterlist!$C$2:$C$207,0)),\"\")","v":""},{"$f":"IFERROR(INDEX(masterlist!$H$2:$H$207,MATCH(A48,masterlist!$C$2:$C$207,0)),\"\")","v":""},null,null,{"$f":"IFERROR(HYPERLINK(INDEX(masterlist!$M$2:$M$207,MATCH(A48,masterlist!$C$2:$C$207,0)),INDEX(masterlist!$L$2:$L$207,MATCH(A48,masterlist!$C$2:$C$207,0))),\"\")","v":""},{"$f":"IFERROR(HYPERLINK(INDEX(masterlist!$O$2:$O$207,MATCH(A48,masterlist!$C$2:$C$207,0)),INDEX(masterlist!$N$2:$N$207,MATCH(A48,masterlist!$C$2:$C$207,0))),\"\")","v":""},{"$f":"IFERROR(HYPERLINK(INDEX(masterlist!$Q$2:$Q$207,MATCH(A48,masterlist!$C$2:$C$207,0)),INDEX(masterlist!$P$2:$P$207,MATCH(A48,masterlist!$C$2:$C$207,0))),\"\")","v":""},{"$f":"IFERROR(HYPERLINK(INDEX(masterlist!$S$2:$S$207,MATCH(A48,masterlist!$C$2:$C$207,0)),INDEX(masterlist!$R$2:$R$207,MATCH(A48,masterlist!$C$2:$C$207,0))),\"\")","v":""},{"$f":"IFERROR(HYPERLINK(INDEX(masterlist!$U$2:$U$207,MATCH(A48,masterlist!$C$2:$C$207,0)),INDEX(masterlist!$T$2:$T$207,MATCH(A48,masterlist!$C$2:$C$207,0))),\"\")","v":""}]
[{"$f":"IFERROR(INDEX(masterlist!$A$2:$F$207,SMALL(IF(masterlist!$B$2:$B$207=\"DCA\",ROW(masterlist!$A$2:$F$207)-1),ROW(45:45)),3),\"\")","v":""},{"$f":"IFERROR(INDEX(masterlist!$D$2:$D$207,MATCH(A49,masterlist!$C$2:$C$207,0)),\"\")","v":""},{"$f":"IFERROR(INDEX(masterlist!$E$2:$E$207,MATCH(A49,masterlist!$C$2:$C$207,0)),\"\")","v":""},{"$f":"IFERROR(INDEX(masterlist!$G$2:$G$207,MATCH(A49,masterlist!$C$2:$C$207,0)),\"\")","v":""},{"$f":"IFERROR(INDEX(masterlist!$H$2:$H$207,MATCH(A49,masterlist!$C$2:$C$207,0)),\"\")","v":""},null,null,{"$f":"IFERROR(HYPERLINK(INDEX(masterlist!$M$2:$M$207,MATCH(A49,masterlist!$C$2:$C$207,0)),INDEX(masterlist!$L$2:$L$207,MATCH(A49,masterlist!$C$2:$C$207,0))),\"\")","v":""},{"$f":"IFERROR(HYPERLINK(INDEX(masterlist!$O$2:$O$207,MATCH(A49,masterlist!$C$2:$C$207,0)),INDEX(masterlist!$N$2:$N$207,MATCH(A49,masterlist!$C$2:$C$207,0))),\"\")","v":""},{"$f":"IFERROR(HYPERLINK(INDEX(masterlist!$Q$2:$Q$207,MATCH(A49,masterlist!$C$2:$C$207,0)),INDEX(masterlist!$P$2:$P$207,MATCH(A49,masterlist!$C$2:$C$207,0))),\"\")","v":""},{"$f":"IFERROR(HYPERLINK(INDEX(masterlist!$S$2:$S$207,MATCH(A49,masterlist!$C$2:$C$207,0)),INDEX(masterlist!$R$2:$R$207,MATCH(A49,masterlist!$C$2:$C$207,0))),\"\")","v":""},{"$f":"IFERROR(HYPERLINK(INDEX(masterlist!$U$2:$U$207,MATCH(A49,masterlist!$C$2:$C$207,0)),INDEX(masterlist!$T$2:$T$207,MATCH(A49,masterlist!$C$2:$C$207,0))),\"\")","v":""}]
[{"$f":"IFERROR(INDEX(masterlist!$A$2:$F$207,SMALL(IF(masterlist!$B$2:$B$207=\"DCA\",ROW(masterlist!$A$2:$F$207)-1),ROW(46:46)),3),\"\")","v":""},{"$f":"IFERROR(INDEX(masterlist!$D$2:$D$207,MATCH(A50,masterlist!$C$2:$C$207,0)),\"\")","v":""},{"$f":"IFERROR(INDEX(masterlist!$E$2:$E$207,MATCH(A50,masterlist!$C$2:$C$207,0)),\"\")","v":""},{"$f":"IFERROR(INDEX(masterlist!$G$2:$G$207,MATCH(A50,masterlist!$C$2:$C$207,0)),\"\")","v":""},{"$f":"IFERROR(INDEX(masterlist!$H$2:$H$207,MATCH(A50,masterlist!$C$2:$C$207,0)),\"\")","v":""},null,null,{"$f":"IFERROR(HYPERLINK(INDEX(masterlist!$M$2:$M$207,MATCH(A50,masterlist!$C$2:$C$207,0)),INDEX(masterlist!$L$2:$L$207,MATCH(A50,masterlist!$C$2:$C$207,0))),\"\")","v":""},{"$f":"IFERROR(HYPERLINK(INDEX(masterlist!$O$2:$O$207,MATCH(A50,masterlist!$C$2:$C$207,0)),INDEX(masterlist!$N$2:$N$207,MATCH(A50,masterlist!$C$2:$C$207,0))),\"\")","v":""},{"$f":"IFERROR(HYPERLINK(INDEX(masterlist!$Q$2:$Q$207,MATCH(A50,masterlist!$C$2:$C$207,0)),INDEX(masterlist!$P$2:$P$207,MATCH(A50,masterlist!$C$2:$C$207,0))),\"\")","v":""},{"$f":"IFERROR(HYPERLINK(INDEX(masterlist!$S$2:$S$207,MATCH(A50,masterlist!$C$2:$C$207,0)),INDEX(masterlist!$R$2:$R$207,MATCH(A50,masterlist!$C$2:$C$207,0))),\"\")","v":""},{"$f":"IFERROR(HYPERLINK(INDEX(masterlist!$U$2:$U$207,MATCH(A50,masterlist!$C$2:$C$207,0)),INDEX(masterlist!$T$2:$T$207,MATCH(A50,masterlist!$C$2:$C$207,0))),\"\")","v":""}]

{"sheet":"Prev & Ctrl","index":7,"n_rows":50,"n_cols":12,"rows_kept":50,"cut":false,"hidden":true,"merged":[[3,7,3,9]]}
[]
[null,null,"Instructions : Si l'activité est terminée, inscrivez « 1 » dans la colonne « Statut ». Si l'activité n'a PAS été achevée ou si vous n'êtes pas sûr qu'elle l'ait été, inscrivez « 0 » dans la colonne « Statut »."]
[]
["ID","SOUS-COMPOSANTE","STADE","ACTIVITES","GUIDE DE REPONSE A LA QUESTION","STATUT","REMARQUES","Rabies Blueprint references and other links"]
[{"$f":"IFERROR(INDEX(masterlist!$A$2:$F$207,SMALL(IF(masterlist!$B$2:$B$207=\"PCO\",ROW(masterlist!$A$2:$F$207)-1),ROW(1:1)),3),\"\")","v":"PCO-Vac-1-1"},{"$f":"IFERROR(INDEX(masterlist!$D$2:$D$207,MATCH(A5,masterlist!$C$2:$C$207,0)),\"\")","v":"Vaccins humains"},{"$f":"IFERROR(INDEX(masterlist!$E$2:$E$207,MATCH(A5,masterlist!$C$2:$C$207,0)),\"\")","v":1},{"$f":"IFERROR(INDEX(masterlist!$G$2:$G$207,MATCH(A5,masterlist!$C$2:$C$207,0)),\"\")","v":"Des vaccins pour la prophylaxie de la rage humaine sont-ils disponibles dans le pays ?"},{"$f":"IFERROR(INDEX(masterlist!$H$2:$H$207,MATCH(A5,masterlist!$C$2:$C$207,0)),\"\")","v":"Vous pouvez répondre “Oui” s’il y a des vaccins antirabiques humains dans le pays, quel que soient le nombre de doses ou leur distribution."},1,null,{"$f":"IFERROR(HYPERLINK(INDEX(masterlist!$M$2:$M$207,MATCH(A5,masterlist!$C$2:$C$207,0)),INDEX(masterlist!$L$2:$L$207,MATCH(A5,masterlist!$C$2:$C$207,0))),\"\")","v":"5.5.3-human-biologics"},{"$f":"IFERROR(HYPERLINK(INDEX(masterlist!$O$2:$O$207,MATCH(A5,masterlist!$C$2:$C$207,0)),INDEX(masterlist!$N$2:$N$207,MATCH(A5,masterlist!$C$2:$C$207,0))),\"\")","v":"Human-vaccination-supply"},{"$f":"IFERROR(HYPERLINK(INDEX(masterlist!$Q$2:$Q$207,MATCH(A5,masterlist!$C$2:$C$207,0)),INDEX(masterlist!$P$2:$P$207,MATCH(A5,masterlist!$C$2:$C$207,0))),\"\")","v":0},{"$f":"IFERROR(HYPERLINK(INDEX(masterlist!$S$2:$S$207,MATCH(A5,masterlist!$C$2:$C$207,0)),INDEX(masterlist!$R$2:$R$207,MATCH(A5,masterlist!$C$2:$C$207,0))),\"\")","v":0},{"$f":"IFERROR(HYPERLINK(INDEX(masterlist!$U$2:$U$207,MATCH(A5,masterlist!$C$2:$C$207,0)),INDEX(masterlist!$T$2:$T$207,MATCH(A5,masterlist!$C$2:$C$207,0))),\"\")","v":0}]
[{"$f":"IFERROR(INDEX(masterlist!$A$2:$F$207,SMALL(IF(masterlist!$B$2:$B$207=\"PCO\",ROW(masterlist!$A$2:$F$207)-1),ROW(2:2)),3),\"\")","v":"PCO-Vac-1-2"},{"$f":"IFERROR(INDEX(masterlist!$D$2:$D$207,MATCH(A6,masterlist!$C$2:$C$207,0)),\"\")","v":"Vaccins humains"},{"$f":"IFERROR(INDEX(masterlist!$E$2:$E$207,MATCH(A6,masterlist!$C$2:$C$207,0)),\"\")","v":1},{"$f":"IFERROR(INDEX(masterlist!$G$2:$G$207,MATCH(A6,masterlist!$C$2:$C$207,0)),\"\")","v":"Est-il possible d'offrir la Prophylaxie préexposition  aux professionnels à risque dans au moins un site de projet pilote ?"},{"$f":"IFERROR(INDEX(masterlist!$H$2:$H$207,MATCH(A6,masterlist!$C$2:$C$207,0)),\"\")","v":"Un professionnel à risque travaillant sur un projet pilote peut-il avoir accès à une prophylaxie antirabique ? Cela ne signifie pas que la PrPE doit être accessible dans tout le pays, mais elle doit être disponible au moins sur un des sites du projet."},1,null,{"$f":"IFERROR(HYPERLINK(INDEX(masterlist!$M$2:$M$207,MATCH(A6,masterlist!$C$2:$C$207,0)),INDEX(masterlist!$L$2:$L$207,MATCH(A6,masterlist!$C$2:$C$207,0))),\"\")","v":0},{"$f":"IFERROR(HYPERLINK(INDEX(masterlist!$O$2:$O$207,MATCH(A6,masterlist!$C$2:$C$207,0)),INDEX(masterlist!$N$2:$N$207,MATCH(A6,masterlist!$C$2:$C$207,0))),\"\")","v":0},{"$f":"IFERROR(HYPERLINK(INDEX(masterlist!$Q$2:$Q$207,MATCH(A6,masterlist!$C$2:$C$207,0)),INDEX(masterlist!$P$2:$P$207,MATCH(A6,masterlist!$C$2:$C$207,0))),\"\")","v":0},{"$f":"IFERROR(HYPERLINK(INDEX(masterlist!$S$2:$S$207,MATCH(A6,masterlist!$C$2:$C$207,0)),INDEX(masterlist!$R$2:$R$207,MATCH(A6,masterlist!$C$2:$C$207,0))),\"\")","v":0},{"$f":"IFERROR(HYPERLINK(INDEX(masterlist!$U$2:$U$207,MATCH(A6,masterlist!$C$2:$C$207,0)),INDEX(masterlist!$T$2:$T$207,MATCH(A6,masterlist!$C$2:$C$207,0))),\"\")","v":0}]
[{"$f":"IFERROR(INDEX(masterlist!$A$2:$F$207,SMALL(IF(masterlist!$B$2:$B$207=\"PCO\",ROW(masterlist!$A$2:$F$207)-1),ROW(3:3)),3),\"\")","v":"PCO-Vac-2-3"},{"$f":"IFERROR(INDEX(masterlist!$D$2:$D$207,MATCH(A7,masterlist!$C$2:$C$207,0)),\"\")","v":"Vaccins humains"},{"$f":"IFERROR(INDEX(masterlist!$E$2:$E$207,MATCH(A7,masterlist!$C$2:$C$207,0)),\"\")","v":2},{"$f":"IFERROR(INDEX(masterlist!$G$2:$G$207,MATCH(A7,masterlist!$C$2:$C$207,0)),\"\")","v":"Avez-vous procédé à des évaluations ou à des enquêtes pour déterminer comment les vaccins contre la rage humaine devraient être distribués dans le pays ?"},{"$f":"IFERROR(INDEX(masterlist!$H$2:$H$207,MATCH(A7,masterlist!$C$2:$C$207,0)),\"\")","v":"Vous devez répondre “Oui” si une évaluation a été réalisée en ce qui concerne la prophylaxie post-exposition et pré-exposition.  Il ne s'agit pas nécessairement d'une évaluation formelle, mais de décisions fondées sur des données. Par exemple, la distribution de vaccins sur la base du nombre de cas de morsures par chaque établissement de santé au cours de l'année précédente."},1,null,{"$f":"IFERROR(HYPERLINK(INDEX(masterlist!$M$2:$M$207,MATCH(A7,masterlist!$C$2:$C$207,0)),INDEX(masterlist!$L$2:$L$207,MATCH(A7,masterlist!$C$2:$C$207,0))),\"\")","v":"3.1-Infrastructure"},{"$f":"IFERROR(HYPERLINK(INDEX(masterlist!$O$2:$O$207,MATCH(A7,masterlist!$C$2:$C$207,0)),INDEX(masterlist!$N$2:$N$207,MATCH(A7,masterlist!$C$2:$C$207,0))),\"\")","v":0},{"$f":"IFERROR(HYPERLINK(INDEX(masterlist!$Q$2:$Q$207,MATCH(A7,masterlist!$C$2:$C$207,0)),INDEX(masterlist!$P$2:$P$207,MATCH(A7,masterlist!$C$2:$C$207,0))),\"\")","v":0},{"$f":"IFERROR(HYPERLINK(INDEX(masterlist!$S$2:$S$207,MATCH(A7,masterlist!$C$2:$C$207,0)),INDEX(masterlist!$R$2:$R$207,MATCH(A7,masterlist!$C$2:$C$207,0))),\"\")","v":0},{"$f":"IFERROR(HYPERLINK(INDEX(masterlist!$U$2:$U$207,MATCH(A7,masterlist!$C$2:$C$207,0)),INDEX(masterlist!$T$2:$T$207,MATCH(A7,masterlist!$C$2:$C$207,0))),\"\")","v":0}]
[{"$f":"IFERROR(INDEX(masterlist!$A$2:$F$207,SMALL(IF(masterlist!$B$2:$B$207=\"PCO\",ROW(masterlist!$A$2:$F$207)-1),ROW(4:4)),3),\"\")","v":"PCO-Vac-2-4"},{"$f":"IFERROR(INDEX(masterlist!$D$2:$D$207,MATCH(A8,masterlist!$C$2:$C$207,0)),\"\")","v":"Vaccins humains"},{"$f":"IFERROR(INDEX(masterlist!$E$2:$E$207,MATCH(A8,masterlist!$C$2:$C$207,0)),\"\")","v":2},{"$f":"IFERROR(INDEX(masterlist!$G$2:$G$207,MATCH(A8,masterlist!$C$2:$C$207,0)),\"\")","v":"Les vaccins antirabiques humains préqualifiés par l'OMS (c'est-à-dire de haute qualité) sont-ils disponibles et accessibles dans la plupart des régions du pays ?"},{"$f":"IFERROR(INDEX(masterlist!$H$2:$H$207,MATCH(A8,masterlist!$C$2:$C$207,0)),\"\")","v":" "},1,null,{"$f":"IFERROR(HYPERLINK(INDEX(masterlist!$M$2:$M$207,MATCH(A8,masterlist!$C$2:$C$207,0)),INDEX(masterlist!$L$2:$L$207,MATCH(A8,masterlist!$C$2:$C$207,0))),\"\")","v":"WHO expert consultation on rabies"},{"$f":"IFERROR(HYPERLINK(INDEX(masterlist!$O$2:$O$207,MATCH(A8,masterlist!$C$2:$C$207,0)),INDEX(masterlist!$N$2:$N$207,MATCH(A8,masterlist!$C$2:$C$207,0))),\"\")","v":"WHO vaccines position papers"},{"$f":"IFERROR(HYPERLINK(INDEX(masterlist!$Q$2:$Q$207,MATCH(A8,masterlist!$C$2:$C$207,0)),INDEX(masterlist!$P$2:$P$207,MATCH(A8,masterlist!$C$2:$C$207,0))),\"\")","v":0},{"$f":"IFERROR(HYPERLINK(INDEX(masterlist!$S$2:$S$207,MATCH(A8,masterlist!$C$2:$C$207,0)),INDEX(masterlist!$R$2:$R$207,MATCH(A8,masterlist!$C$2:$C$207,0))),\"\")","v":0},{"$f":"IFERROR(HYPERLINK(INDEX(masterlist!$U$2:$U$207,MATCH(A8,masterlist!$C$2:$C$207,0)),INDEX(masterlist!$T$2:$T$207,MATCH(A8,masterlist!$C$2:$C$207,0))),\"\")","v":0}]
[{"$f":"IFERROR(INDEX(masterlist!$A$2:$F$207,SMALL(IF(masterlist!$B$2:$B$207=\"PCO\",ROW(masterlist!$A$2:$F$207)-1),ROW(5:5)),3),\"\")","v":"PCO-Vac-2-5"},{"$f":"IFERROR(INDEX(masterlist!$D$2:$D$207,MATCH(A9,masterlist!$C$2:$C$207,0)),\"\")","v":"Vaccins humains"},{"$f":"IFERROR(INDEX(masterlist!$E$2:$E$207,MATCH(A9,masterlist!$C$2:$C$207,0)),\"\")","v":2},{"$f":"IFERROR(INDEX(masterlist!$G$2:$G$207,MATCH(A9,masterlist!$C$2:$C$207,0)),\"\")","v":"La prophylaxie post-exposition est-elle gratuite (ou au moins partiellement subventionnée) pour tout individu potentiellement exposé dans le pays ?"},{"$f":"IFERROR(INDEX(masterlist!$H$2:$H$207,MATCH(A9,masterlist!$C$2:$C$207,0)),\"\")","v":" "},0,null,{"$f":"IFERROR(HYPERLINK(INDEX(masterlist!$M$2:$M$207,MATCH(A9,masterlist!$C$2:$C$207,0)),INDEX(masterlist!$L$2:$L$207,MATCH(A9,masterlist!$C$2:$C$207,0))),\"\")","v":0},{"$f":"IFERROR(HYPERLINK(INDEX(masterlist!$O$2:$O$207,MATCH(A9,masterlist!$C$2:$C$207,0)),INDEX(masterlist!$N$2:$N$207,MATCH(A9,masterlist!$C$2:$C$207,0))),\"\")","v":0},{"$f":"IFERROR(HYPERLINK(INDEX(masterlist!$Q$2:$Q$207,MATCH(A9,masterlist!$C$2:$C$207,0)),INDEX(masterlist!$P$2:$P$207,MATCH(A9,masterlist!$C$2:$C$207,0))),\"\")","v":0},{"$f":"IFERROR(HYPERLINK(INDEX(masterlist!$S$2:$S$207,MATCH(A9,masterlist!$C$2:$C$207,0)),INDEX(masterlist!$R$2:$R$207,MATCH(A9,masterlist!$C$2:$C$207,0))),\"\")","v":0},{"$f":"IFERROR(HYPERLINK(INDEX(masterlist!$U$2:$U$207,MATCH(A9,masterlist!$C$2:$C$207,0)),INDEX(masterlist!$T$2:$T$207,MATCH(A9,masterlist!$C$2:$C$207,0))),\"\")","v":0}]
[{"$f":"IFERROR(INDEX(masterlist!$A$2:$F$207,SMALL(IF(masterlist!$B$2:$B$207=\"PCO\",ROW(masterlist!$A$2:$F$207)-1),ROW(6:6)),3),\"\")","v":"PCO-Vac-2-6"},{"$f":"IFERROR(INDEX(masterlist!$D$2:$D$207,MATCH(A10,masterlist!$C$2:$C$207,0)),\"\")","v":"Vaccins humains"},{"$f":"IFERROR(INDEX(masterlist!$E$2:$E$207,MATCH(A10,masterlist!$C$2:$C$207,0)),\"\")","v":2},{"$f":"IFERROR(INDEX(masterlist!$G$2:$G$207,MATCH(A10,masterlist!$C$2:$C$207,0)),\"\")","v":"Le gouvernement n’utilise-t-il que des vaccins antirabiques humains préqualifiés par l’OMS dans le pays ? "},{"$f":"IFERROR(INDEX(masterlist!$H$2:$H$207,MATCH(A10,masterlist!$C$2:$C$207,0)),\"\")","v":"Vous pouvez répondre “Oui” si les produits biologiques à usage humain qui ne sont pas préqualifiés par l’OMS (par exemple vaccins à base de tissue nerveux, vaccins de qualité médiocre) sont en voie d’élimination."},0,null,{"$f":"IFERROR(HYPERLINK(INDEX(masterlist!$M$2:$M$207,MATCH(A10,masterlist!$C$2:$C$207,0)),INDEX(masterlist!$L$2:$L$207,MATCH(A10,masterlist!$C$2:$C$207,0))),\"\")","v":"WHO prequalified vaccines list"},{"$f":"IFERROR(HYPERLINK(INDEX(masterlist!$O$2:$O$207,MATCH(A10,masterlist!$C$2:$C$207,0)),INDEX(masterlist!$N$2:$N$207,MATCH(A10,masterlist!$C$2:$C$207,0))),\"\")","v":0},{"$f":"IFERROR(HYPERLINK(INDEX(masterlist!$Q$2:$Q$207,MATCH(A10,masterlist!$C$2:$C$207,0)),INDEX(masterlist!$P$2:$P$207,MATCH(A10,masterlist!$C$2:$C$207,0))),\"\")","v":0},{"$f":"IFERROR(HYPERLINK(INDEX(masterlist!$S$2:$S$207,MATCH(A10,masterlist!$C$2:$C$207,0)),INDEX(masterlist!$R$2:$R$207,MATCH(A10,masterlist!$C$2:$C$207,0))),\"\")","v":0},{"$f":"IFERROR(HYPERLINK(INDEX(masterlist!$U$2:$U$207,MATCH(A10,masterlist!$C$2:$C$207,0)),INDEX(masterlist!$T$2:$T$207,MATCH(A10,masterlist!$C$2:$C$207,0))),\"\")","v":0}]
[{"$f":"IFERROR(INDEX(masterlist!$A$2:$F$207,SMALL(IF(masterlist!$B$2:$B$207=\"PCO\",ROW(masterlist!$A$2:$F$207)-1),ROW(7:7)),3),\"\")","v":"PCO-Vac-3-7"},{"$f":"IFERROR(INDEX(masterlist!$D$2:$D$207,MATCH(A11,masterlist!$C$2:$C$207,0)),\"\")","v":"Vaccins humains"},{"$f":"IFERROR(INDEX(masterlist!$E$2:$E$207,MATCH(A11,masterlist!$C$2:$C$207,0)),\"\")","v":3},{"$f":"IFERROR(INDEX(masterlist!$G$2:$G$207,MATCH(A11,masterlist!$C$2:$C$207,0)),\"\")","v":"Les vaccins préqualifiés par l’OMS ET les Immunoglobulines humaines antirabiques (RIG) sont-ils tous deux disponibles et accessibles aux personnes à haut risque et exposées dans l'ensemble du pays ?"},{"$f":"IFERROR(INDEX(masterlist!$H$2:$H$207,MATCH(A11,masterlist!$C$2:$C$207,0)),\"\")","v":"Vous pouvez répondre “Oui” si les vaccins ET les RIG sont tous deux faciles à obtenir n’importe où dans le pays. "},1,null,{"$f":"IFERROR(HYPERLINK(INDEX(masterlist!$M$2:$M$207,MATCH(A11,masterlist!$C$2:$C$207,0)),INDEX(masterlist!$L$2:$L$207,MATCH(A11,masterlist!$C$2:$C$207,0))),\"\")","v":"WHO prequalified vaccines list"},{"$f":"IFERROR(HYPERLINK(INDEX(masterlist!$O$2:$O$207,MATCH(A11,masterlist!$C$2:$C$207,0)),INDEX(masterlist!$N$2:$N$207,MATCH(A11,masterlist!$C$2:$C$207,0))),\"\")","v":0},{"$f":"IFERROR(HYPERLINK(INDEX(masterlist!$Q$2:$Q$207,MATCH(A11,masterlist!$C$2:$C$207,0)),INDEX(masterlist!$P$2:$P$207,MATCH(A11,masterlist!$C$2:$C$207,0))),\"\")","v":0},{"$f":"IFERROR(HYPERLINK(INDEX(masterlist!$S$2:$S$207,MATCH(A11,masterlist!$C$2:$C$207,0)),INDEX(masterlist!$R$2:$R$207,MATCH(A11,masterlist!$C$2:$C$207,0))),\"\")","v":0},{"$f":"IFERROR(HYPERLINK(INDEX(masterlist!$U$2:$U$207,MATCH(A11,masterlist!$C$2:$C$207,0)),INDEX(masterlist!$T$2:$T$207,MATCH(A11,masterlist!$C$2:$C$207,0))),\"\")","v":0}]
[{"$f":"IFERROR(INDEX(masterlist!$A$2:$F$207,SMALL(IF(masterlist!$B$2:$B$207=\"PCO\",ROW(masterlist!$A$2:$F$207)-1),ROW(8:8)),3),\"\")","v":"PCO-Vac-5-8"},{"$f":"IFERROR(INDEX(masterlist!$D$2:$D$207,MATCH(A12,masterlist!$C$2:$C$207,0)),\"\")","v":"Vaccins humains"},{"$f":"IFERROR(INDEX(masterlist!$E$2:$E$207,MATCH(A12,masterlist!$C$2:$C$207,0)),\"\")","v":5},{"$f":"IFERROR(INDEX(masterlist!$G$2:$G$207,MATCH(A12,masterlist!$C$2:$C$207,0)),\"\")","v":"Maintenant qu’il n’y a plus de rage humaine ni animale dans votre pays, des protocoles modifiés pour l’administration de la PPE dans les zones exemptes de rage ont-ils été mis en œuvre ?"},{"$f":"IFERROR(INDEX(masterlist!$H$2:$H$207,MATCH(A12,masterlist!$C$2:$C$207,0)),\"\")","v":"La modification des protocoles comprend une meilleure évaluation du risque avant l’administration de la PPE, puisque le pays est désormais exempt de d’endémie rabique."},0,null,{"$f":"IFERROR(HYPERLINK(INDEX(masterlist!$M$2:$M$207,MATCH(A12,masterlist!$C$2:$C$207,0)),INDEX(masterlist!$L$2:$L$207,MATCH(A12,masterlist!$C$2:$C$207,0))),\"\")","v":"WHO expert consultation on rabies"},{"$f":"IFERROR(HYPERLINK(INDEX(masterlist!$O$2:$O$207,MATCH(A12,masterlist!$C$2:$C$207,0)),INDEX(masterlist!$N$2:$N$207,MATCH(A12,masterlist!$C$2:$C$207,0))),\"\")","v":0},{"$f":"IFERROR(HYPERLINK(INDEX(masterlist!$Q$2:$Q$207,MATCH(A12,masterlist!$C$2:$C$207,0)),INDEX(masterlist!$P$2:$P$207,MATCH(A12,masterlist!$C$2:$C$207,0))),\"\")","v":"Guidelines on human prophylaxis"},{"$f":"IFERROR(HYPERLINK(INDEX(masterlist!$S$2:$S$207,MATCH(A12,masterlist!$C$2:$C$207,0)),INDEX(masterlist!$R$2:$R$207,MATCH(A12,masterlist!$C$2:$C$207,0))),\"\")","v":0},{"$f":"IFERROR(HYPERLINK(INDEX(masterlist!$U$2:$U$207,MATCH(A12,masterlist!$C$2:$C$207,0)),INDEX(masterlist!$T$2:$T$207,MATCH(A12,masterlist!$C$2:$C$207,0))),\"\")","v":0}]
[{"$f":"IFERROR(INDEX(masterlist!$A$2:$F$207,SMALL(IF(masterlist!$B$2:$B$207=\"PCO\",ROW(masterlist!$A$2:$F$207)-1),ROW(9:9)),3),\"\")","v":"PCO-Vac-1-9"},{"$f":"IFERROR(INDEX(masterlist!$D$2:$D$207,MATCH(A13,masterlist!$C$2:$C$207,0)),\"\")","v":"Vaccins canins"},{"$f":"IFERROR(INDEX(masterlist!$E$2:$E$207,MATCH(A13,masterlist!$C$2:$C$207,0)),\"\")","v":1},{"$f":"IFERROR(INDEX(masterlist!$G$2:$G$207,MATCH(A13,masterlist!$C$2:$C$207,0)),\"\")","v":"Les vaccins contre la rage canine sont-ils disponibles dans l’ensemble du pays ?"},{"$f":"IFERROR(INDEX(masterlist!$H$2:$H$207,MATCH(A13,masterlist!$C$2:$C$207,0)),\"\")","v":"Vous pouvez répondre “Oui” s’il y a des vaccins antirabiques pour animaux dans le pays, quels que soient le nombre de doses ou leur distribution."},1,null,{"$f":"IFERROR(HYPERLINK(INDEX(masterlist!$M$2:$M$207,MATCH(A13,masterlist!$C$2:$C$207,0)),INDEX(masterlist!$L$2:$L$207,MATCH(A13,masterlist!$C$2:$C$207,0))),\"\")","v":"3.1-Infrastructure"},{"$f":"IFERROR(HYPERLINK(INDEX(masterlist!$O$2:$O$207,MATCH(A13,masterlist!$C$2:$C$207,0)),INDEX(masterlist!$N$2:$N$207,MATCH(A13,masterlist!$C$2:$C$207,0))),\"\")","v":0},{"$f":"IFERROR(HYPERLINK(INDEX(masterlist!$Q$2:$Q$207,MATCH(A13,masterlist!$C$2:$C$207,0)),INDEX(masterlist!$P$2:$P$207,MATCH(A13,masterlist!$C$2:$C$207,0))),\"\")","v":0},{"$f":"IFERROR(HYPERLINK(INDEX(masterlist!$S$2:$S$207,MATCH(A13,masterlist!$C$2:$C$207,0)),INDEX(masterlist!$R$2:$R$207,MATCH(A13,masterlist!$C$2:$C$207,0))),\"\")","v":0},{"$f":"IFERROR(HYPERLINK(INDEX(masterlist!$U$2:$U$207,MATCH(A13,masterlist!$C$2:$C$207,0)),INDEX(masterlist!$T$2:$T$207,MATCH(A13,masterlist!$C$2:$C$207,0))),\"\")","v":0}]
[{"$f":"IFERROR(INDEX(masterlist!$A$2:$F$207,SMALL(IF(masterlist!$B$2:$B$207=\"PCO\",ROW(masterlist!$A$2:$F$207)-1),ROW(10:10)),3),\"\")","v":"PCO-Vac-1-10"},{"$f":"IFERROR(INDEX(masterlist!$D$2:$D$207,MATCH(A14,masterlist!$C$2:$C$207,0)),\"\")","v":"Vaccins canins"},{"$f":"IFERROR(INDEX(masterlist!$E$2:$E$207,MATCH(A14,masterlist!$C$2:$C$207,0)),\"\")","v":1},{"$f":"IFERROR(INDEX(masterlist!$G$2:$G$207,MATCH(A14,masterlist!$C$2:$C$207,0)),\"\")","v":"La vaccination des chiens a-t-elle été débutée quelque part dans le pays ?"},{"$f":"IFERROR(INDEX(masterlist!$H$2:$H$207,MATCH(A14,masterlist!$C$2:$C$207,0)),\"\")","v":"Vous pouvez répondre “Oui” s’il y a des campagnes de vaccination, même si elles sont petites ou localisées."},1,null,{"$f":"IFERROR(HYPERLINK(INDEX(masterlist!$M$2:$M$207,MATCH(A14,masterlist!$C$2:$C$207,0)),INDEX(masterlist!$L$2:$L$207,MATCH(A14,masterlist!$C$2:$C$207,0))),\"\")","v":"5.4-What-are-we-going-to-do-dog-component"},{"$f":"IFERROR(HYPERLINK(INDEX(masterlist!$O$2:$O$207,MATCH(A14,masterlist!$C$2:$C$207,0)),INDEX(masterlist!$N$2:$N$207,MATCH(A14,masterlist!$C$2:$C$207,0))),\"\")","v":0},{"$f":"IFERROR(HYPERLINK(INDEX(masterlist!$Q$2:$Q$207,MATCH(A14,masterlist!$C$2:$C$207,0)),INDEX(masterlist!$P$2:$P$207,MATCH(A14,masterlist!$C$2:$C$207,0))),\"\")","v":0},{"$f":"IFERROR(HYPERLINK(INDEX(masterlist!$S$2:$S$207,MATCH(A14,masterlist!$C$2:$C$207,0)),INDEX(masterlist!$R$2:$R$207,MATCH(A14,masterlist!$C$2:$C$207,0))),\"\")","v":0},{"$f":"IFERROR(HYPERLINK(INDEX(masterlist!$U$2:$U$207,MATCH(A14,masterlist!$C$2:$C$207,0)),INDEX(masterlist!$T$2:$T$207,MATCH(A14,masterlist!$C$2:$C$207,0))),\"\")","v":0}]
[{"$f":"IFERROR(INDEX(masterlist!$A$2:$F$207,SMALL(IF(masterlist!$B$2:$B$207=\"PCO\",ROW(masterlist!$A$2:$F$207)-1),ROW(11:11)),3),\"\")","v":"PCO-Vac-2-11"},{"$f":"IFERROR(INDEX(masterlist!$D$2:$D$207,MATCH(A15,masterlist!$C$2:$C$207,0)),\"\")","v":"Vaccins canins"},{"$f":"IFERROR(INDEX(masterlist!$E$2:$E$207,MATCH(A15,masterlist!$C$2:$C$207,0)),\"\")","v":2},{"$f":"IFERROR(INDEX(masterlist!$G$2:$G$207,MATCH(A15,masterlist!$C$2:$C$207,0)),\"\")","v":"Le gouvernement n’utilise-t-il que des vaccins pour les chiens de haute qualité, conformément aux normes de l’OMSA ?"},{"$f":"IFERROR(INDEX(masterlist!$H$2:$H$207,MATCH(A15,masterlist!$C$2:$C$207,0)),\"\")","v":" "},1,null,{"$f":"IFERROR(HYPERLINK(INDEX(masterlist!$M$2:$M$207,MATCH(A15,masterlist!$C$2:$C$207,0)),INDEX(masterlist!$L$2:$L$207,MATCH(A15,masterlist!$C$2:$C$207,0))),\"\")","v":"OIE terrestrial-manual"},{"$f":"IFERROR(HYPERLINK(INDEX(masterlist!$O$2:$O$207,MATCH(A15,masterlist!$C$2:$C$207,0)),INDEX(masterlist!$N$2:$N$207,MATCH(A15,masterlist!$C$2:$C$207,0))),\"\")","v":0},{"$f":"IFERROR(HYPERLINK(INDEX(masterlist!$Q$2:$Q$207,MATCH(A15,masterlist!$C$2:$C$207,0)),INDEX(masterlist!$P$2:$P$207,MATCH(A15,masterlist!$C$2:$C$207,0))),\"\")","v":0},{"$f":"IFERROR(HYPERLINK(INDEX(masterlist!$S$2:$S$207,MATCH(A15,masterlist!$C$2:$C$207,0)),INDEX(masterlist!$R$2:$R$207,MATCH(A15,masterlist!$C$2:$C$207,0))),\"\")","v":0},{"$f":"IFERROR(HYPERLINK(INDEX(masterlist!$U$2:$U$207,MATCH(A15,masterlist!$C$2:$C$207,0)),INDEX(masterlist!$T$2:$T$207,MATCH(A15,masterlist!$C$2:$C$207,0))),\"\")","v":0}]
[{"$f":"IFERROR(INDEX(masterlist!$A$2:$F$207,SMALL(IF(masterlist!$B$2:$B$207=\"PCO\",ROW(masterlist!$A$2:$F$207)-1),ROW(12:12)),3),\"\")","v":"PCO-Vac-2-12"},{"$f":"IFERROR(INDEX(masterlist!$D$2:$D$207,MATCH(A16,masterlist!$C$2:$C$207,0)),\"\")","v":"Vaccins canins"},{"$f":"IFERROR(INDEX(masterlist!$E$2:$E$207,MATCH(A16,masterlist!$C$2:$C$207,0)),\"\")","v":2},{"$f":"IFERROR(INDEX(masterlist!$G$2:$G$207,MATCH(A16,masterlist!$C$2:$C$207,0)),\"\")","v":"Les campagnes gouvernementales de vaccination des chiens gagnent-elles régulièrement en ampleur et en intensité ?"},{"$f":"IFERROR(INDEX(masterlist!$H$2:$H$207,MATCH(A16,masterlist!$C$2:$C$207,0)),\"\")","v":"Vous ne devez répondre “Oui” que si la quantité de vaccins antirabiques achetés augmente régulièrement. Autrement dit, il faut vacciner davantage de chiens (comparativement aux campagnes précédentes) si la rage transmise par les chiens est toujours endémique dans le pays."},0,null,{"$f":"IFERROR(HYPERLINK(INDEX(masterlist!$M$2:$M$207,MATCH(A16,masterlist!$C$2:$C$207,0)),INDEX(masterlist!$L$2:$L$207,MATCH(A16,masterlist!$C$2:$C$207,0))),\"\")","v":0},{"$f":"IFERROR(HYPERLINK(INDEX(masterlist!$O$2:$O$207,MATCH(A16,masterlist!$C$2:$C$207,0)),INDEX(masterlist!$N$2:$N$207,MATCH(A16,masterlist!$C$2:$C$207,0))),\"\")","v":0},{"$f":"IFERROR(HYPERLINK(INDEX(masterlist!$Q$2:$Q$207,MATCH(A16,masterlist!$C$2:$C$207,0)),INDEX(masterlist!$P$2:$P$207,MATCH(A16,masterlist!$C$2:$C$207,0))),\"\")","v":0},{"$f":"IFERROR(HYPERLINK(INDEX(masterlist!$S$2:$S$207,MATCH(A16,masterlist!$C$2:$C$207,0)),INDEX(masterlist!$R$2:$R$207,MATCH(A16,masterlist!$C$2:$C$207,0))),\"\")","v":0},{"$f":"IFERROR(HYPERLINK(INDEX(masterlist!$U$2:$U$207,MATCH(A16,masterlist!$C$2:$C$207,0)),INDEX(masterlist!$T$2:$T$207,MATCH(A16,masterlist!$C$2:$C$207,0))),\"\")","v":0}]
[{"$f":"IFERROR(INDEX(masterlist!$A$2:$F$207,SMALL(IF(masterlist!$B$2:$B$207=\"PCO\",ROW(masterlist!$A$2:$F$207)-1),ROW(13:13)),3),\"\")","v":"PCO-Vac-3-13"},{"$f":"IFERROR(INDEX(masterlist!$D$2:$D$207,MATCH(A17,masterlist!$C$2:$C$207,0)),\"\")","v":"Vaccins canins"},{"$f":"IFERROR(INDEX(masterlist!$E$2:$E$207,MATCH(A17,masterlist!$C$2:$C$207,0)),\"\")","v":3},{"$f":"IFERROR(INDEX(masterlist!$G$2:$G$207,MATCH(A17,masterlist!$C$2:$C$207,0)),\"\")","v":"Le gouvernement a-t-il la capacité (personnel formé, véhicules, aiguilles, seringues, etc…) d’atteindre 70% de couverture vaccinale de tous les chiens à risque chaque année ?  "},{"$f":"IFERROR(INDEX(masterlist!$H$2:$H$207,MATCH(A17,masterlist!$C$2:$C$207,0)),\"\")","v":"Si vous receviez un lot important de vaccin antirabique, seriez-vous en mesure de l'utiliser dans tout le pays avec le personnel et les ressources dont vous disposez ? "},0,null,{"$f":"IFERROR(HYPERLINK(INDEX(masterlist!$M$2:$M$207,MATCH(A17,masterlist!$C$2:$C$207,0)),INDEX(masterlist!$L$2:$L$207,MATCH(A17,masterlist!$C$2:$C$207,0))),\"\")","v":0},{"$f":"IFERROR(HYPERLINK(INDEX(masterlist!$O$2:$O$207,MATCH(A17,masterlist!$C$2:$C$207,0)),INDEX(masterlist!$N$2:$N$207,MATCH(A17,masterlist!$C$2:$C$207,0))),\"\")","v":0},{"$f":"IFERROR(HYPERLINK(INDEX(masterlist!$Q$2:$Q$207,MATCH(A17,masterlist!$C$2:$C$207,0)),INDEX(masterlist!$P$2:$P$207,MATCH(A17,masterlist!$C$2:$C$207,0))),\"\")","v":0},{"$f":"IFERROR(HYPERLINK(INDEX(masterlist!$S$2:$S$207,MATCH(A17,masterlist!$C$2:$C$207,0)),INDEX(masterlist!$R$2:$R$207,MATCH(A17,masterlist!$C$2:$C$207,0))),\"\")","v":0},{"$f":"IFERROR(HYPERLINK(INDEX(masterlist!$U$2:$U$207,MATCH(A17,masterlist!$C$2:$C$207,0)),INDEX(masterlist!$T$2:$T$207,MATCH(A17,masterlist!$C$2:$C$207,0))),\"\")","v":0}]
[{"$f":"IFERROR(INDEX(masterlist!$A$2:$F$207,SMALL(IF(masterlist!$B$2:$B$207=\"PCO\",ROW(masterlist!$A$2:$F$207)-1),ROW(14:14)),3),\"\")","v":"PCO-Vac-3-14"},{"$f":"IFERROR(INDEX(masterlist!$D$2:$D$207,MATCH(A18,masterlist!$C$2:$C$207,0)),\"\")","v":"Vaccins canins"},{"$f":"IFERROR(INDEX(masterlist!$E$2:$E$207,MATCH(A18,masterlist!$C$2:$C$207,0)),\"\")","v":3},{"$f":"IFERROR(INDEX(masterlist!$G$2:$G$207,MATCH(A18,masterlist!$C$2:$C$207,0)),\"\")","v":"Les campagnes de vaccination de masse des chiens atteignent-elles au moins 70% de la population canine à risque dans le pays chaque année ? "},{"$f":"IFERROR(INDEX(masterlist!$H$2:$H$207,MATCH(A18,masterlist!$C$2:$C$207,0)),\"\")","v":"Vous devez atteindre une couverture vaccinale de 70% des chiens, qu’ils aient ou non un propriétaire, et ce chaque année pendant plusieurs années consécutives. "},0,null,{"$f":"IFERROR(HYPERLINK(INDEX(masterlist!$M$2:$M$207,MATCH(A18,masterlist!$C$2:$C$207,0)),INDEX(masterlist!$L$2:$L$207,MATCH(A18,masterlist!$C$2:$C$207,0))),\"\")","v":"5.4.13-Vaccination campaign-coverage"},{"$f":"IFERROR(HYPERLINK(INDEX(masterlist!$O$2:$O$207,MATCH(A18,masterlist!$C$2:$C$207,0)),INDEX(masterlist!$N$2:$N$207,MATCH(A18,masterlist!$C$2:$C$207,0))),\"\")","v":0},{"$f":"IFERROR(HYPERLINK(INDEX(masterlist!$Q$2:$Q$207,MATCH(A18,masterlist!$C$2:$C$207,0)),INDEX(masterlist!$P$2:$P$207,MATCH(A18,masterlist!$C$2:$C$207,0))),\"\")","v":0},{"$f":"IFERROR(HYPERLINK(INDEX(masterlist!$S$2:$S$207,MATCH(A18,masterlist!$C$2:$C$207,0)),INDEX(masterlist!$R$2:$R$207,MATCH(A18,masterlist!$C$2:$C$207,0))),\"\")","v":0},{"$f":"IFERROR(HYPERLINK(INDEX(masterlist!$U$2:$U$207,MATCH(A18,masterlist!$C$2:$C$207,0)),INDEX(masterlist!$T$2:$T$207,MATCH(A18,masterlist!$C$2:$C$207,0))),\"\")","v":0}]
[{"$f":"IFERROR(INDEX(masterlist!$A$2:$F$207,SMALL(IF(masterlist!$B$2:$B$207=\"PCO\",ROW(masterlist!$A$2:$F$207)-1),ROW(15:15)),3),\"\")","v":"PCO-Vac-3-15"},{"$f":"IFERROR(INDEX(masterlist!$D$2:$D$207,MATCH(A19,masterlist!$C$2:$C$207,0)),\"\")","v":"Vaccins canins"},{"$f":"IFERROR(INDEX(masterlist!$E$2:$E$207,MATCH(A19,masterlist!$C$2:$C$207,0)),\"\")","v":3},{"$f":"IFERROR(INDEX(masterlist!$G$2:$G$207,MATCH(A19,masterlist!$C$2:$C$207,0)),\"\")","v":"Des enquêtes* post-vaccinales sont-elles effectuées pour évaluer le taux de couverture vaccinale des chiens ? "},{"$f":"IFERROR(INDEX(masterlist!$H$2:$H$207,MATCH(A19,masterlist!$C$2:$C$207,0)),\"\")","v":"Quelle est la méthode ou quel est l’outil utilisés ?"},0,null,{"$f":"IFERROR(HYPERLINK(INDEX(masterlist!$M$2:$M$207,MATCH(A19,masterlist!$C$2:$C$207,0)),INDEX(masterlist!$L$2:$L$207,MATCH(A19,masterlist!$C$2:$C$207,0))),\"\")","v":"5.6-Evaluation"},{"$f":"IFERROR(HYPERLINK(INDEX(masterlist!$O$2:$O$207,MATCH(A19,masterlist!$C$2:$C$207,0)),INDEX(masterlist!$N$2:$N$207,MATCH(A19,masterlist!$C$2:$C$207,0))),\"\")","v":0},{"$f":"IFERROR(HYPERLINK(INDEX(masterlist!$Q$2:$Q$207,MATCH(A19,masterlist!$C$2:$C$207,0)),INDEX(masterlist!$P$2:$P$207,MATCH(A19,masterlist!$C$2:$C$207,0))),\"\")","v":0},{"$f":"IFERROR(HYPERLINK(INDEX(masterlist!$S$2:$S$207,MATCH(A19,masterlist!$C$2:$C$207,0)),INDEX(masterlist!$R$2:$R$207,MATCH(A19,masterlist!$C$2:$C$207,0))),\"\")","v":0},{"$f":"IFERROR(HYPERLINK(INDEX(masterlist!$U$2:$U$207,MATCH(A19,masterlist!$C$2:$C$207,0)),INDEX(masterlist!$T$2:$T$207,MATCH(A19,masterlist!$C$2:$C$207,0))),\"\")","v":0}]
[{"$f":"IFERROR(INDEX(masterlist!$A$2:$F$207,SMALL(IF(masterlist!$B$2:$B$207=\"PCO\",ROW(masterlist!$A$2:$F$207)-1),ROW(16:16)),3),\"\")","v":"PCO-Vac-4-16"},{"$f":"IFERROR(INDEX(masterlist!$D$2:$D$207,MATCH(A20,masterlist!$C$2:$C$207,0)),\"\")","v":"Vaccins canins"},{"$f":"IFERROR(INDEX(masterlist!$E$2:$E$207,MATCH(A20,masterlist!$C$2:$C$207,0)),\"\")","v":4},{"$f":"IFERROR(INDEX(masterlist!$G$2:$G$207,MATCH(A20,masterlist!$C$2:$C$207,0)),\"\")","v":"Maintenant qu’il n’y a plus que très peu de cas de rage animale dans votre pays, les campagnes de vaccination des chiens se poursuivent-elles dans les zones où la rage canine est encore présente ou là où cela est justifié par ailleurs (par exemple risque d’introduction) ? "},{"$f":"IFERROR(INDEX(masterlist!$H$2:$H$207,MATCH(A20,masterlist!$C$2:$C$207,0)),\"\")","v":"Ne répondez “Oui” que si il y a peu de cas de rage grâce à des campagnes de vaccination canine réussies et à une bonne surveillance."},0,null,{"$f":"IFERROR(HYPERLINK(INDEX(masterlist!$M$2:$M$207,MATCH(A20,masterlist!$C$2:$C$207,0)),INDEX(masterlist!$L$2:$L$207,MATCH(A20,masterlist!$C$2:$C$207,0))),\"\")","v":0},{"$f":"IFERROR(HYPERLINK(INDEX(masterlist!$O$2:$O$207,MATCH(A20,masterlist!$C$2:$C$207,0)),INDEX(masterlist!$N$2:$N$207,MATCH(A20,masterlist!$C$2:$C$207,0))),\"\")","v":0},{"$f":"IFERROR(HYPERLINK(INDEX(masterlist!$Q$2:$Q$207,MATCH(A20,masterlist!$C$2:$C$207,0)),INDEX(masterlist!$P$2:$P$207,MATCH(A20,masterlist!$C$2:$C$207,0))),\"\")","v":0},{"$f":"IFERROR(HYPERLINK(INDEX(masterlist!$S$2:$S$207,MATCH(A20,masterlist!$C$2:$C$207,0)),INDEX(masterlist!$R$2:$R$207,MATCH(A20,masterlist!$C$2:$C$207,0))),\"\")","v":0},{"$f":"IFERROR(HYPERLINK(INDEX(masterlist!$U$2:$U$207,MATCH(A20,masterlist!$C$2:$C$207,0)),INDEX(masterlist!$T$2:$T$207,MATCH(A20,masterlist!$C$2:$C$207,0))),\"\")","v":0}]
[{"$f":"IFERROR(INDEX(masterlist!$A$2:$F$207,SMALL(IF(masterlist!$B$2:$B$207=\"PCO\",ROW(masterlist!$A$2:$F$207)-1),ROW(17:17)),3),\"\")","v":"PCO-Vac-5-17"},{"$f":"IFERROR(INDEX(masterlist!$D$2:$D$207,MATCH(A21,masterlist!$C$2:$C$207,0)),\"\")","v":"Vaccins canins"},{"$f":"IFERROR(INDEX(masterlist!$E$2:$E$207,MATCH(A21,masterlist!$C$2:$C$207,0)),\"\")","v":5},{"$f":"IFERROR(INDEX(masterlist!$G$2:$G$207,MATCH(A21,masterlist!$C$2:$C$207,0)),\"\")","v":"Même s’il n’y a plus de cas de rage grâce aux campagnes de vaccination de masse, les campagnes stratégiques de vaccination de chiens sont-elles maintenues lorsque cela se justifie ? "},{"$f":"IFERROR(INDEX(masterlist!$H$2:$H$207,MATCH(A21,masterlist!$C$2:$C$207,0)),\"\")","v":"Par exemple, les zones frontalières avec des pays d’endémie rabique, les ports d’entrée."},0,null,{"$f":"IFERROR(HYPERLINK(INDEX(masterlist!$M$2:$M$207,MATCH(A21,masterlist!$C$2:$C$207,0)),INDEX(masterlist!$L$2:$L$207,MATCH(A21,masterlist!$C$2:$C$207,0))),\"\")","v":"5.4-What-are-we-going-to-do-dog-component"},{"$f":"IFERROR(HYPERLINK(INDEX(masterlist!$O$2:$O$207,MATCH(A21,masterlist!$C$2:$C$207,0)),INDEX(masterlist!$N$2:$N$207,MATCH(A21,masterlist!$C$2:$C$207,0))),\"\")","v":0},{"$f":"IFERROR(HYPERLINK(INDEX(masterlist!$Q$2:$Q$207,MATCH(A21,masterlist!$C$2:$C$207,0)),INDEX(masterlist!$P$2:$P$207,MATCH(A21,masterlist!$C$2:$C$207,0))),\"\")","v":0},{"$f":"IFERROR(HYPERLINK(INDEX(masterlist!$S$2:$S$207,MATCH(A21,masterlist!$C$2:$C$207,0)),INDEX(masterlist!$R$2:$R$207,MATCH(A21,masterlist!$C$2:$C$207,0))),\"\")","v":0},{"$f":"IFERROR(HYPERLINK(INDEX(masterlist!$U$2:$U$207,MATCH(A21,masterlist!$C$2:$C$207,0)),INDEX(masterlist!$T$2:$T$207,MATCH(A21,masterlist!$C$2:$C$207,0))),\"\")","v":0}]
[{"$f":"IFERROR(INDEX(masterlist!$A$2:$F$207,SMALL(IF(masterlist!$B$2:$B$207=\"PCO\",ROW(masterlist!$A$2:$F$207)-1),ROW(18:18)),3),\"\")","v":"PCO-Rép-1-18"},{"$f":"IFERROR(INDEX(masterlist!$D$2:$D$207,MATCH(A22,masterlist!$C$2:$C$207,0)),\"\")","v":"Réponse à l'apparition d'un foyer et autres activités de lutte contre la rage"},{"$f":"IFERROR(INDEX(masterlist!$E$2:$E$207,MATCH(A22,masterlist!$C$2:$C$207,0)),\"\")","v":1},{"$f":"IFERROR(INDEX(masterlist!$G$2:$G$207,MATCH(A22,masterlist!$C$2:$C$207,0)),\"\")","v":"Avez-vous des protocoles pour la réalisation d’enquêtes conjointes des cas de rage ?"},{"$f":"IFERROR(INDEX(masterlist!$H$2:$H$207,MATCH(A22,masterlist!$C$2:$C$207,0)),\"\")","v":"Cela peut inclure les protocoles de Gestion Intégrée des Cas de Morsure (ICBM) *.\n\nCela ne signifie pas que les protocoles doivent être mis en œuvre, mais qu’ils soient simplement disponibles"},0,null,{"$f":"IFERROR(HYPERLINK(INDEX(masterlist!$M$2:$M$207,MATCH(A22,masterlist!$C$2:$C$207,0)),INDEX(masterlist!$L$2:$L$207,MATCH(A22,masterlist!$C$2:$C$207,0))),\"\")","v":"Challenges of animal health information systems and surveillance for animal diseases and zoonoses"},{"$f":"IFERROR(HYPERLINK(INDEX(masterlist!$O$2:$O$207,MATCH(A22,masterlist!$C$2:$C$207,0)),INDEX(masterlist!$N$2:$N$207,MATCH(A22,masterlist!$C$2:$C$207,0))),\"\")","v":0},{"$f":"IFERROR(HYPERLINK(INDEX(masterlist!$Q$2:$Q$207,MATCH(A22,masterlist!$C$2:$C$207,0)),INDEX(masterlist!$P$2:$P$207,MATCH(A22,masterlist!$C$2:$C$207,0))),\"\")","v":0},{"$f":"IFERROR(HYPERLINK(INDEX(masterlist!$S$2:$S$207,MATCH(A22,masterlist!$C$2:$C$207,0)),INDEX(masterlist!$R$2:$R$207,MATCH(A22,masterlist!$C$2:$C$207,0))),\"\")","v":0},{"$f":"IFERROR(HYPERLINK(INDEX(masterlist!$U$2:$U$207,MATCH(A22,masterlist!$C$2:$C$207,0)),INDEX(masterlist!$T$2:$T$207,MATCH(A22,masterlist!$C$2:$C$207,0))),\"\")","v":0}]
[{"$f":"IFERROR(INDEX(masterlist!$A$2:$F$207,SMALL(IF(masterlist!$B$2:$B$207=\"PCO\",ROW(masterlist!$A$2:$F$207)-1),ROW(19:19)),3),\"\")","v":"PCO-Rép-1-19"},{"$f":"IFERROR(INDEX(masterlist!$D$2:$D$207,MATCH(A23,masterlist!$C$2:$C$207,0)),\"\")","v":"Réponse à l'apparition d'un foyer et autres activités de lutte contre la rage"},{"$f":"IFERROR(INDEX(masterlist!$E$2:$E$207,MATCH(A23,masterlist!$C$2:$C$207,0)),\"\")","v":1},{"$f":"IFERROR(INDEX(masterlist!$G$2:$G$207,MATCH(A23,masterlist!$C$2:$C$207,0)),\"\")","v":"Les protocoles d’enquête conjointe des cas de rage ont-ils été mis en œuvre quelque part dans le pays ? "},{"$f":"IFERROR(INDEX(masterlist!$H$2:$H$207,MATCH(A23,masterlist!$C$2:$C$207,0)),\"\")","v":"Cela peut inclure les protocoles de Gestion Intégrée des Cas de Morsure (ICBM) *.\n\nIl peut s’agir d’une zone de projet pilote."},0,null,{"$f":"IFERROR(HYPERLINK(INDEX(masterlist!$M$2:$M$207,MATCH(A23,masterlist!$C$2:$C$207,0)),INDEX(masterlist!$L$2:$L$207,MATCH(A23,masterlist!$C$2:$C$207,0))),\"\")","v":"Operational-activities"},{"$f":"IFERROR(HYPERLINK(INDEX(masterlist!$O$2:$O$207,MATCH(A23,masterlist!$C$2:$C$207,0)),INDEX(masterlist!$N$2:$N$207,MATCH(A23,masterlist!$C$2:$C$207,0))),\"\")","v":0},{"$f":"IFERROR(HYPERLINK(INDEX(masterlist!$Q$2:$Q$207,MATCH(A23,masterlist!$C$2:$C$207,0)),INDEX(masterlist!$P$2:$P$207,MATCH(A23,masterlist!$C$2:$C$207,0))),\"\")","v":0},{"$f":"IFERROR(HYPERLINK(INDEX(masterlist!$S$2:$S$207,MATCH(A23,masterlist!$C$2:$C$207,0)),INDEX(masterlist!$R$2:$R$207,MATCH(A23,masterlist!$C$2:$C$207,0))),\"\")","v":0},{"$f":"IFERROR(HYPERLINK(INDEX(masterlist!$U$2:$U$207,MATCH(A23,masterlist!$C$2:$C$207,0)),INDEX(masterlist!$T$2:$T$207,MATCH(A23,masterlist!$C$2:$C$207,0))),\"\")","v":0}]
[{"$f":"IFERROR(INDEX(masterlist!$A$2:$F$207,SMALL(IF(masterlist!$B$2:$B$207=\"PCO\",ROW(masterlist!$A$2:$F$207)-1),ROW(20:20)),3),\"\")","v":"PCO-Rép-2-20"},{"$f":"IFERROR(INDEX(masterlist!$D$2:$D$207,MATCH(A24,masterlist!$C$2:$C$207,0)),\"\")","v":"Réponse à l'apparition d'un foyer et autres activités de lutte contre la rage"},{"$f":"IFERROR(INDEX(masterlist!$E$2:$E$207,MATCH(A24,masterlist!$C$2:$C$207,0)),\"\")","v":2},{"$f":"IFERROR(INDEX(masterlist!$G$2:$G$207,MATCH(A24,masterlist!$C$2:$C$207,0)),\"\")","v":"Les protocoles d’enquête conjointe des cas de rage, y compris le partage d’informations entre secteurs, ont-ils été approuvés au niveau national ? "},{"$f":"IFERROR(INDEX(masterlist!$H$2:$H$207,MATCH(A24,masterlist!$C$2:$C$207,0)),\"\")","v":"Secteurs impliqués. Veuillez expliquer comment l’information est partagée entre secteurs. "},0,null,{"$f":"IFERROR(HYPERLINK(INDEX(masterlist!$M$2:$M$207,MATCH(A24,masterlist!$C$2:$C$207,0)),INDEX(masterlist!$L$2:$L$207,MATCH(A24,masterlist!$C$2:$C$207,0))),\"\")","v":"WHO expert consultation on rabies"},{"$f":"IFERROR(HYPERLINK(INDEX(masterlist!$O$2:$O$207,MATCH(A24,masterlist!$C$2:$C$207,0)),INDEX(masterlist!$N$2:$N$207,MATCH(A24,masterlist!$C$2:$C$207,0))),\"\")","v":"Challenges of animal health information systems and surveillance for animal diseases and zoonoses "},{"$f":"IFERROR(HYPERLINK(INDEX(masterlist!$Q$2:$Q$207,MATCH(A24,masterlist!$C$2:$C$207,0)),INDEX(masterlist!$P$2:$P$207,MATCH(A24,masterlist!$C$2:$C$207,0))),\"\")","v":"Zoonotic diseases: A guide to collaboration"},{"$f":"IFERROR(HYPERLINK(INDEX(masterlist!$S$2:$S$207,MATCH(A24,masterlist!$C$2:$C$207,0)),INDEX(masterlist!$R$2:$R$207,MATCH(A24,masterlist!$C$2:$C$207,0))),\"\")","v":0},{"$f":"IFERROR(HYPERLINK(INDEX(masterlist!$U$2:$U$207,MATCH(A24,masterlist!$C$2:$C$207,0)),INDEX(masterlist!$T$2:$T$207,MATCH(A24,masterlist!$C$2:$C$207,0))),\"\")","v":0}]
[{"$f":"IFERROR(INDEX(masterlist!$A$2:$F$207,SMALL(IF(masterlist!$B$2:$B$207=\"PCO\",ROW(masterlist!$A$2:$F$207)-1),ROW(21:21)),3),\"\")","v":"PCO-Rép-2-21"},{"$f":"IFERROR(INDEX(masterlist!$D$2:$D$207,MATCH(A25,masterlist!$C$2:$C$207,0)),\"\")","v":"Réponse à l'apparition d'un foyer et autres activités de lutte contre la rage"},{"$f":"IFERROR(INDEX(masterlist!$E$2:$E$207,MATCH(A25,masterlist!$C$2:$C$207,0)),\"\")","v":2},{"$f":"IFERROR(INDEX(masterlist!$G$2:$G$207,MATCH(A25,masterlist!$C$2:$C$207,0)),\"\")","v":"Existe-t-il une réponse active lors de foyers de cas en conformité avec les protocoles d’enquête conjointe établis ? "},{"$f":"IFERROR(INDEX(masterlist!$H$2:$H$207,MATCH(A25,masterlist!$C$2:$C$207,0)),\"\")","v":"Pour répondre à cette question par l'affirmative, des protocoles formels et établis doivent être mis en place.\n\nCela peut inclure la mise en œuvre des protocoles de Gestion Intégrée des Cas de Morsure (ICBM) *."},0,null,{"$f":"IFERROR(HYPERLINK(INDEX(masterlist!$M$2:$M$207,MATCH(A25,masterlist!$C$2:$C$207,0)),INDEX(masterlist!$L$2:$L$207,MATCH(A25,masterlist!$C$2:$C$207,0))),\"\")","v":"5.4-What-are-we-going-to-do-dog-component"},{"$f":"IFERROR(HYPERLINK(INDEX(masterlist!$O$2:$O$207,MATCH(A25,masterlist!$C$2:$C$207,0)),INDEX(masterlist!$N$2:$N$207,MATCH(A25,masterlist!$C$2:$C$207,0))),\"\")","v":0},{"$f":"IFERROR(HYPERLINK(INDEX(masterlist!$Q$2:$Q$207,MATCH(A25,masterlist!$C$2:$C$207,0)),INDEX(masterlist!$P$2:$P$207,MATCH(A25,masterlist!$C$2:$C$207,0))),\"\")","v":0},{"$f":"IFERROR(HYPERLINK(INDEX(masterlist!$S$2:$S$207,MATCH(A25,masterlist!$C$2:$C$207,0)),INDEX(masterlist!$R$2:$R$207,MATCH(A25,masterlist!$C$2:$C$207,0))),\"\")","v":0},{"$f":"IFERROR(HYPERLINK(INDEX(masterlist!$U$2:$U$207,MATCH(A25,masterlist!$C$2:$C$207,0)),INDEX(masterlist!$T$2:$T$207,MATCH(A25,masterlist!$C$2:$C$207,0))),\"\")","v":0}]
[{"$f":"IFERROR(INDEX(masterlist!$A$2:$F$207,SMALL(IF(masterlist!$B$2:$B$207=\"PCO\",ROW(masterlist!$A$2:$F$207)-1),ROW(22:22)),3),\"\")","v":"PCO-Rép-2-22"},{"$f":"IFERROR(INDEX(masterlist!$D$2:$D$207,MATCH(A26,masterlist!$C$2:$C$207,0)),\"\")","v":"Réponse à l'apparition d'un foyer et autres activités de lutte contre la rage"},{"$f":"IFERROR(INDEX(masterlist!$E$2:$E$207,MATCH(A26,masterlist!$C$2:$C$207,0)),\"\")","v":2},{"$f":"IFERROR(INDEX(masterlist!$G$2:$G$207,MATCH(A26,masterlist!$C$2:$C$207,0)),\"\")","v":"Existe-t-il des protocoles pour observer les chiens suspects de rage ? "},{"$f":"IFERROR(INDEX(masterlist!$H$2:$H$207,MATCH(A26,masterlist!$C$2:$C$207,0)),\"\")","v":"Il doit s’agir de protocoles officiels mis en place pour l’observation de chiens suspects (par exemple, les chiens impliqués dans des incidents de morsure).\n\nCela peut comprendre des protocoles de quarantaine à domicile si nécessaire. "},0,null,{"$f":"IFERROR(HYPERLINK(INDEX(masterlist!$M$2:$M$207,MATCH(A26,masterlist!$C$2:$C$207,0)),INDEX(masterlist!$L$2:$L$207,MATCH(A26,masterlist!$C$2:$C$207,0))),\"\")","v":"Guidelines-animal-shelters"},{"$f":"IFERROR(HYPERLINK(INDEX(masterlist!$O$2:$O$207,MATCH(A26,masterlist!$C$2:$C$207,0)),INDEX(masterlist!$N$2:$N$207,MATCH(A26,masterlist!$C$2:$C$207,0))),\"\")","v":"WHO expert consultation on rabies"},{"$f":"IFERROR(HYPERLINK(INDEX(masterlist!$Q$2:$Q$207,MATCH(A26,masterlist!$C$2:$C$207,0)),INDEX(masterlist!$P$2:$P$207,MATCH(A26,masterlist!$C$2:$C$207,0))),\"\")","v":0},{"$f":"IFERROR(HYPERLINK(INDEX(masterlist!$S$2:$S$207,MATCH(A26,masterlist!$C$2:$C$207,0)),INDEX(masterlist!$R$2:$R$207,MATCH(A26,masterlist!$C$2:$C$207,0))),\"\")","v":0},{"$f":"IFERROR(HYPERLINK(INDEX(masterlist!$U$2:$U$207,MATCH(A26,masterlist!$C$2:$C$207,0)),INDEX(masterlist!$T$2:$T$207,MATCH(A26,masterlist!$C$2:$C$207,0))),\"\")","v":0}]
[{"$f":"IFERROR(INDEX(masterlist!$A$2:$F$207,SMALL(IF(masterlist!$B$2:$B$207=\"PCO\",ROW(masterlist!$A$2:$F$207)-1),ROW(23:23)),3),\"\")","v":"PCO-Rép-2-23"},{"$f":"IFERROR(INDEX(masterlist!$D$2:$D$207,MATCH(A27,masterlist!$C$2:$C$207,0)),\"\")","v":"Réponse à l'apparition d'un foyer et autres activités de lutte contre la rage"},{"$f":"IFERROR(INDEX(masterlist!$E$2:$E$207,MATCH(A27,masterlist!$C$2:$C$207,0)),\"\")","v":2},{"$f":"IFERROR(INDEX(masterlist!$G$2:$G$207,MATCH(A27,masterlist!$C$2:$C$207,0)),\"\")","v":"Des installations ont-elles été mises en place, ou des protocoles de quarantaine à domicile sont-ils disponibles pour la mise en quarantaine des chiens suspects d'être enragés ?"},{"$f":"IFERROR(INDEX(masterlist!$H$2:$H$207,MATCH(A27,masterlist!$C$2:$C$207,0)),\"\")","v":"Une quarantaine à domicile est adéquate à condition que le protocole prenne en compte tous les aspects pertinents de la quarantaine à domicile (par exemple suivi, bien-être animal, isolement)."},0,null,{"$f":"IFERROR(HYPERLINK(INDEX(masterlist!$M$2:$M$207,MATCH(A27,masterlist!$C$2:$C$207,0)),INDEX(masterlist!$L$2:$L$207,MATCH(A27,masterlist!$C$2:$C$207,0))),\"\")","v":"Guidelines-animal-shelters"},{"$f":"IFERROR(HYPERLINK(INDEX(masterlist!$O$2:$O$207,MATCH(A27,masterlist!$C$2:$C$207,0)),INDEX(masterlist!$N$2:$N$207,MATCH(A27,masterlist!$C$2:$C$207,0))),\"\")","v":"ICAM animal shelter guidelines"},{"$f":"IFERROR(HYPERLINK(INDEX(masterlist!$Q$2:$Q$207,MATCH(A27,masterlist!$C$2:$C$207,0)),INDEX(masterlist!$P$2:$P$207,MATCH(A27,masterlist!$C$2:$C$207,0))),\"\")","v":0},{"$f":"IFERROR(HYPERLINK(INDEX(masterlist!$S$2:$S$207,MATCH(A27,masterlist!$C$2:$C$207,0)),INDEX(masterlist!$R$2:$R$207,MATCH(A27,masterlist!$C$2:$C$207,0))),\"\")","v":0},{"$f":"IFERROR(HYPERLINK(INDEX(masterlist!$U$2:$U$207,MATCH(A27,masterlist!$C$2:$C$207,0)),INDEX(masterlist!$T$2:$T$207,MATCH(A27,masterlist!$C$2:$C$207,0))),\"\")","v":0}]
[{"$f":"IFERROR(INDEX(masterlist!$A$2:$F$207,SMALL(IF(masterlist!$B$2:$B$207=\"PCO\",ROW(masterlist!$A$2:$F$207)-1),ROW(24:24)),3),\"\")","v":"PCO-Rép-2-24"},{"$f":"IFERROR(INDEX(masterlist!$D$2:$D$207,MATCH(A28,masterlist!$C$2:$C$207,0)),\"\")","v":"Réponse à l'apparition d'un foyer et autres activités de lutte contre la rage"},{"$f":"IFERROR(INDEX(masterlist!$E$2:$E$207,MATCH(A28,masterlist!$C$2:$C$207,0)),\"\")","v":2},{"$f":"IFERROR(INDEX(masterlist!$G$2:$G$207,MATCH(A28,masterlist!$C$2:$C$207,0)),\"\")","v":"Les mesures vétérinaires d’inspection et de quarantaine aux frontières ont-elles été mises en place dans les ports d’entrée ? "},{"$f":"IFERROR(INDEX(masterlist!$H$2:$H$207,MATCH(A28,masterlist!$C$2:$C$207,0)),\"\")","v":"Cela signifie que des mesures vétérinaires strictes aux frontières sont en place, financées et dotées de ressources dans tous les ports d’entrée officiels, afin qu’aucun cas de rage d’origine extérieure ne puisse être introduit dans le pays. "},0,null,{"$f":"IFERROR(HYPERLINK(INDEX(masterlist!$M$2:$M$207,MATCH(A28,masterlist!$C$2:$C$207,0)),INDEX(masterlist!$L$2:$L$207,MATCH(A28,masterlist!$C$2:$C$207,0))),\"\")","v":"OIE Terrestrial Animal Health Code"},{"$f":"IFERROR(HYPERLINK(INDEX(masterlist!$O$2:$O$207,MATCH(A28,masterlist!$C$2:$C$207,0)),INDEX(masterlist!$N$2:$N$207,MATCH(A28,masterlist!$C$2:$C$207,0))),\"\")","v":0},{"$f":"IFERROR(HYPERLINK(INDEX(masterlist!$Q$2:$Q$207,MATCH(A28,masterlist!$C$2:$C$207,0)),INDEX(masterlist!$P$2:$P$207,MATCH(A28,masterlist!$C$2:$C$207,0))),\"\")","v":0},{"$f":"IFERROR(HYPERLINK(INDEX(masterlist!$S$2:$S$207,MATCH(A28,masterlist!$C$2:$C$207,0)),INDEX(masterlist!$R$2:$R$207,MATCH(A28,masterlist!$C$2:$C$207,0))),\"\")","v":0},{"$f":"IFERROR(HYPERLINK(INDEX(masterlist!$U$2:$U$207,MATCH(A28,masterlist!$C$2:$C$207,0)),INDEX(masterlist!$T$2:$T$207,MATCH(A28,masterlist!$C$2:$C$207,0))),\"\")","v":0}]
[{"$f":"IFERROR(INDEX(masterlist!$A$2:$F$207,SMALL(IF(masterlist!$B$2:$B$207=\"PCO\",ROW(masterlist!$A$2:$F$207)-1),ROW(25:25)),3),\"\")","v":"PCO-Rép-3-25"},{"$f":"IFERROR(INDEX(masterlist!$D$2:$D$207,MATCH(A29,masterlist!$C$2:$C$207,0)),\"\")","v":"Réponse à l'apparition d'un foyer et autres activités de lutte contre la rage"},{"$f":"IFERROR(INDEX(masterlist!$E$2:$E$207,MATCH(A29,masterlist!$C$2:$C$207,0)),\"\")","v":3},{"$f":"IFERROR(INDEX(masterlist!$G$2:$G$207,MATCH(A29,masterlist!$C$2:$C$207,0)),\"\")","v":"Existe-t-il une capacité à mener des enquêtes conjointes sur le terrain et à planifier des réponses à des foyers de rage humaine dans l'ensemble du pays ?"},{"$f":"IFERROR(INDEX(masterlist!$H$2:$H$207,MATCH(A29,masterlist!$C$2:$C$207,0)),\"\")","v":"Cela signifie que vous devez avoir la capacité de mener une réponse à une épidémie dans n'importe quelle région du pays, y compris dans les régions les plus reculées. Cela ne signifie toutefois pas que cette activité doit être en place. \n\nPar exemple, vous pouvez déterminer s'il est possible d'utiliser le même réseau de réponse aux épidémies que celui utilisé pour d'autres maladies.  "},0,null,{"$f":"IFERROR(HYPERLINK(INDEX(masterlist!$M$2:$M$207,MATCH(A29,masterlist!$C$2:$C$207,0)),INDEX(masterlist!$L$2:$L$207,MATCH(A29,masterlist!$C$2:$C$207,0))),\"\")","v":"WHO International Health Regulations"},{"$f":"IFERROR(HYPERLINK(INDEX(masterlist!$O$2:$O$207,MATCH(A29,masterlist!$C$2:$C$207,0)),INDEX(masterlist!$N$2:$N$207,MATCH(A29,masterlist!$C$2:$C$207,0))),\"\")","v":"Challenges of animal health information systems and surveillance for animal diseases and zoonoses "},{"$f":"IFERROR(HYPERLINK(INDEX(masterlist!$Q$2:$Q$207,MATCH(A29,masterlist!$C$2:$C$207,0)),INDEX(masterlist!$P$2:$P$207,MATCH(A29,masterlist!$C$2:$C$207,0))),\"\")","v":0},{"$f":"IFERROR(HYPERLINK(INDEX(masterlist!$S$2:$S$207,MATCH(A29,masterlist!$C$2:$C$207,0)),INDEX(masterlist!$R$2:$R$207,MATCH(A29,masterlist!$C$2:$C$207,0))),\"\")","v":0},{"$f":"IFERROR(HYPERLINK(INDEX(masterlist!$U$2:$U$207,MATCH(A29,masterlist!$C$2:$C$207,0)),INDEX(masterlist!$T$2:$T$207,MATCH(A29,masterlist!$C$2:$C$207,0))),\"\")","v":0}]
[{"$f":"IFERROR(INDEX(masterlist!$A$2:$F$207,SMALL(IF(masterlist!$B$2:$B$207=\"PCO\",ROW(masterlist!$A$2:$F$207)-1),ROW(26:26)),3),\"\")","v":"PCO-Rép-3-26"},{"$f":"IFERROR(INDEX(masterlist!$D$2:$D$207,MATCH(A30,masterlist!$C$2:$C$207,0)),\"\")","v":"Réponse à l'apparition d'un foyer et autres activités de lutte contre la rage"},{"$f":"IFERROR(INDEX(masterlist!$E$2:$E$207,MATCH(A30,masterlist!$C$2:$C$207,0)),\"\")","v":3},{"$f":"IFERROR(INDEX(masterlist!$G$2:$G$207,MATCH(A30,masterlist!$C$2:$C$207,0)),\"\")","v":"Un dialogue a-t-il été initié avec les pays voisins pour prévenir la réintroduction de la rage dans des zones désignées comme étant exemptes de rage ?"},{"$f":"IFERROR(INDEX(masterlist!$H$2:$H$207,MATCH(A30,masterlist!$C$2:$C$207,0)),\"\")","v":"Il n’est pas nécessaire d’avoir des accords officiels en place, mais vous devez avoir eu des discussions claires avec les pays voisins concernant la prévention de la réintroduction de la rage dans votre pays."},0,null,{"$f":"IFERROR(HYPERLINK(INDEX(masterlist!$M$2:$M$207,MATCH(A30,masterlist!$C$2:$C$207,0)),INDEX(masterlist!$L$2:$L$207,MATCH(A30,masterlist!$C$2:$C$207,0))),\"\")","v":"5.4.17-successful-maintenance"},{"$f":"IFERROR(HYPERLINK(INDEX(masterlist!$O$2:$O$207,MATCH(A30,masterlist!$C$2:$C$207,0)),INDEX(masterlist!$N$2:$N$207,MATCH(A30,masterlist!$C$2:$C$207,0))),\"\")","v":"Challenges of animal health information systems and surveillance for animal diseases and zoonoses "},{"$f":"IFERROR(HYPERLINK(INDEX(masterlist!$Q$2:$Q$207,MATCH(A30,masterlist!$C$2:$C$207,0)),INDEX(masterlist!$P$2:$P$207,MATCH(A30,masterlist!$C$2:$C$207,0))),\"\")","v":0},{"$f":"IFERROR(HYPERLINK(INDEX(masterlist!$S$2:$S$207,MATCH(A30,masterlist!$C$2:$C$207,0)),INDEX(masterlist!$R$2:$R$207,MATCH(A30,masterlist!$C$2:$C$207,0))),\"\")","v":0},{"$f":"IFERROR(HYPERLINK(INDEX(masterlist!$U$2:$U$207,MATCH(A30,masterlist!$C$2:$C$207,0)),INDEX(masterlist!$T$2:$T$207,MATCH(A30,masterlist!$C$2:$C$207,0))),\"\")","v":0}]
[{"$f":"IFERROR(INDEX(masterlist!$A$2:$F$207,SMALL(IF(masterlist!$B$2:$B$207=\"PCO\",ROW(masterlist!$A$2:$F$207)-1),ROW(27:27)),3),\"\")","v":"PCO-Rép-3-27"},{"$f":"IFERROR(INDEX(masterlist!$D$2:$D$207,MATCH(A31,masterlist!$C$2:$C$207,0)),\"\")","v":"Réponse à l'apparition d'un foyer et autres activités de lutte contre la rage"},{"$f":"IFERROR(INDEX(masterlist!$E$2:$E$207,MATCH(A31,masterlist!$C$2:$C$207,0)),\"\")","v":3},{"$f":"IFERROR(INDEX(masterlist!$G$2:$G$207,MATCH(A31,masterlist!$C$2:$C$207,0)),\"\")","v":"Existe-t-il une capacité à mener des enquêtes conjointes sur le terrain et à planifier des réponses à des foyers de rage pour tous les cas de rage animale   dans l'ensemble du pays ?"},{"$f":"IFERROR(INDEX(masterlist!$H$2:$H$207,MATCH(A31,masterlist!$C$2:$C$207,0)),\"\")","v":"Cela signifie que vous devez avoir la capacité de mener des enquêtes conjointes sur le terrain et des réponses planifiées à une épidémie dans n'importe quelle région du pays, y compris dans les régions les plus reculées. Cela ne signifie pas toutefois que cette activité doit être en place. Par exemple, vous pouvez déterminer s'il est possible d'utiliser le même réseau de réponse aux épidémies que celui utilisé pour d'autres maladies."},0,null,{"$f":"IFERROR(HYPERLINK(INDEX(masterlist!$M$2:$M$207,MATCH(A31,masterlist!$C$2:$C$207,0)),INDEX(masterlist!$L$2:$L$207,MATCH(A31,masterlist!$C$2:$C$207,0))),\"\")","v":0},{"$f":"IFERROR(HYPERLINK(INDEX(masterlist!$O$2:$O$207,MATCH(A31,masterlist!$C$2:$C$207,0)),INDEX(masterlist!$N$2:$N$207,MATCH(A31,masterlist!$C$2:$C$207,0))),\"\")","v":0},{"$f":"IFERROR(HYPERLINK(INDEX(masterlist!$Q$2:$Q$207,MATCH(A31,masterlist!$C$2:$C$207,0)),INDEX(masterlist!$P$2:$P$207,MATCH(A31,masterlist!$C$2:$C$207,0))),\"\")","v":0},{"$f":"IFERROR(HYPERLINK(INDEX(masterlist!$S$2:$S$207,MATCH(A31,masterlist!$C$2:$C$207,0)),INDEX(masterlist!$R$2:$R$207,MATCH(A31,masterlist!$C$2:$C$207,0))),\"\")","v":0},{"$f":"IFERROR(HYPERLINK(INDEX(masterlist!$U$2:$U$207,MATCH(A31,masterlist!$C$2:$C$207,0)),INDEX(masterlist!$T$2:$T$207,MATCH(A31,masterlist!$C$2:$C$207,0))),\"\")","v":0}]
[{"$f":"IFERROR(INDEX(masterlist!$A$2:$F$207,SMALL(IF(masterlist!$B$2:$B$207=\"PCO\",ROW(masterlist!$A$2:$F$207)-1),ROW(28:28)),3),\"\")","v":"PCO-Rép-3-28"},{"$f":"IFERROR(INDEX(masterlist!$D$2:$D$207,MATCH(A32,masterlist!$C$2:$C$207,0)),\"\")","v":"Réponse à l'apparition d'un foyer et autres activités de lutte contre la rage"},{"$f":"IFERROR(INDEX(masterlist!$E$2:$E$207,MATCH(A32,masterlist!$C$2:$C$207,0)),\"\")","v":3},{"$f":"IFERROR(INDEX(masterlist!$G$2:$G$207,MATCH(A32,masterlist!$C$2:$C$207,0)),\"\")","v":"Alors que votre pays se rapproche de l’élimination de la rage humaine, des enquêtes de terrain sont-elles menées pour TOUS les cas suspects de rage humaine dans l’ensemble du pays ? "},{"$f":"IFERROR(INDEX(masterlist!$H$2:$H$207,MATCH(A32,masterlist!$C$2:$C$207,0)),\"\")","v":"Vous pouvez répondre “Oui” si vous pouvez affirmer avec certitude que TOUS les cas suspects de rage humaine font l'objet d'une enquête. Cela n'est possible que lorsqu'il y a peu de cas de rage humaine grâce à des campagnes d'intervention réussies."},0,null,{"$f":"IFERROR(HYPERLINK(INDEX(masterlist!$M$2:$M$207,MATCH(A32,masterlist!$C$2:$C$207,0)),INDEX(masterlist!$L$2:$L$207,MATCH(A32,masterlist!$C$2:$C$207,0))),\"\")","v":"2.2 Human rabies surveillance "},{"$f":"IFERROR(HYPERLINK(INDEX(masterlist!$O$2:$O$207,MATCH(A32,masterlist!$C$2:$C$207,0)),INDEX(masterlist!$N$2:$N$207,MATCH(A32,masterlist!$C$2:$C$207,0))),\"\")","v":0},{"$f":"IFERROR(HYPERLINK(INDEX(masterlist!$Q$2:$Q$207,MATCH(A32,masterlist!$C$2:$C$207,0)),INDEX(masterlist!$P$2:$P$207,MATCH(A32,masterlist!$C$2:$C$207,0))),\"\")","v":0},{"$f":"IFERROR(HYPERLINK(INDEX(masterlist!$S$2:$S$207,MATCH(A32,masterlist!$C$2:$C$207,0)),INDEX(masterlist!$R$2:$R$207,MATCH(A32,masterlist!$C$2:$C$207,0))),\"\")","v":0},{"$f":"IFERROR(HYPERLINK(INDEX(masterlist!$U$2:$U$207,MATCH(A32,masterlist!$C$2:$C$207,0)),INDEX(masterlist!$T$2:$T$207,MATCH(A32,masterlist!$C$2:$C$207,0))),\"\")","v":0}]
[{"$f":"IFERROR(INDEX(masterlist!$A$2:$F$207,SMALL(IF(masterlist!$B$2:$B$207=\"PCO\",ROW(masterlist!$A$2:$F$207)-1),ROW(29:29)),3),\"\")","v":"PCO-Rép-4-29"},{"$f":"IFERROR(INDEX(masterlist!$D$2:$D$207,MATCH(A33,masterlist!$C$2:$C$207,0)),\"\")","v":"Réponse à l'apparition d'un foyer et autres activités de lutte contre la rage"},{"$f":"IFERROR(INDEX(masterlist!$E$2:$E$207,MATCH(A33,masterlist!$C$2:$C$207,0)),\"\")","v":4},{"$f":"IFERROR(INDEX(masterlist!$G$2:$G$207,MATCH(A33,masterlist!$C$2:$C$207,0)),\"\")","v":"Alors que votre pays se rapproche de l’élimination de la rage canine, des enquêtes de terrain sont-elles menées pour TOUS les cas suspects de rage canine dans l’ensemble du pays ? "},{"$f":"IFERROR(INDEX(masterlist!$H$2:$H$207,MATCH(A33,masterlist!$C$2:$C$207,0)),\"\")","v":"Vous pouvez répondre “Oui” si vous pouvez affirmer avec certitude que TOUS les cas suspects de rage canine font l'objet d'une enquête. Cela n'est possible que lorsqu'il y a peu de cas de rage canine grâce à des campagnes de vaccination canine de masse réussies."},0,null,{"$f":"IFERROR(HYPERLINK(INDEX(masterlist!$M$2:$M$207,MATCH(A33,masterlist!$C$2:$C$207,0)),INDEX(masterlist!$L$2:$L$207,MATCH(A33,masterlist!$C$2:$C$207,0))),\"\")","v":0},{"$f":"IFERROR(HYPERLINK(INDEX(masterlist!$O$2:$O$207,MATCH(A33,masterlist!$C$2:$C$207,0)),INDEX(masterlist!$N$2:$N$207,MATCH(A33,masterlist!$C$2:$C$207,0))),\"\")","v":0},{"$f":"IFERROR(HYPERLINK(INDEX(masterlist!$Q$2:$Q$207,MATCH(A33,masterlist!$C$2:$C$207,0)),INDEX(masterlist!$P$2:$P$207,MATCH(A33,masterlist!$C$2:$C$207,0))),\"\")","v":0},{"$f":"IFERROR(HYPERLINK(INDEX(masterlist!$S$2:$S$207,MATCH(A33,masterlist!$C$2:$C$207,0)),INDEX(masterlist!$R$2:$R$207,MATCH(A33,masterlist!$C$2:$C$207,0))),\"\")","v":0},{"$f":"IFERROR(HYPERLINK(INDEX(masterlist!$U$2:$U$207,MATCH(A33,masterlist!$C$2:$C$207,0)),INDEX(masterlist!$T$2:$T$207,MATCH(A33,masterlist!$C$2:$C$207,0))),\"\")","v":0}]
[{"$f":"IFERROR(INDEX(masterlist!$A$2:$F$207,SMALL(IF(masterlist!$B$2:$B$207=\"PCO\",ROW(masterlist!$A$2:$F$207)-1),ROW(30:30)),3),\"\")","v":"PCO-Rép-4-30"},{"$f":"IFERROR(INDEX(masterlist!$D$2:$D$207,MATCH(A34,masterlist!$C$2:$C$207,0)),\"\")","v":"Réponse à l'apparition d'un foyer et autres activités de lutte contre la rage"},{"$f":"IFERROR(INDEX(masterlist!$E$2:$E$207,MATCH(A34,masterlist!$C$2:$C$207,0)),\"\")","v":4},{"$f":"IFERROR(INDEX(masterlist!$G$2:$G$207,MATCH(A34,masterlist!$C$2:$C$207,0)),\"\")","v":"Alors qu’il n’y a plus de cas de rage humaine confirmée au laboratoire, les activités de surveillance existantes pour tous les cas humains suspects sont-elles maintenues dans le pays ?"},{"$f":"IFERROR(INDEX(masterlist!$H$2:$H$207,MATCH(A34,masterlist!$C$2:$C$207,0)),\"\")","v":"Par exemple, investigation clinique de tous les patients présentant des symptômes d’encéphalite."},0,null,{"$f":"IFERROR(HYPERLINK(INDEX(masterlist!$M$2:$M$207,MATCH(A34,masterlist!$C$2:$C$207,0)),INDEX(masterlist!$L$2:$L$207,MATCH(A34,masterlist!$C$2:$C$207,0))),\"\")","v":0},{"$f":"IFERROR(HYPERLINK(INDEX(masterlist!$O$2:$O$207,MATCH(A34,masterlist!$C$2:$C$207,0)),INDEX(masterlist!$N$2:$N$207,MATCH(A34,masterlist!$C$2:$C$207,0))),\"\")","v":0},{"$f":"IFERROR(HYPERLINK(INDEX(masterlist!$Q$2:$Q$207,MATCH(A34,masterlist!$C$2:$C$207,0)),INDEX(masterlist!$P$2:$P$207,MATCH(A34,masterlist!$C$2:$C$207,0))),\"\")","v":0},{"$f":"IFERROR(HYPERLINK(INDEX(masterlist!$S$2:$S$207,MATCH(A34,masterlist!$C$2:$C$207,0)),INDEX(masterlist!$R$2:$R$207,MATCH(A34,masterlist!$C$2:$C$207,0))),\"\")","v":0},{"$f":"IFERROR(HYPERLINK(INDEX(masterlist!$U$2:$U$207,MATCH(A34,masterlist!$C$2:$C$207,0)),INDEX(masterlist!$T$2:$T$207,MATCH(A34,masterlist!$C$2:$C$207,0))),\"\")","v":0}]
[{"$f":"IFERROR(INDEX(masterlist!$A$2:$F$207,SMALL(IF(masterlist!$B$2:$B$207=\"PCO\",ROW(masterlist!$A$2:$F$207)-1),ROW(31:31)),3),\"\")","v":"PCO-Rép-4-31"},{"$f":"IFERROR(INDEX(masterlist!$D$2:$D$207,MATCH(A35,masterlist!$C$2:$C$207,0)),\"\")","v":"Réponse à l'apparition d'un foyer et autres activités de lutte contre la rage"},{"$f":"IFERROR(INDEX(masterlist!$E$2:$E$207,MATCH(A35,masterlist!$C$2:$C$207,0)),\"\")","v":4},{"$f":"IFERROR(INDEX(masterlist!$G$2:$G$207,MATCH(A35,masterlist!$C$2:$C$207,0)),\"\")","v":"Maintenant qu’il y a très peu de cas de rage animale dans votre pays, un plan d'intervention d'urgence a-t-il été élaboré au cas où la variante canine de la rage serait réintroduite dans les zones exemptes de rage ?"},{"$f":"IFERROR(INDEX(masterlist!$H$2:$H$207,MATCH(A35,masterlist!$C$2:$C$207,0)),\"\")","v":"Ne répondez “Oui” que si votre pays a officiellement déclaré des zones exemptes de rage."},0,null,{"$f":"IFERROR(HYPERLINK(INDEX(masterlist!$M$2:$M$207,MATCH(A35,masterlist!$C$2:$C$207,0)),INDEX(masterlist!$L$2:$L$207,MATCH(A35,masterlist!$C$2:$C$207,0))),\"\")","v":"5.4.20 Reintroduction response "},{"$f":"IFERROR(HYPERLINK(INDEX(masterlist!$O$2:$O$207,MATCH(A35,masterlist!$C$2:$C$207,0)),INDEX(masterlist!$N$2:$N$207,MATCH(A35,masterlist!$C$2:$C$207,0))),\"\")","v":0},{"$f":"IFERROR(HYPERLINK(INDEX(masterlist!$Q$2:$Q$207,MATCH(A35,masterlist!$C$2:$C$207,0)),INDEX(masterlist!$P$2:$P$207,MATCH(A35,masterlist!$C$2:$C$207,0))),\"\")","v":0},{"$f":"IFERROR(HYPERLINK(INDEX(masterlist!$S$2:$S$207,MATCH(A35,masterlist!$C$2:$C$207,0)),INDEX(masterlist!$R$2:$R$207,MATCH(A35,masterlist!$C$2:$C$207,0))),\"\")","v":0},{"$f":"IFERROR(HYPERLINK(INDEX(masterlist!$U$2:$U$207,MATCH(A35,masterlist!$C$2:$C$207,0)),INDEX(masterlist!$T$2:$T$207,MATCH(A35,masterlist!$C$2:$C$207,0))),\"\")","v":0}]
[{"$f":"IFERROR(INDEX(masterlist!$A$2:$F$207,SMALL(IF(masterlist!$B$2:$B$207=\"PCO\",ROW(masterlist!$A$2:$F$207)-1),ROW(32:32)),3),\"\")","v":"PCO-Rép-5-32"},{"$f":"IFERROR(INDEX(masterlist!$D$2:$D$207,MATCH(A36,masterlist!$C$2:$C$207,0)),\"\")","v":"Réponse à l'apparition d'un foyer et autres activités de lutte contre la rage"},{"$f":"IFERROR(INDEX(masterlist!$E$2:$E$207,MATCH(A36,masterlist!$C$2:$C$207,0)),\"\")","v":5},{"$f":"IFERROR(INDEX(masterlist!$G$2:$G$207,MATCH(A36,masterlist!$C$2:$C$207,0)),\"\")","v":"Même si vous êtes désormais exempts de rage canine grâce aux campagnes de vaccination de masse réussies, la capacité de réponse conjointe à un foyer de rage a-t-elle été maintenue ? "},{"$f":"IFERROR(INDEX(masterlist!$H$2:$H$207,MATCH(A36,masterlist!$C$2:$C$207,0)),\"\")","v":" "},0,null,{"$f":"IFERROR(HYPERLINK(INDEX(masterlist!$M$2:$M$207,MATCH(A36,masterlist!$C$2:$C$207,0)),INDEX(masterlist!$L$2:$L$207,MATCH(A36,masterlist!$C$2:$C$207,0))),\"\")","v":"5.4.17-successful-maintenance"},{"$f":"IFERROR(HYPERLINK(INDEX(masterlist!$O$2:$O$207,MATCH(A36,masterlist!$C$2:$C$207,0)),INDEX(masterlist!$N$2:$N$207,MATCH(A36,masterlist!$C$2:$C$207,0))),\"\")","v":0},{"$f":"IFERROR(HYPERLINK(INDEX(masterlist!$Q$2:$Q$207,MATCH(A36,masterlist!$C$2:$C$207,0)),INDEX(masterlist!$P$2:$P$207,MATCH(A36,masterlist!$C$2:$C$207,0))),\"\")","v":0},{"$f":"IFERROR(HYPERLINK(INDEX(masterlist!$S$2:$S$207,MATCH(A36,masterlist!$C$2:$C$207,0)),INDEX(masterlist!$R$2:$R$207,MATCH(A36,masterlist!$C$2:$C$207,0))),\"\")","v":0},{"$f":"IFERROR(HYPERLINK(INDEX(masterlist!$U$2:$U$207,MATCH(A36,masterlist!$C$2:$C$207,0)),INDEX(masterlist!$T$2:$T$207,MATCH(A36,masterlist!$C$2:$C$207,0))),\"\")","v":0}]
[{"$f":"IFERROR(INDEX(masterlist!$A$2:$F$207,SMALL(IF(masterlist!$B$2:$B$207=\"PCO\",ROW(masterlist!$A$2:$F$207)-1),ROW(33:33)),3),\"\")","v":""},{"$f":"IFERROR(INDEX(masterlist!$D$2:$D$207,MATCH(A37,masterlist!$C$2:$C$207,0)),\"\")","v":""},{"$f":"IFERROR(INDEX(masterlist!$E$2:$E$207,MATCH(A37,masterlist!$C$2:$C$207,0)),\"\")","v":""},{"$f":"IFERROR(INDEX(masterlist!$G$2:$G$207,MATCH(A37,masterlist!$C$2:$C$207,0)),\"\")","v":""},{"$f":"IFERROR(INDEX(masterlist!$H$2:$H$207,MATCH(A37,masterlist!$C$2:$C$207,0)),\"\")","v":""},null,null,{"$f":"IFERROR(HYPERLINK(INDEX(masterlist!$M$2:$M$207,MATCH(A37,masterlist!$C$2:$C$207,0)),INDEX(masterlist!$L$2:$L$207,MATCH(A37,masterlist!$C$2:$C$207,0))),\"\")","v":""},{"$f":"IFERROR(HYPERLINK(INDEX(masterlist!$O$2:$O$207,MATCH(A37,masterlist!$C$2:$C$207,0)),INDEX(masterlist!$N$2:$N$207,MATCH(A37,masterlist!$C$2:$C$207,0))),\"\")","v":""},{"$f":"IFERROR(HYPERLINK(INDEX(masterlist!$Q$2:$Q$207,MATCH(A37,masterlist!$C$2:$C$207,0)),INDEX(masterlist!$P$2:$P$207,MATCH(A37,masterlist!$C$2:$C$207,0))),\"\")","v":""},{"$f":"IFERROR(HYPERLINK(INDEX(masterlist!$S$2:$S$207,MATCH(A37,masterlist!$C$2:$C$207,0)),INDEX(masterlist!$R$2:$R$207,MATCH(A37,masterlist!$C$2:$C$207,0))),\"\")","v":""},{"$f":"IFERROR(HYPERLINK(INDEX(masterlist!$U$2:$U$207,MATCH(A37,masterlist!$C$2:$C$207,0)),INDEX(masterlist!$T$2:$T$207,MATCH(A37,masterlist!$C$2:$C$207,0))),\"\")","v":""}]
[{"$f":"IFERROR(INDEX(masterlist!$A$2:$F$207,SMALL(IF(masterlist!$B$2:$B$207=\"PCO\",ROW(masterlist!$A$2:$F$207)-1),ROW(34:34)),3),\"\")","v":""},{"$f":"IFERROR(INDEX(masterlist!$D$2:$D$207,MATCH(A38,masterlist!$C$2:$C$207,0)),\"\")","v":""},{"$f":"IFERROR(INDEX(masterlist!$E$2:$E$207,MATCH(A38,masterlist!$C$2:$C$207,0)),\"\")","v":""},{"$f":"IFERROR(INDEX(masterlist!$G$2:$G$207,MATCH(A38,masterlist!$C$2:$C$207,0)),\"\")","v":""},{"$f":"IFERROR(INDEX(masterlist!$H$2:$H$207,MATCH(A38,masterlist!$C$2:$C$207,0)),\"\")","v":""},null,null,{"$f":"IFERROR(HYPERLINK(INDEX(masterlist!$M$2:$M$207,MATCH(A38,masterlist!$C$2:$C$207,0)),INDEX(masterlist!$L$2:$L$207,MATCH(A38,masterlist!$C$2:$C$207,0))),\"\")","v":""},{"$f":"IFERROR(HYPERLINK(INDEX(masterlist!$O$2:$O$207,MATCH(A38,masterlist!$C$2:$C$207,0)),INDEX(masterlist!$N$2:$N$207,MATCH(A38,masterlist!$C$2:$C$207,0))),\"\")","v":""},{"$f":"IFERROR(HYPERLINK(INDEX(masterlist!$Q$2:$Q$207,MATCH(A38,masterlist!$C$2:$C$207,0)),INDEX(masterlist!$P$2:$P$207,MATCH(A38,masterlist!$C$2:$C$207,0))),\"\")","v":""},{"$f":"IFERROR(HYPERLINK(INDEX(masterlist!$S$2:$S$207,MATCH(A38,masterlist!$C$2:$C$207,0)),INDEX(masterlist!$R$2:$R$207,MATCH(A38,masterlist!$C$2:$C$207,0))),\"\")","v":""},{"$f":"IFERROR(HYPERLINK(INDEX(masterlist!$U$2:$U$207,MATCH(A38,masterlist!$C$2:$C$207,0)),INDEX(masterlist!$T$2:$T$207,MATCH(A38,masterlist!$C$2:$C$207,0))),\"\")","v":""}]
[{"$f":"IFERROR(INDEX(masterlist!$A$2:$F$207,SMALL(IF(masterlist!$B$2:$B$207=\"PCO\",ROW(masterlist!$A$2:$F$207)-1),ROW(35:35)),3),\"\")","v":""},{"$f":"IFERROR(INDEX(masterlist!$D$2:$D$207,MATCH(A39,masterlist!$C$2:$C$207,0)),\"\")","v":""},{"$f":"IFERROR(INDEX(masterlist!$E$2:$E$207,MATCH(A39,masterlist!$C$2:$C$207,0)),\"\")","v":""},{"$f":"IFERROR(INDEX(masterlist!$G$2:$G$207,MATCH(A39,masterlist!$C$2:$C$207,0)),\"\")","v":""},{"$f":"IFERROR(INDEX(masterlist!$H$2:$H$207,MATCH(A39,masterlist!$C$2:$C$207,0)),\"\")","v":""},null,null,{"$f":"IFERROR(HYPERLINK(INDEX(masterlist!$M$2:$M$207,MATCH(A39,masterlist!$C$2:$C$207,0)),INDEX(masterlist!$L$2:$L$207,MATCH(A39,masterlist!$C$2:$C$207,0))),\"\")","v":""},{"$f":"IFERROR(HYPERLINK(INDEX(masterlist!$O$2:$O$207,MATCH(A39,masterlist!$C$2:$C$207,0)),INDEX(masterlist!$N$2:$N$207,MATCH(A39,masterlist!$C$2:$C$207,0))),\"\")","v":""},{"$f":"IFERROR(HYPERLINK(INDEX(masterlist!$Q$2:$Q$207,MATCH(A39,masterlist!$C$2:$C$207,0)),INDEX(masterlist!$P$2:$P$207,MATCH(A39,masterlist!$C$2:$C$207,0))),\"\")","v":""},{"$f":"IFERROR(HYPERLINK(INDEX(masterlist!$S$2:$S$207,MATCH(A39,masterlist!$C$2:$C$207,0)),INDEX(masterlist!$R$2:$R$207,MATCH(A39,masterlist!$C$2:$C$207,0))),\"\")","v":""},{"$f":"IFERROR(HYPERLINK(INDEX(masterlist!$U$2:$U$207,MATCH(A39,masterlist!$C$2:$C$207,0)),INDEX(masterlist!$T$2:$T$207,MATCH(A39,masterlist!$C$2:$C$207,0))),\"\")","v":""}]
[{"$f":"IFERROR(INDEX(masterlist!$A$2:$F$207,SMALL(IF(masterlist!$B$2:$B$207=\"PCO\",ROW(masterlist!$A$2:$F$207)-1),ROW(36:36)),3),\"\")","v":""},{"$f":"IFERROR(INDEX(masterlist!$D$2:$D$207,MATCH(A40,masterlist!$C$2:$C$207,0)),\"\")","v":""},{"$f":"IFERROR(INDEX(masterlist!$E$2:$E$207,MATCH(A40,masterlist!$C$2:$C$207,0)),\"\")","v":""},{"$f":"IFERROR(INDEX(masterlist!$G$2:$G$207,MATCH(A40,masterlist!$C$2:$C$207,0)),\"\")","v":""},{"$f":"IFERROR(INDEX(masterlist!$H$2:$H$207,MATCH(A40,masterlist!$C$2:$C$207,0)),\"\")","v":""},null,null,{"$f":"IFERROR(HYPERLINK(INDEX(masterlist!$M$2:$M$207,MATCH(A40,masterlist!$C$2:$C$207,0)),INDEX(masterlist!$L$2:$L$207,MATCH(A40,masterlist!$C$2:$C$207,0))),\"\")","v":""},{"$f":"IFERROR(HYPERLINK(INDEX(masterlist!$O$2:$O$207,MATCH(A40,masterlist!$C$2:$C$207,0)),INDEX(masterlist!$N$2:$N$207,MATCH(A40,masterlist!$C$2:$C$207,0))),\"\")","v":""},{"$f":"IFERROR(HYPERLINK(INDEX(masterlist!$Q$2:$Q$207,MATCH(A40,masterlist!$C$2:$C$207,0)),INDEX(masterlist!$P$2:$P$207,MATCH(A40,masterlist!$C$2:$C$207,0))),\"\")","v":""},{"$f":"IFERROR(HYPERLINK(INDEX(masterlist!$S$2:$S$207,MATCH(A40,masterlist!$C$2:$C$207,0)),INDEX(masterlist!$R$2:$R$207,MATCH(A40,masterlist!$C$2:$C$207,0))),\"\")","v":""},{"$f":"IFERROR(HYPERLINK(INDEX(masterlist!$U$2:$U$207,MATCH(A40,masterlist!$C$2:$C$207,0)),INDEX(masterlist!$T$2:$T$207,MATCH(A40,masterlist!$C$2:$C$207,0))),\"\")","v":""}]
[{"$f":"IFERROR(INDEX(masterlist!$A$2:$F$207,SMALL(IF(masterlist!$B$2:$B$207=\"PCO\",ROW(masterlist!$A$2:$F$207)-1),ROW(37:37)),3),\"\")","v":""},{"$f":"IFERROR(INDEX(masterlist!$D$2:$D$207,MATCH(A41,masterlist!$C$2:$C$207,0)),\"\")","v":""},{"$f":"IFERROR(INDEX(masterlist!$E$2:$E$207,MATCH(A41,masterlist!$C$2:$C$207,0)),\"\")","v":""},{"$f":"IFERROR(INDEX(masterlist!$G$2:$G$207,MATCH(A41,masterlist!$C$2:$C$207,0)),\"\")","v":""},{"$f":"IFERROR(INDEX(masterlist!$H$2:$H$207,MATCH(A41,masterlist!$C$2:$C$207,0)),\"\")","v":""},null,null,{"$f":"IFERROR(HYPERLINK(INDEX(masterlist!$M$2:$M$207,MATCH(A41,masterlist!$C$2:$C$207,0)),INDEX(masterlist!$L$2:$L$207,MATCH(A41,masterlist!$C$2:$C$207,0))),\"\")","v":""},{"$f":"IFERROR(HYPERLINK(INDEX(masterlist!$O$2:$O$207,MATCH(A41,masterlist!$C$2:$C$207,0)),INDEX(masterlist!$N$2:$N$207,MATCH(A41,masterlist!$C$2:$C$207,0))),\"\")","v":""},{"$f":"IFERROR(HYPERLINK(INDEX(masterlist!$Q$2:$Q$207,MATCH(A41,masterlist!$C$2:$C$207,0)),INDEX(masterlist!$P$2:$P$207,MATCH(A41,masterlist!$C$2:$C$207,0))),\"\")","v":""},{"$f":"IFERROR(HYPERLINK(INDEX(masterlist!$S$2:$S$207,MATCH(A41,masterlist!$C$2:$C$207,0)),INDEX(masterlist!$R$2:$R$207,MATCH(A41,masterlist!$C$2:$C$207,0))),\"\")","v":""},{"$f":"IFERROR(HYPERLINK(INDEX(masterlist!$U$2:$U$207,MATCH(A41,masterlist!$C$2:$C$207,0)),INDEX(masterlist!$T$2:$T$207,MATCH(A41,masterlist!$C$2:$C$207,0))),\"\")","v":""}]
[{"$f":"IFERROR(INDEX(masterlist!$A$2:$F$207,SMALL(IF(masterlist!$B$2:$B$207=\"PCO\",ROW(masterlist!$A$2:$F$207)-1),ROW(38:38)),3),\"\")","v":""},{"$f":"IFERROR(INDEX(masterlist!$D$2:$D$207,MATCH(A42,masterlist!$C$2:$C$207,0)),\"\")","v":""},{"$f":"IFERROR(INDEX(masterlist!$E$2:$E$207,MATCH(A42,masterlist!$C$2:$C$207,0)),\"\")","v":""},{"$f":"IFERROR(INDEX(masterlist!$G$2:$G$207,MATCH(A42,masterlist!$C$2:$C$207,0)),\"\")","v":""},{"$f":"IFERROR(INDEX(masterlist!$H$2:$H$207,MATCH(A42,masterlist!$C$2:$C$207,0)),\"\")","v":""},null,null,{"$f":"IFERROR(HYPERLINK(INDEX(masterlist!$M$2:$M$207,MATCH(A42,masterlist!$C$2:$C$207,0)),INDEX(masterlist!$L$2:$L$207,MATCH(A42,masterlist!$C$2:$C$207,0))),\"\")","v":""},{"$f":"IFERROR(HYPERLINK(INDEX(masterlist!$O$2:$O$207,MATCH(A42,masterlist!$C$2:$C$207,0)),INDEX(masterlist!$N$2:$N$207,MATCH(A42,masterlist!$C$2:$C$207,0))),\"\")","v":""},{"$f":"IFERROR(HYPERLINK(INDEX(masterlist!$Q$2:$Q$207,MATCH(A42,masterlist!$C$2:$C$207,0)),INDEX(masterlist!$P$2:$P$207,MATCH(A42,masterlist!$C$2:$C$207,0))),\"\")","v":""},{"$f":"IFERROR(HYPERLINK(INDEX(masterlist!$S$2:$S$207,MATCH(A42,masterlist!$C$2:$C$207,0)),INDEX(masterlist!$R$2:$R$207,MATCH(A42,masterlist!$C$2:$C$207,0))),\"\")","v":""},{"$f":"IFERROR(HYPERLINK(INDEX(masterlist!$U$2:$U$207,MATCH(A42,masterlist!$C$2:$C$207,0)),INDEX(masterlist!$T$2:$T$207,MATCH(A42,masterlist!$C$2:$C$207,0))),\"\")","v":""}]
[{"$f":"IFERROR(INDEX(masterlist!$A$2:$F$207,SMALL(IF(masterlist!$B$2:$B$207=\"PCO\",ROW(masterlist!$A$2:$F$207)-1),ROW(39:39)),3),\"\")","v":""},{"$f":"IFERROR(INDEX(masterlist!$D$2:$D$207,MATCH(A43,masterlist!$C$2:$C$207,0)),\"\")","v":""},{"$f":"IFERROR(INDEX(masterlist!$E$2:$E$207,MATCH(A43,masterlist!$C$2:$C$207,0)),\"\")","v":""},{"$f":"IFERROR(INDEX(masterlist!$G$2:$G$207,MATCH(A43,masterlist!$C$2:$C$207,0)),\"\")","v":""},{"$f":"IFERROR(INDEX(masterlist!$H$2:$H$207,MATCH(A43,masterlist!$C$2:$C$207,0)),\"\")","v":""},null,null,{"$f":"IFERROR(HYPERLINK(INDEX(masterlist!$M$2:$M$207,MATCH(A43,masterlist!$C$2:$C$207,0)),INDEX(masterlist!$L$2:$L$207,MATCH(A43,masterlist!$C$2:$C$207,0))),\"\")","v":""},{"$f":"IFERROR(HYPERLINK(INDEX(masterlist!$O$2:$O$207,MATCH(A43,masterlist!$C$2:$C$207,0)),INDEX(masterlist!$N$2:$N$207,MATCH(A43,masterlist!$C$2:$C$207,0))),\"\")","v":""},{"$f":"IFERROR(HYPERLINK(INDEX(masterlist!$Q$2:$Q$207,MATCH(A43,masterlist!$C$2:$C$207,0)),INDEX(masterlist!$P$2:$P$207,MATCH(A43,masterlist!$C$2:$C$207,0))),\"\")","v":""},{"$f":"IFERROR(HYPERLINK(INDEX(masterlist!$S$2:$S$207,MATCH(A43,masterlist!$C$2:$C$207,0)),INDEX(masterlist!$R$2:$R$207,MATCH(A43,masterlist!$C$2:$C$207,0))),\"\")","v":""},{"$f":"IFERROR(HYPERLINK(INDEX(masterlist!$U$2:$U$207,MATCH(A43,masterlist!$C$2:$C$207,0)),INDEX(masterlist!$T$2:$T$207,MATCH(A43,masterlist!$C$2:$C$207,0))),\"\")","v":""}]
[{"$f":"IFERROR(INDEX(masterlist!$A$2:$F$207,SMALL(IF(masterlist!$B$2:$B$207=\"PCO\",ROW(masterlist!$A$2:$F$207)-1),ROW(40:40)),3),\"\")","v":""},{"$f":"IFERROR(INDEX(masterlist!$D$2:$D$207,MATCH(A44,masterlist!$C$2:$C$207,0)),\"\")","v":""},{"$f":"IFERROR(INDEX(masterlist!$E$2:$E$207,MATCH(A44,masterlist!$C$2:$C$207,0)),\"\")","v":""},{"$f":"IFERROR(INDEX(masterlist!$G$2:$G$207,MATCH(A44,masterlist!$C$2:$C$207,0)),\"\")","v":""},{"$f":"IFERROR(INDEX(masterlist!$H$2:$H$207,MATCH(A44,masterlist!$C$2:$C$207,0)),\"\")","v":""},null,null,{"$f":"IFERROR(HYPERLINK(INDEX(masterlist!$M$2:$M$207,MATCH(A44,masterlist!$C$2:$C$207,0)),INDEX(masterlist!$L$2:$L$207,MATCH(A44,masterlist!$C$2:$C$207,0))),\"\")","v":""},{"$f":"IFERROR(HYPERLINK(INDEX(masterlist!$O$2:$O$207,MATCH(A44,masterlist!$C$2:$C$207,0)),INDEX(masterlist!$N$2:$N$207,MATCH(A44,masterlist!$C$2:$C$207,0))),\"\")","v":""},{"$f":"IFERROR(HYPERLINK(INDEX(masterlist!$Q$2:$Q$207,MATCH(A44,masterlist!$C$2:$C$207,0)),INDEX(masterlist!$P$2:$P$207,MATCH(A44,masterlist!$C$2:$C$207,0))),\"\")","v":""},{"$f":"IFERROR(HYPERLINK(INDEX(masterlist!$S$2:$S$207,MATCH(A44,masterlist!$C$2:$C$207,0)),INDEX(masterlist!$R$2:$R$207,MATCH(A44,masterlist!$C$2:$C$207,0))),\"\")","v":""},{"$f":"IFERROR(HYPERLINK(INDEX(masterlist!$U$2:$U$207,MATCH(A44,masterlist!$C$2:$C$207,0)),INDEX(masterlist!$T$2:$T$207,MATCH(A44,masterlist!$C$2:$C$207,0))),\"\")","v":""}]
[{"$f":"IFERROR(INDEX(masterlist!$A$2:$F$207,SMALL(IF(masterlist!$B$2:$B$207=\"PCO\",ROW(masterlist!$A$2:$F$207)-1),ROW(41:41)),3),\"\")","v":""},{"$f":"IFERROR(INDEX(masterlist!$D$2:$D$207,MATCH(A45,masterlist!$C$2:$C$207,0)),\"\")","v":""},{"$f":"IFERROR(INDEX(masterlist!$E$2:$E$207,MATCH(A45,masterlist!$C$2:$C$207,0)),\"\")","v":""},{"$f":"IFERROR(INDEX(masterlist!$G$2:$G$207,MATCH(A45,masterlist!$C$2:$C$207,0)),\"\")","v":""},{"$f":"IFERROR(INDEX(masterlist!$H$2:$H$207,MATCH(A45,masterlist!$C$2:$C$207,0)),\"\")","v":""},null,null,{"$f":"IFERROR(HYPERLINK(INDEX(masterlist!$M$2:$M$207,MATCH(A45,masterlist!$C$2:$C$207,0)),INDEX(masterlist!$L$2:$L$207,MATCH(A45,masterlist!$C$2:$C$207,0))),\"\")","v":""},{"$f":"IFERROR(HYPERLINK(INDEX(masterlist!$O$2:$O$207,MATCH(A45,masterlist!$C$2:$C$207,0)),INDEX(masterlist!$N$2:$N$207,MATCH(A45,masterlist!$C$2:$C$207,0))),\"\")","v":""},{"$f":"IFERROR(HYPERLINK(INDEX(masterlist!$Q$2:$Q$207,MATCH(A45,masterlist!$C$2:$C$207,0)),INDEX(masterlist!$P$2:$P$207,MATCH(A45,masterlist!$C$2:$C$207,0))),\"\")","v":""},{"$f":"IFERROR(HYPERLINK(INDEX(masterlist!$S$2:$S$207,MATCH(A45,masterlist!$C$2:$C$207,0)),INDEX(masterlist!$R$2:$R$207,MATCH(A45,masterlist!$C$2:$C$207,0))),\"\")","v":""},{"$f":"IFERROR(HYPERLINK(INDEX(masterlist!$U$2:$U$207,MATCH(A45,masterlist!$C$2:$C$207,0)),INDEX(masterlist!$T$2:$T$207,MATCH(A45,masterlist!$C$2:$C$207,0))),\"\")","v":""}]
[{"$f":"IFERROR(INDEX(masterlist!$A$2:$F$207,SMALL(IF(masterlist!$B$2:$B$207=\"PCO\",ROW(masterlist!$A$2:$F$207)-1),ROW(42:42)),3),\"\")","v":""},{"$f":"IFERROR(INDEX(masterlist!$D$2:$D$207,MATCH(A46,masterlist!$C$2:$C$207,0)),\"\")","v":""},{"$f":"IFERROR(INDEX(masterlist!$E$2:$E$207,MATCH(A46,masterlist!$C$2:$C$207,0)),\"\")","v":""},{"$f":"IFERROR(INDEX(masterlist!$G$2:$G$207,MATCH(A46,masterlist!$C$2:$C$207,0)),\"\")","v":""},{"$f":"IFERROR(INDEX(masterlist!$H$2:$H$207,MATCH(A46,masterlist!$C$2:$C$207,0)),\"\")","v":""},null,null,{"$f":"IFERROR(HYPERLINK(INDEX(masterlist!$M$2:$M$207,MATCH(A46,masterlist!$C$2:$C$207,0)),INDEX(masterlist!$L$2:$L$207,MATCH(A46,masterlist!$C$2:$C$207,0))),\"\")","v":""},{"$f":"IFERROR(HYPERLINK(INDEX(masterlist!$O$2:$O$207,MATCH(A46,masterlist!$C$2:$C$207,0)),INDEX(masterlist!$N$2:$N$207,MATCH(A46,masterlist!$C$2:$C$207,0))),\"\")","v":""},{"$f":"IFERROR(HYPERLINK(INDEX(masterlist!$Q$2:$Q$207,MATCH(A46,masterlist!$C$2:$C$207,0)),INDEX(masterlist!$P$2:$P$207,MATCH(A46,masterlist!$C$2:$C$207,0))),\"\")","v":""},{"$f":"IFERROR(HYPERLINK(INDEX(masterlist!$S$2:$S$207,MATCH(A46,masterlist!$C$2:$C$207,0)),INDEX(masterlist!$R$2:$R$207,MATCH(A46,masterlist!$C$2:$C$207,0))),\"\")","v":""},{"$f":"IFERROR(HYPERLINK(INDEX(masterlist!$U$2:$U$207,MATCH(A46,masterlist!$C$2:$C$207,0)),INDEX(masterlist!$T$2:$T$207,MATCH(A46,masterlist!$C$2:$C$207,0))),\"\")","v":""}]
[{"$f":"IFERROR(INDEX(masterlist!$A$2:$F$207,SMALL(IF(masterlist!$B$2:$B$207=\"PCO\",ROW(masterlist!$A$2:$F$207)-1),ROW(43:43)),3),\"\")","v":""},{"$f":"IFERROR(INDEX(masterlist!$D$2:$D$207,MATCH(A47,masterlist!$C$2:$C$207,0)),\"\")","v":""},{"$f":"IFERROR(INDEX(masterlist!$E$2:$E$207,MATCH(A47,masterlist!$C$2:$C$207,0)),\"\")","v":""},{"$f":"IFERROR(INDEX(masterlist!$G$2:$G$207,MATCH(A47,masterlist!$C$2:$C$207,0)),\"\")","v":""},{"$f":"IFERROR(INDEX(masterlist!$H$2:$H$207,MATCH(A47,masterlist!$C$2:$C$207,0)),\"\")","v":""},null,null,{"$f":"IFERROR(HYPERLINK(INDEX(masterlist!$M$2:$M$207,MATCH(A47,masterlist!$C$2:$C$207,0)),INDEX(masterlist!$L$2:$L$207,MATCH(A47,masterlist!$C$2:$C$207,0))),\"\")","v":""},{"$f":"IFERROR(HYPERLINK(INDEX(masterlist!$O$2:$O$207,MATCH(A47,masterlist!$C$2:$C$207,0)),INDEX(masterlist!$N$2:$N$207,MATCH(A47,masterlist!$C$2:$C$207,0))),\"\")","v":""},{"$f":"IFERROR(HYPERLINK(INDEX(masterlist!$Q$2:$Q$207,MATCH(A47,masterlist!$C$2:$C$207,0)),INDEX(masterlist!$P$2:$P$207,MATCH(A47,masterlist!$C$2:$C$207,0))),\"\")","v":""},{"$f":"IFERROR(HYPERLINK(INDEX(masterlist!$S$2:$S$207,MATCH(A47,masterlist!$C$2:$C$207,0)),INDEX(masterlist!$R$2:$R$207,MATCH(A47,masterlist!$C$2:$C$207,0))),\"\")","v":""},{"$f":"IFERROR(HYPERLINK(INDEX(masterlist!$U$2:$U$207,MATCH(A47,masterlist!$C$2:$C$207,0)),INDEX(masterlist!$T$2:$T$207,MATCH(A47,masterlist!$C$2:$C$207,0))),\"\")","v":""}]
[{"$f":"IFERROR(INDEX(masterlist!$A$2:$F$207,SMALL(IF(masterlist!$B$2:$B$207=\"PCO\",ROW(masterlist!$A$2:$F$207)-1),ROW(44:44)),3),\"\")","v":""},{"$f":"IFERROR(INDEX(masterlist!$D$2:$D$207,MATCH(A48,masterlist!$C$2:$C$207,0)),\"\")","v":""},{"$f":"IFERROR(INDEX(masterlist!$E$2:$E$207,MATCH(A48,masterlist!$C$2:$C$207,0)),\"\")","v":""},{"$f":"IFERROR(INDEX(masterlist!$G$2:$G$207,MATCH(A48,masterlist!$C$2:$C$207,0)),\"\")","v":""},{"$f":"IFERROR(INDEX(masterlist!$H$2:$H$207,MATCH(A48,masterlist!$C$2:$C$207,0)),\"\")","v":""},null,null,{"$f":"IFERROR(HYPERLINK(INDEX(masterlist!$M$2:$M$207,MATCH(A48,masterlist!$C$2:$C$207,0)),INDEX(masterlist!$L$2:$L$207,MATCH(A48,masterlist!$C$2:$C$207,0))),\"\")","v":""},{"$f":"IFERROR(HYPERLINK(INDEX(masterlist!$O$2:$O$207,MATCH(A48,masterlist!$C$2:$C$207,0)),INDEX(masterlist!$N$2:$N$207,MATCH(A48,masterlist!$C$2:$C$207,0))),\"\")","v":""},{"$f":"IFERROR(HYPERLINK(INDEX(masterlist!$Q$2:$Q$207,MATCH(A48,masterlist!$C$2:$C$207,0)),INDEX(masterlist!$P$2:$P$207,MATCH(A48,masterlist!$C$2:$C$207,0))),\"\")","v":""},{"$f":"IFERROR(HYPERLINK(INDEX(masterlist!$S$2:$S$207,MATCH(A48,masterlist!$C$2:$C$207,0)),INDEX(masterlist!$R$2:$R$207,MATCH(A48,masterlist!$C$2:$C$207,0))),\"\")","v":""},{"$f":"IFERROR(HYPERLINK(INDEX(masterlist!$U$2:$U$207,MATCH(A48,masterlist!$C$2:$C$207,0)),INDEX(masterlist!$T$2:$T$207,MATCH(A48,masterlist!$C$2:$C$207,0))),\"\")","v":""}]
[{"$f":"IFERROR(INDEX(masterlist!$A$2:$F$207,SMALL(IF(masterlist!$B$2:$B$207=\"PCO\",ROW(masterlist!$A$2:$F$207)-1),ROW(45:45)),3),\"\")","v":""},{"$f":"IFERROR(INDEX(masterlist!$D$2:$D$207,MATCH(A49,masterlist!$C$2:$C$207,0)),\"\")","v":""},{"$f":"IFERROR(INDEX(masterlist!$E$2:$E$207,MATCH(A49,masterlist!$C$2:$C$207,0)),\"\")","v":""},{"$f":"IFERROR(INDEX(masterlist!$G$2:$G$207,MATCH(A49,masterlist!$C$2:$C$207,0)),\"\")","v":""},{"$f":"IFERROR(INDEX(masterlist!$H$2:$H$207,MATCH(A49,masterlist!$C$2:$C$207,0)),\"\")","v":""},null,null,{"$f":"IFERROR(HYPERLINK(INDEX(masterlist!$M$2:$M$207,MATCH(A49,masterlist!$C$2:$C$207,0)),INDEX(masterlist!$L$2:$L$207,MATCH(A49,masterlist!$C$2:$C$207,0))),\"\")","v":""},{"$f":"IFERROR(HYPERLINK(INDEX(masterlist!$O$2:$O$207,MATCH(A49,masterlist!$C$2:$C$207,0)),INDEX(masterlist!$N$2:$N$207,MATCH(A49,masterlist!$C$2:$C$207,0))),\"\")","v":""},{"$f":"IFERROR(HYPERLINK(INDEX(masterlist!$Q$2:$Q$207,MATCH(A49,masterlist!$C$2:$C$207,0)),INDEX(masterlist!$P$2:$P$207,MATCH(A49,masterlist!$C$2:$C$207,0))),\"\")","v":""},{"$f":"IFERROR(HYPERLINK(INDEX(masterlist!$S$2:$S$207,MATCH(A49,masterlist!$C$2:$C$207,0)),INDEX(masterlist!$R$2:$R$207,MATCH(A49,masterlist!$C$2:$C$207,0))),\"\")","v":""},{"$f":"IFERROR(HYPERLINK(INDEX(masterlist!$U$2:$U$207,MATCH(A49,masterlist!$C$2:$C$207,0)),INDEX(masterlist!$T$2:$T$207,MATCH(A49,masterlist!$C$2:$C$207,0))),\"\")","v":""}]
[{"$f":"IFERROR(INDEX(masterlist!$A$2:$F$207,SMALL(IF(masterlist!$B$2:$B$207=\"PCO\",ROW(masterlist!$A$2:$F$207)-1),ROW(46:46)),3),\"\")","v":""},{"$f":"IFERROR(INDEX(masterlist!$D$2:$D$207,MATCH(A50,masterlist!$C$2:$C$207,0)),\"\")","v":""},{"$f":"IFERROR(INDEX(masterlist!$E$2:$E$207,MATCH(A50,masterlist!$C$2:$C$207,0)),\"\")","v":""},{"$f":"IFERROR(INDEX(masterlist!$G$2:$G$207,MATCH(A50,masterlist!$C$2:$C$207,0)),\"\")","v":""},{"$f":"IFERROR(INDEX(masterlist!$H$2:$H$207,MATCH(A50,masterlist!$C$2:$C$207,0)),\"\")","v":""},null,null,{"$f":"IFERROR(HYPERLINK(INDEX(masterlist!$M$2:$M$207,MATCH(A50,masterlist!$C$2:$C$207,0)),INDEX(masterlist!$L$2:$L$207,MATCH(A50,masterlist!$C$2:$C$207,0))),\"\")","v":""},{"$f":"IFERROR(HYPERLINK(INDEX(masterlist!$O$2:$O$207,MATCH(A50,masterlist!$C$2:$C$207,0)),INDEX(masterlist!$N$2:$N$207,MATCH(A50,masterlist!$C$2:$C$207,0))),\"\")","v":""},{"$f":"IFERROR(HYPERLINK(INDEX(masterlist!$Q$2:$Q$207,MATCH(A50,masterlist!$C$2:$C$207,0)),INDEX(masterlist!$P$2:$P$207,MATCH(A50,masterlist!$C$2:$C$207,0))),\"\")","v":""},{"$f":"IFERROR(HYPERLINK(INDEX(masterlist!$S$2:$S$207,MATCH(A50,masterlist!$C$2:$C$207,0)),INDEX(masterlist!$R$2:$R$207,MATCH(A50,masterlist!$C$2:$C$207,0))),\"\")","v":""},{"$f":"IFERROR(HYPERLINK(INDEX(masterlist!$U$2:$U$207,MATCH(A50,masterlist!$C$2:$C$207,0)),INDEX(masterlist!$T$2:$T$207,MATCH(A50,masterlist!$C$2:$C$207,0))),\"\")","v":""}]

{"sheet":"Lab dx","index":8,"n_rows":50,"n_cols":12,"rows_kept":50,"cut":false,"hidden":true,"merged":[[3,7,3,11]]}
[]
[null,null,"Instructions : Si l'activité est terminée, inscrivez « 1 » dans la colonne « Statut ». Si l'activité n'a PAS été achevée ou si vous n'êtes pas sûr qu'elle l'ait été, inscrivez « 0 » dans la colonne « Statut »."]
[]
["ID","SOUS-COMPOSANTE","STADE","ACTIVITES","GUIDE DE REPONSE A LA QUESTION","STATUT","REMARQUES","Rabies Blueprint references and other links"]
[{"$f":"IFERROR(INDEX(masterlist!$A$2:$F$207,SMALL(IF(masterlist!$B$2:$B$207=\"LAB\",ROW(masterlist!$A$2:$F$207)-1),ROW(1:1)),3),\"\")","v":"LAB-Env-0-1"},{"$f":"IFERROR(INDEX(masterlist!$D$2:$D$207,MATCH(A5,masterlist!$C$2:$C$207,0)),\"\")","v":"Envoi de prélèvements"},{"$f":"IFERROR(INDEX(masterlist!$E$2:$E$207,MATCH(A5,masterlist!$C$2:$C$207,0)),\"\")","v":0},{"$f":"IFERROR(INDEX(masterlist!$G$2:$G$207,MATCH(A5,masterlist!$C$2:$C$207,0)),\"\")","v":"Un contact a-t-il été établi avec un laboratoire international de référence pour la rage (OMSA), un centre collaborateur (OMS) ou un centre de référence (FAO) ?"},{"$f":"IFERROR(INDEX(masterlist!$H$2:$H$207,MATCH(A5,masterlist!$C$2:$C$207,0)),\"\")","v":"Vous pouvez « Oui” si vous avez pris contact. Il n’est pas nécessaire d’envoyer ou de recevoir des prélèvements pour répondre « Oui » à cette question."},1,null,{"$f":"IFERROR(HYPERLINK(INDEX(masterlist!$M$2:$M$207,MATCH(A5,masterlist!$C$2:$C$207,0)),INDEX(masterlist!$L$2:$L$207,MATCH(A5,masterlist!$C$2:$C$207,0))),\"\")","v":"3.1.7 Which laboratories are-available"},{"$f":"IFERROR(HYPERLINK(INDEX(masterlist!$O$2:$O$207,MATCH(A5,masterlist!$C$2:$C$207,0)),INDEX(masterlist!$N$2:$N$207,MATCH(A5,masterlist!$C$2:$C$207,0))),\"\")","v":"OIE reference laboratories"},{"$f":"IFERROR(HYPERLINK(INDEX(masterlist!$Q$2:$Q$207,MATCH(A5,masterlist!$C$2:$C$207,0)),INDEX(masterlist!$P$2:$P$207,MATCH(A5,masterlist!$C$2:$C$207,0))),\"\")","v":"WHO collaborating centres"},{"$f":"IFERROR(HYPERLINK(INDEX(masterlist!$S$2:$S$207,MATCH(A5,masterlist!$C$2:$C$207,0)),INDEX(masterlist!$R$2:$R$207,MATCH(A5,masterlist!$C$2:$C$207,0))),\"\")","v":"FAO reference centre"},{"$f":"IFERROR(HYPERLINK(INDEX(masterlist!$U$2:$U$207,MATCH(A5,masterlist!$C$2:$C$207,0)),INDEX(masterlist!$T$2:$T$207,MATCH(A5,masterlist!$C$2:$C$207,0))),\"\")","v":"WHO expert consultation on rabies"}]
[{"$f":"IFERROR(INDEX(masterlist!$A$2:$F$207,SMALL(IF(masterlist!$B$2:$B$207=\"LAB\",ROW(masterlist!$A$2:$F$207)-1),ROW(2:2)),3),\"\")","v":"LAB-Env-0-2"},{"$f":"IFERROR(INDEX(masterlist!$D$2:$D$207,MATCH(A6,masterlist!$C$2:$C$207,0)),\"\")","v":"Envoi de prélèvements"},{"$f":"IFERROR(INDEX(masterlist!$E$2:$E$207,MATCH(A6,masterlist!$C$2:$C$207,0)),\"\")","v":0},{"$f":"IFERROR(INDEX(masterlist!$G$2:$G$207,MATCH(A6,masterlist!$C$2:$C$207,0)),\"\")","v":"Avez-vous confirmé la présence de rage animale ou humaine dans votre pays au moyen d’un diagnostic au laboratoire?"},{"$f":"IFERROR(INDEX(masterlist!$H$2:$H$207,MATCH(A6,masterlist!$C$2:$C$207,0)),\"\")","v":"Vous pouvez répondre “Oui” si un prélèvement a été envoyé à un laboratoire international de référence pour la rage (OMSA), un centre collaborateur (OMS) ou un centre de référence (FAO).\n \nOU\n \nSi le cas a été confirmé dans un laboratoire national utilisant un test recommandé par l’OMSA."},1,null,{"$f":"IFERROR(HYPERLINK(INDEX(masterlist!$M$2:$M$207,MATCH(A6,masterlist!$C$2:$C$207,0)),INDEX(masterlist!$L$2:$L$207,MATCH(A6,masterlist!$C$2:$C$207,0))),\"\")","v":"Simple-techniques-for animal brain-sampling"},{"$f":"IFERROR(HYPERLINK(INDEX(masterlist!$O$2:$O$207,MATCH(A6,masterlist!$C$2:$C$207,0)),INDEX(masterlist!$N$2:$N$207,MATCH(A6,masterlist!$C$2:$C$207,0))),\"\")","v":"3.6 Human samples"},{"$f":"IFERROR(HYPERLINK(INDEX(masterlist!$Q$2:$Q$207,MATCH(A6,masterlist!$C$2:$C$207,0)),INDEX(masterlist!$P$2:$P$207,MATCH(A6,masterlist!$C$2:$C$207,0))),\"\")","v":0},{"$f":"IFERROR(HYPERLINK(INDEX(masterlist!$S$2:$S$207,MATCH(A6,masterlist!$C$2:$C$207,0)),INDEX(masterlist!$R$2:$R$207,MATCH(A6,masterlist!$C$2:$C$207,0))),\"\")","v":0},{"$f":"IFERROR(HYPERLINK(INDEX(masterlist!$U$2:$U$207,MATCH(A6,masterlist!$C$2:$C$207,0)),INDEX(masterlist!$T$2:$T$207,MATCH(A6,masterlist!$C$2:$C$207,0))),\"\")","v":0}]
[{"$f":"IFERROR(INDEX(masterlist!$A$2:$F$207,SMALL(IF(masterlist!$B$2:$B$207=\"LAB\",ROW(masterlist!$A$2:$F$207)-1),ROW(3:3)),3),\"\")","v":"LAB-Cap-1-3"},{"$f":"IFERROR(INDEX(masterlist!$D$2:$D$207,MATCH(A7,masterlist!$C$2:$C$207,0)),\"\")","v":"Capacités des laboratoires et tests"},{"$f":"IFERROR(INDEX(masterlist!$E$2:$E$207,MATCH(A7,masterlist!$C$2:$C$207,0)),\"\")","v":1},{"$f":"IFERROR(INDEX(masterlist!$G$2:$G$207,MATCH(A7,masterlist!$C$2:$C$207,0)),\"\")","v":"Le diagnostic de rage au moyen d’un test recommandé par l’OMSA est-il réalisé dans au moins un laboratoire national (laboratoire de santé vétérinaire OU humaine) ? "},{"$f":"IFERROR(INDEX(masterlist!$H$2:$H$207,MATCH(A7,masterlist!$C$2:$C$207,0)),\"\")","v":"Vous pouvez répondre “Oui” si des laboratoires du pays réalisent effectivement des diagnostics sur prélèvements, indépendamment de la fréquence des tests et de l’espèce concernée (autrement dit, il peut s’agir de diagnostic de rage sur prélèvement humain ou sur prélèvement animal. Il n’est pas nécessaire que ce soit les deux)."},1,null,{"$f":"IFERROR(HYPERLINK(INDEX(masterlist!$M$2:$M$207,MATCH(A7,masterlist!$C$2:$C$207,0)),INDEX(masterlist!$L$2:$L$207,MATCH(A7,masterlist!$C$2:$C$207,0))),\"\")","v":"3.1.8 Minimum laboratory requirements"},{"$f":"IFERROR(HYPERLINK(INDEX(masterlist!$O$2:$O$207,MATCH(A7,masterlist!$C$2:$C$207,0)),INDEX(masterlist!$N$2:$N$207,MATCH(A7,masterlist!$C$2:$C$207,0))),\"\")","v":"OIE Manual of Diagnostic Tests and Vaccines  for Terrestrial Animals  "},{"$f":"IFERROR(HYPERLINK(INDEX(masterlist!$Q$2:$Q$207,MATCH(A7,masterlist!$C$2:$C$207,0)),INDEX(masterlist!$P$2:$P$207,MATCH(A7,masterlist!$C$2:$C$207,0))),\"\")","v":" Laboratory biorisk management/"},{"$f":"IFERROR(HYPERLINK(INDEX(masterlist!$S$2:$S$207,MATCH(A7,masterlist!$C$2:$C$207,0)),INDEX(masterlist!$R$2:$R$207,MATCH(A7,masterlist!$C$2:$C$207,0))),\"\")","v":"4. Laboratory rabies diagnosis"},{"$f":"IFERROR(HYPERLINK(INDEX(masterlist!$U$2:$U$207,MATCH(A7,masterlist!$C$2:$C$207,0)),INDEX(masterlist!$T$2:$T$207,MATCH(A7,masterlist!$C$2:$C$207,0))),\"\")","v":0}]
[{"$f":"IFERROR(INDEX(masterlist!$A$2:$F$207,SMALL(IF(masterlist!$B$2:$B$207=\"LAB\",ROW(masterlist!$A$2:$F$207)-1),ROW(4:4)),3),\"\")","v":"LAB-Cap-1-4"},{"$f":"IFERROR(INDEX(masterlist!$D$2:$D$207,MATCH(A8,masterlist!$C$2:$C$207,0)),\"\")","v":"Capacités des laboratoires et tests"},{"$f":"IFERROR(INDEX(masterlist!$E$2:$E$207,MATCH(A8,masterlist!$C$2:$C$207,0)),\"\")","v":1},{"$f":"IFERROR(INDEX(masterlist!$G$2:$G$207,MATCH(A8,masterlist!$C$2:$C$207,0)),\"\")","v":"Des prélèvements suspects de rage – provenant d’animaux OU d’êtres humains– sont-ils analysés dans le pays plusieurs fois par an ?  "},{"$f":"IFERROR(INDEX(masterlist!$H$2:$H$207,MATCH(A8,masterlist!$C$2:$C$207,0)),\"\")","v":"Vous pouvez répondre “Oui” si les laboratoires du pays reçoivent des prélèvements animaux ou humains certains mois de l’année."},1,null,{"$f":"IFERROR(HYPERLINK(INDEX(masterlist!$M$2:$M$207,MATCH(A8,masterlist!$C$2:$C$207,0)),INDEX(masterlist!$L$2:$L$207,MATCH(A8,masterlist!$C$2:$C$207,0))),\"\")","v":"Simple-techniques-for animal brain-sampling"},{"$f":"IFERROR(HYPERLINK(INDEX(masterlist!$O$2:$O$207,MATCH(A8,masterlist!$C$2:$C$207,0)),INDEX(masterlist!$N$2:$N$207,MATCH(A8,masterlist!$C$2:$C$207,0))),\"\")","v":"Manual of Diagnostic Tests and Vaccines for Terrestrial Animals 2016"},{"$f":"IFERROR(HYPERLINK(INDEX(masterlist!$Q$2:$Q$207,MATCH(A8,masterlist!$C$2:$C$207,0)),INDEX(masterlist!$P$2:$P$207,MATCH(A8,masterlist!$C$2:$C$207,0))),\"\")","v":"WHO guidance on regulations for the transport of infectious substances"},{"$f":"IFERROR(HYPERLINK(INDEX(masterlist!$S$2:$S$207,MATCH(A8,masterlist!$C$2:$C$207,0)),INDEX(masterlist!$R$2:$R$207,MATCH(A8,masterlist!$C$2:$C$207,0))),\"\")","v":0},{"$f":"IFERROR(HYPERLINK(INDEX(masterlist!$U$2:$U$207,MATCH(A8,masterlist!$C$2:$C$207,0)),INDEX(masterlist!$T$2:$T$207,MATCH(A8,masterlist!$C$2:$C$207,0))),\"\")","v":0}]
[{"$f":"IFERROR(INDEX(masterlist!$A$2:$F$207,SMALL(IF(masterlist!$B$2:$B$207=\"LAB\",ROW(masterlist!$A$2:$F$207)-1),ROW(5:5)),3),\"\")","v":"LAB-Cap-2-5"},{"$f":"IFERROR(INDEX(masterlist!$D$2:$D$207,MATCH(A9,masterlist!$C$2:$C$207,0)),\"\")","v":"Capacités des laboratoires et tests"},{"$f":"IFERROR(INDEX(masterlist!$E$2:$E$207,MATCH(A9,masterlist!$C$2:$C$207,0)),\"\")","v":2},{"$f":"IFERROR(INDEX(masterlist!$G$2:$G$207,MATCH(A9,masterlist!$C$2:$C$207,0)),\"\")","v":"Votre pays procède-t-il à des tests de compétence auprès d'un laboratoire internationalement reconnu ?"},{"$f":"IFERROR(INDEX(masterlist!$H$2:$H$207,MATCH(A9,masterlist!$C$2:$C$207,0)),\"\")","v":"Par exemple laboratoire de référence de l’OMSA, centre collaborateur OMS, centre de référence FAO, etc. "},0,null,{"$f":"IFERROR(HYPERLINK(INDEX(masterlist!$M$2:$M$207,MATCH(A9,masterlist!$C$2:$C$207,0)),INDEX(masterlist!$L$2:$L$207,MATCH(A9,masterlist!$C$2:$C$207,0))),\"\")","v":"6.7 International databases"},{"$f":"IFERROR(HYPERLINK(INDEX(masterlist!$O$2:$O$207,MATCH(A9,masterlist!$C$2:$C$207,0)),INDEX(masterlist!$N$2:$N$207,MATCH(A9,masterlist!$C$2:$C$207,0))),\"\")","v":0},{"$f":"IFERROR(HYPERLINK(INDEX(masterlist!$Q$2:$Q$207,MATCH(A9,masterlist!$C$2:$C$207,0)),INDEX(masterlist!$P$2:$P$207,MATCH(A9,masterlist!$C$2:$C$207,0))),\"\")","v":0},{"$f":"IFERROR(HYPERLINK(INDEX(masterlist!$S$2:$S$207,MATCH(A9,masterlist!$C$2:$C$207,0)),INDEX(masterlist!$R$2:$R$207,MATCH(A9,masterlist!$C$2:$C$207,0))),\"\")","v":0},{"$f":"IFERROR(HYPERLINK(INDEX(masterlist!$U$2:$U$207,MATCH(A9,masterlist!$C$2:$C$207,0)),INDEX(masterlist!$T$2:$T$207,MATCH(A9,masterlist!$C$2:$C$207,0))),\"\")","v":0}]
[{"$f":"IFERROR(INDEX(masterlist!$A$2:$F$207,SMALL(IF(masterlist!$B$2:$B$207=\"LAB\",ROW(masterlist!$A$2:$F$207)-1),ROW(6:6)),3),\"\")","v":"LAB-Cap-2-6"},{"$f":"IFERROR(INDEX(masterlist!$D$2:$D$207,MATCH(A10,masterlist!$C$2:$C$207,0)),\"\")","v":"Capacités des laboratoires et tests"},{"$f":"IFERROR(INDEX(masterlist!$E$2:$E$207,MATCH(A10,masterlist!$C$2:$C$207,0)),\"\")","v":2},{"$f":"IFERROR(INDEX(masterlist!$G$2:$G$207,MATCH(A10,masterlist!$C$2:$C$207,0)),\"\")","v":"Une capacité de collecte et de transport réguliers des prélèvements a-t-elle été mise en place et fonctionne-t-elle ?"},{"$f":"IFERROR(INDEX(masterlist!$H$2:$H$207,MATCH(A10,masterlist!$C$2:$C$207,0)),\"\")","v":"Cette capacité comprend les caractéristiques suivantes : système de calcul des coûts et de paiement pour le transport des prélèvements, personnes de contact, entreprises de transport/véhicules, emballage, etc."},0,null,{"$f":"IFERROR(HYPERLINK(INDEX(masterlist!$M$2:$M$207,MATCH(A10,masterlist!$C$2:$C$207,0)),INDEX(masterlist!$L$2:$L$207,MATCH(A10,masterlist!$C$2:$C$207,0))),\"\")","v":"OIE Manual of Diagnostic Tests and Vaccines  for Terrestrial Animals "},{"$f":"IFERROR(HYPERLINK(INDEX(masterlist!$O$2:$O$207,MATCH(A10,masterlist!$C$2:$C$207,0)),INDEX(masterlist!$N$2:$N$207,MATCH(A10,masterlist!$C$2:$C$207,0))),\"\")","v":"Laboratory biorisk management"},{"$f":"IFERROR(HYPERLINK(INDEX(masterlist!$Q$2:$Q$207,MATCH(A10,masterlist!$C$2:$C$207,0)),INDEX(masterlist!$P$2:$P$207,MATCH(A10,masterlist!$C$2:$C$207,0))),\"\")","v":"5.3.1-Rabies-surveillance"},{"$f":"IFERROR(HYPERLINK(INDEX(masterlist!$S$2:$S$207,MATCH(A10,masterlist!$C$2:$C$207,0)),INDEX(masterlist!$R$2:$R$207,MATCH(A10,masterlist!$C$2:$C$207,0))),\"\")","v":0},{"$f":"IFERROR(HYPERLINK(INDEX(masterlist!$U$2:$U$207,MATCH(A10,masterlist!$C$2:$C$207,0)),INDEX(masterlist!$T$2:$T$207,MATCH(A10,masterlist!$C$2:$C$207,0))),\"\")","v":0}]
[{"$f":"IFERROR(INDEX(masterlist!$A$2:$F$207,SMALL(IF(masterlist!$B$2:$B$207=\"LAB\",ROW(masterlist!$A$2:$F$207)-1),ROW(7:7)),3),\"\")","v":"LAB-Cap-2-7"},{"$f":"IFERROR(INDEX(masterlist!$D$2:$D$207,MATCH(A11,masterlist!$C$2:$C$207,0)),\"\")","v":"Capacités des laboratoires et tests"},{"$f":"IFERROR(INDEX(masterlist!$E$2:$E$207,MATCH(A11,masterlist!$C$2:$C$207,0)),\"\")","v":2},{"$f":"IFERROR(INDEX(masterlist!$G$2:$G$207,MATCH(A11,masterlist!$C$2:$C$207,0)),\"\")","v":"Des prélèvements d’animaux suspects de rage sont-ils analysés dans le pays pendant la plupart (sinon tous) des mois de l’année ?"},{"$f":"IFERROR(INDEX(masterlist!$H$2:$H$207,MATCH(A11,masterlist!$C$2:$C$207,0)),\"\")","v":"Vous pouvez répondre « Oui » si les prélèvements sont régulièrement livrés au laboratoire, quelles que soient les quantités soumises."},0,null,{"$f":"IFERROR(HYPERLINK(INDEX(masterlist!$M$2:$M$207,MATCH(A11,masterlist!$C$2:$C$207,0)),INDEX(masterlist!$L$2:$L$207,MATCH(A11,masterlist!$C$2:$C$207,0))),\"\")","v":"3.1.8 Minimum laboratory requirements"},{"$f":"IFERROR(HYPERLINK(INDEX(masterlist!$O$2:$O$207,MATCH(A11,masterlist!$C$2:$C$207,0)),INDEX(masterlist!$N$2:$N$207,MATCH(A11,masterlist!$C$2:$C$207,0))),\"\")","v":"Laboratory biorisk management"},{"$f":"IFERROR(HYPERLINK(INDEX(masterlist!$Q$2:$Q$207,MATCH(A11,masterlist!$C$2:$C$207,0)),INDEX(masterlist!$P$2:$P$207,MATCH(A11,masterlist!$C$2:$C$207,0))),\"\")","v":0},{"$f":"IFERROR(HYPERLINK(INDEX(masterlist!$S$2:$S$207,MATCH(A11,masterlist!$C$2:$C$207,0)),INDEX(masterlist!$R$2:$R$207,MATCH(A11,masterlist!$C$2:$C$207,0))),\"\")","v":0},{"$f":"IFERROR(HYPERLINK(INDEX(masterlist!$U$2:$U$207,MATCH(A11,masterlist!$C$2:$C$207,0)),INDEX(masterlist!$T$2:$T$207,MATCH(A11,masterlist!$C$2:$C$207,0))),\"\")","v":0}]
[{"$f":"IFERROR(INDEX(masterlist!$A$2:$F$207,SMALL(IF(masterlist!$B$2:$B$207=\"LAB\",ROW(masterlist!$A$2:$F$207)-1),ROW(8:8)),3),\"\")","v":"LAB-Cap-2-8"},{"$f":"IFERROR(INDEX(masterlist!$D$2:$D$207,MATCH(A12,masterlist!$C$2:$C$207,0)),\"\")","v":"Capacités des laboratoires et tests"},{"$f":"IFERROR(INDEX(masterlist!$E$2:$E$207,MATCH(A12,masterlist!$C$2:$C$207,0)),\"\")","v":2},{"$f":"IFERROR(INDEX(masterlist!$G$2:$G$207,MATCH(A12,masterlist!$C$2:$C$207,0)),\"\")","v":"Avez-vous inclus une surveillance active (animaux trouvés morts, animaux tués sur la route, etc.) dans vos activités de surveillance de routine dans l'ensemble du pays ?"},{"$f":"IFERROR(INDEX(masterlist!$H$2:$H$207,MATCH(A12,masterlist!$C$2:$C$207,0)),\"\")","v":"La réponse ne peut être “Oui” que si une surveillance active est réalisée dans l’ensemble du pays. \nTout ceci est réalisé EN PLUS des prélèvements de cas de morsure humaine, d’exposition, d’animaux agressifs, etc. "},0,null,{"$f":"IFERROR(HYPERLINK(INDEX(masterlist!$M$2:$M$207,MATCH(A12,masterlist!$C$2:$C$207,0)),INDEX(masterlist!$L$2:$L$207,MATCH(A12,masterlist!$C$2:$C$207,0))),\"\")","v":"WHO International Health Regulations"},{"$f":"IFERROR(HYPERLINK(INDEX(masterlist!$O$2:$O$207,MATCH(A12,masterlist!$C$2:$C$207,0)),INDEX(masterlist!$N$2:$N$207,MATCH(A12,masterlist!$C$2:$C$207,0))),\"\")","v":"OIE Terrestrial Animal Health Code"},{"$f":"IFERROR(HYPERLINK(INDEX(masterlist!$Q$2:$Q$207,MATCH(A12,masterlist!$C$2:$C$207,0)),INDEX(masterlist!$P$2:$P$207,MATCH(A12,masterlist!$C$2:$C$207,0))),\"\")","v":0},{"$f":"IFERROR(HYPERLINK(INDEX(masterlist!$S$2:$S$207,MATCH(A12,masterlist!$C$2:$C$207,0)),INDEX(masterlist!$R$2:$R$207,MATCH(A12,masterlist!$C$2:$C$207,0))),\"\")","v":0},{"$f":"IFERROR(HYPERLINK(INDEX(masterlist!$U$2:$U$207,MATCH(A12,masterlist!$C$2:$C$207,0)),INDEX(masterlist!$T$2:$T$207,MATCH(A12,masterlist!$C$2:$C$207,0))),\"\")","v":0}]
[{"$f":"IFERROR(INDEX(masterlist!$A$2:$F$207,SMALL(IF(masterlist!$B$2:$B$207=\"LAB\",ROW(masterlist!$A$2:$F$207)-1),ROW(9:9)),3),\"\")","v":"LAB-Cap-3-9"},{"$f":"IFERROR(INDEX(masterlist!$D$2:$D$207,MATCH(A13,masterlist!$C$2:$C$207,0)),\"\")","v":"Capacités des laboratoires et tests"},{"$f":"IFERROR(INDEX(masterlist!$E$2:$E$207,MATCH(A13,masterlist!$C$2:$C$207,0)),\"\")","v":3},{"$f":"IFERROR(INDEX(masterlist!$G$2:$G$207,MATCH(A13,masterlist!$C$2:$C$207,0)),\"\")","v":"L’accès à un diagnostic de laboratoire fiable et rapide est-il possible dans tout le pays pour les prélèvements d'animaux (et si possible également pour les prélèvements humains et d'animaux sauvages) ?"},{"$f":"IFERROR(INDEX(masterlist!$H$2:$H$207,MATCH(A13,masterlist!$C$2:$C$207,0)),\"\")","v":"Vous pouvez répondre “Oui” si vous pouvez affirmer avec assurance que les prélèvements peuvent être envoyés pour être testés sans délai depuis n’importe quel endroit du pays. "},0,null,{"$f":"IFERROR(HYPERLINK(INDEX(masterlist!$M$2:$M$207,MATCH(A13,masterlist!$C$2:$C$207,0)),INDEX(masterlist!$L$2:$L$207,MATCH(A13,masterlist!$C$2:$C$207,0))),\"\")","v":"3.1.8-laboratory diagnosis"},{"$f":"IFERROR(HYPERLINK(INDEX(masterlist!$O$2:$O$207,MATCH(A13,masterlist!$C$2:$C$207,0)),INDEX(masterlist!$N$2:$N$207,MATCH(A13,masterlist!$C$2:$C$207,0))),\"\")","v":"4. Laboratory rabies diagnosis"},{"$f":"IFERROR(HYPERLINK(INDEX(masterlist!$Q$2:$Q$207,MATCH(A13,masterlist!$C$2:$C$207,0)),INDEX(masterlist!$P$2:$P$207,MATCH(A13,masterlist!$C$2:$C$207,0))),\"\")","v":0},{"$f":"IFERROR(HYPERLINK(INDEX(masterlist!$S$2:$S$207,MATCH(A13,masterlist!$C$2:$C$207,0)),INDEX(masterlist!$R$2:$R$207,MATCH(A13,masterlist!$C$2:$C$207,0))),\"\")","v":0},{"$f":"IFERROR(HYPERLINK(INDEX(masterlist!$U$2:$U$207,MATCH(A13,masterlist!$C$2:$C$207,0)),INDEX(masterlist!$T$2:$T$207,MATCH(A13,masterlist!$C$2:$C$207,0))),\"\")","v":0}]
[{"$f":"IFERROR(INDEX(masterlist!$A$2:$F$207,SMALL(IF(masterlist!$B$2:$B$207=\"LAB\",ROW(masterlist!$A$2:$F$207)-1),ROW(10:10)),3),\"\")","v":"LAB-Cap-3-10"},{"$f":"IFERROR(INDEX(masterlist!$D$2:$D$207,MATCH(A14,masterlist!$C$2:$C$207,0)),\"\")","v":"Capacités des laboratoires et tests"},{"$f":"IFERROR(INDEX(masterlist!$E$2:$E$207,MATCH(A14,masterlist!$C$2:$C$207,0)),\"\")","v":3},{"$f":"IFERROR(INDEX(masterlist!$G$2:$G$207,MATCH(A14,masterlist!$C$2:$C$207,0)),\"\")","v":"Evaluez-vous régulièrement votre capacité à analyser avec précision des prélèvements suspects de rage ? "},{"$f":"IFERROR(INDEX(masterlist!$H$2:$H$207,MATCH(A14,masterlist!$C$2:$C$207,0)),\"\")","v":"Par exemple, double lecture, soumission de prélèvements à un laboratoire international, tests de compétence, confirmation moléculaire (par ex. PCR)."},0,null,{"$f":"IFERROR(HYPERLINK(INDEX(masterlist!$M$2:$M$207,MATCH(A14,masterlist!$C$2:$C$207,0)),INDEX(masterlist!$L$2:$L$207,MATCH(A14,masterlist!$C$2:$C$207,0))),\"\")","v":0},{"$f":"IFERROR(HYPERLINK(INDEX(masterlist!$O$2:$O$207,MATCH(A14,masterlist!$C$2:$C$207,0)),INDEX(masterlist!$N$2:$N$207,MATCH(A14,masterlist!$C$2:$C$207,0))),\"\")","v":0},{"$f":"IFERROR(HYPERLINK(INDEX(masterlist!$Q$2:$Q$207,MATCH(A14,masterlist!$C$2:$C$207,0)),INDEX(masterlist!$P$2:$P$207,MATCH(A14,masterlist!$C$2:$C$207,0))),\"\")","v":0},{"$f":"IFERROR(HYPERLINK(INDEX(masterlist!$S$2:$S$207,MATCH(A14,masterlist!$C$2:$C$207,0)),INDEX(masterlist!$R$2:$R$207,MATCH(A14,masterlist!$C$2:$C$207,0))),\"\")","v":0},{"$f":"IFERROR(HYPERLINK(INDEX(masterlist!$U$2:$U$207,MATCH(A14,masterlist!$C$2:$C$207,0)),INDEX(masterlist!$T$2:$T$207,MATCH(A14,masterlist!$C$2:$C$207,0))),\"\")","v":0}]
[{"$f":"IFERROR(INDEX(masterlist!$A$2:$F$207,SMALL(IF(masterlist!$B$2:$B$207=\"LAB\",ROW(masterlist!$A$2:$F$207)-1),ROW(11:11)),3),\"\")","v":"LAB-Cap-4-11"},{"$f":"IFERROR(INDEX(masterlist!$D$2:$D$207,MATCH(A15,masterlist!$C$2:$C$207,0)),\"\")","v":"Capacités des laboratoires et tests"},{"$f":"IFERROR(INDEX(masterlist!$E$2:$E$207,MATCH(A15,masterlist!$C$2:$C$207,0)),\"\")","v":4},{"$f":"IFERROR(INDEX(masterlist!$G$2:$G$207,MATCH(A15,masterlist!$C$2:$C$207,0)),\"\")","v":"Maintenant qu’il y a très peu de cas de rage animale dans votre pays, existe-t-il un test de laboratoire en cours pour tous les cas suspects chez les chiens dans le pays ? "},{"$f":"IFERROR(INDEX(masterlist!$H$2:$H$207,MATCH(A15,masterlist!$C$2:$C$207,0)),\"\")","v":"Vous ne pouvez répondre “Oui” que si votre pays a peu de cas de rage animale grâce aux campagnes de vaccination canine réussies."},0,null,{"$f":"IFERROR(HYPERLINK(INDEX(masterlist!$M$2:$M$207,MATCH(A15,masterlist!$C$2:$C$207,0)),INDEX(masterlist!$L$2:$L$207,MATCH(A15,masterlist!$C$2:$C$207,0))),\"\")","v":"OIE Terrestrial Animal Health Code"},{"$f":"IFERROR(HYPERLINK(INDEX(masterlist!$O$2:$O$207,MATCH(A15,masterlist!$C$2:$C$207,0)),INDEX(masterlist!$N$2:$N$207,MATCH(A15,masterlist!$C$2:$C$207,0))),\"\")","v":0},{"$f":"IFERROR(HYPERLINK(INDEX(masterlist!$Q$2:$Q$207,MATCH(A15,masterlist!$C$2:$C$207,0)),INDEX(masterlist!$P$2:$P$207,MATCH(A15,masterlist!$C$2:$C$207,0))),\"\")","v":0},{"$f":"IFERROR(HYPERLINK(INDEX(masterlist!$S$2:$S$207,MATCH(A15,masterlist!$C$2:$C$207,0)),INDEX(masterlist!$R$2:$R$207,MATCH(A15,masterlist!$C$2:$C$207,0))),\"\")","v":0},{"$f":"IFERROR(HYPERLINK(INDEX(masterlist!$U$2:$U$207,MATCH(A15,masterlist!$C$2:$C$207,0)),INDEX(masterlist!$T$2:$T$207,MATCH(A15,masterlist!$C$2:$C$207,0))),\"\")","v":0}]
[{"$f":"IFERROR(INDEX(masterlist!$A$2:$F$207,SMALL(IF(masterlist!$B$2:$B$207=\"LAB\",ROW(masterlist!$A$2:$F$207)-1),ROW(12:12)),3),\"\")","v":"LAB-Cap-4-12"},{"$f":"IFERROR(INDEX(masterlist!$D$2:$D$207,MATCH(A16,masterlist!$C$2:$C$207,0)),\"\")","v":"Capacités des laboratoires et tests"},{"$f":"IFERROR(INDEX(masterlist!$E$2:$E$207,MATCH(A16,masterlist!$C$2:$C$207,0)),\"\")","v":4},{"$f":"IFERROR(INDEX(masterlist!$G$2:$G$207,MATCH(A16,masterlist!$C$2:$C$207,0)),\"\")","v":"Les variants du virus rabique circulants font-ils l’objet d’une caractérisation et d’une analyse régulières par un laboratoire national ou international ? "},{"$f":"IFERROR(INDEX(masterlist!$H$2:$H$207,MATCH(A16,masterlist!$C$2:$C$207,0)),\"\")","v":"Nom du laboratoire/de l’institut où les tests moléculaires sont réalisés."},0,null,{"$f":"IFERROR(HYPERLINK(INDEX(masterlist!$M$2:$M$207,MATCH(A16,masterlist!$C$2:$C$207,0)),INDEX(masterlist!$L$2:$L$207,MATCH(A16,masterlist!$C$2:$C$207,0))),\"\")","v":"OIE reference laboratories"},{"$f":"IFERROR(HYPERLINK(INDEX(masterlist!$O$2:$O$207,MATCH(A16,masterlist!$C$2:$C$207,0)),INDEX(masterlist!$N$2:$N$207,MATCH(A16,masterlist!$C$2:$C$207,0))),\"\")","v":"WHO collaborating centres  "},{"$f":"IFERROR(HYPERLINK(INDEX(masterlist!$Q$2:$Q$207,MATCH(A16,masterlist!$C$2:$C$207,0)),INDEX(masterlist!$P$2:$P$207,MATCH(A16,masterlist!$C$2:$C$207,0))),\"\")","v":"WHO expert consultation on rabies"},{"$f":"IFERROR(HYPERLINK(INDEX(masterlist!$S$2:$S$207,MATCH(A16,masterlist!$C$2:$C$207,0)),INDEX(masterlist!$R$2:$R$207,MATCH(A16,masterlist!$C$2:$C$207,0))),\"\")","v":"FAO reference centre"},{"$f":"IFERROR(HYPERLINK(INDEX(masterlist!$U$2:$U$207,MATCH(A16,masterlist!$C$2:$C$207,0)),INDEX(masterlist!$T$2:$T$207,MATCH(A16,masterlist!$C$2:$C$207,0))),\"\")","v":0}]
[{"$f":"IFERROR(INDEX(masterlist!$A$2:$F$207,SMALL(IF(masterlist!$B$2:$B$207=\"LAB\",ROW(masterlist!$A$2:$F$207)-1),ROW(13:13)),3),\"\")","v":"LAB-Cap-4-13"},{"$f":"IFERROR(INDEX(masterlist!$D$2:$D$207,MATCH(A17,masterlist!$C$2:$C$207,0)),\"\")","v":"Capacités des laboratoires et tests"},{"$f":"IFERROR(INDEX(masterlist!$E$2:$E$207,MATCH(A17,masterlist!$C$2:$C$207,0)),\"\")","v":4},{"$f":"IFERROR(INDEX(masterlist!$G$2:$G$207,MATCH(A17,masterlist!$C$2:$C$207,0)),\"\")","v":"Si des variants de rage chez la faune sauvage terrestre sont présents dans le pays, des prélèvements de faune sauvage sont-ils soumis plus régulièrement au laboratoire pour diagnostiquer la rage ?"},{"$f":"IFERROR(INDEX(masterlist!$H$2:$H$207,MATCH(A17,masterlist!$C$2:$C$207,0)),\"\")","v":"Si des variants de rage chez la faune sauvage terrestre sont présents dans le pays, vous pouvez répondre « Oui »."},0,null,{"$f":"IFERROR(HYPERLINK(INDEX(masterlist!$M$2:$M$207,MATCH(A17,masterlist!$C$2:$C$207,0)),INDEX(masterlist!$L$2:$L$207,MATCH(A17,masterlist!$C$2:$C$207,0))),\"\")","v":0},{"$f":"IFERROR(HYPERLINK(INDEX(masterlist!$O$2:$O$207,MATCH(A17,masterlist!$C$2:$C$207,0)),INDEX(masterlist!$N$2:$N$207,MATCH(A17,masterlist!$C$2:$C$207,0))),\"\")","v":0},{"$f":"IFERROR(HYPERLINK(INDEX(masterlist!$Q$2:$Q$207,MATCH(A17,masterlist!$C$2:$C$207,0)),INDEX(masterlist!$P$2:$P$207,MATCH(A17,masterlist!$C$2:$C$207,0))),\"\")","v":0},{"$f":"IFERROR(HYPERLINK(INDEX(masterlist!$S$2:$S$207,MATCH(A17,masterlist!$C$2:$C$207,0)),INDEX(masterlist!$R$2:$R$207,MATCH(A17,masterlist!$C$2:$C$207,0))),\"\")","v":0},{"$f":"IFERROR(HYPERLINK(INDEX(masterlist!$U$2:$U$207,MATCH(A17,masterlist!$C$2:$C$207,0)),INDEX(masterlist!$T$2:$T$207,MATCH(A17,masterlist!$C$2:$C$207,0))),\"\")","v":0}]
[{"$f":"IFERROR(INDEX(masterlist!$A$2:$F$207,SMALL(IF(masterlist!$B$2:$B$207=\"LAB\",ROW(masterlist!$A$2:$F$207)-1),ROW(14:14)),3),\"\")","v":"LAB-Cap-5-14"},{"$f":"IFERROR(INDEX(masterlist!$D$2:$D$207,MATCH(A18,masterlist!$C$2:$C$207,0)),\"\")","v":"Capacités des laboratoires et tests"},{"$f":"IFERROR(INDEX(masterlist!$E$2:$E$207,MATCH(A18,masterlist!$C$2:$C$207,0)),\"\")","v":5},{"$f":"IFERROR(INDEX(masterlist!$G$2:$G$207,MATCH(A18,masterlist!$C$2:$C$207,0)),\"\")","v":"Même si vous êtes désormais exempts de rage canine grâce aux campagnes de vaccination de masse réussies, des enquêtes de laboratoire sont-elles en cours pour tous les cas suspects chez les espèces domestiques et les espèces sauvages terrestres dans le pays ? "},{"$f":"IFERROR(INDEX(masterlist!$H$2:$H$207,MATCH(A18,masterlist!$C$2:$C$207,0)),\"\")","v":"Vous ne devez répondre “Oui” que si votre pays n’a aucun cas de rage canine à la suite de campagnes de vaccination canine réussies. "},0,null,{"$f":"IFERROR(HYPERLINK(INDEX(masterlist!$M$2:$M$207,MATCH(A18,masterlist!$C$2:$C$207,0)),INDEX(masterlist!$L$2:$L$207,MATCH(A18,masterlist!$C$2:$C$207,0))),\"\")","v":"OIE Terrestrial Animal Health Code"},{"$f":"IFERROR(HYPERLINK(INDEX(masterlist!$O$2:$O$207,MATCH(A18,masterlist!$C$2:$C$207,0)),INDEX(masterlist!$N$2:$N$207,MATCH(A18,masterlist!$C$2:$C$207,0))),\"\")","v":0},{"$f":"IFERROR(HYPERLINK(INDEX(masterlist!$Q$2:$Q$207,MATCH(A18,masterlist!$C$2:$C$207,0)),INDEX(masterlist!$P$2:$P$207,MATCH(A18,masterlist!$C$2:$C$207,0))),\"\")","v":0},{"$f":"IFERROR(HYPERLINK(INDEX(masterlist!$S$2:$S$207,MATCH(A18,masterlist!$C$2:$C$207,0)),INDEX(masterlist!$R$2:$R$207,MATCH(A18,masterlist!$C$2:$C$207,0))),\"\")","v":0},{"$f":"IFERROR(HYPERLINK(INDEX(masterlist!$U$2:$U$207,MATCH(A18,masterlist!$C$2:$C$207,0)),INDEX(masterlist!$T$2:$T$207,MATCH(A18,masterlist!$C$2:$C$207,0))),\"\")","v":0}]
[{"$f":"IFERROR(INDEX(masterlist!$A$2:$F$207,SMALL(IF(masterlist!$B$2:$B$207=\"LAB\",ROW(masterlist!$A$2:$F$207)-1),ROW(15:15)),3),\"\")","v":""},{"$f":"IFERROR(INDEX(masterlist!$D$2:$D$207,MATCH(A19,masterlist!$C$2:$C$207,0)),\"\")","v":""},{"$f":"IFERROR(INDEX(masterlist!$E$2:$E$207,MATCH(A19,masterlist!$C$2:$C$207,0)),\"\")","v":""},{"$f":"IFERROR(INDEX(masterlist!$G$2:$G$207,MATCH(A19,masterlist!$C$2:$C$207,0)),\"\")","v":""},{"$f":"IFERROR(INDEX(masterlist!$H$2:$H$207,MATCH(A19,masterlist!$C$2:$C$207,0)),\"\")","v":""},null,null,{"$f":"IFERROR(HYPERLINK(INDEX(masterlist!$M$2:$M$207,MATCH(A19,masterlist!$C$2:$C$207,0)),INDEX(masterlist!$L$2:$L$207,MATCH(A19,masterlist!$C$2:$C$207,0))),\"\")","v":""},{"$f":"IFERROR(HYPERLINK(INDEX(masterlist!$O$2:$O$207,MATCH(A19,masterlist!$C$2:$C$207,0)),INDEX(masterlist!$N$2:$N$207,MATCH(A19,masterlist!$C$2:$C$207,0))),\"\")","v":""},{"$f":"IFERROR(HYPERLINK(INDEX(masterlist!$Q$2:$Q$207,MATCH(A19,masterlist!$C$2:$C$207,0)),INDEX(masterlist!$P$2:$P$207,MATCH(A19,masterlist!$C$2:$C$207,0))),\"\")","v":""},{"$f":"IFERROR(HYPERLINK(INDEX(masterlist!$S$2:$S$207,MATCH(A19,masterlist!$C$2:$C$207,0)),INDEX(masterlist!$R$2:$R$207,MATCH(A19,masterlist!$C$2:$C$207,0))),\"\")","v":""},{"$f":"IFERROR(HYPERLINK(INDEX(masterlist!$U$2:$U$207,MATCH(A19,masterlist!$C$2:$C$207,0)),INDEX(masterlist!$T$2:$T$207,MATCH(A19,masterlist!$C$2:$C$207,0))),\"\")","v":""}]
[{"$f":"IFERROR(INDEX(masterlist!$A$2:$F$207,SMALL(IF(masterlist!$B$2:$B$207=\"LAB\",ROW(masterlist!$A$2:$F$207)-1),ROW(16:16)),3),\"\")","v":""},{"$f":"IFERROR(INDEX(masterlist!$D$2:$D$207,MATCH(A20,masterlist!$C$2:$C$207,0)),\"\")","v":""},{"$f":"IFERROR(INDEX(masterlist!$E$2:$E$207,MATCH(A20,masterlist!$C$2:$C$207,0)),\"\")","v":""},{"$f":"IFERROR(INDEX(masterlist!$G$2:$G$207,MATCH(A20,masterlist!$C$2:$C$207,0)),\"\")","v":""},{"$f":"IFERROR(INDEX(masterlist!$H$2:$H$207,MATCH(A20,masterlist!$C$2:$C$207,0)),\"\")","v":""},null,null,{"$f":"IFERROR(HYPERLINK(INDEX(masterlist!$M$2:$M$207,MATCH(A20,masterlist!$C$2:$C$207,0)),INDEX(masterlist!$L$2:$L$207,MATCH(A20,masterlist!$C$2:$C$207,0))),\"\")","v":""},{"$f":"IFERROR(HYPERLINK(INDEX(masterlist!$O$2:$O$207,MATCH(A20,masterlist!$C$2:$C$207,0)),INDEX(masterlist!$N$2:$N$207,MATCH(A20,masterlist!$C$2:$C$207,0))),\"\")","v":""},{"$f":"IFERROR(HYPERLINK(INDEX(masterlist!$Q$2:$Q$207,MATCH(A20,masterlist!$C$2:$C$207,0)),INDEX(masterlist!$P$2:$P$207,MATCH(A20,masterlist!$C$2:$C$207,0))),\"\")","v":""},{"$f":"IFERROR(HYPERLINK(INDEX(masterlist!$S$2:$S$207,MATCH(A20,masterlist!$C$2:$C$207,0)),INDEX(masterlist!$R$2:$R$207,MATCH(A20,masterlist!$C$2:$C$207,0))),\"\")","v":""},{"$f":"IFERROR(HYPERLINK(INDEX(masterlist!$U$2:$U$207,MATCH(A20,masterlist!$C$2:$C$207,0)),INDEX(masterlist!$T$2:$T$207,MATCH(A20,masterlist!$C$2:$C$207,0))),\"\")","v":""}]
[{"$f":"IFERROR(INDEX(masterlist!$A$2:$F$207,SMALL(IF(masterlist!$B$2:$B$207=\"LAB\",ROW(masterlist!$A$2:$F$207)-1),ROW(17:17)),3),\"\")","v":""},{"$f":"IFERROR(INDEX(masterlist!$D$2:$D$207,MATCH(A21,masterlist!$C$2:$C$207,0)),\"\")","v":""},{"$f":"IFERROR(INDEX(masterlist!$E$2:$E$207,MATCH(A21,masterlist!$C$2:$C$207,0)),\"\")","v":""},{"$f":"IFERROR(INDEX(masterlist!$G$2:$G$207,MATCH(A21,masterlist!$C$2:$C$207,0)),\"\")","v":""},{"$f":"IFERROR(INDEX(masterlist!$H$2:$H$207,MATCH(A21,masterlist!$C$2:$C$207,0)),\"\")","v":""},null,null,{"$f":"IFERROR(HYPERLINK(INDEX(masterlist!$M$2:$M$207,MATCH(A21,masterlist!$C$2:$C$207,0)),INDEX(masterlist!$L$2:$L$207,MATCH(A21,masterlist!$C$2:$C$207,0))),\"\")","v":""},{"$f":"IFERROR(HYPERLINK(INDEX(masterlist!$O$2:$O$207,MATCH(A21,masterlist!$C$2:$C$207,0)),INDEX(masterlist!$N$2:$N$207,MATCH(A21,masterlist!$C$2:$C$207,0))),\"\")","v":""},{"$f":"IFERROR(HYPERLINK(INDEX(masterlist!$Q$2:$Q$207,MATCH(A21,masterlist!$C$2:$C$207,0)),INDEX(masterlist!$P$2:$P$207,MATCH(A21,masterlist!$C$2:$C$207,0))),\"\")","v":""},{"$f":"IFERROR(HYPERLINK(INDEX(masterlist!$S$2:$S$207,MATCH(A21,masterlist!$C$2:$C$207,0)),INDEX(masterlist!$R$2:$R$207,MATCH(A21,masterlist!$C$2:$C$207,0))),\"\")","v":""},{"$f":"IFERROR(HYPERLINK(INDEX(masterlist!$U$2:$U$207,MATCH(A21,masterlist!$C$2:$C$207,0)),INDEX(masterlist!$T$2:$T$207,MATCH(A21,masterlist!$C$2:$C$207,0))),\"\")","v":""}]
[{"$f":"IFERROR(INDEX(masterlist!$A$2:$F$207,SMALL(IF(masterlist!$B$2:$B$207=\"LAB\",ROW(masterlist!$A$2:$F$207)-1),ROW(18:18)),3),\"\")","v":""},{"$f":"IFERROR(INDEX(masterlist!$D$2:$D$207,MATCH(A22,masterlist!$C$2:$C$207,0)),\"\")","v":""},{"$f":"IFERROR(INDEX(masterlist!$E$2:$E$207,MATCH(A22,masterlist!$C$2:$C$207,0)),\"\")","v":""},{"$f":"IFERROR(INDEX(masterlist!$G$2:$G$207,MATCH(A22,masterlist!$C$2:$C$207,0)),\"\")","v":""},{"$f":"IFERROR(INDEX(masterlist!$H$2:$H$207,MATCH(A22,masterlist!$C$2:$C$207,0)),\"\")","v":""},null,null,{"$f":"IFERROR(HYPERLINK(INDEX(masterlist!$M$2:$M$207,MATCH(A22,masterlist!$C$2:$C$207,0)),INDEX(masterlist!$L$2:$L$207,MATCH(A22,masterlist!$C$2:$C$207,0))),\"\")","v":""},{"$f":"IFERROR(HYPERLINK(INDEX(masterlist!$O$2:$O$207,MATCH(A22,masterlist!$C$2:$C$207,0)),INDEX(masterlist!$N$2:$N$207,MATCH(A22,masterlist!$C$2:$C$207,0))),\"\")","v":""},{"$f":"IFERROR(HYPERLINK(INDEX(masterlist!$Q$2:$Q$207,MATCH(A22,masterlist!$C$2:$C$207,0)),INDEX(masterlist!$P$2:$P$207,MATCH(A22,masterlist!$C$2:$C$207,0))),\"\")","v":""},{"$f":"IFERROR(HYPERLINK(INDEX(masterlist!$S$2:$S$207,MATCH(A22,masterlist!$C$2:$C$207,0)),INDEX(masterlist!$R$2:$R$207,MATCH(A22,masterlist!$C$2:$C$207,0))),\"\")","v":""},{"$f":"IFERROR(HYPERLINK(INDEX(masterlist!$U$2:$U$207,MATCH(A22,masterlist!$C$2:$C$207,0)),INDEX(masterlist!$T$2:$T$207,MATCH(A22,masterlist!$C$2:$C$207,0))),\"\")","v":""}]
[{"$f":"IFERROR(INDEX(masterlist!$A$2:$F$207,SMALL(IF(masterlist!$B$2:$B$207=\"LAB\",ROW(masterlist!$A$2:$F$207)-1),ROW(19:19)),3),\"\")","v":""},{"$f":"IFERROR(INDEX(masterlist!$D$2:$D$207,MATCH(A23,masterlist!$C$2:$C$207,0)),\"\")","v":""},{"$f":"IFERROR(INDEX(masterlist!$E$2:$E$207,MATCH(A23,masterlist!$C$2:$C$207,0)),\"\")","v":""},{"$f":"IFERROR(INDEX(masterlist!$G$2:$G$207,MATCH(A23,masterlist!$C$2:$C$207,0)),\"\")","v":""},{"$f":"IFERROR(INDEX(masterlist!$H$2:$H$207,MATCH(A23,masterlist!$C$2:$C$207,0)),\"\")","v":""},null,null,{"$f":"IFERROR(HYPERLINK(INDEX(masterlist!$M$2:$M$207,MATCH(A23,masterlist!$C$2:$C$207,0)),INDEX(masterlist!$L$2:$L$207,MATCH(A23,masterlist!$C$2:$C$207,0))),\"\")","v":""},{"$f":"IFERROR(HYPERLINK(INDEX(masterlist!$O$2:$O$207,MATCH(A23,masterlist!$C$2:$C$207,0)),INDEX(masterlist!$N$2:$N$207,MATCH(A23,masterlist!$C$2:$C$207,0))),\"\")","v":""},{"$f":"IFERROR(HYPERLINK(INDEX(masterlist!$Q$2:$Q$207,MATCH(A23,masterlist!$C$2:$C$207,0)),INDEX(masterlist!$P$2:$P$207,MATCH(A23,masterlist!$C$2:$C$207,0))),\"\")","v":""},{"$f":"IFERROR(HYPERLINK(INDEX(masterlist!$S$2:$S$207,MATCH(A23,masterlist!$C$2:$C$207,0)),INDEX(masterlist!$R$2:$R$207,MATCH(A23,masterlist!$C$2:$C$207,0))),\"\")","v":""},{"$f":"IFERROR(HYPERLINK(INDEX(masterlist!$U$2:$U$207,MATCH(A23,masterlist!$C$2:$C$207,0)),INDEX(masterlist!$T$2:$T$207,MATCH(A23,masterlist!$C$2:$C$207,0))),\"\")","v":""}]
[{"$f":"IFERROR(INDEX(masterlist!$A$2:$F$207,SMALL(IF(masterlist!$B$2:$B$207=\"LAB\",ROW(masterlist!$A$2:$F$207)-1),ROW(20:20)),3),\"\")","v":""},{"$f":"IFERROR(INDEX(masterlist!$D$2:$D$207,MATCH(A24,masterlist!$C$2:$C$207,0)),\"\")","v":""},{"$f":"IFERROR(INDEX(masterlist!$E$2:$E$207,MATCH(A24,masterlist!$C$2:$C$207,0)),\"\")","v":""},{"$f":"IFERROR(INDEX(masterlist!$G$2:$G$207,MATCH(A24,masterlist!$C$2:$C$207,0)),\"\")","v":""},{"$f":"IFERROR(INDEX(masterlist!$H$2:$H$207,MATCH(A24,masterlist!$C$2:$C$207,0)),\"\")","v":""},null,null,{"$f":"IFERROR(HYPERLINK(INDEX(masterlist!$M$2:$M$207,MATCH(A24,masterlist!$C$2:$C$207,0)),INDEX(masterlist!$L$2:$L$207,MATCH(A24,masterlist!$C$2:$C$207,0))),\"\")","v":""},{"$f":"IFERROR(HYPERLINK(INDEX(masterlist!$O$2:$O$207,MATCH(A24,masterlist!$C$2:$C$207,0)),INDEX(masterlist!$N$2:$N$207,MATCH(A24,masterlist!$C$2:$C$207,0))),\"\")","v":""},{"$f":"IFERROR(HYPERLINK(INDEX(masterlist!$Q$2:$Q$207,MATCH(A24,masterlist!$C$2:$C$207,0)),INDEX(masterlist!$P$2:$P$207,MATCH(A24,masterlist!$C$2:$C$207,0))),\"\")","v":""},{"$f":"IFERROR(HYPERLINK(INDEX(masterlist!$S$2:$S$207,MATCH(A24,masterlist!$C$2:$C$207,0)),INDEX(masterlist!$R$2:$R$207,MATCH(A24,masterlist!$C$2:$C$207,0))),\"\")","v":""},{"$f":"IFERROR(HYPERLINK(INDEX(masterlist!$U$2:$U$207,MATCH(A24,masterlist!$C$2:$C$207,0)),INDEX(masterlist!$T$2:$T$207,MATCH(A24,masterlist!$C$2:$C$207,0))),\"\")","v":""}]
[{"$f":"IFERROR(INDEX(masterlist!$A$2:$F$207,SMALL(IF(masterlist!$B$2:$B$207=\"LAB\",ROW(masterlist!$A$2:$F$207)-1),ROW(21:21)),3),\"\")","v":""},{"$f":"IFERROR(INDEX(masterlist!$D$2:$D$207,MATCH(A25,masterlist!$C$2:$C$207,0)),\"\")","v":""},{"$f":"IFERROR(INDEX(masterlist!$E$2:$E$207,MATCH(A25,masterlist!$C$2:$C$207,0)),\"\")","v":""},{"$f":"IFERROR(INDEX(masterlist!$G$2:$G$207,MATCH(A25,masterlist!$C$2:$C$207,0)),\"\")","v":""},{"$f":"IFERROR(INDEX(masterlist!$H$2:$H$207,MATCH(A25,masterlist!$C$2:$C$207,0)),\"\")","v":""},null,null,{"$f":"IFERROR(HYPERLINK(INDEX(masterlist!$M$2:$M$207,MATCH(A25,masterlist!$C$2:$C$207,0)),INDEX(masterlist!$L$2:$L$207,MATCH(A25,masterlist!$C$2:$C$207,0))),\"\")","v":""},{"$f":"IFERROR(HYPERLINK(INDEX(masterlist!$O$2:$O$207,MATCH(A25,masterlist!$C$2:$C$207,0)),INDEX(masterlist!$N$2:$N$207,MATCH(A25,masterlist!$C$2:$C$207,0))),\"\")","v":""},{"$f":"IFERROR(HYPERLINK(INDEX(masterlist!$Q$2:$Q$207,MATCH(A25,masterlist!$C$2:$C$207,0)),INDEX(masterlist!$P$2:$P$207,MATCH(A25,masterlist!$C$2:$C$207,0))),\"\")","v":""},{"$f":"IFERROR(HYPERLINK(INDEX(masterlist!$S$2:$S$207,MATCH(A25,masterlist!$C$2:$C$207,0)),INDEX(masterlist!$R$2:$R$207,MATCH(A25,masterlist!$C$2:$C$207,0))),\"\")","v":""},{"$f":"IFERROR(HYPERLINK(INDEX(masterlist!$U$2:$U$207,MATCH(A25,masterlist!$C$2:$C$207,0)),INDEX(masterlist!$T$2:$T$207,MATCH(A25,masterlist!$C$2:$C$207,0))),\"\")","v":""}]
[{"$f":"IFERROR(INDEX(masterlist!$A$2:$F$207,SMALL(IF(masterlist!$B$2:$B$207=\"LAB\",ROW(masterlist!$A$2:$F$207)-1),ROW(22:22)),3),\"\")","v":""},{"$f":"IFERROR(INDEX(masterlist!$D$2:$D$207,MATCH(A26,masterlist!$C$2:$C$207,0)),\"\")","v":""},{"$f":"IFERROR(INDEX(masterlist!$E$2:$E$207,MATCH(A26,masterlist!$C$2:$C$207,0)),\"\")","v":""},{"$f":"IFERROR(INDEX(masterlist!$G$2:$G$207,MATCH(A26,masterlist!$C$2:$C$207,0)),\"\")","v":""},{"$f":"IFERROR(INDEX(masterlist!$H$2:$H$207,MATCH(A26,masterlist!$C$2:$C$207,0)),\"\")","v":""},null,null,{"$f":"IFERROR(HYPERLINK(INDEX(masterlist!$M$2:$M$207,MATCH(A26,masterlist!$C$2:$C$207,0)),INDEX(masterlist!$L$2:$L$207,MATCH(A26,masterlist!$C$2:$C$207,0))),\"\")","v":""},{"$f":"IFERROR(HYPERLINK(INDEX(masterlist!$O$2:$O$207,MATCH(A26,masterlist!$C$2:$C$207,0)),INDEX(masterlist!$N$2:$N$207,MATCH(A26,masterlist!$C$2:$C$207,0))),\"\")","v":""},{"$f":"IFERROR(HYPERLINK(INDEX(masterlist!$Q$2:$Q$207,MATCH(A26,masterlist!$C$2:$C$207,0)),INDEX(masterlist!$P$2:$P$207,MATCH(A26,masterlist!$C$2:$C$207,0))),\"\")","v":""},{"$f":"IFERROR(HYPERLINK(INDEX(masterlist!$S$2:$S$207,MATCH(A26,masterlist!$C$2:$C$207,0)),INDEX(masterlist!$R$2:$R$207,MATCH(A26,masterlist!$C$2:$C$207,0))),\"\")","v":""},{"$f":"IFERROR(HYPERLINK(INDEX(masterlist!$U$2:$U$207,MATCH(A26,masterlist!$C$2:$C$207,0)),INDEX(masterlist!$T$2:$T$207,MATCH(A26,masterlist!$C$2:$C$207,0))),\"\")","v":""}]
[{"$f":"IFERROR(INDEX(masterlist!$A$2:$F$207,SMALL(IF(masterlist!$B$2:$B$207=\"LAB\",ROW(masterlist!$A$2:$F$207)-1),ROW(23:23)),3),\"\")","v":""},{"$f":"IFERROR(INDEX(masterlist!$D$2:$D$207,MATCH(A27,masterlist!$C$2:$C$207,0)),\"\")","v":""},{"$f":"IFERROR(INDEX(masterlist!$E$2:$E$207,MATCH(A27,masterlist!$C$2:$C$207,0)),\"\")","v":""},{"$f":"IFERROR(INDEX(masterlist!$G$2:$G$207,MATCH(A27,masterlist!$C$2:$C$207,0)),\"\")","v":""},{"$f":"IFERROR(INDEX(masterlist!$H$2:$H$207,MATCH(A27,masterlist!$C$2:$C$207,0)),\"\")","v":""},null,null,{"$f":"IFERROR(HYPERLINK(INDEX(masterlist!$M$2:$M$207,MATCH(A27,masterlist!$C$2:$C$207,0)),INDEX(masterlist!$L$2:$L$207,MATCH(A27,masterlist!$C$2:$C$207,0))),\"\")","v":""},{"$f":"IFERROR(HYPERLINK(INDEX(masterlist!$O$2:$O$207,MATCH(A27,masterlist!$C$2:$C$207,0)),INDEX(masterlist!$N$2:$N$207,MATCH(A27,masterlist!$C$2:$C$207,0))),\"\")","v":""},{"$f":"IFERROR(HYPERLINK(INDEX(masterlist!$Q$2:$Q$207,MATCH(A27,masterlist!$C$2:$C$207,0)),INDEX(masterlist!$P$2:$P$207,MATCH(A27,masterlist!$C$2:$C$207,0))),\"\")","v":""},{"$f":"IFERROR(HYPERLINK(INDEX(masterlist!$S$2:$S$207,MATCH(A27,masterlist!$C$2:$C$207,0)),INDEX(masterlist!$R$2:$R$207,MATCH(A27,masterlist!$C$2:$C$207,0))),\"\")","v":""},{"$f":"IFERROR(HYPERLINK(INDEX(masterlist!$U$2:$U$207,MATCH(A27,masterlist!$C$2:$C$207,0)),INDEX(masterlist!$T$2:$T$207,MATCH(A27,masterlist!$C$2:$C$207,0))),\"\")","v":""}]
[{"$f":"IFERROR(INDEX(masterlist!$A$2:$F$207,SMALL(IF(masterlist!$B$2:$B$207=\"LAB\",ROW(masterlist!$A$2:$F$207)-1),ROW(24:24)),3),\"\")","v":""},{"$f":"IFERROR(INDEX(masterlist!$D$2:$D$207,MATCH(A28,masterlist!$C$2:$C$207,0)),\"\")","v":""},{"$f":"IFERROR(INDEX(masterlist!$E$2:$E$207,MATCH(A28,masterlist!$C$2:$C$207,0)),\"\")","v":""},{"$f":"IFERROR(INDEX(masterlist!$G$2:$G$207,MATCH(A28,masterlist!$C$2:$C$207,0)),\"\")","v":""},{"$f":"IFERROR(INDEX(masterlist!$H$2:$H$207,MATCH(A28,masterlist!$C$2:$C$207,0)),\"\")","v":""},null,null,{"$f":"IFERROR(HYPERLINK(INDEX(masterlist!$M$2:$M$207,MATCH(A28,masterlist!$C$2:$C$207,0)),INDEX(masterlist!$L$2:$L$207,MATCH(A28,masterlist!$C$2:$C$207,0))),\"\")","v":""},{"$f":"IFERROR(HYPERLINK(INDEX(masterlist!$O$2:$O$207,MATCH(A28,masterlist!$C$2:$C$207,0)),INDEX(masterlist!$N$2:$N$207,MATCH(A28,masterlist!$C$2:$C$207,0))),\"\")","v":""},{"$f":"IFERROR(HYPERLINK(INDEX(masterlist!$Q$2:$Q$207,MATCH(A28,masterlist!$C$2:$C$207,0)),INDEX(masterlist!$P$2:$P$207,MATCH(A28,masterlist!$C$2:$C$207,0))),\"\")","v":""},{"$f":"IFERROR(HYPERLINK(INDEX(masterlist!$S$2:$S$207,MATCH(A28,masterlist!$C$2:$C$207,0)),INDEX(masterlist!$R$2:$R$207,MATCH(A28,masterlist!$C$2:$C$207,0))),\"\")","v":""},{"$f":"IFERROR(HYPERLINK(INDEX(masterlist!$U$2:$U$207,MATCH(A28,masterlist!$C$2:$C$207,0)),INDEX(masterlist!$T$2:$T$207,MATCH(A28,masterlist!$C$2:$C$207,0))),\"\")","v":""}]
[{"$f":"IFERROR(INDEX(masterlist!$A$2:$F$207,SMALL(IF(masterlist!$B$2:$B$207=\"LAB\",ROW(masterlist!$A$2:$F$207)-1),ROW(25:25)),3),\"\")","v":""},{"$f":"IFERROR(INDEX(masterlist!$D$2:$D$207,MATCH(A29,masterlist!$C$2:$C$207,0)),\"\")","v":""},{"$f":"IFERROR(INDEX(masterlist!$E$2:$E$207,MATCH(A29,masterlist!$C$2:$C$207,0)),\"\")","v":""},{"$f":"IFERROR(INDEX(masterlist!$G$2:$G$207,MATCH(A29,masterlist!$C$2:$C$207,0)),\"\")","v":""},{"$f":"IFERROR(INDEX(masterlist!$H$2:$H$207,MATCH(A29,masterlist!$C$2:$C$207,0)),\"\")","v":""},null,null,{"$f":"IFERROR(HYPERLINK(INDEX(masterlist!$M$2:$M$207,MATCH(A29,masterlist!$C$2:$C$207,0)),INDEX(masterlist!$L$2:$L$207,MATCH(A29,masterlist!$C$2:$C$207,0))),\"\")","v":""},{"$f":"IFERROR(HYPERLINK(INDEX(masterlist!$O$2:$O$207,MATCH(A29,masterlist!$C$2:$C$207,0)),INDEX(masterlist!$N$2:$N$207,MATCH(A29,masterlist!$C$2:$C$207,0))),\"\")","v":""},{"$f":"IFERROR(HYPERLINK(INDEX(masterlist!$Q$2:$Q$207,MATCH(A29,masterlist!$C$2:$C$207,0)),INDEX(masterlist!$P$2:$P$207,MATCH(A29,masterlist!$C$2:$C$207,0))),\"\")","v":""},{"$f":"IFERROR(HYPERLINK(INDEX(masterlist!$S$2:$S$207,MATCH(A29,masterlist!$C$2:$C$207,0)),INDEX(masterlist!$R$2:$R$207,MATCH(A29,masterlist!$C$2:$C$207,0))),\"\")","v":""},{"$f":"IFERROR(HYPERLINK(INDEX(masterlist!$U$2:$U$207,MATCH(A29,masterlist!$C$2:$C$207,0)),INDEX(masterlist!$T$2:$T$207,MATCH(A29,masterlist!$C$2:$C$207,0))),\"\")","v":""}]
[{"$f":"IFERROR(INDEX(masterlist!$A$2:$F$207,SMALL(IF(masterlist!$B$2:$B$207=\"LAB\",ROW(masterlist!$A$2:$F$207)-1),ROW(26:26)),3),\"\")","v":""},{"$f":"IFERROR(INDEX(masterlist!$D$2:$D$207,MATCH(A30,masterlist!$C$2:$C$207,0)),\"\")","v":""},{"$f":"IFERROR(INDEX(masterlist!$E$2:$E$207,MATCH(A30,masterlist!$C$2:$C$207,0)),\"\")","v":""},{"$f":"IFERROR(INDEX(masterlist!$G$2:$G$207,MATCH(A30,masterlist!$C$2:$C$207,0)),\"\")","v":""},{"$f":"IFERROR(INDEX(masterlist!$H$2:$H$207,MATCH(A30,masterlist!$C$2:$C$207,0)),\"\")","v":""},null,null,{"$f":"IFERROR(HYPERLINK(INDEX(masterlist!$M$2:$M$207,MATCH(A30,masterlist!$C$2:$C$207,0)),INDEX(masterlist!$L$2:$L$207,MATCH(A30,masterlist!$C$2:$C$207,0))),\"\")","v":""},{"$f":"IFERROR(HYPERLINK(INDEX(masterlist!$O$2:$O$207,MATCH(A30,masterlist!$C$2:$C$207,0)),INDEX(masterlist!$N$2:$N$207,MATCH(A30,masterlist!$C$2:$C$207,0))),\"\")","v":""},{"$f":"IFERROR(HYPERLINK(INDEX(masterlist!$Q$2:$Q$207,MATCH(A30,masterlist!$C$2:$C$207,0)),INDEX(masterlist!$P$2:$P$207,MATCH(A30,masterlist!$C$2:$C$207,0))),\"\")","v":""},{"$f":"IFERROR(HYPERLINK(INDEX(masterlist!$S$2:$S$207,MATCH(A30,masterlist!$C$2:$C$207,0)),INDEX(masterlist!$R$2:$R$207,MATCH(A30,masterlist!$C$2:$C$207,0))),\"\")","v":""},{"$f":"IFERROR(HYPERLINK(INDEX(masterlist!$U$2:$U$207,MATCH(A30,masterlist!$C$2:$C$207,0)),INDEX(masterlist!$T$2:$T$207,MATCH(A30,masterlist!$C$2:$C$207,0))),\"\")","v":""}]
[{"$f":"IFERROR(INDEX(masterlist!$A$2:$F$207,SMALL(IF(masterlist!$B$2:$B$207=\"LAB\",ROW(masterlist!$A$2:$F$207)-1),ROW(27:27)),3),\"\")","v":""},{"$f":"IFERROR(INDEX(masterlist!$D$2:$D$207,MATCH(A31,masterlist!$C$2:$C$207,0)),\"\")","v":""},{"$f":"IFERROR(INDEX(masterlist!$E$2:$E$207,MATCH(A31,masterlist!$C$2:$C$207,0)),\"\")","v":""},{"$f":"IFERROR(INDEX(masterlist!$G$2:$G$207,MATCH(A31,masterlist!$C$2:$C$207,0)),\"\")","v":""},{"$f":"IFERROR(INDEX(masterlist!$H$2:$H$207,MATCH(A31,masterlist!$C$2:$C$207,0)),\"\")","v":""},null,null,{"$f":"IFERROR(HYPERLINK(INDEX(masterlist!$M$2:$M$207,MATCH(A31,masterlist!$C$2:$C$207,0)),INDEX(masterlist!$L$2:$L$207,MATCH(A31,masterlist!$C$2:$C$207,0))),\"\")","v":""},{"$f":"IFERROR(HYPERLINK(INDEX(masterlist!$O$2:$O$207,MATCH(A31,masterlist!$C$2:$C$207,0)),INDEX(masterlist!$N$2:$N$207,MATCH(A31,masterlist!$C$2:$C$207,0))),\"\")","v":""},{"$f":"IFERROR(HYPERLINK(INDEX(masterlist!$Q$2:$Q$207,MATCH(A31,masterlist!$C$2:$C$207,0)),INDEX(masterlist!$P$2:$P$207,MATCH(A31,masterlist!$C$2:$C$207,0))),\"\")","v":""},{"$f":"IFERROR(HYPERLINK(INDEX(masterlist!$S$2:$S$207,MATCH(A31,masterlist!$C$2:$C$207,0)),INDEX(masterlist!$R$2:$R$207,MATCH(A31,masterlist!$C$2:$C$207,0))),\"\")","v":""},{"$f":"IFERROR(HYPERLINK(INDEX(masterlist!$U$2:$U$207,MATCH(A31,masterlist!$C$2:$C$207,0)),INDEX(masterlist!$T$2:$T$207,MATCH(A31,masterlist!$C$2:$C$207,0))),\"\")","v":""}]
[{"$f":"IFERROR(INDEX(masterlist!$A$2:$F$207,SMALL(IF(masterlist!$B$2:$B$207=\"LAB\",ROW(masterlist!$A$2:$F$207)-1),ROW(28:28)),3),\"\")","v":""},{"$f":"IFERROR(INDEX(masterlist!$D$2:$D$207,MATCH(A32,masterlist!$C$2:$C$207,0)),\"\")","v":""},{"$f":"IFERROR(INDEX(masterlist!$E$2:$E$207,MATCH(A32,masterlist!$C$2:$C$207,0)),\"\")","v":""},{"$f":"IFERROR(INDEX(masterlist!$G$2:$G$207,MATCH(A32,masterlist!$C$2:$C$207,0)),\"\")","v":""},{"$f":"IFERROR(INDEX(masterlist!$H$2:$H$207,MATCH(A32,masterlist!$C$2:$C$207,0)),\"\")","v":""},null,null,{"$f":"IFERROR(HYPERLINK(INDEX(masterlist!$M$2:$M$207,MATCH(A32,masterlist!$C$2:$C$207,0)),INDEX(masterlist!$L$2:$L$207,MATCH(A32,masterlist!$C$2:$C$207,0))),\"\")","v":""},{"$f":"IFERROR(HYPERLINK(INDEX(masterlist!$O$2:$O$207,MATCH(A32,masterlist!$C$2:$C$207,0)),INDEX(masterlist!$N$2:$N$207,MATCH(A32,masterlist!$C$2:$C$207,0))),\"\")","v":""},{"$f":"IFERROR(HYPERLINK(INDEX(masterlist!$Q$2:$Q$207,MATCH(A32,masterlist!$C$2:$C$207,0)),INDEX(masterlist!$P$2:$P$207,MATCH(A32,masterlist!$C$2:$C$207,0))),\"\")","v":""},{"$f":"IFERROR(HYPERLINK(INDEX(masterlist!$S$2:$S$207,MATCH(A32,masterlist!$C$2:$C$207,0)),INDEX(masterlist!$R$2:$R$207,MATCH(A32,masterlist!$C$2:$C$207,0))),\"\")","v":""},{"$f":"IFERROR(HYPERLINK(INDEX(masterlist!$U$2:$U$207,MATCH(A32,masterlist!$C$2:$C$207,0)),INDEX(masterlist!$T$2:$T$207,MATCH(A32,masterlist!$C$2:$C$207,0))),\"\")","v":""}]
[{"$f":"IFERROR(INDEX(masterlist!$A$2:$F$207,SMALL(IF(masterlist!$B$2:$B$207=\"LAB\",ROW(masterlist!$A$2:$F$207)-1),ROW(29:29)),3),\"\")","v":""},{"$f":"IFERROR(INDEX(masterlist!$D$2:$D$207,MATCH(A33,masterlist!$C$2:$C$207,0)),\"\")","v":""},{"$f":"IFERROR(INDEX(masterlist!$E$2:$E$207,MATCH(A33,masterlist!$C$2:$C$207,0)),\"\")","v":""},{"$f":"IFERROR(INDEX(masterlist!$G$2:$G$207,MATCH(A33,masterlist!$C$2:$C$207,0)),\"\")","v":""},{"$f":"IFERROR(INDEX(masterlist!$H$2:$H$207,MATCH(A33,masterlist!$C$2:$C$207,0)),\"\")","v":""},null,null,{"$f":"IFERROR(HYPERLINK(INDEX(masterlist!$M$2:$M$207,MATCH(A33,masterlist!$C$2:$C$207,0)),INDEX(masterlist!$L$2:$L$207,MATCH(A33,masterlist!$C$2:$C$207,0))),\"\")","v":""},{"$f":"IFERROR(HYPERLINK(INDEX(masterlist!$O$2:$O$207,MATCH(A33,masterlist!$C$2:$C$207,0)),INDEX(masterlist!$N$2:$N$207,MATCH(A33,masterlist!$C$2:$C$207,0))),\"\")","v":""},{"$f":"IFERROR(HYPERLINK(INDEX(masterlist!$Q$2:$Q$207,MATCH(A33,masterlist!$C$2:$C$207,0)),INDEX(masterlist!$P$2:$P$207,MATCH(A33,masterlist!$C$2:$C$207,0))),\"\")","v":""},{"$f":"IFERROR(HYPERLINK(INDEX(masterlist!$S$2:$S$207,MATCH(A33,masterlist!$C$2:$C$207,0)),INDEX(masterlist!$R$2:$R$207,MATCH(A33,masterlist!$C$2:$C$207,0))),\"\")","v":""},{"$f":"IFERROR(HYPERLINK(INDEX(masterlist!$U$2:$U$207,MATCH(A33,masterlist!$C$2:$C$207,0)),INDEX(masterlist!$T$2:$T$207,MATCH(A33,masterlist!$C$2:$C$207,0))),\"\")","v":""}]
[{"$f":"IFERROR(INDEX(masterlist!$A$2:$F$207,SMALL(IF(masterlist!$B$2:$B$207=\"LAB\",ROW(masterlist!$A$2:$F$207)-1),ROW(30:30)),3),\"\")","v":""},{"$f":"IFERROR(INDEX(masterlist!$D$2:$D$207,MATCH(A34,masterlist!$C$2:$C$207,0)),\"\")","v":""},{"$f":"IFERROR(INDEX(masterlist!$E$2:$E$207,MATCH(A34,masterlist!$C$2:$C$207,0)),\"\")","v":""},{"$f":"IFERROR(INDEX(masterlist!$G$2:$G$207,MATCH(A34,masterlist!$C$2:$C$207,0)),\"\")","v":""},{"$f":"IFERROR(INDEX(masterlist!$H$2:$H$207,MATCH(A34,masterlist!$C$2:$C$207,0)),\"\")","v":""},null,null,{"$f":"IFERROR(HYPERLINK(INDEX(masterlist!$M$2:$M$207,MATCH(A34,masterlist!$C$2:$C$207,0)),INDEX(masterlist!$L$2:$L$207,MATCH(A34,masterlist!$C$2:$C$207,0))),\"\")","v":""},{"$f":"IFERROR(HYPERLINK(INDEX(masterlist!$O$2:$O$207,MATCH(A34,masterlist!$C$2:$C$207,0)),INDEX(masterlist!$N$2:$N$207,MATCH(A34,masterlist!$C$2:$C$207,0))),\"\")","v":""},{"$f":"IFERROR(HYPERLINK(INDEX(masterlist!$Q$2:$Q$207,MATCH(A34,masterlist!$C$2:$C$207,0)),INDEX(masterlist!$P$2:$P$207,MATCH(A34,masterlist!$C$2:$C$207,0))),\"\")","v":""},{"$f":"IFERROR(HYPERLINK(INDEX(masterlist!$S$2:$S$207,MATCH(A34,masterlist!$C$2:$C$207,0)),INDEX(masterlist!$R$2:$R$207,MATCH(A34,masterlist!$C$2:$C$207,0))),\"\")","v":""},{"$f":"IFERROR(HYPERLINK(INDEX(masterlist!$U$2:$U$207,MATCH(A34,masterlist!$C$2:$C$207,0)),INDEX(masterlist!$T$2:$T$207,MATCH(A34,masterlist!$C$2:$C$207,0))),\"\")","v":""}]
[{"$f":"IFERROR(INDEX(masterlist!$A$2:$F$207,SMALL(IF(masterlist!$B$2:$B$207=\"LAB\",ROW(masterlist!$A$2:$F$207)-1),ROW(31:31)),3),\"\")","v":""},{"$f":"IFERROR(INDEX(masterlist!$D$2:$D$207,MATCH(A35,masterlist!$C$2:$C$207,0)),\"\")","v":""},{"$f":"IFERROR(INDEX(masterlist!$E$2:$E$207,MATCH(A35,masterlist!$C$2:$C$207,0)),\"\")","v":""},{"$f":"IFERROR(INDEX(masterlist!$G$2:$G$207,MATCH(A35,masterlist!$C$2:$C$207,0)),\"\")","v":""},{"$f":"IFERROR(INDEX(masterlist!$H$2:$H$207,MATCH(A35,masterlist!$C$2:$C$207,0)),\"\")","v":""},null,null,{"$f":"IFERROR(HYPERLINK(INDEX(masterlist!$M$2:$M$207,MATCH(A35,masterlist!$C$2:$C$207,0)),INDEX(masterlist!$L$2:$L$207,MATCH(A35,masterlist!$C$2:$C$207,0))),\"\")","v":""},{"$f":"IFERROR(HYPERLINK(INDEX(masterlist!$O$2:$O$207,MATCH(A35,masterlist!$C$2:$C$207,0)),INDEX(masterlist!$N$2:$N$207,MATCH(A35,masterlist!$C$2:$C$207,0))),\"\")","v":""},{"$f":"IFERROR(HYPERLINK(INDEX(masterlist!$Q$2:$Q$207,MATCH(A35,masterlist!$C$2:$C$207,0)),INDEX(masterlist!$P$2:$P$207,MATCH(A35,masterlist!$C$2:$C$207,0))),\"\")","v":""},{"$f":"IFERROR(HYPERLINK(INDEX(masterlist!$S$2:$S$207,MATCH(A35,masterlist!$C$2:$C$207,0)),INDEX(masterlist!$R$2:$R$207,MATCH(A35,masterlist!$C$2:$C$207,0))),\"\")","v":""},{"$f":"IFERROR(HYPERLINK(INDEX(masterlist!$U$2:$U$207,MATCH(A35,masterlist!$C$2:$C$207,0)),INDEX(masterlist!$T$2:$T$207,MATCH(A35,masterlist!$C$2:$C$207,0))),\"\")","v":""}]
[{"$f":"IFERROR(INDEX(masterlist!$A$2:$F$207,SMALL(IF(masterlist!$B$2:$B$207=\"LAB\",ROW(masterlist!$A$2:$F$207)-1),ROW(32:32)),3),\"\")","v":""},{"$f":"IFERROR(INDEX(masterlist!$D$2:$D$207,MATCH(A36,masterlist!$C$2:$C$207,0)),\"\")","v":""},{"$f":"IFERROR(INDEX(masterlist!$E$2:$E$207,MATCH(A36,masterlist!$C$2:$C$207,0)),\"\")","v":""},{"$f":"IFERROR(INDEX(masterlist!$G$2:$G$207,MATCH(A36,masterlist!$C$2:$C$207,0)),\"\")","v":""},{"$f":"IFERROR(INDEX(masterlist!$H$2:$H$207,MATCH(A36,masterlist!$C$2:$C$207,0)),\"\")","v":""},null,null,{"$f":"IFERROR(HYPERLINK(INDEX(masterlist!$M$2:$M$207,MATCH(A36,masterlist!$C$2:$C$207,0)),INDEX(masterlist!$L$2:$L$207,MATCH(A36,masterlist!$C$2:$C$207,0))),\"\")","v":""},{"$f":"IFERROR(HYPERLINK(INDEX(masterlist!$O$2:$O$207,MATCH(A36,masterlist!$C$2:$C$207,0)),INDEX(masterlist!$N$2:$N$207,MATCH(A36,masterlist!$C$2:$C$207,0))),\"\")","v":""},{"$f":"IFERROR(HYPERLINK(INDEX(masterlist!$Q$2:$Q$207,MATCH(A36,masterlist!$C$2:$C$207,0)),INDEX(masterlist!$P$2:$P$207,MATCH(A36,masterlist!$C$2:$C$207,0))),\"\")","v":""},{"$f":"IFERROR(HYPERLINK(INDEX(masterlist!$S$2:$S$207,MATCH(A36,masterlist!$C$2:$C$207,0)),INDEX(masterlist!$R$2:$R$207,MATCH(A36,masterlist!$C$2:$C$207,0))),\"\")","v":""},{"$f":"IFERROR(HYPERLINK(INDEX(masterlist!$U$2:$U$207,MATCH(A36,masterlist!$C$2:$C$207,0)),INDEX(masterlist!$T$2:$T$207,MATCH(A36,masterlist!$C$2:$C$207,0))),\"\")","v":""}]
[{"$f":"IFERROR(INDEX(masterlist!$A$2:$F$207,SMALL(IF(masterlist!$B$2:$B$207=\"LAB\",ROW(masterlist!$A$2:$F$207)-1),ROW(33:33)),3),\"\")","v":""},{"$f":"IFERROR(INDEX(masterlist!$D$2:$D$207,MATCH(A37,masterlist!$C$2:$C$207,0)),\"\")","v":""},{"$f":"IFERROR(INDEX(masterlist!$E$2:$E$207,MATCH(A37,masterlist!$C$2:$C$207,0)),\"\")","v":""},{"$f":"IFERROR(INDEX(masterlist!$G$2:$G$207,MATCH(A37,masterlist!$C$2:$C$207,0)),\"\")","v":""},{"$f":"IFERROR(INDEX(masterlist!$H$2:$H$207,MATCH(A37,masterlist!$C$2:$C$207,0)),\"\")","v":""},null,null,{"$f":"IFERROR(HYPERLINK(INDEX(masterlist!$M$2:$M$207,MATCH(A37,masterlist!$C$2:$C$207,0)),INDEX(masterlist!$L$2:$L$207,MATCH(A37,masterlist!$C$2:$C$207,0))),\"\")","v":""},{"$f":"IFERROR(HYPERLINK(INDEX(masterlist!$O$2:$O$207,MATCH(A37,masterlist!$C$2:$C$207,0)),INDEX(masterlist!$N$2:$N$207,MATCH(A37,masterlist!$C$2:$C$207,0))),\"\")","v":""},{"$f":"IFERROR(HYPERLINK(INDEX(masterlist!$Q$2:$Q$207,MATCH(A37,masterlist!$C$2:$C$207,0)),INDEX(masterlist!$P$2:$P$207,MATCH(A37,masterlist!$C$2:$C$207,0))),\"\")","v":""},{"$f":"IFERROR(HYPERLINK(INDEX(masterlist!$S$2:$S$207,MATCH(A37,masterlist!$C$2:$C$207,0)),INDEX(masterlist!$R$2:$R$207,MATCH(A37,masterlist!$C$2:$C$207,0))),\"\")","v":""},{"$f":"IFERROR(HYPERLINK(INDEX(masterlist!$U$2:$U$207,MATCH(A37,masterlist!$C$2:$C$207,0)),INDEX(masterlist!$T$2:$T$207,MATCH(A37,masterlist!$C$2:$C$207,0))),\"\")","v":""}]
[{"$f":"IFERROR(INDEX(masterlist!$A$2:$F$207,SMALL(IF(masterlist!$B$2:$B$207=\"LAB\",ROW(masterlist!$A$2:$F$207)-1),ROW(34:34)),3),\"\")","v":""},{"$f":"IFERROR(INDEX(masterlist!$D$2:$D$207,MATCH(A38,masterlist!$C$2:$C$207,0)),\"\")","v":""},{"$f":"IFERROR(INDEX(masterlist!$E$2:$E$207,MATCH(A38,masterlist!$C$2:$C$207,0)),\"\")","v":""},{"$f":"IFERROR(INDEX(masterlist!$G$2:$G$207,MATCH(A38,masterlist!$C$2:$C$207,0)),\"\")","v":""},{"$f":"IFERROR(INDEX(masterlist!$H$2:$H$207,MATCH(A38,masterlist!$C$2:$C$207,0)),\"\")","v":""},null,null,{"$f":"IFERROR(HYPERLINK(INDEX(masterlist!$M$2:$M$207,MATCH(A38,masterlist!$C$2:$C$207,0)),INDEX(masterlist!$L$2:$L$207,MATCH(A38,masterlist!$C$2:$C$207,0))),\"\")","v":""},{"$f":"IFERROR(HYPERLINK(INDEX(masterlist!$O$2:$O$207,MATCH(A38,masterlist!$C$2:$C$207,0)),INDEX(masterlist!$N$2:$N$207,MATCH(A38,masterlist!$C$2:$C$207,0))),\"\")","v":""},{"$f":"IFERROR(HYPERLINK(INDEX(masterlist!$Q$2:$Q$207,MATCH(A38,masterlist!$C$2:$C$207,0)),INDEX(masterlist!$P$2:$P$207,MATCH(A38,masterlist!$C$2:$C$207,0))),\"\")","v":""},{"$f":"IFERROR(HYPERLINK(INDEX(masterlist!$S$2:$S$207,MATCH(A38,masterlist!$C$2:$C$207,0)),INDEX(masterlist!$R$2:$R$207,MATCH(A38,masterlist!$C$2:$C$207,0))),\"\")","v":""},{"$f":"IFERROR(HYPERLINK(INDEX(masterlist!$U$2:$U$207,MATCH(A38,masterlist!$C$2:$C$207,0)),INDEX(masterlist!$T$2:$T$207,MATCH(A38,masterlist!$C$2:$C$207,0))),\"\")","v":""}]
[{"$f":"IFERROR(INDEX(masterlist!$A$2:$F$207,SMALL(IF(masterlist!$B$2:$B$207=\"LAB\",ROW(masterlist!$A$2:$F$207)-1),ROW(35:35)),3),\"\")","v":""},{"$f":"IFERROR(INDEX(masterlist!$D$2:$D$207,MATCH(A39,masterlist!$C$2:$C$207,0)),\"\")","v":""},{"$f":"IFERROR(INDEX(masterlist!$E$2:$E$207,MATCH(A39,masterlist!$C$2:$C$207,0)),\"\")","v":""},{"$f":"IFERROR(INDEX(masterlist!$G$2:$G$207,MATCH(A39,masterlist!$C$2:$C$207,0)),\"\")","v":""},{"$f":"IFERROR(INDEX(masterlist!$H$2:$H$207,MATCH(A39,masterlist!$C$2:$C$207,0)),\"\")","v":""},null,null,{"$f":"IFERROR(HYPERLINK(INDEX(masterlist!$M$2:$M$207,MATCH(A39,masterlist!$C$2:$C$207,0)),INDEX(masterlist!$L$2:$L$207,MATCH(A39,masterlist!$C$2:$C$207,0))),\"\")","v":""},{"$f":"IFERROR(HYPERLINK(INDEX(masterlist!$O$2:$O$207,MATCH(A39,masterlist!$C$2:$C$207,0)),INDEX(masterlist!$N$2:$N$207,MATCH(A39,masterlist!$C$2:$C$207,0))),\"\")","v":""},{"$f":"IFERROR(HYPERLINK(INDEX(masterlist!$Q$2:$Q$207,MATCH(A39,masterlist!$C$2:$C$207,0)),INDEX(masterlist!$P$2:$P$207,MATCH(A39,masterlist!$C$2:$C$207,0))),\"\")","v":""},{"$f":"IFERROR(HYPERLINK(INDEX(masterlist!$S$2:$S$207,MATCH(A39,masterlist!$C$2:$C$207,0)),INDEX(masterlist!$R$2:$R$207,MATCH(A39,masterlist!$C$2:$C$207,0))),\"\")","v":""},{"$f":"IFERROR(HYPERLINK(INDEX(masterlist!$U$2:$U$207,MATCH(A39,masterlist!$C$2:$C$207,0)),INDEX(masterlist!$T$2:$T$207,MATCH(A39,masterlist!$C$2:$C$207,0))),\"\")","v":""}]
[{"$f":"IFERROR(INDEX(masterlist!$A$2:$F$207,SMALL(IF(masterlist!$B$2:$B$207=\"LAB\",ROW(masterlist!$A$2:$F$207)-1),ROW(36:36)),3),\"\")","v":""},{"$f":"IFERROR(INDEX(masterlist!$D$2:$D$207,MATCH(A40,masterlist!$C$2:$C$207,0)),\"\")","v":""},{"$f":"IFERROR(INDEX(masterlist!$E$2:$E$207,MATCH(A40,masterlist!$C$2:$C$207,0)),\"\")","v":""},{"$f":"IFERROR(INDEX(masterlist!$G$2:$G$207,MATCH(A40,masterlist!$C$2:$C$207,0)),\"\")","v":""},{"$f":"IFERROR(INDEX(masterlist!$H$2:$H$207,MATCH(A40,masterlist!$C$2:$C$207,0)),\"\")","v":""},null,null,{"$f":"IFERROR(HYPERLINK(INDEX(masterlist!$M$2:$M$207,MATCH(A40,masterlist!$C$2:$C$207,0)),INDEX(masterlist!$L$2:$L$207,MATCH(A40,masterlist!$C$2:$C$207,0))),\"\")","v":""},{"$f":"IFERROR(HYPERLINK(INDEX(masterlist!$O$2:$O$207,MATCH(A40,masterlist!$C$2:$C$207,0)),INDEX(masterlist!$N$2:$N$207,MATCH(A40,masterlist!$C$2:$C$207,0))),\"\")","v":""},{"$f":"IFERROR(HYPERLINK(INDEX(masterlist!$Q$2:$Q$207,MATCH(A40,masterlist!$C$2:$C$207,0)),INDEX(masterlist!$P$2:$P$207,MATCH(A40,masterlist!$C$2:$C$207,0))),\"\")","v":""},{"$f":"IFERROR(HYPERLINK(INDEX(masterlist!$S$2:$S$207,MATCH(A40,masterlist!$C$2:$C$207,0)),INDEX(masterlist!$R$2:$R$207,MATCH(A40,masterlist!$C$2:$C$207,0))),\"\")","v":""},{"$f":"IFERROR(HYPERLINK(INDEX(masterlist!$U$2:$U$207,MATCH(A40,masterlist!$C$2:$C$207,0)),INDEX(masterlist!$T$2:$T$207,MATCH(A40,masterlist!$C$2:$C$207,0))),\"\")","v":""}]
[{"$f":"IFERROR(INDEX(masterlist!$A$2:$F$207,SMALL(IF(masterlist!$B$2:$B$207=\"LAB\",ROW(masterlist!$A$2:$F$207)-1),ROW(37:37)),3),\"\")","v":""},{"$f":"IFERROR(INDEX(masterlist!$D$2:$D$207,MATCH(A41,masterlist!$C$2:$C$207,0)),\"\")","v":""},{"$f":"IFERROR(INDEX(masterlist!$E$2:$E$207,MATCH(A41,masterlist!$C$2:$C$207,0)),\"\")","v":""},{"$f":"IFERROR(INDEX(masterlist!$G$2:$G$207,MATCH(A41,masterlist!$C$2:$C$207,0)),\"\")","v":""},{"$f":"IFERROR(INDEX(masterlist!$H$2:$H$207,MATCH(A41,masterlist!$C$2:$C$207,0)),\"\")","v":""},null,null,{"$f":"IFERROR(HYPERLINK(INDEX(masterlist!$M$2:$M$207,MATCH(A41,masterlist!$C$2:$C$207,0)),INDEX(masterlist!$L$2:$L$207,MATCH(A41,masterlist!$C$2:$C$207,0))),\"\")","v":""},{"$f":"IFERROR(HYPERLINK(INDEX(masterlist!$O$2:$O$207,MATCH(A41,masterlist!$C$2:$C$207,0)),INDEX(masterlist!$N$2:$N$207,MATCH(A41,masterlist!$C$2:$C$207,0))),\"\")","v":""},{"$f":"IFERROR(HYPERLINK(INDEX(masterlist!$Q$2:$Q$207,MATCH(A41,masterlist!$C$2:$C$207,0)),INDEX(masterlist!$P$2:$P$207,MATCH(A41,masterlist!$C$2:$C$207,0))),\"\")","v":""},{"$f":"IFERROR(HYPERLINK(INDEX(masterlist!$S$2:$S$207,MATCH(A41,masterlist!$C$2:$C$207,0)),INDEX(masterlist!$R$2:$R$207,MATCH(A41,masterlist!$C$2:$C$207,0))),\"\")","v":""},{"$f":"IFERROR(HYPERLINK(INDEX(masterlist!$U$2:$U$207,MATCH(A41,masterlist!$C$2:$C$207,0)),INDEX(masterlist!$T$2:$T$207,MATCH(A41,masterlist!$C$2:$C$207,0))),\"\")","v":""}]
[{"$f":"IFERROR(INDEX(masterlist!$A$2:$F$207,SMALL(IF(masterlist!$B$2:$B$207=\"LAB\",ROW(masterlist!$A$2:$F$207)-1),ROW(38:38)),3),\"\")","v":""},{"$f":"IFERROR(INDEX(masterlist!$D$2:$D$207,MATCH(A42,masterlist!$C$2:$C$207,0)),\"\")","v":""},{"$f":"IFERROR(INDEX(masterlist!$E$2:$E$207,MATCH(A42,masterlist!$C$2:$C$207,0)),\"\")","v":""},{"$f":"IFERROR(INDEX(masterlist!$G$2:$G$207,MATCH(A42,masterlist!$C$2:$C$207,0)),\"\")","v":""},{"$f":"IFERROR(INDEX(masterlist!$H$2:$H$207,MATCH(A42,masterlist!$C$2:$C$207,0)),\"\")","v":""},null,null,{"$f":"IFERROR(HYPERLINK(INDEX(masterlist!$M$2:$M$207,MATCH(A42,masterlist!$C$2:$C$207,0)),INDEX(masterlist!$L$2:$L$207,MATCH(A42,masterlist!$C$2:$C$207,0))),\"\")","v":""},{"$f":"IFERROR(HYPERLINK(INDEX(masterlist!$O$2:$O$207,MATCH(A42,masterlist!$C$2:$C$207,0)),INDEX(masterlist!$N$2:$N$207,MATCH(A42,masterlist!$C$2:$C$207,0))),\"\")","v":""},{"$f":"IFERROR(HYPERLINK(INDEX(masterlist!$Q$2:$Q$207,MATCH(A42,masterlist!$C$2:$C$207,0)),INDEX(masterlist!$P$2:$P$207,MATCH(A42,masterlist!$C$2:$C$207,0))),\"\")","v":""},{"$f":"IFERROR(HYPERLINK(INDEX(masterlist!$S$2:$S$207,MATCH(A42,masterlist!$C$2:$C$207,0)),INDEX(masterlist!$R$2:$R$207,MATCH(A42,masterlist!$C$2:$C$207,0))),\"\")","v":""},{"$f":"IFERROR(HYPERLINK(INDEX(masterlist!$U$2:$U$207,MATCH(A42,masterlist!$C$2:$C$207,0)),INDEX(masterlist!$T$2:$T$207,MATCH(A42,masterlist!$C$2:$C$207,0))),\"\")","v":""}]
[{"$f":"IFERROR(INDEX(masterlist!$A$2:$F$207,SMALL(IF(masterlist!$B$2:$B$207=\"LAB\",ROW(masterlist!$A$2:$F$207)-1),ROW(39:39)),3),\"\")","v":""},{"$f":"IFERROR(INDEX(masterlist!$D$2:$D$207,MATCH(A43,masterlist!$C$2:$C$207,0)),\"\")","v":""},{"$f":"IFERROR(INDEX(masterlist!$E$2:$E$207,MATCH(A43,masterlist!$C$2:$C$207,0)),\"\")","v":""},{"$f":"IFERROR(INDEX(masterlist!$G$2:$G$207,MATCH(A43,masterlist!$C$2:$C$207,0)),\"\")","v":""},{"$f":"IFERROR(INDEX(masterlist!$H$2:$H$207,MATCH(A43,masterlist!$C$2:$C$207,0)),\"\")","v":""},null,null,{"$f":"IFERROR(HYPERLINK(INDEX(masterlist!$M$2:$M$207,MATCH(A43,masterlist!$C$2:$C$207,0)),INDEX(masterlist!$L$2:$L$207,MATCH(A43,masterlist!$C$2:$C$207,0))),\"\")","v":""},{"$f":"IFERROR(HYPERLINK(INDEX(masterlist!$O$2:$O$207,MATCH(A43,masterlist!$C$2:$C$207,0)),INDEX(masterlist!$N$2:$N$207,MATCH(A43,masterlist!$C$2:$C$207,0))),\"\")","v":""},{"$f":"IFERROR(HYPERLINK(INDEX(masterlist!$Q$2:$Q$207,MATCH(A43,masterlist!$C$2:$C$207,0)),INDEX(masterlist!$P$2:$P$207,MATCH(A43,masterlist!$C$2:$C$207,0))),\"\")","v":""},{"$f":"IFERROR(HYPERLINK(INDEX(masterlist!$S$2:$S$207,MATCH(A43,masterlist!$C$2:$C$207,0)),INDEX(masterlist!$R$2:$R$207,MATCH(A43,masterlist!$C$2:$C$207,0))),\"\")","v":""},{"$f":"IFERROR(HYPERLINK(INDEX(masterlist!$U$2:$U$207,MATCH(A43,masterlist!$C$2:$C$207,0)),INDEX(masterlist!$T$2:$T$207,MATCH(A43,masterlist!$C$2:$C$207,0))),\"\")","v":""}]
[{"$f":"IFERROR(INDEX(masterlist!$A$2:$F$207,SMALL(IF(masterlist!$B$2:$B$207=\"LAB\",ROW(masterlist!$A$2:$F$207)-1),ROW(40:40)),3),\"\")","v":""},{"$f":"IFERROR(INDEX(masterlist!$D$2:$D$207,MATCH(A44,masterlist!$C$2:$C$207,0)),\"\")","v":""},{"$f":"IFERROR(INDEX(masterlist!$E$2:$E$207,MATCH(A44,masterlist!$C$2:$C$207,0)),\"\")","v":""},{"$f":"IFERROR(INDEX(masterlist!$G$2:$G$207,MATCH(A44,masterlist!$C$2:$C$207,0)),\"\")","v":""},{"$f":"IFERROR(INDEX(masterlist!$H$2:$H$207,MATCH(A44,masterlist!$C$2:$C$207,0)),\"\")","v":""},null,null,{"$f":"IFERROR(HYPERLINK(INDEX(masterlist!$M$2:$M$207,MATCH(A44,masterlist!$C$2:$C$207,0)),INDEX(masterlist!$L$2:$L$207,MATCH(A44,masterlist!$C$2:$C$207,0))),\"\")","v":""},{"$f":"IFERROR(HYPERLINK(INDEX(masterlist!$O$2:$O$207,MATCH(A44,masterlist!$C$2:$C$207,0)),INDEX(masterlist!$N$2:$N$207,MATCH(A44,masterlist!$C$2:$C$207,0))),\"\")","v":""},{"$f":"IFERROR(HYPERLINK(INDEX(masterlist!$Q$2:$Q$207,MATCH(A44,masterlist!$C$2:$C$207,0)),INDEX(masterlist!$P$2:$P$207,MATCH(A44,masterlist!$C$2:$C$207,0))),\"\")","v":""},{"$f":"IFERROR(HYPERLINK(INDEX(masterlist!$S$2:$S$207,MATCH(A44,masterlist!$C$2:$C$207,0)),INDEX(masterlist!$R$2:$R$207,MATCH(A44,masterlist!$C$2:$C$207,0))),\"\")","v":""},{"$f":"IFERROR(HYPERLINK(INDEX(masterlist!$U$2:$U$207,MATCH(A44,masterlist!$C$2:$C$207,0)),INDEX(masterlist!$T$2:$T$207,MATCH(A44,masterlist!$C$2:$C$207,0))),\"\")","v":""}]
[{"$f":"IFERROR(INDEX(masterlist!$A$2:$F$207,SMALL(IF(masterlist!$B$2:$B$207=\"LAB\",ROW(masterlist!$A$2:$F$207)-1),ROW(41:41)),3),\"\")","v":""},{"$f":"IFERROR(INDEX(masterlist!$D$2:$D$207,MATCH(A45,masterlist!$C$2:$C$207,0)),\"\")","v":""},{"$f":"IFERROR(INDEX(masterlist!$E$2:$E$207,MATCH(A45,masterlist!$C$2:$C$207,0)),\"\")","v":""},{"$f":"IFERROR(INDEX(masterlist!$G$2:$G$207,MATCH(A45,masterlist!$C$2:$C$207,0)),\"\")","v":""},{"$f":"IFERROR(INDEX(masterlist!$H$2:$H$207,MATCH(A45,masterlist!$C$2:$C$207,0)),\"\")","v":""},null,null,{"$f":"IFERROR(HYPERLINK(INDEX(masterlist!$M$2:$M$207,MATCH(A45,masterlist!$C$2:$C$207,0)),INDEX(masterlist!$L$2:$L$207,MATCH(A45,masterlist!$C$2:$C$207,0))),\"\")","v":""},{"$f":"IFERROR(HYPERLINK(INDEX(masterlist!$O$2:$O$207,MATCH(A45,masterlist!$C$2:$C$207,0)),INDEX(masterlist!$N$2:$N$207,MATCH(A45,masterlist!$C$2:$C$207,0))),\"\")","v":""},{"$f":"IFERROR(HYPERLINK(INDEX(masterlist!$Q$2:$Q$207,MATCH(A45,masterlist!$C$2:$C$207,0)),INDEX(masterlist!$P$2:$P$207,MATCH(A45,masterlist!$C$2:$C$207,0))),\"\")","v":""},{"$f":"IFERROR(HYPERLINK(INDEX(masterlist!$S$2:$S$207,MATCH(A45,masterlist!$C$2:$C$207,0)),INDEX(masterlist!$R$2:$R$207,MATCH(A45,masterlist!$C$2:$C$207,0))),\"\")","v":""},{"$f":"IFERROR(HYPERLINK(INDEX(masterlist!$U$2:$U$207,MATCH(A45,masterlist!$C$2:$C$207,0)),INDEX(masterlist!$T$2:$T$207,MATCH(A45,masterlist!$C$2:$C$207,0))),\"\")","v":""}]
[{"$f":"IFERROR(INDEX(masterlist!$A$2:$F$207,SMALL(IF(masterlist!$B$2:$B$207=\"LAB\",ROW(masterlist!$A$2:$F$207)-1),ROW(42:42)),3),\"\")","v":""},{"$f":"IFERROR(INDEX(masterlist!$D$2:$D$207,MATCH(A46,masterlist!$C$2:$C$207,0)),\"\")","v":""},{"$f":"IFERROR(INDEX(masterlist!$E$2:$E$207,MATCH(A46,masterlist!$C$2:$C$207,0)),\"\")","v":""},{"$f":"IFERROR(INDEX(masterlist!$G$2:$G$207,MATCH(A46,masterlist!$C$2:$C$207,0)),\"\")","v":""},{"$f":"IFERROR(INDEX(masterlist!$H$2:$H$207,MATCH(A46,masterlist!$C$2:$C$207,0)),\"\")","v":""},null,null,{"$f":"IFERROR(HYPERLINK(INDEX(masterlist!$M$2:$M$207,MATCH(A46,masterlist!$C$2:$C$207,0)),INDEX(masterlist!$L$2:$L$207,MATCH(A46,masterlist!$C$2:$C$207,0))),\"\")","v":""},{"$f":"IFERROR(HYPERLINK(INDEX(masterlist!$O$2:$O$207,MATCH(A46,masterlist!$C$2:$C$207,0)),INDEX(masterlist!$N$2:$N$207,MATCH(A46,masterlist!$C$2:$C$207,0))),\"\")","v":""},{"$f":"IFERROR(HYPERLINK(INDEX(masterlist!$Q$2:$Q$207,MATCH(A46,masterlist!$C$2:$C$207,0)),INDEX(masterlist!$P$2:$P$207,MATCH(A46,masterlist!$C$2:$C$207,0))),\"\")","v":""},{"$f":"IFERROR(HYPERLINK(INDEX(masterlist!$S$2:$S$207,MATCH(A46,masterlist!$C$2:$C$207,0)),INDEX(masterlist!$R$2:$R$207,MATCH(A46,masterlist!$C$2:$C$207,0))),\"\")","v":""},{"$f":"IFERROR(HYPERLINK(INDEX(masterlist!$U$2:$U$207,MATCH(A46,masterlist!$C$2:$C$207,0)),INDEX(masterlist!$T$2:$T$207,MATCH(A46,masterlist!$C$2:$C$207,0))),\"\")","v":""}]
[{"$f":"IFERROR(INDEX(masterlist!$A$2:$F$207,SMALL(IF(masterlist!$B$2:$B$207=\"LAB\",ROW(masterlist!$A$2:$F$207)-1),ROW(43:43)),3),\"\")","v":""},{"$f":"IFERROR(INDEX(masterlist!$D$2:$D$207,MATCH(A47,masterlist!$C$2:$C$207,0)),\"\")","v":""},{"$f":"IFERROR(INDEX(masterlist!$E$2:$E$207,MATCH(A47,masterlist!$C$2:$C$207,0)),\"\")","v":""},{"$f":"IFERROR(INDEX(masterlist!$G$2:$G$207,MATCH(A47,masterlist!$C$2:$C$207,0)),\"\")","v":""},{"$f":"IFERROR(INDEX(masterlist!$H$2:$H$207,MATCH(A47,masterlist!$C$2:$C$207,0)),\"\")","v":""},null,null,{"$f":"IFERROR(HYPERLINK(INDEX(masterlist!$M$2:$M$207,MATCH(A47,masterlist!$C$2:$C$207,0)),INDEX(masterlist!$L$2:$L$207,MATCH(A47,masterlist!$C$2:$C$207,0))),\"\")","v":""},{"$f":"IFERROR(HYPERLINK(INDEX(masterlist!$O$2:$O$207,MATCH(A47,masterlist!$C$2:$C$207,0)),INDEX(masterlist!$N$2:$N$207,MATCH(A47,masterlist!$C$2:$C$207,0))),\"\")","v":""},{"$f":"IFERROR(HYPERLINK(INDEX(masterlist!$Q$2:$Q$207,MATCH(A47,masterlist!$C$2:$C$207,0)),INDEX(masterlist!$P$2:$P$207,MATCH(A47,masterlist!$C$2:$C$207,0))),\"\")","v":""},{"$f":"IFERROR(HYPERLINK(INDEX(masterlist!$S$2:$S$207,MATCH(A47,masterlist!$C$2:$C$207,0)),INDEX(masterlist!$R$2:$R$207,MATCH(A47,masterlist!$C$2:$C$207,0))),\"\")","v":""},{"$f":"IFERROR(HYPERLINK(INDEX(masterlist!$U$2:$U$207,MATCH(A47,masterlist!$C$2:$C$207,0)),INDEX(masterlist!$T$2:$T$207,MATCH(A47,masterlist!$C$2:$C$207,0))),\"\")","v":""}]
[{"$f":"IFERROR(INDEX(masterlist!$A$2:$F$207,SMALL(IF(masterlist!$B$2:$B$207=\"LAB\",ROW(masterlist!$A$2:$F$207)-1),ROW(44:44)),3),\"\")","v":""},{"$f":"IFERROR(INDEX(masterlist!$D$2:$D$207,MATCH(A48,masterlist!$C$2:$C$207,0)),\"\")","v":""},{"$f":"IFERROR(INDEX(masterlist!$E$2:$E$207,MATCH(A48,masterlist!$C$2:$C$207,0)),\"\")","v":""},{"$f":"IFERROR(INDEX(masterlist!$G$2:$G$207,MATCH(A48,masterlist!$C$2:$C$207,0)),\"\")","v":""},{"$f":"IFERROR(INDEX(masterlist!$H$2:$H$207,MATCH(A48,masterlist!$C$2:$C$207,0)),\"\")","v":""},null,null,{"$f":"IFERROR(HYPERLINK(INDEX(masterlist!$M$2:$M$207,MATCH(A48,masterlist!$C$2:$C$207,0)),INDEX(masterlist!$L$2:$L$207,MATCH(A48,masterlist!$C$2:$C$207,0))),\"\")","v":""},{"$f":"IFERROR(HYPERLINK(INDEX(masterlist!$O$2:$O$207,MATCH(A48,masterlist!$C$2:$C$207,0)),INDEX(masterlist!$N$2:$N$207,MATCH(A48,masterlist!$C$2:$C$207,0))),\"\")","v":""},{"$f":"IFERROR(HYPERLINK(INDEX(masterlist!$Q$2:$Q$207,MATCH(A48,masterlist!$C$2:$C$207,0)),INDEX(masterlist!$P$2:$P$207,MATCH(A48,masterlist!$C$2:$C$207,0))),\"\")","v":""},{"$f":"IFERROR(HYPERLINK(INDEX(masterlist!$S$2:$S$207,MATCH(A48,masterlist!$C$2:$C$207,0)),INDEX(masterlist!$R$2:$R$207,MATCH(A48,masterlist!$C$2:$C$207,0))),\"\")","v":""},{"$f":"IFERROR(HYPERLINK(INDEX(masterlist!$U$2:$U$207,MATCH(A48,masterlist!$C$2:$C$207,0)),INDEX(masterlist!$T$2:$T$207,MATCH(A48,masterlist!$C$2:$C$207,0))),\"\")","v":""}]
[{"$f":"IFERROR(INDEX(masterlist!$A$2:$F$207,SMALL(IF(masterlist!$B$2:$B$207=\"LAB\",ROW(masterlist!$A$2:$F$207)-1),ROW(45:45)),3),\"\")","v":""},{"$f":"IFERROR(INDEX(masterlist!$D$2:$D$207,MATCH(A49,masterlist!$C$2:$C$207,0)),\"\")","v":""},{"$f":"IFERROR(INDEX(masterlist!$E$2:$E$207,MATCH(A49,masterlist!$C$2:$C$207,0)),\"\")","v":""},{"$f":"IFERROR(INDEX(masterlist!$G$2:$G$207,MATCH(A49,masterlist!$C$2:$C$207,0)),\"\")","v":""},{"$f":"IFERROR(INDEX(masterlist!$H$2:$H$207,MATCH(A49,masterlist!$C$2:$C$207,0)),\"\")","v":""},null,null,{"$f":"IFERROR(HYPERLINK(INDEX(masterlist!$M$2:$M$207,MATCH(A49,masterlist!$C$2:$C$207,0)),INDEX(masterlist!$L$2:$L$207,MATCH(A49,masterlist!$C$2:$C$207,0))),\"\")","v":""},{"$f":"IFERROR(HYPERLINK(INDEX(masterlist!$O$2:$O$207,MATCH(A49,masterlist!$C$2:$C$207,0)),INDEX(masterlist!$N$2:$N$207,MATCH(A49,masterlist!$C$2:$C$207,0))),\"\")","v":""},{"$f":"IFERROR(HYPERLINK(INDEX(masterlist!$Q$2:$Q$207,MATCH(A49,masterlist!$C$2:$C$207,0)),INDEX(masterlist!$P$2:$P$207,MATCH(A49,masterlist!$C$2:$C$207,0))),\"\")","v":""},{"$f":"IFERROR(HYPERLINK(INDEX(masterlist!$S$2:$S$207,MATCH(A49,masterlist!$C$2:$C$207,0)),INDEX(masterlist!$R$2:$R$207,MATCH(A49,masterlist!$C$2:$C$207,0))),\"\")","v":""},{"$f":"IFERROR(HYPERLINK(INDEX(masterlist!$U$2:$U$207,MATCH(A49,masterlist!$C$2:$C$207,0)),INDEX(masterlist!$T$2:$T$207,MATCH(A49,masterlist!$C$2:$C$207,0))),\"\")","v":""}]
[{"$f":"IFERROR(INDEX(masterlist!$A$2:$F$207,SMALL(IF(masterlist!$B$2:$B$207=\"LAB\",ROW(masterlist!$A$2:$F$207)-1),ROW(46:46)),3),\"\")","v":""},{"$f":"IFERROR(INDEX(masterlist!$D$2:$D$207,MATCH(A50,masterlist!$C$2:$C$207,0)),\"\")","v":""},{"$f":"IFERROR(INDEX(masterlist!$E$2:$E$207,MATCH(A50,masterlist!$C$2:$C$207,0)),\"\")","v":""},{"$f":"IFERROR(INDEX(masterlist!$G$2:$G$207,MATCH(A50,masterlist!$C$2:$C$207,0)),\"\")","v":""},{"$f":"IFERROR(INDEX(masterlist!$H$2:$H$207,MATCH(A50,masterlist!$C$2:$C$207,0)),\"\")","v":""},null,null,{"$f":"IFERROR(HYPERLINK(INDEX(masterlist!$M$2:$M$207,MATCH(A50,masterlist!$C$2:$C$207,0)),INDEX(masterlist!$L$2:$L$207,MATCH(A50,masterlist!$C$2:$C$207,0))),\"\")","v":""},{"$f":"IFERROR(HYPERLINK(INDEX(masterlist!$O$2:$O$207,MATCH(A50,masterlist!$C$2:$C$207,0)),INDEX(masterlist!$N$2:$N$207,MATCH(A50,masterlist!$C$2:$C$207,0))),\"\")","v":""},{"$f":"IFERROR(HYPERLINK(INDEX(masterlist!$Q$2:$Q$207,MATCH(A50,masterlist!$C$2:$C$207,0)),INDEX(masterlist!$P$2:$P$207,MATCH(A50,masterlist!$C$2:$C$207,0))),\"\")","v":""},{"$f":"IFERROR(HYPERLINK(INDEX(masterlist!$S$2:$S$207,MATCH(A50,masterlist!$C$2:$C$207,0)),INDEX(masterlist!$R$2:$R$207,MATCH(A50,masterlist!$C$2:$C$207,0))),\"\")","v":""},{"$f":"IFERROR(HYPERLINK(INDEX(masterlist!$U$2:$U$207,MATCH(A50,masterlist!$C$2:$C$207,0)),INDEX(masterlist!$T$2:$T$207,MATCH(A50,masterlist!$C$2:$C$207,0))),\"\")","v":""}]

{"sheet":"Dog popn","index":9,"n_rows":50,"n_cols":12,"rows_kept":50,"cut":false,"hidden":true,"merged":[[3,7,3,8]]}
[]
[null,"Instructions : Si l'activité est terminée, inscrivez « 1 » dans la colonne « Statut ». Si l'activité n'a PAS été achevée ou si vous n'êtes pas sûr qu'elle l'ait été, inscrivez « 0 » dans la colonne « Statut »."]
[]
["ID","STADE","subcomponent","ACTIVITES","GUIDE DE REPONSE A LA QUESTION","STATUT","REMARQUES","Rabies Blueprint references and other links"]
[{"$f":"IFERROR(INDEX(masterlist!$A$2:$F$207,SMALL(IF(masterlist!$B$2:$B$207=\"DPM\",ROW(masterlist!$A$2:$F$207)-1),ROW(1:1)),3),\"\")","v":"DPM--0-1"},{"$f":"IFERROR(INDEX(masterlist!$E$2:$E$207,MATCH(A5,masterlist!$C$2:$C$207,0)),\"\")","v":0},null,{"$f":"IFERROR(INDEX(masterlist!$G$2:$G$207,MATCH(A5,masterlist!$C$2:$C$207,0)),\"\")","v":"Y a-t-il des activités de gestion compassionnelle de la population canine entreprises dans le pays par une des parties prenantes ?"},{"$f":"IFERROR(INDEX(masterlist!$H$2:$H$207,MATCH(A5,masterlist!$C$2:$C$207,0)),\"\")","v":"NOTE : L’abattage en masse N’EST PAS considéré comme une stratégie efficace de gestion compassionnelle de la population canine. Cependant, la gestion responsable des chiens est considérée comme appropriée. L’euthanasie des animaux suspects de rage selon les normes internationales fait parte de la gestion compassionnelle de la population canine."},0,null,{"$f":"IFERROR(HYPERLINK(INDEX(masterlist!$M$2:$M$207,MATCH(A5,masterlist!$C$2:$C$207,0)),INDEX(masterlist!$L$2:$L$207,MATCH(A5,masterlist!$C$2:$C$207,0))),\"\")","v":0},{"$f":"IFERROR(HYPERLINK(INDEX(masterlist!$O$2:$O$207,MATCH(A5,masterlist!$C$2:$C$207,0)),INDEX(masterlist!$N$2:$N$207,MATCH(A5,masterlist!$C$2:$C$207,0))),\"\")","v":0},{"$f":"IFERROR(HYPERLINK(INDEX(masterlist!$Q$2:$Q$207,MATCH(A5,masterlist!$C$2:$C$207,0)),INDEX(masterlist!$P$2:$P$207,MATCH(A5,masterlist!$C$2:$C$207,0))),\"\")","v":0},{"$f":"IFERROR(HYPERLINK(INDEX(masterlist!$S$2:$S$207,MATCH(A5,masterlist!$C$2:$C$207,0)),INDEX(masterlist!$R$2:$R$207,MATCH(A5,masterlist!$C$2:$C$207,0))),\"\")","v":0},{"$f":"IFERROR(HYPERLINK(INDEX(masterlist!$U$2:$U$207,MATCH(A5,masterlist!$C$2:$C$207,0)),INDEX(masterlist!$T$2:$T$207,MATCH(A5,masterlist!$C$2:$C$207,0))),\"\")","v":0}]
[{"$f":"IFERROR(INDEX(masterlist!$A$2:$F$207,SMALL(IF(masterlist!$B$2:$B$207=\"DPM\",ROW(masterlist!$A$2:$F$207)-1),ROW(2:2)),3),\"\")","v":"DPM--1-2"},{"$f":"IFERROR(INDEX(masterlist!$E$2:$E$207,MATCH(A6,masterlist!$C$2:$C$207,0)),\"\")","v":1},null,{"$f":"IFERROR(INDEX(masterlist!$G$2:$G$207,MATCH(A6,masterlist!$C$2:$C$207,0)),\"\")","v":"Si le gouvernement abat des chiens sans discernement pour gérer la population canine ou lutter contre la rage, travaillez-vous activement à mettre fin à cette pratique ?"},{"$f":"IFERROR(INDEX(masterlist!$H$2:$H$207,MATCH(A6,masterlist!$C$2:$C$207,0)),\"\")","v":"Vous pouvez répondre « Oui » si l'abattage sans discrimination des chiens n'est pas pratiqué actuellement dans votre pays."},0,null,{"$f":"IFERROR(HYPERLINK(INDEX(masterlist!$M$2:$M$207,MATCH(A6,masterlist!$C$2:$C$207,0)),INDEX(masterlist!$L$2:$L$207,MATCH(A6,masterlist!$C$2:$C$207,0))),\"\")","v":0},{"$f":"IFERROR(HYPERLINK(INDEX(masterlist!$O$2:$O$207,MATCH(A6,masterlist!$C$2:$C$207,0)),INDEX(masterlist!$N$2:$N$207,MATCH(A6,masterlist!$C$2:$C$207,0))),\"\")","v":0},{"$f":"IFERROR(HYPERLINK(VLOOKUP(A6,masterlist!$C$2:$Q$207,15,FALSE),VLOOKUP(A6,masterlist!$C$2:$Q$207,14,FALSE)),\"\")","v":0},{"$f":"IFERROR(HYPERLINK(VLOOKUP(A6,masterlist!$C$2:$S$207,17,FALSE),VLOOKUP(A6,masterlist!$C$2:$S$207,16,FALSE)),\"\")","v":0},{"$f":"IFERROR(HYPERLINK(VLOOKUP(A6,masterlist!$C$2:$U$207,19,FALSE),VLOOKUP(A6,masterlist!$C$2:$U$207,18,FALSE)),\"\")","v":0}]
[{"$f":"IFERROR(INDEX(masterlist!$A$2:$F$207,SMALL(IF(masterlist!$B$2:$B$207=\"DPM\",ROW(masterlist!$A$2:$F$207)-1),ROW(3:3)),3),\"\")","v":"DPM- -1-3"},{"$f":"IFERROR(INDEX(masterlist!$E$2:$E$207,MATCH(A7,masterlist!$C$2:$C$207,0)),\"\")","v":1},null,{"$f":"IFERROR(INDEX(masterlist!$G$2:$G$207,MATCH(A7,masterlist!$C$2:$C$207,0)),\"\")","v":"Y a-t-il eu des discussions avec les parties prenantes* pour créer une stratégie de gestion compassionnelle de la population canine dans une zone (par exemple dans le cadre d’un projet pilote) ?"},{"$f":"IFERROR(INDEX(masterlist!$H$2:$H$207,MATCH(A7,masterlist!$C$2:$C$207,0)),\"\")","v":"Notez qu’il ne s’agit que de discussions et que l’existence d’une stratégie n’est pas nécessaire pour répondre « Oui » à cette question. "},1,null,{"$f":"IFERROR(HYPERLINK(INDEX(masterlist!$M$2:$M$207,MATCH(A7,masterlist!$C$2:$C$207,0)),INDEX(masterlist!$L$2:$L$207,MATCH(A7,masterlist!$C$2:$C$207,0))),\"\")","v":"5.4.16 Dog population management tools"},{"$f":"IFERROR(HYPERLINK(INDEX(masterlist!$O$2:$O$207,MATCH(A7,masterlist!$C$2:$C$207,0)),INDEX(masterlist!$N$2:$N$207,MATCH(A7,masterlist!$C$2:$C$207,0))),\"\")","v":"Guidelines-dog-population-management"},{"$f":"IFERROR(HYPERLINK(VLOOKUP(A7,masterlist!$C$2:$Q$207,15,FALSE),VLOOKUP(A7,masterlist!$C$2:$Q$207,14,FALSE)),\"\")","v":0},{"$f":"IFERROR(HYPERLINK(VLOOKUP(A7,masterlist!$C$2:$S$207,17,FALSE),VLOOKUP(A7,masterlist!$C$2:$S$207,16,FALSE)),\"\")","v":0},{"$f":"IFERROR(HYPERLINK(VLOOKUP(A7,masterlist!$C$2:$U$207,19,FALSE),VLOOKUP(A7,masterlist!$C$2:$U$207,18,FALSE)),\"\")","v":0}]
[{"$f":"IFERROR(INDEX(masterlist!$A$2:$F$207,SMALL(IF(masterlist!$B$2:$B$207=\"DPM\",ROW(masterlist!$A$2:$F$207)-1),ROW(4:4)),3),\"\")","v":"DPM- -1-4"},{"$f":"IFERROR(INDEX(masterlist!$E$2:$E$207,MATCH(A8,masterlist!$C$2:$C$207,0)),\"\")","v":1},null,{"$f":"IFERROR(INDEX(masterlist!$G$2:$G$207,MATCH(A8,masterlist!$C$2:$C$207,0)),\"\")","v":"Avez-vous impliqué des acteurs municipaux dans vos réunions avec les parties prenantes* ? "},{"$f":"IFERROR(INDEX(masterlist!$H$2:$H$207,MATCH(A8,masterlist!$C$2:$C$207,0)),\"\")","v":"Il peut s’agir des autorités responsables de la gestion des chiens communautaires en liberté et de l’enlèvement des déchets. "},0,"Au niveau local, les acteurs sont impliques de facon permanante. Au niveau national, ils font partie des comites de lutte contre les zoonoses",{"$f":"IFERROR(HYPERLINK(INDEX(masterlist!$M$2:$M$207,MATCH(A8,masterlist!$C$2:$C$207,0)),INDEX(masterlist!$L$2:$L$207,MATCH(A8,masterlist!$C$2:$C$207,0))),\"\")","v":0},{"$f":"IFERROR(HYPERLINK(INDEX(masterlist!$O$2:$O$207,MATCH(A8,masterlist!$C$2:$C$207,0)),INDEX(masterlist!$N$2:$N$207,MATCH(A8,masterlist!$C$2:$C$207,0))),\"\")","v":0},{"$f":"IFERROR(HYPERLINK(VLOOKUP(A8,masterlist!$C$2:$Q$207,15,FALSE),VLOOKUP(A8,masterlist!$C$2:$Q$207,14,FALSE)),\"\")","v":0},{"$f":"IFERROR(HYPERLINK(VLOOKUP(A8,masterlist!$C$2:$S$207,17,FALSE),VLOOKUP(A8,masterlist!$C$2:$S$207,16,FALSE)),\"\")","v":0},{"$f":"IFERROR(HYPERLINK(VLOOKUP(A8,masterlist!$C$2:$U$207,19,FALSE),VLOOKUP(A8,masterlist!$C$2:$U$207,18,FALSE)),\"\")","v":0}]
[{"$f":"IFERROR(INDEX(masterlist!$A$2:$F$207,SMALL(IF(masterlist!$B$2:$B$207=\"DPM\",ROW(masterlist!$A$2:$F$207)-1),ROW(5:5)),3),\"\")","v":"DPM- -1-5"},{"$f":"IFERROR(INDEX(masterlist!$E$2:$E$207,MATCH(A9,masterlist!$C$2:$C$207,0)),\"\")","v":1},null,{"$f":"IFERROR(INDEX(masterlist!$G$2:$G$207,MATCH(A9,masterlist!$C$2:$C$207,0)),\"\")","v":"Un nombre de chiens de référence a-t-il été déterminé dans une zone (par exemple, dans le cadre d'un projet pilote) ?"},{"$f":"IFERROR(INDEX(masterlist!$H$2:$H$207,MATCH(A9,masterlist!$C$2:$C$207,0)),\"\")","v":"Ce nombre de référence peut ne concerner qu’une seule zone. Ainsi on peut répondre « Oui » à cette question même si le nombre de référence n’a été précisé que dans une seule communauté et n’est pas nécessairement représentatif de toutes les communautés du pays. "},0,null,{"$f":"IFERROR(HYPERLINK(INDEX(masterlist!$M$2:$M$207,MATCH(A9,masterlist!$C$2:$C$207,0)),INDEX(masterlist!$L$2:$L$207,MATCH(A9,masterlist!$C$2:$C$207,0))),\"\")","v":0},{"$f":"IFERROR(HYPERLINK(INDEX(masterlist!$O$2:$O$207,MATCH(A9,masterlist!$C$2:$C$207,0)),INDEX(masterlist!$N$2:$N$207,MATCH(A9,masterlist!$C$2:$C$207,0))),\"\")","v":0},{"$f":"IFERROR(HYPERLINK(VLOOKUP(A9,masterlist!$C$2:$Q$207,15,FALSE),VLOOKUP(A9,masterlist!$C$2:$Q$207,14,FALSE)),\"\")","v":0},{"$f":"IFERROR(HYPERLINK(VLOOKUP(A9,masterlist!$C$2:$S$207,17,FALSE),VLOOKUP(A9,masterlist!$C$2:$S$207,16,FALSE)),\"\")","v":0},{"$f":"IFERROR(HYPERLINK(VLOOKUP(A9,masterlist!$C$2:$U$207,19,FALSE),VLOOKUP(A9,masterlist!$C$2:$U$207,18,FALSE)),\"\")","v":0}]
[{"$f":"IFERROR(INDEX(masterlist!$A$2:$F$207,SMALL(IF(masterlist!$B$2:$B$207=\"DPM\",ROW(masterlist!$A$2:$F$207)-1),ROW(6:6)),3),\"\")","v":"DPM- -2-6"},{"$f":"IFERROR(INDEX(masterlist!$E$2:$E$207,MATCH(A10,masterlist!$C$2:$C$207,0)),\"\")","v":2},null,{"$f":"IFERROR(INDEX(masterlist!$G$2:$G$207,MATCH(A10,masterlist!$C$2:$C$207,0)),\"\")","v":"Une stratégie compassionnelle de gestion des populations de chiens (DPM) a-t-elle été élaborée et partagée avec toutes les parties prenantes concernées pour une zone donnée (par exemple, dans le cadre d’un projet pilote) ?"},{"$f":"IFERROR(INDEX(masterlist!$H$2:$H$207,MATCH(A10,masterlist!$C$2:$C$207,0)),\"\")","v":"Notez que ceci n’est qu’élaboré et partagé, PAS encore finalisé, entériné ni mise en œuvre. "},0,null,{"$f":"IFERROR(HYPERLINK(INDEX(masterlist!$M$2:$M$207,MATCH(A10,masterlist!$C$2:$C$207,0)),INDEX(masterlist!$L$2:$L$207,MATCH(A10,masterlist!$C$2:$C$207,0))),\"\")","v":"World Animal Protection-DPM guidelines"},{"$f":"IFERROR(HYPERLINK(INDEX(masterlist!$O$2:$O$207,MATCH(A10,masterlist!$C$2:$C$207,0)),INDEX(masterlist!$N$2:$N$207,MATCH(A10,masterlist!$C$2:$C$207,0))),\"\")","v":"World Animal Protection-humane dog management"},{"$f":"IFERROR(HYPERLINK(VLOOKUP(A10,masterlist!$C$2:$Q$207,15,FALSE),VLOOKUP(A10,masterlist!$C$2:$Q$207,14,FALSE)),\"\")","v":0},{"$f":"IFERROR(HYPERLINK(VLOOKUP(A10,masterlist!$C$2:$S$207,17,FALSE),VLOOKUP(A10,masterlist!$C$2:$S$207,16,FALSE)),\"\")","v":0},{"$f":"IFERROR(HYPERLINK(VLOOKUP(A10,masterlist!$C$2:$U$207,19,FALSE),VLOOKUP(A10,masterlist!$C$2:$U$207,18,FALSE)),\"\")","v":0}]
[{"$f":"IFERROR(INDEX(masterlist!$A$2:$F$207,SMALL(IF(masterlist!$B$2:$B$207=\"DPM\",ROW(masterlist!$A$2:$F$207)-1),ROW(7:7)),3),\"\")","v":"DPM- -2-7"},{"$f":"IFERROR(INDEX(masterlist!$E$2:$E$207,MATCH(A11,masterlist!$C$2:$C$207,0)),\"\")","v":2},null,{"$f":"IFERROR(INDEX(masterlist!$G$2:$G$207,MATCH(A11,masterlist!$C$2:$C$207,0)),\"\")","v":"La stratégie de gestion des populations canines a-t-elle été finalisée et mise en œuvre dans une zone (par exemple dans le cadre d’un projet pilote) ?"},{"$f":"IFERROR(INDEX(masterlist!$H$2:$H$207,MATCH(A11,masterlist!$C$2:$C$207,0)),\"\")","v":"NOTE : L’abattage en masse N’EST PAS considéré comme une stratégie efficace de gestion compassionnelle de la population canine. Cependant, la gestion responsable des chiens est considérée comme appropriée. L’euthanasie des animaux suspects de rage selon les normes internationales fait partie de la gestion compassionnelle de la population canine."},0,null,{"$f":"IFERROR(HYPERLINK(INDEX(masterlist!$M$2:$M$207,MATCH(A11,masterlist!$C$2:$C$207,0)),INDEX(masterlist!$L$2:$L$207,MATCH(A11,masterlist!$C$2:$C$207,0))),\"\")","v":"Monitoring and evaluation of dog population management programmes"},{"$f":"IFERROR(HYPERLINK(INDEX(masterlist!$O$2:$O$207,MATCH(A11,masterlist!$C$2:$C$207,0)),INDEX(masterlist!$N$2:$N$207,MATCH(A11,masterlist!$C$2:$C$207,0))),\"\")","v":"OIE-terrestrial code chapter 7.7"},{"$f":"IFERROR(HYPERLINK(VLOOKUP(A11,masterlist!$C$2:$Q$207,15,FALSE),VLOOKUP(A11,masterlist!$C$2:$Q$207,14,FALSE)),\"\")","v":0},{"$f":"IFERROR(HYPERLINK(VLOOKUP(A11,masterlist!$C$2:$S$207,17,FALSE),VLOOKUP(A11,masterlist!$C$2:$S$207,16,FALSE)),\"\")","v":0},{"$f":"IFERROR(HYPERLINK(VLOOKUP(A11,masterlist!$C$2:$U$207,19,FALSE),VLOOKUP(A11,masterlist!$C$2:$U$207,18,FALSE)),\"\")","v":0}]
[{"$f":"IFERROR(INDEX(masterlist!$A$2:$F$207,SMALL(IF(masterlist!$B$2:$B$207=\"DPM\",ROW(masterlist!$A$2:$F$207)-1),ROW(8:8)),3),\"\")","v":"DPM- -2-8"},{"$f":"IFERROR(INDEX(masterlist!$E$2:$E$207,MATCH(A12,masterlist!$C$2:$C$207,0)),\"\")","v":2},null,{"$f":"IFERROR(INDEX(masterlist!$G$2:$G$207,MATCH(A12,masterlist!$C$2:$C$207,0)),\"\")","v":"Des professionnels ont-ils été formés sur la gestion compassionnelle des populations canines dans une zone (par exemple dans le cadre d’un projet pilote) ?"},{"$f":"IFERROR(INDEX(masterlist!$H$2:$H$207,MATCH(A12,masterlist!$C$2:$C$207,0)),\"\")","v":"Si les professionnels ont suivi des cours en ligne centrés sur la gestion compassionnelle des populations canines, vous pouvez répondre « Oui ». "},0,null,{"$f":"IFERROR(HYPERLINK(INDEX(masterlist!$M$2:$M$207,MATCH(A12,masterlist!$C$2:$C$207,0)),INDEX(masterlist!$L$2:$L$207,MATCH(A12,masterlist!$C$2:$C$207,0))),\"\")","v":"GARC Animal Handling and Vaccination course"},{"$f":"IFERROR(HYPERLINK(INDEX(masterlist!$O$2:$O$207,MATCH(A12,masterlist!$C$2:$C$207,0)),INDEX(masterlist!$N$2:$N$207,MATCH(A12,masterlist!$C$2:$C$207,0))),\"\")","v":0},{"$f":"IFERROR(HYPERLINK(VLOOKUP(A12,masterlist!$C$2:$Q$207,15,FALSE),VLOOKUP(A12,masterlist!$C$2:$Q$207,14,FALSE)),\"\")","v":0},{"$f":"IFERROR(HYPERLINK(VLOOKUP(A12,masterlist!$C$2:$S$207,17,FALSE),VLOOKUP(A12,masterlist!$C$2:$S$207,16,FALSE)),\"\")","v":0},{"$f":"IFERROR(HYPERLINK(VLOOKUP(A12,masterlist!$C$2:$U$207,19,FALSE),VLOOKUP(A12,masterlist!$C$2:$U$207,18,FALSE)),\"\")","v":0}]
[{"$f":"IFERROR(INDEX(masterlist!$A$2:$F$207,SMALL(IF(masterlist!$B$2:$B$207=\"DPM\",ROW(masterlist!$A$2:$F$207)-1),ROW(9:9)),3),\"\")","v":"DPM- -2-9"},{"$f":"IFERROR(INDEX(masterlist!$E$2:$E$207,MATCH(A13,masterlist!$C$2:$C$207,0)),\"\")","v":2},null,{"$f":"IFERROR(INDEX(masterlist!$G$2:$G$207,MATCH(A13,masterlist!$C$2:$C$207,0)),\"\")","v":"Des campagnes de sensibilisation du public à la gestion compassionnelle des populations canines ont-elles été mises en œuvre dans une zone (par exemple dans le cadre d’un projet pilote) ?"},{"$f":"IFERROR(INDEX(masterlist!$H$2:$H$207,MATCH(A13,masterlist!$C$2:$C$207,0)),\"\")","v":"Si vous sensibilisez les communautés à la possession responsable de chiens, vous pouvez répondre à cette question par l'affirmative."},0,"strategie et obligations destinees aux proprietaires est en place (animaux a proprietaires)",{"$f":"IFERROR(HYPERLINK(INDEX(masterlist!$M$2:$M$207,MATCH(A13,masterlist!$C$2:$C$207,0)),INDEX(masterlist!$L$2:$L$207,MATCH(A13,masterlist!$C$2:$C$207,0))),\"\")","v":0},{"$f":"IFERROR(HYPERLINK(INDEX(masterlist!$O$2:$O$207,MATCH(A13,masterlist!$C$2:$C$207,0)),INDEX(masterlist!$N$2:$N$207,MATCH(A13,masterlist!$C$2:$C$207,0))),\"\")","v":0},{"$f":"IFERROR(HYPERLINK(VLOOKUP(A13,masterlist!$C$2:$Q$207,15,FALSE),VLOOKUP(A13,masterlist!$C$2:$Q$207,14,FALSE)),\"\")","v":0},{"$f":"IFERROR(HYPERLINK(VLOOKUP(A13,masterlist!$C$2:$S$207,17,FALSE),VLOOKUP(A13,masterlist!$C$2:$S$207,16,FALSE)),\"\")","v":0},{"$f":"IFERROR(HYPERLINK(VLOOKUP(A13,masterlist!$C$2:$U$207,19,FALSE),VLOOKUP(A13,masterlist!$C$2:$U$207,18,FALSE)),\"\")","v":0}]
[{"$f":"IFERROR(INDEX(masterlist!$A$2:$F$207,SMALL(IF(masterlist!$B$2:$B$207=\"DPM\",ROW(masterlist!$A$2:$F$207)-1),ROW(10:10)),3),\"\")","v":"DPM- -3-10"},{"$f":"IFERROR(INDEX(masterlist!$E$2:$E$207,MATCH(A14,masterlist!$C$2:$C$207,0)),\"\")","v":3},null,{"$f":"IFERROR(INDEX(masterlist!$G$2:$G$207,MATCH(A14,masterlist!$C$2:$C$207,0)),\"\")","v":"La stratégie de gestion compassionnelle des populations canines a-t-elle été évaluée et affinée sur la base des résultats obtenus dans la zone du projet (par exemple, dans le cadre d’un projet pilote) ?"},{"$f":"IFERROR(INDEX(masterlist!$H$2:$H$207,MATCH(A14,masterlist!$C$2:$C$207,0)),\"\")","v":"Noter que ceci ne concerne que la zone de projet sélectionnée (Par exemple un projet pilote) et non pas dans l’ensemble du pays. "},0,null,{"$f":"IFERROR(HYPERLINK(INDEX(masterlist!$M$2:$M$207,MATCH(A14,masterlist!$C$2:$C$207,0)),INDEX(masterlist!$L$2:$L$207,MATCH(A14,masterlist!$C$2:$C$207,0))),\"\")","v":"Knowledge-Attitude-Practice"},{"$f":"IFERROR(HYPERLINK(INDEX(masterlist!$O$2:$O$207,MATCH(A14,masterlist!$C$2:$C$207,0)),INDEX(masterlist!$N$2:$N$207,MATCH(A14,masterlist!$C$2:$C$207,0))),\"\")","v":0},{"$f":"IFERROR(HYPERLINK(VLOOKUP(A14,masterlist!$C$2:$Q$207,15,FALSE),VLOOKUP(A14,masterlist!$C$2:$Q$207,14,FALSE)),\"\")","v":0},{"$f":"IFERROR(HYPERLINK(VLOOKUP(A14,masterlist!$C$2:$S$207,17,FALSE),VLOOKUP(A14,masterlist!$C$2:$S$207,16,FALSE)),\"\")","v":0},{"$f":"IFERROR(HYPERLINK(VLOOKUP(A14,masterlist!$C$2:$U$207,19,FALSE),VLOOKUP(A14,masterlist!$C$2:$U$207,18,FALSE)),\"\")","v":0}]
[{"$f":"IFERROR(INDEX(masterlist!$A$2:$F$207,SMALL(IF(masterlist!$B$2:$B$207=\"DPM\",ROW(masterlist!$A$2:$F$207)-1),ROW(11:11)),3),\"\")","v":"DPM- -3-11"},{"$f":"IFERROR(INDEX(masterlist!$E$2:$E$207,MATCH(A15,masterlist!$C$2:$C$207,0)),\"\")","v":3},null,{"$f":"IFERROR(INDEX(masterlist!$G$2:$G$207,MATCH(A15,masterlist!$C$2:$C$207,0)),\"\")","v":"Des campagnes de sensibilisation du public à la gestion compassionnelle des populations canines ont-elles été étendues à d’autres régions du pays ? "},{"$f":"IFERROR(INDEX(masterlist!$H$2:$H$207,MATCH(A15,masterlist!$C$2:$C$207,0)),\"\")","v":" "},0,null,{"$f":"IFERROR(HYPERLINK(INDEX(masterlist!$M$2:$M$207,MATCH(A15,masterlist!$C$2:$C$207,0)),INDEX(masterlist!$L$2:$L$207,MATCH(A15,masterlist!$C$2:$C$207,0))),\"\")","v":"Communication-plan"},{"$f":"IFERROR(HYPERLINK(INDEX(masterlist!$O$2:$O$207,MATCH(A15,masterlist!$C$2:$C$207,0)),INDEX(masterlist!$N$2:$N$207,MATCH(A15,masterlist!$C$2:$C$207,0))),\"\")","v":"5.4.16- dog-population-management"},{"$f":"IFERROR(HYPERLINK(VLOOKUP(A15,masterlist!$C$2:$Q$207,15,FALSE),VLOOKUP(A15,masterlist!$C$2:$Q$207,14,FALSE)),\"\")","v":0},{"$f":"IFERROR(HYPERLINK(VLOOKUP(A15,masterlist!$C$2:$S$207,17,FALSE),VLOOKUP(A15,masterlist!$C$2:$S$207,16,FALSE)),\"\")","v":0},{"$f":"IFERROR(HYPERLINK(VLOOKUP(A15,masterlist!$C$2:$U$207,19,FALSE),VLOOKUP(A15,masterlist!$C$2:$U$207,18,FALSE)),\"\")","v":0}]
[{"$f":"IFERROR(INDEX(masterlist!$A$2:$F$207,SMALL(IF(masterlist!$B$2:$B$207=\"DPM\",ROW(masterlist!$A$2:$F$207)-1),ROW(12:12)),3),\"\")","v":"DPM- -3-12"},{"$f":"IFERROR(INDEX(masterlist!$E$2:$E$207,MATCH(A16,masterlist!$C$2:$C$207,0)),\"\")","v":3},null,{"$f":"IFERROR(INDEX(masterlist!$G$2:$G$207,MATCH(A16,masterlist!$C$2:$C$207,0)),\"\")","v":"La plupart des professionnels impliqués dans la gestion compassionnelle des populations canines ont-ils complété une formation de vétérinaire ou de technicien animalier sur ce sujet dans l’ensemble du pays ? "},{"$f":"IFERROR(INDEX(masterlist!$H$2:$H$207,MATCH(A16,masterlist!$C$2:$C$207,0)),\"\")","v":"La formation concerne les procédures et techniques de gestion compassionnelle des populations canines, telles que les meilleures pratiques relatives à la stérilisation sûre et sans cruauté. Cette disposition ne s'applique pas à la formation vétérinaire sur la vaccination de base des chiens, par exemple. "},0,null,{"$f":"IFERROR(HYPERLINK(INDEX(masterlist!$M$2:$M$207,MATCH(A16,masterlist!$C$2:$C$207,0)),INDEX(masterlist!$L$2:$L$207,MATCH(A16,masterlist!$C$2:$C$207,0))),\"\")","v":0},{"$f":"IFERROR(HYPERLINK(INDEX(masterlist!$O$2:$O$207,MATCH(A16,masterlist!$C$2:$C$207,0)),INDEX(masterlist!$N$2:$N$207,MATCH(A16,masterlist!$C$2:$C$207,0))),\"\")","v":0},{"$f":"IFERROR(HYPERLINK(VLOOKUP(A16,masterlist!$C$2:$Q$207,15,FALSE),VLOOKUP(A16,masterlist!$C$2:$Q$207,14,FALSE)),\"\")","v":0},{"$f":"IFERROR(HYPERLINK(VLOOKUP(A16,masterlist!$C$2:$S$207,17,FALSE),VLOOKUP(A16,masterlist!$C$2:$S$207,16,FALSE)),\"\")","v":0},{"$f":"IFERROR(HYPERLINK(VLOOKUP(A16,masterlist!$C$2:$U$207,19,FALSE),VLOOKUP(A16,masterlist!$C$2:$U$207,18,FALSE)),\"\")","v":0}]
[{"$f":"IFERROR(INDEX(masterlist!$A$2:$F$207,SMALL(IF(masterlist!$B$2:$B$207=\"DPM\",ROW(masterlist!$A$2:$F$207)-1),ROW(13:13)),3),\"\")","v":"DPM- -5-13"},{"$f":"IFERROR(INDEX(masterlist!$E$2:$E$207,MATCH(A17,masterlist!$C$2:$C$207,0)),\"\")","v":5},{"$f":"IFERROR(INDEX(masterlist!$D$2:$D$207,MATCH(A17,masterlist!$C$2:$C$207,0)),\"\")","v":" "},{"$f":"IFERROR(INDEX(masterlist!$G$2:$G$207,MATCH(A17,masterlist!$C$2:$C$207,0)),\"\")","v":"La stratégie définitive de gestion compassionnelle des populations canines a-t-elle été mise en œuvre dans l’ensemble du pays ? "},{"$f":"IFERROR(INDEX(masterlist!$H$2:$H$207,MATCH(A17,masterlist!$C$2:$C$207,0)),\"\")","v":" "},0,null,{"$f":"IFERROR(HYPERLINK(INDEX(masterlist!$M$2:$M$207,MATCH(A17,masterlist!$C$2:$C$207,0)),INDEX(masterlist!$L$2:$L$207,MATCH(A17,masterlist!$C$2:$C$207,0))),\"\")","v":0},{"$f":"IFERROR(HYPERLINK(INDEX(masterlist!$O$2:$O$207,MATCH(A17,masterlist!$C$2:$C$207,0)),INDEX(masterlist!$N$2:$N$207,MATCH(A17,masterlist!$C$2:$C$207,0))),\"\")","v":0},{"$f":"IFERROR(HYPERLINK(VLOOKUP(A17,masterlist!$C$2:$Q$207,15,FALSE),VLOOKUP(A17,masterlist!$C$2:$Q$207,14,FALSE)),\"\")","v":0},{"$f":"IFERROR(HYPERLINK(VLOOKUP(A17,masterlist!$C$2:$S$207,17,FALSE),VLOOKUP(A17,masterlist!$C$2:$S$207,16,FALSE)),\"\")","v":0},{"$f":"IFERROR(HYPERLINK(VLOOKUP(A17,masterlist!$C$2:$U$207,19,FALSE),VLOOKUP(A17,masterlist!$C$2:$U$207,18,FALSE)),\"\")","v":0}]
[{"$f":"IFERROR(INDEX(masterlist!$A$2:$F$207,SMALL(IF(masterlist!$B$2:$B$207=\"DPM\",ROW(masterlist!$A$2:$F$207)-1),ROW(14:14)),3),\"\")","v":"DPM- -5-14"},{"$f":"IFERROR(INDEX(masterlist!$E$2:$E$207,MATCH(A18,masterlist!$C$2:$C$207,0)),\"\")","v":5},{"$f":"IFERROR(INDEX(masterlist!$D$2:$D$207,MATCH(A18,masterlist!$C$2:$C$207,0)),\"\")","v":" "},{"$f":"IFERROR(INDEX(masterlist!$G$2:$G$207,MATCH(A18,masterlist!$C$2:$C$207,0)),\"\")","v":"Les campagnes en faveur de la gestion compassionnelle des populations canines ont-elles été poursuivies dans l’ensemble du pays après l’élimination de la rage canine ? "},{"$f":"IFERROR(INDEX(masterlist!$H$2:$H$207,MATCH(A18,masterlist!$C$2:$C$207,0)),\"\")","v":" "},0,null,{"$f":"IFERROR(HYPERLINK(INDEX(masterlist!$M$2:$M$207,MATCH(A18,masterlist!$C$2:$C$207,0)),INDEX(masterlist!$L$2:$L$207,MATCH(A18,masterlist!$C$2:$C$207,0))),\"\")","v":"Guidelines-dog-population-management"},{"$f":"IFERROR(HYPERLINK(INDEX(masterlist!$O$2:$O$207,MATCH(A18,masterlist!$C$2:$C$207,0)),INDEX(masterlist!$N$2:$N$207,MATCH(A18,masterlist!$C$2:$C$207,0))),\"\")","v":0},{"$f":"IFERROR(HYPERLINK(VLOOKUP(A18,masterlist!$C$2:$Q$207,15,FALSE),VLOOKUP(A18,masterlist!$C$2:$Q$207,14,FALSE)),\"\")","v":0},{"$f":"IFERROR(HYPERLINK(VLOOKUP(A18,masterlist!$C$2:$S$207,17,FALSE),VLOOKUP(A18,masterlist!$C$2:$S$207,16,FALSE)),\"\")","v":0},{"$f":"IFERROR(HYPERLINK(VLOOKUP(A18,masterlist!$C$2:$U$207,19,FALSE),VLOOKUP(A18,masterlist!$C$2:$U$207,18,FALSE)),\"\")","v":0}]
[{"$f":"IFERROR(INDEX(masterlist!$A$2:$F$207,SMALL(IF(masterlist!$B$2:$B$207=\"DPM\",ROW(masterlist!$A$2:$F$207)-1),ROW(15:15)),3),\"\")","v":""},{"$f":"IFERROR(INDEX(masterlist!$E$2:$E$207,MATCH(A19,masterlist!$C$2:$C$207,0)),\"\")","v":""},{"$f":"IFERROR(INDEX(masterlist!$D$2:$D$207,MATCH(A19,masterlist!$C$2:$C$207,0)),\"\")","v":""},{"$f":"IFERROR(INDEX(masterlist!$G$2:$G$207,MATCH(A19,masterlist!$C$2:$C$207,0)),\"\")","v":""},{"$f":"IFERROR(INDEX(masterlist!$H$2:$H$207,MATCH(A19,masterlist!$C$2:$C$207,0)),\"\")","v":""},null,null,{"$f":"IFERROR(HYPERLINK(INDEX(masterlist!$M$2:$M$207,MATCH(A19,masterlist!$C$2:$C$207,0)),INDEX(masterlist!$L$2:$L$207,MATCH(A19,masterlist!$C$2:$C$207,0))),\"\")","v":""},{"$f":"IFERROR(HYPERLINK(INDEX(masterlist!$O$2:$O$207,MATCH(A19,masterlist!$C$2:$C$207,0)),INDEX(masterlist!$N$2:$N$207,MATCH(A19,masterlist!$C$2:$C$207,0))),\"\")","v":""},{"$f":"IFERROR(HYPERLINK(VLOOKUP(A19,masterlist!$C$2:$Q$207,15,FALSE),VLOOKUP(A19,masterlist!$C$2:$Q$207,14,FALSE)),\"\")","v":""},{"$f":"IFERROR(HYPERLINK(VLOOKUP(A19,masterlist!$C$2:$S$207,17,FALSE),VLOOKUP(A19,masterlist!$C$2:$S$207,16,FALSE)),\"\")","v":""},{"$f":"IFERROR(HYPERLINK(VLOOKUP(A19,masterlist!$C$2:$U$207,19,FALSE),VLOOKUP(A19,masterlist!$C$2:$U$207,18,FALSE)),\"\")","v":""}]
[{"$f":"IFERROR(INDEX(masterlist!$A$2:$F$207,SMALL(IF(masterlist!$B$2:$B$207=\"DPM\",ROW(masterlist!$A$2:$F$207)-1),ROW(16:16)),3),\"\")","v":""},{"$f":"IFERROR(INDEX(masterlist!$E$2:$E$207,MATCH(A20,masterlist!$C$2:$C$207,0)),\"\")","v":""},{"$f":"IFERROR(INDEX(masterlist!$D$2:$D$207,MATCH(A20,masterlist!$C$2:$C$207,0)),\"\")","v":""},{"$f":"IFERROR(INDEX(masterlist!$G$2:$G$207,MATCH(A20,masterlist!$C$2:$C$207,0)),\"\")","v":""},{"$f":"IFERROR(INDEX(masterlist!$H$2:$H$207,MATCH(A20,masterlist!$C$2:$C$207,0)),\"\")","v":""},null,null,{"$f":"IFERROR(HYPERLINK(INDEX(masterlist!$M$2:$M$207,MATCH(A20,masterlist!$C$2:$C$207,0)),INDEX(masterlist!$L$2:$L$207,MATCH(A20,masterlist!$C$2:$C$207,0))),\"\")","v":""},{"$f":"IFERROR(HYPERLINK(INDEX(masterlist!$O$2:$O$207,MATCH(A20,masterlist!$C$2:$C$207,0)),INDEX(masterlist!$N$2:$N$207,MATCH(A20,masterlist!$C$2:$C$207,0))),\"\")","v":""},{"$f":"IFERROR(HYPERLINK(VLOOKUP(A20,masterlist!$C$2:$Q$207,15,FALSE),VLOOKUP(A20,masterlist!$C$2:$Q$207,14,FALSE)),\"\")","v":""},{"$f":"IFERROR(HYPERLINK(VLOOKUP(A20,masterlist!$C$2:$S$207,17,FALSE),VLOOKUP(A20,masterlist!$C$2:$S$207,16,FALSE)),\"\")","v":""},{"$f":"IFERROR(HYPERLINK(VLOOKUP(A20,masterlist!$C$2:$U$207,19,FALSE),VLOOKUP(A20,masterlist!$C$2:$U$207,18,FALSE)),\"\")","v":""}]
[{"$f":"IFERROR(INDEX(masterlist!$A$2:$F$207,SMALL(IF(masterlist!$B$2:$B$207=\"DPM\",ROW(masterlist!$A$2:$F$207)-1),ROW(17:17)),3),\"\")","v":""},{"$f":"IFERROR(INDEX(masterlist!$E$2:$E$207,MATCH(A21,masterlist!$C$2:$C$207,0)),\"\")","v":""},{"$f":"IFERROR(INDEX(masterlist!$D$2:$D$207,MATCH(A21,masterlist!$C$2:$C$207,0)),\"\")","v":""},{"$f":"IFERROR(INDEX(masterlist!$G$2:$G$207,MATCH(A21,masterlist!$C$2:$C$207,0)),\"\")","v":""},{"$f":"IFERROR(INDEX(masterlist!$H$2:$H$207,MATCH(A21,masterlist!$C$2:$C$207,0)),\"\")","v":""},null,null,{"$f":"IFERROR(HYPERLINK(INDEX(masterlist!$M$2:$M$207,MATCH(A21,masterlist!$C$2:$C$207,0)),INDEX(masterlist!$L$2:$L$207,MATCH(A21,masterlist!$C$2:$C$207,0))),\"\")","v":""},{"$f":"IFERROR(HYPERLINK(INDEX(masterlist!$O$2:$O$207,MATCH(A21,masterlist!$C$2:$C$207,0)),INDEX(masterlist!$N$2:$N$207,MATCH(A21,masterlist!$C$2:$C$207,0))),\"\")","v":""},{"$f":"IFERROR(HYPERLINK(VLOOKUP(A21,masterlist!$C$2:$Q$207,15,FALSE),VLOOKUP(A21,masterlist!$C$2:$Q$207,14,FALSE)),\"\")","v":""},{"$f":"IFERROR(HYPERLINK(VLOOKUP(A21,masterlist!$C$2:$S$207,17,FALSE),VLOOKUP(A21,masterlist!$C$2:$S$207,16,FALSE)),\"\")","v":""},{"$f":"IFERROR(HYPERLINK(VLOOKUP(A21,masterlist!$C$2:$U$207,19,FALSE),VLOOKUP(A21,masterlist!$C$2:$U$207,18,FALSE)),\"\")","v":""}]
[{"$f":"IFERROR(INDEX(masterlist!$A$2:$F$207,SMALL(IF(masterlist!$B$2:$B$207=\"DPM\",ROW(masterlist!$A$2:$F$207)-1),ROW(18:18)),3),\"\")","v":""},{"$f":"IFERROR(INDEX(masterlist!$E$2:$E$207,MATCH(A22,masterlist!$C$2:$C$207,0)),\"\")","v":""},{"$f":"IFERROR(INDEX(masterlist!$D$2:$D$207,MATCH(A22,masterlist!$C$2:$C$207,0)),\"\")","v":""},{"$f":"IFERROR(INDEX(masterlist!$G$2:$G$207,MATCH(A22,masterlist!$C$2:$C$207,0)),\"\")","v":""},{"$f":"IFERROR(INDEX(masterlist!$H$2:$H$207,MATCH(A22,masterlist!$C$2:$C$207,0)),\"\")","v":""},null,null,{"$f":"IFERROR(HYPERLINK(INDEX(masterlist!$M$2:$M$207,MATCH(A22,masterlist!$C$2:$C$207,0)),INDEX(masterlist!$L$2:$L$207,MATCH(A22,masterlist!$C$2:$C$207,0))),\"\")","v":""},{"$f":"IFERROR(HYPERLINK(INDEX(masterlist!$O$2:$O$207,MATCH(A22,masterlist!$C$2:$C$207,0)),INDEX(masterlist!$N$2:$N$207,MATCH(A22,masterlist!$C$2:$C$207,0))),\"\")","v":""},{"$f":"IFERROR(HYPERLINK(VLOOKUP(A22,masterlist!$C$2:$Q$207,15,FALSE),VLOOKUP(A22,masterlist!$C$2:$Q$207,14,FALSE)),\"\")","v":""},{"$f":"IFERROR(HYPERLINK(VLOOKUP(A22,masterlist!$C$2:$S$207,17,FALSE),VLOOKUP(A22,masterlist!$C$2:$S$207,16,FALSE)),\"\")","v":""},{"$f":"IFERROR(HYPERLINK(VLOOKUP(A22,masterlist!$C$2:$U$207,19,FALSE),VLOOKUP(A22,masterlist!$C$2:$U$207,18,FALSE)),\"\")","v":""}]
[{"$f":"IFERROR(INDEX(masterlist!$A$2:$F$207,SMALL(IF(masterlist!$B$2:$B$207=\"DPM\",ROW(masterlist!$A$2:$F$207)-1),ROW(19:19)),3),\"\")","v":""},{"$f":"IFERROR(INDEX(masterlist!$E$2:$E$207,MATCH(A23,masterlist!$C$2:$C$207,0)),\"\")","v":""},{"$f":"IFERROR(INDEX(masterlist!$D$2:$D$207,MATCH(A23,masterlist!$C$2:$C$207,0)),\"\")","v":""},{"$f":"IFERROR(INDEX(masterlist!$G$2:$G$207,MATCH(A23,masterlist!$C$2:$C$207,0)),\"\")","v":""},{"$f":"IFERROR(INDEX(masterlist!$H$2:$H$207,MATCH(A23,masterlist!$C$2:$C$207,0)),\"\")","v":""},null,null,{"$f":"IFERROR(HYPERLINK(INDEX(masterlist!$M$2:$M$207,MATCH(A23,masterlist!$C$2:$C$207,0)),INDEX(masterlist!$L$2:$L$207,MATCH(A23,masterlist!$C$2:$C$207,0))),\"\")","v":""},{"$f":"IFERROR(HYPERLINK(INDEX(masterlist!$O$2:$O$207,MATCH(A23,masterlist!$C$2:$C$207,0)),INDEX(masterlist!$N$2:$N$207,MATCH(A23,masterlist!$C$2:$C$207,0))),\"\")","v":""},{"$f":"IFERROR(HYPERLINK(VLOOKUP(A23,masterlist!$C$2:$Q$207,15,FALSE),VLOOKUP(A23,masterlist!$C$2:$Q$207,14,FALSE)),\"\")","v":""},{"$f":"IFERROR(HYPERLINK(VLOOKUP(A23,masterlist!$C$2:$S$207,17,FALSE),VLOOKUP(A23,masterlist!$C$2:$S$207,16,FALSE)),\"\")","v":""},{"$f":"IFERROR(HYPERLINK(VLOOKUP(A23,masterlist!$C$2:$U$207,19,FALSE),VLOOKUP(A23,masterlist!$C$2:$U$207,18,FALSE)),\"\")","v":""}]
[{"$f":"IFERROR(INDEX(masterlist!$A$2:$F$207,SMALL(IF(masterlist!$B$2:$B$207=\"DPM\",ROW(masterlist!$A$2:$F$207)-1),ROW(20:20)),3),\"\")","v":""},{"$f":"IFERROR(INDEX(masterlist!$E$2:$E$207,MATCH(A24,masterlist!$C$2:$C$207,0)),\"\")","v":""},{"$f":"IFERROR(INDEX(masterlist!$D$2:$D$207,MATCH(A24,masterlist!$C$2:$C$207,0)),\"\")","v":""},{"$f":"IFERROR(INDEX(masterlist!$G$2:$G$207,MATCH(A24,masterlist!$C$2:$C$207,0)),\"\")","v":""},{"$f":"IFERROR(INDEX(masterlist!$H$2:$H$207,MATCH(A24,masterlist!$C$2:$C$207,0)),\"\")","v":""},null,null,{"$f":"IFERROR(HYPERLINK(INDEX(masterlist!$M$2:$M$207,MATCH(A24,masterlist!$C$2:$C$207,0)),INDEX(masterlist!$L$2:$L$207,MATCH(A24,masterlist!$C$2:$C$207,0))),\"\")","v":""},{"$f":"IFERROR(HYPERLINK(INDEX(masterlist!$O$2:$O$207,MATCH(A24,masterlist!$C$2:$C$207,0)),INDEX(masterlist!$N$2:$N$207,MATCH(A24,masterlist!$C$2:$C$207,0))),\"\")","v":""},{"$f":"IFERROR(HYPERLINK(VLOOKUP(A24,masterlist!$C$2:$Q$207,15,FALSE),VLOOKUP(A24,masterlist!$C$2:$Q$207,14,FALSE)),\"\")","v":""},{"$f":"IFERROR(HYPERLINK(VLOOKUP(A24,masterlist!$C$2:$S$207,17,FALSE),VLOOKUP(A24,masterlist!$C$2:$S$207,16,FALSE)),\"\")","v":""},{"$f":"IFERROR(HYPERLINK(VLOOKUP(A24,masterlist!$C$2:$U$207,19,FALSE),VLOOKUP(A24,masterlist!$C$2:$U$207,18,FALSE)),\"\")","v":""}]
[{"$f":"IFERROR(INDEX(masterlist!$A$2:$F$207,SMALL(IF(masterlist!$B$2:$B$207=\"DPM\",ROW(masterlist!$A$2:$F$207)-1),ROW(21:21)),3),\"\")","v":""},{"$f":"IFERROR(INDEX(masterlist!$E$2:$E$207,MATCH(A25,masterlist!$C$2:$C$207,0)),\"\")","v":""},{"$f":"IFERROR(INDEX(masterlist!$D$2:$D$207,MATCH(A25,masterlist!$C$2:$C$207,0)),\"\")","v":""},{"$f":"IFERROR(INDEX(masterlist!$G$2:$G$207,MATCH(A25,masterlist!$C$2:$C$207,0)),\"\")","v":""},{"$f":"IFERROR(INDEX(masterlist!$H$2:$H$207,MATCH(A25,masterlist!$C$2:$C$207,0)),\"\")","v":""},null,null,{"$f":"IFERROR(HYPERLINK(INDEX(masterlist!$M$2:$M$207,MATCH(A25,masterlist!$C$2:$C$207,0)),INDEX(masterlist!$L$2:$L$207,MATCH(A25,masterlist!$C$2:$C$207,0))),\"\")","v":""},{"$f":"IFERROR(HYPERLINK(INDEX(masterlist!$O$2:$O$207,MATCH(A25,masterlist!$C$2:$C$207,0)),INDEX(masterlist!$N$2:$N$207,MATCH(A25,masterlist!$C$2:$C$207,0))),\"\")","v":""},{"$f":"IFERROR(HYPERLINK(VLOOKUP(A25,masterlist!$C$2:$Q$207,15,FALSE),VLOOKUP(A25,masterlist!$C$2:$Q$207,14,FALSE)),\"\")","v":""},{"$f":"IFERROR(HYPERLINK(VLOOKUP(A25,masterlist!$C$2:$S$207,17,FALSE),VLOOKUP(A25,masterlist!$C$2:$S$207,16,FALSE)),\"\")","v":""},{"$f":"IFERROR(HYPERLINK(VLOOKUP(A25,masterlist!$C$2:$U$207,19,FALSE),VLOOKUP(A25,masterlist!$C$2:$U$207,18,FALSE)),\"\")","v":""}]
[{"$f":"IFERROR(INDEX(masterlist!$A$2:$F$207,SMALL(IF(masterlist!$B$2:$B$207=\"DPM\",ROW(masterlist!$A$2:$F$207)-1),ROW(22:22)),3),\"\")","v":""},{"$f":"IFERROR(INDEX(masterlist!$E$2:$E$207,MATCH(A26,masterlist!$C$2:$C$207,0)),\"\")","v":""},{"$f":"IFERROR(INDEX(masterlist!$D$2:$D$207,MATCH(A26,masterlist!$C$2:$C$207,0)),\"\")","v":""},{"$f":"IFERROR(INDEX(masterlist!$G$2:$G$207,MATCH(A26,masterlist!$C$2:$C$207,0)),\"\")","v":""},{"$f":"IFERROR(INDEX(masterlist!$H$2:$H$207,MATCH(A26,masterlist!$C$2:$C$207,0)),\"\")","v":""},null,null,{"$f":"IFERROR(HYPERLINK(INDEX(masterlist!$M$2:$M$207,MATCH(A26,masterlist!$C$2:$C$207,0)),INDEX(masterlist!$L$2:$L$207,MATCH(A26,masterlist!$C$2:$C$207,0))),\"\")","v":""},{"$f":"IFERROR(HYPERLINK(INDEX(masterlist!$O$2:$O$207,MATCH(A26,masterlist!$C$2:$C$207,0)),INDEX(masterlist!$N$2:$N$207,MATCH(A26,masterlist!$C$2:$C$207,0))),\"\")","v":""},{"$f":"IFERROR(HYPERLINK(VLOOKUP(A26,masterlist!$C$2:$Q$207,15,FALSE),VLOOKUP(A26,masterlist!$C$2:$Q$207,14,FALSE)),\"\")","v":""},{"$f":"IFERROR(HYPERLINK(VLOOKUP(A26,masterlist!$C$2:$S$207,17,FALSE),VLOOKUP(A26,masterlist!$C$2:$S$207,16,FALSE)),\"\")","v":""},{"$f":"IFERROR(HYPERLINK(VLOOKUP(A26,masterlist!$C$2:$U$207,19,FALSE),VLOOKUP(A26,masterlist!$C$2:$U$207,18,FALSE)),\"\")","v":""}]
[{"$f":"IFERROR(INDEX(masterlist!$A$2:$F$207,SMALL(IF(masterlist!$B$2:$B$207=\"DPM\",ROW(masterlist!$A$2:$F$207)-1),ROW(23:23)),3),\"\")","v":""},{"$f":"IFERROR(INDEX(masterlist!$E$2:$E$207,MATCH(A27,masterlist!$C$2:$C$207,0)),\"\")","v":""},{"$f":"IFERROR(INDEX(masterlist!$D$2:$D$207,MATCH(A27,masterlist!$C$2:$C$207,0)),\"\")","v":""},{"$f":"IFERROR(INDEX(masterlist!$G$2:$G$207,MATCH(A27,masterlist!$C$2:$C$207,0)),\"\")","v":""},{"$f":"IFERROR(INDEX(masterlist!$H$2:$H$207,MATCH(A27,masterlist!$C$2:$C$207,0)),\"\")","v":""},null,null,{"$f":"IFERROR(HYPERLINK(INDEX(masterlist!$M$2:$M$207,MATCH(A27,masterlist!$C$2:$C$207,0)),INDEX(masterlist!$L$2:$L$207,MATCH(A27,masterlist!$C$2:$C$207,0))),\"\")","v":""},{"$f":"IFERROR(HYPERLINK(INDEX(masterlist!$O$2:$O$207,MATCH(A27,masterlist!$C$2:$C$207,0)),INDEX(masterlist!$N$2:$N$207,MATCH(A27,masterlist!$C$2:$C$207,0))),\"\")","v":""},{"$f":"IFERROR(HYPERLINK(VLOOKUP(A27,masterlist!$C$2:$Q$207,15,FALSE),VLOOKUP(A27,masterlist!$C$2:$Q$207,14,FALSE)),\"\")","v":""},{"$f":"IFERROR(HYPERLINK(VLOOKUP(A27,masterlist!$C$2:$S$207,17,FALSE),VLOOKUP(A27,masterlist!$C$2:$S$207,16,FALSE)),\"\")","v":""},{"$f":"IFERROR(HYPERLINK(VLOOKUP(A27,masterlist!$C$2:$U$207,19,FALSE),VLOOKUP(A27,masterlist!$C$2:$U$207,18,FALSE)),\"\")","v":""}]
[{"$f":"IFERROR(INDEX(masterlist!$A$2:$F$207,SMALL(IF(masterlist!$B$2:$B$207=\"DPM\",ROW(masterlist!$A$2:$F$207)-1),ROW(24:24)),3),\"\")","v":""},{"$f":"IFERROR(INDEX(masterlist!$E$2:$E$207,MATCH(A28,masterlist!$C$2:$C$207,0)),\"\")","v":""},{"$f":"IFERROR(INDEX(masterlist!$D$2:$D$207,MATCH(A28,masterlist!$C$2:$C$207,0)),\"\")","v":""},{"$f":"IFERROR(INDEX(masterlist!$G$2:$G$207,MATCH(A28,masterlist!$C$2:$C$207,0)),\"\")","v":""},{"$f":"IFERROR(INDEX(masterlist!$H$2:$H$207,MATCH(A28,masterlist!$C$2:$C$207,0)),\"\")","v":""},null,null,{"$f":"IFERROR(HYPERLINK(INDEX(masterlist!$M$2:$M$207,MATCH(A28,masterlist!$C$2:$C$207,0)),INDEX(masterlist!$L$2:$L$207,MATCH(A28,masterlist!$C$2:$C$207,0))),\"\")","v":""},{"$f":"IFERROR(HYPERLINK(INDEX(masterlist!$O$2:$O$207,MATCH(A28,masterlist!$C$2:$C$207,0)),INDEX(masterlist!$N$2:$N$207,MATCH(A28,masterlist!$C$2:$C$207,0))),\"\")","v":""},{"$f":"IFERROR(HYPERLINK(VLOOKUP(A28,masterlist!$C$2:$Q$207,15,FALSE),VLOOKUP(A28,masterlist!$C$2:$Q$207,14,FALSE)),\"\")","v":""},{"$f":"IFERROR(HYPERLINK(VLOOKUP(A28,masterlist!$C$2:$S$207,17,FALSE),VLOOKUP(A28,masterlist!$C$2:$S$207,16,FALSE)),\"\")","v":""},{"$f":"IFERROR(HYPERLINK(VLOOKUP(A28,masterlist!$C$2:$U$207,19,FALSE),VLOOKUP(A28,masterlist!$C$2:$U$207,18,FALSE)),\"\")","v":""}]
[{"$f":"IFERROR(INDEX(masterlist!$A$2:$F$207,SMALL(IF(masterlist!$B$2:$B$207=\"DPM\",ROW(masterlist!$A$2:$F$207)-1),ROW(25:25)),3),\"\")","v":""},{"$f":"IFERROR(INDEX(masterlist!$E$2:$E$207,MATCH(A29,masterlist!$C$2:$C$207,0)),\"\")","v":""},{"$f":"IFERROR(INDEX(masterlist!$D$2:$D$207,MATCH(A29,masterlist!$C$2:$C$207,0)),\"\")","v":""},{"$f":"IFERROR(INDEX(masterlist!$G$2:$G$207,MATCH(A29,masterlist!$C$2:$C$207,0)),\"\")","v":""},{"$f":"IFERROR(INDEX(masterlist!$H$2:$H$207,MATCH(A29,masterlist!$C$2:$C$207,0)),\"\")","v":""},null,null,{"$f":"IFERROR(HYPERLINK(INDEX(masterlist!$M$2:$M$207,MATCH(A29,masterlist!$C$2:$C$207,0)),INDEX(masterlist!$L$2:$L$207,MATCH(A29,masterlist!$C$2:$C$207,0))),\"\")","v":""},{"$f":"IFERROR(HYPERLINK(INDEX(masterlist!$O$2:$O$207,MATCH(A29,masterlist!$C$2:$C$207,0)),INDEX(masterlist!$N$2:$N$207,MATCH(A29,masterlist!$C$2:$C$207,0))),\"\")","v":""},{"$f":"IFERROR(HYPERLINK(VLOOKUP(A29,masterlist!$C$2:$Q$207,15,FALSE),VLOOKUP(A29,masterlist!$C$2:$Q$207,14,FALSE)),\"\")","v":""},{"$f":"IFERROR(HYPERLINK(VLOOKUP(A29,masterlist!$C$2:$S$207,17,FALSE),VLOOKUP(A29,masterlist!$C$2:$S$207,16,FALSE)),\"\")","v":""},{"$f":"IFERROR(HYPERLINK(VLOOKUP(A29,masterlist!$C$2:$U$207,19,FALSE),VLOOKUP(A29,masterlist!$C$2:$U$207,18,FALSE)),\"\")","v":""}]
[{"$f":"IFERROR(INDEX(masterlist!$A$2:$F$207,SMALL(IF(masterlist!$B$2:$B$207=\"DPM\",ROW(masterlist!$A$2:$F$207)-1),ROW(26:26)),3),\"\")","v":""},{"$f":"IFERROR(INDEX(masterlist!$E$2:$E$207,MATCH(A30,masterlist!$C$2:$C$207,0)),\"\")","v":""},{"$f":"IFERROR(INDEX(masterlist!$D$2:$D$207,MATCH(A30,masterlist!$C$2:$C$207,0)),\"\")","v":""},{"$f":"IFERROR(INDEX(masterlist!$G$2:$G$207,MATCH(A30,masterlist!$C$2:$C$207,0)),\"\")","v":""},{"$f":"IFERROR(INDEX(masterlist!$H$2:$H$207,MATCH(A30,masterlist!$C$2:$C$207,0)),\"\")","v":""},null,null,{"$f":"IFERROR(HYPERLINK(INDEX(masterlist!$M$2:$M$207,MATCH(A30,masterlist!$C$2:$C$207,0)),INDEX(masterlist!$L$2:$L$207,MATCH(A30,masterlist!$C$2:$C$207,0))),\"\")","v":""},{"$f":"IFERROR(HYPERLINK(INDEX(masterlist!$O$2:$O$207,MATCH(A30,masterlist!$C$2:$C$207,0)),INDEX(masterlist!$N$2:$N$207,MATCH(A30,masterlist!$C$2:$C$207,0))),\"\")","v":""},{"$f":"IFERROR(HYPERLINK(VLOOKUP(A30,masterlist!$C$2:$Q$207,15,FALSE),VLOOKUP(A30,masterlist!$C$2:$Q$207,14,FALSE)),\"\")","v":""},{"$f":"IFERROR(HYPERLINK(VLOOKUP(A30,masterlist!$C$2:$S$207,17,FALSE),VLOOKUP(A30,masterlist!$C$2:$S$207,16,FALSE)),\"\")","v":""},{"$f":"IFERROR(HYPERLINK(VLOOKUP(A30,masterlist!$C$2:$U$207,19,FALSE),VLOOKUP(A30,masterlist!$C$2:$U$207,18,FALSE)),\"\")","v":""}]
[{"$f":"IFERROR(INDEX(masterlist!$A$2:$F$207,SMALL(IF(masterlist!$B$2:$B$207=\"DPM\",ROW(masterlist!$A$2:$F$207)-1),ROW(27:27)),3),\"\")","v":""},{"$f":"IFERROR(INDEX(masterlist!$E$2:$E$207,MATCH(A31,masterlist!$C$2:$C$207,0)),\"\")","v":""},{"$f":"IFERROR(INDEX(masterlist!$D$2:$D$207,MATCH(A31,masterlist!$C$2:$C$207,0)),\"\")","v":""},{"$f":"IFERROR(INDEX(masterlist!$G$2:$G$207,MATCH(A31,masterlist!$C$2:$C$207,0)),\"\")","v":""},{"$f":"IFERROR(INDEX(masterlist!$H$2:$H$207,MATCH(A31,masterlist!$C$2:$C$207,0)),\"\")","v":""},null,null,{"$f":"IFERROR(HYPERLINK(INDEX(masterlist!$M$2:$M$207,MATCH(A31,masterlist!$C$2:$C$207,0)),INDEX(masterlist!$L$2:$L$207,MATCH(A31,masterlist!$C$2:$C$207,0))),\"\")","v":""},{"$f":"IFERROR(HYPERLINK(INDEX(masterlist!$O$2:$O$207,MATCH(A31,masterlist!$C$2:$C$207,0)),INDEX(masterlist!$N$2:$N$207,MATCH(A31,masterlist!$C$2:$C$207,0))),\"\")","v":""},{"$f":"IFERROR(HYPERLINK(VLOOKUP(A31,masterlist!$C$2:$Q$207,15,FALSE),VLOOKUP(A31,masterlist!$C$2:$Q$207,14,FALSE)),\"\")","v":""},{"$f":"IFERROR(HYPERLINK(VLOOKUP(A31,masterlist!$C$2:$S$207,17,FALSE),VLOOKUP(A31,masterlist!$C$2:$S$207,16,FALSE)),\"\")","v":""},{"$f":"IFERROR(HYPERLINK(VLOOKUP(A31,masterlist!$C$2:$U$207,19,FALSE),VLOOKUP(A31,masterlist!$C$2:$U$207,18,FALSE)),\"\")","v":""}]
[{"$f":"IFERROR(INDEX(masterlist!$A$2:$F$207,SMALL(IF(masterlist!$B$2:$B$207=\"DPM\",ROW(masterlist!$A$2:$F$207)-1),ROW(28:28)),3),\"\")","v":""},{"$f":"IFERROR(INDEX(masterlist!$E$2:$E$207,MATCH(A32,masterlist!$C$2:$C$207,0)),\"\")","v":""},{"$f":"IFERROR(INDEX(masterlist!$D$2:$D$207,MATCH(A32,masterlist!$C$2:$C$207,0)),\"\")","v":""},{"$f":"IFERROR(INDEX(masterlist!$G$2:$G$207,MATCH(A32,masterlist!$C$2:$C$207,0)),\"\")","v":""},{"$f":"IFERROR(INDEX(masterlist!$H$2:$H$207,MATCH(A32,masterlist!$C$2:$C$207,0)),\"\")","v":""},null,null,{"$f":"IFERROR(HYPERLINK(INDEX(masterlist!$M$2:$M$207,MATCH(A32,masterlist!$C$2:$C$207,0)),INDEX(masterlist!$L$2:$L$207,MATCH(A32,masterlist!$C$2:$C$207,0))),\"\")","v":""},{"$f":"IFERROR(HYPERLINK(INDEX(masterlist!$O$2:$O$207,MATCH(A32,masterlist!$C$2:$C$207,0)),INDEX(masterlist!$N$2:$N$207,MATCH(A32,masterlist!$C$2:$C$207,0))),\"\")","v":""},{"$f":"IFERROR(HYPERLINK(VLOOKUP(A32,masterlist!$C$2:$Q$207,15,FALSE),VLOOKUP(A32,masterlist!$C$2:$Q$207,14,FALSE)),\"\")","v":""},{"$f":"IFERROR(HYPERLINK(VLOOKUP(A32,masterlist!$C$2:$S$207,17,FALSE),VLOOKUP(A32,masterlist!$C$2:$S$207,16,FALSE)),\"\")","v":""},{"$f":"IFERROR(HYPERLINK(VLOOKUP(A32,masterlist!$C$2:$U$207,19,FALSE),VLOOKUP(A32,masterlist!$C$2:$U$207,18,FALSE)),\"\")","v":""}]
[{"$f":"IFERROR(INDEX(masterlist!$A$2:$F$207,SMALL(IF(masterlist!$B$2:$B$207=\"DPM\",ROW(masterlist!$A$2:$F$207)-1),ROW(29:29)),3),\"\")","v":""},{"$f":"IFERROR(INDEX(masterlist!$E$2:$E$207,MATCH(A33,masterlist!$C$2:$C$207,0)),\"\")","v":""},{"$f":"IFERROR(INDEX(masterlist!$D$2:$D$207,MATCH(A33,masterlist!$C$2:$C$207,0)),\"\")","v":""},{"$f":"IFERROR(INDEX(masterlist!$G$2:$G$207,MATCH(A33,masterlist!$C$2:$C$207,0)),\"\")","v":""},{"$f":"IFERROR(INDEX(masterlist!$H$2:$H$207,MATCH(A33,masterlist!$C$2:$C$207,0)),\"\")","v":""},null,null,{"$f":"IFERROR(HYPERLINK(INDEX(masterlist!$M$2:$M$207,MATCH(A33,masterlist!$C$2:$C$207,0)),INDEX(masterlist!$L$2:$L$207,MATCH(A33,masterlist!$C$2:$C$207,0))),\"\")","v":""},{"$f":"IFERROR(HYPERLINK(INDEX(masterlist!$O$2:$O$207,MATCH(A33,masterlist!$C$2:$C$207,0)),INDEX(masterlist!$N$2:$N$207,MATCH(A33,masterlist!$C$2:$C$207,0))),\"\")","v":""},{"$f":"IFERROR(HYPERLINK(VLOOKUP(A33,masterlist!$C$2:$Q$207,15,FALSE),VLOOKUP(A33,masterlist!$C$2:$Q$207,14,FALSE)),\"\")","v":""},{"$f":"IFERROR(HYPERLINK(VLOOKUP(A33,masterlist!$C$2:$S$207,17,FALSE),VLOOKUP(A33,masterlist!$C$2:$S$207,16,FALSE)),\"\")","v":""},{"$f":"IFERROR(HYPERLINK(VLOOKUP(A33,masterlist!$C$2:$U$207,19,FALSE),VLOOKUP(A33,masterlist!$C$2:$U$207,18,FALSE)),\"\")","v":""}]
[{"$f":"IFERROR(INDEX(masterlist!$A$2:$F$207,SMALL(IF(masterlist!$B$2:$B$207=\"DPM\",ROW(masterlist!$A$2:$F$207)-1),ROW(30:30)),3),\"\")","v":""},{"$f":"IFERROR(INDEX(masterlist!$E$2:$E$207,MATCH(A34,masterlist!$C$2:$C$207,0)),\"\")","v":""},{"$f":"IFERROR(INDEX(masterlist!$D$2:$D$207,MATCH(A34,masterlist!$C$2:$C$207,0)),\"\")","v":""},{"$f":"IFERROR(INDEX(masterlist!$G$2:$G$207,MATCH(A34,masterlist!$C$2:$C$207,0)),\"\")","v":""},{"$f":"IFERROR(INDEX(masterlist!$H$2:$H$207,MATCH(A34,masterlist!$C$2:$C$207,0)),\"\")","v":""},null,null,{"$f":"IFERROR(HYPERLINK(INDEX(masterlist!$M$2:$M$207,MATCH(A34,masterlist!$C$2:$C$207,0)),INDEX(masterlist!$L$2:$L$207,MATCH(A34,masterlist!$C$2:$C$207,0))),\"\")","v":""},{"$f":"IFERROR(HYPERLINK(INDEX(masterlist!$O$2:$O$207,MATCH(A34,masterlist!$C$2:$C$207,0)),INDEX(masterlist!$N$2:$N$207,MATCH(A34,masterlist!$C$2:$C$207,0))),\"\")","v":""},{"$f":"IFERROR(HYPERLINK(VLOOKUP(A34,masterlist!$C$2:$Q$207,15,FALSE),VLOOKUP(A34,masterlist!$C$2:$Q$207,14,FALSE)),\"\")","v":""},{"$f":"IFERROR(HYPERLINK(VLOOKUP(A34,masterlist!$C$2:$S$207,17,FALSE),VLOOKUP(A34,masterlist!$C$2:$S$207,16,FALSE)),\"\")","v":""},{"$f":"IFERROR(HYPERLINK(VLOOKUP(A34,masterlist!$C$2:$U$207,19,FALSE),VLOOKUP(A34,masterlist!$C$2:$U$207,18,FALSE)),\"\")","v":""}]
[{"$f":"IFERROR(INDEX(masterlist!$A$2:$F$207,SMALL(IF(masterlist!$B$2:$B$207=\"DPM\",ROW(masterlist!$A$2:$F$207)-1),ROW(31:31)),3),\"\")","v":""},{"$f":"IFERROR(INDEX(masterlist!$E$2:$E$207,MATCH(A35,masterlist!$C$2:$C$207,0)),\"\")","v":""},{"$f":"IFERROR(INDEX(masterlist!$D$2:$D$207,MATCH(A35,masterlist!$C$2:$C$207,0)),\"\")","v":""},{"$f":"IFERROR(INDEX(masterlist!$G$2:$G$207,MATCH(A35,masterlist!$C$2:$C$207,0)),\"\")","v":""},{"$f":"IFERROR(INDEX(masterlist!$H$2:$H$207,MATCH(A35,masterlist!$C$2:$C$207,0)),\"\")","v":""},null,null,{"$f":"IFERROR(HYPERLINK(INDEX(masterlist!$M$2:$M$207,MATCH(A35,masterlist!$C$2:$C$207,0)),INDEX(masterlist!$L$2:$L$207,MATCH(A35,masterlist!$C$2:$C$207,0))),\"\")","v":""},{"$f":"IFERROR(HYPERLINK(INDEX(masterlist!$O$2:$O$207,MATCH(A35,masterlist!$C$2:$C$207,0)),INDEX(masterlist!$N$2:$N$207,MATCH(A35,masterlist!$C$2:$C$207,0))),\"\")","v":""},{"$f":"IFERROR(HYPERLINK(VLOOKUP(A35,masterlist!$C$2:$Q$207,15,FALSE),VLOOKUP(A35,masterlist!$C$2:$Q$207,14,FALSE)),\"\")","v":""},{"$f":"IFERROR(HYPERLINK(VLOOKUP(A35,masterlist!$C$2:$S$207,17,FALSE),VLOOKUP(A35,masterlist!$C$2:$S$207,16,FALSE)),\"\")","v":""},{"$f":"IFERROR(HYPERLINK(VLOOKUP(A35,masterlist!$C$2:$U$207,19,FALSE),VLOOKUP(A35,masterlist!$C$2:$U$207,18,FALSE)),\"\")","v":""}]
[{"$f":"IFERROR(INDEX(masterlist!$A$2:$F$207,SMALL(IF(masterlist!$B$2:$B$207=\"DPM\",ROW(masterlist!$A$2:$F$207)-1),ROW(32:32)),3),\"\")","v":""},{"$f":"IFERROR(INDEX(masterlist!$E$2:$E$207,MATCH(A36,masterlist!$C$2:$C$207,0)),\"\")","v":""},{"$f":"IFERROR(INDEX(masterlist!$D$2:$D$207,MATCH(A36,masterlist!$C$2:$C$207,0)),\"\")","v":""},{"$f":"IFERROR(INDEX(masterlist!$G$2:$G$207,MATCH(A36,masterlist!$C$2:$C$207,0)),\"\")","v":""},{"$f":"IFERROR(INDEX(masterlist!$H$2:$H$207,MATCH(A36,masterlist!$C$2:$C$207,0)),\"\")","v":""},null,null,{"$f":"IFERROR(HYPERLINK(INDEX(masterlist!$M$2:$M$207,MATCH(A36,masterlist!$C$2:$C$207,0)),INDEX(masterlist!$L$2:$L$207,MATCH(A36,masterlist!$C$2:$C$207,0))),\"\")","v":""},{"$f":"IFERROR(HYPERLINK(INDEX(masterlist!$O$2:$O$207,MATCH(A36,masterlist!$C$2:$C$207,0)),INDEX(masterlist!$N$2:$N$207,MATCH(A36,masterlist!$C$2:$C$207,0))),\"\")","v":""},{"$f":"IFERROR(HYPERLINK(VLOOKUP(A36,masterlist!$C$2:$Q$207,15,FALSE),VLOOKUP(A36,masterlist!$C$2:$Q$207,14,FALSE)),\"\")","v":""},{"$f":"IFERROR(HYPERLINK(VLOOKUP(A36,masterlist!$C$2:$S$207,17,FALSE),VLOOKUP(A36,masterlist!$C$2:$S$207,16,FALSE)),\"\")","v":""},{"$f":"IFERROR(HYPERLINK(VLOOKUP(A36,masterlist!$C$2:$U$207,19,FALSE),VLOOKUP(A36,masterlist!$C$2:$U$207,18,FALSE)),\"\")","v":""}]
[{"$f":"IFERROR(INDEX(masterlist!$A$2:$F$207,SMALL(IF(masterlist!$B$2:$B$207=\"DPM\",ROW(masterlist!$A$2:$F$207)-1),ROW(33:33)),3),\"\")","v":""},{"$f":"IFERROR(INDEX(masterlist!$E$2:$E$207,MATCH(A37,masterlist!$C$2:$C$207,0)),\"\")","v":""},{"$f":"IFERROR(INDEX(masterlist!$D$2:$D$207,MATCH(A37,masterlist!$C$2:$C$207,0)),\"\")","v":""},{"$f":"IFERROR(INDEX(masterlist!$G$2:$G$207,MATCH(A37,masterlist!$C$2:$C$207,0)),\"\")","v":""},{"$f":"IFERROR(INDEX(masterlist!$H$2:$H$207,MATCH(A37,masterlist!$C$2:$C$207,0)),\"\")","v":""},null,null,{"$f":"IFERROR(HYPERLINK(INDEX(masterlist!$M$2:$M$207,MATCH(A37,masterlist!$C$2:$C$207,0)),INDEX(masterlist!$L$2:$L$207,MATCH(A37,masterlist!$C$2:$C$207,0))),\"\")","v":""},{"$f":"IFERROR(HYPERLINK(INDEX(masterlist!$O$2:$O$207,MATCH(A37,masterlist!$C$2:$C$207,0)),INDEX(masterlist!$N$2:$N$207,MATCH(A37,masterlist!$C$2:$C$207,0))),\"\")","v":""},{"$f":"IFERROR(HYPERLINK(VLOOKUP(A37,masterlist!$C$2:$Q$207,15,FALSE),VLOOKUP(A37,masterlist!$C$2:$Q$207,14,FALSE)),\"\")","v":""},{"$f":"IFERROR(HYPERLINK(VLOOKUP(A37,masterlist!$C$2:$S$207,17,FALSE),VLOOKUP(A37,masterlist!$C$2:$S$207,16,FALSE)),\"\")","v":""},{"$f":"IFERROR(HYPERLINK(VLOOKUP(A37,masterlist!$C$2:$U$207,19,FALSE),VLOOKUP(A37,masterlist!$C$2:$U$207,18,FALSE)),\"\")","v":""}]
[{"$f":"IFERROR(INDEX(masterlist!$A$2:$F$207,SMALL(IF(masterlist!$B$2:$B$207=\"DPM\",ROW(masterlist!$A$2:$F$207)-1),ROW(34:34)),3),\"\")","v":""},{"$f":"IFERROR(INDEX(masterlist!$E$2:$E$207,MATCH(A38,masterlist!$C$2:$C$207,0)),\"\")","v":""},{"$f":"IFERROR(INDEX(masterlist!$D$2:$D$207,MATCH(A38,masterlist!$C$2:$C$207,0)),\"\")","v":""},{"$f":"IFERROR(INDEX(masterlist!$G$2:$G$207,MATCH(A38,masterlist!$C$2:$C$207,0)),\"\")","v":""},{"$f":"IFERROR(INDEX(masterlist!$H$2:$H$207,MATCH(A38,masterlist!$C$2:$C$207,0)),\"\")","v":""},null,null,{"$f":"IFERROR(HYPERLINK(INDEX(masterlist!$M$2:$M$207,MATCH(A38,masterlist!$C$2:$C$207,0)),INDEX(masterlist!$L$2:$L$207,MATCH(A38,masterlist!$C$2:$C$207,0))),\"\")","v":""},{"$f":"IFERROR(HYPERLINK(INDEX(masterlist!$O$2:$O$207,MATCH(A38,masterlist!$C$2:$C$207,0)),INDEX(masterlist!$N$2:$N$207,MATCH(A38,masterlist!$C$2:$C$207,0))),\"\")","v":""},{"$f":"IFERROR(HYPERLINK(VLOOKUP(A38,masterlist!$C$2:$Q$207,15,FALSE),VLOOKUP(A38,masterlist!$C$2:$Q$207,14,FALSE)),\"\")","v":""},{"$f":"IFERROR(HYPERLINK(VLOOKUP(A38,masterlist!$C$2:$S$207,17,FALSE),VLOOKUP(A38,masterlist!$C$2:$S$207,16,FALSE)),\"\")","v":""},{"$f":"IFERROR(HYPERLINK(VLOOKUP(A38,masterlist!$C$2:$U$207,19,FALSE),VLOOKUP(A38,masterlist!$C$2:$U$207,18,FALSE)),\"\")","v":""}]
[{"$f":"IFERROR(INDEX(masterlist!$A$2:$F$207,SMALL(IF(masterlist!$B$2:$B$207=\"DPM\",ROW(masterlist!$A$2:$F$207)-1),ROW(35:35)),3),\"\")","v":""},{"$f":"IFERROR(INDEX(masterlist!$E$2:$E$207,MATCH(A39,masterlist!$C$2:$C$207,0)),\"\")","v":""},{"$f":"IFERROR(INDEX(masterlist!$D$2:$D$207,MATCH(A39,masterlist!$C$2:$C$207,0)),\"\")","v":""},{"$f":"IFERROR(INDEX(masterlist!$G$2:$G$207,MATCH(A39,masterlist!$C$2:$C$207,0)),\"\")","v":""},{"$f":"IFERROR(INDEX(masterlist!$H$2:$H$207,MATCH(A39,masterlist!$C$2:$C$207,0)),\"\")","v":""},null,null,{"$f":"IFERROR(HYPERLINK(INDEX(masterlist!$M$2:$M$207,MATCH(A39,masterlist!$C$2:$C$207,0)),INDEX(masterlist!$L$2:$L$207,MATCH(A39,masterlist!$C$2:$C$207,0))),\"\")","v":""},{"$f":"IFERROR(HYPERLINK(INDEX(masterlist!$O$2:$O$207,MATCH(A39,masterlist!$C$2:$C$207,0)),INDEX(masterlist!$N$2:$N$207,MATCH(A39,masterlist!$C$2:$C$207,0))),\"\")","v":""},{"$f":"IFERROR(HYPERLINK(VLOOKUP(A39,masterlist!$C$2:$Q$207,15,FALSE),VLOOKUP(A39,masterlist!$C$2:$Q$207,14,FALSE)),\"\")","v":""},{"$f":"IFERROR(HYPERLINK(VLOOKUP(A39,masterlist!$C$2:$S$207,17,FALSE),VLOOKUP(A39,masterlist!$C$2:$S$207,16,FALSE)),\"\")","v":""},{"$f":"IFERROR(HYPERLINK(VLOOKUP(A39,masterlist!$C$2:$U$207,19,FALSE),VLOOKUP(A39,masterlist!$C$2:$U$207,18,FALSE)),\"\")","v":""}]
[{"$f":"IFERROR(INDEX(masterlist!$A$2:$F$207,SMALL(IF(masterlist!$B$2:$B$207=\"DPM\",ROW(masterlist!$A$2:$F$207)-1),ROW(36:36)),3),\"\")","v":""},{"$f":"IFERROR(INDEX(masterlist!$E$2:$E$207,MATCH(A40,masterlist!$C$2:$C$207,0)),\"\")","v":""},{"$f":"IFERROR(INDEX(masterlist!$D$2:$D$207,MATCH(A40,masterlist!$C$2:$C$207,0)),\"\")","v":""},{"$f":"IFERROR(INDEX(masterlist!$G$2:$G$207,MATCH(A40,masterlist!$C$2:$C$207,0)),\"\")","v":""},{"$f":"IFERROR(INDEX(masterlist!$H$2:$H$207,MATCH(A40,masterlist!$C$2:$C$207,0)),\"\")","v":""},null,null,{"$f":"IFERROR(HYPERLINK(INDEX(masterlist!$M$2:$M$207,MATCH(A40,masterlist!$C$2:$C$207,0)),INDEX(masterlist!$L$2:$L$207,MATCH(A40,masterlist!$C$2:$C$207,0))),\"\")","v":""},{"$f":"IFERROR(HYPERLINK(INDEX(masterlist!$O$2:$O$207,MATCH(A40,masterlist!$C$2:$C$207,0)),INDEX(masterlist!$N$2:$N$207,MATCH(A40,masterlist!$C$2:$C$207,0))),\"\")","v":""},{"$f":"IFERROR(HYPERLINK(VLOOKUP(A40,masterlist!$C$2:$Q$207,15,FALSE),VLOOKUP(A40,masterlist!$C$2:$Q$207,14,FALSE)),\"\")","v":""},{"$f":"IFERROR(HYPERLINK(VLOOKUP(A40,masterlist!$C$2:$S$207,17,FALSE),VLOOKUP(A40,masterlist!$C$2:$S$207,16,FALSE)),\"\")","v":""},{"$f":"IFERROR(HYPERLINK(VLOOKUP(A40,masterlist!$C$2:$U$207,19,FALSE),VLOOKUP(A40,masterlist!$C$2:$U$207,18,FALSE)),\"\")","v":""}]
[{"$f":"IFERROR(INDEX(masterlist!$A$2:$F$207,SMALL(IF(masterlist!$B$2:$B$207=\"DPM\",ROW(masterlist!$A$2:$F$207)-1),ROW(37:37)),3),\"\")","v":""},{"$f":"IFERROR(INDEX(masterlist!$E$2:$E$207,MATCH(A41,masterlist!$C$2:$C$207,0)),\"\")","v":""},{"$f":"IFERROR(INDEX(masterlist!$D$2:$D$207,MATCH(A41,masterlist!$C$2:$C$207,0)),\"\")","v":""},{"$f":"IFERROR(INDEX(masterlist!$G$2:$G$207,MATCH(A41,masterlist!$C$2:$C$207,0)),\"\")","v":""},{"$f":"IFERROR(INDEX(masterlist!$H$2:$H$207,MATCH(A41,masterlist!$C$2:$C$207,0)),\"\")","v":""},null,null,{"$f":"IFERROR(HYPERLINK(INDEX(masterlist!$M$2:$M$207,MATCH(A41,masterlist!$C$2:$C$207,0)),INDEX(masterlist!$L$2:$L$207,MATCH(A41,masterlist!$C$2:$C$207,0))),\"\")","v":""},{"$f":"IFERROR(HYPERLINK(INDEX(masterlist!$O$2:$O$207,MATCH(A41,masterlist!$C$2:$C$207,0)),INDEX(masterlist!$N$2:$N$207,MATCH(A41,masterlist!$C$2:$C$207,0))),\"\")","v":""},{"$f":"IFERROR(HYPERLINK(VLOOKUP(A41,masterlist!$C$2:$Q$207,15,FALSE),VLOOKUP(A41,masterlist!$C$2:$Q$207,14,FALSE)),\"\")","v":""},{"$f":"IFERROR(HYPERLINK(VLOOKUP(A41,masterlist!$C$2:$S$207,17,FALSE),VLOOKUP(A41,masterlist!$C$2:$S$207,16,FALSE)),\"\")","v":""},{"$f":"IFERROR(HYPERLINK(VLOOKUP(A41,masterlist!$C$2:$U$207,19,FALSE),VLOOKUP(A41,masterlist!$C$2:$U$207,18,FALSE)),\"\")","v":""}]
[{"$f":"IFERROR(INDEX(masterlist!$A$2:$F$207,SMALL(IF(masterlist!$B$2:$B$207=\"DPM\",ROW(masterlist!$A$2:$F$207)-1),ROW(38:38)),3),\"\")","v":""},{"$f":"IFERROR(INDEX(masterlist!$E$2:$E$207,MATCH(A42,masterlist!$C$2:$C$207,0)),\"\")","v":""},{"$f":"IFERROR(INDEX(masterlist!$D$2:$D$207,MATCH(A42,masterlist!$C$2:$C$207,0)),\"\")","v":""},{"$f":"IFERROR(INDEX(masterlist!$G$2:$G$207,MATCH(A42,masterlist!$C$2:$C$207,0)),\"\")","v":""},{"$f":"IFERROR(INDEX(masterlist!$H$2:$H$207,MATCH(A42,masterlist!$C$2:$C$207,0)),\"\")","v":""},null,null,{"$f":"IFERROR(HYPERLINK(INDEX(masterlist!$M$2:$M$207,MATCH(A42,masterlist!$C$2:$C$207,0)),INDEX(masterlist!$L$2:$L$207,MATCH(A42,masterlist!$C$2:$C$207,0))),\"\")","v":""},{"$f":"IFERROR(HYPERLINK(INDEX(masterlist!$O$2:$O$207,MATCH(A42,masterlist!$C$2:$C$207,0)),INDEX(masterlist!$N$2:$N$207,MATCH(A42,masterlist!$C$2:$C$207,0))),\"\")","v":""},{"$f":"IFERROR(HYPERLINK(VLOOKUP(A42,masterlist!$C$2:$Q$207,15,FALSE),VLOOKUP(A42,masterlist!$C$2:$Q$207,14,FALSE)),\"\")","v":""},{"$f":"IFERROR(HYPERLINK(VLOOKUP(A42,masterlist!$C$2:$S$207,17,FALSE),VLOOKUP(A42,masterlist!$C$2:$S$207,16,FALSE)),\"\")","v":""},{"$f":"IFERROR(HYPERLINK(VLOOKUP(A42,masterlist!$C$2:$U$207,19,FALSE),VLOOKUP(A42,masterlist!$C$2:$U$207,18,FALSE)),\"\")","v":""}]
[{"$f":"IFERROR(INDEX(masterlist!$A$2:$F$207,SMALL(IF(masterlist!$B$2:$B$207=\"DPM\",ROW(masterlist!$A$2:$F$207)-1),ROW(39:39)),3),\"\")","v":""},{"$f":"IFERROR(INDEX(masterlist!$E$2:$E$207,MATCH(A43,masterlist!$C$2:$C$207,0)),\"\")","v":""},{"$f":"IFERROR(INDEX(masterlist!$D$2:$D$207,MATCH(A43,masterlist!$C$2:$C$207,0)),\"\")","v":""},{"$f":"IFERROR(INDEX(masterlist!$G$2:$G$207,MATCH(A43,masterlist!$C$2:$C$207,0)),\"\")","v":""},{"$f":"IFERROR(INDEX(masterlist!$H$2:$H$207,MATCH(A43,masterlist!$C$2:$C$207,0)),\"\")","v":""},null,null,{"$f":"IFERROR(HYPERLINK(INDEX(masterlist!$M$2:$M$207,MATCH(A43,masterlist!$C$2:$C$207,0)),INDEX(masterlist!$L$2:$L$207,MATCH(A43,masterlist!$C$2:$C$207,0))),\"\")","v":""},{"$f":"IFERROR(HYPERLINK(INDEX(masterlist!$O$2:$O$207,MATCH(A43,masterlist!$C$2:$C$207,0)),INDEX(masterlist!$N$2:$N$207,MATCH(A43,masterlist!$C$2:$C$207,0))),\"\")","v":""},{"$f":"IFERROR(HYPERLINK(VLOOKUP(A43,masterlist!$C$2:$Q$207,15,FALSE),VLOOKUP(A43,masterlist!$C$2:$Q$207,14,FALSE)),\"\")","v":""},{"$f":"IFERROR(HYPERLINK(VLOOKUP(A43,masterlist!$C$2:$S$207,17,FALSE),VLOOKUP(A43,masterlist!$C$2:$S$207,16,FALSE)),\"\")","v":""},{"$f":"IFERROR(HYPERLINK(VLOOKUP(A43,masterlist!$C$2:$U$207,19,FALSE),VLOOKUP(A43,masterlist!$C$2:$U$207,18,FALSE)),\"\")","v":""}]
[{"$f":"IFERROR(INDEX(masterlist!$A$2:$F$207,SMALL(IF(masterlist!$B$2:$B$207=\"DPM\",ROW(masterlist!$A$2:$F$207)-1),ROW(40:40)),3),\"\")","v":""},{"$f":"IFERROR(INDEX(masterlist!$E$2:$E$207,MATCH(A44,masterlist!$C$2:$C$207,0)),\"\")","v":""},{"$f":"IFERROR(INDEX(masterlist!$D$2:$D$207,MATCH(A44,masterlist!$C$2:$C$207,0)),\"\")","v":""},{"$f":"IFERROR(INDEX(masterlist!$G$2:$G$207,MATCH(A44,masterlist!$C$2:$C$207,0)),\"\")","v":""},{"$f":"IFERROR(INDEX(masterlist!$H$2:$H$207,MATCH(A44,masterlist!$C$2:$C$207,0)),\"\")","v":""},null,null,{"$f":"IFERROR(HYPERLINK(INDEX(masterlist!$M$2:$M$207,MATCH(A44,masterlist!$C$2:$C$207,0)),INDEX(masterlist!$L$2:$L$207,MATCH(A44,masterlist!$C$2:$C$207,0))),\"\")","v":""},{"$f":"IFERROR(HYPERLINK(INDEX(masterlist!$O$2:$O$207,MATCH(A44,masterlist!$C$2:$C$207,0)),INDEX(masterlist!$N$2:$N$207,MATCH(A44,masterlist!$C$2:$C$207,0))),\"\")","v":""},{"$f":"IFERROR(HYPERLINK(VLOOKUP(A44,masterlist!$C$2:$Q$207,15,FALSE),VLOOKUP(A44,masterlist!$C$2:$Q$207,14,FALSE)),\"\")","v":""},{"$f":"IFERROR(HYPERLINK(VLOOKUP(A44,masterlist!$C$2:$S$207,17,FALSE),VLOOKUP(A44,masterlist!$C$2:$S$207,16,FALSE)),\"\")","v":""},{"$f":"IFERROR(HYPERLINK(VLOOKUP(A44,masterlist!$C$2:$U$207,19,FALSE),VLOOKUP(A44,masterlist!$C$2:$U$207,18,FALSE)),\"\")","v":""}]
[{"$f":"IFERROR(INDEX(masterlist!$A$2:$F$207,SMALL(IF(masterlist!$B$2:$B$207=\"DPM\",ROW(masterlist!$A$2:$F$207)-1),ROW(41:41)),3),\"\")","v":""},{"$f":"IFERROR(INDEX(masterlist!$E$2:$E$207,MATCH(A45,masterlist!$C$2:$C$207,0)),\"\")","v":""},{"$f":"IFERROR(INDEX(masterlist!$D$2:$D$207,MATCH(A45,masterlist!$C$2:$C$207,0)),\"\")","v":""},{"$f":"IFERROR(INDEX(masterlist!$G$2:$G$207,MATCH(A45,masterlist!$C$2:$C$207,0)),\"\")","v":""},{"$f":"IFERROR(INDEX(masterlist!$H$2:$H$207,MATCH(A45,masterlist!$C$2:$C$207,0)),\"\")","v":""},null,null,{"$f":"IFERROR(HYPERLINK(INDEX(masterlist!$M$2:$M$207,MATCH(A45,masterlist!$C$2:$C$207,0)),INDEX(masterlist!$L$2:$L$207,MATCH(A45,masterlist!$C$2:$C$207,0))),\"\")","v":""},{"$f":"IFERROR(HYPERLINK(INDEX(masterlist!$O$2:$O$207,MATCH(A45,masterlist!$C$2:$C$207,0)),INDEX(masterlist!$N$2:$N$207,MATCH(A45,masterlist!$C$2:$C$207,0))),\"\")","v":""},{"$f":"IFERROR(HYPERLINK(VLOOKUP(A45,masterlist!$C$2:$Q$207,15,FALSE),VLOOKUP(A45,masterlist!$C$2:$Q$207,14,FALSE)),\"\")","v":""},{"$f":"IFERROR(HYPERLINK(VLOOKUP(A45,masterlist!$C$2:$S$207,17,FALSE),VLOOKUP(A45,masterlist!$C$2:$S$207,16,FALSE)),\"\")","v":""},{"$f":"IFERROR(HYPERLINK(VLOOKUP(A45,masterlist!$C$2:$U$207,19,FALSE),VLOOKUP(A45,masterlist!$C$2:$U$207,18,FALSE)),\"\")","v":""}]
[{"$f":"IFERROR(INDEX(masterlist!$A$2:$F$207,SMALL(IF(masterlist!$B$2:$B$207=\"DPM\",ROW(masterlist!$A$2:$F$207)-1),ROW(42:42)),3),\"\")","v":""},{"$f":"IFERROR(INDEX(masterlist!$E$2:$E$207,MATCH(A46,masterlist!$C$2:$C$207,0)),\"\")","v":""},{"$f":"IFERROR(INDEX(masterlist!$D$2:$D$207,MATCH(A46,masterlist!$C$2:$C$207,0)),\"\")","v":""},{"$f":"IFERROR(INDEX(masterlist!$G$2:$G$207,MATCH(A46,masterlist!$C$2:$C$207,0)),\"\")","v":""},{"$f":"IFERROR(INDEX(masterlist!$H$2:$H$207,MATCH(A46,masterlist!$C$2:$C$207,0)),\"\")","v":""},null,null,{"$f":"IFERROR(HYPERLINK(INDEX(masterlist!$M$2:$M$207,MATCH(A46,masterlist!$C$2:$C$207,0)),INDEX(masterlist!$L$2:$L$207,MATCH(A46,masterlist!$C$2:$C$207,0))),\"\")","v":""},{"$f":"IFERROR(HYPERLINK(INDEX(masterlist!$O$2:$O$207,MATCH(A46,masterlist!$C$2:$C$207,0)),INDEX(masterlist!$N$2:$N$207,MATCH(A46,masterlist!$C$2:$C$207,0))),\"\")","v":""},{"$f":"IFERROR(HYPERLINK(VLOOKUP(A46,masterlist!$C$2:$Q$207,15,FALSE),VLOOKUP(A46,masterlist!$C$2:$Q$207,14,FALSE)),\"\")","v":""},{"$f":"IFERROR(HYPERLINK(VLOOKUP(A46,masterlist!$C$2:$S$207,17,FALSE),VLOOKUP(A46,masterlist!$C$2:$S$207,16,FALSE)),\"\")","v":""},{"$f":"IFERROR(HYPERLINK(VLOOKUP(A46,masterlist!$C$2:$U$207,19,FALSE),VLOOKUP(A46,masterlist!$C$2:$U$207,18,FALSE)),\"\")","v":""}]
[{"$f":"IFERROR(INDEX(masterlist!$A$2:$F$207,SMALL(IF(masterlist!$B$2:$B$207=\"DPM\",ROW(masterlist!$A$2:$F$207)-1),ROW(43:43)),3),\"\")","v":""},{"$f":"IFERROR(INDEX(masterlist!$E$2:$E$207,MATCH(A47,masterlist!$C$2:$C$207,0)),\"\")","v":""},{"$f":"IFERROR(INDEX(masterlist!$D$2:$D$207,MATCH(A47,masterlist!$C$2:$C$207,0)),\"\")","v":""},{"$f":"IFERROR(INDEX(masterlist!$G$2:$G$207,MATCH(A47,masterlist!$C$2:$C$207,0)),\"\")","v":""},{"$f":"IFERROR(INDEX(masterlist!$H$2:$H$207,MATCH(A47,masterlist!$C$2:$C$207,0)),\"\")","v":""},null,null,{"$f":"IFERROR(HYPERLINK(INDEX(masterlist!$M$2:$M$207,MATCH(A47,masterlist!$C$2:$C$207,0)),INDEX(masterlist!$L$2:$L$207,MATCH(A47,masterlist!$C$2:$C$207,0))),\"\")","v":""},{"$f":"IFERROR(HYPERLINK(INDEX(masterlist!$O$2:$O$207,MATCH(A47,masterlist!$C$2:$C$207,0)),INDEX(masterlist!$N$2:$N$207,MATCH(A47,masterlist!$C$2:$C$207,0))),\"\")","v":""},{"$f":"IFERROR(HYPERLINK(VLOOKUP(A47,masterlist!$C$2:$Q$207,15,FALSE),VLOOKUP(A47,masterlist!$C$2:$Q$207,14,FALSE)),\"\")","v":""},{"$f":"IFERROR(HYPERLINK(VLOOKUP(A47,masterlist!$C$2:$S$207,17,FALSE),VLOOKUP(A47,masterlist!$C$2:$S$207,16,FALSE)),\"\")","v":""},{"$f":"IFERROR(HYPERLINK(VLOOKUP(A47,masterlist!$C$2:$U$207,19,FALSE),VLOOKUP(A47,masterlist!$C$2:$U$207,18,FALSE)),\"\")","v":""}]
[{"$f":"IFERROR(INDEX(masterlist!$A$2:$F$207,SMALL(IF(masterlist!$B$2:$B$207=\"DPM\",ROW(masterlist!$A$2:$F$207)-1),ROW(44:44)),3),\"\")","v":""},{"$f":"IFERROR(INDEX(masterlist!$E$2:$E$207,MATCH(A48,masterlist!$C$2:$C$207,0)),\"\")","v":""},{"$f":"IFERROR(INDEX(masterlist!$D$2:$D$207,MATCH(A48,masterlist!$C$2:$C$207,0)),\"\")","v":""},{"$f":"IFERROR(INDEX(masterlist!$G$2:$G$207,MATCH(A48,masterlist!$C$2:$C$207,0)),\"\")","v":""},{"$f":"IFERROR(INDEX(masterlist!$H$2:$H$207,MATCH(A48,masterlist!$C$2:$C$207,0)),\"\")","v":""},null,null,{"$f":"IFERROR(HYPERLINK(INDEX(masterlist!$M$2:$M$207,MATCH(A48,masterlist!$C$2:$C$207,0)),INDEX(masterlist!$L$2:$L$207,MATCH(A48,masterlist!$C$2:$C$207,0))),\"\")","v":""},{"$f":"IFERROR(HYPERLINK(INDEX(masterlist!$O$2:$O$207,MATCH(A48,masterlist!$C$2:$C$207,0)),INDEX(masterlist!$N$2:$N$207,MATCH(A48,masterlist!$C$2:$C$207,0))),\"\")","v":""},{"$f":"IFERROR(HYPERLINK(VLOOKUP(A48,masterlist!$C$2:$Q$207,15,FALSE),VLOOKUP(A48,masterlist!$C$2:$Q$207,14,FALSE)),\"\")","v":""},{"$f":"IFERROR(HYPERLINK(VLOOKUP(A48,masterlist!$C$2:$S$207,17,FALSE),VLOOKUP(A48,masterlist!$C$2:$S$207,16,FALSE)),\"\")","v":""},{"$f":"IFERROR(HYPERLINK(VLOOKUP(A48,masterlist!$C$2:$U$207,19,FALSE),VLOOKUP(A48,masterlist!$C$2:$U$207,18,FALSE)),\"\")","v":""}]
[{"$f":"IFERROR(INDEX(masterlist!$A$2:$F$207,SMALL(IF(masterlist!$B$2:$B$207=\"DPM\",ROW(masterlist!$A$2:$F$207)-1),ROW(45:45)),3),\"\")","v":""},{"$f":"IFERROR(INDEX(masterlist!$E$2:$E$207,MATCH(A49,masterlist!$C$2:$C$207,0)),\"\")","v":""},{"$f":"IFERROR(INDEX(masterlist!$D$2:$D$207,MATCH(A49,masterlist!$C$2:$C$207,0)),\"\")","v":""},{"$f":"IFERROR(INDEX(masterlist!$G$2:$G$207,MATCH(A49,masterlist!$C$2:$C$207,0)),\"\")","v":""},{"$f":"IFERROR(INDEX(masterlist!$H$2:$H$207,MATCH(A49,masterlist!$C$2:$C$207,0)),\"\")","v":""},null,null,{"$f":"IFERROR(HYPERLINK(INDEX(masterlist!$M$2:$M$207,MATCH(A49,masterlist!$C$2:$C$207,0)),INDEX(masterlist!$L$2:$L$207,MATCH(A49,masterlist!$C$2:$C$207,0))),\"\")","v":""},{"$f":"IFERROR(HYPERLINK(INDEX(masterlist!$O$2:$O$207,MATCH(A49,masterlist!$C$2:$C$207,0)),INDEX(masterlist!$N$2:$N$207,MATCH(A49,masterlist!$C$2:$C$207,0))),\"\")","v":""},{"$f":"IFERROR(HYPERLINK(VLOOKUP(A49,masterlist!$C$2:$Q$207,15,FALSE),VLOOKUP(A49,masterlist!$C$2:$Q$207,14,FALSE)),\"\")","v":""},{"$f":"IFERROR(HYPERLINK(VLOOKUP(A49,masterlist!$C$2:$S$207,17,FALSE),VLOOKUP(A49,masterlist!$C$2:$S$207,16,FALSE)),\"\")","v":""},{"$f":"IFERROR(HYPERLINK(VLOOKUP(A49,masterlist!$C$2:$U$207,19,FALSE),VLOOKUP(A49,masterlist!$C$2:$U$207,18,FALSE)),\"\")","v":""}]
[{"$f":"IFERROR(INDEX(masterlist!$A$2:$F$207,SMALL(IF(masterlist!$B$2:$B$207=\"DPM\",ROW(masterlist!$A$2:$F$207)-1),ROW(46:46)),3),\"\")","v":""},{"$f":"IFERROR(INDEX(masterlist!$E$2:$E$207,MATCH(A50,masterlist!$C$2:$C$207,0)),\"\")","v":""},{"$f":"IFERROR(INDEX(masterlist!$D$2:$D$207,MATCH(A50,masterlist!$C$2:$C$207,0)),\"\")","v":""},{"$f":"IFERROR(INDEX(masterlist!$G$2:$G$207,MATCH(A50,masterlist!$C$2:$C$207,0)),\"\")","v":""},{"$f":"IFERROR(INDEX(masterlist!$H$2:$H$207,MATCH(A50,masterlist!$C$2:$C$207,0)),\"\")","v":""},null,null,{"$f":"IFERROR(HYPERLINK(INDEX(masterlist!$M$2:$M$207,MATCH(A50,masterlist!$C$2:$C$207,0)),INDEX(masterlist!$L$2:$L$207,MATCH(A50,masterlist!$C$2:$C$207,0))),\"\")","v":""},{"$f":"IFERROR(HYPERLINK(INDEX(masterlist!$O$2:$O$207,MATCH(A50,masterlist!$C$2:$C$207,0)),INDEX(masterlist!$N$2:$N$207,MATCH(A50,masterlist!$C$2:$C$207,0))),\"\")","v":""},{"$f":"IFERROR(HYPERLINK(VLOOKUP(A50,masterlist!$C$2:$Q$207,15,FALSE),VLOOKUP(A50,masterlist!$C$2:$Q$207,14,FALSE)),\"\")","v":""},{"$f":"IFERROR(HYPERLINK(VLOOKUP(A50,masterlist!$C$2:$S$207,17,FALSE),VLOOKUP(A50,masterlist!$C$2:$S$207,16,FALSE)),\"\")","v":""},{"$f":"IFERROR(HYPERLINK(VLOOKUP(A50,masterlist!$C$2:$U$207,19,FALSE),VLOOKUP(A50,masterlist!$C$2:$U$207,18,FALSE)),\"\")","v":""}]

{"sheet":"IEC","index":10,"n_rows":50,"n_cols":12,"rows_kept":50,"cut":false,"hidden":true,"merged":[[3,7,3,8]]}
[]
[null,null,"Instructions : Si l'activité est terminée, inscrivez « 1 » dans la colonne « Statut ». Si l'activité n'a PAS été achevée ou si vous n'êtes pas sûr qu'elle l'ait été, inscrivez « 0 » dans la colonne « Statut »."]
[]
[null,"SOUS-COMPOSANTE","STADE","ACTIVITES","GUIDE DE REPONSE A LA QUESTION","STATUT","REMARQUES","Rabies Blueprint references and other links"]
[{"$f":"IFERROR(INDEX(masterlist!$A$2:$F$207,SMALL(IF(masterlist!$B$2:$B$207=\"IEC\",ROW(masterlist!$A$2:$F$207)-1),ROW(1:1)),3),\"\")","v":"IEC-Sen-1-1"},{"$f":"IFERROR(INDEX(masterlist!$D$2:$D$207,MATCH(A5,masterlist!$C$2:$C$207,0)),\"\")","v":"Sensibilisation du public"},{"$f":"IFERROR(INDEX(masterlist!$E$2:$E$207,MATCH(A5,masterlist!$C$2:$C$207,0)),\"\")","v":1},{"$f":"IFERROR(INDEX(masterlist!$G$2:$G$207,MATCH(A5,masterlist!$C$2:$C$207,0)),\"\")","v":"Avez-vous établi une liste de TOUS les publics-cible qu’il faudrait sensibiliser au bien-être des chiens, à la rage et à sa prévention ? "},{"$f":"IFERROR(INDEX(masterlist!$H$2:$H$207,MATCH(A5,masterlist!$C$2:$C$207,0)),\"\")","v":"Les publics potentiels comprennent : \nLes propriétaires de chiens ; les enfants ; les chasseurs ; les propriétaires d’autres animaux ; les enseignants. \nVous pouvez répondre “Oui” si vous avez travaillé à l’dentification des publics-cible spécifiques à éduquer."},1,null,{"$f":"IFERROR(HYPERLINK(INDEX(masterlist!$M$2:$M$207,MATCH(A5,masterlist!$C$2:$C$207,0)),INDEX(masterlist!$L$2:$L$207,MATCH(A5,masterlist!$C$2:$C$207,0))),\"\")","v":"4.2.3 Understanding who needs to be involved"},{"$f":"IFERROR(HYPERLINK(INDEX(masterlist!$O$2:$O$207,MATCH(A5,masterlist!$C$2:$C$207,0)),INDEX(masterlist!$N$2:$N$207,MATCH(A5,masterlist!$C$2:$C$207,0))),\"\")","v":0},{"$f":"IFERROR(HYPERLINK(INDEX(masterlist!$Q$2:$Q$207,MATCH(A5,masterlist!$C$2:$C$207,0)),INDEX(masterlist!$P$2:$P$207,MATCH(A5,masterlist!$C$2:$C$207,0))),\"\")","v":0},{"$f":"IFERROR(HYPERLINK(INDEX(masterlist!$S$2:$S$207,MATCH(A5,masterlist!$C$2:$C$207,0)),INDEX(masterlist!$R$2:$R$207,MATCH(A5,masterlist!$C$2:$C$207,0))),\"\")","v":0},{"$f":"IFERROR(HYPERLINK(INDEX(masterlist!$U$2:$U$207,MATCH(A5,masterlist!$C$2:$C$207,0)),INDEX(masterlist!$T$2:$T$207,MATCH(A5,masterlist!$C$2:$C$207,0))),\"\")","v":0}]
[{"$f":"IFERROR(INDEX(masterlist!$A$2:$F$207,SMALL(IF(masterlist!$B$2:$B$207=\"IEC\",ROW(masterlist!$A$2:$F$207)-1),ROW(2:2)),3),\"\")","v":"IEC-Sen-1-2"},{"$f":"IFERROR(INDEX(masterlist!$D$2:$D$207,MATCH(A6,masterlist!$C$2:$C$207,0)),\"\")","v":"Sensibilisation du public"},{"$f":"IFERROR(INDEX(masterlist!$E$2:$E$207,MATCH(A6,masterlist!$C$2:$C$207,0)),\"\")","v":1},{"$f":"IFERROR(INDEX(masterlist!$G$2:$G$207,MATCH(A6,masterlist!$C$2:$C$207,0)),\"\")","v":"Avez-vous activement précisé les messages qui doivent être communiqués à chacun des publics- cible identifiés ?"},{"$f":"IFERROR(INDEX(masterlist!$H$2:$H$207,MATCH(A6,masterlist!$C$2:$C$207,0)),\"\")","v":"Si cette activité a été réalisée dans une zone où a lieu un projet pilote, vous pouvez répondre par « Oui ».\n\nVous pouvez répondre « Oui » si vous avez cherché à identifier des messages spécifiques destinés à chacun des publics cible. Il n’est pas nécessaire qu’il s’agisse d’une évaluation formelle, du moment qu'un travail d'identification des messages appropriés a été effectué. "},1,null,{"$f":"IFERROR(HYPERLINK(INDEX(masterlist!$M$2:$M$207,MATCH(A6,masterlist!$C$2:$C$207,0)),INDEX(masterlist!$L$2:$L$207,MATCH(A6,masterlist!$C$2:$C$207,0))),\"\")","v":"Examples of KAP surveys"},{"$f":"IFERROR(HYPERLINK(INDEX(masterlist!$O$2:$O$207,MATCH(A6,masterlist!$C$2:$C$207,0)),INDEX(masterlist!$N$2:$N$207,MATCH(A6,masterlist!$C$2:$C$207,0))),\"\")","v":0},{"$f":"IFERROR(HYPERLINK(INDEX(masterlist!$Q$2:$Q$207,MATCH(A6,masterlist!$C$2:$C$207,0)),INDEX(masterlist!$P$2:$P$207,MATCH(A6,masterlist!$C$2:$C$207,0))),\"\")","v":0},{"$f":"IFERROR(HYPERLINK(INDEX(masterlist!$S$2:$S$207,MATCH(A6,masterlist!$C$2:$C$207,0)),INDEX(masterlist!$R$2:$R$207,MATCH(A6,masterlist!$C$2:$C$207,0))),\"\")","v":0},{"$f":"IFERROR(HYPERLINK(INDEX(masterlist!$U$2:$U$207,MATCH(A6,masterlist!$C$2:$C$207,0)),INDEX(masterlist!$T$2:$T$207,MATCH(A6,masterlist!$C$2:$C$207,0))),\"\")","v":0}]
[{"$f":"IFERROR(INDEX(masterlist!$A$2:$F$207,SMALL(IF(masterlist!$B$2:$B$207=\"IEC\",ROW(masterlist!$A$2:$F$207)-1),ROW(3:3)),3),\"\")","v":"IEC-Sen-1-3"},{"$f":"IFERROR(INDEX(masterlist!$D$2:$D$207,MATCH(A7,masterlist!$C$2:$C$207,0)),\"\")","v":"Sensibilisation du public"},{"$f":"IFERROR(INDEX(masterlist!$E$2:$E$207,MATCH(A7,masterlist!$C$2:$C$207,0)),\"\")","v":1},{"$f":"IFERROR(INDEX(masterlist!$G$2:$G$207,MATCH(A7,masterlist!$C$2:$C$207,0)),\"\")","v":"Un plan structuré - décrivant les publics-cible, les messages clés, les moyens de diffusion et les résultats souhaités en matière d'éducation, de sensibilisation et de prise de conscience (plan IEC*) a-t-il été élaboré et testé pour la rage et le bien-être des chiens dans une zone de projet pilote ?"},{"$f":"IFERROR(INDEX(masterlist!$H$2:$H$207,MATCH(A7,masterlist!$C$2:$C$207,0)),\"\")","v":"Si vous imprimez et distribuez du matériel éducatif général destiné à un large public, vous devez répondre par « Non ». "},0,null,{"$f":"IFERROR(HYPERLINK(INDEX(masterlist!$M$2:$M$207,MATCH(A7,masterlist!$C$2:$C$207,0)),INDEX(masterlist!$L$2:$L$207,MATCH(A7,masterlist!$C$2:$C$207,0))),\"\")","v":"Communication-plan"},{"$f":"IFERROR(HYPERLINK(INDEX(masterlist!$O$2:$O$207,MATCH(A7,masterlist!$C$2:$C$207,0)),INDEX(masterlist!$N$2:$N$207,MATCH(A7,masterlist!$C$2:$C$207,0))),\"\")","v":"5.4.7-Awareness-campaign"},{"$f":"IFERROR(HYPERLINK(INDEX(masterlist!$Q$2:$Q$207,MATCH(A7,masterlist!$C$2:$C$207,0)),INDEX(masterlist!$P$2:$P$207,MATCH(A7,masterlist!$C$2:$C$207,0))),\"\")","v":0},{"$f":"IFERROR(HYPERLINK(INDEX(masterlist!$S$2:$S$207,MATCH(A7,masterlist!$C$2:$C$207,0)),INDEX(masterlist!$R$2:$R$207,MATCH(A7,masterlist!$C$2:$C$207,0))),\"\")","v":0},{"$f":"IFERROR(HYPERLINK(INDEX(masterlist!$U$2:$U$207,MATCH(A7,masterlist!$C$2:$C$207,0)),INDEX(masterlist!$T$2:$T$207,MATCH(A7,masterlist!$C$2:$C$207,0))),\"\")","v":0}]
[{"$f":"IFERROR(INDEX(masterlist!$A$2:$F$207,SMALL(IF(masterlist!$B$2:$B$207=\"IEC\",ROW(masterlist!$A$2:$F$207)-1),ROW(4:4)),3),\"\")","v":"IEC-Sen-1-4"},{"$f":"IFERROR(INDEX(masterlist!$D$2:$D$207,MATCH(A8,masterlist!$C$2:$C$207,0)),\"\")","v":"Sensibilisation du public"},{"$f":"IFERROR(INDEX(masterlist!$E$2:$E$207,MATCH(A8,masterlist!$C$2:$C$207,0)),\"\")","v":1},{"$f":"IFERROR(INDEX(masterlist!$G$2:$G$207,MATCH(A8,masterlist!$C$2:$C$207,0)),\"\")","v":"Des messages de sensibilisation destinés  à un large public sur la responsabilité des propriétaires de chiens, la prévention de la rage ou des morsures, ont-ils commencé à être diffusés au niveau national ?"},{"$f":"IFERROR(INDEX(masterlist!$H$2:$H$207,MATCH(A8,masterlist!$C$2:$C$207,0)),\"\")","v":"Vous pouvez répondre « oui » si vous avez utilisé des moyens tels que la Journée mondiale de la rage, d'autres journées de promotion de la santé, des campagnes dans les journaux, à la radio et à la télévision pour sensibiliser les gens à la possession responsable de chiens, à la rage et à sa prévention."},1,null,{"$f":"IFERROR(HYPERLINK(INDEX(masterlist!$M$2:$M$207,MATCH(A8,masterlist!$C$2:$C$207,0)),INDEX(masterlist!$L$2:$L$207,MATCH(A8,masterlist!$C$2:$C$207,0))),\"\")","v":"World Rabies Day"},{"$f":"IFERROR(HYPERLINK(INDEX(masterlist!$O$2:$O$207,MATCH(A8,masterlist!$C$2:$C$207,0)),INDEX(masterlist!$N$2:$N$207,MATCH(A8,masterlist!$C$2:$C$207,0))),\"\")","v":0},{"$f":"IFERROR(HYPERLINK(INDEX(masterlist!$Q$2:$Q$207,MATCH(A8,masterlist!$C$2:$C$207,0)),INDEX(masterlist!$P$2:$P$207,MATCH(A8,masterlist!$C$2:$C$207,0))),\"\")","v":0},{"$f":"IFERROR(HYPERLINK(INDEX(masterlist!$S$2:$S$207,MATCH(A8,masterlist!$C$2:$C$207,0)),INDEX(masterlist!$R$2:$R$207,MATCH(A8,masterlist!$C$2:$C$207,0))),\"\")","v":0},{"$f":"IFERROR(HYPERLINK(INDEX(masterlist!$U$2:$U$207,MATCH(A8,masterlist!$C$2:$C$207,0)),INDEX(masterlist!$T$2:$T$207,MATCH(A8,masterlist!$C$2:$C$207,0))),\"\")","v":0}]
[{"$f":"IFERROR(INDEX(masterlist!$A$2:$F$207,SMALL(IF(masterlist!$B$2:$B$207=\"IEC\",ROW(masterlist!$A$2:$F$207)-1),ROW(5:5)),3),\"\")","v":"IEC-Sen-2-5"},{"$f":"IFERROR(INDEX(masterlist!$D$2:$D$207,MATCH(A9,masterlist!$C$2:$C$207,0)),\"\")","v":"Sensibilisation du public"},{"$f":"IFERROR(INDEX(masterlist!$E$2:$E$207,MATCH(A9,masterlist!$C$2:$C$207,0)),\"\")","v":2},{"$f":"IFERROR(INDEX(masterlist!$G$2:$G$207,MATCH(A9,masterlist!$C$2:$C$207,0)),\"\")","v":"Le plan IEC a-t-il été mis à jour (si nécessaire) et mis en œuvre dans l’ensemble du pays ? "},{"$f":"IFERROR(INDEX(masterlist!$H$2:$H$207,MATCH(A9,masterlist!$C$2:$C$207,0)),\"\")","v":"Notez que vous devez avoir un plan IEC structuré pour répondre “Oui” à cette question."},0,null,{"$f":"IFERROR(HYPERLINK(INDEX(masterlist!$M$2:$M$207,MATCH(A9,masterlist!$C$2:$C$207,0)),INDEX(masterlist!$L$2:$L$207,MATCH(A9,masterlist!$C$2:$C$207,0))),\"\")","v":"Communication-plan"},{"$f":"IFERROR(HYPERLINK(INDEX(masterlist!$O$2:$O$207,MATCH(A9,masterlist!$C$2:$C$207,0)),INDEX(masterlist!$N$2:$N$207,MATCH(A9,masterlist!$C$2:$C$207,0))),\"\")","v":0},{"$f":"IFERROR(HYPERLINK(INDEX(masterlist!$Q$2:$Q$207,MATCH(A9,masterlist!$C$2:$C$207,0)),INDEX(masterlist!$P$2:$P$207,MATCH(A9,masterlist!$C$2:$C$207,0))),\"\")","v":0},{"$f":"IFERROR(HYPERLINK(INDEX(masterlist!$S$2:$S$207,MATCH(A9,masterlist!$C$2:$C$207,0)),INDEX(masterlist!$R$2:$R$207,MATCH(A9,masterlist!$C$2:$C$207,0))),\"\")","v":0},{"$f":"IFERROR(HYPERLINK(INDEX(masterlist!$U$2:$U$207,MATCH(A9,masterlist!$C$2:$C$207,0)),INDEX(masterlist!$T$2:$T$207,MATCH(A9,masterlist!$C$2:$C$207,0))),\"\")","v":0}]
[{"$f":"IFERROR(INDEX(masterlist!$A$2:$F$207,SMALL(IF(masterlist!$B$2:$B$207=\"IEC\",ROW(masterlist!$A$2:$F$207)-1),ROW(6:6)),3),\"\")","v":"IEC-Sen-5-6"},{"$f":"IFERROR(INDEX(masterlist!$D$2:$D$207,MATCH(A10,masterlist!$C$2:$C$207,0)),\"\")","v":"Sensibilisation du public"},{"$f":"IFERROR(INDEX(masterlist!$E$2:$E$207,MATCH(A10,masterlist!$C$2:$C$207,0)),\"\")","v":5},{"$f":"IFERROR(INDEX(masterlist!$G$2:$G$207,MATCH(A10,masterlist!$C$2:$C$207,0)),\"\")","v":"Maintenant que votre pays est débarrassé de la rage humaine et animale, des programmes de sensibilisation axés sur le maintien de l'absence de rage humaine transmise par les chiens et de rage canine ont-ils été mis en œuvre ?"},{"$f":"IFERROR(INDEX(masterlist!$H$2:$H$207,MATCH(A10,masterlist!$C$2:$C$207,0)),\"\")","v":"Vous pouvez répondre “Oui” si le pays est exempt de rage à la suite de campagnes réussies de vaccination de masse des chiens. "},0,null,{"$f":"IFERROR(HYPERLINK(INDEX(masterlist!$M$2:$M$207,MATCH(A10,masterlist!$C$2:$C$207,0)),INDEX(masterlist!$L$2:$L$207,MATCH(A10,masterlist!$C$2:$C$207,0))),\"\")","v":0},{"$f":"IFERROR(HYPERLINK(INDEX(masterlist!$O$2:$O$207,MATCH(A10,masterlist!$C$2:$C$207,0)),INDEX(masterlist!$N$2:$N$207,MATCH(A10,masterlist!$C$2:$C$207,0))),\"\")","v":0},{"$f":"IFERROR(HYPERLINK(INDEX(masterlist!$Q$2:$Q$207,MATCH(A10,masterlist!$C$2:$C$207,0)),INDEX(masterlist!$P$2:$P$207,MATCH(A10,masterlist!$C$2:$C$207,0))),\"\")","v":0},{"$f":"IFERROR(HYPERLINK(INDEX(masterlist!$S$2:$S$207,MATCH(A10,masterlist!$C$2:$C$207,0)),INDEX(masterlist!$R$2:$R$207,MATCH(A10,masterlist!$C$2:$C$207,0))),\"\")","v":0},{"$f":"IFERROR(HYPERLINK(INDEX(masterlist!$U$2:$U$207,MATCH(A10,masterlist!$C$2:$C$207,0)),INDEX(masterlist!$T$2:$T$207,MATCH(A10,masterlist!$C$2:$C$207,0))),\"\")","v":0}]
[{"$f":"IFERROR(INDEX(masterlist!$A$2:$F$207,SMALL(IF(masterlist!$B$2:$B$207=\"IEC\",ROW(masterlist!$A$2:$F$207)-1),ROW(7:7)),3),\"\")","v":"IEC-For-1-7"},{"$f":"IFERROR(INDEX(masterlist!$D$2:$D$207,MATCH(A11,masterlist!$C$2:$C$207,0)),\"\")","v":"Formation professionnelle"},{"$f":"IFERROR(INDEX(masterlist!$E$2:$E$207,MATCH(A11,masterlist!$C$2:$C$207,0)),\"\")","v":1},{"$f":"IFERROR(INDEX(masterlist!$G$2:$G$207,MATCH(A11,masterlist!$C$2:$C$207,0)),\"\")","v":"Avez-vous créé une liste de TOUS les professionnels de santé humaine et animale impliqués dans la lutte contre la rage et qu’il faut éduquer et former ? "},{"$f":"IFERROR(INDEX(masterlist!$H$2:$H$207,MATCH(A11,masterlist!$C$2:$C$207,0)),\"\")","v":"Vous pouvez répondre « Oui » si vous avez identifié tous les professionnels de santé humaine et animale concernés qui doivent être éduqués et formés (par exemple, les infirmières, les médecins, les agents de santé communautaire, les vétérinaires, les techniciens de la santé animale, les services de protection de la faune sauvage, etc.)."},1,null,{"$f":"IFERROR(HYPERLINK(INDEX(masterlist!$M$2:$M$207,MATCH(A11,masterlist!$C$2:$C$207,0)),INDEX(masterlist!$L$2:$L$207,MATCH(A11,masterlist!$C$2:$C$207,0))),\"\")","v":0},{"$f":"IFERROR(HYPERLINK(INDEX(masterlist!$O$2:$O$207,MATCH(A11,masterlist!$C$2:$C$207,0)),INDEX(masterlist!$N$2:$N$207,MATCH(A11,masterlist!$C$2:$C$207,0))),\"\")","v":0},{"$f":"IFERROR(HYPERLINK(INDEX(masterlist!$Q$2:$Q$207,MATCH(A11,masterlist!$C$2:$C$207,0)),INDEX(masterlist!$P$2:$P$207,MATCH(A11,masterlist!$C$2:$C$207,0))),\"\")","v":0},{"$f":"IFERROR(HYPERLINK(INDEX(masterlist!$S$2:$S$207,MATCH(A11,masterlist!$C$2:$C$207,0)),INDEX(masterlist!$R$2:$R$207,MATCH(A11,masterlist!$C$2:$C$207,0))),\"\")","v":0},{"$f":"IFERROR(HYPERLINK(INDEX(masterlist!$U$2:$U$207,MATCH(A11,masterlist!$C$2:$C$207,0)),INDEX(masterlist!$T$2:$T$207,MATCH(A11,masterlist!$C$2:$C$207,0))),\"\")","v":0}]
[{"$f":"IFERROR(INDEX(masterlist!$A$2:$F$207,SMALL(IF(masterlist!$B$2:$B$207=\"IEC\",ROW(masterlist!$A$2:$F$207)-1),ROW(8:8)),3),\"\")","v":"IEC-For-1-8"},{"$f":"IFERROR(INDEX(masterlist!$D$2:$D$207,MATCH(A12,masterlist!$C$2:$C$207,0)),\"\")","v":"Formation professionnelle"},{"$f":"IFERROR(INDEX(masterlist!$E$2:$E$207,MATCH(A12,masterlist!$C$2:$C$207,0)),\"\")","v":1},{"$f":"IFERROR(INDEX(masterlist!$G$2:$G$207,MATCH(A12,masterlist!$C$2:$C$207,0)),\"\")","v":"Avez-vous activement précisé les besoins en formation et en éducation des professionnels de santé humaine et animale identifiés ?"},{"$f":"IFERROR(INDEX(masterlist!$H$2:$H$207,MATCH(A12,masterlist!$C$2:$C$207,0)),\"\")","v":"Si cette activité a été réalisée dans une zone de projet pilote, vous pouvez répondre “Oui”.\n\nVous pouvez répondre “Oui” si vous avez identifié des besoins spécifiques en éducation et en formation de chacun des publics-cible. Il n’est pas nécessaire qu’il s’agisse d’une évaluation formelle, du moment qu'un travail d'identification des besoins appropriés a été effectué.\n\nPar exemple : avez-vous vérifié si les médecins sont capables d’administrer correctement une PPE. Avez-vous vérifié si les vétérinaires sont capables de manipuler les chiens en toute sécurité pour les vacciner ?  "},0,null,{"$f":"IFERROR(HYPERLINK(INDEX(masterlist!$M$2:$M$207,MATCH(A12,masterlist!$C$2:$C$207,0)),INDEX(masterlist!$L$2:$L$207,MATCH(A12,masterlist!$C$2:$C$207,0))),\"\")","v":"5.3-Who-do-we-need-to-train"},{"$f":"IFERROR(HYPERLINK(INDEX(masterlist!$O$2:$O$207,MATCH(A12,masterlist!$C$2:$C$207,0)),INDEX(masterlist!$N$2:$N$207,MATCH(A12,masterlist!$C$2:$C$207,0))),\"\")","v":0},{"$f":"IFERROR(HYPERLINK(INDEX(masterlist!$Q$2:$Q$207,MATCH(A12,masterlist!$C$2:$C$207,0)),INDEX(masterlist!$P$2:$P$207,MATCH(A12,masterlist!$C$2:$C$207,0))),\"\")","v":0},{"$f":"IFERROR(HYPERLINK(INDEX(masterlist!$S$2:$S$207,MATCH(A12,masterlist!$C$2:$C$207,0)),INDEX(masterlist!$R$2:$R$207,MATCH(A12,masterlist!$C$2:$C$207,0))),\"\")","v":0},{"$f":"IFERROR(HYPERLINK(INDEX(masterlist!$U$2:$U$207,MATCH(A12,masterlist!$C$2:$C$207,0)),INDEX(masterlist!$T$2:$T$207,MATCH(A12,masterlist!$C$2:$C$207,0))),\"\")","v":0}]
[{"$f":"IFERROR(INDEX(masterlist!$A$2:$F$207,SMALL(IF(masterlist!$B$2:$B$207=\"IEC\",ROW(masterlist!$A$2:$F$207)-1),ROW(9:9)),3),\"\")","v":"IEC-For-1-9"},{"$f":"IFERROR(INDEX(masterlist!$D$2:$D$207,MATCH(A13,masterlist!$C$2:$C$207,0)),\"\")","v":"Formation professionnelle"},{"$f":"IFERROR(INDEX(masterlist!$E$2:$E$207,MATCH(A13,masterlist!$C$2:$C$207,0)),\"\")","v":1},{"$f":"IFERROR(INDEX(masterlist!$G$2:$G$207,MATCH(A13,masterlist!$C$2:$C$207,0)),\"\")","v":"Un plan structuré de formation et d’éducation précisant les publics-cible, les besoins essentiels, les moyens de formation et d’éducation, et les résultats souhaités pour les professionnels de santé humaine et animale a-t-il été élaboré ?"},{"$f":"IFERROR(INDEX(masterlist!$H$2:$H$207,MATCH(A13,masterlist!$C$2:$C$207,0)),\"\")","v":"Ceci doit être un plan de formation spécifiquement destiné à former les professionnels sur des activités liées à la rage et non pas un programme de formation professionnelle général."},0,"il y a un plan pour la vaccination humaine. Concernant la vaccination animale, les veterinaires sont competent pour sa mise en oeuvre cependant la formation en matiere capture des chiens errants n,est pas realisee. Necessite de proposer des formations en matiere de capture des chiens errants avec le secteur de l agriculture et l'interieur",{"$f":"IFERROR(HYPERLINK(INDEX(masterlist!$M$2:$M$207,MATCH(A13,masterlist!$C$2:$C$207,0)),INDEX(masterlist!$L$2:$L$207,MATCH(A13,masterlist!$C$2:$C$207,0))),\"\")","v":"5.5-What-are-we-going-to-do-human-component"},{"$f":"IFERROR(HYPERLINK(INDEX(masterlist!$O$2:$O$207,MATCH(A13,masterlist!$C$2:$C$207,0)),INDEX(masterlist!$N$2:$N$207,MATCH(A13,masterlist!$C$2:$C$207,0))),\"\")","v":0},{"$f":"IFERROR(HYPERLINK(INDEX(masterlist!$Q$2:$Q$207,MATCH(A13,masterlist!$C$2:$C$207,0)),INDEX(masterlist!$P$2:$P$207,MATCH(A13,masterlist!$C$2:$C$207,0))),\"\")","v":0},{"$f":"IFERROR(HYPERLINK(INDEX(masterlist!$S$2:$S$207,MATCH(A13,masterlist!$C$2:$C$207,0)),INDEX(masterlist!$R$2:$R$207,MATCH(A13,masterlist!$C$2:$C$207,0))),\"\")","v":0},{"$f":"IFERROR(HYPERLINK(INDEX(masterlist!$U$2:$U$207,MATCH(A13,masterlist!$C$2:$C$207,0)),INDEX(masterlist!$T$2:$T$207,MATCH(A13,masterlist!$C$2:$C$207,0))),\"\")","v":0}]
[{"$f":"IFERROR(INDEX(masterlist!$A$2:$F$207,SMALL(IF(masterlist!$B$2:$B$207=\"IEC\",ROW(masterlist!$A$2:$F$207)-1),ROW(10:10)),3),\"\")","v":"IEC-For-1-10"},{"$f":"IFERROR(INDEX(masterlist!$D$2:$D$207,MATCH(A14,masterlist!$C$2:$C$207,0)),\"\")","v":"Formation professionnelle"},{"$f":"IFERROR(INDEX(masterlist!$E$2:$E$207,MATCH(A14,masterlist!$C$2:$C$207,0)),\"\")","v":1},{"$f":"IFERROR(INDEX(masterlist!$G$2:$G$207,MATCH(A14,masterlist!$C$2:$C$207,0)),\"\")","v":"La formation structurée des professionnels de santé humaine et animale a-t-elle été mise en œuvre dans une partie du pays (par exemple, dans une zone de projet pilote) ? "},{"$f":"IFERROR(INDEX(masterlist!$H$2:$H$207,MATCH(A14,masterlist!$C$2:$C$207,0)),\"\")","v":"Notez que ceci concerne spécifiquement les activités structurées de formation sur la rage. Par conséquent, les professionnels doivent avoir reçu une formation spécifique sur les activités de prévention et de lutte antirabique. "},1,null,{"$f":"IFERROR(HYPERLINK(INDEX(masterlist!$M$2:$M$207,MATCH(A14,masterlist!$C$2:$C$207,0)),INDEX(masterlist!$L$2:$L$207,MATCH(A14,masterlist!$C$2:$C$207,0))),\"\")","v":"GARC Education Platform"},{"$f":"IFERROR(HYPERLINK(INDEX(masterlist!$O$2:$O$207,MATCH(A14,masterlist!$C$2:$C$207,0)),INDEX(masterlist!$N$2:$N$207,MATCH(A14,masterlist!$C$2:$C$207,0))),\"\")","v":0},{"$f":"IFERROR(HYPERLINK(INDEX(masterlist!$Q$2:$Q$207,MATCH(A14,masterlist!$C$2:$C$207,0)),INDEX(masterlist!$P$2:$P$207,MATCH(A14,masterlist!$C$2:$C$207,0))),\"\")","v":0},{"$f":"IFERROR(HYPERLINK(INDEX(masterlist!$S$2:$S$207,MATCH(A14,masterlist!$C$2:$C$207,0)),INDEX(masterlist!$R$2:$R$207,MATCH(A14,masterlist!$C$2:$C$207,0))),\"\")","v":0},{"$f":"IFERROR(HYPERLINK(INDEX(masterlist!$U$2:$U$207,MATCH(A14,masterlist!$C$2:$C$207,0)),INDEX(masterlist!$T$2:$T$207,MATCH(A14,masterlist!$C$2:$C$207,0))),\"\")","v":0}]
[{"$f":"IFERROR(INDEX(masterlist!$A$2:$F$207,SMALL(IF(masterlist!$B$2:$B$207=\"IEC\",ROW(masterlist!$A$2:$F$207)-1),ROW(11:11)),3),\"\")","v":"IEC-For-2-11"},{"$f":"IFERROR(INDEX(masterlist!$D$2:$D$207,MATCH(A15,masterlist!$C$2:$C$207,0)),\"\")","v":"Formation professionnelle"},{"$f":"IFERROR(INDEX(masterlist!$E$2:$E$207,MATCH(A15,masterlist!$C$2:$C$207,0)),\"\")","v":2},{"$f":"IFERROR(INDEX(masterlist!$G$2:$G$207,MATCH(A15,masterlist!$C$2:$C$207,0)),\"\")","v":"La formation structurée des professionnels de santé humaine et animale a-t-elle été réalisée dans la plus grande partie du pays ?"},{"$f":"IFERROR(INDEX(masterlist!$H$2:$H$207,MATCH(A15,masterlist!$C$2:$C$207,0)),\"\")","v":"Noter que ceci concerne spécifiquement les activités structurées de formation sur la rage. Par conséquent, les professionnels doivent avoir reçu une formation spécifique sur les activités de prévention et de lutte antirabique. "},0,null,{"$f":"IFERROR(HYPERLINK(INDEX(masterlist!$M$2:$M$207,MATCH(A15,masterlist!$C$2:$C$207,0)),INDEX(masterlist!$L$2:$L$207,MATCH(A15,masterlist!$C$2:$C$207,0))),\"\")","v":"5.3-Who-do-we-need-to-train"},{"$f":"IFERROR(HYPERLINK(INDEX(masterlist!$O$2:$O$207,MATCH(A15,masterlist!$C$2:$C$207,0)),INDEX(masterlist!$N$2:$N$207,MATCH(A15,masterlist!$C$2:$C$207,0))),\"\")","v":"GARC Education Platform"},{"$f":"IFERROR(HYPERLINK(INDEX(masterlist!$Q$2:$Q$207,MATCH(A15,masterlist!$C$2:$C$207,0)),INDEX(masterlist!$P$2:$P$207,MATCH(A15,masterlist!$C$2:$C$207,0))),\"\")","v":0},{"$f":"IFERROR(HYPERLINK(INDEX(masterlist!$S$2:$S$207,MATCH(A15,masterlist!$C$2:$C$207,0)),INDEX(masterlist!$R$2:$R$207,MATCH(A15,masterlist!$C$2:$C$207,0))),\"\")","v":0},{"$f":"IFERROR(HYPERLINK(INDEX(masterlist!$U$2:$U$207,MATCH(A15,masterlist!$C$2:$C$207,0)),INDEX(masterlist!$T$2:$T$207,MATCH(A15,masterlist!$C$2:$C$207,0))),\"\")","v":0}]
[{"$f":"IFERROR(INDEX(masterlist!$A$2:$F$207,SMALL(IF(masterlist!$B$2:$B$207=\"IEC\",ROW(masterlist!$A$2:$F$207)-1),ROW(12:12)),3),\"\")","v":"IEC-Pla-0-12"},{"$f":"IFERROR(INDEX(masterlist!$D$2:$D$207,MATCH(A16,masterlist!$C$2:$C$207,0)),\"\")","v":"Plaidoyer"},{"$f":"IFERROR(INDEX(masterlist!$E$2:$E$207,MATCH(A16,masterlist!$C$2:$C$207,0)),\"\")","v":0},{"$f":"IFERROR(INDEX(masterlist!$G$2:$G$207,MATCH(A16,masterlist!$C$2:$C$207,0)),\"\")","v":"La rage est-elle une maladie prioritaire dans votre pays ?"},{"$f":"IFERROR(INDEX(masterlist!$H$2:$H$207,MATCH(A16,masterlist!$C$2:$C$207,0)),\"\")","v":"Vous pouvez répondre « Oui » si le gouvernement a donné la priorité à la lutte contre la rage en apportant un soutien politique. Vous pouvez également répondre « Oui » si votre gouvernement a organisé un atelier « One Health Zoonotic Disease Prioritization » (Zoonose prioritaire dans la perspective One Health) et que la rage a été classée parmi les cinq maladies prioritaires."},1,null,{"$f":"IFERROR(HYPERLINK(INDEX(masterlist!$M$2:$M$207,MATCH(A16,masterlist!$C$2:$C$207,0)),INDEX(masterlist!$L$2:$L$207,MATCH(A16,masterlist!$C$2:$C$207,0))),\"\")","v":"Public-health-and-economic-burden-of rabies"},{"$f":"IFERROR(HYPERLINK(INDEX(masterlist!$O$2:$O$207,MATCH(A16,masterlist!$C$2:$C$207,0)),INDEX(masterlist!$N$2:$N$207,MATCH(A16,masterlist!$C$2:$C$207,0))),\"\")","v":"Health economic studies on rabies"},{"$f":"IFERROR(HYPERLINK(INDEX(masterlist!$Q$2:$Q$207,MATCH(A16,masterlist!$C$2:$C$207,0)),INDEX(masterlist!$P$2:$P$207,MATCH(A16,masterlist!$C$2:$C$207,0))),\"\")","v":0},{"$f":"IFERROR(HYPERLINK(INDEX(masterlist!$S$2:$S$207,MATCH(A16,masterlist!$C$2:$C$207,0)),INDEX(masterlist!$R$2:$R$207,MATCH(A16,masterlist!$C$2:$C$207,0))),\"\")","v":0},{"$f":"IFERROR(HYPERLINK(INDEX(masterlist!$U$2:$U$207,MATCH(A16,masterlist!$C$2:$C$207,0)),INDEX(masterlist!$T$2:$T$207,MATCH(A16,masterlist!$C$2:$C$207,0))),\"\")","v":0}]
[{"$f":"IFERROR(INDEX(masterlist!$A$2:$F$207,SMALL(IF(masterlist!$B$2:$B$207=\"IEC\",ROW(masterlist!$A$2:$F$207)-1),ROW(13:13)),3),\"\")","v":"IEC-Pla-1-13"},{"$f":"IFERROR(INDEX(masterlist!$D$2:$D$207,MATCH(A17,masterlist!$C$2:$C$207,0)),\"\")","v":"Plaidoyer"},{"$f":"IFERROR(INDEX(masterlist!$E$2:$E$207,MATCH(A17,masterlist!$C$2:$C$207,0)),\"\")","v":1},{"$f":"IFERROR(INDEX(masterlist!$G$2:$G$207,MATCH(A17,masterlist!$C$2:$C$207,0)),\"\")","v":"Avez-vous dressé une liste de TOUS les acteurs* du plaidoyer pour le contrôle et la prévention de la rage dans votre pays ?  "},{"$f":"IFERROR(INDEX(masterlist!$H$2:$H$207,MATCH(A17,masterlist!$C$2:$C$207,0)),\"\")","v":"Par exemple, les politiques, les grandes organisations donatrices, la Quadripartite et d'autres influenceurs et décideurs politiques."},1,null,{"$f":"IFERROR(HYPERLINK(INDEX(masterlist!$M$2:$M$207,MATCH(A17,masterlist!$C$2:$C$207,0)),INDEX(masterlist!$L$2:$L$207,MATCH(A17,masterlist!$C$2:$C$207,0))),\"\")","v":0},{"$f":"IFERROR(HYPERLINK(INDEX(masterlist!$O$2:$O$207,MATCH(A17,masterlist!$C$2:$C$207,0)),INDEX(masterlist!$N$2:$N$207,MATCH(A17,masterlist!$C$2:$C$207,0))),\"\")","v":0},{"$f":"IFERROR(HYPERLINK(INDEX(masterlist!$Q$2:$Q$207,MATCH(A17,masterlist!$C$2:$C$207,0)),INDEX(masterlist!$P$2:$P$207,MATCH(A17,masterlist!$C$2:$C$207,0))),\"\")","v":0},{"$f":"IFERROR(HYPERLINK(INDEX(masterlist!$S$2:$S$207,MATCH(A17,masterlist!$C$2:$C$207,0)),INDEX(masterlist!$R$2:$R$207,MATCH(A17,masterlist!$C$2:$C$207,0))),\"\")","v":0},{"$f":"IFERROR(HYPERLINK(INDEX(masterlist!$U$2:$U$207,MATCH(A17,masterlist!$C$2:$C$207,0)),INDEX(masterlist!$T$2:$T$207,MATCH(A17,masterlist!$C$2:$C$207,0))),\"\")","v":0}]
[{"$f":"IFERROR(INDEX(masterlist!$A$2:$F$207,SMALL(IF(masterlist!$B$2:$B$207=\"IEC\",ROW(masterlist!$A$2:$F$207)-1),ROW(14:14)),3),\"\")","v":"IEC-Pla-1-14"},{"$f":"IFERROR(INDEX(masterlist!$D$2:$D$207,MATCH(A18,masterlist!$C$2:$C$207,0)),\"\")","v":"Plaidoyer"},{"$f":"IFERROR(INDEX(masterlist!$E$2:$E$207,MATCH(A18,masterlist!$C$2:$C$207,0)),\"\")","v":1},{"$f":"IFERROR(INDEX(masterlist!$G$2:$G$207,MATCH(A18,masterlist!$C$2:$C$207,0)),\"\")","v":"Un plan structuré - décrivant les parties prenantes cibles, les messages clés, les moyens utilisés et les résultats souhaités (plan de sensibilisation*) - a-t-il été élaboré et mis en œuvre ?"},{"$f":"IFERROR(INDEX(masterlist!$H$2:$H$207,MATCH(A18,masterlist!$C$2:$C$207,0)),\"\")","v":"Vous pouvez répondre « oui » si un « plan de sensibilisation » officiel élaboré par le gouvernement est mis en œuvre."},1,null,{"$f":"IFERROR(HYPERLINK(INDEX(masterlist!$M$2:$M$207,MATCH(A18,masterlist!$C$2:$C$207,0)),INDEX(masterlist!$L$2:$L$207,MATCH(A18,masterlist!$C$2:$C$207,0))),\"\")","v":"Drafting an advocacy strategy"},{"$f":"IFERROR(HYPERLINK(INDEX(masterlist!$O$2:$O$207,MATCH(A18,masterlist!$C$2:$C$207,0)),INDEX(masterlist!$N$2:$N$207,MATCH(A18,masterlist!$C$2:$C$207,0))),\"\")","v":"A toolkit for influencing policy"},{"$f":"IFERROR(HYPERLINK(INDEX(masterlist!$Q$2:$Q$207,MATCH(A18,masterlist!$C$2:$C$207,0)),INDEX(masterlist!$P$2:$P$207,MATCH(A18,masterlist!$C$2:$C$207,0))),\"\")","v":0},{"$f":"IFERROR(HYPERLINK(INDEX(masterlist!$S$2:$S$207,MATCH(A18,masterlist!$C$2:$C$207,0)),INDEX(masterlist!$R$2:$R$207,MATCH(A18,masterlist!$C$2:$C$207,0))),\"\")","v":0},{"$f":"IFERROR(HYPERLINK(INDEX(masterlist!$U$2:$U$207,MATCH(A18,masterlist!$C$2:$C$207,0)),INDEX(masterlist!$T$2:$T$207,MATCH(A18,masterlist!$C$2:$C$207,0))),\"\")","v":0}]
[{"$f":"IFERROR(INDEX(masterlist!$A$2:$F$207,SMALL(IF(masterlist!$B$2:$B$207=\"IEC\",ROW(masterlist!$A$2:$F$207)-1),ROW(15:15)),3),\"\")","v":"IEC-Pla-2-15"},{"$f":"IFERROR(INDEX(masterlist!$D$2:$D$207,MATCH(A19,masterlist!$C$2:$C$207,0)),\"\")","v":"Plaidoyer"},{"$f":"IFERROR(INDEX(masterlist!$E$2:$E$207,MATCH(A19,masterlist!$C$2:$C$207,0)),\"\")","v":2},{"$f":"IFERROR(INDEX(masterlist!$G$2:$G$207,MATCH(A19,masterlist!$C$2:$C$207,0)),\"\")","v":"Avez-vous fait la promotion de programmes de lutte antirabique réussis auprès des parties prenantes du plaidoyer identifiés ?"},{"$f":"IFERROR(INDEX(masterlist!$H$2:$H$207,MATCH(A19,masterlist!$C$2:$C$207,0)),\"\")","v":" "},0,null,{"$f":"IFERROR(HYPERLINK(INDEX(masterlist!$M$2:$M$207,MATCH(A19,masterlist!$C$2:$C$207,0)),INDEX(masterlist!$L$2:$L$207,MATCH(A19,masterlist!$C$2:$C$207,0))),\"\")","v":0},{"$f":"IFERROR(HYPERLINK(INDEX(masterlist!$O$2:$O$207,MATCH(A19,masterlist!$C$2:$C$207,0)),INDEX(masterlist!$N$2:$N$207,MATCH(A19,masterlist!$C$2:$C$207,0))),\"\")","v":0},{"$f":"IFERROR(HYPERLINK(INDEX(masterlist!$Q$2:$Q$207,MATCH(A19,masterlist!$C$2:$C$207,0)),INDEX(masterlist!$P$2:$P$207,MATCH(A19,masterlist!$C$2:$C$207,0))),\"\")","v":0},{"$f":"IFERROR(HYPERLINK(INDEX(masterlist!$S$2:$S$207,MATCH(A19,masterlist!$C$2:$C$207,0)),INDEX(masterlist!$R$2:$R$207,MATCH(A19,masterlist!$C$2:$C$207,0))),\"\")","v":0},{"$f":"IFERROR(HYPERLINK(INDEX(masterlist!$U$2:$U$207,MATCH(A19,masterlist!$C$2:$C$207,0)),INDEX(masterlist!$T$2:$T$207,MATCH(A19,masterlist!$C$2:$C$207,0))),\"\")","v":0}]
[{"$f":"IFERROR(INDEX(masterlist!$A$2:$F$207,SMALL(IF(masterlist!$B$2:$B$207=\"IEC\",ROW(masterlist!$A$2:$F$207)-1),ROW(16:16)),3),\"\")","v":"IEC-Pla-2-16"},{"$f":"IFERROR(INDEX(masterlist!$D$2:$D$207,MATCH(A20,masterlist!$C$2:$C$207,0)),\"\")","v":"Plaidoyer"},{"$f":"IFERROR(INDEX(masterlist!$E$2:$E$207,MATCH(A20,masterlist!$C$2:$C$207,0)),\"\")","v":2},{"$f":"IFERROR(INDEX(masterlist!$G$2:$G$207,MATCH(A20,masterlist!$C$2:$C$207,0)),\"\")","v":"Le lobbying a-t-il été utilisé pour susciter l'intérêt actif d'au moins une partie prenante du plaidoyer ?"},{"$f":"IFERROR(INDEX(masterlist!$H$2:$H$207,MATCH(A20,masterlist!$C$2:$C$207,0)),\"\")","v":"Par exemple, faire en sorte qu'un ministre important « adopte le programme » ou « adopte une communauté » pour l'élimination de la rage et s'approprie ses succès. "},0,null,{"$f":"IFERROR(HYPERLINK(INDEX(masterlist!$M$2:$M$207,MATCH(A20,masterlist!$C$2:$C$207,0)),INDEX(masterlist!$L$2:$L$207,MATCH(A20,masterlist!$C$2:$C$207,0))),\"\")","v":0},{"$f":"IFERROR(HYPERLINK(INDEX(masterlist!$O$2:$O$207,MATCH(A20,masterlist!$C$2:$C$207,0)),INDEX(masterlist!$N$2:$N$207,MATCH(A20,masterlist!$C$2:$C$207,0))),\"\")","v":0},{"$f":"IFERROR(HYPERLINK(INDEX(masterlist!$Q$2:$Q$207,MATCH(A20,masterlist!$C$2:$C$207,0)),INDEX(masterlist!$P$2:$P$207,MATCH(A20,masterlist!$C$2:$C$207,0))),\"\")","v":0},{"$f":"IFERROR(HYPERLINK(INDEX(masterlist!$S$2:$S$207,MATCH(A20,masterlist!$C$2:$C$207,0)),INDEX(masterlist!$R$2:$R$207,MATCH(A20,masterlist!$C$2:$C$207,0))),\"\")","v":0},{"$f":"IFERROR(HYPERLINK(INDEX(masterlist!$U$2:$U$207,MATCH(A20,masterlist!$C$2:$C$207,0)),INDEX(masterlist!$T$2:$T$207,MATCH(A20,masterlist!$C$2:$C$207,0))),\"\")","v":0}]
[{"$f":"IFERROR(INDEX(masterlist!$A$2:$F$207,SMALL(IF(masterlist!$B$2:$B$207=\"IEC\",ROW(masterlist!$A$2:$F$207)-1),ROW(17:17)),3),\"\")","v":"IEC-Pla-3-17"},{"$f":"IFERROR(INDEX(masterlist!$D$2:$D$207,MATCH(A21,masterlist!$C$2:$C$207,0)),\"\")","v":"Plaidoyer"},{"$f":"IFERROR(INDEX(masterlist!$E$2:$E$207,MATCH(A21,masterlist!$C$2:$C$207,0)),\"\")","v":3},{"$f":"IFERROR(INDEX(masterlist!$G$2:$G$207,MATCH(A21,masterlist!$C$2:$C$207,0)),\"\")","v":"Des zones exemptes de rage humaine ont-elles été publiquement déclarées ? "},{"$f":"IFERROR(INDEX(masterlist!$H$2:$H$207,MATCH(A21,masterlist!$C$2:$C$207,0)),\"\")","v":"Vous pouvez répondre “Oui” si il existe des zones exemptes de rage grâce à une bonne surveillance de la maladie. "},0,null,{"$f":"IFERROR(HYPERLINK(INDEX(masterlist!$M$2:$M$207,MATCH(A21,masterlist!$C$2:$C$207,0)),INDEX(masterlist!$L$2:$L$207,MATCH(A21,masterlist!$C$2:$C$207,0))),\"\")","v":0},{"$f":"IFERROR(HYPERLINK(INDEX(masterlist!$O$2:$O$207,MATCH(A21,masterlist!$C$2:$C$207,0)),INDEX(masterlist!$N$2:$N$207,MATCH(A21,masterlist!$C$2:$C$207,0))),\"\")","v":0},{"$f":"IFERROR(HYPERLINK(INDEX(masterlist!$Q$2:$Q$207,MATCH(A21,masterlist!$C$2:$C$207,0)),INDEX(masterlist!$P$2:$P$207,MATCH(A21,masterlist!$C$2:$C$207,0))),\"\")","v":0},{"$f":"IFERROR(HYPERLINK(INDEX(masterlist!$S$2:$S$207,MATCH(A21,masterlist!$C$2:$C$207,0)),INDEX(masterlist!$R$2:$R$207,MATCH(A21,masterlist!$C$2:$C$207,0))),\"\")","v":0},{"$f":"IFERROR(HYPERLINK(INDEX(masterlist!$U$2:$U$207,MATCH(A21,masterlist!$C$2:$C$207,0)),INDEX(masterlist!$T$2:$T$207,MATCH(A21,masterlist!$C$2:$C$207,0))),\"\")","v":0}]
[{"$f":"IFERROR(INDEX(masterlist!$A$2:$F$207,SMALL(IF(masterlist!$B$2:$B$207=\"IEC\",ROW(masterlist!$A$2:$F$207)-1),ROW(18:18)),3),\"\")","v":"IEC-Pla-4-18"},{"$f":"IFERROR(INDEX(masterlist!$D$2:$D$207,MATCH(A22,masterlist!$C$2:$C$207,0)),\"\")","v":"Plaidoyer"},{"$f":"IFERROR(INDEX(masterlist!$E$2:$E$207,MATCH(A22,masterlist!$C$2:$C$207,0)),\"\")","v":4},{"$f":"IFERROR(INDEX(masterlist!$G$2:$G$207,MATCH(A22,masterlist!$C$2:$C$207,0)),\"\")","v":"Avez-vous déclaré publiquement que le pays tout entier est débarrassé de la rage humaine transmise par les chiens ? "},{"$f":"IFERROR(INDEX(masterlist!$H$2:$H$207,MATCH(A22,masterlist!$C$2:$C$207,0)),\"\")","v":"Vous pouvez répondre “Oui” si le pays est exempt de rage humaine transmise par les chiens grâce à une bonne surveillance de la maladie."},0,null,{"$f":"IFERROR(HYPERLINK(INDEX(masterlist!$M$2:$M$207,MATCH(A22,masterlist!$C$2:$C$207,0)),INDEX(masterlist!$L$2:$L$207,MATCH(A22,masterlist!$C$2:$C$207,0))),\"\")","v":0},{"$f":"IFERROR(HYPERLINK(INDEX(masterlist!$O$2:$O$207,MATCH(A22,masterlist!$C$2:$C$207,0)),INDEX(masterlist!$N$2:$N$207,MATCH(A22,masterlist!$C$2:$C$207,0))),\"\")","v":0},{"$f":"IFERROR(HYPERLINK(INDEX(masterlist!$Q$2:$Q$207,MATCH(A22,masterlist!$C$2:$C$207,0)),INDEX(masterlist!$P$2:$P$207,MATCH(A22,masterlist!$C$2:$C$207,0))),\"\")","v":0},{"$f":"IFERROR(HYPERLINK(INDEX(masterlist!$S$2:$S$207,MATCH(A22,masterlist!$C$2:$C$207,0)),INDEX(masterlist!$R$2:$R$207,MATCH(A22,masterlist!$C$2:$C$207,0))),\"\")","v":0},{"$f":"IFERROR(HYPERLINK(INDEX(masterlist!$U$2:$U$207,MATCH(A22,masterlist!$C$2:$C$207,0)),INDEX(masterlist!$T$2:$T$207,MATCH(A22,masterlist!$C$2:$C$207,0))),\"\")","v":0}]
[{"$f":"IFERROR(INDEX(masterlist!$A$2:$F$207,SMALL(IF(masterlist!$B$2:$B$207=\"IEC\",ROW(masterlist!$A$2:$F$207)-1),ROW(19:19)),3),\"\")","v":"IEC-Pla-5-19"},{"$f":"IFERROR(INDEX(masterlist!$D$2:$D$207,MATCH(A23,masterlist!$C$2:$C$207,0)),\"\")","v":"Plaidoyer"},{"$f":"IFERROR(INDEX(masterlist!$E$2:$E$207,MATCH(A23,masterlist!$C$2:$C$207,0)),\"\")","v":5},{"$f":"IFERROR(INDEX(masterlist!$G$2:$G$207,MATCH(A23,masterlist!$C$2:$C$207,0)),\"\")","v":"Avez-vous déclaré publiquement que le pays tout entier est débarrassé de la rage canine ? "},{"$f":"IFERROR(INDEX(masterlist!$H$2:$H$207,MATCH(A23,masterlist!$C$2:$C$207,0)),\"\")","v":"Vous pouvez répondre “Oui” si le pays est exempt de rage grâce à une bonne surveillance de la maladie. "},0,null,{"$f":"IFERROR(HYPERLINK(INDEX(masterlist!$M$2:$M$207,MATCH(A23,masterlist!$C$2:$C$207,0)),INDEX(masterlist!$L$2:$L$207,MATCH(A23,masterlist!$C$2:$C$207,0))),\"\")","v":0},{"$f":"IFERROR(HYPERLINK(INDEX(masterlist!$O$2:$O$207,MATCH(A23,masterlist!$C$2:$C$207,0)),INDEX(masterlist!$N$2:$N$207,MATCH(A23,masterlist!$C$2:$C$207,0))),\"\")","v":0},{"$f":"IFERROR(HYPERLINK(INDEX(masterlist!$Q$2:$Q$207,MATCH(A23,masterlist!$C$2:$C$207,0)),INDEX(masterlist!$P$2:$P$207,MATCH(A23,masterlist!$C$2:$C$207,0))),\"\")","v":0},{"$f":"IFERROR(HYPERLINK(INDEX(masterlist!$S$2:$S$207,MATCH(A23,masterlist!$C$2:$C$207,0)),INDEX(masterlist!$R$2:$R$207,MATCH(A23,masterlist!$C$2:$C$207,0))),\"\")","v":0},{"$f":"IFERROR(HYPERLINK(INDEX(masterlist!$U$2:$U$207,MATCH(A23,masterlist!$C$2:$C$207,0)),INDEX(masterlist!$T$2:$T$207,MATCH(A23,masterlist!$C$2:$C$207,0))),\"\")","v":0}]
[{"$f":"IFERROR(INDEX(masterlist!$A$2:$F$207,SMALL(IF(masterlist!$B$2:$B$207=\"IEC\",ROW(masterlist!$A$2:$F$207)-1),ROW(20:20)),3),\"\")","v":""},{"$f":"IFERROR(INDEX(masterlist!$D$2:$D$207,MATCH(A24,masterlist!$C$2:$C$207,0)),\"\")","v":""},{"$f":"IFERROR(INDEX(masterlist!$E$2:$E$207,MATCH(A24,masterlist!$C$2:$C$207,0)),\"\")","v":""},{"$f":"IFERROR(INDEX(masterlist!$G$2:$G$207,MATCH(A24,masterlist!$C$2:$C$207,0)),\"\")","v":""},{"$f":"IFERROR(INDEX(masterlist!$H$2:$H$207,MATCH(A24,masterlist!$C$2:$C$207,0)),\"\")","v":""},null,null,{"$f":"IFERROR(HYPERLINK(INDEX(masterlist!$M$2:$M$207,MATCH(A24,masterlist!$C$2:$C$207,0)),INDEX(masterlist!$L$2:$L$207,MATCH(A24,masterlist!$C$2:$C$207,0))),\"\")","v":""},{"$f":"IFERROR(HYPERLINK(INDEX(masterlist!$O$2:$O$207,MATCH(A24,masterlist!$C$2:$C$207,0)),INDEX(masterlist!$N$2:$N$207,MATCH(A24,masterlist!$C$2:$C$207,0))),\"\")","v":""},{"$f":"IFERROR(HYPERLINK(INDEX(masterlist!$Q$2:$Q$207,MATCH(A24,masterlist!$C$2:$C$207,0)),INDEX(masterlist!$P$2:$P$207,MATCH(A24,masterlist!$C$2:$C$207,0))),\"\")","v":""},{"$f":"IFERROR(HYPERLINK(INDEX(masterlist!$S$2:$S$207,MATCH(A24,masterlist!$C$2:$C$207,0)),INDEX(masterlist!$R$2:$R$207,MATCH(A24,masterlist!$C$2:$C$207,0))),\"\")","v":""},{"$f":"IFERROR(HYPERLINK(INDEX(masterlist!$U$2:$U$207,MATCH(A24,masterlist!$C$2:$C$207,0)),INDEX(masterlist!$T$2:$T$207,MATCH(A24,masterlist!$C$2:$C$207,0))),\"\")","v":""}]
[{"$f":"IFERROR(INDEX(masterlist!$A$2:$F$207,SMALL(IF(masterlist!$B$2:$B$207=\"IEC\",ROW(masterlist!$A$2:$F$207)-1),ROW(21:21)),3),\"\")","v":""},{"$f":"IFERROR(INDEX(masterlist!$D$2:$D$207,MATCH(A25,masterlist!$C$2:$C$207,0)),\"\")","v":""},{"$f":"IFERROR(INDEX(masterlist!$E$2:$E$207,MATCH(A25,masterlist!$C$2:$C$207,0)),\"\")","v":""},{"$f":"IFERROR(INDEX(masterlist!$G$2:$G$207,MATCH(A25,masterlist!$C$2:$C$207,0)),\"\")","v":""},{"$f":"IFERROR(INDEX(masterlist!$H$2:$H$207,MATCH(A25,masterlist!$C$2:$C$207,0)),\"\")","v":""},null,null,{"$f":"IFERROR(HYPERLINK(INDEX(masterlist!$M$2:$M$207,MATCH(A25,masterlist!$C$2:$C$207,0)),INDEX(masterlist!$L$2:$L$207,MATCH(A25,masterlist!$C$2:$C$207,0))),\"\")","v":""},{"$f":"IFERROR(HYPERLINK(INDEX(masterlist!$O$2:$O$207,MATCH(A25,masterlist!$C$2:$C$207,0)),INDEX(masterlist!$N$2:$N$207,MATCH(A25,masterlist!$C$2:$C$207,0))),\"\")","v":""},{"$f":"IFERROR(HYPERLINK(INDEX(masterlist!$Q$2:$Q$207,MATCH(A25,masterlist!$C$2:$C$207,0)),INDEX(masterlist!$P$2:$P$207,MATCH(A25,masterlist!$C$2:$C$207,0))),\"\")","v":""},{"$f":"IFERROR(HYPERLINK(INDEX(masterlist!$S$2:$S$207,MATCH(A25,masterlist!$C$2:$C$207,0)),INDEX(masterlist!$R$2:$R$207,MATCH(A25,masterlist!$C$2:$C$207,0))),\"\")","v":""},{"$f":"IFERROR(HYPERLINK(INDEX(masterlist!$U$2:$U$207,MATCH(A25,masterlist!$C$2:$C$207,0)),INDEX(masterlist!$T$2:$T$207,MATCH(A25,masterlist!$C$2:$C$207,0))),\"\")","v":""}]
[{"$f":"IFERROR(INDEX(masterlist!$A$2:$F$207,SMALL(IF(masterlist!$B$2:$B$207=\"IEC\",ROW(masterlist!$A$2:$F$207)-1),ROW(22:22)),3),\"\")","v":""},{"$f":"IFERROR(INDEX(masterlist!$D$2:$D$207,MATCH(A26,masterlist!$C$2:$C$207,0)),\"\")","v":""},{"$f":"IFERROR(INDEX(masterlist!$E$2:$E$207,MATCH(A26,masterlist!$C$2:$C$207,0)),\"\")","v":""},{"$f":"IFERROR(INDEX(masterlist!$G$2:$G$207,MATCH(A26,masterlist!$C$2:$C$207,0)),\"\")","v":""},{"$f":"IFERROR(INDEX(masterlist!$H$2:$H$207,MATCH(A26,masterlist!$C$2:$C$207,0)),\"\")","v":""},null,null,{"$f":"IFERROR(HYPERLINK(INDEX(masterlist!$M$2:$M$207,MATCH(A26,masterlist!$C$2:$C$207,0)),INDEX(masterlist!$L$2:$L$207,MATCH(A26,masterlist!$C$2:$C$207,0))),\"\")","v":""},{"$f":"IFERROR(HYPERLINK(INDEX(masterlist!$O$2:$O$207,MATCH(A26,masterlist!$C$2:$C$207,0)),INDEX(masterlist!$N$2:$N$207,MATCH(A26,masterlist!$C$2:$C$207,0))),\"\")","v":""},{"$f":"IFERROR(HYPERLINK(INDEX(masterlist!$Q$2:$Q$207,MATCH(A26,masterlist!$C$2:$C$207,0)),INDEX(masterlist!$P$2:$P$207,MATCH(A26,masterlist!$C$2:$C$207,0))),\"\")","v":""},{"$f":"IFERROR(HYPERLINK(INDEX(masterlist!$S$2:$S$207,MATCH(A26,masterlist!$C$2:$C$207,0)),INDEX(masterlist!$R$2:$R$207,MATCH(A26,masterlist!$C$2:$C$207,0))),\"\")","v":""},{"$f":"IFERROR(HYPERLINK(INDEX(masterlist!$U$2:$U$207,MATCH(A26,masterlist!$C$2:$C$207,0)),INDEX(masterlist!$T$2:$T$207,MATCH(A26,masterlist!$C$2:$C$207,0))),\"\")","v":""}]
[{"$f":"IFERROR(INDEX(masterlist!$A$2:$F$207,SMALL(IF(masterlist!$B$2:$B$207=\"IEC\",ROW(masterlist!$A$2:$F$207)-1),ROW(23:23)),3),\"\")","v":""},{"$f":"IFERROR(INDEX(masterlist!$D$2:$D$207,MATCH(A27,masterlist!$C$2:$C$207,0)),\"\")","v":""},{"$f":"IFERROR(INDEX(masterlist!$E$2:$E$207,MATCH(A27,masterlist!$C$2:$C$207,0)),\"\")","v":""},{"$f":"IFERROR(INDEX(masterlist!$G$2:$G$207,MATCH(A27,masterlist!$C$2:$C$207,0)),\"\")","v":""},{"$f":"IFERROR(INDEX(masterlist!$H$2:$H$207,MATCH(A27,masterlist!$C$2:$C$207,0)),\"\")","v":""},null,null,{"$f":"IFERROR(HYPERLINK(INDEX(masterlist!$M$2:$M$207,MATCH(A27,masterlist!$C$2:$C$207,0)),INDEX(masterlist!$L$2:$L$207,MATCH(A27,masterlist!$C$2:$C$207,0))),\"\")","v":""},{"$f":"IFERROR(HYPERLINK(INDEX(masterlist!$O$2:$O$207,MATCH(A27,masterlist!$C$2:$C$207,0)),INDEX(masterlist!$N$2:$N$207,MATCH(A27,masterlist!$C$2:$C$207,0))),\"\")","v":""},{"$f":"IFERROR(HYPERLINK(INDEX(masterlist!$Q$2:$Q$207,MATCH(A27,masterlist!$C$2:$C$207,0)),INDEX(masterlist!$P$2:$P$207,MATCH(A27,masterlist!$C$2:$C$207,0))),\"\")","v":""},{"$f":"IFERROR(HYPERLINK(INDEX(masterlist!$S$2:$S$207,MATCH(A27,masterlist!$C$2:$C$207,0)),INDEX(masterlist!$R$2:$R$207,MATCH(A27,masterlist!$C$2:$C$207,0))),\"\")","v":""},{"$f":"IFERROR(HYPERLINK(INDEX(masterlist!$U$2:$U$207,MATCH(A27,masterlist!$C$2:$C$207,0)),INDEX(masterlist!$T$2:$T$207,MATCH(A27,masterlist!$C$2:$C$207,0))),\"\")","v":""}]
[{"$f":"IFERROR(INDEX(masterlist!$A$2:$F$207,SMALL(IF(masterlist!$B$2:$B$207=\"IEC\",ROW(masterlist!$A$2:$F$207)-1),ROW(24:24)),3),\"\")","v":""},{"$f":"IFERROR(INDEX(masterlist!$D$2:$D$207,MATCH(A28,masterlist!$C$2:$C$207,0)),\"\")","v":""},{"$f":"IFERROR(INDEX(masterlist!$E$2:$E$207,MATCH(A28,masterlist!$C$2:$C$207,0)),\"\")","v":""},{"$f":"IFERROR(INDEX(masterlist!$G$2:$G$207,MATCH(A28,masterlist!$C$2:$C$207,0)),\"\")","v":""},{"$f":"IFERROR(INDEX(masterlist!$H$2:$H$207,MATCH(A28,masterlist!$C$2:$C$207,0)),\"\")","v":""},null,null,{"$f":"IFERROR(HYPERLINK(INDEX(masterlist!$M$2:$M$207,MATCH(A28,masterlist!$C$2:$C$207,0)),INDEX(masterlist!$L$2:$L$207,MATCH(A28,masterlist!$C$2:$C$207,0))),\"\")","v":""},{"$f":"IFERROR(HYPERLINK(INDEX(masterlist!$O$2:$O$207,MATCH(A28,masterlist!$C$2:$C$207,0)),INDEX(masterlist!$N$2:$N$207,MATCH(A28,masterlist!$C$2:$C$207,0))),\"\")","v":""},{"$f":"IFERROR(HYPERLINK(INDEX(masterlist!$Q$2:$Q$207,MATCH(A28,masterlist!$C$2:$C$207,0)),INDEX(masterlist!$P$2:$P$207,MATCH(A28,masterlist!$C$2:$C$207,0))),\"\")","v":""},{"$f":"IFERROR(HYPERLINK(INDEX(masterlist!$S$2:$S$207,MATCH(A28,masterlist!$C$2:$C$207,0)),INDEX(masterlist!$R$2:$R$207,MATCH(A28,masterlist!$C$2:$C$207,0))),\"\")","v":""},{"$f":"IFERROR(HYPERLINK(INDEX(masterlist!$U$2:$U$207,MATCH(A28,masterlist!$C$2:$C$207,0)),INDEX(masterlist!$T$2:$T$207,MATCH(A28,masterlist!$C$2:$C$207,0))),\"\")","v":""}]
[{"$f":"IFERROR(INDEX(masterlist!$A$2:$F$207,SMALL(IF(masterlist!$B$2:$B$207=\"IEC\",ROW(masterlist!$A$2:$F$207)-1),ROW(25:25)),3),\"\")","v":""},{"$f":"IFERROR(INDEX(masterlist!$D$2:$D$207,MATCH(A29,masterlist!$C$2:$C$207,0)),\"\")","v":""},{"$f":"IFERROR(INDEX(masterlist!$E$2:$E$207,MATCH(A29,masterlist!$C$2:$C$207,0)),\"\")","v":""},{"$f":"IFERROR(INDEX(masterlist!$G$2:$G$207,MATCH(A29,masterlist!$C$2:$C$207,0)),\"\")","v":""},{"$f":"IFERROR(INDEX(masterlist!$H$2:$H$207,MATCH(A29,masterlist!$C$2:$C$207,0)),\"\")","v":""},null,null,{"$f":"IFERROR(HYPERLINK(INDEX(masterlist!$M$2:$M$207,MATCH(A29,masterlist!$C$2:$C$207,0)),INDEX(masterlist!$L$2:$L$207,MATCH(A29,masterlist!$C$2:$C$207,0))),\"\")","v":""},{"$f":"IFERROR(HYPERLINK(INDEX(masterlist!$O$2:$O$207,MATCH(A29,masterlist!$C$2:$C$207,0)),INDEX(masterlist!$N$2:$N$207,MATCH(A29,masterlist!$C$2:$C$207,0))),\"\")","v":""},{"$f":"IFERROR(HYPERLINK(INDEX(masterlist!$Q$2:$Q$207,MATCH(A29,masterlist!$C$2:$C$207,0)),INDEX(masterlist!$P$2:$P$207,MATCH(A29,masterlist!$C$2:$C$207,0))),\"\")","v":""},{"$f":"IFERROR(HYPERLINK(INDEX(masterlist!$S$2:$S$207,MATCH(A29,masterlist!$C$2:$C$207,0)),INDEX(masterlist!$R$2:$R$207,MATCH(A29,masterlist!$C$2:$C$207,0))),\"\")","v":""},{"$f":"IFERROR(HYPERLINK(INDEX(masterlist!$U$2:$U$207,MATCH(A29,masterlist!$C$2:$C$207,0)),INDEX(masterlist!$T$2:$T$207,MATCH(A29,masterlist!$C$2:$C$207,0))),\"\")","v":""}]
[{"$f":"IFERROR(INDEX(masterlist!$A$2:$F$207,SMALL(IF(masterlist!$B$2:$B$207=\"IEC\",ROW(masterlist!$A$2:$F$207)-1),ROW(26:26)),3),\"\")","v":""},{"$f":"IFERROR(INDEX(masterlist!$D$2:$D$207,MATCH(A30,masterlist!$C$2:$C$207,0)),\"\")","v":""},{"$f":"IFERROR(INDEX(masterlist!$E$2:$E$207,MATCH(A30,masterlist!$C$2:$C$207,0)),\"\")","v":""},{"$f":"IFERROR(INDEX(masterlist!$G$2:$G$207,MATCH(A30,masterlist!$C$2:$C$207,0)),\"\")","v":""},{"$f":"IFERROR(INDEX(masterlist!$H$2:$H$207,MATCH(A30,masterlist!$C$2:$C$207,0)),\"\")","v":""},null,null,{"$f":"IFERROR(HYPERLINK(INDEX(masterlist!$M$2:$M$207,MATCH(A30,masterlist!$C$2:$C$207,0)),INDEX(masterlist!$L$2:$L$207,MATCH(A30,masterlist!$C$2:$C$207,0))),\"\")","v":""},{"$f":"IFERROR(HYPERLINK(INDEX(masterlist!$O$2:$O$207,MATCH(A30,masterlist!$C$2:$C$207,0)),INDEX(masterlist!$N$2:$N$207,MATCH(A30,masterlist!$C$2:$C$207,0))),\"\")","v":""},{"$f":"IFERROR(HYPERLINK(INDEX(masterlist!$Q$2:$Q$207,MATCH(A30,masterlist!$C$2:$C$207,0)),INDEX(masterlist!$P$2:$P$207,MATCH(A30,masterlist!$C$2:$C$207,0))),\"\")","v":""},{"$f":"IFERROR(HYPERLINK(INDEX(masterlist!$S$2:$S$207,MATCH(A30,masterlist!$C$2:$C$207,0)),INDEX(masterlist!$R$2:$R$207,MATCH(A30,masterlist!$C$2:$C$207,0))),\"\")","v":""},{"$f":"IFERROR(HYPERLINK(INDEX(masterlist!$U$2:$U$207,MATCH(A30,masterlist!$C$2:$C$207,0)),INDEX(masterlist!$T$2:$T$207,MATCH(A30,masterlist!$C$2:$C$207,0))),\"\")","v":""}]
[{"$f":"IFERROR(INDEX(masterlist!$A$2:$F$207,SMALL(IF(masterlist!$B$2:$B$207=\"IEC\",ROW(masterlist!$A$2:$F$207)-1),ROW(27:27)),3),\"\")","v":""},{"$f":"IFERROR(INDEX(masterlist!$D$2:$D$207,MATCH(A31,masterlist!$C$2:$C$207,0)),\"\")","v":""},{"$f":"IFERROR(INDEX(masterlist!$E$2:$E$207,MATCH(A31,masterlist!$C$2:$C$207,0)),\"\")","v":""},{"$f":"IFERROR(INDEX(masterlist!$G$2:$G$207,MATCH(A31,masterlist!$C$2:$C$207,0)),\"\")","v":""},{"$f":"IFERROR(INDEX(masterlist!$H$2:$H$207,MATCH(A31,masterlist!$C$2:$C$207,0)),\"\")","v":""},null,null,{"$f":"IFERROR(HYPERLINK(INDEX(masterlist!$M$2:$M$207,MATCH(A31,masterlist!$C$2:$C$207,0)),INDEX(masterlist!$L$2:$L$207,MATCH(A31,masterlist!$C$2:$C$207,0))),\"\")","v":""},{"$f":"IFERROR(HYPERLINK(INDEX(masterlist!$O$2:$O$207,MATCH(A31,masterlist!$C$2:$C$207,0)),INDEX(masterlist!$N$2:$N$207,MATCH(A31,masterlist!$C$2:$C$207,0))),\"\")","v":""},{"$f":"IFERROR(HYPERLINK(INDEX(masterlist!$Q$2:$Q$207,MATCH(A31,masterlist!$C$2:$C$207,0)),INDEX(masterlist!$P$2:$P$207,MATCH(A31,masterlist!$C$2:$C$207,0))),\"\")","v":""},{"$f":"IFERROR(HYPERLINK(INDEX(masterlist!$S$2:$S$207,MATCH(A31,masterlist!$C$2:$C$207,0)),INDEX(masterlist!$R$2:$R$207,MATCH(A31,masterlist!$C$2:$C$207,0))),\"\")","v":""},{"$f":"IFERROR(HYPERLINK(INDEX(masterlist!$U$2:$U$207,MATCH(A31,masterlist!$C$2:$C$207,0)),INDEX(masterlist!$T$2:$T$207,MATCH(A31,masterlist!$C$2:$C$207,0))),\"\")","v":""}]
[{"$f":"IFERROR(INDEX(masterlist!$A$2:$F$207,SMALL(IF(masterlist!$B$2:$B$207=\"IEC\",ROW(masterlist!$A$2:$F$207)-1),ROW(28:28)),3),\"\")","v":""},{"$f":"IFERROR(INDEX(masterlist!$D$2:$D$207,MATCH(A32,masterlist!$C$2:$C$207,0)),\"\")","v":""},{"$f":"IFERROR(INDEX(masterlist!$E$2:$E$207,MATCH(A32,masterlist!$C$2:$C$207,0)),\"\")","v":""},{"$f":"IFERROR(INDEX(masterlist!$G$2:$G$207,MATCH(A32,masterlist!$C$2:$C$207,0)),\"\")","v":""},{"$f":"IFERROR(INDEX(masterlist!$H$2:$H$207,MATCH(A32,masterlist!$C$2:$C$207,0)),\"\")","v":""},null,null,{"$f":"IFERROR(HYPERLINK(INDEX(masterlist!$M$2:$M$207,MATCH(A32,masterlist!$C$2:$C$207,0)),INDEX(masterlist!$L$2:$L$207,MATCH(A32,masterlist!$C$2:$C$207,0))),\"\")","v":""},{"$f":"IFERROR(HYPERLINK(INDEX(masterlist!$O$2:$O$207,MATCH(A32,masterlist!$C$2:$C$207,0)),INDEX(masterlist!$N$2:$N$207,MATCH(A32,masterlist!$C$2:$C$207,0))),\"\")","v":""},{"$f":"IFERROR(HYPERLINK(INDEX(masterlist!$Q$2:$Q$207,MATCH(A32,masterlist!$C$2:$C$207,0)),INDEX(masterlist!$P$2:$P$207,MATCH(A32,masterlist!$C$2:$C$207,0))),\"\")","v":""},{"$f":"IFERROR(HYPERLINK(INDEX(masterlist!$S$2:$S$207,MATCH(A32,masterlist!$C$2:$C$207,0)),INDEX(masterlist!$R$2:$R$207,MATCH(A32,masterlist!$C$2:$C$207,0))),\"\")","v":""},{"$f":"IFERROR(HYPERLINK(INDEX(masterlist!$U$2:$U$207,MATCH(A32,masterlist!$C$2:$C$207,0)),INDEX(masterlist!$T$2:$T$207,MATCH(A32,masterlist!$C$2:$C$207,0))),\"\")","v":""}]
[{"$f":"IFERROR(INDEX(masterlist!$A$2:$F$207,SMALL(IF(masterlist!$B$2:$B$207=\"IEC\",ROW(masterlist!$A$2:$F$207)-1),ROW(29:29)),3),\"\")","v":""},{"$f":"IFERROR(INDEX(masterlist!$D$2:$D$207,MATCH(A33,masterlist!$C$2:$C$207,0)),\"\")","v":""},{"$f":"IFERROR(INDEX(masterlist!$E$2:$E$207,MATCH(A33,masterlist!$C$2:$C$207,0)),\"\")","v":""},{"$f":"IFERROR(INDEX(masterlist!$G$2:$G$207,MATCH(A33,masterlist!$C$2:$C$207,0)),\"\")","v":""},{"$f":"IFERROR(INDEX(masterlist!$H$2:$H$207,MATCH(A33,masterlist!$C$2:$C$207,0)),\"\")","v":""},null,null,{"$f":"IFERROR(HYPERLINK(INDEX(masterlist!$M$2:$M$207,MATCH(A33,masterlist!$C$2:$C$207,0)),INDEX(masterlist!$L$2:$L$207,MATCH(A33,masterlist!$C$2:$C$207,0))),\"\")","v":""},{"$f":"IFERROR(HYPERLINK(INDEX(masterlist!$O$2:$O$207,MATCH(A33,masterlist!$C$2:$C$207,0)),INDEX(masterlist!$N$2:$N$207,MATCH(A33,masterlist!$C$2:$C$207,0))),\"\")","v":""},{"$f":"IFERROR(HYPERLINK(INDEX(masterlist!$Q$2:$Q$207,MATCH(A33,masterlist!$C$2:$C$207,0)),INDEX(masterlist!$P$2:$P$207,MATCH(A33,masterlist!$C$2:$C$207,0))),\"\")","v":""},{"$f":"IFERROR(HYPERLINK(INDEX(masterlist!$S$2:$S$207,MATCH(A33,masterlist!$C$2:$C$207,0)),INDEX(masterlist!$R$2:$R$207,MATCH(A33,masterlist!$C$2:$C$207,0))),\"\")","v":""},{"$f":"IFERROR(HYPERLINK(INDEX(masterlist!$U$2:$U$207,MATCH(A33,masterlist!$C$2:$C$207,0)),INDEX(masterlist!$T$2:$T$207,MATCH(A33,masterlist!$C$2:$C$207,0))),\"\")","v":""}]
[{"$f":"IFERROR(INDEX(masterlist!$A$2:$F$207,SMALL(IF(masterlist!$B$2:$B$207=\"IEC\",ROW(masterlist!$A$2:$F$207)-1),ROW(30:30)),3),\"\")","v":""},{"$f":"IFERROR(INDEX(masterlist!$D$2:$D$207,MATCH(A34,masterlist!$C$2:$C$207,0)),\"\")","v":""},{"$f":"IFERROR(INDEX(masterlist!$E$2:$E$207,MATCH(A34,masterlist!$C$2:$C$207,0)),\"\")","v":""},{"$f":"IFERROR(INDEX(masterlist!$G$2:$G$207,MATCH(A34,masterlist!$C$2:$C$207,0)),\"\")","v":""},{"$f":"IFERROR(INDEX(masterlist!$H$2:$H$207,MATCH(A34,masterlist!$C$2:$C$207,0)),\"\")","v":""},null,null,{"$f":"IFERROR(HYPERLINK(INDEX(masterlist!$M$2:$M$207,MATCH(A34,masterlist!$C$2:$C$207,0)),INDEX(masterlist!$L$2:$L$207,MATCH(A34,masterlist!$C$2:$C$207,0))),\"\")","v":""},{"$f":"IFERROR(HYPERLINK(INDEX(masterlist!$O$2:$O$207,MATCH(A34,masterlist!$C$2:$C$207,0)),INDEX(masterlist!$N$2:$N$207,MATCH(A34,masterlist!$C$2:$C$207,0))),\"\")","v":""},{"$f":"IFERROR(HYPERLINK(INDEX(masterlist!$Q$2:$Q$207,MATCH(A34,masterlist!$C$2:$C$207,0)),INDEX(masterlist!$P$2:$P$207,MATCH(A34,masterlist!$C$2:$C$207,0))),\"\")","v":""},{"$f":"IFERROR(HYPERLINK(INDEX(masterlist!$S$2:$S$207,MATCH(A34,masterlist!$C$2:$C$207,0)),INDEX(masterlist!$R$2:$R$207,MATCH(A34,masterlist!$C$2:$C$207,0))),\"\")","v":""},{"$f":"IFERROR(HYPERLINK(INDEX(masterlist!$U$2:$U$207,MATCH(A34,masterlist!$C$2:$C$207,0)),INDEX(masterlist!$T$2:$T$207,MATCH(A34,masterlist!$C$2:$C$207,0))),\"\")","v":""}]
[{"$f":"IFERROR(INDEX(masterlist!$A$2:$F$207,SMALL(IF(masterlist!$B$2:$B$207=\"IEC\",ROW(masterlist!$A$2:$F$207)-1),ROW(31:31)),3),\"\")","v":""},{"$f":"IFERROR(INDEX(masterlist!$D$2:$D$207,MATCH(A35,masterlist!$C$2:$C$207,0)),\"\")","v":""},{"$f":"IFERROR(INDEX(masterlist!$E$2:$E$207,MATCH(A35,masterlist!$C$2:$C$207,0)),\"\")","v":""},{"$f":"IFERROR(INDEX(masterlist!$G$2:$G$207,MATCH(A35,masterlist!$C$2:$C$207,0)),\"\")","v":""},{"$f":"IFERROR(INDEX(masterlist!$H$2:$H$207,MATCH(A35,masterlist!$C$2:$C$207,0)),\"\")","v":""},null,null,{"$f":"IFERROR(HYPERLINK(INDEX(masterlist!$M$2:$M$207,MATCH(A35,masterlist!$C$2:$C$207,0)),INDEX(masterlist!$L$2:$L$207,MATCH(A35,masterlist!$C$2:$C$207,0))),\"\")","v":""},{"$f":"IFERROR(HYPERLINK(INDEX(masterlist!$O$2:$O$207,MATCH(A35,masterlist!$C$2:$C$207,0)),INDEX(masterlist!$N$2:$N$207,MATCH(A35,masterlist!$C$2:$C$207,0))),\"\")","v":""},{"$f":"IFERROR(HYPERLINK(INDEX(masterlist!$Q$2:$Q$207,MATCH(A35,masterlist!$C$2:$C$207,0)),INDEX(masterlist!$P$2:$P$207,MATCH(A35,masterlist!$C$2:$C$207,0))),\"\")","v":""},{"$f":"IFERROR(HYPERLINK(INDEX(masterlist!$S$2:$S$207,MATCH(A35,masterlist!$C$2:$C$207,0)),INDEX(masterlist!$R$2:$R$207,MATCH(A35,masterlist!$C$2:$C$207,0))),\"\")","v":""},{"$f":"IFERROR(HYPERLINK(INDEX(masterlist!$U$2:$U$207,MATCH(A35,masterlist!$C$2:$C$207,0)),INDEX(masterlist!$T$2:$T$207,MATCH(A35,masterlist!$C$2:$C$207,0))),\"\")","v":""}]
[{"$f":"IFERROR(INDEX(masterlist!$A$2:$F$207,SMALL(IF(masterlist!$B$2:$B$207=\"IEC\",ROW(masterlist!$A$2:$F$207)-1),ROW(32:32)),3),\"\")","v":""},{"$f":"IFERROR(INDEX(masterlist!$D$2:$D$207,MATCH(A36,masterlist!$C$2:$C$207,0)),\"\")","v":""},{"$f":"IFERROR(INDEX(masterlist!$E$2:$E$207,MATCH(A36,masterlist!$C$2:$C$207,0)),\"\")","v":""},{"$f":"IFERROR(INDEX(masterlist!$G$2:$G$207,MATCH(A36,masterlist!$C$2:$C$207,0)),\"\")","v":""},{"$f":"IFERROR(INDEX(masterlist!$H$2:$H$207,MATCH(A36,masterlist!$C$2:$C$207,0)),\"\")","v":""},null,null,{"$f":"IFERROR(HYPERLINK(INDEX(masterlist!$M$2:$M$207,MATCH(A36,masterlist!$C$2:$C$207,0)),INDEX(masterlist!$L$2:$L$207,MATCH(A36,masterlist!$C$2:$C$207,0))),\"\")","v":""},{"$f":"IFERROR(HYPERLINK(INDEX(masterlist!$O$2:$O$207,MATCH(A36,masterlist!$C$2:$C$207,0)),INDEX(masterlist!$N$2:$N$207,MATCH(A36,masterlist!$C$2:$C$207,0))),\"\")","v":""},{"$f":"IFERROR(HYPERLINK(INDEX(masterlist!$Q$2:$Q$207,MATCH(A36,masterlist!$C$2:$C$207,0)),INDEX(masterlist!$P$2:$P$207,MATCH(A36,masterlist!$C$2:$C$207,0))),\"\")","v":""},{"$f":"IFERROR(HYPERLINK(INDEX(masterlist!$S$2:$S$207,MATCH(A36,masterlist!$C$2:$C$207,0)),INDEX(masterlist!$R$2:$R$207,MATCH(A36,masterlist!$C$2:$C$207,0))),\"\")","v":""},{"$f":"IFERROR(HYPERLINK(INDEX(masterlist!$U$2:$U$207,MATCH(A36,masterlist!$C$2:$C$207,0)),INDEX(masterlist!$T$2:$T$207,MATCH(A36,masterlist!$C$2:$C$207,0))),\"\")","v":""}]
[{"$f":"IFERROR(INDEX(masterlist!$A$2:$F$207,SMALL(IF(masterlist!$B$2:$B$207=\"IEC\",ROW(masterlist!$A$2:$F$207)-1),ROW(33:33)),3),\"\")","v":""},{"$f":"IFERROR(INDEX(masterlist!$D$2:$D$207,MATCH(A37,masterlist!$C$2:$C$207,0)),\"\")","v":""},{"$f":"IFERROR(INDEX(masterlist!$E$2:$E$207,MATCH(A37,masterlist!$C$2:$C$207,0)),\"\")","v":""},{"$f":"IFERROR(INDEX(masterlist!$G$2:$G$207,MATCH(A37,masterlist!$C$2:$C$207,0)),\"\")","v":""},{"$f":"IFERROR(INDEX(masterlist!$H$2:$H$207,MATCH(A37,masterlist!$C$2:$C$207,0)),\"\")","v":""},null,null,{"$f":"IFERROR(HYPERLINK(INDEX(masterlist!$M$2:$M$207,MATCH(A37,masterlist!$C$2:$C$207,0)),INDEX(masterlist!$L$2:$L$207,MATCH(A37,masterlist!$C$2:$C$207,0))),\"\")","v":""},{"$f":"IFERROR(HYPERLINK(INDEX(masterlist!$O$2:$O$207,MATCH(A37,masterlist!$C$2:$C$207,0)),INDEX(masterlist!$N$2:$N$207,MATCH(A37,masterlist!$C$2:$C$207,0))),\"\")","v":""},{"$f":"IFERROR(HYPERLINK(INDEX(masterlist!$Q$2:$Q$207,MATCH(A37,masterlist!$C$2:$C$207,0)),INDEX(masterlist!$P$2:$P$207,MATCH(A37,masterlist!$C$2:$C$207,0))),\"\")","v":""},{"$f":"IFERROR(HYPERLINK(INDEX(masterlist!$S$2:$S$207,MATCH(A37,masterlist!$C$2:$C$207,0)),INDEX(masterlist!$R$2:$R$207,MATCH(A37,masterlist!$C$2:$C$207,0))),\"\")","v":""},{"$f":"IFERROR(HYPERLINK(INDEX(masterlist!$U$2:$U$207,MATCH(A37,masterlist!$C$2:$C$207,0)),INDEX(masterlist!$T$2:$T$207,MATCH(A37,masterlist!$C$2:$C$207,0))),\"\")","v":""}]
[{"$f":"IFERROR(INDEX(masterlist!$A$2:$F$207,SMALL(IF(masterlist!$B$2:$B$207=\"IEC\",ROW(masterlist!$A$2:$F$207)-1),ROW(34:34)),3),\"\")","v":""},{"$f":"IFERROR(INDEX(masterlist!$D$2:$D$207,MATCH(A38,masterlist!$C$2:$C$207,0)),\"\")","v":""},{"$f":"IFERROR(INDEX(masterlist!$E$2:$E$207,MATCH(A38,masterlist!$C$2:$C$207,0)),\"\")","v":""},{"$f":"IFERROR(INDEX(masterlist!$G$2:$G$207,MATCH(A38,masterlist!$C$2:$C$207,0)),\"\")","v":""},{"$f":"IFERROR(INDEX(masterlist!$H$2:$H$207,MATCH(A38,masterlist!$C$2:$C$207,0)),\"\")","v":""},null,null,{"$f":"IFERROR(HYPERLINK(INDEX(masterlist!$M$2:$M$207,MATCH(A38,masterlist!$C$2:$C$207,0)),INDEX(masterlist!$L$2:$L$207,MATCH(A38,masterlist!$C$2:$C$207,0))),\"\")","v":""},{"$f":"IFERROR(HYPERLINK(INDEX(masterlist!$O$2:$O$207,MATCH(A38,masterlist!$C$2:$C$207,0)),INDEX(masterlist!$N$2:$N$207,MATCH(A38,masterlist!$C$2:$C$207,0))),\"\")","v":""},{"$f":"IFERROR(HYPERLINK(INDEX(masterlist!$Q$2:$Q$207,MATCH(A38,masterlist!$C$2:$C$207,0)),INDEX(masterlist!$P$2:$P$207,MATCH(A38,masterlist!$C$2:$C$207,0))),\"\")","v":""},{"$f":"IFERROR(HYPERLINK(INDEX(masterlist!$S$2:$S$207,MATCH(A38,masterlist!$C$2:$C$207,0)),INDEX(masterlist!$R$2:$R$207,MATCH(A38,masterlist!$C$2:$C$207,0))),\"\")","v":""},{"$f":"IFERROR(HYPERLINK(INDEX(masterlist!$U$2:$U$207,MATCH(A38,masterlist!$C$2:$C$207,0)),INDEX(masterlist!$T$2:$T$207,MATCH(A38,masterlist!$C$2:$C$207,0))),\"\")","v":""}]
[{"$f":"IFERROR(INDEX(masterlist!$A$2:$F$207,SMALL(IF(masterlist!$B$2:$B$207=\"IEC\",ROW(masterlist!$A$2:$F$207)-1),ROW(35:35)),3),\"\")","v":""},{"$f":"IFERROR(INDEX(masterlist!$D$2:$D$207,MATCH(A39,masterlist!$C$2:$C$207,0)),\"\")","v":""},{"$f":"IFERROR(INDEX(masterlist!$E$2:$E$207,MATCH(A39,masterlist!$C$2:$C$207,0)),\"\")","v":""},{"$f":"IFERROR(INDEX(masterlist!$G$2:$G$207,MATCH(A39,masterlist!$C$2:$C$207,0)),\"\")","v":""},{"$f":"IFERROR(INDEX(masterlist!$H$2:$H$207,MATCH(A39,masterlist!$C$2:$C$207,0)),\"\")","v":""},null,null,{"$f":"IFERROR(HYPERLINK(INDEX(masterlist!$M$2:$M$207,MATCH(A39,masterlist!$C$2:$C$207,0)),INDEX(masterlist!$L$2:$L$207,MATCH(A39,masterlist!$C$2:$C$207,0))),\"\")","v":""},{"$f":"IFERROR(HYPERLINK(INDEX(masterlist!$O$2:$O$207,MATCH(A39,masterlist!$C$2:$C$207,0)),INDEX(masterlist!$N$2:$N$207,MATCH(A39,masterlist!$C$2:$C$207,0))),\"\")","v":""},{"$f":"IFERROR(HYPERLINK(INDEX(masterlist!$Q$2:$Q$207,MATCH(A39,masterlist!$C$2:$C$207,0)),INDEX(masterlist!$P$2:$P$207,MATCH(A39,masterlist!$C$2:$C$207,0))),\"\")","v":""},{"$f":"IFERROR(HYPERLINK(INDEX(masterlist!$S$2:$S$207,MATCH(A39,masterlist!$C$2:$C$207,0)),INDEX(masterlist!$R$2:$R$207,MATCH(A39,masterlist!$C$2:$C$207,0))),\"\")","v":""},{"$f":"IFERROR(HYPERLINK(INDEX(masterlist!$U$2:$U$207,MATCH(A39,masterlist!$C$2:$C$207,0)),INDEX(masterlist!$T$2:$T$207,MATCH(A39,masterlist!$C$2:$C$207,0))),\"\")","v":""}]
[{"$f":"IFERROR(INDEX(masterlist!$A$2:$F$207,SMALL(IF(masterlist!$B$2:$B$207=\"IEC\",ROW(masterlist!$A$2:$F$207)-1),ROW(36:36)),3),\"\")","v":""},{"$f":"IFERROR(INDEX(masterlist!$D$2:$D$207,MATCH(A40,masterlist!$C$2:$C$207,0)),\"\")","v":""},{"$f":"IFERROR(INDEX(masterlist!$E$2:$E$207,MATCH(A40,masterlist!$C$2:$C$207,0)),\"\")","v":""},{"$f":"IFERROR(INDEX(masterlist!$G$2:$G$207,MATCH(A40,masterlist!$C$2:$C$207,0)),\"\")","v":""},{"$f":"IFERROR(INDEX(masterlist!$H$2:$H$207,MATCH(A40,masterlist!$C$2:$C$207,0)),\"\")","v":""},null,null,{"$f":"IFERROR(HYPERLINK(INDEX(masterlist!$M$2:$M$207,MATCH(A40,masterlist!$C$2:$C$207,0)),INDEX(masterlist!$L$2:$L$207,MATCH(A40,masterlist!$C$2:$C$207,0))),\"\")","v":""},{"$f":"IFERROR(HYPERLINK(INDEX(masterlist!$O$2:$O$207,MATCH(A40,masterlist!$C$2:$C$207,0)),INDEX(masterlist!$N$2:$N$207,MATCH(A40,masterlist!$C$2:$C$207,0))),\"\")","v":""},{"$f":"IFERROR(HYPERLINK(INDEX(masterlist!$Q$2:$Q$207,MATCH(A40,masterlist!$C$2:$C$207,0)),INDEX(masterlist!$P$2:$P$207,MATCH(A40,masterlist!$C$2:$C$207,0))),\"\")","v":""},{"$f":"IFERROR(HYPERLINK(INDEX(masterlist!$S$2:$S$207,MATCH(A40,masterlist!$C$2:$C$207,0)),INDEX(masterlist!$R$2:$R$207,MATCH(A40,masterlist!$C$2:$C$207,0))),\"\")","v":""},{"$f":"IFERROR(HYPERLINK(INDEX(masterlist!$U$2:$U$207,MATCH(A40,masterlist!$C$2:$C$207,0)),INDEX(masterlist!$T$2:$T$207,MATCH(A40,masterlist!$C$2:$C$207,0))),\"\")","v":""}]
[{"$f":"IFERROR(INDEX(masterlist!$A$2:$F$207,SMALL(IF(masterlist!$B$2:$B$207=\"IEC\",ROW(masterlist!$A$2:$F$207)-1),ROW(37:37)),3),\"\")","v":""},{"$f":"IFERROR(INDEX(masterlist!$D$2:$D$207,MATCH(A41,masterlist!$C$2:$C$207,0)),\"\")","v":""},{"$f":"IFERROR(INDEX(masterlist!$E$2:$E$207,MATCH(A41,masterlist!$C$2:$C$207,0)),\"\")","v":""},{"$f":"IFERROR(INDEX(masterlist!$G$2:$G$207,MATCH(A41,masterlist!$C$2:$C$207,0)),\"\")","v":""},{"$f":"IFERROR(INDEX(masterlist!$H$2:$H$207,MATCH(A41,masterlist!$C$2:$C$207,0)),\"\")","v":""},null,null,{"$f":"IFERROR(HYPERLINK(INDEX(masterlist!$M$2:$M$207,MATCH(A41,masterlist!$C$2:$C$207,0)),INDEX(masterlist!$L$2:$L$207,MATCH(A41,masterlist!$C$2:$C$207,0))),\"\")","v":""},{"$f":"IFERROR(HYPERLINK(INDEX(masterlist!$O$2:$O$207,MATCH(A41,masterlist!$C$2:$C$207,0)),INDEX(masterlist!$N$2:$N$207,MATCH(A41,masterlist!$C$2:$C$207,0))),\"\")","v":""},{"$f":"IFERROR(HYPERLINK(INDEX(masterlist!$Q$2:$Q$207,MATCH(A41,masterlist!$C$2:$C$207,0)),INDEX(masterlist!$P$2:$P$207,MATCH(A41,masterlist!$C$2:$C$207,0))),\"\")","v":""},{"$f":"IFERROR(HYPERLINK(INDEX(masterlist!$S$2:$S$207,MATCH(A41,masterlist!$C$2:$C$207,0)),INDEX(masterlist!$R$2:$R$207,MATCH(A41,masterlist!$C$2:$C$207,0))),\"\")","v":""},{"$f":"IFERROR(HYPERLINK(INDEX(masterlist!$U$2:$U$207,MATCH(A41,masterlist!$C$2:$C$207,0)),INDEX(masterlist!$T$2:$T$207,MATCH(A41,masterlist!$C$2:$C$207,0))),\"\")","v":""}]
[{"$f":"IFERROR(INDEX(masterlist!$A$2:$F$207,SMALL(IF(masterlist!$B$2:$B$207=\"IEC\",ROW(masterlist!$A$2:$F$207)-1),ROW(38:38)),3),\"\")","v":""},{"$f":"IFERROR(INDEX(masterlist!$D$2:$D$207,MATCH(A42,masterlist!$C$2:$C$207,0)),\"\")","v":""},{"$f":"IFERROR(INDEX(masterlist!$E$2:$E$207,MATCH(A42,masterlist!$C$2:$C$207,0)),\"\")","v":""},{"$f":"IFERROR(INDEX(masterlist!$G$2:$G$207,MATCH(A42,masterlist!$C$2:$C$207,0)),\"\")","v":""},{"$f":"IFERROR(INDEX(masterlist!$H$2:$H$207,MATCH(A42,masterlist!$C$2:$C$207,0)),\"\")","v":""},null,null,{"$f":"IFERROR(HYPERLINK(INDEX(masterlist!$M$2:$M$207,MATCH(A42,masterlist!$C$2:$C$207,0)),INDEX(masterlist!$L$2:$L$207,MATCH(A42,masterlist!$C$2:$C$207,0))),\"\")","v":""},{"$f":"IFERROR(HYPERLINK(INDEX(masterlist!$O$2:$O$207,MATCH(A42,masterlist!$C$2:$C$207,0)),INDEX(masterlist!$N$2:$N$207,MATCH(A42,masterlist!$C$2:$C$207,0))),\"\")","v":""},{"$f":"IFERROR(HYPERLINK(INDEX(masterlist!$Q$2:$Q$207,MATCH(A42,masterlist!$C$2:$C$207,0)),INDEX(masterlist!$P$2:$P$207,MATCH(A42,masterlist!$C$2:$C$207,0))),\"\")","v":""},{"$f":"IFERROR(HYPERLINK(INDEX(masterlist!$S$2:$S$207,MATCH(A42,masterlist!$C$2:$C$207,0)),INDEX(masterlist!$R$2:$R$207,MATCH(A42,masterlist!$C$2:$C$207,0))),\"\")","v":""},{"$f":"IFERROR(HYPERLINK(INDEX(masterlist!$U$2:$U$207,MATCH(A42,masterlist!$C$2:$C$207,0)),INDEX(masterlist!$T$2:$T$207,MATCH(A42,masterlist!$C$2:$C$207,0))),\"\")","v":""}]
[{"$f":"IFERROR(INDEX(masterlist!$A$2:$F$207,SMALL(IF(masterlist!$B$2:$B$207=\"IEC\",ROW(masterlist!$A$2:$F$207)-1),ROW(39:39)),3),\"\")","v":""},{"$f":"IFERROR(INDEX(masterlist!$D$2:$D$207,MATCH(A43,masterlist!$C$2:$C$207,0)),\"\")","v":""},{"$f":"IFERROR(INDEX(masterlist!$E$2:$E$207,MATCH(A43,masterlist!$C$2:$C$207,0)),\"\")","v":""},{"$f":"IFERROR(INDEX(masterlist!$G$2:$G$207,MATCH(A43,masterlist!$C$2:$C$207,0)),\"\")","v":""},{"$f":"IFERROR(INDEX(masterlist!$H$2:$H$207,MATCH(A43,masterlist!$C$2:$C$207,0)),\"\")","v":""},null,null,{"$f":"IFERROR(HYPERLINK(INDEX(masterlist!$M$2:$M$207,MATCH(A43,masterlist!$C$2:$C$207,0)),INDEX(masterlist!$L$2:$L$207,MATCH(A43,masterlist!$C$2:$C$207,0))),\"\")","v":""},{"$f":"IFERROR(HYPERLINK(INDEX(masterlist!$O$2:$O$207,MATCH(A43,masterlist!$C$2:$C$207,0)),INDEX(masterlist!$N$2:$N$207,MATCH(A43,masterlist!$C$2:$C$207,0))),\"\")","v":""},{"$f":"IFERROR(HYPERLINK(INDEX(masterlist!$Q$2:$Q$207,MATCH(A43,masterlist!$C$2:$C$207,0)),INDEX(masterlist!$P$2:$P$207,MATCH(A43,masterlist!$C$2:$C$207,0))),\"\")","v":""},{"$f":"IFERROR(HYPERLINK(INDEX(masterlist!$S$2:$S$207,MATCH(A43,masterlist!$C$2:$C$207,0)),INDEX(masterlist!$R$2:$R$207,MATCH(A43,masterlist!$C$2:$C$207,0))),\"\")","v":""},{"$f":"IFERROR(HYPERLINK(INDEX(masterlist!$U$2:$U$207,MATCH(A43,masterlist!$C$2:$C$207,0)),INDEX(masterlist!$T$2:$T$207,MATCH(A43,masterlist!$C$2:$C$207,0))),\"\")","v":""}]
[{"$f":"IFERROR(INDEX(masterlist!$A$2:$F$207,SMALL(IF(masterlist!$B$2:$B$207=\"IEC\",ROW(masterlist!$A$2:$F$207)-1),ROW(40:40)),3),\"\")","v":""},{"$f":"IFERROR(INDEX(masterlist!$D$2:$D$207,MATCH(A44,masterlist!$C$2:$C$207,0)),\"\")","v":""},{"$f":"IFERROR(INDEX(masterlist!$E$2:$E$207,MATCH(A44,masterlist!$C$2:$C$207,0)),\"\")","v":""},{"$f":"IFERROR(INDEX(masterlist!$G$2:$G$207,MATCH(A44,masterlist!$C$2:$C$207,0)),\"\")","v":""},{"$f":"IFERROR(INDEX(masterlist!$H$2:$H$207,MATCH(A44,masterlist!$C$2:$C$207,0)),\"\")","v":""},null,null,{"$f":"IFERROR(HYPERLINK(INDEX(masterlist!$M$2:$M$207,MATCH(A44,masterlist!$C$2:$C$207,0)),INDEX(masterlist!$L$2:$L$207,MATCH(A44,masterlist!$C$2:$C$207,0))),\"\")","v":""},{"$f":"IFERROR(HYPERLINK(INDEX(masterlist!$O$2:$O$207,MATCH(A44,masterlist!$C$2:$C$207,0)),INDEX(masterlist!$N$2:$N$207,MATCH(A44,masterlist!$C$2:$C$207,0))),\"\")","v":""},{"$f":"IFERROR(HYPERLINK(INDEX(masterlist!$Q$2:$Q$207,MATCH(A44,masterlist!$C$2:$C$207,0)),INDEX(masterlist!$P$2:$P$207,MATCH(A44,masterlist!$C$2:$C$207,0))),\"\")","v":""},{"$f":"IFERROR(HYPERLINK(INDEX(masterlist!$S$2:$S$207,MATCH(A44,masterlist!$C$2:$C$207,0)),INDEX(masterlist!$R$2:$R$207,MATCH(A44,masterlist!$C$2:$C$207,0))),\"\")","v":""},{"$f":"IFERROR(HYPERLINK(INDEX(masterlist!$U$2:$U$207,MATCH(A44,masterlist!$C$2:$C$207,0)),INDEX(masterlist!$T$2:$T$207,MATCH(A44,masterlist!$C$2:$C$207,0))),\"\")","v":""}]
[{"$f":"IFERROR(INDEX(masterlist!$A$2:$F$207,SMALL(IF(masterlist!$B$2:$B$207=\"IEC\",ROW(masterlist!$A$2:$F$207)-1),ROW(41:41)),3),\"\")","v":""},{"$f":"IFERROR(INDEX(masterlist!$D$2:$D$207,MATCH(A45,masterlist!$C$2:$C$207,0)),\"\")","v":""},{"$f":"IFERROR(INDEX(masterlist!$E$2:$E$207,MATCH(A45,masterlist!$C$2:$C$207,0)),\"\")","v":""},{"$f":"IFERROR(INDEX(masterlist!$G$2:$G$207,MATCH(A45,masterlist!$C$2:$C$207,0)),\"\")","v":""},{"$f":"IFERROR(INDEX(masterlist!$H$2:$H$207,MATCH(A45,masterlist!$C$2:$C$207,0)),\"\")","v":""},null,null,{"$f":"IFERROR(HYPERLINK(INDEX(masterlist!$M$2:$M$207,MATCH(A45,masterlist!$C$2:$C$207,0)),INDEX(masterlist!$L$2:$L$207,MATCH(A45,masterlist!$C$2:$C$207,0))),\"\")","v":""},{"$f":"IFERROR(HYPERLINK(INDEX(masterlist!$O$2:$O$207,MATCH(A45,masterlist!$C$2:$C$207,0)),INDEX(masterlist!$N$2:$N$207,MATCH(A45,masterlist!$C$2:$C$207,0))),\"\")","v":""},{"$f":"IFERROR(HYPERLINK(INDEX(masterlist!$Q$2:$Q$207,MATCH(A45,masterlist!$C$2:$C$207,0)),INDEX(masterlist!$P$2:$P$207,MATCH(A45,masterlist!$C$2:$C$207,0))),\"\")","v":""},{"$f":"IFERROR(HYPERLINK(INDEX(masterlist!$S$2:$S$207,MATCH(A45,masterlist!$C$2:$C$207,0)),INDEX(masterlist!$R$2:$R$207,MATCH(A45,masterlist!$C$2:$C$207,0))),\"\")","v":""},{"$f":"IFERROR(HYPERLINK(INDEX(masterlist!$U$2:$U$207,MATCH(A45,masterlist!$C$2:$C$207,0)),INDEX(masterlist!$T$2:$T$207,MATCH(A45,masterlist!$C$2:$C$207,0))),\"\")","v":""}]
[{"$f":"IFERROR(INDEX(masterlist!$A$2:$F$207,SMALL(IF(masterlist!$B$2:$B$207=\"IEC\",ROW(masterlist!$A$2:$F$207)-1),ROW(42:42)),3),\"\")","v":""},{"$f":"IFERROR(INDEX(masterlist!$D$2:$D$207,MATCH(A46,masterlist!$C$2:$C$207,0)),\"\")","v":""},{"$f":"IFERROR(INDEX(masterlist!$E$2:$E$207,MATCH(A46,masterlist!$C$2:$C$207,0)),\"\")","v":""},{"$f":"IFERROR(INDEX(masterlist!$G$2:$G$207,MATCH(A46,masterlist!$C$2:$C$207,0)),\"\")","v":""},{"$f":"IFERROR(INDEX(masterlist!$H$2:$H$207,MATCH(A46,masterlist!$C$2:$C$207,0)),\"\")","v":""},null,null,{"$f":"IFERROR(HYPERLINK(INDEX(masterlist!$M$2:$M$207,MATCH(A46,masterlist!$C$2:$C$207,0)),INDEX(masterlist!$L$2:$L$207,MATCH(A46,masterlist!$C$2:$C$207,0))),\"\")","v":""},{"$f":"IFERROR(HYPERLINK(INDEX(masterlist!$O$2:$O$207,MATCH(A46,masterlist!$C$2:$C$207,0)),INDEX(masterlist!$N$2:$N$207,MATCH(A46,masterlist!$C$2:$C$207,0))),\"\")","v":""},{"$f":"IFERROR(HYPERLINK(INDEX(masterlist!$Q$2:$Q$207,MATCH(A46,masterlist!$C$2:$C$207,0)),INDEX(masterlist!$P$2:$P$207,MATCH(A46,masterlist!$C$2:$C$207,0))),\"\")","v":""},{"$f":"IFERROR(HYPERLINK(INDEX(masterlist!$S$2:$S$207,MATCH(A46,masterlist!$C$2:$C$207,0)),INDEX(masterlist!$R$2:$R$207,MATCH(A46,masterlist!$C$2:$C$207,0))),\"\")","v":""},{"$f":"IFERROR(HYPERLINK(INDEX(masterlist!$U$2:$U$207,MATCH(A46,masterlist!$C$2:$C$207,0)),INDEX(masterlist!$T$2:$T$207,MATCH(A46,masterlist!$C$2:$C$207,0))),\"\")","v":""}]
[{"$f":"IFERROR(INDEX(masterlist!$A$2:$F$207,SMALL(IF(masterlist!$B$2:$B$207=\"IEC\",ROW(masterlist!$A$2:$F$207)-1),ROW(43:43)),3),\"\")","v":""},{"$f":"IFERROR(INDEX(masterlist!$D$2:$D$207,MATCH(A47,masterlist!$C$2:$C$207,0)),\"\")","v":""},{"$f":"IFERROR(INDEX(masterlist!$E$2:$E$207,MATCH(A47,masterlist!$C$2:$C$207,0)),\"\")","v":""},{"$f":"IFERROR(INDEX(masterlist!$G$2:$G$207,MATCH(A47,masterlist!$C$2:$C$207,0)),\"\")","v":""},{"$f":"IFERROR(INDEX(masterlist!$H$2:$H$207,MATCH(A47,masterlist!$C$2:$C$207,0)),\"\")","v":""},null,null,{"$f":"IFERROR(HYPERLINK(INDEX(masterlist!$M$2:$M$207,MATCH(A47,masterlist!$C$2:$C$207,0)),INDEX(masterlist!$L$2:$L$207,MATCH(A47,masterlist!$C$2:$C$207,0))),\"\")","v":""},{"$f":"IFERROR(HYPERLINK(INDEX(masterlist!$O$2:$O$207,MATCH(A47,masterlist!$C$2:$C$207,0)),INDEX(masterlist!$N$2:$N$207,MATCH(A47,masterlist!$C$2:$C$207,0))),\"\")","v":""},{"$f":"IFERROR(HYPERLINK(INDEX(masterlist!$Q$2:$Q$207,MATCH(A47,masterlist!$C$2:$C$207,0)),INDEX(masterlist!$P$2:$P$207,MATCH(A47,masterlist!$C$2:$C$207,0))),\"\")","v":""},{"$f":"IFERROR(HYPERLINK(INDEX(masterlist!$S$2:$S$207,MATCH(A47,masterlist!$C$2:$C$207,0)),INDEX(masterlist!$R$2:$R$207,MATCH(A47,masterlist!$C$2:$C$207,0))),\"\")","v":""},{"$f":"IFERROR(HYPERLINK(INDEX(masterlist!$U$2:$U$207,MATCH(A47,masterlist!$C$2:$C$207,0)),INDEX(masterlist!$T$2:$T$207,MATCH(A47,masterlist!$C$2:$C$207,0))),\"\")","v":""}]
[{"$f":"IFERROR(INDEX(masterlist!$A$2:$F$207,SMALL(IF(masterlist!$B$2:$B$207=\"IEC\",ROW(masterlist!$A$2:$F$207)-1),ROW(44:44)),3),\"\")","v":""},{"$f":"IFERROR(INDEX(masterlist!$D$2:$D$207,MATCH(A48,masterlist!$C$2:$C$207,0)),\"\")","v":""},{"$f":"IFERROR(INDEX(masterlist!$E$2:$E$207,MATCH(A48,masterlist!$C$2:$C$207,0)),\"\")","v":""},{"$f":"IFERROR(INDEX(masterlist!$G$2:$G$207,MATCH(A48,masterlist!$C$2:$C$207,0)),\"\")","v":""},{"$f":"IFERROR(INDEX(masterlist!$H$2:$H$207,MATCH(A48,masterlist!$C$2:$C$207,0)),\"\")","v":""},null,null,{"$f":"IFERROR(HYPERLINK(INDEX(masterlist!$M$2:$M$207,MATCH(A48,masterlist!$C$2:$C$207,0)),INDEX(masterlist!$L$2:$L$207,MATCH(A48,masterlist!$C$2:$C$207,0))),\"\")","v":""},{"$f":"IFERROR(HYPERLINK(INDEX(masterlist!$O$2:$O$207,MATCH(A48,masterlist!$C$2:$C$207,0)),INDEX(masterlist!$N$2:$N$207,MATCH(A48,masterlist!$C$2:$C$207,0))),\"\")","v":""},{"$f":"IFERROR(HYPERLINK(INDEX(masterlist!$Q$2:$Q$207,MATCH(A48,masterlist!$C$2:$C$207,0)),INDEX(masterlist!$P$2:$P$207,MATCH(A48,masterlist!$C$2:$C$207,0))),\"\")","v":""},{"$f":"IFERROR(HYPERLINK(INDEX(masterlist!$S$2:$S$207,MATCH(A48,masterlist!$C$2:$C$207,0)),INDEX(masterlist!$R$2:$R$207,MATCH(A48,masterlist!$C$2:$C$207,0))),\"\")","v":""},{"$f":"IFERROR(HYPERLINK(INDEX(masterlist!$U$2:$U$207,MATCH(A48,masterlist!$C$2:$C$207,0)),INDEX(masterlist!$T$2:$T$207,MATCH(A48,masterlist!$C$2:$C$207,0))),\"\")","v":""}]
[{"$f":"IFERROR(INDEX(masterlist!$A$2:$F$207,SMALL(IF(masterlist!$B$2:$B$207=\"IEC\",ROW(masterlist!$A$2:$F$207)-1),ROW(45:45)),3),\"\")","v":""},{"$f":"IFERROR(INDEX(masterlist!$D$2:$D$207,MATCH(A49,masterlist!$C$2:$C$207,0)),\"\")","v":""},{"$f":"IFERROR(INDEX(masterlist!$E$2:$E$207,MATCH(A49,masterlist!$C$2:$C$207,0)),\"\")","v":""},{"$f":"IFERROR(INDEX(masterlist!$G$2:$G$207,MATCH(A49,masterlist!$C$2:$C$207,0)),\"\")","v":""},{"$f":"IFERROR(INDEX(masterlist!$H$2:$H$207,MATCH(A49,masterlist!$C$2:$C$207,0)),\"\")","v":""},null,null,{"$f":"IFERROR(HYPERLINK(INDEX(masterlist!$M$2:$M$207,MATCH(A49,masterlist!$C$2:$C$207,0)),INDEX(masterlist!$L$2:$L$207,MATCH(A49,masterlist!$C$2:$C$207,0))),\"\")","v":""},{"$f":"IFERROR(HYPERLINK(INDEX(masterlist!$O$2:$O$207,MATCH(A49,masterlist!$C$2:$C$207,0)),INDEX(masterlist!$N$2:$N$207,MATCH(A49,masterlist!$C$2:$C$207,0))),\"\")","v":""},{"$f":"IFERROR(HYPERLINK(INDEX(masterlist!$Q$2:$Q$207,MATCH(A49,masterlist!$C$2:$C$207,0)),INDEX(masterlist!$P$2:$P$207,MATCH(A49,masterlist!$C$2:$C$207,0))),\"\")","v":""},{"$f":"IFERROR(HYPERLINK(INDEX(masterlist!$S$2:$S$207,MATCH(A49,masterlist!$C$2:$C$207,0)),INDEX(masterlist!$R$2:$R$207,MATCH(A49,masterlist!$C$2:$C$207,0))),\"\")","v":""},{"$f":"IFERROR(HYPERLINK(INDEX(masterlist!$U$2:$U$207,MATCH(A49,masterlist!$C$2:$C$207,0)),INDEX(masterlist!$T$2:$T$207,MATCH(A49,masterlist!$C$2:$C$207,0))),\"\")","v":""}]
[{"$f":"IFERROR(INDEX(masterlist!$A$2:$F$207,SMALL(IF(masterlist!$B$2:$B$207=\"IEC\",ROW(masterlist!$A$2:$F$207)-1),ROW(46:46)),3),\"\")","v":""},{"$f":"IFERROR(INDEX(masterlist!$D$2:$D$207,MATCH(A50,masterlist!$C$2:$C$207,0)),\"\")","v":""},{"$f":"IFERROR(INDEX(masterlist!$E$2:$E$207,MATCH(A50,masterlist!$C$2:$C$207,0)),\"\")","v":""},{"$f":"IFERROR(INDEX(masterlist!$G$2:$G$207,MATCH(A50,masterlist!$C$2:$C$207,0)),\"\")","v":""},{"$f":"IFERROR(INDEX(masterlist!$H$2:$H$207,MATCH(A50,masterlist!$C$2:$C$207,0)),\"\")","v":""},null,null,{"$f":"IFERROR(HYPERLINK(INDEX(masterlist!$M$2:$M$207,MATCH(A50,masterlist!$C$2:$C$207,0)),INDEX(masterlist!$L$2:$L$207,MATCH(A50,masterlist!$C$2:$C$207,0))),\"\")","v":""},{"$f":"IFERROR(HYPERLINK(INDEX(masterlist!$O$2:$O$207,MATCH(A50,masterlist!$C$2:$C$207,0)),INDEX(masterlist!$N$2:$N$207,MATCH(A50,masterlist!$C$2:$C$207,0))),\"\")","v":""},{"$f":"IFERROR(HYPERLINK(INDEX(masterlist!$Q$2:$Q$207,MATCH(A50,masterlist!$C$2:$C$207,0)),INDEX(masterlist!$P$2:$P$207,MATCH(A50,masterlist!$C$2:$C$207,0))),\"\")","v":""},{"$f":"IFERROR(HYPERLINK(INDEX(masterlist!$S$2:$S$207,MATCH(A50,masterlist!$C$2:$C$207,0)),INDEX(masterlist!$R$2:$R$207,MATCH(A50,masterlist!$C$2:$C$207,0))),\"\")","v":""},{"$f":"IFERROR(HYPERLINK(INDEX(masterlist!$U$2:$U$207,MATCH(A50,masterlist!$C$2:$C$207,0)),INDEX(masterlist!$T$2:$T$207,MATCH(A50,masterlist!$C$2:$C$207,0))),\"\")","v":""}]

{"sheet":"Cross-cutting issues","index":11,"n_rows":50,"n_cols":12,"rows_kept":50,"cut":false,"hidden":true,"merged":[[3,7,3,9]]}
[]
[null,null,"Instructions : Si l'activité est terminée, inscrivez « 1 » dans la colonne « Statut ». Si l'activité n'a PAS été achevée ou si vous n'êtes pas sûr qu'elle l'ait été, inscrivez « 0 » dans la colonne « Statut »."]
[]
["ID","SOUS-COMPOSANTE","STADE","ACTIVITES","GUIDE DE REPONSE A LA QUESTION","STATUT","REMARQUES","Rabies Blueprint references and other links"]
[{"$f":"IFERROR(INDEX(masterlist!$A$2:$F$207,SMALL(IF(masterlist!$B$2:$B$207=\"CCI\",ROW(masterlist!$A$2:$F$207)-1),ROW(1:1)),3),\"\")","v":"CCI-Cré-0-1"},{"$f":"IFERROR(INDEX(masterlist!$D$2:$D$207,MATCH(A5,masterlist!$C$2:$C$207,0)),\"\")","v":"Création d’un groupe de travail intersectoriel sur la rage"},{"$f":"IFERROR(INDEX(masterlist!$E$2:$E$207,MATCH(A5,masterlist!$C$2:$C$207,0)),\"\")","v":0},{"$f":"IFERROR(INDEX(masterlist!$G$2:$G$207,MATCH(A5,masterlist!$C$2:$C$207,0)),\"\")","v":"Les parties prenantes au niveau national se tiennent-elles mutuellement informées de TOUTES les activités programmatiques liées à la rage qui sont mises en œuvre dans le pays ?"},{"$f":"IFERROR(INDEX(masterlist!$H$2:$H$207,MATCH(A5,masterlist!$C$2:$C$207,0)),\"\")","v":"Les informations sont-elles partagées avec d'autres ministères ? Par exemple, les résultats des cas de rage animale sont-ils communiqués au secteur de la santé humaine ?  Le secteur de la santé humaine a-t-il fait savoir au secteur de la santé animale qu'il mettait en œuvre le nouveau régime de PPE par voie intradermique ? \nIl peut s'agir d'un forum public ou d'un site web, de communications informelles (WhatsApp ou messagerie texte) ou de tout autre moyen. Il ne s'agit pas de TOUTES les activités ou de la régularité, mais plutôt du fait que cela se fait."},0,null,{"$f":"IFERROR(HYPERLINK(INDEX(masterlist!$M$2:$M$207,MATCH(A5,masterlist!$C$2:$C$207,0)),INDEX(masterlist!$L$2:$L$207,MATCH(A5,masterlist!$C$2:$C$207,0))),\"\")","v":"6. Reporting of rabies data"},{"$f":"IFERROR(HYPERLINK(INDEX(masterlist!$O$2:$O$207,MATCH(A5,masterlist!$C$2:$C$207,0)),INDEX(masterlist!$N$2:$N$207,MATCH(A5,masterlist!$C$2:$C$207,0))),\"\")","v":0},{"$f":"IFERROR(HYPERLINK(INDEX(masterlist!$Q$2:$Q$207,MATCH(A5,masterlist!$C$2:$C$207,0)),INDEX(masterlist!$P$2:$P$207,MATCH(A5,masterlist!$C$2:$C$207,0))),\"\")","v":0},{"$f":"IFERROR(HYPERLINK(INDEX(masterlist!$S$2:$S$207,MATCH(A5,masterlist!$C$2:$C$207,0)),INDEX(masterlist!$R$2:$R$207,MATCH(A5,masterlist!$C$2:$C$207,0))),\"\")","v":0},{"$f":"IFERROR(HYPERLINK(INDEX(masterlist!$U$2:$U$207,MATCH(A5,masterlist!$C$2:$C$207,0)),INDEX(masterlist!$T$2:$T$207,MATCH(A5,masterlist!$C$2:$C$207,0))),\"\")","v":0}]
[{"$f":"IFERROR(INDEX(masterlist!$A$2:$F$207,SMALL(IF(masterlist!$B$2:$B$207=\"CCI\",ROW(masterlist!$A$2:$F$207)-1),ROW(2:2)),3),\"\")","v":"CCI-Cré-1-2"},{"$f":"IFERROR(INDEX(masterlist!$D$2:$D$207,MATCH(A6,masterlist!$C$2:$C$207,0)),\"\")","v":"Création d’un groupe de travail intersectoriel sur la rage"},{"$f":"IFERROR(INDEX(masterlist!$E$2:$E$207,MATCH(A6,masterlist!$C$2:$C$207,0)),\"\")","v":1},{"$f":"IFERROR(INDEX(masterlist!$G$2:$G$207,MATCH(A6,masterlist!$C$2:$C$207,0)),\"\")","v":"TOUTES les parties prenantes* nationales impliquées dans l’élimination de la rage ont-elles été identifiées et répertoriées ? "},{"$f":"IFERROR(INDEX(masterlist!$H$2:$H$207,MATCH(A6,masterlist!$C$2:$C$207,0)),\"\")","v":"Par exemple : Ministère de la santé; Ministère des finances; Ministère de l’agriculture; Ministère de l’éducation; Instituts de recherche/formation (par ex. universités); autorités locales (administration civile, police, affaires environnementales) ; municipalité ; ONG ; Représentants des organismes internationaux (par ex. GARC, FAO, OMSA, OMS)."},0,null,{"$f":"IFERROR(HYPERLINK(INDEX(masterlist!$M$2:$M$207,MATCH(A6,masterlist!$C$2:$C$207,0)),INDEX(masterlist!$L$2:$L$207,MATCH(A6,masterlist!$C$2:$C$207,0))),\"\")","v":"2. Roles-and-Responsibilities"},{"$f":"IFERROR(HYPERLINK(INDEX(masterlist!$O$2:$O$207,MATCH(A6,masterlist!$C$2:$C$207,0)),INDEX(masterlist!$N$2:$N$207,MATCH(A6,masterlist!$C$2:$C$207,0))),\"\")","v":"Challenges of animal health information systems and surveillance for animal diseases and zoonoses "},{"$f":"IFERROR(HYPERLINK(INDEX(masterlist!$Q$2:$Q$207,MATCH(A6,masterlist!$C$2:$C$207,0)),INDEX(masterlist!$P$2:$P$207,MATCH(A6,masterlist!$C$2:$C$207,0))),\"\")","v":0},{"$f":"IFERROR(HYPERLINK(INDEX(masterlist!$S$2:$S$207,MATCH(A6,masterlist!$C$2:$C$207,0)),INDEX(masterlist!$R$2:$R$207,MATCH(A6,masterlist!$C$2:$C$207,0))),\"\")","v":0},{"$f":"IFERROR(HYPERLINK(INDEX(masterlist!$U$2:$U$207,MATCH(A6,masterlist!$C$2:$C$207,0)),INDEX(masterlist!$T$2:$T$207,MATCH(A6,masterlist!$C$2:$C$207,0))),\"\")","v":0}]
[{"$f":"IFERROR(INDEX(masterlist!$A$2:$F$207,SMALL(IF(masterlist!$B$2:$B$207=\"CCI\",ROW(masterlist!$A$2:$F$207)-1),ROW(3:3)),3),\"\")","v":"CCI-Cré-1-3"},{"$f":"IFERROR(INDEX(masterlist!$D$2:$D$207,MATCH(A7,masterlist!$C$2:$C$207,0)),\"\")","v":"Création d’un groupe de travail intersectoriel sur la rage"},{"$f":"IFERROR(INDEX(masterlist!$E$2:$E$207,MATCH(A7,masterlist!$C$2:$C$207,0)),\"\")","v":1},{"$f":"IFERROR(INDEX(masterlist!$G$2:$G$207,MATCH(A7,masterlist!$C$2:$C$207,0)),\"\")","v":"Les parties prenantes* identifiées à l’échelle nationale sont-elles activement impliquées dans l’élimination de la rage ? "},{"$f":"IFERROR(INDEX(masterlist!$H$2:$H$207,MATCH(A7,masterlist!$C$2:$C$207,0)),\"\")","v":" "},0,null,{"$f":"IFERROR(HYPERLINK(INDEX(masterlist!$M$2:$M$207,MATCH(A7,masterlist!$C$2:$C$207,0)),INDEX(masterlist!$L$2:$L$207,MATCH(A7,masterlist!$C$2:$C$207,0))),\"\")","v":"2. Roles-and-Responsibilities"},{"$f":"IFERROR(HYPERLINK(INDEX(masterlist!$O$2:$O$207,MATCH(A7,masterlist!$C$2:$C$207,0)),INDEX(masterlist!$N$2:$N$207,MATCH(A7,masterlist!$C$2:$C$207,0))),\"\")","v":0},{"$f":"IFERROR(HYPERLINK(INDEX(masterlist!$Q$2:$Q$207,MATCH(A7,masterlist!$C$2:$C$207,0)),INDEX(masterlist!$P$2:$P$207,MATCH(A7,masterlist!$C$2:$C$207,0))),\"\")","v":0},{"$f":"IFERROR(HYPERLINK(INDEX(masterlist!$S$2:$S$207,MATCH(A7,masterlist!$C$2:$C$207,0)),INDEX(masterlist!$R$2:$R$207,MATCH(A7,masterlist!$C$2:$C$207,0))),\"\")","v":0},{"$f":"IFERROR(HYPERLINK(INDEX(masterlist!$U$2:$U$207,MATCH(A7,masterlist!$C$2:$C$207,0)),INDEX(masterlist!$T$2:$T$207,MATCH(A7,masterlist!$C$2:$C$207,0))),\"\")","v":0}]
[{"$f":"IFERROR(INDEX(masterlist!$A$2:$F$207,SMALL(IF(masterlist!$B$2:$B$207=\"CCI\",ROW(masterlist!$A$2:$F$207)-1),ROW(4:4)),3),\"\")","v":"CCI-Cré-1-4"},{"$f":"IFERROR(INDEX(masterlist!$D$2:$D$207,MATCH(A8,masterlist!$C$2:$C$207,0)),\"\")","v":"Création d’un groupe de travail intersectoriel sur la rage"},{"$f":"IFERROR(INDEX(masterlist!$E$2:$E$207,MATCH(A8,masterlist!$C$2:$C$207,0)),\"\")","v":1},{"$f":"IFERROR(INDEX(masterlist!$G$2:$G$207,MATCH(A8,masterlist!$C$2:$C$207,0)),\"\")","v":"Une équipe spéciale, un comité ou un groupe de travail intersectoriel sur la rage, comprenant toutes les parties prenantes identifiées au niveau national, a-t-il été créé ET se réunit-il ou communique-t-il régulièrement ?"},{"$f":"IFERROR(INDEX(masterlist!$H$2:$H$207,MATCH(A8,masterlist!$C$2:$C$207,0)),\"\")","v":"Il peut s’agir d’un groupe de travail informel ou d’un comité officiel pour la rage. Il peut également faire partie d'un groupe de travail ou d'un comité « One Health », à condition que des discussions soient consacrées à l'élimination de la rage.\n\nSi le groupe de travail ne se réunit PAS régulièrement, vous devez répondre à cette question par « Non ». "},1,null,{"$f":"IFERROR(HYPERLINK(INDEX(masterlist!$M$2:$M$207,MATCH(A8,masterlist!$C$2:$C$207,0)),INDEX(masterlist!$L$2:$L$207,MATCH(A8,masterlist!$C$2:$C$207,0))),\"\")","v":"2. Roles-and-Responsibilities"},{"$f":"IFERROR(HYPERLINK(INDEX(masterlist!$O$2:$O$207,MATCH(A8,masterlist!$C$2:$C$207,0)),INDEX(masterlist!$N$2:$N$207,MATCH(A8,masterlist!$C$2:$C$207,0))),\"\")","v":"Challenges of animal health information systems and surveillance for animal diseases and zoonoses "},{"$f":"IFERROR(HYPERLINK(INDEX(masterlist!$Q$2:$Q$207,MATCH(A8,masterlist!$C$2:$C$207,0)),INDEX(masterlist!$P$2:$P$207,MATCH(A8,masterlist!$C$2:$C$207,0))),\"\")","v":0},{"$f":"IFERROR(HYPERLINK(INDEX(masterlist!$S$2:$S$207,MATCH(A8,masterlist!$C$2:$C$207,0)),INDEX(masterlist!$R$2:$R$207,MATCH(A8,masterlist!$C$2:$C$207,0))),\"\")","v":0},{"$f":"IFERROR(HYPERLINK(INDEX(masterlist!$U$2:$U$207,MATCH(A8,masterlist!$C$2:$C$207,0)),INDEX(masterlist!$T$2:$T$207,MATCH(A8,masterlist!$C$2:$C$207,0))),\"\")","v":0}]
[{"$f":"IFERROR(INDEX(masterlist!$A$2:$F$207,SMALL(IF(masterlist!$B$2:$B$207=\"CCI\",ROW(masterlist!$A$2:$F$207)-1),ROW(5:5)),3),\"\")","v":"CCI-Cré-2-5"},{"$f":"IFERROR(INDEX(masterlist!$D$2:$D$207,MATCH(A9,masterlist!$C$2:$C$207,0)),\"\")","v":"Création d’un groupe de travail intersectoriel sur la rage"},{"$f":"IFERROR(INDEX(masterlist!$E$2:$E$207,MATCH(A9,masterlist!$C$2:$C$207,0)),\"\")","v":2},{"$f":"IFERROR(INDEX(masterlist!$G$2:$G$207,MATCH(A9,masterlist!$C$2:$C$207,0)),\"\")","v":"Le secteur privé fait-il partie de l’équipe de travail intersectorielle ? "},{"$f":"IFERROR(INDEX(masterlist!$H$2:$H$207,MATCH(A9,masterlist!$C$2:$C$207,0)),\"\")","v":"Le secteur privé peut être inclus en tant qu’observateur dans le groupe de travail et n’a pas besoin d’être un membre principal. \n\nIl peut s’agir, entre autres, de vétérinaires, de médecins privés ou de représentants de l’industrie pharmaceutique. "},0,"taskforce existe mais le secteur prive nest pas implique",{"$f":"IFERROR(HYPERLINK(INDEX(masterlist!$M$2:$M$207,MATCH(A9,masterlist!$C$2:$C$207,0)),INDEX(masterlist!$L$2:$L$207,MATCH(A9,masterlist!$C$2:$C$207,0))),\"\")","v":"2. Roles-and-Responsibilities"},{"$f":"IFERROR(HYPERLINK(INDEX(masterlist!$O$2:$O$207,MATCH(A9,masterlist!$C$2:$C$207,0)),INDEX(masterlist!$N$2:$N$207,MATCH(A9,masterlist!$C$2:$C$207,0))),\"\")","v":0},{"$f":"IFERROR(HYPERLINK(INDEX(masterlist!$Q$2:$Q$207,MATCH(A9,masterlist!$C$2:$C$207,0)),INDEX(masterlist!$P$2:$P$207,MATCH(A9,masterlist!$C$2:$C$207,0))),\"\")","v":0},{"$f":"IFERROR(HYPERLINK(INDEX(masterlist!$S$2:$S$207,MATCH(A9,masterlist!$C$2:$C$207,0)),INDEX(masterlist!$R$2:$R$207,MATCH(A9,masterlist!$C$2:$C$207,0))),\"\")","v":0},{"$f":"IFERROR(HYPERLINK(INDEX(masterlist!$U$2:$U$207,MATCH(A9,masterlist!$C$2:$C$207,0)),INDEX(masterlist!$T$2:$T$207,MATCH(A9,masterlist!$C$2:$C$207,0))),\"\")","v":0}]
[{"$f":"IFERROR(INDEX(masterlist!$A$2:$F$207,SMALL(IF(masterlist!$B$2:$B$207=\"CCI\",ROW(masterlist!$A$2:$F$207)-1),ROW(6:6)),3),\"\")","v":"CCI-Pro-1-6"},{"$f":"IFERROR(INDEX(masterlist!$D$2:$D$207,MATCH(A10,masterlist!$C$2:$C$207,0)),\"\")","v":"Programme et stratégie nationales"},{"$f":"IFERROR(INDEX(masterlist!$E$2:$E$207,MATCH(A10,masterlist!$C$2:$C$207,0)),\"\")","v":1},{"$f":"IFERROR(INDEX(masterlist!$G$2:$G$207,MATCH(A10,masterlist!$C$2:$C$207,0)),\"\")","v":"Un plan d’activité à court terme pour la rage a-t-il été élaboré pour une zone quelconque (par ex. dans le cadre d’un projet pilote OU à l’échelle nationale) par les autorités compétentes identifiées ? "},{"$f":"IFERROR(INDEX(masterlist!$H$2:$H$207,MATCH(A10,masterlist!$C$2:$C$207,0)),\"\")","v":"Vous pouvez répondre à cette question par « Oui » si vous avez, par exemple, créé un plan pour la banque de vaccins de l’OMSA (WOAH). \n\nS'il existe déjà un plan stratégique national, vous pouvez répondre à cette question par « Oui » SI le plan comporte une composante claire de plan d'ACTIVITÉ à court terme.  "},1,"la creation des unites de prise en charge du risque rabique",{"$f":"IFERROR(HYPERLINK(INDEX(masterlist!$M$2:$M$207,MATCH(A10,masterlist!$C$2:$C$207,0)),INDEX(masterlist!$L$2:$L$207,MATCH(A10,masterlist!$C$2:$C$207,0))),\"\")","v":"5.1-What-do-we-need-to-know-before"},{"$f":"IFERROR(HYPERLINK(INDEX(masterlist!$O$2:$O$207,MATCH(A10,masterlist!$C$2:$C$207,0)),INDEX(masterlist!$N$2:$N$207,MATCH(A10,masterlist!$C$2:$C$207,0))),\"\")","v":"1.8-What-measures-are-available"},{"$f":"IFERROR(HYPERLINK(INDEX(masterlist!$Q$2:$Q$207,MATCH(A10,masterlist!$C$2:$C$207,0)),INDEX(masterlist!$P$2:$P$207,MATCH(A10,masterlist!$C$2:$C$207,0))),\"\")","v":"2. Roles-and-Responsibilities"},{"$f":"IFERROR(HYPERLINK(INDEX(masterlist!$S$2:$S$207,MATCH(A10,masterlist!$C$2:$C$207,0)),INDEX(masterlist!$R$2:$R$207,MATCH(A10,masterlist!$C$2:$C$207,0))),\"\")","v":0},{"$f":"IFERROR(HYPERLINK(INDEX(masterlist!$U$2:$U$207,MATCH(A10,masterlist!$C$2:$C$207,0)),INDEX(masterlist!$T$2:$T$207,MATCH(A10,masterlist!$C$2:$C$207,0))),\"\")","v":0}]
[{"$f":"IFERROR(INDEX(masterlist!$A$2:$F$207,SMALL(IF(masterlist!$B$2:$B$207=\"CCI\",ROW(masterlist!$A$2:$F$207)-1),ROW(7:7)),3),\"\")","v":"CCI-Pro-1-7"},{"$f":"IFERROR(INDEX(masterlist!$D$2:$D$207,MATCH(A11,masterlist!$C$2:$C$207,0)),\"\")","v":"Programme et stratégie nationales"},{"$f":"IFERROR(INDEX(masterlist!$E$2:$E$207,MATCH(A11,masterlist!$C$2:$C$207,0)),\"\")","v":1},{"$f":"IFERROR(INDEX(masterlist!$G$2:$G$207,MATCH(A11,masterlist!$C$2:$C$207,0)),\"\")","v":"Des mécanismes de mobilisation de fonds d'urgence, EN PLUS du budget global d'élimination de la rage, ont-ils été identifiés ?"},{"$f":"IFERROR(INDEX(masterlist!$H$2:$H$207,MATCH(A11,masterlist!$C$2:$C$207,0)),\"\")","v":"Il peut s'agir par exemple de fonds de secours en cas de catastrophe. Vous pouvez répondre « Oui » si les mécanismes ont été identifiés et si vous avez déterminé le processus à suivre pour inclure la rage à l'avenir. \n\nIl n'est donc pas nécessaire d'avoir un accès immédiat au financement pour répondre « Oui ». "},1,null,{"$f":"IFERROR(HYPERLINK(INDEX(masterlist!$M$2:$M$207,MATCH(A11,masterlist!$C$2:$C$207,0)),INDEX(masterlist!$L$2:$L$207,MATCH(A11,masterlist!$C$2:$C$207,0))),\"\")","v":"3.3-Costs-and-Funding"},{"$f":"IFERROR(HYPERLINK(INDEX(masterlist!$O$2:$O$207,MATCH(A11,masterlist!$C$2:$C$207,0)),INDEX(masterlist!$N$2:$N$207,MATCH(A11,masterlist!$C$2:$C$207,0))),\"\")","v":0},{"$f":"IFERROR(HYPERLINK(INDEX(masterlist!$Q$2:$Q$207,MATCH(A11,masterlist!$C$2:$C$207,0)),INDEX(masterlist!$P$2:$P$207,MATCH(A11,masterlist!$C$2:$C$207,0))),\"\")","v":0},{"$f":"IFERROR(HYPERLINK(INDEX(masterlist!$S$2:$S$207,MATCH(A11,masterlist!$C$2:$C$207,0)),INDEX(masterlist!$R$2:$R$207,MATCH(A11,masterlist!$C$2:$C$207,0))),\"\")","v":0},{"$f":"IFERROR(HYPERLINK(INDEX(masterlist!$U$2:$U$207,MATCH(A11,masterlist!$C$2:$C$207,0)),INDEX(masterlist!$T$2:$T$207,MATCH(A11,masterlist!$C$2:$C$207,0))),\"\")","v":0}]
[{"$f":"IFERROR(INDEX(masterlist!$A$2:$F$207,SMALL(IF(masterlist!$B$2:$B$207=\"CCI\",ROW(masterlist!$A$2:$F$207)-1),ROW(8:8)),3),\"\")","v":"CCI-Pro-2-8"},{"$f":"IFERROR(INDEX(masterlist!$D$2:$D$207,MATCH(A12,masterlist!$C$2:$C$207,0)),\"\")","v":"Programme et stratégie nationales"},{"$f":"IFERROR(INDEX(masterlist!$E$2:$E$207,MATCH(A12,masterlist!$C$2:$C$207,0)),\"\")","v":2},{"$f":"IFERROR(INDEX(masterlist!$G$2:$G$207,MATCH(A12,masterlist!$C$2:$C$207,0)),\"\")","v":"Un plan national stratégique pour la rage a-t-il été élaboré et finalisé par toutes les parties prenantes identifiées. "},{"$f":"IFERROR(INDEX(masterlist!$H$2:$H$207,MATCH(A12,masterlist!$C$2:$C$207,0)),\"\")","v":"Vous pouvez répondre « Oui » si le plan stratégique national de lutte contre la rage a été rédigé et finalisé.\n \nCela signifie qu'il n'est PAS nécessaire qu’il soit financé ou mis en œuvre."},0,null,{"$f":"IFERROR(HYPERLINK(INDEX(masterlist!$M$2:$M$207,MATCH(A12,masterlist!$C$2:$C$207,0)),INDEX(masterlist!$L$2:$L$207,MATCH(A12,masterlist!$C$2:$C$207,0))),\"\")","v":"Components-of-a-successful-rabies-programme"},{"$f":"IFERROR(HYPERLINK(INDEX(masterlist!$O$2:$O$207,MATCH(A12,masterlist!$C$2:$C$207,0)),INDEX(masterlist!$N$2:$N$207,MATCH(A12,masterlist!$C$2:$C$207,0))),\"\")","v":0},{"$f":"IFERROR(HYPERLINK(INDEX(masterlist!$Q$2:$Q$207,MATCH(A12,masterlist!$C$2:$C$207,0)),INDEX(masterlist!$P$2:$P$207,MATCH(A12,masterlist!$C$2:$C$207,0))),\"\")","v":0},{"$f":"IFERROR(HYPERLINK(INDEX(masterlist!$S$2:$S$207,MATCH(A12,masterlist!$C$2:$C$207,0)),INDEX(masterlist!$R$2:$R$207,MATCH(A12,masterlist!$C$2:$C$207,0))),\"\")","v":0},{"$f":"IFERROR(HYPERLINK(INDEX(masterlist!$U$2:$U$207,MATCH(A12,masterlist!$C$2:$C$207,0)),INDEX(masterlist!$T$2:$T$207,MATCH(A12,masterlist!$C$2:$C$207,0))),\"\")","v":0}]
[{"$f":"IFERROR(INDEX(masterlist!$A$2:$F$207,SMALL(IF(masterlist!$B$2:$B$207=\"CCI\",ROW(masterlist!$A$2:$F$207)-1),ROW(9:9)),3),\"\")","v":"CCI-Pro-2-9"},{"$f":"IFERROR(INDEX(masterlist!$D$2:$D$207,MATCH(A13,masterlist!$C$2:$C$207,0)),\"\")","v":"Programme et stratégie nationales"},{"$f":"IFERROR(INDEX(masterlist!$E$2:$E$207,MATCH(A13,masterlist!$C$2:$C$207,0)),\"\")","v":2},{"$f":"IFERROR(INDEX(masterlist!$G$2:$G$207,MATCH(A13,masterlist!$C$2:$C$207,0)),\"\")","v":"Des ressources gouvernementales ont-elles été identifiées et allouées en soutien au plan stratégique national contre la rage ? "},{"$f":"IFERROR(INDEX(masterlist!$H$2:$H$207,MATCH(A13,masterlist!$C$2:$C$207,0)),\"\")","v":"Vous pouvez répondre « Oui » si la stratégie nationale de lutte contre la rage est PARTIELLEMENT financée par le gouvernement. \n\nPar exemple, il peut s'agir d'un financement en contrepartie d'un donateur ou d'un financement par le gouvernement d'une partie importante de la stratégie nationale de lutte contre la rage."},0,null,{"$f":"IFERROR(HYPERLINK(INDEX(masterlist!$M$2:$M$207,MATCH(A13,masterlist!$C$2:$C$207,0)),INDEX(masterlist!$L$2:$L$207,MATCH(A13,masterlist!$C$2:$C$207,0))),\"\")","v":"3.3-Costs-and-Funding"},{"$f":"IFERROR(HYPERLINK(INDEX(masterlist!$O$2:$O$207,MATCH(A13,masterlist!$C$2:$C$207,0)),INDEX(masterlist!$N$2:$N$207,MATCH(A13,masterlist!$C$2:$C$207,0))),\"\")","v":0},{"$f":"IFERROR(HYPERLINK(INDEX(masterlist!$Q$2:$Q$207,MATCH(A13,masterlist!$C$2:$C$207,0)),INDEX(masterlist!$P$2:$P$207,MATCH(A13,masterlist!$C$2:$C$207,0))),\"\")","v":0},{"$f":"IFERROR(HYPERLINK(INDEX(masterlist!$S$2:$S$207,MATCH(A13,masterlist!$C$2:$C$207,0)),INDEX(masterlist!$R$2:$R$207,MATCH(A13,masterlist!$C$2:$C$207,0))),\"\")","v":0},{"$f":"IFERROR(HYPERLINK(INDEX(masterlist!$U$2:$U$207,MATCH(A13,masterlist!$C$2:$C$207,0)),INDEX(masterlist!$T$2:$T$207,MATCH(A13,masterlist!$C$2:$C$207,0))),\"\")","v":0}]
[{"$f":"IFERROR(INDEX(masterlist!$A$2:$F$207,SMALL(IF(masterlist!$B$2:$B$207=\"CCI\",ROW(masterlist!$A$2:$F$207)-1),ROW(10:10)),3),\"\")","v":"CCI-Pro-3-10"},{"$f":"IFERROR(INDEX(masterlist!$D$2:$D$207,MATCH(A14,masterlist!$C$2:$C$207,0)),\"\")","v":"Programme et stratégie nationales"},{"$f":"IFERROR(INDEX(masterlist!$E$2:$E$207,MATCH(A14,masterlist!$C$2:$C$207,0)),\"\")","v":3},{"$f":"IFERROR(INDEX(masterlist!$G$2:$G$207,MATCH(A14,masterlist!$C$2:$C$207,0)),\"\")","v":"Maintenant qu'il y a très peu de cas de rage animale dans votre pays, la stratégie nationale a-t-elle été affinée sur la base des données actuelles ? "},{"$f":"IFERROR(INDEX(masterlist!$H$2:$H$207,MATCH(A14,masterlist!$C$2:$C$207,0)),\"\")","v":"Par ex. information épidémiologique moléculaire, recherches en cours ou enquêtes, utilisation de la PPE et données sur les cas de morsures."},0,null,{"$f":"IFERROR(HYPERLINK(INDEX(masterlist!$M$2:$M$207,MATCH(A14,masterlist!$C$2:$C$207,0)),INDEX(masterlist!$L$2:$L$207,MATCH(A14,masterlist!$C$2:$C$207,0))),\"\")","v":"5.6-Evaluation"},{"$f":"IFERROR(HYPERLINK(INDEX(masterlist!$O$2:$O$207,MATCH(A14,masterlist!$C$2:$C$207,0)),INDEX(masterlist!$N$2:$N$207,MATCH(A14,masterlist!$C$2:$C$207,0))),\"\")","v":"5.7.1-Sustainability"},{"$f":"IFERROR(HYPERLINK(INDEX(masterlist!$Q$2:$Q$207,MATCH(A14,masterlist!$C$2:$C$207,0)),INDEX(masterlist!$P$2:$P$207,MATCH(A14,masterlist!$C$2:$C$207,0))),\"\")","v":0},{"$f":"IFERROR(HYPERLINK(INDEX(masterlist!$S$2:$S$207,MATCH(A14,masterlist!$C$2:$C$207,0)),INDEX(masterlist!$R$2:$R$207,MATCH(A14,masterlist!$C$2:$C$207,0))),\"\")","v":0},{"$f":"IFERROR(HYPERLINK(INDEX(masterlist!$U$2:$U$207,MATCH(A14,masterlist!$C$2:$C$207,0)),INDEX(masterlist!$T$2:$T$207,MATCH(A14,masterlist!$C$2:$C$207,0))),\"\")","v":0}]
[{"$f":"IFERROR(INDEX(masterlist!$A$2:$F$207,SMALL(IF(masterlist!$B$2:$B$207=\"CCI\",ROW(masterlist!$A$2:$F$207)-1),ROW(11:11)),3),\"\")","v":""},{"$f":"IFERROR(INDEX(masterlist!$D$2:$D$207,MATCH(A15,masterlist!$C$2:$C$207,0)),\"\")","v":""},{"$f":"IFERROR(INDEX(masterlist!$E$2:$E$207,MATCH(A15,masterlist!$C$2:$C$207,0)),\"\")","v":""},{"$f":"IFERROR(INDEX(masterlist!$G$2:$G$207,MATCH(A15,masterlist!$C$2:$C$207,0)),\"\")","v":""},{"$f":"IFERROR(INDEX(masterlist!$H$2:$H$207,MATCH(A15,masterlist!$C$2:$C$207,0)),\"\")","v":""},null,null,{"$f":"IFERROR(HYPERLINK(INDEX(masterlist!$M$2:$M$207,MATCH(A15,masterlist!$C$2:$C$207,0)),INDEX(masterlist!$L$2:$L$207,MATCH(A15,masterlist!$C$2:$C$207,0))),\"\")","v":""},{"$f":"IFERROR(HYPERLINK(INDEX(masterlist!$O$2:$O$207,MATCH(A15,masterlist!$C$2:$C$207,0)),INDEX(masterlist!$N$2:$N$207,MATCH(A15,masterlist!$C$2:$C$207,0))),\"\")","v":""},{"$f":"IFERROR(HYPERLINK(INDEX(masterlist!$Q$2:$Q$207,MATCH(A15,masterlist!$C$2:$C$207,0)),INDEX(masterlist!$P$2:$P$207,MATCH(A15,masterlist!$C$2:$C$207,0))),\"\")","v":""},{"$f":"IFERROR(HYPERLINK(INDEX(masterlist!$S$2:$S$207,MATCH(A15,masterlist!$C$2:$C$207,0)),INDEX(masterlist!$R$2:$R$207,MATCH(A15,masterlist!$C$2:$C$207,0))),\"\")","v":""},{"$f":"IFERROR(HYPERLINK(INDEX(masterlist!$U$2:$U$207,MATCH(A15,masterlist!$C$2:$C$207,0)),INDEX(masterlist!$T$2:$T$207,MATCH(A15,masterlist!$C$2:$C$207,0))),\"\")","v":""}]
[{"$f":"IFERROR(INDEX(masterlist!$A$2:$F$207,SMALL(IF(masterlist!$B$2:$B$207=\"CCI\",ROW(masterlist!$A$2:$F$207)-1),ROW(12:12)),3),\"\")","v":""},{"$f":"IFERROR(INDEX(masterlist!$D$2:$D$207,MATCH(A16,masterlist!$C$2:$C$207,0)),\"\")","v":""},{"$f":"IFERROR(INDEX(masterlist!$E$2:$E$207,MATCH(A16,masterlist!$C$2:$C$207,0)),\"\")","v":""},{"$f":"IFERROR(INDEX(masterlist!$G$2:$G$207,MATCH(A16,masterlist!$C$2:$C$207,0)),\"\")","v":""},{"$f":"IFERROR(INDEX(masterlist!$H$2:$H$207,MATCH(A16,masterlist!$C$2:$C$207,0)),\"\")","v":""},null,null,{"$f":"IFERROR(HYPERLINK(INDEX(masterlist!$M$2:$M$207,MATCH(A16,masterlist!$C$2:$C$207,0)),INDEX(masterlist!$L$2:$L$207,MATCH(A16,masterlist!$C$2:$C$207,0))),\"\")","v":""},{"$f":"IFERROR(HYPERLINK(INDEX(masterlist!$O$2:$O$207,MATCH(A16,masterlist!$C$2:$C$207,0)),INDEX(masterlist!$N$2:$N$207,MATCH(A16,masterlist!$C$2:$C$207,0))),\"\")","v":""},{"$f":"IFERROR(HYPERLINK(INDEX(masterlist!$Q$2:$Q$207,MATCH(A16,masterlist!$C$2:$C$207,0)),INDEX(masterlist!$P$2:$P$207,MATCH(A16,masterlist!$C$2:$C$207,0))),\"\")","v":""},{"$f":"IFERROR(HYPERLINK(INDEX(masterlist!$S$2:$S$207,MATCH(A16,masterlist!$C$2:$C$207,0)),INDEX(masterlist!$R$2:$R$207,MATCH(A16,masterlist!$C$2:$C$207,0))),\"\")","v":""},{"$f":"IFERROR(HYPERLINK(INDEX(masterlist!$U$2:$U$207,MATCH(A16,masterlist!$C$2:$C$207,0)),INDEX(masterlist!$T$2:$T$207,MATCH(A16,masterlist!$C$2:$C$207,0))),\"\")","v":""}]
[{"$f":"IFERROR(INDEX(masterlist!$A$2:$F$207,SMALL(IF(masterlist!$B$2:$B$207=\"CCI\",ROW(masterlist!$A$2:$F$207)-1),ROW(13:13)),3),\"\")","v":""},{"$f":"IFERROR(INDEX(masterlist!$D$2:$D$207,MATCH(A17,masterlist!$C$2:$C$207,0)),\"\")","v":""},{"$f":"IFERROR(INDEX(masterlist!$E$2:$E$207,MATCH(A17,masterlist!$C$2:$C$207,0)),\"\")","v":""},{"$f":"IFERROR(INDEX(masterlist!$G$2:$G$207,MATCH(A17,masterlist!$C$2:$C$207,0)),\"\")","v":""},{"$f":"IFERROR(INDEX(masterlist!$H$2:$H$207,MATCH(A17,masterlist!$C$2:$C$207,0)),\"\")","v":""},null,null,{"$f":"IFERROR(HYPERLINK(INDEX(masterlist!$M$2:$M$207,MATCH(A17,masterlist!$C$2:$C$207,0)),INDEX(masterlist!$L$2:$L$207,MATCH(A17,masterlist!$C$2:$C$207,0))),\"\")","v":""},{"$f":"IFERROR(HYPERLINK(INDEX(masterlist!$O$2:$O$207,MATCH(A17,masterlist!$C$2:$C$207,0)),INDEX(masterlist!$N$2:$N$207,MATCH(A17,masterlist!$C$2:$C$207,0))),\"\")","v":""},{"$f":"IFERROR(HYPERLINK(INDEX(masterlist!$Q$2:$Q$207,MATCH(A17,masterlist!$C$2:$C$207,0)),INDEX(masterlist!$P$2:$P$207,MATCH(A17,masterlist!$C$2:$C$207,0))),\"\")","v":""},{"$f":"IFERROR(HYPERLINK(INDEX(masterlist!$S$2:$S$207,MATCH(A17,masterlist!$C$2:$C$207,0)),INDEX(masterlist!$R$2:$R$207,MATCH(A17,masterlist!$C$2:$C$207,0))),\"\")","v":""},{"$f":"IFERROR(HYPERLINK(INDEX(masterlist!$U$2:$U$207,MATCH(A17,masterlist!$C$2:$C$207,0)),INDEX(masterlist!$T$2:$T$207,MATCH(A17,masterlist!$C$2:$C$207,0))),\"\")","v":""}]
[{"$f":"IFERROR(INDEX(masterlist!$A$2:$F$207,SMALL(IF(masterlist!$B$2:$B$207=\"CCI\",ROW(masterlist!$A$2:$F$207)-1),ROW(14:14)),3),\"\")","v":""},{"$f":"IFERROR(INDEX(masterlist!$D$2:$D$207,MATCH(A18,masterlist!$C$2:$C$207,0)),\"\")","v":""},{"$f":"IFERROR(INDEX(masterlist!$E$2:$E$207,MATCH(A18,masterlist!$C$2:$C$207,0)),\"\")","v":""},{"$f":"IFERROR(INDEX(masterlist!$G$2:$G$207,MATCH(A18,masterlist!$C$2:$C$207,0)),\"\")","v":""},{"$f":"IFERROR(INDEX(masterlist!$H$2:$H$207,MATCH(A18,masterlist!$C$2:$C$207,0)),\"\")","v":""},null,null,{"$f":"IFERROR(HYPERLINK(INDEX(masterlist!$M$2:$M$207,MATCH(A18,masterlist!$C$2:$C$207,0)),INDEX(masterlist!$L$2:$L$207,MATCH(A18,masterlist!$C$2:$C$207,0))),\"\")","v":""},{"$f":"IFERROR(HYPERLINK(INDEX(masterlist!$O$2:$O$207,MATCH(A18,masterlist!$C$2:$C$207,0)),INDEX(masterlist!$N$2:$N$207,MATCH(A18,masterlist!$C$2:$C$207,0))),\"\")","v":""},{"$f":"IFERROR(HYPERLINK(INDEX(masterlist!$Q$2:$Q$207,MATCH(A18,masterlist!$C$2:$C$207,0)),INDEX(masterlist!$P$2:$P$207,MATCH(A18,masterlist!$C$2:$C$207,0))),\"\")","v":""},{"$f":"IFERROR(HYPERLINK(INDEX(masterlist!$S$2:$S$207,MATCH(A18,masterlist!$C$2:$C$207,0)),INDEX(masterlist!$R$2:$R$207,MATCH(A18,masterlist!$C$2:$C$207,0))),\"\")","v":""},{"$f":"IFERROR(HYPERLINK(INDEX(masterlist!$U$2:$U$207,MATCH(A18,masterlist!$C$2:$C$207,0)),INDEX(masterlist!$T$2:$T$207,MATCH(A18,masterlist!$C$2:$C$207,0))),\"\")","v":""}]
[{"$f":"IFERROR(INDEX(masterlist!$A$2:$F$207,SMALL(IF(masterlist!$B$2:$B$207=\"CCI\",ROW(masterlist!$A$2:$F$207)-1),ROW(15:15)),3),\"\")","v":""},{"$f":"IFERROR(INDEX(masterlist!$D$2:$D$207,MATCH(A19,masterlist!$C$2:$C$207,0)),\"\")","v":""},{"$f":"IFERROR(INDEX(masterlist!$E$2:$E$207,MATCH(A19,masterlist!$C$2:$C$207,0)),\"\")","v":""},{"$f":"IFERROR(INDEX(masterlist!$G$2:$G$207,MATCH(A19,masterlist!$C$2:$C$207,0)),\"\")","v":""},{"$f":"IFERROR(INDEX(masterlist!$H$2:$H$207,MATCH(A19,masterlist!$C$2:$C$207,0)),\"\")","v":""},null,null,{"$f":"IFERROR(HYPERLINK(INDEX(masterlist!$M$2:$M$207,MATCH(A19,masterlist!$C$2:$C$207,0)),INDEX(masterlist!$L$2:$L$207,MATCH(A19,masterlist!$C$2:$C$207,0))),\"\")","v":""},{"$f":"IFERROR(HYPERLINK(INDEX(masterlist!$O$2:$O$207,MATCH(A19,masterlist!$C$2:$C$207,0)),INDEX(masterlist!$N$2:$N$207,MATCH(A19,masterlist!$C$2:$C$207,0))),\"\")","v":""},{"$f":"IFERROR(HYPERLINK(INDEX(masterlist!$Q$2:$Q$207,MATCH(A19,masterlist!$C$2:$C$207,0)),INDEX(masterlist!$P$2:$P$207,MATCH(A19,masterlist!$C$2:$C$207,0))),\"\")","v":""},{"$f":"IFERROR(HYPERLINK(INDEX(masterlist!$S$2:$S$207,MATCH(A19,masterlist!$C$2:$C$207,0)),INDEX(masterlist!$R$2:$R$207,MATCH(A19,masterlist!$C$2:$C$207,0))),\"\")","v":""},{"$f":"IFERROR(HYPERLINK(INDEX(masterlist!$U$2:$U$207,MATCH(A19,masterlist!$C$2:$C$207,0)),INDEX(masterlist!$T$2:$T$207,MATCH(A19,masterlist!$C$2:$C$207,0))),\"\")","v":""}]
[{"$f":"IFERROR(INDEX(masterlist!$A$2:$F$207,SMALL(IF(masterlist!$B$2:$B$207=\"CCI\",ROW(masterlist!$A$2:$F$207)-1),ROW(16:16)),3),\"\")","v":""},{"$f":"IFERROR(INDEX(masterlist!$D$2:$D$207,MATCH(A20,masterlist!$C$2:$C$207,0)),\"\")","v":""},{"$f":"IFERROR(INDEX(masterlist!$E$2:$E$207,MATCH(A20,masterlist!$C$2:$C$207,0)),\"\")","v":""},{"$f":"IFERROR(INDEX(masterlist!$G$2:$G$207,MATCH(A20,masterlist!$C$2:$C$207,0)),\"\")","v":""},{"$f":"IFERROR(INDEX(masterlist!$H$2:$H$207,MATCH(A20,masterlist!$C$2:$C$207,0)),\"\")","v":""},null,null,{"$f":"IFERROR(HYPERLINK(INDEX(masterlist!$M$2:$M$207,MATCH(A20,masterlist!$C$2:$C$207,0)),INDEX(masterlist!$L$2:$L$207,MATCH(A20,masterlist!$C$2:$C$207,0))),\"\")","v":""},{"$f":"IFERROR(HYPERLINK(INDEX(masterlist!$O$2:$O$207,MATCH(A20,masterlist!$C$2:$C$207,0)),INDEX(masterlist!$N$2:$N$207,MATCH(A20,masterlist!$C$2:$C$207,0))),\"\")","v":""},{"$f":"IFERROR(HYPERLINK(INDEX(masterlist!$Q$2:$Q$207,MATCH(A20,masterlist!$C$2:$C$207,0)),INDEX(masterlist!$P$2:$P$207,MATCH(A20,masterlist!$C$2:$C$207,0))),\"\")","v":""},{"$f":"IFERROR(HYPERLINK(INDEX(masterlist!$S$2:$S$207,MATCH(A20,masterlist!$C$2:$C$207,0)),INDEX(masterlist!$R$2:$R$207,MATCH(A20,masterlist!$C$2:$C$207,0))),\"\")","v":""},{"$f":"IFERROR(HYPERLINK(INDEX(masterlist!$U$2:$U$207,MATCH(A20,masterlist!$C$2:$C$207,0)),INDEX(masterlist!$T$2:$T$207,MATCH(A20,masterlist!$C$2:$C$207,0))),\"\")","v":""}]
[{"$f":"IFERROR(INDEX(masterlist!$A$2:$F$207,SMALL(IF(masterlist!$B$2:$B$207=\"CCI\",ROW(masterlist!$A$2:$F$207)-1),ROW(17:17)),3),\"\")","v":""},{"$f":"IFERROR(INDEX(masterlist!$D$2:$D$207,MATCH(A21,masterlist!$C$2:$C$207,0)),\"\")","v":""},{"$f":"IFERROR(INDEX(masterlist!$E$2:$E$207,MATCH(A21,masterlist!$C$2:$C$207,0)),\"\")","v":""},{"$f":"IFERROR(INDEX(masterlist!$G$2:$G$207,MATCH(A21,masterlist!$C$2:$C$207,0)),\"\")","v":""},{"$f":"IFERROR(INDEX(masterlist!$H$2:$H$207,MATCH(A21,masterlist!$C$2:$C$207,0)),\"\")","v":""},null,null,{"$f":"IFERROR(HYPERLINK(INDEX(masterlist!$M$2:$M$207,MATCH(A21,masterlist!$C$2:$C$207,0)),INDEX(masterlist!$L$2:$L$207,MATCH(A21,masterlist!$C$2:$C$207,0))),\"\")","v":""},{"$f":"IFERROR(HYPERLINK(INDEX(masterlist!$O$2:$O$207,MATCH(A21,masterlist!$C$2:$C$207,0)),INDEX(masterlist!$N$2:$N$207,MATCH(A21,masterlist!$C$2:$C$207,0))),\"\")","v":""},{"$f":"IFERROR(HYPERLINK(INDEX(masterlist!$Q$2:$Q$207,MATCH(A21,masterlist!$C$2:$C$207,0)),INDEX(masterlist!$P$2:$P$207,MATCH(A21,masterlist!$C$2:$C$207,0))),\"\")","v":""},{"$f":"IFERROR(HYPERLINK(INDEX(masterlist!$S$2:$S$207,MATCH(A21,masterlist!$C$2:$C$207,0)),INDEX(masterlist!$R$2:$R$207,MATCH(A21,masterlist!$C$2:$C$207,0))),\"\")","v":""},{"$f":"IFERROR(HYPERLINK(INDEX(masterlist!$U$2:$U$207,MATCH(A21,masterlist!$C$2:$C$207,0)),INDEX(masterlist!$T$2:$T$207,MATCH(A21,masterlist!$C$2:$C$207,0))),\"\")","v":""}]
[{"$f":"IFERROR(INDEX(masterlist!$A$2:$F$207,SMALL(IF(masterlist!$B$2:$B$207=\"CCI\",ROW(masterlist!$A$2:$F$207)-1),ROW(18:18)),3),\"\")","v":""},{"$f":"IFERROR(INDEX(masterlist!$D$2:$D$207,MATCH(A22,masterlist!$C$2:$C$207,0)),\"\")","v":""},{"$f":"IFERROR(INDEX(masterlist!$E$2:$E$207,MATCH(A22,masterlist!$C$2:$C$207,0)),\"\")","v":""},{"$f":"IFERROR(INDEX(masterlist!$G$2:$G$207,MATCH(A22,masterlist!$C$2:$C$207,0)),\"\")","v":""},{"$f":"IFERROR(INDEX(masterlist!$H$2:$H$207,MATCH(A22,masterlist!$C$2:$C$207,0)),\"\")","v":""},null,null,{"$f":"IFERROR(HYPERLINK(INDEX(masterlist!$M$2:$M$207,MATCH(A22,masterlist!$C$2:$C$207,0)),INDEX(masterlist!$L$2:$L$207,MATCH(A22,masterlist!$C$2:$C$207,0))),\"\")","v":""},{"$f":"IFERROR(HYPERLINK(INDEX(masterlist!$O$2:$O$207,MATCH(A22,masterlist!$C$2:$C$207,0)),INDEX(masterlist!$N$2:$N$207,MATCH(A22,masterlist!$C$2:$C$207,0))),\"\")","v":""},{"$f":"IFERROR(HYPERLINK(INDEX(masterlist!$Q$2:$Q$207,MATCH(A22,masterlist!$C$2:$C$207,0)),INDEX(masterlist!$P$2:$P$207,MATCH(A22,masterlist!$C$2:$C$207,0))),\"\")","v":""},{"$f":"IFERROR(HYPERLINK(INDEX(masterlist!$S$2:$S$207,MATCH(A22,masterlist!$C$2:$C$207,0)),INDEX(masterlist!$R$2:$R$207,MATCH(A22,masterlist!$C$2:$C$207,0))),\"\")","v":""},{"$f":"IFERROR(HYPERLINK(INDEX(masterlist!$U$2:$U$207,MATCH(A22,masterlist!$C$2:$C$207,0)),INDEX(masterlist!$T$2:$T$207,MATCH(A22,masterlist!$C$2:$C$207,0))),\"\")","v":""}]
[{"$f":"IFERROR(INDEX(masterlist!$A$2:$F$207,SMALL(IF(masterlist!$B$2:$B$207=\"CCI\",ROW(masterlist!$A$2:$F$207)-1),ROW(19:19)),3),\"\")","v":""},{"$f":"IFERROR(INDEX(masterlist!$D$2:$D$207,MATCH(A23,masterlist!$C$2:$C$207,0)),\"\")","v":""},{"$f":"IFERROR(INDEX(masterlist!$E$2:$E$207,MATCH(A23,masterlist!$C$2:$C$207,0)),\"\")","v":""},{"$f":"IFERROR(INDEX(masterlist!$G$2:$G$207,MATCH(A23,masterlist!$C$2:$C$207,0)),\"\")","v":""},{"$f":"IFERROR(INDEX(masterlist!$H$2:$H$207,MATCH(A23,masterlist!$C$2:$C$207,0)),\"\")","v":""},null,null,{"$f":"IFERROR(HYPERLINK(INDEX(masterlist!$M$2:$M$207,MATCH(A23,masterlist!$C$2:$C$207,0)),INDEX(masterlist!$L$2:$L$207,MATCH(A23,masterlist!$C$2:$C$207,0))),\"\")","v":""},{"$f":"IFERROR(HYPERLINK(INDEX(masterlist!$O$2:$O$207,MATCH(A23,masterlist!$C$2:$C$207,0)),INDEX(masterlist!$N$2:$N$207,MATCH(A23,masterlist!$C$2:$C$207,0))),\"\")","v":""},{"$f":"IFERROR(HYPERLINK(INDEX(masterlist!$Q$2:$Q$207,MATCH(A23,masterlist!$C$2:$C$207,0)),INDEX(masterlist!$P$2:$P$207,MATCH(A23,masterlist!$C$2:$C$207,0))),\"\")","v":""},{"$f":"IFERROR(HYPERLINK(INDEX(masterlist!$S$2:$S$207,MATCH(A23,masterlist!$C$2:$C$207,0)),INDEX(masterlist!$R$2:$R$207,MATCH(A23,masterlist!$C$2:$C$207,0))),\"\")","v":""},{"$f":"IFERROR(HYPERLINK(INDEX(masterlist!$U$2:$U$207,MATCH(A23,masterlist!$C$2:$C$207,0)),INDEX(masterlist!$T$2:$T$207,MATCH(A23,masterlist!$C$2:$C$207,0))),\"\")","v":""}]
[{"$f":"IFERROR(INDEX(masterlist!$A$2:$F$207,SMALL(IF(masterlist!$B$2:$B$207=\"CCI\",ROW(masterlist!$A$2:$F$207)-1),ROW(20:20)),3),\"\")","v":""},{"$f":"IFERROR(INDEX(masterlist!$D$2:$D$207,MATCH(A24,masterlist!$C$2:$C$207,0)),\"\")","v":""},{"$f":"IFERROR(INDEX(masterlist!$E$2:$E$207,MATCH(A24,masterlist!$C$2:$C$207,0)),\"\")","v":""},{"$f":"IFERROR(INDEX(masterlist!$G$2:$G$207,MATCH(A24,masterlist!$C$2:$C$207,0)),\"\")","v":""},{"$f":"IFERROR(INDEX(masterlist!$H$2:$H$207,MATCH(A24,masterlist!$C$2:$C$207,0)),\"\")","v":""},null,null,{"$f":"IFERROR(HYPERLINK(INDEX(masterlist!$M$2:$M$207,MATCH(A24,masterlist!$C$2:$C$207,0)),INDEX(masterlist!$L$2:$L$207,MATCH(A24,masterlist!$C$2:$C$207,0))),\"\")","v":""},{"$f":"IFERROR(HYPERLINK(INDEX(masterlist!$O$2:$O$207,MATCH(A24,masterlist!$C$2:$C$207,0)),INDEX(masterlist!$N$2:$N$207,MATCH(A24,masterlist!$C$2:$C$207,0))),\"\")","v":""},{"$f":"IFERROR(HYPERLINK(INDEX(masterlist!$Q$2:$Q$207,MATCH(A24,masterlist!$C$2:$C$207,0)),INDEX(masterlist!$P$2:$P$207,MATCH(A24,masterlist!$C$2:$C$207,0))),\"\")","v":""},{"$f":"IFERROR(HYPERLINK(INDEX(masterlist!$S$2:$S$207,MATCH(A24,masterlist!$C$2:$C$207,0)),INDEX(masterlist!$R$2:$R$207,MATCH(A24,masterlist!$C$2:$C$207,0))),\"\")","v":""},{"$f":"IFERROR(HYPERLINK(INDEX(masterlist!$U$2:$U$207,MATCH(A24,masterlist!$C$2:$C$207,0)),INDEX(masterlist!$T$2:$T$207,MATCH(A24,masterlist!$C$2:$C$207,0))),\"\")","v":""}]
[{"$f":"IFERROR(INDEX(masterlist!$A$2:$F$207,SMALL(IF(masterlist!$B$2:$B$207=\"CCI\",ROW(masterlist!$A$2:$F$207)-1),ROW(21:21)),3),\"\")","v":""},{"$f":"IFERROR(INDEX(masterlist!$D$2:$D$207,MATCH(A25,masterlist!$C$2:$C$207,0)),\"\")","v":""},{"$f":"IFERROR(INDEX(masterlist!$E$2:$E$207,MATCH(A25,masterlist!$C$2:$C$207,0)),\"\")","v":""},{"$f":"IFERROR(INDEX(masterlist!$G$2:$G$207,MATCH(A25,masterlist!$C$2:$C$207,0)),\"\")","v":""},{"$f":"IFERROR(INDEX(masterlist!$H$2:$H$207,MATCH(A25,masterlist!$C$2:$C$207,0)),\"\")","v":""},null,null,{"$f":"IFERROR(HYPERLINK(INDEX(masterlist!$M$2:$M$207,MATCH(A25,masterlist!$C$2:$C$207,0)),INDEX(masterlist!$L$2:$L$207,MATCH(A25,masterlist!$C$2:$C$207,0))),\"\")","v":""},{"$f":"IFERROR(HYPERLINK(INDEX(masterlist!$O$2:$O$207,MATCH(A25,masterlist!$C$2:$C$207,0)),INDEX(masterlist!$N$2:$N$207,MATCH(A25,masterlist!$C$2:$C$207,0))),\"\")","v":""},{"$f":"IFERROR(HYPERLINK(INDEX(masterlist!$Q$2:$Q$207,MATCH(A25,masterlist!$C$2:$C$207,0)),INDEX(masterlist!$P$2:$P$207,MATCH(A25,masterlist!$C$2:$C$207,0))),\"\")","v":""},{"$f":"IFERROR(HYPERLINK(INDEX(masterlist!$S$2:$S$207,MATCH(A25,masterlist!$C$2:$C$207,0)),INDEX(masterlist!$R$2:$R$207,MATCH(A25,masterlist!$C$2:$C$207,0))),\"\")","v":""},{"$f":"IFERROR(HYPERLINK(INDEX(masterlist!$U$2:$U$207,MATCH(A25,masterlist!$C$2:$C$207,0)),INDEX(masterlist!$T$2:$T$207,MATCH(A25,masterlist!$C$2:$C$207,0))),\"\")","v":""}]
[{"$f":"IFERROR(INDEX(masterlist!$A$2:$F$207,SMALL(IF(masterlist!$B$2:$B$207=\"CCI\",ROW(masterlist!$A$2:$F$207)-1),ROW(22:22)),3),\"\")","v":""},{"$f":"IFERROR(INDEX(masterlist!$D$2:$D$207,MATCH(A26,masterlist!$C$2:$C$207,0)),\"\")","v":""},{"$f":"IFERROR(INDEX(masterlist!$E$2:$E$207,MATCH(A26,masterlist!$C$2:$C$207,0)),\"\")","v":""},{"$f":"IFERROR(INDEX(masterlist!$G$2:$G$207,MATCH(A26,masterlist!$C$2:$C$207,0)),\"\")","v":""},{"$f":"IFERROR(INDEX(masterlist!$H$2:$H$207,MATCH(A26,masterlist!$C$2:$C$207,0)),\"\")","v":""},null,null,{"$f":"IFERROR(HYPERLINK(INDEX(masterlist!$M$2:$M$207,MATCH(A26,masterlist!$C$2:$C$207,0)),INDEX(masterlist!$L$2:$L$207,MATCH(A26,masterlist!$C$2:$C$207,0))),\"\")","v":""},{"$f":"IFERROR(HYPERLINK(INDEX(masterlist!$O$2:$O$207,MATCH(A26,masterlist!$C$2:$C$207,0)),INDEX(masterlist!$N$2:$N$207,MATCH(A26,masterlist!$C$2:$C$207,0))),\"\")","v":""},{"$f":"IFERROR(HYPERLINK(INDEX(masterlist!$Q$2:$Q$207,MATCH(A26,masterlist!$C$2:$C$207,0)),INDEX(masterlist!$P$2:$P$207,MATCH(A26,masterlist!$C$2:$C$207,0))),\"\")","v":""},{"$f":"IFERROR(HYPERLINK(INDEX(masterlist!$S$2:$S$207,MATCH(A26,masterlist!$C$2:$C$207,0)),INDEX(masterlist!$R$2:$R$207,MATCH(A26,masterlist!$C$2:$C$207,0))),\"\")","v":""},{"$f":"IFERROR(HYPERLINK(INDEX(masterlist!$U$2:$U$207,MATCH(A26,masterlist!$C$2:$C$207,0)),INDEX(masterlist!$T$2:$T$207,MATCH(A26,masterlist!$C$2:$C$207,0))),\"\")","v":""}]
[{"$f":"IFERROR(INDEX(masterlist!$A$2:$F$207,SMALL(IF(masterlist!$B$2:$B$207=\"CCI\",ROW(masterlist!$A$2:$F$207)-1),ROW(23:23)),3),\"\")","v":""},{"$f":"IFERROR(INDEX(masterlist!$D$2:$D$207,MATCH(A27,masterlist!$C$2:$C$207,0)),\"\")","v":""},{"$f":"IFERROR(INDEX(masterlist!$E$2:$E$207,MATCH(A27,masterlist!$C$2:$C$207,0)),\"\")","v":""},{"$f":"IFERROR(INDEX(masterlist!$G$2:$G$207,MATCH(A27,masterlist!$C$2:$C$207,0)),\"\")","v":""},{"$f":"IFERROR(INDEX(masterlist!$H$2:$H$207,MATCH(A27,masterlist!$C$2:$C$207,0)),\"\")","v":""},null,null,{"$f":"IFERROR(HYPERLINK(INDEX(masterlist!$M$2:$M$207,MATCH(A27,masterlist!$C$2:$C$207,0)),INDEX(masterlist!$L$2:$L$207,MATCH(A27,masterlist!$C$2:$C$207,0))),\"\")","v":""},{"$f":"IFERROR(HYPERLINK(INDEX(masterlist!$O$2:$O$207,MATCH(A27,masterlist!$C$2:$C$207,0)),INDEX(masterlist!$N$2:$N$207,MATCH(A27,masterlist!$C$2:$C$207,0))),\"\")","v":""},{"$f":"IFERROR(HYPERLINK(INDEX(masterlist!$Q$2:$Q$207,MATCH(A27,masterlist!$C$2:$C$207,0)),INDEX(masterlist!$P$2:$P$207,MATCH(A27,masterlist!$C$2:$C$207,0))),\"\")","v":""},{"$f":"IFERROR(HYPERLINK(INDEX(masterlist!$S$2:$S$207,MATCH(A27,masterlist!$C$2:$C$207,0)),INDEX(masterlist!$R$2:$R$207,MATCH(A27,masterlist!$C$2:$C$207,0))),\"\")","v":""},{"$f":"IFERROR(HYPERLINK(INDEX(masterlist!$U$2:$U$207,MATCH(A27,masterlist!$C$2:$C$207,0)),INDEX(masterlist!$T$2:$T$207,MATCH(A27,masterlist!$C$2:$C$207,0))),\"\")","v":""}]
[{"$f":"IFERROR(INDEX(masterlist!$A$2:$F$207,SMALL(IF(masterlist!$B$2:$B$207=\"CCI\",ROW(masterlist!$A$2:$F$207)-1),ROW(24:24)),3),\"\")","v":""},{"$f":"IFERROR(INDEX(masterlist!$D$2:$D$207,MATCH(A28,masterlist!$C$2:$C$207,0)),\"\")","v":""},{"$f":"IFERROR(INDEX(masterlist!$E$2:$E$207,MATCH(A28,masterlist!$C$2:$C$207,0)),\"\")","v":""},{"$f":"IFERROR(INDEX(masterlist!$G$2:$G$207,MATCH(A28,masterlist!$C$2:$C$207,0)),\"\")","v":""},{"$f":"IFERROR(INDEX(masterlist!$H$2:$H$207,MATCH(A28,masterlist!$C$2:$C$207,0)),\"\")","v":""},null,null,{"$f":"IFERROR(HYPERLINK(INDEX(masterlist!$M$2:$M$207,MATCH(A28,masterlist!$C$2:$C$207,0)),INDEX(masterlist!$L$2:$L$207,MATCH(A28,masterlist!$C$2:$C$207,0))),\"\")","v":""},{"$f":"IFERROR(HYPERLINK(INDEX(masterlist!$O$2:$O$207,MATCH(A28,masterlist!$C$2:$C$207,0)),INDEX(masterlist!$N$2:$N$207,MATCH(A28,masterlist!$C$2:$C$207,0))),\"\")","v":""},{"$f":"IFERROR(HYPERLINK(INDEX(masterlist!$Q$2:$Q$207,MATCH(A28,masterlist!$C$2:$C$207,0)),INDEX(masterlist!$P$2:$P$207,MATCH(A28,masterlist!$C$2:$C$207,0))),\"\")","v":""},{"$f":"IFERROR(HYPERLINK(INDEX(masterlist!$S$2:$S$207,MATCH(A28,masterlist!$C$2:$C$207,0)),INDEX(masterlist!$R$2:$R$207,MATCH(A28,masterlist!$C$2:$C$207,0))),\"\")","v":""},{"$f":"IFERROR(HYPERLINK(INDEX(masterlist!$U$2:$U$207,MATCH(A28,masterlist!$C$2:$C$207,0)),INDEX(masterlist!$T$2:$T$207,MATCH(A28,masterlist!$C$2:$C$207,0))),\"\")","v":""}]
[{"$f":"IFERROR(INDEX(masterlist!$A$2:$F$207,SMALL(IF(masterlist!$B$2:$B$207=\"CCI\",ROW(masterlist!$A$2:$F$207)-1),ROW(25:25)),3),\"\")","v":""},{"$f":"IFERROR(INDEX(masterlist!$D$2:$D$207,MATCH(A29,masterlist!$C$2:$C$207,0)),\"\")","v":""},{"$f":"IFERROR(INDEX(masterlist!$E$2:$E$207,MATCH(A29,masterlist!$C$2:$C$207,0)),\"\")","v":""},{"$f":"IFERROR(INDEX(masterlist!$G$2:$G$207,MATCH(A29,masterlist!$C$2:$C$207,0)),\"\")","v":""},{"$f":"IFERROR(INDEX(masterlist!$H$2:$H$207,MATCH(A29,masterlist!$C$2:$C$207,0)),\"\")","v":""},null,null,{"$f":"IFERROR(HYPERLINK(INDEX(masterlist!$M$2:$M$207,MATCH(A29,masterlist!$C$2:$C$207,0)),INDEX(masterlist!$L$2:$L$207,MATCH(A29,masterlist!$C$2:$C$207,0))),\"\")","v":""},{"$f":"IFERROR(HYPERLINK(INDEX(masterlist!$O$2:$O$207,MATCH(A29,masterlist!$C$2:$C$207,0)),INDEX(masterlist!$N$2:$N$207,MATCH(A29,masterlist!$C$2:$C$207,0))),\"\")","v":""},{"$f":"IFERROR(HYPERLINK(INDEX(masterlist!$Q$2:$Q$207,MATCH(A29,masterlist!$C$2:$C$207,0)),INDEX(masterlist!$P$2:$P$207,MATCH(A29,masterlist!$C$2:$C$207,0))),\"\")","v":""},{"$f":"IFERROR(HYPERLINK(INDEX(masterlist!$S$2:$S$207,MATCH(A29,masterlist!$C$2:$C$207,0)),INDEX(masterlist!$R$2:$R$207,MATCH(A29,masterlist!$C$2:$C$207,0))),\"\")","v":""},{"$f":"IFERROR(HYPERLINK(INDEX(masterlist!$U$2:$U$207,MATCH(A29,masterlist!$C$2:$C$207,0)),INDEX(masterlist!$T$2:$T$207,MATCH(A29,masterlist!$C$2:$C$207,0))),\"\")","v":""}]
[{"$f":"IFERROR(INDEX(masterlist!$A$2:$F$207,SMALL(IF(masterlist!$B$2:$B$207=\"CCI\",ROW(masterlist!$A$2:$F$207)-1),ROW(26:26)),3),\"\")","v":""},{"$f":"IFERROR(INDEX(masterlist!$D$2:$D$207,MATCH(A30,masterlist!$C$2:$C$207,0)),\"\")","v":""},{"$f":"IFERROR(INDEX(masterlist!$E$2:$E$207,MATCH(A30,masterlist!$C$2:$C$207,0)),\"\")","v":""},{"$f":"IFERROR(INDEX(masterlist!$G$2:$G$207,MATCH(A30,masterlist!$C$2:$C$207,0)),\"\")","v":""},{"$f":"IFERROR(INDEX(masterlist!$H$2:$H$207,MATCH(A30,masterlist!$C$2:$C$207,0)),\"\")","v":""},null,null,{"$f":"IFERROR(HYPERLINK(INDEX(masterlist!$M$2:$M$207,MATCH(A30,masterlist!$C$2:$C$207,0)),INDEX(masterlist!$L$2:$L$207,MATCH(A30,masterlist!$C$2:$C$207,0))),\"\")","v":""},{"$f":"IFERROR(HYPERLINK(INDEX(masterlist!$O$2:$O$207,MATCH(A30,masterlist!$C$2:$C$207,0)),INDEX(masterlist!$N$2:$N$207,MATCH(A30,masterlist!$C$2:$C$207,0))),\"\")","v":""},{"$f":"IFERROR(HYPERLINK(INDEX(masterlist!$Q$2:$Q$207,MATCH(A30,masterlist!$C$2:$C$207,0)),INDEX(masterlist!$P$2:$P$207,MATCH(A30,masterlist!$C$2:$C$207,0))),\"\")","v":""},{"$f":"IFERROR(HYPERLINK(INDEX(masterlist!$S$2:$S$207,MATCH(A30,masterlist!$C$2:$C$207,0)),INDEX(masterlist!$R$2:$R$207,MATCH(A30,masterlist!$C$2:$C$207,0))),\"\")","v":""},{"$f":"IFERROR(HYPERLINK(INDEX(masterlist!$U$2:$U$207,MATCH(A30,masterlist!$C$2:$C$207,0)),INDEX(masterlist!$T$2:$T$207,MATCH(A30,masterlist!$C$2:$C$207,0))),\"\")","v":""}]
[{"$f":"IFERROR(INDEX(masterlist!$A$2:$F$207,SMALL(IF(masterlist!$B$2:$B$207=\"CCI\",ROW(masterlist!$A$2:$F$207)-1),ROW(27:27)),3),\"\")","v":""},{"$f":"IFERROR(INDEX(masterlist!$D$2:$D$207,MATCH(A31,masterlist!$C$2:$C$207,0)),\"\")","v":""},{"$f":"IFERROR(INDEX(masterlist!$E$2:$E$207,MATCH(A31,masterlist!$C$2:$C$207,0)),\"\")","v":""},{"$f":"IFERROR(INDEX(masterlist!$G$2:$G$207,MATCH(A31,masterlist!$C$2:$C$207,0)),\"\")","v":""},{"$f":"IFERROR(INDEX(masterlist!$H$2:$H$207,MATCH(A31,masterlist!$C$2:$C$207,0)),\"\")","v":""},null,null,{"$f":"IFERROR(HYPERLINK(INDEX(masterlist!$M$2:$M$207,MATCH(A31,masterlist!$C$2:$C$207,0)),INDEX(masterlist!$L$2:$L$207,MATCH(A31,masterlist!$C$2:$C$207,0))),\"\")","v":""},{"$f":"IFERROR(HYPERLINK(INDEX(masterlist!$O$2:$O$207,MATCH(A31,masterlist!$C$2:$C$207,0)),INDEX(masterlist!$N$2:$N$207,MATCH(A31,masterlist!$C$2:$C$207,0))),\"\")","v":""},{"$f":"IFERROR(HYPERLINK(INDEX(masterlist!$Q$2:$Q$207,MATCH(A31,masterlist!$C$2:$C$207,0)),INDEX(masterlist!$P$2:$P$207,MATCH(A31,masterlist!$C$2:$C$207,0))),\"\")","v":""},{"$f":"IFERROR(HYPERLINK(INDEX(masterlist!$S$2:$S$207,MATCH(A31,masterlist!$C$2:$C$207,0)),INDEX(masterlist!$R$2:$R$207,MATCH(A31,masterlist!$C$2:$C$207,0))),\"\")","v":""},{"$f":"IFERROR(HYPERLINK(INDEX(masterlist!$U$2:$U$207,MATCH(A31,masterlist!$C$2:$C$207,0)),INDEX(masterlist!$T$2:$T$207,MATCH(A31,masterlist!$C$2:$C$207,0))),\"\")","v":""}]
[{"$f":"IFERROR(INDEX(masterlist!$A$2:$F$207,SMALL(IF(masterlist!$B$2:$B$207=\"CCI\",ROW(masterlist!$A$2:$F$207)-1),ROW(28:28)),3),\"\")","v":""},{"$f":"IFERROR(INDEX(masterlist!$D$2:$D$207,MATCH(A32,masterlist!$C$2:$C$207,0)),\"\")","v":""},{"$f":"IFERROR(INDEX(masterlist!$E$2:$E$207,MATCH(A32,masterlist!$C$2:$C$207,0)),\"\")","v":""},{"$f":"IFERROR(INDEX(masterlist!$G$2:$G$207,MATCH(A32,masterlist!$C$2:$C$207,0)),\"\")","v":""},{"$f":"IFERROR(INDEX(masterlist!$H$2:$H$207,MATCH(A32,masterlist!$C$2:$C$207,0)),\"\")","v":""},null,null,{"$f":"IFERROR(HYPERLINK(INDEX(masterlist!$M$2:$M$207,MATCH(A32,masterlist!$C$2:$C$207,0)),INDEX(masterlist!$L$2:$L$207,MATCH(A32,masterlist!$C$2:$C$207,0))),\"\")","v":""},{"$f":"IFERROR(HYPERLINK(INDEX(masterlist!$O$2:$O$207,MATCH(A32,masterlist!$C$2:$C$207,0)),INDEX(masterlist!$N$2:$N$207,MATCH(A32,masterlist!$C$2:$C$207,0))),\"\")","v":""},{"$f":"IFERROR(HYPERLINK(INDEX(masterlist!$Q$2:$Q$207,MATCH(A32,masterlist!$C$2:$C$207,0)),INDEX(masterlist!$P$2:$P$207,MATCH(A32,masterlist!$C$2:$C$207,0))),\"\")","v":""},{"$f":"IFERROR(HYPERLINK(INDEX(masterlist!$S$2:$S$207,MATCH(A32,masterlist!$C$2:$C$207,0)),INDEX(masterlist!$R$2:$R$207,MATCH(A32,masterlist!$C$2:$C$207,0))),\"\")","v":""},{"$f":"IFERROR(HYPERLINK(INDEX(masterlist!$U$2:$U$207,MATCH(A32,masterlist!$C$2:$C$207,0)),INDEX(masterlist!$T$2:$T$207,MATCH(A32,masterlist!$C$2:$C$207,0))),\"\")","v":""}]
[{"$f":"IFERROR(INDEX(masterlist!$A$2:$F$207,SMALL(IF(masterlist!$B$2:$B$207=\"CCI\",ROW(masterlist!$A$2:$F$207)-1),ROW(29:29)),3),\"\")","v":""},{"$f":"IFERROR(INDEX(masterlist!$D$2:$D$207,MATCH(A33,masterlist!$C$2:$C$207,0)),\"\")","v":""},{"$f":"IFERROR(INDEX(masterlist!$E$2:$E$207,MATCH(A33,masterlist!$C$2:$C$207,0)),\"\")","v":""},{"$f":"IFERROR(INDEX(masterlist!$G$2:$G$207,MATCH(A33,masterlist!$C$2:$C$207,0)),\"\")","v":""},{"$f":"IFERROR(INDEX(masterlist!$H$2:$H$207,MATCH(A33,masterlist!$C$2:$C$207,0)),\"\")","v":""},null,null,{"$f":"IFERROR(HYPERLINK(INDEX(masterlist!$M$2:$M$207,MATCH(A33,masterlist!$C$2:$C$207,0)),INDEX(masterlist!$L$2:$L$207,MATCH(A33,masterlist!$C$2:$C$207,0))),\"\")","v":""},{"$f":"IFERROR(HYPERLINK(INDEX(masterlist!$O$2:$O$207,MATCH(A33,masterlist!$C$2:$C$207,0)),INDEX(masterlist!$N$2:$N$207,MATCH(A33,masterlist!$C$2:$C$207,0))),\"\")","v":""},{"$f":"IFERROR(HYPERLINK(INDEX(masterlist!$Q$2:$Q$207,MATCH(A33,masterlist!$C$2:$C$207,0)),INDEX(masterlist!$P$2:$P$207,MATCH(A33,masterlist!$C$2:$C$207,0))),\"\")","v":""},{"$f":"IFERROR(HYPERLINK(INDEX(masterlist!$S$2:$S$207,MATCH(A33,masterlist!$C$2:$C$207,0)),INDEX(masterlist!$R$2:$R$207,MATCH(A33,masterlist!$C$2:$C$207,0))),\"\")","v":""},{"$f":"IFERROR(HYPERLINK(INDEX(masterlist!$U$2:$U$207,MATCH(A33,masterlist!$C$2:$C$207,0)),INDEX(masterlist!$T$2:$T$207,MATCH(A33,masterlist!$C$2:$C$207,0))),\"\")","v":""}]
[{"$f":"IFERROR(INDEX(masterlist!$A$2:$F$207,SMALL(IF(masterlist!$B$2:$B$207=\"CCI\",ROW(masterlist!$A$2:$F$207)-1),ROW(30:30)),3),\"\")","v":""},{"$f":"IFERROR(INDEX(masterlist!$D$2:$D$207,MATCH(A34,masterlist!$C$2:$C$207,0)),\"\")","v":""},{"$f":"IFERROR(INDEX(masterlist!$E$2:$E$207,MATCH(A34,masterlist!$C$2:$C$207,0)),\"\")","v":""},{"$f":"IFERROR(INDEX(masterlist!$G$2:$G$207,MATCH(A34,masterlist!$C$2:$C$207,0)),\"\")","v":""},{"$f":"IFERROR(INDEX(masterlist!$H$2:$H$207,MATCH(A34,masterlist!$C$2:$C$207,0)),\"\")","v":""},null,null,{"$f":"IFERROR(HYPERLINK(INDEX(masterlist!$M$2:$M$207,MATCH(A34,masterlist!$C$2:$C$207,0)),INDEX(masterlist!$L$2:$L$207,MATCH(A34,masterlist!$C$2:$C$207,0))),\"\")","v":""},{"$f":"IFERROR(HYPERLINK(INDEX(masterlist!$O$2:$O$207,MATCH(A34,masterlist!$C$2:$C$207,0)),INDEX(masterlist!$N$2:$N$207,MATCH(A34,masterlist!$C$2:$C$207,0))),\"\")","v":""},{"$f":"IFERROR(HYPERLINK(INDEX(masterlist!$Q$2:$Q$207,MATCH(A34,masterlist!$C$2:$C$207,0)),INDEX(masterlist!$P$2:$P$207,MATCH(A34,masterlist!$C$2:$C$207,0))),\"\")","v":""},{"$f":"IFERROR(HYPERLINK(INDEX(masterlist!$S$2:$S$207,MATCH(A34,masterlist!$C$2:$C$207,0)),INDEX(masterlist!$R$2:$R$207,MATCH(A34,masterlist!$C$2:$C$207,0))),\"\")","v":""},{"$f":"IFERROR(HYPERLINK(INDEX(masterlist!$U$2:$U$207,MATCH(A34,masterlist!$C$2:$C$207,0)),INDEX(masterlist!$T$2:$T$207,MATCH(A34,masterlist!$C$2:$C$207,0))),\"\")","v":""}]
[{"$f":"IFERROR(INDEX(masterlist!$A$2:$F$207,SMALL(IF(masterlist!$B$2:$B$207=\"CCI\",ROW(masterlist!$A$2:$F$207)-1),ROW(31:31)),3),\"\")","v":""},{"$f":"IFERROR(INDEX(masterlist!$D$2:$D$207,MATCH(A35,masterlist!$C$2:$C$207,0)),\"\")","v":""},{"$f":"IFERROR(INDEX(masterlist!$E$2:$E$207,MATCH(A35,masterlist!$C$2:$C$207,0)),\"\")","v":""},{"$f":"IFERROR(INDEX(masterlist!$G$2:$G$207,MATCH(A35,masterlist!$C$2:$C$207,0)),\"\")","v":""},{"$f":"IFERROR(INDEX(masterlist!$H$2:$H$207,MATCH(A35,masterlist!$C$2:$C$207,0)),\"\")","v":""},null,null,{"$f":"IFERROR(HYPERLINK(INDEX(masterlist!$M$2:$M$207,MATCH(A35,masterlist!$C$2:$C$207,0)),INDEX(masterlist!$L$2:$L$207,MATCH(A35,masterlist!$C$2:$C$207,0))),\"\")","v":""},{"$f":"IFERROR(HYPERLINK(INDEX(masterlist!$O$2:$O$207,MATCH(A35,masterlist!$C$2:$C$207,0)),INDEX(masterlist!$N$2:$N$207,MATCH(A35,masterlist!$C$2:$C$207,0))),\"\")","v":""},{"$f":"IFERROR(HYPERLINK(INDEX(masterlist!$Q$2:$Q$207,MATCH(A35,masterlist!$C$2:$C$207,0)),INDEX(masterlist!$P$2:$P$207,MATCH(A35,masterlist!$C$2:$C$207,0))),\"\")","v":""},{"$f":"IFERROR(HYPERLINK(INDEX(masterlist!$S$2:$S$207,MATCH(A35,masterlist!$C$2:$C$207,0)),INDEX(masterlist!$R$2:$R$207,MATCH(A35,masterlist!$C$2:$C$207,0))),\"\")","v":""},{"$f":"IFERROR(HYPERLINK(INDEX(masterlist!$U$2:$U$207,MATCH(A35,masterlist!$C$2:$C$207,0)),INDEX(masterlist!$T$2:$T$207,MATCH(A35,masterlist!$C$2:$C$207,0))),\"\")","v":""}]
[{"$f":"IFERROR(INDEX(masterlist!$A$2:$F$207,SMALL(IF(masterlist!$B$2:$B$207=\"CCI\",ROW(masterlist!$A$2:$F$207)-1),ROW(32:32)),3),\"\")","v":""},{"$f":"IFERROR(INDEX(masterlist!$D$2:$D$207,MATCH(A36,masterlist!$C$2:$C$207,0)),\"\")","v":""},{"$f":"IFERROR(INDEX(masterlist!$E$2:$E$207,MATCH(A36,masterlist!$C$2:$C$207,0)),\"\")","v":""},{"$f":"IFERROR(INDEX(masterlist!$G$2:$G$207,MATCH(A36,masterlist!$C$2:$C$207,0)),\"\")","v":""},{"$f":"IFERROR(INDEX(masterlist!$H$2:$H$207,MATCH(A36,masterlist!$C$2:$C$207,0)),\"\")","v":""},null,null,{"$f":"IFERROR(HYPERLINK(INDEX(masterlist!$M$2:$M$207,MATCH(A36,masterlist!$C$2:$C$207,0)),INDEX(masterlist!$L$2:$L$207,MATCH(A36,masterlist!$C$2:$C$207,0))),\"\")","v":""},{"$f":"IFERROR(HYPERLINK(INDEX(masterlist!$O$2:$O$207,MATCH(A36,masterlist!$C$2:$C$207,0)),INDEX(masterlist!$N$2:$N$207,MATCH(A36,masterlist!$C$2:$C$207,0))),\"\")","v":""},{"$f":"IFERROR(HYPERLINK(INDEX(masterlist!$Q$2:$Q$207,MATCH(A36,masterlist!$C$2:$C$207,0)),INDEX(masterlist!$P$2:$P$207,MATCH(A36,masterlist!$C$2:$C$207,0))),\"\")","v":""},{"$f":"IFERROR(HYPERLINK(INDEX(masterlist!$S$2:$S$207,MATCH(A36,masterlist!$C$2:$C$207,0)),INDEX(masterlist!$R$2:$R$207,MATCH(A36,masterlist!$C$2:$C$207,0))),\"\")","v":""},{"$f":"IFERROR(HYPERLINK(INDEX(masterlist!$U$2:$U$207,MATCH(A36,masterlist!$C$2:$C$207,0)),INDEX(masterlist!$T$2:$T$207,MATCH(A36,masterlist!$C$2:$C$207,0))),\"\")","v":""}]
[{"$f":"IFERROR(INDEX(masterlist!$A$2:$F$207,SMALL(IF(masterlist!$B$2:$B$207=\"CCI\",ROW(masterlist!$A$2:$F$207)-1),ROW(33:33)),3),\"\")","v":""},{"$f":"IFERROR(INDEX(masterlist!$D$2:$D$207,MATCH(A37,masterlist!$C$2:$C$207,0)),\"\")","v":""},{"$f":"IFERROR(INDEX(masterlist!$E$2:$E$207,MATCH(A37,masterlist!$C$2:$C$207,0)),\"\")","v":""},{"$f":"IFERROR(INDEX(masterlist!$G$2:$G$207,MATCH(A37,masterlist!$C$2:$C$207,0)),\"\")","v":""},{"$f":"IFERROR(INDEX(masterlist!$H$2:$H$207,MATCH(A37,masterlist!$C$2:$C$207,0)),\"\")","v":""},null,null,{"$f":"IFERROR(HYPERLINK(INDEX(masterlist!$M$2:$M$207,MATCH(A37,masterlist!$C$2:$C$207,0)),INDEX(masterlist!$L$2:$L$207,MATCH(A37,masterlist!$C$2:$C$207,0))),\"\")","v":""},{"$f":"IFERROR(HYPERLINK(INDEX(masterlist!$O$2:$O$207,MATCH(A37,masterlist!$C$2:$C$207,0)),INDEX(masterlist!$N$2:$N$207,MATCH(A37,masterlist!$C$2:$C$207,0))),\"\")","v":""},{"$f":"IFERROR(HYPERLINK(INDEX(masterlist!$Q$2:$Q$207,MATCH(A37,masterlist!$C$2:$C$207,0)),INDEX(masterlist!$P$2:$P$207,MATCH(A37,masterlist!$C$2:$C$207,0))),\"\")","v":""},{"$f":"IFERROR(HYPERLINK(INDEX(masterlist!$S$2:$S$207,MATCH(A37,masterlist!$C$2:$C$207,0)),INDEX(masterlist!$R$2:$R$207,MATCH(A37,masterlist!$C$2:$C$207,0))),\"\")","v":""},{"$f":"IFERROR(HYPERLINK(INDEX(masterlist!$U$2:$U$207,MATCH(A37,masterlist!$C$2:$C$207,0)),INDEX(masterlist!$T$2:$T$207,MATCH(A37,masterlist!$C$2:$C$207,0))),\"\")","v":""}]
[{"$f":"IFERROR(INDEX(masterlist!$A$2:$F$207,SMALL(IF(masterlist!$B$2:$B$207=\"CCI\",ROW(masterlist!$A$2:$F$207)-1),ROW(34:34)),3),\"\")","v":""},{"$f":"IFERROR(INDEX(masterlist!$D$2:$D$207,MATCH(A38,masterlist!$C$2:$C$207,0)),\"\")","v":""},{"$f":"IFERROR(INDEX(masterlist!$E$2:$E$207,MATCH(A38,masterlist!$C$2:$C$207,0)),\"\")","v":""},{"$f":"IFERROR(INDEX(masterlist!$G$2:$G$207,MATCH(A38,masterlist!$C$2:$C$207,0)),\"\")","v":""},{"$f":"IFERROR(INDEX(masterlist!$H$2:$H$207,MATCH(A38,masterlist!$C$2:$C$207,0)),\"\")","v":""},null,null,{"$f":"IFERROR(HYPERLINK(INDEX(masterlist!$M$2:$M$207,MATCH(A38,masterlist!$C$2:$C$207,0)),INDEX(masterlist!$L$2:$L$207,MATCH(A38,masterlist!$C$2:$C$207,0))),\"\")","v":""},{"$f":"IFERROR(HYPERLINK(INDEX(masterlist!$O$2:$O$207,MATCH(A38,masterlist!$C$2:$C$207,0)),INDEX(masterlist!$N$2:$N$207,MATCH(A38,masterlist!$C$2:$C$207,0))),\"\")","v":""},{"$f":"IFERROR(HYPERLINK(INDEX(masterlist!$Q$2:$Q$207,MATCH(A38,masterlist!$C$2:$C$207,0)),INDEX(masterlist!$P$2:$P$207,MATCH(A38,masterlist!$C$2:$C$207,0))),\"\")","v":""},{"$f":"IFERROR(HYPERLINK(INDEX(masterlist!$S$2:$S$207,MATCH(A38,masterlist!$C$2:$C$207,0)),INDEX(masterlist!$R$2:$R$207,MATCH(A38,masterlist!$C$2:$C$207,0))),\"\")","v":""},{"$f":"IFERROR(HYPERLINK(INDEX(masterlist!$U$2:$U$207,MATCH(A38,masterlist!$C$2:$C$207,0)),INDEX(masterlist!$T$2:$T$207,MATCH(A38,masterlist!$C$2:$C$207,0))),\"\")","v":""}]
[{"$f":"IFERROR(INDEX(masterlist!$A$2:$F$207,SMALL(IF(masterlist!$B$2:$B$207=\"CCI\",ROW(masterlist!$A$2:$F$207)-1),ROW(35:35)),3),\"\")","v":""},{"$f":"IFERROR(INDEX(masterlist!$D$2:$D$207,MATCH(A39,masterlist!$C$2:$C$207,0)),\"\")","v":""},{"$f":"IFERROR(INDEX(masterlist!$E$2:$E$207,MATCH(A39,masterlist!$C$2:$C$207,0)),\"\")","v":""},{"$f":"IFERROR(INDEX(masterlist!$G$2:$G$207,MATCH(A39,masterlist!$C$2:$C$207,0)),\"\")","v":""},{"$f":"IFERROR(INDEX(masterlist!$H$2:$H$207,MATCH(A39,masterlist!$C$2:$C$207,0)),\"\")","v":""},null,null,{"$f":"IFERROR(HYPERLINK(INDEX(masterlist!$M$2:$M$207,MATCH(A39,masterlist!$C$2:$C$207,0)),INDEX(masterlist!$L$2:$L$207,MATCH(A39,masterlist!$C$2:$C$207,0))),\"\")","v":""},{"$f":"IFERROR(HYPERLINK(INDEX(masterlist!$O$2:$O$207,MATCH(A39,masterlist!$C$2:$C$207,0)),INDEX(masterlist!$N$2:$N$207,MATCH(A39,masterlist!$C$2:$C$207,0))),\"\")","v":""},{"$f":"IFERROR(HYPERLINK(INDEX(masterlist!$Q$2:$Q$207,MATCH(A39,masterlist!$C$2:$C$207,0)),INDEX(masterlist!$P$2:$P$207,MATCH(A39,masterlist!$C$2:$C$207,0))),\"\")","v":""},{"$f":"IFERROR(HYPERLINK(INDEX(masterlist!$S$2:$S$207,MATCH(A39,masterlist!$C$2:$C$207,0)),INDEX(masterlist!$R$2:$R$207,MATCH(A39,masterlist!$C$2:$C$207,0))),\"\")","v":""},{"$f":"IFERROR(HYPERLINK(INDEX(masterlist!$U$2:$U$207,MATCH(A39,masterlist!$C$2:$C$207,0)),INDEX(masterlist!$T$2:$T$207,MATCH(A39,masterlist!$C$2:$C$207,0))),\"\")","v":""}]
[{"$f":"IFERROR(INDEX(masterlist!$A$2:$F$207,SMALL(IF(masterlist!$B$2:$B$207=\"CCI\",ROW(masterlist!$A$2:$F$207)-1),ROW(36:36)),3),\"\")","v":""},{"$f":"IFERROR(INDEX(masterlist!$D$2:$D$207,MATCH(A40,masterlist!$C$2:$C$207,0)),\"\")","v":""},{"$f":"IFERROR(INDEX(masterlist!$E$2:$E$207,MATCH(A40,masterlist!$C$2:$C$207,0)),\"\")","v":""},{"$f":"IFERROR(INDEX(masterlist!$G$2:$G$207,MATCH(A40,masterlist!$C$2:$C$207,0)),\"\")","v":""},{"$f":"IFERROR(INDEX(masterlist!$H$2:$H$207,MATCH(A40,masterlist!$C$2:$C$207,0)),\"\")","v":""},null,null,{"$f":"IFERROR(HYPERLINK(INDEX(masterlist!$M$2:$M$207,MATCH(A40,masterlist!$C$2:$C$207,0)),INDEX(masterlist!$L$2:$L$207,MATCH(A40,masterlist!$C$2:$C$207,0))),\"\")","v":""},{"$f":"IFERROR(HYPERLINK(INDEX(masterlist!$O$2:$O$207,MATCH(A40,masterlist!$C$2:$C$207,0)),INDEX(masterlist!$N$2:$N$207,MATCH(A40,masterlist!$C$2:$C$207,0))),\"\")","v":""},{"$f":"IFERROR(HYPERLINK(INDEX(masterlist!$Q$2:$Q$207,MATCH(A40,masterlist!$C$2:$C$207,0)),INDEX(masterlist!$P$2:$P$207,MATCH(A40,masterlist!$C$2:$C$207,0))),\"\")","v":""},{"$f":"IFERROR(HYPERLINK(INDEX(masterlist!$S$2:$S$207,MATCH(A40,masterlist!$C$2:$C$207,0)),INDEX(masterlist!$R$2:$R$207,MATCH(A40,masterlist!$C$2:$C$207,0))),\"\")","v":""},{"$f":"IFERROR(HYPERLINK(INDEX(masterlist!$U$2:$U$207,MATCH(A40,masterlist!$C$2:$C$207,0)),INDEX(masterlist!$T$2:$T$207,MATCH(A40,masterlist!$C$2:$C$207,0))),\"\")","v":""}]
[{"$f":"IFERROR(INDEX(masterlist!$A$2:$F$207,SMALL(IF(masterlist!$B$2:$B$207=\"CCI\",ROW(masterlist!$A$2:$F$207)-1),ROW(37:37)),3),\"\")","v":""},{"$f":"IFERROR(INDEX(masterlist!$D$2:$D$207,MATCH(A41,masterlist!$C$2:$C$207,0)),\"\")","v":""},{"$f":"IFERROR(INDEX(masterlist!$E$2:$E$207,MATCH(A41,masterlist!$C$2:$C$207,0)),\"\")","v":""},{"$f":"IFERROR(INDEX(masterlist!$G$2:$G$207,MATCH(A41,masterlist!$C$2:$C$207,0)),\"\")","v":""},{"$f":"IFERROR(INDEX(masterlist!$H$2:$H$207,MATCH(A41,masterlist!$C$2:$C$207,0)),\"\")","v":""},null,null,{"$f":"IFERROR(HYPERLINK(INDEX(masterlist!$M$2:$M$207,MATCH(A41,masterlist!$C$2:$C$207,0)),INDEX(masterlist!$L$2:$L$207,MATCH(A41,masterlist!$C$2:$C$207,0))),\"\")","v":""},{"$f":"IFERROR(HYPERLINK(INDEX(masterlist!$O$2:$O$207,MATCH(A41,masterlist!$C$2:$C$207,0)),INDEX(masterlist!$N$2:$N$207,MATCH(A41,masterlist!$C$2:$C$207,0))),\"\")","v":""},{"$f":"IFERROR(HYPERLINK(INDEX(masterlist!$Q$2:$Q$207,MATCH(A41,masterlist!$C$2:$C$207,0)),INDEX(masterlist!$P$2:$P$207,MATCH(A41,masterlist!$C$2:$C$207,0))),\"\")","v":""},{"$f":"IFERROR(HYPERLINK(INDEX(masterlist!$S$2:$S$207,MATCH(A41,masterlist!$C$2:$C$207,0)),INDEX(masterlist!$R$2:$R$207,MATCH(A41,masterlist!$C$2:$C$207,0))),\"\")","v":""},{"$f":"IFERROR(HYPERLINK(INDEX(masterlist!$U$2:$U$207,MATCH(A41,masterlist!$C$2:$C$207,0)),INDEX(masterlist!$T$2:$T$207,MATCH(A41,masterlist!$C$2:$C$207,0))),\"\")","v":""}]
[{"$f":"IFERROR(INDEX(masterlist!$A$2:$F$207,SMALL(IF(masterlist!$B$2:$B$207=\"CCI\",ROW(masterlist!$A$2:$F$207)-1),ROW(38:38)),3),\"\")","v":""},{"$f":"IFERROR(INDEX(masterlist!$D$2:$D$207,MATCH(A42,masterlist!$C$2:$C$207,0)),\"\")","v":""},{"$f":"IFERROR(INDEX(masterlist!$E$2:$E$207,MATCH(A42,masterlist!$C$2:$C$207,0)),\"\")","v":""},{"$f":"IFERROR(INDEX(masterlist!$G$2:$G$207,MATCH(A42,masterlist!$C$2:$C$207,0)),\"\")","v":""},{"$f":"IFERROR(INDEX(masterlist!$H$2:$H$207,MATCH(A42,masterlist!$C$2:$C$207,0)),\"\")","v":""},null,null,{"$f":"IFERROR(HYPERLINK(INDEX(masterlist!$M$2:$M$207,MATCH(A42,masterlist!$C$2:$C$207,0)),INDEX(masterlist!$L$2:$L$207,MATCH(A42,masterlist!$C$2:$C$207,0))),\"\")","v":""},{"$f":"IFERROR(HYPERLINK(INDEX(masterlist!$O$2:$O$207,MATCH(A42,masterlist!$C$2:$C$207,0)),INDEX(masterlist!$N$2:$N$207,MATCH(A42,masterlist!$C$2:$C$207,0))),\"\")","v":""},{"$f":"IFERROR(HYPERLINK(INDEX(masterlist!$Q$2:$Q$207,MATCH(A42,masterlist!$C$2:$C$207,0)),INDEX(masterlist!$P$2:$P$207,MATCH(A42,masterlist!$C$2:$C$207,0))),\"\")","v":""},{"$f":"IFERROR(HYPERLINK(INDEX(masterlist!$S$2:$S$207,MATCH(A42,masterlist!$C$2:$C$207,0)),INDEX(masterlist!$R$2:$R$207,MATCH(A42,masterlist!$C$2:$C$207,0))),\"\")","v":""},{"$f":"IFERROR(HYPERLINK(INDEX(masterlist!$U$2:$U$207,MATCH(A42,masterlist!$C$2:$C$207,0)),INDEX(masterlist!$T$2:$T$207,MATCH(A42,masterlist!$C$2:$C$207,0))),\"\")","v":""}]
[{"$f":"IFERROR(INDEX(masterlist!$A$2:$F$207,SMALL(IF(masterlist!$B$2:$B$207=\"CCI\",ROW(masterlist!$A$2:$F$207)-1),ROW(39:39)),3),\"\")","v":""},{"$f":"IFERROR(INDEX(masterlist!$D$2:$D$207,MATCH(A43,masterlist!$C$2:$C$207,0)),\"\")","v":""},{"$f":"IFERROR(INDEX(masterlist!$E$2:$E$207,MATCH(A43,masterlist!$C$2:$C$207,0)),\"\")","v":""},{"$f":"IFERROR(INDEX(masterlist!$G$2:$G$207,MATCH(A43,masterlist!$C$2:$C$207,0)),\"\")","v":""},{"$f":"IFERROR(INDEX(masterlist!$H$2:$H$207,MATCH(A43,masterlist!$C$2:$C$207,0)),\"\")","v":""},null,null,{"$f":"IFERROR(HYPERLINK(INDEX(masterlist!$M$2:$M$207,MATCH(A43,masterlist!$C$2:$C$207,0)),INDEX(masterlist!$L$2:$L$207,MATCH(A43,masterlist!$C$2:$C$207,0))),\"\")","v":""},{"$f":"IFERROR(HYPERLINK(INDEX(masterlist!$O$2:$O$207,MATCH(A43,masterlist!$C$2:$C$207,0)),INDEX(masterlist!$N$2:$N$207,MATCH(A43,masterlist!$C$2:$C$207,0))),\"\")","v":""},{"$f":"IFERROR(HYPERLINK(INDEX(masterlist!$Q$2:$Q$207,MATCH(A43,masterlist!$C$2:$C$207,0)),INDEX(masterlist!$P$2:$P$207,MATCH(A43,masterlist!$C$2:$C$207,0))),\"\")","v":""},{"$f":"IFERROR(HYPERLINK(INDEX(masterlist!$S$2:$S$207,MATCH(A43,masterlist!$C$2:$C$207,0)),INDEX(masterlist!$R$2:$R$207,MATCH(A43,masterlist!$C$2:$C$207,0))),\"\")","v":""},{"$f":"IFERROR(HYPERLINK(INDEX(masterlist!$U$2:$U$207,MATCH(A43,masterlist!$C$2:$C$207,0)),INDEX(masterlist!$T$2:$T$207,MATCH(A43,masterlist!$C$2:$C$207,0))),\"\")","v":""}]
[{"$f":"IFERROR(INDEX(masterlist!$A$2:$F$207,SMALL(IF(masterlist!$B$2:$B$207=\"CCI\",ROW(masterlist!$A$2:$F$207)-1),ROW(40:40)),3),\"\")","v":""},{"$f":"IFERROR(INDEX(masterlist!$D$2:$D$207,MATCH(A44,masterlist!$C$2:$C$207,0)),\"\")","v":""},{"$f":"IFERROR(INDEX(masterlist!$E$2:$E$207,MATCH(A44,masterlist!$C$2:$C$207,0)),\"\")","v":""},{"$f":"IFERROR(INDEX(masterlist!$G$2:$G$207,MATCH(A44,masterlist!$C$2:$C$207,0)),\"\")","v":""},{"$f":"IFERROR(INDEX(masterlist!$H$2:$H$207,MATCH(A44,masterlist!$C$2:$C$207,0)),\"\")","v":""},null,null,{"$f":"IFERROR(HYPERLINK(INDEX(masterlist!$M$2:$M$207,MATCH(A44,masterlist!$C$2:$C$207,0)),INDEX(masterlist!$L$2:$L$207,MATCH(A44,masterlist!$C$2:$C$207,0))),\"\")","v":""},{"$f":"IFERROR(HYPERLINK(INDEX(masterlist!$O$2:$O$207,MATCH(A44,masterlist!$C$2:$C$207,0)),INDEX(masterlist!$N$2:$N$207,MATCH(A44,masterlist!$C$2:$C$207,0))),\"\")","v":""},{"$f":"IFERROR(HYPERLINK(INDEX(masterlist!$Q$2:$Q$207,MATCH(A44,masterlist!$C$2:$C$207,0)),INDEX(masterlist!$P$2:$P$207,MATCH(A44,masterlist!$C$2:$C$207,0))),\"\")","v":""},{"$f":"IFERROR(HYPERLINK(INDEX(masterlist!$S$2:$S$207,MATCH(A44,masterlist!$C$2:$C$207,0)),INDEX(masterlist!$R$2:$R$207,MATCH(A44,masterlist!$C$2:$C$207,0))),\"\")","v":""},{"$f":"IFERROR(HYPERLINK(INDEX(masterlist!$U$2:$U$207,MATCH(A44,masterlist!$C$2:$C$207,0)),INDEX(masterlist!$T$2:$T$207,MATCH(A44,masterlist!$C$2:$C$207,0))),\"\")","v":""}]
[{"$f":"IFERROR(INDEX(masterlist!$A$2:$F$207,SMALL(IF(masterlist!$B$2:$B$207=\"CCI\",ROW(masterlist!$A$2:$F$207)-1),ROW(41:41)),3),\"\")","v":""},{"$f":"IFERROR(INDEX(masterlist!$D$2:$D$207,MATCH(A45,masterlist!$C$2:$C$207,0)),\"\")","v":""},{"$f":"IFERROR(INDEX(masterlist!$E$2:$E$207,MATCH(A45,masterlist!$C$2:$C$207,0)),\"\")","v":""},{"$f":"IFERROR(INDEX(masterlist!$G$2:$G$207,MATCH(A45,masterlist!$C$2:$C$207,0)),\"\")","v":""},{"$f":"IFERROR(INDEX(masterlist!$H$2:$H$207,MATCH(A45,masterlist!$C$2:$C$207,0)),\"\")","v":""},null,null,{"$f":"IFERROR(HYPERLINK(INDEX(masterlist!$M$2:$M$207,MATCH(A45,masterlist!$C$2:$C$207,0)),INDEX(masterlist!$L$2:$L$207,MATCH(A45,masterlist!$C$2:$C$207,0))),\"\")","v":""},{"$f":"IFERROR(HYPERLINK(INDEX(masterlist!$O$2:$O$207,MATCH(A45,masterlist!$C$2:$C$207,0)),INDEX(masterlist!$N$2:$N$207,MATCH(A45,masterlist!$C$2:$C$207,0))),\"\")","v":""},{"$f":"IFERROR(HYPERLINK(INDEX(masterlist!$Q$2:$Q$207,MATCH(A45,masterlist!$C$2:$C$207,0)),INDEX(masterlist!$P$2:$P$207,MATCH(A45,masterlist!$C$2:$C$207,0))),\"\")","v":""},{"$f":"IFERROR(HYPERLINK(INDEX(masterlist!$S$2:$S$207,MATCH(A45,masterlist!$C$2:$C$207,0)),INDEX(masterlist!$R$2:$R$207,MATCH(A45,masterlist!$C$2:$C$207,0))),\"\")","v":""},{"$f":"IFERROR(HYPERLINK(INDEX(masterlist!$U$2:$U$207,MATCH(A45,masterlist!$C$2:$C$207,0)),INDEX(masterlist!$T$2:$T$207,MATCH(A45,masterlist!$C$2:$C$207,0))),\"\")","v":""}]
[{"$f":"IFERROR(INDEX(masterlist!$A$2:$F$207,SMALL(IF(masterlist!$B$2:$B$207=\"CCI\",ROW(masterlist!$A$2:$F$207)-1),ROW(42:42)),3),\"\")","v":""},{"$f":"IFERROR(INDEX(masterlist!$D$2:$D$207,MATCH(A46,masterlist!$C$2:$C$207,0)),\"\")","v":""},{"$f":"IFERROR(INDEX(masterlist!$E$2:$E$207,MATCH(A46,masterlist!$C$2:$C$207,0)),\"\")","v":""},{"$f":"IFERROR(INDEX(masterlist!$G$2:$G$207,MATCH(A46,masterlist!$C$2:$C$207,0)),\"\")","v":""},{"$f":"IFERROR(INDEX(masterlist!$H$2:$H$207,MATCH(A46,masterlist!$C$2:$C$207,0)),\"\")","v":""},null,null,{"$f":"IFERROR(HYPERLINK(INDEX(masterlist!$M$2:$M$207,MATCH(A46,masterlist!$C$2:$C$207,0)),INDEX(masterlist!$L$2:$L$207,MATCH(A46,masterlist!$C$2:$C$207,0))),\"\")","v":""},{"$f":"IFERROR(HYPERLINK(INDEX(masterlist!$O$2:$O$207,MATCH(A46,masterlist!$C$2:$C$207,0)),INDEX(masterlist!$N$2:$N$207,MATCH(A46,masterlist!$C$2:$C$207,0))),\"\")","v":""},{"$f":"IFERROR(HYPERLINK(INDEX(masterlist!$Q$2:$Q$207,MATCH(A46,masterlist!$C$2:$C$207,0)),INDEX(masterlist!$P$2:$P$207,MATCH(A46,masterlist!$C$2:$C$207,0))),\"\")","v":""},{"$f":"IFERROR(HYPERLINK(INDEX(masterlist!$S$2:$S$207,MATCH(A46,masterlist!$C$2:$C$207,0)),INDEX(masterlist!$R$2:$R$207,MATCH(A46,masterlist!$C$2:$C$207,0))),\"\")","v":""},{"$f":"IFERROR(HYPERLINK(INDEX(masterlist!$U$2:$U$207,MATCH(A46,masterlist!$C$2:$C$207,0)),INDEX(masterlist!$T$2:$T$207,MATCH(A46,masterlist!$C$2:$C$207,0))),\"\")","v":""}]
[{"$f":"IFERROR(INDEX(masterlist!$A$2:$F$207,SMALL(IF(masterlist!$B$2:$B$207=\"CCI\",ROW(masterlist!$A$2:$F$207)-1),ROW(43:43)),3),\"\")","v":""},{"$f":"IFERROR(INDEX(masterlist!$D$2:$D$207,MATCH(A47,masterlist!$C$2:$C$207,0)),\"\")","v":""},{"$f":"IFERROR(INDEX(masterlist!$E$2:$E$207,MATCH(A47,masterlist!$C$2:$C$207,0)),\"\")","v":""},{"$f":"IFERROR(INDEX(masterlist!$G$2:$G$207,MATCH(A47,masterlist!$C$2:$C$207,0)),\"\")","v":""},{"$f":"IFERROR(INDEX(masterlist!$H$2:$H$207,MATCH(A47,masterlist!$C$2:$C$207,0)),\"\")","v":""},null,null,{"$f":"IFERROR(HYPERLINK(INDEX(masterlist!$M$2:$M$207,MATCH(A47,masterlist!$C$2:$C$207,0)),INDEX(masterlist!$L$2:$L$207,MATCH(A47,masterlist!$C$2:$C$207,0))),\"\")","v":""},{"$f":"IFERROR(HYPERLINK(INDEX(masterlist!$O$2:$O$207,MATCH(A47,masterlist!$C$2:$C$207,0)),INDEX(masterlist!$N$2:$N$207,MATCH(A47,masterlist!$C$2:$C$207,0))),\"\")","v":""},{"$f":"IFERROR(HYPERLINK(INDEX(masterlist!$Q$2:$Q$207,MATCH(A47,masterlist!$C$2:$C$207,0)),INDEX(masterlist!$P$2:$P$207,MATCH(A47,masterlist!$C$2:$C$207,0))),\"\")","v":""},{"$f":"IFERROR(HYPERLINK(INDEX(masterlist!$S$2:$S$207,MATCH(A47,masterlist!$C$2:$C$207,0)),INDEX(masterlist!$R$2:$R$207,MATCH(A47,masterlist!$C$2:$C$207,0))),\"\")","v":""},{"$f":"IFERROR(HYPERLINK(INDEX(masterlist!$U$2:$U$207,MATCH(A47,masterlist!$C$2:$C$207,0)),INDEX(masterlist!$T$2:$T$207,MATCH(A47,masterlist!$C$2:$C$207,0))),\"\")","v":""}]
[{"$f":"IFERROR(INDEX(masterlist!$A$2:$F$207,SMALL(IF(masterlist!$B$2:$B$207=\"CCI\",ROW(masterlist!$A$2:$F$207)-1),ROW(44:44)),3),\"\")","v":""},{"$f":"IFERROR(INDEX(masterlist!$D$2:$D$207,MATCH(A48,masterlist!$C$2:$C$207,0)),\"\")","v":""},{"$f":"IFERROR(INDEX(masterlist!$E$2:$E$207,MATCH(A48,masterlist!$C$2:$C$207,0)),\"\")","v":""},{"$f":"IFERROR(INDEX(masterlist!$G$2:$G$207,MATCH(A48,masterlist!$C$2:$C$207,0)),\"\")","v":""},{"$f":"IFERROR(INDEX(masterlist!$H$2:$H$207,MATCH(A48,masterlist!$C$2:$C$207,0)),\"\")","v":""},null,null,{"$f":"IFERROR(HYPERLINK(INDEX(masterlist!$M$2:$M$207,MATCH(A48,masterlist!$C$2:$C$207,0)),INDEX(masterlist!$L$2:$L$207,MATCH(A48,masterlist!$C$2:$C$207,0))),\"\")","v":""},{"$f":"IFERROR(HYPERLINK(INDEX(masterlist!$O$2:$O$207,MATCH(A48,masterlist!$C$2:$C$207,0)),INDEX(masterlist!$N$2:$N$207,MATCH(A48,masterlist!$C$2:$C$207,0))),\"\")","v":""},{"$f":"IFERROR(HYPERLINK(INDEX(masterlist!$Q$2:$Q$207,MATCH(A48,masterlist!$C$2:$C$207,0)),INDEX(masterlist!$P$2:$P$207,MATCH(A48,masterlist!$C$2:$C$207,0))),\"\")","v":""},{"$f":"IFERROR(HYPERLINK(INDEX(masterlist!$S$2:$S$207,MATCH(A48,masterlist!$C$2:$C$207,0)),INDEX(masterlist!$R$2:$R$207,MATCH(A48,masterlist!$C$2:$C$207,0))),\"\")","v":""},{"$f":"IFERROR(HYPERLINK(INDEX(masterlist!$U$2:$U$207,MATCH(A48,masterlist!$C$2:$C$207,0)),INDEX(masterlist!$T$2:$T$207,MATCH(A48,masterlist!$C$2:$C$207,0))),\"\")","v":""}]
[{"$f":"IFERROR(INDEX(masterlist!$A$2:$F$207,SMALL(IF(masterlist!$B$2:$B$207=\"CCI\",ROW(masterlist!$A$2:$F$207)-1),ROW(45:45)),3),\"\")","v":""},{"$f":"IFERROR(INDEX(masterlist!$D$2:$D$207,MATCH(A49,masterlist!$C$2:$C$207,0)),\"\")","v":""},{"$f":"IFERROR(INDEX(masterlist!$E$2:$E$207,MATCH(A49,masterlist!$C$2:$C$207,0)),\"\")","v":""},{"$f":"IFERROR(INDEX(masterlist!$G$2:$G$207,MATCH(A49,masterlist!$C$2:$C$207,0)),\"\")","v":""},{"$f":"IFERROR(INDEX(masterlist!$H$2:$H$207,MATCH(A49,masterlist!$C$2:$C$207,0)),\"\")","v":""},null,null,{"$f":"IFERROR(HYPERLINK(INDEX(masterlist!$M$2:$M$207,MATCH(A49,masterlist!$C$2:$C$207,0)),INDEX(masterlist!$L$2:$L$207,MATCH(A49,masterlist!$C$2:$C$207,0))),\"\")","v":""},{"$f":"IFERROR(HYPERLINK(INDEX(masterlist!$O$2:$O$207,MATCH(A49,masterlist!$C$2:$C$207,0)),INDEX(masterlist!$N$2:$N$207,MATCH(A49,masterlist!$C$2:$C$207,0))),\"\")","v":""},{"$f":"IFERROR(HYPERLINK(INDEX(masterlist!$Q$2:$Q$207,MATCH(A49,masterlist!$C$2:$C$207,0)),INDEX(masterlist!$P$2:$P$207,MATCH(A49,masterlist!$C$2:$C$207,0))),\"\")","v":""},{"$f":"IFERROR(HYPERLINK(INDEX(masterlist!$S$2:$S$207,MATCH(A49,masterlist!$C$2:$C$207,0)),INDEX(masterlist!$R$2:$R$207,MATCH(A49,masterlist!$C$2:$C$207,0))),\"\")","v":""},{"$f":"IFERROR(HYPERLINK(INDEX(masterlist!$U$2:$U$207,MATCH(A49,masterlist!$C$2:$C$207,0)),INDEX(masterlist!$T$2:$T$207,MATCH(A49,masterlist!$C$2:$C$207,0))),\"\")","v":""}]
[{"$f":"IFERROR(INDEX(masterlist!$A$2:$F$207,SMALL(IF(masterlist!$B$2:$B$207=\"CCI\",ROW(masterlist!$A$2:$F$207)-1),ROW(46:46)),3),\"\")","v":""},{"$f":"IFERROR(INDEX(masterlist!$D$2:$D$207,MATCH(A50,masterlist!$C$2:$C$207,0)),\"\")","v":""},{"$f":"IFERROR(INDEX(masterlist!$E$2:$E$207,MATCH(A50,masterlist!$C$2:$C$207,0)),\"\")","v":""},{"$f":"IFERROR(INDEX(masterlist!$G$2:$G$207,MATCH(A50,masterlist!$C$2:$C$207,0)),\"\")","v":""},{"$f":"IFERROR(INDEX(masterlist!$H$2:$H$207,MATCH(A50,masterlist!$C$2:$C$207,0)),\"\")","v":""},null,null,{"$f":"IFERROR(HYPERLINK(INDEX(masterlist!$M$2:$M$207,MATCH(A50,masterlist!$C$2:$C$207,0)),INDEX(masterlist!$L$2:$L$207,MATCH(A50,masterlist!$C$2:$C$207,0))),\"\")","v":""},{"$f":"IFERROR(HYPERLINK(INDEX(masterlist!$O$2:$O$207,MATCH(A50,masterlist!$C$2:$C$207,0)),INDEX(masterlist!$N$2:$N$207,MATCH(A50,masterlist!$C$2:$C$207,0))),\"\")","v":""},{"$f":"IFERROR(HYPERLINK(INDEX(masterlist!$Q$2:$Q$207,MATCH(A50,masterlist!$C$2:$C$207,0)),INDEX(masterlist!$P$2:$P$207,MATCH(A50,masterlist!$C$2:$C$207,0))),\"\")","v":""},{"$f":"IFERROR(HYPERLINK(INDEX(masterlist!$S$2:$S$207,MATCH(A50,masterlist!$C$2:$C$207,0)),INDEX(masterlist!$R$2:$R$207,MATCH(A50,masterlist!$C$2:$C$207,0))),\"\")","v":""},{"$f":"IFERROR(HYPERLINK(INDEX(masterlist!$U$2:$U$207,MATCH(A50,masterlist!$C$2:$C$207,0)),INDEX(masterlist!$T$2:$T$207,MATCH(A50,masterlist!$C$2:$C$207,0))),\"\")","v":""}]

{"sheet":"Legislation","index":12,"n_rows":50,"n_cols":12,"rows_kept":50,"cut":false,"hidden":true,"merged":[[3,7,3,10]]}
[]
[null,null,"Instructions : Si l'activité est terminée, inscrivez « 1 » dans la colonne « Statut ». Si l'activité n'a PAS été achevée ou si vous n'êtes pas sûr qu'elle l'ait été, inscrivez « 0 » dans la colonne « Statut »."]
[]
[null,"SOUS-COMPOSANTE","STADE","ACTIVITES","GUIDE DE REPONSE A LA QUESTION","STATUT","REMARQUES","Rabies Blueprint references and other links"]
[{"$f":"IFERROR(INDEX(masterlist!$A$2:$F$207,SMALL(IF(masterlist!$B$2:$B$207=\"LEG\",ROW(masterlist!$A$2:$F$207)-1),ROW(1:1)),3),\"\")","v":"LEG-Déf-0-1"},{"$f":"IFERROR(INDEX(masterlist!$D$2:$D$207,MATCH(A5,masterlist!$C$2:$C$207,0)),\"\")","v":"Définition nationale d’un cas de rage animale "},{"$f":"IFERROR(INDEX(masterlist!$E$2:$E$207,MATCH(A5,masterlist!$C$2:$C$207,0)),\"\")","v":0},{"$f":"IFERROR(INDEX(masterlist!$G$2:$G$207,MATCH(A5,masterlist!$C$2:$C$207,0)),\"\")","v":"Existe-t-il une définition de cas de rage animale disponible qui soit compatible avec (ou semblable aux) les directives de l’OMS ?"},{"$f":"IFERROR(INDEX(masterlist!$H$2:$H$207,MATCH(A5,masterlist!$C$2:$C$207,0)),\"\")","v":"La définition d’un cas de rage animale recommandée par l’OMS est la suivante : « Un cas cliniquement défini est celui d’un animal présentant l’un des signes suivants : hypersalivation ; paralysie ; léthargie ; agression non provoquée (par ex. morsure de deux ou plusieurs personnes ou animaux et /ou d’objets inanimés) ; vocalisation anomale ; activité diurne d’une espèce nocturne »."},1,null,{"$f":"IFERROR(HYPERLINK(INDEX(masterlist!$M$2:$M$207,MATCH(A5,masterlist!$C$2:$C$207,0)),INDEX(masterlist!$L$2:$L$207,MATCH(A5,masterlist!$C$2:$C$207,0))),\"\")","v":"OIE Terrestrial Animal Health Code"},{"$f":"IFERROR(HYPERLINK(INDEX(masterlist!$O$2:$O$207,MATCH(A5,masterlist!$C$2:$C$207,0)),INDEX(masterlist!$N$2:$N$207,MATCH(A5,masterlist!$C$2:$C$207,0))),\"\")","v":0},{"$f":"IFERROR(HYPERLINK(INDEX(masterlist!$Q$2:$Q$207,MATCH(A5,masterlist!$C$2:$C$207,0)),INDEX(masterlist!$P$2:$P$207,MATCH(A5,masterlist!$C$2:$C$207,0))),\"\")","v":0},{"$f":"IFERROR(HYPERLINK(INDEX(masterlist!$S$2:$S$207,MATCH(A5,masterlist!$C$2:$C$207,0)),INDEX(masterlist!$R$2:$R$207,MATCH(A5,masterlist!$C$2:$C$207,0))),\"\")","v":0},{"$f":"IFERROR(HYPERLINK(INDEX(masterlist!$U$2:$U$207,MATCH(A5,masterlist!$C$2:$C$207,0)),INDEX(masterlist!$T$2:$T$207,MATCH(A5,masterlist!$C$2:$C$207,0))),\"\")","v":0}]
[{"$f":"IFERROR(INDEX(masterlist!$A$2:$F$207,SMALL(IF(masterlist!$B$2:$B$207=\"LEG\",ROW(masterlist!$A$2:$F$207)-1),ROW(2:2)),3),\"\")","v":"LEG-Déf-1-2"},{"$f":"IFERROR(INDEX(masterlist!$D$2:$D$207,MATCH(A6,masterlist!$C$2:$C$207,0)),\"\")","v":"Définition nationale d’un cas de rage animale "},{"$f":"IFERROR(INDEX(masterlist!$E$2:$E$207,MATCH(A6,masterlist!$C$2:$C$207,0)),\"\")","v":1},{"$f":"IFERROR(INDEX(masterlist!$G$2:$G$207,MATCH(A6,masterlist!$C$2:$C$207,0)),\"\")","v":"La définition d’un cas de rage animale a-t-elle été partagée avec tous les professionnels concernés ? "},{"$f":"IFERROR(INDEX(masterlist!$H$2:$H$207,MATCH(A6,masterlist!$C$2:$C$207,0)),\"\")","v":"Par ex., un vétérinaire du gouvernement serait-il en mesure d’énoncer à quelqu’un la définition d’un cas de rage à ce moment précis ? "},1,null,{"$f":"IFERROR(HYPERLINK(INDEX(masterlist!$M$2:$M$207,MATCH(A6,masterlist!$C$2:$C$207,0)),INDEX(masterlist!$L$2:$L$207,MATCH(A6,masterlist!$C$2:$C$207,0))),\"\")","v":"OIE Terrestrial Animal Health Code"},{"$f":"IFERROR(HYPERLINK(INDEX(masterlist!$O$2:$O$207,MATCH(A6,masterlist!$C$2:$C$207,0)),INDEX(masterlist!$N$2:$N$207,MATCH(A6,masterlist!$C$2:$C$207,0))),\"\")","v":0},{"$f":"IFERROR(HYPERLINK(INDEX(masterlist!$Q$2:$Q$207,MATCH(A6,masterlist!$C$2:$C$207,0)),INDEX(masterlist!$P$2:$P$207,MATCH(A6,masterlist!$C$2:$C$207,0))),\"\")","v":0},{"$f":"IFERROR(HYPERLINK(INDEX(masterlist!$S$2:$S$207,MATCH(A6,masterlist!$C$2:$C$207,0)),INDEX(masterlist!$R$2:$R$207,MATCH(A6,masterlist!$C$2:$C$207,0))),\"\")","v":0},{"$f":"IFERROR(HYPERLINK(INDEX(masterlist!$U$2:$U$207,MATCH(A6,masterlist!$C$2:$C$207,0)),INDEX(masterlist!$T$2:$T$207,MATCH(A6,masterlist!$C$2:$C$207,0))),\"\")","v":0}]
[{"$f":"IFERROR(INDEX(masterlist!$A$2:$F$207,SMALL(IF(masterlist!$B$2:$B$207=\"LEG\",ROW(masterlist!$A$2:$F$207)-1),ROW(3:3)),3),\"\")","v":"LEG-Déf-0-3"},{"$f":"IFERROR(INDEX(masterlist!$D$2:$D$207,MATCH(A7,masterlist!$C$2:$C$207,0)),\"\")","v":"Définition nationale d’un cas de rage humaine"},{"$f":"IFERROR(INDEX(masterlist!$E$2:$E$207,MATCH(A7,masterlist!$C$2:$C$207,0)),\"\")","v":0},{"$f":"IFERROR(INDEX(masterlist!$G$2:$G$207,MATCH(A7,masterlist!$C$2:$C$207,0)),\"\")","v":"Existe-t-il une définition de cas de rage humaine disponible qui soit compatible avec (ou semblable à) les directives de l’OMS ?"},{"$f":"IFERROR(INDEX(masterlist!$H$2:$H$207,MATCH(A7,masterlist!$C$2:$C$207,0)),\"\")","v":"La définition d’un cas de rage humaine recommandée par l’OMS est la suivante :\n« Un sujet présentant un syndrome neurologique aigu (encéphalite) dominé par des formes d’hyperactivité (rage furieuse) ou des signes de paralysie (rage paralytique) évoluant vers un coma et la mort, généralement par défaillance cardiaque ou respiratoire, typiquement dans les 7 à 10 jours suivant l’apparition des premiers signes »."},1,null,{"$f":"IFERROR(HYPERLINK(INDEX(masterlist!$M$2:$M$207,MATCH(A7,masterlist!$C$2:$C$207,0)),INDEX(masterlist!$L$2:$L$207,MATCH(A7,masterlist!$C$2:$C$207,0))),\"\")","v":"WHO expert consultation on rabies"},{"$f":"IFERROR(HYPERLINK(INDEX(masterlist!$O$2:$O$207,MATCH(A7,masterlist!$C$2:$C$207,0)),INDEX(masterlist!$N$2:$N$207,MATCH(A7,masterlist!$C$2:$C$207,0))),\"\")","v":0},{"$f":"IFERROR(HYPERLINK(INDEX(masterlist!$Q$2:$Q$207,MATCH(A7,masterlist!$C$2:$C$207,0)),INDEX(masterlist!$P$2:$P$207,MATCH(A7,masterlist!$C$2:$C$207,0))),\"\")","v":0},{"$f":"IFERROR(HYPERLINK(INDEX(masterlist!$S$2:$S$207,MATCH(A7,masterlist!$C$2:$C$207,0)),INDEX(masterlist!$R$2:$R$207,MATCH(A7,masterlist!$C$2:$C$207,0))),\"\")","v":0},{"$f":"IFERROR(HYPERLINK(INDEX(masterlist!$U$2:$U$207,MATCH(A7,masterlist!$C$2:$C$207,0)),INDEX(masterlist!$T$2:$T$207,MATCH(A7,masterlist!$C$2:$C$207,0))),\"\")","v":0}]
[{"$f":"IFERROR(INDEX(masterlist!$A$2:$F$207,SMALL(IF(masterlist!$B$2:$B$207=\"LEG\",ROW(masterlist!$A$2:$F$207)-1),ROW(4:4)),3),\"\")","v":"LEG-Déf-1-4"},{"$f":"IFERROR(INDEX(masterlist!$D$2:$D$207,MATCH(A8,masterlist!$C$2:$C$207,0)),\"\")","v":"Définition nationale d’un cas de rage humaine"},{"$f":"IFERROR(INDEX(masterlist!$E$2:$E$207,MATCH(A8,masterlist!$C$2:$C$207,0)),\"\")","v":1},{"$f":"IFERROR(INDEX(masterlist!$G$2:$G$207,MATCH(A8,masterlist!$C$2:$C$207,0)),\"\")","v":"La définition d’un cas de rage humaine a-t-elle été partagée avec tous les professionnels concernés ?"},{"$f":"IFERROR(INDEX(masterlist!$H$2:$H$207,MATCH(A8,masterlist!$C$2:$C$207,0)),\"\")","v":"Par ex., un médecin du gouvernement serait-il en mesure d’énoncer la définition d’un cas de rage à ce moment précis ?"},1,null,{"$f":"IFERROR(HYPERLINK(INDEX(masterlist!$M$2:$M$207,MATCH(A8,masterlist!$C$2:$C$207,0)),INDEX(masterlist!$L$2:$L$207,MATCH(A8,masterlist!$C$2:$C$207,0))),\"\")","v":"WHO expert consultation on rabies"},{"$f":"IFERROR(HYPERLINK(INDEX(masterlist!$O$2:$O$207,MATCH(A8,masterlist!$C$2:$C$207,0)),INDEX(masterlist!$N$2:$N$207,MATCH(A8,masterlist!$C$2:$C$207,0))),\"\")","v":0},{"$f":"IFERROR(HYPERLINK(INDEX(masterlist!$Q$2:$Q$207,MATCH(A8,masterlist!$C$2:$C$207,0)),INDEX(masterlist!$P$2:$P$207,MATCH(A8,masterlist!$C$2:$C$207,0))),\"\")","v":0},{"$f":"IFERROR(HYPERLINK(INDEX(masterlist!$S$2:$S$207,MATCH(A8,masterlist!$C$2:$C$207,0)),INDEX(masterlist!$R$2:$R$207,MATCH(A8,masterlist!$C$2:$C$207,0))),\"\")","v":0},{"$f":"IFERROR(HYPERLINK(INDEX(masterlist!$U$2:$U$207,MATCH(A8,masterlist!$C$2:$C$207,0)),INDEX(masterlist!$T$2:$T$207,MATCH(A8,masterlist!$C$2:$C$207,0))),\"\")","v":0}]
[{"$f":"IFERROR(INDEX(masterlist!$A$2:$F$207,SMALL(IF(masterlist!$B$2:$B$207=\"LEG\",ROW(masterlist!$A$2:$F$207)-1),ROW(5:5)),3),\"\")","v":"LEG-Cad-1-5"},{"$f":"IFERROR(INDEX(masterlist!$D$2:$D$207,MATCH(A9,masterlist!$C$2:$C$207,0)),\"\")","v":"Cadre légal"},{"$f":"IFERROR(INDEX(masterlist!$E$2:$E$207,MATCH(A9,masterlist!$C$2:$C$207,0)),\"\")","v":1},{"$f":"IFERROR(INDEX(masterlist!$G$2:$G$207,MATCH(A9,masterlist!$C$2:$C$207,0)),\"\")","v":"Existe-t-il une législation nationale relative à la prévention et à la lutte contre la rage ?"},{"$f":"IFERROR(INDEX(masterlist!$H$2:$H$207,MATCH(A9,masterlist!$C$2:$C$207,0)),\"\")","v":"Par exemple : les journaux gouvernementaux ; une loi sur les animaux ; des lois sur la vaccination obligatoire ; etc.\n\nVous ne pouvez PAS répondre « Oui » si votre législation ne concerne que l'abattage des chiens.\n\nTitre du cadre législatif et année d'adoption ?"},1,null,{"$f":"IFERROR(HYPERLINK(INDEX(masterlist!$M$2:$M$207,MATCH(A9,masterlist!$C$2:$C$207,0)),INDEX(masterlist!$L$2:$L$207,MATCH(A9,masterlist!$C$2:$C$207,0))),\"\")","v":"3.2. Legislation"},{"$f":"IFERROR(HYPERLINK(INDEX(masterlist!$O$2:$O$207,MATCH(A9,masterlist!$C$2:$C$207,0)),INDEX(masterlist!$N$2:$N$207,MATCH(A9,masterlist!$C$2:$C$207,0))),\"\")","v":0},{"$f":"IFERROR(HYPERLINK(INDEX(masterlist!$Q$2:$Q$207,MATCH(A9,masterlist!$C$2:$C$207,0)),INDEX(masterlist!$P$2:$P$207,MATCH(A9,masterlist!$C$2:$C$207,0))),\"\")","v":0},{"$f":"IFERROR(HYPERLINK(INDEX(masterlist!$S$2:$S$207,MATCH(A9,masterlist!$C$2:$C$207,0)),INDEX(masterlist!$R$2:$R$207,MATCH(A9,masterlist!$C$2:$C$207,0))),\"\")","v":0},{"$f":"IFERROR(HYPERLINK(INDEX(masterlist!$U$2:$U$207,MATCH(A9,masterlist!$C$2:$C$207,0)),INDEX(masterlist!$T$2:$T$207,MATCH(A9,masterlist!$C$2:$C$207,0))),\"\")","v":0}]
[{"$f":"IFERROR(INDEX(masterlist!$A$2:$F$207,SMALL(IF(masterlist!$B$2:$B$207=\"LEG\",ROW(masterlist!$A$2:$F$207)-1),ROW(6:6)),3),\"\")","v":"LEG-Cad-1-6"},{"$f":"IFERROR(INDEX(masterlist!$D$2:$D$207,MATCH(A10,masterlist!$C$2:$C$207,0)),\"\")","v":"Cadre légal"},{"$f":"IFERROR(INDEX(masterlist!$E$2:$E$207,MATCH(A10,masterlist!$C$2:$C$207,0)),\"\")","v":1},{"$f":"IFERROR(INDEX(masterlist!$G$2:$G$207,MATCH(A10,masterlist!$C$2:$C$207,0)),\"\")","v":"S'il existe une législation, a-t-elle été révisée et mise à jour (si nécessaire) ?"},{"$f":"IFERROR(INDEX(masterlist!$H$2:$H$207,MATCH(A10,masterlist!$C$2:$C$207,0)),\"\")","v":"Si la législation est récente ou nouvelle et appropriée, vous pouvez répondre “Oui”. "},1,null,{"$f":"IFERROR(HYPERLINK(INDEX(masterlist!$M$2:$M$207,MATCH(A10,masterlist!$C$2:$C$207,0)),INDEX(masterlist!$L$2:$L$207,MATCH(A10,masterlist!$C$2:$C$207,0))),\"\")","v":"3.2. Legislation"},{"$f":"IFERROR(HYPERLINK(INDEX(masterlist!$O$2:$O$207,MATCH(A10,masterlist!$C$2:$C$207,0)),INDEX(masterlist!$N$2:$N$207,MATCH(A10,masterlist!$C$2:$C$207,0))),\"\")","v":0},{"$f":"IFERROR(HYPERLINK(INDEX(masterlist!$Q$2:$Q$207,MATCH(A10,masterlist!$C$2:$C$207,0)),INDEX(masterlist!$P$2:$P$207,MATCH(A10,masterlist!$C$2:$C$207,0))),\"\")","v":0},{"$f":"IFERROR(HYPERLINK(INDEX(masterlist!$S$2:$S$207,MATCH(A10,masterlist!$C$2:$C$207,0)),INDEX(masterlist!$R$2:$R$207,MATCH(A10,masterlist!$C$2:$C$207,0))),\"\")","v":0},{"$f":"IFERROR(HYPERLINK(INDEX(masterlist!$U$2:$U$207,MATCH(A10,masterlist!$C$2:$C$207,0)),INDEX(masterlist!$T$2:$T$207,MATCH(A10,masterlist!$C$2:$C$207,0))),\"\")","v":0}]
[{"$f":"IFERROR(INDEX(masterlist!$A$2:$F$207,SMALL(IF(masterlist!$B$2:$B$207=\"LEG\",ROW(masterlist!$A$2:$F$207)-1),ROW(7:7)),3),\"\")","v":"LEG-Cad-1-7"},{"$f":"IFERROR(INDEX(masterlist!$D$2:$D$207,MATCH(A11,masterlist!$C$2:$C$207,0)),\"\")","v":"Cadre légal"},{"$f":"IFERROR(INDEX(masterlist!$E$2:$E$207,MATCH(A11,masterlist!$C$2:$C$207,0)),\"\")","v":1},{"$f":"IFERROR(INDEX(masterlist!$G$2:$G$207,MATCH(A11,masterlist!$C$2:$C$207,0)),\"\")","v":"La rage est-elle devenue une maladie à déclaration obligatoire chez les animaux ? "},{"$f":"IFERROR(INDEX(masterlist!$H$2:$H$207,MATCH(A11,masterlist!$C$2:$C$207,0)),\"\")","v":" "},1,null,{"$f":"IFERROR(HYPERLINK(INDEX(masterlist!$M$2:$M$207,MATCH(A11,masterlist!$C$2:$C$207,0)),INDEX(masterlist!$L$2:$L$207,MATCH(A11,masterlist!$C$2:$C$207,0))),\"\")","v":"3.2. Legislation"},{"$f":"IFERROR(HYPERLINK(INDEX(masterlist!$O$2:$O$207,MATCH(A11,masterlist!$C$2:$C$207,0)),INDEX(masterlist!$N$2:$N$207,MATCH(A11,masterlist!$C$2:$C$207,0))),\"\")","v":"3.2.3-Why-does-rabies-need-to-be-notifiable"},{"$f":"IFERROR(HYPERLINK(INDEX(masterlist!$Q$2:$Q$207,MATCH(A11,masterlist!$C$2:$C$207,0)),INDEX(masterlist!$P$2:$P$207,MATCH(A11,masterlist!$C$2:$C$207,0))),\"\")","v":"OIE Terrestrial Animal Health Code"},{"$f":"IFERROR(HYPERLINK(INDEX(masterlist!$S$2:$S$207,MATCH(A11,masterlist!$C$2:$C$207,0)),INDEX(masterlist!$R$2:$R$207,MATCH(A11,masterlist!$C$2:$C$207,0))),\"\")","v":"3.2.9-How-to-make-rabies-notifiable"},{"$f":"IFERROR(HYPERLINK(INDEX(masterlist!$U$2:$U$207,MATCH(A11,masterlist!$C$2:$C$207,0)),INDEX(masterlist!$T$2:$T$207,MATCH(A11,masterlist!$C$2:$C$207,0))),\"\")","v":0}]
[{"$f":"IFERROR(INDEX(masterlist!$A$2:$F$207,SMALL(IF(masterlist!$B$2:$B$207=\"LEG\",ROW(masterlist!$A$2:$F$207)-1),ROW(8:8)),3),\"\")","v":"LEG-Cad-1-8"},{"$f":"IFERROR(INDEX(masterlist!$D$2:$D$207,MATCH(A12,masterlist!$C$2:$C$207,0)),\"\")","v":"Cadre légal"},{"$f":"IFERROR(INDEX(masterlist!$E$2:$E$207,MATCH(A12,masterlist!$C$2:$C$207,0)),\"\")","v":1},{"$f":"IFERROR(INDEX(masterlist!$G$2:$G$207,MATCH(A12,masterlist!$C$2:$C$207,0)),\"\")","v":"La rage est-elle devenue une maladie à déclaration obligatoire chez les l’humain ?"},{"$f":"IFERROR(INDEX(masterlist!$H$2:$H$207,MATCH(A12,masterlist!$C$2:$C$207,0)),\"\")","v":" "},1,null,{"$f":"IFERROR(HYPERLINK(INDEX(masterlist!$M$2:$M$207,MATCH(A12,masterlist!$C$2:$C$207,0)),INDEX(masterlist!$L$2:$L$207,MATCH(A12,masterlist!$C$2:$C$207,0))),\"\")","v":"3.2. Legislation"},{"$f":"IFERROR(HYPERLINK(INDEX(masterlist!$O$2:$O$207,MATCH(A12,masterlist!$C$2:$C$207,0)),INDEX(masterlist!$N$2:$N$207,MATCH(A12,masterlist!$C$2:$C$207,0))),\"\")","v":"3.2.3-Why-does-rabies-need-to-be-notifiable"},{"$f":"IFERROR(HYPERLINK(INDEX(masterlist!$Q$2:$Q$207,MATCH(A12,masterlist!$C$2:$C$207,0)),INDEX(masterlist!$P$2:$P$207,MATCH(A12,masterlist!$C$2:$C$207,0))),\"\")","v":"WHO expert consultation on rabies"},{"$f":"IFERROR(HYPERLINK(INDEX(masterlist!$S$2:$S$207,MATCH(A12,masterlist!$C$2:$C$207,0)),INDEX(masterlist!$R$2:$R$207,MATCH(A12,masterlist!$C$2:$C$207,0))),\"\")","v":"3.2.9-How-to-make-rabies-notifiable"},{"$f":"IFERROR(HYPERLINK(INDEX(masterlist!$U$2:$U$207,MATCH(A12,masterlist!$C$2:$C$207,0)),INDEX(masterlist!$T$2:$T$207,MATCH(A12,masterlist!$C$2:$C$207,0))),\"\")","v":0}]
[{"$f":"IFERROR(INDEX(masterlist!$A$2:$F$207,SMALL(IF(masterlist!$B$2:$B$207=\"LEG\",ROW(masterlist!$A$2:$F$207)-1),ROW(9:9)),3),\"\")","v":"LEG-Cad-1-9"},{"$f":"IFERROR(INDEX(masterlist!$D$2:$D$207,MATCH(A13,masterlist!$C$2:$C$207,0)),\"\")","v":"Cadre légal"},{"$f":"IFERROR(INDEX(masterlist!$E$2:$E$207,MATCH(A13,masterlist!$C$2:$C$207,0)),\"\")","v":1},{"$f":"IFERROR(INDEX(masterlist!$G$2:$G$207,MATCH(A13,masterlist!$C$2:$C$207,0)),\"\")","v":"La législation prévoit-elle des mesures d'intervention en cas d'épidémie de rage ?"},{"$f":"IFERROR(INDEX(masterlist!$H$2:$H$207,MATCH(A13,masterlist!$C$2:$C$207,0)),\"\")","v":" "},1,null,{"$f":"IFERROR(HYPERLINK(INDEX(masterlist!$M$2:$M$207,MATCH(A13,masterlist!$C$2:$C$207,0)),INDEX(masterlist!$L$2:$L$207,MATCH(A13,masterlist!$C$2:$C$207,0))),\"\")","v":0},{"$f":"IFERROR(HYPERLINK(INDEX(masterlist!$O$2:$O$207,MATCH(A13,masterlist!$C$2:$C$207,0)),INDEX(masterlist!$N$2:$N$207,MATCH(A13,masterlist!$C$2:$C$207,0))),\"\")","v":0},{"$f":"IFERROR(HYPERLINK(INDEX(masterlist!$Q$2:$Q$207,MATCH(A13,masterlist!$C$2:$C$207,0)),INDEX(masterlist!$P$2:$P$207,MATCH(A13,masterlist!$C$2:$C$207,0))),\"\")","v":0},{"$f":"IFERROR(HYPERLINK(INDEX(masterlist!$S$2:$S$207,MATCH(A13,masterlist!$C$2:$C$207,0)),INDEX(masterlist!$R$2:$R$207,MATCH(A13,masterlist!$C$2:$C$207,0))),\"\")","v":0},{"$f":"IFERROR(HYPERLINK(INDEX(masterlist!$U$2:$U$207,MATCH(A13,masterlist!$C$2:$C$207,0)),INDEX(masterlist!$T$2:$T$207,MATCH(A13,masterlist!$C$2:$C$207,0))),\"\")","v":0}]
[{"$f":"IFERROR(INDEX(masterlist!$A$2:$F$207,SMALL(IF(masterlist!$B$2:$B$207=\"LEG\",ROW(masterlist!$A$2:$F$207)-1),ROW(10:10)),3),\"\")","v":"LEG-Cad-2-10"},{"$f":"IFERROR(INDEX(masterlist!$D$2:$D$207,MATCH(A14,masterlist!$C$2:$C$207,0)),\"\")","v":"Cadre légal"},{"$f":"IFERROR(INDEX(masterlist!$E$2:$E$207,MATCH(A14,masterlist!$C$2:$C$207,0)),\"\")","v":2},{"$f":"IFERROR(INDEX(masterlist!$G$2:$G$207,MATCH(A14,masterlist!$C$2:$C$207,0)),\"\")","v":"La législation relative aux vaccins homologués au niveau national reflète-t-elle les lignes directrices internationales ?"},{"$f":"IFERROR(INDEX(masterlist!$H$2:$H$207,MATCH(A14,masterlist!$C$2:$C$207,0)),\"\")","v":"La législation nationale doit garantir que les vaccins contre la rage humaine sont des vaccins préqualifiés par l’OMS et que les vaccins contre la rage animale sont conformes aux normes de l’OMSA pour les vaccins de haute qualité."},0,"vaccin animal (est importe) repond aux normes internationales en cas de manque utilisation de vaccin fabrique par l'insitut Pasteur. Le vaccin pour humains produit en Algerie ne repond pas aux normes OMS (utilise a 30%), vaccin humain reponds aux normes a 70%. ",{"$f":"IFERROR(HYPERLINK(INDEX(masterlist!$M$2:$M$207,MATCH(A14,masterlist!$C$2:$C$207,0)),INDEX(masterlist!$L$2:$L$207,MATCH(A14,masterlist!$C$2:$C$207,0))),\"\")","v":0},{"$f":"IFERROR(HYPERLINK(INDEX(masterlist!$O$2:$O$207,MATCH(A14,masterlist!$C$2:$C$207,0)),INDEX(masterlist!$N$2:$N$207,MATCH(A14,masterlist!$C$2:$C$207,0))),\"\")","v":0},{"$f":"IFERROR(HYPERLINK(INDEX(masterlist!$Q$2:$Q$207,MATCH(A14,masterlist!$C$2:$C$207,0)),INDEX(masterlist!$P$2:$P$207,MATCH(A14,masterlist!$C$2:$C$207,0))),\"\")","v":0},{"$f":"IFERROR(HYPERLINK(INDEX(masterlist!$S$2:$S$207,MATCH(A14,masterlist!$C$2:$C$207,0)),INDEX(masterlist!$R$2:$R$207,MATCH(A14,masterlist!$C$2:$C$207,0))),\"\")","v":0},{"$f":"IFERROR(HYPERLINK(INDEX(masterlist!$U$2:$U$207,MATCH(A14,masterlist!$C$2:$C$207,0)),INDEX(masterlist!$T$2:$T$207,MATCH(A14,masterlist!$C$2:$C$207,0))),\"\")","v":0}]
[{"$f":"IFERROR(INDEX(masterlist!$A$2:$F$207,SMALL(IF(masterlist!$B$2:$B$207=\"LEG\",ROW(masterlist!$A$2:$F$207)-1),ROW(11:11)),3),\"\")","v":"LEG-Cad-3-11"},{"$f":"IFERROR(INDEX(masterlist!$D$2:$D$207,MATCH(A15,masterlist!$C$2:$C$207,0)),\"\")","v":"Cadre légal"},{"$f":"IFERROR(INDEX(masterlist!$E$2:$E$207,MATCH(A15,masterlist!$C$2:$C$207,0)),\"\")","v":3},{"$f":"IFERROR(INDEX(masterlist!$G$2:$G$207,MATCH(A15,masterlist!$C$2:$C$207,0)),\"\")","v":"Existe-t-il une législation comportant des dispositions relatives aux mouvements internationaux de chiens (y compris la vaccination obligatoire de ces chiens) ?"},{"$f":"IFERROR(INDEX(masterlist!$H$2:$H$207,MATCH(A15,masterlist!$C$2:$C$207,0)),\"\")","v":" "},1,null,{"$f":"IFERROR(HYPERLINK(INDEX(masterlist!$M$2:$M$207,MATCH(A15,masterlist!$C$2:$C$207,0)),INDEX(masterlist!$L$2:$L$207,MATCH(A15,masterlist!$C$2:$C$207,0))),\"\")","v":"General-guide-on-veterinary legislation"},{"$f":"IFERROR(HYPERLINK(INDEX(masterlist!$O$2:$O$207,MATCH(A15,masterlist!$C$2:$C$207,0)),INDEX(masterlist!$N$2:$N$207,MATCH(A15,masterlist!$C$2:$C$207,0))),\"\")","v":"3.2.11- laws-and-by-laws"},{"$f":"IFERROR(HYPERLINK(INDEX(masterlist!$Q$2:$Q$207,MATCH(A15,masterlist!$C$2:$C$207,0)),INDEX(masterlist!$P$2:$P$207,MATCH(A15,masterlist!$C$2:$C$207,0))),\"\")","v":0},{"$f":"IFERROR(HYPERLINK(INDEX(masterlist!$S$2:$S$207,MATCH(A15,masterlist!$C$2:$C$207,0)),INDEX(masterlist!$R$2:$R$207,MATCH(A15,masterlist!$C$2:$C$207,0))),\"\")","v":0},{"$f":"IFERROR(HYPERLINK(INDEX(masterlist!$U$2:$U$207,MATCH(A15,masterlist!$C$2:$C$207,0)),INDEX(masterlist!$T$2:$T$207,MATCH(A15,masterlist!$C$2:$C$207,0))),\"\")","v":0}]
[{"$f":"IFERROR(INDEX(masterlist!$A$2:$F$207,SMALL(IF(masterlist!$B$2:$B$207=\"LEG\",ROW(masterlist!$A$2:$F$207)-1),ROW(12:12)),3),\"\")","v":"LEG-Cad-3-12"},{"$f":"IFERROR(INDEX(masterlist!$D$2:$D$207,MATCH(A16,masterlist!$C$2:$C$207,0)),\"\")","v":"Cadre légal"},{"$f":"IFERROR(INDEX(masterlist!$E$2:$E$207,MATCH(A16,masterlist!$C$2:$C$207,0)),\"\")","v":3},{"$f":"IFERROR(INDEX(masterlist!$G$2:$G$207,MATCH(A16,masterlist!$C$2:$C$207,0)),\"\")","v":"La législation pertinente est-elle appliquée au niveau national ?"},{"$f":"IFERROR(INDEX(masterlist!$H$2:$H$207,MATCH(A16,masterlist!$C$2:$C$207,0)),\"\")","v":"Vous ne pouvez répondre « Oui » que si la législation qui existe dans le pays est réellement mise en œuvre et appliquée au niveau national."},1,null,{"$f":"IFERROR(HYPERLINK(INDEX(masterlist!$M$2:$M$207,MATCH(A16,masterlist!$C$2:$C$207,0)),INDEX(masterlist!$L$2:$L$207,MATCH(A16,masterlist!$C$2:$C$207,0))),\"\")","v":0},{"$f":"IFERROR(HYPERLINK(INDEX(masterlist!$O$2:$O$207,MATCH(A16,masterlist!$C$2:$C$207,0)),INDEX(masterlist!$N$2:$N$207,MATCH(A16,masterlist!$C$2:$C$207,0))),\"\")","v":0},{"$f":"IFERROR(HYPERLINK(INDEX(masterlist!$Q$2:$Q$207,MATCH(A16,masterlist!$C$2:$C$207,0)),INDEX(masterlist!$P$2:$P$207,MATCH(A16,masterlist!$C$2:$C$207,0))),\"\")","v":0},{"$f":"IFERROR(HYPERLINK(INDEX(masterlist!$S$2:$S$207,MATCH(A16,masterlist!$C$2:$C$207,0)),INDEX(masterlist!$R$2:$R$207,MATCH(A16,masterlist!$C$2:$C$207,0))),\"\")","v":0},{"$f":"IFERROR(HYPERLINK(INDEX(masterlist!$U$2:$U$207,MATCH(A16,masterlist!$C$2:$C$207,0)),INDEX(masterlist!$T$2:$T$207,MATCH(A16,masterlist!$C$2:$C$207,0))),\"\")","v":0}]
[{"$f":"IFERROR(INDEX(masterlist!$A$2:$F$207,SMALL(IF(masterlist!$B$2:$B$207=\"LEG\",ROW(masterlist!$A$2:$F$207)-1),ROW(13:13)),3),\"\")","v":""},{"$f":"IFERROR(INDEX(masterlist!$D$2:$D$207,MATCH(A17,masterlist!$C$2:$C$207,0)),\"\")","v":""},{"$f":"IFERROR(INDEX(masterlist!$E$2:$E$207,MATCH(A17,masterlist!$C$2:$C$207,0)),\"\")","v":""},{"$f":"IFERROR(INDEX(masterlist!$G$2:$G$207,MATCH(A17,masterlist!$C$2:$C$207,0)),\"\")","v":""},{"$f":"IFERROR(INDEX(masterlist!$H$2:$H$207,MATCH(A17,masterlist!$C$2:$C$207,0)),\"\")","v":""},null,null,{"$f":"IFERROR(HYPERLINK(INDEX(masterlist!$M$2:$M$207,MATCH(A17,masterlist!$C$2:$C$207,0)),INDEX(masterlist!$L$2:$L$207,MATCH(A17,masterlist!$C$2:$C$207,0))),\"\")","v":""},{"$f":"IFERROR(HYPERLINK(INDEX(masterlist!$O$2:$O$207,MATCH(A17,masterlist!$C$2:$C$207,0)),INDEX(masterlist!$N$2:$N$207,MATCH(A17,masterlist!$C$2:$C$207,0))),\"\")","v":""},{"$f":"IFERROR(HYPERLINK(INDEX(masterlist!$Q$2:$Q$207,MATCH(A17,masterlist!$C$2:$C$207,0)),INDEX(masterlist!$P$2:$P$207,MATCH(A17,masterlist!$C$2:$C$207,0))),\"\")","v":""},{"$f":"IFERROR(HYPERLINK(INDEX(masterlist!$S$2:$S$207,MATCH(A17,masterlist!$C$2:$C$207,0)),INDEX(masterlist!$R$2:$R$207,MATCH(A17,masterlist!$C$2:$C$207,0))),\"\")","v":""},{"$f":"IFERROR(HYPERLINK(INDEX(masterlist!$U$2:$U$207,MATCH(A17,masterlist!$C$2:$C$207,0)),INDEX(masterlist!$T$2:$T$207,MATCH(A17,masterlist!$C$2:$C$207,0))),\"\")","v":""}]
[{"$f":"IFERROR(INDEX(masterlist!$A$2:$F$207,SMALL(IF(masterlist!$B$2:$B$207=\"LEG\",ROW(masterlist!$A$2:$F$207)-1),ROW(14:14)),3),\"\")","v":""},{"$f":"IFERROR(INDEX(masterlist!$D$2:$D$207,MATCH(A18,masterlist!$C$2:$C$207,0)),\"\")","v":""},{"$f":"IFERROR(INDEX(masterlist!$E$2:$E$207,MATCH(A18,masterlist!$C$2:$C$207,0)),\"\")","v":""},{"$f":"IFERROR(INDEX(masterlist!$G$2:$G$207,MATCH(A18,masterlist!$C$2:$C$207,0)),\"\")","v":""},{"$f":"IFERROR(INDEX(masterlist!$H$2:$H$207,MATCH(A18,masterlist!$C$2:$C$207,0)),\"\")","v":""},null,null,{"$f":"IFERROR(HYPERLINK(INDEX(masterlist!$M$2:$M$207,MATCH(A18,masterlist!$C$2:$C$207,0)),INDEX(masterlist!$L$2:$L$207,MATCH(A18,masterlist!$C$2:$C$207,0))),\"\")","v":""},{"$f":"IFERROR(HYPERLINK(INDEX(masterlist!$O$2:$O$207,MATCH(A18,masterlist!$C$2:$C$207,0)),INDEX(masterlist!$N$2:$N$207,MATCH(A18,masterlist!$C$2:$C$207,0))),\"\")","v":""},{"$f":"IFERROR(HYPERLINK(INDEX(masterlist!$Q$2:$Q$207,MATCH(A18,masterlist!$C$2:$C$207,0)),INDEX(masterlist!$P$2:$P$207,MATCH(A18,masterlist!$C$2:$C$207,0))),\"\")","v":""},{"$f":"IFERROR(HYPERLINK(INDEX(masterlist!$S$2:$S$207,MATCH(A18,masterlist!$C$2:$C$207,0)),INDEX(masterlist!$R$2:$R$207,MATCH(A18,masterlist!$C$2:$C$207,0))),\"\")","v":""},{"$f":"IFERROR(HYPERLINK(INDEX(masterlist!$U$2:$U$207,MATCH(A18,masterlist!$C$2:$C$207,0)),INDEX(masterlist!$T$2:$T$207,MATCH(A18,masterlist!$C$2:$C$207,0))),\"\")","v":""}]
[{"$f":"IFERROR(INDEX(masterlist!$A$2:$F$207,SMALL(IF(masterlist!$B$2:$B$207=\"LEG\",ROW(masterlist!$A$2:$F$207)-1),ROW(15:15)),3),\"\")","v":""},{"$f":"IFERROR(INDEX(masterlist!$D$2:$D$207,MATCH(A19,masterlist!$C$2:$C$207,0)),\"\")","v":""},{"$f":"IFERROR(INDEX(masterlist!$E$2:$E$207,MATCH(A19,masterlist!$C$2:$C$207,0)),\"\")","v":""},{"$f":"IFERROR(INDEX(masterlist!$G$2:$G$207,MATCH(A19,masterlist!$C$2:$C$207,0)),\"\")","v":""},{"$f":"IFERROR(INDEX(masterlist!$H$2:$H$207,MATCH(A19,masterlist!$C$2:$C$207,0)),\"\")","v":""},null,null,{"$f":"IFERROR(HYPERLINK(INDEX(masterlist!$M$2:$M$207,MATCH(A19,masterlist!$C$2:$C$207,0)),INDEX(masterlist!$L$2:$L$207,MATCH(A19,masterlist!$C$2:$C$207,0))),\"\")","v":""},{"$f":"IFERROR(HYPERLINK(INDEX(masterlist!$O$2:$O$207,MATCH(A19,masterlist!$C$2:$C$207,0)),INDEX(masterlist!$N$2:$N$207,MATCH(A19,masterlist!$C$2:$C$207,0))),\"\")","v":""},{"$f":"IFERROR(HYPERLINK(INDEX(masterlist!$Q$2:$Q$207,MATCH(A19,masterlist!$C$2:$C$207,0)),INDEX(masterlist!$P$2:$P$207,MATCH(A19,masterlist!$C$2:$C$207,0))),\"\")","v":""},{"$f":"IFERROR(HYPERLINK(INDEX(masterlist!$S$2:$S$207,MATCH(A19,masterlist!$C$2:$C$207,0)),INDEX(masterlist!$R$2:$R$207,MATCH(A19,masterlist!$C$2:$C$207,0))),\"\")","v":""},{"$f":"IFERROR(HYPERLINK(INDEX(masterlist!$U$2:$U$207,MATCH(A19,masterlist!$C$2:$C$207,0)),INDEX(masterlist!$T$2:$T$207,MATCH(A19,masterlist!$C$2:$C$207,0))),\"\")","v":""}]
[{"$f":"IFERROR(INDEX(masterlist!$A$2:$F$207,SMALL(IF(masterlist!$B$2:$B$207=\"LEG\",ROW(masterlist!$A$2:$F$207)-1),ROW(16:16)),3),\"\")","v":""},{"$f":"IFERROR(INDEX(masterlist!$D$2:$D$207,MATCH(A20,masterlist!$C$2:$C$207,0)),\"\")","v":""},{"$f":"IFERROR(INDEX(masterlist!$E$2:$E$207,MATCH(A20,masterlist!$C$2:$C$207,0)),\"\")","v":""},{"$f":"IFERROR(INDEX(masterlist!$G$2:$G$207,MATCH(A20,masterlist!$C$2:$C$207,0)),\"\")","v":""},{"$f":"IFERROR(INDEX(masterlist!$H$2:$H$207,MATCH(A20,masterlist!$C$2:$C$207,0)),\"\")","v":""},null,null,{"$f":"IFERROR(HYPERLINK(INDEX(masterlist!$M$2:$M$207,MATCH(A20,masterlist!$C$2:$C$207,0)),INDEX(masterlist!$L$2:$L$207,MATCH(A20,masterlist!$C$2:$C$207,0))),\"\")","v":""},{"$f":"IFERROR(HYPERLINK(INDEX(masterlist!$O$2:$O$207,MATCH(A20,masterlist!$C$2:$C$207,0)),INDEX(masterlist!$N$2:$N$207,MATCH(A20,masterlist!$C$2:$C$207,0))),\"\")","v":""},{"$f":"IFERROR(HYPERLINK(INDEX(masterlist!$Q$2:$Q$207,MATCH(A20,masterlist!$C$2:$C$207,0)),INDEX(masterlist!$P$2:$P$207,MATCH(A20,masterlist!$C$2:$C$207,0))),\"\")","v":""},{"$f":"IFERROR(HYPERLINK(INDEX(masterlist!$S$2:$S$207,MATCH(A20,masterlist!$C$2:$C$207,0)),INDEX(masterlist!$R$2:$R$207,MATCH(A20,masterlist!$C$2:$C$207,0))),\"\")","v":""},{"$f":"IFERROR(HYPERLINK(INDEX(masterlist!$U$2:$U$207,MATCH(A20,masterlist!$C$2:$C$207,0)),INDEX(masterlist!$T$2:$T$207,MATCH(A20,masterlist!$C$2:$C$207,0))),\"\")","v":""}]
[{"$f":"IFERROR(INDEX(masterlist!$A$2:$F$207,SMALL(IF(masterlist!$B$2:$B$207=\"LEG\",ROW(masterlist!$A$2:$F$207)-1),ROW(17:17)),3),\"\")","v":""},{"$f":"IFERROR(INDEX(masterlist!$D$2:$D$207,MATCH(A21,masterlist!$C$2:$C$207,0)),\"\")","v":""},{"$f":"IFERROR(INDEX(masterlist!$E$2:$E$207,MATCH(A21,masterlist!$C$2:$C$207,0)),\"\")","v":""},{"$f":"IFERROR(INDEX(masterlist!$G$2:$G$207,MATCH(A21,masterlist!$C$2:$C$207,0)),\"\")","v":""},{"$f":"IFERROR(INDEX(masterlist!$H$2:$H$207,MATCH(A21,masterlist!$C$2:$C$207,0)),\"\")","v":""},null,null,{"$f":"IFERROR(HYPERLINK(INDEX(masterlist!$M$2:$M$207,MATCH(A21,masterlist!$C$2:$C$207,0)),INDEX(masterlist!$L$2:$L$207,MATCH(A21,masterlist!$C$2:$C$207,0))),\"\")","v":""},{"$f":"IFERROR(HYPERLINK(INDEX(masterlist!$O$2:$O$207,MATCH(A21,masterlist!$C$2:$C$207,0)),INDEX(masterlist!$N$2:$N$207,MATCH(A21,masterlist!$C$2:$C$207,0))),\"\")","v":""},{"$f":"IFERROR(HYPERLINK(INDEX(masterlist!$Q$2:$Q$207,MATCH(A21,masterlist!$C$2:$C$207,0)),INDEX(masterlist!$P$2:$P$207,MATCH(A21,masterlist!$C$2:$C$207,0))),\"\")","v":""},{"$f":"IFERROR(HYPERLINK(INDEX(masterlist!$S$2:$S$207,MATCH(A21,masterlist!$C$2:$C$207,0)),INDEX(masterlist!$R$2:$R$207,MATCH(A21,masterlist!$C$2:$C$207,0))),\"\")","v":""},{"$f":"IFERROR(HYPERLINK(INDEX(masterlist!$U$2:$U$207,MATCH(A21,masterlist!$C$2:$C$207,0)),INDEX(masterlist!$T$2:$T$207,MATCH(A21,masterlist!$C$2:$C$207,0))),\"\")","v":""}]
[{"$f":"IFERROR(INDEX(masterlist!$A$2:$F$207,SMALL(IF(masterlist!$B$2:$B$207=\"LEG\",ROW(masterlist!$A$2:$F$207)-1),ROW(18:18)),3),\"\")","v":""},{"$f":"IFERROR(INDEX(masterlist!$D$2:$D$207,MATCH(A22,masterlist!$C$2:$C$207,0)),\"\")","v":""},{"$f":"IFERROR(INDEX(masterlist!$E$2:$E$207,MATCH(A22,masterlist!$C$2:$C$207,0)),\"\")","v":""},{"$f":"IFERROR(INDEX(masterlist!$G$2:$G$207,MATCH(A22,masterlist!$C$2:$C$207,0)),\"\")","v":""},{"$f":"IFERROR(INDEX(masterlist!$H$2:$H$207,MATCH(A22,masterlist!$C$2:$C$207,0)),\"\")","v":""},null,null,{"$f":"IFERROR(HYPERLINK(INDEX(masterlist!$M$2:$M$207,MATCH(A22,masterlist!$C$2:$C$207,0)),INDEX(masterlist!$L$2:$L$207,MATCH(A22,masterlist!$C$2:$C$207,0))),\"\")","v":""},{"$f":"IFERROR(HYPERLINK(INDEX(masterlist!$O$2:$O$207,MATCH(A22,masterlist!$C$2:$C$207,0)),INDEX(masterlist!$N$2:$N$207,MATCH(A22,masterlist!$C$2:$C$207,0))),\"\")","v":""},{"$f":"IFERROR(HYPERLINK(INDEX(masterlist!$Q$2:$Q$207,MATCH(A22,masterlist!$C$2:$C$207,0)),INDEX(masterlist!$P$2:$P$207,MATCH(A22,masterlist!$C$2:$C$207,0))),\"\")","v":""},{"$f":"IFERROR(HYPERLINK(INDEX(masterlist!$S$2:$S$207,MATCH(A22,masterlist!$C$2:$C$207,0)),INDEX(masterlist!$R$2:$R$207,MATCH(A22,masterlist!$C$2:$C$207,0))),\"\")","v":""},{"$f":"IFERROR(HYPERLINK(INDEX(masterlist!$U$2:$U$207,MATCH(A22,masterlist!$C$2:$C$207,0)),INDEX(masterlist!$T$2:$T$207,MATCH(A22,masterlist!$C$2:$C$207,0))),\"\")","v":""}]
[{"$f":"IFERROR(INDEX(masterlist!$A$2:$F$207,SMALL(IF(masterlist!$B$2:$B$207=\"LEG\",ROW(masterlist!$A$2:$F$207)-1),ROW(19:19)),3),\"\")","v":""},{"$f":"IFERROR(INDEX(masterlist!$D$2:$D$207,MATCH(A23,masterlist!$C$2:$C$207,0)),\"\")","v":""},{"$f":"IFERROR(INDEX(masterlist!$E$2:$E$207,MATCH(A23,masterlist!$C$2:$C$207,0)),\"\")","v":""},{"$f":"IFERROR(INDEX(masterlist!$G$2:$G$207,MATCH(A23,masterlist!$C$2:$C$207,0)),\"\")","v":""},{"$f":"IFERROR(INDEX(masterlist!$H$2:$H$207,MATCH(A23,masterlist!$C$2:$C$207,0)),\"\")","v":""},null,null,{"$f":"IFERROR(HYPERLINK(INDEX(masterlist!$M$2:$M$207,MATCH(A23,masterlist!$C$2:$C$207,0)),INDEX(masterlist!$L$2:$L$207,MATCH(A23,masterlist!$C$2:$C$207,0))),\"\")","v":""},{"$f":"IFERROR(HYPERLINK(INDEX(masterlist!$O$2:$O$207,MATCH(A23,masterlist!$C$2:$C$207,0)),INDEX(masterlist!$N$2:$N$207,MATCH(A23,masterlist!$C$2:$C$207,0))),\"\")","v":""},{"$f":"IFERROR(HYPERLINK(INDEX(masterlist!$Q$2:$Q$207,MATCH(A23,masterlist!$C$2:$C$207,0)),INDEX(masterlist!$P$2:$P$207,MATCH(A23,masterlist!$C$2:$C$207,0))),\"\")","v":""},{"$f":"IFERROR(HYPERLINK(INDEX(masterlist!$S$2:$S$207,MATCH(A23,masterlist!$C$2:$C$207,0)),INDEX(masterlist!$R$2:$R$207,MATCH(A23,masterlist!$C$2:$C$207,0))),\"\")","v":""},{"$f":"IFERROR(HYPERLINK(INDEX(masterlist!$U$2:$U$207,MATCH(A23,masterlist!$C$2:$C$207,0)),INDEX(masterlist!$T$2:$T$207,MATCH(A23,masterlist!$C$2:$C$207,0))),\"\")","v":""}]
[{"$f":"IFERROR(INDEX(masterlist!$A$2:$F$207,SMALL(IF(masterlist!$B$2:$B$207=\"LEG\",ROW(masterlist!$A$2:$F$207)-1),ROW(20:20)),3),\"\")","v":""},{"$f":"IFERROR(INDEX(masterlist!$D$2:$D$207,MATCH(A24,masterlist!$C$2:$C$207,0)),\"\")","v":""},{"$f":"IFERROR(INDEX(masterlist!$E$2:$E$207,MATCH(A24,masterlist!$C$2:$C$207,0)),\"\")","v":""},{"$f":"IFERROR(INDEX(masterlist!$G$2:$G$207,MATCH(A24,masterlist!$C$2:$C$207,0)),\"\")","v":""},{"$f":"IFERROR(INDEX(masterlist!$H$2:$H$207,MATCH(A24,masterlist!$C$2:$C$207,0)),\"\")","v":""},null,null,{"$f":"IFERROR(HYPERLINK(INDEX(masterlist!$M$2:$M$207,MATCH(A24,masterlist!$C$2:$C$207,0)),INDEX(masterlist!$L$2:$L$207,MATCH(A24,masterlist!$C$2:$C$207,0))),\"\")","v":""},{"$f":"IFERROR(HYPERLINK(INDEX(masterlist!$O$2:$O$207,MATCH(A24,masterlist!$C$2:$C$207,0)),INDEX(masterlist!$N$2:$N$207,MATCH(A24,masterlist!$C$2:$C$207,0))),\"\")","v":""},{"$f":"IFERROR(HYPERLINK(INDEX(masterlist!$Q$2:$Q$207,MATCH(A24,masterlist!$C$2:$C$207,0)),INDEX(masterlist!$P$2:$P$207,MATCH(A24,masterlist!$C$2:$C$207,0))),\"\")","v":""},{"$f":"IFERROR(HYPERLINK(INDEX(masterlist!$S$2:$S$207,MATCH(A24,masterlist!$C$2:$C$207,0)),INDEX(masterlist!$R$2:$R$207,MATCH(A24,masterlist!$C$2:$C$207,0))),\"\")","v":""},{"$f":"IFERROR(HYPERLINK(INDEX(masterlist!$U$2:$U$207,MATCH(A24,masterlist!$C$2:$C$207,0)),INDEX(masterlist!$T$2:$T$207,MATCH(A24,masterlist!$C$2:$C$207,0))),\"\")","v":""}]
[{"$f":"IFERROR(INDEX(masterlist!$A$2:$F$207,SMALL(IF(masterlist!$B$2:$B$207=\"LEG\",ROW(masterlist!$A$2:$F$207)-1),ROW(21:21)),3),\"\")","v":""},{"$f":"IFERROR(INDEX(masterlist!$D$2:$D$207,MATCH(A25,masterlist!$C$2:$C$207,0)),\"\")","v":""},{"$f":"IFERROR(INDEX(masterlist!$E$2:$E$207,MATCH(A25,masterlist!$C$2:$C$207,0)),\"\")","v":""},{"$f":"IFERROR(INDEX(masterlist!$G$2:$G$207,MATCH(A25,masterlist!$C$2:$C$207,0)),\"\")","v":""},{"$f":"IFERROR(INDEX(masterlist!$H$2:$H$207,MATCH(A25,masterlist!$C$2:$C$207,0)),\"\")","v":""},null,null,{"$f":"IFERROR(HYPERLINK(INDEX(masterlist!$M$2:$M$207,MATCH(A25,masterlist!$C$2:$C$207,0)),INDEX(masterlist!$L$2:$L$207,MATCH(A25,masterlist!$C$2:$C$207,0))),\"\")","v":""},{"$f":"IFERROR(HYPERLINK(INDEX(masterlist!$O$2:$O$207,MATCH(A25,masterlist!$C$2:$C$207,0)),INDEX(masterlist!$N$2:$N$207,MATCH(A25,masterlist!$C$2:$C$207,0))),\"\")","v":""},{"$f":"IFERROR(HYPERLINK(INDEX(masterlist!$Q$2:$Q$207,MATCH(A25,masterlist!$C$2:$C$207,0)),INDEX(masterlist!$P$2:$P$207,MATCH(A25,masterlist!$C$2:$C$207,0))),\"\")","v":""},{"$f":"IFERROR(HYPERLINK(INDEX(masterlist!$S$2:$S$207,MATCH(A25,masterlist!$C$2:$C$207,0)),INDEX(masterlist!$R$2:$R$207,MATCH(A25,masterlist!$C$2:$C$207,0))),\"\")","v":""},{"$f":"IFERROR(HYPERLINK(INDEX(masterlist!$U$2:$U$207,MATCH(A25,masterlist!$C$2:$C$207,0)),INDEX(masterlist!$T$2:$T$207,MATCH(A25,masterlist!$C$2:$C$207,0))),\"\")","v":""}]
[{"$f":"IFERROR(INDEX(masterlist!$A$2:$F$207,SMALL(IF(masterlist!$B$2:$B$207=\"LEG\",ROW(masterlist!$A$2:$F$207)-1),ROW(22:22)),3),\"\")","v":""},{"$f":"IFERROR(INDEX(masterlist!$D$2:$D$207,MATCH(A26,masterlist!$C$2:$C$207,0)),\"\")","v":""},{"$f":"IFERROR(INDEX(masterlist!$E$2:$E$207,MATCH(A26,masterlist!$C$2:$C$207,0)),\"\")","v":""},{"$f":"IFERROR(INDEX(masterlist!$G$2:$G$207,MATCH(A26,masterlist!$C$2:$C$207,0)),\"\")","v":""},{"$f":"IFERROR(INDEX(masterlist!$H$2:$H$207,MATCH(A26,masterlist!$C$2:$C$207,0)),\"\")","v":""},null,null,{"$f":"IFERROR(HYPERLINK(INDEX(masterlist!$M$2:$M$207,MATCH(A26,masterlist!$C$2:$C$207,0)),INDEX(masterlist!$L$2:$L$207,MATCH(A26,masterlist!$C$2:$C$207,0))),\"\")","v":""},{"$f":"IFERROR(HYPERLINK(INDEX(masterlist!$O$2:$O$207,MATCH(A26,masterlist!$C$2:$C$207,0)),INDEX(masterlist!$N$2:$N$207,MATCH(A26,masterlist!$C$2:$C$207,0))),\"\")","v":""},{"$f":"IFERROR(HYPERLINK(INDEX(masterlist!$Q$2:$Q$207,MATCH(A26,masterlist!$C$2:$C$207,0)),INDEX(masterlist!$P$2:$P$207,MATCH(A26,masterlist!$C$2:$C$207,0))),\"\")","v":""},{"$f":"IFERROR(HYPERLINK(INDEX(masterlist!$S$2:$S$207,MATCH(A26,masterlist!$C$2:$C$207,0)),INDEX(masterlist!$R$2:$R$207,MATCH(A26,masterlist!$C$2:$C$207,0))),\"\")","v":""},{"$f":"IFERROR(HYPERLINK(INDEX(masterlist!$U$2:$U$207,MATCH(A26,masterlist!$C$2:$C$207,0)),INDEX(masterlist!$T$2:$T$207,MATCH(A26,masterlist!$C$2:$C$207,0))),\"\")","v":""}]
[{"$f":"IFERROR(INDEX(masterlist!$A$2:$F$207,SMALL(IF(masterlist!$B$2:$B$207=\"LEG\",ROW(masterlist!$A$2:$F$207)-1),ROW(23:23)),3),\"\")","v":""},{"$f":"IFERROR(INDEX(masterlist!$D$2:$D$207,MATCH(A27,masterlist!$C$2:$C$207,0)),\"\")","v":""},{"$f":"IFERROR(INDEX(masterlist!$E$2:$E$207,MATCH(A27,masterlist!$C$2:$C$207,0)),\"\")","v":""},{"$f":"IFERROR(INDEX(masterlist!$G$2:$G$207,MATCH(A27,masterlist!$C$2:$C$207,0)),\"\")","v":""},{"$f":"IFERROR(INDEX(masterlist!$H$2:$H$207,MATCH(A27,masterlist!$C$2:$C$207,0)),\"\")","v":""},null,null,{"$f":"IFERROR(HYPERLINK(INDEX(masterlist!$M$2:$M$207,MATCH(A27,masterlist!$C$2:$C$207,0)),INDEX(masterlist!$L$2:$L$207,MATCH(A27,masterlist!$C$2:$C$207,0))),\"\")","v":""},{"$f":"IFERROR(HYPERLINK(INDEX(masterlist!$O$2:$O$207,MATCH(A27,masterlist!$C$2:$C$207,0)),INDEX(masterlist!$N$2:$N$207,MATCH(A27,masterlist!$C$2:$C$207,0))),\"\")","v":""},{"$f":"IFERROR(HYPERLINK(INDEX(masterlist!$Q$2:$Q$207,MATCH(A27,masterlist!$C$2:$C$207,0)),INDEX(masterlist!$P$2:$P$207,MATCH(A27,masterlist!$C$2:$C$207,0))),\"\")","v":""},{"$f":"IFERROR(HYPERLINK(INDEX(masterlist!$S$2:$S$207,MATCH(A27,masterlist!$C$2:$C$207,0)),INDEX(masterlist!$R$2:$R$207,MATCH(A27,masterlist!$C$2:$C$207,0))),\"\")","v":""},{"$f":"IFERROR(HYPERLINK(INDEX(masterlist!$U$2:$U$207,MATCH(A27,masterlist!$C$2:$C$207,0)),INDEX(masterlist!$T$2:$T$207,MATCH(A27,masterlist!$C$2:$C$207,0))),\"\")","v":""}]
[{"$f":"IFERROR(INDEX(masterlist!$A$2:$F$207,SMALL(IF(masterlist!$B$2:$B$207=\"LEG\",ROW(masterlist!$A$2:$F$207)-1),ROW(24:24)),3),\"\")","v":""},{"$f":"IFERROR(INDEX(masterlist!$D$2:$D$207,MATCH(A28,masterlist!$C$2:$C$207,0)),\"\")","v":""},{"$f":"IFERROR(INDEX(masterlist!$E$2:$E$207,MATCH(A28,masterlist!$C$2:$C$207,0)),\"\")","v":""},{"$f":"IFERROR(INDEX(masterlist!$G$2:$G$207,MATCH(A28,masterlist!$C$2:$C$207,0)),\"\")","v":""},{"$f":"IFERROR(INDEX(masterlist!$H$2:$H$207,MATCH(A28,masterlist!$C$2:$C$207,0)),\"\")","v":""},null,null,{"$f":"IFERROR(HYPERLINK(INDEX(masterlist!$M$2:$M$207,MATCH(A28,masterlist!$C$2:$C$207,0)),INDEX(masterlist!$L$2:$L$207,MATCH(A28,masterlist!$C$2:$C$207,0))),\"\")","v":""},{"$f":"IFERROR(HYPERLINK(INDEX(masterlist!$O$2:$O$207,MATCH(A28,masterlist!$C$2:$C$207,0)),INDEX(masterlist!$N$2:$N$207,MATCH(A28,masterlist!$C$2:$C$207,0))),\"\")","v":""},{"$f":"IFERROR(HYPERLINK(INDEX(masterlist!$Q$2:$Q$207,MATCH(A28,masterlist!$C$2:$C$207,0)),INDEX(masterlist!$P$2:$P$207,MATCH(A28,masterlist!$C$2:$C$207,0))),\"\")","v":""},{"$f":"IFERROR(HYPERLINK(INDEX(masterlist!$S$2:$S$207,MATCH(A28,masterlist!$C$2:$C$207,0)),INDEX(masterlist!$R$2:$R$207,MATCH(A28,masterlist!$C$2:$C$207,0))),\"\")","v":""},{"$f":"IFERROR(HYPERLINK(INDEX(masterlist!$U$2:$U$207,MATCH(A28,masterlist!$C$2:$C$207,0)),INDEX(masterlist!$T$2:$T$207,MATCH(A28,masterlist!$C$2:$C$207,0))),\"\")","v":""}]
[{"$f":"IFERROR(INDEX(masterlist!$A$2:$F$207,SMALL(IF(masterlist!$B$2:$B$207=\"LEG\",ROW(masterlist!$A$2:$F$207)-1),ROW(25:25)),3),\"\")","v":""},{"$f":"IFERROR(INDEX(masterlist!$D$2:$D$207,MATCH(A29,masterlist!$C$2:$C$207,0)),\"\")","v":""},{"$f":"IFERROR(INDEX(masterlist!$E$2:$E$207,MATCH(A29,masterlist!$C$2:$C$207,0)),\"\")","v":""},{"$f":"IFERROR(INDEX(masterlist!$G$2:$G$207,MATCH(A29,masterlist!$C$2:$C$207,0)),\"\")","v":""},{"$f":"IFERROR(INDEX(masterlist!$H$2:$H$207,MATCH(A29,masterlist!$C$2:$C$207,0)),\"\")","v":""},null,null,{"$f":"IFERROR(HYPERLINK(INDEX(masterlist!$M$2:$M$207,MATCH(A29,masterlist!$C$2:$C$207,0)),INDEX(masterlist!$L$2:$L$207,MATCH(A29,masterlist!$C$2:$C$207,0))),\"\")","v":""},{"$f":"IFERROR(HYPERLINK(INDEX(masterlist!$O$2:$O$207,MATCH(A29,masterlist!$C$2:$C$207,0)),INDEX(masterlist!$N$2:$N$207,MATCH(A29,masterlist!$C$2:$C$207,0))),\"\")","v":""},{"$f":"IFERROR(HYPERLINK(INDEX(masterlist!$Q$2:$Q$207,MATCH(A29,masterlist!$C$2:$C$207,0)),INDEX(masterlist!$P$2:$P$207,MATCH(A29,masterlist!$C$2:$C$207,0))),\"\")","v":""},{"$f":"IFERROR(HYPERLINK(INDEX(masterlist!$S$2:$S$207,MATCH(A29,masterlist!$C$2:$C$207,0)),INDEX(masterlist!$R$2:$R$207,MATCH(A29,masterlist!$C$2:$C$207,0))),\"\")","v":""},{"$f":"IFERROR(HYPERLINK(INDEX(masterlist!$U$2:$U$207,MATCH(A29,masterlist!$C$2:$C$207,0)),INDEX(masterlist!$T$2:$T$207,MATCH(A29,masterlist!$C$2:$C$207,0))),\"\")","v":""}]
[{"$f":"IFERROR(INDEX(masterlist!$A$2:$F$207,SMALL(IF(masterlist!$B$2:$B$207=\"LEG\",ROW(masterlist!$A$2:$F$207)-1),ROW(26:26)),3),\"\")","v":""},{"$f":"IFERROR(INDEX(masterlist!$D$2:$D$207,MATCH(A30,masterlist!$C$2:$C$207,0)),\"\")","v":""},{"$f":"IFERROR(INDEX(masterlist!$E$2:$E$207,MATCH(A30,masterlist!$C$2:$C$207,0)),\"\")","v":""},{"$f":"IFERROR(INDEX(masterlist!$G$2:$G$207,MATCH(A30,masterlist!$C$2:$C$207,0)),\"\")","v":""},{"$f":"IFERROR(INDEX(masterlist!$H$2:$H$207,MATCH(A30,masterlist!$C$2:$C$207,0)),\"\")","v":""},null,null,{"$f":"IFERROR(HYPERLINK(INDEX(masterlist!$M$2:$M$207,MATCH(A30,masterlist!$C$2:$C$207,0)),INDEX(masterlist!$L$2:$L$207,MATCH(A30,masterlist!$C$2:$C$207,0))),\"\")","v":""},{"$f":"IFERROR(HYPERLINK(INDEX(masterlist!$O$2:$O$207,MATCH(A30,masterlist!$C$2:$C$207,0)),INDEX(masterlist!$N$2:$N$207,MATCH(A30,masterlist!$C$2:$C$207,0))),\"\")","v":""},{"$f":"IFERROR(HYPERLINK(INDEX(masterlist!$Q$2:$Q$207,MATCH(A30,masterlist!$C$2:$C$207,0)),INDEX(masterlist!$P$2:$P$207,MATCH(A30,masterlist!$C$2:$C$207,0))),\"\")","v":""},{"$f":"IFERROR(HYPERLINK(INDEX(masterlist!$S$2:$S$207,MATCH(A30,masterlist!$C$2:$C$207,0)),INDEX(masterlist!$R$2:$R$207,MATCH(A30,masterlist!$C$2:$C$207,0))),\"\")","v":""},{"$f":"IFERROR(HYPERLINK(INDEX(masterlist!$U$2:$U$207,MATCH(A30,masterlist!$C$2:$C$207,0)),INDEX(masterlist!$T$2:$T$207,MATCH(A30,masterlist!$C$2:$C$207,0))),\"\")","v":""}]
[{"$f":"IFERROR(INDEX(masterlist!$A$2:$F$207,SMALL(IF(masterlist!$B$2:$B$207=\"LEG\",ROW(masterlist!$A$2:$F$207)-1),ROW(27:27)),3),\"\")","v":""},{"$f":"IFERROR(INDEX(masterlist!$D$2:$D$207,MATCH(A31,masterlist!$C$2:$C$207,0)),\"\")","v":""},{"$f":"IFERROR(INDEX(masterlist!$E$2:$E$207,MATCH(A31,masterlist!$C$2:$C$207,0)),\"\")","v":""},{"$f":"IFERROR(INDEX(masterlist!$G$2:$G$207,MATCH(A31,masterlist!$C$2:$C$207,0)),\"\")","v":""},{"$f":"IFERROR(INDEX(masterlist!$H$2:$H$207,MATCH(A31,masterlist!$C$2:$C$207,0)),\"\")","v":""},null,null,{"$f":"IFERROR(HYPERLINK(INDEX(masterlist!$M$2:$M$207,MATCH(A31,masterlist!$C$2:$C$207,0)),INDEX(masterlist!$L$2:$L$207,MATCH(A31,masterlist!$C$2:$C$207,0))),\"\")","v":""},{"$f":"IFERROR(HYPERLINK(INDEX(masterlist!$O$2:$O$207,MATCH(A31,masterlist!$C$2:$C$207,0)),INDEX(masterlist!$N$2:$N$207,MATCH(A31,masterlist!$C$2:$C$207,0))),\"\")","v":""},{"$f":"IFERROR(HYPERLINK(INDEX(masterlist!$Q$2:$Q$207,MATCH(A31,masterlist!$C$2:$C$207,0)),INDEX(masterlist!$P$2:$P$207,MATCH(A31,masterlist!$C$2:$C$207,0))),\"\")","v":""},{"$f":"IFERROR(HYPERLINK(INDEX(masterlist!$S$2:$S$207,MATCH(A31,masterlist!$C$2:$C$207,0)),INDEX(masterlist!$R$2:$R$207,MATCH(A31,masterlist!$C$2:$C$207,0))),\"\")","v":""},{"$f":"IFERROR(HYPERLINK(INDEX(masterlist!$U$2:$U$207,MATCH(A31,masterlist!$C$2:$C$207,0)),INDEX(masterlist!$T$2:$T$207,MATCH(A31,masterlist!$C$2:$C$207,0))),\"\")","v":""}]
[{"$f":"IFERROR(INDEX(masterlist!$A$2:$F$207,SMALL(IF(masterlist!$B$2:$B$207=\"LEG\",ROW(masterlist!$A$2:$F$207)-1),ROW(28:28)),3),\"\")","v":""},{"$f":"IFERROR(INDEX(masterlist!$D$2:$D$207,MATCH(A32,masterlist!$C$2:$C$207,0)),\"\")","v":""},{"$f":"IFERROR(INDEX(masterlist!$E$2:$E$207,MATCH(A32,masterlist!$C$2:$C$207,0)),\"\")","v":""},{"$f":"IFERROR(INDEX(masterlist!$G$2:$G$207,MATCH(A32,masterlist!$C$2:$C$207,0)),\"\")","v":""},{"$f":"IFERROR(INDEX(masterlist!$H$2:$H$207,MATCH(A32,masterlist!$C$2:$C$207,0)),\"\")","v":""},null,null,{"$f":"IFERROR(HYPERLINK(INDEX(masterlist!$M$2:$M$207,MATCH(A32,masterlist!$C$2:$C$207,0)),INDEX(masterlist!$L$2:$L$207,MATCH(A32,masterlist!$C$2:$C$207,0))),\"\")","v":""},{"$f":"IFERROR(HYPERLINK(INDEX(masterlist!$O$2:$O$207,MATCH(A32,masterlist!$C$2:$C$207,0)),INDEX(masterlist!$N$2:$N$207,MATCH(A32,masterlist!$C$2:$C$207,0))),\"\")","v":""},{"$f":"IFERROR(HYPERLINK(INDEX(masterlist!$Q$2:$Q$207,MATCH(A32,masterlist!$C$2:$C$207,0)),INDEX(masterlist!$P$2:$P$207,MATCH(A32,masterlist!$C$2:$C$207,0))),\"\")","v":""},{"$f":"IFERROR(HYPERLINK(INDEX(masterlist!$S$2:$S$207,MATCH(A32,masterlist!$C$2:$C$207,0)),INDEX(masterlist!$R$2:$R$207,MATCH(A32,masterlist!$C$2:$C$207,0))),\"\")","v":""},{"$f":"IFERROR(HYPERLINK(INDEX(masterlist!$U$2:$U$207,MATCH(A32,masterlist!$C$2:$C$207,0)),INDEX(masterlist!$T$2:$T$207,MATCH(A32,masterlist!$C$2:$C$207,0))),\"\")","v":""}]
[{"$f":"IFERROR(INDEX(masterlist!$A$2:$F$207,SMALL(IF(masterlist!$B$2:$B$207=\"LEG\",ROW(masterlist!$A$2:$F$207)-1),ROW(29:29)),3),\"\")","v":""},{"$f":"IFERROR(INDEX(masterlist!$D$2:$D$207,MATCH(A33,masterlist!$C$2:$C$207,0)),\"\")","v":""},{"$f":"IFERROR(INDEX(masterlist!$E$2:$E$207,MATCH(A33,masterlist!$C$2:$C$207,0)),\"\")","v":""},{"$f":"IFERROR(INDEX(masterlist!$G$2:$G$207,MATCH(A33,masterlist!$C$2:$C$207,0)),\"\")","v":""},{"$f":"IFERROR(INDEX(masterlist!$H$2:$H$207,MATCH(A33,masterlist!$C$2:$C$207,0)),\"\")","v":""},null,null,{"$f":"IFERROR(HYPERLINK(INDEX(masterlist!$M$2:$M$207,MATCH(A33,masterlist!$C$2:$C$207,0)),INDEX(masterlist!$L$2:$L$207,MATCH(A33,masterlist!$C$2:$C$207,0))),\"\")","v":""},{"$f":"IFERROR(HYPERLINK(INDEX(masterlist!$O$2:$O$207,MATCH(A33,masterlist!$C$2:$C$207,0)),INDEX(masterlist!$N$2:$N$207,MATCH(A33,masterlist!$C$2:$C$207,0))),\"\")","v":""},{"$f":"IFERROR(HYPERLINK(INDEX(masterlist!$Q$2:$Q$207,MATCH(A33,masterlist!$C$2:$C$207,0)),INDEX(masterlist!$P$2:$P$207,MATCH(A33,masterlist!$C$2:$C$207,0))),\"\")","v":""},{"$f":"IFERROR(HYPERLINK(INDEX(masterlist!$S$2:$S$207,MATCH(A33,masterlist!$C$2:$C$207,0)),INDEX(masterlist!$R$2:$R$207,MATCH(A33,masterlist!$C$2:$C$207,0))),\"\")","v":""},{"$f":"IFERROR(HYPERLINK(INDEX(masterlist!$U$2:$U$207,MATCH(A33,masterlist!$C$2:$C$207,0)),INDEX(masterlist!$T$2:$T$207,MATCH(A33,masterlist!$C$2:$C$207,0))),\"\")","v":""}]
[{"$f":"IFERROR(INDEX(masterlist!$A$2:$F$207,SMALL(IF(masterlist!$B$2:$B$207=\"LEG\",ROW(masterlist!$A$2:$F$207)-1),ROW(30:30)),3),\"\")","v":""},{"$f":"IFERROR(INDEX(masterlist!$D$2:$D$207,MATCH(A34,masterlist!$C$2:$C$207,0)),\"\")","v":""},{"$f":"IFERROR(INDEX(masterlist!$E$2:$E$207,MATCH(A34,masterlist!$C$2:$C$207,0)),\"\")","v":""},{"$f":"IFERROR(INDEX(masterlist!$G$2:$G$207,MATCH(A34,masterlist!$C$2:$C$207,0)),\"\")","v":""},{"$f":"IFERROR(INDEX(masterlist!$H$2:$H$207,MATCH(A34,masterlist!$C$2:$C$207,0)),\"\")","v":""},null,null,{"$f":"IFERROR(HYPERLINK(INDEX(masterlist!$M$2:$M$207,MATCH(A34,masterlist!$C$2:$C$207,0)),INDEX(masterlist!$L$2:$L$207,MATCH(A34,masterlist!$C$2:$C$207,0))),\"\")","v":""},{"$f":"IFERROR(HYPERLINK(INDEX(masterlist!$O$2:$O$207,MATCH(A34,masterlist!$C$2:$C$207,0)),INDEX(masterlist!$N$2:$N$207,MATCH(A34,masterlist!$C$2:$C$207,0))),\"\")","v":""},{"$f":"IFERROR(HYPERLINK(INDEX(masterlist!$Q$2:$Q$207,MATCH(A34,masterlist!$C$2:$C$207,0)),INDEX(masterlist!$P$2:$P$207,MATCH(A34,masterlist!$C$2:$C$207,0))),\"\")","v":""},{"$f":"IFERROR(HYPERLINK(INDEX(masterlist!$S$2:$S$207,MATCH(A34,masterlist!$C$2:$C$207,0)),INDEX(masterlist!$R$2:$R$207,MATCH(A34,masterlist!$C$2:$C$207,0))),\"\")","v":""},{"$f":"IFERROR(HYPERLINK(INDEX(masterlist!$U$2:$U$207,MATCH(A34,masterlist!$C$2:$C$207,0)),INDEX(masterlist!$T$2:$T$207,MATCH(A34,masterlist!$C$2:$C$207,0))),\"\")","v":""}]
[{"$f":"IFERROR(INDEX(masterlist!$A$2:$F$207,SMALL(IF(masterlist!$B$2:$B$207=\"LEG\",ROW(masterlist!$A$2:$F$207)-1),ROW(31:31)),3),\"\")","v":""},{"$f":"IFERROR(INDEX(masterlist!$D$2:$D$207,MATCH(A35,masterlist!$C$2:$C$207,0)),\"\")","v":""},{"$f":"IFERROR(INDEX(masterlist!$E$2:$E$207,MATCH(A35,masterlist!$C$2:$C$207,0)),\"\")","v":""},{"$f":"IFERROR(INDEX(masterlist!$G$2:$G$207,MATCH(A35,masterlist!$C$2:$C$207,0)),\"\")","v":""},{"$f":"IFERROR(INDEX(masterlist!$H$2:$H$207,MATCH(A35,masterlist!$C$2:$C$207,0)),\"\")","v":""},null,null,{"$f":"IFERROR(HYPERLINK(INDEX(masterlist!$M$2:$M$207,MATCH(A35,masterlist!$C$2:$C$207,0)),INDEX(masterlist!$L$2:$L$207,MATCH(A35,masterlist!$C$2:$C$207,0))),\"\")","v":""},{"$f":"IFERROR(HYPERLINK(INDEX(masterlist!$O$2:$O$207,MATCH(A35,masterlist!$C$2:$C$207,0)),INDEX(masterlist!$N$2:$N$207,MATCH(A35,masterlist!$C$2:$C$207,0))),\"\")","v":""},{"$f":"IFERROR(HYPERLINK(INDEX(masterlist!$Q$2:$Q$207,MATCH(A35,masterlist!$C$2:$C$207,0)),INDEX(masterlist!$P$2:$P$207,MATCH(A35,masterlist!$C$2:$C$207,0))),\"\")","v":""},{"$f":"IFERROR(HYPERLINK(INDEX(masterlist!$S$2:$S$207,MATCH(A35,masterlist!$C$2:$C$207,0)),INDEX(masterlist!$R$2:$R$207,MATCH(A35,masterlist!$C$2:$C$207,0))),\"\")","v":""},{"$f":"IFERROR(HYPERLINK(INDEX(masterlist!$U$2:$U$207,MATCH(A35,masterlist!$C$2:$C$207,0)),INDEX(masterlist!$T$2:$T$207,MATCH(A35,masterlist!$C$2:$C$207,0))),\"\")","v":""}]
[{"$f":"IFERROR(INDEX(masterlist!$A$2:$F$207,SMALL(IF(masterlist!$B$2:$B$207=\"LEG\",ROW(masterlist!$A$2:$F$207)-1),ROW(32:32)),3),\"\")","v":""},{"$f":"IFERROR(INDEX(masterlist!$D$2:$D$207,MATCH(A36,masterlist!$C$2:$C$207,0)),\"\")","v":""},{"$f":"IFERROR(INDEX(masterlist!$E$2:$E$207,MATCH(A36,masterlist!$C$2:$C$207,0)),\"\")","v":""},{"$f":"IFERROR(INDEX(masterlist!$G$2:$G$207,MATCH(A36,masterlist!$C$2:$C$207,0)),\"\")","v":""},{"$f":"IFERROR(INDEX(masterlist!$H$2:$H$207,MATCH(A36,masterlist!$C$2:$C$207,0)),\"\")","v":""},null,null,{"$f":"IFERROR(HYPERLINK(INDEX(masterlist!$M$2:$M$207,MATCH(A36,masterlist!$C$2:$C$207,0)),INDEX(masterlist!$L$2:$L$207,MATCH(A36,masterlist!$C$2:$C$207,0))),\"\")","v":""},{"$f":"IFERROR(HYPERLINK(INDEX(masterlist!$O$2:$O$207,MATCH(A36,masterlist!$C$2:$C$207,0)),INDEX(masterlist!$N$2:$N$207,MATCH(A36,masterlist!$C$2:$C$207,0))),\"\")","v":""},{"$f":"IFERROR(HYPERLINK(INDEX(masterlist!$Q$2:$Q$207,MATCH(A36,masterlist!$C$2:$C$207,0)),INDEX(masterlist!$P$2:$P$207,MATCH(A36,masterlist!$C$2:$C$207,0))),\"\")","v":""},{"$f":"IFERROR(HYPERLINK(INDEX(masterlist!$S$2:$S$207,MATCH(A36,masterlist!$C$2:$C$207,0)),INDEX(masterlist!$R$2:$R$207,MATCH(A36,masterlist!$C$2:$C$207,0))),\"\")","v":""},{"$f":"IFERROR(HYPERLINK(INDEX(masterlist!$U$2:$U$207,MATCH(A36,masterlist!$C$2:$C$207,0)),INDEX(masterlist!$T$2:$T$207,MATCH(A36,masterlist!$C$2:$C$207,0))),\"\")","v":""}]
[{"$f":"IFERROR(INDEX(masterlist!$A$2:$F$207,SMALL(IF(masterlist!$B$2:$B$207=\"LEG\",ROW(masterlist!$A$2:$F$207)-1),ROW(33:33)),3),\"\")","v":""},{"$f":"IFERROR(INDEX(masterlist!$D$2:$D$207,MATCH(A37,masterlist!$C$2:$C$207,0)),\"\")","v":""},{"$f":"IFERROR(INDEX(masterlist!$E$2:$E$207,MATCH(A37,masterlist!$C$2:$C$207,0)),\"\")","v":""},{"$f":"IFERROR(INDEX(masterlist!$G$2:$G$207,MATCH(A37,masterlist!$C$2:$C$207,0)),\"\")","v":""},{"$f":"IFERROR(INDEX(masterlist!$H$2:$H$207,MATCH(A37,masterlist!$C$2:$C$207,0)),\"\")","v":""},null,null,{"$f":"IFERROR(HYPERLINK(INDEX(masterlist!$M$2:$M$207,MATCH(A37,masterlist!$C$2:$C$207,0)),INDEX(masterlist!$L$2:$L$207,MATCH(A37,masterlist!$C$2:$C$207,0))),\"\")","v":""},{"$f":"IFERROR(HYPERLINK(INDEX(masterlist!$O$2:$O$207,MATCH(A37,masterlist!$C$2:$C$207,0)),INDEX(masterlist!$N$2:$N$207,MATCH(A37,masterlist!$C$2:$C$207,0))),\"\")","v":""},{"$f":"IFERROR(HYPERLINK(INDEX(masterlist!$Q$2:$Q$207,MATCH(A37,masterlist!$C$2:$C$207,0)),INDEX(masterlist!$P$2:$P$207,MATCH(A37,masterlist!$C$2:$C$207,0))),\"\")","v":""},{"$f":"IFERROR(HYPERLINK(INDEX(masterlist!$S$2:$S$207,MATCH(A37,masterlist!$C$2:$C$207,0)),INDEX(masterlist!$R$2:$R$207,MATCH(A37,masterlist!$C$2:$C$207,0))),\"\")","v":""},{"$f":"IFERROR(HYPERLINK(INDEX(masterlist!$U$2:$U$207,MATCH(A37,masterlist!$C$2:$C$207,0)),INDEX(masterlist!$T$2:$T$207,MATCH(A37,masterlist!$C$2:$C$207,0))),\"\")","v":""}]
[{"$f":"IFERROR(INDEX(masterlist!$A$2:$F$207,SMALL(IF(masterlist!$B$2:$B$207=\"LEG\",ROW(masterlist!$A$2:$F$207)-1),ROW(34:34)),3),\"\")","v":""},{"$f":"IFERROR(INDEX(masterlist!$D$2:$D$207,MATCH(A38,masterlist!$C$2:$C$207,0)),\"\")","v":""},{"$f":"IFERROR(INDEX(masterlist!$E$2:$E$207,MATCH(A38,masterlist!$C$2:$C$207,0)),\"\")","v":""},{"$f":"IFERROR(INDEX(masterlist!$G$2:$G$207,MATCH(A38,masterlist!$C$2:$C$207,0)),\"\")","v":""},{"$f":"IFERROR(INDEX(masterlist!$H$2:$H$207,MATCH(A38,masterlist!$C$2:$C$207,0)),\"\")","v":""},null,null,{"$f":"IFERROR(HYPERLINK(INDEX(masterlist!$M$2:$M$207,MATCH(A38,masterlist!$C$2:$C$207,0)),INDEX(masterlist!$L$2:$L$207,MATCH(A38,masterlist!$C$2:$C$207,0))),\"\")","v":""},{"$f":"IFERROR(HYPERLINK(INDEX(masterlist!$O$2:$O$207,MATCH(A38,masterlist!$C$2:$C$207,0)),INDEX(masterlist!$N$2:$N$207,MATCH(A38,masterlist!$C$2:$C$207,0))),\"\")","v":""},{"$f":"IFERROR(HYPERLINK(INDEX(masterlist!$Q$2:$Q$207,MATCH(A38,masterlist!$C$2:$C$207,0)),INDEX(masterlist!$P$2:$P$207,MATCH(A38,masterlist!$C$2:$C$207,0))),\"\")","v":""},{"$f":"IFERROR(HYPERLINK(INDEX(masterlist!$S$2:$S$207,MATCH(A38,masterlist!$C$2:$C$207,0)),INDEX(masterlist!$R$2:$R$207,MATCH(A38,masterlist!$C$2:$C$207,0))),\"\")","v":""},{"$f":"IFERROR(HYPERLINK(INDEX(masterlist!$U$2:$U$207,MATCH(A38,masterlist!$C$2:$C$207,0)),INDEX(masterlist!$T$2:$T$207,MATCH(A38,masterlist!$C$2:$C$207,0))),\"\")","v":""}]
[{"$f":"IFERROR(INDEX(masterlist!$A$2:$F$207,SMALL(IF(masterlist!$B$2:$B$207=\"LEG\",ROW(masterlist!$A$2:$F$207)-1),ROW(35:35)),3),\"\")","v":""},{"$f":"IFERROR(INDEX(masterlist!$D$2:$D$207,MATCH(A39,masterlist!$C$2:$C$207,0)),\"\")","v":""},{"$f":"IFERROR(INDEX(masterlist!$E$2:$E$207,MATCH(A39,masterlist!$C$2:$C$207,0)),\"\")","v":""},{"$f":"IFERROR(INDEX(masterlist!$G$2:$G$207,MATCH(A39,masterlist!$C$2:$C$207,0)),\"\")","v":""},{"$f":"IFERROR(INDEX(masterlist!$H$2:$H$207,MATCH(A39,masterlist!$C$2:$C$207,0)),\"\")","v":""},null,null,{"$f":"IFERROR(HYPERLINK(INDEX(masterlist!$M$2:$M$207,MATCH(A39,masterlist!$C$2:$C$207,0)),INDEX(masterlist!$L$2:$L$207,MATCH(A39,masterlist!$C$2:$C$207,0))),\"\")","v":""},{"$f":"IFERROR(HYPERLINK(INDEX(masterlist!$O$2:$O$207,MATCH(A39,masterlist!$C$2:$C$207,0)),INDEX(masterlist!$N$2:$N$207,MATCH(A39,masterlist!$C$2:$C$207,0))),\"\")","v":""},{"$f":"IFERROR(HYPERLINK(INDEX(masterlist!$Q$2:$Q$207,MATCH(A39,masterlist!$C$2:$C$207,0)),INDEX(masterlist!$P$2:$P$207,MATCH(A39,masterlist!$C$2:$C$207,0))),\"\")","v":""},{"$f":"IFERROR(HYPERLINK(INDEX(masterlist!$S$2:$S$207,MATCH(A39,masterlist!$C$2:$C$207,0)),INDEX(masterlist!$R$2:$R$207,MATCH(A39,masterlist!$C$2:$C$207,0))),\"\")","v":""},{"$f":"IFERROR(HYPERLINK(INDEX(masterlist!$U$2:$U$207,MATCH(A39,masterlist!$C$2:$C$207,0)),INDEX(masterlist!$T$2:$T$207,MATCH(A39,masterlist!$C$2:$C$207,0))),\"\")","v":""}]
[{"$f":"IFERROR(INDEX(masterlist!$A$2:$F$207,SMALL(IF(masterlist!$B$2:$B$207=\"LEG\",ROW(masterlist!$A$2:$F$207)-1),ROW(36:36)),3),\"\")","v":""},{"$f":"IFERROR(INDEX(masterlist!$D$2:$D$207,MATCH(A40,masterlist!$C$2:$C$207,0)),\"\")","v":""},{"$f":"IFERROR(INDEX(masterlist!$E$2:$E$207,MATCH(A40,masterlist!$C$2:$C$207,0)),\"\")","v":""},{"$f":"IFERROR(INDEX(masterlist!$G$2:$G$207,MATCH(A40,masterlist!$C$2:$C$207,0)),\"\")","v":""},{"$f":"IFERROR(INDEX(masterlist!$H$2:$H$207,MATCH(A40,masterlist!$C$2:$C$207,0)),\"\")","v":""},null,null,{"$f":"IFERROR(HYPERLINK(INDEX(masterlist!$M$2:$M$207,MATCH(A40,masterlist!$C$2:$C$207,0)),INDEX(masterlist!$L$2:$L$207,MATCH(A40,masterlist!$C$2:$C$207,0))),\"\")","v":""},{"$f":"IFERROR(HYPERLINK(INDEX(masterlist!$O$2:$O$207,MATCH(A40,masterlist!$C$2:$C$207,0)),INDEX(masterlist!$N$2:$N$207,MATCH(A40,masterlist!$C$2:$C$207,0))),\"\")","v":""},{"$f":"IFERROR(HYPERLINK(INDEX(masterlist!$Q$2:$Q$207,MATCH(A40,masterlist!$C$2:$C$207,0)),INDEX(masterlist!$P$2:$P$207,MATCH(A40,masterlist!$C$2:$C$207,0))),\"\")","v":""},{"$f":"IFERROR(HYPERLINK(INDEX(masterlist!$S$2:$S$207,MATCH(A40,masterlist!$C$2:$C$207,0)),INDEX(masterlist!$R$2:$R$207,MATCH(A40,masterlist!$C$2:$C$207,0))),\"\")","v":""},{"$f":"IFERROR(HYPERLINK(INDEX(masterlist!$U$2:$U$207,MATCH(A40,masterlist!$C$2:$C$207,0)),INDEX(masterlist!$T$2:$T$207,MATCH(A40,masterlist!$C$2:$C$207,0))),\"\")","v":""}]
[{"$f":"IFERROR(INDEX(masterlist!$A$2:$F$207,SMALL(IF(masterlist!$B$2:$B$207=\"LEG\",ROW(masterlist!$A$2:$F$207)-1),ROW(37:37)),3),\"\")","v":""},{"$f":"IFERROR(INDEX(masterlist!$D$2:$D$207,MATCH(A41,masterlist!$C$2:$C$207,0)),\"\")","v":""},{"$f":"IFERROR(INDEX(masterlist!$E$2:$E$207,MATCH(A41,masterlist!$C$2:$C$207,0)),\"\")","v":""},{"$f":"IFERROR(INDEX(masterlist!$G$2:$G$207,MATCH(A41,masterlist!$C$2:$C$207,0)),\"\")","v":""},{"$f":"IFERROR(INDEX(masterlist!$H$2:$H$207,MATCH(A41,masterlist!$C$2:$C$207,0)),\"\")","v":""},null,null,{"$f":"IFERROR(HYPERLINK(INDEX(masterlist!$M$2:$M$207,MATCH(A41,masterlist!$C$2:$C$207,0)),INDEX(masterlist!$L$2:$L$207,MATCH(A41,masterlist!$C$2:$C$207,0))),\"\")","v":""},{"$f":"IFERROR(HYPERLINK(INDEX(masterlist!$O$2:$O$207,MATCH(A41,masterlist!$C$2:$C$207,0)),INDEX(masterlist!$N$2:$N$207,MATCH(A41,masterlist!$C$2:$C$207,0))),\"\")","v":""},{"$f":"IFERROR(HYPERLINK(INDEX(masterlist!$Q$2:$Q$207,MATCH(A41,masterlist!$C$2:$C$207,0)),INDEX(masterlist!$P$2:$P$207,MATCH(A41,masterlist!$C$2:$C$207,0))),\"\")","v":""},{"$f":"IFERROR(HYPERLINK(INDEX(masterlist!$S$2:$S$207,MATCH(A41,masterlist!$C$2:$C$207,0)),INDEX(masterlist!$R$2:$R$207,MATCH(A41,masterlist!$C$2:$C$207,0))),\"\")","v":""},{"$f":"IFERROR(HYPERLINK(INDEX(masterlist!$U$2:$U$207,MATCH(A41,masterlist!$C$2:$C$207,0)),INDEX(masterlist!$T$2:$T$207,MATCH(A41,masterlist!$C$2:$C$207,0))),\"\")","v":""}]
[{"$f":"IFERROR(INDEX(masterlist!$A$2:$F$207,SMALL(IF(masterlist!$B$2:$B$207=\"LEG\",ROW(masterlist!$A$2:$F$207)-1),ROW(38:38)),3),\"\")","v":""},{"$f":"IFERROR(INDEX(masterlist!$D$2:$D$207,MATCH(A42,masterlist!$C$2:$C$207,0)),\"\")","v":""},{"$f":"IFERROR(INDEX(masterlist!$E$2:$E$207,MATCH(A42,masterlist!$C$2:$C$207,0)),\"\")","v":""},{"$f":"IFERROR(INDEX(masterlist!$G$2:$G$207,MATCH(A42,masterlist!$C$2:$C$207,0)),\"\")","v":""},{"$f":"IFERROR(INDEX(masterlist!$H$2:$H$207,MATCH(A42,masterlist!$C$2:$C$207,0)),\"\")","v":""},null,null,{"$f":"IFERROR(HYPERLINK(INDEX(masterlist!$M$2:$M$207,MATCH(A42,masterlist!$C$2:$C$207,0)),INDEX(masterlist!$L$2:$L$207,MATCH(A42,masterlist!$C$2:$C$207,0))),\"\")","v":""},{"$f":"IFERROR(HYPERLINK(INDEX(masterlist!$O$2:$O$207,MATCH(A42,masterlist!$C$2:$C$207,0)),INDEX(masterlist!$N$2:$N$207,MATCH(A42,masterlist!$C$2:$C$207,0))),\"\")","v":""},{"$f":"IFERROR(HYPERLINK(INDEX(masterlist!$Q$2:$Q$207,MATCH(A42,masterlist!$C$2:$C$207,0)),INDEX(masterlist!$P$2:$P$207,MATCH(A42,masterlist!$C$2:$C$207,0))),\"\")","v":""},{"$f":"IFERROR(HYPERLINK(INDEX(masterlist!$S$2:$S$207,MATCH(A42,masterlist!$C$2:$C$207,0)),INDEX(masterlist!$R$2:$R$207,MATCH(A42,masterlist!$C$2:$C$207,0))),\"\")","v":""},{"$f":"IFERROR(HYPERLINK(INDEX(masterlist!$U$2:$U$207,MATCH(A42,masterlist!$C$2:$C$207,0)),INDEX(masterlist!$T$2:$T$207,MATCH(A42,masterlist!$C$2:$C$207,0))),\"\")","v":""}]
[{"$f":"IFERROR(INDEX(masterlist!$A$2:$F$207,SMALL(IF(masterlist!$B$2:$B$207=\"LEG\",ROW(masterlist!$A$2:$F$207)-1),ROW(39:39)),3),\"\")","v":""},{"$f":"IFERROR(INDEX(masterlist!$D$2:$D$207,MATCH(A43,masterlist!$C$2:$C$207,0)),\"\")","v":""},{"$f":"IFERROR(INDEX(masterlist!$E$2:$E$207,MATCH(A43,masterlist!$C$2:$C$207,0)),\"\")","v":""},{"$f":"IFERROR(INDEX(masterlist!$G$2:$G$207,MATCH(A43,masterlist!$C$2:$C$207,0)),\"\")","v":""},{"$f":"IFERROR(INDEX(masterlist!$H$2:$H$207,MATCH(A43,masterlist!$C$2:$C$207,0)),\"\")","v":""},null,null,{"$f":"IFERROR(HYPERLINK(INDEX(masterlist!$M$2:$M$207,MATCH(A43,masterlist!$C$2:$C$207,0)),INDEX(masterlist!$L$2:$L$207,MATCH(A43,masterlist!$C$2:$C$207,0))),\"\")","v":""},{"$f":"IFERROR(HYPERLINK(INDEX(masterlist!$O$2:$O$207,MATCH(A43,masterlist!$C$2:$C$207,0)),INDEX(masterlist!$N$2:$N$207,MATCH(A43,masterlist!$C$2:$C$207,0))),\"\")","v":""},{"$f":"IFERROR(HYPERLINK(INDEX(masterlist!$Q$2:$Q$207,MATCH(A43,masterlist!$C$2:$C$207,0)),INDEX(masterlist!$P$2:$P$207,MATCH(A43,masterlist!$C$2:$C$207,0))),\"\")","v":""},{"$f":"IFERROR(HYPERLINK(INDEX(masterlist!$S$2:$S$207,MATCH(A43,masterlist!$C$2:$C$207,0)),INDEX(masterlist!$R$2:$R$207,MATCH(A43,masterlist!$C$2:$C$207,0))),\"\")","v":""},{"$f":"IFERROR(HYPERLINK(INDEX(masterlist!$U$2:$U$207,MATCH(A43,masterlist!$C$2:$C$207,0)),INDEX(masterlist!$T$2:$T$207,MATCH(A43,masterlist!$C$2:$C$207,0))),\"\")","v":""}]
[{"$f":"IFERROR(INDEX(masterlist!$A$2:$F$207,SMALL(IF(masterlist!$B$2:$B$207=\"LEG\",ROW(masterlist!$A$2:$F$207)-1),ROW(40:40)),3),\"\")","v":""},{"$f":"IFERROR(INDEX(masterlist!$D$2:$D$207,MATCH(A44,masterlist!$C$2:$C$207,0)),\"\")","v":""},{"$f":"IFERROR(INDEX(masterlist!$E$2:$E$207,MATCH(A44,masterlist!$C$2:$C$207,0)),\"\")","v":""},{"$f":"IFERROR(INDEX(masterlist!$G$2:$G$207,MATCH(A44,masterlist!$C$2:$C$207,0)),\"\")","v":""},{"$f":"IFERROR(INDEX(masterlist!$H$2:$H$207,MATCH(A44,masterlist!$C$2:$C$207,0)),\"\")","v":""},null,null,{"$f":"IFERROR(HYPERLINK(INDEX(masterlist!$M$2:$M$207,MATCH(A44,masterlist!$C$2:$C$207,0)),INDEX(masterlist!$L$2:$L$207,MATCH(A44,masterlist!$C$2:$C$207,0))),\"\")","v":""},{"$f":"IFERROR(HYPERLINK(INDEX(masterlist!$O$2:$O$207,MATCH(A44,masterlist!$C$2:$C$207,0)),INDEX(masterlist!$N$2:$N$207,MATCH(A44,masterlist!$C$2:$C$207,0))),\"\")","v":""},{"$f":"IFERROR(HYPERLINK(INDEX(masterlist!$Q$2:$Q$207,MATCH(A44,masterlist!$C$2:$C$207,0)),INDEX(masterlist!$P$2:$P$207,MATCH(A44,masterlist!$C$2:$C$207,0))),\"\")","v":""},{"$f":"IFERROR(HYPERLINK(INDEX(masterlist!$S$2:$S$207,MATCH(A44,masterlist!$C$2:$C$207,0)),INDEX(masterlist!$R$2:$R$207,MATCH(A44,masterlist!$C$2:$C$207,0))),\"\")","v":""},{"$f":"IFERROR(HYPERLINK(INDEX(masterlist!$U$2:$U$207,MATCH(A44,masterlist!$C$2:$C$207,0)),INDEX(masterlist!$T$2:$T$207,MATCH(A44,masterlist!$C$2:$C$207,0))),\"\")","v":""}]
[{"$f":"IFERROR(INDEX(masterlist!$A$2:$F$207,SMALL(IF(masterlist!$B$2:$B$207=\"LEG\",ROW(masterlist!$A$2:$F$207)-1),ROW(41:41)),3),\"\")","v":""},{"$f":"IFERROR(INDEX(masterlist!$D$2:$D$207,MATCH(A45,masterlist!$C$2:$C$207,0)),\"\")","v":""},{"$f":"IFERROR(INDEX(masterlist!$E$2:$E$207,MATCH(A45,masterlist!$C$2:$C$207,0)),\"\")","v":""},{"$f":"IFERROR(INDEX(masterlist!$G$2:$G$207,MATCH(A45,masterlist!$C$2:$C$207,0)),\"\")","v":""},{"$f":"IFERROR(INDEX(masterlist!$H$2:$H$207,MATCH(A45,masterlist!$C$2:$C$207,0)),\"\")","v":""},null,null,{"$f":"IFERROR(HYPERLINK(INDEX(masterlist!$M$2:$M$207,MATCH(A45,masterlist!$C$2:$C$207,0)),INDEX(masterlist!$L$2:$L$207,MATCH(A45,masterlist!$C$2:$C$207,0))),\"\")","v":""},{"$f":"IFERROR(HYPERLINK(INDEX(masterlist!$O$2:$O$207,MATCH(A45,masterlist!$C$2:$C$207,0)),INDEX(masterlist!$N$2:$N$207,MATCH(A45,masterlist!$C$2:$C$207,0))),\"\")","v":""},{"$f":"IFERROR(HYPERLINK(INDEX(masterlist!$Q$2:$Q$207,MATCH(A45,masterlist!$C$2:$C$207,0)),INDEX(masterlist!$P$2:$P$207,MATCH(A45,masterlist!$C$2:$C$207,0))),\"\")","v":""},{"$f":"IFERROR(HYPERLINK(INDEX(masterlist!$S$2:$S$207,MATCH(A45,masterlist!$C$2:$C$207,0)),INDEX(masterlist!$R$2:$R$207,MATCH(A45,masterlist!$C$2:$C$207,0))),\"\")","v":""},{"$f":"IFERROR(HYPERLINK(INDEX(masterlist!$U$2:$U$207,MATCH(A45,masterlist!$C$2:$C$207,0)),INDEX(masterlist!$T$2:$T$207,MATCH(A45,masterlist!$C$2:$C$207,0))),\"\")","v":""}]
[{"$f":"IFERROR(INDEX(masterlist!$A$2:$F$207,SMALL(IF(masterlist!$B$2:$B$207=\"LEG\",ROW(masterlist!$A$2:$F$207)-1),ROW(42:42)),3),\"\")","v":""},{"$f":"IFERROR(INDEX(masterlist!$D$2:$D$207,MATCH(A46,masterlist!$C$2:$C$207,0)),\"\")","v":""},{"$f":"IFERROR(INDEX(masterlist!$E$2:$E$207,MATCH(A46,masterlist!$C$2:$C$207,0)),\"\")","v":""},{"$f":"IFERROR(INDEX(masterlist!$G$2:$G$207,MATCH(A46,masterlist!$C$2:$C$207,0)),\"\")","v":""},{"$f":"IFERROR(INDEX(masterlist!$H$2:$H$207,MATCH(A46,masterlist!$C$2:$C$207,0)),\"\")","v":""},null,null,{"$f":"IFERROR(HYPERLINK(INDEX(masterlist!$M$2:$M$207,MATCH(A46,masterlist!$C$2:$C$207,0)),INDEX(masterlist!$L$2:$L$207,MATCH(A46,masterlist!$C$2:$C$207,0))),\"\")","v":""},{"$f":"IFERROR(HYPERLINK(INDEX(masterlist!$O$2:$O$207,MATCH(A46,masterlist!$C$2:$C$207,0)),INDEX(masterlist!$N$2:$N$207,MATCH(A46,masterlist!$C$2:$C$207,0))),\"\")","v":""},{"$f":"IFERROR(HYPERLINK(INDEX(masterlist!$Q$2:$Q$207,MATCH(A46,masterlist!$C$2:$C$207,0)),INDEX(masterlist!$P$2:$P$207,MATCH(A46,masterlist!$C$2:$C$207,0))),\"\")","v":""},{"$f":"IFERROR(HYPERLINK(INDEX(masterlist!$S$2:$S$207,MATCH(A46,masterlist!$C$2:$C$207,0)),INDEX(masterlist!$R$2:$R$207,MATCH(A46,masterlist!$C$2:$C$207,0))),\"\")","v":""},{"$f":"IFERROR(HYPERLINK(INDEX(masterlist!$U$2:$U$207,MATCH(A46,masterlist!$C$2:$C$207,0)),INDEX(masterlist!$T$2:$T$207,MATCH(A46,masterlist!$C$2:$C$207,0))),\"\")","v":""}]
[{"$f":"IFERROR(INDEX(masterlist!$A$2:$F$207,SMALL(IF(masterlist!$B$2:$B$207=\"LEG\",ROW(masterlist!$A$2:$F$207)-1),ROW(43:43)),3),\"\")","v":""},{"$f":"IFERROR(INDEX(masterlist!$D$2:$D$207,MATCH(A47,masterlist!$C$2:$C$207,0)),\"\")","v":""},{"$f":"IFERROR(INDEX(masterlist!$E$2:$E$207,MATCH(A47,masterlist!$C$2:$C$207,0)),\"\")","v":""},{"$f":"IFERROR(INDEX(masterlist!$G$2:$G$207,MATCH(A47,masterlist!$C$2:$C$207,0)),\"\")","v":""},{"$f":"IFERROR(INDEX(masterlist!$H$2:$H$207,MATCH(A47,masterlist!$C$2:$C$207,0)),\"\")","v":""},null,null,{"$f":"IFERROR(HYPERLINK(INDEX(masterlist!$M$2:$M$207,MATCH(A47,masterlist!$C$2:$C$207,0)),INDEX(masterlist!$L$2:$L$207,MATCH(A47,masterlist!$C$2:$C$207,0))),\"\")","v":""},{"$f":"IFERROR(HYPERLINK(INDEX(masterlist!$O$2:$O$207,MATCH(A47,masterlist!$C$2:$C$207,0)),INDEX(masterlist!$N$2:$N$207,MATCH(A47,masterlist!$C$2:$C$207,0))),\"\")","v":""},{"$f":"IFERROR(HYPERLINK(INDEX(masterlist!$Q$2:$Q$207,MATCH(A47,masterlist!$C$2:$C$207,0)),INDEX(masterlist!$P$2:$P$207,MATCH(A47,masterlist!$C$2:$C$207,0))),\"\")","v":""},{"$f":"IFERROR(HYPERLINK(INDEX(masterlist!$S$2:$S$207,MATCH(A47,masterlist!$C$2:$C$207,0)),INDEX(masterlist!$R$2:$R$207,MATCH(A47,masterlist!$C$2:$C$207,0))),\"\")","v":""},{"$f":"IFERROR(HYPERLINK(INDEX(masterlist!$U$2:$U$207,MATCH(A47,masterlist!$C$2:$C$207,0)),INDEX(masterlist!$T$2:$T$207,MATCH(A47,masterlist!$C$2:$C$207,0))),\"\")","v":""}]
[{"$f":"IFERROR(INDEX(masterlist!$A$2:$F$207,SMALL(IF(masterlist!$B$2:$B$207=\"LEG\",ROW(masterlist!$A$2:$F$207)-1),ROW(44:44)),3),\"\")","v":""},{"$f":"IFERROR(INDEX(masterlist!$D$2:$D$207,MATCH(A48,masterlist!$C$2:$C$207,0)),\"\")","v":""},{"$f":"IFERROR(INDEX(masterlist!$E$2:$E$207,MATCH(A48,masterlist!$C$2:$C$207,0)),\"\")","v":""},{"$f":"IFERROR(INDEX(masterlist!$G$2:$G$207,MATCH(A48,masterlist!$C$2:$C$207,0)),\"\")","v":""},{"$f":"IFERROR(INDEX(masterlist!$H$2:$H$207,MATCH(A48,masterlist!$C$2:$C$207,0)),\"\")","v":""},null,null,{"$f":"IFERROR(HYPERLINK(INDEX(masterlist!$M$2:$M$207,MATCH(A48,masterlist!$C$2:$C$207,0)),INDEX(masterlist!$L$2:$L$207,MATCH(A48,masterlist!$C$2:$C$207,0))),\"\")","v":""},{"$f":"IFERROR(HYPERLINK(INDEX(masterlist!$O$2:$O$207,MATCH(A48,masterlist!$C$2:$C$207,0)),INDEX(masterlist!$N$2:$N$207,MATCH(A48,masterlist!$C$2:$C$207,0))),\"\")","v":""},{"$f":"IFERROR(HYPERLINK(INDEX(masterlist!$Q$2:$Q$207,MATCH(A48,masterlist!$C$2:$C$207,0)),INDEX(masterlist!$P$2:$P$207,MATCH(A48,masterlist!$C$2:$C$207,0))),\"\")","v":""},{"$f":"IFERROR(HYPERLINK(INDEX(masterlist!$S$2:$S$207,MATCH(A48,masterlist!$C$2:$C$207,0)),INDEX(masterlist!$R$2:$R$207,MATCH(A48,masterlist!$C$2:$C$207,0))),\"\")","v":""},{"$f":"IFERROR(HYPERLINK(INDEX(masterlist!$U$2:$U$207,MATCH(A48,masterlist!$C$2:$C$207,0)),INDEX(masterlist!$T$2:$T$207,MATCH(A48,masterlist!$C$2:$C$207,0))),\"\")","v":""}]
[{"$f":"IFERROR(INDEX(masterlist!$A$2:$F$207,SMALL(IF(masterlist!$B$2:$B$207=\"LEG\",ROW(masterlist!$A$2:$F$207)-1),ROW(45:45)),3),\"\")","v":""},{"$f":"IFERROR(INDEX(masterlist!$D$2:$D$207,MATCH(A49,masterlist!$C$2:$C$207,0)),\"\")","v":""},{"$f":"IFERROR(INDEX(masterlist!$E$2:$E$207,MATCH(A49,masterlist!$C$2:$C$207,0)),\"\")","v":""},{"$f":"IFERROR(INDEX(masterlist!$G$2:$G$207,MATCH(A49,masterlist!$C$2:$C$207,0)),\"\")","v":""},{"$f":"IFERROR(INDEX(masterlist!$H$2:$H$207,MATCH(A49,masterlist!$C$2:$C$207,0)),\"\")","v":""},null,null,{"$f":"IFERROR(HYPERLINK(INDEX(masterlist!$M$2:$M$207,MATCH(A49,masterlist!$C$2:$C$207,0)),INDEX(masterlist!$L$2:$L$207,MATCH(A49,masterlist!$C$2:$C$207,0))),\"\")","v":""},{"$f":"IFERROR(HYPERLINK(INDEX(masterlist!$O$2:$O$207,MATCH(A49,masterlist!$C$2:$C$207,0)),INDEX(masterlist!$N$2:$N$207,MATCH(A49,masterlist!$C$2:$C$207,0))),\"\")","v":""},{"$f":"IFERROR(HYPERLINK(INDEX(masterlist!$Q$2:$Q$207,MATCH(A49,masterlist!$C$2:$C$207,0)),INDEX(masterlist!$P$2:$P$207,MATCH(A49,masterlist!$C$2:$C$207,0))),\"\")","v":""},{"$f":"IFERROR(HYPERLINK(INDEX(masterlist!$S$2:$S$207,MATCH(A49,masterlist!$C$2:$C$207,0)),INDEX(masterlist!$R$2:$R$207,MATCH(A49,masterlist!$C$2:$C$207,0))),\"\")","v":""},{"$f":"IFERROR(HYPERLINK(INDEX(masterlist!$U$2:$U$207,MATCH(A49,masterlist!$C$2:$C$207,0)),INDEX(masterlist!$T$2:$T$207,MATCH(A49,masterlist!$C$2:$C$207,0))),\"\")","v":""}]
[{"$f":"IFERROR(INDEX(masterlist!$A$2:$F$207,SMALL(IF(masterlist!$B$2:$B$207=\"LEG\",ROW(masterlist!$A$2:$F$207)-1),ROW(46:46)),3),\"\")","v":""},{"$f":"IFERROR(INDEX(masterlist!$D$2:$D$207,MATCH(A50,masterlist!$C$2:$C$207,0)),\"\")","v":""},{"$f":"IFERROR(INDEX(masterlist!$E$2:$E$207,MATCH(A50,masterlist!$C$2:$C$207,0)),\"\")","v":""},{"$f":"IFERROR(INDEX(masterlist!$G$2:$G$207,MATCH(A50,masterlist!$C$2:$C$207,0)),\"\")","v":""},{"$f":"IFERROR(INDEX(masterlist!$H$2:$H$207,MATCH(A50,masterlist!$C$2:$C$207,0)),\"\")","v":""},null,null,{"$f":"IFERROR(HYPERLINK(INDEX(masterlist!$M$2:$M$207,MATCH(A50,masterlist!$C$2:$C$207,0)),INDEX(masterlist!$L$2:$L$207,MATCH(A50,masterlist!$C$2:$C$207,0))),\"\")","v":""},{"$f":"IFERROR(HYPERLINK(INDEX(masterlist!$O$2:$O$207,MATCH(A50,masterlist!$C$2:$C$207,0)),INDEX(masterlist!$N$2:$N$207,MATCH(A50,masterlist!$C$2:$C$207,0))),\"\")","v":""},{"$f":"IFERROR(HYPERLINK(INDEX(masterlist!$Q$2:$Q$207,MATCH(A50,masterlist!$C$2:$C$207,0)),INDEX(masterlist!$P$2:$P$207,MATCH(A50,masterlist!$C$2:$C$207,0))),\"\")","v":""},{"$f":"IFERROR(HYPERLINK(INDEX(masterlist!$S$2:$S$207,MATCH(A50,masterlist!$C$2:$C$207,0)),INDEX(masterlist!$R$2:$R$207,MATCH(A50,masterlist!$C$2:$C$207,0))),\"\")","v":""},{"$f":"IFERROR(HYPERLINK(INDEX(masterlist!$U$2:$U$207,MATCH(A50,masterlist!$C$2:$C$207,0)),INDEX(masterlist!$T$2:$T$207,MATCH(A50,masterlist!$C$2:$C$207,0))),\"\")","v":""}]

{"sheet":"linked mastersheet","index":13,"n_rows":199,"n_cols":14,"rows_kept":199,"cut":false,"hidden":true,"merged":[]}
["HELPER","COMPONENT","ID","SUBCOMPONENT","STAGE","NUMBER","ACTIVITY","OTHER INFO","KEY","COUNTRY STATUS","COUNTRY NOTES",null,null,"this sheet is for vlookups in Summary (S0-S5)"]
[{"$f":"C2&\"-\"&J2","v":"DCA-Sur-0-1-1"},{"$f":"masterlist!B2","v":"DCA"},{"$f":"masterlist!C2","v":"DCA-Sur-0-1"},{"$f":"masterlist!D2","v":"Surveillance"},{"$f":"masterlist!E2","v":0},{"$f":"masterlist!F2","v":1},{"$f":"masterlist!G2","v":"La présence de la rage a-t-elle été officiellement OU officieusement mentionnée dans le pays ?"},{"$f":"masterlist!H2","v":"Il ne s’agit pas nécessairement de rapports officiels mais de toute mention telle qu’on peut les trouver sur les principaux média, par exemple presse, Facebook, etc. "},{"$f":"masterlist!I2","v":0},{"$f":"masterlist!J2","v":1},{"$f":"masterlist!K2","v":0}]
[{"$f":"C3&\"-\"&J3","v":"DCA-Sur-0-2-1"},{"$f":"masterlist!B3","v":"DCA"},{"$f":"masterlist!C3","v":"DCA-Sur-0-2"},{"$f":"masterlist!D3","v":"Surveillance"},{"$f":"masterlist!E3","v":0},{"$f":"masterlist!F3","v":2},{"$f":"masterlist!G3","v":"Les autorités nationales ont-elles jamais signalé au moins un cas de rage confirmée à l’OMS ou à WOAH ?"},{"$f":"masterlist!H3","v":"Année du dernier cas de rage signalé à l’OMS \n\nET/OU\n\nAnnée du dernier cas de rage signalé à l’WOAH. "},{"$f":"masterlist!I3","v":"KEY"},{"$f":"masterlist!J3","v":1},{"$f":"masterlist!K3","v":0}]
[{"$f":"C4&\"-\"&J4","v":"DCA-Sur-1-3-1"},{"$f":"masterlist!B4","v":"DCA"},{"$f":"masterlist!C4","v":"DCA-Sur-1-3"},{"$f":"masterlist!D4","v":"Surveillance"},{"$f":"masterlist!E4","v":1},{"$f":"masterlist!F4","v":3},{"$f":"masterlist!G4","v":"Les cas de rage canine sont-ils transmis du niveau local au niveau national ?"},{"$f":"masterlist!H4","v":"Le ministère national est-il informé des cas de rage canine dans le pays ?"},{"$f":"masterlist!I4","v":"KEY"},{"$f":"masterlist!J4","v":1},{"$f":"masterlist!K4","v":0}]
["DCA-Sur-1-4-1",{"$f":"masterlist!B5","v":"DCA"},{"$f":"masterlist!C5","v":"DCA-Sur-1-4"},{"$f":"masterlist!D5","v":"Surveillance"},{"$f":"masterlist!E5","v":1},{"$f":"masterlist!F5","v":4},{"$f":"masterlist!G5","v":"Les cas de rage humaine sont-ils transmis du niveau local au niveau national ?"},{"$f":"masterlist!H5","v":"Le ministère national est-il informé des cas de rage humaine dans le pays ?"},{"$f":"masterlist!I5","v":"KEY"},{"$f":"masterlist!J5","v":1},{"$f":"masterlist!K5","v":0}]
["DCA-Sur-1-5-1",{"$f":"masterlist!B6","v":"DCA"},{"$f":"masterlist!C6","v":"DCA-Sur-1-5"},{"$f":"masterlist!D6","v":"Surveillance"},{"$f":"masterlist!E6","v":1},{"$f":"masterlist!F6","v":5},{"$f":"masterlist!G6","v":"Existe-t-il une capacité d'analyse des données relatives à la rage canine au niveau national ? "},{"$f":"masterlist!H6","v":"Cela ne doit pas nécessairement être opérationnel pour la rage, mais il doit s'agir d'une infrastructure ou de systèmes qui pourraient éventuellement être utilisés pour l'analyse des données relatives à la rage. \n\nPar exemple, infrastructure pour l’analyse des données existant pour d’autres maladies/programmes, personnel correctement formé, technologie suffisante, etc. "},{"$f":"masterlist!I6","v":0},{"$f":"masterlist!J6","v":1},{"$f":"masterlist!K6","v":0}]
["DCA-Sur-1-6-1",{"$f":"masterlist!B7","v":"DCA"},{"$f":"masterlist!C7","v":"DCA-Sur-1-6"},{"$f":"masterlist!D7","v":"Surveillance"},{"$f":"masterlist!E7","v":1},{"$f":"masterlist!F7","v":6},{"$f":"masterlist!G7","v":"Existe-t-il une capacité d'analyse des données relatives à la rage humaine au niveau national ? "},{"$f":"masterlist!H7","v":"Cela ne doit pas nécessairement être opérationnel pour la rage, mais il doit s'agir d'une infrastructure ou de systèmes que les parties prenantes pourraient éventuellement utiliser pour analyser les données relatives à la rage. \n\nPar exemple, infrastructure pour l’analyse des données existant pour d’autres maladies/programmes, personnel correctement formé, technologie suffisante, etc."},{"$f":"masterlist!I7","v":0},{"$f":"masterlist!J7","v":1},{"$f":"masterlist!K7","v":0}]
["DCA-Sur-1-7-1",{"$f":"masterlist!B8","v":"DCA"},{"$f":"masterlist!C8","v":"DCA-Sur-1-7"},{"$f":"masterlist!D8","v":"Surveillance"},{"$f":"masterlist!E8","v":1},{"$f":"masterlist!F8","v":7},{"$f":"masterlist!G8","v":"Disposez-vous d’un système de surveillance* de la rage animale ? "},{"$f":"masterlist!H8","v":"Vous pouvez répondre “Oui” s’il est en place. Cela ne signifie pas nécessairement qu’il fonctionne de façon optimale."},{"$f":"masterlist!I8","v":0},{"$f":"masterlist!J8","v":1},{"$f":"masterlist!K8","v":0}]
["DCA-Sur-1-8-0",{"$f":"masterlist!B9","v":"DCA"},{"$f":"masterlist!C9","v":"DCA-Sur-1-8"},{"$f":"masterlist!D9","v":"Surveillance"},{"$f":"masterlist!E9","v":1},{"$f":"masterlist!F9","v":8},{"$f":"masterlist!G9","v":"Transmettez-vous chaque année toutes les données relatives à la rage animale à l’WOAH ?"},{"$f":"masterlist!H9","v":"Vous ne devez répondre “Oui” que si vous transmettez régulièrement vos données \n\nVous devez répondre “Non” si les données ne sont transmises que de temps en temps."},{"$f":"masterlist!I9","v":0},{"$f":"masterlist!J9","v":0},{"$f":"masterlist!K9","v":0}]
["DCA-Sur-1-9-1",{"$f":"masterlist!B10","v":"DCA"},{"$f":"masterlist!C10","v":"DCA-Sur-1-9"},{"$f":"masterlist!D10","v":"Surveillance"},{"$f":"masterlist!E10","v":1},{"$f":"masterlist!F10","v":9},{"$f":"masterlist!G10","v":"Disposez-vous d’un système de surveillance* de la rage humaine ? "},{"$f":"masterlist!H10","v":"Vous pouvez répondre “Oui” s’il est en place ? Cela ne signifie pas nécessairement qu’il fonctionne de manière optimale. "},{"$f":"masterlist!I10","v":0},{"$f":"masterlist!J10","v":1},{"$f":"masterlist!K10","v":0}]
["DCA-Sur-1-10-0",{"$f":"masterlist!B11","v":"DCA"},{"$f":"masterlist!C11","v":"DCA-Sur-1-10"},{"$f":"masterlist!D11","v":"Surveillance"},{"$f":"masterlist!E11","v":1},{"$f":"masterlist!F11","v":10},{"$f":"masterlist!G11","v":"Transmettez-vous chaque année toutes les données relatives à la rage humaine à l’OMS ?"},{"$f":"masterlist!H11","v":"Vous ne devez répondre “Oui” que si vous transmettez régulièrement vos données. \n\nVous devez répondre “Non” si les données ne sont transmises que de temps en temps. "},{"$f":"masterlist!I11","v":0},{"$f":"masterlist!J11","v":0},{"$f":"masterlist!K11","v":0}]
["DCA-Sur-1-11-1",{"$f":"masterlist!B12","v":"DCA"},{"$f":"masterlist!C12","v":"DCA-Sur-1-11"},{"$f":"masterlist!D12","v":"Surveillance"},{"$f":"masterlist!E12","v":1},{"$f":"masterlist!F12","v":11},{"$f":"masterlist!G12","v":"Les données sur les cas de morsure humaine sont-elles utilisées pour les prises de décision ?"},{"$f":"masterlist!H12","v":"Par exemple, le nombre de cas de morsures humaines signalés est utilisé pour déterminer le nombre de doses de vaccin contre la rage humaine à acheter pour l'année suivante. "},{"$f":"masterlist!I12","v":0},{"$f":"masterlist!J12","v":1},{"$f":"masterlist!K12","v":0}]
["DCA-Sur-1-12-0",{"$f":"masterlist!B13","v":"DCA"},{"$f":"masterlist!C13","v":"DCA-Sur-1-12"},{"$f":"masterlist!D13","v":"Surveillance"},{"$f":"masterlist!E13","v":1},{"$f":"masterlist!F13","v":12},{"$f":"masterlist!G13","v":"Avez-vous jamais réalisé des études sur la taille et l’accessibilité des populations de chiens dans votre pays ?"},{"$f":"masterlist!H13","v":"Vous pouvez répondre “Oui” si les études ont été réalisées dans une zone pilote et non pas dans tout le pays. C’est aussi possible si des organisations non-gouvernementales ont entrepris ces études à condition que les ministères du gouvernement soient informés des résultats. \n\nMentionnez les années durant lesquelles ces études ont été réalisées."},{"$f":"masterlist!I13","v":0},{"$f":"masterlist!J13","v":0},{"$f":"masterlist!K13","v":0}]
["DCA-Sur-2-13-1",{"$f":"masterlist!B14","v":"DCA"},{"$f":"masterlist!C14","v":"DCA-Sur-2-13"},{"$f":"masterlist!D14","v":"Surveillance"},{"$f":"masterlist!E14","v":2},{"$f":"masterlist!F14","v":13},{"$f":"masterlist!G14","v":"Le système de surveillance de la rage humaine recueille-t-il toutes les données appropriées sur la rage et est-il pleinement opérationnel avec des mécanismes de retour d'information entre les niveaux administratifs (national, province, district, municipalité, etc.) ?"},{"$f":"masterlist!H14","v":"Le système doit recueillir toute les données pertinentes nécessaires à une prise de décision fondée sur les données. \n\nEn outre, ces données doivent circuler du niveau local au niveau national, être analysées et faire l'objet d'un rapport, et les résultats de l'analyse doivent ensuite être partagés avec le   niveau local. Cela doit s’appliquer à toutes les données, de manière régulière et en temps opportun."},{"$f":"masterlist!I14","v":0},{"$f":"masterlist!J14","v":1},{"$f":"masterlist!K14","v":0}]
["DCA-Sur-2-14-1",{"$f":"masterlist!B15","v":"DCA"},{"$f":"masterlist!C15","v":"DCA-Sur-2-14"},{"$f":"masterlist!D15","v":"Surveillance"},{"$f":"masterlist!E15","v":2},{"$f":"masterlist!F15","v":14},{"$f":"masterlist!G15","v":"Le système de surveillance de la rage animale recueille-t-il toutes les données appropriées sur la rage et est-il pleinement fonctionnel avec des mécanismes de retour d'information entre les niveaux administratifs (national, province, district, municipalité, etc.) ?"},{"$f":"masterlist!H15","v":"Le système doit recueillir toute les données pertinentes nécessaires à une prise de décision fondée sur les données. \n\nEn outre, ces données doivent circuler du niveau local au niveau national, être analysées et faire l'objet d'un rapport, et les résultats de l'analyse doivent ensuite être partagés avec le niveau local. Cela doit appliquer à toutes les données, de manière régulière et en temps opportun."},{"$f":"masterlist!I15","v":0},{"$f":"masterlist!J15","v":1},{"$f":"masterlist!K15","v":0}]
["DCA-Sur-2-15-0",{"$f":"masterlist!B16","v":"DCA"},{"$f":"masterlist!C16","v":"DCA-Sur-2-15"},{"$f":"masterlist!D16","v":"Surveillance"},{"$f":"masterlist!E16","v":2},{"$f":"masterlist!F16","v":15},{"$f":"masterlist!G16","v":"Les données relatives à la rage (humaine et animale) sont-elles régulièrement partagées dans leur TOTALITE avec toutes les autres parties prenantes ?"},{"$f":"masterlist!H16","v":"Vous ne devez répondre “oui” que si les deux secteurs partagent régulièrement leurs données. \nParties prenantes impliquées – par exemple les décideurs politiques, les éducateurs, les ONG et d'autres personnes et organisations concernées."},{"$f":"masterlist!I16","v":"KEY"},{"$f":"masterlist!J16","v":0},{"$f":"masterlist!K16","v":0}]
["DCA-Sur-2-16-0",{"$f":"masterlist!B17","v":"DCA"},{"$f":"masterlist!C17","v":"DCA-Sur-2-16"},{"$f":"masterlist!D17","v":"Surveillance"},{"$f":"masterlist!E17","v":2},{"$f":"masterlist!F17","v":16},{"$f":"masterlist!G17","v":"Un système de surveillance de la rage One Health (comprenant des données de surveillance humaines et animales à tous les niveaux) a-t-il été mis en place ? \n\nOU\n\nExiste-t-il une structure officielle pour le partage régulier et opportun de TOUTES les données pertinentes entre les systèmes de surveillance de la santé humaine et animale ?"},{"$f":"masterlist!H17","v":"S'il n'existe pas de système commun, des liens clairs doivent être établis entre les systèmes de santé humaine et animale."},{"$f":"masterlist!I17","v":0},{"$f":"masterlist!J17","v":0},{"$f":"masterlist!K17","v":0}]
["DCA-Sur-3-17-0",{"$f":"masterlist!B18","v":"DCA"},{"$f":"masterlist!C18","v":"DCA-Sur-3-17"},{"$f":"masterlist!D18","v":"Surveillance"},{"$f":"masterlist!E18","v":3},{"$f":"masterlist!F18","v":17},{"$f":"masterlist!G18","v":"Le nombre de prélèvements positifs diminue-t-il d’année en année tout en conservant un taux élevé de prélèvements soumis à travers le pays ?"},{"$f":"masterlist!H18","v":"Vous ne devez répondre “Oui” que s’il existe un système effectif de surveillance en place à travers tout le pays."},{"$f":"masterlist!I18","v":0},{"$f":"masterlist!J18","v":0},{"$f":"masterlist!K18","v":0}]
["DCA-Sur-3-18-0",{"$f":"masterlist!B19","v":"DCA"},{"$f":"masterlist!C19","v":"DCA-Sur-3-18"},{"$f":"masterlist!D19","v":"Surveillance"},{"$f":"masterlist!E19","v":3},{"$f":"masterlist!F19","v":18},{"$f":"masterlist!G19","v":"Tandis que votre pays se rapproche de l’élimination de la rage humaine, avez-vous rassemblé des preuves épidémiologiques de zones exemptes de rage humaine transmise par les chiens ?"},{"$f":"masterlist!H19","v":" "},{"$f":"masterlist!I19","v":"KEY"},{"$f":"masterlist!J19","v":0},{"$f":"masterlist!K19","v":0}]
["DCA-Sur-3-19-0",{"$f":"masterlist!B20","v":"DCA"},{"$f":"masterlist!C20","v":"DCA-Sur-3-19"},{"$f":"masterlist!D20","v":"Surveillance"},{"$f":"masterlist!E20","v":3},{"$f":"masterlist!F20","v":19},{"$f":"masterlist!G20","v":"Avez-vous rassemblé des preuves épidémiologiques de zones où les cas de rage animale causées par le variant de rage canine ont été absents pendant une période d’au moins 2 ans ?"},{"$f":"masterlist!H20","v":"Vous pouvez répondre “Oui” s’il existe un système de surveillance efficace en place qui n’a détecté que des prélèvements négatifs pour la rage."},{"$f":"masterlist!I20","v":"KEY"},{"$f":"masterlist!J20","v":0},{"$f":"masterlist!K20","v":0}]
["DCA-Sur-4-20-0",{"$f":"masterlist!B21","v":"DCA"},{"$f":"masterlist!C21","v":"DCA-Sur-4-20"},{"$f":"masterlist!D21","v":"Surveillance"},{"$f":"masterlist!E21","v":4},{"$f":"masterlist!F21","v":20},{"$f":"masterlist!G21","v":"Tandis que votre pays se rapproche de l’élimination de la rage canine, les données épidémiologiques issues de la surveillance régulière de tous les animaux (non seulement les chiens) ont-elles été utilisées pour affiner la stratégie nationale de lutte contre la rage ? "},{"$f":"masterlist!H21","v":"Par exemple bêtes de somme, bétail et faune sauvage. "},{"$f":"masterlist!I21","v":"KEY"},{"$f":"masterlist!J21","v":0},{"$f":"masterlist!K21","v":0}]
["DCA-Sur-5-21-0",{"$f":"masterlist!B22","v":"DCA"},{"$f":"masterlist!C22","v":"DCA-Sur-5-21"},{"$f":"masterlist!D22","v":"Surveillance"},{"$f":"masterlist!E22","v":5},{"$f":"masterlist!F22","v":21},{"$f":"masterlist!G22","v":"L’absence de rage transmise par les chiens dans tout le pays a-t-elle été vérifiée par l’absence de cas de variant canin durant une période d’au moins 2 ans ? "},{"$f":"masterlist!H22","v":" "},{"$f":"masterlist!I22","v":"KEY"},{"$f":"masterlist!J22","v":0},{"$f":"masterlist!K22","v":0}]
["PCO-Vac-1-1-1",{"$f":"masterlist!B23","v":"PCO"},{"$f":"masterlist!C23","v":"PCO-Vac-1-1"},{"$f":"masterlist!D23","v":"Vaccins humains"},{"$f":"masterlist!E23","v":1},{"$f":"masterlist!F23","v":1},{"$f":"masterlist!G23","v":"Des vaccins pour la prophylaxie de la rage humaine sont-ils disponibles dans le pays ?"},{"$f":"masterlist!H23","v":"Vous pouvez répondre “Oui” s’il y a des vaccins antirabiques humains dans le pays, quel que soient le nombre de doses ou leur distribution."},{"$f":"masterlist!I23","v":"KEY"},{"$f":"masterlist!J23","v":1},{"$f":"masterlist!K23","v":0}]
["PCO-Vac-1-2-1",{"$f":"masterlist!B24","v":"PCO"},{"$f":"masterlist!C24","v":"PCO-Vac-1-2"},{"$f":"masterlist!D24","v":"Vaccins humains"},{"$f":"masterlist!E24","v":1},{"$f":"masterlist!F24","v":2},{"$f":"masterlist!G24","v":"Est-il possible d'offrir la Prophylaxie préexposition  aux professionnels à risque dans au moins un site de projet pilote ?"},{"$f":"masterlist!H24","v":"Un professionnel à risque travaillant sur un projet pilote peut-il avoir accès à une prophylaxie antirabique ? Cela ne signifie pas que la PrPE doit être accessible dans tout le pays, mais elle doit être disponible au moins sur un des sites du projet."},{"$f":"masterlist!I24","v":"KEY"},{"$f":"masterlist!J24","v":1},{"$f":"masterlist!K24","v":0}]
["PCO-Vac-2-3-1",{"$f":"masterlist!B25","v":"PCO"},{"$f":"masterlist!C25","v":"PCO-Vac-2-3"},{"$f":"masterlist!D25","v":"Vaccins humains"},{"$f":"masterlist!E25","v":2},{"$f":"masterlist!F25","v":3},{"$f":"masterlist!G25","v":"Avez-vous procédé à des évaluations ou à des enquêtes pour déterminer comment les vaccins contre la rage humaine devraient être distribués dans le pays ?"},{"$f":"masterlist!H25","v":"Vous devez répondre “Oui” si une évaluation a été réalisée en ce qui concerne la prophylaxie post-exposition et pré-exposition.  Il ne s'agit pas nécessairement d'une évaluation formelle, mais de décisions fondées sur des données. Par exemple, la distribution de vaccins sur la base du nombre de cas de morsures par chaque établissement de santé au cours de l'année précédente."},{"$f":"masterlist!I25","v":0},{"$f":"masterlist!J25","v":1},{"$f":"masterlist!K25","v":0}]
["PCO-Vac-2-4-1",{"$f":"masterlist!B26","v":"PCO"},{"$f":"masterlist!C26","v":"PCO-Vac-2-4"},{"$f":"masterlist!D26","v":"Vaccins humains"},{"$f":"masterlist!E26","v":2},{"$f":"masterlist!F26","v":4},{"$f":"masterlist!G26","v":"Les vaccins antirabiques humains préqualifiés par l'OMS (c'est-à-dire de haute qualité) sont-ils disponibles et accessibles dans la plupart des régions du pays ?"},{"$f":"masterlist!H26","v":" "},{"$f":"masterlist!I26","v":"KEY"},{"$f":"masterlist!J26","v":1},{"$f":"masterlist!K26","v":0}]
["PCO-Vac-2-5-0",{"$f":"masterlist!B27","v":"PCO"},{"$f":"masterlist!C27","v":"PCO-Vac-2-5"},{"$f":"masterlist!D27","v":"Vaccins humains"},{"$f":"masterlist!E27","v":2},{"$f":"masterlist!F27","v":5},{"$f":"masterlist!G27","v":"La prophylaxie post-exposition est-elle gratuite (ou au moins partiellement subventionnée) pour tout individu potentiellement exposé dans le pays ?"},{"$f":"masterlist!H27","v":" "},{"$f":"masterlist!I27","v":0},{"$f":"masterlist!J27","v":0},{"$f":"masterlist!K27","v":0}]
["PCO-Vac-2-6-0",{"$f":"masterlist!B28","v":"PCO"},{"$f":"masterlist!C28","v":"PCO-Vac-2-6"},{"$f":"masterlist!D28","v":"Vaccins humains"},{"$f":"masterlist!E28","v":2},{"$f":"masterlist!F28","v":6},{"$f":"masterlist!G28","v":"Le gouvernement n’utilise-t-il que des vaccins antirabiques humains préqualifiés par l’OMS dans le pays ? "},{"$f":"masterlist!H28","v":"Vous pouvez répondre “Oui” si les produits biologiques à usage humain qui ne sont pas préqualifiés par l’OMS (par exemple vaccins à base de tissue nerveux, vaccins de qualité médiocre) sont en voie d’élimination."},{"$f":"masterlist!I28","v":0},{"$f":"masterlist!J28","v":0},{"$f":"masterlist!K28","v":0}]
["PCO-Vac-3-7-1",{"$f":"masterlist!B29","v":"PCO"},{"$f":"masterlist!C29","v":"PCO-Vac-3-7"},{"$f":"masterlist!D29","v":"Vaccins humains"},{"$f":"masterlist!E29","v":3},{"$f":"masterlist!F29","v":7},{"$f":"masterlist!G29","v":"Les vaccins préqualifiés par l’OMS ET les Immunoglobulines humaines antirabiques (RIG) sont-ils tous deux disponibles et accessibles aux personnes à haut risque et exposées dans l'ensemble du pays ?"},{"$f":"masterlist!H29","v":"Vous pouvez répondre “Oui” si les vaccins ET les RIG sont tous deux faciles à obtenir n’importe où dans le pays. "},{"$f":"masterlist!I29","v":"KEY"},{"$f":"masterlist!J29","v":1},{"$f":"masterlist!K29","v":0}]
["PCO-Vac-5-8-0",{"$f":"masterlist!B30","v":"PCO"},{"$f":"masterlist!C30","v":"PCO-Vac-5-8"},{"$f":"masterlist!D30","v":"Vaccins humains"},{"$f":"masterlist!E30","v":5},{"$f":"masterlist!F30","v":8},{"$f":"masterlist!G30","v":"Maintenant qu’il n’y a plus de rage humaine ni animale dans votre pays, des protocoles modifiés pour l’administration de la PPE dans les zones exemptes de rage ont-ils été mis en œuvre ?"},{"$f":"masterlist!H30","v":"La modification des protocoles comprend une meilleure évaluation du risque avant l’administration de la PPE, puisque le pays est désormais exempt de d’endémie rabique."},{"$f":"masterlist!I30","v":"KEY"},{"$f":"masterlist!J30","v":0},{"$f":"masterlist!K30","v":0}]
["PCO-Vac-1-9-1",{"$f":"masterlist!B31","v":"PCO"},{"$f":"masterlist!C31","v":"PCO-Vac-1-9"},{"$f":"masterlist!D31","v":"Vaccins canins"},{"$f":"masterlist!E31","v":1},{"$f":"masterlist!F31","v":9},{"$f":"masterlist!G31","v":"Les vaccins contre la rage canine sont-ils disponibles dans l’ensemble du pays ?"},{"$f":"masterlist!H31","v":"Vous pouvez répondre “Oui” s’il y a des vaccins antirabiques pour animaux dans le pays, quels que soient le nombre de doses ou leur distribution."},{"$f":"masterlist!I31","v":"KEY"},{"$f":"masterlist!J31","v":1},{"$f":"masterlist!K31","v":0}]
["PCO-Vac-1-10-1",{"$f":"masterlist!B32","v":"PCO"},{"$f":"masterlist!C32","v":"PCO-Vac-1-10"},{"$f":"masterlist!D32","v":"Vaccins canins"},{"$f":"masterlist!E32","v":1},{"$f":"masterlist!F32","v":10},{"$f":"masterlist!G32","v":"La vaccination des chiens a-t-elle été débutée quelque part dans le pays ?"},{"$f":"masterlist!H32","v":"Vous pouvez répondre “Oui” s’il y a des campagnes de vaccination, même si elles sont petites ou localisées."},{"$f":"masterlist!I32","v":0},{"$f":"masterlist!J32","v":1},{"$f":"masterlist!K32","v":0}]
["PCO-Vac-2-11-1",{"$f":"masterlist!B33","v":"PCO"},{"$f":"masterlist!C33","v":"PCO-Vac-2-11"},{"$f":"masterlist!D33","v":"Vaccins canins"},{"$f":"masterlist!E33","v":2},{"$f":"masterlist!F33","v":11},{"$f":"masterlist!G33","v":"Le gouvernement n’utilise-t-il que des vaccins pour les chiens de haute qualité, conformément aux normes de l’OMSA ?"},{"$f":"masterlist!H33","v":" "},{"$f":"masterlist!I33","v":0},{"$f":"masterlist!J33","v":1},{"$f":"masterlist!K33","v":0}]
["PCO-Vac-2-12-0",{"$f":"masterlist!B34","v":"PCO"},{"$f":"masterlist!C34","v":"PCO-Vac-2-12"},{"$f":"masterlist!D34","v":"Vaccins canins"},{"$f":"masterlist!E34","v":2},{"$f":"masterlist!F34","v":12},{"$f":"masterlist!G34","v":"Les campagnes gouvernementales de vaccination des chiens gagnent-elles régulièrement en ampleur et en intensité ?"},{"$f":"masterlist!H34","v":"Vous ne devez répondre “Oui” que si la quantité de vaccins antirabiques achetés augmente régulièrement. Autrement dit, il faut vacciner davantage de chiens (comparativement aux campagnes précédentes) si la rage transmise par les chiens est toujours endémique dans le pays."},{"$f":"masterlist!I34","v":0},{"$f":"masterlist!J34","v":0},{"$f":"masterlist!K34","v":0}]
["PCO-Vac-3-13-0",{"$f":"masterlist!B35","v":"PCO"},{"$f":"masterlist!C35","v":"PCO-Vac-3-13"},{"$f":"masterlist!D35","v":"Vaccins canins"},{"$f":"masterlist!E35","v":3},{"$f":"masterlist!F35","v":13},{"$f":"masterlist!G35","v":"Le gouvernement a-t-il la capacité (personnel formé, véhicules, aiguilles, seringues, etc…) d’atteindre 70% de couverture vaccinale de tous les chiens à risque chaque année ?  "},{"$f":"masterlist!H35","v":"Si vous receviez un lot important de vaccin antirabique, seriez-vous en mesure de l'utiliser dans tout le pays avec le personnel et les ressources dont vous disposez ? "},{"$f":"masterlist!I35","v":0},{"$f":"masterlist!J35","v":0},{"$f":"masterlist!K35","v":0}]
["PCO-Vac-3-14-0",{"$f":"masterlist!B36","v":"PCO"},{"$f":"masterlist!C36","v":"PCO-Vac-3-14"},{"$f":"masterlist!D36","v":"Vaccins canins"},{"$f":"masterlist!E36","v":3},{"$f":"masterlist!F36","v":14},{"$f":"masterlist!G36","v":"Les campagnes de vaccination de masse des chiens atteignent-elles au moins 70% de la population canine à risque dans le pays chaque année ? "},{"$f":"masterlist!H36","v":"Vous devez atteindre une couverture vaccinale de 70% des chiens, qu’ils aient ou non un propriétaire, et ce chaque année pendant plusieurs années consécutives. "},{"$f":"masterlist!I36","v":"KEY"},{"$f":"masterlist!J36","v":0},{"$f":"masterlist!K36","v":0}]
["PCO-Vac-3-15-0",{"$f":"masterlist!B37","v":"PCO"},{"$f":"masterlist!C37","v":"PCO-Vac-3-15"},{"$f":"masterlist!D37","v":"Vaccins canins"},{"$f":"masterlist!E37","v":3},{"$f":"masterlist!F37","v":15},{"$f":"masterlist!G37","v":"Des enquêtes* post-vaccinales sont-elles effectuées pour évaluer le taux de couverture vaccinale des chiens ? "},{"$f":"masterlist!H37","v":"Quelle est la méthode ou quel est l’outil utilisés ?"},{"$f":"masterlist!I37","v":"KEY"},{"$f":"masterlist!J37","v":0},{"$f":"masterlist!K37","v":0}]
["PCO-Vac-4-16-0",{"$f":"masterlist!B38","v":"PCO"},{"$f":"masterlist!C38","v":"PCO-Vac-4-16"},{"$f":"masterlist!D38","v":"Vaccins canins"},{"$f":"masterlist!E38","v":4},{"$f":"masterlist!F38","v":16},{"$f":"masterlist!G38","v":"Maintenant qu’il n’y a plus que très peu de cas de rage animale dans votre pays, les campagnes de vaccination des chiens se poursuivent-elles dans les zones où la rage canine est encore présente ou là où cela est justifié par ailleurs (par exemple risque d’introduction) ? "},{"$f":"masterlist!H38","v":"Ne répondez “Oui” que si il y a peu de cas de rage grâce à des campagnes de vaccination canine réussies et à une bonne surveillance."},{"$f":"masterlist!I38","v":"KEY"},{"$f":"masterlist!J38","v":0},{"$f":"masterlist!K38","v":0}]
["PCO-Vac-5-17-0",{"$f":"masterlist!B39","v":"PCO"},{"$f":"masterlist!C39","v":"PCO-Vac-5-17"},{"$f":"masterlist!D39","v":"Vaccins canins"},{"$f":"masterlist!E39","v":5},{"$f":"masterlist!F39","v":17},{"$f":"masterlist!G39","v":"Même s’il n’y a plus de cas de rage grâce aux campagnes de vaccination de masse, les campagnes stratégiques de vaccination de chiens sont-elles maintenues lorsque cela se justifie ? "},{"$f":"masterlist!H39","v":"Par exemple, les zones frontalières avec des pays d’endémie rabique, les ports d’entrée."},{"$f":"masterlist!I39","v":"KEY"},{"$f":"masterlist!J39","v":0},{"$f":"masterlist!K39","v":0}]
["PCO-Rép-1-18-0",{"$f":"masterlist!B40","v":"PCO"},{"$f":"masterlist!C40","v":"PCO-Rép-1-18"},{"$f":"masterlist!D40","v":"Réponse à l'apparition d'un foyer et autres activités de lutte contre la rage"},{"$f":"masterlist!E40","v":1},{"$f":"masterlist!F40","v":18},{"$f":"masterlist!G40","v":"Avez-vous des protocoles pour la réalisation d’enquêtes conjointes des cas de rage ?"},{"$f":"masterlist!H40","v":"Cela peut inclure les protocoles de Gestion Intégrée des Cas de Morsure (ICBM) *.\n\nCela ne signifie pas que les protocoles doivent être mis en œuvre, mais qu’ils soient simplement disponibles"},{"$f":"masterlist!I40","v":0},{"$f":"masterlist!J40","v":0},{"$f":"masterlist!K40","v":0}]
["PCO-Rép-1-19-0",{"$f":"masterlist!B41","v":"PCO"},{"$f":"masterlist!C41","v":"PCO-Rép-1-19"},{"$f":"masterlist!D41","v":"Réponse à l'apparition d'un foyer et autres activités de lutte contre la rage"},{"$f":"masterlist!E41","v":1},{"$f":"masterlist!F41","v":19},{"$f":"masterlist!G41","v":"Les protocoles d’enquête conjointe des cas de rage ont-ils été mis en œuvre quelque part dans le pays ? "},{"$f":"masterlist!H41","v":"Cela peut inclure les protocoles de Gestion Intégrée des Cas de Morsure (ICBM) *.\n\nIl peut s’agir d’une zone de projet pilote."},{"$f":"masterlist!I41","v":0},{"$f":"masterlist!J41","v":0},{"$f":"masterlist!K41","v":0}]
["PCO-Rép-2-20-0",{"$f":"masterlist!B42","v":"PCO"},{"$f":"masterlist!C42","v":"PCO-Rép-2-20"},{"$f":"masterlist!D42","v":"Réponse à l'apparition d'un foyer et autres activités de lutte contre la rage"},{"$f":"masterlist!E42","v":2},{"$f":"masterlist!F42","v":20},{"$f":"masterlist!G42","v":"Les protocoles d’enquête conjointe des cas de rage, y compris le partage d’informations entre secteurs, ont-ils été approuvés au niveau national ? "},{"$f":"masterlist!H42","v":"Secteurs impliqués. Veuillez expliquer comment l’information est partagée entre secteurs. "},{"$f":"masterlist!I42","v":0},{"$f":"masterlist!J42","v":0},{"$f":"masterlist!K42","v":0}]
["PCO-Rép-2-21-0",{"$f":"masterlist!B43","v":"PCO"},{"$f":"masterlist!C43","v":"PCO-Rép-2-21"},{"$f":"masterlist!D43","v":"Réponse à l'apparition d'un foyer et autres activités de lutte contre la rage"},{"$f":"masterlist!E43","v":2},{"$f":"masterlist!F43","v":21},{"$f":"masterlist!G43","v":"Existe-t-il une réponse active lors de foyers de cas en conformité avec les protocoles d’enquête conjointe établis ? "},{"$f":"masterlist!H43","v":"Pour répondre à cette question par l'affirmative, des protocoles formels et établis doivent être mis en place.\n\nCela peut inclure la mise en œuvre des protocoles de Gestion Intégrée des Cas de Morsure (ICBM) *."},{"$f":"masterlist!I43","v":"KEY"},{"$f":"masterlist!J43","v":0},{"$f":"masterlist!K43","v":0}]
["PCO-Rép-2-22-0",{"$f":"masterlist!B44","v":"PCO"},{"$f":"masterlist!C44","v":"PCO-Rép-2-22"},{"$f":"masterlist!D44","v":"Réponse à l'apparition d'un foyer et autres activités de lutte contre la rage"},{"$f":"masterlist!E44","v":2},{"$f":"masterlist!F44","v":22},{"$f":"masterlist!G44","v":"Existe-t-il des protocoles pour observer les chiens suspects de rage ? "},{"$f":"masterlist!H44","v":"Il doit s’agir de protocoles officiels mis en place pour l’observation de chiens suspects (par exemple, les chiens impliqués dans des incidents de morsure).\n\nCela peut comprendre des protocoles de quarantaine à domicile si nécessaire. "},{"$f":"masterlist!I44","v":0},{"$f":"masterlist!J44","v":0},{"$f":"masterlist!K44","v":0}]
["PCO-Rép-2-23-0",{"$f":"masterlist!B45","v":"PCO"},{"$f":"masterlist!C45","v":"PCO-Rép-2-23"},{"$f":"masterlist!D45","v":"Réponse à l'apparition d'un foyer et autres activités de lutte contre la rage"},{"$f":"masterlist!E45","v":2},{"$f":"masterlist!F45","v":23},{"$f":"masterlist!G45","v":"Des installations ont-elles été mises en place, ou des protocoles de quarantaine à domicile sont-ils disponibles pour la mise en quarantaine des chiens suspects d'être enragés ?"},{"$f":"masterlist!H45","v":"Une quarantaine à domicile est adéquate à condition que le protocole prenne en compte tous les aspects pertinents de la quarantaine à domicile (par exemple suivi, bien-être animal, isolement)."},{"$f":"masterlist!I45","v":0},{"$f":"masterlist!J45","v":0},{"$f":"masterlist!K45","v":0}]
["PCO-Rép-2-24-0",{"$f":"masterlist!B46","v":"PCO"},{"$f":"masterlist!C46","v":"PCO-Rép-2-24"},{"$f":"masterlist!D46","v":"Réponse à l'apparition d'un foyer et autres activités de lutte contre la rage"},{"$f":"masterlist!E46","v":2},{"$f":"masterlist!F46","v":24},{"$f":"masterlist!G46","v":"Les mesures vétérinaires d’inspection et de quarantaine aux frontières ont-elles été mises en place dans les ports d’entrée ? "},{"$f":"masterlist!H46","v":"Cela signifie que des mesures vétérinaires strictes aux frontières sont en place, financées et dotées de ressources dans tous les ports d’entrée officiels, afin qu’aucun cas de rage d’origine extérieure ne puisse être introduit dans le pays. "},{"$f":"masterlist!I46","v":0},{"$f":"masterlist!J46","v":0},{"$f":"masterlist!K46","v":0}]
["PCO-Rép-3-25-0",{"$f":"masterlist!B47","v":"PCO"},{"$f":"masterlist!C47","v":"PCO-Rép-3-25"},{"$f":"masterlist!D47","v":"Réponse à l'apparition d'un foyer et autres activités de lutte contre la rage"},{"$f":"masterlist!E47","v":3},{"$f":"masterlist!F47","v":25},{"$f":"masterlist!G47","v":"Existe-t-il une capacité à mener des enquêtes conjointes sur le terrain et à planifier des réponses à des foyers de rage humaine dans l'ensemble du pays ?"},{"$f":"masterlist!H47","v":"Cela signifie que vous devez avoir la capacité de mener une réponse à une épidémie dans n'importe quelle région du pays, y compris dans les régions les plus reculées. Cela ne signifie toutefois pas que cette activité doit être en place. \n\nPar exemple, vous pouvez déterminer s'il est possible d'utiliser le même réseau de réponse aux épidémies que celui utilisé pour d'autres maladies.  "},{"$f":"masterlist!I47","v":0},{"$f":"masterlist!J47","v":0},{"$f":"masterlist!K47","v":0}]
["PCO-Rép-3-26-0",{"$f":"masterlist!B48","v":"PCO"},{"$f":"masterlist!C48","v":"PCO-Rép-3-26"},{"$f":"masterlist!D48","v":"Réponse à l'apparition d'un foyer et autres activités de lutte contre la rage"},{"$f":"masterlist!E48","v":3},{"$f":"masterlist!F48","v":26},{"$f":"masterlist!G48","v":"Un dialogue a-t-il été initié avec les pays voisins pour prévenir la réintroduction de la rage dans des zones désignées comme étant exemptes de rage ?"},{"$f":"masterlist!H48","v":"Il n’est pas nécessaire d’avoir des accords officiels en place, mais vous devez avoir eu des discussions claires avec les pays voisins concernant la prévention de la réintroduction de la rage dans votre pays."},{"$f":"masterlist!I48","v":0},{"$f":"masterlist!J48","v":0},{"$f":"masterlist!K48","v":0}]
["PCO-Rép-3-27-0",{"$f":"masterlist!B49","v":"PCO"},{"$f":"masterlist!C49","v":"PCO-Rép-3-27"},{"$f":"masterlist!D49","v":"Réponse à l'apparition d'un foyer et autres activités de lutte contre la rage"},{"$f":"masterlist!E49","v":3},{"$f":"masterlist!F49","v":27},{"$f":"masterlist!G49","v":"Existe-t-il une capacité à mener des enquêtes conjointes sur le terrain et à planifier des réponses à des foyers de rage pour tous les cas de rage animale   dans l'ensemble du pays ?"},{"$f":"masterlist!H49","v":"Cela signifie que vous devez avoir la capacité de mener des enquêtes conjointes sur le terrain et des réponses planifiées à une épidémie dans n'importe quelle région du pays, y compris dans les régions les plus reculées. Cela ne signifie pas toutefois que cette activité doit être en place. Par exemple, vous pouvez déterminer s'il est possible d'utiliser le même réseau de réponse aux épidémies que celui utilisé pour d'autres maladies."},{"$f":"masterlist!I49","v":0},{"$f":"masterlist!J49","v":0},{"$f":"masterlist!K49","v":0}]
["PCO-Rép-3-28-0",{"$f":"masterlist!B50","v":"PCO"},{"$f":"masterlist!C50","v":"PCO-Rép-3-28"},{"$f":"masterlist!D50","v":"Réponse à l'apparition d'un foyer et autres activités de lutte contre la rage"},{"$f":"masterlist!E50","v":3},{"$f":"masterlist!F50","v":28},{"$f":"masterlist!G50","v":"Alors que votre pays se rapproche de l’élimination de la rage humaine, des enquêtes de terrain sont-elles menées pour TOUS les cas suspects de rage humaine dans l’ensemble du pays ? "},{"$f":"masterlist!H50","v":"Vous pouvez répondre “Oui” si vous pouvez affirmer avec certitude que TOUS les cas suspects de rage humaine font l'objet d'une enquête. Cela n'est possible que lorsqu'il y a peu de cas de rage humaine grâce à des campagnes d'intervention réussies."},{"$f":"masterlist!I50","v":"KEY"},{"$f":"masterlist!J50","v":0},{"$f":"masterlist!K50","v":0}]
["PCO-Rép-4-29-0",{"$f":"masterlist!B51","v":"PCO"},{"$f":"masterlist!C51","v":"PCO-Rép-4-29"},{"$f":"masterlist!D51","v":"Réponse à l'apparition d'un foyer et autres activités de lutte contre la rage"},{"$f":"masterlist!E51","v":4},{"$f":"masterlist!F51","v":29},{"$f":"masterlist!G51","v":"Alors que votre pays se rapproche de l’élimination de la rage canine, des enquêtes de terrain sont-elles menées pour TOUS les cas suspects de rage canine dans l’ensemble du pays ? "},{"$f":"masterlist!H51","v":"Vous pouvez répondre “Oui” si vous pouvez affirmer avec certitude que TOUS les cas suspects de rage canine font l'objet d'une enquête. Cela n'est possible que lorsqu'il y a peu de cas de rage canine grâce à des campagnes de vaccination canine de masse réussies."},{"$f":"masterlist!I51","v":"KEY"},{"$f":"masterlist!J51","v":0},{"$f":"masterlist!K51","v":0}]
["PCO-Rép-4-30-0",{"$f":"masterlist!B52","v":"PCO"},{"$f":"masterlist!C52","v":"PCO-Rép-4-30"},{"$f":"masterlist!D52","v":"Réponse à l'apparition d'un foyer et autres activités de lutte contre la rage"},{"$f":"masterlist!E52","v":4},{"$f":"masterlist!F52","v":30},{"$f":"masterlist!G52","v":"Alors qu’il n’y a plus de cas de rage humaine confirmée au laboratoire, les activités de surveillance existantes pour tous les cas humains suspects sont-elles maintenues dans le pays ?"},{"$f":"masterlist!H52","v":"Par exemple, investigation clinique de tous les patients présentant des symptômes d’encéphalite."},{"$f":"masterlist!I52","v":"KEY"},{"$f":"masterlist!J52","v":0},{"$f":"masterlist!K52","v":0}]
["PCO-Rép-4-31-0",{"$f":"masterlist!B53","v":"PCO"},{"$f":"masterlist!C53","v":"PCO-Rép-4-31"},{"$f":"masterlist!D53","v":"Réponse à l'apparition d'un foyer et autres activités de lutte contre la rage"},{"$f":"masterlist!E53","v":4},{"$f":"masterlist!F53","v":31},{"$f":"masterlist!G53","v":"Maintenant qu’il y a très peu de cas de rage animale dans votre pays, un plan d'intervention d'urgence a-t-il été élaboré au cas où la variante canine de la rage serait réintroduite dans les zones exemptes de rage ?"},{"$f":"masterlist!H53","v":"Ne répondez “Oui” que si votre pays a officiellement déclaré des zones exemptes de rage."},{"$f":"masterlist!I53","v":"KEY"},{"$f":"masterlist!J53","v":0},{"$f":"masterlist!K53","v":0}]
["PCO-Rép-5-32-0",{"$f":"masterlist!B54","v":"PCO"},{"$f":"masterlist!C54","v":"PCO-Rép-5-32"},{"$f":"masterlist!D54","v":"Réponse à l'apparition d'un foyer et autres activités de lutte contre la rage"},{"$f":"masterlist!E54","v":5},{"$f":"masterlist!F54","v":32},{"$f":"masterlist!G54","v":"Même si vous êtes désormais exempts de rage canine grâce aux campagnes de vaccination de masse réussies, la capacité de réponse conjointe à un foyer de rage a-t-elle été maintenue ? "},{"$f":"masterlist!H54","v":" "},{"$f":"masterlist!I54","v":"KEY"},{"$f":"masterlist!J54","v":0},{"$f":"masterlist!K54","v":0}]
["LAB-Env-0-1-1",{"$f":"masterlist!B55","v":"LAB"},{"$f":"masterlist!C55","v":"LAB-Env-0-1"},{"$f":"masterlist!D55","v":"Envoi de prélèvements"},{"$f":"masterlist!E55","v":0},{"$f":"masterlist!F55","v":1},{"$f":"masterlist!G55","v":"Un contact a-t-il été établi avec un laboratoire international de référence pour la rage (OMSA), un centre collaborateur (OMS) ou un centre de référence (FAO) ?"},{"$f":"masterlist!H55","v":"Vous pouvez « Oui” si vous avez pris contact. Il n’est pas nécessaire d’envoyer ou de recevoir des prélèvements pour répondre « Oui » à cette question."},{"$f":"masterlist!I55","v":"KEY"},{"$f":"masterlist!J55","v":1},{"$f":"masterlist!K55","v":0}]
["LAB-Env-0-2-1",{"$f":"masterlist!B56","v":"LAB"},{"$f":"masterlist!C56","v":"LAB-Env-0-2"},{"$f":"masterlist!D56","v":"Envoi de prélèvements"},{"$f":"masterlist!E56","v":0},{"$f":"masterlist!F56","v":2},{"$f":"masterlist!G56","v":"Avez-vous confirmé la présence de rage animale ou humaine dans votre pays au moyen d’un diagnostic au laboratoire?"},{"$f":"masterlist!H56","v":"Vous pouvez répondre “Oui” si un prélèvement a été envoyé à un laboratoire international de référence pour la rage (OMSA), un centre collaborateur (OMS) ou un centre de référence (FAO).\n \nOU\n \nSi le cas a été confirmé dans un laboratoire national utilisant un test recommandé par l’OMSA."},{"$f":"masterlist!I56","v":"KEY"},{"$f":"masterlist!J56","v":1},{"$f":"masterlist!K56","v":0}]
["LAB-Cap-1-3-1",{"$f":"masterlist!B57","v":"LAB"},{"$f":"masterlist!C57","v":"LAB-Cap-1-3"},{"$f":"masterlist!D57","v":"Capacités des laboratoires et tests"},{"$f":"masterlist!E57","v":1},{"$f":"masterlist!F57","v":3},{"$f":"masterlist!G57","v":"Le diagnostic de rage au moyen d’un test recommandé par l’OMSA est-il réalisé dans au moins un laboratoire national (laboratoire de santé vétérinaire OU humaine) ? "},{"$f":"masterlist!H57","v":"Vous pouvez répondre “Oui” si des laboratoires du pays réalisent effectivement des diagnostics sur prélèvements, indépendamment de la fréquence des tests et de l’espèce concernée (autrement dit, il peut s’agir de diagnostic de rage sur prélèvement humain ou sur prélèvement animal. Il n’est pas nécessaire que ce soit les deux)."},{"$f":"masterlist!I57","v":"KEY"},{"$f":"masterlist!J57","v":1},{"$f":"masterlist!K57","v":0}]
["LAB-Cap-1-4-1",{"$f":"masterlist!B58","v":"LAB"},{"$f":"masterlist!C58","v":"LAB-Cap-1-4"},{"$f":"masterlist!D58","v":"Capacités des laboratoires et tests"},{"$f":"masterlist!E58","v":1},{"$f":"masterlist!F58","v":4},{"$f":"masterlist!G58","v":"Des prélèvements suspects de rage – provenant d’animaux OU d’êtres humains– sont-ils analysés dans le pays plusieurs fois par an ?  "},{"$f":"masterlist!H58","v":"Vous pouvez répondre “Oui” si les laboratoires du pays reçoivent des prélèvements animaux ou humains certains mois de l’année."},{"$f":"masterlist!I58","v":0},{"$f":"masterlist!J58","v":1},{"$f":"masterlist!K58","v":0}]
["LAB-Cap-2-5-0",{"$f":"masterlist!B59","v":"LAB"},{"$f":"masterlist!C59","v":"LAB-Cap-2-5"},{"$f":"masterlist!D59","v":"Capacités des laboratoires et tests"},{"$f":"masterlist!E59","v":2},{"$f":"masterlist!F59","v":5},{"$f":"masterlist!G59","v":"Votre pays procède-t-il à des tests de compétence auprès d'un laboratoire internationalement reconnu ?"},{"$f":"masterlist!H59","v":"Par exemple laboratoire de référence de l’OMSA, centre collaborateur OMS, centre de référence FAO, etc. "},{"$f":"masterlist!I59","v":0},{"$f":"masterlist!J59","v":0},{"$f":"masterlist!K59","v":0}]
["LAB-Cap-2-6-0",{"$f":"masterlist!B60","v":"LAB"},{"$f":"masterlist!C60","v":"LAB-Cap-2-6"},{"$f":"masterlist!D60","v":"Capacités des laboratoires et tests"},{"$f":"masterlist!E60","v":2},{"$f":"masterlist!F60","v":6},{"$f":"masterlist!G60","v":"Une capacité de collecte et de transport réguliers des prélèvements a-t-elle été mise en place et fonctionne-t-elle ?"},{"$f":"masterlist!H60","v":"Cette capacité comprend les caractéristiques suivantes : système de calcul des coûts et de paiement pour le transport des prélèvements, personnes de contact, entreprises de transport/véhicules, emballage, etc."},{"$f":"masterlist!I60","v":0},{"$f":"masterlist!J60","v":0},{"$f":"masterlist!K60","v":0}]
["LAB-Cap-2-7-0",{"$f":"masterlist!B61","v":"LAB"},{"$f":"masterlist!C61","v":"LAB-Cap-2-7"},{"$f":"masterlist!D61","v":"Capacités des laboratoires et tests"},{"$f":"masterlist!E61","v":2},{"$f":"masterlist!F61","v":7},{"$f":"masterlist!G61","v":"Des prélèvements d’animaux suspects de rage sont-ils analysés dans le pays pendant la plupart (sinon tous) des mois de l’année ?"},{"$f":"masterlist!H61","v":"Vous pouvez répondre « Oui » si les prélèvements sont régulièrement livrés au laboratoire, quelles que soient les quantités soumises."},{"$f":"masterlist!I61","v":0},{"$f":"masterlist!J61","v":0},{"$f":"masterlist!K61","v":0}]
["LAB-Cap-2-8-0",{"$f":"masterlist!B62","v":"LAB"},{"$f":"masterlist!C62","v":"LAB-Cap-2-8"},{"$f":"masterlist!D62","v":"Capacités des laboratoires et tests"},{"$f":"masterlist!E62","v":2},{"$f":"masterlist!F62","v":8},{"$f":"masterlist!G62","v":"Avez-vous inclus une surveillance active (animaux trouvés morts, animaux tués sur la route, etc.) dans vos activités de surveillance de routine dans l'ensemble du pays ?"},{"$f":"masterlist!H62","v":"La réponse ne peut être “Oui” que si une surveillance active est réalisée dans l’ensemble du pays. \nTout ceci est réalisé EN PLUS des prélèvements de cas de morsure humaine, d’exposition, d’animaux agressifs, etc. "},{"$f":"masterlist!I62","v":"KEY"},{"$f":"masterlist!J62","v":0},{"$f":"masterlist!K62","v":0}]
["LAB-Cap-3-9-0",{"$f":"masterlist!B63","v":"LAB"},{"$f":"masterlist!C63","v":"LAB-Cap-3-9"},{"$f":"masterlist!D63","v":"Capacités des laboratoires et tests"},{"$f":"masterlist!E63","v":3},{"$f":"masterlist!F63","v":9},{"$f":"masterlist!G63","v":"L’accès à un diagnostic de laboratoire fiable et rapide est-il possible dans tout le pays pour les prélèvements d'animaux (et si possible également pour les prélèvements humains et d'animaux sauvages) ?"},{"$f":"masterlist!H63","v":"Vous pouvez répondre “Oui” si vous pouvez affirmer avec assurance que les prélèvements peuvent être envoyés pour être testés sans délai depuis n’importe quel endroit du pays. "},{"$f":"masterlist!I63","v":0},{"$f":"masterlist!J63","v":0},{"$f":"masterlist!K63","v":0}]
["LAB-Cap-3-10-0",{"$f":"masterlist!B64","v":"LAB"},{"$f":"masterlist!C64","v":"LAB-Cap-3-10"},{"$f":"masterlist!D64","v":"Capacités des laboratoires et tests"},{"$f":"masterlist!E64","v":3},{"$f":"masterlist!F64","v":10},{"$f":"masterlist!G64","v":"Evaluez-vous régulièrement votre capacité à analyser avec précision des prélèvements suspects de rage ? "},{"$f":"masterlist!H64","v":"Par exemple, double lecture, soumission de prélèvements à un laboratoire international, tests de compétence, confirmation moléculaire (par ex. PCR)."},{"$f":"masterlist!I64","v":0},{"$f":"masterlist!J64","v":0},{"$f":"masterlist!K64","v":0}]
["LAB-Cap-4-11-0",{"$f":"masterlist!B65","v":"LAB"},{"$f":"masterlist!C65","v":"LAB-Cap-4-11"},{"$f":"masterlist!D65","v":"Capacités des laboratoires et tests"},{"$f":"masterlist!E65","v":4},{"$f":"masterlist!F65","v":11},{"$f":"masterlist!G65","v":"Maintenant qu’il y a très peu de cas de rage animale dans votre pays, existe-t-il un test de laboratoire en cours pour tous les cas suspects chez les chiens dans le pays ? "},{"$f":"masterlist!H65","v":"Vous ne pouvez répondre “Oui” que si votre pays a peu de cas de rage animale grâce aux campagnes de vaccination canine réussies."},{"$f":"masterlist!I65","v":"KEY"},{"$f":"masterlist!J65","v":0},{"$f":"masterlist!K65","v":0}]
["LAB-Cap-4-12-0",{"$f":"masterlist!B66","v":"LAB"},{"$f":"masterlist!C66","v":"LAB-Cap-4-12"},{"$f":"masterlist!D66","v":"Capacités des laboratoires et tests"},{"$f":"masterlist!E66","v":4},{"$f":"masterlist!F66","v":12},{"$f":"masterlist!G66","v":"Les variants du virus rabique circulants font-ils l’objet d’une caractérisation et d’une analyse régulières par un laboratoire national ou international ? "},{"$f":"masterlist!H66","v":"Nom du laboratoire/de l’institut où les tests moléculaires sont réalisés."},{"$f":"masterlist!I66","v":0},{"$f":"masterlist!J66","v":0},{"$f":"masterlist!K66","v":0}]
["LAB-Cap-4-13-0",{"$f":"masterlist!B67","v":"LAB"},{"$f":"masterlist!C67","v":"LAB-Cap-4-13"},{"$f":"masterlist!D67","v":"Capacités des laboratoires et tests"},{"$f":"masterlist!E67","v":4},{"$f":"masterlist!F67","v":13},{"$f":"masterlist!G67","v":"Si des variants de rage chez la faune sauvage terrestre sont présents dans le pays, des prélèvements de faune sauvage sont-ils soumis plus régulièrement au laboratoire pour diagnostiquer la rage ?"},{"$f":"masterlist!H67","v":"Si des variants de rage chez la faune sauvage terrestre sont présents dans le pays, vous pouvez répondre « Oui »."},{"$f":"masterlist!I67","v":0},{"$f":"masterlist!J67","v":0},{"$f":"masterlist!K67","v":0}]
[{"$f":"C68&\"-\"&J68","v":"LAB-Cap-5-14-0"},{"$f":"masterlist!B68","v":"LAB"},{"$f":"masterlist!C68","v":"LAB-Cap-5-14"},{"$f":"masterlist!D68","v":"Capacités des laboratoires et tests"},{"$f":"masterlist!E68","v":5},{"$f":"masterlist!F68","v":14},{"$f":"masterlist!G68","v":"Même si vous êtes désormais exempts de rage canine grâce aux campagnes de vaccination de masse réussies, des enquêtes de laboratoire sont-elles en cours pour tous les cas suspects chez les espèces domestiques et les espèces sauvages terrestres dans le pays ? "},{"$f":"masterlist!H68","v":"Vous ne devez répondre “Oui” que si votre pays n’a aucun cas de rage canine à la suite de campagnes de vaccination canine réussies. "},{"$f":"masterlist!I68","v":"KEY"},{"$f":"masterlist!J68","v":0},{"$f":"masterlist!K68","v":0}]
["DPM--0-1-0",{"$f":"masterlist!B69","v":"DPM"},{"$f":"masterlist!C69","v":"DPM--0-1"},{"$f":"masterlist!D69","v":0},{"$f":"masterlist!E69","v":0},{"$f":"masterlist!F69","v":1},{"$f":"masterlist!G69","v":"Y a-t-il des activités de gestion compassionnelle de la population canine entreprises dans le pays par une des parties prenantes ?"},{"$f":"masterlist!H69","v":"NOTE : L’abattage en masse N’EST PAS considéré comme une stratégie efficace de gestion compassionnelle de la population canine. Cependant, la gestion responsable des chiens est considérée comme appropriée. L’euthanasie des animaux suspects de rage selon les normes internationales fait parte de la gestion compassionnelle de la population canine."},{"$f":"masterlist!I69","v":0},{"$f":"masterlist!J69","v":0},{"$f":"masterlist!K69","v":0}]
["DPM--1-2-0",{"$f":"masterlist!B70","v":"DPM"},{"$f":"masterlist!C70","v":"DPM--1-2"},{"$f":"masterlist!D70","v":0},{"$f":"masterlist!E70","v":1},{"$f":"masterlist!F70","v":2},{"$f":"masterlist!G70","v":"Si le gouvernement abat des chiens sans discernement pour gérer la population canine ou lutter contre la rage, travaillez-vous activement à mettre fin à cette pratique ?"},{"$f":"masterlist!H70","v":"Vous pouvez répondre « Oui » si l'abattage sans discrimination des chiens n'est pas pratiqué actuellement dans votre pays."},{"$f":"masterlist!I70","v":0},{"$f":"masterlist!J70","v":0},{"$f":"masterlist!K70","v":0}]
["DPM- -1-3-1",{"$f":"masterlist!B71","v":"DPM"},{"$f":"masterlist!C71","v":"DPM- -1-3"},{"$f":"masterlist!D71","v":" "},{"$f":"masterlist!E71","v":1},{"$f":"masterlist!F71","v":3},{"$f":"masterlist!G71","v":"Y a-t-il eu des discussions avec les parties prenantes* pour créer une stratégie de gestion compassionnelle de la population canine dans une zone (par exemple dans le cadre d’un projet pilote) ?"},{"$f":"masterlist!H71","v":"Notez qu’il ne s’agit que de discussions et que l’existence d’une stratégie n’est pas nécessaire pour répondre « Oui » à cette question. "},{"$f":"masterlist!I71","v":0},{"$f":"masterlist!J71","v":1},{"$f":"masterlist!K71","v":0}]
["DPM- -1-4-0",{"$f":"masterlist!B72","v":"DPM"},{"$f":"masterlist!C72","v":"DPM- -1-4"},{"$f":"masterlist!D72","v":" "},{"$f":"masterlist!E72","v":1},{"$f":"masterlist!F72","v":4},{"$f":"masterlist!G72","v":"Avez-vous impliqué des acteurs municipaux dans vos réunions avec les parties prenantes* ? "},{"$f":"masterlist!H72","v":"Il peut s’agir des autorités responsables de la gestion des chiens communautaires en liberté et de l’enlèvement des déchets. "},{"$f":"masterlist!I72","v":0},{"$f":"masterlist!J72","v":0},{"$f":"masterlist!K72","v":"Au niveau local, les acteurs sont impliques de facon permanante. Au niveau national, ils font partie des comites de lutte contre les zoonoses"}]
["DPM- -1-5-0",{"$f":"masterlist!B73","v":"DPM"},{"$f":"masterlist!C73","v":"DPM- -1-5"},{"$f":"masterlist!D73","v":" "},{"$f":"masterlist!E73","v":1},{"$f":"masterlist!F73","v":5},{"$f":"masterlist!G73","v":"Un nombre de chiens de référence a-t-il été déterminé dans une zone (par exemple, dans le cadre d'un projet pilote) ?"},{"$f":"masterlist!H73","v":"Ce nombre de référence peut ne concerner qu’une seule zone. Ainsi on peut répondre « Oui » à cette question même si le nombre de référence n’a été précisé que dans une seule communauté et n’est pas nécessairement représentatif de toutes les communautés du pays. "},{"$f":"masterlist!I73","v":0},{"$f":"masterlist!J73","v":0},{"$f":"masterlist!K73","v":0}]
["DPM- -2-6-0",{"$f":"masterlist!B74","v":"DPM"},{"$f":"masterlist!C74","v":"DPM- -2-6"},{"$f":"masterlist!D74","v":" "},{"$f":"masterlist!E74","v":2},{"$f":"masterlist!F74","v":6},{"$f":"masterlist!G74","v":"Une stratégie compassionnelle de gestion des populations de chiens (DPM) a-t-elle été élaborée et partagée avec toutes les parties prenantes concernées pour une zone donnée (par exemple, dans le cadre d’un projet pilote) ?"},{"$f":"masterlist!H74","v":"Notez que ceci n’est qu’élaboré et partagé, PAS encore finalisé, entériné ni mise en œuvre. "},{"$f":"masterlist!I74","v":0},{"$f":"masterlist!J74","v":0},{"$f":"masterlist!K74","v":0}]
["DPM- -2-7-0",{"$f":"masterlist!B75","v":"DPM"},{"$f":"masterlist!C75","v":"DPM- -2-7"},{"$f":"masterlist!D75","v":" "},{"$f":"masterlist!E75","v":2},{"$f":"masterlist!F75","v":7},{"$f":"masterlist!G75","v":"La stratégie de gestion des populations canines a-t-elle été finalisée et mise en œuvre dans une zone (par exemple dans le cadre d’un projet pilote) ?"},{"$f":"masterlist!H75","v":"NOTE : L’abattage en masse N’EST PAS considéré comme une stratégie efficace de gestion compassionnelle de la population canine. Cependant, la gestion responsable des chiens est considérée comme appropriée. L’euthanasie des animaux suspects de rage selon les normes internationales fait partie de la gestion compassionnelle de la population canine."},{"$f":"masterlist!I75","v":0},{"$f":"masterlist!J75","v":0},{"$f":"masterlist!K75","v":0}]
["DPM- -2-8-0",{"$f":"masterlist!B76","v":"DPM"},{"$f":"masterlist!C76","v":"DPM- -2-8"},{"$f":"masterlist!D76","v":" "},{"$f":"masterlist!E76","v":2},{"$f":"masterlist!F76","v":8},{"$f":"masterlist!G76","v":"Des professionnels ont-ils été formés sur la gestion compassionnelle des populations canines dans une zone (par exemple dans le cadre d’un projet pilote) ?"},{"$f":"masterlist!H76","v":"Si les professionnels ont suivi des cours en ligne centrés sur la gestion compassionnelle des populations canines, vous pouvez répondre « Oui ». "},{"$f":"masterlist!I76","v":0},{"$f":"masterlist!J76","v":0},{"$f":"masterlist!K76","v":0}]
["DPM- -2-9-0",{"$f":"masterlist!B77","v":"DPM"},{"$f":"masterlist!C77","v":"DPM- -2-9"},{"$f":"masterlist!D77","v":" "},{"$f":"masterlist!E77","v":2},{"$f":"masterlist!F77","v":9},{"$f":"masterlist!G77","v":"Des campagnes de sensibilisation du public à la gestion compassionnelle des populations canines ont-elles été mises en œuvre dans une zone (par exemple dans le cadre d’un projet pilote) ?"},{"$f":"masterlist!H77","v":"Si vous sensibilisez les communautés à la possession responsable de chiens, vous pouvez répondre à cette question par l'affirmative."},{"$f":"masterlist!I77","v":0},{"$f":"masterlist!J77","v":0},{"$f":"masterlist!K77","v":"strategie et obligations destinees aux proprietaires est en place (animaux a proprietaires)"}]
["DPM- -3-10-0",{"$f":"masterlist!B78","v":"DPM"},{"$f":"masterlist!C78","v":"DPM- -3-10"},{"$f":"masterlist!D78","v":" "},{"$f":"masterlist!E78","v":3},{"$f":"masterlist!F78","v":10},{"$f":"masterlist!G78","v":"La stratégie de gestion compassionnelle des populations canines a-t-elle été évaluée et affinée sur la base des résultats obtenus dans la zone du projet (par exemple, dans le cadre d’un projet pilote) ?"},{"$f":"masterlist!H78","v":"Noter que ceci ne concerne que la zone de projet sélectionnée (Par exemple un projet pilote) et non pas dans l’ensemble du pays. "},{"$f":"masterlist!I78","v":0},{"$f":"masterlist!J78","v":0},{"$f":"masterlist!K78","v":0}]
["DPM- -3-11-0",{"$f":"masterlist!B79","v":"DPM"},{"$f":"masterlist!C79","v":"DPM- -3-11"},{"$f":"masterlist!D79","v":" "},{"$f":"masterlist!E79","v":3},{"$f":"masterlist!F79","v":11},{"$f":"masterlist!G79","v":"Des campagnes de sensibilisation du public à la gestion compassionnelle des populations canines ont-elles été étendues à d’autres régions du pays ? "},{"$f":"masterlist!H79","v":" "},{"$f":"masterlist!I79","v":0},{"$f":"masterlist!J79","v":0},{"$f":"masterlist!K79","v":0}]
["DPM- -3-12-0",{"$f":"masterlist!B80","v":"DPM"},{"$f":"masterlist!C80","v":"DPM- -3-12"},{"$f":"masterlist!D80","v":" "},{"$f":"masterlist!E80","v":3},{"$f":"masterlist!F80","v":12},{"$f":"masterlist!G80","v":"La plupart des professionnels impliqués dans la gestion compassionnelle des populations canines ont-ils complété une formation de vétérinaire ou de technicien animalier sur ce sujet dans l’ensemble du pays ? "},{"$f":"masterlist!H80","v":"La formation concerne les procédures et techniques de gestion compassionnelle des populations canines, telles que les meilleures pratiques relatives à la stérilisation sûre et sans cruauté. Cette disposition ne s'applique pas à la formation vétérinaire sur la vaccination de base des chiens, par exemple. "},{"$f":"masterlist!I80","v":0},{"$f":"masterlist!J80","v":0},{"$f":"masterlist!K80","v":0}]
["DPM- -5-13-0",{"$f":"masterlist!B81","v":"DPM"},{"$f":"masterlist!C81","v":"DPM- -5-13"},{"$f":"masterlist!D81","v":" "},{"$f":"masterlist!E81","v":5},{"$f":"masterlist!F81","v":13},{"$f":"masterlist!G81","v":"La stratégie définitive de gestion compassionnelle des populations canines a-t-elle été mise en œuvre dans l’ensemble du pays ? "},{"$f":"masterlist!H81","v":" "},{"$f":"masterlist!I81","v":"KEY"},{"$f":"masterlist!J81","v":0},{"$f":"masterlist!K81","v":0}]
["DPM- -5-14-0",{"$f":"masterlist!B82","v":"DPM"},{"$f":"masterlist!C82","v":"DPM- -5-14"},{"$f":"masterlist!D82","v":" "},{"$f":"masterlist!E82","v":5},{"$f":"masterlist!F82","v":14},{"$f":"masterlist!G82","v":"Les campagnes en faveur de la gestion compassionnelle des populations canines ont-elles été poursuivies dans l’ensemble du pays après l’élimination de la rage canine ? "},{"$f":"masterlist!H82","v":" "},{"$f":"masterlist!I82","v":"KEY"},{"$f":"masterlist!J82","v":0},{"$f":"masterlist!K82","v":0}]
["IEC-Sen-1-1-1",{"$f":"masterlist!B83","v":"IEC"},{"$f":"masterlist!C83","v":"IEC-Sen-1-1"},{"$f":"masterlist!D83","v":"Sensibilisation du public"},{"$f":"masterlist!E83","v":1},{"$f":"masterlist!F83","v":1},{"$f":"masterlist!G83","v":"Avez-vous établi une liste de TOUS les publics-cible qu’il faudrait sensibiliser au bien-être des chiens, à la rage et à sa prévention ? "},{"$f":"masterlist!H83","v":"Les publics potentiels comprennent : \nLes propriétaires de chiens ; les enfants ; les chasseurs ; les propriétaires d’autres animaux ; les enseignants. \nVous pouvez répondre “Oui” si vous avez travaillé à l’dentification des publics-cible spécifiques à éduquer."},{"$f":"masterlist!I83","v":0},{"$f":"masterlist!J83","v":1},{"$f":"masterlist!K83","v":0}]
["IEC-Sen-1-2-1",{"$f":"masterlist!B84","v":"IEC"},{"$f":"masterlist!C84","v":"IEC-Sen-1-2"},{"$f":"masterlist!D84","v":"Sensibilisation du public"},{"$f":"masterlist!E84","v":1},{"$f":"masterlist!F84","v":2},{"$f":"masterlist!G84","v":"Avez-vous activement précisé les messages qui doivent être communiqués à chacun des publics- cible identifiés ?"},{"$f":"masterlist!H84","v":"Si cette activité a été réalisée dans une zone où a lieu un projet pilote, vous pouvez répondre par « Oui ».\n\nVous pouvez répondre « Oui » si vous avez cherché à identifier des messages spécifiques destinés à chacun des publics cible. Il n’est pas nécessaire qu’il s’agisse d’une évaluation formelle, du moment qu'un travail d'identification des messages appropriés a été effectué. "},{"$f":"masterlist!I84","v":0},{"$f":"masterlist!J84","v":1},{"$f":"masterlist!K84","v":0}]
["IEC-Sen-1-3-0",{"$f":"masterlist!B85","v":"IEC"},{"$f":"masterlist!C85","v":"IEC-Sen-1-3"},{"$f":"masterlist!D85","v":"Sensibilisation du public"},{"$f":"masterlist!E85","v":1},{"$f":"masterlist!F85","v":3},{"$f":"masterlist!G85","v":"Un plan structuré - décrivant les publics-cible, les messages clés, les moyens de diffusion et les résultats souhaités en matière d'éducation, de sensibilisation et de prise de conscience (plan IEC*) a-t-il été élaboré et testé pour la rage et le bien-être des chiens dans une zone de projet pilote ?"},{"$f":"masterlist!H85","v":"Si vous imprimez et distribuez du matériel éducatif général destiné à un large public, vous devez répondre par « Non ». "},{"$f":"masterlist!I85","v":"KEY"},{"$f":"masterlist!J85","v":0},{"$f":"masterlist!K85","v":0}]
["IEC-Sen-1-4-1",{"$f":"masterlist!B86","v":"IEC"},{"$f":"masterlist!C86","v":"IEC-Sen-1-4"},{"$f":"masterlist!D86","v":"Sensibilisation du public"},{"$f":"masterlist!E86","v":1},{"$f":"masterlist!F86","v":4},{"$f":"masterlist!G86","v":"Des messages de sensibilisation destinés  à un large public sur la responsabilité des propriétaires de chiens, la prévention de la rage ou des morsures, ont-ils commencé à être diffusés au niveau national ?"},{"$f":"masterlist!H86","v":"Vous pouvez répondre « oui » si vous avez utilisé des moyens tels que la Journée mondiale de la rage, d'autres journées de promotion de la santé, des campagnes dans les journaux, à la radio et à la télévision pour sensibiliser les gens à la possession responsable de chiens, à la rage et à sa prévention."},{"$f":"masterlist!I86","v":0},{"$f":"masterlist!J86","v":1},{"$f":"masterlist!K86","v":0}]
["IEC-Sen-2-5-0",{"$f":"masterlist!B87","v":"IEC"},{"$f":"masterlist!C87","v":"IEC-Sen-2-5"},{"$f":"masterlist!D87","v":"Sensibilisation du public"},{"$f":"masterlist!E87","v":2},{"$f":"masterlist!F87","v":5},{"$f":"masterlist!G87","v":"Le plan IEC a-t-il été mis à jour (si nécessaire) et mis en œuvre dans l’ensemble du pays ? "},{"$f":"masterlist!H87","v":"Notez que vous devez avoir un plan IEC structuré pour répondre “Oui” à cette question."},{"$f":"masterlist!I87","v":"KEY"},{"$f":"masterlist!J87","v":0},{"$f":"masterlist!K87","v":0}]
["IEC-Sen-5-6-0",{"$f":"masterlist!B88","v":"IEC"},{"$f":"masterlist!C88","v":"IEC-Sen-5-6"},{"$f":"masterlist!D88","v":"Sensibilisation du public"},{"$f":"masterlist!E88","v":5},{"$f":"masterlist!F88","v":6},{"$f":"masterlist!G88","v":"Maintenant que votre pays est débarrassé de la rage humaine et animale, des programmes de sensibilisation axés sur le maintien de l'absence de rage humaine transmise par les chiens et de rage canine ont-ils été mis en œuvre ?"},{"$f":"masterlist!H88","v":"Vous pouvez répondre “Oui” si le pays est exempt de rage à la suite de campagnes réussies de vaccination de masse des chiens. "},{"$f":"masterlist!I88","v":"KEY"},{"$f":"masterlist!J88","v":0},{"$f":"masterlist!K88","v":0}]
["IEC-For-1-7-1",{"$f":"masterlist!B89","v":"IEC"},{"$f":"masterlist!C89","v":"IEC-For-1-7"},{"$f":"masterlist!D89","v":"Formation professionnelle"},{"$f":"masterlist!E89","v":1},{"$f":"masterlist!F89","v":7},{"$f":"masterlist!G89","v":"Avez-vous créé une liste de TOUS les professionnels de santé humaine et animale impliqués dans la lutte contre la rage et qu’il faut éduquer et former ? "},{"$f":"masterlist!H89","v":"Vous pouvez répondre « Oui » si vous avez identifié tous les professionnels de santé humaine et animale concernés qui doivent être éduqués et formés (par exemple, les infirmières, les médecins, les agents de santé communautaire, les vétérinaires, les techniciens de la santé animale, les services de protection de la faune sauvage, etc.)."},{"$f":"masterlist!I89","v":0},{"$f":"masterlist!J89","v":1},{"$f":"masterlist!K89","v":0}]
["IEC-For-1-8-0",{"$f":"masterlist!B90","v":"IEC"},{"$f":"masterlist!C90","v":"IEC-For-1-8"},{"$f":"masterlist!D90","v":"Formation professionnelle"},{"$f":"masterlist!E90","v":1},{"$f":"masterlist!F90","v":8},{"$f":"masterlist!G90","v":"Avez-vous activement précisé les besoins en formation et en éducation des professionnels de santé humaine et animale identifiés ?"},{"$f":"masterlist!H90","v":"Si cette activité a été réalisée dans une zone de projet pilote, vous pouvez répondre “Oui”.\n\nVous pouvez répondre “Oui” si vous avez identifié des besoins spécifiques en éducation et en formation de chacun des publics-cible. Il n’est pas nécessaire qu’il s’agisse d’une évaluation formelle, du moment qu'un travail d'identification des besoins appropriés a été effectué.\n\nPar exemple : avez-vous vérifié si les médecins sont capables d’administrer correctement une PPE. Avez-vous vérifié si les vétérinaires sont capables de manipuler les chiens en toute sécurité pour les vacciner ?  "},{"$f":"masterlist!I90","v":0},{"$f":"masterlist!J90","v":0},{"$f":"masterlist!K90","v":0}]
["IEC-For-1-9-0",{"$f":"masterlist!B91","v":"IEC"},{"$f":"masterlist!C91","v":"IEC-For-1-9"},{"$f":"masterlist!D91","v":"Formation professionnelle"},{"$f":"masterlist!E91","v":1},{"$f":"masterlist!F91","v":9},{"$f":"masterlist!G91","v":"Un plan structuré de formation et d’éducation précisant les publics-cible, les besoins essentiels, les moyens de formation et d’éducation, et les résultats souhaités pour les professionnels de santé humaine et animale a-t-il été élaboré ?"},{"$f":"masterlist!H91","v":"Ceci doit être un plan de formation spécifiquement destiné à former les professionnels sur des activités liées à la rage et non pas un programme de formation professionnelle général."},{"$f":"masterlist!I91","v":0},{"$f":"masterlist!J91","v":0},{"$f":"masterlist!K91","v":"il y a un plan pour la vaccination humaine. Concernant la vaccination animale, les veterinaires sont competent pour sa mise en oeuvre cependant la formation en matiere capture des chiens errants n,est pas realisee. Necessite de proposer des formations en matiere de capture des chiens errants avec le secteur de l agriculture et l'interieur"}]
["IEC-For-1-10-1",{"$f":"masterlist!B92","v":"IEC"},{"$f":"masterlist!C92","v":"IEC-For-1-10"},{"$f":"masterlist!D92","v":"Formation professionnelle"},{"$f":"masterlist!E92","v":1},{"$f":"masterlist!F92","v":10},{"$f":"masterlist!G92","v":"La formation structurée des professionnels de santé humaine et animale a-t-elle été mise en œuvre dans une partie du pays (par exemple, dans une zone de projet pilote) ? "},{"$f":"masterlist!H92","v":"Notez que ceci concerne spécifiquement les activités structurées de formation sur la rage. Par conséquent, les professionnels doivent avoir reçu une formation spécifique sur les activités de prévention et de lutte antirabique. "},{"$f":"masterlist!I92","v":0},{"$f":"masterlist!J92","v":1},{"$f":"masterlist!K92","v":0}]
["IEC-For-2-11-0",{"$f":"masterlist!B93","v":"IEC"},{"$f":"masterlist!C93","v":"IEC-For-2-11"},{"$f":"masterlist!D93","v":"Formation professionnelle"},{"$f":"masterlist!E93","v":2},{"$f":"masterlist!F93","v":11},{"$f":"masterlist!G93","v":"La formation structurée des professionnels de santé humaine et animale a-t-elle été réalisée dans la plus grande partie du pays ?"},{"$f":"masterlist!H93","v":"Noter que ceci concerne spécifiquement les activités structurées de formation sur la rage. Par conséquent, les professionnels doivent avoir reçu une formation spécifique sur les activités de prévention et de lutte antirabique. "},{"$f":"masterlist!I93","v":0},{"$f":"masterlist!J93","v":0},{"$f":"masterlist!K93","v":0}]
["IEC-Pla-0-12-1",{"$f":"masterlist!B94","v":"IEC"},{"$f":"masterlist!C94","v":"IEC-Pla-0-12"},{"$f":"masterlist!D94","v":"Plaidoyer"},{"$f":"masterlist!E94","v":0},{"$f":"masterlist!F94","v":12},{"$f":"masterlist!G94","v":"La rage est-elle une maladie prioritaire dans votre pays ?"},{"$f":"masterlist!H94","v":"Vous pouvez répondre « Oui » si le gouvernement a donné la priorité à la lutte contre la rage en apportant un soutien politique. Vous pouvez également répondre « Oui » si votre gouvernement a organisé un atelier « One Health Zoonotic Disease Prioritization » (Zoonose prioritaire dans la perspective One Health) et que la rage a été classée parmi les cinq maladies prioritaires."},{"$f":"masterlist!I94","v":0},{"$f":"masterlist!J94","v":1},{"$f":"masterlist!K94","v":0}]
["IEC-Pla-1-13-1",{"$f":"masterlist!B95","v":"IEC"},{"$f":"masterlist!C95","v":"IEC-Pla-1-13"},{"$f":"masterlist!D95","v":"Plaidoyer"},{"$f":"masterlist!E95","v":1},{"$f":"masterlist!F95","v":13},{"$f":"masterlist!G95","v":"Avez-vous dressé une liste de TOUS les acteurs* du plaidoyer pour le contrôle et la prévention de la rage dans votre pays ?  "},{"$f":"masterlist!H95","v":"Par exemple, les politiques, les grandes organisations donatrices, la Quadripartite et d'autres influenceurs et décideurs politiques."},{"$f":"masterlist!I95","v":0},{"$f":"masterlist!J95","v":1},{"$f":"masterlist!K95","v":0}]
["IEC-Pla-1-14-1",{"$f":"masterlist!B96","v":"IEC"},{"$f":"masterlist!C96","v":"IEC-Pla-1-14"},{"$f":"masterlist!D96","v":"Plaidoyer"},{"$f":"masterlist!E96","v":1},{"$f":"masterlist!F96","v":14},{"$f":"masterlist!G96","v":"Un plan structuré - décrivant les parties prenantes cibles, les messages clés, les moyens utilisés et les résultats souhaités (plan de sensibilisation*) - a-t-il été élaboré et mis en œuvre ?"},{"$f":"masterlist!H96","v":"Vous pouvez répondre « oui » si un « plan de sensibilisation » officiel élaboré par le gouvernement est mis en œuvre."},{"$f":"masterlist!I96","v":0},{"$f":"masterlist!J96","v":1},{"$f":"masterlist!K96","v":0}]
["IEC-Pla-2-15-0",{"$f":"masterlist!B97","v":"IEC"},{"$f":"masterlist!C97","v":"IEC-Pla-2-15"},{"$f":"masterlist!D97","v":"Plaidoyer"},{"$f":"masterlist!E97","v":2},{"$f":"masterlist!F97","v":15},{"$f":"masterlist!G97","v":"Avez-vous fait la promotion de programmes de lutte antirabique réussis auprès des parties prenantes du plaidoyer identifiés ?"},{"$f":"masterlist!H97","v":" "},{"$f":"masterlist!I97","v":0},{"$f":"masterlist!J97","v":0},{"$f":"masterlist!K97","v":0}]
["IEC-Pla-2-16-0",{"$f":"masterlist!B98","v":"IEC"},{"$f":"masterlist!C98","v":"IEC-Pla-2-16"},{"$f":"masterlist!D98","v":"Plaidoyer"},{"$f":"masterlist!E98","v":2},{"$f":"masterlist!F98","v":16},{"$f":"masterlist!G98","v":"Le lobbying a-t-il été utilisé pour susciter l'intérêt actif d'au moins une partie prenante du plaidoyer ?"},{"$f":"masterlist!H98","v":"Par exemple, faire en sorte qu'un ministre important « adopte le programme » ou « adopte une communauté » pour l'élimination de la rage et s'approprie ses succès. "},{"$f":"masterlist!I98","v":"KEY"},{"$f":"masterlist!J98","v":0},{"$f":"masterlist!K98","v":0}]
["IEC-Pla-3-17-0",{"$f":"masterlist!B99","v":"IEC"},{"$f":"masterlist!C99","v":"IEC-Pla-3-17"},{"$f":"masterlist!D99","v":"Plaidoyer"},{"$f":"masterlist!E99","v":3},{"$f":"masterlist!F99","v":17},{"$f":"masterlist!G99","v":"Des zones exemptes de rage humaine ont-elles été publiquement déclarées ? "},{"$f":"masterlist!H99","v":"Vous pouvez répondre “Oui” si il existe des zones exemptes de rage grâce à une bonne surveillance de la maladie. "},{"$f":"masterlist!I99","v":"KEY"},{"$f":"masterlist!J99","v":0},{"$f":"masterlist!K99","v":0}]
["IEC-Pla-4-18-0",{"$f":"masterlist!B100","v":"IEC"},{"$f":"masterlist!C100","v":"IEC-Pla-4-18"},{"$f":"masterlist!D100","v":"Plaidoyer"},{"$f":"masterlist!E100","v":4},{"$f":"masterlist!F100","v":18},{"$f":"masterlist!G100","v":"Avez-vous déclaré publiquement que le pays tout entier est débarrassé de la rage humaine transmise par les chiens ? "},{"$f":"masterlist!H100","v":"Vous pouvez répondre “Oui” si le pays est exempt de rage humaine transmise par les chiens grâce à une bonne surveillance de la maladie."},{"$f":"masterlist!I100","v":"KEY"},{"$f":"masterlist!J100","v":0},{"$f":"masterlist!K100","v":0}]
["IEC-Pla-5-19-0",{"$f":"masterlist!B101","v":"IEC"},{"$f":"masterlist!C101","v":"IEC-Pla-5-19"},{"$f":"masterlist!D101","v":"Plaidoyer"},{"$f":"masterlist!E101","v":5},{"$f":"masterlist!F101","v":19},{"$f":"masterlist!G101","v":"Avez-vous déclaré publiquement que le pays tout entier est débarrassé de la rage canine ? "},{"$f":"masterlist!H101","v":"Vous pouvez répondre “Oui” si le pays est exempt de rage grâce à une bonne surveillance de la maladie. "},{"$f":"masterlist!I101","v":"KEY"},{"$f":"masterlist!J101","v":0},{"$f":"masterlist!K101","v":0}]
["CCI-Cré-0-1-0",{"$f":"masterlist!B102","v":"CCI"},{"$f":"masterlist!C102","v":"CCI-Cré-0-1"},{"$f":"masterlist!D102","v":"Création d’un groupe de travail intersectoriel sur la rage"},{"$f":"masterlist!E102","v":0},{"$f":"masterlist!F102","v":1},{"$f":"masterlist!G102","v":"Les parties prenantes au niveau national se tiennent-elles mutuellement informées de TOUTES les activités programmatiques liées à la rage qui sont mises en œuvre dans le pays ?"},{"$f":"masterlist!H102","v":"Les informations sont-elles partagées avec d'autres ministères ? Par exemple, les résultats des cas de rage animale sont-ils communiqués au secteur de la santé humaine ?  Le secteur de la santé humaine a-t-il fait savoir au secteur de la santé animale qu'il mettait en œuvre le nouveau régime de PPE par voie intradermique ? \nIl peut s'agir d'un forum public ou d'un site web, de communications informelles (WhatsApp ou messagerie texte) ou de tout autre moyen. Il ne s'agit pas de TOUTES les activités ou de la régularité, mais plutôt du fait que cela se fait."},{"$f":"masterlist!I102","v":0},{"$f":"masterlist!J102","v":0},{"$f":"masterlist!K102","v":0}]
["CCI-Cré-1-2-0",{"$f":"masterlist!B103","v":"CCI"},{"$f":"masterlist!C103","v":"CCI-Cré-1-2"},{"$f":"masterlist!D103","v":"Création d’un groupe de travail intersectoriel sur la rage"},{"$f":"masterlist!E103","v":1},{"$f":"masterlist!F103","v":2},{"$f":"masterlist!G103","v":"TOUTES les parties prenantes* nationales impliquées dans l’élimination de la rage ont-elles été identifiées et répertoriées ? "},{"$f":"masterlist!H103","v":"Par exemple : Ministère de la santé; Ministère des finances; Ministère de l’agriculture; Ministère de l’éducation; Instituts de recherche/formation (par ex. universités); autorités locales (administration civile, police, affaires environnementales) ; municipalité ; ONG ; Représentants des organismes internationaux (par ex. GARC, FAO, OMSA, OMS)."},{"$f":"masterlist!I103","v":0},{"$f":"masterlist!J103","v":0},{"$f":"masterlist!K103","v":0}]
["CCI-Cré-1-3-0",{"$f":"masterlist!B104","v":"CCI"},{"$f":"masterlist!C104","v":"CCI-Cré-1-3"},{"$f":"masterlist!D104","v":"Création d’un groupe de travail intersectoriel sur la rage"},{"$f":"masterlist!E104","v":1},{"$f":"masterlist!F104","v":3},{"$f":"masterlist!G104","v":"Les parties prenantes* identifiées à l’échelle nationale sont-elles activement impliquées dans l’élimination de la rage ? "},{"$f":"masterlist!H104","v":" "},{"$f":"masterlist!I104","v":0},{"$f":"masterlist!J104","v":0},{"$f":"masterlist!K104","v":0}]
["CCI-Cré-1-4-1",{"$f":"masterlist!B105","v":"CCI"},{"$f":"masterlist!C105","v":"CCI-Cré-1-4"},{"$f":"masterlist!D105","v":"Création d’un groupe de travail intersectoriel sur la rage"},{"$f":"masterlist!E105","v":1},{"$f":"masterlist!F105","v":4},{"$f":"masterlist!G105","v":"Une équipe spéciale, un comité ou un groupe de travail intersectoriel sur la rage, comprenant toutes les parties prenantes identifiées au niveau national, a-t-il été créé ET se réunit-il ou communique-t-il régulièrement ?"},{"$f":"masterlist!H105","v":"Il peut s’agir d’un groupe de travail informel ou d’un comité officiel pour la rage. Il peut également faire partie d'un groupe de travail ou d'un comité « One Health », à condition que des discussions soient consacrées à l'élimination de la rage.\n\nSi le groupe de travail ne se réunit PAS régulièrement, vous devez répondre à cette question par « Non ». "},{"$f":"masterlist!I105","v":0},{"$f":"masterlist!J105","v":1},{"$f":"masterlist!K105","v":0}]
["CCI-Cré-2-5-0",{"$f":"masterlist!B106","v":"CCI"},{"$f":"masterlist!C106","v":"CCI-Cré-2-5"},{"$f":"masterlist!D106","v":"Création d’un groupe de travail intersectoriel sur la rage"},{"$f":"masterlist!E106","v":2},{"$f":"masterlist!F106","v":5},{"$f":"masterlist!G106","v":"Le secteur privé fait-il partie de l’équipe de travail intersectorielle ? "},{"$f":"masterlist!H106","v":"Le secteur privé peut être inclus en tant qu’observateur dans le groupe de travail et n’a pas besoin d’être un membre principal. \n\nIl peut s’agir, entre autres, de vétérinaires, de médecins privés ou de représentants de l’industrie pharmaceutique. "},{"$f":"masterlist!I106","v":0},{"$f":"masterlist!J106","v":0},{"$f":"masterlist!K106","v":"taskforce existe mais le secteur prive nest pas implique"}]
["CCI-Pro-1-6-1",{"$f":"masterlist!B107","v":"CCI"},{"$f":"masterlist!C107","v":"CCI-Pro-1-6"},{"$f":"masterlist!D107","v":"Programme et stratégie nationales"},{"$f":"masterlist!E107","v":1},{"$f":"masterlist!F107","v":6},{"$f":"masterlist!G107","v":"Un plan d’activité à court terme pour la rage a-t-il été élaboré pour une zone quelconque (par ex. dans le cadre d’un projet pilote OU à l’échelle nationale) par les autorités compétentes identifiées ? "},{"$f":"masterlist!H107","v":"Vous pouvez répondre à cette question par « Oui » si vous avez, par exemple, créé un plan pour la banque de vaccins de l’OMSA (WOAH). \n\nS'il existe déjà un plan stratégique national, vous pouvez répondre à cette question par « Oui » SI le plan comporte une composante claire de plan d'ACTIVITÉ à court terme.  "},{"$f":"masterlist!I107","v":0},{"$f":"masterlist!J107","v":1},{"$f":"masterlist!K107","v":"la creation des unites de prise en charge du risque rabique"}]
["CCI-Pro-1-7-1",{"$f":"masterlist!B108","v":"CCI"},{"$f":"masterlist!C108","v":"CCI-Pro-1-7"},{"$f":"masterlist!D108","v":"Programme et stratégie nationales"},{"$f":"masterlist!E108","v":1},{"$f":"masterlist!F108","v":7},{"$f":"masterlist!G108","v":"Des mécanismes de mobilisation de fonds d'urgence, EN PLUS du budget global d'élimination de la rage, ont-ils été identifiés ?"},{"$f":"masterlist!H108","v":"Il peut s'agir par exemple de fonds de secours en cas de catastrophe. Vous pouvez répondre « Oui » si les mécanismes ont été identifiés et si vous avez déterminé le processus à suivre pour inclure la rage à l'avenir. \n\nIl n'est donc pas nécessaire d'avoir un accès immédiat au financement pour répondre « Oui ». "},{"$f":"masterlist!I108","v":0},{"$f":"masterlist!J108","v":1},{"$f":"masterlist!K108","v":0}]
["CCI-Pro-2-8-0",{"$f":"masterlist!B109","v":"CCI"},{"$f":"masterlist!C109","v":"CCI-Pro-2-8"},{"$f":"masterlist!D109","v":"Programme et stratégie nationales"},{"$f":"masterlist!E109","v":2},{"$f":"masterlist!F109","v":8},{"$f":"masterlist!G109","v":"Un plan national stratégique pour la rage a-t-il été élaboré et finalisé par toutes les parties prenantes identifiées. "},{"$f":"masterlist!H109","v":"Vous pouvez répondre « Oui » si le plan stratégique national de lutte contre la rage a été rédigé et finalisé.\n \nCela signifie qu'il n'est PAS nécessaire qu’il soit financé ou mis en œuvre."},{"$f":"masterlist!I109","v":"KEY"},{"$f":"masterlist!J109","v":0},{"$f":"masterlist!K109","v":0}]
["CCI-Pro-2-9-0",{"$f":"masterlist!B110","v":"CCI"},{"$f":"masterlist!C110","v":"CCI-Pro-2-9"},{"$f":"masterlist!D110","v":"Programme et stratégie nationales"},{"$f":"masterlist!E110","v":2},{"$f":"masterlist!F110","v":9},{"$f":"masterlist!G110","v":"Des ressources gouvernementales ont-elles été identifiées et allouées en soutien au plan stratégique national contre la rage ? "},{"$f":"masterlist!H110","v":"Vous pouvez répondre « Oui » si la stratégie nationale de lutte contre la rage est PARTIELLEMENT financée par le gouvernement. \n\nPar exemple, il peut s'agir d'un financement en contrepartie d'un donateur ou d'un financement par le gouvernement d'une partie importante de la stratégie nationale de lutte contre la rage."},{"$f":"masterlist!I110","v":"KEY"},{"$f":"masterlist!J110","v":0},{"$f":"masterlist!K110","v":0}]
["CCI-Pro-3-10-0",{"$f":"masterlist!B111","v":"CCI"},{"$f":"masterlist!C111","v":"CCI-Pro-3-10"},{"$f":"masterlist!D111","v":"Programme et stratégie nationales"},{"$f":"masterlist!E111","v":3},{"$f":"masterlist!F111","v":10},{"$f":"masterlist!G111","v":"Maintenant qu'il y a très peu de cas de rage animale dans votre pays, la stratégie nationale a-t-elle été affinée sur la base des données actuelles ? "},{"$f":"masterlist!H111","v":"Par ex. information épidémiologique moléculaire, recherches en cours ou enquêtes, utilisation de la PPE et données sur les cas de morsures."},{"$f":"masterlist!I111","v":0},{"$f":"masterlist!J111","v":0},{"$f":"masterlist!K111","v":0}]
["LEG-Déf-0-1-1",{"$f":"masterlist!B112","v":"LEG"},{"$f":"masterlist!C112","v":"LEG-Déf-0-1"},{"$f":"masterlist!D112","v":"Définition nationale d’un cas de rage animale "},{"$f":"masterlist!E112","v":0},{"$f":"masterlist!F112","v":1},{"$f":"masterlist!G112","v":"Existe-t-il une définition de cas de rage animale disponible qui soit compatible avec (ou semblable aux) les directives de l’OMS ?"},{"$f":"masterlist!H112","v":"La définition d’un cas de rage animale recommandée par l’OMS est la suivante : « Un cas cliniquement défini est celui d’un animal présentant l’un des signes suivants : hypersalivation ; paralysie ; léthargie ; agression non provoquée (par ex. morsure de deux ou plusieurs personnes ou animaux et /ou d’objets inanimés) ; vocalisation anomale ; activité diurne d’une espèce nocturne »."},{"$f":"masterlist!I112","v":0},{"$f":"masterlist!J112","v":1},{"$f":"masterlist!K112","v":0}]
["LEG-Déf-1-2-1",{"$f":"masterlist!B113","v":"LEG"},{"$f":"masterlist!C113","v":"LEG-Déf-1-2"},{"$f":"masterlist!D113","v":"Définition nationale d’un cas de rage animale "},{"$f":"masterlist!E113","v":1},{"$f":"masterlist!F113","v":2},{"$f":"masterlist!G113","v":"La définition d’un cas de rage animale a-t-elle été partagée avec tous les professionnels concernés ? "},{"$f":"masterlist!H113","v":"Par ex., un vétérinaire du gouvernement serait-il en mesure d’énoncer à quelqu’un la définition d’un cas de rage à ce moment précis ? "},{"$f":"masterlist!I113","v":0},{"$f":"masterlist!J113","v":1},{"$f":"masterlist!K113","v":0}]
["LEG-Déf-0-3-1",{"$f":"masterlist!B114","v":"LEG"},{"$f":"masterlist!C114","v":"LEG-Déf-0-3"},{"$f":"masterlist!D114","v":"Définition nationale d’un cas de rage humaine"},{"$f":"masterlist!E114","v":0},{"$f":"masterlist!F114","v":3},{"$f":"masterlist!G114","v":"Existe-t-il une définition de cas de rage humaine disponible qui soit compatible avec (ou semblable à) les directives de l’OMS ?"},{"$f":"masterlist!H114","v":"La définition d’un cas de rage humaine recommandée par l’OMS est la suivante :\n« Un sujet présentant un syndrome neurologique aigu (encéphalite) dominé par des formes d’hyperactivité (rage furieuse) ou des signes de paralysie (rage paralytique) évoluant vers un coma et la mort, généralement par défaillance cardiaque ou respiratoire, typiquement dans les 7 à 10 jours suivant l’apparition des premiers signes »."},{"$f":"masterlist!I114","v":0},{"$f":"masterlist!J114","v":1},{"$f":"masterlist!K114","v":0}]
["LEG-Déf-1-4-1",{"$f":"masterlist!B115","v":"LEG"},{"$f":"masterlist!C115","v":"LEG-Déf-1-4"},{"$f":"masterlist!D115","v":"Définition nationale d’un cas de rage humaine"},{"$f":"masterlist!E115","v":1},{"$f":"masterlist!F115","v":4},{"$f":"masterlist!G115","v":"La définition d’un cas de rage humaine a-t-elle été partagée avec tous les professionnels concernés ?"},{"$f":"masterlist!H115","v":"Par ex., un médecin du gouvernement serait-il en mesure d’énoncer la définition d’un cas de rage à ce moment précis ?"},{"$f":"masterlist!I115","v":0},{"$f":"masterlist!J115","v":1},{"$f":"masterlist!K115","v":0}]
["LEG-Cad-1-5-1",{"$f":"masterlist!B116","v":"LEG"},{"$f":"masterlist!C116","v":"LEG-Cad-1-5"},{"$f":"masterlist!D116","v":"Cadre légal"},{"$f":"masterlist!E116","v":1},{"$f":"masterlist!F116","v":5},{"$f":"masterlist!G116","v":"Existe-t-il une législation nationale relative à la prévention et à la lutte contre la rage ?"},{"$f":"masterlist!H116","v":"Par exemple : les journaux gouvernementaux ; une loi sur les animaux ; des lois sur la vaccination obligatoire ; etc.\n\nVous ne pouvez PAS répondre « Oui » si votre législation ne concerne que l'abattage des chiens.\n\nTitre du cadre législatif et année d'adoption ?"},{"$f":"masterlist!I116","v":"KEY"},{"$f":"masterlist!J116","v":1},{"$f":"masterlist!K116","v":0}]
["LEG-Cad-1-6-1",{"$f":"masterlist!B117","v":"LEG"},{"$f":"masterlist!C117","v":"LEG-Cad-1-6"},{"$f":"masterlist!D117","v":"Cadre légal"},{"$f":"masterlist!E117","v":1},{"$f":"masterlist!F117","v":6},{"$f":"masterlist!G117","v":"S'il existe une législation, a-t-elle été révisée et mise à jour (si nécessaire) ?"},{"$f":"masterlist!H117","v":"Si la législation est récente ou nouvelle et appropriée, vous pouvez répondre “Oui”. "},{"$f":"masterlist!I117","v":0},{"$f":"masterlist!J117","v":1},{"$f":"masterlist!K117","v":0}]
["LEG-Cad-1-7-1",{"$f":"masterlist!B118","v":"LEG"},{"$f":"masterlist!C118","v":"LEG-Cad-1-7"},{"$f":"masterlist!D118","v":"Cadre légal"},{"$f":"masterlist!E118","v":1},{"$f":"masterlist!F118","v":7},{"$f":"masterlist!G118","v":"La rage est-elle devenue une maladie à déclaration obligatoire chez les animaux ? "},{"$f":"masterlist!H118","v":" "},{"$f":"masterlist!I118","v":"KEY"},{"$f":"masterlist!J118","v":1},{"$f":"masterlist!K118","v":0}]
["LEG-Cad-1-8-1",{"$f":"masterlist!B119","v":"LEG"},{"$f":"masterlist!C119","v":"LEG-Cad-1-8"},{"$f":"masterlist!D119","v":"Cadre légal"},{"$f":"masterlist!E119","v":1},{"$f":"masterlist!F119","v":8},{"$f":"masterlist!G119","v":"La rage est-elle devenue une maladie à déclaration obligatoire chez les l’humain ?"},{"$f":"masterlist!H119","v":" "},{"$f":"masterlist!I119","v":"KEY"},{"$f":"masterlist!J119","v":1},{"$f":"masterlist!K119","v":0}]
["LEG-Cad-1-9-1",{"$f":"masterlist!B120","v":"LEG"},{"$f":"masterlist!C120","v":"LEG-Cad-1-9"},{"$f":"masterlist!D120","v":"Cadre légal"},{"$f":"masterlist!E120","v":1},{"$f":"masterlist!F120","v":9},{"$f":"masterlist!G120","v":"La législation prévoit-elle des mesures d'intervention en cas d'épidémie de rage ?"},{"$f":"masterlist!H120","v":" "},{"$f":"masterlist!I120","v":0},{"$f":"masterlist!J120","v":1},{"$f":"masterlist!K120","v":0}]
["LEG-Cad-2-10-0",{"$f":"masterlist!B121","v":"LEG"},{"$f":"masterlist!C121","v":"LEG-Cad-2-10"},{"$f":"masterlist!D121","v":"Cadre légal"},{"$f":"masterlist!E121","v":2},{"$f":"masterlist!F121","v":10},{"$f":"masterlist!G121","v":"La législation relative aux vaccins homologués au niveau national reflète-t-elle les lignes directrices internationales ?"},{"$f":"masterlist!H121","v":"La législation nationale doit garantir que les vaccins contre la rage humaine sont des vaccins préqualifiés par l’OMS et que les vaccins contre la rage animale sont conformes aux normes de l’OMSA pour les vaccins de haute qualité."},{"$f":"masterlist!I121","v":0},{"$f":"masterlist!J121","v":0},{"$f":"masterlist!K121","v":"vaccin animal (est importe) repond aux normes internationales en cas de manque utilisation de vaccin fabrique par l'insitut Pasteur. Le vaccin pour humains produit en Algerie ne repond pas aux normes OMS (utilise a 30%), vaccin humain reponds aux normes a 70%. "}]
["LEG-Cad-3-11-1",{"$f":"masterlist!B122","v":"LEG"},{"$f":"masterlist!C122","v":"LEG-Cad-3-11"},{"$f":"masterlist!D122","v":"Cadre légal"},{"$f":"masterlist!E122","v":3},{"$f":"masterlist!F122","v":11},{"$f":"masterlist!G122","v":"Existe-t-il une législation comportant des dispositions relatives aux mouvements internationaux de chiens (y compris la vaccination obligatoire de ces chiens) ?"},{"$f":"masterlist!H122","v":" "},{"$f":"masterlist!I122","v":"KEY"},{"$f":"masterlist!J122","v":1},{"$f":"masterlist!K122","v":0}]
["LEG-Cad-3-12-1",{"$f":"masterlist!B123","v":"LEG"},{"$f":"masterlist!C123","v":"LEG-Cad-3-12"},{"$f":"masterlist!D123","v":"Cadre légal"},{"$f":"masterlist!E123","v":3},{"$f":"masterlist!F123","v":12},{"$f":"masterlist!G123","v":"La législation pertinente est-elle appliquée au niveau national ?"},{"$f":"masterlist!H123","v":"Vous ne pouvez répondre « Oui » que si la législation qui existe dans le pays est réellement mise en œuvre et appliquée au niveau national."},{"$f":"masterlist!I123","v":0},{"$f":"masterlist!J123","v":1},{"$f":"masterlist!K123","v":0}]
["----",{"$f":"masterlist!B124","v":0},{"$f":"masterlist!C124","v":"---"},{"$f":"masterlist!D124","v":0},{"$f":"masterlist!E124","v":0},{"$f":"masterlist!F124","v":0},{"$f":"masterlist!G124","v":0},{"$f":"masterlist!H124","v":0},{"$f":"masterlist!I124","v":0},{"$f":"masterlist!J124","v":""},{"$f":"masterlist!K124","v":""}]
[{"$f":"C125&\"-\"&J125","v":"----"},{"$f":"masterlist!B133","v":0},{"$f":"masterlist!C133","v":"---"},{"$f":"masterlist!D133","v":0},{"$f":"masterlist!E133","v":0},{"$f":"masterlist!F133","v":0},{"$f":"masterlist!G133","v":0},{"$f":"masterlist!H133","v":0},{"$f":"masterlist!I133","v":0},{"$f":"masterlist!J133","v":""},{"$f":"masterlist!K133","v":""}]
["----",{"$f":"masterlist!B134","v":0},{"$f":"masterlist!C134","v":"---"},{"$f":"masterlist!D134","v":0},{"$f":"masterlist!E134","v":0},{"$f":"masterlist!F134","v":0},{"$f":"masterlist!G134","v":0},{"$f":"masterlist!H134","v":0},{"$f":"masterlist!I134","v":0},{"$f":"masterlist!J134","v":""},{"$f":"masterlist!K134","v":""}]
["----",{"$f":"masterlist!B135","v":0},{"$f":"masterlist!C135","v":"---"},{"$f":"masterlist!D135","v":0},{"$f":"masterlist!E135","v":0},{"$f":"masterlist!F135","v":0},{"$f":"masterlist!G135","v":0},{"$f":"masterlist!H135","v":0},{"$f":"masterlist!I135","v":0},{"$f":"masterlist!J135","v":""},{"$f":"masterlist!K135","v":""}]
["----",{"$f":"masterlist!B136","v":0},{"$f":"masterlist!C136","v":"---"},{"$f":"masterlist!D136","v":0},{"$f":"masterlist!E136","v":0},{"$f":"masterlist!F136","v":0},{"$f":"masterlist!G136","v":0},{"$f":"masterlist!H136","v":0},{"$f":"masterlist!I136","v":0},{"$f":"masterlist!J136","v":""},{"$f":"masterlist!K136","v":""}]
["----",{"$f":"masterlist!B137","v":0},{"$f":"masterlist!C137","v":"---"},{"$f":"masterlist!D137","v":0},{"$f":"masterlist!E137","v":0},{"$f":"masterlist!F137","v":0},{"$f":"masterlist!G137","v":0},{"$f":"masterlist!H137","v":0},{"$f":"masterlist!I137","v":0},{"$f":"masterlist!J137","v":""},{"$f":"masterlist!K137","v":""}]
[{"$f":"C130&\"-\"&J130","v":"----"},{"$f":"masterlist!B138","v":0},{"$f":"masterlist!C138","v":"---"},{"$f":"masterlist!D138","v":0},{"$f":"masterlist!E138","v":0},{"$f":"masterlist!F138","v":0},{"$f":"masterlist!G138","v":0},{"$f":"masterlist!H138","v":0},{"$f":"masterlist!I138","v":0},{"$f":"masterlist!J138","v":""},{"$f":"masterlist!K138","v":""}]
["----",{"$f":"masterlist!B139","v":0},{"$f":"masterlist!C139","v":"---"},{"$f":"masterlist!D139","v":0},{"$f":"masterlist!E139","v":0},{"$f":"masterlist!F139","v":0},{"$f":"masterlist!G139","v":0},{"$f":"masterlist!H139","v":0},{"$f":"masterlist!I139","v":0},{"$f":"masterlist!J139","v":""},{"$f":"masterlist!K139","v":""}]
["----",{"$f":"masterlist!B140","v":0},{"$f":"masterlist!C140","v":"---"},{"$f":"masterlist!D140","v":0},{"$f":"masterlist!E140","v":0},{"$f":"masterlist!F140","v":0},{"$f":"masterlist!G140","v":0},{"$f":"masterlist!H140","v":0},{"$f":"masterlist!I140","v":0},{"$f":"masterlist!J140","v":""},{"$f":"masterlist!K140","v":""}]
["----",{"$f":"masterlist!B141","v":0},{"$f":"masterlist!C141","v":"---"},{"$f":"masterlist!D141","v":0},{"$f":"masterlist!E141","v":0},{"$f":"masterlist!F141","v":0},{"$f":"masterlist!G141","v":0},{"$f":"masterlist!H141","v":0},{"$f":"masterlist!I141","v":0},{"$f":"masterlist!J141","v":""},{"$f":"masterlist!K141","v":""}]
["----",{"$f":"masterlist!B142","v":0},{"$f":"masterlist!C142","v":"---"},{"$f":"masterlist!D142","v":0},{"$f":"masterlist!E142","v":0},{"$f":"masterlist!F142","v":0},{"$f":"masterlist!G142","v":0},{"$f":"masterlist!H142","v":0},{"$f":"masterlist!I142","v":0},{"$f":"masterlist!J142","v":""},{"$f":"masterlist!K142","v":""}]
["----",{"$f":"masterlist!B143","v":0},{"$f":"masterlist!C143","v":"---"},{"$f":"masterlist!D143","v":0},{"$f":"masterlist!E143","v":0},{"$f":"masterlist!F143","v":0},{"$f":"masterlist!G143","v":0},{"$f":"masterlist!H143","v":0},{"$f":"masterlist!I143","v":0},{"$f":"masterlist!J143","v":""},{"$f":"masterlist!K143","v":""}]
["----",{"$f":"masterlist!B144","v":0},{"$f":"masterlist!C144","v":"---"},{"$f":"masterlist!D144","v":0},{"$f":"masterlist!E144","v":0},{"$f":"masterlist!F144","v":0},{"$f":"masterlist!G144","v":0},{"$f":"masterlist!H144","v":0},{"$f":"masterlist!I144","v":0},{"$f":"masterlist!J144","v":""},{"$f":"masterlist!K144","v":""}]
["----",{"$f":"masterlist!B145","v":0},{"$f":"masterlist!C145","v":"---"},{"$f":"masterlist!D145","v":0},{"$f":"masterlist!E145","v":0},{"$f":"masterlist!F145","v":0},{"$f":"masterlist!G145","v":0},{"$f":"masterlist!H145","v":0},{"$f":"masterlist!I145","v":0},{"$f":"masterlist!J145","v":""},{"$f":"masterlist!K145","v":""}]
["----",{"$f":"masterlist!B146","v":0},{"$f":"masterlist!C146","v":"---"},{"$f":"masterlist!D146","v":0},{"$f":"masterlist!E146","v":0},{"$f":"masterlist!F146","v":0},{"$f":"masterlist!G146","v":0},{"$f":"masterlist!H146","v":0},{"$f":"masterlist!I146","v":0},{"$f":"masterlist!J146","v":""},{"$f":"masterlist!K146","v":""}]
["----",{"$f":"masterlist!B147","v":0},{"$f":"masterlist!C147","v":"---"},{"$f":"masterlist!D147","v":0},{"$f":"masterlist!E147","v":0},{"$f":"masterlist!F147","v":0},{"$f":"masterlist!G147","v":0},{"$f":"masterlist!H147","v":0},{"$f":"masterlist!I147","v":0},{"$f":"masterlist!J147","v":""},{"$f":"masterlist!K147","v":""}]
["----",{"$f":"masterlist!B148","v":0},{"$f":"masterlist!C148","v":"---"},{"$f":"masterlist!D148","v":0},{"$f":"masterlist!E148","v":0},{"$f":"masterlist!F148","v":0},{"$f":"masterlist!G148","v":0},{"$f":"masterlist!H148","v":0},{"$f":"masterlist!I148","v":0},{"$f":"masterlist!J148","v":""},{"$f":"masterlist!K148","v":""}]
["----",{"$f":"masterlist!B149","v":0},{"$f":"masterlist!C149","v":"---"},{"$f":"masterlist!D149","v":0},{"$f":"masterlist!E149","v":0},{"$f":"masterlist!F149","v":0},{"$f":"masterlist!G149","v":0},{"$f":"masterlist!H149","v":0},{"$f":"masterlist!I149","v":0},{"$f":"masterlist!J149","v":""},{"$f":"masterlist!K149","v":""}]
["----",{"$f":"masterlist!B150","v":0},{"$f":"masterlist!C150","v":"---"},{"$f":"masterlist!D150","v":0},{"$f":"masterlist!E150","v":0},{"$f":"masterlist!F150","v":0},{"$f":"masterlist!G150","v":0},{"$f":"masterlist!H150","v":0},{"$f":"masterlist!I150","v":0},{"$f":"masterlist!J150","v":""},{"$f":"masterlist!K150","v":""}]
["----",{"$f":"masterlist!B151","v":0},{"$f":"masterlist!C151","v":"---"},{"$f":"masterlist!D151","v":0},{"$f":"masterlist!E151","v":0},{"$f":"masterlist!F151","v":0},{"$f":"masterlist!G151","v":0},{"$f":"masterlist!H151","v":0},{"$f":"masterlist!I151","v":0},{"$f":"masterlist!J151","v":""},{"$f":"masterlist!K151","v":""}]
["----",{"$f":"masterlist!B152","v":0},{"$f":"masterlist!C152","v":"---"},{"$f":"masterlist!D152","v":0},{"$f":"masterlist!E152","v":0},{"$f":"masterlist!F152","v":0},{"$f":"masterlist!G152","v":0},{"$f":"masterlist!H152","v":0},{"$f":"masterlist!I152","v":0},{"$f":"masterlist!J152","v":""},{"$f":"masterlist!K152","v":""}]
["----",{"$f":"masterlist!B153","v":0},{"$f":"masterlist!C153","v":"---"},{"$f":"masterlist!D153","v":0},{"$f":"masterlist!E153","v":0},{"$f":"masterlist!F153","v":0},{"$f":"masterlist!G153","v":0},{"$f":"masterlist!H153","v":0},{"$f":"masterlist!I153","v":0},{"$f":"masterlist!J153","v":""},{"$f":"masterlist!K153","v":""}]
["----",{"$f":"masterlist!B154","v":0},{"$f":"masterlist!C154","v":"---"},{"$f":"masterlist!D154","v":0},{"$f":"masterlist!E154","v":0},{"$f":"masterlist!F154","v":0},{"$f":"masterlist!G154","v":0},{"$f":"masterlist!H154","v":0},{"$f":"masterlist!I154","v":0},{"$f":"masterlist!J154","v":""},{"$f":"masterlist!K154","v":""}]
["----",{"$f":"masterlist!B155","v":0},{"$f":"masterlist!C155","v":"---"},{"$f":"masterlist!D155","v":0},{"$f":"masterlist!E155","v":0},{"$f":"masterlist!F155","v":0},{"$f":"masterlist!G155","v":0},{"$f":"masterlist!H155","v":0},{"$f":"masterlist!I155","v":0},{"$f":"masterlist!J155","v":""},{"$f":"masterlist!K155","v":""}]
["----",{"$f":"masterlist!B156","v":0},{"$f":"masterlist!C156","v":"---"},{"$f":"masterlist!D156","v":0},{"$f":"masterlist!E156","v":0},{"$f":"masterlist!F156","v":0},{"$f":"masterlist!G156","v":0},{"$f":"masterlist!H156","v":0},{"$f":"masterlist!I156","v":0},{"$f":"masterlist!J156","v":""},{"$f":"masterlist!K156","v":""}]
["----",{"$f":"masterlist!B157","v":0},{"$f":"masterlist!C157","v":"---"},{"$f":"masterlist!D157","v":0},{"$f":"masterlist!E157","v":0},{"$f":"masterlist!F157","v":0},{"$f":"masterlist!G157","v":0},{"$f":"masterlist!H157","v":0},{"$f":"masterlist!I157","v":0},{"$f":"masterlist!J157","v":""},{"$f":"masterlist!K157","v":""}]
["----",{"$f":"masterlist!B158","v":0},{"$f":"masterlist!C158","v":"---"},{"$f":"masterlist!D158","v":0},{"$f":"masterlist!E158","v":0},{"$f":"masterlist!F158","v":0},{"$f":"masterlist!G158","v":0},{"$f":"masterlist!H158","v":0},{"$f":"masterlist!I158","v":0},{"$f":"masterlist!J158","v":""},{"$f":"masterlist!K158","v":""}]
["----",{"$f":"masterlist!B159","v":0},{"$f":"masterlist!C159","v":"---"},{"$f":"masterlist!D159","v":0},{"$f":"masterlist!E159","v":0},{"$f":"masterlist!F159","v":0},{"$f":"masterlist!G159","v":0},{"$f":"masterlist!H159","v":0},{"$f":"masterlist!I159","v":0},{"$f":"masterlist!J159","v":""},{"$f":"masterlist!K159","v":""}]
["----",{"$f":"masterlist!B160","v":0},{"$f":"masterlist!C160","v":"---"},{"$f":"masterlist!D160","v":0},{"$f":"masterlist!E160","v":0},{"$f":"masterlist!F160","v":0},{"$f":"masterlist!G160","v":0},{"$f":"masterlist!H160","v":0},{"$f":"masterlist!I160","v":0},{"$f":"masterlist!J160","v":""},{"$f":"masterlist!K160","v":""}]
["----",{"$f":"masterlist!B161","v":0},{"$f":"masterlist!C161","v":"---"},{"$f":"masterlist!D161","v":0},{"$f":"masterlist!E161","v":0},{"$f":"masterlist!F161","v":0},{"$f":"masterlist!G161","v":0},{"$f":"masterlist!H161","v":0},{"$f":"masterlist!I161","v":0},{"$f":"masterlist!J161","v":""},{"$f":"masterlist!K161","v":""}]
["----",{"$f":"masterlist!B162","v":0},{"$f":"masterlist!C162","v":"---"},{"$f":"masterlist!D162","v":0},{"$f":"masterlist!E162","v":0},{"$f":"masterlist!F162","v":0},{"$f":"masterlist!G162","v":0},{"$f":"masterlist!H162","v":0},{"$f":"masterlist!I162","v":0},{"$f":"masterlist!J162","v":""},{"$f":"masterlist!K162","v":""}]
["----",{"$f":"masterlist!B163","v":0},{"$f":"masterlist!C163","v":"---"},{"$f":"masterlist!D163","v":0},{"$f":"masterlist!E163","v":0},{"$f":"masterlist!F163","v":0},{"$f":"masterlist!G163","v":0},{"$f":"masterlist!H163","v":0},{"$f":"masterlist!I163","v":0},{"$f":"masterlist!J163","v":""},{"$f":"masterlist!K163","v":""}]
["----",{"$f":"masterlist!B164","v":0},{"$f":"masterlist!C164","v":"---"},{"$f":"masterlist!D164","v":0},{"$f":"masterlist!E164","v":0},{"$f":"masterlist!F164","v":0},{"$f":"masterlist!G164","v":0},{"$f":"masterlist!H164","v":0},{"$f":"masterlist!I164","v":0},{"$f":"masterlist!J164","v":""},{"$f":"masterlist!K164","v":""}]
["----",{"$f":"masterlist!B165","v":0},{"$f":"masterlist!C165","v":"---"},{"$f":"masterlist!D165","v":0},{"$f":"masterlist!E165","v":0},{"$f":"masterlist!F165","v":0},{"$f":"masterlist!G165","v":0},{"$f":"masterlist!H165","v":0},{"$f":"masterlist!I165","v":0},{"$f":"masterlist!J165","v":""},{"$f":"masterlist!K165","v":""}]
["----",{"$f":"masterlist!B166","v":0},{"$f":"masterlist!C166","v":"---"},{"$f":"masterlist!D166","v":0},{"$f":"masterlist!E166","v":0},{"$f":"masterlist!F166","v":0},{"$f":"masterlist!G166","v":0},{"$f":"masterlist!H166","v":0},{"$f":"masterlist!I166","v":0},{"$f":"masterlist!J166","v":""},{"$f":"masterlist!K166","v":""}]
["----",{"$f":"masterlist!B167","v":0},{"$f":"masterlist!C167","v":"---"},{"$f":"masterlist!D167","v":0},{"$f":"masterlist!E167","v":0},{"$f":"masterlist!F167","v":0},{"$f":"masterlist!G167","v":0},{"$f":"masterlist!H167","v":0},{"$f":"masterlist!I167","v":0},{"$f":"masterlist!J167","v":""},{"$f":"masterlist!K167","v":""}]
["----",{"$f":"masterlist!B168","v":0},{"$f":"masterlist!C168","v":"---"},{"$f":"masterlist!D168","v":0},{"$f":"masterlist!E168","v":0},{"$f":"masterlist!F168","v":0},{"$f":"masterlist!G168","v":0},{"$f":"masterlist!H168","v":0},{"$f":"masterlist!I168","v":0},{"$f":"masterlist!J168","v":""},{"$f":"masterlist!K168","v":""}]
["----",{"$f":"masterlist!B169","v":0},{"$f":"masterlist!C169","v":"---"},{"$f":"masterlist!D169","v":0},{"$f":"masterlist!E169","v":0},{"$f":"masterlist!F169","v":0},{"$f":"masterlist!G169","v":0},{"$f":"masterlist!H169","v":0},{"$f":"masterlist!I169","v":0},{"$f":"masterlist!J169","v":""},{"$f":"masterlist!K169","v":""}]
["----",{"$f":"masterlist!B170","v":0},{"$f":"masterlist!C170","v":"---"},{"$f":"masterlist!D170","v":0},{"$f":"masterlist!E170","v":0},{"$f":"masterlist!F170","v":0},{"$f":"masterlist!G170","v":0},{"$f":"masterlist!H170","v":0},{"$f":"masterlist!I170","v":0},{"$f":"masterlist!J170","v":""},{"$f":"masterlist!K170","v":""}]
["----",{"$f":"masterlist!B171","v":0},{"$f":"masterlist!C171","v":"---"},{"$f":"masterlist!D171","v":0},{"$f":"masterlist!E171","v":0},{"$f":"masterlist!F171","v":0},{"$f":"masterlist!G171","v":0},{"$f":"masterlist!H171","v":0},{"$f":"masterlist!I171","v":0},{"$f":"masterlist!J171","v":""},{"$f":"masterlist!K171","v":""}]
["----",{"$f":"masterlist!B172","v":0},{"$f":"masterlist!C172","v":"---"},{"$f":"masterlist!D172","v":0},{"$f":"masterlist!E172","v":0},{"$f":"masterlist!F172","v":0},{"$f":"masterlist!G172","v":0},{"$f":"masterlist!H172","v":0},{"$f":"masterlist!I172","v":0},{"$f":"masterlist!J172","v":""},{"$f":"masterlist!K172","v":""}]
["----",{"$f":"masterlist!B173","v":0},{"$f":"masterlist!C173","v":"---"},{"$f":"masterlist!D173","v":0},{"$f":"masterlist!E173","v":0},{"$f":"masterlist!F173","v":0},{"$f":"masterlist!G173","v":0},{"$f":"masterlist!H173","v":0},{"$f":"masterlist!I173","v":0},{"$f":"masterlist!J173","v":""},{"$f":"masterlist!K173","v":""}]
["----",{"$f":"masterlist!B174","v":0},{"$f":"masterlist!C174","v":"---"},{"$f":"masterlist!D174","v":0},{"$f":"masterlist!E174","v":0},{"$f":"masterlist!F174","v":0},{"$f":"masterlist!G174","v":0},{"$f":"masterlist!H174","v":0},{"$f":"masterlist!I174","v":0},{"$f":"masterlist!J174","v":""},{"$f":"masterlist!K174","v":""}]
["----",{"$f":"masterlist!B175","v":0},{"$f":"masterlist!C175","v":"---"},{"$f":"masterlist!D175","v":0},{"$f":"masterlist!E175","v":0},{"$f":"masterlist!F175","v":0},{"$f":"masterlist!G175","v":0},{"$f":"masterlist!H175","v":0},{"$f":"masterlist!I175","v":0},{"$f":"masterlist!J175","v":""},{"$f":"masterlist!K175","v":""}]
["----",{"$f":"masterlist!B176","v":0},{"$f":"masterlist!C176","v":"---"},{"$f":"masterlist!D176","v":0},{"$f":"masterlist!E176","v":0},{"$f":"masterlist!F176","v":0},{"$f":"masterlist!G176","v":0},{"$f":"masterlist!H176","v":0},{"$f":"masterlist!I176","v":0},{"$f":"masterlist!J176","v":""},{"$f":"masterlist!K176","v":""}]
["----",{"$f":"masterlist!B177","v":0},{"$f":"masterlist!C177","v":"---"},{"$f":"masterlist!D177","v":0},{"$f":"masterlist!E177","v":0},{"$f":"masterlist!F177","v":0},{"$f":"masterlist!G177","v":0},{"$f":"masterlist!H177","v":0},{"$f":"masterlist!I177","v":0},{"$f":"masterlist!J177","v":""},{"$f":"masterlist!K177","v":""}]
["----",{"$f":"masterlist!B178","v":0},{"$f":"masterlist!C178","v":"---"},{"$f":"masterlist!D178","v":0},{"$f":"masterlist!E178","v":0},{"$f":"masterlist!F178","v":0},{"$f":"masterlist!G178","v":0},{"$f":"masterlist!H178","v":0},{"$f":"masterlist!I178","v":0},{"$f":"masterlist!J178","v":""},{"$f":"masterlist!K178","v":""}]
["----",{"$f":"masterlist!B179","v":0},{"$f":"masterlist!C179","v":"---"},{"$f":"masterlist!D179","v":0},{"$f":"masterlist!E179","v":0},{"$f":"masterlist!F179","v":0},{"$f":"masterlist!G179","v":0},{"$f":"masterlist!H179","v":0},{"$f":"masterlist!I179","v":0},{"$f":"masterlist!J179","v":""},{"$f":"masterlist!K179","v":""}]
["----",{"$f":"masterlist!B180","v":0},{"$f":"masterlist!C180","v":"---"},{"$f":"masterlist!D180","v":0},{"$f":"masterlist!E180","v":0},{"$f":"masterlist!F180","v":0},{"$f":"masterlist!G180","v":0},{"$f":"masterlist!H180","v":0},{"$f":"masterlist!I180","v":0},{"$f":"masterlist!J180","v":""},{"$f":"masterlist!K180","v":""}]
["----",{"$f":"masterlist!B181","v":0},{"$f":"masterlist!C181","v":"---"},{"$f":"masterlist!D181","v":0},{"$f":"masterlist!E181","v":0},{"$f":"masterlist!F181","v":0},{"$f":"masterlist!G181","v":0},{"$f":"masterlist!H181","v":0},{"$f":"masterlist!I181","v":0},{"$f":"masterlist!J181","v":""},{"$f":"masterlist!K181","v":""}]
["----",{"$f":"masterlist!B182","v":0},{"$f":"masterlist!C182","v":"---"},{"$f":"masterlist!D182","v":0},{"$f":"masterlist!E182","v":0},{"$f":"masterlist!F182","v":0},{"$f":"masterlist!G182","v":0},{"$f":"masterlist!H182","v":0},{"$f":"masterlist!I182","v":0},{"$f":"masterlist!J182","v":""},{"$f":"masterlist!K182","v":""}]
["----",{"$f":"masterlist!B183","v":0},{"$f":"masterlist!C183","v":"---"},{"$f":"masterlist!D183","v":0},{"$f":"masterlist!E183","v":0},{"$f":"masterlist!F183","v":0},{"$f":"masterlist!G183","v":0},{"$f":"masterlist!H183","v":0},{"$f":"masterlist!I183","v":0},{"$f":"masterlist!J183","v":""},{"$f":"masterlist!K183","v":""}]
["----",{"$f":"masterlist!B184","v":0},{"$f":"masterlist!C184","v":"---"},{"$f":"masterlist!D184","v":0},{"$f":"masterlist!E184","v":0},{"$f":"masterlist!F184","v":0},{"$f":"masterlist!G184","v":0},{"$f":"masterlist!H184","v":0},{"$f":"masterlist!I184","v":0},{"$f":"masterlist!J184","v":""},{"$f":"masterlist!K184","v":""}]
["----",{"$f":"masterlist!B185","v":0},{"$f":"masterlist!C185","v":"---"},{"$f":"masterlist!D185","v":0},{"$f":"masterlist!E185","v":0},{"$f":"masterlist!F185","v":0},{"$f":"masterlist!G185","v":0},{"$f":"masterlist!H185","v":0},{"$f":"masterlist!I185","v":0},{"$f":"masterlist!J185","v":""},{"$f":"masterlist!K185","v":""}]
["----",{"$f":"masterlist!B186","v":0},{"$f":"masterlist!C186","v":"---"},{"$f":"masterlist!D186","v":0},{"$f":"masterlist!E186","v":0},{"$f":"masterlist!F186","v":0},{"$f":"masterlist!G186","v":0},{"$f":"masterlist!H186","v":0},{"$f":"masterlist!I186","v":0},{"$f":"masterlist!J186","v":""},{"$f":"masterlist!K186","v":""}]
["----",{"$f":"masterlist!B187","v":0},{"$f":"masterlist!C187","v":"---"},{"$f":"masterlist!D187","v":0},{"$f":"masterlist!E187","v":0},{"$f":"masterlist!F187","v":0},{"$f":"masterlist!G187","v":0},{"$f":"masterlist!H187","v":0},{"$f":"masterlist!I187","v":0},{"$f":"masterlist!J187","v":""},{"$f":"masterlist!K187","v":""}]
["----",{"$f":"masterlist!B188","v":0},{"$f":"masterlist!C188","v":"---"},{"$f":"masterlist!D188","v":0},{"$f":"masterlist!E188","v":0},{"$f":"masterlist!F188","v":0},{"$f":"masterlist!G188","v":0},{"$f":"masterlist!H188","v":0},{"$f":"masterlist!I188","v":0},{"$f":"masterlist!J188","v":""},{"$f":"masterlist!K188","v":""}]
["----",{"$f":"masterlist!B189","v":0},{"$f":"masterlist!C189","v":"---"},{"$f":"masterlist!D189","v":0},{"$f":"masterlist!E189","v":0},{"$f":"masterlist!F189","v":0},{"$f":"masterlist!G189","v":0},{"$f":"masterlist!H189","v":0},{"$f":"masterlist!I189","v":0},{"$f":"masterlist!J189","v":""},{"$f":"masterlist!K189","v":""}]
["----",{"$f":"masterlist!B190","v":0},{"$f":"masterlist!C190","v":"---"},{"$f":"masterlist!D190","v":0},{"$f":"masterlist!E190","v":0},{"$f":"masterlist!F190","v":0},{"$f":"masterlist!G190","v":0},{"$f":"masterlist!H190","v":0},{"$f":"masterlist!I190","v":0},{"$f":"masterlist!J190","v":""},{"$f":"masterlist!K190","v":""}]
["----",{"$f":"masterlist!B191","v":0},{"$f":"masterlist!C191","v":"---"},{"$f":"masterlist!D191","v":0},{"$f":"masterlist!E191","v":0},{"$f":"masterlist!F191","v":0},{"$f":"masterlist!G191","v":0},{"$f":"masterlist!H191","v":0},{"$f":"masterlist!I191","v":0},{"$f":"masterlist!J191","v":""},{"$f":"masterlist!K191","v":""}]
["----",{"$f":"masterlist!B192","v":0},{"$f":"masterlist!C192","v":"---"},{"$f":"masterlist!D192","v":0},{"$f":"masterlist!E192","v":0},{"$f":"masterlist!F192","v":0},{"$f":"masterlist!G192","v":0},{"$f":"masterlist!H192","v":0},{"$f":"masterlist!I192","v":0},{"$f":"masterlist!J192","v":""},{"$f":"masterlist!K192","v":""}]
["----",{"$f":"masterlist!B193","v":0},{"$f":"masterlist!C193","v":"---"},{"$f":"masterlist!D193","v":0},{"$f":"masterlist!E193","v":0},{"$f":"masterlist!F193","v":0},{"$f":"masterlist!G193","v":0},{"$f":"masterlist!H193","v":0},{"$f":"masterlist!I193","v":0},{"$f":"masterlist!J193","v":""},{"$f":"masterlist!K193","v":""}]
["----",{"$f":"masterlist!B194","v":0},{"$f":"masterlist!C194","v":"---"},{"$f":"masterlist!D194","v":0},{"$f":"masterlist!E194","v":0},{"$f":"masterlist!F194","v":0},{"$f":"masterlist!G194","v":0},{"$f":"masterlist!H194","v":0},{"$f":"masterlist!I194","v":0},{"$f":"masterlist!J194","v":""},{"$f":"masterlist!K194","v":""}]
["----",{"$f":"masterlist!B195","v":0},{"$f":"masterlist!C195","v":"---"},{"$f":"masterlist!D195","v":0},{"$f":"masterlist!E195","v":0},{"$f":"masterlist!F195","v":0},{"$f":"masterlist!G195","v":0},{"$f":"masterlist!H195","v":0},{"$f":"masterlist!I195","v":0},{"$f":"masterlist!J195","v":""},{"$f":"masterlist!K195","v":""}]
["----",{"$f":"masterlist!B196","v":0},{"$f":"masterlist!C196","v":"---"},{"$f":"masterlist!D196","v":0},{"$f":"masterlist!E196","v":0},{"$f":"masterlist!F196","v":0},{"$f":"masterlist!G196","v":0},{"$f":"masterlist!H196","v":0},{"$f":"masterlist!I196","v":0},{"$f":"masterlist!J196","v":""},{"$f":"masterlist!K196","v":""}]
["----",{"$f":"masterlist!B197","v":0},{"$f":"masterlist!C197","v":"---"},{"$f":"masterlist!D197","v":0},{"$f":"masterlist!E197","v":0},{"$f":"masterlist!F197","v":0},{"$f":"masterlist!G197","v":0},{"$f":"masterlist!H197","v":0},{"$f":"masterlist!I197","v":0},{"$f":"masterlist!J197","v":""},{"$f":"masterlist!K197","v":""}]
["----",{"$f":"masterlist!B198","v":0},{"$f":"masterlist!C198","v":"---"},{"$f":"masterlist!D198","v":0},{"$f":"masterlist!E198","v":0},{"$f":"masterlist!F198","v":0},{"$f":"masterlist!G198","v":0},{"$f":"masterlist!H198","v":0},{"$f":"masterlist!I198","v":0},{"$f":"masterlist!J198","v":""},{"$f":"masterlist!K198","v":""}]
["----",{"$f":"masterlist!B199","v":0},{"$f":"masterlist!C199","v":"---"},{"$f":"masterlist!D199","v":0},{"$f":"masterlist!E199","v":0},{"$f":"masterlist!F199","v":0},{"$f":"masterlist!G199","v":0},{"$f":"masterlist!H199","v":0},{"$f":"masterlist!I199","v":0},{"$f":"masterlist!J199","v":""},{"$f":"masterlist!K199","v":""}]
["----",{"$f":"masterlist!B200","v":0},{"$f":"masterlist!C200","v":"---"},{"$f":"masterlist!D200","v":0},{"$f":"masterlist!E200","v":0},{"$f":"masterlist!F200","v":0},{"$f":"masterlist!G200","v":0},{"$f":"masterlist!H200","v":0},{"$f":"masterlist!I200","v":0},{"$f":"masterlist!J200","v":""},{"$f":"masterlist!K200","v":""}]
["----",{"$f":"masterlist!B201","v":0},{"$f":"masterlist!C201","v":"---"},{"$f":"masterlist!D201","v":0},{"$f":"masterlist!E201","v":0},{"$f":"masterlist!F201","v":0},{"$f":"masterlist!G201","v":0},{"$f":"masterlist!H201","v":0},{"$f":"masterlist!I201","v":0},{"$f":"masterlist!J201","v":""},{"$f":"masterlist!K201","v":""}]
[{"$f":"C194&\"-\"&J194","v":"----"},{"$f":"masterlist!B202","v":0},{"$f":"masterlist!C202","v":"---"},{"$f":"masterlist!D202","v":0},{"$f":"masterlist!E202","v":0},{"$f":"masterlist!F202","v":0},{"$f":"masterlist!G202","v":0},{"$f":"masterlist!H202","v":0},{"$f":"masterlist!I202","v":0},{"$f":"masterlist!J202","v":""},{"$f":"masterlist!K202","v":""}]
["----",{"$f":"masterlist!B203","v":0},{"$f":"masterlist!C203","v":"---"},{"$f":"masterlist!D203","v":0},{"$f":"masterlist!E203","v":0},{"$f":"masterlist!F203","v":0},{"$f":"masterlist!G203","v":0},{"$f":"masterlist!H203","v":0},{"$f":"masterlist!I203","v":0},{"$f":"masterlist!J203","v":""},{"$f":"masterlist!K203","v":""}]
["----",{"$f":"masterlist!B204","v":0},{"$f":"masterlist!C204","v":"---"},{"$f":"masterlist!D204","v":0},{"$f":"masterlist!E204","v":0},{"$f":"masterlist!F204","v":0},{"$f":"masterlist!G204","v":0},{"$f":"masterlist!H204","v":0},{"$f":"masterlist!I204","v":0},{"$f":"masterlist!J204","v":""},{"$f":"masterlist!K204","v":""}]
["----",{"$f":"masterlist!B205","v":0},{"$f":"masterlist!C205","v":"---"},{"$f":"masterlist!D205","v":0},{"$f":"masterlist!E205","v":0},{"$f":"masterlist!F205","v":0},{"$f":"masterlist!G205","v":0},{"$f":"masterlist!H205","v":0},{"$f":"masterlist!I205","v":0},{"$f":"masterlist!J205","v":""},{"$f":"masterlist!K205","v":""}]
["----",{"$f":"masterlist!B206","v":0},{"$f":"masterlist!C206","v":"---"},{"$f":"masterlist!D206","v":0},{"$f":"masterlist!E206","v":0},{"$f":"masterlist!F206","v":0},{"$f":"masterlist!G206","v":0},{"$f":"masterlist!H206","v":0},{"$f":"masterlist!I206","v":0},{"$f":"masterlist!J206","v":""},{"$f":"masterlist!K206","v":""}]
["----",{"$f":"masterlist!B207","v":0},{"$f":"masterlist!C207","v":"---"},{"$f":"masterlist!D207","v":0},{"$f":"masterlist!E207","v":0},{"$f":"masterlist!F207","v":0},{"$f":"masterlist!G207","v":0},{"$f":"masterlist!H207","v":0},{"$f":"masterlist!I207","v":0},{"$f":"masterlist!J207","v":""},{"$f":"masterlist!K207","v":""}]

{"sheet":"SUMMARY (Score)","index":14,"n_rows":40,"n_cols":16,"rows_kept":40,"cut":false,"hidden":false,"merged":[[37,8,38,8],[6,1,7,2],[3,0,3,28],[33,2,34,2],[35,2,36,2],[37,2,38,2],[37,1,38,1],[24,1,24,7],[25,1,26,2],[29,2,30,2],[27,2,28,2],[37,5,38,5],[37,7,38,7],[29,5,30,5],[31,5,32,5],[25,5,26,5],[35,5,36,5],[36,11,36,21],[26,15,26,17],[27,5,28,5],[28,15,28,17],[35,6,36,6],[34,12,34,20],[25,6,26,6],[27,6,28,6],[29,6,30,6],[31,6,32,6],[33,6,34,6],[20,1,21,2],[25,3,26,3],[25,4,26,4],[25,7,26,7],[33,5,34,5],[37,6,38,6],[2,0,2,4],[0,0,0,28],[1,0,1,28],[30,14,30,18],[32,13,32,19],[5,1,5,4],[6,3,7,3],[6,4,7,4],[31,2,32,2],[8,1,9,2],[10,1,11,2],[12,1,13,2],[14,1,15,2],[16,1,17,2],[18,1,19,2]]}
[{"$f":"\"L'Approche Raisonnée de l'Elimination de la Rage\"&IF(ISBLANK('Country profile'!E3),\"\",\"   -  \")&'Country profile'!E3&IF(ISBLANK('Country profile'!K9),IF(ISBLANK('Country profile'!K14),\"\",\" - \"&'Country profile'!K14),\" - \"&'Country profile'!K9)","v":"L'Approche Raisonnée de l'Elimination de la Rage   -  Algeria"}]
[{"$f":"CONCATENATE(\"ÉTAPE   \",((INDEX(B28:B40,MATCH(\"PENDING\",I28:I40,0)))))","v":"ÉTAPE   1,5"}]
["Interpréter le score SARE selon la Feuille de route Unis Contre la Rage:"]
[{"$f":"IF(ISBLANK(A2),\"\",IF(OR(A2=\"ÉTAPE   0\",A2=\"ÉTAPE   0,5\",A2=\"ÉTAPE   1\",A2=\"ÉTAPE   1,5\"),\"La rage transmise par les chiens est endémique. Le pays est en train de constituer une base de données probantes pour soutenir l'élaboration et la mise en œuvre d'initiatives d'élimination de la rage au niveau national.\",IF(OR(A2=\"ÉTAPE   2\",A2=\"ÉTAPE   2,5\"),\"La rage transmise par les chiens est endémique. Le pays a constitué un dossier solide en faveur de l'élimination de la rage et est en train de lancer des initiatives d'élimination de la rage au niveau national..\",IF(OR(A2=\"ÉTAPE   3\",A2=\"ÉTAPE   3,5\"),\"Des initiatives d'élimination de la rage sont mises en œuvre au niveau national, entraînant une diminution notable des cas de rage chez les animaux et les humains.\",IF(OR(A2=\"ÉTAPE   4\",A2=\"ÉTAPE   4,5\"),\"Il n’y a plus de cas de rage humaine transmise par les chiens – et un nombre limité de cas de rage canine  – détectés dans le pays suite à la vaccination des chiens et à la prophylaxie post-exposition pour les humains qui est largement disponible.\",\"Des données fiables et exhaustives indiquent que la rage transmise par les chiens a été éliminée du pays et que des mesures ont été mises en œuvre pour pérenniser cette situation.\")))))","v":"La rage transmise par les chiens est endémique. Le pays est en train de constituer une base de données probantes pour soutenir l'élaboration et la mise en œuvre d'initiatives d'élimination de la rage au niveau national."}]
[]
[null,"RESUME DES ACTIVITÉS"]
[null,"COMPOSANTES",null,"ACTIVITES \nEN COURS","ACTIVITES REALISEES"]
[null,null,null,null,null,null,null,null,"COMPONENTS",null,"ACTIVITES EN COURS","ACTIVITES REALISEES"]
[null,"Prévention et contrôle (PCO)\n    Nombre total d’activités = 32",null,{"$f":"(COUNTIF(masterlist!B:B,\"PCO\"))-E9","v":24},{"$f":"SUM('Prev & Ctrl'!F:F)","v":8},null,null,null,"PCO","PCO",{"$f":"D9","v":24},{"$f":"E9","v":8}]
[null,null,null,null,null,null,null,null,"DCA","DCA",{"$f":"D11","v":10},{"$f":"E11","v":11}]
[null,"Collecte et analyse des données (DCA)\n    Nombre total d’activités = 21",null,{"$f":"(COUNTIF(masterlist!B:B,\"DCA\"))-E11","v":10},{"$f":"SUM('Data coll & an'!F:F)","v":11},null,null,null,"LAB","LAB",{"$f":"D13","v":10},{"$f":"E13","v":4}]
[null,null,null,null,null,null,null,null,"LEG","LEG",{"$f":"D15","v":1},{"$f":"E15","v":11}]
[null,"Diagnostic de laboratoire (LAB)\n    Nombre total d’activités = 14",null,{"$f":"(COUNTIF(masterlist!B:B,\"LAB\"))-E13","v":10},{"$f":"SUM('Lab dx'!F:F)","v":4},null,null,null,"IEC","IEC",{"$f":"D17","v":11},{"$f":"E17","v":8}]
[null,null,null,null,null,null,null,null,"CCI","CCI",{"$f":"D19","v":7},{"$f":"E19","v":3}]
[null,"Législation (LEG)\n    Nombre total d’activités = 12",null,{"$f":"(COUNTIF(masterlist!B:B,\"LEG\"))-E15","v":1},{"$f":"SUM(Legislation!F:F)","v":11},null,null,null,"DPM","DPM",{"$f":"D21","v":13},{"$f":"E21","v":1}]
[]
[null,"Informations, éducation, communication (IEC)\n    Nombre total d’activités = 19",null,{"$f":"(COUNTIF(masterlist!B:B,\"IEC\"))-E17","v":11},{"$f":"SUM(IEC!F:F)","v":8}]
[]
[null,"Problèmes transversaux (CCI)\n     Nombre total d’activités = 10",null,{"$f":"(COUNTIF(masterlist!B:B,\"CCI\"))-E19","v":7},{"$f":"SUM('Cross-cutting issues'!F:F)","v":3}]
[]
[null,"Gestion humaine de la population canine (DPM)\n    Nombre total d’activités = 14",null,{"$f":"(COUNTIF(masterlist!B:B,\"DPM\"))-E21","v":13},{"$f":"SUM('Dog popn'!F:F)","v":1}]
[]
[]
[]
[null,"RÉSUMÉ DES STADES "]
[null,"ÉTAPE",null,"ACTIVITES REALISEES","ACTIVITES \nEN COURS","CRITICAL ACTIVITIES ACCOMPLISHED","% D'ÉTAPES REALISEES","STAGE COMPLETED?"]
[null,null,null,null,null,null,null,null,null,null,null,null,null,null,{"$f":"INT((E38/(D38+E38))*100)&\"%\"","v":"0%"},{"$f":"E38","v":0}]
[null,0,"Nombre total d’activités = 9",{"$f":"(COUNTIF(masterlist!E:E,0))-E28","v":2},{"$f":"SUMIF(masterlist!E:E,0,masterlist!J:J)","v":7},{"$f":"COUNTIFS(masterlist!E:E,0,masterlist!I:I,\"KEY\",masterlist!J:J,1)","v":3},{"$f":"(E28/(D28+E28))","v":0.77777777777777779},{"$f":"IF(F28>=2,\"COMPLETED\",IF(AND(F28>=1,E28>3),\"COMPLETED\",\"PENDING\"))","v":"COMPLETED"},{"$f":"H28","v":"COMPLETED"}]
[null,0.5,null,{"$f":"REPT(\"I\",D28)","v":"II"},{"$f":"REPT(\"I\",E28)","v":"IIIIIII"},null,null,{"$f":"IF(F28=3,\"COMPLETED\",\"PENDING\")","v":"COMPLETED"},{"$f":"H29","v":"COMPLETED"},null,null,null,null,null,{"$f":"INT((E36/(D36+E36))*100)&\"%\"","v":"0%"},{"$f":"E36","v":0}]
[null,1,"Nombre total d’activités = 44",{"$f":"(COUNTIF(masterlist!E:E,1))-E30","v":13},{"$f":"SUMIF(masterlist!E:E,1,masterlist!J:J)","v":31},{"$f":"COUNTIFS(masterlist!E:E,1,masterlist!I:I,\"KEY\",masterlist!J:J,1)","v":9},{"$f":"(E30/(D30+E30))","v":0.70454545454545459},{"$f":"IF(F30>4,\"COMPLETED\",IF(AND(F30>=1,E30>21),\"COMPLETED\",\"PENDING\"))","v":"COMPLETED"},{"$f":"H30","v":"COMPLETED"}]
[null,1.5,null,{"$f":"REPT(\"I\",D30)","v":"IIIIIIIIIIIII"},{"$f":"REPT(\"I\",E30)","v":"IIIIIIIIIIIIIIIIIIIIIIIIIIIIIII"},null,null,{"$f":"IF(F30=10,\"COMPLETED\",\"PENDING\")","v":"PENDING"},"PENDING",null,null,null,null,{"$f":"INT((E34/(D34+E34))*100)&\"%\"","v":"15%"},{"$f":"E34","v":3}]
[null,2,"Nombre total d’activités = 31",{"$f":"(COUNTIF(masterlist!E:E,2))-E32","v":26},{"$f":"SUMIF(masterlist!E:E,2,masterlist!J:J)","v":5},{"$f":"COUNTIFS(masterlist!E:E,2,masterlist!I:I,\"KEY\",masterlist!J:J,1)","v":1},{"$f":"(E32/(D32+E32))","v":0.16129032258064516},{"$f":"IF(F32>=4,\"COMPLETED\",IF(AND(F32>=1,E32>13),\"COMPLETED\",\"PENDING\"))","v":"PENDING"},"PENDING"]
[null,2.5,null,{"$f":"REPT(\"I\",D32)","v":"IIIIIIIIIIIIIIIIIIIIIIIIII"},{"$f":"REPT(\"I\",E32)","v":"IIIII"},null,null,{"$f":"IF(F32=8,\"COMPLETED\",\"PENDING\")","v":"PENDING"},"PENDING",null,null,null,{"$f":"INT((E32/(D32+E32))*100)&\"%\"","v":"16%"},{"$f":"E32","v":5}]
[null,3,"Nombre total d’activités = 20",{"$f":"(COUNTIF(masterlist!E:E,3))-E34","v":17},{"$f":"SUMIF(masterlist!E:E,3,masterlist!J:J)","v":3},{"$f":"COUNTIFS(masterlist!E:E,3,masterlist!I:I,\"KEY\",masterlist!J:J,1)","v":2},{"$f":"(E34/(D34+E34))","v":0.15},{"$f":"IF(F34>4,\"COMPLETED\",IF(AND(F34>=1,E34>10),\"COMPLETED\",\"PENDING\"))","v":"PENDING"},"PENDING"]
[null,3.5,null,{"$f":"REPT(\"I\",D34)","v":"IIIIIIIIIIIIIIIII"},{"$f":"REPT(\"I\",E34)","v":"III"},null,null,{"$f":"IF(F34=8,\"COMPLETED\",\"PENDING\")","v":"PENDING"},{"$f":"IF(H36=\"PENDING\",\"PENDING\",\"COMPLETED\")","v":"PENDING"},null,null,{"$f":"INT((E30/(D30+E30))*100)&\"%\"","v":"70%"},{"$f":"E30","v":31}]
[null,4,"Nombre total d’activités = 9",{"$f":"(COUNTIF(masterlist!E:E,4))-E36","v":9},{"$f":"SUMIF(masterlist!E:E,4,masterlist!J:J)","v":0},{"$f":"COUNTIFS(masterlist!E:E,4,masterlist!I:I,\"KEY\",masterlist!J:J,1)","v":0},{"$f":"(E36/(D36+E36))","v":0},{"$f":"IF(F36>4,\"COMPLETED\",IF(AND(F36>=1,E36>5),\"COMPLETED\",\"PENDING\"))","v":"PENDING"},{"$f":"IF(H37=\"PENDING\",\"PENDING\",\"COMPLETED\")","v":"PENDING"}]
[null,4.5,null,{"$f":"REPT(\"I\",D36)","v":"IIIIIIIII"},{"$f":"REPT(\"I\",E36)","v":""},null,null,{"$f":"IF(F36=7,\"COMPLETED\",\"PENDING\")","v":"PENDING"},{"$f":"IF(H38=\"PENDING\",\"PENDING\",\"COMPLETED\")","v":"PENDING"},null,{"$f":"INT((E28/(D28+E28))*100)&\"%\"","v":"77%"},{"$f":"E28","v":7}]
[null,5,"Nombre total d’activités = 9",{"$f":"(COUNTIF(masterlist!E:E,5))-E38","v":9},{"$f":"SUMIF(masterlist!E:E,5,masterlist!J:J)","v":0},{"$f":"COUNTIFS(masterlist!E:E,5,masterlist!I:I,\"KEY\",masterlist!J:J,1)","v":0},{"$f":"(E38/(D38+E38))","v":0},{"$f":"IF(F38=9,\"COMPLETED\",\"PENDING\")","v":"PENDING"},{"$f":"H38","v":"PENDING"}]
[null,null,null,{"$f":"REPT(\"I\",D38)","v":"IIIIIIIII"},{"$f":"REPT(\"I\",E38)","v":""}]
[null,5,null,null,null,null,null,"PENDING","PENDING"]

{"sheet":"SUMMARY (S0-S5)","index":15,"n_rows":66,"n_cols":28,"rows_kept":66,"cut":false,"hidden":true,"merged":[[3,0,4,0],[3,2,3,3],[3,6,3,7],[3,10,3,11],[0,0,0,7],[1,0,1,7],[3,14,3,15],[3,18,3,19],[3,22,3,23],[3,26,3,27],[0,10,1,13],[0,14,1,14]]}
["L'Approche Raisonnée de l'Elimination de la Rage",null,null,null,null,null,null,null,null,null,{"$f":"IF(ISBLANK('Country profile'!E3),\"\",UPPER('Country profile'!E3))","v":"ALGERIA"},null,null,null,{"$f":"IF(ISBLANK('Country profile'!K9),IF(ISBLANK('Country profile'!K14),\"\",'Country profile'!K14),'Country profile'!K9)","v":""}]
["RESUME DES ACTIVITES DU PROGRAMME ANTIRABIQUE"]
[]
["ÉTAPE",null,"COLLECTE ET ANALYSE DES DONNÉES",null,null,null,"PRÉVENTION ET CONTRÔLE",null,null,null,"DIAGNOSTIC DE LABORATOIRE",null,null,null,"GESTION HUMAINE DE LA POPULATION CANINE",null,null,null,"INFORMATIONS, ÉDUCATION, COMMUNICATION",null,null,null,"PROBLÈMES TRANSVERSAUX",null,null,null,"LÉGISLATION"]
[null,null,"En cours","Réalisées",null,null,"En cours","Réalisées",null,null,"En cours","Réalisées",null,null,"En cours","Réalisées",null,null,"En cours","Réalisées",null,null,"En cours","Réalisées",null,null,"En cours","Réalisées"]
[0,{"$f":"IF(ROWS(B$6:B6)<=$A$7,INDEX(masterlist!$C$2:$C$207,SMALL(IF(masterlist!$B$2:$B$207=\"DCA\",IF(masterlist!$E$2:$E$207=0,ROW(masterlist!$B$2:$B$207)-ROW(masterlist!$B$2)+1)),ROWS(B$6:B6))),\"\")","v":"DCA-Sur-0-1"},{"$f":"IFERROR(VLOOKUP(B6&\"-0\",'linked mastersheet'!$A$2:$K$199,7,FALSE),\"\")","v":""},{"$f":"IFERROR(VLOOKUP(B6&\"-1\",'linked mastersheet'!$A$2:$K$199,7,FALSE),\"\")","v":"La présence de la rage a-t-elle été officiellement OU officieusement mentionnée dans le pays ?"},null,{"$f":"IF(ROWS(B$6:B6)<=$E$7,INDEX(masterlist!$C$2:$C$207,SMALL(IF(masterlist!$B$2:$B$207=\"PCO\",IF(masterlist!$E$2:$E$207=0,ROW(masterlist!$B$2:$B$207)-ROW(masterlist!$B$2)+1)),ROWS(B$6:B6))),\"\")","v":""},{"$f":"IFERROR(VLOOKUP(F6&\"-0\",'linked mastersheet'!$A$2:$K$199,7,FALSE),\"\")","v":""},{"$f":"IFERROR(VLOOKUP(F6&\"-1\",'linked mastersheet'!$A$2:$K$199,7,FALSE),\"\")","v":""},null,{"$f":"IF(ROWS(B$6:B6)<=$I$7,INDEX(masterlist!$C$2:$C$207,SMALL(IF(masterlist!$B$2:$B$207=\"LAB\",IF(masterlist!$E$2:$E$207=0,ROW(masterlist!$B$2:$B$207)-ROW(masterlist!$B$2)+1)),ROWS(B$6:B6))),\"\")","v":"LAB-Env-0-1"},{"$f":"IFERROR(VLOOKUP(J6&\"-0\",'linked mastersheet'!$A$2:$K$199,7,FALSE),\"\")","v":""},{"$f":"IFERROR(VLOOKUP(J6&\"-1\",'linked mastersheet'!$A$2:$K$199,7,FALSE),\"\")","v":"Un contact a-t-il été établi avec un laboratoire international de référence pour la rage (OMSA), un centre collaborateur (OMS) ou un centre de référence (FAO) ?"},null,{"$f":"IF(ROWS(B$6:B6)<=$M$7,INDEX(masterlist!$C$2:$C$207,SMALL(IF(masterlist!$B$2:$B$207=\"DPM\",IF(masterlist!$E$2:$E$207=0,ROW(masterlist!$B$2:$B$207)-ROW(masterlist!$B$2)+1)),ROWS(B$6:B6))),\"\")","v":"DPM--0-1"},{"$f":"IFERROR(VLOOKUP(N6&\"-0\",'linked mastersheet'!$A$2:$K$199,7,FALSE),\"\")","v":"Y a-t-il des activités de gestion compassionnelle de la population canine entreprises dans le pays par une des parties prenantes ?"},{"$f":"IFERROR(VLOOKUP(N6&\"-1\",'linked mastersheet'!$A$2:$K$199,7,FALSE),\"\")","v":""},null,{"$f":"IF(ROWS(B$6:B6)<=Q$7,INDEX(masterlist!$C$2:$C$207,SMALL(IF(masterlist!$B$2:$B$207=\"DCA\",IF(masterlist!$E$2:$E$207=0,ROW(masterlist!$B$2:$B$207)-ROW(masterlist!$B$2)+1)),ROWS(B$6:B6))),\"\")","v":"DCA-Sur-0-1"},{"$f":"IFERROR(VLOOKUP(R6&\"-0\",'linked mastersheet'!$A$2:$K$199,7,FALSE),\"\")","v":""},{"$f":"IFERROR(VLOOKUP(R6&\"-1\",'linked mastersheet'!$A$2:$K$199,7,FALSE),\"\")","v":"La présence de la rage a-t-elle été officiellement OU officieusement mentionnée dans le pays ?"},null,{"$f":"IF(ROWS(B$6:B6)<=$U$7,INDEX(masterlist!$C$2:$C$207,SMALL(IF(masterlist!$B$2:$B$207=\"CCI\",IF(masterlist!$E$2:$E$207=0,ROW(masterlist!$B$2:$B$207)-ROW(masterlist!$B$2)+1)),ROWS(B$6:B6))),\"\")","v":"CCI-Cré-0-1"},{"$f":"IFERROR(VLOOKUP(V6&\"-0\",'linked mastersheet'!$A$2:$K$199,7,FALSE),\"\")","v":"Les parties prenantes au niveau national se tiennent-elles mutuellement informées de TOUTES les activités programmatiques liées à la rage qui sont mises en œuvre dans le pays ?"},{"$f":"IFERROR(VLOOKUP(V6&\"-1\",'linked mastersheet'!$A$2:$K$199,7,FALSE),\"\")","v":""},null,{"$f":"IF(ROWS(B$6:B6)<=$Y$7,INDEX(masterlist!$C$2:$C$207,SMALL(IF(masterlist!$B$2:$B$207=\"LEG\",IF(masterlist!$E$2:$E$207=0,ROW(masterlist!$B$2:$B$207)-ROW(masterlist!$B$2)+1)),ROWS(B$6:B6))),\"\")","v":"LEG-Déf-0-1"},{"$f":"IFERROR(VLOOKUP(Z6&\"-0\",'linked mastersheet'!$A$2:$K$199,7,FALSE),\"\")","v":""},{"$f":"IFERROR(VLOOKUP(Z6&\"-1\",'linked mastersheet'!$A$2:$K$199,7,FALSE),\"\")","v":"Existe-t-il une définition de cas de rage animale disponible qui soit compatible avec (ou semblable aux) les directives de l’OMS ?"}]
[{"$f":"SUMPRODUCT((masterlist!B:B=\"DCA\")*(masterlist!E:E=0))","v":2},{"$f":"IF(ROWS(B$6:B7)<=$A$7,INDEX(masterlist!$C$2:$C$207,SMALL(IF(masterlist!$B$2:$B$207=\"DCA\",IF(masterlist!$E$2:$E$207=0,ROW(masterlist!$B$2:$B$207)-ROW(masterlist!$B$2)+1)),ROWS(B$6:B7))),\"\")","v":"DCA-Sur-0-2"},{"$f":"IFERROR(VLOOKUP(B7&\"-0\",'linked mastersheet'!$A$2:$K$199,7,FALSE),\"\")","v":""},{"$f":"IFERROR(VLOOKUP(B7&\"-1\",'linked mastersheet'!$A$2:$K$199,7,FALSE),\"\")","v":"Les autorités nationales ont-elles jamais signalé au moins un cas de rage confirmée à l’OMS ou à WOAH ?"},{"$f":"SUMPRODUCT((masterlist!B:B=\"PCO\")*(masterlist!E:E=0))","v":0},{"$f":"IF(ROWS(B$6:B7)<=$E$7,INDEX(masterlist!$C$2:$C$207,SMALL(IF(masterlist!$B$2:$B$207=\"PCO\",IF(masterlist!$E$2:$E$207=0,ROW(masterlist!$B$2:$B$207)-ROW(masterlist!$B$2)+1)),ROWS(B$6:B7))),\"\")","v":""},{"$f":"IFERROR(VLOOKUP(F7&\"-0\",'linked mastersheet'!$A$2:$K$199,7,FALSE),\"\")","v":""},{"$f":"IFERROR(VLOOKUP(F7&\"-1\",'linked mastersheet'!$A$2:$K$199,7,FALSE),\"\")","v":""},{"$f":"SUMPRODUCT((masterlist!B:B=\"LAB\")*(masterlist!E:E=0))","v":2},{"$f":"IF(ROWS(B$6:B7)<=$I$7,INDEX(masterlist!$C$2:$C$207,SMALL(IF(masterlist!$B$2:$B$207=\"LAB\",IF(masterlist!$E$2:$E$207=0,ROW(masterlist!$B$2:$B$207)-ROW(masterlist!$B$2)+1)),ROWS(B$6:B7))),\"\")","v":"LAB-Env-0-2"},{"$f":"IFERROR(VLOOKUP(J7&\"-0\",'linked mastersheet'!$A$2:$K$199,7,FALSE),\"\")","v":""},{"$f":"IFERROR(VLOOKUP(J7&\"-1\",'linked mastersheet'!$A$2:$K$199,7,FALSE),\"\")","v":"Avez-vous confirmé la présence de rage animale ou humaine dans votre pays au moyen d’un diagnostic au laboratoire?"},{"$f":"SUMPRODUCT((masterlist!B:B=\"DPM\")*(masterlist!E:E=0))","v":1},{"$f":"IF(ROWS(B$6:B7)<=$M$7,INDEX(masterlist!$C$2:$C$207,SMALL(IF(masterlist!$B$2:$B$207=\"DPM\",IF(masterlist!$E$2:$E$207=0,ROW(masterlist!$B$2:$B$207)-ROW(masterlist!$B$2)+1)),ROWS(B$6:B7))),\"\")","v":""},{"$f":"IFERROR(VLOOKUP(N7&\"-0\",'linked mastersheet'!$A$2:$K$199,7,FALSE),\"\")","v":""},{"$f":"IFERROR(VLOOKUP(N7&\"-1\",'linked mastersheet'!$A$2:$K$199,7,FALSE),\"\")","v":""},{"$f":"SUMPRODUCT((masterlist!B:B=\"IEC\")*(masterlist!E:E=0))","v":1},{"$f":"IF(ROWS(B$6:B7)<=Q$7,INDEX(masterlist!$C$2:$C$207,SMALL(IF(masterlist!$B$2:$B$207=\"DCA\",IF(masterlist!$E$2:$E$207=0,ROW(masterlist!$B$2:$B$207)-ROW(masterlist!$B$2)+1)),ROWS(B$6:B7))),\"\")","v":""},{"$f":"IFERROR(VLOOKUP(R7&\"-0\",'linked mastersheet'!$A$2:$K$199,7,FALSE),\"\")","v":""},{"$f":"IFERROR(VLOOKUP(R7&\"-1\",'linked mastersheet'!$A$2:$K$199,7,FALSE),\"\")","v":""},{"$f":"SUMPRODUCT((masterlist!B:B=\"CCI\")*(masterlist!E:E=0))","v":1},{"$f":"IF(ROWS(B$6:B7)<=$U$7,INDEX(masterlist!$C$2:$C$207,SMALL(IF(masterlist!$B$2:$B$207=\"CCI\",IF(masterlist!$E$2:$E$207=0,ROW(masterlist!$B$2:$B$207)-ROW(masterlist!$B$2)+1)),ROWS(B$6:B7))),\"\")","v":""},{"$f":"IFERROR(VLOOKUP(V7&\"-0\",'linked mastersheet'!$A$2:$K$199,7,FALSE),\"\")","v":""},{"$f":"IFERROR(VLOOKUP(V7&\"-1\",'linked mastersheet'!$A$2:$K$199,7,FALSE),\"\")","v":""},{"$f":"SUMPRODUCT((masterlist!B:B=\"LEG\")*(masterlist!E:E=0))","v":2},{"$f":"IF(ROWS(B$6:B7)<=$Y$7,INDEX(masterlist!$C$2:$C$207,SMALL(IF(masterlist!$B$2:$B$207=\"LEG\",IF(masterlist!$E$2:$E$207=0,ROW(masterlist!$B$2:$B$207)-ROW(masterlist!$B$2)+1)),ROWS(B$6:B7))),\"\")","v":"LEG-Déf-0-3"},{"$f":"IFERROR(VLOOKUP(Z7&\"-0\",'linked mastersheet'!$A$2:$K$199,7,FALSE),\"\")","v":""},{"$f":"IFERROR(VLOOKUP(Z7&\"-1\",'linked mastersheet'!$A$2:$K$199,7,FALSE),\"\")","v":"Existe-t-il une définition de cas de rage humaine disponible qui soit compatible avec (ou semblable à) les directives de l’OMS ?"}]
[null,{"$f":"IF(ROWS(B$6:B8)<=$A$7,INDEX(masterlist!$C$2:$C$207,SMALL(IF(masterlist!$B$2:$B$207=\"DCA\",IF(masterlist!$E$2:$E$207=0,ROW(masterlist!$B$2:$B$207)-ROW(masterlist!$B$2)+1)),ROWS(B$6:B8))),\"\")","v":""},{"$f":"IFERROR(VLOOKUP(B8&\"-0\",'linked mastersheet'!$A$2:$K$199,7,FALSE),\"\")","v":""},{"$f":"IFERROR(VLOOKUP(B8&\"-1\",'linked mastersheet'!$A$2:$K$199,7,FALSE),\"\")","v":""},null,{"$f":"IF(ROWS(B$6:B8)<=$E$7,INDEX(masterlist!$C$2:$C$207,SMALL(IF(masterlist!$B$2:$B$207=\"PCO\",IF(masterlist!$E$2:$E$207=0,ROW(masterlist!$B$2:$B$207)-ROW(masterlist!$B$2)+1)),ROWS(B$6:B8))),\"\")","v":""},{"$f":"IFERROR(VLOOKUP(F8&\"-0\",'linked mastersheet'!$A$2:$K$199,7,FALSE),\"\")","v":""},{"$f":"IFERROR(VLOOKUP(F8&\"-1\",'linked mastersheet'!$A$2:$K$199,7,FALSE),\"\")","v":""},null,{"$f":"IF(ROWS(B$6:B8)<=$I$7,INDEX(masterlist!$C$2:$C$207,SMALL(IF(masterlist!$B$2:$B$207=\"LAB\",IF(masterlist!$E$2:$E$207=0,ROW(masterlist!$B$2:$B$207)-ROW(masterlist!$B$2)+1)),ROWS(B$6:B8))),\"\")","v":""},{"$f":"IFERROR(VLOOKUP(J8&\"-0\",'linked mastersheet'!$A$2:$K$199,7,FALSE),\"\")","v":""},{"$f":"IFERROR(VLOOKUP(J8&\"-1\",'linked mastersheet'!$A$2:$K$199,7,FALSE),\"\")","v":""},null,{"$f":"IF(ROWS(B$6:B8)<=$M$7,INDEX(masterlist!$C$2:$C$207,SMALL(IF(masterlist!$B$2:$B$207=\"DPM\",IF(masterlist!$E$2:$E$207=0,ROW(masterlist!$B$2:$B$207)-ROW(masterlist!$B$2)+1)),ROWS(B$6:B8))),\"\")","v":""},{"$f":"IFERROR(VLOOKUP(N8&\"-0\",'linked mastersheet'!$A$2:$K$199,7,FALSE),\"\")","v":""},{"$f":"IFERROR(VLOOKUP(N8&\"-1\",'linked mastersheet'!$A$2:$K$199,7,FALSE),\"\")","v":""},null,{"$f":"IF(ROWS(B$6:B8)<=Q$7,INDEX(masterlist!$C$2:$C$207,SMALL(IF(masterlist!$B$2:$B$207=\"DCA\",IF(masterlist!$E$2:$E$207=0,ROW(masterlist!$B$2:$B$207)-ROW(masterlist!$B$2)+1)),ROWS(B$6:B8))),\"\")","v":""},{"$f":"IFERROR(VLOOKUP(R8&\"-0\",'linked mastersheet'!$A$2:$K$199,7,FALSE),\"\")","v":""},{"$f":"IFERROR(VLOOKUP(R8&\"-1\",'linked mastersheet'!$A$2:$K$199,7,FALSE),\"\")","v":""},null,{"$f":"IF(ROWS(B$6:B8)<=$U$7,INDEX(masterlist!$C$2:$C$207,SMALL(IF(masterlist!$B$2:$B$207=\"CCI\",IF(masterlist!$E$2:$E$207=0,ROW(masterlist!$B$2:$B$207)-ROW(masterlist!$B$2)+1)),ROWS(B$6:B8))),\"\")","v":""},{"$f":"IFERROR(VLOOKUP(V8&\"-0\",'linked mastersheet'!$A$2:$K$199,7,FALSE),\"\")","v":""},{"$f":"IFERROR(VLOOKUP(V8&\"-1\",'linked mastersheet'!$A$2:$K$199,7,FALSE),\"\")","v":""},null,{"$f":"IF(ROWS(B$6:B8)<=$Y$7,INDEX(masterlist!$C$2:$C$207,SMALL(IF(masterlist!$B$2:$B$207=\"LEG\",IF(masterlist!$E$2:$E$207=0,ROW(masterlist!$B$2:$B$207)-ROW(masterlist!$B$2)+1)),ROWS(B$6:B8))),\"\")","v":""},{"$f":"IFERROR(VLOOKUP(Z8&\"-0\",'linked mastersheet'!$A$2:$K$199,7,FALSE),\"\")","v":""},{"$f":"IFERROR(VLOOKUP(Z8&\"-1\",'linked mastersheet'!$A$2:$K$199,7,FALSE),\"\")","v":""}]
[null,{"$f":"IF(ROWS(B$6:B9)<=$A$7,INDEX(masterlist!$C$2:$C$207,SMALL(IF(masterlist!$B$2:$B$207=\"DCA\",IF(masterlist!$E$2:$E$207=0,ROW(masterlist!$B$2:$B$207)-ROW(masterlist!$B$2)+1)),ROWS(B$6:B9))),\"\")","v":""},{"$f":"IFERROR(VLOOKUP(B9&\"-0\",'linked mastersheet'!$A$2:$K$199,7,FALSE),\"\")","v":""},{"$f":"IFERROR(VLOOKUP(B9&\"-1\",'linked mastersheet'!$A$2:$K$199,7,FALSE),\"\")","v":""},null,{"$f":"IF(ROWS(B$6:B9)<=$E$7,INDEX(masterlist!$C$2:$C$207,SMALL(IF(masterlist!$B$2:$B$207=\"PCO\",IF(masterlist!$E$2:$E$207=0,ROW(masterlist!$B$2:$B$207)-ROW(masterlist!$B$2)+1)),ROWS(B$6:B9))),\"\")","v":""},{"$f":"IFERROR(VLOOKUP(F9&\"-0\",'linked mastersheet'!$A$2:$K$199,7,FALSE),\"\")","v":""},{"$f":"IFERROR(VLOOKUP(F9&\"-1\",'linked mastersheet'!$A$2:$K$199,7,FALSE),\"\")","v":""},null,{"$f":"IF(ROWS(B$6:B9)<=$I$7,INDEX(masterlist!$C$2:$C$207,SMALL(IF(masterlist!$B$2:$B$207=\"LAB\",IF(masterlist!$E$2:$E$207=0,ROW(masterlist!$B$2:$B$207)-ROW(masterlist!$B$2)+1)),ROWS(B$6:B9))),\"\")","v":""},{"$f":"IFERROR(VLOOKUP(J9&\"-0\",'linked mastersheet'!$A$2:$K$199,7,FALSE),\"\")","v":""},{"$f":"IFERROR(VLOOKUP(J9&\"-1\",'linked mastersheet'!$A$2:$K$199,7,FALSE),\"\")","v":""},null,{"$f":"IF(ROWS(B$6:B9)<=$M$7,INDEX(masterlist!$C$2:$C$207,SMALL(IF(masterlist!$B$2:$B$207=\"DPM\",IF(masterlist!$E$2:$E$207=0,ROW(masterlist!$B$2:$B$207)-ROW(masterlist!$B$2)+1)),ROWS(B$6:B9))),\"\")","v":""},{"$f":"IFERROR(VLOOKUP(N9&\"-0\",'linked mastersheet'!$A$2:$K$199,7,FALSE),\"\")","v":""},{"$f":"IFERROR(VLOOKUP(N9&\"-1\",'linked mastersheet'!$A$2:$K$199,7,FALSE),\"\")","v":""},null,{"$f":"IF(ROWS(B$6:B9)<=Q$7,INDEX(masterlist!$C$2:$C$207,SMALL(IF(masterlist!$B$2:$B$207=\"DCA\",IF(masterlist!$E$2:$E$207=0,ROW(masterlist!$B$2:$B$207)-ROW(masterlist!$B$2)+1)),ROWS(B$6:B9))),\"\")","v":""},{"$f":"IFERROR(VLOOKUP(R9&\"-0\",'linked mastersheet'!$A$2:$K$199,7,FALSE),\"\")","v":""},{"$f":"IFERROR(VLOOKUP(R9&\"-1\",'linked mastersheet'!$A$2:$K$199,7,FALSE),\"\")","v":""},null,{"$f":"IF(ROWS(B$6:B9)<=$U$7,INDEX(masterlist!$C$2:$C$207,SMALL(IF(masterlist!$B$2:$B$207=\"CCI\",IF(masterlist!$E$2:$E$207=0,ROW(masterlist!$B$2:$B$207)-ROW(masterlist!$B$2)+1)),ROWS(B$6:B9))),\"\")","v":""},{"$f":"IFERROR(VLOOKUP(V9&\"-0\",'linked mastersheet'!$A$2:$K$199,7,FALSE),\"\")","v":""},{"$f":"IFERROR(VLOOKUP(V9&\"-1\",'linked mastersheet'!$A$2:$K$199,7,FALSE),\"\")","v":""},null,{"$f":"IF(ROWS(B$6:B9)<=$Y$7,INDEX(masterlist!$C$2:$C$207,SMALL(IF(masterlist!$B$2:$B$207=\"LEG\",IF(masterlist!$E$2:$E$207=0,ROW(masterlist!$B$2:$B$207)-ROW(masterlist!$B$2)+1)),ROWS(B$6:B9))),\"\")","v":""},{"$f":"IFERROR(VLOOKUP(Z9&\"-0\",'linked mastersheet'!$A$2:$K$199,7,FALSE),\"\")","v":""},{"$f":"IFERROR(VLOOKUP(Z9&\"-1\",'linked mastersheet'!$A$2:$K$199,7,FALSE),\"\")","v":""}]
[null,{"$f":"IF(ROWS(B$6:B10)<=$A$7,INDEX(masterlist!$C$2:$C$207,SMALL(IF(masterlist!$B$2:$B$207=\"DCA\",IF(masterlist!$E$2:$E$207=0,ROW(masterlist!$B$2:$B$207)-ROW(masterlist!$B$2)+1)),ROWS(B$6:B10))),\"\")","v":""},{"$f":"IFERROR(VLOOKUP(B10&\"-0\",'linked mastersheet'!$A$2:$K$199,7,FALSE),\"\")","v":""},{"$f":"IFERROR(VLOOKUP(B10&\"-1\",'linked mastersheet'!$A$2:$K$199,7,FALSE),\"\")","v":""},null,{"$f":"IF(ROWS(B$6:B10)<=$E$7,INDEX(masterlist!$C$2:$C$207,SMALL(IF(masterlist!$B$2:$B$207=\"PCO\",IF(masterlist!$E$2:$E$207=0,ROW(masterlist!$B$2:$B$207)-ROW(masterlist!$B$2)+1)),ROWS(B$6:B10))),\"\")","v":""},{"$f":"IFERROR(VLOOKUP(F10&\"-0\",'linked mastersheet'!$A$2:$K$199,7,FALSE),\"\")","v":""},{"$f":"IFERROR(VLOOKUP(F10&\"-1\",'linked mastersheet'!$A$2:$K$199,7,FALSE),\"\")","v":""},null,{"$f":"IF(ROWS(B$6:B10)<=$I$7,INDEX(masterlist!$C$2:$C$207,SMALL(IF(masterlist!$B$2:$B$207=\"LAB\",IF(masterlist!$E$2:$E$207=0,ROW(masterlist!$B$2:$B$207)-ROW(masterlist!$B$2)+1)),ROWS(B$6:B10))),\"\")","v":""},{"$f":"IFERROR(VLOOKUP(J10&\"-0\",'linked mastersheet'!$A$2:$K$199,7,FALSE),\"\")","v":""},{"$f":"IFERROR(VLOOKUP(J10&\"-1\",'linked mastersheet'!$A$2:$K$199,7,FALSE),\"\")","v":""},null,{"$f":"IF(ROWS(B$6:B10)<=$M$7,INDEX(masterlist!$C$2:$C$207,SMALL(IF(masterlist!$B$2:$B$207=\"DPM\",IF(masterlist!$E$2:$E$207=0,ROW(masterlist!$B$2:$B$207)-ROW(masterlist!$B$2)+1)),ROWS(B$6:B10))),\"\")","v":""},{"$f":"IFERROR(VLOOKUP(N10&\"-0\",'linked mastersheet'!$A$2:$K$199,7,FALSE),\"\")","v":""},{"$f":"IFERROR(VLOOKUP(N10&\"-1\",'linked mastersheet'!$A$2:$K$199,7,FALSE),\"\")","v":""},null,{"$f":"IF(ROWS(B$6:B10)<=Q$7,INDEX(masterlist!$C$2:$C$207,SMALL(IF(masterlist!$B$2:$B$207=\"DCA\",IF(masterlist!$E$2:$E$207=0,ROW(masterlist!$B$2:$B$207)-ROW(masterlist!$B$2)+1)),ROWS(B$6:B10))),\"\")","v":""},{"$f":"IFERROR(VLOOKUP(R10&\"-0\",'linked mastersheet'!$A$2:$K$199,7,FALSE),\"\")","v":""},{"$f":"IFERROR(VLOOKUP(R10&\"-1\",'linked mastersheet'!$A$2:$K$199,7,FALSE),\"\")","v":""},null,{"$f":"IF(ROWS(B$6:B10)<=$U$7,INDEX(masterlist!$C$2:$C$207,SMALL(IF(masterlist!$B$2:$B$207=\"CCI\",IF(masterlist!$E$2:$E$207=0,ROW(masterlist!$B$2:$B$207)-ROW(masterlist!$B$2)+1)),ROWS(B$6:B10))),\"\")","v":""},{"$f":"IFERROR(VLOOKUP(V10&\"-0\",'linked mastersheet'!$A$2:$K$199,7,FALSE),\"\")","v":""},{"$f":"IFERROR(VLOOKUP(V10&\"-1\",'linked mastersheet'!$A$2:$K$199,7,FALSE),\"\")","v":""},null,{"$f":"IF(ROWS(B$6:B10)<=$Y$7,INDEX(masterlist!$C$2:$C$207,SMALL(IF(masterlist!$B$2:$B$207=\"LEG\",IF(masterlist!$E$2:$E$207=0,ROW(masterlist!$B$2:$B$207)-ROW(masterlist!$B$2)+1)),ROWS(B$6:B10))),\"\")","v":""},{"$f":"IFERROR(VLOOKUP(Z10&\"-0\",'linked mastersheet'!$A$2:$K$199,7,FALSE),\"\")","v":""},{"$f":"IFERROR(VLOOKUP(Z10&\"-1\",'linked mastersheet'!$A$2:$K$199,7,FALSE),\"\")","v":""}]
[null,{"$f":"IF(ROWS(B$6:B11)<=$A$7,INDEX(masterlist!$C$2:$C$207,SMALL(IF(masterlist!$B$2:$B$207=\"DCA\",IF(masterlist!$E$2:$E$207=0,ROW(masterlist!$B$2:$B$207)-ROW(masterlist!$B$2)+1)),ROWS(B$6:B11))),\"\")","v":""},{"$f":"IFERROR(VLOOKUP(B11&\"-0\",'linked mastersheet'!$A$2:$K$199,7,FALSE),\"\")","v":""},{"$f":"IFERROR(VLOOKUP(B11&\"-1\",'linked mastersheet'!$A$2:$K$199,7,FALSE),\"\")","v":""},null,{"$f":"IF(ROWS(B$6:B11)<=$E$7,INDEX(masterlist!$C$2:$C$207,SMALL(IF(masterlist!$B$2:$B$207=\"PCO\",IF(masterlist!$E$2:$E$207=0,ROW(masterlist!$B$2:$B$207)-ROW(masterlist!$B$2)+1)),ROWS(B$6:B11))),\"\")","v":""},{"$f":"IFERROR(VLOOKUP(F11&\"-0\",'linked mastersheet'!$A$2:$K$199,7,FALSE),\"\")","v":""},{"$f":"IFERROR(VLOOKUP(F11&\"-1\",'linked mastersheet'!$A$2:$K$199,7,FALSE),\"\")","v":""},null,{"$f":"IF(ROWS(B$6:B11)<=$I$7,INDEX(masterlist!$C$2:$C$207,SMALL(IF(masterlist!$B$2:$B$207=\"LAB\",IF(masterlist!$E$2:$E$207=0,ROW(masterlist!$B$2:$B$207)-ROW(masterlist!$B$2)+1)),ROWS(B$6:B11))),\"\")","v":""},{"$f":"IFERROR(VLOOKUP(J11&\"-0\",'linked mastersheet'!$A$2:$K$199,7,FALSE),\"\")","v":""},{"$f":"IFERROR(VLOOKUP(J11&\"-1\",'linked mastersheet'!$A$2:$K$199,7,FALSE),\"\")","v":""},null,{"$f":"IF(ROWS(B$6:B11)<=$M$7,INDEX(masterlist!$C$2:$C$207,SMALL(IF(masterlist!$B$2:$B$207=\"DPM\",IF(masterlist!$E$2:$E$207=0,ROW(masterlist!$B$2:$B$207)-ROW(masterlist!$B$2)+1)),ROWS(B$6:B11))),\"\")","v":""},{"$f":"IFERROR(VLOOKUP(N11&\"-0\",'linked mastersheet'!$A$2:$K$199,7,FALSE),\"\")","v":""},{"$f":"IFERROR(VLOOKUP(N11&\"-1\",'linked mastersheet'!$A$2:$K$199,7,FALSE),\"\")","v":""},null,{"$f":"IF(ROWS(B$6:B11)<=Q$7,INDEX(masterlist!$C$2:$C$207,SMALL(IF(masterlist!$B$2:$B$207=\"DCA\",IF(masterlist!$E$2:$E$207=0,ROW(masterlist!$B$2:$B$207)-ROW(masterlist!$B$2)+1)),ROWS(B$6:B11))),\"\")","v":""},{"$f":"IFERROR(VLOOKUP(R11&\"-0\",'linked mastersheet'!$A$2:$K$199,7,FALSE),\"\")","v":""},{"$f":"IFERROR(VLOOKUP(R11&\"-1\",'linked mastersheet'!$A$2:$K$199,7,FALSE),\"\")","v":""},null,{"$f":"IF(ROWS(B$6:B11)<=$U$7,INDEX(masterlist!$C$2:$C$207,SMALL(IF(masterlist!$B$2:$B$207=\"CCI\",IF(masterlist!$E$2:$E$207=0,ROW(masterlist!$B$2:$B$207)-ROW(masterlist!$B$2)+1)),ROWS(B$6:B11))),\"\")","v":""},{"$f":"IFERROR(VLOOKUP(V11&\"-0\",'linked mastersheet'!$A$2:$K$199,7,FALSE),\"\")","v":""},{"$f":"IFERROR(VLOOKUP(V11&\"-1\",'linked mastersheet'!$A$2:$K$199,7,FALSE),\"\")","v":""},null,{"$f":"IF(ROWS(B$6:B11)<=$Y$7,INDEX(masterlist!$C$2:$C$207,SMALL(IF(masterlist!$B$2:$B$207=\"LEG\",IF(masterlist!$E$2:$E$207=0,ROW(masterlist!$B$2:$B$207)-ROW(masterlist!$B$2)+1)),ROWS(B$6:B11))),\"\")","v":""},{"$f":"IFERROR(VLOOKUP(Z11&\"-0\",'linked mastersheet'!$A$2:$K$199,7,FALSE),\"\")","v":""},{"$f":"IFERROR(VLOOKUP(Z11&\"-1\",'linked mastersheet'!$A$2:$K$199,7,FALSE),\"\")","v":""}]
[1,{"$f":"IF(ROWS(B$12:B12)<=$A$13,INDEX(masterlist!$C$2:$C$207,SMALL(IF(masterlist!$B$2:$B$207=\"DCA\",IF(masterlist!$E$2:$E$207=1,ROW(masterlist!$B$2:$B$207)-ROW(masterlist!$B$2)+1)),ROWS(B$12:B12))),\"\")","v":"DCA-Sur-1-3"},{"$f":"IFERROR(VLOOKUP(B12&\"-0\",'linked mastersheet'!$A$2:$K$199,7,FALSE),\"\")","v":""},{"$f":"IFERROR(VLOOKUP(B12&\"-1\",'linked mastersheet'!$A$2:$K$199,7,FALSE),\"\")","v":"Les cas de rage canine sont-ils transmis du niveau local au niveau national ?"},null,{"$f":"IF(ROWS(B$12:B12)<=$E$13,INDEX(masterlist!$C$2:$C$207,SMALL(IF(masterlist!$B$2:$B$207=\"PCO\",IF(masterlist!$E$2:$E$207=1,ROW(masterlist!$B$2:$B$207)-ROW(masterlist!$B$2)+1)),ROWS(B$12:B12))),\"\")","v":"PCO-Vac-1-1"},{"$f":"IFERROR(VLOOKUP(F12&\"-0\",'linked mastersheet'!$A$2:$K$199,7,FALSE),\"\")","v":""},{"$f":"IFERROR(VLOOKUP(F12&\"-1\",'linked mastersheet'!$A$2:$K$199,7,FALSE),\"\")","v":"Des vaccins pour la prophylaxie de la rage humaine sont-ils disponibles dans le pays ?"},null,{"$f":"IF(ROWS(B$12:B12)<=$I$13,INDEX(masterlist!$C$2:$C$207,SMALL(IF(masterlist!$B$2:$B$207=\"LAB\",IF(masterlist!$E$2:$E$207=1,ROW(masterlist!$B$2:$B$207)-ROW(masterlist!$B$2)+1)),ROWS(B$12:B12))),\"\")","v":"LAB-Cap-1-3"},{"$f":"IFERROR(VLOOKUP(J12&\"-0\",'linked mastersheet'!$A$2:$K$199,7,FALSE),\"\")","v":""},{"$f":"IFERROR(VLOOKUP(J12&\"-1\",'linked mastersheet'!$A$2:$K$199,7,FALSE),\"\")","v":"Le diagnostic de rage au moyen d’un test recommandé par l’OMSA est-il réalisé dans au moins un laboratoire national (laboratoire de santé vétérinaire OU humaine) ? "},null,{"$f":"IF(ROWS(B$12:B12)<=$M$13,INDEX(masterlist!$C$2:$C$207,SMALL(IF(masterlist!$B$2:$B$207=\"DPM\",IF(masterlist!$E$2:$E$207=1,ROW(masterlist!$B$2:$B$207)-ROW(masterlist!$B$2)+1)),ROWS(B$12:B12))),\"\")","v":"DPM--1-2"},{"$f":"IFERROR(VLOOKUP(N12&\"-0\",'linked mastersheet'!$A$2:$K$199,7,FALSE),\"\")","v":"Si le gouvernement abat des chiens sans discernement pour gérer la population canine ou lutter contre la rage, travaillez-vous activement à mettre fin à cette pratique ?"},{"$f":"IFERROR(VLOOKUP(N12&\"-1\",'linked mastersheet'!$A$2:$K$199,7,FALSE),\"\")","v":""},null,{"$f":"IF(ROWS(B$12:B12)<=$Q$13,INDEX(masterlist!$C$2:$C$207,SMALL(IF(masterlist!$B$2:$B$207=\"IEC\",IF(masterlist!$E$2:$E$207=1,ROW(masterlist!$B$2:$B$207)-ROW(masterlist!$B$2)+1)),ROWS(B$12:B12))),\"\")","v":"IEC-Sen-1-1"},{"$f":"IFERROR(VLOOKUP(R12&\"-0\",'linked mastersheet'!$A$2:$K$199,7,FALSE),\"\")","v":""},{"$f":"IFERROR(VLOOKUP(R12&\"-1\",'linked mastersheet'!$A$2:$K$199,7,FALSE),\"\")","v":"Avez-vous établi une liste de TOUS les publics-cible qu’il faudrait sensibiliser au bien-être des chiens, à la rage et à sa prévention ? "},null,{"$f":"IF(ROWS(B$12:B12)<=$U$13,INDEX(masterlist!$C$2:$C$207,SMALL(IF(masterlist!$B$2:$B$207=\"CCI\",IF(masterlist!$E$2:$E$207=1,ROW(masterlist!$B$2:$B$207)-ROW(masterlist!$B$2)+1)),ROWS(B$12:B12))),\"\")","v":"CCI-Cré-1-2"},{"$f":"IFERROR(VLOOKUP(V12&\"-0\",'linked mastersheet'!$A$2:$K$199,7,FALSE),\"\")","v":"TOUTES les parties prenantes* nationales impliquées dans l’élimination de la rage ont-elles été identifiées et répertoriées ? "},{"$f":"IFERROR(VLOOKUP(V12&\"-1\",'linked mastersheet'!$A$2:$K$199,7,FALSE),\"\")","v":""},null,{"$f":"IF(ROWS(B$12:B12)<=$Y$13,INDEX(masterlist!$C$2:$C$207,SMALL(IF(masterlist!$B$2:$B$207=\"LEG\",IF(masterlist!$E$2:$E$207=1,ROW(masterlist!$B$2:$B$207)-ROW(masterlist!$B$2)+1)),ROWS(B$12:B12))),\"\")","v":"LEG-Déf-1-2"},{"$f":"IFERROR(VLOOKUP(Z12&\"-0\",'linked mastersheet'!$A$2:$K$199,7,FALSE),\"\")","v":""},{"$f":"IFERROR(VLOOKUP(Z12&\"-1\",'linked mastersheet'!$A$2:$K$199,7,FALSE),\"\")","v":"La définition d’un cas de rage animale a-t-elle été partagée avec tous les professionnels concernés ? "}]
[{"$f":"SUMPRODUCT((masterlist!B:B=\"DCA\")*(masterlist!E:E=1))","v":10},{"$f":"IF(ROWS(B$12:B13)<=$A$13,INDEX(masterlist!$C$2:$C$207,SMALL(IF(masterlist!$B$2:$B$207=\"DCA\",IF(masterlist!$E$2:$E$207=1,ROW(masterlist!$B$2:$B$207)-ROW(masterlist!$B$2)+1)),ROWS(B$12:B13))),\"\")","v":"DCA-Sur-1-4"},{"$f":"IFERROR(VLOOKUP(B13&\"-0\",'linked mastersheet'!$A$2:$K$199,7,FALSE),\"\")","v":""},{"$f":"IFERROR(VLOOKUP(B13&\"-1\",'linked mastersheet'!$A$2:$K$199,7,FALSE),\"\")","v":"Les cas de rage humaine sont-ils transmis du niveau local au niveau national ?"},{"$f":"SUMPRODUCT((masterlist!B:B=\"PCO\")*(masterlist!E:E=1))","v":6},{"$f":"IF(ROWS(B$12:B13)<=$E$13,INDEX(masterlist!$C$2:$C$207,SMALL(IF(masterlist!$B$2:$B$207=\"PCO\",IF(masterlist!$E$2:$E$207=1,ROW(masterlist!$B$2:$B$207)-ROW(masterlist!$B$2)+1)),ROWS(B$12:B13))),\"\")","v":"PCO-Vac-1-2"},{"$f":"IFERROR(VLOOKUP(F13&\"-0\",'linked mastersheet'!$A$2:$K$199,7,FALSE),\"\")","v":""},{"$f":"IFERROR(VLOOKUP(F13&\"-1\",'linked mastersheet'!$A$2:$K$199,7,FALSE),\"\")","v":"Est-il possible d'offrir la Prophylaxie préexposition  aux professionnels à risque dans au moins un site de projet pilote ?"},{"$f":"SUMPRODUCT((masterlist!B:B=\"LAB\")*(masterlist!E:E=1))","v":2},{"$f":"IF(ROWS(B$12:B13)<=$I$13,INDEX(masterlist!$C$2:$C$207,SMALL(IF(masterlist!$B$2:$B$207=\"LAB\",IF(masterlist!$E$2:$E$207=1,ROW(masterlist!$B$2:$B$207)-ROW(masterlist!$B$2)+1)),ROWS(B$12:B13))),\"\")","v":"LAB-Cap-1-4"},{"$f":"IFERROR(VLOOKUP(J13&\"-0\",'linked mastersheet'!$A$2:$K$199,7,FALSE),\"\")","v":""},{"$f":"IFERROR(VLOOKUP(J13&\"-1\",'linked mastersheet'!$A$2:$K$199,7,FALSE),\"\")","v":"Des prélèvements suspects de rage – provenant d’animaux OU d’êtres humains– sont-ils analysés dans le pays plusieurs fois par an ?  "},{"$f":"SUMPRODUCT((masterlist!B:B=\"DPM\")*(masterlist!E:E=1))","v":4},{"$f":"IF(ROWS(B$12:B13)<=$M$13,INDEX(masterlist!$C$2:$C$207,SMALL(IF(masterlist!$B$2:$B$207=\"DPM\",IF(masterlist!$E$2:$E$207=1,ROW(masterlist!$B$2:$B$207)-ROW(masterlist!$B$2)+1)),ROWS(B$12:B13))),\"\")","v":"DPM- -1-3"},{"$f":"IFERROR(VLOOKUP(N13&\"-0\",'linked mastersheet'!$A$2:$K$199,7,FALSE),\"\")","v":""},{"$f":"IFERROR(VLOOKUP(N13&\"-1\",'linked mastersheet'!$A$2:$K$199,7,FALSE),\"\")","v":"Y a-t-il eu des discussions avec les parties prenantes* pour créer une stratégie de gestion compassionnelle de la population canine dans une zone (par exemple dans le cadre d’un projet pilote) ?"},{"$f":"SUMPRODUCT((masterlist!B:B=\"IEC\")*(masterlist!E:E=1))","v":10},{"$f":"IF(ROWS(B$12:B13)<=$Q$13,INDEX(masterlist!$C$2:$C$207,SMALL(IF(masterlist!$B$2:$B$207=\"IEC\",IF(masterlist!$E$2:$E$207=1,ROW(masterlist!$B$2:$B$207)-ROW(masterlist!$B$2)+1)),ROWS(B$12:B13))),\"\")","v":"IEC-Sen-1-2"},{"$f":"IFERROR(VLOOKUP(R13&\"-0\",'linked mastersheet'!$A$2:$K$199,7,FALSE),\"\")","v":""},{"$f":"IFERROR(VLOOKUP(R13&\"-1\",'linked mastersheet'!$A$2:$K$199,7,FALSE),\"\")","v":"Avez-vous activement précisé les messages qui doivent être communiqués à chacun des publics- cible identifiés ?"},{"$f":"SUMPRODUCT((masterlist!B:B=\"CCI\")*(masterlist!E:E=1))","v":5},{"$f":"IF(ROWS(B$12:B13)<=$U$13,INDEX(masterlist!$C$2:$C$207,SMALL(IF(masterlist!$B$2:$B$207=\"CCI\",IF(masterlist!$E$2:$E$207=1,ROW(masterlist!$B$2:$B$207)-ROW(masterlist!$B$2)+1)),ROWS(B$12:B13))),\"\")","v":"CCI-Cré-1-3"},{"$f":"IFERROR(VLOOKUP(V13&\"-0\",'linked mastersheet'!$A$2:$K$199,7,FALSE),\"\")","v":"Les parties prenantes* identifiées à l’échelle nationale sont-elles activement impliquées dans l’élimination de la rage ? "},{"$f":"IFERROR(VLOOKUP(V13&\"-1\",'linked mastersheet'!$A$2:$K$199,7,FALSE),\"\")","v":""},{"$f":"SUMPRODUCT((masterlist!B:B=\"LEG\")*(masterlist!E:E=1))","v":7},{"$f":"IF(ROWS(B$12:B13)<=$Y$13,INDEX(masterlist!$C$2:$C$207,SMALL(IF(masterlist!$B$2:$B$207=\"LEG\",IF(masterlist!$E$2:$E$207=1,ROW(masterlist!$B$2:$B$207)-ROW(masterlist!$B$2)+1)),ROWS(B$12:B13))),\"\")","v":"LEG-Déf-1-4"},{"$f":"IFERROR(VLOOKUP(Z13&\"-0\",'linked mastersheet'!$A$2:$K$199,7,FALSE),\"\")","v":""},{"$f":"IFERROR(VLOOKUP(Z13&\"-1\",'linked mastersheet'!$A$2:$K$199,7,FALSE),\"\")","v":"La définition d’un cas de rage humaine a-t-elle été partagée avec tous les professionnels concernés ?"}]
[null,{"$f":"IF(ROWS(B$12:B14)<=$A$13,INDEX(masterlist!$C$2:$C$207,SMALL(IF(masterlist!$B$2:$B$207=\"DCA\",IF(masterlist!$E$2:$E$207=1,ROW(masterlist!$B$2:$B$207)-ROW(masterlist!$B$2)+1)),ROWS(B$12:B14))),\"\")","v":"DCA-Sur-1-5"},{"$f":"IFERROR(VLOOKUP(B14&\"-0\",'linked mastersheet'!$A$2:$K$199,7,FALSE),\"\")","v":""},{"$f":"IFERROR(VLOOKUP(B14&\"-1\",'linked mastersheet'!$A$2:$K$199,7,FALSE),\"\")","v":"Existe-t-il une capacité d'analyse des données relatives à la rage canine au niveau national ? "},null,{"$f":"IF(ROWS(B$12:B14)<=$E$13,INDEX(masterlist!$C$2:$C$207,SMALL(IF(masterlist!$B$2:$B$207=\"PCO\",IF(masterlist!$E$2:$E$207=1,ROW(masterlist!$B$2:$B$207)-ROW(masterlist!$B$2)+1)),ROWS(B$12:B14))),\"\")","v":"PCO-Vac-1-9"},{"$f":"IFERROR(VLOOKUP(F14&\"-0\",'linked mastersheet'!$A$2:$K$199,7,FALSE),\"\")","v":""},{"$f":"IFERROR(VLOOKUP(F14&\"-1\",'linked mastersheet'!$A$2:$K$199,7,FALSE),\"\")","v":"Les vaccins contre la rage canine sont-ils disponibles dans l’ensemble du pays ?"},null,{"$f":"IF(ROWS(B$12:B14)<=$I$13,INDEX(masterlist!$C$2:$C$207,SMALL(IF(masterlist!$B$2:$B$207=\"LAB\",IF(masterlist!$E$2:$E$207=1,ROW(masterlist!$B$2:$B$207)-ROW(masterlist!$B$2)+1)),ROWS(B$12:B14))),\"\")","v":""},{"$f":"IFERROR(VLOOKUP(J14&\"-0\",'linked mastersheet'!$A$2:$K$199,7,FALSE),\"\")","v":""},{"$f":"IFERROR(VLOOKUP(J14&\"-1\",'linked mastersheet'!$A$2:$K$199,7,FALSE),\"\")","v":""},null,{"$f":"IF(ROWS(B$12:B14)<=$M$13,INDEX(masterlist!$C$2:$C$207,SMALL(IF(masterlist!$B$2:$B$207=\"DPM\",IF(masterlist!$E$2:$E$207=1,ROW(masterlist!$B$2:$B$207)-ROW(masterlist!$B$2)+1)),ROWS(B$12:B14))),\"\")","v":"DPM- -1-4"},{"$f":"IFERROR(VLOOKUP(N14&\"-0\",'linked mastersheet'!$A$2:$K$199,7,FALSE),\"\")","v":"Avez-vous impliqué des acteurs municipaux dans vos réunions avec les parties prenantes* ? "},{"$f":"IFERROR(VLOOKUP(N14&\"-1\",'linked mastersheet'!$A$2:$K$199,7,FALSE),\"\")","v":""},null,{"$f":"IF(ROWS(B$12:B14)<=$Q$13,INDEX(masterlist!$C$2:$C$207,SMALL(IF(masterlist!$B$2:$B$207=\"IEC\",IF(masterlist!$E$2:$E$207=1,ROW(masterlist!$B$2:$B$207)-ROW(masterlist!$B$2)+1)),ROWS(B$12:B14))),\"\")","v":"IEC-Sen-1-3"},{"$f":"IFERROR(VLOOKUP(R14&\"-0\",'linked mastersheet'!$A$2:$K$199,7,FALSE),\"\")","v":"Un plan structuré - décrivant les publics-cible, les messages clés, les moyens de diffusion et les résultats souhaités en matière d'éducation, de sensibilisation et de prise de conscience (plan IEC*) a-t-il été élaboré et testé pour la rage et le bien-être des chiens dans une zone de projet pilote ?"},{"$f":"IFERROR(VLOOKUP(R14&\"-1\",'linked mastersheet'!$A$2:$K$199,7,FALSE),\"\")","v":""},null,{"$f":"IF(ROWS(B$12:B14)<=$U$13,INDEX(masterlist!$C$2:$C$207,SMALL(IF(masterlist!$B$2:$B$207=\"CCI\",IF(masterlist!$E$2:$E$207=1,ROW(masterlist!$B$2:$B$207)-ROW(masterlist!$B$2)+1)),ROWS(B$12:B14))),\"\")","v":"CCI-Cré-1-4"},{"$f":"IFERROR(VLOOKUP(V14&\"-0\",'linked mastersheet'!$A$2:$K$199,7,FALSE),\"\")","v":""},{"$f":"IFERROR(VLOOKUP(V14&\"-1\",'linked mastersheet'!$A$2:$K$199,7,FALSE),\"\")","v":"Une équipe spéciale, un comité ou un groupe de travail intersectoriel sur la rage, comprenant toutes les parties prenantes identifiées au niveau national, a-t-il été créé ET se réunit-il ou communique-t-il régulièrement ?"},null,{"$f":"IF(ROWS(B$12:B14)<=$Y$13,INDEX(masterlist!$C$2:$C$207,SMALL(IF(masterlist!$B$2:$B$207=\"LEG\",IF(masterlist!$E$2:$E$207=1,ROW(masterlist!$B$2:$B$207)-ROW(masterlist!$B$2)+1)),ROWS(B$12:B14))),\"\")","v":"LEG-Cad-1-5"},{"$f":"IFERROR(VLOOKUP(Z14&\"-0\",'linked mastersheet'!$A$2:$K$199,7,FALSE),\"\")","v":""},{"$f":"IFERROR(VLOOKUP(Z14&\"-1\",'linked mastersheet'!$A$2:$K$199,7,FALSE),\"\")","v":"Existe-t-il une législation nationale relative à la prévention et à la lutte contre la rage ?"}]
[null,{"$f":"IF(ROWS(B$12:B15)<=$A$13,INDEX(masterlist!$C$2:$C$207,SMALL(IF(masterlist!$B$2:$B$207=\"DCA\",IF(masterlist!$E$2:$E$207=1,ROW(masterlist!$B$2:$B$207)-ROW(masterlist!$B$2)+1)),ROWS(B$12:B15))),\"\")","v":"DCA-Sur-1-6"},{"$f":"IFERROR(VLOOKUP(B15&\"-0\",'linked mastersheet'!$A$2:$K$199,7,FALSE),\"\")","v":""},{"$f":"IFERROR(VLOOKUP(B15&\"-1\",'linked mastersheet'!$A$2:$K$199,7,FALSE),\"\")","v":"Existe-t-il une capacité d'analyse des données relatives à la rage humaine au niveau national ? "},null,{"$f":"IF(ROWS(B$12:B15)<=$E$13,INDEX(masterlist!$C$2:$C$207,SMALL(IF(masterlist!$B$2:$B$207=\"PCO\",IF(masterlist!$E$2:$E$207=1,ROW(masterlist!$B$2:$B$207)-ROW(masterlist!$B$2)+1)),ROWS(B$12:B15))),\"\")","v":"PCO-Vac-1-10"},{"$f":"IFERROR(VLOOKUP(F15&\"-0\",'linked mastersheet'!$A$2:$K$199,7,FALSE),\"\")","v":""},{"$f":"IFERROR(VLOOKUP(F15&\"-1\",'linked mastersheet'!$A$2:$K$199,7,FALSE),\"\")","v":"La vaccination des chiens a-t-elle été débutée quelque part dans le pays ?"},null,{"$f":"IF(ROWS(B$12:B15)<=$I$13,INDEX(masterlist!$C$2:$C$207,SMALL(IF(masterlist!$B$2:$B$207=\"LAB\",IF(masterlist!$E$2:$E$207=1,ROW(masterlist!$B$2:$B$207)-ROW(masterlist!$B$2)+1)),ROWS(B$12:B15))),\"\")","v":""},{"$f":"IFERROR(VLOOKUP(J15&\"-0\",'linked mastersheet'!$A$2:$K$199,7,FALSE),\"\")","v":""},{"$f":"IFERROR(VLOOKUP(J15&\"-1\",'linked mastersheet'!$A$2:$K$199,7,FALSE),\"\")","v":""},null,{"$f":"IF(ROWS(B$12:B15)<=$M$13,INDEX(masterlist!$C$2:$C$207,SMALL(IF(masterlist!$B$2:$B$207=\"DPM\",IF(masterlist!$E$2:$E$207=1,ROW(masterlist!$B$2:$B$207)-ROW(masterlist!$B$2)+1)),ROWS(B$12:B15))),\"\")","v":"DPM- -1-5"},{"$f":"IFERROR(VLOOKUP(N15&\"-0\",'linked mastersheet'!$A$2:$K$199,7,FALSE),\"\")","v":"Un nombre de chiens de référence a-t-il été déterminé dans une zone (par exemple, dans le cadre d'un projet pilote) ?"},{"$f":"IFERROR(VLOOKUP(N15&\"-1\",'linked mastersheet'!$A$2:$K$199,7,FALSE),\"\")","v":""},null,{"$f":"IF(ROWS(B$12:B15)<=$Q$13,INDEX(masterlist!$C$2:$C$207,SMALL(IF(masterlist!$B$2:$B$207=\"IEC\",IF(masterlist!$E$2:$E$207=1,ROW(masterlist!$B$2:$B$207)-ROW(masterlist!$B$2)+1)),ROWS(B$12:B15))),\"\")","v":"IEC-Sen-1-4"},{"$f":"IFERROR(VLOOKUP(R15&\"-0\",'linked mastersheet'!$A$2:$K$199,7,FALSE),\"\")","v":""},{"$f":"IFERROR(VLOOKUP(R15&\"-1\",'linked mastersheet'!$A$2:$K$199,7,FALSE),\"\")","v":"Des messages de sensibilisation destinés  à un large public sur la responsabilité des propriétaires de chiens, la prévention de la rage ou des morsures, ont-ils commencé à être diffusés au niveau national ?"},null,{"$f":"IF(ROWS(B$12:B15)<=$U$13,INDEX(masterlist!$C$2:$C$207,SMALL(IF(masterlist!$B$2:$B$207=\"CCI\",IF(masterlist!$E$2:$E$207=1,ROW(masterlist!$B$2:$B$207)-ROW(masterlist!$B$2)+1)),ROWS(B$12:B15))),\"\")","v":"CCI-Pro-1-6"},{"$f":"IFERROR(VLOOKUP(V15&\"-0\",'linked mastersheet'!$A$2:$K$199,7,FALSE),\"\")","v":""},{"$f":"IFERROR(VLOOKUP(V15&\"-1\",'linked mastersheet'!$A$2:$K$199,7,FALSE),\"\")","v":"Un plan d’activité à court terme pour la rage a-t-il été élaboré pour une zone quelconque (par ex. dans le cadre d’un projet pilote OU à l’échelle nationale) par les autorités compétentes identifiées ? "},null,{"$f":"IF(ROWS(B$12:B15)<=$Y$13,INDEX(masterlist!$C$2:$C$207,SMALL(IF(masterlist!$B$2:$B$207=\"LEG\",IF(masterlist!$E$2:$E$207=1,ROW(masterlist!$B$2:$B$207)-ROW(masterlist!$B$2)+1)),ROWS(B$12:B15))),\"\")","v":"LEG-Cad-1-6"},{"$f":"IFERROR(VLOOKUP(Z15&\"-0\",'linked mastersheet'!$A$2:$K$199,7,FALSE),\"\")","v":""},{"$f":"IFERROR(VLOOKUP(Z15&\"-1\",'linked mastersheet'!$A$2:$K$199,7,FALSE),\"\")","v":"S'il existe une législation, a-t-elle été révisée et mise à jour (si nécessaire) ?"}]
[null,{"$f":"IF(ROWS(B$12:B16)<=$A$13,INDEX(masterlist!$C$2:$C$207,SMALL(IF(masterlist!$B$2:$B$207=\"DCA\",IF(masterlist!$E$2:$E$207=1,ROW(masterlist!$B$2:$B$207)-ROW(masterlist!$B$2)+1)),ROWS(B$12:B16))),\"\")","v":"DCA-Sur-1-7"},{"$f":"IFERROR(VLOOKUP(B16&\"-0\",'linked mastersheet'!$A$2:$K$199,7,FALSE),\"\")","v":""},{"$f":"IFERROR(VLOOKUP(B16&\"-1\",'linked mastersheet'!$A$2:$K$199,7,FALSE),\"\")","v":"Disposez-vous d’un système de surveillance* de la rage animale ? "},null,{"$f":"IF(ROWS(B$12:B16)<=$E$13,INDEX(masterlist!$C$2:$C$207,SMALL(IF(masterlist!$B$2:$B$207=\"PCO\",IF(masterlist!$E$2:$E$207=1,ROW(masterlist!$B$2:$B$207)-ROW(masterlist!$B$2)+1)),ROWS(B$12:B16))),\"\")","v":"PCO-Rép-1-18"},{"$f":"IFERROR(VLOOKUP(F16&\"-0\",'linked mastersheet'!$A$2:$K$199,7,FALSE),\"\")","v":"Avez-vous des protocoles pour la réalisation d’enquêtes conjointes des cas de rage ?"},{"$f":"IFERROR(VLOOKUP(F16&\"-1\",'linked mastersheet'!$A$2:$K$199,7,FALSE),\"\")","v":""},null,{"$f":"IF(ROWS(B$12:B16)<=$I$13,INDEX(masterlist!$C$2:$C$207,SMALL(IF(masterlist!$B$2:$B$207=\"LAB\",IF(masterlist!$E$2:$E$207=1,ROW(masterlist!$B$2:$B$207)-ROW(masterlist!$B$2)+1)),ROWS(B$12:B16))),\"\")","v":""},{"$f":"IFERROR(VLOOKUP(J16&\"-0\",'linked mastersheet'!$A$2:$K$199,7,FALSE),\"\")","v":""},{"$f":"IFERROR(VLOOKUP(J16&\"-1\",'linked mastersheet'!$A$2:$K$199,7,FALSE),\"\")","v":""},null,{"$f":"IF(ROWS(B$12:B16)<=$M$13,INDEX(masterlist!$C$2:$C$207,SMALL(IF(masterlist!$B$2:$B$207=\"DPM\",IF(masterlist!$E$2:$E$207=1,ROW(masterlist!$B$2:$B$207)-ROW(masterlist!$B$2)+1)),ROWS(B$12:B16))),\"\")","v":""},{"$f":"IFERROR(VLOOKUP(N16&\"-0\",'linked mastersheet'!$A$2:$K$199,7,FALSE),\"\")","v":""},{"$f":"IFERROR(VLOOKUP(N16&\"-1\",'linked mastersheet'!$A$2:$K$199,7,FALSE),\"\")","v":""},null,{"$f":"IF(ROWS(B$12:B16)<=$Q$13,INDEX(masterlist!$C$2:$C$207,SMALL(IF(masterlist!$B$2:$B$207=\"IEC\",IF(masterlist!$E$2:$E$207=1,ROW(masterlist!$B$2:$B$207)-ROW(masterlist!$B$2)+1)),ROWS(B$12:B16))),\"\")","v":"IEC-For-1-7"},{"$f":"IFERROR(VLOOKUP(R16&\"-0\",'linked mastersheet'!$A$2:$K$199,7,FALSE),\"\")","v":""},{"$f":"IFERROR(VLOOKUP(R16&\"-1\",'linked mastersheet'!$A$2:$K$199,7,FALSE),\"\")","v":"Avez-vous créé une liste de TOUS les professionnels de santé humaine et animale impliqués dans la lutte contre la rage et qu’il faut éduquer et former ? "},null,{"$f":"IF(ROWS(B$12:B16)<=$U$13,INDEX(masterlist!$C$2:$C$207,SMALL(IF(masterlist!$B$2:$B$207=\"CCI\",IF(masterlist!$E$2:$E$207=1,ROW(masterlist!$B$2:$B$207)-ROW(masterlist!$B$2)+1)),ROWS(B$12:B16))),\"\")","v":"CCI-Pro-1-7"},{"$f":"IFERROR(VLOOKUP(V16&\"-0\",'linked mastersheet'!$A$2:$K$199,7,FALSE),\"\")","v":""},{"$f":"IFERROR(VLOOKUP(V16&\"-1\",'linked mastersheet'!$A$2:$K$199,7,FALSE),\"\")","v":"Des mécanismes de mobilisation de fonds d'urgence, EN PLUS du budget global d'élimination de la rage, ont-ils été identifiés ?"},null,{"$f":"IF(ROWS(B$12:B16)<=$Y$13,INDEX(masterlist!$C$2:$C$207,SMALL(IF(masterlist!$B$2:$B$207=\"LEG\",IF(masterlist!$E$2:$E$207=1,ROW(masterlist!$B$2:$B$207)-ROW(masterlist!$B$2)+1)),ROWS(B$12:B16))),\"\")","v":"LEG-Cad-1-7"},{"$f":"IFERROR(VLOOKUP(Z16&\"-0\",'linked mastersheet'!$A$2:$K$199,7,FALSE),\"\")","v":""},{"$f":"IFERROR(VLOOKUP(Z16&\"-1\",'linked mastersheet'!$A$2:$K$199,7,FALSE),\"\")","v":"La rage est-elle devenue une maladie à déclaration obligatoire chez les animaux ? "}]
[null,{"$f":"IF(ROWS(B$12:B17)<=$A$13,INDEX(masterlist!$C$2:$C$207,SMALL(IF(masterlist!$B$2:$B$207=\"DCA\",IF(masterlist!$E$2:$E$207=1,ROW(masterlist!$B$2:$B$207)-ROW(masterlist!$B$2)+1)),ROWS(B$12:B17))),\"\")","v":"DCA-Sur-1-8"},{"$f":"IFERROR(VLOOKUP(B17&\"-0\",'linked mastersheet'!$A$2:$K$199,7,FALSE),\"\")","v":"Transmettez-vous chaque année toutes les données relatives à la rage animale à l’WOAH ?"},{"$f":"IFERROR(VLOOKUP(B17&\"-1\",'linked mastersheet'!$A$2:$K$199,7,FALSE),\"\")","v":""},null,{"$f":"IF(ROWS(B$12:B17)<=$E$13,INDEX(masterlist!$C$2:$C$207,SMALL(IF(masterlist!$B$2:$B$207=\"PCO\",IF(masterlist!$E$2:$E$207=1,ROW(masterlist!$B$2:$B$207)-ROW(masterlist!$B$2)+1)),ROWS(B$12:B17))),\"\")","v":"PCO-Rép-1-19"},{"$f":"IFERROR(VLOOKUP(F17&\"-0\",'linked mastersheet'!$A$2:$K$199,7,FALSE),\"\")","v":"Les protocoles d’enquête conjointe des cas de rage ont-ils été mis en œuvre quelque part dans le pays ? "},{"$f":"IFERROR(VLOOKUP(F17&\"-1\",'linked mastersheet'!$A$2:$K$199,7,FALSE),\"\")","v":""},null,{"$f":"IF(ROWS(B$12:B17)<=$I$13,INDEX(masterlist!$C$2:$C$207,SMALL(IF(masterlist!$B$2:$B$207=\"LAB\",IF(masterlist!$E$2:$E$207=1,ROW(masterlist!$B$2:$B$207)-ROW(masterlist!$B$2)+1)),ROWS(B$12:B17))),\"\")","v":""},{"$f":"IFERROR(VLOOKUP(J17&\"-0\",'linked mastersheet'!$A$2:$K$199,7,FALSE),\"\")","v":""},{"$f":"IFERROR(VLOOKUP(J17&\"-1\",'linked mastersheet'!$A$2:$K$199,7,FALSE),\"\")","v":""},null,{"$f":"IF(ROWS(B$12:B17)<=$M$13,INDEX(masterlist!$C$2:$C$207,SMALL(IF(masterlist!$B$2:$B$207=\"DPM\",IF(masterlist!$E$2:$E$207=1,ROW(masterlist!$B$2:$B$207)-ROW(masterlist!$B$2)+1)),ROWS(B$12:B17))),\"\")","v":""},{"$f":"IFERROR(VLOOKUP(N17&\"-0\",'linked mastersheet'!$A$2:$K$199,7,FALSE),\"\")","v":""},{"$f":"IFERROR(VLOOKUP(N17&\"-1\",'linked mastersheet'!$A$2:$K$199,7,FALSE),\"\")","v":""},null,{"$f":"IF(ROWS(B$12:B17)<=$Q$13,INDEX(masterlist!$C$2:$C$207,SMALL(IF(masterlist!$B$2:$B$207=\"IEC\",IF(masterlist!$E$2:$E$207=1,ROW(masterlist!$B$2:$B$207)-ROW(masterlist!$B$2)+1)),ROWS(B$12:B17))),\"\")","v":"IEC-For-1-8"},{"$f":"IFERROR(VLOOKUP(R17&\"-0\",'linked mastersheet'!$A$2:$K$199,7,FALSE),\"\")","v":"Avez-vous activement précisé les besoins en formation et en éducation des professionnels de santé humaine et animale identifiés ?"},{"$f":"IFERROR(VLOOKUP(R17&\"-1\",'linked mastersheet'!$A$2:$K$199,7,FALSE),\"\")","v":""},null,{"$f":"IF(ROWS(B$12:B17)<=$U$13,INDEX(masterlist!$C$2:$C$207,SMALL(IF(masterlist!$B$2:$B$207=\"CCI\",IF(masterlist!$E$2:$E$207=1,ROW(masterlist!$B$2:$B$207)-ROW(masterlist!$B$2)+1)),ROWS(B$12:B17))),\"\")","v":""},{"$f":"IFERROR(VLOOKUP(V17&\"-0\",'linked mastersheet'!$A$2:$K$199,7,FALSE),\"\")","v":""},{"$f":"IFERROR(VLOOKUP(V17&\"-1\",'linked mastersheet'!$A$2:$K$199,7,FALSE),\"\")","v":""},null,{"$f":"IF(ROWS(B$12:B17)<=$Y$13,INDEX(masterlist!$C$2:$C$207,SMALL(IF(masterlist!$B$2:$B$207=\"LEG\",IF(masterlist!$E$2:$E$207=1,ROW(masterlist!$B$2:$B$207)-ROW(masterlist!$B$2)+1)),ROWS(B$12:B17))),\"\")","v":"LEG-Cad-1-8"},{"$f":"IFERROR(VLOOKUP(Z17&\"-0\",'linked mastersheet'!$A$2:$K$199,7,FALSE),\"\")","v":""},{"$f":"IFERROR(VLOOKUP(Z17&\"-1\",'linked mastersheet'!$A$2:$K$199,7,FALSE),\"\")","v":"La rage est-elle devenue une maladie à déclaration obligatoire chez les l’humain ?"}]
[null,{"$f":"IF(ROWS(B$12:B18)<=$A$13,INDEX(masterlist!$C$2:$C$207,SMALL(IF(masterlist!$B$2:$B$207=\"DCA\",IF(masterlist!$E$2:$E$207=1,ROW(masterlist!$B$2:$B$207)-ROW(masterlist!$B$2)+1)),ROWS(B$12:B18))),\"\")","v":"DCA-Sur-1-9"},{"$f":"IFERROR(VLOOKUP(B18&\"-0\",'linked mastersheet'!$A$2:$K$199,7,FALSE),\"\")","v":""},{"$f":"IFERROR(VLOOKUP(B18&\"-1\",'linked mastersheet'!$A$2:$K$199,7,FALSE),\"\")","v":"Disposez-vous d’un système de surveillance* de la rage humaine ? "},null,{"$f":"IF(ROWS(B$12:B18)<=$E$13,INDEX(masterlist!$C$2:$C$207,SMALL(IF(masterlist!$B$2:$B$207=\"PCO\",IF(masterlist!$E$2:$E$207=1,ROW(masterlist!$B$2:$B$207)-ROW(masterlist!$B$2)+1)),ROWS(B$12:B18))),\"\")","v":""},{"$f":"IFERROR(VLOOKUP(F18&\"-0\",'linked mastersheet'!$A$2:$K$199,7,FALSE),\"\")","v":""},{"$f":"IFERROR(VLOOKUP(F18&\"-1\",'linked mastersheet'!$A$2:$K$199,7,FALSE),\"\")","v":""},null,{"$f":"IF(ROWS(B$12:B18)<=$I$13,INDEX(masterlist!$C$2:$C$207,SMALL(IF(masterlist!$B$2:$B$207=\"LAB\",IF(masterlist!$E$2:$E$207=1,ROW(masterlist!$B$2:$B$207)-ROW(masterlist!$B$2)+1)),ROWS(B$12:B18))),\"\")","v":""},{"$f":"IFERROR(VLOOKUP(J18&\"-0\",'linked mastersheet'!$A$2:$K$199,7,FALSE),\"\")","v":""},{"$f":"IFERROR(VLOOKUP(J18&\"-1\",'linked mastersheet'!$A$2:$K$199,7,FALSE),\"\")","v":""},null,{"$f":"IF(ROWS(B$12:B18)<=$M$13,INDEX(masterlist!$C$2:$C$207,SMALL(IF(masterlist!$B$2:$B$207=\"DPM\",IF(masterlist!$E$2:$E$207=1,ROW(masterlist!$B$2:$B$207)-ROW(masterlist!$B$2)+1)),ROWS(B$12:B18))),\"\")","v":""},{"$f":"IFERROR(VLOOKUP(N18&\"-0\",'linked mastersheet'!$A$2:$K$199,7,FALSE),\"\")","v":""},{"$f":"IFERROR(VLOOKUP(N18&\"-1\",'linked mastersheet'!$A$2:$K$199,7,FALSE),\"\")","v":""},null,{"$f":"IF(ROWS(B$12:B18)<=$Q$13,INDEX(masterlist!$C$2:$C$207,SMALL(IF(masterlist!$B$2:$B$207=\"IEC\",IF(masterlist!$E$2:$E$207=1,ROW(masterlist!$B$2:$B$207)-ROW(masterlist!$B$2)+1)),ROWS(B$12:B18))),\"\")","v":"IEC-For-1-9"},{"$f":"IFERROR(VLOOKUP(R18&\"-0\",'linked mastersheet'!$A$2:$K$199,7,FALSE),\"\")","v":"Un plan structuré de formation et d’éducation précisant les publics-cible, les besoins essentiels, les moyens de formation et d’éducation, et les résultats souhaités pour les professionnels de santé humaine et animale a-t-il été élaboré ?"},{"$f":"IFERROR(VLOOKUP(R18&\"-1\",'linked mastersheet'!$A$2:$K$199,7,FALSE),\"\")","v":""},null,{"$f":"IF(ROWS(B$12:B18)<=$U$13,INDEX(masterlist!$C$2:$C$207,SMALL(IF(masterlist!$B$2:$B$207=\"CCI\",IF(masterlist!$E$2:$E$207=1,ROW(masterlist!$B$2:$B$207)-ROW(masterlist!$B$2)+1)),ROWS(B$12:B18))),\"\")","v":""},{"$f":"IFERROR(VLOOKUP(V18&\"-0\",'linked mastersheet'!$A$2:$K$199,7,FALSE),\"\")","v":""},{"$f":"IFERROR(VLOOKUP(V18&\"-1\",'linked mastersheet'!$A$2:$K$199,7,FALSE),\"\")","v":""},null,{"$f":"IF(ROWS(B$12:B18)<=$Y$13,INDEX(masterlist!$C$2:$C$207,SMALL(IF(masterlist!$B$2:$B$207=\"LEG\",IF(masterlist!$E$2:$E$207=1,ROW(masterlist!$B$2:$B$207)-ROW(masterlist!$B$2)+1)),ROWS(B$12:B18))),\"\")","v":"LEG-Cad-1-9"},{"$f":"IFERROR(VLOOKUP(Z18&\"-0\",'linked mastersheet'!$A$2:$K$199,7,FALSE),\"\")","v":""},{"$f":"IFERROR(VLOOKUP(Z18&\"-1\",'linked mastersheet'!$A$2:$K$199,7,FALSE),\"\")","v":"La législation prévoit-elle des mesures d'intervention en cas d'épidémie de rage ?"}]
[null,{"$f":"IF(ROWS(B$12:B19)<=$A$13,INDEX(masterlist!$C$2:$C$207,SMALL(IF(masterlist!$B$2:$B$207=\"DCA\",IF(masterlist!$E$2:$E$207=1,ROW(masterlist!$B$2:$B$207)-ROW(masterlist!$B$2)+1)),ROWS(B$12:B19))),\"\")","v":"DCA-Sur-1-10"},{"$f":"IFERROR(VLOOKUP(B19&\"-0\",'linked mastersheet'!$A$2:$K$199,7,FALSE),\"\")","v":"Transmettez-vous chaque année toutes les données relatives à la rage humaine à l’OMS ?"},{"$f":"IFERROR(VLOOKUP(B19&\"-1\",'linked mastersheet'!$A$2:$K$199,7,FALSE),\"\")","v":""},null,{"$f":"IF(ROWS(B$12:B19)<=$E$13,INDEX(masterlist!$C$2:$C$207,SMALL(IF(masterlist!$B$2:$B$207=\"PCO\",IF(masterlist!$E$2:$E$207=1,ROW(masterlist!$B$2:$B$207)-ROW(masterlist!$B$2)+1)),ROWS(B$12:B19))),\"\")","v":""},{"$f":"IFERROR(VLOOKUP(F19&\"-0\",'linked mastersheet'!$A$2:$K$199,7,FALSE),\"\")","v":""},{"$f":"IFERROR(VLOOKUP(F19&\"-1\",'linked mastersheet'!$A$2:$K$199,7,FALSE),\"\")","v":""},null,{"$f":"IF(ROWS(B$12:B19)<=$I$13,INDEX(masterlist!$C$2:$C$207,SMALL(IF(masterlist!$B$2:$B$207=\"LAB\",IF(masterlist!$E$2:$E$207=1,ROW(masterlist!$B$2:$B$207)-ROW(masterlist!$B$2)+1)),ROWS(B$12:B19))),\"\")","v":""},{"$f":"IFERROR(VLOOKUP(J19&\"-0\",'linked mastersheet'!$A$2:$K$199,7,FALSE),\"\")","v":""},{"$f":"IFERROR(VLOOKUP(J19&\"-1\",'linked mastersheet'!$A$2:$K$199,7,FALSE),\"\")","v":""},null,{"$f":"IF(ROWS(B$12:B19)<=$M$13,INDEX(masterlist!$C$2:$C$207,SMALL(IF(masterlist!$B$2:$B$207=\"DPM\",IF(masterlist!$E$2:$E$207=1,ROW(masterlist!$B$2:$B$207)-ROW(masterlist!$B$2)+1)),ROWS(B$12:B19))),\"\")","v":""},{"$f":"IFERROR(VLOOKUP(N19&\"-0\",'linked mastersheet'!$A$2:$K$199,7,FALSE),\"\")","v":""},{"$f":"IFERROR(VLOOKUP(N19&\"-1\",'linked mastersheet'!$A$2:$K$199,7,FALSE),\"\")","v":""},null,{"$f":"IF(ROWS(B$12:B19)<=$Q$13,INDEX(masterlist!$C$2:$C$207,SMALL(IF(masterlist!$B$2:$B$207=\"IEC\",IF(masterlist!$E$2:$E$207=1,ROW(masterlist!$B$2:$B$207)-ROW(masterlist!$B$2)+1)),ROWS(B$12:B19))),\"\")","v":"IEC-For-1-10"},{"$f":"IFERROR(VLOOKUP(R19&\"-0\",'linked mastersheet'!$A$2:$K$199,7,FALSE),\"\")","v":""},{"$f":"IFERROR(VLOOKUP(R19&\"-1\",'linked mastersheet'!$A$2:$K$199,7,FALSE),\"\")","v":"La formation structurée des professionnels de santé humaine et animale a-t-elle été mise en œuvre dans une partie du pays (par exemple, dans une zone de projet pilote) ? "},null,{"$f":"IF(ROWS(B$12:B19)<=$U$13,INDEX(masterlist!$C$2:$C$207,SMALL(IF(masterlist!$B$2:$B$207=\"CCI\",IF(masterlist!$E$2:$E$207=1,ROW(masterlist!$B$2:$B$207)-ROW(masterlist!$B$2)+1)),ROWS(B$12:B19))),\"\")","v":""},{"$f":"IFERROR(VLOOKUP(V19&\"-0\",'linked mastersheet'!$A$2:$K$199,7,FALSE),\"\")","v":""},{"$f":"IFERROR(VLOOKUP(V19&\"-1\",'linked mastersheet'!$A$2:$K$199,7,FALSE),\"\")","v":""},null,{"$f":"IF(ROWS(B$12:B19)<=$Y$13,INDEX(masterlist!$C$2:$C$207,SMALL(IF(masterlist!$B$2:$B$207=\"LEG\",IF(masterlist!$E$2:$E$207=1,ROW(masterlist!$B$2:$B$207)-ROW(masterlist!$B$2)+1)),ROWS(B$12:B19))),\"\")","v":""},{"$f":"IFERROR(VLOOKUP(Z19&\"-0\",'linked mastersheet'!$A$2:$K$199,7,FALSE),\"\")","v":""},{"$f":"IFERROR(VLOOKUP(Z19&\"-1\",'linked mastersheet'!$A$2:$K$199,7,FALSE),\"\")","v":""}]
[null,{"$f":"IF(ROWS(B$12:B20)<=$A$13,INDEX(masterlist!$C$2:$C$207,SMALL(IF(masterlist!$B$2:$B$207=\"DCA\",IF(masterlist!$E$2:$E$207=1,ROW(masterlist!$B$2:$B$207)-ROW(masterlist!$B$2)+1)),ROWS(B$12:B20))),\"\")","v":"DCA-Sur-1-11"},{"$f":"IFERROR(VLOOKUP(B20&\"-0\",'linked mastersheet'!$A$2:$K$199,7,FALSE),\"\")","v":""},{"$f":"IFERROR(VLOOKUP(B20&\"-1\",'linked mastersheet'!$A$2:$K$199,7,FALSE),\"\")","v":"Les données sur les cas de morsure humaine sont-elles utilisées pour les prises de décision ?"},null,{"$f":"IF(ROWS(B$12:B20)<=$E$13,INDEX(masterlist!$C$2:$C$207,SMALL(IF(masterlist!$B$2:$B$207=\"PCO\",IF(masterlist!$E$2:$E$207=1,ROW(masterlist!$B$2:$B$207)-ROW(masterlist!$B$2)+1)),ROWS(B$12:B20))),\"\")","v":""},{"$f":"IFERROR(VLOOKUP(F20&\"-0\",'linked mastersheet'!$A$2:$K$199,7,FALSE),\"\")","v":""},{"$f":"IFERROR(VLOOKUP(F20&\"-1\",'linked mastersheet'!$A$2:$K$199,7,FALSE),\"\")","v":""},null,{"$f":"IF(ROWS(B$12:B20)<=$I$13,INDEX(masterlist!$C$2:$C$207,SMALL(IF(masterlist!$B$2:$B$207=\"LAB\",IF(masterlist!$E$2:$E$207=1,ROW(masterlist!$B$2:$B$207)-ROW(masterlist!$B$2)+1)),ROWS(B$12:B20))),\"\")","v":""},{"$f":"IFERROR(VLOOKUP(J20&\"-0\",'linked mastersheet'!$A$2:$K$199,7,FALSE),\"\")","v":""},{"$f":"IFERROR(VLOOKUP(J20&\"-1\",'linked mastersheet'!$A$2:$K$199,7,FALSE),\"\")","v":""},null,{"$f":"IF(ROWS(B$12:B20)<=$M$13,INDEX(masterlist!$C$2:$C$207,SMALL(IF(masterlist!$B$2:$B$207=\"DPM\",IF(masterlist!$E$2:$E$207=1,ROW(masterlist!$B$2:$B$207)-ROW(masterlist!$B$2)+1)),ROWS(B$12:B20))),\"\")","v":""},{"$f":"IFERROR(VLOOKUP(N20&\"-0\",'linked mastersheet'!$A$2:$K$199,7,FALSE),\"\")","v":""},{"$f":"IFERROR(VLOOKUP(N20&\"-1\",'linked mastersheet'!$A$2:$K$199,7,FALSE),\"\")","v":""},null,{"$f":"IF(ROWS(B$12:B20)<=$Q$13,INDEX(masterlist!$C$2:$C$207,SMALL(IF(masterlist!$B$2:$B$207=\"IEC\",IF(masterlist!$E$2:$E$207=1,ROW(masterlist!$B$2:$B$207)-ROW(masterlist!$B$2)+1)),ROWS(B$12:B20))),\"\")","v":"IEC-Pla-1-13"},{"$f":"IFERROR(VLOOKUP(R20&\"-0\",'linked mastersheet'!$A$2:$K$199,7,FALSE),\"\")","v":""},{"$f":"IFERROR(VLOOKUP(R20&\"-1\",'linked mastersheet'!$A$2:$K$199,7,FALSE),\"\")","v":"Avez-vous dressé une liste de TOUS les acteurs* du plaidoyer pour le contrôle et la prévention de la rage dans votre pays ?  "},null,{"$f":"IF(ROWS(B$12:B20)<=$U$13,INDEX(masterlist!$C$2:$C$207,SMALL(IF(masterlist!$B$2:$B$207=\"CCI\",IF(masterlist!$E$2:$E$207=1,ROW(masterlist!$B$2:$B$207)-ROW(masterlist!$B$2)+1)),ROWS(B$12:B20))),\"\")","v":""},{"$f":"IFERROR(VLOOKUP(V20&\"-0\",'linked mastersheet'!$A$2:$K$199,7,FALSE),\"\")","v":""},{"$f":"IFERROR(VLOOKUP(V20&\"-1\",'linked mastersheet'!$A$2:$K$199,7,FALSE),\"\")","v":""},null,{"$f":"IF(ROWS(B$12:B20)<=$Y$13,INDEX(masterlist!$C$2:$C$207,SMALL(IF(masterlist!$B$2:$B$207=\"LEG\",IF(masterlist!$E$2:$E$207=1,ROW(masterlist!$B$2:$B$207)-ROW(masterlist!$B$2)+1)),ROWS(B$12:B20))),\"\")","v":""},{"$f":"IFERROR(VLOOKUP(Z20&\"-0\",'linked mastersheet'!$A$2:$K$199,7,FALSE),\"\")","v":""},{"$f":"IFERROR(VLOOKUP(Z20&\"-1\",'linked mastersheet'!$A$2:$K$199,7,FALSE),\"\")","v":""}]
[null,{"$f":"IF(ROWS(B$12:B21)<=$A$13,INDEX(masterlist!$C$2:$C$207,SMALL(IF(masterlist!$B$2:$B$207=\"DCA\",IF(masterlist!$E$2:$E$207=1,ROW(masterlist!$B$2:$B$207)-ROW(masterlist!$B$2)+1)),ROWS(B$12:B21))),\"\")","v":"DCA-Sur-1-12"},{"$f":"IFERROR(VLOOKUP(B21&\"-0\",'linked mastersheet'!$A$2:$K$199,7,FALSE),\"\")","v":"Avez-vous jamais réalisé des études sur la taille et l’accessibilité des populations de chiens dans votre pays ?"},{"$f":"IFERROR(VLOOKUP(B21&\"-1\",'linked mastersheet'!$A$2:$K$199,7,FALSE),\"\")","v":""},null,{"$f":"IF(ROWS(B$12:B21)<=$E$13,INDEX(masterlist!$C$2:$C$207,SMALL(IF(masterlist!$B$2:$B$207=\"PCO\",IF(masterlist!$E$2:$E$207=1,ROW(masterlist!$B$2:$B$207)-ROW(masterlist!$B$2)+1)),ROWS(B$12:B21))),\"\")","v":""},{"$f":"IFERROR(VLOOKUP(F21&\"-0\",'linked mastersheet'!$A$2:$K$199,7,FALSE),\"\")","v":""},{"$f":"IFERROR(VLOOKUP(F21&\"-1\",'linked mastersheet'!$A$2:$K$199,7,FALSE),\"\")","v":""},null,{"$f":"IF(ROWS(B$12:B21)<=$I$13,INDEX(masterlist!$C$2:$C$207,SMALL(IF(masterlist!$B$2:$B$207=\"LAB\",IF(masterlist!$E$2:$E$207=1,ROW(masterlist!$B$2:$B$207)-ROW(masterlist!$B$2)+1)),ROWS(B$12:B21))),\"\")","v":""},{"$f":"IFERROR(VLOOKUP(J21&\"-0\",'linked mastersheet'!$A$2:$K$199,7,FALSE),\"\")","v":""},{"$f":"IFERROR(VLOOKUP(J21&\"-1\",'linked mastersheet'!$A$2:$K$199,7,FALSE),\"\")","v":""},null,{"$f":"IF(ROWS(B$12:B21)<=$M$13,INDEX(masterlist!$C$2:$C$207,SMALL(IF(masterlist!$B$2:$B$207=\"DPM\",IF(masterlist!$E$2:$E$207=1,ROW(masterlist!$B$2:$B$207)-ROW(masterlist!$B$2)+1)),ROWS(B$12:B21))),\"\")","v":""},{"$f":"IFERROR(VLOOKUP(N21&\"-0\",'linked mastersheet'!$A$2:$K$199,7,FALSE),\"\")","v":""},{"$f":"IFERROR(VLOOKUP(N21&\"-1\",'linked mastersheet'!$A$2:$K$199,7,FALSE),\"\")","v":""},null,{"$f":"IF(ROWS(B$12:B21)<=$Q$13,INDEX(masterlist!$C$2:$C$207,SMALL(IF(masterlist!$B$2:$B$207=\"IEC\",IF(masterlist!$E$2:$E$207=1,ROW(masterlist!$B$2:$B$207)-ROW(masterlist!$B$2)+1)),ROWS(B$12:B21))),\"\")","v":"IEC-Pla-1-14"},{"$f":"IFERROR(VLOOKUP(R21&\"-0\",'linked mastersheet'!$A$2:$K$199,7,FALSE),\"\")","v":""},{"$f":"IFERROR(VLOOKUP(R21&\"-1\",'linked mastersheet'!$A$2:$K$199,7,FALSE),\"\")","v":"Un plan structuré - décrivant les parties prenantes cibles, les messages clés, les moyens utilisés et les résultats souhaités (plan de sensibilisation*) - a-t-il été élaboré et mis en œuvre ?"},null,{"$f":"IF(ROWS(B$12:B21)<=$U$13,INDEX(masterlist!$C$2:$C$207,SMALL(IF(masterlist!$B$2:$B$207=\"CCI\",IF(masterlist!$E$2:$E$207=1,ROW(masterlist!$B$2:$B$207)-ROW(masterlist!$B$2)+1)),ROWS(B$12:B21))),\"\")","v":""},{"$f":"IFERROR(VLOOKUP(V21&\"-0\",'linked mastersheet'!$A$2:$K$199,7,FALSE),\"\")","v":""},{"$f":"IFERROR(VLOOKUP(V21&\"-1\",'linked mastersheet'!$A$2:$K$199,7,FALSE),\"\")","v":""},null,{"$f":"IF(ROWS(B$12:B21)<=$Y$13,INDEX(masterlist!$C$2:$C$207,SMALL(IF(masterlist!$B$2:$B$207=\"LEG\",IF(masterlist!$E$2:$E$207=1,ROW(masterlist!$B$2:$B$207)-ROW(masterlist!$B$2)+1)),ROWS(B$12:B21))),\"\")","v":""},{"$f":"IFERROR(VLOOKUP(Z21&\"-0\",'linked mastersheet'!$A$2:$K$199,7,FALSE),\"\")","v":""},{"$f":"IFERROR(VLOOKUP(Z21&\"-1\",'linked mastersheet'!$A$2:$K$199,7,FALSE),\"\")","v":""}]
[null,{"$f":"IF(ROWS(B$12:B22)<=$A$13,INDEX(masterlist!$C$2:$C$207,SMALL(IF(masterlist!$B$2:$B$207=\"DCA\",IF(masterlist!$E$2:$E$207=1,ROW(masterlist!$B$2:$B$207)-ROW(masterlist!$B$2)+1)),ROWS(B$12:B22))),\"\")","v":""},{"$f":"IFERROR(VLOOKUP(B22&\"-0\",'linked mastersheet'!$A$2:$K$199,7,FALSE),\"\")","v":""},{"$f":"IFERROR(VLOOKUP(B22&\"-1\",'linked mastersheet'!$A$2:$K$199,7,FALSE),\"\")","v":""},null,{"$f":"IF(ROWS(B$12:B22)<=$E$13,INDEX(masterlist!$C$2:$C$207,SMALL(IF(masterlist!$B$2:$B$207=\"PCO\",IF(masterlist!$E$2:$E$207=1,ROW(masterlist!$B$2:$B$207)-ROW(masterlist!$B$2)+1)),ROWS(B$12:B22))),\"\")","v":""},{"$f":"IFERROR(VLOOKUP(F22&\"-0\",'linked mastersheet'!$A$2:$K$199,7,FALSE),\"\")","v":""},{"$f":"IFERROR(VLOOKUP(F22&\"-1\",'linked mastersheet'!$A$2:$K$199,7,FALSE),\"\")","v":""},null,{"$f":"IF(ROWS(B$12:B22)<=$I$13,INDEX(masterlist!$C$2:$C$207,SMALL(IF(masterlist!$B$2:$B$207=\"LAB\",IF(masterlist!$E$2:$E$207=1,ROW(masterlist!$B$2:$B$207)-ROW(masterlist!$B$2)+1)),ROWS(B$12:B22))),\"\")","v":""},{"$f":"IFERROR(VLOOKUP(J22&\"-0\",'linked mastersheet'!$A$2:$K$199,7,FALSE),\"\")","v":""},{"$f":"IFERROR(VLOOKUP(J22&\"-1\",'linked mastersheet'!$A$2:$K$199,7,FALSE),\"\")","v":""},null,{"$f":"IF(ROWS(B$12:B22)<=$M$13,INDEX(masterlist!$C$2:$C$207,SMALL(IF(masterlist!$B$2:$B$207=\"DPM\",IF(masterlist!$E$2:$E$207=1,ROW(masterlist!$B$2:$B$207)-ROW(masterlist!$B$2)+1)),ROWS(B$12:B22))),\"\")","v":""},{"$f":"IFERROR(VLOOKUP(N22&\"-0\",'linked mastersheet'!$A$2:$K$199,7,FALSE),\"\")","v":""},{"$f":"IFERROR(VLOOKUP(N22&\"-1\",'linked mastersheet'!$A$2:$K$199,7,FALSE),\"\")","v":""},null,{"$f":"IF(ROWS(B$12:B22)<=$Q$13,INDEX(masterlist!$C$2:$C$207,SMALL(IF(masterlist!$B$2:$B$207=\"IEC\",IF(masterlist!$E$2:$E$207=1,ROW(masterlist!$B$2:$B$207)-ROW(masterlist!$B$2)+1)),ROWS(B$12:B22))),\"\")","v":""},{"$f":"IFERROR(VLOOKUP(R22&\"-0\",'linked mastersheet'!$A$2:$K$199,7,FALSE),\"\")","v":""},{"$f":"IFERROR(VLOOKUP(R22&\"-1\",'linked mastersheet'!$A$2:$K$199,7,FALSE),\"\")","v":""},null,{"$f":"IF(ROWS(B$12:B22)<=$U$13,INDEX(masterlist!$C$2:$C$207,SMALL(IF(masterlist!$B$2:$B$207=\"CCI\",IF(masterlist!$E$2:$E$207=1,ROW(masterlist!$B$2:$B$207)-ROW(masterlist!$B$2)+1)),ROWS(B$12:B22))),\"\")","v":""},{"$f":"IFERROR(VLOOKUP(V22&\"-0\",'linked mastersheet'!$A$2:$K$199,7,FALSE),\"\")","v":""},{"$f":"IFERROR(VLOOKUP(V22&\"-1\",'linked mastersheet'!$A$2:$K$199,7,FALSE),\"\")","v":""},null,{"$f":"IF(ROWS(B$12:B22)<=$Y$13,INDEX(masterlist!$C$2:$C$207,SMALL(IF(masterlist!$B$2:$B$207=\"LEG\",IF(masterlist!$E$2:$E$207=1,ROW(masterlist!$B$2:$B$207)-ROW(masterlist!$B$2)+1)),ROWS(B$12:B22))),\"\")","v":""},{"$f":"IFERROR(VLOOKUP(Z22&\"-0\",'linked mastersheet'!$A$2:$K$199,7,FALSE),\"\")","v":""},{"$f":"IFERROR(VLOOKUP(Z22&\"-1\",'linked mastersheet'!$A$2:$K$199,7,FALSE),\"\")","v":""}]
[null,{"$f":"IF(ROWS(B$12:B23)<=$A$13,INDEX(masterlist!$C$2:$C$207,SMALL(IF(masterlist!$B$2:$B$207=\"DCA\",IF(masterlist!$E$2:$E$207=1,ROW(masterlist!$B$2:$B$207)-ROW(masterlist!$B$2)+1)),ROWS(B$12:B23))),\"\")","v":""},{"$f":"IFERROR(VLOOKUP(B23&\"-0\",'linked mastersheet'!$A$2:$K$199,7,FALSE),\"\")","v":""},{"$f":"IFERROR(VLOOKUP(B23&\"-1\",'linked mastersheet'!$A$2:$K$199,7,FALSE),\"\")","v":""},null,{"$f":"IF(ROWS(B$12:B23)<=$E$13,INDEX(masterlist!$C$2:$C$207,SMALL(IF(masterlist!$B$2:$B$207=\"PCO\",IF(masterlist!$E$2:$E$207=1,ROW(masterlist!$B$2:$B$207)-ROW(masterlist!$B$2)+1)),ROWS(B$12:B23))),\"\")","v":""},{"$f":"IFERROR(VLOOKUP(F23&\"-0\",'linked mastersheet'!$A$2:$K$199,7,FALSE),\"\")","v":""},{"$f":"IFERROR(VLOOKUP(F23&\"-1\",'linked mastersheet'!$A$2:$K$199,7,FALSE),\"\")","v":""},null,{"$f":"IF(ROWS(B$12:B23)<=$I$13,INDEX(masterlist!$C$2:$C$207,SMALL(IF(masterlist!$B$2:$B$207=\"LAB\",IF(masterlist!$E$2:$E$207=1,ROW(masterlist!$B$2:$B$207)-ROW(masterlist!$B$2)+1)),ROWS(B$12:B23))),\"\")","v":""},{"$f":"IFERROR(VLOOKUP(J23&\"-0\",'linked mastersheet'!$A$2:$K$199,7,FALSE),\"\")","v":""},{"$f":"IFERROR(VLOOKUP(J23&\"-1\",'linked mastersheet'!$A$2:$K$199,7,FALSE),\"\")","v":""},null,{"$f":"IF(ROWS(B$12:B23)<=$M$13,INDEX(masterlist!$C$2:$C$207,SMALL(IF(masterlist!$B$2:$B$207=\"DPM\",IF(masterlist!$E$2:$E$207=1,ROW(masterlist!$B$2:$B$207)-ROW(masterlist!$B$2)+1)),ROWS(B$12:B23))),\"\")","v":""},{"$f":"IFERROR(VLOOKUP(N23&\"-0\",'linked mastersheet'!$A$2:$K$199,7,FALSE),\"\")","v":""},{"$f":"IFERROR(VLOOKUP(N23&\"-1\",'linked mastersheet'!$A$2:$K$199,7,FALSE),\"\")","v":""},null,{"$f":"IF(ROWS(B$12:B23)<=$Q$13,INDEX(masterlist!$C$2:$C$207,SMALL(IF(masterlist!$B$2:$B$207=\"IEC\",IF(masterlist!$E$2:$E$207=1,ROW(masterlist!$B$2:$B$207)-ROW(masterlist!$B$2)+1)),ROWS(B$12:B23))),\"\")","v":""},{"$f":"IFERROR(VLOOKUP(R23&\"-0\",'linked mastersheet'!$A$2:$K$199,7,FALSE),\"\")","v":""},{"$f":"IFERROR(VLOOKUP(R23&\"-1\",'linked mastersheet'!$A$2:$K$199,7,FALSE),\"\")","v":""},null,{"$f":"IF(ROWS(B$12:B23)<=$U$13,INDEX(masterlist!$C$2:$C$207,SMALL(IF(masterlist!$B$2:$B$207=\"CCI\",IF(masterlist!$E$2:$E$207=1,ROW(masterlist!$B$2:$B$207)-ROW(masterlist!$B$2)+1)),ROWS(B$12:B23))),\"\")","v":""},{"$f":"IFERROR(VLOOKUP(V23&\"-0\",'linked mastersheet'!$A$2:$K$199,7,FALSE),\"\")","v":""},{"$f":"IFERROR(VLOOKUP(V23&\"-1\",'linked mastersheet'!$A$2:$K$199,7,FALSE),\"\")","v":""},null,{"$f":"IF(ROWS(B$12:B23)<=$Y$13,INDEX(masterlist!$C$2:$C$207,SMALL(IF(masterlist!$B$2:$B$207=\"LEG\",IF(masterlist!$E$2:$E$207=1,ROW(masterlist!$B$2:$B$207)-ROW(masterlist!$B$2)+1)),ROWS(B$12:B23))),\"\")","v":""},{"$f":"IFERROR(VLOOKUP(Z23&\"-0\",'linked mastersheet'!$A$2:$K$199,7,FALSE),\"\")","v":""},{"$f":"IFERROR(VLOOKUP(Z23&\"-1\",'linked mastersheet'!$A$2:$K$199,7,FALSE),\"\")","v":""}]
[null,{"$f":"IF(ROWS(B$12:B24)<=$A$13,INDEX(masterlist!$C$2:$C$207,SMALL(IF(masterlist!$B$2:$B$207=\"DCA\",IF(masterlist!$E$2:$E$207=1,ROW(masterlist!$B$2:$B$207)-ROW(masterlist!$B$2)+1)),ROWS(B$12:B24))),\"\")","v":""},{"$f":"IFERROR(VLOOKUP(B24&\"-0\",'linked mastersheet'!$A$2:$K$199,7,FALSE),\"\")","v":""},{"$f":"IFERROR(VLOOKUP(B24&\"-1\",'linked mastersheet'!$A$2:$K$199,7,FALSE),\"\")","v":""},null,{"$f":"IF(ROWS(B$12:B24)<=$E$13,INDEX(masterlist!$C$2:$C$207,SMALL(IF(masterlist!$B$2:$B$207=\"PCO\",IF(masterlist!$E$2:$E$207=1,ROW(masterlist!$B$2:$B$207)-ROW(masterlist!$B$2)+1)),ROWS(B$12:B24))),\"\")","v":""},{"$f":"IFERROR(VLOOKUP(F24&\"-0\",'linked mastersheet'!$A$2:$K$199,7,FALSE),\"\")","v":""},{"$f":"IFERROR(VLOOKUP(F24&\"-1\",'linked mastersheet'!$A$2:$K$199,7,FALSE),\"\")","v":""},null,{"$f":"IF(ROWS(B$12:B24)<=$I$13,INDEX(masterlist!$C$2:$C$207,SMALL(IF(masterlist!$B$2:$B$207=\"LAB\",IF(masterlist!$E$2:$E$207=1,ROW(masterlist!$B$2:$B$207)-ROW(masterlist!$B$2)+1)),ROWS(B$12:B24))),\"\")","v":""},{"$f":"IFERROR(VLOOKUP(J24&\"-0\",'linked mastersheet'!$A$2:$K$199,7,FALSE),\"\")","v":""},{"$f":"IFERROR(VLOOKUP(J24&\"-1\",'linked mastersheet'!$A$2:$K$199,7,FALSE),\"\")","v":""},null,{"$f":"IF(ROWS(B$12:B24)<=$M$13,INDEX(masterlist!$C$2:$C$207,SMALL(IF(masterlist!$B$2:$B$207=\"DPM\",IF(masterlist!$E$2:$E$207=1,ROW(masterlist!$B$2:$B$207)-ROW(masterlist!$B$2)+1)),ROWS(B$12:B24))),\"\")","v":""},{"$f":"IFERROR(VLOOKUP(N24&\"-0\",'linked mastersheet'!$A$2:$K$199,7,FALSE),\"\")","v":""},{"$f":"IFERROR(VLOOKUP(N24&\"-1\",'linked mastersheet'!$A$2:$K$199,7,FALSE),\"\")","v":""},null,{"$f":"IF(ROWS(B$12:B24)<=$Q$13,INDEX(masterlist!$C$2:$C$207,SMALL(IF(masterlist!$B$2:$B$207=\"IEC\",IF(masterlist!$E$2:$E$207=1,ROW(masterlist!$B$2:$B$207)-ROW(masterlist!$B$2)+1)),ROWS(B$12:B24))),\"\")","v":""},{"$f":"IFERROR(VLOOKUP(R24&\"-0\",'linked mastersheet'!$A$2:$K$199,7,FALSE),\"\")","v":""},{"$f":"IFERROR(VLOOKUP(R24&\"-1\",'linked mastersheet'!$A$2:$K$199,7,FALSE),\"\")","v":""},null,{"$f":"IF(ROWS(B$12:B24)<=$U$13,INDEX(masterlist!$C$2:$C$207,SMALL(IF(masterlist!$B$2:$B$207=\"CCI\",IF(masterlist!$E$2:$E$207=1,ROW(masterlist!$B$2:$B$207)-ROW(masterlist!$B$2)+1)),ROWS(B$12:B24))),\"\")","v":""},{"$f":"IFERROR(VLOOKUP(V24&\"-0\",'linked mastersheet'!$A$2:$K$199,7,FALSE),\"\")","v":""},{"$f":"IFERROR(VLOOKUP(V24&\"-1\",'linked mastersheet'!$A$2:$K$199,7,FALSE),\"\")","v":""},null,{"$f":"IF(ROWS(B$12:B24)<=$Y$13,INDEX(masterlist!$C$2:$C$207,SMALL(IF(masterlist!$B$2:$B$207=\"LEG\",IF(masterlist!$E$2:$E$207=1,ROW(masterlist!$B$2:$B$207)-ROW(masterlist!$B$2)+1)),ROWS(B$12:B24))),\"\")","v":""},{"$f":"IFERROR(VLOOKUP(Z24&\"-0\",'linked mastersheet'!$A$2:$K$199,7,FALSE),\"\")","v":""},{"$f":"IFERROR(VLOOKUP(Z24&\"-1\",'linked mastersheet'!$A$2:$K$199,7,FALSE),\"\")","v":""}]
[null,{"$f":"IF(ROWS(B$12:B25)<=$A$13,INDEX(masterlist!$C$2:$C$207,SMALL(IF(masterlist!$B$2:$B$207=\"DCA\",IF(masterlist!$E$2:$E$207=1,ROW(masterlist!$B$2:$B$207)-ROW(masterlist!$B$2)+1)),ROWS(B$12:B25))),\"\")","v":""},{"$f":"IFERROR(VLOOKUP(B25&\"-0\",'linked mastersheet'!$A$2:$K$199,7,FALSE),\"\")","v":""},{"$f":"IFERROR(VLOOKUP(B25&\"-1\",'linked mastersheet'!$A$2:$K$199,7,FALSE),\"\")","v":""},null,{"$f":"IF(ROWS(B$12:B25)<=$E$13,INDEX(masterlist!$C$2:$C$207,SMALL(IF(masterlist!$B$2:$B$207=\"PCO\",IF(masterlist!$E$2:$E$207=1,ROW(masterlist!$B$2:$B$207)-ROW(masterlist!$B$2)+1)),ROWS(B$12:B25))),\"\")","v":""},{"$f":"IFERROR(VLOOKUP(F25&\"-0\",'linked mastersheet'!$A$2:$K$199,7,FALSE),\"\")","v":""},{"$f":"IFERROR(VLOOKUP(F25&\"-1\",'linked mastersheet'!$A$2:$K$199,7,FALSE),\"\")","v":""},null,{"$f":"IF(ROWS(B$12:B25)<=$I$13,INDEX(masterlist!$C$2:$C$207,SMALL(IF(masterlist!$B$2:$B$207=\"LAB\",IF(masterlist!$E$2:$E$207=1,ROW(masterlist!$B$2:$B$207)-ROW(masterlist!$B$2)+1)),ROWS(B$12:B25))),\"\")","v":""},{"$f":"IFERROR(VLOOKUP(J25&\"-0\",'linked mastersheet'!$A$2:$K$199,7,FALSE),\"\")","v":""},{"$f":"IFERROR(VLOOKUP(J25&\"-1\",'linked mastersheet'!$A$2:$K$199,7,FALSE),\"\")","v":""},null,{"$f":"IF(ROWS(B$12:B25)<=$M$13,INDEX(masterlist!$C$2:$C$207,SMALL(IF(masterlist!$B$2:$B$207=\"DPM\",IF(masterlist!$E$2:$E$207=1,ROW(masterlist!$B$2:$B$207)-ROW(masterlist!$B$2)+1)),ROWS(B$12:B25))),\"\")","v":""},{"$f":"IFERROR(VLOOKUP(N25&\"-0\",'linked mastersheet'!$A$2:$K$199,7,FALSE),\"\")","v":""},{"$f":"IFERROR(VLOOKUP(N25&\"-1\",'linked mastersheet'!$A$2:$K$199,7,FALSE),\"\")","v":""},null,{"$f":"IF(ROWS(B$12:B25)<=$Q$13,INDEX(masterlist!$C$2:$C$207,SMALL(IF(masterlist!$B$2:$B$207=\"IEC\",IF(masterlist!$E$2:$E$207=1,ROW(masterlist!$B$2:$B$207)-ROW(masterlist!$B$2)+1)),ROWS(B$12:B25))),\"\")","v":""},{"$f":"IFERROR(VLOOKUP(R25&\"-0\",'linked mastersheet'!$A$2:$K$199,7,FALSE),\"\")","v":""},{"$f":"IFERROR(VLOOKUP(R25&\"-1\",'linked mastersheet'!$A$2:$K$199,7,FALSE),\"\")","v":""},null,{"$f":"IF(ROWS(B$12:B25)<=$U$13,INDEX(masterlist!$C$2:$C$207,SMALL(IF(masterlist!$B$2:$B$207=\"CCI\",IF(masterlist!$E$2:$E$207=1,ROW(masterlist!$B$2:$B$207)-ROW(masterlist!$B$2)+1)),ROWS(B$12:B25))),\"\")","v":""},{"$f":"IFERROR(VLOOKUP(V25&\"-0\",'linked mastersheet'!$A$2:$K$199,7,FALSE),\"\")","v":""},{"$f":"IFERROR(VLOOKUP(V25&\"-1\",'linked mastersheet'!$A$2:$K$199,7,FALSE),\"\")","v":""},null,{"$f":"IF(ROWS(B$12:B25)<=$Y$13,INDEX(masterlist!$C$2:$C$207,SMALL(IF(masterlist!$B$2:$B$207=\"LEG\",IF(masterlist!$E$2:$E$207=1,ROW(masterlist!$B$2:$B$207)-ROW(masterlist!$B$2)+1)),ROWS(B$12:B25))),\"\")","v":""},{"$f":"IFERROR(VLOOKUP(Z25&\"-0\",'linked mastersheet'!$A$2:$K$199,7,FALSE),\"\")","v":""},{"$f":"IFERROR(VLOOKUP(Z25&\"-1\",'linked mastersheet'!$A$2:$K$199,7,FALSE),\"\")","v":""}]
[2,{"$f":"IF(ROWS(B$26:B26)<=$A$27,INDEX(masterlist!$C$2:$C$207,SMALL(IF(masterlist!$B$2:$B$207=\"DCA\",IF(masterlist!$E$2:$E$207=2,ROW(masterlist!$B$2:$B$207)-ROW(masterlist!$B$2)+1)),ROWS(B$26:B26))),\"\")","v":"DCA-Sur-2-13"},{"$f":"IFERROR(VLOOKUP(B26&\"-0\",'linked mastersheet'!$A$2:$K$199,7,FALSE),\"\")","v":""},{"$f":"IFERROR(VLOOKUP(B26&\"-1\",'linked mastersheet'!$A$2:$K$199,7,FALSE),\"\")","v":"Le système de surveillance de la rage humaine recueille-t-il toutes les données appropriées sur la rage et est-il pleinement opérationnel avec des mécanismes de retour d'information entre les niveaux administratifs (national, province, district, municipalité, etc.) ?"},null,{"$f":"IF(ROWS(B$26:B26)<=$E$27,INDEX(masterlist!$C$2:$C$207,SMALL(IF(masterlist!$B$2:$B$207=\"PCO\",IF(masterlist!$E$2:$E$207=2,ROW(masterlist!$B$2:$B$207)-ROW(masterlist!$B$2)+1)),ROWS(B$26:B26))),\"\")","v":"PCO-Vac-2-3"},{"$f":"IFERROR(VLOOKUP(F26&\"-0\",'linked mastersheet'!$A$2:$K$199,7,FALSE),\"\")","v":""},{"$f":"IFERROR(VLOOKUP(F26&\"-1\",'linked mastersheet'!$A$2:$K$199,7,FALSE),\"\")","v":"Avez-vous procédé à des évaluations ou à des enquêtes pour déterminer comment les vaccins contre la rage humaine devraient être distribués dans le pays ?"},null,{"$f":"IF(ROWS(B$26:B26)<=$I$27,INDEX(masterlist!$C$2:$C$207,SMALL(IF(masterlist!$B$2:$B$207=\"LAB\",IF(masterlist!$E$2:$E$207=2,ROW(masterlist!$B$2:$B$207)-ROW(masterlist!$B$2)+1)),ROWS(B$26:B26))),\"\")","v":"LAB-Cap-2-5"},{"$f":"IFERROR(VLOOKUP(J26&\"-0\",'linked mastersheet'!$A$2:$K$199,7,FALSE),\"\")","v":"Votre pays procède-t-il à des tests de compétence auprès d'un laboratoire internationalement reconnu ?"},{"$f":"IFERROR(VLOOKUP(J26&\"-1\",'linked mastersheet'!$A$2:$K$199,7,FALSE),\"\")","v":""},null,{"$f":"IF(ROWS(B$26:B26)<=$M$27,INDEX(masterlist!$C$2:$C$207,SMALL(IF(masterlist!$B$2:$B$207=\"DPM\",IF(masterlist!$E$2:$E$207=2,ROW(masterlist!$B$2:$B$207)-ROW(masterlist!$B$2)+1)),ROWS(B$26:B26))),\"\")","v":"DPM- -2-6"},{"$f":"IFERROR(VLOOKUP(N26&\"-0\",'linked mastersheet'!$A$2:$K$199,7,FALSE),\"\")","v":"Une stratégie compassionnelle de gestion des populations de chiens (DPM) a-t-elle été élaborée et partagée avec toutes les parties prenantes concernées pour une zone donnée (par exemple, dans le cadre d’un projet pilote) ?"},{"$f":"IFERROR(VLOOKUP(N26&\"-1\",'linked mastersheet'!$A$2:$K$199,7,FALSE),\"\")","v":""},null,{"$f":"IF(ROWS(B$26:B26)<=$Q$27,INDEX(masterlist!$C$2:$C$207,SMALL(IF(masterlist!$B$2:$B$207=\"IEC\",IF(masterlist!$E$2:$E$207=2,ROW(masterlist!$B$2:$B$207)-ROW(masterlist!$B$2)+1)),ROWS(B$26:B26))),\"\")","v":"IEC-Sen-2-5"},{"$f":"IFERROR(VLOOKUP(R26&\"-0\",'linked mastersheet'!$A$2:$K$199,7,FALSE),\"\")","v":"Le plan IEC a-t-il été mis à jour (si nécessaire) et mis en œuvre dans l’ensemble du pays ? "},{"$f":"IFERROR(VLOOKUP(R26&\"-1\",'linked mastersheet'!$A$2:$K$199,7,FALSE),\"\")","v":""},null,{"$f":"IF(ROWS(B$26:B26)<=$U$27,INDEX(masterlist!$C$2:$C$207,SMALL(IF(masterlist!$B$2:$B$207=\"CCI\",IF(masterlist!$E$2:$E$207=2,ROW(masterlist!$B$2:$B$207)-ROW(masterlist!$B$2)+1)),ROWS(B$26:B26))),\"\")","v":"CCI-Cré-2-5"},{"$f":"IFERROR(VLOOKUP(V26&\"-0\",'linked mastersheet'!$A$2:$K$199,7,FALSE),\"\")","v":"Le secteur privé fait-il partie de l’équipe de travail intersectorielle ? "},{"$f":"IFERROR(VLOOKUP(V26&\"-1\",'linked mastersheet'!$A$2:$K$199,7,FALSE),\"\")","v":""},null,{"$f":"IF(ROWS(B$26:B26)<=$Y$27,INDEX(masterlist!$C$2:$C$207,SMALL(IF(masterlist!$B$2:$B$207=\"LEG\",IF(masterlist!$E$2:$E$207=2,ROW(masterlist!$B$2:$B$207)-ROW(masterlist!$B$2)+1)),ROWS(B$26:B26))),\"\")","v":"LEG-Cad-2-10"},{"$f":"IFERROR(VLOOKUP(Z26&\"-0\",'linked mastersheet'!$A$2:$K$199,7,FALSE),\"\")","v":"La législation relative aux vaccins homologués au niveau national reflète-t-elle les lignes directrices internationales ?"},{"$f":"IFERROR(VLOOKUP(Z26&\"-1\",'linked mastersheet'!$A$2:$K$199,7,FALSE),\"\")","v":""}]
[{"$f":"SUMPRODUCT((masterlist!B:B=\"DCA\")*(masterlist!E:E=2))","v":4},{"$f":"IF(ROWS(B$26:B27)<=$A$27,INDEX(masterlist!$C$2:$C$207,SMALL(IF(masterlist!$B$2:$B$207=\"DCA\",IF(masterlist!$E$2:$E$207=2,ROW(masterlist!$B$2:$B$207)-ROW(masterlist!$B$2)+1)),ROWS(B$26:B27))),\"\")","v":"DCA-Sur-2-14"},{"$f":"IFERROR(VLOOKUP(B27&\"-0\",'linked mastersheet'!$A$2:$K$199,7,FALSE),\"\")","v":""},{"$f":"IFERROR(VLOOKUP(B27&\"-1\",'linked mastersheet'!$A$2:$K$199,7,FALSE),\"\")","v":"Le système de surveillance de la rage animale recueille-t-il toutes les données appropriées sur la rage et est-il pleinement fonctionnel avec des mécanismes de retour d'information entre les niveaux administratifs (national, province, district, municipalité, etc.) ?"},{"$f":"SUMPRODUCT((masterlist!B:B=\"PCO\")*(masterlist!E:E=2))","v":11},{"$f":"IF(ROWS(B$26:B27)<=$E$27,INDEX(masterlist!$C$2:$C$207,SMALL(IF(masterlist!$B$2:$B$207=\"PCO\",IF(masterlist!$E$2:$E$207=2,ROW(masterlist!$B$2:$B$207)-ROW(masterlist!$B$2)+1)),ROWS(B$26:B27))),\"\")","v":"PCO-Vac-2-4"},{"$f":"IFERROR(VLOOKUP(F27&\"-0\",'linked mastersheet'!$A$2:$K$199,7,FALSE),\"\")","v":""},{"$f":"IFERROR(VLOOKUP(F27&\"-1\",'linked mastersheet'!$A$2:$K$199,7,FALSE),\"\")","v":"Les vaccins antirabiques humains préqualifiés par l'OMS (c'est-à-dire de haute qualité) sont-ils disponibles et accessibles dans la plupart des régions du pays ?"},{"$f":"SUMPRODUCT((masterlist!B:B=\"LAB\")*(masterlist!E:E=2))","v":4},{"$f":"IF(ROWS(B$26:B27)<=$I$27,INDEX(masterlist!$C$2:$C$207,SMALL(IF(masterlist!$B$2:$B$207=\"LAB\",IF(masterlist!$E$2:$E$207=2,ROW(masterlist!$B$2:$B$207)-ROW(masterlist!$B$2)+1)),ROWS(B$26:B27))),\"\")","v":"LAB-Cap-2-6"},{"$f":"IFERROR(VLOOKUP(J27&\"-0\",'linked mastersheet'!$A$2:$K$199,7,FALSE),\"\")","v":"Une capacité de collecte et de transport réguliers des prélèvements a-t-elle été mise en place et fonctionne-t-elle ?"},{"$f":"IFERROR(VLOOKUP(J27&\"-1\",'linked mastersheet'!$A$2:$K$199,7,FALSE),\"\")","v":""},{"$f":"SUMPRODUCT((masterlist!B:B=\"DPM\")*(masterlist!E:E=2))","v":4},{"$f":"IF(ROWS(B$26:B27)<=$M$27,INDEX(masterlist!$C$2:$C$207,SMALL(IF(masterlist!$B$2:$B$207=\"DPM\",IF(masterlist!$E$2:$E$207=2,ROW(masterlist!$B$2:$B$207)-ROW(masterlist!$B$2)+1)),ROWS(B$26:B27))),\"\")","v":"DPM- -2-7"},{"$f":"IFERROR(VLOOKUP(N27&\"-0\",'linked mastersheet'!$A$2:$K$199,7,FALSE),\"\")","v":"La stratégie de gestion des populations canines a-t-elle été finalisée et mise en œuvre dans une zone (par exemple dans le cadre d’un projet pilote) ?"},{"$f":"IFERROR(VLOOKUP(N27&\"-1\",'linked mastersheet'!$A$2:$K$199,7,FALSE),\"\")","v":""},{"$f":"SUMPRODUCT((masterlist!B:B=\"IEC\")*(masterlist!E:E=2))","v":4},{"$f":"IF(ROWS(B$26:B27)<=$Q$27,INDEX(masterlist!$C$2:$C$207,SMALL(IF(masterlist!$B$2:$B$207=\"IEC\",IF(masterlist!$E$2:$E$207=2,ROW(masterlist!$B$2:$B$207)-ROW(masterlist!$B$2)+1)),ROWS(B$26:B27))),\"\")","v":"IEC-For-2-11"},{"$f":"IFERROR(VLOOKUP(R27&\"-0\",'linked mastersheet'!$A$2:$K$199,7,FALSE),\"\")","v":"La formation structurée des professionnels de santé humaine et animale a-t-elle été réalisée dans la plus grande partie du pays ?"},{"$f":"IFERROR(VLOOKUP(R27&\"-1\",'linked mastersheet'!$A$2:$K$199,7,FALSE),\"\")","v":""},{"$f":"SUMPRODUCT((masterlist!B:B=\"CCI\")*(masterlist!E:E=2))","v":3},{"$f":"IF(ROWS(B$26:B27)<=$U$27,INDEX(masterlist!$C$2:$C$207,SMALL(IF(masterlist!$B$2:$B$207=\"CCI\",IF(masterlist!$E$2:$E$207=2,ROW(masterlist!$B$2:$B$207)-ROW(masterlist!$B$2)+1)),ROWS(B$26:B27))),\"\")","v":"CCI-Pro-2-8"},{"$f":"IFERROR(VLOOKUP(V27&\"-0\",'linked mastersheet'!$A$2:$K$199,7,FALSE),\"\")","v":"Un plan national stratégique pour la rage a-t-il été élaboré et finalisé par toutes les parties prenantes identifiées. "},{"$f":"IFERROR(VLOOKUP(V27&\"-1\",'linked mastersheet'!$A$2:$K$199,7,FALSE),\"\")","v":""},{"$f":"SUMPRODUCT((masterlist!B:B=\"LEG\")*(masterlist!E:E=2))","v":1},{"$f":"IF(ROWS(B$26:B27)<=$Y$27,INDEX(masterlist!$C$2:$C$207,SMALL(IF(masterlist!$B$2:$B$207=\"LEG\",IF(masterlist!$E$2:$E$207=2,ROW(masterlist!$B$2:$B$207)-ROW(masterlist!$B$2)+1)),ROWS(B$26:B27))),\"\")","v":""},{"$f":"IFERROR(VLOOKUP(Z27&\"-0\",'linked mastersheet'!$A$2:$K$199,7,FALSE),\"\")","v":""},{"$f":"IFERROR(VLOOKUP(Z27&\"-1\",'linked mastersheet'!$A$2:$K$199,7,FALSE),\"\")","v":""}]
[null,{"$f":"IF(ROWS(B$26:B28)<=$A$27,INDEX(masterlist!$C$2:$C$207,SMALL(IF(masterlist!$B$2:$B$207=\"DCA\",IF(masterlist!$E$2:$E$207=2,ROW(masterlist!$B$2:$B$207)-ROW(masterlist!$B$2)+1)),ROWS(B$26:B28))),\"\")","v":"DCA-Sur-2-15"},{"$f":"IFERROR(VLOOKUP(B28&\"-0\",'linked mastersheet'!$A$2:$K$199,7,FALSE),\"\")","v":"Les données relatives à la rage (humaine et animale) sont-elles régulièrement partagées dans leur TOTALITE avec toutes les autres parties prenantes ?"},{"$f":"IFERROR(VLOOKUP(B28&\"-1\",'linked mastersheet'!$A$2:$K$199,7,FALSE),\"\")","v":""},null,{"$f":"IF(ROWS(B$26:B28)<=$E$27,INDEX(masterlist!$C$2:$C$207,SMALL(IF(masterlist!$B$2:$B$207=\"PCO\",IF(masterlist!$E$2:$E$207=2,ROW(masterlist!$B$2:$B$207)-ROW(masterlist!$B$2)+1)),ROWS(B$26:B28))),\"\")","v":"PCO-Vac-2-5"},{"$f":"IFERROR(VLOOKUP(F28&\"-0\",'linked mastersheet'!$A$2:$K$199,7,FALSE),\"\")","v":"La prophylaxie post-exposition est-elle gratuite (ou au moins partiellement subventionnée) pour tout individu potentiellement exposé dans le pays ?"},{"$f":"IFERROR(VLOOKUP(F28&\"-1\",'linked mastersheet'!$A$2:$K$199,7,FALSE),\"\")","v":""},null,{"$f":"IF(ROWS(B$26:B28)<=$I$27,INDEX(masterlist!$C$2:$C$207,SMALL(IF(masterlist!$B$2:$B$207=\"LAB\",IF(masterlist!$E$2:$E$207=2,ROW(masterlist!$B$2:$B$207)-ROW(masterlist!$B$2)+1)),ROWS(B$26:B28))),\"\")","v":"LAB-Cap-2-7"},{"$f":"IFERROR(VLOOKUP(J28&\"-0\",'linked mastersheet'!$A$2:$K$199,7,FALSE),\"\")","v":"Des prélèvements d’animaux suspects de rage sont-ils analysés dans le pays pendant la plupart (sinon tous) des mois de l’année ?"},{"$f":"IFERROR(VLOOKUP(J28&\"-1\",'linked mastersheet'!$A$2:$K$199,7,FALSE),\"\")","v":""},null,{"$f":"IF(ROWS(B$26:B28)<=$M$27,INDEX(masterlist!$C$2:$C$207,SMALL(IF(masterlist!$B$2:$B$207=\"DPM\",IF(masterlist!$E$2:$E$207=2,ROW(masterlist!$B$2:$B$207)-ROW(masterlist!$B$2)+1)),ROWS(B$26:B28))),\"\")","v":"DPM- -2-8"},{"$f":"IFERROR(VLOOKUP(N28&\"-0\",'linked mastersheet'!$A$2:$K$199,7,FALSE),\"\")","v":"Des professionnels ont-ils été formés sur la gestion compassionnelle des populations canines dans une zone (par exemple dans le cadre d’un projet pilote) ?"},{"$f":"IFERROR(VLOOKUP(N28&\"-1\",'linked mastersheet'!$A$2:$K$199,7,FALSE),\"\")","v":""},null,{"$f":"IF(ROWS(B$26:B28)<=$Q$27,INDEX(masterlist!$C$2:$C$207,SMALL(IF(masterlist!$B$2:$B$207=\"IEC\",IF(masterlist!$E$2:$E$207=2,ROW(masterlist!$B$2:$B$207)-ROW(masterlist!$B$2)+1)),ROWS(B$26:B28))),\"\")","v":"IEC-Pla-2-15"},{"$f":"IFERROR(VLOOKUP(R28&\"-0\",'linked mastersheet'!$A$2:$K$199,7,FALSE),\"\")","v":"Avez-vous fait la promotion de programmes de lutte antirabique réussis auprès des parties prenantes du plaidoyer identifiés ?"},{"$f":"IFERROR(VLOOKUP(R28&\"-1\",'linked mastersheet'!$A$2:$K$199,7,FALSE),\"\")","v":""},null,{"$f":"IF(ROWS(B$26:B28)<=$U$27,INDEX(masterlist!$C$2:$C$207,SMALL(IF(masterlist!$B$2:$B$207=\"CCI\",IF(masterlist!$E$2:$E$207=2,ROW(masterlist!$B$2:$B$207)-ROW(masterlist!$B$2)+1)),ROWS(B$26:B28))),\"\")","v":"CCI-Pro-2-9"},{"$f":"IFERROR(VLOOKUP(V28&\"-0\",'linked mastersheet'!$A$2:$K$199,7,FALSE),\"\")","v":"Des ressources gouvernementales ont-elles été identifiées et allouées en soutien au plan stratégique national contre la rage ? "},{"$f":"IFERROR(VLOOKUP(V28&\"-1\",'linked mastersheet'!$A$2:$K$199,7,FALSE),\"\")","v":""},null,{"$f":"IF(ROWS(B$26:B28)<=$Y$27,INDEX(masterlist!$C$2:$C$207,SMALL(IF(masterlist!$B$2:$B$207=\"LEG\",IF(masterlist!$E$2:$E$207=2,ROW(masterlist!$B$2:$B$207)-ROW(masterlist!$B$2)+1)),ROWS(B$26:B28))),\"\")","v":""},{"$f":"IFERROR(VLOOKUP(Z28&\"-0\",'linked mastersheet'!$A$2:$K$199,7,FALSE),\"\")","v":""},{"$f":"IFERROR(VLOOKUP(Z28&\"-1\",'linked mastersheet'!$A$2:$K$199,7,FALSE),\"\")","v":""}]
[null,{"$f":"IF(ROWS(B$26:B29)<=$A$27,INDEX(masterlist!$C$2:$C$207,SMALL(IF(masterlist!$B$2:$B$207=\"DCA\",IF(masterlist!$E$2:$E$207=2,ROW(masterlist!$B$2:$B$207)-ROW(masterlist!$B$2)+1)),ROWS(B$26:B29))),\"\")","v":"DCA-Sur-2-16"},{"$f":"IFERROR(VLOOKUP(B29&\"-0\",'linked mastersheet'!$A$2:$K$199,7,FALSE),\"\")","v":"Un système de surveillance de la rage One Health (comprenant des données de surveillance humaines et animales à tous les niveaux) a-t-il été mis en place ? \n\nOU\n\nExiste-t-il une structure officielle pour le partage régulier et opportun de TOUTES les données pertinentes entre les systèmes de surveillance de la santé humaine et animale ?"},{"$f":"IFERROR(VLOOKUP(B29&\"-1\",'linked mastersheet'!$A$2:$K$199,7,FALSE),\"\")","v":""},null,{"$f":"IF(ROWS(B$26:B29)<=$E$27,INDEX(masterlist!$C$2:$C$207,SMALL(IF(masterlist!$B$2:$B$207=\"PCO\",IF(masterlist!$E$2:$E$207=2,ROW(masterlist!$B$2:$B$207)-ROW(masterlist!$B$2)+1)),ROWS(B$26:B29))),\"\")","v":"PCO-Vac-2-6"},{"$f":"IFERROR(VLOOKUP(F29&\"-0\",'linked mastersheet'!$A$2:$K$199,7,FALSE),\"\")","v":"Le gouvernement n’utilise-t-il que des vaccins antirabiques humains préqualifiés par l’OMS dans le pays ? "},{"$f":"IFERROR(VLOOKUP(F29&\"-1\",'linked mastersheet'!$A$2:$K$199,7,FALSE),\"\")","v":""},null,{"$f":"IF(ROWS(B$26:B29)<=$I$27,INDEX(masterlist!$C$2:$C$207,SMALL(IF(masterlist!$B$2:$B$207=\"LAB\",IF(masterlist!$E$2:$E$207=2,ROW(masterlist!$B$2:$B$207)-ROW(masterlist!$B$2)+1)),ROWS(B$26:B29))),\"\")","v":"LAB-Cap-2-8"},{"$f":"IFERROR(VLOOKUP(J29&\"-0\",'linked mastersheet'!$A$2:$K$199,7,FALSE),\"\")","v":"Avez-vous inclus une surveillance active (animaux trouvés morts, animaux tués sur la route, etc.) dans vos activités de surveillance de routine dans l'ensemble du pays ?"},{"$f":"IFERROR(VLOOKUP(J29&\"-1\",'linked mastersheet'!$A$2:$K$199,7,FALSE),\"\")","v":""},null,{"$f":"IF(ROWS(B$26:B29)<=$M$27,INDEX(masterlist!$C$2:$C$207,SMALL(IF(masterlist!$B$2:$B$207=\"DPM\",IF(masterlist!$E$2:$E$207=2,ROW(masterlist!$B$2:$B$207)-ROW(masterlist!$B$2)+1)),ROWS(B$26:B29))),\"\")","v":"DPM- -2-9"},{"$f":"IFERROR(VLOOKUP(N29&\"-0\",'linked mastersheet'!$A$2:$K$199,7,FALSE),\"\")","v":"Des campagnes de sensibilisation du public à la gestion compassionnelle des populations canines ont-elles été mises en œuvre dans une zone (par exemple dans le cadre d’un projet pilote) ?"},{"$f":"IFERROR(VLOOKUP(N29&\"-1\",'linked mastersheet'!$A$2:$K$199,7,FALSE),\"\")","v":""},null,{"$f":"IF(ROWS(B$26:B29)<=$Q$27,INDEX(masterlist!$C$2:$C$207,SMALL(IF(masterlist!$B$2:$B$207=\"IEC\",IF(masterlist!$E$2:$E$207=2,ROW(masterlist!$B$2:$B$207)-ROW(masterlist!$B$2)+1)),ROWS(B$26:B29))),\"\")","v":"IEC-Pla-2-16"},{"$f":"IFERROR(VLOOKUP(R29&\"-0\",'linked mastersheet'!$A$2:$K$199,7,FALSE),\"\")","v":"Le lobbying a-t-il été utilisé pour susciter l'intérêt actif d'au moins une partie prenante du plaidoyer ?"},{"$f":"IFERROR(VLOOKUP(R29&\"-1\",'linked mastersheet'!$A$2:$K$199,7,FALSE),\"\")","v":""},null,{"$f":"IF(ROWS(B$26:B29)<=$U$27,INDEX(masterlist!$C$2:$C$207,SMALL(IF(masterlist!$B$2:$B$207=\"CCI\",IF(masterlist!$E$2:$E$207=2,ROW(masterlist!$B$2:$B$207)-ROW(masterlist!$B$2)+1)),ROWS(B$26:B29))),\"\")","v":""},{"$f":"IFERROR(VLOOKUP(V29&\"-0\",'linked mastersheet'!$A$2:$K$199,7,FALSE),\"\")","v":""},{"$f":"IFERROR(VLOOKUP(V29&\"-1\",'linked mastersheet'!$A$2:$K$199,7,FALSE),\"\")","v":""},null,{"$f":"IF(ROWS(B$26:B29)<=$Y$27,INDEX(masterlist!$C$2:$C$207,SMALL(IF(masterlist!$B$2:$B$207=\"LEG\",IF(masterlist!$E$2:$E$207=2,ROW(masterlist!$B$2:$B$207)-ROW(masterlist!$B$2)+1)),ROWS(B$26:B29))),\"\")","v":""},{"$f":"IFERROR(VLOOKUP(Z29&\"-0\",'linked mastersheet'!$A$2:$K$199,7,FALSE),\"\")","v":""},{"$f":"IFERROR(VLOOKUP(Z29&\"-1\",'linked mastersheet'!$A$2:$K$199,7,FALSE),\"\")","v":""}]
[null,{"$f":"IF(ROWS(B$26:B30)<=$A$27,INDEX(masterlist!$C$2:$C$207,SMALL(IF(masterlist!$B$2:$B$207=\"DCA\",IF(masterlist!$E$2:$E$207=2,ROW(masterlist!$B$2:$B$207)-ROW(masterlist!$B$2)+1)),ROWS(B$26:B30))),\"\")","v":""},{"$f":"IFERROR(VLOOKUP(B30&\"-0\",'linked mastersheet'!$A$2:$K$199,7,FALSE),\"\")","v":""},{"$f":"IFERROR(VLOOKUP(B30&\"-1\",'linked mastersheet'!$A$2:$K$199,7,FALSE),\"\")","v":""},null,{"$f":"IF(ROWS(B$26:B30)<=$E$27,INDEX(masterlist!$C$2:$C$207,SMALL(IF(masterlist!$B$2:$B$207=\"PCO\",IF(masterlist!$E$2:$E$207=2,ROW(masterlist!$B$2:$B$207)-ROW(masterlist!$B$2)+1)),ROWS(B$26:B30))),\"\")","v":"PCO-Vac-2-11"},{"$f":"IFERROR(VLOOKUP(F30&\"-0\",'linked mastersheet'!$A$2:$K$199,7,FALSE),\"\")","v":""},{"$f":"IFERROR(VLOOKUP(F30&\"-1\",'linked mastersheet'!$A$2:$K$199,7,FALSE),\"\")","v":"Le gouvernement n’utilise-t-il que des vaccins pour les chiens de haute qualité, conformément aux normes de l’OMSA ?"},null,{"$f":"IF(ROWS(B$26:B30)<=$I$27,INDEX(masterlist!$C$2:$C$207,SMALL(IF(masterlist!$B$2:$B$207=\"LAB\",IF(masterlist!$E$2:$E$207=2,ROW(masterlist!$B$2:$B$207)-ROW(masterlist!$B$2)+1)),ROWS(B$26:B30))),\"\")","v":""},{"$f":"IFERROR(VLOOKUP(J30&\"-0\",'linked mastersheet'!$A$2:$K$199,7,FALSE),\"\")","v":""},{"$f":"IFERROR(VLOOKUP(J30&\"-1\",'linked mastersheet'!$A$2:$K$199,7,FALSE),\"\")","v":""},null,{"$f":"IF(ROWS(B$26:B30)<=$M$27,INDEX(masterlist!$C$2:$C$207,SMALL(IF(masterlist!$B$2:$B$207=\"DPM\",IF(masterlist!$E$2:$E$207=2,ROW(masterlist!$B$2:$B$207)-ROW(masterlist!$B$2)+1)),ROWS(B$26:B30))),\"\")","v":""},{"$f":"IFERROR(VLOOKUP(N30&\"-0\",'linked mastersheet'!$A$2:$K$199,7,FALSE),\"\")","v":""},{"$f":"IFERROR(VLOOKUP(N30&\"-1\",'linked mastersheet'!$A$2:$K$199,7,FALSE),\"\")","v":""},null,{"$f":"IF(ROWS(B$26:B30)<=$Q$27,INDEX(masterlist!$C$2:$C$207,SMALL(IF(masterlist!$B$2:$B$207=\"IEC\",IF(masterlist!$E$2:$E$207=2,ROW(masterlist!$B$2:$B$207)-ROW(masterlist!$B$2)+1)),ROWS(B$26:B30))),\"\")","v":""},{"$f":"IFERROR(VLOOKUP(R30&\"-0\",'linked mastersheet'!$A$2:$K$199,7,FALSE),\"\")","v":""},{"$f":"IFERROR(VLOOKUP(R30&\"-1\",'linked mastersheet'!$A$2:$K$199,7,FALSE),\"\")","v":""},null,{"$f":"IF(ROWS(B$26:B30)<=$U$27,INDEX(masterlist!$C$2:$C$207,SMALL(IF(masterlist!$B$2:$B$207=\"CCI\",IF(masterlist!$E$2:$E$207=2,ROW(masterlist!$B$2:$B$207)-ROW(masterlist!$B$2)+1)),ROWS(B$26:B30))),\"\")","v":""},{"$f":"IFERROR(VLOOKUP(V30&\"-0\",'linked mastersheet'!$A$2:$K$199,7,FALSE),\"\")","v":""},{"$f":"IFERROR(VLOOKUP(V30&\"-1\",'linked mastersheet'!$A$2:$K$199,7,FALSE),\"\")","v":""},null,{"$f":"IF(ROWS(B$26:B30)<=$Y$27,INDEX(masterlist!$C$2:$C$207,SMALL(IF(masterlist!$B$2:$B$207=\"LEG\",IF(masterlist!$E$2:$E$207=2,ROW(masterlist!$B$2:$B$207)-ROW(masterlist!$B$2)+1)),ROWS(B$26:B30))),\"\")","v":""},{"$f":"IFERROR(VLOOKUP(Z30&\"-0\",'linked mastersheet'!$A$2:$K$199,7,FALSE),\"\")","v":""},{"$f":"IFERROR(VLOOKUP(Z30&\"-1\",'linked mastersheet'!$A$2:$K$199,7,FALSE),\"\")","v":""}]
[null,{"$f":"IF(ROWS(B$26:B31)<=$A$27,INDEX(masterlist!$C$2:$C$207,SMALL(IF(masterlist!$B$2:$B$207=\"DCA\",IF(masterlist!$E$2:$E$207=2,ROW(masterlist!$B$2:$B$207)-ROW(masterlist!$B$2)+1)),ROWS(B$26:B31))),\"\")","v":""},{"$f":"IFERROR(VLOOKUP(B31&\"-0\",'linked mastersheet'!$A$2:$K$199,7,FALSE),\"\")","v":""},{"$f":"IFERROR(VLOOKUP(B31&\"-1\",'linked mastersheet'!$A$2:$K$199,7,FALSE),\"\")","v":""},null,{"$f":"IF(ROWS(B$26:B31)<=$E$27,INDEX(masterlist!$C$2:$C$207,SMALL(IF(masterlist!$B$2:$B$207=\"PCO\",IF(masterlist!$E$2:$E$207=2,ROW(masterlist!$B$2:$B$207)-ROW(masterlist!$B$2)+1)),ROWS(B$26:B31))),\"\")","v":"PCO-Vac-2-12"},{"$f":"IFERROR(VLOOKUP(F31&\"-0\",'linked mastersheet'!$A$2:$K$199,7,FALSE),\"\")","v":"Les campagnes gouvernementales de vaccination des chiens gagnent-elles régulièrement en ampleur et en intensité ?"},{"$f":"IFERROR(VLOOKUP(F31&\"-1\",'linked mastersheet'!$A$2:$K$199,7,FALSE),\"\")","v":""},null,{"$f":"IF(ROWS(B$26:B31)<=$I$27,INDEX(masterlist!$C$2:$C$207,SMALL(IF(masterlist!$B$2:$B$207=\"LAB\",IF(masterlist!$E$2:$E$207=2,ROW(masterlist!$B$2:$B$207)-ROW(masterlist!$B$2)+1)),ROWS(B$26:B31))),\"\")","v":""},{"$f":"IFERROR(VLOOKUP(J31&\"-0\",'linked mastersheet'!$A$2:$K$199,7,FALSE),\"\")","v":""},{"$f":"IFERROR(VLOOKUP(J31&\"-1\",'linked mastersheet'!$A$2:$K$199,7,FALSE),\"\")","v":""},null,{"$f":"IF(ROWS(B$26:B31)<=$M$27,INDEX(masterlist!$C$2:$C$207,SMALL(IF(masterlist!$B$2:$B$207=\"DPM\",IF(masterlist!$E$2:$E$207=2,ROW(masterlist!$B$2:$B$207)-ROW(masterlist!$B$2)+1)),ROWS(B$26:B31))),\"\")","v":""},{"$f":"IFERROR(VLOOKUP(N31&\"-0\",'linked mastersheet'!$A$2:$K$199,7,FALSE),\"\")","v":""},{"$f":"IFERROR(VLOOKUP(N31&\"-1\",'linked mastersheet'!$A$2:$K$199,7,FALSE),\"\")","v":""},null,{"$f":"IF(ROWS(B$26:B31)<=$Q$27,INDEX(masterlist!$C$2:$C$207,SMALL(IF(masterlist!$B$2:$B$207=\"IEC\",IF(masterlist!$E$2:$E$207=2,ROW(masterlist!$B$2:$B$207)-ROW(masterlist!$B$2)+1)),ROWS(B$26:B31))),\"\")","v":""},{"$f":"IFERROR(VLOOKUP(R31&\"-0\",'linked mastersheet'!$A$2:$K$199,7,FALSE),\"\")","v":""},{"$f":"IFERROR(VLOOKUP(R31&\"-1\",'linked mastersheet'!$A$2:$K$199,7,FALSE),\"\")","v":""},null,{"$f":"IF(ROWS(B$26:B31)<=$U$27,INDEX(masterlist!$C$2:$C$207,SMALL(IF(masterlist!$B$2:$B$207=\"CCI\",IF(masterlist!$E$2:$E$207=2,ROW(masterlist!$B$2:$B$207)-ROW(masterlist!$B$2)+1)),ROWS(B$26:B31))),\"\")","v":""},{"$f":"IFERROR(VLOOKUP(V31&\"-0\",'linked mastersheet'!$A$2:$K$199,7,FALSE),\"\")","v":""},{"$f":"IFERROR(VLOOKUP(V31&\"-1\",'linked mastersheet'!$A$2:$K$199,7,FALSE),\"\")","v":""},null,{"$f":"IF(ROWS(B$26:B31)<=$Y$27,INDEX(masterlist!$C$2:$C$207,SMALL(IF(masterlist!$B$2:$B$207=\"LEG\",IF(masterlist!$E$2:$E$207=2,ROW(masterlist!$B$2:$B$207)-ROW(masterlist!$B$2)+1)),ROWS(B$26:B31))),\"\")","v":""},{"$f":"IFERROR(VLOOKUP(Z31&\"-0\",'linked mastersheet'!$A$2:$K$199,7,FALSE),\"\")","v":""},{"$f":"IFERROR(VLOOKUP(Z31&\"-1\",'linked mastersheet'!$A$2:$K$199,7,FALSE),\"\")","v":""}]
[null,{"$f":"IF(ROWS(B$26:B32)<=$A$27,INDEX(masterlist!$C$2:$C$207,SMALL(IF(masterlist!$B$2:$B$207=\"DCA\",IF(masterlist!$E$2:$E$207=2,ROW(masterlist!$B$2:$B$207)-ROW(masterlist!$B$2)+1)),ROWS(B$26:B32))),\"\")","v":""},{"$f":"IFERROR(VLOOKUP(B32&\"-0\",'linked mastersheet'!$A$2:$K$199,7,FALSE),\"\")","v":""},{"$f":"IFERROR(VLOOKUP(B32&\"-1\",'linked mastersheet'!$A$2:$K$199,7,FALSE),\"\")","v":""},null,{"$f":"IF(ROWS(B$26:B32)<=$E$27,INDEX(masterlist!$C$2:$C$207,SMALL(IF(masterlist!$B$2:$B$207=\"PCO\",IF(masterlist!$E$2:$E$207=2,ROW(masterlist!$B$2:$B$207)-ROW(masterlist!$B$2)+1)),ROWS(B$26:B32))),\"\")","v":"PCO-Rép-2-20"},{"$f":"IFERROR(VLOOKUP(F32&\"-0\",'linked mastersheet'!$A$2:$K$199,7,FALSE),\"\")","v":"Les protocoles d’enquête conjointe des cas de rage, y compris le partage d’informations entre secteurs, ont-ils été approuvés au niveau national ? "},{"$f":"IFERROR(VLOOKUP(F32&\"-1\",'linked mastersheet'!$A$2:$K$199,7,FALSE),\"\")","v":""},null,{"$f":"IF(ROWS(B$26:B32)<=$I$27,INDEX(masterlist!$C$2:$C$207,SMALL(IF(masterlist!$B$2:$B$207=\"LAB\",IF(masterlist!$E$2:$E$207=2,ROW(masterlist!$B$2:$B$207)-ROW(masterlist!$B$2)+1)),ROWS(B$26:B32))),\"\")","v":""},{"$f":"IFERROR(VLOOKUP(J32&\"-0\",'linked mastersheet'!$A$2:$K$199,7,FALSE),\"\")","v":""},{"$f":"IFERROR(VLOOKUP(J32&\"-1\",'linked mastersheet'!$A$2:$K$199,7,FALSE),\"\")","v":""},null,{"$f":"IF(ROWS(B$26:B32)<=$M$27,INDEX(masterlist!$C$2:$C$207,SMALL(IF(masterlist!$B$2:$B$207=\"DPM\",IF(masterlist!$E$2:$E$207=2,ROW(masterlist!$B$2:$B$207)-ROW(masterlist!$B$2)+1)),ROWS(B$26:B32))),\"\")","v":""},{"$f":"IFERROR(VLOOKUP(N32&\"-0\",'linked mastersheet'!$A$2:$K$199,7,FALSE),\"\")","v":""},{"$f":"IFERROR(VLOOKUP(N32&\"-1\",'linked mastersheet'!$A$2:$K$199,7,FALSE),\"\")","v":""},null,{"$f":"IF(ROWS(B$26:B32)<=$Q$27,INDEX(masterlist!$C$2:$C$207,SMALL(IF(masterlist!$B$2:$B$207=\"IEC\",IF(masterlist!$E$2:$E$207=2,ROW(masterlist!$B$2:$B$207)-ROW(masterlist!$B$2)+1)),ROWS(B$26:B32))),\"\")","v":""},{"$f":"IFERROR(VLOOKUP(R32&\"-0\",'linked mastersheet'!$A$2:$K$199,7,FALSE),\"\")","v":""},{"$f":"IFERROR(VLOOKUP(R32&\"-1\",'linked mastersheet'!$A$2:$K$199,7,FALSE),\"\")","v":""},null,{"$f":"IF(ROWS(B$26:B32)<=$U$27,INDEX(masterlist!$C$2:$C$207,SMALL(IF(masterlist!$B$2:$B$207=\"CCI\",IF(masterlist!$E$2:$E$207=2,ROW(masterlist!$B$2:$B$207)-ROW(masterlist!$B$2)+1)),ROWS(B$26:B32))),\"\")","v":""},{"$f":"IFERROR(VLOOKUP(V32&\"-0\",'linked mastersheet'!$A$2:$K$199,7,FALSE),\"\")","v":""},{"$f":"IFERROR(VLOOKUP(V32&\"-1\",'linked mastersheet'!$A$2:$K$199,7,FALSE),\"\")","v":""},null,{"$f":"IF(ROWS(B$26:B32)<=$Y$27,INDEX(masterlist!$C$2:$C$207,SMALL(IF(masterlist!$B$2:$B$207=\"LEG\",IF(masterlist!$E$2:$E$207=2,ROW(masterlist!$B$2:$B$207)-ROW(masterlist!$B$2)+1)),ROWS(B$26:B32))),\"\")","v":""},{"$f":"IFERROR(VLOOKUP(Z32&\"-0\",'linked mastersheet'!$A$2:$K$199,7,FALSE),\"\")","v":""},{"$f":"IFERROR(VLOOKUP(Z32&\"-1\",'linked mastersheet'!$A$2:$K$199,7,FALSE),\"\")","v":""}]
[null,{"$f":"IF(ROWS(B$26:B33)<=$A$27,INDEX(masterlist!$C$2:$C$207,SMALL(IF(masterlist!$B$2:$B$207=\"DCA\",IF(masterlist!$E$2:$E$207=2,ROW(masterlist!$B$2:$B$207)-ROW(masterlist!$B$2)+1)),ROWS(B$26:B33))),\"\")","v":""},{"$f":"IFERROR(VLOOKUP(B33&\"-0\",'linked mastersheet'!$A$2:$K$199,7,FALSE),\"\")","v":""},{"$f":"IFERROR(VLOOKUP(B33&\"-1\",'linked mastersheet'!$A$2:$K$199,7,FALSE),\"\")","v":""},null,{"$f":"IF(ROWS(B$26:B33)<=$E$27,INDEX(masterlist!$C$2:$C$207,SMALL(IF(masterlist!$B$2:$B$207=\"PCO\",IF(masterlist!$E$2:$E$207=2,ROW(masterlist!$B$2:$B$207)-ROW(masterlist!$B$2)+1)),ROWS(B$26:B33))),\"\")","v":"PCO-Rép-2-21"},{"$f":"IFERROR(VLOOKUP(F33&\"-0\",'linked mastersheet'!$A$2:$K$199,7,FALSE),\"\")","v":"Existe-t-il une réponse active lors de foyers de cas en conformité avec les protocoles d’enquête conjointe établis ? "},{"$f":"IFERROR(VLOOKUP(F33&\"-1\",'linked mastersheet'!$A$2:$K$199,7,FALSE),\"\")","v":""},null,{"$f":"IF(ROWS(B$26:B33)<=$I$27,INDEX(masterlist!$C$2:$C$207,SMALL(IF(masterlist!$B$2:$B$207=\"LAB\",IF(masterlist!$E$2:$E$207=2,ROW(masterlist!$B$2:$B$207)-ROW(masterlist!$B$2)+1)),ROWS(B$26:B33))),\"\")","v":""},{"$f":"IFERROR(VLOOKUP(J33&\"-0\",'linked mastersheet'!$A$2:$K$199,7,FALSE),\"\")","v":""},{"$f":"IFERROR(VLOOKUP(J33&\"-1\",'linked mastersheet'!$A$2:$K$199,7,FALSE),\"\")","v":""},null,{"$f":"IF(ROWS(B$26:B33)<=$M$27,INDEX(masterlist!$C$2:$C$207,SMALL(IF(masterlist!$B$2:$B$207=\"DPM\",IF(masterlist!$E$2:$E$207=2,ROW(masterlist!$B$2:$B$207)-ROW(masterlist!$B$2)+1)),ROWS(B$26:B33))),\"\")","v":""},{"$f":"IFERROR(VLOOKUP(N33&\"-0\",'linked mastersheet'!$A$2:$K$199,7,FALSE),\"\")","v":""},{"$f":"IFERROR(VLOOKUP(N33&\"-1\",'linked mastersheet'!$A$2:$K$199,7,FALSE),\"\")","v":""},null,{"$f":"IF(ROWS(B$26:B33)<=$Q$27,INDEX(masterlist!$C$2:$C$207,SMALL(IF(masterlist!$B$2:$B$207=\"IEC\",IF(masterlist!$E$2:$E$207=2,ROW(masterlist!$B$2:$B$207)-ROW(masterlist!$B$2)+1)),ROWS(B$26:B33))),\"\")","v":""},{"$f":"IFERROR(VLOOKUP(R33&\"-0\",'linked mastersheet'!$A$2:$K$199,7,FALSE),\"\")","v":""},{"$f":"IFERROR(VLOOKUP(R33&\"-1\",'linked mastersheet'!$A$2:$K$199,7,FALSE),\"\")","v":""},null,{"$f":"IF(ROWS(B$26:B33)<=$U$27,INDEX(masterlist!$C$2:$C$207,SMALL(IF(masterlist!$B$2:$B$207=\"CCI\",IF(masterlist!$E$2:$E$207=2,ROW(masterlist!$B$2:$B$207)-ROW(masterlist!$B$2)+1)),ROWS(B$26:B33))),\"\")","v":""},{"$f":"IFERROR(VLOOKUP(V33&\"-0\",'linked mastersheet'!$A$2:$K$199,7,FALSE),\"\")","v":""},{"$f":"IFERROR(VLOOKUP(V33&\"-1\",'linked mastersheet'!$A$2:$K$199,7,FALSE),\"\")","v":""},null,{"$f":"IF(ROWS(B$26:B33)<=$Y$27,INDEX(masterlist!$C$2:$C$207,SMALL(IF(masterlist!$B$2:$B$207=\"LEG\",IF(masterlist!$E$2:$E$207=2,ROW(masterlist!$B$2:$B$207)-ROW(masterlist!$B$2)+1)),ROWS(B$26:B33))),\"\")","v":""},{"$f":"IFERROR(VLOOKUP(Z33&\"-0\",'linked mastersheet'!$A$2:$K$199,7,FALSE),\"\")","v":""},{"$f":"IFERROR(VLOOKUP(Z33&\"-1\",'linked mastersheet'!$A$2:$K$199,7,FALSE),\"\")","v":""}]
[null,{"$f":"IF(ROWS(B$26:B34)<=$A$27,INDEX(masterlist!$C$2:$C$207,SMALL(IF(masterlist!$B$2:$B$207=\"DCA\",IF(masterlist!$E$2:$E$207=2,ROW(masterlist!$B$2:$B$207)-ROW(masterlist!$B$2)+1)),ROWS(B$26:B34))),\"\")","v":""},{"$f":"IFERROR(VLOOKUP(B34&\"-0\",'linked mastersheet'!$A$2:$K$199,7,FALSE),\"\")","v":""},{"$f":"IFERROR(VLOOKUP(B34&\"-1\",'linked mastersheet'!$A$2:$K$199,7,FALSE),\"\")","v":""},null,{"$f":"IF(ROWS(B$26:B34)<=$E$27,INDEX(masterlist!$C$2:$C$207,SMALL(IF(masterlist!$B$2:$B$207=\"PCO\",IF(masterlist!$E$2:$E$207=2,ROW(masterlist!$B$2:$B$207)-ROW(masterlist!$B$2)+1)),ROWS(B$26:B34))),\"\")","v":"PCO-Rép-2-22"},{"$f":"IFERROR(VLOOKUP(F34&\"-0\",'linked mastersheet'!$A$2:$K$199,7,FALSE),\"\")","v":"Existe-t-il des protocoles pour observer les chiens suspects de rage ? "},{"$f":"IFERROR(VLOOKUP(F34&\"-1\",'linked mastersheet'!$A$2:$K$199,7,FALSE),\"\")","v":""},null,{"$f":"IF(ROWS(B$26:B34)<=$I$27,INDEX(masterlist!$C$2:$C$207,SMALL(IF(masterlist!$B$2:$B$207=\"LAB\",IF(masterlist!$E$2:$E$207=2,ROW(masterlist!$B$2:$B$207)-ROW(masterlist!$B$2)+1)),ROWS(B$26:B34))),\"\")","v":""},{"$f":"IFERROR(VLOOKUP(J34&\"-0\",'linked mastersheet'!$A$2:$K$199,7,FALSE),\"\")","v":""},{"$f":"IFERROR(VLOOKUP(J34&\"-1\",'linked mastersheet'!$A$2:$K$199,7,FALSE),\"\")","v":""},null,{"$f":"IF(ROWS(B$26:B34)<=$M$27,INDEX(masterlist!$C$2:$C$207,SMALL(IF(masterlist!$B$2:$B$207=\"DPM\",IF(masterlist!$E$2:$E$207=2,ROW(masterlist!$B$2:$B$207)-ROW(masterlist!$B$2)+1)),ROWS(B$26:B34))),\"\")","v":""},{"$f":"IFERROR(VLOOKUP(N34&\"-0\",'linked mastersheet'!$A$2:$K$199,7,FALSE),\"\")","v":""},{"$f":"IFERROR(VLOOKUP(N34&\"-1\",'linked mastersheet'!$A$2:$K$199,7,FALSE),\"\")","v":""},null,{"$f":"IF(ROWS(B$26:B34)<=$Q$27,INDEX(masterlist!$C$2:$C$207,SMALL(IF(masterlist!$B$2:$B$207=\"IEC\",IF(masterlist!$E$2:$E$207=2,ROW(masterlist!$B$2:$B$207)-ROW(masterlist!$B$2)+1)),ROWS(B$26:B34))),\"\")","v":""},{"$f":"IFERROR(VLOOKUP(R34&\"-0\",'linked mastersheet'!$A$2:$K$199,7,FALSE),\"\")","v":""},{"$f":"IFERROR(VLOOKUP(R34&\"-1\",'linked mastersheet'!$A$2:$K$199,7,FALSE),\"\")","v":""},null,{"$f":"IF(ROWS(B$26:B34)<=$U$27,INDEX(masterlist!$C$2:$C$207,SMALL(IF(masterlist!$B$2:$B$207=\"CCI\",IF(masterlist!$E$2:$E$207=2,ROW(masterlist!$B$2:$B$207)-ROW(masterlist!$B$2)+1)),ROWS(B$26:B34))),\"\")","v":""},{"$f":"IFERROR(VLOOKUP(V34&\"-0\",'linked mastersheet'!$A$2:$K$199,7,FALSE),\"\")","v":""},{"$f":"IFERROR(VLOOKUP(V34&\"-1\",'linked mastersheet'!$A$2:$K$199,7,FALSE),\"\")","v":""},null,{"$f":"IF(ROWS(B$26:B34)<=$Y$27,INDEX(masterlist!$C$2:$C$207,SMALL(IF(masterlist!$B$2:$B$207=\"LEG\",IF(masterlist!$E$2:$E$207=2,ROW(masterlist!$B$2:$B$207)-ROW(masterlist!$B$2)+1)),ROWS(B$26:B34))),\"\")","v":""},{"$f":"IFERROR(VLOOKUP(Z34&\"-0\",'linked mastersheet'!$A$2:$K$199,7,FALSE),\"\")","v":""},{"$f":"IFERROR(VLOOKUP(Z34&\"-1\",'linked mastersheet'!$A$2:$K$199,7,FALSE),\"\")","v":""}]
[null,{"$f":"IF(ROWS(B$26:B35)<=$A$27,INDEX(masterlist!$C$2:$C$207,SMALL(IF(masterlist!$B$2:$B$207=\"DCA\",IF(masterlist!$E$2:$E$207=2,ROW(masterlist!$B$2:$B$207)-ROW(masterlist!$B$2)+1)),ROWS(B$26:B35))),\"\")","v":""},{"$f":"IFERROR(VLOOKUP(B35&\"-0\",'linked mastersheet'!$A$2:$K$199,7,FALSE),\"\")","v":""},{"$f":"IFERROR(VLOOKUP(B35&\"-1\",'linked mastersheet'!$A$2:$K$199,7,FALSE),\"\")","v":""},null,{"$f":"IF(ROWS(B$26:B35)<=$E$27,INDEX(masterlist!$C$2:$C$207,SMALL(IF(masterlist!$B$2:$B$207=\"PCO\",IF(masterlist!$E$2:$E$207=2,ROW(masterlist!$B$2:$B$207)-ROW(masterlist!$B$2)+1)),ROWS(B$26:B35))),\"\")","v":"PCO-Rép-2-23"},{"$f":"IFERROR(VLOOKUP(F35&\"-0\",'linked mastersheet'!$A$2:$K$199,7,FALSE),\"\")","v":"Des installations ont-elles été mises en place, ou des protocoles de quarantaine à domicile sont-ils disponibles pour la mise en quarantaine des chiens suspects d'être enragés ?"},{"$f":"IFERROR(VLOOKUP(F35&\"-1\",'linked mastersheet'!$A$2:$K$199,7,FALSE),\"\")","v":""},null,{"$f":"IF(ROWS(B$26:B35)<=$I$27,INDEX(masterlist!$C$2:$C$207,SMALL(IF(masterlist!$B$2:$B$207=\"LAB\",IF(masterlist!$E$2:$E$207=2,ROW(masterlist!$B$2:$B$207)-ROW(masterlist!$B$2)+1)),ROWS(B$26:B35))),\"\")","v":""},{"$f":"IFERROR(VLOOKUP(J35&\"-0\",'linked mastersheet'!$A$2:$K$199,7,FALSE),\"\")","v":""},{"$f":"IFERROR(VLOOKUP(J35&\"-1\",'linked mastersheet'!$A$2:$K$199,7,FALSE),\"\")","v":""},null,{"$f":"IF(ROWS(B$26:B35)<=$M$27,INDEX(masterlist!$C$2:$C$207,SMALL(IF(masterlist!$B$2:$B$207=\"DPM\",IF(masterlist!$E$2:$E$207=2,ROW(masterlist!$B$2:$B$207)-ROW(masterlist!$B$2)+1)),ROWS(B$26:B35))),\"\")","v":""},{"$f":"IFERROR(VLOOKUP(N35&\"-0\",'linked mastersheet'!$A$2:$K$199,7,FALSE),\"\")","v":""},{"$f":"IFERROR(VLOOKUP(N35&\"-1\",'linked mastersheet'!$A$2:$K$199,7,FALSE),\"\")","v":""},null,{"$f":"IF(ROWS(B$26:B35)<=$Q$27,INDEX(masterlist!$C$2:$C$207,SMALL(IF(masterlist!$B$2:$B$207=\"IEC\",IF(masterlist!$E$2:$E$207=2,ROW(masterlist!$B$2:$B$207)-ROW(masterlist!$B$2)+1)),ROWS(B$26:B35))),\"\")","v":""},{"$f":"IFERROR(VLOOKUP(R35&\"-0\",'linked mastersheet'!$A$2:$K$199,7,FALSE),\"\")","v":""},{"$f":"IFERROR(VLOOKUP(R35&\"-1\",'linked mastersheet'!$A$2:$K$199,7,FALSE),\"\")","v":""},null,{"$f":"IF(ROWS(B$26:B35)<=$U$27,INDEX(masterlist!$C$2:$C$207,SMALL(IF(masterlist!$B$2:$B$207=\"CCI\",IF(masterlist!$E$2:$E$207=2,ROW(masterlist!$B$2:$B$207)-ROW(masterlist!$B$2)+1)),ROWS(B$26:B35))),\"\")","v":""},{"$f":"IFERROR(VLOOKUP(V35&\"-0\",'linked mastersheet'!$A$2:$K$199,7,FALSE),\"\")","v":""},{"$f":"IFERROR(VLOOKUP(V35&\"-1\",'linked mastersheet'!$A$2:$K$199,7,FALSE),\"\")","v":""},null,{"$f":"IF(ROWS(B$26:B35)<=$Y$27,INDEX(masterlist!$C$2:$C$207,SMALL(IF(masterlist!$B$2:$B$207=\"LEG\",IF(masterlist!$E$2:$E$207=2,ROW(masterlist!$B$2:$B$207)-ROW(masterlist!$B$2)+1)),ROWS(B$26:B35))),\"\")","v":""},{"$f":"IFERROR(VLOOKUP(Z35&\"-0\",'linked mastersheet'!$A$2:$K$199,7,FALSE),\"\")","v":""},{"$f":"IFERROR(VLOOKUP(Z35&\"-1\",'linked mastersheet'!$A$2:$K$199,7,FALSE),\"\")","v":""}]
[null,{"$f":"IF(ROWS(B$26:B36)<=$A$27,INDEX(masterlist!$C$2:$C$207,SMALL(IF(masterlist!$B$2:$B$207=\"DCA\",IF(masterlist!$E$2:$E$207=2,ROW(masterlist!$B$2:$B$207)-ROW(masterlist!$B$2)+1)),ROWS(B$26:B36))),\"\")","v":""},{"$f":"IFERROR(VLOOKUP(B36&\"-0\",'linked mastersheet'!$A$2:$K$199,7,FALSE),\"\")","v":""},{"$f":"IFERROR(VLOOKUP(B36&\"-1\",'linked mastersheet'!$A$2:$K$199,7,FALSE),\"\")","v":""},null,{"$f":"IF(ROWS(B$26:B36)<=$E$27,INDEX(masterlist!$C$2:$C$207,SMALL(IF(masterlist!$B$2:$B$207=\"PCO\",IF(masterlist!$E$2:$E$207=2,ROW(masterlist!$B$2:$B$207)-ROW(masterlist!$B$2)+1)),ROWS(B$26:B36))),\"\")","v":"PCO-Rép-2-24"},{"$f":"IFERROR(VLOOKUP(F36&\"-0\",'linked mastersheet'!$A$2:$K$199,7,FALSE),\"\")","v":"Les mesures vétérinaires d’inspection et de quarantaine aux frontières ont-elles été mises en place dans les ports d’entrée ? "},{"$f":"IFERROR(VLOOKUP(F36&\"-1\",'linked mastersheet'!$A$2:$K$199,7,FALSE),\"\")","v":""},null,{"$f":"IF(ROWS(B$26:B36)<=$I$27,INDEX(masterlist!$C$2:$C$207,SMALL(IF(masterlist!$B$2:$B$207=\"LAB\",IF(masterlist!$E$2:$E$207=2,ROW(masterlist!$B$2:$B$207)-ROW(masterlist!$B$2)+1)),ROWS(B$26:B36))),\"\")","v":""},{"$f":"IFERROR(VLOOKUP(J36&\"-0\",'linked mastersheet'!$A$2:$K$199,7,FALSE),\"\")","v":""},{"$f":"IFERROR(VLOOKUP(J36&\"-1\",'linked mastersheet'!$A$2:$K$199,7,FALSE),\"\")","v":""},null,{"$f":"IF(ROWS(B$26:B36)<=$M$27,INDEX(masterlist!$C$2:$C$207,SMALL(IF(masterlist!$B$2:$B$207=\"DPM\",IF(masterlist!$E$2:$E$207=2,ROW(masterlist!$B$2:$B$207)-ROW(masterlist!$B$2)+1)),ROWS(B$26:B36))),\"\")","v":""},{"$f":"IFERROR(VLOOKUP(N36&\"-0\",'linked mastersheet'!$A$2:$K$199,7,FALSE),\"\")","v":""},{"$f":"IFERROR(VLOOKUP(N36&\"-1\",'linked mastersheet'!$A$2:$K$199,7,FALSE),\"\")","v":""},null,{"$f":"IF(ROWS(B$26:B36)<=$Q$27,INDEX(masterlist!$C$2:$C$207,SMALL(IF(masterlist!$B$2:$B$207=\"IEC\",IF(masterlist!$E$2:$E$207=2,ROW(masterlist!$B$2:$B$207)-ROW(masterlist!$B$2)+1)),ROWS(B$26:B36))),\"\")","v":""},{"$f":"IFERROR(VLOOKUP(R36&\"-0\",'linked mastersheet'!$A$2:$K$199,7,FALSE),\"\")","v":""},{"$f":"IFERROR(VLOOKUP(R36&\"-1\",'linked mastersheet'!$A$2:$K$199,7,FALSE),\"\")","v":""},null,{"$f":"IF(ROWS(B$26:B36)<=$U$27,INDEX(masterlist!$C$2:$C$207,SMALL(IF(masterlist!$B$2:$B$207=\"CCI\",IF(masterlist!$E$2:$E$207=2,ROW(masterlist!$B$2:$B$207)-ROW(masterlist!$B$2)+1)),ROWS(B$26:B36))),\"\")","v":""},{"$f":"IFERROR(VLOOKUP(V36&\"-0\",'linked mastersheet'!$A$2:$K$199,7,FALSE),\"\")","v":""},{"$f":"IFERROR(VLOOKUP(V36&\"-1\",'linked mastersheet'!$A$2:$K$199,7,FALSE),\"\")","v":""},null,{"$f":"IF(ROWS(B$26:B36)<=$Y$27,INDEX(masterlist!$C$2:$C$207,SMALL(IF(masterlist!$B$2:$B$207=\"LEG\",IF(masterlist!$E$2:$E$207=2,ROW(masterlist!$B$2:$B$207)-ROW(masterlist!$B$2)+1)),ROWS(B$26:B36))),\"\")","v":""},{"$f":"IFERROR(VLOOKUP(Z36&\"-0\",'linked mastersheet'!$A$2:$K$199,7,FALSE),\"\")","v":""},{"$f":"IFERROR(VLOOKUP(Z36&\"-1\",'linked mastersheet'!$A$2:$K$199,7,FALSE),\"\")","v":""}]
[null,{"$f":"IF(ROWS(B$26:B37)<=$A$27,INDEX(masterlist!$C$2:$C$207,SMALL(IF(masterlist!$B$2:$B$207=\"DCA\",IF(masterlist!$E$2:$E$207=2,ROW(masterlist!$B$2:$B$207)-ROW(masterlist!$B$2)+1)),ROWS(B$26:B37))),\"\")","v":""},{"$f":"IFERROR(VLOOKUP(B37&\"-0\",'linked mastersheet'!$A$2:$K$199,7,FALSE),\"\")","v":""},{"$f":"IFERROR(VLOOKUP(B37&\"-1\",'linked mastersheet'!$A$2:$K$199,7,FALSE),\"\")","v":""},null,{"$f":"IF(ROWS(B$26:B37)<=$E$27,INDEX(masterlist!$C$2:$C$207,SMALL(IF(masterlist!$B$2:$B$207=\"PCO\",IF(masterlist!$E$2:$E$207=2,ROW(masterlist!$B$2:$B$207)-ROW(masterlist!$B$2)+1)),ROWS(B$26:B37))),\"\")","v":""},{"$f":"IFERROR(VLOOKUP(F37&\"-0\",'linked mastersheet'!$A$2:$K$199,7,FALSE),\"\")","v":""},{"$f":"IFERROR(VLOOKUP(F37&\"-1\",'linked mastersheet'!$A$2:$K$199,7,FALSE),\"\")","v":""},null,{"$f":"IF(ROWS(B$26:B37)<=$I$27,INDEX(masterlist!$C$2:$C$207,SMALL(IF(masterlist!$B$2:$B$207=\"LAB\",IF(masterlist!$E$2:$E$207=2,ROW(masterlist!$B$2:$B$207)-ROW(masterlist!$B$2)+1)),ROWS(B$26:B37))),\"\")","v":""},{"$f":"IFERROR(VLOOKUP(J37&\"-0\",'linked mastersheet'!$A$2:$K$199,7,FALSE),\"\")","v":""},{"$f":"IFERROR(VLOOKUP(J37&\"-1\",'linked mastersheet'!$A$2:$K$199,7,FALSE),\"\")","v":""},null,{"$f":"IF(ROWS(B$26:B37)<=$M$27,INDEX(masterlist!$C$2:$C$207,SMALL(IF(masterlist!$B$2:$B$207=\"DPM\",IF(masterlist!$E$2:$E$207=2,ROW(masterlist!$B$2:$B$207)-ROW(masterlist!$B$2)+1)),ROWS(B$26:B37))),\"\")","v":""},{"$f":"IFERROR(VLOOKUP(N37&\"-0\",'linked mastersheet'!$A$2:$K$199,7,FALSE),\"\")","v":""},{"$f":"IFERROR(VLOOKUP(N37&\"-1\",'linked mastersheet'!$A$2:$K$199,7,FALSE),\"\")","v":""},null,{"$f":"IF(ROWS(B$26:B37)<=$Q$27,INDEX(masterlist!$C$2:$C$207,SMALL(IF(masterlist!$B$2:$B$207=\"IEC\",IF(masterlist!$E$2:$E$207=2,ROW(masterlist!$B$2:$B$207)-ROW(masterlist!$B$2)+1)),ROWS(B$26:B37))),\"\")","v":""},{"$f":"IFERROR(VLOOKUP(R37&\"-0\",'linked mastersheet'!$A$2:$K$199,7,FALSE),\"\")","v":""},{"$f":"IFERROR(VLOOKUP(R37&\"-1\",'linked mastersheet'!$A$2:$K$199,7,FALSE),\"\")","v":""},null,{"$f":"IF(ROWS(B$26:B37)<=$U$27,INDEX(masterlist!$C$2:$C$207,SMALL(IF(masterlist!$B$2:$B$207=\"CCI\",IF(masterlist!$E$2:$E$207=2,ROW(masterlist!$B$2:$B$207)-ROW(masterlist!$B$2)+1)),ROWS(B$26:B37))),\"\")","v":""},{"$f":"IFERROR(VLOOKUP(V37&\"-0\",'linked mastersheet'!$A$2:$K$199,7,FALSE),\"\")","v":""},{"$f":"IFERROR(VLOOKUP(V37&\"-1\",'linked mastersheet'!$A$2:$K$199,7,FALSE),\"\")","v":""},null,{"$f":"IF(ROWS(B$26:B37)<=$Y$27,INDEX(masterlist!$C$2:$C$207,SMALL(IF(masterlist!$B$2:$B$207=\"LEG\",IF(masterlist!$E$2:$E$207=2,ROW(masterlist!$B$2:$B$207)-ROW(masterlist!$B$2)+1)),ROWS(B$26:B37))),\"\")","v":""},{"$f":"IFERROR(VLOOKUP(Z37&\"-0\",'linked mastersheet'!$A$2:$K$199,7,FALSE),\"\")","v":""},{"$f":"IFERROR(VLOOKUP(Z37&\"-1\",'linked mastersheet'!$A$2:$K$199,7,FALSE),\"\")","v":""}]
[null,{"$f":"IF(ROWS(B$26:B38)<=$A$27,INDEX(masterlist!$C$2:$C$207,SMALL(IF(masterlist!$B$2:$B$207=\"DCA\",IF(masterlist!$E$2:$E$207=2,ROW(masterlist!$B$2:$B$207)-ROW(masterlist!$B$2)+1)),ROWS(B$26:B38))),\"\")","v":""},{"$f":"IFERROR(VLOOKUP(B38&\"-0\",'linked mastersheet'!$A$2:$K$199,7,FALSE),\"\")","v":""},{"$f":"IFERROR(VLOOKUP(B38&\"-1\",'linked mastersheet'!$A$2:$K$199,7,FALSE),\"\")","v":""},null,{"$f":"IF(ROWS(B$26:B38)<=$E$27,INDEX(masterlist!$C$2:$C$207,SMALL(IF(masterlist!$B$2:$B$207=\"PCO\",IF(masterlist!$E$2:$E$207=2,ROW(masterlist!$B$2:$B$207)-ROW(masterlist!$B$2)+1)),ROWS(B$26:B38))),\"\")","v":""},{"$f":"IFERROR(VLOOKUP(F38&\"-0\",'linked mastersheet'!$A$2:$K$199,7,FALSE),\"\")","v":""},{"$f":"IFERROR(VLOOKUP(F38&\"-1\",'linked mastersheet'!$A$2:$K$199,7,FALSE),\"\")","v":""},null,{"$f":"IF(ROWS(B$26:B38)<=$I$27,INDEX(masterlist!$C$2:$C$207,SMALL(IF(masterlist!$B$2:$B$207=\"LAB\",IF(masterlist!$E$2:$E$207=2,ROW(masterlist!$B$2:$B$207)-ROW(masterlist!$B$2)+1)),ROWS(B$26:B38))),\"\")","v":""},{"$f":"IFERROR(VLOOKUP(J38&\"-0\",'linked mastersheet'!$A$2:$K$199,7,FALSE),\"\")","v":""},{"$f":"IFERROR(VLOOKUP(J38&\"-1\",'linked mastersheet'!$A$2:$K$199,7,FALSE),\"\")","v":""},null,{"$f":"IF(ROWS(B$26:B38)<=$M$27,INDEX(masterlist!$C$2:$C$207,SMALL(IF(masterlist!$B$2:$B$207=\"DPM\",IF(masterlist!$E$2:$E$207=2,ROW(masterlist!$B$2:$B$207)-ROW(masterlist!$B$2)+1)),ROWS(B$26:B38))),\"\")","v":""},{"$f":"IFERROR(VLOOKUP(N38&\"-0\",'linked mastersheet'!$A$2:$K$199,7,FALSE),\"\")","v":""},{"$f":"IFERROR(VLOOKUP(N38&\"-1\",'linked mastersheet'!$A$2:$K$199,7,FALSE),\"\")","v":""},null,{"$f":"IF(ROWS(B$26:B38)<=$Q$27,INDEX(masterlist!$C$2:$C$207,SMALL(IF(masterlist!$B$2:$B$207=\"IEC\",IF(masterlist!$E$2:$E$207=2,ROW(masterlist!$B$2:$B$207)-ROW(masterlist!$B$2)+1)),ROWS(B$26:B38))),\"\")","v":""},{"$f":"IFERROR(VLOOKUP(R38&\"-0\",'linked mastersheet'!$A$2:$K$199,7,FALSE),\"\")","v":""},{"$f":"IFERROR(VLOOKUP(R38&\"-1\",'linked mastersheet'!$A$2:$K$199,7,FALSE),\"\")","v":""},null,{"$f":"IF(ROWS(B$26:B38)<=$U$27,INDEX(masterlist!$C$2:$C$207,SMALL(IF(masterlist!$B$2:$B$207=\"CCI\",IF(masterlist!$E$2:$E$207=2,ROW(masterlist!$B$2:$B$207)-ROW(masterlist!$B$2)+1)),ROWS(B$26:B38))),\"\")","v":""},{"$f":"IFERROR(VLOOKUP(V38&\"-0\",'linked mastersheet'!$A$2:$K$199,7,FALSE),\"\")","v":""},{"$f":"IFERROR(VLOOKUP(V38&\"-1\",'linked mastersheet'!$A$2:$K$199,7,FALSE),\"\")","v":""},null,{"$f":"IF(ROWS(B$26:B38)<=$Y$27,INDEX(masterlist!$C$2:$C$207,SMALL(IF(masterlist!$B$2:$B$207=\"LEG\",IF(masterlist!$E$2:$E$207=2,ROW(masterlist!$B$2:$B$207)-ROW(masterlist!$B$2)+1)),ROWS(B$26:B38))),\"\")","v":""},{"$f":"IFERROR(VLOOKUP(Z38&\"-0\",'linked mastersheet'!$A$2:$K$199,7,FALSE),\"\")","v":""},{"$f":"IFERROR(VLOOKUP(Z38&\"-1\",'linked mastersheet'!$A$2:$K$199,7,FALSE),\"\")","v":""}]
[null,{"$f":"IF(ROWS(B$26:B39)<=$A$27,INDEX(masterlist!$C$2:$C$207,SMALL(IF(masterlist!$B$2:$B$207=\"DCA\",IF(masterlist!$E$2:$E$207=2,ROW(masterlist!$B$2:$B$207)-ROW(masterlist!$B$2)+1)),ROWS(B$26:B39))),\"\")","v":""},{"$f":"IFERROR(VLOOKUP(B39&\"-0\",'linked mastersheet'!$A$2:$K$199,7,FALSE),\"\")","v":""},{"$f":"IFERROR(VLOOKUP(B39&\"-1\",'linked mastersheet'!$A$2:$K$199,7,FALSE),\"\")","v":""},null,{"$f":"IF(ROWS(B$26:B39)<=$E$27,INDEX(masterlist!$C$2:$C$207,SMALL(IF(masterlist!$B$2:$B$207=\"PCO\",IF(masterlist!$E$2:$E$207=2,ROW(masterlist!$B$2:$B$207)-ROW(masterlist!$B$2)+1)),ROWS(B$26:B39))),\"\")","v":""},{"$f":"IFERROR(VLOOKUP(F39&\"-0\",'linked mastersheet'!$A$2:$K$199,7,FALSE),\"\")","v":""},{"$f":"IFERROR(VLOOKUP(F39&\"-1\",'linked mastersheet'!$A$2:$K$199,7,FALSE),\"\")","v":""},null,{"$f":"IF(ROWS(B$26:B39)<=$I$27,INDEX(masterlist!$C$2:$C$207,SMALL(IF(masterlist!$B$2:$B$207=\"LAB\",IF(masterlist!$E$2:$E$207=2,ROW(masterlist!$B$2:$B$207)-ROW(masterlist!$B$2)+1)),ROWS(B$26:B39))),\"\")","v":""},{"$f":"IFERROR(VLOOKUP(J39&\"-0\",'linked mastersheet'!$A$2:$K$199,7,FALSE),\"\")","v":""},{"$f":"IFERROR(VLOOKUP(J39&\"-1\",'linked mastersheet'!$A$2:$K$199,7,FALSE),\"\")","v":""},null,{"$f":"IF(ROWS(B$26:B39)<=$M$27,INDEX(masterlist!$C$2:$C$207,SMALL(IF(masterlist!$B$2:$B$207=\"DPM\",IF(masterlist!$E$2:$E$207=2,ROW(masterlist!$B$2:$B$207)-ROW(masterlist!$B$2)+1)),ROWS(B$26:B39))),\"\")","v":""},{"$f":"IFERROR(VLOOKUP(N39&\"-0\",'linked mastersheet'!$A$2:$K$199,7,FALSE),\"\")","v":""},{"$f":"IFERROR(VLOOKUP(N39&\"-1\",'linked mastersheet'!$A$2:$K$199,7,FALSE),\"\")","v":""},null,{"$f":"IF(ROWS(B$26:B39)<=$Q$27,INDEX(masterlist!$C$2:$C$207,SMALL(IF(masterlist!$B$2:$B$207=\"IEC\",IF(masterlist!$E$2:$E$207=2,ROW(masterlist!$B$2:$B$207)-ROW(masterlist!$B$2)+1)),ROWS(B$26:B39))),\"\")","v":""},{"$f":"IFERROR(VLOOKUP(R39&\"-0\",'linked mastersheet'!$A$2:$K$199,7,FALSE),\"\")","v":""},{"$f":"IFERROR(VLOOKUP(R39&\"-1\",'linked mastersheet'!$A$2:$K$199,7,FALSE),\"\")","v":""},null,{"$f":"IF(ROWS(B$26:B39)<=$U$27,INDEX(masterlist!$C$2:$C$207,SMALL(IF(masterlist!$B$2:$B$207=\"CCI\",IF(masterlist!$E$2:$E$207=2,ROW(masterlist!$B$2:$B$207)-ROW(masterlist!$B$2)+1)),ROWS(B$26:B39))),\"\")","v":""},{"$f":"IFERROR(VLOOKUP(V39&\"-0\",'linked mastersheet'!$A$2:$K$199,7,FALSE),\"\")","v":""},{"$f":"IFERROR(VLOOKUP(V39&\"-1\",'linked mastersheet'!$A$2:$K$199,7,FALSE),\"\")","v":""},null,{"$f":"IF(ROWS(B$26:B39)<=$Y$27,INDEX(masterlist!$C$2:$C$207,SMALL(IF(masterlist!$B$2:$B$207=\"LEG\",IF(masterlist!$E$2:$E$207=2,ROW(masterlist!$B$2:$B$207)-ROW(masterlist!$B$2)+1)),ROWS(B$26:B39))),\"\")","v":""},{"$f":"IFERROR(VLOOKUP(Z39&\"-0\",'linked mastersheet'!$A$2:$K$199,7,FALSE),\"\")","v":""},{"$f":"IFERROR(VLOOKUP(Z39&\"-1\",'linked mastersheet'!$A$2:$K$199,7,FALSE),\"\")","v":""}]
[null,{"$f":"IF(ROWS(B$26:B40)<=$A$27,INDEX(masterlist!$C$2:$C$207,SMALL(IF(masterlist!$B$2:$B$207=\"DCA\",IF(masterlist!$E$2:$E$207=2,ROW(masterlist!$B$2:$B$207)-ROW(masterlist!$B$2)+1)),ROWS(B$26:B40))),\"\")","v":""},{"$f":"IFERROR(VLOOKUP(B40&\"-0\",'linked mastersheet'!$A$2:$K$199,7,FALSE),\"\")","v":""},{"$f":"IFERROR(VLOOKUP(B40&\"-1\",'linked mastersheet'!$A$2:$K$199,7,FALSE),\"\")","v":""},null,{"$f":"IF(ROWS(B$26:B40)<=$E$27,INDEX(masterlist!$C$2:$C$207,SMALL(IF(masterlist!$B$2:$B$207=\"PCO\",IF(masterlist!$E$2:$E$207=2,ROW(masterlist!$B$2:$B$207)-ROW(masterlist!$B$2)+1)),ROWS(B$26:B40))),\"\")","v":""},{"$f":"IFERROR(VLOOKUP(F40&\"-0\",'linked mastersheet'!$A$2:$K$199,7,FALSE),\"\")","v":""},{"$f":"IFERROR(VLOOKUP(F40&\"-1\",'linked mastersheet'!$A$2:$K$199,7,FALSE),\"\")","v":""},null,{"$f":"IF(ROWS(B$26:B40)<=$I$27,INDEX(masterlist!$C$2:$C$207,SMALL(IF(masterlist!$B$2:$B$207=\"LAB\",IF(masterlist!$E$2:$E$207=2,ROW(masterlist!$B$2:$B$207)-ROW(masterlist!$B$2)+1)),ROWS(B$26:B40))),\"\")","v":""},{"$f":"IFERROR(VLOOKUP(J40&\"-0\",'linked mastersheet'!$A$2:$K$199,7,FALSE),\"\")","v":""},{"$f":"IFERROR(VLOOKUP(J40&\"-1\",'linked mastersheet'!$A$2:$K$199,7,FALSE),\"\")","v":""},null,{"$f":"IF(ROWS(B$26:B40)<=$M$27,INDEX(masterlist!$C$2:$C$207,SMALL(IF(masterlist!$B$2:$B$207=\"DPM\",IF(masterlist!$E$2:$E$207=2,ROW(masterlist!$B$2:$B$207)-ROW(masterlist!$B$2)+1)),ROWS(B$26:B40))),\"\")","v":""},{"$f":"IFERROR(VLOOKUP(N40&\"-0\",'linked mastersheet'!$A$2:$K$199,7,FALSE),\"\")","v":""},{"$f":"IFERROR(VLOOKUP(N40&\"-1\",'linked mastersheet'!$A$2:$K$199,7,FALSE),\"\")","v":""},null,{"$f":"IF(ROWS(B$26:B40)<=$Q$27,INDEX(masterlist!$C$2:$C$207,SMALL(IF(masterlist!$B$2:$B$207=\"IEC\",IF(masterlist!$E$2:$E$207=2,ROW(masterlist!$B$2:$B$207)-ROW(masterlist!$B$2)+1)),ROWS(B$26:B40))),\"\")","v":""},{"$f":"IFERROR(VLOOKUP(R40&\"-0\",'linked mastersheet'!$A$2:$K$199,7,FALSE),\"\")","v":""},{"$f":"IFERROR(VLOOKUP(R40&\"-1\",'linked mastersheet'!$A$2:$K$199,7,FALSE),\"\")","v":""},null,{"$f":"IF(ROWS(B$26:B40)<=$U$27,INDEX(masterlist!$C$2:$C$207,SMALL(IF(masterlist!$B$2:$B$207=\"CCI\",IF(masterlist!$E$2:$E$207=2,ROW(masterlist!$B$2:$B$207)-ROW(masterlist!$B$2)+1)),ROWS(B$26:B40))),\"\")","v":""},{"$f":"IFERROR(VLOOKUP(V40&\"-0\",'linked mastersheet'!$A$2:$K$199,7,FALSE),\"\")","v":""},{"$f":"IFERROR(VLOOKUP(V40&\"-1\",'linked mastersheet'!$A$2:$K$199,7,FALSE),\"\")","v":""},null,{"$f":"IF(ROWS(B$26:B40)<=$Y$27,INDEX(masterlist!$C$2:$C$207,SMALL(IF(masterlist!$B$2:$B$207=\"LEG\",IF(masterlist!$E$2:$E$207=2,ROW(masterlist!$B$2:$B$207)-ROW(masterlist!$B$2)+1)),ROWS(B$26:B40))),\"\")","v":""},{"$f":"IFERROR(VLOOKUP(Z40&\"-0\",'linked mastersheet'!$A$2:$K$199,7,FALSE),\"\")","v":""},{"$f":"IFERROR(VLOOKUP(Z40&\"-1\",'linked mastersheet'!$A$2:$K$199,7,FALSE),\"\")","v":""}]
[3,{"$f":"IF(ROWS(B$41:B41)<=$A$42,INDEX(masterlist!$C$2:$C$207,SMALL(IF(masterlist!$B$2:$B$207=\"DCA\",IF(masterlist!$E$2:$E$207=3,ROW(masterlist!$B$2:$B$207)-ROW(masterlist!$B$2)+1)),ROWS(B$41:B41))),\"\")","v":"DCA-Sur-3-17"},{"$f":"IFERROR(VLOOKUP(B41&\"-0\",'linked mastersheet'!$A$2:$K$199,7,FALSE),\"\")","v":"Le nombre de prélèvements positifs diminue-t-il d’année en année tout en conservant un taux élevé de prélèvements soumis à travers le pays ?"},{"$f":"IFERROR(VLOOKUP(B41&\"-1\",'linked mastersheet'!$A$2:$K$199,7,FALSE),\"\")","v":""},null,{"$f":"IF(ROWS(B$41:B41)<=$E$42,INDEX(masterlist!$C$2:$C$207,SMALL(IF(masterlist!$B$2:$B$207=\"PCO\",IF(masterlist!$E$2:$E$207=3,ROW(masterlist!$B$2:$B$207)-ROW(masterlist!$B$2)+1)),ROWS(B$41:B41))),\"\")","v":"PCO-Vac-3-7"},{"$f":"IFERROR(VLOOKUP(F41&\"-0\",'linked mastersheet'!$A$2:$K$199,7,FALSE),\"\")","v":""},{"$f":"IFERROR(VLOOKUP(F41&\"-1\",'linked mastersheet'!$A$2:$K$199,7,FALSE),\"\")","v":"Les vaccins préqualifiés par l’OMS ET les Immunoglobulines humaines antirabiques (RIG) sont-ils tous deux disponibles et accessibles aux personnes à haut risque et exposées dans l'ensemble du pays ?"},null,{"$f":"IF(ROWS(B$41:B41)<=$I$42,INDEX(masterlist!$C$2:$C$207,SMALL(IF(masterlist!$B$2:$B$207=\"LAB\",IF(masterlist!$E$2:$E$207=3,ROW(masterlist!$B$2:$B$207)-ROW(masterlist!$B$2)+1)),ROWS(B$41:B41))),\"\")","v":"LAB-Cap-3-9"},{"$f":"IFERROR(VLOOKUP(J41&\"-0\",'linked mastersheet'!$A$2:$K$199,7,FALSE),\"\")","v":"L’accès à un diagnostic de laboratoire fiable et rapide est-il possible dans tout le pays pour les prélèvements d'animaux (et si possible également pour les prélèvements humains et d'animaux sauvages) ?"},{"$f":"IFERROR(VLOOKUP(J41&\"-1\",'linked mastersheet'!$A$2:$K$199,7,FALSE),\"\")","v":""},null,{"$f":"IF(ROWS(B$41:B41)<=$M$42,INDEX(masterlist!$C$2:$C$207,SMALL(IF(masterlist!$B$2:$B$207=\"DPM\",IF(masterlist!$E$2:$E$207=3,ROW(masterlist!$B$2:$B$207)-ROW(masterlist!$B$2)+1)),ROWS(B$41:B41))),\"\")","v":"DPM- -3-10"},{"$f":"IFERROR(VLOOKUP(N41&\"-0\",'linked mastersheet'!$A$2:$K$199,7,FALSE),\"\")","v":"La stratégie de gestion compassionnelle des populations canines a-t-elle été évaluée et affinée sur la base des résultats obtenus dans la zone du projet (par exemple, dans le cadre d’un projet pilote) ?"},{"$f":"IFERROR(VLOOKUP(N41&\"-1\",'linked mastersheet'!$A$2:$K$199,7,FALSE),\"\")","v":""},null,{"$f":"IF(ROWS(B$41:B41)<=$Q$42,INDEX(masterlist!$C$2:$C$207,SMALL(IF(masterlist!$B$2:$B$207=\"IEC\",IF(masterlist!$E$2:$E$207=3,ROW(masterlist!$B$2:$B$207)-ROW(masterlist!$B$2)+1)),ROWS(B$41:B41))),\"\")","v":"IEC-Pla-3-17"},{"$f":"IFERROR(VLOOKUP(R41&\"-0\",'linked mastersheet'!$A$2:$K$199,7,FALSE),\"\")","v":"Des zones exemptes de rage humaine ont-elles été publiquement déclarées ? "},{"$f":"IFERROR(VLOOKUP(R41&\"-1\",'linked mastersheet'!$A$2:$K$199,7,FALSE),\"\")","v":""},null,{"$f":"IF(ROWS(B$41:B41)<=$U$42,INDEX(masterlist!$C$2:$C$207,SMALL(IF(masterlist!$B$2:$B$207=\"CCI\",IF(masterlist!$E$2:$E$207=3,ROW(masterlist!$B$2:$B$207)-ROW(masterlist!$B$2)+1)),ROWS(B$41:B41))),\"\")","v":"CCI-Pro-3-10"},{"$f":"IFERROR(VLOOKUP(V41&\"-0\",'linked mastersheet'!$A$2:$K$199,7,FALSE),\"\")","v":"Maintenant qu'il y a très peu de cas de rage animale dans votre pays, la stratégie nationale a-t-elle été affinée sur la base des données actuelles ? "},{"$f":"IFERROR(VLOOKUP(V41&\"-1\",'linked mastersheet'!$A$2:$K$199,7,FALSE),\"\")","v":""},null,{"$f":"IF(ROWS(B$41:B41)<=$Y$42,INDEX(masterlist!$C$2:$C$207,SMALL(IF(masterlist!$B$2:$B$207=\"LEG\",IF(masterlist!$E$2:$E$207=3,ROW(masterlist!$B$2:$B$207)-ROW(masterlist!$B$2)+1)),ROWS(B$41:B41))),\"\")","v":"LEG-Cad-3-11"},{"$f":"IFERROR(VLOOKUP(Z41&\"-0\",'linked mastersheet'!$A$2:$K$199,7,FALSE),\"\")","v":""},{"$f":"IFERROR(VLOOKUP(Z41&\"-1\",'linked mastersheet'!$A$2:$K$199,7,FALSE),\"\")","v":"Existe-t-il une législation comportant des dispositions relatives aux mouvements internationaux de chiens (y compris la vaccination obligatoire de ces chiens) ?"}]
[{"$f":"SUMPRODUCT((masterlist!B:B=\"DCA\")*(masterlist!E:E=3))","v":3},{"$f":"IF(ROWS(B$41:B42)<=$A$42,INDEX(masterlist!$C$2:$C$207,SMALL(IF(masterlist!$B$2:$B$207=\"DCA\",IF(masterlist!$E$2:$E$207=3,ROW(masterlist!$B$2:$B$207)-ROW(masterlist!$B$2)+1)),ROWS(B$41:B42))),\"\")","v":"DCA-Sur-3-18"},{"$f":"IFERROR(VLOOKUP(B42&\"-0\",'linked mastersheet'!$A$2:$K$199,7,FALSE),\"\")","v":"Tandis que votre pays se rapproche de l’élimination de la rage humaine, avez-vous rassemblé des preuves épidémiologiques de zones exemptes de rage humaine transmise par les chiens ?"},{"$f":"IFERROR(VLOOKUP(B42&\"-1\",'linked mastersheet'!$A$2:$K$199,7,FALSE),\"\")","v":""},{"$f":"SUMPRODUCT((masterlist!B:B=\"PCO\")*(masterlist!E:E=3))","v":8},{"$f":"IF(ROWS(B$41:B42)<=$E$42,INDEX(masterlist!$C$2:$C$207,SMALL(IF(masterlist!$B$2:$B$207=\"PCO\",IF(masterlist!$E$2:$E$207=3,ROW(masterlist!$B$2:$B$207)-ROW(masterlist!$B$2)+1)),ROWS(B$41:B42))),\"\")","v":"PCO-Vac-3-13"},{"$f":"IFERROR(VLOOKUP(F42&\"-0\",'linked mastersheet'!$A$2:$K$199,7,FALSE),\"\")","v":"Le gouvernement a-t-il la capacité (personnel formé, véhicules, aiguilles, seringues, etc…) d’atteindre 70% de couverture vaccinale de tous les chiens à risque chaque année ?  "},{"$f":"IFERROR(VLOOKUP(F42&\"-1\",'linked mastersheet'!$A$2:$K$199,7,FALSE),\"\")","v":""},{"$f":"SUMPRODUCT((masterlist!B:B=\"LAB\")*(masterlist!E:E=3))","v":2},{"$f":"IF(ROWS(B$41:B42)<=$I$42,INDEX(masterlist!$C$2:$C$207,SMALL(IF(masterlist!$B$2:$B$207=\"LAB\",IF(masterlist!$E$2:$E$207=3,ROW(masterlist!$B$2:$B$207)-ROW(masterlist!$B$2)+1)),ROWS(B$41:B42))),\"\")","v":"LAB-Cap-3-10"},{"$f":"IFERROR(VLOOKUP(J42&\"-0\",'linked mastersheet'!$A$2:$K$199,7,FALSE),\"\")","v":"Evaluez-vous régulièrement votre capacité à analyser avec précision des prélèvements suspects de rage ? "},{"$f":"IFERROR(VLOOKUP(J42&\"-1\",'linked mastersheet'!$A$2:$K$199,7,FALSE),\"\")","v":""},{"$f":"SUMPRODUCT((masterlist!B:B=\"DPM\")*(masterlist!E:E=3))","v":3},{"$f":"IF(ROWS(B$41:B42)<=$M$42,INDEX(masterlist!$C$2:$C$207,SMALL(IF(masterlist!$B$2:$B$207=\"DPM\",IF(masterlist!$E$2:$E$207=3,ROW(masterlist!$B$2:$B$207)-ROW(masterlist!$B$2)+1)),ROWS(B$41:B42))),\"\")","v":"DPM- -3-11"},{"$f":"IFERROR(VLOOKUP(N42&\"-0\",'linked mastersheet'!$A$2:$K$199,7,FALSE),\"\")","v":"Des campagnes de sensibilisation du public à la gestion compassionnelle des populations canines ont-elles été étendues à d’autres régions du pays ? "},{"$f":"IFERROR(VLOOKUP(N42&\"-1\",'linked mastersheet'!$A$2:$K$199,7,FALSE),\"\")","v":""},{"$f":"SUMPRODUCT((masterlist!B:B=\"IEC\")*(masterlist!E:E=3))","v":1},{"$f":"IF(ROWS(B$41:B42)<=$Q$42,INDEX(masterlist!$C$2:$C$207,SMALL(IF(masterlist!$B$2:$B$207=\"IEC\",IF(masterlist!$E$2:$E$207=3,ROW(masterlist!$B$2:$B$207)-ROW(masterlist!$B$2)+1)),ROWS(B$41:B42))),\"\")","v":""},{"$f":"IFERROR(VLOOKUP(R42&\"-0\",'linked mastersheet'!$A$2:$K$199,7,FALSE),\"\")","v":""},{"$f":"IFERROR(VLOOKUP(R42&\"-1\",'linked mastersheet'!$A$2:$K$199,7,FALSE),\"\")","v":""},{"$f":"SUMPRODUCT((masterlist!B:B=\"CCI\")*(masterlist!E:E=3))","v":1},{"$f":"IF(ROWS(B$41:B42)<=$U$42,INDEX(masterlist!$C$2:$C$207,SMALL(IF(masterlist!$B$2:$B$207=\"CCI\",IF(masterlist!$E$2:$E$207=3,ROW(masterlist!$B$2:$B$207)-ROW(masterlist!$B$2)+1)),ROWS(B$41:B42))),\"\")","v":""},{"$f":"IFERROR(VLOOKUP(V42&\"-0\",'linked mastersheet'!$A$2:$K$199,7,FALSE),\"\")","v":""},{"$f":"IFERROR(VLOOKUP(V42&\"-1\",'linked mastersheet'!$A$2:$K$199,7,FALSE),\"\")","v":""},{"$f":"SUMPRODUCT((masterlist!B:B=\"LEG\")*(masterlist!E:E=3))","v":2},{"$f":"IF(ROWS(B$41:B42)<=$Y$42,INDEX(masterlist!$C$2:$C$207,SMALL(IF(masterlist!$B$2:$B$207=\"LEG\",IF(masterlist!$E$2:$E$207=3,ROW(masterlist!$B$2:$B$207)-ROW(masterlist!$B$2)+1)),ROWS(B$41:B42))),\"\")","v":"LEG-Cad-3-12"},{"$f":"IFERROR(VLOOKUP(Z42&\"-0\",'linked mastersheet'!$A$2:$K$199,7,FALSE),\"\")","v":""},{"$f":"IFERROR(VLOOKUP(Z42&\"-1\",'linked mastersheet'!$A$2:$K$199,7,FALSE),\"\")","v":"La législation pertinente est-elle appliquée au niveau national ?"}]
[null,{"$f":"IF(ROWS(B$41:B43)<=$A$42,INDEX(masterlist!$C$2:$C$207,SMALL(IF(masterlist!$B$2:$B$207=\"DCA\",IF(masterlist!$E$2:$E$207=3,ROW(masterlist!$B$2:$B$207)-ROW(masterlist!$B$2)+1)),ROWS(B$41:B43))),\"\")","v":"DCA-Sur-3-19"},{"$f":"IFERROR(VLOOKUP(B43&\"-0\",'linked mastersheet'!$A$2:$K$199,7,FALSE),\"\")","v":"Avez-vous rassemblé des preuves épidémiologiques de zones où les cas de rage animale causées par le variant de rage canine ont été absents pendant une période d’au moins 2 ans ?"},{"$f":"IFERROR(VLOOKUP(B43&\"-1\",'linked mastersheet'!$A$2:$K$199,7,FALSE),\"\")","v":""},null,{"$f":"IF(ROWS(B$41:B43)<=$E$42,INDEX(masterlist!$C$2:$C$207,SMALL(IF(masterlist!$B$2:$B$207=\"PCO\",IF(masterlist!$E$2:$E$207=3,ROW(masterlist!$B$2:$B$207)-ROW(masterlist!$B$2)+1)),ROWS(B$41:B43))),\"\")","v":"PCO-Vac-3-14"},{"$f":"IFERROR(VLOOKUP(F43&\"-0\",'linked mastersheet'!$A$2:$K$199,7,FALSE),\"\")","v":"Les campagnes de vaccination de masse des chiens atteignent-elles au moins 70% de la population canine à risque dans le pays chaque année ? "},{"$f":"IFERROR(VLOOKUP(F43&\"-1\",'linked mastersheet'!$A$2:$K$199,7,FALSE),\"\")","v":""},null,{"$f":"IF(ROWS(B$41:B43)<=$I$42,INDEX(masterlist!$C$2:$C$207,SMALL(IF(masterlist!$B$2:$B$207=\"LAB\",IF(masterlist!$E$2:$E$207=3,ROW(masterlist!$B$2:$B$207)-ROW(masterlist!$B$2)+1)),ROWS(B$41:B43))),\"\")","v":""},{"$f":"IFERROR(VLOOKUP(J43&\"-0\",'linked mastersheet'!$A$2:$K$199,7,FALSE),\"\")","v":""},{"$f":"IFERROR(VLOOKUP(J43&\"-1\",'linked mastersheet'!$A$2:$K$199,7,FALSE),\"\")","v":""},null,{"$f":"IF(ROWS(B$41:B43)<=$M$42,INDEX(masterlist!$C$2:$C$207,SMALL(IF(masterlist!$B$2:$B$207=\"DPM\",IF(masterlist!$E$2:$E$207=3,ROW(masterlist!$B$2:$B$207)-ROW(masterlist!$B$2)+1)),ROWS(B$41:B43))),\"\")","v":"DPM- -3-12"},{"$f":"IFERROR(VLOOKUP(N43&\"-0\",'linked mastersheet'!$A$2:$K$199,7,FALSE),\"\")","v":"La plupart des professionnels impliqués dans la gestion compassionnelle des populations canines ont-ils complété une formation de vétérinaire ou de technicien animalier sur ce sujet dans l’ensemble du pays ? "},{"$f":"IFERROR(VLOOKUP(N43&\"-1\",'linked mastersheet'!$A$2:$K$199,7,FALSE),\"\")","v":""},null,{"$f":"IF(ROWS(B$41:B43)<=$Q$42,INDEX(masterlist!$C$2:$C$207,SMALL(IF(masterlist!$B$2:$B$207=\"IEC\",IF(masterlist!$E$2:$E$207=3,ROW(masterlist!$B$2:$B$207)-ROW(masterlist!$B$2)+1)),ROWS(B$41:B43))),\"\")","v":""},{"$f":"IFERROR(VLOOKUP(R43&\"-0\",'linked mastersheet'!$A$2:$K$199,7,FALSE),\"\")","v":""},{"$f":"IFERROR(VLOOKUP(R43&\"-1\",'linked mastersheet'!$A$2:$K$199,7,FALSE),\"\")","v":""},null,{"$f":"IF(ROWS(B$41:B43)<=$U$42,INDEX(masterlist!$C$2:$C$207,SMALL(IF(masterlist!$B$2:$B$207=\"CCI\",IF(masterlist!$E$2:$E$207=3,ROW(masterlist!$B$2:$B$207)-ROW(masterlist!$B$2)+1)),ROWS(B$41:B43))),\"\")","v":""},{"$f":"IFERROR(VLOOKUP(V43&\"-0\",'linked mastersheet'!$A$2:$K$199,7,FALSE),\"\")","v":""},{"$f":"IFERROR(VLOOKUP(V43&\"-1\",'linked mastersheet'!$A$2:$K$199,7,FALSE),\"\")","v":""},null,{"$f":"IF(ROWS(B$41:B43)<=$Y$42,INDEX(masterlist!$C$2:$C$207,SMALL(IF(masterlist!$B$2:$B$207=\"LEG\",IF(masterlist!$E$2:$E$207=3,ROW(masterlist!$B$2:$B$207)-ROW(masterlist!$B$2)+1)),ROWS(B$41:B43))),\"\")","v":""},{"$f":"IFERROR(VLOOKUP(Z43&\"-0\",'linked mastersheet'!$A$2:$K$199,7,FALSE),\"\")","v":""},{"$f":"IFERROR(VLOOKUP(Z43&\"-1\",'linked mastersheet'!$A$2:$K$199,7,FALSE),\"\")","v":""}]
[null,{"$f":"IF(ROWS(B$41:B44)<=$A$42,INDEX(masterlist!$C$2:$C$207,SMALL(IF(masterlist!$B$2:$B$207=\"DCA\",IF(masterlist!$E$2:$E$207=3,ROW(masterlist!$B$2:$B$207)-ROW(masterlist!$B$2)+1)),ROWS(B$41:B44))),\"\")","v":""},{"$f":"IFERROR(VLOOKUP(B44&\"-0\",'linked mastersheet'!$A$2:$K$199,7,FALSE),\"\")","v":""},{"$f":"IFERROR(VLOOKUP(B44&\"-1\",'linked mastersheet'!$A$2:$K$199,7,FALSE),\"\")","v":""},null,{"$f":"IF(ROWS(B$41:B44)<=$E$42,INDEX(masterlist!$C$2:$C$207,SMALL(IF(masterlist!$B$2:$B$207=\"PCO\",IF(masterlist!$E$2:$E$207=3,ROW(masterlist!$B$2:$B$207)-ROW(masterlist!$B$2)+1)),ROWS(B$41:B44))),\"\")","v":"PCO-Vac-3-15"},{"$f":"IFERROR(VLOOKUP(F44&\"-0\",'linked mastersheet'!$A$2:$K$199,7,FALSE),\"\")","v":"Des enquêtes* post-vaccinales sont-elles effectuées pour évaluer le taux de couverture vaccinale des chiens ? "},{"$f":"IFERROR(VLOOKUP(F44&\"-1\",'linked mastersheet'!$A$2:$K$199,7,FALSE),\"\")","v":""},null,{"$f":"IF(ROWS(B$41:B44)<=$I$42,INDEX(masterlist!$C$2:$C$207,SMALL(IF(masterlist!$B$2:$B$207=\"LAB\",IF(masterlist!$E$2:$E$207=3,ROW(masterlist!$B$2:$B$207)-ROW(masterlist!$B$2)+1)),ROWS(B$41:B44))),\"\")","v":""},{"$f":"IFERROR(VLOOKUP(J44&\"-0\",'linked mastersheet'!$A$2:$K$199,7,FALSE),\"\")","v":""},{"$f":"IFERROR(VLOOKUP(J44&\"-1\",'linked mastersheet'!$A$2:$K$199,7,FALSE),\"\")","v":""},null,{"$f":"IF(ROWS(B$41:B44)<=$M$42,INDEX(masterlist!$C$2:$C$207,SMALL(IF(masterlist!$B$2:$B$207=\"DPM\",IF(masterlist!$E$2:$E$207=3,ROW(masterlist!$B$2:$B$207)-ROW(masterlist!$B$2)+1)),ROWS(B$41:B44))),\"\")","v":""},{"$f":"IFERROR(VLOOKUP(N44&\"-0\",'linked mastersheet'!$A$2:$K$199,7,FALSE),\"\")","v":""},{"$f":"IFERROR(VLOOKUP(N44&\"-1\",'linked mastersheet'!$A$2:$K$199,7,FALSE),\"\")","v":""},null,{"$f":"IF(ROWS(B$41:B44)<=$Q$42,INDEX(masterlist!$C$2:$C$207,SMALL(IF(masterlist!$B$2:$B$207=\"IEC\",IF(masterlist!$E$2:$E$207=3,ROW(masterlist!$B$2:$B$207)-ROW(masterlist!$B$2)+1)),ROWS(B$41:B44))),\"\")","v":""},{"$f":"IFERROR(VLOOKUP(R44&\"-0\",'linked mastersheet'!$A$2:$K$199,7,FALSE),\"\")","v":""},{"$f":"IFERROR(VLOOKUP(R44&\"-1\",'linked mastersheet'!$A$2:$K$199,7,FALSE),\"\")","v":""},null,{"$f":"IF(ROWS(B$41:B44)<=$U$42,INDEX(masterlist!$C$2:$C$207,SMALL(IF(masterlist!$B$2:$B$207=\"CCI\",IF(masterlist!$E$2:$E$207=3,ROW(masterlist!$B$2:$B$207)-ROW(masterlist!$B$2)+1)),ROWS(B$41:B44))),\"\")","v":""},{"$f":"IFERROR(VLOOKUP(V44&\"-0\",'linked mastersheet'!$A$2:$K$199,7,FALSE),\"\")","v":""},{"$f":"IFERROR(VLOOKUP(V44&\"-1\",'linked mastersheet'!$A$2:$K$199,7,FALSE),\"\")","v":""},null,{"$f":"IF(ROWS(B$41:B44)<=$Y$42,INDEX(masterlist!$C$2:$C$207,SMALL(IF(masterlist!$B$2:$B$207=\"LEG\",IF(masterlist!$E$2:$E$207=3,ROW(masterlist!$B$2:$B$207)-ROW(masterlist!$B$2)+1)),ROWS(B$41:B44))),\"\")","v":""},{"$f":"IFERROR(VLOOKUP(Z44&\"-0\",'linked mastersheet'!$A$2:$K$199,7,FALSE),\"\")","v":""},{"$f":"IFERROR(VLOOKUP(Z44&\"-1\",'linked mastersheet'!$A$2:$K$199,7,FALSE),\"\")","v":""}]
[null,{"$f":"IF(ROWS(B$41:B45)<=$A$42,INDEX(masterlist!$C$2:$C$207,SMALL(IF(masterlist!$B$2:$B$207=\"DCA\",IF(masterlist!$E$2:$E$207=3,ROW(masterlist!$B$2:$B$207)-ROW(masterlist!$B$2)+1)),ROWS(B$41:B45))),\"\")","v":""},{"$f":"IFERROR(VLOOKUP(B45&\"-0\",'linked mastersheet'!$A$2:$K$199,7,FALSE),\"\")","v":""},{"$f":"IFERROR(VLOOKUP(B45&\"-1\",'linked mastersheet'!$A$2:$K$199,7,FALSE),\"\")","v":""},null,{"$f":"IF(ROWS(B$41:B45)<=$E$42,INDEX(masterlist!$C$2:$C$207,SMALL(IF(masterlist!$B$2:$B$207=\"PCO\",IF(masterlist!$E$2:$E$207=3,ROW(masterlist!$B$2:$B$207)-ROW(masterlist!$B$2)+1)),ROWS(B$41:B45))),\"\")","v":"PCO-Rép-3-25"},{"$f":"IFERROR(VLOOKUP(F45&\"-0\",'linked mastersheet'!$A$2:$K$199,7,FALSE),\"\")","v":"Existe-t-il une capacité à mener des enquêtes conjointes sur le terrain et à planifier des réponses à des foyers de rage humaine dans l'ensemble du pays ?"},{"$f":"IFERROR(VLOOKUP(F45&\"-1\",'linked mastersheet'!$A$2:$K$199,7,FALSE),\"\")","v":""},null,{"$f":"IF(ROWS(B$41:B45)<=$I$42,INDEX(masterlist!$C$2:$C$207,SMALL(IF(masterlist!$B$2:$B$207=\"LAB\",IF(masterlist!$E$2:$E$207=3,ROW(masterlist!$B$2:$B$207)-ROW(masterlist!$B$2)+1)),ROWS(B$41:B45))),\"\")","v":""},{"$f":"IFERROR(VLOOKUP(J45&\"-0\",'linked mastersheet'!$A$2:$K$199,7,FALSE),\"\")","v":""},{"$f":"IFERROR(VLOOKUP(J45&\"-1\",'linked mastersheet'!$A$2:$K$199,7,FALSE),\"\")","v":""},null,{"$f":"IF(ROWS(B$41:B45)<=$M$42,INDEX(masterlist!$C$2:$C$207,SMALL(IF(masterlist!$B$2:$B$207=\"DPM\",IF(masterlist!$E$2:$E$207=3,ROW(masterlist!$B$2:$B$207)-ROW(masterlist!$B$2)+1)),ROWS(B$41:B45))),\"\")","v":""},{"$f":"IFERROR(VLOOKUP(N45&\"-0\",'linked mastersheet'!$A$2:$K$199,7,FALSE),\"\")","v":""},{"$f":"IFERROR(VLOOKUP(N45&\"-1\",'linked mastersheet'!$A$2:$K$199,7,FALSE),\"\")","v":""},null,{"$f":"IF(ROWS(B$41:B45)<=$Q$42,INDEX(masterlist!$C$2:$C$207,SMALL(IF(masterlist!$B$2:$B$207=\"IEC\",IF(masterlist!$E$2:$E$207=3,ROW(masterlist!$B$2:$B$207)-ROW(masterlist!$B$2)+1)),ROWS(B$41:B45))),\"\")","v":""},{"$f":"IFERROR(VLOOKUP(R45&\"-0\",'linked mastersheet'!$A$2:$K$199,7,FALSE),\"\")","v":""},{"$f":"IFERROR(VLOOKUP(R45&\"-1\",'linked mastersheet'!$A$2:$K$199,7,FALSE),\"\")","v":""},null,{"$f":"IF(ROWS(B$41:B45)<=$U$42,INDEX(masterlist!$C$2:$C$207,SMALL(IF(masterlist!$B$2:$B$207=\"CCI\",IF(masterlist!$E$2:$E$207=3,ROW(masterlist!$B$2:$B$207)-ROW(masterlist!$B$2)+1)),ROWS(B$41:B45))),\"\")","v":""},{"$f":"IFERROR(VLOOKUP(V45&\"-0\",'linked mastersheet'!$A$2:$K$199,7,FALSE),\"\")","v":""},{"$f":"IFERROR(VLOOKUP(V45&\"-1\",'linked mastersheet'!$A$2:$K$199,7,FALSE),\"\")","v":""},null,{"$f":"IF(ROWS(B$41:B45)<=$Y$42,INDEX(masterlist!$C$2:$C$207,SMALL(IF(masterlist!$B$2:$B$207=\"LEG\",IF(masterlist!$E$2:$E$207=3,ROW(masterlist!$B$2:$B$207)-ROW(masterlist!$B$2)+1)),ROWS(B$41:B45))),\"\")","v":""},{"$f":"IFERROR(VLOOKUP(Z45&\"-0\",'linked mastersheet'!$A$2:$K$199,7,FALSE),\"\")","v":""},{"$f":"IFERROR(VLOOKUP(Z45&\"-1\",'linked mastersheet'!$A$2:$K$199,7,FALSE),\"\")","v":""}]
[null,{"$f":"IF(ROWS(B$41:B46)<=$A$42,INDEX(masterlist!$C$2:$C$207,SMALL(IF(masterlist!$B$2:$B$207=\"DCA\",IF(masterlist!$E$2:$E$207=3,ROW(masterlist!$B$2:$B$207)-ROW(masterlist!$B$2)+1)),ROWS(B$41:B46))),\"\")","v":""},{"$f":"IFERROR(VLOOKUP(B46&\"-0\",'linked mastersheet'!$A$2:$K$199,7,FALSE),\"\")","v":""},{"$f":"IFERROR(VLOOKUP(B46&\"-1\",'linked mastersheet'!$A$2:$K$199,7,FALSE),\"\")","v":""},null,{"$f":"IF(ROWS(B$41:B46)<=$E$42,INDEX(masterlist!$C$2:$C$207,SMALL(IF(masterlist!$B$2:$B$207=\"PCO\",IF(masterlist!$E$2:$E$207=3,ROW(masterlist!$B$2:$B$207)-ROW(masterlist!$B$2)+1)),ROWS(B$41:B46))),\"\")","v":"PCO-Rép-3-26"},{"$f":"IFERROR(VLOOKUP(F46&\"-0\",'linked mastersheet'!$A$2:$K$199,7,FALSE),\"\")","v":"Un dialogue a-t-il été initié avec les pays voisins pour prévenir la réintroduction de la rage dans des zones désignées comme étant exemptes de rage ?"},{"$f":"IFERROR(VLOOKUP(F46&\"-1\",'linked mastersheet'!$A$2:$K$199,7,FALSE),\"\")","v":""},null,{"$f":"IF(ROWS(B$41:B46)<=$I$42,INDEX(masterlist!$C$2:$C$207,SMALL(IF(masterlist!$B$2:$B$207=\"LAB\",IF(masterlist!$E$2:$E$207=3,ROW(masterlist!$B$2:$B$207)-ROW(masterlist!$B$2)+1)),ROWS(B$41:B46))),\"\")","v":""},{"$f":"IFERROR(VLOOKUP(J46&\"-0\",'linked mastersheet'!$A$2:$K$199,7,FALSE),\"\")","v":""},{"$f":"IFERROR(VLOOKUP(J46&\"-1\",'linked mastersheet'!$A$2:$K$199,7,FALSE),\"\")","v":""},null,{"$f":"IF(ROWS(B$41:B46)<=$M$42,INDEX(masterlist!$C$2:$C$207,SMALL(IF(masterlist!$B$2:$B$207=\"DPM\",IF(masterlist!$E$2:$E$207=3,ROW(masterlist!$B$2:$B$207)-ROW(masterlist!$B$2)+1)),ROWS(B$41:B46))),\"\")","v":""},{"$f":"IFERROR(VLOOKUP(N46&\"-0\",'linked mastersheet'!$A$2:$K$199,7,FALSE),\"\")","v":""},{"$f":"IFERROR(VLOOKUP(N46&\"-1\",'linked mastersheet'!$A$2:$K$199,7,FALSE),\"\")","v":""},null,{"$f":"IF(ROWS(B$41:B46)<=$Q$42,INDEX(masterlist!$C$2:$C$207,SMALL(IF(masterlist!$B$2:$B$207=\"IEC\",IF(masterlist!$E$2:$E$207=3,ROW(masterlist!$B$2:$B$207)-ROW(masterlist!$B$2)+1)),ROWS(B$41:B46))),\"\")","v":""},{"$f":"IFERROR(VLOOKUP(R46&\"-0\",'linked mastersheet'!$A$2:$K$199,7,FALSE),\"\")","v":""},{"$f":"IFERROR(VLOOKUP(R46&\"-1\",'linked mastersheet'!$A$2:$K$199,7,FALSE),\"\")","v":""},null,{"$f":"IF(ROWS(B$41:B46)<=$U$42,INDEX(masterlist!$C$2:$C$207,SMALL(IF(masterlist!$B$2:$B$207=\"CCI\",IF(masterlist!$E$2:$E$207=3,ROW(masterlist!$B$2:$B$207)-ROW(masterlist!$B$2)+1)),ROWS(B$41:B46))),\"\")","v":""},{"$f":"IFERROR(VLOOKUP(V46&\"-0\",'linked mastersheet'!$A$2:$K$199,7,FALSE),\"\")","v":""},{"$f":"IFERROR(VLOOKUP(V46&\"-1\",'linked mastersheet'!$A$2:$K$199,7,FALSE),\"\")","v":""},null,{"$f":"IF(ROWS(B$41:B46)<=$Y$42,INDEX(masterlist!$C$2:$C$207,SMALL(IF(masterlist!$B$2:$B$207=\"LEG\",IF(masterlist!$E$2:$E$207=3,ROW(masterlist!$B$2:$B$207)-ROW(masterlist!$B$2)+1)),ROWS(B$41:B46))),\"\")","v":""},{"$f":"IFERROR(VLOOKUP(Z46&\"-0\",'linked mastersheet'!$A$2:$K$199,7,FALSE),\"\")","v":""},{"$f":"IFERROR(VLOOKUP(Z46&\"-1\",'linked mastersheet'!$A$2:$K$199,7,FALSE),\"\")","v":""}]
[null,{"$f":"IF(ROWS(B$41:B47)<=$A$42,INDEX(masterlist!$C$2:$C$207,SMALL(IF(masterlist!$B$2:$B$207=\"DCA\",IF(masterlist!$E$2:$E$207=3,ROW(masterlist!$B$2:$B$207)-ROW(masterlist!$B$2)+1)),ROWS(B$41:B47))),\"\")","v":""},{"$f":"IFERROR(VLOOKUP(B47&\"-0\",'linked mastersheet'!$A$2:$K$199,7,FALSE),\"\")","v":""},{"$f":"IFERROR(VLOOKUP(B47&\"-1\",'linked mastersheet'!$A$2:$K$199,7,FALSE),\"\")","v":""},null,{"$f":"IF(ROWS(B$41:B47)<=$E$42,INDEX(masterlist!$C$2:$C$207,SMALL(IF(masterlist!$B$2:$B$207=\"PCO\",IF(masterlist!$E$2:$E$207=3,ROW(masterlist!$B$2:$B$207)-ROW(masterlist!$B$2)+1)),ROWS(B$41:B47))),\"\")","v":"PCO-Rép-3-27"},{"$f":"IFERROR(VLOOKUP(F47&\"-0\",'linked mastersheet'!$A$2:$K$199,7,FALSE),\"\")","v":"Existe-t-il une capacité à mener des enquêtes conjointes sur le terrain et à planifier des réponses à des foyers de rage pour tous les cas de rage animale   dans l'ensemble du pays ?"},{"$f":"IFERROR(VLOOKUP(F47&\"-1\",'linked mastersheet'!$A$2:$K$199,7,FALSE),\"\")","v":""},null,{"$f":"IF(ROWS(B$41:B47)<=$I$42,INDEX(masterlist!$C$2:$C$207,SMALL(IF(masterlist!$B$2:$B$207=\"LAB\",IF(masterlist!$E$2:$E$207=3,ROW(masterlist!$B$2:$B$207)-ROW(masterlist!$B$2)+1)),ROWS(B$41:B47))),\"\")","v":""},{"$f":"IFERROR(VLOOKUP(J47&\"-0\",'linked mastersheet'!$A$2:$K$199,7,FALSE),\"\")","v":""},{"$f":"IFERROR(VLOOKUP(J47&\"-1\",'linked mastersheet'!$A$2:$K$199,7,FALSE),\"\")","v":""},null,{"$f":"IF(ROWS(B$41:B47)<=$M$42,INDEX(masterlist!$C$2:$C$207,SMALL(IF(masterlist!$B$2:$B$207=\"DPM\",IF(masterlist!$E$2:$E$207=3,ROW(masterlist!$B$2:$B$207)-ROW(masterlist!$B$2)+1)),ROWS(B$41:B47))),\"\")","v":""},{"$f":"IFERROR(VLOOKUP(N47&\"-0\",'linked mastersheet'!$A$2:$K$199,7,FALSE),\"\")","v":""},{"$f":"IFERROR(VLOOKUP(N47&\"-1\",'linked mastersheet'!$A$2:$K$199,7,FALSE),\"\")","v":""},null,{"$f":"IF(ROWS(B$41:B47)<=$Q$42,INDEX(masterlist!$C$2:$C$207,SMALL(IF(masterlist!$B$2:$B$207=\"IEC\",IF(masterlist!$E$2:$E$207=3,ROW(masterlist!$B$2:$B$207)-ROW(masterlist!$B$2)+1)),ROWS(B$41:B47))),\"\")","v":""},{"$f":"IFERROR(VLOOKUP(R47&\"-0\",'linked mastersheet'!$A$2:$K$199,7,FALSE),\"\")","v":""},{"$f":"IFERROR(VLOOKUP(R47&\"-1\",'linked mastersheet'!$A$2:$K$199,7,FALSE),\"\")","v":""},null,{"$f":"IF(ROWS(B$41:B47)<=$U$42,INDEX(masterlist!$C$2:$C$207,SMALL(IF(masterlist!$B$2:$B$207=\"CCI\",IF(masterlist!$E$2:$E$207=3,ROW(masterlist!$B$2:$B$207)-ROW(masterlist!$B$2)+1)),ROWS(B$41:B47))),\"\")","v":""},{"$f":"IFERROR(VLOOKUP(V47&\"-0\",'linked mastersheet'!$A$2:$K$199,7,FALSE),\"\")","v":""},{"$f":"IFERROR(VLOOKUP(V47&\"-1\",'linked mastersheet'!$A$2:$K$199,7,FALSE),\"\")","v":""},null,{"$f":"IF(ROWS(B$41:B47)<=$Y$42,INDEX(masterlist!$C$2:$C$207,SMALL(IF(masterlist!$B$2:$B$207=\"LEG\",IF(masterlist!$E$2:$E$207=3,ROW(masterlist!$B$2:$B$207)-ROW(masterlist!$B$2)+1)),ROWS(B$41:B47))),\"\")","v":""},{"$f":"IFERROR(VLOOKUP(Z47&\"-0\",'linked mastersheet'!$A$2:$K$199,7,FALSE),\"\")","v":""},{"$f":"IFERROR(VLOOKUP(Z47&\"-1\",'linked mastersheet'!$A$2:$K$199,7,FALSE),\"\")","v":""}]
[null,{"$f":"IF(ROWS(B$41:B48)<=$A$42,INDEX(masterlist!$C$2:$C$207,SMALL(IF(masterlist!$B$2:$B$207=\"DCA\",IF(masterlist!$E$2:$E$207=3,ROW(masterlist!$B$2:$B$207)-ROW(masterlist!$B$2)+1)),ROWS(B$41:B48))),\"\")","v":""},{"$f":"IFERROR(VLOOKUP(B48&\"-0\",'linked mastersheet'!$A$2:$K$199,7,FALSE),\"\")","v":""},{"$f":"IFERROR(VLOOKUP(B48&\"-1\",'linked mastersheet'!$A$2:$K$199,7,FALSE),\"\")","v":""},null,{"$f":"IF(ROWS(B$41:B48)<=$E$42,INDEX(masterlist!$C$2:$C$207,SMALL(IF(masterlist!$B$2:$B$207=\"PCO\",IF(masterlist!$E$2:$E$207=3,ROW(masterlist!$B$2:$B$207)-ROW(masterlist!$B$2)+1)),ROWS(B$41:B48))),\"\")","v":"PCO-Rép-3-28"},{"$f":"IFERROR(VLOOKUP(F48&\"-0\",'linked mastersheet'!$A$2:$K$199,7,FALSE),\"\")","v":"Alors que votre pays se rapproche de l’élimination de la rage humaine, des enquêtes de terrain sont-elles menées pour TOUS les cas suspects de rage humaine dans l’ensemble du pays ? "},{"$f":"IFERROR(VLOOKUP(F48&\"-1\",'linked mastersheet'!$A$2:$K$199,7,FALSE),\"\")","v":""},null,{"$f":"IF(ROWS(B$41:B48)<=$I$42,INDEX(masterlist!$C$2:$C$207,SMALL(IF(masterlist!$B$2:$B$207=\"LAB\",IF(masterlist!$E$2:$E$207=3,ROW(masterlist!$B$2:$B$207)-ROW(masterlist!$B$2)+1)),ROWS(B$41:B48))),\"\")","v":""},{"$f":"IFERROR(VLOOKUP(J48&\"-0\",'linked mastersheet'!$A$2:$K$199,7,FALSE),\"\")","v":""},{"$f":"IFERROR(VLOOKUP(J48&\"-1\",'linked mastersheet'!$A$2:$K$199,7,FALSE),\"\")","v":""},null,{"$f":"IF(ROWS(B$41:B48)<=$M$42,INDEX(masterlist!$C$2:$C$207,SMALL(IF(masterlist!$B$2:$B$207=\"DPM\",IF(masterlist!$E$2:$E$207=3,ROW(masterlist!$B$2:$B$207)-ROW(masterlist!$B$2)+1)),ROWS(B$41:B48))),\"\")","v":""},{"$f":"IFERROR(VLOOKUP(N48&\"-0\",'linked mastersheet'!$A$2:$K$199,7,FALSE),\"\")","v":""},{"$f":"IFERROR(VLOOKUP(N48&\"-1\",'linked mastersheet'!$A$2:$K$199,7,FALSE),\"\")","v":""},null,{"$f":"IF(ROWS(B$41:B48)<=$Q$42,INDEX(masterlist!$C$2:$C$207,SMALL(IF(masterlist!$B$2:$B$207=\"IEC\",IF(masterlist!$E$2:$E$207=3,ROW(masterlist!$B$2:$B$207)-ROW(masterlist!$B$2)+1)),ROWS(B$41:B48))),\"\")","v":""},{"$f":"IFERROR(VLOOKUP(R48&\"-0\",'linked mastersheet'!$A$2:$K$199,7,FALSE),\"\")","v":""},{"$f":"IFERROR(VLOOKUP(R48&\"-1\",'linked mastersheet'!$A$2:$K$199,7,FALSE),\"\")","v":""},null,{"$f":"IF(ROWS(B$41:B48)<=$U$42,INDEX(masterlist!$C$2:$C$207,SMALL(IF(masterlist!$B$2:$B$207=\"CCI\",IF(masterlist!$E$2:$E$207=3,ROW(masterlist!$B$2:$B$207)-ROW(masterlist!$B$2)+1)),ROWS(B$41:B48))),\"\")","v":""},{"$f":"IFERROR(VLOOKUP(V48&\"-0\",'linked mastersheet'!$A$2:$K$199,7,FALSE),\"\")","v":""},{"$f":"IFERROR(VLOOKUP(V48&\"-1\",'linked mastersheet'!$A$2:$K$199,7,FALSE),\"\")","v":""},null,{"$f":"IF(ROWS(B$41:B48)<=$Y$42,INDEX(masterlist!$C$2:$C$207,SMALL(IF(masterlist!$B$2:$B$207=\"LEG\",IF(masterlist!$E$2:$E$207=3,ROW(masterlist!$B$2:$B$207)-ROW(masterlist!$B$2)+1)),ROWS(B$41:B48))),\"\")","v":""},{"$f":"IFERROR(VLOOKUP(Z48&\"-0\",'linked mastersheet'!$A$2:$K$199,7,FALSE),\"\")","v":""},{"$f":"IFERROR(VLOOKUP(Z48&\"-1\",'linked mastersheet'!$A$2:$K$199,7,FALSE),\"\")","v":""}]
[null,{"$f":"IF(ROWS(B$41:B49)<=$A$42,INDEX(masterlist!$C$2:$C$207,SMALL(IF(masterlist!$B$2:$B$207=\"DCA\",IF(masterlist!$E$2:$E$207=3,ROW(masterlist!$B$2:$B$207)-ROW(masterlist!$B$2)+1)),ROWS(B$41:B49))),\"\")","v":""},{"$f":"IFERROR(VLOOKUP(B49&\"-0\",'linked mastersheet'!$A$2:$K$199,7,FALSE),\"\")","v":""},{"$f":"IFERROR(VLOOKUP(B49&\"-1\",'linked mastersheet'!$A$2:$K$199,7,FALSE),\"\")","v":""},null,{"$f":"IF(ROWS(B$41:B49)<=$E$42,INDEX(masterlist!$C$2:$C$207,SMALL(IF(masterlist!$B$2:$B$207=\"PCO\",IF(masterlist!$E$2:$E$207=3,ROW(masterlist!$B$2:$B$207)-ROW(masterlist!$B$2)+1)),ROWS(B$41:B49))),\"\")","v":""},{"$f":"IFERROR(VLOOKUP(F49&\"-0\",'linked mastersheet'!$A$2:$K$199,7,FALSE),\"\")","v":""},{"$f":"IFERROR(VLOOKUP(F49&\"-1\",'linked mastersheet'!$A$2:$K$199,7,FALSE),\"\")","v":""},null,{"$f":"IF(ROWS(B$41:B49)<=$I$42,INDEX(masterlist!$C$2:$C$207,SMALL(IF(masterlist!$B$2:$B$207=\"LAB\",IF(masterlist!$E$2:$E$207=3,ROW(masterlist!$B$2:$B$207)-ROW(masterlist!$B$2)+1)),ROWS(B$41:B49))),\"\")","v":""},{"$f":"IFERROR(VLOOKUP(J49&\"-0\",'linked mastersheet'!$A$2:$K$199,7,FALSE),\"\")","v":""},{"$f":"IFERROR(VLOOKUP(J49&\"-1\",'linked mastersheet'!$A$2:$K$199,7,FALSE),\"\")","v":""},null,{"$f":"IF(ROWS(B$41:B49)<=$M$42,INDEX(masterlist!$C$2:$C$207,SMALL(IF(masterlist!$B$2:$B$207=\"DPM\",IF(masterlist!$E$2:$E$207=3,ROW(masterlist!$B$2:$B$207)-ROW(masterlist!$B$2)+1)),ROWS(B$41:B49))),\"\")","v":""},{"$f":"IFERROR(VLOOKUP(N49&\"-0\",'linked mastersheet'!$A$2:$K$199,7,FALSE),\"\")","v":""},{"$f":"IFERROR(VLOOKUP(N49&\"-1\",'linked mastersheet'!$A$2:$K$199,7,FALSE),\"\")","v":""},null,{"$f":"IF(ROWS(B$41:B49)<=$Q$42,INDEX(masterlist!$C$2:$C$207,SMALL(IF(masterlist!$B$2:$B$207=\"IEC\",IF(masterlist!$E$2:$E$207=3,ROW(masterlist!$B$2:$B$207)-ROW(masterlist!$B$2)+1)),ROWS(B$41:B49))),\"\")","v":""},{"$f":"IFERROR(VLOOKUP(R49&\"-0\",'linked mastersheet'!$A$2:$K$199,7,FALSE),\"\")","v":""},{"$f":"IFERROR(VLOOKUP(R49&\"-1\",'linked mastersheet'!$A$2:$K$199,7,FALSE),\"\")","v":""},null,{"$f":"IF(ROWS(B$41:B49)<=$U$42,INDEX(masterlist!$C$2:$C$207,SMALL(IF(masterlist!$B$2:$B$207=\"CCI\",IF(masterlist!$E$2:$E$207=3,ROW(masterlist!$B$2:$B$207)-ROW(masterlist!$B$2)+1)),ROWS(B$41:B49))),\"\")","v":""},{"$f":"IFERROR(VLOOKUP(V49&\"-0\",'linked mastersheet'!$A$2:$K$199,7,FALSE),\"\")","v":""},{"$f":"IFERROR(VLOOKUP(V49&\"-1\",'linked mastersheet'!$A$2:$K$199,7,FALSE),\"\")","v":""},null,{"$f":"IF(ROWS(B$41:B49)<=$Y$42,INDEX(masterlist!$C$2:$C$207,SMALL(IF(masterlist!$B$2:$B$207=\"LEG\",IF(masterlist!$E$2:$E$207=3,ROW(masterlist!$B$2:$B$207)-ROW(masterlist!$B$2)+1)),ROWS(B$41:B49))),\"\")","v":""},{"$f":"IFERROR(VLOOKUP(Z49&\"-0\",'linked mastersheet'!$A$2:$K$199,7,FALSE),\"\")","v":""},{"$f":"IFERROR(VLOOKUP(Z49&\"-1\",'linked mastersheet'!$A$2:$K$199,7,FALSE),\"\")","v":""}]
[null,{"$f":"IF(ROWS(B$41:B50)<=$A$42,INDEX(masterlist!$C$2:$C$207,SMALL(IF(masterlist!$B$2:$B$207=\"DCA\",IF(masterlist!$E$2:$E$207=3,ROW(masterlist!$B$2:$B$207)-ROW(masterlist!$B$2)+1)),ROWS(B$41:B50))),\"\")","v":""},{"$f":"IFERROR(VLOOKUP(B50&\"-0\",'linked mastersheet'!$A$2:$K$199,7,FALSE),\"\")","v":""},{"$f":"IFERROR(VLOOKUP(B50&\"-1\",'linked mastersheet'!$A$2:$K$199,7,FALSE),\"\")","v":""},null,{"$f":"IF(ROWS(B$41:B50)<=$E$42,INDEX(masterlist!$C$2:$C$207,SMALL(IF(masterlist!$B$2:$B$207=\"PCO\",IF(masterlist!$E$2:$E$207=3,ROW(masterlist!$B$2:$B$207)-ROW(masterlist!$B$2)+1)),ROWS(B$41:B50))),\"\")","v":""},{"$f":"IFERROR(VLOOKUP(F50&\"-0\",'linked mastersheet'!$A$2:$K$199,7,FALSE),\"\")","v":""},{"$f":"IFERROR(VLOOKUP(F50&\"-1\",'linked mastersheet'!$A$2:$K$199,7,FALSE),\"\")","v":""},null,{"$f":"IF(ROWS(B$41:B50)<=$I$42,INDEX(masterlist!$C$2:$C$207,SMALL(IF(masterlist!$B$2:$B$207=\"LAB\",IF(masterlist!$E$2:$E$207=3,ROW(masterlist!$B$2:$B$207)-ROW(masterlist!$B$2)+1)),ROWS(B$41:B50))),\"\")","v":""},{"$f":"IFERROR(VLOOKUP(J50&\"-0\",'linked mastersheet'!$A$2:$K$199,7,FALSE),\"\")","v":""},{"$f":"IFERROR(VLOOKUP(J50&\"-1\",'linked mastersheet'!$A$2:$K$199,7,FALSE),\"\")","v":""},null,{"$f":"IF(ROWS(B$41:B50)<=$M$42,INDEX(masterlist!$C$2:$C$207,SMALL(IF(masterlist!$B$2:$B$207=\"DPM\",IF(masterlist!$E$2:$E$207=3,ROW(masterlist!$B$2:$B$207)-ROW(masterlist!$B$2)+1)),ROWS(B$41:B50))),\"\")","v":""},{"$f":"IFERROR(VLOOKUP(N50&\"-0\",'linked mastersheet'!$A$2:$K$199,7,FALSE),\"\")","v":""},{"$f":"IFERROR(VLOOKUP(N50&\"-1\",'linked mastersheet'!$A$2:$K$199,7,FALSE),\"\")","v":""},null,{"$f":"IF(ROWS(B$41:B50)<=$Q$42,INDEX(masterlist!$C$2:$C$207,SMALL(IF(masterlist!$B$2:$B$207=\"IEC\",IF(masterlist!$E$2:$E$207=3,ROW(masterlist!$B$2:$B$207)-ROW(masterlist!$B$2)+1)),ROWS(B$41:B50))),\"\")","v":""},{"$f":"IFERROR(VLOOKUP(R50&\"-0\",'linked mastersheet'!$A$2:$K$199,7,FALSE),\"\")","v":""},{"$f":"IFERROR(VLOOKUP(R50&\"-1\",'linked mastersheet'!$A$2:$K$199,7,FALSE),\"\")","v":""},null,{"$f":"IF(ROWS(B$41:B50)<=$U$42,INDEX(masterlist!$C$2:$C$207,SMALL(IF(masterlist!$B$2:$B$207=\"CCI\",IF(masterlist!$E$2:$E$207=3,ROW(masterlist!$B$2:$B$207)-ROW(masterlist!$B$2)+1)),ROWS(B$41:B50))),\"\")","v":""},{"$f":"IFERROR(VLOOKUP(V50&\"-0\",'linked mastersheet'!$A$2:$K$199,7,FALSE),\"\")","v":""},{"$f":"IFERROR(VLOOKUP(V50&\"-1\",'linked mastersheet'!$A$2:$K$199,7,FALSE),\"\")","v":""},null,{"$f":"IF(ROWS(B$41:B50)<=$Y$42,INDEX(masterlist!$C$2:$C$207,SMALL(IF(masterlist!$B$2:$B$207=\"LEG\",IF(masterlist!$E$2:$E$207=3,ROW(masterlist!$B$2:$B$207)-ROW(masterlist!$B$2)+1)),ROWS(B$41:B50))),\"\")","v":""},{"$f":"IFERROR(VLOOKUP(Z50&\"-0\",'linked mastersheet'!$A$2:$K$199,7,FALSE),\"\")","v":""},{"$f":"IFERROR(VLOOKUP(Z50&\"-1\",'linked mastersheet'!$A$2:$K$199,7,FALSE),\"\")","v":""}]
[null,{"$f":"IF(ROWS(B$41:B51)<=$A$42,INDEX(masterlist!$C$2:$C$207,SMALL(IF(masterlist!$B$2:$B$207=\"DCA\",IF(masterlist!$E$2:$E$207=3,ROW(masterlist!$B$2:$B$207)-ROW(masterlist!$B$2)+1)),ROWS(B$41:B51))),\"\")","v":""},{"$f":"IFERROR(VLOOKUP(B51&\"-0\",'linked mastersheet'!$A$2:$K$199,7,FALSE),\"\")","v":""},{"$f":"IFERROR(VLOOKUP(B51&\"-1\",'linked mastersheet'!$A$2:$K$199,7,FALSE),\"\")","v":""},null,{"$f":"IF(ROWS(B$41:B51)<=$E$42,INDEX(masterlist!$C$2:$C$207,SMALL(IF(masterlist!$B$2:$B$207=\"PCO\",IF(masterlist!$E$2:$E$207=3,ROW(masterlist!$B$2:$B$207)-ROW(masterlist!$B$2)+1)),ROWS(B$41:B51))),\"\")","v":""},{"$f":"IFERROR(VLOOKUP(F51&\"-0\",'linked mastersheet'!$A$2:$K$199,7,FALSE),\"\")","v":""},{"$f":"IFERROR(VLOOKUP(F51&\"-1\",'linked mastersheet'!$A$2:$K$199,7,FALSE),\"\")","v":""},null,{"$f":"IF(ROWS(B$41:B51)<=$I$42,INDEX(masterlist!$C$2:$C$207,SMALL(IF(masterlist!$B$2:$B$207=\"LAB\",IF(masterlist!$E$2:$E$207=3,ROW(masterlist!$B$2:$B$207)-ROW(masterlist!$B$2)+1)),ROWS(B$41:B51))),\"\")","v":""},{"$f":"IFERROR(VLOOKUP(J51&\"-0\",'linked mastersheet'!$A$2:$K$199,7,FALSE),\"\")","v":""},{"$f":"IFERROR(VLOOKUP(J51&\"-1\",'linked mastersheet'!$A$2:$K$199,7,FALSE),\"\")","v":""},null,{"$f":"IF(ROWS(B$41:B51)<=$M$42,INDEX(masterlist!$C$2:$C$207,SMALL(IF(masterlist!$B$2:$B$207=\"DPM\",IF(masterlist!$E$2:$E$207=3,ROW(masterlist!$B$2:$B$207)-ROW(masterlist!$B$2)+1)),ROWS(B$41:B51))),\"\")","v":""},{"$f":"IFERROR(VLOOKUP(N51&\"-0\",'linked mastersheet'!$A$2:$K$199,7,FALSE),\"\")","v":""},{"$f":"IFERROR(VLOOKUP(N51&\"-1\",'linked mastersheet'!$A$2:$K$199,7,FALSE),\"\")","v":""},null,{"$f":"IF(ROWS(B$41:B51)<=$Q$42,INDEX(masterlist!$C$2:$C$207,SMALL(IF(masterlist!$B$2:$B$207=\"IEC\",IF(masterlist!$E$2:$E$207=3,ROW(masterlist!$B$2:$B$207)-ROW(masterlist!$B$2)+1)),ROWS(B$41:B51))),\"\")","v":""},{"$f":"IFERROR(VLOOKUP(R51&\"-0\",'linked mastersheet'!$A$2:$K$199,7,FALSE),\"\")","v":""},{"$f":"IFERROR(VLOOKUP(R51&\"-1\",'linked mastersheet'!$A$2:$K$199,7,FALSE),\"\")","v":""},null,{"$f":"IF(ROWS(B$41:B51)<=$U$42,INDEX(masterlist!$C$2:$C$207,SMALL(IF(masterlist!$B$2:$B$207=\"CCI\",IF(masterlist!$E$2:$E$207=3,ROW(masterlist!$B$2:$B$207)-ROW(masterlist!$B$2)+1)),ROWS(B$41:B51))),\"\")","v":""},{"$f":"IFERROR(VLOOKUP(V51&\"-0\",'linked mastersheet'!$A$2:$K$199,7,FALSE),\"\")","v":""},{"$f":"IFERROR(VLOOKUP(V51&\"-1\",'linked mastersheet'!$A$2:$K$199,7,FALSE),\"\")","v":""},null,{"$f":"IF(ROWS(B$41:B51)<=$Y$42,INDEX(masterlist!$C$2:$C$207,SMALL(IF(masterlist!$B$2:$B$207=\"LEG\",IF(masterlist!$E$2:$E$207=3,ROW(masterlist!$B$2:$B$207)-ROW(masterlist!$B$2)+1)),ROWS(B$41:B51))),\"\")","v":""},{"$f":"IFERROR(VLOOKUP(Z51&\"-0\",'linked mastersheet'!$A$2:$K$199,7,FALSE),\"\")","v":""},{"$f":"IFERROR(VLOOKUP(Z51&\"-1\",'linked mastersheet'!$A$2:$K$199,7,FALSE),\"\")","v":""}]
[4,{"$f":"IF(ROWS(B$52:B52)<=$A$53,INDEX(masterlist!$C$2:$C$207,SMALL(IF(masterlist!$B$2:$B$207=\"DCA\",IF(masterlist!$E$2:$E$207=4,ROW(masterlist!$B$2:$B$207)-ROW(masterlist!$B$2)+1)),ROWS(B$52:B52))),\"\")","v":"DCA-Sur-4-20"},{"$f":"IFERROR(VLOOKUP(B52&\"-0\",'linked mastersheet'!$A$2:$K$199,7,FALSE),\"\")","v":"Tandis que votre pays se rapproche de l’élimination de la rage canine, les données épidémiologiques issues de la surveillance régulière de tous les animaux (non seulement les chiens) ont-elles été utilisées pour affiner la stratégie nationale de lutte contre la rage ? "},{"$f":"IFERROR(VLOOKUP(B52&\"-1\",'linked mastersheet'!$A$2:$K$199,7,FALSE),\"\")","v":""},null,{"$f":"IF(ROWS(B$52:B52)<=$E$53,INDEX(masterlist!$C$2:$C$207,SMALL(IF(masterlist!$B$2:$B$207=\"PCO\",IF(masterlist!$E$2:$E$207=4,ROW(masterlist!$B$2:$B$207)-ROW(masterlist!$B$2)+1)),ROWS(B$52:B52))),\"\")","v":"PCO-Vac-4-16"},{"$f":"IFERROR(VLOOKUP(F52&\"-0\",'linked mastersheet'!$A$2:$K$199,7,FALSE),\"\")","v":"Maintenant qu’il n’y a plus que très peu de cas de rage animale dans votre pays, les campagnes de vaccination des chiens se poursuivent-elles dans les zones où la rage canine est encore présente ou là où cela est justifié par ailleurs (par exemple risque d’introduction) ? "},{"$f":"IFERROR(VLOOKUP(F52&\"-1\",'linked mastersheet'!$A$2:$K$199,7,FALSE),\"\")","v":""},null,{"$f":"IF(ROWS(B$52:B52)<=$I$53,INDEX(masterlist!$C$2:$C$207,SMALL(IF(masterlist!$B$2:$B$207=\"LAB\",IF(masterlist!$E$2:$E$207=4,ROW(masterlist!$B$2:$B$207)-ROW(masterlist!$B$2)+1)),ROWS(B$52:B52))),\"\")","v":"LAB-Cap-4-11"},{"$f":"IFERROR(VLOOKUP(J52&\"-0\",'linked mastersheet'!$A$2:$K$199,7,FALSE),\"\")","v":"Maintenant qu’il y a très peu de cas de rage animale dans votre pays, existe-t-il un test de laboratoire en cours pour tous les cas suspects chez les chiens dans le pays ? "},{"$f":"IFERROR(VLOOKUP(J52&\"-1\",'linked mastersheet'!$A$2:$K$199,7,FALSE),\"\")","v":""},null,{"$f":"IF(ROWS(B$52:B52)<=$M$53,INDEX(masterlist!$C$2:$C$207,SMALL(IF(masterlist!$B$2:$B$207=\"DPM\",IF(masterlist!$E$2:$E$207=4,ROW(masterlist!$B$2:$B$207)-ROW(masterlist!$B$2)+1)),ROWS(B$52:B52))),\"\")","v":""},{"$f":"IFERROR(VLOOKUP(N52&\"-0\",'linked mastersheet'!$A$2:$K$199,7,FALSE),\"\")","v":""},{"$f":"IFERROR(VLOOKUP(N52&\"-1\",'linked mastersheet'!$A$2:$K$199,7,FALSE),\"\")","v":""},null,{"$f":"IF(ROWS(B$52:B52)<=$Q$53,INDEX(masterlist!$C$2:$C$207,SMALL(IF(masterlist!$B$2:$B$207=\"IEC\",IF(masterlist!$E$2:$E$207=4,ROW(masterlist!$B$2:$B$207)-ROW(masterlist!$B$2)+1)),ROWS(B$52:B52))),\"\")","v":"IEC-Pla-4-18"},{"$f":"IFERROR(VLOOKUP(R52&\"-0\",'linked mastersheet'!$A$2:$K$199,7,FALSE),\"\")","v":"Avez-vous déclaré publiquement que le pays tout entier est débarrassé de la rage humaine transmise par les chiens ? "},{"$f":"IFERROR(VLOOKUP(R52&\"-1\",'linked mastersheet'!$A$2:$K$199,7,FALSE),\"\")","v":""},null,{"$f":"IF(ROWS(B$52:B52)<=$U$53,INDEX(masterlist!$C$2:$C$207,SMALL(IF(masterlist!$B$2:$B$207=\"CCI\",IF(masterlist!$E$2:$E$207=4,ROW(masterlist!$B$2:$B$207)-ROW(masterlist!$B$2)+1)),ROWS(B$52:B52))),\"\")","v":""},{"$f":"IFERROR(VLOOKUP(V52&\"-0\",'linked mastersheet'!$A$2:$K$199,7,FALSE),\"\")","v":""},{"$f":"IFERROR(VLOOKUP(V52&\"-1\",'linked mastersheet'!$A$2:$K$199,7,FALSE),\"\")","v":""},null,{"$f":"IF(ROWS(B$52:B52)<=$Y$53,INDEX(masterlist!$C$2:$C$207,SMALL(IF(masterlist!$B$2:$B$207=\"LEG\",IF(masterlist!$E$2:$E$207=4,ROW(masterlist!$B$2:$B$207)-ROW(masterlist!$B$2)+1)),ROWS(B$52:B52))),\"\")","v":""},{"$f":"IFERROR(VLOOKUP(Z52&\"-0\",'linked mastersheet'!$A$2:$K$199,7,FALSE),\"\")","v":""},{"$f":"IFERROR(VLOOKUP(Z52&\"-1\",'linked mastersheet'!$A$2:$K$199,7,FALSE),\"\")","v":""}]
[{"$f":"SUMPRODUCT((masterlist!B:B=\"DCA\")*(masterlist!E:E=4))","v":1},{"$f":"IF(ROWS(B$52:B53)<=$A$53,INDEX(masterlist!$C$2:$C$207,SMALL(IF(masterlist!$B$2:$B$207=\"DCA\",IF(masterlist!$E$2:$E$207=4,ROW(masterlist!$B$2:$B$207)-ROW(masterlist!$B$2)+1)),ROWS(B$52:B53))),\"\")","v":""},{"$f":"IFERROR(VLOOKUP(B53&\"-0\",'linked mastersheet'!$A$2:$K$199,7,FALSE),\"\")","v":""},{"$f":"IFERROR(VLOOKUP(B53&\"-1\",'linked mastersheet'!$A$2:$K$199,7,FALSE),\"\")","v":""},{"$f":"SUMPRODUCT((masterlist!B:B=\"PCO\")*(masterlist!E:E=4))","v":4},{"$f":"IF(ROWS(B$52:B53)<=$E$53,INDEX(masterlist!$C$2:$C$207,SMALL(IF(masterlist!$B$2:$B$207=\"PCO\",IF(masterlist!$E$2:$E$207=4,ROW(masterlist!$B$2:$B$207)-ROW(masterlist!$B$2)+1)),ROWS(B$52:B53))),\"\")","v":"PCO-Rép-4-29"},{"$f":"IFERROR(VLOOKUP(F53&\"-0\",'linked mastersheet'!$A$2:$K$199,7,FALSE),\"\")","v":"Alors que votre pays se rapproche de l’élimination de la rage canine, des enquêtes de terrain sont-elles menées pour TOUS les cas suspects de rage canine dans l’ensemble du pays ? "},{"$f":"IFERROR(VLOOKUP(F53&\"-1\",'linked mastersheet'!$A$2:$K$199,7,FALSE),\"\")","v":""},{"$f":"SUMPRODUCT((masterlist!B:B=\"LAB\")*(masterlist!E:E=4))","v":3},{"$f":"IF(ROWS(B$52:B53)<=$I$53,INDEX(masterlist!$C$2:$C$207,SMALL(IF(masterlist!$B$2:$B$207=\"LAB\",IF(masterlist!$E$2:$E$207=4,ROW(masterlist!$B$2:$B$207)-ROW(masterlist!$B$2)+1)),ROWS(B$52:B53))),\"\")","v":"LAB-Cap-4-12"},{"$f":"IFERROR(VLOOKUP(J53&\"-0\",'linked mastersheet'!$A$2:$K$199,7,FALSE),\"\")","v":"Les variants du virus rabique circulants font-ils l’objet d’une caractérisation et d’une analyse régulières par un laboratoire national ou international ? "},{"$f":"IFERROR(VLOOKUP(J53&\"-1\",'linked mastersheet'!$A$2:$K$199,7,FALSE),\"\")","v":""},{"$f":"SUMPRODUCT((masterlist!B:B=\"DPM\")*(masterlist!E:E=4))","v":0},{"$f":"IF(ROWS(B$52:B53)<=$M$53,INDEX(masterlist!$C$2:$C$207,SMALL(IF(masterlist!$B$2:$B$207=\"DPM\",IF(masterlist!$E$2:$E$207=4,ROW(masterlist!$B$2:$B$207)-ROW(masterlist!$B$2)+1)),ROWS(B$52:B53))),\"\")","v":""},{"$f":"IFERROR(VLOOKUP(N53&\"-0\",'linked mastersheet'!$A$2:$K$199,7,FALSE),\"\")","v":""},{"$f":"IFERROR(VLOOKUP(N53&\"-1\",'linked mastersheet'!$A$2:$K$199,7,FALSE),\"\")","v":""},{"$f":"SUMPRODUCT((masterlist!B:B=\"IEC\")*(masterlist!E:E=4))","v":1},{"$f":"IF(ROWS(B$52:B53)<=$Q$53,INDEX(masterlist!$C$2:$C$207,SMALL(IF(masterlist!$B$2:$B$207=\"IEC\",IF(masterlist!$E$2:$E$207=4,ROW(masterlist!$B$2:$B$207)-ROW(masterlist!$B$2)+1)),ROWS(B$52:B53))),\"\")","v":""},{"$f":"IFERROR(VLOOKUP(R53&\"-0\",'linked mastersheet'!$A$2:$K$199,7,FALSE),\"\")","v":""},{"$f":"IFERROR(VLOOKUP(R53&\"-1\",'linked mastersheet'!$A$2:$K$199,7,FALSE),\"\")","v":""},{"$f":"SUMPRODUCT((masterlist!B:B=\"CCI\")*(masterlist!E:E=4))","v":0},{"$f":"IF(ROWS(B$52:B53)<=$U$53,INDEX(masterlist!$C$2:$C$207,SMALL(IF(masterlist!$B$2:$B$207=\"CCI\",IF(masterlist!$E$2:$E$207=4,ROW(masterlist!$B$2:$B$207)-ROW(masterlist!$B$2)+1)),ROWS(B$52:B53))),\"\")","v":""},{"$f":"IFERROR(VLOOKUP(V53&\"-0\",'linked mastersheet'!$A$2:$K$199,7,FALSE),\"\")","v":""},{"$f":"IFERROR(VLOOKUP(V53&\"-1\",'linked mastersheet'!$A$2:$K$199,7,FALSE),\"\")","v":""},{"$f":"SUMPRODUCT((masterlist!B:B=\"LEG\")*(masterlist!E:E=4))","v":0},{"$f":"IF(ROWS(B$52:B53)<=$Y$53,INDEX(masterlist!$C$2:$C$207,SMALL(IF(masterlist!$B$2:$B$207=\"LEG\",IF(masterlist!$E$2:$E$207=4,ROW(masterlist!$B$2:$B$207)-ROW(masterlist!$B$2)+1)),ROWS(B$52:B53))),\"\")","v":""},{"$f":"IFERROR(VLOOKUP(Z53&\"-0\",'linked mastersheet'!$A$2:$K$199,7,FALSE),\"\")","v":""},{"$f":"IFERROR(VLOOKUP(Z53&\"-1\",'linked mastersheet'!$A$2:$K$199,7,FALSE),\"\")","v":""}]
[null,{"$f":"IF(ROWS(B$52:B54)<=$A$53,INDEX(masterlist!$C$2:$C$207,SMALL(IF(masterlist!$B$2:$B$207=\"DCA\",IF(masterlist!$E$2:$E$207=4,ROW(masterlist!$B$2:$B$207)-ROW(masterlist!$B$2)+1)),ROWS(B$52:B54))),\"\")","v":""},{"$f":"IFERROR(VLOOKUP(B54&\"-0\",'linked mastersheet'!$A$2:$K$199,7,FALSE),\"\")","v":""},{"$f":"IFERROR(VLOOKUP(B54&\"-1\",'linked mastersheet'!$A$2:$K$199,7,FALSE),\"\")","v":""},null,{"$f":"IF(ROWS(B$52:B54)<=$E$53,INDEX(masterlist!$C$2:$C$207,SMALL(IF(masterlist!$B$2:$B$207=\"PCO\",IF(masterlist!$E$2:$E$207=4,ROW(masterlist!$B$2:$B$207)-ROW(masterlist!$B$2)+1)),ROWS(B$52:B54))),\"\")","v":"PCO-Rép-4-30"},{"$f":"IFERROR(VLOOKUP(F54&\"-0\",'linked mastersheet'!$A$2:$K$199,7,FALSE),\"\")","v":"Alors qu’il n’y a plus de cas de rage humaine confirmée au laboratoire, les activités de surveillance existantes pour tous les cas humains suspects sont-elles maintenues dans le pays ?"},{"$f":"IFERROR(VLOOKUP(F54&\"-1\",'linked mastersheet'!$A$2:$K$199,7,FALSE),\"\")","v":""},null,{"$f":"IF(ROWS(B$52:B54)<=$I$53,INDEX(masterlist!$C$2:$C$207,SMALL(IF(masterlist!$B$2:$B$207=\"LAB\",IF(masterlist!$E$2:$E$207=4,ROW(masterlist!$B$2:$B$207)-ROW(masterlist!$B$2)+1)),ROWS(B$52:B54))),\"\")","v":"LAB-Cap-4-13"},{"$f":"IFERROR(VLOOKUP(J54&\"-0\",'linked mastersheet'!$A$2:$K$199,7,FALSE),\"\")","v":"Si des variants de rage chez la faune sauvage terrestre sont présents dans le pays, des prélèvements de faune sauvage sont-ils soumis plus régulièrement au laboratoire pour diagnostiquer la rage ?"},{"$f":"IFERROR(VLOOKUP(J54&\"-1\",'linked mastersheet'!$A$2:$K$199,7,FALSE),\"\")","v":""},null,{"$f":"IF(ROWS(B$52:B54)<=$M$53,INDEX(masterlist!$C$2:$C$207,SMALL(IF(masterlist!$B$2:$B$207=\"DPM\",IF(masterlist!$E$2:$E$207=4,ROW(masterlist!$B$2:$B$207)-ROW(masterlist!$B$2)+1)),ROWS(B$52:B54))),\"\")","v":""},{"$f":"IFERROR(VLOOKUP(N54&\"-0\",'linked mastersheet'!$A$2:$K$199,7,FALSE),\"\")","v":""},{"$f":"IFERROR(VLOOKUP(N54&\"-1\",'linked mastersheet'!$A$2:$K$199,7,FALSE),\"\")","v":""},null,{"$f":"IF(ROWS(B$52:B54)<=$Q$53,INDEX(masterlist!$C$2:$C$207,SMALL(IF(masterlist!$B$2:$B$207=\"IEC\",IF(masterlist!$E$2:$E$207=4,ROW(masterlist!$B$2:$B$207)-ROW(masterlist!$B$2)+1)),ROWS(B$52:B54))),\"\")","v":""},{"$f":"IFERROR(VLOOKUP(R54&\"-0\",'linked mastersheet'!$A$2:$K$199,7,FALSE),\"\")","v":""},{"$f":"IFERROR(VLOOKUP(R54&\"-1\",'linked mastersheet'!$A$2:$K$199,7,FALSE),\"\")","v":""},null,{"$f":"IF(ROWS(B$52:B54)<=$U$53,INDEX(masterlist!$C$2:$C$207,SMALL(IF(masterlist!$B$2:$B$207=\"CCI\",IF(masterlist!$E$2:$E$207=4,ROW(masterlist!$B$2:$B$207)-ROW(masterlist!$B$2)+1)),ROWS(B$52:B54))),\"\")","v":""},{"$f":"IFERROR(VLOOKUP(V54&\"-0\",'linked mastersheet'!$A$2:$K$199,7,FALSE),\"\")","v":""},{"$f":"IFERROR(VLOOKUP(V54&\"-1\",'linked mastersheet'!$A$2:$K$199,7,FALSE),\"\")","v":""},null,{"$f":"IF(ROWS(B$52:B54)<=$Y$53,INDEX(masterlist!$C$2:$C$207,SMALL(IF(masterlist!$B$2:$B$207=\"LEG\",IF(masterlist!$E$2:$E$207=4,ROW(masterlist!$B$2:$B$207)-ROW(masterlist!$B$2)+1)),ROWS(B$52:B54))),\"\")","v":""},{"$f":"IFERROR(VLOOKUP(Z54&\"-0\",'linked mastersheet'!$A$2:$K$199,7,FALSE),\"\")","v":""},{"$f":"IFERROR(VLOOKUP(Z54&\"-1\",'linked mastersheet'!$A$2:$K$199,7,FALSE),\"\")","v":""}]
[null,{"$f":"IF(ROWS(B$52:B55)<=$A$53,INDEX(masterlist!$C$2:$C$207,SMALL(IF(masterlist!$B$2:$B$207=\"DCA\",IF(masterlist!$E$2:$E$207=4,ROW(masterlist!$B$2:$B$207)-ROW(masterlist!$B$2)+1)),ROWS(B$52:B55))),\"\")","v":""},{"$f":"IFERROR(VLOOKUP(B55&\"-0\",'linked mastersheet'!$A$2:$K$199,7,FALSE),\"\")","v":""},{"$f":"IFERROR(VLOOKUP(B55&\"-1\",'linked mastersheet'!$A$2:$K$199,7,FALSE),\"\")","v":""},null,{"$f":"IF(ROWS(B$52:B55)<=$E$53,INDEX(masterlist!$C$2:$C$207,SMALL(IF(masterlist!$B$2:$B$207=\"PCO\",IF(masterlist!$E$2:$E$207=4,ROW(masterlist!$B$2:$B$207)-ROW(masterlist!$B$2)+1)),ROWS(B$52:B55))),\"\")","v":"PCO-Rép-4-31"},{"$f":"IFERROR(VLOOKUP(F55&\"-0\",'linked mastersheet'!$A$2:$K$199,7,FALSE),\"\")","v":"Maintenant qu’il y a très peu de cas de rage animale dans votre pays, un plan d'intervention d'urgence a-t-il été élaboré au cas où la variante canine de la rage serait réintroduite dans les zones exemptes de rage ?"},{"$f":"IFERROR(VLOOKUP(F55&\"-1\",'linked mastersheet'!$A$2:$K$199,7,FALSE),\"\")","v":""},null,{"$f":"IF(ROWS(B$52:B55)<=$I$53,INDEX(masterlist!$C$2:$C$207,SMALL(IF(masterlist!$B$2:$B$207=\"LAB\",IF(masterlist!$E$2:$E$207=4,ROW(masterlist!$B$2:$B$207)-ROW(masterlist!$B$2)+1)),ROWS(B$52:B55))),\"\")","v":""},{"$f":"IFERROR(VLOOKUP(J55&\"-0\",'linked mastersheet'!$A$2:$K$199,7,FALSE),\"\")","v":""},{"$f":"IFERROR(VLOOKUP(J55&\"-1\",'linked mastersheet'!$A$2:$K$199,7,FALSE),\"\")","v":""},null,{"$f":"IF(ROWS(B$52:B55)<=$M$53,INDEX(masterlist!$C$2:$C$207,SMALL(IF(masterlist!$B$2:$B$207=\"DPM\",IF(masterlist!$E$2:$E$207=4,ROW(masterlist!$B$2:$B$207)-ROW(masterlist!$B$2)+1)),ROWS(B$52:B55))),\"\")","v":""},{"$f":"IFERROR(VLOOKUP(N55&\"-0\",'linked mastersheet'!$A$2:$K$199,7,FALSE),\"\")","v":""},{"$f":"IFERROR(VLOOKUP(N55&\"-1\",'linked mastersheet'!$A$2:$K$199,7,FALSE),\"\")","v":""},null,{"$f":"IF(ROWS(B$52:B55)<=$Q$53,INDEX(masterlist!$C$2:$C$207,SMALL(IF(masterlist!$B$2:$B$207=\"IEC\",IF(masterlist!$E$2:$E$207=4,ROW(masterlist!$B$2:$B$207)-ROW(masterlist!$B$2)+1)),ROWS(B$52:B55))),\"\")","v":""},{"$f":"IFERROR(VLOOKUP(R55&\"-0\",'linked mastersheet'!$A$2:$K$199,7,FALSE),\"\")","v":""},{"$f":"IFERROR(VLOOKUP(R55&\"-1\",'linked mastersheet'!$A$2:$K$199,7,FALSE),\"\")","v":""},null,{"$f":"IF(ROWS(B$52:B55)<=$U$53,INDEX(masterlist!$C$2:$C$207,SMALL(IF(masterlist!$B$2:$B$207=\"CCI\",IF(masterlist!$E$2:$E$207=4,ROW(masterlist!$B$2:$B$207)-ROW(masterlist!$B$2)+1)),ROWS(B$52:B55))),\"\")","v":""},{"$f":"IFERROR(VLOOKUP(V55&\"-0\",'linked mastersheet'!$A$2:$K$199,7,FALSE),\"\")","v":""},{"$f":"IFERROR(VLOOKUP(V55&\"-1\",'linked mastersheet'!$A$2:$K$199,7,FALSE),\"\")","v":""},null,{"$f":"IF(ROWS(B$52:B55)<=$Y$53,INDEX(masterlist!$C$2:$C$207,SMALL(IF(masterlist!$B$2:$B$207=\"LEG\",IF(masterlist!$E$2:$E$207=4,ROW(masterlist!$B$2:$B$207)-ROW(masterlist!$B$2)+1)),ROWS(B$52:B55))),\"\")","v":""},{"$f":"IFERROR(VLOOKUP(Z55&\"-0\",'linked mastersheet'!$A$2:$K$199,7,FALSE),\"\")","v":""},{"$f":"IFERROR(VLOOKUP(Z55&\"-1\",'linked mastersheet'!$A$2:$K$199,7,FALSE),\"\")","v":""}]
[null,{"$f":"IF(ROWS(B$52:B56)<=$A$53,INDEX(masterlist!$C$2:$C$207,SMALL(IF(masterlist!$B$2:$B$207=\"DCA\",IF(masterlist!$E$2:$E$207=4,ROW(masterlist!$B$2:$B$207)-ROW(masterlist!$B$2)+1)),ROWS(B$52:B56))),\"\")","v":""},{"$f":"IFERROR(VLOOKUP(B56&\"-0\",'linked mastersheet'!$A$2:$K$199,7,FALSE),\"\")","v":""},{"$f":"IFERROR(VLOOKUP(B56&\"-1\",'linked mastersheet'!$A$2:$K$199,7,FALSE),\"\")","v":""},null,{"$f":"IF(ROWS(B$52:B56)<=$E$53,INDEX(masterlist!$C$2:$C$207,SMALL(IF(masterlist!$B$2:$B$207=\"PCO\",IF(masterlist!$E$2:$E$207=4,ROW(masterlist!$B$2:$B$207)-ROW(masterlist!$B$2)+1)),ROWS(B$52:B56))),\"\")","v":""},{"$f":"IFERROR(VLOOKUP(F56&\"-0\",'linked mastersheet'!$A$2:$K$199,7,FALSE),\"\")","v":""},{"$f":"IFERROR(VLOOKUP(F56&\"-1\",'linked mastersheet'!$A$2:$K$199,7,FALSE),\"\")","v":""},null,{"$f":"IF(ROWS(B$52:B56)<=$I$53,INDEX(masterlist!$C$2:$C$207,SMALL(IF(masterlist!$B$2:$B$207=\"LAB\",IF(masterlist!$E$2:$E$207=4,ROW(masterlist!$B$2:$B$207)-ROW(masterlist!$B$2)+1)),ROWS(B$52:B56))),\"\")","v":""},{"$f":"IFERROR(VLOOKUP(J56&\"-0\",'linked mastersheet'!$A$2:$K$199,7,FALSE),\"\")","v":""},{"$f":"IFERROR(VLOOKUP(J56&\"-1\",'linked mastersheet'!$A$2:$K$199,7,FALSE),\"\")","v":""},null,{"$f":"IF(ROWS(B$52:B56)<=$M$53,INDEX(masterlist!$C$2:$C$207,SMALL(IF(masterlist!$B$2:$B$207=\"DPM\",IF(masterlist!$E$2:$E$207=4,ROW(masterlist!$B$2:$B$207)-ROW(masterlist!$B$2)+1)),ROWS(B$52:B56))),\"\")","v":""},{"$f":"IFERROR(VLOOKUP(N56&\"-0\",'linked mastersheet'!$A$2:$K$199,7,FALSE),\"\")","v":""},{"$f":"IFERROR(VLOOKUP(N56&\"-1\",'linked mastersheet'!$A$2:$K$199,7,FALSE),\"\")","v":""},null,{"$f":"IF(ROWS(B$52:B56)<=$Q$53,INDEX(masterlist!$C$2:$C$207,SMALL(IF(masterlist!$B$2:$B$207=\"IEC\",IF(masterlist!$E$2:$E$207=4,ROW(masterlist!$B$2:$B$207)-ROW(masterlist!$B$2)+1)),ROWS(B$52:B56))),\"\")","v":""},{"$f":"IFERROR(VLOOKUP(R56&\"-0\",'linked mastersheet'!$A$2:$K$199,7,FALSE),\"\")","v":""},{"$f":"IFERROR(VLOOKUP(R56&\"-1\",'linked mastersheet'!$A$2:$K$199,7,FALSE),\"\")","v":""},null,{"$f":"IF(ROWS(B$52:B56)<=$U$53,INDEX(masterlist!$C$2:$C$207,SMALL(IF(masterlist!$B$2:$B$207=\"CCI\",IF(masterlist!$E$2:$E$207=4,ROW(masterlist!$B$2:$B$207)-ROW(masterlist!$B$2)+1)),ROWS(B$52:B56))),\"\")","v":""},{"$f":"IFERROR(VLOOKUP(V56&\"-0\",'linked mastersheet'!$A$2:$K$199,7,FALSE),\"\")","v":""},{"$f":"IFERROR(VLOOKUP(V56&\"-1\",'linked mastersheet'!$A$2:$K$199,7,FALSE),\"\")","v":""},null,{"$f":"IF(ROWS(B$52:B56)<=$Y$53,INDEX(masterlist!$C$2:$C$207,SMALL(IF(masterlist!$B$2:$B$207=\"LEG\",IF(masterlist!$E$2:$E$207=4,ROW(masterlist!$B$2:$B$207)-ROW(masterlist!$B$2)+1)),ROWS(B$52:B56))),\"\")","v":""},{"$f":"IFERROR(VLOOKUP(Z56&\"-0\",'linked mastersheet'!$A$2:$K$199,7,FALSE),\"\")","v":""},{"$f":"IFERROR(VLOOKUP(Z56&\"-1\",'linked mastersheet'!$A$2:$K$199,7,FALSE),\"\")","v":""}]
[null,{"$f":"IF(ROWS(B$52:B57)<=$A$53,INDEX(masterlist!$C$2:$C$207,SMALL(IF(masterlist!$B$2:$B$207=\"DCA\",IF(masterlist!$E$2:$E$207=4,ROW(masterlist!$B$2:$B$207)-ROW(masterlist!$B$2)+1)),ROWS(B$52:B57))),\"\")","v":""},{"$f":"IFERROR(VLOOKUP(B57&\"-0\",'linked mastersheet'!$A$2:$K$199,7,FALSE),\"\")","v":""},{"$f":"IFERROR(VLOOKUP(B57&\"-1\",'linked mastersheet'!$A$2:$K$199,7,FALSE),\"\")","v":""},null,{"$f":"IF(ROWS(B$52:B57)<=$E$53,INDEX(masterlist!$C$2:$C$207,SMALL(IF(masterlist!$B$2:$B$207=\"PCO\",IF(masterlist!$E$2:$E$207=4,ROW(masterlist!$B$2:$B$207)-ROW(masterlist!$B$2)+1)),ROWS(B$52:B57))),\"\")","v":""},{"$f":"IFERROR(VLOOKUP(F57&\"-0\",'linked mastersheet'!$A$2:$K$199,7,FALSE),\"\")","v":""},{"$f":"IFERROR(VLOOKUP(F57&\"-1\",'linked mastersheet'!$A$2:$K$199,7,FALSE),\"\")","v":""},null,{"$f":"IF(ROWS(B$52:B57)<=$I$53,INDEX(masterlist!$C$2:$C$207,SMALL(IF(masterlist!$B$2:$B$207=\"LAB\",IF(masterlist!$E$2:$E$207=4,ROW(masterlist!$B$2:$B$207)-ROW(masterlist!$B$2)+1)),ROWS(B$52:B57))),\"\")","v":""},{"$f":"IFERROR(VLOOKUP(J57&\"-0\",'linked mastersheet'!$A$2:$K$199,7,FALSE),\"\")","v":""},{"$f":"IFERROR(VLOOKUP(J57&\"-1\",'linked mastersheet'!$A$2:$K$199,7,FALSE),\"\")","v":""},null,{"$f":"IF(ROWS(B$52:B57)<=$M$53,INDEX(masterlist!$C$2:$C$207,SMALL(IF(masterlist!$B$2:$B$207=\"DPM\",IF(masterlist!$E$2:$E$207=4,ROW(masterlist!$B$2:$B$207)-ROW(masterlist!$B$2)+1)),ROWS(B$52:B57))),\"\")","v":""},{"$f":"IFERROR(VLOOKUP(N57&\"-0\",'linked mastersheet'!$A$2:$K$199,7,FALSE),\"\")","v":""},{"$f":"IFERROR(VLOOKUP(N57&\"-1\",'linked mastersheet'!$A$2:$K$199,7,FALSE),\"\")","v":""},null,{"$f":"IF(ROWS(B$52:B57)<=$Q$53,INDEX(masterlist!$C$2:$C$207,SMALL(IF(masterlist!$B$2:$B$207=\"IEC\",IF(masterlist!$E$2:$E$207=4,ROW(masterlist!$B$2:$B$207)-ROW(masterlist!$B$2)+1)),ROWS(B$52:B57))),\"\")","v":""},{"$f":"IFERROR(VLOOKUP(R57&\"-0\",'linked mastersheet'!$A$2:$K$199,7,FALSE),\"\")","v":""},{"$f":"IFERROR(VLOOKUP(R57&\"-1\",'linked mastersheet'!$A$2:$K$199,7,FALSE),\"\")","v":""},null,{"$f":"IF(ROWS(B$52:B57)<=$U$53,INDEX(masterlist!$C$2:$C$207,SMALL(IF(masterlist!$B$2:$B$207=\"CCI\",IF(masterlist!$E$2:$E$207=4,ROW(masterlist!$B$2:$B$207)-ROW(masterlist!$B$2)+1)),ROWS(B$52:B57))),\"\")","v":""},{"$f":"IFERROR(VLOOKUP(V57&\"-0\",'linked mastersheet'!$A$2:$K$199,7,FALSE),\"\")","v":""},{"$f":"IFERROR(VLOOKUP(V57&\"-1\",'linked mastersheet'!$A$2:$K$199,7,FALSE),\"\")","v":""},null,{"$f":"IF(ROWS(B$52:B57)<=$Y$53,INDEX(masterlist!$C$2:$C$207,SMALL(IF(masterlist!$B$2:$B$207=\"LEG\",IF(masterlist!$E$2:$E$207=4,ROW(masterlist!$B$2:$B$207)-ROW(masterlist!$B$2)+1)),ROWS(B$52:B57))),\"\")","v":""},{"$f":"IFERROR(VLOOKUP(Z57&\"-0\",'linked mastersheet'!$A$2:$K$199,7,FALSE),\"\")","v":""},{"$f":"IFERROR(VLOOKUP(Z57&\"-1\",'linked mastersheet'!$A$2:$K$199,7,FALSE),\"\")","v":""}]
[null,{"$f":"IF(ROWS(B$52:B58)<=$A$53,INDEX(masterlist!$C$2:$C$207,SMALL(IF(masterlist!$B$2:$B$207=\"DCA\",IF(masterlist!$E$2:$E$207=4,ROW(masterlist!$B$2:$B$207)-ROW(masterlist!$B$2)+1)),ROWS(B$52:B58))),\"\")","v":""},{"$f":"IFERROR(VLOOKUP(B58&\"-0\",'linked mastersheet'!$A$2:$K$199,7,FALSE),\"\")","v":""},{"$f":"IFERROR(VLOOKUP(B58&\"-1\",'linked mastersheet'!$A$2:$K$199,7,FALSE),\"\")","v":""},null,{"$f":"IF(ROWS(B$52:B58)<=$E$53,INDEX(masterlist!$C$2:$C$207,SMALL(IF(masterlist!$B$2:$B$207=\"PCO\",IF(masterlist!$E$2:$E$207=4,ROW(masterlist!$B$2:$B$207)-ROW(masterlist!$B$2)+1)),ROWS(B$52:B58))),\"\")","v":""},{"$f":"IFERROR(VLOOKUP(F58&\"-0\",'linked mastersheet'!$A$2:$K$199,7,FALSE),\"\")","v":""},{"$f":"IFERROR(VLOOKUP(F58&\"-1\",'linked mastersheet'!$A$2:$K$199,7,FALSE),\"\")","v":""},null,{"$f":"IF(ROWS(B$52:B58)<=$I$53,INDEX(masterlist!$C$2:$C$207,SMALL(IF(masterlist!$B$2:$B$207=\"LAB\",IF(masterlist!$E$2:$E$207=4,ROW(masterlist!$B$2:$B$207)-ROW(masterlist!$B$2)+1)),ROWS(B$52:B58))),\"\")","v":""},{"$f":"IFERROR(VLOOKUP(J58&\"-0\",'linked mastersheet'!$A$2:$K$199,7,FALSE),\"\")","v":""},{"$f":"IFERROR(VLOOKUP(J58&\"-1\",'linked mastersheet'!$A$2:$K$199,7,FALSE),\"\")","v":""},null,{"$f":"IF(ROWS(B$52:B58)<=$M$53,INDEX(masterlist!$C$2:$C$207,SMALL(IF(masterlist!$B$2:$B$207=\"DPM\",IF(masterlist!$E$2:$E$207=4,ROW(masterlist!$B$2:$B$207)-ROW(masterlist!$B$2)+1)),ROWS(B$52:B58))),\"\")","v":""},{"$f":"IFERROR(VLOOKUP(N58&\"-0\",'linked mastersheet'!$A$2:$K$199,7,FALSE),\"\")","v":""},{"$f":"IFERROR(VLOOKUP(N58&\"-1\",'linked mastersheet'!$A$2:$K$199,7,FALSE),\"\")","v":""},null,{"$f":"IF(ROWS(B$52:B58)<=$Q$53,INDEX(masterlist!$C$2:$C$207,SMALL(IF(masterlist!$B$2:$B$207=\"IEC\",IF(masterlist!$E$2:$E$207=4,ROW(masterlist!$B$2:$B$207)-ROW(masterlist!$B$2)+1)),ROWS(B$52:B58))),\"\")","v":""},{"$f":"IFERROR(VLOOKUP(R58&\"-0\",'linked mastersheet'!$A$2:$K$199,7,FALSE),\"\")","v":""},{"$f":"IFERROR(VLOOKUP(R58&\"-1\",'linked mastersheet'!$A$2:$K$199,7,FALSE),\"\")","v":""},null,{"$f":"IF(ROWS(B$52:B58)<=$U$53,INDEX(masterlist!$C$2:$C$207,SMALL(IF(masterlist!$B$2:$B$207=\"CCI\",IF(masterlist!$E$2:$E$207=4,ROW(masterlist!$B$2:$B$207)-ROW(masterlist!$B$2)+1)),ROWS(B$52:B58))),\"\")","v":""},{"$f":"IFERROR(VLOOKUP(V58&\"-0\",'linked mastersheet'!$A$2:$K$199,7,FALSE),\"\")","v":""},{"$f":"IFERROR(VLOOKUP(V58&\"-1\",'linked mastersheet'!$A$2:$K$199,7,FALSE),\"\")","v":""},null,{"$f":"IF(ROWS(B$52:B58)<=$Y$53,INDEX(masterlist!$C$2:$C$207,SMALL(IF(masterlist!$B$2:$B$207=\"LEG\",IF(masterlist!$E$2:$E$207=4,ROW(masterlist!$B$2:$B$207)-ROW(masterlist!$B$2)+1)),ROWS(B$52:B58))),\"\")","v":""},{"$f":"IFERROR(VLOOKUP(Z58&\"-0\",'linked mastersheet'!$A$2:$K$199,7,FALSE),\"\")","v":""},{"$f":"IFERROR(VLOOKUP(Z58&\"-1\",'linked mastersheet'!$A$2:$K$199,7,FALSE),\"\")","v":""}]
[null,{"$f":"IF(ROWS(B$52:B59)<=$A$53,INDEX(masterlist!$C$2:$C$207,SMALL(IF(masterlist!$B$2:$B$207=\"DCA\",IF(masterlist!$E$2:$E$207=4,ROW(masterlist!$B$2:$B$207)-ROW(masterlist!$B$2)+1)),ROWS(B$52:B59))),\"\")","v":""},{"$f":"IFERROR(VLOOKUP(B59&\"-0\",'linked mastersheet'!$A$2:$K$199,7,FALSE),\"\")","v":""},{"$f":"IFERROR(VLOOKUP(B59&\"-1\",'linked mastersheet'!$A$2:$K$199,7,FALSE),\"\")","v":""},null,{"$f":"IF(ROWS(B$52:B59)<=$E$53,INDEX(masterlist!$C$2:$C$207,SMALL(IF(masterlist!$B$2:$B$207=\"PCO\",IF(masterlist!$E$2:$E$207=4,ROW(masterlist!$B$2:$B$207)-ROW(masterlist!$B$2)+1)),ROWS(B$52:B59))),\"\")","v":""},{"$f":"IFERROR(VLOOKUP(F59&\"-0\",'linked mastersheet'!$A$2:$K$199,7,FALSE),\"\")","v":""},{"$f":"IFERROR(VLOOKUP(F59&\"-1\",'linked mastersheet'!$A$2:$K$199,7,FALSE),\"\")","v":""},null,{"$f":"IF(ROWS(B$52:B59)<=$I$53,INDEX(masterlist!$C$2:$C$207,SMALL(IF(masterlist!$B$2:$B$207=\"LAB\",IF(masterlist!$E$2:$E$207=4,ROW(masterlist!$B$2:$B$207)-ROW(masterlist!$B$2)+1)),ROWS(B$52:B59))),\"\")","v":""},{"$f":"IFERROR(VLOOKUP(J59&\"-0\",'linked mastersheet'!$A$2:$K$199,7,FALSE),\"\")","v":""},{"$f":"IFERROR(VLOOKUP(J59&\"-1\",'linked mastersheet'!$A$2:$K$199,7,FALSE),\"\")","v":""},null,{"$f":"IF(ROWS(B$52:B59)<=$M$53,INDEX(masterlist!$C$2:$C$207,SMALL(IF(masterlist!$B$2:$B$207=\"DPM\",IF(masterlist!$E$2:$E$207=4,ROW(masterlist!$B$2:$B$207)-ROW(masterlist!$B$2)+1)),ROWS(B$52:B59))),\"\")","v":""},{"$f":"IFERROR(VLOOKUP(N59&\"-0\",'linked mastersheet'!$A$2:$K$199,7,FALSE),\"\")","v":""},{"$f":"IFERROR(VLOOKUP(N59&\"-1\",'linked mastersheet'!$A$2:$K$199,7,FALSE),\"\")","v":""},null,{"$f":"IF(ROWS(B$52:B59)<=$Q$53,INDEX(masterlist!$C$2:$C$207,SMALL(IF(masterlist!$B$2:$B$207=\"IEC\",IF(masterlist!$E$2:$E$207=4,ROW(masterlist!$B$2:$B$207)-ROW(masterlist!$B$2)+1)),ROWS(B$52:B59))),\"\")","v":""},{"$f":"IFERROR(VLOOKUP(R59&\"-0\",'linked mastersheet'!$A$2:$K$199,7,FALSE),\"\")","v":""},{"$f":"IFERROR(VLOOKUP(R59&\"-1\",'linked mastersheet'!$A$2:$K$199,7,FALSE),\"\")","v":""},null,{"$f":"IF(ROWS(B$52:B59)<=$U$53,INDEX(masterlist!$C$2:$C$207,SMALL(IF(masterlist!$B$2:$B$207=\"CCI\",IF(masterlist!$E$2:$E$207=4,ROW(masterlist!$B$2:$B$207)-ROW(masterlist!$B$2)+1)),ROWS(B$52:B59))),\"\")","v":""},{"$f":"IFERROR(VLOOKUP(V59&\"-0\",'linked mastersheet'!$A$2:$K$199,7,FALSE),\"\")","v":""},{"$f":"IFERROR(VLOOKUP(V59&\"-1\",'linked mastersheet'!$A$2:$K$199,7,FALSE),\"\")","v":""},null,{"$f":"IF(ROWS(B$52:B59)<=$Y$53,INDEX(masterlist!$C$2:$C$207,SMALL(IF(masterlist!$B$2:$B$207=\"LEG\",IF(masterlist!$E$2:$E$207=4,ROW(masterlist!$B$2:$B$207)-ROW(masterlist!$B$2)+1)),ROWS(B$52:B59))),\"\")","v":""},{"$f":"IFERROR(VLOOKUP(Z59&\"-0\",'linked mastersheet'!$A$2:$K$199,7,FALSE),\"\")","v":""},{"$f":"IFERROR(VLOOKUP(Z59&\"-1\",'linked mastersheet'!$A$2:$K$199,7,FALSE),\"\")","v":""}]
[5,{"$f":"IF(ROWS(B$60:B60)<=$A$61,INDEX(masterlist!$C$2:$C$207,SMALL(IF(masterlist!$B$2:$B$207=\"DCA\",IF(masterlist!$E$2:$E$207=5,ROW(masterlist!$B$2:$B$207)-ROW(masterlist!$B$2)+1)),ROWS(B$60:B60))),\"\")","v":"DCA-Sur-5-21"},{"$f":"IFERROR(VLOOKUP(B60&\"-0\",'linked mastersheet'!$A$2:$K$199,7,FALSE),\"\")","v":"L’absence de rage transmise par les chiens dans tout le pays a-t-elle été vérifiée par l’absence de cas de variant canin durant une période d’au moins 2 ans ? "},{"$f":"IFERROR(VLOOKUP(B60&\"-1\",'linked mastersheet'!$A$2:$K$199,7,FALSE),\"\")","v":""},null,{"$f":"IF(ROWS(B$60:B60)<=$E$61,INDEX(masterlist!$C$2:$C$207,SMALL(IF(masterlist!$B$2:$B$207=\"PCO\",IF(masterlist!$E$2:$E$207=5,ROW(masterlist!$B$2:$B$207)-ROW(masterlist!$B$2)+1)),ROWS(B$60:B60))),\"\")","v":"PCO-Vac-5-8"},{"$f":"IFERROR(VLOOKUP(F60&\"-0\",'linked mastersheet'!$A$2:$K$199,7,FALSE),\"\")","v":"Maintenant qu’il n’y a plus de rage humaine ni animale dans votre pays, des protocoles modifiés pour l’administration de la PPE dans les zones exemptes de rage ont-ils été mis en œuvre ?"},{"$f":"IFERROR(VLOOKUP(F60&\"-1\",'linked mastersheet'!$A$2:$K$199,7,FALSE),\"\")","v":""},null,{"$f":"IF(ROWS(B$60:B60)<=$I$61,INDEX(masterlist!$C$2:$C$207,SMALL(IF(masterlist!$B$2:$B$207=\"LAB\",IF(masterlist!$E$2:$E$207=5,ROW(masterlist!$B$2:$B$207)-ROW(masterlist!$B$2)+1)),ROWS(B$60:B60))),\"\")","v":"LAB-Cap-5-14"},{"$f":"IFERROR(VLOOKUP(J60&\"-0\",'linked mastersheet'!$A$2:$K$199,7,FALSE),\"\")","v":"Même si vous êtes désormais exempts de rage canine grâce aux campagnes de vaccination de masse réussies, des enquêtes de laboratoire sont-elles en cours pour tous les cas suspects chez les espèces domestiques et les espèces sauvages terrestres dans le pays ? "},{"$f":"IFERROR(VLOOKUP(J60&\"-1\",'linked mastersheet'!$A$2:$K$199,7,FALSE),\"\")","v":""},null,{"$f":"IF(ROWS(B$60:B60)<=$M$61,INDEX(masterlist!$C$2:$C$207,SMALL(IF(masterlist!$B$2:$B$207=\"DPM\",IF(masterlist!$E$2:$E$207=5,ROW(masterlist!$B$2:$B$207)-ROW(masterlist!$B$2)+1)),ROWS(B$60:B60))),\"\")","v":"DPM- -5-13"},{"$f":"IFERROR(VLOOKUP(N60&\"-0\",'linked mastersheet'!$A$2:$K$199,7,FALSE),\"\")","v":"La stratégie définitive de gestion compassionnelle des populations canines a-t-elle été mise en œuvre dans l’ensemble du pays ? "},{"$f":"IFERROR(VLOOKUP(N60&\"-1\",'linked mastersheet'!$A$2:$K$199,7,FALSE),\"\")","v":""},null,{"$f":"IF(ROWS(B$60:B60)<=$Q$61,INDEX(masterlist!$C$2:$C$207,SMALL(IF(masterlist!$B$2:$B$207=\"IEC\",IF(masterlist!$E$2:$E$207=5,ROW(masterlist!$B$2:$B$207)-ROW(masterlist!$B$2)+1)),ROWS(B$60:B60))),\"\")","v":"IEC-Sen-5-6"},{"$f":"IFERROR(VLOOKUP(R60&\"-0\",'linked mastersheet'!$A$2:$K$199,7,FALSE),\"\")","v":"Maintenant que votre pays est débarrassé de la rage humaine et animale, des programmes de sensibilisation axés sur le maintien de l'absence de rage humaine transmise par les chiens et de rage canine ont-ils été mis en œuvre ?"},{"$f":"IFERROR(VLOOKUP(R60&\"-1\",'linked mastersheet'!$A$2:$K$199,7,FALSE),\"\")","v":""},null,{"$f":"IF(ROWS(B$60:B60)<=$U$61,INDEX(masterlist!$C$2:$C$207,SMALL(IF(masterlist!$B$2:$B$207=\"CCI\",IF(masterlist!$E$2:$E$207=5,ROW(masterlist!$B$2:$B$207)-ROW(masterlist!$B$2)+1)),ROWS(B$60:B60))),\"\")","v":""},{"$f":"IFERROR(VLOOKUP(V60&\"-0\",'linked mastersheet'!$A$2:$K$199,7,FALSE),\"\")","v":""},{"$f":"IFERROR(VLOOKUP(V60&\"-1\",'linked mastersheet'!$A$2:$K$199,7,FALSE),\"\")","v":""},null,{"$f":"IF(ROWS(B$60:B60)<=$Y$61,INDEX(masterlist!$C$2:$C$207,SMALL(IF(masterlist!$B$2:$B$207=\"LEG\",IF(masterlist!$E$2:$E$207=5,ROW(masterlist!$B$2:$B$207)-ROW(masterlist!$B$2)+1)),ROWS(B$60:B60))),\"\")","v":""},{"$f":"IFERROR(VLOOKUP(Z60&\"-0\",'linked mastersheet'!$A$2:$K$199,7,FALSE),\"\")","v":""},{"$f":"IFERROR(VLOOKUP(Z60&\"-1\",'linked mastersheet'!$A$2:$K$199,7,FALSE),\"\")","v":""}]
[{"$f":"SUMPRODUCT((masterlist!B:B=\"DCA\")*(masterlist!E:E=5))","v":1},{"$f":"IF(ROWS(B$60:B61)<=$A$61,INDEX(masterlist!$C$2:$C$207,SMALL(IF(masterlist!$B$2:$B$207=\"DCA\",IF(masterlist!$E$2:$E$207=5,ROW(masterlist!$B$2:$B$207)-ROW(masterlist!$B$2)+1)),ROWS(B$60:B61))),\"\")","v":""},{"$f":"IFERROR(VLOOKUP(B61&\"-0\",'linked mastersheet'!$A$2:$K$199,7,FALSE),\"\")","v":""},{"$f":"IFERROR(VLOOKUP(B61&\"-1\",'linked mastersheet'!$A$2:$K$199,7,FALSE),\"\")","v":""},{"$f":"SUMPRODUCT((masterlist!B:B=\"PCO\")*(masterlist!E:E=5))","v":3},{"$f":"IF(ROWS(B$60:B61)<=$E$61,INDEX(masterlist!$C$2:$C$207,SMALL(IF(masterlist!$B$2:$B$207=\"PCO\",IF(masterlist!$E$2:$E$207=5,ROW(masterlist!$B$2:$B$207)-ROW(masterlist!$B$2)+1)),ROWS(B$60:B61))),\"\")","v":"PCO-Vac-5-17"},{"$f":"IFERROR(VLOOKUP(F61&\"-0\",'linked mastersheet'!$A$2:$K$199,7,FALSE),\"\")","v":"Même s’il n’y a plus de cas de rage grâce aux campagnes de vaccination de masse, les campagnes stratégiques de vaccination de chiens sont-elles maintenues lorsque cela se justifie ? "},{"$f":"IFERROR(VLOOKUP(F61&\"-1\",'linked mastersheet'!$A$2:$K$199,7,FALSE),\"\")","v":""},{"$f":"SUMPRODUCT((masterlist!B:B=\"LAB\")*(masterlist!E:E=5))","v":1},{"$f":"IF(ROWS(B$60:B61)<=$I$61,INDEX(masterlist!$C$2:$C$207,SMALL(IF(masterlist!$B$2:$B$207=\"LAB\",IF(masterlist!$E$2:$E$207=5,ROW(masterlist!$B$2:$B$207)-ROW(masterlist!$B$2)+1)),ROWS(B$60:B61))),\"\")","v":""},{"$f":"IFERROR(VLOOKUP(J61&\"-0\",'linked mastersheet'!$A$2:$K$199,7,FALSE),\"\")","v":""},{"$f":"IFERROR(VLOOKUP(J61&\"-1\",'linked mastersheet'!$A$2:$K$199,7,FALSE),\"\")","v":""},{"$f":"SUMPRODUCT((masterlist!B:B=\"DPM\")*(masterlist!E:E=5))","v":2},{"$f":"IF(ROWS(B$60:B61)<=$M$61,INDEX(masterlist!$C$2:$C$207,SMALL(IF(masterlist!$B$2:$B$207=\"DPM\",IF(masterlist!$E$2:$E$207=5,ROW(masterlist!$B$2:$B$207)-ROW(masterlist!$B$2)+1)),ROWS(B$60:B61))),\"\")","v":"DPM- -5-14"},{"$f":"IFERROR(VLOOKUP(N61&\"-0\",'linked mastersheet'!$A$2:$K$199,7,FALSE),\"\")","v":"Les campagnes en faveur de la gestion compassionnelle des populations canines ont-elles été poursuivies dans l’ensemble du pays après l’élimination de la rage canine ? "},{"$f":"IFERROR(VLOOKUP(N61&\"-1\",'linked mastersheet'!$A$2:$K$199,7,FALSE),\"\")","v":""},{"$f":"SUMPRODUCT((masterlist!B:B=\"IEC\")*(masterlist!E:E=5))","v":2},{"$f":"IF(ROWS(B$60:B61)<=$Q$61,INDEX(masterlist!$C$2:$C$207,SMALL(IF(masterlist!$B$2:$B$207=\"IEC\",IF(masterlist!$E$2:$E$207=5,ROW(masterlist!$B$2:$B$207)-ROW(masterlist!$B$2)+1)),ROWS(B$60:B61))),\"\")","v":"IEC-Pla-5-19"},{"$f":"IFERROR(VLOOKUP(R61&\"-0\",'linked mastersheet'!$A$2:$K$199,7,FALSE),\"\")","v":"Avez-vous déclaré publiquement que le pays tout entier est débarrassé de la rage canine ? "},{"$f":"IFERROR(VLOOKUP(R61&\"-1\",'linked mastersheet'!$A$2:$K$199,7,FALSE),\"\")","v":""},{"$f":"SUMPRODUCT((masterlist!B:B=\"CCI\")*(masterlist!E:E=5))","v":0},{"$f":"IF(ROWS(B$60:B61)<=$U$61,INDEX(masterlist!$C$2:$C$207,SMALL(IF(masterlist!$B$2:$B$207=\"CCI\",IF(masterlist!$E$2:$E$207=5,ROW(masterlist!$B$2:$B$207)-ROW(masterlist!$B$2)+1)),ROWS(B$60:B61))),\"\")","v":""},{"$f":"IFERROR(VLOOKUP(V61&\"-0\",'linked mastersheet'!$A$2:$K$199,7,FALSE),\"\")","v":""},{"$f":"IFERROR(VLOOKUP(V61&\"-1\",'linked mastersheet'!$A$2:$K$199,7,FALSE),\"\")","v":""},{"$f":"SUMPRODUCT((masterlist!B:B=\"LEG\")*(masterlist!E:E=5))","v":0},{"$f":"IF(ROWS(B$60:B61)<=$Y$61,INDEX(masterlist!$C$2:$C$207,SMALL(IF(masterlist!$B$2:$B$207=\"LEG\",IF(masterlist!$E$2:$E$207=5,ROW(masterlist!$B$2:$B$207)-ROW(masterlist!$B$2)+1)),ROWS(B$60:B61))),\"\")","v":""},{"$f":"IFERROR(VLOOKUP(Z61&\"-0\",'linked mastersheet'!$A$2:$K$199,7,FALSE),\"\")","v":""},{"$f":"IFERROR(VLOOKUP(Z61&\"-1\",'linked mastersheet'!$A$2:$K$199,7,FALSE),\"\")","v":""}]
[null,{"$f":"IF(ROWS(B$60:B62)<=$A$61,INDEX(masterlist!$C$2:$C$207,SMALL(IF(masterlist!$B$2:$B$207=\"DCA\",IF(masterlist!$E$2:$E$207=5,ROW(masterlist!$B$2:$B$207)-ROW(masterlist!$B$2)+1)),ROWS(B$60:B62))),\"\")","v":""},{"$f":"IFERROR(VLOOKUP(B62&\"-0\",'linked mastersheet'!$A$2:$K$199,7,FALSE),\"\")","v":""},{"$f":"IFERROR(VLOOKUP(B62&\"-1\",'linked mastersheet'!$A$2:$K$199,7,FALSE),\"\")","v":""},null,{"$f":"IF(ROWS(B$60:B62)<=$E$61,INDEX(masterlist!$C$2:$C$207,SMALL(IF(masterlist!$B$2:$B$207=\"PCO\",IF(masterlist!$E$2:$E$207=5,ROW(masterlist!$B$2:$B$207)-ROW(masterlist!$B$2)+1)),ROWS(B$60:B62))),\"\")","v":"PCO-Rép-5-32"},{"$f":"IFERROR(VLOOKUP(F62&\"-0\",'linked mastersheet'!$A$2:$K$199,7,FALSE),\"\")","v":"Même si vous êtes désormais exempts de rage canine grâce aux campagnes de vaccination de masse réussies, la capacité de réponse conjointe à un foyer de rage a-t-elle été maintenue ? "},{"$f":"IFERROR(VLOOKUP(F62&\"-1\",'linked mastersheet'!$A$2:$K$199,7,FALSE),\"\")","v":""},null,{"$f":"IF(ROWS(B$60:B62)<=$I$61,INDEX(masterlist!$C$2:$C$207,SMALL(IF(masterlist!$B$2:$B$207=\"LAB\",IF(masterlist!$E$2:$E$207=5,ROW(masterlist!$B$2:$B$207)-ROW(masterlist!$B$2)+1)),ROWS(B$60:B62))),\"\")","v":""},{"$f":"IFERROR(VLOOKUP(J62&\"-0\",'linked mastersheet'!$A$2:$K$199,7,FALSE),\"\")","v":""},{"$f":"IFERROR(VLOOKUP(J62&\"-1\",'linked mastersheet'!$A$2:$K$199,7,FALSE),\"\")","v":""},null,{"$f":"IF(ROWS(B$60:B62)<=$M$61,INDEX(masterlist!$C$2:$C$207,SMALL(IF(masterlist!$B$2:$B$207=\"DPM\",IF(masterlist!$E$2:$E$207=5,ROW(masterlist!$B$2:$B$207)-ROW(masterlist!$B$2)+1)),ROWS(B$60:B62))),\"\")","v":""},{"$f":"IFERROR(VLOOKUP(N62&\"-0\",'linked mastersheet'!$A$2:$K$199,7,FALSE),\"\")","v":""},{"$f":"IFERROR(VLOOKUP(N62&\"-1\",'linked mastersheet'!$A$2:$K$199,7,FALSE),\"\")","v":""},null,{"$f":"IF(ROWS(B$60:B62)<=$Q$61,INDEX(masterlist!$C$2:$C$207,SMALL(IF(masterlist!$B$2:$B$207=\"IEC\",IF(masterlist!$E$2:$E$207=5,ROW(masterlist!$B$2:$B$207)-ROW(masterlist!$B$2)+1)),ROWS(B$60:B62))),\"\")","v":""},{"$f":"IFERROR(VLOOKUP(R62&\"-0\",'linked mastersheet'!$A$2:$K$199,7,FALSE),\"\")","v":""},{"$f":"IFERROR(VLOOKUP(R62&\"-1\",'linked mastersheet'!$A$2:$K$199,7,FALSE),\"\")","v":""},null,{"$f":"IF(ROWS(B$60:B62)<=$U$61,INDEX(masterlist!$C$2:$C$207,SMALL(IF(masterlist!$B$2:$B$207=\"CCI\",IF(masterlist!$E$2:$E$207=5,ROW(masterlist!$B$2:$B$207)-ROW(masterlist!$B$2)+1)),ROWS(B$60:B62))),\"\")","v":""},{"$f":"IFERROR(VLOOKUP(V62&\"-0\",'linked mastersheet'!$A$2:$K$199,7,FALSE),\"\")","v":""},{"$f":"IFERROR(VLOOKUP(V62&\"-1\",'linked mastersheet'!$A$2:$K$199,7,FALSE),\"\")","v":""},null,{"$f":"IF(ROWS(B$60:B62)<=$Y$61,INDEX(masterlist!$C$2:$C$207,SMALL(IF(masterlist!$B$2:$B$207=\"LEG\",IF(masterlist!$E$2:$E$207=5,ROW(masterlist!$B$2:$B$207)-ROW(masterlist!$B$2)+1)),ROWS(B$60:B62))),\"\")","v":""},{"$f":"IFERROR(VLOOKUP(Z62&\"-0\",'linked mastersheet'!$A$2:$K$199,7,FALSE),\"\")","v":""},{"$f":"IFERROR(VLOOKUP(Z62&\"-1\",'linked mastersheet'!$A$2:$K$199,7,FALSE),\"\")","v":""}]
[null,{"$f":"IF(ROWS(B$60:B63)<=$A$61,INDEX(masterlist!$C$2:$C$207,SMALL(IF(masterlist!$B$2:$B$207=\"DCA\",IF(masterlist!$E$2:$E$207=5,ROW(masterlist!$B$2:$B$207)-ROW(masterlist!$B$2)+1)),ROWS(B$60:B63))),\"\")","v":""},{"$f":"IFERROR(VLOOKUP(B63&\"-0\",'linked mastersheet'!$A$2:$K$199,7,FALSE),\"\")","v":""},{"$f":"IFERROR(VLOOKUP(B63&\"-1\",'linked mastersheet'!$A$2:$K$199,7,FALSE),\"\")","v":""},null,{"$f":"IF(ROWS(B$60:B63)<=$E$61,INDEX(masterlist!$C$2:$C$207,SMALL(IF(masterlist!$B$2:$B$207=\"PCO\",IF(masterlist!$E$2:$E$207=5,ROW(masterlist!$B$2:$B$207)-ROW(masterlist!$B$2)+1)),ROWS(B$60:B63))),\"\")","v":""},{"$f":"IFERROR(VLOOKUP(F63&\"-0\",'linked mastersheet'!$A$2:$K$199,7,FALSE),\"\")","v":""},{"$f":"IFERROR(VLOOKUP(F63&\"-1\",'linked mastersheet'!$A$2:$K$199,7,FALSE),\"\")","v":""},null,{"$f":"IF(ROWS(B$60:B63)<=$I$61,INDEX(masterlist!$C$2:$C$207,SMALL(IF(masterlist!$B$2:$B$207=\"LAB\",IF(masterlist!$E$2:$E$207=5,ROW(masterlist!$B$2:$B$207)-ROW(masterlist!$B$2)+1)),ROWS(B$60:B63))),\"\")","v":""},{"$f":"IFERROR(VLOOKUP(J63&\"-0\",'linked mastersheet'!$A$2:$K$199,7,FALSE),\"\")","v":""},{"$f":"IFERROR(VLOOKUP(J63&\"-1\",'linked mastersheet'!$A$2:$K$199,7,FALSE),\"\")","v":""},null,{"$f":"IF(ROWS(B$60:B63)<=$M$61,INDEX(masterlist!$C$2:$C$207,SMALL(IF(masterlist!$B$2:$B$207=\"DPM\",IF(masterlist!$E$2:$E$207=5,ROW(masterlist!$B$2:$B$207)-ROW(masterlist!$B$2)+1)),ROWS(B$60:B63))),\"\")","v":""},{"$f":"IFERROR(VLOOKUP(N63&\"-0\",'linked mastersheet'!$A$2:$K$199,7,FALSE),\"\")","v":""},{"$f":"IFERROR(VLOOKUP(N63&\"-1\",'linked mastersheet'!$A$2:$K$199,7,FALSE),\"\")","v":""},null,{"$f":"IF(ROWS(B$60:B63)<=$Q$61,INDEX(masterlist!$C$2:$C$207,SMALL(IF(masterlist!$B$2:$B$207=\"IEC\",IF(masterlist!$E$2:$E$207=5,ROW(masterlist!$B$2:$B$207)-ROW(masterlist!$B$2)+1)),ROWS(B$60:B63))),\"\")","v":""},{"$f":"IFERROR(VLOOKUP(R63&\"-0\",'linked mastersheet'!$A$2:$K$199,7,FALSE),\"\")","v":""},{"$f":"IFERROR(VLOOKUP(R63&\"-1\",'linked mastersheet'!$A$2:$K$199,7,FALSE),\"\")","v":""},null,{"$f":"IF(ROWS(B$60:B63)<=$U$61,INDEX(masterlist!$C$2:$C$207,SMALL(IF(masterlist!$B$2:$B$207=\"CCI\",IF(masterlist!$E$2:$E$207=5,ROW(masterlist!$B$2:$B$207)-ROW(masterlist!$B$2)+1)),ROWS(B$60:B63))),\"\")","v":""},{"$f":"IFERROR(VLOOKUP(V63&\"-0\",'linked mastersheet'!$A$2:$K$199,7,FALSE),\"\")","v":""},{"$f":"IFERROR(VLOOKUP(V63&\"-1\",'linked mastersheet'!$A$2:$K$199,7,FALSE),\"\")","v":""},null,{"$f":"IF(ROWS(B$60:B63)<=$Y$61,INDEX(masterlist!$C$2:$C$207,SMALL(IF(masterlist!$B$2:$B$207=\"LEG\",IF(masterlist!$E$2:$E$207=5,ROW(masterlist!$B$2:$B$207)-ROW(masterlist!$B$2)+1)),ROWS(B$60:B63))),\"\")","v":""},{"$f":"IFERROR(VLOOKUP(Z63&\"-0\",'linked mastersheet'!$A$2:$K$199,7,FALSE),\"\")","v":""},{"$f":"IFERROR(VLOOKUP(Z63&\"-1\",'linked mastersheet'!$A$2:$K$199,7,FALSE),\"\")","v":""}]
[null,{"$f":"IF(ROWS(B$60:B64)<=$A$61,INDEX(masterlist!$C$2:$C$207,SMALL(IF(masterlist!$B$2:$B$207=\"DCA\",IF(masterlist!$E$2:$E$207=5,ROW(masterlist!$B$2:$B$207)-ROW(masterlist!$B$2)+1)),ROWS(B$60:B64))),\"\")","v":""},{"$f":"IFERROR(VLOOKUP(B64&\"-0\",'linked mastersheet'!$A$2:$K$199,7,FALSE),\"\")","v":""},{"$f":"IFERROR(VLOOKUP(B64&\"-1\",'linked mastersheet'!$A$2:$K$199,7,FALSE),\"\")","v":""},null,{"$f":"IF(ROWS(B$60:B64)<=$E$61,INDEX(masterlist!$C$2:$C$207,SMALL(IF(masterlist!$B$2:$B$207=\"PCO\",IF(masterlist!$E$2:$E$207=5,ROW(masterlist!$B$2:$B$207)-ROW(masterlist!$B$2)+1)),ROWS(B$60:B64))),\"\")","v":""},{"$f":"IFERROR(VLOOKUP(F64&\"-0\",'linked mastersheet'!$A$2:$K$199,7,FALSE),\"\")","v":""},{"$f":"IFERROR(VLOOKUP(F64&\"-1\",'linked mastersheet'!$A$2:$K$199,7,FALSE),\"\")","v":""},null,{"$f":"IF(ROWS(B$60:B64)<=$I$61,INDEX(masterlist!$C$2:$C$207,SMALL(IF(masterlist!$B$2:$B$207=\"LAB\",IF(masterlist!$E$2:$E$207=5,ROW(masterlist!$B$2:$B$207)-ROW(masterlist!$B$2)+1)),ROWS(B$60:B64))),\"\")","v":""},{"$f":"IFERROR(VLOOKUP(J64&\"-0\",'linked mastersheet'!$A$2:$K$199,7,FALSE),\"\")","v":""},{"$f":"IFERROR(VLOOKUP(J64&\"-1\",'linked mastersheet'!$A$2:$K$199,7,FALSE),\"\")","v":""},null,{"$f":"IF(ROWS(B$60:B64)<=$M$61,INDEX(masterlist!$C$2:$C$207,SMALL(IF(masterlist!$B$2:$B$207=\"DPM\",IF(masterlist!$E$2:$E$207=5,ROW(masterlist!$B$2:$B$207)-ROW(masterlist!$B$2)+1)),ROWS(B$60:B64))),\"\")","v":""},{"$f":"IFERROR(VLOOKUP(N64&\"-0\",'linked mastersheet'!$A$2:$K$199,7,FALSE),\"\")","v":""},{"$f":"IFERROR(VLOOKUP(N64&\"-1\",'linked mastersheet'!$A$2:$K$199,7,FALSE),\"\")","v":""},null,{"$f":"IF(ROWS(B$60:B64)<=$Q$61,INDEX(masterlist!$C$2:$C$207,SMALL(IF(masterlist!$B$2:$B$207=\"IEC\",IF(masterlist!$E$2:$E$207=5,ROW(masterlist!$B$2:$B$207)-ROW(masterlist!$B$2)+1)),ROWS(B$60:B64))),\"\")","v":""},{"$f":"IFERROR(VLOOKUP(R64&\"-0\",'linked mastersheet'!$A$2:$K$199,7,FALSE),\"\")","v":""},{"$f":"IFERROR(VLOOKUP(R64&\"-1\",'linked mastersheet'!$A$2:$K$199,7,FALSE),\"\")","v":""},null,{"$f":"IF(ROWS(B$60:B64)<=$U$61,INDEX(masterlist!$C$2:$C$207,SMALL(IF(masterlist!$B$2:$B$207=\"CCI\",IF(masterlist!$E$2:$E$207=5,ROW(masterlist!$B$2:$B$207)-ROW(masterlist!$B$2)+1)),ROWS(B$60:B64))),\"\")","v":""},{"$f":"IFERROR(VLOOKUP(V64&\"-0\",'linked mastersheet'!$A$2:$K$199,7,FALSE),\"\")","v":""},{"$f":"IFERROR(VLOOKUP(V64&\"-1\",'linked mastersheet'!$A$2:$K$199,7,FALSE),\"\")","v":""},null,{"$f":"IF(ROWS(B$60:B64)<=$Y$61,INDEX(masterlist!$C$2:$C$207,SMALL(IF(masterlist!$B$2:$B$207=\"LEG\",IF(masterlist!$E$2:$E$207=5,ROW(masterlist!$B$2:$B$207)-ROW(masterlist!$B$2)+1)),ROWS(B$60:B64))),\"\")","v":""},{"$f":"IFERROR(VLOOKUP(Z64&\"-0\",'linked mastersheet'!$A$2:$K$199,7,FALSE),\"\")","v":""},{"$f":"IFERROR(VLOOKUP(Z64&\"-1\",'linked mastersheet'!$A$2:$K$199,7,FALSE),\"\")","v":""}]
[null,{"$f":"IF(ROWS(B$60:B65)<=$A$61,INDEX(masterlist!$C$2:$C$207,SMALL(IF(masterlist!$B$2:$B$207=\"DCA\",IF(masterlist!$E$2:$E$207=5,ROW(masterlist!$B$2:$B$207)-ROW(masterlist!$B$2)+1)),ROWS(B$60:B65))),\"\")","v":""},{"$f":"IFERROR(VLOOKUP(B65&\"-0\",'linked mastersheet'!$A$2:$K$199,7,FALSE),\"\")","v":""},{"$f":"IFERROR(VLOOKUP(B65&\"-1\",'linked mastersheet'!$A$2:$K$199,7,FALSE),\"\")","v":""},null,{"$f":"IF(ROWS(B$60:B65)<=$E$61,INDEX(masterlist!$C$2:$C$207,SMALL(IF(masterlist!$B$2:$B$207=\"PCO\",IF(masterlist!$E$2:$E$207=5,ROW(masterlist!$B$2:$B$207)-ROW(masterlist!$B$2)+1)),ROWS(B$60:B65))),\"\")","v":""},{"$f":"IFERROR(VLOOKUP(F65&\"-0\",'linked mastersheet'!$A$2:$K$199,7,FALSE),\"\")","v":""},{"$f":"IFERROR(VLOOKUP(F65&\"-1\",'linked mastersheet'!$A$2:$K$199,7,FALSE),\"\")","v":""},null,{"$f":"IF(ROWS(B$60:B65)<=$I$61,INDEX(masterlist!$C$2:$C$207,SMALL(IF(masterlist!$B$2:$B$207=\"LAB\",IF(masterlist!$E$2:$E$207=5,ROW(masterlist!$B$2:$B$207)-ROW(masterlist!$B$2)+1)),ROWS(B$60:B65))),\"\")","v":""},{"$f":"IFERROR(VLOOKUP(J65&\"-0\",'linked mastersheet'!$A$2:$K$199,7,FALSE),\"\")","v":""},{"$f":"IFERROR(VLOOKUP(J65&\"-1\",'linked mastersheet'!$A$2:$K$199,7,FALSE),\"\")","v":""},null,{"$f":"IF(ROWS(B$60:B65)<=$M$61,INDEX(masterlist!$C$2:$C$207,SMALL(IF(masterlist!$B$2:$B$207=\"DPM\",IF(masterlist!$E$2:$E$207=5,ROW(masterlist!$B$2:$B$207)-ROW(masterlist!$B$2)+1)),ROWS(B$60:B65))),\"\")","v":""},{"$f":"IFERROR(VLOOKUP(N65&\"-0\",'linked mastersheet'!$A$2:$K$199,7,FALSE),\"\")","v":""},{"$f":"IFERROR(VLOOKUP(N65&\"-1\",'linked mastersheet'!$A$2:$K$199,7,FALSE),\"\")","v":""},null,{"$f":"IF(ROWS(B$60:B65)<=$Q$61,INDEX(masterlist!$C$2:$C$207,SMALL(IF(masterlist!$B$2:$B$207=\"IEC\",IF(masterlist!$E$2:$E$207=5,ROW(masterlist!$B$2:$B$207)-ROW(masterlist!$B$2)+1)),ROWS(B$60:B65))),\"\")","v":""},{"$f":"IFERROR(VLOOKUP(R65&\"-0\",'linked mastersheet'!$A$2:$K$199,7,FALSE),\"\")","v":""},{"$f":"IFERROR(VLOOKUP(R65&\"-1\",'linked mastersheet'!$A$2:$K$199,7,FALSE),\"\")","v":""},null,{"$f":"IF(ROWS(B$60:B65)<=$U$61,INDEX(masterlist!$C$2:$C$207,SMALL(IF(masterlist!$B$2:$B$207=\"CCI\",IF(masterlist!$E$2:$E$207=5,ROW(masterlist!$B$2:$B$207)-ROW(masterlist!$B$2)+1)),ROWS(B$60:B65))),\"\")","v":""},{"$f":"IFERROR(VLOOKUP(V65&\"-0\",'linked mastersheet'!$A$2:$K$199,7,FALSE),\"\")","v":""},{"$f":"IFERROR(VLOOKUP(V65&\"-1\",'linked mastersheet'!$A$2:$K$199,7,FALSE),\"\")","v":""},null,{"$f":"IF(ROWS(B$60:B65)<=$Y$61,INDEX(masterlist!$C$2:$C$207,SMALL(IF(masterlist!$B$2:$B$207=\"LEG\",IF(masterlist!$E$2:$E$207=5,ROW(masterlist!$B$2:$B$207)-ROW(masterlist!$B$2)+1)),ROWS(B$60:B65))),\"\")","v":""},{"$f":"IFERROR(VLOOKUP(Z65&\"-0\",'linked mastersheet'!$A$2:$K$199,7,FALSE),\"\")","v":""},{"$f":"IFERROR(VLOOKUP(Z65&\"-1\",'linked mastersheet'!$A$2:$K$199,7,FALSE),\"\")","v":""}]
[null,{"$f":"IF(ROWS(B$60:B66)<=$A$61,INDEX(masterlist!$C$2:$C$207,SMALL(IF(masterlist!$B$2:$B$207=\"DCA\",IF(masterlist!$E$2:$E$207=5,ROW(masterlist!$B$2:$B$207)-ROW(masterlist!$B$2)+1)),ROWS(B$60:B66))),\"\")","v":""},{"$f":"IFERROR(VLOOKUP(B66&\"-0\",'linked mastersheet'!$A$2:$K$199,7,FALSE),\"\")","v":""},{"$f":"IFERROR(VLOOKUP(B66&\"-1\",'linked mastersheet'!$A$2:$K$199,7,FALSE),\"\")","v":""},null,{"$f":"IF(ROWS(B$60:B66)<=$E$61,INDEX(masterlist!$C$2:$C$207,SMALL(IF(masterlist!$B$2:$B$207=\"PCO\",IF(masterlist!$E$2:$E$207=5,ROW(masterlist!$B$2:$B$207)-ROW(masterlist!$B$2)+1)),ROWS(B$60:B66))),\"\")","v":""},{"$f":"IFERROR(VLOOKUP(F66&\"-0\",'linked mastersheet'!$A$2:$K$199,7,FALSE),\"\")","v":""},{"$f":"IFERROR(VLOOKUP(F66&\"-1\",'linked mastersheet'!$A$2:$K$199,7,FALSE),\"\")","v":""},null,{"$f":"IF(ROWS(B$60:B66)<=$I$61,INDEX(masterlist!$C$2:$C$207,SMALL(IF(masterlist!$B$2:$B$207=\"LAB\",IF(masterlist!$E$2:$E$207=5,ROW(masterlist!$B$2:$B$207)-ROW(masterlist!$B$2)+1)),ROWS(B$60:B66))),\"\")","v":""},{"$f":"IFERROR(VLOOKUP(J66&\"-0\",'linked mastersheet'!$A$2:$K$199,7,FALSE),\"\")","v":""},{"$f":"IFERROR(VLOOKUP(J66&\"-1\",'linked mastersheet'!$A$2:$K$199,7,FALSE),\"\")","v":""},null,{"$f":"IF(ROWS(B$60:B66)<=$M$61,INDEX(masterlist!$C$2:$C$207,SMALL(IF(masterlist!$B$2:$B$207=\"DPM\",IF(masterlist!$E$2:$E$207=5,ROW(masterlist!$B$2:$B$207)-ROW(masterlist!$B$2)+1)),ROWS(B$60:B66))),\"\")","v":""},{"$f":"IFERROR(VLOOKUP(N66&\"-0\",'linked mastersheet'!$A$2:$K$199,7,FALSE),\"\")","v":""},{"$f":"IFERROR(VLOOKUP(N66&\"-1\",'linked mastersheet'!$A$2:$K$199,7,FALSE),\"\")","v":""},null,{"$f":"IF(ROWS(B$60:B66)<=$Q$61,INDEX(masterlist!$C$2:$C$207,SMALL(IF(masterlist!$B$2:$B$207=\"IEC\",IF(masterlist!$E$2:$E$207=5,ROW(masterlist!$B$2:$B$207)-ROW(masterlist!$B$2)+1)),ROWS(B$60:B66))),\"\")","v":""},{"$f":"IFERROR(VLOOKUP(R66&\"-0\",'linked mastersheet'!$A$2:$K$199,7,FALSE),\"\")","v":""},{"$f":"IFERROR(VLOOKUP(R66&\"-1\",'linked mastersheet'!$A$2:$K$199,7,FALSE),\"\")","v":""},null,{"$f":"IF(ROWS(B$60:B66)<=$U$61,INDEX(masterlist!$C$2:$C$207,SMALL(IF(masterlist!$B$2:$B$207=\"CCI\",IF(masterlist!$E$2:$E$207=5,ROW(masterlist!$B$2:$B$207)-ROW(masterlist!$B$2)+1)),ROWS(B$60:B66))),\"\")","v":""},{"$f":"IFERROR(VLOOKUP(V66&\"-0\",'linked mastersheet'!$A$2:$K$199,7,FALSE),\"\")","v":""},{"$f":"IFERROR(VLOOKUP(V66&\"-1\",'linked mastersheet'!$A$2:$K$199,7,FALSE),\"\")","v":""},null,{"$f":"IF(ROWS(B$60:B66)<=$Y$61,INDEX(masterlist!$C$2:$C$207,SMALL(IF(masterlist!$B$2:$B$207=\"LEG\",IF(masterlist!$E$2:$E$207=5,ROW(masterlist!$B$2:$B$207)-ROW(masterlist!$B$2)+1)),ROWS(B$60:B66))),\"\")","v":""},{"$f":"IFERROR(VLOOKUP(Z66&\"-0\",'linked mastersheet'!$A$2:$K$199,7,FALSE),\"\")","v":""},{"$f":"IFERROR(VLOOKUP(Z66&\"-1\",'linked mastersheet'!$A$2:$K$199,7,FALSE),\"\")","v":""}]

{"sheet":"priorit","index":16,"n_rows":198,"n_cols":6,"rows_kept":198,"cut":false,"hidden":true,"merged":[[5,4,5,5],[6,4,6,5],[7,4,7,5],[8,4,8,5],[9,4,9,5],[10,4,10,5],[0,5,1,5],[0,4,1,4],[4,4,4,5],[17,4,17,5],[18,4,18,5],[19,4,19,5],[20,4,20,5],[21,4,21,5],[22,4,22,5],[11,4,11,5],[12,4,12,5],[13,4,13,5],[14,4,14,5],[15,4,15,5],[16,4,16,5],[29,4,29,5],[30,4,30,5],[31,4,31,5],[32,4,32,5],[33,4,33,5],[34,4,34,5],[23,4,23,5],[24,4,24,5],[25,4,25,5],[26,4,26,5],[27,4,27,5],[28,4,28,5],[41,4,41,5],[42,4,42,5],[43,4,43,5],[44,4,44,5],[45,4,45,5],[46,4,46,5],[35,4,35,5],[36,4,36,5],[37,4,37,5],[38,4,38,5],[39,4,39,5],[40,4,40,5],[53,4,53,5],[54,4,54,5],[55,4,55,5],[56,4,56,5],[57,4,57,5],[58,4,58,5],[47,4,47,5],[48,4,48,5],[49,4,49,5],[50,4,50,5],[51,4,51,5],[52,4,52,5],[65,4,65,5],[66,4,66,5],[67,4,67,5],[68,4,68,5],[69,4,69,5],[70,4,70,5],[59,4,59,5],[60,4,60,5],[61,4,61,5],[62,4,62,5],[63,4,63,5],[64,4,64,5],[77,4,77,5],[78,4,78,5],[79,4,79,5],[80,4,80,5],[81,4,81,5],[82,4,82,5],[71,4,71,5],[72,4,72,5],[73,4,73,5],[74,4,74,5],[75,4,75,5],[76,4,76,5],[89,4,89,5],[90,4,90,5],[91,4,91,5],[92,4,92,5],[93,4,93,5],[94,4,94,5],[83,4,83,5],[84,4,84,5],[85,4,85,5],[86,4,86,5],[87,4,87,5],[88,4,88,5],[101,4,101,5],[102,4,102,5],[103,4,103,5],[104,4,104,5],[105,4,105,5],[106,4,106,5],[95,4,95,5],[96,4,96,5],[97,4,97,5],[98,4,98,5],[99,4,99,5],[100,4,100,5],[113,4,113,5],[114,4,114,5],[115,4,115,5],[116,4,116,5],[117,4,117,5],[118,4,118,5],[107,4,107,5],[108,4,108,5],[109,4,109,5],[110,4,110,5],[111,4,111,5],[112,4,112,5],[125,4,125,5],[126,4,126,5],[127,4,127,5],[128,4,128,5],[129,4,129,5],[130,4,130,5],[119,4,119,5],[120,4,120,5],[121,4,121,5],[122,4,122,5],[123,4,123,5],[124,4,124,5],[137,4,137,5],[138,4,138,5],[139,4,139,5],[140,4,140,5],[141,4,141,5],[142,4,142,5],[131,4,131,5],[132,4,132,5],[133,4,133,5],[134,4,134,5],[135,4,135,5],[136,4,136,5],[149,4,149,5],[150,4,150,5],[151,4,151,5],[152,4,152,5],[153,4,153,5],[154,4,154,5],[143,4,143,5],[144,4,144,5],[145,4,145,5],[146,4,146,5],[147,4,147,5],[148,4,148,5],[161,4,161,5],[162,4,162,5],[163,4,163,5],[164,4,164,5],[165,4,165,5],[166,4,166,5],[155,4,155,5],[156,4,156,5],[157,4,157,5],[158,4,158,5],[159,4,159,5],[160,4,160,5],[176,4,176,5],[177,4,177,5],[178,4,178,5],[167,4,167,5],[168,4,168,5],[169,4,169,5],[170,4,170,5],[171,4,171,5],[172,4,172,5],[197,4,197,5],[0,1,0,3],[1,1,1,3],[191,4,191,5],[192,4,192,5],[193,4,193,5],[194,4,194,5],[195,4,195,5],[196,4,196,5],[185,4,185,5],[186,4,186,5],[187,4,187,5],[188,4,188,5],[189,4,189,5],[190,4,190,5],[179,4,179,5],[180,4,180,5],[181,4,181,5],[182,4,182,5],[183,4,183,5],[184,4,184,5],[173,4,173,5],[174,4,174,5],[175,4,175,5]]}
[{"$f":"SUMPRODUCT((masterlist!F:F>0)*(masterlist!J:J=0))","v":76},"Stepwise Approach towards Rabies Elimination",null,null,{"$f":"IF(ISBLANK('Country profile'!E3),\"\",UPPER('Country profile'!E3))","v":"ALGERIA"},{"$f":"IF(ISBLANK('Country profile'!K9),IF(ISBLANK('Country profile'!K14),\"\",'Country profile'!K14),'Country profile'!K9)","v":""}]
[null,"PRIORITISATION OF RABIES PROGRAM ACTIVITIES"]
[]
[]
["ID","ÉTAPE","COMPOSANTE","ACTIVITÉ","REMARQUES"]
[{"$f":"IF(ROWS($A$6:A6)<=$A$1,INDEX(masterlist!$C$2:$C$207,SMALL(IF(masterlist!$F$2:$F$207>0,IF(masterlist!$J$2:$J$207=0,ROW(masterlist!$B$2:$B$207)-ROW(masterlist!$B$2)+1)),ROWS($A$6:A6))),\"\")","v":"DCA-Sur-1-8"},{"$f":"IFERROR(VLOOKUP($A6,masterlist!$C$2:$K$207,3,FALSE),\"\")","v":1},{"$f":"LEFT(A6,3)","v":"DCA"},{"$f":"IFERROR(VLOOKUP($A6,masterlist!$C$2:$AD$207,28,FALSE),\"\")","v":"Communiquer chaque année toutes les données relatives à la rage animale à l’OMSA."},{"$f":"IFERROR(IF((VLOOKUP($A6,masterlist!$C$2:$K$207,9,FALSE))=0,\"\",VLOOKUP($A6,masterlist!$C$2:$K$207,9,FALSE)),\"\")","v":""}]
[{"$f":"IF(ROWS($A$6:A7)<=$A$1,INDEX(masterlist!$C$2:$C$207,SMALL(IF(masterlist!$F$2:$F$207>0,IF(masterlist!$J$2:$J$207=0,ROW(masterlist!$B$2:$B$207)-ROW(masterlist!$B$2)+1)),ROWS($A$6:A7))),\"\")","v":"DCA-Sur-1-10"},{"$f":"IFERROR(VLOOKUP($A7,masterlist!$C$2:$K$207,3,FALSE),\"\")","v":1},{"$f":"LEFT(A7,3)","v":"DCA"},{"$f":"IFERROR(VLOOKUP($A7,masterlist!$C$2:$AD$207,28,FALSE),\"\")","v":"Communiquer toutes les données relatives à la rage humaine à l’OMS chaque année."},{"$f":"IFERROR(IF((VLOOKUP($A7,masterlist!$C$2:$K$207,9,FALSE))=0,\"\",VLOOKUP($A7,masterlist!$C$2:$K$207,9,FALSE)),\"\")","v":""}]
[{"$f":"IF(ROWS($A$6:A8)<=$A$1,INDEX(masterlist!$C$2:$C$207,SMALL(IF(masterlist!$F$2:$F$207>0,IF(masterlist!$J$2:$J$207=0,ROW(masterlist!$B$2:$B$207)-ROW(masterlist!$B$2)+1)),ROWS($A$6:A8))),\"\")","v":"DCA-Sur-1-12"},{"$f":"IFERROR(VLOOKUP($A8,masterlist!$C$2:$K$207,3,FALSE),\"\")","v":1},"DCA",{"$f":"IFERROR(VLOOKUP($A8,masterlist!$C$2:$AD$207,28,FALSE),\"\")","v":"Entreprendre une étude sur la taille et l’accessibilité de la population canine dans une région du pays."},{"$f":"IFERROR(IF((VLOOKUP($A8,masterlist!$C$2:$K$207,9,FALSE))=0,\"\",VLOOKUP($A8,masterlist!$C$2:$K$207,9,FALSE)),\"\")","v":""}]
[{"$f":"IF(ROWS($A$6:A9)<=$A$1,INDEX(masterlist!$C$2:$C$207,SMALL(IF(masterlist!$F$2:$F$207>0,IF(masterlist!$J$2:$J$207=0,ROW(masterlist!$B$2:$B$207)-ROW(masterlist!$B$2)+1)),ROWS($A$6:A9))),\"\")","v":"DCA-Sur-2-15"},{"$f":"IFERROR(VLOOKUP($A9,masterlist!$C$2:$K$207,3,FALSE),\"\")","v":2},"DCA",{"$f":"IFERROR(VLOOKUP($A9,masterlist!$C$2:$AD$207,28,FALSE),\"\")","v":"Partager régulièrement TOUTES des données disponibles sur la rage (humaine et animale) avec toutes les autres parties prenantes."},{"$f":"IFERROR(IF((VLOOKUP($A9,masterlist!$C$2:$K$207,9,FALSE))=0,\"\",VLOOKUP($A9,masterlist!$C$2:$K$207,9,FALSE)),\"\")","v":""}]
[{"$f":"IF(ROWS($A$6:A10)<=$A$1,INDEX(masterlist!$C$2:$C$207,SMALL(IF(masterlist!$F$2:$F$207>0,IF(masterlist!$J$2:$J$207=0,ROW(masterlist!$B$2:$B$207)-ROW(masterlist!$B$2)+1)),ROWS($A$6:A10))),\"\")","v":"DCA-Sur-2-16"},{"$f":"IFERROR(VLOOKUP($A10,masterlist!$C$2:$K$207,3,FALSE),\"\")","v":2},"DCA",{"$f":"IFERROR(VLOOKUP($A10,masterlist!$C$2:$AD$207,28,FALSE),\"\")","v":"Mettre en place un système One Health de surveillance de la rage comprenant des données de surveillance humaine et animale à tous les niveaux, \n\nOU\n\nCréer une structure formelle pour le partage régulier et en temps opportun de TOUTES les données pertinentes entre les systèmes de surveillance de la santé humaine et animale qui sont opérationnels. "},{"$f":"IFERROR(IF((VLOOKUP($A10,masterlist!$C$2:$K$207,9,FALSE))=0,\"\",VLOOKUP($A10,masterlist!$C$2:$K$207,9,FALSE)),\"\")","v":""}]
[{"$f":"IF(ROWS($A$6:A11)<=$A$1,INDEX(masterlist!$C$2:$C$207,SMALL(IF(masterlist!$F$2:$F$207>0,IF(masterlist!$J$2:$J$207=0,ROW(masterlist!$B$2:$B$207)-ROW(masterlist!$B$2)+1)),ROWS($A$6:A11))),\"\")","v":"DCA-Sur-3-17"},{"$f":"IFERROR(VLOOKUP($A11,masterlist!$C$2:$K$207,3,FALSE),\"\")","v":3},"DCA",{"$f":"IFERROR(VLOOKUP($A11,masterlist!$C$2:$AD$207,28,FALSE),\"\")","v":"Observer une diminution des prélèvements positifs pour la rage tout en maintenant un taux élevé de soumission de prélèvements à travers tout le pays. "},{"$f":"IFERROR(IF((VLOOKUP($A11,masterlist!$C$2:$K$207,9,FALSE))=0,\"\",VLOOKUP($A11,masterlist!$C$2:$K$207,9,FALSE)),\"\")","v":""}]
[{"$f":"IF(ROWS($A$6:A12)<=$A$1,INDEX(masterlist!$C$2:$C$207,SMALL(IF(masterlist!$F$2:$F$207>0,IF(masterlist!$J$2:$J$207=0,ROW(masterlist!$B$2:$B$207)-ROW(masterlist!$B$2)+1)),ROWS($A$6:A12))),\"\")","v":"DCA-Sur-3-18"},{"$f":"IFERROR(VLOOKUP($A12,masterlist!$C$2:$K$207,3,FALSE),\"\")","v":3},"DCA",{"$f":"IFERROR(VLOOKUP($A12,masterlist!$C$2:$AD$207,28,FALSE),\"\")","v":"À mesure que le pays se rapproche de l'élimination de la rage humaine, rassembler les preuves épidémiologiques nécessaires pour déclarer des zones exemptes de rage humaine transmise par les chiens."},{"$f":"IFERROR(IF((VLOOKUP($A12,masterlist!$C$2:$K$207,9,FALSE))=0,\"\",VLOOKUP($A12,masterlist!$C$2:$K$207,9,FALSE)),\"\")","v":""}]
[{"$f":"IF(ROWS($A$6:A13)<=$A$1,INDEX(masterlist!$C$2:$C$207,SMALL(IF(masterlist!$F$2:$F$207>0,IF(masterlist!$J$2:$J$207=0,ROW(masterlist!$B$2:$B$207)-ROW(masterlist!$B$2)+1)),ROWS($A$6:A13))),\"\")","v":"DCA-Sur-3-19"},{"$f":"IFERROR(VLOOKUP($A13,masterlist!$C$2:$K$207,3,FALSE),\"\")","v":3},"DCA",{"$f":"IFERROR(VLOOKUP($A13,masterlist!$C$2:$AD$207,28,FALSE),\"\")","v":"Identifier les zones potentiellement exemptes de rage où les cas de rage animale (causés par le variant de la rage canine) sont absents depuis au moins deux ans."},{"$f":"IFERROR(IF((VLOOKUP($A13,masterlist!$C$2:$K$207,9,FALSE))=0,\"\",VLOOKUP($A13,masterlist!$C$2:$K$207,9,FALSE)),\"\")","v":""}]
[{"$f":"IF(ROWS($A$6:A14)<=$A$1,INDEX(masterlist!$C$2:$C$207,SMALL(IF(masterlist!$F$2:$F$207>0,IF(masterlist!$J$2:$J$207=0,ROW(masterlist!$B$2:$B$207)-ROW(masterlist!$B$2)+1)),ROWS($A$6:A14))),\"\")","v":"DCA-Sur-4-20"},{"$f":"IFERROR(VLOOKUP($A14,masterlist!$C$2:$K$207,3,FALSE),\"\")","v":4},"DCA",{"$f":"IFERROR(VLOOKUP($A14,masterlist!$C$2:$AD$207,28,FALSE),\"\")","v":"À mesure que le pays se rapproche de l'élimination de la rage canine, affiner la stratégie nationale de lutte contre la rage en utilisant les données épidémiologiques issues de la surveillance de routine de tous les animaux (et pas seulement des chiens)."},{"$f":"IFERROR(IF((VLOOKUP($A14,masterlist!$C$2:$K$207,9,FALSE))=0,\"\",VLOOKUP($A14,masterlist!$C$2:$K$207,9,FALSE)),\"\")","v":""}]
[{"$f":"IF(ROWS($A$6:A15)<=$A$1,INDEX(masterlist!$C$2:$C$207,SMALL(IF(masterlist!$F$2:$F$207>0,IF(masterlist!$J$2:$J$207=0,ROW(masterlist!$B$2:$B$207)-ROW(masterlist!$B$2)+1)),ROWS($A$6:A15))),\"\")","v":"DCA-Sur-5-21"},{"$f":"IFERROR(VLOOKUP($A15,masterlist!$C$2:$K$207,3,FALSE),\"\")","v":5},"DCA",{"$f":"IFERROR(VLOOKUP($A15,masterlist!$C$2:$AD$207,28,FALSE),\"\")","v":"Vérifier que l'ensemble du pays est exempt de la variante canine de la rage depuis au moins deux ans."},{"$f":"IFERROR(IF((VLOOKUP($A15,masterlist!$C$2:$K$207,9,FALSE))=0,\"\",VLOOKUP($A15,masterlist!$C$2:$K$207,9,FALSE)),\"\")","v":""}]
[{"$f":"IF(ROWS($A$6:A16)<=$A$1,INDEX(masterlist!$C$2:$C$207,SMALL(IF(masterlist!$F$2:$F$207>0,IF(masterlist!$J$2:$J$207=0,ROW(masterlist!$B$2:$B$207)-ROW(masterlist!$B$2)+1)),ROWS($A$6:A16))),\"\")","v":"PCO-Vac-2-5"},{"$f":"IFERROR(VLOOKUP($A16,masterlist!$C$2:$K$207,3,FALSE),\"\")","v":2},"PCO",{"$f":"IFERROR(VLOOKUP($A16,masterlist!$C$2:$AD$207,28,FALSE),\"\")","v":"Veiller à ce que la PPE soit gratuite ou partiellement subventionnée pour toute personne potentiellement exposée dans le pays."},{"$f":"IFERROR(IF((VLOOKUP($A16,masterlist!$C$2:$K$207,9,FALSE))=0,\"\",VLOOKUP($A16,masterlist!$C$2:$K$207,9,FALSE)),\"\")","v":""}]
[{"$f":"IF(ROWS($A$6:A17)<=$A$1,INDEX(masterlist!$C$2:$C$207,SMALL(IF(masterlist!$F$2:$F$207>0,IF(masterlist!$J$2:$J$207=0,ROW(masterlist!$B$2:$B$207)-ROW(masterlist!$B$2)+1)),ROWS($A$6:A17))),\"\")","v":"PCO-Vac-2-6"},{"$f":"IFERROR(VLOOKUP($A17,masterlist!$C$2:$K$207,3,FALSE),\"\")","v":2},"PCO",{"$f":"IFERROR(VLOOKUP($A17,masterlist!$C$2:$AD$207,28,FALSE),\"\")","v":"Veiller à ce que le gouvernement n'utilise que des vaccins antirabiques humains préqualifiés par l'OMS dans le pays."},{"$f":"IFERROR(IF((VLOOKUP($A17,masterlist!$C$2:$K$207,9,FALSE))=0,\"\",VLOOKUP($A17,masterlist!$C$2:$K$207,9,FALSE)),\"\")","v":""}]
[{"$f":"IF(ROWS($A$6:A18)<=$A$1,INDEX(masterlist!$C$2:$C$207,SMALL(IF(masterlist!$F$2:$F$207>0,IF(masterlist!$J$2:$J$207=0,ROW(masterlist!$B$2:$B$207)-ROW(masterlist!$B$2)+1)),ROWS($A$6:A18))),\"\")","v":"PCO-Vac-5-8"},{"$f":"IFERROR(VLOOKUP($A18,masterlist!$C$2:$K$207,3,FALSE),\"\")","v":5},"PCO",{"$f":"IFERROR(VLOOKUP($A18,masterlist!$C$2:$AD$207,28,FALSE),\"\")","v":"Maintenant que le pays est débarrassé de la rage humaine et animale, mettre en œuvre des protocoles modifiés pour l'administration de la PPE dans les zones exemptes de rage."},{"$f":"IFERROR(IF((VLOOKUP($A18,masterlist!$C$2:$K$207,9,FALSE))=0,\"\",VLOOKUP($A18,masterlist!$C$2:$K$207,9,FALSE)),\"\")","v":""}]
[{"$f":"IF(ROWS($A$6:A19)<=$A$1,INDEX(masterlist!$C$2:$C$207,SMALL(IF(masterlist!$F$2:$F$207>0,IF(masterlist!$J$2:$J$207=0,ROW(masterlist!$B$2:$B$207)-ROW(masterlist!$B$2)+1)),ROWS($A$6:A19))),\"\")","v":"PCO-Vac-2-12"},{"$f":"IFERROR(VLOOKUP($A19,masterlist!$C$2:$K$207,3,FALSE),\"\")","v":2},"PCO",{"$f":"IFERROR(VLOOKUP($A19,masterlist!$C$2:$AD$207,28,FALSE),\"\")","v":"Augmenter régulièrement l'ampleur et l'intensité des campagnes gouvernementales de vaccination des chiens."},{"$f":"IFERROR(IF((VLOOKUP($A19,masterlist!$C$2:$K$207,9,FALSE))=0,\"\",VLOOKUP($A19,masterlist!$C$2:$K$207,9,FALSE)),\"\")","v":""}]
[{"$f":"IF(ROWS($A$6:A20)<=$A$1,INDEX(masterlist!$C$2:$C$207,SMALL(IF(masterlist!$F$2:$F$207>0,IF(masterlist!$J$2:$J$207=0,ROW(masterlist!$B$2:$B$207)-ROW(masterlist!$B$2)+1)),ROWS($A$6:A20))),\"\")","v":"PCO-Vac-3-13"},{"$f":"IFERROR(VLOOKUP($A20,masterlist!$C$2:$K$207,3,FALSE),\"\")","v":3},"PCO",{"$f":"IFERROR(VLOOKUP($A20,masterlist!$C$2:$AD$207,28,FALSE),\"\")","v":"Mettre en place les capacités (personnel formé, véhicules, aiguilles, seringues, etc.) permettant d'obtenir une couverture vaccinale de 70 % de tous les chiens à risque du pays chaque année."},{"$f":"IFERROR(IF((VLOOKUP($A20,masterlist!$C$2:$K$207,9,FALSE))=0,\"\",VLOOKUP($A20,masterlist!$C$2:$K$207,9,FALSE)),\"\")","v":""}]
[{"$f":"IF(ROWS($A$6:A21)<=$A$1,INDEX(masterlist!$C$2:$C$207,SMALL(IF(masterlist!$F$2:$F$207>0,IF(masterlist!$J$2:$J$207=0,ROW(masterlist!$B$2:$B$207)-ROW(masterlist!$B$2)+1)),ROWS($A$6:A21))),\"\")","v":"PCO-Vac-3-14"},{"$f":"IFERROR(VLOOKUP($A21,masterlist!$C$2:$K$207,3,FALSE),\"\")","v":3},"PCO",{"$f":"IFERROR(VLOOKUP($A21,masterlist!$C$2:$AD$207,28,FALSE),\"\")","v":"Mettre en œuvre des campagnes de vaccination de masse des chiens qui touchent chaque année au moins 70 % de la population canine à risque dans le pays."},{"$f":"IFERROR(IF((VLOOKUP($A21,masterlist!$C$2:$K$207,9,FALSE))=0,\"\",VLOOKUP($A21,masterlist!$C$2:$K$207,9,FALSE)),\"\")","v":""}]
[{"$f":"IF(ROWS($A$6:A22)<=$A$1,INDEX(masterlist!$C$2:$C$207,SMALL(IF(masterlist!$F$2:$F$207>0,IF(masterlist!$J$2:$J$207=0,ROW(masterlist!$B$2:$B$207)-ROW(masterlist!$B$2)+1)),ROWS($A$6:A22))),\"\")","v":"PCO-Vac-3-15"},{"$f":"IFERROR(VLOOKUP($A22,masterlist!$C$2:$K$207,3,FALSE),\"\")","v":3},"PCO",{"$f":"IFERROR(VLOOKUP($A22,masterlist!$C$2:$AD$207,28,FALSE),\"\")","v":"Entreprendre des enquêtes post-vaccination pour évaluer la couverture vaccinale des chiens dans le pays."},{"$f":"IFERROR(IF((VLOOKUP($A22,masterlist!$C$2:$K$207,9,FALSE))=0,\"\",VLOOKUP($A22,masterlist!$C$2:$K$207,9,FALSE)),\"\")","v":""}]
[{"$f":"IF(ROWS($A$6:A23)<=$A$1,INDEX(masterlist!$C$2:$C$207,SMALL(IF(masterlist!$F$2:$F$207>0,IF(masterlist!$J$2:$J$207=0,ROW(masterlist!$B$2:$B$207)-ROW(masterlist!$B$2)+1)),ROWS($A$6:A23))),\"\")","v":"PCO-Vac-4-16"},{"$f":"IFERROR(VLOOKUP($A23,masterlist!$C$2:$K$207,3,FALSE),\"\")","v":4},"PCO",{"$f":"IFERROR(VLOOKUP($A23,masterlist!$C$2:$AD$207,28,FALSE),\"\")","v":"Maintenant qu'il y a très peu de cas de rage animale dans le pays, les campagnes de vaccination des chiens sont maintenues dans les zones où la rage canine est encore présente ou lorsque cela se justifie (par exemple, risque d'introduction)."},{"$f":"IFERROR(IF((VLOOKUP($A23,masterlist!$C$2:$K$207,9,FALSE))=0,\"\",VLOOKUP($A23,masterlist!$C$2:$K$207,9,FALSE)),\"\")","v":""}]
[{"$f":"IF(ROWS($A$6:A24)<=$A$1,INDEX(masterlist!$C$2:$C$207,SMALL(IF(masterlist!$F$2:$F$207>0,IF(masterlist!$J$2:$J$207=0,ROW(masterlist!$B$2:$B$207)-ROW(masterlist!$B$2)+1)),ROWS($A$6:A24))),\"\")","v":"PCO-Vac-5-17"},{"$f":"IFERROR(VLOOKUP($A24,masterlist!$C$2:$K$207,3,FALSE),\"\")","v":5},"PCO",{"$f":"IFERROR(VLOOKUP($A24,masterlist!$C$2:$AD$207,28,FALSE),\"\")","v":"Bien que le pays soit indemne de rage grâce à des campagnes de vaccination de masse réussies, des campagnes stratégiques de vaccination des chiens sont maintenues lorsque cela se justifie."},{"$f":"IFERROR(IF((VLOOKUP($A24,masterlist!$C$2:$K$207,9,FALSE))=0,\"\",VLOOKUP($A24,masterlist!$C$2:$K$207,9,FALSE)),\"\")","v":""}]
[{"$f":"IF(ROWS($A$6:A25)<=$A$1,INDEX(masterlist!$C$2:$C$207,SMALL(IF(masterlist!$F$2:$F$207>0,IF(masterlist!$J$2:$J$207=0,ROW(masterlist!$B$2:$B$207)-ROW(masterlist!$B$2)+1)),ROWS($A$6:A25))),\"\")","v":"PCO-Rép-1-18"},{"$f":"IFERROR(VLOOKUP($A25,masterlist!$C$2:$K$207,3,FALSE),\"\")","v":1},"PCO",{"$f":"IFERROR(VLOOKUP($A25,masterlist!$C$2:$AD$207,28,FALSE),\"\")","v":"Établir des protocoles pour les enquêtes conjointes sur les cas de rage."},{"$f":"IFERROR(IF((VLOOKUP($A25,masterlist!$C$2:$K$207,9,FALSE))=0,\"\",VLOOKUP($A25,masterlist!$C$2:$K$207,9,FALSE)),\"\")","v":""}]
[{"$f":"IF(ROWS($A$6:A26)<=$A$1,INDEX(masterlist!$C$2:$C$207,SMALL(IF(masterlist!$F$2:$F$207>0,IF(masterlist!$J$2:$J$207=0,ROW(masterlist!$B$2:$B$207)-ROW(masterlist!$B$2)+1)),ROWS($A$6:A26))),\"\")","v":"PCO-Rép-1-19"},{"$f":"IFERROR(VLOOKUP($A26,masterlist!$C$2:$K$207,3,FALSE),\"\")","v":1},"PCO",{"$f":"IFERROR(VLOOKUP($A26,masterlist!$C$2:$AD$207,28,FALSE),\"\")","v":"Mettre en œuvre les protocoles communs d'investigation des cas de rage dans au moins une région du pays."},{"$f":"IFERROR(IF((VLOOKUP($A26,masterlist!$C$2:$K$207,9,FALSE))=0,\"\",VLOOKUP($A26,masterlist!$C$2:$K$207,9,FALSE)),\"\")","v":""}]
[{"$f":"IF(ROWS($A$6:A27)<=$A$1,INDEX(masterlist!$C$2:$C$207,SMALL(IF(masterlist!$F$2:$F$207>0,IF(masterlist!$J$2:$J$207=0,ROW(masterlist!$B$2:$B$207)-ROW(masterlist!$B$2)+1)),ROWS($A$6:A27))),\"\")","v":"PCO-Rép-2-20"},{"$f":"IFERROR(VLOOKUP($A27,masterlist!$C$2:$K$207,3,FALSE),\"\")","v":2},"PCO",{"$f":"IFERROR(VLOOKUP($A27,masterlist!$C$2:$AD$207,28,FALSE),\"\")","v":"Finaliser les protocoles d'enquête conjointe sur les cas de rage - y compris le partage d'informations entre les secteurs - au niveau national."},{"$f":"IFERROR(IF((VLOOKUP($A27,masterlist!$C$2:$K$207,9,FALSE))=0,\"\",VLOOKUP($A27,masterlist!$C$2:$K$207,9,FALSE)),\"\")","v":""}]
[{"$f":"IF(ROWS($A$6:A28)<=$A$1,INDEX(masterlist!$C$2:$C$207,SMALL(IF(masterlist!$F$2:$F$207>0,IF(masterlist!$J$2:$J$207=0,ROW(masterlist!$B$2:$B$207)-ROW(masterlist!$B$2)+1)),ROWS($A$6:A28))),\"\")","v":"PCO-Rép-2-21"},{"$f":"IFERROR(VLOOKUP($A28,masterlist!$C$2:$K$207,3,FALSE),\"\")","v":2},"PCO",{"$f":"IFERROR(VLOOKUP($A28,masterlist!$C$2:$AD$207,28,FALSE),\"\")","v":"Mettre en œuvre toute réponse active aux foyers conformément aux protocoles d'enquête conjointe établis."},{"$f":"IFERROR(IF((VLOOKUP($A28,masterlist!$C$2:$K$207,9,FALSE))=0,\"\",VLOOKUP($A28,masterlist!$C$2:$K$207,9,FALSE)),\"\")","v":""}]
[{"$f":"IF(ROWS($A$6:A29)<=$A$1,INDEX(masterlist!$C$2:$C$207,SMALL(IF(masterlist!$F$2:$F$207>0,IF(masterlist!$J$2:$J$207=0,ROW(masterlist!$B$2:$B$207)-ROW(masterlist!$B$2)+1)),ROWS($A$6:A29))),\"\")","v":"PCO-Rép-2-22"},{"$f":"IFERROR(VLOOKUP($A29,masterlist!$C$2:$K$207,3,FALSE),\"\")","v":2},"PCO",{"$f":"IFERROR(VLOOKUP($A29,masterlist!$C$2:$AD$207,28,FALSE),\"\")","v":"Élaborer des protocoles pour l'observation des chiens suspects d'être enragés."},{"$f":"IFERROR(IF((VLOOKUP($A29,masterlist!$C$2:$K$207,9,FALSE))=0,\"\",VLOOKUP($A29,masterlist!$C$2:$K$207,9,FALSE)),\"\")","v":""}]
[{"$f":"IF(ROWS($A$6:A30)<=$A$1,INDEX(masterlist!$C$2:$C$207,SMALL(IF(masterlist!$F$2:$F$207>0,IF(masterlist!$J$2:$J$207=0,ROW(masterlist!$B$2:$B$207)-ROW(masterlist!$B$2)+1)),ROWS($A$6:A30))),\"\")","v":"PCO-Rép-2-23"},{"$f":"IFERROR(VLOOKUP($A30,masterlist!$C$2:$K$207,3,FALSE),\"\")","v":2},"PCO",{"$f":"IFERROR(VLOOKUP($A30,masterlist!$C$2:$AD$207,28,FALSE),\"\")","v":"Mettre en place des installations d'observation ou élaborer des protocoles de quarantaine à domicile pour les chiens suspects d'être enragés."},{"$f":"IFERROR(IF((VLOOKUP($A30,masterlist!$C$2:$K$207,9,FALSE))=0,\"\",VLOOKUP($A30,masterlist!$C$2:$K$207,9,FALSE)),\"\")","v":""}]
[{"$f":"IF(ROWS($A$6:A31)<=$A$1,INDEX(masterlist!$C$2:$C$207,SMALL(IF(masterlist!$F$2:$F$207>0,IF(masterlist!$J$2:$J$207=0,ROW(masterlist!$B$2:$B$207)-ROW(masterlist!$B$2)+1)),ROWS($A$6:A31))),\"\")","v":"PCO-Rép-2-24"},{"$f":"IFERROR(VLOOKUP($A31,masterlist!$C$2:$K$207,3,FALSE),\"\")","v":2},"PCO",{"$f":"IFERROR(VLOOKUP($A31,masterlist!$C$2:$AD$207,28,FALSE),\"\")","v":"Mettre en œuvre des mesures vétérinaires d'inspection aux frontières et de quarantaine à tous les points d'entrée officiels dans le pays."},{"$f":"IFERROR(IF((VLOOKUP($A31,masterlist!$C$2:$K$207,9,FALSE))=0,\"\",VLOOKUP($A31,masterlist!$C$2:$K$207,9,FALSE)),\"\")","v":""}]
[{"$f":"IF(ROWS($A$6:A32)<=$A$1,INDEX(masterlist!$C$2:$C$207,SMALL(IF(masterlist!$F$2:$F$207>0,IF(masterlist!$J$2:$J$207=0,ROW(masterlist!$B$2:$B$207)-ROW(masterlist!$B$2)+1)),ROWS($A$6:A32))),\"\")","v":"PCO-Rép-3-25"},{"$f":"IFERROR(VLOOKUP($A32,masterlist!$C$2:$K$207,3,FALSE),\"\")","v":3},"PCO",{"$f":"IFERROR(VLOOKUP($A32,masterlist!$C$2:$AD$207,28,FALSE),\"\")","v":"Mettre en place les capacités nécessaires pour mener des enquêtes conjointes sur le terrain et des réponses planifiées aux foyers de rage humaine dans l'ensemble du pays"},{"$f":"IFERROR(IF((VLOOKUP($A32,masterlist!$C$2:$K$207,9,FALSE))=0,\"\",VLOOKUP($A32,masterlist!$C$2:$K$207,9,FALSE)),\"\")","v":""}]
[{"$f":"IF(ROWS($A$6:A33)<=$A$1,INDEX(masterlist!$C$2:$C$207,SMALL(IF(masterlist!$F$2:$F$207>0,IF(masterlist!$J$2:$J$207=0,ROW(masterlist!$B$2:$B$207)-ROW(masterlist!$B$2)+1)),ROWS($A$6:A33))),\"\")","v":"PCO-Rép-3-26"},{"$f":"IFERROR(VLOOKUP($A33,masterlist!$C$2:$K$207,3,FALSE),\"\")","v":3},"PCO",{"$f":"IFERROR(VLOOKUP($A33,masterlist!$C$2:$AD$207,28,FALSE),\"\")","v":"Engager un dialogue avec les pays voisins pour empêcher la réintroduction de la rage dans les zones désignées comme exemptes de rage."},{"$f":"IFERROR(IF((VLOOKUP($A33,masterlist!$C$2:$K$207,9,FALSE))=0,\"\",VLOOKUP($A33,masterlist!$C$2:$K$207,9,FALSE)),\"\")","v":""}]
[{"$f":"IF(ROWS($A$6:A34)<=$A$1,INDEX(masterlist!$C$2:$C$207,SMALL(IF(masterlist!$F$2:$F$207>0,IF(masterlist!$J$2:$J$207=0,ROW(masterlist!$B$2:$B$207)-ROW(masterlist!$B$2)+1)),ROWS($A$6:A34))),\"\")","v":"PCO-Rép-3-27"},{"$f":"IFERROR(VLOOKUP($A34,masterlist!$C$2:$K$207,3,FALSE),\"\")","v":3},"PCO",{"$f":"IFERROR(VLOOKUP($A34,masterlist!$C$2:$AD$207,28,FALSE),\"\")","v":"Mettre en place les capacités nécessaires pour mener des enquêtes conjointes sur le terrain et des réponses planifiées aux foyers de rage animale dans l'ensemble du pays."},{"$f":"IFERROR(IF((VLOOKUP($A34,masterlist!$C$2:$K$207,9,FALSE))=0,\"\",VLOOKUP($A34,masterlist!$C$2:$K$207,9,FALSE)),\"\")","v":""}]
[{"$f":"IF(ROWS($A$6:A35)<=$A$1,INDEX(masterlist!$C$2:$C$207,SMALL(IF(masterlist!$F$2:$F$207>0,IF(masterlist!$J$2:$J$207=0,ROW(masterlist!$B$2:$B$207)-ROW(masterlist!$B$2)+1)),ROWS($A$6:A35))),\"\")","v":"PCO-Rép-3-28"},{"$f":"IFERROR(VLOOKUP($A35,masterlist!$C$2:$K$207,3,FALSE),\"\")","v":3},"PCO",{"$f":"IFERROR(VLOOKUP($A35,masterlist!$C$2:$AD$207,28,FALSE),\"\")","v":"Alors que le pays se rapproche de l'élimination de la rage humaine, il convient de mener des enquêtes sur le terrain pour TOUS les cas suspects de rage humaine dans l'ensemble du pays."},{"$f":"IFERROR(IF((VLOOKUP($A35,masterlist!$C$2:$K$207,9,FALSE))=0,\"\",VLOOKUP($A35,masterlist!$C$2:$K$207,9,FALSE)),\"\")","v":""}]
[{"$f":"IF(ROWS($A$6:A36)<=$A$1,INDEX(masterlist!$C$2:$C$207,SMALL(IF(masterlist!$F$2:$F$207>0,IF(masterlist!$J$2:$J$207=0,ROW(masterlist!$B$2:$B$207)-ROW(masterlist!$B$2)+1)),ROWS($A$6:A36))),\"\")","v":"PCO-Rép-4-29"},{"$f":"IFERROR(VLOOKUP($A36,masterlist!$C$2:$K$207,3,FALSE),\"\")","v":4},"PCO",{"$f":"IFERROR(VLOOKUP($A36,masterlist!$C$2:$AD$207,28,FALSE),\"\")","v":"Alors que le pays se rapproche de l'élimination de la rage canine, mener des enquêtes sur le terrain pour TOUS les cas suspects de rage canine dans l'ensemble du pays."},{"$f":"IFERROR(IF((VLOOKUP($A36,masterlist!$C$2:$K$207,9,FALSE))=0,\"\",VLOOKUP($A36,masterlist!$C$2:$K$207,9,FALSE)),\"\")","v":""}]
[{"$f":"IF(ROWS($A$6:A37)<=$A$1,INDEX(masterlist!$C$2:$C$207,SMALL(IF(masterlist!$F$2:$F$207>0,IF(masterlist!$J$2:$J$207=0,ROW(masterlist!$B$2:$B$207)-ROW(masterlist!$B$2)+1)),ROWS($A$6:A37))),\"\")","v":"PCO-Rép-4-30"},{"$f":"IFERROR(VLOOKUP($A37,masterlist!$C$2:$K$207,3,FALSE),\"\")","v":4},"PCO",{"$f":"IFERROR(VLOOKUP($A37,masterlist!$C$2:$AD$207,28,FALSE),\"\")","v":"Étant donné qu'il n'y a plus de cas de rage humaine confirmés en laboratoire, maintenir les activités de surveillance existantes pour tous les cas suspects chez l'homme dans le pays."},{"$f":"IFERROR(IF((VLOOKUP($A37,masterlist!$C$2:$K$207,9,FALSE))=0,\"\",VLOOKUP($A37,masterlist!$C$2:$K$207,9,FALSE)),\"\")","v":""}]
[{"$f":"IF(ROWS($A$6:A38)<=$A$1,INDEX(masterlist!$C$2:$C$207,SMALL(IF(masterlist!$F$2:$F$207>0,IF(masterlist!$J$2:$J$207=0,ROW(masterlist!$B$2:$B$207)-ROW(masterlist!$B$2)+1)),ROWS($A$6:A38))),\"\")","v":"PCO-Rép-4-31"},{"$f":"IFERROR(VLOOKUP($A38,masterlist!$C$2:$K$207,3,FALSE),\"\")","v":4},"PCO",{"$f":"IFERROR(VLOOKUP($A38,masterlist!$C$2:$AD$207,28,FALSE),\"\")","v":"Maintenant qu'il y a très peu de cas de rage animale dans le pays, élaborer une réponse d'urgence ou un plan de secours au cas où la variante canine de la rage serait réintroduite dans les zones exemptes de rage."},{"$f":"IFERROR(IF((VLOOKUP($A38,masterlist!$C$2:$K$207,9,FALSE))=0,\"\",VLOOKUP($A38,masterlist!$C$2:$K$207,9,FALSE)),\"\")","v":""}]
[{"$f":"IF(ROWS($A$6:A39)<=$A$1,INDEX(masterlist!$C$2:$C$207,SMALL(IF(masterlist!$F$2:$F$207>0,IF(masterlist!$J$2:$J$207=0,ROW(masterlist!$B$2:$B$207)-ROW(masterlist!$B$2)+1)),ROWS($A$6:A39))),\"\")","v":"PCO-Rép-5-32"},{"$f":"IFERROR(VLOOKUP($A39,masterlist!$C$2:$K$207,3,FALSE),\"\")","v":5},"PCO",{"$f":"IFERROR(VLOOKUP($A39,masterlist!$C$2:$AD$207,28,FALSE),\"\")","v":"Même si vous êtes débarrassé de la rage canine grâce à des campagnes de vaccination de masse réussies, maintenir la capacité d'intervention conjointe en cas d'épidémie."},{"$f":"IFERROR(IF((VLOOKUP($A39,masterlist!$C$2:$K$207,9,FALSE))=0,\"\",VLOOKUP($A39,masterlist!$C$2:$K$207,9,FALSE)),\"\")","v":""}]
[{"$f":"IF(ROWS($A$6:A40)<=$A$1,INDEX(masterlist!$C$2:$C$207,SMALL(IF(masterlist!$F$2:$F$207>0,IF(masterlist!$J$2:$J$207=0,ROW(masterlist!$B$2:$B$207)-ROW(masterlist!$B$2)+1)),ROWS($A$6:A40))),\"\")","v":"LAB-Cap-2-5"},{"$f":"IFERROR(VLOOKUP($A40,masterlist!$C$2:$K$207,3,FALSE),\"\")","v":2},"LAB",{"$f":"IFERROR(VLOOKUP($A40,masterlist!$C$2:$AD$207,28,FALSE),\"\")","v":"Effectuer des essais de compétence avec un laboratoire reconnu à l'échelle internationale."},{"$f":"IFERROR(IF((VLOOKUP($A40,masterlist!$C$2:$K$207,9,FALSE))=0,\"\",VLOOKUP($A40,masterlist!$C$2:$K$207,9,FALSE)),\"\")","v":""}]
[{"$f":"IF(ROWS($A$6:A41)<=$A$1,INDEX(masterlist!$C$2:$C$207,SMALL(IF(masterlist!$F$2:$F$207>0,IF(masterlist!$J$2:$J$207=0,ROW(masterlist!$B$2:$B$207)-ROW(masterlist!$B$2)+1)),ROWS($A$6:A41))),\"\")","v":"LAB-Cap-2-6"},{"$f":"IFERROR(VLOOKUP($A41,masterlist!$C$2:$K$207,3,FALSE),\"\")","v":2},"LAB",{"$f":"IFERROR(VLOOKUP($A41,masterlist!$C$2:$AD$207,28,FALSE),\"\")","v":"Mettre en place un système régulier de collecte et de transport de prélèvements dans tout le pays."},{"$f":"IFERROR(IF((VLOOKUP($A41,masterlist!$C$2:$K$207,9,FALSE))=0,\"\",VLOOKUP($A41,masterlist!$C$2:$K$207,9,FALSE)),\"\")","v":""}]
[{"$f":"IF(ROWS($A$6:A42)<=$A$1,INDEX(masterlist!$C$2:$C$207,SMALL(IF(masterlist!$F$2:$F$207>0,IF(masterlist!$J$2:$J$207=0,ROW(masterlist!$B$2:$B$207)-ROW(masterlist!$B$2)+1)),ROWS($A$6:A42))),\"\")","v":"LAB-Cap-2-7"},{"$f":"IFERROR(VLOOKUP($A42,masterlist!$C$2:$K$207,3,FALSE),\"\")","v":2},"LAB",{"$f":"IFERROR(VLOOKUP($A42,masterlist!$C$2:$AD$207,28,FALSE),\"\")","v":"Diagnostiquer les prélèvements suspects de rage animale dans le pays la plupart (sinon tous) des mois de l'année."},{"$f":"IFERROR(IF((VLOOKUP($A42,masterlist!$C$2:$K$207,9,FALSE))=0,\"\",VLOOKUP($A42,masterlist!$C$2:$K$207,9,FALSE)),\"\")","v":""}]
[{"$f":"IF(ROWS($A$6:A43)<=$A$1,INDEX(masterlist!$C$2:$C$207,SMALL(IF(masterlist!$F$2:$F$207>0,IF(masterlist!$J$2:$J$207=0,ROW(masterlist!$B$2:$B$207)-ROW(masterlist!$B$2)+1)),ROWS($A$6:A43))),\"\")","v":"LAB-Cap-2-8"},{"$f":"IFERROR(VLOOKUP($A43,masterlist!$C$2:$K$207,3,FALSE),\"\")","v":2},"LAB",{"$f":"IFERROR(VLOOKUP($A43,masterlist!$C$2:$AD$207,28,FALSE),\"\")","v":"Inclure la surveillance active (animaux trouvés morts, animaux tués sur la route, etc.) dans vos activités de surveillance de routine dans l'ensemble du pays."},{"$f":"IFERROR(IF((VLOOKUP($A43,masterlist!$C$2:$K$207,9,FALSE))=0,\"\",VLOOKUP($A43,masterlist!$C$2:$K$207,9,FALSE)),\"\")","v":""}]
[{"$f":"IF(ROWS($A$6:A44)<=$A$1,INDEX(masterlist!$C$2:$C$207,SMALL(IF(masterlist!$F$2:$F$207>0,IF(masterlist!$J$2:$J$207=0,ROW(masterlist!$B$2:$B$207)-ROW(masterlist!$B$2)+1)),ROWS($A$6:A44))),\"\")","v":"LAB-Cap-3-9"},{"$f":"IFERROR(VLOOKUP($A44,masterlist!$C$2:$K$207,3,FALSE),\"\")","v":3},"LAB",{"$f":"IFERROR(VLOOKUP($A44,masterlist!$C$2:$AD$207,28,FALSE),\"\")","v":"Garantir l'accès à des diagnostics de laboratoire fiables et rapides dans tout le pays pour les prélèvements d'animaux (et si possible également pour les prélèvements humains et d'animaux sauvages)."},{"$f":"IFERROR(IF((VLOOKUP($A44,masterlist!$C$2:$K$207,9,FALSE))=0,\"\",VLOOKUP($A44,masterlist!$C$2:$K$207,9,FALSE)),\"\")","v":""}]
[{"$f":"IF(ROWS($A$6:A45)<=$A$1,INDEX(masterlist!$C$2:$C$207,SMALL(IF(masterlist!$F$2:$F$207>0,IF(masterlist!$J$2:$J$207=0,ROW(masterlist!$B$2:$B$207)-ROW(masterlist!$B$2)+1)),ROWS($A$6:A45))),\"\")","v":"LAB-Cap-3-10"},{"$f":"IFERROR(VLOOKUP($A45,masterlist!$C$2:$K$207,3,FALSE),\"\")","v":3},"LAB",{"$f":"IFERROR(VLOOKUP($A45,masterlist!$C$2:$AD$207,28,FALSE),\"\")","v":"Évaluer régulièrement la capacité du pays à diagnostiquer avec certitude les échantillons suspects de rage."},{"$f":"IFERROR(IF((VLOOKUP($A45,masterlist!$C$2:$K$207,9,FALSE))=0,\"\",VLOOKUP($A45,masterlist!$C$2:$K$207,9,FALSE)),\"\")","v":""}]
[{"$f":"IF(ROWS($A$6:A46)<=$A$1,INDEX(masterlist!$C$2:$C$207,SMALL(IF(masterlist!$F$2:$F$207>0,IF(masterlist!$J$2:$J$207=0,ROW(masterlist!$B$2:$B$207)-ROW(masterlist!$B$2)+1)),ROWS($A$6:A46))),\"\")","v":"LAB-Cap-4-11"},{"$f":"IFERROR(VLOOKUP($A46,masterlist!$C$2:$K$207,3,FALSE),\"\")","v":4},"LAB",{"$f":"IFERROR(VLOOKUP($A46,masterlist!$C$2:$AD$207,28,FALSE),\"\")","v":"Maintenant qu'il y a très peu de cas de rage animale dans le pays, il faut s'assurer qu'un diagnostic de laboratoire est opérationnel pour tous les cas suspects chez les chiens dans le pays."},{"$f":"IFERROR(IF((VLOOKUP($A46,masterlist!$C$2:$K$207,9,FALSE))=0,\"\",VLOOKUP($A46,masterlist!$C$2:$K$207,9,FALSE)),\"\")","v":""}]
[{"$f":"IF(ROWS($A$6:A47)<=$A$1,INDEX(masterlist!$C$2:$C$207,SMALL(IF(masterlist!$F$2:$F$207>0,IF(masterlist!$J$2:$J$207=0,ROW(masterlist!$B$2:$B$207)-ROW(masterlist!$B$2)+1)),ROWS($A$6:A47))),\"\")","v":"LAB-Cap-4-12"},{"$f":"IFERROR(VLOOKUP($A47,masterlist!$C$2:$K$207,3,FALSE),\"\")","v":4},"LAB",{"$f":"IFERROR(VLOOKUP($A47,masterlist!$C$2:$AD$207,28,FALSE),\"\")","v":"Caractériser et analyser régulièrement les variants du virus de la rage en circulation dans un laboratoire national ou international."},{"$f":"IFERROR(IF((VLOOKUP($A47,masterlist!$C$2:$K$207,9,FALSE))=0,\"\",VLOOKUP($A47,masterlist!$C$2:$K$207,9,FALSE)),\"\")","v":""}]
[{"$f":"IF(ROWS($A$6:A48)<=$A$1,INDEX(masterlist!$C$2:$C$207,SMALL(IF(masterlist!$F$2:$F$207>0,IF(masterlist!$J$2:$J$207=0,ROW(masterlist!$B$2:$B$207)-ROW(masterlist!$B$2)+1)),ROWS($A$6:A48))),\"\")","v":"LAB-Cap-4-13"},{"$f":"IFERROR(VLOOKUP($A48,masterlist!$C$2:$K$207,3,FALSE),\"\")","v":4},"LAB",{"$f":"IFERROR(VLOOKUP($A48,masterlist!$C$2:$AD$207,28,FALSE),\"\")","v":"Si des variantes terrestres de la rage sont présentes dans le pays, veiller à ce que des prélèvements d'animaux sauvages soient régulièrement soumis à un diagnostic de rage en laboratoire."},{"$f":"IFERROR(IF((VLOOKUP($A48,masterlist!$C$2:$K$207,9,FALSE))=0,\"\",VLOOKUP($A48,masterlist!$C$2:$K$207,9,FALSE)),\"\")","v":""}]
[{"$f":"IF(ROWS($A$6:A49)<=$A$1,INDEX(masterlist!$C$2:$C$207,SMALL(IF(masterlist!$F$2:$F$207>0,IF(masterlist!$J$2:$J$207=0,ROW(masterlist!$B$2:$B$207)-ROW(masterlist!$B$2)+1)),ROWS($A$6:A49))),\"\")","v":"LAB-Cap-5-14"},{"$f":"IFERROR(VLOOKUP($A49,masterlist!$C$2:$K$207,3,FALSE),\"\")","v":5},"LAB",{"$f":"IFERROR(VLOOKUP($A49,masterlist!$C$2:$AD$207,28,FALSE),\"\")","v":"Même si le pays est exempt de rage canine grâce à des campagnes de vaccination de masse réussies, il convient de veiller à ce que tous les cas suspects chez les espèces domestiques et celles de la faune sauvage terrestre fassent l'objet d'enquêtes de laboratoire permanentes dans le pays."},{"$f":"IFERROR(IF((VLOOKUP($A49,masterlist!$C$2:$K$207,9,FALSE))=0,\"\",VLOOKUP($A49,masterlist!$C$2:$K$207,9,FALSE)),\"\")","v":""}]
[{"$f":"IF(ROWS($A$6:A50)<=$A$1,INDEX(masterlist!$C$2:$C$207,SMALL(IF(masterlist!$F$2:$F$207>0,IF(masterlist!$J$2:$J$207=0,ROW(masterlist!$B$2:$B$207)-ROW(masterlist!$B$2)+1)),ROWS($A$6:A50))),\"\")","v":"DPM--0-1"},{"$f":"IFERROR(VLOOKUP($A50,masterlist!$C$2:$K$207,3,FALSE),\"\")","v":0},"DPM",{"$f":"IFERROR(VLOOKUP($A50,masterlist!$C$2:$AD$207,28,FALSE),\"\")","v":"Faire en sorte qu'une des parties prenantes entreprenne des activités de gestion compassionnelle de la population canine dans au moins une région du pays."},{"$f":"IFERROR(IF((VLOOKUP($A50,masterlist!$C$2:$K$207,9,FALSE))=0,\"\",VLOOKUP($A50,masterlist!$C$2:$K$207,9,FALSE)),\"\")","v":""}]
[{"$f":"IF(ROWS($A$6:A51)<=$A$1,INDEX(masterlist!$C$2:$C$207,SMALL(IF(masterlist!$F$2:$F$207>0,IF(masterlist!$J$2:$J$207=0,ROW(masterlist!$B$2:$B$207)-ROW(masterlist!$B$2)+1)),ROWS($A$6:A51))),\"\")","v":"DPM--1-2"},{"$f":"IFERROR(VLOOKUP($A51,masterlist!$C$2:$K$207,3,FALSE),\"\")","v":1},"DPM",{"$f":"IFERROR(VLOOKUP($A51,masterlist!$C$2:$AD$207,28,FALSE),\"\")","v":"Travailler activement à mettre fin à l'abattage indiscriminé des chiens dans le cadre de la gestion des populations canines ou de la lutte contre la rage."},{"$f":"IFERROR(IF((VLOOKUP($A51,masterlist!$C$2:$K$207,9,FALSE))=0,\"\",VLOOKUP($A51,masterlist!$C$2:$K$207,9,FALSE)),\"\")","v":""}]
[{"$f":"IF(ROWS($A$6:A52)<=$A$1,INDEX(masterlist!$C$2:$C$207,SMALL(IF(masterlist!$F$2:$F$207>0,IF(masterlist!$J$2:$J$207=0,ROW(masterlist!$B$2:$B$207)-ROW(masterlist!$B$2)+1)),ROWS($A$6:A52))),\"\")","v":"DPM- -1-4"},{"$f":"IFERROR(VLOOKUP($A52,masterlist!$C$2:$K$207,3,FALSE),\"\")","v":1},"DPM",{"$f":"IFERROR(VLOOKUP($A52,masterlist!$C$2:$AD$207,28,FALSE),\"\")","v":"Impliquer les acteurs municipaux dans les discussions concernant la gestion compassionnelle de la population canine."},{"$f":"IFERROR(IF((VLOOKUP($A52,masterlist!$C$2:$K$207,9,FALSE))=0,\"\",VLOOKUP($A52,masterlist!$C$2:$K$207,9,FALSE)),\"\")","v":"Au niveau local, les acteurs sont impliques de facon permanante. Au niveau national, ils font partie des comites de lutte contre les zoonoses"}]
[{"$f":"IF(ROWS($A$6:A53)<=$A$1,INDEX(masterlist!$C$2:$C$207,SMALL(IF(masterlist!$F$2:$F$207>0,IF(masterlist!$J$2:$J$207=0,ROW(masterlist!$B$2:$B$207)-ROW(masterlist!$B$2)+1)),ROWS($A$6:A53))),\"\")","v":"DPM- -1-5"},{"$f":"IFERROR(VLOOKUP($A53,masterlist!$C$2:$K$207,3,FALSE),\"\")","v":1},"DPM",{"$f":"IFERROR(VLOOKUP($A53,masterlist!$C$2:$AD$207,28,FALSE),\"\")","v":"Déterminer un nombre de référence de chiens dans une zone (par exemple, un projet pilote)."},{"$f":"IFERROR(IF((VLOOKUP($A53,masterlist!$C$2:$K$207,9,FALSE))=0,\"\",VLOOKUP($A53,masterlist!$C$2:$K$207,9,FALSE)),\"\")","v":""}]
[{"$f":"IF(ROWS($A$6:A54)<=$A$1,INDEX(masterlist!$C$2:$C$207,SMALL(IF(masterlist!$F$2:$F$207>0,IF(masterlist!$J$2:$J$207=0,ROW(masterlist!$B$2:$B$207)-ROW(masterlist!$B$2)+1)),ROWS($A$6:A54))),\"\")","v":"DPM- -2-6"},{"$f":"IFERROR(VLOOKUP($A54,masterlist!$C$2:$K$207,3,FALSE),\"\")","v":2},"DPM",{"$f":"IFERROR(VLOOKUP($A54,masterlist!$C$2:$AD$207,28,FALSE),\"\")","v":"Rédiger et partager une stratégie de GCPC avec toutes les parties prenantes concernées pour une zone donnée (par exemple, un projet pilote)."},{"$f":"IFERROR(IF((VLOOKUP($A54,masterlist!$C$2:$K$207,9,FALSE))=0,\"\",VLOOKUP($A54,masterlist!$C$2:$K$207,9,FALSE)),\"\")","v":""}]
[{"$f":"IF(ROWS($A$6:A55)<=$A$1,INDEX(masterlist!$C$2:$C$207,SMALL(IF(masterlist!$F$2:$F$207>0,IF(masterlist!$J$2:$J$207=0,ROW(masterlist!$B$2:$B$207)-ROW(masterlist!$B$2)+1)),ROWS($A$6:A55))),\"\")","v":"DPM- -2-7"},{"$f":"IFERROR(VLOOKUP($A55,masterlist!$C$2:$K$207,3,FALSE),\"\")","v":2},"DPM",{"$f":"IFERROR(VLOOKUP($A55,masterlist!$C$2:$AD$207,28,FALSE),\"\")","v":"Finaliser et mettre en œuvre la stratégie de gestion compassionnelle des populations canines dans une zone (par exemple, un projet pilote)."},{"$f":"IFERROR(IF((VLOOKUP($A55,masterlist!$C$2:$K$207,9,FALSE))=0,\"\",VLOOKUP($A55,masterlist!$C$2:$K$207,9,FALSE)),\"\")","v":""}]
[{"$f":"IF(ROWS($A$6:A56)<=$A$1,INDEX(masterlist!$C$2:$C$207,SMALL(IF(masterlist!$F$2:$F$207>0,IF(masterlist!$J$2:$J$207=0,ROW(masterlist!$B$2:$B$207)-ROW(masterlist!$B$2)+1)),ROWS($A$6:A56))),\"\")","v":"DPM- -2-8"},{"$f":"IFERROR(VLOOKUP($A56,masterlist!$C$2:$K$207,3,FALSE),\"\")","v":2},"DPM",{"$f":"IFERROR(VLOOKUP($A56,masterlist!$C$2:$AD$207,28,FALSE),\"\")","v":"Former ou éduquer les professionnels à la gestion compassionnelle des populations canines dans une région (par exemple, un projet pilote)."},{"$f":"IFERROR(IF((VLOOKUP($A56,masterlist!$C$2:$K$207,9,FALSE))=0,\"\",VLOOKUP($A56,masterlist!$C$2:$K$207,9,FALSE)),\"\")","v":""}]
[{"$f":"IF(ROWS($A$6:A57)<=$A$1,INDEX(masterlist!$C$2:$C$207,SMALL(IF(masterlist!$F$2:$F$207>0,IF(masterlist!$J$2:$J$207=0,ROW(masterlist!$B$2:$B$207)-ROW(masterlist!$B$2)+1)),ROWS($A$6:A57))),\"\")","v":"DPM- -2-9"},{"$f":"IFERROR(VLOOKUP($A57,masterlist!$C$2:$K$207,3,FALSE),\"\")","v":2},"DPM",{"$f":"IFERROR(VLOOKUP($A57,masterlist!$C$2:$AD$207,28,FALSE),\"\")","v":"Mettre en œuvre des campagnes de sensibilisation du public à la GCPC dans une région (par exemple, projet pilote)."},{"$f":"IFERROR(IF((VLOOKUP($A57,masterlist!$C$2:$K$207,9,FALSE))=0,\"\",VLOOKUP($A57,masterlist!$C$2:$K$207,9,FALSE)),\"\")","v":"strategie et obligations destinees aux proprietaires est en place (animaux a proprietaires)"}]
[{"$f":"IF(ROWS($A$6:A58)<=$A$1,INDEX(masterlist!$C$2:$C$207,SMALL(IF(masterlist!$F$2:$F$207>0,IF(masterlist!$J$2:$J$207=0,ROW(masterlist!$B$2:$B$207)-ROW(masterlist!$B$2)+1)),ROWS($A$6:A58))),\"\")","v":"DPM- -3-10"},{"$f":"IFERROR(VLOOKUP($A58,masterlist!$C$2:$K$207,3,FALSE),\"\")","v":3},"DPM",{"$f":"IFERROR(VLOOKUP($A58,masterlist!$C$2:$AD$207,28,FALSE),\"\")","v":"Évaluer et affiner la stratégie de GCPC sur la base des résultats obtenus dans la zone du projet (par exemple, le projet pilote)."},{"$f":"IFERROR(IF((VLOOKUP($A58,masterlist!$C$2:$K$207,9,FALSE))=0,\"\",VLOOKUP($A58,masterlist!$C$2:$K$207,9,FALSE)),\"\")","v":""}]
[{"$f":"IF(ROWS($A$6:A59)<=$A$1,INDEX(masterlist!$C$2:$C$207,SMALL(IF(masterlist!$F$2:$F$207>0,IF(masterlist!$J$2:$J$207=0,ROW(masterlist!$B$2:$B$207)-ROW(masterlist!$B$2)+1)),ROWS($A$6:A59))),\"\")","v":"DPM- -3-11"},{"$f":"IFERROR(VLOOKUP($A59,masterlist!$C$2:$K$207,3,FALSE),\"\")","v":3},"DPM",{"$f":"IFERROR(VLOOKUP($A59,masterlist!$C$2:$AD$207,28,FALSE),\"\")","v":"Étendre à d'autres régions du pays les campagnes de sensibilisation du public à la GCPC."},{"$f":"IFERROR(IF((VLOOKUP($A59,masterlist!$C$2:$K$207,9,FALSE))=0,\"\",VLOOKUP($A59,masterlist!$C$2:$K$207,9,FALSE)),\"\")","v":""}]
[{"$f":"IF(ROWS($A$6:A60)<=$A$1,INDEX(masterlist!$C$2:$C$207,SMALL(IF(masterlist!$F$2:$F$207>0,IF(masterlist!$J$2:$J$207=0,ROW(masterlist!$B$2:$B$207)-ROW(masterlist!$B$2)+1)),ROWS($A$6:A60))),\"\")","v":"DPM- -3-12"},{"$f":"IFERROR(VLOOKUP($A60,masterlist!$C$2:$K$207,3,FALSE),\"\")","v":3},"DPM",{"$f":"IFERROR(VLOOKUP($A60,masterlist!$C$2:$AD$207,28,FALSE),\"\")","v":"Former les professionnels vétérinaires et animaliers concernés à la mise en œuvre de la GCPC dans l'ensemble du pays."},{"$f":"IFERROR(IF((VLOOKUP($A60,masterlist!$C$2:$K$207,9,FALSE))=0,\"\",VLOOKUP($A60,masterlist!$C$2:$K$207,9,FALSE)),\"\")","v":""}]
[{"$f":"IF(ROWS($A$6:A61)<=$A$1,INDEX(masterlist!$C$2:$C$207,SMALL(IF(masterlist!$F$2:$F$207>0,IF(masterlist!$J$2:$J$207=0,ROW(masterlist!$B$2:$B$207)-ROW(masterlist!$B$2)+1)),ROWS($A$6:A61))),\"\")","v":"DPM- -5-13"},{"$f":"IFERROR(VLOOKUP($A61,masterlist!$C$2:$K$207,3,FALSE),\"\")","v":5},"DPM",{"$f":"IFERROR(VLOOKUP($A61,masterlist!$C$2:$AD$207,28,FALSE),\"\")","v":"Mettre en œuvre la stratégie finalisée de GCPC dans l'ensemble du pays."},{"$f":"IFERROR(IF((VLOOKUP($A61,masterlist!$C$2:$K$207,9,FALSE))=0,\"\",VLOOKUP($A61,masterlist!$C$2:$K$207,9,FALSE)),\"\")","v":""}]
[{"$f":"IF(ROWS($A$6:A62)<=$A$1,INDEX(masterlist!$C$2:$C$207,SMALL(IF(masterlist!$F$2:$F$207>0,IF(masterlist!$J$2:$J$207=0,ROW(masterlist!$B$2:$B$207)-ROW(masterlist!$B$2)+1)),ROWS($A$6:A62))),\"\")","v":"DPM- -5-14"},{"$f":"IFERROR(VLOOKUP($A62,masterlist!$C$2:$K$207,3,FALSE),\"\")","v":5},"DPM",{"$f":"IFERROR(VLOOKUP($A62,masterlist!$C$2:$AD$207,28,FALSE),\"\")","v":"Veiller à ce que les campagnes de GCPC se poursuivent dans tout le pays après l'élimination de la rage canine."},{"$f":"IFERROR(IF((VLOOKUP($A62,masterlist!$C$2:$K$207,9,FALSE))=0,\"\",VLOOKUP($A62,masterlist!$C$2:$K$207,9,FALSE)),\"\")","v":""}]
[{"$f":"IF(ROWS($A$6:A63)<=$A$1,INDEX(masterlist!$C$2:$C$207,SMALL(IF(masterlist!$F$2:$F$207>0,IF(masterlist!$J$2:$J$207=0,ROW(masterlist!$B$2:$B$207)-ROW(masterlist!$B$2)+1)),ROWS($A$6:A63))),\"\")","v":"IEC-Sen-1-3"},{"$f":"IFERROR(VLOOKUP($A63,masterlist!$C$2:$K$207,3,FALSE),\"\")","v":1},"IEC",{"$f":"IFERROR(VLOOKUP($A63,masterlist!$C$2:$AD$207,28,FALSE),\"\")","v":"Développer et tester un plan structuré d'IEC décrivant les publics cibles, les messages clés, les moyens de diffusion et les résultats souhaités en matière d'éducation, de sensibilisation et de prise de conscience - pour la rage et le bien-être des chiens dans une zone de projet pilote."},{"$f":"IFERROR(IF((VLOOKUP($A63,masterlist!$C$2:$K$207,9,FALSE))=0,\"\",VLOOKUP($A63,masterlist!$C$2:$K$207,9,FALSE)),\"\")","v":""}]
[{"$f":"IF(ROWS($A$6:A64)<=$A$1,INDEX(masterlist!$C$2:$C$207,SMALL(IF(masterlist!$F$2:$F$207>0,IF(masterlist!$J$2:$J$207=0,ROW(masterlist!$B$2:$B$207)-ROW(masterlist!$B$2)+1)),ROWS($A$6:A64))),\"\")","v":"IEC-Sen-2-5"},{"$f":"IFERROR(VLOOKUP($A64,masterlist!$C$2:$K$207,3,FALSE),\"\")","v":2},"IEC",{"$f":"IFERROR(VLOOKUP($A64,masterlist!$C$2:$AD$207,28,FALSE),\"\")","v":"Actualiser (si nécessaire) et mettre en œuvre le plan d'IEC dans l'ensemble du pays."},{"$f":"IFERROR(IF((VLOOKUP($A64,masterlist!$C$2:$K$207,9,FALSE))=0,\"\",VLOOKUP($A64,masterlist!$C$2:$K$207,9,FALSE)),\"\")","v":""}]
[{"$f":"IF(ROWS($A$6:A65)<=$A$1,INDEX(masterlist!$C$2:$C$207,SMALL(IF(masterlist!$F$2:$F$207>0,IF(masterlist!$J$2:$J$207=0,ROW(masterlist!$B$2:$B$207)-ROW(masterlist!$B$2)+1)),ROWS($A$6:A65))),\"\")","v":"IEC-Sen-5-6"},{"$f":"IFERROR(VLOOKUP($A65,masterlist!$C$2:$K$207,3,FALSE),\"\")","v":5},"IEC",{"$f":"IFERROR(VLOOKUP($A65,masterlist!$C$2:$AD$207,28,FALSE),\"\")","v":"Maintenant que le pays est indemne de rage humaine et animale, mettre en œuvre des programmes de sensibilisation axés sur le maintien de l'absence de rage canine et de rage humaine transmise par les chiens."},{"$f":"IFERROR(IF((VLOOKUP($A65,masterlist!$C$2:$K$207,9,FALSE))=0,\"\",VLOOKUP($A65,masterlist!$C$2:$K$207,9,FALSE)),\"\")","v":""}]
[{"$f":"IF(ROWS($A$6:A66)<=$A$1,INDEX(masterlist!$C$2:$C$207,SMALL(IF(masterlist!$F$2:$F$207>0,IF(masterlist!$J$2:$J$207=0,ROW(masterlist!$B$2:$B$207)-ROW(masterlist!$B$2)+1)),ROWS($A$6:A66))),\"\")","v":"IEC-For-1-8"},{"$f":"IFERROR(VLOOKUP($A66,masterlist!$C$2:$K$207,3,FALSE),\"\")","v":1},"IEC",{"$f":"IFERROR(VLOOKUP($A66,masterlist!$C$2:$AD$207,28,FALSE),\"\")","v":"Déterminer les besoins en matière de formation et d'éducation des professionnels de la santé animale et humaine impliqués dans l'élimination de la rage."},{"$f":"IFERROR(IF((VLOOKUP($A66,masterlist!$C$2:$K$207,9,FALSE))=0,\"\",VLOOKUP($A66,masterlist!$C$2:$K$207,9,FALSE)),\"\")","v":""}]
[{"$f":"IF(ROWS($A$6:A67)<=$A$1,INDEX(masterlist!$C$2:$C$207,SMALL(IF(masterlist!$F$2:$F$207>0,IF(masterlist!$J$2:$J$207=0,ROW(masterlist!$B$2:$B$207)-ROW(masterlist!$B$2)+1)),ROWS($A$6:A67))),\"\")","v":"IEC-For-1-9"},{"$f":"IFERROR(VLOOKUP($A67,masterlist!$C$2:$K$207,3,FALSE),\"\")","v":1},"IEC",{"$f":"IFERROR(VLOOKUP($A67,masterlist!$C$2:$AD$207,28,FALSE),\"\")","v":"Élaborer un plan structuré de formation et d'éducation décrivant les publics cibles, les principaux besoins, les moyens de formation et d'éducation, et les résultats souhaités pour les professionnels de la santé humaine et animale dans le pays."},{"$f":"IFERROR(IF((VLOOKUP($A67,masterlist!$C$2:$K$207,9,FALSE))=0,\"\",VLOOKUP($A67,masterlist!$C$2:$K$207,9,FALSE)),\"\")","v":"il y a un plan pour la vaccination humaine. Concernant la vaccination animale, les veterinaires sont competent pour sa mise en oeuvre cependant la formation en matiere capture des chiens errants n,est pas realisee. Necessite de proposer des formations en matiere de capture des chiens errants avec le secteur de l agriculture et l'interieur"}]
[{"$f":"IF(ROWS($A$6:A68)<=$A$1,INDEX(masterlist!$C$2:$C$207,SMALL(IF(masterlist!$F$2:$F$207>0,IF(masterlist!$J$2:$J$207=0,ROW(masterlist!$B$2:$B$207)-ROW(masterlist!$B$2)+1)),ROWS($A$6:A68))),\"\")","v":"IEC-For-2-11"},{"$f":"IFERROR(VLOOKUP($A68,masterlist!$C$2:$K$207,3,FALSE),\"\")","v":2},"IEC",{"$f":"IFERROR(VLOOKUP($A68,masterlist!$C$2:$AD$207,28,FALSE),\"\")","v":"Mettre en œuvre la formation structurée des professionnels de la santé humaine et animale dans la plupart des régions du pays."},{"$f":"IFERROR(IF((VLOOKUP($A68,masterlist!$C$2:$K$207,9,FALSE))=0,\"\",VLOOKUP($A68,masterlist!$C$2:$K$207,9,FALSE)),\"\")","v":""}]
[{"$f":"IF(ROWS($A$6:A69)<=$A$1,INDEX(masterlist!$C$2:$C$207,SMALL(IF(masterlist!$F$2:$F$207>0,IF(masterlist!$J$2:$J$207=0,ROW(masterlist!$B$2:$B$207)-ROW(masterlist!$B$2)+1)),ROWS($A$6:A69))),\"\")","v":"IEC-Pla-2-15"},{"$f":"IFERROR(VLOOKUP($A69,masterlist!$C$2:$K$207,3,FALSE),\"\")","v":2},"IEC",{"$f":"IFERROR(VLOOKUP($A69,masterlist!$C$2:$AD$207,28,FALSE),\"\")","v":"Faire connaître les succès du programme d'élimination de la rage aux parties prenantes identifiées."},{"$f":"IFERROR(IF((VLOOKUP($A69,masterlist!$C$2:$K$207,9,FALSE))=0,\"\",VLOOKUP($A69,masterlist!$C$2:$K$207,9,FALSE)),\"\")","v":""}]
[{"$f":"IF(ROWS($A$6:A70)<=$A$1,INDEX(masterlist!$C$2:$C$207,SMALL(IF(masterlist!$F$2:$F$207>0,IF(masterlist!$J$2:$J$207=0,ROW(masterlist!$B$2:$B$207)-ROW(masterlist!$B$2)+1)),ROWS($A$6:A70))),\"\")","v":"IEC-Pla-2-16"},{"$f":"IFERROR(VLOOKUP($A70,masterlist!$C$2:$K$207,3,FALSE),\"\")","v":2},"IEC",{"$f":"IFERROR(VLOOKUP($A70,masterlist!$C$2:$AD$207,28,FALSE),\"\")","v":"Plaider pour obtenir l'intérêt actif d'au moins une partie prenante de l'action de plaidoyer."},{"$f":"IFERROR(IF((VLOOKUP($A70,masterlist!$C$2:$K$207,9,FALSE))=0,\"\",VLOOKUP($A70,masterlist!$C$2:$K$207,9,FALSE)),\"\")","v":""}]
[{"$f":"IF(ROWS($A$6:A71)<=$A$1,INDEX(masterlist!$C$2:$C$207,SMALL(IF(masterlist!$F$2:$F$207>0,IF(masterlist!$J$2:$J$207=0,ROW(masterlist!$B$2:$B$207)-ROW(masterlist!$B$2)+1)),ROWS($A$6:A71))),\"\")","v":"IEC-Pla-3-17"},{"$f":"IFERROR(VLOOKUP($A71,masterlist!$C$2:$K$207,3,FALSE),\"\")","v":3},{"$f":"LEFT(A71,3)","v":"IEC"},{"$f":"IFERROR(VLOOKUP($A71,masterlist!$C$2:$AD$207,28,FALSE),\"\")","v":"Déclarer publiquement les zones exemptes de rage humaine transmise par les chiens."},{"$f":"IFERROR(IF((VLOOKUP($A71,masterlist!$C$2:$K$207,9,FALSE))=0,\"\",VLOOKUP($A71,masterlist!$C$2:$K$207,9,FALSE)),\"\")","v":""}]
[{"$f":"IF(ROWS($A$6:A72)<=$A$1,INDEX(masterlist!$C$2:$C$207,SMALL(IF(masterlist!$F$2:$F$207>0,IF(masterlist!$J$2:$J$207=0,ROW(masterlist!$B$2:$B$207)-ROW(masterlist!$B$2)+1)),ROWS($A$6:A72))),\"\")","v":"IEC-Pla-4-18"},{"$f":"IFERROR(VLOOKUP($A72,masterlist!$C$2:$K$207,3,FALSE),\"\")","v":4},"IEC",{"$f":"IFERROR(VLOOKUP($A72,masterlist!$C$2:$AD$207,28,FALSE),\"\")","v":"Déclarer publiquement que l'ensemble du pays est exempt de rage humaine transmise par les chiens."},{"$f":"IFERROR(IF((VLOOKUP($A72,masterlist!$C$2:$K$207,9,FALSE))=0,\"\",VLOOKUP($A72,masterlist!$C$2:$K$207,9,FALSE)),\"\")","v":""}]
[{"$f":"IF(ROWS($A$6:A73)<=$A$1,INDEX(masterlist!$C$2:$C$207,SMALL(IF(masterlist!$F$2:$F$207>0,IF(masterlist!$J$2:$J$207=0,ROW(masterlist!$B$2:$B$207)-ROW(masterlist!$B$2)+1)),ROWS($A$6:A73))),\"\")","v":"IEC-Pla-5-19"},{"$f":"IFERROR(VLOOKUP($A73,masterlist!$C$2:$K$207,3,FALSE),\"\")","v":5},"IEC",{"$f":"IFERROR(VLOOKUP($A73,masterlist!$C$2:$AD$207,28,FALSE),\"\")","v":"Déclarer publiquement que l'ensemble du pays est débarrassé de la rage canine transmise par les chiens."},{"$f":"IFERROR(IF((VLOOKUP($A73,masterlist!$C$2:$K$207,9,FALSE))=0,\"\",VLOOKUP($A73,masterlist!$C$2:$K$207,9,FALSE)),\"\")","v":""}]
[{"$f":"IF(ROWS($A$6:A74)<=$A$1,INDEX(masterlist!$C$2:$C$207,SMALL(IF(masterlist!$F$2:$F$207>0,IF(masterlist!$J$2:$J$207=0,ROW(masterlist!$B$2:$B$207)-ROW(masterlist!$B$2)+1)),ROWS($A$6:A74))),\"\")","v":"CCI-Cré-0-1"},{"$f":"IFERROR(VLOOKUP($A74,masterlist!$C$2:$K$207,3,FALSE),\"\")","v":0},"CCI",{"$f":"IFERROR(VLOOKUP($A74,masterlist!$C$2:$AD$207,28,FALSE),\"\")","v":"Informer en permanence les parties prenantes au niveau national des activités programmatiques liées à la rage mises en œuvre dans le pays."},{"$f":"IFERROR(IF((VLOOKUP($A74,masterlist!$C$2:$K$207,9,FALSE))=0,\"\",VLOOKUP($A74,masterlist!$C$2:$K$207,9,FALSE)),\"\")","v":""}]
[{"$f":"IF(ROWS($A$6:A75)<=$A$1,INDEX(masterlist!$C$2:$C$207,SMALL(IF(masterlist!$F$2:$F$207>0,IF(masterlist!$J$2:$J$207=0,ROW(masterlist!$B$2:$B$207)-ROW(masterlist!$B$2)+1)),ROWS($A$6:A75))),\"\")","v":"CCI-Cré-1-2"},{"$f":"IFERROR(VLOOKUP($A75,masterlist!$C$2:$K$207,3,FALSE),\"\")","v":1},"CCI",{"$f":"IFERROR(VLOOKUP($A75,masterlist!$C$2:$AD$207,28,FALSE),\"\")","v":"Identifier et énumérer TOUTES les parties prenantes nationales impliquées dans l'élimination de la rage."},{"$f":"IFERROR(IF((VLOOKUP($A75,masterlist!$C$2:$K$207,9,FALSE))=0,\"\",VLOOKUP($A75,masterlist!$C$2:$K$207,9,FALSE)),\"\")","v":""}]
[{"$f":"IF(ROWS($A$6:A76)<=$A$1,INDEX(masterlist!$C$2:$C$207,SMALL(IF(masterlist!$F$2:$F$207>0,IF(masterlist!$J$2:$J$207=0,ROW(masterlist!$B$2:$B$207)-ROW(masterlist!$B$2)+1)),ROWS($A$6:A76))),\"\")","v":"CCI-Cré-1-3"},{"$f":"IFERROR(VLOOKUP($A76,masterlist!$C$2:$K$207,3,FALSE),\"\")","v":1},"CCI",{"$f":"IFERROR(VLOOKUP($A76,masterlist!$C$2:$AD$207,28,FALSE),\"\")","v":"Veiller à ce que toutes les parties prenantes identifiées au niveau national participent activement à l'élimination de la rage."},{"$f":"IFERROR(IF((VLOOKUP($A76,masterlist!$C$2:$K$207,9,FALSE))=0,\"\",VLOOKUP($A76,masterlist!$C$2:$K$207,9,FALSE)),\"\")","v":""}]
[{"$f":"IF(ROWS($A$6:A77)<=$A$1,INDEX(masterlist!$C$2:$C$207,SMALL(IF(masterlist!$F$2:$F$207>0,IF(masterlist!$J$2:$J$207=0,ROW(masterlist!$B$2:$B$207)-ROW(masterlist!$B$2)+1)),ROWS($A$6:A77))),\"\")","v":"CCI-Cré-2-5"},{"$f":"IFERROR(VLOOKUP($A77,masterlist!$C$2:$K$207,3,FALSE),\"\")","v":2},"CCI",{"$f":"IFERROR(VLOOKUP($A77,masterlist!$C$2:$AD$207,28,FALSE),\"\")","v":"Inclure le secteur privé dans le groupe de travail intersectoriel."},{"$f":"IFERROR(IF((VLOOKUP($A77,masterlist!$C$2:$K$207,9,FALSE))=0,\"\",VLOOKUP($A77,masterlist!$C$2:$K$207,9,FALSE)),\"\")","v":"taskforce existe mais le secteur prive nest pas implique"}]
[{"$f":"IF(ROWS($A$6:A78)<=$A$1,INDEX(masterlist!$C$2:$C$207,SMALL(IF(masterlist!$F$2:$F$207>0,IF(masterlist!$J$2:$J$207=0,ROW(masterlist!$B$2:$B$207)-ROW(masterlist!$B$2)+1)),ROWS($A$6:A78))),\"\")","v":"CCI-Pro-2-8"},{"$f":"IFERROR(VLOOKUP($A78,masterlist!$C$2:$K$207,3,FALSE),\"\")","v":2},"CCI",{"$f":"IFERROR(VLOOKUP($A78,masterlist!$C$2:$AD$207,28,FALSE),\"\")","v":"Rédiger et finaliser un plan stratégique national pour la rage."},{"$f":"IFERROR(IF((VLOOKUP($A78,masterlist!$C$2:$K$207,9,FALSE))=0,\"\",VLOOKUP($A78,masterlist!$C$2:$K$207,9,FALSE)),\"\")","v":""}]
[{"$f":"IF(ROWS($A$6:A79)<=$A$1,INDEX(masterlist!$C$2:$C$207,SMALL(IF(masterlist!$F$2:$F$207>0,IF(masterlist!$J$2:$J$207=0,ROW(masterlist!$B$2:$B$207)-ROW(masterlist!$B$2)+1)),ROWS($A$6:A79))),\"\")","v":"CCI-Pro-2-9"},{"$f":"IFERROR(VLOOKUP($A79,masterlist!$C$2:$K$207,3,FALSE),\"\")","v":2},"CCI",{"$f":"IFERROR(VLOOKUP($A79,masterlist!$C$2:$AD$207,28,FALSE),\"\")","v":"Garantir et allouer de manière appropriée les ressources gouvernementales pour soutenir le plan stratégique national de lutte contre la rage."},{"$f":"IFERROR(IF((VLOOKUP($A79,masterlist!$C$2:$K$207,9,FALSE))=0,\"\",VLOOKUP($A79,masterlist!$C$2:$K$207,9,FALSE)),\"\")","v":""}]
[{"$f":"IF(ROWS($A$6:A80)<=$A$1,INDEX(masterlist!$C$2:$C$207,SMALL(IF(masterlist!$F$2:$F$207>0,IF(masterlist!$J$2:$J$207=0,ROW(masterlist!$B$2:$B$207)-ROW(masterlist!$B$2)+1)),ROWS($A$6:A80))),\"\")","v":"CCI-Pro-3-10"},{"$f":"IFERROR(VLOOKUP($A80,masterlist!$C$2:$K$207,3,FALSE),\"\")","v":3},"CCI",{"$f":"IFERROR(VLOOKUP($A80,masterlist!$C$2:$AD$207,28,FALSE),\"\")","v":"Maintenant qu'il y a très peu de cas de rage animale dans le pays, affiner la stratégie nationale sur la base des données actuelles."},{"$f":"IFERROR(IF((VLOOKUP($A80,masterlist!$C$2:$K$207,9,FALSE))=0,\"\",VLOOKUP($A80,masterlist!$C$2:$K$207,9,FALSE)),\"\")","v":""}]
[{"$f":"IF(ROWS($A$6:A81)<=$A$1,INDEX(masterlist!$C$2:$C$207,SMALL(IF(masterlist!$F$2:$F$207>0,IF(masterlist!$J$2:$J$207=0,ROW(masterlist!$B$2:$B$207)-ROW(masterlist!$B$2)+1)),ROWS($A$6:A81))),\"\")","v":"LEG-Cad-2-10"},{"$f":"IFERROR(VLOOKUP($A81,masterlist!$C$2:$K$207,3,FALSE),\"\")","v":2},"LEG",{"$f":"IFERROR(VLOOKUP($A81,masterlist!$C$2:$AD$207,28,FALSE),\"\")","v":"Adapter la législation relative aux vaccins homologués au niveau national pour tenir compte des lignes directrices internationales."},{"$f":"IFERROR(IF((VLOOKUP($A81,masterlist!$C$2:$K$207,9,FALSE))=0,\"\",VLOOKUP($A81,masterlist!$C$2:$K$207,9,FALSE)),\"\")","v":"vaccin animal (est importe) repond aux normes internationales en cas de manque utilisation de vaccin fabrique par l'insitut Pasteur. Le vaccin pour humains produit en Algerie ne repond pas aux normes OMS (utilise a 30%), vaccin humain reponds aux normes a 70%. "}]
[{"$f":"IF(ROWS($A$6:A82)<=$A$1,INDEX(masterlist!$C$2:$C$207,SMALL(IF(masterlist!$F$2:$F$207>0,IF(masterlist!$J$2:$J$207=0,ROW(masterlist!$B$2:$B$207)-ROW(masterlist!$B$2)+1)),ROWS($A$6:A82))),\"\")","v":""},{"$f":"IFERROR(VLOOKUP($A82,masterlist!$C$2:$K$207,3,FALSE),\"\")","v":""},"",{"$f":"IFERROR(VLOOKUP($A82,masterlist!$C$2:$AD$207,28,FALSE),\"\")","v":""},{"$f":"IFERROR(IF((VLOOKUP($A82,masterlist!$C$2:$K$207,9,FALSE))=0,\"\",VLOOKUP($A82,masterlist!$C$2:$K$207,9,FALSE)),\"\")","v":""}]
[{"$f":"IF(ROWS($A$6:A83)<=$A$1,INDEX(masterlist!$C$2:$C$207,SMALL(IF(masterlist!$F$2:$F$207>0,IF(masterlist!$J$2:$J$207=0,ROW(masterlist!$B$2:$B$207)-ROW(masterlist!$B$2)+1)),ROWS($A$6:A83))),\"\")","v":""},{"$f":"IFERROR(VLOOKUP($A83,masterlist!$C$2:$K$207,3,FALSE),\"\")","v":""},"",{"$f":"IFERROR(VLOOKUP($A83,masterlist!$C$2:$AD$207,28,FALSE),\"\")","v":""},{"$f":"IFERROR(IF((VLOOKUP($A83,masterlist!$C$2:$K$207,9,FALSE))=0,\"\",VLOOKUP($A83,masterlist!$C$2:$K$207,9,FALSE)),\"\")","v":""}]
[{"$f":"IF(ROWS($A$6:A84)<=$A$1,INDEX(masterlist!$C$2:$C$207,SMALL(IF(masterlist!$F$2:$F$207>0,IF(masterlist!$J$2:$J$207=0,ROW(masterlist!$B$2:$B$207)-ROW(masterlist!$B$2)+1)),ROWS($A$6:A84))),\"\")","v":""},{"$f":"IFERROR(VLOOKUP($A84,masterlist!$C$2:$K$207,3,FALSE),\"\")","v":""},"",{"$f":"IFERROR(VLOOKUP($A84,masterlist!$C$2:$AD$207,28,FALSE),\"\")","v":""},{"$f":"IFERROR(IF((VLOOKUP($A84,masterlist!$C$2:$K$207,9,FALSE))=0,\"\",VLOOKUP($A84,masterlist!$C$2:$K$207,9,FALSE)),\"\")","v":""}]
[{"$f":"IF(ROWS($A$6:A85)<=$A$1,INDEX(masterlist!$C$2:$C$207,SMALL(IF(masterlist!$F$2:$F$207>0,IF(masterlist!$J$2:$J$207=0,ROW(masterlist!$B$2:$B$207)-ROW(masterlist!$B$2)+1)),ROWS($A$6:A85))),\"\")","v":""},{"$f":"IFERROR(VLOOKUP($A85,masterlist!$C$2:$K$207,3,FALSE),\"\")","v":""},"",{"$f":"IFERROR(VLOOKUP($A85,masterlist!$C$2:$AD$207,28,FALSE),\"\")","v":""},{"$f":"IFERROR(IF((VLOOKUP($A85,masterlist!$C$2:$K$207,9,FALSE))=0,\"\",VLOOKUP($A85,masterlist!$C$2:$K$207,9,FALSE)),\"\")","v":""}]
[{"$f":"IF(ROWS($A$6:A86)<=$A$1,INDEX(masterlist!$C$2:$C$207,SMALL(IF(masterlist!$F$2:$F$207>0,IF(masterlist!$J$2:$J$207=0,ROW(masterlist!$B$2:$B$207)-ROW(masterlist!$B$2)+1)),ROWS($A$6:A86))),\"\")","v":""},{"$f":"IFERROR(VLOOKUP($A86,masterlist!$C$2:$K$207,3,FALSE),\"\")","v":""},"",{"$f":"IFERROR(VLOOKUP($A86,masterlist!$C$2:$AD$207,28,FALSE),\"\")","v":""},{"$f":"IFERROR(IF((VLOOKUP($A86,masterlist!$C$2:$K$207,9,FALSE))=0,\"\",VLOOKUP($A86,masterlist!$C$2:$K$207,9,FALSE)),\"\")","v":""}]
[{"$f":"IF(ROWS($A$6:A87)<=$A$1,INDEX(masterlist!$C$2:$C$207,SMALL(IF(masterlist!$F$2:$F$207>0,IF(masterlist!$J$2:$J$207=0,ROW(masterlist!$B$2:$B$207)-ROW(masterlist!$B$2)+1)),ROWS($A$6:A87))),\"\")","v":""},{"$f":"IFERROR(VLOOKUP($A87,masterlist!$C$2:$K$207,3,FALSE),\"\")","v":""},"",{"$f":"IFERROR(VLOOKUP($A87,masterlist!$C$2:$AD$207,28,FALSE),\"\")","v":""},{"$f":"IFERROR(IF((VLOOKUP($A87,masterlist!$C$2:$K$207,9,FALSE))=0,\"\",VLOOKUP($A87,masterlist!$C$2:$K$207,9,FALSE)),\"\")","v":""}]
[{"$f":"IF(ROWS($A$6:A88)<=$A$1,INDEX(masterlist!$C$2:$C$207,SMALL(IF(masterlist!$F$2:$F$207>0,IF(masterlist!$J$2:$J$207=0,ROW(masterlist!$B$2:$B$207)-ROW(masterlist!$B$2)+1)),ROWS($A$6:A88))),\"\")","v":""},{"$f":"IFERROR(VLOOKUP($A88,masterlist!$C$2:$K$207,3,FALSE),\"\")","v":""},"",{"$f":"IFERROR(VLOOKUP($A88,masterlist!$C$2:$AD$207,28,FALSE),\"\")","v":""},{"$f":"IFERROR(IF((VLOOKUP($A88,masterlist!$C$2:$K$207,9,FALSE))=0,\"\",VLOOKUP($A88,masterlist!$C$2:$K$207,9,FALSE)),\"\")","v":""}]
[{"$f":"IF(ROWS($A$6:A89)<=$A$1,INDEX(masterlist!$C$2:$C$207,SMALL(IF(masterlist!$F$2:$F$207>0,IF(masterlist!$J$2:$J$207=0,ROW(masterlist!$B$2:$B$207)-ROW(masterlist!$B$2)+1)),ROWS($A$6:A89))),\"\")","v":""},{"$f":"IFERROR(VLOOKUP($A89,masterlist!$C$2:$K$207,3,FALSE),\"\")","v":""},"",{"$f":"IFERROR(VLOOKUP($A89,masterlist!$C$2:$AD$207,28,FALSE),\"\")","v":""},{"$f":"IFERROR(IF((VLOOKUP($A89,masterlist!$C$2:$K$207,9,FALSE))=0,\"\",VLOOKUP($A89,masterlist!$C$2:$K$207,9,FALSE)),\"\")","v":""}]
[{"$f":"IF(ROWS($A$6:A90)<=$A$1,INDEX(masterlist!$C$2:$C$207,SMALL(IF(masterlist!$F$2:$F$207>0,IF(masterlist!$J$2:$J$207=0,ROW(masterlist!$B$2:$B$207)-ROW(masterlist!$B$2)+1)),ROWS($A$6:A90))),\"\")","v":""},{"$f":"IFERROR(VLOOKUP($A90,masterlist!$C$2:$K$207,3,FALSE),\"\")","v":""},"",{"$f":"IFERROR(VLOOKUP($A90,masterlist!$C$2:$AD$207,28,FALSE),\"\")","v":""},{"$f":"IFERROR(IF((VLOOKUP($A90,masterlist!$C$2:$K$207,9,FALSE))=0,\"\",VLOOKUP($A90,masterlist!$C$2:$K$207,9,FALSE)),\"\")","v":""}]
[{"$f":"IF(ROWS($A$6:A91)<=$A$1,INDEX(masterlist!$C$2:$C$207,SMALL(IF(masterlist!$F$2:$F$207>0,IF(masterlist!$J$2:$J$207=0,ROW(masterlist!$B$2:$B$207)-ROW(masterlist!$B$2)+1)),ROWS($A$6:A91))),\"\")","v":""},{"$f":"IFERROR(VLOOKUP($A91,masterlist!$C$2:$K$207,3,FALSE),\"\")","v":""},"",{"$f":"IFERROR(VLOOKUP($A91,masterlist!$C$2:$AD$207,28,FALSE),\"\")","v":""},{"$f":"IFERROR(IF((VLOOKUP($A91,masterlist!$C$2:$K$207,9,FALSE))=0,\"\",VLOOKUP($A91,masterlist!$C$2:$K$207,9,FALSE)),\"\")","v":""}]
[{"$f":"IF(ROWS($A$6:A92)<=$A$1,INDEX(masterlist!$C$2:$C$207,SMALL(IF(masterlist!$F$2:$F$207>0,IF(masterlist!$J$2:$J$207=0,ROW(masterlist!$B$2:$B$207)-ROW(masterlist!$B$2)+1)),ROWS($A$6:A92))),\"\")","v":""},{"$f":"IFERROR(VLOOKUP($A92,masterlist!$C$2:$K$207,3,FALSE),\"\")","v":""},"",{"$f":"IFERROR(VLOOKUP($A92,masterlist!$C$2:$AD$207,28,FALSE),\"\")","v":""},{"$f":"IFERROR(IF((VLOOKUP($A92,masterlist!$C$2:$K$207,9,FALSE))=0,\"\",VLOOKUP($A92,masterlist!$C$2:$K$207,9,FALSE)),\"\")","v":""}]
[{"$f":"IF(ROWS($A$6:A93)<=$A$1,INDEX(masterlist!$C$2:$C$207,SMALL(IF(masterlist!$F$2:$F$207>0,IF(masterlist!$J$2:$J$207=0,ROW(masterlist!$B$2:$B$207)-ROW(masterlist!$B$2)+1)),ROWS($A$6:A93))),\"\")","v":""},{"$f":"IFERROR(VLOOKUP($A93,masterlist!$C$2:$K$207,3,FALSE),\"\")","v":""},"",{"$f":"IFERROR(VLOOKUP($A93,masterlist!$C$2:$AD$207,28,FALSE),\"\")","v":""},{"$f":"IFERROR(IF((VLOOKUP($A93,masterlist!$C$2:$K$207,9,FALSE))=0,\"\",VLOOKUP($A93,masterlist!$C$2:$K$207,9,FALSE)),\"\")","v":""}]
[{"$f":"IF(ROWS($A$6:A94)<=$A$1,INDEX(masterlist!$C$2:$C$207,SMALL(IF(masterlist!$F$2:$F$207>0,IF(masterlist!$J$2:$J$207=0,ROW(masterlist!$B$2:$B$207)-ROW(masterlist!$B$2)+1)),ROWS($A$6:A94))),\"\")","v":""},{"$f":"IFERROR(VLOOKUP($A94,masterlist!$C$2:$K$207,3,FALSE),\"\")","v":""},"",{"$f":"IFERROR(VLOOKUP($A94,masterlist!$C$2:$AD$207,28,FALSE),\"\")","v":""},{"$f":"IFERROR(IF((VLOOKUP($A94,masterlist!$C$2:$K$207,9,FALSE))=0,\"\",VLOOKUP($A94,masterlist!$C$2:$K$207,9,FALSE)),\"\")","v":""}]
[{"$f":"IF(ROWS($A$6:A95)<=$A$1,INDEX(masterlist!$C$2:$C$207,SMALL(IF(masterlist!$F$2:$F$207>0,IF(masterlist!$J$2:$J$207=0,ROW(masterlist!$B$2:$B$207)-ROW(masterlist!$B$2)+1)),ROWS($A$6:A95))),\"\")","v":""},{"$f":"IFERROR(VLOOKUP($A95,masterlist!$C$2:$K$207,3,FALSE),\"\")","v":""},"",{"$f":"IFERROR(VLOOKUP($A95,masterlist!$C$2:$AD$207,28,FALSE),\"\")","v":""},{"$f":"IFERROR(IF((VLOOKUP($A95,masterlist!$C$2:$K$207,9,FALSE))=0,\"\",VLOOKUP($A95,masterlist!$C$2:$K$207,9,FALSE)),\"\")","v":""}]
[{"$f":"IF(ROWS($A$6:A96)<=$A$1,INDEX(masterlist!$C$2:$C$207,SMALL(IF(masterlist!$F$2:$F$207>0,IF(masterlist!$J$2:$J$207=0,ROW(masterlist!$B$2:$B$207)-ROW(masterlist!$B$2)+1)),ROWS($A$6:A96))),\"\")","v":""},{"$f":"IFERROR(VLOOKUP($A96,masterlist!$C$2:$K$207,3,FALSE),\"\")","v":""},"",{"$f":"IFERROR(VLOOKUP($A96,masterlist!$C$2:$AD$207,28,FALSE),\"\")","v":""},{"$f":"IFERROR(IF((VLOOKUP($A96,masterlist!$C$2:$K$207,9,FALSE))=0,\"\",VLOOKUP($A96,masterlist!$C$2:$K$207,9,FALSE)),\"\")","v":""}]
[{"$f":"IF(ROWS($A$6:A97)<=$A$1,INDEX(masterlist!$C$2:$C$207,SMALL(IF(masterlist!$F$2:$F$207>0,IF(masterlist!$J$2:$J$207=0,ROW(masterlist!$B$2:$B$207)-ROW(masterlist!$B$2)+1)),ROWS($A$6:A97))),\"\")","v":""},{"$f":"IFERROR(VLOOKUP($A97,masterlist!$C$2:$K$207,3,FALSE),\"\")","v":""},"",{"$f":"IFERROR(VLOOKUP($A97,masterlist!$C$2:$AD$207,28,FALSE),\"\")","v":""},{"$f":"IFERROR(IF((VLOOKUP($A97,masterlist!$C$2:$K$207,9,FALSE))=0,\"\",VLOOKUP($A97,masterlist!$C$2:$K$207,9,FALSE)),\"\")","v":""}]
[{"$f":"IF(ROWS($A$6:A98)<=$A$1,INDEX(masterlist!$C$2:$C$207,SMALL(IF(masterlist!$F$2:$F$207>0,IF(masterlist!$J$2:$J$207=0,ROW(masterlist!$B$2:$B$207)-ROW(masterlist!$B$2)+1)),ROWS($A$6:A98))),\"\")","v":""},{"$f":"IFERROR(VLOOKUP($A98,masterlist!$C$2:$K$207,3,FALSE),\"\")","v":""},"",{"$f":"IFERROR(VLOOKUP($A98,masterlist!$C$2:$AD$207,28,FALSE),\"\")","v":""},{"$f":"IFERROR(IF((VLOOKUP($A98,masterlist!$C$2:$K$207,9,FALSE))=0,\"\",VLOOKUP($A98,masterlist!$C$2:$K$207,9,FALSE)),\"\")","v":""}]
[{"$f":"IF(ROWS($A$6:A99)<=$A$1,INDEX(masterlist!$C$2:$C$207,SMALL(IF(masterlist!$F$2:$F$207>0,IF(masterlist!$J$2:$J$207=0,ROW(masterlist!$B$2:$B$207)-ROW(masterlist!$B$2)+1)),ROWS($A$6:A99))),\"\")","v":""},{"$f":"IFERROR(VLOOKUP($A99,masterlist!$C$2:$K$207,3,FALSE),\"\")","v":""},"",{"$f":"IFERROR(VLOOKUP($A99,masterlist!$C$2:$AD$207,28,FALSE),\"\")","v":""},{"$f":"IFERROR(IF((VLOOKUP($A99,masterlist!$C$2:$K$207,9,FALSE))=0,\"\",VLOOKUP($A99,masterlist!$C$2:$K$207,9,FALSE)),\"\")","v":""}]
[{"$f":"IF(ROWS($A$6:A100)<=$A$1,INDEX(masterlist!$C$2:$C$207,SMALL(IF(masterlist!$F$2:$F$207>0,IF(masterlist!$J$2:$J$207=0,ROW(masterlist!$B$2:$B$207)-ROW(masterlist!$B$2)+1)),ROWS($A$6:A100))),\"\")","v":""},{"$f":"IFERROR(VLOOKUP($A100,masterlist!$C$2:$K$207,3,FALSE),\"\")","v":""},"",{"$f":"IFERROR(VLOOKUP($A100,masterlist!$C$2:$AD$207,28,FALSE),\"\")","v":""},{"$f":"IFERROR(IF((VLOOKUP($A100,masterlist!$C$2:$K$207,9,FALSE))=0,\"\",VLOOKUP($A100,masterlist!$C$2:$K$207,9,FALSE)),\"\")","v":""}]
[{"$f":"IF(ROWS($A$6:A101)<=$A$1,INDEX(masterlist!$C$2:$C$207,SMALL(IF(masterlist!$F$2:$F$207>0,IF(masterlist!$J$2:$J$207=0,ROW(masterlist!$B$2:$B$207)-ROW(masterlist!$B$2)+1)),ROWS($A$6:A101))),\"\")","v":""},{"$f":"IFERROR(VLOOKUP($A101,masterlist!$C$2:$K$207,3,FALSE),\"\")","v":""},"",{"$f":"IFERROR(VLOOKUP($A101,masterlist!$C$2:$AD$207,28,FALSE),\"\")","v":""},{"$f":"IFERROR(IF((VLOOKUP($A101,masterlist!$C$2:$K$207,9,FALSE))=0,\"\",VLOOKUP($A101,masterlist!$C$2:$K$207,9,FALSE)),\"\")","v":""}]
[{"$f":"IF(ROWS($A$6:A102)<=$A$1,INDEX(masterlist!$C$2:$C$207,SMALL(IF(masterlist!$F$2:$F$207>0,IF(masterlist!$J$2:$J$207=0,ROW(masterlist!$B$2:$B$207)-ROW(masterlist!$B$2)+1)),ROWS($A$6:A102))),\"\")","v":""},{"$f":"IFERROR(VLOOKUP($A102,masterlist!$C$2:$K$207,3,FALSE),\"\")","v":""},"",{"$f":"IFERROR(VLOOKUP($A102,masterlist!$C$2:$AD$207,28,FALSE),\"\")","v":""},{"$f":"IFERROR(IF((VLOOKUP($A102,masterlist!$C$2:$K$207,9,FALSE))=0,\"\",VLOOKUP($A102,masterlist!$C$2:$K$207,9,FALSE)),\"\")","v":""}]
[{"$f":"IF(ROWS($A$6:A103)<=$A$1,INDEX(masterlist!$C$2:$C$207,SMALL(IF(masterlist!$F$2:$F$207>0,IF(masterlist!$J$2:$J$207=0,ROW(masterlist!$B$2:$B$207)-ROW(masterlist!$B$2)+1)),ROWS($A$6:A103))),\"\")","v":""},{"$f":"IFERROR(VLOOKUP($A103,masterlist!$C$2:$K$207,3,FALSE),\"\")","v":""},"",{"$f":"IFERROR(VLOOKUP($A103,masterlist!$C$2:$AD$207,28,FALSE),\"\")","v":""},{"$f":"IFERROR(IF((VLOOKUP($A103,masterlist!$C$2:$K$207,9,FALSE))=0,\"\",VLOOKUP($A103,masterlist!$C$2:$K$207,9,FALSE)),\"\")","v":""}]
[{"$f":"IF(ROWS($A$6:A104)<=$A$1,INDEX(masterlist!$C$2:$C$207,SMALL(IF(masterlist!$F$2:$F$207>0,IF(masterlist!$J$2:$J$207=0,ROW(masterlist!$B$2:$B$207)-ROW(masterlist!$B$2)+1)),ROWS($A$6:A104))),\"\")","v":""},{"$f":"IFERROR(VLOOKUP($A104,masterlist!$C$2:$K$207,3,FALSE),\"\")","v":""},"",{"$f":"IFERROR(VLOOKUP($A104,masterlist!$C$2:$AD$207,28,FALSE),\"\")","v":""},{"$f":"IFERROR(IF((VLOOKUP($A104,masterlist!$C$2:$K$207,9,FALSE))=0,\"\",VLOOKUP($A104,masterlist!$C$2:$K$207,9,FALSE)),\"\")","v":""}]
[{"$f":"IF(ROWS($A$6:A105)<=$A$1,INDEX(masterlist!$C$2:$C$207,SMALL(IF(masterlist!$F$2:$F$207>0,IF(masterlist!$J$2:$J$207=0,ROW(masterlist!$B$2:$B$207)-ROW(masterlist!$B$2)+1)),ROWS($A$6:A105))),\"\")","v":""},{"$f":"IFERROR(VLOOKUP($A105,masterlist!$C$2:$K$207,3,FALSE),\"\")","v":""},"",{"$f":"IFERROR(VLOOKUP($A105,masterlist!$C$2:$AD$207,28,FALSE),\"\")","v":""},{"$f":"IFERROR(IF((VLOOKUP($A105,masterlist!$C$2:$K$207,9,FALSE))=0,\"\",VLOOKUP($A105,masterlist!$C$2:$K$207,9,FALSE)),\"\")","v":""}]
[{"$f":"IF(ROWS($A$6:A106)<=$A$1,INDEX(masterlist!$C$2:$C$207,SMALL(IF(masterlist!$F$2:$F$207>0,IF(masterlist!$J$2:$J$207=0,ROW(masterlist!$B$2:$B$207)-ROW(masterlist!$B$2)+1)),ROWS($A$6:A106))),\"\")","v":""},{"$f":"IFERROR(VLOOKUP($A106,masterlist!$C$2:$K$207,3,FALSE),\"\")","v":""},"",{"$f":"IFERROR(VLOOKUP($A106,masterlist!$C$2:$AD$207,28,FALSE),\"\")","v":""},{"$f":"IFERROR(IF((VLOOKUP($A106,masterlist!$C$2:$K$207,9,FALSE))=0,\"\",VLOOKUP($A106,masterlist!$C$2:$K$207,9,FALSE)),\"\")","v":""}]
[{"$f":"IF(ROWS($A$6:A107)<=$A$1,INDEX(masterlist!$C$2:$C$207,SMALL(IF(masterlist!$F$2:$F$207>0,IF(masterlist!$J$2:$J$207=0,ROW(masterlist!$B$2:$B$207)-ROW(masterlist!$B$2)+1)),ROWS($A$6:A107))),\"\")","v":""},{"$f":"IFERROR(VLOOKUP($A107,masterlist!$C$2:$K$207,3,FALSE),\"\")","v":""},"",{"$f":"IFERROR(VLOOKUP($A107,masterlist!$C$2:$AD$207,28,FALSE),\"\")","v":""},{"$f":"IFERROR(IF((VLOOKUP($A107,masterlist!$C$2:$K$207,9,FALSE))=0,\"\",VLOOKUP($A107,masterlist!$C$2:$K$207,9,FALSE)),\"\")","v":""}]
[{"$f":"IF(ROWS($A$6:A108)<=$A$1,INDEX(masterlist!$C$2:$C$207,SMALL(IF(masterlist!$F$2:$F$207>0,IF(masterlist!$J$2:$J$207=0,ROW(masterlist!$B$2:$B$207)-ROW(masterlist!$B$2)+1)),ROWS($A$6:A108))),\"\")","v":""},{"$f":"IFERROR(VLOOKUP($A108,masterlist!$C$2:$K$207,3,FALSE),\"\")","v":""},"",{"$f":"IFERROR(VLOOKUP($A108,masterlist!$C$2:$AD$207,28,FALSE),\"\")","v":""},{"$f":"IFERROR(IF((VLOOKUP($A108,masterlist!$C$2:$K$207,9,FALSE))=0,\"\",VLOOKUP($A108,masterlist!$C$2:$K$207,9,FALSE)),\"\")","v":""}]
[{"$f":"IF(ROWS($A$6:A109)<=$A$1,INDEX(masterlist!$C$2:$C$207,SMALL(IF(masterlist!$F$2:$F$207>0,IF(masterlist!$J$2:$J$207=0,ROW(masterlist!$B$2:$B$207)-ROW(masterlist!$B$2)+1)),ROWS($A$6:A109))),\"\")","v":""},{"$f":"IFERROR(VLOOKUP($A109,masterlist!$C$2:$K$207,3,FALSE),\"\")","v":""},"",{"$f":"IFERROR(VLOOKUP($A109,masterlist!$C$2:$AD$207,28,FALSE),\"\")","v":""},{"$f":"IFERROR(IF((VLOOKUP($A109,masterlist!$C$2:$K$207,9,FALSE))=0,\"\",VLOOKUP($A109,masterlist!$C$2:$K$207,9,FALSE)),\"\")","v":""}]
[{"$f":"IF(ROWS($A$6:A110)<=$A$1,INDEX(masterlist!$C$2:$C$207,SMALL(IF(masterlist!$F$2:$F$207>0,IF(masterlist!$J$2:$J$207=0,ROW(masterlist!$B$2:$B$207)-ROW(masterlist!$B$2)+1)),ROWS($A$6:A110))),\"\")","v":""},{"$f":"IFERROR(VLOOKUP($A110,masterlist!$C$2:$K$207,3,FALSE),\"\")","v":""},"",{"$f":"IFERROR(VLOOKUP($A110,masterlist!$C$2:$AD$207,28,FALSE),\"\")","v":""},{"$f":"IFERROR(IF((VLOOKUP($A110,masterlist!$C$2:$K$207,9,FALSE))=0,\"\",VLOOKUP($A110,masterlist!$C$2:$K$207,9,FALSE)),\"\")","v":""}]
[{"$f":"IF(ROWS($A$6:A111)<=$A$1,INDEX(masterlist!$C$2:$C$207,SMALL(IF(masterlist!$F$2:$F$207>0,IF(masterlist!$J$2:$J$207=0,ROW(masterlist!$B$2:$B$207)-ROW(masterlist!$B$2)+1)),ROWS($A$6:A111))),\"\")","v":""},{"$f":"IFERROR(VLOOKUP($A111,masterlist!$C$2:$K$207,3,FALSE),\"\")","v":""},"",{"$f":"IFERROR(VLOOKUP($A111,masterlist!$C$2:$AD$207,28,FALSE),\"\")","v":""},{"$f":"IFERROR(IF((VLOOKUP($A111,masterlist!$C$2:$K$207,9,FALSE))=0,\"\",VLOOKUP($A111,masterlist!$C$2:$K$207,9,FALSE)),\"\")","v":""}]
[{"$f":"IF(ROWS($A$6:A112)<=$A$1,INDEX(masterlist!$C$2:$C$207,SMALL(IF(masterlist!$F$2:$F$207>0,IF(masterlist!$J$2:$J$207=0,ROW(masterlist!$B$2:$B$207)-ROW(masterlist!$B$2)+1)),ROWS($A$6:A112))),\"\")","v":""},{"$f":"IFERROR(VLOOKUP($A112,masterlist!$C$2:$K$207,3,FALSE),\"\")","v":""},"",{"$f":"IFERROR(VLOOKUP($A112,masterlist!$C$2:$AD$207,28,FALSE),\"\")","v":""},{"$f":"IFERROR(IF((VLOOKUP($A112,masterlist!$C$2:$K$207,9,FALSE))=0,\"\",VLOOKUP($A112,masterlist!$C$2:$K$207,9,FALSE)),\"\")","v":""}]
[{"$f":"IF(ROWS($A$6:A113)<=$A$1,INDEX(masterlist!$C$2:$C$207,SMALL(IF(masterlist!$F$2:$F$207>0,IF(masterlist!$J$2:$J$207=0,ROW(masterlist!$B$2:$B$207)-ROW(masterlist!$B$2)+1)),ROWS($A$6:A113))),\"\")","v":""},{"$f":"IFERROR(VLOOKUP($A113,masterlist!$C$2:$K$207,3,FALSE),\"\")","v":""},"",{"$f":"IFERROR(VLOOKUP($A113,masterlist!$C$2:$AD$207,28,FALSE),\"\")","v":""},{"$f":"IFERROR(IF((VLOOKUP($A113,masterlist!$C$2:$K$207,9,FALSE))=0,\"\",VLOOKUP($A113,masterlist!$C$2:$K$207,9,FALSE)),\"\")","v":""}]
[{"$f":"IF(ROWS($A$6:A114)<=$A$1,INDEX(masterlist!$C$2:$C$207,SMALL(IF(masterlist!$F$2:$F$207>0,IF(masterlist!$J$2:$J$207=0,ROW(masterlist!$B$2:$B$207)-ROW(masterlist!$B$2)+1)),ROWS($A$6:A114))),\"\")","v":""},{"$f":"IFERROR(VLOOKUP($A114,masterlist!$C$2:$K$207,3,FALSE),\"\")","v":""},"",{"$f":"IFERROR(VLOOKUP($A114,masterlist!$C$2:$AD$207,28,FALSE),\"\")","v":""},{"$f":"IFERROR(IF((VLOOKUP($A114,masterlist!$C$2:$K$207,9,FALSE))=0,\"\",VLOOKUP($A114,masterlist!$C$2:$K$207,9,FALSE)),\"\")","v":""}]
[{"$f":"IF(ROWS($A$6:A115)<=$A$1,INDEX(masterlist!$C$2:$C$207,SMALL(IF(masterlist!$F$2:$F$207>0,IF(masterlist!$J$2:$J$207=0,ROW(masterlist!$B$2:$B$207)-ROW(masterlist!$B$2)+1)),ROWS($A$6:A115))),\"\")","v":""},{"$f":"IFERROR(VLOOKUP($A115,masterlist!$C$2:$K$207,3,FALSE),\"\")","v":""},"",{"$f":"IFERROR(VLOOKUP($A115,masterlist!$C$2:$AD$207,28,FALSE),\"\")","v":""},{"$f":"IFERROR(IF((VLOOKUP($A115,masterlist!$C$2:$K$207,9,FALSE))=0,\"\",VLOOKUP($A115,masterlist!$C$2:$K$207,9,FALSE)),\"\")","v":""}]
[{"$f":"IF(ROWS($A$6:A116)<=$A$1,INDEX(masterlist!$C$2:$C$207,SMALL(IF(masterlist!$F$2:$F$207>0,IF(masterlist!$J$2:$J$207=0,ROW(masterlist!$B$2:$B$207)-ROW(masterlist!$B$2)+1)),ROWS($A$6:A116))),\"\")","v":""},{"$f":"IFERROR(VLOOKUP($A116,masterlist!$C$2:$K$207,3,FALSE),\"\")","v":""},"",{"$f":"IFERROR(VLOOKUP($A116,masterlist!$C$2:$AD$207,28,FALSE),\"\")","v":""},{"$f":"IFERROR(IF((VLOOKUP($A116,masterlist!$C$2:$K$207,9,FALSE))=0,\"\",VLOOKUP($A116,masterlist!$C$2:$K$207,9,FALSE)),\"\")","v":""}]
[{"$f":"IF(ROWS($A$6:A117)<=$A$1,INDEX(masterlist!$C$2:$C$207,SMALL(IF(masterlist!$F$2:$F$207>0,IF(masterlist!$J$2:$J$207=0,ROW(masterlist!$B$2:$B$207)-ROW(masterlist!$B$2)+1)),ROWS($A$6:A117))),\"\")","v":""},{"$f":"IFERROR(VLOOKUP($A117,masterlist!$C$2:$K$207,3,FALSE),\"\")","v":""},"",{"$f":"IFERROR(VLOOKUP($A117,masterlist!$C$2:$AD$207,28,FALSE),\"\")","v":""},{"$f":"IFERROR(IF((VLOOKUP($A117,masterlist!$C$2:$K$207,9,FALSE))=0,\"\",VLOOKUP($A117,masterlist!$C$2:$K$207,9,FALSE)),\"\")","v":""}]
[{"$f":"IF(ROWS($A$6:A118)<=$A$1,INDEX(masterlist!$C$2:$C$207,SMALL(IF(masterlist!$F$2:$F$207>0,IF(masterlist!$J$2:$J$207=0,ROW(masterlist!$B$2:$B$207)-ROW(masterlist!$B$2)+1)),ROWS($A$6:A118))),\"\")","v":""},{"$f":"IFERROR(VLOOKUP($A118,masterlist!$C$2:$K$207,3,FALSE),\"\")","v":""},"",{"$f":"IFERROR(VLOOKUP($A118,masterlist!$C$2:$AD$207,28,FALSE),\"\")","v":""},{"$f":"IFERROR(IF((VLOOKUP($A118,masterlist!$C$2:$K$207,9,FALSE))=0,\"\",VLOOKUP($A118,masterlist!$C$2:$K$207,9,FALSE)),\"\")","v":""}]
[{"$f":"IF(ROWS($A$6:A119)<=$A$1,INDEX(masterlist!$C$2:$C$207,SMALL(IF(masterlist!$F$2:$F$207>0,IF(masterlist!$J$2:$J$207=0,ROW(masterlist!$B$2:$B$207)-ROW(masterlist!$B$2)+1)),ROWS($A$6:A119))),\"\")","v":""},{"$f":"IFERROR(VLOOKUP($A119,masterlist!$C$2:$K$207,3,FALSE),\"\")","v":""},"",{"$f":"IFERROR(VLOOKUP($A119,masterlist!$C$2:$AD$207,28,FALSE),\"\")","v":""},{"$f":"IFERROR(IF((VLOOKUP($A119,masterlist!$C$2:$K$207,9,FALSE))=0,\"\",VLOOKUP($A119,masterlist!$C$2:$K$207,9,FALSE)),\"\")","v":""}]
[{"$f":"IF(ROWS($A$6:A120)<=$A$1,INDEX(masterlist!$C$2:$C$207,SMALL(IF(masterlist!$F$2:$F$207>0,IF(masterlist!$J$2:$J$207=0,ROW(masterlist!$B$2:$B$207)-ROW(masterlist!$B$2)+1)),ROWS($A$6:A120))),\"\")","v":""},{"$f":"IFERROR(VLOOKUP($A120,masterlist!$C$2:$K$207,3,FALSE),\"\")","v":""},"",{"$f":"IFERROR(VLOOKUP($A120,masterlist!$C$2:$AD$207,28,FALSE),\"\")","v":""},{"$f":"IFERROR(IF((VLOOKUP($A120,masterlist!$C$2:$K$207,9,FALSE))=0,\"\",VLOOKUP($A120,masterlist!$C$2:$K$207,9,FALSE)),\"\")","v":""}]
[{"$f":"IF(ROWS($A$6:A121)<=$A$1,INDEX(masterlist!$C$2:$C$207,SMALL(IF(masterlist!$F$2:$F$207>0,IF(masterlist!$J$2:$J$207=0,ROW(masterlist!$B$2:$B$207)-ROW(masterlist!$B$2)+1)),ROWS($A$6:A121))),\"\")","v":""},{"$f":"IFERROR(VLOOKUP($A121,masterlist!$C$2:$K$207,3,FALSE),\"\")","v":""},"",{"$f":"IFERROR(VLOOKUP($A121,masterlist!$C$2:$AD$207,28,FALSE),\"\")","v":""},{"$f":"IFERROR(IF((VLOOKUP($A121,masterlist!$C$2:$K$207,9,FALSE))=0,\"\",VLOOKUP($A121,masterlist!$C$2:$K$207,9,FALSE)),\"\")","v":""}]
[{"$f":"IF(ROWS($A$6:A122)<=$A$1,INDEX(masterlist!$C$2:$C$207,SMALL(IF(masterlist!$F$2:$F$207>0,IF(masterlist!$J$2:$J$207=0,ROW(masterlist!$B$2:$B$207)-ROW(masterlist!$B$2)+1)),ROWS($A$6:A122))),\"\")","v":""},{"$f":"IFERROR(VLOOKUP($A122,masterlist!$C$2:$K$207,3,FALSE),\"\")","v":""},"",{"$f":"IFERROR(VLOOKUP($A122,masterlist!$C$2:$AD$207,28,FALSE),\"\")","v":""},{"$f":"IFERROR(IF((VLOOKUP($A122,masterlist!$C$2:$K$207,9,FALSE))=0,\"\",VLOOKUP($A122,masterlist!$C$2:$K$207,9,FALSE)),\"\")","v":""}]
[{"$f":"IF(ROWS($A$6:A123)<=$A$1,INDEX(masterlist!$C$2:$C$207,SMALL(IF(masterlist!$F$2:$F$207>0,IF(masterlist!$J$2:$J$207=0,ROW(masterlist!$B$2:$B$207)-ROW(masterlist!$B$2)+1)),ROWS($A$6:A123))),\"\")","v":""},{"$f":"IFERROR(VLOOKUP($A123,masterlist!$C$2:$K$207,3,FALSE),\"\")","v":""},"",{"$f":"IFERROR(VLOOKUP($A123,masterlist!$C$2:$AD$207,28,FALSE),\"\")","v":""},{"$f":"IFERROR(IF((VLOOKUP($A123,masterlist!$C$2:$K$207,9,FALSE))=0,\"\",VLOOKUP($A123,masterlist!$C$2:$K$207,9,FALSE)),\"\")","v":""}]
[{"$f":"IF(ROWS($A$6:A124)<=$A$1,INDEX(masterlist!$C$2:$C$207,SMALL(IF(masterlist!$F$2:$F$207>0,IF(masterlist!$J$2:$J$207=0,ROW(masterlist!$B$2:$B$207)-ROW(masterlist!$B$2)+1)),ROWS($A$6:A124))),\"\")","v":""},{"$f":"IFERROR(VLOOKUP($A124,masterlist!$C$2:$K$207,3,FALSE),\"\")","v":""},"",{"$f":"IFERROR(VLOOKUP($A124,masterlist!$C$2:$AD$207,28,FALSE),\"\")","v":""},{"$f":"IFERROR(IF((VLOOKUP($A124,masterlist!$C$2:$K$207,9,FALSE))=0,\"\",VLOOKUP($A124,masterlist!$C$2:$K$207,9,FALSE)),\"\")","v":""}]
[{"$f":"IF(ROWS($A$6:A125)<=$A$1,INDEX(masterlist!$C$2:$C$207,SMALL(IF(masterlist!$F$2:$F$207>0,IF(masterlist!$J$2:$J$207=0,ROW(masterlist!$B$2:$B$207)-ROW(masterlist!$B$2)+1)),ROWS($A$6:A125))),\"\")","v":""},{"$f":"IFERROR(VLOOKUP($A125,masterlist!$C$2:$K$207,3,FALSE),\"\")","v":""},"",{"$f":"IFERROR(VLOOKUP($A125,masterlist!$C$2:$AD$207,28,FALSE),\"\")","v":""},{"$f":"IFERROR(IF((VLOOKUP($A125,masterlist!$C$2:$K$207,9,FALSE))=0,\"\",VLOOKUP($A125,masterlist!$C$2:$K$207,9,FALSE)),\"\")","v":""}]
[{"$f":"IF(ROWS($A$6:A126)<=$A$1,INDEX(masterlist!$C$2:$C$207,SMALL(IF(masterlist!$F$2:$F$207>0,IF(masterlist!$J$2:$J$207=0,ROW(masterlist!$B$2:$B$207)-ROW(masterlist!$B$2)+1)),ROWS($A$6:A126))),\"\")","v":""},{"$f":"IFERROR(VLOOKUP($A126,masterlist!$C$2:$K$207,3,FALSE),\"\")","v":""},"",{"$f":"IFERROR(VLOOKUP($A126,masterlist!$C$2:$AD$207,28,FALSE),\"\")","v":""},{"$f":"IFERROR(IF((VLOOKUP($A126,masterlist!$C$2:$K$207,9,FALSE))=0,\"\",VLOOKUP($A126,masterlist!$C$2:$K$207,9,FALSE)),\"\")","v":""}]
[{"$f":"IF(ROWS($A$6:A127)<=$A$1,INDEX(masterlist!$C$2:$C$207,SMALL(IF(masterlist!$F$2:$F$207>0,IF(masterlist!$J$2:$J$207=0,ROW(masterlist!$B$2:$B$207)-ROW(masterlist!$B$2)+1)),ROWS($A$6:A127))),\"\")","v":""},{"$f":"IFERROR(VLOOKUP($A127,masterlist!$C$2:$K$207,3,FALSE),\"\")","v":""},"",{"$f":"IFERROR(VLOOKUP($A127,masterlist!$C$2:$AD$207,28,FALSE),\"\")","v":""},{"$f":"IFERROR(IF((VLOOKUP($A127,masterlist!$C$2:$K$207,9,FALSE))=0,\"\",VLOOKUP($A127,masterlist!$C$2:$K$207,9,FALSE)),\"\")","v":""}]
[{"$f":"IF(ROWS($A$6:A128)<=$A$1,INDEX(masterlist!$C$2:$C$207,SMALL(IF(masterlist!$F$2:$F$207>0,IF(masterlist!$J$2:$J$207=0,ROW(masterlist!$B$2:$B$207)-ROW(masterlist!$B$2)+1)),ROWS($A$6:A128))),\"\")","v":""},{"$f":"IFERROR(VLOOKUP($A128,masterlist!$C$2:$K$207,3,FALSE),\"\")","v":""},"",{"$f":"IFERROR(VLOOKUP($A128,masterlist!$C$2:$AD$207,28,FALSE),\"\")","v":""},{"$f":"IFERROR(IF((VLOOKUP($A128,masterlist!$C$2:$K$207,9,FALSE))=0,\"\",VLOOKUP($A128,masterlist!$C$2:$K$207,9,FALSE)),\"\")","v":""}]
[{"$f":"IF(ROWS($A$6:A129)<=$A$1,INDEX(masterlist!$C$2:$C$207,SMALL(IF(masterlist!$F$2:$F$207>0,IF(masterlist!$J$2:$J$207=0,ROW(masterlist!$B$2:$B$207)-ROW(masterlist!$B$2)+1)),ROWS($A$6:A129))),\"\")","v":""},{"$f":"IFERROR(VLOOKUP($A129,masterlist!$C$2:$K$207,3,FALSE),\"\")","v":""},"",{"$f":"IFERROR(VLOOKUP($A129,masterlist!$C$2:$AD$207,28,FALSE),\"\")","v":""},{"$f":"IFERROR(IF((VLOOKUP($A129,masterlist!$C$2:$K$207,9,FALSE))=0,\"\",VLOOKUP($A129,masterlist!$C$2:$K$207,9,FALSE)),\"\")","v":""}]
[{"$f":"IF(ROWS($A$6:A130)<=$A$1,INDEX(masterlist!$C$2:$C$207,SMALL(IF(masterlist!$F$2:$F$207>0,IF(masterlist!$J$2:$J$207=0,ROW(masterlist!$B$2:$B$207)-ROW(masterlist!$B$2)+1)),ROWS($A$6:A130))),\"\")","v":""},{"$f":"IFERROR(VLOOKUP($A130,masterlist!$C$2:$K$207,3,FALSE),\"\")","v":""},"",{"$f":"IFERROR(VLOOKUP($A130,masterlist!$C$2:$AD$207,28,FALSE),\"\")","v":""},{"$f":"IFERROR(IF((VLOOKUP($A130,masterlist!$C$2:$K$207,9,FALSE))=0,\"\",VLOOKUP($A130,masterlist!$C$2:$K$207,9,FALSE)),\"\")","v":""}]
[{"$f":"IF(ROWS($A$6:A131)<=$A$1,INDEX(masterlist!$C$2:$C$207,SMALL(IF(masterlist!$F$2:$F$207>0,IF(masterlist!$J$2:$J$207=0,ROW(masterlist!$B$2:$B$207)-ROW(masterlist!$B$2)+1)),ROWS($A$6:A131))),\"\")","v":""},{"$f":"IFERROR(VLOOKUP($A131,masterlist!$C$2:$K$207,3,FALSE),\"\")","v":""},"",{"$f":"IFERROR(VLOOKUP($A131,masterlist!$C$2:$AD$207,28,FALSE),\"\")","v":""},{"$f":"IFERROR(IF((VLOOKUP($A131,masterlist!$C$2:$K$207,9,FALSE))=0,\"\",VLOOKUP($A131,masterlist!$C$2:$K$207,9,FALSE)),\"\")","v":""}]
[{"$f":"IF(ROWS($A$6:A132)<=$A$1,INDEX(masterlist!$C$2:$C$207,SMALL(IF(masterlist!$F$2:$F$207>0,IF(masterlist!$J$2:$J$207=0,ROW(masterlist!$B$2:$B$207)-ROW(masterlist!$B$2)+1)),ROWS($A$6:A132))),\"\")","v":""},{"$f":"IFERROR(VLOOKUP($A132,masterlist!$C$2:$K$207,3,FALSE),\"\")","v":""},"",{"$f":"IFERROR(VLOOKUP($A132,masterlist!$C$2:$AD$207,28,FALSE),\"\")","v":""},{"$f":"IFERROR(IF((VLOOKUP($A132,masterlist!$C$2:$K$207,9,FALSE))=0,\"\",VLOOKUP($A132,masterlist!$C$2:$K$207,9,FALSE)),\"\")","v":""}]
[{"$f":"IF(ROWS($A$6:A133)<=$A$1,INDEX(masterlist!$C$2:$C$207,SMALL(IF(masterlist!$F$2:$F$207>0,IF(masterlist!$J$2:$J$207=0,ROW(masterlist!$B$2:$B$207)-ROW(masterlist!$B$2)+1)),ROWS($A$6:A133))),\"\")","v":""},{"$f":"IFERROR(VLOOKUP($A133,masterlist!$C$2:$K$207,3,FALSE),\"\")","v":""},"",{"$f":"IFERROR(VLOOKUP($A133,masterlist!$C$2:$AD$207,28,FALSE),\"\")","v":""},{"$f":"IFERROR(IF((VLOOKUP($A133,masterlist!$C$2:$K$207,9,FALSE))=0,\"\",VLOOKUP($A133,masterlist!$C$2:$K$207,9,FALSE)),\"\")","v":""}]
[{"$f":"IF(ROWS($A$6:A134)<=$A$1,INDEX(masterlist!$C$2:$C$207,SMALL(IF(masterlist!$F$2:$F$207>0,IF(masterlist!$J$2:$J$207=0,ROW(masterlist!$B$2:$B$207)-ROW(masterlist!$B$2)+1)),ROWS($A$6:A134))),\"\")","v":""},{"$f":"IFERROR(VLOOKUP($A134,masterlist!$C$2:$K$207,3,FALSE),\"\")","v":""},"",{"$f":"IFERROR(VLOOKUP($A134,masterlist!$C$2:$AD$207,28,FALSE),\"\")","v":""},{"$f":"IFERROR(IF((VLOOKUP($A134,masterlist!$C$2:$K$207,9,FALSE))=0,\"\",VLOOKUP($A134,masterlist!$C$2:$K$207,9,FALSE)),\"\")","v":""}]
[{"$f":"IF(ROWS($A$6:A135)<=$A$1,INDEX(masterlist!$C$2:$C$207,SMALL(IF(masterlist!$F$2:$F$207>0,IF(masterlist!$J$2:$J$207=0,ROW(masterlist!$B$2:$B$207)-ROW(masterlist!$B$2)+1)),ROWS($A$6:A135))),\"\")","v":""},{"$f":"IFERROR(VLOOKUP($A135,masterlist!$C$2:$K$207,3,FALSE),\"\")","v":""},{"$f":"LEFT(A135,3)","v":""},{"$f":"IFERROR(VLOOKUP($A135,masterlist!$C$2:$AD$207,28,FALSE),\"\")","v":""},{"$f":"IFERROR(IF((VLOOKUP($A135,masterlist!$C$2:$K$207,9,FALSE))=0,\"\",VLOOKUP($A135,masterlist!$C$2:$K$207,9,FALSE)),\"\")","v":""}]
[{"$f":"IF(ROWS($A$6:A136)<=$A$1,INDEX(masterlist!$C$2:$C$207,SMALL(IF(masterlist!$F$2:$F$207>0,IF(masterlist!$J$2:$J$207=0,ROW(masterlist!$B$2:$B$207)-ROW(masterlist!$B$2)+1)),ROWS($A$6:A136))),\"\")","v":""},{"$f":"IFERROR(VLOOKUP($A136,masterlist!$C$2:$K$207,3,FALSE),\"\")","v":""},"",{"$f":"IFERROR(VLOOKUP($A136,masterlist!$C$2:$AD$207,28,FALSE),\"\")","v":""},{"$f":"IFERROR(IF((VLOOKUP($A136,masterlist!$C$2:$K$207,9,FALSE))=0,\"\",VLOOKUP($A136,masterlist!$C$2:$K$207,9,FALSE)),\"\")","v":""}]
[{"$f":"IF(ROWS($A$6:A137)<=$A$1,INDEX(masterlist!$C$2:$C$207,SMALL(IF(masterlist!$F$2:$F$207>0,IF(masterlist!$J$2:$J$207=0,ROW(masterlist!$B$2:$B$207)-ROW(masterlist!$B$2)+1)),ROWS($A$6:A137))),\"\")","v":""},{"$f":"IFERROR(VLOOKUP($A137,masterlist!$C$2:$K$207,3,FALSE),\"\")","v":""},"",{"$f":"IFERROR(VLOOKUP($A137,masterlist!$C$2:$AD$207,28,FALSE),\"\")","v":""},{"$f":"IFERROR(IF((VLOOKUP($A137,masterlist!$C$2:$K$207,9,FALSE))=0,\"\",VLOOKUP($A137,masterlist!$C$2:$K$207,9,FALSE)),\"\")","v":""}]
[{"$f":"IF(ROWS($A$6:A138)<=$A$1,INDEX(masterlist!$C$2:$C$207,SMALL(IF(masterlist!$F$2:$F$207>0,IF(masterlist!$J$2:$J$207=0,ROW(masterlist!$B$2:$B$207)-ROW(masterlist!$B$2)+1)),ROWS($A$6:A138))),\"\")","v":""},{"$f":"IFERROR(VLOOKUP($A138,masterlist!$C$2:$K$207,3,FALSE),\"\")","v":""},"",{"$f":"IFERROR(VLOOKUP($A138,masterlist!$C$2:$AD$207,28,FALSE),\"\")","v":""},{"$f":"IFERROR(IF((VLOOKUP($A138,masterlist!$C$2:$K$207,9,FALSE))=0,\"\",VLOOKUP($A138,masterlist!$C$2:$K$207,9,FALSE)),\"\")","v":""}]
[{"$f":"IF(ROWS($A$6:A139)<=$A$1,INDEX(masterlist!$C$2:$C$207,SMALL(IF(masterlist!$F$2:$F$207>0,IF(masterlist!$J$2:$J$207=0,ROW(masterlist!$B$2:$B$207)-ROW(masterlist!$B$2)+1)),ROWS($A$6:A139))),\"\")","v":""},{"$f":"IFERROR(VLOOKUP($A139,masterlist!$C$2:$K$207,3,FALSE),\"\")","v":""},"",{"$f":"IFERROR(VLOOKUP($A139,masterlist!$C$2:$AD$207,28,FALSE),\"\")","v":""},{"$f":"IFERROR(IF((VLOOKUP($A139,masterlist!$C$2:$K$207,9,FALSE))=0,\"\",VLOOKUP($A139,masterlist!$C$2:$K$207,9,FALSE)),\"\")","v":""}]
[{"$f":"IF(ROWS($A$6:A140)<=$A$1,INDEX(masterlist!$C$2:$C$207,SMALL(IF(masterlist!$F$2:$F$207>0,IF(masterlist!$J$2:$J$207=0,ROW(masterlist!$B$2:$B$207)-ROW(masterlist!$B$2)+1)),ROWS($A$6:A140))),\"\")","v":""},{"$f":"IFERROR(VLOOKUP($A140,masterlist!$C$2:$K$207,3,FALSE),\"\")","v":""},"",{"$f":"IFERROR(VLOOKUP($A140,masterlist!$C$2:$AD$207,28,FALSE),\"\")","v":""},{"$f":"IFERROR(IF((VLOOKUP($A140,masterlist!$C$2:$K$207,9,FALSE))=0,\"\",VLOOKUP($A140,masterlist!$C$2:$K$207,9,FALSE)),\"\")","v":""}]
[{"$f":"IF(ROWS($A$6:A141)<=$A$1,INDEX(masterlist!$C$2:$C$207,SMALL(IF(masterlist!$F$2:$F$207>0,IF(masterlist!$J$2:$J$207=0,ROW(masterlist!$B$2:$B$207)-ROW(masterlist!$B$2)+1)),ROWS($A$6:A141))),\"\")","v":""},{"$f":"IFERROR(VLOOKUP($A141,masterlist!$C$2:$K$207,3,FALSE),\"\")","v":""},"",{"$f":"IFERROR(VLOOKUP($A141,masterlist!$C$2:$AD$207,28,FALSE),\"\")","v":""},{"$f":"IFERROR(IF((VLOOKUP($A141,masterlist!$C$2:$K$207,9,FALSE))=0,\"\",VLOOKUP($A141,masterlist!$C$2:$K$207,9,FALSE)),\"\")","v":""}]
[{"$f":"IF(ROWS($A$6:A142)<=$A$1,INDEX(masterlist!$C$2:$C$207,SMALL(IF(masterlist!$F$2:$F$207>0,IF(masterlist!$J$2:$J$207=0,ROW(masterlist!$B$2:$B$207)-ROW(masterlist!$B$2)+1)),ROWS($A$6:A142))),\"\")","v":""},{"$f":"IFERROR(VLOOKUP($A142,masterlist!$C$2:$K$207,3,FALSE),\"\")","v":""},"",{"$f":"IFERROR(VLOOKUP($A142,masterlist!$C$2:$AD$207,28,FALSE),\"\")","v":""},{"$f":"IFERROR(IF((VLOOKUP($A142,masterlist!$C$2:$K$207,9,FALSE))=0,\"\",VLOOKUP($A142,masterlist!$C$2:$K$207,9,FALSE)),\"\")","v":""}]
[{"$f":"IF(ROWS($A$6:A143)<=$A$1,INDEX(masterlist!$C$2:$C$207,SMALL(IF(masterlist!$F$2:$F$207>0,IF(masterlist!$J$2:$J$207=0,ROW(masterlist!$B$2:$B$207)-ROW(masterlist!$B$2)+1)),ROWS($A$6:A143))),\"\")","v":""},{"$f":"IFERROR(VLOOKUP($A143,masterlist!$C$2:$K$207,3,FALSE),\"\")","v":""},"",{"$f":"IFERROR(VLOOKUP($A143,masterlist!$C$2:$AD$207,28,FALSE),\"\")","v":""},{"$f":"IFERROR(IF((VLOOKUP($A143,masterlist!$C$2:$K$207,9,FALSE))=0,\"\",VLOOKUP($A143,masterlist!$C$2:$K$207,9,FALSE)),\"\")","v":""}]
[{"$f":"IF(ROWS($A$6:A144)<=$A$1,INDEX(masterlist!$C$2:$C$207,SMALL(IF(masterlist!$F$2:$F$207>0,IF(masterlist!$J$2:$J$207=0,ROW(masterlist!$B$2:$B$207)-ROW(masterlist!$B$2)+1)),ROWS($A$6:A144))),\"\")","v":""},{"$f":"IFERROR(VLOOKUP($A144,masterlist!$C$2:$K$207,3,FALSE),\"\")","v":""},"",{"$f":"IFERROR(VLOOKUP($A144,masterlist!$C$2:$AD$207,28,FALSE),\"\")","v":""},{"$f":"IFERROR(IF((VLOOKUP($A144,masterlist!$C$2:$K$207,9,FALSE))=0,\"\",VLOOKUP($A144,masterlist!$C$2:$K$207,9,FALSE)),\"\")","v":""}]
[{"$f":"IF(ROWS($A$6:A145)<=$A$1,INDEX(masterlist!$C$2:$C$207,SMALL(IF(masterlist!$F$2:$F$207>0,IF(masterlist!$J$2:$J$207=0,ROW(masterlist!$B$2:$B$207)-ROW(masterlist!$B$2)+1)),ROWS($A$6:A145))),\"\")","v":""},{"$f":"IFERROR(VLOOKUP($A145,masterlist!$C$2:$K$207,3,FALSE),\"\")","v":""},"",{"$f":"IFERROR(VLOOKUP($A145,masterlist!$C$2:$AD$207,28,FALSE),\"\")","v":""},{"$f":"IFERROR(IF((VLOOKUP($A145,masterlist!$C$2:$K$207,9,FALSE))=0,\"\",VLOOKUP($A145,masterlist!$C$2:$K$207,9,FALSE)),\"\")","v":""}]
[{"$f":"IF(ROWS($A$6:A146)<=$A$1,INDEX(masterlist!$C$2:$C$207,SMALL(IF(masterlist!$F$2:$F$207>0,IF(masterlist!$J$2:$J$207=0,ROW(masterlist!$B$2:$B$207)-ROW(masterlist!$B$2)+1)),ROWS($A$6:A146))),\"\")","v":""},{"$f":"IFERROR(VLOOKUP($A146,masterlist!$C$2:$K$207,3,FALSE),\"\")","v":""},"",{"$f":"IFERROR(VLOOKUP($A146,masterlist!$C$2:$AD$207,28,FALSE),\"\")","v":""},{"$f":"IFERROR(IF((VLOOKUP($A146,masterlist!$C$2:$K$207,9,FALSE))=0,\"\",VLOOKUP($A146,masterlist!$C$2:$K$207,9,FALSE)),\"\")","v":""}]
[{"$f":"IF(ROWS($A$6:A147)<=$A$1,INDEX(masterlist!$C$2:$C$207,SMALL(IF(masterlist!$F$2:$F$207>0,IF(masterlist!$J$2:$J$207=0,ROW(masterlist!$B$2:$B$207)-ROW(masterlist!$B$2)+1)),ROWS($A$6:A147))),\"\")","v":""},{"$f":"IFERROR(VLOOKUP($A147,masterlist!$C$2:$K$207,3,FALSE),\"\")","v":""},"",{"$f":"IFERROR(VLOOKUP($A147,masterlist!$C$2:$AD$207,28,FALSE),\"\")","v":""},{"$f":"IFERROR(IF((VLOOKUP($A147,masterlist!$C$2:$K$207,9,FALSE))=0,\"\",VLOOKUP($A147,masterlist!$C$2:$K$207,9,FALSE)),\"\")","v":""}]
[{"$f":"IF(ROWS($A$6:A148)<=$A$1,INDEX(masterlist!$C$2:$C$207,SMALL(IF(masterlist!$F$2:$F$207>0,IF(masterlist!$J$2:$J$207=0,ROW(masterlist!$B$2:$B$207)-ROW(masterlist!$B$2)+1)),ROWS($A$6:A148))),\"\")","v":""},{"$f":"IFERROR(VLOOKUP($A148,masterlist!$C$2:$K$207,3,FALSE),\"\")","v":""},"",{"$f":"IFERROR(VLOOKUP($A148,masterlist!$C$2:$AD$207,28,FALSE),\"\")","v":""},{"$f":"IFERROR(IF((VLOOKUP($A148,masterlist!$C$2:$K$207,9,FALSE))=0,\"\",VLOOKUP($A148,masterlist!$C$2:$K$207,9,FALSE)),\"\")","v":""}]
[{"$f":"IF(ROWS($A$6:A149)<=$A$1,INDEX(masterlist!$C$2:$C$207,SMALL(IF(masterlist!$F$2:$F$207>0,IF(masterlist!$J$2:$J$207=0,ROW(masterlist!$B$2:$B$207)-ROW(masterlist!$B$2)+1)),ROWS($A$6:A149))),\"\")","v":""},{"$f":"IFERROR(VLOOKUP($A149,masterlist!$C$2:$K$207,3,FALSE),\"\")","v":""},"",{"$f":"IFERROR(VLOOKUP($A149,masterlist!$C$2:$AD$207,28,FALSE),\"\")","v":""},{"$f":"IFERROR(IF((VLOOKUP($A149,masterlist!$C$2:$K$207,9,FALSE))=0,\"\",VLOOKUP($A149,masterlist!$C$2:$K$207,9,FALSE)),\"\")","v":""}]
[{"$f":"IF(ROWS($A$6:A150)<=$A$1,INDEX(masterlist!$C$2:$C$207,SMALL(IF(masterlist!$F$2:$F$207>0,IF(masterlist!$J$2:$J$207=0,ROW(masterlist!$B$2:$B$207)-ROW(masterlist!$B$2)+1)),ROWS($A$6:A150))),\"\")","v":""},{"$f":"IFERROR(VLOOKUP($A150,masterlist!$C$2:$K$207,3,FALSE),\"\")","v":""},"",{"$f":"IFERROR(VLOOKUP($A150,masterlist!$C$2:$AD$207,28,FALSE),\"\")","v":""},{"$f":"IFERROR(IF((VLOOKUP($A150,masterlist!$C$2:$K$207,9,FALSE))=0,\"\",VLOOKUP($A150,masterlist!$C$2:$K$207,9,FALSE)),\"\")","v":""}]
[{"$f":"IF(ROWS($A$6:A151)<=$A$1,INDEX(masterlist!$C$2:$C$207,SMALL(IF(masterlist!$F$2:$F$207>0,IF(masterlist!$J$2:$J$207=0,ROW(masterlist!$B$2:$B$207)-ROW(masterlist!$B$2)+1)),ROWS($A$6:A151))),\"\")","v":""},{"$f":"IFERROR(VLOOKUP($A151,masterlist!$C$2:$K$207,3,FALSE),\"\")","v":""},"",{"$f":"IFERROR(VLOOKUP($A151,masterlist!$C$2:$AD$207,28,FALSE),\"\")","v":""},{"$f":"IFERROR(IF((VLOOKUP($A151,masterlist!$C$2:$K$207,9,FALSE))=0,\"\",VLOOKUP($A151,masterlist!$C$2:$K$207,9,FALSE)),\"\")","v":""}]
[{"$f":"IF(ROWS($A$6:A152)<=$A$1,INDEX(masterlist!$C$2:$C$207,SMALL(IF(masterlist!$F$2:$F$207>0,IF(masterlist!$J$2:$J$207=0,ROW(masterlist!$B$2:$B$207)-ROW(masterlist!$B$2)+1)),ROWS($A$6:A152))),\"\")","v":""},{"$f":"IFERROR(VLOOKUP($A152,masterlist!$C$2:$K$207,3,FALSE),\"\")","v":""},"",{"$f":"IFERROR(VLOOKUP($A152,masterlist!$C$2:$AD$207,28,FALSE),\"\")","v":""},{"$f":"IFERROR(IF((VLOOKUP($A152,masterlist!$C$2:$K$207,9,FALSE))=0,\"\",VLOOKUP($A152,masterlist!$C$2:$K$207,9,FALSE)),\"\")","v":""}]
[{"$f":"IF(ROWS($A$6:A153)<=$A$1,INDEX(masterlist!$C$2:$C$207,SMALL(IF(masterlist!$F$2:$F$207>0,IF(masterlist!$J$2:$J$207=0,ROW(masterlist!$B$2:$B$207)-ROW(masterlist!$B$2)+1)),ROWS($A$6:A153))),\"\")","v":""},{"$f":"IFERROR(VLOOKUP($A153,masterlist!$C$2:$K$207,3,FALSE),\"\")","v":""},"",{"$f":"IFERROR(VLOOKUP($A153,masterlist!$C$2:$AD$207,28,FALSE),\"\")","v":""},{"$f":"IFERROR(IF((VLOOKUP($A153,masterlist!$C$2:$K$207,9,FALSE))=0,\"\",VLOOKUP($A153,masterlist!$C$2:$K$207,9,FALSE)),\"\")","v":""}]
[{"$f":"IF(ROWS($A$6:A154)<=$A$1,INDEX(masterlist!$C$2:$C$207,SMALL(IF(masterlist!$F$2:$F$207>0,IF(masterlist!$J$2:$J$207=0,ROW(masterlist!$B$2:$B$207)-ROW(masterlist!$B$2)+1)),ROWS($A$6:A154))),\"\")","v":""},{"$f":"IFERROR(VLOOKUP($A154,masterlist!$C$2:$K$207,3,FALSE),\"\")","v":""},"",{"$f":"IFERROR(VLOOKUP($A154,masterlist!$C$2:$AD$207,28,FALSE),\"\")","v":""},{"$f":"IFERROR(IF((VLOOKUP($A154,masterlist!$C$2:$K$207,9,FALSE))=0,\"\",VLOOKUP($A154,masterlist!$C$2:$K$207,9,FALSE)),\"\")","v":""}]
[{"$f":"IF(ROWS($A$6:A155)<=$A$1,INDEX(masterlist!$C$2:$C$207,SMALL(IF(masterlist!$F$2:$F$207>0,IF(masterlist!$J$2:$J$207=0,ROW(masterlist!$B$2:$B$207)-ROW(masterlist!$B$2)+1)),ROWS($A$6:A155))),\"\")","v":""},{"$f":"IFERROR(VLOOKUP($A155,masterlist!$C$2:$K$207,3,FALSE),\"\")","v":""},"",{"$f":"IFERROR(VLOOKUP($A155,masterlist!$C$2:$AD$207,28,FALSE),\"\")","v":""},{"$f":"IFERROR(IF((VLOOKUP($A155,masterlist!$C$2:$K$207,9,FALSE))=0,\"\",VLOOKUP($A155,masterlist!$C$2:$K$207,9,FALSE)),\"\")","v":""}]
[{"$f":"IF(ROWS($A$6:A156)<=$A$1,INDEX(masterlist!$C$2:$C$207,SMALL(IF(masterlist!$F$2:$F$207>0,IF(masterlist!$J$2:$J$207=0,ROW(masterlist!$B$2:$B$207)-ROW(masterlist!$B$2)+1)),ROWS($A$6:A156))),\"\")","v":""},{"$f":"IFERROR(VLOOKUP($A156,masterlist!$C$2:$K$207,3,FALSE),\"\")","v":""},"",{"$f":"IFERROR(VLOOKUP($A156,masterlist!$C$2:$AD$207,28,FALSE),\"\")","v":""},{"$f":"IFERROR(IF((VLOOKUP($A156,masterlist!$C$2:$K$207,9,FALSE))=0,\"\",VLOOKUP($A156,masterlist!$C$2:$K$207,9,FALSE)),\"\")","v":""}]
[{"$f":"IF(ROWS($A$6:A157)<=$A$1,INDEX(masterlist!$C$2:$C$207,SMALL(IF(masterlist!$F$2:$F$207>0,IF(masterlist!$J$2:$J$207=0,ROW(masterlist!$B$2:$B$207)-ROW(masterlist!$B$2)+1)),ROWS($A$6:A157))),\"\")","v":""},{"$f":"IFERROR(VLOOKUP($A157,masterlist!$C$2:$K$207,3,FALSE),\"\")","v":""},"",{"$f":"IFERROR(VLOOKUP($A157,masterlist!$C$2:$AD$207,28,FALSE),\"\")","v":""},{"$f":"IFERROR(IF((VLOOKUP($A157,masterlist!$C$2:$K$207,9,FALSE))=0,\"\",VLOOKUP($A157,masterlist!$C$2:$K$207,9,FALSE)),\"\")","v":""}]
[{"$f":"IF(ROWS($A$6:A158)<=$A$1,INDEX(masterlist!$C$2:$C$207,SMALL(IF(masterlist!$F$2:$F$207>0,IF(masterlist!$J$2:$J$207=0,ROW(masterlist!$B$2:$B$207)-ROW(masterlist!$B$2)+1)),ROWS($A$6:A158))),\"\")","v":""},{"$f":"IFERROR(VLOOKUP($A158,masterlist!$C$2:$K$207,3,FALSE),\"\")","v":""},"",{"$f":"IFERROR(VLOOKUP($A158,masterlist!$C$2:$AD$207,28,FALSE),\"\")","v":""},{"$f":"IFERROR(IF((VLOOKUP($A158,masterlist!$C$2:$K$207,9,FALSE))=0,\"\",VLOOKUP($A158,masterlist!$C$2:$K$207,9,FALSE)),\"\")","v":""}]
[{"$f":"IF(ROWS($A$6:A159)<=$A$1,INDEX(masterlist!$C$2:$C$207,SMALL(IF(masterlist!$F$2:$F$207>0,IF(masterlist!$J$2:$J$207=0,ROW(masterlist!$B$2:$B$207)-ROW(masterlist!$B$2)+1)),ROWS($A$6:A159))),\"\")","v":""},{"$f":"IFERROR(VLOOKUP($A159,masterlist!$C$2:$K$207,3,FALSE),\"\")","v":""},"",{"$f":"IFERROR(VLOOKUP($A159,masterlist!$C$2:$AD$207,28,FALSE),\"\")","v":""},{"$f":"IFERROR(IF((VLOOKUP($A159,masterlist!$C$2:$K$207,9,FALSE))=0,\"\",VLOOKUP($A159,masterlist!$C$2:$K$207,9,FALSE)),\"\")","v":""}]
[{"$f":"IF(ROWS($A$6:A160)<=$A$1,INDEX(masterlist!$C$2:$C$207,SMALL(IF(masterlist!$F$2:$F$207>0,IF(masterlist!$J$2:$J$207=0,ROW(masterlist!$B$2:$B$207)-ROW(masterlist!$B$2)+1)),ROWS($A$6:A160))),\"\")","v":""},{"$f":"IFERROR(VLOOKUP($A160,masterlist!$C$2:$K$207,3,FALSE),\"\")","v":""},"",{"$f":"IFERROR(VLOOKUP($A160,masterlist!$C$2:$AD$207,28,FALSE),\"\")","v":""},{"$f":"IFERROR(IF((VLOOKUP($A160,masterlist!$C$2:$K$207,9,FALSE))=0,\"\",VLOOKUP($A160,masterlist!$C$2:$K$207,9,FALSE)),\"\")","v":""}]
[{"$f":"IF(ROWS($A$6:A161)<=$A$1,INDEX(masterlist!$C$2:$C$207,SMALL(IF(masterlist!$F$2:$F$207>0,IF(masterlist!$J$2:$J$207=0,ROW(masterlist!$B$2:$B$207)-ROW(masterlist!$B$2)+1)),ROWS($A$6:A161))),\"\")","v":""},{"$f":"IFERROR(VLOOKUP($A161,masterlist!$C$2:$K$207,3,FALSE),\"\")","v":""},"",{"$f":"IFERROR(VLOOKUP($A161,masterlist!$C$2:$AD$207,28,FALSE),\"\")","v":""},{"$f":"IFERROR(IF((VLOOKUP($A161,masterlist!$C$2:$K$207,9,FALSE))=0,\"\",VLOOKUP($A161,masterlist!$C$2:$K$207,9,FALSE)),\"\")","v":""}]
[{"$f":"IF(ROWS($A$6:A162)<=$A$1,INDEX(masterlist!$C$2:$C$207,SMALL(IF(masterlist!$F$2:$F$207>0,IF(masterlist!$J$2:$J$207=0,ROW(masterlist!$B$2:$B$207)-ROW(masterlist!$B$2)+1)),ROWS($A$6:A162))),\"\")","v":""},{"$f":"IFERROR(VLOOKUP($A162,masterlist!$C$2:$K$207,3,FALSE),\"\")","v":""},"",{"$f":"IFERROR(VLOOKUP($A162,masterlist!$C$2:$AD$207,28,FALSE),\"\")","v":""},{"$f":"IFERROR(IF((VLOOKUP($A162,masterlist!$C$2:$K$207,9,FALSE))=0,\"\",VLOOKUP($A162,masterlist!$C$2:$K$207,9,FALSE)),\"\")","v":""}]
[{"$f":"IF(ROWS($A$6:A163)<=$A$1,INDEX(masterlist!$C$2:$C$207,SMALL(IF(masterlist!$F$2:$F$207>0,IF(masterlist!$J$2:$J$207=0,ROW(masterlist!$B$2:$B$207)-ROW(masterlist!$B$2)+1)),ROWS($A$6:A163))),\"\")","v":""},{"$f":"IFERROR(VLOOKUP($A163,masterlist!$C$2:$K$207,3,FALSE),\"\")","v":""},"",{"$f":"IFERROR(VLOOKUP($A163,masterlist!$C$2:$AD$207,28,FALSE),\"\")","v":""},{"$f":"IFERROR(IF((VLOOKUP($A163,masterlist!$C$2:$K$207,9,FALSE))=0,\"\",VLOOKUP($A163,masterlist!$C$2:$K$207,9,FALSE)),\"\")","v":""}]
[{"$f":"IF(ROWS($A$6:A164)<=$A$1,INDEX(masterlist!$C$2:$C$207,SMALL(IF(masterlist!$F$2:$F$207>0,IF(masterlist!$J$2:$J$207=0,ROW(masterlist!$B$2:$B$207)-ROW(masterlist!$B$2)+1)),ROWS($A$6:A164))),\"\")","v":""},{"$f":"IFERROR(VLOOKUP($A164,masterlist!$C$2:$K$207,3,FALSE),\"\")","v":""},"",{"$f":"IFERROR(VLOOKUP($A164,masterlist!$C$2:$AD$207,28,FALSE),\"\")","v":""},{"$f":"IFERROR(IF((VLOOKUP($A164,masterlist!$C$2:$K$207,9,FALSE))=0,\"\",VLOOKUP($A164,masterlist!$C$2:$K$207,9,FALSE)),\"\")","v":""}]
[{"$f":"IF(ROWS($A$6:A165)<=$A$1,INDEX(masterlist!$C$2:$C$207,SMALL(IF(masterlist!$F$2:$F$207>0,IF(masterlist!$J$2:$J$207=0,ROW(masterlist!$B$2:$B$207)-ROW(masterlist!$B$2)+1)),ROWS($A$6:A165))),\"\")","v":""},{"$f":"IFERROR(VLOOKUP($A165,masterlist!$C$2:$K$207,3,FALSE),\"\")","v":""},"",{"$f":"IFERROR(VLOOKUP($A165,masterlist!$C$2:$AD$207,28,FALSE),\"\")","v":""},{"$f":"IFERROR(IF((VLOOKUP($A165,masterlist!$C$2:$K$207,9,FALSE))=0,\"\",VLOOKUP($A165,masterlist!$C$2:$K$207,9,FALSE)),\"\")","v":""}]
[{"$f":"IF(ROWS($A$6:A166)<=$A$1,INDEX(masterlist!$C$2:$C$207,SMALL(IF(masterlist!$F$2:$F$207>0,IF(masterlist!$J$2:$J$207=0,ROW(masterlist!$B$2:$B$207)-ROW(masterlist!$B$2)+1)),ROWS($A$6:A166))),\"\")","v":""},{"$f":"IFERROR(VLOOKUP($A166,masterlist!$C$2:$K$207,3,FALSE),\"\")","v":""},"",{"$f":"IFERROR(VLOOKUP($A166,masterlist!$C$2:$AD$207,28,FALSE),\"\")","v":""},{"$f":"IFERROR(IF((VLOOKUP($A166,masterlist!$C$2:$K$207,9,FALSE))=0,\"\",VLOOKUP($A166,masterlist!$C$2:$K$207,9,FALSE)),\"\")","v":""}]
[{"$f":"IF(ROWS($A$6:A167)<=$A$1,INDEX(masterlist!$C$2:$C$207,SMALL(IF(masterlist!$F$2:$F$207>0,IF(masterlist!$J$2:$J$207=0,ROW(masterlist!$B$2:$B$207)-ROW(masterlist!$B$2)+1)),ROWS($A$6:A167))),\"\")","v":""},{"$f":"IFERROR(VLOOKUP($A167,masterlist!$C$2:$K$207,3,FALSE),\"\")","v":""},"",{"$f":"IFERROR(VLOOKUP($A167,masterlist!$C$2:$AD$207,28,FALSE),\"\")","v":""},{"$f":"IFERROR(IF((VLOOKUP($A167,masterlist!$C$2:$K$207,9,FALSE))=0,\"\",VLOOKUP($A167,masterlist!$C$2:$K$207,9,FALSE)),\"\")","v":""}]
[{"$f":"IF(ROWS($A$6:A168)<=$A$1,INDEX(masterlist!$C$2:$C$207,SMALL(IF(masterlist!$F$2:$F$207>0,IF(masterlist!$J$2:$J$207=0,ROW(masterlist!$B$2:$B$207)-ROW(masterlist!$B$2)+1)),ROWS($A$6:A168))),\"\")","v":""},{"$f":"IFERROR(VLOOKUP($A168,masterlist!$C$2:$K$207,3,FALSE),\"\")","v":""},"",{"$f":"IFERROR(VLOOKUP($A168,masterlist!$C$2:$AD$207,28,FALSE),\"\")","v":""},{"$f":"IFERROR(IF((VLOOKUP($A168,masterlist!$C$2:$K$207,9,FALSE))=0,\"\",VLOOKUP($A168,masterlist!$C$2:$K$207,9,FALSE)),\"\")","v":""}]
[{"$f":"IF(ROWS($A$6:A169)<=$A$1,INDEX(masterlist!$C$2:$C$207,SMALL(IF(masterlist!$F$2:$F$207>0,IF(masterlist!$J$2:$J$207=0,ROW(masterlist!$B$2:$B$207)-ROW(masterlist!$B$2)+1)),ROWS($A$6:A169))),\"\")","v":""},{"$f":"IFERROR(VLOOKUP($A169,masterlist!$C$2:$K$207,3,FALSE),\"\")","v":""},"",{"$f":"IFERROR(VLOOKUP($A169,masterlist!$C$2:$AD$207,28,FALSE),\"\")","v":""},{"$f":"IFERROR(IF((VLOOKUP($A169,masterlist!$C$2:$K$207,9,FALSE))=0,\"\",VLOOKUP($A169,masterlist!$C$2:$K$207,9,FALSE)),\"\")","v":""}]
[{"$f":"IF(ROWS($A$6:A170)<=$A$1,INDEX(masterlist!$C$2:$C$207,SMALL(IF(masterlist!$F$2:$F$207>0,IF(masterlist!$J$2:$J$207=0,ROW(masterlist!$B$2:$B$207)-ROW(masterlist!$B$2)+1)),ROWS($A$6:A170))),\"\")","v":""},{"$f":"IFERROR(VLOOKUP($A170,masterlist!$C$2:$K$207,3,FALSE),\"\")","v":""},"",{"$f":"IFERROR(VLOOKUP($A170,masterlist!$C$2:$AD$207,28,FALSE),\"\")","v":""},{"$f":"IFERROR(IF((VLOOKUP($A170,masterlist!$C$2:$K$207,9,FALSE))=0,\"\",VLOOKUP($A170,masterlist!$C$2:$K$207,9,FALSE)),\"\")","v":""}]
[{"$f":"IF(ROWS($A$6:A171)<=$A$1,INDEX(masterlist!$C$2:$C$207,SMALL(IF(masterlist!$F$2:$F$207>0,IF(masterlist!$J$2:$J$207=0,ROW(masterlist!$B$2:$B$207)-ROW(masterlist!$B$2)+1)),ROWS($A$6:A171))),\"\")","v":""},{"$f":"IFERROR(VLOOKUP($A171,masterlist!$C$2:$K$207,3,FALSE),\"\")","v":""},"",{"$f":"IFERROR(VLOOKUP($A171,masterlist!$C$2:$AD$207,28,FALSE),\"\")","v":""},{"$f":"IFERROR(IF((VLOOKUP($A171,masterlist!$C$2:$K$207,9,FALSE))=0,\"\",VLOOKUP($A171,masterlist!$C$2:$K$207,9,FALSE)),\"\")","v":""}]
[{"$f":"IF(ROWS($A$6:A172)<=$A$1,INDEX(masterlist!$C$2:$C$207,SMALL(IF(masterlist!$F$2:$F$207>0,IF(masterlist!$J$2:$J$207=0,ROW(masterlist!$B$2:$B$207)-ROW(masterlist!$B$2)+1)),ROWS($A$6:A172))),\"\")","v":""},{"$f":"IFERROR(VLOOKUP($A172,masterlist!$C$2:$K$207,3,FALSE),\"\")","v":""},"",{"$f":"IFERROR(VLOOKUP($A172,masterlist!$C$2:$AD$207,28,FALSE),\"\")","v":""},{"$f":"IFERROR(IF((VLOOKUP($A172,masterlist!$C$2:$K$207,9,FALSE))=0,\"\",VLOOKUP($A172,masterlist!$C$2:$K$207,9,FALSE)),\"\")","v":""}]
[{"$f":"IF(ROWS($A$6:A173)<=$A$1,INDEX(masterlist!$C$2:$C$207,SMALL(IF(masterlist!$F$2:$F$207>0,IF(masterlist!$J$2:$J$207=0,ROW(masterlist!$B$2:$B$207)-ROW(masterlist!$B$2)+1)),ROWS($A$6:A173))),\"\")","v":""},{"$f":"IFERROR(VLOOKUP($A173,masterlist!$C$2:$K$207,3,FALSE),\"\")","v":""},"",{"$f":"IFERROR(VLOOKUP($A173,masterlist!$C$2:$AD$207,28,FALSE),\"\")","v":""},{"$f":"IFERROR(IF((VLOOKUP($A173,masterlist!$C$2:$K$207,9,FALSE))=0,\"\",VLOOKUP($A173,masterlist!$C$2:$K$207,9,FALSE)),\"\")","v":""}]
[{"$f":"IF(ROWS($A$6:A174)<=$A$1,INDEX(masterlist!$C$2:$C$207,SMALL(IF(masterlist!$F$2:$F$207>0,IF(masterlist!$J$2:$J$207=0,ROW(masterlist!$B$2:$B$207)-ROW(masterlist!$B$2)+1)),ROWS($A$6:A174))),\"\")","v":""},{"$f":"IFERROR(VLOOKUP($A174,masterlist!$C$2:$K$207,3,FALSE),\"\")","v":""},"",{"$f":"IFERROR(VLOOKUP($A174,masterlist!$C$2:$AD$207,28,FALSE),\"\")","v":""},{"$f":"IFERROR(IF((VLOOKUP($A174,masterlist!$C$2:$K$207,9,FALSE))=0,\"\",VLOOKUP($A174,masterlist!$C$2:$K$207,9,FALSE)),\"\")","v":""}]
[{"$f":"IF(ROWS($A$6:A175)<=$A$1,INDEX(masterlist!$C$2:$C$207,SMALL(IF(masterlist!$F$2:$F$207>0,IF(masterlist!$J$2:$J$207=0,ROW(masterlist!$B$2:$B$207)-ROW(masterlist!$B$2)+1)),ROWS($A$6:A175))),\"\")","v":""},{"$f":"IFERROR(VLOOKUP($A175,masterlist!$C$2:$K$207,3,FALSE),\"\")","v":""},"",{"$f":"IFERROR(VLOOKUP($A175,masterlist!$C$2:$AD$207,28,FALSE),\"\")","v":""},{"$f":"IFERROR(IF((VLOOKUP($A175,masterlist!$C$2:$K$207,9,FALSE))=0,\"\",VLOOKUP($A175,masterlist!$C$2:$K$207,9,FALSE)),\"\")","v":""}]
[{"$f":"IF(ROWS($A$6:A176)<=$A$1,INDEX(masterlist!$C$2:$C$207,SMALL(IF(masterlist!$F$2:$F$207>0,IF(masterlist!$J$2:$J$207=0,ROW(masterlist!$B$2:$B$207)-ROW(masterlist!$B$2)+1)),ROWS($A$6:A176))),\"\")","v":""},{"$f":"IFERROR(VLOOKUP($A176,masterlist!$C$2:$K$207,3,FALSE),\"\")","v":""},"",{"$f":"IFERROR(VLOOKUP($A176,masterlist!$C$2:$AD$207,28,FALSE),\"\")","v":""},{"$f":"IFERROR(IF((VLOOKUP($A176,masterlist!$C$2:$K$207,9,FALSE))=0,\"\",VLOOKUP($A176,masterlist!$C$2:$K$207,9,FALSE)),\"\")","v":""}]
[{"$f":"IF(ROWS($A$6:A177)<=$A$1,INDEX(masterlist!$C$2:$C$207,SMALL(IF(masterlist!$F$2:$F$207>0,IF(masterlist!$J$2:$J$207=0,ROW(masterlist!$B$2:$B$207)-ROW(masterlist!$B$2)+1)),ROWS($A$6:A177))),\"\")","v":""},{"$f":"IFERROR(VLOOKUP($A177,masterlist!$C$2:$K$207,3,FALSE),\"\")","v":""},"",{"$f":"IFERROR(VLOOKUP($A177,masterlist!$C$2:$AD$207,28,FALSE),\"\")","v":""},{"$f":"IFERROR(IF((VLOOKUP($A177,masterlist!$C$2:$K$207,9,FALSE))=0,\"\",VLOOKUP($A177,masterlist!$C$2:$K$207,9,FALSE)),\"\")","v":""}]
[{"$f":"IF(ROWS($A$6:A178)<=$A$1,INDEX(masterlist!$C$2:$C$207,SMALL(IF(masterlist!$F$2:$F$207>0,IF(masterlist!$J$2:$J$207=0,ROW(masterlist!$B$2:$B$207)-ROW(masterlist!$B$2)+1)),ROWS($A$6:A178))),\"\")","v":""},{"$f":"IFERROR(VLOOKUP($A178,masterlist!$C$2:$K$207,3,FALSE),\"\")","v":""},"",{"$f":"IFERROR(VLOOKUP($A178,masterlist!$C$2:$AD$207,28,FALSE),\"\")","v":""},{"$f":"IFERROR(IF((VLOOKUP($A178,masterlist!$C$2:$K$207,9,FALSE))=0,\"\",VLOOKUP($A178,masterlist!$C$2:$K$207,9,FALSE)),\"\")","v":""}]
[{"$f":"IF(ROWS($A$6:A179)<=$A$1,INDEX(masterlist!$C$2:$C$207,SMALL(IF(masterlist!$F$2:$F$207>0,IF(masterlist!$J$2:$J$207=0,ROW(masterlist!$B$2:$B$207)-ROW(masterlist!$B$2)+1)),ROWS($A$6:A179))),\"\")","v":""},{"$f":"IFERROR(VLOOKUP($A179,masterlist!$C$2:$K$207,3,FALSE),\"\")","v":""},"",{"$f":"IFERROR(VLOOKUP($A179,masterlist!$C$2:$AD$207,28,FALSE),\"\")","v":""},{"$f":"IFERROR(IF((VLOOKUP($A179,masterlist!$C$2:$K$207,9,FALSE))=0,\"\",VLOOKUP($A179,masterlist!$C$2:$K$207,9,FALSE)),\"\")","v":""}]
[{"$f":"IF(ROWS($A$6:A180)<=$A$1,INDEX(masterlist!$C$2:$C$207,SMALL(IF(masterlist!$F$2:$F$207>0,IF(masterlist!$J$2:$J$207=0,ROW(masterlist!$B$2:$B$207)-ROW(masterlist!$B$2)+1)),ROWS($A$6:A180))),\"\")","v":""},{"$f":"IFERROR(VLOOKUP($A180,masterlist!$C$2:$K$207,3,FALSE),\"\")","v":""},"",{"$f":"IFERROR(VLOOKUP($A180,masterlist!$C$2:$AD$207,28,FALSE),\"\")","v":""},{"$f":"IFERROR(IF((VLOOKUP($A180,masterlist!$C$2:$K$207,9,FALSE))=0,\"\",VLOOKUP($A180,masterlist!$C$2:$K$207,9,FALSE)),\"\")","v":""}]
[{"$f":"IF(ROWS($A$6:A181)<=$A$1,INDEX(masterlist!$C$2:$C$207,SMALL(IF(masterlist!$F$2:$F$207>0,IF(masterlist!$J$2:$J$207=0,ROW(masterlist!$B$2:$B$207)-ROW(masterlist!$B$2)+1)),ROWS($A$6:A181))),\"\")","v":""},{"$f":"IFERROR(VLOOKUP($A181,masterlist!$C$2:$K$207,3,FALSE),\"\")","v":""},"",{"$f":"IFERROR(VLOOKUP($A181,masterlist!$C$2:$AD$207,28,FALSE),\"\")","v":""},{"$f":"IFERROR(IF((VLOOKUP($A181,masterlist!$C$2:$K$207,9,FALSE))=0,\"\",VLOOKUP($A181,masterlist!$C$2:$K$207,9,FALSE)),\"\")","v":""}]
[{"$f":"IF(ROWS($A$6:A182)<=$A$1,INDEX(masterlist!$C$2:$C$207,SMALL(IF(masterlist!$F$2:$F$207>0,IF(masterlist!$J$2:$J$207=0,ROW(masterlist!$B$2:$B$207)-ROW(masterlist!$B$2)+1)),ROWS($A$6:A182))),\"\")","v":""},{"$f":"IFERROR(VLOOKUP($A182,masterlist!$C$2:$K$207,3,FALSE),\"\")","v":""},"",{"$f":"IFERROR(VLOOKUP($A182,masterlist!$C$2:$AD$207,28,FALSE),\"\")","v":""},{"$f":"IFERROR(IF((VLOOKUP($A182,masterlist!$C$2:$K$207,9,FALSE))=0,\"\",VLOOKUP($A182,masterlist!$C$2:$K$207,9,FALSE)),\"\")","v":""}]
[{"$f":"IF(ROWS($A$6:A183)<=$A$1,INDEX(masterlist!$C$2:$C$207,SMALL(IF(masterlist!$F$2:$F$207>0,IF(masterlist!$J$2:$J$207=0,ROW(masterlist!$B$2:$B$207)-ROW(masterlist!$B$2)+1)),ROWS($A$6:A183))),\"\")","v":""},{"$f":"IFERROR(VLOOKUP($A183,masterlist!$C$2:$K$207,3,FALSE),\"\")","v":""},"",{"$f":"IFERROR(VLOOKUP($A183,masterlist!$C$2:$AD$207,28,FALSE),\"\")","v":""},{"$f":"IFERROR(IF((VLOOKUP($A183,masterlist!$C$2:$K$207,9,FALSE))=0,\"\",VLOOKUP($A183,masterlist!$C$2:$K$207,9,FALSE)),\"\")","v":""}]
[{"$f":"IF(ROWS($A$6:A184)<=$A$1,INDEX(masterlist!$C$2:$C$207,SMALL(IF(masterlist!$F$2:$F$207>0,IF(masterlist!$J$2:$J$207=0,ROW(masterlist!$B$2:$B$207)-ROW(masterlist!$B$2)+1)),ROWS($A$6:A184))),\"\")","v":""},{"$f":"IFERROR(VLOOKUP($A184,masterlist!$C$2:$K$207,3,FALSE),\"\")","v":""},"",{"$f":"IFERROR(VLOOKUP($A184,masterlist!$C$2:$AD$207,28,FALSE),\"\")","v":""},{"$f":"IFERROR(IF((VLOOKUP($A184,masterlist!$C$2:$K$207,9,FALSE))=0,\"\",VLOOKUP($A184,masterlist!$C$2:$K$207,9,FALSE)),\"\")","v":""}]
[{"$f":"IF(ROWS($A$6:A185)<=$A$1,INDEX(masterlist!$C$2:$C$207,SMALL(IF(masterlist!$F$2:$F$207>0,IF(masterlist!$J$2:$J$207=0,ROW(masterlist!$B$2:$B$207)-ROW(masterlist!$B$2)+1)),ROWS($A$6:A185))),\"\")","v":""},{"$f":"IFERROR(VLOOKUP($A185,masterlist!$C$2:$K$207,3,FALSE),\"\")","v":""},"",{"$f":"IFERROR(VLOOKUP($A185,masterlist!$C$2:$AD$207,28,FALSE),\"\")","v":""},{"$f":"IFERROR(IF((VLOOKUP($A185,masterlist!$C$2:$K$207,9,FALSE))=0,\"\",VLOOKUP($A185,masterlist!$C$2:$K$207,9,FALSE)),\"\")","v":""}]
[{"$f":"IF(ROWS($A$6:A186)<=$A$1,INDEX(masterlist!$C$2:$C$207,SMALL(IF(masterlist!$F$2:$F$207>0,IF(masterlist!$J$2:$J$207=0,ROW(masterlist!$B$2:$B$207)-ROW(masterlist!$B$2)+1)),ROWS($A$6:A186))),\"\")","v":""},{"$f":"IFERROR(VLOOKUP($A186,masterlist!$C$2:$K$207,3,FALSE),\"\")","v":""},"",{"$f":"IFERROR(VLOOKUP($A186,masterlist!$C$2:$AD$207,28,FALSE),\"\")","v":""},{"$f":"IFERROR(IF((VLOOKUP($A186,masterlist!$C$2:$K$207,9,FALSE))=0,\"\",VLOOKUP($A186,masterlist!$C$2:$K$207,9,FALSE)),\"\")","v":""}]
[{"$f":"IF(ROWS($A$6:A187)<=$A$1,INDEX(masterlist!$C$2:$C$207,SMALL(IF(masterlist!$F$2:$F$207>0,IF(masterlist!$J$2:$J$207=0,ROW(masterlist!$B$2:$B$207)-ROW(masterlist!$B$2)+1)),ROWS($A$6:A187))),\"\")","v":""},{"$f":"IFERROR(VLOOKUP($A187,masterlist!$C$2:$K$207,3,FALSE),\"\")","v":""},"",{"$f":"IFERROR(VLOOKUP($A187,masterlist!$C$2:$AD$207,28,FALSE),\"\")","v":""},{"$f":"IFERROR(IF((VLOOKUP($A187,masterlist!$C$2:$K$207,9,FALSE))=0,\"\",VLOOKUP($A187,masterlist!$C$2:$K$207,9,FALSE)),\"\")","v":""}]
[{"$f":"IF(ROWS($A$6:A188)<=$A$1,INDEX(masterlist!$C$2:$C$207,SMALL(IF(masterlist!$F$2:$F$207>0,IF(masterlist!$J$2:$J$207=0,ROW(masterlist!$B$2:$B$207)-ROW(masterlist!$B$2)+1)),ROWS($A$6:A188))),\"\")","v":""},{"$f":"IFERROR(VLOOKUP($A188,masterlist!$C$2:$K$207,3,FALSE),\"\")","v":""},"",{"$f":"IFERROR(VLOOKUP($A188,masterlist!$C$2:$AD$207,28,FALSE),\"\")","v":""},{"$f":"IFERROR(IF((VLOOKUP($A188,masterlist!$C$2:$K$207,9,FALSE))=0,\"\",VLOOKUP($A188,masterlist!$C$2:$K$207,9,FALSE)),\"\")","v":""}]
[{"$f":"IF(ROWS($A$6:A189)<=$A$1,INDEX(masterlist!$C$2:$C$207,SMALL(IF(masterlist!$F$2:$F$207>0,IF(masterlist!$J$2:$J$207=0,ROW(masterlist!$B$2:$B$207)-ROW(masterlist!$B$2)+1)),ROWS($A$6:A189))),\"\")","v":""},{"$f":"IFERROR(VLOOKUP($A189,masterlist!$C$2:$K$207,3,FALSE),\"\")","v":""},"",{"$f":"IFERROR(VLOOKUP($A189,masterlist!$C$2:$AD$207,28,FALSE),\"\")","v":""},{"$f":"IFERROR(IF((VLOOKUP($A189,masterlist!$C$2:$K$207,9,FALSE))=0,\"\",VLOOKUP($A189,masterlist!$C$2:$K$207,9,FALSE)),\"\")","v":""}]
[{"$f":"IF(ROWS($A$6:A190)<=$A$1,INDEX(masterlist!$C$2:$C$207,SMALL(IF(masterlist!$F$2:$F$207>0,IF(masterlist!$J$2:$J$207=0,ROW(masterlist!$B$2:$B$207)-ROW(masterlist!$B$2)+1)),ROWS($A$6:A190))),\"\")","v":""},{"$f":"IFERROR(VLOOKUP($A190,masterlist!$C$2:$K$207,3,FALSE),\"\")","v":""},"",{"$f":"IFERROR(VLOOKUP($A190,masterlist!$C$2:$AD$207,28,FALSE),\"\")","v":""},{"$f":"IFERROR(IF((VLOOKUP($A190,masterlist!$C$2:$K$207,9,FALSE))=0,\"\",VLOOKUP($A190,masterlist!$C$2:$K$207,9,FALSE)),\"\")","v":""}]
[{"$f":"IF(ROWS($A$6:A191)<=$A$1,INDEX(masterlist!$C$2:$C$207,SMALL(IF(masterlist!$F$2:$F$207>0,IF(masterlist!$J$2:$J$207=0,ROW(masterlist!$B$2:$B$207)-ROW(masterlist!$B$2)+1)),ROWS($A$6:A191))),\"\")","v":""},{"$f":"IFERROR(VLOOKUP($A191,masterlist!$C$2:$K$207,3,FALSE),\"\")","v":""},"",{"$f":"IFERROR(VLOOKUP($A191,masterlist!$C$2:$AD$207,28,FALSE),\"\")","v":""},{"$f":"IFERROR(IF((VLOOKUP($A191,masterlist!$C$2:$K$207,9,FALSE))=0,\"\",VLOOKUP($A191,masterlist!$C$2:$K$207,9,FALSE)),\"\")","v":""}]
[{"$f":"IF(ROWS($A$6:A192)<=$A$1,INDEX(masterlist!$C$2:$C$207,SMALL(IF(masterlist!$F$2:$F$207>0,IF(masterlist!$J$2:$J$207=0,ROW(masterlist!$B$2:$B$207)-ROW(masterlist!$B$2)+1)),ROWS($A$6:A192))),\"\")","v":""},{"$f":"IFERROR(VLOOKUP($A192,masterlist!$C$2:$K$207,3,FALSE),\"\")","v":""},"",{"$f":"IFERROR(VLOOKUP($A192,masterlist!$C$2:$AD$207,28,FALSE),\"\")","v":""},{"$f":"IFERROR(IF((VLOOKUP($A192,masterlist!$C$2:$K$207,9,FALSE))=0,\"\",VLOOKUP($A192,masterlist!$C$2:$K$207,9,FALSE)),\"\")","v":""}]
[{"$f":"IF(ROWS($A$6:A193)<=$A$1,INDEX(masterlist!$C$2:$C$207,SMALL(IF(masterlist!$F$2:$F$207>0,IF(masterlist!$J$2:$J$207=0,ROW(masterlist!$B$2:$B$207)-ROW(masterlist!$B$2)+1)),ROWS($A$6:A193))),\"\")","v":""},{"$f":"IFERROR(VLOOKUP($A193,masterlist!$C$2:$K$207,3,FALSE),\"\")","v":""},"",{"$f":"IFERROR(VLOOKUP($A193,masterlist!$C$2:$AD$207,28,FALSE),\"\")","v":""},{"$f":"IFERROR(IF((VLOOKUP($A193,masterlist!$C$2:$K$207,9,FALSE))=0,\"\",VLOOKUP($A193,masterlist!$C$2:$K$207,9,FALSE)),\"\")","v":""}]
[{"$f":"IF(ROWS($A$6:A194)<=$A$1,INDEX(masterlist!$C$2:$C$207,SMALL(IF(masterlist!$F$2:$F$207>0,IF(masterlist!$J$2:$J$207=0,ROW(masterlist!$B$2:$B$207)-ROW(masterlist!$B$2)+1)),ROWS($A$6:A194))),\"\")","v":""},{"$f":"IFERROR(VLOOKUP($A194,masterlist!$C$2:$K$207,3,FALSE),\"\")","v":""},"",{"$f":"IFERROR(VLOOKUP($A194,masterlist!$C$2:$AD$207,28,FALSE),\"\")","v":""},{"$f":"IFERROR(IF((VLOOKUP($A194,masterlist!$C$2:$K$207,9,FALSE))=0,\"\",VLOOKUP($A194,masterlist!$C$2:$K$207,9,FALSE)),\"\")","v":""}]
[{"$f":"IF(ROWS($A$6:A195)<=$A$1,INDEX(masterlist!$C$2:$C$207,SMALL(IF(masterlist!$F$2:$F$207>0,IF(masterlist!$J$2:$J$207=0,ROW(masterlist!$B$2:$B$207)-ROW(masterlist!$B$2)+1)),ROWS($A$6:A195))),\"\")","v":""},{"$f":"IFERROR(VLOOKUP($A195,masterlist!$C$2:$K$207,3,FALSE),\"\")","v":""},"",{"$f":"IFERROR(VLOOKUP($A195,masterlist!$C$2:$AD$207,28,FALSE),\"\")","v":""},{"$f":"IFERROR(IF((VLOOKUP($A195,masterlist!$C$2:$K$207,9,FALSE))=0,\"\",VLOOKUP($A195,masterlist!$C$2:$K$207,9,FALSE)),\"\")","v":""}]
[{"$f":"IF(ROWS($A$6:A196)<=$A$1,INDEX(masterlist!$C$2:$C$207,SMALL(IF(masterlist!$F$2:$F$207>0,IF(masterlist!$J$2:$J$207=0,ROW(masterlist!$B$2:$B$207)-ROW(masterlist!$B$2)+1)),ROWS($A$6:A196))),\"\")","v":""},{"$f":"IFERROR(VLOOKUP($A196,masterlist!$C$2:$K$207,3,FALSE),\"\")","v":""},"",{"$f":"IFERROR(VLOOKUP($A196,masterlist!$C$2:$AD$207,28,FALSE),\"\")","v":""},{"$f":"IFERROR(IF((VLOOKUP($A196,masterlist!$C$2:$K$207,9,FALSE))=0,\"\",VLOOKUP($A196,masterlist!$C$2:$K$207,9,FALSE)),\"\")","v":""}]
[{"$f":"IF(ROWS($A$6:A197)<=$A$1,INDEX(masterlist!$C$2:$C$207,SMALL(IF(masterlist!$F$2:$F$207>0,IF(masterlist!$J$2:$J$207=0,ROW(masterlist!$B$2:$B$207)-ROW(masterlist!$B$2)+1)),ROWS($A$6:A197))),\"\")","v":""},{"$f":"IFERROR(VLOOKUP($A197,masterlist!$C$2:$K$207,3,FALSE),\"\")","v":""},"",{"$f":"IFERROR(VLOOKUP($A197,masterlist!$C$2:$AD$207,28,FALSE),\"\")","v":""},{"$f":"IFERROR(IF((VLOOKUP($A197,masterlist!$C$2:$K$207,9,FALSE))=0,\"\",VLOOKUP($A197,masterlist!$C$2:$K$207,9,FALSE)),\"\")","v":""}]
[{"$f":"IF(ROWS($A$6:A198)<=$A$1,INDEX(masterlist!$C$2:$C$207,SMALL(IF(masterlist!$F$2:$F$207>0,IF(masterlist!$J$2:$J$207=0,ROW(masterlist!$B$2:$B$207)-ROW(masterlist!$B$2)+1)),ROWS($A$6:A198))),\"\")","v":""},{"$f":"IFERROR(VLOOKUP($A198,masterlist!$C$2:$K$207,3,FALSE),\"\")","v":""},"",{"$f":"IFERROR(VLOOKUP($A198,masterlist!$C$2:$AD$207,28,FALSE),\"\")","v":""},{"$f":"IFERROR(IF((VLOOKUP($A198,masterlist!$C$2:$K$207,9,FALSE))=0,\"\",VLOOKUP($A198,masterlist!$C$2:$K$207,9,FALSE)),\"\")","v":""}]

{"sheet":"Prioritisation","index":17,"n_rows":199,"n_cols":5,"rows_kept":199,"cut":false,"hidden":true,"merged":[[196,3,196,4],[197,3,197,4],[198,3,198,4],[191,3,191,4],[192,3,192,4],[193,3,193,4],[194,3,194,4],[195,3,195,4],[186,3,186,4],[187,3,187,4],[188,3,188,4],[189,3,189,4],[190,3,190,4],[181,3,181,4],[182,3,182,4],[183,3,183,4],[184,3,184,4],[185,3,185,4],[176,3,176,4],[177,3,177,4],[178,3,178,4],[179,3,179,4],[180,3,180,4],[171,3,171,4],[172,3,172,4],[173,3,173,4],[174,3,174,4],[175,3,175,4],[166,3,166,4],[167,3,167,4],[168,3,168,4],[169,3,169,4],[170,3,170,4],[161,3,161,4],[162,3,162,4],[163,3,163,4],[164,3,164,4],[165,3,165,4],[156,3,156,4],[157,3,157,4],[158,3,158,4],[159,3,159,4],[160,3,160,4],[151,3,151,4],[152,3,152,4],[153,3,153,4],[154,3,154,4],[155,3,155,4],[146,3,146,4],[147,3,147,4],[148,3,148,4],[149,3,149,4],[150,3,150,4],[141,3,141,4],[142,3,142,4],[143,3,143,4],[144,3,144,4],[145,3,145,4],[136,3,136,4],[137,3,137,4],[138,3,138,4],[139,3,139,4],[140,3,140,4],[131,3,131,4],[132,3,132,4],[133,3,133,4],[134,3,134,4],[135,3,135,4],[126,3,126,4],[127,3,127,4],[128,3,128,4],[129,3,129,4],[130,3,130,4],[121,3,121,4],[122,3,122,4],[123,3,123,4],[124,3,124,4],[125,3,125,4],[116,3,116,4],[117,3,117,4],[118,3,118,4],[119,3,119,4],[120,3,120,4],[111,3,111,4],[112,3,112,4],[113,3,113,4],[114,3,114,4],[115,3,115,4],[106,3,106,4],[107,3,107,4],[108,3,108,4],[109,3,109,4],[110,3,110,4],[101,3,101,4],[102,3,102,4],[103,3,103,4],[104,3,104,4],[105,3,105,4],[96,3,96,4],[97,3,97,4],[98,3,98,4],[99,3,99,4],[100,3,100,4],[91,3,91,4],[92,3,92,4],[93,3,93,4],[94,3,94,4],[95,3,95,4],[86,3,86,4],[87,3,87,4],[88,3,88,4],[89,3,89,4],[90,3,90,4],[81,3,81,4],[82,3,82,4],[83,3,83,4],[84,3,84,4],[85,3,85,4],[76,3,76,4],[77,3,77,4],[78,3,78,4],[79,3,79,4],[80,3,80,4],[71,3,71,4],[72,3,72,4],[73,3,73,4],[74,3,74,4],[75,3,75,4],[66,3,66,4],[67,3,67,4],[68,3,68,4],[69,3,69,4],[70,3,70,4],[61,3,61,4],[62,3,62,4],[63,3,63,4],[64,3,64,4],[65,3,65,4],[56,3,56,4],[57,3,57,4],[58,3,58,4],[59,3,59,4],[60,3,60,4],[51,3,51,4],[52,3,52,4],[53,3,53,4],[54,3,54,4],[55,3,55,4],[46,3,46,4],[47,3,47,4],[48,3,48,4],[49,3,49,4],[50,3,50,4],[42,3,42,4],[43,3,43,4],[44,3,44,4],[45,3,45,4],[36,3,36,4],[37,3,37,4],[38,3,38,4],[39,3,39,4],[40,3,40,4],[33,3,33,4],[34,3,34,4],[35,3,35,4],[26,3,26,4],[27,3,27,4],[28,3,28,4],[29,3,29,4],[30,3,30,4],[41,3,41,4],[24,3,24,4],[25,3,25,4],[16,3,16,4],[17,3,17,4],[18,3,18,4],[19,3,19,4],[20,3,20,4],[31,3,31,4],[32,3,32,4],[15,3,15,4],[6,3,6,4],[7,3,7,4],[8,3,8,4],[9,3,9,4],[10,3,10,4],[21,3,21,4],[22,3,22,4],[23,3,23,4],[5,3,5,4],[0,0,0,2],[0,3,1,3],[0,4,1,4],[1,0,1,2],[11,3,11,4],[12,3,12,4],[13,3,13,4],[14,3,14,4]]}
["L'Approche Raisonnée de l'Elimination de la Rage",null,null,{"$f":"IF(ISBLANK('Country profile'!E3),\"\",UPPER('Country profile'!E3))","v":"ALGERIA"},{"$f":"IF(ISBLANK('Country profile'!K9),IF(ISBLANK('Country profile'!K14),\"\",'Country profile'!K14),'Country profile'!K9)","v":""}]
["HIERARCHISATION DES ACTIVITES DU PROGRAMME ANTIRABIQUE"]
[]
[]
[]
["ÉTAPE","COMPOSANTE","ACTIVITÉ","REMARQUES"]
[1,"DCA","Communiquer chaque année toutes les données relatives à la rage animale à l’OMSA.",""]
[1,"DCA","Communiquer toutes les données relatives à la rage humaine à l’OMS chaque année.",""]
[1,"DCA","Entreprendre une étude sur la taille et l’accessibilité de la population canine dans une région du pays.",""]
[2,"DCA","Partager régulièrement TOUTES des données disponibles sur la rage (humaine et animale) avec toutes les autres parties prenantes.",""]
[2,"DCA","Mettre en place un système One Health de surveillance de la rage comprenant des données de surveillance humaine et animale à tous les niveaux, \n\nOU\n\nCréer une structure formelle pour le partage régulier et en temps opportun de TOUTES les données pertinentes entre les systèmes de surveillance de la santé humaine et animale qui sont opérationnels. ",""]
[3,"DCA","Observer une diminution des prélèvements positifs pour la rage tout en maintenant un taux élevé de soumission de prélèvements à travers tout le pays. ",""]
[3,"DCA","À mesure que le pays se rapproche de l'élimination de la rage humaine, rassembler les preuves épidémiologiques nécessaires pour déclarer des zones exemptes de rage humaine transmise par les chiens.",""]
[3,"DCA","Identifier les zones potentiellement exemptes de rage où les cas de rage animale (causés par le variant de la rage canine) sont absents depuis au moins deux ans.",""]
[4,"DCA","À mesure que le pays se rapproche de l'élimination de la rage canine, affiner la stratégie nationale de lutte contre la rage en utilisant les données épidémiologiques issues de la surveillance de routine de tous les animaux (et pas seulement des chiens).",""]
[5,"DCA","Vérifier que l'ensemble du pays est exempt de la variante canine de la rage depuis au moins deux ans.",""]
[2,"PCO","Veiller à ce que la PPE soit gratuite ou partiellement subventionnée pour toute personne potentiellement exposée dans le pays.",""]
[2,"PCO","Veiller à ce que le gouvernement n'utilise que des vaccins antirabiques humains préqualifiés par l'OMS dans le pays.",""]
[5,"PCO","Maintenant que le pays est débarrassé de la rage humaine et animale, mettre en œuvre des protocoles modifiés pour l'administration de la PPE dans les zones exemptes de rage.",""]
[2,"PCO","Augmenter régulièrement l'ampleur et l'intensité des campagnes gouvernementales de vaccination des chiens.",""]
[3,"PCO","Mettre en place les capacités (personnel formé, véhicules, aiguilles, seringues, etc.) permettant d'obtenir une couverture vaccinale de 70 % de tous les chiens à risque du pays chaque année.",""]
[3,"PCO","Mettre en œuvre des campagnes de vaccination de masse des chiens qui touchent chaque année au moins 70 % de la population canine à risque dans le pays.",""]
[3,"PCO","Entreprendre des enquêtes post-vaccination pour évaluer la couverture vaccinale des chiens dans le pays.",""]
[4,"PCO","Maintenant qu'il y a très peu de cas de rage animale dans le pays, les campagnes de vaccination des chiens sont maintenues dans les zones où la rage canine est encore présente ou lorsque cela se justifie (par exemple, risque d'introduction).",""]
[5,"PCO","Bien que le pays soit indemne de rage grâce à des campagnes de vaccination de masse réussies, des campagnes stratégiques de vaccination des chiens sont maintenues lorsque cela se justifie.",""]
[1,"PCO","Établir des protocoles pour les enquêtes conjointes sur les cas de rage.",""]
[2,"PCO","Finaliser les protocoles d'enquête conjointe sur les cas de rage - y compris le partage d'informations entre les secteurs - au niveau national.",""]
[2,"PCO","Mettre en œuvre toute réponse active aux foyers conformément aux protocoles d'enquête conjointe établis.",""]
[2,"PCO","Élaborer des protocoles pour l'observation des chiens suspects d'être enragés.",""]
[2,"PCO","Mettre en place des installations d'observation ou élaborer des protocoles de quarantaine à domicile pour les chiens suspects d'être enragés.",""]
[2,"PCO","Mettre en œuvre des mesures vétérinaires d'inspection aux frontières et de quarantaine à tous les points d'entrée officiels dans le pays.",""]
[3,"PCO","Mettre en place les capacités nécessaires pour mener des enquêtes conjointes sur le terrain et des réponses planifiées aux foyers de rage humaine dans l'ensemble du pays",""]
[3,"PCO","Engager un dialogue avec les pays voisins pour empêcher la réintroduction de la rage dans les zones désignées comme exemptes de rage.",""]
[3,"PCO","Mettre en place les capacités nécessaires pour mener des enquêtes conjointes sur le terrain et des réponses planifiées aux foyers de rage animale dans l'ensemble du pays.",""]
[3,"PCO","Alors que le pays se rapproche de l'élimination de la rage humaine, il convient de mener des enquêtes sur le terrain pour TOUS les cas suspects de rage humaine dans l'ensemble du pays.",""]
[4,"PCO","Alors que le pays se rapproche de l'élimination de la rage canine, mener des enquêtes sur le terrain pour TOUS les cas suspects de rage canine dans l'ensemble du pays.",""]
[4,"PCO","Étant donné qu'il n'y a plus de cas de rage humaine confirmés en laboratoire, maintenir les activités de surveillance existantes pour tous les cas suspects chez l'homme dans le pays.",""]
[4,"PCO","Maintenant qu'il y a très peu de cas de rage animale dans le pays, élaborer une réponse d'urgence ou un plan de secours au cas où la variante canine de la rage serait réintroduite dans les zones exemptes de rage.",""]
[5,"PCO","Même si vous êtes débarrassé de la rage canine grâce à des campagnes de vaccination de masse réussies, maintenir la capacité d'intervention conjointe en cas d'épidémie.",""]
[2,"LAB","Effectuer des essais de compétence avec un laboratoire reconnu à l'échelle internationale.",""]
[2,"LAB","Mettre en place un système régulier de collecte et de transport de prélèvements dans tout le pays.",""]
[2,"LAB","Diagnostiquer les prélèvements suspects de rage animale dans le pays la plupart (sinon tous) des mois de l'année.",""]
[2,"LAB","Inclure la surveillance active (animaux trouvés morts, animaux tués sur la route, etc.) dans vos activités de surveillance de routine dans l'ensemble du pays.",""]
[3,"LAB","Garantir l'accès à des diagnostics de laboratoire fiables et rapides dans tout le pays pour les prélèvements d'animaux (et si possible également pour les prélèvements humains et d'animaux sauvages).",""]
[3,"LAB","Évaluer régulièrement la capacité du pays à diagnostiquer avec certitude les échantillons suspects de rage.",""]
[4,"LAB","Maintenant qu'il y a très peu de cas de rage animale dans le pays, il faut s'assurer qu'un diagnostic de laboratoire est opérationnel pour tous les cas suspects chez les chiens dans le pays.",""]
[4,"LAB","Caractériser et analyser régulièrement les variants du virus de la rage en circulation dans un laboratoire national ou international.",""]
[4,"LAB","Si des variantes terrestres de la rage sont présentes dans le pays, veiller à ce que des prélèvements d'animaux sauvages soient régulièrement soumis à un diagnostic de rage en laboratoire.",""]
[5,"LAB","Même si le pays est exempt de rage canine grâce à des campagnes de vaccination de masse réussies, il convient de veiller à ce que tous les cas suspects chez les espèces domestiques et celles de la faune sauvage terrestre fassent l'objet d'enquêtes de laboratoire permanentes dans le pays.",""]
[0,"DPM","Faire en sorte qu'une des parties prenantes entreprenne des activités de gestion compassionnelle de la population canine dans au moins une région du pays.",""]
[1,"DPM","Travailler activement à mettre fin à l'abattage indiscriminé des chiens dans le cadre de la gestion des populations canines ou de la lutte contre la rage.",""]
[1,"DPM","Impliquer les acteurs municipaux dans les discussions concernant la gestion compassionnelle de la population canine.","Au niveau local, les acteurs sont impliques de facon permanante. Au niveau national, ils font partie des comites de lutte contre les zoonoses"]
[1,"DPM","Déterminer un nombre de référence de chiens dans une zone (par exemple, un projet pilote).",""]
[2,"DPM","Rédiger et partager une stratégie de GCPC avec toutes les parties prenantes concernées pour une zone donnée (par exemple, un projet pilote).",""]
[2,"DPM","Finaliser et mettre en œuvre la stratégie de gestion compassionnelle des populations canines dans une zone (par exemple, un projet pilote).",""]
[2,"DPM","Former ou éduquer les professionnels à la gestion compassionnelle des populations canines dans une région (par exemple, un projet pilote).",""]
[2,"DPM","Mettre en œuvre des campagnes de sensibilisation du public à la GCPC dans une région (par exemple, projet pilote).","strategie et obligations destinees aux proprietaires est en place (animaux a proprietaires)"]
[3,"DPM","Évaluer et affiner la stratégie de GCPC sur la base des résultats obtenus dans la zone du projet (par exemple, le projet pilote).",""]
[3,"DPM","Étendre à d'autres régions du pays les campagnes de sensibilisation du public à la GCPC.",""]
[3,"DPM","Former les professionnels vétérinaires et animaliers concernés à la mise en œuvre de la GCPC dans l'ensemble du pays.",""]
[5,"DPM","Mettre en œuvre la stratégie finalisée de GCPC dans l'ensemble du pays.",""]
[5,"DPM","Veiller à ce que les campagnes de GCPC se poursuivent dans tout le pays après l'élimination de la rage canine.",""]
[2,"IEC","Actualiser (si nécessaire) et mettre en œuvre le plan d'IEC dans l'ensemble du pays.",""]
[5,"IEC","Maintenant que le pays est indemne de rage humaine et animale, mettre en œuvre des programmes de sensibilisation axés sur le maintien de l'absence de rage canine et de rage humaine transmise par les chiens.",""]
[1,"IEC","Déterminer les besoins en matière de formation et d'éducation des professionnels de la santé animale et humaine impliqués dans l'élimination de la rage.",""]
[1,"IEC","Élaborer un plan structuré de formation et d'éducation décrivant les publics cibles, les principaux besoins, les moyens de formation et d'éducation, et les résultats souhaités pour les professionnels de la santé humaine et animale dans le pays.","il y a un plan pour la vaccination humaine. Concernant la vaccination animale, les veterinaires sont competent pour sa mise en oeuvre cependant la formation en matiere capture des chiens errants n,est pas realisee. Necessite de proposer des formations en matiere de capture des chiens errants avec le secteur de l agriculture et l'interieur"]
[2,"IEC","Mettre en œuvre la formation structurée des professionnels de la santé humaine et animale dans la plupart des régions du pays.",""]
[2,"IEC","Faire connaître les succès du programme d'élimination de la rage aux parties prenantes identifiées.",""]
[2,"IEC","Plaider pour obtenir l'intérêt actif d'au moins une partie prenante de l'action de plaidoyer.",""]
[3,"IEC","Déclarer publiquement les zones exemptes de rage humaine transmise par les chiens.",""]
[4,"IEC","Déclarer publiquement que l'ensemble du pays est exempt de rage humaine transmise par les chiens.",""]
[5,"IEC","Déclarer publiquement que l'ensemble du pays est débarrassé de la rage canine transmise par les chiens.",""]
[0,"CCI","Informer en permanence les parties prenantes au niveau national des activités programmatiques liées à la rage mises en œuvre dans le pays.",""]
[1,"CCI","Identifier et énumérer TOUTES les parties prenantes nationales impliquées dans l'élimination de la rage.",""]
[1,"CCI","Veiller à ce que toutes les parties prenantes identifiées au niveau national participent activement à l'élimination de la rage.",""]
[2,"CCI","Inclure le secteur privé dans le groupe de travail intersectoriel.","taskforce existe mais le secteur prive nest pas implique"]
[2,"CCI","Rédiger et finaliser un plan stratégique national pour la rage.",""]
[2,"CCI","Garantir et allouer de manière appropriée les ressources gouvernementales pour soutenir le plan stratégique national de lutte contre la rage.",""]
[3,"CCI","Maintenant qu'il y a très peu de cas de rage animale dans le pays, affiner la stratégie nationale sur la base des données actuelles.",""]
[2,"LEG","Adapter la législation relative aux vaccins homologués au niveau national pour tenir compte des lignes directrices internationales.","vaccin animal (est importe) repond aux normes internationales en cas de manque utilisation de vaccin fabrique par l'insitut Pasteur. Le vaccin pour humains produit en Algerie ne repond pas aux normes OMS (utilise a 30%), vaccin humain reponds aux normes a 70%. "]
["","","",""]
["","","",""]
["","","",""]
["","","",""]
["","","",""]
["","","",""]
["","","",""]
["","","",""]
["","","",""]
["","","",""]
["","","",""]
["","","",""]
["","","",""]
["","","",""]
["","","",""]
["","","",""]
["","","",""]
["","","",""]
["","","",""]
["","","",""]
["","","",""]
["","","",""]
["","","",""]
["","","",""]
["","","",""]
["","","",""]
["","","",""]
["","","",""]
["","","",""]
["","","",""]
["","","",""]
["","","",""]
["","","",""]
["","","",""]
["","","",""]
["","","",""]
["","","",""]
["","","",""]
["","","",""]
["","","",""]
["","","",""]
["","","",""]
["","","",""]
["","","",""]
["","","",""]
["","","",""]
["","","",""]
["","","",""]
["","","",""]
["","","",""]
["","","",""]
["","","",""]
["","","",""]
["","","",""]
["","","",""]
["","","",""]
["","","",""]
["","","",""]
["","","",""]
["","","",""]
["","","",""]
["","","",""]
["","","",""]
["","","",""]
["","","",""]
["","","",""]
["","","",""]
["","","",""]
["","","",""]
["","","",""]
["","","",""]
["","","",""]
["","","",""]
["","","",""]
["","","",""]
["","","",""]
["","","",""]
["","","",""]
["","","",""]
["","","",""]
["","","",""]
["","","",""]
["","","",""]
["","","",""]
["","","",""]
["","","",""]
["","","",""]
["","","",""]
["","","",""]
["","","",""]
["","","",""]
["","","",""]
["","","",""]
["","","",""]
["","","",""]
["","","",""]
["","","",""]
["","","",""]
["","","",""]
["","","",""]
["","","",""]
["","","",""]
["","","",""]
["","","",""]
["","","",""]
["","","",""]
["","","",""]
["","","",""]
["","","",""]
["","","",""]
["","","",""]
["","","",""]
["","","",""]
["","","",""]
["","","",""]
["","","",""]
["","","",""]
["","","",""]
["","","",""]

{"sheet":"rules","index":18,"n_rows":40,"n_cols":10,"rows_kept":40,"cut":false,"hidden":true,"merged":[[7,1,7,4],[2,1,2,4],[3,1,3,4],[4,1,4,4],[5,1,5,4],[6,1,6,4]]}
["RULES FOR STAGE PROGRESSION"]
[]
["SCORE","RULE"]
["+ 1","All critical activities accomplished"]
["+ 0.5","50% or more of the critical activities checked"]
["+ 0.5","Not all but at least 1 critical activity checked, AND 50% +1 of all activities checked"]
["+ 0","At least 1 critical activity checked, AND 50% or less of all activities checked"]
["+ 0","No critical activity accomplished"]
[]
[]
[]
[]
[]
[null,"Number of components per stage"]
[]
[null,"Count of ID","Column Labels"]
[null,"Row Labels","CCI","DCA","DPM","IEC","LAB","LEG","PCO","Grand Total"]
[null,0,1,2,1,1,2,2,null,9]
[null,1,5,10,4,10,2,7,6,44]
[null,2,3,4,4,4,4,1,11,31]
[null,3,1,3,3,1,2,2,8,20]
[null,4,null,1,null,1,3,null,4,9]
[null,5,null,1,2,2,1,null,3,9]
[null,"Grand Total",10,21,14,19,14,12,32,122]
[]
[]
[]
[null,"Number of critical activities per stage"]
[]
[null,"KEY","KEY"]
[]
[null,"Count of ID","Column Labels"]
[null,"Row Labels","CCI","DCA","DPM","IEC","LAB","LEG","PCO","Grand Total"]
[null,0,null,1,null,null,2,null,null,3]
[null,1,null,2,null,1,1,3,3,10]
[null,2,2,2,null,1,null,null,2,7]
[null,3,null,3,null,2,null,1,4,10]
[null,4,null,2,null,1,1,null,2,6]
[null,5,null,1,2,2,1,null,3,9]
[null,"Grand Total",2,11,2,7,5,4,14,45]

{"sheet":"masterlist","index":19,"n_rows":207,"n_cols":30,"rows_kept":207,"cut":false,"hidden":true,"merged":[]}
["COUNT","COMPONENT","ID","SUBCOMPONENT","STAGE","NUMBER","ACTIVITY","OTHER INFO","KEY","COUNTRY STATUS","COUNTRY NOTES","LINKS 1","Links 1 address","LINKS 2","Links 2 address","LINKS 3","Links 3 address","LINKS 4","Links 4 address","LINKS 5","Links 5 address","OBJECTIVES","OUTCOMES","RESPONSIBLE AUTHORITY","YEAR OF COMPLETION","DELIVERABLES","countryOBJECTIVES","countryAUTHORITY","countryYEARCOMPLETION","WORKPLAN TASK"]
[1,"DCA",{"$f":"B2&\"-\"&LEFT(D2,3)&\"-\"&E2&\"-\"&F2","v":"DCA-Sur-0-1"},"Surveillance",0,1,"La présence de la rage a-t-elle été officiellement OU officieusement mentionnée dans le pays ?","Il ne s’agit pas nécessairement de rapports officiels mais de toute mention telle qu’on peut les trouver sur les principaux média, par exemple presse, Facebook, etc. ",null,{"$f":"IFERROR(INDEX('Data coll & an'!$F$5:$F$50,MATCH($C2,'Data coll & an'!$A$5:$A$50,0)),IFERROR(INDEX('Prev & Ctrl'!$F$5:$F$50,MATCH($C2,'Prev & Ctrl'!$A$5:$A$50,0)),IFERROR(INDEX('Lab dx'!$F$5:$F$50,MATCH($C2,'Lab dx'!$A$5:$A$50,0)),IFERROR(INDEX('Dog popn'!$F$5:$F$50,MATCH($C2,'Dog popn'!$A$5:$A$50,0)),IFERROR(INDEX(IEC!$F$5:$F$50,MATCH($C2,IEC!$A$5:$A$50,0)),IFERROR(INDEX('Cross-cutting issues'!$F$5:$F$50,MATCH($C2,'Cross-cutting issues'!$A$5:$A$50,0)),IFERROR(INDEX(Legislation!$F$5:$F$50,MATCH($C2,Legislation!$A$5:$A$50,0)),\"\")))))))","v":1},{"$f":"IFERROR(INDEX('Data coll & an'!$G$5:$G$50,MATCH($C2,'Data coll & an'!$A$5:$A$50,0)),IFERROR(INDEX('Prev & Ctrl'!$G$5:$G$50,MATCH($C2,'Prev & Ctrl'!$A$5:$A$50,0)),IFERROR(INDEX('Lab dx'!$G$5:$G$50,MATCH($C2,'Lab dx'!$A$5:$A$50,0)),IFERROR(INDEX('Dog popn'!$G$5:$G$50,MATCH($C2,'Dog popn'!$A$5:$A$50,0)),IFERROR(INDEX(IEC!$G$5:$G$50,MATCH($C2,IEC!$A$5:$A$50,0)),IFERROR(INDEX('Cross-cutting issues'!$G$5:$G$50,MATCH($C2,'Cross-cutting issues'!$A$5:$A$50,0)),IFERROR(INDEX(Legislation!$G$5:$G$50,MATCH($C2,Legislation!$A$5:$A$50,0)),\"\")))))))","v":0},null,null,null,null,null,null,null,null,null,null,"• Examinez les médias traditionnels et sociaux à la recherche d'informations sur tout cas potentiel de rage partout dans le pays, publiées au cours des 10 dernières années ;\n• Examiner la littérature scientifique publiée au cours des 10 dernières années afin de trouver des informations sur tout cas potentiel de rage dans tout le pays;\n• Examiner les bases de données du WAHIS et de l’Observatoire mondial de la santé (GHO) pour y trouver des informations sur tout cas potentiel de rage survenu dans le pays au cours des 10 dernières années ;\n• Examiner les dossiers des cas de  morsures, couvrant les 10 dernières années, par des animaux qui ont potentiellement montré des signes de rage.","Compilation of all recently reported rabies cases from all sources","Ministère de l’Agriculture (cas de rage animale); \n\nMinistère de la santé (cas de rage humaine)",1,"• Rapport résumant les découvertes relatives à la rage dans votre pays, tirées des médias, de la littérature scientifique, des bases de données WAHIS et GHO au cours des 10 dernières années.",{"$f":"IFERROR(VLOOKUP($C2,INDIRECT(\"DCA!a13:j49\"),6,FALSE),IFERROR(VLOOKUP($C2,INDIRECT(\"pco!a13:j49\"),6,FALSE),IFERROR(VLOOKUP($C2,INDIRECT(\"lab!a13:j49\"),6,FALSE),IFERROR(VLOOKUP($C2,INDIRECT(\"dpm!a13:j49\"),6,FALSE),IFERROR(VLOOKUP($C2,INDIRECT(\"iecnw!a13:j49\"),6,FALSE),IFERROR(VLOOKUP($C2,INDIRECT(\"cci!a13:j49\"),6,FALSE),IFERROR(VLOOKUP($C2,INDIRECT(\"leg!a13:j49\"),6,FALSE),\"\")))))))","v":""},{"$f":"IFERROR(VLOOKUP($C2,INDIRECT(\"DCA!a13:j49\"),8,FALSE),IFERROR(VLOOKUP($C2,INDIRECT(\"pco!a13:j49\"),8,FALSE),IFERROR(VLOOKUP($C2,INDIRECT(\"lab!a13:j49\"),8,FALSE),IFERROR(VLOOKUP($C2,INDIRECT(\"dpm!a13:j49\"),8,FALSE),IFERROR(VLOOKUP($C2,INDIRECT(\"iecnw!a13:j49\"),8,FALSE),IFERROR(VLOOKUP($C2,INDIRECT(\"cci!a13:j49\"),8,FALSE),IFERROR(VLOOKUP($C2,INDIRECT(\"leg!a13:j49\"),8,FALSE),\"\")))))))","v":""},{"$f":"IFERROR(VLOOKUP($C2,INDIRECT(\"DCA!a13:j49\"),9,FALSE),IFERROR(VLOOKUP($C2,INDIRECT(\"pco!a13:j49\"),9,FALSE),IFERROR(VLOOKUP($C2,INDIRECT(\"lab!a13:j49\"),9,FALSE),IFERROR(VLOOKUP($C2,INDIRECT(\"dpm!a13:j49\"),9,FALSE),IFERROR(VLOOKUP($C2,INDIRECT(\"iecnw!a13:j49\"),9,FALSE),IFERROR(VLOOKUP($C2,INDIRECT(\"cci!a13:j49\"),9,FALSE),IFERROR(VLOOKUP($C2,INDIRECT(\"leg!a13:j49\"),9,FALSE),\"\")))))))","v":""},"Confirmer (de manière formelle ou informelle) que la rage est présente dans le pays."]
[2,"DCA",{"$f":"B3&\"-\"&LEFT(D3,3)&\"-\"&E3&\"-\"&F3","v":"DCA-Sur-0-2"},"Surveillance",0,2,"Les autorités nationales ont-elles jamais signalé au moins un cas de rage confirmée à l’OMS ou à WOAH ?","Année du dernier cas de rage signalé à l’OMS \n\nET/OU\n\nAnnée du dernier cas de rage signalé à l’WOAH. ","KEY",{"$f":"IFERROR(INDEX('Data coll & an'!$F$5:$F$50,MATCH($C3,'Data coll & an'!$A$5:$A$50,0)),IFERROR(INDEX('Prev & Ctrl'!$F$5:$F$50,MATCH($C3,'Prev & Ctrl'!$A$5:$A$50,0)),IFERROR(INDEX('Lab dx'!$F$5:$F$50,MATCH($C3,'Lab dx'!$A$5:$A$50,0)),IFERROR(INDEX('Dog popn'!$F$5:$F$50,MATCH($C3,'Dog popn'!$A$5:$A$50,0)),IFERROR(INDEX(IEC!$F$5:$F$50,MATCH($C3,IEC!$A$5:$A$50,0)),IFERROR(INDEX('Cross-cutting issues'!$F$5:$F$50,MATCH($C3,'Cross-cutting issues'!$A$5:$A$50,0)),IFERROR(INDEX(Legislation!$F$5:$F$50,MATCH($C3,Legislation!$A$5:$A$50,0)),\"\")))))))","v":1},{"$f":"IFERROR(INDEX('Data coll & an'!$G$5:$G$50,MATCH($C3,'Data coll & an'!$A$5:$A$50,0)),IFERROR(INDEX('Prev & Ctrl'!$G$5:$G$50,MATCH($C3,'Prev & Ctrl'!$A$5:$A$50,0)),IFERROR(INDEX('Lab dx'!$G$5:$G$50,MATCH($C3,'Lab dx'!$A$5:$A$50,0)),IFERROR(INDEX('Dog popn'!$G$5:$G$50,MATCH($C3,'Dog popn'!$A$5:$A$50,0)),IFERROR(INDEX(IEC!$G$5:$G$50,MATCH($C3,IEC!$A$5:$A$50,0)),IFERROR(INDEX('Cross-cutting issues'!$G$5:$G$50,MATCH($C3,'Cross-cutting issues'!$A$5:$A$50,0)),IFERROR(INDEX(Legislation!$G$5:$G$50,MATCH($C3,Legislation!$A$5:$A$50,0)),\"\")))))))","v":0},"WHO Collaborating Centres and OIE Reference Laboratories","http://rabiessurveillanceblueprint.org/WHO-Collaborating-Centres-for",null,null,null,null,null,null,null,null,"• Identifier les personnes chargées de notifier les cas de rage à l’OMS et à l’OMSA ;\n• Déterminer si ces personnes reçoivent les informations qui doivent être communiquées à l'OMS et à l'OMSA ; \n\nSi ces personnes reçoivent les informations qu’elles doivent déclarer :\n• Déterminer les raisons pour lesquelles elles ne communiquent pas les données;\n• Apporter le soutien nécessaire pour commencer à communiquer les données;\n• Confirmer que les données sont systématiquement communiquées à l’OMS et à l’OMSA.\n\nSi les personnes de référence ne reçoivent PAS les informations qu'elles doivent communiquer.\n• Confirmer la manière dont les référents ont besoin que les données leur soient communiquées (par exemple, modèles de courrier électronique) ;\n• Veiller à ce que les données soient envoyées en temps voulu et dans le format approprié aux personnes de référence ;\n• Confirmer que les données sont régulièrement communiquées à l’OMS et à l’OMSA.\n\n*Bien que la notification à l’OMS et à l’OMSA soit encouragée, cette activité peut être considérée comme complétée si un cas de rage a été notifié à l’OMS ou à l’OMSA ","Suspected and confirmed rabies cases reported and visible on one international database (e.g. OIE WAHIS);","Personne référente à l’OMSA (données de santé animale); \n\nPersonne référente à l’OMS (données de santé humaine);",1,"• Personnes locales responsables de la notification à l’OMS et à l’OMSA identifiées.\n• Procédure claire mise en place pour la notification systématique des cas de rage à au moins une organisation internationale (OMS et/ou OMSA).\n• Les rapports et communications reçus au niveau national sont communiqués à l'OMS et/ou à l'OMSA.",{"$f":"IFERROR(VLOOKUP($C3,INDIRECT(\"DCA!a13:j49\"),6,FALSE),IFERROR(VLOOKUP($C3,INDIRECT(\"pco!a13:j49\"),6,FALSE),IFERROR(VLOOKUP($C3,INDIRECT(\"lab!a13:j49\"),6,FALSE),IFERROR(VLOOKUP($C3,INDIRECT(\"dpm!a13:j49\"),6,FALSE),IFERROR(VLOOKUP($C3,INDIRECT(\"iecnw!a13:j49\"),6,FALSE),IFERROR(VLOOKUP($C3,INDIRECT(\"cci!a13:j49\"),6,FALSE),IFERROR(VLOOKUP($C3,INDIRECT(\"leg!a13:j49\"),6,FALSE),\"\")))))))","v":""},{"$f":"IFERROR(VLOOKUP($C3,INDIRECT(\"DCA!a13:j49\"),8,FALSE),IFERROR(VLOOKUP($C3,INDIRECT(\"pco!a13:j49\"),8,FALSE),IFERROR(VLOOKUP($C3,INDIRECT(\"lab!a13:j49\"),8,FALSE),IFERROR(VLOOKUP($C3,INDIRECT(\"dpm!a13:j49\"),8,FALSE),IFERROR(VLOOKUP($C3,INDIRECT(\"iecnw!a13:j49\"),8,FALSE),IFERROR(VLOOKUP($C3,INDIRECT(\"cci!a13:j49\"),8,FALSE),IFERROR(VLOOKUP($C3,INDIRECT(\"leg!a13:j49\"),8,FALSE),\"\")))))))","v":""},{"$f":"IFERROR(VLOOKUP($C3,INDIRECT(\"DCA!a13:j49\"),9,FALSE),IFERROR(VLOOKUP($C3,INDIRECT(\"pco!a13:j49\"),9,FALSE),IFERROR(VLOOKUP($C3,INDIRECT(\"lab!a13:j49\"),9,FALSE),IFERROR(VLOOKUP($C3,INDIRECT(\"dpm!a13:j49\"),9,FALSE),IFERROR(VLOOKUP($C3,INDIRECT(\"iecnw!a13:j49\"),9,FALSE),IFERROR(VLOOKUP($C3,INDIRECT(\"cci!a13:j49\"),9,FALSE),IFERROR(VLOOKUP($C3,INDIRECT(\"leg!a13:j49\"),9,FALSE),\"\")))))))","v":""},"L’autorité nationale doit déclarer au moins un cas de rage confirmée à l’OMS ou à l’OMSA."]
[3,"DCA",{"$f":"B4&\"-\"&LEFT(D4,3)&\"-\"&E4&\"-\"&F4","v":"DCA-Sur-1-3"},"Surveillance",1,3,"Les cas de rage canine sont-ils transmis du niveau local au niveau national ?","Le ministère national est-il informé des cas de rage canine dans le pays ?","KEY",{"$f":"IFERROR(INDEX('Data coll & an'!$F$5:$F$50,MATCH($C4,'Data coll & an'!$A$5:$A$50,0)),IFERROR(INDEX('Prev & Ctrl'!$F$5:$F$50,MATCH($C4,'Prev & Ctrl'!$A$5:$A$50,0)),IFERROR(INDEX('Lab dx'!$F$5:$F$50,MATCH($C4,'Lab dx'!$A$5:$A$50,0)),IFERROR(INDEX('Dog popn'!$F$5:$F$50,MATCH($C4,'Dog popn'!$A$5:$A$50,0)),IFERROR(INDEX(IEC!$F$5:$F$50,MATCH($C4,IEC!$A$5:$A$50,0)),IFERROR(INDEX('Cross-cutting issues'!$F$5:$F$50,MATCH($C4,'Cross-cutting issues'!$A$5:$A$50,0)),IFERROR(INDEX(Legislation!$F$5:$F$50,MATCH($C4,Legislation!$A$5:$A$50,0)),\"\")))))))","v":1},{"$f":"IFERROR(INDEX('Data coll & an'!$G$5:$G$50,MATCH($C4,'Data coll & an'!$A$5:$A$50,0)),IFERROR(INDEX('Prev & Ctrl'!$G$5:$G$50,MATCH($C4,'Prev & Ctrl'!$A$5:$A$50,0)),IFERROR(INDEX('Lab dx'!$G$5:$G$50,MATCH($C4,'Lab dx'!$A$5:$A$50,0)),IFERROR(INDEX('Dog popn'!$G$5:$G$50,MATCH($C4,'Dog popn'!$A$5:$A$50,0)),IFERROR(INDEX(IEC!$G$5:$G$50,MATCH($C4,IEC!$A$5:$A$50,0)),IFERROR(INDEX('Cross-cutting issues'!$G$5:$G$50,MATCH($C4,'Cross-cutting issues'!$A$5:$A$50,0)),IFERROR(INDEX(Legislation!$G$5:$G$50,MATCH($C4,Legislation!$A$5:$A$50,0)),\"\")))))))","v":0},"3.1.3-Infrastructure-surveillance","http://caninerabiesblueprint.org/3-1-3-What-personnel-and?lang=en","Challenges of animal health information systems and surveillance for animal diseases and zoonoses ","http://www.fao.org/3/a-i2415e.pdf","Zoonotic diseases : a guide to establishing collaboration","http://caninerabiesblueprint.org/Zoonotic-diseases-a-guide-to"," 6. Reporting of rabies data","http://rabiessurveillanceblueprint.org/-Reporting-dissemination-and-",null,null,"• Elaborer un protocole et un modèle de notification sur la manière dont les cas de rage canine doivent être signalés du niveau local du niveau national;\n• Partager le protocole avec un groupe de professionnels de la santé animale travaillant au niveau communautaire afin de recueillir leurs commentaires et suggestions;\n• Adapter le protocole et le modèle de notification selon les commentaires reçus (si nécessaire);\n• Obtenir le financement requis pour former tous les professionnels de la santé animale sur la mise en œuvre correcte du protocole et du modèle de notification ;\n• Former tous les professionnels de la santé animale sur la mise en œuvre correcte du protocole et du modèle de notification;\n• Évaluer si les cas de rage canine sont signalés du niveau local au niveau national.","Database of dog rabies cases stored and regularly updated at national level","Ministère de l’agriculture",1,"• Modèle de notification de cas de rage canine et protocole élaborés grâce à un travail collaboratif avec les parties prenantes.\n• Liste de distribution de tous les professionnels de la santé animale destinataires du protocole finalisé.\n• Comptes-rendus des séances de formation des professionnels de la santé animale au protocole destinées aux professionnels de la santé animale concernés.\n• Rapports de suivi et d'évaluation confirmant le succès de la notification des cas de rage du niveau local au niveau national.","","","","Notifier les cas de rage canine du niveau local au niveau national."]
[4,"DCA","DCA-Sur-1-4","Surveillance",1,4,"Les cas de rage humaine sont-ils transmis du niveau local au niveau national ?","Le ministère national est-il informé des cas de rage humaine dans le pays ?","KEY",{"$f":"IFERROR(INDEX('Data coll & an'!$F$5:$F$50,MATCH($C5,'Data coll & an'!$A$5:$A$50,0)),IFERROR(INDEX('Prev & Ctrl'!$F$5:$F$50,MATCH($C5,'Prev & Ctrl'!$A$5:$A$50,0)),IFERROR(INDEX('Lab dx'!$F$5:$F$50,MATCH($C5,'Lab dx'!$A$5:$A$50,0)),IFERROR(INDEX('Dog popn'!$F$5:$F$50,MATCH($C5,'Dog popn'!$A$5:$A$50,0)),IFERROR(INDEX(IEC!$F$5:$F$50,MATCH($C5,IEC!$A$5:$A$50,0)),IFERROR(INDEX('Cross-cutting issues'!$F$5:$F$50,MATCH($C5,'Cross-cutting issues'!$A$5:$A$50,0)),IFERROR(INDEX(Legislation!$F$5:$F$50,MATCH($C5,Legislation!$A$5:$A$50,0)),\"\")))))))","v":1},{"$f":"IFERROR(INDEX('Data coll & an'!$G$5:$G$50,MATCH($C5,'Data coll & an'!$A$5:$A$50,0)),IFERROR(INDEX('Prev & Ctrl'!$G$5:$G$50,MATCH($C5,'Prev & Ctrl'!$A$5:$A$50,0)),IFERROR(INDEX('Lab dx'!$G$5:$G$50,MATCH($C5,'Lab dx'!$A$5:$A$50,0)),IFERROR(INDEX('Dog popn'!$G$5:$G$50,MATCH($C5,'Dog popn'!$A$5:$A$50,0)),IFERROR(INDEX(IEC!$G$5:$G$50,MATCH($C5,IEC!$A$5:$A$50,0)),IFERROR(INDEX('Cross-cutting issues'!$G$5:$G$50,MATCH($C5,'Cross-cutting issues'!$A$5:$A$50,0)),IFERROR(INDEX(Legislation!$G$5:$G$50,MATCH($C5,Legislation!$A$5:$A$50,0)),\"\")))))))","v":0},"3.1.3-Infrastructure-surveillance","http://caninerabiesblueprint.org/3-1-3-What-personnel-and?lang=en","Challenges of animal health information systems and surveillance for animal diseases and zoonoses ","http://www.fao.org/3/a-i2415e.pdf","Zoonotic diseases : a guide to establishing collaboration","http://caninerabiesblueprint.org/Zoonotic-diseases-a-guide-to"," 6. Reporting of rabies data","http://rabiessurveillanceblueprint.org/-Reporting-dissemination-and-",null,null,"• Elaborer un protocole et un modèle de notification sur la manière dont les cas de rage humaine doivent être signalés du niveau local du niveau national;\n• Partager le protocole avec un groupe de professionnels de la santé humaine travaillant au niveau communautaire afin de recueillir leurs commentaires et suggestions;\n• Adapter le protocole et le modèle de notification selon les commentaires reçus (si nécessaire);\n• Obtenir le financement requis pour former tous les professionnels de la santé humaine sur la mise en œuvre correcte du protocole et du modèle de notification ;\n• Former tous les professionnels de la santé humaine sur la mise en œuvre correcte du protocole et du modèle de notification;\n• Évaluer si les cas de rage humaine sont signalés du niveau local au niveau national.","Database of human rabies cases stored and regularly updated at national level","Ministère de la santé",1,"• Modèle de notification de cas de rage humaine et protocole élaborés grâce à un travail collaboratif avec les parties prenantes.\n• Liste de distribution de tous les professionnels de la santé humaine destinataires du protocole finalisé.\n• Comptes-rendus des séances de formation des professionnels de la santé humaine au protocole destinées aux professionnels de la santé humaine concernés.\n• Rapports de suivi et d'évaluation confirmant le succès de la notification des cas de rage du niveau local au niveau national.","","","","Notifier les cas de rage humaine du niveau local au niveau national."]
[5,"DCA","DCA-Sur-1-5","Surveillance",1,5,"Existe-t-il une capacité d'analyse des données relatives à la rage canine au niveau national ? ","Cela ne doit pas nécessairement être opérationnel pour la rage, mais il doit s'agir d'une infrastructure ou de systèmes qui pourraient éventuellement être utilisés pour l'analyse des données relatives à la rage. \n\nPar exemple, infrastructure pour l’analyse des données existant pour d’autres maladies/programmes, personnel correctement formé, technologie suffisante, etc. ",null,{"$f":"IFERROR(INDEX('Data coll & an'!$F$5:$F$50,MATCH($C6,'Data coll & an'!$A$5:$A$50,0)),IFERROR(INDEX('Prev & Ctrl'!$F$5:$F$50,MATCH($C6,'Prev & Ctrl'!$A$5:$A$50,0)),IFERROR(INDEX('Lab dx'!$F$5:$F$50,MATCH($C6,'Lab dx'!$A$5:$A$50,0)),IFERROR(INDEX('Dog popn'!$F$5:$F$50,MATCH($C6,'Dog popn'!$A$5:$A$50,0)),IFERROR(INDEX(IEC!$F$5:$F$50,MATCH($C6,IEC!$A$5:$A$50,0)),IFERROR(INDEX('Cross-cutting issues'!$F$5:$F$50,MATCH($C6,'Cross-cutting issues'!$A$5:$A$50,0)),IFERROR(INDEX(Legislation!$F$5:$F$50,MATCH($C6,Legislation!$A$5:$A$50,0)),\"\")))))))","v":1},{"$f":"IFERROR(INDEX('Data coll & an'!$G$5:$G$50,MATCH($C6,'Data coll & an'!$A$5:$A$50,0)),IFERROR(INDEX('Prev & Ctrl'!$G$5:$G$50,MATCH($C6,'Prev & Ctrl'!$A$5:$A$50,0)),IFERROR(INDEX('Lab dx'!$G$5:$G$50,MATCH($C6,'Lab dx'!$A$5:$A$50,0)),IFERROR(INDEX('Dog popn'!$G$5:$G$50,MATCH($C6,'Dog popn'!$A$5:$A$50,0)),IFERROR(INDEX(IEC!$G$5:$G$50,MATCH($C6,IEC!$A$5:$A$50,0)),IFERROR(INDEX('Cross-cutting issues'!$G$5:$G$50,MATCH($C6,'Cross-cutting issues'!$A$5:$A$50,0)),IFERROR(INDEX(Legislation!$G$5:$G$50,MATCH($C6,Legislation!$A$5:$A$50,0)),\"\")))))))","v":0},"3.1.3-Infrastructure-surveillance","http://caninerabiesblueprint.org/3-1-3-What-personnel-and?lang=en","Challenges of animal health information systems and surveillance for animal diseases and zoonoses ","http://www.fao.org/3/a-i2415e.pdf","2.3 Animal rabies surveillance","http://rabiessurveillanceblueprint.org/-2-3-Animal-rabies-surveillance-",null,null,null,null,"• Évaluer les capacités nécessaires pour analyser correctement les données sur la rage canine au niveau national en termes de personnel, de compétences, de matériel et logiciels, en tenant compte des exigences internationales en matière d'établissement de rapports ;\n• Élaborer une proposition et un budget pour combler les lacunes identifiées ; \n• Obtenir le financement et mettre en place les capacités nécessaires.","Facilities assessment for computers and software. Staff competency for data analysis at national level determined.","Ministère de l’agriculture",1,"• Rapport d’évaluation des besoins écrivant les compétences, le personnel et la technologie nécessaires.\n• Proposition et budget approuvé pour combler les lacunes dans la capacité d'analyse des données.\n• Mise en place documentée du personnel et de l'infrastructure technique pour l'analyse des données relatives à la rage canine. ","","","","Renforcer les capacités nécessaires à l'analyse des données relatives à la rage canine au niveau national."]
[6,"DCA","DCA-Sur-1-6","Surveillance",1,6,"Existe-t-il une capacité d'analyse des données relatives à la rage humaine au niveau national ? ","Cela ne doit pas nécessairement être opérationnel pour la rage, mais il doit s'agir d'une infrastructure ou de systèmes que les parties prenantes pourraient éventuellement utiliser pour analyser les données relatives à la rage. \n\nPar exemple, infrastructure pour l’analyse des données existant pour d’autres maladies/programmes, personnel correctement formé, technologie suffisante, etc.",null,{"$f":"IFERROR(INDEX('Data coll & an'!$F$5:$F$50,MATCH($C7,'Data coll & an'!$A$5:$A$50,0)),IFERROR(INDEX('Prev & Ctrl'!$F$5:$F$50,MATCH($C7,'Prev & Ctrl'!$A$5:$A$50,0)),IFERROR(INDEX('Lab dx'!$F$5:$F$50,MATCH($C7,'Lab dx'!$A$5:$A$50,0)),IFERROR(INDEX('Dog popn'!$F$5:$F$50,MATCH($C7,'Dog popn'!$A$5:$A$50,0)),IFERROR(INDEX(IEC!$F$5:$F$50,MATCH($C7,IEC!$A$5:$A$50,0)),IFERROR(INDEX('Cross-cutting issues'!$F$5:$F$50,MATCH($C7,'Cross-cutting issues'!$A$5:$A$50,0)),IFERROR(INDEX(Legislation!$F$5:$F$50,MATCH($C7,Legislation!$A$5:$A$50,0)),\"\")))))))","v":1},{"$f":"IFERROR(INDEX('Data coll & an'!$G$5:$G$50,MATCH($C7,'Data coll & an'!$A$5:$A$50,0)),IFERROR(INDEX('Prev & Ctrl'!$G$5:$G$50,MATCH($C7,'Prev & Ctrl'!$A$5:$A$50,0)),IFERROR(INDEX('Lab dx'!$G$5:$G$50,MATCH($C7,'Lab dx'!$A$5:$A$50,0)),IFERROR(INDEX('Dog popn'!$G$5:$G$50,MATCH($C7,'Dog popn'!$A$5:$A$50,0)),IFERROR(INDEX(IEC!$G$5:$G$50,MATCH($C7,IEC!$A$5:$A$50,0)),IFERROR(INDEX('Cross-cutting issues'!$G$5:$G$50,MATCH($C7,'Cross-cutting issues'!$A$5:$A$50,0)),IFERROR(INDEX(Legislation!$G$5:$G$50,MATCH($C7,Legislation!$A$5:$A$50,0)),\"\")))))))","v":0},"3.1.3-Infrastructure-surveillance","http://caninerabiesblueprint.org/3-1-3-What-personnel-and?lang=en","Challenges of animal health information systems and surveillance for animal diseases and zoonoses ","http://www.fao.org/3/a-i2415e.pdf","2.2 Human rabies surveillance","http://rabiessurveillanceblueprint.org/-2-2-Human-rabies-surveillance-",null,null,null,null,"• Évaluer les capacités nécessaires pour analyser correctement les données sur la rage humaine au niveau national en termes de personnel, de compétences, de matériel et logiciels, en tenant compte des exigences internationales en matière d'établissement de rapports ;\n• Élaborer une proposition et un budget pour combler les lacunes identifiées ; \n• Obtenir le financement et mettre en place les capacités nécessaires.","Facilities assessment for computers and software. Staff competency for data analysis at national level determined.","Ministère de la santé",1,"• Rapport d’évaluation des besoins écrivant les compétences, le personnel et la technologie nécessaires.\n• Proposition et budget approuvé pour combler les lacunes dans la capacité d'analyse des données.\n• Mise en place documentée du personnel et de l'infrastructure technique pour l'analyse des données relatives à la rage humaine.","","","","Renforcer les capacités nécessaires à l'analyse des données relatives à la rage humaine au niveau national."]
[7,"DCA","DCA-Sur-1-7","Surveillance",1,7,"Disposez-vous d’un système de surveillance* de la rage animale ? ","Vous pouvez répondre “Oui” s’il est en place. Cela ne signifie pas nécessairement qu’il fonctionne de façon optimale.",null,{"$f":"IFERROR(INDEX('Data coll & an'!$F$5:$F$50,MATCH($C8,'Data coll & an'!$A$5:$A$50,0)),IFERROR(INDEX('Prev & Ctrl'!$F$5:$F$50,MATCH($C8,'Prev & Ctrl'!$A$5:$A$50,0)),IFERROR(INDEX('Lab dx'!$F$5:$F$50,MATCH($C8,'Lab dx'!$A$5:$A$50,0)),IFERROR(INDEX('Dog popn'!$F$5:$F$50,MATCH($C8,'Dog popn'!$A$5:$A$50,0)),IFERROR(INDEX(IEC!$F$5:$F$50,MATCH($C8,IEC!$A$5:$A$50,0)),IFERROR(INDEX('Cross-cutting issues'!$F$5:$F$50,MATCH($C8,'Cross-cutting issues'!$A$5:$A$50,0)),IFERROR(INDEX(Legislation!$F$5:$F$50,MATCH($C8,Legislation!$A$5:$A$50,0)),\"\")))))))","v":1},{"$f":"IFERROR(INDEX('Data coll & an'!$G$5:$G$50,MATCH($C8,'Data coll & an'!$A$5:$A$50,0)),IFERROR(INDEX('Prev & Ctrl'!$G$5:$G$50,MATCH($C8,'Prev & Ctrl'!$A$5:$A$50,0)),IFERROR(INDEX('Lab dx'!$G$5:$G$50,MATCH($C8,'Lab dx'!$A$5:$A$50,0)),IFERROR(INDEX('Dog popn'!$G$5:$G$50,MATCH($C8,'Dog popn'!$A$5:$A$50,0)),IFERROR(INDEX(IEC!$G$5:$G$50,MATCH($C8,IEC!$A$5:$A$50,0)),IFERROR(INDEX('Cross-cutting issues'!$G$5:$G$50,MATCH($C8,'Cross-cutting issues'!$A$5:$A$50,0)),IFERROR(INDEX(Legislation!$G$5:$G$50,MATCH($C8,Legislation!$A$5:$A$50,0)),\"\")))))))","v":0},"3.1.3-Infrastructure-surveillance","http://caninerabiesblueprint.org/3-1-3-What-personnel-and?lang=en","Challenges of animal health information systems and surveillance for animal diseases and zoonoses ","http://www.fao.org/3/a-i2415e.pdf","Zoonotic diseases : a guide to establishing collaboration","http://caninerabiesblueprint.org/Zoonotic-diseases-a-guide-to","2.3 Animal rabies surveillance","http://rabiessurveillanceblueprint.org/-2-3-Animal-rabies-surveillance-",null,null,"• Dresser la carte des parties prenantes impliquées dans la saisie, la communication et l'analyse des données relatives à la rage animale ;\n• Dresser la carte des données requises (en plus de ce qui est actuellement saisi) pour un système idéal de surveillance de la rage animale; \n• Déterminer s'il existe un système de surveillance de la santé animale dans le pays ;\n• Etudier la possibilité d’intégrer la rage dans le système existent et déterminer si cela permettrait de répondre à toutes les exigences en matière d'élimination de la rage (y compris la notification internationale et la surveillance et l'évaluation détaillées de la maladie)\n• Etudier les systèmes de surveillance de la rage existants proposés par les partenaires internationaux ou mis au point par d'autres pays en vue de les imiter ou de les utiliser;\n• Déterminer si les systèmes de surveillance en place pour d’autres maladies peuvent être adaptés et utilisés pour la rage ;\n• Rédiger une proposition pour la mise en place d'un système de surveillance de la rage animale sur la base de vos investigations ;\n• Établir un budget et plaider en faveur du financement du système de surveillance (le cas échéant) ;\n• Mettre en place un système opérationnel de surveillance de la rage animale ;  \n• Établir une documentation et des protocoles guidant l'utilisation et la mise en œuvre du système.","Database created/implemented for reported data.","Ministère de l’agriculture",2,"• Rapports de cartographie des parties prenantes et de cartographie des données pour la gestion des données sur la rage animale.\n• Proposition et budget pour la mise en place d’un système de surveillance de la rage animale.\n• Système de surveillance de la rage animale en place.\n• Protocoles et documentation opérationnels pour le système de surveillance.\n• Rapports confirmant la fonctionnalité et l'utilisation continue des systèmes de surveillance.","","","","Mettre en place un système de surveillance de la rage animale."]
[8,"DCA",{"$f":"B9&\"-\"&LEFT(D9,3)&\"-\"&E9&\"-\"&F9","v":"DCA-Sur-1-8"},"Surveillance",1,8,"Transmettez-vous chaque année toutes les données relatives à la rage animale à l’WOAH ?","Vous ne devez répondre “Oui” que si vous transmettez régulièrement vos données \n\nVous devez répondre “Non” si les données ne sont transmises que de temps en temps.",null,{"$f":"IFERROR(INDEX('Data coll & an'!$F$5:$F$50,MATCH($C9,'Data coll & an'!$A$5:$A$50,0)),IFERROR(INDEX('Prev & Ctrl'!$F$5:$F$50,MATCH($C9,'Prev & Ctrl'!$A$5:$A$50,0)),IFERROR(INDEX('Lab dx'!$F$5:$F$50,MATCH($C9,'Lab dx'!$A$5:$A$50,0)),IFERROR(INDEX('Dog popn'!$F$5:$F$50,MATCH($C9,'Dog popn'!$A$5:$A$50,0)),IFERROR(INDEX(IEC!$F$5:$F$50,MATCH($C9,IEC!$A$5:$A$50,0)),IFERROR(INDEX('Cross-cutting issues'!$F$5:$F$50,MATCH($C9,'Cross-cutting issues'!$A$5:$A$50,0)),IFERROR(INDEX(Legislation!$F$5:$F$50,MATCH($C9,Legislation!$A$5:$A$50,0)),\"\")))))))","v":0},{"$f":"IFERROR(INDEX('Data coll & an'!$G$5:$G$50,MATCH($C9,'Data coll & an'!$A$5:$A$50,0)),IFERROR(INDEX('Prev & Ctrl'!$G$5:$G$50,MATCH($C9,'Prev & Ctrl'!$A$5:$A$50,0)),IFERROR(INDEX('Lab dx'!$G$5:$G$50,MATCH($C9,'Lab dx'!$A$5:$A$50,0)),IFERROR(INDEX('Dog popn'!$G$5:$G$50,MATCH($C9,'Dog popn'!$A$5:$A$50,0)),IFERROR(INDEX(IEC!$G$5:$G$50,MATCH($C9,IEC!$A$5:$A$50,0)),IFERROR(INDEX('Cross-cutting issues'!$G$5:$G$50,MATCH($C9,'Cross-cutting issues'!$A$5:$A$50,0)),IFERROR(INDEX(Legislation!$G$5:$G$50,MATCH($C9,Legislation!$A$5:$A$50,0)),\"\")))))))","v":0},"6.7 International databases","http://rabiessurveillanceblueprint.org/6-7-What-international-rabies?lang=en",null,null,null,null,null,null,null,null,"• Déterminer quelles données doivent être communiquées à l’OMSA tous les ans ;\n• Veiller à ce que toutes les données relatives à la rage animale soient saisies, enregistrées et disponibles au niveau national en temps utile pour le rapport de l’OMSA ;\n• Identifier la personne référente de l’OMSA ;\n• Partager les données avec la personne référente de l’OMSA ;\n• Examiner la plate-forme de données de surveillance WAHIS pour s'assurer que les données rapportées sont affichées.","All human and animal rabies cases reported to the national level are reflected on an international database ","Ministère de l’agriculture",1,"• Préparation d'ensembles de données vérifiées pour la déclaration annuelle de la rage animale à l’OMSA.\n• Confirmation de la soumission des données à la plateforme WAHIS.","","","","Communiquer chaque année toutes les données relatives à la rage animale à l’OMSA."]
[9,"DCA","DCA-Sur-1-9","Surveillance",1,9,"Disposez-vous d’un système de surveillance* de la rage humaine ? ","Vous pouvez répondre “Oui” s’il est en place ? Cela ne signifie pas nécessairement qu’il fonctionne de manière optimale. ",null,{"$f":"IFERROR(INDEX('Data coll & an'!$F$5:$F$50,MATCH($C10,'Data coll & an'!$A$5:$A$50,0)),IFERROR(INDEX('Prev & Ctrl'!$F$5:$F$50,MATCH($C10,'Prev & Ctrl'!$A$5:$A$50,0)),IFERROR(INDEX('Lab dx'!$F$5:$F$50,MATCH($C10,'Lab dx'!$A$5:$A$50,0)),IFERROR(INDEX('Dog popn'!$F$5:$F$50,MATCH($C10,'Dog popn'!$A$5:$A$50,0)),IFERROR(INDEX(IEC!$F$5:$F$50,MATCH($C10,IEC!$A$5:$A$50,0)),IFERROR(INDEX('Cross-cutting issues'!$F$5:$F$50,MATCH($C10,'Cross-cutting issues'!$A$5:$A$50,0)),IFERROR(INDEX(Legislation!$F$5:$F$50,MATCH($C10,Legislation!$A$5:$A$50,0)),\"\")))))))","v":1},{"$f":"IFERROR(INDEX('Data coll & an'!$G$5:$G$50,MATCH($C10,'Data coll & an'!$A$5:$A$50,0)),IFERROR(INDEX('Prev & Ctrl'!$G$5:$G$50,MATCH($C10,'Prev & Ctrl'!$A$5:$A$50,0)),IFERROR(INDEX('Lab dx'!$G$5:$G$50,MATCH($C10,'Lab dx'!$A$5:$A$50,0)),IFERROR(INDEX('Dog popn'!$G$5:$G$50,MATCH($C10,'Dog popn'!$A$5:$A$50,0)),IFERROR(INDEX(IEC!$G$5:$G$50,MATCH($C10,IEC!$A$5:$A$50,0)),IFERROR(INDEX('Cross-cutting issues'!$G$5:$G$50,MATCH($C10,'Cross-cutting issues'!$A$5:$A$50,0)),IFERROR(INDEX(Legislation!$G$5:$G$50,MATCH($C10,Legislation!$A$5:$A$50,0)),\"\")))))))","v":0},"3.1.3-Infrastructure-surveillance","http://caninerabiesblueprint.org/3-1-3-What-personnel-and?lang=en","Challenges of animal health information systems and surveillance for animal diseases and zoonoses ","http://www.fao.org/3/a-i2415e.pdf","Zoonotic diseases : a guide to establishing collaboration","http://caninerabiesblueprint.org/Zoonotic-diseases-a-guide-to","2.2 Human rabies surveillance ","http://rabiessurveillanceblueprint.org/-2-2-Human-rabies-surveillance-",null,null,"• Dresser la carte des parties prenantes impliquées dans la saisie, la communication et l'analyse des données relatives à la rage humaine ;\n• Dresser la carte des données requises (en plus de ce qui est actuellement saisi) pour un système idéal de surveillance de la rage humaine ;  \n• Déterminer s'il existe un système de surveillance de la santé humaine dans le pays ;\n• Etudier la possibilité d’intégrer la rage dans le système existent et déterminer si cela permettrait de répondre à toutes les exigences en matière d'élimination de la rage (y compris la notification internationale et la surveillance et l'évaluation détaillées de la maladie) ;\n• Etudier les systèmes de surveillance de la rage existants proposes par les partenaires internationaux ou mis au point par d'autres pays en vue de les imiter ou de les utiliser ;\n• Déterminer si les systèmes de surveillance en place pour d’autres maladies peuvent être adaptés et utilisés pour la rage ;\n• Rédiger une proposition pour la mise en place d'un système de surveillance de la rage humaine sur la base de vos investigations ;\n• Établir un budget et plaider en faveur du financement du système de surveillance (le cas échéant) ;\n• Mettre en place un système opérationnel de surveillance de la rage humaine ;  \n• Établir une documentation et des protocoles guidant l'utilisation et la mise en œuvre du système.","Database created/implemented for reported data.","Ministère de la santé",2,"• Rapports de cartographie des parties prenantes et de cartographie des données pour la gestion des données sur la rage humaine.\n• Proposition et budget pour la mise en place d’un système de surveillance de la rage humaine.\n• Système de surveillance de la rage humaine en place.\n• Protocoles et documentation opérationnels pour le système de surveillance.\n• Rapports confirmant la fonctionnalité et l'utilisation continue des systèmes de surveillance.","","","","Etablir un système de surveillance de la rage humaine."]
[10,"DCA",{"$f":"B11&\"-\"&LEFT(D11,3)&\"-\"&E11&\"-\"&F11","v":"DCA-Sur-1-10"},"Surveillance",1,10,"Transmettez-vous chaque année toutes les données relatives à la rage humaine à l’OMS ?","Vous ne devez répondre “Oui” que si vous transmettez régulièrement vos données. \n\nVous devez répondre “Non” si les données ne sont transmises que de temps en temps. ",null,{"$f":"IFERROR(INDEX('Data coll & an'!$F$5:$F$50,MATCH($C11,'Data coll & an'!$A$5:$A$50,0)),IFERROR(INDEX('Prev & Ctrl'!$F$5:$F$50,MATCH($C11,'Prev & Ctrl'!$A$5:$A$50,0)),IFERROR(INDEX('Lab dx'!$F$5:$F$50,MATCH($C11,'Lab dx'!$A$5:$A$50,0)),IFERROR(INDEX('Dog popn'!$F$5:$F$50,MATCH($C11,'Dog popn'!$A$5:$A$50,0)),IFERROR(INDEX(IEC!$F$5:$F$50,MATCH($C11,IEC!$A$5:$A$50,0)),IFERROR(INDEX('Cross-cutting issues'!$F$5:$F$50,MATCH($C11,'Cross-cutting issues'!$A$5:$A$50,0)),IFERROR(INDEX(Legislation!$F$5:$F$50,MATCH($C11,Legislation!$A$5:$A$50,0)),\"\")))))))","v":0},{"$f":"IFERROR(INDEX('Data coll & an'!$G$5:$G$50,MATCH($C11,'Data coll & an'!$A$5:$A$50,0)),IFERROR(INDEX('Prev & Ctrl'!$G$5:$G$50,MATCH($C11,'Prev & Ctrl'!$A$5:$A$50,0)),IFERROR(INDEX('Lab dx'!$G$5:$G$50,MATCH($C11,'Lab dx'!$A$5:$A$50,0)),IFERROR(INDEX('Dog popn'!$G$5:$G$50,MATCH($C11,'Dog popn'!$A$5:$A$50,0)),IFERROR(INDEX(IEC!$G$5:$G$50,MATCH($C11,IEC!$A$5:$A$50,0)),IFERROR(INDEX('Cross-cutting issues'!$G$5:$G$50,MATCH($C11,'Cross-cutting issues'!$A$5:$A$50,0)),IFERROR(INDEX(Legislation!$G$5:$G$50,MATCH($C11,Legislation!$A$5:$A$50,0)),\"\")))))))","v":0},"6.7 International databases","http://rabiessurveillanceblueprint.org/6-7-What-international-rabies?lang=en",null,null,null,null,null,null,null,null,"• Déterminer quelles données doivent être communiquées à l’OMS tous les ans ;\n• Veiller à ce que toutes les données relatives à la rage humaine soient saisies, enregistrées et disponibles au niveau national en temps utile pour le rapport de l’OMS ;\n• Identifier la personne référente de l’OMS \n• Partager les données avec la personne référente de l’OMS ;\n• Examiner la plate-forme de données GHO pour s'assurer que les données rapportées sont affichées.","All human and animal rabies cases reported to the national level are reflected on an international database ","Ministère de la santé",1,"• Préparation d'ensembles de données vérifiées pour la déclaration annuelle de la rage animale à l’OMS.\n• Confirmation de la soumission des données à la plateforme OMS.","","","","Communiquer toutes les données relatives à la rage humaine à l’OMS chaque année."]
[11,"DCA","DCA-Sur-1-11","Surveillance",1,11,"Les données sur les cas de morsure humaine sont-elles utilisées pour les prises de décision ?","Par exemple, le nombre de cas de morsures humaines signalés est utilisé pour déterminer le nombre de doses de vaccin contre la rage humaine à acheter pour l'année suivante. ",null,{"$f":"IFERROR(INDEX('Data coll & an'!$F$5:$F$50,MATCH($C12,'Data coll & an'!$A$5:$A$50,0)),IFERROR(INDEX('Prev & Ctrl'!$F$5:$F$50,MATCH($C12,'Prev & Ctrl'!$A$5:$A$50,0)),IFERROR(INDEX('Lab dx'!$F$5:$F$50,MATCH($C12,'Lab dx'!$A$5:$A$50,0)),IFERROR(INDEX('Dog popn'!$F$5:$F$50,MATCH($C12,'Dog popn'!$A$5:$A$50,0)),IFERROR(INDEX(IEC!$F$5:$F$50,MATCH($C12,IEC!$A$5:$A$50,0)),IFERROR(INDEX('Cross-cutting issues'!$F$5:$F$50,MATCH($C12,'Cross-cutting issues'!$A$5:$A$50,0)),IFERROR(INDEX(Legislation!$F$5:$F$50,MATCH($C12,Legislation!$A$5:$A$50,0)),\"\")))))))","v":1},{"$f":"IFERROR(INDEX('Data coll & an'!$G$5:$G$50,MATCH($C12,'Data coll & an'!$A$5:$A$50,0)),IFERROR(INDEX('Prev & Ctrl'!$G$5:$G$50,MATCH($C12,'Prev & Ctrl'!$A$5:$A$50,0)),IFERROR(INDEX('Lab dx'!$G$5:$G$50,MATCH($C12,'Lab dx'!$A$5:$A$50,0)),IFERROR(INDEX('Dog popn'!$G$5:$G$50,MATCH($C12,'Dog popn'!$A$5:$A$50,0)),IFERROR(INDEX(IEC!$G$5:$G$50,MATCH($C12,IEC!$A$5:$A$50,0)),IFERROR(INDEX('Cross-cutting issues'!$G$5:$G$50,MATCH($C12,'Cross-cutting issues'!$A$5:$A$50,0)),IFERROR(INDEX(Legislation!$G$5:$G$50,MATCH($C12,Legislation!$A$5:$A$50,0)),\"\")))))))","v":0},"5.3.1-Rabies-surveillance","http://caninerabiesblueprint.org/5-3-1-Rabies-surveillance?lang=en",null,null,null,null,null,null,null,null,"• Recueillir toutes les données accessibles et disponibles relatives aux cas de morsures de mammifères ;\n• Analyser les données pour identifier des tendances, des foyers et les besoins en matière de traitement ;\n• Rédiger un rapport sur les résultats et des recommandations spécifiques sur la manière dont les données peuvent être utilisées pour la prise de décision (par exemple, l'approvisionnement en vaccins) ;\n• Diffuser le rapport aux décideurs concernés.","Reports on analysed bite case data are generated with recommendations and disseminated to the relevant decision-makers","Ministère de la santé",2,"• Rapport complet sur les données relatives aux cas de morsures, identifiant les tendances et les points chauds, accompagné de recommandations visant à améliorer les mesures de lutte contre la rage et la distribution des vaccins.\n• Compte rendu de la distribution du rapport aux décideurs.","","","","Recueillir et utiliser des données sur les cas de morsures pour la prise de décision."]
[12,"DCA","DCA-Sur-1-12","Surveillance",1,12,"Avez-vous jamais réalisé des études sur la taille et l’accessibilité des populations de chiens dans votre pays ?","Vous pouvez répondre “Oui” si les études ont été réalisées dans une zone pilote et non pas dans tout le pays. C’est aussi possible si des organisations non-gouvernementales ont entrepris ces études à condition que les ministères du gouvernement soient informés des résultats. \n\nMentionnez les années durant lesquelles ces études ont été réalisées.",null,{"$f":"IFERROR(INDEX('Data coll & an'!$F$5:$F$50,MATCH($C13,'Data coll & an'!$A$5:$A$50,0)),IFERROR(INDEX('Prev & Ctrl'!$F$5:$F$50,MATCH($C13,'Prev & Ctrl'!$A$5:$A$50,0)),IFERROR(INDEX('Lab dx'!$F$5:$F$50,MATCH($C13,'Lab dx'!$A$5:$A$50,0)),IFERROR(INDEX('Dog popn'!$F$5:$F$50,MATCH($C13,'Dog popn'!$A$5:$A$50,0)),IFERROR(INDEX(IEC!$F$5:$F$50,MATCH($C13,IEC!$A$5:$A$50,0)),IFERROR(INDEX('Cross-cutting issues'!$F$5:$F$50,MATCH($C13,'Cross-cutting issues'!$A$5:$A$50,0)),IFERROR(INDEX(Legislation!$F$5:$F$50,MATCH($C13,Legislation!$A$5:$A$50,0)),\"\")))))))","v":0},{"$f":"IFERROR(INDEX('Data coll & an'!$G$5:$G$50,MATCH($C13,'Data coll & an'!$A$5:$A$50,0)),IFERROR(INDEX('Prev & Ctrl'!$G$5:$G$50,MATCH($C13,'Prev & Ctrl'!$A$5:$A$50,0)),IFERROR(INDEX('Lab dx'!$G$5:$G$50,MATCH($C13,'Lab dx'!$A$5:$A$50,0)),IFERROR(INDEX('Dog popn'!$G$5:$G$50,MATCH($C13,'Dog popn'!$A$5:$A$50,0)),IFERROR(INDEX(IEC!$G$5:$G$50,MATCH($C13,IEC!$A$5:$A$50,0)),IFERROR(INDEX('Cross-cutting issues'!$G$5:$G$50,MATCH($C13,'Cross-cutting issues'!$A$5:$A$50,0)),IFERROR(INDEX(Legislation!$G$5:$G$50,MATCH($C13,Legislation!$A$5:$A$50,0)),\"\")))))))","v":0},"5.4.1-estimate the number of dogs","http://caninerabiesblueprint.org/5-4-1-What-techniques-are?lang=en",null,null,null,null,null,null,null,null,"• Préciser si des partenaires non-gouvernementaux (groupes internationaux, ONG ou experts) pourraient soutenir la mise en œuvre d’une étude écologique canine dans votre pays ;\n• Préciser la localisation idéale pour l’étude écologique canine ;\n• Examiner les méthodologies et les approches disponibles pour les études sur la taille et l'accessibilité de la population canine et choisir l'approche la plus scientifiquement rationnelle pour le lieu choisi ;\n• Rédiger une proposition et un budget pour l'étude et obtenir le financement nécessaire pour entreprendre l'étude ;\n• Identifier et former le personnel nécessaire à l'étude ;\n• Entreprendre l'étude de l'écologie canine dans le lieu choisi ;\n• Recueillir, colliger et analyser les données relatives à l'écologie canine ;\n• Diffuser les résultats aux autorités compétentes.","Dog ecology data for a small-scale area has been collected, collated, analysed and disseminated.","Ministère de l’agriculture",2,"• Proposition approuvée et financement acquis pour une étude d’écologie canine.\n• Formation et réalisation documentées de l'étude écologique sur les chiens.\n• Rapport sur les résultats de l'étude analysé et diffusé auprès des autorités compétentes.","","","","Entreprendre une étude sur la taille et l’accessibilité de la population canine dans une région du pays."]
[13,"DCA","DCA-Sur-2-13","Surveillance",2,13,"Le système de surveillance de la rage humaine recueille-t-il toutes les données appropriées sur la rage et est-il pleinement opérationnel avec des mécanismes de retour d'information entre les niveaux administratifs (national, province, district, municipalité, etc.) ?","Le système doit recueillir toute les données pertinentes nécessaires à une prise de décision fondée sur les données. \n\nEn outre, ces données doivent circuler du niveau local au niveau national, être analysées et faire l'objet d'un rapport, et les résultats de l'analyse doivent ensuite être partagés avec le   niveau local. Cela doit s’appliquer à toutes les données, de manière régulière et en temps opportun.",null,{"$f":"IFERROR(INDEX('Data coll & an'!$F$5:$F$50,MATCH($C14,'Data coll & an'!$A$5:$A$50,0)),IFERROR(INDEX('Prev & Ctrl'!$F$5:$F$50,MATCH($C14,'Prev & Ctrl'!$A$5:$A$50,0)),IFERROR(INDEX('Lab dx'!$F$5:$F$50,MATCH($C14,'Lab dx'!$A$5:$A$50,0)),IFERROR(INDEX('Dog popn'!$F$5:$F$50,MATCH($C14,'Dog popn'!$A$5:$A$50,0)),IFERROR(INDEX(IEC!$F$5:$F$50,MATCH($C14,IEC!$A$5:$A$50,0)),IFERROR(INDEX('Cross-cutting issues'!$F$5:$F$50,MATCH($C14,'Cross-cutting issues'!$A$5:$A$50,0)),IFERROR(INDEX(Legislation!$F$5:$F$50,MATCH($C14,Legislation!$A$5:$A$50,0)),\"\")))))))","v":1},{"$f":"IFERROR(INDEX('Data coll & an'!$G$5:$G$50,MATCH($C14,'Data coll & an'!$A$5:$A$50,0)),IFERROR(INDEX('Prev & Ctrl'!$G$5:$G$50,MATCH($C14,'Prev & Ctrl'!$A$5:$A$50,0)),IFERROR(INDEX('Lab dx'!$G$5:$G$50,MATCH($C14,'Lab dx'!$A$5:$A$50,0)),IFERROR(INDEX('Dog popn'!$G$5:$G$50,MATCH($C14,'Dog popn'!$A$5:$A$50,0)),IFERROR(INDEX(IEC!$G$5:$G$50,MATCH($C14,IEC!$A$5:$A$50,0)),IFERROR(INDEX('Cross-cutting issues'!$G$5:$G$50,MATCH($C14,'Cross-cutting issues'!$A$5:$A$50,0)),IFERROR(INDEX(Legislation!$G$5:$G$50,MATCH($C14,Legislation!$A$5:$A$50,0)),\"\")))))))","v":0},"5.1.1-epidemiology-of-rabies","http://caninerabiesblueprint.org/5-1-1-The-epidemiology-of-rabies?lang=en","WHO International Health Regulations","http://caninerabiesblueprint.org/WHO-International-Health",null,null,null,null,null,null,"• Évaluer les lacunes du système actuel de surveillance de la rage humaine en termes de collecte, d'analyse, de flux de données et de retour d'information ;\n• Rédiger un rapport sur les résultats de l'évaluation, assorti de recommandations \n• Identifier les parties prenantes concernées qui peuvent mettre en œuvre les recommandations et remédier aux lacunes mises en évidence dans l'évaluation ;\n• Mettre en œuvre les changements nécessaires pour améliorer le système de surveillance de la rage humaine.","Functional surveillance system in place for human rabies cases, including data collection, reporting, analysis and subsequent feedback for action","Ministère de la santé",4,"• Rapport identifiant les lacunes du système actuel de surveillance de la rage humaine.\n• Documentation des améliorations mises en œuvre et des nouveaux protocoles.\n• Preuve de l'amélioration de la gestion des données et des mécanismes de retour d'information à tous les niveaux administratifs.","","","","Mettre à jour ou modifier le système de surveillance de la rage humaine afin qu'il recueille toutes les données appropriées sur la rage et qu'il soit pleinement opérationnel grâce à des mécanismes de retour d'information entre les différents niveaux administratifs (national, provincial, de district, municipal, etc.)."]
[14,"DCA","DCA-Sur-2-14","Surveillance",2,14,"Le système de surveillance de la rage animale recueille-t-il toutes les données appropriées sur la rage et est-il pleinement fonctionnel avec des mécanismes de retour d'information entre les niveaux administratifs (national, province, district, municipalité, etc.) ?","Le système doit recueillir toute les données pertinentes nécessaires à une prise de décision fondée sur les données. \n\nEn outre, ces données doivent circuler du niveau local au niveau national, être analysées et faire l'objet d'un rapport, et les résultats de l'analyse doivent ensuite être partagés avec le niveau local. Cela doit appliquer à toutes les données, de manière régulière et en temps opportun.",null,{"$f":"IFERROR(INDEX('Data coll & an'!$F$5:$F$50,MATCH($C15,'Data coll & an'!$A$5:$A$50,0)),IFERROR(INDEX('Prev & Ctrl'!$F$5:$F$50,MATCH($C15,'Prev & Ctrl'!$A$5:$A$50,0)),IFERROR(INDEX('Lab dx'!$F$5:$F$50,MATCH($C15,'Lab dx'!$A$5:$A$50,0)),IFERROR(INDEX('Dog popn'!$F$5:$F$50,MATCH($C15,'Dog popn'!$A$5:$A$50,0)),IFERROR(INDEX(IEC!$F$5:$F$50,MATCH($C15,IEC!$A$5:$A$50,0)),IFERROR(INDEX('Cross-cutting issues'!$F$5:$F$50,MATCH($C15,'Cross-cutting issues'!$A$5:$A$50,0)),IFERROR(INDEX(Legislation!$F$5:$F$50,MATCH($C15,Legislation!$A$5:$A$50,0)),\"\")))))))","v":1},{"$f":"IFERROR(INDEX('Data coll & an'!$G$5:$G$50,MATCH($C15,'Data coll & an'!$A$5:$A$50,0)),IFERROR(INDEX('Prev & Ctrl'!$G$5:$G$50,MATCH($C15,'Prev & Ctrl'!$A$5:$A$50,0)),IFERROR(INDEX('Lab dx'!$G$5:$G$50,MATCH($C15,'Lab dx'!$A$5:$A$50,0)),IFERROR(INDEX('Dog popn'!$G$5:$G$50,MATCH($C15,'Dog popn'!$A$5:$A$50,0)),IFERROR(INDEX(IEC!$G$5:$G$50,MATCH($C15,IEC!$A$5:$A$50,0)),IFERROR(INDEX('Cross-cutting issues'!$G$5:$G$50,MATCH($C15,'Cross-cutting issues'!$A$5:$A$50,0)),IFERROR(INDEX(Legislation!$G$5:$G$50,MATCH($C15,Legislation!$A$5:$A$50,0)),\"\")))))))","v":0},"5.1.1-epidemiology-of-rabies","http://caninerabiesblueprint.org/5-1-1-The-epidemiology-of-rabies?lang=en","OIE Terrestrial Animal Health Code","http://caninerabiesblueprint.org/OIE-Terrestrial-Animal-Health-Code",null,null,null,null,null,null,"• Evaluer les lacunes du système de surveillance de la rage animale en termes de recueil, d’analyse, de flux de données et de retour d’information;\n• Rédiger un rapport sur les résultats de l'évaluation, assorti de recommandations \n• Identifier les parties prenantes concernées qui peuvent mettre en œuvre les recommandations et remédier aux lacunes mises en évidence dans l'évaluation ;\n• Mettre en œuvre les changements nécessaires pour améliorer le système de surveillance de la rage animale.","Functional surveillance system in place for animal rabies cases, including data collection, reporting, analysis and subsequent feedback for action","Ministère de l’agriculture",4,"• Rapport identifiant les lacunes du système actuel de surveillance de la rage animale.\n• Documentation des améliorations mises en œuvre et des nouveaux protocoles.\n• Preuve de l'amélioration de la gestion des données et des mécanismes de retour d'information à tous les niveaux administratifs.","","","","Mettre à jour ou modifier le système de surveillance de la rage animale afin qu’il capte toutes les données appropriées relatives à la rage animale et soit pleinement opérationnel avec des mécanismes de retour d’information entre les différents niveaux administratifs (national, provincial, district, municipal, etc.)."]
[15,"DCA","DCA-Sur-2-15","Surveillance",2,15,"Les données relatives à la rage (humaine et animale) sont-elles régulièrement partagées dans leur TOTALITE avec toutes les autres parties prenantes ?","Vous ne devez répondre “oui” que si les deux secteurs partagent régulièrement leurs données. \nParties prenantes impliquées – par exemple les décideurs politiques, les éducateurs, les ONG et d'autres personnes et organisations concernées.","KEY",{"$f":"IFERROR(INDEX('Data coll & an'!$F$5:$F$50,MATCH($C16,'Data coll & an'!$A$5:$A$50,0)),IFERROR(INDEX('Prev & Ctrl'!$F$5:$F$50,MATCH($C16,'Prev & Ctrl'!$A$5:$A$50,0)),IFERROR(INDEX('Lab dx'!$F$5:$F$50,MATCH($C16,'Lab dx'!$A$5:$A$50,0)),IFERROR(INDEX('Dog popn'!$F$5:$F$50,MATCH($C16,'Dog popn'!$A$5:$A$50,0)),IFERROR(INDEX(IEC!$F$5:$F$50,MATCH($C16,IEC!$A$5:$A$50,0)),IFERROR(INDEX('Cross-cutting issues'!$F$5:$F$50,MATCH($C16,'Cross-cutting issues'!$A$5:$A$50,0)),IFERROR(INDEX(Legislation!$F$5:$F$50,MATCH($C16,Legislation!$A$5:$A$50,0)),\"\")))))))","v":0},{"$f":"IFERROR(INDEX('Data coll & an'!$G$5:$G$50,MATCH($C16,'Data coll & an'!$A$5:$A$50,0)),IFERROR(INDEX('Prev & Ctrl'!$G$5:$G$50,MATCH($C16,'Prev & Ctrl'!$A$5:$A$50,0)),IFERROR(INDEX('Lab dx'!$G$5:$G$50,MATCH($C16,'Lab dx'!$A$5:$A$50,0)),IFERROR(INDEX('Dog popn'!$G$5:$G$50,MATCH($C16,'Dog popn'!$A$5:$A$50,0)),IFERROR(INDEX(IEC!$G$5:$G$50,MATCH($C16,IEC!$A$5:$A$50,0)),IFERROR(INDEX('Cross-cutting issues'!$G$5:$G$50,MATCH($C16,'Cross-cutting issues'!$A$5:$A$50,0)),IFERROR(INDEX(Legislation!$G$5:$G$50,MATCH($C16,Legislation!$A$5:$A$50,0)),\"\")))))))","v":0},"5.1.1-epidemiology-of-rabies","http://caninerabiesblueprint.org/5-1-1-The-epidemiology-of-rabies?lang=en","WHO International Health Regulations","http://caninerabiesblueprint.org/WHO-International-Health","OIE Terrestrial Animal Health Code","http://caninerabiesblueprint.org/OIE-Terrestrial-Animal-Health-Code","2. Roles-and-Responsibilities","http://caninerabiesblueprint.org/Roles-and-Responsibilities?lang=en",null,null,"• Identifier toutes les parties prenantes devant recevoir les données sur la rage humaine et animale;\n• Etablir un moyen de communication (par ex., email, groupe WhatsApp, partage automatisé des données via des systèmes de surveillance, etc.) qui puisse être utilisé régulièrement pour  partager les données sur la rage humaine et animale ;   \n• Veiller à ce que les parties prenantes reçoivent régulièrement les données relatives à la rage humaine et animale.","Stakeholders remain notified and informed regarding the most recent information about the situation of rabies in the country. ","Ministère de l’agriculture (Cas de rage animale); \nMinistère de la santé (cas de rage humaine)",4,"• Liste des parties prenantes qui devraient recevoir les données sur la rage.\n• Mise en place d'un canal de communication officiel pour la diffusion des données sur la rage.\n• Nombre de rapports sur les données relatives à la rage partagés avec d'autres parties prenantes.","","","","Partager régulièrement TOUTES des données disponibles sur la rage (humaine et animale) avec toutes les autres parties prenantes."]
[16,"DCA","DCA-Sur-2-16","Surveillance",2,16,"Un système de surveillance de la rage One Health (comprenant des données de surveillance humaines et animales à tous les niveaux) a-t-il été mis en place ? \n\nOU\n\nExiste-t-il une structure officielle pour le partage régulier et opportun de TOUTES les données pertinentes entre les systèmes de surveillance de la santé humaine et animale ?","S'il n'existe pas de système commun, des liens clairs doivent être établis entre les systèmes de santé humaine et animale.",null,{"$f":"IFERROR(INDEX('Data coll & an'!$F$5:$F$50,MATCH($C17,'Data coll & an'!$A$5:$A$50,0)),IFERROR(INDEX('Prev & Ctrl'!$F$5:$F$50,MATCH($C17,'Prev & Ctrl'!$A$5:$A$50,0)),IFERROR(INDEX('Lab dx'!$F$5:$F$50,MATCH($C17,'Lab dx'!$A$5:$A$50,0)),IFERROR(INDEX('Dog popn'!$F$5:$F$50,MATCH($C17,'Dog popn'!$A$5:$A$50,0)),IFERROR(INDEX(IEC!$F$5:$F$50,MATCH($C17,IEC!$A$5:$A$50,0)),IFERROR(INDEX('Cross-cutting issues'!$F$5:$F$50,MATCH($C17,'Cross-cutting issues'!$A$5:$A$50,0)),IFERROR(INDEX(Legislation!$F$5:$F$50,MATCH($C17,Legislation!$A$5:$A$50,0)),\"\")))))))","v":0},{"$f":"IFERROR(INDEX('Data coll & an'!$G$5:$G$50,MATCH($C17,'Data coll & an'!$A$5:$A$50,0)),IFERROR(INDEX('Prev & Ctrl'!$G$5:$G$50,MATCH($C17,'Prev & Ctrl'!$A$5:$A$50,0)),IFERROR(INDEX('Lab dx'!$G$5:$G$50,MATCH($C17,'Lab dx'!$A$5:$A$50,0)),IFERROR(INDEX('Dog popn'!$G$5:$G$50,MATCH($C17,'Dog popn'!$A$5:$A$50,0)),IFERROR(INDEX(IEC!$G$5:$G$50,MATCH($C17,IEC!$A$5:$A$50,0)),IFERROR(INDEX('Cross-cutting issues'!$G$5:$G$50,MATCH($C17,'Cross-cutting issues'!$A$5:$A$50,0)),IFERROR(INDEX(Legislation!$G$5:$G$50,MATCH($C17,Legislation!$A$5:$A$50,0)),\"\")))))))","v":0},null,null,null,null,null,null,null,null,null,null,"En cas de mise en place d’un système One Health de surveillance de la rage :\n• Déterminer quelles données doivent être recueillies depuis chaque secteur (santé humaine et animale) ;\n• Identifier la plateforme la plus conviviale et compatible pour héberger le nouveau système ; \n• Consulter les professionnels de l'informatique et de la gestion de la rage pour assurer le développement d'un système optimal, facile à utiliser et fournissant les résultats idéaux pour la prise de décision et l'établissement de rapports.\n• Préciser le budget pour l’élaboration et la mise en œuvre du nouveau système One Health de surveillance de la rage.\n• Mettre en place le nouveau système One Health de surveillance de la rage.\n• Etablir un calendrier pour l’importation des données existantes à partir des systèmes de surveillance de santé humaine et animale. \n• Mettre en place des formations et développer des POS pour le nouveau système. \n• Prévoir une période de transition au cours de laquelle les anciens systèmes de santé humaine et animale seront progressivement abandonnés.\n\nOU\n\nEn cas de mise en place d’une structure de partage des données entre des systèmes de surveillance de la rage existants :\n• Évaluer la fonctionnalité des systèmes de surveillance de la santé humaine et animale en termes d'interopérabilité ;\n• Déterminer les données collectées par chaque système de surveillance et celles qui devraient être partagées ;\n• Étudier les mécanismes permettant le partage des données entre les deux systèmes de surveillance ;\n• Mettre en œuvre les changements nécessaires pour assurer l'interopérabilité et le partage des données entre les deux systèmes de surveillance.\n• S'assurer que l'interopérabilité fonctionne et que les données circulent régulièrement entre les deux systèmes de surveillance (idéalement en temps réel).","Established and functional reporting and data sharing between sectors (animal and human)","Groupe multisectoriel",5,"En cas de mise en place d’un système One Health de surveillance de la rage:\n• Schéma directeur décrivant l'intégration des données relatives à la santé humaine et animale, y compris les procédures de travail et les protocoles de partage des données.\n• Systèmes de surveillance existants et des lacunes éventuelles évalués, assortis de recommandations d’amélioration.\n• Liste établie des données collectées et des lignes directrices pour le partage des données entre les secteurs.\n• Documentation des données et des lignes directrices nouvelles ou modifiées.\n• Mise en place et test d'un système One Health unique de surveillance de la rage.\n• Enregistrement des données historiques importées dans le nouveau système unique One Health de surveillance de la rage.\n• Système de surveillance de la rage One Health opérationnel garantissant un flux de données en temps réel entre les systèmes de santé humaine et animale.\n\nOU\n\nEn cas de mise en place d’une structure de partage des données entre des systèmes de surveillance de la rage existants :\n• Accord official décrivant la fréquence, le format et les responsabilités en matière de partage des données :\n• Documentation des consultations avec des experts en informatique et en rage pour modifier et affiner chaque système et mettre en œuvre l'interopérabilité des données.\n• Preuve d'un flux de données effectif et régulier entre les systèmes. ","","","","Mettre en place un système One Health de surveillance de la rage comprenant des données de surveillance humaine et animale à tous les niveaux, \n\nOU\n\nCréer une structure formelle pour le partage régulier et en temps opportun de TOUTES les données pertinentes entre les systèmes de surveillance de la santé humaine et animale qui sont opérationnels. "]
[17,"DCA","DCA-Sur-3-17","Surveillance",3,17,"Le nombre de prélèvements positifs diminue-t-il d’année en année tout en conservant un taux élevé de prélèvements soumis à travers le pays ?","Vous ne devez répondre “Oui” que s’il existe un système effectif de surveillance en place à travers tout le pays.",null,{"$f":"IFERROR(INDEX('Data coll & an'!$F$5:$F$50,MATCH($C18,'Data coll & an'!$A$5:$A$50,0)),IFERROR(INDEX('Prev & Ctrl'!$F$5:$F$50,MATCH($C18,'Prev & Ctrl'!$A$5:$A$50,0)),IFERROR(INDEX('Lab dx'!$F$5:$F$50,MATCH($C18,'Lab dx'!$A$5:$A$50,0)),IFERROR(INDEX('Dog popn'!$F$5:$F$50,MATCH($C18,'Dog popn'!$A$5:$A$50,0)),IFERROR(INDEX(IEC!$F$5:$F$50,MATCH($C18,IEC!$A$5:$A$50,0)),IFERROR(INDEX('Cross-cutting issues'!$F$5:$F$50,MATCH($C18,'Cross-cutting issues'!$A$5:$A$50,0)),IFERROR(INDEX(Legislation!$F$5:$F$50,MATCH($C18,Legislation!$A$5:$A$50,0)),\"\")))))))","v":0},{"$f":"IFERROR(INDEX('Data coll & an'!$G$5:$G$50,MATCH($C18,'Data coll & an'!$A$5:$A$50,0)),IFERROR(INDEX('Prev & Ctrl'!$G$5:$G$50,MATCH($C18,'Prev & Ctrl'!$A$5:$A$50,0)),IFERROR(INDEX('Lab dx'!$G$5:$G$50,MATCH($C18,'Lab dx'!$A$5:$A$50,0)),IFERROR(INDEX('Dog popn'!$G$5:$G$50,MATCH($C18,'Dog popn'!$A$5:$A$50,0)),IFERROR(INDEX(IEC!$G$5:$G$50,MATCH($C18,IEC!$A$5:$A$50,0)),IFERROR(INDEX('Cross-cutting issues'!$G$5:$G$50,MATCH($C18,'Cross-cutting issues'!$A$5:$A$50,0)),IFERROR(INDEX(Legislation!$G$5:$G$50,MATCH($C18,Legislation!$A$5:$A$50,0)),\"\")))))))","v":0},null,null,null,null,null,null,null,null,null,null,"• Compiler toutes les données de surveillance de la rage animale du pays ;\n• Calculer le nombre de prélèvements positifs pour la rage par mois ou par an ;\n• Visualiser les données et s'assurer qu'une tendance à la baisse est observée dans le nombre de prélèvements positifs alors que le nombre de prélèvements soumis au diagnostic de la rage reste élevé.",null,"Ministère de l’agriculture",7,"• Des rapports annuels permettant de suivre l'évolution des prélèvements d'échantillons positifs pour la rage, tout en maintenant un taux élevé de soumission de prélèvements.\n• Représentations visuelles des données montrant une diminution des cas de rage positifs.","","","","Observer une diminution des prélèvements positifs pour la rage tout en maintenant un taux élevé de soumission de prélèvements à travers tout le pays. "]
[18,"DCA","DCA-Sur-3-18","Surveillance",3,18,"Tandis que votre pays se rapproche de l’élimination de la rage humaine, avez-vous rassemblé des preuves épidémiologiques de zones exemptes de rage humaine transmise par les chiens ?"," ","KEY",{"$f":"IFERROR(INDEX('Data coll & an'!$F$5:$F$50,MATCH($C19,'Data coll & an'!$A$5:$A$50,0)),IFERROR(INDEX('Prev & Ctrl'!$F$5:$F$50,MATCH($C19,'Prev & Ctrl'!$A$5:$A$50,0)),IFERROR(INDEX('Lab dx'!$F$5:$F$50,MATCH($C19,'Lab dx'!$A$5:$A$50,0)),IFERROR(INDEX('Dog popn'!$F$5:$F$50,MATCH($C19,'Dog popn'!$A$5:$A$50,0)),IFERROR(INDEX(IEC!$F$5:$F$50,MATCH($C19,IEC!$A$5:$A$50,0)),IFERROR(INDEX('Cross-cutting issues'!$F$5:$F$50,MATCH($C19,'Cross-cutting issues'!$A$5:$A$50,0)),IFERROR(INDEX(Legislation!$F$5:$F$50,MATCH($C19,Legislation!$A$5:$A$50,0)),\"\")))))))","v":0},{"$f":"IFERROR(INDEX('Data coll & an'!$G$5:$G$50,MATCH($C19,'Data coll & an'!$A$5:$A$50,0)),IFERROR(INDEX('Prev & Ctrl'!$G$5:$G$50,MATCH($C19,'Prev & Ctrl'!$A$5:$A$50,0)),IFERROR(INDEX('Lab dx'!$G$5:$G$50,MATCH($C19,'Lab dx'!$A$5:$A$50,0)),IFERROR(INDEX('Dog popn'!$G$5:$G$50,MATCH($C19,'Dog popn'!$A$5:$A$50,0)),IFERROR(INDEX(IEC!$G$5:$G$50,MATCH($C19,IEC!$A$5:$A$50,0)),IFERROR(INDEX('Cross-cutting issues'!$G$5:$G$50,MATCH($C19,'Cross-cutting issues'!$A$5:$A$50,0)),IFERROR(INDEX(Legislation!$G$5:$G$50,MATCH($C19,Legislation!$A$5:$A$50,0)),\"\")))))))","v":0},null,null,null,null,null,null,null,null,null,null,"• Compiler toutes les données épidémiologiques pertinentes relatives à la rage humaine dans la/les zone(s) concernée(s) (par exemple, dossiers de laboratoire sur les cas humains confirmés positifs et négatifs pour la rage, dossiers cliniques des patients présentant des symptômes encéphalitiques, dossiers des cas de morsure et la fourniture de PPE dans les établissements de santé de la/des zone(s) concernée(s)). \n• Rédiger un rapport sur la base des données épidémiologiques ;\n• Consulter des experts internationaux en la matière pour examiner et confirmer vos conclusions.","Up-to-date epidemiological evidence based on an effective national surveillance system with reliable laboratory diagnosis and case investigation is collected and available to provide evidence of a dog-transmitted human rabies free zones (no human cases for 2 years). ","Ministère de l’agriculture",9,"• Rapports fournissant des preuves épidémiologiques complètes du statut de zone indemne de rage humaine transmise par les chiens dans des zones géographiques définies.\n• Confirmation par des experts internationaux des déclarations de zones indemnes de rage.","","","","À mesure que le pays se rapproche de l'élimination de la rage humaine, rassembler les preuves épidémiologiques nécessaires pour déclarer des zones exemptes de rage humaine transmise par les chiens."]
[19,"DCA","DCA-Sur-3-19","Surveillance",3,19,"Avez-vous rassemblé des preuves épidémiologiques de zones où les cas de rage animale causées par le variant de rage canine ont été absents pendant une période d’au moins 2 ans ?","Vous pouvez répondre “Oui” s’il existe un système de surveillance efficace en place qui n’a détecté que des prélèvements négatifs pour la rage.","KEY",{"$f":"IFERROR(INDEX('Data coll & an'!$F$5:$F$50,MATCH($C20,'Data coll & an'!$A$5:$A$50,0)),IFERROR(INDEX('Prev & Ctrl'!$F$5:$F$50,MATCH($C20,'Prev & Ctrl'!$A$5:$A$50,0)),IFERROR(INDEX('Lab dx'!$F$5:$F$50,MATCH($C20,'Lab dx'!$A$5:$A$50,0)),IFERROR(INDEX('Dog popn'!$F$5:$F$50,MATCH($C20,'Dog popn'!$A$5:$A$50,0)),IFERROR(INDEX(IEC!$F$5:$F$50,MATCH($C20,IEC!$A$5:$A$50,0)),IFERROR(INDEX('Cross-cutting issues'!$F$5:$F$50,MATCH($C20,'Cross-cutting issues'!$A$5:$A$50,0)),IFERROR(INDEX(Legislation!$F$5:$F$50,MATCH($C20,Legislation!$A$5:$A$50,0)),\"\")))))))","v":0},{"$f":"IFERROR(INDEX('Data coll & an'!$G$5:$G$50,MATCH($C20,'Data coll & an'!$A$5:$A$50,0)),IFERROR(INDEX('Prev & Ctrl'!$G$5:$G$50,MATCH($C20,'Prev & Ctrl'!$A$5:$A$50,0)),IFERROR(INDEX('Lab dx'!$G$5:$G$50,MATCH($C20,'Lab dx'!$A$5:$A$50,0)),IFERROR(INDEX('Dog popn'!$G$5:$G$50,MATCH($C20,'Dog popn'!$A$5:$A$50,0)),IFERROR(INDEX(IEC!$G$5:$G$50,MATCH($C20,IEC!$A$5:$A$50,0)),IFERROR(INDEX('Cross-cutting issues'!$G$5:$G$50,MATCH($C20,'Cross-cutting issues'!$A$5:$A$50,0)),IFERROR(INDEX(Legislation!$G$5:$G$50,MATCH($C20,Legislation!$A$5:$A$50,0)),\"\")))))))","v":0},"5.4.17 Keeping an area rabies-free","http://caninerabiesblueprint.org/5-4-17-Our-programme-has-been",null,null,null,null,null,null,null,null,"• Assurer la collecte continue de prélèvements et le diagnostic de routine de la rage dans la ou les zones identifiées ;\n• Compiler des rapports épidémiologiques avec des données de surveillance actualisées montrant l'absence du variant de la rage canine ;\n• Identifier les zones où les données épidémiologiques indiquent l'absence de la variante de la rage canine depuis 2 ans ;\n• Consulter des experts internationaux en la matière pour examiner et confirmer vos résultats.","Zones free from animal rabies cases caused by the canine rabies variant have been identified based on sound epidemiological data;","Ministère de l’agriculture",9,"• Rapport officiel contenant des éléments clairs expliquant pourquoi le statut de zone indemne de rage transmise par les chiens est déclaré.\n•  Confirmation par des experts internationaux des informations contenues dans le rapport officiel.","","","","Identifier les zones potentiellement exemptes de rage où les cas de rage animale (causés par le variant de la rage canine) sont absents depuis au moins deux ans."]
[20,"DCA","DCA-Sur-4-20","Surveillance",4,20,"Tandis que votre pays se rapproche de l’élimination de la rage canine, les données épidémiologiques issues de la surveillance régulière de tous les animaux (non seulement les chiens) ont-elles été utilisées pour affiner la stratégie nationale de lutte contre la rage ? ","Par exemple bêtes de somme, bétail et faune sauvage. ","KEY",{"$f":"IFERROR(INDEX('Data coll & an'!$F$5:$F$50,MATCH($C21,'Data coll & an'!$A$5:$A$50,0)),IFERROR(INDEX('Prev & Ctrl'!$F$5:$F$50,MATCH($C21,'Prev & Ctrl'!$A$5:$A$50,0)),IFERROR(INDEX('Lab dx'!$F$5:$F$50,MATCH($C21,'Lab dx'!$A$5:$A$50,0)),IFERROR(INDEX('Dog popn'!$F$5:$F$50,MATCH($C21,'Dog popn'!$A$5:$A$50,0)),IFERROR(INDEX(IEC!$F$5:$F$50,MATCH($C21,IEC!$A$5:$A$50,0)),IFERROR(INDEX('Cross-cutting issues'!$F$5:$F$50,MATCH($C21,'Cross-cutting issues'!$A$5:$A$50,0)),IFERROR(INDEX(Legislation!$F$5:$F$50,MATCH($C21,Legislation!$A$5:$A$50,0)),\"\")))))))","v":0},{"$f":"IFERROR(INDEX('Data coll & an'!$G$5:$G$50,MATCH($C21,'Data coll & an'!$A$5:$A$50,0)),IFERROR(INDEX('Prev & Ctrl'!$G$5:$G$50,MATCH($C21,'Prev & Ctrl'!$A$5:$A$50,0)),IFERROR(INDEX('Lab dx'!$G$5:$G$50,MATCH($C21,'Lab dx'!$A$5:$A$50,0)),IFERROR(INDEX('Dog popn'!$G$5:$G$50,MATCH($C21,'Dog popn'!$A$5:$A$50,0)),IFERROR(INDEX(IEC!$G$5:$G$50,MATCH($C21,IEC!$A$5:$A$50,0)),IFERROR(INDEX('Cross-cutting issues'!$G$5:$G$50,MATCH($C21,'Cross-cutting issues'!$A$5:$A$50,0)),IFERROR(INDEX(Legislation!$G$5:$G$50,MATCH($C21,Legislation!$A$5:$A$50,0)),\"\")))))))","v":0},"WHO International Health Regulations","http://caninerabiesblueprint.org/WHO-International-Health",null,null,null,null,null,null,null,null,"• Compiler et examiner les données épidémiologiques basées sur la surveillance d'autres espèces animales, y compris de la faune sauvage ;\n• Identifier les zones où la rage canine est encore présente (points chauds) ;\n• Identifier d'autres espèces réservoirs possibles (par exemple, les carnivores de la faune sauvage) ;\n• Identifier les méthodes de vaccination et de contrôle de la rage chez les espèces réservoirs supplémentaires identifiées ;\n• Rédiger un rapport, comprenant le budget et les ressources nécessaires pour lutter contre la rage chez les espèces réservoirs supplémentaires, avec les conclusions et les recommandations ;\n• Partager le rapport avec le groupe de travail national.. \n• Mettre à jour le plan stratégique national en tenant compte des zones de rage canine restantes et de l'affectation des ressources à ces zones et aux zones tampons environnantes, ainsi qu'en incluant des mesures de contrôle pour les espèces sauvages supplémentaires sur la base du rapport fourni. \n• Approuver à nouveau le plan stratégique national révisé.","National rabies control and elimination strategy refined to focus on final steps towards elimination of dog rabies (strategic vaccination), the situation of rabies in wildlife and the prevention of re-introduction of rabies into the human and dog population. ","Groupe multisectoriel",10,"• Rapports épidémiologiques actualisés identifiant les points chauds de la rage canine et les autres espèces réservoirs.\n• Rapport et budget indiquant les modifications à apporter au plan stratégique national sur la base des rapports épidémiologiques.\n• Plan stratégique national révisé et approuvé à nouveau, reflétant les nouvelles mesures de contrôle.","","","","À mesure que le pays se rapproche de l'élimination de la rage canine, affiner la stratégie nationale de lutte contre la rage en utilisant les données épidémiologiques issues de la surveillance de routine de tous les animaux (et pas seulement des chiens)."]
[21,"DCA","DCA-Sur-5-21","Surveillance",5,21,"L’absence de rage transmise par les chiens dans tout le pays a-t-elle été vérifiée par l’absence de cas de variant canin durant une période d’au moins 2 ans ? "," ","KEY",{"$f":"IFERROR(INDEX('Data coll & an'!$F$5:$F$50,MATCH($C22,'Data coll & an'!$A$5:$A$50,0)),IFERROR(INDEX('Prev & Ctrl'!$F$5:$F$50,MATCH($C22,'Prev & Ctrl'!$A$5:$A$50,0)),IFERROR(INDEX('Lab dx'!$F$5:$F$50,MATCH($C22,'Lab dx'!$A$5:$A$50,0)),IFERROR(INDEX('Dog popn'!$F$5:$F$50,MATCH($C22,'Dog popn'!$A$5:$A$50,0)),IFERROR(INDEX(IEC!$F$5:$F$50,MATCH($C22,IEC!$A$5:$A$50,0)),IFERROR(INDEX('Cross-cutting issues'!$F$5:$F$50,MATCH($C22,'Cross-cutting issues'!$A$5:$A$50,0)),IFERROR(INDEX(Legislation!$F$5:$F$50,MATCH($C22,Legislation!$A$5:$A$50,0)),\"\")))))))","v":0},{"$f":"IFERROR(INDEX('Data coll & an'!$G$5:$G$50,MATCH($C22,'Data coll & an'!$A$5:$A$50,0)),IFERROR(INDEX('Prev & Ctrl'!$G$5:$G$50,MATCH($C22,'Prev & Ctrl'!$A$5:$A$50,0)),IFERROR(INDEX('Lab dx'!$G$5:$G$50,MATCH($C22,'Lab dx'!$A$5:$A$50,0)),IFERROR(INDEX('Dog popn'!$G$5:$G$50,MATCH($C22,'Dog popn'!$A$5:$A$50,0)),IFERROR(INDEX(IEC!$G$5:$G$50,MATCH($C22,IEC!$A$5:$A$50,0)),IFERROR(INDEX('Cross-cutting issues'!$G$5:$G$50,MATCH($C22,'Cross-cutting issues'!$A$5:$A$50,0)),IFERROR(INDEX(Legislation!$G$5:$G$50,MATCH($C22,Legislation!$A$5:$A$50,0)),\"\")))))))","v":0},"5.4.17 Keeping an area rabies-free","http://caninerabiesblueprint.org/5-4-17-Our-programme-has-been",null,null,null,null,null,null,null,null,"• Assurer la collecte continue de prélèvements et le diagnostic de routine de la rage dans l'ensemble du pays sur la base d'une surveillance active et passive rigoureuse ;\n• Compiler des rapports épidémiologiques avec des données de surveillance actualisées montrant l'absence de la variante de la rage canine ;\n• Consulter des experts internationaux en la matière pour examiner et confirmer vos résultats.","Epidemiological report providing evidence supporting the notion of freedom from the canine variatn fo rabeis for a 2 year period in line with the OIE standards for self-declaration of freedom;","Ministère de l’agriculture",13,"• Rapport épidémiologique national confirmant deux années d'absence de rage canine.\n• Vérification indépendante et approbation par des experts internationaux de la rage.","","","","Vérifier que l'ensemble du pays est exempt de la variante canine de la rage depuis au moins deux ans."]
[22,"PCO","PCO-Vac-1-1","Vaccins humains",1,1,"Des vaccins pour la prophylaxie de la rage humaine sont-ils disponibles dans le pays ?","Vous pouvez répondre “Oui” s’il y a des vaccins antirabiques humains dans le pays, quel que soient le nombre de doses ou leur distribution.","KEY",{"$f":"IFERROR(INDEX('Data coll & an'!$F$5:$F$50,MATCH($C23,'Data coll & an'!$A$5:$A$50,0)),IFERROR(INDEX('Prev & Ctrl'!$F$5:$F$50,MATCH($C23,'Prev & Ctrl'!$A$5:$A$50,0)),IFERROR(INDEX('Lab dx'!$F$5:$F$50,MATCH($C23,'Lab dx'!$A$5:$A$50,0)),IFERROR(INDEX('Dog popn'!$F$5:$F$50,MATCH($C23,'Dog popn'!$A$5:$A$50,0)),IFERROR(INDEX(IEC!$F$5:$F$50,MATCH($C23,IEC!$A$5:$A$50,0)),IFERROR(INDEX('Cross-cutting issues'!$F$5:$F$50,MATCH($C23,'Cross-cutting issues'!$A$5:$A$50,0)),IFERROR(INDEX(Legislation!$F$5:$F$50,MATCH($C23,Legislation!$A$5:$A$50,0)),\"\")))))))","v":1},{"$f":"IFERROR(INDEX('Data coll & an'!$G$5:$G$50,MATCH($C23,'Data coll & an'!$A$5:$A$50,0)),IFERROR(INDEX('Prev & Ctrl'!$G$5:$G$50,MATCH($C23,'Prev & Ctrl'!$A$5:$A$50,0)),IFERROR(INDEX('Lab dx'!$G$5:$G$50,MATCH($C23,'Lab dx'!$A$5:$A$50,0)),IFERROR(INDEX('Dog popn'!$G$5:$G$50,MATCH($C23,'Dog popn'!$A$5:$A$50,0)),IFERROR(INDEX(IEC!$G$5:$G$50,MATCH($C23,IEC!$A$5:$A$50,0)),IFERROR(INDEX('Cross-cutting issues'!$G$5:$G$50,MATCH($C23,'Cross-cutting issues'!$A$5:$A$50,0)),IFERROR(INDEX(Legislation!$G$5:$G$50,MATCH($C23,Legislation!$A$5:$A$50,0)),\"\")))))))","v":0},"5.5.3-human-biologics","http://caninerabiesblueprint.org/5-5-3-What-do-we-need-to-know?lang=en","Human-vaccination-supply","http://caninerabiesblueprint.org/Rabies-blueprint-human-vaccination?lang=en",null,null,null,null,null,null,"• Obtenir des fonds pour l'achat de vaccins contre la rage humaine ;\n• Acheter et importer des vaccins de haute qualité sur culture cellulaire en utilisant les fonds alloués ;\n• Identifier un (ou plusieurs) établissement(s) de soins de santé disposant du personnel et de l'infrastructure nécessaires pour stocker et administrer le vaccin antirabique ;\n• Distribuer le vaccin antirabique humain aux établissements de santé identifiés.","Natioanlly licenced human rabies prophylaxis is accessible in one or more parts of the country","Ministère de la santé",1,"• Financement assuré pour les vaccins antirabiques humains. \n• Dossiers d'acquisition de vaccins de haute qualité issus de cultures cellulaires.\n• Rapport indiquant les établissements de santé disposant des capacités de stockage et d'administration appropriées.\n• Dossiers de distribution montrant la livraison des vaccins aux établissements de santé identifiés.","","","","Fournir des vaccins pour la prophylaxie de la rage humaine dans au moins une région du pays"]
[23,"PCO","PCO-Vac-1-2","Vaccins humains",1,2,"Est-il possible d'offrir la Prophylaxie préexposition  aux professionnels à risque dans au moins un site de projet pilote ?","Un professionnel à risque travaillant sur un projet pilote peut-il avoir accès à une prophylaxie antirabique ? Cela ne signifie pas que la PrPE doit être accessible dans tout le pays, mais elle doit être disponible au moins sur un des sites du projet.","KEY",{"$f":"IFERROR(INDEX('Data coll & an'!$F$5:$F$50,MATCH($C24,'Data coll & an'!$A$5:$A$50,0)),IFERROR(INDEX('Prev & Ctrl'!$F$5:$F$50,MATCH($C24,'Prev & Ctrl'!$A$5:$A$50,0)),IFERROR(INDEX('Lab dx'!$F$5:$F$50,MATCH($C24,'Lab dx'!$A$5:$A$50,0)),IFERROR(INDEX('Dog popn'!$F$5:$F$50,MATCH($C24,'Dog popn'!$A$5:$A$50,0)),IFERROR(INDEX(IEC!$F$5:$F$50,MATCH($C24,IEC!$A$5:$A$50,0)),IFERROR(INDEX('Cross-cutting issues'!$F$5:$F$50,MATCH($C24,'Cross-cutting issues'!$A$5:$A$50,0)),IFERROR(INDEX(Legislation!$F$5:$F$50,MATCH($C24,Legislation!$A$5:$A$50,0)),\"\")))))))","v":1},{"$f":"IFERROR(INDEX('Data coll & an'!$G$5:$G$50,MATCH($C24,'Data coll & an'!$A$5:$A$50,0)),IFERROR(INDEX('Prev & Ctrl'!$G$5:$G$50,MATCH($C24,'Prev & Ctrl'!$A$5:$A$50,0)),IFERROR(INDEX('Lab dx'!$G$5:$G$50,MATCH($C24,'Lab dx'!$A$5:$A$50,0)),IFERROR(INDEX('Dog popn'!$G$5:$G$50,MATCH($C24,'Dog popn'!$A$5:$A$50,0)),IFERROR(INDEX(IEC!$G$5:$G$50,MATCH($C24,IEC!$A$5:$A$50,0)),IFERROR(INDEX('Cross-cutting issues'!$G$5:$G$50,MATCH($C24,'Cross-cutting issues'!$A$5:$A$50,0)),IFERROR(INDEX(Legislation!$G$5:$G$50,MATCH($C24,Legislation!$A$5:$A$50,0)),\"\")))))))","v":0},null,null,null,null,null,null,null,null,null,null,"• Identifier au moins une zone où les professionnels sont exposés au risque de rage (campagnes de vaccination, laboratoires, etc.) ;\n• Identifier le nombre de professionnels dans la zone qui ont besoin d'une série  complète de PrEP contre la rage ;\n• Identifier le nombre de professionnels dans la région qui ont besoin d'une vaccination de rappel ;\n• Veiller à ce que les établissements de santé voisins disposent de suffisamment de vaccins pour répondre aux besoins des professionnels de la région ;\n• S'assurer que le personnel des établissements de santé a reçu une formation adéquate pour administrer efficacement la PrEP.","High-risk professionals in target areas have access to nationally licenced PrEP","Ministère de la santé",2,"• Professionnels à risque identifiés et documentés nécessitant une PrEP et des vaccins de rappel.\n• Preuve de l'existence d'un approvisionnement suffisant en vaccins et d'un personnel formé dans les établissements de santé de la zone cible.","","","","Développer la capacité à garantir que les professionnels à risque d'au moins une région puissent recevoir la PrEP."]
[24,"PCO","PCO-Vac-2-3","Vaccins humains",2,3,"Avez-vous procédé à des évaluations ou à des enquêtes pour déterminer comment les vaccins contre la rage humaine devraient être distribués dans le pays ?","Vous devez répondre “Oui” si une évaluation a été réalisée en ce qui concerne la prophylaxie post-exposition et pré-exposition.  Il ne s'agit pas nécessairement d'une évaluation formelle, mais de décisions fondées sur des données. Par exemple, la distribution de vaccins sur la base du nombre de cas de morsures par chaque établissement de santé au cours de l'année précédente.",null,{"$f":"IFERROR(INDEX('Data coll & an'!$F$5:$F$50,MATCH($C25,'Data coll & an'!$A$5:$A$50,0)),IFERROR(INDEX('Prev & Ctrl'!$F$5:$F$50,MATCH($C25,'Prev & Ctrl'!$A$5:$A$50,0)),IFERROR(INDEX('Lab dx'!$F$5:$F$50,MATCH($C25,'Lab dx'!$A$5:$A$50,0)),IFERROR(INDEX('Dog popn'!$F$5:$F$50,MATCH($C25,'Dog popn'!$A$5:$A$50,0)),IFERROR(INDEX(IEC!$F$5:$F$50,MATCH($C25,IEC!$A$5:$A$50,0)),IFERROR(INDEX('Cross-cutting issues'!$F$5:$F$50,MATCH($C25,'Cross-cutting issues'!$A$5:$A$50,0)),IFERROR(INDEX(Legislation!$F$5:$F$50,MATCH($C25,Legislation!$A$5:$A$50,0)),\"\")))))))","v":1},{"$f":"IFERROR(INDEX('Data coll & an'!$G$5:$G$50,MATCH($C25,'Data coll & an'!$A$5:$A$50,0)),IFERROR(INDEX('Prev & Ctrl'!$G$5:$G$50,MATCH($C25,'Prev & Ctrl'!$A$5:$A$50,0)),IFERROR(INDEX('Lab dx'!$G$5:$G$50,MATCH($C25,'Lab dx'!$A$5:$A$50,0)),IFERROR(INDEX('Dog popn'!$G$5:$G$50,MATCH($C25,'Dog popn'!$A$5:$A$50,0)),IFERROR(INDEX(IEC!$G$5:$G$50,MATCH($C25,IEC!$A$5:$A$50,0)),IFERROR(INDEX('Cross-cutting issues'!$G$5:$G$50,MATCH($C25,'Cross-cutting issues'!$A$5:$A$50,0)),IFERROR(INDEX(Legislation!$G$5:$G$50,MATCH($C25,Legislation!$A$5:$A$50,0)),\"\")))))))","v":0},"3.1-Infrastructure","http://caninerabiesblueprint.org/3-1-Infrastructure?lang=en",null,null,null,null,null,null,null,null,"• Dresser une liste de tous les établissements de santé qui seraient en mesure de stocker et d'administrer le vaccin antirabique et les immunoglobulines antirabiques (RIG);\n• Déterminer combien de personnes, en moyenne, arrivent chaque mois dans chaque établissement de santé et ont besoin d'une PPE antirabique (par exemple, en utilisant les données sur les cas de morsure).\n• Calculer la quantité approximative de vaccin antirabique et de RIG nécessaire à chaque établissement de santé par an en utilisant le régime approuvé par le gouvernement pour la vaccination antirabique.\n• Agréger les données de tous les établissements de santé étudiés pour obtenir une vue d'ensemble nationale.","Report compiled on the health facilities throughout the country that have access to rabies PEP and PrEP;","Ministère de la santé",1,"• Inventaire national des établissements de santé capables de stocker et d'administrer des vaccins antirabiques et des RIG.\n• Rapport d'analyse des données sur la demande de vaccins par établissement de santé sur la base des registres de cas de morsures.\n• Aperçu national complet des besoins annuels en vaccins et en immunoglobulines antirabiques.","","","","Entreprendre une évaluation ou une enquête pour déterminer comment les vaccins contre la rage humaine devraient être distribués dans le pays."]
[25,"PCO","PCO-Vac-2-4","Vaccins humains",2,4,"Les vaccins antirabiques humains préqualifiés par l'OMS (c'est-à-dire de haute qualité) sont-ils disponibles et accessibles dans la plupart des régions du pays ?"," ","KEY",{"$f":"IFERROR(INDEX('Data coll & an'!$F$5:$F$50,MATCH($C26,'Data coll & an'!$A$5:$A$50,0)),IFERROR(INDEX('Prev & Ctrl'!$F$5:$F$50,MATCH($C26,'Prev & Ctrl'!$A$5:$A$50,0)),IFERROR(INDEX('Lab dx'!$F$5:$F$50,MATCH($C26,'Lab dx'!$A$5:$A$50,0)),IFERROR(INDEX('Dog popn'!$F$5:$F$50,MATCH($C26,'Dog popn'!$A$5:$A$50,0)),IFERROR(INDEX(IEC!$F$5:$F$50,MATCH($C26,IEC!$A$5:$A$50,0)),IFERROR(INDEX('Cross-cutting issues'!$F$5:$F$50,MATCH($C26,'Cross-cutting issues'!$A$5:$A$50,0)),IFERROR(INDEX(Legislation!$F$5:$F$50,MATCH($C26,Legislation!$A$5:$A$50,0)),\"\")))))))","v":1},{"$f":"IFERROR(INDEX('Data coll & an'!$G$5:$G$50,MATCH($C26,'Data coll & an'!$A$5:$A$50,0)),IFERROR(INDEX('Prev & Ctrl'!$G$5:$G$50,MATCH($C26,'Prev & Ctrl'!$A$5:$A$50,0)),IFERROR(INDEX('Lab dx'!$G$5:$G$50,MATCH($C26,'Lab dx'!$A$5:$A$50,0)),IFERROR(INDEX('Dog popn'!$G$5:$G$50,MATCH($C26,'Dog popn'!$A$5:$A$50,0)),IFERROR(INDEX(IEC!$G$5:$G$50,MATCH($C26,IEC!$A$5:$A$50,0)),IFERROR(INDEX('Cross-cutting issues'!$G$5:$G$50,MATCH($C26,'Cross-cutting issues'!$A$5:$A$50,0)),IFERROR(INDEX(Legislation!$G$5:$G$50,MATCH($C26,Legislation!$A$5:$A$50,0)),\"\")))))))","v":0},"WHO expert consultation on rabies","http://caninerabiesblueprint.org/WHO-expert-consultation-on-rabies","WHO vaccines position papers","http://www.who.int/immunization/policy/position_papers/rabies/en/",null,null,null,null,null,null,"• Dresser une liste de tous les établissements de santé susceptibles de stocker et d'administrer le vaccin antirabique ;\n• Déterminer la disponibilité du vaccin dans chaque établissement de santé.\n• Déterminer ce qui limite le stockage et l'utilisation du vaccin antirabique dans chaque établissement de santé, notamment : la formation, l'infrastructure, la capacité de stockage, la disponibilité des vaccins préqualifiés par l'OMS;\n• Rédiger un rapport basé sur l'évaluation des besoins, comprenant des recommandations ;\n• Élaborer un plan pour remédier aux lacunes constatées dans environ 70 % des établissements du pays ;\n• Élaborer un budget et obtenir le financement nécessaire à la mise en œuvre du plan ;\n• Mettre en œuvre le plan de manière à ce que les vaccins préqualifiés par l'OMS soient disponibles dans environ 70 % des établissements du pays.","WHO pre-qualified human rabies vaccines are available and accessible in most parts of the country","Ministère de la santé",6,"• Rapport d'évaluation des besoins identifiant les limites en matière d'infrastructure et de formation dans les établissements de soins de santé, avec des recommandations.\n• Élaboration d'un plan visant à combler les lacunes, qui est mis en œuvre dans environ 70 % des établissements de santé humaine du pays.\n• Documentation d'un accès accru aux vaccins préqualifiés par l'OMS dans la majeure partie du pays.","","","","Veiller à ce que les vaccins antirabiques humains préqualifiés par l'OMS (c'est-à-dire de haute qualité) soient disponibles et accessibles dans la plupart des régions du pays."]
[26,"PCO","PCO-Vac-2-5","Vaccins humains",2,5,"La prophylaxie post-exposition est-elle gratuite (ou au moins partiellement subventionnée) pour tout individu potentiellement exposé dans le pays ?"," ",null,{"$f":"IFERROR(INDEX('Data coll & an'!$F$5:$F$50,MATCH($C27,'Data coll & an'!$A$5:$A$50,0)),IFERROR(INDEX('Prev & Ctrl'!$F$5:$F$50,MATCH($C27,'Prev & Ctrl'!$A$5:$A$50,0)),IFERROR(INDEX('Lab dx'!$F$5:$F$50,MATCH($C27,'Lab dx'!$A$5:$A$50,0)),IFERROR(INDEX('Dog popn'!$F$5:$F$50,MATCH($C27,'Dog popn'!$A$5:$A$50,0)),IFERROR(INDEX(IEC!$F$5:$F$50,MATCH($C27,IEC!$A$5:$A$50,0)),IFERROR(INDEX('Cross-cutting issues'!$F$5:$F$50,MATCH($C27,'Cross-cutting issues'!$A$5:$A$50,0)),IFERROR(INDEX(Legislation!$F$5:$F$50,MATCH($C27,Legislation!$A$5:$A$50,0)),\"\")))))))","v":0},{"$f":"IFERROR(INDEX('Data coll & an'!$G$5:$G$50,MATCH($C27,'Data coll & an'!$A$5:$A$50,0)),IFERROR(INDEX('Prev & Ctrl'!$G$5:$G$50,MATCH($C27,'Prev & Ctrl'!$A$5:$A$50,0)),IFERROR(INDEX('Lab dx'!$G$5:$G$50,MATCH($C27,'Lab dx'!$A$5:$A$50,0)),IFERROR(INDEX('Dog popn'!$G$5:$G$50,MATCH($C27,'Dog popn'!$A$5:$A$50,0)),IFERROR(INDEX(IEC!$G$5:$G$50,MATCH($C27,IEC!$A$5:$A$50,0)),IFERROR(INDEX('Cross-cutting issues'!$G$5:$G$50,MATCH($C27,'Cross-cutting issues'!$A$5:$A$50,0)),IFERROR(INDEX(Legislation!$G$5:$G$50,MATCH($C27,Legislation!$A$5:$A$50,0)),\"\")))))))","v":0},null,null,null,null,null,null,null,null,null,null,"• Procéder à une évaluation des besoins afin de déterminer le nombre de personnes ayant besoin de PPE.\n• Discuter avec les décideurs politiques, les agences gouvernementales et les principales parties prenantes pour donner la priorité à l'accessibilité de la PPE.\n• Élaborer une politique nationale ou un cadre législatif garantissant l'inclusion de la PPE dans les programmes de santé publique.\n• Plaider pour l'inclusion de la PPE dans les régimes nationaux d'assurance maladie ou les programmes de protection sociale.\n• Obtenir un financement par le biais des budgets de santé des gouvernements, des organisations donatrices ou des agences de santé internationales (par exemple, l'OMS, le Fonds mondial).\n• Déterminer les mécanismes de partage des coûts si une subvention totale n'est pas possible (par exemple, le gouvernement couvre 80 %, le patient paie 20 %).\n• Identifier des partenariats avec des sociétés pharmaceutiques pour obtenir des prix réduits ou des accords d'achat en gros.\n• Établir des lignes directrices claires pour l'éligibilité, la prescription et la distribution de la PPE.\n• Mettre en place un mécanisme de notification pour suivre l'efficacité et la portée du programme.\n• Procéder à des examens et à des audits périodiques afin de garantir la conformité et d'identifier les domaines à améliorer.\n• Recueillir les réactions des bénéficiaires pour évaluer l'accessibilité et lever les obstacles à l'utilisation du programme.",null,"Ministère de la santé",6,"• Évaluation des besoins pour déterminer la demande de PPE et les lacunes en matière d'accessibilité.\n• Cadre politique garantissant la disponibilité de la PPE dans les programmes de santé publique.\n• Documentation du financement assuré par les budgets gouvernementaux ou les agences internationales.\n• Lignes directrices concernant l'éligibilité, la prescription et la distribution de la PPE. \n• Rapport de suivi et d'évaluation sur les difficultés d'accès à la PPE, les implications financières et les modifications proposées pour améliorer l'acceptation et la durabilité.\n• Examens et audits sur la conformité de la PPE subventionnée.\n• Rapports sur les obstacles à l'adoption du programme.","","","","Veiller à ce que la PPE soit gratuite ou partiellement subventionnée pour toute personne potentiellement exposée dans le pays."]
[27,"PCO","PCO-Vac-2-6","Vaccins humains",2,6,"Le gouvernement n’utilise-t-il que des vaccins antirabiques humains préqualifiés par l’OMS dans le pays ? ","Vous pouvez répondre “Oui” si les produits biologiques à usage humain qui ne sont pas préqualifiés par l’OMS (par exemple vaccins à base de tissue nerveux, vaccins de qualité médiocre) sont en voie d’élimination.",null,{"$f":"IFERROR(INDEX('Data coll & an'!$F$5:$F$50,MATCH($C28,'Data coll & an'!$A$5:$A$50,0)),IFERROR(INDEX('Prev & Ctrl'!$F$5:$F$50,MATCH($C28,'Prev & Ctrl'!$A$5:$A$50,0)),IFERROR(INDEX('Lab dx'!$F$5:$F$50,MATCH($C28,'Lab dx'!$A$5:$A$50,0)),IFERROR(INDEX('Dog popn'!$F$5:$F$50,MATCH($C28,'Dog popn'!$A$5:$A$50,0)),IFERROR(INDEX(IEC!$F$5:$F$50,MATCH($C28,IEC!$A$5:$A$50,0)),IFERROR(INDEX('Cross-cutting issues'!$F$5:$F$50,MATCH($C28,'Cross-cutting issues'!$A$5:$A$50,0)),IFERROR(INDEX(Legislation!$F$5:$F$50,MATCH($C28,Legislation!$A$5:$A$50,0)),\"\")))))))","v":0},{"$f":"IFERROR(INDEX('Data coll & an'!$G$5:$G$50,MATCH($C28,'Data coll & an'!$A$5:$A$50,0)),IFERROR(INDEX('Prev & Ctrl'!$G$5:$G$50,MATCH($C28,'Prev & Ctrl'!$A$5:$A$50,0)),IFERROR(INDEX('Lab dx'!$G$5:$G$50,MATCH($C28,'Lab dx'!$A$5:$A$50,0)),IFERROR(INDEX('Dog popn'!$G$5:$G$50,MATCH($C28,'Dog popn'!$A$5:$A$50,0)),IFERROR(INDEX(IEC!$G$5:$G$50,MATCH($C28,IEC!$A$5:$A$50,0)),IFERROR(INDEX('Cross-cutting issues'!$G$5:$G$50,MATCH($C28,'Cross-cutting issues'!$A$5:$A$50,0)),IFERROR(INDEX(Legislation!$G$5:$G$50,MATCH($C28,Legislation!$A$5:$A$50,0)),\"\")))))))","v":0},"WHO prequalified vaccines list","http://caninerabiesblueprint.org/WHO-prequalified-vaccines-list",null,null,null,null,null,null,null,null,"• Identifier toutes les marques de vaccins antirabiques humains utilisées dans les établissements de santé publics du pays ,\n• Vérifier que les marques de vaccins antirabiques humains sont préqualifiées par l'OMS ;\n• Si des marques non préqualifiées par l'OMS sont utilisées, élaborer un plan pour éliminer progressivement ces vaccins (par exemple, en veillant à n'acheter que des vaccins antirabiques humains préqualifiés par l'OMS).","Phasing out of all non-WHO-pre-qualified vaccines in the country with the eventual goal that all human rabies vaccines used in the country are WHO-pre-qualified;","Ministère de la santé",5,"• Inventaire et vérification des marques de vaccins utilisées dans les établissements de santé publics.\n• Plan et calendrier documentés pour l'élimination progressive des vaccins non préqualifiés par l'OMS.","","","","Veiller à ce que le gouvernement n'utilise que des vaccins antirabiques humains préqualifiés par l'OMS dans le pays."]
[28,"PCO","PCO-Vac-3-7","Vaccins humains",3,7,"Les vaccins préqualifiés par l’OMS ET les Immunoglobulines humaines antirabiques (RIG) sont-ils tous deux disponibles et accessibles aux personnes à haut risque et exposées dans l'ensemble du pays ?","Vous pouvez répondre “Oui” si les vaccins ET les RIG sont tous deux faciles à obtenir n’importe où dans le pays. ","KEY",{"$f":"IFERROR(INDEX('Data coll & an'!$F$5:$F$50,MATCH($C29,'Data coll & an'!$A$5:$A$50,0)),IFERROR(INDEX('Prev & Ctrl'!$F$5:$F$50,MATCH($C29,'Prev & Ctrl'!$A$5:$A$50,0)),IFERROR(INDEX('Lab dx'!$F$5:$F$50,MATCH($C29,'Lab dx'!$A$5:$A$50,0)),IFERROR(INDEX('Dog popn'!$F$5:$F$50,MATCH($C29,'Dog popn'!$A$5:$A$50,0)),IFERROR(INDEX(IEC!$F$5:$F$50,MATCH($C29,IEC!$A$5:$A$50,0)),IFERROR(INDEX('Cross-cutting issues'!$F$5:$F$50,MATCH($C29,'Cross-cutting issues'!$A$5:$A$50,0)),IFERROR(INDEX(Legislation!$F$5:$F$50,MATCH($C29,Legislation!$A$5:$A$50,0)),\"\")))))))","v":1},{"$f":"IFERROR(INDEX('Data coll & an'!$G$5:$G$50,MATCH($C29,'Data coll & an'!$A$5:$A$50,0)),IFERROR(INDEX('Prev & Ctrl'!$G$5:$G$50,MATCH($C29,'Prev & Ctrl'!$A$5:$A$50,0)),IFERROR(INDEX('Lab dx'!$G$5:$G$50,MATCH($C29,'Lab dx'!$A$5:$A$50,0)),IFERROR(INDEX('Dog popn'!$G$5:$G$50,MATCH($C29,'Dog popn'!$A$5:$A$50,0)),IFERROR(INDEX(IEC!$G$5:$G$50,MATCH($C29,IEC!$A$5:$A$50,0)),IFERROR(INDEX('Cross-cutting issues'!$G$5:$G$50,MATCH($C29,'Cross-cutting issues'!$A$5:$A$50,0)),IFERROR(INDEX(Legislation!$G$5:$G$50,MATCH($C29,Legislation!$A$5:$A$50,0)),\"\")))))))","v":0},"WHO prequalified vaccines list","http://caninerabiesblueprint.org/WHO-prequalified-vaccines-list",null,null,null,null,null,null,null,null,"• Dresser une liste de tous les établissements de santé qui seraient en mesure de stocker et d'administrer le vaccin antirabique et les RIG ;\n• Déterminer la disponibilité du vaccin et des RIG dans chaque établissement de santé.\n• Déterminer ce qui limite le stockage et l'utilisation du vaccin antirabique et des RIG dans chaque établissement de santé, notamment : la formation, l'infrastructure, la capacité de stockage, la disponibilité des vaccins préqualifiés par l'OMS ;\n• Rédiger un rapport basé sur l'évaluation des besoins, y compris des recommandations ;\n• Élaborer un plan pour remédier aux lacunes constatées dans chaque établissement du pays ;\n• Élaborer un budget et assurer le financement de la mise en œuvre du plan ;\n• Mettre en œuvre le plan de manière à ce que les vaccins préqualifiés par l'OMS et les RIG soient disponibles dans la majorité des établissements du pays.","WHO pre-qualified human rabies vaccines and RIG are available and accessible throughout the country","Ministère de la santé",8,"• Rapport d'évaluation des besoins identifiant les facteurs limitant la disponibilité, l'infrastructure et la formation dans les établissements de soins de santé.\n• Élaboration et mise en œuvre d'un plan visant à combler les lacunes dans tous les établissements concernés.\n• Documentation de l'accès aux vaccins préqualifiés par l'OMS et aux RIG dans l'ensemble du pays.","","","","Veiller à ce que les vaccins antirabiques humains préqualifiés par l'OMS (c'est-à-dire de haute qualité) et les RIG soient disponibles et accessibles dans tout le pays."]
[29,"PCO","PCO-Vac-5-8","Vaccins humains",5,8,"Maintenant qu’il n’y a plus de rage humaine ni animale dans votre pays, des protocoles modifiés pour l’administration de la PPE dans les zones exemptes de rage ont-ils été mis en œuvre ?","La modification des protocoles comprend une meilleure évaluation du risque avant l’administration de la PPE, puisque le pays est désormais exempt de d’endémie rabique.","KEY",{"$f":"IFERROR(INDEX('Data coll & an'!$F$5:$F$50,MATCH($C30,'Data coll & an'!$A$5:$A$50,0)),IFERROR(INDEX('Prev & Ctrl'!$F$5:$F$50,MATCH($C30,'Prev & Ctrl'!$A$5:$A$50,0)),IFERROR(INDEX('Lab dx'!$F$5:$F$50,MATCH($C30,'Lab dx'!$A$5:$A$50,0)),IFERROR(INDEX('Dog popn'!$F$5:$F$50,MATCH($C30,'Dog popn'!$A$5:$A$50,0)),IFERROR(INDEX(IEC!$F$5:$F$50,MATCH($C30,IEC!$A$5:$A$50,0)),IFERROR(INDEX('Cross-cutting issues'!$F$5:$F$50,MATCH($C30,'Cross-cutting issues'!$A$5:$A$50,0)),IFERROR(INDEX(Legislation!$F$5:$F$50,MATCH($C30,Legislation!$A$5:$A$50,0)),\"\")))))))","v":0},{"$f":"IFERROR(INDEX('Data coll & an'!$G$5:$G$50,MATCH($C30,'Data coll & an'!$A$5:$A$50,0)),IFERROR(INDEX('Prev & Ctrl'!$G$5:$G$50,MATCH($C30,'Prev & Ctrl'!$A$5:$A$50,0)),IFERROR(INDEX('Lab dx'!$G$5:$G$50,MATCH($C30,'Lab dx'!$A$5:$A$50,0)),IFERROR(INDEX('Dog popn'!$G$5:$G$50,MATCH($C30,'Dog popn'!$A$5:$A$50,0)),IFERROR(INDEX(IEC!$G$5:$G$50,MATCH($C30,IEC!$A$5:$A$50,0)),IFERROR(INDEX('Cross-cutting issues'!$G$5:$G$50,MATCH($C30,'Cross-cutting issues'!$A$5:$A$50,0)),IFERROR(INDEX(Legislation!$G$5:$G$50,MATCH($C30,Legislation!$A$5:$A$50,0)),\"\")))))))","v":0},"WHO expert consultation on rabies","http://caninerabiesblueprint.org/WHO-expert-consultation-on-rabies",null,null,"Guidelines on human prophylaxis","http://caninerabiesblueprint.org/Guidelines-on-human-prophylaxis",null,null,null,null,"• Examiner les dernières lignes directrices de l'OMS et identifier les protocoles PPE les plus appropriés, y compris les stratégies d'évaluation des risques les plus strictes, applicables aux pays exempts de rage humaine et animale.\n• Déterminer les risques pour les voyageurs concernant la PPE et mettre à jour les évaluations des risques pour les rendre plus rigoureuses.\n• Modifier les POS conformément aux lignes directrices ;\n• Partager les POS mises à jour avec les professionnels concernés ;\n• Former les professionnels à l'utilisation des POS mises à jour ;\n• - Veiller à ce que les POS mises à jour soient mises en œuvre dans l'ensemble du pays.","Updated SOPs and protocols for the administration of rabies PEP in rabies-free areas have been implemented country-wide;","Ministère de la santé",10,"• Document résumant les dernières directives de l'OMS et les protocoles PPE recommandés pour les pays exempts de rage, y compris des stratégies strictes d'évaluation du risque.\n• Une stratégie d'évaluation des risques actualisée intégrant des critères plus stricts pour déterminer la nécessité d'une PPE, en particulier pour les voyageurs.\n• Procédures opérationnelles standard (POS) révisées\n• Un registre de distribution des POS aux professionnels concernés.\n• Un cadre permettant de suivre et d'évaluer le respect des procédures opérationnelles standard dans l'ensemble du pays.","","","","Maintenant que le pays est débarrassé de la rage humaine et animale, mettre en œuvre des protocoles modifiés pour l'administration de la PPE dans les zones exemptes de rage."]
[30,"PCO","PCO-Vac-1-9","Vaccins canins",1,9,"Les vaccins contre la rage canine sont-ils disponibles dans l’ensemble du pays ?","Vous pouvez répondre “Oui” s’il y a des vaccins antirabiques pour animaux dans le pays, quels que soient le nombre de doses ou leur distribution.","KEY",{"$f":"IFERROR(INDEX('Data coll & an'!$F$5:$F$50,MATCH($C31,'Data coll & an'!$A$5:$A$50,0)),IFERROR(INDEX('Prev & Ctrl'!$F$5:$F$50,MATCH($C31,'Prev & Ctrl'!$A$5:$A$50,0)),IFERROR(INDEX('Lab dx'!$F$5:$F$50,MATCH($C31,'Lab dx'!$A$5:$A$50,0)),IFERROR(INDEX('Dog popn'!$F$5:$F$50,MATCH($C31,'Dog popn'!$A$5:$A$50,0)),IFERROR(INDEX(IEC!$F$5:$F$50,MATCH($C31,IEC!$A$5:$A$50,0)),IFERROR(INDEX('Cross-cutting issues'!$F$5:$F$50,MATCH($C31,'Cross-cutting issues'!$A$5:$A$50,0)),IFERROR(INDEX(Legislation!$F$5:$F$50,MATCH($C31,Legislation!$A$5:$A$50,0)),\"\")))))))","v":1},{"$f":"IFERROR(INDEX('Data coll & an'!$G$5:$G$50,MATCH($C31,'Data coll & an'!$A$5:$A$50,0)),IFERROR(INDEX('Prev & Ctrl'!$G$5:$G$50,MATCH($C31,'Prev & Ctrl'!$A$5:$A$50,0)),IFERROR(INDEX('Lab dx'!$G$5:$G$50,MATCH($C31,'Lab dx'!$A$5:$A$50,0)),IFERROR(INDEX('Dog popn'!$G$5:$G$50,MATCH($C31,'Dog popn'!$A$5:$A$50,0)),IFERROR(INDEX(IEC!$G$5:$G$50,MATCH($C31,IEC!$A$5:$A$50,0)),IFERROR(INDEX('Cross-cutting issues'!$G$5:$G$50,MATCH($C31,'Cross-cutting issues'!$A$5:$A$50,0)),IFERROR(INDEX(Legislation!$G$5:$G$50,MATCH($C31,Legislation!$A$5:$A$50,0)),\"\")))))))","v":0},"3.1-Infrastructure","http://caninerabiesblueprint.org/3-1-Infrastructure?lang=en",null,null,null,null,null,null,null,null,"• Obtenir les fonds nécessaires à l'achat de certains vaccins antirabiques animaux ;\n• Obtenir et importer des vaccins antirabiques animaux de haute qualité sur culture cellulaire en utilisant les fonds alloués ;\n• Identifier au moins une zone disposant du personnel et des ressources nécessaires pour vacciner les chiens ;\n• Distribuer les vaccins animaux à la (aux) zone(s) identifiée (s).","Animal rabies vaccine are accessible in at least one part of the country","Ministère de l’agriculture",1,"• Dossiers d'achat de vaccins antirabiques animaux de haute qualité issus de cultures cellulaires.\n• Zones identifiées ayant la capacité de mener des campagnes de vaccination des chiens.\n• Rapport de distribution des vaccins antirabiques pour chiens dans les zones identifiées.","","","","Fournir des vaccins antirabiques pour les chiens dans au moins une région du pays."]
[31,"PCO","PCO-Vac-1-10","Vaccins canins",1,10,"La vaccination des chiens a-t-elle été débutée quelque part dans le pays ?","Vous pouvez répondre “Oui” s’il y a des campagnes de vaccination, même si elles sont petites ou localisées.",null,{"$f":"IFERROR(INDEX('Data coll & an'!$F$5:$F$50,MATCH($C32,'Data coll & an'!$A$5:$A$50,0)),IFERROR(INDEX('Prev & Ctrl'!$F$5:$F$50,MATCH($C32,'Prev & Ctrl'!$A$5:$A$50,0)),IFERROR(INDEX('Lab dx'!$F$5:$F$50,MATCH($C32,'Lab dx'!$A$5:$A$50,0)),IFERROR(INDEX('Dog popn'!$F$5:$F$50,MATCH($C32,'Dog popn'!$A$5:$A$50,0)),IFERROR(INDEX(IEC!$F$5:$F$50,MATCH($C32,IEC!$A$5:$A$50,0)),IFERROR(INDEX('Cross-cutting issues'!$F$5:$F$50,MATCH($C32,'Cross-cutting issues'!$A$5:$A$50,0)),IFERROR(INDEX(Legislation!$F$5:$F$50,MATCH($C32,Legislation!$A$5:$A$50,0)),\"\")))))))","v":1},{"$f":"IFERROR(INDEX('Data coll & an'!$G$5:$G$50,MATCH($C32,'Data coll & an'!$A$5:$A$50,0)),IFERROR(INDEX('Prev & Ctrl'!$G$5:$G$50,MATCH($C32,'Prev & Ctrl'!$A$5:$A$50,0)),IFERROR(INDEX('Lab dx'!$G$5:$G$50,MATCH($C32,'Lab dx'!$A$5:$A$50,0)),IFERROR(INDEX('Dog popn'!$G$5:$G$50,MATCH($C32,'Dog popn'!$A$5:$A$50,0)),IFERROR(INDEX(IEC!$G$5:$G$50,MATCH($C32,IEC!$A$5:$A$50,0)),IFERROR(INDEX('Cross-cutting issues'!$G$5:$G$50,MATCH($C32,'Cross-cutting issues'!$A$5:$A$50,0)),IFERROR(INDEX(Legislation!$G$5:$G$50,MATCH($C32,Legislation!$A$5:$A$50,0)),\"\")))))))","v":0},"5.4-What-are-we-going-to-do-dog-component","http://caninerabiesblueprint.org/5-4-What-are-we-going-to-do-dog?lang=en",null,null,null,null,null,null,null,null,"• Identifier la/les zone(s) locale(s) qui dispose(nt) du personnel et de l'infrastructure (par ex. transport, entrepôt frigorifique, etc.) nécessaires à la mise en œuvre de la/des campagne(s) de vaccination des chiens ;\n• Déterminer la quantité de vaccin antirabique nécessaire dans la/les zone(s) concernée(s) ; \n• Distribuer le vaccin et les consommables nécessaires à la/aux zone(s) concernée(s) ; \n• Veiller à ce que des campagnes de sensibilisation soient organisées dans la/les zone(s) concernée(s) ; \n• Lancer des campagnes de vaccination des chiens dans la/les zone(s) cible(s) ;\n• Veiller à ce que les bénéficiaires rendent compte (y compris des difficultés) de l'utilisation du vaccin antirabique.","Dog vaccination taking place in some parts of the country","Ministère de l’agriculture",1,"• Identification documentée des installations disposant de l'infrastructure et de la capacité nécessaires pour stocker et administrer les vaccins pour chiens.\n• Évaluation des besoins en vaccins pour chiens, en consommables et en campagnes de sensibilisation pour la zone identifiée.\n• Registres de distribution montrant la livraison des vaccins et des consommables aux installations identifiées.\n• Rapport sur la mise en œuvre de la campagne de vaccination des chiens.","","","","Lancer la vaccination des chiens dans au moins une région du pays."]
[32,"PCO","PCO-Vac-2-11","Vaccins canins",2,11,"Le gouvernement n’utilise-t-il que des vaccins pour les chiens de haute qualité, conformément aux normes de l’OMSA ?"," ",null,{"$f":"IFERROR(INDEX('Data coll & an'!$F$5:$F$50,MATCH($C33,'Data coll & an'!$A$5:$A$50,0)),IFERROR(INDEX('Prev & Ctrl'!$F$5:$F$50,MATCH($C33,'Prev & Ctrl'!$A$5:$A$50,0)),IFERROR(INDEX('Lab dx'!$F$5:$F$50,MATCH($C33,'Lab dx'!$A$5:$A$50,0)),IFERROR(INDEX('Dog popn'!$F$5:$F$50,MATCH($C33,'Dog popn'!$A$5:$A$50,0)),IFERROR(INDEX(IEC!$F$5:$F$50,MATCH($C33,IEC!$A$5:$A$50,0)),IFERROR(INDEX('Cross-cutting issues'!$F$5:$F$50,MATCH($C33,'Cross-cutting issues'!$A$5:$A$50,0)),IFERROR(INDEX(Legislation!$F$5:$F$50,MATCH($C33,Legislation!$A$5:$A$50,0)),\"\")))))))","v":1},{"$f":"IFERROR(INDEX('Data coll & an'!$G$5:$G$50,MATCH($C33,'Data coll & an'!$A$5:$A$50,0)),IFERROR(INDEX('Prev & Ctrl'!$G$5:$G$50,MATCH($C33,'Prev & Ctrl'!$A$5:$A$50,0)),IFERROR(INDEX('Lab dx'!$G$5:$G$50,MATCH($C33,'Lab dx'!$A$5:$A$50,0)),IFERROR(INDEX('Dog popn'!$G$5:$G$50,MATCH($C33,'Dog popn'!$A$5:$A$50,0)),IFERROR(INDEX(IEC!$G$5:$G$50,MATCH($C33,IEC!$A$5:$A$50,0)),IFERROR(INDEX('Cross-cutting issues'!$G$5:$G$50,MATCH($C33,'Cross-cutting issues'!$A$5:$A$50,0)),IFERROR(INDEX(Legislation!$G$5:$G$50,MATCH($C33,Legislation!$A$5:$A$50,0)),\"\")))))))","v":0},"OIE terrestrial-manual","http://caninerabiesblueprint.org/OIE-Manual-of-Diagnostic-Tests-and",null,null,null,null,null,null,null,null,"• Identifier toutes les marques de vaccins contre la rage animale utilisées par les professionnels de la santé animale du gouvernement dans le pays ;  \n• Vérifier si les marques de vaccins contre la rage animale sont des vaccins canins de haute qualité conformément aux normes de la OMSA ; \n• Si ce n'est pas le cas, élaborer un plan pour éliminer progressivement les vaccins qui ne sont pas des vaccins canins de haute qualité conformément aux normes de l’OMSA (par exemple, en veillant à n'acheter que des vaccins contre la rage animale de haute qualité).","Phasing out of all animal rabies vaccines that do not comply with OIE standards in the country with the eventual goal that all animal rabies vaccines used in the country comply with OIE standards;","Ministère de l’agriculture",6,"• Inventaire et vérification des marques de vaccins utilisées dans les installations vétérinaires du gouvernement.\n• Plan et calendrier documentés pour l'élimination progressive des vaccins qui ne sont pas conformes aux normes de l'OMSA.","","","","S'assurer que le gouvernement n'utilise que des vaccins canins de haute qualité, conformément aux normes de l’OMSA."]
[33,"PCO","PCO-Vac-2-12","Vaccins canins",2,12,"Les campagnes gouvernementales de vaccination des chiens gagnent-elles régulièrement en ampleur et en intensité ?","Vous ne devez répondre “Oui” que si la quantité de vaccins antirabiques achetés augmente régulièrement. Autrement dit, il faut vacciner davantage de chiens (comparativement aux campagnes précédentes) si la rage transmise par les chiens est toujours endémique dans le pays.",null,{"$f":"IFERROR(INDEX('Data coll & an'!$F$5:$F$50,MATCH($C34,'Data coll & an'!$A$5:$A$50,0)),IFERROR(INDEX('Prev & Ctrl'!$F$5:$F$50,MATCH($C34,'Prev & Ctrl'!$A$5:$A$50,0)),IFERROR(INDEX('Lab dx'!$F$5:$F$50,MATCH($C34,'Lab dx'!$A$5:$A$50,0)),IFERROR(INDEX('Dog popn'!$F$5:$F$50,MATCH($C34,'Dog popn'!$A$5:$A$50,0)),IFERROR(INDEX(IEC!$F$5:$F$50,MATCH($C34,IEC!$A$5:$A$50,0)),IFERROR(INDEX('Cross-cutting issues'!$F$5:$F$50,MATCH($C34,'Cross-cutting issues'!$A$5:$A$50,0)),IFERROR(INDEX(Legislation!$F$5:$F$50,MATCH($C34,Legislation!$A$5:$A$50,0)),\"\")))))))","v":0},{"$f":"IFERROR(INDEX('Data coll & an'!$G$5:$G$50,MATCH($C34,'Data coll & an'!$A$5:$A$50,0)),IFERROR(INDEX('Prev & Ctrl'!$G$5:$G$50,MATCH($C34,'Prev & Ctrl'!$A$5:$A$50,0)),IFERROR(INDEX('Lab dx'!$G$5:$G$50,MATCH($C34,'Lab dx'!$A$5:$A$50,0)),IFERROR(INDEX('Dog popn'!$G$5:$G$50,MATCH($C34,'Dog popn'!$A$5:$A$50,0)),IFERROR(INDEX(IEC!$G$5:$G$50,MATCH($C34,IEC!$A$5:$A$50,0)),IFERROR(INDEX('Cross-cutting issues'!$G$5:$G$50,MATCH($C34,'Cross-cutting issues'!$A$5:$A$50,0)),IFERROR(INDEX(Legislation!$G$5:$G$50,MATCH($C34,Legislation!$A$5:$A$50,0)),\"\")))))))","v":0},null,null,null,null,null,null,null,null,null,null,"• Rédiger un rapport sur la portée et l'impact des campagnes de vaccination passées, y compris les succès et les lacunes ;\n• Rédiger une proposition pour la prochaine campagne de vaccination avec une demande de ressources supplémentaires pour soutenir l'intensification de la prochaine campagne ;\n• Partager le rapport et la proposition avec les parties prenantes impliquées dans l'allocation des budgets ;\n• Obtenir le budget nécessaire pour la prochaine campagne de vaccination.\n• Mettre en œuvre une campagne de vaccination à plus grande échelle (par exemple, 10 % de chiens en plus par rapport à la campagne précédente) avec un suivi et une évaluation efficaces pour s'assurer que la nouvelle campagne a permis d'atteindre un plus grand nombre de chiens à risque.\n• Continuer à augmenter l'échelle et l'intensité de chaque campagne dans le but d'accroître la couverture jusqu'à ce qu'une couverture vaccinale d'au moins 70 % des populations de chiens à risque soit atteinte chaque année.",null,"Ministère de l’agriculture",6,"• Rapports analysant la couverture vaccinale passée et identifiant les lacunes.\n• Proposition et budget garanti pour l'extension des futures campagnes chaque année.\n• Documentation et rapports de suivi et d'évaluation de la mise en œuvre de la campagne à grande échelle.","","","","Augmenter régulièrement l'ampleur et l'intensité des campagnes gouvernementales de vaccination des chiens."]
[34,"PCO","PCO-Vac-3-13","Vaccins canins",3,13,"Le gouvernement a-t-il la capacité (personnel formé, véhicules, aiguilles, seringues, etc…) d’atteindre 70% de couverture vaccinale de tous les chiens à risque chaque année ?  ","Si vous receviez un lot important de vaccin antirabique, seriez-vous en mesure de l'utiliser dans tout le pays avec le personnel et les ressources dont vous disposez ? ",null,{"$f":"IFERROR(INDEX('Data coll & an'!$F$5:$F$50,MATCH($C35,'Data coll & an'!$A$5:$A$50,0)),IFERROR(INDEX('Prev & Ctrl'!$F$5:$F$50,MATCH($C35,'Prev & Ctrl'!$A$5:$A$50,0)),IFERROR(INDEX('Lab dx'!$F$5:$F$50,MATCH($C35,'Lab dx'!$A$5:$A$50,0)),IFERROR(INDEX('Dog popn'!$F$5:$F$50,MATCH($C35,'Dog popn'!$A$5:$A$50,0)),IFERROR(INDEX(IEC!$F$5:$F$50,MATCH($C35,IEC!$A$5:$A$50,0)),IFERROR(INDEX('Cross-cutting issues'!$F$5:$F$50,MATCH($C35,'Cross-cutting issues'!$A$5:$A$50,0)),IFERROR(INDEX(Legislation!$F$5:$F$50,MATCH($C35,Legislation!$A$5:$A$50,0)),\"\")))))))","v":0},{"$f":"IFERROR(INDEX('Data coll & an'!$G$5:$G$50,MATCH($C35,'Data coll & an'!$A$5:$A$50,0)),IFERROR(INDEX('Prev & Ctrl'!$G$5:$G$50,MATCH($C35,'Prev & Ctrl'!$A$5:$A$50,0)),IFERROR(INDEX('Lab dx'!$G$5:$G$50,MATCH($C35,'Lab dx'!$A$5:$A$50,0)),IFERROR(INDEX('Dog popn'!$G$5:$G$50,MATCH($C35,'Dog popn'!$A$5:$A$50,0)),IFERROR(INDEX(IEC!$G$5:$G$50,MATCH($C35,IEC!$A$5:$A$50,0)),IFERROR(INDEX('Cross-cutting issues'!$G$5:$G$50,MATCH($C35,'Cross-cutting issues'!$A$5:$A$50,0)),IFERROR(INDEX(Legislation!$G$5:$G$50,MATCH($C35,Legislation!$A$5:$A$50,0)),\"\")))))))","v":0},null,null,null,null,null,null,null,null,null,null,"• Procéder à une évaluation des besoins pour déterminer si les ressources sont suffisantes (par exemple, consommables tels que vaccins, aiguilles et seringues, glacières, véhicules et carburant, matériel de manipulation des animaux, certificats de vaccination, etc.) ;\n• Procéder à une évaluation des besoins pour déterminer si le personnel disponible est suffisant (par exemple, manipulateurs d'animaux et vaccinateurs, directeurs de campagne, chauffeurs, responsables de l'enregistrement, etc ;)\n• Entreprendre une évaluation des besoins parmi toutes les parties prenantes concernées afin de déterminer leurs besoins en formation (par exemple, manipulation des animaux et vaccination, sensibilisation de la communauté, utilisation de méthodologies de saisie des données, etc.) ;\n• Élaborer un plan d'action pour remédier à toutes les lacunes qui ont été identifiées ;\n• Obtenir le financement et les ressources nécessaires pour mettre en œuvre le plan d'action ;\n• Mettre en œuvre le plan d'action afin de s'assurer que la capacité existe pour atteindre une couverture vaccinale de 70 % de tous les chiens à risque chaque année.",null,"Ministère de l’agriculture",7,"• Évaluation des besoins en personnel, en consommables et en infrastructures.\n• Élaboration et mise en œuvre d'un plan d'action visant à combler les lacunes identifiées en matière de capacités.","","","","Mettre en place les capacités (personnel formé, véhicules, aiguilles, seringues, etc.) permettant d'obtenir une couverture vaccinale de 70 % de tous les chiens à risque du pays chaque année."]
[35,"PCO",{"$f":"B36&\"-\"&LEFT(D36,3)&\"-\"&E36&\"-\"&F36","v":"PCO-Vac-3-14"},"Vaccins canins",3,14,"Les campagnes de vaccination de masse des chiens atteignent-elles au moins 70% de la population canine à risque dans le pays chaque année ? ","Vous devez atteindre une couverture vaccinale de 70% des chiens, qu’ils aient ou non un propriétaire, et ce chaque année pendant plusieurs années consécutives. ","KEY",{"$f":"IFERROR(INDEX('Data coll & an'!$F$5:$F$50,MATCH($C36,'Data coll & an'!$A$5:$A$50,0)),IFERROR(INDEX('Prev & Ctrl'!$F$5:$F$50,MATCH($C36,'Prev & Ctrl'!$A$5:$A$50,0)),IFERROR(INDEX('Lab dx'!$F$5:$F$50,MATCH($C36,'Lab dx'!$A$5:$A$50,0)),IFERROR(INDEX('Dog popn'!$F$5:$F$50,MATCH($C36,'Dog popn'!$A$5:$A$50,0)),IFERROR(INDEX(IEC!$F$5:$F$50,MATCH($C36,IEC!$A$5:$A$50,0)),IFERROR(INDEX('Cross-cutting issues'!$F$5:$F$50,MATCH($C36,'Cross-cutting issues'!$A$5:$A$50,0)),IFERROR(INDEX(Legislation!$F$5:$F$50,MATCH($C36,Legislation!$A$5:$A$50,0)),\"\")))))))","v":0},{"$f":"IFERROR(INDEX('Data coll & an'!$G$5:$G$50,MATCH($C36,'Data coll & an'!$A$5:$A$50,0)),IFERROR(INDEX('Prev & Ctrl'!$G$5:$G$50,MATCH($C36,'Prev & Ctrl'!$A$5:$A$50,0)),IFERROR(INDEX('Lab dx'!$G$5:$G$50,MATCH($C36,'Lab dx'!$A$5:$A$50,0)),IFERROR(INDEX('Dog popn'!$G$5:$G$50,MATCH($C36,'Dog popn'!$A$5:$A$50,0)),IFERROR(INDEX(IEC!$G$5:$G$50,MATCH($C36,IEC!$A$5:$A$50,0)),IFERROR(INDEX('Cross-cutting issues'!$G$5:$G$50,MATCH($C36,'Cross-cutting issues'!$A$5:$A$50,0)),IFERROR(INDEX(Legislation!$G$5:$G$50,MATCH($C36,Legislation!$A$5:$A$50,0)),\"\")))))))","v":0},"5.4.13-Vaccination campaign-coverage","http://caninerabiesblueprint.org/5-4-13-How-can-the-level-of?lang=en",null,null,null,null,null,null,null,null,"• Déterminer la taille, le nombre et la localisation des populations de chiens à risque à travers le pays ;\n• Déterminer les ressources et les consommables nécessaires pour atteindre au moins 70% des chiens à risque dans chaque population ;\n• Développer une proposition et un budget d'accompagnement pour obtenir les ressources et le personnel nécessaires ;\n• Obtenir le financement nécessaire pour mettre en œuvre les campagnes de vaccination de masse planifiées ;\n• Mettre en œuvre la campagne de vaccination de masse des chiens dans tout le pays ;\n• Déterminer la couverture vaccinale de la campagne de vaccination de masse des chiens ;\n• Réviser la stratégie de la campagne de vaccination de masse des chiens pour augmenter la couverture si nécessaire ;\n• Poursuivre la mise en œuvre jusqu'à ce qu'au moins 70 % de tous les chiens à risque aient été vaccinés dans tout le pays.\n• Veiller à ce que la couverture de 70 % de toutes les populations de chiens à risque dans l'ensemble du pays soit atteinte plusieurs années de suite.","MDV campaigns are conducted throughout the country according to the plan described in the national strategy, and at least 70% of the dog population has been vaccinated against rabies;","Ministère de l’agriculture",8,"• Cartographie détaillée des populations de chiens à risque, indiquant leur taille, leur nombre et leur localisation.\n• Liste détaillée des ressources et consommables nécessaires pour atteindre une couverture vaccinale de 70 %.\n• Proposition visant à obtenir un soutien financier pour les campagnes nationales de vaccination de masse des chiens.\n• Documentation de l'exécution de la campagne, y compris la couverture géographique et les taux de vaccination.\n• Analyse du succès de la campagne et identification des zones nécessitant une amélioration de la couverture.\n• Rapports continus pour confirmer une couverture vaccinale ≥70% au cours des années successives.",{"$f":"IFERROR(VLOOKUP($C36,INDIRECT(\"DCA!a13:j49\"),6,FALSE),IFERROR(VLOOKUP($C36,INDIRECT(\"pco!a13:j49\"),6,FALSE),IFERROR(VLOOKUP($C36,INDIRECT(\"lab!a13:j49\"),6,FALSE),IFERROR(VLOOKUP($C36,INDIRECT(\"dpm!a13:j49\"),6,FALSE),IFERROR(VLOOKUP($C36,INDIRECT(\"iecnw!a13:j49\"),6,FALSE),IFERROR(VLOOKUP($C36,INDIRECT(\"cci!a13:j49\"),6,FALSE),IFERROR(VLOOKUP($C36,INDIRECT(\"leg!a13:j49\"),6,FALSE),\"\")))))))","v":""},{"$f":"IFERROR(VLOOKUP($C36,INDIRECT(\"DCA!a13:j49\"),8,FALSE),IFERROR(VLOOKUP($C36,INDIRECT(\"pco!a13:j49\"),8,FALSE),IFERROR(VLOOKUP($C36,INDIRECT(\"lab!a13:j49\"),8,FALSE),IFERROR(VLOOKUP($C36,INDIRECT(\"dpm!a13:j49\"),8,FALSE),IFERROR(VLOOKUP($C36,INDIRECT(\"iecnw!a13:j49\"),8,FALSE),IFERROR(VLOOKUP($C36,INDIRECT(\"cci!a13:j49\"),8,FALSE),IFERROR(VLOOKUP($C36,INDIRECT(\"leg!a13:j49\"),8,FALSE),\"\")))))))","v":""},{"$f":"IFERROR(VLOOKUP($C36,INDIRECT(\"DCA!a13:j49\"),9,FALSE),IFERROR(VLOOKUP($C36,INDIRECT(\"pco!a13:j49\"),9,FALSE),IFERROR(VLOOKUP($C36,INDIRECT(\"lab!a13:j49\"),9,FALSE),IFERROR(VLOOKUP($C36,INDIRECT(\"dpm!a13:j49\"),9,FALSE),IFERROR(VLOOKUP($C36,INDIRECT(\"iecnw!a13:j49\"),9,FALSE),IFERROR(VLOOKUP($C36,INDIRECT(\"cci!a13:j49\"),9,FALSE),IFERROR(VLOOKUP($C36,INDIRECT(\"leg!a13:j49\"),9,FALSE),\"\")))))))","v":""},"Mettre en œuvre des campagnes de vaccination de masse des chiens qui touchent chaque année au moins 70 % de la population canine à risque dans le pays."]
[36,"PCO","PCO-Vac-3-15","Vaccins canins",3,15,"Des enquêtes* post-vaccinales sont-elles effectuées pour évaluer le taux de couverture vaccinale des chiens ? ","Quelle est la méthode ou quel est l’outil utilisés ?","KEY",{"$f":"IFERROR(INDEX('Data coll & an'!$F$5:$F$50,MATCH($C37,'Data coll & an'!$A$5:$A$50,0)),IFERROR(INDEX('Prev & Ctrl'!$F$5:$F$50,MATCH($C37,'Prev & Ctrl'!$A$5:$A$50,0)),IFERROR(INDEX('Lab dx'!$F$5:$F$50,MATCH($C37,'Lab dx'!$A$5:$A$50,0)),IFERROR(INDEX('Dog popn'!$F$5:$F$50,MATCH($C37,'Dog popn'!$A$5:$A$50,0)),IFERROR(INDEX(IEC!$F$5:$F$50,MATCH($C37,IEC!$A$5:$A$50,0)),IFERROR(INDEX('Cross-cutting issues'!$F$5:$F$50,MATCH($C37,'Cross-cutting issues'!$A$5:$A$50,0)),IFERROR(INDEX(Legislation!$F$5:$F$50,MATCH($C37,Legislation!$A$5:$A$50,0)),\"\")))))))","v":0},{"$f":"IFERROR(INDEX('Data coll & an'!$G$5:$G$50,MATCH($C37,'Data coll & an'!$A$5:$A$50,0)),IFERROR(INDEX('Prev & Ctrl'!$G$5:$G$50,MATCH($C37,'Prev & Ctrl'!$A$5:$A$50,0)),IFERROR(INDEX('Lab dx'!$G$5:$G$50,MATCH($C37,'Lab dx'!$A$5:$A$50,0)),IFERROR(INDEX('Dog popn'!$G$5:$G$50,MATCH($C37,'Dog popn'!$A$5:$A$50,0)),IFERROR(INDEX(IEC!$G$5:$G$50,MATCH($C37,IEC!$A$5:$A$50,0)),IFERROR(INDEX('Cross-cutting issues'!$G$5:$G$50,MATCH($C37,'Cross-cutting issues'!$A$5:$A$50,0)),IFERROR(INDEX(Legislation!$G$5:$G$50,MATCH($C37,Legislation!$A$5:$A$50,0)),\"\")))))))","v":0},"5.6-Evaluation","http://caninerabiesblueprint.org/5-6-Evaluation?lang=en",null,null,null,null,null,null,null,null,"• Examiner les méthodologies existantes et déterminer la meilleure méthode scientifiquement valable pour évaluer la couverture vaccinale dans le pays ;\n• Élaborer un mode opératoire normalisé et un budget pour la méthodologie choisie ;\n• Obtenir le financement nécessaire pour mettre en œuvre la méthodologie choisie ;\n• Identifier et former des professionnels à la méthodologie choisie ;\n• Mettre en œuvre la méthodologie choisie dans tout le pays et veiller à ce que les résultats soient rapportés.\n• Déterminer la couverture vaccinale après chacune des campagnes de vaccination de masse des chiens.","Post-vaccination surveys conducted to evaluate each of the MDV campaigns; ","Ministère de l’agriculture",8,"• Procédure normalisée d'évaluation de la couverture vaccinale des chiens.\n• Financement assuré pour la mise en œuvre de l'enquête.\n• Registres du personnel formé.\n• Rapports d'enquête validant la couverture vaccinale après la campagne.","","","","Entreprendre des enquêtes post-vaccination pour évaluer la couverture vaccinale des chiens dans le pays."]
[37,"PCO","PCO-Vac-4-16","Vaccins canins",4,16,"Maintenant qu’il n’y a plus que très peu de cas de rage animale dans votre pays, les campagnes de vaccination des chiens se poursuivent-elles dans les zones où la rage canine est encore présente ou là où cela est justifié par ailleurs (par exemple risque d’introduction) ? ","Ne répondez “Oui” que si il y a peu de cas de rage grâce à des campagnes de vaccination canine réussies et à une bonne surveillance.","KEY",{"$f":"IFERROR(INDEX('Data coll & an'!$F$5:$F$50,MATCH($C38,'Data coll & an'!$A$5:$A$50,0)),IFERROR(INDEX('Prev & Ctrl'!$F$5:$F$50,MATCH($C38,'Prev & Ctrl'!$A$5:$A$50,0)),IFERROR(INDEX('Lab dx'!$F$5:$F$50,MATCH($C38,'Lab dx'!$A$5:$A$50,0)),IFERROR(INDEX('Dog popn'!$F$5:$F$50,MATCH($C38,'Dog popn'!$A$5:$A$50,0)),IFERROR(INDEX(IEC!$F$5:$F$50,MATCH($C38,IEC!$A$5:$A$50,0)),IFERROR(INDEX('Cross-cutting issues'!$F$5:$F$50,MATCH($C38,'Cross-cutting issues'!$A$5:$A$50,0)),IFERROR(INDEX(Legislation!$F$5:$F$50,MATCH($C38,Legislation!$A$5:$A$50,0)),\"\")))))))","v":0},{"$f":"IFERROR(INDEX('Data coll & an'!$G$5:$G$50,MATCH($C38,'Data coll & an'!$A$5:$A$50,0)),IFERROR(INDEX('Prev & Ctrl'!$G$5:$G$50,MATCH($C38,'Prev & Ctrl'!$A$5:$A$50,0)),IFERROR(INDEX('Lab dx'!$G$5:$G$50,MATCH($C38,'Lab dx'!$A$5:$A$50,0)),IFERROR(INDEX('Dog popn'!$G$5:$G$50,MATCH($C38,'Dog popn'!$A$5:$A$50,0)),IFERROR(INDEX(IEC!$G$5:$G$50,MATCH($C38,IEC!$A$5:$A$50,0)),IFERROR(INDEX('Cross-cutting issues'!$G$5:$G$50,MATCH($C38,'Cross-cutting issues'!$A$5:$A$50,0)),IFERROR(INDEX(Legislation!$G$5:$G$50,MATCH($C38,Legislation!$A$5:$A$50,0)),\"\")))))))","v":0},null,null,null,null,null,null,null,null,null,null,"• Identifier les zones où la rage canine est encore présente ou présente un risque de réintroduction ;\n• Allouer des ressources et des professionnels supplémentaires aux zones identifiées ou aux zones voisines afin de créer des zones tampons contre la réintroduction ;\n• Poursuivre les campagnes de vaccination de masse des chiens dans les zones identifiées conformément à la stratégie nationale.","The revision of needs and the continuation of the vaccination of dogs in high-risk areas or areas where dog rabies is still present; ","Ministère de l’agriculture",10,"• Rapport identifiant les derniers foyers de rage.\n• Listes du personnel et des ressources supplémentaires distribués dans les zones tampons.\n• Rapport sur la poursuite des campagnes de vaccination dans les derniers foyers de rage et aux alentours.","","","","Maintenant qu'il y a très peu de cas de rage animale dans le pays, les campagnes de vaccination des chiens sont maintenues dans les zones où la rage canine est encore présente ou lorsque cela se justifie (par exemple, risque d'introduction)."]
[38,"PCO","PCO-Vac-5-17","Vaccins canins",5,17,"Même s’il n’y a plus de cas de rage grâce aux campagnes de vaccination de masse, les campagnes stratégiques de vaccination de chiens sont-elles maintenues lorsque cela se justifie ? ","Par exemple, les zones frontalières avec des pays d’endémie rabique, les ports d’entrée.","KEY",{"$f":"IFERROR(INDEX('Data coll & an'!$F$5:$F$50,MATCH($C39,'Data coll & an'!$A$5:$A$50,0)),IFERROR(INDEX('Prev & Ctrl'!$F$5:$F$50,MATCH($C39,'Prev & Ctrl'!$A$5:$A$50,0)),IFERROR(INDEX('Lab dx'!$F$5:$F$50,MATCH($C39,'Lab dx'!$A$5:$A$50,0)),IFERROR(INDEX('Dog popn'!$F$5:$F$50,MATCH($C39,'Dog popn'!$A$5:$A$50,0)),IFERROR(INDEX(IEC!$F$5:$F$50,MATCH($C39,IEC!$A$5:$A$50,0)),IFERROR(INDEX('Cross-cutting issues'!$F$5:$F$50,MATCH($C39,'Cross-cutting issues'!$A$5:$A$50,0)),IFERROR(INDEX(Legislation!$F$5:$F$50,MATCH($C39,Legislation!$A$5:$A$50,0)),\"\")))))))","v":0},{"$f":"IFERROR(INDEX('Data coll & an'!$G$5:$G$50,MATCH($C39,'Data coll & an'!$A$5:$A$50,0)),IFERROR(INDEX('Prev & Ctrl'!$G$5:$G$50,MATCH($C39,'Prev & Ctrl'!$A$5:$A$50,0)),IFERROR(INDEX('Lab dx'!$G$5:$G$50,MATCH($C39,'Lab dx'!$A$5:$A$50,0)),IFERROR(INDEX('Dog popn'!$G$5:$G$50,MATCH($C39,'Dog popn'!$A$5:$A$50,0)),IFERROR(INDEX(IEC!$G$5:$G$50,MATCH($C39,IEC!$A$5:$A$50,0)),IFERROR(INDEX('Cross-cutting issues'!$G$5:$G$50,MATCH($C39,'Cross-cutting issues'!$A$5:$A$50,0)),IFERROR(INDEX(Legislation!$G$5:$G$50,MATCH($C39,Legislation!$A$5:$A$50,0)),\"\")))))))","v":0},"5.4-What-are-we-going-to-do-dog-component","http://caninerabiesblueprint.org/5-4-What-are-we-going-to-do-dog?lang=en",null,null,null,null,null,null,null,null,"• Identifier les zones où il existe un risque de réintroduction de la rage (par exemple, les frontières avec les pays endémiques, les zones autour des ports d'entrée, etc.) ;\n• Allouer suffisamment de ressources et de professionnels aux zones identifiées pour maintenir des campagnes de vaccination stratégiques ;\n• Poursuivre les campagnes de vaccination stratégiques dans les zones identifiées conformément à la stratégie nationale.","Strategic vaccination of dogs in areas that are at risk for the re-introduction of the canine variant of rabies implemented and maintained; ","Ministère de l’agriculture",12,"• Identification des zones à risque de réintroduction de la rage \n• Tableau d'affectation des ressources et du personnel pour les zones identifiées.\n• Rapport sur la poursuite des campagnes de vaccination dans les zones identifiées.","","","","Bien que le pays soit indemne de rage grâce à des campagnes de vaccination de masse réussies, des campagnes stratégiques de vaccination des chiens sont maintenues lorsque cela se justifie."]
[39,"PCO","PCO-Rép-1-18","Réponse à l'apparition d'un foyer et autres activités de lutte contre la rage",1,18,"Avez-vous des protocoles pour la réalisation d’enquêtes conjointes des cas de rage ?","Cela peut inclure les protocoles de Gestion Intégrée des Cas de Morsure (ICBM) *.\n\nCela ne signifie pas que les protocoles doivent être mis en œuvre, mais qu’ils soient simplement disponibles",null,{"$f":"IFERROR(INDEX('Data coll & an'!$F$5:$F$50,MATCH($C40,'Data coll & an'!$A$5:$A$50,0)),IFERROR(INDEX('Prev & Ctrl'!$F$5:$F$50,MATCH($C40,'Prev & Ctrl'!$A$5:$A$50,0)),IFERROR(INDEX('Lab dx'!$F$5:$F$50,MATCH($C40,'Lab dx'!$A$5:$A$50,0)),IFERROR(INDEX('Dog popn'!$F$5:$F$50,MATCH($C40,'Dog popn'!$A$5:$A$50,0)),IFERROR(INDEX(IEC!$F$5:$F$50,MATCH($C40,IEC!$A$5:$A$50,0)),IFERROR(INDEX('Cross-cutting issues'!$F$5:$F$50,MATCH($C40,'Cross-cutting issues'!$A$5:$A$50,0)),IFERROR(INDEX(Legislation!$F$5:$F$50,MATCH($C40,Legislation!$A$5:$A$50,0)),\"\")))))))","v":0},{"$f":"IFERROR(INDEX('Data coll & an'!$G$5:$G$50,MATCH($C40,'Data coll & an'!$A$5:$A$50,0)),IFERROR(INDEX('Prev & Ctrl'!$G$5:$G$50,MATCH($C40,'Prev & Ctrl'!$A$5:$A$50,0)),IFERROR(INDEX('Lab dx'!$G$5:$G$50,MATCH($C40,'Lab dx'!$A$5:$A$50,0)),IFERROR(INDEX('Dog popn'!$G$5:$G$50,MATCH($C40,'Dog popn'!$A$5:$A$50,0)),IFERROR(INDEX(IEC!$G$5:$G$50,MATCH($C40,IEC!$A$5:$A$50,0)),IFERROR(INDEX('Cross-cutting issues'!$G$5:$G$50,MATCH($C40,'Cross-cutting issues'!$A$5:$A$50,0)),IFERROR(INDEX(Legislation!$G$5:$G$50,MATCH($C40,Legislation!$A$5:$A$50,0)),\"\")))))))","v":0},"Challenges of animal health information systems and surveillance for animal diseases and zoonoses","http://www.fao.org/3/a-i2415e.pdf",null,null,null,null,null,null,null,null,"• Identifier les autorités compétentes de chaque secteur qui seraient impliquées dans les réponses coordonnées en cas d'épidémie ;\n• Déterminer les protocoles nécessaires pour une enquête conjointe sur les cas de rage ; \n• Examiner et mettre à jour les protocoles existants de chacun des secteurs concernés en utilisant les ressources internationales en matière de meilleures pratiques ;\n• Rédiger un POS contenant les protocoles révisés nécessaires pour une réponse coordonnée à l'épidémie - en précisant les rôles et les responsabilités, ainsi que l'affectation des ressources ;\n• Partager le projet de POS avec toutes les autorités compétentes pour obtenir un retour d'information, y compris une date limite de retour d'information ;\n• Affiner le POS sur la base du retour d'information ;\n• Finaliser, publier et partager le POS avec tous les professionnels concernés.","Finalised SOPs for the coordinated action on reported outbreaks developed and approved","Groupe multisectoriel",2,"• Liste des parties prenantes qui devraient être impliquées dans la coordination des réponses aux épidémies.\n• Analyse des écarts entre les protocoles pertinents existant dans chaque secteur. \n• POS finalisé décrivant les rôles et les responsabilités pour les réponses coordonnées aux épidémies.\n• Liste de diffusion indiquant les destinataires du POS finalisé. ","","","","Établir des protocoles pour les enquêtes conjointes sur les cas de rage."]
[40,"PCO","PCO-Rép-1-19","Réponse à l'apparition d'un foyer et autres activités de lutte contre la rage",1,19,"Les protocoles d’enquête conjointe des cas de rage ont-ils été mis en œuvre quelque part dans le pays ? ","Cela peut inclure les protocoles de Gestion Intégrée des Cas de Morsure (ICBM) *.\n\nIl peut s’agir d’une zone de projet pilote.",null,{"$f":"IFERROR(INDEX('Data coll & an'!$F$5:$F$50,MATCH($C41,'Data coll & an'!$A$5:$A$50,0)),IFERROR(INDEX('Prev & Ctrl'!$F$5:$F$50,MATCH($C41,'Prev & Ctrl'!$A$5:$A$50,0)),IFERROR(INDEX('Lab dx'!$F$5:$F$50,MATCH($C41,'Lab dx'!$A$5:$A$50,0)),IFERROR(INDEX('Dog popn'!$F$5:$F$50,MATCH($C41,'Dog popn'!$A$5:$A$50,0)),IFERROR(INDEX(IEC!$F$5:$F$50,MATCH($C41,IEC!$A$5:$A$50,0)),IFERROR(INDEX('Cross-cutting issues'!$F$5:$F$50,MATCH($C41,'Cross-cutting issues'!$A$5:$A$50,0)),IFERROR(INDEX(Legislation!$F$5:$F$50,MATCH($C41,Legislation!$A$5:$A$50,0)),\"\")))))))","v":0},{"$f":"IFERROR(INDEX('Data coll & an'!$G$5:$G$50,MATCH($C41,'Data coll & an'!$A$5:$A$50,0)),IFERROR(INDEX('Prev & Ctrl'!$G$5:$G$50,MATCH($C41,'Prev & Ctrl'!$A$5:$A$50,0)),IFERROR(INDEX('Lab dx'!$G$5:$G$50,MATCH($C41,'Lab dx'!$A$5:$A$50,0)),IFERROR(INDEX('Dog popn'!$G$5:$G$50,MATCH($C41,'Dog popn'!$A$5:$A$50,0)),IFERROR(INDEX(IEC!$G$5:$G$50,MATCH($C41,IEC!$A$5:$A$50,0)),IFERROR(INDEX('Cross-cutting issues'!$G$5:$G$50,MATCH($C41,'Cross-cutting issues'!$A$5:$A$50,0)),IFERROR(INDEX(Legislation!$G$5:$G$50,MATCH($C41,Legislation!$A$5:$A$50,0)),\"\")))))))","v":0},"Operational-activities","http://caninerabiesblueprint.org/Operational-activities?lang=en",null,null,null,null,null,null,null,null,"• Identifier au moins une zone d'endémie de la rage dans le pays comme zone appropriée pour piloter des enquêtes conjointes autour de cas (par exemple, zone(s) disposant du personnel approprié, capacité existante) ;\n• Identifier au moins une zone d'endémie de la rage dans le pays comme zone appropriée pour piloter des enquêtes conjointes autour de cas (par exemple, zone(s) disposant du personnel approprié, capacité existante) ;\n• Identifier et former le personnel concerné à la mise en œuvre du mode opératoire normalisé pour les enquêtes conjointes ;\n• Obtenir le financement et les ressources nécessaires à la mise en œuvre d'enquêtes conjointes sur les cas de rage;\n• Mettre en œuvre des enquêtes conjointes sur les cas de rage dans au moins une région du pays pendant une période prédéterminée.","IBCM programme operational at a local level","Groupe multisectoriel",3,"• Justification du choix de la zone d'endémie rabique pour les enquêtes conjointes.\n• Documentation du personnel formé aux procédures opérationnelles standardisées et aux responsabilités en matière d'enquêtes conjointes.\n• Preuve de l'exécution du projet pilote avec des données sur les cas enquêtés et les résultats.","","","","Mettre en œuvre les protocoles communs d'investigation des cas de rage dans au moins une région du pays."]
[41,"PCO","PCO-Rép-2-20","Réponse à l'apparition d'un foyer et autres activités de lutte contre la rage",2,20,"Les protocoles d’enquête conjointe des cas de rage, y compris le partage d’informations entre secteurs, ont-ils été approuvés au niveau national ? ","Secteurs impliqués. Veuillez expliquer comment l’information est partagée entre secteurs. ",null,{"$f":"IFERROR(INDEX('Data coll & an'!$F$5:$F$50,MATCH($C42,'Data coll & an'!$A$5:$A$50,0)),IFERROR(INDEX('Prev & Ctrl'!$F$5:$F$50,MATCH($C42,'Prev & Ctrl'!$A$5:$A$50,0)),IFERROR(INDEX('Lab dx'!$F$5:$F$50,MATCH($C42,'Lab dx'!$A$5:$A$50,0)),IFERROR(INDEX('Dog popn'!$F$5:$F$50,MATCH($C42,'Dog popn'!$A$5:$A$50,0)),IFERROR(INDEX(IEC!$F$5:$F$50,MATCH($C42,IEC!$A$5:$A$50,0)),IFERROR(INDEX('Cross-cutting issues'!$F$5:$F$50,MATCH($C42,'Cross-cutting issues'!$A$5:$A$50,0)),IFERROR(INDEX(Legislation!$F$5:$F$50,MATCH($C42,Legislation!$A$5:$A$50,0)),\"\")))))))","v":0},{"$f":"IFERROR(INDEX('Data coll & an'!$G$5:$G$50,MATCH($C42,'Data coll & an'!$A$5:$A$50,0)),IFERROR(INDEX('Prev & Ctrl'!$G$5:$G$50,MATCH($C42,'Prev & Ctrl'!$A$5:$A$50,0)),IFERROR(INDEX('Lab dx'!$G$5:$G$50,MATCH($C42,'Lab dx'!$A$5:$A$50,0)),IFERROR(INDEX('Dog popn'!$G$5:$G$50,MATCH($C42,'Dog popn'!$A$5:$A$50,0)),IFERROR(INDEX(IEC!$G$5:$G$50,MATCH($C42,IEC!$A$5:$A$50,0)),IFERROR(INDEX('Cross-cutting issues'!$G$5:$G$50,MATCH($C42,'Cross-cutting issues'!$A$5:$A$50,0)),IFERROR(INDEX(Legislation!$G$5:$G$50,MATCH($C42,Legislation!$A$5:$A$50,0)),\"\")))))))","v":0},"WHO expert consultation on rabies","http://caninerabiesblueprint.org/WHO-expert-consultation-on-rabies","Challenges of animal health information systems and surveillance for animal diseases and zoonoses ","http://www.fao.org/3/a-i2415e.pdf","Zoonotic diseases: A guide to collaboration","http://caninerabiesblueprint.org/Zoonotic-diseases-a-guide-to",null,null,null,null,"• Obtenir un retour d'information de la part des utilisateurs actuels du POS pour les enquêtes conjointes sur les cas de rage afin d'évaluer les défis et les lacunes ;\n• Affiner le POS sur la base du retour d'information.\n• Finaliser, publier et partager le POS avec tous les professionnels concernés.","SOPs for an IBCM programme at the national level developed, finalised and approved;","Groupe multisectoriel",4,"• POS finalisé au niveau national pour les enquêtes conjointes.\n• Liste de diffusion indiquant les destinataires des POS finalisées.","","","","Finaliser les protocoles d'enquête conjointe sur les cas de rage - y compris le partage d'informations entre les secteurs - au niveau national."]
[42,"PCO","PCO-Rép-2-21","Réponse à l'apparition d'un foyer et autres activités de lutte contre la rage",2,21,"Existe-t-il une réponse active lors de foyers de cas en conformité avec les protocoles d’enquête conjointe établis ? ","Pour répondre à cette question par l'affirmative, des protocoles formels et établis doivent être mis en place.\n\nCela peut inclure la mise en œuvre des protocoles de Gestion Intégrée des Cas de Morsure (ICBM) *.","KEY",{"$f":"IFERROR(INDEX('Data coll & an'!$F$5:$F$50,MATCH($C43,'Data coll & an'!$A$5:$A$50,0)),IFERROR(INDEX('Prev & Ctrl'!$F$5:$F$50,MATCH($C43,'Prev & Ctrl'!$A$5:$A$50,0)),IFERROR(INDEX('Lab dx'!$F$5:$F$50,MATCH($C43,'Lab dx'!$A$5:$A$50,0)),IFERROR(INDEX('Dog popn'!$F$5:$F$50,MATCH($C43,'Dog popn'!$A$5:$A$50,0)),IFERROR(INDEX(IEC!$F$5:$F$50,MATCH($C43,IEC!$A$5:$A$50,0)),IFERROR(INDEX('Cross-cutting issues'!$F$5:$F$50,MATCH($C43,'Cross-cutting issues'!$A$5:$A$50,0)),IFERROR(INDEX(Legislation!$F$5:$F$50,MATCH($C43,Legislation!$A$5:$A$50,0)),\"\")))))))","v":0},{"$f":"IFERROR(INDEX('Data coll & an'!$G$5:$G$50,MATCH($C43,'Data coll & an'!$A$5:$A$50,0)),IFERROR(INDEX('Prev & Ctrl'!$G$5:$G$50,MATCH($C43,'Prev & Ctrl'!$A$5:$A$50,0)),IFERROR(INDEX('Lab dx'!$G$5:$G$50,MATCH($C43,'Lab dx'!$A$5:$A$50,0)),IFERROR(INDEX('Dog popn'!$G$5:$G$50,MATCH($C43,'Dog popn'!$A$5:$A$50,0)),IFERROR(INDEX(IEC!$G$5:$G$50,MATCH($C43,IEC!$A$5:$A$50,0)),IFERROR(INDEX('Cross-cutting issues'!$G$5:$G$50,MATCH($C43,'Cross-cutting issues'!$A$5:$A$50,0)),IFERROR(INDEX(Legislation!$G$5:$G$50,MATCH($C43,Legislation!$A$5:$A$50,0)),\"\")))))))","v":0},"5.4-What-are-we-going-to-do-dog-component","http://caninerabiesblueprint.org/5-4-What-are-we-going-to-do-dog?lang=en",null,null,null,null,null,null,null,null,"• Identifier et former le personnel concerné à la mise en œuvre du POS ;\n• Obtenir le financement et les ressources nécessaires à la mise en œuvre de quelques enquêtes conjointes sur des cas de rage;\n• Mettre en œuvre quelques enquêtes conjointes sur des cas de rage dans le pays ;\n• Veiller à ce qu'un retour d'information soit effectué après chaque enquête conjointe afin de confirmer la mise en œuvre systématique ;\n• Évaluer la fréquence des réponses aux épidémies et la qualité des données générées.","Professionals actively respond to potential rabies outbreaks according to an established SOP;","Groupe multisectoriel",4,"• Documentation de la formation du personnel aux procédures opérationnelles standard de lutte contre les foyers actifs.\n• Rapports documentant les réponses, la qualité de la collecte des données et le respect des procédures opérationnelles standard.\n• Preuve de l'existence d'un mécanisme de retour d'information permettant d'améliorer la réponse à l'épidémies.","","","","Mettre en œuvre toute réponse active aux foyers conformément aux protocoles d'enquête conjointe établis."]
[43,"PCO","PCO-Rép-2-22","Réponse à l'apparition d'un foyer et autres activités de lutte contre la rage",2,22,"Existe-t-il des protocoles pour observer les chiens suspects de rage ? ","Il doit s’agir de protocoles officiels mis en place pour l’observation de chiens suspects (par exemple, les chiens impliqués dans des incidents de morsure).\n\nCela peut comprendre des protocoles de quarantaine à domicile si nécessaire. ",null,{"$f":"IFERROR(INDEX('Data coll & an'!$F$5:$F$50,MATCH($C44,'Data coll & an'!$A$5:$A$50,0)),IFERROR(INDEX('Prev & Ctrl'!$F$5:$F$50,MATCH($C44,'Prev & Ctrl'!$A$5:$A$50,0)),IFERROR(INDEX('Lab dx'!$F$5:$F$50,MATCH($C44,'Lab dx'!$A$5:$A$50,0)),IFERROR(INDEX('Dog popn'!$F$5:$F$50,MATCH($C44,'Dog popn'!$A$5:$A$50,0)),IFERROR(INDEX(IEC!$F$5:$F$50,MATCH($C44,IEC!$A$5:$A$50,0)),IFERROR(INDEX('Cross-cutting issues'!$F$5:$F$50,MATCH($C44,'Cross-cutting issues'!$A$5:$A$50,0)),IFERROR(INDEX(Legislation!$F$5:$F$50,MATCH($C44,Legislation!$A$5:$A$50,0)),\"\")))))))","v":0},{"$f":"IFERROR(INDEX('Data coll & an'!$G$5:$G$50,MATCH($C44,'Data coll & an'!$A$5:$A$50,0)),IFERROR(INDEX('Prev & Ctrl'!$G$5:$G$50,MATCH($C44,'Prev & Ctrl'!$A$5:$A$50,0)),IFERROR(INDEX('Lab dx'!$G$5:$G$50,MATCH($C44,'Lab dx'!$A$5:$A$50,0)),IFERROR(INDEX('Dog popn'!$G$5:$G$50,MATCH($C44,'Dog popn'!$A$5:$A$50,0)),IFERROR(INDEX(IEC!$G$5:$G$50,MATCH($C44,IEC!$A$5:$A$50,0)),IFERROR(INDEX('Cross-cutting issues'!$G$5:$G$50,MATCH($C44,'Cross-cutting issues'!$A$5:$A$50,0)),IFERROR(INDEX(Legislation!$G$5:$G$50,MATCH($C44,Legislation!$A$5:$A$50,0)),\"\")))))))","v":0},"Guidelines-animal-shelters","http://caninerabiesblueprint.org/Guidelines-for-the-design-and,178?lang=en","WHO expert consultation on rabies","http://caninerabiesblueprint.org/WHO-expert-consultation-on-rabies",null,null,null,null,null,null,"• Examiner diverses sources pour évaluer les protocoles établis qui ont été développés ailleurs, en prenant note des protocoles développés pour des scénarios qui correspondent étroitement à votre pays;\n• Partager le protocole avec toutes les autorités compétentes pour obtenir un retour d'information ;\n• Affiner et finaliser le protocole en fonction du retour d'information ;\n• Partager le protocole avec tous les professionnels concernés.","SOPs for the observation of rabies-suspect dogs have been developed, finalised, approved and shared with all relevant professionals;","Ministère de l’agriculture",4,"• Comparaison des protocoles locaux et internationaux d'observation des chiens suspectés d’être enragés.\n• Protocoles d'observation complets élaborés et affinés en tenant compte des commentaires des parties prenantes.\n• Preuve de la distribution aux autorités et aux professionnels concernés.","","","","Élaborer des protocoles pour l'observation des chiens suspects d'être enragés."]
[44,"PCO","PCO-Rép-2-23","Réponse à l'apparition d'un foyer et autres activités de lutte contre la rage",2,23,"Des installations ont-elles été mises en place, ou des protocoles de quarantaine à domicile sont-ils disponibles pour la mise en quarantaine des chiens suspects d'être enragés ?","Une quarantaine à domicile est adéquate à condition que le protocole prenne en compte tous les aspects pertinents de la quarantaine à domicile (par exemple suivi, bien-être animal, isolement).",null,{"$f":"IFERROR(INDEX('Data coll & an'!$F$5:$F$50,MATCH($C45,'Data coll & an'!$A$5:$A$50,0)),IFERROR(INDEX('Prev & Ctrl'!$F$5:$F$50,MATCH($C45,'Prev & Ctrl'!$A$5:$A$50,0)),IFERROR(INDEX('Lab dx'!$F$5:$F$50,MATCH($C45,'Lab dx'!$A$5:$A$50,0)),IFERROR(INDEX('Dog popn'!$F$5:$F$50,MATCH($C45,'Dog popn'!$A$5:$A$50,0)),IFERROR(INDEX(IEC!$F$5:$F$50,MATCH($C45,IEC!$A$5:$A$50,0)),IFERROR(INDEX('Cross-cutting issues'!$F$5:$F$50,MATCH($C45,'Cross-cutting issues'!$A$5:$A$50,0)),IFERROR(INDEX(Legislation!$F$5:$F$50,MATCH($C45,Legislation!$A$5:$A$50,0)),\"\")))))))","v":0},{"$f":"IFERROR(INDEX('Data coll & an'!$G$5:$G$50,MATCH($C45,'Data coll & an'!$A$5:$A$50,0)),IFERROR(INDEX('Prev & Ctrl'!$G$5:$G$50,MATCH($C45,'Prev & Ctrl'!$A$5:$A$50,0)),IFERROR(INDEX('Lab dx'!$G$5:$G$50,MATCH($C45,'Lab dx'!$A$5:$A$50,0)),IFERROR(INDEX('Dog popn'!$G$5:$G$50,MATCH($C45,'Dog popn'!$A$5:$A$50,0)),IFERROR(INDEX(IEC!$G$5:$G$50,MATCH($C45,IEC!$A$5:$A$50,0)),IFERROR(INDEX('Cross-cutting issues'!$G$5:$G$50,MATCH($C45,'Cross-cutting issues'!$A$5:$A$50,0)),IFERROR(INDEX(Legislation!$G$5:$G$50,MATCH($C45,Legislation!$A$5:$A$50,0)),\"\")))))))","v":0},"Guidelines-animal-shelters","http://caninerabiesblueprint.org/Guidelines-for-the-design-and,178?lang=en","ICAM animal shelter guidelines","http://www.icam-coalition.org/downloads/Shelter guidelines.pdf",null,null,null,null,null,null,"Mise en place d'installations pour l’observation des chiens suspects d'être enragés :\n• Déterminer le nombre et l'emplacement de toutes les installations appropriées qui pourraient être utilisées pour mettre en quarantaine les chiens suspects.\n• Examiner les lignes directrices internationales afin de déterminer ce qui est nécessaire pour garantir une observation sans cruauté des chiens dans les installations identifiées ;\n• Élaborer une proposition et le budget correspondant pour réaffecter les installations conformément aux lignes directrices internationales ;\n• Obtenir le financement nécessaire pour réaffecter les installations ;\n• Adapter les installations existantes et former le personnel opérationnel afin de garantir le bien-être des animaux au cours des périodes d'observation.\n• Assurer un financement à long terme pour maintenir les installations et les coûts opérationnels au-delà de la période de mise en œuvre initiale.\n\nMise en place de protocoles de quarantaine à domicile pour les chiens suspects d'être enragés :\n• Déterminer s'il existe déjà des protocoles pour la mise en quarantaine des chiens à domicile dans le pays (y compris de la part de partenaires tels que des ONG) ;\n• Examiner d'autres sources pour évaluer les protocoles établis qui ont été développés ailleurs et pouvant convenir à votre pays ;\n• Rédiger un protocole en tenant compte des protocoles qui existent déjà dans le pays et des protocoles développés ailleurs ;\n• Partager le protocole avec toutes les autorités compétentes pour obtenir leur retour ;\n• Affiner et finaliser le protocole en fonction des commentaires ;\n• Partager le protocole avec tous les professionnels concernés.","Facilities are established in compliance with international guidelines for the observation suspect rabid dogs; ","Ministère de l’agriculture",5,"Installations pour l’observation des chiens suspects d'être enragés:\n• Rapport d'inventaire des installations de quarantaine identifiées, y compris leur emplacement et leur capacité.\n• Revue décrivant les lignes directrices internationales pour l'observation sans cruauté des chiens suspects d'être enragés.\n• Proposition et budget détaillé pour la réaffectation des installations identifiées.\n• Documentation sur le financement obtenu pour l'adaptation des installations.\n• Rapport d'achèvement sur les adaptations des installations et les programmes de formation du personnel.\n• Plan de viabilité financière à long terme pour l'entretien des installations et les coûts opérationnels.\n\nProtocoles de quarantaine à domicile pour les chiens suspects d'être enragés :\n• Rapport sur les protocoles de quarantaine à domicile existants au niveau national et dans les ONG.\n• Analyse comparative des meilleures pratiques internationales en matière de quarantaine à domicile.\n• Projet de protocole de quarantaine à domicile adapté au contexte national.\n• Enregistrement des réactions des autorités compétentes.\n• Protocole de quarantaine à domicile finalisé et approuvé.\n• Rapport de distribution montrant la diffusion du protocole à tous les professionnels concernés.","","","","Mettre en place des installations d'observation ou élaborer des protocoles de quarantaine à domicile pour les chiens suspects d'être enragés."]
[45,"PCO","PCO-Rép-2-24","Réponse à l'apparition d'un foyer et autres activités de lutte contre la rage",2,24,"Les mesures vétérinaires d’inspection et de quarantaine aux frontières ont-elles été mises en place dans les ports d’entrée ? ","Cela signifie que des mesures vétérinaires strictes aux frontières sont en place, financées et dotées de ressources dans tous les ports d’entrée officiels, afin qu’aucun cas de rage d’origine extérieure ne puisse être introduit dans le pays. ",null,{"$f":"IFERROR(INDEX('Data coll & an'!$F$5:$F$50,MATCH($C46,'Data coll & an'!$A$5:$A$50,0)),IFERROR(INDEX('Prev & Ctrl'!$F$5:$F$50,MATCH($C46,'Prev & Ctrl'!$A$5:$A$50,0)),IFERROR(INDEX('Lab dx'!$F$5:$F$50,MATCH($C46,'Lab dx'!$A$5:$A$50,0)),IFERROR(INDEX('Dog popn'!$F$5:$F$50,MATCH($C46,'Dog popn'!$A$5:$A$50,0)),IFERROR(INDEX(IEC!$F$5:$F$50,MATCH($C46,IEC!$A$5:$A$50,0)),IFERROR(INDEX('Cross-cutting issues'!$F$5:$F$50,MATCH($C46,'Cross-cutting issues'!$A$5:$A$50,0)),IFERROR(INDEX(Legislation!$F$5:$F$50,MATCH($C46,Legislation!$A$5:$A$50,0)),\"\")))))))","v":0},{"$f":"IFERROR(INDEX('Data coll & an'!$G$5:$G$50,MATCH($C46,'Data coll & an'!$A$5:$A$50,0)),IFERROR(INDEX('Prev & Ctrl'!$G$5:$G$50,MATCH($C46,'Prev & Ctrl'!$A$5:$A$50,0)),IFERROR(INDEX('Lab dx'!$G$5:$G$50,MATCH($C46,'Lab dx'!$A$5:$A$50,0)),IFERROR(INDEX('Dog popn'!$G$5:$G$50,MATCH($C46,'Dog popn'!$A$5:$A$50,0)),IFERROR(INDEX(IEC!$G$5:$G$50,MATCH($C46,IEC!$A$5:$A$50,0)),IFERROR(INDEX('Cross-cutting issues'!$G$5:$G$50,MATCH($C46,'Cross-cutting issues'!$A$5:$A$50,0)),IFERROR(INDEX(Legislation!$G$5:$G$50,MATCH($C46,Legislation!$A$5:$A$50,0)),\"\")))))))","v":0},"OIE Terrestrial Animal Health Code","http://caninerabiesblueprint.org/OIE-Terrestrial-Animal-Health-Code",null,null,null,null,null,null,null,null,"• Évaluer tous les sites d'inspection vétérinaire aux frontières à tous les points d'entrée officiels dans le pays ;\n• Compiler toutes les lacunes/limitations possibles qui empêchent la mise en œuvre efficace de l'inspection aux frontières et de la quarantaine ;\n• Élaborer et garantir un budget pour remédier aux lacunes/limitations ;\n• Remédier aux lacunes/limitations qui empêchent la mise en œuvre complète conformément aux réglementations nationales.","Veterinary border inspection and quarantine measures have been fully implemented and are working in accordance with the national regulations","Ministère de l’agriculture",6,"• Évaluation de tous les points d'inspection officiels aux frontières.\n• Budget et plan d'action visant à combler les lacunes identifiées.\n•Registres de mise en œuvre confirmant la conformité avec les réglementations nationales.","","","","Mettre en œuvre des mesures vétérinaires d'inspection aux frontières et de quarantaine à tous les points d'entrée officiels dans le pays."]
[46,"PCO","PCO-Rép-3-25","Réponse à l'apparition d'un foyer et autres activités de lutte contre la rage",3,25,"Existe-t-il une capacité à mener des enquêtes conjointes sur le terrain et à planifier des réponses à des foyers de rage humaine dans l'ensemble du pays ?","Cela signifie que vous devez avoir la capacité de mener une réponse à une épidémie dans n'importe quelle région du pays, y compris dans les régions les plus reculées. Cela ne signifie toutefois pas que cette activité doit être en place. \n\nPar exemple, vous pouvez déterminer s'il est possible d'utiliser le même réseau de réponse aux épidémies que celui utilisé pour d'autres maladies.  ",null,{"$f":"IFERROR(INDEX('Data coll & an'!$F$5:$F$50,MATCH($C47,'Data coll & an'!$A$5:$A$50,0)),IFERROR(INDEX('Prev & Ctrl'!$F$5:$F$50,MATCH($C47,'Prev & Ctrl'!$A$5:$A$50,0)),IFERROR(INDEX('Lab dx'!$F$5:$F$50,MATCH($C47,'Lab dx'!$A$5:$A$50,0)),IFERROR(INDEX('Dog popn'!$F$5:$F$50,MATCH($C47,'Dog popn'!$A$5:$A$50,0)),IFERROR(INDEX(IEC!$F$5:$F$50,MATCH($C47,IEC!$A$5:$A$50,0)),IFERROR(INDEX('Cross-cutting issues'!$F$5:$F$50,MATCH($C47,'Cross-cutting issues'!$A$5:$A$50,0)),IFERROR(INDEX(Legislation!$F$5:$F$50,MATCH($C47,Legislation!$A$5:$A$50,0)),\"\")))))))","v":0},{"$f":"IFERROR(INDEX('Data coll & an'!$G$5:$G$50,MATCH($C47,'Data coll & an'!$A$5:$A$50,0)),IFERROR(INDEX('Prev & Ctrl'!$G$5:$G$50,MATCH($C47,'Prev & Ctrl'!$A$5:$A$50,0)),IFERROR(INDEX('Lab dx'!$G$5:$G$50,MATCH($C47,'Lab dx'!$A$5:$A$50,0)),IFERROR(INDEX('Dog popn'!$G$5:$G$50,MATCH($C47,'Dog popn'!$A$5:$A$50,0)),IFERROR(INDEX(IEC!$G$5:$G$50,MATCH($C47,IEC!$A$5:$A$50,0)),IFERROR(INDEX('Cross-cutting issues'!$G$5:$G$50,MATCH($C47,'Cross-cutting issues'!$A$5:$A$50,0)),IFERROR(INDEX(Legislation!$G$5:$G$50,MATCH($C47,Legislation!$A$5:$A$50,0)),\"\")))))))","v":0},"WHO International Health Regulations","http://caninerabiesblueprint.org/WHO-International-Health","Challenges of animal health information systems and surveillance for animal diseases and zoonoses ","http://www.fao.org/3/a-i2415e.pdf",null,null,null,null,null,null,"• S'assurer que les canaux officiels de notification des maladies concernant les cas de rage humaine au niveau communautaire sont pleinement fonctionnels ;\n• En utilisant les données de surveillance existantes, déterminer le nombre estimé de cas de rage humaine qui devraient faire l'objet d'une enquête dans l'ensemble du pays chaque année;\n• En utilisant les informations générées par les enquêtes passées dans le pays, déterminer quelle capacité (par exemple, transport, ressources et consommables, personnel formé et équipement connexe, etc,) serait nécessaire pour mettre en œuvre le nombre estimé d'enquêtes;\n• Élaborer une proposition et un budget pour mettre en place la capacité nécessaire ; \n• Obtenir le financement et mettre en place la capacité nécessaire pour mener des enquêtes conjointes sur le terrain et des réponses planifiées aux foyers de rage humaine dans l'ensemble du pays.","Capacity to conduct field investigations and planned outbreak responses for human rabies cases in the entire country;","Groupe multisectoriel",8,"• Évaluation complète des ressources, du personnel et de l'infrastructure nécessaires.\n• Plan détaillé et estimation des coûts pour la mise en place d'une capacité commune d'investigation des cas de rage humaine dans l'ensemble du pays.\n• Preuve d'un financement assuré et de la mise en œuvre des ressources nécessaires.","","","","Mettre en place les capacités nécessaires pour mener des enquêtes conjointes sur le terrain et des réponses planifiées aux foyers de rage humaine dans l'ensemble du pays"]
[47,"PCO","PCO-Rép-3-26","Réponse à l'apparition d'un foyer et autres activités de lutte contre la rage",3,26,"Un dialogue a-t-il été initié avec les pays voisins pour prévenir la réintroduction de la rage dans des zones désignées comme étant exemptes de rage ?","Il n’est pas nécessaire d’avoir des accords officiels en place, mais vous devez avoir eu des discussions claires avec les pays voisins concernant la prévention de la réintroduction de la rage dans votre pays.",null,{"$f":"IFERROR(INDEX('Data coll & an'!$F$5:$F$50,MATCH($C48,'Data coll & an'!$A$5:$A$50,0)),IFERROR(INDEX('Prev & Ctrl'!$F$5:$F$50,MATCH($C48,'Prev & Ctrl'!$A$5:$A$50,0)),IFERROR(INDEX('Lab dx'!$F$5:$F$50,MATCH($C48,'Lab dx'!$A$5:$A$50,0)),IFERROR(INDEX('Dog popn'!$F$5:$F$50,MATCH($C48,'Dog popn'!$A$5:$A$50,0)),IFERROR(INDEX(IEC!$F$5:$F$50,MATCH($C48,IEC!$A$5:$A$50,0)),IFERROR(INDEX('Cross-cutting issues'!$F$5:$F$50,MATCH($C48,'Cross-cutting issues'!$A$5:$A$50,0)),IFERROR(INDEX(Legislation!$F$5:$F$50,MATCH($C48,Legislation!$A$5:$A$50,0)),\"\")))))))","v":0},{"$f":"IFERROR(INDEX('Data coll & an'!$G$5:$G$50,MATCH($C48,'Data coll & an'!$A$5:$A$50,0)),IFERROR(INDEX('Prev & Ctrl'!$G$5:$G$50,MATCH($C48,'Prev & Ctrl'!$A$5:$A$50,0)),IFERROR(INDEX('Lab dx'!$G$5:$G$50,MATCH($C48,'Lab dx'!$A$5:$A$50,0)),IFERROR(INDEX('Dog popn'!$G$5:$G$50,MATCH($C48,'Dog popn'!$A$5:$A$50,0)),IFERROR(INDEX(IEC!$G$5:$G$50,MATCH($C48,IEC!$A$5:$A$50,0)),IFERROR(INDEX('Cross-cutting issues'!$G$5:$G$50,MATCH($C48,'Cross-cutting issues'!$A$5:$A$50,0)),IFERROR(INDEX(Legislation!$G$5:$G$50,MATCH($C48,Legislation!$A$5:$A$50,0)),\"\")))))))","v":0},"5.4.17-successful-maintenance","http://caninerabiesblueprint.org/5-4-17-Our-programme-has-been?lang=en","Challenges of animal health information systems and surveillance for animal diseases and zoonoses ","http://www.fao.org/3/a-i2415e.pdf",null,null,null,null,null,null,"• Identifier les autorités compétentes (par exemple, la personne désignée par l'OMS comme référent pour la rage) dans les pays voisins où la rage est endémique ;\n• Partager et discuter des données épidémiologiques des zones indemnes de rage et des zones environnantes avec les autorités voisines ;\n• Partager les détails de la campagne de vaccination stratégique avec les autorités voisines et encourager la collaboration (par exemple, zones tampons de vaccination) ;\n• Identifier les moyens possibles de prévenir la réintroduction de la rage (y compris les campagnes de vaccination stratégiques conjointes, le contrôle des frontières, etc.)","Open dialogue initiated and continued with regards to joint efforts for the prevention of the re-introduction of rabies into designated rabies-free zones has been established;","Groupe multisectoriel",7,"• Collaboration et partage de données documentés avec les autorités des pays voisins.\n• Mise en œuvre de stratégies communes pour prévenir la réintroduction de la rage.","","","","Engager un dialogue avec les pays voisins pour empêcher la réintroduction de la rage dans les zones désignées comme exemptes de rage."]
[48,"PCO","PCO-Rép-3-27","Réponse à l'apparition d'un foyer et autres activités de lutte contre la rage",3,27,"Existe-t-il une capacité à mener des enquêtes conjointes sur le terrain et à planifier des réponses à des foyers de rage pour tous les cas de rage animale   dans l'ensemble du pays ?","Cela signifie que vous devez avoir la capacité de mener des enquêtes conjointes sur le terrain et des réponses planifiées à une épidémie dans n'importe quelle région du pays, y compris dans les régions les plus reculées. Cela ne signifie pas toutefois que cette activité doit être en place. Par exemple, vous pouvez déterminer s'il est possible d'utiliser le même réseau de réponse aux épidémies que celui utilisé pour d'autres maladies.",null,{"$f":"IFERROR(INDEX('Data coll & an'!$F$5:$F$50,MATCH($C49,'Data coll & an'!$A$5:$A$50,0)),IFERROR(INDEX('Prev & Ctrl'!$F$5:$F$50,MATCH($C49,'Prev & Ctrl'!$A$5:$A$50,0)),IFERROR(INDEX('Lab dx'!$F$5:$F$50,MATCH($C49,'Lab dx'!$A$5:$A$50,0)),IFERROR(INDEX('Dog popn'!$F$5:$F$50,MATCH($C49,'Dog popn'!$A$5:$A$50,0)),IFERROR(INDEX(IEC!$F$5:$F$50,MATCH($C49,IEC!$A$5:$A$50,0)),IFERROR(INDEX('Cross-cutting issues'!$F$5:$F$50,MATCH($C49,'Cross-cutting issues'!$A$5:$A$50,0)),IFERROR(INDEX(Legislation!$F$5:$F$50,MATCH($C49,Legislation!$A$5:$A$50,0)),\"\")))))))","v":0},{"$f":"IFERROR(INDEX('Data coll & an'!$G$5:$G$50,MATCH($C49,'Data coll & an'!$A$5:$A$50,0)),IFERROR(INDEX('Prev & Ctrl'!$G$5:$G$50,MATCH($C49,'Prev & Ctrl'!$A$5:$A$50,0)),IFERROR(INDEX('Lab dx'!$G$5:$G$50,MATCH($C49,'Lab dx'!$A$5:$A$50,0)),IFERROR(INDEX('Dog popn'!$G$5:$G$50,MATCH($C49,'Dog popn'!$A$5:$A$50,0)),IFERROR(INDEX(IEC!$G$5:$G$50,MATCH($C49,IEC!$A$5:$A$50,0)),IFERROR(INDEX('Cross-cutting issues'!$G$5:$G$50,MATCH($C49,'Cross-cutting issues'!$A$5:$A$50,0)),IFERROR(INDEX(Legislation!$G$5:$G$50,MATCH($C49,Legislation!$A$5:$A$50,0)),\"\")))))))","v":0},null,null,null,null,null,null,null,null,null,null,"• S'assurer que les canaux officiels de notification des maladies concernant les cas de rage animale au niveau communautaire sont pleinement opérationnels ;\n• En utilisant les données de surveillance existantes, déterminer le nombre estimé de cas de rage animale qui devraient faire l'objet d'une enquête dans l'ensemble du pays chaque année ;\n• En utilisant les informations générées par les enquêtes antérieures dans le pays, déterminer les capacités (par exemple, transport, ressources et consommables, personnel formé et équipement connexe, etc.) pour mettre en œuvre le nombre estimé d'enquêtes ;\n• Élaborer une proposition et un budget pour mettre en place la capacité nécessaire ;\n• Obtenir le financement et mettre en place la capacité nécessaire pour mener des enquêtes conjointes sur le terrain et des réponses planifiées aux foyers de rage animale dans l'ensemble du pays.","Capacity to conduct field investigations and planned outbreak responses for animal rabies cases in the entire country;","Groupe multisectoriel",9,"• Évaluation complète des ressources, du personnel et de l'infrastructure nécessaires.\n• Plan détaillé et estimation des coûts pour la mise en place d'une capacité d'enquête conjointe sur les cas de rage animale dans l'ensemble du pays.\n• Preuve d'un financement assuré et de la mise en œuvre des ressources nécessaires.","","","","Mettre en place les capacités nécessaires pour mener des enquêtes conjointes sur le terrain et des réponses planifiées aux foyers de rage animale dans l'ensemble du pays."]
[49,"PCO","PCO-Rép-3-28","Réponse à l'apparition d'un foyer et autres activités de lutte contre la rage",3,28,"Alors que votre pays se rapproche de l’élimination de la rage humaine, des enquêtes de terrain sont-elles menées pour TOUS les cas suspects de rage humaine dans l’ensemble du pays ? ","Vous pouvez répondre “Oui” si vous pouvez affirmer avec certitude que TOUS les cas suspects de rage humaine font l'objet d'une enquête. Cela n'est possible que lorsqu'il y a peu de cas de rage humaine grâce à des campagnes d'intervention réussies.","KEY",{"$f":"IFERROR(INDEX('Data coll & an'!$F$5:$F$50,MATCH($C50,'Data coll & an'!$A$5:$A$50,0)),IFERROR(INDEX('Prev & Ctrl'!$F$5:$F$50,MATCH($C50,'Prev & Ctrl'!$A$5:$A$50,0)),IFERROR(INDEX('Lab dx'!$F$5:$F$50,MATCH($C50,'Lab dx'!$A$5:$A$50,0)),IFERROR(INDEX('Dog popn'!$F$5:$F$50,MATCH($C50,'Dog popn'!$A$5:$A$50,0)),IFERROR(INDEX(IEC!$F$5:$F$50,MATCH($C50,IEC!$A$5:$A$50,0)),IFERROR(INDEX('Cross-cutting issues'!$F$5:$F$50,MATCH($C50,'Cross-cutting issues'!$A$5:$A$50,0)),IFERROR(INDEX(Legislation!$F$5:$F$50,MATCH($C50,Legislation!$A$5:$A$50,0)),\"\")))))))","v":0},{"$f":"IFERROR(INDEX('Data coll & an'!$G$5:$G$50,MATCH($C50,'Data coll & an'!$A$5:$A$50,0)),IFERROR(INDEX('Prev & Ctrl'!$G$5:$G$50,MATCH($C50,'Prev & Ctrl'!$A$5:$A$50,0)),IFERROR(INDEX('Lab dx'!$G$5:$G$50,MATCH($C50,'Lab dx'!$A$5:$A$50,0)),IFERROR(INDEX('Dog popn'!$G$5:$G$50,MATCH($C50,'Dog popn'!$A$5:$A$50,0)),IFERROR(INDEX(IEC!$G$5:$G$50,MATCH($C50,IEC!$A$5:$A$50,0)),IFERROR(INDEX('Cross-cutting issues'!$G$5:$G$50,MATCH($C50,'Cross-cutting issues'!$A$5:$A$50,0)),IFERROR(INDEX(Legislation!$G$5:$G$50,MATCH($C50,Legislation!$A$5:$A$50,0)),\"\")))))))","v":0},"2.2 Human rabies surveillance ","http://rabiessurveillanceblueprint.org/-2-2-Human-rabies-surveillance-",null,null,null,null,null,null,null,null,"• Veiller à ce que les mécanismes de signalement rapide des cas humains suspects, du niveau local au niveau national, soient en place et pleinement opérationnels ;\n• Garantir le financement et les ressources nécessaires pour enquêter sur tous les cas suspects de rage humaine dans tout le pays ;\n• Veiller à ce que les professionnels concernés disposent des ressources nécessaires et aient accès au financement requis pour enquêter sur tous les cas suspects de rage humaine qui sont signalés ;\n• Confirmer que les enquêtes sur le terrain sont opérationnelles dans tout le pays ;\n• Veiller à ce que les résultats des enquêtes soient communiqués au niveau national.","Each suspect human case is investigated based on surveillance data and case investigation protocols","Ministère de la santé",9,"• Évaluation des mécanismes de notification rapide du niveau local au niveau national (par exemple, évaluation du système de surveillance actuel).\n• Preuve de l'existence d'un financement et de ressources garantis pour les enquêtes exhaustives sur les cas humains suspects.\n• Rapports sur l'achèvement de la formation et sur les capacités des professionnels participant aux enquêtes sur le terrain.\n• Rapport de situation confirmant les enquêtes de terrain opérationnelles dans l'ensemble du pays.\n• Rapport national résumant les résultats des enquêtes sur le terrain.","","","","Alors que le pays se rapproche de l'élimination de la rage humaine, il convient de mener des enquêtes sur le terrain pour TOUS les cas suspects de rage humaine dans l'ensemble du pays."]
[50,"PCO","PCO-Rép-4-29","Réponse à l'apparition d'un foyer et autres activités de lutte contre la rage",4,29,"Alors que votre pays se rapproche de l’élimination de la rage canine, des enquêtes de terrain sont-elles menées pour TOUS les cas suspects de rage canine dans l’ensemble du pays ? ","Vous pouvez répondre “Oui” si vous pouvez affirmer avec certitude que TOUS les cas suspects de rage canine font l'objet d'une enquête. Cela n'est possible que lorsqu'il y a peu de cas de rage canine grâce à des campagnes de vaccination canine de masse réussies.","KEY",{"$f":"IFERROR(INDEX('Data coll & an'!$F$5:$F$50,MATCH($C51,'Data coll & an'!$A$5:$A$50,0)),IFERROR(INDEX('Prev & Ctrl'!$F$5:$F$50,MATCH($C51,'Prev & Ctrl'!$A$5:$A$50,0)),IFERROR(INDEX('Lab dx'!$F$5:$F$50,MATCH($C51,'Lab dx'!$A$5:$A$50,0)),IFERROR(INDEX('Dog popn'!$F$5:$F$50,MATCH($C51,'Dog popn'!$A$5:$A$50,0)),IFERROR(INDEX(IEC!$F$5:$F$50,MATCH($C51,IEC!$A$5:$A$50,0)),IFERROR(INDEX('Cross-cutting issues'!$F$5:$F$50,MATCH($C51,'Cross-cutting issues'!$A$5:$A$50,0)),IFERROR(INDEX(Legislation!$F$5:$F$50,MATCH($C51,Legislation!$A$5:$A$50,0)),\"\")))))))","v":0},{"$f":"IFERROR(INDEX('Data coll & an'!$G$5:$G$50,MATCH($C51,'Data coll & an'!$A$5:$A$50,0)),IFERROR(INDEX('Prev & Ctrl'!$G$5:$G$50,MATCH($C51,'Prev & Ctrl'!$A$5:$A$50,0)),IFERROR(INDEX('Lab dx'!$G$5:$G$50,MATCH($C51,'Lab dx'!$A$5:$A$50,0)),IFERROR(INDEX('Dog popn'!$G$5:$G$50,MATCH($C51,'Dog popn'!$A$5:$A$50,0)),IFERROR(INDEX(IEC!$G$5:$G$50,MATCH($C51,IEC!$A$5:$A$50,0)),IFERROR(INDEX('Cross-cutting issues'!$G$5:$G$50,MATCH($C51,'Cross-cutting issues'!$A$5:$A$50,0)),IFERROR(INDEX(Legislation!$G$5:$G$50,MATCH($C51,Legislation!$A$5:$A$50,0)),\"\")))))))","v":0},null,null,null,null,null,null,null,null,null,null,"• Veiller à ce que les mécanismes de signalement rapide des cas suspects de rage animale, du niveau local au niveau national, soient en place et pleinement opérationnels ;\n• Garantir le financement et les ressources nécessaires pour enquêter sur tous les cas suspects de rage animale partout dans le pays ;\n• Veiller à ce que les professionnels concernés disposent des ressources nécessaires et aient accès au financement requis pour enquêter sur tous les cas suspects de rage animale qui sont signalés ;\n• Confirmer que les enquêtes sur le terrain sont opérationnelles dans tout le pays ;\n• Veiller à ce que les résultats des enquêtes soient communiqués au niveau national.","Each suspect animal case is investigated based on surveillance data and case investigation protocols","Ministère de l’agriculture",10,"• Évaluation des mécanismes de notification rapide de tous les cas suspects de rage animale (par exemple, évaluation du système de surveillance actuel).\n• Documentation sur le financement et les ressources assurés pour toutes les enquêtes sur les cas suspects de rage animale.\n• Rapports d'achèvement de la formation des professionnels chargés d'enquêter sur tous les cas suspects de rage animale.\n• Rapport confirmant la mise en œuvre à l'échelle nationale des enquêtes sur tous les cas suspects de rage animale.\n• Rapport sur les résultats des enquêtes soumis à l'autorité nationale.","","","","Alors que le pays se rapproche de l'élimination de la rage canine, mener des enquêtes sur le terrain pour TOUS les cas suspects de rage canine dans l'ensemble du pays."]
[51,"PCO","PCO-Rép-4-30","Réponse à l'apparition d'un foyer et autres activités de lutte contre la rage",4,30,"Alors qu’il n’y a plus de cas de rage humaine confirmée au laboratoire, les activités de surveillance existantes pour tous les cas humains suspects sont-elles maintenues dans le pays ?","Par exemple, investigation clinique de tous les patients présentant des symptômes d’encéphalite.","KEY",{"$f":"IFERROR(INDEX('Data coll & an'!$F$5:$F$50,MATCH($C52,'Data coll & an'!$A$5:$A$50,0)),IFERROR(INDEX('Prev & Ctrl'!$F$5:$F$50,MATCH($C52,'Prev & Ctrl'!$A$5:$A$50,0)),IFERROR(INDEX('Lab dx'!$F$5:$F$50,MATCH($C52,'Lab dx'!$A$5:$A$50,0)),IFERROR(INDEX('Dog popn'!$F$5:$F$50,MATCH($C52,'Dog popn'!$A$5:$A$50,0)),IFERROR(INDEX(IEC!$F$5:$F$50,MATCH($C52,IEC!$A$5:$A$50,0)),IFERROR(INDEX('Cross-cutting issues'!$F$5:$F$50,MATCH($C52,'Cross-cutting issues'!$A$5:$A$50,0)),IFERROR(INDEX(Legislation!$F$5:$F$50,MATCH($C52,Legislation!$A$5:$A$50,0)),\"\")))))))","v":0},{"$f":"IFERROR(INDEX('Data coll & an'!$G$5:$G$50,MATCH($C52,'Data coll & an'!$A$5:$A$50,0)),IFERROR(INDEX('Prev & Ctrl'!$G$5:$G$50,MATCH($C52,'Prev & Ctrl'!$A$5:$A$50,0)),IFERROR(INDEX('Lab dx'!$G$5:$G$50,MATCH($C52,'Lab dx'!$A$5:$A$50,0)),IFERROR(INDEX('Dog popn'!$G$5:$G$50,MATCH($C52,'Dog popn'!$A$5:$A$50,0)),IFERROR(INDEX(IEC!$G$5:$G$50,MATCH($C52,IEC!$A$5:$A$50,0)),IFERROR(INDEX('Cross-cutting issues'!$G$5:$G$50,MATCH($C52,'Cross-cutting issues'!$A$5:$A$50,0)),IFERROR(INDEX(Legislation!$G$5:$G$50,MATCH($C52,Legislation!$A$5:$A$50,0)),\"\")))))))","v":0},null,null,null,null,null,null,null,null,null,null,"• Mettre en place des mécanismes permettant de signaler les cas d'encéphalite au niveau national en utilisant le système de surveillance national ;\n• Veiller à ce que tous les cas d'encéphalite soient signalés au niveau national en temps utile ;\n• Veiller à ce que chaque cas d'encéphalite fasse l'objet d'une enquête ;\n• Produire et diffuser des rapports sur les enquêtes auprès de toutes les parties prenantes concernées.","All suspect human rabies cases detected and case investigations undertaken and reported upon to ensure that no new human cases arise and the country remains free from human rabies. ","Ministère de la santé",11,"• Protocole de notification des cas d'encéphalite via le système de surveillance national.\n• Rapport de suivi des données garantissant la notification des cas d'encéphalite dans les délais impartis.\n• Rapports d'enquête pour tous les cas d'encéphalite.\n• Diffusion périodique des résultats de l'enquête aux parties prenantes par le biais de rapports détaillés.","","","","Étant donné qu'il n'y a plus de cas de rage humaine confirmés en laboratoire, maintenir les activités de surveillance existantes pour tous les cas suspects chez l'homme dans le pays."]
[52,"PCO","PCO-Rép-4-31","Réponse à l'apparition d'un foyer et autres activités de lutte contre la rage",4,31,"Maintenant qu’il y a très peu de cas de rage animale dans votre pays, un plan d'intervention d'urgence a-t-il été élaboré au cas où la variante canine de la rage serait réintroduite dans les zones exemptes de rage ?","Ne répondez “Oui” que si votre pays a officiellement déclaré des zones exemptes de rage.","KEY",{"$f":"IFERROR(INDEX('Data coll & an'!$F$5:$F$50,MATCH($C53,'Data coll & an'!$A$5:$A$50,0)),IFERROR(INDEX('Prev & Ctrl'!$F$5:$F$50,MATCH($C53,'Prev & Ctrl'!$A$5:$A$50,0)),IFERROR(INDEX('Lab dx'!$F$5:$F$50,MATCH($C53,'Lab dx'!$A$5:$A$50,0)),IFERROR(INDEX('Dog popn'!$F$5:$F$50,MATCH($C53,'Dog popn'!$A$5:$A$50,0)),IFERROR(INDEX(IEC!$F$5:$F$50,MATCH($C53,IEC!$A$5:$A$50,0)),IFERROR(INDEX('Cross-cutting issues'!$F$5:$F$50,MATCH($C53,'Cross-cutting issues'!$A$5:$A$50,0)),IFERROR(INDEX(Legislation!$F$5:$F$50,MATCH($C53,Legislation!$A$5:$A$50,0)),\"\")))))))","v":0},{"$f":"IFERROR(INDEX('Data coll & an'!$G$5:$G$50,MATCH($C53,'Data coll & an'!$A$5:$A$50,0)),IFERROR(INDEX('Prev & Ctrl'!$G$5:$G$50,MATCH($C53,'Prev & Ctrl'!$A$5:$A$50,0)),IFERROR(INDEX('Lab dx'!$G$5:$G$50,MATCH($C53,'Lab dx'!$A$5:$A$50,0)),IFERROR(INDEX('Dog popn'!$G$5:$G$50,MATCH($C53,'Dog popn'!$A$5:$A$50,0)),IFERROR(INDEX(IEC!$G$5:$G$50,MATCH($C53,IEC!$A$5:$A$50,0)),IFERROR(INDEX('Cross-cutting issues'!$G$5:$G$50,MATCH($C53,'Cross-cutting issues'!$A$5:$A$50,0)),IFERROR(INDEX(Legislation!$G$5:$G$50,MATCH($C53,Legislation!$A$5:$A$50,0)),\"\")))))))","v":0},"5.4.20 Reintroduction response ","http://caninerabiesblueprint.org/5-4-20-What-do-we-need-to-do-if",null,null,null,null,null,null,null,null,"• Déterminer s'il existe déjà des plans d'urgence dans le pays ;\n• Examiner les plans d'urgence existants pour évaluer ceux qui ont été élaborés ailleurs et qui pourraient être adaptés à votre pays ;\n• Rédiger un plan d'urgence contre la rage en utilisant du matériel nouveau et existant ;\n• Partager le plan d'urgence avec toutes les autorités compétentes pour obtenir des informations en retour ; \n• Affiner et finaliser le plan d'urgence sur la base du retour d'information ;\n• Obtenir un financement pour la mise en œuvre éventuelle du plan d'urgence ;\n• Veiller à ce que le personnel concerné soit formé et dispose des ressources nécessaires pour la mise en œuvre éventuelle du plan d'urgence.","Emergency/contingency plan developed, funding secured, personnel trained and resources available for the possible implementation of the plan;","Groupe multisectoriel",10,"• Plan d'intervention d'urgence contre la rage finalisé et diffusé.\n• Preuve de l'existence d'un personnel formé, de ressources et d'un financement assuré pour les mesures d'urgence.","","","","Maintenant qu'il y a très peu de cas de rage animale dans le pays, élaborer une réponse d'urgence ou un plan de secours au cas où la variante canine de la rage serait réintroduite dans les zones exemptes de rage."]
[53,"PCO","PCO-Rép-5-32","Réponse à l'apparition d'un foyer et autres activités de lutte contre la rage",5,32,"Même si vous êtes désormais exempts de rage canine grâce aux campagnes de vaccination de masse réussies, la capacité de réponse conjointe à un foyer de rage a-t-elle été maintenue ? "," ","KEY",{"$f":"IFERROR(INDEX('Data coll & an'!$F$5:$F$50,MATCH($C54,'Data coll & an'!$A$5:$A$50,0)),IFERROR(INDEX('Prev & Ctrl'!$F$5:$F$50,MATCH($C54,'Prev & Ctrl'!$A$5:$A$50,0)),IFERROR(INDEX('Lab dx'!$F$5:$F$50,MATCH($C54,'Lab dx'!$A$5:$A$50,0)),IFERROR(INDEX('Dog popn'!$F$5:$F$50,MATCH($C54,'Dog popn'!$A$5:$A$50,0)),IFERROR(INDEX(IEC!$F$5:$F$50,MATCH($C54,IEC!$A$5:$A$50,0)),IFERROR(INDEX('Cross-cutting issues'!$F$5:$F$50,MATCH($C54,'Cross-cutting issues'!$A$5:$A$50,0)),IFERROR(INDEX(Legislation!$F$5:$F$50,MATCH($C54,Legislation!$A$5:$A$50,0)),\"\")))))))","v":0},{"$f":"IFERROR(INDEX('Data coll & an'!$G$5:$G$50,MATCH($C54,'Data coll & an'!$A$5:$A$50,0)),IFERROR(INDEX('Prev & Ctrl'!$G$5:$G$50,MATCH($C54,'Prev & Ctrl'!$A$5:$A$50,0)),IFERROR(INDEX('Lab dx'!$G$5:$G$50,MATCH($C54,'Lab dx'!$A$5:$A$50,0)),IFERROR(INDEX('Dog popn'!$G$5:$G$50,MATCH($C54,'Dog popn'!$A$5:$A$50,0)),IFERROR(INDEX(IEC!$G$5:$G$50,MATCH($C54,IEC!$A$5:$A$50,0)),IFERROR(INDEX('Cross-cutting issues'!$G$5:$G$50,MATCH($C54,'Cross-cutting issues'!$A$5:$A$50,0)),IFERROR(INDEX(Legislation!$G$5:$G$50,MATCH($C54,Legislation!$A$5:$A$50,0)),\"\")))))))","v":0},"5.4.17-successful-maintenance","http://caninerabiesblueprint.org/5-4-17-Our-programme-has-been?lang=en",null,null,null,null,null,null,null,null,"• Réviser et mettre à jour régulièrement le protocole établi pour la réponse conjointe aux flambées épidémiques ;\n• Partager régulièrement le protocole avec les nouveaux professionnels responsables de sa mise en œuvre ;\n• Fournir une formation continue aux professionnels (par exemple, réponse aux flambées épidémiques, manipulation et vaccination des animaux, enquête sur les cas, etc.);\n• Veiller à ce qu'un financement et des ressources suffisants restent disponibles pour l'accès d'urgence.","Continued awareness and preparedness within expert network operating at the local level;","Groupe multisectoriel",12,"• Protocoles d'intervention en cas d'épidémie régulièrement mis à jour.\n• Formation continue et allocation de ressources pour les équipes d'intervention d'urgence.","","","","Même si vous êtes débarrassé de la rage canine grâce à des campagnes de vaccination de masse réussies, maintenir la capacité d'intervention conjointe en cas d'épidémie."]
[54,"LAB","LAB-Env-0-1","Envoi de prélèvements",0,1,"Un contact a-t-il été établi avec un laboratoire international de référence pour la rage (OMSA), un centre collaborateur (OMS) ou un centre de référence (FAO) ?","Vous pouvez « Oui” si vous avez pris contact. Il n’est pas nécessaire d’envoyer ou de recevoir des prélèvements pour répondre « Oui » à cette question.","KEY",{"$f":"IFERROR(INDEX('Data coll & an'!$F$5:$F$50,MATCH($C55,'Data coll & an'!$A$5:$A$50,0)),IFERROR(INDEX('Prev & Ctrl'!$F$5:$F$50,MATCH($C55,'Prev & Ctrl'!$A$5:$A$50,0)),IFERROR(INDEX('Lab dx'!$F$5:$F$50,MATCH($C55,'Lab dx'!$A$5:$A$50,0)),IFERROR(INDEX('Dog popn'!$F$5:$F$50,MATCH($C55,'Dog popn'!$A$5:$A$50,0)),IFERROR(INDEX(IEC!$F$5:$F$50,MATCH($C55,IEC!$A$5:$A$50,0)),IFERROR(INDEX('Cross-cutting issues'!$F$5:$F$50,MATCH($C55,'Cross-cutting issues'!$A$5:$A$50,0)),IFERROR(INDEX(Legislation!$F$5:$F$50,MATCH($C55,Legislation!$A$5:$A$50,0)),\"\")))))))","v":1},{"$f":"IFERROR(INDEX('Data coll & an'!$G$5:$G$50,MATCH($C55,'Data coll & an'!$A$5:$A$50,0)),IFERROR(INDEX('Prev & Ctrl'!$G$5:$G$50,MATCH($C55,'Prev & Ctrl'!$A$5:$A$50,0)),IFERROR(INDEX('Lab dx'!$G$5:$G$50,MATCH($C55,'Lab dx'!$A$5:$A$50,0)),IFERROR(INDEX('Dog popn'!$G$5:$G$50,MATCH($C55,'Dog popn'!$A$5:$A$50,0)),IFERROR(INDEX(IEC!$G$5:$G$50,MATCH($C55,IEC!$A$5:$A$50,0)),IFERROR(INDEX('Cross-cutting issues'!$G$5:$G$50,MATCH($C55,'Cross-cutting issues'!$A$5:$A$50,0)),IFERROR(INDEX(Legislation!$G$5:$G$50,MATCH($C55,Legislation!$A$5:$A$50,0)),\"\")))))))","v":0},"3.1.7 Which laboratories are-available","http://caninerabiesblueprint.org/3-1-7-Which-laboratories-are?lang=en","OIE reference laboratories","http://www.oie.int/en/our-scientific-expertise/reference-laboratories/list-of-laboratories/","WHO collaborating centres","http://apps.who.int/whocc/List.aspx?cc_subject=Rabies+&","FAO reference centre","http://www.izsvenezie.com/reference-laboratories/rabies/","WHO expert consultation on rabies","http://caninerabiesblueprint.org/WHO-expert-consultation-on-rabies","•\tIdentifier le laboratoire international de référence pour la rage (OMSA), le centre collaborateur (OMS) ou le centre de référence (FAO) le plus proche ;\n•\tPrendre contact avec la personne responsable du laboratoire choisi ; \n•\tDéterminer si un accord formel ou un protocole d'accord est nécessaire avec le laboratoire international.","Contact has been made with an  international rabies reference laboratory or international collaborating/reference center","Ministère de l’agriculture; \nMinistère de la santé",1,"• Liste des laboratoires internationaux compétents en matière de rage.\n• Identification de la principale personne de contact du laboratoire international et enregistrement de ses coordonnées.\n• Protocole d'accord ou accord formel (si nécessaire).","","","","Prendre contact avec un laboratoire international de référence pour la rage (OMSA), un centre collaborateur (OMS) ou un centre de référence (FAO)."]
[55,"LAB","LAB-Env-0-2","Envoi de prélèvements",0,2,"Avez-vous confirmé la présence de rage animale ou humaine dans votre pays au moyen d’un diagnostic au laboratoire?","Vous pouvez répondre “Oui” si un prélèvement a été envoyé à un laboratoire international de référence pour la rage (OMSA), un centre collaborateur (OMS) ou un centre de référence (FAO).\n \nOU\n \nSi le cas a été confirmé dans un laboratoire national utilisant un test recommandé par l’OMSA.","KEY",{"$f":"IFERROR(INDEX('Data coll & an'!$F$5:$F$50,MATCH($C56,'Data coll & an'!$A$5:$A$50,0)),IFERROR(INDEX('Prev & Ctrl'!$F$5:$F$50,MATCH($C56,'Prev & Ctrl'!$A$5:$A$50,0)),IFERROR(INDEX('Lab dx'!$F$5:$F$50,MATCH($C56,'Lab dx'!$A$5:$A$50,0)),IFERROR(INDEX('Dog popn'!$F$5:$F$50,MATCH($C56,'Dog popn'!$A$5:$A$50,0)),IFERROR(INDEX(IEC!$F$5:$F$50,MATCH($C56,IEC!$A$5:$A$50,0)),IFERROR(INDEX('Cross-cutting issues'!$F$5:$F$50,MATCH($C56,'Cross-cutting issues'!$A$5:$A$50,0)),IFERROR(INDEX(Legislation!$F$5:$F$50,MATCH($C56,Legislation!$A$5:$A$50,0)),\"\")))))))","v":1},{"$f":"IFERROR(INDEX('Data coll & an'!$G$5:$G$50,MATCH($C56,'Data coll & an'!$A$5:$A$50,0)),IFERROR(INDEX('Prev & Ctrl'!$G$5:$G$50,MATCH($C56,'Prev & Ctrl'!$A$5:$A$50,0)),IFERROR(INDEX('Lab dx'!$G$5:$G$50,MATCH($C56,'Lab dx'!$A$5:$A$50,0)),IFERROR(INDEX('Dog popn'!$G$5:$G$50,MATCH($C56,'Dog popn'!$A$5:$A$50,0)),IFERROR(INDEX(IEC!$G$5:$G$50,MATCH($C56,IEC!$A$5:$A$50,0)),IFERROR(INDEX('Cross-cutting issues'!$G$5:$G$50,MATCH($C56,'Cross-cutting issues'!$A$5:$A$50,0)),IFERROR(INDEX(Legislation!$G$5:$G$50,MATCH($C56,Legislation!$A$5:$A$50,0)),\"\")))))))","v":0},"Simple-techniques-for animal brain-sampling","http://caninerabiesblueprint.org/Simple-techniques-for-brain-sample?lang=en","3.6 Human samples","http://rabiessurveillanceblueprint.org/3-6-What-samples-do-we-need-to",null,null,null,null,null,null,"Si la rage ne peut pas être diagnostiquée dans le pays :\n• Contactez le laboratoire international de référence pour la rage (OMSA), le centre collaborateur (OMS) ou le centre de référence (FAO) avec lequel vous avez des relations de travail ;\n• Déterminez les exigences en matière de soumission de prélèvements (par exemple, exigences en matière de prélèvements, stockage, transport, etc.)\n• Déterminez si un financement est nécessaire pour l'envoi des prélèvements et obtenez les fonds si nécessaire ;\n• Envoyer un panel de prélèvements suspects de rage au laboratoire international ;\n• Suivre le résultat diagnostique des prélèvements soumis ;\n• Signaler le résultat du test diagnostique en utilisant les canaux gouvernementaux appropriés, en notifiant toutes les parties prenantes concernées et en communiquant les résultats à l’OMSA et à l'OMS dans le cadre des exigences internationales en matière de notification.\n\nSi la rage peut être diagnostiquée dans le pays :\n• Confirmer que le laboratoire national dispose des réactifs, des consommables et de l'équipement fonctionnel nécessaires pour diagnostiquer la rage à l'aide d'un test recommandé par l'OMSA ou l'OMS ;\n•Si ce n'est pas le cas, élaborer un budget et assurer le financement pour que le laboratoire de la rage existant redevienne opérationnel ;\n• Recevoir et diagnostiquer au moins un prélèvement de rage animale ou humaine \n• Signaler le résultat du test diagnostique en utilisant les canaux gouvernementaux appropriés, en notifiant toutes les parties prenantes concernées et en communiquant les résultats à l'OMSA et à l'OMS dans le cadre des exigences internationales en matière de notification.","Rabies suspect samples have been submitted for diagnosis at an international reference laboratory; \nResults from diagnosis have been received; ","Ministère de l’agriculture; \nMinistère de la santé",1,"Si la rage ne peut pas être diagnostiquée dans le pays :\n• Document décrivant les exigences en matière de soumission de prélèvements et les besoins de financement.\n• Preuve de l'envoi de prélèvement et confirmation de sa réception.\n• Rapport sur les résultats du diagnostic reçu et soumis aux autorités gouvernementales et aux organismes internationaux (par exemple, OMSA, OMS).\n\nSi la rage peut être diagnostiquée dans le pays :\n• Rapport d'inventaire des réactifs, des consommables et de l'équipement.\n• Proposition de budget pour obtenir les ressources manquantes.\n• Rapports de tests de laboratoire pour au moins un prélèvement de rage confirmé.","","","","Confirmer la présence de la rage animale ou humaine dans le pays à l'aide d'un diagnostic de laboratoire."]
[56,"LAB","LAB-Cap-1-3","Capacités des laboratoires et tests",1,3,"Le diagnostic de rage au moyen d’un test recommandé par l’OMSA est-il réalisé dans au moins un laboratoire national (laboratoire de santé vétérinaire OU humaine) ? ","Vous pouvez répondre “Oui” si des laboratoires du pays réalisent effectivement des diagnostics sur prélèvements, indépendamment de la fréquence des tests et de l’espèce concernée (autrement dit, il peut s’agir de diagnostic de rage sur prélèvement humain ou sur prélèvement animal. Il n’est pas nécessaire que ce soit les deux).","KEY",{"$f":"IFERROR(INDEX('Data coll & an'!$F$5:$F$50,MATCH($C57,'Data coll & an'!$A$5:$A$50,0)),IFERROR(INDEX('Prev & Ctrl'!$F$5:$F$50,MATCH($C57,'Prev & Ctrl'!$A$5:$A$50,0)),IFERROR(INDEX('Lab dx'!$F$5:$F$50,MATCH($C57,'Lab dx'!$A$5:$A$50,0)),IFERROR(INDEX('Dog popn'!$F$5:$F$50,MATCH($C57,'Dog popn'!$A$5:$A$50,0)),IFERROR(INDEX(IEC!$F$5:$F$50,MATCH($C57,IEC!$A$5:$A$50,0)),IFERROR(INDEX('Cross-cutting issues'!$F$5:$F$50,MATCH($C57,'Cross-cutting issues'!$A$5:$A$50,0)),IFERROR(INDEX(Legislation!$F$5:$F$50,MATCH($C57,Legislation!$A$5:$A$50,0)),\"\")))))))","v":1},{"$f":"IFERROR(INDEX('Data coll & an'!$G$5:$G$50,MATCH($C57,'Data coll & an'!$A$5:$A$50,0)),IFERROR(INDEX('Prev & Ctrl'!$G$5:$G$50,MATCH($C57,'Prev & Ctrl'!$A$5:$A$50,0)),IFERROR(INDEX('Lab dx'!$G$5:$G$50,MATCH($C57,'Lab dx'!$A$5:$A$50,0)),IFERROR(INDEX('Dog popn'!$G$5:$G$50,MATCH($C57,'Dog popn'!$A$5:$A$50,0)),IFERROR(INDEX(IEC!$G$5:$G$50,MATCH($C57,IEC!$A$5:$A$50,0)),IFERROR(INDEX('Cross-cutting issues'!$G$5:$G$50,MATCH($C57,'Cross-cutting issues'!$A$5:$A$50,0)),IFERROR(INDEX(Legislation!$G$5:$G$50,MATCH($C57,Legislation!$A$5:$A$50,0)),\"\")))))))","v":0},"3.1.8 Minimum laboratory requirements","http://caninerabiesblueprint.org/3-1-8-What-are-the-minimum?lang=en","OIE Manual of Diagnostic Tests and Vaccines  for Terrestrial Animals  ","http://caninerabiesblueprint.org/OIE-Manual-of-Diagnostic-Tests-and"," Laboratory biorisk management/","http://caninerabiesblueprint.org/Laboratory-biorisk-management","4. Laboratory rabies diagnosis","http://rabiessurveillanceblueprint.org/-Laboratory-rabies-diagnosis-",null,null,"• Identifier une installation appropriée où un laboratoire de diagnostic de la rage peut être établi ;\n• Entreprendre une évaluation des besoins pour déterminer la disponibilité des procédures opérationnelles standard, des réactifs, du personnel formé, de l'équipement nécessaire pour mettre en place un diagnostic fonctionnel de la rage ;\n• Élaborer un budget et obtenir un financement pour remédier à toute lacune identifiée dans l'évaluation des besoins ;\n• Remédier aux lacunes identifiées et mettre en place le laboratoire de diagnostic ;\n• Informer les professionnels de la disponibilité du laboratoire de diagnostic de la rage et demander la soumission de prélèvements ;\n• Diagnostiquer tous les prélèvements qui ont été soumis.","Diagnostic outcomes for suspect rabies samples determined by the laboratory;","Ministère de l’agriculture (diagnostic de rage animale). \nMinistère de la santé (diagnostic de rage humaine).",2,"• Rapport sur les installations identifiées et évaluation de leur adéquation.\n• Rapport d'évaluation des besoins détaillant les ressources disponibles et nécessaires, y compris une proposition de budget pour combler les lacunes.\n• Documentation des améliorations apportées et de la mise en place de la capacité de diagnostic.\n• Communications envoyées aux professionnels concernés pour leur demander de soumettre des prélèvements.\n• Dossiers d'analyse en laboratoire des prélèvements diagnostiqués.","","","","Effectuer le diagnostic de la rage à l'aide d'un test recommandé par l'OMSA dans au moins un laboratoire national (vétérinaire OU de santé humaine)."]
[57,"LAB","LAB-Cap-1-4","Capacités des laboratoires et tests",1,4,"Des prélèvements suspects de rage – provenant d’animaux OU d’êtres humains– sont-ils analysés dans le pays plusieurs fois par an ?  ","Vous pouvez répondre “Oui” si les laboratoires du pays reçoivent des prélèvements animaux ou humains certains mois de l’année.",null,{"$f":"IFERROR(INDEX('Data coll & an'!$F$5:$F$50,MATCH($C58,'Data coll & an'!$A$5:$A$50,0)),IFERROR(INDEX('Prev & Ctrl'!$F$5:$F$50,MATCH($C58,'Prev & Ctrl'!$A$5:$A$50,0)),IFERROR(INDEX('Lab dx'!$F$5:$F$50,MATCH($C58,'Lab dx'!$A$5:$A$50,0)),IFERROR(INDEX('Dog popn'!$F$5:$F$50,MATCH($C58,'Dog popn'!$A$5:$A$50,0)),IFERROR(INDEX(IEC!$F$5:$F$50,MATCH($C58,IEC!$A$5:$A$50,0)),IFERROR(INDEX('Cross-cutting issues'!$F$5:$F$50,MATCH($C58,'Cross-cutting issues'!$A$5:$A$50,0)),IFERROR(INDEX(Legislation!$F$5:$F$50,MATCH($C58,Legislation!$A$5:$A$50,0)),\"\")))))))","v":1},{"$f":"IFERROR(INDEX('Data coll & an'!$G$5:$G$50,MATCH($C58,'Data coll & an'!$A$5:$A$50,0)),IFERROR(INDEX('Prev & Ctrl'!$G$5:$G$50,MATCH($C58,'Prev & Ctrl'!$A$5:$A$50,0)),IFERROR(INDEX('Lab dx'!$G$5:$G$50,MATCH($C58,'Lab dx'!$A$5:$A$50,0)),IFERROR(INDEX('Dog popn'!$G$5:$G$50,MATCH($C58,'Dog popn'!$A$5:$A$50,0)),IFERROR(INDEX(IEC!$G$5:$G$50,MATCH($C58,IEC!$A$5:$A$50,0)),IFERROR(INDEX('Cross-cutting issues'!$G$5:$G$50,MATCH($C58,'Cross-cutting issues'!$A$5:$A$50,0)),IFERROR(INDEX(Legislation!$G$5:$G$50,MATCH($C58,Legislation!$A$5:$A$50,0)),\"\")))))))","v":0},"Simple-techniques-for animal brain-sampling","http://caninerabiesblueprint.org/Simple-techniques-for-brain-sample?lang=en","Manual of Diagnostic Tests and Vaccines for Terrestrial Animals 2016","http://caninerabiesblueprint.org/OIE-Manual-of-Diagnostic-Tests-and","WHO guidance on regulations for the transport of infectious substances","http://caninerabiesblueprint.org/WHO-Guidance-on-Transport-of",null,null,null,null,"• Déterminer les lacunes existantes qui empêchent la collecte, la soumission et le diagnostic des prélèvements;\n• Identifier les solutions potentielles pour surmonter les lacunes ;\n• Élaborer un budget et assurer le financement nécessaire pour remédier aux lacunes ;\n• Remédier aux lacunes pour améliorer la collecte, la soumission et le diagnostic des prélèvements;\n• Réévaluer périodiquement la situation pour s'assurer que les prélèvements suspects de rage sont collectés et diagnostiqués dans le pays tout au long de l'année.","Several suspect rabies samples have been submitted and diagnosed at the national rabies laboratory;","Ministère de l’agriculture (diagnostic de rage animale). \nMinistère de la santé (diagnostic de rage humaine).",3,"• Rapport sur les obstacles à la collecte, à la soumission et au diagnostic des prélèvements, comprenant une liste de solutions et de plans d'action proposés.\n• Proposition de budget et financement assuré pour les améliorations.\n• Rapport de mise en œuvre montrant l'amélioration de la capacité de diagnostic.\n• Rapports d'évaluation périodiques sur les tendances en matière de surveillance et de diagnostic.","","","","Diagnostiquer les prélèvements suspects de rage - provenant d'animaux OU d'humains - dans le pays plusieurs fois par an."]
[58,"LAB","LAB-Cap-2-5","Capacités des laboratoires et tests",2,5,"Votre pays procède-t-il à des tests de compétence auprès d'un laboratoire internationalement reconnu ?","Par exemple laboratoire de référence de l’OMSA, centre collaborateur OMS, centre de référence FAO, etc. ",null,{"$f":"IFERROR(INDEX('Data coll & an'!$F$5:$F$50,MATCH($C59,'Data coll & an'!$A$5:$A$50,0)),IFERROR(INDEX('Prev & Ctrl'!$F$5:$F$50,MATCH($C59,'Prev & Ctrl'!$A$5:$A$50,0)),IFERROR(INDEX('Lab dx'!$F$5:$F$50,MATCH($C59,'Lab dx'!$A$5:$A$50,0)),IFERROR(INDEX('Dog popn'!$F$5:$F$50,MATCH($C59,'Dog popn'!$A$5:$A$50,0)),IFERROR(INDEX(IEC!$F$5:$F$50,MATCH($C59,IEC!$A$5:$A$50,0)),IFERROR(INDEX('Cross-cutting issues'!$F$5:$F$50,MATCH($C59,'Cross-cutting issues'!$A$5:$A$50,0)),IFERROR(INDEX(Legislation!$F$5:$F$50,MATCH($C59,Legislation!$A$5:$A$50,0)),\"\")))))))","v":0},{"$f":"IFERROR(INDEX('Data coll & an'!$G$5:$G$50,MATCH($C59,'Data coll & an'!$A$5:$A$50,0)),IFERROR(INDEX('Prev & Ctrl'!$G$5:$G$50,MATCH($C59,'Prev & Ctrl'!$A$5:$A$50,0)),IFERROR(INDEX('Lab dx'!$G$5:$G$50,MATCH($C59,'Lab dx'!$A$5:$A$50,0)),IFERROR(INDEX('Dog popn'!$G$5:$G$50,MATCH($C59,'Dog popn'!$A$5:$A$50,0)),IFERROR(INDEX(IEC!$G$5:$G$50,MATCH($C59,IEC!$A$5:$A$50,0)),IFERROR(INDEX('Cross-cutting issues'!$G$5:$G$50,MATCH($C59,'Cross-cutting issues'!$A$5:$A$50,0)),IFERROR(INDEX(Legislation!$G$5:$G$50,MATCH($C59,Legislation!$A$5:$A$50,0)),\"\")))))))","v":0},"6.7 International databases","http://rabiessurveillanceblueprint.org/6-7-What-international-rabies?lang=en",null,null,null,null,null,null,null,null,"• Contacter le laboratoire international de référence pour la rage (OMSA), le centre collaborateur (OMS) ou le centre de référence (FAO) avec lequel vous êtes en relation pour participer au prochain essai d'aptitude prévu ;\n• S'assurer que tous les documents, accords, permis et autorisations nécessaires ont été obtenus et complétés pour l'importation d'échantillons dans le pays ;\n• S'assurer que les échantillons destinés à l'essai d'aptitude arrivent au laboratoire \n• Tester tous les échantillons reçus pour l'essai d'aptitude conformément aux instructions du laboratoire international ;\n• Communiquer les résultats diagnostiques finaux de l'essai d'aptitude au laboratoire international ;\n• Obtenir les résultats finaux de l'essai d'aptitude auprès du laboratoire international ;\n• Discuter des résultats avec le laboratoire international et déterminer le meilleur plan d'action en fonction des résultats ;\n• Demander à être inclus dans les futurs tests régionaux de compétence en matière de rage.","The national laboratory undertakes proficiency testing regularly;","Ministère de l’agriculture; \nMinistère de la santé",5,"• Confirmation de la participation à un essai d'aptitude international.\n• Documentation relative aux permis et autorisations d'importation requis.\n• Accusé de réception de l'échantillon de la part du laboratoire international.\n• Retour d'information du laboratoire international sur les performances\n• Plan d'action visant à remédier aux insuffisances constatées (le cas échéant).","","","","Effectuer des essais de compétence avec un laboratoire reconnu à l'échelle internationale."]
[59,"LAB","LAB-Cap-2-6","Capacités des laboratoires et tests",2,6,"Une capacité de collecte et de transport réguliers des prélèvements a-t-elle été mise en place et fonctionne-t-elle ?","Cette capacité comprend les caractéristiques suivantes : système de calcul des coûts et de paiement pour le transport des prélèvements, personnes de contact, entreprises de transport/véhicules, emballage, etc.",null,{"$f":"IFERROR(INDEX('Data coll & an'!$F$5:$F$50,MATCH($C60,'Data coll & an'!$A$5:$A$50,0)),IFERROR(INDEX('Prev & Ctrl'!$F$5:$F$50,MATCH($C60,'Prev & Ctrl'!$A$5:$A$50,0)),IFERROR(INDEX('Lab dx'!$F$5:$F$50,MATCH($C60,'Lab dx'!$A$5:$A$50,0)),IFERROR(INDEX('Dog popn'!$F$5:$F$50,MATCH($C60,'Dog popn'!$A$5:$A$50,0)),IFERROR(INDEX(IEC!$F$5:$F$50,MATCH($C60,IEC!$A$5:$A$50,0)),IFERROR(INDEX('Cross-cutting issues'!$F$5:$F$50,MATCH($C60,'Cross-cutting issues'!$A$5:$A$50,0)),IFERROR(INDEX(Legislation!$F$5:$F$50,MATCH($C60,Legislation!$A$5:$A$50,0)),\"\")))))))","v":0},{"$f":"IFERROR(INDEX('Data coll & an'!$G$5:$G$50,MATCH($C60,'Data coll & an'!$A$5:$A$50,0)),IFERROR(INDEX('Prev & Ctrl'!$G$5:$G$50,MATCH($C60,'Prev & Ctrl'!$A$5:$A$50,0)),IFERROR(INDEX('Lab dx'!$G$5:$G$50,MATCH($C60,'Lab dx'!$A$5:$A$50,0)),IFERROR(INDEX('Dog popn'!$G$5:$G$50,MATCH($C60,'Dog popn'!$A$5:$A$50,0)),IFERROR(INDEX(IEC!$G$5:$G$50,MATCH($C60,IEC!$A$5:$A$50,0)),IFERROR(INDEX('Cross-cutting issues'!$G$5:$G$50,MATCH($C60,'Cross-cutting issues'!$A$5:$A$50,0)),IFERROR(INDEX(Legislation!$G$5:$G$50,MATCH($C60,Legislation!$A$5:$A$50,0)),\"\")))))))","v":0},"OIE Manual of Diagnostic Tests and Vaccines  for Terrestrial Animals ","http://caninerabiesblueprint.org/OIE-Manual-of-Diagnostic-Tests-and","Laboratory biorisk management","http://caninerabiesblueprint.org/Laboratory-biorisk-management","5.3.1-Rabies-surveillance","http://caninerabiesblueprint.org/5-3-1-Rabies-surveillance?lang=en",null,null,null,null,"• Déterminer les lacunes existantes qui empêchent la collecte et la soumission régulières des prélèvements;\n• Identifier les moyens de surmonter ces lacunes ;\n• Élaborer un plan d'action et un budget pour surmonter les limites qui affectent la collecte et le transport des prélèvements dans le pays ;\n• Mettre en œuvre le plan d'action à petite échelle pour déterminer son efficacité ;\n• Adapter le plan d'action (si nécessaire) et le mettre en œuvre à l'échelle nationale ;\n• Réévaluer périodiquement la situation pour s'assurer que les prélèvements suspects de rage sont collectés et diagnostiqués dans le pays.","Regular sample collection and transportation to the laboratory has been established and is functioning;","Ministère de l’agriculture (diagnostic de rage animale). \nMinistère de la santé (diagnostic de rage humaine).",5,"• Rapport d'analyse des lacunes concernant les problèmes existants en matière de collecte et de soumission de prélèvements.\n• Plan d'action pour remédier aux limitations en matière de collecte et de soumission de prélèvements.\n• Rapport de mise en œuvre du plan d'action pilote.\n• Rapport de mise en œuvre à l'échelle nationale avec plan d'action adapté.\n• Rapports d'évaluation périodiques sur l'efficacité de la collecte et de la transmission des prélèvements.","","","","Mettre en place un système régulier de collecte et de transport de prélèvements dans tout le pays."]
[60,"LAB","LAB-Cap-2-7","Capacités des laboratoires et tests",2,7,"Des prélèvements d’animaux suspects de rage sont-ils analysés dans le pays pendant la plupart (sinon tous) des mois de l’année ?","Vous pouvez répondre « Oui » si les prélèvements sont régulièrement livrés au laboratoire, quelles que soient les quantités soumises.",null,{"$f":"IFERROR(INDEX('Data coll & an'!$F$5:$F$50,MATCH($C61,'Data coll & an'!$A$5:$A$50,0)),IFERROR(INDEX('Prev & Ctrl'!$F$5:$F$50,MATCH($C61,'Prev & Ctrl'!$A$5:$A$50,0)),IFERROR(INDEX('Lab dx'!$F$5:$F$50,MATCH($C61,'Lab dx'!$A$5:$A$50,0)),IFERROR(INDEX('Dog popn'!$F$5:$F$50,MATCH($C61,'Dog popn'!$A$5:$A$50,0)),IFERROR(INDEX(IEC!$F$5:$F$50,MATCH($C61,IEC!$A$5:$A$50,0)),IFERROR(INDEX('Cross-cutting issues'!$F$5:$F$50,MATCH($C61,'Cross-cutting issues'!$A$5:$A$50,0)),IFERROR(INDEX(Legislation!$F$5:$F$50,MATCH($C61,Legislation!$A$5:$A$50,0)),\"\")))))))","v":0},{"$f":"IFERROR(INDEX('Data coll & an'!$G$5:$G$50,MATCH($C61,'Data coll & an'!$A$5:$A$50,0)),IFERROR(INDEX('Prev & Ctrl'!$G$5:$G$50,MATCH($C61,'Prev & Ctrl'!$A$5:$A$50,0)),IFERROR(INDEX('Lab dx'!$G$5:$G$50,MATCH($C61,'Lab dx'!$A$5:$A$50,0)),IFERROR(INDEX('Dog popn'!$G$5:$G$50,MATCH($C61,'Dog popn'!$A$5:$A$50,0)),IFERROR(INDEX(IEC!$G$5:$G$50,MATCH($C61,IEC!$A$5:$A$50,0)),IFERROR(INDEX('Cross-cutting issues'!$G$5:$G$50,MATCH($C61,'Cross-cutting issues'!$A$5:$A$50,0)),IFERROR(INDEX(Legislation!$G$5:$G$50,MATCH($C61,Legislation!$A$5:$A$50,0)),\"\")))))))","v":0},"3.1.8 Minimum laboratory requirements","http://caninerabiesblueprint.org/3-1-8-What-are-the-minimum?lang=en","Laboratory biorisk management","http://caninerabiesblueprint.org/Laboratory-biorisk-management",null,null,null,null,null,null,"• Déterminer les lacunes existantes associées aux activités de surveillance actuelles (par exemple, capacité d'identifier les signes de rage chez les animaux, capacité de tranquilliser et d'euthanasier en toute sécurité les animaux suspectés d'être enragés, etc);   \n• Déterminer les lacunes existantes associées à la collecte d'échantillons de routine (par exemple, les besoins de formation à la collecte d'échantillons, la disponibilité de consommables et de PPE, la mise à disposition de PrEP pour les professionnels de la santé animale, etc ;)\n• Déterminer les lacunes existantes liées à l'envoi des prélèvements au laboratoire le plus proche (par exemple, accès aux coursiers, carburant pour le transport des échantillons, etc.) ; \n• Déterminer les lacunes existantes liées au diagnostic des échantillons (par exemple, besoins de formation au diagnostic, accès aux réactifs et consommables, besoins en équipement de laboratoire) ; \n• Rédiger un rapport décrivant toutes les lacunes identifiées ;\n• Identifier des solutions potentielles pour surmonter toutes les lacunes identifiées ;\n• Élaborer un budget et assurer le financement nécessaire pour remédier aux lacunes ;\n• Remédier aux lacunes pour améliorer la collecte, la soumission et le diagnostic des échantillons ;\n• Réévaluer périodiquement la situation pour s'assurer que les échantillons suspects de rage sont collectés et diagnostiqués la plupart des mois de l'année dans l'ensemble du pays où la rage est présente.","Routine laboratory diagnosis for animal rabies is undertaken at a laboratory;","Ministère de l’agriculture",6,"• Rapports identifiant les lacunes en matière de surveillance, de collecte de prélèvements, de transport et de diagnostic.\n• Solutions et plans d'action documentés pour combler les lacunes.\n• Proposition de budget pour obtenir les ressources nécessaires.\n• Rapport de mise en œuvre démontrant l'amélioration de la capacité de diagnostic.\n• Rapports de réévaluation périodique de l'efficacité de la surveillance.","","","","Diagnostiquer les prélèvements suspects de rage animale dans le pays la plupart (sinon tous) des mois de l'année."]
[61,"LAB","LAB-Cap-2-8","Capacités des laboratoires et tests",2,8,"Avez-vous inclus une surveillance active (animaux trouvés morts, animaux tués sur la route, etc.) dans vos activités de surveillance de routine dans l'ensemble du pays ?","La réponse ne peut être “Oui” que si une surveillance active est réalisée dans l’ensemble du pays. \nTout ceci est réalisé EN PLUS des prélèvements de cas de morsure humaine, d’exposition, d’animaux agressifs, etc. ","KEY",{"$f":"IFERROR(INDEX('Data coll & an'!$F$5:$F$50,MATCH($C62,'Data coll & an'!$A$5:$A$50,0)),IFERROR(INDEX('Prev & Ctrl'!$F$5:$F$50,MATCH($C62,'Prev & Ctrl'!$A$5:$A$50,0)),IFERROR(INDEX('Lab dx'!$F$5:$F$50,MATCH($C62,'Lab dx'!$A$5:$A$50,0)),IFERROR(INDEX('Dog popn'!$F$5:$F$50,MATCH($C62,'Dog popn'!$A$5:$A$50,0)),IFERROR(INDEX(IEC!$F$5:$F$50,MATCH($C62,IEC!$A$5:$A$50,0)),IFERROR(INDEX('Cross-cutting issues'!$F$5:$F$50,MATCH($C62,'Cross-cutting issues'!$A$5:$A$50,0)),IFERROR(INDEX(Legislation!$F$5:$F$50,MATCH($C62,Legislation!$A$5:$A$50,0)),\"\")))))))","v":0},{"$f":"IFERROR(INDEX('Data coll & an'!$G$5:$G$50,MATCH($C62,'Data coll & an'!$A$5:$A$50,0)),IFERROR(INDEX('Prev & Ctrl'!$G$5:$G$50,MATCH($C62,'Prev & Ctrl'!$A$5:$A$50,0)),IFERROR(INDEX('Lab dx'!$G$5:$G$50,MATCH($C62,'Lab dx'!$A$5:$A$50,0)),IFERROR(INDEX('Dog popn'!$G$5:$G$50,MATCH($C62,'Dog popn'!$A$5:$A$50,0)),IFERROR(INDEX(IEC!$G$5:$G$50,MATCH($C62,IEC!$A$5:$A$50,0)),IFERROR(INDEX('Cross-cutting issues'!$G$5:$G$50,MATCH($C62,'Cross-cutting issues'!$A$5:$A$50,0)),IFERROR(INDEX(Legislation!$G$5:$G$50,MATCH($C62,Legislation!$A$5:$A$50,0)),\"\")))))))","v":0},"WHO International Health Regulations","http://caninerabiesblueprint.org/WHO-International-Health","OIE Terrestrial Animal Health Code","http://caninerabiesblueprint.org/OIE-Terrestrial-Animal-Health-Code",null,null,null,null,null,null,"• Assurer le financement de l'augmentation de la fréquence et de la distribution des échantillons envoyés pour le diagnostic de la rage dans le cadre d'un programme de surveillance active de la rage ;\n• Élaborer des protocoles, des formations et des ressources appropriés pour la mise en œuvre de la surveillance active de la rage dans le pays ;\n• Organiser une formation sur la surveillance active de la rage et ses différentes sources d'échantillons pour tous les professionnels de la santé animale ;\n• Fournir aux professionnels de la santé animale des ressources et des consommables suffisants pour entreprendre une surveillance active de la rage ; \n• Suivre la communication des données de surveillance pour s'assurer qu'une surveillance active de la rage est mise en place.","Frequent and rapid reporting, data collection, analysis and feedback occurs throughout the country on a regular basis. ","Ministère de l’agriculture",6,"• Obtention d'un financement pour augmenter la collecte, la soumission et le diagnostic d'échantillons.\n• Élaboration de protocoles et de matériel de formation sur la surveillance active.\n• Registres des sessions de formation pour les professionnels de la santé animale.\n• Dossiers d'achat de ressources et de consommables.\n• Rapports de suivi montrant les résultats de la surveillance active.","","","","Inclure la surveillance active (animaux trouvés morts, animaux tués sur la route, etc.) dans vos activités de surveillance de routine dans l'ensemble du pays."]
[62,"LAB","LAB-Cap-3-9","Capacités des laboratoires et tests",3,9,"L’accès à un diagnostic de laboratoire fiable et rapide est-il possible dans tout le pays pour les prélèvements d'animaux (et si possible également pour les prélèvements humains et d'animaux sauvages) ?","Vous pouvez répondre “Oui” si vous pouvez affirmer avec assurance que les prélèvements peuvent être envoyés pour être testés sans délai depuis n’importe quel endroit du pays. ",null,{"$f":"IFERROR(INDEX('Data coll & an'!$F$5:$F$50,MATCH($C63,'Data coll & an'!$A$5:$A$50,0)),IFERROR(INDEX('Prev & Ctrl'!$F$5:$F$50,MATCH($C63,'Prev & Ctrl'!$A$5:$A$50,0)),IFERROR(INDEX('Lab dx'!$F$5:$F$50,MATCH($C63,'Lab dx'!$A$5:$A$50,0)),IFERROR(INDEX('Dog popn'!$F$5:$F$50,MATCH($C63,'Dog popn'!$A$5:$A$50,0)),IFERROR(INDEX(IEC!$F$5:$F$50,MATCH($C63,IEC!$A$5:$A$50,0)),IFERROR(INDEX('Cross-cutting issues'!$F$5:$F$50,MATCH($C63,'Cross-cutting issues'!$A$5:$A$50,0)),IFERROR(INDEX(Legislation!$F$5:$F$50,MATCH($C63,Legislation!$A$5:$A$50,0)),\"\")))))))","v":0},{"$f":"IFERROR(INDEX('Data coll & an'!$G$5:$G$50,MATCH($C63,'Data coll & an'!$A$5:$A$50,0)),IFERROR(INDEX('Prev & Ctrl'!$G$5:$G$50,MATCH($C63,'Prev & Ctrl'!$A$5:$A$50,0)),IFERROR(INDEX('Lab dx'!$G$5:$G$50,MATCH($C63,'Lab dx'!$A$5:$A$50,0)),IFERROR(INDEX('Dog popn'!$G$5:$G$50,MATCH($C63,'Dog popn'!$A$5:$A$50,0)),IFERROR(INDEX(IEC!$G$5:$G$50,MATCH($C63,IEC!$A$5:$A$50,0)),IFERROR(INDEX('Cross-cutting issues'!$G$5:$G$50,MATCH($C63,'Cross-cutting issues'!$A$5:$A$50,0)),IFERROR(INDEX(Legislation!$G$5:$G$50,MATCH($C63,Legislation!$A$5:$A$50,0)),\"\")))))))","v":0},"3.1.8-laboratory diagnosis","http://caninerabiesblueprint.org/3-1-8-What-are-the-minimum?lang=en","4. Laboratory rabies diagnosis","http://rabiessurveillanceblueprint.org/-Laboratory-rabies-diagnosis-",null,null,null,null,null,null,"• Identifier les zones du pays où l'accès à un diagnostic de laboratoire fiable n'est pas possible ;\n• Déterminer les raisons pour lesquelles un diagnostic de laboratoire fiable n'est pas accessible dans ces zones ; \n• Déterminer comment surmonter les lacunes identifiées (par exemple, mauvaise collecte et transport des prélèvements, manque de réactifs, manque de personnel formé, etc.) ;\n• Obtenir le financement nécessaire pour remédier aux lacunes identifiées ;\n• Mettre en œuvre les changements nécessaires pour remédier aux lacunes identifiées ;\n• Contrôler régulièrement la fréquence de soumission de prélèvements et de diagnostic dans les zones identifiées.","Suspect rabies samples from various sources are collected throughout the country are routinely diagnosed","Ministère de l’agriculture",8,"• Rapport sur les régions qui n'ont pas accès au diagnostic, y compris analyse des difficultés d'accès au diagnostic.\n• Plan de mise en œuvre pour combler les lacunes.\n• Financement assuré pour les améliorations requises.\n• Rapports de suivi montrant l'amélioration de l'accessibilité au diagnostic.","","","","Garantir l'accès à des diagnostics de laboratoire fiables et rapides dans tout le pays pour les prélèvements d'animaux (et si possible également pour les prélèvements humains et d'animaux sauvages)."]
[63,"LAB","LAB-Cap-3-10","Capacités des laboratoires et tests",3,10,"Evaluez-vous régulièrement votre capacité à analyser avec précision des prélèvements suspects de rage ? ","Par exemple, double lecture, soumission de prélèvements à un laboratoire international, tests de compétence, confirmation moléculaire (par ex. PCR).",null,{"$f":"IFERROR(INDEX('Data coll & an'!$F$5:$F$50,MATCH($C64,'Data coll & an'!$A$5:$A$50,0)),IFERROR(INDEX('Prev & Ctrl'!$F$5:$F$50,MATCH($C64,'Prev & Ctrl'!$A$5:$A$50,0)),IFERROR(INDEX('Lab dx'!$F$5:$F$50,MATCH($C64,'Lab dx'!$A$5:$A$50,0)),IFERROR(INDEX('Dog popn'!$F$5:$F$50,MATCH($C64,'Dog popn'!$A$5:$A$50,0)),IFERROR(INDEX(IEC!$F$5:$F$50,MATCH($C64,IEC!$A$5:$A$50,0)),IFERROR(INDEX('Cross-cutting issues'!$F$5:$F$50,MATCH($C64,'Cross-cutting issues'!$A$5:$A$50,0)),IFERROR(INDEX(Legislation!$F$5:$F$50,MATCH($C64,Legislation!$A$5:$A$50,0)),\"\")))))))","v":0},{"$f":"IFERROR(INDEX('Data coll & an'!$G$5:$G$50,MATCH($C64,'Data coll & an'!$A$5:$A$50,0)),IFERROR(INDEX('Prev & Ctrl'!$G$5:$G$50,MATCH($C64,'Prev & Ctrl'!$A$5:$A$50,0)),IFERROR(INDEX('Lab dx'!$G$5:$G$50,MATCH($C64,'Lab dx'!$A$5:$A$50,0)),IFERROR(INDEX('Dog popn'!$G$5:$G$50,MATCH($C64,'Dog popn'!$A$5:$A$50,0)),IFERROR(INDEX(IEC!$G$5:$G$50,MATCH($C64,IEC!$A$5:$A$50,0)),IFERROR(INDEX('Cross-cutting issues'!$G$5:$G$50,MATCH($C64,'Cross-cutting issues'!$A$5:$A$50,0)),IFERROR(INDEX(Legislation!$G$5:$G$50,MATCH($C64,Legislation!$A$5:$A$50,0)),\"\")))))))","v":0},null,null,null,null,null,null,null,null,null,null,"• Contacter le laboratoire international de référence pour la rage (OMSA), le centre collaborateur (OMS) ou le centre de référence (FAO) avec lequel vous êtes en relation pour évaluer votre capacité à entreprendre le diagnostic de la rage ;\n• Déterminer si un protocole d'accord doit être établi et le finaliser si nécessaire ;\n• Compiler une cohorte d'échantillons diagnostiqués précédemment comme positifs ou négatifs pour la rage ;\n• Déterminer les exigences en matière de messagerie (par ex. emballage et permis) et les frais associés à l'envoi des échantillons ;\n• Obtenir le financement et envoyer les échantillons ; \n• S'assurer que le laboratoire international reçoit les échantillons et les analyse ;  \n• Comparer et discuter des résultats avec le laboratoire international et déterminer le meilleur plan d'action. \n• Programmer la prochaine évaluation dans un délai réaliste (par exemple, chaque année) pour garantir la continuité d'un diagnostic cohérent et précis de la rage dans le pays.","A representative sample cohort is sent to an international rabies reference laboratory for diagnostic confirmation and evaluation","Ministère de l’agriculture (diagnostic de rage animale). \nMinistère de la santé (diagnostic de rage humaine).",9,"• Accord avec un laboratoire international de la rage pour évaluer la capacité nationale de diagnostic.\n• Protocole d'accord ou accord formel (si nécessaire).\n• Dossiers de soumission d'échantillons pour la validation externe.\n• Rapport d'analyse comparative des résultats des tests nationaux et internationaux.\n• Plan d'action pour remédier aux insuffisances de la capacité de diagnostic.","","","","Évaluer régulièrement la capacité du pays à diagnostiquer avec certitude les échantillons suspects de rage."]
[64,"LAB","LAB-Cap-4-11","Capacités des laboratoires et tests",4,11,"Maintenant qu’il y a très peu de cas de rage animale dans votre pays, existe-t-il un test de laboratoire en cours pour tous les cas suspects chez les chiens dans le pays ? ","Vous ne pouvez répondre “Oui” que si votre pays a peu de cas de rage animale grâce aux campagnes de vaccination canine réussies.","KEY",{"$f":"IFERROR(INDEX('Data coll & an'!$F$5:$F$50,MATCH($C65,'Data coll & an'!$A$5:$A$50,0)),IFERROR(INDEX('Prev & Ctrl'!$F$5:$F$50,MATCH($C65,'Prev & Ctrl'!$A$5:$A$50,0)),IFERROR(INDEX('Lab dx'!$F$5:$F$50,MATCH($C65,'Lab dx'!$A$5:$A$50,0)),IFERROR(INDEX('Dog popn'!$F$5:$F$50,MATCH($C65,'Dog popn'!$A$5:$A$50,0)),IFERROR(INDEX(IEC!$F$5:$F$50,MATCH($C65,IEC!$A$5:$A$50,0)),IFERROR(INDEX('Cross-cutting issues'!$F$5:$F$50,MATCH($C65,'Cross-cutting issues'!$A$5:$A$50,0)),IFERROR(INDEX(Legislation!$F$5:$F$50,MATCH($C65,Legislation!$A$5:$A$50,0)),\"\")))))))","v":0},{"$f":"IFERROR(INDEX('Data coll & an'!$G$5:$G$50,MATCH($C65,'Data coll & an'!$A$5:$A$50,0)),IFERROR(INDEX('Prev & Ctrl'!$G$5:$G$50,MATCH($C65,'Prev & Ctrl'!$A$5:$A$50,0)),IFERROR(INDEX('Lab dx'!$G$5:$G$50,MATCH($C65,'Lab dx'!$A$5:$A$50,0)),IFERROR(INDEX('Dog popn'!$G$5:$G$50,MATCH($C65,'Dog popn'!$A$5:$A$50,0)),IFERROR(INDEX(IEC!$G$5:$G$50,MATCH($C65,IEC!$A$5:$A$50,0)),IFERROR(INDEX('Cross-cutting issues'!$G$5:$G$50,MATCH($C65,'Cross-cutting issues'!$A$5:$A$50,0)),IFERROR(INDEX(Legislation!$G$5:$G$50,MATCH($C65,Legislation!$A$5:$A$50,0)),\"\")))))))","v":0},"OIE Terrestrial Animal Health Code","http://caninerabiesblueprint.org/OIE-Terrestrial-Animal-Health-Code",null,null,null,null,null,null,null,null,"• Partager toutes les procédures opérationnelles standard appropriées pour la collecte et le transport des échantillons et le diagnostic en laboratoire avec les nouveaux professionnels dans tout le pays ;\n• Former les professionnels à toutes les activités pertinentes de surveillance de la rage (par exemple, collecte et transport des prélèvements, diagnostic en laboratoire, etc.) \n• Veiller à ce qu'un financement et des ressources adéquats restent disponibles pour la poursuite des activités de surveillance.\n• Veiller à ce que tous les cas suspects de rage signalés soient diagnostiqués en laboratoire en comparant les données communiquées par le terrain aux données de laboratoire.","Existing and adequate surveillance activites are maintained throughout the country; ","Ministère de l’agriculture",10,"• Liste des nouveaux professionnels ayant reçu des POS pour la surveillance de la rage.\n• Comptes-rendus de formation des nouveaux professionnels à la surveillance de la rage.\n• Financement assuré et acquisition de ressources pour la poursuite de la surveillance.\n• Rapports réguliers comparant les cas déclarés et confirmés.\n• Plan d'action pour combler les lacunes dans le lien entre surveillance et déclaration.","","","","Maintenant qu'il y a très peu de cas de rage animale dans le pays, il faut s'assurer qu'un diagnostic de laboratoire est opérationnel pour tous les cas suspects chez les chiens dans le pays."]
[65,"LAB","LAB-Cap-4-12","Capacités des laboratoires et tests",4,12,"Les variants du virus rabique circulants font-ils l’objet d’une caractérisation et d’une analyse régulières par un laboratoire national ou international ? ","Nom du laboratoire/de l’institut où les tests moléculaires sont réalisés.",null,{"$f":"IFERROR(INDEX('Data coll & an'!$F$5:$F$50,MATCH($C66,'Data coll & an'!$A$5:$A$50,0)),IFERROR(INDEX('Prev & Ctrl'!$F$5:$F$50,MATCH($C66,'Prev & Ctrl'!$A$5:$A$50,0)),IFERROR(INDEX('Lab dx'!$F$5:$F$50,MATCH($C66,'Lab dx'!$A$5:$A$50,0)),IFERROR(INDEX('Dog popn'!$F$5:$F$50,MATCH($C66,'Dog popn'!$A$5:$A$50,0)),IFERROR(INDEX(IEC!$F$5:$F$50,MATCH($C66,IEC!$A$5:$A$50,0)),IFERROR(INDEX('Cross-cutting issues'!$F$5:$F$50,MATCH($C66,'Cross-cutting issues'!$A$5:$A$50,0)),IFERROR(INDEX(Legislation!$F$5:$F$50,MATCH($C66,Legislation!$A$5:$A$50,0)),\"\")))))))","v":0},{"$f":"IFERROR(INDEX('Data coll & an'!$G$5:$G$50,MATCH($C66,'Data coll & an'!$A$5:$A$50,0)),IFERROR(INDEX('Prev & Ctrl'!$G$5:$G$50,MATCH($C66,'Prev & Ctrl'!$A$5:$A$50,0)),IFERROR(INDEX('Lab dx'!$G$5:$G$50,MATCH($C66,'Lab dx'!$A$5:$A$50,0)),IFERROR(INDEX('Dog popn'!$G$5:$G$50,MATCH($C66,'Dog popn'!$A$5:$A$50,0)),IFERROR(INDEX(IEC!$G$5:$G$50,MATCH($C66,IEC!$A$5:$A$50,0)),IFERROR(INDEX('Cross-cutting issues'!$G$5:$G$50,MATCH($C66,'Cross-cutting issues'!$A$5:$A$50,0)),IFERROR(INDEX(Legislation!$G$5:$G$50,MATCH($C66,Legislation!$A$5:$A$50,0)),\"\")))))))","v":0},"OIE reference laboratories","http://www.oie.int/en/our-scientific-expertise/reference-laboratories/list-of-laboratories/","WHO collaborating centres  ","http://apps.who.int/whocc/Search.aspx","WHO expert consultation on rabies","http://caninerabiesblueprint.org/WHO-expert-consultation-on-rabies","FAO reference centre","http://www.izsvenezie.com/reference-laboratories/rabies/",null,null,"•\tIdentifier les laboratoires nationaux ou internationaux capables de caractériser les variants du virus de la rage en circulation ;\n\nSi la caractérisation des variants du virus peut être effectuée dans un laboratoire national\n• S'assurer que le laboratoire dispose des capacités et des ressources nécessaires à la caractérisation régulière des échantillons ;\n• Soumettre régulièrement des échantillons positifs pour la rage en vue de leur caractérisation ;\n• S'assurer que les résultats sont régulièrement communiqués par le laboratoire à toutes les parties prenantes concernées ;\n• Assurer la soumission continue et régulière d'échantillons positifs pour la rage en vue de leur caractérisation.\n\nSi la caractérisation des variants du virus doit être effectuée dans un laboratoire international\n• Contacter le laboratoire international de référence pour la rage (OMSA), le centre collaborateur (OMS) ou le centre de référence (FAO) avec lequel vous êtes en relation pour déterminer si un accord peut être conclu pour qu'ils caractérisent régulièrement les variants du virus de la rage pour votre pays ;\n• Déterminer si un protocole d'accord doit être établi et le finaliser le cas échéant ; Déterminer les exigences en matière de messagerie (par exemple, l'emballage et les permis) et les frais liés à l'envoi régulier de prélèvements au laboratoire international ; \n• Assurer le financement de l'envoi régulier de prélèvements;\n• Soumettre régulièrement des prélèvements positifs pour la rage en vue de leur caractérisation ;\n• Veiller à ce que le laboratoire international établisse des rapports et fournisse des analyses concernant les résultats. \n• Assurer la soumission continue et régulière des prélèvements positifs pour la rage en vue de leur caractérisation et des rapports ultérieurs sur les résultats.","Regular characterization and analysis of circulating rabies virus variants undertaken;","Ministère de l’agriculture",11,"Si elle est effectuée dans un laboratoire national :\n• Rapport d'évaluation des capacités de caractérisation du virus.\n• Dossiers de soumission d'échantillons pour l'analyse dans le pays.\n• Rapports des parties prenantes sur les résultats de la caractérisation des variants.\n\nS'il s'agit d'un laboratoire international :\n• Accord avec un laboratoire international pour la caractérisation régulière du virus.\n• Dossiers d'expédition des échantillons et confirmation du financement.\n• Rapports réguliers de caractérisation des variants reçus, analysés et partagés avec les parties prenantes concernées.","","","","Caractériser et analyser régulièrement les variants du virus de la rage en circulation dans un laboratoire national ou international."]
[66,"LAB","LAB-Cap-4-13","Capacités des laboratoires et tests",4,13,"Si des variants de rage chez la faune sauvage terrestre sont présents dans le pays, des prélèvements de faune sauvage sont-ils soumis plus régulièrement au laboratoire pour diagnostiquer la rage ?","Si des variants de rage chez la faune sauvage terrestre sont présents dans le pays, vous pouvez répondre « Oui ».",null,{"$f":"IFERROR(INDEX('Data coll & an'!$F$5:$F$50,MATCH($C67,'Data coll & an'!$A$5:$A$50,0)),IFERROR(INDEX('Prev & Ctrl'!$F$5:$F$50,MATCH($C67,'Prev & Ctrl'!$A$5:$A$50,0)),IFERROR(INDEX('Lab dx'!$F$5:$F$50,MATCH($C67,'Lab dx'!$A$5:$A$50,0)),IFERROR(INDEX('Dog popn'!$F$5:$F$50,MATCH($C67,'Dog popn'!$A$5:$A$50,0)),IFERROR(INDEX(IEC!$F$5:$F$50,MATCH($C67,IEC!$A$5:$A$50,0)),IFERROR(INDEX('Cross-cutting issues'!$F$5:$F$50,MATCH($C67,'Cross-cutting issues'!$A$5:$A$50,0)),IFERROR(INDEX(Legislation!$F$5:$F$50,MATCH($C67,Legislation!$A$5:$A$50,0)),\"\")))))))","v":0},{"$f":"IFERROR(INDEX('Data coll & an'!$G$5:$G$50,MATCH($C67,'Data coll & an'!$A$5:$A$50,0)),IFERROR(INDEX('Prev & Ctrl'!$G$5:$G$50,MATCH($C67,'Prev & Ctrl'!$A$5:$A$50,0)),IFERROR(INDEX('Lab dx'!$G$5:$G$50,MATCH($C67,'Lab dx'!$A$5:$A$50,0)),IFERROR(INDEX('Dog popn'!$G$5:$G$50,MATCH($C67,'Dog popn'!$A$5:$A$50,0)),IFERROR(INDEX(IEC!$G$5:$G$50,MATCH($C67,IEC!$A$5:$A$50,0)),IFERROR(INDEX('Cross-cutting issues'!$G$5:$G$50,MATCH($C67,'Cross-cutting issues'!$A$5:$A$50,0)),IFERROR(INDEX(Legislation!$G$5:$G$50,MATCH($C67,Legislation!$A$5:$A$50,0)),\"\")))))))","v":0},null,null,null,null,null,null,null,null,null,null,"• Identifier les zones du pays où la faune sauvage terrestre est présente ;\n• Identifier les professionnels compétents responsables de la surveillance de la rage dans les zones identifiées ; \n• Élaborer et finaliser un mode opératoire standardisé pour la surveillance de la rage chez la faune sauvage dans les zones identifiées ;\n• Assurer un financement adéquat, une formation appropriée et une allocation de ressources suffisante pour la mise en œuvre de la surveillance de la rage de la faune sauvage dans les zones identifiées ;\n• Contrôler régulièrement la fréquence de soumission de prélèvements de faune sauvage terrestre et de diagnostic en provenance des zones identifiées.","Terrestrial wildlife (carnivore) samples have been submitted to the laboratory for rabies diagnosis;","Ministère de l’agriculture",11,"• Rapport sur les zones à risque identifiées pour la faune sauvage.\n• Liste des professionnels responsables de la surveillance de la faune sauvage.\n• Procédures opérationnelles standardisées pour la collecte et la soumission de prélèvements d'animaux sauvages atteints de la rage.\n• Rapports sur les sessions de formation destinées aux équipes de surveillance de la faune sauvage.\n• Rapports de suivi sur la soumission des prélèvements et les résultats des tests.","","","","Si des variantes terrestres de la rage sont présentes dans le pays, veiller à ce que des prélèvements d'animaux sauvages soient régulièrement soumis à un diagnostic de rage en laboratoire."]
[67,"LAB","LAB-Cap-5-14","Capacités des laboratoires et tests",5,14,"Même si vous êtes désormais exempts de rage canine grâce aux campagnes de vaccination de masse réussies, des enquêtes de laboratoire sont-elles en cours pour tous les cas suspects chez les espèces domestiques et les espèces sauvages terrestres dans le pays ? ","Vous ne devez répondre “Oui” que si votre pays n’a aucun cas de rage canine à la suite de campagnes de vaccination canine réussies. ","KEY",{"$f":"IFERROR(INDEX('Data coll & an'!$F$5:$F$50,MATCH($C68,'Data coll & an'!$A$5:$A$50,0)),IFERROR(INDEX('Prev & Ctrl'!$F$5:$F$50,MATCH($C68,'Prev & Ctrl'!$A$5:$A$50,0)),IFERROR(INDEX('Lab dx'!$F$5:$F$50,MATCH($C68,'Lab dx'!$A$5:$A$50,0)),IFERROR(INDEX('Dog popn'!$F$5:$F$50,MATCH($C68,'Dog popn'!$A$5:$A$50,0)),IFERROR(INDEX(IEC!$F$5:$F$50,MATCH($C68,IEC!$A$5:$A$50,0)),IFERROR(INDEX('Cross-cutting issues'!$F$5:$F$50,MATCH($C68,'Cross-cutting issues'!$A$5:$A$50,0)),IFERROR(INDEX(Legislation!$F$5:$F$50,MATCH($C68,Legislation!$A$5:$A$50,0)),\"\")))))))","v":0},{"$f":"IFERROR(INDEX('Data coll & an'!$G$5:$G$50,MATCH($C68,'Data coll & an'!$A$5:$A$50,0)),IFERROR(INDEX('Prev & Ctrl'!$G$5:$G$50,MATCH($C68,'Prev & Ctrl'!$A$5:$A$50,0)),IFERROR(INDEX('Lab dx'!$G$5:$G$50,MATCH($C68,'Lab dx'!$A$5:$A$50,0)),IFERROR(INDEX('Dog popn'!$G$5:$G$50,MATCH($C68,'Dog popn'!$A$5:$A$50,0)),IFERROR(INDEX(IEC!$G$5:$G$50,MATCH($C68,IEC!$A$5:$A$50,0)),IFERROR(INDEX('Cross-cutting issues'!$G$5:$G$50,MATCH($C68,'Cross-cutting issues'!$A$5:$A$50,0)),IFERROR(INDEX(Legislation!$G$5:$G$50,MATCH($C68,Legislation!$A$5:$A$50,0)),\"\")))))))","v":0},"OIE Terrestrial Animal Health Code","http://caninerabiesblueprint.org/OIE-Terrestrial-Animal-Health-Code",null,null,null,null,null,null,null,null,"• Partager les définitions des cas de rage et les procédures opérationnelles standardisées pour l'identification des cas suspects de rage, les prélèvements, le transport et le diagnostic en laboratoire avec les nouveaux professionnels dans tout le pays ;\n• Former les professionnels à toutes les activités pertinentes de surveillance de la rage (par exemple, le prélèvement d'échantillons, le transport de prélèvements, le diagnostic en laboratoire, etc.) ;\n• Veiller à ce qu'un financement et des ressources adéquats restent disponibles pour poursuivre les activités de surveillance.","On-going laboratory investigations of all suspected rabies cases in domestic and terrestrial wildlife species in the country are undertaken; ","Ministère de l’agriculture",13,"• Liste des nouveaux professionnels qui ont reçu des modes opératoires standardisés pour les activités de surveillance.\n• Dossiers de formation du personnel concerné.\n• Rapports sur le financement et l'affectation des ressources pour la poursuite de la surveillance.\n• Rapports réguliers sur les examens de laboratoire de tous les cas suspects de rage animale.","","","","Même si le pays est exempt de rage canine grâce à des campagnes de vaccination de masse réussies, il convient de veiller à ce que tous les cas suspects chez les espèces domestiques et celles de la faune sauvage terrestre fassent l'objet d'enquêtes de laboratoire permanentes dans le pays."]
[68,"DPM","DPM--0-1",null,0,1,"Y a-t-il des activités de gestion compassionnelle de la population canine entreprises dans le pays par une des parties prenantes ?","NOTE : L’abattage en masse N’EST PAS considéré comme une stratégie efficace de gestion compassionnelle de la population canine. Cependant, la gestion responsable des chiens est considérée comme appropriée. L’euthanasie des animaux suspects de rage selon les normes internationales fait parte de la gestion compassionnelle de la population canine.",null,{"$f":"IFERROR(INDEX('Data coll & an'!$F$5:$F$50,MATCH($C69,'Data coll & an'!$A$5:$A$50,0)),IFERROR(INDEX('Prev & Ctrl'!$F$5:$F$50,MATCH($C69,'Prev & Ctrl'!$A$5:$A$50,0)),IFERROR(INDEX('Lab dx'!$F$5:$F$50,MATCH($C69,'Lab dx'!$A$5:$A$50,0)),IFERROR(INDEX('Dog popn'!$F$5:$F$50,MATCH($C69,'Dog popn'!$A$5:$A$50,0)),IFERROR(INDEX(IEC!$F$5:$F$50,MATCH($C69,IEC!$A$5:$A$50,0)),IFERROR(INDEX('Cross-cutting issues'!$F$5:$F$50,MATCH($C69,'Cross-cutting issues'!$A$5:$A$50,0)),IFERROR(INDEX(Legislation!$F$5:$F$50,MATCH($C69,Legislation!$A$5:$A$50,0)),\"\")))))))","v":0},{"$f":"IFERROR(INDEX('Data coll & an'!$G$5:$G$50,MATCH($C69,'Data coll & an'!$A$5:$A$50,0)),IFERROR(INDEX('Prev & Ctrl'!$G$5:$G$50,MATCH($C69,'Prev & Ctrl'!$A$5:$A$50,0)),IFERROR(INDEX('Lab dx'!$G$5:$G$50,MATCH($C69,'Lab dx'!$A$5:$A$50,0)),IFERROR(INDEX('Dog popn'!$G$5:$G$50,MATCH($C69,'Dog popn'!$A$5:$A$50,0)),IFERROR(INDEX(IEC!$G$5:$G$50,MATCH($C69,IEC!$A$5:$A$50,0)),IFERROR(INDEX('Cross-cutting issues'!$G$5:$G$50,MATCH($C69,'Cross-cutting issues'!$A$5:$A$50,0)),IFERROR(INDEX(Legislation!$G$5:$G$50,MATCH($C69,Legislation!$A$5:$A$50,0)),\"\")))))))","v":0},null,null,null,null,null,null,null,null,null,null,"• Identifier les parties prenantes susceptibles d'avoir des connaissances ou de l'expérience en matière de gestion compassionnelle des populations canines (y compris les parties prenantes internationales).\n• Motiver et évaluer l'intérêt pour la mise en œuvre d'un projet pilote de gestion compassionnelle des populations canines (GCPC) à petite échelle. \n• Soutenir la mise en œuvre du projet avec des ressources ou un soutien en nature (autorisation gouvernementale, ressources humaines, logistique, engagement ou financement).",null,"Ministère de l’agriculture",1,"• Identification et engagement des parties prenantes compétentes en matière de programmes de gestion compassionnelle des populations canines.\n• Documentation du soutien fourni (ressources, logistique, autorisation gouvernementale).\n• Mise en œuvre réussie d'un projet de gestion compassionnelle des populations canines à petite échelle.","• Identifier les parties prenantes susceptibles d'avoir des connaissances ou de l'expérience en matière de gestion compassionnelle des populations canines (y compris les parties prenantes internationales).\n• Motiver et évaluer l'intérêt pour la mise en œuvre d'un projet pilote de gestion compassionnelle des populations canines (GCPC) à petite échelle. \n• Soutenir la mise en œuvre du projet avec des ressources ou un soutien en nature (autorisation gouvernementale, ressources humaines, logistique, engagement ou financement).","Ministère de l’agriculture",1,"Faire en sorte qu'une des parties prenantes entreprenne des activités de gestion compassionnelle de la population canine dans au moins une région du pays."]
[69,"DPM","DPM--1-2",null,1,2,"Si le gouvernement abat des chiens sans discernement pour gérer la population canine ou lutter contre la rage, travaillez-vous activement à mettre fin à cette pratique ?","Vous pouvez répondre « Oui » si l'abattage sans discrimination des chiens n'est pas pratiqué actuellement dans votre pays.",null,{"$f":"IFERROR(INDEX('Data coll & an'!$F$5:$F$50,MATCH($C70,'Data coll & an'!$A$5:$A$50,0)),IFERROR(INDEX('Prev & Ctrl'!$F$5:$F$50,MATCH($C70,'Prev & Ctrl'!$A$5:$A$50,0)),IFERROR(INDEX('Lab dx'!$F$5:$F$50,MATCH($C70,'Lab dx'!$A$5:$A$50,0)),IFERROR(INDEX('Dog popn'!$F$5:$F$50,MATCH($C70,'Dog popn'!$A$5:$A$50,0)),IFERROR(INDEX(IEC!$F$5:$F$50,MATCH($C70,IEC!$A$5:$A$50,0)),IFERROR(INDEX('Cross-cutting issues'!$F$5:$F$50,MATCH($C70,'Cross-cutting issues'!$A$5:$A$50,0)),IFERROR(INDEX(Legislation!$F$5:$F$50,MATCH($C70,Legislation!$A$5:$A$50,0)),\"\")))))))","v":0},{"$f":"IFERROR(INDEX('Data coll & an'!$G$5:$G$50,MATCH($C70,'Data coll & an'!$A$5:$A$50,0)),IFERROR(INDEX('Prev & Ctrl'!$G$5:$G$50,MATCH($C70,'Prev & Ctrl'!$A$5:$A$50,0)),IFERROR(INDEX('Lab dx'!$G$5:$G$50,MATCH($C70,'Lab dx'!$A$5:$A$50,0)),IFERROR(INDEX('Dog popn'!$G$5:$G$50,MATCH($C70,'Dog popn'!$A$5:$A$50,0)),IFERROR(INDEX(IEC!$G$5:$G$50,MATCH($C70,IEC!$A$5:$A$50,0)),IFERROR(INDEX('Cross-cutting issues'!$G$5:$G$50,MATCH($C70,'Cross-cutting issues'!$A$5:$A$50,0)),IFERROR(INDEX(Legislation!$G$5:$G$50,MATCH($C70,Legislation!$A$5:$A$50,0)),\"\")))))))","v":0},null,null,null,null,null,null,null,null,null,null,"• Identifier les autorités responsables de l'approbation de l'abattage sans discrimination des chiens pour la gestion des populations canines ou le contrôle de la rage dans le pays ; \n• Identifier les ressources et les informations qui pourraient être utilisées pour plaider contre l'utilisation de l'abattage sans discrimination des chiens ;\n• Partager les ressources et mettre en œuvre des actions pour mettre fin à l'abattage sans discrimination des chiens. ",null,"Ministère de l’agriculture",1,"• Identification des autorités responsables de l'approbation de l'abattage des chiens.\n• Compilation et diffusion de ressources de plaidoyer contre l'abattage sans discrimination.\n• Documentation des mesures prises pour mettre fin aux pratiques d'abattage sans discrimination.","• Identifier les autorités responsables de l'approbation de l'abattage sans discrimination des chiens pour la gestion des populations canines ou le contrôle de la rage dans le pays ; \n• Identifier les ressources et les informations qui pourraient être utilisées pour plaider contre l'utilisation de l'abattage sans discrimination des chiens ;\n• Partager les ressources et mettre en œuvre des actions pour mettre fin à l'abattage sans discrimination des chiens. ","Ministère de l’agriculture",1,"Travailler activement à mettre fin à l'abattage indiscriminé des chiens dans le cadre de la gestion des populations canines ou de la lutte contre la rage."]
[70,"DPM","DPM- -1-3"," ",1,3,"Y a-t-il eu des discussions avec les parties prenantes* pour créer une stratégie de gestion compassionnelle de la population canine dans une zone (par exemple dans le cadre d’un projet pilote) ?","Notez qu’il ne s’agit que de discussions et que l’existence d’une stratégie n’est pas nécessaire pour répondre « Oui » à cette question. ",null,{"$f":"IFERROR(INDEX('Data coll & an'!$F$5:$F$50,MATCH($C71,'Data coll & an'!$A$5:$A$50,0)),IFERROR(INDEX('Prev & Ctrl'!$F$5:$F$50,MATCH($C71,'Prev & Ctrl'!$A$5:$A$50,0)),IFERROR(INDEX('Lab dx'!$F$5:$F$50,MATCH($C71,'Lab dx'!$A$5:$A$50,0)),IFERROR(INDEX('Dog popn'!$F$5:$F$50,MATCH($C71,'Dog popn'!$A$5:$A$50,0)),IFERROR(INDEX(IEC!$F$5:$F$50,MATCH($C71,IEC!$A$5:$A$50,0)),IFERROR(INDEX('Cross-cutting issues'!$F$5:$F$50,MATCH($C71,'Cross-cutting issues'!$A$5:$A$50,0)),IFERROR(INDEX(Legislation!$F$5:$F$50,MATCH($C71,Legislation!$A$5:$A$50,0)),\"\")))))))","v":1},{"$f":"IFERROR(INDEX('Data coll & an'!$G$5:$G$50,MATCH($C71,'Data coll & an'!$A$5:$A$50,0)),IFERROR(INDEX('Prev & Ctrl'!$G$5:$G$50,MATCH($C71,'Prev & Ctrl'!$A$5:$A$50,0)),IFERROR(INDEX('Lab dx'!$G$5:$G$50,MATCH($C71,'Lab dx'!$A$5:$A$50,0)),IFERROR(INDEX('Dog popn'!$G$5:$G$50,MATCH($C71,'Dog popn'!$A$5:$A$50,0)),IFERROR(INDEX(IEC!$G$5:$G$50,MATCH($C71,IEC!$A$5:$A$50,0)),IFERROR(INDEX('Cross-cutting issues'!$G$5:$G$50,MATCH($C71,'Cross-cutting issues'!$A$5:$A$50,0)),IFERROR(INDEX(Legislation!$G$5:$G$50,MATCH($C71,Legislation!$A$5:$A$50,0)),\"\")))))))","v":0},"5.4.16 Dog population management tools","http://caninerabiesblueprint.org/5-4-16-What-dog-population","Guidelines-dog-population-management","http://caninerabiesblueprint.org/Guidelines-for-dog-population?lang=en",null,null,null,null,null,null,"• Examiner les stratégies de gestion compassionnelle des populations canines existantes à partir de la littérature et des lignes directrices ;\n• Identifier les parties prenantes concernées par la gestion compassionnelle des populations canines dans au moins une zone ;\n• Organiser des discussions concernant l'approche et la mise en œuvre d'une stratégie de gestion compassionnelle des populations canines au niveau local ;\n• Établir des calendriers pour l'élaboration d'une stratégie en vue de son examen et de sa mise en œuvre.","Discussions and fixed deadlines  determined and agreed upon with all relevant stakeholders for a DPM strategy at the local level;","Ministère de l’agriculture",1,"• Analyse documentaire des stratégies et lignes directrices existantes en matière de GCPC.\n• Documentation des réunions et des contributions des parties prenantes.\n• Accord sur un calendrier pour l'élaboration d'une stratégie de GCPC au niveau local en vue d'une mise en œuvre future.","• Examiner les stratégies de gestion compassionnelle des populations canines existantes à partir de la littérature et des lignes directrices ;\n• Identifier les parties prenantes concernées par la gestion compassionnelle des populations canines dans au moins une zone ;\n• Organiser des discussions concernant l'approche et la mise en œuvre d'une stratégie de gestion compassionnelle des populations canines au niveau local ;\n• Établir des calendriers pour l'élaboration d'une stratégie en vue de son examen et de sa mise en œuvre.","Ministère de l’agriculture",1,"Organiser des discussions avec les parties prenantes afin d'élaborer une stratégie de gestion compassionnelle de la population canine dans une région (par exemple, un projet pilote)."]
[71,"DPM","DPM- -1-4"," ",1,4,"Avez-vous impliqué des acteurs municipaux dans vos réunions avec les parties prenantes* ? ","Il peut s’agir des autorités responsables de la gestion des chiens communautaires en liberté et de l’enlèvement des déchets. ",null,{"$f":"IFERROR(INDEX('Data coll & an'!$F$5:$F$50,MATCH($C72,'Data coll & an'!$A$5:$A$50,0)),IFERROR(INDEX('Prev & Ctrl'!$F$5:$F$50,MATCH($C72,'Prev & Ctrl'!$A$5:$A$50,0)),IFERROR(INDEX('Lab dx'!$F$5:$F$50,MATCH($C72,'Lab dx'!$A$5:$A$50,0)),IFERROR(INDEX('Dog popn'!$F$5:$F$50,MATCH($C72,'Dog popn'!$A$5:$A$50,0)),IFERROR(INDEX(IEC!$F$5:$F$50,MATCH($C72,IEC!$A$5:$A$50,0)),IFERROR(INDEX('Cross-cutting issues'!$F$5:$F$50,MATCH($C72,'Cross-cutting issues'!$A$5:$A$50,0)),IFERROR(INDEX(Legislation!$F$5:$F$50,MATCH($C72,Legislation!$A$5:$A$50,0)),\"\")))))))","v":0},{"$f":"IFERROR(INDEX('Data coll & an'!$G$5:$G$50,MATCH($C72,'Data coll & an'!$A$5:$A$50,0)),IFERROR(INDEX('Prev & Ctrl'!$G$5:$G$50,MATCH($C72,'Prev & Ctrl'!$A$5:$A$50,0)),IFERROR(INDEX('Lab dx'!$G$5:$G$50,MATCH($C72,'Lab dx'!$A$5:$A$50,0)),IFERROR(INDEX('Dog popn'!$G$5:$G$50,MATCH($C72,'Dog popn'!$A$5:$A$50,0)),IFERROR(INDEX(IEC!$G$5:$G$50,MATCH($C72,IEC!$A$5:$A$50,0)),IFERROR(INDEX('Cross-cutting issues'!$G$5:$G$50,MATCH($C72,'Cross-cutting issues'!$A$5:$A$50,0)),IFERROR(INDEX(Legislation!$G$5:$G$50,MATCH($C72,Legislation!$A$5:$A$50,0)),\"\")))))))","v":"Au niveau local, les acteurs sont impliques de facon permanante. Au niveau national, ils font partie des comites de lutte contre les zoonoses"},null,null,null,null,null,null,null,null,null,null,"• Identifier les parties prenantes municipales responsables qui pourraient être impliquées dans la gestion compassionnelle de la population canine ;\n• Partager les informations ou les résultats des discussions précédentes avec les parties prenantes identifiées ; \n• Inviter les responsables identifiés à des réunions avec les parties prenantes pour qu'ils contribuent à la stratégie GCPC.","Relevant waste management officials present at all stakeholder meetings regarding DPM;","Ministère de l’agriculture",1,"• Identification des parties prenantes municipales concernées.\n•  Enregistrement des informations partagées et des invitations aux réunions.\n• Invitations documentées des acteurs municipaux aux réunions.","• Identifier les parties prenantes municipales responsables qui pourraient être impliquées dans la gestion compassionnelle de la population canine ;\n• Partager les informations ou les résultats des discussions précédentes avec les parties prenantes identifiées ; \n• Inviter les responsables identifiés à des réunions avec les parties prenantes pour qu'ils contribuent à la stratégie GCPC.","Ministère de l’agriculture",1,"Impliquer les acteurs municipaux dans les discussions concernant la gestion compassionnelle de la population canine."]
[72,"DPM","DPM- -1-5"," ",1,5,"Un nombre de chiens de référence a-t-il été déterminé dans une zone (par exemple, dans le cadre d'un projet pilote) ?","Ce nombre de référence peut ne concerner qu’une seule zone. Ainsi on peut répondre « Oui » à cette question même si le nombre de référence n’a été précisé que dans une seule communauté et n’est pas nécessairement représentatif de toutes les communautés du pays. ",null,{"$f":"IFERROR(INDEX('Data coll & an'!$F$5:$F$50,MATCH($C73,'Data coll & an'!$A$5:$A$50,0)),IFERROR(INDEX('Prev & Ctrl'!$F$5:$F$50,MATCH($C73,'Prev & Ctrl'!$A$5:$A$50,0)),IFERROR(INDEX('Lab dx'!$F$5:$F$50,MATCH($C73,'Lab dx'!$A$5:$A$50,0)),IFERROR(INDEX('Dog popn'!$F$5:$F$50,MATCH($C73,'Dog popn'!$A$5:$A$50,0)),IFERROR(INDEX(IEC!$F$5:$F$50,MATCH($C73,IEC!$A$5:$A$50,0)),IFERROR(INDEX('Cross-cutting issues'!$F$5:$F$50,MATCH($C73,'Cross-cutting issues'!$A$5:$A$50,0)),IFERROR(INDEX(Legislation!$F$5:$F$50,MATCH($C73,Legislation!$A$5:$A$50,0)),\"\")))))))","v":0},{"$f":"IFERROR(INDEX('Data coll & an'!$G$5:$G$50,MATCH($C73,'Data coll & an'!$A$5:$A$50,0)),IFERROR(INDEX('Prev & Ctrl'!$G$5:$G$50,MATCH($C73,'Prev & Ctrl'!$A$5:$A$50,0)),IFERROR(INDEX('Lab dx'!$G$5:$G$50,MATCH($C73,'Lab dx'!$A$5:$A$50,0)),IFERROR(INDEX('Dog popn'!$G$5:$G$50,MATCH($C73,'Dog popn'!$A$5:$A$50,0)),IFERROR(INDEX(IEC!$G$5:$G$50,MATCH($C73,IEC!$A$5:$A$50,0)),IFERROR(INDEX('Cross-cutting issues'!$G$5:$G$50,MATCH($C73,'Cross-cutting issues'!$A$5:$A$50,0)),IFERROR(INDEX(Legislation!$G$5:$G$50,MATCH($C73,Legislation!$A$5:$A$50,0)),\"\")))))))","v":0},null,null,null,null,null,null,null,null,null,null,"• Étudier les différentes méthodes scientifiques qui pourraient être utilisées pour déterminer le nombre de chiens de référence et identifier l'approche idéale pour votre contexte local ;\n• Identifier une zone où l'approche peut être utilisée pour déterminer le nombre de chiens de référence ;\n• Obtenir le financement et les ressources nécessaires pour mettre en œuvre l'estimation de la population canine ;\n• Former des professionnels à la mise en œuvre de l'estimation de la population canine ;\n• Mettre en œuvre l'approche et déterminer le nombre de chiens de référence dans la zone choisie.","Baseline dog population estimate known at local level","Ministère de l’agriculture",1,"• Identification et mise en œuvre d'une méthode scientifiquement fondée d'estimation de la population canine.\n• Personnel formé et procédures documentées pour l'estimation des populations de chiens.\n• Rapport de base sur la population canine dans la zone pilote.","• Étudier les différentes méthodes scientifiques qui pourraient être utilisées pour déterminer le nombre de chiens de référence et identifier l'approche idéale pour votre contexte local ;\n• Identifier une zone où l'approche peut être utilisée pour déterminer le nombre de chiens de référence ;\n• Obtenir le financement et les ressources nécessaires pour mettre en œuvre l'estimation de la population canine ;\n• Former des professionnels à la mise en œuvre de l'estimation de la population canine ;\n• Mettre en œuvre l'approche et déterminer le nombre de chiens de référence dans la zone choisie.","Ministère de l’agriculture",1,"Déterminer un nombre de référence de chiens dans une zone (par exemple, un projet pilote)."]
[73,"DPM",{"$f":"B74&\"-\"&LEFT(D74,3)&\"-\"&E74&\"-\"&F74","v":"DPM- -2-6"}," ",2,6,"Une stratégie compassionnelle de gestion des populations de chiens (DPM) a-t-elle été élaborée et partagée avec toutes les parties prenantes concernées pour une zone donnée (par exemple, dans le cadre d’un projet pilote) ?","Notez que ceci n’est qu’élaboré et partagé, PAS encore finalisé, entériné ni mise en œuvre. ",null,{"$f":"IFERROR(INDEX('Data coll & an'!$F$5:$F$50,MATCH($C74,'Data coll & an'!$A$5:$A$50,0)),IFERROR(INDEX('Prev & Ctrl'!$F$5:$F$50,MATCH($C74,'Prev & Ctrl'!$A$5:$A$50,0)),IFERROR(INDEX('Lab dx'!$F$5:$F$50,MATCH($C74,'Lab dx'!$A$5:$A$50,0)),IFERROR(INDEX('Dog popn'!$F$5:$F$50,MATCH($C74,'Dog popn'!$A$5:$A$50,0)),IFERROR(INDEX(IEC!$F$5:$F$50,MATCH($C74,IEC!$A$5:$A$50,0)),IFERROR(INDEX('Cross-cutting issues'!$F$5:$F$50,MATCH($C74,'Cross-cutting issues'!$A$5:$A$50,0)),IFERROR(INDEX(Legislation!$F$5:$F$50,MATCH($C74,Legislation!$A$5:$A$50,0)),\"\")))))))","v":0},{"$f":"IFERROR(INDEX('Data coll & an'!$G$5:$G$50,MATCH($C74,'Data coll & an'!$A$5:$A$50,0)),IFERROR(INDEX('Prev & Ctrl'!$G$5:$G$50,MATCH($C74,'Prev & Ctrl'!$A$5:$A$50,0)),IFERROR(INDEX('Lab dx'!$G$5:$G$50,MATCH($C74,'Lab dx'!$A$5:$A$50,0)),IFERROR(INDEX('Dog popn'!$G$5:$G$50,MATCH($C74,'Dog popn'!$A$5:$A$50,0)),IFERROR(INDEX(IEC!$G$5:$G$50,MATCH($C74,IEC!$A$5:$A$50,0)),IFERROR(INDEX('Cross-cutting issues'!$G$5:$G$50,MATCH($C74,'Cross-cutting issues'!$A$5:$A$50,0)),IFERROR(INDEX(Legislation!$G$5:$G$50,MATCH($C74,Legislation!$A$5:$A$50,0)),\"\")))))))","v":0},"World Animal Protection-DPM guidelines","https://www.worldanimalprotection.org/our-work/protecting-animals-communities/better-lives-dogs","World Animal Protection-humane dog management","https://www.worldanimalprotection.org/sites/default/files/int_files/humane-dog-management.pdf",null,null,null,null,null,null,"• Rédiger une stratégie de GCPC sur la base des consultations des parties prenantes ;\n• Partager le projet de stratégie de GCPC avec toutes les parties prenantes concernées pour examen et retour d'information ;\n• Examiner et intégrer tout retour d'information reçu.","A draft of the local-level DPM strategy is available with specific deadlines for feedback and review in place.","Ministère de l’agriculture",4,"• Élaboration d'une stratégie de GCPC sur la base des consultations des parties prenantes.\n• Consignation du retour d'information de toutes les parties prenantes concernées.\n• Révision de la stratégie en tenant compte des contributions des parties prenantes.",{"$f":"IFERROR(VLOOKUP($C74,INDIRECT(\"DCA!a13:j49\"),6,FALSE),IFERROR(VLOOKUP($C74,INDIRECT(\"pco!a13:j49\"),6,FALSE),IFERROR(VLOOKUP($C74,INDIRECT(\"lab!a13:j49\"),6,FALSE),IFERROR(VLOOKUP($C74,INDIRECT(\"dpm!a13:j49\"),6,FALSE),IFERROR(VLOOKUP($C74,INDIRECT(\"iecnw!a13:j49\"),6,FALSE),IFERROR(VLOOKUP($C74,INDIRECT(\"cci!a13:j49\"),6,FALSE),IFERROR(VLOOKUP($C74,INDIRECT(\"leg!a13:j49\"),6,FALSE),\"\")))))))","v":"• Rédiger une stratégie de GCPC sur la base des consultations des parties prenantes ;\n• Partager le projet de stratégie de GCPC avec toutes les parties prenantes concernées pour examen et retour d'information ;\n• Examiner et intégrer tout retour d'information reçu."},{"$f":"IFERROR(VLOOKUP($C74,INDIRECT(\"DCA!a13:j49\"),8,FALSE),IFERROR(VLOOKUP($C74,INDIRECT(\"pco!a13:j49\"),8,FALSE),IFERROR(VLOOKUP($C74,INDIRECT(\"lab!a13:j49\"),8,FALSE),IFERROR(VLOOKUP($C74,INDIRECT(\"dpm!a13:j49\"),8,FALSE),IFERROR(VLOOKUP($C74,INDIRECT(\"iecnw!a13:j49\"),8,FALSE),IFERROR(VLOOKUP($C74,INDIRECT(\"cci!a13:j49\"),8,FALSE),IFERROR(VLOOKUP($C74,INDIRECT(\"leg!a13:j49\"),8,FALSE),\"\")))))))","v":"Ministère de l’agriculture"},{"$f":"IFERROR(VLOOKUP($C74,INDIRECT(\"DCA!a13:j49\"),9,FALSE),IFERROR(VLOOKUP($C74,INDIRECT(\"pco!a13:j49\"),9,FALSE),IFERROR(VLOOKUP($C74,INDIRECT(\"lab!a13:j49\"),9,FALSE),IFERROR(VLOOKUP($C74,INDIRECT(\"dpm!a13:j49\"),9,FALSE),IFERROR(VLOOKUP($C74,INDIRECT(\"iecnw!a13:j49\"),9,FALSE),IFERROR(VLOOKUP($C74,INDIRECT(\"cci!a13:j49\"),9,FALSE),IFERROR(VLOOKUP($C74,INDIRECT(\"leg!a13:j49\"),9,FALSE),\"\")))))))","v":4},"Rédiger et partager une stratégie de GCPC avec toutes les parties prenantes concernées pour une zone donnée (par exemple, un projet pilote)."]
[74,"DPM","DPM- -2-7"," ",2,7,"La stratégie de gestion des populations canines a-t-elle été finalisée et mise en œuvre dans une zone (par exemple dans le cadre d’un projet pilote) ?","NOTE : L’abattage en masse N’EST PAS considéré comme une stratégie efficace de gestion compassionnelle de la population canine. Cependant, la gestion responsable des chiens est considérée comme appropriée. L’euthanasie des animaux suspects de rage selon les normes internationales fait partie de la gestion compassionnelle de la population canine.",null,{"$f":"IFERROR(INDEX('Data coll & an'!$F$5:$F$50,MATCH($C75,'Data coll & an'!$A$5:$A$50,0)),IFERROR(INDEX('Prev & Ctrl'!$F$5:$F$50,MATCH($C75,'Prev & Ctrl'!$A$5:$A$50,0)),IFERROR(INDEX('Lab dx'!$F$5:$F$50,MATCH($C75,'Lab dx'!$A$5:$A$50,0)),IFERROR(INDEX('Dog popn'!$F$5:$F$50,MATCH($C75,'Dog popn'!$A$5:$A$50,0)),IFERROR(INDEX(IEC!$F$5:$F$50,MATCH($C75,IEC!$A$5:$A$50,0)),IFERROR(INDEX('Cross-cutting issues'!$F$5:$F$50,MATCH($C75,'Cross-cutting issues'!$A$5:$A$50,0)),IFERROR(INDEX(Legislation!$F$5:$F$50,MATCH($C75,Legislation!$A$5:$A$50,0)),\"\")))))))","v":0},{"$f":"IFERROR(INDEX('Data coll & an'!$G$5:$G$50,MATCH($C75,'Data coll & an'!$A$5:$A$50,0)),IFERROR(INDEX('Prev & Ctrl'!$G$5:$G$50,MATCH($C75,'Prev & Ctrl'!$A$5:$A$50,0)),IFERROR(INDEX('Lab dx'!$G$5:$G$50,MATCH($C75,'Lab dx'!$A$5:$A$50,0)),IFERROR(INDEX('Dog popn'!$G$5:$G$50,MATCH($C75,'Dog popn'!$A$5:$A$50,0)),IFERROR(INDEX(IEC!$G$5:$G$50,MATCH($C75,IEC!$A$5:$A$50,0)),IFERROR(INDEX('Cross-cutting issues'!$G$5:$G$50,MATCH($C75,'Cross-cutting issues'!$A$5:$A$50,0)),IFERROR(INDEX(Legislation!$G$5:$G$50,MATCH($C75,Legislation!$A$5:$A$50,0)),\"\")))))))","v":0},"Monitoring and evaluation of dog population management programmes","http://www.icam-coalition.org/downloads/ICAM_Are_we_making_a_difference_Updated_Nov2015.pdf","OIE-terrestrial code chapter 7.7","http://www.oie.int/index.php?id=169&L=0&htmfile=chapitre_aw_stray_dog.htm",null,null,null,null,null,null,"• Finaliser la stratégie de GCPC sur la base des commentaires des parties prenantes ; \n• S'assurer que la stratégie de GCPC est reconnue ou approuvée par l'autorité compétente concernée ;\n• Identifier les ressources et les autorités responsables de la mise en œuvre de la stratégie de GCPC ;\n• Obtenir un financement pour la mise en œuvre de la stratégie de GCPC dans une région ;\n• Diffuser la version finale de la stratégie à tous les professionnels concernés ;\n• Former tous les professionnels concernés à la mise en œuvre de la stratégie de GCPC;\n• Mettre en œuvre la stratégie de GCPC dans une région.","The local-level DPM strategy is finalised with all associated stakeholders in agreement. Funding and resources are available for the local implementation of the strategy and it is effected upon endorsement / recognition of the strategy. ","Ministère de l’agriculture",6,"• Approbation et reconnaissance de la stratégie de GCPC par les autorités compétentes.\n• Financement et ressources assurés pour la mise en œuvre de la stratégie.\n• Documentation des professionnels formés \n• Rapport de mise en œuvre des activités de GCPC dans la zone pilote.","• Finaliser la stratégie de GCPC sur la base des commentaires des parties prenantes ; \n• S'assurer que la stratégie de GCPC est reconnue ou approuvée par l'autorité compétente concernée ;\n• Identifier les ressources et les autorités responsables de la mise en œuvre de la stratégie de GCPC ;\n• Obtenir un financement pour la mise en œuvre de la stratégie de GCPC dans une région ;\n• Diffuser la version finale de la stratégie à tous les professionnels concernés ;\n• Former tous les professionnels concernés à la mise en œuvre de la stratégie de GCPC;\n• Mettre en œuvre la stratégie de GCPC dans une région.","Ministère de l’agriculture",6,"Finaliser et mettre en œuvre la stratégie de gestion compassionnelle des populations canines dans une zone (par exemple, un projet pilote)."]
[75,"DPM","DPM- -2-8"," ",2,8,"Des professionnels ont-ils été formés sur la gestion compassionnelle des populations canines dans une zone (par exemple dans le cadre d’un projet pilote) ?","Si les professionnels ont suivi des cours en ligne centrés sur la gestion compassionnelle des populations canines, vous pouvez répondre « Oui ». ",null,{"$f":"IFERROR(INDEX('Data coll & an'!$F$5:$F$50,MATCH($C76,'Data coll & an'!$A$5:$A$50,0)),IFERROR(INDEX('Prev & Ctrl'!$F$5:$F$50,MATCH($C76,'Prev & Ctrl'!$A$5:$A$50,0)),IFERROR(INDEX('Lab dx'!$F$5:$F$50,MATCH($C76,'Lab dx'!$A$5:$A$50,0)),IFERROR(INDEX('Dog popn'!$F$5:$F$50,MATCH($C76,'Dog popn'!$A$5:$A$50,0)),IFERROR(INDEX(IEC!$F$5:$F$50,MATCH($C76,IEC!$A$5:$A$50,0)),IFERROR(INDEX('Cross-cutting issues'!$F$5:$F$50,MATCH($C76,'Cross-cutting issues'!$A$5:$A$50,0)),IFERROR(INDEX(Legislation!$F$5:$F$50,MATCH($C76,Legislation!$A$5:$A$50,0)),\"\")))))))","v":0},{"$f":"IFERROR(INDEX('Data coll & an'!$G$5:$G$50,MATCH($C76,'Data coll & an'!$A$5:$A$50,0)),IFERROR(INDEX('Prev & Ctrl'!$G$5:$G$50,MATCH($C76,'Prev & Ctrl'!$A$5:$A$50,0)),IFERROR(INDEX('Lab dx'!$G$5:$G$50,MATCH($C76,'Lab dx'!$A$5:$A$50,0)),IFERROR(INDEX('Dog popn'!$G$5:$G$50,MATCH($C76,'Dog popn'!$A$5:$A$50,0)),IFERROR(INDEX(IEC!$G$5:$G$50,MATCH($C76,IEC!$A$5:$A$50,0)),IFERROR(INDEX('Cross-cutting issues'!$G$5:$G$50,MATCH($C76,'Cross-cutting issues'!$A$5:$A$50,0)),IFERROR(INDEX(Legislation!$G$5:$G$50,MATCH($C76,Legislation!$A$5:$A$50,0)),\"\")))))))","v":0},"GARC Animal Handling and Vaccination course","https://education.rabiesalliance.org/login/index.php",null,null,null,null,null,null,null,null,"• Déterminer les besoins de formation des professionnels en ce qui concerne la gestion compassionnelle des populations canines, dans une région spécifique ;\n• Identifier un matériel de formation efficace et pertinent ;\n• Identifier et assurer le financement de la formation ;\n• Identifier les exigences logistiques (lieu, heure, date, etc.) pour entreprendre la formation pour les professionnels dans une région ;\n• Lancer la formation pour les professionnels dans la région choisie.","Professionals in animal health at the local level have been trained / updated on the latest techniques and information regarding DPM;","Ministère de l’agriculture",6,"• Besoins en formation et supports pédagogiques pertinents identifiés.\n• Registres des professionnels formés et des ressources éducatives fournies.","• Déterminer les besoins de formation des professionnels en ce qui concerne la gestion compassionnelle des populations canines, dans une région spécifique ;\n• Identifier un matériel de formation efficace et pertinent ;\n• Identifier et assurer le financement de la formation ;\n• Identifier les exigences logistiques (lieu, heure, date, etc.) pour entreprendre la formation pour les professionnels dans une région ;\n• Lancer la formation pour les professionnels dans la région choisie.","Ministère de l’agriculture",6,"Former ou éduquer les professionnels à la gestion compassionnelle des populations canines dans une région (par exemple, un projet pilote)."]
[76,"DPM",{"$f":"B77&\"-\"&LEFT(D77,3)&\"-\"&E77&\"-\"&F77","v":"DPM- -2-9"}," ",2,9,"Des campagnes de sensibilisation du public à la gestion compassionnelle des populations canines ont-elles été mises en œuvre dans une zone (par exemple dans le cadre d’un projet pilote) ?","Si vous sensibilisez les communautés à la possession responsable de chiens, vous pouvez répondre à cette question par l'affirmative.",null,{"$f":"IFERROR(INDEX('Data coll & an'!$F$5:$F$50,MATCH($C77,'Data coll & an'!$A$5:$A$50,0)),IFERROR(INDEX('Prev & Ctrl'!$F$5:$F$50,MATCH($C77,'Prev & Ctrl'!$A$5:$A$50,0)),IFERROR(INDEX('Lab dx'!$F$5:$F$50,MATCH($C77,'Lab dx'!$A$5:$A$50,0)),IFERROR(INDEX('Dog popn'!$F$5:$F$50,MATCH($C77,'Dog popn'!$A$5:$A$50,0)),IFERROR(INDEX(IEC!$F$5:$F$50,MATCH($C77,IEC!$A$5:$A$50,0)),IFERROR(INDEX('Cross-cutting issues'!$F$5:$F$50,MATCH($C77,'Cross-cutting issues'!$A$5:$A$50,0)),IFERROR(INDEX(Legislation!$F$5:$F$50,MATCH($C77,Legislation!$A$5:$A$50,0)),\"\")))))))","v":0},{"$f":"IFERROR(INDEX('Data coll & an'!$G$5:$G$50,MATCH($C77,'Data coll & an'!$A$5:$A$50,0)),IFERROR(INDEX('Prev & Ctrl'!$G$5:$G$50,MATCH($C77,'Prev & Ctrl'!$A$5:$A$50,0)),IFERROR(INDEX('Lab dx'!$G$5:$G$50,MATCH($C77,'Lab dx'!$A$5:$A$50,0)),IFERROR(INDEX('Dog popn'!$G$5:$G$50,MATCH($C77,'Dog popn'!$A$5:$A$50,0)),IFERROR(INDEX(IEC!$G$5:$G$50,MATCH($C77,IEC!$A$5:$A$50,0)),IFERROR(INDEX('Cross-cutting issues'!$G$5:$G$50,MATCH($C77,'Cross-cutting issues'!$A$5:$A$50,0)),IFERROR(INDEX(Legislation!$G$5:$G$50,MATCH($C77,Legislation!$A$5:$A$50,0)),\"\")))))))","v":"strategie et obligations destinees aux proprietaires est en place (animaux a proprietaires)"},null,null,null,null,null,null,null,null,null,null,"• Examiner le matériel de sensibilisation à la GCPC et les campagnes d'information existantes provenant d'autres sources ;\n• Obtenir un financement pour la sensibilisation du public à la GCPC ;\n• Élaborer des messages et du matériel de sensibilisation du public conformes à la stratégie de GCPC finalisée ;\n• Déterminer la meilleure façon de diffuser les messages et le matériel de sensibilisation dans la région choisie (heure de la journée, canaux médiatiques, etc.) ;\n• Mettre en œuvre les campagnes de sensibilisation du public à la GCPC dans la région choisie.","Rabies awareness campaigns include public sensitisation regarding DPM and its importance at a local level;","Ministère de l’agriculture",7,"• Développement ou adaptation de matériel de sensibilisation du public aux contextes locaux.\n• Registres des financements obtenus.\n• Rapport sur la mise en œuvre de la campagne de sensibilisation du public.","• Examiner le matériel de sensibilisation à la GCPC et les campagnes d'information existantes provenant d'autres sources ;\n• Obtenir un financement pour la sensibilisation du public à la GCPC ;\n• Élaborer des messages et du matériel de sensibilisation du public conformes à la stratégie de GCPC finalisée ;\n• Déterminer la meilleure façon de diffuser les messages et le matériel de sensibilisation dans la région choisie (heure de la journée, canaux médiatiques, etc.) ;\n• Mettre en œuvre les campagnes de sensibilisation du public à la GCPC dans la région choisie.","Ministère de l’agriculture",7,"Mettre en œuvre des campagnes de sensibilisation du public à la GCPC dans une région (par exemple, projet pilote)."]
[77,"DPM","DPM- -3-10"," ",3,10,"La stratégie de gestion compassionnelle des populations canines a-t-elle été évaluée et affinée sur la base des résultats obtenus dans la zone du projet (par exemple, dans le cadre d’un projet pilote) ?","Noter que ceci ne concerne que la zone de projet sélectionnée (Par exemple un projet pilote) et non pas dans l’ensemble du pays. ",null,{"$f":"IFERROR(INDEX('Data coll & an'!$F$5:$F$50,MATCH($C78,'Data coll & an'!$A$5:$A$50,0)),IFERROR(INDEX('Prev & Ctrl'!$F$5:$F$50,MATCH($C78,'Prev & Ctrl'!$A$5:$A$50,0)),IFERROR(INDEX('Lab dx'!$F$5:$F$50,MATCH($C78,'Lab dx'!$A$5:$A$50,0)),IFERROR(INDEX('Dog popn'!$F$5:$F$50,MATCH($C78,'Dog popn'!$A$5:$A$50,0)),IFERROR(INDEX(IEC!$F$5:$F$50,MATCH($C78,IEC!$A$5:$A$50,0)),IFERROR(INDEX('Cross-cutting issues'!$F$5:$F$50,MATCH($C78,'Cross-cutting issues'!$A$5:$A$50,0)),IFERROR(INDEX(Legislation!$F$5:$F$50,MATCH($C78,Legislation!$A$5:$A$50,0)),\"\")))))))","v":0},{"$f":"IFERROR(INDEX('Data coll & an'!$G$5:$G$50,MATCH($C78,'Data coll & an'!$A$5:$A$50,0)),IFERROR(INDEX('Prev & Ctrl'!$G$5:$G$50,MATCH($C78,'Prev & Ctrl'!$A$5:$A$50,0)),IFERROR(INDEX('Lab dx'!$G$5:$G$50,MATCH($C78,'Lab dx'!$A$5:$A$50,0)),IFERROR(INDEX('Dog popn'!$G$5:$G$50,MATCH($C78,'Dog popn'!$A$5:$A$50,0)),IFERROR(INDEX(IEC!$G$5:$G$50,MATCH($C78,IEC!$A$5:$A$50,0)),IFERROR(INDEX('Cross-cutting issues'!$G$5:$G$50,MATCH($C78,'Cross-cutting issues'!$A$5:$A$50,0)),IFERROR(INDEX(Legislation!$G$5:$G$50,MATCH($C78,Legislation!$A$5:$A$50,0)),\"\")))))))","v":0},"Knowledge-Attitude-Practice","http://caninerabiesblueprint.org/Examples-of-Knowledge-Attitude-and?lang=en",null,null,null,null,null,null,null,null,"• Compiler et évaluer les données collectées au cours de la mise en œuvre de la stratégie de GCPC ;\n• Rédiger un rapport dans lequel vous mettrez en évidence les succès et les lacunes du programme ;\n• Réunir toutes les parties prenantes concernées par la GCPC pour réévaluer la stratégie de GCPC ;\n• Réviser, affiner et finaliser la stratégie de GCPC.","A newly refined DPM strategy is finalised and documenteded based on the most up-to-date dog ecology data from the local level;","Ministère de l’agriculture",8,"• Rapport complet évaluant les résultats du projet et l'analyse des données.\n• Réunions des parties prenantes afin d'examiner et d'affiner la stratégie de GCPC.\n• Mise à jour et amélioration de la stratégie de GCPC sur la base des résultats du projet pilote.","• Compiler et évaluer les données collectées au cours de la mise en œuvre de la stratégie de GCPC ;\n• Rédiger un rapport dans lequel vous mettrez en évidence les succès et les lacunes du programme ;\n• Réunir toutes les parties prenantes concernées par la GCPC pour réévaluer la stratégie de GCPC ;\n• Réviser, affiner et finaliser la stratégie de GCPC.","Ministère de l’agriculture",8,"Évaluer et affiner la stratégie de GCPC sur la base des résultats obtenus dans la zone du projet (par exemple, le projet pilote)."]
[78,"DPM","DPM- -3-11"," ",3,11,"Des campagnes de sensibilisation du public à la gestion compassionnelle des populations canines ont-elles été étendues à d’autres régions du pays ? "," ",null,{"$f":"IFERROR(INDEX('Data coll & an'!$F$5:$F$50,MATCH($C79,'Data coll & an'!$A$5:$A$50,0)),IFERROR(INDEX('Prev & Ctrl'!$F$5:$F$50,MATCH($C79,'Prev & Ctrl'!$A$5:$A$50,0)),IFERROR(INDEX('Lab dx'!$F$5:$F$50,MATCH($C79,'Lab dx'!$A$5:$A$50,0)),IFERROR(INDEX('Dog popn'!$F$5:$F$50,MATCH($C79,'Dog popn'!$A$5:$A$50,0)),IFERROR(INDEX(IEC!$F$5:$F$50,MATCH($C79,IEC!$A$5:$A$50,0)),IFERROR(INDEX('Cross-cutting issues'!$F$5:$F$50,MATCH($C79,'Cross-cutting issues'!$A$5:$A$50,0)),IFERROR(INDEX(Legislation!$F$5:$F$50,MATCH($C79,Legislation!$A$5:$A$50,0)),\"\")))))))","v":0},{"$f":"IFERROR(INDEX('Data coll & an'!$G$5:$G$50,MATCH($C79,'Data coll & an'!$A$5:$A$50,0)),IFERROR(INDEX('Prev & Ctrl'!$G$5:$G$50,MATCH($C79,'Prev & Ctrl'!$A$5:$A$50,0)),IFERROR(INDEX('Lab dx'!$G$5:$G$50,MATCH($C79,'Lab dx'!$A$5:$A$50,0)),IFERROR(INDEX('Dog popn'!$G$5:$G$50,MATCH($C79,'Dog popn'!$A$5:$A$50,0)),IFERROR(INDEX(IEC!$G$5:$G$50,MATCH($C79,IEC!$A$5:$A$50,0)),IFERROR(INDEX('Cross-cutting issues'!$G$5:$G$50,MATCH($C79,'Cross-cutting issues'!$A$5:$A$50,0)),IFERROR(INDEX(Legislation!$G$5:$G$50,MATCH($C79,Legislation!$A$5:$A$50,0)),\"\")))))))","v":0},"Communication-plan","http://caninerabiesblueprint.org/Communications-plan?lang=en","5.4.16- dog-population-management","http://caninerabiesblueprint.org/5-4-16-What-dog-population?lang=en",null,null,null,null,null,null,"• Évaluer les messages et le matériel existants et les réviser si nécessaire (en tenant compte des différences entre les localités, les cultures, etc.) ;\n• Obtenir un financement pour l'élaboration et la diffusion de messages et de supports de sensibilisation supplémentaires afin de sensibiliser un plus grand nombre de régions du pays ;\n• Élaborer des messages et des supports de sensibilisation du public conformes à la stratégie actualisée et finalisée du GCPC ;\n• Déterminer la meilleure façon de distribuer les messages et le matériel de sensibilisation dans un plus grand nombre de régions du pays (en tenant compte des différentes cultures, de l'accès aux médias, etc. dans les différentes régions) ;\n• Mettre en œuvre les campagnes de sensibilisation du public à la GCPC dans un plus grand nombre de régions du pays.","Rabies awareness campaigns, including DPM, are revised, customised, resourced and expanded to other areas for implementation","Ministère de l’agriculture",7,"• Révision et adaptation du matériel de sensibilisation à divers contextes culturels.\n• Obtention d'un financement pour la distribution à l'échelle nationale du matériel de sensibilisation à la GCPC.\n• Mise en place de registres et documentation de la portée des campagnes de sensibilisation du public.","• Évaluer les messages et le matériel existants et les réviser si nécessaire (en tenant compte des différences entre les localités, les cultures, etc.) ;\n• Obtenir un financement pour l'élaboration et la diffusion de messages et de supports de sensibilisation supplémentaires afin de sensibiliser un plus grand nombre de régions du pays ;\n• Élaborer des messages et des supports de sensibilisation du public conformes à la stratégie actualisée et finalisée du GCPC ;\n• Déterminer la meilleure façon de distribuer les messages et le matériel de sensibilisation dans un plus grand nombre de régions du pays (en tenant compte des différentes cultures, de l'accès aux médias, etc. dans les différentes régions) ;\n• Mettre en œuvre les campagnes de sensibilisation du public à la GCPC dans un plus grand nombre de régions du pays.","Ministère de l’agriculture",7,"Étendre à d'autres régions du pays les campagnes de sensibilisation du public à la GCPC."]
[79,"DPM","DPM- -3-12"," ",3,12,"La plupart des professionnels impliqués dans la gestion compassionnelle des populations canines ont-ils complété une formation de vétérinaire ou de technicien animalier sur ce sujet dans l’ensemble du pays ? ","La formation concerne les procédures et techniques de gestion compassionnelle des populations canines, telles que les meilleures pratiques relatives à la stérilisation sûre et sans cruauté. Cette disposition ne s'applique pas à la formation vétérinaire sur la vaccination de base des chiens, par exemple. ",null,{"$f":"IFERROR(INDEX('Data coll & an'!$F$5:$F$50,MATCH($C80,'Data coll & an'!$A$5:$A$50,0)),IFERROR(INDEX('Prev & Ctrl'!$F$5:$F$50,MATCH($C80,'Prev & Ctrl'!$A$5:$A$50,0)),IFERROR(INDEX('Lab dx'!$F$5:$F$50,MATCH($C80,'Lab dx'!$A$5:$A$50,0)),IFERROR(INDEX('Dog popn'!$F$5:$F$50,MATCH($C80,'Dog popn'!$A$5:$A$50,0)),IFERROR(INDEX(IEC!$F$5:$F$50,MATCH($C80,IEC!$A$5:$A$50,0)),IFERROR(INDEX('Cross-cutting issues'!$F$5:$F$50,MATCH($C80,'Cross-cutting issues'!$A$5:$A$50,0)),IFERROR(INDEX(Legislation!$F$5:$F$50,MATCH($C80,Legislation!$A$5:$A$50,0)),\"\")))))))","v":0},{"$f":"IFERROR(INDEX('Data coll & an'!$G$5:$G$50,MATCH($C80,'Data coll & an'!$A$5:$A$50,0)),IFERROR(INDEX('Prev & Ctrl'!$G$5:$G$50,MATCH($C80,'Prev & Ctrl'!$A$5:$A$50,0)),IFERROR(INDEX('Lab dx'!$G$5:$G$50,MATCH($C80,'Lab dx'!$A$5:$A$50,0)),IFERROR(INDEX('Dog popn'!$G$5:$G$50,MATCH($C80,'Dog popn'!$A$5:$A$50,0)),IFERROR(INDEX(IEC!$G$5:$G$50,MATCH($C80,IEC!$A$5:$A$50,0)),IFERROR(INDEX('Cross-cutting issues'!$G$5:$G$50,MATCH($C80,'Cross-cutting issues'!$A$5:$A$50,0)),IFERROR(INDEX(Legislation!$G$5:$G$50,MATCH($C80,Legislation!$A$5:$A$50,0)),\"\")))))))","v":0},null,null,null,null,null,null,null,null,null,null,"• Élaborer un plan pour étendre la formation au reste du pays à partir des zones locales ;\n• Identifier et assurer le financement de la formation dans l'ensemble du pays ;\n• Identifier les besoins logistiques (lieu, heure, date, etc.) pour entreprendre la formation des professionnels dans tout le pays ;\n• Lancer la formation des professionnels dans l'ensemble du pays ;\n• Évaluer l'efficacité et la portée des cours de formation pour s'assurer que les professionnels ont été formés dans tout le pays.","The majority of veterinary and animal technicians have been trained in DPM across the country;","Ministère de l’agriculture",8,"• Plan national de formation pour les vétérinaires et les professionnels des animaux.\n• Séances de formation documentées et registres de participation.\n• Rapports d'évaluation sur l'efficacité et la portée des efforts nationaux de formation.","• Élaborer un plan pour étendre la formation au reste du pays à partir des zones locales ;\n• Identifier et assurer le financement de la formation dans l'ensemble du pays ;\n• Identifier les besoins logistiques (lieu, heure, date, etc.) pour entreprendre la formation des professionnels dans tout le pays ;\n• Lancer la formation des professionnels dans l'ensemble du pays ;\n• Évaluer l'efficacité et la portée des cours de formation pour s'assurer que les professionnels ont été formés dans tout le pays.","Ministère de l’agriculture",8,"Former les professionnels vétérinaires et animaliers concernés à la mise en œuvre de la GCPC dans l'ensemble du pays."]
[80,"DPM","DPM- -5-13"," ",5,13,"La stratégie définitive de gestion compassionnelle des populations canines a-t-elle été mise en œuvre dans l’ensemble du pays ? "," ","KEY",{"$f":"IFERROR(INDEX('Data coll & an'!$F$5:$F$50,MATCH($C81,'Data coll & an'!$A$5:$A$50,0)),IFERROR(INDEX('Prev & Ctrl'!$F$5:$F$50,MATCH($C81,'Prev & Ctrl'!$A$5:$A$50,0)),IFERROR(INDEX('Lab dx'!$F$5:$F$50,MATCH($C81,'Lab dx'!$A$5:$A$50,0)),IFERROR(INDEX('Dog popn'!$F$5:$F$50,MATCH($C81,'Dog popn'!$A$5:$A$50,0)),IFERROR(INDEX(IEC!$F$5:$F$50,MATCH($C81,IEC!$A$5:$A$50,0)),IFERROR(INDEX('Cross-cutting issues'!$F$5:$F$50,MATCH($C81,'Cross-cutting issues'!$A$5:$A$50,0)),IFERROR(INDEX(Legislation!$F$5:$F$50,MATCH($C81,Legislation!$A$5:$A$50,0)),\"\")))))))","v":0},{"$f":"IFERROR(INDEX('Data coll & an'!$G$5:$G$50,MATCH($C81,'Data coll & an'!$A$5:$A$50,0)),IFERROR(INDEX('Prev & Ctrl'!$G$5:$G$50,MATCH($C81,'Prev & Ctrl'!$A$5:$A$50,0)),IFERROR(INDEX('Lab dx'!$G$5:$G$50,MATCH($C81,'Lab dx'!$A$5:$A$50,0)),IFERROR(INDEX('Dog popn'!$G$5:$G$50,MATCH($C81,'Dog popn'!$A$5:$A$50,0)),IFERROR(INDEX(IEC!$G$5:$G$50,MATCH($C81,IEC!$A$5:$A$50,0)),IFERROR(INDEX('Cross-cutting issues'!$G$5:$G$50,MATCH($C81,'Cross-cutting issues'!$A$5:$A$50,0)),IFERROR(INDEX(Legislation!$G$5:$G$50,MATCH($C81,Legislation!$A$5:$A$50,0)),\"\")))))))","v":0},null,null,null,null,null,null,null,null,null,null,"• Identifier les parties prenantes concernées par la GCPC au niveau national ;\n• Demander aux parties prenantes nationales d'examiner la stratégie de GCPC utilisée dans au moins une région du pays ;\n• Adapter la stratégie de GCPC existante sur la base du retour d'information et des discussions pour créer une stratégie nationale de GCPC ;\n• Obtenir le financement et les ressources nécessaires à la mise en œuvre de la stratégie nationale de GCPC ;\n• Finaliser, approuver et documenter la stratégie nationale de GCPC ;\n• Former tous les professionnels concernés à la mise en œuvre de la stratégie nationale de GCPC, le cas échéant ;  \n• Mettre en œuvre la stratégie nationale à tous les niveaux, y compris en fournissant un soutien continu aux stratégies locales et aux parties prenantes.","A national DPM strategy is devised, documented, funded, endorsed and implemented based on the experiences and feedback from local-level strategies. The national DPM strategy should ensure sufficient resources and support to local-level implementation;","Ministère de l’agriculture",12,"• Approbation de la stratégie nationale de GCPC intégrant les enseignements issus des projets locaux.\n• Financement et soutien logistique obtenus pour la mise en œuvre nationale.\n• Documentation de l'exécution de la stratégie nationale et des structures de soutien.","• Identifier les parties prenantes concernées par la GCPC au niveau national ;\n• Demander aux parties prenantes nationales d'examiner la stratégie de GCPC utilisée dans au moins une région du pays ;\n• Adapter la stratégie de GCPC existante sur la base du retour d'information et des discussions pour créer une stratégie nationale de GCPC ;\n• Obtenir le financement et les ressources nécessaires à la mise en œuvre de la stratégie nationale de GCPC ;\n• Finaliser, approuver et documenter la stratégie nationale de GCPC ;\n• Former tous les professionnels concernés à la mise en œuvre de la stratégie nationale de GCPC, le cas échéant ;  \n• Mettre en œuvre la stratégie nationale à tous les niveaux, y compris en fournissant un soutien continu aux stratégies locales et aux parties prenantes.","Ministère de l’agriculture",12,"Mettre en œuvre la stratégie finalisée de GCPC dans l'ensemble du pays."]
[81,"DPM","DPM- -5-14"," ",5,14,"Les campagnes en faveur de la gestion compassionnelle des populations canines ont-elles été poursuivies dans l’ensemble du pays après l’élimination de la rage canine ? "," ","KEY",{"$f":"IFERROR(INDEX('Data coll & an'!$F$5:$F$50,MATCH($C82,'Data coll & an'!$A$5:$A$50,0)),IFERROR(INDEX('Prev & Ctrl'!$F$5:$F$50,MATCH($C82,'Prev & Ctrl'!$A$5:$A$50,0)),IFERROR(INDEX('Lab dx'!$F$5:$F$50,MATCH($C82,'Lab dx'!$A$5:$A$50,0)),IFERROR(INDEX('Dog popn'!$F$5:$F$50,MATCH($C82,'Dog popn'!$A$5:$A$50,0)),IFERROR(INDEX(IEC!$F$5:$F$50,MATCH($C82,IEC!$A$5:$A$50,0)),IFERROR(INDEX('Cross-cutting issues'!$F$5:$F$50,MATCH($C82,'Cross-cutting issues'!$A$5:$A$50,0)),IFERROR(INDEX(Legislation!$F$5:$F$50,MATCH($C82,Legislation!$A$5:$A$50,0)),\"\")))))))","v":0},{"$f":"IFERROR(INDEX('Data coll & an'!$G$5:$G$50,MATCH($C82,'Data coll & an'!$A$5:$A$50,0)),IFERROR(INDEX('Prev & Ctrl'!$G$5:$G$50,MATCH($C82,'Prev & Ctrl'!$A$5:$A$50,0)),IFERROR(INDEX('Lab dx'!$G$5:$G$50,MATCH($C82,'Lab dx'!$A$5:$A$50,0)),IFERROR(INDEX('Dog popn'!$G$5:$G$50,MATCH($C82,'Dog popn'!$A$5:$A$50,0)),IFERROR(INDEX(IEC!$G$5:$G$50,MATCH($C82,IEC!$A$5:$A$50,0)),IFERROR(INDEX('Cross-cutting issues'!$G$5:$G$50,MATCH($C82,'Cross-cutting issues'!$A$5:$A$50,0)),IFERROR(INDEX(Legislation!$G$5:$G$50,MATCH($C82,Legislation!$A$5:$A$50,0)),\"\")))))))","v":0},"Guidelines-dog-population-management","http://caninerabiesblueprint.org/Guidelines-for-dog-population?lang=en",null,null,null,null,null,null,null,null,"• Examiner et mettre à jour régulièrement la stratégie nationale établie en matière de GCPC et garantir le financement nécessaire à la poursuite de sa mise en œuvre ;\n• Partager les procédures opérationnelles standard avec les nouveaux professionnels travaillant dans les zones locales ;\n• Former régulièrement les professionnels à toutes les activités pertinentes en matière de GCPC ;\n• Poursuivre la sensibilisation du public à l'importance de la GCPC.","The national DPM strategy has been revised and allocated sufficient funding to continue DPM efforts after the elimination of canine-mediated human rabies. ","Ministère de l’agriculture",13,"• Mise à jour régulière de la stratégie nationale de GCPC et des procédures opérationnelles normalisées.\n• Programmes de formation continue pour les professionnels nouveaux et existants.\n• Documentation sur la sensibilisation continue du public et l'engagement des parties prenantes.","• Examiner et mettre à jour régulièrement la stratégie nationale établie en matière de GCPC et garantir le financement nécessaire à la poursuite de sa mise en œuvre ;\n• Partager les procédures opérationnelles standard avec les nouveaux professionnels travaillant dans les zones locales ;\n• Former régulièrement les professionnels à toutes les activités pertinentes en matière de GCPC ;\n• Poursuivre la sensibilisation du public à l'importance de la GCPC.","Ministère de l’agriculture",13,"Veiller à ce que les campagnes de GCPC se poursuivent dans tout le pays après l'élimination de la rage canine."]
[82,"IEC","IEC-Sen-1-1","Sensibilisation du public",1,1,"Avez-vous établi une liste de TOUS les publics-cible qu’il faudrait sensibiliser au bien-être des chiens, à la rage et à sa prévention ? ","Les publics potentiels comprennent : \nLes propriétaires de chiens ; les enfants ; les chasseurs ; les propriétaires d’autres animaux ; les enseignants. \nVous pouvez répondre “Oui” si vous avez travaillé à l’dentification des publics-cible spécifiques à éduquer.",null,{"$f":"IFERROR(INDEX('Data coll & an'!$F$5:$F$50,MATCH($C83,'Data coll & an'!$A$5:$A$50,0)),IFERROR(INDEX('Prev & Ctrl'!$F$5:$F$50,MATCH($C83,'Prev & Ctrl'!$A$5:$A$50,0)),IFERROR(INDEX('Lab dx'!$F$5:$F$50,MATCH($C83,'Lab dx'!$A$5:$A$50,0)),IFERROR(INDEX('Dog popn'!$F$5:$F$50,MATCH($C83,'Dog popn'!$A$5:$A$50,0)),IFERROR(INDEX(IEC!$F$5:$F$50,MATCH($C83,IEC!$A$5:$A$50,0)),IFERROR(INDEX('Cross-cutting issues'!$F$5:$F$50,MATCH($C83,'Cross-cutting issues'!$A$5:$A$50,0)),IFERROR(INDEX(Legislation!$F$5:$F$50,MATCH($C83,Legislation!$A$5:$A$50,0)),\"\")))))))","v":1},{"$f":"IFERROR(INDEX('Data coll & an'!$G$5:$G$50,MATCH($C83,'Data coll & an'!$A$5:$A$50,0)),IFERROR(INDEX('Prev & Ctrl'!$G$5:$G$50,MATCH($C83,'Prev & Ctrl'!$A$5:$A$50,0)),IFERROR(INDEX('Lab dx'!$G$5:$G$50,MATCH($C83,'Lab dx'!$A$5:$A$50,0)),IFERROR(INDEX('Dog popn'!$G$5:$G$50,MATCH($C83,'Dog popn'!$A$5:$A$50,0)),IFERROR(INDEX(IEC!$G$5:$G$50,MATCH($C83,IEC!$A$5:$A$50,0)),IFERROR(INDEX('Cross-cutting issues'!$G$5:$G$50,MATCH($C83,'Cross-cutting issues'!$A$5:$A$50,0)),IFERROR(INDEX(Legislation!$G$5:$G$50,MATCH($C83,Legislation!$A$5:$A$50,0)),\"\")))))))","v":0},"4.2.3 Understanding who needs to be involved","http://caninerabiesblueprint.org/4-2-3-Identifying-and",null,null,null,null,null,null,null,null,"•\tExaminer la littérature scientifique pour déterminer quels publics cibles ont été identifiés ailleurs ;\n•\tComparer les résultats avec la situation dans le pays et identifier tous les publics cibles pertinents dans votre pays (par exemple, en fonction de la religion, de la démographie, etc.) et tout public cible supplémentaire propre à votre pays.","Target audiences have been identified for public awareness campaigns regarding rabies","Ministère de la santé; \nMinistère de l’agriculture; \nMinistère de la  Communication",1,"• Liste complète de tous les publics cibles concernés par l'éducation au bien-être des chiens, à la rage et à la prévention.","","","","Dresser une liste de TOUS les publics cibles qui devraient être sensibilisés au bien-être des chiens, à la rage et à sa prévention."]
[83,"IEC","IEC-Sen-1-2","Sensibilisation du public",1,2,"Avez-vous activement précisé les messages qui doivent être communiqués à chacun des publics- cible identifiés ?","Si cette activité a été réalisée dans une zone où a lieu un projet pilote, vous pouvez répondre par « Oui ».\n\nVous pouvez répondre « Oui » si vous avez cherché à identifier des messages spécifiques destinés à chacun des publics cible. Il n’est pas nécessaire qu’il s’agisse d’une évaluation formelle, du moment qu'un travail d'identification des messages appropriés a été effectué. ",null,{"$f":"IFERROR(INDEX('Data coll & an'!$F$5:$F$50,MATCH($C84,'Data coll & an'!$A$5:$A$50,0)),IFERROR(INDEX('Prev & Ctrl'!$F$5:$F$50,MATCH($C84,'Prev & Ctrl'!$A$5:$A$50,0)),IFERROR(INDEX('Lab dx'!$F$5:$F$50,MATCH($C84,'Lab dx'!$A$5:$A$50,0)),IFERROR(INDEX('Dog popn'!$F$5:$F$50,MATCH($C84,'Dog popn'!$A$5:$A$50,0)),IFERROR(INDEX(IEC!$F$5:$F$50,MATCH($C84,IEC!$A$5:$A$50,0)),IFERROR(INDEX('Cross-cutting issues'!$F$5:$F$50,MATCH($C84,'Cross-cutting issues'!$A$5:$A$50,0)),IFERROR(INDEX(Legislation!$F$5:$F$50,MATCH($C84,Legislation!$A$5:$A$50,0)),\"\")))))))","v":1},{"$f":"IFERROR(INDEX('Data coll & an'!$G$5:$G$50,MATCH($C84,'Data coll & an'!$A$5:$A$50,0)),IFERROR(INDEX('Prev & Ctrl'!$G$5:$G$50,MATCH($C84,'Prev & Ctrl'!$A$5:$A$50,0)),IFERROR(INDEX('Lab dx'!$G$5:$G$50,MATCH($C84,'Lab dx'!$A$5:$A$50,0)),IFERROR(INDEX('Dog popn'!$G$5:$G$50,MATCH($C84,'Dog popn'!$A$5:$A$50,0)),IFERROR(INDEX(IEC!$G$5:$G$50,MATCH($C84,IEC!$A$5:$A$50,0)),IFERROR(INDEX('Cross-cutting issues'!$G$5:$G$50,MATCH($C84,'Cross-cutting issues'!$A$5:$A$50,0)),IFERROR(INDEX(Legislation!$G$5:$G$50,MATCH($C84,Legislation!$A$5:$A$50,0)),\"\")))))))","v":0},"Examples of KAP surveys","http://caninerabiesblueprint.org/Examples-of-Knowledge-Attitude-and,1355",null,null,null,null,null,null,null,null,"• Déterminer les connaissances actuelles en matière de rage et de bien-être des chiens des publics cibles identifiés dans différentes régions du pays ;\n• Déterminer les messages à communiquer à chaque public cible à l'aide des résultats de l'évaluation.","Results of KAP surveys assessed and analysed to determine ideal messages for target audience at local level","Ministère de la santé; \nMinistère de l’agriculture",2,"• Rapport sur les connaissances actuelles en matière de rage et de bien-être des chiens chez les publics cibles identifiés.\n• Messages de communication adaptés à chaque public sur la base des lacunes et des besoins en matière de connaissances.","","","","Déterminer les messages à communiquer à chacun des publics cibles identifiés qui devraient être sensibilisés au bien-être des chiens, à la rage et à sa prévention."]
[84,"IEC",{"$f":"B85&\"-\"&LEFT(D85,3)&\"-\"&E85&\"-\"&F85","v":"IEC-Sen-1-3"},"Sensibilisation du public",1,3,"Un plan structuré - décrivant les publics-cible, les messages clés, les moyens de diffusion et les résultats souhaités en matière d'éducation, de sensibilisation et de prise de conscience (plan IEC*) a-t-il été élaboré et testé pour la rage et le bien-être des chiens dans une zone de projet pilote ?","Si vous imprimez et distribuez du matériel éducatif général destiné à un large public, vous devez répondre par « Non ». ","KEY",{"$f":"IFERROR(INDEX('Data coll & an'!$F$5:$F$50,MATCH($C85,'Data coll & an'!$A$5:$A$50,0)),IFERROR(INDEX('Prev & Ctrl'!$F$5:$F$50,MATCH($C85,'Prev & Ctrl'!$A$5:$A$50,0)),IFERROR(INDEX('Lab dx'!$F$5:$F$50,MATCH($C85,'Lab dx'!$A$5:$A$50,0)),IFERROR(INDEX('Dog popn'!$F$5:$F$50,MATCH($C85,'Dog popn'!$A$5:$A$50,0)),IFERROR(INDEX(IEC!$F$5:$F$50,MATCH($C85,IEC!$A$5:$A$50,0)),IFERROR(INDEX('Cross-cutting issues'!$F$5:$F$50,MATCH($C85,'Cross-cutting issues'!$A$5:$A$50,0)),IFERROR(INDEX(Legislation!$F$5:$F$50,MATCH($C85,Legislation!$A$5:$A$50,0)),\"\")))))))","v":0},{"$f":"IFERROR(INDEX('Data coll & an'!$G$5:$G$50,MATCH($C85,'Data coll & an'!$A$5:$A$50,0)),IFERROR(INDEX('Prev & Ctrl'!$G$5:$G$50,MATCH($C85,'Prev & Ctrl'!$A$5:$A$50,0)),IFERROR(INDEX('Lab dx'!$G$5:$G$50,MATCH($C85,'Lab dx'!$A$5:$A$50,0)),IFERROR(INDEX('Dog popn'!$G$5:$G$50,MATCH($C85,'Dog popn'!$A$5:$A$50,0)),IFERROR(INDEX(IEC!$G$5:$G$50,MATCH($C85,IEC!$A$5:$A$50,0)),IFERROR(INDEX('Cross-cutting issues'!$G$5:$G$50,MATCH($C85,'Cross-cutting issues'!$A$5:$A$50,0)),IFERROR(INDEX(Legislation!$G$5:$G$50,MATCH($C85,Legislation!$A$5:$A$50,0)),\"\")))))))","v":0},"Communication-plan","http://caninerabiesblueprint.org/Communications-plan?lang=en","5.4.7-Awareness-campaign","http://caninerabiesblueprint.org/5-4-7-How-do-we-make-sure-that-dog?lang=en",null,null,null,null,null,null,"• Rechercher tout plan d'Information, d’éducation et de communication (IEC) pour la rage existant ailleurs dans le monde, y compris dans la littérature scientifique ;\n• Rédiger un plan d'IEC basé sur les publics cibles identifiés et les messages spécifiques ;\n• Examiner le projet de plan d'IEC avec les parties prenantes concernées ;\n• Finaliser le plan d'IEC et s'assurer qu'il est reconnu par toutes les parties prenantes concernées ;\n• Assurer des ressources et des finances suffisantes pour mettre en œuvre le plan d'IEC dans une région ;\n• Mettre en œuvre le plan d'IEC dans au moins une région.","A comprehensive IEC plan is finalised, recognized, resourced and implemented on a small-scale;","Ministère de la santé; \nMinistère de l’agriculture; \nMinistère de la  Communication",2,"• Rédaction d'un plan d'IEC décrivant les publics cibles, les messages clés, les méthodes de diffusion et les résultats souhaités.\n• Examen et retour d'information  par les parties prenantes sur le projet de plan d'IEC documentés.\n• Plan d'IEC finalisé et reconnu avec des ressources garanties pour sa mise en œuvre dans une zone pilote.\n• Rapport sur la mise en œuvre et les résultats du projet pilote d'IEC.",{"$f":"IFERROR(VLOOKUP($C85,INDIRECT(\"DCA!a13:j49\"),6,FALSE),IFERROR(VLOOKUP($C85,INDIRECT(\"pco!a13:j49\"),6,FALSE),IFERROR(VLOOKUP($C85,INDIRECT(\"lab!a13:j49\"),6,FALSE),IFERROR(VLOOKUP($C85,INDIRECT(\"dpm!a13:j49\"),6,FALSE),IFERROR(VLOOKUP($C85,INDIRECT(\"iecnw!a13:j49\"),6,FALSE),IFERROR(VLOOKUP($C85,INDIRECT(\"cci!a13:j49\"),6,FALSE),IFERROR(VLOOKUP($C85,INDIRECT(\"leg!a13:j49\"),6,FALSE),\"\")))))))","v":""},{"$f":"IFERROR(VLOOKUP($C85,INDIRECT(\"DCA!a13:j49\"),8,FALSE),IFERROR(VLOOKUP($C85,INDIRECT(\"pco!a13:j49\"),8,FALSE),IFERROR(VLOOKUP($C85,INDIRECT(\"lab!a13:j49\"),8,FALSE),IFERROR(VLOOKUP($C85,INDIRECT(\"dpm!a13:j49\"),8,FALSE),IFERROR(VLOOKUP($C85,INDIRECT(\"iecnw!a13:j49\"),8,FALSE),IFERROR(VLOOKUP($C85,INDIRECT(\"cci!a13:j49\"),8,FALSE),IFERROR(VLOOKUP($C85,INDIRECT(\"leg!a13:j49\"),8,FALSE),\"\")))))))","v":""},{"$f":"IFERROR(VLOOKUP($C85,INDIRECT(\"DCA!a13:j49\"),9,FALSE),IFERROR(VLOOKUP($C85,INDIRECT(\"pco!a13:j49\"),9,FALSE),IFERROR(VLOOKUP($C85,INDIRECT(\"lab!a13:j49\"),9,FALSE),IFERROR(VLOOKUP($C85,INDIRECT(\"dpm!a13:j49\"),9,FALSE),IFERROR(VLOOKUP($C85,INDIRECT(\"iecnw!a13:j49\"),9,FALSE),IFERROR(VLOOKUP($C85,INDIRECT(\"cci!a13:j49\"),9,FALSE),IFERROR(VLOOKUP($C85,INDIRECT(\"leg!a13:j49\"),9,FALSE),\"\")))))))","v":""},"Développer et tester un plan structuré d'IEC décrivant les publics cibles, les messages clés, les moyens de diffusion et les résultats souhaités en matière d'éducation, de sensibilisation et de prise de conscience - pour la rage et le bien-être des chiens dans une zone de projet pilote."]
[85,"IEC",{"$f":"B86&\"-\"&LEFT(D86,3)&\"-\"&E86&\"-\"&F86","v":"IEC-Sen-1-4"},"Sensibilisation du public",1,4,"Des messages de sensibilisation destinés  à un large public sur la responsabilité des propriétaires de chiens, la prévention de la rage ou des morsures, ont-ils commencé à être diffusés au niveau national ?","Vous pouvez répondre « oui » si vous avez utilisé des moyens tels que la Journée mondiale de la rage, d'autres journées de promotion de la santé, des campagnes dans les journaux, à la radio et à la télévision pour sensibiliser les gens à la possession responsable de chiens, à la rage et à sa prévention.",null,{"$f":"IFERROR(INDEX('Data coll & an'!$F$5:$F$50,MATCH($C86,'Data coll & an'!$A$5:$A$50,0)),IFERROR(INDEX('Prev & Ctrl'!$F$5:$F$50,MATCH($C86,'Prev & Ctrl'!$A$5:$A$50,0)),IFERROR(INDEX('Lab dx'!$F$5:$F$50,MATCH($C86,'Lab dx'!$A$5:$A$50,0)),IFERROR(INDEX('Dog popn'!$F$5:$F$50,MATCH($C86,'Dog popn'!$A$5:$A$50,0)),IFERROR(INDEX(IEC!$F$5:$F$50,MATCH($C86,IEC!$A$5:$A$50,0)),IFERROR(INDEX('Cross-cutting issues'!$F$5:$F$50,MATCH($C86,'Cross-cutting issues'!$A$5:$A$50,0)),IFERROR(INDEX(Legislation!$F$5:$F$50,MATCH($C86,Legislation!$A$5:$A$50,0)),\"\")))))))","v":1},{"$f":"IFERROR(INDEX('Data coll & an'!$G$5:$G$50,MATCH($C86,'Data coll & an'!$A$5:$A$50,0)),IFERROR(INDEX('Prev & Ctrl'!$G$5:$G$50,MATCH($C86,'Prev & Ctrl'!$A$5:$A$50,0)),IFERROR(INDEX('Lab dx'!$G$5:$G$50,MATCH($C86,'Lab dx'!$A$5:$A$50,0)),IFERROR(INDEX('Dog popn'!$G$5:$G$50,MATCH($C86,'Dog popn'!$A$5:$A$50,0)),IFERROR(INDEX(IEC!$G$5:$G$50,MATCH($C86,IEC!$A$5:$A$50,0)),IFERROR(INDEX('Cross-cutting issues'!$G$5:$G$50,MATCH($C86,'Cross-cutting issues'!$A$5:$A$50,0)),IFERROR(INDEX(Legislation!$G$5:$G$50,MATCH($C86,Legislation!$A$5:$A$50,0)),\"\")))))))","v":0},"World Rabies Day","https://rabiesalliance.org/world-rabies-day/",null,null,null,null,null,null,null,null,"• Obtenir un financement pour l'élaboration et la diffusion de messages et pour le matériel de sensibilisation du public ;\n• Élaborer des messages et du matériel de sensibilisation du public appropriés pour les médias (télévision, radio, médias sociaux) ;\n• Déterminer la meilleure façon de diffuser les messages et le matériel de sensibilisation dans tout le pays ;\n• Mettre en œuvre les campagnes de sensibilisation du public à l'échelle nationale.","Broad-target public awareness messages are delivered en masse to the public","Ministère de la santé; \nMinistère de l’agriculture; \nMinistère de la  Communication",2,"• Obtention d'un financement et de ressources pour la diffusion de messages de sensibilisation du public à l'échelle nationale.\n• Analyse de la distribution du matériel de sensibilisation du public dans les médias.\n• Rapport de mise en œuvre des campagnes nationales de sensibilisation du public.",{"$f":"IFERROR(VLOOKUP($C86,INDIRECT(\"DCA!a13:j49\"),6,FALSE),IFERROR(VLOOKUP($C86,INDIRECT(\"pco!a13:j49\"),6,FALSE),IFERROR(VLOOKUP($C86,INDIRECT(\"lab!a13:j49\"),6,FALSE),IFERROR(VLOOKUP($C86,INDIRECT(\"dpm!a13:j49\"),6,FALSE),IFERROR(VLOOKUP($C86,INDIRECT(\"iecnw!a13:j49\"),6,FALSE),IFERROR(VLOOKUP($C86,INDIRECT(\"cci!a13:j49\"),6,FALSE),IFERROR(VLOOKUP($C86,INDIRECT(\"leg!a13:j49\"),6,FALSE),\"\")))))))","v":""},{"$f":"IFERROR(VLOOKUP($C86,INDIRECT(\"DCA!a13:j49\"),8,FALSE),IFERROR(VLOOKUP($C86,INDIRECT(\"pco!a13:j49\"),8,FALSE),IFERROR(VLOOKUP($C86,INDIRECT(\"lab!a13:j49\"),8,FALSE),IFERROR(VLOOKUP($C86,INDIRECT(\"dpm!a13:j49\"),8,FALSE),IFERROR(VLOOKUP($C86,INDIRECT(\"iecnw!a13:j49\"),8,FALSE),IFERROR(VLOOKUP($C86,INDIRECT(\"cci!a13:j49\"),8,FALSE),IFERROR(VLOOKUP($C86,INDIRECT(\"leg!a13:j49\"),8,FALSE),\"\")))))))","v":""},{"$f":"IFERROR(VLOOKUP($C86,INDIRECT(\"DCA!a13:j49\"),9,FALSE),IFERROR(VLOOKUP($C86,INDIRECT(\"pco!a13:j49\"),9,FALSE),IFERROR(VLOOKUP($C86,INDIRECT(\"lab!a13:j49\"),9,FALSE),IFERROR(VLOOKUP($C86,INDIRECT(\"dpm!a13:j49\"),9,FALSE),IFERROR(VLOOKUP($C86,INDIRECT(\"iecnw!a13:j49\"),9,FALSE),IFERROR(VLOOKUP($C86,INDIRECT(\"cci!a13:j49\"),9,FALSE),IFERROR(VLOOKUP($C86,INDIRECT(\"leg!a13:j49\"),9,FALSE),\"\")))))))","v":""},"Lancer un vaste programme de sensibilisation du public à la propriété responsable des chiens, à la rage ou à la prévention des morsures au niveau national."]
[86,"IEC","IEC-Sen-2-5","Sensibilisation du public",2,5,"Le plan IEC a-t-il été mis à jour (si nécessaire) et mis en œuvre dans l’ensemble du pays ? ","Notez que vous devez avoir un plan IEC structuré pour répondre “Oui” à cette question.","KEY",{"$f":"IFERROR(INDEX('Data coll & an'!$F$5:$F$50,MATCH($C87,'Data coll & an'!$A$5:$A$50,0)),IFERROR(INDEX('Prev & Ctrl'!$F$5:$F$50,MATCH($C87,'Prev & Ctrl'!$A$5:$A$50,0)),IFERROR(INDEX('Lab dx'!$F$5:$F$50,MATCH($C87,'Lab dx'!$A$5:$A$50,0)),IFERROR(INDEX('Dog popn'!$F$5:$F$50,MATCH($C87,'Dog popn'!$A$5:$A$50,0)),IFERROR(INDEX(IEC!$F$5:$F$50,MATCH($C87,IEC!$A$5:$A$50,0)),IFERROR(INDEX('Cross-cutting issues'!$F$5:$F$50,MATCH($C87,'Cross-cutting issues'!$A$5:$A$50,0)),IFERROR(INDEX(Legislation!$F$5:$F$50,MATCH($C87,Legislation!$A$5:$A$50,0)),\"\")))))))","v":0},{"$f":"IFERROR(INDEX('Data coll & an'!$G$5:$G$50,MATCH($C87,'Data coll & an'!$A$5:$A$50,0)),IFERROR(INDEX('Prev & Ctrl'!$G$5:$G$50,MATCH($C87,'Prev & Ctrl'!$A$5:$A$50,0)),IFERROR(INDEX('Lab dx'!$G$5:$G$50,MATCH($C87,'Lab dx'!$A$5:$A$50,0)),IFERROR(INDEX('Dog popn'!$G$5:$G$50,MATCH($C87,'Dog popn'!$A$5:$A$50,0)),IFERROR(INDEX(IEC!$G$5:$G$50,MATCH($C87,IEC!$A$5:$A$50,0)),IFERROR(INDEX('Cross-cutting issues'!$G$5:$G$50,MATCH($C87,'Cross-cutting issues'!$A$5:$A$50,0)),IFERROR(INDEX(Legislation!$G$5:$G$50,MATCH($C87,Legislation!$A$5:$A$50,0)),\"\")))))))","v":0},"Communication-plan","http://caninerabiesblueprint.org/Communications-plan?lang=en",null,null,null,null,null,null,null,null,"• Revoir le plan d'IEC qui a été testé dans une ou plusieurs régions du pays ;\n• Mettre à jour le plan d'IEC (si nécessaire) pour le rendre applicable à sa mise en œuvre au niveau national ;\n• S'assurer que des ressources et des finances suffisantes sont disponibles pour mettre en œuvre le plan d'IEC dans l'ensemble du pays ;\n• Mettre en œuvre le plan d'IEC dans l'ensemble du pays.","The national rabies control strategy has been updated to include a national IEC plan. The updates in the national rabies control strategy are endorsed by the relevant stakeholders and implemented.","Groupe multi-sectoriel",7,"• Plan d'IEC mis à jour en vue de son application au niveau national.\n• Ressources et financement obtenus et documentés pour la mise en œuvre à l'échelle nationale.\n• Rapport sur la mise en œuvre du plan d'IEC actualisé dans l'ensemble du pays.","","","","Actualiser (si nécessaire) et mettre en œuvre le plan d'IEC dans l'ensemble du pays."]
[87,"IEC","IEC-Sen-5-6","Sensibilisation du public",5,6,"Maintenant que votre pays est débarrassé de la rage humaine et animale, des programmes de sensibilisation axés sur le maintien de l'absence de rage humaine transmise par les chiens et de rage canine ont-ils été mis en œuvre ?","Vous pouvez répondre “Oui” si le pays est exempt de rage à la suite de campagnes réussies de vaccination de masse des chiens. ","KEY",{"$f":"IFERROR(INDEX('Data coll & an'!$F$5:$F$50,MATCH($C88,'Data coll & an'!$A$5:$A$50,0)),IFERROR(INDEX('Prev & Ctrl'!$F$5:$F$50,MATCH($C88,'Prev & Ctrl'!$A$5:$A$50,0)),IFERROR(INDEX('Lab dx'!$F$5:$F$50,MATCH($C88,'Lab dx'!$A$5:$A$50,0)),IFERROR(INDEX('Dog popn'!$F$5:$F$50,MATCH($C88,'Dog popn'!$A$5:$A$50,0)),IFERROR(INDEX(IEC!$F$5:$F$50,MATCH($C88,IEC!$A$5:$A$50,0)),IFERROR(INDEX('Cross-cutting issues'!$F$5:$F$50,MATCH($C88,'Cross-cutting issues'!$A$5:$A$50,0)),IFERROR(INDEX(Legislation!$F$5:$F$50,MATCH($C88,Legislation!$A$5:$A$50,0)),\"\")))))))","v":0},{"$f":"IFERROR(INDEX('Data coll & an'!$G$5:$G$50,MATCH($C88,'Data coll & an'!$A$5:$A$50,0)),IFERROR(INDEX('Prev & Ctrl'!$G$5:$G$50,MATCH($C88,'Prev & Ctrl'!$A$5:$A$50,0)),IFERROR(INDEX('Lab dx'!$G$5:$G$50,MATCH($C88,'Lab dx'!$A$5:$A$50,0)),IFERROR(INDEX('Dog popn'!$G$5:$G$50,MATCH($C88,'Dog popn'!$A$5:$A$50,0)),IFERROR(INDEX(IEC!$G$5:$G$50,MATCH($C88,IEC!$A$5:$A$50,0)),IFERROR(INDEX('Cross-cutting issues'!$G$5:$G$50,MATCH($C88,'Cross-cutting issues'!$A$5:$A$50,0)),IFERROR(INDEX(Legislation!$G$5:$G$50,MATCH($C88,Legislation!$A$5:$A$50,0)),\"\")))))))","v":0},null,null,null,null,null,null,null,null,null,null,"• Réviser le plan national d'IEC pour donner la priorité aux messages axés sur le maintien de l'absence de rage canine et de rage humaine transmise par les chiens (importation d'animaux, prévention des morsures, risques liés aux voyages, évitement des contacts avec la faune sauvage, etc.) ;\n• Obtenir le financement et les ressources nécessaires pour poursuivre les campagnes de sensibilisation après la déclaration d'absence de rage canine ;\n• Poursuivre la mise en œuvre du plan d'IEC révisé à l'échelon national.","Updated IEC plan with awareness programmes delivered to the public to ensure the maintenance of freedom from dog-transmitted rabies in the country.","Groupe multi-sectoriel",13,"• Plan d'IEC révisé mettant l'accent sur le maintien du statut de zone indemne de rage.\n• Preuve du financement et de la mise en œuvre continue des programmes de sensibilisation.","","","","Maintenant que le pays est indemne de rage humaine et animale, mettre en œuvre des programmes de sensibilisation axés sur le maintien de l'absence de rage canine et de rage humaine transmise par les chiens."]
[88,"IEC","IEC-For-1-7","Formation professionnelle",1,7,"Avez-vous créé une liste de TOUS les professionnels de santé humaine et animale impliqués dans la lutte contre la rage et qu’il faut éduquer et former ? ","Vous pouvez répondre « Oui » si vous avez identifié tous les professionnels de santé humaine et animale concernés qui doivent être éduqués et formés (par exemple, les infirmières, les médecins, les agents de santé communautaire, les vétérinaires, les techniciens de la santé animale, les services de protection de la faune sauvage, etc.).",null,{"$f":"IFERROR(INDEX('Data coll & an'!$F$5:$F$50,MATCH($C89,'Data coll & an'!$A$5:$A$50,0)),IFERROR(INDEX('Prev & Ctrl'!$F$5:$F$50,MATCH($C89,'Prev & Ctrl'!$A$5:$A$50,0)),IFERROR(INDEX('Lab dx'!$F$5:$F$50,MATCH($C89,'Lab dx'!$A$5:$A$50,0)),IFERROR(INDEX('Dog popn'!$F$5:$F$50,MATCH($C89,'Dog popn'!$A$5:$A$50,0)),IFERROR(INDEX(IEC!$F$5:$F$50,MATCH($C89,IEC!$A$5:$A$50,0)),IFERROR(INDEX('Cross-cutting issues'!$F$5:$F$50,MATCH($C89,'Cross-cutting issues'!$A$5:$A$50,0)),IFERROR(INDEX(Legislation!$F$5:$F$50,MATCH($C89,Legislation!$A$5:$A$50,0)),\"\")))))))","v":1},{"$f":"IFERROR(INDEX('Data coll & an'!$G$5:$G$50,MATCH($C89,'Data coll & an'!$A$5:$A$50,0)),IFERROR(INDEX('Prev & Ctrl'!$G$5:$G$50,MATCH($C89,'Prev & Ctrl'!$A$5:$A$50,0)),IFERROR(INDEX('Lab dx'!$G$5:$G$50,MATCH($C89,'Lab dx'!$A$5:$A$50,0)),IFERROR(INDEX('Dog popn'!$G$5:$G$50,MATCH($C89,'Dog popn'!$A$5:$A$50,0)),IFERROR(INDEX(IEC!$G$5:$G$50,MATCH($C89,IEC!$A$5:$A$50,0)),IFERROR(INDEX('Cross-cutting issues'!$G$5:$G$50,MATCH($C89,'Cross-cutting issues'!$A$5:$A$50,0)),IFERROR(INDEX(Legislation!$G$5:$G$50,MATCH($C89,Legislation!$A$5:$A$50,0)),\"\")))))))","v":0},null,null,null,null,null,null,null,null,null,null,"• Identifier et dresser la liste de tous les professionnels concernés par les actions nationales d'élimination de la rage.","All relevant professionals that could be involved in rabies have been identified  in the target/local areas;  ","Ministère de la santé; \nMinistère de l’agriculture",1,"• Liste complète de tous les professionnels de la santé humaine et animale impliqués dans l'élimination de la rage.","","","","Dresser une liste de TOUS les professionnels de la santé humaine et animale impliqués dans la lutte contre la rage qui doivent être sensibilisés et formés."]
[89,"IEC","IEC-For-1-8","Formation professionnelle",1,8,"Avez-vous activement précisé les besoins en formation et en éducation des professionnels de santé humaine et animale identifiés ?","Si cette activité a été réalisée dans une zone de projet pilote, vous pouvez répondre “Oui”.\n\nVous pouvez répondre “Oui” si vous avez identifié des besoins spécifiques en éducation et en formation de chacun des publics-cible. Il n’est pas nécessaire qu’il s’agisse d’une évaluation formelle, du moment qu'un travail d'identification des besoins appropriés a été effectué.\n\nPar exemple : avez-vous vérifié si les médecins sont capables d’administrer correctement une PPE. Avez-vous vérifié si les vétérinaires sont capables de manipuler les chiens en toute sécurité pour les vacciner ?  ",null,{"$f":"IFERROR(INDEX('Data coll & an'!$F$5:$F$50,MATCH($C90,'Data coll & an'!$A$5:$A$50,0)),IFERROR(INDEX('Prev & Ctrl'!$F$5:$F$50,MATCH($C90,'Prev & Ctrl'!$A$5:$A$50,0)),IFERROR(INDEX('Lab dx'!$F$5:$F$50,MATCH($C90,'Lab dx'!$A$5:$A$50,0)),IFERROR(INDEX('Dog popn'!$F$5:$F$50,MATCH($C90,'Dog popn'!$A$5:$A$50,0)),IFERROR(INDEX(IEC!$F$5:$F$50,MATCH($C90,IEC!$A$5:$A$50,0)),IFERROR(INDEX('Cross-cutting issues'!$F$5:$F$50,MATCH($C90,'Cross-cutting issues'!$A$5:$A$50,0)),IFERROR(INDEX(Legislation!$F$5:$F$50,MATCH($C90,Legislation!$A$5:$A$50,0)),\"\")))))))","v":0},{"$f":"IFERROR(INDEX('Data coll & an'!$G$5:$G$50,MATCH($C90,'Data coll & an'!$A$5:$A$50,0)),IFERROR(INDEX('Prev & Ctrl'!$G$5:$G$50,MATCH($C90,'Prev & Ctrl'!$A$5:$A$50,0)),IFERROR(INDEX('Lab dx'!$G$5:$G$50,MATCH($C90,'Lab dx'!$A$5:$A$50,0)),IFERROR(INDEX('Dog popn'!$G$5:$G$50,MATCH($C90,'Dog popn'!$A$5:$A$50,0)),IFERROR(INDEX(IEC!$G$5:$G$50,MATCH($C90,IEC!$A$5:$A$50,0)),IFERROR(INDEX('Cross-cutting issues'!$G$5:$G$50,MATCH($C90,'Cross-cutting issues'!$A$5:$A$50,0)),IFERROR(INDEX(Legislation!$G$5:$G$50,MATCH($C90,Legislation!$A$5:$A$50,0)),\"\")))))))","v":0},"5.3-Who-do-we-need-to-train","http://caninerabiesblueprint.org/5-3-Who-do-we-need-to-train-and-in?lang=en",null,null,null,null,null,null,null,null,"• Identifier la meilleure façon d'entreprendre une évaluation des besoins en matière de connaissances et de formation pour tous les professionnels impliqués dans les efforts d'élimination de la rage dans l'ensemble du pays ;\n• Obtenir les ressources et le financement nécessaires pour entreprendre l'évaluation des besoins dans l'ensemble du pays ;\n• Mettre en œuvre l'évaluation des besoins dans l'ensemble du pays ;\n• Évaluer les résultats de l'évaluation pour identifier les lacunes en matière de connaissances au sein du réseau professionnel ;\n• Compiler un rapport sur les résultats de l'évaluation avec des recommandations.","Results of assessment assessed and analysed to determine training needs for the professionals at a local level;","Ministère de la santé; \nMinistère de l’agriculture",2,"• Évaluation à l'échelle nationale réalisée afin d'identifier les lacunes en matière de connaissances sur la lutte contre la rage.\n• Rapport contenant les principales conclusions et recommandations pour les formations futures.","","","","Déterminer les besoins en matière de formation et d'éducation des professionnels de la santé animale et humaine impliqués dans l'élimination de la rage."]
[90,"IEC","IEC-For-1-9","Formation professionnelle",1,9,"Un plan structuré de formation et d’éducation précisant les publics-cible, les besoins essentiels, les moyens de formation et d’éducation, et les résultats souhaités pour les professionnels de santé humaine et animale a-t-il été élaboré ?","Ceci doit être un plan de formation spécifiquement destiné à former les professionnels sur des activités liées à la rage et non pas un programme de formation professionnelle général.",null,{"$f":"IFERROR(INDEX('Data coll & an'!$F$5:$F$50,MATCH($C91,'Data coll & an'!$A$5:$A$50,0)),IFERROR(INDEX('Prev & Ctrl'!$F$5:$F$50,MATCH($C91,'Prev & Ctrl'!$A$5:$A$50,0)),IFERROR(INDEX('Lab dx'!$F$5:$F$50,MATCH($C91,'Lab dx'!$A$5:$A$50,0)),IFERROR(INDEX('Dog popn'!$F$5:$F$50,MATCH($C91,'Dog popn'!$A$5:$A$50,0)),IFERROR(INDEX(IEC!$F$5:$F$50,MATCH($C91,IEC!$A$5:$A$50,0)),IFERROR(INDEX('Cross-cutting issues'!$F$5:$F$50,MATCH($C91,'Cross-cutting issues'!$A$5:$A$50,0)),IFERROR(INDEX(Legislation!$F$5:$F$50,MATCH($C91,Legislation!$A$5:$A$50,0)),\"\")))))))","v":0},{"$f":"IFERROR(INDEX('Data coll & an'!$G$5:$G$50,MATCH($C91,'Data coll & an'!$A$5:$A$50,0)),IFERROR(INDEX('Prev & Ctrl'!$G$5:$G$50,MATCH($C91,'Prev & Ctrl'!$A$5:$A$50,0)),IFERROR(INDEX('Lab dx'!$G$5:$G$50,MATCH($C91,'Lab dx'!$A$5:$A$50,0)),IFERROR(INDEX('Dog popn'!$G$5:$G$50,MATCH($C91,'Dog popn'!$A$5:$A$50,0)),IFERROR(INDEX(IEC!$G$5:$G$50,MATCH($C91,IEC!$A$5:$A$50,0)),IFERROR(INDEX('Cross-cutting issues'!$G$5:$G$50,MATCH($C91,'Cross-cutting issues'!$A$5:$A$50,0)),IFERROR(INDEX(Legislation!$G$5:$G$50,MATCH($C91,Legislation!$A$5:$A$50,0)),\"\")))))))","v":"il y a un plan pour la vaccination humaine. Concernant la vaccination animale, les veterinaires sont competent pour sa mise en oeuvre cependant la formation en matiere capture des chiens errants n,est pas realisee. Necessite de proposer des formations en matiere de capture des chiens errants avec le secteur de l agriculture et l'interieur"},"5.5-What-are-we-going-to-do-human-component","http://caninerabiesblueprint.org/5-5-What-are-we-going-to-do-human?lang=en",null,null,null,null,null,null,null,null,"• Examiner les résultats de l'évaluation des connaissances et des besoins en formation des professionnels impliqués dans les efforts d'élimination de la rage dans l'ensemble du pays ;\n• Déterminer quels sont les principaux besoins en matière de formation et d'éducation ;\n• Rédiger un plan de formation pour les professionnels impliqués dans le contrôle et l'élimination de la rage ;\n• Examiner le projet de plan de formation en collaboration avec toutes les parties prenantes concernées ;\n• Finaliser le plan et veiller à ce qu'il soit reconnu par toutes les parties prenantes concernées ;\n• Veiller à ce que le plan national soit communiqué à toutes les parties prenantes concernées au niveau local.","A national training plan for professionals is developed and disseminated throughout the country to all of the relevant stakeholders at a local and national level;","Ministère de la santé; \nMinistère de l’agriculture",3,"• Plan de formation finalisé décrivant les publics, les besoins, les méthodes et les résultats.\n• Approbation documentée par les parties prenantes et diffusion nationale du plan de formation.","","","","Élaborer un plan structuré de formation et d'éducation décrivant les publics cibles, les principaux besoins, les moyens de formation et d'éducation, et les résultats souhaités pour les professionnels de la santé humaine et animale dans le pays."]
[91,"IEC","IEC-For-1-10","Formation professionnelle",1,10,"La formation structurée des professionnels de santé humaine et animale a-t-elle été mise en œuvre dans une partie du pays (par exemple, dans une zone de projet pilote) ? ","Notez que ceci concerne spécifiquement les activités structurées de formation sur la rage. Par conséquent, les professionnels doivent avoir reçu une formation spécifique sur les activités de prévention et de lutte antirabique. ",null,{"$f":"IFERROR(INDEX('Data coll & an'!$F$5:$F$50,MATCH($C92,'Data coll & an'!$A$5:$A$50,0)),IFERROR(INDEX('Prev & Ctrl'!$F$5:$F$50,MATCH($C92,'Prev & Ctrl'!$A$5:$A$50,0)),IFERROR(INDEX('Lab dx'!$F$5:$F$50,MATCH($C92,'Lab dx'!$A$5:$A$50,0)),IFERROR(INDEX('Dog popn'!$F$5:$F$50,MATCH($C92,'Dog popn'!$A$5:$A$50,0)),IFERROR(INDEX(IEC!$F$5:$F$50,MATCH($C92,IEC!$A$5:$A$50,0)),IFERROR(INDEX('Cross-cutting issues'!$F$5:$F$50,MATCH($C92,'Cross-cutting issues'!$A$5:$A$50,0)),IFERROR(INDEX(Legislation!$F$5:$F$50,MATCH($C92,Legislation!$A$5:$A$50,0)),\"\")))))))","v":1},{"$f":"IFERROR(INDEX('Data coll & an'!$G$5:$G$50,MATCH($C92,'Data coll & an'!$A$5:$A$50,0)),IFERROR(INDEX('Prev & Ctrl'!$G$5:$G$50,MATCH($C92,'Prev & Ctrl'!$A$5:$A$50,0)),IFERROR(INDEX('Lab dx'!$G$5:$G$50,MATCH($C92,'Lab dx'!$A$5:$A$50,0)),IFERROR(INDEX('Dog popn'!$G$5:$G$50,MATCH($C92,'Dog popn'!$A$5:$A$50,0)),IFERROR(INDEX(IEC!$G$5:$G$50,MATCH($C92,IEC!$A$5:$A$50,0)),IFERROR(INDEX('Cross-cutting issues'!$G$5:$G$50,MATCH($C92,'Cross-cutting issues'!$A$5:$A$50,0)),IFERROR(INDEX(Legislation!$G$5:$G$50,MATCH($C92,Legislation!$A$5:$A$50,0)),\"\")))))))","v":0},"GARC Education Platform","https://education.rabiesalliance.org/login/index.php",null,null,null,null,null,null,null,null,"• Identifier les ressources et le matériel appropriés pour la formation des professionnels dans une partie du pays ;\n• Obtenir un financement pour entreprendre la formation dans au moins une région ;\n• Initier la formation des professionnels dans au moins une région sur la base du plan national de formation.","Training of local professionals in rabies control and elimination has been initiated for all relevant professionals at the local level","Ministère de la santé; \nMinistère de l’agriculture",3,"• Obtention d'un financement et de ressources pour une formation pilote dans une région.\n• Rapport final sur les résultats de la formation et le retour d'information des participants dans la zone pilote.","","","","Mettre en œuvre la formation structurée des professionnels de santé humaine et animale dans une partie du pays (par exemple, une zone de projet pilote)."]
[92,"IEC","IEC-For-2-11","Formation professionnelle",2,11,"La formation structurée des professionnels de santé humaine et animale a-t-elle été réalisée dans la plus grande partie du pays ?","Noter que ceci concerne spécifiquement les activités structurées de formation sur la rage. Par conséquent, les professionnels doivent avoir reçu une formation spécifique sur les activités de prévention et de lutte antirabique. ",null,{"$f":"IFERROR(INDEX('Data coll & an'!$F$5:$F$50,MATCH($C93,'Data coll & an'!$A$5:$A$50,0)),IFERROR(INDEX('Prev & Ctrl'!$F$5:$F$50,MATCH($C93,'Prev & Ctrl'!$A$5:$A$50,0)),IFERROR(INDEX('Lab dx'!$F$5:$F$50,MATCH($C93,'Lab dx'!$A$5:$A$50,0)),IFERROR(INDEX('Dog popn'!$F$5:$F$50,MATCH($C93,'Dog popn'!$A$5:$A$50,0)),IFERROR(INDEX(IEC!$F$5:$F$50,MATCH($C93,IEC!$A$5:$A$50,0)),IFERROR(INDEX('Cross-cutting issues'!$F$5:$F$50,MATCH($C93,'Cross-cutting issues'!$A$5:$A$50,0)),IFERROR(INDEX(Legislation!$F$5:$F$50,MATCH($C93,Legislation!$A$5:$A$50,0)),\"\")))))))","v":0},{"$f":"IFERROR(INDEX('Data coll & an'!$G$5:$G$50,MATCH($C93,'Data coll & an'!$A$5:$A$50,0)),IFERROR(INDEX('Prev & Ctrl'!$G$5:$G$50,MATCH($C93,'Prev & Ctrl'!$A$5:$A$50,0)),IFERROR(INDEX('Lab dx'!$G$5:$G$50,MATCH($C93,'Lab dx'!$A$5:$A$50,0)),IFERROR(INDEX('Dog popn'!$G$5:$G$50,MATCH($C93,'Dog popn'!$A$5:$A$50,0)),IFERROR(INDEX(IEC!$G$5:$G$50,MATCH($C93,IEC!$A$5:$A$50,0)),IFERROR(INDEX('Cross-cutting issues'!$G$5:$G$50,MATCH($C93,'Cross-cutting issues'!$A$5:$A$50,0)),IFERROR(INDEX(Legislation!$G$5:$G$50,MATCH($C93,Legislation!$A$5:$A$50,0)),\"\")))))))","v":0},"5.3-Who-do-we-need-to-train","http://caninerabiesblueprint.org/5-3-Who-do-we-need-to-train-and-in?lang=en","GARC Education Platform","https://education.rabiesalliance.org/login/index.php",null,null,null,null,null,null,"• Examiner les résultats de la formation entreprise dans au moins une région et réviser le plan de formation si nécessaire.\n• Obtenir un financement pour entreprendre la formation dans la plupart des régions du pays ;\n• Initier la formation des professionnels dans la plupart des régions du pays sur la base du plan national de formation.","A clear indication of the training needs for professionals involved in rabies control and elimination has been acquired, including identifying areas where training is sufficient, as well as identifying areas where training is still lacking. The majority of professionals throughout the country have been adequately trained.","Ministère de la santé; \nMinistère de l’agriculture",5,"• Plan de formation révisé sur la base des résultats de l'expérience pilote.\n• Obtention de ressources pour une formation professionnelle à l'échelle nationale.\n• Rapport de mise en œuvre documentant les résultats de la formation dans la plupart des régions du pays.","","","","Mettre en œuvre la formation structurée des professionnels de la santé humaine et animale dans la plupart des régions du pays."]
[93,"IEC","IEC-Pla-0-12","Plaidoyer",0,12,"La rage est-elle une maladie prioritaire dans votre pays ?","Vous pouvez répondre « Oui » si le gouvernement a donné la priorité à la lutte contre la rage en apportant un soutien politique. Vous pouvez également répondre « Oui » si votre gouvernement a organisé un atelier « One Health Zoonotic Disease Prioritization » (Zoonose prioritaire dans la perspective One Health) et que la rage a été classée parmi les cinq maladies prioritaires.",null,{"$f":"IFERROR(INDEX('Data coll & an'!$F$5:$F$50,MATCH($C94,'Data coll & an'!$A$5:$A$50,0)),IFERROR(INDEX('Prev & Ctrl'!$F$5:$F$50,MATCH($C94,'Prev & Ctrl'!$A$5:$A$50,0)),IFERROR(INDEX('Lab dx'!$F$5:$F$50,MATCH($C94,'Lab dx'!$A$5:$A$50,0)),IFERROR(INDEX('Dog popn'!$F$5:$F$50,MATCH($C94,'Dog popn'!$A$5:$A$50,0)),IFERROR(INDEX(IEC!$F$5:$F$50,MATCH($C94,IEC!$A$5:$A$50,0)),IFERROR(INDEX('Cross-cutting issues'!$F$5:$F$50,MATCH($C94,'Cross-cutting issues'!$A$5:$A$50,0)),IFERROR(INDEX(Legislation!$F$5:$F$50,MATCH($C94,Legislation!$A$5:$A$50,0)),\"\")))))))","v":1},{"$f":"IFERROR(INDEX('Data coll & an'!$G$5:$G$50,MATCH($C94,'Data coll & an'!$A$5:$A$50,0)),IFERROR(INDEX('Prev & Ctrl'!$G$5:$G$50,MATCH($C94,'Prev & Ctrl'!$A$5:$A$50,0)),IFERROR(INDEX('Lab dx'!$G$5:$G$50,MATCH($C94,'Lab dx'!$A$5:$A$50,0)),IFERROR(INDEX('Dog popn'!$G$5:$G$50,MATCH($C94,'Dog popn'!$A$5:$A$50,0)),IFERROR(INDEX(IEC!$G$5:$G$50,MATCH($C94,IEC!$A$5:$A$50,0)),IFERROR(INDEX('Cross-cutting issues'!$G$5:$G$50,MATCH($C94,'Cross-cutting issues'!$A$5:$A$50,0)),IFERROR(INDEX(Legislation!$G$5:$G$50,MATCH($C94,Legislation!$A$5:$A$50,0)),\"\")))))))","v":0},"Public-health-and-economic-burden-of rabies","http://caninerabiesblueprint.org/Public-health-and-economic-burden?lang=en","Health economic studies on rabies","http://caninerabiesblueprint.org/A-study-that-quantified-the?lang=en",null,null,null,null,null,null,"• Obtenir l'engagement écrit de tout haut fonctionnaire du ministère selon lequel la rage est considérée comme une maladie prioritaire dans le pays.","Rabies is acknowledged as a priority disease in your country","Ministère de la santé OU Ministère de l’agriculture",1,"• Documentation officielle selon laquelle la rage est reconnue comme une priorité nationale par les hauts fonctionnaires du ministère.","","","","Faire reconnaître la rage comme une maladie prioritaire dans le pays."]
[94,"IEC","IEC-Pla-1-13","Plaidoyer",1,13,"Avez-vous dressé une liste de TOUS les acteurs* du plaidoyer pour le contrôle et la prévention de la rage dans votre pays ?  ","Par exemple, les politiques, les grandes organisations donatrices, la Quadripartite et d'autres influenceurs et décideurs politiques.",null,{"$f":"IFERROR(INDEX('Data coll & an'!$F$5:$F$50,MATCH($C95,'Data coll & an'!$A$5:$A$50,0)),IFERROR(INDEX('Prev & Ctrl'!$F$5:$F$50,MATCH($C95,'Prev & Ctrl'!$A$5:$A$50,0)),IFERROR(INDEX('Lab dx'!$F$5:$F$50,MATCH($C95,'Lab dx'!$A$5:$A$50,0)),IFERROR(INDEX('Dog popn'!$F$5:$F$50,MATCH($C95,'Dog popn'!$A$5:$A$50,0)),IFERROR(INDEX(IEC!$F$5:$F$50,MATCH($C95,IEC!$A$5:$A$50,0)),IFERROR(INDEX('Cross-cutting issues'!$F$5:$F$50,MATCH($C95,'Cross-cutting issues'!$A$5:$A$50,0)),IFERROR(INDEX(Legislation!$F$5:$F$50,MATCH($C95,Legislation!$A$5:$A$50,0)),\"\")))))))","v":1},{"$f":"IFERROR(INDEX('Data coll & an'!$G$5:$G$50,MATCH($C95,'Data coll & an'!$A$5:$A$50,0)),IFERROR(INDEX('Prev & Ctrl'!$G$5:$G$50,MATCH($C95,'Prev & Ctrl'!$A$5:$A$50,0)),IFERROR(INDEX('Lab dx'!$G$5:$G$50,MATCH($C95,'Lab dx'!$A$5:$A$50,0)),IFERROR(INDEX('Dog popn'!$G$5:$G$50,MATCH($C95,'Dog popn'!$A$5:$A$50,0)),IFERROR(INDEX(IEC!$G$5:$G$50,MATCH($C95,IEC!$A$5:$A$50,0)),IFERROR(INDEX('Cross-cutting issues'!$G$5:$G$50,MATCH($C95,'Cross-cutting issues'!$A$5:$A$50,0)),IFERROR(INDEX(Legislation!$G$5:$G$50,MATCH($C95,Legislation!$A$5:$A$50,0)),\"\")))))))","v":0},null,null,null,null,null,null,null,null,null,null,"• Identifier tous les acteurs du plaidoyer travaillant pour le gouvernement national ;\n• Identifier tous les acteurs du plaidoyer travaillant pour le gouvernement local ;\n• Identifier les acteurs du plaidoyer travaillant pour les agences internationales (par exemple, l'OMSA, l'OMS, la FAO, les bailleurs de fonds, etc.)","Advocacy stakeholders identified and target messages to help them prioritise rabies have been identified;","Ministère de la santé; \nMinistère de l’agriculture",1,"• Liste exhaustive des acteurs du plaidoyer en faveur de la lutte contre la rage aux niveaux national, local et international.","","","","Dresser une liste de toutes les parties prenantes plaidant en faveur de l'élimination de la rage dans le pays."]
[95,"IEC","IEC-Pla-1-14","Plaidoyer",1,14,"Un plan structuré - décrivant les parties prenantes cibles, les messages clés, les moyens utilisés et les résultats souhaités (plan de sensibilisation*) - a-t-il été élaboré et mis en œuvre ?","Vous pouvez répondre « oui » si un « plan de sensibilisation » officiel élaboré par le gouvernement est mis en œuvre.",null,{"$f":"IFERROR(INDEX('Data coll & an'!$F$5:$F$50,MATCH($C96,'Data coll & an'!$A$5:$A$50,0)),IFERROR(INDEX('Prev & Ctrl'!$F$5:$F$50,MATCH($C96,'Prev & Ctrl'!$A$5:$A$50,0)),IFERROR(INDEX('Lab dx'!$F$5:$F$50,MATCH($C96,'Lab dx'!$A$5:$A$50,0)),IFERROR(INDEX('Dog popn'!$F$5:$F$50,MATCH($C96,'Dog popn'!$A$5:$A$50,0)),IFERROR(INDEX(IEC!$F$5:$F$50,MATCH($C96,IEC!$A$5:$A$50,0)),IFERROR(INDEX('Cross-cutting issues'!$F$5:$F$50,MATCH($C96,'Cross-cutting issues'!$A$5:$A$50,0)),IFERROR(INDEX(Legislation!$F$5:$F$50,MATCH($C96,Legislation!$A$5:$A$50,0)),\"\")))))))","v":1},{"$f":"IFERROR(INDEX('Data coll & an'!$G$5:$G$50,MATCH($C96,'Data coll & an'!$A$5:$A$50,0)),IFERROR(INDEX('Prev & Ctrl'!$G$5:$G$50,MATCH($C96,'Prev & Ctrl'!$A$5:$A$50,0)),IFERROR(INDEX('Lab dx'!$G$5:$G$50,MATCH($C96,'Lab dx'!$A$5:$A$50,0)),IFERROR(INDEX('Dog popn'!$G$5:$G$50,MATCH($C96,'Dog popn'!$A$5:$A$50,0)),IFERROR(INDEX(IEC!$G$5:$G$50,MATCH($C96,IEC!$A$5:$A$50,0)),IFERROR(INDEX('Cross-cutting issues'!$G$5:$G$50,MATCH($C96,'Cross-cutting issues'!$A$5:$A$50,0)),IFERROR(INDEX(Legislation!$G$5:$G$50,MATCH($C96,Legislation!$A$5:$A$50,0)),\"\")))))))","v":0},"Drafting an advocacy strategy","http://www.unicef.org/cbsc/files/Advocacy_Toolkit.pdf","A toolkit for influencing policy","http://caninerabiesblueprint.org/A-toolkit-for-influencing-policy",null,null,null,null,null,null,"• Rechercher les plans de plaidoyer existants pour la rage ou toute autre maladie qui ont été développés au niveau national ou ailleurs ;\n• En utilisant le matériel identifié, rédiger un plan de plaidoyer pour la rage ;\n• Examiner le projet de plan de plaidoyer avec les parties prenantes concernées ;\n• Finaliser et mettre en œuvre le plan de plaidoyer et s'assurer qu'il est reconnu par l'ensemble des parties prenantes concernées ;","A structured plan to make rabies prevention and control a priority among leaders, decision-makers and policy influencers is available, resourced and recognised;","Ministère de la santé; \nMinistère de l’agriculture",3,"• Plan de plaidoyer finalisé décrivant les parties prenantes, les messages et les stratégies de mobilisation.\n• Documentation de l'approbation des parties prenantes et des activités de mise en œuvre.","","","","Élaborer et mettre en œuvre un plan de plaidoyer structuré - définissant les parties prenantes cibles, les messages clés, les moyens de mobilisation et les résultats souhaités."]
[96,"IEC","IEC-Pla-2-15","Plaidoyer",2,15,"Avez-vous fait la promotion de programmes de lutte antirabique réussis auprès des parties prenantes du plaidoyer identifiés ?"," ",null,{"$f":"IFERROR(INDEX('Data coll & an'!$F$5:$F$50,MATCH($C97,'Data coll & an'!$A$5:$A$50,0)),IFERROR(INDEX('Prev & Ctrl'!$F$5:$F$50,MATCH($C97,'Prev & Ctrl'!$A$5:$A$50,0)),IFERROR(INDEX('Lab dx'!$F$5:$F$50,MATCH($C97,'Lab dx'!$A$5:$A$50,0)),IFERROR(INDEX('Dog popn'!$F$5:$F$50,MATCH($C97,'Dog popn'!$A$5:$A$50,0)),IFERROR(INDEX(IEC!$F$5:$F$50,MATCH($C97,IEC!$A$5:$A$50,0)),IFERROR(INDEX('Cross-cutting issues'!$F$5:$F$50,MATCH($C97,'Cross-cutting issues'!$A$5:$A$50,0)),IFERROR(INDEX(Legislation!$F$5:$F$50,MATCH($C97,Legislation!$A$5:$A$50,0)),\"\")))))))","v":0},{"$f":"IFERROR(INDEX('Data coll & an'!$G$5:$G$50,MATCH($C97,'Data coll & an'!$A$5:$A$50,0)),IFERROR(INDEX('Prev & Ctrl'!$G$5:$G$50,MATCH($C97,'Prev & Ctrl'!$A$5:$A$50,0)),IFERROR(INDEX('Lab dx'!$G$5:$G$50,MATCH($C97,'Lab dx'!$A$5:$A$50,0)),IFERROR(INDEX('Dog popn'!$G$5:$G$50,MATCH($C97,'Dog popn'!$A$5:$A$50,0)),IFERROR(INDEX(IEC!$G$5:$G$50,MATCH($C97,IEC!$A$5:$A$50,0)),IFERROR(INDEX('Cross-cutting issues'!$G$5:$G$50,MATCH($C97,'Cross-cutting issues'!$A$5:$A$50,0)),IFERROR(INDEX(Legislation!$G$5:$G$50,MATCH($C97,Legislation!$A$5:$A$50,0)),\"\")))))))","v":0},null,null,null,null,null,null,null,null,null,null,"• S'assurer que tous les succès du programme d'élimination de la rage sont consignés dans des rapports détaillés ;\n• Partager tous les rapports avec les parties prenantes du plaidoyer et demander un accusé de réception.","All smale-scale successes have been identified and promoted using the national advocacy plan and resources","Groupe multi-sectoriel",4,"• Rapports régulièrement mis à jour et distribués faisant état des succès du programme d'élimination de la rage.\n• Enregistrement des rapports partagés avec les parties prenantes du plaidoyer et confirmation de leur bonne réception.","","","","Faire connaître les succès du programme d'élimination de la rage aux parties prenantes identifiées."]
[97,"IEC","IEC-Pla-2-16","Plaidoyer",2,16,"Le lobbying a-t-il été utilisé pour susciter l'intérêt actif d'au moins une partie prenante du plaidoyer ?","Par exemple, faire en sorte qu'un ministre important « adopte le programme » ou « adopte une communauté » pour l'élimination de la rage et s'approprie ses succès. ","KEY",{"$f":"IFERROR(INDEX('Data coll & an'!$F$5:$F$50,MATCH($C98,'Data coll & an'!$A$5:$A$50,0)),IFERROR(INDEX('Prev & Ctrl'!$F$5:$F$50,MATCH($C98,'Prev & Ctrl'!$A$5:$A$50,0)),IFERROR(INDEX('Lab dx'!$F$5:$F$50,MATCH($C98,'Lab dx'!$A$5:$A$50,0)),IFERROR(INDEX('Dog popn'!$F$5:$F$50,MATCH($C98,'Dog popn'!$A$5:$A$50,0)),IFERROR(INDEX(IEC!$F$5:$F$50,MATCH($C98,IEC!$A$5:$A$50,0)),IFERROR(INDEX('Cross-cutting issues'!$F$5:$F$50,MATCH($C98,'Cross-cutting issues'!$A$5:$A$50,0)),IFERROR(INDEX(Legislation!$F$5:$F$50,MATCH($C98,Legislation!$A$5:$A$50,0)),\"\")))))))","v":0},{"$f":"IFERROR(INDEX('Data coll & an'!$G$5:$G$50,MATCH($C98,'Data coll & an'!$A$5:$A$50,0)),IFERROR(INDEX('Prev & Ctrl'!$G$5:$G$50,MATCH($C98,'Prev & Ctrl'!$A$5:$A$50,0)),IFERROR(INDEX('Lab dx'!$G$5:$G$50,MATCH($C98,'Lab dx'!$A$5:$A$50,0)),IFERROR(INDEX('Dog popn'!$G$5:$G$50,MATCH($C98,'Dog popn'!$A$5:$A$50,0)),IFERROR(INDEX(IEC!$G$5:$G$50,MATCH($C98,IEC!$A$5:$A$50,0)),IFERROR(INDEX('Cross-cutting issues'!$G$5:$G$50,MATCH($C98,'Cross-cutting issues'!$A$5:$A$50,0)),IFERROR(INDEX(Legislation!$G$5:$G$50,MATCH($C98,Legislation!$A$5:$A$50,0)),\"\")))))))","v":0},null,null,null,null,null,null,null,null,null,null,"• Identifier les parties prenantes qui manifestent un vif intérêt pour les efforts d'élimination de la rage ;\n• Dialoguer directement avec les parties prenantes identifiées et leur demander de s'engager formellement en faveur de l'élimination de la rage dans le pays ;\n• Faire pression sur les parties prenantes identifiées pour qu'elles apportent un soutien programmatique supplémentaire (par exemple, soutien politique, financement, etc.).","Stakeholders and funders are identified and have pledged their financial support towards the national rabies control strategy, through the use of the national advocacy plan; ","Groupe multi-sectoriel",6,"• Documentation des engagements formels d'au moins une partie prenante du plaidoyer.\n• Registres des activités de mobilisation visant à obtenir un soutien supplémentaire pour l'élimination de la rage.","","","","Plaider pour obtenir l'intérêt actif d'au moins une partie prenante de l'action de plaidoyer."]
[98,"IEC","IEC-Pla-3-17","Plaidoyer",3,17,"Des zones exemptes de rage humaine ont-elles été publiquement déclarées ? ","Vous pouvez répondre “Oui” si il existe des zones exemptes de rage grâce à une bonne surveillance de la maladie. ","KEY",{"$f":"IFERROR(INDEX('Data coll & an'!$F$5:$F$50,MATCH($C99,'Data coll & an'!$A$5:$A$50,0)),IFERROR(INDEX('Prev & Ctrl'!$F$5:$F$50,MATCH($C99,'Prev & Ctrl'!$A$5:$A$50,0)),IFERROR(INDEX('Lab dx'!$F$5:$F$50,MATCH($C99,'Lab dx'!$A$5:$A$50,0)),IFERROR(INDEX('Dog popn'!$F$5:$F$50,MATCH($C99,'Dog popn'!$A$5:$A$50,0)),IFERROR(INDEX(IEC!$F$5:$F$50,MATCH($C99,IEC!$A$5:$A$50,0)),IFERROR(INDEX('Cross-cutting issues'!$F$5:$F$50,MATCH($C99,'Cross-cutting issues'!$A$5:$A$50,0)),IFERROR(INDEX(Legislation!$F$5:$F$50,MATCH($C99,Legislation!$A$5:$A$50,0)),\"\")))))))","v":0},{"$f":"IFERROR(INDEX('Data coll & an'!$G$5:$G$50,MATCH($C99,'Data coll & an'!$A$5:$A$50,0)),IFERROR(INDEX('Prev & Ctrl'!$G$5:$G$50,MATCH($C99,'Prev & Ctrl'!$A$5:$A$50,0)),IFERROR(INDEX('Lab dx'!$G$5:$G$50,MATCH($C99,'Lab dx'!$A$5:$A$50,0)),IFERROR(INDEX('Dog popn'!$G$5:$G$50,MATCH($C99,'Dog popn'!$A$5:$A$50,0)),IFERROR(INDEX(IEC!$G$5:$G$50,MATCH($C99,IEC!$A$5:$A$50,0)),IFERROR(INDEX('Cross-cutting issues'!$G$5:$G$50,MATCH($C99,'Cross-cutting issues'!$A$5:$A$50,0)),IFERROR(INDEX(Legislation!$G$5:$G$50,MATCH($C99,Legislation!$A$5:$A$50,0)),\"\")))))))","v":0},null,null,null,null,null,null,null,null,null,null,"• Identifier les zones exemptes de rage humaine transmise par les chiens sur la base de données de surveillance précises ;\n• Faire appel à des experts internationaux en la matière pour confirmer vos conclusions ;\n• Élaborer des messages publics déclarant les zones exemptes de rage humaine transmise par les chiens.\n• Publier et partager les messages publics déclarant l'absence de rage humaine transmise par les chiens dans les zones identifiées.","Public broadcasts declaring identified areas free from dog-transmitted human rabies;","Ministère de l’agriculture",9,"• Zones exemptes de rage identifiées et vérifiées sur la base de données de surveillance précises.\n• Matériel d'information du public et documentation de la confirmation par des experts internationaux.\n• Publication et diffusion d'annonces publiques concernant les zones exemptes de rage.","","","","Déclarer publiquement les zones exemptes de rage humaine transmise par les chiens."]
[99,"IEC","IEC-Pla-4-18","Plaidoyer",4,18,"Avez-vous déclaré publiquement que le pays tout entier est débarrassé de la rage humaine transmise par les chiens ? ","Vous pouvez répondre “Oui” si le pays est exempt de rage humaine transmise par les chiens grâce à une bonne surveillance de la maladie.","KEY",{"$f":"IFERROR(INDEX('Data coll & an'!$F$5:$F$50,MATCH($C100,'Data coll & an'!$A$5:$A$50,0)),IFERROR(INDEX('Prev & Ctrl'!$F$5:$F$50,MATCH($C100,'Prev & Ctrl'!$A$5:$A$50,0)),IFERROR(INDEX('Lab dx'!$F$5:$F$50,MATCH($C100,'Lab dx'!$A$5:$A$50,0)),IFERROR(INDEX('Dog popn'!$F$5:$F$50,MATCH($C100,'Dog popn'!$A$5:$A$50,0)),IFERROR(INDEX(IEC!$F$5:$F$50,MATCH($C100,IEC!$A$5:$A$50,0)),IFERROR(INDEX('Cross-cutting issues'!$F$5:$F$50,MATCH($C100,'Cross-cutting issues'!$A$5:$A$50,0)),IFERROR(INDEX(Legislation!$F$5:$F$50,MATCH($C100,Legislation!$A$5:$A$50,0)),\"\")))))))","v":0},{"$f":"IFERROR(INDEX('Data coll & an'!$G$5:$G$50,MATCH($C100,'Data coll & an'!$A$5:$A$50,0)),IFERROR(INDEX('Prev & Ctrl'!$G$5:$G$50,MATCH($C100,'Prev & Ctrl'!$A$5:$A$50,0)),IFERROR(INDEX('Lab dx'!$G$5:$G$50,MATCH($C100,'Lab dx'!$A$5:$A$50,0)),IFERROR(INDEX('Dog popn'!$G$5:$G$50,MATCH($C100,'Dog popn'!$A$5:$A$50,0)),IFERROR(INDEX(IEC!$G$5:$G$50,MATCH($C100,IEC!$A$5:$A$50,0)),IFERROR(INDEX('Cross-cutting issues'!$G$5:$G$50,MATCH($C100,'Cross-cutting issues'!$A$5:$A$50,0)),IFERROR(INDEX(Legislation!$G$5:$G$50,MATCH($C100,Legislation!$A$5:$A$50,0)),\"\")))))))","v":0},null,null,null,null,null,null,null,null,null,null,"• En utilisant des données précises de surveillance de la rage, confirmez que le pays est exempt de rage humaine transmise par les chiens depuis 2 ans\n• Contactez l'OMS pour un examen et une reconnaissance officielle de vos résultats ;\n• Élaborez des messages publics déclarant l'absence de rage humaine transmise par les chiens.\n• Publier et partager les messages publics déclarant l'absence de rage humaine transmise par les chiens.","A public declaration informing the entire country that the country is free from dog-transmitted human rabies, backed by adequate surveillance","Ministère de la santé",11,"• Rapport de surveillance confirmant deux années d'absence de rage humaine transmise par les chiens.\n• Résultats examinés et approuvés par l'OMS.\n• Matériel de communication publique annonçant l'absence de rage humaine transmise par les chiens.","","","","Déclarer publiquement que l'ensemble du pays est exempt de rage humaine transmise par les chiens."]
[100,"IEC","IEC-Pla-5-19","Plaidoyer",5,19,"Avez-vous déclaré publiquement que le pays tout entier est débarrassé de la rage canine ? ","Vous pouvez répondre “Oui” si le pays est exempt de rage grâce à une bonne surveillance de la maladie. ","KEY",{"$f":"IFERROR(INDEX('Data coll & an'!$F$5:$F$50,MATCH($C101,'Data coll & an'!$A$5:$A$50,0)),IFERROR(INDEX('Prev & Ctrl'!$F$5:$F$50,MATCH($C101,'Prev & Ctrl'!$A$5:$A$50,0)),IFERROR(INDEX('Lab dx'!$F$5:$F$50,MATCH($C101,'Lab dx'!$A$5:$A$50,0)),IFERROR(INDEX('Dog popn'!$F$5:$F$50,MATCH($C101,'Dog popn'!$A$5:$A$50,0)),IFERROR(INDEX(IEC!$F$5:$F$50,MATCH($C101,IEC!$A$5:$A$50,0)),IFERROR(INDEX('Cross-cutting issues'!$F$5:$F$50,MATCH($C101,'Cross-cutting issues'!$A$5:$A$50,0)),IFERROR(INDEX(Legislation!$F$5:$F$50,MATCH($C101,Legislation!$A$5:$A$50,0)),\"\")))))))","v":0},{"$f":"IFERROR(INDEX('Data coll & an'!$G$5:$G$50,MATCH($C101,'Data coll & an'!$A$5:$A$50,0)),IFERROR(INDEX('Prev & Ctrl'!$G$5:$G$50,MATCH($C101,'Prev & Ctrl'!$A$5:$A$50,0)),IFERROR(INDEX('Lab dx'!$G$5:$G$50,MATCH($C101,'Lab dx'!$A$5:$A$50,0)),IFERROR(INDEX('Dog popn'!$G$5:$G$50,MATCH($C101,'Dog popn'!$A$5:$A$50,0)),IFERROR(INDEX(IEC!$G$5:$G$50,MATCH($C101,IEC!$A$5:$A$50,0)),IFERROR(INDEX('Cross-cutting issues'!$G$5:$G$50,MATCH($C101,'Cross-cutting issues'!$A$5:$A$50,0)),IFERROR(INDEX(Legislation!$G$5:$G$50,MATCH($C101,Legislation!$A$5:$A$50,0)),\"\")))))))","v":0},null,null,null,null,null,null,null,null,null,null,"• En utilisant des données précises de surveillance de la rage, confirmer que le pays est indemne de rage transmise par les chiens depuis 2 ans ;\n• Collaborer avec l'OMSA et lancer le processus d'auto-déclaration de votre pays comme étant indemne de rage transmise par les chiens ; \n• S'assurer que votre pays répond aux critères et finalise le processus pour être reconnu comme indemne de rage transmise par les chiens ;\n• Élaborer des messages publics déclarant le pays indemne de rage transmise par les chiens.\n• Publier et partager les messages publics déclarant l'absence de rage transmise par les chiens.","A public declaration informing the entire country that the country is free from dog-rabies, backed by adequate surveillance","Ministère de l’agriculture",13,"• Rapport de surveillance confirmant l'absence de rage transmise par les chiens depuis deux ans.\n• Conformité documentée avec les critères de l'OMSA pour l'obtention du statut de zone exempte de rage.\n• Publication et distribution d'annonces publiques sur l'absence de rage transmise par les chiens.","","","","Déclarer publiquement que l'ensemble du pays est débarrassé de la rage canine transmise par les chiens."]
[101,"CCI","CCI-Cré-0-1","Création d’un groupe de travail intersectoriel sur la rage",0,1,"Les parties prenantes au niveau national se tiennent-elles mutuellement informées de TOUTES les activités programmatiques liées à la rage qui sont mises en œuvre dans le pays ?","Les informations sont-elles partagées avec d'autres ministères ? Par exemple, les résultats des cas de rage animale sont-ils communiqués au secteur de la santé humaine ?  Le secteur de la santé humaine a-t-il fait savoir au secteur de la santé animale qu'il mettait en œuvre le nouveau régime de PPE par voie intradermique ? \nIl peut s'agir d'un forum public ou d'un site web, de communications informelles (WhatsApp ou messagerie texte) ou de tout autre moyen. Il ne s'agit pas de TOUTES les activités ou de la régularité, mais plutôt du fait que cela se fait.",null,{"$f":"IFERROR(INDEX('Data coll & an'!$F$5:$F$50,MATCH($C102,'Data coll & an'!$A$5:$A$50,0)),IFERROR(INDEX('Prev & Ctrl'!$F$5:$F$50,MATCH($C102,'Prev & Ctrl'!$A$5:$A$50,0)),IFERROR(INDEX('Lab dx'!$F$5:$F$50,MATCH($C102,'Lab dx'!$A$5:$A$50,0)),IFERROR(INDEX('Dog popn'!$F$5:$F$50,MATCH($C102,'Dog popn'!$A$5:$A$50,0)),IFERROR(INDEX(IEC!$F$5:$F$50,MATCH($C102,IEC!$A$5:$A$50,0)),IFERROR(INDEX('Cross-cutting issues'!$F$5:$F$50,MATCH($C102,'Cross-cutting issues'!$A$5:$A$50,0)),IFERROR(INDEX(Legislation!$F$5:$F$50,MATCH($C102,Legislation!$A$5:$A$50,0)),\"\")))))))","v":0},{"$f":"IFERROR(INDEX('Data coll & an'!$G$5:$G$50,MATCH($C102,'Data coll & an'!$A$5:$A$50,0)),IFERROR(INDEX('Prev & Ctrl'!$G$5:$G$50,MATCH($C102,'Prev & Ctrl'!$A$5:$A$50,0)),IFERROR(INDEX('Lab dx'!$G$5:$G$50,MATCH($C102,'Lab dx'!$A$5:$A$50,0)),IFERROR(INDEX('Dog popn'!$G$5:$G$50,MATCH($C102,'Dog popn'!$A$5:$A$50,0)),IFERROR(INDEX(IEC!$G$5:$G$50,MATCH($C102,IEC!$A$5:$A$50,0)),IFERROR(INDEX('Cross-cutting issues'!$G$5:$G$50,MATCH($C102,'Cross-cutting issues'!$A$5:$A$50,0)),IFERROR(INDEX(Legislation!$G$5:$G$50,MATCH($C102,Legislation!$A$5:$A$50,0)),\"\")))))))","v":0},"6. Reporting of rabies data","http://rabiessurveillanceblueprint.org/-Reporting-dissemination-and-",null,null,null,null,null,null,null,null,"• Identifier toutes les parties prenantes concernées, y compris les représentants de l'OMSA, de la FAO et de l'OMS, dans le pays ;\n• Établir un canal de communication permettant à toutes les parties prenantes d'être informées des activités programmatiques ;\n• Partager continuellement les informations en utilisant le canal de communication établi ;\n• Veiller à ce que toutes les parties prenantes concernées accusent réception des informations communiquées.","Results of rabies samples are shared with all of the relevant authorities throughout the country;","Ministère de la santé; \nMinistère de l’agriculture",1,"• Liste exhaustive de toutes les parties prenantes nationales concernées, y compris les représentants de l'OMSA, de la FAO et de l'OMS.\n• Mise en place d'un canal de communication pour un partage continu des informations avec les parties prenantes.\n• Mises à jour et rapports réguliers diffusés par le canal de communication établi.\n• Accusés de réception documentés des parties prenantes confirmant la réception des informations.","• Identifier toutes les parties prenantes concernées, y compris les représentants de l'OMSA, de la FAO et de l'OMS, dans le pays ;\n• Établir un canal de communication permettant à toutes les parties prenantes d'être informées des activités programmatiques ;\n• Partager continuellement les informations en utilisant le canal de communication établi ;\n• Veiller à ce que toutes les parties prenantes concernées accusent réception des informations communiquées.","Ministère de la santé; \nMinistère de l’agriculture",1,"Informer en permanence les parties prenantes au niveau national des activités programmatiques liées à la rage mises en œuvre dans le pays."]
[102,"CCI","CCI-Cré-1-2","Création d’un groupe de travail intersectoriel sur la rage",1,2,"TOUTES les parties prenantes* nationales impliquées dans l’élimination de la rage ont-elles été identifiées et répertoriées ? ","Par exemple : Ministère de la santé; Ministère des finances; Ministère de l’agriculture; Ministère de l’éducation; Instituts de recherche/formation (par ex. universités); autorités locales (administration civile, police, affaires environnementales) ; municipalité ; ONG ; Représentants des organismes internationaux (par ex. GARC, FAO, OMSA, OMS).",null,{"$f":"IFERROR(INDEX('Data coll & an'!$F$5:$F$50,MATCH($C103,'Data coll & an'!$A$5:$A$50,0)),IFERROR(INDEX('Prev & Ctrl'!$F$5:$F$50,MATCH($C103,'Prev & Ctrl'!$A$5:$A$50,0)),IFERROR(INDEX('Lab dx'!$F$5:$F$50,MATCH($C103,'Lab dx'!$A$5:$A$50,0)),IFERROR(INDEX('Dog popn'!$F$5:$F$50,MATCH($C103,'Dog popn'!$A$5:$A$50,0)),IFERROR(INDEX(IEC!$F$5:$F$50,MATCH($C103,IEC!$A$5:$A$50,0)),IFERROR(INDEX('Cross-cutting issues'!$F$5:$F$50,MATCH($C103,'Cross-cutting issues'!$A$5:$A$50,0)),IFERROR(INDEX(Legislation!$F$5:$F$50,MATCH($C103,Legislation!$A$5:$A$50,0)),\"\")))))))","v":0},{"$f":"IFERROR(INDEX('Data coll & an'!$G$5:$G$50,MATCH($C103,'Data coll & an'!$A$5:$A$50,0)),IFERROR(INDEX('Prev & Ctrl'!$G$5:$G$50,MATCH($C103,'Prev & Ctrl'!$A$5:$A$50,0)),IFERROR(INDEX('Lab dx'!$G$5:$G$50,MATCH($C103,'Lab dx'!$A$5:$A$50,0)),IFERROR(INDEX('Dog popn'!$G$5:$G$50,MATCH($C103,'Dog popn'!$A$5:$A$50,0)),IFERROR(INDEX(IEC!$G$5:$G$50,MATCH($C103,IEC!$A$5:$A$50,0)),IFERROR(INDEX('Cross-cutting issues'!$G$5:$G$50,MATCH($C103,'Cross-cutting issues'!$A$5:$A$50,0)),IFERROR(INDEX(Legislation!$G$5:$G$50,MATCH($C103,Legislation!$A$5:$A$50,0)),\"\")))))))","v":0},"2. Roles-and-Responsibilities","http://caninerabiesblueprint.org/Roles-and-Responsibilities?lang=en","Challenges of animal health information systems and surveillance for animal diseases and zoonoses ","http://www.fao.org/3/a-i2415e.pdf",null,null,null,null,null,null,"• Identifier les secteurs et les organisations qui sont impliqués dans l'élimination de la rage dans le pays ;\n• Contacter les secteurs et les organisations concernés et identifier les parties prenantes individuelles au sein de chacun de ces secteurs qui agiront en tant que représentants ;\n• Générer et conserver une liste des représentants, y compris les informations de contact.","Main stakehiolders identified and contacted ","Ministère de la santé; \nMinistère de l’agriculture",1,"• Base de données détaillée des parties prenantes, y compris les secteurs et les organisations impliqués dans l'élimination de la rage.\n• Liste régulièrement mise à jour des parties prenantes au niveau national et de leurs coordonnées.","• Identifier les secteurs et les organisations qui sont impliqués dans l'élimination de la rage dans le pays ;\n• Contacter les secteurs et les organisations concernés et identifier les parties prenantes individuelles au sein de chacun de ces secteurs qui agiront en tant que représentants ;\n• Générer et conserver une liste des représentants, y compris les informations de contact.","Ministère de la santé; \nMinistère de l’agriculture",1,"Identifier et énumérer TOUTES les parties prenantes nationales impliquées dans l'élimination de la rage."]
[103,"CCI","CCI-Cré-1-3","Création d’un groupe de travail intersectoriel sur la rage",1,3,"Les parties prenantes* identifiées à l’échelle nationale sont-elles activement impliquées dans l’élimination de la rage ? "," ",null,{"$f":"IFERROR(INDEX('Data coll & an'!$F$5:$F$50,MATCH($C104,'Data coll & an'!$A$5:$A$50,0)),IFERROR(INDEX('Prev & Ctrl'!$F$5:$F$50,MATCH($C104,'Prev & Ctrl'!$A$5:$A$50,0)),IFERROR(INDEX('Lab dx'!$F$5:$F$50,MATCH($C104,'Lab dx'!$A$5:$A$50,0)),IFERROR(INDEX('Dog popn'!$F$5:$F$50,MATCH($C104,'Dog popn'!$A$5:$A$50,0)),IFERROR(INDEX(IEC!$F$5:$F$50,MATCH($C104,IEC!$A$5:$A$50,0)),IFERROR(INDEX('Cross-cutting issues'!$F$5:$F$50,MATCH($C104,'Cross-cutting issues'!$A$5:$A$50,0)),IFERROR(INDEX(Legislation!$F$5:$F$50,MATCH($C104,Legislation!$A$5:$A$50,0)),\"\")))))))","v":0},{"$f":"IFERROR(INDEX('Data coll & an'!$G$5:$G$50,MATCH($C104,'Data coll & an'!$A$5:$A$50,0)),IFERROR(INDEX('Prev & Ctrl'!$G$5:$G$50,MATCH($C104,'Prev & Ctrl'!$A$5:$A$50,0)),IFERROR(INDEX('Lab dx'!$G$5:$G$50,MATCH($C104,'Lab dx'!$A$5:$A$50,0)),IFERROR(INDEX('Dog popn'!$G$5:$G$50,MATCH($C104,'Dog popn'!$A$5:$A$50,0)),IFERROR(INDEX(IEC!$G$5:$G$50,MATCH($C104,IEC!$A$5:$A$50,0)),IFERROR(INDEX('Cross-cutting issues'!$G$5:$G$50,MATCH($C104,'Cross-cutting issues'!$A$5:$A$50,0)),IFERROR(INDEX(Legislation!$G$5:$G$50,MATCH($C104,Legislation!$A$5:$A$50,0)),\"\")))))))","v":0},"2. Roles-and-Responsibilities","http://caninerabiesblueprint.org/Roles-and-Responsibilities?lang=en",null,null,null,null,null,null,null,null,"• Contacter les représentants des parties prenantes qui ont été identifiés ;\n• Confirmer qu'ils sont toujours activement impliqués dans l'élimination de la rage.","Surety that relevant stakeholders are still actively involved in rabies control;","Ministère de la santé; \nMinistère de l’agriculture",3,"• Preuve d'une communication cohérente avec les parties prenantes identifiées.","• Contacter les représentants des parties prenantes qui ont été identifiés ;\n• Confirmer qu'ils sont toujours activement impliqués dans l'élimination de la rage.","Ministère de la santé; \nMinistère de l’agriculture",3,"Veiller à ce que toutes les parties prenantes identifiées au niveau national participent activement à l'élimination de la rage."]
[104,"CCI","CCI-Cré-1-4","Création d’un groupe de travail intersectoriel sur la rage",1,4,"Une équipe spéciale, un comité ou un groupe de travail intersectoriel sur la rage, comprenant toutes les parties prenantes identifiées au niveau national, a-t-il été créé ET se réunit-il ou communique-t-il régulièrement ?","Il peut s’agir d’un groupe de travail informel ou d’un comité officiel pour la rage. Il peut également faire partie d'un groupe de travail ou d'un comité « One Health », à condition que des discussions soient consacrées à l'élimination de la rage.\n\nSi le groupe de travail ne se réunit PAS régulièrement, vous devez répondre à cette question par « Non ». ",null,{"$f":"IFERROR(INDEX('Data coll & an'!$F$5:$F$50,MATCH($C105,'Data coll & an'!$A$5:$A$50,0)),IFERROR(INDEX('Prev & Ctrl'!$F$5:$F$50,MATCH($C105,'Prev & Ctrl'!$A$5:$A$50,0)),IFERROR(INDEX('Lab dx'!$F$5:$F$50,MATCH($C105,'Lab dx'!$A$5:$A$50,0)),IFERROR(INDEX('Dog popn'!$F$5:$F$50,MATCH($C105,'Dog popn'!$A$5:$A$50,0)),IFERROR(INDEX(IEC!$F$5:$F$50,MATCH($C105,IEC!$A$5:$A$50,0)),IFERROR(INDEX('Cross-cutting issues'!$F$5:$F$50,MATCH($C105,'Cross-cutting issues'!$A$5:$A$50,0)),IFERROR(INDEX(Legislation!$F$5:$F$50,MATCH($C105,Legislation!$A$5:$A$50,0)),\"\")))))))","v":1},{"$f":"IFERROR(INDEX('Data coll & an'!$G$5:$G$50,MATCH($C105,'Data coll & an'!$A$5:$A$50,0)),IFERROR(INDEX('Prev & Ctrl'!$G$5:$G$50,MATCH($C105,'Prev & Ctrl'!$A$5:$A$50,0)),IFERROR(INDEX('Lab dx'!$G$5:$G$50,MATCH($C105,'Lab dx'!$A$5:$A$50,0)),IFERROR(INDEX('Dog popn'!$G$5:$G$50,MATCH($C105,'Dog popn'!$A$5:$A$50,0)),IFERROR(INDEX(IEC!$G$5:$G$50,MATCH($C105,IEC!$A$5:$A$50,0)),IFERROR(INDEX('Cross-cutting issues'!$G$5:$G$50,MATCH($C105,'Cross-cutting issues'!$A$5:$A$50,0)),IFERROR(INDEX(Legislation!$G$5:$G$50,MATCH($C105,Legislation!$A$5:$A$50,0)),\"\")))))))","v":0},"2. Roles-and-Responsibilities","http://caninerabiesblueprint.org/Roles-and-Responsibilities?lang=en","Challenges of animal health information systems and surveillance for animal diseases and zoonoses ","http://www.fao.org/3/a-i2415e.pdf",null,null,null,null,null,null,"• Contacter les parties prenantes identifiées et confirmer leur intérêt et leur disponibilité pour faire partie d'une task force, d'un comité ou d'un groupe de travail intersectoriel sur la rage ;\n• Créer officiellement une task force, un comité ou un groupe de travail intersectoriel en collaboration avec les parties prenantes concernées ;\n• Rédiger le mandat de la task force, du comité ou du groupe de travail intersectoriel ;\n• Finaliser le mandat et s'assurer qu'il est reconnu par tous les membres du groupe de travail ;\n• Convenir de la fréquence des réunions de la task force, du comité ou du groupe de travail intersectoriel et de la manière dont elles se dérouleront (p. ex. g., réunions virtuelles, réunions en personne) ;\n• Veiller à ce que l'équipe spéciale, le comité ou le groupe de travail intersectoriel se réunisse à la fréquence convenue.","A multi-sectoral rabies task force has been developed","Ministère de la santé; \nMinistère de l’agriculture",2,"• Liste confirmée des parties prenantes intéressées et disponibles pour participer au groupe de travail.\n• Documentation officielle établissant l'existence de l’équipe spéciale intersectorielle sur la rage, le comité ou le groupe de travail.\n• Rédaction et finalisation du mandat du groupe de travail, approuvé par tous les membres.\n• Calendrier et format de réunion convenus (virtuels ou en personne) avec comptes rendus de réunion documentés.","• Contacter les parties prenantes identifiées et confirmer leur intérêt et leur disponibilité pour faire partie d'une task force, d'un comité ou d'un groupe de travail intersectoriel sur la rage ;\n• Créer officiellement une task force, un comité ou un groupe de travail intersectoriel en collaboration avec les parties prenantes concernées ;\n• Rédiger le mandat de la task force, du comité ou du groupe de travail intersectoriel ;\n• Finaliser le mandat et s'assurer qu'il est reconnu par tous les membres du groupe de travail ;\n• Convenir de la fréquence des réunions de la task force, du comité ou du groupe de travail intersectoriel et de la manière dont elles se dérouleront (p. ex. g., réunions virtuelles, réunions en personne) ;\n• Veiller à ce que l'équipe spéciale, le comité ou le groupe de travail intersectoriel se réunisse à la fréquence convenue.","Ministère de la santé; \nMinistère de l’agriculture",2,"Créer une task force, un comité ou un groupe de travail intersectoriel sur la rage (comprenant toutes les parties prenantes identifiées au niveau national) et veiller à ce qu'ils se réunissent ou communiquent régulièrement."]
[105,"CCI",{"$f":"B106&\"-\"&LEFT(D106,3)&\"-\"&E106&\"-\"&F106","v":"CCI-Cré-2-5"},"Création d’un groupe de travail intersectoriel sur la rage",2,5,"Le secteur privé fait-il partie de l’équipe de travail intersectorielle ? ","Le secteur privé peut être inclus en tant qu’observateur dans le groupe de travail et n’a pas besoin d’être un membre principal. \n\nIl peut s’agir, entre autres, de vétérinaires, de médecins privés ou de représentants de l’industrie pharmaceutique. ",null,{"$f":"IFERROR(INDEX('Data coll & an'!$F$5:$F$50,MATCH($C106,'Data coll & an'!$A$5:$A$50,0)),IFERROR(INDEX('Prev & Ctrl'!$F$5:$F$50,MATCH($C106,'Prev & Ctrl'!$A$5:$A$50,0)),IFERROR(INDEX('Lab dx'!$F$5:$F$50,MATCH($C106,'Lab dx'!$A$5:$A$50,0)),IFERROR(INDEX('Dog popn'!$F$5:$F$50,MATCH($C106,'Dog popn'!$A$5:$A$50,0)),IFERROR(INDEX(IEC!$F$5:$F$50,MATCH($C106,IEC!$A$5:$A$50,0)),IFERROR(INDEX('Cross-cutting issues'!$F$5:$F$50,MATCH($C106,'Cross-cutting issues'!$A$5:$A$50,0)),IFERROR(INDEX(Legislation!$F$5:$F$50,MATCH($C106,Legislation!$A$5:$A$50,0)),\"\")))))))","v":0},{"$f":"IFERROR(INDEX('Data coll & an'!$G$5:$G$50,MATCH($C106,'Data coll & an'!$A$5:$A$50,0)),IFERROR(INDEX('Prev & Ctrl'!$G$5:$G$50,MATCH($C106,'Prev & Ctrl'!$A$5:$A$50,0)),IFERROR(INDEX('Lab dx'!$G$5:$G$50,MATCH($C106,'Lab dx'!$A$5:$A$50,0)),IFERROR(INDEX('Dog popn'!$G$5:$G$50,MATCH($C106,'Dog popn'!$A$5:$A$50,0)),IFERROR(INDEX(IEC!$G$5:$G$50,MATCH($C106,IEC!$A$5:$A$50,0)),IFERROR(INDEX('Cross-cutting issues'!$G$5:$G$50,MATCH($C106,'Cross-cutting issues'!$A$5:$A$50,0)),IFERROR(INDEX(Legislation!$G$5:$G$50,MATCH($C106,Legislation!$A$5:$A$50,0)),\"\")))))))","v":"taskforce existe mais le secteur prive nest pas implique"},"2. Roles-and-Responsibilities","http://caninerabiesblueprint.org/Roles-and-Responsibilities?lang=en",null,null,null,null,null,null,null,null,"• Identifier les parties prenantes du secteur privé qui peuvent contribuer positivement aux efforts d'élimination de la rage dans le pays ;\n• Contacter les professionnels identifiés au sein du secteur privé et les inviter à participer à la task force, au comité ou au groupe de travail intersectoriel sur la rage ;\n• Confirmer leur intérêt et leur disponibilité à faire partie de la task force, du comité ou du groupe de travail intersectoriel sur la rage ;\n• Assurer la participation des parties prenantes concernées du secteur privé aux discussions et aux activités de la task force, du comité ou du groupe de travail intersectoriel sur la rage.","Private sector's role in the national rabies task force has been identified and participation has been ensured","Groupe de travail multi-sectoriel",4,"• Identification des parties prenantes du secteur privé susceptibles de contribuer à l'élimination de la rage.\n• Invitations et confirmations documentées de la participation du secteur privé.\n• Registres de la participation du secteur privé aux discussions et aux activités du groupe de travail.",{"$f":"IFERROR(VLOOKUP($C106,INDIRECT(\"DCA!a13:j49\"),6,FALSE),IFERROR(VLOOKUP($C106,INDIRECT(\"pco!a13:j49\"),6,FALSE),IFERROR(VLOOKUP($C106,INDIRECT(\"lab!a13:j49\"),6,FALSE),IFERROR(VLOOKUP($C106,INDIRECT(\"dpm!a13:j49\"),6,FALSE),IFERROR(VLOOKUP($C106,INDIRECT(\"iecnw!a13:j49\"),6,FALSE),IFERROR(VLOOKUP($C106,INDIRECT(\"cci!a13:j49\"),6,FALSE),IFERROR(VLOOKUP($C106,INDIRECT(\"leg!a13:j49\"),6,FALSE),\"\")))))))","v":"• Identifier les parties prenantes du secteur privé qui peuvent contribuer positivement aux efforts d'élimination de la rage dans le pays ;\n• Contacter les professionnels identifiés au sein du secteur privé et les inviter à participer à la task force, au comité ou au groupe de travail intersectoriel sur la rage ;\n• Confirmer leur intérêt et leur disponibilité à faire partie de la task force, du comité ou du groupe de travail intersectoriel sur la rage ;\n• Assurer la participation des parties prenantes concernées du secteur privé aux discussions et aux activités de la task force, du comité ou du groupe de travail intersectoriel sur la rage."},{"$f":"IFERROR(VLOOKUP($C106,INDIRECT(\"DCA!a13:j49\"),8,FALSE),IFERROR(VLOOKUP($C106,INDIRECT(\"pco!a13:j49\"),8,FALSE),IFERROR(VLOOKUP($C106,INDIRECT(\"lab!a13:j49\"),8,FALSE),IFERROR(VLOOKUP($C106,INDIRECT(\"dpm!a13:j49\"),8,FALSE),IFERROR(VLOOKUP($C106,INDIRECT(\"iecnw!a13:j49\"),8,FALSE),IFERROR(VLOOKUP($C106,INDIRECT(\"cci!a13:j49\"),8,FALSE),IFERROR(VLOOKUP($C106,INDIRECT(\"leg!a13:j49\"),8,FALSE),\"\")))))))","v":"Groupe de travail multi-sectoriel"},{"$f":"IFERROR(VLOOKUP($C106,INDIRECT(\"DCA!a13:j49\"),9,FALSE),IFERROR(VLOOKUP($C106,INDIRECT(\"pco!a13:j49\"),9,FALSE),IFERROR(VLOOKUP($C106,INDIRECT(\"lab!a13:j49\"),9,FALSE),IFERROR(VLOOKUP($C106,INDIRECT(\"dpm!a13:j49\"),9,FALSE),IFERROR(VLOOKUP($C106,INDIRECT(\"iecnw!a13:j49\"),9,FALSE),IFERROR(VLOOKUP($C106,INDIRECT(\"cci!a13:j49\"),9,FALSE),IFERROR(VLOOKUP($C106,INDIRECT(\"leg!a13:j49\"),9,FALSE),\"\")))))))","v":4},"Inclure le secteur privé dans le groupe de travail intersectoriel."]
[106,"CCI","CCI-Pro-1-6","Programme et stratégie nationales",1,6,"Un plan d’activité à court terme pour la rage a-t-il été élaboré pour une zone quelconque (par ex. dans le cadre d’un projet pilote OU à l’échelle nationale) par les autorités compétentes identifiées ? ","Vous pouvez répondre à cette question par « Oui » si vous avez, par exemple, créé un plan pour la banque de vaccins de l’OMSA (WOAH). \n\nS'il existe déjà un plan stratégique national, vous pouvez répondre à cette question par « Oui » SI le plan comporte une composante claire de plan d'ACTIVITÉ à court terme.  ",null,{"$f":"IFERROR(INDEX('Data coll & an'!$F$5:$F$50,MATCH($C107,'Data coll & an'!$A$5:$A$50,0)),IFERROR(INDEX('Prev & Ctrl'!$F$5:$F$50,MATCH($C107,'Prev & Ctrl'!$A$5:$A$50,0)),IFERROR(INDEX('Lab dx'!$F$5:$F$50,MATCH($C107,'Lab dx'!$A$5:$A$50,0)),IFERROR(INDEX('Dog popn'!$F$5:$F$50,MATCH($C107,'Dog popn'!$A$5:$A$50,0)),IFERROR(INDEX(IEC!$F$5:$F$50,MATCH($C107,IEC!$A$5:$A$50,0)),IFERROR(INDEX('Cross-cutting issues'!$F$5:$F$50,MATCH($C107,'Cross-cutting issues'!$A$5:$A$50,0)),IFERROR(INDEX(Legislation!$F$5:$F$50,MATCH($C107,Legislation!$A$5:$A$50,0)),\"\")))))))","v":1},{"$f":"IFERROR(INDEX('Data coll & an'!$G$5:$G$50,MATCH($C107,'Data coll & an'!$A$5:$A$50,0)),IFERROR(INDEX('Prev & Ctrl'!$G$5:$G$50,MATCH($C107,'Prev & Ctrl'!$A$5:$A$50,0)),IFERROR(INDEX('Lab dx'!$G$5:$G$50,MATCH($C107,'Lab dx'!$A$5:$A$50,0)),IFERROR(INDEX('Dog popn'!$G$5:$G$50,MATCH($C107,'Dog popn'!$A$5:$A$50,0)),IFERROR(INDEX(IEC!$G$5:$G$50,MATCH($C107,IEC!$A$5:$A$50,0)),IFERROR(INDEX('Cross-cutting issues'!$G$5:$G$50,MATCH($C107,'Cross-cutting issues'!$A$5:$A$50,0)),IFERROR(INDEX(Legislation!$G$5:$G$50,MATCH($C107,Legislation!$A$5:$A$50,0)),\"\")))))))","v":"la creation des unites de prise en charge du risque rabique"},"5.1-What-do-we-need-to-know-before","http://caninerabiesblueprint.org/5-1-What-do-we-need-to-know-before?lang=en","1.8-What-measures-are-available","http://caninerabiesblueprint.org/1-8-What-measures-are-available?lang=en","2. Roles-and-Responsibilities","http://caninerabiesblueprint.org/Roles-and-Responsibilities?lang=en",null,null,null,null,"• Compiler les preuves d'autres programmes ou activités réussis dans un rapport de « preuve de principe » ;\n• Rédiger un plan d'action à court terme, en s'inspirant des plans d'action élaborés dans d'autres pays ;\n• Partager le projet de plan d'action à court terme avec toutes les parties prenantes concernées pour obtenir leurs commentaires ;\n• Intégrer les commentaires et finaliser le plan d'action à court terme ;\n• Une fois finalisé, s'assurer que toutes les parties prenantes approuvent le plan d'action à court terme ;\n• Élaborer un budget et assurer le financement du plan d'action à court terme.","A short term rabies action plan has been developed and endorsed;","Groupe de travail multi-sectoriel",3,"• Rapport sur la « preuve de principe » compilant des éléments probants issus de programmes couronnés de succès.\n• Rédaction et finalisation d'un plan d'action à court terme intégrant les commentaires des parties prenantes.\n• Approbation documentée du plan d'action finalisé par les parties prenantes.\n• Approbation du budget et obtention du financement pour la mise en œuvre du plan d'action.","• Compiler les preuves d'autres programmes ou activités réussis dans un rapport de « preuve de principe » ;\n• Rédiger un plan d'action à court terme, en s'inspirant des plans d'action élaborés dans d'autres pays ;\n• Partager le projet de plan d'action à court terme avec toutes les parties prenantes concernées pour obtenir leurs commentaires ;\n• Intégrer les commentaires et finaliser le plan d'action à court terme ;\n• Une fois finalisé, s'assurer que toutes les parties prenantes approuvent le plan d'action à court terme ;\n• Élaborer un budget et assurer le financement du plan d'action à court terme.","Groupe de travail multi-sectoriel",3,"Élaborer un plan d'action à court terme contre la rage pour n'importe quelle zone (par exemple, projet pilote OU niveau national)."]
[107,"CCI","CCI-Pro-1-7","Programme et stratégie nationales",1,7,"Des mécanismes de mobilisation de fonds d'urgence, EN PLUS du budget global d'élimination de la rage, ont-ils été identifiés ?","Il peut s'agir par exemple de fonds de secours en cas de catastrophe. Vous pouvez répondre « Oui » si les mécanismes ont été identifiés et si vous avez déterminé le processus à suivre pour inclure la rage à l'avenir. \n\nIl n'est donc pas nécessaire d'avoir un accès immédiat au financement pour répondre « Oui ». ",null,{"$f":"IFERROR(INDEX('Data coll & an'!$F$5:$F$50,MATCH($C108,'Data coll & an'!$A$5:$A$50,0)),IFERROR(INDEX('Prev & Ctrl'!$F$5:$F$50,MATCH($C108,'Prev & Ctrl'!$A$5:$A$50,0)),IFERROR(INDEX('Lab dx'!$F$5:$F$50,MATCH($C108,'Lab dx'!$A$5:$A$50,0)),IFERROR(INDEX('Dog popn'!$F$5:$F$50,MATCH($C108,'Dog popn'!$A$5:$A$50,0)),IFERROR(INDEX(IEC!$F$5:$F$50,MATCH($C108,IEC!$A$5:$A$50,0)),IFERROR(INDEX('Cross-cutting issues'!$F$5:$F$50,MATCH($C108,'Cross-cutting issues'!$A$5:$A$50,0)),IFERROR(INDEX(Legislation!$F$5:$F$50,MATCH($C108,Legislation!$A$5:$A$50,0)),\"\")))))))","v":1},{"$f":"IFERROR(INDEX('Data coll & an'!$G$5:$G$50,MATCH($C108,'Data coll & an'!$A$5:$A$50,0)),IFERROR(INDEX('Prev & Ctrl'!$G$5:$G$50,MATCH($C108,'Prev & Ctrl'!$A$5:$A$50,0)),IFERROR(INDEX('Lab dx'!$G$5:$G$50,MATCH($C108,'Lab dx'!$A$5:$A$50,0)),IFERROR(INDEX('Dog popn'!$G$5:$G$50,MATCH($C108,'Dog popn'!$A$5:$A$50,0)),IFERROR(INDEX(IEC!$G$5:$G$50,MATCH($C108,IEC!$A$5:$A$50,0)),IFERROR(INDEX('Cross-cutting issues'!$G$5:$G$50,MATCH($C108,'Cross-cutting issues'!$A$5:$A$50,0)),IFERROR(INDEX(Legislation!$G$5:$G$50,MATCH($C108,Legislation!$A$5:$A$50,0)),\"\")))))))","v":0},"3.3-Costs-and-Funding","http://caninerabiesblueprint.org/3-3-Costs-and-Funding?lang=en",null,null,null,null,null,null,null,null,"• Identifier les sources possibles de fonds d'urgence qui pourraient être utilisés en plus du budget global d'élimination de la rage ;\n• Contacter les professionnels responsables de la gestion des fonds d'urgence et de leur affectation ;\n• Identifier les conditions d'accès aux fonds d'urgence ;\n• Obtenir une approbation écrite confirmant l'accès aux fonds d'urgence, le cas échéant.","Emergency funds have been identified and can be accessed if needed","Groupe de travail multi-sectoriel",3,"• Sources potentielles de fonds d'urgence et leurs conditions d'accès identifiées.\n• Communication établie avec les gestionnaires de fonds et procédures documentée d'allocation des fonds.\n• Approbation écrite de l'accès aux fonds d'urgence (si nécessaire).","• Identifier les sources possibles de fonds d'urgence qui pourraient être utilisés en plus du budget global d'élimination de la rage ;\n• Contacter les professionnels responsables de la gestion des fonds d'urgence et de leur affectation ;\n• Identifier les conditions d'accès aux fonds d'urgence ;\n• Obtenir une approbation écrite confirmant l'accès aux fonds d'urgence, le cas échéant.","Groupe de travail multi-sectoriel",3,"Identifier les mécanismes de mobilisation des fonds d'urgence qui pourraient être utilisés en complément du budget global d'élimination de la rage."]
[108,"CCI","CCI-Pro-2-8","Programme et stratégie nationales",2,8,"Un plan national stratégique pour la rage a-t-il été élaboré et finalisé par toutes les parties prenantes identifiées. ","Vous pouvez répondre « Oui » si le plan stratégique national de lutte contre la rage a été rédigé et finalisé.\n \nCela signifie qu'il n'est PAS nécessaire qu’il soit financé ou mis en œuvre.","KEY",{"$f":"IFERROR(INDEX('Data coll & an'!$F$5:$F$50,MATCH($C109,'Data coll & an'!$A$5:$A$50,0)),IFERROR(INDEX('Prev & Ctrl'!$F$5:$F$50,MATCH($C109,'Prev & Ctrl'!$A$5:$A$50,0)),IFERROR(INDEX('Lab dx'!$F$5:$F$50,MATCH($C109,'Lab dx'!$A$5:$A$50,0)),IFERROR(INDEX('Dog popn'!$F$5:$F$50,MATCH($C109,'Dog popn'!$A$5:$A$50,0)),IFERROR(INDEX(IEC!$F$5:$F$50,MATCH($C109,IEC!$A$5:$A$50,0)),IFERROR(INDEX('Cross-cutting issues'!$F$5:$F$50,MATCH($C109,'Cross-cutting issues'!$A$5:$A$50,0)),IFERROR(INDEX(Legislation!$F$5:$F$50,MATCH($C109,Legislation!$A$5:$A$50,0)),\"\")))))))","v":0},{"$f":"IFERROR(INDEX('Data coll & an'!$G$5:$G$50,MATCH($C109,'Data coll & an'!$A$5:$A$50,0)),IFERROR(INDEX('Prev & Ctrl'!$G$5:$G$50,MATCH($C109,'Prev & Ctrl'!$A$5:$A$50,0)),IFERROR(INDEX('Lab dx'!$G$5:$G$50,MATCH($C109,'Lab dx'!$A$5:$A$50,0)),IFERROR(INDEX('Dog popn'!$G$5:$G$50,MATCH($C109,'Dog popn'!$A$5:$A$50,0)),IFERROR(INDEX(IEC!$G$5:$G$50,MATCH($C109,IEC!$A$5:$A$50,0)),IFERROR(INDEX('Cross-cutting issues'!$G$5:$G$50,MATCH($C109,'Cross-cutting issues'!$A$5:$A$50,0)),IFERROR(INDEX(Legislation!$G$5:$G$50,MATCH($C109,Legislation!$A$5:$A$50,0)),\"\")))))))","v":0},"Components-of-a-successful-rabies-programme","http://caninerabiesblueprint.org/The-components-of-a-successful?lang=en",null,null,null,null,null,null,null,null,"• Accéder au modèle générique de plan stratégique national sur le site web de United Against Rabies (Tous unis contre la rage);\n• Personnaliser le modèle de plan stratégique national pour le centrer sur le pays ;\n• Envoyer le plan stratégique national personnalisé à toutes les parties prenantes concernées pour examen et commentaires ;\n• Incorporer les commentaires et finaliser le plan stratégique national ;\n• S'assurer que le plan stratégique national a été approuvé par toutes les parties prenantes concernées.","National rabies strategy developed in line with the Stepwise Appraoch towards Rabies Elimination (SARE) assessment;","Groupe de travail multi-sectoriel",4,"• Adaptation du modèle de plan stratégique national de United Against Rabies (tous unis contre la rage).\n• Plan stratégique national révisé et finalisé par les parties prenantes et intégrant leurs commentaires.\n• Approbation documentée du plan stratégique national par les parties prenantes.","• Accéder au modèle générique de plan stratégique national sur le site web de United Against Rabies (Tous unis contre la rage);\n• Personnaliser le modèle de plan stratégique national pour le centrer sur le pays ;\n• Envoyer le plan stratégique national personnalisé à toutes les parties prenantes concernées pour examen et commentaires ;\n• Incorporer les commentaires et finaliser le plan stratégique national ;\n• S'assurer que le plan stratégique national a été approuvé par toutes les parties prenantes concernées.","Groupe de travail multi-sectoriel",4,"Rédiger et finaliser un plan stratégique national pour la rage."]
[109,"CCI","CCI-Pro-2-9","Programme et stratégie nationales",2,9,"Des ressources gouvernementales ont-elles été identifiées et allouées en soutien au plan stratégique national contre la rage ? ","Vous pouvez répondre « Oui » si la stratégie nationale de lutte contre la rage est PARTIELLEMENT financée par le gouvernement. \n\nPar exemple, il peut s'agir d'un financement en contrepartie d'un donateur ou d'un financement par le gouvernement d'une partie importante de la stratégie nationale de lutte contre la rage.","KEY",{"$f":"IFERROR(INDEX('Data coll & an'!$F$5:$F$50,MATCH($C110,'Data coll & an'!$A$5:$A$50,0)),IFERROR(INDEX('Prev & Ctrl'!$F$5:$F$50,MATCH($C110,'Prev & Ctrl'!$A$5:$A$50,0)),IFERROR(INDEX('Lab dx'!$F$5:$F$50,MATCH($C110,'Lab dx'!$A$5:$A$50,0)),IFERROR(INDEX('Dog popn'!$F$5:$F$50,MATCH($C110,'Dog popn'!$A$5:$A$50,0)),IFERROR(INDEX(IEC!$F$5:$F$50,MATCH($C110,IEC!$A$5:$A$50,0)),IFERROR(INDEX('Cross-cutting issues'!$F$5:$F$50,MATCH($C110,'Cross-cutting issues'!$A$5:$A$50,0)),IFERROR(INDEX(Legislation!$F$5:$F$50,MATCH($C110,Legislation!$A$5:$A$50,0)),\"\")))))))","v":0},{"$f":"IFERROR(INDEX('Data coll & an'!$G$5:$G$50,MATCH($C110,'Data coll & an'!$A$5:$A$50,0)),IFERROR(INDEX('Prev & Ctrl'!$G$5:$G$50,MATCH($C110,'Prev & Ctrl'!$A$5:$A$50,0)),IFERROR(INDEX('Lab dx'!$G$5:$G$50,MATCH($C110,'Lab dx'!$A$5:$A$50,0)),IFERROR(INDEX('Dog popn'!$G$5:$G$50,MATCH($C110,'Dog popn'!$A$5:$A$50,0)),IFERROR(INDEX(IEC!$G$5:$G$50,MATCH($C110,IEC!$A$5:$A$50,0)),IFERROR(INDEX('Cross-cutting issues'!$G$5:$G$50,MATCH($C110,'Cross-cutting issues'!$A$5:$A$50,0)),IFERROR(INDEX(Legislation!$G$5:$G$50,MATCH($C110,Legislation!$A$5:$A$50,0)),\"\")))))))","v":0},"3.3-Costs-and-Funding","http://caninerabiesblueprint.org/3-3-Costs-and-Funding?lang=en",null,null,null,null,null,null,null,null,"• Élaborer un budget pour le plan stratégique national en utilisant tous les outils ou méthodes de budgétisation pertinents ;\n• Identifier les sources de financement au sein du gouvernement ainsi que les autres parties prenantes concernées ;\n• S'assurer de l'adhésion et de l'approbation des autorités gouvernementales en ce qui concerne le budget du plan stratégique national ;\n• Assurer le financement du plan stratégique national officiel ;\n• Mettre en place des mécanismes permettant aux secteurs concernés d'allouer des fonds ou d'y accéder conformément au budget.","Resources, including financial support, has been secured for the implementation of the national rabies control strategy","Groupe de travail multi-sectoriel",6,"• Budget élaboré et approuvé pour le plan stratégique national.\n• Sources de financement au sein du gouvernement et des autres parties prenantes identifiées et assurées.\n• Mécanismes établis pour l'allocation et l'accès aux fonds conformément au plan.","• Élaborer un budget pour le plan stratégique national en utilisant tous les outils ou méthodes de budgétisation pertinents ;\n• Identifier les sources de financement au sein du gouvernement ainsi que les autres parties prenantes concernées ;\n• S'assurer de l'adhésion et de l'approbation des autorités gouvernementales en ce qui concerne le budget du plan stratégique national ;\n• Assurer le financement du plan stratégique national officiel ;\n• Mettre en place des mécanismes permettant aux secteurs concernés d'allouer des fonds ou d'y accéder conformément au budget.","Groupe de travail multi-sectoriel",6,"Garantir et allouer de manière appropriée les ressources gouvernementales pour soutenir le plan stratégique national de lutte contre la rage."]
[110,"CCI","CCI-Pro-3-10","Programme et stratégie nationales",3,10,"Maintenant qu'il y a très peu de cas de rage animale dans votre pays, la stratégie nationale a-t-elle été affinée sur la base des données actuelles ? ","Par ex. information épidémiologique moléculaire, recherches en cours ou enquêtes, utilisation de la PPE et données sur les cas de morsures.",null,{"$f":"IFERROR(INDEX('Data coll & an'!$F$5:$F$50,MATCH($C111,'Data coll & an'!$A$5:$A$50,0)),IFERROR(INDEX('Prev & Ctrl'!$F$5:$F$50,MATCH($C111,'Prev & Ctrl'!$A$5:$A$50,0)),IFERROR(INDEX('Lab dx'!$F$5:$F$50,MATCH($C111,'Lab dx'!$A$5:$A$50,0)),IFERROR(INDEX('Dog popn'!$F$5:$F$50,MATCH($C111,'Dog popn'!$A$5:$A$50,0)),IFERROR(INDEX(IEC!$F$5:$F$50,MATCH($C111,IEC!$A$5:$A$50,0)),IFERROR(INDEX('Cross-cutting issues'!$F$5:$F$50,MATCH($C111,'Cross-cutting issues'!$A$5:$A$50,0)),IFERROR(INDEX(Legislation!$F$5:$F$50,MATCH($C111,Legislation!$A$5:$A$50,0)),\"\")))))))","v":0},{"$f":"IFERROR(INDEX('Data coll & an'!$G$5:$G$50,MATCH($C111,'Data coll & an'!$A$5:$A$50,0)),IFERROR(INDEX('Prev & Ctrl'!$G$5:$G$50,MATCH($C111,'Prev & Ctrl'!$A$5:$A$50,0)),IFERROR(INDEX('Lab dx'!$G$5:$G$50,MATCH($C111,'Lab dx'!$A$5:$A$50,0)),IFERROR(INDEX('Dog popn'!$G$5:$G$50,MATCH($C111,'Dog popn'!$A$5:$A$50,0)),IFERROR(INDEX(IEC!$G$5:$G$50,MATCH($C111,IEC!$A$5:$A$50,0)),IFERROR(INDEX('Cross-cutting issues'!$G$5:$G$50,MATCH($C111,'Cross-cutting issues'!$A$5:$A$50,0)),IFERROR(INDEX(Legislation!$G$5:$G$50,MATCH($C111,Legislation!$A$5:$A$50,0)),\"\")))))))","v":0},"5.6-Evaluation","http://caninerabiesblueprint.org/5-6-Evaluation?lang=en","5.7.1-Sustainability","http://caninerabiesblueprint.org/5-7-1-How-do-we-ensure?lang=en",null,null,null,null,null,null,"• Évaluer les données de surveillance actuelles concernant la situation de la rage dans le pays ;\n• Discuter des prochaines étapes sur la base des données épidémiologiques actuelles avec la task force, le comité ou le groupe de travail intersectoriel sur la rage et toutes les autres parties prenantes concernées ;\n• Affiner le plan stratégique national sur la base des discussions et des données actuelles, y compris les nouveaux besoins budgétaires ;\n• S'assurer que toutes les mises à jour du plan stratégique national ont été approuvées ;\n• Publier les révisions et s'assurer que tous les professionnels sont au courant des mises à jour effectuées ;\n• Mettre en œuvre le plan stratégique national mis à jour.","The national rabies control strategy has been revised based on the most recent surveillance data, updated, costed, endorsed, disseminated to all relevant professionals, and the updates have been implemented;","Groupe de travail multi-sectoriel",9,"• Données épidémiologiques et de surveillance actuelles analysées et documentées.\n• Plan stratégique national mis à jour et affiné en fonction des nouvelles données et des besoins budgétaires.\n• Approbation documentée du plan révisé par les parties prenantes.\n• Stratégie actualisée publiée et diffusée auprès de tous les professionnels concernés.\n• Rapports de mise en œuvre reflétant l'application du plan stratégique national actualisé.","• Évaluer les données de surveillance actuelles concernant la situation de la rage dans le pays ;\n• Discuter des prochaines étapes sur la base des données épidémiologiques actuelles avec la task force, le comité ou le groupe de travail intersectoriel sur la rage et toutes les autres parties prenantes concernées ;\n• Affiner le plan stratégique national sur la base des discussions et des données actuelles, y compris les nouveaux besoins budgétaires ;\n• S'assurer que toutes les mises à jour du plan stratégique national ont été approuvées ;\n• Publier les révisions et s'assurer que tous les professionnels sont au courant des mises à jour effectuées ;\n• Mettre en œuvre le plan stratégique national mis à jour.","Groupe de travail multi-sectoriel",9,"Maintenant qu'il y a très peu de cas de rage animale dans le pays, affiner la stratégie nationale sur la base des données actuelles."]
[111,"LEG","LEG-Déf-0-1","Définition nationale d’un cas de rage animale ",0,1,"Existe-t-il une définition de cas de rage animale disponible qui soit compatible avec (ou semblable aux) les directives de l’OMS ?","La définition d’un cas de rage animale recommandée par l’OMS est la suivante : « Un cas cliniquement défini est celui d’un animal présentant l’un des signes suivants : hypersalivation ; paralysie ; léthargie ; agression non provoquée (par ex. morsure de deux ou plusieurs personnes ou animaux et /ou d’objets inanimés) ; vocalisation anomale ; activité diurne d’une espèce nocturne ».",null,{"$f":"IFERROR(INDEX('Data coll & an'!$F$5:$F$50,MATCH($C112,'Data coll & an'!$A$5:$A$50,0)),IFERROR(INDEX('Prev & Ctrl'!$F$5:$F$50,MATCH($C112,'Prev & Ctrl'!$A$5:$A$50,0)),IFERROR(INDEX('Lab dx'!$F$5:$F$50,MATCH($C112,'Lab dx'!$A$5:$A$50,0)),IFERROR(INDEX('Dog popn'!$F$5:$F$50,MATCH($C112,'Dog popn'!$A$5:$A$50,0)),IFERROR(INDEX(IEC!$F$5:$F$50,MATCH($C112,IEC!$A$5:$A$50,0)),IFERROR(INDEX('Cross-cutting issues'!$F$5:$F$50,MATCH($C112,'Cross-cutting issues'!$A$5:$A$50,0)),IFERROR(INDEX(Legislation!$F$5:$F$50,MATCH($C112,Legislation!$A$5:$A$50,0)),\"\")))))))","v":1},{"$f":"IFERROR(INDEX('Data coll & an'!$G$5:$G$50,MATCH($C112,'Data coll & an'!$A$5:$A$50,0)),IFERROR(INDEX('Prev & Ctrl'!$G$5:$G$50,MATCH($C112,'Prev & Ctrl'!$A$5:$A$50,0)),IFERROR(INDEX('Lab dx'!$G$5:$G$50,MATCH($C112,'Lab dx'!$A$5:$A$50,0)),IFERROR(INDEX('Dog popn'!$G$5:$G$50,MATCH($C112,'Dog popn'!$A$5:$A$50,0)),IFERROR(INDEX(IEC!$G$5:$G$50,MATCH($C112,IEC!$A$5:$A$50,0)),IFERROR(INDEX('Cross-cutting issues'!$G$5:$G$50,MATCH($C112,'Cross-cutting issues'!$A$5:$A$50,0)),IFERROR(INDEX(Legislation!$G$5:$G$50,MATCH($C112,Legislation!$A$5:$A$50,0)),\"\")))))))","v":0},"OIE Terrestrial Animal Health Code","http://caninerabiesblueprint.org/OIE-Terrestrial-Animal-Health-Code",null,null,null,null,null,null,null,null,"• Déterminer si une définition de cas de rage animale est disponible dans votre pays ;\n• Si elle est disponible, déterminer si la définition de cas est conforme (ou similaire) aux lignes directrices de l'OMS ;\n• Si aucune définition de cas n'est disponible, créer une définition de cas conforme (ou similaire) aux lignes directrices de l'OMS ;\n• Diffuser la nouvelle définition de cas ou la définition de cas révisée aux parties prenantes concernées pour obtenir leurs commentaires et leur approbation ;\n• Suivre la procédure appropriée pour que la nouvelle définition de cas ou la définition de cas révisée soit acceptée et reconnue ;\n• Publier la nouvelle définition de cas de rage animale ou la définition de cas révisée et la partager avec tous les professionnels concernés.","A case definition has been defined or updated to reflect the OIE standards for animal rabies","Ministère de l’agriculture",2,"• Examen de la définition existante des cas de rage animale et évaluation de l'alignement sur les lignes directrices de l'OMS (le cas échéant) documenté.\n• Définition de cas de rage animale conforme aux lignes directrices de l'OMS rédigée et finalisée.\n• Définition du cas de rage animale officiellement approuvée.","","","","Élaborer une définition de cas de rage animale qui soit conforme (ou similaire) aux lignes directrices de l'OMS."]
[112,"LEG","LEG-Déf-1-2","Définition nationale d’un cas de rage animale ",1,2,"La définition d’un cas de rage animale a-t-elle été partagée avec tous les professionnels concernés ? ","Par ex., un vétérinaire du gouvernement serait-il en mesure d’énoncer à quelqu’un la définition d’un cas de rage à ce moment précis ? ",null,{"$f":"IFERROR(INDEX('Data coll & an'!$F$5:$F$50,MATCH($C113,'Data coll & an'!$A$5:$A$50,0)),IFERROR(INDEX('Prev & Ctrl'!$F$5:$F$50,MATCH($C113,'Prev & Ctrl'!$A$5:$A$50,0)),IFERROR(INDEX('Lab dx'!$F$5:$F$50,MATCH($C113,'Lab dx'!$A$5:$A$50,0)),IFERROR(INDEX('Dog popn'!$F$5:$F$50,MATCH($C113,'Dog popn'!$A$5:$A$50,0)),IFERROR(INDEX(IEC!$F$5:$F$50,MATCH($C113,IEC!$A$5:$A$50,0)),IFERROR(INDEX('Cross-cutting issues'!$F$5:$F$50,MATCH($C113,'Cross-cutting issues'!$A$5:$A$50,0)),IFERROR(INDEX(Legislation!$F$5:$F$50,MATCH($C113,Legislation!$A$5:$A$50,0)),\"\")))))))","v":1},{"$f":"IFERROR(INDEX('Data coll & an'!$G$5:$G$50,MATCH($C113,'Data coll & an'!$A$5:$A$50,0)),IFERROR(INDEX('Prev & Ctrl'!$G$5:$G$50,MATCH($C113,'Prev & Ctrl'!$A$5:$A$50,0)),IFERROR(INDEX('Lab dx'!$G$5:$G$50,MATCH($C113,'Lab dx'!$A$5:$A$50,0)),IFERROR(INDEX('Dog popn'!$G$5:$G$50,MATCH($C113,'Dog popn'!$A$5:$A$50,0)),IFERROR(INDEX(IEC!$G$5:$G$50,MATCH($C113,IEC!$A$5:$A$50,0)),IFERROR(INDEX('Cross-cutting issues'!$G$5:$G$50,MATCH($C113,'Cross-cutting issues'!$A$5:$A$50,0)),IFERROR(INDEX(Legislation!$G$5:$G$50,MATCH($C113,Legislation!$A$5:$A$50,0)),\"\")))))))","v":0},"OIE Terrestrial Animal Health Code","http://caninerabiesblueprint.org/OIE-Terrestrial-Animal-Health-Code",null,null,null,null,null,null,null,null,"• Identifier tous les professionnels concernés qui ont besoin de la définition du cas de rage animale pour accomplir leurs tâches ;\n• Identifier les meilleurs canaux de communication à utiliser pour la diffusion de la définition du cas ;\n• Partager la définition du cas de rage animale avec tous les professionnels concernés impliqués dans la lutte contre la rage.","All professionals are aware of the relevant case definition for rabies","Ministère de l’agriculture",2,"• Définition du cas de rage animale publiée et diffusée à tous les professionnels concernés.\n• Mécanisme mis en place permettant de s'assurer que les nouveaux professionnels reçoivent la définition de cas.","","","","Partager la définition du cas de rage animale avec tous les professionnels concernés et veiller à ce que tout nouveau professionnel reçoive à l'avenir la définition du cas."]
[113,"LEG","LEG-Déf-0-3","Définition nationale d’un cas de rage humaine",0,3,"Existe-t-il une définition de cas de rage humaine disponible qui soit compatible avec (ou semblable à) les directives de l’OMS ?","La définition d’un cas de rage humaine recommandée par l’OMS est la suivante :\n« Un sujet présentant un syndrome neurologique aigu (encéphalite) dominé par des formes d’hyperactivité (rage furieuse) ou des signes de paralysie (rage paralytique) évoluant vers un coma et la mort, généralement par défaillance cardiaque ou respiratoire, typiquement dans les 7 à 10 jours suivant l’apparition des premiers signes ».",null,{"$f":"IFERROR(INDEX('Data coll & an'!$F$5:$F$50,MATCH($C114,'Data coll & an'!$A$5:$A$50,0)),IFERROR(INDEX('Prev & Ctrl'!$F$5:$F$50,MATCH($C114,'Prev & Ctrl'!$A$5:$A$50,0)),IFERROR(INDEX('Lab dx'!$F$5:$F$50,MATCH($C114,'Lab dx'!$A$5:$A$50,0)),IFERROR(INDEX('Dog popn'!$F$5:$F$50,MATCH($C114,'Dog popn'!$A$5:$A$50,0)),IFERROR(INDEX(IEC!$F$5:$F$50,MATCH($C114,IEC!$A$5:$A$50,0)),IFERROR(INDEX('Cross-cutting issues'!$F$5:$F$50,MATCH($C114,'Cross-cutting issues'!$A$5:$A$50,0)),IFERROR(INDEX(Legislation!$F$5:$F$50,MATCH($C114,Legislation!$A$5:$A$50,0)),\"\")))))))","v":1},{"$f":"IFERROR(INDEX('Data coll & an'!$G$5:$G$50,MATCH($C114,'Data coll & an'!$A$5:$A$50,0)),IFERROR(INDEX('Prev & Ctrl'!$G$5:$G$50,MATCH($C114,'Prev & Ctrl'!$A$5:$A$50,0)),IFERROR(INDEX('Lab dx'!$G$5:$G$50,MATCH($C114,'Lab dx'!$A$5:$A$50,0)),IFERROR(INDEX('Dog popn'!$G$5:$G$50,MATCH($C114,'Dog popn'!$A$5:$A$50,0)),IFERROR(INDEX(IEC!$G$5:$G$50,MATCH($C114,IEC!$A$5:$A$50,0)),IFERROR(INDEX('Cross-cutting issues'!$G$5:$G$50,MATCH($C114,'Cross-cutting issues'!$A$5:$A$50,0)),IFERROR(INDEX(Legislation!$G$5:$G$50,MATCH($C114,Legislation!$A$5:$A$50,0)),\"\")))))))","v":0},"WHO expert consultation on rabies","http://caninerabiesblueprint.org/WHO-expert-consultation-on-rabies",null,null,null,null,null,null,null,null,"• Déterminer si une définition de cas de rage humaine est disponible dans votre pays ;\n• Si elle est disponible, déterminer si la définition de cas est conforme (ou similaire) aux lignes directrices de l'OMS ;\n• Si aucune définition de cas n'est disponible, créer une définition de cas conforme (ou similaire) aux lignes directrices de l'OMS ;\n• Diffuser la nouvelle définition de cas ou la définition de cas révisée auprès des parties prenantes concernées pour obtenir leurs commentaires et leur approbation ;\n• Suivre la procédure appropriée pour que la nouvelle définition de cas ou la définition de cas révisée soit acceptée et reconnue ;\n• Publier la nouvelle définition de cas de rage humaine ou la définition de cas révisée et la partager avec tous les professionnels concernés.","A case definition has been defined or updated to reflect the WHO guidelines for human rabies","Ministère de la santé",2,"• Examen documenté des définitions existantes des cas de rage humaine et évaluation de l'alignement sur les lignes directrices de l'OMS (le cas échéant).\n• Définition de cas de rage humaine conforme aux lignes directrices de l'OMS rédigée et finalisée.\n• Définition des cas de rage humaine officiellement approuvée.","","","","Élaborer une définition des cas de rage humaine qui soit conforme (ou similaire) aux lignes directrices de l'OMS."]
[114,"LEG","LEG-Déf-1-4","Définition nationale d’un cas de rage humaine",1,4,"La définition d’un cas de rage humaine a-t-elle été partagée avec tous les professionnels concernés ?","Par ex., un médecin du gouvernement serait-il en mesure d’énoncer la définition d’un cas de rage à ce moment précis ?",null,{"$f":"IFERROR(INDEX('Data coll & an'!$F$5:$F$50,MATCH($C115,'Data coll & an'!$A$5:$A$50,0)),IFERROR(INDEX('Prev & Ctrl'!$F$5:$F$50,MATCH($C115,'Prev & Ctrl'!$A$5:$A$50,0)),IFERROR(INDEX('Lab dx'!$F$5:$F$50,MATCH($C115,'Lab dx'!$A$5:$A$50,0)),IFERROR(INDEX('Dog popn'!$F$5:$F$50,MATCH($C115,'Dog popn'!$A$5:$A$50,0)),IFERROR(INDEX(IEC!$F$5:$F$50,MATCH($C115,IEC!$A$5:$A$50,0)),IFERROR(INDEX('Cross-cutting issues'!$F$5:$F$50,MATCH($C115,'Cross-cutting issues'!$A$5:$A$50,0)),IFERROR(INDEX(Legislation!$F$5:$F$50,MATCH($C115,Legislation!$A$5:$A$50,0)),\"\")))))))","v":1},{"$f":"IFERROR(INDEX('Data coll & an'!$G$5:$G$50,MATCH($C115,'Data coll & an'!$A$5:$A$50,0)),IFERROR(INDEX('Prev & Ctrl'!$G$5:$G$50,MATCH($C115,'Prev & Ctrl'!$A$5:$A$50,0)),IFERROR(INDEX('Lab dx'!$G$5:$G$50,MATCH($C115,'Lab dx'!$A$5:$A$50,0)),IFERROR(INDEX('Dog popn'!$G$5:$G$50,MATCH($C115,'Dog popn'!$A$5:$A$50,0)),IFERROR(INDEX(IEC!$G$5:$G$50,MATCH($C115,IEC!$A$5:$A$50,0)),IFERROR(INDEX('Cross-cutting issues'!$G$5:$G$50,MATCH($C115,'Cross-cutting issues'!$A$5:$A$50,0)),IFERROR(INDEX(Legislation!$G$5:$G$50,MATCH($C115,Legislation!$A$5:$A$50,0)),\"\")))))))","v":0},"WHO expert consultation on rabies","http://caninerabiesblueprint.org/WHO-expert-consultation-on-rabies",null,null,null,null,null,null,null,null,"• Identifier tous les professionnels concernés ayant besoin de la définition de cas de rage humaine pour accomplir leurs tâches ;\n• Identifier les meilleurs canaux de communication à utiliser pour la diffusion de la définition de cas ;\n• Partager la définition de cas de rage humaine avec tous les professionnels concernés impliqués dans la lutte contre la rage.","All professionals are aware of the relevant case definition for rabies","Ministère de la santé",2,"• Définition du cas de rage humaine publiée et diffusée à tous les professionnels concernés.\n• Mécanisme mis en place permettant d'assurer que les nouveaux professionnels reçoivent la définition de cas.","","","","Partager la définition du cas de rage humaine avec tous les professionnels concernés et veiller à ce que tout nouveau professionnel reçoive à l'avenir la définition du cas."]
[115,"LEG","LEG-Cad-1-5","Cadre légal",1,5,"Existe-t-il une législation nationale relative à la prévention et à la lutte contre la rage ?","Par exemple : les journaux gouvernementaux ; une loi sur les animaux ; des lois sur la vaccination obligatoire ; etc.\n\nVous ne pouvez PAS répondre « Oui » si votre législation ne concerne que l'abattage des chiens.\n\nTitre du cadre législatif et année d'adoption ?","KEY",{"$f":"IFERROR(INDEX('Data coll & an'!$F$5:$F$50,MATCH($C116,'Data coll & an'!$A$5:$A$50,0)),IFERROR(INDEX('Prev & Ctrl'!$F$5:$F$50,MATCH($C116,'Prev & Ctrl'!$A$5:$A$50,0)),IFERROR(INDEX('Lab dx'!$F$5:$F$50,MATCH($C116,'Lab dx'!$A$5:$A$50,0)),IFERROR(INDEX('Dog popn'!$F$5:$F$50,MATCH($C116,'Dog popn'!$A$5:$A$50,0)),IFERROR(INDEX(IEC!$F$5:$F$50,MATCH($C116,IEC!$A$5:$A$50,0)),IFERROR(INDEX('Cross-cutting issues'!$F$5:$F$50,MATCH($C116,'Cross-cutting issues'!$A$5:$A$50,0)),IFERROR(INDEX(Legislation!$F$5:$F$50,MATCH($C116,Legislation!$A$5:$A$50,0)),\"\")))))))","v":1},{"$f":"IFERROR(INDEX('Data coll & an'!$G$5:$G$50,MATCH($C116,'Data coll & an'!$A$5:$A$50,0)),IFERROR(INDEX('Prev & Ctrl'!$G$5:$G$50,MATCH($C116,'Prev & Ctrl'!$A$5:$A$50,0)),IFERROR(INDEX('Lab dx'!$G$5:$G$50,MATCH($C116,'Lab dx'!$A$5:$A$50,0)),IFERROR(INDEX('Dog popn'!$G$5:$G$50,MATCH($C116,'Dog popn'!$A$5:$A$50,0)),IFERROR(INDEX(IEC!$G$5:$G$50,MATCH($C116,IEC!$A$5:$A$50,0)),IFERROR(INDEX('Cross-cutting issues'!$G$5:$G$50,MATCH($C116,'Cross-cutting issues'!$A$5:$A$50,0)),IFERROR(INDEX(Legislation!$G$5:$G$50,MATCH($C116,Legislation!$A$5:$A$50,0)),\"\")))))))","v":0},"3.2. Legislation","http://caninerabiesblueprint.org/3-2-Legislation?lang=en",null,null,null,null,null,null,null,null,"• Identifier toute législation existante relative à la lutte contre la rage, à la gestion et au bien-être des chiens, et aux maladies négligées ou zoonotiques dans votre pays ;\n• Déterminer si l'une des législations existantes peut s'appliquer à la lutte contre la rage, et si elle doit être adaptée ;\n• Déterminer quelle législation fait défaut dans votre pays en se basant sur des exemples d'autres pays ;\n• Prendre contact avec l'autorité législative compétente concernant la modification ou l'inclusion de la législation identifiée dans la législation nationale.","All possible relevant legislation regarding rabies is in place;","Ministère de l’agriculture;\nMinistère de la santé",3,"• Examen complet réalisé de la législation nationale existante en matière de prévention et de lutte contre la rage.\n• Lacunes identifiées et recommandations rédigées en vue d'amendements législatifs ou d'une nouvelle législation.\n• Mobilisation documentée des autorités législatives en vue de modifier ou d'adopter les lois nécessaires.\n• Législation actualisée relative à la rage finalisée et publiée, avec diffusion à toutes les parties prenantes.","","","","Adopter une législation nationale relative à la prévention et à la lutte contre la rage."]
[116,"LEG","LEG-Cad-1-6","Cadre légal",1,6,"S'il existe une législation, a-t-elle été révisée et mise à jour (si nécessaire) ?","Si la législation est récente ou nouvelle et appropriée, vous pouvez répondre “Oui”. ",null,{"$f":"IFERROR(INDEX('Data coll & an'!$F$5:$F$50,MATCH($C117,'Data coll & an'!$A$5:$A$50,0)),IFERROR(INDEX('Prev & Ctrl'!$F$5:$F$50,MATCH($C117,'Prev & Ctrl'!$A$5:$A$50,0)),IFERROR(INDEX('Lab dx'!$F$5:$F$50,MATCH($C117,'Lab dx'!$A$5:$A$50,0)),IFERROR(INDEX('Dog popn'!$F$5:$F$50,MATCH($C117,'Dog popn'!$A$5:$A$50,0)),IFERROR(INDEX(IEC!$F$5:$F$50,MATCH($C117,IEC!$A$5:$A$50,0)),IFERROR(INDEX('Cross-cutting issues'!$F$5:$F$50,MATCH($C117,'Cross-cutting issues'!$A$5:$A$50,0)),IFERROR(INDEX(Legislation!$F$5:$F$50,MATCH($C117,Legislation!$A$5:$A$50,0)),\"\")))))))","v":1},{"$f":"IFERROR(INDEX('Data coll & an'!$G$5:$G$50,MATCH($C117,'Data coll & an'!$A$5:$A$50,0)),IFERROR(INDEX('Prev & Ctrl'!$G$5:$G$50,MATCH($C117,'Prev & Ctrl'!$A$5:$A$50,0)),IFERROR(INDEX('Lab dx'!$G$5:$G$50,MATCH($C117,'Lab dx'!$A$5:$A$50,0)),IFERROR(INDEX('Dog popn'!$G$5:$G$50,MATCH($C117,'Dog popn'!$A$5:$A$50,0)),IFERROR(INDEX(IEC!$G$5:$G$50,MATCH($C117,IEC!$A$5:$A$50,0)),IFERROR(INDEX('Cross-cutting issues'!$G$5:$G$50,MATCH($C117,'Cross-cutting issues'!$A$5:$A$50,0)),IFERROR(INDEX(Legislation!$G$5:$G$50,MATCH($C117,Legislation!$A$5:$A$50,0)),\"\")))))))","v":0},"3.2. Legislation","http://caninerabiesblueprint.org/3-2-Legislation?lang=en",null,null,null,null,null,null,null,null,"• Évaluer la législation existante afin de déterminer si elle doit être adaptée ou mise à jour ;\n• Suivre une procédure régulière pour que la législation pertinente soit mise à jour et approuvée (si nécessaire) ;\n• Partager la législation mise à jour avec tous les professionnels concernés.","All legislation has been reviewed, possibly updated and endorsed for potential to be enforced","Ministère de l’agriculture;\nMinistère de la santé",3,"• Document de révision de la législation mettant en évidence les domaines nécessitant des mises à jour.\n• Projet de législation révisée pour la prévention et le contrôle de la rage.\n• Processus d'approbation et de validation documenté, y compris les procès-verbaux des réunions et les approbations.\n• Document final sur la législation mise à jour.\n• Rapport de diffusion garantissant que la législation mise à jour est communiquée à tous les professionnels concernés.","","","","Réviser et mettre à jour (si nécessaire) la législation nationale relative à la prévention et à la lutte contre la rage."]
[117,"LEG","LEG-Cad-1-7","Cadre légal",1,7,"La rage est-elle devenue une maladie à déclaration obligatoire chez les animaux ? "," ","KEY",{"$f":"IFERROR(INDEX('Data coll & an'!$F$5:$F$50,MATCH($C118,'Data coll & an'!$A$5:$A$50,0)),IFERROR(INDEX('Prev & Ctrl'!$F$5:$F$50,MATCH($C118,'Prev & Ctrl'!$A$5:$A$50,0)),IFERROR(INDEX('Lab dx'!$F$5:$F$50,MATCH($C118,'Lab dx'!$A$5:$A$50,0)),IFERROR(INDEX('Dog popn'!$F$5:$F$50,MATCH($C118,'Dog popn'!$A$5:$A$50,0)),IFERROR(INDEX(IEC!$F$5:$F$50,MATCH($C118,IEC!$A$5:$A$50,0)),IFERROR(INDEX('Cross-cutting issues'!$F$5:$F$50,MATCH($C118,'Cross-cutting issues'!$A$5:$A$50,0)),IFERROR(INDEX(Legislation!$F$5:$F$50,MATCH($C118,Legislation!$A$5:$A$50,0)),\"\")))))))","v":1},{"$f":"IFERROR(INDEX('Data coll & an'!$G$5:$G$50,MATCH($C118,'Data coll & an'!$A$5:$A$50,0)),IFERROR(INDEX('Prev & Ctrl'!$G$5:$G$50,MATCH($C118,'Prev & Ctrl'!$A$5:$A$50,0)),IFERROR(INDEX('Lab dx'!$G$5:$G$50,MATCH($C118,'Lab dx'!$A$5:$A$50,0)),IFERROR(INDEX('Dog popn'!$G$5:$G$50,MATCH($C118,'Dog popn'!$A$5:$A$50,0)),IFERROR(INDEX(IEC!$G$5:$G$50,MATCH($C118,IEC!$A$5:$A$50,0)),IFERROR(INDEX('Cross-cutting issues'!$G$5:$G$50,MATCH($C118,'Cross-cutting issues'!$A$5:$A$50,0)),IFERROR(INDEX(Legislation!$G$5:$G$50,MATCH($C118,Legislation!$A$5:$A$50,0)),\"\")))))))","v":0},"3.2. Legislation","http://caninerabiesblueprint.org/3-2-Legislation?lang=en","3.2.3-Why-does-rabies-need-to-be-notifiable","http://caninerabiesblueprint.org/3-2-3-Why-does-rabies-need-to-be-a?lang=en","OIE Terrestrial Animal Health Code","http://caninerabiesblueprint.org/OIE-Terrestrial-Animal-Health-Code","3.2.9-How-to-make-rabies-notifiable","http://caninerabiesblueprint.org/3-2-9-How-do-I-make-rabies-a?lang=en",null,null,"• Rédiger un document de justification soulignant le fardeau économique et de santé publique de la rage animale, dans lequel vous exposez également les avantages à faire de la rage animale une maladie à déclaration obligatoire ;\n• Plaider pour un changement législatif en utilisant le document de justification ;\n• Travailler avec des experts juridiques pour rédiger les amendements nécessaires aux lois sur la santé publique ou les maladies animales ;\n• Obtenir un soutien politique et institutionnel pour faire de la rage animale une maladie à déclaration obligatoire ;\n• Veiller à ce que le gouvernement publie une déclaration officielle reconnaissant la rage animale comme une maladie à déclaration obligatoire ;\n• Publier la déclaration dans le journal national et d'autres canaux de communication officiels.","Rabies is a notifiable disease for animals in the country","Ministère de l’agriculture",3,"• Document de justification soulignant le poids économique et de santé publique de la rage animale.\n• Proposition législative et actions de sensibilisation visant à reconnaître la rage animale comme une maladie à déclaration obligatoire.\n• Déclaration officielle reconnaissant la rage animale comme une maladie à déclaration obligatoire et diffusion publique.","","","","Faire de la rage animale une maladie à déclaration obligatoire dans le pays."]
[118,"LEG","LEG-Cad-1-8","Cadre légal",1,8,"La rage est-elle devenue une maladie à déclaration obligatoire chez les l’humain ?"," ","KEY",{"$f":"IFERROR(INDEX('Data coll & an'!$F$5:$F$50,MATCH($C119,'Data coll & an'!$A$5:$A$50,0)),IFERROR(INDEX('Prev & Ctrl'!$F$5:$F$50,MATCH($C119,'Prev & Ctrl'!$A$5:$A$50,0)),IFERROR(INDEX('Lab dx'!$F$5:$F$50,MATCH($C119,'Lab dx'!$A$5:$A$50,0)),IFERROR(INDEX('Dog popn'!$F$5:$F$50,MATCH($C119,'Dog popn'!$A$5:$A$50,0)),IFERROR(INDEX(IEC!$F$5:$F$50,MATCH($C119,IEC!$A$5:$A$50,0)),IFERROR(INDEX('Cross-cutting issues'!$F$5:$F$50,MATCH($C119,'Cross-cutting issues'!$A$5:$A$50,0)),IFERROR(INDEX(Legislation!$F$5:$F$50,MATCH($C119,Legislation!$A$5:$A$50,0)),\"\")))))))","v":1},{"$f":"IFERROR(INDEX('Data coll & an'!$G$5:$G$50,MATCH($C119,'Data coll & an'!$A$5:$A$50,0)),IFERROR(INDEX('Prev & Ctrl'!$G$5:$G$50,MATCH($C119,'Prev & Ctrl'!$A$5:$A$50,0)),IFERROR(INDEX('Lab dx'!$G$5:$G$50,MATCH($C119,'Lab dx'!$A$5:$A$50,0)),IFERROR(INDEX('Dog popn'!$G$5:$G$50,MATCH($C119,'Dog popn'!$A$5:$A$50,0)),IFERROR(INDEX(IEC!$G$5:$G$50,MATCH($C119,IEC!$A$5:$A$50,0)),IFERROR(INDEX('Cross-cutting issues'!$G$5:$G$50,MATCH($C119,'Cross-cutting issues'!$A$5:$A$50,0)),IFERROR(INDEX(Legislation!$G$5:$G$50,MATCH($C119,Legislation!$A$5:$A$50,0)),\"\")))))))","v":0},"3.2. Legislation","http://caninerabiesblueprint.org/3-2-Legislation?lang=en","3.2.3-Why-does-rabies-need-to-be-notifiable","http://caninerabiesblueprint.org/3-2-3-Why-does-rabies-need-to-be-a?lang=en","WHO expert consultation on rabies","http://caninerabiesblueprint.org/WHO-expert-consultation-on-rabies","3.2.9-How-to-make-rabies-notifiable","http://caninerabiesblueprint.org/3-2-9-How-do-I-make-rabies-a?lang=en",null,null,"• Rédiger un document de justification soulignant le fardeau économique et de santé publique de la rage humaine, dans lequel vous exposez également les avantages de faire de la rage humaine une maladie à déclaration obligatoire ;\n• Plaider pour un changement législatif en utilisant le document de justification ;\n• Travailler avec des experts juridiques pour rédiger les amendements nécessaires aux lois de santé publique ;\n• Obtenir un soutien politique et institutionnel pour faire de la rage humaine une maladie à déclaration obligatoire ;\n• S'assurer que le gouvernement publie une déclaration officielle reconnaissant la rage humaine comme une maladie à déclaration obligatoire ;\n• Publier la déclaration dans le journal national et dans d'autres canaux de communication officiels.","Rabies is a notifiable disease for humans in the country","Ministère de la santé",3,"• Document de justification soulignant le poids économique et de santé publique de la rage humaine.\n• Proposition législative et actions de sensibilisation visant à reconnaître la rage humaine comme une maladie à déclaration obligatoire.\n• Déclaration officielle reconnaissant la rage humaine comme une maladie à déclaration obligatoire et diffusion publique.","","","","Faire de la rage humaine une maladie à déclaration obligatoire dans le pays."]
[119,"LEG","LEG-Cad-1-9","Cadre légal",1,9,"La législation prévoit-elle des mesures d'intervention en cas d'épidémie de rage ?"," ",null,{"$f":"IFERROR(INDEX('Data coll & an'!$F$5:$F$50,MATCH($C120,'Data coll & an'!$A$5:$A$50,0)),IFERROR(INDEX('Prev & Ctrl'!$F$5:$F$50,MATCH($C120,'Prev & Ctrl'!$A$5:$A$50,0)),IFERROR(INDEX('Lab dx'!$F$5:$F$50,MATCH($C120,'Lab dx'!$A$5:$A$50,0)),IFERROR(INDEX('Dog popn'!$F$5:$F$50,MATCH($C120,'Dog popn'!$A$5:$A$50,0)),IFERROR(INDEX(IEC!$F$5:$F$50,MATCH($C120,IEC!$A$5:$A$50,0)),IFERROR(INDEX('Cross-cutting issues'!$F$5:$F$50,MATCH($C120,'Cross-cutting issues'!$A$5:$A$50,0)),IFERROR(INDEX(Legislation!$F$5:$F$50,MATCH($C120,Legislation!$A$5:$A$50,0)),\"\")))))))","v":1},{"$f":"IFERROR(INDEX('Data coll & an'!$G$5:$G$50,MATCH($C120,'Data coll & an'!$A$5:$A$50,0)),IFERROR(INDEX('Prev & Ctrl'!$G$5:$G$50,MATCH($C120,'Prev & Ctrl'!$A$5:$A$50,0)),IFERROR(INDEX('Lab dx'!$G$5:$G$50,MATCH($C120,'Lab dx'!$A$5:$A$50,0)),IFERROR(INDEX('Dog popn'!$G$5:$G$50,MATCH($C120,'Dog popn'!$A$5:$A$50,0)),IFERROR(INDEX(IEC!$G$5:$G$50,MATCH($C120,IEC!$A$5:$A$50,0)),IFERROR(INDEX('Cross-cutting issues'!$G$5:$G$50,MATCH($C120,'Cross-cutting issues'!$A$5:$A$50,0)),IFERROR(INDEX(Legislation!$G$5:$G$50,MATCH($C120,Legislation!$A$5:$A$50,0)),\"\")))))))","v":0},null,null,null,null,null,null,null,null,null,null,"• Identifier la législation pertinente concernant la réponse à un foyer de rage à partir d'autres sources ;\n• À l'aide des documents identifiés, présenter un argumentaire aux parties prenantes concernées pour que la réponse à un foyer soit incluse dans la législation ;\n• Suivre une procédure régulière pour s'assurer que la réponse à un foyer de rage est incluse dans la législation existante.","Legislation on rabies outbreak response available in the country;","Ministère de l’agriculture;\nMinistère de la santé",3,"• Législation existante d'autres pays en matière d'intervention en cas d'épidémie examinée.\n•  Dispositions juridiques rédigées en vue d'inclure la réponse aux épidémies de rage dans la législation nationale.\n• Engagement des parties prenantes et du processus d'approbation officielle documentés.","","","","Modifier la législation pour y inclure des mesures de lutte contre les flambées de rage."]
[120,"LEG","LEG-Cad-2-10","Cadre légal",2,10,"La législation relative aux vaccins homologués au niveau national reflète-t-elle les lignes directrices internationales ?","La législation nationale doit garantir que les vaccins contre la rage humaine sont des vaccins préqualifiés par l’OMS et que les vaccins contre la rage animale sont conformes aux normes de l’OMSA pour les vaccins de haute qualité.",null,{"$f":"IFERROR(INDEX('Data coll & an'!$F$5:$F$50,MATCH($C121,'Data coll & an'!$A$5:$A$50,0)),IFERROR(INDEX('Prev & Ctrl'!$F$5:$F$50,MATCH($C121,'Prev & Ctrl'!$A$5:$A$50,0)),IFERROR(INDEX('Lab dx'!$F$5:$F$50,MATCH($C121,'Lab dx'!$A$5:$A$50,0)),IFERROR(INDEX('Dog popn'!$F$5:$F$50,MATCH($C121,'Dog popn'!$A$5:$A$50,0)),IFERROR(INDEX(IEC!$F$5:$F$50,MATCH($C121,IEC!$A$5:$A$50,0)),IFERROR(INDEX('Cross-cutting issues'!$F$5:$F$50,MATCH($C121,'Cross-cutting issues'!$A$5:$A$50,0)),IFERROR(INDEX(Legislation!$F$5:$F$50,MATCH($C121,Legislation!$A$5:$A$50,0)),\"\")))))))","v":0},{"$f":"IFERROR(INDEX('Data coll & an'!$G$5:$G$50,MATCH($C121,'Data coll & an'!$A$5:$A$50,0)),IFERROR(INDEX('Prev & Ctrl'!$G$5:$G$50,MATCH($C121,'Prev & Ctrl'!$A$5:$A$50,0)),IFERROR(INDEX('Lab dx'!$G$5:$G$50,MATCH($C121,'Lab dx'!$A$5:$A$50,0)),IFERROR(INDEX('Dog popn'!$G$5:$G$50,MATCH($C121,'Dog popn'!$A$5:$A$50,0)),IFERROR(INDEX(IEC!$G$5:$G$50,MATCH($C121,IEC!$A$5:$A$50,0)),IFERROR(INDEX('Cross-cutting issues'!$G$5:$G$50,MATCH($C121,'Cross-cutting issues'!$A$5:$A$50,0)),IFERROR(INDEX(Legislation!$G$5:$G$50,MATCH($C121,Legislation!$A$5:$A$50,0)),\"\")))))))","v":"vaccin animal (est importe) repond aux normes internationales en cas de manque utilisation de vaccin fabrique par l'insitut Pasteur. Le vaccin pour humains produit en Algerie ne repond pas aux normes OMS (utilise a 30%), vaccin humain reponds aux normes a 70%. "},null,null,null,null,null,null,null,null,null,null,"• Identifier les spécifications pour l'homologation de vaccins antirabiques de haute qualité dans les lignes directrices internationales ;\n• Identifier et réviser la législation relative à l'homologation nationale des vaccins ;\n• Adapter la législation relative à l'homologation nationale des vaccins pour l'aligner sur les recommandations ou lignes directrices internationales, en veillant à ce qu'elle mentionne l'homologation de vaccins antirabiques de haute qualité (si nécessaire) ;\n• Finaliser et approuver la législation nationale révisée \n• Partager la législation mise à jour avec les professionnels concernés.","National legislation regarding licenced vaccines reflects that of international guidelines and any alterations to national legislation are communicated with relevant professionals;","Ministère de l’agriculture (vaccin antirabique animal); \nMinistère de la santé (vaccin antirabique humain)",5,"• Analyse comparative réalisée des réglementations nationales en matière d'homologation des vaccins antirabiques avec les lignes directrices internationales.\n• Législation nationale révisée et alignée pour garantir l'homologation de vaccins antirabiques de haute qualité.\n• Réglementation actualisée en matière d'homologation officiellement approuvée et diffusée.","","","","Adapter la législation relative aux vaccins homologués au niveau national pour tenir compte des lignes directrices internationales."]
[121,"LEG","LEG-Cad-3-11","Cadre légal",3,11,"Existe-t-il une législation comportant des dispositions relatives aux mouvements internationaux de chiens (y compris la vaccination obligatoire de ces chiens) ?"," ","KEY",{"$f":"IFERROR(INDEX('Data coll & an'!$F$5:$F$50,MATCH($C122,'Data coll & an'!$A$5:$A$50,0)),IFERROR(INDEX('Prev & Ctrl'!$F$5:$F$50,MATCH($C122,'Prev & Ctrl'!$A$5:$A$50,0)),IFERROR(INDEX('Lab dx'!$F$5:$F$50,MATCH($C122,'Lab dx'!$A$5:$A$50,0)),IFERROR(INDEX('Dog popn'!$F$5:$F$50,MATCH($C122,'Dog popn'!$A$5:$A$50,0)),IFERROR(INDEX(IEC!$F$5:$F$50,MATCH($C122,IEC!$A$5:$A$50,0)),IFERROR(INDEX('Cross-cutting issues'!$F$5:$F$50,MATCH($C122,'Cross-cutting issues'!$A$5:$A$50,0)),IFERROR(INDEX(Legislation!$F$5:$F$50,MATCH($C122,Legislation!$A$5:$A$50,0)),\"\")))))))","v":1},{"$f":"IFERROR(INDEX('Data coll & an'!$G$5:$G$50,MATCH($C122,'Data coll & an'!$A$5:$A$50,0)),IFERROR(INDEX('Prev & Ctrl'!$G$5:$G$50,MATCH($C122,'Prev & Ctrl'!$A$5:$A$50,0)),IFERROR(INDEX('Lab dx'!$G$5:$G$50,MATCH($C122,'Lab dx'!$A$5:$A$50,0)),IFERROR(INDEX('Dog popn'!$G$5:$G$50,MATCH($C122,'Dog popn'!$A$5:$A$50,0)),IFERROR(INDEX(IEC!$G$5:$G$50,MATCH($C122,IEC!$A$5:$A$50,0)),IFERROR(INDEX('Cross-cutting issues'!$G$5:$G$50,MATCH($C122,'Cross-cutting issues'!$A$5:$A$50,0)),IFERROR(INDEX(Legislation!$G$5:$G$50,MATCH($C122,Legislation!$A$5:$A$50,0)),\"\")))))))","v":0},"General-guide-on-veterinary legislation","http://caninerabiesblueprint.org/General-guide-on-how-to-construct?lang=en","3.2.11- laws-and-by-laws","http://caninerabiesblueprint.org/3-2-11-What-laws-and-by-laws-may?lang=en",null,null,null,null,null,null,"• Identifier la législation pertinente concernant la vaccination obligatoire et les mouvements internationaux de chiens à partir d'autres pays ;\n• Faire pression pour que la vaccination obligatoire et le contrôle et la gestion stricte des mouvements internationaux de chiens soient inclus dans la législation ;\n• Mettre à jour la législation actuelle pour s'assurer que la vaccination obligatoire et les mouvements internationaux de chiens sont inclus ;\n• Suivre une procédure régulière pour s'assurer que la vaccination obligatoire et les mouvements internationaux des chiens sont inclus dans la législation ;\n• Finaliser et diffuser toute modification de la législation pour s'assurer que tous les professionnels concernés et le public (par exemple, les propriétaires de chiens) sont au courant des changements.","National legislation includes the compulsory vaccination and international movement of dogs and this is known to all professionals in rabies control","Ministère de l’agriculture",8,"• Législation examinée et lacunes identifiées en ce qui concerne les mouvements et la vaccination des chiens.\n• Dispositions juridiques relatives à la vaccination obligatoire des chiens et aux mouvements internationaux de chiens rédigées et approuvées.\n• Processus d'amendement législatif documenté et diffusion auprès des parties prenantes concernées et du public.","","","","Adopter une législation comprenant des spécifications sur les mouvements internationaux de chiens (y compris la vaccination obligatoire de ces chiens)."]
[122,"LEG","LEG-Cad-3-12","Cadre légal",3,12,"La législation pertinente est-elle appliquée au niveau national ?","Vous ne pouvez répondre « Oui » que si la législation qui existe dans le pays est réellement mise en œuvre et appliquée au niveau national.",null,{"$f":"IFERROR(INDEX('Data coll & an'!$F$5:$F$50,MATCH($C123,'Data coll & an'!$A$5:$A$50,0)),IFERROR(INDEX('Prev & Ctrl'!$F$5:$F$50,MATCH($C123,'Prev & Ctrl'!$A$5:$A$50,0)),IFERROR(INDEX('Lab dx'!$F$5:$F$50,MATCH($C123,'Lab dx'!$A$5:$A$50,0)),IFERROR(INDEX('Dog popn'!$F$5:$F$50,MATCH($C123,'Dog popn'!$A$5:$A$50,0)),IFERROR(INDEX(IEC!$F$5:$F$50,MATCH($C123,IEC!$A$5:$A$50,0)),IFERROR(INDEX('Cross-cutting issues'!$F$5:$F$50,MATCH($C123,'Cross-cutting issues'!$A$5:$A$50,0)),IFERROR(INDEX(Legislation!$F$5:$F$50,MATCH($C123,Legislation!$A$5:$A$50,0)),\"\")))))))","v":1},{"$f":"IFERROR(INDEX('Data coll & an'!$G$5:$G$50,MATCH($C123,'Data coll & an'!$A$5:$A$50,0)),IFERROR(INDEX('Prev & Ctrl'!$G$5:$G$50,MATCH($C123,'Prev & Ctrl'!$A$5:$A$50,0)),IFERROR(INDEX('Lab dx'!$G$5:$G$50,MATCH($C123,'Lab dx'!$A$5:$A$50,0)),IFERROR(INDEX('Dog popn'!$G$5:$G$50,MATCH($C123,'Dog popn'!$A$5:$A$50,0)),IFERROR(INDEX(IEC!$G$5:$G$50,MATCH($C123,IEC!$A$5:$A$50,0)),IFERROR(INDEX('Cross-cutting issues'!$G$5:$G$50,MATCH($C123,'Cross-cutting issues'!$A$5:$A$50,0)),IFERROR(INDEX(Legislation!$G$5:$G$50,MATCH($C123,Legislation!$A$5:$A$50,0)),\"\")))))))","v":0},null,null,null,null,null,null,null,null,null,null,"• Déterminer si les professionnels de la lutte contre la rage connaissent la législation pertinente ;\n• Déterminer si les professionnels appliquent la législation ;\n• Identifier des méthodes pour améliorer l'application de la législation en consultation avec les organes juridiques compétents ;\n• Veiller à ce que tous les professionnels soient informés de la législation pertinente et de leur responsabilité dans l'application de la législation.","The relevant legislation regarding rabies control is known to all professionals and is enforced;","Ministère de la justice",9,"• Rapport d'évaluation sur la connaissance et l'application de la législation relative à la rage par les professionnels.\n• Stratégies élaborées pour améliorer l'application de la législation par le biais de consultations juridiques.\n• Obligations légales et responsabilités en matière d'application de la loi diffusées auprès de tous les professionnels concernés.\n• Mécanismes permanents de suivi et d'information mis en place pour garantir une application cohérente de la législation sur la rage.","","","","Faire appliquer la législation pertinente au niveau national."]
[123,null,"---",null,null,null,null,null,null,{"$f":"IFERROR(INDEX('Data coll & an'!$F$5:$F$50,MATCH($C124,'Data coll & an'!$A$5:$A$50,0)),IFERROR(INDEX('Prev & Ctrl'!$F$5:$F$50,MATCH($C124,'Prev & Ctrl'!$A$5:$A$50,0)),IFERROR(INDEX('Lab dx'!$F$5:$F$50,MATCH($C124,'Lab dx'!$A$5:$A$50,0)),IFERROR(INDEX('Dog popn'!$F$5:$F$50,MATCH($C124,'Dog popn'!$A$5:$A$50,0)),IFERROR(INDEX(IEC!$F$5:$F$50,MATCH($C124,IEC!$A$5:$A$50,0)),IFERROR(INDEX('Cross-cutting issues'!$F$5:$F$50,MATCH($C124,'Cross-cutting issues'!$A$5:$A$50,0)),IFERROR(INDEX(Legislation!$F$5:$F$50,MATCH($C124,Legislation!$A$5:$A$50,0)),\"\")))))))","v":""},{"$f":"IFERROR(INDEX('Data coll & an'!$G$5:$G$50,MATCH($C124,'Data coll & an'!$A$5:$A$50,0)),IFERROR(INDEX('Prev & Ctrl'!$G$5:$G$50,MATCH($C124,'Prev & Ctrl'!$A$5:$A$50,0)),IFERROR(INDEX('Lab dx'!$G$5:$G$50,MATCH($C124,'Lab dx'!$A$5:$A$50,0)),IFERROR(INDEX('Dog popn'!$G$5:$G$50,MATCH($C124,'Dog popn'!$A$5:$A$50,0)),IFERROR(INDEX(IEC!$G$5:$G$50,MATCH($C124,IEC!$A$5:$A$50,0)),IFERROR(INDEX('Cross-cutting issues'!$G$5:$G$50,MATCH($C124,'Cross-cutting issues'!$A$5:$A$50,0)),IFERROR(INDEX(Legislation!$G$5:$G$50,MATCH($C124,Legislation!$A$5:$A$50,0)),\"\")))))))","v":""},null,null,null,null,null,null,null,null,null,null,null,null,null,null,null,"","",""]
[124,null,"---",null,null,null,null,null,null,{"$f":"IFERROR(INDEX('Data coll & an'!$F$5:$F$50,MATCH($C125,'Data coll & an'!$A$5:$A$50,0)),IFERROR(INDEX('Prev & Ctrl'!$F$5:$F$50,MATCH($C125,'Prev & Ctrl'!$A$5:$A$50,0)),IFERROR(INDEX('Lab dx'!$F$5:$F$50,MATCH($C125,'Lab dx'!$A$5:$A$50,0)),IFERROR(INDEX('Dog popn'!$F$5:$F$50,MATCH($C125,'Dog popn'!$A$5:$A$50,0)),IFERROR(INDEX(IEC!$F$5:$F$50,MATCH($C125,IEC!$A$5:$A$50,0)),IFERROR(INDEX('Cross-cutting issues'!$F$5:$F$50,MATCH($C125,'Cross-cutting issues'!$A$5:$A$50,0)),IFERROR(INDEX(Legislation!$F$5:$F$50,MATCH($C125,Legislation!$A$5:$A$50,0)),\"\")))))))","v":""},{"$f":"IFERROR(INDEX('Data coll & an'!$G$5:$G$50,MATCH($C125,'Data coll & an'!$A$5:$A$50,0)),IFERROR(INDEX('Prev & Ctrl'!$G$5:$G$50,MATCH($C125,'Prev & Ctrl'!$A$5:$A$50,0)),IFERROR(INDEX('Lab dx'!$G$5:$G$50,MATCH($C125,'Lab dx'!$A$5:$A$50,0)),IFERROR(INDEX('Dog popn'!$G$5:$G$50,MATCH($C125,'Dog popn'!$A$5:$A$50,0)),IFERROR(INDEX(IEC!$G$5:$G$50,MATCH($C125,IEC!$A$5:$A$50,0)),IFERROR(INDEX('Cross-cutting issues'!$G$5:$G$50,MATCH($C125,'Cross-cutting issues'!$A$5:$A$50,0)),IFERROR(INDEX(Legislation!$G$5:$G$50,MATCH($C125,Legislation!$A$5:$A$50,0)),\"\")))))))","v":""},null,null,null,null,null,null,null,null,null,null,null,null,null,null,null,"","",""]
[125,null,"---",null,null,null,null,null,null,{"$f":"IFERROR(INDEX('Data coll & an'!$F$5:$F$50,MATCH($C126,'Data coll & an'!$A$5:$A$50,0)),IFERROR(INDEX('Prev & Ctrl'!$F$5:$F$50,MATCH($C126,'Prev & Ctrl'!$A$5:$A$50,0)),IFERROR(INDEX('Lab dx'!$F$5:$F$50,MATCH($C126,'Lab dx'!$A$5:$A$50,0)),IFERROR(INDEX('Dog popn'!$F$5:$F$50,MATCH($C126,'Dog popn'!$A$5:$A$50,0)),IFERROR(INDEX(IEC!$F$5:$F$50,MATCH($C126,IEC!$A$5:$A$50,0)),IFERROR(INDEX('Cross-cutting issues'!$F$5:$F$50,MATCH($C126,'Cross-cutting issues'!$A$5:$A$50,0)),IFERROR(INDEX(Legislation!$F$5:$F$50,MATCH($C126,Legislation!$A$5:$A$50,0)),\"\")))))))","v":""},{"$f":"IFERROR(INDEX('Data coll & an'!$G$5:$G$50,MATCH($C126,'Data coll & an'!$A$5:$A$50,0)),IFERROR(INDEX('Prev & Ctrl'!$G$5:$G$50,MATCH($C126,'Prev & Ctrl'!$A$5:$A$50,0)),IFERROR(INDEX('Lab dx'!$G$5:$G$50,MATCH($C126,'Lab dx'!$A$5:$A$50,0)),IFERROR(INDEX('Dog popn'!$G$5:$G$50,MATCH($C126,'Dog popn'!$A$5:$A$50,0)),IFERROR(INDEX(IEC!$G$5:$G$50,MATCH($C126,IEC!$A$5:$A$50,0)),IFERROR(INDEX('Cross-cutting issues'!$G$5:$G$50,MATCH($C126,'Cross-cutting issues'!$A$5:$A$50,0)),IFERROR(INDEX(Legislation!$G$5:$G$50,MATCH($C126,Legislation!$A$5:$A$50,0)),\"\")))))))","v":""},null,null,null,null,null,null,null,null,null,null,null,null,null,null,null,"","",""]
[126,null,"---",null,null,null,null,null,null,{"$f":"IFERROR(INDEX('Data coll & an'!$F$5:$F$50,MATCH($C127,'Data coll & an'!$A$5:$A$50,0)),IFERROR(INDEX('Prev & Ctrl'!$F$5:$F$50,MATCH($C127,'Prev & Ctrl'!$A$5:$A$50,0)),IFERROR(INDEX('Lab dx'!$F$5:$F$50,MATCH($C127,'Lab dx'!$A$5:$A$50,0)),IFERROR(INDEX('Dog popn'!$F$5:$F$50,MATCH($C127,'Dog popn'!$A$5:$A$50,0)),IFERROR(INDEX(IEC!$F$5:$F$50,MATCH($C127,IEC!$A$5:$A$50,0)),IFERROR(INDEX('Cross-cutting issues'!$F$5:$F$50,MATCH($C127,'Cross-cutting issues'!$A$5:$A$50,0)),IFERROR(INDEX(Legislation!$F$5:$F$50,MATCH($C127,Legislation!$A$5:$A$50,0)),\"\")))))))","v":""},{"$f":"IFERROR(INDEX('Data coll & an'!$G$5:$G$50,MATCH($C127,'Data coll & an'!$A$5:$A$50,0)),IFERROR(INDEX('Prev & Ctrl'!$G$5:$G$50,MATCH($C127,'Prev & Ctrl'!$A$5:$A$50,0)),IFERROR(INDEX('Lab dx'!$G$5:$G$50,MATCH($C127,'Lab dx'!$A$5:$A$50,0)),IFERROR(INDEX('Dog popn'!$G$5:$G$50,MATCH($C127,'Dog popn'!$A$5:$A$50,0)),IFERROR(INDEX(IEC!$G$5:$G$50,MATCH($C127,IEC!$A$5:$A$50,0)),IFERROR(INDEX('Cross-cutting issues'!$G$5:$G$50,MATCH($C127,'Cross-cutting issues'!$A$5:$A$50,0)),IFERROR(INDEX(Legislation!$G$5:$G$50,MATCH($C127,Legislation!$A$5:$A$50,0)),\"\")))))))","v":""},null,null,null,null,null,null,null,null,null,null,null,null,null,null,null,"","",""]
[127,null,"---",null,null,null,null,null,null,{"$f":"IFERROR(INDEX('Data coll & an'!$F$5:$F$50,MATCH($C128,'Data coll & an'!$A$5:$A$50,0)),IFERROR(INDEX('Prev & Ctrl'!$F$5:$F$50,MATCH($C128,'Prev & Ctrl'!$A$5:$A$50,0)),IFERROR(INDEX('Lab dx'!$F$5:$F$50,MATCH($C128,'Lab dx'!$A$5:$A$50,0)),IFERROR(INDEX('Dog popn'!$F$5:$F$50,MATCH($C128,'Dog popn'!$A$5:$A$50,0)),IFERROR(INDEX(IEC!$F$5:$F$50,MATCH($C128,IEC!$A$5:$A$50,0)),IFERROR(INDEX('Cross-cutting issues'!$F$5:$F$50,MATCH($C128,'Cross-cutting issues'!$A$5:$A$50,0)),IFERROR(INDEX(Legislation!$F$5:$F$50,MATCH($C128,Legislation!$A$5:$A$50,0)),\"\")))))))","v":""},{"$f":"IFERROR(INDEX('Data coll & an'!$G$5:$G$50,MATCH($C128,'Data coll & an'!$A$5:$A$50,0)),IFERROR(INDEX('Prev & Ctrl'!$G$5:$G$50,MATCH($C128,'Prev & Ctrl'!$A$5:$A$50,0)),IFERROR(INDEX('Lab dx'!$G$5:$G$50,MATCH($C128,'Lab dx'!$A$5:$A$50,0)),IFERROR(INDEX('Dog popn'!$G$5:$G$50,MATCH($C128,'Dog popn'!$A$5:$A$50,0)),IFERROR(INDEX(IEC!$G$5:$G$50,MATCH($C128,IEC!$A$5:$A$50,0)),IFERROR(INDEX('Cross-cutting issues'!$G$5:$G$50,MATCH($C128,'Cross-cutting issues'!$A$5:$A$50,0)),IFERROR(INDEX(Legislation!$G$5:$G$50,MATCH($C128,Legislation!$A$5:$A$50,0)),\"\")))))))","v":""},null,null,null,null,null,null,null,null,null,null,null,null,null,null,null,"","",""]
[128,null,"---",null,null,null,null,null,null,{"$f":"IFERROR(INDEX('Data coll & an'!$F$5:$F$50,MATCH($C129,'Data coll & an'!$A$5:$A$50,0)),IFERROR(INDEX('Prev & Ctrl'!$F$5:$F$50,MATCH($C129,'Prev & Ctrl'!$A$5:$A$50,0)),IFERROR(INDEX('Lab dx'!$F$5:$F$50,MATCH($C129,'Lab dx'!$A$5:$A$50,0)),IFERROR(INDEX('Dog popn'!$F$5:$F$50,MATCH($C129,'Dog popn'!$A$5:$A$50,0)),IFERROR(INDEX(IEC!$F$5:$F$50,MATCH($C129,IEC!$A$5:$A$50,0)),IFERROR(INDEX('Cross-cutting issues'!$F$5:$F$50,MATCH($C129,'Cross-cutting issues'!$A$5:$A$50,0)),IFERROR(INDEX(Legislation!$F$5:$F$50,MATCH($C129,Legislation!$A$5:$A$50,0)),\"\")))))))","v":""},{"$f":"IFERROR(INDEX('Data coll & an'!$G$5:$G$50,MATCH($C129,'Data coll & an'!$A$5:$A$50,0)),IFERROR(INDEX('Prev & Ctrl'!$G$5:$G$50,MATCH($C129,'Prev & Ctrl'!$A$5:$A$50,0)),IFERROR(INDEX('Lab dx'!$G$5:$G$50,MATCH($C129,'Lab dx'!$A$5:$A$50,0)),IFERROR(INDEX('Dog popn'!$G$5:$G$50,MATCH($C129,'Dog popn'!$A$5:$A$50,0)),IFERROR(INDEX(IEC!$G$5:$G$50,MATCH($C129,IEC!$A$5:$A$50,0)),IFERROR(INDEX('Cross-cutting issues'!$G$5:$G$50,MATCH($C129,'Cross-cutting issues'!$A$5:$A$50,0)),IFERROR(INDEX(Legislation!$G$5:$G$50,MATCH($C129,Legislation!$A$5:$A$50,0)),\"\")))))))","v":""},null,null,null,null,null,null,null,null,null,null,null,null,null,null,null,"","",""]
[129,null,"---",null,null,null,null,null,null,{"$f":"IFERROR(INDEX('Data coll & an'!$F$5:$F$50,MATCH($C130,'Data coll & an'!$A$5:$A$50,0)),IFERROR(INDEX('Prev & Ctrl'!$F$5:$F$50,MATCH($C130,'Prev & Ctrl'!$A$5:$A$50,0)),IFERROR(INDEX('Lab dx'!$F$5:$F$50,MATCH($C130,'Lab dx'!$A$5:$A$50,0)),IFERROR(INDEX('Dog popn'!$F$5:$F$50,MATCH($C130,'Dog popn'!$A$5:$A$50,0)),IFERROR(INDEX(IEC!$F$5:$F$50,MATCH($C130,IEC!$A$5:$A$50,0)),IFERROR(INDEX('Cross-cutting issues'!$F$5:$F$50,MATCH($C130,'Cross-cutting issues'!$A$5:$A$50,0)),IFERROR(INDEX(Legislation!$F$5:$F$50,MATCH($C130,Legislation!$A$5:$A$50,0)),\"\")))))))","v":""},{"$f":"IFERROR(INDEX('Data coll & an'!$G$5:$G$50,MATCH($C130,'Data coll & an'!$A$5:$A$50,0)),IFERROR(INDEX('Prev & Ctrl'!$G$5:$G$50,MATCH($C130,'Prev & Ctrl'!$A$5:$A$50,0)),IFERROR(INDEX('Lab dx'!$G$5:$G$50,MATCH($C130,'Lab dx'!$A$5:$A$50,0)),IFERROR(INDEX('Dog popn'!$G$5:$G$50,MATCH($C130,'Dog popn'!$A$5:$A$50,0)),IFERROR(INDEX(IEC!$G$5:$G$50,MATCH($C130,IEC!$A$5:$A$50,0)),IFERROR(INDEX('Cross-cutting issues'!$G$5:$G$50,MATCH($C130,'Cross-cutting issues'!$A$5:$A$50,0)),IFERROR(INDEX(Legislation!$G$5:$G$50,MATCH($C130,Legislation!$A$5:$A$50,0)),\"\")))))))","v":""},null,null,null,null,null,null,null,null,null,null,null,null,null,null,null,"","",""]
[130,null,"---",null,null,null,null,null,null,{"$f":"IFERROR(INDEX('Data coll & an'!$F$5:$F$50,MATCH($C131,'Data coll & an'!$A$5:$A$50,0)),IFERROR(INDEX('Prev & Ctrl'!$F$5:$F$50,MATCH($C131,'Prev & Ctrl'!$A$5:$A$50,0)),IFERROR(INDEX('Lab dx'!$F$5:$F$50,MATCH($C131,'Lab dx'!$A$5:$A$50,0)),IFERROR(INDEX('Dog popn'!$F$5:$F$50,MATCH($C131,'Dog popn'!$A$5:$A$50,0)),IFERROR(INDEX(IEC!$F$5:$F$50,MATCH($C131,IEC!$A$5:$A$50,0)),IFERROR(INDEX('Cross-cutting issues'!$F$5:$F$50,MATCH($C131,'Cross-cutting issues'!$A$5:$A$50,0)),IFERROR(INDEX(Legislation!$F$5:$F$50,MATCH($C131,Legislation!$A$5:$A$50,0)),\"\")))))))","v":""},{"$f":"IFERROR(INDEX('Data coll & an'!$G$5:$G$50,MATCH($C131,'Data coll & an'!$A$5:$A$50,0)),IFERROR(INDEX('Prev & Ctrl'!$G$5:$G$50,MATCH($C131,'Prev & Ctrl'!$A$5:$A$50,0)),IFERROR(INDEX('Lab dx'!$G$5:$G$50,MATCH($C131,'Lab dx'!$A$5:$A$50,0)),IFERROR(INDEX('Dog popn'!$G$5:$G$50,MATCH($C131,'Dog popn'!$A$5:$A$50,0)),IFERROR(INDEX(IEC!$G$5:$G$50,MATCH($C131,IEC!$A$5:$A$50,0)),IFERROR(INDEX('Cross-cutting issues'!$G$5:$G$50,MATCH($C131,'Cross-cutting issues'!$A$5:$A$50,0)),IFERROR(INDEX(Legislation!$G$5:$G$50,MATCH($C131,Legislation!$A$5:$A$50,0)),\"\")))))))","v":""},null,null,null,null,null,null,null,null,null,null,null,null,null,null,null,"","",""]
[131,null,"---",null,null,null,null,null,null,{"$f":"IFERROR(INDEX('Data coll & an'!$F$5:$F$50,MATCH($C132,'Data coll & an'!$A$5:$A$50,0)),IFERROR(INDEX('Prev & Ctrl'!$F$5:$F$50,MATCH($C132,'Prev & Ctrl'!$A$5:$A$50,0)),IFERROR(INDEX('Lab dx'!$F$5:$F$50,MATCH($C132,'Lab dx'!$A$5:$A$50,0)),IFERROR(INDEX('Dog popn'!$F$5:$F$50,MATCH($C132,'Dog popn'!$A$5:$A$50,0)),IFERROR(INDEX(IEC!$F$5:$F$50,MATCH($C132,IEC!$A$5:$A$50,0)),IFERROR(INDEX('Cross-cutting issues'!$F$5:$F$50,MATCH($C132,'Cross-cutting issues'!$A$5:$A$50,0)),IFERROR(INDEX(Legislation!$F$5:$F$50,MATCH($C132,Legislation!$A$5:$A$50,0)),\"\")))))))","v":""},{"$f":"IFERROR(INDEX('Data coll & an'!$G$5:$G$50,MATCH($C132,'Data coll & an'!$A$5:$A$50,0)),IFERROR(INDEX('Prev & Ctrl'!$G$5:$G$50,MATCH($C132,'Prev & Ctrl'!$A$5:$A$50,0)),IFERROR(INDEX('Lab dx'!$G$5:$G$50,MATCH($C132,'Lab dx'!$A$5:$A$50,0)),IFERROR(INDEX('Dog popn'!$G$5:$G$50,MATCH($C132,'Dog popn'!$A$5:$A$50,0)),IFERROR(INDEX(IEC!$G$5:$G$50,MATCH($C132,IEC!$A$5:$A$50,0)),IFERROR(INDEX('Cross-cutting issues'!$G$5:$G$50,MATCH($C132,'Cross-cutting issues'!$A$5:$A$50,0)),IFERROR(INDEX(Legislation!$G$5:$G$50,MATCH($C132,Legislation!$A$5:$A$50,0)),\"\")))))))","v":""},null,null,null,null,null,null,null,null,null,null,null,null,null,null,null,"","",""]
[132,null,"---",null,null,null,null,null,null,{"$f":"IFERROR(INDEX('Data coll & an'!$F$5:$F$50,MATCH($C133,'Data coll & an'!$A$5:$A$50,0)),IFERROR(INDEX('Prev & Ctrl'!$F$5:$F$50,MATCH($C133,'Prev & Ctrl'!$A$5:$A$50,0)),IFERROR(INDEX('Lab dx'!$F$5:$F$50,MATCH($C133,'Lab dx'!$A$5:$A$50,0)),IFERROR(INDEX('Dog popn'!$F$5:$F$50,MATCH($C133,'Dog popn'!$A$5:$A$50,0)),IFERROR(INDEX(IEC!$F$5:$F$50,MATCH($C133,IEC!$A$5:$A$50,0)),IFERROR(INDEX('Cross-cutting issues'!$F$5:$F$50,MATCH($C133,'Cross-cutting issues'!$A$5:$A$50,0)),IFERROR(INDEX(Legislation!$F$5:$F$50,MATCH($C133,Legislation!$A$5:$A$50,0)),\"\")))))))","v":""},{"$f":"IFERROR(INDEX('Data coll & an'!$G$5:$G$50,MATCH($C133,'Data coll & an'!$A$5:$A$50,0)),IFERROR(INDEX('Prev & Ctrl'!$G$5:$G$50,MATCH($C133,'Prev & Ctrl'!$A$5:$A$50,0)),IFERROR(INDEX('Lab dx'!$G$5:$G$50,MATCH($C133,'Lab dx'!$A$5:$A$50,0)),IFERROR(INDEX('Dog popn'!$G$5:$G$50,MATCH($C133,'Dog popn'!$A$5:$A$50,0)),IFERROR(INDEX(IEC!$G$5:$G$50,MATCH($C133,IEC!$A$5:$A$50,0)),IFERROR(INDEX('Cross-cutting issues'!$G$5:$G$50,MATCH($C133,'Cross-cutting issues'!$A$5:$A$50,0)),IFERROR(INDEX(Legislation!$G$5:$G$50,MATCH($C133,Legislation!$A$5:$A$50,0)),\"\")))))))","v":""},null,null,null,null,null,null,null,null,null,null,null,null,null,null,null,"","",""]
[133,null,"---",null,null,null,null,null,null,{"$f":"IFERROR(INDEX('Data coll & an'!$F$5:$F$50,MATCH($C134,'Data coll & an'!$A$5:$A$50,0)),IFERROR(INDEX('Prev & Ctrl'!$F$5:$F$50,MATCH($C134,'Prev & Ctrl'!$A$5:$A$50,0)),IFERROR(INDEX('Lab dx'!$F$5:$F$50,MATCH($C134,'Lab dx'!$A$5:$A$50,0)),IFERROR(INDEX('Dog popn'!$F$5:$F$50,MATCH($C134,'Dog popn'!$A$5:$A$50,0)),IFERROR(INDEX(IEC!$F$5:$F$50,MATCH($C134,IEC!$A$5:$A$50,0)),IFERROR(INDEX('Cross-cutting issues'!$F$5:$F$50,MATCH($C134,'Cross-cutting issues'!$A$5:$A$50,0)),IFERROR(INDEX(Legislation!$F$5:$F$50,MATCH($C134,Legislation!$A$5:$A$50,0)),\"\")))))))","v":""},{"$f":"IFERROR(INDEX('Data coll & an'!$G$5:$G$50,MATCH($C134,'Data coll & an'!$A$5:$A$50,0)),IFERROR(INDEX('Prev & Ctrl'!$G$5:$G$50,MATCH($C134,'Prev & Ctrl'!$A$5:$A$50,0)),IFERROR(INDEX('Lab dx'!$G$5:$G$50,MATCH($C134,'Lab dx'!$A$5:$A$50,0)),IFERROR(INDEX('Dog popn'!$G$5:$G$50,MATCH($C134,'Dog popn'!$A$5:$A$50,0)),IFERROR(INDEX(IEC!$G$5:$G$50,MATCH($C134,IEC!$A$5:$A$50,0)),IFERROR(INDEX('Cross-cutting issues'!$G$5:$G$50,MATCH($C134,'Cross-cutting issues'!$A$5:$A$50,0)),IFERROR(INDEX(Legislation!$G$5:$G$50,MATCH($C134,Legislation!$A$5:$A$50,0)),\"\")))))))","v":""},null,null,null,null,null,null,null,null,null,null,null,null,null,null,null,"","",""]
[134,null,"---",null,null,null,null,null,null,{"$f":"IFERROR(INDEX('Data coll & an'!$F$5:$F$50,MATCH($C135,'Data coll & an'!$A$5:$A$50,0)),IFERROR(INDEX('Prev & Ctrl'!$F$5:$F$50,MATCH($C135,'Prev & Ctrl'!$A$5:$A$50,0)),IFERROR(INDEX('Lab dx'!$F$5:$F$50,MATCH($C135,'Lab dx'!$A$5:$A$50,0)),IFERROR(INDEX('Dog popn'!$F$5:$F$50,MATCH($C135,'Dog popn'!$A$5:$A$50,0)),IFERROR(INDEX(IEC!$F$5:$F$50,MATCH($C135,IEC!$A$5:$A$50,0)),IFERROR(INDEX('Cross-cutting issues'!$F$5:$F$50,MATCH($C135,'Cross-cutting issues'!$A$5:$A$50,0)),IFERROR(INDEX(Legislation!$F$5:$F$50,MATCH($C135,Legislation!$A$5:$A$50,0)),\"\")))))))","v":""},{"$f":"IFERROR(INDEX('Data coll & an'!$G$5:$G$50,MATCH($C135,'Data coll & an'!$A$5:$A$50,0)),IFERROR(INDEX('Prev & Ctrl'!$G$5:$G$50,MATCH($C135,'Prev & Ctrl'!$A$5:$A$50,0)),IFERROR(INDEX('Lab dx'!$G$5:$G$50,MATCH($C135,'Lab dx'!$A$5:$A$50,0)),IFERROR(INDEX('Dog popn'!$G$5:$G$50,MATCH($C135,'Dog popn'!$A$5:$A$50,0)),IFERROR(INDEX(IEC!$G$5:$G$50,MATCH($C135,IEC!$A$5:$A$50,0)),IFERROR(INDEX('Cross-cutting issues'!$G$5:$G$50,MATCH($C135,'Cross-cutting issues'!$A$5:$A$50,0)),IFERROR(INDEX(Legislation!$G$5:$G$50,MATCH($C135,Legislation!$A$5:$A$50,0)),\"\")))))))","v":""},null,null,null,null,null,null,null,null,null,null,null,null,null,null,null,"","",""]
[135,null,"---",null,null,null,null,null,null,{"$f":"IFERROR(INDEX('Data coll & an'!$F$5:$F$50,MATCH($C136,'Data coll & an'!$A$5:$A$50,0)),IFERROR(INDEX('Prev & Ctrl'!$F$5:$F$50,MATCH($C136,'Prev & Ctrl'!$A$5:$A$50,0)),IFERROR(INDEX('Lab dx'!$F$5:$F$50,MATCH($C136,'Lab dx'!$A$5:$A$50,0)),IFERROR(INDEX('Dog popn'!$F$5:$F$50,MATCH($C136,'Dog popn'!$A$5:$A$50,0)),IFERROR(INDEX(IEC!$F$5:$F$50,MATCH($C136,IEC!$A$5:$A$50,0)),IFERROR(INDEX('Cross-cutting issues'!$F$5:$F$50,MATCH($C136,'Cross-cutting issues'!$A$5:$A$50,0)),IFERROR(INDEX(Legislation!$F$5:$F$50,MATCH($C136,Legislation!$A$5:$A$50,0)),\"\")))))))","v":""},{"$f":"IFERROR(INDEX('Data coll & an'!$G$5:$G$50,MATCH($C136,'Data coll & an'!$A$5:$A$50,0)),IFERROR(INDEX('Prev & Ctrl'!$G$5:$G$50,MATCH($C136,'Prev & Ctrl'!$A$5:$A$50,0)),IFERROR(INDEX('Lab dx'!$G$5:$G$50,MATCH($C136,'Lab dx'!$A$5:$A$50,0)),IFERROR(INDEX('Dog popn'!$G$5:$G$50,MATCH($C136,'Dog popn'!$A$5:$A$50,0)),IFERROR(INDEX(IEC!$G$5:$G$50,MATCH($C136,IEC!$A$5:$A$50,0)),IFERROR(INDEX('Cross-cutting issues'!$G$5:$G$50,MATCH($C136,'Cross-cutting issues'!$A$5:$A$50,0)),IFERROR(INDEX(Legislation!$G$5:$G$50,MATCH($C136,Legislation!$A$5:$A$50,0)),\"\")))))))","v":""},null,null,null,null,null,null,null,null,null,null,null,null,null,null,null,"","",""]
[136,null,{"$f":"B137&\"-\"&LEFT(D137,3)&\"-\"&E137&\"-\"&F137","v":"---"},null,null,null,null,null,null,{"$f":"IFERROR(INDEX('Data coll & an'!$F$5:$F$50,MATCH($C137,'Data coll & an'!$A$5:$A$50,0)),IFERROR(INDEX('Prev & Ctrl'!$F$5:$F$50,MATCH($C137,'Prev & Ctrl'!$A$5:$A$50,0)),IFERROR(INDEX('Lab dx'!$F$5:$F$50,MATCH($C137,'Lab dx'!$A$5:$A$50,0)),IFERROR(INDEX('Dog popn'!$F$5:$F$50,MATCH($C137,'Dog popn'!$A$5:$A$50,0)),IFERROR(INDEX(IEC!$F$5:$F$50,MATCH($C137,IEC!$A$5:$A$50,0)),IFERROR(INDEX('Cross-cutting issues'!$F$5:$F$50,MATCH($C137,'Cross-cutting issues'!$A$5:$A$50,0)),IFERROR(INDEX(Legislation!$F$5:$F$50,MATCH($C137,Legislation!$A$5:$A$50,0)),\"\")))))))","v":""},{"$f":"IFERROR(INDEX('Data coll & an'!$G$5:$G$50,MATCH($C137,'Data coll & an'!$A$5:$A$50,0)),IFERROR(INDEX('Prev & Ctrl'!$G$5:$G$50,MATCH($C137,'Prev & Ctrl'!$A$5:$A$50,0)),IFERROR(INDEX('Lab dx'!$G$5:$G$50,MATCH($C137,'Lab dx'!$A$5:$A$50,0)),IFERROR(INDEX('Dog popn'!$G$5:$G$50,MATCH($C137,'Dog popn'!$A$5:$A$50,0)),IFERROR(INDEX(IEC!$G$5:$G$50,MATCH($C137,IEC!$A$5:$A$50,0)),IFERROR(INDEX('Cross-cutting issues'!$G$5:$G$50,MATCH($C137,'Cross-cutting issues'!$A$5:$A$50,0)),IFERROR(INDEX(Legislation!$G$5:$G$50,MATCH($C137,Legislation!$A$5:$A$50,0)),\"\")))))))","v":""},null,null,null,null,null,null,null,null,null,null,null,null,null,null,null,"","",""]
[137,null,"---",null,null,null,null,null,null,{"$f":"IFERROR(INDEX('Data coll & an'!$F$5:$F$50,MATCH($C138,'Data coll & an'!$A$5:$A$50,0)),IFERROR(INDEX('Prev & Ctrl'!$F$5:$F$50,MATCH($C138,'Prev & Ctrl'!$A$5:$A$50,0)),IFERROR(INDEX('Lab dx'!$F$5:$F$50,MATCH($C138,'Lab dx'!$A$5:$A$50,0)),IFERROR(INDEX('Dog popn'!$F$5:$F$50,MATCH($C138,'Dog popn'!$A$5:$A$50,0)),IFERROR(INDEX(IEC!$F$5:$F$50,MATCH($C138,IEC!$A$5:$A$50,0)),IFERROR(INDEX('Cross-cutting issues'!$F$5:$F$50,MATCH($C138,'Cross-cutting issues'!$A$5:$A$50,0)),IFERROR(INDEX(Legislation!$F$5:$F$50,MATCH($C138,Legislation!$A$5:$A$50,0)),\"\")))))))","v":""},{"$f":"IFERROR(INDEX('Data coll & an'!$G$5:$G$50,MATCH($C138,'Data coll & an'!$A$5:$A$50,0)),IFERROR(INDEX('Prev & Ctrl'!$G$5:$G$50,MATCH($C138,'Prev & Ctrl'!$A$5:$A$50,0)),IFERROR(INDEX('Lab dx'!$G$5:$G$50,MATCH($C138,'Lab dx'!$A$5:$A$50,0)),IFERROR(INDEX('Dog popn'!$G$5:$G$50,MATCH($C138,'Dog popn'!$A$5:$A$50,0)),IFERROR(INDEX(IEC!$G$5:$G$50,MATCH($C138,IEC!$A$5:$A$50,0)),IFERROR(INDEX('Cross-cutting issues'!$G$5:$G$50,MATCH($C138,'Cross-cutting issues'!$A$5:$A$50,0)),IFERROR(INDEX(Legislation!$G$5:$G$50,MATCH($C138,Legislation!$A$5:$A$50,0)),\"\")))))))","v":""},null,null,null,null,null,null,null,null,null,null,null,null,null,null,null,{"$f":"IFERROR(VLOOKUP($C138,INDIRECT(\"DCA!a13:j49\"),6,FALSE),IFERROR(VLOOKUP($C138,INDIRECT(\"pco!a13:j49\"),6,FALSE),IFERROR(VLOOKUP($C138,INDIRECT(\"lab!a13:j49\"),6,FALSE),IFERROR(VLOOKUP($C138,INDIRECT(\"dpm!a13:j49\"),6,FALSE),IFERROR(VLOOKUP($C138,INDIRECT(\"iecnw!a13:j49\"),6,FALSE),IFERROR(VLOOKUP($C138,INDIRECT(\"cci!a13:j49\"),6,FALSE),IFERROR(VLOOKUP($C138,INDIRECT(\"leg!a13:j49\"),6,FALSE),\"\")))))))","v":""},{"$f":"IFERROR(VLOOKUP($C138,INDIRECT(\"DCA!a13:j49\"),8,FALSE),IFERROR(VLOOKUP($C138,INDIRECT(\"pco!a13:j49\"),8,FALSE),IFERROR(VLOOKUP($C138,INDIRECT(\"lab!a13:j49\"),8,FALSE),IFERROR(VLOOKUP($C138,INDIRECT(\"dpm!a13:j49\"),8,FALSE),IFERROR(VLOOKUP($C138,INDIRECT(\"iecnw!a13:j49\"),8,FALSE),IFERROR(VLOOKUP($C138,INDIRECT(\"cci!a13:j49\"),8,FALSE),IFERROR(VLOOKUP($C138,INDIRECT(\"leg!a13:j49\"),8,FALSE),\"\")))))))","v":""},{"$f":"IFERROR(VLOOKUP($C138,INDIRECT(\"DCA!a13:j49\"),9,FALSE),IFERROR(VLOOKUP($C138,INDIRECT(\"pco!a13:j49\"),9,FALSE),IFERROR(VLOOKUP($C138,INDIRECT(\"lab!a13:j49\"),9,FALSE),IFERROR(VLOOKUP($C138,INDIRECT(\"dpm!a13:j49\"),9,FALSE),IFERROR(VLOOKUP($C138,INDIRECT(\"iecnw!a13:j49\"),9,FALSE),IFERROR(VLOOKUP($C138,INDIRECT(\"cci!a13:j49\"),9,FALSE),IFERROR(VLOOKUP($C138,INDIRECT(\"leg!a13:j49\"),9,FALSE),\"\")))))))","v":""}]
[138,null,"---",null,null,null,null,null,null,{"$f":"IFERROR(INDEX('Data coll & an'!$F$5:$F$50,MATCH($C139,'Data coll & an'!$A$5:$A$50,0)),IFERROR(INDEX('Prev & Ctrl'!$F$5:$F$50,MATCH($C139,'Prev & Ctrl'!$A$5:$A$50,0)),IFERROR(INDEX('Lab dx'!$F$5:$F$50,MATCH($C139,'Lab dx'!$A$5:$A$50,0)),IFERROR(INDEX('Dog popn'!$F$5:$F$50,MATCH($C139,'Dog popn'!$A$5:$A$50,0)),IFERROR(INDEX(IEC!$F$5:$F$50,MATCH($C139,IEC!$A$5:$A$50,0)),IFERROR(INDEX('Cross-cutting issues'!$F$5:$F$50,MATCH($C139,'Cross-cutting issues'!$A$5:$A$50,0)),IFERROR(INDEX(Legislation!$F$5:$F$50,MATCH($C139,Legislation!$A$5:$A$50,0)),\"\")))))))","v":""},{"$f":"IFERROR(INDEX('Data coll & an'!$G$5:$G$50,MATCH($C139,'Data coll & an'!$A$5:$A$50,0)),IFERROR(INDEX('Prev & Ctrl'!$G$5:$G$50,MATCH($C139,'Prev & Ctrl'!$A$5:$A$50,0)),IFERROR(INDEX('Lab dx'!$G$5:$G$50,MATCH($C139,'Lab dx'!$A$5:$A$50,0)),IFERROR(INDEX('Dog popn'!$G$5:$G$50,MATCH($C139,'Dog popn'!$A$5:$A$50,0)),IFERROR(INDEX(IEC!$G$5:$G$50,MATCH($C139,IEC!$A$5:$A$50,0)),IFERROR(INDEX('Cross-cutting issues'!$G$5:$G$50,MATCH($C139,'Cross-cutting issues'!$A$5:$A$50,0)),IFERROR(INDEX(Legislation!$G$5:$G$50,MATCH($C139,Legislation!$A$5:$A$50,0)),\"\")))))))","v":""},null,null,null,null,null,null,null,null,null,null,null,null,null,null,null,"","",""]
[139,null,"---",null,null,null,null,null,null,{"$f":"IFERROR(INDEX('Data coll & an'!$F$5:$F$50,MATCH($C140,'Data coll & an'!$A$5:$A$50,0)),IFERROR(INDEX('Prev & Ctrl'!$F$5:$F$50,MATCH($C140,'Prev & Ctrl'!$A$5:$A$50,0)),IFERROR(INDEX('Lab dx'!$F$5:$F$50,MATCH($C140,'Lab dx'!$A$5:$A$50,0)),IFERROR(INDEX('Dog popn'!$F$5:$F$50,MATCH($C140,'Dog popn'!$A$5:$A$50,0)),IFERROR(INDEX(IEC!$F$5:$F$50,MATCH($C140,IEC!$A$5:$A$50,0)),IFERROR(INDEX('Cross-cutting issues'!$F$5:$F$50,MATCH($C140,'Cross-cutting issues'!$A$5:$A$50,0)),IFERROR(INDEX(Legislation!$F$5:$F$50,MATCH($C140,Legislation!$A$5:$A$50,0)),\"\")))))))","v":""},{"$f":"IFERROR(INDEX('Data coll & an'!$G$5:$G$50,MATCH($C140,'Data coll & an'!$A$5:$A$50,0)),IFERROR(INDEX('Prev & Ctrl'!$G$5:$G$50,MATCH($C140,'Prev & Ctrl'!$A$5:$A$50,0)),IFERROR(INDEX('Lab dx'!$G$5:$G$50,MATCH($C140,'Lab dx'!$A$5:$A$50,0)),IFERROR(INDEX('Dog popn'!$G$5:$G$50,MATCH($C140,'Dog popn'!$A$5:$A$50,0)),IFERROR(INDEX(IEC!$G$5:$G$50,MATCH($C140,IEC!$A$5:$A$50,0)),IFERROR(INDEX('Cross-cutting issues'!$G$5:$G$50,MATCH($C140,'Cross-cutting issues'!$A$5:$A$50,0)),IFERROR(INDEX(Legislation!$G$5:$G$50,MATCH($C140,Legislation!$A$5:$A$50,0)),\"\")))))))","v":""},null,null,null,null,null,null,null,null,null,null,null,null,null,null,null,"","",""]
[140,null,"---",null,null,null,null,null,null,{"$f":"IFERROR(INDEX('Data coll & an'!$F$5:$F$50,MATCH($C141,'Data coll & an'!$A$5:$A$50,0)),IFERROR(INDEX('Prev & Ctrl'!$F$5:$F$50,MATCH($C141,'Prev & Ctrl'!$A$5:$A$50,0)),IFERROR(INDEX('Lab dx'!$F$5:$F$50,MATCH($C141,'Lab dx'!$A$5:$A$50,0)),IFERROR(INDEX('Dog popn'!$F$5:$F$50,MATCH($C141,'Dog popn'!$A$5:$A$50,0)),IFERROR(INDEX(IEC!$F$5:$F$50,MATCH($C141,IEC!$A$5:$A$50,0)),IFERROR(INDEX('Cross-cutting issues'!$F$5:$F$50,MATCH($C141,'Cross-cutting issues'!$A$5:$A$50,0)),IFERROR(INDEX(Legislation!$F$5:$F$50,MATCH($C141,Legislation!$A$5:$A$50,0)),\"\")))))))","v":""},{"$f":"IFERROR(INDEX('Data coll & an'!$G$5:$G$50,MATCH($C141,'Data coll & an'!$A$5:$A$50,0)),IFERROR(INDEX('Prev & Ctrl'!$G$5:$G$50,MATCH($C141,'Prev & Ctrl'!$A$5:$A$50,0)),IFERROR(INDEX('Lab dx'!$G$5:$G$50,MATCH($C141,'Lab dx'!$A$5:$A$50,0)),IFERROR(INDEX('Dog popn'!$G$5:$G$50,MATCH($C141,'Dog popn'!$A$5:$A$50,0)),IFERROR(INDEX(IEC!$G$5:$G$50,MATCH($C141,IEC!$A$5:$A$50,0)),IFERROR(INDEX('Cross-cutting issues'!$G$5:$G$50,MATCH($C141,'Cross-cutting issues'!$A$5:$A$50,0)),IFERROR(INDEX(Legislation!$G$5:$G$50,MATCH($C141,Legislation!$A$5:$A$50,0)),\"\")))))))","v":""},null,null,null,null,null,null,null,null,null,null,null,null,null,null,null,"","",""]
[141,null,"---",null,null,null,null,null,null,{"$f":"IFERROR(INDEX('Data coll & an'!$F$5:$F$50,MATCH($C142,'Data coll & an'!$A$5:$A$50,0)),IFERROR(INDEX('Prev & Ctrl'!$F$5:$F$50,MATCH($C142,'Prev & Ctrl'!$A$5:$A$50,0)),IFERROR(INDEX('Lab dx'!$F$5:$F$50,MATCH($C142,'Lab dx'!$A$5:$A$50,0)),IFERROR(INDEX('Dog popn'!$F$5:$F$50,MATCH($C142,'Dog popn'!$A$5:$A$50,0)),IFERROR(INDEX(IEC!$F$5:$F$50,MATCH($C142,IEC!$A$5:$A$50,0)),IFERROR(INDEX('Cross-cutting issues'!$F$5:$F$50,MATCH($C142,'Cross-cutting issues'!$A$5:$A$50,0)),IFERROR(INDEX(Legislation!$F$5:$F$50,MATCH($C142,Legislation!$A$5:$A$50,0)),\"\")))))))","v":""},{"$f":"IFERROR(INDEX('Data coll & an'!$G$5:$G$50,MATCH($C142,'Data coll & an'!$A$5:$A$50,0)),IFERROR(INDEX('Prev & Ctrl'!$G$5:$G$50,MATCH($C142,'Prev & Ctrl'!$A$5:$A$50,0)),IFERROR(INDEX('Lab dx'!$G$5:$G$50,MATCH($C142,'Lab dx'!$A$5:$A$50,0)),IFERROR(INDEX('Dog popn'!$G$5:$G$50,MATCH($C142,'Dog popn'!$A$5:$A$50,0)),IFERROR(INDEX(IEC!$G$5:$G$50,MATCH($C142,IEC!$A$5:$A$50,0)),IFERROR(INDEX('Cross-cutting issues'!$G$5:$G$50,MATCH($C142,'Cross-cutting issues'!$A$5:$A$50,0)),IFERROR(INDEX(Legislation!$G$5:$G$50,MATCH($C142,Legislation!$A$5:$A$50,0)),\"\")))))))","v":""},null,null,null,null,null,null,null,null,null,null,null,null,null,null,null,"","",""]
[142,null,"---",null,null,null,null,null,null,{"$f":"IFERROR(INDEX('Data coll & an'!$F$5:$F$50,MATCH($C143,'Data coll & an'!$A$5:$A$50,0)),IFERROR(INDEX('Prev & Ctrl'!$F$5:$F$50,MATCH($C143,'Prev & Ctrl'!$A$5:$A$50,0)),IFERROR(INDEX('Lab dx'!$F$5:$F$50,MATCH($C143,'Lab dx'!$A$5:$A$50,0)),IFERROR(INDEX('Dog popn'!$F$5:$F$50,MATCH($C143,'Dog popn'!$A$5:$A$50,0)),IFERROR(INDEX(IEC!$F$5:$F$50,MATCH($C143,IEC!$A$5:$A$50,0)),IFERROR(INDEX('Cross-cutting issues'!$F$5:$F$50,MATCH($C143,'Cross-cutting issues'!$A$5:$A$50,0)),IFERROR(INDEX(Legislation!$F$5:$F$50,MATCH($C143,Legislation!$A$5:$A$50,0)),\"\")))))))","v":""},{"$f":"IFERROR(INDEX('Data coll & an'!$G$5:$G$50,MATCH($C143,'Data coll & an'!$A$5:$A$50,0)),IFERROR(INDEX('Prev & Ctrl'!$G$5:$G$50,MATCH($C143,'Prev & Ctrl'!$A$5:$A$50,0)),IFERROR(INDEX('Lab dx'!$G$5:$G$50,MATCH($C143,'Lab dx'!$A$5:$A$50,0)),IFERROR(INDEX('Dog popn'!$G$5:$G$50,MATCH($C143,'Dog popn'!$A$5:$A$50,0)),IFERROR(INDEX(IEC!$G$5:$G$50,MATCH($C143,IEC!$A$5:$A$50,0)),IFERROR(INDEX('Cross-cutting issues'!$G$5:$G$50,MATCH($C143,'Cross-cutting issues'!$A$5:$A$50,0)),IFERROR(INDEX(Legislation!$G$5:$G$50,MATCH($C143,Legislation!$A$5:$A$50,0)),\"\")))))))","v":""},null,null,null,null,null,null,null,null,null,null,null,null,null,null,null,"","",""]
[143,null,"---",null,null,null,null,null,null,{"$f":"IFERROR(INDEX('Data coll & an'!$F$5:$F$50,MATCH($C144,'Data coll & an'!$A$5:$A$50,0)),IFERROR(INDEX('Prev & Ctrl'!$F$5:$F$50,MATCH($C144,'Prev & Ctrl'!$A$5:$A$50,0)),IFERROR(INDEX('Lab dx'!$F$5:$F$50,MATCH($C144,'Lab dx'!$A$5:$A$50,0)),IFERROR(INDEX('Dog popn'!$F$5:$F$50,MATCH($C144,'Dog popn'!$A$5:$A$50,0)),IFERROR(INDEX(IEC!$F$5:$F$50,MATCH($C144,IEC!$A$5:$A$50,0)),IFERROR(INDEX('Cross-cutting issues'!$F$5:$F$50,MATCH($C144,'Cross-cutting issues'!$A$5:$A$50,0)),IFERROR(INDEX(Legislation!$F$5:$F$50,MATCH($C144,Legislation!$A$5:$A$50,0)),\"\")))))))","v":""},{"$f":"IFERROR(INDEX('Data coll & an'!$G$5:$G$50,MATCH($C144,'Data coll & an'!$A$5:$A$50,0)),IFERROR(INDEX('Prev & Ctrl'!$G$5:$G$50,MATCH($C144,'Prev & Ctrl'!$A$5:$A$50,0)),IFERROR(INDEX('Lab dx'!$G$5:$G$50,MATCH($C144,'Lab dx'!$A$5:$A$50,0)),IFERROR(INDEX('Dog popn'!$G$5:$G$50,MATCH($C144,'Dog popn'!$A$5:$A$50,0)),IFERROR(INDEX(IEC!$G$5:$G$50,MATCH($C144,IEC!$A$5:$A$50,0)),IFERROR(INDEX('Cross-cutting issues'!$G$5:$G$50,MATCH($C144,'Cross-cutting issues'!$A$5:$A$50,0)),IFERROR(INDEX(Legislation!$G$5:$G$50,MATCH($C144,Legislation!$A$5:$A$50,0)),\"\")))))))","v":""},null,null,null,null,null,null,null,null,null,null,null,null,null,null,null,"","",""]
[144,null,"---",null,null,null,null,null,null,{"$f":"IFERROR(INDEX('Data coll & an'!$F$5:$F$50,MATCH($C145,'Data coll & an'!$A$5:$A$50,0)),IFERROR(INDEX('Prev & Ctrl'!$F$5:$F$50,MATCH($C145,'Prev & Ctrl'!$A$5:$A$50,0)),IFERROR(INDEX('Lab dx'!$F$5:$F$50,MATCH($C145,'Lab dx'!$A$5:$A$50,0)),IFERROR(INDEX('Dog popn'!$F$5:$F$50,MATCH($C145,'Dog popn'!$A$5:$A$50,0)),IFERROR(INDEX(IEC!$F$5:$F$50,MATCH($C145,IEC!$A$5:$A$50,0)),IFERROR(INDEX('Cross-cutting issues'!$F$5:$F$50,MATCH($C145,'Cross-cutting issues'!$A$5:$A$50,0)),IFERROR(INDEX(Legislation!$F$5:$F$50,MATCH($C145,Legislation!$A$5:$A$50,0)),\"\")))))))","v":""},{"$f":"IFERROR(INDEX('Data coll & an'!$G$5:$G$50,MATCH($C145,'Data coll & an'!$A$5:$A$50,0)),IFERROR(INDEX('Prev & Ctrl'!$G$5:$G$50,MATCH($C145,'Prev & Ctrl'!$A$5:$A$50,0)),IFERROR(INDEX('Lab dx'!$G$5:$G$50,MATCH($C145,'Lab dx'!$A$5:$A$50,0)),IFERROR(INDEX('Dog popn'!$G$5:$G$50,MATCH($C145,'Dog popn'!$A$5:$A$50,0)),IFERROR(INDEX(IEC!$G$5:$G$50,MATCH($C145,IEC!$A$5:$A$50,0)),IFERROR(INDEX('Cross-cutting issues'!$G$5:$G$50,MATCH($C145,'Cross-cutting issues'!$A$5:$A$50,0)),IFERROR(INDEX(Legislation!$G$5:$G$50,MATCH($C145,Legislation!$A$5:$A$50,0)),\"\")))))))","v":""},null,null,null,null,null,null,null,null,null,null,null,null,null,null,null,"","",""]
[145,null,"---",null,null,null,null,null,null,{"$f":"IFERROR(INDEX('Data coll & an'!$F$5:$F$50,MATCH($C146,'Data coll & an'!$A$5:$A$50,0)),IFERROR(INDEX('Prev & Ctrl'!$F$5:$F$50,MATCH($C146,'Prev & Ctrl'!$A$5:$A$50,0)),IFERROR(INDEX('Lab dx'!$F$5:$F$50,MATCH($C146,'Lab dx'!$A$5:$A$50,0)),IFERROR(INDEX('Dog popn'!$F$5:$F$50,MATCH($C146,'Dog popn'!$A$5:$A$50,0)),IFERROR(INDEX(IEC!$F$5:$F$50,MATCH($C146,IEC!$A$5:$A$50,0)),IFERROR(INDEX('Cross-cutting issues'!$F$5:$F$50,MATCH($C146,'Cross-cutting issues'!$A$5:$A$50,0)),IFERROR(INDEX(Legislation!$F$5:$F$50,MATCH($C146,Legislation!$A$5:$A$50,0)),\"\")))))))","v":""},{"$f":"IFERROR(INDEX('Data coll & an'!$G$5:$G$50,MATCH($C146,'Data coll & an'!$A$5:$A$50,0)),IFERROR(INDEX('Prev & Ctrl'!$G$5:$G$50,MATCH($C146,'Prev & Ctrl'!$A$5:$A$50,0)),IFERROR(INDEX('Lab dx'!$G$5:$G$50,MATCH($C146,'Lab dx'!$A$5:$A$50,0)),IFERROR(INDEX('Dog popn'!$G$5:$G$50,MATCH($C146,'Dog popn'!$A$5:$A$50,0)),IFERROR(INDEX(IEC!$G$5:$G$50,MATCH($C146,IEC!$A$5:$A$50,0)),IFERROR(INDEX('Cross-cutting issues'!$G$5:$G$50,MATCH($C146,'Cross-cutting issues'!$A$5:$A$50,0)),IFERROR(INDEX(Legislation!$G$5:$G$50,MATCH($C146,Legislation!$A$5:$A$50,0)),\"\")))))))","v":""},null,null,null,null,null,null,null,null,null,null,null,null,null,null,null,"","",""]
[146,null,"---",null,null,null,null,null,null,{"$f":"IFERROR(INDEX('Data coll & an'!$F$5:$F$50,MATCH($C147,'Data coll & an'!$A$5:$A$50,0)),IFERROR(INDEX('Prev & Ctrl'!$F$5:$F$50,MATCH($C147,'Prev & Ctrl'!$A$5:$A$50,0)),IFERROR(INDEX('Lab dx'!$F$5:$F$50,MATCH($C147,'Lab dx'!$A$5:$A$50,0)),IFERROR(INDEX('Dog popn'!$F$5:$F$50,MATCH($C147,'Dog popn'!$A$5:$A$50,0)),IFERROR(INDEX(IEC!$F$5:$F$50,MATCH($C147,IEC!$A$5:$A$50,0)),IFERROR(INDEX('Cross-cutting issues'!$F$5:$F$50,MATCH($C147,'Cross-cutting issues'!$A$5:$A$50,0)),IFERROR(INDEX(Legislation!$F$5:$F$50,MATCH($C147,Legislation!$A$5:$A$50,0)),\"\")))))))","v":""},{"$f":"IFERROR(INDEX('Data coll & an'!$G$5:$G$50,MATCH($C147,'Data coll & an'!$A$5:$A$50,0)),IFERROR(INDEX('Prev & Ctrl'!$G$5:$G$50,MATCH($C147,'Prev & Ctrl'!$A$5:$A$50,0)),IFERROR(INDEX('Lab dx'!$G$5:$G$50,MATCH($C147,'Lab dx'!$A$5:$A$50,0)),IFERROR(INDEX('Dog popn'!$G$5:$G$50,MATCH($C147,'Dog popn'!$A$5:$A$50,0)),IFERROR(INDEX(IEC!$G$5:$G$50,MATCH($C147,IEC!$A$5:$A$50,0)),IFERROR(INDEX('Cross-cutting issues'!$G$5:$G$50,MATCH($C147,'Cross-cutting issues'!$A$5:$A$50,0)),IFERROR(INDEX(Legislation!$G$5:$G$50,MATCH($C147,Legislation!$A$5:$A$50,0)),\"\")))))))","v":""},null,null,null,null,null,null,null,null,null,null,null,null,null,null,null,"","",""]
[147,null,"---",null,null,null,null,null,null,{"$f":"IFERROR(INDEX('Data coll & an'!$F$5:$F$50,MATCH($C148,'Data coll & an'!$A$5:$A$50,0)),IFERROR(INDEX('Prev & Ctrl'!$F$5:$F$50,MATCH($C148,'Prev & Ctrl'!$A$5:$A$50,0)),IFERROR(INDEX('Lab dx'!$F$5:$F$50,MATCH($C148,'Lab dx'!$A$5:$A$50,0)),IFERROR(INDEX('Dog popn'!$F$5:$F$50,MATCH($C148,'Dog popn'!$A$5:$A$50,0)),IFERROR(INDEX(IEC!$F$5:$F$50,MATCH($C148,IEC!$A$5:$A$50,0)),IFERROR(INDEX('Cross-cutting issues'!$F$5:$F$50,MATCH($C148,'Cross-cutting issues'!$A$5:$A$50,0)),IFERROR(INDEX(Legislation!$F$5:$F$50,MATCH($C148,Legislation!$A$5:$A$50,0)),\"\")))))))","v":""},{"$f":"IFERROR(INDEX('Data coll & an'!$G$5:$G$50,MATCH($C148,'Data coll & an'!$A$5:$A$50,0)),IFERROR(INDEX('Prev & Ctrl'!$G$5:$G$50,MATCH($C148,'Prev & Ctrl'!$A$5:$A$50,0)),IFERROR(INDEX('Lab dx'!$G$5:$G$50,MATCH($C148,'Lab dx'!$A$5:$A$50,0)),IFERROR(INDEX('Dog popn'!$G$5:$G$50,MATCH($C148,'Dog popn'!$A$5:$A$50,0)),IFERROR(INDEX(IEC!$G$5:$G$50,MATCH($C148,IEC!$A$5:$A$50,0)),IFERROR(INDEX('Cross-cutting issues'!$G$5:$G$50,MATCH($C148,'Cross-cutting issues'!$A$5:$A$50,0)),IFERROR(INDEX(Legislation!$G$5:$G$50,MATCH($C148,Legislation!$A$5:$A$50,0)),\"\")))))))","v":""},null,null,null,null,null,null,null,null,null,null,null,null,null,null,null,"","",""]
[148,null,"---",null,null,null,null,null,null,{"$f":"IFERROR(INDEX('Data coll & an'!$F$5:$F$50,MATCH($C149,'Data coll & an'!$A$5:$A$50,0)),IFERROR(INDEX('Prev & Ctrl'!$F$5:$F$50,MATCH($C149,'Prev & Ctrl'!$A$5:$A$50,0)),IFERROR(INDEX('Lab dx'!$F$5:$F$50,MATCH($C149,'Lab dx'!$A$5:$A$50,0)),IFERROR(INDEX('Dog popn'!$F$5:$F$50,MATCH($C149,'Dog popn'!$A$5:$A$50,0)),IFERROR(INDEX(IEC!$F$5:$F$50,MATCH($C149,IEC!$A$5:$A$50,0)),IFERROR(INDEX('Cross-cutting issues'!$F$5:$F$50,MATCH($C149,'Cross-cutting issues'!$A$5:$A$50,0)),IFERROR(INDEX(Legislation!$F$5:$F$50,MATCH($C149,Legislation!$A$5:$A$50,0)),\"\")))))))","v":""},{"$f":"IFERROR(INDEX('Data coll & an'!$G$5:$G$50,MATCH($C149,'Data coll & an'!$A$5:$A$50,0)),IFERROR(INDEX('Prev & Ctrl'!$G$5:$G$50,MATCH($C149,'Prev & Ctrl'!$A$5:$A$50,0)),IFERROR(INDEX('Lab dx'!$G$5:$G$50,MATCH($C149,'Lab dx'!$A$5:$A$50,0)),IFERROR(INDEX('Dog popn'!$G$5:$G$50,MATCH($C149,'Dog popn'!$A$5:$A$50,0)),IFERROR(INDEX(IEC!$G$5:$G$50,MATCH($C149,IEC!$A$5:$A$50,0)),IFERROR(INDEX('Cross-cutting issues'!$G$5:$G$50,MATCH($C149,'Cross-cutting issues'!$A$5:$A$50,0)),IFERROR(INDEX(Legislation!$G$5:$G$50,MATCH($C149,Legislation!$A$5:$A$50,0)),\"\")))))))","v":""},null,null,null,null,null,null,null,null,null,null,null,null,null,null,null,"","",""]
[149,null,"---",null,null,null,null,null,null,{"$f":"IFERROR(INDEX('Data coll & an'!$F$5:$F$50,MATCH($C150,'Data coll & an'!$A$5:$A$50,0)),IFERROR(INDEX('Prev & Ctrl'!$F$5:$F$50,MATCH($C150,'Prev & Ctrl'!$A$5:$A$50,0)),IFERROR(INDEX('Lab dx'!$F$5:$F$50,MATCH($C150,'Lab dx'!$A$5:$A$50,0)),IFERROR(INDEX('Dog popn'!$F$5:$F$50,MATCH($C150,'Dog popn'!$A$5:$A$50,0)),IFERROR(INDEX(IEC!$F$5:$F$50,MATCH($C150,IEC!$A$5:$A$50,0)),IFERROR(INDEX('Cross-cutting issues'!$F$5:$F$50,MATCH($C150,'Cross-cutting issues'!$A$5:$A$50,0)),IFERROR(INDEX(Legislation!$F$5:$F$50,MATCH($C150,Legislation!$A$5:$A$50,0)),\"\")))))))","v":""},{"$f":"IFERROR(INDEX('Data coll & an'!$G$5:$G$50,MATCH($C150,'Data coll & an'!$A$5:$A$50,0)),IFERROR(INDEX('Prev & Ctrl'!$G$5:$G$50,MATCH($C150,'Prev & Ctrl'!$A$5:$A$50,0)),IFERROR(INDEX('Lab dx'!$G$5:$G$50,MATCH($C150,'Lab dx'!$A$5:$A$50,0)),IFERROR(INDEX('Dog popn'!$G$5:$G$50,MATCH($C150,'Dog popn'!$A$5:$A$50,0)),IFERROR(INDEX(IEC!$G$5:$G$50,MATCH($C150,IEC!$A$5:$A$50,0)),IFERROR(INDEX('Cross-cutting issues'!$G$5:$G$50,MATCH($C150,'Cross-cutting issues'!$A$5:$A$50,0)),IFERROR(INDEX(Legislation!$G$5:$G$50,MATCH($C150,Legislation!$A$5:$A$50,0)),\"\")))))))","v":""},null,null,null,null,null,null,null,null,null,null,null,null,null,null,null,"","",""]
[150,null,"---",null,null,null,null,null,null,{"$f":"IFERROR(INDEX('Data coll & an'!$F$5:$F$50,MATCH($C151,'Data coll & an'!$A$5:$A$50,0)),IFERROR(INDEX('Prev & Ctrl'!$F$5:$F$50,MATCH($C151,'Prev & Ctrl'!$A$5:$A$50,0)),IFERROR(INDEX('Lab dx'!$F$5:$F$50,MATCH($C151,'Lab dx'!$A$5:$A$50,0)),IFERROR(INDEX('Dog popn'!$F$5:$F$50,MATCH($C151,'Dog popn'!$A$5:$A$50,0)),IFERROR(INDEX(IEC!$F$5:$F$50,MATCH($C151,IEC!$A$5:$A$50,0)),IFERROR(INDEX('Cross-cutting issues'!$F$5:$F$50,MATCH($C151,'Cross-cutting issues'!$A$5:$A$50,0)),IFERROR(INDEX(Legislation!$F$5:$F$50,MATCH($C151,Legislation!$A$5:$A$50,0)),\"\")))))))","v":""},{"$f":"IFERROR(INDEX('Data coll & an'!$G$5:$G$50,MATCH($C151,'Data coll & an'!$A$5:$A$50,0)),IFERROR(INDEX('Prev & Ctrl'!$G$5:$G$50,MATCH($C151,'Prev & Ctrl'!$A$5:$A$50,0)),IFERROR(INDEX('Lab dx'!$G$5:$G$50,MATCH($C151,'Lab dx'!$A$5:$A$50,0)),IFERROR(INDEX('Dog popn'!$G$5:$G$50,MATCH($C151,'Dog popn'!$A$5:$A$50,0)),IFERROR(INDEX(IEC!$G$5:$G$50,MATCH($C151,IEC!$A$5:$A$50,0)),IFERROR(INDEX('Cross-cutting issues'!$G$5:$G$50,MATCH($C151,'Cross-cutting issues'!$A$5:$A$50,0)),IFERROR(INDEX(Legislation!$G$5:$G$50,MATCH($C151,Legislation!$A$5:$A$50,0)),\"\")))))))","v":""},null,null,null,null,null,null,null,null,null,null,null,null,null,null,null,"","",""]
[151,null,"---",null,null,null,null,null,null,{"$f":"IFERROR(INDEX('Data coll & an'!$F$5:$F$50,MATCH($C152,'Data coll & an'!$A$5:$A$50,0)),IFERROR(INDEX('Prev & Ctrl'!$F$5:$F$50,MATCH($C152,'Prev & Ctrl'!$A$5:$A$50,0)),IFERROR(INDEX('Lab dx'!$F$5:$F$50,MATCH($C152,'Lab dx'!$A$5:$A$50,0)),IFERROR(INDEX('Dog popn'!$F$5:$F$50,MATCH($C152,'Dog popn'!$A$5:$A$50,0)),IFERROR(INDEX(IEC!$F$5:$F$50,MATCH($C152,IEC!$A$5:$A$50,0)),IFERROR(INDEX('Cross-cutting issues'!$F$5:$F$50,MATCH($C152,'Cross-cutting issues'!$A$5:$A$50,0)),IFERROR(INDEX(Legislation!$F$5:$F$50,MATCH($C152,Legislation!$A$5:$A$50,0)),\"\")))))))","v":""},{"$f":"IFERROR(INDEX('Data coll & an'!$G$5:$G$50,MATCH($C152,'Data coll & an'!$A$5:$A$50,0)),IFERROR(INDEX('Prev & Ctrl'!$G$5:$G$50,MATCH($C152,'Prev & Ctrl'!$A$5:$A$50,0)),IFERROR(INDEX('Lab dx'!$G$5:$G$50,MATCH($C152,'Lab dx'!$A$5:$A$50,0)),IFERROR(INDEX('Dog popn'!$G$5:$G$50,MATCH($C152,'Dog popn'!$A$5:$A$50,0)),IFERROR(INDEX(IEC!$G$5:$G$50,MATCH($C152,IEC!$A$5:$A$50,0)),IFERROR(INDEX('Cross-cutting issues'!$G$5:$G$50,MATCH($C152,'Cross-cutting issues'!$A$5:$A$50,0)),IFERROR(INDEX(Legislation!$G$5:$G$50,MATCH($C152,Legislation!$A$5:$A$50,0)),\"\")))))))","v":""},null,null,null,null,null,null,null,null,null,null,null,null,null,null,null,"","",""]
[152,null,"---",null,null,null,null,null,null,{"$f":"IFERROR(INDEX('Data coll & an'!$F$5:$F$50,MATCH($C153,'Data coll & an'!$A$5:$A$50,0)),IFERROR(INDEX('Prev & Ctrl'!$F$5:$F$50,MATCH($C153,'Prev & Ctrl'!$A$5:$A$50,0)),IFERROR(INDEX('Lab dx'!$F$5:$F$50,MATCH($C153,'Lab dx'!$A$5:$A$50,0)),IFERROR(INDEX('Dog popn'!$F$5:$F$50,MATCH($C153,'Dog popn'!$A$5:$A$50,0)),IFERROR(INDEX(IEC!$F$5:$F$50,MATCH($C153,IEC!$A$5:$A$50,0)),IFERROR(INDEX('Cross-cutting issues'!$F$5:$F$50,MATCH($C153,'Cross-cutting issues'!$A$5:$A$50,0)),IFERROR(INDEX(Legislation!$F$5:$F$50,MATCH($C153,Legislation!$A$5:$A$50,0)),\"\")))))))","v":""},{"$f":"IFERROR(INDEX('Data coll & an'!$G$5:$G$50,MATCH($C153,'Data coll & an'!$A$5:$A$50,0)),IFERROR(INDEX('Prev & Ctrl'!$G$5:$G$50,MATCH($C153,'Prev & Ctrl'!$A$5:$A$50,0)),IFERROR(INDEX('Lab dx'!$G$5:$G$50,MATCH($C153,'Lab dx'!$A$5:$A$50,0)),IFERROR(INDEX('Dog popn'!$G$5:$G$50,MATCH($C153,'Dog popn'!$A$5:$A$50,0)),IFERROR(INDEX(IEC!$G$5:$G$50,MATCH($C153,IEC!$A$5:$A$50,0)),IFERROR(INDEX('Cross-cutting issues'!$G$5:$G$50,MATCH($C153,'Cross-cutting issues'!$A$5:$A$50,0)),IFERROR(INDEX(Legislation!$G$5:$G$50,MATCH($C153,Legislation!$A$5:$A$50,0)),\"\")))))))","v":""},null,null,null,null,null,null,null,null,null,null,null,null,null,null,null,"","",""]
[153,null,"---",null,null,null,null,null,null,{"$f":"IFERROR(INDEX('Data coll & an'!$F$5:$F$50,MATCH($C154,'Data coll & an'!$A$5:$A$50,0)),IFERROR(INDEX('Prev & Ctrl'!$F$5:$F$50,MATCH($C154,'Prev & Ctrl'!$A$5:$A$50,0)),IFERROR(INDEX('Lab dx'!$F$5:$F$50,MATCH($C154,'Lab dx'!$A$5:$A$50,0)),IFERROR(INDEX('Dog popn'!$F$5:$F$50,MATCH($C154,'Dog popn'!$A$5:$A$50,0)),IFERROR(INDEX(IEC!$F$5:$F$50,MATCH($C154,IEC!$A$5:$A$50,0)),IFERROR(INDEX('Cross-cutting issues'!$F$5:$F$50,MATCH($C154,'Cross-cutting issues'!$A$5:$A$50,0)),IFERROR(INDEX(Legislation!$F$5:$F$50,MATCH($C154,Legislation!$A$5:$A$50,0)),\"\")))))))","v":""},{"$f":"IFERROR(INDEX('Data coll & an'!$G$5:$G$50,MATCH($C154,'Data coll & an'!$A$5:$A$50,0)),IFERROR(INDEX('Prev & Ctrl'!$G$5:$G$50,MATCH($C154,'Prev & Ctrl'!$A$5:$A$50,0)),IFERROR(INDEX('Lab dx'!$G$5:$G$50,MATCH($C154,'Lab dx'!$A$5:$A$50,0)),IFERROR(INDEX('Dog popn'!$G$5:$G$50,MATCH($C154,'Dog popn'!$A$5:$A$50,0)),IFERROR(INDEX(IEC!$G$5:$G$50,MATCH($C154,IEC!$A$5:$A$50,0)),IFERROR(INDEX('Cross-cutting issues'!$G$5:$G$50,MATCH($C154,'Cross-cutting issues'!$A$5:$A$50,0)),IFERROR(INDEX(Legislation!$G$5:$G$50,MATCH($C154,Legislation!$A$5:$A$50,0)),\"\")))))))","v":""},null,null,null,null,null,null,null,null,null,null,null,null,null,null,null,"","",""]
[154,null,"---",null,null,null,null,null,null,{"$f":"IFERROR(INDEX('Data coll & an'!$F$5:$F$50,MATCH($C155,'Data coll & an'!$A$5:$A$50,0)),IFERROR(INDEX('Prev & Ctrl'!$F$5:$F$50,MATCH($C155,'Prev & Ctrl'!$A$5:$A$50,0)),IFERROR(INDEX('Lab dx'!$F$5:$F$50,MATCH($C155,'Lab dx'!$A$5:$A$50,0)),IFERROR(INDEX('Dog popn'!$F$5:$F$50,MATCH($C155,'Dog popn'!$A$5:$A$50,0)),IFERROR(INDEX(IEC!$F$5:$F$50,MATCH($C155,IEC!$A$5:$A$50,0)),IFERROR(INDEX('Cross-cutting issues'!$F$5:$F$50,MATCH($C155,'Cross-cutting issues'!$A$5:$A$50,0)),IFERROR(INDEX(Legislation!$F$5:$F$50,MATCH($C155,Legislation!$A$5:$A$50,0)),\"\")))))))","v":""},{"$f":"IFERROR(INDEX('Data coll & an'!$G$5:$G$50,MATCH($C155,'Data coll & an'!$A$5:$A$50,0)),IFERROR(INDEX('Prev & Ctrl'!$G$5:$G$50,MATCH($C155,'Prev & Ctrl'!$A$5:$A$50,0)),IFERROR(INDEX('Lab dx'!$G$5:$G$50,MATCH($C155,'Lab dx'!$A$5:$A$50,0)),IFERROR(INDEX('Dog popn'!$G$5:$G$50,MATCH($C155,'Dog popn'!$A$5:$A$50,0)),IFERROR(INDEX(IEC!$G$5:$G$50,MATCH($C155,IEC!$A$5:$A$50,0)),IFERROR(INDEX('Cross-cutting issues'!$G$5:$G$50,MATCH($C155,'Cross-cutting issues'!$A$5:$A$50,0)),IFERROR(INDEX(Legislation!$G$5:$G$50,MATCH($C155,Legislation!$A$5:$A$50,0)),\"\")))))))","v":""},null,null,null,null,null,null,null,null,null,null,null,null,null,null,null,"","",""]
[155,null,"---",null,null,null,null,null,null,{"$f":"IFERROR(INDEX('Data coll & an'!$F$5:$F$50,MATCH($C156,'Data coll & an'!$A$5:$A$50,0)),IFERROR(INDEX('Prev & Ctrl'!$F$5:$F$50,MATCH($C156,'Prev & Ctrl'!$A$5:$A$50,0)),IFERROR(INDEX('Lab dx'!$F$5:$F$50,MATCH($C156,'Lab dx'!$A$5:$A$50,0)),IFERROR(INDEX('Dog popn'!$F$5:$F$50,MATCH($C156,'Dog popn'!$A$5:$A$50,0)),IFERROR(INDEX(IEC!$F$5:$F$50,MATCH($C156,IEC!$A$5:$A$50,0)),IFERROR(INDEX('Cross-cutting issues'!$F$5:$F$50,MATCH($C156,'Cross-cutting issues'!$A$5:$A$50,0)),IFERROR(INDEX(Legislation!$F$5:$F$50,MATCH($C156,Legislation!$A$5:$A$50,0)),\"\")))))))","v":""},{"$f":"IFERROR(INDEX('Data coll & an'!$G$5:$G$50,MATCH($C156,'Data coll & an'!$A$5:$A$50,0)),IFERROR(INDEX('Prev & Ctrl'!$G$5:$G$50,MATCH($C156,'Prev & Ctrl'!$A$5:$A$50,0)),IFERROR(INDEX('Lab dx'!$G$5:$G$50,MATCH($C156,'Lab dx'!$A$5:$A$50,0)),IFERROR(INDEX('Dog popn'!$G$5:$G$50,MATCH($C156,'Dog popn'!$A$5:$A$50,0)),IFERROR(INDEX(IEC!$G$5:$G$50,MATCH($C156,IEC!$A$5:$A$50,0)),IFERROR(INDEX('Cross-cutting issues'!$G$5:$G$50,MATCH($C156,'Cross-cutting issues'!$A$5:$A$50,0)),IFERROR(INDEX(Legislation!$G$5:$G$50,MATCH($C156,Legislation!$A$5:$A$50,0)),\"\")))))))","v":""},null,null,null,null,null,null,null,null,null,null,null,null,null,null,null,"","",""]
[156,null,"---",null,null,null,null,null,null,{"$f":"IFERROR(INDEX('Data coll & an'!$F$5:$F$50,MATCH($C157,'Data coll & an'!$A$5:$A$50,0)),IFERROR(INDEX('Prev & Ctrl'!$F$5:$F$50,MATCH($C157,'Prev & Ctrl'!$A$5:$A$50,0)),IFERROR(INDEX('Lab dx'!$F$5:$F$50,MATCH($C157,'Lab dx'!$A$5:$A$50,0)),IFERROR(INDEX('Dog popn'!$F$5:$F$50,MATCH($C157,'Dog popn'!$A$5:$A$50,0)),IFERROR(INDEX(IEC!$F$5:$F$50,MATCH($C157,IEC!$A$5:$A$50,0)),IFERROR(INDEX('Cross-cutting issues'!$F$5:$F$50,MATCH($C157,'Cross-cutting issues'!$A$5:$A$50,0)),IFERROR(INDEX(Legislation!$F$5:$F$50,MATCH($C157,Legislation!$A$5:$A$50,0)),\"\")))))))","v":""},{"$f":"IFERROR(INDEX('Data coll & an'!$G$5:$G$50,MATCH($C157,'Data coll & an'!$A$5:$A$50,0)),IFERROR(INDEX('Prev & Ctrl'!$G$5:$G$50,MATCH($C157,'Prev & Ctrl'!$A$5:$A$50,0)),IFERROR(INDEX('Lab dx'!$G$5:$G$50,MATCH($C157,'Lab dx'!$A$5:$A$50,0)),IFERROR(INDEX('Dog popn'!$G$5:$G$50,MATCH($C157,'Dog popn'!$A$5:$A$50,0)),IFERROR(INDEX(IEC!$G$5:$G$50,MATCH($C157,IEC!$A$5:$A$50,0)),IFERROR(INDEX('Cross-cutting issues'!$G$5:$G$50,MATCH($C157,'Cross-cutting issues'!$A$5:$A$50,0)),IFERROR(INDEX(Legislation!$G$5:$G$50,MATCH($C157,Legislation!$A$5:$A$50,0)),\"\")))))))","v":""},null,null,null,null,null,null,null,null,null,null,null,null,null,null,null,"","",""]
[157,null,"---",null,null,null,null,null,null,{"$f":"IFERROR(INDEX('Data coll & an'!$F$5:$F$50,MATCH($C158,'Data coll & an'!$A$5:$A$50,0)),IFERROR(INDEX('Prev & Ctrl'!$F$5:$F$50,MATCH($C158,'Prev & Ctrl'!$A$5:$A$50,0)),IFERROR(INDEX('Lab dx'!$F$5:$F$50,MATCH($C158,'Lab dx'!$A$5:$A$50,0)),IFERROR(INDEX('Dog popn'!$F$5:$F$50,MATCH($C158,'Dog popn'!$A$5:$A$50,0)),IFERROR(INDEX(IEC!$F$5:$F$50,MATCH($C158,IEC!$A$5:$A$50,0)),IFERROR(INDEX('Cross-cutting issues'!$F$5:$F$50,MATCH($C158,'Cross-cutting issues'!$A$5:$A$50,0)),IFERROR(INDEX(Legislation!$F$5:$F$50,MATCH($C158,Legislation!$A$5:$A$50,0)),\"\")))))))","v":""},{"$f":"IFERROR(INDEX('Data coll & an'!$G$5:$G$50,MATCH($C158,'Data coll & an'!$A$5:$A$50,0)),IFERROR(INDEX('Prev & Ctrl'!$G$5:$G$50,MATCH($C158,'Prev & Ctrl'!$A$5:$A$50,0)),IFERROR(INDEX('Lab dx'!$G$5:$G$50,MATCH($C158,'Lab dx'!$A$5:$A$50,0)),IFERROR(INDEX('Dog popn'!$G$5:$G$50,MATCH($C158,'Dog popn'!$A$5:$A$50,0)),IFERROR(INDEX(IEC!$G$5:$G$50,MATCH($C158,IEC!$A$5:$A$50,0)),IFERROR(INDEX('Cross-cutting issues'!$G$5:$G$50,MATCH($C158,'Cross-cutting issues'!$A$5:$A$50,0)),IFERROR(INDEX(Legislation!$G$5:$G$50,MATCH($C158,Legislation!$A$5:$A$50,0)),\"\")))))))","v":""},null,null,null,null,null,null,null,null,null,null,null,null,null,null,null,"","",""]
[158,null,"---",null,null,null,null,null,null,{"$f":"IFERROR(INDEX('Data coll & an'!$F$5:$F$50,MATCH($C159,'Data coll & an'!$A$5:$A$50,0)),IFERROR(INDEX('Prev & Ctrl'!$F$5:$F$50,MATCH($C159,'Prev & Ctrl'!$A$5:$A$50,0)),IFERROR(INDEX('Lab dx'!$F$5:$F$50,MATCH($C159,'Lab dx'!$A$5:$A$50,0)),IFERROR(INDEX('Dog popn'!$F$5:$F$50,MATCH($C159,'Dog popn'!$A$5:$A$50,0)),IFERROR(INDEX(IEC!$F$5:$F$50,MATCH($C159,IEC!$A$5:$A$50,0)),IFERROR(INDEX('Cross-cutting issues'!$F$5:$F$50,MATCH($C159,'Cross-cutting issues'!$A$5:$A$50,0)),IFERROR(INDEX(Legislation!$F$5:$F$50,MATCH($C159,Legislation!$A$5:$A$50,0)),\"\")))))))","v":""},{"$f":"IFERROR(INDEX('Data coll & an'!$G$5:$G$50,MATCH($C159,'Data coll & an'!$A$5:$A$50,0)),IFERROR(INDEX('Prev & Ctrl'!$G$5:$G$50,MATCH($C159,'Prev & Ctrl'!$A$5:$A$50,0)),IFERROR(INDEX('Lab dx'!$G$5:$G$50,MATCH($C159,'Lab dx'!$A$5:$A$50,0)),IFERROR(INDEX('Dog popn'!$G$5:$G$50,MATCH($C159,'Dog popn'!$A$5:$A$50,0)),IFERROR(INDEX(IEC!$G$5:$G$50,MATCH($C159,IEC!$A$5:$A$50,0)),IFERROR(INDEX('Cross-cutting issues'!$G$5:$G$50,MATCH($C159,'Cross-cutting issues'!$A$5:$A$50,0)),IFERROR(INDEX(Legislation!$G$5:$G$50,MATCH($C159,Legislation!$A$5:$A$50,0)),\"\")))))))","v":""},null,null,null,null,null,null,null,null,null,null,null,null,null,null,null,"","",""]
[159,null,"---",null,null,null,null,null,null,{"$f":"IFERROR(INDEX('Data coll & an'!$F$5:$F$50,MATCH($C160,'Data coll & an'!$A$5:$A$50,0)),IFERROR(INDEX('Prev & Ctrl'!$F$5:$F$50,MATCH($C160,'Prev & Ctrl'!$A$5:$A$50,0)),IFERROR(INDEX('Lab dx'!$F$5:$F$50,MATCH($C160,'Lab dx'!$A$5:$A$50,0)),IFERROR(INDEX('Dog popn'!$F$5:$F$50,MATCH($C160,'Dog popn'!$A$5:$A$50,0)),IFERROR(INDEX(IEC!$F$5:$F$50,MATCH($C160,IEC!$A$5:$A$50,0)),IFERROR(INDEX('Cross-cutting issues'!$F$5:$F$50,MATCH($C160,'Cross-cutting issues'!$A$5:$A$50,0)),IFERROR(INDEX(Legislation!$F$5:$F$50,MATCH($C160,Legislation!$A$5:$A$50,0)),\"\")))))))","v":""},{"$f":"IFERROR(INDEX('Data coll & an'!$G$5:$G$50,MATCH($C160,'Data coll & an'!$A$5:$A$50,0)),IFERROR(INDEX('Prev & Ctrl'!$G$5:$G$50,MATCH($C160,'Prev & Ctrl'!$A$5:$A$50,0)),IFERROR(INDEX('Lab dx'!$G$5:$G$50,MATCH($C160,'Lab dx'!$A$5:$A$50,0)),IFERROR(INDEX('Dog popn'!$G$5:$G$50,MATCH($C160,'Dog popn'!$A$5:$A$50,0)),IFERROR(INDEX(IEC!$G$5:$G$50,MATCH($C160,IEC!$A$5:$A$50,0)),IFERROR(INDEX('Cross-cutting issues'!$G$5:$G$50,MATCH($C160,'Cross-cutting issues'!$A$5:$A$50,0)),IFERROR(INDEX(Legislation!$G$5:$G$50,MATCH($C160,Legislation!$A$5:$A$50,0)),\"\")))))))","v":""},null,null,null,null,null,null,null,null,null,null,null,null,null,null,null,"","",""]
[160,null,"---",null,null,null,null,null,null,{"$f":"IFERROR(INDEX('Data coll & an'!$F$5:$F$50,MATCH($C161,'Data coll & an'!$A$5:$A$50,0)),IFERROR(INDEX('Prev & Ctrl'!$F$5:$F$50,MATCH($C161,'Prev & Ctrl'!$A$5:$A$50,0)),IFERROR(INDEX('Lab dx'!$F$5:$F$50,MATCH($C161,'Lab dx'!$A$5:$A$50,0)),IFERROR(INDEX('Dog popn'!$F$5:$F$50,MATCH($C161,'Dog popn'!$A$5:$A$50,0)),IFERROR(INDEX(IEC!$F$5:$F$50,MATCH($C161,IEC!$A$5:$A$50,0)),IFERROR(INDEX('Cross-cutting issues'!$F$5:$F$50,MATCH($C161,'Cross-cutting issues'!$A$5:$A$50,0)),IFERROR(INDEX(Legislation!$F$5:$F$50,MATCH($C161,Legislation!$A$5:$A$50,0)),\"\")))))))","v":""},{"$f":"IFERROR(INDEX('Data coll & an'!$G$5:$G$50,MATCH($C161,'Data coll & an'!$A$5:$A$50,0)),IFERROR(INDEX('Prev & Ctrl'!$G$5:$G$50,MATCH($C161,'Prev & Ctrl'!$A$5:$A$50,0)),IFERROR(INDEX('Lab dx'!$G$5:$G$50,MATCH($C161,'Lab dx'!$A$5:$A$50,0)),IFERROR(INDEX('Dog popn'!$G$5:$G$50,MATCH($C161,'Dog popn'!$A$5:$A$50,0)),IFERROR(INDEX(IEC!$G$5:$G$50,MATCH($C161,IEC!$A$5:$A$50,0)),IFERROR(INDEX('Cross-cutting issues'!$G$5:$G$50,MATCH($C161,'Cross-cutting issues'!$A$5:$A$50,0)),IFERROR(INDEX(Legislation!$G$5:$G$50,MATCH($C161,Legislation!$A$5:$A$50,0)),\"\")))))))","v":""},null,null,null,null,null,null,null,null,null,null,null,null,null,null,null,"","",""]
[161,null,"---",null,null,null,null,null,null,{"$f":"IFERROR(INDEX('Data coll & an'!$F$5:$F$50,MATCH($C162,'Data coll & an'!$A$5:$A$50,0)),IFERROR(INDEX('Prev & Ctrl'!$F$5:$F$50,MATCH($C162,'Prev & Ctrl'!$A$5:$A$50,0)),IFERROR(INDEX('Lab dx'!$F$5:$F$50,MATCH($C162,'Lab dx'!$A$5:$A$50,0)),IFERROR(INDEX('Dog popn'!$F$5:$F$50,MATCH($C162,'Dog popn'!$A$5:$A$50,0)),IFERROR(INDEX(IEC!$F$5:$F$50,MATCH($C162,IEC!$A$5:$A$50,0)),IFERROR(INDEX('Cross-cutting issues'!$F$5:$F$50,MATCH($C162,'Cross-cutting issues'!$A$5:$A$50,0)),IFERROR(INDEX(Legislation!$F$5:$F$50,MATCH($C162,Legislation!$A$5:$A$50,0)),\"\")))))))","v":""},{"$f":"IFERROR(INDEX('Data coll & an'!$G$5:$G$50,MATCH($C162,'Data coll & an'!$A$5:$A$50,0)),IFERROR(INDEX('Prev & Ctrl'!$G$5:$G$50,MATCH($C162,'Prev & Ctrl'!$A$5:$A$50,0)),IFERROR(INDEX('Lab dx'!$G$5:$G$50,MATCH($C162,'Lab dx'!$A$5:$A$50,0)),IFERROR(INDEX('Dog popn'!$G$5:$G$50,MATCH($C162,'Dog popn'!$A$5:$A$50,0)),IFERROR(INDEX(IEC!$G$5:$G$50,MATCH($C162,IEC!$A$5:$A$50,0)),IFERROR(INDEX('Cross-cutting issues'!$G$5:$G$50,MATCH($C162,'Cross-cutting issues'!$A$5:$A$50,0)),IFERROR(INDEX(Legislation!$G$5:$G$50,MATCH($C162,Legislation!$A$5:$A$50,0)),\"\")))))))","v":""},null,null,null,null,null,null,null,null,null,null,null,null,null,null,null,"","",""]
[162,null,"---",null,null,null,null,null,null,{"$f":"IFERROR(INDEX('Data coll & an'!$F$5:$F$50,MATCH($C163,'Data coll & an'!$A$5:$A$50,0)),IFERROR(INDEX('Prev & Ctrl'!$F$5:$F$50,MATCH($C163,'Prev & Ctrl'!$A$5:$A$50,0)),IFERROR(INDEX('Lab dx'!$F$5:$F$50,MATCH($C163,'Lab dx'!$A$5:$A$50,0)),IFERROR(INDEX('Dog popn'!$F$5:$F$50,MATCH($C163,'Dog popn'!$A$5:$A$50,0)),IFERROR(INDEX(IEC!$F$5:$F$50,MATCH($C163,IEC!$A$5:$A$50,0)),IFERROR(INDEX('Cross-cutting issues'!$F$5:$F$50,MATCH($C163,'Cross-cutting issues'!$A$5:$A$50,0)),IFERROR(INDEX(Legislation!$F$5:$F$50,MATCH($C163,Legislation!$A$5:$A$50,0)),\"\")))))))","v":""},{"$f":"IFERROR(INDEX('Data coll & an'!$G$5:$G$50,MATCH($C163,'Data coll & an'!$A$5:$A$50,0)),IFERROR(INDEX('Prev & Ctrl'!$G$5:$G$50,MATCH($C163,'Prev & Ctrl'!$A$5:$A$50,0)),IFERROR(INDEX('Lab dx'!$G$5:$G$50,MATCH($C163,'Lab dx'!$A$5:$A$50,0)),IFERROR(INDEX('Dog popn'!$G$5:$G$50,MATCH($C163,'Dog popn'!$A$5:$A$50,0)),IFERROR(INDEX(IEC!$G$5:$G$50,MATCH($C163,IEC!$A$5:$A$50,0)),IFERROR(INDEX('Cross-cutting issues'!$G$5:$G$50,MATCH($C163,'Cross-cutting issues'!$A$5:$A$50,0)),IFERROR(INDEX(Legislation!$G$5:$G$50,MATCH($C163,Legislation!$A$5:$A$50,0)),\"\")))))))","v":""},null,null,null,null,null,null,null,null,null,null,null,null,null,null,null,"","",""]
[163,null,"---",null,null,null,null,null,null,{"$f":"IFERROR(INDEX('Data coll & an'!$F$5:$F$50,MATCH($C164,'Data coll & an'!$A$5:$A$50,0)),IFERROR(INDEX('Prev & Ctrl'!$F$5:$F$50,MATCH($C164,'Prev & Ctrl'!$A$5:$A$50,0)),IFERROR(INDEX('Lab dx'!$F$5:$F$50,MATCH($C164,'Lab dx'!$A$5:$A$50,0)),IFERROR(INDEX('Dog popn'!$F$5:$F$50,MATCH($C164,'Dog popn'!$A$5:$A$50,0)),IFERROR(INDEX(IEC!$F$5:$F$50,MATCH($C164,IEC!$A$5:$A$50,0)),IFERROR(INDEX('Cross-cutting issues'!$F$5:$F$50,MATCH($C164,'Cross-cutting issues'!$A$5:$A$50,0)),IFERROR(INDEX(Legislation!$F$5:$F$50,MATCH($C164,Legislation!$A$5:$A$50,0)),\"\")))))))","v":""},{"$f":"IFERROR(INDEX('Data coll & an'!$G$5:$G$50,MATCH($C164,'Data coll & an'!$A$5:$A$50,0)),IFERROR(INDEX('Prev & Ctrl'!$G$5:$G$50,MATCH($C164,'Prev & Ctrl'!$A$5:$A$50,0)),IFERROR(INDEX('Lab dx'!$G$5:$G$50,MATCH($C164,'Lab dx'!$A$5:$A$50,0)),IFERROR(INDEX('Dog popn'!$G$5:$G$50,MATCH($C164,'Dog popn'!$A$5:$A$50,0)),IFERROR(INDEX(IEC!$G$5:$G$50,MATCH($C164,IEC!$A$5:$A$50,0)),IFERROR(INDEX('Cross-cutting issues'!$G$5:$G$50,MATCH($C164,'Cross-cutting issues'!$A$5:$A$50,0)),IFERROR(INDEX(Legislation!$G$5:$G$50,MATCH($C164,Legislation!$A$5:$A$50,0)),\"\")))))))","v":""},null,null,null,null,null,null,null,null,null,null,null,null,null,null,null,"","",""]
[164,null,"---",null,null,null,null,null,null,{"$f":"IFERROR(INDEX('Data coll & an'!$F$5:$F$50,MATCH($C165,'Data coll & an'!$A$5:$A$50,0)),IFERROR(INDEX('Prev & Ctrl'!$F$5:$F$50,MATCH($C165,'Prev & Ctrl'!$A$5:$A$50,0)),IFERROR(INDEX('Lab dx'!$F$5:$F$50,MATCH($C165,'Lab dx'!$A$5:$A$50,0)),IFERROR(INDEX('Dog popn'!$F$5:$F$50,MATCH($C165,'Dog popn'!$A$5:$A$50,0)),IFERROR(INDEX(IEC!$F$5:$F$50,MATCH($C165,IEC!$A$5:$A$50,0)),IFERROR(INDEX('Cross-cutting issues'!$F$5:$F$50,MATCH($C165,'Cross-cutting issues'!$A$5:$A$50,0)),IFERROR(INDEX(Legislation!$F$5:$F$50,MATCH($C165,Legislation!$A$5:$A$50,0)),\"\")))))))","v":""},{"$f":"IFERROR(INDEX('Data coll & an'!$G$5:$G$50,MATCH($C165,'Data coll & an'!$A$5:$A$50,0)),IFERROR(INDEX('Prev & Ctrl'!$G$5:$G$50,MATCH($C165,'Prev & Ctrl'!$A$5:$A$50,0)),IFERROR(INDEX('Lab dx'!$G$5:$G$50,MATCH($C165,'Lab dx'!$A$5:$A$50,0)),IFERROR(INDEX('Dog popn'!$G$5:$G$50,MATCH($C165,'Dog popn'!$A$5:$A$50,0)),IFERROR(INDEX(IEC!$G$5:$G$50,MATCH($C165,IEC!$A$5:$A$50,0)),IFERROR(INDEX('Cross-cutting issues'!$G$5:$G$50,MATCH($C165,'Cross-cutting issues'!$A$5:$A$50,0)),IFERROR(INDEX(Legislation!$G$5:$G$50,MATCH($C165,Legislation!$A$5:$A$50,0)),\"\")))))))","v":""},null,null,null,null,null,null,null,null,null,null,null,null,null,null,null,"","",""]
[165,null,"---",null,null,null,null,null,null,{"$f":"IFERROR(INDEX('Data coll & an'!$F$5:$F$50,MATCH($C166,'Data coll & an'!$A$5:$A$50,0)),IFERROR(INDEX('Prev & Ctrl'!$F$5:$F$50,MATCH($C166,'Prev & Ctrl'!$A$5:$A$50,0)),IFERROR(INDEX('Lab dx'!$F$5:$F$50,MATCH($C166,'Lab dx'!$A$5:$A$50,0)),IFERROR(INDEX('Dog popn'!$F$5:$F$50,MATCH($C166,'Dog popn'!$A$5:$A$50,0)),IFERROR(INDEX(IEC!$F$5:$F$50,MATCH($C166,IEC!$A$5:$A$50,0)),IFERROR(INDEX('Cross-cutting issues'!$F$5:$F$50,MATCH($C166,'Cross-cutting issues'!$A$5:$A$50,0)),IFERROR(INDEX(Legislation!$F$5:$F$50,MATCH($C166,Legislation!$A$5:$A$50,0)),\"\")))))))","v":""},{"$f":"IFERROR(INDEX('Data coll & an'!$G$5:$G$50,MATCH($C166,'Data coll & an'!$A$5:$A$50,0)),IFERROR(INDEX('Prev & Ctrl'!$G$5:$G$50,MATCH($C166,'Prev & Ctrl'!$A$5:$A$50,0)),IFERROR(INDEX('Lab dx'!$G$5:$G$50,MATCH($C166,'Lab dx'!$A$5:$A$50,0)),IFERROR(INDEX('Dog popn'!$G$5:$G$50,MATCH($C166,'Dog popn'!$A$5:$A$50,0)),IFERROR(INDEX(IEC!$G$5:$G$50,MATCH($C166,IEC!$A$5:$A$50,0)),IFERROR(INDEX('Cross-cutting issues'!$G$5:$G$50,MATCH($C166,'Cross-cutting issues'!$A$5:$A$50,0)),IFERROR(INDEX(Legislation!$G$5:$G$50,MATCH($C166,Legislation!$A$5:$A$50,0)),\"\")))))))","v":""},null,null,null,null,null,null,null,null,null,null,null,null,null,null,null,"","",""]
[166,null,"---",null,null,null,null,null,null,{"$f":"IFERROR(INDEX('Data coll & an'!$F$5:$F$50,MATCH($C167,'Data coll & an'!$A$5:$A$50,0)),IFERROR(INDEX('Prev & Ctrl'!$F$5:$F$50,MATCH($C167,'Prev & Ctrl'!$A$5:$A$50,0)),IFERROR(INDEX('Lab dx'!$F$5:$F$50,MATCH($C167,'Lab dx'!$A$5:$A$50,0)),IFERROR(INDEX('Dog popn'!$F$5:$F$50,MATCH($C167,'Dog popn'!$A$5:$A$50,0)),IFERROR(INDEX(IEC!$F$5:$F$50,MATCH($C167,IEC!$A$5:$A$50,0)),IFERROR(INDEX('Cross-cutting issues'!$F$5:$F$50,MATCH($C167,'Cross-cutting issues'!$A$5:$A$50,0)),IFERROR(INDEX(Legislation!$F$5:$F$50,MATCH($C167,Legislation!$A$5:$A$50,0)),\"\")))))))","v":""},{"$f":"IFERROR(INDEX('Data coll & an'!$G$5:$G$50,MATCH($C167,'Data coll & an'!$A$5:$A$50,0)),IFERROR(INDEX('Prev & Ctrl'!$G$5:$G$50,MATCH($C167,'Prev & Ctrl'!$A$5:$A$50,0)),IFERROR(INDEX('Lab dx'!$G$5:$G$50,MATCH($C167,'Lab dx'!$A$5:$A$50,0)),IFERROR(INDEX('Dog popn'!$G$5:$G$50,MATCH($C167,'Dog popn'!$A$5:$A$50,0)),IFERROR(INDEX(IEC!$G$5:$G$50,MATCH($C167,IEC!$A$5:$A$50,0)),IFERROR(INDEX('Cross-cutting issues'!$G$5:$G$50,MATCH($C167,'Cross-cutting issues'!$A$5:$A$50,0)),IFERROR(INDEX(Legislation!$G$5:$G$50,MATCH($C167,Legislation!$A$5:$A$50,0)),\"\")))))))","v":""},null,null,null,null,null,null,null,null,null,null,null,null,null,null,null,"","",""]
[167,null,"---",null,null,null,null,null,null,{"$f":"IFERROR(INDEX('Data coll & an'!$F$5:$F$50,MATCH($C168,'Data coll & an'!$A$5:$A$50,0)),IFERROR(INDEX('Prev & Ctrl'!$F$5:$F$50,MATCH($C168,'Prev & Ctrl'!$A$5:$A$50,0)),IFERROR(INDEX('Lab dx'!$F$5:$F$50,MATCH($C168,'Lab dx'!$A$5:$A$50,0)),IFERROR(INDEX('Dog popn'!$F$5:$F$50,MATCH($C168,'Dog popn'!$A$5:$A$50,0)),IFERROR(INDEX(IEC!$F$5:$F$50,MATCH($C168,IEC!$A$5:$A$50,0)),IFERROR(INDEX('Cross-cutting issues'!$F$5:$F$50,MATCH($C168,'Cross-cutting issues'!$A$5:$A$50,0)),IFERROR(INDEX(Legislation!$F$5:$F$50,MATCH($C168,Legislation!$A$5:$A$50,0)),\"\")))))))","v":""},{"$f":"IFERROR(INDEX('Data coll & an'!$G$5:$G$50,MATCH($C168,'Data coll & an'!$A$5:$A$50,0)),IFERROR(INDEX('Prev & Ctrl'!$G$5:$G$50,MATCH($C168,'Prev & Ctrl'!$A$5:$A$50,0)),IFERROR(INDEX('Lab dx'!$G$5:$G$50,MATCH($C168,'Lab dx'!$A$5:$A$50,0)),IFERROR(INDEX('Dog popn'!$G$5:$G$50,MATCH($C168,'Dog popn'!$A$5:$A$50,0)),IFERROR(INDEX(IEC!$G$5:$G$50,MATCH($C168,IEC!$A$5:$A$50,0)),IFERROR(INDEX('Cross-cutting issues'!$G$5:$G$50,MATCH($C168,'Cross-cutting issues'!$A$5:$A$50,0)),IFERROR(INDEX(Legislation!$G$5:$G$50,MATCH($C168,Legislation!$A$5:$A$50,0)),\"\")))))))","v":""},null,null,null,null,null,null,null,null,null,null,null,null,null,null,null,"","",""]
[168,null,{"$f":"B169&\"-\"&LEFT(D169,3)&\"-\"&E169&\"-\"&F169","v":"---"},null,null,null,null,null,null,{"$f":"IFERROR(INDEX('Data coll & an'!$F$5:$F$50,MATCH($C169,'Data coll & an'!$A$5:$A$50,0)),IFERROR(INDEX('Prev & Ctrl'!$F$5:$F$50,MATCH($C169,'Prev & Ctrl'!$A$5:$A$50,0)),IFERROR(INDEX('Lab dx'!$F$5:$F$50,MATCH($C169,'Lab dx'!$A$5:$A$50,0)),IFERROR(INDEX('Dog popn'!$F$5:$F$50,MATCH($C169,'Dog popn'!$A$5:$A$50,0)),IFERROR(INDEX(IEC!$F$5:$F$50,MATCH($C169,IEC!$A$5:$A$50,0)),IFERROR(INDEX('Cross-cutting issues'!$F$5:$F$50,MATCH($C169,'Cross-cutting issues'!$A$5:$A$50,0)),IFERROR(INDEX(Legislation!$F$5:$F$50,MATCH($C169,Legislation!$A$5:$A$50,0)),\"\")))))))","v":""},{"$f":"IFERROR(INDEX('Data coll & an'!$G$5:$G$50,MATCH($C169,'Data coll & an'!$A$5:$A$50,0)),IFERROR(INDEX('Prev & Ctrl'!$G$5:$G$50,MATCH($C169,'Prev & Ctrl'!$A$5:$A$50,0)),IFERROR(INDEX('Lab dx'!$G$5:$G$50,MATCH($C169,'Lab dx'!$A$5:$A$50,0)),IFERROR(INDEX('Dog popn'!$G$5:$G$50,MATCH($C169,'Dog popn'!$A$5:$A$50,0)),IFERROR(INDEX(IEC!$G$5:$G$50,MATCH($C169,IEC!$A$5:$A$50,0)),IFERROR(INDEX('Cross-cutting issues'!$G$5:$G$50,MATCH($C169,'Cross-cutting issues'!$A$5:$A$50,0)),IFERROR(INDEX(Legislation!$G$5:$G$50,MATCH($C169,Legislation!$A$5:$A$50,0)),\"\")))))))","v":""},null,null,null,null,null,null,null,null,null,null,null,null,null,null,null,"","",""]
[169,null,"---",null,null,null,null,null,null,{"$f":"IFERROR(INDEX('Data coll & an'!$F$5:$F$50,MATCH($C170,'Data coll & an'!$A$5:$A$50,0)),IFERROR(INDEX('Prev & Ctrl'!$F$5:$F$50,MATCH($C170,'Prev & Ctrl'!$A$5:$A$50,0)),IFERROR(INDEX('Lab dx'!$F$5:$F$50,MATCH($C170,'Lab dx'!$A$5:$A$50,0)),IFERROR(INDEX('Dog popn'!$F$5:$F$50,MATCH($C170,'Dog popn'!$A$5:$A$50,0)),IFERROR(INDEX(IEC!$F$5:$F$50,MATCH($C170,IEC!$A$5:$A$50,0)),IFERROR(INDEX('Cross-cutting issues'!$F$5:$F$50,MATCH($C170,'Cross-cutting issues'!$A$5:$A$50,0)),IFERROR(INDEX(Legislation!$F$5:$F$50,MATCH($C170,Legislation!$A$5:$A$50,0)),\"\")))))))","v":""},{"$f":"IFERROR(INDEX('Data coll & an'!$G$5:$G$50,MATCH($C170,'Data coll & an'!$A$5:$A$50,0)),IFERROR(INDEX('Prev & Ctrl'!$G$5:$G$50,MATCH($C170,'Prev & Ctrl'!$A$5:$A$50,0)),IFERROR(INDEX('Lab dx'!$G$5:$G$50,MATCH($C170,'Lab dx'!$A$5:$A$50,0)),IFERROR(INDEX('Dog popn'!$G$5:$G$50,MATCH($C170,'Dog popn'!$A$5:$A$50,0)),IFERROR(INDEX(IEC!$G$5:$G$50,MATCH($C170,IEC!$A$5:$A$50,0)),IFERROR(INDEX('Cross-cutting issues'!$G$5:$G$50,MATCH($C170,'Cross-cutting issues'!$A$5:$A$50,0)),IFERROR(INDEX(Legislation!$G$5:$G$50,MATCH($C170,Legislation!$A$5:$A$50,0)),\"\")))))))","v":""},null,null,null,null,null,null,null,null,null,null,null,null,null,null,null,"","",""]
[170,null,"---",null,null,null,null,null,null,{"$f":"IFERROR(INDEX('Data coll & an'!$F$5:$F$50,MATCH($C171,'Data coll & an'!$A$5:$A$50,0)),IFERROR(INDEX('Prev & Ctrl'!$F$5:$F$50,MATCH($C171,'Prev & Ctrl'!$A$5:$A$50,0)),IFERROR(INDEX('Lab dx'!$F$5:$F$50,MATCH($C171,'Lab dx'!$A$5:$A$50,0)),IFERROR(INDEX('Dog popn'!$F$5:$F$50,MATCH($C171,'Dog popn'!$A$5:$A$50,0)),IFERROR(INDEX(IEC!$F$5:$F$50,MATCH($C171,IEC!$A$5:$A$50,0)),IFERROR(INDEX('Cross-cutting issues'!$F$5:$F$50,MATCH($C171,'Cross-cutting issues'!$A$5:$A$50,0)),IFERROR(INDEX(Legislation!$F$5:$F$50,MATCH($C171,Legislation!$A$5:$A$50,0)),\"\")))))))","v":""},{"$f":"IFERROR(INDEX('Data coll & an'!$G$5:$G$50,MATCH($C171,'Data coll & an'!$A$5:$A$50,0)),IFERROR(INDEX('Prev & Ctrl'!$G$5:$G$50,MATCH($C171,'Prev & Ctrl'!$A$5:$A$50,0)),IFERROR(INDEX('Lab dx'!$G$5:$G$50,MATCH($C171,'Lab dx'!$A$5:$A$50,0)),IFERROR(INDEX('Dog popn'!$G$5:$G$50,MATCH($C171,'Dog popn'!$A$5:$A$50,0)),IFERROR(INDEX(IEC!$G$5:$G$50,MATCH($C171,IEC!$A$5:$A$50,0)),IFERROR(INDEX('Cross-cutting issues'!$G$5:$G$50,MATCH($C171,'Cross-cutting issues'!$A$5:$A$50,0)),IFERROR(INDEX(Legislation!$G$5:$G$50,MATCH($C171,Legislation!$A$5:$A$50,0)),\"\")))))))","v":""},null,null,null,null,null,null,null,null,null,null,null,null,null,null,null,"","",""]
[171,null,"---",null,null,null,null,null,null,{"$f":"IFERROR(INDEX('Data coll & an'!$F$5:$F$50,MATCH($C172,'Data coll & an'!$A$5:$A$50,0)),IFERROR(INDEX('Prev & Ctrl'!$F$5:$F$50,MATCH($C172,'Prev & Ctrl'!$A$5:$A$50,0)),IFERROR(INDEX('Lab dx'!$F$5:$F$50,MATCH($C172,'Lab dx'!$A$5:$A$50,0)),IFERROR(INDEX('Dog popn'!$F$5:$F$50,MATCH($C172,'Dog popn'!$A$5:$A$50,0)),IFERROR(INDEX(IEC!$F$5:$F$50,MATCH($C172,IEC!$A$5:$A$50,0)),IFERROR(INDEX('Cross-cutting issues'!$F$5:$F$50,MATCH($C172,'Cross-cutting issues'!$A$5:$A$50,0)),IFERROR(INDEX(Legislation!$F$5:$F$50,MATCH($C172,Legislation!$A$5:$A$50,0)),\"\")))))))","v":""},{"$f":"IFERROR(INDEX('Data coll & an'!$G$5:$G$50,MATCH($C172,'Data coll & an'!$A$5:$A$50,0)),IFERROR(INDEX('Prev & Ctrl'!$G$5:$G$50,MATCH($C172,'Prev & Ctrl'!$A$5:$A$50,0)),IFERROR(INDEX('Lab dx'!$G$5:$G$50,MATCH($C172,'Lab dx'!$A$5:$A$50,0)),IFERROR(INDEX('Dog popn'!$G$5:$G$50,MATCH($C172,'Dog popn'!$A$5:$A$50,0)),IFERROR(INDEX(IEC!$G$5:$G$50,MATCH($C172,IEC!$A$5:$A$50,0)),IFERROR(INDEX('Cross-cutting issues'!$G$5:$G$50,MATCH($C172,'Cross-cutting issues'!$A$5:$A$50,0)),IFERROR(INDEX(Legislation!$G$5:$G$50,MATCH($C172,Legislation!$A$5:$A$50,0)),\"\")))))))","v":""},null,null,null,null,null,null,null,null,null,null,null,null,null,null,null,"","",""]
[172,null,"---",null,null,null,null,null,null,{"$f":"IFERROR(INDEX('Data coll & an'!$F$5:$F$50,MATCH($C173,'Data coll & an'!$A$5:$A$50,0)),IFERROR(INDEX('Prev & Ctrl'!$F$5:$F$50,MATCH($C173,'Prev & Ctrl'!$A$5:$A$50,0)),IFERROR(INDEX('Lab dx'!$F$5:$F$50,MATCH($C173,'Lab dx'!$A$5:$A$50,0)),IFERROR(INDEX('Dog popn'!$F$5:$F$50,MATCH($C173,'Dog popn'!$A$5:$A$50,0)),IFERROR(INDEX(IEC!$F$5:$F$50,MATCH($C173,IEC!$A$5:$A$50,0)),IFERROR(INDEX('Cross-cutting issues'!$F$5:$F$50,MATCH($C173,'Cross-cutting issues'!$A$5:$A$50,0)),IFERROR(INDEX(Legislation!$F$5:$F$50,MATCH($C173,Legislation!$A$5:$A$50,0)),\"\")))))))","v":""},{"$f":"IFERROR(INDEX('Data coll & an'!$G$5:$G$50,MATCH($C173,'Data coll & an'!$A$5:$A$50,0)),IFERROR(INDEX('Prev & Ctrl'!$G$5:$G$50,MATCH($C173,'Prev & Ctrl'!$A$5:$A$50,0)),IFERROR(INDEX('Lab dx'!$G$5:$G$50,MATCH($C173,'Lab dx'!$A$5:$A$50,0)),IFERROR(INDEX('Dog popn'!$G$5:$G$50,MATCH($C173,'Dog popn'!$A$5:$A$50,0)),IFERROR(INDEX(IEC!$G$5:$G$50,MATCH($C173,IEC!$A$5:$A$50,0)),IFERROR(INDEX('Cross-cutting issues'!$G$5:$G$50,MATCH($C173,'Cross-cutting issues'!$A$5:$A$50,0)),IFERROR(INDEX(Legislation!$G$5:$G$50,MATCH($C173,Legislation!$A$5:$A$50,0)),\"\")))))))","v":""},null,null,null,null,null,null,null,null,null,null,null,null,null,null,null,"","",""]
[173,null,"---",null,null,null,null,null,null,{"$f":"IFERROR(INDEX('Data coll & an'!$F$5:$F$50,MATCH($C174,'Data coll & an'!$A$5:$A$50,0)),IFERROR(INDEX('Prev & Ctrl'!$F$5:$F$50,MATCH($C174,'Prev & Ctrl'!$A$5:$A$50,0)),IFERROR(INDEX('Lab dx'!$F$5:$F$50,MATCH($C174,'Lab dx'!$A$5:$A$50,0)),IFERROR(INDEX('Dog popn'!$F$5:$F$50,MATCH($C174,'Dog popn'!$A$5:$A$50,0)),IFERROR(INDEX(IEC!$F$5:$F$50,MATCH($C174,IEC!$A$5:$A$50,0)),IFERROR(INDEX('Cross-cutting issues'!$F$5:$F$50,MATCH($C174,'Cross-cutting issues'!$A$5:$A$50,0)),IFERROR(INDEX(Legislation!$F$5:$F$50,MATCH($C174,Legislation!$A$5:$A$50,0)),\"\")))))))","v":""},{"$f":"IFERROR(INDEX('Data coll & an'!$G$5:$G$50,MATCH($C174,'Data coll & an'!$A$5:$A$50,0)),IFERROR(INDEX('Prev & Ctrl'!$G$5:$G$50,MATCH($C174,'Prev & Ctrl'!$A$5:$A$50,0)),IFERROR(INDEX('Lab dx'!$G$5:$G$50,MATCH($C174,'Lab dx'!$A$5:$A$50,0)),IFERROR(INDEX('Dog popn'!$G$5:$G$50,MATCH($C174,'Dog popn'!$A$5:$A$50,0)),IFERROR(INDEX(IEC!$G$5:$G$50,MATCH($C174,IEC!$A$5:$A$50,0)),IFERROR(INDEX('Cross-cutting issues'!$G$5:$G$50,MATCH($C174,'Cross-cutting issues'!$A$5:$A$50,0)),IFERROR(INDEX(Legislation!$G$5:$G$50,MATCH($C174,Legislation!$A$5:$A$50,0)),\"\")))))))","v":""},null,null,null,null,null,null,null,null,null,null,null,null,null,null,null,"","",""]
[174,null,"---",null,null,null,null,null,null,{"$f":"IFERROR(INDEX('Data coll & an'!$F$5:$F$50,MATCH($C175,'Data coll & an'!$A$5:$A$50,0)),IFERROR(INDEX('Prev & Ctrl'!$F$5:$F$50,MATCH($C175,'Prev & Ctrl'!$A$5:$A$50,0)),IFERROR(INDEX('Lab dx'!$F$5:$F$50,MATCH($C175,'Lab dx'!$A$5:$A$50,0)),IFERROR(INDEX('Dog popn'!$F$5:$F$50,MATCH($C175,'Dog popn'!$A$5:$A$50,0)),IFERROR(INDEX(IEC!$F$5:$F$50,MATCH($C175,IEC!$A$5:$A$50,0)),IFERROR(INDEX('Cross-cutting issues'!$F$5:$F$50,MATCH($C175,'Cross-cutting issues'!$A$5:$A$50,0)),IFERROR(INDEX(Legislation!$F$5:$F$50,MATCH($C175,Legislation!$A$5:$A$50,0)),\"\")))))))","v":""},{"$f":"IFERROR(INDEX('Data coll & an'!$G$5:$G$50,MATCH($C175,'Data coll & an'!$A$5:$A$50,0)),IFERROR(INDEX('Prev & Ctrl'!$G$5:$G$50,MATCH($C175,'Prev & Ctrl'!$A$5:$A$50,0)),IFERROR(INDEX('Lab dx'!$G$5:$G$50,MATCH($C175,'Lab dx'!$A$5:$A$50,0)),IFERROR(INDEX('Dog popn'!$G$5:$G$50,MATCH($C175,'Dog popn'!$A$5:$A$50,0)),IFERROR(INDEX(IEC!$G$5:$G$50,MATCH($C175,IEC!$A$5:$A$50,0)),IFERROR(INDEX('Cross-cutting issues'!$G$5:$G$50,MATCH($C175,'Cross-cutting issues'!$A$5:$A$50,0)),IFERROR(INDEX(Legislation!$G$5:$G$50,MATCH($C175,Legislation!$A$5:$A$50,0)),\"\")))))))","v":""},null,null,null,null,null,null,null,null,null,null,null,null,null,null,null,"","",""]
[175,null,"---",null,null,null,null,null,null,{"$f":"IFERROR(INDEX('Data coll & an'!$F$5:$F$50,MATCH($C176,'Data coll & an'!$A$5:$A$50,0)),IFERROR(INDEX('Prev & Ctrl'!$F$5:$F$50,MATCH($C176,'Prev & Ctrl'!$A$5:$A$50,0)),IFERROR(INDEX('Lab dx'!$F$5:$F$50,MATCH($C176,'Lab dx'!$A$5:$A$50,0)),IFERROR(INDEX('Dog popn'!$F$5:$F$50,MATCH($C176,'Dog popn'!$A$5:$A$50,0)),IFERROR(INDEX(IEC!$F$5:$F$50,MATCH($C176,IEC!$A$5:$A$50,0)),IFERROR(INDEX('Cross-cutting issues'!$F$5:$F$50,MATCH($C176,'Cross-cutting issues'!$A$5:$A$50,0)),IFERROR(INDEX(Legislation!$F$5:$F$50,MATCH($C176,Legislation!$A$5:$A$50,0)),\"\")))))))","v":""},{"$f":"IFERROR(INDEX('Data coll & an'!$G$5:$G$50,MATCH($C176,'Data coll & an'!$A$5:$A$50,0)),IFERROR(INDEX('Prev & Ctrl'!$G$5:$G$50,MATCH($C176,'Prev & Ctrl'!$A$5:$A$50,0)),IFERROR(INDEX('Lab dx'!$G$5:$G$50,MATCH($C176,'Lab dx'!$A$5:$A$50,0)),IFERROR(INDEX('Dog popn'!$G$5:$G$50,MATCH($C176,'Dog popn'!$A$5:$A$50,0)),IFERROR(INDEX(IEC!$G$5:$G$50,MATCH($C176,IEC!$A$5:$A$50,0)),IFERROR(INDEX('Cross-cutting issues'!$G$5:$G$50,MATCH($C176,'Cross-cutting issues'!$A$5:$A$50,0)),IFERROR(INDEX(Legislation!$G$5:$G$50,MATCH($C176,Legislation!$A$5:$A$50,0)),\"\")))))))","v":""},null,null,null,null,null,null,null,null,null,null,null,null,null,null,null,"","",""]
[176,null,"---",null,null,null,null,null,null,{"$f":"IFERROR(INDEX('Data coll & an'!$F$5:$F$50,MATCH($C177,'Data coll & an'!$A$5:$A$50,0)),IFERROR(INDEX('Prev & Ctrl'!$F$5:$F$50,MATCH($C177,'Prev & Ctrl'!$A$5:$A$50,0)),IFERROR(INDEX('Lab dx'!$F$5:$F$50,MATCH($C177,'Lab dx'!$A$5:$A$50,0)),IFERROR(INDEX('Dog popn'!$F$5:$F$50,MATCH($C177,'Dog popn'!$A$5:$A$50,0)),IFERROR(INDEX(IEC!$F$5:$F$50,MATCH($C177,IEC!$A$5:$A$50,0)),IFERROR(INDEX('Cross-cutting issues'!$F$5:$F$50,MATCH($C177,'Cross-cutting issues'!$A$5:$A$50,0)),IFERROR(INDEX(Legislation!$F$5:$F$50,MATCH($C177,Legislation!$A$5:$A$50,0)),\"\")))))))","v":""},{"$f":"IFERROR(INDEX('Data coll & an'!$G$5:$G$50,MATCH($C177,'Data coll & an'!$A$5:$A$50,0)),IFERROR(INDEX('Prev & Ctrl'!$G$5:$G$50,MATCH($C177,'Prev & Ctrl'!$A$5:$A$50,0)),IFERROR(INDEX('Lab dx'!$G$5:$G$50,MATCH($C177,'Lab dx'!$A$5:$A$50,0)),IFERROR(INDEX('Dog popn'!$G$5:$G$50,MATCH($C177,'Dog popn'!$A$5:$A$50,0)),IFERROR(INDEX(IEC!$G$5:$G$50,MATCH($C177,IEC!$A$5:$A$50,0)),IFERROR(INDEX('Cross-cutting issues'!$G$5:$G$50,MATCH($C177,'Cross-cutting issues'!$A$5:$A$50,0)),IFERROR(INDEX(Legislation!$G$5:$G$50,MATCH($C177,Legislation!$A$5:$A$50,0)),\"\")))))))","v":""},null,null,null,null,null,null,null,null,null,null,null,null,null,null,null,"","",""]
[177,null,"---",null,null,null,null,null,null,{"$f":"IFERROR(INDEX('Data coll & an'!$F$5:$F$50,MATCH($C178,'Data coll & an'!$A$5:$A$50,0)),IFERROR(INDEX('Prev & Ctrl'!$F$5:$F$50,MATCH($C178,'Prev & Ctrl'!$A$5:$A$50,0)),IFERROR(INDEX('Lab dx'!$F$5:$F$50,MATCH($C178,'Lab dx'!$A$5:$A$50,0)),IFERROR(INDEX('Dog popn'!$F$5:$F$50,MATCH($C178,'Dog popn'!$A$5:$A$50,0)),IFERROR(INDEX(IEC!$F$5:$F$50,MATCH($C178,IEC!$A$5:$A$50,0)),IFERROR(INDEX('Cross-cutting issues'!$F$5:$F$50,MATCH($C178,'Cross-cutting issues'!$A$5:$A$50,0)),IFERROR(INDEX(Legislation!$F$5:$F$50,MATCH($C178,Legislation!$A$5:$A$50,0)),\"\")))))))","v":""},{"$f":"IFERROR(INDEX('Data coll & an'!$G$5:$G$50,MATCH($C178,'Data coll & an'!$A$5:$A$50,0)),IFERROR(INDEX('Prev & Ctrl'!$G$5:$G$50,MATCH($C178,'Prev & Ctrl'!$A$5:$A$50,0)),IFERROR(INDEX('Lab dx'!$G$5:$G$50,MATCH($C178,'Lab dx'!$A$5:$A$50,0)),IFERROR(INDEX('Dog popn'!$G$5:$G$50,MATCH($C178,'Dog popn'!$A$5:$A$50,0)),IFERROR(INDEX(IEC!$G$5:$G$50,MATCH($C178,IEC!$A$5:$A$50,0)),IFERROR(INDEX('Cross-cutting issues'!$G$5:$G$50,MATCH($C178,'Cross-cutting issues'!$A$5:$A$50,0)),IFERROR(INDEX(Legislation!$G$5:$G$50,MATCH($C178,Legislation!$A$5:$A$50,0)),\"\")))))))","v":""},null,null,null,null,null,null,null,null,null,null,null,null,null,null,null,"","",""]
[178,null,"---",null,null,null,null,null,null,{"$f":"IFERROR(INDEX('Data coll & an'!$F$5:$F$50,MATCH($C179,'Data coll & an'!$A$5:$A$50,0)),IFERROR(INDEX('Prev & Ctrl'!$F$5:$F$50,MATCH($C179,'Prev & Ctrl'!$A$5:$A$50,0)),IFERROR(INDEX('Lab dx'!$F$5:$F$50,MATCH($C179,'Lab dx'!$A$5:$A$50,0)),IFERROR(INDEX('Dog popn'!$F$5:$F$50,MATCH($C179,'Dog popn'!$A$5:$A$50,0)),IFERROR(INDEX(IEC!$F$5:$F$50,MATCH($C179,IEC!$A$5:$A$50,0)),IFERROR(INDEX('Cross-cutting issues'!$F$5:$F$50,MATCH($C179,'Cross-cutting issues'!$A$5:$A$50,0)),IFERROR(INDEX(Legislation!$F$5:$F$50,MATCH($C179,Legislation!$A$5:$A$50,0)),\"\")))))))","v":""},{"$f":"IFERROR(INDEX('Data coll & an'!$G$5:$G$50,MATCH($C179,'Data coll & an'!$A$5:$A$50,0)),IFERROR(INDEX('Prev & Ctrl'!$G$5:$G$50,MATCH($C179,'Prev & Ctrl'!$A$5:$A$50,0)),IFERROR(INDEX('Lab dx'!$G$5:$G$50,MATCH($C179,'Lab dx'!$A$5:$A$50,0)),IFERROR(INDEX('Dog popn'!$G$5:$G$50,MATCH($C179,'Dog popn'!$A$5:$A$50,0)),IFERROR(INDEX(IEC!$G$5:$G$50,MATCH($C179,IEC!$A$5:$A$50,0)),IFERROR(INDEX('Cross-cutting issues'!$G$5:$G$50,MATCH($C179,'Cross-cutting issues'!$A$5:$A$50,0)),IFERROR(INDEX(Legislation!$G$5:$G$50,MATCH($C179,Legislation!$A$5:$A$50,0)),\"\")))))))","v":""},null,null,null,null,null,null,null,null,null,null,null,null,null,null,null,"","",""]
[179,null,"---",null,null,null,null,null,null,{"$f":"IFERROR(INDEX('Data coll & an'!$F$5:$F$50,MATCH($C180,'Data coll & an'!$A$5:$A$50,0)),IFERROR(INDEX('Prev & Ctrl'!$F$5:$F$50,MATCH($C180,'Prev & Ctrl'!$A$5:$A$50,0)),IFERROR(INDEX('Lab dx'!$F$5:$F$50,MATCH($C180,'Lab dx'!$A$5:$A$50,0)),IFERROR(INDEX('Dog popn'!$F$5:$F$50,MATCH($C180,'Dog popn'!$A$5:$A$50,0)),IFERROR(INDEX(IEC!$F$5:$F$50,MATCH($C180,IEC!$A$5:$A$50,0)),IFERROR(INDEX('Cross-cutting issues'!$F$5:$F$50,MATCH($C180,'Cross-cutting issues'!$A$5:$A$50,0)),IFERROR(INDEX(Legislation!$F$5:$F$50,MATCH($C180,Legislation!$A$5:$A$50,0)),\"\")))))))","v":""},{"$f":"IFERROR(INDEX('Data coll & an'!$G$5:$G$50,MATCH($C180,'Data coll & an'!$A$5:$A$50,0)),IFERROR(INDEX('Prev & Ctrl'!$G$5:$G$50,MATCH($C180,'Prev & Ctrl'!$A$5:$A$50,0)),IFERROR(INDEX('Lab dx'!$G$5:$G$50,MATCH($C180,'Lab dx'!$A$5:$A$50,0)),IFERROR(INDEX('Dog popn'!$G$5:$G$50,MATCH($C180,'Dog popn'!$A$5:$A$50,0)),IFERROR(INDEX(IEC!$G$5:$G$50,MATCH($C180,IEC!$A$5:$A$50,0)),IFERROR(INDEX('Cross-cutting issues'!$G$5:$G$50,MATCH($C180,'Cross-cutting issues'!$A$5:$A$50,0)),IFERROR(INDEX(Legislation!$G$5:$G$50,MATCH($C180,Legislation!$A$5:$A$50,0)),\"\")))))))","v":""},null,null,null,null,null,null,null,null,null,null,null,null,null,null,null,"","",""]
[180,null,"---",null,null,null,null,null,null,{"$f":"IFERROR(INDEX('Data coll & an'!$F$5:$F$50,MATCH($C181,'Data coll & an'!$A$5:$A$50,0)),IFERROR(INDEX('Prev & Ctrl'!$F$5:$F$50,MATCH($C181,'Prev & Ctrl'!$A$5:$A$50,0)),IFERROR(INDEX('Lab dx'!$F$5:$F$50,MATCH($C181,'Lab dx'!$A$5:$A$50,0)),IFERROR(INDEX('Dog popn'!$F$5:$F$50,MATCH($C181,'Dog popn'!$A$5:$A$50,0)),IFERROR(INDEX(IEC!$F$5:$F$50,MATCH($C181,IEC!$A$5:$A$50,0)),IFERROR(INDEX('Cross-cutting issues'!$F$5:$F$50,MATCH($C181,'Cross-cutting issues'!$A$5:$A$50,0)),IFERROR(INDEX(Legislation!$F$5:$F$50,MATCH($C181,Legislation!$A$5:$A$50,0)),\"\")))))))","v":""},{"$f":"IFERROR(INDEX('Data coll & an'!$G$5:$G$50,MATCH($C181,'Data coll & an'!$A$5:$A$50,0)),IFERROR(INDEX('Prev & Ctrl'!$G$5:$G$50,MATCH($C181,'Prev & Ctrl'!$A$5:$A$50,0)),IFERROR(INDEX('Lab dx'!$G$5:$G$50,MATCH($C181,'Lab dx'!$A$5:$A$50,0)),IFERROR(INDEX('Dog popn'!$G$5:$G$50,MATCH($C181,'Dog popn'!$A$5:$A$50,0)),IFERROR(INDEX(IEC!$G$5:$G$50,MATCH($C181,IEC!$A$5:$A$50,0)),IFERROR(INDEX('Cross-cutting issues'!$G$5:$G$50,MATCH($C181,'Cross-cutting issues'!$A$5:$A$50,0)),IFERROR(INDEX(Legislation!$G$5:$G$50,MATCH($C181,Legislation!$A$5:$A$50,0)),\"\")))))))","v":""},null,null,null,null,null,null,null,null,null,null,null,null,null,null,null,"","",""]
[181,null,"---",null,null,null,null,null,null,{"$f":"IFERROR(INDEX('Data coll & an'!$F$5:$F$50,MATCH($C182,'Data coll & an'!$A$5:$A$50,0)),IFERROR(INDEX('Prev & Ctrl'!$F$5:$F$50,MATCH($C182,'Prev & Ctrl'!$A$5:$A$50,0)),IFERROR(INDEX('Lab dx'!$F$5:$F$50,MATCH($C182,'Lab dx'!$A$5:$A$50,0)),IFERROR(INDEX('Dog popn'!$F$5:$F$50,MATCH($C182,'Dog popn'!$A$5:$A$50,0)),IFERROR(INDEX(IEC!$F$5:$F$50,MATCH($C182,IEC!$A$5:$A$50,0)),IFERROR(INDEX('Cross-cutting issues'!$F$5:$F$50,MATCH($C182,'Cross-cutting issues'!$A$5:$A$50,0)),IFERROR(INDEX(Legislation!$F$5:$F$50,MATCH($C182,Legislation!$A$5:$A$50,0)),\"\")))))))","v":""},{"$f":"IFERROR(INDEX('Data coll & an'!$G$5:$G$50,MATCH($C182,'Data coll & an'!$A$5:$A$50,0)),IFERROR(INDEX('Prev & Ctrl'!$G$5:$G$50,MATCH($C182,'Prev & Ctrl'!$A$5:$A$50,0)),IFERROR(INDEX('Lab dx'!$G$5:$G$50,MATCH($C182,'Lab dx'!$A$5:$A$50,0)),IFERROR(INDEX('Dog popn'!$G$5:$G$50,MATCH($C182,'Dog popn'!$A$5:$A$50,0)),IFERROR(INDEX(IEC!$G$5:$G$50,MATCH($C182,IEC!$A$5:$A$50,0)),IFERROR(INDEX('Cross-cutting issues'!$G$5:$G$50,MATCH($C182,'Cross-cutting issues'!$A$5:$A$50,0)),IFERROR(INDEX(Legislation!$G$5:$G$50,MATCH($C182,Legislation!$A$5:$A$50,0)),\"\")))))))","v":""},null,null,null,null,null,null,null,null,null,null,null,null,null,null,null,"","",""]
[182,null,"---",null,null,null,null,null,null,{"$f":"IFERROR(INDEX('Data coll & an'!$F$5:$F$50,MATCH($C183,'Data coll & an'!$A$5:$A$50,0)),IFERROR(INDEX('Prev & Ctrl'!$F$5:$F$50,MATCH($C183,'Prev & Ctrl'!$A$5:$A$50,0)),IFERROR(INDEX('Lab dx'!$F$5:$F$50,MATCH($C183,'Lab dx'!$A$5:$A$50,0)),IFERROR(INDEX('Dog popn'!$F$5:$F$50,MATCH($C183,'Dog popn'!$A$5:$A$50,0)),IFERROR(INDEX(IEC!$F$5:$F$50,MATCH($C183,IEC!$A$5:$A$50,0)),IFERROR(INDEX('Cross-cutting issues'!$F$5:$F$50,MATCH($C183,'Cross-cutting issues'!$A$5:$A$50,0)),IFERROR(INDEX(Legislation!$F$5:$F$50,MATCH($C183,Legislation!$A$5:$A$50,0)),\"\")))))))","v":""},{"$f":"IFERROR(INDEX('Data coll & an'!$G$5:$G$50,MATCH($C183,'Data coll & an'!$A$5:$A$50,0)),IFERROR(INDEX('Prev & Ctrl'!$G$5:$G$50,MATCH($C183,'Prev & Ctrl'!$A$5:$A$50,0)),IFERROR(INDEX('Lab dx'!$G$5:$G$50,MATCH($C183,'Lab dx'!$A$5:$A$50,0)),IFERROR(INDEX('Dog popn'!$G$5:$G$50,MATCH($C183,'Dog popn'!$A$5:$A$50,0)),IFERROR(INDEX(IEC!$G$5:$G$50,MATCH($C183,IEC!$A$5:$A$50,0)),IFERROR(INDEX('Cross-cutting issues'!$G$5:$G$50,MATCH($C183,'Cross-cutting issues'!$A$5:$A$50,0)),IFERROR(INDEX(Legislation!$G$5:$G$50,MATCH($C183,Legislation!$A$5:$A$50,0)),\"\")))))))","v":""},null,null,null,null,null,null,null,null,null,null,null,null,null,null,null,"","",""]
[183,null,"---",null,null,null,null,null,null,{"$f":"IFERROR(INDEX('Data coll & an'!$F$5:$F$50,MATCH($C184,'Data coll & an'!$A$5:$A$50,0)),IFERROR(INDEX('Prev & Ctrl'!$F$5:$F$50,MATCH($C184,'Prev & Ctrl'!$A$5:$A$50,0)),IFERROR(INDEX('Lab dx'!$F$5:$F$50,MATCH($C184,'Lab dx'!$A$5:$A$50,0)),IFERROR(INDEX('Dog popn'!$F$5:$F$50,MATCH($C184,'Dog popn'!$A$5:$A$50,0)),IFERROR(INDEX(IEC!$F$5:$F$50,MATCH($C184,IEC!$A$5:$A$50,0)),IFERROR(INDEX('Cross-cutting issues'!$F$5:$F$50,MATCH($C184,'Cross-cutting issues'!$A$5:$A$50,0)),IFERROR(INDEX(Legislation!$F$5:$F$50,MATCH($C184,Legislation!$A$5:$A$50,0)),\"\")))))))","v":""},{"$f":"IFERROR(INDEX('Data coll & an'!$G$5:$G$50,MATCH($C184,'Data coll & an'!$A$5:$A$50,0)),IFERROR(INDEX('Prev & Ctrl'!$G$5:$G$50,MATCH($C184,'Prev & Ctrl'!$A$5:$A$50,0)),IFERROR(INDEX('Lab dx'!$G$5:$G$50,MATCH($C184,'Lab dx'!$A$5:$A$50,0)),IFERROR(INDEX('Dog popn'!$G$5:$G$50,MATCH($C184,'Dog popn'!$A$5:$A$50,0)),IFERROR(INDEX(IEC!$G$5:$G$50,MATCH($C184,IEC!$A$5:$A$50,0)),IFERROR(INDEX('Cross-cutting issues'!$G$5:$G$50,MATCH($C184,'Cross-cutting issues'!$A$5:$A$50,0)),IFERROR(INDEX(Legislation!$G$5:$G$50,MATCH($C184,Legislation!$A$5:$A$50,0)),\"\")))))))","v":""},null,null,null,null,null,null,null,null,null,null,null,null,null,null,null,"","",""]
[184,null,"---",null,null,null,null,null,null,{"$f":"IFERROR(INDEX('Data coll & an'!$F$5:$F$50,MATCH($C185,'Data coll & an'!$A$5:$A$50,0)),IFERROR(INDEX('Prev & Ctrl'!$F$5:$F$50,MATCH($C185,'Prev & Ctrl'!$A$5:$A$50,0)),IFERROR(INDEX('Lab dx'!$F$5:$F$50,MATCH($C185,'Lab dx'!$A$5:$A$50,0)),IFERROR(INDEX('Dog popn'!$F$5:$F$50,MATCH($C185,'Dog popn'!$A$5:$A$50,0)),IFERROR(INDEX(IEC!$F$5:$F$50,MATCH($C185,IEC!$A$5:$A$50,0)),IFERROR(INDEX('Cross-cutting issues'!$F$5:$F$50,MATCH($C185,'Cross-cutting issues'!$A$5:$A$50,0)),IFERROR(INDEX(Legislation!$F$5:$F$50,MATCH($C185,Legislation!$A$5:$A$50,0)),\"\")))))))","v":""},{"$f":"IFERROR(INDEX('Data coll & an'!$G$5:$G$50,MATCH($C185,'Data coll & an'!$A$5:$A$50,0)),IFERROR(INDEX('Prev & Ctrl'!$G$5:$G$50,MATCH($C185,'Prev & Ctrl'!$A$5:$A$50,0)),IFERROR(INDEX('Lab dx'!$G$5:$G$50,MATCH($C185,'Lab dx'!$A$5:$A$50,0)),IFERROR(INDEX('Dog popn'!$G$5:$G$50,MATCH($C185,'Dog popn'!$A$5:$A$50,0)),IFERROR(INDEX(IEC!$G$5:$G$50,MATCH($C185,IEC!$A$5:$A$50,0)),IFERROR(INDEX('Cross-cutting issues'!$G$5:$G$50,MATCH($C185,'Cross-cutting issues'!$A$5:$A$50,0)),IFERROR(INDEX(Legislation!$G$5:$G$50,MATCH($C185,Legislation!$A$5:$A$50,0)),\"\")))))))","v":""},null,null,null,null,null,null,null,null,null,null,null,null,null,null,null,"","",""]
[185,null,"---",null,null,null,null,null,null,{"$f":"IFERROR(INDEX('Data coll & an'!$F$5:$F$50,MATCH($C186,'Data coll & an'!$A$5:$A$50,0)),IFERROR(INDEX('Prev & Ctrl'!$F$5:$F$50,MATCH($C186,'Prev & Ctrl'!$A$5:$A$50,0)),IFERROR(INDEX('Lab dx'!$F$5:$F$50,MATCH($C186,'Lab dx'!$A$5:$A$50,0)),IFERROR(INDEX('Dog popn'!$F$5:$F$50,MATCH($C186,'Dog popn'!$A$5:$A$50,0)),IFERROR(INDEX(IEC!$F$5:$F$50,MATCH($C186,IEC!$A$5:$A$50,0)),IFERROR(INDEX('Cross-cutting issues'!$F$5:$F$50,MATCH($C186,'Cross-cutting issues'!$A$5:$A$50,0)),IFERROR(INDEX(Legislation!$F$5:$F$50,MATCH($C186,Legislation!$A$5:$A$50,0)),\"\")))))))","v":""},{"$f":"IFERROR(INDEX('Data coll & an'!$G$5:$G$50,MATCH($C186,'Data coll & an'!$A$5:$A$50,0)),IFERROR(INDEX('Prev & Ctrl'!$G$5:$G$50,MATCH($C186,'Prev & Ctrl'!$A$5:$A$50,0)),IFERROR(INDEX('Lab dx'!$G$5:$G$50,MATCH($C186,'Lab dx'!$A$5:$A$50,0)),IFERROR(INDEX('Dog popn'!$G$5:$G$50,MATCH($C186,'Dog popn'!$A$5:$A$50,0)),IFERROR(INDEX(IEC!$G$5:$G$50,MATCH($C186,IEC!$A$5:$A$50,0)),IFERROR(INDEX('Cross-cutting issues'!$G$5:$G$50,MATCH($C186,'Cross-cutting issues'!$A$5:$A$50,0)),IFERROR(INDEX(Legislation!$G$5:$G$50,MATCH($C186,Legislation!$A$5:$A$50,0)),\"\")))))))","v":""},null,null,null,null,null,null,null,null,null,null,null,null,null,null,null,"","",""]
[186,null,"---",null,null,null,null,null,null,{"$f":"IFERROR(INDEX('Data coll & an'!$F$5:$F$50,MATCH($C187,'Data coll & an'!$A$5:$A$50,0)),IFERROR(INDEX('Prev & Ctrl'!$F$5:$F$50,MATCH($C187,'Prev & Ctrl'!$A$5:$A$50,0)),IFERROR(INDEX('Lab dx'!$F$5:$F$50,MATCH($C187,'Lab dx'!$A$5:$A$50,0)),IFERROR(INDEX('Dog popn'!$F$5:$F$50,MATCH($C187,'Dog popn'!$A$5:$A$50,0)),IFERROR(INDEX(IEC!$F$5:$F$50,MATCH($C187,IEC!$A$5:$A$50,0)),IFERROR(INDEX('Cross-cutting issues'!$F$5:$F$50,MATCH($C187,'Cross-cutting issues'!$A$5:$A$50,0)),IFERROR(INDEX(Legislation!$F$5:$F$50,MATCH($C187,Legislation!$A$5:$A$50,0)),\"\")))))))","v":""},{"$f":"IFERROR(INDEX('Data coll & an'!$G$5:$G$50,MATCH($C187,'Data coll & an'!$A$5:$A$50,0)),IFERROR(INDEX('Prev & Ctrl'!$G$5:$G$50,MATCH($C187,'Prev & Ctrl'!$A$5:$A$50,0)),IFERROR(INDEX('Lab dx'!$G$5:$G$50,MATCH($C187,'Lab dx'!$A$5:$A$50,0)),IFERROR(INDEX('Dog popn'!$G$5:$G$50,MATCH($C187,'Dog popn'!$A$5:$A$50,0)),IFERROR(INDEX(IEC!$G$5:$G$50,MATCH($C187,IEC!$A$5:$A$50,0)),IFERROR(INDEX('Cross-cutting issues'!$G$5:$G$50,MATCH($C187,'Cross-cutting issues'!$A$5:$A$50,0)),IFERROR(INDEX(Legislation!$G$5:$G$50,MATCH($C187,Legislation!$A$5:$A$50,0)),\"\")))))))","v":""},null,null,null,null,null,null,null,null,null,null,null,null,null,null,null,"","",""]
[187,null,"---",null,null,null,null,null,null,{"$f":"IFERROR(INDEX('Data coll & an'!$F$5:$F$50,MATCH($C188,'Data coll & an'!$A$5:$A$50,0)),IFERROR(INDEX('Prev & Ctrl'!$F$5:$F$50,MATCH($C188,'Prev & Ctrl'!$A$5:$A$50,0)),IFERROR(INDEX('Lab dx'!$F$5:$F$50,MATCH($C188,'Lab dx'!$A$5:$A$50,0)),IFERROR(INDEX('Dog popn'!$F$5:$F$50,MATCH($C188,'Dog popn'!$A$5:$A$50,0)),IFERROR(INDEX(IEC!$F$5:$F$50,MATCH($C188,IEC!$A$5:$A$50,0)),IFERROR(INDEX('Cross-cutting issues'!$F$5:$F$50,MATCH($C188,'Cross-cutting issues'!$A$5:$A$50,0)),IFERROR(INDEX(Legislation!$F$5:$F$50,MATCH($C188,Legislation!$A$5:$A$50,0)),\"\")))))))","v":""},{"$f":"IFERROR(INDEX('Data coll & an'!$G$5:$G$50,MATCH($C188,'Data coll & an'!$A$5:$A$50,0)),IFERROR(INDEX('Prev & Ctrl'!$G$5:$G$50,MATCH($C188,'Prev & Ctrl'!$A$5:$A$50,0)),IFERROR(INDEX('Lab dx'!$G$5:$G$50,MATCH($C188,'Lab dx'!$A$5:$A$50,0)),IFERROR(INDEX('Dog popn'!$G$5:$G$50,MATCH($C188,'Dog popn'!$A$5:$A$50,0)),IFERROR(INDEX(IEC!$G$5:$G$50,MATCH($C188,IEC!$A$5:$A$50,0)),IFERROR(INDEX('Cross-cutting issues'!$G$5:$G$50,MATCH($C188,'Cross-cutting issues'!$A$5:$A$50,0)),IFERROR(INDEX(Legislation!$G$5:$G$50,MATCH($C188,Legislation!$A$5:$A$50,0)),\"\")))))))","v":""},null,null,null,null,null,null,null,null,null,null,null,null,null,null,null,"","",""]
[188,null,"---",null,null,null,null,null,null,{"$f":"IFERROR(INDEX('Data coll & an'!$F$5:$F$50,MATCH($C189,'Data coll & an'!$A$5:$A$50,0)),IFERROR(INDEX('Prev & Ctrl'!$F$5:$F$50,MATCH($C189,'Prev & Ctrl'!$A$5:$A$50,0)),IFERROR(INDEX('Lab dx'!$F$5:$F$50,MATCH($C189,'Lab dx'!$A$5:$A$50,0)),IFERROR(INDEX('Dog popn'!$F$5:$F$50,MATCH($C189,'Dog popn'!$A$5:$A$50,0)),IFERROR(INDEX(IEC!$F$5:$F$50,MATCH($C189,IEC!$A$5:$A$50,0)),IFERROR(INDEX('Cross-cutting issues'!$F$5:$F$50,MATCH($C189,'Cross-cutting issues'!$A$5:$A$50,0)),IFERROR(INDEX(Legislation!$F$5:$F$50,MATCH($C189,Legislation!$A$5:$A$50,0)),\"\")))))))","v":""},{"$f":"IFERROR(INDEX('Data coll & an'!$G$5:$G$50,MATCH($C189,'Data coll & an'!$A$5:$A$50,0)),IFERROR(INDEX('Prev & Ctrl'!$G$5:$G$50,MATCH($C189,'Prev & Ctrl'!$A$5:$A$50,0)),IFERROR(INDEX('Lab dx'!$G$5:$G$50,MATCH($C189,'Lab dx'!$A$5:$A$50,0)),IFERROR(INDEX('Dog popn'!$G$5:$G$50,MATCH($C189,'Dog popn'!$A$5:$A$50,0)),IFERROR(INDEX(IEC!$G$5:$G$50,MATCH($C189,IEC!$A$5:$A$50,0)),IFERROR(INDEX('Cross-cutting issues'!$G$5:$G$50,MATCH($C189,'Cross-cutting issues'!$A$5:$A$50,0)),IFERROR(INDEX(Legislation!$G$5:$G$50,MATCH($C189,Legislation!$A$5:$A$50,0)),\"\")))))))","v":""},null,null,null,null,null,null,null,null,null,null,null,null,null,null,null,"","",""]
[189,null,"---",null,null,null,null,null,null,{"$f":"IFERROR(INDEX('Data coll & an'!$F$5:$F$50,MATCH($C190,'Data coll & an'!$A$5:$A$50,0)),IFERROR(INDEX('Prev & Ctrl'!$F$5:$F$50,MATCH($C190,'Prev & Ctrl'!$A$5:$A$50,0)),IFERROR(INDEX('Lab dx'!$F$5:$F$50,MATCH($C190,'Lab dx'!$A$5:$A$50,0)),IFERROR(INDEX('Dog popn'!$F$5:$F$50,MATCH($C190,'Dog popn'!$A$5:$A$50,0)),IFERROR(INDEX(IEC!$F$5:$F$50,MATCH($C190,IEC!$A$5:$A$50,0)),IFERROR(INDEX('Cross-cutting issues'!$F$5:$F$50,MATCH($C190,'Cross-cutting issues'!$A$5:$A$50,0)),IFERROR(INDEX(Legislation!$F$5:$F$50,MATCH($C190,Legislation!$A$5:$A$50,0)),\"\")))))))","v":""},{"$f":"IFERROR(INDEX('Data coll & an'!$G$5:$G$50,MATCH($C190,'Data coll & an'!$A$5:$A$50,0)),IFERROR(INDEX('Prev & Ctrl'!$G$5:$G$50,MATCH($C190,'Prev & Ctrl'!$A$5:$A$50,0)),IFERROR(INDEX('Lab dx'!$G$5:$G$50,MATCH($C190,'Lab dx'!$A$5:$A$50,0)),IFERROR(INDEX('Dog popn'!$G$5:$G$50,MATCH($C190,'Dog popn'!$A$5:$A$50,0)),IFERROR(INDEX(IEC!$G$5:$G$50,MATCH($C190,IEC!$A$5:$A$50,0)),IFERROR(INDEX('Cross-cutting issues'!$G$5:$G$50,MATCH($C190,'Cross-cutting issues'!$A$5:$A$50,0)),IFERROR(INDEX(Legislation!$G$5:$G$50,MATCH($C190,Legislation!$A$5:$A$50,0)),\"\")))))))","v":""},null,null,null,null,null,null,null,null,null,null,null,null,null,null,null,"","",""]
[190,null,"---",null,null,null,null,null,null,{"$f":"IFERROR(INDEX('Data coll & an'!$F$5:$F$50,MATCH($C191,'Data coll & an'!$A$5:$A$50,0)),IFERROR(INDEX('Prev & Ctrl'!$F$5:$F$50,MATCH($C191,'Prev & Ctrl'!$A$5:$A$50,0)),IFERROR(INDEX('Lab dx'!$F$5:$F$50,MATCH($C191,'Lab dx'!$A$5:$A$50,0)),IFERROR(INDEX('Dog popn'!$F$5:$F$50,MATCH($C191,'Dog popn'!$A$5:$A$50,0)),IFERROR(INDEX(IEC!$F$5:$F$50,MATCH($C191,IEC!$A$5:$A$50,0)),IFERROR(INDEX('Cross-cutting issues'!$F$5:$F$50,MATCH($C191,'Cross-cutting issues'!$A$5:$A$50,0)),IFERROR(INDEX(Legislation!$F$5:$F$50,MATCH($C191,Legislation!$A$5:$A$50,0)),\"\")))))))","v":""},{"$f":"IFERROR(INDEX('Data coll & an'!$G$5:$G$50,MATCH($C191,'Data coll & an'!$A$5:$A$50,0)),IFERROR(INDEX('Prev & Ctrl'!$G$5:$G$50,MATCH($C191,'Prev & Ctrl'!$A$5:$A$50,0)),IFERROR(INDEX('Lab dx'!$G$5:$G$50,MATCH($C191,'Lab dx'!$A$5:$A$50,0)),IFERROR(INDEX('Dog popn'!$G$5:$G$50,MATCH($C191,'Dog popn'!$A$5:$A$50,0)),IFERROR(INDEX(IEC!$G$5:$G$50,MATCH($C191,IEC!$A$5:$A$50,0)),IFERROR(INDEX('Cross-cutting issues'!$G$5:$G$50,MATCH($C191,'Cross-cutting issues'!$A$5:$A$50,0)),IFERROR(INDEX(Legislation!$G$5:$G$50,MATCH($C191,Legislation!$A$5:$A$50,0)),\"\")))))))","v":""},null,null,null,null,null,null,null,null,null,null,null,null,null,null,null,"","",""]
[191,null,"---",null,null,null,null,null,null,{"$f":"IFERROR(INDEX('Data coll & an'!$F$5:$F$50,MATCH($C192,'Data coll & an'!$A$5:$A$50,0)),IFERROR(INDEX('Prev & Ctrl'!$F$5:$F$50,MATCH($C192,'Prev & Ctrl'!$A$5:$A$50,0)),IFERROR(INDEX('Lab dx'!$F$5:$F$50,MATCH($C192,'Lab dx'!$A$5:$A$50,0)),IFERROR(INDEX('Dog popn'!$F$5:$F$50,MATCH($C192,'Dog popn'!$A$5:$A$50,0)),IFERROR(INDEX(IEC!$F$5:$F$50,MATCH($C192,IEC!$A$5:$A$50,0)),IFERROR(INDEX('Cross-cutting issues'!$F$5:$F$50,MATCH($C192,'Cross-cutting issues'!$A$5:$A$50,0)),IFERROR(INDEX(Legislation!$F$5:$F$50,MATCH($C192,Legislation!$A$5:$A$50,0)),\"\")))))))","v":""},{"$f":"IFERROR(INDEX('Data coll & an'!$G$5:$G$50,MATCH($C192,'Data coll & an'!$A$5:$A$50,0)),IFERROR(INDEX('Prev & Ctrl'!$G$5:$G$50,MATCH($C192,'Prev & Ctrl'!$A$5:$A$50,0)),IFERROR(INDEX('Lab dx'!$G$5:$G$50,MATCH($C192,'Lab dx'!$A$5:$A$50,0)),IFERROR(INDEX('Dog popn'!$G$5:$G$50,MATCH($C192,'Dog popn'!$A$5:$A$50,0)),IFERROR(INDEX(IEC!$G$5:$G$50,MATCH($C192,IEC!$A$5:$A$50,0)),IFERROR(INDEX('Cross-cutting issues'!$G$5:$G$50,MATCH($C192,'Cross-cutting issues'!$A$5:$A$50,0)),IFERROR(INDEX(Legislation!$G$5:$G$50,MATCH($C192,Legislation!$A$5:$A$50,0)),\"\")))))))","v":""},null,null,null,null,null,null,null,null,null,null,null,null,null,null,null,"","",""]
[192,null,"---",null,null,null,null,null,null,{"$f":"IFERROR(INDEX('Data coll & an'!$F$5:$F$50,MATCH($C193,'Data coll & an'!$A$5:$A$50,0)),IFERROR(INDEX('Prev & Ctrl'!$F$5:$F$50,MATCH($C193,'Prev & Ctrl'!$A$5:$A$50,0)),IFERROR(INDEX('Lab dx'!$F$5:$F$50,MATCH($C193,'Lab dx'!$A$5:$A$50,0)),IFERROR(INDEX('Dog popn'!$F$5:$F$50,MATCH($C193,'Dog popn'!$A$5:$A$50,0)),IFERROR(INDEX(IEC!$F$5:$F$50,MATCH($C193,IEC!$A$5:$A$50,0)),IFERROR(INDEX('Cross-cutting issues'!$F$5:$F$50,MATCH($C193,'Cross-cutting issues'!$A$5:$A$50,0)),IFERROR(INDEX(Legislation!$F$5:$F$50,MATCH($C193,Legislation!$A$5:$A$50,0)),\"\")))))))","v":""},{"$f":"IFERROR(INDEX('Data coll & an'!$G$5:$G$50,MATCH($C193,'Data coll & an'!$A$5:$A$50,0)),IFERROR(INDEX('Prev & Ctrl'!$G$5:$G$50,MATCH($C193,'Prev & Ctrl'!$A$5:$A$50,0)),IFERROR(INDEX('Lab dx'!$G$5:$G$50,MATCH($C193,'Lab dx'!$A$5:$A$50,0)),IFERROR(INDEX('Dog popn'!$G$5:$G$50,MATCH($C193,'Dog popn'!$A$5:$A$50,0)),IFERROR(INDEX(IEC!$G$5:$G$50,MATCH($C193,IEC!$A$5:$A$50,0)),IFERROR(INDEX('Cross-cutting issues'!$G$5:$G$50,MATCH($C193,'Cross-cutting issues'!$A$5:$A$50,0)),IFERROR(INDEX(Legislation!$G$5:$G$50,MATCH($C193,Legislation!$A$5:$A$50,0)),\"\")))))))","v":""},null,null,null,null,null,null,null,null,null,null,null,null,null,null,null,"","",""]
[193,null,"---",null,null,null,null,null,null,{"$f":"IFERROR(INDEX('Data coll & an'!$F$5:$F$50,MATCH($C194,'Data coll & an'!$A$5:$A$50,0)),IFERROR(INDEX('Prev & Ctrl'!$F$5:$F$50,MATCH($C194,'Prev & Ctrl'!$A$5:$A$50,0)),IFERROR(INDEX('Lab dx'!$F$5:$F$50,MATCH($C194,'Lab dx'!$A$5:$A$50,0)),IFERROR(INDEX('Dog popn'!$F$5:$F$50,MATCH($C194,'Dog popn'!$A$5:$A$50,0)),IFERROR(INDEX(IEC!$F$5:$F$50,MATCH($C194,IEC!$A$5:$A$50,0)),IFERROR(INDEX('Cross-cutting issues'!$F$5:$F$50,MATCH($C194,'Cross-cutting issues'!$A$5:$A$50,0)),IFERROR(INDEX(Legislation!$F$5:$F$50,MATCH($C194,Legislation!$A$5:$A$50,0)),\"\")))))))","v":""},{"$f":"IFERROR(INDEX('Data coll & an'!$G$5:$G$50,MATCH($C194,'Data coll & an'!$A$5:$A$50,0)),IFERROR(INDEX('Prev & Ctrl'!$G$5:$G$50,MATCH($C194,'Prev & Ctrl'!$A$5:$A$50,0)),IFERROR(INDEX('Lab dx'!$G$5:$G$50,MATCH($C194,'Lab dx'!$A$5:$A$50,0)),IFERROR(INDEX('Dog popn'!$G$5:$G$50,MATCH($C194,'Dog popn'!$A$5:$A$50,0)),IFERROR(INDEX(IEC!$G$5:$G$50,MATCH($C194,IEC!$A$5:$A$50,0)),IFERROR(INDEX('Cross-cutting issues'!$G$5:$G$50,MATCH($C194,'Cross-cutting issues'!$A$5:$A$50,0)),IFERROR(INDEX(Legislation!$G$5:$G$50,MATCH($C194,Legislation!$A$5:$A$50,0)),\"\")))))))","v":""},null,null,null,null,null,null,null,null,null,null,null,null,null,null,null,"","",""]
[194,null,"---",null,null,null,null,null,null,{"$f":"IFERROR(INDEX('Data coll & an'!$F$5:$F$50,MATCH($C195,'Data coll & an'!$A$5:$A$50,0)),IFERROR(INDEX('Prev & Ctrl'!$F$5:$F$50,MATCH($C195,'Prev & Ctrl'!$A$5:$A$50,0)),IFERROR(INDEX('Lab dx'!$F$5:$F$50,MATCH($C195,'Lab dx'!$A$5:$A$50,0)),IFERROR(INDEX('Dog popn'!$F$5:$F$50,MATCH($C195,'Dog popn'!$A$5:$A$50,0)),IFERROR(INDEX(IEC!$F$5:$F$50,MATCH($C195,IEC!$A$5:$A$50,0)),IFERROR(INDEX('Cross-cutting issues'!$F$5:$F$50,MATCH($C195,'Cross-cutting issues'!$A$5:$A$50,0)),IFERROR(INDEX(Legislation!$F$5:$F$50,MATCH($C195,Legislation!$A$5:$A$50,0)),\"\")))))))","v":""},{"$f":"IFERROR(INDEX('Data coll & an'!$G$5:$G$50,MATCH($C195,'Data coll & an'!$A$5:$A$50,0)),IFERROR(INDEX('Prev & Ctrl'!$G$5:$G$50,MATCH($C195,'Prev & Ctrl'!$A$5:$A$50,0)),IFERROR(INDEX('Lab dx'!$G$5:$G$50,MATCH($C195,'Lab dx'!$A$5:$A$50,0)),IFERROR(INDEX('Dog popn'!$G$5:$G$50,MATCH($C195,'Dog popn'!$A$5:$A$50,0)),IFERROR(INDEX(IEC!$G$5:$G$50,MATCH($C195,IEC!$A$5:$A$50,0)),IFERROR(INDEX('Cross-cutting issues'!$G$5:$G$50,MATCH($C195,'Cross-cutting issues'!$A$5:$A$50,0)),IFERROR(INDEX(Legislation!$G$5:$G$50,MATCH($C195,Legislation!$A$5:$A$50,0)),\"\")))))))","v":""},null,null,null,null,null,null,null,null,null,null,null,null,null,null,null,"","",""]
[195,null,"---",null,null,null,null,null,null,{"$f":"IFERROR(INDEX('Data coll & an'!$F$5:$F$50,MATCH($C196,'Data coll & an'!$A$5:$A$50,0)),IFERROR(INDEX('Prev & Ctrl'!$F$5:$F$50,MATCH($C196,'Prev & Ctrl'!$A$5:$A$50,0)),IFERROR(INDEX('Lab dx'!$F$5:$F$50,MATCH($C196,'Lab dx'!$A$5:$A$50,0)),IFERROR(INDEX('Dog popn'!$F$5:$F$50,MATCH($C196,'Dog popn'!$A$5:$A$50,0)),IFERROR(INDEX(IEC!$F$5:$F$50,MATCH($C196,IEC!$A$5:$A$50,0)),IFERROR(INDEX('Cross-cutting issues'!$F$5:$F$50,MATCH($C196,'Cross-cutting issues'!$A$5:$A$50,0)),IFERROR(INDEX(Legislation!$F$5:$F$50,MATCH($C196,Legislation!$A$5:$A$50,0)),\"\")))))))","v":""},{"$f":"IFERROR(INDEX('Data coll & an'!$G$5:$G$50,MATCH($C196,'Data coll & an'!$A$5:$A$50,0)),IFERROR(INDEX('Prev & Ctrl'!$G$5:$G$50,MATCH($C196,'Prev & Ctrl'!$A$5:$A$50,0)),IFERROR(INDEX('Lab dx'!$G$5:$G$50,MATCH($C196,'Lab dx'!$A$5:$A$50,0)),IFERROR(INDEX('Dog popn'!$G$5:$G$50,MATCH($C196,'Dog popn'!$A$5:$A$50,0)),IFERROR(INDEX(IEC!$G$5:$G$50,MATCH($C196,IEC!$A$5:$A$50,0)),IFERROR(INDEX('Cross-cutting issues'!$G$5:$G$50,MATCH($C196,'Cross-cutting issues'!$A$5:$A$50,0)),IFERROR(INDEX(Legislation!$G$5:$G$50,MATCH($C196,Legislation!$A$5:$A$50,0)),\"\")))))))","v":""},null,null,null,null,null,null,null,null,null,null,null,null,null,null,null,"","",""]
[196,null,"---",null,null,null,null,null,null,{"$f":"IFERROR(INDEX('Data coll & an'!$F$5:$F$50,MATCH($C197,'Data coll & an'!$A$5:$A$50,0)),IFERROR(INDEX('Prev & Ctrl'!$F$5:$F$50,MATCH($C197,'Prev & Ctrl'!$A$5:$A$50,0)),IFERROR(INDEX('Lab dx'!$F$5:$F$50,MATCH($C197,'Lab dx'!$A$5:$A$50,0)),IFERROR(INDEX('Dog popn'!$F$5:$F$50,MATCH($C197,'Dog popn'!$A$5:$A$50,0)),IFERROR(INDEX(IEC!$F$5:$F$50,MATCH($C197,IEC!$A$5:$A$50,0)),IFERROR(INDEX('Cross-cutting issues'!$F$5:$F$50,MATCH($C197,'Cross-cutting issues'!$A$5:$A$50,0)),IFERROR(INDEX(Legislation!$F$5:$F$50,MATCH($C197,Legislation!$A$5:$A$50,0)),\"\")))))))","v":""},{"$f":"IFERROR(INDEX('Data coll & an'!$G$5:$G$50,MATCH($C197,'Data coll & an'!$A$5:$A$50,0)),IFERROR(INDEX('Prev & Ctrl'!$G$5:$G$50,MATCH($C197,'Prev & Ctrl'!$A$5:$A$50,0)),IFERROR(INDEX('Lab dx'!$G$5:$G$50,MATCH($C197,'Lab dx'!$A$5:$A$50,0)),IFERROR(INDEX('Dog popn'!$G$5:$G$50,MATCH($C197,'Dog popn'!$A$5:$A$50,0)),IFERROR(INDEX(IEC!$G$5:$G$50,MATCH($C197,IEC!$A$5:$A$50,0)),IFERROR(INDEX('Cross-cutting issues'!$G$5:$G$50,MATCH($C197,'Cross-cutting issues'!$A$5:$A$50,0)),IFERROR(INDEX(Legislation!$G$5:$G$50,MATCH($C197,Legislation!$A$5:$A$50,0)),\"\")))))))","v":""},null,null,null,null,null,null,null,null,null,null,null,null,null,null,null,"","",""]
[197,null,"---",null,null,null,null,null,null,{"$f":"IFERROR(INDEX('Data coll & an'!$F$5:$F$50,MATCH($C198,'Data coll & an'!$A$5:$A$50,0)),IFERROR(INDEX('Prev & Ctrl'!$F$5:$F$50,MATCH($C198,'Prev & Ctrl'!$A$5:$A$50,0)),IFERROR(INDEX('Lab dx'!$F$5:$F$50,MATCH($C198,'Lab dx'!$A$5:$A$50,0)),IFERROR(INDEX('Dog popn'!$F$5:$F$50,MATCH($C198,'Dog popn'!$A$5:$A$50,0)),IFERROR(INDEX(IEC!$F$5:$F$50,MATCH($C198,IEC!$A$5:$A$50,0)),IFERROR(INDEX('Cross-cutting issues'!$F$5:$F$50,MATCH($C198,'Cross-cutting issues'!$A$5:$A$50,0)),IFERROR(INDEX(Legislation!$F$5:$F$50,MATCH($C198,Legislation!$A$5:$A$50,0)),\"\")))))))","v":""},{"$f":"IFERROR(INDEX('Data coll & an'!$G$5:$G$50,MATCH($C198,'Data coll & an'!$A$5:$A$50,0)),IFERROR(INDEX('Prev & Ctrl'!$G$5:$G$50,MATCH($C198,'Prev & Ctrl'!$A$5:$A$50,0)),IFERROR(INDEX('Lab dx'!$G$5:$G$50,MATCH($C198,'Lab dx'!$A$5:$A$50,0)),IFERROR(INDEX('Dog popn'!$G$5:$G$50,MATCH($C198,'Dog popn'!$A$5:$A$50,0)),IFERROR(INDEX(IEC!$G$5:$G$50,MATCH($C198,IEC!$A$5:$A$50,0)),IFERROR(INDEX('Cross-cutting issues'!$G$5:$G$50,MATCH($C198,'Cross-cutting issues'!$A$5:$A$50,0)),IFERROR(INDEX(Legislation!$G$5:$G$50,MATCH($C198,Legislation!$A$5:$A$50,0)),\"\")))))))","v":""},null,null,null,null,null,null,null,null,null,null,null,null,null,null,null,"","",""]
[198,null,"---",null,null,null,null,null,null,{"$f":"IFERROR(INDEX('Data coll & an'!$F$5:$F$50,MATCH($C199,'Data coll & an'!$A$5:$A$50,0)),IFERROR(INDEX('Prev & Ctrl'!$F$5:$F$50,MATCH($C199,'Prev & Ctrl'!$A$5:$A$50,0)),IFERROR(INDEX('Lab dx'!$F$5:$F$50,MATCH($C199,'Lab dx'!$A$5:$A$50,0)),IFERROR(INDEX('Dog popn'!$F$5:$F$50,MATCH($C199,'Dog popn'!$A$5:$A$50,0)),IFERROR(INDEX(IEC!$F$5:$F$50,MATCH($C199,IEC!$A$5:$A$50,0)),IFERROR(INDEX('Cross-cutting issues'!$F$5:$F$50,MATCH($C199,'Cross-cutting issues'!$A$5:$A$50,0)),IFERROR(INDEX(Legislation!$F$5:$F$50,MATCH($C199,Legislation!$A$5:$A$50,0)),\"\")))))))","v":""},{"$f":"IFERROR(INDEX('Data coll & an'!$G$5:$G$50,MATCH($C199,'Data coll & an'!$A$5:$A$50,0)),IFERROR(INDEX('Prev & Ctrl'!$G$5:$G$50,MATCH($C199,'Prev & Ctrl'!$A$5:$A$50,0)),IFERROR(INDEX('Lab dx'!$G$5:$G$50,MATCH($C199,'Lab dx'!$A$5:$A$50,0)),IFERROR(INDEX('Dog popn'!$G$5:$G$50,MATCH($C199,'Dog popn'!$A$5:$A$50,0)),IFERROR(INDEX(IEC!$G$5:$G$50,MATCH($C199,IEC!$A$5:$A$50,0)),IFERROR(INDEX('Cross-cutting issues'!$G$5:$G$50,MATCH($C199,'Cross-cutting issues'!$A$5:$A$50,0)),IFERROR(INDEX(Legislation!$G$5:$G$50,MATCH($C199,Legislation!$A$5:$A$50,0)),\"\")))))))","v":""},null,null,null,null,null,null,null,null,null,null,null,null,null,null,null,"","",""]
[199,null,"---",null,null,null,null,null,null,{"$f":"IFERROR(INDEX('Data coll & an'!$F$5:$F$50,MATCH($C200,'Data coll & an'!$A$5:$A$50,0)),IFERROR(INDEX('Prev & Ctrl'!$F$5:$F$50,MATCH($C200,'Prev & Ctrl'!$A$5:$A$50,0)),IFERROR(INDEX('Lab dx'!$F$5:$F$50,MATCH($C200,'Lab dx'!$A$5:$A$50,0)),IFERROR(INDEX('Dog popn'!$F$5:$F$50,MATCH($C200,'Dog popn'!$A$5:$A$50,0)),IFERROR(INDEX(IEC!$F$5:$F$50,MATCH($C200,IEC!$A$5:$A$50,0)),IFERROR(INDEX('Cross-cutting issues'!$F$5:$F$50,MATCH($C200,'Cross-cutting issues'!$A$5:$A$50,0)),IFERROR(INDEX(Legislation!$F$5:$F$50,MATCH($C200,Legislation!$A$5:$A$50,0)),\"\")))))))","v":""},{"$f":"IFERROR(INDEX('Data coll & an'!$G$5:$G$50,MATCH($C200,'Data coll & an'!$A$5:$A$50,0)),IFERROR(INDEX('Prev & Ctrl'!$G$5:$G$50,MATCH($C200,'Prev & Ctrl'!$A$5:$A$50,0)),IFERROR(INDEX('Lab dx'!$G$5:$G$50,MATCH($C200,'Lab dx'!$A$5:$A$50,0)),IFERROR(INDEX('Dog popn'!$G$5:$G$50,MATCH($C200,'Dog popn'!$A$5:$A$50,0)),IFERROR(INDEX(IEC!$G$5:$G$50,MATCH($C200,IEC!$A$5:$A$50,0)),IFERROR(INDEX('Cross-cutting issues'!$G$5:$G$50,MATCH($C200,'Cross-cutting issues'!$A$5:$A$50,0)),IFERROR(INDEX(Legislation!$G$5:$G$50,MATCH($C200,Legislation!$A$5:$A$50,0)),\"\")))))))","v":""},null,null,null,null,null,null,null,null,null,null,null,null,null,null,null,"","",""]
[200,null,{"$f":"B201&\"-\"&LEFT(D201,3)&\"-\"&E201&\"-\"&F201","v":"---"},null,null,null,null,null,null,{"$f":"IFERROR(INDEX('Data coll & an'!$F$5:$F$50,MATCH($C201,'Data coll & an'!$A$5:$A$50,0)),IFERROR(INDEX('Prev & Ctrl'!$F$5:$F$50,MATCH($C201,'Prev & Ctrl'!$A$5:$A$50,0)),IFERROR(INDEX('Lab dx'!$F$5:$F$50,MATCH($C201,'Lab dx'!$A$5:$A$50,0)),IFERROR(INDEX('Dog popn'!$F$5:$F$50,MATCH($C201,'Dog popn'!$A$5:$A$50,0)),IFERROR(INDEX(IEC!$F$5:$F$50,MATCH($C201,IEC!$A$5:$A$50,0)),IFERROR(INDEX('Cross-cutting issues'!$F$5:$F$50,MATCH($C201,'Cross-cutting issues'!$A$5:$A$50,0)),IFERROR(INDEX(Legislation!$F$5:$F$50,MATCH($C201,Legislation!$A$5:$A$50,0)),\"\")))))))","v":""},{"$f":"IFERROR(INDEX('Data coll & an'!$G$5:$G$50,MATCH($C201,'Data coll & an'!$A$5:$A$50,0)),IFERROR(INDEX('Prev & Ctrl'!$G$5:$G$50,MATCH($C201,'Prev & Ctrl'!$A$5:$A$50,0)),IFERROR(INDEX('Lab dx'!$G$5:$G$50,MATCH($C201,'Lab dx'!$A$5:$A$50,0)),IFERROR(INDEX('Dog popn'!$G$5:$G$50,MATCH($C201,'Dog popn'!$A$5:$A$50,0)),IFERROR(INDEX(IEC!$G$5:$G$50,MATCH($C201,IEC!$A$5:$A$50,0)),IFERROR(INDEX('Cross-cutting issues'!$G$5:$G$50,MATCH($C201,'Cross-cutting issues'!$A$5:$A$50,0)),IFERROR(INDEX(Legislation!$G$5:$G$50,MATCH($C201,Legislation!$A$5:$A$50,0)),\"\")))))))","v":""},null,null,null,null,null,null,null,null,null,null,null,null,null,null,null,"","",""]
[201,null,"---",null,null,null,null,null,null,{"$f":"IFERROR(INDEX('Data coll & an'!$F$5:$F$50,MATCH($C202,'Data coll & an'!$A$5:$A$50,0)),IFERROR(INDEX('Prev & Ctrl'!$F$5:$F$50,MATCH($C202,'Prev & Ctrl'!$A$5:$A$50,0)),IFERROR(INDEX('Lab dx'!$F$5:$F$50,MATCH($C202,'Lab dx'!$A$5:$A$50,0)),IFERROR(INDEX('Dog popn'!$F$5:$F$50,MATCH($C202,'Dog popn'!$A$5:$A$50,0)),IFERROR(INDEX(IEC!$F$5:$F$50,MATCH($C202,IEC!$A$5:$A$50,0)),IFERROR(INDEX('Cross-cutting issues'!$F$5:$F$50,MATCH($C202,'Cross-cutting issues'!$A$5:$A$50,0)),IFERROR(INDEX(Legislation!$F$5:$F$50,MATCH($C202,Legislation!$A$5:$A$50,0)),\"\")))))))","v":""},{"$f":"IFERROR(INDEX('Data coll & an'!$G$5:$G$50,MATCH($C202,'Data coll & an'!$A$5:$A$50,0)),IFERROR(INDEX('Prev & Ctrl'!$G$5:$G$50,MATCH($C202,'Prev & Ctrl'!$A$5:$A$50,0)),IFERROR(INDEX('Lab dx'!$G$5:$G$50,MATCH($C202,'Lab dx'!$A$5:$A$50,0)),IFERROR(INDEX('Dog popn'!$G$5:$G$50,MATCH($C202,'Dog popn'!$A$5:$A$50,0)),IFERROR(INDEX(IEC!$G$5:$G$50,MATCH($C202,IEC!$A$5:$A$50,0)),IFERROR(INDEX('Cross-cutting issues'!$G$5:$G$50,MATCH($C202,'Cross-cutting issues'!$A$5:$A$50,0)),IFERROR(INDEX(Legislation!$G$5:$G$50,MATCH($C202,Legislation!$A$5:$A$50,0)),\"\")))))))","v":""},null,null,null,null,null,null,null,null,null,null,null,null,null,null,null,{"$f":"IFERROR(VLOOKUP($C202,INDIRECT(\"DCA!a13:j49\"),6,FALSE),IFERROR(VLOOKUP($C202,INDIRECT(\"pco!a13:j49\"),6,FALSE),IFERROR(VLOOKUP($C202,INDIRECT(\"lab!a13:j49\"),6,FALSE),IFERROR(VLOOKUP($C202,INDIRECT(\"dpm!a13:j49\"),6,FALSE),IFERROR(VLOOKUP($C202,INDIRECT(\"iecnw!a13:j49\"),6,FALSE),IFERROR(VLOOKUP($C202,INDIRECT(\"cci!a13:j49\"),6,FALSE),IFERROR(VLOOKUP($C202,INDIRECT(\"leg!a13:j49\"),6,FALSE),\"\")))))))","v":""},{"$f":"IFERROR(VLOOKUP($C202,INDIRECT(\"DCA!a13:j49\"),8,FALSE),IFERROR(VLOOKUP($C202,INDIRECT(\"pco!a13:j49\"),8,FALSE),IFERROR(VLOOKUP($C202,INDIRECT(\"lab!a13:j49\"),8,FALSE),IFERROR(VLOOKUP($C202,INDIRECT(\"dpm!a13:j49\"),8,FALSE),IFERROR(VLOOKUP($C202,INDIRECT(\"iecnw!a13:j49\"),8,FALSE),IFERROR(VLOOKUP($C202,INDIRECT(\"cci!a13:j49\"),8,FALSE),IFERROR(VLOOKUP($C202,INDIRECT(\"leg!a13:j49\"),8,FALSE),\"\")))))))","v":""},{"$f":"IFERROR(VLOOKUP($C202,INDIRECT(\"DCA!a13:j49\"),9,FALSE),IFERROR(VLOOKUP($C202,INDIRECT(\"pco!a13:j49\"),9,FALSE),IFERROR(VLOOKUP($C202,INDIRECT(\"lab!a13:j49\"),9,FALSE),IFERROR(VLOOKUP($C202,INDIRECT(\"dpm!a13:j49\"),9,FALSE),IFERROR(VLOOKUP($C202,INDIRECT(\"iecnw!a13:j49\"),9,FALSE),IFERROR(VLOOKUP($C202,INDIRECT(\"cci!a13:j49\"),9,FALSE),IFERROR(VLOOKUP($C202,INDIRECT(\"leg!a13:j49\"),9,FALSE),\"\")))))))","v":""}]
[202,null,"---",null,null,null,null,null,null,{"$f":"IFERROR(INDEX('Data coll & an'!$F$5:$F$50,MATCH($C203,'Data coll & an'!$A$5:$A$50,0)),IFERROR(INDEX('Prev & Ctrl'!$F$5:$F$50,MATCH($C203,'Prev & Ctrl'!$A$5:$A$50,0)),IFERROR(INDEX('Lab dx'!$F$5:$F$50,MATCH($C203,'Lab dx'!$A$5:$A$50,0)),IFERROR(INDEX('Dog popn'!$F$5:$F$50,MATCH($C203,'Dog popn'!$A$5:$A$50,0)),IFERROR(INDEX(IEC!$F$5:$F$50,MATCH($C203,IEC!$A$5:$A$50,0)),IFERROR(INDEX('Cross-cutting issues'!$F$5:$F$50,MATCH($C203,'Cross-cutting issues'!$A$5:$A$50,0)),IFERROR(INDEX(Legislation!$F$5:$F$50,MATCH($C203,Legislation!$A$5:$A$50,0)),\"\")))))))","v":""},{"$f":"IFERROR(INDEX('Data coll & an'!$G$5:$G$50,MATCH($C203,'Data coll & an'!$A$5:$A$50,0)),IFERROR(INDEX('Prev & Ctrl'!$G$5:$G$50,MATCH($C203,'Prev & Ctrl'!$A$5:$A$50,0)),IFERROR(INDEX('Lab dx'!$G$5:$G$50,MATCH($C203,'Lab dx'!$A$5:$A$50,0)),IFERROR(INDEX('Dog popn'!$G$5:$G$50,MATCH($C203,'Dog popn'!$A$5:$A$50,0)),IFERROR(INDEX(IEC!$G$5:$G$50,MATCH($C203,IEC!$A$5:$A$50,0)),IFERROR(INDEX('Cross-cutting issues'!$G$5:$G$50,MATCH($C203,'Cross-cutting issues'!$A$5:$A$50,0)),IFERROR(INDEX(Legislation!$G$5:$G$50,MATCH($C203,Legislation!$A$5:$A$50,0)),\"\")))))))","v":""},null,null,null,null,null,null,null,null,null,null,null,null,null,null,null,"","",""]
[203,null,"---",null,null,null,null,null,null,{"$f":"IFERROR(INDEX('Data coll & an'!$F$5:$F$50,MATCH($C204,'Data coll & an'!$A$5:$A$50,0)),IFERROR(INDEX('Prev & Ctrl'!$F$5:$F$50,MATCH($C204,'Prev & Ctrl'!$A$5:$A$50,0)),IFERROR(INDEX('Lab dx'!$F$5:$F$50,MATCH($C204,'Lab dx'!$A$5:$A$50,0)),IFERROR(INDEX('Dog popn'!$F$5:$F$50,MATCH($C204,'Dog popn'!$A$5:$A$50,0)),IFERROR(INDEX(IEC!$F$5:$F$50,MATCH($C204,IEC!$A$5:$A$50,0)),IFERROR(INDEX('Cross-cutting issues'!$F$5:$F$50,MATCH($C204,'Cross-cutting issues'!$A$5:$A$50,0)),IFERROR(INDEX(Legislation!$F$5:$F$50,MATCH($C204,Legislation!$A$5:$A$50,0)),\"\")))))))","v":""},{"$f":"IFERROR(INDEX('Data coll & an'!$G$5:$G$50,MATCH($C204,'Data coll & an'!$A$5:$A$50,0)),IFERROR(INDEX('Prev & Ctrl'!$G$5:$G$50,MATCH($C204,'Prev & Ctrl'!$A$5:$A$50,0)),IFERROR(INDEX('Lab dx'!$G$5:$G$50,MATCH($C204,'Lab dx'!$A$5:$A$50,0)),IFERROR(INDEX('Dog popn'!$G$5:$G$50,MATCH($C204,'Dog popn'!$A$5:$A$50,0)),IFERROR(INDEX(IEC!$G$5:$G$50,MATCH($C204,IEC!$A$5:$A$50,0)),IFERROR(INDEX('Cross-cutting issues'!$G$5:$G$50,MATCH($C204,'Cross-cutting issues'!$A$5:$A$50,0)),IFERROR(INDEX(Legislation!$G$5:$G$50,MATCH($C204,Legislation!$A$5:$A$50,0)),\"\")))))))","v":""},null,null,null,null,null,null,null,null,null,null,null,null,null,null,null,"","",""]
[204,null,"---",null,null,null,null,null,null,{"$f":"IFERROR(INDEX('Data coll & an'!$F$5:$F$50,MATCH($C205,'Data coll & an'!$A$5:$A$50,0)),IFERROR(INDEX('Prev & Ctrl'!$F$5:$F$50,MATCH($C205,'Prev & Ctrl'!$A$5:$A$50,0)),IFERROR(INDEX('Lab dx'!$F$5:$F$50,MATCH($C205,'Lab dx'!$A$5:$A$50,0)),IFERROR(INDEX('Dog popn'!$F$5:$F$50,MATCH($C205,'Dog popn'!$A$5:$A$50,0)),IFERROR(INDEX(IEC!$F$5:$F$50,MATCH($C205,IEC!$A$5:$A$50,0)),IFERROR(INDEX('Cross-cutting issues'!$F$5:$F$50,MATCH($C205,'Cross-cutting issues'!$A$5:$A$50,0)),IFERROR(INDEX(Legislation!$F$5:$F$50,MATCH($C205,Legislation!$A$5:$A$50,0)),\"\")))))))","v":""},{"$f":"IFERROR(INDEX('Data coll & an'!$G$5:$G$50,MATCH($C205,'Data coll & an'!$A$5:$A$50,0)),IFERROR(INDEX('Prev & Ctrl'!$G$5:$G$50,MATCH($C205,'Prev & Ctrl'!$A$5:$A$50,0)),IFERROR(INDEX('Lab dx'!$G$5:$G$50,MATCH($C205,'Lab dx'!$A$5:$A$50,0)),IFERROR(INDEX('Dog popn'!$G$5:$G$50,MATCH($C205,'Dog popn'!$A$5:$A$50,0)),IFERROR(INDEX(IEC!$G$5:$G$50,MATCH($C205,IEC!$A$5:$A$50,0)),IFERROR(INDEX('Cross-cutting issues'!$G$5:$G$50,MATCH($C205,'Cross-cutting issues'!$A$5:$A$50,0)),IFERROR(INDEX(Legislation!$G$5:$G$50,MATCH($C205,Legislation!$A$5:$A$50,0)),\"\")))))))","v":""},null,null,null,null,null,null,null,null,null,null,null,null,null,null,null,"","",""]
[205,null,"---",null,null,null,null,null,null,{"$f":"IFERROR(INDEX('Data coll & an'!$F$5:$F$50,MATCH($C206,'Data coll & an'!$A$5:$A$50,0)),IFERROR(INDEX('Prev & Ctrl'!$F$5:$F$50,MATCH($C206,'Prev & Ctrl'!$A$5:$A$50,0)),IFERROR(INDEX('Lab dx'!$F$5:$F$50,MATCH($C206,'Lab dx'!$A$5:$A$50,0)),IFERROR(INDEX('Dog popn'!$F$5:$F$50,MATCH($C206,'Dog popn'!$A$5:$A$50,0)),IFERROR(INDEX(IEC!$F$5:$F$50,MATCH($C206,IEC!$A$5:$A$50,0)),IFERROR(INDEX('Cross-cutting issues'!$F$5:$F$50,MATCH($C206,'Cross-cutting issues'!$A$5:$A$50,0)),IFERROR(INDEX(Legislation!$F$5:$F$50,MATCH($C206,Legislation!$A$5:$A$50,0)),\"\")))))))","v":""},{"$f":"IFERROR(INDEX('Data coll & an'!$G$5:$G$50,MATCH($C206,'Data coll & an'!$A$5:$A$50,0)),IFERROR(INDEX('Prev & Ctrl'!$G$5:$G$50,MATCH($C206,'Prev & Ctrl'!$A$5:$A$50,0)),IFERROR(INDEX('Lab dx'!$G$5:$G$50,MATCH($C206,'Lab dx'!$A$5:$A$50,0)),IFERROR(INDEX('Dog popn'!$G$5:$G$50,MATCH($C206,'Dog popn'!$A$5:$A$50,0)),IFERROR(INDEX(IEC!$G$5:$G$50,MATCH($C206,IEC!$A$5:$A$50,0)),IFERROR(INDEX('Cross-cutting issues'!$G$5:$G$50,MATCH($C206,'Cross-cutting issues'!$A$5:$A$50,0)),IFERROR(INDEX(Legislation!$G$5:$G$50,MATCH($C206,Legislation!$A$5:$A$50,0)),\"\")))))))","v":""},null,null,null,null,null,null,null,null,null,null,null,null,null,null,null,"","",""]
[206,null,"---",null,null,null,null,null,null,{"$f":"IFERROR(INDEX('Data coll & an'!$F$5:$F$50,MATCH($C207,'Data coll & an'!$A$5:$A$50,0)),IFERROR(INDEX('Prev & Ctrl'!$F$5:$F$50,MATCH($C207,'Prev & Ctrl'!$A$5:$A$50,0)),IFERROR(INDEX('Lab dx'!$F$5:$F$50,MATCH($C207,'Lab dx'!$A$5:$A$50,0)),IFERROR(INDEX('Dog popn'!$F$5:$F$50,MATCH($C207,'Dog popn'!$A$5:$A$50,0)),IFERROR(INDEX(IEC!$F$5:$F$50,MATCH($C207,IEC!$A$5:$A$50,0)),IFERROR(INDEX('Cross-cutting issues'!$F$5:$F$50,MATCH($C207,'Cross-cutting issues'!$A$5:$A$50,0)),IFERROR(INDEX(Legislation!$F$5:$F$50,MATCH($C207,Legislation!$A$5:$A$50,0)),\"\")))))))","v":""},{"$f":"IFERROR(INDEX('Data coll & an'!$G$5:$G$50,MATCH($C207,'Data coll & an'!$A$5:$A$50,0)),IFERROR(INDEX('Prev & Ctrl'!$G$5:$G$50,MATCH($C207,'Prev & Ctrl'!$A$5:$A$50,0)),IFERROR(INDEX('Lab dx'!$G$5:$G$50,MATCH($C207,'Lab dx'!$A$5:$A$50,0)),IFERROR(INDEX('Dog popn'!$G$5:$G$50,MATCH($C207,'Dog popn'!$A$5:$A$50,0)),IFERROR(INDEX(IEC!$G$5:$G$50,MATCH($C207,IEC!$A$5:$A$50,0)),IFERROR(INDEX('Cross-cutting issues'!$G$5:$G$50,MATCH($C207,'Cross-cutting issues'!$A$5:$A$50,0)),IFERROR(INDEX(Legislation!$G$5:$G$50,MATCH($C207,Legislation!$A$5:$A$50,0)),\"\")))))))","v":""},null,null,null,null,null,null,null,null,null,null,null,null,null,null,null,"","",""]

{"sheet":"NW Introduction","index":20,"n_rows":0,"n_cols":0,"rows_kept":0,"cut":false,"hidden":true,"merged":[[1,0,1,19],[2,0,2,19],[3,0,3,19]]}

{"sheet":"NW country","index":21,"n_rows":47,"n_cols":12,"rows_kept":47,"cut":false,"hidden":true,"merged":[[34,0,36,1],[34,2,36,2],[34,3,36,3],[34,4,36,4],[9,0,13,6],[15,0,17,6],[20,1,20,4],[46,10,46,11],[42,10,42,11],[43,10,43,11],[44,10,44,11],[45,10,45,11],[1,7,1,10],[0,7,0,10],[0,11,1,12],[40,10,40,11],[41,10,41,11],[34,10,34,11],[35,10,35,11],[36,10,36,11],[37,10,37,11],[38,10,38,11],[39,10,39,11],[28,10,28,11],[29,10,29,11],[30,10,30,11],[31,10,31,11],[32,10,32,11],[33,10,33,11],[22,10,22,11],[23,10,23,11],[24,10,24,11],[25,10,25,11],[26,10,26,11],[27,10,27,11],[3,10,3,11],[6,9,9,9],[5,10,9,11],[21,10,21,11],[10,10,10,11],[11,10,11,11],[12,10,12,11],[13,10,13,11],[14,10,14,11],[15,10,15,11],[16,10,16,11],[17,10,17,11],[18,10,18,11],[19,10,19,11],[20,10,20,11]]}
[null,null,null,null,null,null,null,"Practical Workplan towards Achieving Rabies Elimination",null,null,null,{"$f":"A16","v":"ALGERIA"}]
[null,null,null,null,null,null,null,"COUNTRY INFORMATION"]
[null,null,null,null,null,null,null,"Please answer all blue cells."]
[null,null,null,null,null,null,null,null,"SARE Stage",null,{"$f":"INDEX('SUMMARY (Score)'!B28:B40,MATCH(\"PENDING\",'SUMMARY (Score)'!I28:I40,0))","v":1.5}]
[]
[null,null,null,null,null,null,null,null,"Background"]
[null,null,null,null,null,null,null,null,null,"Brief country background and brief history of rabies in the country"]
[]
[]
["Plan de travail national pour l’élimination de la rage."]
[]
[null,null,null,null,null,null,null,null,"Administrative Divisions"]
[null,null,null,null,null,null,null,null,null,"Number of Provinces/ Districts/Regions"]
[]
[null,null,null,null,null,null,null,null,null,"Governance structure"]
[{"$f":"IF(ISBLANK('Country profile'!E3),\"\",UPPER('Country profile'!E3))","v":"ALGERIA"}]
[null,null,null,null,null,null,null,null,"Human Population Information"]
[null,null,null,null,null,null,null,null,null,"Urban population"]
[]
[null,null,null,null,null,null,null,null,null,"Rural population"]
[null,"ÉTAPE SARE",null,null,null,{"$f":"INDEX('SUMMARY (Score)'!B28:B40,MATCH(\"PENDING\",'SUMMARY (Score)'!I28:I40,0))","v":1.5}]
[null,null,null,null,null,null,null,null,"Official Languages"]
[]
[]
[]
[]
[]
[null,null,null,null,null,null,null,null,"Official Languages"]
[]
[]
[]
[]
[]
[null,null,null,null,null,null,null,null,"Human Development Index"]
["Date de dernière mise à jour :",null,null,null,2025]
[null,null,null,null,null,null,null,null,"Primary Income"]
[]
[null,null,"Jour","Mois","Année"]
[]
[]
[]
[null,null,null,null,null,null,null,null,"Dog Population Information"]
[null,null,null,null,null,null,null,null,null,"Urban human:dog ratio",21.2]
[]
[null,null,null,null,null,null,null,null,null,"Rural human:dog ratio",7.4]
[]
[null,null,null,null,null,null,null,null,null,"Estimated dog population",{"$f":"($K$18/$K$43)+($K$20/$K$45)","v":0}]

{"sheet":"SUMMARY (Workplan)","index":22,"n_rows":21,"n_cols":9,"rows_kept":21,"cut":false,"hidden":true,"merged":[[16,0,16,2],[17,0,17,2],[17,3,17,4],[13,0,13,2],[14,0,14,2],[15,0,15,2],[1,0,1,9],[3,0,3,9],[11,3,11,4],[11,0,11,2],[12,0,12,2],[11,8,11,9],[12,8,12,9],[2,0,2,6],[8,4,8,7],[13,8,13,9],[14,8,14,9],[15,8,15,9],[20,0,20,2],[11,5,11,7],[12,5,12,7],[13,5,13,7],[14,5,14,7],[15,5,15,7],[20,3,20,4],[12,3,12,4],[18,3,18,4],[13,3,13,4],[14,3,14,4],[15,3,15,4],[16,3,16,4],[19,3,19,4],[18,0,18,2],[19,0,19,2],[18,8,18,9],[19,8,19,9],[20,8,20,9],[16,5,16,7],[17,5,17,7],[18,5,18,7],[19,5,19,7],[20,5,20,7],[16,8,16,9],[17,8,17,9]]}
[]
["Plan de travail national pour l’élimination de la rage"]
[]
[{"$f":"\"RÉSUMÉ DU PLAN DE TRAVAIL NATIONAL\"&IF(ISBLANK('Country profile'!E3),\"\",\"   -  \")&'Country profile'!E3&IF(ISBLANK('Country profile'!K9),IF(ISBLANK('Country profile'!K14),\"\",\" - \"&'Country profile'!K14),\" - \"&'Country profile'!K9)","v":"RÉSUMÉ DU PLAN DE TRAVAIL NATIONAL   -  Algeria"}]
[]
[]
[]
[]
[null,null,"ÉTAPE SARE",{"$f":"'NW country'!F21","v":1.5},"Nombre d’années estimées jusqu’à l’élimination de la rage \n(Sur la base du score SARE)",null,null,null,{"$f":"IF('NW country'!$F$21<2,13,IF('NW country'!$F$21<3,10,IF('NW country'!$F$21<4,7,IF('NW country'!$F$21<5,4,2))))","v":13}]
[]
[]
["Phase",null,null,"Étape de SARE",null,"Calendrier prévisionnel",null,null,"Stade d’avancement"]
["Évaluation",null,null,"0 à 1",null,{"$f":"IF('NW country'!$K$4<2,\"Années 1, 2 et 3\",\"--\")","v":"Années 1, 2 et 3"},null,null,{"$f":"IF($D$9<2,\"En cours\",\"Terminé\")","v":"En cours"}]
[]
["Planification stratégique",null,null,2,null,{"$f":"IF('NW country'!$K$4<2,\"Années 4, 5 et 6\",IF('NW country'!$K$4<3,\"Années 1, 2 et 3\",\"--\"))","v":"Années 4, 5 et 6"},null,null,{"$f":"IF($D$9<3,\"En cours\",\"Terminé\")","v":"En cours"}]
[]
["Contrôle",null,null,3,null,{"$f":"IF('NW country'!$K$4<2,\"Années 7, 8 et 9\",IF('NW country'!$K$4<3,\"Années 4, 5 et 6\",IF('NW country'!$K$4<4,\"Années 1, 2 et 3\",\"--\")))","v":"Années 7, 8 et 9"},null,null,{"$f":"IF($D$9<4,\"En cours\",\"Terminé\")","v":"En cours"}]
[]
["Élimination",null,null,4,null,{"$f":"IF('NW country'!$K$4<2,\"Années 10 et 11\",IF('NW country'!$K$4<3,\"Années 7 et 8\",IF('NW country'!$K$4<4,\"Années 4 et 5\",IF('NW country'!$K$4<5,\"Années 1 et 2\",\"--\"))))","v":"Années 10 et 11"},null,null,{"$f":"IF($D$9<5,\"En cours\",\"Terminé\")","v":"En cours"}]
[]
["Maintenance",null,null,5,null,{"$f":"IF('NW country'!$K$4<2,\"Années 12 et 13\",IF('NW country'!$K$4<3,\"Années 9 et 10\",IF('NW country'!$K$4<4,\"Années 6 et 7\",IF('NW country'!$K$4<5,\"Années 3 et 4\",\"Années 1 et 2\"))))","v":"Années 12 et 13"},null,null,{"$f":"IF($D$9<6,\"En cours\",\"Terminé\")","v":"En cours"}]

{"sheet":"rawdca","index":23,"n_rows":49,"n_cols":10,"rows_kept":49,"cut":false,"hidden":true,"merged":[[6,1,8,3],[4,1,5,3],[1,1,1,9],[0,1,0,3],[0,4,0,9]]}
[null,"Practical Workplan towards Achieving Rabies Elimination",null,null,"Data Collection and Analysis"]
[null,"Data collection and analysis focuses on the collection, analysis and sharing of the most pertinent data about rabies to the relevant personnel. This includes the analysis and sharing of data at a national level to help stakeholders make the correct decisions regarding funding, the use and allocation of personnel and the improvement of national guidelines and plans for the control of rabies. It also focuses on the flow of analysed data not only from the ground up, but also from national level back down to the ground. This flow of information is vital for effective control, response and future planning to ensure that strategic and effective control plans can be implemented."]
[]
[]
[null,"Estimated years to elimination\n(based on the current SARE score)",null,null,null,"All stage 0 and 1 activities should ideally be completed within a 3-year period",null,null,null,{"$f":"IF('NW country'!$K$4<2,\"Years 1, 2 and 3\",\"--\")","v":"Years 1, 2 and 3"}]
[null,null,null,null,null,"All stage 2 activities should ideally be completed within a 3-year period",null,null,null,{"$f":"IF('NW country'!$K$4<2,\"Years 4, 5 and 6\",IF('NW country'!$K$4<3,\"Years 1, 2 and 3\",\"--\"))","v":"Years 4, 5 and 6"}]
[null,{"$f":"IF('NW country'!$K$4<2,13,IF('NW country'!$K$4<3,10,IF('NW country'!$K$4<4,7,IF('NW country'!$K$4<5,4,2))))","v":13},null,null,null,"All stage 3 activities should ideally be completed within a 3-year period",null,null,null,{"$f":"IF('NW country'!$K$4<2,\"Years 7, 8 and 9\",IF('NW country'!$K$4<3,\"Years 4, 5 and 6\",IF('NW country'!$K$4<4,\"Years 1, 2 and 3\",\"--\")))","v":"Years 7, 8 and 9"}]
[null,null,null,null,null,"All stage 4 activities should ideally be completed within a 2-year period",null,null,null,{"$f":"IF('NW country'!$K$4<2,\"Years 10 and 11\",IF('NW country'!$K$4<3,\"Years 7 and 8\",IF('NW country'!$K$4<4,\"Years 4 and 5\",IF('NW country'!$K$4<5,\"Years 1 and 2\",\"--\"))))","v":"Years 10 and 11"}]
[null,null,null,null,null,"All stage 5 activities should ideally be completed within a 2-year period",null,null,null,{"$f":"IF('NW country'!$K$4<2,\"Years 12 and 13\",IF('NW country'!$K$4<3,\"Years 9 and 10\",IF('NW country'!$K$4<4,\"Years 6 and 7\",IF('NW country'!$K$4<5,\"Years 3 and 4\",\"Years 1 and 2\"))))","v":"Years 12 and 13"}]
[]
[null,"Instructions : Veuillez modifier les Tâches, les Autorités responsables, le Calendrier et les  Résultats attendus selon les besoins."]
["ID","Étape","Theme","Activité","Remarques","Tâche","Outcomes","Autorité responsible","Calendrier (années)","Résultats attendus"]
[{"$f":"IF(ROWS($A$13:A13)<=(SUMPRODUCT((masterlist!B:B=\"DCA\")*(masterlist!J:J=0))),INDEX(masterlist!$C$2:$C$207,SMALL(IF(masterlist!$B$2:$B$207=\"DCA\",IF(masterlist!$F$2:$F$207>0,IF(masterlist!$J$2:$J$207=0,ROW(masterlist!$B$2:$B$207)-ROW(masterlist!$B$2)+1))),ROWS($A$13:A13))),\"\")","v":"DCA-Sur-1-8"},{"$f":"IFERROR(VLOOKUP($A13,masterlist!$C$2:$AA$207,3,FALSE),\"\")","v":1},{"$f":"IFERROR(VLOOKUP($A13,masterlist!$C$2:$AA$207,2,FALSE),\"\")","v":"Surveillance"},{"$f":"IFERROR(VLOOKUP($A13,masterlist!$C$2:$AD$207,28,FALSE),\"\")","v":"Communiquer chaque année toutes les données relatives à la rage animale à l’OMSA."},{"$f":"IFERROR(IF((VLOOKUP($A13,masterlist!$C$2:$AA$207,9,FALSE))=0,\"\",VLOOKUP($A13,masterlist!$C$2:$AA$207,9,FALSE)),\"\")","v":""},{"$f":"IFERROR(VLOOKUP($A13,masterlist!$C$2:$AA$207,20,FALSE),\"\")","v":"• Déterminer quelles données doivent être communiquées à l’OMSA tous les ans ;\n• Veiller à ce que toutes les données relatives à la rage animale soient saisies, enregistrées et disponibles au niveau national en temps utile pour le rapport de l’OMSA ;\n• Identifier la personne référente de l’OMSA ;\n• Partager les données avec la personne référente de l’OMSA ;\n• Examiner la plate-forme de données de surveillance WAHIS pour s'assurer que les données rapportées sont affichées."},{"$f":"IFERROR(VLOOKUP($A13,masterlist!$C$2:$AA$207,21,FALSE),\"\")","v":"All human and animal rabies cases reported to the national level are reflected on an international database "},{"$f":"IFERROR(VLOOKUP($A13,masterlist!$C$2:$AA$207,22,FALSE),\"\")","v":"Ministère de l’agriculture"},{"$f":"IFERROR(IF($B$7=2,(VLOOKUP($A13,masterlist!$C$2:$AA$207,23,FALSE)-11),IF($B$7=4,(VLOOKUP($A13,masterlist!$C$2:$AA$207,23,FALSE)-9),IF($B$7=7,(VLOOKUP($A13,masterlist!$C$2:$AA$207,23,FALSE)-6),IF($B$7=10,(VLOOKUP($A13,masterlist!$C$2:$AA$207,23,FALSE)-3),(VLOOKUP($A13,masterlist!$C$2:$AA$207,23,FALSE)))))),\"\")","v":1},{"$f":"IFERROR(VLOOKUP($A13,masterlist!$C$2:$AA$207,24,FALSE),\"\")","v":"• Préparation d'ensembles de données vérifiées pour la déclaration annuelle de la rage animale à l’OMSA.\n• Confirmation de la soumission des données à la plateforme WAHIS."}]
[{"$f":"IF(ROWS($A$13:A14)<=(SUMPRODUCT((masterlist!B:B=\"DCA\")*(masterlist!J:J=0))),INDEX(masterlist!$C$2:$C$207,SMALL(IF(masterlist!$B$2:$B$207=\"DCA\",IF(masterlist!$F$2:$F$207>0,IF(masterlist!$J$2:$J$207=0,ROW(masterlist!$B$2:$B$207)-ROW(masterlist!$B$2)+1))),ROWS($A$13:A14))),\"\")","v":"DCA-Sur-1-10"},{"$f":"IFERROR(VLOOKUP($A14,masterlist!$C$2:$AA$207,3,FALSE),\"\")","v":1},{"$f":"IFERROR(VLOOKUP($A14,masterlist!$C$2:$AA$207,2,FALSE),\"\")","v":"Surveillance"},{"$f":"IFERROR(VLOOKUP($A14,masterlist!$C$2:$AD$207,28,FALSE),\"\")","v":"Communiquer toutes les données relatives à la rage humaine à l’OMS chaque année."},{"$f":"IFERROR(IF((VLOOKUP($A14,masterlist!$C$2:$AA$207,9,FALSE))=0,\"\",VLOOKUP($A14,masterlist!$C$2:$AA$207,9,FALSE)),\"\")","v":""},{"$f":"IFERROR(VLOOKUP($A14,masterlist!$C$2:$AA$207,20,FALSE),\"\")","v":"• Déterminer quelles données doivent être communiquées à l’OMS tous les ans ;\n• Veiller à ce que toutes les données relatives à la rage humaine soient saisies, enregistrées et disponibles au niveau national en temps utile pour le rapport de l’OMS ;\n• Identifier la personne référente de l’OMS \n• Partager les données avec la personne référente de l’OMS ;\n• Examiner la plate-forme de données GHO pour s'assurer que les données rapportées sont affichées."},{"$f":"IFERROR(VLOOKUP($A14,masterlist!$C$2:$AA$207,21,FALSE),\"\")","v":"All human and animal rabies cases reported to the national level are reflected on an international database "},{"$f":"IFERROR(VLOOKUP($A14,masterlist!$C$2:$AA$207,22,FALSE),\"\")","v":"Ministère de la santé"},{"$f":"IFERROR(IF($B$7=2,(VLOOKUP($A14,masterlist!$C$2:$AA$207,23,FALSE)-11),IF($B$7=4,(VLOOKUP($A14,masterlist!$C$2:$AA$207,23,FALSE)-9),IF($B$7=7,(VLOOKUP($A14,masterlist!$C$2:$AA$207,23,FALSE)-6),IF($B$7=10,(VLOOKUP($A14,masterlist!$C$2:$AA$207,23,FALSE)-3),(VLOOKUP($A14,masterlist!$C$2:$AA$207,23,FALSE)))))),\"\")","v":1},{"$f":"IFERROR(VLOOKUP($A14,masterlist!$C$2:$AA$207,24,FALSE),\"\")","v":"• Préparation d'ensembles de données vérifiées pour la déclaration annuelle de la rage animale à l’OMS.\n• Confirmation de la soumission des données à la plateforme OMS."}]
[{"$f":"IF(ROWS($A$13:A15)<=(SUMPRODUCT((masterlist!B:B=\"DCA\")*(masterlist!J:J=0))),INDEX(masterlist!$C$2:$C$207,SMALL(IF(masterlist!$B$2:$B$207=\"DCA\",IF(masterlist!$F$2:$F$207>0,IF(masterlist!$J$2:$J$207=0,ROW(masterlist!$B$2:$B$207)-ROW(masterlist!$B$2)+1))),ROWS($A$13:A15))),\"\")","v":"DCA-Sur-1-12"},{"$f":"IFERROR(VLOOKUP($A15,masterlist!$C$2:$AA$207,3,FALSE),\"\")","v":1},{"$f":"IFERROR(VLOOKUP($A15,masterlist!$C$2:$AA$207,2,FALSE),\"\")","v":"Surveillance"},{"$f":"IFERROR(VLOOKUP($A15,masterlist!$C$2:$AD$207,28,FALSE),\"\")","v":"Entreprendre une étude sur la taille et l’accessibilité de la population canine dans une région du pays."},{"$f":"IFERROR(IF((VLOOKUP($A15,masterlist!$C$2:$AA$207,9,FALSE))=0,\"\",VLOOKUP($A15,masterlist!$C$2:$AA$207,9,FALSE)),\"\")","v":""},{"$f":"IFERROR(VLOOKUP($A15,masterlist!$C$2:$AA$207,20,FALSE),\"\")","v":"• Préciser si des partenaires non-gouvernementaux (groupes internationaux, ONG ou experts) pourraient soutenir la mise en œuvre d’une étude écologique canine dans votre pays ;\n• Préciser la localisation idéale pour l’étude écologique canine ;\n• Examiner les méthodologies et les approches disponibles pour les études sur la taille et l'accessibilité de la population canine et choisir l'approche la plus scientifiquement rationnelle pour le lieu choisi ;\n• Rédiger une proposition et un budget pour l'étude et obtenir le financement nécessaire pour entreprendre l'étude ;\n• Identifier et former le personnel nécessaire à l'étude ;\n• Entreprendre l'étude de l'écologie canine dans le lieu choisi ;\n• Recueillir, colliger et analyser les données relatives à l'écologie canine ;\n• Diffuser les résultats aux autorités compétentes."},{"$f":"IFERROR(VLOOKUP($A15,masterlist!$C$2:$AA$207,21,FALSE),\"\")","v":"Dog ecology data for a small-scale area has been collected, collated, analysed and disseminated."},{"$f":"IFERROR(VLOOKUP($A15,masterlist!$C$2:$AA$207,22,FALSE),\"\")","v":"Ministère de l’agriculture"},{"$f":"IFERROR(IF($B$7=2,(VLOOKUP($A15,masterlist!$C$2:$AA$207,23,FALSE)-11),IF($B$7=4,(VLOOKUP($A15,masterlist!$C$2:$AA$207,23,FALSE)-9),IF($B$7=7,(VLOOKUP($A15,masterlist!$C$2:$AA$207,23,FALSE)-6),IF($B$7=10,(VLOOKUP($A15,masterlist!$C$2:$AA$207,23,FALSE)-3),(VLOOKUP($A15,masterlist!$C$2:$AA$207,23,FALSE)))))),\"\")","v":2},{"$f":"IFERROR(VLOOKUP($A15,masterlist!$C$2:$AA$207,24,FALSE),\"\")","v":"• Proposition approuvée et financement acquis pour une étude d’écologie canine.\n• Formation et réalisation documentées de l'étude écologique sur les chiens.\n• Rapport sur les résultats de l'étude analysé et diffusé auprès des autorités compétentes."}]
[{"$f":"IF(ROWS($A$13:A16)<=(SUMPRODUCT((masterlist!B:B=\"DCA\")*(masterlist!J:J=0))),INDEX(masterlist!$C$2:$C$207,SMALL(IF(masterlist!$B$2:$B$207=\"DCA\",IF(masterlist!$F$2:$F$207>0,IF(masterlist!$J$2:$J$207=0,ROW(masterlist!$B$2:$B$207)-ROW(masterlist!$B$2)+1))),ROWS($A$13:A16))),\"\")","v":"DCA-Sur-2-15"},{"$f":"IFERROR(VLOOKUP($A16,masterlist!$C$2:$AA$207,3,FALSE),\"\")","v":2},{"$f":"IFERROR(VLOOKUP($A16,masterlist!$C$2:$AA$207,2,FALSE),\"\")","v":"Surveillance"},{"$f":"IFERROR(VLOOKUP($A16,masterlist!$C$2:$AD$207,28,FALSE),\"\")","v":"Partager régulièrement TOUTES des données disponibles sur la rage (humaine et animale) avec toutes les autres parties prenantes."},{"$f":"IFERROR(IF((VLOOKUP($A16,masterlist!$C$2:$AA$207,9,FALSE))=0,\"\",VLOOKUP($A16,masterlist!$C$2:$AA$207,9,FALSE)),\"\")","v":""},{"$f":"IFERROR(VLOOKUP($A16,masterlist!$C$2:$AA$207,20,FALSE),\"\")","v":"• Identifier toutes les parties prenantes devant recevoir les données sur la rage humaine et animale;\n• Etablir un moyen de communication (par ex., email, groupe WhatsApp, partage automatisé des données via des systèmes de surveillance, etc.) qui puisse être utilisé régulièrement pour  partager les données sur la rage humaine et animale ;   \n• Veiller à ce que les parties prenantes reçoivent régulièrement les données relatives à la rage humaine et animale."},{"$f":"IFERROR(VLOOKUP($A16,masterlist!$C$2:$AA$207,21,FALSE),\"\")","v":"Stakeholders remain notified and informed regarding the most recent information about the situation of rabies in the country. "},{"$f":"IFERROR(VLOOKUP($A16,masterlist!$C$2:$AA$207,22,FALSE),\"\")","v":"Ministère de l’agriculture (Cas de rage animale); \nMinistère de la santé (cas de rage humaine)"},{"$f":"IFERROR(IF($B$7=2,(VLOOKUP($A16,masterlist!$C$2:$AA$207,23,FALSE)-11),IF($B$7=4,(VLOOKUP($A16,masterlist!$C$2:$AA$207,23,FALSE)-9),IF($B$7=7,(VLOOKUP($A16,masterlist!$C$2:$AA$207,23,FALSE)-6),IF($B$7=10,(VLOOKUP($A16,masterlist!$C$2:$AA$207,23,FALSE)-3),(VLOOKUP($A16,masterlist!$C$2:$AA$207,23,FALSE)))))),\"\")","v":4},{"$f":"IFERROR(VLOOKUP($A16,masterlist!$C$2:$AA$207,24,FALSE),\"\")","v":"• Liste des parties prenantes qui devraient recevoir les données sur la rage.\n• Mise en place d'un canal de communication officiel pour la diffusion des données sur la rage.\n• Nombre de rapports sur les données relatives à la rage partagés avec d'autres parties prenantes."}]
[{"$f":"IF(ROWS($A$13:A17)<=(SUMPRODUCT((masterlist!B:B=\"DCA\")*(masterlist!J:J=0))),INDEX(masterlist!$C$2:$C$207,SMALL(IF(masterlist!$B$2:$B$207=\"DCA\",IF(masterlist!$F$2:$F$207>0,IF(masterlist!$J$2:$J$207=0,ROW(masterlist!$B$2:$B$207)-ROW(masterlist!$B$2)+1))),ROWS($A$13:A17))),\"\")","v":"DCA-Sur-2-16"},{"$f":"IFERROR(VLOOKUP($A17,masterlist!$C$2:$AA$207,3,FALSE),\"\")","v":2},{"$f":"IFERROR(VLOOKUP($A17,masterlist!$C$2:$AA$207,2,FALSE),\"\")","v":"Surveillance"},{"$f":"IFERROR(VLOOKUP($A17,masterlist!$C$2:$AD$207,28,FALSE),\"\")","v":"Mettre en place un système One Health de surveillance de la rage comprenant des données de surveillance humaine et animale à tous les niveaux, \n\nOU\n\nCréer une structure formelle pour le partage régulier et en temps opportun de TOUTES les données pertinentes entre les systèmes de surveillance de la santé humaine et animale qui sont opérationnels. "},{"$f":"IFERROR(IF((VLOOKUP($A17,masterlist!$C$2:$AA$207,9,FALSE))=0,\"\",VLOOKUP($A17,masterlist!$C$2:$AA$207,9,FALSE)),\"\")","v":""},{"$f":"IFERROR(VLOOKUP($A17,masterlist!$C$2:$AA$207,20,FALSE),\"\")","v":"En cas de mise en place d’un système One Health de surveillance de la rage :\n• Déterminer quelles données doivent être recueillies depuis chaque secteur (santé humaine et animale) ;\n• Identifier la plateforme la plus conviviale et compatible pour héberger le nouveau système ; \n• Consulter les professionnels de l'informatique et de la gestion de la rage pour assurer le développement d'un système optimal, facile à utiliser et fournissant les résultats idéaux pour la prise de décision et l'établissement de rapports.\n• Préciser le budget pour l’élaboration et la mise en œuvre du nouveau système One Health de surveillance de la rage.\n• Mettre en place le nouveau système One Health de surveillance de la rage.\n• Etablir un calendrier pour l’importation des données existantes à partir des systèmes de surveillance de santé humaine et animale. \n• Mettre en place des formations et développer des POS pour le nouveau système. \n• Prévoir une période de transition au cours de laquelle les anciens systèmes de santé humaine et animale seront progressivement abandonnés.\n\nOU\n\nEn cas de mise en place d’une structure de partage des données entre des systèmes de surveillance de la rage existants :\n• Évaluer la fonctionnalité des systèmes de surveillance de la santé humaine et animale en termes d'interopérabilité ;\n• Déterminer les données collectées par chaque système de surveillance et celles qui devraient être partagées ;\n• Étudier les mécanismes permettant le partage des données entre les deux systèmes de surveillance ;\n• Mettre en œuvre les changements nécessaires pour assurer l'interopérabilité et le partage des données entre les deux systèmes de surveillance.\n• S'assurer que l'interopérabilité fonctionne et que les données circulent régulièrement entre les deux systèmes de surveillance (idéalement en temps réel)."},{"$f":"IFERROR(VLOOKUP($A17,masterlist!$C$2:$AA$207,21,FALSE),\"\")","v":"Established and functional reporting and data sharing between sectors (animal and human)"},{"$f":"IFERROR(VLOOKUP($A17,masterlist!$C$2:$AA$207,22,FALSE),\"\")","v":"Groupe multisectoriel"},{"$f":"IFERROR(IF($B$7=2,(VLOOKUP($A17,masterlist!$C$2:$AA$207,23,FALSE)-11),IF($B$7=4,(VLOOKUP($A17,masterlist!$C$2:$AA$207,23,FALSE)-9),IF($B$7=7,(VLOOKUP($A17,masterlist!$C$2:$AA$207,23,FALSE)-6),IF($B$7=10,(VLOOKUP($A17,masterlist!$C$2:$AA$207,23,FALSE)-3),(VLOOKUP($A17,masterlist!$C$2:$AA$207,23,FALSE)))))),\"\")","v":5},{"$f":"IFERROR(VLOOKUP($A17,masterlist!$C$2:$AA$207,24,FALSE),\"\")","v":"En cas de mise en place d’un système One Health de surveillance de la rage:\n• Schéma directeur décrivant l'intégration des données relatives à la santé humaine et animale, y compris les procédures de travail et les protocoles de partage des données.\n• Systèmes de surveillance existants et des lacunes éventuelles évalués, assortis de recommandations d’amélioration.\n• Liste établie des données collectées et des lignes directrices pour le partage des données entre les secteurs.\n• Documentation des données et des lignes directrices nouvelles ou modifiées.\n• Mise en place et test d'un système One Health unique de surveillance de la rage.\n• Enregistrement des données historiques importées dans le nouveau système unique One Health de surveillance de la rage.\n• Système de surveillance de la rage One Health opérationnel garantissant un flux de données en temps réel entre les systèmes de santé humaine et animale.\n\nOU\n\nEn cas de mise en place d’une structure de partage des données entre des systèmes de surveillance de la rage existants :\n• Accord official décrivant la fréquence, le format et les responsabilités en matière de partage des données :\n• Documentation des consultations avec des experts en informatique et en rage pour modifier et affiner chaque système et mettre en œuvre l'interopérabilité des données.\n• Preuve d'un flux de données effectif et régulier entre les systèmes. "}]
[{"$f":"IF(ROWS($A$13:A18)<=(SUMPRODUCT((masterlist!B:B=\"DCA\")*(masterlist!J:J=0))),INDEX(masterlist!$C$2:$C$207,SMALL(IF(masterlist!$B$2:$B$207=\"DCA\",IF(masterlist!$F$2:$F$207>0,IF(masterlist!$J$2:$J$207=0,ROW(masterlist!$B$2:$B$207)-ROW(masterlist!$B$2)+1))),ROWS($A$13:A18))),\"\")","v":"DCA-Sur-3-17"},{"$f":"IFERROR(VLOOKUP($A18,masterlist!$C$2:$AA$207,3,FALSE),\"\")","v":3},{"$f":"IFERROR(VLOOKUP($A18,masterlist!$C$2:$AA$207,2,FALSE),\"\")","v":"Surveillance"},{"$f":"IFERROR(VLOOKUP($A18,masterlist!$C$2:$AD$207,28,FALSE),\"\")","v":"Observer une diminution des prélèvements positifs pour la rage tout en maintenant un taux élevé de soumission de prélèvements à travers tout le pays. "},{"$f":"IFERROR(IF((VLOOKUP($A18,masterlist!$C$2:$AA$207,9,FALSE))=0,\"\",VLOOKUP($A18,masterlist!$C$2:$AA$207,9,FALSE)),\"\")","v":""},{"$f":"IFERROR(VLOOKUP($A18,masterlist!$C$2:$AA$207,20,FALSE),\"\")","v":"• Compiler toutes les données de surveillance de la rage animale du pays ;\n• Calculer le nombre de prélèvements positifs pour la rage par mois ou par an ;\n• Visualiser les données et s'assurer qu'une tendance à la baisse est observée dans le nombre de prélèvements positifs alors que le nombre de prélèvements soumis au diagnostic de la rage reste élevé."},{"$f":"IFERROR(VLOOKUP($A18,masterlist!$C$2:$AA$207,21,FALSE),\"\")","v":0},{"$f":"IFERROR(VLOOKUP($A18,masterlist!$C$2:$AA$207,22,FALSE),\"\")","v":"Ministère de l’agriculture"},{"$f":"IFERROR(IF($B$7=2,(VLOOKUP($A18,masterlist!$C$2:$AA$207,23,FALSE)-11),IF($B$7=4,(VLOOKUP($A18,masterlist!$C$2:$AA$207,23,FALSE)-9),IF($B$7=7,(VLOOKUP($A18,masterlist!$C$2:$AA$207,23,FALSE)-6),IF($B$7=10,(VLOOKUP($A18,masterlist!$C$2:$AA$207,23,FALSE)-3),(VLOOKUP($A18,masterlist!$C$2:$AA$207,23,FALSE)))))),\"\")","v":7},{"$f":"IFERROR(VLOOKUP($A18,masterlist!$C$2:$AA$207,24,FALSE),\"\")","v":"• Des rapports annuels permettant de suivre l'évolution des prélèvements d'échantillons positifs pour la rage, tout en maintenant un taux élevé de soumission de prélèvements.\n• Représentations visuelles des données montrant une diminution des cas de rage positifs."}]
[{"$f":"IF(ROWS($A$13:A19)<=(SUMPRODUCT((masterlist!B:B=\"DCA\")*(masterlist!J:J=0))),INDEX(masterlist!$C$2:$C$207,SMALL(IF(masterlist!$B$2:$B$207=\"DCA\",IF(masterlist!$F$2:$F$207>0,IF(masterlist!$J$2:$J$207=0,ROW(masterlist!$B$2:$B$207)-ROW(masterlist!$B$2)+1))),ROWS($A$13:A19))),\"\")","v":"DCA-Sur-3-18"},{"$f":"IFERROR(VLOOKUP($A19,masterlist!$C$2:$AA$207,3,FALSE),\"\")","v":3},{"$f":"IFERROR(VLOOKUP($A19,masterlist!$C$2:$AA$207,2,FALSE),\"\")","v":"Surveillance"},{"$f":"IFERROR(VLOOKUP($A19,masterlist!$C$2:$AD$207,28,FALSE),\"\")","v":"À mesure que le pays se rapproche de l'élimination de la rage humaine, rassembler les preuves épidémiologiques nécessaires pour déclarer des zones exemptes de rage humaine transmise par les chiens."},{"$f":"IFERROR(IF((VLOOKUP($A19,masterlist!$C$2:$AA$207,9,FALSE))=0,\"\",VLOOKUP($A19,masterlist!$C$2:$AA$207,9,FALSE)),\"\")","v":""},{"$f":"IFERROR(VLOOKUP($A19,masterlist!$C$2:$AA$207,20,FALSE),\"\")","v":"• Compiler toutes les données épidémiologiques pertinentes relatives à la rage humaine dans la/les zone(s) concernée(s) (par exemple, dossiers de laboratoire sur les cas humains confirmés positifs et négatifs pour la rage, dossiers cliniques des patients présentant des symptômes encéphalitiques, dossiers des cas de morsure et la fourniture de PPE dans les établissements de santé de la/des zone(s) concernée(s)). \n• Rédiger un rapport sur la base des données épidémiologiques ;\n• Consulter des experts internationaux en la matière pour examiner et confirmer vos conclusions."},{"$f":"IFERROR(VLOOKUP($A19,masterlist!$C$2:$AA$207,21,FALSE),\"\")","v":"Up-to-date epidemiological evidence based on an effective national surveillance system with reliable laboratory diagnosis and case investigation is collected and available to provide evidence of a dog-transmitted human rabies free zones (no human cases for 2 years). "},{"$f":"IFERROR(VLOOKUP($A19,masterlist!$C$2:$AA$207,22,FALSE),\"\")","v":"Ministère de l’agriculture"},{"$f":"IFERROR(IF($B$7=2,(VLOOKUP($A19,masterlist!$C$2:$AA$207,23,FALSE)-11),IF($B$7=4,(VLOOKUP($A19,masterlist!$C$2:$AA$207,23,FALSE)-9),IF($B$7=7,(VLOOKUP($A19,masterlist!$C$2:$AA$207,23,FALSE)-6),IF($B$7=10,(VLOOKUP($A19,masterlist!$C$2:$AA$207,23,FALSE)-3),(VLOOKUP($A19,masterlist!$C$2:$AA$207,23,FALSE)))))),\"\")","v":9},{"$f":"IFERROR(VLOOKUP($A19,masterlist!$C$2:$AA$207,24,FALSE),\"\")","v":"• Rapports fournissant des preuves épidémiologiques complètes du statut de zone indemne de rage humaine transmise par les chiens dans des zones géographiques définies.\n• Confirmation par des experts internationaux des déclarations de zones indemnes de rage."}]
[{"$f":"IF(ROWS($A$13:A20)<=(SUMPRODUCT((masterlist!B:B=\"DCA\")*(masterlist!J:J=0))),INDEX(masterlist!$C$2:$C$207,SMALL(IF(masterlist!$B$2:$B$207=\"DCA\",IF(masterlist!$F$2:$F$207>0,IF(masterlist!$J$2:$J$207=0,ROW(masterlist!$B$2:$B$207)-ROW(masterlist!$B$2)+1))),ROWS($A$13:A20))),\"\")","v":"DCA-Sur-3-19"},{"$f":"IFERROR(VLOOKUP($A20,masterlist!$C$2:$AA$207,3,FALSE),\"\")","v":3},{"$f":"IFERROR(VLOOKUP($A20,masterlist!$C$2:$AA$207,2,FALSE),\"\")","v":"Surveillance"},{"$f":"IFERROR(VLOOKUP($A20,masterlist!$C$2:$AD$207,28,FALSE),\"\")","v":"Identifier les zones potentiellement exemptes de rage où les cas de rage animale (causés par le variant de la rage canine) sont absents depuis au moins deux ans."},{"$f":"IFERROR(IF((VLOOKUP($A20,masterlist!$C$2:$AA$207,9,FALSE))=0,\"\",VLOOKUP($A20,masterlist!$C$2:$AA$207,9,FALSE)),\"\")","v":""},{"$f":"IFERROR(VLOOKUP($A20,masterlist!$C$2:$AA$207,20,FALSE),\"\")","v":"• Assurer la collecte continue de prélèvements et le diagnostic de routine de la rage dans la ou les zones identifiées ;\n• Compiler des rapports épidémiologiques avec des données de surveillance actualisées montrant l'absence du variant de la rage canine ;\n• Identifier les zones où les données épidémiologiques indiquent l'absence de la variante de la rage canine depuis 2 ans ;\n• Consulter des experts internationaux en la matière pour examiner et confirmer vos résultats."},{"$f":"IFERROR(VLOOKUP($A20,masterlist!$C$2:$AA$207,21,FALSE),\"\")","v":"Zones free from animal rabies cases caused by the canine rabies variant have been identified based on sound epidemiological data;"},{"$f":"IFERROR(VLOOKUP($A20,masterlist!$C$2:$AA$207,22,FALSE),\"\")","v":"Ministère de l’agriculture"},{"$f":"IFERROR(IF($B$7=2,(VLOOKUP($A20,masterlist!$C$2:$AA$207,23,FALSE)-11),IF($B$7=4,(VLOOKUP($A20,masterlist!$C$2:$AA$207,23,FALSE)-9),IF($B$7=7,(VLOOKUP($A20,masterlist!$C$2:$AA$207,23,FALSE)-6),IF($B$7=10,(VLOOKUP($A20,masterlist!$C$2:$AA$207,23,FALSE)-3),(VLOOKUP($A20,masterlist!$C$2:$AA$207,23,FALSE)))))),\"\")","v":9},{"$f":"IFERROR(VLOOKUP($A20,masterlist!$C$2:$AA$207,24,FALSE),\"\")","v":"• Rapport officiel contenant des éléments clairs expliquant pourquoi le statut de zone indemne de rage transmise par les chiens est déclaré.\n•  Confirmation par des experts internationaux des informations contenues dans le rapport officiel."}]
[{"$f":"IF(ROWS($A$13:A21)<=(SUMPRODUCT((masterlist!B:B=\"DCA\")*(masterlist!J:J=0))),INDEX(masterlist!$C$2:$C$207,SMALL(IF(masterlist!$B$2:$B$207=\"DCA\",IF(masterlist!$F$2:$F$207>0,IF(masterlist!$J$2:$J$207=0,ROW(masterlist!$B$2:$B$207)-ROW(masterlist!$B$2)+1))),ROWS($A$13:A21))),\"\")","v":"DCA-Sur-4-20"},{"$f":"IFERROR(VLOOKUP($A21,masterlist!$C$2:$AA$207,3,FALSE),\"\")","v":4},{"$f":"IFERROR(VLOOKUP($A21,masterlist!$C$2:$AA$207,2,FALSE),\"\")","v":"Surveillance"},{"$f":"IFERROR(VLOOKUP($A21,masterlist!$C$2:$AD$207,28,FALSE),\"\")","v":"À mesure que le pays se rapproche de l'élimination de la rage canine, affiner la stratégie nationale de lutte contre la rage en utilisant les données épidémiologiques issues de la surveillance de routine de tous les animaux (et pas seulement des chiens)."},{"$f":"IFERROR(IF((VLOOKUP($A21,masterlist!$C$2:$AA$207,9,FALSE))=0,\"\",VLOOKUP($A21,masterlist!$C$2:$AA$207,9,FALSE)),\"\")","v":""},{"$f":"IFERROR(VLOOKUP($A21,masterlist!$C$2:$AA$207,20,FALSE),\"\")","v":"• Compiler et examiner les données épidémiologiques basées sur la surveillance d'autres espèces animales, y compris de la faune sauvage ;\n• Identifier les zones où la rage canine est encore présente (points chauds) ;\n• Identifier d'autres espèces réservoirs possibles (par exemple, les carnivores de la faune sauvage) ;\n• Identifier les méthodes de vaccination et de contrôle de la rage chez les espèces réservoirs supplémentaires identifiées ;\n• Rédiger un rapport, comprenant le budget et les ressources nécessaires pour lutter contre la rage chez les espèces réservoirs supplémentaires, avec les conclusions et les recommandations ;\n• Partager le rapport avec le groupe de travail national.. \n• Mettre à jour le plan stratégique national en tenant compte des zones de rage canine restantes et de l'affectation des ressources à ces zones et aux zones tampons environnantes, ainsi qu'en incluant des mesures de contrôle pour les espèces sauvages supplémentaires sur la base du rapport fourni. \n• Approuver à nouveau le plan stratégique national révisé."},{"$f":"IFERROR(VLOOKUP($A21,masterlist!$C$2:$AA$207,21,FALSE),\"\")","v":"National rabies control and elimination strategy refined to focus on final steps towards elimination of dog rabies (strategic vaccination), the situation of rabies in wildlife and the prevention of re-introduction of rabies into the human and dog population. "},{"$f":"IFERROR(VLOOKUP($A21,masterlist!$C$2:$AA$207,22,FALSE),\"\")","v":"Groupe multisectoriel"},{"$f":"IFERROR(IF($B$7=2,(VLOOKUP($A21,masterlist!$C$2:$AA$207,23,FALSE)-11),IF($B$7=4,(VLOOKUP($A21,masterlist!$C$2:$AA$207,23,FALSE)-9),IF($B$7=7,(VLOOKUP($A21,masterlist!$C$2:$AA$207,23,FALSE)-6),IF($B$7=10,(VLOOKUP($A21,masterlist!$C$2:$AA$207,23,FALSE)-3),(VLOOKUP($A21,masterlist!$C$2:$AA$207,23,FALSE)))))),\"\")","v":10},{"$f":"IFERROR(VLOOKUP($A21,masterlist!$C$2:$AA$207,24,FALSE),\"\")","v":"• Rapports épidémiologiques actualisés identifiant les points chauds de la rage canine et les autres espèces réservoirs.\n• Rapport et budget indiquant les modifications à apporter au plan stratégique national sur la base des rapports épidémiologiques.\n• Plan stratégique national révisé et approuvé à nouveau, reflétant les nouvelles mesures de contrôle."}]
[{"$f":"IF(ROWS($A$13:A22)<=(SUMPRODUCT((masterlist!B:B=\"DCA\")*(masterlist!J:J=0))),INDEX(masterlist!$C$2:$C$207,SMALL(IF(masterlist!$B$2:$B$207=\"DCA\",IF(masterlist!$F$2:$F$207>0,IF(masterlist!$J$2:$J$207=0,ROW(masterlist!$B$2:$B$207)-ROW(masterlist!$B$2)+1))),ROWS($A$13:A22))),\"\")","v":"DCA-Sur-5-21"},{"$f":"IFERROR(VLOOKUP($A22,masterlist!$C$2:$AA$207,3,FALSE),\"\")","v":5},{"$f":"IFERROR(VLOOKUP($A22,masterlist!$C$2:$AA$207,2,FALSE),\"\")","v":"Surveillance"},{"$f":"IFERROR(VLOOKUP($A22,masterlist!$C$2:$AD$207,28,FALSE),\"\")","v":"Vérifier que l'ensemble du pays est exempt de la variante canine de la rage depuis au moins deux ans."},{"$f":"IFERROR(IF((VLOOKUP($A22,masterlist!$C$2:$AA$207,9,FALSE))=0,\"\",VLOOKUP($A22,masterlist!$C$2:$AA$207,9,FALSE)),\"\")","v":""},{"$f":"IFERROR(VLOOKUP($A22,masterlist!$C$2:$AA$207,20,FALSE),\"\")","v":"• Assurer la collecte continue de prélèvements et le diagnostic de routine de la rage dans l'ensemble du pays sur la base d'une surveillance active et passive rigoureuse ;\n• Compiler des rapports épidémiologiques avec des données de surveillance actualisées montrant l'absence de la variante de la rage canine ;\n• Consulter des experts internationaux en la matière pour examiner et confirmer vos résultats."},{"$f":"IFERROR(VLOOKUP($A22,masterlist!$C$2:$AA$207,21,FALSE),\"\")","v":"Epidemiological report providing evidence supporting the notion of freedom from the canine variatn fo rabeis for a 2 year period in line with the OIE standards for self-declaration of freedom;"},{"$f":"IFERROR(VLOOKUP($A22,masterlist!$C$2:$AA$207,22,FALSE),\"\")","v":"Ministère de l’agriculture"},{"$f":"IFERROR(IF($B$7=2,(VLOOKUP($A22,masterlist!$C$2:$AA$207,23,FALSE)-11),IF($B$7=4,(VLOOKUP($A22,masterlist!$C$2:$AA$207,23,FALSE)-9),IF($B$7=7,(VLOOKUP($A22,masterlist!$C$2:$AA$207,23,FALSE)-6),IF($B$7=10,(VLOOKUP($A22,masterlist!$C$2:$AA$207,23,FALSE)-3),(VLOOKUP($A22,masterlist!$C$2:$AA$207,23,FALSE)))))),\"\")","v":13},{"$f":"IFERROR(VLOOKUP($A22,masterlist!$C$2:$AA$207,24,FALSE),\"\")","v":"• Rapport épidémiologique national confirmant deux années d'absence de rage canine.\n• Vérification indépendante et approbation par des experts internationaux de la rage."}]
[{"$f":"IF(ROWS($A$13:A23)<=(SUMPRODUCT((masterlist!B:B=\"DCA\")*(masterlist!J:J=0))),INDEX(masterlist!$C$2:$C$207,SMALL(IF(masterlist!$B$2:$B$207=\"DCA\",IF(masterlist!$F$2:$F$207>0,IF(masterlist!$J$2:$J$207=0,ROW(masterlist!$B$2:$B$207)-ROW(masterlist!$B$2)+1))),ROWS($A$13:A23))),\"\")","v":""},{"$f":"IFERROR(VLOOKUP($A23,masterlist!$C$2:$AA$207,3,FALSE),\"\")","v":""},{"$f":"IFERROR(VLOOKUP($A23,masterlist!$C$2:$AA$207,2,FALSE),\"\")","v":""},{"$f":"IFERROR(VLOOKUP($A23,masterlist!$C$2:$AD$207,28,FALSE),\"\")","v":""},{"$f":"IFERROR(IF((VLOOKUP($A23,masterlist!$C$2:$AA$207,9,FALSE))=0,\"\",VLOOKUP($A23,masterlist!$C$2:$AA$207,9,FALSE)),\"\")","v":""},{"$f":"IFERROR(VLOOKUP($A23,masterlist!$C$2:$AA$207,20,FALSE),\"\")","v":""},{"$f":"IFERROR(VLOOKUP($A23,masterlist!$C$2:$AA$207,21,FALSE),\"\")","v":""},{"$f":"IFERROR(VLOOKUP($A23,masterlist!$C$2:$AA$207,22,FALSE),\"\")","v":""},{"$f":"IFERROR(IF($B$7=2,(VLOOKUP($A23,masterlist!$C$2:$AA$207,23,FALSE)-11),IF($B$7=4,(VLOOKUP($A23,masterlist!$C$2:$AA$207,23,FALSE)-9),IF($B$7=7,(VLOOKUP($A23,masterlist!$C$2:$AA$207,23,FALSE)-6),IF($B$7=10,(VLOOKUP($A23,masterlist!$C$2:$AA$207,23,FALSE)-3),(VLOOKUP($A23,masterlist!$C$2:$AA$207,23,FALSE)))))),\"\")","v":""},{"$f":"IFERROR(VLOOKUP($A23,masterlist!$C$2:$AA$207,24,FALSE),\"\")","v":""}]
[{"$f":"IF(ROWS($A$13:A24)<=(SUMPRODUCT((masterlist!B:B=\"DCA\")*(masterlist!J:J=0))),INDEX(masterlist!$C$2:$C$207,SMALL(IF(masterlist!$B$2:$B$207=\"DCA\",IF(masterlist!$F$2:$F$207>0,IF(masterlist!$J$2:$J$207=0,ROW(masterlist!$B$2:$B$207)-ROW(masterlist!$B$2)+1))),ROWS($A$13:A24))),\"\")","v":""},{"$f":"IFERROR(VLOOKUP($A24,masterlist!$C$2:$AA$207,3,FALSE),\"\")","v":""},{"$f":"IFERROR(VLOOKUP($A24,masterlist!$C$2:$AA$207,2,FALSE),\"\")","v":""},{"$f":"IFERROR(VLOOKUP($A24,masterlist!$C$2:$AD$207,28,FALSE),\"\")","v":""},{"$f":"IFERROR(IF((VLOOKUP($A24,masterlist!$C$2:$AA$207,9,FALSE))=0,\"\",VLOOKUP($A24,masterlist!$C$2:$AA$207,9,FALSE)),\"\")","v":""},{"$f":"IFERROR(VLOOKUP($A24,masterlist!$C$2:$AA$207,20,FALSE),\"\")","v":""},{"$f":"IFERROR(VLOOKUP($A24,masterlist!$C$2:$AA$207,21,FALSE),\"\")","v":""},{"$f":"IFERROR(VLOOKUP($A24,masterlist!$C$2:$AA$207,22,FALSE),\"\")","v":""},{"$f":"IFERROR(IF($B$7=2,(VLOOKUP($A24,masterlist!$C$2:$AA$207,23,FALSE)-11),IF($B$7=4,(VLOOKUP($A24,masterlist!$C$2:$AA$207,23,FALSE)-9),IF($B$7=7,(VLOOKUP($A24,masterlist!$C$2:$AA$207,23,FALSE)-6),IF($B$7=10,(VLOOKUP($A24,masterlist!$C$2:$AA$207,23,FALSE)-3),(VLOOKUP($A24,masterlist!$C$2:$AA$207,23,FALSE)))))),\"\")","v":""},{"$f":"IFERROR(VLOOKUP($A24,masterlist!$C$2:$AA$207,24,FALSE),\"\")","v":""}]
[{"$f":"IF(ROWS($A$13:A25)<=(SUMPRODUCT((masterlist!B:B=\"DCA\")*(masterlist!J:J=0))),INDEX(masterlist!$C$2:$C$207,SMALL(IF(masterlist!$B$2:$B$207=\"DCA\",IF(masterlist!$F$2:$F$207>0,IF(masterlist!$J$2:$J$207=0,ROW(masterlist!$B$2:$B$207)-ROW(masterlist!$B$2)+1))),ROWS($A$13:A25))),\"\")","v":""},{"$f":"IFERROR(VLOOKUP($A25,masterlist!$C$2:$AA$207,3,FALSE),\"\")","v":""},{"$f":"IFERROR(VLOOKUP($A25,masterlist!$C$2:$AA$207,2,FALSE),\"\")","v":""},{"$f":"IFERROR(VLOOKUP($A25,masterlist!$C$2:$AD$207,28,FALSE),\"\")","v":""},{"$f":"IFERROR(IF((VLOOKUP($A25,masterlist!$C$2:$AA$207,9,FALSE))=0,\"\",VLOOKUP($A25,masterlist!$C$2:$AA$207,9,FALSE)),\"\")","v":""},{"$f":"IFERROR(VLOOKUP($A25,masterlist!$C$2:$AA$207,20,FALSE),\"\")","v":""},{"$f":"IFERROR(VLOOKUP($A25,masterlist!$C$2:$AA$207,21,FALSE),\"\")","v":""},{"$f":"IFERROR(VLOOKUP($A25,masterlist!$C$2:$AA$207,22,FALSE),\"\")","v":""},{"$f":"IFERROR(IF($B$7=2,(VLOOKUP($A25,masterlist!$C$2:$AA$207,23,FALSE)-11),IF($B$7=4,(VLOOKUP($A25,masterlist!$C$2:$AA$207,23,FALSE)-9),IF($B$7=7,(VLOOKUP($A25,masterlist!$C$2:$AA$207,23,FALSE)-6),IF($B$7=10,(VLOOKUP($A25,masterlist!$C$2:$AA$207,23,FALSE)-3),(VLOOKUP($A25,masterlist!$C$2:$AA$207,23,FALSE)))))),\"\")","v":""},{"$f":"IFERROR(VLOOKUP($A25,masterlist!$C$2:$AA$207,24,FALSE),\"\")","v":""}]
[{"$f":"IF(ROWS($A$13:A26)<=(SUMPRODUCT((masterlist!B:B=\"DCA\")*(masterlist!J:J=0))),INDEX(masterlist!$C$2:$C$207,SMALL(IF(masterlist!$B$2:$B$207=\"DCA\",IF(masterlist!$F$2:$F$207>0,IF(masterlist!$J$2:$J$207=0,ROW(masterlist!$B$2:$B$207)-ROW(masterlist!$B$2)+1))),ROWS($A$13:A26))),\"\")","v":""},{"$f":"IFERROR(VLOOKUP($A26,masterlist!$C$2:$AA$207,3,FALSE),\"\")","v":""},{"$f":"IFERROR(VLOOKUP($A26,masterlist!$C$2:$AA$207,2,FALSE),\"\")","v":""},{"$f":"IFERROR(VLOOKUP($A26,masterlist!$C$2:$AD$207,28,FALSE),\"\")","v":""},{"$f":"IFERROR(IF((VLOOKUP($A26,masterlist!$C$2:$AA$207,9,FALSE))=0,\"\",VLOOKUP($A26,masterlist!$C$2:$AA$207,9,FALSE)),\"\")","v":""},{"$f":"IFERROR(VLOOKUP($A26,masterlist!$C$2:$AA$207,20,FALSE),\"\")","v":""},{"$f":"IFERROR(VLOOKUP($A26,masterlist!$C$2:$AA$207,21,FALSE),\"\")","v":""},{"$f":"IFERROR(VLOOKUP($A26,masterlist!$C$2:$AA$207,22,FALSE),\"\")","v":""},{"$f":"IFERROR(IF($B$7=2,(VLOOKUP($A26,masterlist!$C$2:$AA$207,23,FALSE)-11),IF($B$7=4,(VLOOKUP($A26,masterlist!$C$2:$AA$207,23,FALSE)-9),IF($B$7=7,(VLOOKUP($A26,masterlist!$C$2:$AA$207,23,FALSE)-6),IF($B$7=10,(VLOOKUP($A26,masterlist!$C$2:$AA$207,23,FALSE)-3),(VLOOKUP($A26,masterlist!$C$2:$AA$207,23,FALSE)))))),\"\")","v":""},{"$f":"IFERROR(VLOOKUP($A26,masterlist!$C$2:$AA$207,24,FALSE),\"\")","v":""}]
[{"$f":"IF(ROWS($A$13:A27)<=(SUMPRODUCT((masterlist!B:B=\"DCA\")*(masterlist!J:J=0))),INDEX(masterlist!$C$2:$C$207,SMALL(IF(masterlist!$B$2:$B$207=\"DCA\",IF(masterlist!$F$2:$F$207>0,IF(masterlist!$J$2:$J$207=0,ROW(masterlist!$B$2:$B$207)-ROW(masterlist!$B$2)+1))),ROWS($A$13:A27))),\"\")","v":""},{"$f":"IFERROR(VLOOKUP($A27,masterlist!$C$2:$AA$207,3,FALSE),\"\")","v":""},{"$f":"IFERROR(VLOOKUP($A27,masterlist!$C$2:$AA$207,2,FALSE),\"\")","v":""},{"$f":"IFERROR(VLOOKUP($A27,masterlist!$C$2:$AD$207,28,FALSE),\"\")","v":""},{"$f":"IFERROR(IF((VLOOKUP($A27,masterlist!$C$2:$AA$207,9,FALSE))=0,\"\",VLOOKUP($A27,masterlist!$C$2:$AA$207,9,FALSE)),\"\")","v":""},{"$f":"IFERROR(VLOOKUP($A27,masterlist!$C$2:$AA$207,20,FALSE),\"\")","v":""},{"$f":"IFERROR(VLOOKUP($A27,masterlist!$C$2:$AA$207,21,FALSE),\"\")","v":""},{"$f":"IFERROR(VLOOKUP($A27,masterlist!$C$2:$AA$207,22,FALSE),\"\")","v":""},{"$f":"IFERROR(IF($B$7=2,(VLOOKUP($A27,masterlist!$C$2:$AA$207,23,FALSE)-11),IF($B$7=4,(VLOOKUP($A27,masterlist!$C$2:$AA$207,23,FALSE)-9),IF($B$7=7,(VLOOKUP($A27,masterlist!$C$2:$AA$207,23,FALSE)-6),IF($B$7=10,(VLOOKUP($A27,masterlist!$C$2:$AA$207,23,FALSE)-3),(VLOOKUP($A27,masterlist!$C$2:$AA$207,23,FALSE)))))),\"\")","v":""},{"$f":"IFERROR(VLOOKUP($A27,masterlist!$C$2:$AA$207,24,FALSE),\"\")","v":""}]
[{"$f":"IF(ROWS($A$13:A28)<=(SUMPRODUCT((masterlist!B:B=\"DCA\")*(masterlist!J:J=0))),INDEX(masterlist!$C$2:$C$207,SMALL(IF(masterlist!$B$2:$B$207=\"DCA\",IF(masterlist!$F$2:$F$207>0,IF(masterlist!$J$2:$J$207=0,ROW(masterlist!$B$2:$B$207)-ROW(masterlist!$B$2)+1))),ROWS($A$13:A28))),\"\")","v":""},{"$f":"IFERROR(VLOOKUP($A28,masterlist!$C$2:$AA$207,3,FALSE),\"\")","v":""},{"$f":"IFERROR(VLOOKUP($A28,masterlist!$C$2:$AA$207,2,FALSE),\"\")","v":""},{"$f":"IFERROR(VLOOKUP($A28,masterlist!$C$2:$AD$207,28,FALSE),\"\")","v":""},{"$f":"IFERROR(IF((VLOOKUP($A28,masterlist!$C$2:$AA$207,9,FALSE))=0,\"\",VLOOKUP($A28,masterlist!$C$2:$AA$207,9,FALSE)),\"\")","v":""},{"$f":"IFERROR(VLOOKUP($A28,masterlist!$C$2:$AA$207,20,FALSE),\"\")","v":""},{"$f":"IFERROR(VLOOKUP($A28,masterlist!$C$2:$AA$207,21,FALSE),\"\")","v":""},{"$f":"IFERROR(VLOOKUP($A28,masterlist!$C$2:$AA$207,22,FALSE),\"\")","v":""},{"$f":"IFERROR(IF($B$7=2,(VLOOKUP($A28,masterlist!$C$2:$AA$207,23,FALSE)-11),IF($B$7=4,(VLOOKUP($A28,masterlist!$C$2:$AA$207,23,FALSE)-9),IF($B$7=7,(VLOOKUP($A28,masterlist!$C$2:$AA$207,23,FALSE)-6),IF($B$7=10,(VLOOKUP($A28,masterlist!$C$2:$AA$207,23,FALSE)-3),(VLOOKUP($A28,masterlist!$C$2:$AA$207,23,FALSE)))))),\"\")","v":""},{"$f":"IFERROR(VLOOKUP($A28,masterlist!$C$2:$AA$207,24,FALSE),\"\")","v":""}]
[{"$f":"IF(ROWS($A$13:A29)<=(SUMPRODUCT((masterlist!B:B=\"DCA\")*(masterlist!J:J=0))),INDEX(masterlist!$C$2:$C$207,SMALL(IF(masterlist!$B$2:$B$207=\"DCA\",IF(masterlist!$F$2:$F$207>0,IF(masterlist!$J$2:$J$207=0,ROW(masterlist!$B$2:$B$207)-ROW(masterlist!$B$2)+1))),ROWS($A$13:A29))),\"\")","v":""},{"$f":"IFERROR(VLOOKUP($A29,masterlist!$C$2:$AA$207,3,FALSE),\"\")","v":""},{"$f":"IFERROR(VLOOKUP($A29,masterlist!$C$2:$AA$207,2,FALSE),\"\")","v":""},{"$f":"IFERROR(VLOOKUP($A29,masterlist!$C$2:$AD$207,28,FALSE),\"\")","v":""},{"$f":"IFERROR(IF((VLOOKUP($A29,masterlist!$C$2:$AA$207,9,FALSE))=0,\"\",VLOOKUP($A29,masterlist!$C$2:$AA$207,9,FALSE)),\"\")","v":""},{"$f":"IFERROR(VLOOKUP($A29,masterlist!$C$2:$AA$207,20,FALSE),\"\")","v":""},{"$f":"IFERROR(VLOOKUP($A29,masterlist!$C$2:$AA$207,21,FALSE),\"\")","v":""},{"$f":"IFERROR(VLOOKUP($A29,masterlist!$C$2:$AA$207,22,FALSE),\"\")","v":""},{"$f":"IFERROR(IF($B$7=2,(VLOOKUP($A29,masterlist!$C$2:$AA$207,23,FALSE)-11),IF($B$7=4,(VLOOKUP($A29,masterlist!$C$2:$AA$207,23,FALSE)-9),IF($B$7=7,(VLOOKUP($A29,masterlist!$C$2:$AA$207,23,FALSE)-6),IF($B$7=10,(VLOOKUP($A29,masterlist!$C$2:$AA$207,23,FALSE)-3),(VLOOKUP($A29,masterlist!$C$2:$AA$207,23,FALSE)))))),\"\")","v":""},{"$f":"IFERROR(VLOOKUP($A29,masterlist!$C$2:$AA$207,24,FALSE),\"\")","v":""}]
[{"$f":"IF(ROWS($A$13:A30)<=(SUMPRODUCT((masterlist!B:B=\"DCA\")*(masterlist!J:J=0))),INDEX(masterlist!$C$2:$C$207,SMALL(IF(masterlist!$B$2:$B$207=\"DCA\",IF(masterlist!$F$2:$F$207>0,IF(masterlist!$J$2:$J$207=0,ROW(masterlist!$B$2:$B$207)-ROW(masterlist!$B$2)+1))),ROWS($A$13:A30))),\"\")","v":""},{"$f":"IFERROR(VLOOKUP($A30,masterlist!$C$2:$AA$207,3,FALSE),\"\")","v":""},{"$f":"IFERROR(VLOOKUP($A30,masterlist!$C$2:$AA$207,2,FALSE),\"\")","v":""},{"$f":"IFERROR(VLOOKUP($A30,masterlist!$C$2:$AD$207,28,FALSE),\"\")","v":""},{"$f":"IFERROR(IF((VLOOKUP($A30,masterlist!$C$2:$AA$207,9,FALSE))=0,\"\",VLOOKUP($A30,masterlist!$C$2:$AA$207,9,FALSE)),\"\")","v":""},{"$f":"IFERROR(VLOOKUP($A30,masterlist!$C$2:$AA$207,20,FALSE),\"\")","v":""},{"$f":"IFERROR(VLOOKUP($A30,masterlist!$C$2:$AA$207,21,FALSE),\"\")","v":""},{"$f":"IFERROR(VLOOKUP($A30,masterlist!$C$2:$AA$207,22,FALSE),\"\")","v":""},{"$f":"IFERROR(IF($B$7=2,(VLOOKUP($A30,masterlist!$C$2:$AA$207,23,FALSE)-11),IF($B$7=4,(VLOOKUP($A30,masterlist!$C$2:$AA$207,23,FALSE)-9),IF($B$7=7,(VLOOKUP($A30,masterlist!$C$2:$AA$207,23,FALSE)-6),IF($B$7=10,(VLOOKUP($A30,masterlist!$C$2:$AA$207,23,FALSE)-3),(VLOOKUP($A30,masterlist!$C$2:$AA$207,23,FALSE)))))),\"\")","v":""},{"$f":"IFERROR(VLOOKUP($A30,masterlist!$C$2:$AA$207,24,FALSE),\"\")","v":""}]
[{"$f":"IF(ROWS($A$13:A31)<=(SUMPRODUCT((masterlist!B:B=\"DCA\")*(masterlist!J:J=0))),INDEX(masterlist!$C$2:$C$207,SMALL(IF(masterlist!$B$2:$B$207=\"DCA\",IF(masterlist!$F$2:$F$207>0,IF(masterlist!$J$2:$J$207=0,ROW(masterlist!$B$2:$B$207)-ROW(masterlist!$B$2)+1))),ROWS($A$13:A31))),\"\")","v":""},{"$f":"IFERROR(VLOOKUP($A31,masterlist!$C$2:$AA$207,3,FALSE),\"\")","v":""},{"$f":"IFERROR(VLOOKUP($A31,masterlist!$C$2:$AA$207,2,FALSE),\"\")","v":""},{"$f":"IFERROR(VLOOKUP($A31,masterlist!$C$2:$AD$207,28,FALSE),\"\")","v":""},{"$f":"IFERROR(IF((VLOOKUP($A31,masterlist!$C$2:$AA$207,9,FALSE))=0,\"\",VLOOKUP($A31,masterlist!$C$2:$AA$207,9,FALSE)),\"\")","v":""},{"$f":"IFERROR(VLOOKUP($A31,masterlist!$C$2:$AA$207,20,FALSE),\"\")","v":""},{"$f":"IFERROR(VLOOKUP($A31,masterlist!$C$2:$AA$207,21,FALSE),\"\")","v":""},{"$f":"IFERROR(VLOOKUP($A31,masterlist!$C$2:$AA$207,22,FALSE),\"\")","v":""},{"$f":"IFERROR(IF($B$7=2,(VLOOKUP($A31,masterlist!$C$2:$AA$207,23,FALSE)-11),IF($B$7=4,(VLOOKUP($A31,masterlist!$C$2:$AA$207,23,FALSE)-9),IF($B$7=7,(VLOOKUP($A31,masterlist!$C$2:$AA$207,23,FALSE)-6),IF($B$7=10,(VLOOKUP($A31,masterlist!$C$2:$AA$207,23,FALSE)-3),(VLOOKUP($A31,masterlist!$C$2:$AA$207,23,FALSE)))))),\"\")","v":""},{"$f":"IFERROR(VLOOKUP($A31,masterlist!$C$2:$AA$207,24,FALSE),\"\")","v":""}]
[{"$f":"IF(ROWS($A$13:A32)<=(SUMPRODUCT((masterlist!B:B=\"DCA\")*(masterlist!J:J=0))),INDEX(masterlist!$C$2:$C$207,SMALL(IF(masterlist!$B$2:$B$207=\"DCA\",IF(masterlist!$F$2:$F$207>0,IF(masterlist!$J$2:$J$207=0,ROW(masterlist!$B$2:$B$207)-ROW(masterlist!$B$2)+1))),ROWS($A$13:A32))),\"\")","v":""},{"$f":"IFERROR(VLOOKUP($A32,masterlist!$C$2:$AA$207,3,FALSE),\"\")","v":""},{"$f":"IFERROR(VLOOKUP($A32,masterlist!$C$2:$AA$207,2,FALSE),\"\")","v":""},{"$f":"IFERROR(VLOOKUP($A32,masterlist!$C$2:$AD$207,28,FALSE),\"\")","v":""},{"$f":"IFERROR(IF((VLOOKUP($A32,masterlist!$C$2:$AA$207,9,FALSE))=0,\"\",VLOOKUP($A32,masterlist!$C$2:$AA$207,9,FALSE)),\"\")","v":""},{"$f":"IFERROR(VLOOKUP($A32,masterlist!$C$2:$AA$207,20,FALSE),\"\")","v":""},{"$f":"IFERROR(VLOOKUP($A32,masterlist!$C$2:$AA$207,21,FALSE),\"\")","v":""},{"$f":"IFERROR(VLOOKUP($A32,masterlist!$C$2:$AA$207,22,FALSE),\"\")","v":""},{"$f":"IFERROR(IF($B$7=2,(VLOOKUP($A32,masterlist!$C$2:$AA$207,23,FALSE)-11),IF($B$7=4,(VLOOKUP($A32,masterlist!$C$2:$AA$207,23,FALSE)-9),IF($B$7=7,(VLOOKUP($A32,masterlist!$C$2:$AA$207,23,FALSE)-6),IF($B$7=10,(VLOOKUP($A32,masterlist!$C$2:$AA$207,23,FALSE)-3),(VLOOKUP($A32,masterlist!$C$2:$AA$207,23,FALSE)))))),\"\")","v":""},{"$f":"IFERROR(VLOOKUP($A32,masterlist!$C$2:$AA$207,24,FALSE),\"\")","v":""}]
[{"$f":"IF(ROWS($A$13:A33)<=(SUMPRODUCT((masterlist!B:B=\"DCA\")*(masterlist!J:J=0))),INDEX(masterlist!$C$2:$C$207,SMALL(IF(masterlist!$B$2:$B$207=\"DCA\",IF(masterlist!$F$2:$F$207>0,IF(masterlist!$J$2:$J$207=0,ROW(masterlist!$B$2:$B$207)-ROW(masterlist!$B$2)+1))),ROWS($A$13:A33))),\"\")","v":""},{"$f":"IFERROR(VLOOKUP($A33,masterlist!$C$2:$AA$207,3,FALSE),\"\")","v":""},{"$f":"IFERROR(VLOOKUP($A33,masterlist!$C$2:$AA$207,2,FALSE),\"\")","v":""},{"$f":"IFERROR(VLOOKUP($A33,masterlist!$C$2:$AD$207,28,FALSE),\"\")","v":""},{"$f":"IFERROR(IF((VLOOKUP($A33,masterlist!$C$2:$AA$207,9,FALSE))=0,\"\",VLOOKUP($A33,masterlist!$C$2:$AA$207,9,FALSE)),\"\")","v":""},{"$f":"IFERROR(VLOOKUP($A33,masterlist!$C$2:$AA$207,20,FALSE),\"\")","v":""},{"$f":"IFERROR(VLOOKUP($A33,masterlist!$C$2:$AA$207,21,FALSE),\"\")","v":""},{"$f":"IFERROR(VLOOKUP($A33,masterlist!$C$2:$AA$207,22,FALSE),\"\")","v":""},{"$f":"IFERROR(IF($B$7=2,(VLOOKUP($A33,masterlist!$C$2:$AA$207,23,FALSE)-11),IF($B$7=4,(VLOOKUP($A33,masterlist!$C$2:$AA$207,23,FALSE)-9),IF($B$7=7,(VLOOKUP($A33,masterlist!$C$2:$AA$207,23,FALSE)-6),IF($B$7=10,(VLOOKUP($A33,masterlist!$C$2:$AA$207,23,FALSE)-3),(VLOOKUP($A33,masterlist!$C$2:$AA$207,23,FALSE)))))),\"\")","v":""},{"$f":"IFERROR(VLOOKUP($A33,masterlist!$C$2:$AA$207,24,FALSE),\"\")","v":""}]
[{"$f":"IF(ROWS($A$13:A34)<=(SUMPRODUCT((masterlist!B:B=\"DCA\")*(masterlist!J:J=0))),INDEX(masterlist!$C$2:$C$207,SMALL(IF(masterlist!$B$2:$B$207=\"DCA\",IF(masterlist!$F$2:$F$207>0,IF(masterlist!$J$2:$J$207=0,ROW(masterlist!$B$2:$B$207)-ROW(masterlist!$B$2)+1))),ROWS($A$13:A34))),\"\")","v":""},{"$f":"IFERROR(VLOOKUP($A34,masterlist!$C$2:$AA$207,3,FALSE),\"\")","v":""},{"$f":"IFERROR(VLOOKUP($A34,masterlist!$C$2:$AA$207,2,FALSE),\"\")","v":""},{"$f":"IFERROR(VLOOKUP($A34,masterlist!$C$2:$AD$207,28,FALSE),\"\")","v":""},{"$f":"IFERROR(IF((VLOOKUP($A34,masterlist!$C$2:$AA$207,9,FALSE))=0,\"\",VLOOKUP($A34,masterlist!$C$2:$AA$207,9,FALSE)),\"\")","v":""},{"$f":"IFERROR(VLOOKUP($A34,masterlist!$C$2:$AA$207,20,FALSE),\"\")","v":""},{"$f":"IFERROR(VLOOKUP($A34,masterlist!$C$2:$AA$207,21,FALSE),\"\")","v":""},{"$f":"IFERROR(VLOOKUP($A34,masterlist!$C$2:$AA$207,22,FALSE),\"\")","v":""},{"$f":"IFERROR(IF($B$7=2,(VLOOKUP($A34,masterlist!$C$2:$AA$207,23,FALSE)-11),IF($B$7=4,(VLOOKUP($A34,masterlist!$C$2:$AA$207,23,FALSE)-9),IF($B$7=7,(VLOOKUP($A34,masterlist!$C$2:$AA$207,23,FALSE)-6),IF($B$7=10,(VLOOKUP($A34,masterlist!$C$2:$AA$207,23,FALSE)-3),(VLOOKUP($A34,masterlist!$C$2:$AA$207,23,FALSE)))))),\"\")","v":""},{"$f":"IFERROR(VLOOKUP($A34,masterlist!$C$2:$AA$207,24,FALSE),\"\")","v":""}]
[{"$f":"IF(ROWS($A$13:A35)<=(SUMPRODUCT((masterlist!B:B=\"DCA\")*(masterlist!J:J=0))),INDEX(masterlist!$C$2:$C$207,SMALL(IF(masterlist!$B$2:$B$207=\"DCA\",IF(masterlist!$F$2:$F$207>0,IF(masterlist!$J$2:$J$207=0,ROW(masterlist!$B$2:$B$207)-ROW(masterlist!$B$2)+1))),ROWS($A$13:A35))),\"\")","v":""},{"$f":"IFERROR(VLOOKUP($A35,masterlist!$C$2:$AA$207,3,FALSE),\"\")","v":""},{"$f":"IFERROR(VLOOKUP($A35,masterlist!$C$2:$AA$207,2,FALSE),\"\")","v":""},{"$f":"IFERROR(VLOOKUP($A35,masterlist!$C$2:$AD$207,28,FALSE),\"\")","v":""},{"$f":"IFERROR(IF((VLOOKUP($A35,masterlist!$C$2:$AA$207,9,FALSE))=0,\"\",VLOOKUP($A35,masterlist!$C$2:$AA$207,9,FALSE)),\"\")","v":""},{"$f":"IFERROR(VLOOKUP($A35,masterlist!$C$2:$AA$207,20,FALSE),\"\")","v":""},{"$f":"IFERROR(VLOOKUP($A35,masterlist!$C$2:$AA$207,21,FALSE),\"\")","v":""},{"$f":"IFERROR(VLOOKUP($A35,masterlist!$C$2:$AA$207,22,FALSE),\"\")","v":""},{"$f":"IFERROR(IF($B$7=2,(VLOOKUP($A35,masterlist!$C$2:$AA$207,23,FALSE)-11),IF($B$7=4,(VLOOKUP($A35,masterlist!$C$2:$AA$207,23,FALSE)-9),IF($B$7=7,(VLOOKUP($A35,masterlist!$C$2:$AA$207,23,FALSE)-6),IF($B$7=10,(VLOOKUP($A35,masterlist!$C$2:$AA$207,23,FALSE)-3),(VLOOKUP($A35,masterlist!$C$2:$AA$207,23,FALSE)))))),\"\")","v":""},{"$f":"IFERROR(VLOOKUP($A35,masterlist!$C$2:$AA$207,24,FALSE),\"\")","v":""}]
[{"$f":"IF(ROWS($A$13:A36)<=(SUMPRODUCT((masterlist!B:B=\"DCA\")*(masterlist!J:J=0))),INDEX(masterlist!$C$2:$C$207,SMALL(IF(masterlist!$B$2:$B$207=\"DCA\",IF(masterlist!$F$2:$F$207>0,IF(masterlist!$J$2:$J$207=0,ROW(masterlist!$B$2:$B$207)-ROW(masterlist!$B$2)+1))),ROWS($A$13:A36))),\"\")","v":""},{"$f":"IFERROR(VLOOKUP($A36,masterlist!$C$2:$AA$207,3,FALSE),\"\")","v":""},{"$f":"IFERROR(VLOOKUP($A36,masterlist!$C$2:$AA$207,2,FALSE),\"\")","v":""},{"$f":"IFERROR(VLOOKUP($A36,masterlist!$C$2:$AD$207,28,FALSE),\"\")","v":""},{"$f":"IFERROR(IF((VLOOKUP($A36,masterlist!$C$2:$AA$207,9,FALSE))=0,\"\",VLOOKUP($A36,masterlist!$C$2:$AA$207,9,FALSE)),\"\")","v":""},{"$f":"IFERROR(VLOOKUP($A36,masterlist!$C$2:$AA$207,20,FALSE),\"\")","v":""},{"$f":"IFERROR(VLOOKUP($A36,masterlist!$C$2:$AA$207,21,FALSE),\"\")","v":""},{"$f":"IFERROR(VLOOKUP($A36,masterlist!$C$2:$AA$207,22,FALSE),\"\")","v":""},{"$f":"IFERROR(IF($B$7=2,(VLOOKUP($A36,masterlist!$C$2:$AA$207,23,FALSE)-11),IF($B$7=4,(VLOOKUP($A36,masterlist!$C$2:$AA$207,23,FALSE)-9),IF($B$7=7,(VLOOKUP($A36,masterlist!$C$2:$AA$207,23,FALSE)-6),IF($B$7=10,(VLOOKUP($A36,masterlist!$C$2:$AA$207,23,FALSE)-3),(VLOOKUP($A36,masterlist!$C$2:$AA$207,23,FALSE)))))),\"\")","v":""},{"$f":"IFERROR(VLOOKUP($A36,masterlist!$C$2:$AA$207,24,FALSE),\"\")","v":""}]
[{"$f":"IF(ROWS($A$13:A37)<=(SUMPRODUCT((masterlist!B:B=\"DCA\")*(masterlist!J:J=0))),INDEX(masterlist!$C$2:$C$207,SMALL(IF(masterlist!$B$2:$B$207=\"DCA\",IF(masterlist!$F$2:$F$207>0,IF(masterlist!$J$2:$J$207=0,ROW(masterlist!$B$2:$B$207)-ROW(masterlist!$B$2)+1))),ROWS($A$13:A37))),\"\")","v":""},{"$f":"IFERROR(VLOOKUP($A37,masterlist!$C$2:$AA$207,3,FALSE),\"\")","v":""},{"$f":"IFERROR(VLOOKUP($A37,masterlist!$C$2:$AA$207,2,FALSE),\"\")","v":""},{"$f":"IFERROR(VLOOKUP($A37,masterlist!$C$2:$AD$207,28,FALSE),\"\")","v":""},{"$f":"IFERROR(IF((VLOOKUP($A37,masterlist!$C$2:$AA$207,9,FALSE))=0,\"\",VLOOKUP($A37,masterlist!$C$2:$AA$207,9,FALSE)),\"\")","v":""},{"$f":"IFERROR(VLOOKUP($A37,masterlist!$C$2:$AA$207,20,FALSE),\"\")","v":""},{"$f":"IFERROR(VLOOKUP($A37,masterlist!$C$2:$AA$207,21,FALSE),\"\")","v":""},{"$f":"IFERROR(VLOOKUP($A37,masterlist!$C$2:$AA$207,22,FALSE),\"\")","v":""},{"$f":"IFERROR(IF($B$7=2,(VLOOKUP($A37,masterlist!$C$2:$AA$207,23,FALSE)-11),IF($B$7=4,(VLOOKUP($A37,masterlist!$C$2:$AA$207,23,FALSE)-9),IF($B$7=7,(VLOOKUP($A37,masterlist!$C$2:$AA$207,23,FALSE)-6),IF($B$7=10,(VLOOKUP($A37,masterlist!$C$2:$AA$207,23,FALSE)-3),(VLOOKUP($A37,masterlist!$C$2:$AA$207,23,FALSE)))))),\"\")","v":""},{"$f":"IFERROR(VLOOKUP($A37,masterlist!$C$2:$AA$207,24,FALSE),\"\")","v":""}]
[{"$f":"IF(ROWS($A$13:A38)<=(SUMPRODUCT((masterlist!B:B=\"DCA\")*(masterlist!J:J=0))),INDEX(masterlist!$C$2:$C$207,SMALL(IF(masterlist!$B$2:$B$207=\"DCA\",IF(masterlist!$F$2:$F$207>0,IF(masterlist!$J$2:$J$207=0,ROW(masterlist!$B$2:$B$207)-ROW(masterlist!$B$2)+1))),ROWS($A$13:A38))),\"\")","v":""},{"$f":"IFERROR(VLOOKUP($A38,masterlist!$C$2:$AA$207,3,FALSE),\"\")","v":""},{"$f":"IFERROR(VLOOKUP($A38,masterlist!$C$2:$AA$207,2,FALSE),\"\")","v":""},{"$f":"IFERROR(VLOOKUP($A38,masterlist!$C$2:$AD$207,28,FALSE),\"\")","v":""},{"$f":"IFERROR(IF((VLOOKUP($A38,masterlist!$C$2:$AA$207,9,FALSE))=0,\"\",VLOOKUP($A38,masterlist!$C$2:$AA$207,9,FALSE)),\"\")","v":""},{"$f":"IFERROR(VLOOKUP($A38,masterlist!$C$2:$AA$207,20,FALSE),\"\")","v":""},{"$f":"IFERROR(VLOOKUP($A38,masterlist!$C$2:$AA$207,21,FALSE),\"\")","v":""},{"$f":"IFERROR(VLOOKUP($A38,masterlist!$C$2:$AA$207,22,FALSE),\"\")","v":""},{"$f":"IFERROR(IF($B$7=2,(VLOOKUP($A38,masterlist!$C$2:$AA$207,23,FALSE)-11),IF($B$7=4,(VLOOKUP($A38,masterlist!$C$2:$AA$207,23,FALSE)-9),IF($B$7=7,(VLOOKUP($A38,masterlist!$C$2:$AA$207,23,FALSE)-6),IF($B$7=10,(VLOOKUP($A38,masterlist!$C$2:$AA$207,23,FALSE)-3),(VLOOKUP($A38,masterlist!$C$2:$AA$207,23,FALSE)))))),\"\")","v":""},{"$f":"IFERROR(VLOOKUP($A38,masterlist!$C$2:$AA$207,24,FALSE),\"\")","v":""}]
[{"$f":"IF(ROWS($A$13:A39)<=(SUMPRODUCT((masterlist!B:B=\"DCA\")*(masterlist!J:J=0))),INDEX(masterlist!$C$2:$C$207,SMALL(IF(masterlist!$B$2:$B$207=\"DCA\",IF(masterlist!$F$2:$F$207>0,IF(masterlist!$J$2:$J$207=0,ROW(masterlist!$B$2:$B$207)-ROW(masterlist!$B$2)+1))),ROWS($A$13:A39))),\"\")","v":""},{"$f":"IFERROR(VLOOKUP($A39,masterlist!$C$2:$AA$207,3,FALSE),\"\")","v":""},{"$f":"IFERROR(VLOOKUP($A39,masterlist!$C$2:$AA$207,2,FALSE),\"\")","v":""},{"$f":"IFERROR(VLOOKUP($A39,masterlist!$C$2:$AD$207,28,FALSE),\"\")","v":""},{"$f":"IFERROR(IF((VLOOKUP($A39,masterlist!$C$2:$AA$207,9,FALSE))=0,\"\",VLOOKUP($A39,masterlist!$C$2:$AA$207,9,FALSE)),\"\")","v":""},{"$f":"IFERROR(VLOOKUP($A39,masterlist!$C$2:$AA$207,20,FALSE),\"\")","v":""},{"$f":"IFERROR(VLOOKUP($A39,masterlist!$C$2:$AA$207,21,FALSE),\"\")","v":""},{"$f":"IFERROR(VLOOKUP($A39,masterlist!$C$2:$AA$207,22,FALSE),\"\")","v":""},{"$f":"IFERROR(IF($B$7=2,(VLOOKUP($A39,masterlist!$C$2:$AA$207,23,FALSE)-11),IF($B$7=4,(VLOOKUP($A39,masterlist!$C$2:$AA$207,23,FALSE)-9),IF($B$7=7,(VLOOKUP($A39,masterlist!$C$2:$AA$207,23,FALSE)-6),IF($B$7=10,(VLOOKUP($A39,masterlist!$C$2:$AA$207,23,FALSE)-3),(VLOOKUP($A39,masterlist!$C$2:$AA$207,23,FALSE)))))),\"\")","v":""},{"$f":"IFERROR(VLOOKUP($A39,masterlist!$C$2:$AA$207,24,FALSE),\"\")","v":""}]
[{"$f":"IF(ROWS($A$13:A40)<=(SUMPRODUCT((masterlist!B:B=\"DCA\")*(masterlist!J:J=0))),INDEX(masterlist!$C$2:$C$207,SMALL(IF(masterlist!$B$2:$B$207=\"DCA\",IF(masterlist!$F$2:$F$207>0,IF(masterlist!$J$2:$J$207=0,ROW(masterlist!$B$2:$B$207)-ROW(masterlist!$B$2)+1))),ROWS($A$13:A40))),\"\")","v":""},{"$f":"IFERROR(VLOOKUP($A40,masterlist!$C$2:$AA$207,3,FALSE),\"\")","v":""},{"$f":"IFERROR(VLOOKUP($A40,masterlist!$C$2:$AA$207,2,FALSE),\"\")","v":""},{"$f":"IFERROR(VLOOKUP($A40,masterlist!$C$2:$AD$207,28,FALSE),\"\")","v":""},{"$f":"IFERROR(IF((VLOOKUP($A40,masterlist!$C$2:$AA$207,9,FALSE))=0,\"\",VLOOKUP($A40,masterlist!$C$2:$AA$207,9,FALSE)),\"\")","v":""},{"$f":"IFERROR(VLOOKUP($A40,masterlist!$C$2:$AA$207,20,FALSE),\"\")","v":""},{"$f":"IFERROR(VLOOKUP($A40,masterlist!$C$2:$AA$207,21,FALSE),\"\")","v":""},{"$f":"IFERROR(VLOOKUP($A40,masterlist!$C$2:$AA$207,22,FALSE),\"\")","v":""},{"$f":"IFERROR(IF($B$7=2,(VLOOKUP($A40,masterlist!$C$2:$AA$207,23,FALSE)-11),IF($B$7=4,(VLOOKUP($A40,masterlist!$C$2:$AA$207,23,FALSE)-9),IF($B$7=7,(VLOOKUP($A40,masterlist!$C$2:$AA$207,23,FALSE)-6),IF($B$7=10,(VLOOKUP($A40,masterlist!$C$2:$AA$207,23,FALSE)-3),(VLOOKUP($A40,masterlist!$C$2:$AA$207,23,FALSE)))))),\"\")","v":""},{"$f":"IFERROR(VLOOKUP($A40,masterlist!$C$2:$AA$207,24,FALSE),\"\")","v":""}]
[{"$f":"IF(ROWS($A$13:A41)<=(SUMPRODUCT((masterlist!B:B=\"DCA\")*(masterlist!J:J=0))),INDEX(masterlist!$C$2:$C$207,SMALL(IF(masterlist!$B$2:$B$207=\"DCA\",IF(masterlist!$F$2:$F$207>0,IF(masterlist!$J$2:$J$207=0,ROW(masterlist!$B$2:$B$207)-ROW(masterlist!$B$2)+1))),ROWS($A$13:A41))),\"\")","v":""},{"$f":"IFERROR(VLOOKUP($A41,masterlist!$C$2:$AA$207,3,FALSE),\"\")","v":""},{"$f":"IFERROR(VLOOKUP($A41,masterlist!$C$2:$AA$207,2,FALSE),\"\")","v":""},{"$f":"IFERROR(VLOOKUP($A41,masterlist!$C$2:$AD$207,28,FALSE),\"\")","v":""},{"$f":"IFERROR(IF((VLOOKUP($A41,masterlist!$C$2:$AA$207,9,FALSE))=0,\"\",VLOOKUP($A41,masterlist!$C$2:$AA$207,9,FALSE)),\"\")","v":""},{"$f":"IFERROR(VLOOKUP($A41,masterlist!$C$2:$AA$207,20,FALSE),\"\")","v":""},{"$f":"IFERROR(VLOOKUP($A41,masterlist!$C$2:$AA$207,21,FALSE),\"\")","v":""},{"$f":"IFERROR(VLOOKUP($A41,masterlist!$C$2:$AA$207,22,FALSE),\"\")","v":""},{"$f":"IFERROR(IF($B$7=2,(VLOOKUP($A41,masterlist!$C$2:$AA$207,23,FALSE)-11),IF($B$7=4,(VLOOKUP($A41,masterlist!$C$2:$AA$207,23,FALSE)-9),IF($B$7=7,(VLOOKUP($A41,masterlist!$C$2:$AA$207,23,FALSE)-6),IF($B$7=10,(VLOOKUP($A41,masterlist!$C$2:$AA$207,23,FALSE)-3),(VLOOKUP($A41,masterlist!$C$2:$AA$207,23,FALSE)))))),\"\")","v":""},{"$f":"IFERROR(VLOOKUP($A41,masterlist!$C$2:$AA$207,24,FALSE),\"\")","v":""}]
[{"$f":"IF(ROWS($A$13:A42)<=(SUMPRODUCT((masterlist!B:B=\"DCA\")*(masterlist!J:J=0))),INDEX(masterlist!$C$2:$C$207,SMALL(IF(masterlist!$B$2:$B$207=\"DCA\",IF(masterlist!$F$2:$F$207>0,IF(masterlist!$J$2:$J$207=0,ROW(masterlist!$B$2:$B$207)-ROW(masterlist!$B$2)+1))),ROWS($A$13:A42))),\"\")","v":""},{"$f":"IFERROR(VLOOKUP($A42,masterlist!$C$2:$AA$207,3,FALSE),\"\")","v":""},{"$f":"IFERROR(VLOOKUP($A42,masterlist!$C$2:$AA$207,2,FALSE),\"\")","v":""},{"$f":"IFERROR(VLOOKUP($A42,masterlist!$C$2:$AD$207,28,FALSE),\"\")","v":""},{"$f":"IFERROR(IF((VLOOKUP($A42,masterlist!$C$2:$AA$207,9,FALSE))=0,\"\",VLOOKUP($A42,masterlist!$C$2:$AA$207,9,FALSE)),\"\")","v":""},{"$f":"IFERROR(VLOOKUP($A42,masterlist!$C$2:$AA$207,20,FALSE),\"\")","v":""},{"$f":"IFERROR(VLOOKUP($A42,masterlist!$C$2:$AA$207,21,FALSE),\"\")","v":""},{"$f":"IFERROR(VLOOKUP($A42,masterlist!$C$2:$AA$207,22,FALSE),\"\")","v":""},{"$f":"IFERROR(IF($B$7=2,(VLOOKUP($A42,masterlist!$C$2:$AA$207,23,FALSE)-11),IF($B$7=4,(VLOOKUP($A42,masterlist!$C$2:$AA$207,23,FALSE)-9),IF($B$7=7,(VLOOKUP($A42,masterlist!$C$2:$AA$207,23,FALSE)-6),IF($B$7=10,(VLOOKUP($A42,masterlist!$C$2:$AA$207,23,FALSE)-3),(VLOOKUP($A42,masterlist!$C$2:$AA$207,23,FALSE)))))),\"\")","v":""},{"$f":"IFERROR(VLOOKUP($A42,masterlist!$C$2:$AA$207,24,FALSE),\"\")","v":""}]
[{"$f":"IF(ROWS($A$13:A43)<=(SUMPRODUCT((masterlist!B:B=\"DCA\")*(masterlist!J:J=0))),INDEX(masterlist!$C$2:$C$207,SMALL(IF(masterlist!$B$2:$B$207=\"DCA\",IF(masterlist!$F$2:$F$207>0,IF(masterlist!$J$2:$J$207=0,ROW(masterlist!$B$2:$B$207)-ROW(masterlist!$B$2)+1))),ROWS($A$13:A43))),\"\")","v":""},{"$f":"IFERROR(VLOOKUP($A43,masterlist!$C$2:$AA$207,3,FALSE),\"\")","v":""},{"$f":"IFERROR(VLOOKUP($A43,masterlist!$C$2:$AA$207,2,FALSE),\"\")","v":""},{"$f":"IFERROR(VLOOKUP($A43,masterlist!$C$2:$AD$207,28,FALSE),\"\")","v":""},{"$f":"IFERROR(IF((VLOOKUP($A43,masterlist!$C$2:$AA$207,9,FALSE))=0,\"\",VLOOKUP($A43,masterlist!$C$2:$AA$207,9,FALSE)),\"\")","v":""},{"$f":"IFERROR(VLOOKUP($A43,masterlist!$C$2:$AA$207,20,FALSE),\"\")","v":""},{"$f":"IFERROR(VLOOKUP($A43,masterlist!$C$2:$AA$207,21,FALSE),\"\")","v":""},{"$f":"IFERROR(VLOOKUP($A43,masterlist!$C$2:$AA$207,22,FALSE),\"\")","v":""},{"$f":"IFERROR(IF($B$7=2,(VLOOKUP($A43,masterlist!$C$2:$AA$207,23,FALSE)-11),IF($B$7=4,(VLOOKUP($A43,masterlist!$C$2:$AA$207,23,FALSE)-9),IF($B$7=7,(VLOOKUP($A43,masterlist!$C$2:$AA$207,23,FALSE)-6),IF($B$7=10,(VLOOKUP($A43,masterlist!$C$2:$AA$207,23,FALSE)-3),(VLOOKUP($A43,masterlist!$C$2:$AA$207,23,FALSE)))))),\"\")","v":""},{"$f":"IFERROR(VLOOKUP($A43,masterlist!$C$2:$AA$207,24,FALSE),\"\")","v":""}]
[{"$f":"IF(ROWS($A$13:A44)<=(SUMPRODUCT((masterlist!B:B=\"DCA\")*(masterlist!J:J=0))),INDEX(masterlist!$C$2:$C$207,SMALL(IF(masterlist!$B$2:$B$207=\"DCA\",IF(masterlist!$F$2:$F$207>0,IF(masterlist!$J$2:$J$207=0,ROW(masterlist!$B$2:$B$207)-ROW(masterlist!$B$2)+1))),ROWS($A$13:A44))),\"\")","v":""},{"$f":"IFERROR(VLOOKUP($A44,masterlist!$C$2:$AA$207,3,FALSE),\"\")","v":""},{"$f":"IFERROR(VLOOKUP($A44,masterlist!$C$2:$AA$207,2,FALSE),\"\")","v":""},{"$f":"IFERROR(VLOOKUP($A44,masterlist!$C$2:$AD$207,28,FALSE),\"\")","v":""},{"$f":"IFERROR(IF((VLOOKUP($A44,masterlist!$C$2:$AA$207,9,FALSE))=0,\"\",VLOOKUP($A44,masterlist!$C$2:$AA$207,9,FALSE)),\"\")","v":""},{"$f":"IFERROR(VLOOKUP($A44,masterlist!$C$2:$AA$207,20,FALSE),\"\")","v":""},{"$f":"IFERROR(VLOOKUP($A44,masterlist!$C$2:$AA$207,21,FALSE),\"\")","v":""},{"$f":"IFERROR(VLOOKUP($A44,masterlist!$C$2:$AA$207,22,FALSE),\"\")","v":""},{"$f":"IFERROR(IF($B$7=2,(VLOOKUP($A44,masterlist!$C$2:$AA$207,23,FALSE)-11),IF($B$7=4,(VLOOKUP($A44,masterlist!$C$2:$AA$207,23,FALSE)-9),IF($B$7=7,(VLOOKUP($A44,masterlist!$C$2:$AA$207,23,FALSE)-6),IF($B$7=10,(VLOOKUP($A44,masterlist!$C$2:$AA$207,23,FALSE)-3),(VLOOKUP($A44,masterlist!$C$2:$AA$207,23,FALSE)))))),\"\")","v":""},{"$f":"IFERROR(VLOOKUP($A44,masterlist!$C$2:$AA$207,24,FALSE),\"\")","v":""}]
[{"$f":"IF(ROWS($A$13:A45)<=(SUMPRODUCT((masterlist!B:B=\"DCA\")*(masterlist!J:J=0))),INDEX(masterlist!$C$2:$C$207,SMALL(IF(masterlist!$B$2:$B$207=\"DCA\",IF(masterlist!$F$2:$F$207>0,IF(masterlist!$J$2:$J$207=0,ROW(masterlist!$B$2:$B$207)-ROW(masterlist!$B$2)+1))),ROWS($A$13:A45))),\"\")","v":""},{"$f":"IFERROR(VLOOKUP($A45,masterlist!$C$2:$AA$207,3,FALSE),\"\")","v":""},{"$f":"IFERROR(VLOOKUP($A45,masterlist!$C$2:$AA$207,2,FALSE),\"\")","v":""},{"$f":"IFERROR(VLOOKUP($A45,masterlist!$C$2:$AD$207,28,FALSE),\"\")","v":""},{"$f":"IFERROR(IF((VLOOKUP($A45,masterlist!$C$2:$AA$207,9,FALSE))=0,\"\",VLOOKUP($A45,masterlist!$C$2:$AA$207,9,FALSE)),\"\")","v":""},{"$f":"IFERROR(VLOOKUP($A45,masterlist!$C$2:$AA$207,20,FALSE),\"\")","v":""},{"$f":"IFERROR(VLOOKUP($A45,masterlist!$C$2:$AA$207,21,FALSE),\"\")","v":""},{"$f":"IFERROR(VLOOKUP($A45,masterlist!$C$2:$AA$207,22,FALSE),\"\")","v":""},{"$f":"IFERROR(IF($B$7=2,(VLOOKUP($A45,masterlist!$C$2:$AA$207,23,FALSE)-11),IF($B$7=4,(VLOOKUP($A45,masterlist!$C$2:$AA$207,23,FALSE)-9),IF($B$7=7,(VLOOKUP($A45,masterlist!$C$2:$AA$207,23,FALSE)-6),IF($B$7=10,(VLOOKUP($A45,masterlist!$C$2:$AA$207,23,FALSE)-3),(VLOOKUP($A45,masterlist!$C$2:$AA$207,23,FALSE)))))),\"\")","v":""},{"$f":"IFERROR(VLOOKUP($A45,masterlist!$C$2:$AA$207,24,FALSE),\"\")","v":""}]
[{"$f":"IF(ROWS($A$13:A46)<=(SUMPRODUCT((masterlist!B:B=\"DCA\")*(masterlist!J:J=0))),INDEX(masterlist!$C$2:$C$207,SMALL(IF(masterlist!$B$2:$B$207=\"DCA\",IF(masterlist!$F$2:$F$207>0,IF(masterlist!$J$2:$J$207=0,ROW(masterlist!$B$2:$B$207)-ROW(masterlist!$B$2)+1))),ROWS($A$13:A46))),\"\")","v":""},{"$f":"IFERROR(VLOOKUP($A46,masterlist!$C$2:$AA$207,3,FALSE),\"\")","v":""},{"$f":"IFERROR(VLOOKUP($A46,masterlist!$C$2:$AA$207,2,FALSE),\"\")","v":""},{"$f":"IFERROR(VLOOKUP($A46,masterlist!$C$2:$AD$207,28,FALSE),\"\")","v":""},{"$f":"IFERROR(IF((VLOOKUP($A46,masterlist!$C$2:$AA$207,9,FALSE))=0,\"\",VLOOKUP($A46,masterlist!$C$2:$AA$207,9,FALSE)),\"\")","v":""},{"$f":"IFERROR(VLOOKUP($A46,masterlist!$C$2:$AA$207,20,FALSE),\"\")","v":""},{"$f":"IFERROR(VLOOKUP($A46,masterlist!$C$2:$AA$207,21,FALSE),\"\")","v":""},{"$f":"IFERROR(VLOOKUP($A46,masterlist!$C$2:$AA$207,22,FALSE),\"\")","v":""},{"$f":"IFERROR(IF($B$7=2,(VLOOKUP($A46,masterlist!$C$2:$AA$207,23,FALSE)-11),IF($B$7=4,(VLOOKUP($A46,masterlist!$C$2:$AA$207,23,FALSE)-9),IF($B$7=7,(VLOOKUP($A46,masterlist!$C$2:$AA$207,23,FALSE)-6),IF($B$7=10,(VLOOKUP($A46,masterlist!$C$2:$AA$207,23,FALSE)-3),(VLOOKUP($A46,masterlist!$C$2:$AA$207,23,FALSE)))))),\"\")","v":""},{"$f":"IFERROR(VLOOKUP($A46,masterlist!$C$2:$AA$207,24,FALSE),\"\")","v":""}]
[{"$f":"IF(ROWS($A$13:A47)<=(SUMPRODUCT((masterlist!B:B=\"DCA\")*(masterlist!J:J=0))),INDEX(masterlist!$C$2:$C$207,SMALL(IF(masterlist!$B$2:$B$207=\"DCA\",IF(masterlist!$F$2:$F$207>0,IF(masterlist!$J$2:$J$207=0,ROW(masterlist!$B$2:$B$207)-ROW(masterlist!$B$2)+1))),ROWS($A$13:A47))),\"\")","v":""},{"$f":"IFERROR(VLOOKUP($A47,masterlist!$C$2:$AA$207,3,FALSE),\"\")","v":""},{"$f":"IFERROR(VLOOKUP($A47,masterlist!$C$2:$AA$207,2,FALSE),\"\")","v":""},{"$f":"IFERROR(VLOOKUP($A47,masterlist!$C$2:$AD$207,28,FALSE),\"\")","v":""},{"$f":"IFERROR(IF((VLOOKUP($A47,masterlist!$C$2:$AA$207,9,FALSE))=0,\"\",VLOOKUP($A47,masterlist!$C$2:$AA$207,9,FALSE)),\"\")","v":""},{"$f":"IFERROR(VLOOKUP($A47,masterlist!$C$2:$AA$207,20,FALSE),\"\")","v":""},{"$f":"IFERROR(VLOOKUP($A47,masterlist!$C$2:$AA$207,21,FALSE),\"\")","v":""},{"$f":"IFERROR(VLOOKUP($A47,masterlist!$C$2:$AA$207,22,FALSE),\"\")","v":""},{"$f":"IFERROR(IF($B$7=2,(VLOOKUP($A47,masterlist!$C$2:$AA$207,23,FALSE)-11),IF($B$7=4,(VLOOKUP($A47,masterlist!$C$2:$AA$207,23,FALSE)-9),IF($B$7=7,(VLOOKUP($A47,masterlist!$C$2:$AA$207,23,FALSE)-6),IF($B$7=10,(VLOOKUP($A47,masterlist!$C$2:$AA$207,23,FALSE)-3),(VLOOKUP($A47,masterlist!$C$2:$AA$207,23,FALSE)))))),\"\")","v":""},{"$f":"IFERROR(VLOOKUP($A47,masterlist!$C$2:$AA$207,24,FALSE),\"\")","v":""}]
[{"$f":"IF(ROWS($A$13:A48)<=(SUMPRODUCT((masterlist!B:B=\"DCA\")*(masterlist!J:J=0))),INDEX(masterlist!$C$2:$C$207,SMALL(IF(masterlist!$B$2:$B$207=\"DCA\",IF(masterlist!$F$2:$F$207>0,IF(masterlist!$J$2:$J$207=0,ROW(masterlist!$B$2:$B$207)-ROW(masterlist!$B$2)+1))),ROWS($A$13:A48))),\"\")","v":""},{"$f":"IFERROR(VLOOKUP($A48,masterlist!$C$2:$AA$207,3,FALSE),\"\")","v":""},{"$f":"IFERROR(VLOOKUP($A48,masterlist!$C$2:$AA$207,2,FALSE),\"\")","v":""},{"$f":"IFERROR(VLOOKUP($A48,masterlist!$C$2:$AD$207,28,FALSE),\"\")","v":""},{"$f":"IFERROR(IF((VLOOKUP($A48,masterlist!$C$2:$AA$207,9,FALSE))=0,\"\",VLOOKUP($A48,masterlist!$C$2:$AA$207,9,FALSE)),\"\")","v":""},{"$f":"IFERROR(VLOOKUP($A48,masterlist!$C$2:$AA$207,20,FALSE),\"\")","v":""},{"$f":"IFERROR(VLOOKUP($A48,masterlist!$C$2:$AA$207,21,FALSE),\"\")","v":""},{"$f":"IFERROR(VLOOKUP($A48,masterlist!$C$2:$AA$207,22,FALSE),\"\")","v":""},{"$f":"IFERROR(IF($B$7=2,(VLOOKUP($A48,masterlist!$C$2:$AA$207,23,FALSE)-11),IF($B$7=4,(VLOOKUP($A48,masterlist!$C$2:$AA$207,23,FALSE)-9),IF($B$7=7,(VLOOKUP($A48,masterlist!$C$2:$AA$207,23,FALSE)-6),IF($B$7=10,(VLOOKUP($A48,masterlist!$C$2:$AA$207,23,FALSE)-3),(VLOOKUP($A48,masterlist!$C$2:$AA$207,23,FALSE)))))),\"\")","v":""},{"$f":"IFERROR(VLOOKUP($A48,masterlist!$C$2:$AA$207,24,FALSE),\"\")","v":""}]
[{"$f":"IF(ROWS($A$13:A49)<=(SUMPRODUCT((masterlist!B:B=\"DCA\")*(masterlist!J:J=0))),INDEX(masterlist!$C$2:$C$207,SMALL(IF(masterlist!$B$2:$B$207=\"DCA\",IF(masterlist!$F$2:$F$207>0,IF(masterlist!$J$2:$J$207=0,ROW(masterlist!$B$2:$B$207)-ROW(masterlist!$B$2)+1))),ROWS($A$13:A49))),\"\")","v":""},{"$f":"IFERROR(VLOOKUP($A49,masterlist!$C$2:$AA$207,3,FALSE),\"\")","v":""},{"$f":"IFERROR(VLOOKUP($A49,masterlist!$C$2:$AA$207,2,FALSE),\"\")","v":""},{"$f":"IFERROR(VLOOKUP($A49,masterlist!$C$2:$AD$207,28,FALSE),\"\")","v":""},{"$f":"IFERROR(IF((VLOOKUP($A49,masterlist!$C$2:$AA$207,9,FALSE))=0,\"\",VLOOKUP($A49,masterlist!$C$2:$AA$207,9,FALSE)),\"\")","v":""},{"$f":"IFERROR(VLOOKUP($A49,masterlist!$C$2:$AA$207,20,FALSE),\"\")","v":""},{"$f":"IFERROR(VLOOKUP($A49,masterlist!$C$2:$AA$207,21,FALSE),\"\")","v":""},{"$f":"IFERROR(VLOOKUP($A49,masterlist!$C$2:$AA$207,22,FALSE),\"\")","v":""},{"$f":"IFERROR(IF($B$7=2,(VLOOKUP($A49,masterlist!$C$2:$AA$207,23,FALSE)-11),IF($B$7=4,(VLOOKUP($A49,masterlist!$C$2:$AA$207,23,FALSE)-9),IF($B$7=7,(VLOOKUP($A49,masterlist!$C$2:$AA$207,23,FALSE)-6),IF($B$7=10,(VLOOKUP($A49,masterlist!$C$2:$AA$207,23,FALSE)-3),(VLOOKUP($A49,masterlist!$C$2:$AA$207,23,FALSE)))))),\"\")","v":""},{"$f":"IFERROR(VLOOKUP($A49,masterlist!$C$2:$AA$207,24,FALSE),\"\")","v":""}]

{"sheet":"DCA","index":24,"n_rows":1,"n_cols":8,"rows_kept":1,"cut":false,"hidden":true,"merged":[[0,7,0,9],[0,3,0,6],[1,1,1,9]]}
[null,null,null,"Collecte et analyse des données",null,null,null,"Plan de travail national pour l’élimination de la rage"]

{"sheet":"DCAgantt","index":25,"n_rows":50,"n_cols":17,"rows_kept":50,"cut":false,"hidden":true,"merged":[[1,1,1,6],[0,1,0,16],[2,1,2,16]]}
[null,"Plan de travail national pour l’élimination de la rage"]
[]
[null,"Collecte et analyse des données - DIAGRAMME DE GANTT"]
[]
[null,null,null,null,1,2,3,4,5,6,7,8,9,10,11,12,13]
[null,"Theme","Étape","Activité",{"$f":"'NW country'!$E$35","v":2025},{"$f":"IF('NW country'!$K$4<6,E6+1,\"\")","v":2026},{"$f":"IF('NW country'!$K$4<5,E6+2,\"\")","v":2027},{"$f":"IF('NW country'!$K$4<5,E6+3,\"\")","v":2028},{"$f":"IF('NW country'!$K$4<4,E6+4,\"\")","v":2029},{"$f":"IF('NW country'!$K$4<4,E6+5,\"\")","v":2030},{"$f":"IF('NW country'!$K$4<4,E6+6,\"\")","v":2031},{"$f":"IF('NW country'!$K$4<3,E6+7,\"\")","v":2032},{"$f":"IF('NW country'!$K$4<3,E6+8,\"\")","v":2033},{"$f":"IF('NW country'!$K$4<3,E6+9,\"\")","v":2034},{"$f":"IF('NW country'!$K$4<2,E6+10,\"\")","v":2035},{"$f":"IF('NW country'!$K$4<2,E6+11,\"\")","v":2036},{"$f":"IF('NW country'!$K$4<2,E6+12,\"\")","v":2037}]
[13,{"$f":"IF((INDIRECT(\"DCA!\"&\"$a\"&$A7))=0,\"\",INDIRECT(\"DCA!\"&\"$c\"&$A7))","v":""},{"$f":"IF(INDIRECT(\"DCA!\"&\"$a\"&$A7)=0,\"\",INDIRECT(\"DCA!\"&\"$b\"&$A7))","v":""},{"$f":"IF(INDIRECT(\"DCA!\"&\"$a\"&$A7)=0,\"\",INDIRECT(\"DCA!\"&\"$d\"&$A7))","v":""},{"$f":"IF($C7>6,\"\",IF(E$5<=INDIRECT(\"DCA!\"&\"$i\"&$A7),\"X\",\"\"))","v":""},{"$f":"IF($C7>6,\"\",IF(F$5<=INDIRECT(\"DCA!\"&\"$i\"&$A7),\"X\",\"\"))","v":""},"","","","","","","","","","",""]
[14,{"$f":"IF((INDIRECT(\"DCA!\"&\"$a\"&$A8))=0,\"\",INDIRECT(\"DCA!\"&\"$c\"&$A8))","v":""},{"$f":"IF(INDIRECT(\"DCA!\"&\"$a\"&$A8)=0,\"\",INDIRECT(\"DCA!\"&\"$b\"&$A8))","v":""},{"$f":"IF(INDIRECT(\"DCA!\"&\"$a\"&$A8)=0,\"\",INDIRECT(\"DCA!\"&\"$d\"&$A8))","v":""},{"$f":"IF($C8>6,\"\",IF(E$5<=INDIRECT(\"DCA!\"&\"$i\"&$A8),\"X\",\"\"))","v":""},"","","","","","","","","","","",""]
[15,"","","","","","","","","","","","","","","",""]
[16,"","","","","","","","","","","","","","","",""]
[17,"","","","","","","","","","","","","","","",""]
[18,"","","","","","","","","","","","","","","",""]
[19,"","","","","","","","","","","","","","","",""]
[20,"","","","","","","","","","","","","","","",""]
[21,"","","","","","","","","","","","","","","",""]
[22,"","","","","","","","","","","","","","","",""]
[23,"","","","","","","","","","","","","","","",""]
[24,"","","","","","","","","","","","","","","",""]
[25,"","","","","","","","","","","","","","","",""]
[26,"","","","","","","","","","","","","","","",""]
[27,"","","","","","","","","","","","","","","",""]
[28,"","","","","","","","","","","","","","","",""]
[29,"","","","","","","","","","","","","","","",""]
[30,"","","","","","","","","","","","","","","",""]
[31,"","","","","","","","","","","","","","","",""]
[32,"","","","","","","","","","","","","","","",""]
[33,"","","","","","","","","","","","","","","",""]
[34,"","","","","","","","","","","","","","","",""]
[35,"","","","","","","","","","","","","","","",""]
[36,"","","","","","","","","","","","","","","",""]
[37,"","","","","","","","","","","","","","","",""]
[38,"","","","","","","","","","","","","","","",""]
[39,"","","","","","","","","","","","","","","",""]
[40,"","","","","","","","","","","","","","","",""]
[41,"","","","","","","","","","","","","","","",""]
[42,"","","","","","","","","","","","","","","",""]
[43,"","","","","","","","","","","","","","","",""]
[44,"","","","","","","","","","","","","","","",""]
[45,"","","","","","","","","","","","","","","",""]
[46,"","","","","","","","","","","","","","","",""]
[47,"","","","","","","","","",{"$f":"IF($C41>6,\"\",IF(K$5<=INDIRECT(\"DCA!\"&\"$i\"&$A41),\"X\",\"\"))","v":""},"","","","","",""]
[48,"","","",{"$f":"IF($C42>6,\"\",IF(E$5<=INDIRECT(\"DCA!\"&\"$i\"&$A42),\"X\",\"\"))","v":""},"","","","","","","","","","","",""]
[49,"","","","","","","","","","","","","","","",""]
[50,"","","","","","","","","","","","","","","",""]
[51,"","","","","","","","","","","","","","","",""]
[52,"","","","","","","","","","","","","","","",""]
[53,"","","","","","","","","","","","","","","",""]
[54,"","","","","","","","","","","","","","","",""]
[55,"","","","","","","","","","","","","","","",""]
[56,"","","","","","","","","","","","","","","",""]

{"sheet":"rawpco","index":26,"n_rows":49,"n_cols":10,"rows_kept":49,"cut":false,"hidden":true,"merged":[[0,1,0,3],[0,4,0,9],[1,1,1,9],[4,1,5,3],[6,1,8,3]]}
[null,"Practical Workplan towards Achieving Rabies Elimination",null,null,"Prevention and Control"]
[null,"Blurb blurb blurb blah blurb blurb"]
[]
[]
[null,"Estimated years to elimination\n(based on the current SARE score)",null,null,null,"All stage 0 and 1 activities should ideally be completed within a 3-year period",null,null,null,{"$f":"IF('NW country'!$K$4<2,\"Years 1, 2 and 3\",\"--\")","v":"Years 1, 2 and 3"}]
[null,null,null,null,null,"All stage 2 activities should ideally be completed within a 3-year period",null,null,null,{"$f":"IF('NW country'!$K$4<2,\"Years 4, 5 and 6\",IF('NW country'!$K$4<3,\"Years 1, 2 and 3\",\"--\"))","v":"Years 4, 5 and 6"}]
[null,{"$f":"IF('NW country'!$K$4<2,13,IF('NW country'!$K$4<3,10,IF('NW country'!$K$4<4,7,IF('NW country'!$K$4<5,4,2))))","v":13},null,null,null,"All stage 3 activities should ideally be completed within a 3-year period",null,null,null,{"$f":"IF('NW country'!$K$4<2,\"Years 7, 8 and 9\",IF('NW country'!$K$4<3,\"Years 4, 5 and 6\",IF('NW country'!$K$4<4,\"Years 1, 2 and 3\",\"--\")))","v":"Years 7, 8 and 9"}]
[null,null,null,null,null,"All stage 4 activities should ideally be completed within a 2-year period",null,null,null,{"$f":"IF('NW country'!$K$4<2,\"Years 10 and 11\",IF('NW country'!$K$4<3,\"Years 7 and 8\",IF('NW country'!$K$4<4,\"Years 4 and 5\",IF('NW country'!$K$4<5,\"Years 1 and 2\",\"--\"))))","v":"Years 10 and 11"}]
[null,null,null,null,null,"All stage 5 activities should ideally be completed within a 2-year period",null,null,null,{"$f":"IF('NW country'!$K$4<2,\"Years 12 and 13\",IF('NW country'!$K$4<3,\"Years 9 and 10\",IF('NW country'!$K$4<4,\"Years 6 and 7\",IF('NW country'!$K$4<5,\"Years 3 and 4\",\"Years 1 and 2\"))))","v":"Years 12 and 13"}]
[]
[null,"Instructions : Veuillez modifier les Tâches, les Autorités responsables, le Calendrier et les  Résultats attendus selon les besoins."]
["ID","Étape","Theme","Activité","Remarques","Tâche","Outcomes","Autorité responsible","Calendrier (années)","Résultats attendus"]
[{"$f":"IF(ROWS($A$13:A13)<=(SUMPRODUCT((masterlist!B:B=\"PCO\")*(masterlist!J:J=0))),INDEX(masterlist!$C$2:$C$207,SMALL(IF(masterlist!$B$2:$B$207=\"PCO\",IF(masterlist!$F$2:$F$207>0,IF(masterlist!$J$2:$J$207=0,ROW(masterlist!$B$2:$B$207)-ROW(masterlist!$B$2)+1))),ROWS($A$13:A13))),\"\")","v":"PCO-Vac-2-5"},{"$f":"IFERROR(VLOOKUP($A13,masterlist!$C$2:$AA$207,3,FALSE),\"\")","v":2},{"$f":"IFERROR(VLOOKUP($A13,masterlist!$C$2:$AA$207,2,FALSE),\"\")","v":"Vaccins humains"},{"$f":"IFERROR(VLOOKUP($A13,masterlist!$C$2:$AD$207,28,FALSE),\"\")","v":"Veiller à ce que la PPE soit gratuite ou partiellement subventionnée pour toute personne potentiellement exposée dans le pays."},{"$f":"IFERROR(IF((VLOOKUP($A13,masterlist!$C$2:$AA$207,9,FALSE))=0,\"\",VLOOKUP($A13,masterlist!$C$2:$AA$207,9,FALSE)),\"\")","v":""},{"$f":"IFERROR(VLOOKUP($A13,masterlist!$C$2:$AA$207,20,FALSE),\"\")","v":"• Procéder à une évaluation des besoins afin de déterminer le nombre de personnes ayant besoin de PPE.\n• Discuter avec les décideurs politiques, les agences gouvernementales et les principales parties prenantes pour donner la priorité à l'accessibilité de la PPE.\n• Élaborer une politique nationale ou un cadre législatif garantissant l'inclusion de la PPE dans les programmes de santé publique.\n• Plaider pour l'inclusion de la PPE dans les régimes nationaux d'assurance maladie ou les programmes de protection sociale.\n• Obtenir un financement par le biais des budgets de santé des gouvernements, des organisations donatrices ou des agences de santé internationales (par exemple, l'OMS, le Fonds mondial).\n• Déterminer les mécanismes de partage des coûts si une subvention totale n'est pas possible (par exemple, le gouvernement couvre 80 %, le patient paie 20 %).\n• Identifier des partenariats avec des sociétés pharmaceutiques pour obtenir des prix réduits ou des accords d'achat en gros.\n• Établir des lignes directrices claires pour l'éligibilité, la prescription et la distribution de la PPE.\n• Mettre en place un mécanisme de notification pour suivre l'efficacité et la portée du programme.\n• Procéder à des examens et à des audits périodiques afin de garantir la conformité et d'identifier les domaines à améliorer.\n• Recueillir les réactions des bénéficiaires pour évaluer l'accessibilité et lever les obstacles à l'utilisation du programme."},{"$f":"IFERROR(VLOOKUP($A13,masterlist!$C$2:$AA$207,21,FALSE),\"\")","v":0},{"$f":"IFERROR(VLOOKUP($A13,masterlist!$C$2:$AA$207,22,FALSE),\"\")","v":"Ministère de la santé"},{"$f":"IFERROR(IF($B$7=2,(VLOOKUP($A13,masterlist!$C$2:$AA$207,23,FALSE)-11),IF($B$7=4,(VLOOKUP($A13,masterlist!$C$2:$AA$207,23,FALSE)-9),IF($B$7=7,(VLOOKUP($A13,masterlist!$C$2:$AA$207,23,FALSE)-6),IF($B$7=10,(VLOOKUP($A13,masterlist!$C$2:$AA$207,23,FALSE)-3),(VLOOKUP($A13,masterlist!$C$2:$AA$207,23,FALSE)))))),\"\")","v":6},{"$f":"IFERROR(VLOOKUP($A13,masterlist!$C$2:$AA$207,24,FALSE),\"\")","v":"• Évaluation des besoins pour déterminer la demande de PPE et les lacunes en matière d'accessibilité.\n• Cadre politique garantissant la disponibilité de la PPE dans les programmes de santé publique.\n• Documentation du financement assuré par les budgets gouvernementaux ou les agences internationales.\n• Lignes directrices concernant l'éligibilité, la prescription et la distribution de la PPE. \n• Rapport de suivi et d'évaluation sur les difficultés d'accès à la PPE, les implications financières et les modifications proposées pour améliorer l'acceptation et la durabilité.\n• Examens et audits sur la conformité de la PPE subventionnée.\n• Rapports sur les obstacles à l'adoption du programme."}]
[{"$f":"IF(ROWS($A$13:A14)<=(SUMPRODUCT((masterlist!B:B=\"PCO\")*(masterlist!J:J=0))),INDEX(masterlist!$C$2:$C$207,SMALL(IF(masterlist!$B$2:$B$207=\"PCO\",IF(masterlist!$F$2:$F$207>0,IF(masterlist!$J$2:$J$207=0,ROW(masterlist!$B$2:$B$207)-ROW(masterlist!$B$2)+1))),ROWS($A$13:A14))),\"\")","v":"PCO-Vac-2-6"},{"$f":"IFERROR(VLOOKUP($A14,masterlist!$C$2:$AA$207,3,FALSE),\"\")","v":2},{"$f":"IFERROR(VLOOKUP($A14,masterlist!$C$2:$AA$207,2,FALSE),\"\")","v":"Vaccins humains"},{"$f":"IFERROR(VLOOKUP($A14,masterlist!$C$2:$AD$207,28,FALSE),\"\")","v":"Veiller à ce que le gouvernement n'utilise que des vaccins antirabiques humains préqualifiés par l'OMS dans le pays."},{"$f":"IFERROR(IF((VLOOKUP($A14,masterlist!$C$2:$AA$207,9,FALSE))=0,\"\",VLOOKUP($A14,masterlist!$C$2:$AA$207,9,FALSE)),\"\")","v":""},{"$f":"IFERROR(VLOOKUP($A14,masterlist!$C$2:$AA$207,20,FALSE),\"\")","v":"• Identifier toutes les marques de vaccins antirabiques humains utilisées dans les établissements de santé publics du pays ,\n• Vérifier que les marques de vaccins antirabiques humains sont préqualifiées par l'OMS ;\n• Si des marques non préqualifiées par l'OMS sont utilisées, élaborer un plan pour éliminer progressivement ces vaccins (par exemple, en veillant à n'acheter que des vaccins antirabiques humains préqualifiés par l'OMS)."},{"$f":"IFERROR(VLOOKUP($A14,masterlist!$C$2:$AA$207,21,FALSE),\"\")","v":"Phasing out of all non-WHO-pre-qualified vaccines in the country with the eventual goal that all human rabies vaccines used in the country are WHO-pre-qualified;"},{"$f":"IFERROR(VLOOKUP($A14,masterlist!$C$2:$AA$207,22,FALSE),\"\")","v":"Ministère de la santé"},{"$f":"IFERROR(IF($B$7=2,(VLOOKUP($A14,masterlist!$C$2:$AA$207,23,FALSE)-11),IF($B$7=4,(VLOOKUP($A14,masterlist!$C$2:$AA$207,23,FALSE)-9),IF($B$7=7,(VLOOKUP($A14,masterlist!$C$2:$AA$207,23,FALSE)-6),IF($B$7=10,(VLOOKUP($A14,masterlist!$C$2:$AA$207,23,FALSE)-3),(VLOOKUP($A14,masterlist!$C$2:$AA$207,23,FALSE)))))),\"\")","v":5},{"$f":"IFERROR(VLOOKUP($A14,masterlist!$C$2:$AA$207,24,FALSE),\"\")","v":"• Inventaire et vérification des marques de vaccins utilisées dans les établissements de santé publics.\n• Plan et calendrier documentés pour l'élimination progressive des vaccins non préqualifiés par l'OMS."}]
[{"$f":"IF(ROWS($A$13:A15)<=(SUMPRODUCT((masterlist!B:B=\"PCO\")*(masterlist!J:J=0))),INDEX(masterlist!$C$2:$C$207,SMALL(IF(masterlist!$B$2:$B$207=\"PCO\",IF(masterlist!$F$2:$F$207>0,IF(masterlist!$J$2:$J$207=0,ROW(masterlist!$B$2:$B$207)-ROW(masterlist!$B$2)+1))),ROWS($A$13:A15))),\"\")","v":"PCO-Vac-5-8"},{"$f":"IFERROR(VLOOKUP($A15,masterlist!$C$2:$AA$207,3,FALSE),\"\")","v":5},{"$f":"IFERROR(VLOOKUP($A15,masterlist!$C$2:$AA$207,2,FALSE),\"\")","v":"Vaccins humains"},{"$f":"IFERROR(VLOOKUP($A15,masterlist!$C$2:$AD$207,28,FALSE),\"\")","v":"Maintenant que le pays est débarrassé de la rage humaine et animale, mettre en œuvre des protocoles modifiés pour l'administration de la PPE dans les zones exemptes de rage."},{"$f":"IFERROR(IF((VLOOKUP($A15,masterlist!$C$2:$AA$207,9,FALSE))=0,\"\",VLOOKUP($A15,masterlist!$C$2:$AA$207,9,FALSE)),\"\")","v":""},{"$f":"IFERROR(VLOOKUP($A15,masterlist!$C$2:$AA$207,20,FALSE),\"\")","v":"• Examiner les dernières lignes directrices de l'OMS et identifier les protocoles PPE les plus appropriés, y compris les stratégies d'évaluation des risques les plus strictes, applicables aux pays exempts de rage humaine et animale.\n• Déterminer les risques pour les voyageurs concernant la PPE et mettre à jour les évaluations des risques pour les rendre plus rigoureuses.\n• Modifier les POS conformément aux lignes directrices ;\n• Partager les POS mises à jour avec les professionnels concernés ;\n• Former les professionnels à l'utilisation des POS mises à jour ;\n• - Veiller à ce que les POS mises à jour soient mises en œuvre dans l'ensemble du pays."},{"$f":"IFERROR(VLOOKUP($A15,masterlist!$C$2:$AA$207,21,FALSE),\"\")","v":"Updated SOPs and protocols for the administration of rabies PEP in rabies-free areas have been implemented country-wide;"},{"$f":"IFERROR(VLOOKUP($A15,masterlist!$C$2:$AA$207,22,FALSE),\"\")","v":"Ministère de la santé"},{"$f":"IFERROR(IF($B$7=2,(VLOOKUP($A15,masterlist!$C$2:$AA$207,23,FALSE)-11),IF($B$7=4,(VLOOKUP($A15,masterlist!$C$2:$AA$207,23,FALSE)-9),IF($B$7=7,(VLOOKUP($A15,masterlist!$C$2:$AA$207,23,FALSE)-6),IF($B$7=10,(VLOOKUP($A15,masterlist!$C$2:$AA$207,23,FALSE)-3),(VLOOKUP($A15,masterlist!$C$2:$AA$207,23,FALSE)))))),\"\")","v":10},{"$f":"IFERROR(VLOOKUP($A15,masterlist!$C$2:$AA$207,24,FALSE),\"\")","v":"• Document résumant les dernières directives de l'OMS et les protocoles PPE recommandés pour les pays exempts de rage, y compris des stratégies strictes d'évaluation du risque.\n• Une stratégie d'évaluation des risques actualisée intégrant des critères plus stricts pour déterminer la nécessité d'une PPE, en particulier pour les voyageurs.\n• Procédures opérationnelles standard (POS) révisées\n• Un registre de distribution des POS aux professionnels concernés.\n• Un cadre permettant de suivre et d'évaluer le respect des procédures opérationnelles standard dans l'ensemble du pays."}]
[{"$f":"IF(ROWS($A$13:A16)<=(SUMPRODUCT((masterlist!B:B=\"PCO\")*(masterlist!J:J=0))),INDEX(masterlist!$C$2:$C$207,SMALL(IF(masterlist!$B$2:$B$207=\"PCO\",IF(masterlist!$F$2:$F$207>0,IF(masterlist!$J$2:$J$207=0,ROW(masterlist!$B$2:$B$207)-ROW(masterlist!$B$2)+1))),ROWS($A$13:A16))),\"\")","v":"PCO-Vac-2-12"},{"$f":"IFERROR(VLOOKUP($A16,masterlist!$C$2:$AA$207,3,FALSE),\"\")","v":2},{"$f":"IFERROR(VLOOKUP($A16,masterlist!$C$2:$AA$207,2,FALSE),\"\")","v":"Vaccins canins"},{"$f":"IFERROR(VLOOKUP($A16,masterlist!$C$2:$AD$207,28,FALSE),\"\")","v":"Augmenter régulièrement l'ampleur et l'intensité des campagnes gouvernementales de vaccination des chiens."},{"$f":"IFERROR(IF((VLOOKUP($A16,masterlist!$C$2:$AA$207,9,FALSE))=0,\"\",VLOOKUP($A16,masterlist!$C$2:$AA$207,9,FALSE)),\"\")","v":""},{"$f":"IFERROR(VLOOKUP($A16,masterlist!$C$2:$AA$207,20,FALSE),\"\")","v":"• Rédiger un rapport sur la portée et l'impact des campagnes de vaccination passées, y compris les succès et les lacunes ;\n• Rédiger une proposition pour la prochaine campagne de vaccination avec une demande de ressources supplémentaires pour soutenir l'intensification de la prochaine campagne ;\n• Partager le rapport et la proposition avec les parties prenantes impliquées dans l'allocation des budgets ;\n• Obtenir le budget nécessaire pour la prochaine campagne de vaccination.\n• Mettre en œuvre une campagne de vaccination à plus grande échelle (par exemple, 10 % de chiens en plus par rapport à la campagne précédente) avec un suivi et une évaluation efficaces pour s'assurer que la nouvelle campagne a permis d'atteindre un plus grand nombre de chiens à risque.\n• Continuer à augmenter l'échelle et l'intensité de chaque campagne dans le but d'accroître la couverture jusqu'à ce qu'une couverture vaccinale d'au moins 70 % des populations de chiens à risque soit atteinte chaque année."},{"$f":"IFERROR(VLOOKUP($A16,masterlist!$C$2:$AA$207,21,FALSE),\"\")","v":0},{"$f":"IFERROR(VLOOKUP($A16,masterlist!$C$2:$AA$207,22,FALSE),\"\")","v":"Ministère de l’agriculture"},{"$f":"IFERROR(IF($B$7=2,(VLOOKUP($A16,masterlist!$C$2:$AA$207,23,FALSE)-11),IF($B$7=4,(VLOOKUP($A16,masterlist!$C$2:$AA$207,23,FALSE)-9),IF($B$7=7,(VLOOKUP($A16,masterlist!$C$2:$AA$207,23,FALSE)-6),IF($B$7=10,(VLOOKUP($A16,masterlist!$C$2:$AA$207,23,FALSE)-3),(VLOOKUP($A16,masterlist!$C$2:$AA$207,23,FALSE)))))),\"\")","v":6},{"$f":"IFERROR(VLOOKUP($A16,masterlist!$C$2:$AA$207,24,FALSE),\"\")","v":"• Rapports analysant la couverture vaccinale passée et identifiant les lacunes.\n• Proposition et budget garanti pour l'extension des futures campagnes chaque année.\n• Documentation et rapports de suivi et d'évaluation de la mise en œuvre de la campagne à grande échelle."}]
[{"$f":"IF(ROWS($A$13:A17)<=(SUMPRODUCT((masterlist!B:B=\"PCO\")*(masterlist!J:J=0))),INDEX(masterlist!$C$2:$C$207,SMALL(IF(masterlist!$B$2:$B$207=\"PCO\",IF(masterlist!$F$2:$F$207>0,IF(masterlist!$J$2:$J$207=0,ROW(masterlist!$B$2:$B$207)-ROW(masterlist!$B$2)+1))),ROWS($A$13:A17))),\"\")","v":"PCO-Vac-3-13"},{"$f":"IFERROR(VLOOKUP($A17,masterlist!$C$2:$AA$207,3,FALSE),\"\")","v":3},{"$f":"IFERROR(VLOOKUP($A17,masterlist!$C$2:$AA$207,2,FALSE),\"\")","v":"Vaccins canins"},{"$f":"IFERROR(VLOOKUP($A17,masterlist!$C$2:$AD$207,28,FALSE),\"\")","v":"Mettre en place les capacités (personnel formé, véhicules, aiguilles, seringues, etc.) permettant d'obtenir une couverture vaccinale de 70 % de tous les chiens à risque du pays chaque année."},{"$f":"IFERROR(IF((VLOOKUP($A17,masterlist!$C$2:$AA$207,9,FALSE))=0,\"\",VLOOKUP($A17,masterlist!$C$2:$AA$207,9,FALSE)),\"\")","v":""},{"$f":"IFERROR(VLOOKUP($A17,masterlist!$C$2:$AA$207,20,FALSE),\"\")","v":"• Procéder à une évaluation des besoins pour déterminer si les ressources sont suffisantes (par exemple, consommables tels que vaccins, aiguilles et seringues, glacières, véhicules et carburant, matériel de manipulation des animaux, certificats de vaccination, etc.) ;\n• Procéder à une évaluation des besoins pour déterminer si le personnel disponible est suffisant (par exemple, manipulateurs d'animaux et vaccinateurs, directeurs de campagne, chauffeurs, responsables de l'enregistrement, etc ;)\n• Entreprendre une évaluation des besoins parmi toutes les parties prenantes concernées afin de déterminer leurs besoins en formation (par exemple, manipulation des animaux et vaccination, sensibilisation de la communauté, utilisation de méthodologies de saisie des données, etc.) ;\n• Élaborer un plan d'action pour remédier à toutes les lacunes qui ont été identifiées ;\n• Obtenir le financement et les ressources nécessaires pour mettre en œuvre le plan d'action ;\n• Mettre en œuvre le plan d'action afin de s'assurer que la capacité existe pour atteindre une couverture vaccinale de 70 % de tous les chiens à risque chaque année."},{"$f":"IFERROR(VLOOKUP($A17,masterlist!$C$2:$AA$207,21,FALSE),\"\")","v":0},{"$f":"IFERROR(VLOOKUP($A17,masterlist!$C$2:$AA$207,22,FALSE),\"\")","v":"Ministère de l’agriculture"},{"$f":"IFERROR(IF($B$7=2,(VLOOKUP($A17,masterlist!$C$2:$AA$207,23,FALSE)-11),IF($B$7=4,(VLOOKUP($A17,masterlist!$C$2:$AA$207,23,FALSE)-9),IF($B$7=7,(VLOOKUP($A17,masterlist!$C$2:$AA$207,23,FALSE)-6),IF($B$7=10,(VLOOKUP($A17,masterlist!$C$2:$AA$207,23,FALSE)-3),(VLOOKUP($A17,masterlist!$C$2:$AA$207,23,FALSE)))))),\"\")","v":7},{"$f":"IFERROR(VLOOKUP($A17,masterlist!$C$2:$AA$207,24,FALSE),\"\")","v":"• Évaluation des besoins en personnel, en consommables et en infrastructures.\n• Élaboration et mise en œuvre d'un plan d'action visant à combler les lacunes identifiées en matière de capacités."}]
[{"$f":"IF(ROWS($A$13:A18)<=(SUMPRODUCT((masterlist!B:B=\"PCO\")*(masterlist!J:J=0))),INDEX(masterlist!$C$2:$C$207,SMALL(IF(masterlist!$B$2:$B$207=\"PCO\",IF(masterlist!$F$2:$F$207>0,IF(masterlist!$J$2:$J$207=0,ROW(masterlist!$B$2:$B$207)-ROW(masterlist!$B$2)+1))),ROWS($A$13:A18))),\"\")","v":"PCO-Vac-3-14"},{"$f":"IFERROR(VLOOKUP($A18,masterlist!$C$2:$AA$207,3,FALSE),\"\")","v":3},{"$f":"IFERROR(VLOOKUP($A18,masterlist!$C$2:$AA$207,2,FALSE),\"\")","v":"Vaccins canins"},{"$f":"IFERROR(VLOOKUP($A18,masterlist!$C$2:$AD$207,28,FALSE),\"\")","v":"Mettre en œuvre des campagnes de vaccination de masse des chiens qui touchent chaque année au moins 70 % de la population canine à risque dans le pays."},{"$f":"IFERROR(IF((VLOOKUP($A18,masterlist!$C$2:$AA$207,9,FALSE))=0,\"\",VLOOKUP($A18,masterlist!$C$2:$AA$207,9,FALSE)),\"\")","v":""},{"$f":"IFERROR(VLOOKUP($A18,masterlist!$C$2:$AA$207,20,FALSE),\"\")","v":"• Déterminer la taille, le nombre et la localisation des populations de chiens à risque à travers le pays ;\n• Déterminer les ressources et les consommables nécessaires pour atteindre au moins 70% des chiens à risque dans chaque population ;\n• Développer une proposition et un budget d'accompagnement pour obtenir les ressources et le personnel nécessaires ;\n• Obtenir le financement nécessaire pour mettre en œuvre les campagnes de vaccination de masse planifiées ;\n• Mettre en œuvre la campagne de vaccination de masse des chiens dans tout le pays ;\n• Déterminer la couverture vaccinale de la campagne de vaccination de masse des chiens ;\n• Réviser la stratégie de la campagne de vaccination de masse des chiens pour augmenter la couverture si nécessaire ;\n• Poursuivre la mise en œuvre jusqu'à ce qu'au moins 70 % de tous les chiens à risque aient été vaccinés dans tout le pays.\n• Veiller à ce que la couverture de 70 % de toutes les populations de chiens à risque dans l'ensemble du pays soit atteinte plusieurs années de suite."},{"$f":"IFERROR(VLOOKUP($A18,masterlist!$C$2:$AA$207,21,FALSE),\"\")","v":"MDV campaigns are conducted throughout the country according to the plan described in the national strategy, and at least 70% of the dog population has been vaccinated against rabies;"},{"$f":"IFERROR(VLOOKUP($A18,masterlist!$C$2:$AA$207,22,FALSE),\"\")","v":"Ministère de l’agriculture"},{"$f":"IFERROR(IF($B$7=2,(VLOOKUP($A18,masterlist!$C$2:$AA$207,23,FALSE)-11),IF($B$7=4,(VLOOKUP($A18,masterlist!$C$2:$AA$207,23,FALSE)-9),IF($B$7=7,(VLOOKUP($A18,masterlist!$C$2:$AA$207,23,FALSE)-6),IF($B$7=10,(VLOOKUP($A18,masterlist!$C$2:$AA$207,23,FALSE)-3),(VLOOKUP($A18,masterlist!$C$2:$AA$207,23,FALSE)))))),\"\")","v":8},{"$f":"IFERROR(VLOOKUP($A18,masterlist!$C$2:$AA$207,24,FALSE),\"\")","v":"• Cartographie détaillée des populations de chiens à risque, indiquant leur taille, leur nombre et leur localisation.\n• Liste détaillée des ressources et consommables nécessaires pour atteindre une couverture vaccinale de 70 %.\n• Proposition visant à obtenir un soutien financier pour les campagnes nationales de vaccination de masse des chiens.\n• Documentation de l'exécution de la campagne, y compris la couverture géographique et les taux de vaccination.\n• Analyse du succès de la campagne et identification des zones nécessitant une amélioration de la couverture.\n• Rapports continus pour confirmer une couverture vaccinale ≥70% au cours des années successives."}]
[{"$f":"IF(ROWS($A$13:A19)<=(SUMPRODUCT((masterlist!B:B=\"PCO\")*(masterlist!J:J=0))),INDEX(masterlist!$C$2:$C$207,SMALL(IF(masterlist!$B$2:$B$207=\"PCO\",IF(masterlist!$F$2:$F$207>0,IF(masterlist!$J$2:$J$207=0,ROW(masterlist!$B$2:$B$207)-ROW(masterlist!$B$2)+1))),ROWS($A$13:A19))),\"\")","v":"PCO-Vac-3-15"},{"$f":"IFERROR(VLOOKUP($A19,masterlist!$C$2:$AA$207,3,FALSE),\"\")","v":3},{"$f":"IFERROR(VLOOKUP($A19,masterlist!$C$2:$AA$207,2,FALSE),\"\")","v":"Vaccins canins"},{"$f":"IFERROR(VLOOKUP($A19,masterlist!$C$2:$AD$207,28,FALSE),\"\")","v":"Entreprendre des enquêtes post-vaccination pour évaluer la couverture vaccinale des chiens dans le pays."},{"$f":"IFERROR(IF((VLOOKUP($A19,masterlist!$C$2:$AA$207,9,FALSE))=0,\"\",VLOOKUP($A19,masterlist!$C$2:$AA$207,9,FALSE)),\"\")","v":""},{"$f":"IFERROR(VLOOKUP($A19,masterlist!$C$2:$AA$207,20,FALSE),\"\")","v":"• Examiner les méthodologies existantes et déterminer la meilleure méthode scientifiquement valable pour évaluer la couverture vaccinale dans le pays ;\n• Élaborer un mode opératoire normalisé et un budget pour la méthodologie choisie ;\n• Obtenir le financement nécessaire pour mettre en œuvre la méthodologie choisie ;\n• Identifier et former des professionnels à la méthodologie choisie ;\n• Mettre en œuvre la méthodologie choisie dans tout le pays et veiller à ce que les résultats soient rapportés.\n• Déterminer la couverture vaccinale après chacune des campagnes de vaccination de masse des chiens."},{"$f":"IFERROR(VLOOKUP($A19,masterlist!$C$2:$AA$207,21,FALSE),\"\")","v":"Post-vaccination surveys conducted to evaluate each of the MDV campaigns; "},{"$f":"IFERROR(VLOOKUP($A19,masterlist!$C$2:$AA$207,22,FALSE),\"\")","v":"Ministère de l’agriculture"},{"$f":"IFERROR(IF($B$7=2,(VLOOKUP($A19,masterlist!$C$2:$AA$207,23,FALSE)-11),IF($B$7=4,(VLOOKUP($A19,masterlist!$C$2:$AA$207,23,FALSE)-9),IF($B$7=7,(VLOOKUP($A19,masterlist!$C$2:$AA$207,23,FALSE)-6),IF($B$7=10,(VLOOKUP($A19,masterlist!$C$2:$AA$207,23,FALSE)-3),(VLOOKUP($A19,masterlist!$C$2:$AA$207,23,FALSE)))))),\"\")","v":8},{"$f":"IFERROR(VLOOKUP($A19,masterlist!$C$2:$AA$207,24,FALSE),\"\")","v":"• Procédure normalisée d'évaluation de la couverture vaccinale des chiens.\n• Financement assuré pour la mise en œuvre de l'enquête.\n• Registres du personnel formé.\n• Rapports d'enquête validant la couverture vaccinale après la campagne."}]
[{"$f":"IF(ROWS($A$13:A20)<=(SUMPRODUCT((masterlist!B:B=\"PCO\")*(masterlist!J:J=0))),INDEX(masterlist!$C$2:$C$207,SMALL(IF(masterlist!$B$2:$B$207=\"PCO\",IF(masterlist!$F$2:$F$207>0,IF(masterlist!$J$2:$J$207=0,ROW(masterlist!$B$2:$B$207)-ROW(masterlist!$B$2)+1))),ROWS($A$13:A20))),\"\")","v":"PCO-Vac-4-16"},{"$f":"IFERROR(VLOOKUP($A20,masterlist!$C$2:$AA$207,3,FALSE),\"\")","v":4},{"$f":"IFERROR(VLOOKUP($A20,masterlist!$C$2:$AA$207,2,FALSE),\"\")","v":"Vaccins canins"},{"$f":"IFERROR(VLOOKUP($A20,masterlist!$C$2:$AD$207,28,FALSE),\"\")","v":"Maintenant qu'il y a très peu de cas de rage animale dans le pays, les campagnes de vaccination des chiens sont maintenues dans les zones où la rage canine est encore présente ou lorsque cela se justifie (par exemple, risque d'introduction)."},{"$f":"IFERROR(IF((VLOOKUP($A20,masterlist!$C$2:$AA$207,9,FALSE))=0,\"\",VLOOKUP($A20,masterlist!$C$2:$AA$207,9,FALSE)),\"\")","v":""},{"$f":"IFERROR(VLOOKUP($A20,masterlist!$C$2:$AA$207,20,FALSE),\"\")","v":"• Identifier les zones où la rage canine est encore présente ou présente un risque de réintroduction ;\n• Allouer des ressources et des professionnels supplémentaires aux zones identifiées ou aux zones voisines afin de créer des zones tampons contre la réintroduction ;\n• Poursuivre les campagnes de vaccination de masse des chiens dans les zones identifiées conformément à la stratégie nationale."},{"$f":"IFERROR(VLOOKUP($A20,masterlist!$C$2:$AA$207,21,FALSE),\"\")","v":"The revision of needs and the continuation of the vaccination of dogs in high-risk areas or areas where dog rabies is still present; "},{"$f":"IFERROR(VLOOKUP($A20,masterlist!$C$2:$AA$207,22,FALSE),\"\")","v":"Ministère de l’agriculture"},{"$f":"IFERROR(IF($B$7=2,(VLOOKUP($A20,masterlist!$C$2:$AA$207,23,FALSE)-11),IF($B$7=4,(VLOOKUP($A20,masterlist!$C$2:$AA$207,23,FALSE)-9),IF($B$7=7,(VLOOKUP($A20,masterlist!$C$2:$AA$207,23,FALSE)-6),IF($B$7=10,(VLOOKUP($A20,masterlist!$C$2:$AA$207,23,FALSE)-3),(VLOOKUP($A20,masterlist!$C$2:$AA$207,23,FALSE)))))),\"\")","v":10},{"$f":"IFERROR(VLOOKUP($A20,masterlist!$C$2:$AA$207,24,FALSE),\"\")","v":"• Rapport identifiant les derniers foyers de rage.\n• Listes du personnel et des ressources supplémentaires distribués dans les zones tampons.\n• Rapport sur la poursuite des campagnes de vaccination dans les derniers foyers de rage et aux alentours."}]
[{"$f":"IF(ROWS($A$13:A21)<=(SUMPRODUCT((masterlist!B:B=\"PCO\")*(masterlist!J:J=0))),INDEX(masterlist!$C$2:$C$207,SMALL(IF(masterlist!$B$2:$B$207=\"PCO\",IF(masterlist!$F$2:$F$207>0,IF(masterlist!$J$2:$J$207=0,ROW(masterlist!$B$2:$B$207)-ROW(masterlist!$B$2)+1))),ROWS($A$13:A21))),\"\")","v":"PCO-Vac-5-17"},{"$f":"IFERROR(VLOOKUP($A21,masterlist!$C$2:$AA$207,3,FALSE),\"\")","v":5},{"$f":"IFERROR(VLOOKUP($A21,masterlist!$C$2:$AA$207,2,FALSE),\"\")","v":"Vaccins canins"},{"$f":"IFERROR(VLOOKUP($A21,masterlist!$C$2:$AD$207,28,FALSE),\"\")","v":"Bien que le pays soit indemne de rage grâce à des campagnes de vaccination de masse réussies, des campagnes stratégiques de vaccination des chiens sont maintenues lorsque cela se justifie."},{"$f":"IFERROR(IF((VLOOKUP($A21,masterlist!$C$2:$AA$207,9,FALSE))=0,\"\",VLOOKUP($A21,masterlist!$C$2:$AA$207,9,FALSE)),\"\")","v":""},{"$f":"IFERROR(VLOOKUP($A21,masterlist!$C$2:$AA$207,20,FALSE),\"\")","v":"• Identifier les zones où il existe un risque de réintroduction de la rage (par exemple, les frontières avec les pays endémiques, les zones autour des ports d'entrée, etc.) ;\n• Allouer suffisamment de ressources et de professionnels aux zones identifiées pour maintenir des campagnes de vaccination stratégiques ;\n• Poursuivre les campagnes de vaccination stratégiques dans les zones identifiées conformément à la stratégie nationale."},{"$f":"IFERROR(VLOOKUP($A21,masterlist!$C$2:$AA$207,21,FALSE),\"\")","v":"Strategic vaccination of dogs in areas that are at risk for the re-introduction of the canine variant of rabies implemented and maintained; "},{"$f":"IFERROR(VLOOKUP($A21,masterlist!$C$2:$AA$207,22,FALSE),\"\")","v":"Ministère de l’agriculture"},{"$f":"IFERROR(IF($B$7=2,(VLOOKUP($A21,masterlist!$C$2:$AA$207,23,FALSE)-11),IF($B$7=4,(VLOOKUP($A21,masterlist!$C$2:$AA$207,23,FALSE)-9),IF($B$7=7,(VLOOKUP($A21,masterlist!$C$2:$AA$207,23,FALSE)-6),IF($B$7=10,(VLOOKUP($A21,masterlist!$C$2:$AA$207,23,FALSE)-3),(VLOOKUP($A21,masterlist!$C$2:$AA$207,23,FALSE)))))),\"\")","v":12},{"$f":"IFERROR(VLOOKUP($A21,masterlist!$C$2:$AA$207,24,FALSE),\"\")","v":"• Identification des zones à risque de réintroduction de la rage \n• Tableau d'affectation des ressources et du personnel pour les zones identifiées.\n• Rapport sur la poursuite des campagnes de vaccination dans les zones identifiées."}]
[{"$f":"IF(ROWS($A$13:A22)<=(SUMPRODUCT((masterlist!B:B=\"PCO\")*(masterlist!J:J=0))),INDEX(masterlist!$C$2:$C$207,SMALL(IF(masterlist!$B$2:$B$207=\"PCO\",IF(masterlist!$F$2:$F$207>0,IF(masterlist!$J$2:$J$207=0,ROW(masterlist!$B$2:$B$207)-ROW(masterlist!$B$2)+1))),ROWS($A$13:A22))),\"\")","v":"PCO-Rép-1-18"},{"$f":"IFERROR(VLOOKUP($A22,masterlist!$C$2:$AA$207,3,FALSE),\"\")","v":1},{"$f":"IFERROR(VLOOKUP($A22,masterlist!$C$2:$AA$207,2,FALSE),\"\")","v":"Réponse à l'apparition d'un foyer et autres activités de lutte contre la rage"},{"$f":"IFERROR(VLOOKUP($A22,masterlist!$C$2:$AD$207,28,FALSE),\"\")","v":"Établir des protocoles pour les enquêtes conjointes sur les cas de rage."},{"$f":"IFERROR(IF((VLOOKUP($A22,masterlist!$C$2:$AA$207,9,FALSE))=0,\"\",VLOOKUP($A22,masterlist!$C$2:$AA$207,9,FALSE)),\"\")","v":""},{"$f":"IFERROR(VLOOKUP($A22,masterlist!$C$2:$AA$207,20,FALSE),\"\")","v":"• Identifier les autorités compétentes de chaque secteur qui seraient impliquées dans les réponses coordonnées en cas d'épidémie ;\n• Déterminer les protocoles nécessaires pour une enquête conjointe sur les cas de rage ; \n• Examiner et mettre à jour les protocoles existants de chacun des secteurs concernés en utilisant les ressources internationales en matière de meilleures pratiques ;\n• Rédiger un POS contenant les protocoles révisés nécessaires pour une réponse coordonnée à l'épidémie - en précisant les rôles et les responsabilités, ainsi que l'affectation des ressources ;\n• Partager le projet de POS avec toutes les autorités compétentes pour obtenir un retour d'information, y compris une date limite de retour d'information ;\n• Affiner le POS sur la base du retour d'information ;\n• Finaliser, publier et partager le POS avec tous les professionnels concernés."},{"$f":"IFERROR(VLOOKUP($A22,masterlist!$C$2:$AA$207,21,FALSE),\"\")","v":"Finalised SOPs for the coordinated action on reported outbreaks developed and approved"},{"$f":"IFERROR(VLOOKUP($A22,masterlist!$C$2:$AA$207,22,FALSE),\"\")","v":"Groupe multisectoriel"},{"$f":"IFERROR(IF($B$7=2,(VLOOKUP($A22,masterlist!$C$2:$AA$207,23,FALSE)-11),IF($B$7=4,(VLOOKUP($A22,masterlist!$C$2:$AA$207,23,FALSE)-9),IF($B$7=7,(VLOOKUP($A22,masterlist!$C$2:$AA$207,23,FALSE)-6),IF($B$7=10,(VLOOKUP($A22,masterlist!$C$2:$AA$207,23,FALSE)-3),(VLOOKUP($A22,masterlist!$C$2:$AA$207,23,FALSE)))))),\"\")","v":2},{"$f":"IFERROR(VLOOKUP($A22,masterlist!$C$2:$AA$207,24,FALSE),\"\")","v":"• Liste des parties prenantes qui devraient être impliquées dans la coordination des réponses aux épidémies.\n• Analyse des écarts entre les protocoles pertinents existant dans chaque secteur. \n• POS finalisé décrivant les rôles et les responsabilités pour les réponses coordonnées aux épidémies.\n• Liste de diffusion indiquant les destinataires du POS finalisé. "}]
[{"$f":"IF(ROWS($A$13:A23)<=(SUMPRODUCT((masterlist!B:B=\"PCO\")*(masterlist!J:J=0))),INDEX(masterlist!$C$2:$C$207,SMALL(IF(masterlist!$B$2:$B$207=\"PCO\",IF(masterlist!$F$2:$F$207>0,IF(masterlist!$J$2:$J$207=0,ROW(masterlist!$B$2:$B$207)-ROW(masterlist!$B$2)+1))),ROWS($A$13:A23))),\"\")","v":"PCO-Rép-1-19"},{"$f":"IFERROR(VLOOKUP($A23,masterlist!$C$2:$AA$207,3,FALSE),\"\")","v":1},{"$f":"IFERROR(VLOOKUP($A23,masterlist!$C$2:$AA$207,2,FALSE),\"\")","v":"Réponse à l'apparition d'un foyer et autres activités de lutte contre la rage"},{"$f":"IFERROR(VLOOKUP($A23,masterlist!$C$2:$AD$207,28,FALSE),\"\")","v":"Mettre en œuvre les protocoles communs d'investigation des cas de rage dans au moins une région du pays."},{"$f":"IFERROR(IF((VLOOKUP($A23,masterlist!$C$2:$AA$207,9,FALSE))=0,\"\",VLOOKUP($A23,masterlist!$C$2:$AA$207,9,FALSE)),\"\")","v":""},{"$f":"IFERROR(VLOOKUP($A23,masterlist!$C$2:$AA$207,20,FALSE),\"\")","v":"• Identifier au moins une zone d'endémie de la rage dans le pays comme zone appropriée pour piloter des enquêtes conjointes autour de cas (par exemple, zone(s) disposant du personnel approprié, capacité existante) ;\n• Identifier au moins une zone d'endémie de la rage dans le pays comme zone appropriée pour piloter des enquêtes conjointes autour de cas (par exemple, zone(s) disposant du personnel approprié, capacité existante) ;\n• Identifier et former le personnel concerné à la mise en œuvre du mode opératoire normalisé pour les enquêtes conjointes ;\n• Obtenir le financement et les ressources nécessaires à la mise en œuvre d'enquêtes conjointes sur les cas de rage;\n• Mettre en œuvre des enquêtes conjointes sur les cas de rage dans au moins une région du pays pendant une période prédéterminée."},{"$f":"IFERROR(VLOOKUP($A23,masterlist!$C$2:$AA$207,21,FALSE),\"\")","v":"IBCM programme operational at a local level"},{"$f":"IFERROR(VLOOKUP($A23,masterlist!$C$2:$AA$207,22,FALSE),\"\")","v":"Groupe multisectoriel"},{"$f":"IFERROR(IF($B$7=2,(VLOOKUP($A23,masterlist!$C$2:$AA$207,23,FALSE)-11),IF($B$7=4,(VLOOKUP($A23,masterlist!$C$2:$AA$207,23,FALSE)-9),IF($B$7=7,(VLOOKUP($A23,masterlist!$C$2:$AA$207,23,FALSE)-6),IF($B$7=10,(VLOOKUP($A23,masterlist!$C$2:$AA$207,23,FALSE)-3),(VLOOKUP($A23,masterlist!$C$2:$AA$207,23,FALSE)))))),\"\")","v":3},{"$f":"IFERROR(VLOOKUP($A23,masterlist!$C$2:$AA$207,24,FALSE),\"\")","v":"• Justification du choix de la zone d'endémie rabique pour les enquêtes conjointes.\n• Documentation du personnel formé aux procédures opérationnelles standardisées et aux responsabilités en matière d'enquêtes conjointes.\n• Preuve de l'exécution du projet pilote avec des données sur les cas enquêtés et les résultats."}]
[{"$f":"IF(ROWS($A$13:A24)<=(SUMPRODUCT((masterlist!B:B=\"PCO\")*(masterlist!J:J=0))),INDEX(masterlist!$C$2:$C$207,SMALL(IF(masterlist!$B$2:$B$207=\"PCO\",IF(masterlist!$F$2:$F$207>0,IF(masterlist!$J$2:$J$207=0,ROW(masterlist!$B$2:$B$207)-ROW(masterlist!$B$2)+1))),ROWS($A$13:A24))),\"\")","v":"PCO-Rép-2-20"},{"$f":"IFERROR(VLOOKUP($A24,masterlist!$C$2:$AA$207,3,FALSE),\"\")","v":2},{"$f":"IFERROR(VLOOKUP($A24,masterlist!$C$2:$AA$207,2,FALSE),\"\")","v":"Réponse à l'apparition d'un foyer et autres activités de lutte contre la rage"},{"$f":"IFERROR(VLOOKUP($A24,masterlist!$C$2:$AD$207,28,FALSE),\"\")","v":"Finaliser les protocoles d'enquête conjointe sur les cas de rage - y compris le partage d'informations entre les secteurs - au niveau national."},{"$f":"IFERROR(IF((VLOOKUP($A24,masterlist!$C$2:$AA$207,9,FALSE))=0,\"\",VLOOKUP($A24,masterlist!$C$2:$AA$207,9,FALSE)),\"\")","v":""},{"$f":"IFERROR(VLOOKUP($A24,masterlist!$C$2:$AA$207,20,FALSE),\"\")","v":"• Obtenir un retour d'information de la part des utilisateurs actuels du POS pour les enquêtes conjointes sur les cas de rage afin d'évaluer les défis et les lacunes ;\n• Affiner le POS sur la base du retour d'information.\n• Finaliser, publier et partager le POS avec tous les professionnels concernés."},{"$f":"IFERROR(VLOOKUP($A24,masterlist!$C$2:$AA$207,21,FALSE),\"\")","v":"SOPs for an IBCM programme at the national level developed, finalised and approved;"},{"$f":"IFERROR(VLOOKUP($A24,masterlist!$C$2:$AA$207,22,FALSE),\"\")","v":"Groupe multisectoriel"},{"$f":"IFERROR(IF($B$7=2,(VLOOKUP($A24,masterlist!$C$2:$AA$207,23,FALSE)-11),IF($B$7=4,(VLOOKUP($A24,masterlist!$C$2:$AA$207,23,FALSE)-9),IF($B$7=7,(VLOOKUP($A24,masterlist!$C$2:$AA$207,23,FALSE)-6),IF($B$7=10,(VLOOKUP($A24,masterlist!$C$2:$AA$207,23,FALSE)-3),(VLOOKUP($A24,masterlist!$C$2:$AA$207,23,FALSE)))))),\"\")","v":4},{"$f":"IFERROR(VLOOKUP($A24,masterlist!$C$2:$AA$207,24,FALSE),\"\")","v":"• POS finalisé au niveau national pour les enquêtes conjointes.\n• Liste de diffusion indiquant les destinataires des POS finalisées."}]
[{"$f":"IF(ROWS($A$13:A25)<=(SUMPRODUCT((masterlist!B:B=\"PCO\")*(masterlist!J:J=0))),INDEX(masterlist!$C$2:$C$207,SMALL(IF(masterlist!$B$2:$B$207=\"PCO\",IF(masterlist!$F$2:$F$207>0,IF(masterlist!$J$2:$J$207=0,ROW(masterlist!$B$2:$B$207)-ROW(masterlist!$B$2)+1))),ROWS($A$13:A25))),\"\")","v":"PCO-Rép-2-21"},{"$f":"IFERROR(VLOOKUP($A25,masterlist!$C$2:$AA$207,3,FALSE),\"\")","v":2},{"$f":"IFERROR(VLOOKUP($A25,masterlist!$C$2:$AA$207,2,FALSE),\"\")","v":"Réponse à l'apparition d'un foyer et autres activités de lutte contre la rage"},{"$f":"IFERROR(VLOOKUP($A25,masterlist!$C$2:$AD$207,28,FALSE),\"\")","v":"Mettre en œuvre toute réponse active aux foyers conformément aux protocoles d'enquête conjointe établis."},{"$f":"IFERROR(IF((VLOOKUP($A25,masterlist!$C$2:$AA$207,9,FALSE))=0,\"\",VLOOKUP($A25,masterlist!$C$2:$AA$207,9,FALSE)),\"\")","v":""},{"$f":"IFERROR(VLOOKUP($A25,masterlist!$C$2:$AA$207,20,FALSE),\"\")","v":"• Identifier et former le personnel concerné à la mise en œuvre du POS ;\n• Obtenir le financement et les ressources nécessaires à la mise en œuvre de quelques enquêtes conjointes sur des cas de rage;\n• Mettre en œuvre quelques enquêtes conjointes sur des cas de rage dans le pays ;\n• Veiller à ce qu'un retour d'information soit effectué après chaque enquête conjointe afin de confirmer la mise en œuvre systématique ;\n• Évaluer la fréquence des réponses aux épidémies et la qualité des données générées."},{"$f":"IFERROR(VLOOKUP($A25,masterlist!$C$2:$AA$207,21,FALSE),\"\")","v":"Professionals actively respond to potential rabies outbreaks according to an established SOP;"},{"$f":"IFERROR(VLOOKUP($A25,masterlist!$C$2:$AA$207,22,FALSE),\"\")","v":"Groupe multisectoriel"},{"$f":"IFERROR(IF($B$7=2,(VLOOKUP($A25,masterlist!$C$2:$AA$207,23,FALSE)-11),IF($B$7=4,(VLOOKUP($A25,masterlist!$C$2:$AA$207,23,FALSE)-9),IF($B$7=7,(VLOOKUP($A25,masterlist!$C$2:$AA$207,23,FALSE)-6),IF($B$7=10,(VLOOKUP($A25,masterlist!$C$2:$AA$207,23,FALSE)-3),(VLOOKUP($A25,masterlist!$C$2:$AA$207,23,FALSE)))))),\"\")","v":4},{"$f":"IFERROR(VLOOKUP($A25,masterlist!$C$2:$AA$207,24,FALSE),\"\")","v":"• Documentation de la formation du personnel aux procédures opérationnelles standard de lutte contre les foyers actifs.\n• Rapports documentant les réponses, la qualité de la collecte des données et le respect des procédures opérationnelles standard.\n• Preuve de l'existence d'un mécanisme de retour d'information permettant d'améliorer la réponse à l'épidémies."}]
[{"$f":"IF(ROWS($A$13:A26)<=(SUMPRODUCT((masterlist!B:B=\"PCO\")*(masterlist!J:J=0))),INDEX(masterlist!$C$2:$C$207,SMALL(IF(masterlist!$B$2:$B$207=\"PCO\",IF(masterlist!$F$2:$F$207>0,IF(masterlist!$J$2:$J$207=0,ROW(masterlist!$B$2:$B$207)-ROW(masterlist!$B$2)+1))),ROWS($A$13:A26))),\"\")","v":"PCO-Rép-2-22"},{"$f":"IFERROR(VLOOKUP($A26,masterlist!$C$2:$AA$207,3,FALSE),\"\")","v":2},{"$f":"IFERROR(VLOOKUP($A26,masterlist!$C$2:$AA$207,2,FALSE),\"\")","v":"Réponse à l'apparition d'un foyer et autres activités de lutte contre la rage"},{"$f":"IFERROR(VLOOKUP($A26,masterlist!$C$2:$AD$207,28,FALSE),\"\")","v":"Élaborer des protocoles pour l'observation des chiens suspects d'être enragés."},{"$f":"IFERROR(IF((VLOOKUP($A26,masterlist!$C$2:$AA$207,9,FALSE))=0,\"\",VLOOKUP($A26,masterlist!$C$2:$AA$207,9,FALSE)),\"\")","v":""},{"$f":"IFERROR(VLOOKUP($A26,masterlist!$C$2:$AA$207,20,FALSE),\"\")","v":"• Examiner diverses sources pour évaluer les protocoles établis qui ont été développés ailleurs, en prenant note des protocoles développés pour des scénarios qui correspondent étroitement à votre pays;\n• Partager le protocole avec toutes les autorités compétentes pour obtenir un retour d'information ;\n• Affiner et finaliser le protocole en fonction du retour d'information ;\n• Partager le protocole avec tous les professionnels concernés."},{"$f":"IFERROR(VLOOKUP($A26,masterlist!$C$2:$AA$207,21,FALSE),\"\")","v":"SOPs for the observation of rabies-suspect dogs have been developed, finalised, approved and shared with all relevant professionals;"},{"$f":"IFERROR(VLOOKUP($A26,masterlist!$C$2:$AA$207,22,FALSE),\"\")","v":"Ministère de l’agriculture"},{"$f":"IFERROR(IF($B$7=2,(VLOOKUP($A26,masterlist!$C$2:$AA$207,23,FALSE)-11),IF($B$7=4,(VLOOKUP($A26,masterlist!$C$2:$AA$207,23,FALSE)-9),IF($B$7=7,(VLOOKUP($A26,masterlist!$C$2:$AA$207,23,FALSE)-6),IF($B$7=10,(VLOOKUP($A26,masterlist!$C$2:$AA$207,23,FALSE)-3),(VLOOKUP($A26,masterlist!$C$2:$AA$207,23,FALSE)))))),\"\")","v":4},{"$f":"IFERROR(VLOOKUP($A26,masterlist!$C$2:$AA$207,24,FALSE),\"\")","v":"• Comparaison des protocoles locaux et internationaux d'observation des chiens suspectés d’être enragés.\n• Protocoles d'observation complets élaborés et affinés en tenant compte des commentaires des parties prenantes.\n• Preuve de la distribution aux autorités et aux professionnels concernés."}]
[{"$f":"IF(ROWS($A$13:A27)<=(SUMPRODUCT((masterlist!B:B=\"PCO\")*(masterlist!J:J=0))),INDEX(masterlist!$C$2:$C$207,SMALL(IF(masterlist!$B$2:$B$207=\"PCO\",IF(masterlist!$F$2:$F$207>0,IF(masterlist!$J$2:$J$207=0,ROW(masterlist!$B$2:$B$207)-ROW(masterlist!$B$2)+1))),ROWS($A$13:A27))),\"\")","v":"PCO-Rép-2-23"},{"$f":"IFERROR(VLOOKUP($A27,masterlist!$C$2:$AA$207,3,FALSE),\"\")","v":2},{"$f":"IFERROR(VLOOKUP($A27,masterlist!$C$2:$AA$207,2,FALSE),\"\")","v":"Réponse à l'apparition d'un foyer et autres activités de lutte contre la rage"},{"$f":"IFERROR(VLOOKUP($A27,masterlist!$C$2:$AD$207,28,FALSE),\"\")","v":"Mettre en place des installations d'observation ou élaborer des protocoles de quarantaine à domicile pour les chiens suspects d'être enragés."},{"$f":"IFERROR(IF((VLOOKUP($A27,masterlist!$C$2:$AA$207,9,FALSE))=0,\"\",VLOOKUP($A27,masterlist!$C$2:$AA$207,9,FALSE)),\"\")","v":""},{"$f":"IFERROR(VLOOKUP($A27,masterlist!$C$2:$AA$207,20,FALSE),\"\")","v":"Mise en place d'installations pour l’observation des chiens suspects d'être enragés :\n• Déterminer le nombre et l'emplacement de toutes les installations appropriées qui pourraient être utilisées pour mettre en quarantaine les chiens suspects.\n• Examiner les lignes directrices internationales afin de déterminer ce qui est nécessaire pour garantir une observation sans cruauté des chiens dans les installations identifiées ;\n• Élaborer une proposition et le budget correspondant pour réaffecter les installations conformément aux lignes directrices internationales ;\n• Obtenir le financement nécessaire pour réaffecter les installations ;\n• Adapter les installations existantes et former le personnel opérationnel afin de garantir le bien-être des animaux au cours des périodes d'observation.\n• Assurer un financement à long terme pour maintenir les installations et les coûts opérationnels au-delà de la période de mise en œuvre initiale.\n\nMise en place de protocoles de quarantaine à domicile pour les chiens suspects d'être enragés :\n• Déterminer s'il existe déjà des protocoles pour la mise en quarantaine des chiens à domicile dans le pays (y compris de la part de partenaires tels que des ONG) ;\n• Examiner d'autres sources pour évaluer les protocoles établis qui ont été développés ailleurs et pouvant convenir à votre pays ;\n• Rédiger un protocole en tenant compte des protocoles qui existent déjà dans le pays et des protocoles développés ailleurs ;\n• Partager le protocole avec toutes les autorités compétentes pour obtenir leur retour ;\n• Affiner et finaliser le protocole en fonction des commentaires ;\n• Partager le protocole avec tous les professionnels concernés."},{"$f":"IFERROR(VLOOKUP($A27,masterlist!$C$2:$AA$207,21,FALSE),\"\")","v":"Facilities are established in compliance with international guidelines for the observation suspect rabid dogs; "},{"$f":"IFERROR(VLOOKUP($A27,masterlist!$C$2:$AA$207,22,FALSE),\"\")","v":"Ministère de l’agriculture"},{"$f":"IFERROR(IF($B$7=2,(VLOOKUP($A27,masterlist!$C$2:$AA$207,23,FALSE)-11),IF($B$7=4,(VLOOKUP($A27,masterlist!$C$2:$AA$207,23,FALSE)-9),IF($B$7=7,(VLOOKUP($A27,masterlist!$C$2:$AA$207,23,FALSE)-6),IF($B$7=10,(VLOOKUP($A27,masterlist!$C$2:$AA$207,23,FALSE)-3),(VLOOKUP($A27,masterlist!$C$2:$AA$207,23,FALSE)))))),\"\")","v":5},{"$f":"IFERROR(VLOOKUP($A27,masterlist!$C$2:$AA$207,24,FALSE),\"\")","v":"Installations pour l’observation des chiens suspects d'être enragés:\n• Rapport d'inventaire des installations de quarantaine identifiées, y compris leur emplacement et leur capacité.\n• Revue décrivant les lignes directrices internationales pour l'observation sans cruauté des chiens suspects d'être enragés.\n• Proposition et budget détaillé pour la réaffectation des installations identifiées.\n• Documentation sur le financement obtenu pour l'adaptation des installations.\n• Rapport d'achèvement sur les adaptations des installations et les programmes de formation du personnel.\n• Plan de viabilité financière à long terme pour l'entretien des installations et les coûts opérationnels.\n\nProtocoles de quarantaine à domicile pour les chiens suspects d'être enragés :\n• Rapport sur les protocoles de quarantaine à domicile existants au niveau national et dans les ONG.\n• Analyse comparative des meilleures pratiques internationales en matière de quarantaine à domicile.\n• Projet de protocole de quarantaine à domicile adapté au contexte national.\n• Enregistrement des réactions des autorités compétentes.\n• Protocole de quarantaine à domicile finalisé et approuvé.\n• Rapport de distribution montrant la diffusion du protocole à tous les professionnels concernés."}]
[{"$f":"IF(ROWS($A$13:A28)<=(SUMPRODUCT((masterlist!B:B=\"PCO\")*(masterlist!J:J=0))),INDEX(masterlist!$C$2:$C$207,SMALL(IF(masterlist!$B$2:$B$207=\"PCO\",IF(masterlist!$F$2:$F$207>0,IF(masterlist!$J$2:$J$207=0,ROW(masterlist!$B$2:$B$207)-ROW(masterlist!$B$2)+1))),ROWS($A$13:A28))),\"\")","v":"PCO-Rép-2-24"},{"$f":"IFERROR(VLOOKUP($A28,masterlist!$C$2:$AA$207,3,FALSE),\"\")","v":2},{"$f":"IFERROR(VLOOKUP($A28,masterlist!$C$2:$AA$207,2,FALSE),\"\")","v":"Réponse à l'apparition d'un foyer et autres activités de lutte contre la rage"},{"$f":"IFERROR(VLOOKUP($A28,masterlist!$C$2:$AD$207,28,FALSE),\"\")","v":"Mettre en œuvre des mesures vétérinaires d'inspection aux frontières et de quarantaine à tous les points d'entrée officiels dans le pays."},{"$f":"IFERROR(IF((VLOOKUP($A28,masterlist!$C$2:$AA$207,9,FALSE))=0,\"\",VLOOKUP($A28,masterlist!$C$2:$AA$207,9,FALSE)),\"\")","v":""},{"$f":"IFERROR(VLOOKUP($A28,masterlist!$C$2:$AA$207,20,FALSE),\"\")","v":"• Évaluer tous les sites d'inspection vétérinaire aux frontières à tous les points d'entrée officiels dans le pays ;\n• Compiler toutes les lacunes/limitations possibles qui empêchent la mise en œuvre efficace de l'inspection aux frontières et de la quarantaine ;\n• Élaborer et garantir un budget pour remédier aux lacunes/limitations ;\n• Remédier aux lacunes/limitations qui empêchent la mise en œuvre complète conformément aux réglementations nationales."},{"$f":"IFERROR(VLOOKUP($A28,masterlist!$C$2:$AA$207,21,FALSE),\"\")","v":"Veterinary border inspection and quarantine measures have been fully implemented and are working in accordance with the national regulations"},{"$f":"IFERROR(VLOOKUP($A28,masterlist!$C$2:$AA$207,22,FALSE),\"\")","v":"Ministère de l’agriculture"},{"$f":"IFERROR(IF($B$7=2,(VLOOKUP($A28,masterlist!$C$2:$AA$207,23,FALSE)-11),IF($B$7=4,(VLOOKUP($A28,masterlist!$C$2:$AA$207,23,FALSE)-9),IF($B$7=7,(VLOOKUP($A28,masterlist!$C$2:$AA$207,23,FALSE)-6),IF($B$7=10,(VLOOKUP($A28,masterlist!$C$2:$AA$207,23,FALSE)-3),(VLOOKUP($A28,masterlist!$C$2:$AA$207,23,FALSE)))))),\"\")","v":6},{"$f":"IFERROR(VLOOKUP($A28,masterlist!$C$2:$AA$207,24,FALSE),\"\")","v":"• Évaluation de tous les points d'inspection officiels aux frontières.\n• Budget et plan d'action visant à combler les lacunes identifiées.\n•Registres de mise en œuvre confirmant la conformité avec les réglementations nationales."}]
[{"$f":"IF(ROWS($A$13:A29)<=(SUMPRODUCT((masterlist!B:B=\"PCO\")*(masterlist!J:J=0))),INDEX(masterlist!$C$2:$C$207,SMALL(IF(masterlist!$B$2:$B$207=\"PCO\",IF(masterlist!$F$2:$F$207>0,IF(masterlist!$J$2:$J$207=0,ROW(masterlist!$B$2:$B$207)-ROW(masterlist!$B$2)+1))),ROWS($A$13:A29))),\"\")","v":"PCO-Rép-3-25"},{"$f":"IFERROR(VLOOKUP($A29,masterlist!$C$2:$AA$207,3,FALSE),\"\")","v":3},{"$f":"IFERROR(VLOOKUP($A29,masterlist!$C$2:$AA$207,2,FALSE),\"\")","v":"Réponse à l'apparition d'un foyer et autres activités de lutte contre la rage"},{"$f":"IFERROR(VLOOKUP($A29,masterlist!$C$2:$AD$207,28,FALSE),\"\")","v":"Mettre en place les capacités nécessaires pour mener des enquêtes conjointes sur le terrain et des réponses planifiées aux foyers de rage humaine dans l'ensemble du pays"},{"$f":"IFERROR(IF((VLOOKUP($A29,masterlist!$C$2:$AA$207,9,FALSE))=0,\"\",VLOOKUP($A29,masterlist!$C$2:$AA$207,9,FALSE)),\"\")","v":""},{"$f":"IFERROR(VLOOKUP($A29,masterlist!$C$2:$AA$207,20,FALSE),\"\")","v":"• S'assurer que les canaux officiels de notification des maladies concernant les cas de rage humaine au niveau communautaire sont pleinement fonctionnels ;\n• En utilisant les données de surveillance existantes, déterminer le nombre estimé de cas de rage humaine qui devraient faire l'objet d'une enquête dans l'ensemble du pays chaque année;\n• En utilisant les informations générées par les enquêtes passées dans le pays, déterminer quelle capacité (par exemple, transport, ressources et consommables, personnel formé et équipement connexe, etc,) serait nécessaire pour mettre en œuvre le nombre estimé d'enquêtes;\n• Élaborer une proposition et un budget pour mettre en place la capacité nécessaire ; \n• Obtenir le financement et mettre en place la capacité nécessaire pour mener des enquêtes conjointes sur le terrain et des réponses planifiées aux foyers de rage humaine dans l'ensemble du pays."},{"$f":"IFERROR(VLOOKUP($A29,masterlist!$C$2:$AA$207,21,FALSE),\"\")","v":"Capacity to conduct field investigations and planned outbreak responses for human rabies cases in the entire country;"},{"$f":"IFERROR(VLOOKUP($A29,masterlist!$C$2:$AA$207,22,FALSE),\"\")","v":"Groupe multisectoriel"},{"$f":"IFERROR(IF($B$7=2,(VLOOKUP($A29,masterlist!$C$2:$AA$207,23,FALSE)-11),IF($B$7=4,(VLOOKUP($A29,masterlist!$C$2:$AA$207,23,FALSE)-9),IF($B$7=7,(VLOOKUP($A29,masterlist!$C$2:$AA$207,23,FALSE)-6),IF($B$7=10,(VLOOKUP($A29,masterlist!$C$2:$AA$207,23,FALSE)-3),(VLOOKUP($A29,masterlist!$C$2:$AA$207,23,FALSE)))))),\"\")","v":8},{"$f":"IFERROR(VLOOKUP($A29,masterlist!$C$2:$AA$207,24,FALSE),\"\")","v":"• Évaluation complète des ressources, du personnel et de l'infrastructure nécessaires.\n• Plan détaillé et estimation des coûts pour la mise en place d'une capacité commune d'investigation des cas de rage humaine dans l'ensemble du pays.\n• Preuve d'un financement assuré et de la mise en œuvre des ressources nécessaires."}]
[{"$f":"IF(ROWS($A$13:A30)<=(SUMPRODUCT((masterlist!B:B=\"PCO\")*(masterlist!J:J=0))),INDEX(masterlist!$C$2:$C$207,SMALL(IF(masterlist!$B$2:$B$207=\"PCO\",IF(masterlist!$F$2:$F$207>0,IF(masterlist!$J$2:$J$207=0,ROW(masterlist!$B$2:$B$207)-ROW(masterlist!$B$2)+1))),ROWS($A$13:A30))),\"\")","v":"PCO-Rép-3-26"},{"$f":"IFERROR(VLOOKUP($A30,masterlist!$C$2:$AA$207,3,FALSE),\"\")","v":3},{"$f":"IFERROR(VLOOKUP($A30,masterlist!$C$2:$AA$207,2,FALSE),\"\")","v":"Réponse à l'apparition d'un foyer et autres activités de lutte contre la rage"},{"$f":"IFERROR(VLOOKUP($A30,masterlist!$C$2:$AD$207,28,FALSE),\"\")","v":"Engager un dialogue avec les pays voisins pour empêcher la réintroduction de la rage dans les zones désignées comme exemptes de rage."},{"$f":"IFERROR(IF((VLOOKUP($A30,masterlist!$C$2:$AA$207,9,FALSE))=0,\"\",VLOOKUP($A30,masterlist!$C$2:$AA$207,9,FALSE)),\"\")","v":""},{"$f":"IFERROR(VLOOKUP($A30,masterlist!$C$2:$AA$207,20,FALSE),\"\")","v":"• Identifier les autorités compétentes (par exemple, la personne désignée par l'OMS comme référent pour la rage) dans les pays voisins où la rage est endémique ;\n• Partager et discuter des données épidémiologiques des zones indemnes de rage et des zones environnantes avec les autorités voisines ;\n• Partager les détails de la campagne de vaccination stratégique avec les autorités voisines et encourager la collaboration (par exemple, zones tampons de vaccination) ;\n• Identifier les moyens possibles de prévenir la réintroduction de la rage (y compris les campagnes de vaccination stratégiques conjointes, le contrôle des frontières, etc.)"},{"$f":"IFERROR(VLOOKUP($A30,masterlist!$C$2:$AA$207,21,FALSE),\"\")","v":"Open dialogue initiated and continued with regards to joint efforts for the prevention of the re-introduction of rabies into designated rabies-free zones has been established;"},{"$f":"IFERROR(VLOOKUP($A30,masterlist!$C$2:$AA$207,22,FALSE),\"\")","v":"Groupe multisectoriel"},{"$f":"IFERROR(IF($B$7=2,(VLOOKUP($A30,masterlist!$C$2:$AA$207,23,FALSE)-11),IF($B$7=4,(VLOOKUP($A30,masterlist!$C$2:$AA$207,23,FALSE)-9),IF($B$7=7,(VLOOKUP($A30,masterlist!$C$2:$AA$207,23,FALSE)-6),IF($B$7=10,(VLOOKUP($A30,masterlist!$C$2:$AA$207,23,FALSE)-3),(VLOOKUP($A30,masterlist!$C$2:$AA$207,23,FALSE)))))),\"\")","v":7},{"$f":"IFERROR(VLOOKUP($A30,masterlist!$C$2:$AA$207,24,FALSE),\"\")","v":"• Collaboration et partage de données documentés avec les autorités des pays voisins.\n• Mise en œuvre de stratégies communes pour prévenir la réintroduction de la rage."}]
[{"$f":"IF(ROWS($A$13:A31)<=(SUMPRODUCT((masterlist!B:B=\"PCO\")*(masterlist!J:J=0))),INDEX(masterlist!$C$2:$C$207,SMALL(IF(masterlist!$B$2:$B$207=\"PCO\",IF(masterlist!$F$2:$F$207>0,IF(masterlist!$J$2:$J$207=0,ROW(masterlist!$B$2:$B$207)-ROW(masterlist!$B$2)+1))),ROWS($A$13:A31))),\"\")","v":"PCO-Rép-3-27"},{"$f":"IFERROR(VLOOKUP($A31,masterlist!$C$2:$AA$207,3,FALSE),\"\")","v":3},{"$f":"IFERROR(VLOOKUP($A31,masterlist!$C$2:$AA$207,2,FALSE),\"\")","v":"Réponse à l'apparition d'un foyer et autres activités de lutte contre la rage"},{"$f":"IFERROR(VLOOKUP($A31,masterlist!$C$2:$AD$207,28,FALSE),\"\")","v":"Mettre en place les capacités nécessaires pour mener des enquêtes conjointes sur le terrain et des réponses planifiées aux foyers de rage animale dans l'ensemble du pays."},{"$f":"IFERROR(IF((VLOOKUP($A31,masterlist!$C$2:$AA$207,9,FALSE))=0,\"\",VLOOKUP($A31,masterlist!$C$2:$AA$207,9,FALSE)),\"\")","v":""},{"$f":"IFERROR(VLOOKUP($A31,masterlist!$C$2:$AA$207,20,FALSE),\"\")","v":"• S'assurer que les canaux officiels de notification des maladies concernant les cas de rage animale au niveau communautaire sont pleinement opérationnels ;\n• En utilisant les données de surveillance existantes, déterminer le nombre estimé de cas de rage animale qui devraient faire l'objet d'une enquête dans l'ensemble du pays chaque année ;\n• En utilisant les informations générées par les enquêtes antérieures dans le pays, déterminer les capacités (par exemple, transport, ressources et consommables, personnel formé et équipement connexe, etc.) pour mettre en œuvre le nombre estimé d'enquêtes ;\n• Élaborer une proposition et un budget pour mettre en place la capacité nécessaire ;\n• Obtenir le financement et mettre en place la capacité nécessaire pour mener des enquêtes conjointes sur le terrain et des réponses planifiées aux foyers de rage animale dans l'ensemble du pays."},{"$f":"IFERROR(VLOOKUP($A31,masterlist!$C$2:$AA$207,21,FALSE),\"\")","v":"Capacity to conduct field investigations and planned outbreak responses for animal rabies cases in the entire country;"},{"$f":"IFERROR(VLOOKUP($A31,masterlist!$C$2:$AA$207,22,FALSE),\"\")","v":"Groupe multisectoriel"},{"$f":"IFERROR(IF($B$7=2,(VLOOKUP($A31,masterlist!$C$2:$AA$207,23,FALSE)-11),IF($B$7=4,(VLOOKUP($A31,masterlist!$C$2:$AA$207,23,FALSE)-9),IF($B$7=7,(VLOOKUP($A31,masterlist!$C$2:$AA$207,23,FALSE)-6),IF($B$7=10,(VLOOKUP($A31,masterlist!$C$2:$AA$207,23,FALSE)-3),(VLOOKUP($A31,masterlist!$C$2:$AA$207,23,FALSE)))))),\"\")","v":9},{"$f":"IFERROR(VLOOKUP($A31,masterlist!$C$2:$AA$207,24,FALSE),\"\")","v":"• Évaluation complète des ressources, du personnel et de l'infrastructure nécessaires.\n• Plan détaillé et estimation des coûts pour la mise en place d'une capacité d'enquête conjointe sur les cas de rage animale dans l'ensemble du pays.\n• Preuve d'un financement assuré et de la mise en œuvre des ressources nécessaires."}]
[{"$f":"IF(ROWS($A$13:A32)<=(SUMPRODUCT((masterlist!B:B=\"PCO\")*(masterlist!J:J=0))),INDEX(masterlist!$C$2:$C$207,SMALL(IF(masterlist!$B$2:$B$207=\"PCO\",IF(masterlist!$F$2:$F$207>0,IF(masterlist!$J$2:$J$207=0,ROW(masterlist!$B$2:$B$207)-ROW(masterlist!$B$2)+1))),ROWS($A$13:A32))),\"\")","v":"PCO-Rép-3-28"},{"$f":"IFERROR(VLOOKUP($A32,masterlist!$C$2:$AA$207,3,FALSE),\"\")","v":3},{"$f":"IFERROR(VLOOKUP($A32,masterlist!$C$2:$AA$207,2,FALSE),\"\")","v":"Réponse à l'apparition d'un foyer et autres activités de lutte contre la rage"},{"$f":"IFERROR(VLOOKUP($A32,masterlist!$C$2:$AD$207,28,FALSE),\"\")","v":"Alors que le pays se rapproche de l'élimination de la rage humaine, il convient de mener des enquêtes sur le terrain pour TOUS les cas suspects de rage humaine dans l'ensemble du pays."},{"$f":"IFERROR(IF((VLOOKUP($A32,masterlist!$C$2:$AA$207,9,FALSE))=0,\"\",VLOOKUP($A32,masterlist!$C$2:$AA$207,9,FALSE)),\"\")","v":""},{"$f":"IFERROR(VLOOKUP($A32,masterlist!$C$2:$AA$207,20,FALSE),\"\")","v":"• Veiller à ce que les mécanismes de signalement rapide des cas humains suspects, du niveau local au niveau national, soient en place et pleinement opérationnels ;\n• Garantir le financement et les ressources nécessaires pour enquêter sur tous les cas suspects de rage humaine dans tout le pays ;\n• Veiller à ce que les professionnels concernés disposent des ressources nécessaires et aient accès au financement requis pour enquêter sur tous les cas suspects de rage humaine qui sont signalés ;\n• Confirmer que les enquêtes sur le terrain sont opérationnelles dans tout le pays ;\n• Veiller à ce que les résultats des enquêtes soient communiqués au niveau national."},{"$f":"IFERROR(VLOOKUP($A32,masterlist!$C$2:$AA$207,21,FALSE),\"\")","v":"Each suspect human case is investigated based on surveillance data and case investigation protocols"},{"$f":"IFERROR(VLOOKUP($A32,masterlist!$C$2:$AA$207,22,FALSE),\"\")","v":"Ministère de la santé"},{"$f":"IFERROR(IF($B$7=2,(VLOOKUP($A32,masterlist!$C$2:$AA$207,23,FALSE)-11),IF($B$7=4,(VLOOKUP($A32,masterlist!$C$2:$AA$207,23,FALSE)-9),IF($B$7=7,(VLOOKUP($A32,masterlist!$C$2:$AA$207,23,FALSE)-6),IF($B$7=10,(VLOOKUP($A32,masterlist!$C$2:$AA$207,23,FALSE)-3),(VLOOKUP($A32,masterlist!$C$2:$AA$207,23,FALSE)))))),\"\")","v":9},{"$f":"IFERROR(VLOOKUP($A32,masterlist!$C$2:$AA$207,24,FALSE),\"\")","v":"• Évaluation des mécanismes de notification rapide du niveau local au niveau national (par exemple, évaluation du système de surveillance actuel).\n• Preuve de l'existence d'un financement et de ressources garantis pour les enquêtes exhaustives sur les cas humains suspects.\n• Rapports sur l'achèvement de la formation et sur les capacités des professionnels participant aux enquêtes sur le terrain.\n• Rapport de situation confirmant les enquêtes de terrain opérationnelles dans l'ensemble du pays.\n• Rapport national résumant les résultats des enquêtes sur le terrain."}]
[{"$f":"IF(ROWS($A$13:A33)<=(SUMPRODUCT((masterlist!B:B=\"PCO\")*(masterlist!J:J=0))),INDEX(masterlist!$C$2:$C$207,SMALL(IF(masterlist!$B$2:$B$207=\"PCO\",IF(masterlist!$F$2:$F$207>0,IF(masterlist!$J$2:$J$207=0,ROW(masterlist!$B$2:$B$207)-ROW(masterlist!$B$2)+1))),ROWS($A$13:A33))),\"\")","v":"PCO-Rép-4-29"},{"$f":"IFERROR(VLOOKUP($A33,masterlist!$C$2:$AA$207,3,FALSE),\"\")","v":4},{"$f":"IFERROR(VLOOKUP($A33,masterlist!$C$2:$AA$207,2,FALSE),\"\")","v":"Réponse à l'apparition d'un foyer et autres activités de lutte contre la rage"},{"$f":"IFERROR(VLOOKUP($A33,masterlist!$C$2:$AD$207,28,FALSE),\"\")","v":"Alors que le pays se rapproche de l'élimination de la rage canine, mener des enquêtes sur le terrain pour TOUS les cas suspects de rage canine dans l'ensemble du pays."},{"$f":"IFERROR(IF((VLOOKUP($A33,masterlist!$C$2:$AA$207,9,FALSE))=0,\"\",VLOOKUP($A33,masterlist!$C$2:$AA$207,9,FALSE)),\"\")","v":""},{"$f":"IFERROR(VLOOKUP($A33,masterlist!$C$2:$AA$207,20,FALSE),\"\")","v":"• Veiller à ce que les mécanismes de signalement rapide des cas suspects de rage animale, du niveau local au niveau national, soient en place et pleinement opérationnels ;\n• Garantir le financement et les ressources nécessaires pour enquêter sur tous les cas suspects de rage animale partout dans le pays ;\n• Veiller à ce que les professionnels concernés disposent des ressources nécessaires et aient accès au financement requis pour enquêter sur tous les cas suspects de rage animale qui sont signalés ;\n• Confirmer que les enquêtes sur le terrain sont opérationnelles dans tout le pays ;\n• Veiller à ce que les résultats des enquêtes soient communiqués au niveau national."},{"$f":"IFERROR(VLOOKUP($A33,masterlist!$C$2:$AA$207,21,FALSE),\"\")","v":"Each suspect animal case is investigated based on surveillance data and case investigation protocols"},{"$f":"IFERROR(VLOOKUP($A33,masterlist!$C$2:$AA$207,22,FALSE),\"\")","v":"Ministère de l’agriculture"},{"$f":"IFERROR(IF($B$7=2,(VLOOKUP($A33,masterlist!$C$2:$AA$207,23,FALSE)-11),IF($B$7=4,(VLOOKUP($A33,masterlist!$C$2:$AA$207,23,FALSE)-9),IF($B$7=7,(VLOOKUP($A33,masterlist!$C$2:$AA$207,23,FALSE)-6),IF($B$7=10,(VLOOKUP($A33,masterlist!$C$2:$AA$207,23,FALSE)-3),(VLOOKUP($A33,masterlist!$C$2:$AA$207,23,FALSE)))))),\"\")","v":10},{"$f":"IFERROR(VLOOKUP($A33,masterlist!$C$2:$AA$207,24,FALSE),\"\")","v":"• Évaluation des mécanismes de notification rapide de tous les cas suspects de rage animale (par exemple, évaluation du système de surveillance actuel).\n• Documentation sur le financement et les ressources assurés pour toutes les enquêtes sur les cas suspects de rage animale.\n• Rapports d'achèvement de la formation des professionnels chargés d'enquêter sur tous les cas suspects de rage animale.\n• Rapport confirmant la mise en œuvre à l'échelle nationale des enquêtes sur tous les cas suspects de rage animale.\n• Rapport sur les résultats des enquêtes soumis à l'autorité nationale."}]
[{"$f":"IF(ROWS($A$13:A34)<=(SUMPRODUCT((masterlist!B:B=\"PCO\")*(masterlist!J:J=0))),INDEX(masterlist!$C$2:$C$207,SMALL(IF(masterlist!$B$2:$B$207=\"PCO\",IF(masterlist!$F$2:$F$207>0,IF(masterlist!$J$2:$J$207=0,ROW(masterlist!$B$2:$B$207)-ROW(masterlist!$B$2)+1))),ROWS($A$13:A34))),\"\")","v":"PCO-Rép-4-30"},{"$f":"IFERROR(VLOOKUP($A34,masterlist!$C$2:$AA$207,3,FALSE),\"\")","v":4},{"$f":"IFERROR(VLOOKUP($A34,masterlist!$C$2:$AA$207,2,FALSE),\"\")","v":"Réponse à l'apparition d'un foyer et autres activités de lutte contre la rage"},{"$f":"IFERROR(VLOOKUP($A34,masterlist!$C$2:$AD$207,28,FALSE),\"\")","v":"Étant donné qu'il n'y a plus de cas de rage humaine confirmés en laboratoire, maintenir les activités de surveillance existantes pour tous les cas suspects chez l'homme dans le pays."},{"$f":"IFERROR(IF((VLOOKUP($A34,masterlist!$C$2:$AA$207,9,FALSE))=0,\"\",VLOOKUP($A34,masterlist!$C$2:$AA$207,9,FALSE)),\"\")","v":""},{"$f":"IFERROR(VLOOKUP($A34,masterlist!$C$2:$AA$207,20,FALSE),\"\")","v":"• Mettre en place des mécanismes permettant de signaler les cas d'encéphalite au niveau national en utilisant le système de surveillance national ;\n• Veiller à ce que tous les cas d'encéphalite soient signalés au niveau national en temps utile ;\n• Veiller à ce que chaque cas d'encéphalite fasse l'objet d'une enquête ;\n• Produire et diffuser des rapports sur les enquêtes auprès de toutes les parties prenantes concernées."},{"$f":"IFERROR(VLOOKUP($A34,masterlist!$C$2:$AA$207,21,FALSE),\"\")","v":"All suspect human rabies cases detected and case investigations undertaken and reported upon to ensure that no new human cases arise and the country remains free from human rabies. "},{"$f":"IFERROR(VLOOKUP($A34,masterlist!$C$2:$AA$207,22,FALSE),\"\")","v":"Ministère de la santé"},{"$f":"IFERROR(IF($B$7=2,(VLOOKUP($A34,masterlist!$C$2:$AA$207,23,FALSE)-11),IF($B$7=4,(VLOOKUP($A34,masterlist!$C$2:$AA$207,23,FALSE)-9),IF($B$7=7,(VLOOKUP($A34,masterlist!$C$2:$AA$207,23,FALSE)-6),IF($B$7=10,(VLOOKUP($A34,masterlist!$C$2:$AA$207,23,FALSE)-3),(VLOOKUP($A34,masterlist!$C$2:$AA$207,23,FALSE)))))),\"\")","v":11},{"$f":"IFERROR(VLOOKUP($A34,masterlist!$C$2:$AA$207,24,FALSE),\"\")","v":"• Protocole de notification des cas d'encéphalite via le système de surveillance national.\n• Rapport de suivi des données garantissant la notification des cas d'encéphalite dans les délais impartis.\n• Rapports d'enquête pour tous les cas d'encéphalite.\n• Diffusion périodique des résultats de l'enquête aux parties prenantes par le biais de rapports détaillés."}]
[{"$f":"IF(ROWS($A$13:A35)<=(SUMPRODUCT((masterlist!B:B=\"PCO\")*(masterlist!J:J=0))),INDEX(masterlist!$C$2:$C$207,SMALL(IF(masterlist!$B$2:$B$207=\"PCO\",IF(masterlist!$F$2:$F$207>0,IF(masterlist!$J$2:$J$207=0,ROW(masterlist!$B$2:$B$207)-ROW(masterlist!$B$2)+1))),ROWS($A$13:A35))),\"\")","v":"PCO-Rép-4-31"},{"$f":"IFERROR(VLOOKUP($A35,masterlist!$C$2:$AA$207,3,FALSE),\"\")","v":4},{"$f":"IFERROR(VLOOKUP($A35,masterlist!$C$2:$AA$207,2,FALSE),\"\")","v":"Réponse à l'apparition d'un foyer et autres activités de lutte contre la rage"},{"$f":"IFERROR(VLOOKUP($A35,masterlist!$C$2:$AD$207,28,FALSE),\"\")","v":"Maintenant qu'il y a très peu de cas de rage animale dans le pays, élaborer une réponse d'urgence ou un plan de secours au cas où la variante canine de la rage serait réintroduite dans les zones exemptes de rage."},{"$f":"IFERROR(IF((VLOOKUP($A35,masterlist!$C$2:$AA$207,9,FALSE))=0,\"\",VLOOKUP($A35,masterlist!$C$2:$AA$207,9,FALSE)),\"\")","v":""},{"$f":"IFERROR(VLOOKUP($A35,masterlist!$C$2:$AA$207,20,FALSE),\"\")","v":"• Déterminer s'il existe déjà des plans d'urgence dans le pays ;\n• Examiner les plans d'urgence existants pour évaluer ceux qui ont été élaborés ailleurs et qui pourraient être adaptés à votre pays ;\n• Rédiger un plan d'urgence contre la rage en utilisant du matériel nouveau et existant ;\n• Partager le plan d'urgence avec toutes les autorités compétentes pour obtenir des informations en retour ; \n• Affiner et finaliser le plan d'urgence sur la base du retour d'information ;\n• Obtenir un financement pour la mise en œuvre éventuelle du plan d'urgence ;\n• Veiller à ce que le personnel concerné soit formé et dispose des ressources nécessaires pour la mise en œuvre éventuelle du plan d'urgence."},{"$f":"IFERROR(VLOOKUP($A35,masterlist!$C$2:$AA$207,21,FALSE),\"\")","v":"Emergency/contingency plan developed, funding secured, personnel trained and resources available for the possible implementation of the plan;"},{"$f":"IFERROR(VLOOKUP($A35,masterlist!$C$2:$AA$207,22,FALSE),\"\")","v":"Groupe multisectoriel"},{"$f":"IFERROR(IF($B$7=2,(VLOOKUP($A35,masterlist!$C$2:$AA$207,23,FALSE)-11),IF($B$7=4,(VLOOKUP($A35,masterlist!$C$2:$AA$207,23,FALSE)-9),IF($B$7=7,(VLOOKUP($A35,masterlist!$C$2:$AA$207,23,FALSE)-6),IF($B$7=10,(VLOOKUP($A35,masterlist!$C$2:$AA$207,23,FALSE)-3),(VLOOKUP($A35,masterlist!$C$2:$AA$207,23,FALSE)))))),\"\")","v":10},{"$f":"IFERROR(VLOOKUP($A35,masterlist!$C$2:$AA$207,24,FALSE),\"\")","v":"• Plan d'intervention d'urgence contre la rage finalisé et diffusé.\n• Preuve de l'existence d'un personnel formé, de ressources et d'un financement assuré pour les mesures d'urgence."}]
[{"$f":"IF(ROWS($A$13:A36)<=(SUMPRODUCT((masterlist!B:B=\"PCO\")*(masterlist!J:J=0))),INDEX(masterlist!$C$2:$C$207,SMALL(IF(masterlist!$B$2:$B$207=\"PCO\",IF(masterlist!$F$2:$F$207>0,IF(masterlist!$J$2:$J$207=0,ROW(masterlist!$B$2:$B$207)-ROW(masterlist!$B$2)+1))),ROWS($A$13:A36))),\"\")","v":"PCO-Rép-5-32"},{"$f":"IFERROR(VLOOKUP($A36,masterlist!$C$2:$AA$207,3,FALSE),\"\")","v":5},{"$f":"IFERROR(VLOOKUP($A36,masterlist!$C$2:$AA$207,2,FALSE),\"\")","v":"Réponse à l'apparition d'un foyer et autres activités de lutte contre la rage"},{"$f":"IFERROR(VLOOKUP($A36,masterlist!$C$2:$AD$207,28,FALSE),\"\")","v":"Même si vous êtes débarrassé de la rage canine grâce à des campagnes de vaccination de masse réussies, maintenir la capacité d'intervention conjointe en cas d'épidémie."},{"$f":"IFERROR(IF((VLOOKUP($A36,masterlist!$C$2:$AA$207,9,FALSE))=0,\"\",VLOOKUP($A36,masterlist!$C$2:$AA$207,9,FALSE)),\"\")","v":""},{"$f":"IFERROR(VLOOKUP($A36,masterlist!$C$2:$AA$207,20,FALSE),\"\")","v":"• Réviser et mettre à jour régulièrement le protocole établi pour la réponse conjointe aux flambées épidémiques ;\n• Partager régulièrement le protocole avec les nouveaux professionnels responsables de sa mise en œuvre ;\n• Fournir une formation continue aux professionnels (par exemple, réponse aux flambées épidémiques, manipulation et vaccination des animaux, enquête sur les cas, etc.);\n• Veiller à ce qu'un financement et des ressources suffisants restent disponibles pour l'accès d'urgence."},{"$f":"IFERROR(VLOOKUP($A36,masterlist!$C$2:$AA$207,21,FALSE),\"\")","v":"Continued awareness and preparedness within expert network operating at the local level;"},{"$f":"IFERROR(VLOOKUP($A36,masterlist!$C$2:$AA$207,22,FALSE),\"\")","v":"Groupe multisectoriel"},{"$f":"IFERROR(IF($B$7=2,(VLOOKUP($A36,masterlist!$C$2:$AA$207,23,FALSE)-11),IF($B$7=4,(VLOOKUP($A36,masterlist!$C$2:$AA$207,23,FALSE)-9),IF($B$7=7,(VLOOKUP($A36,masterlist!$C$2:$AA$207,23,FALSE)-6),IF($B$7=10,(VLOOKUP($A36,masterlist!$C$2:$AA$207,23,FALSE)-3),(VLOOKUP($A36,masterlist!$C$2:$AA$207,23,FALSE)))))),\"\")","v":12},{"$f":"IFERROR(VLOOKUP($A36,masterlist!$C$2:$AA$207,24,FALSE),\"\")","v":"• Protocoles d'intervention en cas d'épidémie régulièrement mis à jour.\n• Formation continue et allocation de ressources pour les équipes d'intervention d'urgence."}]
[{"$f":"IF(ROWS($A$13:A37)<=(SUMPRODUCT((masterlist!B:B=\"PCO\")*(masterlist!J:J=0))),INDEX(masterlist!$C$2:$C$207,SMALL(IF(masterlist!$B$2:$B$207=\"PCO\",IF(masterlist!$F$2:$F$207>0,IF(masterlist!$J$2:$J$207=0,ROW(masterlist!$B$2:$B$207)-ROW(masterlist!$B$2)+1))),ROWS($A$13:A37))),\"\")","v":""},{"$f":"IFERROR(VLOOKUP($A37,masterlist!$C$2:$AA$207,3,FALSE),\"\")","v":""},{"$f":"IFERROR(VLOOKUP($A37,masterlist!$C$2:$AA$207,2,FALSE),\"\")","v":""},{"$f":"IFERROR(VLOOKUP($A37,masterlist!$C$2:$AD$207,28,FALSE),\"\")","v":""},{"$f":"IFERROR(IF((VLOOKUP($A37,masterlist!$C$2:$AA$207,9,FALSE))=0,\"\",VLOOKUP($A37,masterlist!$C$2:$AA$207,9,FALSE)),\"\")","v":""},{"$f":"IFERROR(VLOOKUP($A37,masterlist!$C$2:$AA$207,20,FALSE),\"\")","v":""},{"$f":"IFERROR(VLOOKUP($A37,masterlist!$C$2:$AA$207,21,FALSE),\"\")","v":""},{"$f":"IFERROR(VLOOKUP($A37,masterlist!$C$2:$AA$207,22,FALSE),\"\")","v":""},{"$f":"IFERROR(IF($B$7=2,(VLOOKUP($A37,masterlist!$C$2:$AA$207,23,FALSE)-11),IF($B$7=4,(VLOOKUP($A37,masterlist!$C$2:$AA$207,23,FALSE)-9),IF($B$7=7,(VLOOKUP($A37,masterlist!$C$2:$AA$207,23,FALSE)-6),IF($B$7=10,(VLOOKUP($A37,masterlist!$C$2:$AA$207,23,FALSE)-3),(VLOOKUP($A37,masterlist!$C$2:$AA$207,23,FALSE)))))),\"\")","v":""},{"$f":"IFERROR(VLOOKUP($A37,masterlist!$C$2:$AA$207,24,FALSE),\"\")","v":""}]
[{"$f":"IF(ROWS($A$13:A38)<=(SUMPRODUCT((masterlist!B:B=\"PCO\")*(masterlist!J:J=0))),INDEX(masterlist!$C$2:$C$207,SMALL(IF(masterlist!$B$2:$B$207=\"PCO\",IF(masterlist!$F$2:$F$207>0,IF(masterlist!$J$2:$J$207=0,ROW(masterlist!$B$2:$B$207)-ROW(masterlist!$B$2)+1))),ROWS($A$13:A38))),\"\")","v":""},{"$f":"IFERROR(VLOOKUP($A38,masterlist!$C$2:$AA$207,3,FALSE),\"\")","v":""},{"$f":"IFERROR(VLOOKUP($A38,masterlist!$C$2:$AA$207,2,FALSE),\"\")","v":""},{"$f":"IFERROR(VLOOKUP($A38,masterlist!$C$2:$AD$207,28,FALSE),\"\")","v":""},{"$f":"IFERROR(IF((VLOOKUP($A38,masterlist!$C$2:$AA$207,9,FALSE))=0,\"\",VLOOKUP($A38,masterlist!$C$2:$AA$207,9,FALSE)),\"\")","v":""},{"$f":"IFERROR(VLOOKUP($A38,masterlist!$C$2:$AA$207,20,FALSE),\"\")","v":""},{"$f":"IFERROR(VLOOKUP($A38,masterlist!$C$2:$AA$207,21,FALSE),\"\")","v":""},{"$f":"IFERROR(VLOOKUP($A38,masterlist!$C$2:$AA$207,22,FALSE),\"\")","v":""},{"$f":"IFERROR(IF($B$7=2,(VLOOKUP($A38,masterlist!$C$2:$AA$207,23,FALSE)-11),IF($B$7=4,(VLOOKUP($A38,masterlist!$C$2:$AA$207,23,FALSE)-9),IF($B$7=7,(VLOOKUP($A38,masterlist!$C$2:$AA$207,23,FALSE)-6),IF($B$7=10,(VLOOKUP($A38,masterlist!$C$2:$AA$207,23,FALSE)-3),(VLOOKUP($A38,masterlist!$C$2:$AA$207,23,FALSE)))))),\"\")","v":""},{"$f":"IFERROR(VLOOKUP($A38,masterlist!$C$2:$AA$207,24,FALSE),\"\")","v":""}]
[{"$f":"IF(ROWS($A$13:A39)<=(SUMPRODUCT((masterlist!B:B=\"PCO\")*(masterlist!J:J=0))),INDEX(masterlist!$C$2:$C$207,SMALL(IF(masterlist!$B$2:$B$207=\"PCO\",IF(masterlist!$F$2:$F$207>0,IF(masterlist!$J$2:$J$207=0,ROW(masterlist!$B$2:$B$207)-ROW(masterlist!$B$2)+1))),ROWS($A$13:A39))),\"\")","v":""},{"$f":"IFERROR(VLOOKUP($A39,masterlist!$C$2:$AA$207,3,FALSE),\"\")","v":""},{"$f":"IFERROR(VLOOKUP($A39,masterlist!$C$2:$AA$207,2,FALSE),\"\")","v":""},{"$f":"IFERROR(VLOOKUP($A39,masterlist!$C$2:$AD$207,28,FALSE),\"\")","v":""},{"$f":"IFERROR(IF((VLOOKUP($A39,masterlist!$C$2:$AA$207,9,FALSE))=0,\"\",VLOOKUP($A39,masterlist!$C$2:$AA$207,9,FALSE)),\"\")","v":""},{"$f":"IFERROR(VLOOKUP($A39,masterlist!$C$2:$AA$207,20,FALSE),\"\")","v":""},{"$f":"IFERROR(VLOOKUP($A39,masterlist!$C$2:$AA$207,21,FALSE),\"\")","v":""},{"$f":"IFERROR(VLOOKUP($A39,masterlist!$C$2:$AA$207,22,FALSE),\"\")","v":""},{"$f":"IFERROR(IF($B$7=2,(VLOOKUP($A39,masterlist!$C$2:$AA$207,23,FALSE)-11),IF($B$7=4,(VLOOKUP($A39,masterlist!$C$2:$AA$207,23,FALSE)-9),IF($B$7=7,(VLOOKUP($A39,masterlist!$C$2:$AA$207,23,FALSE)-6),IF($B$7=10,(VLOOKUP($A39,masterlist!$C$2:$AA$207,23,FALSE)-3),(VLOOKUP($A39,masterlist!$C$2:$AA$207,23,FALSE)))))),\"\")","v":""},{"$f":"IFERROR(VLOOKUP($A39,masterlist!$C$2:$AA$207,24,FALSE),\"\")","v":""}]
[{"$f":"IF(ROWS($A$13:A40)<=(SUMPRODUCT((masterlist!B:B=\"PCO\")*(masterlist!J:J=0))),INDEX(masterlist!$C$2:$C$207,SMALL(IF(masterlist!$B$2:$B$207=\"PCO\",IF(masterlist!$F$2:$F$207>0,IF(masterlist!$J$2:$J$207=0,ROW(masterlist!$B$2:$B$207)-ROW(masterlist!$B$2)+1))),ROWS($A$13:A40))),\"\")","v":""},{"$f":"IFERROR(VLOOKUP($A40,masterlist!$C$2:$AA$207,3,FALSE),\"\")","v":""},{"$f":"IFERROR(VLOOKUP($A40,masterlist!$C$2:$AA$207,2,FALSE),\"\")","v":""},{"$f":"IFERROR(VLOOKUP($A40,masterlist!$C$2:$AD$207,28,FALSE),\"\")","v":""},{"$f":"IFERROR(IF((VLOOKUP($A40,masterlist!$C$2:$AA$207,9,FALSE))=0,\"\",VLOOKUP($A40,masterlist!$C$2:$AA$207,9,FALSE)),\"\")","v":""},{"$f":"IFERROR(VLOOKUP($A40,masterlist!$C$2:$AA$207,20,FALSE),\"\")","v":""},{"$f":"IFERROR(VLOOKUP($A40,masterlist!$C$2:$AA$207,21,FALSE),\"\")","v":""},{"$f":"IFERROR(VLOOKUP($A40,masterlist!$C$2:$AA$207,22,FALSE),\"\")","v":""},{"$f":"IFERROR(IF($B$7=2,(VLOOKUP($A40,masterlist!$C$2:$AA$207,23,FALSE)-11),IF($B$7=4,(VLOOKUP($A40,masterlist!$C$2:$AA$207,23,FALSE)-9),IF($B$7=7,(VLOOKUP($A40,masterlist!$C$2:$AA$207,23,FALSE)-6),IF($B$7=10,(VLOOKUP($A40,masterlist!$C$2:$AA$207,23,FALSE)-3),(VLOOKUP($A40,masterlist!$C$2:$AA$207,23,FALSE)))))),\"\")","v":""},{"$f":"IFERROR(VLOOKUP($A40,masterlist!$C$2:$AA$207,24,FALSE),\"\")","v":""}]
[{"$f":"IF(ROWS($A$13:A41)<=(SUMPRODUCT((masterlist!B:B=\"PCO\")*(masterlist!J:J=0))),INDEX(masterlist!$C$2:$C$207,SMALL(IF(masterlist!$B$2:$B$207=\"PCO\",IF(masterlist!$F$2:$F$207>0,IF(masterlist!$J$2:$J$207=0,ROW(masterlist!$B$2:$B$207)-ROW(masterlist!$B$2)+1))),ROWS($A$13:A41))),\"\")","v":""},{"$f":"IFERROR(VLOOKUP($A41,masterlist!$C$2:$AA$207,3,FALSE),\"\")","v":""},{"$f":"IFERROR(VLOOKUP($A41,masterlist!$C$2:$AA$207,2,FALSE),\"\")","v":""},{"$f":"IFERROR(VLOOKUP($A41,masterlist!$C$2:$AD$207,28,FALSE),\"\")","v":""},{"$f":"IFERROR(IF((VLOOKUP($A41,masterlist!$C$2:$AA$207,9,FALSE))=0,\"\",VLOOKUP($A41,masterlist!$C$2:$AA$207,9,FALSE)),\"\")","v":""},{"$f":"IFERROR(VLOOKUP($A41,masterlist!$C$2:$AA$207,20,FALSE),\"\")","v":""},{"$f":"IFERROR(VLOOKUP($A41,masterlist!$C$2:$AA$207,21,FALSE),\"\")","v":""},{"$f":"IFERROR(VLOOKUP($A41,masterlist!$C$2:$AA$207,22,FALSE),\"\")","v":""},{"$f":"IFERROR(IF($B$7=2,(VLOOKUP($A41,masterlist!$C$2:$AA$207,23,FALSE)-11),IF($B$7=4,(VLOOKUP($A41,masterlist!$C$2:$AA$207,23,FALSE)-9),IF($B$7=7,(VLOOKUP($A41,masterlist!$C$2:$AA$207,23,FALSE)-6),IF($B$7=10,(VLOOKUP($A41,masterlist!$C$2:$AA$207,23,FALSE)-3),(VLOOKUP($A41,masterlist!$C$2:$AA$207,23,FALSE)))))),\"\")","v":""},{"$f":"IFERROR(VLOOKUP($A41,masterlist!$C$2:$AA$207,24,FALSE),\"\")","v":""}]
[{"$f":"IF(ROWS($A$13:A42)<=(SUMPRODUCT((masterlist!B:B=\"PCO\")*(masterlist!J:J=0))),INDEX(masterlist!$C$2:$C$207,SMALL(IF(masterlist!$B$2:$B$207=\"PCO\",IF(masterlist!$F$2:$F$207>0,IF(masterlist!$J$2:$J$207=0,ROW(masterlist!$B$2:$B$207)-ROW(masterlist!$B$2)+1))),ROWS($A$13:A42))),\"\")","v":""},{"$f":"IFERROR(VLOOKUP($A42,masterlist!$C$2:$AA$207,3,FALSE),\"\")","v":""},{"$f":"IFERROR(VLOOKUP($A42,masterlist!$C$2:$AA$207,2,FALSE),\"\")","v":""},{"$f":"IFERROR(VLOOKUP($A42,masterlist!$C$2:$AD$207,28,FALSE),\"\")","v":""},{"$f":"IFERROR(IF((VLOOKUP($A42,masterlist!$C$2:$AA$207,9,FALSE))=0,\"\",VLOOKUP($A42,masterlist!$C$2:$AA$207,9,FALSE)),\"\")","v":""},{"$f":"IFERROR(VLOOKUP($A42,masterlist!$C$2:$AA$207,20,FALSE),\"\")","v":""},{"$f":"IFERROR(VLOOKUP($A42,masterlist!$C$2:$AA$207,21,FALSE),\"\")","v":""},{"$f":"IFERROR(VLOOKUP($A42,masterlist!$C$2:$AA$207,22,FALSE),\"\")","v":""},{"$f":"IFERROR(IF($B$7=2,(VLOOKUP($A42,masterlist!$C$2:$AA$207,23,FALSE)-11),IF($B$7=4,(VLOOKUP($A42,masterlist!$C$2:$AA$207,23,FALSE)-9),IF($B$7=7,(VLOOKUP($A42,masterlist!$C$2:$AA$207,23,FALSE)-6),IF($B$7=10,(VLOOKUP($A42,masterlist!$C$2:$AA$207,23,FALSE)-3),(VLOOKUP($A42,masterlist!$C$2:$AA$207,23,FALSE)))))),\"\")","v":""},{"$f":"IFERROR(VLOOKUP($A42,masterlist!$C$2:$AA$207,24,FALSE),\"\")","v":""}]
[{"$f":"IF(ROWS($A$13:A43)<=(SUMPRODUCT((masterlist!B:B=\"PCO\")*(masterlist!J:J=0))),INDEX(masterlist!$C$2:$C$207,SMALL(IF(masterlist!$B$2:$B$207=\"PCO\",IF(masterlist!$F$2:$F$207>0,IF(masterlist!$J$2:$J$207=0,ROW(masterlist!$B$2:$B$207)-ROW(masterlist!$B$2)+1))),ROWS($A$13:A43))),\"\")","v":""},{"$f":"IFERROR(VLOOKUP($A43,masterlist!$C$2:$AA$207,3,FALSE),\"\")","v":""},{"$f":"IFERROR(VLOOKUP($A43,masterlist!$C$2:$AA$207,2,FALSE),\"\")","v":""},{"$f":"IFERROR(VLOOKUP($A43,masterlist!$C$2:$AD$207,28,FALSE),\"\")","v":""},{"$f":"IFERROR(IF((VLOOKUP($A43,masterlist!$C$2:$AA$207,9,FALSE))=0,\"\",VLOOKUP($A43,masterlist!$C$2:$AA$207,9,FALSE)),\"\")","v":""},{"$f":"IFERROR(VLOOKUP($A43,masterlist!$C$2:$AA$207,20,FALSE),\"\")","v":""},{"$f":"IFERROR(VLOOKUP($A43,masterlist!$C$2:$AA$207,21,FALSE),\"\")","v":""},{"$f":"IFERROR(VLOOKUP($A43,masterlist!$C$2:$AA$207,22,FALSE),\"\")","v":""},{"$f":"IFERROR(IF($B$7=2,(VLOOKUP($A43,masterlist!$C$2:$AA$207,23,FALSE)-11),IF($B$7=4,(VLOOKUP($A43,masterlist!$C$2:$AA$207,23,FALSE)-9),IF($B$7=7,(VLOOKUP($A43,masterlist!$C$2:$AA$207,23,FALSE)-6),IF($B$7=10,(VLOOKUP($A43,masterlist!$C$2:$AA$207,23,FALSE)-3),(VLOOKUP($A43,masterlist!$C$2:$AA$207,23,FALSE)))))),\"\")","v":""},{"$f":"IFERROR(VLOOKUP($A43,masterlist!$C$2:$AA$207,24,FALSE),\"\")","v":""}]
[{"$f":"IF(ROWS($A$13:A44)<=(SUMPRODUCT((masterlist!B:B=\"PCO\")*(masterlist!J:J=0))),INDEX(masterlist!$C$2:$C$207,SMALL(IF(masterlist!$B$2:$B$207=\"PCO\",IF(masterlist!$F$2:$F$207>0,IF(masterlist!$J$2:$J$207=0,ROW(masterlist!$B$2:$B$207)-ROW(masterlist!$B$2)+1))),ROWS($A$13:A44))),\"\")","v":""},{"$f":"IFERROR(VLOOKUP($A44,masterlist!$C$2:$AA$207,3,FALSE),\"\")","v":""},{"$f":"IFERROR(VLOOKUP($A44,masterlist!$C$2:$AA$207,2,FALSE),\"\")","v":""},{"$f":"IFERROR(VLOOKUP($A44,masterlist!$C$2:$AD$207,28,FALSE),\"\")","v":""},{"$f":"IFERROR(IF((VLOOKUP($A44,masterlist!$C$2:$AA$207,9,FALSE))=0,\"\",VLOOKUP($A44,masterlist!$C$2:$AA$207,9,FALSE)),\"\")","v":""},{"$f":"IFERROR(VLOOKUP($A44,masterlist!$C$2:$AA$207,20,FALSE),\"\")","v":""},{"$f":"IFERROR(VLOOKUP($A44,masterlist!$C$2:$AA$207,21,FALSE),\"\")","v":""},{"$f":"IFERROR(VLOOKUP($A44,masterlist!$C$2:$AA$207,22,FALSE),\"\")","v":""},{"$f":"IFERROR(IF($B$7=2,(VLOOKUP($A44,masterlist!$C$2:$AA$207,23,FALSE)-11),IF($B$7=4,(VLOOKUP($A44,masterlist!$C$2:$AA$207,23,FALSE)-9),IF($B$7=7,(VLOOKUP($A44,masterlist!$C$2:$AA$207,23,FALSE)-6),IF($B$7=10,(VLOOKUP($A44,masterlist!$C$2:$AA$207,23,FALSE)-3),(VLOOKUP($A44,masterlist!$C$2:$AA$207,23,FALSE)))))),\"\")","v":""},{"$f":"IFERROR(VLOOKUP($A44,masterlist!$C$2:$AA$207,24,FALSE),\"\")","v":""}]
[{"$f":"IF(ROWS($A$13:A45)<=(SUMPRODUCT((masterlist!B:B=\"PCO\")*(masterlist!J:J=0))),INDEX(masterlist!$C$2:$C$207,SMALL(IF(masterlist!$B$2:$B$207=\"PCO\",IF(masterlist!$F$2:$F$207>0,IF(masterlist!$J$2:$J$207=0,ROW(masterlist!$B$2:$B$207)-ROW(masterlist!$B$2)+1))),ROWS($A$13:A45))),\"\")","v":""},{"$f":"IFERROR(VLOOKUP($A45,masterlist!$C$2:$AA$207,3,FALSE),\"\")","v":""},{"$f":"IFERROR(VLOOKUP($A45,masterlist!$C$2:$AA$207,2,FALSE),\"\")","v":""},{"$f":"IFERROR(VLOOKUP($A45,masterlist!$C$2:$AD$207,28,FALSE),\"\")","v":""},{"$f":"IFERROR(IF((VLOOKUP($A45,masterlist!$C$2:$AA$207,9,FALSE))=0,\"\",VLOOKUP($A45,masterlist!$C$2:$AA$207,9,FALSE)),\"\")","v":""},{"$f":"IFERROR(VLOOKUP($A45,masterlist!$C$2:$AA$207,20,FALSE),\"\")","v":""},{"$f":"IFERROR(VLOOKUP($A45,masterlist!$C$2:$AA$207,21,FALSE),\"\")","v":""},{"$f":"IFERROR(VLOOKUP($A45,masterlist!$C$2:$AA$207,22,FALSE),\"\")","v":""},{"$f":"IFERROR(IF($B$7=2,(VLOOKUP($A45,masterlist!$C$2:$AA$207,23,FALSE)-11),IF($B$7=4,(VLOOKUP($A45,masterlist!$C$2:$AA$207,23,FALSE)-9),IF($B$7=7,(VLOOKUP($A45,masterlist!$C$2:$AA$207,23,FALSE)-6),IF($B$7=10,(VLOOKUP($A45,masterlist!$C$2:$AA$207,23,FALSE)-3),(VLOOKUP($A45,masterlist!$C$2:$AA$207,23,FALSE)))))),\"\")","v":""},{"$f":"IFERROR(VLOOKUP($A45,masterlist!$C$2:$AA$207,24,FALSE),\"\")","v":""}]
[{"$f":"IF(ROWS($A$13:A46)<=(SUMPRODUCT((masterlist!B:B=\"PCO\")*(masterlist!J:J=0))),INDEX(masterlist!$C$2:$C$207,SMALL(IF(masterlist!$B$2:$B$207=\"PCO\",IF(masterlist!$F$2:$F$207>0,IF(masterlist!$J$2:$J$207=0,ROW(masterlist!$B$2:$B$207)-ROW(masterlist!$B$2)+1))),ROWS($A$13:A46))),\"\")","v":""},{"$f":"IFERROR(VLOOKUP($A46,masterlist!$C$2:$AA$207,3,FALSE),\"\")","v":""},{"$f":"IFERROR(VLOOKUP($A46,masterlist!$C$2:$AA$207,2,FALSE),\"\")","v":""},{"$f":"IFERROR(VLOOKUP($A46,masterlist!$C$2:$AD$207,28,FALSE),\"\")","v":""},{"$f":"IFERROR(IF((VLOOKUP($A46,masterlist!$C$2:$AA$207,9,FALSE))=0,\"\",VLOOKUP($A46,masterlist!$C$2:$AA$207,9,FALSE)),\"\")","v":""},{"$f":"IFERROR(VLOOKUP($A46,masterlist!$C$2:$AA$207,20,FALSE),\"\")","v":""},{"$f":"IFERROR(VLOOKUP($A46,masterlist!$C$2:$AA$207,21,FALSE),\"\")","v":""},{"$f":"IFERROR(VLOOKUP($A46,masterlist!$C$2:$AA$207,22,FALSE),\"\")","v":""},{"$f":"IFERROR(IF($B$7=2,(VLOOKUP($A46,masterlist!$C$2:$AA$207,23,FALSE)-11),IF($B$7=4,(VLOOKUP($A46,masterlist!$C$2:$AA$207,23,FALSE)-9),IF($B$7=7,(VLOOKUP($A46,masterlist!$C$2:$AA$207,23,FALSE)-6),IF($B$7=10,(VLOOKUP($A46,masterlist!$C$2:$AA$207,23,FALSE)-3),(VLOOKUP($A46,masterlist!$C$2:$AA$207,23,FALSE)))))),\"\")","v":""},{"$f":"IFERROR(VLOOKUP($A46,masterlist!$C$2:$AA$207,24,FALSE),\"\")","v":""}]
[{"$f":"IF(ROWS($A$13:A47)<=(SUMPRODUCT((masterlist!B:B=\"PCO\")*(masterlist!J:J=0))),INDEX(masterlist!$C$2:$C$207,SMALL(IF(masterlist!$B$2:$B$207=\"PCO\",IF(masterlist!$F$2:$F$207>0,IF(masterlist!$J$2:$J$207=0,ROW(masterlist!$B$2:$B$207)-ROW(masterlist!$B$2)+1))),ROWS($A$13:A47))),\"\")","v":""},{"$f":"IFERROR(VLOOKUP($A47,masterlist!$C$2:$AA$207,3,FALSE),\"\")","v":""},{"$f":"IFERROR(VLOOKUP($A47,masterlist!$C$2:$AA$207,2,FALSE),\"\")","v":""},{"$f":"IFERROR(VLOOKUP($A47,masterlist!$C$2:$AD$207,28,FALSE),\"\")","v":""},{"$f":"IFERROR(IF((VLOOKUP($A47,masterlist!$C$2:$AA$207,9,FALSE))=0,\"\",VLOOKUP($A47,masterlist!$C$2:$AA$207,9,FALSE)),\"\")","v":""},{"$f":"IFERROR(VLOOKUP($A47,masterlist!$C$2:$AA$207,20,FALSE),\"\")","v":""},{"$f":"IFERROR(VLOOKUP($A47,masterlist!$C$2:$AA$207,21,FALSE),\"\")","v":""},{"$f":"IFERROR(VLOOKUP($A47,masterlist!$C$2:$AA$207,22,FALSE),\"\")","v":""},{"$f":"IFERROR(IF($B$7=2,(VLOOKUP($A47,masterlist!$C$2:$AA$207,23,FALSE)-11),IF($B$7=4,(VLOOKUP($A47,masterlist!$C$2:$AA$207,23,FALSE)-9),IF($B$7=7,(VLOOKUP($A47,masterlist!$C$2:$AA$207,23,FALSE)-6),IF($B$7=10,(VLOOKUP($A47,masterlist!$C$2:$AA$207,23,FALSE)-3),(VLOOKUP($A47,masterlist!$C$2:$AA$207,23,FALSE)))))),\"\")","v":""},{"$f":"IFERROR(VLOOKUP($A47,masterlist!$C$2:$AA$207,24,FALSE),\"\")","v":""}]
[{"$f":"IF(ROWS($A$13:A48)<=(SUMPRODUCT((masterlist!B:B=\"PCO\")*(masterlist!J:J=0))),INDEX(masterlist!$C$2:$C$207,SMALL(IF(masterlist!$B$2:$B$207=\"PCO\",IF(masterlist!$F$2:$F$207>0,IF(masterlist!$J$2:$J$207=0,ROW(masterlist!$B$2:$B$207)-ROW(masterlist!$B$2)+1))),ROWS($A$13:A48))),\"\")","v":""},{"$f":"IFERROR(VLOOKUP($A48,masterlist!$C$2:$AA$207,3,FALSE),\"\")","v":""},{"$f":"IFERROR(VLOOKUP($A48,masterlist!$C$2:$AA$207,2,FALSE),\"\")","v":""},{"$f":"IFERROR(VLOOKUP($A48,masterlist!$C$2:$AD$207,28,FALSE),\"\")","v":""},{"$f":"IFERROR(IF((VLOOKUP($A48,masterlist!$C$2:$AA$207,9,FALSE))=0,\"\",VLOOKUP($A48,masterlist!$C$2:$AA$207,9,FALSE)),\"\")","v":""},{"$f":"IFERROR(VLOOKUP($A48,masterlist!$C$2:$AA$207,20,FALSE),\"\")","v":""},{"$f":"IFERROR(VLOOKUP($A48,masterlist!$C$2:$AA$207,21,FALSE),\"\")","v":""},{"$f":"IFERROR(VLOOKUP($A48,masterlist!$C$2:$AA$207,22,FALSE),\"\")","v":""},{"$f":"IFERROR(IF($B$7=2,(VLOOKUP($A48,masterlist!$C$2:$AA$207,23,FALSE)-11),IF($B$7=4,(VLOOKUP($A48,masterlist!$C$2:$AA$207,23,FALSE)-9),IF($B$7=7,(VLOOKUP($A48,masterlist!$C$2:$AA$207,23,FALSE)-6),IF($B$7=10,(VLOOKUP($A48,masterlist!$C$2:$AA$207,23,FALSE)-3),(VLOOKUP($A48,masterlist!$C$2:$AA$207,23,FALSE)))))),\"\")","v":""},{"$f":"IFERROR(VLOOKUP($A48,masterlist!$C$2:$AA$207,24,FALSE),\"\")","v":""}]
[{"$f":"IF(ROWS($A$13:A49)<=(SUMPRODUCT((masterlist!B:B=\"PCO\")*(masterlist!J:J=0))),INDEX(masterlist!$C$2:$C$207,SMALL(IF(masterlist!$B$2:$B$207=\"PCO\",IF(masterlist!$F$2:$F$207>0,IF(masterlist!$J$2:$J$207=0,ROW(masterlist!$B$2:$B$207)-ROW(masterlist!$B$2)+1))),ROWS($A$13:A49))),\"\")","v":""},{"$f":"IFERROR(VLOOKUP($A49,masterlist!$C$2:$AA$207,3,FALSE),\"\")","v":""},{"$f":"IFERROR(VLOOKUP($A49,masterlist!$C$2:$AA$207,2,FALSE),\"\")","v":""},{"$f":"IFERROR(VLOOKUP($A49,masterlist!$C$2:$AD$207,28,FALSE),\"\")","v":""},{"$f":"IFERROR(IF((VLOOKUP($A49,masterlist!$C$2:$AA$207,9,FALSE))=0,\"\",VLOOKUP($A49,masterlist!$C$2:$AA$207,9,FALSE)),\"\")","v":""},{"$f":"IFERROR(VLOOKUP($A49,masterlist!$C$2:$AA$207,20,FALSE),\"\")","v":""},{"$f":"IFERROR(VLOOKUP($A49,masterlist!$C$2:$AA$207,21,FALSE),\"\")","v":""},{"$f":"IFERROR(VLOOKUP($A49,masterlist!$C$2:$AA$207,22,FALSE),\"\")","v":""},{"$f":"IFERROR(IF($B$7=2,(VLOOKUP($A49,masterlist!$C$2:$AA$207,23,FALSE)-11),IF($B$7=4,(VLOOKUP($A49,masterlist!$C$2:$AA$207,23,FALSE)-9),IF($B$7=7,(VLOOKUP($A49,masterlist!$C$2:$AA$207,23,FALSE)-6),IF($B$7=10,(VLOOKUP($A49,masterlist!$C$2:$AA$207,23,FALSE)-3),(VLOOKUP($A49,masterlist!$C$2:$AA$207,23,FALSE)))))),\"\")","v":""},{"$f":"IFERROR(VLOOKUP($A49,masterlist!$C$2:$AA$207,24,FALSE),\"\")","v":""}]

{"sheet":"PCO","index":27,"n_rows":1,"n_cols":8,"rows_kept":1,"cut":false,"hidden":true,"merged":[[1,3,1,9],[0,7,0,9],[0,3,0,6]]}
[null,"              ",null,"Prévention et contrôle",null,null,null,"Plan de travail national pour l’élimination de la rage"]

{"sheet":"PCOgantt","index":28,"n_rows":50,"n_cols":17,"rows_kept":50,"cut":false,"hidden":true,"merged":[[0,1,0,16],[1,1,1,6],[2,1,2,16]]}
[null,"Plan de travail national pour l’élimination de la rage"]
[]
[null,"Prévention et contrôle - DIAGRAMME DE GANTT"]
[]
[null,null,null,null,1,2,3,4,5,6,7,8,9,10,11,12,13]
[null,"Theme","Étape","Activité",{"$f":"'NW country'!$E$35","v":2025},{"$f":"IF('NW country'!$K$4<6,E6+1,\"\")","v":2026},{"$f":"IF('NW country'!$K$4<5,E6+2,\"\")","v":2027},{"$f":"IF('NW country'!$K$4<5,E6+3,\"\")","v":2028},{"$f":"IF('NW country'!$K$4<4,E6+4,\"\")","v":2029},{"$f":"IF('NW country'!$K$4<4,E6+5,\"\")","v":2030},{"$f":"IF('NW country'!$K$4<4,E6+6,\"\")","v":2031},{"$f":"IF('NW country'!$K$4<3,E6+7,\"\")","v":2032},{"$f":"IF('NW country'!$K$4<3,E6+8,\"\")","v":2033},{"$f":"IF('NW country'!$K$4<3,E6+9,\"\")","v":2034},{"$f":"IF('NW country'!$K$4<2,E6+10,\"\")","v":2035},{"$f":"IF('NW country'!$K$4<2,E6+11,\"\")","v":2036},{"$f":"IF('NW country'!$K$4<2,E6+12,\"\")","v":2037}]
[13,{"$f":"IF((INDIRECT(\"PCO!\"&\"$a\"&$A7))=0,\"\",INDIRECT(\"PCO!\"&\"$c\"&$A7))","v":""},{"$f":"IF(INDIRECT(\"PCO!\"&\"$a\"&$A7)=0,\"\",INDIRECT(\"PCO!\"&\"$b\"&$A7))","v":""},{"$f":"IF(INDIRECT(\"PCO!\"&\"$a\"&$A7)=0,\"\",INDIRECT(\"PCO!\"&\"$d\"&$A7))","v":""},{"$f":"IF($C7>6,\"\",IF(E$5<=INDIRECT(\"PCO!\"&\"$i\"&$A7),\"X\",\"\"))","v":""},{"$f":"IF($C7>6,\"\",IF(F$5<=INDIRECT(\"PCO!\"&\"$i\"&$A7),\"X\",\"\"))","v":""},"","","","","","","","","","",""]
[14,{"$f":"IF((INDIRECT(\"PCO!\"&\"$a\"&$A8))=0,\"\",INDIRECT(\"PCO!\"&\"$c\"&$A8))","v":""},{"$f":"IF(INDIRECT(\"PCO!\"&\"$a\"&$A8)=0,\"\",INDIRECT(\"PCO!\"&\"$b\"&$A8))","v":""},{"$f":"IF(INDIRECT(\"PCO!\"&\"$a\"&$A8)=0,\"\",INDIRECT(\"PCO!\"&\"$d\"&$A8))","v":""},{"$f":"IF($C8>6,\"\",IF(E$5<=INDIRECT(\"PCO!\"&\"$i\"&$A8),\"X\",\"\"))","v":""},"","","","","","","","","","","",""]
[15,"","","","","","","","","","","","","","","",""]
[16,"","","","","","","","","","","","","","","",""]
[17,"","","","","","","","","","","","","","","",""]
[18,"","","","","","","","","","","","","","","",""]
[19,"","","","","","","","","","","","","","","",""]
[20,"","","","","","","","","","","","","","","",""]
[21,"","","","","","","","","","","","","","","",""]
[22,"","","","","","","","","","","","","","","",""]
[23,"","","","","","","","","","","","","","","",""]
[24,"","","","","","","","","","","","","","","",""]
[25,"","","","","","","","","","","","","","","",""]
[26,"","","","","","","","","","","","","","","",""]
[27,"","","","","","","","","","","","","","","",""]
[28,"","","","","","","","","","","","","","","",""]
[29,"","","","","","","","","","","","","","","",""]
[30,"","","","","","","","","","","","","","","",""]
[31,"","","","","","","","","","","","","","","",""]
[32,"","","","","","","","","","","","","","","",""]
[33,"","","","","","","","","","","","","","","",""]
[34,"","","","","","","","","","","","","","","",""]
[35,"","","","","","","","","","","","","","","",""]
[36,"","","","","","","","","","","","","","","",""]
[37,"","","","","","","","","","","","","","","",""]
[38,"","","","","","","","","","","","","","","",""]
[39,"","","","","","","","","","","","","","","",""]
[40,"","","","","","","","","","","","","","","",""]
[41,"","","","","","","","","","","","","","","",""]
[42,"","","","","","","","","","","","","","","",""]
[43,"","","","","","","","","","","","","","","",""]
[44,"","","","","","","","","","","","","","","",""]
[45,"","","","","","","","","","","","","","","",""]
[46,"","","","","","","","","","","","","","","",""]
[47,"","","","","","","","","",{"$f":"IF($C41>6,\"\",IF(K$5<=INDIRECT(\"PCO!\"&\"$i\"&$A41),\"X\",\"\"))","v":""},"","","","","",""]
[48,"","","",{"$f":"IF($C42>6,\"\",IF(E$5<=INDIRECT(\"PCO!\"&\"$i\"&$A42),\"X\",\"\"))","v":""},"","","","","","","","","","","",""]
[49,"","","","","","","","","","","","","","","",""]
[50,"","","","","","","","","","","","","","","",""]
[51,"","","","","","","","","","","","","","","",""]
[52,"","","","","","","","","","","","","","","",""]
[53,"","","","","","","","","","","","","","","",""]
[54,"","","","","","","","","","","","","","","",""]
[55,"","","","","","","","","","","","","","","",""]
[56,{"$f":"IF((INDIRECT(\"DCA!\"&\"$a\"&$A50))=0,\"\",INDIRECT(\"DCA!\"&\"$c\"&$A50))","v":""},{"$f":"IF(INDIRECT(\"DCA!\"&\"$a\"&$A50)=0,\"\",INDIRECT(\"DCA!\"&\"$b\"&$A50))","v":""},{"$f":"IF(INDIRECT(\"DCA!\"&\"$a\"&$A50)=0,\"\",INDIRECT(\"DCA!\"&\"$d\"&$A50))","v":""},{"$f":"IF($C50>6,\"\",IF(E$5<=INDIRECT(\"DCA!\"&\"$i\"&$A50),\"X\",\"\"))","v":""},"","","","","","","","","","","",""]

{"sheet":"rawlab","index":29,"n_rows":49,"n_cols":10,"rows_kept":49,"cut":false,"hidden":true,"merged":[[0,1,0,3],[0,4,0,9],[1,1,1,9],[4,1,5,3],[6,1,8,3]]}
[null,"Practical Workplan towards Achieving Rabies Elimination",null,null,"Prevention and Control"]
[null,"Blurb blurb blurb blah blurb blurb"]
[]
[]
[null,"Estimated years to elimination\n(based on the current SARE score)",null,null,null,"All stage 0 and 1 activities should ideally be completed within a 3-year period",null,null,null,{"$f":"IF('NW country'!$K$4<2,\"Years 1, 2 and 3\",\"--\")","v":"Years 1, 2 and 3"}]
[null,null,null,null,null,"All stage 2 activities should ideally be completed within a 3-year period",null,null,null,{"$f":"IF('NW country'!$K$4<2,\"Years 4, 5 and 6\",IF('NW country'!$K$4<3,\"Years 1, 2 and 3\",\"--\"))","v":"Years 4, 5 and 6"}]
[null,{"$f":"IF('NW country'!$K$4<2,13,IF('NW country'!$K$4<3,10,IF('NW country'!$K$4<4,7,IF('NW country'!$K$4<5,4,2))))","v":13},null,null,null,"All stage 3 activities should ideally be completed within a 3-year period",null,null,null,{"$f":"IF('NW country'!$K$4<2,\"Years 7, 8 and 9\",IF('NW country'!$K$4<3,\"Years 4, 5 and 6\",IF('NW country'!$K$4<4,\"Years 1, 2 and 3\",\"--\")))","v":"Years 7, 8 and 9"}]
[null,null,null,null,null,"All stage 4 activities should ideally be completed within a 2-year period",null,null,null,{"$f":"IF('NW country'!$K$4<2,\"Years 10 and 11\",IF('NW country'!$K$4<3,\"Years 7 and 8\",IF('NW country'!$K$4<4,\"Years 4 and 5\",IF('NW country'!$K$4<5,\"Years 1 and 2\",\"--\"))))","v":"Years 10 and 11"}]
[null,null,null,null,null,"All stage 5 activities should ideally be completed within a 2-year period",null,null,null,{"$f":"IF('NW country'!$K$4<2,\"Years 12 and 13\",IF('NW country'!$K$4<3,\"Years 9 and 10\",IF('NW country'!$K$4<4,\"Years 6 and 7\",IF('NW country'!$K$4<5,\"Years 3 and 4\",\"Years 1 and 2\"))))","v":"Years 12 and 13"}]
[]
[null,"Instructions : Veuillez modifier les Tâches, les Autorités responsables, le Calendrier et les  Résultats attendus selon les besoins."]
["ID","Étape","Theme","Activité","Remarques","Tâche","Outcomes","Autorité responsible","Calendrier (années)","Résultats attendus"]
[{"$f":"IF(ROWS($A$13:A13)<=(SUMPRODUCT((masterlist!B:B=\"LAB\")*(masterlist!J:J=0))),INDEX(masterlist!$C$2:$C$207,SMALL(IF(masterlist!$B$2:$B$207=\"LAB\",IF(masterlist!$F$2:$F$207>0,IF(masterlist!$J$2:$J$207=0,ROW(masterlist!$B$2:$B$207)-ROW(masterlist!$B$2)+1))),ROWS($A$13:A13))),\"\")","v":"LAB-Cap-2-5"},{"$f":"IFERROR(VLOOKUP($A13,masterlist!$C$2:$AA$207,3,FALSE),\"\")","v":2},{"$f":"IFERROR(VLOOKUP($A13,masterlist!$C$2:$AA$207,2,FALSE),\"\")","v":"Capacités des laboratoires et tests"},{"$f":"IFERROR(VLOOKUP($A13,masterlist!$C$2:$AD$207,28,FALSE),\"\")","v":"Effectuer des essais de compétence avec un laboratoire reconnu à l'échelle internationale."},{"$f":"IFERROR(IF((VLOOKUP($A13,masterlist!$C$2:$AA$207,9,FALSE))=0,\"\",VLOOKUP($A13,masterlist!$C$2:$AA$207,9,FALSE)),\"\")","v":""},{"$f":"IFERROR(VLOOKUP($A13,masterlist!$C$2:$AA$207,20,FALSE),\"\")","v":"• Contacter le laboratoire international de référence pour la rage (OMSA), le centre collaborateur (OMS) ou le centre de référence (FAO) avec lequel vous êtes en relation pour participer au prochain essai d'aptitude prévu ;\n• S'assurer que tous les documents, accords, permis et autorisations nécessaires ont été obtenus et complétés pour l'importation d'échantillons dans le pays ;\n• S'assurer que les échantillons destinés à l'essai d'aptitude arrivent au laboratoire \n• Tester tous les échantillons reçus pour l'essai d'aptitude conformément aux instructions du laboratoire international ;\n• Communiquer les résultats diagnostiques finaux de l'essai d'aptitude au laboratoire international ;\n• Obtenir les résultats finaux de l'essai d'aptitude auprès du laboratoire international ;\n• Discuter des résultats avec le laboratoire international et déterminer le meilleur plan d'action en fonction des résultats ;\n• Demander à être inclus dans les futurs tests régionaux de compétence en matière de rage."},{"$f":"IFERROR(VLOOKUP($A13,masterlist!$C$2:$AA$207,21,FALSE),\"\")","v":"The national laboratory undertakes proficiency testing regularly;"},{"$f":"IFERROR(VLOOKUP($A13,masterlist!$C$2:$AA$207,22,FALSE),\"\")","v":"Ministère de l’agriculture; \nMinistère de la santé"},{"$f":"IFERROR(IF($B$7=2,(VLOOKUP($A13,masterlist!$C$2:$AA$207,23,FALSE)-11),IF($B$7=4,(VLOOKUP($A13,masterlist!$C$2:$AA$207,23,FALSE)-9),IF($B$7=7,(VLOOKUP($A13,masterlist!$C$2:$AA$207,23,FALSE)-6),IF($B$7=10,(VLOOKUP($A13,masterlist!$C$2:$AA$207,23,FALSE)-3),(VLOOKUP($A13,masterlist!$C$2:$AA$207,23,FALSE)))))),\"\")","v":5},{"$f":"IFERROR(VLOOKUP($A13,masterlist!$C$2:$AA$207,24,FALSE),\"\")","v":"• Confirmation de la participation à un essai d'aptitude international.\n• Documentation relative aux permis et autorisations d'importation requis.\n• Accusé de réception de l'échantillon de la part du laboratoire international.\n• Retour d'information du laboratoire international sur les performances\n• Plan d'action visant à remédier aux insuffisances constatées (le cas échéant)."}]
[{"$f":"IF(ROWS($A$13:A14)<=(SUMPRODUCT((masterlist!B:B=\"LAB\")*(masterlist!J:J=0))),INDEX(masterlist!$C$2:$C$207,SMALL(IF(masterlist!$B$2:$B$207=\"LAB\",IF(masterlist!$F$2:$F$207>0,IF(masterlist!$J$2:$J$207=0,ROW(masterlist!$B$2:$B$207)-ROW(masterlist!$B$2)+1))),ROWS($A$13:A14))),\"\")","v":"LAB-Cap-2-6"},{"$f":"IFERROR(VLOOKUP($A14,masterlist!$C$2:$AA$207,3,FALSE),\"\")","v":2},{"$f":"IFERROR(VLOOKUP($A14,masterlist!$C$2:$AA$207,2,FALSE),\"\")","v":"Capacités des laboratoires et tests"},{"$f":"IFERROR(VLOOKUP($A14,masterlist!$C$2:$AD$207,28,FALSE),\"\")","v":"Mettre en place un système régulier de collecte et de transport de prélèvements dans tout le pays."},{"$f":"IFERROR(IF((VLOOKUP($A14,masterlist!$C$2:$AA$207,9,FALSE))=0,\"\",VLOOKUP($A14,masterlist!$C$2:$AA$207,9,FALSE)),\"\")","v":""},{"$f":"IFERROR(VLOOKUP($A14,masterlist!$C$2:$AA$207,20,FALSE),\"\")","v":"• Déterminer les lacunes existantes qui empêchent la collecte et la soumission régulières des prélèvements;\n• Identifier les moyens de surmonter ces lacunes ;\n• Élaborer un plan d'action et un budget pour surmonter les limites qui affectent la collecte et le transport des prélèvements dans le pays ;\n• Mettre en œuvre le plan d'action à petite échelle pour déterminer son efficacité ;\n• Adapter le plan d'action (si nécessaire) et le mettre en œuvre à l'échelle nationale ;\n• Réévaluer périodiquement la situation pour s'assurer que les prélèvements suspects de rage sont collectés et diagnostiqués dans le pays."},{"$f":"IFERROR(VLOOKUP($A14,masterlist!$C$2:$AA$207,21,FALSE),\"\")","v":"Regular sample collection and transportation to the laboratory has been established and is functioning;"},{"$f":"IFERROR(VLOOKUP($A14,masterlist!$C$2:$AA$207,22,FALSE),\"\")","v":"Ministère de l’agriculture (diagnostic de rage animale). \nMinistère de la santé (diagnostic de rage humaine)."},{"$f":"IFERROR(IF($B$7=2,(VLOOKUP($A14,masterlist!$C$2:$AA$207,23,FALSE)-11),IF($B$7=4,(VLOOKUP($A14,masterlist!$C$2:$AA$207,23,FALSE)-9),IF($B$7=7,(VLOOKUP($A14,masterlist!$C$2:$AA$207,23,FALSE)-6),IF($B$7=10,(VLOOKUP($A14,masterlist!$C$2:$AA$207,23,FALSE)-3),(VLOOKUP($A14,masterlist!$C$2:$AA$207,23,FALSE)))))),\"\")","v":5},{"$f":"IFERROR(VLOOKUP($A14,masterlist!$C$2:$AA$207,24,FALSE),\"\")","v":"• Rapport d'analyse des lacunes concernant les problèmes existants en matière de collecte et de soumission de prélèvements.\n• Plan d'action pour remédier aux limitations en matière de collecte et de soumission de prélèvements.\n• Rapport de mise en œuvre du plan d'action pilote.\n• Rapport de mise en œuvre à l'échelle nationale avec plan d'action adapté.\n• Rapports d'évaluation périodiques sur l'efficacité de la collecte et de la transmission des prélèvements."}]
[{"$f":"IF(ROWS($A$13:A15)<=(SUMPRODUCT((masterlist!B:B=\"LAB\")*(masterlist!J:J=0))),INDEX(masterlist!$C$2:$C$207,SMALL(IF(masterlist!$B$2:$B$207=\"LAB\",IF(masterlist!$F$2:$F$207>0,IF(masterlist!$J$2:$J$207=0,ROW(masterlist!$B$2:$B$207)-ROW(masterlist!$B$2)+1))),ROWS($A$13:A15))),\"\")","v":"LAB-Cap-2-7"},{"$f":"IFERROR(VLOOKUP($A15,masterlist!$C$2:$AA$207,3,FALSE),\"\")","v":2},{"$f":"IFERROR(VLOOKUP($A15,masterlist!$C$2:$AA$207,2,FALSE),\"\")","v":"Capacités des laboratoires et tests"},{"$f":"IFERROR(VLOOKUP($A15,masterlist!$C$2:$AD$207,28,FALSE),\"\")","v":"Diagnostiquer les prélèvements suspects de rage animale dans le pays la plupart (sinon tous) des mois de l'année."},{"$f":"IFERROR(IF((VLOOKUP($A15,masterlist!$C$2:$AA$207,9,FALSE))=0,\"\",VLOOKUP($A15,masterlist!$C$2:$AA$207,9,FALSE)),\"\")","v":""},{"$f":"IFERROR(VLOOKUP($A15,masterlist!$C$2:$AA$207,20,FALSE),\"\")","v":"• Déterminer les lacunes existantes associées aux activités de surveillance actuelles (par exemple, capacité d'identifier les signes de rage chez les animaux, capacité de tranquilliser et d'euthanasier en toute sécurité les animaux suspectés d'être enragés, etc);   \n• Déterminer les lacunes existantes associées à la collecte d'échantillons de routine (par exemple, les besoins de formation à la collecte d'échantillons, la disponibilité de consommables et de PPE, la mise à disposition de PrEP pour les professionnels de la santé animale, etc ;)\n• Déterminer les lacunes existantes liées à l'envoi des prélèvements au laboratoire le plus proche (par exemple, accès aux coursiers, carburant pour le transport des échantillons, etc.) ; \n• Déterminer les lacunes existantes liées au diagnostic des échantillons (par exemple, besoins de formation au diagnostic, accès aux réactifs et consommables, besoins en équipement de laboratoire) ; \n• Rédiger un rapport décrivant toutes les lacunes identifiées ;\n• Identifier des solutions potentielles pour surmonter toutes les lacunes identifiées ;\n• Élaborer un budget et assurer le financement nécessaire pour remédier aux lacunes ;\n• Remédier aux lacunes pour améliorer la collecte, la soumission et le diagnostic des échantillons ;\n• Réévaluer périodiquement la situation pour s'assurer que les échantillons suspects de rage sont collectés et diagnostiqués la plupart des mois de l'année dans l'ensemble du pays où la rage est présente."},{"$f":"IFERROR(VLOOKUP($A15,masterlist!$C$2:$AA$207,21,FALSE),\"\")","v":"Routine laboratory diagnosis for animal rabies is undertaken at a laboratory;"},{"$f":"IFERROR(VLOOKUP($A15,masterlist!$C$2:$AA$207,22,FALSE),\"\")","v":"Ministère de l’agriculture"},{"$f":"IFERROR(IF($B$7=2,(VLOOKUP($A15,masterlist!$C$2:$AA$207,23,FALSE)-11),IF($B$7=4,(VLOOKUP($A15,masterlist!$C$2:$AA$207,23,FALSE)-9),IF($B$7=7,(VLOOKUP($A15,masterlist!$C$2:$AA$207,23,FALSE)-6),IF($B$7=10,(VLOOKUP($A15,masterlist!$C$2:$AA$207,23,FALSE)-3),(VLOOKUP($A15,masterlist!$C$2:$AA$207,23,FALSE)))))),\"\")","v":6},{"$f":"IFERROR(VLOOKUP($A15,masterlist!$C$2:$AA$207,24,FALSE),\"\")","v":"• Rapports identifiant les lacunes en matière de surveillance, de collecte de prélèvements, de transport et de diagnostic.\n• Solutions et plans d'action documentés pour combler les lacunes.\n• Proposition de budget pour obtenir les ressources nécessaires.\n• Rapport de mise en œuvre démontrant l'amélioration de la capacité de diagnostic.\n• Rapports de réévaluation périodique de l'efficacité de la surveillance."}]
[{"$f":"IF(ROWS($A$13:A16)<=(SUMPRODUCT((masterlist!B:B=\"LAB\")*(masterlist!J:J=0))),INDEX(masterlist!$C$2:$C$207,SMALL(IF(masterlist!$B$2:$B$207=\"LAB\",IF(masterlist!$F$2:$F$207>0,IF(masterlist!$J$2:$J$207=0,ROW(masterlist!$B$2:$B$207)-ROW(masterlist!$B$2)+1))),ROWS($A$13:A16))),\"\")","v":"LAB-Cap-2-8"},{"$f":"IFERROR(VLOOKUP($A16,masterlist!$C$2:$AA$207,3,FALSE),\"\")","v":2},{"$f":"IFERROR(VLOOKUP($A16,masterlist!$C$2:$AA$207,2,FALSE),\"\")","v":"Capacités des laboratoires et tests"},{"$f":"IFERROR(VLOOKUP($A16,masterlist!$C$2:$AD$207,28,FALSE),\"\")","v":"Inclure la surveillance active (animaux trouvés morts, animaux tués sur la route, etc.) dans vos activités de surveillance de routine dans l'ensemble du pays."},{"$f":"IFERROR(IF((VLOOKUP($A16,masterlist!$C$2:$AA$207,9,FALSE))=0,\"\",VLOOKUP($A16,masterlist!$C$2:$AA$207,9,FALSE)),\"\")","v":""},{"$f":"IFERROR(VLOOKUP($A16,masterlist!$C$2:$AA$207,20,FALSE),\"\")","v":"• Assurer le financement de l'augmentation de la fréquence et de la distribution des échantillons envoyés pour le diagnostic de la rage dans le cadre d'un programme de surveillance active de la rage ;\n• Élaborer des protocoles, des formations et des ressources appropriés pour la mise en œuvre de la surveillance active de la rage dans le pays ;\n• Organiser une formation sur la surveillance active de la rage et ses différentes sources d'échantillons pour tous les professionnels de la santé animale ;\n• Fournir aux professionnels de la santé animale des ressources et des consommables suffisants pour entreprendre une surveillance active de la rage ; \n• Suivre la communication des données de surveillance pour s'assurer qu'une surveillance active de la rage est mise en place."},{"$f":"IFERROR(VLOOKUP($A16,masterlist!$C$2:$AA$207,21,FALSE),\"\")","v":"Frequent and rapid reporting, data collection, analysis and feedback occurs throughout the country on a regular basis. "},{"$f":"IFERROR(VLOOKUP($A16,masterlist!$C$2:$AA$207,22,FALSE),\"\")","v":"Ministère de l’agriculture"},{"$f":"IFERROR(IF($B$7=2,(VLOOKUP($A16,masterlist!$C$2:$AA$207,23,FALSE)-11),IF($B$7=4,(VLOOKUP($A16,masterlist!$C$2:$AA$207,23,FALSE)-9),IF($B$7=7,(VLOOKUP($A16,masterlist!$C$2:$AA$207,23,FALSE)-6),IF($B$7=10,(VLOOKUP($A16,masterlist!$C$2:$AA$207,23,FALSE)-3),(VLOOKUP($A16,masterlist!$C$2:$AA$207,23,FALSE)))))),\"\")","v":6},{"$f":"IFERROR(VLOOKUP($A16,masterlist!$C$2:$AA$207,24,FALSE),\"\")","v":"• Obtention d'un financement pour augmenter la collecte, la soumission et le diagnostic d'échantillons.\n• Élaboration de protocoles et de matériel de formation sur la surveillance active.\n• Registres des sessions de formation pour les professionnels de la santé animale.\n• Dossiers d'achat de ressources et de consommables.\n• Rapports de suivi montrant les résultats de la surveillance active."}]
[{"$f":"IF(ROWS($A$13:A17)<=(SUMPRODUCT((masterlist!B:B=\"LAB\")*(masterlist!J:J=0))),INDEX(masterlist!$C$2:$C$207,SMALL(IF(masterlist!$B$2:$B$207=\"LAB\",IF(masterlist!$F$2:$F$207>0,IF(masterlist!$J$2:$J$207=0,ROW(masterlist!$B$2:$B$207)-ROW(masterlist!$B$2)+1))),ROWS($A$13:A17))),\"\")","v":"LAB-Cap-3-9"},{"$f":"IFERROR(VLOOKUP($A17,masterlist!$C$2:$AA$207,3,FALSE),\"\")","v":3},{"$f":"IFERROR(VLOOKUP($A17,masterlist!$C$2:$AA$207,2,FALSE),\"\")","v":"Capacités des laboratoires et tests"},{"$f":"IFERROR(VLOOKUP($A17,masterlist!$C$2:$AD$207,28,FALSE),\"\")","v":"Garantir l'accès à des diagnostics de laboratoire fiables et rapides dans tout le pays pour les prélèvements d'animaux (et si possible également pour les prélèvements humains et d'animaux sauvages)."},{"$f":"IFERROR(IF((VLOOKUP($A17,masterlist!$C$2:$AA$207,9,FALSE))=0,\"\",VLOOKUP($A17,masterlist!$C$2:$AA$207,9,FALSE)),\"\")","v":""},{"$f":"IFERROR(VLOOKUP($A17,masterlist!$C$2:$AA$207,20,FALSE),\"\")","v":"• Identifier les zones du pays où l'accès à un diagnostic de laboratoire fiable n'est pas possible ;\n• Déterminer les raisons pour lesquelles un diagnostic de laboratoire fiable n'est pas accessible dans ces zones ; \n• Déterminer comment surmonter les lacunes identifiées (par exemple, mauvaise collecte et transport des prélèvements, manque de réactifs, manque de personnel formé, etc.) ;\n• Obtenir le financement nécessaire pour remédier aux lacunes identifiées ;\n• Mettre en œuvre les changements nécessaires pour remédier aux lacunes identifiées ;\n• Contrôler régulièrement la fréquence de soumission de prélèvements et de diagnostic dans les zones identifiées."},{"$f":"IFERROR(VLOOKUP($A17,masterlist!$C$2:$AA$207,21,FALSE),\"\")","v":"Suspect rabies samples from various sources are collected throughout the country are routinely diagnosed"},{"$f":"IFERROR(VLOOKUP($A17,masterlist!$C$2:$AA$207,22,FALSE),\"\")","v":"Ministère de l’agriculture"},{"$f":"IFERROR(IF($B$7=2,(VLOOKUP($A17,masterlist!$C$2:$AA$207,23,FALSE)-11),IF($B$7=4,(VLOOKUP($A17,masterlist!$C$2:$AA$207,23,FALSE)-9),IF($B$7=7,(VLOOKUP($A17,masterlist!$C$2:$AA$207,23,FALSE)-6),IF($B$7=10,(VLOOKUP($A17,masterlist!$C$2:$AA$207,23,FALSE)-3),(VLOOKUP($A17,masterlist!$C$2:$AA$207,23,FALSE)))))),\"\")","v":8},{"$f":"IFERROR(VLOOKUP($A17,masterlist!$C$2:$AA$207,24,FALSE),\"\")","v":"• Rapport sur les régions qui n'ont pas accès au diagnostic, y compris analyse des difficultés d'accès au diagnostic.\n• Plan de mise en œuvre pour combler les lacunes.\n• Financement assuré pour les améliorations requises.\n• Rapports de suivi montrant l'amélioration de l'accessibilité au diagnostic."}]
[{"$f":"IF(ROWS($A$13:A18)<=(SUMPRODUCT((masterlist!B:B=\"LAB\")*(masterlist!J:J=0))),INDEX(masterlist!$C$2:$C$207,SMALL(IF(masterlist!$B$2:$B$207=\"LAB\",IF(masterlist!$F$2:$F$207>0,IF(masterlist!$J$2:$J$207=0,ROW(masterlist!$B$2:$B$207)-ROW(masterlist!$B$2)+1))),ROWS($A$13:A18))),\"\")","v":"LAB-Cap-3-10"},{"$f":"IFERROR(VLOOKUP($A18,masterlist!$C$2:$AA$207,3,FALSE),\"\")","v":3},{"$f":"IFERROR(VLOOKUP($A18,masterlist!$C$2:$AA$207,2,FALSE),\"\")","v":"Capacités des laboratoires et tests"},{"$f":"IFERROR(VLOOKUP($A18,masterlist!$C$2:$AD$207,28,FALSE),\"\")","v":"Évaluer régulièrement la capacité du pays à diagnostiquer avec certitude les échantillons suspects de rage."},{"$f":"IFERROR(IF((VLOOKUP($A18,masterlist!$C$2:$AA$207,9,FALSE))=0,\"\",VLOOKUP($A18,masterlist!$C$2:$AA$207,9,FALSE)),\"\")","v":""},{"$f":"IFERROR(VLOOKUP($A18,masterlist!$C$2:$AA$207,20,FALSE),\"\")","v":"• Contacter le laboratoire international de référence pour la rage (OMSA), le centre collaborateur (OMS) ou le centre de référence (FAO) avec lequel vous êtes en relation pour évaluer votre capacité à entreprendre le diagnostic de la rage ;\n• Déterminer si un protocole d'accord doit être établi et le finaliser si nécessaire ;\n• Compiler une cohorte d'échantillons diagnostiqués précédemment comme positifs ou négatifs pour la rage ;\n• Déterminer les exigences en matière de messagerie (par ex. emballage et permis) et les frais associés à l'envoi des échantillons ;\n• Obtenir le financement et envoyer les échantillons ; \n• S'assurer que le laboratoire international reçoit les échantillons et les analyse ;  \n• Comparer et discuter des résultats avec le laboratoire international et déterminer le meilleur plan d'action. \n• Programmer la prochaine évaluation dans un délai réaliste (par exemple, chaque année) pour garantir la continuité d'un diagnostic cohérent et précis de la rage dans le pays."},{"$f":"IFERROR(VLOOKUP($A18,masterlist!$C$2:$AA$207,21,FALSE),\"\")","v":"A representative sample cohort is sent to an international rabies reference laboratory for diagnostic confirmation and evaluation"},{"$f":"IFERROR(VLOOKUP($A18,masterlist!$C$2:$AA$207,22,FALSE),\"\")","v":"Ministère de l’agriculture (diagnostic de rage animale). \nMinistère de la santé (diagnostic de rage humaine)."},{"$f":"IFERROR(IF($B$7=2,(VLOOKUP($A18,masterlist!$C$2:$AA$207,23,FALSE)-11),IF($B$7=4,(VLOOKUP($A18,masterlist!$C$2:$AA$207,23,FALSE)-9),IF($B$7=7,(VLOOKUP($A18,masterlist!$C$2:$AA$207,23,FALSE)-6),IF($B$7=10,(VLOOKUP($A18,masterlist!$C$2:$AA$207,23,FALSE)-3),(VLOOKUP($A18,masterlist!$C$2:$AA$207,23,FALSE)))))),\"\")","v":9},{"$f":"IFERROR(VLOOKUP($A18,masterlist!$C$2:$AA$207,24,FALSE),\"\")","v":"• Accord avec un laboratoire international de la rage pour évaluer la capacité nationale de diagnostic.\n• Protocole d'accord ou accord formel (si nécessaire).\n• Dossiers de soumission d'échantillons pour la validation externe.\n• Rapport d'analyse comparative des résultats des tests nationaux et internationaux.\n• Plan d'action pour remédier aux insuffisances de la capacité de diagnostic."}]
[{"$f":"IF(ROWS($A$13:A19)<=(SUMPRODUCT((masterlist!B:B=\"LAB\")*(masterlist!J:J=0))),INDEX(masterlist!$C$2:$C$207,SMALL(IF(masterlist!$B$2:$B$207=\"LAB\",IF(masterlist!$F$2:$F$207>0,IF(masterlist!$J$2:$J$207=0,ROW(masterlist!$B$2:$B$207)-ROW(masterlist!$B$2)+1))),ROWS($A$13:A19))),\"\")","v":"LAB-Cap-4-11"},{"$f":"IFERROR(VLOOKUP($A19,masterlist!$C$2:$AA$207,3,FALSE),\"\")","v":4},{"$f":"IFERROR(VLOOKUP($A19,masterlist!$C$2:$AA$207,2,FALSE),\"\")","v":"Capacités des laboratoires et tests"},{"$f":"IFERROR(VLOOKUP($A19,masterlist!$C$2:$AD$207,28,FALSE),\"\")","v":"Maintenant qu'il y a très peu de cas de rage animale dans le pays, il faut s'assurer qu'un diagnostic de laboratoire est opérationnel pour tous les cas suspects chez les chiens dans le pays."},{"$f":"IFERROR(IF((VLOOKUP($A19,masterlist!$C$2:$AA$207,9,FALSE))=0,\"\",VLOOKUP($A19,masterlist!$C$2:$AA$207,9,FALSE)),\"\")","v":""},{"$f":"IFERROR(VLOOKUP($A19,masterlist!$C$2:$AA$207,20,FALSE),\"\")","v":"• Partager toutes les procédures opérationnelles standard appropriées pour la collecte et le transport des échantillons et le diagnostic en laboratoire avec les nouveaux professionnels dans tout le pays ;\n• Former les professionnels à toutes les activités pertinentes de surveillance de la rage (par exemple, collecte et transport des prélèvements, diagnostic en laboratoire, etc.) \n• Veiller à ce qu'un financement et des ressources adéquats restent disponibles pour la poursuite des activités de surveillance.\n• Veiller à ce que tous les cas suspects de rage signalés soient diagnostiqués en laboratoire en comparant les données communiquées par le terrain aux données de laboratoire."},{"$f":"IFERROR(VLOOKUP($A19,masterlist!$C$2:$AA$207,21,FALSE),\"\")","v":"Existing and adequate surveillance activites are maintained throughout the country; "},{"$f":"IFERROR(VLOOKUP($A19,masterlist!$C$2:$AA$207,22,FALSE),\"\")","v":"Ministère de l’agriculture"},{"$f":"IFERROR(IF($B$7=2,(VLOOKUP($A19,masterlist!$C$2:$AA$207,23,FALSE)-11),IF($B$7=4,(VLOOKUP($A19,masterlist!$C$2:$AA$207,23,FALSE)-9),IF($B$7=7,(VLOOKUP($A19,masterlist!$C$2:$AA$207,23,FALSE)-6),IF($B$7=10,(VLOOKUP($A19,masterlist!$C$2:$AA$207,23,FALSE)-3),(VLOOKUP($A19,masterlist!$C$2:$AA$207,23,FALSE)))))),\"\")","v":10},{"$f":"IFERROR(VLOOKUP($A19,masterlist!$C$2:$AA$207,24,FALSE),\"\")","v":"• Liste des nouveaux professionnels ayant reçu des POS pour la surveillance de la rage.\n• Comptes-rendus de formation des nouveaux professionnels à la surveillance de la rage.\n• Financement assuré et acquisition de ressources pour la poursuite de la surveillance.\n• Rapports réguliers comparant les cas déclarés et confirmés.\n• Plan d'action pour combler les lacunes dans le lien entre surveillance et déclaration."}]
[{"$f":"IF(ROWS($A$13:A20)<=(SUMPRODUCT((masterlist!B:B=\"LAB\")*(masterlist!J:J=0))),INDEX(masterlist!$C$2:$C$207,SMALL(IF(masterlist!$B$2:$B$207=\"LAB\",IF(masterlist!$F$2:$F$207>0,IF(masterlist!$J$2:$J$207=0,ROW(masterlist!$B$2:$B$207)-ROW(masterlist!$B$2)+1))),ROWS($A$13:A20))),\"\")","v":"LAB-Cap-4-12"},{"$f":"IFERROR(VLOOKUP($A20,masterlist!$C$2:$AA$207,3,FALSE),\"\")","v":4},{"$f":"IFERROR(VLOOKUP($A20,masterlist!$C$2:$AA$207,2,FALSE),\"\")","v":"Capacités des laboratoires et tests"},{"$f":"IFERROR(VLOOKUP($A20,masterlist!$C$2:$AD$207,28,FALSE),\"\")","v":"Caractériser et analyser régulièrement les variants du virus de la rage en circulation dans un laboratoire national ou international."},{"$f":"IFERROR(IF((VLOOKUP($A20,masterlist!$C$2:$AA$207,9,FALSE))=0,\"\",VLOOKUP($A20,masterlist!$C$2:$AA$207,9,FALSE)),\"\")","v":""},{"$f":"IFERROR(VLOOKUP($A20,masterlist!$C$2:$AA$207,20,FALSE),\"\")","v":"•\tIdentifier les laboratoires nationaux ou internationaux capables de caractériser les variants du virus de la rage en circulation ;\n\nSi la caractérisation des variants du virus peut être effectuée dans un laboratoire national\n• S'assurer que le laboratoire dispose des capacités et des ressources nécessaires à la caractérisation régulière des échantillons ;\n• Soumettre régulièrement des échantillons positifs pour la rage en vue de leur caractérisation ;\n• S'assurer que les résultats sont régulièrement communiqués par le laboratoire à toutes les parties prenantes concernées ;\n• Assurer la soumission continue et régulière d'échantillons positifs pour la rage en vue de leur caractérisation.\n\nSi la caractérisation des variants du virus doit être effectuée dans un laboratoire international\n• Contacter le laboratoire international de référence pour la rage (OMSA), le centre collaborateur (OMS) ou le centre de référence (FAO) avec lequel vous êtes en relation pour déterminer si un accord peut être conclu pour qu'ils caractérisent régulièrement les variants du virus de la rage pour votre pays ;\n• Déterminer si un protocole d'accord doit être établi et le finaliser le cas échéant ; Déterminer les exigences en matière de messagerie (par exemple, l'emballage et les permis) et les frais liés à l'envoi régulier de prélèvements au laboratoire international ; \n• Assurer le financement de l'envoi régulier de prélèvements;\n• Soumettre régulièrement des prélèvements positifs pour la rage en vue de leur caractérisation ;\n• Veiller à ce que le laboratoire international établisse des rapports et fournisse des analyses concernant les résultats. \n• Assurer la soumission continue et régulière des prélèvements positifs pour la rage en vue de leur caractérisation et des rapports ultérieurs sur les résultats."},{"$f":"IFERROR(VLOOKUP($A20,masterlist!$C$2:$AA$207,21,FALSE),\"\")","v":"Regular characterization and analysis of circulating rabies virus variants undertaken;"},{"$f":"IFERROR(VLOOKUP($A20,masterlist!$C$2:$AA$207,22,FALSE),\"\")","v":"Ministère de l’agriculture"},{"$f":"IFERROR(IF($B$7=2,(VLOOKUP($A20,masterlist!$C$2:$AA$207,23,FALSE)-11),IF($B$7=4,(VLOOKUP($A20,masterlist!$C$2:$AA$207,23,FALSE)-9),IF($B$7=7,(VLOOKUP($A20,masterlist!$C$2:$AA$207,23,FALSE)-6),IF($B$7=10,(VLOOKUP($A20,masterlist!$C$2:$AA$207,23,FALSE)-3),(VLOOKUP($A20,masterlist!$C$2:$AA$207,23,FALSE)))))),\"\")","v":11},{"$f":"IFERROR(VLOOKUP($A20,masterlist!$C$2:$AA$207,24,FALSE),\"\")","v":"Si elle est effectuée dans un laboratoire national :\n• Rapport d'évaluation des capacités de caractérisation du virus.\n• Dossiers de soumission d'échantillons pour l'analyse dans le pays.\n• Rapports des parties prenantes sur les résultats de la caractérisation des variants.\n\nS'il s'agit d'un laboratoire international :\n• Accord avec un laboratoire international pour la caractérisation régulière du virus.\n• Dossiers d'expédition des échantillons et confirmation du financement.\n• Rapports réguliers de caractérisation des variants reçus, analysés et partagés avec les parties prenantes concernées."}]
[{"$f":"IF(ROWS($A$13:A21)<=(SUMPRODUCT((masterlist!B:B=\"LAB\")*(masterlist!J:J=0))),INDEX(masterlist!$C$2:$C$207,SMALL(IF(masterlist!$B$2:$B$207=\"LAB\",IF(masterlist!$F$2:$F$207>0,IF(masterlist!$J$2:$J$207=0,ROW(masterlist!$B$2:$B$207)-ROW(masterlist!$B$2)+1))),ROWS($A$13:A21))),\"\")","v":"LAB-Cap-4-13"},{"$f":"IFERROR(VLOOKUP($A21,masterlist!$C$2:$AA$207,3,FALSE),\"\")","v":4},{"$f":"IFERROR(VLOOKUP($A21,masterlist!$C$2:$AA$207,2,FALSE),\"\")","v":"Capacités des laboratoires et tests"},{"$f":"IFERROR(VLOOKUP($A21,masterlist!$C$2:$AD$207,28,FALSE),\"\")","v":"Si des variantes terrestres de la rage sont présentes dans le pays, veiller à ce que des prélèvements d'animaux sauvages soient régulièrement soumis à un diagnostic de rage en laboratoire."},{"$f":"IFERROR(IF((VLOOKUP($A21,masterlist!$C$2:$AA$207,9,FALSE))=0,\"\",VLOOKUP($A21,masterlist!$C$2:$AA$207,9,FALSE)),\"\")","v":""},{"$f":"IFERROR(VLOOKUP($A21,masterlist!$C$2:$AA$207,20,FALSE),\"\")","v":"• Identifier les zones du pays où la faune sauvage terrestre est présente ;\n• Identifier les professionnels compétents responsables de la surveillance de la rage dans les zones identifiées ; \n• Élaborer et finaliser un mode opératoire standardisé pour la surveillance de la rage chez la faune sauvage dans les zones identifiées ;\n• Assurer un financement adéquat, une formation appropriée et une allocation de ressources suffisante pour la mise en œuvre de la surveillance de la rage de la faune sauvage dans les zones identifiées ;\n• Contrôler régulièrement la fréquence de soumission de prélèvements de faune sauvage terrestre et de diagnostic en provenance des zones identifiées."},{"$f":"IFERROR(VLOOKUP($A21,masterlist!$C$2:$AA$207,21,FALSE),\"\")","v":"Terrestrial wildlife (carnivore) samples have been submitted to the laboratory for rabies diagnosis;"},{"$f":"IFERROR(VLOOKUP($A21,masterlist!$C$2:$AA$207,22,FALSE),\"\")","v":"Ministère de l’agriculture"},{"$f":"IFERROR(IF($B$7=2,(VLOOKUP($A21,masterlist!$C$2:$AA$207,23,FALSE)-11),IF($B$7=4,(VLOOKUP($A21,masterlist!$C$2:$AA$207,23,FALSE)-9),IF($B$7=7,(VLOOKUP($A21,masterlist!$C$2:$AA$207,23,FALSE)-6),IF($B$7=10,(VLOOKUP($A21,masterlist!$C$2:$AA$207,23,FALSE)-3),(VLOOKUP($A21,masterlist!$C$2:$AA$207,23,FALSE)))))),\"\")","v":11},{"$f":"IFERROR(VLOOKUP($A21,masterlist!$C$2:$AA$207,24,FALSE),\"\")","v":"• Rapport sur les zones à risque identifiées pour la faune sauvage.\n• Liste des professionnels responsables de la surveillance de la faune sauvage.\n• Procédures opérationnelles standardisées pour la collecte et la soumission de prélèvements d'animaux sauvages atteints de la rage.\n• Rapports sur les sessions de formation destinées aux équipes de surveillance de la faune sauvage.\n• Rapports de suivi sur la soumission des prélèvements et les résultats des tests."}]
[{"$f":"IF(ROWS($A$13:A22)<=(SUMPRODUCT((masterlist!B:B=\"LAB\")*(masterlist!J:J=0))),INDEX(masterlist!$C$2:$C$207,SMALL(IF(masterlist!$B$2:$B$207=\"LAB\",IF(masterlist!$F$2:$F$207>0,IF(masterlist!$J$2:$J$207=0,ROW(masterlist!$B$2:$B$207)-ROW(masterlist!$B$2)+1))),ROWS($A$13:A22))),\"\")","v":"LAB-Cap-5-14"},{"$f":"IFERROR(VLOOKUP($A22,masterlist!$C$2:$AA$207,3,FALSE),\"\")","v":5},{"$f":"IFERROR(VLOOKUP($A22,masterlist!$C$2:$AA$207,2,FALSE),\"\")","v":"Capacités des laboratoires et tests"},{"$f":"IFERROR(VLOOKUP($A22,masterlist!$C$2:$AD$207,28,FALSE),\"\")","v":"Même si le pays est exempt de rage canine grâce à des campagnes de vaccination de masse réussies, il convient de veiller à ce que tous les cas suspects chez les espèces domestiques et celles de la faune sauvage terrestre fassent l'objet d'enquêtes de laboratoire permanentes dans le pays."},{"$f":"IFERROR(IF((VLOOKUP($A22,masterlist!$C$2:$AA$207,9,FALSE))=0,\"\",VLOOKUP($A22,masterlist!$C$2:$AA$207,9,FALSE)),\"\")","v":""},{"$f":"IFERROR(VLOOKUP($A22,masterlist!$C$2:$AA$207,20,FALSE),\"\")","v":"• Partager les définitions des cas de rage et les procédures opérationnelles standardisées pour l'identification des cas suspects de rage, les prélèvements, le transport et le diagnostic en laboratoire avec les nouveaux professionnels dans tout le pays ;\n• Former les professionnels à toutes les activités pertinentes de surveillance de la rage (par exemple, le prélèvement d'échantillons, le transport de prélèvements, le diagnostic en laboratoire, etc.) ;\n• Veiller à ce qu'un financement et des ressources adéquats restent disponibles pour poursuivre les activités de surveillance."},{"$f":"IFERROR(VLOOKUP($A22,masterlist!$C$2:$AA$207,21,FALSE),\"\")","v":"On-going laboratory investigations of all suspected rabies cases in domestic and terrestrial wildlife species in the country are undertaken; "},{"$f":"IFERROR(VLOOKUP($A22,masterlist!$C$2:$AA$207,22,FALSE),\"\")","v":"Ministère de l’agriculture"},{"$f":"IFERROR(IF($B$7=2,(VLOOKUP($A22,masterlist!$C$2:$AA$207,23,FALSE)-11),IF($B$7=4,(VLOOKUP($A22,masterlist!$C$2:$AA$207,23,FALSE)-9),IF($B$7=7,(VLOOKUP($A22,masterlist!$C$2:$AA$207,23,FALSE)-6),IF($B$7=10,(VLOOKUP($A22,masterlist!$C$2:$AA$207,23,FALSE)-3),(VLOOKUP($A22,masterlist!$C$2:$AA$207,23,FALSE)))))),\"\")","v":13},{"$f":"IFERROR(VLOOKUP($A22,masterlist!$C$2:$AA$207,24,FALSE),\"\")","v":"• Liste des nouveaux professionnels qui ont reçu des modes opératoires standardisés pour les activités de surveillance.\n• Dossiers de formation du personnel concerné.\n• Rapports sur le financement et l'affectation des ressources pour la poursuite de la surveillance.\n• Rapports réguliers sur les examens de laboratoire de tous les cas suspects de rage animale."}]
[{"$f":"IF(ROWS($A$13:A23)<=(SUMPRODUCT((masterlist!B:B=\"LAB\")*(masterlist!J:J=0))),INDEX(masterlist!$C$2:$C$207,SMALL(IF(masterlist!$B$2:$B$207=\"LAB\",IF(masterlist!$F$2:$F$207>0,IF(masterlist!$J$2:$J$207=0,ROW(masterlist!$B$2:$B$207)-ROW(masterlist!$B$2)+1))),ROWS($A$13:A23))),\"\")","v":""},{"$f":"IFERROR(VLOOKUP($A23,masterlist!$C$2:$AA$207,3,FALSE),\"\")","v":""},{"$f":"IFERROR(VLOOKUP($A23,masterlist!$C$2:$AA$207,2,FALSE),\"\")","v":""},{"$f":"IFERROR(VLOOKUP($A23,masterlist!$C$2:$AD$207,28,FALSE),\"\")","v":""},{"$f":"IFERROR(IF((VLOOKUP($A23,masterlist!$C$2:$AA$207,9,FALSE))=0,\"\",VLOOKUP($A23,masterlist!$C$2:$AA$207,9,FALSE)),\"\")","v":""},{"$f":"IFERROR(VLOOKUP($A23,masterlist!$C$2:$AA$207,20,FALSE),\"\")","v":""},{"$f":"IFERROR(VLOOKUP($A23,masterlist!$C$2:$AA$207,21,FALSE),\"\")","v":""},{"$f":"IFERROR(VLOOKUP($A23,masterlist!$C$2:$AA$207,22,FALSE),\"\")","v":""},{"$f":"IFERROR(IF($B$7=2,(VLOOKUP($A23,masterlist!$C$2:$AA$207,23,FALSE)-11),IF($B$7=4,(VLOOKUP($A23,masterlist!$C$2:$AA$207,23,FALSE)-9),IF($B$7=7,(VLOOKUP($A23,masterlist!$C$2:$AA$207,23,FALSE)-6),IF($B$7=10,(VLOOKUP($A23,masterlist!$C$2:$AA$207,23,FALSE)-3),(VLOOKUP($A23,masterlist!$C$2:$AA$207,23,FALSE)))))),\"\")","v":""},{"$f":"IFERROR(VLOOKUP($A23,masterlist!$C$2:$AA$207,24,FALSE),\"\")","v":""}]
[{"$f":"IF(ROWS($A$13:A24)<=(SUMPRODUCT((masterlist!B:B=\"LAB\")*(masterlist!J:J=0))),INDEX(masterlist!$C$2:$C$207,SMALL(IF(masterlist!$B$2:$B$207=\"LAB\",IF(masterlist!$F$2:$F$207>0,IF(masterlist!$J$2:$J$207=0,ROW(masterlist!$B$2:$B$207)-ROW(masterlist!$B$2)+1))),ROWS($A$13:A24))),\"\")","v":""},{"$f":"IFERROR(VLOOKUP($A24,masterlist!$C$2:$AA$207,3,FALSE),\"\")","v":""},{"$f":"IFERROR(VLOOKUP($A24,masterlist!$C$2:$AA$207,2,FALSE),\"\")","v":""},{"$f":"IFERROR(VLOOKUP($A24,masterlist!$C$2:$AD$207,28,FALSE),\"\")","v":""},{"$f":"IFERROR(IF((VLOOKUP($A24,masterlist!$C$2:$AA$207,9,FALSE))=0,\"\",VLOOKUP($A24,masterlist!$C$2:$AA$207,9,FALSE)),\"\")","v":""},{"$f":"IFERROR(VLOOKUP($A24,masterlist!$C$2:$AA$207,20,FALSE),\"\")","v":""},{"$f":"IFERROR(VLOOKUP($A24,masterlist!$C$2:$AA$207,21,FALSE),\"\")","v":""},{"$f":"IFERROR(VLOOKUP($A24,masterlist!$C$2:$AA$207,22,FALSE),\"\")","v":""},{"$f":"IFERROR(IF($B$7=2,(VLOOKUP($A24,masterlist!$C$2:$AA$207,23,FALSE)-11),IF($B$7=4,(VLOOKUP($A24,masterlist!$C$2:$AA$207,23,FALSE)-9),IF($B$7=7,(VLOOKUP($A24,masterlist!$C$2:$AA$207,23,FALSE)-6),IF($B$7=10,(VLOOKUP($A24,masterlist!$C$2:$AA$207,23,FALSE)-3),(VLOOKUP($A24,masterlist!$C$2:$AA$207,23,FALSE)))))),\"\")","v":""},{"$f":"IFERROR(VLOOKUP($A24,masterlist!$C$2:$AA$207,24,FALSE),\"\")","v":""}]
[{"$f":"IF(ROWS($A$13:A25)<=(SUMPRODUCT((masterlist!B:B=\"LAB\")*(masterlist!J:J=0))),INDEX(masterlist!$C$2:$C$207,SMALL(IF(masterlist!$B$2:$B$207=\"LAB\",IF(masterlist!$F$2:$F$207>0,IF(masterlist!$J$2:$J$207=0,ROW(masterlist!$B$2:$B$207)-ROW(masterlist!$B$2)+1))),ROWS($A$13:A25))),\"\")","v":""},{"$f":"IFERROR(VLOOKUP($A25,masterlist!$C$2:$AA$207,3,FALSE),\"\")","v":""},{"$f":"IFERROR(VLOOKUP($A25,masterlist!$C$2:$AA$207,2,FALSE),\"\")","v":""},{"$f":"IFERROR(VLOOKUP($A25,masterlist!$C$2:$AD$207,28,FALSE),\"\")","v":""},{"$f":"IFERROR(IF((VLOOKUP($A25,masterlist!$C$2:$AA$207,9,FALSE))=0,\"\",VLOOKUP($A25,masterlist!$C$2:$AA$207,9,FALSE)),\"\")","v":""},{"$f":"IFERROR(VLOOKUP($A25,masterlist!$C$2:$AA$207,20,FALSE),\"\")","v":""},{"$f":"IFERROR(VLOOKUP($A25,masterlist!$C$2:$AA$207,21,FALSE),\"\")","v":""},{"$f":"IFERROR(VLOOKUP($A25,masterlist!$C$2:$AA$207,22,FALSE),\"\")","v":""},{"$f":"IFERROR(IF($B$7=2,(VLOOKUP($A25,masterlist!$C$2:$AA$207,23,FALSE)-11),IF($B$7=4,(VLOOKUP($A25,masterlist!$C$2:$AA$207,23,FALSE)-9),IF($B$7=7,(VLOOKUP($A25,masterlist!$C$2:$AA$207,23,FALSE)-6),IF($B$7=10,(VLOOKUP($A25,masterlist!$C$2:$AA$207,23,FALSE)-3),(VLOOKUP($A25,masterlist!$C$2:$AA$207,23,FALSE)))))),\"\")","v":""},{"$f":"IFERROR(VLOOKUP($A25,masterlist!$C$2:$AA$207,24,FALSE),\"\")","v":""}]
[{"$f":"IF(ROWS($A$13:A26)<=(SUMPRODUCT((masterlist!B:B=\"LAB\")*(masterlist!J:J=0))),INDEX(masterlist!$C$2:$C$207,SMALL(IF(masterlist!$B$2:$B$207=\"LAB\",IF(masterlist!$F$2:$F$207>0,IF(masterlist!$J$2:$J$207=0,ROW(masterlist!$B$2:$B$207)-ROW(masterlist!$B$2)+1))),ROWS($A$13:A26))),\"\")","v":""},{"$f":"IFERROR(VLOOKUP($A26,masterlist!$C$2:$AA$207,3,FALSE),\"\")","v":""},{"$f":"IFERROR(VLOOKUP($A26,masterlist!$C$2:$AA$207,2,FALSE),\"\")","v":""},{"$f":"IFERROR(VLOOKUP($A26,masterlist!$C$2:$AD$207,28,FALSE),\"\")","v":""},{"$f":"IFERROR(IF((VLOOKUP($A26,masterlist!$C$2:$AA$207,9,FALSE))=0,\"\",VLOOKUP($A26,masterlist!$C$2:$AA$207,9,FALSE)),\"\")","v":""},{"$f":"IFERROR(VLOOKUP($A26,masterlist!$C$2:$AA$207,20,FALSE),\"\")","v":""},{"$f":"IFERROR(VLOOKUP($A26,masterlist!$C$2:$AA$207,21,FALSE),\"\")","v":""},{"$f":"IFERROR(VLOOKUP($A26,masterlist!$C$2:$AA$207,22,FALSE),\"\")","v":""},{"$f":"IFERROR(IF($B$7=2,(VLOOKUP($A26,masterlist!$C$2:$AA$207,23,FALSE)-11),IF($B$7=4,(VLOOKUP($A26,masterlist!$C$2:$AA$207,23,FALSE)-9),IF($B$7=7,(VLOOKUP($A26,masterlist!$C$2:$AA$207,23,FALSE)-6),IF($B$7=10,(VLOOKUP($A26,masterlist!$C$2:$AA$207,23,FALSE)-3),(VLOOKUP($A26,masterlist!$C$2:$AA$207,23,FALSE)))))),\"\")","v":""},{"$f":"IFERROR(VLOOKUP($A26,masterlist!$C$2:$AA$207,24,FALSE),\"\")","v":""}]
[{"$f":"IF(ROWS($A$13:A27)<=(SUMPRODUCT((masterlist!B:B=\"LAB\")*(masterlist!J:J=0))),INDEX(masterlist!$C$2:$C$207,SMALL(IF(masterlist!$B$2:$B$207=\"LAB\",IF(masterlist!$F$2:$F$207>0,IF(masterlist!$J$2:$J$207=0,ROW(masterlist!$B$2:$B$207)-ROW(masterlist!$B$2)+1))),ROWS($A$13:A27))),\"\")","v":""},{"$f":"IFERROR(VLOOKUP($A27,masterlist!$C$2:$AA$207,3,FALSE),\"\")","v":""},{"$f":"IFERROR(VLOOKUP($A27,masterlist!$C$2:$AA$207,2,FALSE),\"\")","v":""},{"$f":"IFERROR(VLOOKUP($A27,masterlist!$C$2:$AD$207,28,FALSE),\"\")","v":""},{"$f":"IFERROR(IF((VLOOKUP($A27,masterlist!$C$2:$AA$207,9,FALSE))=0,\"\",VLOOKUP($A27,masterlist!$C$2:$AA$207,9,FALSE)),\"\")","v":""},{"$f":"IFERROR(VLOOKUP($A27,masterlist!$C$2:$AA$207,20,FALSE),\"\")","v":""},{"$f":"IFERROR(VLOOKUP($A27,masterlist!$C$2:$AA$207,21,FALSE),\"\")","v":""},{"$f":"IFERROR(VLOOKUP($A27,masterlist!$C$2:$AA$207,22,FALSE),\"\")","v":""},{"$f":"IFERROR(IF($B$7=2,(VLOOKUP($A27,masterlist!$C$2:$AA$207,23,FALSE)-11),IF($B$7=4,(VLOOKUP($A27,masterlist!$C$2:$AA$207,23,FALSE)-9),IF($B$7=7,(VLOOKUP($A27,masterlist!$C$2:$AA$207,23,FALSE)-6),IF($B$7=10,(VLOOKUP($A27,masterlist!$C$2:$AA$207,23,FALSE)-3),(VLOOKUP($A27,masterlist!$C$2:$AA$207,23,FALSE)))))),\"\")","v":""},{"$f":"IFERROR(VLOOKUP($A27,masterlist!$C$2:$AA$207,24,FALSE),\"\")","v":""}]
[{"$f":"IF(ROWS($A$13:A28)<=(SUMPRODUCT((masterlist!B:B=\"LAB\")*(masterlist!J:J=0))),INDEX(masterlist!$C$2:$C$207,SMALL(IF(masterlist!$B$2:$B$207=\"LAB\",IF(masterlist!$F$2:$F$207>0,IF(masterlist!$J$2:$J$207=0,ROW(masterlist!$B$2:$B$207)-ROW(masterlist!$B$2)+1))),ROWS($A$13:A28))),\"\")","v":""},{"$f":"IFERROR(VLOOKUP($A28,masterlist!$C$2:$AA$207,3,FALSE),\"\")","v":""},{"$f":"IFERROR(VLOOKUP($A28,masterlist!$C$2:$AA$207,2,FALSE),\"\")","v":""},{"$f":"IFERROR(VLOOKUP($A28,masterlist!$C$2:$AD$207,28,FALSE),\"\")","v":""},{"$f":"IFERROR(IF((VLOOKUP($A28,masterlist!$C$2:$AA$207,9,FALSE))=0,\"\",VLOOKUP($A28,masterlist!$C$2:$AA$207,9,FALSE)),\"\")","v":""},{"$f":"IFERROR(VLOOKUP($A28,masterlist!$C$2:$AA$207,20,FALSE),\"\")","v":""},{"$f":"IFERROR(VLOOKUP($A28,masterlist!$C$2:$AA$207,21,FALSE),\"\")","v":""},{"$f":"IFERROR(VLOOKUP($A28,masterlist!$C$2:$AA$207,22,FALSE),\"\")","v":""},{"$f":"IFERROR(IF($B$7=2,(VLOOKUP($A28,masterlist!$C$2:$AA$207,23,FALSE)-11),IF($B$7=4,(VLOOKUP($A28,masterlist!$C$2:$AA$207,23,FALSE)-9),IF($B$7=7,(VLOOKUP($A28,masterlist!$C$2:$AA$207,23,FALSE)-6),IF($B$7=10,(VLOOKUP($A28,masterlist!$C$2:$AA$207,23,FALSE)-3),(VLOOKUP($A28,masterlist!$C$2:$AA$207,23,FALSE)))))),\"\")","v":""},{"$f":"IFERROR(VLOOKUP($A28,masterlist!$C$2:$AA$207,24,FALSE),\"\")","v":""}]
[{"$f":"IF(ROWS($A$13:A29)<=(SUMPRODUCT((masterlist!B:B=\"LAB\")*(masterlist!J:J=0))),INDEX(masterlist!$C$2:$C$207,SMALL(IF(masterlist!$B$2:$B$207=\"LAB\",IF(masterlist!$F$2:$F$207>0,IF(masterlist!$J$2:$J$207=0,ROW(masterlist!$B$2:$B$207)-ROW(masterlist!$B$2)+1))),ROWS($A$13:A29))),\"\")","v":""},{"$f":"IFERROR(VLOOKUP($A29,masterlist!$C$2:$AA$207,3,FALSE),\"\")","v":""},{"$f":"IFERROR(VLOOKUP($A29,masterlist!$C$2:$AA$207,2,FALSE),\"\")","v":""},{"$f":"IFERROR(VLOOKUP($A29,masterlist!$C$2:$AD$207,28,FALSE),\"\")","v":""},{"$f":"IFERROR(IF((VLOOKUP($A29,masterlist!$C$2:$AA$207,9,FALSE))=0,\"\",VLOOKUP($A29,masterlist!$C$2:$AA$207,9,FALSE)),\"\")","v":""},{"$f":"IFERROR(VLOOKUP($A29,masterlist!$C$2:$AA$207,20,FALSE),\"\")","v":""},{"$f":"IFERROR(VLOOKUP($A29,masterlist!$C$2:$AA$207,21,FALSE),\"\")","v":""},{"$f":"IFERROR(VLOOKUP($A29,masterlist!$C$2:$AA$207,22,FALSE),\"\")","v":""},{"$f":"IFERROR(IF($B$7=2,(VLOOKUP($A29,masterlist!$C$2:$AA$207,23,FALSE)-11),IF($B$7=4,(VLOOKUP($A29,masterlist!$C$2:$AA$207,23,FALSE)-9),IF($B$7=7,(VLOOKUP($A29,masterlist!$C$2:$AA$207,23,FALSE)-6),IF($B$7=10,(VLOOKUP($A29,masterlist!$C$2:$AA$207,23,FALSE)-3),(VLOOKUP($A29,masterlist!$C$2:$AA$207,23,FALSE)))))),\"\")","v":""},{"$f":"IFERROR(VLOOKUP($A29,masterlist!$C$2:$AA$207,24,FALSE),\"\")","v":""}]
[{"$f":"IF(ROWS($A$13:A30)<=(SUMPRODUCT((masterlist!B:B=\"LAB\")*(masterlist!J:J=0))),INDEX(masterlist!$C$2:$C$207,SMALL(IF(masterlist!$B$2:$B$207=\"LAB\",IF(masterlist!$F$2:$F$207>0,IF(masterlist!$J$2:$J$207=0,ROW(masterlist!$B$2:$B$207)-ROW(masterlist!$B$2)+1))),ROWS($A$13:A30))),\"\")","v":""},{"$f":"IFERROR(VLOOKUP($A30,masterlist!$C$2:$AA$207,3,FALSE),\"\")","v":""},{"$f":"IFERROR(VLOOKUP($A30,masterlist!$C$2:$AA$207,2,FALSE),\"\")","v":""},{"$f":"IFERROR(VLOOKUP($A30,masterlist!$C$2:$AD$207,28,FALSE),\"\")","v":""},{"$f":"IFERROR(IF((VLOOKUP($A30,masterlist!$C$2:$AA$207,9,FALSE))=0,\"\",VLOOKUP($A30,masterlist!$C$2:$AA$207,9,FALSE)),\"\")","v":""},{"$f":"IFERROR(VLOOKUP($A30,masterlist!$C$2:$AA$207,20,FALSE),\"\")","v":""},{"$f":"IFERROR(VLOOKUP($A30,masterlist!$C$2:$AA$207,21,FALSE),\"\")","v":""},{"$f":"IFERROR(VLOOKUP($A30,masterlist!$C$2:$AA$207,22,FALSE),\"\")","v":""},{"$f":"IFERROR(IF($B$7=2,(VLOOKUP($A30,masterlist!$C$2:$AA$207,23,FALSE)-11),IF($B$7=4,(VLOOKUP($A30,masterlist!$C$2:$AA$207,23,FALSE)-9),IF($B$7=7,(VLOOKUP($A30,masterlist!$C$2:$AA$207,23,FALSE)-6),IF($B$7=10,(VLOOKUP($A30,masterlist!$C$2:$AA$207,23,FALSE)-3),(VLOOKUP($A30,masterlist!$C$2:$AA$207,23,FALSE)))))),\"\")","v":""},{"$f":"IFERROR(VLOOKUP($A30,masterlist!$C$2:$AA$207,24,FALSE),\"\")","v":""}]
[{"$f":"IF(ROWS($A$13:A31)<=(SUMPRODUCT((masterlist!B:B=\"LAB\")*(masterlist!J:J=0))),INDEX(masterlist!$C$2:$C$207,SMALL(IF(masterlist!$B$2:$B$207=\"LAB\",IF(masterlist!$F$2:$F$207>0,IF(masterlist!$J$2:$J$207=0,ROW(masterlist!$B$2:$B$207)-ROW(masterlist!$B$2)+1))),ROWS($A$13:A31))),\"\")","v":""},{"$f":"IFERROR(VLOOKUP($A31,masterlist!$C$2:$AA$207,3,FALSE),\"\")","v":""},{"$f":"IFERROR(VLOOKUP($A31,masterlist!$C$2:$AA$207,2,FALSE),\"\")","v":""},{"$f":"IFERROR(VLOOKUP($A31,masterlist!$C$2:$AD$207,28,FALSE),\"\")","v":""},{"$f":"IFERROR(IF((VLOOKUP($A31,masterlist!$C$2:$AA$207,9,FALSE))=0,\"\",VLOOKUP($A31,masterlist!$C$2:$AA$207,9,FALSE)),\"\")","v":""},{"$f":"IFERROR(VLOOKUP($A31,masterlist!$C$2:$AA$207,20,FALSE),\"\")","v":""},{"$f":"IFERROR(VLOOKUP($A31,masterlist!$C$2:$AA$207,21,FALSE),\"\")","v":""},{"$f":"IFERROR(VLOOKUP($A31,masterlist!$C$2:$AA$207,22,FALSE),\"\")","v":""},{"$f":"IFERROR(IF($B$7=2,(VLOOKUP($A31,masterlist!$C$2:$AA$207,23,FALSE)-11),IF($B$7=4,(VLOOKUP($A31,masterlist!$C$2:$AA$207,23,FALSE)-9),IF($B$7=7,(VLOOKUP($A31,masterlist!$C$2:$AA$207,23,FALSE)-6),IF($B$7=10,(VLOOKUP($A31,masterlist!$C$2:$AA$207,23,FALSE)-3),(VLOOKUP($A31,masterlist!$C$2:$AA$207,23,FALSE)))))),\"\")","v":""},{"$f":"IFERROR(VLOOKUP($A31,masterlist!$C$2:$AA$207,24,FALSE),\"\")","v":""}]
[{"$f":"IF(ROWS($A$13:A32)<=(SUMPRODUCT((masterlist!B:B=\"LAB\")*(masterlist!J:J=0))),INDEX(masterlist!$C$2:$C$207,SMALL(IF(masterlist!$B$2:$B$207=\"LAB\",IF(masterlist!$F$2:$F$207>0,IF(masterlist!$J$2:$J$207=0,ROW(masterlist!$B$2:$B$207)-ROW(masterlist!$B$2)+1))),ROWS($A$13:A32))),\"\")","v":""},{"$f":"IFERROR(VLOOKUP($A32,masterlist!$C$2:$AA$207,3,FALSE),\"\")","v":""},{"$f":"IFERROR(VLOOKUP($A32,masterlist!$C$2:$AA$207,2,FALSE),\"\")","v":""},{"$f":"IFERROR(VLOOKUP($A32,masterlist!$C$2:$AD$207,28,FALSE),\"\")","v":""},{"$f":"IFERROR(IF((VLOOKUP($A32,masterlist!$C$2:$AA$207,9,FALSE))=0,\"\",VLOOKUP($A32,masterlist!$C$2:$AA$207,9,FALSE)),\"\")","v":""},{"$f":"IFERROR(VLOOKUP($A32,masterlist!$C$2:$AA$207,20,FALSE),\"\")","v":""},{"$f":"IFERROR(VLOOKUP($A32,masterlist!$C$2:$AA$207,21,FALSE),\"\")","v":""},{"$f":"IFERROR(VLOOKUP($A32,masterlist!$C$2:$AA$207,22,FALSE),\"\")","v":""},{"$f":"IFERROR(IF($B$7=2,(VLOOKUP($A32,masterlist!$C$2:$AA$207,23,FALSE)-11),IF($B$7=4,(VLOOKUP($A32,masterlist!$C$2:$AA$207,23,FALSE)-9),IF($B$7=7,(VLOOKUP($A32,masterlist!$C$2:$AA$207,23,FALSE)-6),IF($B$7=10,(VLOOKUP($A32,masterlist!$C$2:$AA$207,23,FALSE)-3),(VLOOKUP($A32,masterlist!$C$2:$AA$207,23,FALSE)))))),\"\")","v":""},{"$f":"IFERROR(VLOOKUP($A32,masterlist!$C$2:$AA$207,24,FALSE),\"\")","v":""}]
[{"$f":"IF(ROWS($A$13:A33)<=(SUMPRODUCT((masterlist!B:B=\"LAB\")*(masterlist!J:J=0))),INDEX(masterlist!$C$2:$C$207,SMALL(IF(masterlist!$B$2:$B$207=\"LAB\",IF(masterlist!$F$2:$F$207>0,IF(masterlist!$J$2:$J$207=0,ROW(masterlist!$B$2:$B$207)-ROW(masterlist!$B$2)+1))),ROWS($A$13:A33))),\"\")","v":""},{"$f":"IFERROR(VLOOKUP($A33,masterlist!$C$2:$AA$207,3,FALSE),\"\")","v":""},{"$f":"IFERROR(VLOOKUP($A33,masterlist!$C$2:$AA$207,2,FALSE),\"\")","v":""},{"$f":"IFERROR(VLOOKUP($A33,masterlist!$C$2:$AD$207,28,FALSE),\"\")","v":""},{"$f":"IFERROR(IF((VLOOKUP($A33,masterlist!$C$2:$AA$207,9,FALSE))=0,\"\",VLOOKUP($A33,masterlist!$C$2:$AA$207,9,FALSE)),\"\")","v":""},{"$f":"IFERROR(VLOOKUP($A33,masterlist!$C$2:$AA$207,20,FALSE),\"\")","v":""},{"$f":"IFERROR(VLOOKUP($A33,masterlist!$C$2:$AA$207,21,FALSE),\"\")","v":""},{"$f":"IFERROR(VLOOKUP($A33,masterlist!$C$2:$AA$207,22,FALSE),\"\")","v":""},{"$f":"IFERROR(IF($B$7=2,(VLOOKUP($A33,masterlist!$C$2:$AA$207,23,FALSE)-11),IF($B$7=4,(VLOOKUP($A33,masterlist!$C$2:$AA$207,23,FALSE)-9),IF($B$7=7,(VLOOKUP($A33,masterlist!$C$2:$AA$207,23,FALSE)-6),IF($B$7=10,(VLOOKUP($A33,masterlist!$C$2:$AA$207,23,FALSE)-3),(VLOOKUP($A33,masterlist!$C$2:$AA$207,23,FALSE)))))),\"\")","v":""},{"$f":"IFERROR(VLOOKUP($A33,masterlist!$C$2:$AA$207,24,FALSE),\"\")","v":""}]
[{"$f":"IF(ROWS($A$13:A34)<=(SUMPRODUCT((masterlist!B:B=\"LAB\")*(masterlist!J:J=0))),INDEX(masterlist!$C$2:$C$207,SMALL(IF(masterlist!$B$2:$B$207=\"LAB\",IF(masterlist!$F$2:$F$207>0,IF(masterlist!$J$2:$J$207=0,ROW(masterlist!$B$2:$B$207)-ROW(masterlist!$B$2)+1))),ROWS($A$13:A34))),\"\")","v":""},{"$f":"IFERROR(VLOOKUP($A34,masterlist!$C$2:$AA$207,3,FALSE),\"\")","v":""},{"$f":"IFERROR(VLOOKUP($A34,masterlist!$C$2:$AA$207,2,FALSE),\"\")","v":""},{"$f":"IFERROR(VLOOKUP($A34,masterlist!$C$2:$AD$207,28,FALSE),\"\")","v":""},{"$f":"IFERROR(IF((VLOOKUP($A34,masterlist!$C$2:$AA$207,9,FALSE))=0,\"\",VLOOKUP($A34,masterlist!$C$2:$AA$207,9,FALSE)),\"\")","v":""},{"$f":"IFERROR(VLOOKUP($A34,masterlist!$C$2:$AA$207,20,FALSE),\"\")","v":""},{"$f":"IFERROR(VLOOKUP($A34,masterlist!$C$2:$AA$207,21,FALSE),\"\")","v":""},{"$f":"IFERROR(VLOOKUP($A34,masterlist!$C$2:$AA$207,22,FALSE),\"\")","v":""},{"$f":"IFERROR(IF($B$7=2,(VLOOKUP($A34,masterlist!$C$2:$AA$207,23,FALSE)-11),IF($B$7=4,(VLOOKUP($A34,masterlist!$C$2:$AA$207,23,FALSE)-9),IF($B$7=7,(VLOOKUP($A34,masterlist!$C$2:$AA$207,23,FALSE)-6),IF($B$7=10,(VLOOKUP($A34,masterlist!$C$2:$AA$207,23,FALSE)-3),(VLOOKUP($A34,masterlist!$C$2:$AA$207,23,FALSE)))))),\"\")","v":""},{"$f":"IFERROR(VLOOKUP($A34,masterlist!$C$2:$AA$207,24,FALSE),\"\")","v":""}]
[{"$f":"IF(ROWS($A$13:A35)<=(SUMPRODUCT((masterlist!B:B=\"LAB\")*(masterlist!J:J=0))),INDEX(masterlist!$C$2:$C$207,SMALL(IF(masterlist!$B$2:$B$207=\"LAB\",IF(masterlist!$F$2:$F$207>0,IF(masterlist!$J$2:$J$207=0,ROW(masterlist!$B$2:$B$207)-ROW(masterlist!$B$2)+1))),ROWS($A$13:A35))),\"\")","v":""},{"$f":"IFERROR(VLOOKUP($A35,masterlist!$C$2:$AA$207,3,FALSE),\"\")","v":""},{"$f":"IFERROR(VLOOKUP($A35,masterlist!$C$2:$AA$207,2,FALSE),\"\")","v":""},{"$f":"IFERROR(VLOOKUP($A35,masterlist!$C$2:$AD$207,28,FALSE),\"\")","v":""},{"$f":"IFERROR(IF((VLOOKUP($A35,masterlist!$C$2:$AA$207,9,FALSE))=0,\"\",VLOOKUP($A35,masterlist!$C$2:$AA$207,9,FALSE)),\"\")","v":""},{"$f":"IFERROR(VLOOKUP($A35,masterlist!$C$2:$AA$207,20,FALSE),\"\")","v":""},{"$f":"IFERROR(VLOOKUP($A35,masterlist!$C$2:$AA$207,21,FALSE),\"\")","v":""},{"$f":"IFERROR(VLOOKUP($A35,masterlist!$C$2:$AA$207,22,FALSE),\"\")","v":""},{"$f":"IFERROR(IF($B$7=2,(VLOOKUP($A35,masterlist!$C$2:$AA$207,23,FALSE)-11),IF($B$7=4,(VLOOKUP($A35,masterlist!$C$2:$AA$207,23,FALSE)-9),IF($B$7=7,(VLOOKUP($A35,masterlist!$C$2:$AA$207,23,FALSE)-6),IF($B$7=10,(VLOOKUP($A35,masterlist!$C$2:$AA$207,23,FALSE)-3),(VLOOKUP($A35,masterlist!$C$2:$AA$207,23,FALSE)))))),\"\")","v":""},{"$f":"IFERROR(VLOOKUP($A35,masterlist!$C$2:$AA$207,24,FALSE),\"\")","v":""}]
[{"$f":"IF(ROWS($A$13:A36)<=(SUMPRODUCT((masterlist!B:B=\"LAB\")*(masterlist!J:J=0))),INDEX(masterlist!$C$2:$C$207,SMALL(IF(masterlist!$B$2:$B$207=\"LAB\",IF(masterlist!$F$2:$F$207>0,IF(masterlist!$J$2:$J$207=0,ROW(masterlist!$B$2:$B$207)-ROW(masterlist!$B$2)+1))),ROWS($A$13:A36))),\"\")","v":""},{"$f":"IFERROR(VLOOKUP($A36,masterlist!$C$2:$AA$207,3,FALSE),\"\")","v":""},{"$f":"IFERROR(VLOOKUP($A36,masterlist!$C$2:$AA$207,2,FALSE),\"\")","v":""},{"$f":"IFERROR(VLOOKUP($A36,masterlist!$C$2:$AD$207,28,FALSE),\"\")","v":""},{"$f":"IFERROR(IF((VLOOKUP($A36,masterlist!$C$2:$AA$207,9,FALSE))=0,\"\",VLOOKUP($A36,masterlist!$C$2:$AA$207,9,FALSE)),\"\")","v":""},{"$f":"IFERROR(VLOOKUP($A36,masterlist!$C$2:$AA$207,20,FALSE),\"\")","v":""},{"$f":"IFERROR(VLOOKUP($A36,masterlist!$C$2:$AA$207,21,FALSE),\"\")","v":""},{"$f":"IFERROR(VLOOKUP($A36,masterlist!$C$2:$AA$207,22,FALSE),\"\")","v":""},{"$f":"IFERROR(IF($B$7=2,(VLOOKUP($A36,masterlist!$C$2:$AA$207,23,FALSE)-11),IF($B$7=4,(VLOOKUP($A36,masterlist!$C$2:$AA$207,23,FALSE)-9),IF($B$7=7,(VLOOKUP($A36,masterlist!$C$2:$AA$207,23,FALSE)-6),IF($B$7=10,(VLOOKUP($A36,masterlist!$C$2:$AA$207,23,FALSE)-3),(VLOOKUP($A36,masterlist!$C$2:$AA$207,23,FALSE)))))),\"\")","v":""},{"$f":"IFERROR(VLOOKUP($A36,masterlist!$C$2:$AA$207,24,FALSE),\"\")","v":""}]
[{"$f":"IF(ROWS($A$13:A37)<=(SUMPRODUCT((masterlist!B:B=\"LAB\")*(masterlist!J:J=0))),INDEX(masterlist!$C$2:$C$207,SMALL(IF(masterlist!$B$2:$B$207=\"LAB\",IF(masterlist!$F$2:$F$207>0,IF(masterlist!$J$2:$J$207=0,ROW(masterlist!$B$2:$B$207)-ROW(masterlist!$B$2)+1))),ROWS($A$13:A37))),\"\")","v":""},{"$f":"IFERROR(VLOOKUP($A37,masterlist!$C$2:$AA$207,3,FALSE),\"\")","v":""},{"$f":"IFERROR(VLOOKUP($A37,masterlist!$C$2:$AA$207,2,FALSE),\"\")","v":""},{"$f":"IFERROR(VLOOKUP($A37,masterlist!$C$2:$AD$207,28,FALSE),\"\")","v":""},{"$f":"IFERROR(IF((VLOOKUP($A37,masterlist!$C$2:$AA$207,9,FALSE))=0,\"\",VLOOKUP($A37,masterlist!$C$2:$AA$207,9,FALSE)),\"\")","v":""},{"$f":"IFERROR(VLOOKUP($A37,masterlist!$C$2:$AA$207,20,FALSE),\"\")","v":""},{"$f":"IFERROR(VLOOKUP($A37,masterlist!$C$2:$AA$207,21,FALSE),\"\")","v":""},{"$f":"IFERROR(VLOOKUP($A37,masterlist!$C$2:$AA$207,22,FALSE),\"\")","v":""},{"$f":"IFERROR(IF($B$7=2,(VLOOKUP($A37,masterlist!$C$2:$AA$207,23,FALSE)-11),IF($B$7=4,(VLOOKUP($A37,masterlist!$C$2:$AA$207,23,FALSE)-9),IF($B$7=7,(VLOOKUP($A37,masterlist!$C$2:$AA$207,23,FALSE)-6),IF($B$7=10,(VLOOKUP($A37,masterlist!$C$2:$AA$207,23,FALSE)-3),(VLOOKUP($A37,masterlist!$C$2:$AA$207,23,FALSE)))))),\"\")","v":""},{"$f":"IFERROR(VLOOKUP($A37,masterlist!$C$2:$AA$207,24,FALSE),\"\")","v":""}]
[{"$f":"IF(ROWS($A$13:A38)<=(SUMPRODUCT((masterlist!B:B=\"LAB\")*(masterlist!J:J=0))),INDEX(masterlist!$C$2:$C$207,SMALL(IF(masterlist!$B$2:$B$207=\"LAB\",IF(masterlist!$F$2:$F$207>0,IF(masterlist!$J$2:$J$207=0,ROW(masterlist!$B$2:$B$207)-ROW(masterlist!$B$2)+1))),ROWS($A$13:A38))),\"\")","v":""},{"$f":"IFERROR(VLOOKUP($A38,masterlist!$C$2:$AA$207,3,FALSE),\"\")","v":""},{"$f":"IFERROR(VLOOKUP($A38,masterlist!$C$2:$AA$207,2,FALSE),\"\")","v":""},{"$f":"IFERROR(VLOOKUP($A38,masterlist!$C$2:$AD$207,28,FALSE),\"\")","v":""},{"$f":"IFERROR(IF((VLOOKUP($A38,masterlist!$C$2:$AA$207,9,FALSE))=0,\"\",VLOOKUP($A38,masterlist!$C$2:$AA$207,9,FALSE)),\"\")","v":""},{"$f":"IFERROR(VLOOKUP($A38,masterlist!$C$2:$AA$207,20,FALSE),\"\")","v":""},{"$f":"IFERROR(VLOOKUP($A38,masterlist!$C$2:$AA$207,21,FALSE),\"\")","v":""},{"$f":"IFERROR(VLOOKUP($A38,masterlist!$C$2:$AA$207,22,FALSE),\"\")","v":""},{"$f":"IFERROR(IF($B$7=2,(VLOOKUP($A38,masterlist!$C$2:$AA$207,23,FALSE)-11),IF($B$7=4,(VLOOKUP($A38,masterlist!$C$2:$AA$207,23,FALSE)-9),IF($B$7=7,(VLOOKUP($A38,masterlist!$C$2:$AA$207,23,FALSE)-6),IF($B$7=10,(VLOOKUP($A38,masterlist!$C$2:$AA$207,23,FALSE)-3),(VLOOKUP($A38,masterlist!$C$2:$AA$207,23,FALSE)))))),\"\")","v":""},{"$f":"IFERROR(VLOOKUP($A38,masterlist!$C$2:$AA$207,24,FALSE),\"\")","v":""}]
[{"$f":"IF(ROWS($A$13:A39)<=(SUMPRODUCT((masterlist!B:B=\"LAB\")*(masterlist!J:J=0))),INDEX(masterlist!$C$2:$C$207,SMALL(IF(masterlist!$B$2:$B$207=\"LAB\",IF(masterlist!$F$2:$F$207>0,IF(masterlist!$J$2:$J$207=0,ROW(masterlist!$B$2:$B$207)-ROW(masterlist!$B$2)+1))),ROWS($A$13:A39))),\"\")","v":""},{"$f":"IFERROR(VLOOKUP($A39,masterlist!$C$2:$AA$207,3,FALSE),\"\")","v":""},{"$f":"IFERROR(VLOOKUP($A39,masterlist!$C$2:$AA$207,2,FALSE),\"\")","v":""},{"$f":"IFERROR(VLOOKUP($A39,masterlist!$C$2:$AD$207,28,FALSE),\"\")","v":""},{"$f":"IFERROR(IF((VLOOKUP($A39,masterlist!$C$2:$AA$207,9,FALSE))=0,\"\",VLOOKUP($A39,masterlist!$C$2:$AA$207,9,FALSE)),\"\")","v":""},{"$f":"IFERROR(VLOOKUP($A39,masterlist!$C$2:$AA$207,20,FALSE),\"\")","v":""},{"$f":"IFERROR(VLOOKUP($A39,masterlist!$C$2:$AA$207,21,FALSE),\"\")","v":""},{"$f":"IFERROR(VLOOKUP($A39,masterlist!$C$2:$AA$207,22,FALSE),\"\")","v":""},{"$f":"IFERROR(IF($B$7=2,(VLOOKUP($A39,masterlist!$C$2:$AA$207,23,FALSE)-11),IF($B$7=4,(VLOOKUP($A39,masterlist!$C$2:$AA$207,23,FALSE)-9),IF($B$7=7,(VLOOKUP($A39,masterlist!$C$2:$AA$207,23,FALSE)-6),IF($B$7=10,(VLOOKUP($A39,masterlist!$C$2:$AA$207,23,FALSE)-3),(VLOOKUP($A39,masterlist!$C$2:$AA$207,23,FALSE)))))),\"\")","v":""},{"$f":"IFERROR(VLOOKUP($A39,masterlist!$C$2:$AA$207,24,FALSE),\"\")","v":""}]
[{"$f":"IF(ROWS($A$13:A40)<=(SUMPRODUCT((masterlist!B:B=\"LAB\")*(masterlist!J:J=0))),INDEX(masterlist!$C$2:$C$207,SMALL(IF(masterlist!$B$2:$B$207=\"LAB\",IF(masterlist!$F$2:$F$207>0,IF(masterlist!$J$2:$J$207=0,ROW(masterlist!$B$2:$B$207)-ROW(masterlist!$B$2)+1))),ROWS($A$13:A40))),\"\")","v":""},{"$f":"IFERROR(VLOOKUP($A40,masterlist!$C$2:$AA$207,3,FALSE),\"\")","v":""},{"$f":"IFERROR(VLOOKUP($A40,masterlist!$C$2:$AA$207,2,FALSE),\"\")","v":""},{"$f":"IFERROR(VLOOKUP($A40,masterlist!$C$2:$AD$207,28,FALSE),\"\")","v":""},{"$f":"IFERROR(IF((VLOOKUP($A40,masterlist!$C$2:$AA$207,9,FALSE))=0,\"\",VLOOKUP($A40,masterlist!$C$2:$AA$207,9,FALSE)),\"\")","v":""},{"$f":"IFERROR(VLOOKUP($A40,masterlist!$C$2:$AA$207,20,FALSE),\"\")","v":""},{"$f":"IFERROR(VLOOKUP($A40,masterlist!$C$2:$AA$207,21,FALSE),\"\")","v":""},{"$f":"IFERROR(VLOOKUP($A40,masterlist!$C$2:$AA$207,22,FALSE),\"\")","v":""},{"$f":"IFERROR(IF($B$7=2,(VLOOKUP($A40,masterlist!$C$2:$AA$207,23,FALSE)-11),IF($B$7=4,(VLOOKUP($A40,masterlist!$C$2:$AA$207,23,FALSE)-9),IF($B$7=7,(VLOOKUP($A40,masterlist!$C$2:$AA$207,23,FALSE)-6),IF($B$7=10,(VLOOKUP($A40,masterlist!$C$2:$AA$207,23,FALSE)-3),(VLOOKUP($A40,masterlist!$C$2:$AA$207,23,FALSE)))))),\"\")","v":""},{"$f":"IFERROR(VLOOKUP($A40,masterlist!$C$2:$AA$207,24,FALSE),\"\")","v":""}]
[{"$f":"IF(ROWS($A$13:A41)<=(SUMPRODUCT((masterlist!B:B=\"LAB\")*(masterlist!J:J=0))),INDEX(masterlist!$C$2:$C$207,SMALL(IF(masterlist!$B$2:$B$207=\"LAB\",IF(masterlist!$F$2:$F$207>0,IF(masterlist!$J$2:$J$207=0,ROW(masterlist!$B$2:$B$207)-ROW(masterlist!$B$2)+1))),ROWS($A$13:A41))),\"\")","v":""},{"$f":"IFERROR(VLOOKUP($A41,masterlist!$C$2:$AA$207,3,FALSE),\"\")","v":""},{"$f":"IFERROR(VLOOKUP($A41,masterlist!$C$2:$AA$207,2,FALSE),\"\")","v":""},{"$f":"IFERROR(VLOOKUP($A41,masterlist!$C$2:$AD$207,28,FALSE),\"\")","v":""},{"$f":"IFERROR(IF((VLOOKUP($A41,masterlist!$C$2:$AA$207,9,FALSE))=0,\"\",VLOOKUP($A41,masterlist!$C$2:$AA$207,9,FALSE)),\"\")","v":""},{"$f":"IFERROR(VLOOKUP($A41,masterlist!$C$2:$AA$207,20,FALSE),\"\")","v":""},{"$f":"IFERROR(VLOOKUP($A41,masterlist!$C$2:$AA$207,21,FALSE),\"\")","v":""},{"$f":"IFERROR(VLOOKUP($A41,masterlist!$C$2:$AA$207,22,FALSE),\"\")","v":""},{"$f":"IFERROR(IF($B$7=2,(VLOOKUP($A41,masterlist!$C$2:$AA$207,23,FALSE)-11),IF($B$7=4,(VLOOKUP($A41,masterlist!$C$2:$AA$207,23,FALSE)-9),IF($B$7=7,(VLOOKUP($A41,masterlist!$C$2:$AA$207,23,FALSE)-6),IF($B$7=10,(VLOOKUP($A41,masterlist!$C$2:$AA$207,23,FALSE)-3),(VLOOKUP($A41,masterlist!$C$2:$AA$207,23,FALSE)))))),\"\")","v":""},{"$f":"IFERROR(VLOOKUP($A41,masterlist!$C$2:$AA$207,24,FALSE),\"\")","v":""}]
[{"$f":"IF(ROWS($A$13:A42)<=(SUMPRODUCT((masterlist!B:B=\"LAB\")*(masterlist!J:J=0))),INDEX(masterlist!$C$2:$C$207,SMALL(IF(masterlist!$B$2:$B$207=\"LAB\",IF(masterlist!$F$2:$F$207>0,IF(masterlist!$J$2:$J$207=0,ROW(masterlist!$B$2:$B$207)-ROW(masterlist!$B$2)+1))),ROWS($A$13:A42))),\"\")","v":""},{"$f":"IFERROR(VLOOKUP($A42,masterlist!$C$2:$AA$207,3,FALSE),\"\")","v":""},{"$f":"IFERROR(VLOOKUP($A42,masterlist!$C$2:$AA$207,2,FALSE),\"\")","v":""},{"$f":"IFERROR(VLOOKUP($A42,masterlist!$C$2:$AD$207,28,FALSE),\"\")","v":""},{"$f":"IFERROR(IF((VLOOKUP($A42,masterlist!$C$2:$AA$207,9,FALSE))=0,\"\",VLOOKUP($A42,masterlist!$C$2:$AA$207,9,FALSE)),\"\")","v":""},{"$f":"IFERROR(VLOOKUP($A42,masterlist!$C$2:$AA$207,20,FALSE),\"\")","v":""},{"$f":"IFERROR(VLOOKUP($A42,masterlist!$C$2:$AA$207,21,FALSE),\"\")","v":""},{"$f":"IFERROR(VLOOKUP($A42,masterlist!$C$2:$AA$207,22,FALSE),\"\")","v":""},{"$f":"IFERROR(IF($B$7=2,(VLOOKUP($A42,masterlist!$C$2:$AA$207,23,FALSE)-11),IF($B$7=4,(VLOOKUP($A42,masterlist!$C$2:$AA$207,23,FALSE)-9),IF($B$7=7,(VLOOKUP($A42,masterlist!$C$2:$AA$207,23,FALSE)-6),IF($B$7=10,(VLOOKUP($A42,masterlist!$C$2:$AA$207,23,FALSE)-3),(VLOOKUP($A42,masterlist!$C$2:$AA$207,23,FALSE)))))),\"\")","v":""},{"$f":"IFERROR(VLOOKUP($A42,masterlist!$C$2:$AA$207,24,FALSE),\"\")","v":""}]
[{"$f":"IF(ROWS($A$13:A43)<=(SUMPRODUCT((masterlist!B:B=\"LAB\")*(masterlist!J:J=0))),INDEX(masterlist!$C$2:$C$207,SMALL(IF(masterlist!$B$2:$B$207=\"LAB\",IF(masterlist!$F$2:$F$207>0,IF(masterlist!$J$2:$J$207=0,ROW(masterlist!$B$2:$B$207)-ROW(masterlist!$B$2)+1))),ROWS($A$13:A43))),\"\")","v":""},{"$f":"IFERROR(VLOOKUP($A43,masterlist!$C$2:$AA$207,3,FALSE),\"\")","v":""},{"$f":"IFERROR(VLOOKUP($A43,masterlist!$C$2:$AA$207,2,FALSE),\"\")","v":""},{"$f":"IFERROR(VLOOKUP($A43,masterlist!$C$2:$AD$207,28,FALSE),\"\")","v":""},{"$f":"IFERROR(IF((VLOOKUP($A43,masterlist!$C$2:$AA$207,9,FALSE))=0,\"\",VLOOKUP($A43,masterlist!$C$2:$AA$207,9,FALSE)),\"\")","v":""},{"$f":"IFERROR(VLOOKUP($A43,masterlist!$C$2:$AA$207,20,FALSE),\"\")","v":""},{"$f":"IFERROR(VLOOKUP($A43,masterlist!$C$2:$AA$207,21,FALSE),\"\")","v":""},{"$f":"IFERROR(VLOOKUP($A43,masterlist!$C$2:$AA$207,22,FALSE),\"\")","v":""},{"$f":"IFERROR(IF($B$7=2,(VLOOKUP($A43,masterlist!$C$2:$AA$207,23,FALSE)-11),IF($B$7=4,(VLOOKUP($A43,masterlist!$C$2:$AA$207,23,FALSE)-9),IF($B$7=7,(VLOOKUP($A43,masterlist!$C$2:$AA$207,23,FALSE)-6),IF($B$7=10,(VLOOKUP($A43,masterlist!$C$2:$AA$207,23,FALSE)-3),(VLOOKUP($A43,masterlist!$C$2:$AA$207,23,FALSE)))))),\"\")","v":""},{"$f":"IFERROR(VLOOKUP($A43,masterlist!$C$2:$AA$207,24,FALSE),\"\")","v":""}]
[{"$f":"IF(ROWS($A$13:A44)<=(SUMPRODUCT((masterlist!B:B=\"LAB\")*(masterlist!J:J=0))),INDEX(masterlist!$C$2:$C$207,SMALL(IF(masterlist!$B$2:$B$207=\"LAB\",IF(masterlist!$F$2:$F$207>0,IF(masterlist!$J$2:$J$207=0,ROW(masterlist!$B$2:$B$207)-ROW(masterlist!$B$2)+1))),ROWS($A$13:A44))),\"\")","v":""},{"$f":"IFERROR(VLOOKUP($A44,masterlist!$C$2:$AA$207,3,FALSE),\"\")","v":""},{"$f":"IFERROR(VLOOKUP($A44,masterlist!$C$2:$AA$207,2,FALSE),\"\")","v":""},{"$f":"IFERROR(VLOOKUP($A44,masterlist!$C$2:$AD$207,28,FALSE),\"\")","v":""},{"$f":"IFERROR(IF((VLOOKUP($A44,masterlist!$C$2:$AA$207,9,FALSE))=0,\"\",VLOOKUP($A44,masterlist!$C$2:$AA$207,9,FALSE)),\"\")","v":""},{"$f":"IFERROR(VLOOKUP($A44,masterlist!$C$2:$AA$207,20,FALSE),\"\")","v":""},{"$f":"IFERROR(VLOOKUP($A44,masterlist!$C$2:$AA$207,21,FALSE),\"\")","v":""},{"$f":"IFERROR(VLOOKUP($A44,masterlist!$C$2:$AA$207,22,FALSE),\"\")","v":""},{"$f":"IFERROR(IF($B$7=2,(VLOOKUP($A44,masterlist!$C$2:$AA$207,23,FALSE)-11),IF($B$7=4,(VLOOKUP($A44,masterlist!$C$2:$AA$207,23,FALSE)-9),IF($B$7=7,(VLOOKUP($A44,masterlist!$C$2:$AA$207,23,FALSE)-6),IF($B$7=10,(VLOOKUP($A44,masterlist!$C$2:$AA$207,23,FALSE)-3),(VLOOKUP($A44,masterlist!$C$2:$AA$207,23,FALSE)))))),\"\")","v":""},{"$f":"IFERROR(VLOOKUP($A44,masterlist!$C$2:$AA$207,24,FALSE),\"\")","v":""}]
[{"$f":"IF(ROWS($A$13:A45)<=(SUMPRODUCT((masterlist!B:B=\"LAB\")*(masterlist!J:J=0))),INDEX(masterlist!$C$2:$C$207,SMALL(IF(masterlist!$B$2:$B$207=\"LAB\",IF(masterlist!$F$2:$F$207>0,IF(masterlist!$J$2:$J$207=0,ROW(masterlist!$B$2:$B$207)-ROW(masterlist!$B$2)+1))),ROWS($A$13:A45))),\"\")","v":""},{"$f":"IFERROR(VLOOKUP($A45,masterlist!$C$2:$AA$207,3,FALSE),\"\")","v":""},{"$f":"IFERROR(VLOOKUP($A45,masterlist!$C$2:$AA$207,2,FALSE),\"\")","v":""},{"$f":"IFERROR(VLOOKUP($A45,masterlist!$C$2:$AD$207,28,FALSE),\"\")","v":""},{"$f":"IFERROR(IF((VLOOKUP($A45,masterlist!$C$2:$AA$207,9,FALSE))=0,\"\",VLOOKUP($A45,masterlist!$C$2:$AA$207,9,FALSE)),\"\")","v":""},{"$f":"IFERROR(VLOOKUP($A45,masterlist!$C$2:$AA$207,20,FALSE),\"\")","v":""},{"$f":"IFERROR(VLOOKUP($A45,masterlist!$C$2:$AA$207,21,FALSE),\"\")","v":""},{"$f":"IFERROR(VLOOKUP($A45,masterlist!$C$2:$AA$207,22,FALSE),\"\")","v":""},{"$f":"IFERROR(IF($B$7=2,(VLOOKUP($A45,masterlist!$C$2:$AA$207,23,FALSE)-11),IF($B$7=4,(VLOOKUP($A45,masterlist!$C$2:$AA$207,23,FALSE)-9),IF($B$7=7,(VLOOKUP($A45,masterlist!$C$2:$AA$207,23,FALSE)-6),IF($B$7=10,(VLOOKUP($A45,masterlist!$C$2:$AA$207,23,FALSE)-3),(VLOOKUP($A45,masterlist!$C$2:$AA$207,23,FALSE)))))),\"\")","v":""},{"$f":"IFERROR(VLOOKUP($A45,masterlist!$C$2:$AA$207,24,FALSE),\"\")","v":""}]
[{"$f":"IF(ROWS($A$13:A46)<=(SUMPRODUCT((masterlist!B:B=\"LAB\")*(masterlist!J:J=0))),INDEX(masterlist!$C$2:$C$207,SMALL(IF(masterlist!$B$2:$B$207=\"LAB\",IF(masterlist!$F$2:$F$207>0,IF(masterlist!$J$2:$J$207=0,ROW(masterlist!$B$2:$B$207)-ROW(masterlist!$B$2)+1))),ROWS($A$13:A46))),\"\")","v":""},{"$f":"IFERROR(VLOOKUP($A46,masterlist!$C$2:$AA$207,3,FALSE),\"\")","v":""},{"$f":"IFERROR(VLOOKUP($A46,masterlist!$C$2:$AA$207,2,FALSE),\"\")","v":""},{"$f":"IFERROR(VLOOKUP($A46,masterlist!$C$2:$AD$207,28,FALSE),\"\")","v":""},{"$f":"IFERROR(IF((VLOOKUP($A46,masterlist!$C$2:$AA$207,9,FALSE))=0,\"\",VLOOKUP($A46,masterlist!$C$2:$AA$207,9,FALSE)),\"\")","v":""},{"$f":"IFERROR(VLOOKUP($A46,masterlist!$C$2:$AA$207,20,FALSE),\"\")","v":""},{"$f":"IFERROR(VLOOKUP($A46,masterlist!$C$2:$AA$207,21,FALSE),\"\")","v":""},{"$f":"IFERROR(VLOOKUP($A46,masterlist!$C$2:$AA$207,22,FALSE),\"\")","v":""},{"$f":"IFERROR(IF($B$7=2,(VLOOKUP($A46,masterlist!$C$2:$AA$207,23,FALSE)-11),IF($B$7=4,(VLOOKUP($A46,masterlist!$C$2:$AA$207,23,FALSE)-9),IF($B$7=7,(VLOOKUP($A46,masterlist!$C$2:$AA$207,23,FALSE)-6),IF($B$7=10,(VLOOKUP($A46,masterlist!$C$2:$AA$207,23,FALSE)-3),(VLOOKUP($A46,masterlist!$C$2:$AA$207,23,FALSE)))))),\"\")","v":""},{"$f":"IFERROR(VLOOKUP($A46,masterlist!$C$2:$AA$207,24,FALSE),\"\")","v":""}]
[{"$f":"IF(ROWS($A$13:A47)<=(SUMPRODUCT((masterlist!B:B=\"LAB\")*(masterlist!J:J=0))),INDEX(masterlist!$C$2:$C$207,SMALL(IF(masterlist!$B$2:$B$207=\"LAB\",IF(masterlist!$F$2:$F$207>0,IF(masterlist!$J$2:$J$207=0,ROW(masterlist!$B$2:$B$207)-ROW(masterlist!$B$2)+1))),ROWS($A$13:A47))),\"\")","v":""},{"$f":"IFERROR(VLOOKUP($A47,masterlist!$C$2:$AA$207,3,FALSE),\"\")","v":""},{"$f":"IFERROR(VLOOKUP($A47,masterlist!$C$2:$AA$207,2,FALSE),\"\")","v":""},{"$f":"IFERROR(VLOOKUP($A47,masterlist!$C$2:$AD$207,28,FALSE),\"\")","v":""},{"$f":"IFERROR(IF((VLOOKUP($A47,masterlist!$C$2:$AA$207,9,FALSE))=0,\"\",VLOOKUP($A47,masterlist!$C$2:$AA$207,9,FALSE)),\"\")","v":""},{"$f":"IFERROR(VLOOKUP($A47,masterlist!$C$2:$AA$207,20,FALSE),\"\")","v":""},{"$f":"IFERROR(VLOOKUP($A47,masterlist!$C$2:$AA$207,21,FALSE),\"\")","v":""},{"$f":"IFERROR(VLOOKUP($A47,masterlist!$C$2:$AA$207,22,FALSE),\"\")","v":""},{"$f":"IFERROR(IF($B$7=2,(VLOOKUP($A47,masterlist!$C$2:$AA$207,23,FALSE)-11),IF($B$7=4,(VLOOKUP($A47,masterlist!$C$2:$AA$207,23,FALSE)-9),IF($B$7=7,(VLOOKUP($A47,masterlist!$C$2:$AA$207,23,FALSE)-6),IF($B$7=10,(VLOOKUP($A47,masterlist!$C$2:$AA$207,23,FALSE)-3),(VLOOKUP($A47,masterlist!$C$2:$AA$207,23,FALSE)))))),\"\")","v":""},{"$f":"IFERROR(VLOOKUP($A47,masterlist!$C$2:$AA$207,24,FALSE),\"\")","v":""}]
[{"$f":"IF(ROWS($A$13:A48)<=(SUMPRODUCT((masterlist!B:B=\"LAB\")*(masterlist!J:J=0))),INDEX(masterlist!$C$2:$C$207,SMALL(IF(masterlist!$B$2:$B$207=\"LAB\",IF(masterlist!$F$2:$F$207>0,IF(masterlist!$J$2:$J$207=0,ROW(masterlist!$B$2:$B$207)-ROW(masterlist!$B$2)+1))),ROWS($A$13:A48))),\"\")","v":""},{"$f":"IFERROR(VLOOKUP($A48,masterlist!$C$2:$AA$207,3,FALSE),\"\")","v":""},{"$f":"IFERROR(VLOOKUP($A48,masterlist!$C$2:$AA$207,2,FALSE),\"\")","v":""},{"$f":"IFERROR(VLOOKUP($A48,masterlist!$C$2:$AD$207,28,FALSE),\"\")","v":""},{"$f":"IFERROR(IF((VLOOKUP($A48,masterlist!$C$2:$AA$207,9,FALSE))=0,\"\",VLOOKUP($A48,masterlist!$C$2:$AA$207,9,FALSE)),\"\")","v":""},{"$f":"IFERROR(VLOOKUP($A48,masterlist!$C$2:$AA$207,20,FALSE),\"\")","v":""},{"$f":"IFERROR(VLOOKUP($A48,masterlist!$C$2:$AA$207,21,FALSE),\"\")","v":""},{"$f":"IFERROR(VLOOKUP($A48,masterlist!$C$2:$AA$207,22,FALSE),\"\")","v":""},{"$f":"IFERROR(IF($B$7=2,(VLOOKUP($A48,masterlist!$C$2:$AA$207,23,FALSE)-11),IF($B$7=4,(VLOOKUP($A48,masterlist!$C$2:$AA$207,23,FALSE)-9),IF($B$7=7,(VLOOKUP($A48,masterlist!$C$2:$AA$207,23,FALSE)-6),IF($B$7=10,(VLOOKUP($A48,masterlist!$C$2:$AA$207,23,FALSE)-3),(VLOOKUP($A48,masterlist!$C$2:$AA$207,23,FALSE)))))),\"\")","v":""},{"$f":"IFERROR(VLOOKUP($A48,masterlist!$C$2:$AA$207,24,FALSE),\"\")","v":""}]
[{"$f":"IF(ROWS($A$13:A49)<=(SUMPRODUCT((masterlist!B:B=\"LAB\")*(masterlist!J:J=0))),INDEX(masterlist!$C$2:$C$207,SMALL(IF(masterlist!$B$2:$B$207=\"LAB\",IF(masterlist!$F$2:$F$207>0,IF(masterlist!$J$2:$J$207=0,ROW(masterlist!$B$2:$B$207)-ROW(masterlist!$B$2)+1))),ROWS($A$13:A49))),\"\")","v":""},{"$f":"IFERROR(VLOOKUP($A49,masterlist!$C$2:$AA$207,3,FALSE),\"\")","v":""},{"$f":"IFERROR(VLOOKUP($A49,masterlist!$C$2:$AA$207,2,FALSE),\"\")","v":""},{"$f":"IFERROR(VLOOKUP($A49,masterlist!$C$2:$AD$207,28,FALSE),\"\")","v":""},{"$f":"IFERROR(IF((VLOOKUP($A49,masterlist!$C$2:$AA$207,9,FALSE))=0,\"\",VLOOKUP($A49,masterlist!$C$2:$AA$207,9,FALSE)),\"\")","v":""},{"$f":"IFERROR(VLOOKUP($A49,masterlist!$C$2:$AA$207,20,FALSE),\"\")","v":""},{"$f":"IFERROR(VLOOKUP($A49,masterlist!$C$2:$AA$207,21,FALSE),\"\")","v":""},{"$f":"IFERROR(VLOOKUP($A49,masterlist!$C$2:$AA$207,22,FALSE),\"\")","v":""},{"$f":"IFERROR(IF($B$7=2,(VLOOKUP($A49,masterlist!$C$2:$AA$207,23,FALSE)-11),IF($B$7=4,(VLOOKUP($A49,masterlist!$C$2:$AA$207,23,FALSE)-9),IF($B$7=7,(VLOOKUP($A49,masterlist!$C$2:$AA$207,23,FALSE)-6),IF($B$7=10,(VLOOKUP($A49,masterlist!$C$2:$AA$207,23,FALSE)-3),(VLOOKUP($A49,masterlist!$C$2:$AA$207,23,FALSE)))))),\"\")","v":""},{"$f":"IFERROR(VLOOKUP($A49,masterlist!$C$2:$AA$207,24,FALSE),\"\")","v":""}]

{"sheet":"LAB","index":30,"n_rows":1,"n_cols":8,"rows_kept":1,"cut":false,"hidden":true,"merged":[[0,7,0,9],[0,3,0,6],[1,1,1,9]]}
[null,null,null,"Diagnostic de laboratoire",null,null,null,"Plan de travail national pour l’élimination de la rage"]

{"sheet":"LABgantt","index":31,"n_rows":50,"n_cols":17,"rows_kept":50,"cut":false,"hidden":true,"merged":[[0,1,0,16],[1,1,1,6],[2,1,2,16]]}
[null,"Plan de travail national pour l’élimination de la rage"]
[]
[null,"Diagnostic de laboratoire - DIAGRAMME DE GANTT"]
[]
[null,null,null,null,1,2,3,4,5,6,7,8,9,10,11,12,13]
[null,"Theme","Étape","Activité",{"$f":"'NW country'!$E$35","v":2025},{"$f":"IF('NW country'!$K$4<6,E6+1,\"\")","v":2026},{"$f":"IF('NW country'!$K$4<5,E6+2,\"\")","v":2027},{"$f":"IF('NW country'!$K$4<5,E6+3,\"\")","v":2028},{"$f":"IF('NW country'!$K$4<4,E6+4,\"\")","v":2029},{"$f":"IF('NW country'!$K$4<4,E6+5,\"\")","v":2030},{"$f":"IF('NW country'!$K$4<4,E6+6,\"\")","v":2031},{"$f":"IF('NW country'!$K$4<3,E6+7,\"\")","v":2032},{"$f":"IF('NW country'!$K$4<3,E6+8,\"\")","v":2033},{"$f":"IF('NW country'!$K$4<3,E6+9,\"\")","v":2034},{"$f":"IF('NW country'!$K$4<2,E6+10,\"\")","v":2035},{"$f":"IF('NW country'!$K$4<2,E6+11,\"\")","v":2036},{"$f":"IF('NW country'!$K$4<2,E6+12,\"\")","v":2037}]
[13,{"$f":"IF((INDIRECT(\"LAB!\"&\"$a\"&$A7))=0,\"\",INDIRECT(\"LAB!\"&\"$c\"&$A7))","v":""},{"$f":"IF(INDIRECT(\"LAB!\"&\"$a\"&$A7)=0,\"\",INDIRECT(\"LAB!\"&\"$b\"&$A7))","v":""},{"$f":"IF(INDIRECT(\"LAB!\"&\"$a\"&$A7)=0,\"\",INDIRECT(\"LAB!\"&\"$d\"&$A7))","v":""},{"$f":"IF($C7>6,\"\",IF(E$5<=INDIRECT(\"LAB!\"&\"$i\"&$A7),\"X\",\"\"))","v":""},{"$f":"IF($C7>6,\"\",IF(F$5<=INDIRECT(\"LAB!\"&\"$i\"&$A7),\"X\",\"\"))","v":""},"","","","","","","","","","",""]
[14,{"$f":"IF((INDIRECT(\"LAB!\"&\"$a\"&$A8))=0,\"\",INDIRECT(\"LAB!\"&\"$c\"&$A8))","v":""},{"$f":"IF(INDIRECT(\"LAB!\"&\"$a\"&$A8)=0,\"\",INDIRECT(\"LAB!\"&\"$b\"&$A8))","v":""},{"$f":"IF(INDIRECT(\"LAB!\"&\"$a\"&$A8)=0,\"\",INDIRECT(\"LAB!\"&\"$d\"&$A8))","v":""},"","","","","","","","","","","","",""]
[15,"","","","","","","","","","","","","","","",""]
[16,"","","","","","","","","","","","","","","",""]
[17,"","","","","","","","","","","","","","","",""]
[18,"","","","","","","","","","","","","","","",""]
[19,"","","","","","","","","","","","","","","",""]
[20,"","","","","","","","","","","","","","","",""]
[21,"","","","","","","","","","","","","","","",""]
[22,"","","","","","","","","","","","","","","",""]
[23,"","","","","","","","","","","","","","","",""]
[24,"","","","","","","","","","","","","","","",""]
[25,"","","","","","","","","","","","","","","",""]
[26,"","","","","","","","","","","","","","","",""]
[27,"","","","","","","","","","","","","","","",""]
[28,"","","","","","","","","","","","","","","",""]
[29,"","","","",{"$f":"IF($C23>6,\"\",IF(F$5<=INDIRECT(\"LAB!\"&\"$i\"&$A23),\"X\",\"\"))","v":""},"","","","","","","","","","",""]
[30,"","","","","","","","","","","","","","","",""]
[31,"","","","","","","","","","","","","","","",""]
[32,"","","","","","","","","","","","","","","",""]
[33,"","","","","","","","","","","","","","","",""]
[34,"","","","","","","","","","","","","","","",""]
[35,"","","","","","","","","","","","","","","",""]
[36,"","","","","","","","","","","","","","","",""]
[37,"","","","","","","","","","","","","","","",""]
[38,"","","","","","","","","","","","","","","",""]
[39,"","","","","","","","","","","","","","","",""]
[40,"","","","","","","","","","","","","","","",""]
[41,"","","",{"$f":"IF($C35>6,\"\",IF(E$5<=INDIRECT(\"LAB!\"&\"$i\"&$A35),\"X\",\"\"))","v":""},"","","","","","","","","","","",""]
[42,"","","","","","","","","","","","","","","",""]
[43,"","","","","","","","","","","","","","","",""]
[44,"","","","","","","","","","","","","","","",""]
[45,"","","","","","","","","","","","","","","",""]
[46,"","","","","","","","","","","","","","","",""]
[47,"","","","","","","","","","","","","","","",""]
[48,"","","","","","","","","","","","","","","",""]
[49,"","","","","","","","","","","","","","","",""]
[50,"","","","","","","","","","","","","","","",""]
[51,"","","","","","","","","","","","","","","",""]
[52,"","","","","","","","","","","","","","","",""]
[53,"","","","","","","","","","","","","","","",""]
[54,"","","","","","","","","","","","","","","",""]
[55,"","","","","","","","","","","","","","","",""]
[56,{"$f":"IF((INDIRECT(\"DCA!\"&\"$a\"&$A50))=0,\"\",INDIRECT(\"DCA!\"&\"$c\"&$A50))","v":""},{"$f":"IF(INDIRECT(\"DCA!\"&\"$a\"&$A50)=0,\"\",INDIRECT(\"DCA!\"&\"$b\"&$A50))","v":""},{"$f":"IF(INDIRECT(\"DCA!\"&\"$a\"&$A50)=0,\"\",INDIRECT(\"DCA!\"&\"$d\"&$A50))","v":""},{"$f":"IF($C50>6,\"\",IF(E$5<=INDIRECT(\"DCA!\"&\"$i\"&$A50),\"X\",\"\"))","v":""},"","","","","","","","","","","",""]

{"sheet":"rawdpm","index":32,"n_rows":49,"n_cols":10,"rows_kept":49,"cut":false,"hidden":true,"merged":[[0,1,0,3],[0,4,0,9],[1,1,1,9],[4,1,5,3],[6,1,8,3]]}
[null,"Practical Workplan towards Achieving Rabies Elimination",null,null,"Prevention and Control"]
[null,"Blurb blurb blurb blah blurb blurb"]
[]
[]
[null,"Estimated years to elimination\n(based on the current SARE score)",null,null,null,"All stage 0 and 1 activities should ideally be completed within a 3-year period",null,null,null,{"$f":"IF('NW country'!$K$4<2,\"Years 1, 2 and 3\",\"--\")","v":"Years 1, 2 and 3"}]
[null,null,null,null,null,"All stage 2 activities should ideally be completed within a 3-year period",null,null,null,{"$f":"IF('NW country'!$K$4<2,\"Years 4, 5 and 6\",IF('NW country'!$K$4<3,\"Years 1, 2 and 3\",\"--\"))","v":"Years 4, 5 and 6"}]
[null,{"$f":"IF('NW country'!$K$4<2,13,IF('NW country'!$K$4<3,10,IF('NW country'!$K$4<4,7,IF('NW country'!$K$4<5,4,2))))","v":13},null,null,null,"All stage 3 activities should ideally be completed within a 3-year period",null,null,null,{"$f":"IF('NW country'!$K$4<2,\"Years 7, 8 and 9\",IF('NW country'!$K$4<3,\"Years 4, 5 and 6\",IF('NW country'!$K$4<4,\"Years 1, 2 and 3\",\"--\")))","v":"Years 7, 8 and 9"}]
[null,null,null,null,null,"All stage 4 activities should ideally be completed within a 2-year period",null,null,null,{"$f":"IF('NW country'!$K$4<2,\"Years 10 and 11\",IF('NW country'!$K$4<3,\"Years 7 and 8\",IF('NW country'!$K$4<4,\"Years 4 and 5\",IF('NW country'!$K$4<5,\"Years 1 and 2\",\"--\"))))","v":"Years 10 and 11"}]
[null,null,null,null,null,"All stage 5 activities should ideally be completed within a 2-year period",null,null,null,{"$f":"IF('NW country'!$K$4<2,\"Years 12 and 13\",IF('NW country'!$K$4<3,\"Years 9 and 10\",IF('NW country'!$K$4<4,\"Years 6 and 7\",IF('NW country'!$K$4<5,\"Years 3 and 4\",\"Years 1 and 2\"))))","v":"Years 12 and 13"}]
[]
[null,"Instructions : Veuillez modifier les Tâches, les Autorités responsables, le Calendrier et les  Résultats attendus selon les besoins."]
["ID","Étape","Theme","Activité","Remarques","Tâche","Outcomes","Autorité responsible","Calendrier (années)","Résultats attendus"]
[{"$f":"IF(ROWS($A$13:A13)<=(SUMPRODUCT((masterlist!B:B=\"DPM\")*(masterlist!J:J=0))),INDEX(masterlist!$C$2:$C$207,SMALL(IF(masterlist!$B$2:$B$207=\"DPM\",IF(masterlist!$F$2:$F$207>0,IF(masterlist!$J$2:$J$207=0,ROW(masterlist!$B$2:$B$207)-ROW(masterlist!$B$2)+1))),ROWS($A$13:A13))),\"\")","v":"DPM--0-1"},{"$f":"IFERROR(VLOOKUP($A13,masterlist!$C$2:$AA$207,3,FALSE),\"\")","v":0},{"$f":"IFERROR(VLOOKUP($A13,masterlist!$C$2:$AA$207,2,FALSE),\"\")","v":0},{"$f":"IFERROR(VLOOKUP($A13,masterlist!$C$2:$AD$207,28,FALSE),\"\")","v":"Faire en sorte qu'une des parties prenantes entreprenne des activités de gestion compassionnelle de la population canine dans au moins une région du pays."},{"$f":"IFERROR(IF((VLOOKUP($A13,masterlist!$C$2:$AA$207,9,FALSE))=0,\"\",VLOOKUP($A13,masterlist!$C$2:$AA$207,9,FALSE)),\"\")","v":""},{"$f":"IFERROR(VLOOKUP($A13,masterlist!$C$2:$AA$207,20,FALSE),\"\")","v":"• Identifier les parties prenantes susceptibles d'avoir des connaissances ou de l'expérience en matière de gestion compassionnelle des populations canines (y compris les parties prenantes internationales).\n• Motiver et évaluer l'intérêt pour la mise en œuvre d'un projet pilote de gestion compassionnelle des populations canines (GCPC) à petite échelle. \n• Soutenir la mise en œuvre du projet avec des ressources ou un soutien en nature (autorisation gouvernementale, ressources humaines, logistique, engagement ou financement)."},{"$f":"IFERROR(VLOOKUP($A13,masterlist!$C$2:$AA$207,21,FALSE),\"\")","v":0},{"$f":"IFERROR(VLOOKUP($A13,masterlist!$C$2:$AA$207,22,FALSE),\"\")","v":"Ministère de l’agriculture"},{"$f":"IFERROR(IF($B$7=2,(VLOOKUP($A13,masterlist!$C$2:$AA$207,23,FALSE)-11),IF($B$7=4,(VLOOKUP($A13,masterlist!$C$2:$AA$207,23,FALSE)-9),IF($B$7=7,(VLOOKUP($A13,masterlist!$C$2:$AA$207,23,FALSE)-6),IF($B$7=10,(VLOOKUP($A13,masterlist!$C$2:$AA$207,23,FALSE)-3),(VLOOKUP($A13,masterlist!$C$2:$AA$207,23,FALSE)))))),\"\")","v":1},{"$f":"IFERROR(VLOOKUP($A13,masterlist!$C$2:$AA$207,24,FALSE),\"\")","v":"• Identification et engagement des parties prenantes compétentes en matière de programmes de gestion compassionnelle des populations canines.\n• Documentation du soutien fourni (ressources, logistique, autorisation gouvernementale).\n• Mise en œuvre réussie d'un projet de gestion compassionnelle des populations canines à petite échelle."}]
[{"$f":"IF(ROWS($A$13:A14)<=(SUMPRODUCT((masterlist!B:B=\"DPM\")*(masterlist!J:J=0))),INDEX(masterlist!$C$2:$C$207,SMALL(IF(masterlist!$B$2:$B$207=\"DPM\",IF(masterlist!$F$2:$F$207>0,IF(masterlist!$J$2:$J$207=0,ROW(masterlist!$B$2:$B$207)-ROW(masterlist!$B$2)+1))),ROWS($A$13:A14))),\"\")","v":"DPM--1-2"},{"$f":"IFERROR(VLOOKUP($A14,masterlist!$C$2:$AA$207,3,FALSE),\"\")","v":1},{"$f":"IFERROR(VLOOKUP($A14,masterlist!$C$2:$AA$207,2,FALSE),\"\")","v":0},{"$f":"IFERROR(VLOOKUP($A14,masterlist!$C$2:$AD$207,28,FALSE),\"\")","v":"Travailler activement à mettre fin à l'abattage indiscriminé des chiens dans le cadre de la gestion des populations canines ou de la lutte contre la rage."},{"$f":"IFERROR(IF((VLOOKUP($A14,masterlist!$C$2:$AA$207,9,FALSE))=0,\"\",VLOOKUP($A14,masterlist!$C$2:$AA$207,9,FALSE)),\"\")","v":""},{"$f":"IFERROR(VLOOKUP($A14,masterlist!$C$2:$AA$207,20,FALSE),\"\")","v":"• Identifier les autorités responsables de l'approbation de l'abattage sans discrimination des chiens pour la gestion des populations canines ou le contrôle de la rage dans le pays ; \n• Identifier les ressources et les informations qui pourraient être utilisées pour plaider contre l'utilisation de l'abattage sans discrimination des chiens ;\n• Partager les ressources et mettre en œuvre des actions pour mettre fin à l'abattage sans discrimination des chiens. "},{"$f":"IFERROR(VLOOKUP($A14,masterlist!$C$2:$AA$207,21,FALSE),\"\")","v":0},{"$f":"IFERROR(VLOOKUP($A14,masterlist!$C$2:$AA$207,22,FALSE),\"\")","v":"Ministère de l’agriculture"},{"$f":"IFERROR(IF($B$7=2,(VLOOKUP($A14,masterlist!$C$2:$AA$207,23,FALSE)-11),IF($B$7=4,(VLOOKUP($A14,masterlist!$C$2:$AA$207,23,FALSE)-9),IF($B$7=7,(VLOOKUP($A14,masterlist!$C$2:$AA$207,23,FALSE)-6),IF($B$7=10,(VLOOKUP($A14,masterlist!$C$2:$AA$207,23,FALSE)-3),(VLOOKUP($A14,masterlist!$C$2:$AA$207,23,FALSE)))))),\"\")","v":1},{"$f":"IFERROR(VLOOKUP($A14,masterlist!$C$2:$AA$207,24,FALSE),\"\")","v":"• Identification des autorités responsables de l'approbation de l'abattage des chiens.\n• Compilation et diffusion de ressources de plaidoyer contre l'abattage sans discrimination.\n• Documentation des mesures prises pour mettre fin aux pratiques d'abattage sans discrimination."}]
[{"$f":"IF(ROWS($A$13:A15)<=(SUMPRODUCT((masterlist!B:B=\"DPM\")*(masterlist!J:J=0))),INDEX(masterlist!$C$2:$C$207,SMALL(IF(masterlist!$B$2:$B$207=\"DPM\",IF(masterlist!$F$2:$F$207>0,IF(masterlist!$J$2:$J$207=0,ROW(masterlist!$B$2:$B$207)-ROW(masterlist!$B$2)+1))),ROWS($A$13:A15))),\"\")","v":"DPM- -1-4"},{"$f":"IFERROR(VLOOKUP($A15,masterlist!$C$2:$AA$207,3,FALSE),\"\")","v":1},{"$f":"IFERROR(VLOOKUP($A15,masterlist!$C$2:$AA$207,2,FALSE),\"\")","v":" "},{"$f":"IFERROR(VLOOKUP($A15,masterlist!$C$2:$AD$207,28,FALSE),\"\")","v":"Impliquer les acteurs municipaux dans les discussions concernant la gestion compassionnelle de la population canine."},{"$f":"IFERROR(IF((VLOOKUP($A15,masterlist!$C$2:$AA$207,9,FALSE))=0,\"\",VLOOKUP($A15,masterlist!$C$2:$AA$207,9,FALSE)),\"\")","v":"Au niveau local, les acteurs sont impliques de facon permanante. Au niveau national, ils font partie des comites de lutte contre les zoonoses"},{"$f":"IFERROR(VLOOKUP($A15,masterlist!$C$2:$AA$207,20,FALSE),\"\")","v":"• Identifier les parties prenantes municipales responsables qui pourraient être impliquées dans la gestion compassionnelle de la population canine ;\n• Partager les informations ou les résultats des discussions précédentes avec les parties prenantes identifiées ; \n• Inviter les responsables identifiés à des réunions avec les parties prenantes pour qu'ils contribuent à la stratégie GCPC."},{"$f":"IFERROR(VLOOKUP($A15,masterlist!$C$2:$AA$207,21,FALSE),\"\")","v":"Relevant waste management officials present at all stakeholder meetings regarding DPM;"},{"$f":"IFERROR(VLOOKUP($A15,masterlist!$C$2:$AA$207,22,FALSE),\"\")","v":"Ministère de l’agriculture"},{"$f":"IFERROR(IF($B$7=2,(VLOOKUP($A15,masterlist!$C$2:$AA$207,23,FALSE)-11),IF($B$7=4,(VLOOKUP($A15,masterlist!$C$2:$AA$207,23,FALSE)-9),IF($B$7=7,(VLOOKUP($A15,masterlist!$C$2:$AA$207,23,FALSE)-6),IF($B$7=10,(VLOOKUP($A15,masterlist!$C$2:$AA$207,23,FALSE)-3),(VLOOKUP($A15,masterlist!$C$2:$AA$207,23,FALSE)))))),\"\")","v":1},{"$f":"IFERROR(VLOOKUP($A15,masterlist!$C$2:$AA$207,24,FALSE),\"\")","v":"• Identification des parties prenantes municipales concernées.\n•  Enregistrement des informations partagées et des invitations aux réunions.\n• Invitations documentées des acteurs municipaux aux réunions."}]
[{"$f":"IF(ROWS($A$13:A16)<=(SUMPRODUCT((masterlist!B:B=\"DPM\")*(masterlist!J:J=0))),INDEX(masterlist!$C$2:$C$207,SMALL(IF(masterlist!$B$2:$B$207=\"DPM\",IF(masterlist!$F$2:$F$207>0,IF(masterlist!$J$2:$J$207=0,ROW(masterlist!$B$2:$B$207)-ROW(masterlist!$B$2)+1))),ROWS($A$13:A16))),\"\")","v":"DPM- -1-5"},{"$f":"IFERROR(VLOOKUP($A16,masterlist!$C$2:$AA$207,3,FALSE),\"\")","v":1},{"$f":"IFERROR(VLOOKUP($A16,masterlist!$C$2:$AA$207,2,FALSE),\"\")","v":" "},{"$f":"IFERROR(VLOOKUP($A16,masterlist!$C$2:$AD$207,28,FALSE),\"\")","v":"Déterminer un nombre de référence de chiens dans une zone (par exemple, un projet pilote)."},{"$f":"IFERROR(IF((VLOOKUP($A16,masterlist!$C$2:$AA$207,9,FALSE))=0,\"\",VLOOKUP($A16,masterlist!$C$2:$AA$207,9,FALSE)),\"\")","v":""},{"$f":"IFERROR(VLOOKUP($A16,masterlist!$C$2:$AA$207,20,FALSE),\"\")","v":"• Étudier les différentes méthodes scientifiques qui pourraient être utilisées pour déterminer le nombre de chiens de référence et identifier l'approche idéale pour votre contexte local ;\n• Identifier une zone où l'approche peut être utilisée pour déterminer le nombre de chiens de référence ;\n• Obtenir le financement et les ressources nécessaires pour mettre en œuvre l'estimation de la population canine ;\n• Former des professionnels à la mise en œuvre de l'estimation de la population canine ;\n• Mettre en œuvre l'approche et déterminer le nombre de chiens de référence dans la zone choisie."},{"$f":"IFERROR(VLOOKUP($A16,masterlist!$C$2:$AA$207,21,FALSE),\"\")","v":"Baseline dog population estimate known at local level"},{"$f":"IFERROR(VLOOKUP($A16,masterlist!$C$2:$AA$207,22,FALSE),\"\")","v":"Ministère de l’agriculture"},{"$f":"IFERROR(IF($B$7=2,(VLOOKUP($A16,masterlist!$C$2:$AA$207,23,FALSE)-11),IF($B$7=4,(VLOOKUP($A16,masterlist!$C$2:$AA$207,23,FALSE)-9),IF($B$7=7,(VLOOKUP($A16,masterlist!$C$2:$AA$207,23,FALSE)-6),IF($B$7=10,(VLOOKUP($A16,masterlist!$C$2:$AA$207,23,FALSE)-3),(VLOOKUP($A16,masterlist!$C$2:$AA$207,23,FALSE)))))),\"\")","v":1},{"$f":"IFERROR(VLOOKUP($A16,masterlist!$C$2:$AA$207,24,FALSE),\"\")","v":"• Identification et mise en œuvre d'une méthode scientifiquement fondée d'estimation de la population canine.\n• Personnel formé et procédures documentées pour l'estimation des populations de chiens.\n• Rapport de base sur la population canine dans la zone pilote."}]
[{"$f":"IF(ROWS($A$13:A17)<=(SUMPRODUCT((masterlist!B:B=\"DPM\")*(masterlist!J:J=0))),INDEX(masterlist!$C$2:$C$207,SMALL(IF(masterlist!$B$2:$B$207=\"DPM\",IF(masterlist!$F$2:$F$207>0,IF(masterlist!$J$2:$J$207=0,ROW(masterlist!$B$2:$B$207)-ROW(masterlist!$B$2)+1))),ROWS($A$13:A17))),\"\")","v":"DPM- -2-6"},{"$f":"IFERROR(VLOOKUP($A17,masterlist!$C$2:$AA$207,3,FALSE),\"\")","v":2},{"$f":"IFERROR(VLOOKUP($A17,masterlist!$C$2:$AA$207,2,FALSE),\"\")","v":" "},{"$f":"IFERROR(VLOOKUP($A17,masterlist!$C$2:$AD$207,28,FALSE),\"\")","v":"Rédiger et partager une stratégie de GCPC avec toutes les parties prenantes concernées pour une zone donnée (par exemple, un projet pilote)."},{"$f":"IFERROR(IF((VLOOKUP($A17,masterlist!$C$2:$AA$207,9,FALSE))=0,\"\",VLOOKUP($A17,masterlist!$C$2:$AA$207,9,FALSE)),\"\")","v":""},{"$f":"IFERROR(VLOOKUP($A17,masterlist!$C$2:$AA$207,20,FALSE),\"\")","v":"• Rédiger une stratégie de GCPC sur la base des consultations des parties prenantes ;\n• Partager le projet de stratégie de GCPC avec toutes les parties prenantes concernées pour examen et retour d'information ;\n• Examiner et intégrer tout retour d'information reçu."},{"$f":"IFERROR(VLOOKUP($A17,masterlist!$C$2:$AA$207,21,FALSE),\"\")","v":"A draft of the local-level DPM strategy is available with specific deadlines for feedback and review in place."},{"$f":"IFERROR(VLOOKUP($A17,masterlist!$C$2:$AA$207,22,FALSE),\"\")","v":"Ministère de l’agriculture"},{"$f":"IFERROR(IF($B$7=2,(VLOOKUP($A17,masterlist!$C$2:$AA$207,23,FALSE)-11),IF($B$7=4,(VLOOKUP($A17,masterlist!$C$2:$AA$207,23,FALSE)-9),IF($B$7=7,(VLOOKUP($A17,masterlist!$C$2:$AA$207,23,FALSE)-6),IF($B$7=10,(VLOOKUP($A17,masterlist!$C$2:$AA$207,23,FALSE)-3),(VLOOKUP($A17,masterlist!$C$2:$AA$207,23,FALSE)))))),\"\")","v":4},{"$f":"IFERROR(VLOOKUP($A17,masterlist!$C$2:$AA$207,24,FALSE),\"\")","v":"• Élaboration d'une stratégie de GCPC sur la base des consultations des parties prenantes.\n• Consignation du retour d'information de toutes les parties prenantes concernées.\n• Révision de la stratégie en tenant compte des contributions des parties prenantes."}]
[{"$f":"IF(ROWS($A$13:A18)<=(SUMPRODUCT((masterlist!B:B=\"DPM\")*(masterlist!J:J=0))),INDEX(masterlist!$C$2:$C$207,SMALL(IF(masterlist!$B$2:$B$207=\"DPM\",IF(masterlist!$F$2:$F$207>0,IF(masterlist!$J$2:$J$207=0,ROW(masterlist!$B$2:$B$207)-ROW(masterlist!$B$2)+1))),ROWS($A$13:A18))),\"\")","v":"DPM- -2-7"},{"$f":"IFERROR(VLOOKUP($A18,masterlist!$C$2:$AA$207,3,FALSE),\"\")","v":2},{"$f":"IFERROR(VLOOKUP($A18,masterlist!$C$2:$AA$207,2,FALSE),\"\")","v":" "},{"$f":"IFERROR(VLOOKUP($A18,masterlist!$C$2:$AD$207,28,FALSE),\"\")","v":"Finaliser et mettre en œuvre la stratégie de gestion compassionnelle des populations canines dans une zone (par exemple, un projet pilote)."},{"$f":"IFERROR(IF((VLOOKUP($A18,masterlist!$C$2:$AA$207,9,FALSE))=0,\"\",VLOOKUP($A18,masterlist!$C$2:$AA$207,9,FALSE)),\"\")","v":""},{"$f":"IFERROR(VLOOKUP($A18,masterlist!$C$2:$AA$207,20,FALSE),\"\")","v":"• Finaliser la stratégie de GCPC sur la base des commentaires des parties prenantes ; \n• S'assurer que la stratégie de GCPC est reconnue ou approuvée par l'autorité compétente concernée ;\n• Identifier les ressources et les autorités responsables de la mise en œuvre de la stratégie de GCPC ;\n• Obtenir un financement pour la mise en œuvre de la stratégie de GCPC dans une région ;\n• Diffuser la version finale de la stratégie à tous les professionnels concernés ;\n• Former tous les professionnels concernés à la mise en œuvre de la stratégie de GCPC;\n• Mettre en œuvre la stratégie de GCPC dans une région."},{"$f":"IFERROR(VLOOKUP($A18,masterlist!$C$2:$AA$207,21,FALSE),\"\")","v":"The local-level DPM strategy is finalised with all associated stakeholders in agreement. Funding and resources are available for the local implementation of the strategy and it is effected upon endorsement / recognition of the strategy. "},{"$f":"IFERROR(VLOOKUP($A18,masterlist!$C$2:$AA$207,22,FALSE),\"\")","v":"Ministère de l’agriculture"},{"$f":"IFERROR(IF($B$7=2,(VLOOKUP($A18,masterlist!$C$2:$AA$207,23,FALSE)-11),IF($B$7=4,(VLOOKUP($A18,masterlist!$C$2:$AA$207,23,FALSE)-9),IF($B$7=7,(VLOOKUP($A18,masterlist!$C$2:$AA$207,23,FALSE)-6),IF($B$7=10,(VLOOKUP($A18,masterlist!$C$2:$AA$207,23,FALSE)-3),(VLOOKUP($A18,masterlist!$C$2:$AA$207,23,FALSE)))))),\"\")","v":6},{"$f":"IFERROR(VLOOKUP($A18,masterlist!$C$2:$AA$207,24,FALSE),\"\")","v":"• Approbation et reconnaissance de la stratégie de GCPC par les autorités compétentes.\n• Financement et ressources assurés pour la mise en œuvre de la stratégie.\n• Documentation des professionnels formés \n• Rapport de mise en œuvre des activités de GCPC dans la zone pilote."}]
[{"$f":"IF(ROWS($A$13:A19)<=(SUMPRODUCT((masterlist!B:B=\"DPM\")*(masterlist!J:J=0))),INDEX(masterlist!$C$2:$C$207,SMALL(IF(masterlist!$B$2:$B$207=\"DPM\",IF(masterlist!$F$2:$F$207>0,IF(masterlist!$J$2:$J$207=0,ROW(masterlist!$B$2:$B$207)-ROW(masterlist!$B$2)+1))),ROWS($A$13:A19))),\"\")","v":"DPM- -2-8"},{"$f":"IFERROR(VLOOKUP($A19,masterlist!$C$2:$AA$207,3,FALSE),\"\")","v":2},{"$f":"IFERROR(VLOOKUP($A19,masterlist!$C$2:$AA$207,2,FALSE),\"\")","v":" "},{"$f":"IFERROR(VLOOKUP($A19,masterlist!$C$2:$AD$207,28,FALSE),\"\")","v":"Former ou éduquer les professionnels à la gestion compassionnelle des populations canines dans une région (par exemple, un projet pilote)."},{"$f":"IFERROR(IF((VLOOKUP($A19,masterlist!$C$2:$AA$207,9,FALSE))=0,\"\",VLOOKUP($A19,masterlist!$C$2:$AA$207,9,FALSE)),\"\")","v":""},{"$f":"IFERROR(VLOOKUP($A19,masterlist!$C$2:$AA$207,20,FALSE),\"\")","v":"• Déterminer les besoins de formation des professionnels en ce qui concerne la gestion compassionnelle des populations canines, dans une région spécifique ;\n• Identifier un matériel de formation efficace et pertinent ;\n• Identifier et assurer le financement de la formation ;\n• Identifier les exigences logistiques (lieu, heure, date, etc.) pour entreprendre la formation pour les professionnels dans une région ;\n• Lancer la formation pour les professionnels dans la région choisie."},{"$f":"IFERROR(VLOOKUP($A19,masterlist!$C$2:$AA$207,21,FALSE),\"\")","v":"Professionals in animal health at the local level have been trained / updated on the latest techniques and information regarding DPM;"},{"$f":"IFERROR(VLOOKUP($A19,masterlist!$C$2:$AA$207,22,FALSE),\"\")","v":"Ministère de l’agriculture"},{"$f":"IFERROR(IF($B$7=2,(VLOOKUP($A19,masterlist!$C$2:$AA$207,23,FALSE)-11),IF($B$7=4,(VLOOKUP($A19,masterlist!$C$2:$AA$207,23,FALSE)-9),IF($B$7=7,(VLOOKUP($A19,masterlist!$C$2:$AA$207,23,FALSE)-6),IF($B$7=10,(VLOOKUP($A19,masterlist!$C$2:$AA$207,23,FALSE)-3),(VLOOKUP($A19,masterlist!$C$2:$AA$207,23,FALSE)))))),\"\")","v":6},{"$f":"IFERROR(VLOOKUP($A19,masterlist!$C$2:$AA$207,24,FALSE),\"\")","v":"• Besoins en formation et supports pédagogiques pertinents identifiés.\n• Registres des professionnels formés et des ressources éducatives fournies."}]
[{"$f":"IF(ROWS($A$13:A20)<=(SUMPRODUCT((masterlist!B:B=\"DPM\")*(masterlist!J:J=0))),INDEX(masterlist!$C$2:$C$207,SMALL(IF(masterlist!$B$2:$B$207=\"DPM\",IF(masterlist!$F$2:$F$207>0,IF(masterlist!$J$2:$J$207=0,ROW(masterlist!$B$2:$B$207)-ROW(masterlist!$B$2)+1))),ROWS($A$13:A20))),\"\")","v":"DPM- -2-9"},{"$f":"IFERROR(VLOOKUP($A20,masterlist!$C$2:$AA$207,3,FALSE),\"\")","v":2},{"$f":"IFERROR(VLOOKUP($A20,masterlist!$C$2:$AA$207,2,FALSE),\"\")","v":" "},{"$f":"IFERROR(VLOOKUP($A20,masterlist!$C$2:$AD$207,28,FALSE),\"\")","v":"Mettre en œuvre des campagnes de sensibilisation du public à la GCPC dans une région (par exemple, projet pilote)."},{"$f":"IFERROR(IF((VLOOKUP($A20,masterlist!$C$2:$AA$207,9,FALSE))=0,\"\",VLOOKUP($A20,masterlist!$C$2:$AA$207,9,FALSE)),\"\")","v":"strategie et obligations destinees aux proprietaires est en place (animaux a proprietaires)"},{"$f":"IFERROR(VLOOKUP($A20,masterlist!$C$2:$AA$207,20,FALSE),\"\")","v":"• Examiner le matériel de sensibilisation à la GCPC et les campagnes d'information existantes provenant d'autres sources ;\n• Obtenir un financement pour la sensibilisation du public à la GCPC ;\n• Élaborer des messages et du matériel de sensibilisation du public conformes à la stratégie de GCPC finalisée ;\n• Déterminer la meilleure façon de diffuser les messages et le matériel de sensibilisation dans la région choisie (heure de la journée, canaux médiatiques, etc.) ;\n• Mettre en œuvre les campagnes de sensibilisation du public à la GCPC dans la région choisie."},{"$f":"IFERROR(VLOOKUP($A20,masterlist!$C$2:$AA$207,21,FALSE),\"\")","v":"Rabies awareness campaigns include public sensitisation regarding DPM and its importance at a local level;"},{"$f":"IFERROR(VLOOKUP($A20,masterlist!$C$2:$AA$207,22,FALSE),\"\")","v":"Ministère de l’agriculture"},{"$f":"IFERROR(IF($B$7=2,(VLOOKUP($A20,masterlist!$C$2:$AA$207,23,FALSE)-11),IF($B$7=4,(VLOOKUP($A20,masterlist!$C$2:$AA$207,23,FALSE)-9),IF($B$7=7,(VLOOKUP($A20,masterlist!$C$2:$AA$207,23,FALSE)-6),IF($B$7=10,(VLOOKUP($A20,masterlist!$C$2:$AA$207,23,FALSE)-3),(VLOOKUP($A20,masterlist!$C$2:$AA$207,23,FALSE)))))),\"\")","v":7},{"$f":"IFERROR(VLOOKUP($A20,masterlist!$C$2:$AA$207,24,FALSE),\"\")","v":"• Développement ou adaptation de matériel de sensibilisation du public aux contextes locaux.\n• Registres des financements obtenus.\n• Rapport sur la mise en œuvre de la campagne de sensibilisation du public."}]
[{"$f":"IF(ROWS($A$13:A21)<=(SUMPRODUCT((masterlist!B:B=\"DPM\")*(masterlist!J:J=0))),INDEX(masterlist!$C$2:$C$207,SMALL(IF(masterlist!$B$2:$B$207=\"DPM\",IF(masterlist!$F$2:$F$207>0,IF(masterlist!$J$2:$J$207=0,ROW(masterlist!$B$2:$B$207)-ROW(masterlist!$B$2)+1))),ROWS($A$13:A21))),\"\")","v":"DPM- -3-10"},{"$f":"IFERROR(VLOOKUP($A21,masterlist!$C$2:$AA$207,3,FALSE),\"\")","v":3},{"$f":"IFERROR(VLOOKUP($A21,masterlist!$C$2:$AA$207,2,FALSE),\"\")","v":" "},{"$f":"IFERROR(VLOOKUP($A21,masterlist!$C$2:$AD$207,28,FALSE),\"\")","v":"Évaluer et affiner la stratégie de GCPC sur la base des résultats obtenus dans la zone du projet (par exemple, le projet pilote)."},{"$f":"IFERROR(IF((VLOOKUP($A21,masterlist!$C$2:$AA$207,9,FALSE))=0,\"\",VLOOKUP($A21,masterlist!$C$2:$AA$207,9,FALSE)),\"\")","v":""},{"$f":"IFERROR(VLOOKUP($A21,masterlist!$C$2:$AA$207,20,FALSE),\"\")","v":"• Compiler et évaluer les données collectées au cours de la mise en œuvre de la stratégie de GCPC ;\n• Rédiger un rapport dans lequel vous mettrez en évidence les succès et les lacunes du programme ;\n• Réunir toutes les parties prenantes concernées par la GCPC pour réévaluer la stratégie de GCPC ;\n• Réviser, affiner et finaliser la stratégie de GCPC."},{"$f":"IFERROR(VLOOKUP($A21,masterlist!$C$2:$AA$207,21,FALSE),\"\")","v":"A newly refined DPM strategy is finalised and documenteded based on the most up-to-date dog ecology data from the local level;"},{"$f":"IFERROR(VLOOKUP($A21,masterlist!$C$2:$AA$207,22,FALSE),\"\")","v":"Ministère de l’agriculture"},{"$f":"IFERROR(IF($B$7=2,(VLOOKUP($A21,masterlist!$C$2:$AA$207,23,FALSE)-11),IF($B$7=4,(VLOOKUP($A21,masterlist!$C$2:$AA$207,23,FALSE)-9),IF($B$7=7,(VLOOKUP($A21,masterlist!$C$2:$AA$207,23,FALSE)-6),IF($B$7=10,(VLOOKUP($A21,masterlist!$C$2:$AA$207,23,FALSE)-3),(VLOOKUP($A21,masterlist!$C$2:$AA$207,23,FALSE)))))),\"\")","v":8},{"$f":"IFERROR(VLOOKUP($A21,masterlist!$C$2:$AA$207,24,FALSE),\"\")","v":"• Rapport complet évaluant les résultats du projet et l'analyse des données.\n• Réunions des parties prenantes afin d'examiner et d'affiner la stratégie de GCPC.\n• Mise à jour et amélioration de la stratégie de GCPC sur la base des résultats du projet pilote."}]
[{"$f":"IF(ROWS($A$13:A22)<=(SUMPRODUCT((masterlist!B:B=\"DPM\")*(masterlist!J:J=0))),INDEX(masterlist!$C$2:$C$207,SMALL(IF(masterlist!$B$2:$B$207=\"DPM\",IF(masterlist!$F$2:$F$207>0,IF(masterlist!$J$2:$J$207=0,ROW(masterlist!$B$2:$B$207)-ROW(masterlist!$B$2)+1))),ROWS($A$13:A22))),\"\")","v":"DPM- -3-11"},{"$f":"IFERROR(VLOOKUP($A22,masterlist!$C$2:$AA$207,3,FALSE),\"\")","v":3},{"$f":"IFERROR(VLOOKUP($A22,masterlist!$C$2:$AA$207,2,FALSE),\"\")","v":" "},{"$f":"IFERROR(VLOOKUP($A22,masterlist!$C$2:$AD$207,28,FALSE),\"\")","v":"Étendre à d'autres régions du pays les campagnes de sensibilisation du public à la GCPC."},{"$f":"IFERROR(IF((VLOOKUP($A22,masterlist!$C$2:$AA$207,9,FALSE))=0,\"\",VLOOKUP($A22,masterlist!$C$2:$AA$207,9,FALSE)),\"\")","v":""},{"$f":"IFERROR(VLOOKUP($A22,masterlist!$C$2:$AA$207,20,FALSE),\"\")","v":"• Évaluer les messages et le matériel existants et les réviser si nécessaire (en tenant compte des différences entre les localités, les cultures, etc.) ;\n• Obtenir un financement pour l'élaboration et la diffusion de messages et de supports de sensibilisation supplémentaires afin de sensibiliser un plus grand nombre de régions du pays ;\n• Élaborer des messages et des supports de sensibilisation du public conformes à la stratégie actualisée et finalisée du GCPC ;\n• Déterminer la meilleure façon de distribuer les messages et le matériel de sensibilisation dans un plus grand nombre de régions du pays (en tenant compte des différentes cultures, de l'accès aux médias, etc. dans les différentes régions) ;\n• Mettre en œuvre les campagnes de sensibilisation du public à la GCPC dans un plus grand nombre de régions du pays."},{"$f":"IFERROR(VLOOKUP($A22,masterlist!$C$2:$AA$207,21,FALSE),\"\")","v":"Rabies awareness campaigns, including DPM, are revised, customised, resourced and expanded to other areas for implementation"},{"$f":"IFERROR(VLOOKUP($A22,masterlist!$C$2:$AA$207,22,FALSE),\"\")","v":"Ministère de l’agriculture"},{"$f":"IFERROR(IF($B$7=2,(VLOOKUP($A22,masterlist!$C$2:$AA$207,23,FALSE)-11),IF($B$7=4,(VLOOKUP($A22,masterlist!$C$2:$AA$207,23,FALSE)-9),IF($B$7=7,(VLOOKUP($A22,masterlist!$C$2:$AA$207,23,FALSE)-6),IF($B$7=10,(VLOOKUP($A22,masterlist!$C$2:$AA$207,23,FALSE)-3),(VLOOKUP($A22,masterlist!$C$2:$AA$207,23,FALSE)))))),\"\")","v":7},{"$f":"IFERROR(VLOOKUP($A22,masterlist!$C$2:$AA$207,24,FALSE),\"\")","v":"• Révision et adaptation du matériel de sensibilisation à divers contextes culturels.\n• Obtention d'un financement pour la distribution à l'échelle nationale du matériel de sensibilisation à la GCPC.\n• Mise en place de registres et documentation de la portée des campagnes de sensibilisation du public."}]
[{"$f":"IF(ROWS($A$13:A23)<=(SUMPRODUCT((masterlist!B:B=\"DPM\")*(masterlist!J:J=0))),INDEX(masterlist!$C$2:$C$207,SMALL(IF(masterlist!$B$2:$B$207=\"DPM\",IF(masterlist!$F$2:$F$207>0,IF(masterlist!$J$2:$J$207=0,ROW(masterlist!$B$2:$B$207)-ROW(masterlist!$B$2)+1))),ROWS($A$13:A23))),\"\")","v":"DPM- -3-12"},{"$f":"IFERROR(VLOOKUP($A23,masterlist!$C$2:$AA$207,3,FALSE),\"\")","v":3},{"$f":"IFERROR(VLOOKUP($A23,masterlist!$C$2:$AA$207,2,FALSE),\"\")","v":" "},{"$f":"IFERROR(VLOOKUP($A23,masterlist!$C$2:$AD$207,28,FALSE),\"\")","v":"Former les professionnels vétérinaires et animaliers concernés à la mise en œuvre de la GCPC dans l'ensemble du pays."},{"$f":"IFERROR(IF((VLOOKUP($A23,masterlist!$C$2:$AA$207,9,FALSE))=0,\"\",VLOOKUP($A23,masterlist!$C$2:$AA$207,9,FALSE)),\"\")","v":""},{"$f":"IFERROR(VLOOKUP($A23,masterlist!$C$2:$AA$207,20,FALSE),\"\")","v":"• Élaborer un plan pour étendre la formation au reste du pays à partir des zones locales ;\n• Identifier et assurer le financement de la formation dans l'ensemble du pays ;\n• Identifier les besoins logistiques (lieu, heure, date, etc.) pour entreprendre la formation des professionnels dans tout le pays ;\n• Lancer la formation des professionnels dans l'ensemble du pays ;\n• Évaluer l'efficacité et la portée des cours de formation pour s'assurer que les professionnels ont été formés dans tout le pays."},{"$f":"IFERROR(VLOOKUP($A23,masterlist!$C$2:$AA$207,21,FALSE),\"\")","v":"The majority of veterinary and animal technicians have been trained in DPM across the country;"},{"$f":"IFERROR(VLOOKUP($A23,masterlist!$C$2:$AA$207,22,FALSE),\"\")","v":"Ministère de l’agriculture"},{"$f":"IFERROR(IF($B$7=2,(VLOOKUP($A23,masterlist!$C$2:$AA$207,23,FALSE)-11),IF($B$7=4,(VLOOKUP($A23,masterlist!$C$2:$AA$207,23,FALSE)-9),IF($B$7=7,(VLOOKUP($A23,masterlist!$C$2:$AA$207,23,FALSE)-6),IF($B$7=10,(VLOOKUP($A23,masterlist!$C$2:$AA$207,23,FALSE)-3),(VLOOKUP($A23,masterlist!$C$2:$AA$207,23,FALSE)))))),\"\")","v":8},{"$f":"IFERROR(VLOOKUP($A23,masterlist!$C$2:$AA$207,24,FALSE),\"\")","v":"• Plan national de formation pour les vétérinaires et les professionnels des animaux.\n• Séances de formation documentées et registres de participation.\n• Rapports d'évaluation sur l'efficacité et la portée des efforts nationaux de formation."}]
[{"$f":"IF(ROWS($A$13:A24)<=(SUMPRODUCT((masterlist!B:B=\"DPM\")*(masterlist!J:J=0))),INDEX(masterlist!$C$2:$C$207,SMALL(IF(masterlist!$B$2:$B$207=\"DPM\",IF(masterlist!$F$2:$F$207>0,IF(masterlist!$J$2:$J$207=0,ROW(masterlist!$B$2:$B$207)-ROW(masterlist!$B$2)+1))),ROWS($A$13:A24))),\"\")","v":"DPM- -5-13"},{"$f":"IFERROR(VLOOKUP($A24,masterlist!$C$2:$AA$207,3,FALSE),\"\")","v":5},{"$f":"IFERROR(VLOOKUP($A24,masterlist!$C$2:$AA$207,2,FALSE),\"\")","v":" "},{"$f":"IFERROR(VLOOKUP($A24,masterlist!$C$2:$AD$207,28,FALSE),\"\")","v":"Mettre en œuvre la stratégie finalisée de GCPC dans l'ensemble du pays."},{"$f":"IFERROR(IF((VLOOKUP($A24,masterlist!$C$2:$AA$207,9,FALSE))=0,\"\",VLOOKUP($A24,masterlist!$C$2:$AA$207,9,FALSE)),\"\")","v":""},{"$f":"IFERROR(VLOOKUP($A24,masterlist!$C$2:$AA$207,20,FALSE),\"\")","v":"• Identifier les parties prenantes concernées par la GCPC au niveau national ;\n• Demander aux parties prenantes nationales d'examiner la stratégie de GCPC utilisée dans au moins une région du pays ;\n• Adapter la stratégie de GCPC existante sur la base du retour d'information et des discussions pour créer une stratégie nationale de GCPC ;\n• Obtenir le financement et les ressources nécessaires à la mise en œuvre de la stratégie nationale de GCPC ;\n• Finaliser, approuver et documenter la stratégie nationale de GCPC ;\n• Former tous les professionnels concernés à la mise en œuvre de la stratégie nationale de GCPC, le cas échéant ;  \n• Mettre en œuvre la stratégie nationale à tous les niveaux, y compris en fournissant un soutien continu aux stratégies locales et aux parties prenantes."},{"$f":"IFERROR(VLOOKUP($A24,masterlist!$C$2:$AA$207,21,FALSE),\"\")","v":"A national DPM strategy is devised, documented, funded, endorsed and implemented based on the experiences and feedback from local-level strategies. The national DPM strategy should ensure sufficient resources and support to local-level implementation;"},{"$f":"IFERROR(VLOOKUP($A24,masterlist!$C$2:$AA$207,22,FALSE),\"\")","v":"Ministère de l’agriculture"},{"$f":"IFERROR(IF($B$7=2,(VLOOKUP($A24,masterlist!$C$2:$AA$207,23,FALSE)-11),IF($B$7=4,(VLOOKUP($A24,masterlist!$C$2:$AA$207,23,FALSE)-9),IF($B$7=7,(VLOOKUP($A24,masterlist!$C$2:$AA$207,23,FALSE)-6),IF($B$7=10,(VLOOKUP($A24,masterlist!$C$2:$AA$207,23,FALSE)-3),(VLOOKUP($A24,masterlist!$C$2:$AA$207,23,FALSE)))))),\"\")","v":12},{"$f":"IFERROR(VLOOKUP($A24,masterlist!$C$2:$AA$207,24,FALSE),\"\")","v":"• Approbation de la stratégie nationale de GCPC intégrant les enseignements issus des projets locaux.\n• Financement et soutien logistique obtenus pour la mise en œuvre nationale.\n• Documentation de l'exécution de la stratégie nationale et des structures de soutien."}]
[{"$f":"IF(ROWS($A$13:A25)<=(SUMPRODUCT((masterlist!B:B=\"DPM\")*(masterlist!J:J=0))),INDEX(masterlist!$C$2:$C$207,SMALL(IF(masterlist!$B$2:$B$207=\"DPM\",IF(masterlist!$F$2:$F$207>0,IF(masterlist!$J$2:$J$207=0,ROW(masterlist!$B$2:$B$207)-ROW(masterlist!$B$2)+1))),ROWS($A$13:A25))),\"\")","v":"DPM- -5-14"},{"$f":"IFERROR(VLOOKUP($A25,masterlist!$C$2:$AA$207,3,FALSE),\"\")","v":5},{"$f":"IFERROR(VLOOKUP($A25,masterlist!$C$2:$AA$207,2,FALSE),\"\")","v":" "},{"$f":"IFERROR(VLOOKUP($A25,masterlist!$C$2:$AD$207,28,FALSE),\"\")","v":"Veiller à ce que les campagnes de GCPC se poursuivent dans tout le pays après l'élimination de la rage canine."},{"$f":"IFERROR(IF((VLOOKUP($A25,masterlist!$C$2:$AA$207,9,FALSE))=0,\"\",VLOOKUP($A25,masterlist!$C$2:$AA$207,9,FALSE)),\"\")","v":""},{"$f":"IFERROR(VLOOKUP($A25,masterlist!$C$2:$AA$207,20,FALSE),\"\")","v":"• Examiner et mettre à jour régulièrement la stratégie nationale établie en matière de GCPC et garantir le financement nécessaire à la poursuite de sa mise en œuvre ;\n• Partager les procédures opérationnelles standard avec les nouveaux professionnels travaillant dans les zones locales ;\n• Former régulièrement les professionnels à toutes les activités pertinentes en matière de GCPC ;\n• Poursuivre la sensibilisation du public à l'importance de la GCPC."},{"$f":"IFERROR(VLOOKUP($A25,masterlist!$C$2:$AA$207,21,FALSE),\"\")","v":"The national DPM strategy has been revised and allocated sufficient funding to continue DPM efforts after the elimination of canine-mediated human rabies. "},{"$f":"IFERROR(VLOOKUP($A25,masterlist!$C$2:$AA$207,22,FALSE),\"\")","v":"Ministère de l’agriculture"},{"$f":"IFERROR(IF($B$7=2,(VLOOKUP($A25,masterlist!$C$2:$AA$207,23,FALSE)-11),IF($B$7=4,(VLOOKUP($A25,masterlist!$C$2:$AA$207,23,FALSE)-9),IF($B$7=7,(VLOOKUP($A25,masterlist!$C$2:$AA$207,23,FALSE)-6),IF($B$7=10,(VLOOKUP($A25,masterlist!$C$2:$AA$207,23,FALSE)-3),(VLOOKUP($A25,masterlist!$C$2:$AA$207,23,FALSE)))))),\"\")","v":13},{"$f":"IFERROR(VLOOKUP($A25,masterlist!$C$2:$AA$207,24,FALSE),\"\")","v":"• Mise à jour régulière de la stratégie nationale de GCPC et des procédures opérationnelles normalisées.\n• Programmes de formation continue pour les professionnels nouveaux et existants.\n• Documentation sur la sensibilisation continue du public et l'engagement des parties prenantes."}]
[{"$f":"IF(ROWS($A$13:A26)<=(SUMPRODUCT((masterlist!B:B=\"DPM\")*(masterlist!J:J=0))),INDEX(masterlist!$C$2:$C$207,SMALL(IF(masterlist!$B$2:$B$207=\"DPM\",IF(masterlist!$F$2:$F$207>0,IF(masterlist!$J$2:$J$207=0,ROW(masterlist!$B$2:$B$207)-ROW(masterlist!$B$2)+1))),ROWS($A$13:A26))),\"\")","v":""},{"$f":"IFERROR(VLOOKUP($A26,masterlist!$C$2:$AA$207,3,FALSE),\"\")","v":""},{"$f":"IFERROR(VLOOKUP($A26,masterlist!$C$2:$AA$207,2,FALSE),\"\")","v":""},{"$f":"IFERROR(VLOOKUP($A26,masterlist!$C$2:$AD$207,28,FALSE),\"\")","v":""},{"$f":"IFERROR(IF((VLOOKUP($A26,masterlist!$C$2:$AA$207,9,FALSE))=0,\"\",VLOOKUP($A26,masterlist!$C$2:$AA$207,9,FALSE)),\"\")","v":""},{"$f":"IFERROR(VLOOKUP($A26,masterlist!$C$2:$AA$207,20,FALSE),\"\")","v":""},{"$f":"IFERROR(VLOOKUP($A26,masterlist!$C$2:$AA$207,21,FALSE),\"\")","v":""},{"$f":"IFERROR(VLOOKUP($A26,masterlist!$C$2:$AA$207,22,FALSE),\"\")","v":""},{"$f":"IFERROR(IF($B$7=2,(VLOOKUP($A26,masterlist!$C$2:$AA$207,23,FALSE)-11),IF($B$7=4,(VLOOKUP($A26,masterlist!$C$2:$AA$207,23,FALSE)-9),IF($B$7=7,(VLOOKUP($A26,masterlist!$C$2:$AA$207,23,FALSE)-6),IF($B$7=10,(VLOOKUP($A26,masterlist!$C$2:$AA$207,23,FALSE)-3),(VLOOKUP($A26,masterlist!$C$2:$AA$207,23,FALSE)))))),\"\")","v":""},{"$f":"IFERROR(VLOOKUP($A26,masterlist!$C$2:$AA$207,24,FALSE),\"\")","v":""}]
[{"$f":"IF(ROWS($A$13:A27)<=(SUMPRODUCT((masterlist!B:B=\"DPM\")*(masterlist!J:J=0))),INDEX(masterlist!$C$2:$C$207,SMALL(IF(masterlist!$B$2:$B$207=\"DPM\",IF(masterlist!$F$2:$F$207>0,IF(masterlist!$J$2:$J$207=0,ROW(masterlist!$B$2:$B$207)-ROW(masterlist!$B$2)+1))),ROWS($A$13:A27))),\"\")","v":""},{"$f":"IFERROR(VLOOKUP($A27,masterlist!$C$2:$AA$207,3,FALSE),\"\")","v":""},{"$f":"IFERROR(VLOOKUP($A27,masterlist!$C$2:$AA$207,2,FALSE),\"\")","v":""},{"$f":"IFERROR(VLOOKUP($A27,masterlist!$C$2:$AD$207,28,FALSE),\"\")","v":""},{"$f":"IFERROR(IF((VLOOKUP($A27,masterlist!$C$2:$AA$207,9,FALSE))=0,\"\",VLOOKUP($A27,masterlist!$C$2:$AA$207,9,FALSE)),\"\")","v":""},{"$f":"IFERROR(VLOOKUP($A27,masterlist!$C$2:$AA$207,20,FALSE),\"\")","v":""},{"$f":"IFERROR(VLOOKUP($A27,masterlist!$C$2:$AA$207,21,FALSE),\"\")","v":""},{"$f":"IFERROR(VLOOKUP($A27,masterlist!$C$2:$AA$207,22,FALSE),\"\")","v":""},{"$f":"IFERROR(IF($B$7=2,(VLOOKUP($A27,masterlist!$C$2:$AA$207,23,FALSE)-11),IF($B$7=4,(VLOOKUP($A27,masterlist!$C$2:$AA$207,23,FALSE)-9),IF($B$7=7,(VLOOKUP($A27,masterlist!$C$2:$AA$207,23,FALSE)-6),IF($B$7=10,(VLOOKUP($A27,masterlist!$C$2:$AA$207,23,FALSE)-3),(VLOOKUP($A27,masterlist!$C$2:$AA$207,23,FALSE)))))),\"\")","v":""},{"$f":"IFERROR(VLOOKUP($A27,masterlist!$C$2:$AA$207,24,FALSE),\"\")","v":""}]
[{"$f":"IF(ROWS($A$13:A28)<=(SUMPRODUCT((masterlist!B:B=\"DPM\")*(masterlist!J:J=0))),INDEX(masterlist!$C$2:$C$207,SMALL(IF(masterlist!$B$2:$B$207=\"DPM\",IF(masterlist!$F$2:$F$207>0,IF(masterlist!$J$2:$J$207=0,ROW(masterlist!$B$2:$B$207)-ROW(masterlist!$B$2)+1))),ROWS($A$13:A28))),\"\")","v":""},{"$f":"IFERROR(VLOOKUP($A28,masterlist!$C$2:$AA$207,3,FALSE),\"\")","v":""},{"$f":"IFERROR(VLOOKUP($A28,masterlist!$C$2:$AA$207,2,FALSE),\"\")","v":""},{"$f":"IFERROR(VLOOKUP($A28,masterlist!$C$2:$AD$207,28,FALSE),\"\")","v":""},{"$f":"IFERROR(IF((VLOOKUP($A28,masterlist!$C$2:$AA$207,9,FALSE))=0,\"\",VLOOKUP($A28,masterlist!$C$2:$AA$207,9,FALSE)),\"\")","v":""},{"$f":"IFERROR(VLOOKUP($A28,masterlist!$C$2:$AA$207,20,FALSE),\"\")","v":""},{"$f":"IFERROR(VLOOKUP($A28,masterlist!$C$2:$AA$207,21,FALSE),\"\")","v":""},{"$f":"IFERROR(VLOOKUP($A28,masterlist!$C$2:$AA$207,22,FALSE),\"\")","v":""},{"$f":"IFERROR(IF($B$7=2,(VLOOKUP($A28,masterlist!$C$2:$AA$207,23,FALSE)-11),IF($B$7=4,(VLOOKUP($A28,masterlist!$C$2:$AA$207,23,FALSE)-9),IF($B$7=7,(VLOOKUP($A28,masterlist!$C$2:$AA$207,23,FALSE)-6),IF($B$7=10,(VLOOKUP($A28,masterlist!$C$2:$AA$207,23,FALSE)-3),(VLOOKUP($A28,masterlist!$C$2:$AA$207,23,FALSE)))))),\"\")","v":""},{"$f":"IFERROR(VLOOKUP($A28,masterlist!$C$2:$AA$207,24,FALSE),\"\")","v":""}]
[{"$f":"IF(ROWS($A$13:A29)<=(SUMPRODUCT((masterlist!B:B=\"DPM\")*(masterlist!J:J=0))),INDEX(masterlist!$C$2:$C$207,SMALL(IF(masterlist!$B$2:$B$207=\"DPM\",IF(masterlist!$F$2:$F$207>0,IF(masterlist!$J$2:$J$207=0,ROW(masterlist!$B$2:$B$207)-ROW(masterlist!$B$2)+1))),ROWS($A$13:A29))),\"\")","v":""},{"$f":"IFERROR(VLOOKUP($A29,masterlist!$C$2:$AA$207,3,FALSE),\"\")","v":""},{"$f":"IFERROR(VLOOKUP($A29,masterlist!$C$2:$AA$207,2,FALSE),\"\")","v":""},{"$f":"IFERROR(VLOOKUP($A29,masterlist!$C$2:$AD$207,28,FALSE),\"\")","v":""},{"$f":"IFERROR(IF((VLOOKUP($A29,masterlist!$C$2:$AA$207,9,FALSE))=0,\"\",VLOOKUP($A29,masterlist!$C$2:$AA$207,9,FALSE)),\"\")","v":""},{"$f":"IFERROR(VLOOKUP($A29,masterlist!$C$2:$AA$207,20,FALSE),\"\")","v":""},{"$f":"IFERROR(VLOOKUP($A29,masterlist!$C$2:$AA$207,21,FALSE),\"\")","v":""},{"$f":"IFERROR(VLOOKUP($A29,masterlist!$C$2:$AA$207,22,FALSE),\"\")","v":""},{"$f":"IFERROR(IF($B$7=2,(VLOOKUP($A29,masterlist!$C$2:$AA$207,23,FALSE)-11),IF($B$7=4,(VLOOKUP($A29,masterlist!$C$2:$AA$207,23,FALSE)-9),IF($B$7=7,(VLOOKUP($A29,masterlist!$C$2:$AA$207,23,FALSE)-6),IF($B$7=10,(VLOOKUP($A29,masterlist!$C$2:$AA$207,23,FALSE)-3),(VLOOKUP($A29,masterlist!$C$2:$AA$207,23,FALSE)))))),\"\")","v":""},{"$f":"IFERROR(VLOOKUP($A29,masterlist!$C$2:$AA$207,24,FALSE),\"\")","v":""}]
[{"$f":"IF(ROWS($A$13:A30)<=(SUMPRODUCT((masterlist!B:B=\"DPM\")*(masterlist!J:J=0))),INDEX(masterlist!$C$2:$C$207,SMALL(IF(masterlist!$B$2:$B$207=\"DPM\",IF(masterlist!$F$2:$F$207>0,IF(masterlist!$J$2:$J$207=0,ROW(masterlist!$B$2:$B$207)-ROW(masterlist!$B$2)+1))),ROWS($A$13:A30))),\"\")","v":""},{"$f":"IFERROR(VLOOKUP($A30,masterlist!$C$2:$AA$207,3,FALSE),\"\")","v":""},{"$f":"IFERROR(VLOOKUP($A30,masterlist!$C$2:$AA$207,2,FALSE),\"\")","v":""},{"$f":"IFERROR(VLOOKUP($A30,masterlist!$C$2:$AD$207,28,FALSE),\"\")","v":""},{"$f":"IFERROR(IF((VLOOKUP($A30,masterlist!$C$2:$AA$207,9,FALSE))=0,\"\",VLOOKUP($A30,masterlist!$C$2:$AA$207,9,FALSE)),\"\")","v":""},{"$f":"IFERROR(VLOOKUP($A30,masterlist!$C$2:$AA$207,20,FALSE),\"\")","v":""},{"$f":"IFERROR(VLOOKUP($A30,masterlist!$C$2:$AA$207,21,FALSE),\"\")","v":""},{"$f":"IFERROR(VLOOKUP($A30,masterlist!$C$2:$AA$207,22,FALSE),\"\")","v":""},{"$f":"IFERROR(IF($B$7=2,(VLOOKUP($A30,masterlist!$C$2:$AA$207,23,FALSE)-11),IF($B$7=4,(VLOOKUP($A30,masterlist!$C$2:$AA$207,23,FALSE)-9),IF($B$7=7,(VLOOKUP($A30,masterlist!$C$2:$AA$207,23,FALSE)-6),IF($B$7=10,(VLOOKUP($A30,masterlist!$C$2:$AA$207,23,FALSE)-3),(VLOOKUP($A30,masterlist!$C$2:$AA$207,23,FALSE)))))),\"\")","v":""},{"$f":"IFERROR(VLOOKUP($A30,masterlist!$C$2:$AA$207,24,FALSE),\"\")","v":""}]
[{"$f":"IF(ROWS($A$13:A31)<=(SUMPRODUCT((masterlist!B:B=\"DPM\")*(masterlist!J:J=0))),INDEX(masterlist!$C$2:$C$207,SMALL(IF(masterlist!$B$2:$B$207=\"DPM\",IF(masterlist!$F$2:$F$207>0,IF(masterlist!$J$2:$J$207=0,ROW(masterlist!$B$2:$B$207)-ROW(masterlist!$B$2)+1))),ROWS($A$13:A31))),\"\")","v":""},{"$f":"IFERROR(VLOOKUP($A31,masterlist!$C$2:$AA$207,3,FALSE),\"\")","v":""},{"$f":"IFERROR(VLOOKUP($A31,masterlist!$C$2:$AA$207,2,FALSE),\"\")","v":""},{"$f":"IFERROR(VLOOKUP($A31,masterlist!$C$2:$AD$207,28,FALSE),\"\")","v":""},{"$f":"IFERROR(IF((VLOOKUP($A31,masterlist!$C$2:$AA$207,9,FALSE))=0,\"\",VLOOKUP($A31,masterlist!$C$2:$AA$207,9,FALSE)),\"\")","v":""},{"$f":"IFERROR(VLOOKUP($A31,masterlist!$C$2:$AA$207,20,FALSE),\"\")","v":""},{"$f":"IFERROR(VLOOKUP($A31,masterlist!$C$2:$AA$207,21,FALSE),\"\")","v":""},{"$f":"IFERROR(VLOOKUP($A31,masterlist!$C$2:$AA$207,22,FALSE),\"\")","v":""},{"$f":"IFERROR(IF($B$7=2,(VLOOKUP($A31,masterlist!$C$2:$AA$207,23,FALSE)-11),IF($B$7=4,(VLOOKUP($A31,masterlist!$C$2:$AA$207,23,FALSE)-9),IF($B$7=7,(VLOOKUP($A31,masterlist!$C$2:$AA$207,23,FALSE)-6),IF($B$7=10,(VLOOKUP($A31,masterlist!$C$2:$AA$207,23,FALSE)-3),(VLOOKUP($A31,masterlist!$C$2:$AA$207,23,FALSE)))))),\"\")","v":""},{"$f":"IFERROR(VLOOKUP($A31,masterlist!$C$2:$AA$207,24,FALSE),\"\")","v":""}]
[{"$f":"IF(ROWS($A$13:A32)<=(SUMPRODUCT((masterlist!B:B=\"DPM\")*(masterlist!J:J=0))),INDEX(masterlist!$C$2:$C$207,SMALL(IF(masterlist!$B$2:$B$207=\"DPM\",IF(masterlist!$F$2:$F$207>0,IF(masterlist!$J$2:$J$207=0,ROW(masterlist!$B$2:$B$207)-ROW(masterlist!$B$2)+1))),ROWS($A$13:A32))),\"\")","v":""},{"$f":"IFERROR(VLOOKUP($A32,masterlist!$C$2:$AA$207,3,FALSE),\"\")","v":""},{"$f":"IFERROR(VLOOKUP($A32,masterlist!$C$2:$AA$207,2,FALSE),\"\")","v":""},{"$f":"IFERROR(VLOOKUP($A32,masterlist!$C$2:$AD$207,28,FALSE),\"\")","v":""},{"$f":"IFERROR(IF((VLOOKUP($A32,masterlist!$C$2:$AA$207,9,FALSE))=0,\"\",VLOOKUP($A32,masterlist!$C$2:$AA$207,9,FALSE)),\"\")","v":""},{"$f":"IFERROR(VLOOKUP($A32,masterlist!$C$2:$AA$207,20,FALSE),\"\")","v":""},{"$f":"IFERROR(VLOOKUP($A32,masterlist!$C$2:$AA$207,21,FALSE),\"\")","v":""},{"$f":"IFERROR(VLOOKUP($A32,masterlist!$C$2:$AA$207,22,FALSE),\"\")","v":""},{"$f":"IFERROR(IF($B$7=2,(VLOOKUP($A32,masterlist!$C$2:$AA$207,23,FALSE)-11),IF($B$7=4,(VLOOKUP($A32,masterlist!$C$2:$AA$207,23,FALSE)-9),IF($B$7=7,(VLOOKUP($A32,masterlist!$C$2:$AA$207,23,FALSE)-6),IF($B$7=10,(VLOOKUP($A32,masterlist!$C$2:$AA$207,23,FALSE)-3),(VLOOKUP($A32,masterlist!$C$2:$AA$207,23,FALSE)))))),\"\")","v":""},{"$f":"IFERROR(VLOOKUP($A32,masterlist!$C$2:$AA$207,24,FALSE),\"\")","v":""}]
[{"$f":"IF(ROWS($A$13:A33)<=(SUMPRODUCT((masterlist!B:B=\"DPM\")*(masterlist!J:J=0))),INDEX(masterlist!$C$2:$C$207,SMALL(IF(masterlist!$B$2:$B$207=\"DPM\",IF(masterlist!$F$2:$F$207>0,IF(masterlist!$J$2:$J$207=0,ROW(masterlist!$B$2:$B$207)-ROW(masterlist!$B$2)+1))),ROWS($A$13:A33))),\"\")","v":""},{"$f":"IFERROR(VLOOKUP($A33,masterlist!$C$2:$AA$207,3,FALSE),\"\")","v":""},{"$f":"IFERROR(VLOOKUP($A33,masterlist!$C$2:$AA$207,2,FALSE),\"\")","v":""},{"$f":"IFERROR(VLOOKUP($A33,masterlist!$C$2:$AD$207,28,FALSE),\"\")","v":""},{"$f":"IFERROR(IF((VLOOKUP($A33,masterlist!$C$2:$AA$207,9,FALSE))=0,\"\",VLOOKUP($A33,masterlist!$C$2:$AA$207,9,FALSE)),\"\")","v":""},{"$f":"IFERROR(VLOOKUP($A33,masterlist!$C$2:$AA$207,20,FALSE),\"\")","v":""},{"$f":"IFERROR(VLOOKUP($A33,masterlist!$C$2:$AA$207,21,FALSE),\"\")","v":""},{"$f":"IFERROR(VLOOKUP($A33,masterlist!$C$2:$AA$207,22,FALSE),\"\")","v":""},{"$f":"IFERROR(IF($B$7=2,(VLOOKUP($A33,masterlist!$C$2:$AA$207,23,FALSE)-11),IF($B$7=4,(VLOOKUP($A33,masterlist!$C$2:$AA$207,23,FALSE)-9),IF($B$7=7,(VLOOKUP($A33,masterlist!$C$2:$AA$207,23,FALSE)-6),IF($B$7=10,(VLOOKUP($A33,masterlist!$C$2:$AA$207,23,FALSE)-3),(VLOOKUP($A33,masterlist!$C$2:$AA$207,23,FALSE)))))),\"\")","v":""},{"$f":"IFERROR(VLOOKUP($A33,masterlist!$C$2:$AA$207,24,FALSE),\"\")","v":""}]
[{"$f":"IF(ROWS($A$13:A34)<=(SUMPRODUCT((masterlist!B:B=\"DPM\")*(masterlist!J:J=0))),INDEX(masterlist!$C$2:$C$207,SMALL(IF(masterlist!$B$2:$B$207=\"DPM\",IF(masterlist!$F$2:$F$207>0,IF(masterlist!$J$2:$J$207=0,ROW(masterlist!$B$2:$B$207)-ROW(masterlist!$B$2)+1))),ROWS($A$13:A34))),\"\")","v":""},{"$f":"IFERROR(VLOOKUP($A34,masterlist!$C$2:$AA$207,3,FALSE),\"\")","v":""},{"$f":"IFERROR(VLOOKUP($A34,masterlist!$C$2:$AA$207,2,FALSE),\"\")","v":""},{"$f":"IFERROR(VLOOKUP($A34,masterlist!$C$2:$AD$207,28,FALSE),\"\")","v":""},{"$f":"IFERROR(IF((VLOOKUP($A34,masterlist!$C$2:$AA$207,9,FALSE))=0,\"\",VLOOKUP($A34,masterlist!$C$2:$AA$207,9,FALSE)),\"\")","v":""},{"$f":"IFERROR(VLOOKUP($A34,masterlist!$C$2:$AA$207,20,FALSE),\"\")","v":""},{"$f":"IFERROR(VLOOKUP($A34,masterlist!$C$2:$AA$207,21,FALSE),\"\")","v":""},{"$f":"IFERROR(VLOOKUP($A34,masterlist!$C$2:$AA$207,22,FALSE),\"\")","v":""},{"$f":"IFERROR(IF($B$7=2,(VLOOKUP($A34,masterlist!$C$2:$AA$207,23,FALSE)-11),IF($B$7=4,(VLOOKUP($A34,masterlist!$C$2:$AA$207,23,FALSE)-9),IF($B$7=7,(VLOOKUP($A34,masterlist!$C$2:$AA$207,23,FALSE)-6),IF($B$7=10,(VLOOKUP($A34,masterlist!$C$2:$AA$207,23,FALSE)-3),(VLOOKUP($A34,masterlist!$C$2:$AA$207,23,FALSE)))))),\"\")","v":""},{"$f":"IFERROR(VLOOKUP($A34,masterlist!$C$2:$AA$207,24,FALSE),\"\")","v":""}]
[{"$f":"IF(ROWS($A$13:A35)<=(SUMPRODUCT((masterlist!B:B=\"DPM\")*(masterlist!J:J=0))),INDEX(masterlist!$C$2:$C$207,SMALL(IF(masterlist!$B$2:$B$207=\"DPM\",IF(masterlist!$F$2:$F$207>0,IF(masterlist!$J$2:$J$207=0,ROW(masterlist!$B$2:$B$207)-ROW(masterlist!$B$2)+1))),ROWS($A$13:A35))),\"\")","v":""},{"$f":"IFERROR(VLOOKUP($A35,masterlist!$C$2:$AA$207,3,FALSE),\"\")","v":""},{"$f":"IFERROR(VLOOKUP($A35,masterlist!$C$2:$AA$207,2,FALSE),\"\")","v":""},{"$f":"IFERROR(VLOOKUP($A35,masterlist!$C$2:$AD$207,28,FALSE),\"\")","v":""},{"$f":"IFERROR(IF((VLOOKUP($A35,masterlist!$C$2:$AA$207,9,FALSE))=0,\"\",VLOOKUP($A35,masterlist!$C$2:$AA$207,9,FALSE)),\"\")","v":""},{"$f":"IFERROR(VLOOKUP($A35,masterlist!$C$2:$AA$207,20,FALSE),\"\")","v":""},{"$f":"IFERROR(VLOOKUP($A35,masterlist!$C$2:$AA$207,21,FALSE),\"\")","v":""},{"$f":"IFERROR(VLOOKUP($A35,masterlist!$C$2:$AA$207,22,FALSE),\"\")","v":""},{"$f":"IFERROR(IF($B$7=2,(VLOOKUP($A35,masterlist!$C$2:$AA$207,23,FALSE)-11),IF($B$7=4,(VLOOKUP($A35,masterlist!$C$2:$AA$207,23,FALSE)-9),IF($B$7=7,(VLOOKUP($A35,masterlist!$C$2:$AA$207,23,FALSE)-6),IF($B$7=10,(VLOOKUP($A35,masterlist!$C$2:$AA$207,23,FALSE)-3),(VLOOKUP($A35,masterlist!$C$2:$AA$207,23,FALSE)))))),\"\")","v":""},{"$f":"IFERROR(VLOOKUP($A35,masterlist!$C$2:$AA$207,24,FALSE),\"\")","v":""}]
[{"$f":"IF(ROWS($A$13:A36)<=(SUMPRODUCT((masterlist!B:B=\"DPM\")*(masterlist!J:J=0))),INDEX(masterlist!$C$2:$C$207,SMALL(IF(masterlist!$B$2:$B$207=\"DPM\",IF(masterlist!$F$2:$F$207>0,IF(masterlist!$J$2:$J$207=0,ROW(masterlist!$B$2:$B$207)-ROW(masterlist!$B$2)+1))),ROWS($A$13:A36))),\"\")","v":""},{"$f":"IFERROR(VLOOKUP($A36,masterlist!$C$2:$AA$207,3,FALSE),\"\")","v":""},{"$f":"IFERROR(VLOOKUP($A36,masterlist!$C$2:$AA$207,2,FALSE),\"\")","v":""},{"$f":"IFERROR(VLOOKUP($A36,masterlist!$C$2:$AD$207,28,FALSE),\"\")","v":""},{"$f":"IFERROR(IF((VLOOKUP($A36,masterlist!$C$2:$AA$207,9,FALSE))=0,\"\",VLOOKUP($A36,masterlist!$C$2:$AA$207,9,FALSE)),\"\")","v":""},{"$f":"IFERROR(VLOOKUP($A36,masterlist!$C$2:$AA$207,20,FALSE),\"\")","v":""},{"$f":"IFERROR(VLOOKUP($A36,masterlist!$C$2:$AA$207,21,FALSE),\"\")","v":""},{"$f":"IFERROR(VLOOKUP($A36,masterlist!$C$2:$AA$207,22,FALSE),\"\")","v":""},{"$f":"IFERROR(IF($B$7=2,(VLOOKUP($A36,masterlist!$C$2:$AA$207,23,FALSE)-11),IF($B$7=4,(VLOOKUP($A36,masterlist!$C$2:$AA$207,23,FALSE)-9),IF($B$7=7,(VLOOKUP($A36,masterlist!$C$2:$AA$207,23,FALSE)-6),IF($B$7=10,(VLOOKUP($A36,masterlist!$C$2:$AA$207,23,FALSE)-3),(VLOOKUP($A36,masterlist!$C$2:$AA$207,23,FALSE)))))),\"\")","v":""},{"$f":"IFERROR(VLOOKUP($A36,masterlist!$C$2:$AA$207,24,FALSE),\"\")","v":""}]
[{"$f":"IF(ROWS($A$13:A37)<=(SUMPRODUCT((masterlist!B:B=\"DPM\")*(masterlist!J:J=0))),INDEX(masterlist!$C$2:$C$207,SMALL(IF(masterlist!$B$2:$B$207=\"DPM\",IF(masterlist!$F$2:$F$207>0,IF(masterlist!$J$2:$J$207=0,ROW(masterlist!$B$2:$B$207)-ROW(masterlist!$B$2)+1))),ROWS($A$13:A37))),\"\")","v":""},{"$f":"IFERROR(VLOOKUP($A37,masterlist!$C$2:$AA$207,3,FALSE),\"\")","v":""},{"$f":"IFERROR(VLOOKUP($A37,masterlist!$C$2:$AA$207,2,FALSE),\"\")","v":""},{"$f":"IFERROR(VLOOKUP($A37,masterlist!$C$2:$AD$207,28,FALSE),\"\")","v":""},{"$f":"IFERROR(IF((VLOOKUP($A37,masterlist!$C$2:$AA$207,9,FALSE))=0,\"\",VLOOKUP($A37,masterlist!$C$2:$AA$207,9,FALSE)),\"\")","v":""},{"$f":"IFERROR(VLOOKUP($A37,masterlist!$C$2:$AA$207,20,FALSE),\"\")","v":""},{"$f":"IFERROR(VLOOKUP($A37,masterlist!$C$2:$AA$207,21,FALSE),\"\")","v":""},{"$f":"IFERROR(VLOOKUP($A37,masterlist!$C$2:$AA$207,22,FALSE),\"\")","v":""},{"$f":"IFERROR(IF($B$7=2,(VLOOKUP($A37,masterlist!$C$2:$AA$207,23,FALSE)-11),IF($B$7=4,(VLOOKUP($A37,masterlist!$C$2:$AA$207,23,FALSE)-9),IF($B$7=7,(VLOOKUP($A37,masterlist!$C$2:$AA$207,23,FALSE)-6),IF($B$7=10,(VLOOKUP($A37,masterlist!$C$2:$AA$207,23,FALSE)-3),(VLOOKUP($A37,masterlist!$C$2:$AA$207,23,FALSE)))))),\"\")","v":""},{"$f":"IFERROR(VLOOKUP($A37,masterlist!$C$2:$AA$207,24,FALSE),\"\")","v":""}]
[{"$f":"IF(ROWS($A$13:A38)<=(SUMPRODUCT((masterlist!B:B=\"DPM\")*(masterlist!J:J=0))),INDEX(masterlist!$C$2:$C$207,SMALL(IF(masterlist!$B$2:$B$207=\"DPM\",IF(masterlist!$F$2:$F$207>0,IF(masterlist!$J$2:$J$207=0,ROW(masterlist!$B$2:$B$207)-ROW(masterlist!$B$2)+1))),ROWS($A$13:A38))),\"\")","v":""},{"$f":"IFERROR(VLOOKUP($A38,masterlist!$C$2:$AA$207,3,FALSE),\"\")","v":""},{"$f":"IFERROR(VLOOKUP($A38,masterlist!$C$2:$AA$207,2,FALSE),\"\")","v":""},{"$f":"IFERROR(VLOOKUP($A38,masterlist!$C$2:$AD$207,28,FALSE),\"\")","v":""},{"$f":"IFERROR(IF((VLOOKUP($A38,masterlist!$C$2:$AA$207,9,FALSE))=0,\"\",VLOOKUP($A38,masterlist!$C$2:$AA$207,9,FALSE)),\"\")","v":""},{"$f":"IFERROR(VLOOKUP($A38,masterlist!$C$2:$AA$207,20,FALSE),\"\")","v":""},{"$f":"IFERROR(VLOOKUP($A38,masterlist!$C$2:$AA$207,21,FALSE),\"\")","v":""},{"$f":"IFERROR(VLOOKUP($A38,masterlist!$C$2:$AA$207,22,FALSE),\"\")","v":""},{"$f":"IFERROR(IF($B$7=2,(VLOOKUP($A38,masterlist!$C$2:$AA$207,23,FALSE)-11),IF($B$7=4,(VLOOKUP($A38,masterlist!$C$2:$AA$207,23,FALSE)-9),IF($B$7=7,(VLOOKUP($A38,masterlist!$C$2:$AA$207,23,FALSE)-6),IF($B$7=10,(VLOOKUP($A38,masterlist!$C$2:$AA$207,23,FALSE)-3),(VLOOKUP($A38,masterlist!$C$2:$AA$207,23,FALSE)))))),\"\")","v":""},{"$f":"IFERROR(VLOOKUP($A38,masterlist!$C$2:$AA$207,24,FALSE),\"\")","v":""}]
[{"$f":"IF(ROWS($A$13:A39)<=(SUMPRODUCT((masterlist!B:B=\"DPM\")*(masterlist!J:J=0))),INDEX(masterlist!$C$2:$C$207,SMALL(IF(masterlist!$B$2:$B$207=\"DPM\",IF(masterlist!$F$2:$F$207>0,IF(masterlist!$J$2:$J$207=0,ROW(masterlist!$B$2:$B$207)-ROW(masterlist!$B$2)+1))),ROWS($A$13:A39))),\"\")","v":""},{"$f":"IFERROR(VLOOKUP($A39,masterlist!$C$2:$AA$207,3,FALSE),\"\")","v":""},{"$f":"IFERROR(VLOOKUP($A39,masterlist!$C$2:$AA$207,2,FALSE),\"\")","v":""},{"$f":"IFERROR(VLOOKUP($A39,masterlist!$C$2:$AD$207,28,FALSE),\"\")","v":""},{"$f":"IFERROR(IF((VLOOKUP($A39,masterlist!$C$2:$AA$207,9,FALSE))=0,\"\",VLOOKUP($A39,masterlist!$C$2:$AA$207,9,FALSE)),\"\")","v":""},{"$f":"IFERROR(VLOOKUP($A39,masterlist!$C$2:$AA$207,20,FALSE),\"\")","v":""},{"$f":"IFERROR(VLOOKUP($A39,masterlist!$C$2:$AA$207,21,FALSE),\"\")","v":""},{"$f":"IFERROR(VLOOKUP($A39,masterlist!$C$2:$AA$207,22,FALSE),\"\")","v":""},{"$f":"IFERROR(IF($B$7=2,(VLOOKUP($A39,masterlist!$C$2:$AA$207,23,FALSE)-11),IF($B$7=4,(VLOOKUP($A39,masterlist!$C$2:$AA$207,23,FALSE)-9),IF($B$7=7,(VLOOKUP($A39,masterlist!$C$2:$AA$207,23,FALSE)-6),IF($B$7=10,(VLOOKUP($A39,masterlist!$C$2:$AA$207,23,FALSE)-3),(VLOOKUP($A39,masterlist!$C$2:$AA$207,23,FALSE)))))),\"\")","v":""},{"$f":"IFERROR(VLOOKUP($A39,masterlist!$C$2:$AA$207,24,FALSE),\"\")","v":""}]
[{"$f":"IF(ROWS($A$13:A40)<=(SUMPRODUCT((masterlist!B:B=\"DPM\")*(masterlist!J:J=0))),INDEX(masterlist!$C$2:$C$207,SMALL(IF(masterlist!$B$2:$B$207=\"DPM\",IF(masterlist!$F$2:$F$207>0,IF(masterlist!$J$2:$J$207=0,ROW(masterlist!$B$2:$B$207)-ROW(masterlist!$B$2)+1))),ROWS($A$13:A40))),\"\")","v":""},{"$f":"IFERROR(VLOOKUP($A40,masterlist!$C$2:$AA$207,3,FALSE),\"\")","v":""},{"$f":"IFERROR(VLOOKUP($A40,masterlist!$C$2:$AA$207,2,FALSE),\"\")","v":""},{"$f":"IFERROR(VLOOKUP($A40,masterlist!$C$2:$AD$207,28,FALSE),\"\")","v":""},{"$f":"IFERROR(IF((VLOOKUP($A40,masterlist!$C$2:$AA$207,9,FALSE))=0,\"\",VLOOKUP($A40,masterlist!$C$2:$AA$207,9,FALSE)),\"\")","v":""},{"$f":"IFERROR(VLOOKUP($A40,masterlist!$C$2:$AA$207,20,FALSE),\"\")","v":""},{"$f":"IFERROR(VLOOKUP($A40,masterlist!$C$2:$AA$207,21,FALSE),\"\")","v":""},{"$f":"IFERROR(VLOOKUP($A40,masterlist!$C$2:$AA$207,22,FALSE),\"\")","v":""},{"$f":"IFERROR(IF($B$7=2,(VLOOKUP($A40,masterlist!$C$2:$AA$207,23,FALSE)-11),IF($B$7=4,(VLOOKUP($A40,masterlist!$C$2:$AA$207,23,FALSE)-9),IF($B$7=7,(VLOOKUP($A40,masterlist!$C$2:$AA$207,23,FALSE)-6),IF($B$7=10,(VLOOKUP($A40,masterlist!$C$2:$AA$207,23,FALSE)-3),(VLOOKUP($A40,masterlist!$C$2:$AA$207,23,FALSE)))))),\"\")","v":""},{"$f":"IFERROR(VLOOKUP($A40,masterlist!$C$2:$AA$207,24,FALSE),\"\")","v":""}]
[{"$f":"IF(ROWS($A$13:A41)<=(SUMPRODUCT((masterlist!B:B=\"DPM\")*(masterlist!J:J=0))),INDEX(masterlist!$C$2:$C$207,SMALL(IF(masterlist!$B$2:$B$207=\"DPM\",IF(masterlist!$F$2:$F$207>0,IF(masterlist!$J$2:$J$207=0,ROW(masterlist!$B$2:$B$207)-ROW(masterlist!$B$2)+1))),ROWS($A$13:A41))),\"\")","v":""},{"$f":"IFERROR(VLOOKUP($A41,masterlist!$C$2:$AA$207,3,FALSE),\"\")","v":""},{"$f":"IFERROR(VLOOKUP($A41,masterlist!$C$2:$AA$207,2,FALSE),\"\")","v":""},{"$f":"IFERROR(VLOOKUP($A41,masterlist!$C$2:$AD$207,28,FALSE),\"\")","v":""},{"$f":"IFERROR(IF((VLOOKUP($A41,masterlist!$C$2:$AA$207,9,FALSE))=0,\"\",VLOOKUP($A41,masterlist!$C$2:$AA$207,9,FALSE)),\"\")","v":""},{"$f":"IFERROR(VLOOKUP($A41,masterlist!$C$2:$AA$207,20,FALSE),\"\")","v":""},{"$f":"IFERROR(VLOOKUP($A41,masterlist!$C$2:$AA$207,21,FALSE),\"\")","v":""},{"$f":"IFERROR(VLOOKUP($A41,masterlist!$C$2:$AA$207,22,FALSE),\"\")","v":""},{"$f":"IFERROR(IF($B$7=2,(VLOOKUP($A41,masterlist!$C$2:$AA$207,23,FALSE)-11),IF($B$7=4,(VLOOKUP($A41,masterlist!$C$2:$AA$207,23,FALSE)-9),IF($B$7=7,(VLOOKUP($A41,masterlist!$C$2:$AA$207,23,FALSE)-6),IF($B$7=10,(VLOOKUP($A41,masterlist!$C$2:$AA$207,23,FALSE)-3),(VLOOKUP($A41,masterlist!$C$2:$AA$207,23,FALSE)))))),\"\")","v":""},{"$f":"IFERROR(VLOOKUP($A41,masterlist!$C$2:$AA$207,24,FALSE),\"\")","v":""}]
[{"$f":"IF(ROWS($A$13:A42)<=(SUMPRODUCT((masterlist!B:B=\"DPM\")*(masterlist!J:J=0))),INDEX(masterlist!$C$2:$C$207,SMALL(IF(masterlist!$B$2:$B$207=\"DPM\",IF(masterlist!$F$2:$F$207>0,IF(masterlist!$J$2:$J$207=0,ROW(masterlist!$B$2:$B$207)-ROW(masterlist!$B$2)+1))),ROWS($A$13:A42))),\"\")","v":""},{"$f":"IFERROR(VLOOKUP($A42,masterlist!$C$2:$AA$207,3,FALSE),\"\")","v":""},{"$f":"IFERROR(VLOOKUP($A42,masterlist!$C$2:$AA$207,2,FALSE),\"\")","v":""},{"$f":"IFERROR(VLOOKUP($A42,masterlist!$C$2:$AD$207,28,FALSE),\"\")","v":""},{"$f":"IFERROR(IF((VLOOKUP($A42,masterlist!$C$2:$AA$207,9,FALSE))=0,\"\",VLOOKUP($A42,masterlist!$C$2:$AA$207,9,FALSE)),\"\")","v":""},{"$f":"IFERROR(VLOOKUP($A42,masterlist!$C$2:$AA$207,20,FALSE),\"\")","v":""},{"$f":"IFERROR(VLOOKUP($A42,masterlist!$C$2:$AA$207,21,FALSE),\"\")","v":""},{"$f":"IFERROR(VLOOKUP($A42,masterlist!$C$2:$AA$207,22,FALSE),\"\")","v":""},{"$f":"IFERROR(IF($B$7=2,(VLOOKUP($A42,masterlist!$C$2:$AA$207,23,FALSE)-11),IF($B$7=4,(VLOOKUP($A42,masterlist!$C$2:$AA$207,23,FALSE)-9),IF($B$7=7,(VLOOKUP($A42,masterlist!$C$2:$AA$207,23,FALSE)-6),IF($B$7=10,(VLOOKUP($A42,masterlist!$C$2:$AA$207,23,FALSE)-3),(VLOOKUP($A42,masterlist!$C$2:$AA$207,23,FALSE)))))),\"\")","v":""},{"$f":"IFERROR(VLOOKUP($A42,masterlist!$C$2:$AA$207,24,FALSE),\"\")","v":""}]
[{"$f":"IF(ROWS($A$13:A43)<=(SUMPRODUCT((masterlist!B:B=\"DPM\")*(masterlist!J:J=0))),INDEX(masterlist!$C$2:$C$207,SMALL(IF(masterlist!$B$2:$B$207=\"DPM\",IF(masterlist!$F$2:$F$207>0,IF(masterlist!$J$2:$J$207=0,ROW(masterlist!$B$2:$B$207)-ROW(masterlist!$B$2)+1))),ROWS($A$13:A43))),\"\")","v":""},{"$f":"IFERROR(VLOOKUP($A43,masterlist!$C$2:$AA$207,3,FALSE),\"\")","v":""},{"$f":"IFERROR(VLOOKUP($A43,masterlist!$C$2:$AA$207,2,FALSE),\"\")","v":""},{"$f":"IFERROR(VLOOKUP($A43,masterlist!$C$2:$AD$207,28,FALSE),\"\")","v":""},{"$f":"IFERROR(IF((VLOOKUP($A43,masterlist!$C$2:$AA$207,9,FALSE))=0,\"\",VLOOKUP($A43,masterlist!$C$2:$AA$207,9,FALSE)),\"\")","v":""},{"$f":"IFERROR(VLOOKUP($A43,masterlist!$C$2:$AA$207,20,FALSE),\"\")","v":""},{"$f":"IFERROR(VLOOKUP($A43,masterlist!$C$2:$AA$207,21,FALSE),\"\")","v":""},{"$f":"IFERROR(VLOOKUP($A43,masterlist!$C$2:$AA$207,22,FALSE),\"\")","v":""},{"$f":"IFERROR(IF($B$7=2,(VLOOKUP($A43,masterlist!$C$2:$AA$207,23,FALSE)-11),IF($B$7=4,(VLOOKUP($A43,masterlist!$C$2:$AA$207,23,FALSE)-9),IF($B$7=7,(VLOOKUP($A43,masterlist!$C$2:$AA$207,23,FALSE)-6),IF($B$7=10,(VLOOKUP($A43,masterlist!$C$2:$AA$207,23,FALSE)-3),(VLOOKUP($A43,masterlist!$C$2:$AA$207,23,FALSE)))))),\"\")","v":""},{"$f":"IFERROR(VLOOKUP($A43,masterlist!$C$2:$AA$207,24,FALSE),\"\")","v":""}]
[{"$f":"IF(ROWS($A$13:A44)<=(SUMPRODUCT((masterlist!B:B=\"DPM\")*(masterlist!J:J=0))),INDEX(masterlist!$C$2:$C$207,SMALL(IF(masterlist!$B$2:$B$207=\"DPM\",IF(masterlist!$F$2:$F$207>0,IF(masterlist!$J$2:$J$207=0,ROW(masterlist!$B$2:$B$207)-ROW(masterlist!$B$2)+1))),ROWS($A$13:A44))),\"\")","v":""},{"$f":"IFERROR(VLOOKUP($A44,masterlist!$C$2:$AA$207,3,FALSE),\"\")","v":""},{"$f":"IFERROR(VLOOKUP($A44,masterlist!$C$2:$AA$207,2,FALSE),\"\")","v":""},{"$f":"IFERROR(VLOOKUP($A44,masterlist!$C$2:$AD$207,28,FALSE),\"\")","v":""},{"$f":"IFERROR(IF((VLOOKUP($A44,masterlist!$C$2:$AA$207,9,FALSE))=0,\"\",VLOOKUP($A44,masterlist!$C$2:$AA$207,9,FALSE)),\"\")","v":""},{"$f":"IFERROR(VLOOKUP($A44,masterlist!$C$2:$AA$207,20,FALSE),\"\")","v":""},{"$f":"IFERROR(VLOOKUP($A44,masterlist!$C$2:$AA$207,21,FALSE),\"\")","v":""},{"$f":"IFERROR(VLOOKUP($A44,masterlist!$C$2:$AA$207,22,FALSE),\"\")","v":""},{"$f":"IFERROR(IF($B$7=2,(VLOOKUP($A44,masterlist!$C$2:$AA$207,23,FALSE)-11),IF($B$7=4,(VLOOKUP($A44,masterlist!$C$2:$AA$207,23,FALSE)-9),IF($B$7=7,(VLOOKUP($A44,masterlist!$C$2:$AA$207,23,FALSE)-6),IF($B$7=10,(VLOOKUP($A44,masterlist!$C$2:$AA$207,23,FALSE)-3),(VLOOKUP($A44,masterlist!$C$2:$AA$207,23,FALSE)))))),\"\")","v":""},{"$f":"IFERROR(VLOOKUP($A44,masterlist!$C$2:$AA$207,24,FALSE),\"\")","v":""}]
[{"$f":"IF(ROWS($A$13:A45)<=(SUMPRODUCT((masterlist!B:B=\"DPM\")*(masterlist!J:J=0))),INDEX(masterlist!$C$2:$C$207,SMALL(IF(masterlist!$B$2:$B$207=\"DPM\",IF(masterlist!$F$2:$F$207>0,IF(masterlist!$J$2:$J$207=0,ROW(masterlist!$B$2:$B$207)-ROW(masterlist!$B$2)+1))),ROWS($A$13:A45))),\"\")","v":""},{"$f":"IFERROR(VLOOKUP($A45,masterlist!$C$2:$AA$207,3,FALSE),\"\")","v":""},{"$f":"IFERROR(VLOOKUP($A45,masterlist!$C$2:$AA$207,2,FALSE),\"\")","v":""},{"$f":"IFERROR(VLOOKUP($A45,masterlist!$C$2:$AD$207,28,FALSE),\"\")","v":""},{"$f":"IFERROR(IF((VLOOKUP($A45,masterlist!$C$2:$AA$207,9,FALSE))=0,\"\",VLOOKUP($A45,masterlist!$C$2:$AA$207,9,FALSE)),\"\")","v":""},{"$f":"IFERROR(VLOOKUP($A45,masterlist!$C$2:$AA$207,20,FALSE),\"\")","v":""},{"$f":"IFERROR(VLOOKUP($A45,masterlist!$C$2:$AA$207,21,FALSE),\"\")","v":""},{"$f":"IFERROR(VLOOKUP($A45,masterlist!$C$2:$AA$207,22,FALSE),\"\")","v":""},{"$f":"IFERROR(IF($B$7=2,(VLOOKUP($A45,masterlist!$C$2:$AA$207,23,FALSE)-11),IF($B$7=4,(VLOOKUP($A45,masterlist!$C$2:$AA$207,23,FALSE)-9),IF($B$7=7,(VLOOKUP($A45,masterlist!$C$2:$AA$207,23,FALSE)-6),IF($B$7=10,(VLOOKUP($A45,masterlist!$C$2:$AA$207,23,FALSE)-3),(VLOOKUP($A45,masterlist!$C$2:$AA$207,23,FALSE)))))),\"\")","v":""},{"$f":"IFERROR(VLOOKUP($A45,masterlist!$C$2:$AA$207,24,FALSE),\"\")","v":""}]
[{"$f":"IF(ROWS($A$13:A46)<=(SUMPRODUCT((masterlist!B:B=\"DPM\")*(masterlist!J:J=0))),INDEX(masterlist!$C$2:$C$207,SMALL(IF(masterlist!$B$2:$B$207=\"DPM\",IF(masterlist!$F$2:$F$207>0,IF(masterlist!$J$2:$J$207=0,ROW(masterlist!$B$2:$B$207)-ROW(masterlist!$B$2)+1))),ROWS($A$13:A46))),\"\")","v":""},{"$f":"IFERROR(VLOOKUP($A46,masterlist!$C$2:$AA$207,3,FALSE),\"\")","v":""},{"$f":"IFERROR(VLOOKUP($A46,masterlist!$C$2:$AA$207,2,FALSE),\"\")","v":""},{"$f":"IFERROR(VLOOKUP($A46,masterlist!$C$2:$AD$207,28,FALSE),\"\")","v":""},{"$f":"IFERROR(IF((VLOOKUP($A46,masterlist!$C$2:$AA$207,9,FALSE))=0,\"\",VLOOKUP($A46,masterlist!$C$2:$AA$207,9,FALSE)),\"\")","v":""},{"$f":"IFERROR(VLOOKUP($A46,masterlist!$C$2:$AA$207,20,FALSE),\"\")","v":""},{"$f":"IFERROR(VLOOKUP($A46,masterlist!$C$2:$AA$207,21,FALSE),\"\")","v":""},{"$f":"IFERROR(VLOOKUP($A46,masterlist!$C$2:$AA$207,22,FALSE),\"\")","v":""},{"$f":"IFERROR(IF($B$7=2,(VLOOKUP($A46,masterlist!$C$2:$AA$207,23,FALSE)-11),IF($B$7=4,(VLOOKUP($A46,masterlist!$C$2:$AA$207,23,FALSE)-9),IF($B$7=7,(VLOOKUP($A46,masterlist!$C$2:$AA$207,23,FALSE)-6),IF($B$7=10,(VLOOKUP($A46,masterlist!$C$2:$AA$207,23,FALSE)-3),(VLOOKUP($A46,masterlist!$C$2:$AA$207,23,FALSE)))))),\"\")","v":""},{"$f":"IFERROR(VLOOKUP($A46,masterlist!$C$2:$AA$207,24,FALSE),\"\")","v":""}]
[{"$f":"IF(ROWS($A$13:A47)<=(SUMPRODUCT((masterlist!B:B=\"DPM\")*(masterlist!J:J=0))),INDEX(masterlist!$C$2:$C$207,SMALL(IF(masterlist!$B$2:$B$207=\"DPM\",IF(masterlist!$F$2:$F$207>0,IF(masterlist!$J$2:$J$207=0,ROW(masterlist!$B$2:$B$207)-ROW(masterlist!$B$2)+1))),ROWS($A$13:A47))),\"\")","v":""},{"$f":"IFERROR(VLOOKUP($A47,masterlist!$C$2:$AA$207,3,FALSE),\"\")","v":""},{"$f":"IFERROR(VLOOKUP($A47,masterlist!$C$2:$AA$207,2,FALSE),\"\")","v":""},{"$f":"IFERROR(VLOOKUP($A47,masterlist!$C$2:$AD$207,28,FALSE),\"\")","v":""},{"$f":"IFERROR(IF((VLOOKUP($A47,masterlist!$C$2:$AA$207,9,FALSE))=0,\"\",VLOOKUP($A47,masterlist!$C$2:$AA$207,9,FALSE)),\"\")","v":""},{"$f":"IFERROR(VLOOKUP($A47,masterlist!$C$2:$AA$207,20,FALSE),\"\")","v":""},{"$f":"IFERROR(VLOOKUP($A47,masterlist!$C$2:$AA$207,21,FALSE),\"\")","v":""},{"$f":"IFERROR(VLOOKUP($A47,masterlist!$C$2:$AA$207,22,FALSE),\"\")","v":""},{"$f":"IFERROR(IF($B$7=2,(VLOOKUP($A47,masterlist!$C$2:$AA$207,23,FALSE)-11),IF($B$7=4,(VLOOKUP($A47,masterlist!$C$2:$AA$207,23,FALSE)-9),IF($B$7=7,(VLOOKUP($A47,masterlist!$C$2:$AA$207,23,FALSE)-6),IF($B$7=10,(VLOOKUP($A47,masterlist!$C$2:$AA$207,23,FALSE)-3),(VLOOKUP($A47,masterlist!$C$2:$AA$207,23,FALSE)))))),\"\")","v":""},{"$f":"IFERROR(VLOOKUP($A47,masterlist!$C$2:$AA$207,24,FALSE),\"\")","v":""}]
[{"$f":"IF(ROWS($A$13:A48)<=(SUMPRODUCT((masterlist!B:B=\"DPM\")*(masterlist!J:J=0))),INDEX(masterlist!$C$2:$C$207,SMALL(IF(masterlist!$B$2:$B$207=\"DPM\",IF(masterlist!$F$2:$F$207>0,IF(masterlist!$J$2:$J$207=0,ROW(masterlist!$B$2:$B$207)-ROW(masterlist!$B$2)+1))),ROWS($A$13:A48))),\"\")","v":""},{"$f":"IFERROR(VLOOKUP($A48,masterlist!$C$2:$AA$207,3,FALSE),\"\")","v":""},{"$f":"IFERROR(VLOOKUP($A48,masterlist!$C$2:$AA$207,2,FALSE),\"\")","v":""},{"$f":"IFERROR(VLOOKUP($A48,masterlist!$C$2:$AD$207,28,FALSE),\"\")","v":""},{"$f":"IFERROR(IF((VLOOKUP($A48,masterlist!$C$2:$AA$207,9,FALSE))=0,\"\",VLOOKUP($A48,masterlist!$C$2:$AA$207,9,FALSE)),\"\")","v":""},{"$f":"IFERROR(VLOOKUP($A48,masterlist!$C$2:$AA$207,20,FALSE),\"\")","v":""},{"$f":"IFERROR(VLOOKUP($A48,masterlist!$C$2:$AA$207,21,FALSE),\"\")","v":""},{"$f":"IFERROR(VLOOKUP($A48,masterlist!$C$2:$AA$207,22,FALSE),\"\")","v":""},{"$f":"IFERROR(IF($B$7=2,(VLOOKUP($A48,masterlist!$C$2:$AA$207,23,FALSE)-11),IF($B$7=4,(VLOOKUP($A48,masterlist!$C$2:$AA$207,23,FALSE)-9),IF($B$7=7,(VLOOKUP($A48,masterlist!$C$2:$AA$207,23,FALSE)-6),IF($B$7=10,(VLOOKUP($A48,masterlist!$C$2:$AA$207,23,FALSE)-3),(VLOOKUP($A48,masterlist!$C$2:$AA$207,23,FALSE)))))),\"\")","v":""},{"$f":"IFERROR(VLOOKUP($A48,masterlist!$C$2:$AA$207,24,FALSE),\"\")","v":""}]
[{"$f":"IF(ROWS($A$13:A49)<=(SUMPRODUCT((masterlist!B:B=\"DPM\")*(masterlist!J:J=0))),INDEX(masterlist!$C$2:$C$207,SMALL(IF(masterlist!$B$2:$B$207=\"DPM\",IF(masterlist!$F$2:$F$207>0,IF(masterlist!$J$2:$J$207=0,ROW(masterlist!$B$2:$B$207)-ROW(masterlist!$B$2)+1))),ROWS($A$13:A49))),\"\")","v":""},{"$f":"IFERROR(VLOOKUP($A49,masterlist!$C$2:$AA$207,3,FALSE),\"\")","v":""},{"$f":"IFERROR(VLOOKUP($A49,masterlist!$C$2:$AA$207,2,FALSE),\"\")","v":""},{"$f":"IFERROR(VLOOKUP($A49,masterlist!$C$2:$AD$207,28,FALSE),\"\")","v":""},{"$f":"IFERROR(IF((VLOOKUP($A49,masterlist!$C$2:$AA$207,9,FALSE))=0,\"\",VLOOKUP($A49,masterlist!$C$2:$AA$207,9,FALSE)),\"\")","v":""},{"$f":"IFERROR(VLOOKUP($A49,masterlist!$C$2:$AA$207,20,FALSE),\"\")","v":""},{"$f":"IFERROR(VLOOKUP($A49,masterlist!$C$2:$AA$207,21,FALSE),\"\")","v":""},{"$f":"IFERROR(VLOOKUP($A49,masterlist!$C$2:$AA$207,22,FALSE),\"\")","v":""},{"$f":"IFERROR(IF($B$7=2,(VLOOKUP($A49,masterlist!$C$2:$AA$207,23,FALSE)-11),IF($B$7=4,(VLOOKUP($A49,masterlist!$C$2:$AA$207,23,FALSE)-9),IF($B$7=7,(VLOOKUP($A49,masterlist!$C$2:$AA$207,23,FALSE)-6),IF($B$7=10,(VLOOKUP($A49,masterlist!$C$2:$AA$207,23,FALSE)-3),(VLOOKUP($A49,masterlist!$C$2:$AA$207,23,FALSE)))))),\"\")","v":""},{"$f":"IFERROR(VLOOKUP($A49,masterlist!$C$2:$AA$207,24,FALSE),\"\")","v":""}]

{"sheet":"DPM","index":33,"n_rows":49,"n_cols":10,"rows_kept":49,"cut":false,"hidden":true,"merged":[[0,7,0,9],[0,3,0,6],[1,1,1,9]]}
[null,null,null,"Gestion humaine de la population canine",null,null,null,"Plan de travail national pour l’élimination de la rage"]
[]
[]
[]
[]
[]
[]
[]
[]
[]
[null,"Instructions : Veuillez modifier les Tâches, les Autorités responsables, le Calendrier et les  Résultats attendus selon les besoins."]
["ID","Étape","Theme","Activité","Remarques","Tâche","Outcomes","Autorité responsible","Calendrier (années)","Résultats attendus"]
["DPM--0-1",0,0,"Faire en sorte qu'une des parties prenantes entreprenne des activités de gestion compassionnelle de la population canine dans au moins une région du pays.","","• Identifier les parties prenantes susceptibles d'avoir des connaissances ou de l'expérience en matière de gestion compassionnelle des populations canines (y compris les parties prenantes internationales).\n• Motiver et évaluer l'intérêt pour la mise en œuvre d'un projet pilote de gestion compassionnelle des populations canines (GCPC) à petite échelle. \n• Soutenir la mise en œuvre du projet avec des ressources ou un soutien en nature (autorisation gouvernementale, ressources humaines, logistique, engagement ou financement).",0,"Ministère de l’agriculture",1,"• Identification et engagement des parties prenantes compétentes en matière de programmes de gestion compassionnelle des populations canines.\n• Documentation du soutien fourni (ressources, logistique, autorisation gouvernementale).\n• Mise en œuvre réussie d'un projet de gestion compassionnelle des populations canines à petite échelle."]
["DPM--1-2",1,0,"Travailler activement à mettre fin à l'abattage indiscriminé des chiens dans le cadre de la gestion des populations canines ou de la lutte contre la rage.","","• Identifier les autorités responsables de l'approbation de l'abattage sans discrimination des chiens pour la gestion des populations canines ou le contrôle de la rage dans le pays ; \n• Identifier les ressources et les informations qui pourraient être utilisées pour plaider contre l'utilisation de l'abattage sans discrimination des chiens ;\n• Partager les ressources et mettre en œuvre des actions pour mettre fin à l'abattage sans discrimination des chiens. ",0,"Ministère de l’agriculture",1,"• Identification des autorités responsables de l'approbation de l'abattage des chiens.\n• Compilation et diffusion de ressources de plaidoyer contre l'abattage sans discrimination.\n• Documentation des mesures prises pour mettre fin aux pratiques d'abattage sans discrimination."]
["DPM- -1-3",1," ","Organiser des discussions avec les parties prenantes afin d'élaborer une stratégie de gestion compassionnelle de la population canine dans une région (par exemple, un projet pilote).","","• Examiner les stratégies de gestion compassionnelle des populations canines existantes à partir de la littérature et des lignes directrices ;\n• Identifier les parties prenantes concernées par la gestion compassionnelle des populations canines dans au moins une zone ;\n• Organiser des discussions concernant l'approche et la mise en œuvre d'une stratégie de gestion compassionnelle des populations canines au niveau local ;\n• Établir des calendriers pour l'élaboration d'une stratégie en vue de son examen et de sa mise en œuvre.","Discussions and fixed deadlines  determined and agreed upon with all relevant stakeholders for a DPM strategy at the local level;","Ministère de l’agriculture",1,"• Analyse documentaire des stratégies et lignes directrices existantes en matière de GCPC.\n• Documentation des réunions et des contributions des parties prenantes.\n• Accord sur un calendrier pour l'élaboration d'une stratégie de GCPC au niveau local en vue d'une mise en œuvre future."]
["DPM- -1-4",1," ","Impliquer les acteurs municipaux dans les discussions concernant la gestion compassionnelle de la population canine.","","• Identifier les parties prenantes municipales responsables qui pourraient être impliquées dans la gestion compassionnelle de la population canine ;\n• Partager les informations ou les résultats des discussions précédentes avec les parties prenantes identifiées ; \n• Inviter les responsables identifiés à des réunions avec les parties prenantes pour qu'ils contribuent à la stratégie GCPC.","Relevant waste management officials present at all stakeholder meetings regarding DPM;","Ministère de l’agriculture",1,"• Identification des parties prenantes municipales concernées.\n•  Enregistrement des informations partagées et des invitations aux réunions.\n• Invitations documentées des acteurs municipaux aux réunions."]
["DPM- -1-5",1," ","Déterminer un nombre de référence de chiens dans une zone (par exemple, un projet pilote).","","• Étudier les différentes méthodes scientifiques qui pourraient être utilisées pour déterminer le nombre de chiens de référence et identifier l'approche idéale pour votre contexte local ;\n• Identifier une zone où l'approche peut être utilisée pour déterminer le nombre de chiens de référence ;\n• Obtenir le financement et les ressources nécessaires pour mettre en œuvre l'estimation de la population canine ;\n• Former des professionnels à la mise en œuvre de l'estimation de la population canine ;\n• Mettre en œuvre l'approche et déterminer le nombre de chiens de référence dans la zone choisie.","Baseline dog population estimate known at local level","Ministère de l’agriculture",1,"• Identification et mise en œuvre d'une méthode scientifiquement fondée d'estimation de la population canine.\n• Personnel formé et procédures documentées pour l'estimation des populations de chiens.\n• Rapport de base sur la population canine dans la zone pilote."]
["DPM- -2-6",2," ","Rédiger et partager une stratégie de GCPC avec toutes les parties prenantes concernées pour une zone donnée (par exemple, un projet pilote).","","• Rédiger une stratégie de GCPC sur la base des consultations des parties prenantes ;\n• Partager le projet de stratégie de GCPC avec toutes les parties prenantes concernées pour examen et retour d'information ;\n• Examiner et intégrer tout retour d'information reçu.","A draft of the local-level DPM strategy is available with specific deadlines for feedback and review in place.","Ministère de l’agriculture",4,"• Élaboration d'une stratégie de GCPC sur la base des consultations des parties prenantes.\n• Consignation du retour d'information de toutes les parties prenantes concernées.\n• Révision de la stratégie en tenant compte des contributions des parties prenantes."]
["DPM- -2-7",2," ","Finaliser et mettre en œuvre la stratégie de gestion compassionnelle des populations canines dans une zone (par exemple, un projet pilote).","","• Finaliser la stratégie de GCPC sur la base des commentaires des parties prenantes ; \n• S'assurer que la stratégie de GCPC est reconnue ou approuvée par l'autorité compétente concernée ;\n• Identifier les ressources et les autorités responsables de la mise en œuvre de la stratégie de GCPC ;\n• Obtenir un financement pour la mise en œuvre de la stratégie de GCPC dans une région ;\n• Diffuser la version finale de la stratégie à tous les professionnels concernés ;\n• Former tous les professionnels concernés à la mise en œuvre de la stratégie de GCPC;\n• Mettre en œuvre la stratégie de GCPC dans une région.","The local-level DPM strategy is finalised with all associated stakeholders in agreement. Funding and resources are available for the local implementation of the strategy and it is effected upon endorsement / recognition of the strategy. ","Ministère de l’agriculture",6,"• Approbation et reconnaissance de la stratégie de GCPC par les autorités compétentes.\n• Financement et ressources assurés pour la mise en œuvre de la stratégie.\n• Documentation des professionnels formés \n• Rapport de mise en œuvre des activités de GCPC dans la zone pilote."]
["DPM- -2-8",2," ","Former ou éduquer les professionnels à la gestion compassionnelle des populations canines dans une région (par exemple, un projet pilote).","","• Déterminer les besoins de formation des professionnels en ce qui concerne la gestion compassionnelle des populations canines, dans une région spécifique ;\n• Identifier un matériel de formation efficace et pertinent ;\n• Identifier et assurer le financement de la formation ;\n• Identifier les exigences logistiques (lieu, heure, date, etc.) pour entreprendre la formation pour les professionnels dans une région ;\n• Lancer la formation pour les professionnels dans la région choisie.","Professionals in animal health at the local level have been trained / updated on the latest techniques and information regarding DPM;","Ministère de l’agriculture",6,"• Besoins en formation et supports pédagogiques pertinents identifiés.\n• Registres des professionnels formés et des ressources éducatives fournies."]
["DPM- -2-9",2," ","Mettre en œuvre des campagnes de sensibilisation du public à la GCPC dans une région (par exemple, projet pilote).","","• Examiner le matériel de sensibilisation à la GCPC et les campagnes d'information existantes provenant d'autres sources ;\n• Obtenir un financement pour la sensibilisation du public à la GCPC ;\n• Élaborer des messages et du matériel de sensibilisation du public conformes à la stratégie de GCPC finalisée ;\n• Déterminer la meilleure façon de diffuser les messages et le matériel de sensibilisation dans la région choisie (heure de la journée, canaux médiatiques, etc.) ;\n• Mettre en œuvre les campagnes de sensibilisation du public à la GCPC dans la région choisie.","Rabies awareness campaigns include public sensitisation regarding DPM and its importance at a local level;","Ministère de l’agriculture",7,"• Développement ou adaptation de matériel de sensibilisation du public aux contextes locaux.\n• Registres des financements obtenus.\n• Rapport sur la mise en œuvre de la campagne de sensibilisation du public."]
["DPM- -3-10",3," ","Évaluer et affiner la stratégie de GCPC sur la base des résultats obtenus dans la zone du projet (par exemple, le projet pilote).","","• Compiler et évaluer les données collectées au cours de la mise en œuvre de la stratégie de GCPC ;\n• Rédiger un rapport dans lequel vous mettrez en évidence les succès et les lacunes du programme ;\n• Réunir toutes les parties prenantes concernées par la GCPC pour réévaluer la stratégie de GCPC ;\n• Réviser, affiner et finaliser la stratégie de GCPC.","A newly refined DPM strategy is finalised and documenteded based on the most up-to-date dog ecology data from the local level;","Ministère de l’agriculture",8,"• Rapport complet évaluant les résultats du projet et l'analyse des données.\n• Réunions des parties prenantes afin d'examiner et d'affiner la stratégie de GCPC.\n• Mise à jour et amélioration de la stratégie de GCPC sur la base des résultats du projet pilote."]
["DPM- -3-11",3," ","Étendre à d'autres régions du pays les campagnes de sensibilisation du public à la GCPC.","","• Évaluer les messages et le matériel existants et les réviser si nécessaire (en tenant compte des différences entre les localités, les cultures, etc.) ;\n• Obtenir un financement pour l'élaboration et la diffusion de messages et de supports de sensibilisation supplémentaires afin de sensibiliser un plus grand nombre de régions du pays ;\n• Élaborer des messages et des supports de sensibilisation du public conformes à la stratégie actualisée et finalisée du GCPC ;\n• Déterminer la meilleure façon de distribuer les messages et le matériel de sensibilisation dans un plus grand nombre de régions du pays (en tenant compte des différentes cultures, de l'accès aux médias, etc. dans les différentes régions) ;\n• Mettre en œuvre les campagnes de sensibilisation du public à la GCPC dans un plus grand nombre de régions du pays.","Rabies awareness campaigns, including DPM, are revised, customised, resourced and expanded to other areas for implementation","Ministère de l’agriculture",7,"• Révision et adaptation du matériel de sensibilisation à divers contextes culturels.\n• Obtention d'un financement pour la distribution à l'échelle nationale du matériel de sensibilisation à la GCPC.\n• Mise en place de registres et documentation de la portée des campagnes de sensibilisation du public."]
["DPM- -3-12",3," ","Former les professionnels vétérinaires et animaliers concernés à la mise en œuvre de la GCPC dans l'ensemble du pays.","","• Élaborer un plan pour étendre la formation au reste du pays à partir des zones locales ;\n• Identifier et assurer le financement de la formation dans l'ensemble du pays ;\n• Identifier les besoins logistiques (lieu, heure, date, etc.) pour entreprendre la formation des professionnels dans tout le pays ;\n• Lancer la formation des professionnels dans l'ensemble du pays ;\n• Évaluer l'efficacité et la portée des cours de formation pour s'assurer que les professionnels ont été formés dans tout le pays.","The majority of veterinary and animal technicians have been trained in DPM across the country;","Ministère de l’agriculture",8,"• Plan national de formation pour les vétérinaires et les professionnels des animaux.\n• Séances de formation documentées et registres de participation.\n• Rapports d'évaluation sur l'efficacité et la portée des efforts nationaux de formation."]
["DPM- -5-13",5," ","Mettre en œuvre la stratégie finalisée de GCPC dans l'ensemble du pays.","","• Identifier les parties prenantes concernées par la GCPC au niveau national ;\n• Demander aux parties prenantes nationales d'examiner la stratégie de GCPC utilisée dans au moins une région du pays ;\n• Adapter la stratégie de GCPC existante sur la base du retour d'information et des discussions pour créer une stratégie nationale de GCPC ;\n• Obtenir le financement et les ressources nécessaires à la mise en œuvre de la stratégie nationale de GCPC ;\n• Finaliser, approuver et documenter la stratégie nationale de GCPC ;\n• Former tous les professionnels concernés à la mise en œuvre de la stratégie nationale de GCPC, le cas échéant ;  \n• Mettre en œuvre la stratégie nationale à tous les niveaux, y compris en fournissant un soutien continu aux stratégies locales et aux parties prenantes.","A national DPM strategy is devised, documented, funded, endorsed and implemented based on the experiences and feedback from local-level strategies. The national DPM strategy should ensure sufficient resources and support to local-level implementation;","Ministère de l’agriculture",12,"• Approbation de la stratégie nationale de GCPC intégrant les enseignements issus des projets locaux.\n• Financement et soutien logistique obtenus pour la mise en œuvre nationale.\n• Documentation de l'exécution de la stratégie nationale et des structures de soutien."]
["DPM- -5-14",5," ","Veiller à ce que les campagnes de GCPC se poursuivent dans tout le pays après l'élimination de la rage canine.","","• Examiner et mettre à jour régulièrement la stratégie nationale établie en matière de GCPC et garantir le financement nécessaire à la poursuite de sa mise en œuvre ;\n• Partager les procédures opérationnelles standard avec les nouveaux professionnels travaillant dans les zones locales ;\n• Former régulièrement les professionnels à toutes les activités pertinentes en matière de GCPC ;\n• Poursuivre la sensibilisation du public à l'importance de la GCPC.","The national DPM strategy has been revised and allocated sufficient funding to continue DPM efforts after the elimination of canine-mediated human rabies. ","Ministère de l’agriculture",13,"• Mise à jour régulière de la stratégie nationale de GCPC et des procédures opérationnelles normalisées.\n• Programmes de formation continue pour les professionnels nouveaux et existants.\n• Documentation sur la sensibilisation continue du public et l'engagement des parties prenantes."]
["","","","","","","","","",""]
["","","","","","","","","",""]
["","","","","","","","","",""]
["","","","","","","","","",""]
["","","","","","","","","",""]
["","","","","","","","","",""]
["","","","","","","","","",""]
["","","","","","","","","",""]
["","","","","","","","","",""]
["","","","","","","","","",""]
["","","","","","","","","",""]
["","","","","","","","","",""]
["","","","","","","","","",""]
["","","","","","","","","",""]
["","","","","","","","","",""]
["","","","","","","","","",""]
["","","","","","","","","",""]
["","","","","","","","","",""]
["","","","","","","","","",""]
["","","","","","","","","",""]
["","","","","","","","","",""]
["","","","","","","","","",""]
["","","","","","","","","",""]

{"sheet":"DPMgantt","index":34,"n_rows":50,"n_cols":17,"rows_kept":50,"cut":false,"hidden":true,"merged":[[0,1,0,16],[1,1,1,6],[2,1,2,16]]}
[null,"Plan de travail national pour l’élimination de la rage"]
[]
[null,"Gestion humaine de la population canine - DIAGRAMME DE GANTT"]
[]
[null,null,null,null,1,2,3,4,5,6,7,8,9,10,11,12,13]
[null,"Theme","Étape","Activité",{"$f":"'NW country'!$E$35","v":2025},{"$f":"IF('NW country'!$K$4<6,E6+1,\"\")","v":2026},{"$f":"IF('NW country'!$K$4<5,E6+2,\"\")","v":2027},{"$f":"IF('NW country'!$K$4<5,E6+3,\"\")","v":2028},{"$f":"IF('NW country'!$K$4<4,E6+4,\"\")","v":2029},{"$f":"IF('NW country'!$K$4<4,E6+5,\"\")","v":2030},{"$f":"IF('NW country'!$K$4<4,E6+6,\"\")","v":2031},{"$f":"IF('NW country'!$K$4<3,E6+7,\"\")","v":2032},{"$f":"IF('NW country'!$K$4<3,E6+8,\"\")","v":2033},{"$f":"IF('NW country'!$K$4<3,E6+9,\"\")","v":2034},{"$f":"IF('NW country'!$K$4<2,E6+10,\"\")","v":2035},{"$f":"IF('NW country'!$K$4<2,E6+11,\"\")","v":2036},{"$f":"IF('NW country'!$K$4<2,E6+12,\"\")","v":2037}]
[13,{"$f":"IF((INDIRECT(\"DPM!\"&\"$a\"&$A7))=0,\"\",INDIRECT(\"DPM!\"&\"$c\"&$A7))","v":0},{"$f":"IF(INDIRECT(\"DPM!\"&\"$a\"&$A7)=0,\"\",INDIRECT(\"DPM!\"&\"$b\"&$A7))","v":0},{"$f":"IF(INDIRECT(\"DPM!\"&\"$a\"&$A7)=0,\"\",INDIRECT(\"DPM!\"&\"$d\"&$A7))","v":"Faire en sorte qu'une des parties prenantes entreprenne des activités de gestion compassionnelle de la population canine dans au moins une région du pays."},{"$f":"IF($C7>6,\"\",IF(E$5<=INDIRECT(\"DPM!\"&\"$i\"&$A7),\"X\",\"\"))","v":"X"},{"$f":"IF($C7>6,\"\",IF(F$5<=INDIRECT(\"DPM!\"&\"$i\"&$A7),\"X\",\"\"))","v":""},"","","","","","","","","","",""]
[14,{"$f":"IF((INDIRECT(\"DPM!\"&\"$a\"&$A8))=0,\"\",INDIRECT(\"DPM!\"&\"$c\"&$A8))","v":0},{"$f":"IF(INDIRECT(\"DPM!\"&\"$a\"&$A8)=0,\"\",INDIRECT(\"DPM!\"&\"$b\"&$A8))","v":1},{"$f":"IF(INDIRECT(\"DPM!\"&\"$a\"&$A8)=0,\"\",INDIRECT(\"DPM!\"&\"$d\"&$A8))","v":"Travailler activement à mettre fin à l'abattage indiscriminé des chiens dans le cadre de la gestion des populations canines ou de la lutte contre la rage."},{"$f":"IF($C8>6,\"\",IF(E$5<=INDIRECT(\"DPM!\"&\"$i\"&$A8),\"X\",\"\"))","v":"X"},"","","","","","","","","","","",""]
[15," ",1,"Organiser des discussions avec les parties prenantes afin d'élaborer une stratégie de gestion compassionnelle de la population canine dans une région (par exemple, un projet pilote).","X","","","","","","","","","","","",""]
[16," ",1,"Impliquer les acteurs municipaux dans les discussions concernant la gestion compassionnelle de la population canine.","X","","","","","","","","","","","",""]
[17," ",1,"Déterminer un nombre de référence de chiens dans une zone (par exemple, un projet pilote).","X","","","","","","","","","","","",""]
[18," ",2,"Rédiger et partager une stratégie de GCPC avec toutes les parties prenantes concernées pour une zone donnée (par exemple, un projet pilote).","X","X","X","X","","","","","","","","",""]
[19," ",2,"Finaliser et mettre en œuvre la stratégie de gestion compassionnelle des populations canines dans une zone (par exemple, un projet pilote).","X","X","X","X","X","X","","","","","","",""]
[20," ",2,"Former ou éduquer les professionnels à la gestion compassionnelle des populations canines dans une région (par exemple, un projet pilote).","X","X","X","X","X","X","","","","","","",""]
[21," ",2,"Mettre en œuvre des campagnes de sensibilisation du public à la GCPC dans une région (par exemple, projet pilote).","X","X","X","X","X","X","X","","","","","",""]
[22," ",3,"Évaluer et affiner la stratégie de GCPC sur la base des résultats obtenus dans la zone du projet (par exemple, le projet pilote).","X","X","X","X","X","X","X","X","","","","",""]
[23," ",3,"Étendre à d'autres régions du pays les campagnes de sensibilisation du public à la GCPC.","X","X","X","X","X","X","X","","","","","",""]
[24," ",3,"Former les professionnels vétérinaires et animaliers concernés à la mise en œuvre de la GCPC dans l'ensemble du pays.","X","X","X","X","X","X","X","X","","","","",""]
[25," ",5,"Mettre en œuvre la stratégie finalisée de GCPC dans l'ensemble du pays.","X","X","X","X","X","X","X","X","X","X","X","X",""]
[26," ",5,"Veiller à ce que les campagnes de GCPC se poursuivent dans tout le pays après l'élimination de la rage canine.","X","X","X","X","X","X","X","X","X","X","X","X","X"]
[27,"","","","","","","","","","","","","","","",""]
[28,"","","","","","","","","","","","","","","",""]
[29,"","","","","","","","","","","","","","","",""]
[30,"","","","","","","","","","","","","","","",""]
[31,"","","","","","","","","","","","","","","",""]
[32,"","","","","","","","","","","","","","","",""]
[33,"","","","","","","","","","","","","","","",""]
[34,"","","","","","","","","","","","","","","",""]
[35,"","","","","","","","","","","","","","","",""]
[36,"","","","","","","","","","","","","","","",""]
[37,"","","","","","","","","","","","","","","",""]
[38,"","","","","","","","","","","","","","","",""]
[39,"","","","","","","","","","","","","","","",""]
[40,"","","","","","","","","","","","","","","",""]
[41,"","","","","","","","","","","","","","","",""]
[42,"","","","","","","","","","","","","","","",""]
[43,"","","","","","","","","","","","","","","",""]
[44,"","","","","","","","","","","","","","","",""]
[45,"","","","","","","","","","","","","","","",""]
[46,"","","","","","","","","","","","","","","",""]
[47,"","","","","","","","","",{"$f":"IF($C41>6,\"\",IF(K$5<=INDIRECT(\"DPM!\"&\"$i\"&$A41),\"X\",\"\"))","v":""},"","","","","",""]
[48,"","","",{"$f":"IF($C42>6,\"\",IF(E$5<=INDIRECT(\"DPM!\"&\"$i\"&$A42),\"X\",\"\"))","v":""},"","","","","","","","","","","",""]
[49,"","","","","","","","","","","","","","","",""]
[50,"","","","","","","","","","","","","","","",""]
[51,"","","","","","","","","","","","","","","",""]
[52,"","","","","","","","","","","","","","","",""]
[53,"","","","","","","","","","","","","","","",""]
[54,"","","","","","","","","","","","","","","",""]
[55,"","","","","","","","","","","","","","","",""]
[56,{"$f":"IF((INDIRECT(\"DCA!\"&\"$a\"&$A50))=0,\"\",INDIRECT(\"DCA!\"&\"$c\"&$A50))","v":""},{"$f":"IF(INDIRECT(\"DCA!\"&\"$a\"&$A50)=0,\"\",INDIRECT(\"DCA!\"&\"$b\"&$A50))","v":""},{"$f":"IF(INDIRECT(\"DCA!\"&\"$a\"&$A50)=0,\"\",INDIRECT(\"DCA!\"&\"$d\"&$A50))","v":""},{"$f":"IF($C50>6,\"\",IF(E$5<=INDIRECT(\"DCA!\"&\"$i\"&$A50),\"X\",\"\"))","v":""},"","","","","","","","","","","",""]

{"sheet":"rawiec","index":35,"n_rows":50,"n_cols":10,"rows_kept":50,"cut":false,"hidden":true,"merged":[[0,1,0,3],[0,4,0,9],[1,1,1,9],[4,1,5,3],[6,1,8,3]]}
[null,"Practical Workplan towards Achieving Rabies Elimination",null,null,"Prevention and Control"]
[null,"Blurb blurb blurb blah blurb blurb"]
[]
[]
[null,"Estimated years to elimination\n(based on the current SARE score)",null,null,null,"All stage 0 and 1 activities should ideally be completed within a 3-year period",null,null,null,{"$f":"IF('NW country'!$K$4<2,\"Years 1, 2 and 3\",\"--\")","v":"Years 1, 2 and 3"}]
[null,null,null,null,null,"All stage 2 activities should ideally be completed within a 3-year period",null,null,null,{"$f":"IF('NW country'!$K$4<2,\"Years 4, 5 and 6\",IF('NW country'!$K$4<3,\"Years 1, 2 and 3\",\"--\"))","v":"Years 4, 5 and 6"}]
[null,{"$f":"IF('NW country'!$K$4<2,13,IF('NW country'!$K$4<3,10,IF('NW country'!$K$4<4,7,IF('NW country'!$K$4<5,4,2))))","v":13},null,null,null,"All stage 3 activities should ideally be completed within a 3-year period",null,null,null,{"$f":"IF('NW country'!$K$4<2,\"Years 7, 8 and 9\",IF('NW country'!$K$4<3,\"Years 4, 5 and 6\",IF('NW country'!$K$4<4,\"Years 1, 2 and 3\",\"--\")))","v":"Years 7, 8 and 9"}]
[null,null,null,null,null,"All stage 4 activities should ideally be completed within a 2-year period",null,null,null,{"$f":"IF('NW country'!$K$4<2,\"Years 10 and 11\",IF('NW country'!$K$4<3,\"Years 7 and 8\",IF('NW country'!$K$4<4,\"Years 4 and 5\",IF('NW country'!$K$4<5,\"Years 1 and 2\",\"--\"))))","v":"Years 10 and 11"}]
[null,null,null,null,null,"All stage 5 activities should ideally be completed within a 2-year period",null,null,null,{"$f":"IF('NW country'!$K$4<2,\"Years 12 and 13\",IF('NW country'!$K$4<3,\"Years 9 and 10\",IF('NW country'!$K$4<4,\"Years 6 and 7\",IF('NW country'!$K$4<5,\"Years 3 and 4\",\"Years 1 and 2\"))))","v":"Years 12 and 13"}]
[]
[null,"Instructions : Veuillez modifier les Tâches, les Autorités responsables, le Calendrier et les  Résultats attendus selon les besoins."]
["ID","Étape","Theme","Activité","Remarques","Tâche","Outcomes","Autorité responsible","Calendrier (années)","Résultats attendus"]
[{"$f":"IF(ROWS($A$13:A13)<=(SUMPRODUCT((masterlist!B:B=\"IEC\")*(masterlist!J:J=0))),INDEX(masterlist!$C$2:$C$207,SMALL(IF(masterlist!$B$2:$B$207=\"IEC\",IF(masterlist!$F$2:$F$207>0,IF(masterlist!$J$2:$J$207=0,ROW(masterlist!$B$2:$B$207)-ROW(masterlist!$B$2)+1))),ROWS($A$13:A13))),\"\")","v":"IEC-Sen-1-3"},{"$f":"IFERROR(VLOOKUP($A13,masterlist!$C$2:$AA$207,3,FALSE),\"\")","v":1},{"$f":"IFERROR(VLOOKUP($A13,masterlist!$C$2:$AA$207,2,FALSE),\"\")","v":"Sensibilisation du public"},{"$f":"IFERROR(VLOOKUP($A13,masterlist!$C$2:$AD$207,28,FALSE),\"\")","v":"Développer et tester un plan structuré d'IEC décrivant les publics cibles, les messages clés, les moyens de diffusion et les résultats souhaités en matière d'éducation, de sensibilisation et de prise de conscience - pour la rage et le bien-être des chiens dans une zone de projet pilote."},{"$f":"IFERROR(IF((VLOOKUP($A13,masterlist!$C$2:$AA$207,9,FALSE))=0,\"\",VLOOKUP($A13,masterlist!$C$2:$AA$207,9,FALSE)),\"\")","v":""},{"$f":"IFERROR(VLOOKUP($A13,masterlist!$C$2:$AA$207,20,FALSE),\"\")","v":"• Rechercher tout plan d'Information, d’éducation et de communication (IEC) pour la rage existant ailleurs dans le monde, y compris dans la littérature scientifique ;\n• Rédiger un plan d'IEC basé sur les publics cibles identifiés et les messages spécifiques ;\n• Examiner le projet de plan d'IEC avec les parties prenantes concernées ;\n• Finaliser le plan d'IEC et s'assurer qu'il est reconnu par toutes les parties prenantes concernées ;\n• Assurer des ressources et des finances suffisantes pour mettre en œuvre le plan d'IEC dans une région ;\n• Mettre en œuvre le plan d'IEC dans au moins une région."},{"$f":"IFERROR(VLOOKUP($A13,masterlist!$C$2:$AA$207,21,FALSE),\"\")","v":"A comprehensive IEC plan is finalised, recognized, resourced and implemented on a small-scale;"},{"$f":"IFERROR(VLOOKUP($A13,masterlist!$C$2:$AA$207,22,FALSE),\"\")","v":"Ministère de la santé; \nMinistère de l’agriculture; \nMinistère de la  Communication"},{"$f":"IFERROR(IF($B$7=2,(VLOOKUP($A13,masterlist!$C$2:$AA$207,23,FALSE)-11),IF($B$7=4,(VLOOKUP($A13,masterlist!$C$2:$AA$207,23,FALSE)-9),IF($B$7=7,(VLOOKUP($A13,masterlist!$C$2:$AA$207,23,FALSE)-6),IF($B$7=10,(VLOOKUP($A13,masterlist!$C$2:$AA$207,23,FALSE)-3),(VLOOKUP($A13,masterlist!$C$2:$AA$207,23,FALSE)))))),\"\")","v":2},{"$f":"IFERROR(VLOOKUP($A13,masterlist!$C$2:$AA$207,24,FALSE),\"\")","v":"• Rédaction d'un plan d'IEC décrivant les publics cibles, les messages clés, les méthodes de diffusion et les résultats souhaités.\n• Examen et retour d'information  par les parties prenantes sur le projet de plan d'IEC documentés.\n• Plan d'IEC finalisé et reconnu avec des ressources garanties pour sa mise en œuvre dans une zone pilote.\n• Rapport sur la mise en œuvre et les résultats du projet pilote d'IEC."}]
[{"$f":"IF(ROWS($A$13:A14)<=(SUMPRODUCT((masterlist!B:B=\"IEC\")*(masterlist!J:J=0))),INDEX(masterlist!$C$2:$C$207,SMALL(IF(masterlist!$B$2:$B$207=\"IEC\",IF(masterlist!$F$2:$F$207>0,IF(masterlist!$J$2:$J$207=0,ROW(masterlist!$B$2:$B$207)-ROW(masterlist!$B$2)+1))),ROWS($A$13:A14))),\"\")","v":"IEC-Sen-2-5"},{"$f":"IFERROR(VLOOKUP($A14,masterlist!$C$2:$AA$207,3,FALSE),\"\")","v":2},{"$f":"IFERROR(VLOOKUP($A14,masterlist!$C$2:$AA$207,2,FALSE),\"\")","v":"Sensibilisation du public"},{"$f":"IFERROR(VLOOKUP($A14,masterlist!$C$2:$AD$207,28,FALSE),\"\")","v":"Actualiser (si nécessaire) et mettre en œuvre le plan d'IEC dans l'ensemble du pays."},{"$f":"IFERROR(IF((VLOOKUP($A14,masterlist!$C$2:$AA$207,9,FALSE))=0,\"\",VLOOKUP($A14,masterlist!$C$2:$AA$207,9,FALSE)),\"\")","v":""},{"$f":"IFERROR(VLOOKUP($A14,masterlist!$C$2:$AA$207,20,FALSE),\"\")","v":"• Revoir le plan d'IEC qui a été testé dans une ou plusieurs régions du pays ;\n• Mettre à jour le plan d'IEC (si nécessaire) pour le rendre applicable à sa mise en œuvre au niveau national ;\n• S'assurer que des ressources et des finances suffisantes sont disponibles pour mettre en œuvre le plan d'IEC dans l'ensemble du pays ;\n• Mettre en œuvre le plan d'IEC dans l'ensemble du pays."},{"$f":"IFERROR(VLOOKUP($A14,masterlist!$C$2:$AA$207,21,FALSE),\"\")","v":"The national rabies control strategy has been updated to include a national IEC plan. The updates in the national rabies control strategy are endorsed by the relevant stakeholders and implemented."},{"$f":"IFERROR(VLOOKUP($A14,masterlist!$C$2:$AA$207,22,FALSE),\"\")","v":"Groupe multi-sectoriel"},{"$f":"IFERROR(IF($B$7=2,(VLOOKUP($A14,masterlist!$C$2:$AA$207,23,FALSE)-11),IF($B$7=4,(VLOOKUP($A14,masterlist!$C$2:$AA$207,23,FALSE)-9),IF($B$7=7,(VLOOKUP($A14,masterlist!$C$2:$AA$207,23,FALSE)-6),IF($B$7=10,(VLOOKUP($A14,masterlist!$C$2:$AA$207,23,FALSE)-3),(VLOOKUP($A14,masterlist!$C$2:$AA$207,23,FALSE)))))),\"\")","v":7},{"$f":"IFERROR(VLOOKUP($A14,masterlist!$C$2:$AA$207,24,FALSE),\"\")","v":"• Plan d'IEC mis à jour en vue de son application au niveau national.\n• Ressources et financement obtenus et documentés pour la mise en œuvre à l'échelle nationale.\n• Rapport sur la mise en œuvre du plan d'IEC actualisé dans l'ensemble du pays."}]
[{"$f":"IF(ROWS($A$13:A15)<=(SUMPRODUCT((masterlist!B:B=\"IEC\")*(masterlist!J:J=0))),INDEX(masterlist!$C$2:$C$207,SMALL(IF(masterlist!$B$2:$B$207=\"IEC\",IF(masterlist!$F$2:$F$207>0,IF(masterlist!$J$2:$J$207=0,ROW(masterlist!$B$2:$B$207)-ROW(masterlist!$B$2)+1))),ROWS($A$13:A15))),\"\")","v":"IEC-Sen-5-6"},{"$f":"IFERROR(VLOOKUP($A15,masterlist!$C$2:$AA$207,3,FALSE),\"\")","v":5},{"$f":"IFERROR(VLOOKUP($A15,masterlist!$C$2:$AA$207,2,FALSE),\"\")","v":"Sensibilisation du public"},{"$f":"IFERROR(VLOOKUP($A15,masterlist!$C$2:$AD$207,28,FALSE),\"\")","v":"Maintenant que le pays est indemne de rage humaine et animale, mettre en œuvre des programmes de sensibilisation axés sur le maintien de l'absence de rage canine et de rage humaine transmise par les chiens."},{"$f":"IFERROR(IF((VLOOKUP($A15,masterlist!$C$2:$AA$207,9,FALSE))=0,\"\",VLOOKUP($A15,masterlist!$C$2:$AA$207,9,FALSE)),\"\")","v":""},{"$f":"IFERROR(VLOOKUP($A15,masterlist!$C$2:$AA$207,20,FALSE),\"\")","v":"• Réviser le plan national d'IEC pour donner la priorité aux messages axés sur le maintien de l'absence de rage canine et de rage humaine transmise par les chiens (importation d'animaux, prévention des morsures, risques liés aux voyages, évitement des contacts avec la faune sauvage, etc.) ;\n• Obtenir le financement et les ressources nécessaires pour poursuivre les campagnes de sensibilisation après la déclaration d'absence de rage canine ;\n• Poursuivre la mise en œuvre du plan d'IEC révisé à l'échelon national."},{"$f":"IFERROR(VLOOKUP($A15,masterlist!$C$2:$AA$207,21,FALSE),\"\")","v":"Updated IEC plan with awareness programmes delivered to the public to ensure the maintenance of freedom from dog-transmitted rabies in the country."},{"$f":"IFERROR(VLOOKUP($A15,masterlist!$C$2:$AA$207,22,FALSE),\"\")","v":"Groupe multi-sectoriel"},{"$f":"IFERROR(IF($B$7=2,(VLOOKUP($A15,masterlist!$C$2:$AA$207,23,FALSE)-11),IF($B$7=4,(VLOOKUP($A15,masterlist!$C$2:$AA$207,23,FALSE)-9),IF($B$7=7,(VLOOKUP($A15,masterlist!$C$2:$AA$207,23,FALSE)-6),IF($B$7=10,(VLOOKUP($A15,masterlist!$C$2:$AA$207,23,FALSE)-3),(VLOOKUP($A15,masterlist!$C$2:$AA$207,23,FALSE)))))),\"\")","v":13},{"$f":"IFERROR(VLOOKUP($A15,masterlist!$C$2:$AA$207,24,FALSE),\"\")","v":"• Plan d'IEC révisé mettant l'accent sur le maintien du statut de zone indemne de rage.\n• Preuve du financement et de la mise en œuvre continue des programmes de sensibilisation."}]
[{"$f":"IF(ROWS($A$13:A16)<=(SUMPRODUCT((masterlist!B:B=\"IEC\")*(masterlist!J:J=0))),INDEX(masterlist!$C$2:$C$207,SMALL(IF(masterlist!$B$2:$B$207=\"IEC\",IF(masterlist!$F$2:$F$207>0,IF(masterlist!$J$2:$J$207=0,ROW(masterlist!$B$2:$B$207)-ROW(masterlist!$B$2)+1))),ROWS($A$13:A16))),\"\")","v":"IEC-For-1-8"},{"$f":"IFERROR(VLOOKUP($A16,masterlist!$C$2:$AA$207,3,FALSE),\"\")","v":1},{"$f":"IFERROR(VLOOKUP($A16,masterlist!$C$2:$AA$207,2,FALSE),\"\")","v":"Formation professionnelle"},{"$f":"IFERROR(VLOOKUP($A16,masterlist!$C$2:$AD$207,28,FALSE),\"\")","v":"Déterminer les besoins en matière de formation et d'éducation des professionnels de la santé animale et humaine impliqués dans l'élimination de la rage."},{"$f":"IFERROR(IF((VLOOKUP($A16,masterlist!$C$2:$AA$207,9,FALSE))=0,\"\",VLOOKUP($A16,masterlist!$C$2:$AA$207,9,FALSE)),\"\")","v":""},{"$f":"IFERROR(VLOOKUP($A16,masterlist!$C$2:$AA$207,20,FALSE),\"\")","v":"• Identifier la meilleure façon d'entreprendre une évaluation des besoins en matière de connaissances et de formation pour tous les professionnels impliqués dans les efforts d'élimination de la rage dans l'ensemble du pays ;\n• Obtenir les ressources et le financement nécessaires pour entreprendre l'évaluation des besoins dans l'ensemble du pays ;\n• Mettre en œuvre l'évaluation des besoins dans l'ensemble du pays ;\n• Évaluer les résultats de l'évaluation pour identifier les lacunes en matière de connaissances au sein du réseau professionnel ;\n• Compiler un rapport sur les résultats de l'évaluation avec des recommandations."},{"$f":"IFERROR(VLOOKUP($A16,masterlist!$C$2:$AA$207,21,FALSE),\"\")","v":"Results of assessment assessed and analysed to determine training needs for the professionals at a local level;"},{"$f":"IFERROR(VLOOKUP($A16,masterlist!$C$2:$AA$207,22,FALSE),\"\")","v":"Ministère de la santé; \nMinistère de l’agriculture"},{"$f":"IFERROR(IF($B$7=2,(VLOOKUP($A16,masterlist!$C$2:$AA$207,23,FALSE)-11),IF($B$7=4,(VLOOKUP($A16,masterlist!$C$2:$AA$207,23,FALSE)-9),IF($B$7=7,(VLOOKUP($A16,masterlist!$C$2:$AA$207,23,FALSE)-6),IF($B$7=10,(VLOOKUP($A16,masterlist!$C$2:$AA$207,23,FALSE)-3),(VLOOKUP($A16,masterlist!$C$2:$AA$207,23,FALSE)))))),\"\")","v":2},{"$f":"IFERROR(VLOOKUP($A16,masterlist!$C$2:$AA$207,24,FALSE),\"\")","v":"• Évaluation à l'échelle nationale réalisée afin d'identifier les lacunes en matière de connaissances sur la lutte contre la rage.\n• Rapport contenant les principales conclusions et recommandations pour les formations futures."}]
[{"$f":"IF(ROWS($A$13:A17)<=(SUMPRODUCT((masterlist!B:B=\"IEC\")*(masterlist!J:J=0))),INDEX(masterlist!$C$2:$C$207,SMALL(IF(masterlist!$B$2:$B$207=\"IEC\",IF(masterlist!$F$2:$F$207>0,IF(masterlist!$J$2:$J$207=0,ROW(masterlist!$B$2:$B$207)-ROW(masterlist!$B$2)+1))),ROWS($A$13:A17))),\"\")","v":"IEC-For-1-9"},{"$f":"IFERROR(VLOOKUP($A17,masterlist!$C$2:$AA$207,3,FALSE),\"\")","v":1},{"$f":"IFERROR(VLOOKUP($A17,masterlist!$C$2:$AA$207,2,FALSE),\"\")","v":"Formation professionnelle"},{"$f":"IFERROR(VLOOKUP($A17,masterlist!$C$2:$AD$207,28,FALSE),\"\")","v":"Élaborer un plan structuré de formation et d'éducation décrivant les publics cibles, les principaux besoins, les moyens de formation et d'éducation, et les résultats souhaités pour les professionnels de la santé humaine et animale dans le pays."},{"$f":"IFERROR(IF((VLOOKUP($A17,masterlist!$C$2:$AA$207,9,FALSE))=0,\"\",VLOOKUP($A17,masterlist!$C$2:$AA$207,9,FALSE)),\"\")","v":"il y a un plan pour la vaccination humaine. Concernant la vaccination animale, les veterinaires sont competent pour sa mise en oeuvre cependant la formation en matiere capture des chiens errants n,est pas realisee. Necessite de proposer des formations en matiere de capture des chiens errants avec le secteur de l agriculture et l'interieur"},{"$f":"IFERROR(VLOOKUP($A17,masterlist!$C$2:$AA$207,20,FALSE),\"\")","v":"• Examiner les résultats de l'évaluation des connaissances et des besoins en formation des professionnels impliqués dans les efforts d'élimination de la rage dans l'ensemble du pays ;\n• Déterminer quels sont les principaux besoins en matière de formation et d'éducation ;\n• Rédiger un plan de formation pour les professionnels impliqués dans le contrôle et l'élimination de la rage ;\n• Examiner le projet de plan de formation en collaboration avec toutes les parties prenantes concernées ;\n• Finaliser le plan et veiller à ce qu'il soit reconnu par toutes les parties prenantes concernées ;\n• Veiller à ce que le plan national soit communiqué à toutes les parties prenantes concernées au niveau local."},{"$f":"IFERROR(VLOOKUP($A17,masterlist!$C$2:$AA$207,21,FALSE),\"\")","v":"A national training plan for professionals is developed and disseminated throughout the country to all of the relevant stakeholders at a local and national level;"},{"$f":"IFERROR(VLOOKUP($A17,masterlist!$C$2:$AA$207,22,FALSE),\"\")","v":"Ministère de la santé; \nMinistère de l’agriculture"},{"$f":"IFERROR(IF($B$7=2,(VLOOKUP($A17,masterlist!$C$2:$AA$207,23,FALSE)-11),IF($B$7=4,(VLOOKUP($A17,masterlist!$C$2:$AA$207,23,FALSE)-9),IF($B$7=7,(VLOOKUP($A17,masterlist!$C$2:$AA$207,23,FALSE)-6),IF($B$7=10,(VLOOKUP($A17,masterlist!$C$2:$AA$207,23,FALSE)-3),(VLOOKUP($A17,masterlist!$C$2:$AA$207,23,FALSE)))))),\"\")","v":3},{"$f":"IFERROR(VLOOKUP($A17,masterlist!$C$2:$AA$207,24,FALSE),\"\")","v":"• Plan de formation finalisé décrivant les publics, les besoins, les méthodes et les résultats.\n• Approbation documentée par les parties prenantes et diffusion nationale du plan de formation."}]
[{"$f":"IF(ROWS($A$13:A18)<=(SUMPRODUCT((masterlist!B:B=\"IEC\")*(masterlist!J:J=0))),INDEX(masterlist!$C$2:$C$207,SMALL(IF(masterlist!$B$2:$B$207=\"IEC\",IF(masterlist!$F$2:$F$207>0,IF(masterlist!$J$2:$J$207=0,ROW(masterlist!$B$2:$B$207)-ROW(masterlist!$B$2)+1))),ROWS($A$13:A18))),\"\")","v":"IEC-For-2-11"},{"$f":"IFERROR(VLOOKUP($A18,masterlist!$C$2:$AA$207,3,FALSE),\"\")","v":2},{"$f":"IFERROR(VLOOKUP($A18,masterlist!$C$2:$AA$207,2,FALSE),\"\")","v":"Formation professionnelle"},{"$f":"IFERROR(VLOOKUP($A18,masterlist!$C$2:$AD$207,28,FALSE),\"\")","v":"Mettre en œuvre la formation structurée des professionnels de la santé humaine et animale dans la plupart des régions du pays."},{"$f":"IFERROR(IF((VLOOKUP($A18,masterlist!$C$2:$AA$207,9,FALSE))=0,\"\",VLOOKUP($A18,masterlist!$C$2:$AA$207,9,FALSE)),\"\")","v":""},{"$f":"IFERROR(VLOOKUP($A18,masterlist!$C$2:$AA$207,20,FALSE),\"\")","v":"• Examiner les résultats de la formation entreprise dans au moins une région et réviser le plan de formation si nécessaire.\n• Obtenir un financement pour entreprendre la formation dans la plupart des régions du pays ;\n• Initier la formation des professionnels dans la plupart des régions du pays sur la base du plan national de formation."},{"$f":"IFERROR(VLOOKUP($A18,masterlist!$C$2:$AA$207,21,FALSE),\"\")","v":"A clear indication of the training needs for professionals involved in rabies control and elimination has been acquired, including identifying areas where training is sufficient, as well as identifying areas where training is still lacking. The majority of professionals throughout the country have been adequately trained."},{"$f":"IFERROR(VLOOKUP($A18,masterlist!$C$2:$AA$207,22,FALSE),\"\")","v":"Ministère de la santé; \nMinistère de l’agriculture"},{"$f":"IFERROR(IF($B$7=2,(VLOOKUP($A18,masterlist!$C$2:$AA$207,23,FALSE)-11),IF($B$7=4,(VLOOKUP($A18,masterlist!$C$2:$AA$207,23,FALSE)-9),IF($B$7=7,(VLOOKUP($A18,masterlist!$C$2:$AA$207,23,FALSE)-6),IF($B$7=10,(VLOOKUP($A18,masterlist!$C$2:$AA$207,23,FALSE)-3),(VLOOKUP($A18,masterlist!$C$2:$AA$207,23,FALSE)))))),\"\")","v":5},{"$f":"IFERROR(VLOOKUP($A18,masterlist!$C$2:$AA$207,24,FALSE),\"\")","v":"• Plan de formation révisé sur la base des résultats de l'expérience pilote.\n• Obtention de ressources pour une formation professionnelle à l'échelle nationale.\n• Rapport de mise en œuvre documentant les résultats de la formation dans la plupart des régions du pays."}]
[{"$f":"IF(ROWS($A$13:A19)<=(SUMPRODUCT((masterlist!B:B=\"IEC\")*(masterlist!J:J=0))),INDEX(masterlist!$C$2:$C$207,SMALL(IF(masterlist!$B$2:$B$207=\"IEC\",IF(masterlist!$F$2:$F$207>0,IF(masterlist!$J$2:$J$207=0,ROW(masterlist!$B$2:$B$207)-ROW(masterlist!$B$2)+1))),ROWS($A$13:A19))),\"\")","v":"IEC-Pla-2-15"},{"$f":"IFERROR(VLOOKUP($A19,masterlist!$C$2:$AA$207,3,FALSE),\"\")","v":2},{"$f":"IFERROR(VLOOKUP($A19,masterlist!$C$2:$AA$207,2,FALSE),\"\")","v":"Plaidoyer"},{"$f":"IFERROR(VLOOKUP($A19,masterlist!$C$2:$AD$207,28,FALSE),\"\")","v":"Faire connaître les succès du programme d'élimination de la rage aux parties prenantes identifiées."},{"$f":"IFERROR(IF((VLOOKUP($A19,masterlist!$C$2:$AA$207,9,FALSE))=0,\"\",VLOOKUP($A19,masterlist!$C$2:$AA$207,9,FALSE)),\"\")","v":""},{"$f":"IFERROR(VLOOKUP($A19,masterlist!$C$2:$AA$207,20,FALSE),\"\")","v":"• S'assurer que tous les succès du programme d'élimination de la rage sont consignés dans des rapports détaillés ;\n• Partager tous les rapports avec les parties prenantes du plaidoyer et demander un accusé de réception."},{"$f":"IFERROR(VLOOKUP($A19,masterlist!$C$2:$AA$207,21,FALSE),\"\")","v":"All smale-scale successes have been identified and promoted using the national advocacy plan and resources"},{"$f":"IFERROR(VLOOKUP($A19,masterlist!$C$2:$AA$207,22,FALSE),\"\")","v":"Groupe multi-sectoriel"},{"$f":"IFERROR(IF($B$7=2,(VLOOKUP($A19,masterlist!$C$2:$AA$207,23,FALSE)-11),IF($B$7=4,(VLOOKUP($A19,masterlist!$C$2:$AA$207,23,FALSE)-9),IF($B$7=7,(VLOOKUP($A19,masterlist!$C$2:$AA$207,23,FALSE)-6),IF($B$7=10,(VLOOKUP($A19,masterlist!$C$2:$AA$207,23,FALSE)-3),(VLOOKUP($A19,masterlist!$C$2:$AA$207,23,FALSE)))))),\"\")","v":4},{"$f":"IFERROR(VLOOKUP($A19,masterlist!$C$2:$AA$207,24,FALSE),\"\")","v":"• Rapports régulièrement mis à jour et distribués faisant état des succès du programme d'élimination de la rage.\n• Enregistrement des rapports partagés avec les parties prenantes du plaidoyer et confirmation de leur bonne réception."}]
[{"$f":"IF(ROWS($A$13:A20)<=(SUMPRODUCT((masterlist!B:B=\"IEC\")*(masterlist!J:J=0))),INDEX(masterlist!$C$2:$C$207,SMALL(IF(masterlist!$B$2:$B$207=\"IEC\",IF(masterlist!$F$2:$F$207>0,IF(masterlist!$J$2:$J$207=0,ROW(masterlist!$B$2:$B$207)-ROW(masterlist!$B$2)+1))),ROWS($A$13:A20))),\"\")","v":"IEC-Pla-2-16"},{"$f":"IFERROR(VLOOKUP($A20,masterlist!$C$2:$AA$207,3,FALSE),\"\")","v":2},{"$f":"IFERROR(VLOOKUP($A20,masterlist!$C$2:$AA$207,2,FALSE),\"\")","v":"Plaidoyer"},{"$f":"IFERROR(VLOOKUP($A20,masterlist!$C$2:$AD$207,28,FALSE),\"\")","v":"Plaider pour obtenir l'intérêt actif d'au moins une partie prenante de l'action de plaidoyer."},{"$f":"IFERROR(IF((VLOOKUP($A20,masterlist!$C$2:$AA$207,9,FALSE))=0,\"\",VLOOKUP($A20,masterlist!$C$2:$AA$207,9,FALSE)),\"\")","v":""},{"$f":"IFERROR(VLOOKUP($A20,masterlist!$C$2:$AA$207,20,FALSE),\"\")","v":"• Identifier les parties prenantes qui manifestent un vif intérêt pour les efforts d'élimination de la rage ;\n• Dialoguer directement avec les parties prenantes identifiées et leur demander de s'engager formellement en faveur de l'élimination de la rage dans le pays ;\n• Faire pression sur les parties prenantes identifiées pour qu'elles apportent un soutien programmatique supplémentaire (par exemple, soutien politique, financement, etc.)."},{"$f":"IFERROR(VLOOKUP($A20,masterlist!$C$2:$AA$207,21,FALSE),\"\")","v":"Stakeholders and funders are identified and have pledged their financial support towards the national rabies control strategy, through the use of the national advocacy plan; "},{"$f":"IFERROR(VLOOKUP($A20,masterlist!$C$2:$AA$207,22,FALSE),\"\")","v":"Groupe multi-sectoriel"},{"$f":"IFERROR(IF($B$7=2,(VLOOKUP($A20,masterlist!$C$2:$AA$207,23,FALSE)-11),IF($B$7=4,(VLOOKUP($A20,masterlist!$C$2:$AA$207,23,FALSE)-9),IF($B$7=7,(VLOOKUP($A20,masterlist!$C$2:$AA$207,23,FALSE)-6),IF($B$7=10,(VLOOKUP($A20,masterlist!$C$2:$AA$207,23,FALSE)-3),(VLOOKUP($A20,masterlist!$C$2:$AA$207,23,FALSE)))))),\"\")","v":6},{"$f":"IFERROR(VLOOKUP($A20,masterlist!$C$2:$AA$207,24,FALSE),\"\")","v":"• Documentation des engagements formels d'au moins une partie prenante du plaidoyer.\n• Registres des activités de mobilisation visant à obtenir un soutien supplémentaire pour l'élimination de la rage."}]
[{"$f":"IF(ROWS($A$13:A21)<=(SUMPRODUCT((masterlist!B:B=\"IEC\")*(masterlist!J:J=0))),INDEX(masterlist!$C$2:$C$207,SMALL(IF(masterlist!$B$2:$B$207=\"IEC\",IF(masterlist!$F$2:$F$207>0,IF(masterlist!$J$2:$J$207=0,ROW(masterlist!$B$2:$B$207)-ROW(masterlist!$B$2)+1))),ROWS($A$13:A21))),\"\")","v":"IEC-Pla-3-17"},{"$f":"IFERROR(VLOOKUP($A21,masterlist!$C$2:$AA$207,3,FALSE),\"\")","v":3},{"$f":"IFERROR(VLOOKUP($A21,masterlist!$C$2:$AA$207,2,FALSE),\"\")","v":"Plaidoyer"},{"$f":"IFERROR(VLOOKUP($A21,masterlist!$C$2:$AD$207,28,FALSE),\"\")","v":"Déclarer publiquement les zones exemptes de rage humaine transmise par les chiens."},{"$f":"IFERROR(IF((VLOOKUP($A21,masterlist!$C$2:$AA$207,9,FALSE))=0,\"\",VLOOKUP($A21,masterlist!$C$2:$AA$207,9,FALSE)),\"\")","v":""},{"$f":"IFERROR(VLOOKUP($A21,masterlist!$C$2:$AA$207,20,FALSE),\"\")","v":"• Identifier les zones exemptes de rage humaine transmise par les chiens sur la base de données de surveillance précises ;\n• Faire appel à des experts internationaux en la matière pour confirmer vos conclusions ;\n• Élaborer des messages publics déclarant les zones exemptes de rage humaine transmise par les chiens.\n• Publier et partager les messages publics déclarant l'absence de rage humaine transmise par les chiens dans les zones identifiées."},{"$f":"IFERROR(VLOOKUP($A21,masterlist!$C$2:$AA$207,21,FALSE),\"\")","v":"Public broadcasts declaring identified areas free from dog-transmitted human rabies;"},{"$f":"IFERROR(VLOOKUP($A21,masterlist!$C$2:$AA$207,22,FALSE),\"\")","v":"Ministère de l’agriculture"},{"$f":"IFERROR(IF($B$7=2,(VLOOKUP($A21,masterlist!$C$2:$AA$207,23,FALSE)-11),IF($B$7=4,(VLOOKUP($A21,masterlist!$C$2:$AA$207,23,FALSE)-9),IF($B$7=7,(VLOOKUP($A21,masterlist!$C$2:$AA$207,23,FALSE)-6),IF($B$7=10,(VLOOKUP($A21,masterlist!$C$2:$AA$207,23,FALSE)-3),(VLOOKUP($A21,masterlist!$C$2:$AA$207,23,FALSE)))))),\"\")","v":9},{"$f":"IFERROR(VLOOKUP($A21,masterlist!$C$2:$AA$207,24,FALSE),\"\")","v":"• Zones exemptes de rage identifiées et vérifiées sur la base de données de surveillance précises.\n• Matériel d'information du public et documentation de la confirmation par des experts internationaux.\n• Publication et diffusion d'annonces publiques concernant les zones exemptes de rage."}]
[{"$f":"IF(ROWS($A$13:A22)<=(SUMPRODUCT((masterlist!B:B=\"IEC\")*(masterlist!J:J=0))),INDEX(masterlist!$C$2:$C$207,SMALL(IF(masterlist!$B$2:$B$207=\"IEC\",IF(masterlist!$F$2:$F$207>0,IF(masterlist!$J$2:$J$207=0,ROW(masterlist!$B$2:$B$207)-ROW(masterlist!$B$2)+1))),ROWS($A$13:A22))),\"\")","v":"IEC-Pla-4-18"},{"$f":"IFERROR(VLOOKUP($A22,masterlist!$C$2:$AA$207,3,FALSE),\"\")","v":4},{"$f":"IFERROR(VLOOKUP($A22,masterlist!$C$2:$AA$207,2,FALSE),\"\")","v":"Plaidoyer"},{"$f":"IFERROR(VLOOKUP($A22,masterlist!$C$2:$AD$207,28,FALSE),\"\")","v":"Déclarer publiquement que l'ensemble du pays est exempt de rage humaine transmise par les chiens."},{"$f":"IFERROR(IF((VLOOKUP($A22,masterlist!$C$2:$AA$207,9,FALSE))=0,\"\",VLOOKUP($A22,masterlist!$C$2:$AA$207,9,FALSE)),\"\")","v":""},{"$f":"IFERROR(VLOOKUP($A22,masterlist!$C$2:$AA$207,20,FALSE),\"\")","v":"• En utilisant des données précises de surveillance de la rage, confirmez que le pays est exempt de rage humaine transmise par les chiens depuis 2 ans\n• Contactez l'OMS pour un examen et une reconnaissance officielle de vos résultats ;\n• Élaborez des messages publics déclarant l'absence de rage humaine transmise par les chiens.\n• Publier et partager les messages publics déclarant l'absence de rage humaine transmise par les chiens."},{"$f":"IFERROR(VLOOKUP($A22,masterlist!$C$2:$AA$207,21,FALSE),\"\")","v":"A public declaration informing the entire country that the country is free from dog-transmitted human rabies, backed by adequate surveillance"},{"$f":"IFERROR(VLOOKUP($A22,masterlist!$C$2:$AA$207,22,FALSE),\"\")","v":"Ministère de la santé"},{"$f":"IFERROR(IF($B$7=2,(VLOOKUP($A22,masterlist!$C$2:$AA$207,23,FALSE)-11),IF($B$7=4,(VLOOKUP($A22,masterlist!$C$2:$AA$207,23,FALSE)-9),IF($B$7=7,(VLOOKUP($A22,masterlist!$C$2:$AA$207,23,FALSE)-6),IF($B$7=10,(VLOOKUP($A22,masterlist!$C$2:$AA$207,23,FALSE)-3),(VLOOKUP($A22,masterlist!$C$2:$AA$207,23,FALSE)))))),\"\")","v":11},{"$f":"IFERROR(VLOOKUP($A22,masterlist!$C$2:$AA$207,24,FALSE),\"\")","v":"• Rapport de surveillance confirmant deux années d'absence de rage humaine transmise par les chiens.\n• Résultats examinés et approuvés par l'OMS.\n• Matériel de communication publique annonçant l'absence de rage humaine transmise par les chiens."}]
[{"$f":"IF(ROWS($A$13:A23)<=(SUMPRODUCT((masterlist!B:B=\"IEC\")*(masterlist!J:J=0))),INDEX(masterlist!$C$2:$C$207,SMALL(IF(masterlist!$B$2:$B$207=\"IEC\",IF(masterlist!$F$2:$F$207>0,IF(masterlist!$J$2:$J$207=0,ROW(masterlist!$B$2:$B$207)-ROW(masterlist!$B$2)+1))),ROWS($A$13:A23))),\"\")","v":"IEC-Pla-5-19"},{"$f":"IFERROR(VLOOKUP($A23,masterlist!$C$2:$AA$207,3,FALSE),\"\")","v":5},{"$f":"IFERROR(VLOOKUP($A23,masterlist!$C$2:$AA$207,2,FALSE),\"\")","v":"Plaidoyer"},{"$f":"IFERROR(VLOOKUP($A23,masterlist!$C$2:$AD$207,28,FALSE),\"\")","v":"Déclarer publiquement que l'ensemble du pays est débarrassé de la rage canine transmise par les chiens."},{"$f":"IFERROR(IF((VLOOKUP($A23,masterlist!$C$2:$AA$207,9,FALSE))=0,\"\",VLOOKUP($A23,masterlist!$C$2:$AA$207,9,FALSE)),\"\")","v":""},{"$f":"IFERROR(VLOOKUP($A23,masterlist!$C$2:$AA$207,20,FALSE),\"\")","v":"• En utilisant des données précises de surveillance de la rage, confirmer que le pays est indemne de rage transmise par les chiens depuis 2 ans ;\n• Collaborer avec l'OMSA et lancer le processus d'auto-déclaration de votre pays comme étant indemne de rage transmise par les chiens ; \n• S'assurer que votre pays répond aux critères et finalise le processus pour être reconnu comme indemne de rage transmise par les chiens ;\n• Élaborer des messages publics déclarant le pays indemne de rage transmise par les chiens.\n• Publier et partager les messages publics déclarant l'absence de rage transmise par les chiens."},{"$f":"IFERROR(VLOOKUP($A23,masterlist!$C$2:$AA$207,21,FALSE),\"\")","v":"A public declaration informing the entire country that the country is free from dog-rabies, backed by adequate surveillance"},{"$f":"IFERROR(VLOOKUP($A23,masterlist!$C$2:$AA$207,22,FALSE),\"\")","v":"Ministère de l’agriculture"},{"$f":"IFERROR(IF($B$7=2,(VLOOKUP($A23,masterlist!$C$2:$AA$207,23,FALSE)-11),IF($B$7=4,(VLOOKUP($A23,masterlist!$C$2:$AA$207,23,FALSE)-9),IF($B$7=7,(VLOOKUP($A23,masterlist!$C$2:$AA$207,23,FALSE)-6),IF($B$7=10,(VLOOKUP($A23,masterlist!$C$2:$AA$207,23,FALSE)-3),(VLOOKUP($A23,masterlist!$C$2:$AA$207,23,FALSE)))))),\"\")","v":13},{"$f":"IFERROR(VLOOKUP($A23,masterlist!$C$2:$AA$207,24,FALSE),\"\")","v":"• Rapport de surveillance confirmant l'absence de rage transmise par les chiens depuis deux ans.\n• Conformité documentée avec les critères de l'OMSA pour l'obtention du statut de zone exempte de rage.\n• Publication et distribution d'annonces publiques sur l'absence de rage transmise par les chiens."}]
[{"$f":"IF(ROWS($A$13:A24)<=(SUMPRODUCT((masterlist!B:B=\"IEC\")*(masterlist!J:J=0))),INDEX(masterlist!$C$2:$C$207,SMALL(IF(masterlist!$B$2:$B$207=\"IEC\",IF(masterlist!$F$2:$F$207>0,IF(masterlist!$J$2:$J$207=0,ROW(masterlist!$B$2:$B$207)-ROW(masterlist!$B$2)+1))),ROWS($A$13:A24))),\"\")","v":""},{"$f":"IFERROR(VLOOKUP($A24,masterlist!$C$2:$AA$207,3,FALSE),\"\")","v":""},{"$f":"IFERROR(VLOOKUP($A24,masterlist!$C$2:$AA$207,2,FALSE),\"\")","v":""},{"$f":"IFERROR(VLOOKUP($A24,masterlist!$C$2:$AD$207,28,FALSE),\"\")","v":""},{"$f":"IFERROR(IF((VLOOKUP($A24,masterlist!$C$2:$AA$207,9,FALSE))=0,\"\",VLOOKUP($A24,masterlist!$C$2:$AA$207,9,FALSE)),\"\")","v":""},{"$f":"IFERROR(VLOOKUP($A24,masterlist!$C$2:$AA$207,20,FALSE),\"\")","v":""},{"$f":"IFERROR(VLOOKUP($A24,masterlist!$C$2:$AA$207,21,FALSE),\"\")","v":""},{"$f":"IFERROR(VLOOKUP($A24,masterlist!$C$2:$AA$207,22,FALSE),\"\")","v":""},{"$f":"IFERROR(IF($B$7=2,(VLOOKUP($A24,masterlist!$C$2:$AA$207,23,FALSE)-11),IF($B$7=4,(VLOOKUP($A24,masterlist!$C$2:$AA$207,23,FALSE)-9),IF($B$7=7,(VLOOKUP($A24,masterlist!$C$2:$AA$207,23,FALSE)-6),IF($B$7=10,(VLOOKUP($A24,masterlist!$C$2:$AA$207,23,FALSE)-3),(VLOOKUP($A24,masterlist!$C$2:$AA$207,23,FALSE)))))),\"\")","v":""},{"$f":"IFERROR(VLOOKUP($A24,masterlist!$C$2:$AA$207,24,FALSE),\"\")","v":""}]
[{"$f":"IF(ROWS($A$13:A25)<=(SUMPRODUCT((masterlist!B:B=\"IEC\")*(masterlist!J:J=0))),INDEX(masterlist!$C$2:$C$207,SMALL(IF(masterlist!$B$2:$B$207=\"IEC\",IF(masterlist!$F$2:$F$207>0,IF(masterlist!$J$2:$J$207=0,ROW(masterlist!$B$2:$B$207)-ROW(masterlist!$B$2)+1))),ROWS($A$13:A25))),\"\")","v":""},{"$f":"IFERROR(VLOOKUP($A25,masterlist!$C$2:$AA$207,3,FALSE),\"\")","v":""},{"$f":"IFERROR(VLOOKUP($A25,masterlist!$C$2:$AA$207,2,FALSE),\"\")","v":""},{"$f":"IFERROR(VLOOKUP($A25,masterlist!$C$2:$AD$207,28,FALSE),\"\")","v":""},{"$f":"IFERROR(IF((VLOOKUP($A25,masterlist!$C$2:$AA$207,9,FALSE))=0,\"\",VLOOKUP($A25,masterlist!$C$2:$AA$207,9,FALSE)),\"\")","v":""},{"$f":"IFERROR(VLOOKUP($A25,masterlist!$C$2:$AA$207,20,FALSE),\"\")","v":""},{"$f":"IFERROR(VLOOKUP($A25,masterlist!$C$2:$AA$207,21,FALSE),\"\")","v":""},{"$f":"IFERROR(VLOOKUP($A25,masterlist!$C$2:$AA$207,22,FALSE),\"\")","v":""},{"$f":"IFERROR(IF($B$7=2,(VLOOKUP($A25,masterlist!$C$2:$AA$207,23,FALSE)-11),IF($B$7=4,(VLOOKUP($A25,masterlist!$C$2:$AA$207,23,FALSE)-9),IF($B$7=7,(VLOOKUP($A25,masterlist!$C$2:$AA$207,23,FALSE)-6),IF($B$7=10,(VLOOKUP($A25,masterlist!$C$2:$AA$207,23,FALSE)-3),(VLOOKUP($A25,masterlist!$C$2:$AA$207,23,FALSE)))))),\"\")","v":""},{"$f":"IFERROR(VLOOKUP($A25,masterlist!$C$2:$AA$207,24,FALSE),\"\")","v":""}]
[{"$f":"IF(ROWS($A$13:A26)<=(SUMPRODUCT((masterlist!B:B=\"IEC\")*(masterlist!J:J=0))),INDEX(masterlist!$C$2:$C$207,SMALL(IF(masterlist!$B$2:$B$207=\"IEC\",IF(masterlist!$F$2:$F$207>0,IF(masterlist!$J$2:$J$207=0,ROW(masterlist!$B$2:$B$207)-ROW(masterlist!$B$2)+1))),ROWS($A$13:A26))),\"\")","v":""},{"$f":"IFERROR(VLOOKUP($A26,masterlist!$C$2:$AA$207,3,FALSE),\"\")","v":""},{"$f":"IFERROR(VLOOKUP($A26,masterlist!$C$2:$AA$207,2,FALSE),\"\")","v":""},{"$f":"IFERROR(VLOOKUP($A26,masterlist!$C$2:$AD$207,28,FALSE),\"\")","v":""},{"$f":"IFERROR(IF((VLOOKUP($A26,masterlist!$C$2:$AA$207,9,FALSE))=0,\"\",VLOOKUP($A26,masterlist!$C$2:$AA$207,9,FALSE)),\"\")","v":""},{"$f":"IFERROR(VLOOKUP($A26,masterlist!$C$2:$AA$207,20,FALSE),\"\")","v":""},{"$f":"IFERROR(VLOOKUP($A26,masterlist!$C$2:$AA$207,21,FALSE),\"\")","v":""},{"$f":"IFERROR(VLOOKUP($A26,masterlist!$C$2:$AA$207,22,FALSE),\"\")","v":""},{"$f":"IFERROR(IF($B$7=2,(VLOOKUP($A26,masterlist!$C$2:$AA$207,23,FALSE)-11),IF($B$7=4,(VLOOKUP($A26,masterlist!$C$2:$AA$207,23,FALSE)-9),IF($B$7=7,(VLOOKUP($A26,masterlist!$C$2:$AA$207,23,FALSE)-6),IF($B$7=10,(VLOOKUP($A26,masterlist!$C$2:$AA$207,23,FALSE)-3),(VLOOKUP($A26,masterlist!$C$2:$AA$207,23,FALSE)))))),\"\")","v":""},{"$f":"IFERROR(VLOOKUP($A26,masterlist!$C$2:$AA$207,24,FALSE),\"\")","v":""}]
[{"$f":"IF(ROWS($A$13:A27)<=(SUMPRODUCT((masterlist!B:B=\"IEC\")*(masterlist!J:J=0))),INDEX(masterlist!$C$2:$C$207,SMALL(IF(masterlist!$B$2:$B$207=\"IEC\",IF(masterlist!$F$2:$F$207>0,IF(masterlist!$J$2:$J$207=0,ROW(masterlist!$B$2:$B$207)-ROW(masterlist!$B$2)+1))),ROWS($A$13:A27))),\"\")","v":""},{"$f":"IFERROR(VLOOKUP($A27,masterlist!$C$2:$AA$207,3,FALSE),\"\")","v":""},{"$f":"IFERROR(VLOOKUP($A27,masterlist!$C$2:$AA$207,2,FALSE),\"\")","v":""},{"$f":"IFERROR(VLOOKUP($A27,masterlist!$C$2:$AD$207,28,FALSE),\"\")","v":""},{"$f":"IFERROR(IF((VLOOKUP($A27,masterlist!$C$2:$AA$207,9,FALSE))=0,\"\",VLOOKUP($A27,masterlist!$C$2:$AA$207,9,FALSE)),\"\")","v":""},{"$f":"IFERROR(VLOOKUP($A27,masterlist!$C$2:$AA$207,20,FALSE),\"\")","v":""},{"$f":"IFERROR(VLOOKUP($A27,masterlist!$C$2:$AA$207,21,FALSE),\"\")","v":""},{"$f":"IFERROR(VLOOKUP($A27,masterlist!$C$2:$AA$207,22,FALSE),\"\")","v":""},{"$f":"IFERROR(IF($B$7=2,(VLOOKUP($A27,masterlist!$C$2:$AA$207,23,FALSE)-11),IF($B$7=4,(VLOOKUP($A27,masterlist!$C$2:$AA$207,23,FALSE)-9),IF($B$7=7,(VLOOKUP($A27,masterlist!$C$2:$AA$207,23,FALSE)-6),IF($B$7=10,(VLOOKUP($A27,masterlist!$C$2:$AA$207,23,FALSE)-3),(VLOOKUP($A27,masterlist!$C$2:$AA$207,23,FALSE)))))),\"\")","v":""},{"$f":"IFERROR(VLOOKUP($A27,masterlist!$C$2:$AA$207,24,FALSE),\"\")","v":""}]
[{"$f":"IF(ROWS($A$13:A28)<=(SUMPRODUCT((masterlist!B:B=\"IEC\")*(masterlist!J:J=0))),INDEX(masterlist!$C$2:$C$207,SMALL(IF(masterlist!$B$2:$B$207=\"IEC\",IF(masterlist!$F$2:$F$207>0,IF(masterlist!$J$2:$J$207=0,ROW(masterlist!$B$2:$B$207)-ROW(masterlist!$B$2)+1))),ROWS($A$13:A28))),\"\")","v":""},{"$f":"IFERROR(VLOOKUP($A28,masterlist!$C$2:$AA$207,3,FALSE),\"\")","v":""},{"$f":"IFERROR(VLOOKUP($A28,masterlist!$C$2:$AA$207,2,FALSE),\"\")","v":""},{"$f":"IFERROR(VLOOKUP($A28,masterlist!$C$2:$AD$207,28,FALSE),\"\")","v":""},{"$f":"IFERROR(IF((VLOOKUP($A28,masterlist!$C$2:$AA$207,9,FALSE))=0,\"\",VLOOKUP($A28,masterlist!$C$2:$AA$207,9,FALSE)),\"\")","v":""},{"$f":"IFERROR(VLOOKUP($A28,masterlist!$C$2:$AA$207,20,FALSE),\"\")","v":""},{"$f":"IFERROR(VLOOKUP($A28,masterlist!$C$2:$AA$207,21,FALSE),\"\")","v":""},{"$f":"IFERROR(VLOOKUP($A28,masterlist!$C$2:$AA$207,22,FALSE),\"\")","v":""},{"$f":"IFERROR(IF($B$7=2,(VLOOKUP($A28,masterlist!$C$2:$AA$207,23,FALSE)-11),IF($B$7=4,(VLOOKUP($A28,masterlist!$C$2:$AA$207,23,FALSE)-9),IF($B$7=7,(VLOOKUP($A28,masterlist!$C$2:$AA$207,23,FALSE)-6),IF($B$7=10,(VLOOKUP($A28,masterlist!$C$2:$AA$207,23,FALSE)-3),(VLOOKUP($A28,masterlist!$C$2:$AA$207,23,FALSE)))))),\"\")","v":""},{"$f":"IFERROR(VLOOKUP($A28,masterlist!$C$2:$AA$207,24,FALSE),\"\")","v":""}]
[{"$f":"IF(ROWS($A$13:A29)<=(SUMPRODUCT((masterlist!B:B=\"IEC\")*(masterlist!J:J=0))),INDEX(masterlist!$C$2:$C$207,SMALL(IF(masterlist!$B$2:$B$207=\"IEC\",IF(masterlist!$F$2:$F$207>0,IF(masterlist!$J$2:$J$207=0,ROW(masterlist!$B$2:$B$207)-ROW(masterlist!$B$2)+1))),ROWS($A$13:A29))),\"\")","v":""},{"$f":"IFERROR(VLOOKUP($A29,masterlist!$C$2:$AA$207,3,FALSE),\"\")","v":""},{"$f":"IFERROR(VLOOKUP($A29,masterlist!$C$2:$AA$207,2,FALSE),\"\")","v":""},{"$f":"IFERROR(VLOOKUP($A29,masterlist!$C$2:$AD$207,28,FALSE),\"\")","v":""},{"$f":"IFERROR(IF((VLOOKUP($A29,masterlist!$C$2:$AA$207,9,FALSE))=0,\"\",VLOOKUP($A29,masterlist!$C$2:$AA$207,9,FALSE)),\"\")","v":""},{"$f":"IFERROR(VLOOKUP($A29,masterlist!$C$2:$AA$207,20,FALSE),\"\")","v":""},{"$f":"IFERROR(VLOOKUP($A29,masterlist!$C$2:$AA$207,21,FALSE),\"\")","v":""},{"$f":"IFERROR(VLOOKUP($A29,masterlist!$C$2:$AA$207,22,FALSE),\"\")","v":""},{"$f":"IFERROR(IF($B$7=2,(VLOOKUP($A29,masterlist!$C$2:$AA$207,23,FALSE)-11),IF($B$7=4,(VLOOKUP($A29,masterlist!$C$2:$AA$207,23,FALSE)-9),IF($B$7=7,(VLOOKUP($A29,masterlist!$C$2:$AA$207,23,FALSE)-6),IF($B$7=10,(VLOOKUP($A29,masterlist!$C$2:$AA$207,23,FALSE)-3),(VLOOKUP($A29,masterlist!$C$2:$AA$207,23,FALSE)))))),\"\")","v":""},{"$f":"IFERROR(VLOOKUP($A29,masterlist!$C$2:$AA$207,24,FALSE),\"\")","v":""}]
[{"$f":"IF(ROWS($A$13:A30)<=(SUMPRODUCT((masterlist!B:B=\"IEC\")*(masterlist!J:J=0))),INDEX(masterlist!$C$2:$C$207,SMALL(IF(masterlist!$B$2:$B$207=\"IEC\",IF(masterlist!$F$2:$F$207>0,IF(masterlist!$J$2:$J$207=0,ROW(masterlist!$B$2:$B$207)-ROW(masterlist!$B$2)+1))),ROWS($A$13:A30))),\"\")","v":""},{"$f":"IFERROR(VLOOKUP($A30,masterlist!$C$2:$AA$207,3,FALSE),\"\")","v":""},{"$f":"IFERROR(VLOOKUP($A30,masterlist!$C$2:$AA$207,2,FALSE),\"\")","v":""},{"$f":"IFERROR(VLOOKUP($A30,masterlist!$C$2:$AD$207,28,FALSE),\"\")","v":""},{"$f":"IFERROR(IF((VLOOKUP($A30,masterlist!$C$2:$AA$207,9,FALSE))=0,\"\",VLOOKUP($A30,masterlist!$C$2:$AA$207,9,FALSE)),\"\")","v":""},{"$f":"IFERROR(VLOOKUP($A30,masterlist!$C$2:$AA$207,20,FALSE),\"\")","v":""},{"$f":"IFERROR(VLOOKUP($A30,masterlist!$C$2:$AA$207,21,FALSE),\"\")","v":""},{"$f":"IFERROR(VLOOKUP($A30,masterlist!$C$2:$AA$207,22,FALSE),\"\")","v":""},{"$f":"IFERROR(IF($B$7=2,(VLOOKUP($A30,masterlist!$C$2:$AA$207,23,FALSE)-11),IF($B$7=4,(VLOOKUP($A30,masterlist!$C$2:$AA$207,23,FALSE)-9),IF($B$7=7,(VLOOKUP($A30,masterlist!$C$2:$AA$207,23,FALSE)-6),IF($B$7=10,(VLOOKUP($A30,masterlist!$C$2:$AA$207,23,FALSE)-3),(VLOOKUP($A30,masterlist!$C$2:$AA$207,23,FALSE)))))),\"\")","v":""},{"$f":"IFERROR(VLOOKUP($A30,masterlist!$C$2:$AA$207,24,FALSE),\"\")","v":""}]
[{"$f":"IF(ROWS($A$13:A31)<=(SUMPRODUCT((masterlist!B:B=\"IEC\")*(masterlist!J:J=0))),INDEX(masterlist!$C$2:$C$207,SMALL(IF(masterlist!$B$2:$B$207=\"IEC\",IF(masterlist!$F$2:$F$207>0,IF(masterlist!$J$2:$J$207=0,ROW(masterlist!$B$2:$B$207)-ROW(masterlist!$B$2)+1))),ROWS($A$13:A31))),\"\")","v":""},{"$f":"IFERROR(VLOOKUP($A31,masterlist!$C$2:$AA$207,3,FALSE),\"\")","v":""},{"$f":"IFERROR(VLOOKUP($A31,masterlist!$C$2:$AA$207,2,FALSE),\"\")","v":""},{"$f":"IFERROR(VLOOKUP($A31,masterlist!$C$2:$AD$207,28,FALSE),\"\")","v":""},{"$f":"IFERROR(IF((VLOOKUP($A31,masterlist!$C$2:$AA$207,9,FALSE))=0,\"\",VLOOKUP($A31,masterlist!$C$2:$AA$207,9,FALSE)),\"\")","v":""},{"$f":"IFERROR(VLOOKUP($A31,masterlist!$C$2:$AA$207,20,FALSE),\"\")","v":""},{"$f":"IFERROR(VLOOKUP($A31,masterlist!$C$2:$AA$207,21,FALSE),\"\")","v":""},{"$f":"IFERROR(VLOOKUP($A31,masterlist!$C$2:$AA$207,22,FALSE),\"\")","v":""},{"$f":"IFERROR(IF($B$7=2,(VLOOKUP($A31,masterlist!$C$2:$AA$207,23,FALSE)-11),IF($B$7=4,(VLOOKUP($A31,masterlist!$C$2:$AA$207,23,FALSE)-9),IF($B$7=7,(VLOOKUP($A31,masterlist!$C$2:$AA$207,23,FALSE)-6),IF($B$7=10,(VLOOKUP($A31,masterlist!$C$2:$AA$207,23,FALSE)-3),(VLOOKUP($A31,masterlist!$C$2:$AA$207,23,FALSE)))))),\"\")","v":""},{"$f":"IFERROR(VLOOKUP($A31,masterlist!$C$2:$AA$207,24,FALSE),\"\")","v":""}]
[{"$f":"IF(ROWS($A$13:A32)<=(SUMPRODUCT((masterlist!B:B=\"IEC\")*(masterlist!J:J=0))),INDEX(masterlist!$C$2:$C$207,SMALL(IF(masterlist!$B$2:$B$207=\"IEC\",IF(masterlist!$F$2:$F$207>0,IF(masterlist!$J$2:$J$207=0,ROW(masterlist!$B$2:$B$207)-ROW(masterlist!$B$2)+1))),ROWS($A$13:A32))),\"\")","v":""},{"$f":"IFERROR(VLOOKUP($A32,masterlist!$C$2:$AA$207,3,FALSE),\"\")","v":""},{"$f":"IFERROR(VLOOKUP($A32,masterlist!$C$2:$AA$207,2,FALSE),\"\")","v":""},{"$f":"IFERROR(VLOOKUP($A32,masterlist!$C$2:$AD$207,28,FALSE),\"\")","v":""},{"$f":"IFERROR(IF((VLOOKUP($A32,masterlist!$C$2:$AA$207,9,FALSE))=0,\"\",VLOOKUP($A32,masterlist!$C$2:$AA$207,9,FALSE)),\"\")","v":""},{"$f":"IFERROR(VLOOKUP($A32,masterlist!$C$2:$AA$207,20,FALSE),\"\")","v":""},{"$f":"IFERROR(VLOOKUP($A32,masterlist!$C$2:$AA$207,21,FALSE),\"\")","v":""},{"$f":"IFERROR(VLOOKUP($A32,masterlist!$C$2:$AA$207,22,FALSE),\"\")","v":""},{"$f":"IFERROR(IF($B$7=2,(VLOOKUP($A32,masterlist!$C$2:$AA$207,23,FALSE)-11),IF($B$7=4,(VLOOKUP($A32,masterlist!$C$2:$AA$207,23,FALSE)-9),IF($B$7=7,(VLOOKUP($A32,masterlist!$C$2:$AA$207,23,FALSE)-6),IF($B$7=10,(VLOOKUP($A32,masterlist!$C$2:$AA$207,23,FALSE)-3),(VLOOKUP($A32,masterlist!$C$2:$AA$207,23,FALSE)))))),\"\")","v":""},{"$f":"IFERROR(VLOOKUP($A32,masterlist!$C$2:$AA$207,24,FALSE),\"\")","v":""}]
[{"$f":"IF(ROWS($A$13:A33)<=(SUMPRODUCT((masterlist!B:B=\"IEC\")*(masterlist!J:J=0))),INDEX(masterlist!$C$2:$C$207,SMALL(IF(masterlist!$B$2:$B$207=\"IEC\",IF(masterlist!$F$2:$F$207>0,IF(masterlist!$J$2:$J$207=0,ROW(masterlist!$B$2:$B$207)-ROW(masterlist!$B$2)+1))),ROWS($A$13:A33))),\"\")","v":""},{"$f":"IFERROR(VLOOKUP($A33,masterlist!$C$2:$AA$207,3,FALSE),\"\")","v":""},{"$f":"IFERROR(VLOOKUP($A33,masterlist!$C$2:$AA$207,2,FALSE),\"\")","v":""},{"$f":"IFERROR(VLOOKUP($A33,masterlist!$C$2:$AD$207,28,FALSE),\"\")","v":""},{"$f":"IFERROR(IF((VLOOKUP($A33,masterlist!$C$2:$AA$207,9,FALSE))=0,\"\",VLOOKUP($A33,masterlist!$C$2:$AA$207,9,FALSE)),\"\")","v":""},{"$f":"IFERROR(VLOOKUP($A33,masterlist!$C$2:$AA$207,20,FALSE),\"\")","v":""},{"$f":"IFERROR(VLOOKUP($A33,masterlist!$C$2:$AA$207,21,FALSE),\"\")","v":""},{"$f":"IFERROR(VLOOKUP($A33,masterlist!$C$2:$AA$207,22,FALSE),\"\")","v":""},{"$f":"IFERROR(IF($B$7=2,(VLOOKUP($A33,masterlist!$C$2:$AA$207,23,FALSE)-11),IF($B$7=4,(VLOOKUP($A33,masterlist!$C$2:$AA$207,23,FALSE)-9),IF($B$7=7,(VLOOKUP($A33,masterlist!$C$2:$AA$207,23,FALSE)-6),IF($B$7=10,(VLOOKUP($A33,masterlist!$C$2:$AA$207,23,FALSE)-3),(VLOOKUP($A33,masterlist!$C$2:$AA$207,23,FALSE)))))),\"\")","v":""},{"$f":"IFERROR(VLOOKUP($A33,masterlist!$C$2:$AA$207,24,FALSE),\"\")","v":""}]
[{"$f":"IF(ROWS($A$13:A34)<=(SUMPRODUCT((masterlist!B:B=\"IEC\")*(masterlist!J:J=0))),INDEX(masterlist!$C$2:$C$207,SMALL(IF(masterlist!$B$2:$B$207=\"IEC\",IF(masterlist!$F$2:$F$207>0,IF(masterlist!$J$2:$J$207=0,ROW(masterlist!$B$2:$B$207)-ROW(masterlist!$B$2)+1))),ROWS($A$13:A34))),\"\")","v":""},{"$f":"IFERROR(VLOOKUP($A34,masterlist!$C$2:$AA$207,3,FALSE),\"\")","v":""},{"$f":"IFERROR(VLOOKUP($A34,masterlist!$C$2:$AA$207,2,FALSE),\"\")","v":""},{"$f":"IFERROR(VLOOKUP($A34,masterlist!$C$2:$AD$207,28,FALSE),\"\")","v":""},{"$f":"IFERROR(IF((VLOOKUP($A34,masterlist!$C$2:$AA$207,9,FALSE))=0,\"\",VLOOKUP($A34,masterlist!$C$2:$AA$207,9,FALSE)),\"\")","v":""},{"$f":"IFERROR(VLOOKUP($A34,masterlist!$C$2:$AA$207,20,FALSE),\"\")","v":""},{"$f":"IFERROR(VLOOKUP($A34,masterlist!$C$2:$AA$207,21,FALSE),\"\")","v":""},{"$f":"IFERROR(VLOOKUP($A34,masterlist!$C$2:$AA$207,22,FALSE),\"\")","v":""},{"$f":"IFERROR(IF($B$7=2,(VLOOKUP($A34,masterlist!$C$2:$AA$207,23,FALSE)-11),IF($B$7=4,(VLOOKUP($A34,masterlist!$C$2:$AA$207,23,FALSE)-9),IF($B$7=7,(VLOOKUP($A34,masterlist!$C$2:$AA$207,23,FALSE)-6),IF($B$7=10,(VLOOKUP($A34,masterlist!$C$2:$AA$207,23,FALSE)-3),(VLOOKUP($A34,masterlist!$C$2:$AA$207,23,FALSE)))))),\"\")","v":""},{"$f":"IFERROR(VLOOKUP($A34,masterlist!$C$2:$AA$207,24,FALSE),\"\")","v":""}]
[{"$f":"IF(ROWS($A$13:A35)<=(SUMPRODUCT((masterlist!B:B=\"IEC\")*(masterlist!J:J=0))),INDEX(masterlist!$C$2:$C$207,SMALL(IF(masterlist!$B$2:$B$207=\"IEC\",IF(masterlist!$F$2:$F$207>0,IF(masterlist!$J$2:$J$207=0,ROW(masterlist!$B$2:$B$207)-ROW(masterlist!$B$2)+1))),ROWS($A$13:A35))),\"\")","v":""},{"$f":"IFERROR(VLOOKUP($A35,masterlist!$C$2:$AA$207,3,FALSE),\"\")","v":""},{"$f":"IFERROR(VLOOKUP($A35,masterlist!$C$2:$AA$207,2,FALSE),\"\")","v":""},{"$f":"IFERROR(VLOOKUP($A35,masterlist!$C$2:$AD$207,28,FALSE),\"\")","v":""},{"$f":"IFERROR(IF((VLOOKUP($A35,masterlist!$C$2:$AA$207,9,FALSE))=0,\"\",VLOOKUP($A35,masterlist!$C$2:$AA$207,9,FALSE)),\"\")","v":""},{"$f":"IFERROR(VLOOKUP($A35,masterlist!$C$2:$AA$207,20,FALSE),\"\")","v":""},{"$f":"IFERROR(VLOOKUP($A35,masterlist!$C$2:$AA$207,21,FALSE),\"\")","v":""},{"$f":"IFERROR(VLOOKUP($A35,masterlist!$C$2:$AA$207,22,FALSE),\"\")","v":""},{"$f":"IFERROR(IF($B$7=2,(VLOOKUP($A35,masterlist!$C$2:$AA$207,23,FALSE)-11),IF($B$7=4,(VLOOKUP($A35,masterlist!$C$2:$AA$207,23,FALSE)-9),IF($B$7=7,(VLOOKUP($A35,masterlist!$C$2:$AA$207,23,FALSE)-6),IF($B$7=10,(VLOOKUP($A35,masterlist!$C$2:$AA$207,23,FALSE)-3),(VLOOKUP($A35,masterlist!$C$2:$AA$207,23,FALSE)))))),\"\")","v":""},{"$f":"IFERROR(VLOOKUP($A35,masterlist!$C$2:$AA$207,24,FALSE),\"\")","v":""}]
[{"$f":"IF(ROWS($A$13:A36)<=(SUMPRODUCT((masterlist!B:B=\"IEC\")*(masterlist!J:J=0))),INDEX(masterlist!$C$2:$C$207,SMALL(IF(masterlist!$B$2:$B$207=\"IEC\",IF(masterlist!$F$2:$F$207>0,IF(masterlist!$J$2:$J$207=0,ROW(masterlist!$B$2:$B$207)-ROW(masterlist!$B$2)+1))),ROWS($A$13:A36))),\"\")","v":""},{"$f":"IFERROR(VLOOKUP($A36,masterlist!$C$2:$AA$207,3,FALSE),\"\")","v":""},{"$f":"IFERROR(VLOOKUP($A36,masterlist!$C$2:$AA$207,2,FALSE),\"\")","v":""},{"$f":"IFERROR(VLOOKUP($A36,masterlist!$C$2:$AD$207,28,FALSE),\"\")","v":""},{"$f":"IFERROR(IF((VLOOKUP($A36,masterlist!$C$2:$AA$207,9,FALSE))=0,\"\",VLOOKUP($A36,masterlist!$C$2:$AA$207,9,FALSE)),\"\")","v":""},{"$f":"IFERROR(VLOOKUP($A36,masterlist!$C$2:$AA$207,20,FALSE),\"\")","v":""},{"$f":"IFERROR(VLOOKUP($A36,masterlist!$C$2:$AA$207,21,FALSE),\"\")","v":""},{"$f":"IFERROR(VLOOKUP($A36,masterlist!$C$2:$AA$207,22,FALSE),\"\")","v":""},{"$f":"IFERROR(IF($B$7=2,(VLOOKUP($A36,masterlist!$C$2:$AA$207,23,FALSE)-11),IF($B$7=4,(VLOOKUP($A36,masterlist!$C$2:$AA$207,23,FALSE)-9),IF($B$7=7,(VLOOKUP($A36,masterlist!$C$2:$AA$207,23,FALSE)-6),IF($B$7=10,(VLOOKUP($A36,masterlist!$C$2:$AA$207,23,FALSE)-3),(VLOOKUP($A36,masterlist!$C$2:$AA$207,23,FALSE)))))),\"\")","v":""},{"$f":"IFERROR(VLOOKUP($A36,masterlist!$C$2:$AA$207,24,FALSE),\"\")","v":""}]
[{"$f":"IF(ROWS($A$13:A37)<=(SUMPRODUCT((masterlist!B:B=\"IEC\")*(masterlist!J:J=0))),INDEX(masterlist!$C$2:$C$207,SMALL(IF(masterlist!$B$2:$B$207=\"IEC\",IF(masterlist!$F$2:$F$207>0,IF(masterlist!$J$2:$J$207=0,ROW(masterlist!$B$2:$B$207)-ROW(masterlist!$B$2)+1))),ROWS($A$13:A37))),\"\")","v":""},{"$f":"IFERROR(VLOOKUP($A37,masterlist!$C$2:$AA$207,3,FALSE),\"\")","v":""},{"$f":"IFERROR(VLOOKUP($A37,masterlist!$C$2:$AA$207,2,FALSE),\"\")","v":""},{"$f":"IFERROR(VLOOKUP($A37,masterlist!$C$2:$AD$207,28,FALSE),\"\")","v":""},{"$f":"IFERROR(IF((VLOOKUP($A37,masterlist!$C$2:$AA$207,9,FALSE))=0,\"\",VLOOKUP($A37,masterlist!$C$2:$AA$207,9,FALSE)),\"\")","v":""},{"$f":"IFERROR(VLOOKUP($A37,masterlist!$C$2:$AA$207,20,FALSE),\"\")","v":""},{"$f":"IFERROR(VLOOKUP($A37,masterlist!$C$2:$AA$207,21,FALSE),\"\")","v":""},{"$f":"IFERROR(VLOOKUP($A37,masterlist!$C$2:$AA$207,22,FALSE),\"\")","v":""},{"$f":"IFERROR(IF($B$7=2,(VLOOKUP($A37,masterlist!$C$2:$AA$207,23,FALSE)-11),IF($B$7=4,(VLOOKUP($A37,masterlist!$C$2:$AA$207,23,FALSE)-9),IF($B$7=7,(VLOOKUP($A37,masterlist!$C$2:$AA$207,23,FALSE)-6),IF($B$7=10,(VLOOKUP($A37,masterlist!$C$2:$AA$207,23,FALSE)-3),(VLOOKUP($A37,masterlist!$C$2:$AA$207,23,FALSE)))))),\"\")","v":""},{"$f":"IFERROR(VLOOKUP($A37,masterlist!$C$2:$AA$207,24,FALSE),\"\")","v":""}]
[{"$f":"IF(ROWS($A$13:A38)<=(SUMPRODUCT((masterlist!B:B=\"IEC\")*(masterlist!J:J=0))),INDEX(masterlist!$C$2:$C$207,SMALL(IF(masterlist!$B$2:$B$207=\"IEC\",IF(masterlist!$F$2:$F$207>0,IF(masterlist!$J$2:$J$207=0,ROW(masterlist!$B$2:$B$207)-ROW(masterlist!$B$2)+1))),ROWS($A$13:A38))),\"\")","v":""},{"$f":"IFERROR(VLOOKUP($A38,masterlist!$C$2:$AA$207,3,FALSE),\"\")","v":""},{"$f":"IFERROR(VLOOKUP($A38,masterlist!$C$2:$AA$207,2,FALSE),\"\")","v":""},{"$f":"IFERROR(VLOOKUP($A38,masterlist!$C$2:$AD$207,28,FALSE),\"\")","v":""},{"$f":"IFERROR(IF((VLOOKUP($A38,masterlist!$C$2:$AA$207,9,FALSE))=0,\"\",VLOOKUP($A38,masterlist!$C$2:$AA$207,9,FALSE)),\"\")","v":""},{"$f":"IFERROR(VLOOKUP($A38,masterlist!$C$2:$AA$207,20,FALSE),\"\")","v":""},{"$f":"IFERROR(VLOOKUP($A38,masterlist!$C$2:$AA$207,21,FALSE),\"\")","v":""},{"$f":"IFERROR(VLOOKUP($A38,masterlist!$C$2:$AA$207,22,FALSE),\"\")","v":""},{"$f":"IFERROR(IF($B$7=2,(VLOOKUP($A38,masterlist!$C$2:$AA$207,23,FALSE)-11),IF($B$7=4,(VLOOKUP($A38,masterlist!$C$2:$AA$207,23,FALSE)-9),IF($B$7=7,(VLOOKUP($A38,masterlist!$C$2:$AA$207,23,FALSE)-6),IF($B$7=10,(VLOOKUP($A38,masterlist!$C$2:$AA$207,23,FALSE)-3),(VLOOKUP($A38,masterlist!$C$2:$AA$207,23,FALSE)))))),\"\")","v":""},{"$f":"IFERROR(VLOOKUP($A38,masterlist!$C$2:$AA$207,24,FALSE),\"\")","v":""}]
[{"$f":"IF(ROWS($A$13:A39)<=(SUMPRODUCT((masterlist!B:B=\"IEC\")*(masterlist!J:J=0))),INDEX(masterlist!$C$2:$C$207,SMALL(IF(masterlist!$B$2:$B$207=\"IEC\",IF(masterlist!$F$2:$F$207>0,IF(masterlist!$J$2:$J$207=0,ROW(masterlist!$B$2:$B$207)-ROW(masterlist!$B$2)+1))),ROWS($A$13:A39))),\"\")","v":""},{"$f":"IFERROR(VLOOKUP($A39,masterlist!$C$2:$AA$207,3,FALSE),\"\")","v":""},{"$f":"IFERROR(VLOOKUP($A39,masterlist!$C$2:$AA$207,2,FALSE),\"\")","v":""},{"$f":"IFERROR(VLOOKUP($A39,masterlist!$C$2:$AD$207,28,FALSE),\"\")","v":""},{"$f":"IFERROR(IF((VLOOKUP($A39,masterlist!$C$2:$AA$207,9,FALSE))=0,\"\",VLOOKUP($A39,masterlist!$C$2:$AA$207,9,FALSE)),\"\")","v":""},{"$f":"IFERROR(VLOOKUP($A39,masterlist!$C$2:$AA$207,20,FALSE),\"\")","v":""},{"$f":"IFERROR(VLOOKUP($A39,masterlist!$C$2:$AA$207,21,FALSE),\"\")","v":""},{"$f":"IFERROR(VLOOKUP($A39,masterlist!$C$2:$AA$207,22,FALSE),\"\")","v":""},{"$f":"IFERROR(IF($B$7=2,(VLOOKUP($A39,masterlist!$C$2:$AA$207,23,FALSE)-11),IF($B$7=4,(VLOOKUP($A39,masterlist!$C$2:$AA$207,23,FALSE)-9),IF($B$7=7,(VLOOKUP($A39,masterlist!$C$2:$AA$207,23,FALSE)-6),IF($B$7=10,(VLOOKUP($A39,masterlist!$C$2:$AA$207,23,FALSE)-3),(VLOOKUP($A39,masterlist!$C$2:$AA$207,23,FALSE)))))),\"\")","v":""},{"$f":"IFERROR(VLOOKUP($A39,masterlist!$C$2:$AA$207,24,FALSE),\"\")","v":""}]
[{"$f":"IF(ROWS($A$13:A40)<=(SUMPRODUCT((masterlist!B:B=\"IEC\")*(masterlist!J:J=0))),INDEX(masterlist!$C$2:$C$207,SMALL(IF(masterlist!$B$2:$B$207=\"IEC\",IF(masterlist!$F$2:$F$207>0,IF(masterlist!$J$2:$J$207=0,ROW(masterlist!$B$2:$B$207)-ROW(masterlist!$B$2)+1))),ROWS($A$13:A40))),\"\")","v":""},{"$f":"IFERROR(VLOOKUP($A40,masterlist!$C$2:$AA$207,3,FALSE),\"\")","v":""},{"$f":"IFERROR(VLOOKUP($A40,masterlist!$C$2:$AA$207,2,FALSE),\"\")","v":""},{"$f":"IFERROR(VLOOKUP($A40,masterlist!$C$2:$AD$207,28,FALSE),\"\")","v":""},{"$f":"IFERROR(IF((VLOOKUP($A40,masterlist!$C$2:$AA$207,9,FALSE))=0,\"\",VLOOKUP($A40,masterlist!$C$2:$AA$207,9,FALSE)),\"\")","v":""},{"$f":"IFERROR(VLOOKUP($A40,masterlist!$C$2:$AA$207,20,FALSE),\"\")","v":""},{"$f":"IFERROR(VLOOKUP($A40,masterlist!$C$2:$AA$207,21,FALSE),\"\")","v":""},{"$f":"IFERROR(VLOOKUP($A40,masterlist!$C$2:$AA$207,22,FALSE),\"\")","v":""},{"$f":"IFERROR(IF($B$7=2,(VLOOKUP($A40,masterlist!$C$2:$AA$207,23,FALSE)-11),IF($B$7=4,(VLOOKUP($A40,masterlist!$C$2:$AA$207,23,FALSE)-9),IF($B$7=7,(VLOOKUP($A40,masterlist!$C$2:$AA$207,23,FALSE)-6),IF($B$7=10,(VLOOKUP($A40,masterlist!$C$2:$AA$207,23,FALSE)-3),(VLOOKUP($A40,masterlist!$C$2:$AA$207,23,FALSE)))))),\"\")","v":""},{"$f":"IFERROR(VLOOKUP($A40,masterlist!$C$2:$AA$207,24,FALSE),\"\")","v":""}]
[{"$f":"IF(ROWS($A$13:A41)<=(SUMPRODUCT((masterlist!B:B=\"IEC\")*(masterlist!J:J=0))),INDEX(masterlist!$C$2:$C$207,SMALL(IF(masterlist!$B$2:$B$207=\"IEC\",IF(masterlist!$F$2:$F$207>0,IF(masterlist!$J$2:$J$207=0,ROW(masterlist!$B$2:$B$207)-ROW(masterlist!$B$2)+1))),ROWS($A$13:A41))),\"\")","v":""},{"$f":"IFERROR(VLOOKUP($A41,masterlist!$C$2:$AA$207,3,FALSE),\"\")","v":""},{"$f":"IFERROR(VLOOKUP($A41,masterlist!$C$2:$AA$207,2,FALSE),\"\")","v":""},{"$f":"IFERROR(VLOOKUP($A41,masterlist!$C$2:$AD$207,28,FALSE),\"\")","v":""},{"$f":"IFERROR(IF((VLOOKUP($A41,masterlist!$C$2:$AA$207,9,FALSE))=0,\"\",VLOOKUP($A41,masterlist!$C$2:$AA$207,9,FALSE)),\"\")","v":""},{"$f":"IFERROR(VLOOKUP($A41,masterlist!$C$2:$AA$207,20,FALSE),\"\")","v":""},{"$f":"IFERROR(VLOOKUP($A41,masterlist!$C$2:$AA$207,21,FALSE),\"\")","v":""},{"$f":"IFERROR(VLOOKUP($A41,masterlist!$C$2:$AA$207,22,FALSE),\"\")","v":""},{"$f":"IFERROR(IF($B$7=2,(VLOOKUP($A41,masterlist!$C$2:$AA$207,23,FALSE)-11),IF($B$7=4,(VLOOKUP($A41,masterlist!$C$2:$AA$207,23,FALSE)-9),IF($B$7=7,(VLOOKUP($A41,masterlist!$C$2:$AA$207,23,FALSE)-6),IF($B$7=10,(VLOOKUP($A41,masterlist!$C$2:$AA$207,23,FALSE)-3),(VLOOKUP($A41,masterlist!$C$2:$AA$207,23,FALSE)))))),\"\")","v":""},{"$f":"IFERROR(VLOOKUP($A41,masterlist!$C$2:$AA$207,24,FALSE),\"\")","v":""}]
[{"$f":"IF(ROWS($A$13:A42)<=(SUMPRODUCT((masterlist!B:B=\"IEC\")*(masterlist!J:J=0))),INDEX(masterlist!$C$2:$C$207,SMALL(IF(masterlist!$B$2:$B$207=\"IEC\",IF(masterlist!$F$2:$F$207>0,IF(masterlist!$J$2:$J$207=0,ROW(masterlist!$B$2:$B$207)-ROW(masterlist!$B$2)+1))),ROWS($A$13:A42))),\"\")","v":""},{"$f":"IFERROR(VLOOKUP($A42,masterlist!$C$2:$AA$207,3,FALSE),\"\")","v":""},{"$f":"IFERROR(VLOOKUP($A42,masterlist!$C$2:$AA$207,2,FALSE),\"\")","v":""},{"$f":"IFERROR(VLOOKUP($A42,masterlist!$C$2:$AD$207,28,FALSE),\"\")","v":""},{"$f":"IFERROR(IF((VLOOKUP($A42,masterlist!$C$2:$AA$207,9,FALSE))=0,\"\",VLOOKUP($A42,masterlist!$C$2:$AA$207,9,FALSE)),\"\")","v":""},{"$f":"IFERROR(VLOOKUP($A42,masterlist!$C$2:$AA$207,20,FALSE),\"\")","v":""},{"$f":"IFERROR(VLOOKUP($A42,masterlist!$C$2:$AA$207,21,FALSE),\"\")","v":""},{"$f":"IFERROR(VLOOKUP($A42,masterlist!$C$2:$AA$207,22,FALSE),\"\")","v":""},{"$f":"IFERROR(IF($B$7=2,(VLOOKUP($A42,masterlist!$C$2:$AA$207,23,FALSE)-11),IF($B$7=4,(VLOOKUP($A42,masterlist!$C$2:$AA$207,23,FALSE)-9),IF($B$7=7,(VLOOKUP($A42,masterlist!$C$2:$AA$207,23,FALSE)-6),IF($B$7=10,(VLOOKUP($A42,masterlist!$C$2:$AA$207,23,FALSE)-3),(VLOOKUP($A42,masterlist!$C$2:$AA$207,23,FALSE)))))),\"\")","v":""},{"$f":"IFERROR(VLOOKUP($A42,masterlist!$C$2:$AA$207,24,FALSE),\"\")","v":""}]
[{"$f":"IF(ROWS($A$13:A43)<=(SUMPRODUCT((masterlist!B:B=\"IEC\")*(masterlist!J:J=0))),INDEX(masterlist!$C$2:$C$207,SMALL(IF(masterlist!$B$2:$B$207=\"IEC\",IF(masterlist!$F$2:$F$207>0,IF(masterlist!$J$2:$J$207=0,ROW(masterlist!$B$2:$B$207)-ROW(masterlist!$B$2)+1))),ROWS($A$13:A43))),\"\")","v":""},{"$f":"IFERROR(VLOOKUP($A43,masterlist!$C$2:$AA$207,3,FALSE),\"\")","v":""},{"$f":"IFERROR(VLOOKUP($A43,masterlist!$C$2:$AA$207,2,FALSE),\"\")","v":""},{"$f":"IFERROR(VLOOKUP($A43,masterlist!$C$2:$AD$207,28,FALSE),\"\")","v":""},{"$f":"IFERROR(IF((VLOOKUP($A43,masterlist!$C$2:$AA$207,9,FALSE))=0,\"\",VLOOKUP($A43,masterlist!$C$2:$AA$207,9,FALSE)),\"\")","v":""},{"$f":"IFERROR(VLOOKUP($A43,masterlist!$C$2:$AA$207,20,FALSE),\"\")","v":""},{"$f":"IFERROR(VLOOKUP($A43,masterlist!$C$2:$AA$207,21,FALSE),\"\")","v":""},{"$f":"IFERROR(VLOOKUP($A43,masterlist!$C$2:$AA$207,22,FALSE),\"\")","v":""},{"$f":"IFERROR(IF($B$7=2,(VLOOKUP($A43,masterlist!$C$2:$AA$207,23,FALSE)-11),IF($B$7=4,(VLOOKUP($A43,masterlist!$C$2:$AA$207,23,FALSE)-9),IF($B$7=7,(VLOOKUP($A43,masterlist!$C$2:$AA$207,23,FALSE)-6),IF($B$7=10,(VLOOKUP($A43,masterlist!$C$2:$AA$207,23,FALSE)-3),(VLOOKUP($A43,masterlist!$C$2:$AA$207,23,FALSE)))))),\"\")","v":""},{"$f":"IFERROR(VLOOKUP($A43,masterlist!$C$2:$AA$207,24,FALSE),\"\")","v":""}]
[{"$f":"IF(ROWS($A$13:A44)<=(SUMPRODUCT((masterlist!B:B=\"IEC\")*(masterlist!J:J=0))),INDEX(masterlist!$C$2:$C$207,SMALL(IF(masterlist!$B$2:$B$207=\"IEC\",IF(masterlist!$F$2:$F$207>0,IF(masterlist!$J$2:$J$207=0,ROW(masterlist!$B$2:$B$207)-ROW(masterlist!$B$2)+1))),ROWS($A$13:A44))),\"\")","v":""},{"$f":"IFERROR(VLOOKUP($A44,masterlist!$C$2:$AA$207,3,FALSE),\"\")","v":""},{"$f":"IFERROR(VLOOKUP($A44,masterlist!$C$2:$AA$207,2,FALSE),\"\")","v":""},{"$f":"IFERROR(VLOOKUP($A44,masterlist!$C$2:$AD$207,28,FALSE),\"\")","v":""},{"$f":"IFERROR(IF((VLOOKUP($A44,masterlist!$C$2:$AA$207,9,FALSE))=0,\"\",VLOOKUP($A44,masterlist!$C$2:$AA$207,9,FALSE)),\"\")","v":""},{"$f":"IFERROR(VLOOKUP($A44,masterlist!$C$2:$AA$207,20,FALSE),\"\")","v":""},{"$f":"IFERROR(VLOOKUP($A44,masterlist!$C$2:$AA$207,21,FALSE),\"\")","v":""},{"$f":"IFERROR(VLOOKUP($A44,masterlist!$C$2:$AA$207,22,FALSE),\"\")","v":""},{"$f":"IFERROR(IF($B$7=2,(VLOOKUP($A44,masterlist!$C$2:$AA$207,23,FALSE)-11),IF($B$7=4,(VLOOKUP($A44,masterlist!$C$2:$AA$207,23,FALSE)-9),IF($B$7=7,(VLOOKUP($A44,masterlist!$C$2:$AA$207,23,FALSE)-6),IF($B$7=10,(VLOOKUP($A44,masterlist!$C$2:$AA$207,23,FALSE)-3),(VLOOKUP($A44,masterlist!$C$2:$AA$207,23,FALSE)))))),\"\")","v":""},{"$f":"IFERROR(VLOOKUP($A44,masterlist!$C$2:$AA$207,24,FALSE),\"\")","v":""}]
[{"$f":"IF(ROWS($A$13:A45)<=(SUMPRODUCT((masterlist!B:B=\"IEC\")*(masterlist!J:J=0))),INDEX(masterlist!$C$2:$C$207,SMALL(IF(masterlist!$B$2:$B$207=\"IEC\",IF(masterlist!$F$2:$F$207>0,IF(masterlist!$J$2:$J$207=0,ROW(masterlist!$B$2:$B$207)-ROW(masterlist!$B$2)+1))),ROWS($A$13:A45))),\"\")","v":""},{"$f":"IFERROR(VLOOKUP($A45,masterlist!$C$2:$AA$207,3,FALSE),\"\")","v":""},{"$f":"IFERROR(VLOOKUP($A45,masterlist!$C$2:$AA$207,2,FALSE),\"\")","v":""},{"$f":"IFERROR(VLOOKUP($A45,masterlist!$C$2:$AD$207,28,FALSE),\"\")","v":""},{"$f":"IFERROR(IF((VLOOKUP($A45,masterlist!$C$2:$AA$207,9,FALSE))=0,\"\",VLOOKUP($A45,masterlist!$C$2:$AA$207,9,FALSE)),\"\")","v":""},{"$f":"IFERROR(VLOOKUP($A45,masterlist!$C$2:$AA$207,20,FALSE),\"\")","v":""},{"$f":"IFERROR(VLOOKUP($A45,masterlist!$C$2:$AA$207,21,FALSE),\"\")","v":""},{"$f":"IFERROR(VLOOKUP($A45,masterlist!$C$2:$AA$207,22,FALSE),\"\")","v":""},{"$f":"IFERROR(IF($B$7=2,(VLOOKUP($A45,masterlist!$C$2:$AA$207,23,FALSE)-11),IF($B$7=4,(VLOOKUP($A45,masterlist!$C$2:$AA$207,23,FALSE)-9),IF($B$7=7,(VLOOKUP($A45,masterlist!$C$2:$AA$207,23,FALSE)-6),IF($B$7=10,(VLOOKUP($A45,masterlist!$C$2:$AA$207,23,FALSE)-3),(VLOOKUP($A45,masterlist!$C$2:$AA$207,23,FALSE)))))),\"\")","v":""},{"$f":"IFERROR(VLOOKUP($A45,masterlist!$C$2:$AA$207,24,FALSE),\"\")","v":""}]
[{"$f":"IF(ROWS($A$13:A46)<=(SUMPRODUCT((masterlist!B:B=\"IEC\")*(masterlist!J:J=0))),INDEX(masterlist!$C$2:$C$207,SMALL(IF(masterlist!$B$2:$B$207=\"IEC\",IF(masterlist!$F$2:$F$207>0,IF(masterlist!$J$2:$J$207=0,ROW(masterlist!$B$2:$B$207)-ROW(masterlist!$B$2)+1))),ROWS($A$13:A46))),\"\")","v":""},{"$f":"IFERROR(VLOOKUP($A46,masterlist!$C$2:$AA$207,3,FALSE),\"\")","v":""},{"$f":"IFERROR(VLOOKUP($A46,masterlist!$C$2:$AA$207,2,FALSE),\"\")","v":""},{"$f":"IFERROR(VLOOKUP($A46,masterlist!$C$2:$AD$207,28,FALSE),\"\")","v":""},{"$f":"IFERROR(IF((VLOOKUP($A46,masterlist!$C$2:$AA$207,9,FALSE))=0,\"\",VLOOKUP($A46,masterlist!$C$2:$AA$207,9,FALSE)),\"\")","v":""},{"$f":"IFERROR(VLOOKUP($A46,masterlist!$C$2:$AA$207,20,FALSE),\"\")","v":""},{"$f":"IFERROR(VLOOKUP($A46,masterlist!$C$2:$AA$207,21,FALSE),\"\")","v":""},{"$f":"IFERROR(VLOOKUP($A46,masterlist!$C$2:$AA$207,22,FALSE),\"\")","v":""},{"$f":"IFERROR(IF($B$7=2,(VLOOKUP($A46,masterlist!$C$2:$AA$207,23,FALSE)-11),IF($B$7=4,(VLOOKUP($A46,masterlist!$C$2:$AA$207,23,FALSE)-9),IF($B$7=7,(VLOOKUP($A46,masterlist!$C$2:$AA$207,23,FALSE)-6),IF($B$7=10,(VLOOKUP($A46,masterlist!$C$2:$AA$207,23,FALSE)-3),(VLOOKUP($A46,masterlist!$C$2:$AA$207,23,FALSE)))))),\"\")","v":""},{"$f":"IFERROR(VLOOKUP($A46,masterlist!$C$2:$AA$207,24,FALSE),\"\")","v":""}]
[{"$f":"IF(ROWS($A$13:A47)<=(SUMPRODUCT((masterlist!B:B=\"IEC\")*(masterlist!J:J=0))),INDEX(masterlist!$C$2:$C$207,SMALL(IF(masterlist!$B$2:$B$207=\"IEC\",IF(masterlist!$F$2:$F$207>0,IF(masterlist!$J$2:$J$207=0,ROW(masterlist!$B$2:$B$207)-ROW(masterlist!$B$2)+1))),ROWS($A$13:A47))),\"\")","v":""},{"$f":"IFERROR(VLOOKUP($A47,masterlist!$C$2:$AA$207,3,FALSE),\"\")","v":""},{"$f":"IFERROR(VLOOKUP($A47,masterlist!$C$2:$AA$207,2,FALSE),\"\")","v":""},{"$f":"IFERROR(VLOOKUP($A47,masterlist!$C$2:$AD$207,28,FALSE),\"\")","v":""},{"$f":"IFERROR(IF((VLOOKUP($A47,masterlist!$C$2:$AA$207,9,FALSE))=0,\"\",VLOOKUP($A47,masterlist!$C$2:$AA$207,9,FALSE)),\"\")","v":""},{"$f":"IFERROR(VLOOKUP($A47,masterlist!$C$2:$AA$207,20,FALSE),\"\")","v":""},{"$f":"IFERROR(VLOOKUP($A47,masterlist!$C$2:$AA$207,21,FALSE),\"\")","v":""},{"$f":"IFERROR(VLOOKUP($A47,masterlist!$C$2:$AA$207,22,FALSE),\"\")","v":""},{"$f":"IFERROR(IF($B$7=2,(VLOOKUP($A47,masterlist!$C$2:$AA$207,23,FALSE)-11),IF($B$7=4,(VLOOKUP($A47,masterlist!$C$2:$AA$207,23,FALSE)-9),IF($B$7=7,(VLOOKUP($A47,masterlist!$C$2:$AA$207,23,FALSE)-6),IF($B$7=10,(VLOOKUP($A47,masterlist!$C$2:$AA$207,23,FALSE)-3),(VLOOKUP($A47,masterlist!$C$2:$AA$207,23,FALSE)))))),\"\")","v":""},{"$f":"IFERROR(VLOOKUP($A47,masterlist!$C$2:$AA$207,24,FALSE),\"\")","v":""}]
[{"$f":"IF(ROWS($A$13:A48)<=(SUMPRODUCT((masterlist!B:B=\"IEC\")*(masterlist!J:J=0))),INDEX(masterlist!$C$2:$C$207,SMALL(IF(masterlist!$B$2:$B$207=\"IEC\",IF(masterlist!$F$2:$F$207>0,IF(masterlist!$J$2:$J$207=0,ROW(masterlist!$B$2:$B$207)-ROW(masterlist!$B$2)+1))),ROWS($A$13:A48))),\"\")","v":""},{"$f":"IFERROR(VLOOKUP($A48,masterlist!$C$2:$AA$207,3,FALSE),\"\")","v":""},{"$f":"IFERROR(VLOOKUP($A48,masterlist!$C$2:$AA$207,2,FALSE),\"\")","v":""},{"$f":"IFERROR(VLOOKUP($A48,masterlist!$C$2:$AD$207,28,FALSE),\"\")","v":""},{"$f":"IFERROR(IF((VLOOKUP($A48,masterlist!$C$2:$AA$207,9,FALSE))=0,\"\",VLOOKUP($A48,masterlist!$C$2:$AA$207,9,FALSE)),\"\")","v":""},{"$f":"IFERROR(VLOOKUP($A48,masterlist!$C$2:$AA$207,20,FALSE),\"\")","v":""},{"$f":"IFERROR(VLOOKUP($A48,masterlist!$C$2:$AA$207,21,FALSE),\"\")","v":""},{"$f":"IFERROR(VLOOKUP($A48,masterlist!$C$2:$AA$207,22,FALSE),\"\")","v":""},{"$f":"IFERROR(IF($B$7=2,(VLOOKUP($A48,masterlist!$C$2:$AA$207,23,FALSE)-11),IF($B$7=4,(VLOOKUP($A48,masterlist!$C$2:$AA$207,23,FALSE)-9),IF($B$7=7,(VLOOKUP($A48,masterlist!$C$2:$AA$207,23,FALSE)-6),IF($B$7=10,(VLOOKUP($A48,masterlist!$C$2:$AA$207,23,FALSE)-3),(VLOOKUP($A48,masterlist!$C$2:$AA$207,23,FALSE)))))),\"\")","v":""},{"$f":"IFERROR(VLOOKUP($A48,masterlist!$C$2:$AA$207,24,FALSE),\"\")","v":""}]
[{"$f":"IF(ROWS($A$13:A49)<=(SUMPRODUCT((masterlist!B:B=\"IEC\")*(masterlist!J:J=0))),INDEX(masterlist!$C$2:$C$207,SMALL(IF(masterlist!$B$2:$B$207=\"IEC\",IF(masterlist!$F$2:$F$207>0,IF(masterlist!$J$2:$J$207=0,ROW(masterlist!$B$2:$B$207)-ROW(masterlist!$B$2)+1))),ROWS($A$13:A49))),\"\")","v":""},{"$f":"IFERROR(VLOOKUP($A49,masterlist!$C$2:$AA$207,3,FALSE),\"\")","v":""},{"$f":"IFERROR(VLOOKUP($A49,masterlist!$C$2:$AA$207,2,FALSE),\"\")","v":""},{"$f":"IFERROR(VLOOKUP($A49,masterlist!$C$2:$AD$207,28,FALSE),\"\")","v":""},{"$f":"IFERROR(IF((VLOOKUP($A49,masterlist!$C$2:$AA$207,9,FALSE))=0,\"\",VLOOKUP($A49,masterlist!$C$2:$AA$207,9,FALSE)),\"\")","v":""},{"$f":"IFERROR(VLOOKUP($A49,masterlist!$C$2:$AA$207,20,FALSE),\"\")","v":""},{"$f":"IFERROR(VLOOKUP($A49,masterlist!$C$2:$AA$207,21,FALSE),\"\")","v":""},{"$f":"IFERROR(VLOOKUP($A49,masterlist!$C$2:$AA$207,22,FALSE),\"\")","v":""},{"$f":"IFERROR(IF($B$7=2,(VLOOKUP($A49,masterlist!$C$2:$AA$207,23,FALSE)-11),IF($B$7=4,(VLOOKUP($A49,masterlist!$C$2:$AA$207,23,FALSE)-9),IF($B$7=7,(VLOOKUP($A49,masterlist!$C$2:$AA$207,23,FALSE)-6),IF($B$7=10,(VLOOKUP($A49,masterlist!$C$2:$AA$207,23,FALSE)-3),(VLOOKUP($A49,masterlist!$C$2:$AA$207,23,FALSE)))))),\"\")","v":""},{"$f":"IFERROR(VLOOKUP($A49,masterlist!$C$2:$AA$207,24,FALSE),\"\")","v":""}]
[{"$f":"IF(ROWS($A$13:A50)<=(SUMPRODUCT((masterlist!B:B=\"IEC\")*(masterlist!J:J=0))),INDEX(masterlist!$C$2:$C$207,SMALL(IF(masterlist!$B$2:$B$207=\"IEC\",IF(masterlist!$F$2:$F$207>0,IF(masterlist!$J$2:$J$207=0,ROW(masterlist!$B$2:$B$207)-ROW(masterlist!$B$2)+1))),ROWS($A$13:A50))),\"\")","v":""}]

{"sheet":"IECnw","index":36,"n_rows":1,"n_cols":8,"rows_kept":1,"cut":false,"hidden":true,"merged":[[0,7,0,9],[1,1,1,9],[0,3,0,6]]}
[null,null,null,"Informations, éducation, communication",null,null,null,"Plan de travail national pour l’élimination de la rage"]

{"sheet":"IECgantt","index":37,"n_rows":50,"n_cols":17,"rows_kept":50,"cut":false,"hidden":true,"merged":[[0,1,0,16],[1,1,1,6],[2,1,2,16]]}
[null,"Plan de travail national pour l’élimination de la rage"]
[]
[null,"Informations, éducation, communication - DIAGRAMME DE GANTT"]
[]
[null,null,null,null,1,2,3,4,5,6,7,8,9,10,11,12,13]
[null,"Theme","Étape","Activité",{"$f":"'NW country'!$E$35","v":2025},{"$f":"IF('NW country'!$K$4<6,E6+1,\"\")","v":2026},{"$f":"IF('NW country'!$K$4<5,E6+2,\"\")","v":2027},{"$f":"IF('NW country'!$K$4<5,E6+3,\"\")","v":2028},{"$f":"IF('NW country'!$K$4<4,E6+4,\"\")","v":2029},{"$f":"IF('NW country'!$K$4<4,E6+5,\"\")","v":2030},{"$f":"IF('NW country'!$K$4<4,E6+6,\"\")","v":2031},{"$f":"IF('NW country'!$K$4<3,E6+7,\"\")","v":2032},{"$f":"IF('NW country'!$K$4<3,E6+8,\"\")","v":2033},{"$f":"IF('NW country'!$K$4<3,E6+9,\"\")","v":2034},{"$f":"IF('NW country'!$K$4<2,E6+10,\"\")","v":2035},{"$f":"IF('NW country'!$K$4<2,E6+11,\"\")","v":2036},{"$f":"IF('NW country'!$K$4<2,E6+12,\"\")","v":2037}]
[13,{"$f":"IF((INDIRECT(\"IECnw!\"&\"$a\"&$A7))=0,\"\",INDIRECT(\"IECnw!\"&\"$c\"&$A7))","v":""},{"$f":"IF(INDIRECT(\"IECnw!\"&\"$a\"&$A7)=0,\"\",INDIRECT(\"IECnw!\"&\"$b\"&$A7))","v":""},{"$f":"IF(INDIRECT(\"IECnw!\"&\"$a\"&$A7)=0,\"\",INDIRECT(\"IECnw!\"&\"$d\"&$A7))","v":""},{"$f":"IF($C7>6,\"\",IF(E$5<=INDIRECT(\"IECnw!\"&\"$i\"&$A7),\"X\",\"\"))","v":""},{"$f":"IF($C7>6,\"\",IF(F$5<=INDIRECT(\"IECnw!\"&\"$i\"&$A7),\"X\",\"\"))","v":""},"","","","","","","","","","",""]
[14,{"$f":"IF((INDIRECT(\"IECnw!\"&\"$a\"&$A8))=0,\"\",INDIRECT(\"IECnw!\"&\"$c\"&$A8))","v":""},{"$f":"IF(INDIRECT(\"IECnw!\"&\"$a\"&$A8)=0,\"\",INDIRECT(\"IECnw!\"&\"$b\"&$A8))","v":""},{"$f":"IF(INDIRECT(\"IECnw!\"&\"$a\"&$A8)=0,\"\",INDIRECT(\"IECnw!\"&\"$d\"&$A8))","v":""},{"$f":"IF($C8>6,\"\",IF(E$5<=INDIRECT(\"IECnw!\"&\"$i\"&$A8),\"X\",\"\"))","v":""},"","","","","","","","","","","",""]
[15,"","","","","","","","","","","","","","","",""]
[16,"","","","","","","","","","","","","","","",""]
[17,"","","","","","","","","","","","","","","",""]
[18,"","","","","","","","","","","","","","","",""]
[19,"","","","","","","","","","","","","","","",""]
[20,"","","","","","","","","","","","","","","",""]
[21,"","","","","","","","","","","","","","","",""]
[22,"","","","","","","","","","","","","","","",""]
[23,"","","","","","","","","","","","","","","",""]
[24,"","","","","","","","","","","","","","","",""]
[25,"","","","","","","","","","","","","","","",""]
[26,"","","","","","","","","","","","","","","",""]
[27,"","","","","","","","","","","","","","","",""]
[28,"","","","","","","","","","","","","","","",""]
[29,"","","","","","","","","","","","","","","",""]
[30,"","","","","","","","","","","","","","","",""]
[31,"","","","","","","","","","","","","","","",""]
[32,"","","","","","","","","","","","","","","",""]
[33,"","","","","","","","","","","","","","","",""]
[34,"","","","","","","","","","","","","","","",""]
[35,"","","","","","","","","","","","","","","",""]
[36,"","","","","","","","","","","","","","","",""]
[37,"","","","","","","","","","","","","","","",""]
[38,"","","","","","","","","","","","","","","",""]
[39,"","","","","","","","","","","","","","","",""]
[40,"","","","","","","","","","","","","","","",""]
[41,"","","","","","","","","","","","","","","",""]
[42,"","","","","","","","","","","","","","","",""]
[43,"","","","","","","","","","","","","","","",""]
[44,"","","","","","","","","","","","","","","",""]
[45,"","","","","","","","","","","","","","","",""]
[46,"","","","","","","","","","","","","","","",""]
[47,"","","","","","","","","",{"$f":"IF($C41>6,\"\",IF(K$5<=INDIRECT(\"IECnw!\"&\"$i\"&$A41),\"X\",\"\"))","v":""},"","","","","",""]
[48,"","","",{"$f":"IF($C42>6,\"\",IF(E$5<=INDIRECT(\"IECnw!\"&\"$i\"&$A42),\"X\",\"\"))","v":""},"","","","","","","","","","","",""]
[49,"","","","","","","","","","","","","","","",""]
[50,"","","","","","","","","","","","","","","",""]
[51,"","","","","","","","","","","","","","","",""]
[52,"","","","","","","","","","","","","","","",""]
[53,"","","","","","","","","","","","","","","",""]
[54,"","","","","","","","","","","","","","","",""]
[55,"","","","","","","","","","","","","","","",""]
[56,{"$f":"IF((INDIRECT(\"DCA!\"&\"$a\"&$A50))=0,\"\",INDIRECT(\"DCA!\"&\"$c\"&$A50))","v":""},{"$f":"IF(INDIRECT(\"DCA!\"&\"$a\"&$A50)=0,\"\",INDIRECT(\"DCA!\"&\"$b\"&$A50))","v":""},{"$f":"IF(INDIRECT(\"DCA!\"&\"$a\"&$A50)=0,\"\",INDIRECT(\"DCA!\"&\"$d\"&$A50))","v":""},{"$f":"IF($C50>6,\"\",IF(E$5<=INDIRECT(\"DCA!\"&\"$i\"&$A50),\"X\",\"\"))","v":""},"","","","","","","","","","","",""]

{"sheet":"rawcci","index":38,"n_rows":50,"n_cols":10,"rows_kept":50,"cut":false,"hidden":true,"merged":[[0,1,0,3],[0,4,0,9],[1,1,1,9],[4,1,5,3],[6,1,8,3]]}
[null,"Practical Workplan towards Achieving Rabies Elimination",null,null,"Prevention and Control"]
[null,"Blurb blurb blurb blah blurb blurb"]
[]
[]
[null,"Estimated years to elimination\n(based on the current SARE score)",null,null,null,"All stage 0 and 1 activities should ideally be completed within a 3-year period",null,null,null,{"$f":"IF('NW country'!$K$4<2,\"Years 1, 2 and 3\",\"--\")","v":"Years 1, 2 and 3"}]
[null,null,null,null,null,"All stage 2 activities should ideally be completed within a 3-year period",null,null,null,{"$f":"IF('NW country'!$K$4<2,\"Years 4, 5 and 6\",IF('NW country'!$K$4<3,\"Years 1, 2 and 3\",\"--\"))","v":"Years 4, 5 and 6"}]
[null,{"$f":"IF('NW country'!$K$4<2,13,IF('NW country'!$K$4<3,10,IF('NW country'!$K$4<4,7,IF('NW country'!$K$4<5,4,2))))","v":13},null,null,null,"All stage 3 activities should ideally be completed within a 3-year period",null,null,null,{"$f":"IF('NW country'!$K$4<2,\"Years 7, 8 and 9\",IF('NW country'!$K$4<3,\"Years 4, 5 and 6\",IF('NW country'!$K$4<4,\"Years 1, 2 and 3\",\"--\")))","v":"Years 7, 8 and 9"}]
[null,null,null,null,null,"All stage 4 activities should ideally be completed within a 2-year period",null,null,null,{"$f":"IF('NW country'!$K$4<2,\"Years 10 and 11\",IF('NW country'!$K$4<3,\"Years 7 and 8\",IF('NW country'!$K$4<4,\"Years 4 and 5\",IF('NW country'!$K$4<5,\"Years 1 and 2\",\"--\"))))","v":"Years 10 and 11"}]
[null,null,null,null,null,"All stage 5 activities should ideally be completed within a 2-year period",null,null,null,{"$f":"IF('NW country'!$K$4<2,\"Years 12 and 13\",IF('NW country'!$K$4<3,\"Years 9 and 10\",IF('NW country'!$K$4<4,\"Years 6 and 7\",IF('NW country'!$K$4<5,\"Years 3 and 4\",\"Years 1 and 2\"))))","v":"Years 12 and 13"}]
[]
[null,"Instructions : Veuillez modifier les Tâches, les Autorités responsables, le Calendrier et les  Résultats attendus selon les besoins."]
["ID","Étape","Theme","Activité","Remarques","Tâche","Outcomes","Autorité responsible","Calendrier (années)","Résultats attendus"]
[{"$f":"IF(ROWS($A$13:A13)<=(SUMPRODUCT((masterlist!B:B=\"CCI\")*(masterlist!J:J=0))),INDEX(masterlist!$C$2:$C$207,SMALL(IF(masterlist!$B$2:$B$207=\"CCI\",IF(masterlist!$F$2:$F$207>0,IF(masterlist!$J$2:$J$207=0,ROW(masterlist!$B$2:$B$207)-ROW(masterlist!$B$2)+1))),ROWS($A$13:A13))),\"\")","v":"CCI-Cré-0-1"},{"$f":"IFERROR(VLOOKUP($A13,masterlist!$C$2:$AA$207,3,FALSE),\"\")","v":0},{"$f":"IFERROR(VLOOKUP($A13,masterlist!$C$2:$AA$207,2,FALSE),\"\")","v":"Création d’un groupe de travail intersectoriel sur la rage"},{"$f":"IFERROR(VLOOKUP($A13,masterlist!$C$2:$AD$207,28,FALSE),\"\")","v":"Informer en permanence les parties prenantes au niveau national des activités programmatiques liées à la rage mises en œuvre dans le pays."},{"$f":"IFERROR(IF((VLOOKUP($A13,masterlist!$C$2:$AA$207,9,FALSE))=0,\"\",VLOOKUP($A13,masterlist!$C$2:$AA$207,9,FALSE)),\"\")","v":""},{"$f":"IFERROR(VLOOKUP($A13,masterlist!$C$2:$AA$207,20,FALSE),\"\")","v":"• Identifier toutes les parties prenantes concernées, y compris les représentants de l'OMSA, de la FAO et de l'OMS, dans le pays ;\n• Établir un canal de communication permettant à toutes les parties prenantes d'être informées des activités programmatiques ;\n• Partager continuellement les informations en utilisant le canal de communication établi ;\n• Veiller à ce que toutes les parties prenantes concernées accusent réception des informations communiquées."},{"$f":"IFERROR(VLOOKUP($A13,masterlist!$C$2:$AA$207,21,FALSE),\"\")","v":"Results of rabies samples are shared with all of the relevant authorities throughout the country;"},{"$f":"IFERROR(VLOOKUP($A13,masterlist!$C$2:$AA$207,22,FALSE),\"\")","v":"Ministère de la santé; \nMinistère de l’agriculture"},{"$f":"IFERROR(IF($B$7=2,(VLOOKUP($A13,masterlist!$C$2:$AA$207,23,FALSE)-11),IF($B$7=4,(VLOOKUP($A13,masterlist!$C$2:$AA$207,23,FALSE)-9),IF($B$7=7,(VLOOKUP($A13,masterlist!$C$2:$AA$207,23,FALSE)-6),IF($B$7=10,(VLOOKUP($A13,masterlist!$C$2:$AA$207,23,FALSE)-3),(VLOOKUP($A13,masterlist!$C$2:$AA$207,23,FALSE)))))),\"\")","v":1},{"$f":"IFERROR(VLOOKUP($A13,masterlist!$C$2:$AA$207,24,FALSE),\"\")","v":"• Liste exhaustive de toutes les parties prenantes nationales concernées, y compris les représentants de l'OMSA, de la FAO et de l'OMS.\n• Mise en place d'un canal de communication pour un partage continu des informations avec les parties prenantes.\n• Mises à jour et rapports réguliers diffusés par le canal de communication établi.\n• Accusés de réception documentés des parties prenantes confirmant la réception des informations."}]
[{"$f":"IF(ROWS($A$13:A14)<=(SUMPRODUCT((masterlist!B:B=\"CCI\")*(masterlist!J:J=0))),INDEX(masterlist!$C$2:$C$207,SMALL(IF(masterlist!$B$2:$B$207=\"CCI\",IF(masterlist!$F$2:$F$207>0,IF(masterlist!$J$2:$J$207=0,ROW(masterlist!$B$2:$B$207)-ROW(masterlist!$B$2)+1))),ROWS($A$13:A14))),\"\")","v":"CCI-Cré-1-2"},{"$f":"IFERROR(VLOOKUP($A14,masterlist!$C$2:$AA$207,3,FALSE),\"\")","v":1},{"$f":"IFERROR(VLOOKUP($A14,masterlist!$C$2:$AA$207,2,FALSE),\"\")","v":"Création d’un groupe de travail intersectoriel sur la rage"},{"$f":"IFERROR(VLOOKUP($A14,masterlist!$C$2:$AD$207,28,FALSE),\"\")","v":"Identifier et énumérer TOUTES les parties prenantes nationales impliquées dans l'élimination de la rage."},{"$f":"IFERROR(IF((VLOOKUP($A14,masterlist!$C$2:$AA$207,9,FALSE))=0,\"\",VLOOKUP($A14,masterlist!$C$2:$AA$207,9,FALSE)),\"\")","v":""},{"$f":"IFERROR(VLOOKUP($A14,masterlist!$C$2:$AA$207,20,FALSE),\"\")","v":"• Identifier les secteurs et les organisations qui sont impliqués dans l'élimination de la rage dans le pays ;\n• Contacter les secteurs et les organisations concernés et identifier les parties prenantes individuelles au sein de chacun de ces secteurs qui agiront en tant que représentants ;\n• Générer et conserver une liste des représentants, y compris les informations de contact."},{"$f":"IFERROR(VLOOKUP($A14,masterlist!$C$2:$AA$207,21,FALSE),\"\")","v":"Main stakehiolders identified and contacted "},{"$f":"IFERROR(VLOOKUP($A14,masterlist!$C$2:$AA$207,22,FALSE),\"\")","v":"Ministère de la santé; \nMinistère de l’agriculture"},{"$f":"IFERROR(IF($B$7=2,(VLOOKUP($A14,masterlist!$C$2:$AA$207,23,FALSE)-11),IF($B$7=4,(VLOOKUP($A14,masterlist!$C$2:$AA$207,23,FALSE)-9),IF($B$7=7,(VLOOKUP($A14,masterlist!$C$2:$AA$207,23,FALSE)-6),IF($B$7=10,(VLOOKUP($A14,masterlist!$C$2:$AA$207,23,FALSE)-3),(VLOOKUP($A14,masterlist!$C$2:$AA$207,23,FALSE)))))),\"\")","v":1},{"$f":"IFERROR(VLOOKUP($A14,masterlist!$C$2:$AA$207,24,FALSE),\"\")","v":"• Base de données détaillée des parties prenantes, y compris les secteurs et les organisations impliqués dans l'élimination de la rage.\n• Liste régulièrement mise à jour des parties prenantes au niveau national et de leurs coordonnées."}]
[{"$f":"IF(ROWS($A$13:A15)<=(SUMPRODUCT((masterlist!B:B=\"CCI\")*(masterlist!J:J=0))),INDEX(masterlist!$C$2:$C$207,SMALL(IF(masterlist!$B$2:$B$207=\"CCI\",IF(masterlist!$F$2:$F$207>0,IF(masterlist!$J$2:$J$207=0,ROW(masterlist!$B$2:$B$207)-ROW(masterlist!$B$2)+1))),ROWS($A$13:A15))),\"\")","v":"CCI-Cré-1-3"},{"$f":"IFERROR(VLOOKUP($A15,masterlist!$C$2:$AA$207,3,FALSE),\"\")","v":1},{"$f":"IFERROR(VLOOKUP($A15,masterlist!$C$2:$AA$207,2,FALSE),\"\")","v":"Création d’un groupe de travail intersectoriel sur la rage"},{"$f":"IFERROR(VLOOKUP($A15,masterlist!$C$2:$AD$207,28,FALSE),\"\")","v":"Veiller à ce que toutes les parties prenantes identifiées au niveau national participent activement à l'élimination de la rage."},{"$f":"IFERROR(IF((VLOOKUP($A15,masterlist!$C$2:$AA$207,9,FALSE))=0,\"\",VLOOKUP($A15,masterlist!$C$2:$AA$207,9,FALSE)),\"\")","v":""},{"$f":"IFERROR(VLOOKUP($A15,masterlist!$C$2:$AA$207,20,FALSE),\"\")","v":"• Contacter les représentants des parties prenantes qui ont été identifiés ;\n• Confirmer qu'ils sont toujours activement impliqués dans l'élimination de la rage."},{"$f":"IFERROR(VLOOKUP($A15,masterlist!$C$2:$AA$207,21,FALSE),\"\")","v":"Surety that relevant stakeholders are still actively involved in rabies control;"},{"$f":"IFERROR(VLOOKUP($A15,masterlist!$C$2:$AA$207,22,FALSE),\"\")","v":"Ministère de la santé; \nMinistère de l’agriculture"},{"$f":"IFERROR(IF($B$7=2,(VLOOKUP($A15,masterlist!$C$2:$AA$207,23,FALSE)-11),IF($B$7=4,(VLOOKUP($A15,masterlist!$C$2:$AA$207,23,FALSE)-9),IF($B$7=7,(VLOOKUP($A15,masterlist!$C$2:$AA$207,23,FALSE)-6),IF($B$7=10,(VLOOKUP($A15,masterlist!$C$2:$AA$207,23,FALSE)-3),(VLOOKUP($A15,masterlist!$C$2:$AA$207,23,FALSE)))))),\"\")","v":3},{"$f":"IFERROR(VLOOKUP($A15,masterlist!$C$2:$AA$207,24,FALSE),\"\")","v":"• Preuve d'une communication cohérente avec les parties prenantes identifiées."}]
[{"$f":"IF(ROWS($A$13:A16)<=(SUMPRODUCT((masterlist!B:B=\"CCI\")*(masterlist!J:J=0))),INDEX(masterlist!$C$2:$C$207,SMALL(IF(masterlist!$B$2:$B$207=\"CCI\",IF(masterlist!$F$2:$F$207>0,IF(masterlist!$J$2:$J$207=0,ROW(masterlist!$B$2:$B$207)-ROW(masterlist!$B$2)+1))),ROWS($A$13:A16))),\"\")","v":"CCI-Cré-2-5"},{"$f":"IFERROR(VLOOKUP($A16,masterlist!$C$2:$AA$207,3,FALSE),\"\")","v":2},{"$f":"IFERROR(VLOOKUP($A16,masterlist!$C$2:$AA$207,2,FALSE),\"\")","v":"Création d’un groupe de travail intersectoriel sur la rage"},{"$f":"IFERROR(VLOOKUP($A16,masterlist!$C$2:$AD$207,28,FALSE),\"\")","v":"Inclure le secteur privé dans le groupe de travail intersectoriel."},{"$f":"IFERROR(IF((VLOOKUP($A16,masterlist!$C$2:$AA$207,9,FALSE))=0,\"\",VLOOKUP($A16,masterlist!$C$2:$AA$207,9,FALSE)),\"\")","v":"taskforce existe mais le secteur prive nest pas implique"},{"$f":"IFERROR(VLOOKUP($A16,masterlist!$C$2:$AA$207,20,FALSE),\"\")","v":"• Identifier les parties prenantes du secteur privé qui peuvent contribuer positivement aux efforts d'élimination de la rage dans le pays ;\n• Contacter les professionnels identifiés au sein du secteur privé et les inviter à participer à la task force, au comité ou au groupe de travail intersectoriel sur la rage ;\n• Confirmer leur intérêt et leur disponibilité à faire partie de la task force, du comité ou du groupe de travail intersectoriel sur la rage ;\n• Assurer la participation des parties prenantes concernées du secteur privé aux discussions et aux activités de la task force, du comité ou du groupe de travail intersectoriel sur la rage."},{"$f":"IFERROR(VLOOKUP($A16,masterlist!$C$2:$AA$207,21,FALSE),\"\")","v":"Private sector's role in the national rabies task force has been identified and participation has been ensured"},{"$f":"IFERROR(VLOOKUP($A16,masterlist!$C$2:$AA$207,22,FALSE),\"\")","v":"Groupe de travail multi-sectoriel"},{"$f":"IFERROR(IF($B$7=2,(VLOOKUP($A16,masterlist!$C$2:$AA$207,23,FALSE)-11),IF($B$7=4,(VLOOKUP($A16,masterlist!$C$2:$AA$207,23,FALSE)-9),IF($B$7=7,(VLOOKUP($A16,masterlist!$C$2:$AA$207,23,FALSE)-6),IF($B$7=10,(VLOOKUP($A16,masterlist!$C$2:$AA$207,23,FALSE)-3),(VLOOKUP($A16,masterlist!$C$2:$AA$207,23,FALSE)))))),\"\")","v":4},{"$f":"IFERROR(VLOOKUP($A16,masterlist!$C$2:$AA$207,24,FALSE),\"\")","v":"• Identification des parties prenantes du secteur privé susceptibles de contribuer à l'élimination de la rage.\n• Invitations et confirmations documentées de la participation du secteur privé.\n• Registres de la participation du secteur privé aux discussions et aux activités du groupe de travail."}]
[{"$f":"IF(ROWS($A$13:A17)<=(SUMPRODUCT((masterlist!B:B=\"CCI\")*(masterlist!J:J=0))),INDEX(masterlist!$C$2:$C$207,SMALL(IF(masterlist!$B$2:$B$207=\"CCI\",IF(masterlist!$F$2:$F$207>0,IF(masterlist!$J$2:$J$207=0,ROW(masterlist!$B$2:$B$207)-ROW(masterlist!$B$2)+1))),ROWS($A$13:A17))),\"\")","v":"CCI-Pro-2-8"},{"$f":"IFERROR(VLOOKUP($A17,masterlist!$C$2:$AA$207,3,FALSE),\"\")","v":2},{"$f":"IFERROR(VLOOKUP($A17,masterlist!$C$2:$AA$207,2,FALSE),\"\")","v":"Programme et stratégie nationales"},{"$f":"IFERROR(VLOOKUP($A17,masterlist!$C$2:$AD$207,28,FALSE),\"\")","v":"Rédiger et finaliser un plan stratégique national pour la rage."},{"$f":"IFERROR(IF((VLOOKUP($A17,masterlist!$C$2:$AA$207,9,FALSE))=0,\"\",VLOOKUP($A17,masterlist!$C$2:$AA$207,9,FALSE)),\"\")","v":""},{"$f":"IFERROR(VLOOKUP($A17,masterlist!$C$2:$AA$207,20,FALSE),\"\")","v":"• Accéder au modèle générique de plan stratégique national sur le site web de United Against Rabies (Tous unis contre la rage);\n• Personnaliser le modèle de plan stratégique national pour le centrer sur le pays ;\n• Envoyer le plan stratégique national personnalisé à toutes les parties prenantes concernées pour examen et commentaires ;\n• Incorporer les commentaires et finaliser le plan stratégique national ;\n• S'assurer que le plan stratégique national a été approuvé par toutes les parties prenantes concernées."},{"$f":"IFERROR(VLOOKUP($A17,masterlist!$C$2:$AA$207,21,FALSE),\"\")","v":"National rabies strategy developed in line with the Stepwise Appraoch towards Rabies Elimination (SARE) assessment;"},{"$f":"IFERROR(VLOOKUP($A17,masterlist!$C$2:$AA$207,22,FALSE),\"\")","v":"Groupe de travail multi-sectoriel"},{"$f":"IFERROR(IF($B$7=2,(VLOOKUP($A17,masterlist!$C$2:$AA$207,23,FALSE)-11),IF($B$7=4,(VLOOKUP($A17,masterlist!$C$2:$AA$207,23,FALSE)-9),IF($B$7=7,(VLOOKUP($A17,masterlist!$C$2:$AA$207,23,FALSE)-6),IF($B$7=10,(VLOOKUP($A17,masterlist!$C$2:$AA$207,23,FALSE)-3),(VLOOKUP($A17,masterlist!$C$2:$AA$207,23,FALSE)))))),\"\")","v":4},{"$f":"IFERROR(VLOOKUP($A17,masterlist!$C$2:$AA$207,24,FALSE),\"\")","v":"• Adaptation du modèle de plan stratégique national de United Against Rabies (tous unis contre la rage).\n• Plan stratégique national révisé et finalisé par les parties prenantes et intégrant leurs commentaires.\n• Approbation documentée du plan stratégique national par les parties prenantes."}]
[{"$f":"IF(ROWS($A$13:A18)<=(SUMPRODUCT((masterlist!B:B=\"CCI\")*(masterlist!J:J=0))),INDEX(masterlist!$C$2:$C$207,SMALL(IF(masterlist!$B$2:$B$207=\"CCI\",IF(masterlist!$F$2:$F$207>0,IF(masterlist!$J$2:$J$207=0,ROW(masterlist!$B$2:$B$207)-ROW(masterlist!$B$2)+1))),ROWS($A$13:A18))),\"\")","v":"CCI-Pro-2-9"},{"$f":"IFERROR(VLOOKUP($A18,masterlist!$C$2:$AA$207,3,FALSE),\"\")","v":2},{"$f":"IFERROR(VLOOKUP($A18,masterlist!$C$2:$AA$207,2,FALSE),\"\")","v":"Programme et stratégie nationales"},{"$f":"IFERROR(VLOOKUP($A18,masterlist!$C$2:$AD$207,28,FALSE),\"\")","v":"Garantir et allouer de manière appropriée les ressources gouvernementales pour soutenir le plan stratégique national de lutte contre la rage."},{"$f":"IFERROR(IF((VLOOKUP($A18,masterlist!$C$2:$AA$207,9,FALSE))=0,\"\",VLOOKUP($A18,masterlist!$C$2:$AA$207,9,FALSE)),\"\")","v":""},{"$f":"IFERROR(VLOOKUP($A18,masterlist!$C$2:$AA$207,20,FALSE),\"\")","v":"• Élaborer un budget pour le plan stratégique national en utilisant tous les outils ou méthodes de budgétisation pertinents ;\n• Identifier les sources de financement au sein du gouvernement ainsi que les autres parties prenantes concernées ;\n• S'assurer de l'adhésion et de l'approbation des autorités gouvernementales en ce qui concerne le budget du plan stratégique national ;\n• Assurer le financement du plan stratégique national officiel ;\n• Mettre en place des mécanismes permettant aux secteurs concernés d'allouer des fonds ou d'y accéder conformément au budget."},{"$f":"IFERROR(VLOOKUP($A18,masterlist!$C$2:$AA$207,21,FALSE),\"\")","v":"Resources, including financial support, has been secured for the implementation of the national rabies control strategy"},{"$f":"IFERROR(VLOOKUP($A18,masterlist!$C$2:$AA$207,22,FALSE),\"\")","v":"Groupe de travail multi-sectoriel"},{"$f":"IFERROR(IF($B$7=2,(VLOOKUP($A18,masterlist!$C$2:$AA$207,23,FALSE)-11),IF($B$7=4,(VLOOKUP($A18,masterlist!$C$2:$AA$207,23,FALSE)-9),IF($B$7=7,(VLOOKUP($A18,masterlist!$C$2:$AA$207,23,FALSE)-6),IF($B$7=10,(VLOOKUP($A18,masterlist!$C$2:$AA$207,23,FALSE)-3),(VLOOKUP($A18,masterlist!$C$2:$AA$207,23,FALSE)))))),\"\")","v":6},{"$f":"IFERROR(VLOOKUP($A18,masterlist!$C$2:$AA$207,24,FALSE),\"\")","v":"• Budget élaboré et approuvé pour le plan stratégique national.\n• Sources de financement au sein du gouvernement et des autres parties prenantes identifiées et assurées.\n• Mécanismes établis pour l'allocation et l'accès aux fonds conformément au plan."}]
[{"$f":"IF(ROWS($A$13:A19)<=(SUMPRODUCT((masterlist!B:B=\"CCI\")*(masterlist!J:J=0))),INDEX(masterlist!$C$2:$C$207,SMALL(IF(masterlist!$B$2:$B$207=\"CCI\",IF(masterlist!$F$2:$F$207>0,IF(masterlist!$J$2:$J$207=0,ROW(masterlist!$B$2:$B$207)-ROW(masterlist!$B$2)+1))),ROWS($A$13:A19))),\"\")","v":"CCI-Pro-3-10"},{"$f":"IFERROR(VLOOKUP($A19,masterlist!$C$2:$AA$207,3,FALSE),\"\")","v":3},{"$f":"IFERROR(VLOOKUP($A19,masterlist!$C$2:$AA$207,2,FALSE),\"\")","v":"Programme et stratégie nationales"},{"$f":"IFERROR(VLOOKUP($A19,masterlist!$C$2:$AD$207,28,FALSE),\"\")","v":"Maintenant qu'il y a très peu de cas de rage animale dans le pays, affiner la stratégie nationale sur la base des données actuelles."},{"$f":"IFERROR(IF((VLOOKUP($A19,masterlist!$C$2:$AA$207,9,FALSE))=0,\"\",VLOOKUP($A19,masterlist!$C$2:$AA$207,9,FALSE)),\"\")","v":""},{"$f":"IFERROR(VLOOKUP($A19,masterlist!$C$2:$AA$207,20,FALSE),\"\")","v":"• Évaluer les données de surveillance actuelles concernant la situation de la rage dans le pays ;\n• Discuter des prochaines étapes sur la base des données épidémiologiques actuelles avec la task force, le comité ou le groupe de travail intersectoriel sur la rage et toutes les autres parties prenantes concernées ;\n• Affiner le plan stratégique national sur la base des discussions et des données actuelles, y compris les nouveaux besoins budgétaires ;\n• S'assurer que toutes les mises à jour du plan stratégique national ont été approuvées ;\n• Publier les révisions et s'assurer que tous les professionnels sont au courant des mises à jour effectuées ;\n• Mettre en œuvre le plan stratégique national mis à jour."},{"$f":"IFERROR(VLOOKUP($A19,masterlist!$C$2:$AA$207,21,FALSE),\"\")","v":"The national rabies control strategy has been revised based on the most recent surveillance data, updated, costed, endorsed, disseminated to all relevant professionals, and the updates have been implemented;"},{"$f":"IFERROR(VLOOKUP($A19,masterlist!$C$2:$AA$207,22,FALSE),\"\")","v":"Groupe de travail multi-sectoriel"},{"$f":"IFERROR(IF($B$7=2,(VLOOKUP($A19,masterlist!$C$2:$AA$207,23,FALSE)-11),IF($B$7=4,(VLOOKUP($A19,masterlist!$C$2:$AA$207,23,FALSE)-9),IF($B$7=7,(VLOOKUP($A19,masterlist!$C$2:$AA$207,23,FALSE)-6),IF($B$7=10,(VLOOKUP($A19,masterlist!$C$2:$AA$207,23,FALSE)-3),(VLOOKUP($A19,masterlist!$C$2:$AA$207,23,FALSE)))))),\"\")","v":9},{"$f":"IFERROR(VLOOKUP($A19,masterlist!$C$2:$AA$207,24,FALSE),\"\")","v":"• Données épidémiologiques et de surveillance actuelles analysées et documentées.\n• Plan stratégique national mis à jour et affiné en fonction des nouvelles données et des besoins budgétaires.\n• Approbation documentée du plan révisé par les parties prenantes.\n• Stratégie actualisée publiée et diffusée auprès de tous les professionnels concernés.\n• Rapports de mise en œuvre reflétant l'application du plan stratégique national actualisé."}]
[{"$f":"IF(ROWS($A$13:A20)<=(SUMPRODUCT((masterlist!B:B=\"CCI\")*(masterlist!J:J=0))),INDEX(masterlist!$C$2:$C$207,SMALL(IF(masterlist!$B$2:$B$207=\"CCI\",IF(masterlist!$F$2:$F$207>0,IF(masterlist!$J$2:$J$207=0,ROW(masterlist!$B$2:$B$207)-ROW(masterlist!$B$2)+1))),ROWS($A$13:A20))),\"\")","v":""},{"$f":"IFERROR(VLOOKUP($A20,masterlist!$C$2:$AA$207,3,FALSE),\"\")","v":""},{"$f":"IFERROR(VLOOKUP($A20,masterlist!$C$2:$AA$207,2,FALSE),\"\")","v":""},{"$f":"IFERROR(VLOOKUP($A20,masterlist!$C$2:$AD$207,28,FALSE),\"\")","v":""},{"$f":"IFERROR(IF((VLOOKUP($A20,masterlist!$C$2:$AA$207,9,FALSE))=0,\"\",VLOOKUP($A20,masterlist!$C$2:$AA$207,9,FALSE)),\"\")","v":""},{"$f":"IFERROR(VLOOKUP($A20,masterlist!$C$2:$AA$207,20,FALSE),\"\")","v":""},{"$f":"IFERROR(VLOOKUP($A20,masterlist!$C$2:$AA$207,21,FALSE),\"\")","v":""},{"$f":"IFERROR(VLOOKUP($A20,masterlist!$C$2:$AA$207,22,FALSE),\"\")","v":""},{"$f":"IFERROR(IF($B$7=2,(VLOOKUP($A20,masterlist!$C$2:$AA$207,23,FALSE)-11),IF($B$7=4,(VLOOKUP($A20,masterlist!$C$2:$AA$207,23,FALSE)-9),IF($B$7=7,(VLOOKUP($A20,masterlist!$C$2:$AA$207,23,FALSE)-6),IF($B$7=10,(VLOOKUP($A20,masterlist!$C$2:$AA$207,23,FALSE)-3),(VLOOKUP($A20,masterlist!$C$2:$AA$207,23,FALSE)))))),\"\")","v":""},{"$f":"IFERROR(VLOOKUP($A20,masterlist!$C$2:$AA$207,24,FALSE),\"\")","v":""}]
[{"$f":"IF(ROWS($A$13:A21)<=(SUMPRODUCT((masterlist!B:B=\"CCI\")*(masterlist!J:J=0))),INDEX(masterlist!$C$2:$C$207,SMALL(IF(masterlist!$B$2:$B$207=\"CCI\",IF(masterlist!$F$2:$F$207>0,IF(masterlist!$J$2:$J$207=0,ROW(masterlist!$B$2:$B$207)-ROW(masterlist!$B$2)+1))),ROWS($A$13:A21))),\"\")","v":""},{"$f":"IFERROR(VLOOKUP($A21,masterlist!$C$2:$AA$207,3,FALSE),\"\")","v":""},{"$f":"IFERROR(VLOOKUP($A21,masterlist!$C$2:$AA$207,2,FALSE),\"\")","v":""},{"$f":"IFERROR(VLOOKUP($A21,masterlist!$C$2:$AD$207,28,FALSE),\"\")","v":""},{"$f":"IFERROR(IF((VLOOKUP($A21,masterlist!$C$2:$AA$207,9,FALSE))=0,\"\",VLOOKUP($A21,masterlist!$C$2:$AA$207,9,FALSE)),\"\")","v":""},{"$f":"IFERROR(VLOOKUP($A21,masterlist!$C$2:$AA$207,20,FALSE),\"\")","v":""},{"$f":"IFERROR(VLOOKUP($A21,masterlist!$C$2:$AA$207,21,FALSE),\"\")","v":""},{"$f":"IFERROR(VLOOKUP($A21,masterlist!$C$2:$AA$207,22,FALSE),\"\")","v":""},{"$f":"IFERROR(IF($B$7=2,(VLOOKUP($A21,masterlist!$C$2:$AA$207,23,FALSE)-11),IF($B$7=4,(VLOOKUP($A21,masterlist!$C$2:$AA$207,23,FALSE)-9),IF($B$7=7,(VLOOKUP($A21,masterlist!$C$2:$AA$207,23,FALSE)-6),IF($B$7=10,(VLOOKUP($A21,masterlist!$C$2:$AA$207,23,FALSE)-3),(VLOOKUP($A21,masterlist!$C$2:$AA$207,23,FALSE)))))),\"\")","v":""},{"$f":"IFERROR(VLOOKUP($A21,masterlist!$C$2:$AA$207,24,FALSE),\"\")","v":""}]
[{"$f":"IF(ROWS($A$13:A22)<=(SUMPRODUCT((masterlist!B:B=\"CCI\")*(masterlist!J:J=0))),INDEX(masterlist!$C$2:$C$207,SMALL(IF(masterlist!$B$2:$B$207=\"CCI\",IF(masterlist!$F$2:$F$207>0,IF(masterlist!$J$2:$J$207=0,ROW(masterlist!$B$2:$B$207)-ROW(masterlist!$B$2)+1))),ROWS($A$13:A22))),\"\")","v":""},{"$f":"IFERROR(VLOOKUP($A22,masterlist!$C$2:$AA$207,3,FALSE),\"\")","v":""},{"$f":"IFERROR(VLOOKUP($A22,masterlist!$C$2:$AA$207,2,FALSE),\"\")","v":""},{"$f":"IFERROR(VLOOKUP($A22,masterlist!$C$2:$AD$207,28,FALSE),\"\")","v":""},{"$f":"IFERROR(IF((VLOOKUP($A22,masterlist!$C$2:$AA$207,9,FALSE))=0,\"\",VLOOKUP($A22,masterlist!$C$2:$AA$207,9,FALSE)),\"\")","v":""},{"$f":"IFERROR(VLOOKUP($A22,masterlist!$C$2:$AA$207,20,FALSE),\"\")","v":""},{"$f":"IFERROR(VLOOKUP($A22,masterlist!$C$2:$AA$207,21,FALSE),\"\")","v":""},{"$f":"IFERROR(VLOOKUP($A22,masterlist!$C$2:$AA$207,22,FALSE),\"\")","v":""},{"$f":"IFERROR(IF($B$7=2,(VLOOKUP($A22,masterlist!$C$2:$AA$207,23,FALSE)-11),IF($B$7=4,(VLOOKUP($A22,masterlist!$C$2:$AA$207,23,FALSE)-9),IF($B$7=7,(VLOOKUP($A22,masterlist!$C$2:$AA$207,23,FALSE)-6),IF($B$7=10,(VLOOKUP($A22,masterlist!$C$2:$AA$207,23,FALSE)-3),(VLOOKUP($A22,masterlist!$C$2:$AA$207,23,FALSE)))))),\"\")","v":""},{"$f":"IFERROR(VLOOKUP($A22,masterlist!$C$2:$AA$207,24,FALSE),\"\")","v":""}]
[{"$f":"IF(ROWS($A$13:A23)<=(SUMPRODUCT((masterlist!B:B=\"CCI\")*(masterlist!J:J=0))),INDEX(masterlist!$C$2:$C$207,SMALL(IF(masterlist!$B$2:$B$207=\"CCI\",IF(masterlist!$F$2:$F$207>0,IF(masterlist!$J$2:$J$207=0,ROW(masterlist!$B$2:$B$207)-ROW(masterlist!$B$2)+1))),ROWS($A$13:A23))),\"\")","v":""},{"$f":"IFERROR(VLOOKUP($A23,masterlist!$C$2:$AA$207,3,FALSE),\"\")","v":""},{"$f":"IFERROR(VLOOKUP($A23,masterlist!$C$2:$AA$207,2,FALSE),\"\")","v":""},{"$f":"IFERROR(VLOOKUP($A23,masterlist!$C$2:$AD$207,28,FALSE),\"\")","v":""},{"$f":"IFERROR(IF((VLOOKUP($A23,masterlist!$C$2:$AA$207,9,FALSE))=0,\"\",VLOOKUP($A23,masterlist!$C$2:$AA$207,9,FALSE)),\"\")","v":""},{"$f":"IFERROR(VLOOKUP($A23,masterlist!$C$2:$AA$207,20,FALSE),\"\")","v":""},{"$f":"IFERROR(VLOOKUP($A23,masterlist!$C$2:$AA$207,21,FALSE),\"\")","v":""},{"$f":"IFERROR(VLOOKUP($A23,masterlist!$C$2:$AA$207,22,FALSE),\"\")","v":""},{"$f":"IFERROR(IF($B$7=2,(VLOOKUP($A23,masterlist!$C$2:$AA$207,23,FALSE)-11),IF($B$7=4,(VLOOKUP($A23,masterlist!$C$2:$AA$207,23,FALSE)-9),IF($B$7=7,(VLOOKUP($A23,masterlist!$C$2:$AA$207,23,FALSE)-6),IF($B$7=10,(VLOOKUP($A23,masterlist!$C$2:$AA$207,23,FALSE)-3),(VLOOKUP($A23,masterlist!$C$2:$AA$207,23,FALSE)))))),\"\")","v":""},{"$f":"IFERROR(VLOOKUP($A23,masterlist!$C$2:$AA$207,24,FALSE),\"\")","v":""}]
[{"$f":"IF(ROWS($A$13:A24)<=(SUMPRODUCT((masterlist!B:B=\"CCI\")*(masterlist!J:J=0))),INDEX(masterlist!$C$2:$C$207,SMALL(IF(masterlist!$B$2:$B$207=\"CCI\",IF(masterlist!$F$2:$F$207>0,IF(masterlist!$J$2:$J$207=0,ROW(masterlist!$B$2:$B$207)-ROW(masterlist!$B$2)+1))),ROWS($A$13:A24))),\"\")","v":""},{"$f":"IFERROR(VLOOKUP($A24,masterlist!$C$2:$AA$207,3,FALSE),\"\")","v":""},{"$f":"IFERROR(VLOOKUP($A24,masterlist!$C$2:$AA$207,2,FALSE),\"\")","v":""},{"$f":"IFERROR(VLOOKUP($A24,masterlist!$C$2:$AD$207,28,FALSE),\"\")","v":""},{"$f":"IFERROR(IF((VLOOKUP($A24,masterlist!$C$2:$AA$207,9,FALSE))=0,\"\",VLOOKUP($A24,masterlist!$C$2:$AA$207,9,FALSE)),\"\")","v":""},{"$f":"IFERROR(VLOOKUP($A24,masterlist!$C$2:$AA$207,20,FALSE),\"\")","v":""},{"$f":"IFERROR(VLOOKUP($A24,masterlist!$C$2:$AA$207,21,FALSE),\"\")","v":""},{"$f":"IFERROR(VLOOKUP($A24,masterlist!$C$2:$AA$207,22,FALSE),\"\")","v":""},{"$f":"IFERROR(IF($B$7=2,(VLOOKUP($A24,masterlist!$C$2:$AA$207,23,FALSE)-11),IF($B$7=4,(VLOOKUP($A24,masterlist!$C$2:$AA$207,23,FALSE)-9),IF($B$7=7,(VLOOKUP($A24,masterlist!$C$2:$AA$207,23,FALSE)-6),IF($B$7=10,(VLOOKUP($A24,masterlist!$C$2:$AA$207,23,FALSE)-3),(VLOOKUP($A24,masterlist!$C$2:$AA$207,23,FALSE)))))),\"\")","v":""},{"$f":"IFERROR(VLOOKUP($A24,masterlist!$C$2:$AA$207,24,FALSE),\"\")","v":""}]
[{"$f":"IF(ROWS($A$13:A25)<=(SUMPRODUCT((masterlist!B:B=\"CCI\")*(masterlist!J:J=0))),INDEX(masterlist!$C$2:$C$207,SMALL(IF(masterlist!$B$2:$B$207=\"CCI\",IF(masterlist!$F$2:$F$207>0,IF(masterlist!$J$2:$J$207=0,ROW(masterlist!$B$2:$B$207)-ROW(masterlist!$B$2)+1))),ROWS($A$13:A25))),\"\")","v":""},{"$f":"IFERROR(VLOOKUP($A25,masterlist!$C$2:$AA$207,3,FALSE),\"\")","v":""},{"$f":"IFERROR(VLOOKUP($A25,masterlist!$C$2:$AA$207,2,FALSE),\"\")","v":""},{"$f":"IFERROR(VLOOKUP($A25,masterlist!$C$2:$AD$207,28,FALSE),\"\")","v":""},{"$f":"IFERROR(IF((VLOOKUP($A25,masterlist!$C$2:$AA$207,9,FALSE))=0,\"\",VLOOKUP($A25,masterlist!$C$2:$AA$207,9,FALSE)),\"\")","v":""},{"$f":"IFERROR(VLOOKUP($A25,masterlist!$C$2:$AA$207,20,FALSE),\"\")","v":""},{"$f":"IFERROR(VLOOKUP($A25,masterlist!$C$2:$AA$207,21,FALSE),\"\")","v":""},{"$f":"IFERROR(VLOOKUP($A25,masterlist!$C$2:$AA$207,22,FALSE),\"\")","v":""},{"$f":"IFERROR(IF($B$7=2,(VLOOKUP($A25,masterlist!$C$2:$AA$207,23,FALSE)-11),IF($B$7=4,(VLOOKUP($A25,masterlist!$C$2:$AA$207,23,FALSE)-9),IF($B$7=7,(VLOOKUP($A25,masterlist!$C$2:$AA$207,23,FALSE)-6),IF($B$7=10,(VLOOKUP($A25,masterlist!$C$2:$AA$207,23,FALSE)-3),(VLOOKUP($A25,masterlist!$C$2:$AA$207,23,FALSE)))))),\"\")","v":""},{"$f":"IFERROR(VLOOKUP($A25,masterlist!$C$2:$AA$207,24,FALSE),\"\")","v":""}]
[{"$f":"IF(ROWS($A$13:A26)<=(SUMPRODUCT((masterlist!B:B=\"CCI\")*(masterlist!J:J=0))),INDEX(masterlist!$C$2:$C$207,SMALL(IF(masterlist!$B$2:$B$207=\"CCI\",IF(masterlist!$F$2:$F$207>0,IF(masterlist!$J$2:$J$207=0,ROW(masterlist!$B$2:$B$207)-ROW(masterlist!$B$2)+1))),ROWS($A$13:A26))),\"\")","v":""},{"$f":"IFERROR(VLOOKUP($A26,masterlist!$C$2:$AA$207,3,FALSE),\"\")","v":""},{"$f":"IFERROR(VLOOKUP($A26,masterlist!$C$2:$AA$207,2,FALSE),\"\")","v":""},{"$f":"IFERROR(VLOOKUP($A26,masterlist!$C$2:$AD$207,28,FALSE),\"\")","v":""},{"$f":"IFERROR(IF((VLOOKUP($A26,masterlist!$C$2:$AA$207,9,FALSE))=0,\"\",VLOOKUP($A26,masterlist!$C$2:$AA$207,9,FALSE)),\"\")","v":""},{"$f":"IFERROR(VLOOKUP($A26,masterlist!$C$2:$AA$207,20,FALSE),\"\")","v":""},{"$f":"IFERROR(VLOOKUP($A26,masterlist!$C$2:$AA$207,21,FALSE),\"\")","v":""},{"$f":"IFERROR(VLOOKUP($A26,masterlist!$C$2:$AA$207,22,FALSE),\"\")","v":""},{"$f":"IFERROR(IF($B$7=2,(VLOOKUP($A26,masterlist!$C$2:$AA$207,23,FALSE)-11),IF($B$7=4,(VLOOKUP($A26,masterlist!$C$2:$AA$207,23,FALSE)-9),IF($B$7=7,(VLOOKUP($A26,masterlist!$C$2:$AA$207,23,FALSE)-6),IF($B$7=10,(VLOOKUP($A26,masterlist!$C$2:$AA$207,23,FALSE)-3),(VLOOKUP($A26,masterlist!$C$2:$AA$207,23,FALSE)))))),\"\")","v":""},{"$f":"IFERROR(VLOOKUP($A26,masterlist!$C$2:$AA$207,24,FALSE),\"\")","v":""}]
[{"$f":"IF(ROWS($A$13:A27)<=(SUMPRODUCT((masterlist!B:B=\"CCI\")*(masterlist!J:J=0))),INDEX(masterlist!$C$2:$C$207,SMALL(IF(masterlist!$B$2:$B$207=\"CCI\",IF(masterlist!$F$2:$F$207>0,IF(masterlist!$J$2:$J$207=0,ROW(masterlist!$B$2:$B$207)-ROW(masterlist!$B$2)+1))),ROWS($A$13:A27))),\"\")","v":""},{"$f":"IFERROR(VLOOKUP($A27,masterlist!$C$2:$AA$207,3,FALSE),\"\")","v":""},{"$f":"IFERROR(VLOOKUP($A27,masterlist!$C$2:$AA$207,2,FALSE),\"\")","v":""},{"$f":"IFERROR(VLOOKUP($A27,masterlist!$C$2:$AD$207,28,FALSE),\"\")","v":""},{"$f":"IFERROR(IF((VLOOKUP($A27,masterlist!$C$2:$AA$207,9,FALSE))=0,\"\",VLOOKUP($A27,masterlist!$C$2:$AA$207,9,FALSE)),\"\")","v":""},{"$f":"IFERROR(VLOOKUP($A27,masterlist!$C$2:$AA$207,20,FALSE),\"\")","v":""},{"$f":"IFERROR(VLOOKUP($A27,masterlist!$C$2:$AA$207,21,FALSE),\"\")","v":""},{"$f":"IFERROR(VLOOKUP($A27,masterlist!$C$2:$AA$207,22,FALSE),\"\")","v":""},{"$f":"IFERROR(IF($B$7=2,(VLOOKUP($A27,masterlist!$C$2:$AA$207,23,FALSE)-11),IF($B$7=4,(VLOOKUP($A27,masterlist!$C$2:$AA$207,23,FALSE)-9),IF($B$7=7,(VLOOKUP($A27,masterlist!$C$2:$AA$207,23,FALSE)-6),IF($B$7=10,(VLOOKUP($A27,masterlist!$C$2:$AA$207,23,FALSE)-3),(VLOOKUP($A27,masterlist!$C$2:$AA$207,23,FALSE)))))),\"\")","v":""},{"$f":"IFERROR(VLOOKUP($A27,masterlist!$C$2:$AA$207,24,FALSE),\"\")","v":""}]
[{"$f":"IF(ROWS($A$13:A28)<=(SUMPRODUCT((masterlist!B:B=\"CCI\")*(masterlist!J:J=0))),INDEX(masterlist!$C$2:$C$207,SMALL(IF(masterlist!$B$2:$B$207=\"CCI\",IF(masterlist!$F$2:$F$207>0,IF(masterlist!$J$2:$J$207=0,ROW(masterlist!$B$2:$B$207)-ROW(masterlist!$B$2)+1))),ROWS($A$13:A28))),\"\")","v":""},{"$f":"IFERROR(VLOOKUP($A28,masterlist!$C$2:$AA$207,3,FALSE),\"\")","v":""},{"$f":"IFERROR(VLOOKUP($A28,masterlist!$C$2:$AA$207,2,FALSE),\"\")","v":""},{"$f":"IFERROR(VLOOKUP($A28,masterlist!$C$2:$AD$207,28,FALSE),\"\")","v":""},{"$f":"IFERROR(IF((VLOOKUP($A28,masterlist!$C$2:$AA$207,9,FALSE))=0,\"\",VLOOKUP($A28,masterlist!$C$2:$AA$207,9,FALSE)),\"\")","v":""},{"$f":"IFERROR(VLOOKUP($A28,masterlist!$C$2:$AA$207,20,FALSE),\"\")","v":""},{"$f":"IFERROR(VLOOKUP($A28,masterlist!$C$2:$AA$207,21,FALSE),\"\")","v":""},{"$f":"IFERROR(VLOOKUP($A28,masterlist!$C$2:$AA$207,22,FALSE),\"\")","v":""},{"$f":"IFERROR(IF($B$7=2,(VLOOKUP($A28,masterlist!$C$2:$AA$207,23,FALSE)-11),IF($B$7=4,(VLOOKUP($A28,masterlist!$C$2:$AA$207,23,FALSE)-9),IF($B$7=7,(VLOOKUP($A28,masterlist!$C$2:$AA$207,23,FALSE)-6),IF($B$7=10,(VLOOKUP($A28,masterlist!$C$2:$AA$207,23,FALSE)-3),(VLOOKUP($A28,masterlist!$C$2:$AA$207,23,FALSE)))))),\"\")","v":""},{"$f":"IFERROR(VLOOKUP($A28,masterlist!$C$2:$AA$207,24,FALSE),\"\")","v":""}]
[{"$f":"IF(ROWS($A$13:A29)<=(SUMPRODUCT((masterlist!B:B=\"CCI\")*(masterlist!J:J=0))),INDEX(masterlist!$C$2:$C$207,SMALL(IF(masterlist!$B$2:$B$207=\"CCI\",IF(masterlist!$F$2:$F$207>0,IF(masterlist!$J$2:$J$207=0,ROW(masterlist!$B$2:$B$207)-ROW(masterlist!$B$2)+1))),ROWS($A$13:A29))),\"\")","v":""},{"$f":"IFERROR(VLOOKUP($A29,masterlist!$C$2:$AA$207,3,FALSE),\"\")","v":""},{"$f":"IFERROR(VLOOKUP($A29,masterlist!$C$2:$AA$207,2,FALSE),\"\")","v":""},{"$f":"IFERROR(VLOOKUP($A29,masterlist!$C$2:$AD$207,28,FALSE),\"\")","v":""},{"$f":"IFERROR(IF((VLOOKUP($A29,masterlist!$C$2:$AA$207,9,FALSE))=0,\"\",VLOOKUP($A29,masterlist!$C$2:$AA$207,9,FALSE)),\"\")","v":""},{"$f":"IFERROR(VLOOKUP($A29,masterlist!$C$2:$AA$207,20,FALSE),\"\")","v":""},{"$f":"IFERROR(VLOOKUP($A29,masterlist!$C$2:$AA$207,21,FALSE),\"\")","v":""},{"$f":"IFERROR(VLOOKUP($A29,masterlist!$C$2:$AA$207,22,FALSE),\"\")","v":""},{"$f":"IFERROR(IF($B$7=2,(VLOOKUP($A29,masterlist!$C$2:$AA$207,23,FALSE)-11),IF($B$7=4,(VLOOKUP($A29,masterlist!$C$2:$AA$207,23,FALSE)-9),IF($B$7=7,(VLOOKUP($A29,masterlist!$C$2:$AA$207,23,FALSE)-6),IF($B$7=10,(VLOOKUP($A29,masterlist!$C$2:$AA$207,23,FALSE)-3),(VLOOKUP($A29,masterlist!$C$2:$AA$207,23,FALSE)))))),\"\")","v":""},{"$f":"IFERROR(VLOOKUP($A29,masterlist!$C$2:$AA$207,24,FALSE),\"\")","v":""}]
[{"$f":"IF(ROWS($A$13:A30)<=(SUMPRODUCT((masterlist!B:B=\"CCI\")*(masterlist!J:J=0))),INDEX(masterlist!$C$2:$C$207,SMALL(IF(masterlist!$B$2:$B$207=\"CCI\",IF(masterlist!$F$2:$F$207>0,IF(masterlist!$J$2:$J$207=0,ROW(masterlist!$B$2:$B$207)-ROW(masterlist!$B$2)+1))),ROWS($A$13:A30))),\"\")","v":""},{"$f":"IFERROR(VLOOKUP($A30,masterlist!$C$2:$AA$207,3,FALSE),\"\")","v":""},{"$f":"IFERROR(VLOOKUP($A30,masterlist!$C$2:$AA$207,2,FALSE),\"\")","v":""},{"$f":"IFERROR(VLOOKUP($A30,masterlist!$C$2:$AD$207,28,FALSE),\"\")","v":""},{"$f":"IFERROR(IF((VLOOKUP($A30,masterlist!$C$2:$AA$207,9,FALSE))=0,\"\",VLOOKUP($A30,masterlist!$C$2:$AA$207,9,FALSE)),\"\")","v":""},{"$f":"IFERROR(VLOOKUP($A30,masterlist!$C$2:$AA$207,20,FALSE),\"\")","v":""},{"$f":"IFERROR(VLOOKUP($A30,masterlist!$C$2:$AA$207,21,FALSE),\"\")","v":""},{"$f":"IFERROR(VLOOKUP($A30,masterlist!$C$2:$AA$207,22,FALSE),\"\")","v":""},{"$f":"IFERROR(IF($B$7=2,(VLOOKUP($A30,masterlist!$C$2:$AA$207,23,FALSE)-11),IF($B$7=4,(VLOOKUP($A30,masterlist!$C$2:$AA$207,23,FALSE)-9),IF($B$7=7,(VLOOKUP($A30,masterlist!$C$2:$AA$207,23,FALSE)-6),IF($B$7=10,(VLOOKUP($A30,masterlist!$C$2:$AA$207,23,FALSE)-3),(VLOOKUP($A30,masterlist!$C$2:$AA$207,23,FALSE)))))),\"\")","v":""},{"$f":"IFERROR(VLOOKUP($A30,masterlist!$C$2:$AA$207,24,FALSE),\"\")","v":""}]
[{"$f":"IF(ROWS($A$13:A31)<=(SUMPRODUCT((masterlist!B:B=\"CCI\")*(masterlist!J:J=0))),INDEX(masterlist!$C$2:$C$207,SMALL(IF(masterlist!$B$2:$B$207=\"CCI\",IF(masterlist!$F$2:$F$207>0,IF(masterlist!$J$2:$J$207=0,ROW(masterlist!$B$2:$B$207)-ROW(masterlist!$B$2)+1))),ROWS($A$13:A31))),\"\")","v":""},{"$f":"IFERROR(VLOOKUP($A31,masterlist!$C$2:$AA$207,3,FALSE),\"\")","v":""},{"$f":"IFERROR(VLOOKUP($A31,masterlist!$C$2:$AA$207,2,FALSE),\"\")","v":""},{"$f":"IFERROR(VLOOKUP($A31,masterlist!$C$2:$AD$207,28,FALSE),\"\")","v":""},{"$f":"IFERROR(IF((VLOOKUP($A31,masterlist!$C$2:$AA$207,9,FALSE))=0,\"\",VLOOKUP($A31,masterlist!$C$2:$AA$207,9,FALSE)),\"\")","v":""},{"$f":"IFERROR(VLOOKUP($A31,masterlist!$C$2:$AA$207,20,FALSE),\"\")","v":""},{"$f":"IFERROR(VLOOKUP($A31,masterlist!$C$2:$AA$207,21,FALSE),\"\")","v":""},{"$f":"IFERROR(VLOOKUP($A31,masterlist!$C$2:$AA$207,22,FALSE),\"\")","v":""},{"$f":"IFERROR(IF($B$7=2,(VLOOKUP($A31,masterlist!$C$2:$AA$207,23,FALSE)-11),IF($B$7=4,(VLOOKUP($A31,masterlist!$C$2:$AA$207,23,FALSE)-9),IF($B$7=7,(VLOOKUP($A31,masterlist!$C$2:$AA$207,23,FALSE)-6),IF($B$7=10,(VLOOKUP($A31,masterlist!$C$2:$AA$207,23,FALSE)-3),(VLOOKUP($A31,masterlist!$C$2:$AA$207,23,FALSE)))))),\"\")","v":""},{"$f":"IFERROR(VLOOKUP($A31,masterlist!$C$2:$AA$207,24,FALSE),\"\")","v":""}]
[{"$f":"IF(ROWS($A$13:A32)<=(SUMPRODUCT((masterlist!B:B=\"CCI\")*(masterlist!J:J=0))),INDEX(masterlist!$C$2:$C$207,SMALL(IF(masterlist!$B$2:$B$207=\"CCI\",IF(masterlist!$F$2:$F$207>0,IF(masterlist!$J$2:$J$207=0,ROW(masterlist!$B$2:$B$207)-ROW(masterlist!$B$2)+1))),ROWS($A$13:A32))),\"\")","v":""},{"$f":"IFERROR(VLOOKUP($A32,masterlist!$C$2:$AA$207,3,FALSE),\"\")","v":""},{"$f":"IFERROR(VLOOKUP($A32,masterlist!$C$2:$AA$207,2,FALSE),\"\")","v":""},{"$f":"IFERROR(VLOOKUP($A32,masterlist!$C$2:$AD$207,28,FALSE),\"\")","v":""},{"$f":"IFERROR(IF((VLOOKUP($A32,masterlist!$C$2:$AA$207,9,FALSE))=0,\"\",VLOOKUP($A32,masterlist!$C$2:$AA$207,9,FALSE)),\"\")","v":""},{"$f":"IFERROR(VLOOKUP($A32,masterlist!$C$2:$AA$207,20,FALSE),\"\")","v":""},{"$f":"IFERROR(VLOOKUP($A32,masterlist!$C$2:$AA$207,21,FALSE),\"\")","v":""},{"$f":"IFERROR(VLOOKUP($A32,masterlist!$C$2:$AA$207,22,FALSE),\"\")","v":""},{"$f":"IFERROR(IF($B$7=2,(VLOOKUP($A32,masterlist!$C$2:$AA$207,23,FALSE)-11),IF($B$7=4,(VLOOKUP($A32,masterlist!$C$2:$AA$207,23,FALSE)-9),IF($B$7=7,(VLOOKUP($A32,masterlist!$C$2:$AA$207,23,FALSE)-6),IF($B$7=10,(VLOOKUP($A32,masterlist!$C$2:$AA$207,23,FALSE)-3),(VLOOKUP($A32,masterlist!$C$2:$AA$207,23,FALSE)))))),\"\")","v":""},{"$f":"IFERROR(VLOOKUP($A32,masterlist!$C$2:$AA$207,24,FALSE),\"\")","v":""}]
[{"$f":"IF(ROWS($A$13:A33)<=(SUMPRODUCT((masterlist!B:B=\"CCI\")*(masterlist!J:J=0))),INDEX(masterlist!$C$2:$C$207,SMALL(IF(masterlist!$B$2:$B$207=\"CCI\",IF(masterlist!$F$2:$F$207>0,IF(masterlist!$J$2:$J$207=0,ROW(masterlist!$B$2:$B$207)-ROW(masterlist!$B$2)+1))),ROWS($A$13:A33))),\"\")","v":""},{"$f":"IFERROR(VLOOKUP($A33,masterlist!$C$2:$AA$207,3,FALSE),\"\")","v":""},{"$f":"IFERROR(VLOOKUP($A33,masterlist!$C$2:$AA$207,2,FALSE),\"\")","v":""},{"$f":"IFERROR(VLOOKUP($A33,masterlist!$C$2:$AD$207,28,FALSE),\"\")","v":""},{"$f":"IFERROR(IF((VLOOKUP($A33,masterlist!$C$2:$AA$207,9,FALSE))=0,\"\",VLOOKUP($A33,masterlist!$C$2:$AA$207,9,FALSE)),\"\")","v":""},{"$f":"IFERROR(VLOOKUP($A33,masterlist!$C$2:$AA$207,20,FALSE),\"\")","v":""},{"$f":"IFERROR(VLOOKUP($A33,masterlist!$C$2:$AA$207,21,FALSE),\"\")","v":""},{"$f":"IFERROR(VLOOKUP($A33,masterlist!$C$2:$AA$207,22,FALSE),\"\")","v":""},{"$f":"IFERROR(IF($B$7=2,(VLOOKUP($A33,masterlist!$C$2:$AA$207,23,FALSE)-11),IF($B$7=4,(VLOOKUP($A33,masterlist!$C$2:$AA$207,23,FALSE)-9),IF($B$7=7,(VLOOKUP($A33,masterlist!$C$2:$AA$207,23,FALSE)-6),IF($B$7=10,(VLOOKUP($A33,masterlist!$C$2:$AA$207,23,FALSE)-3),(VLOOKUP($A33,masterlist!$C$2:$AA$207,23,FALSE)))))),\"\")","v":""},{"$f":"IFERROR(VLOOKUP($A33,masterlist!$C$2:$AA$207,24,FALSE),\"\")","v":""}]
[{"$f":"IF(ROWS($A$13:A34)<=(SUMPRODUCT((masterlist!B:B=\"CCI\")*(masterlist!J:J=0))),INDEX(masterlist!$C$2:$C$207,SMALL(IF(masterlist!$B$2:$B$207=\"CCI\",IF(masterlist!$F$2:$F$207>0,IF(masterlist!$J$2:$J$207=0,ROW(masterlist!$B$2:$B$207)-ROW(masterlist!$B$2)+1))),ROWS($A$13:A34))),\"\")","v":""},{"$f":"IFERROR(VLOOKUP($A34,masterlist!$C$2:$AA$207,3,FALSE),\"\")","v":""},{"$f":"IFERROR(VLOOKUP($A34,masterlist!$C$2:$AA$207,2,FALSE),\"\")","v":""},{"$f":"IFERROR(VLOOKUP($A34,masterlist!$C$2:$AD$207,28,FALSE),\"\")","v":""},{"$f":"IFERROR(IF((VLOOKUP($A34,masterlist!$C$2:$AA$207,9,FALSE))=0,\"\",VLOOKUP($A34,masterlist!$C$2:$AA$207,9,FALSE)),\"\")","v":""},{"$f":"IFERROR(VLOOKUP($A34,masterlist!$C$2:$AA$207,20,FALSE),\"\")","v":""},{"$f":"IFERROR(VLOOKUP($A34,masterlist!$C$2:$AA$207,21,FALSE),\"\")","v":""},{"$f":"IFERROR(VLOOKUP($A34,masterlist!$C$2:$AA$207,22,FALSE),\"\")","v":""},{"$f":"IFERROR(IF($B$7=2,(VLOOKUP($A34,masterlist!$C$2:$AA$207,23,FALSE)-11),IF($B$7=4,(VLOOKUP($A34,masterlist!$C$2:$AA$207,23,FALSE)-9),IF($B$7=7,(VLOOKUP($A34,masterlist!$C$2:$AA$207,23,FALSE)-6),IF($B$7=10,(VLOOKUP($A34,masterlist!$C$2:$AA$207,23,FALSE)-3),(VLOOKUP($A34,masterlist!$C$2:$AA$207,23,FALSE)))))),\"\")","v":""},{"$f":"IFERROR(VLOOKUP($A34,masterlist!$C$2:$AA$207,24,FALSE),\"\")","v":""}]
[{"$f":"IF(ROWS($A$13:A35)<=(SUMPRODUCT((masterlist!B:B=\"CCI\")*(masterlist!J:J=0))),INDEX(masterlist!$C$2:$C$207,SMALL(IF(masterlist!$B$2:$B$207=\"CCI\",IF(masterlist!$F$2:$F$207>0,IF(masterlist!$J$2:$J$207=0,ROW(masterlist!$B$2:$B$207)-ROW(masterlist!$B$2)+1))),ROWS($A$13:A35))),\"\")","v":""},{"$f":"IFERROR(VLOOKUP($A35,masterlist!$C$2:$AA$207,3,FALSE),\"\")","v":""},{"$f":"IFERROR(VLOOKUP($A35,masterlist!$C$2:$AA$207,2,FALSE),\"\")","v":""},{"$f":"IFERROR(VLOOKUP($A35,masterlist!$C$2:$AD$207,28,FALSE),\"\")","v":""},{"$f":"IFERROR(IF((VLOOKUP($A35,masterlist!$C$2:$AA$207,9,FALSE))=0,\"\",VLOOKUP($A35,masterlist!$C$2:$AA$207,9,FALSE)),\"\")","v":""},{"$f":"IFERROR(VLOOKUP($A35,masterlist!$C$2:$AA$207,20,FALSE),\"\")","v":""},{"$f":"IFERROR(VLOOKUP($A35,masterlist!$C$2:$AA$207,21,FALSE),\"\")","v":""},{"$f":"IFERROR(VLOOKUP($A35,masterlist!$C$2:$AA$207,22,FALSE),\"\")","v":""},{"$f":"IFERROR(IF($B$7=2,(VLOOKUP($A35,masterlist!$C$2:$AA$207,23,FALSE)-11),IF($B$7=4,(VLOOKUP($A35,masterlist!$C$2:$AA$207,23,FALSE)-9),IF($B$7=7,(VLOOKUP($A35,masterlist!$C$2:$AA$207,23,FALSE)-6),IF($B$7=10,(VLOOKUP($A35,masterlist!$C$2:$AA$207,23,FALSE)-3),(VLOOKUP($A35,masterlist!$C$2:$AA$207,23,FALSE)))))),\"\")","v":""},{"$f":"IFERROR(VLOOKUP($A35,masterlist!$C$2:$AA$207,24,FALSE),\"\")","v":""}]
[{"$f":"IF(ROWS($A$13:A36)<=(SUMPRODUCT((masterlist!B:B=\"CCI\")*(masterlist!J:J=0))),INDEX(masterlist!$C$2:$C$207,SMALL(IF(masterlist!$B$2:$B$207=\"CCI\",IF(masterlist!$F$2:$F$207>0,IF(masterlist!$J$2:$J$207=0,ROW(masterlist!$B$2:$B$207)-ROW(masterlist!$B$2)+1))),ROWS($A$13:A36))),\"\")","v":""},{"$f":"IFERROR(VLOOKUP($A36,masterlist!$C$2:$AA$207,3,FALSE),\"\")","v":""},{"$f":"IFERROR(VLOOKUP($A36,masterlist!$C$2:$AA$207,2,FALSE),\"\")","v":""},{"$f":"IFERROR(VLOOKUP($A36,masterlist!$C$2:$AD$207,28,FALSE),\"\")","v":""},{"$f":"IFERROR(IF((VLOOKUP($A36,masterlist!$C$2:$AA$207,9,FALSE))=0,\"\",VLOOKUP($A36,masterlist!$C$2:$AA$207,9,FALSE)),\"\")","v":""},{"$f":"IFERROR(VLOOKUP($A36,masterlist!$C$2:$AA$207,20,FALSE),\"\")","v":""},{"$f":"IFERROR(VLOOKUP($A36,masterlist!$C$2:$AA$207,21,FALSE),\"\")","v":""},{"$f":"IFERROR(VLOOKUP($A36,masterlist!$C$2:$AA$207,22,FALSE),\"\")","v":""},{"$f":"IFERROR(IF($B$7=2,(VLOOKUP($A36,masterlist!$C$2:$AA$207,23,FALSE)-11),IF($B$7=4,(VLOOKUP($A36,masterlist!$C$2:$AA$207,23,FALSE)-9),IF($B$7=7,(VLOOKUP($A36,masterlist!$C$2:$AA$207,23,FALSE)-6),IF($B$7=10,(VLOOKUP($A36,masterlist!$C$2:$AA$207,23,FALSE)-3),(VLOOKUP($A36,masterlist!$C$2:$AA$207,23,FALSE)))))),\"\")","v":""},{"$f":"IFERROR(VLOOKUP($A36,masterlist!$C$2:$AA$207,24,FALSE),\"\")","v":""}]
[{"$f":"IF(ROWS($A$13:A37)<=(SUMPRODUCT((masterlist!B:B=\"CCI\")*(masterlist!J:J=0))),INDEX(masterlist!$C$2:$C$207,SMALL(IF(masterlist!$B$2:$B$207=\"CCI\",IF(masterlist!$F$2:$F$207>0,IF(masterlist!$J$2:$J$207=0,ROW(masterlist!$B$2:$B$207)-ROW(masterlist!$B$2)+1))),ROWS($A$13:A37))),\"\")","v":""},{"$f":"IFERROR(VLOOKUP($A37,masterlist!$C$2:$AA$207,3,FALSE),\"\")","v":""},{"$f":"IFERROR(VLOOKUP($A37,masterlist!$C$2:$AA$207,2,FALSE),\"\")","v":""},{"$f":"IFERROR(VLOOKUP($A37,masterlist!$C$2:$AD$207,28,FALSE),\"\")","v":""},{"$f":"IFERROR(IF((VLOOKUP($A37,masterlist!$C$2:$AA$207,9,FALSE))=0,\"\",VLOOKUP($A37,masterlist!$C$2:$AA$207,9,FALSE)),\"\")","v":""},{"$f":"IFERROR(VLOOKUP($A37,masterlist!$C$2:$AA$207,20,FALSE),\"\")","v":""},{"$f":"IFERROR(VLOOKUP($A37,masterlist!$C$2:$AA$207,21,FALSE),\"\")","v":""},{"$f":"IFERROR(VLOOKUP($A37,masterlist!$C$2:$AA$207,22,FALSE),\"\")","v":""},{"$f":"IFERROR(IF($B$7=2,(VLOOKUP($A37,masterlist!$C$2:$AA$207,23,FALSE)-11),IF($B$7=4,(VLOOKUP($A37,masterlist!$C$2:$AA$207,23,FALSE)-9),IF($B$7=7,(VLOOKUP($A37,masterlist!$C$2:$AA$207,23,FALSE)-6),IF($B$7=10,(VLOOKUP($A37,masterlist!$C$2:$AA$207,23,FALSE)-3),(VLOOKUP($A37,masterlist!$C$2:$AA$207,23,FALSE)))))),\"\")","v":""},{"$f":"IFERROR(VLOOKUP($A37,masterlist!$C$2:$AA$207,24,FALSE),\"\")","v":""}]
[{"$f":"IF(ROWS($A$13:A38)<=(SUMPRODUCT((masterlist!B:B=\"CCI\")*(masterlist!J:J=0))),INDEX(masterlist!$C$2:$C$207,SMALL(IF(masterlist!$B$2:$B$207=\"CCI\",IF(masterlist!$F$2:$F$207>0,IF(masterlist!$J$2:$J$207=0,ROW(masterlist!$B$2:$B$207)-ROW(masterlist!$B$2)+1))),ROWS($A$13:A38))),\"\")","v":""},{"$f":"IFERROR(VLOOKUP($A38,masterlist!$C$2:$AA$207,3,FALSE),\"\")","v":""},{"$f":"IFERROR(VLOOKUP($A38,masterlist!$C$2:$AA$207,2,FALSE),\"\")","v":""},{"$f":"IFERROR(VLOOKUP($A38,masterlist!$C$2:$AD$207,28,FALSE),\"\")","v":""},{"$f":"IFERROR(IF((VLOOKUP($A38,masterlist!$C$2:$AA$207,9,FALSE))=0,\"\",VLOOKUP($A38,masterlist!$C$2:$AA$207,9,FALSE)),\"\")","v":""},{"$f":"IFERROR(VLOOKUP($A38,masterlist!$C$2:$AA$207,20,FALSE),\"\")","v":""},{"$f":"IFERROR(VLOOKUP($A38,masterlist!$C$2:$AA$207,21,FALSE),\"\")","v":""},{"$f":"IFERROR(VLOOKUP($A38,masterlist!$C$2:$AA$207,22,FALSE),\"\")","v":""},{"$f":"IFERROR(IF($B$7=2,(VLOOKUP($A38,masterlist!$C$2:$AA$207,23,FALSE)-11),IF($B$7=4,(VLOOKUP($A38,masterlist!$C$2:$AA$207,23,FALSE)-9),IF($B$7=7,(VLOOKUP($A38,masterlist!$C$2:$AA$207,23,FALSE)-6),IF($B$7=10,(VLOOKUP($A38,masterlist!$C$2:$AA$207,23,FALSE)-3),(VLOOKUP($A38,masterlist!$C$2:$AA$207,23,FALSE)))))),\"\")","v":""},{"$f":"IFERROR(VLOOKUP($A38,masterlist!$C$2:$AA$207,24,FALSE),\"\")","v":""}]
[{"$f":"IF(ROWS($A$13:A39)<=(SUMPRODUCT((masterlist!B:B=\"CCI\")*(masterlist!J:J=0))),INDEX(masterlist!$C$2:$C$207,SMALL(IF(masterlist!$B$2:$B$207=\"CCI\",IF(masterlist!$F$2:$F$207>0,IF(masterlist!$J$2:$J$207=0,ROW(masterlist!$B$2:$B$207)-ROW(masterlist!$B$2)+1))),ROWS($A$13:A39))),\"\")","v":""},{"$f":"IFERROR(VLOOKUP($A39,masterlist!$C$2:$AA$207,3,FALSE),\"\")","v":""},{"$f":"IFERROR(VLOOKUP($A39,masterlist!$C$2:$AA$207,2,FALSE),\"\")","v":""},{"$f":"IFERROR(VLOOKUP($A39,masterlist!$C$2:$AD$207,28,FALSE),\"\")","v":""},{"$f":"IFERROR(IF((VLOOKUP($A39,masterlist!$C$2:$AA$207,9,FALSE))=0,\"\",VLOOKUP($A39,masterlist!$C$2:$AA$207,9,FALSE)),\"\")","v":""},{"$f":"IFERROR(VLOOKUP($A39,masterlist!$C$2:$AA$207,20,FALSE),\"\")","v":""},{"$f":"IFERROR(VLOOKUP($A39,masterlist!$C$2:$AA$207,21,FALSE),\"\")","v":""},{"$f":"IFERROR(VLOOKUP($A39,masterlist!$C$2:$AA$207,22,FALSE),\"\")","v":""},{"$f":"IFERROR(IF($B$7=2,(VLOOKUP($A39,masterlist!$C$2:$AA$207,23,FALSE)-11),IF($B$7=4,(VLOOKUP($A39,masterlist!$C$2:$AA$207,23,FALSE)-9),IF($B$7=7,(VLOOKUP($A39,masterlist!$C$2:$AA$207,23,FALSE)-6),IF($B$7=10,(VLOOKUP($A39,masterlist!$C$2:$AA$207,23,FALSE)-3),(VLOOKUP($A39,masterlist!$C$2:$AA$207,23,FALSE)))))),\"\")","v":""},{"$f":"IFERROR(VLOOKUP($A39,masterlist!$C$2:$AA$207,24,FALSE),\"\")","v":""}]
[{"$f":"IF(ROWS($A$13:A40)<=(SUMPRODUCT((masterlist!B:B=\"CCI\")*(masterlist!J:J=0))),INDEX(masterlist!$C$2:$C$207,SMALL(IF(masterlist!$B$2:$B$207=\"CCI\",IF(masterlist!$F$2:$F$207>0,IF(masterlist!$J$2:$J$207=0,ROW(masterlist!$B$2:$B$207)-ROW(masterlist!$B$2)+1))),ROWS($A$13:A40))),\"\")","v":""},{"$f":"IFERROR(VLOOKUP($A40,masterlist!$C$2:$AA$207,3,FALSE),\"\")","v":""},{"$f":"IFERROR(VLOOKUP($A40,masterlist!$C$2:$AA$207,2,FALSE),\"\")","v":""},{"$f":"IFERROR(VLOOKUP($A40,masterlist!$C$2:$AD$207,28,FALSE),\"\")","v":""},{"$f":"IFERROR(IF((VLOOKUP($A40,masterlist!$C$2:$AA$207,9,FALSE))=0,\"\",VLOOKUP($A40,masterlist!$C$2:$AA$207,9,FALSE)),\"\")","v":""},{"$f":"IFERROR(VLOOKUP($A40,masterlist!$C$2:$AA$207,20,FALSE),\"\")","v":""},{"$f":"IFERROR(VLOOKUP($A40,masterlist!$C$2:$AA$207,21,FALSE),\"\")","v":""},{"$f":"IFERROR(VLOOKUP($A40,masterlist!$C$2:$AA$207,22,FALSE),\"\")","v":""},{"$f":"IFERROR(IF($B$7=2,(VLOOKUP($A40,masterlist!$C$2:$AA$207,23,FALSE)-11),IF($B$7=4,(VLOOKUP($A40,masterlist!$C$2:$AA$207,23,FALSE)-9),IF($B$7=7,(VLOOKUP($A40,masterlist!$C$2:$AA$207,23,FALSE)-6),IF($B$7=10,(VLOOKUP($A40,masterlist!$C$2:$AA$207,23,FALSE)-3),(VLOOKUP($A40,masterlist!$C$2:$AA$207,23,FALSE)))))),\"\")","v":""},{"$f":"IFERROR(VLOOKUP($A40,masterlist!$C$2:$AA$207,24,FALSE),\"\")","v":""}]
[{"$f":"IF(ROWS($A$13:A41)<=(SUMPRODUCT((masterlist!B:B=\"CCI\")*(masterlist!J:J=0))),INDEX(masterlist!$C$2:$C$207,SMALL(IF(masterlist!$B$2:$B$207=\"CCI\",IF(masterlist!$F$2:$F$207>0,IF(masterlist!$J$2:$J$207=0,ROW(masterlist!$B$2:$B$207)-ROW(masterlist!$B$2)+1))),ROWS($A$13:A41))),\"\")","v":""},{"$f":"IFERROR(VLOOKUP($A41,masterlist!$C$2:$AA$207,3,FALSE),\"\")","v":""},{"$f":"IFERROR(VLOOKUP($A41,masterlist!$C$2:$AA$207,2,FALSE),\"\")","v":""},{"$f":"IFERROR(VLOOKUP($A41,masterlist!$C$2:$AD$207,28,FALSE),\"\")","v":""},{"$f":"IFERROR(IF((VLOOKUP($A41,masterlist!$C$2:$AA$207,9,FALSE))=0,\"\",VLOOKUP($A41,masterlist!$C$2:$AA$207,9,FALSE)),\"\")","v":""},{"$f":"IFERROR(VLOOKUP($A41,masterlist!$C$2:$AA$207,20,FALSE),\"\")","v":""},{"$f":"IFERROR(VLOOKUP($A41,masterlist!$C$2:$AA$207,21,FALSE),\"\")","v":""},{"$f":"IFERROR(VLOOKUP($A41,masterlist!$C$2:$AA$207,22,FALSE),\"\")","v":""},{"$f":"IFERROR(IF($B$7=2,(VLOOKUP($A41,masterlist!$C$2:$AA$207,23,FALSE)-11),IF($B$7=4,(VLOOKUP($A41,masterlist!$C$2:$AA$207,23,FALSE)-9),IF($B$7=7,(VLOOKUP($A41,masterlist!$C$2:$AA$207,23,FALSE)-6),IF($B$7=10,(VLOOKUP($A41,masterlist!$C$2:$AA$207,23,FALSE)-3),(VLOOKUP($A41,masterlist!$C$2:$AA$207,23,FALSE)))))),\"\")","v":""},{"$f":"IFERROR(VLOOKUP($A41,masterlist!$C$2:$AA$207,24,FALSE),\"\")","v":""}]
[{"$f":"IF(ROWS($A$13:A42)<=(SUMPRODUCT((masterlist!B:B=\"CCI\")*(masterlist!J:J=0))),INDEX(masterlist!$C$2:$C$207,SMALL(IF(masterlist!$B$2:$B$207=\"CCI\",IF(masterlist!$F$2:$F$207>0,IF(masterlist!$J$2:$J$207=0,ROW(masterlist!$B$2:$B$207)-ROW(masterlist!$B$2)+1))),ROWS($A$13:A42))),\"\")","v":""},{"$f":"IFERROR(VLOOKUP($A42,masterlist!$C$2:$AA$207,3,FALSE),\"\")","v":""},{"$f":"IFERROR(VLOOKUP($A42,masterlist!$C$2:$AA$207,2,FALSE),\"\")","v":""},{"$f":"IFERROR(VLOOKUP($A42,masterlist!$C$2:$AD$207,28,FALSE),\"\")","v":""},{"$f":"IFERROR(IF((VLOOKUP($A42,masterlist!$C$2:$AA$207,9,FALSE))=0,\"\",VLOOKUP($A42,masterlist!$C$2:$AA$207,9,FALSE)),\"\")","v":""},{"$f":"IFERROR(VLOOKUP($A42,masterlist!$C$2:$AA$207,20,FALSE),\"\")","v":""},{"$f":"IFERROR(VLOOKUP($A42,masterlist!$C$2:$AA$207,21,FALSE),\"\")","v":""},{"$f":"IFERROR(VLOOKUP($A42,masterlist!$C$2:$AA$207,22,FALSE),\"\")","v":""},{"$f":"IFERROR(IF($B$7=2,(VLOOKUP($A42,masterlist!$C$2:$AA$207,23,FALSE)-11),IF($B$7=4,(VLOOKUP($A42,masterlist!$C$2:$AA$207,23,FALSE)-9),IF($B$7=7,(VLOOKUP($A42,masterlist!$C$2:$AA$207,23,FALSE)-6),IF($B$7=10,(VLOOKUP($A42,masterlist!$C$2:$AA$207,23,FALSE)-3),(VLOOKUP($A42,masterlist!$C$2:$AA$207,23,FALSE)))))),\"\")","v":""},{"$f":"IFERROR(VLOOKUP($A42,masterlist!$C$2:$AA$207,24,FALSE),\"\")","v":""}]
[{"$f":"IF(ROWS($A$13:A43)<=(SUMPRODUCT((masterlist!B:B=\"CCI\")*(masterlist!J:J=0))),INDEX(masterlist!$C$2:$C$207,SMALL(IF(masterlist!$B$2:$B$207=\"CCI\",IF(masterlist!$F$2:$F$207>0,IF(masterlist!$J$2:$J$207=0,ROW(masterlist!$B$2:$B$207)-ROW(masterlist!$B$2)+1))),ROWS($A$13:A43))),\"\")","v":""},{"$f":"IFERROR(VLOOKUP($A43,masterlist!$C$2:$AA$207,3,FALSE),\"\")","v":""},{"$f":"IFERROR(VLOOKUP($A43,masterlist!$C$2:$AA$207,2,FALSE),\"\")","v":""},{"$f":"IFERROR(VLOOKUP($A43,masterlist!$C$2:$AD$207,28,FALSE),\"\")","v":""},{"$f":"IFERROR(IF((VLOOKUP($A43,masterlist!$C$2:$AA$207,9,FALSE))=0,\"\",VLOOKUP($A43,masterlist!$C$2:$AA$207,9,FALSE)),\"\")","v":""},{"$f":"IFERROR(VLOOKUP($A43,masterlist!$C$2:$AA$207,20,FALSE),\"\")","v":""},{"$f":"IFERROR(VLOOKUP($A43,masterlist!$C$2:$AA$207,21,FALSE),\"\")","v":""},{"$f":"IFERROR(VLOOKUP($A43,masterlist!$C$2:$AA$207,22,FALSE),\"\")","v":""},{"$f":"IFERROR(IF($B$7=2,(VLOOKUP($A43,masterlist!$C$2:$AA$207,23,FALSE)-11),IF($B$7=4,(VLOOKUP($A43,masterlist!$C$2:$AA$207,23,FALSE)-9),IF($B$7=7,(VLOOKUP($A43,masterlist!$C$2:$AA$207,23,FALSE)-6),IF($B$7=10,(VLOOKUP($A43,masterlist!$C$2:$AA$207,23,FALSE)-3),(VLOOKUP($A43,masterlist!$C$2:$AA$207,23,FALSE)))))),\"\")","v":""},{"$f":"IFERROR(VLOOKUP($A43,masterlist!$C$2:$AA$207,24,FALSE),\"\")","v":""}]
[{"$f":"IF(ROWS($A$13:A44)<=(SUMPRODUCT((masterlist!B:B=\"CCI\")*(masterlist!J:J=0))),INDEX(masterlist!$C$2:$C$207,SMALL(IF(masterlist!$B$2:$B$207=\"CCI\",IF(masterlist!$F$2:$F$207>0,IF(masterlist!$J$2:$J$207=0,ROW(masterlist!$B$2:$B$207)-ROW(masterlist!$B$2)+1))),ROWS($A$13:A44))),\"\")","v":""},{"$f":"IFERROR(VLOOKUP($A44,masterlist!$C$2:$AA$207,3,FALSE),\"\")","v":""},{"$f":"IFERROR(VLOOKUP($A44,masterlist!$C$2:$AA$207,2,FALSE),\"\")","v":""},{"$f":"IFERROR(VLOOKUP($A44,masterlist!$C$2:$AD$207,28,FALSE),\"\")","v":""},{"$f":"IFERROR(IF((VLOOKUP($A44,masterlist!$C$2:$AA$207,9,FALSE))=0,\"\",VLOOKUP($A44,masterlist!$C$2:$AA$207,9,FALSE)),\"\")","v":""},{"$f":"IFERROR(VLOOKUP($A44,masterlist!$C$2:$AA$207,20,FALSE),\"\")","v":""},{"$f":"IFERROR(VLOOKUP($A44,masterlist!$C$2:$AA$207,21,FALSE),\"\")","v":""},{"$f":"IFERROR(VLOOKUP($A44,masterlist!$C$2:$AA$207,22,FALSE),\"\")","v":""},{"$f":"IFERROR(IF($B$7=2,(VLOOKUP($A44,masterlist!$C$2:$AA$207,23,FALSE)-11),IF($B$7=4,(VLOOKUP($A44,masterlist!$C$2:$AA$207,23,FALSE)-9),IF($B$7=7,(VLOOKUP($A44,masterlist!$C$2:$AA$207,23,FALSE)-6),IF($B$7=10,(VLOOKUP($A44,masterlist!$C$2:$AA$207,23,FALSE)-3),(VLOOKUP($A44,masterlist!$C$2:$AA$207,23,FALSE)))))),\"\")","v":""},{"$f":"IFERROR(VLOOKUP($A44,masterlist!$C$2:$AA$207,24,FALSE),\"\")","v":""}]
[{"$f":"IF(ROWS($A$13:A45)<=(SUMPRODUCT((masterlist!B:B=\"CCI\")*(masterlist!J:J=0))),INDEX(masterlist!$C$2:$C$207,SMALL(IF(masterlist!$B$2:$B$207=\"CCI\",IF(masterlist!$F$2:$F$207>0,IF(masterlist!$J$2:$J$207=0,ROW(masterlist!$B$2:$B$207)-ROW(masterlist!$B$2)+1))),ROWS($A$13:A45))),\"\")","v":""},{"$f":"IFERROR(VLOOKUP($A45,masterlist!$C$2:$AA$207,3,FALSE),\"\")","v":""},{"$f":"IFERROR(VLOOKUP($A45,masterlist!$C$2:$AA$207,2,FALSE),\"\")","v":""},{"$f":"IFERROR(VLOOKUP($A45,masterlist!$C$2:$AD$207,28,FALSE),\"\")","v":""},{"$f":"IFERROR(IF((VLOOKUP($A45,masterlist!$C$2:$AA$207,9,FALSE))=0,\"\",VLOOKUP($A45,masterlist!$C$2:$AA$207,9,FALSE)),\"\")","v":""},{"$f":"IFERROR(VLOOKUP($A45,masterlist!$C$2:$AA$207,20,FALSE),\"\")","v":""},{"$f":"IFERROR(VLOOKUP($A45,masterlist!$C$2:$AA$207,21,FALSE),\"\")","v":""},{"$f":"IFERROR(VLOOKUP($A45,masterlist!$C$2:$AA$207,22,FALSE),\"\")","v":""},{"$f":"IFERROR(IF($B$7=2,(VLOOKUP($A45,masterlist!$C$2:$AA$207,23,FALSE)-11),IF($B$7=4,(VLOOKUP($A45,masterlist!$C$2:$AA$207,23,FALSE)-9),IF($B$7=7,(VLOOKUP($A45,masterlist!$C$2:$AA$207,23,FALSE)-6),IF($B$7=10,(VLOOKUP($A45,masterlist!$C$2:$AA$207,23,FALSE)-3),(VLOOKUP($A45,masterlist!$C$2:$AA$207,23,FALSE)))))),\"\")","v":""},{"$f":"IFERROR(VLOOKUP($A45,masterlist!$C$2:$AA$207,24,FALSE),\"\")","v":""}]
[{"$f":"IF(ROWS($A$13:A46)<=(SUMPRODUCT((masterlist!B:B=\"CCI\")*(masterlist!J:J=0))),INDEX(masterlist!$C$2:$C$207,SMALL(IF(masterlist!$B$2:$B$207=\"CCI\",IF(masterlist!$F$2:$F$207>0,IF(masterlist!$J$2:$J$207=0,ROW(masterlist!$B$2:$B$207)-ROW(masterlist!$B$2)+1))),ROWS($A$13:A46))),\"\")","v":""},{"$f":"IFERROR(VLOOKUP($A46,masterlist!$C$2:$AA$207,3,FALSE),\"\")","v":""},{"$f":"IFERROR(VLOOKUP($A46,masterlist!$C$2:$AA$207,2,FALSE),\"\")","v":""},{"$f":"IFERROR(VLOOKUP($A46,masterlist!$C$2:$AD$207,28,FALSE),\"\")","v":""},{"$f":"IFERROR(IF((VLOOKUP($A46,masterlist!$C$2:$AA$207,9,FALSE))=0,\"\",VLOOKUP($A46,masterlist!$C$2:$AA$207,9,FALSE)),\"\")","v":""},{"$f":"IFERROR(VLOOKUP($A46,masterlist!$C$2:$AA$207,20,FALSE),\"\")","v":""},{"$f":"IFERROR(VLOOKUP($A46,masterlist!$C$2:$AA$207,21,FALSE),\"\")","v":""},{"$f":"IFERROR(VLOOKUP($A46,masterlist!$C$2:$AA$207,22,FALSE),\"\")","v":""},{"$f":"IFERROR(IF($B$7=2,(VLOOKUP($A46,masterlist!$C$2:$AA$207,23,FALSE)-11),IF($B$7=4,(VLOOKUP($A46,masterlist!$C$2:$AA$207,23,FALSE)-9),IF($B$7=7,(VLOOKUP($A46,masterlist!$C$2:$AA$207,23,FALSE)-6),IF($B$7=10,(VLOOKUP($A46,masterlist!$C$2:$AA$207,23,FALSE)-3),(VLOOKUP($A46,masterlist!$C$2:$AA$207,23,FALSE)))))),\"\")","v":""},{"$f":"IFERROR(VLOOKUP($A46,masterlist!$C$2:$AA$207,24,FALSE),\"\")","v":""}]
[{"$f":"IF(ROWS($A$13:A47)<=(SUMPRODUCT((masterlist!B:B=\"CCI\")*(masterlist!J:J=0))),INDEX(masterlist!$C$2:$C$207,SMALL(IF(masterlist!$B$2:$B$207=\"CCI\",IF(masterlist!$F$2:$F$207>0,IF(masterlist!$J$2:$J$207=0,ROW(masterlist!$B$2:$B$207)-ROW(masterlist!$B$2)+1))),ROWS($A$13:A47))),\"\")","v":""},{"$f":"IFERROR(VLOOKUP($A47,masterlist!$C$2:$AA$207,3,FALSE),\"\")","v":""},{"$f":"IFERROR(VLOOKUP($A47,masterlist!$C$2:$AA$207,2,FALSE),\"\")","v":""},{"$f":"IFERROR(VLOOKUP($A47,masterlist!$C$2:$AD$207,28,FALSE),\"\")","v":""},{"$f":"IFERROR(IF((VLOOKUP($A47,masterlist!$C$2:$AA$207,9,FALSE))=0,\"\",VLOOKUP($A47,masterlist!$C$2:$AA$207,9,FALSE)),\"\")","v":""},{"$f":"IFERROR(VLOOKUP($A47,masterlist!$C$2:$AA$207,20,FALSE),\"\")","v":""},{"$f":"IFERROR(VLOOKUP($A47,masterlist!$C$2:$AA$207,21,FALSE),\"\")","v":""},{"$f":"IFERROR(VLOOKUP($A47,masterlist!$C$2:$AA$207,22,FALSE),\"\")","v":""},{"$f":"IFERROR(IF($B$7=2,(VLOOKUP($A47,masterlist!$C$2:$AA$207,23,FALSE)-11),IF($B$7=4,(VLOOKUP($A47,masterlist!$C$2:$AA$207,23,FALSE)-9),IF($B$7=7,(VLOOKUP($A47,masterlist!$C$2:$AA$207,23,FALSE)-6),IF($B$7=10,(VLOOKUP($A47,masterlist!$C$2:$AA$207,23,FALSE)-3),(VLOOKUP($A47,masterlist!$C$2:$AA$207,23,FALSE)))))),\"\")","v":""},{"$f":"IFERROR(VLOOKUP($A47,masterlist!$C$2:$AA$207,24,FALSE),\"\")","v":""}]
[{"$f":"IF(ROWS($A$13:A48)<=(SUMPRODUCT((masterlist!B:B=\"CCI\")*(masterlist!J:J=0))),INDEX(masterlist!$C$2:$C$207,SMALL(IF(masterlist!$B$2:$B$207=\"CCI\",IF(masterlist!$F$2:$F$207>0,IF(masterlist!$J$2:$J$207=0,ROW(masterlist!$B$2:$B$207)-ROW(masterlist!$B$2)+1))),ROWS($A$13:A48))),\"\")","v":""},{"$f":"IFERROR(VLOOKUP($A48,masterlist!$C$2:$AA$207,3,FALSE),\"\")","v":""},{"$f":"IFERROR(VLOOKUP($A48,masterlist!$C$2:$AA$207,2,FALSE),\"\")","v":""},{"$f":"IFERROR(VLOOKUP($A48,masterlist!$C$2:$AD$207,28,FALSE),\"\")","v":""},{"$f":"IFERROR(IF((VLOOKUP($A48,masterlist!$C$2:$AA$207,9,FALSE))=0,\"\",VLOOKUP($A48,masterlist!$C$2:$AA$207,9,FALSE)),\"\")","v":""},{"$f":"IFERROR(VLOOKUP($A48,masterlist!$C$2:$AA$207,20,FALSE),\"\")","v":""},{"$f":"IFERROR(VLOOKUP($A48,masterlist!$C$2:$AA$207,21,FALSE),\"\")","v":""},{"$f":"IFERROR(VLOOKUP($A48,masterlist!$C$2:$AA$207,22,FALSE),\"\")","v":""},{"$f":"IFERROR(IF($B$7=2,(VLOOKUP($A48,masterlist!$C$2:$AA$207,23,FALSE)-11),IF($B$7=4,(VLOOKUP($A48,masterlist!$C$2:$AA$207,23,FALSE)-9),IF($B$7=7,(VLOOKUP($A48,masterlist!$C$2:$AA$207,23,FALSE)-6),IF($B$7=10,(VLOOKUP($A48,masterlist!$C$2:$AA$207,23,FALSE)-3),(VLOOKUP($A48,masterlist!$C$2:$AA$207,23,FALSE)))))),\"\")","v":""},{"$f":"IFERROR(VLOOKUP($A48,masterlist!$C$2:$AA$207,24,FALSE),\"\")","v":""}]
[{"$f":"IF(ROWS($A$13:A49)<=(SUMPRODUCT((masterlist!B:B=\"CCI\")*(masterlist!J:J=0))),INDEX(masterlist!$C$2:$C$207,SMALL(IF(masterlist!$B$2:$B$207=\"CCI\",IF(masterlist!$F$2:$F$207>0,IF(masterlist!$J$2:$J$207=0,ROW(masterlist!$B$2:$B$207)-ROW(masterlist!$B$2)+1))),ROWS($A$13:A49))),\"\")","v":""},{"$f":"IFERROR(VLOOKUP($A49,masterlist!$C$2:$AA$207,3,FALSE),\"\")","v":""},{"$f":"IFERROR(VLOOKUP($A49,masterlist!$C$2:$AA$207,2,FALSE),\"\")","v":""},{"$f":"IFERROR(VLOOKUP($A49,masterlist!$C$2:$AD$207,28,FALSE),\"\")","v":""},{"$f":"IFERROR(IF((VLOOKUP($A49,masterlist!$C$2:$AA$207,9,FALSE))=0,\"\",VLOOKUP($A49,masterlist!$C$2:$AA$207,9,FALSE)),\"\")","v":""},{"$f":"IFERROR(VLOOKUP($A49,masterlist!$C$2:$AA$207,20,FALSE),\"\")","v":""},{"$f":"IFERROR(VLOOKUP($A49,masterlist!$C$2:$AA$207,21,FALSE),\"\")","v":""},{"$f":"IFERROR(VLOOKUP($A49,masterlist!$C$2:$AA$207,22,FALSE),\"\")","v":""},{"$f":"IFERROR(IF($B$7=2,(VLOOKUP($A49,masterlist!$C$2:$AA$207,23,FALSE)-11),IF($B$7=4,(VLOOKUP($A49,masterlist!$C$2:$AA$207,23,FALSE)-9),IF($B$7=7,(VLOOKUP($A49,masterlist!$C$2:$AA$207,23,FALSE)-6),IF($B$7=10,(VLOOKUP($A49,masterlist!$C$2:$AA$207,23,FALSE)-3),(VLOOKUP($A49,masterlist!$C$2:$AA$207,23,FALSE)))))),\"\")","v":""},{"$f":"IFERROR(VLOOKUP($A49,masterlist!$C$2:$AA$207,24,FALSE),\"\")","v":""}]
[{"$f":"IF(ROWS($A$13:A50)<=(SUMPRODUCT((masterlist!B:B=\"IEC\")*(masterlist!J:J=0))),INDEX(masterlist!$C$2:$C$207,SMALL(IF(masterlist!$B$2:$B$207=\"IEC\",IF(masterlist!$F$2:$F$207>0,IF(masterlist!$J$2:$J$207=0,ROW(masterlist!$B$2:$B$207)-ROW(masterlist!$B$2)+1))),ROWS($A$13:A50))),\"\")","v":""}]

{"sheet":"CCI","index":39,"n_rows":49,"n_cols":10,"rows_kept":49,"cut":false,"hidden":true,"merged":[[0,7,0,9],[0,3,0,6],[1,1,1,9]]}
[null,null,null,"Problèmes transversaux",null,null,null,"Plan de travail national pour l’élimination de la rage"]
[]
[]
[]
[]
[]
[]
[]
[]
[]
[null,"Instructions : Veuillez modifier les Tâches, les Autorités responsables, le Calendrier et les  Résultats attendus selon les besoins."]
["ID","Étape","Theme","Activité","Remarques","Tâche","Outcomes","Autorité responsible","Calendrier (années)","Résultats attendus"]
["CCI-Cré-0-1",0,"Création d’un groupe de travail intersectoriel sur la rage","Informer en permanence les parties prenantes au niveau national des activités programmatiques liées à la rage mises en œuvre dans le pays.","","• Identifier toutes les parties prenantes concernées, y compris les représentants de l'OMSA, de la FAO et de l'OMS, dans le pays ;\n• Établir un canal de communication permettant à toutes les parties prenantes d'être informées des activités programmatiques ;\n• Partager continuellement les informations en utilisant le canal de communication établi ;\n• Veiller à ce que toutes les parties prenantes concernées accusent réception des informations communiquées.","Results of rabies samples are shared with all of the relevant authorities throughout the country;","Ministère de la santé; \nMinistère de l’agriculture",1,"• Liste exhaustive de toutes les parties prenantes nationales concernées, y compris les représentants de l'OMSA, de la FAO et de l'OMS.\n• Mise en place d'un canal de communication pour un partage continu des informations avec les parties prenantes.\n• Mises à jour et rapports réguliers diffusés par le canal de communication établi.\n• Accusés de réception documentés des parties prenantes confirmant la réception des informations."]
["CCI-Cré-1-2",1,"Création d’un groupe de travail intersectoriel sur la rage","Identifier et énumérer TOUTES les parties prenantes nationales impliquées dans l'élimination de la rage.","","• Identifier les secteurs et les organisations qui sont impliqués dans l'élimination de la rage dans le pays ;\n• Contacter les secteurs et les organisations concernés et identifier les parties prenantes individuelles au sein de chacun de ces secteurs qui agiront en tant que représentants ;\n• Générer et conserver une liste des représentants, y compris les informations de contact.","Main stakehiolders identified and contacted ","Ministère de la santé; \nMinistère de l’agriculture",1,"• Base de données détaillée des parties prenantes, y compris les secteurs et les organisations impliqués dans l'élimination de la rage.\n• Liste régulièrement mise à jour des parties prenantes au niveau national et de leurs coordonnées."]
["CCI-Cré-1-3",1,"Création d’un groupe de travail intersectoriel sur la rage","Veiller à ce que toutes les parties prenantes identifiées au niveau national participent activement à l'élimination de la rage.","","• Contacter les représentants des parties prenantes qui ont été identifiés ;\n• Confirmer qu'ils sont toujours activement impliqués dans l'élimination de la rage.","Surety that relevant stakeholders are still actively involved in rabies control;","Ministère de la santé; \nMinistère de l’agriculture",3,"• Preuve d'une communication cohérente avec les parties prenantes identifiées."]
["CCI-Cré-1-4",1,"Création d’un groupe de travail intersectoriel sur la rage","Créer une task force, un comité ou un groupe de travail intersectoriel sur la rage (comprenant toutes les parties prenantes identifiées au niveau national) et veiller à ce qu'ils se réunissent ou communiquent régulièrement.","","• Contacter les parties prenantes identifiées et confirmer leur intérêt et leur disponibilité pour faire partie d'une task force, d'un comité ou d'un groupe de travail intersectoriel sur la rage ;\n• Créer officiellement une task force, un comité ou un groupe de travail intersectoriel en collaboration avec les parties prenantes concernées ;\n• Rédiger le mandat de la task force, du comité ou du groupe de travail intersectoriel ;\n• Finaliser le mandat et s'assurer qu'il est reconnu par tous les membres du groupe de travail ;\n• Convenir de la fréquence des réunions de la task force, du comité ou du groupe de travail intersectoriel et de la manière dont elles se dérouleront (p. ex. g., réunions virtuelles, réunions en personne) ;\n• Veiller à ce que l'équipe spéciale, le comité ou le groupe de travail intersectoriel se réunisse à la fréquence convenue.","A multi-sectoral rabies task force has been developed","Ministère de la santé; \nMinistère de l’agriculture",2,"• Liste confirmée des parties prenantes intéressées et disponibles pour participer au groupe de travail.\n• Documentation officielle établissant l'existence de l’équipe spéciale intersectorielle sur la rage, le comité ou le groupe de travail.\n• Rédaction et finalisation du mandat du groupe de travail, approuvé par tous les membres.\n• Calendrier et format de réunion convenus (virtuels ou en personne) avec comptes rendus de réunion documentés."]
["CCI-Pro-1-6",1,"Programme et stratégie nationales","Élaborer un plan d'action à court terme contre la rage pour n'importe quelle zone (par exemple, projet pilote OU niveau national).","","• Compiler les preuves d'autres programmes ou activités réussis dans un rapport de « preuve de principe » ;\n• Rédiger un plan d'action à court terme, en s'inspirant des plans d'action élaborés dans d'autres pays ;\n• Partager le projet de plan d'action à court terme avec toutes les parties prenantes concernées pour obtenir leurs commentaires ;\n• Intégrer les commentaires et finaliser le plan d'action à court terme ;\n• Une fois finalisé, s'assurer que toutes les parties prenantes approuvent le plan d'action à court terme ;\n• Élaborer un budget et assurer le financement du plan d'action à court terme.","A short term rabies action plan has been developed and endorsed;","Groupe de travail multi-sectoriel",3,"• Rapport sur la « preuve de principe » compilant des éléments probants issus de programmes couronnés de succès.\n• Rédaction et finalisation d'un plan d'action à court terme intégrant les commentaires des parties prenantes.\n• Approbation documentée du plan d'action finalisé par les parties prenantes.\n• Approbation du budget et obtention du financement pour la mise en œuvre du plan d'action."]
["CCI-Pro-1-7",1,"Programme et stratégie nationales","Identifier les mécanismes de mobilisation des fonds d'urgence qui pourraient être utilisés en complément du budget global d'élimination de la rage.","","• Identifier les sources possibles de fonds d'urgence qui pourraient être utilisés en plus du budget global d'élimination de la rage ;\n• Contacter les professionnels responsables de la gestion des fonds d'urgence et de leur affectation ;\n• Identifier les conditions d'accès aux fonds d'urgence ;\n• Obtenir une approbation écrite confirmant l'accès aux fonds d'urgence, le cas échéant.","Emergency funds have been identified and can be accessed if needed","Groupe de travail multi-sectoriel",3,"• Sources potentielles de fonds d'urgence et leurs conditions d'accès identifiées.\n• Communication établie avec les gestionnaires de fonds et procédures documentée d'allocation des fonds.\n• Approbation écrite de l'accès aux fonds d'urgence (si nécessaire)."]
["CCI-Cré-2-5",2,"Création d’un groupe de travail intersectoriel sur la rage","Inclure le secteur privé dans le groupe de travail intersectoriel.","","• Identifier les parties prenantes du secteur privé qui peuvent contribuer positivement aux efforts d'élimination de la rage dans le pays ;\n• Contacter les professionnels identifiés au sein du secteur privé et les inviter à participer à la task force, au comité ou au groupe de travail intersectoriel sur la rage ;\n• Confirmer leur intérêt et leur disponibilité à faire partie de la task force, du comité ou du groupe de travail intersectoriel sur la rage ;\n• Assurer la participation des parties prenantes concernées du secteur privé aux discussions et aux activités de la task force, du comité ou du groupe de travail intersectoriel sur la rage.","Private sector's role in the national rabies task force has been identified and participation has been ensured","Groupe de travail multi-sectoriel",4,"• Identification des parties prenantes du secteur privé susceptibles de contribuer à l'élimination de la rage.\n• Invitations et confirmations documentées de la participation du secteur privé.\n• Registres de la participation du secteur privé aux discussions et aux activités du groupe de travail."]
["CCI-Pro-2-8",2,"Programme et stratégie nationales","Rédiger et finaliser un plan stratégique national pour la rage.","","• Accéder au modèle générique de plan stratégique national sur le site web de United Against Rabies (Tous unis contre la rage);\n• Personnaliser le modèle de plan stratégique national pour le centrer sur le pays ;\n• Envoyer le plan stratégique national personnalisé à toutes les parties prenantes concernées pour examen et commentaires ;\n• Incorporer les commentaires et finaliser le plan stratégique national ;\n• S'assurer que le plan stratégique national a été approuvé par toutes les parties prenantes concernées.","National rabies strategy developed in line with the Stepwise Appraoch towards Rabies Elimination (SARE) assessment;","Groupe de travail multi-sectoriel",4,"• Adaptation du modèle de plan stratégique national de United Against Rabies (tous unis contre la rage).\n• Plan stratégique national révisé et finalisé par les parties prenantes et intégrant leurs commentaires.\n• Approbation documentée du plan stratégique national par les parties prenantes."]
["CCI-Pro-2-9",2,"Programme et stratégie nationales","Garantir et allouer de manière appropriée les ressources gouvernementales pour soutenir le plan stratégique national de lutte contre la rage.","","• Élaborer un budget pour le plan stratégique national en utilisant tous les outils ou méthodes de budgétisation pertinents ;\n• Identifier les sources de financement au sein du gouvernement ainsi que les autres parties prenantes concernées ;\n• S'assurer de l'adhésion et de l'approbation des autorités gouvernementales en ce qui concerne le budget du plan stratégique national ;\n• Assurer le financement du plan stratégique national officiel ;\n• Mettre en place des mécanismes permettant aux secteurs concernés d'allouer des fonds ou d'y accéder conformément au budget.","Resources, including financial support, has been secured for the implementation of the national rabies control strategy","Groupe de travail multi-sectoriel",6,"• Budget élaboré et approuvé pour le plan stratégique national.\n• Sources de financement au sein du gouvernement et des autres parties prenantes identifiées et assurées.\n• Mécanismes établis pour l'allocation et l'accès aux fonds conformément au plan."]
["CCI-Pro-3-10",3,"Programme et stratégie nationales","Maintenant qu'il y a très peu de cas de rage animale dans le pays, affiner la stratégie nationale sur la base des données actuelles.","","• Évaluer les données de surveillance actuelles concernant la situation de la rage dans le pays ;\n• Discuter des prochaines étapes sur la base des données épidémiologiques actuelles avec la task force, le comité ou le groupe de travail intersectoriel sur la rage et toutes les autres parties prenantes concernées ;\n• Affiner le plan stratégique national sur la base des discussions et des données actuelles, y compris les nouveaux besoins budgétaires ;\n• S'assurer que toutes les mises à jour du plan stratégique national ont été approuvées ;\n• Publier les révisions et s'assurer que tous les professionnels sont au courant des mises à jour effectuées ;\n• Mettre en œuvre le plan stratégique national mis à jour.","The national rabies control strategy has been revised based on the most recent surveillance data, updated, costed, endorsed, disseminated to all relevant professionals, and the updates have been implemented;","Groupe de travail multi-sectoriel",9,"• Données épidémiologiques et de surveillance actuelles analysées et documentées.\n• Plan stratégique national mis à jour et affiné en fonction des nouvelles données et des besoins budgétaires.\n• Approbation documentée du plan révisé par les parties prenantes.\n• Stratégie actualisée publiée et diffusée auprès de tous les professionnels concernés.\n• Rapports de mise en œuvre reflétant l'application du plan stratégique national actualisé."]
["","","","","","","","","",""]
["","","","","","","","","",""]
["","","","","","","","","",""]
["","","","","","","","","",""]
["","","","","","","","","",""]
["","","","","","","","","",""]
["","","","","","","","","",""]
["","","","","","","","","",""]
["","","","","","","","","",""]
["","","","","","","","","",""]
["","","","","","","","","",""]
["","","","","","","","","",""]
["","","","","","","","","",""]
["","","","","","","","","",""]
["","","","","","","","","",""]
["","","","","","","","","",""]
["","","","","","","","","",""]
["","","","","","","","","",""]
["","","","","","","","","",""]
["","","","","","","","","",""]
["","","","","","","","","",""]
["","","","","","","","","",""]
["","","","","","","","","",""]
["","","","","","","","","",""]
["","","","","","","","","",""]
["","","","","","","","","",""]
["","","","","","","","","",""]

{"sheet":"CCIgantt","index":40,"n_rows":50,"n_cols":17,"rows_kept":50,"cut":false,"hidden":true,"merged":[[0,1,0,16],[1,1,1,6],[2,1,2,16]]}
[null,"Plan de travail national pour l’élimination de la rage"]
[]
[null,"Problèmes transversaux - DIAGRAMME DE GANTT"]
[]
[null,null,null,null,1,2,3,4,5,6,7,8,9,10,11,12,13]
[null,"Theme","Étape","Activité",{"$f":"'NW country'!$E$35","v":2025},{"$f":"IF('NW country'!$K$4<6,E6+1,\"\")","v":2026},{"$f":"IF('NW country'!$K$4<5,E6+2,\"\")","v":2027},{"$f":"IF('NW country'!$K$4<5,E6+3,\"\")","v":2028},{"$f":"IF('NW country'!$K$4<4,E6+4,\"\")","v":2029},{"$f":"IF('NW country'!$K$4<4,E6+5,\"\")","v":2030},{"$f":"IF('NW country'!$K$4<4,E6+6,\"\")","v":2031},{"$f":"IF('NW country'!$K$4<3,E6+7,\"\")","v":2032},{"$f":"IF('NW country'!$K$4<3,E6+8,\"\")","v":2033},{"$f":"IF('NW country'!$K$4<3,E6+9,\"\")","v":2034},{"$f":"IF('NW country'!$K$4<2,E6+10,\"\")","v":2035},{"$f":"IF('NW country'!$K$4<2,E6+11,\"\")","v":2036},{"$f":"IF('NW country'!$K$4<2,E6+12,\"\")","v":2037}]
[13,{"$f":"IF((INDIRECT(\"CCI!\"&\"$a\"&$A7))=0,\"\",INDIRECT(\"CCI!\"&\"$c\"&$A7))","v":"Création d’un groupe de travail intersectoriel sur la rage"},{"$f":"IF(INDIRECT(\"CCI!\"&\"$a\"&$A7)=0,\"\",INDIRECT(\"CCI!\"&\"$b\"&$A7))","v":0},{"$f":"IF(INDIRECT(\"CCI!\"&\"$a\"&$A7)=0,\"\",INDIRECT(\"CCI!\"&\"$d\"&$A7))","v":"Informer en permanence les parties prenantes au niveau national des activités programmatiques liées à la rage mises en œuvre dans le pays."},{"$f":"IF($C7>6,\"\",IF(E$5<=INDIRECT(\"CCI!\"&\"$i\"&$A7),\"X\",\"\"))","v":"X"},{"$f":"IF($C7>6,\"\",IF(F$5<=INDIRECT(\"CCI!\"&\"$i\"&$A7),\"X\",\"\"))","v":""},"","","","","","","","","","",""]
[14,{"$f":"IF((INDIRECT(\"CCI!\"&\"$a\"&$A8))=0,\"\",INDIRECT(\"CCI!\"&\"$c\"&$A8))","v":"Création d’un groupe de travail intersectoriel sur la rage"},{"$f":"IF(INDIRECT(\"CCI!\"&\"$a\"&$A8)=0,\"\",INDIRECT(\"CCI!\"&\"$b\"&$A8))","v":1},{"$f":"IF(INDIRECT(\"CCI!\"&\"$a\"&$A8)=0,\"\",INDIRECT(\"CCI!\"&\"$d\"&$A8))","v":"Identifier et énumérer TOUTES les parties prenantes nationales impliquées dans l'élimination de la rage."},{"$f":"IF($C8>6,\"\",IF(E$5<=INDIRECT(\"CCI!\"&\"$i\"&$A8),\"X\",\"\"))","v":"X"},"","","","","","","","","","","",""]
[15,"Création d’un groupe de travail intersectoriel sur la rage",1,"Veiller à ce que toutes les parties prenantes identifiées au niveau national participent activement à l'élimination de la rage.","X","X","X","","","","","","","","","",""]
[16,"Création d’un groupe de travail intersectoriel sur la rage",1,"Créer une task force, un comité ou un groupe de travail intersectoriel sur la rage (comprenant toutes les parties prenantes identifiées au niveau national) et veiller à ce qu'ils se réunissent ou communiquent régulièrement.","X","X","","","","","","","","","","",""]
[17,"Programme et stratégie nationales",1,"Élaborer un plan d'action à court terme contre la rage pour n'importe quelle zone (par exemple, projet pilote OU niveau national).","X","X","X","","","","","","","","","",""]
[18,"Programme et stratégie nationales",1,"Identifier les mécanismes de mobilisation des fonds d'urgence qui pourraient être utilisés en complément du budget global d'élimination de la rage.","X","X","X","","","","","","","","","",""]
[19,"Création d’un groupe de travail intersectoriel sur la rage",2,"Inclure le secteur privé dans le groupe de travail intersectoriel.","X","X","X","X","","","","","","","","",""]
[20,"Programme et stratégie nationales",2,"Rédiger et finaliser un plan stratégique national pour la rage.","X","X","X","X","","","","","","","","",""]
[21,"Programme et stratégie nationales",2,"Garantir et allouer de manière appropriée les ressources gouvernementales pour soutenir le plan stratégique national de lutte contre la rage.","X","X","X","X","X","X","","","","","","",""]
[22,"Programme et stratégie nationales",3,"Maintenant qu'il y a très peu de cas de rage animale dans le pays, affiner la stratégie nationale sur la base des données actuelles.","X","X","X","X","X","X","X","X","X","","","",""]
[23,"","","","","","","","","","","","","","","",""]
[24,"","","","","","","","","","","","","","","",""]
[25,"","","","","","","","","","","","","","","",""]
[26,"","","","","","","","","","","","","","","",""]
[27,"","","","","","","","","","","","","","","",""]
[28,"","","","","","","","","","","","","","","",""]
[29,"","","","","","","","","","","","","","","",""]
[30,"","","","","","","","","","","","","","","",""]
[31,"","","","","","","","","","","","","","","",""]
[32,"","","","","","","","","","","","","","","",""]
[33,"","","","","","","","","","","","","","","",""]
[34,"","","","","","","","","","","","","","","",""]
[35,"","","","","","","","","","","","","","","",""]
[36,"","","","","","","","","","","","","","","",""]
[37,"","","","","","","","","","","","","","","",""]
[38,"","","","","","","","","","","","","","","",""]
[39,"","","","","","","","","","","","","","","",""]
[40,"","","","","","","","","","","","","","","",""]
[41,"","","","","","","","","","","","","","","",""]
[42,"","","","","","","","","","","","","","","",""]
[43,"","","","","","","","","","","","","","","",""]
[44,"","","","","","","","","","","","","","","",""]
[45,"","","","","","","","","","","","","","","",""]
[46,"","","","","","","","","","","","","","","",""]
[47,"","","","","","","","","",{"$f":"IF($C41>6,\"\",IF(K$5<=INDIRECT(\"CCI!\"&\"$i\"&$A41),\"X\",\"\"))","v":""},"","","","","",""]
[48,"","","",{"$f":"IF($C42>6,\"\",IF(E$5<=INDIRECT(\"CCI!\"&\"$i\"&$A42),\"X\",\"\"))","v":""},"","","","","","","","","","","",""]
[49,"","","","","","","","","","","","","","","",""]
[50,"","","","","","","","","","","","","","","",""]
[51,"","","","","","","","","","","","","","","",""]
[52,"","","","","","","","","","","","","","","",""]
[53,"","","","","","","","","","","","","","","",""]
[54,"","","","","","","","","","","","","","","",""]
[55,"","","","","","","","","","","","","","","",""]
[56,{"$f":"IF((INDIRECT(\"DCA!\"&\"$a\"&$A50))=0,\"\",INDIRECT(\"DCA!\"&\"$c\"&$A50))","v":""},{"$f":"IF(INDIRECT(\"DCA!\"&\"$a\"&$A50)=0,\"\",INDIRECT(\"DCA!\"&\"$b\"&$A50))","v":""},{"$f":"IF(INDIRECT(\"DCA!\"&\"$a\"&$A50)=0,\"\",INDIRECT(\"DCA!\"&\"$d\"&$A50))","v":""},{"$f":"IF($C50>6,\"\",IF(E$5<=INDIRECT(\"DCA!\"&\"$i\"&$A50),\"X\",\"\"))","v":""},"","","","","","","","","","","",""]

{"sheet":"rawleg","index":41,"n_rows":50,"n_cols":10,"rows_kept":50,"cut":false,"hidden":true,"merged":[[0,1,0,3],[0,4,0,9],[1,1,1,9],[4,1,5,3],[6,1,8,3]]}
[null,"Practical Workplan towards Achieving Rabies Elimination",null,null,"Prevention and Control"]
[null,"Blurb blurb blurb blah blurb blurb"]
[]
[]
[null,"Estimated years to elimination\n(based on the current SARE score)",null,null,null,"All stage 0 and 1 activities should ideally be completed within a 3-year period",null,null,null,{"$f":"IF('NW country'!$K$4<2,\"Years 1, 2 and 3\",\"--\")","v":"Years 1, 2 and 3"}]
[null,null,null,null,null,"All stage 2 activities should ideally be completed within a 3-year period",null,null,null,{"$f":"IF('NW country'!$K$4<2,\"Years 4, 5 and 6\",IF('NW country'!$K$4<3,\"Years 1, 2 and 3\",\"--\"))","v":"Years 4, 5 and 6"}]
[null,{"$f":"IF('NW country'!$K$4<2,13,IF('NW country'!$K$4<3,10,IF('NW country'!$K$4<4,7,IF('NW country'!$K$4<5,4,2))))","v":13},null,null,null,"All stage 3 activities should ideally be completed within a 3-year period",null,null,null,{"$f":"IF('NW country'!$K$4<2,\"Years 7, 8 and 9\",IF('NW country'!$K$4<3,\"Years 4, 5 and 6\",IF('NW country'!$K$4<4,\"Years 1, 2 and 3\",\"--\")))","v":"Years 7, 8 and 9"}]
[null,null,null,null,null,"All stage 4 activities should ideally be completed within a 2-year period",null,null,null,{"$f":"IF('NW country'!$K$4<2,\"Years 10 and 11\",IF('NW country'!$K$4<3,\"Years 7 and 8\",IF('NW country'!$K$4<4,\"Years 4 and 5\",IF('NW country'!$K$4<5,\"Years 1 and 2\",\"--\"))))","v":"Years 10 and 11"}]
[null,null,null,null,null,"All stage 5 activities should ideally be completed within a 2-year period",null,null,null,{"$f":"IF('NW country'!$K$4<2,\"Years 12 and 13\",IF('NW country'!$K$4<3,\"Years 9 and 10\",IF('NW country'!$K$4<4,\"Years 6 and 7\",IF('NW country'!$K$4<5,\"Years 3 and 4\",\"Years 1 and 2\"))))","v":"Years 12 and 13"}]
[]
[null,"Instructions : Veuillez modifier les Tâches, les Autorités responsables, le Calendrier et les  Résultats attendus selon les besoins."]
["ID","Étape","Theme","Activité","Remarques","Tâche","Outcomes","Autorité responsible","Calendrier (années)","Résultats attendus"]
[{"$f":"IF(ROWS($A$13:A13)<=(SUMPRODUCT((masterlist!B:B=\"LEG\")*(masterlist!J:J=0))),INDEX(masterlist!$C$2:$C$207,SMALL(IF(masterlist!$B$2:$B$207=\"LEG\",IF(masterlist!$F$2:$F$207>0,IF(masterlist!$J$2:$J$207=0,ROW(masterlist!$B$2:$B$207)-ROW(masterlist!$B$2)+1))),ROWS($A$13:A13))),\"\")","v":"LEG-Cad-2-10"},{"$f":"IFERROR(VLOOKUP($A13,masterlist!$C$2:$AA$207,3,FALSE),\"\")","v":2},{"$f":"IFERROR(VLOOKUP($A13,masterlist!$C$2:$AA$207,2,FALSE),\"\")","v":"Cadre légal"},{"$f":"IFERROR(VLOOKUP($A13,masterlist!$C$2:$AD$207,28,FALSE),\"\")","v":"Adapter la législation relative aux vaccins homologués au niveau national pour tenir compte des lignes directrices internationales."},{"$f":"IFERROR(IF((VLOOKUP($A13,masterlist!$C$2:$AA$207,9,FALSE))=0,\"\",VLOOKUP($A13,masterlist!$C$2:$AA$207,9,FALSE)),\"\")","v":"vaccin animal (est importe) repond aux normes internationales en cas de manque utilisation de vaccin fabrique par l'insitut Pasteur. Le vaccin pour humains produit en Algerie ne repond pas aux normes OMS (utilise a 30%), vaccin humain reponds aux normes a 70%. "},{"$f":"IFERROR(VLOOKUP($A13,masterlist!$C$2:$AA$207,20,FALSE),\"\")","v":"• Identifier les spécifications pour l'homologation de vaccins antirabiques de haute qualité dans les lignes directrices internationales ;\n• Identifier et réviser la législation relative à l'homologation nationale des vaccins ;\n• Adapter la législation relative à l'homologation nationale des vaccins pour l'aligner sur les recommandations ou lignes directrices internationales, en veillant à ce qu'elle mentionne l'homologation de vaccins antirabiques de haute qualité (si nécessaire) ;\n• Finaliser et approuver la législation nationale révisée \n• Partager la législation mise à jour avec les professionnels concernés."},{"$f":"IFERROR(VLOOKUP($A13,masterlist!$C$2:$AA$207,21,FALSE),\"\")","v":"National legislation regarding licenced vaccines reflects that of international guidelines and any alterations to national legislation are communicated with relevant professionals;"},{"$f":"IFERROR(VLOOKUP($A13,masterlist!$C$2:$AA$207,22,FALSE),\"\")","v":"Ministère de l’agriculture (vaccin antirabique animal); \nMinistère de la santé (vaccin antirabique humain)"},{"$f":"IFERROR(IF($B$7=2,(VLOOKUP($A13,masterlist!$C$2:$AA$207,23,FALSE)-11),IF($B$7=4,(VLOOKUP($A13,masterlist!$C$2:$AA$207,23,FALSE)-9),IF($B$7=7,(VLOOKUP($A13,masterlist!$C$2:$AA$207,23,FALSE)-6),IF($B$7=10,(VLOOKUP($A13,masterlist!$C$2:$AA$207,23,FALSE)-3),(VLOOKUP($A13,masterlist!$C$2:$AA$207,23,FALSE)))))),\"\")","v":5},{"$f":"IFERROR(VLOOKUP($A13,masterlist!$C$2:$AA$207,24,FALSE),\"\")","v":"• Analyse comparative réalisée des réglementations nationales en matière d'homologation des vaccins antirabiques avec les lignes directrices internationales.\n• Législation nationale révisée et alignée pour garantir l'homologation de vaccins antirabiques de haute qualité.\n• Réglementation actualisée en matière d'homologation officiellement approuvée et diffusée."}]
[{"$f":"IF(ROWS($A$13:A14)<=(SUMPRODUCT((masterlist!B:B=\"LEG\")*(masterlist!J:J=0))),INDEX(masterlist!$C$2:$C$207,SMALL(IF(masterlist!$B$2:$B$207=\"LEG\",IF(masterlist!$F$2:$F$207>0,IF(masterlist!$J$2:$J$207=0,ROW(masterlist!$B$2:$B$207)-ROW(masterlist!$B$2)+1))),ROWS($A$13:A14))),\"\")","v":""},{"$f":"IFERROR(VLOOKUP($A14,masterlist!$C$2:$AA$207,3,FALSE),\"\")","v":""},{"$f":"IFERROR(VLOOKUP($A14,masterlist!$C$2:$AA$207,2,FALSE),\"\")","v":""},{"$f":"IFERROR(VLOOKUP($A14,masterlist!$C$2:$AD$207,28,FALSE),\"\")","v":""},{"$f":"IFERROR(IF((VLOOKUP($A14,masterlist!$C$2:$AA$207,9,FALSE))=0,\"\",VLOOKUP($A14,masterlist!$C$2:$AA$207,9,FALSE)),\"\")","v":""},{"$f":"IFERROR(VLOOKUP($A14,masterlist!$C$2:$AA$207,20,FALSE),\"\")","v":""},{"$f":"IFERROR(VLOOKUP($A14,masterlist!$C$2:$AA$207,21,FALSE),\"\")","v":""},{"$f":"IFERROR(VLOOKUP($A14,masterlist!$C$2:$AA$207,22,FALSE),\"\")","v":""},{"$f":"IFERROR(IF($B$7=2,(VLOOKUP($A14,masterlist!$C$2:$AA$207,23,FALSE)-11),IF($B$7=4,(VLOOKUP($A14,masterlist!$C$2:$AA$207,23,FALSE)-9),IF($B$7=7,(VLOOKUP($A14,masterlist!$C$2:$AA$207,23,FALSE)-6),IF($B$7=10,(VLOOKUP($A14,masterlist!$C$2:$AA$207,23,FALSE)-3),(VLOOKUP($A14,masterlist!$C$2:$AA$207,23,FALSE)))))),\"\")","v":""},{"$f":"IFERROR(VLOOKUP($A14,masterlist!$C$2:$AA$207,24,FALSE),\"\")","v":""}]
[{"$f":"IF(ROWS($A$13:A15)<=(SUMPRODUCT((masterlist!B:B=\"LEG\")*(masterlist!J:J=0))),INDEX(masterlist!$C$2:$C$207,SMALL(IF(masterlist!$B$2:$B$207=\"LEG\",IF(masterlist!$F$2:$F$207>0,IF(masterlist!$J$2:$J$207=0,ROW(masterlist!$B$2:$B$207)-ROW(masterlist!$B$2)+1))),ROWS($A$13:A15))),\"\")","v":""},{"$f":"IFERROR(VLOOKUP($A15,masterlist!$C$2:$AA$207,3,FALSE),\"\")","v":""},{"$f":"IFERROR(VLOOKUP($A15,masterlist!$C$2:$AA$207,2,FALSE),\"\")","v":""},{"$f":"IFERROR(VLOOKUP($A15,masterlist!$C$2:$AD$207,28,FALSE),\"\")","v":""},{"$f":"IFERROR(IF((VLOOKUP($A15,masterlist!$C$2:$AA$207,9,FALSE))=0,\"\",VLOOKUP($A15,masterlist!$C$2:$AA$207,9,FALSE)),\"\")","v":""},{"$f":"IFERROR(VLOOKUP($A15,masterlist!$C$2:$AA$207,20,FALSE),\"\")","v":""},{"$f":"IFERROR(VLOOKUP($A15,masterlist!$C$2:$AA$207,21,FALSE),\"\")","v":""},{"$f":"IFERROR(VLOOKUP($A15,masterlist!$C$2:$AA$207,22,FALSE),\"\")","v":""},{"$f":"IFERROR(IF($B$7=2,(VLOOKUP($A15,masterlist!$C$2:$AA$207,23,FALSE)-11),IF($B$7=4,(VLOOKUP($A15,masterlist!$C$2:$AA$207,23,FALSE)-9),IF($B$7=7,(VLOOKUP($A15,masterlist!$C$2:$AA$207,23,FALSE)-6),IF($B$7=10,(VLOOKUP($A15,masterlist!$C$2:$AA$207,23,FALSE)-3),(VLOOKUP($A15,masterlist!$C$2:$AA$207,23,FALSE)))))),\"\")","v":""},{"$f":"IFERROR(VLOOKUP($A15,masterlist!$C$2:$AA$207,24,FALSE),\"\")","v":""}]
[{"$f":"IF(ROWS($A$13:A16)<=(SUMPRODUCT((masterlist!B:B=\"LEG\")*(masterlist!J:J=0))),INDEX(masterlist!$C$2:$C$207,SMALL(IF(masterlist!$B$2:$B$207=\"LEG\",IF(masterlist!$F$2:$F$207>0,IF(masterlist!$J$2:$J$207=0,ROW(masterlist!$B$2:$B$207)-ROW(masterlist!$B$2)+1))),ROWS($A$13:A16))),\"\")","v":""},{"$f":"IFERROR(VLOOKUP($A16,masterlist!$C$2:$AA$207,3,FALSE),\"\")","v":""},{"$f":"IFERROR(VLOOKUP($A16,masterlist!$C$2:$AA$207,2,FALSE),\"\")","v":""},{"$f":"IFERROR(VLOOKUP($A16,masterlist!$C$2:$AD$207,28,FALSE),\"\")","v":""},{"$f":"IFERROR(IF((VLOOKUP($A16,masterlist!$C$2:$AA$207,9,FALSE))=0,\"\",VLOOKUP($A16,masterlist!$C$2:$AA$207,9,FALSE)),\"\")","v":""},{"$f":"IFERROR(VLOOKUP($A16,masterlist!$C$2:$AA$207,20,FALSE),\"\")","v":""},{"$f":"IFERROR(VLOOKUP($A16,masterlist!$C$2:$AA$207,21,FALSE),\"\")","v":""},{"$f":"IFERROR(VLOOKUP($A16,masterlist!$C$2:$AA$207,22,FALSE),\"\")","v":""},{"$f":"IFERROR(IF($B$7=2,(VLOOKUP($A16,masterlist!$C$2:$AA$207,23,FALSE)-11),IF($B$7=4,(VLOOKUP($A16,masterlist!$C$2:$AA$207,23,FALSE)-9),IF($B$7=7,(VLOOKUP($A16,masterlist!$C$2:$AA$207,23,FALSE)-6),IF($B$7=10,(VLOOKUP($A16,masterlist!$C$2:$AA$207,23,FALSE)-3),(VLOOKUP($A16,masterlist!$C$2:$AA$207,23,FALSE)))))),\"\")","v":""},{"$f":"IFERROR(VLOOKUP($A16,masterlist!$C$2:$AA$207,24,FALSE),\"\")","v":""}]
[{"$f":"IF(ROWS($A$13:A17)<=(SUMPRODUCT((masterlist!B:B=\"LEG\")*(masterlist!J:J=0))),INDEX(masterlist!$C$2:$C$207,SMALL(IF(masterlist!$B$2:$B$207=\"LEG\",IF(masterlist!$F$2:$F$207>0,IF(masterlist!$J$2:$J$207=0,ROW(masterlist!$B$2:$B$207)-ROW(masterlist!$B$2)+1))),ROWS($A$13:A17))),\"\")","v":""},{"$f":"IFERROR(VLOOKUP($A17,masterlist!$C$2:$AA$207,3,FALSE),\"\")","v":""},{"$f":"IFERROR(VLOOKUP($A17,masterlist!$C$2:$AA$207,2,FALSE),\"\")","v":""},{"$f":"IFERROR(VLOOKUP($A17,masterlist!$C$2:$AD$207,28,FALSE),\"\")","v":""},{"$f":"IFERROR(IF((VLOOKUP($A17,masterlist!$C$2:$AA$207,9,FALSE))=0,\"\",VLOOKUP($A17,masterlist!$C$2:$AA$207,9,FALSE)),\"\")","v":""},{"$f":"IFERROR(VLOOKUP($A17,masterlist!$C$2:$AA$207,20,FALSE),\"\")","v":""},{"$f":"IFERROR(VLOOKUP($A17,masterlist!$C$2:$AA$207,21,FALSE),\"\")","v":""},{"$f":"IFERROR(VLOOKUP($A17,masterlist!$C$2:$AA$207,22,FALSE),\"\")","v":""},{"$f":"IFERROR(IF($B$7=2,(VLOOKUP($A17,masterlist!$C$2:$AA$207,23,FALSE)-11),IF($B$7=4,(VLOOKUP($A17,masterlist!$C$2:$AA$207,23,FALSE)-9),IF($B$7=7,(VLOOKUP($A17,masterlist!$C$2:$AA$207,23,FALSE)-6),IF($B$7=10,(VLOOKUP($A17,masterlist!$C$2:$AA$207,23,FALSE)-3),(VLOOKUP($A17,masterlist!$C$2:$AA$207,23,FALSE)))))),\"\")","v":""},{"$f":"IFERROR(VLOOKUP($A17,masterlist!$C$2:$AA$207,24,FALSE),\"\")","v":""}]
[{"$f":"IF(ROWS($A$13:A18)<=(SUMPRODUCT((masterlist!B:B=\"LEG\")*(masterlist!J:J=0))),INDEX(masterlist!$C$2:$C$207,SMALL(IF(masterlist!$B$2:$B$207=\"LEG\",IF(masterlist!$F$2:$F$207>0,IF(masterlist!$J$2:$J$207=0,ROW(masterlist!$B$2:$B$207)-ROW(masterlist!$B$2)+1))),ROWS($A$13:A18))),\"\")","v":""},{"$f":"IFERROR(VLOOKUP($A18,masterlist!$C$2:$AA$207,3,FALSE),\"\")","v":""},{"$f":"IFERROR(VLOOKUP($A18,masterlist!$C$2:$AA$207,2,FALSE),\"\")","v":""},{"$f":"IFERROR(VLOOKUP($A18,masterlist!$C$2:$AD$207,28,FALSE),\"\")","v":""},{"$f":"IFERROR(IF((VLOOKUP($A18,masterlist!$C$2:$AA$207,9,FALSE))=0,\"\",VLOOKUP($A18,masterlist!$C$2:$AA$207,9,FALSE)),\"\")","v":""},{"$f":"IFERROR(VLOOKUP($A18,masterlist!$C$2:$AA$207,20,FALSE),\"\")","v":""},{"$f":"IFERROR(VLOOKUP($A18,masterlist!$C$2:$AA$207,21,FALSE),\"\")","v":""},{"$f":"IFERROR(VLOOKUP($A18,masterlist!$C$2:$AA$207,22,FALSE),\"\")","v":""},{"$f":"IFERROR(IF($B$7=2,(VLOOKUP($A18,masterlist!$C$2:$AA$207,23,FALSE)-11),IF($B$7=4,(VLOOKUP($A18,masterlist!$C$2:$AA$207,23,FALSE)-9),IF($B$7=7,(VLOOKUP($A18,masterlist!$C$2:$AA$207,23,FALSE)-6),IF($B$7=10,(VLOOKUP($A18,masterlist!$C$2:$AA$207,23,FALSE)-3),(VLOOKUP($A18,masterlist!$C$2:$AA$207,23,FALSE)))))),\"\")","v":""},{"$f":"IFERROR(VLOOKUP($A18,masterlist!$C$2:$AA$207,24,FALSE),\"\")","v":""}]
[{"$f":"IF(ROWS($A$13:A19)<=(SUMPRODUCT((masterlist!B:B=\"LEG\")*(masterlist!J:J=0))),INDEX(masterlist!$C$2:$C$207,SMALL(IF(masterlist!$B$2:$B$207=\"LEG\",IF(masterlist!$F$2:$F$207>0,IF(masterlist!$J$2:$J$207=0,ROW(masterlist!$B$2:$B$207)-ROW(masterlist!$B$2)+1))),ROWS($A$13:A19))),\"\")","v":""},{"$f":"IFERROR(VLOOKUP($A19,masterlist!$C$2:$AA$207,3,FALSE),\"\")","v":""},{"$f":"IFERROR(VLOOKUP($A19,masterlist!$C$2:$AA$207,2,FALSE),\"\")","v":""},{"$f":"IFERROR(VLOOKUP($A19,masterlist!$C$2:$AD$207,28,FALSE),\"\")","v":""},{"$f":"IFERROR(IF((VLOOKUP($A19,masterlist!$C$2:$AA$207,9,FALSE))=0,\"\",VLOOKUP($A19,masterlist!$C$2:$AA$207,9,FALSE)),\"\")","v":""},{"$f":"IFERROR(VLOOKUP($A19,masterlist!$C$2:$AA$207,20,FALSE),\"\")","v":""},{"$f":"IFERROR(VLOOKUP($A19,masterlist!$C$2:$AA$207,21,FALSE),\"\")","v":""},{"$f":"IFERROR(VLOOKUP($A19,masterlist!$C$2:$AA$207,22,FALSE),\"\")","v":""},{"$f":"IFERROR(IF($B$7=2,(VLOOKUP($A19,masterlist!$C$2:$AA$207,23,FALSE)-11),IF($B$7=4,(VLOOKUP($A19,masterlist!$C$2:$AA$207,23,FALSE)-9),IF($B$7=7,(VLOOKUP($A19,masterlist!$C$2:$AA$207,23,FALSE)-6),IF($B$7=10,(VLOOKUP($A19,masterlist!$C$2:$AA$207,23,FALSE)-3),(VLOOKUP($A19,masterlist!$C$2:$AA$207,23,FALSE)))))),\"\")","v":""},{"$f":"IFERROR(VLOOKUP($A19,masterlist!$C$2:$AA$207,24,FALSE),\"\")","v":""}]
[{"$f":"IF(ROWS($A$13:A20)<=(SUMPRODUCT((masterlist!B:B=\"LEG\")*(masterlist!J:J=0))),INDEX(masterlist!$C$2:$C$207,SMALL(IF(masterlist!$B$2:$B$207=\"LEG\",IF(masterlist!$F$2:$F$207>0,IF(masterlist!$J$2:$J$207=0,ROW(masterlist!$B$2:$B$207)-ROW(masterlist!$B$2)+1))),ROWS($A$13:A20))),\"\")","v":""},{"$f":"IFERROR(VLOOKUP($A20,masterlist!$C$2:$AA$207,3,FALSE),\"\")","v":""},{"$f":"IFERROR(VLOOKUP($A20,masterlist!$C$2:$AA$207,2,FALSE),\"\")","v":""},{"$f":"IFERROR(VLOOKUP($A20,masterlist!$C$2:$AD$207,28,FALSE),\"\")","v":""},{"$f":"IFERROR(IF((VLOOKUP($A20,masterlist!$C$2:$AA$207,9,FALSE))=0,\"\",VLOOKUP($A20,masterlist!$C$2:$AA$207,9,FALSE)),\"\")","v":""},{"$f":"IFERROR(VLOOKUP($A20,masterlist!$C$2:$AA$207,20,FALSE),\"\")","v":""},{"$f":"IFERROR(VLOOKUP($A20,masterlist!$C$2:$AA$207,21,FALSE),\"\")","v":""},{"$f":"IFERROR(VLOOKUP($A20,masterlist!$C$2:$AA$207,22,FALSE),\"\")","v":""},{"$f":"IFERROR(IF($B$7=2,(VLOOKUP($A20,masterlist!$C$2:$AA$207,23,FALSE)-11),IF($B$7=4,(VLOOKUP($A20,masterlist!$C$2:$AA$207,23,FALSE)-9),IF($B$7=7,(VLOOKUP($A20,masterlist!$C$2:$AA$207,23,FALSE)-6),IF($B$7=10,(VLOOKUP($A20,masterlist!$C$2:$AA$207,23,FALSE)-3),(VLOOKUP($A20,masterlist!$C$2:$AA$207,23,FALSE)))))),\"\")","v":""},{"$f":"IFERROR(VLOOKUP($A20,masterlist!$C$2:$AA$207,24,FALSE),\"\")","v":""}]
[{"$f":"IF(ROWS($A$13:A21)<=(SUMPRODUCT((masterlist!B:B=\"LEG\")*(masterlist!J:J=0))),INDEX(masterlist!$C$2:$C$207,SMALL(IF(masterlist!$B$2:$B$207=\"LEG\",IF(masterlist!$F$2:$F$207>0,IF(masterlist!$J$2:$J$207=0,ROW(masterlist!$B$2:$B$207)-ROW(masterlist!$B$2)+1))),ROWS($A$13:A21))),\"\")","v":""},{"$f":"IFERROR(VLOOKUP($A21,masterlist!$C$2:$AA$207,3,FALSE),\"\")","v":""},{"$f":"IFERROR(VLOOKUP($A21,masterlist!$C$2:$AA$207,2,FALSE),\"\")","v":""},{"$f":"IFERROR(VLOOKUP($A21,masterlist!$C$2:$AD$207,28,FALSE),\"\")","v":""},{"$f":"IFERROR(IF((VLOOKUP($A21,masterlist!$C$2:$AA$207,9,FALSE))=0,\"\",VLOOKUP($A21,masterlist!$C$2:$AA$207,9,FALSE)),\"\")","v":""},{"$f":"IFERROR(VLOOKUP($A21,masterlist!$C$2:$AA$207,20,FALSE),\"\")","v":""},{"$f":"IFERROR(VLOOKUP($A21,masterlist!$C$2:$AA$207,21,FALSE),\"\")","v":""},{"$f":"IFERROR(VLOOKUP($A21,masterlist!$C$2:$AA$207,22,FALSE),\"\")","v":""},{"$f":"IFERROR(IF($B$7=2,(VLOOKUP($A21,masterlist!$C$2:$AA$207,23,FALSE)-11),IF($B$7=4,(VLOOKUP($A21,masterlist!$C$2:$AA$207,23,FALSE)-9),IF($B$7=7,(VLOOKUP($A21,masterlist!$C$2:$AA$207,23,FALSE)-6),IF($B$7=10,(VLOOKUP($A21,masterlist!$C$2:$AA$207,23,FALSE)-3),(VLOOKUP($A21,masterlist!$C$2:$AA$207,23,FALSE)))))),\"\")","v":""},{"$f":"IFERROR(VLOOKUP($A21,masterlist!$C$2:$AA$207,24,FALSE),\"\")","v":""}]
[{"$f":"IF(ROWS($A$13:A22)<=(SUMPRODUCT((masterlist!B:B=\"LEG\")*(masterlist!J:J=0))),INDEX(masterlist!$C$2:$C$207,SMALL(IF(masterlist!$B$2:$B$207=\"LEG\",IF(masterlist!$F$2:$F$207>0,IF(masterlist!$J$2:$J$207=0,ROW(masterlist!$B$2:$B$207)-ROW(masterlist!$B$2)+1))),ROWS($A$13:A22))),\"\")","v":""},{"$f":"IFERROR(VLOOKUP($A22,masterlist!$C$2:$AA$207,3,FALSE),\"\")","v":""},{"$f":"IFERROR(VLOOKUP($A22,masterlist!$C$2:$AA$207,2,FALSE),\"\")","v":""},{"$f":"IFERROR(VLOOKUP($A22,masterlist!$C$2:$AD$207,28,FALSE),\"\")","v":""},{"$f":"IFERROR(IF((VLOOKUP($A22,masterlist!$C$2:$AA$207,9,FALSE))=0,\"\",VLOOKUP($A22,masterlist!$C$2:$AA$207,9,FALSE)),\"\")","v":""},{"$f":"IFERROR(VLOOKUP($A22,masterlist!$C$2:$AA$207,20,FALSE),\"\")","v":""},{"$f":"IFERROR(VLOOKUP($A22,masterlist!$C$2:$AA$207,21,FALSE),\"\")","v":""},{"$f":"IFERROR(VLOOKUP($A22,masterlist!$C$2:$AA$207,22,FALSE),\"\")","v":""},{"$f":"IFERROR(IF($B$7=2,(VLOOKUP($A22,masterlist!$C$2:$AA$207,23,FALSE)-11),IF($B$7=4,(VLOOKUP($A22,masterlist!$C$2:$AA$207,23,FALSE)-9),IF($B$7=7,(VLOOKUP($A22,masterlist!$C$2:$AA$207,23,FALSE)-6),IF($B$7=10,(VLOOKUP($A22,masterlist!$C$2:$AA$207,23,FALSE)-3),(VLOOKUP($A22,masterlist!$C$2:$AA$207,23,FALSE)))))),\"\")","v":""},{"$f":"IFERROR(VLOOKUP($A22,masterlist!$C$2:$AA$207,24,FALSE),\"\")","v":""}]
[{"$f":"IF(ROWS($A$13:A23)<=(SUMPRODUCT((masterlist!B:B=\"LEG\")*(masterlist!J:J=0))),INDEX(masterlist!$C$2:$C$207,SMALL(IF(masterlist!$B$2:$B$207=\"LEG\",IF(masterlist!$F$2:$F$207>0,IF(masterlist!$J$2:$J$207=0,ROW(masterlist!$B$2:$B$207)-ROW(masterlist!$B$2)+1))),ROWS($A$13:A23))),\"\")","v":""},{"$f":"IFERROR(VLOOKUP($A23,masterlist!$C$2:$AA$207,3,FALSE),\"\")","v":""},{"$f":"IFERROR(VLOOKUP($A23,masterlist!$C$2:$AA$207,2,FALSE),\"\")","v":""},{"$f":"IFERROR(VLOOKUP($A23,masterlist!$C$2:$AD$207,28,FALSE),\"\")","v":""},{"$f":"IFERROR(IF((VLOOKUP($A23,masterlist!$C$2:$AA$207,9,FALSE))=0,\"\",VLOOKUP($A23,masterlist!$C$2:$AA$207,9,FALSE)),\"\")","v":""},{"$f":"IFERROR(VLOOKUP($A23,masterlist!$C$2:$AA$207,20,FALSE),\"\")","v":""},{"$f":"IFERROR(VLOOKUP($A23,masterlist!$C$2:$AA$207,21,FALSE),\"\")","v":""},{"$f":"IFERROR(VLOOKUP($A23,masterlist!$C$2:$AA$207,22,FALSE),\"\")","v":""},{"$f":"IFERROR(IF($B$7=2,(VLOOKUP($A23,masterlist!$C$2:$AA$207,23,FALSE)-11),IF($B$7=4,(VLOOKUP($A23,masterlist!$C$2:$AA$207,23,FALSE)-9),IF($B$7=7,(VLOOKUP($A23,masterlist!$C$2:$AA$207,23,FALSE)-6),IF($B$7=10,(VLOOKUP($A23,masterlist!$C$2:$AA$207,23,FALSE)-3),(VLOOKUP($A23,masterlist!$C$2:$AA$207,23,FALSE)))))),\"\")","v":""},{"$f":"IFERROR(VLOOKUP($A23,masterlist!$C$2:$AA$207,24,FALSE),\"\")","v":""}]
[{"$f":"IF(ROWS($A$13:A24)<=(SUMPRODUCT((masterlist!B:B=\"LEG\")*(masterlist!J:J=0))),INDEX(masterlist!$C$2:$C$207,SMALL(IF(masterlist!$B$2:$B$207=\"LEG\",IF(masterlist!$F$2:$F$207>0,IF(masterlist!$J$2:$J$207=0,ROW(masterlist!$B$2:$B$207)-ROW(masterlist!$B$2)+1))),ROWS($A$13:A24))),\"\")","v":""},{"$f":"IFERROR(VLOOKUP($A24,masterlist!$C$2:$AA$207,3,FALSE),\"\")","v":""},{"$f":"IFERROR(VLOOKUP($A24,masterlist!$C$2:$AA$207,2,FALSE),\"\")","v":""},{"$f":"IFERROR(VLOOKUP($A24,masterlist!$C$2:$AD$207,28,FALSE),\"\")","v":""},{"$f":"IFERROR(IF((VLOOKUP($A24,masterlist!$C$2:$AA$207,9,FALSE))=0,\"\",VLOOKUP($A24,masterlist!$C$2:$AA$207,9,FALSE)),\"\")","v":""},{"$f":"IFERROR(VLOOKUP($A24,masterlist!$C$2:$AA$207,20,FALSE),\"\")","v":""},{"$f":"IFERROR(VLOOKUP($A24,masterlist!$C$2:$AA$207,21,FALSE),\"\")","v":""},{"$f":"IFERROR(VLOOKUP($A24,masterlist!$C$2:$AA$207,22,FALSE),\"\")","v":""},{"$f":"IFERROR(IF($B$7=2,(VLOOKUP($A24,masterlist!$C$2:$AA$207,23,FALSE)-11),IF($B$7=4,(VLOOKUP($A24,masterlist!$C$2:$AA$207,23,FALSE)-9),IF($B$7=7,(VLOOKUP($A24,masterlist!$C$2:$AA$207,23,FALSE)-6),IF($B$7=10,(VLOOKUP($A24,masterlist!$C$2:$AA$207,23,FALSE)-3),(VLOOKUP($A24,masterlist!$C$2:$AA$207,23,FALSE)))))),\"\")","v":""},{"$f":"IFERROR(VLOOKUP($A24,masterlist!$C$2:$AA$207,24,FALSE),\"\")","v":""}]
[{"$f":"IF(ROWS($A$13:A25)<=(SUMPRODUCT((masterlist!B:B=\"LEG\")*(masterlist!J:J=0))),INDEX(masterlist!$C$2:$C$207,SMALL(IF(masterlist!$B$2:$B$207=\"LEG\",IF(masterlist!$F$2:$F$207>0,IF(masterlist!$J$2:$J$207=0,ROW(masterlist!$B$2:$B$207)-ROW(masterlist!$B$2)+1))),ROWS($A$13:A25))),\"\")","v":""},{"$f":"IFERROR(VLOOKUP($A25,masterlist!$C$2:$AA$207,3,FALSE),\"\")","v":""},{"$f":"IFERROR(VLOOKUP($A25,masterlist!$C$2:$AA$207,2,FALSE),\"\")","v":""},{"$f":"IFERROR(VLOOKUP($A25,masterlist!$C$2:$AD$207,28,FALSE),\"\")","v":""},{"$f":"IFERROR(IF((VLOOKUP($A25,masterlist!$C$2:$AA$207,9,FALSE))=0,\"\",VLOOKUP($A25,masterlist!$C$2:$AA$207,9,FALSE)),\"\")","v":""},{"$f":"IFERROR(VLOOKUP($A25,masterlist!$C$2:$AA$207,20,FALSE),\"\")","v":""},{"$f":"IFERROR(VLOOKUP($A25,masterlist!$C$2:$AA$207,21,FALSE),\"\")","v":""},{"$f":"IFERROR(VLOOKUP($A25,masterlist!$C$2:$AA$207,22,FALSE),\"\")","v":""},{"$f":"IFERROR(IF($B$7=2,(VLOOKUP($A25,masterlist!$C$2:$AA$207,23,FALSE)-11),IF($B$7=4,(VLOOKUP($A25,masterlist!$C$2:$AA$207,23,FALSE)-9),IF($B$7=7,(VLOOKUP($A25,masterlist!$C$2:$AA$207,23,FALSE)-6),IF($B$7=10,(VLOOKUP($A25,masterlist!$C$2:$AA$207,23,FALSE)-3),(VLOOKUP($A25,masterlist!$C$2:$AA$207,23,FALSE)))))),\"\")","v":""},{"$f":"IFERROR(VLOOKUP($A25,masterlist!$C$2:$AA$207,24,FALSE),\"\")","v":""}]
[{"$f":"IF(ROWS($A$13:A26)<=(SUMPRODUCT((masterlist!B:B=\"LEG\")*(masterlist!J:J=0))),INDEX(masterlist!$C$2:$C$207,SMALL(IF(masterlist!$B$2:$B$207=\"LEG\",IF(masterlist!$F$2:$F$207>0,IF(masterlist!$J$2:$J$207=0,ROW(masterlist!$B$2:$B$207)-ROW(masterlist!$B$2)+1))),ROWS($A$13:A26))),\"\")","v":""},{"$f":"IFERROR(VLOOKUP($A26,masterlist!$C$2:$AA$207,3,FALSE),\"\")","v":""},{"$f":"IFERROR(VLOOKUP($A26,masterlist!$C$2:$AA$207,2,FALSE),\"\")","v":""},{"$f":"IFERROR(VLOOKUP($A26,masterlist!$C$2:$AD$207,28,FALSE),\"\")","v":""},{"$f":"IFERROR(IF((VLOOKUP($A26,masterlist!$C$2:$AA$207,9,FALSE))=0,\"\",VLOOKUP($A26,masterlist!$C$2:$AA$207,9,FALSE)),\"\")","v":""},{"$f":"IFERROR(VLOOKUP($A26,masterlist!$C$2:$AA$207,20,FALSE),\"\")","v":""},{"$f":"IFERROR(VLOOKUP($A26,masterlist!$C$2:$AA$207,21,FALSE),\"\")","v":""},{"$f":"IFERROR(VLOOKUP($A26,masterlist!$C$2:$AA$207,22,FALSE),\"\")","v":""},{"$f":"IFERROR(IF($B$7=2,(VLOOKUP($A26,masterlist!$C$2:$AA$207,23,FALSE)-11),IF($B$7=4,(VLOOKUP($A26,masterlist!$C$2:$AA$207,23,FALSE)-9),IF($B$7=7,(VLOOKUP($A26,masterlist!$C$2:$AA$207,23,FALSE)-6),IF($B$7=10,(VLOOKUP($A26,masterlist!$C$2:$AA$207,23,FALSE)-3),(VLOOKUP($A26,masterlist!$C$2:$AA$207,23,FALSE)))))),\"\")","v":""},{"$f":"IFERROR(VLOOKUP($A26,masterlist!$C$2:$AA$207,24,FALSE),\"\")","v":""}]
[{"$f":"IF(ROWS($A$13:A27)<=(SUMPRODUCT((masterlist!B:B=\"LEG\")*(masterlist!J:J=0))),INDEX(masterlist!$C$2:$C$207,SMALL(IF(masterlist!$B$2:$B$207=\"LEG\",IF(masterlist!$F$2:$F$207>0,IF(masterlist!$J$2:$J$207=0,ROW(masterlist!$B$2:$B$207)-ROW(masterlist!$B$2)+1))),ROWS($A$13:A27))),\"\")","v":""},{"$f":"IFERROR(VLOOKUP($A27,masterlist!$C$2:$AA$207,3,FALSE),\"\")","v":""},{"$f":"IFERROR(VLOOKUP($A27,masterlist!$C$2:$AA$207,2,FALSE),\"\")","v":""},{"$f":"IFERROR(VLOOKUP($A27,masterlist!$C$2:$AD$207,28,FALSE),\"\")","v":""},{"$f":"IFERROR(IF((VLOOKUP($A27,masterlist!$C$2:$AA$207,9,FALSE))=0,\"\",VLOOKUP($A27,masterlist!$C$2:$AA$207,9,FALSE)),\"\")","v":""},{"$f":"IFERROR(VLOOKUP($A27,masterlist!$C$2:$AA$207,20,FALSE),\"\")","v":""},{"$f":"IFERROR(VLOOKUP($A27,masterlist!$C$2:$AA$207,21,FALSE),\"\")","v":""},{"$f":"IFERROR(VLOOKUP($A27,masterlist!$C$2:$AA$207,22,FALSE),\"\")","v":""},{"$f":"IFERROR(IF($B$7=2,(VLOOKUP($A27,masterlist!$C$2:$AA$207,23,FALSE)-11),IF($B$7=4,(VLOOKUP($A27,masterlist!$C$2:$AA$207,23,FALSE)-9),IF($B$7=7,(VLOOKUP($A27,masterlist!$C$2:$AA$207,23,FALSE)-6),IF($B$7=10,(VLOOKUP($A27,masterlist!$C$2:$AA$207,23,FALSE)-3),(VLOOKUP($A27,masterlist!$C$2:$AA$207,23,FALSE)))))),\"\")","v":""},{"$f":"IFERROR(VLOOKUP($A27,masterlist!$C$2:$AA$207,24,FALSE),\"\")","v":""}]
[{"$f":"IF(ROWS($A$13:A28)<=(SUMPRODUCT((masterlist!B:B=\"LEG\")*(masterlist!J:J=0))),INDEX(masterlist!$C$2:$C$207,SMALL(IF(masterlist!$B$2:$B$207=\"LEG\",IF(masterlist!$F$2:$F$207>0,IF(masterlist!$J$2:$J$207=0,ROW(masterlist!$B$2:$B$207)-ROW(masterlist!$B$2)+1))),ROWS($A$13:A28))),\"\")","v":""},{"$f":"IFERROR(VLOOKUP($A28,masterlist!$C$2:$AA$207,3,FALSE),\"\")","v":""},{"$f":"IFERROR(VLOOKUP($A28,masterlist!$C$2:$AA$207,2,FALSE),\"\")","v":""},{"$f":"IFERROR(VLOOKUP($A28,masterlist!$C$2:$AD$207,28,FALSE),\"\")","v":""},{"$f":"IFERROR(IF((VLOOKUP($A28,masterlist!$C$2:$AA$207,9,FALSE))=0,\"\",VLOOKUP($A28,masterlist!$C$2:$AA$207,9,FALSE)),\"\")","v":""},{"$f":"IFERROR(VLOOKUP($A28,masterlist!$C$2:$AA$207,20,FALSE),\"\")","v":""},{"$f":"IFERROR(VLOOKUP($A28,masterlist!$C$2:$AA$207,21,FALSE),\"\")","v":""},{"$f":"IFERROR(VLOOKUP($A28,masterlist!$C$2:$AA$207,22,FALSE),\"\")","v":""},{"$f":"IFERROR(IF($B$7=2,(VLOOKUP($A28,masterlist!$C$2:$AA$207,23,FALSE)-11),IF($B$7=4,(VLOOKUP($A28,masterlist!$C$2:$AA$207,23,FALSE)-9),IF($B$7=7,(VLOOKUP($A28,masterlist!$C$2:$AA$207,23,FALSE)-6),IF($B$7=10,(VLOOKUP($A28,masterlist!$C$2:$AA$207,23,FALSE)-3),(VLOOKUP($A28,masterlist!$C$2:$AA$207,23,FALSE)))))),\"\")","v":""},{"$f":"IFERROR(VLOOKUP($A28,masterlist!$C$2:$AA$207,24,FALSE),\"\")","v":""}]
[{"$f":"IF(ROWS($A$13:A29)<=(SUMPRODUCT((masterlist!B:B=\"LEG\")*(masterlist!J:J=0))),INDEX(masterlist!$C$2:$C$207,SMALL(IF(masterlist!$B$2:$B$207=\"LEG\",IF(masterlist!$F$2:$F$207>0,IF(masterlist!$J$2:$J$207=0,ROW(masterlist!$B$2:$B$207)-ROW(masterlist!$B$2)+1))),ROWS($A$13:A29))),\"\")","v":""},{"$f":"IFERROR(VLOOKUP($A29,masterlist!$C$2:$AA$207,3,FALSE),\"\")","v":""},{"$f":"IFERROR(VLOOKUP($A29,masterlist!$C$2:$AA$207,2,FALSE),\"\")","v":""},{"$f":"IFERROR(VLOOKUP($A29,masterlist!$C$2:$AD$207,28,FALSE),\"\")","v":""},{"$f":"IFERROR(IF((VLOOKUP($A29,masterlist!$C$2:$AA$207,9,FALSE))=0,\"\",VLOOKUP($A29,masterlist!$C$2:$AA$207,9,FALSE)),\"\")","v":""},{"$f":"IFERROR(VLOOKUP($A29,masterlist!$C$2:$AA$207,20,FALSE),\"\")","v":""},{"$f":"IFERROR(VLOOKUP($A29,masterlist!$C$2:$AA$207,21,FALSE),\"\")","v":""},{"$f":"IFERROR(VLOOKUP($A29,masterlist!$C$2:$AA$207,22,FALSE),\"\")","v":""},{"$f":"IFERROR(IF($B$7=2,(VLOOKUP($A29,masterlist!$C$2:$AA$207,23,FALSE)-11),IF($B$7=4,(VLOOKUP($A29,masterlist!$C$2:$AA$207,23,FALSE)-9),IF($B$7=7,(VLOOKUP($A29,masterlist!$C$2:$AA$207,23,FALSE)-6),IF($B$7=10,(VLOOKUP($A29,masterlist!$C$2:$AA$207,23,FALSE)-3),(VLOOKUP($A29,masterlist!$C$2:$AA$207,23,FALSE)))))),\"\")","v":""},{"$f":"IFERROR(VLOOKUP($A29,masterlist!$C$2:$AA$207,24,FALSE),\"\")","v":""}]
[{"$f":"IF(ROWS($A$13:A30)<=(SUMPRODUCT((masterlist!B:B=\"LEG\")*(masterlist!J:J=0))),INDEX(masterlist!$C$2:$C$207,SMALL(IF(masterlist!$B$2:$B$207=\"LEG\",IF(masterlist!$F$2:$F$207>0,IF(masterlist!$J$2:$J$207=0,ROW(masterlist!$B$2:$B$207)-ROW(masterlist!$B$2)+1))),ROWS($A$13:A30))),\"\")","v":""},{"$f":"IFERROR(VLOOKUP($A30,masterlist!$C$2:$AA$207,3,FALSE),\"\")","v":""},{"$f":"IFERROR(VLOOKUP($A30,masterlist!$C$2:$AA$207,2,FALSE),\"\")","v":""},{"$f":"IFERROR(VLOOKUP($A30,masterlist!$C$2:$AD$207,28,FALSE),\"\")","v":""},{"$f":"IFERROR(IF((VLOOKUP($A30,masterlist!$C$2:$AA$207,9,FALSE))=0,\"\",VLOOKUP($A30,masterlist!$C$2:$AA$207,9,FALSE)),\"\")","v":""},{"$f":"IFERROR(VLOOKUP($A30,masterlist!$C$2:$AA$207,20,FALSE),\"\")","v":""},{"$f":"IFERROR(VLOOKUP($A30,masterlist!$C$2:$AA$207,21,FALSE),\"\")","v":""},{"$f":"IFERROR(VLOOKUP($A30,masterlist!$C$2:$AA$207,22,FALSE),\"\")","v":""},{"$f":"IFERROR(IF($B$7=2,(VLOOKUP($A30,masterlist!$C$2:$AA$207,23,FALSE)-11),IF($B$7=4,(VLOOKUP($A30,masterlist!$C$2:$AA$207,23,FALSE)-9),IF($B$7=7,(VLOOKUP($A30,masterlist!$C$2:$AA$207,23,FALSE)-6),IF($B$7=10,(VLOOKUP($A30,masterlist!$C$2:$AA$207,23,FALSE)-3),(VLOOKUP($A30,masterlist!$C$2:$AA$207,23,FALSE)))))),\"\")","v":""},{"$f":"IFERROR(VLOOKUP($A30,masterlist!$C$2:$AA$207,24,FALSE),\"\")","v":""}]
[{"$f":"IF(ROWS($A$13:A31)<=(SUMPRODUCT((masterlist!B:B=\"LEG\")*(masterlist!J:J=0))),INDEX(masterlist!$C$2:$C$207,SMALL(IF(masterlist!$B$2:$B$207=\"LEG\",IF(masterlist!$F$2:$F$207>0,IF(masterlist!$J$2:$J$207=0,ROW(masterlist!$B$2:$B$207)-ROW(masterlist!$B$2)+1))),ROWS($A$13:A31))),\"\")","v":""},{"$f":"IFERROR(VLOOKUP($A31,masterlist!$C$2:$AA$207,3,FALSE),\"\")","v":""},{"$f":"IFERROR(VLOOKUP($A31,masterlist!$C$2:$AA$207,2,FALSE),\"\")","v":""},{"$f":"IFERROR(VLOOKUP($A31,masterlist!$C$2:$AD$207,28,FALSE),\"\")","v":""},{"$f":"IFERROR(IF((VLOOKUP($A31,masterlist!$C$2:$AA$207,9,FALSE))=0,\"\",VLOOKUP($A31,masterlist!$C$2:$AA$207,9,FALSE)),\"\")","v":""},{"$f":"IFERROR(VLOOKUP($A31,masterlist!$C$2:$AA$207,20,FALSE),\"\")","v":""},{"$f":"IFERROR(VLOOKUP($A31,masterlist!$C$2:$AA$207,21,FALSE),\"\")","v":""},{"$f":"IFERROR(VLOOKUP($A31,masterlist!$C$2:$AA$207,22,FALSE),\"\")","v":""},{"$f":"IFERROR(IF($B$7=2,(VLOOKUP($A31,masterlist!$C$2:$AA$207,23,FALSE)-11),IF($B$7=4,(VLOOKUP($A31,masterlist!$C$2:$AA$207,23,FALSE)-9),IF($B$7=7,(VLOOKUP($A31,masterlist!$C$2:$AA$207,23,FALSE)-6),IF($B$7=10,(VLOOKUP($A31,masterlist!$C$2:$AA$207,23,FALSE)-3),(VLOOKUP($A31,masterlist!$C$2:$AA$207,23,FALSE)))))),\"\")","v":""},{"$f":"IFERROR(VLOOKUP($A31,masterlist!$C$2:$AA$207,24,FALSE),\"\")","v":""}]
[{"$f":"IF(ROWS($A$13:A32)<=(SUMPRODUCT((masterlist!B:B=\"LEG\")*(masterlist!J:J=0))),INDEX(masterlist!$C$2:$C$207,SMALL(IF(masterlist!$B$2:$B$207=\"LEG\",IF(masterlist!$F$2:$F$207>0,IF(masterlist!$J$2:$J$207=0,ROW(masterlist!$B$2:$B$207)-ROW(masterlist!$B$2)+1))),ROWS($A$13:A32))),\"\")","v":""},{"$f":"IFERROR(VLOOKUP($A32,masterlist!$C$2:$AA$207,3,FALSE),\"\")","v":""},{"$f":"IFERROR(VLOOKUP($A32,masterlist!$C$2:$AA$207,2,FALSE),\"\")","v":""},{"$f":"IFERROR(VLOOKUP($A32,masterlist!$C$2:$AD$207,28,FALSE),\"\")","v":""},{"$f":"IFERROR(IF((VLOOKUP($A32,masterlist!$C$2:$AA$207,9,FALSE))=0,\"\",VLOOKUP($A32,masterlist!$C$2:$AA$207,9,FALSE)),\"\")","v":""},{"$f":"IFERROR(VLOOKUP($A32,masterlist!$C$2:$AA$207,20,FALSE),\"\")","v":""},{"$f":"IFERROR(VLOOKUP($A32,masterlist!$C$2:$AA$207,21,FALSE),\"\")","v":""},{"$f":"IFERROR(VLOOKUP($A32,masterlist!$C$2:$AA$207,22,FALSE),\"\")","v":""},{"$f":"IFERROR(IF($B$7=2,(VLOOKUP($A32,masterlist!$C$2:$AA$207,23,FALSE)-11),IF($B$7=4,(VLOOKUP($A32,masterlist!$C$2:$AA$207,23,FALSE)-9),IF($B$7=7,(VLOOKUP($A32,masterlist!$C$2:$AA$207,23,FALSE)-6),IF($B$7=10,(VLOOKUP($A32,masterlist!$C$2:$AA$207,23,FALSE)-3),(VLOOKUP($A32,masterlist!$C$2:$AA$207,23,FALSE)))))),\"\")","v":""},{"$f":"IFERROR(VLOOKUP($A32,masterlist!$C$2:$AA$207,24,FALSE),\"\")","v":""}]
[{"$f":"IF(ROWS($A$13:A33)<=(SUMPRODUCT((masterlist!B:B=\"LEG\")*(masterlist!J:J=0))),INDEX(masterlist!$C$2:$C$207,SMALL(IF(masterlist!$B$2:$B$207=\"LEG\",IF(masterlist!$F$2:$F$207>0,IF(masterlist!$J$2:$J$207=0,ROW(masterlist!$B$2:$B$207)-ROW(masterlist!$B$2)+1))),ROWS($A$13:A33))),\"\")","v":""},{"$f":"IFERROR(VLOOKUP($A33,masterlist!$C$2:$AA$207,3,FALSE),\"\")","v":""},{"$f":"IFERROR(VLOOKUP($A33,masterlist!$C$2:$AA$207,2,FALSE),\"\")","v":""},{"$f":"IFERROR(VLOOKUP($A33,masterlist!$C$2:$AD$207,28,FALSE),\"\")","v":""},{"$f":"IFERROR(IF((VLOOKUP($A33,masterlist!$C$2:$AA$207,9,FALSE))=0,\"\",VLOOKUP($A33,masterlist!$C$2:$AA$207,9,FALSE)),\"\")","v":""},{"$f":"IFERROR(VLOOKUP($A33,masterlist!$C$2:$AA$207,20,FALSE),\"\")","v":""},{"$f":"IFERROR(VLOOKUP($A33,masterlist!$C$2:$AA$207,21,FALSE),\"\")","v":""},{"$f":"IFERROR(VLOOKUP($A33,masterlist!$C$2:$AA$207,22,FALSE),\"\")","v":""},{"$f":"IFERROR(IF($B$7=2,(VLOOKUP($A33,masterlist!$C$2:$AA$207,23,FALSE)-11),IF($B$7=4,(VLOOKUP($A33,masterlist!$C$2:$AA$207,23,FALSE)-9),IF($B$7=7,(VLOOKUP($A33,masterlist!$C$2:$AA$207,23,FALSE)-6),IF($B$7=10,(VLOOKUP($A33,masterlist!$C$2:$AA$207,23,FALSE)-3),(VLOOKUP($A33,masterlist!$C$2:$AA$207,23,FALSE)))))),\"\")","v":""},{"$f":"IFERROR(VLOOKUP($A33,masterlist!$C$2:$AA$207,24,FALSE),\"\")","v":""}]
[{"$f":"IF(ROWS($A$13:A34)<=(SUMPRODUCT((masterlist!B:B=\"LEG\")*(masterlist!J:J=0))),INDEX(masterlist!$C$2:$C$207,SMALL(IF(masterlist!$B$2:$B$207=\"LEG\",IF(masterlist!$F$2:$F$207>0,IF(masterlist!$J$2:$J$207=0,ROW(masterlist!$B$2:$B$207)-ROW(masterlist!$B$2)+1))),ROWS($A$13:A34))),\"\")","v":""},{"$f":"IFERROR(VLOOKUP($A34,masterlist!$C$2:$AA$207,3,FALSE),\"\")","v":""},{"$f":"IFERROR(VLOOKUP($A34,masterlist!$C$2:$AA$207,2,FALSE),\"\")","v":""},{"$f":"IFERROR(VLOOKUP($A34,masterlist!$C$2:$AD$207,28,FALSE),\"\")","v":""},{"$f":"IFERROR(IF((VLOOKUP($A34,masterlist!$C$2:$AA$207,9,FALSE))=0,\"\",VLOOKUP($A34,masterlist!$C$2:$AA$207,9,FALSE)),\"\")","v":""},{"$f":"IFERROR(VLOOKUP($A34,masterlist!$C$2:$AA$207,20,FALSE),\"\")","v":""},{"$f":"IFERROR(VLOOKUP($A34,masterlist!$C$2:$AA$207,21,FALSE),\"\")","v":""},{"$f":"IFERROR(VLOOKUP($A34,masterlist!$C$2:$AA$207,22,FALSE),\"\")","v":""},{"$f":"IFERROR(IF($B$7=2,(VLOOKUP($A34,masterlist!$C$2:$AA$207,23,FALSE)-11),IF($B$7=4,(VLOOKUP($A34,masterlist!$C$2:$AA$207,23,FALSE)-9),IF($B$7=7,(VLOOKUP($A34,masterlist!$C$2:$AA$207,23,FALSE)-6),IF($B$7=10,(VLOOKUP($A34,masterlist!$C$2:$AA$207,23,FALSE)-3),(VLOOKUP($A34,masterlist!$C$2:$AA$207,23,FALSE)))))),\"\")","v":""},{"$f":"IFERROR(VLOOKUP($A34,masterlist!$C$2:$AA$207,24,FALSE),\"\")","v":""}]
[{"$f":"IF(ROWS($A$13:A35)<=(SUMPRODUCT((masterlist!B:B=\"LEG\")*(masterlist!J:J=0))),INDEX(masterlist!$C$2:$C$207,SMALL(IF(masterlist!$B$2:$B$207=\"LEG\",IF(masterlist!$F$2:$F$207>0,IF(masterlist!$J$2:$J$207=0,ROW(masterlist!$B$2:$B$207)-ROW(masterlist!$B$2)+1))),ROWS($A$13:A35))),\"\")","v":""},{"$f":"IFERROR(VLOOKUP($A35,masterlist!$C$2:$AA$207,3,FALSE),\"\")","v":""},{"$f":"IFERROR(VLOOKUP($A35,masterlist!$C$2:$AA$207,2,FALSE),\"\")","v":""},{"$f":"IFERROR(VLOOKUP($A35,masterlist!$C$2:$AD$207,28,FALSE),\"\")","v":""},{"$f":"IFERROR(IF((VLOOKUP($A35,masterlist!$C$2:$AA$207,9,FALSE))=0,\"\",VLOOKUP($A35,masterlist!$C$2:$AA$207,9,FALSE)),\"\")","v":""},{"$f":"IFERROR(VLOOKUP($A35,masterlist!$C$2:$AA$207,20,FALSE),\"\")","v":""},{"$f":"IFERROR(VLOOKUP($A35,masterlist!$C$2:$AA$207,21,FALSE),\"\")","v":""},{"$f":"IFERROR(VLOOKUP($A35,masterlist!$C$2:$AA$207,22,FALSE),\"\")","v":""},{"$f":"IFERROR(IF($B$7=2,(VLOOKUP($A35,masterlist!$C$2:$AA$207,23,FALSE)-11),IF($B$7=4,(VLOOKUP($A35,masterlist!$C$2:$AA$207,23,FALSE)-9),IF($B$7=7,(VLOOKUP($A35,masterlist!$C$2:$AA$207,23,FALSE)-6),IF($B$7=10,(VLOOKUP($A35,masterlist!$C$2:$AA$207,23,FALSE)-3),(VLOOKUP($A35,masterlist!$C$2:$AA$207,23,FALSE)))))),\"\")","v":""},{"$f":"IFERROR(VLOOKUP($A35,masterlist!$C$2:$AA$207,24,FALSE),\"\")","v":""}]
[{"$f":"IF(ROWS($A$13:A36)<=(SUMPRODUCT((masterlist!B:B=\"LEG\")*(masterlist!J:J=0))),INDEX(masterlist!$C$2:$C$207,SMALL(IF(masterlist!$B$2:$B$207=\"LEG\",IF(masterlist!$F$2:$F$207>0,IF(masterlist!$J$2:$J$207=0,ROW(masterlist!$B$2:$B$207)-ROW(masterlist!$B$2)+1))),ROWS($A$13:A36))),\"\")","v":""},{"$f":"IFERROR(VLOOKUP($A36,masterlist!$C$2:$AA$207,3,FALSE),\"\")","v":""},{"$f":"IFERROR(VLOOKUP($A36,masterlist!$C$2:$AA$207,2,FALSE),\"\")","v":""},{"$f":"IFERROR(VLOOKUP($A36,masterlist!$C$2:$AD$207,28,FALSE),\"\")","v":""},{"$f":"IFERROR(IF((VLOOKUP($A36,masterlist!$C$2:$AA$207,9,FALSE))=0,\"\",VLOOKUP($A36,masterlist!$C$2:$AA$207,9,FALSE)),\"\")","v":""},{"$f":"IFERROR(VLOOKUP($A36,masterlist!$C$2:$AA$207,20,FALSE),\"\")","v":""},{"$f":"IFERROR(VLOOKUP($A36,masterlist!$C$2:$AA$207,21,FALSE),\"\")","v":""},{"$f":"IFERROR(VLOOKUP($A36,masterlist!$C$2:$AA$207,22,FALSE),\"\")","v":""},{"$f":"IFERROR(IF($B$7=2,(VLOOKUP($A36,masterlist!$C$2:$AA$207,23,FALSE)-11),IF($B$7=4,(VLOOKUP($A36,masterlist!$C$2:$AA$207,23,FALSE)-9),IF($B$7=7,(VLOOKUP($A36,masterlist!$C$2:$AA$207,23,FALSE)-6),IF($B$7=10,(VLOOKUP($A36,masterlist!$C$2:$AA$207,23,FALSE)-3),(VLOOKUP($A36,masterlist!$C$2:$AA$207,23,FALSE)))))),\"\")","v":""},{"$f":"IFERROR(VLOOKUP($A36,masterlist!$C$2:$AA$207,24,FALSE),\"\")","v":""}]
[{"$f":"IF(ROWS($A$13:A37)<=(SUMPRODUCT((masterlist!B:B=\"LEG\")*(masterlist!J:J=0))),INDEX(masterlist!$C$2:$C$207,SMALL(IF(masterlist!$B$2:$B$207=\"LEG\",IF(masterlist!$F$2:$F$207>0,IF(masterlist!$J$2:$J$207=0,ROW(masterlist!$B$2:$B$207)-ROW(masterlist!$B$2)+1))),ROWS($A$13:A37))),\"\")","v":""},{"$f":"IFERROR(VLOOKUP($A37,masterlist!$C$2:$AA$207,3,FALSE),\"\")","v":""},{"$f":"IFERROR(VLOOKUP($A37,masterlist!$C$2:$AA$207,2,FALSE),\"\")","v":""},{"$f":"IFERROR(VLOOKUP($A37,masterlist!$C$2:$AD$207,28,FALSE),\"\")","v":""},{"$f":"IFERROR(IF((VLOOKUP($A37,masterlist!$C$2:$AA$207,9,FALSE))=0,\"\",VLOOKUP($A37,masterlist!$C$2:$AA$207,9,FALSE)),\"\")","v":""},{"$f":"IFERROR(VLOOKUP($A37,masterlist!$C$2:$AA$207,20,FALSE),\"\")","v":""},{"$f":"IFERROR(VLOOKUP($A37,masterlist!$C$2:$AA$207,21,FALSE),\"\")","v":""},{"$f":"IFERROR(VLOOKUP($A37,masterlist!$C$2:$AA$207,22,FALSE),\"\")","v":""},{"$f":"IFERROR(IF($B$7=2,(VLOOKUP($A37,masterlist!$C$2:$AA$207,23,FALSE)-11),IF($B$7=4,(VLOOKUP($A37,masterlist!$C$2:$AA$207,23,FALSE)-9),IF($B$7=7,(VLOOKUP($A37,masterlist!$C$2:$AA$207,23,FALSE)-6),IF($B$7=10,(VLOOKUP($A37,masterlist!$C$2:$AA$207,23,FALSE)-3),(VLOOKUP($A37,masterlist!$C$2:$AA$207,23,FALSE)))))),\"\")","v":""},{"$f":"IFERROR(VLOOKUP($A37,masterlist!$C$2:$AA$207,24,FALSE),\"\")","v":""}]
[{"$f":"IF(ROWS($A$13:A38)<=(SUMPRODUCT((masterlist!B:B=\"LEG\")*(masterlist!J:J=0))),INDEX(masterlist!$C$2:$C$207,SMALL(IF(masterlist!$B$2:$B$207=\"LEG\",IF(masterlist!$F$2:$F$207>0,IF(masterlist!$J$2:$J$207=0,ROW(masterlist!$B$2:$B$207)-ROW(masterlist!$B$2)+1))),ROWS($A$13:A38))),\"\")","v":""},{"$f":"IFERROR(VLOOKUP($A38,masterlist!$C$2:$AA$207,3,FALSE),\"\")","v":""},{"$f":"IFERROR(VLOOKUP($A38,masterlist!$C$2:$AA$207,2,FALSE),\"\")","v":""},{"$f":"IFERROR(VLOOKUP($A38,masterlist!$C$2:$AD$207,28,FALSE),\"\")","v":""},{"$f":"IFERROR(IF((VLOOKUP($A38,masterlist!$C$2:$AA$207,9,FALSE))=0,\"\",VLOOKUP($A38,masterlist!$C$2:$AA$207,9,FALSE)),\"\")","v":""},{"$f":"IFERROR(VLOOKUP($A38,masterlist!$C$2:$AA$207,20,FALSE),\"\")","v":""},{"$f":"IFERROR(VLOOKUP($A38,masterlist!$C$2:$AA$207,21,FALSE),\"\")","v":""},{"$f":"IFERROR(VLOOKUP($A38,masterlist!$C$2:$AA$207,22,FALSE),\"\")","v":""},{"$f":"IFERROR(IF($B$7=2,(VLOOKUP($A38,masterlist!$C$2:$AA$207,23,FALSE)-11),IF($B$7=4,(VLOOKUP($A38,masterlist!$C$2:$AA$207,23,FALSE)-9),IF($B$7=7,(VLOOKUP($A38,masterlist!$C$2:$AA$207,23,FALSE)-6),IF($B$7=10,(VLOOKUP($A38,masterlist!$C$2:$AA$207,23,FALSE)-3),(VLOOKUP($A38,masterlist!$C$2:$AA$207,23,FALSE)))))),\"\")","v":""},{"$f":"IFERROR(VLOOKUP($A38,masterlist!$C$2:$AA$207,24,FALSE),\"\")","v":""}]
[{"$f":"IF(ROWS($A$13:A39)<=(SUMPRODUCT((masterlist!B:B=\"LEG\")*(masterlist!J:J=0))),INDEX(masterlist!$C$2:$C$207,SMALL(IF(masterlist!$B$2:$B$207=\"LEG\",IF(masterlist!$F$2:$F$207>0,IF(masterlist!$J$2:$J$207=0,ROW(masterlist!$B$2:$B$207)-ROW(masterlist!$B$2)+1))),ROWS($A$13:A39))),\"\")","v":""},{"$f":"IFERROR(VLOOKUP($A39,masterlist!$C$2:$AA$207,3,FALSE),\"\")","v":""},{"$f":"IFERROR(VLOOKUP($A39,masterlist!$C$2:$AA$207,2,FALSE),\"\")","v":""},{"$f":"IFERROR(VLOOKUP($A39,masterlist!$C$2:$AD$207,28,FALSE),\"\")","v":""},{"$f":"IFERROR(IF((VLOOKUP($A39,masterlist!$C$2:$AA$207,9,FALSE))=0,\"\",VLOOKUP($A39,masterlist!$C$2:$AA$207,9,FALSE)),\"\")","v":""},{"$f":"IFERROR(VLOOKUP($A39,masterlist!$C$2:$AA$207,20,FALSE),\"\")","v":""},{"$f":"IFERROR(VLOOKUP($A39,masterlist!$C$2:$AA$207,21,FALSE),\"\")","v":""},{"$f":"IFERROR(VLOOKUP($A39,masterlist!$C$2:$AA$207,22,FALSE),\"\")","v":""},{"$f":"IFERROR(IF($B$7=2,(VLOOKUP($A39,masterlist!$C$2:$AA$207,23,FALSE)-11),IF($B$7=4,(VLOOKUP($A39,masterlist!$C$2:$AA$207,23,FALSE)-9),IF($B$7=7,(VLOOKUP($A39,masterlist!$C$2:$AA$207,23,FALSE)-6),IF($B$7=10,(VLOOKUP($A39,masterlist!$C$2:$AA$207,23,FALSE)-3),(VLOOKUP($A39,masterlist!$C$2:$AA$207,23,FALSE)))))),\"\")","v":""},{"$f":"IFERROR(VLOOKUP($A39,masterlist!$C$2:$AA$207,24,FALSE),\"\")","v":""}]
[{"$f":"IF(ROWS($A$13:A40)<=(SUMPRODUCT((masterlist!B:B=\"LEG\")*(masterlist!J:J=0))),INDEX(masterlist!$C$2:$C$207,SMALL(IF(masterlist!$B$2:$B$207=\"LEG\",IF(masterlist!$F$2:$F$207>0,IF(masterlist!$J$2:$J$207=0,ROW(masterlist!$B$2:$B$207)-ROW(masterlist!$B$2)+1))),ROWS($A$13:A40))),\"\")","v":""},{"$f":"IFERROR(VLOOKUP($A40,masterlist!$C$2:$AA$207,3,FALSE),\"\")","v":""},{"$f":"IFERROR(VLOOKUP($A40,masterlist!$C$2:$AA$207,2,FALSE),\"\")","v":""},{"$f":"IFERROR(VLOOKUP($A40,masterlist!$C$2:$AD$207,28,FALSE),\"\")","v":""},{"$f":"IFERROR(IF((VLOOKUP($A40,masterlist!$C$2:$AA$207,9,FALSE))=0,\"\",VLOOKUP($A40,masterlist!$C$2:$AA$207,9,FALSE)),\"\")","v":""},{"$f":"IFERROR(VLOOKUP($A40,masterlist!$C$2:$AA$207,20,FALSE),\"\")","v":""},{"$f":"IFERROR(VLOOKUP($A40,masterlist!$C$2:$AA$207,21,FALSE),\"\")","v":""},{"$f":"IFERROR(VLOOKUP($A40,masterlist!$C$2:$AA$207,22,FALSE),\"\")","v":""},{"$f":"IFERROR(IF($B$7=2,(VLOOKUP($A40,masterlist!$C$2:$AA$207,23,FALSE)-11),IF($B$7=4,(VLOOKUP($A40,masterlist!$C$2:$AA$207,23,FALSE)-9),IF($B$7=7,(VLOOKUP($A40,masterlist!$C$2:$AA$207,23,FALSE)-6),IF($B$7=10,(VLOOKUP($A40,masterlist!$C$2:$AA$207,23,FALSE)-3),(VLOOKUP($A40,masterlist!$C$2:$AA$207,23,FALSE)))))),\"\")","v":""},{"$f":"IFERROR(VLOOKUP($A40,masterlist!$C$2:$AA$207,24,FALSE),\"\")","v":""}]
[{"$f":"IF(ROWS($A$13:A41)<=(SUMPRODUCT((masterlist!B:B=\"LEG\")*(masterlist!J:J=0))),INDEX(masterlist!$C$2:$C$207,SMALL(IF(masterlist!$B$2:$B$207=\"LEG\",IF(masterlist!$F$2:$F$207>0,IF(masterlist!$J$2:$J$207=0,ROW(masterlist!$B$2:$B$207)-ROW(masterlist!$B$2)+1))),ROWS($A$13:A41))),\"\")","v":""},{"$f":"IFERROR(VLOOKUP($A41,masterlist!$C$2:$AA$207,3,FALSE),\"\")","v":""},{"$f":"IFERROR(VLOOKUP($A41,masterlist!$C$2:$AA$207,2,FALSE),\"\")","v":""},{"$f":"IFERROR(VLOOKUP($A41,masterlist!$C$2:$AD$207,28,FALSE),\"\")","v":""},{"$f":"IFERROR(IF((VLOOKUP($A41,masterlist!$C$2:$AA$207,9,FALSE))=0,\"\",VLOOKUP($A41,masterlist!$C$2:$AA$207,9,FALSE)),\"\")","v":""},{"$f":"IFERROR(VLOOKUP($A41,masterlist!$C$2:$AA$207,20,FALSE),\"\")","v":""},{"$f":"IFERROR(VLOOKUP($A41,masterlist!$C$2:$AA$207,21,FALSE),\"\")","v":""},{"$f":"IFERROR(VLOOKUP($A41,masterlist!$C$2:$AA$207,22,FALSE),\"\")","v":""},{"$f":"IFERROR(IF($B$7=2,(VLOOKUP($A41,masterlist!$C$2:$AA$207,23,FALSE)-11),IF($B$7=4,(VLOOKUP($A41,masterlist!$C$2:$AA$207,23,FALSE)-9),IF($B$7=7,(VLOOKUP($A41,masterlist!$C$2:$AA$207,23,FALSE)-6),IF($B$7=10,(VLOOKUP($A41,masterlist!$C$2:$AA$207,23,FALSE)-3),(VLOOKUP($A41,masterlist!$C$2:$AA$207,23,FALSE)))))),\"\")","v":""},{"$f":"IFERROR(VLOOKUP($A41,masterlist!$C$2:$AA$207,24,FALSE),\"\")","v":""}]
[{"$f":"IF(ROWS($A$13:A42)<=(SUMPRODUCT((masterlist!B:B=\"LEG\")*(masterlist!J:J=0))),INDEX(masterlist!$C$2:$C$207,SMALL(IF(masterlist!$B$2:$B$207=\"LEG\",IF(masterlist!$F$2:$F$207>0,IF(masterlist!$J$2:$J$207=0,ROW(masterlist!$B$2:$B$207)-ROW(masterlist!$B$2)+1))),ROWS($A$13:A42))),\"\")","v":""},{"$f":"IFERROR(VLOOKUP($A42,masterlist!$C$2:$AA$207,3,FALSE),\"\")","v":""},{"$f":"IFERROR(VLOOKUP($A42,masterlist!$C$2:$AA$207,2,FALSE),\"\")","v":""},{"$f":"IFERROR(VLOOKUP($A42,masterlist!$C$2:$AD$207,28,FALSE),\"\")","v":""},{"$f":"IFERROR(IF((VLOOKUP($A42,masterlist!$C$2:$AA$207,9,FALSE))=0,\"\",VLOOKUP($A42,masterlist!$C$2:$AA$207,9,FALSE)),\"\")","v":""},{"$f":"IFERROR(VLOOKUP($A42,masterlist!$C$2:$AA$207,20,FALSE),\"\")","v":""},{"$f":"IFERROR(VLOOKUP($A42,masterlist!$C$2:$AA$207,21,FALSE),\"\")","v":""},{"$f":"IFERROR(VLOOKUP($A42,masterlist!$C$2:$AA$207,22,FALSE),\"\")","v":""},{"$f":"IFERROR(IF($B$7=2,(VLOOKUP($A42,masterlist!$C$2:$AA$207,23,FALSE)-11),IF($B$7=4,(VLOOKUP($A42,masterlist!$C$2:$AA$207,23,FALSE)-9),IF($B$7=7,(VLOOKUP($A42,masterlist!$C$2:$AA$207,23,FALSE)-6),IF($B$7=10,(VLOOKUP($A42,masterlist!$C$2:$AA$207,23,FALSE)-3),(VLOOKUP($A42,masterlist!$C$2:$AA$207,23,FALSE)))))),\"\")","v":""},{"$f":"IFERROR(VLOOKUP($A42,masterlist!$C$2:$AA$207,24,FALSE),\"\")","v":""}]
[{"$f":"IF(ROWS($A$13:A43)<=(SUMPRODUCT((masterlist!B:B=\"LEG\")*(masterlist!J:J=0))),INDEX(masterlist!$C$2:$C$207,SMALL(IF(masterlist!$B$2:$B$207=\"LEG\",IF(masterlist!$F$2:$F$207>0,IF(masterlist!$J$2:$J$207=0,ROW(masterlist!$B$2:$B$207)-ROW(masterlist!$B$2)+1))),ROWS($A$13:A43))),\"\")","v":""},{"$f":"IFERROR(VLOOKUP($A43,masterlist!$C$2:$AA$207,3,FALSE),\"\")","v":""},{"$f":"IFERROR(VLOOKUP($A43,masterlist!$C$2:$AA$207,2,FALSE),\"\")","v":""},{"$f":"IFERROR(VLOOKUP($A43,masterlist!$C$2:$AD$207,28,FALSE),\"\")","v":""},{"$f":"IFERROR(IF((VLOOKUP($A43,masterlist!$C$2:$AA$207,9,FALSE))=0,\"\",VLOOKUP($A43,masterlist!$C$2:$AA$207,9,FALSE)),\"\")","v":""},{"$f":"IFERROR(VLOOKUP($A43,masterlist!$C$2:$AA$207,20,FALSE),\"\")","v":""},{"$f":"IFERROR(VLOOKUP($A43,masterlist!$C$2:$AA$207,21,FALSE),\"\")","v":""},{"$f":"IFERROR(VLOOKUP($A43,masterlist!$C$2:$AA$207,22,FALSE),\"\")","v":""},{"$f":"IFERROR(IF($B$7=2,(VLOOKUP($A43,masterlist!$C$2:$AA$207,23,FALSE)-11),IF($B$7=4,(VLOOKUP($A43,masterlist!$C$2:$AA$207,23,FALSE)-9),IF($B$7=7,(VLOOKUP($A43,masterlist!$C$2:$AA$207,23,FALSE)-6),IF($B$7=10,(VLOOKUP($A43,masterlist!$C$2:$AA$207,23,FALSE)-3),(VLOOKUP($A43,masterlist!$C$2:$AA$207,23,FALSE)))))),\"\")","v":""},{"$f":"IFERROR(VLOOKUP($A43,masterlist!$C$2:$AA$207,24,FALSE),\"\")","v":""}]
[{"$f":"IF(ROWS($A$13:A44)<=(SUMPRODUCT((masterlist!B:B=\"LEG\")*(masterlist!J:J=0))),INDEX(masterlist!$C$2:$C$207,SMALL(IF(masterlist!$B$2:$B$207=\"LEG\",IF(masterlist!$F$2:$F$207>0,IF(masterlist!$J$2:$J$207=0,ROW(masterlist!$B$2:$B$207)-ROW(masterlist!$B$2)+1))),ROWS($A$13:A44))),\"\")","v":""},{"$f":"IFERROR(VLOOKUP($A44,masterlist!$C$2:$AA$207,3,FALSE),\"\")","v":""},{"$f":"IFERROR(VLOOKUP($A44,masterlist!$C$2:$AA$207,2,FALSE),\"\")","v":""},{"$f":"IFERROR(VLOOKUP($A44,masterlist!$C$2:$AD$207,28,FALSE),\"\")","v":""},{"$f":"IFERROR(IF((VLOOKUP($A44,masterlist!$C$2:$AA$207,9,FALSE))=0,\"\",VLOOKUP($A44,masterlist!$C$2:$AA$207,9,FALSE)),\"\")","v":""},{"$f":"IFERROR(VLOOKUP($A44,masterlist!$C$2:$AA$207,20,FALSE),\"\")","v":""},{"$f":"IFERROR(VLOOKUP($A44,masterlist!$C$2:$AA$207,21,FALSE),\"\")","v":""},{"$f":"IFERROR(VLOOKUP($A44,masterlist!$C$2:$AA$207,22,FALSE),\"\")","v":""},{"$f":"IFERROR(IF($B$7=2,(VLOOKUP($A44,masterlist!$C$2:$AA$207,23,FALSE)-11),IF($B$7=4,(VLOOKUP($A44,masterlist!$C$2:$AA$207,23,FALSE)-9),IF($B$7=7,(VLOOKUP($A44,masterlist!$C$2:$AA$207,23,FALSE)-6),IF($B$7=10,(VLOOKUP($A44,masterlist!$C$2:$AA$207,23,FALSE)-3),(VLOOKUP($A44,masterlist!$C$2:$AA$207,23,FALSE)))))),\"\")","v":""},{"$f":"IFERROR(VLOOKUP($A44,masterlist!$C$2:$AA$207,24,FALSE),\"\")","v":""}]
[{"$f":"IF(ROWS($A$13:A45)<=(SUMPRODUCT((masterlist!B:B=\"LEG\")*(masterlist!J:J=0))),INDEX(masterlist!$C$2:$C$207,SMALL(IF(masterlist!$B$2:$B$207=\"LEG\",IF(masterlist!$F$2:$F$207>0,IF(masterlist!$J$2:$J$207=0,ROW(masterlist!$B$2:$B$207)-ROW(masterlist!$B$2)+1))),ROWS($A$13:A45))),\"\")","v":""},{"$f":"IFERROR(VLOOKUP($A45,masterlist!$C$2:$AA$207,3,FALSE),\"\")","v":""},{"$f":"IFERROR(VLOOKUP($A45,masterlist!$C$2:$AA$207,2,FALSE),\"\")","v":""},{"$f":"IFERROR(VLOOKUP($A45,masterlist!$C$2:$AD$207,28,FALSE),\"\")","v":""},{"$f":"IFERROR(IF((VLOOKUP($A45,masterlist!$C$2:$AA$207,9,FALSE))=0,\"\",VLOOKUP($A45,masterlist!$C$2:$AA$207,9,FALSE)),\"\")","v":""},{"$f":"IFERROR(VLOOKUP($A45,masterlist!$C$2:$AA$207,20,FALSE),\"\")","v":""},{"$f":"IFERROR(VLOOKUP($A45,masterlist!$C$2:$AA$207,21,FALSE),\"\")","v":""},{"$f":"IFERROR(VLOOKUP($A45,masterlist!$C$2:$AA$207,22,FALSE),\"\")","v":""},{"$f":"IFERROR(IF($B$7=2,(VLOOKUP($A45,masterlist!$C$2:$AA$207,23,FALSE)-11),IF($B$7=4,(VLOOKUP($A45,masterlist!$C$2:$AA$207,23,FALSE)-9),IF($B$7=7,(VLOOKUP($A45,masterlist!$C$2:$AA$207,23,FALSE)-6),IF($B$7=10,(VLOOKUP($A45,masterlist!$C$2:$AA$207,23,FALSE)-3),(VLOOKUP($A45,masterlist!$C$2:$AA$207,23,FALSE)))))),\"\")","v":""},{"$f":"IFERROR(VLOOKUP($A45,masterlist!$C$2:$AA$207,24,FALSE),\"\")","v":""}]
[{"$f":"IF(ROWS($A$13:A46)<=(SUMPRODUCT((masterlist!B:B=\"LEG\")*(masterlist!J:J=0))),INDEX(masterlist!$C$2:$C$207,SMALL(IF(masterlist!$B$2:$B$207=\"LEG\",IF(masterlist!$F$2:$F$207>0,IF(masterlist!$J$2:$J$207=0,ROW(masterlist!$B$2:$B$207)-ROW(masterlist!$B$2)+1))),ROWS($A$13:A46))),\"\")","v":""},{"$f":"IFERROR(VLOOKUP($A46,masterlist!$C$2:$AA$207,3,FALSE),\"\")","v":""},{"$f":"IFERROR(VLOOKUP($A46,masterlist!$C$2:$AA$207,2,FALSE),\"\")","v":""},{"$f":"IFERROR(VLOOKUP($A46,masterlist!$C$2:$AD$207,28,FALSE),\"\")","v":""},{"$f":"IFERROR(IF((VLOOKUP($A46,masterlist!$C$2:$AA$207,9,FALSE))=0,\"\",VLOOKUP($A46,masterlist!$C$2:$AA$207,9,FALSE)),\"\")","v":""},{"$f":"IFERROR(VLOOKUP($A46,masterlist!$C$2:$AA$207,20,FALSE),\"\")","v":""},{"$f":"IFERROR(VLOOKUP($A46,masterlist!$C$2:$AA$207,21,FALSE),\"\")","v":""},{"$f":"IFERROR(VLOOKUP($A46,masterlist!$C$2:$AA$207,22,FALSE),\"\")","v":""},{"$f":"IFERROR(IF($B$7=2,(VLOOKUP($A46,masterlist!$C$2:$AA$207,23,FALSE)-11),IF($B$7=4,(VLOOKUP($A46,masterlist!$C$2:$AA$207,23,FALSE)-9),IF($B$7=7,(VLOOKUP($A46,masterlist!$C$2:$AA$207,23,FALSE)-6),IF($B$7=10,(VLOOKUP($A46,masterlist!$C$2:$AA$207,23,FALSE)-3),(VLOOKUP($A46,masterlist!$C$2:$AA$207,23,FALSE)))))),\"\")","v":""},{"$f":"IFERROR(VLOOKUP($A46,masterlist!$C$2:$AA$207,24,FALSE),\"\")","v":""}]
[{"$f":"IF(ROWS($A$13:A47)<=(SUMPRODUCT((masterlist!B:B=\"LEG\")*(masterlist!J:J=0))),INDEX(masterlist!$C$2:$C$207,SMALL(IF(masterlist!$B$2:$B$207=\"LEG\",IF(masterlist!$F$2:$F$207>0,IF(masterlist!$J$2:$J$207=0,ROW(masterlist!$B$2:$B$207)-ROW(masterlist!$B$2)+1))),ROWS($A$13:A47))),\"\")","v":""},{"$f":"IFERROR(VLOOKUP($A47,masterlist!$C$2:$AA$207,3,FALSE),\"\")","v":""},{"$f":"IFERROR(VLOOKUP($A47,masterlist!$C$2:$AA$207,2,FALSE),\"\")","v":""},{"$f":"IFERROR(VLOOKUP($A47,masterlist!$C$2:$AD$207,28,FALSE),\"\")","v":""},{"$f":"IFERROR(IF((VLOOKUP($A47,masterlist!$C$2:$AA$207,9,FALSE))=0,\"\",VLOOKUP($A47,masterlist!$C$2:$AA$207,9,FALSE)),\"\")","v":""},{"$f":"IFERROR(VLOOKUP($A47,masterlist!$C$2:$AA$207,20,FALSE),\"\")","v":""},{"$f":"IFERROR(VLOOKUP($A47,masterlist!$C$2:$AA$207,21,FALSE),\"\")","v":""},{"$f":"IFERROR(VLOOKUP($A47,masterlist!$C$2:$AA$207,22,FALSE),\"\")","v":""},{"$f":"IFERROR(IF($B$7=2,(VLOOKUP($A47,masterlist!$C$2:$AA$207,23,FALSE)-11),IF($B$7=4,(VLOOKUP($A47,masterlist!$C$2:$AA$207,23,FALSE)-9),IF($B$7=7,(VLOOKUP($A47,masterlist!$C$2:$AA$207,23,FALSE)-6),IF($B$7=10,(VLOOKUP($A47,masterlist!$C$2:$AA$207,23,FALSE)-3),(VLOOKUP($A47,masterlist!$C$2:$AA$207,23,FALSE)))))),\"\")","v":""},{"$f":"IFERROR(VLOOKUP($A47,masterlist!$C$2:$AA$207,24,FALSE),\"\")","v":""}]
[{"$f":"IF(ROWS($A$13:A48)<=(SUMPRODUCT((masterlist!B:B=\"LEG\")*(masterlist!J:J=0))),INDEX(masterlist!$C$2:$C$207,SMALL(IF(masterlist!$B$2:$B$207=\"LEG\",IF(masterlist!$F$2:$F$207>0,IF(masterlist!$J$2:$J$207=0,ROW(masterlist!$B$2:$B$207)-ROW(masterlist!$B$2)+1))),ROWS($A$13:A48))),\"\")","v":""},{"$f":"IFERROR(VLOOKUP($A48,masterlist!$C$2:$AA$207,3,FALSE),\"\")","v":""},{"$f":"IFERROR(VLOOKUP($A48,masterlist!$C$2:$AA$207,2,FALSE),\"\")","v":""},{"$f":"IFERROR(VLOOKUP($A48,masterlist!$C$2:$AD$207,28,FALSE),\"\")","v":""},{"$f":"IFERROR(IF((VLOOKUP($A48,masterlist!$C$2:$AA$207,9,FALSE))=0,\"\",VLOOKUP($A48,masterlist!$C$2:$AA$207,9,FALSE)),\"\")","v":""},{"$f":"IFERROR(VLOOKUP($A48,masterlist!$C$2:$AA$207,20,FALSE),\"\")","v":""},{"$f":"IFERROR(VLOOKUP($A48,masterlist!$C$2:$AA$207,21,FALSE),\"\")","v":""},{"$f":"IFERROR(VLOOKUP($A48,masterlist!$C$2:$AA$207,22,FALSE),\"\")","v":""},{"$f":"IFERROR(IF($B$7=2,(VLOOKUP($A48,masterlist!$C$2:$AA$207,23,FALSE)-11),IF($B$7=4,(VLOOKUP($A48,masterlist!$C$2:$AA$207,23,FALSE)-9),IF($B$7=7,(VLOOKUP($A48,masterlist!$C$2:$AA$207,23,FALSE)-6),IF($B$7=10,(VLOOKUP($A48,masterlist!$C$2:$AA$207,23,FALSE)-3),(VLOOKUP($A48,masterlist!$C$2:$AA$207,23,FALSE)))))),\"\")","v":""},{"$f":"IFERROR(VLOOKUP($A48,masterlist!$C$2:$AA$207,24,FALSE),\"\")","v":""}]
[{"$f":"IF(ROWS($A$13:A49)<=(SUMPRODUCT((masterlist!B:B=\"LEG\")*(masterlist!J:J=0))),INDEX(masterlist!$C$2:$C$207,SMALL(IF(masterlist!$B$2:$B$207=\"LEG\",IF(masterlist!$F$2:$F$207>0,IF(masterlist!$J$2:$J$207=0,ROW(masterlist!$B$2:$B$207)-ROW(masterlist!$B$2)+1))),ROWS($A$13:A49))),\"\")","v":""},{"$f":"IFERROR(VLOOKUP($A49,masterlist!$C$2:$AA$207,3,FALSE),\"\")","v":""},{"$f":"IFERROR(VLOOKUP($A49,masterlist!$C$2:$AA$207,2,FALSE),\"\")","v":""},{"$f":"IFERROR(VLOOKUP($A49,masterlist!$C$2:$AD$207,28,FALSE),\"\")","v":""},{"$f":"IFERROR(IF((VLOOKUP($A49,masterlist!$C$2:$AA$207,9,FALSE))=0,\"\",VLOOKUP($A49,masterlist!$C$2:$AA$207,9,FALSE)),\"\")","v":""},{"$f":"IFERROR(VLOOKUP($A49,masterlist!$C$2:$AA$207,20,FALSE),\"\")","v":""},{"$f":"IFERROR(VLOOKUP($A49,masterlist!$C$2:$AA$207,21,FALSE),\"\")","v":""},{"$f":"IFERROR(VLOOKUP($A49,masterlist!$C$2:$AA$207,22,FALSE),\"\")","v":""},{"$f":"IFERROR(IF($B$7=2,(VLOOKUP($A49,masterlist!$C$2:$AA$207,23,FALSE)-11),IF($B$7=4,(VLOOKUP($A49,masterlist!$C$2:$AA$207,23,FALSE)-9),IF($B$7=7,(VLOOKUP($A49,masterlist!$C$2:$AA$207,23,FALSE)-6),IF($B$7=10,(VLOOKUP($A49,masterlist!$C$2:$AA$207,23,FALSE)-3),(VLOOKUP($A49,masterlist!$C$2:$AA$207,23,FALSE)))))),\"\")","v":""},{"$f":"IFERROR(VLOOKUP($A49,masterlist!$C$2:$AA$207,24,FALSE),\"\")","v":""}]
[{"$f":"IF(ROWS($A$13:A50)<=(SUMPRODUCT((masterlist!B:B=\"IEC\")*(masterlist!J:J=0))),INDEX(masterlist!$C$2:$C$207,SMALL(IF(masterlist!$B$2:$B$207=\"IEC\",IF(masterlist!$F$2:$F$207>0,IF(masterlist!$J$2:$J$207=0,ROW(masterlist!$B$2:$B$207)-ROW(masterlist!$B$2)+1))),ROWS($A$13:A50))),\"\")","v":""}]

{"sheet":"LEG","index":42,"n_rows":1,"n_cols":8,"rows_kept":1,"cut":false,"hidden":true,"merged":[[0,7,0,9],[1,1,1,9],[0,3,0,6]]}
[null,null,null,"Législation",null,null,null,"Plan de travail national pour l’élimination de la rage"]

{"sheet":"LEGgantt","index":43,"n_rows":49,"n_cols":17,"rows_kept":49,"cut":false,"hidden":true,"merged":[[0,1,0,16],[1,1,1,6],[2,1,2,16]]}
[null,"Plan de travail national pour l’élimination de la rage"]
[]
[null,"Législation - DIAGRAMME DE GANTT"]
[]
[null,null,null,null,1,2,3,4,5,6,7,8,9,10,11,12,13]
[null,"Theme","Étape","Activité",{"$f":"'NW country'!$E$35","v":2025},{"$f":"IF('NW country'!$K$4<6,E6+1,\"\")","v":2026},{"$f":"IF('NW country'!$K$4<5,E6+2,\"\")","v":2027},{"$f":"IF('NW country'!$K$4<5,E6+3,\"\")","v":2028},{"$f":"IF('NW country'!$K$4<4,E6+4,\"\")","v":2029},{"$f":"IF('NW country'!$K$4<4,E6+5,\"\")","v":2030},{"$f":"IF('NW country'!$K$4<4,E6+6,\"\")","v":2031},{"$f":"IF('NW country'!$K$4<3,E6+7,\"\")","v":2032},{"$f":"IF('NW country'!$K$4<3,E6+8,\"\")","v":2033},{"$f":"IF('NW country'!$K$4<3,E6+9,\"\")","v":2034},{"$f":"IF('NW country'!$K$4<2,E6+10,\"\")","v":2035},{"$f":"IF('NW country'!$K$4<2,E6+11,\"\")","v":2036},{"$f":"IF('NW country'!$K$4<2,E6+12,\"\")","v":2037}]
[13,{"$f":"IF((INDIRECT(\"leg!\"&\"$a\"&$A7))=0,\"\",INDIRECT(\"LEG!\"&\"$c\"&$A7))","v":""},{"$f":"IF(INDIRECT(\"LEG!\"&\"$a\"&$A7)=0,\"\",INDIRECT(\"LEG!\"&\"$b\"&$A7))","v":""},{"$f":"IF(INDIRECT(\"LEG!\"&\"$a\"&$A7)=0,\"\",INDIRECT(\"LEG!\"&\"$d\"&$A7))","v":""},{"$f":"IF($C7>6,\"\",IF(E$5<=INDIRECT(\"LEG!\"&\"$i\"&$A7),\"X\",\"\"))","v":""},{"$f":"IF($C7>6,\"\",IF(F$5<=INDIRECT(\"LEG!\"&\"$i\"&$A7),\"X\",\"\"))","v":""},"","","","","","","","","","",""]
[14,{"$f":"IF((INDIRECT(\"leg!\"&\"$a\"&$A8))=0,\"\",INDIRECT(\"LEG!\"&\"$c\"&$A8))","v":""},{"$f":"IF(INDIRECT(\"LEG!\"&\"$a\"&$A8)=0,\"\",INDIRECT(\"LEG!\"&\"$b\"&$A8))","v":""},{"$f":"IF(INDIRECT(\"LEG!\"&\"$a\"&$A8)=0,\"\",INDIRECT(\"LEG!\"&\"$d\"&$A8))","v":""},{"$f":"IF($C8>6,\"\",IF(E$5<=INDIRECT(\"LEG!\"&\"$i\"&$A8),\"X\",\"\"))","v":""},"","","","","","","","","","","",""]
[15,"","","","","","","","","","","","","","","",""]
[16,"","","","","","","","","","","","","","","",""]
[17,"","","","","","","","","","","","","","","",""]
[18,"","","","","","","","","","","","","","","",""]
[19,"","","","","","","","","","","","","","","",""]
[20,"","","","","","","","","","","","","","","",""]
[21,"","","","","","","","","","","","","","","",""]
[22,"","","","","","","","","","","","","","","",""]
[23,"","","","","","","","","","","","","","","",""]
[24,"","","","","","","","","","","","","","","",""]
[25,"","","","","","","","","","","","","","","",""]
[26,"","","","","","","","","","","","","","","",""]
[27,"","","","","","","","","","","","","","","",""]
[28,"","","","","","","","","","","","","","","",""]
[29,"","","","","","","","","","","","","","","",""]
[30,"","","","","","","","","","","","","","","",""]
[31,"","","","","","","","","","","","","","","",""]
[32,"","","","","","","","","","","","","","","",""]
[33,"","","","","","","","","","","","","","","",""]
[34,"","","","","","","","","","","","","","","",""]
[35,"","","","","","","","","","","","","","","",""]
[36,"","","","","","","","","","","","","","","",""]
[37,"","","","","","","","","","","","","","","",""]
[38,"","","","","","","","","","","","","","","",""]
[39,"","","","","","","","","","","","","","","",""]
[40,"","","","","","","","","","","","","","","",""]
[41,"","","","","","","","","","","","","","","",""]
[42,"","","","","","","","","","","","","","","",""]
[43,"","","","","","","","","","","","","","","",""]
[44,"","","","","","","","","","","","","","","",""]
[45,"","","","","","","","","","","","","","","",""]
[46,"","","","","","","","","","","","","","","",""]
[47,"","","","","","","","","",{"$f":"IF($C41>6,\"\",IF(K$5<=INDIRECT(\"LEG!\"&\"$i\"&$A41),\"X\",\"\"))","v":""},"","","","","",""]
[48,"","","",{"$f":"IF($C42>6,\"\",IF(E$5<=INDIRECT(\"LEG!\"&\"$i\"&$A42),\"X\",\"\"))","v":""},"","","","","","","","","","","",""]
[49,"","","","","","","","","","","","","","","",""]
[50,"","","","","","","","","","","","","","","",""]
[51,"","","","","","","","","","","","","","","",""]
[52,"","","","","","","","","","","","","","","",""]
[53,"","","","","","","","","","","","","","","",""]
[54,"","","","","","","","","","","","","","","",""]
[55,"","","","","","","","","","","","","","","",""]

{"sheet":"rawgantt","index":44,"n_rows":199,"n_cols":35,"rows_kept":199,"cut":false,"hidden":true,"merged":[[0,1,0,17],[1,1,1,7],[2,1,2,17]]}
[null,"Practical Workplan towards Achieving Rabies Elimination"]
[]
[null,"GANTT CHART"]
[]
[null,null,null,null,null,1,2,3,4,5,6,7,8,9,10,11,12,13,null,null,null,null,{"$f":"TEXT(F6,\"0\")","v":"2025"},{"$f":"TEXT(G6,\"0\")","v":"2026"},"2027","2028","2029","2030","2031","2032","2033","2034","2035","2036","2037"]
[null,"Composante ","Theme","Étape","Activité",{"$f":"'NW country'!$E$35","v":2025},{"$f":"IF('NW country'!$K$4<6,F6+1,\"\")","v":2026},{"$f":"IF('NW country'!$K$4<5,F6+2,\"\")","v":2027},{"$f":"IF('NW country'!$K$4<5,F6+3,\"\")","v":2028},{"$f":"IF('NW country'!$K$4<4,F6+4,\"\")","v":2029},{"$f":"IF('NW country'!$K$4<4,F6+5,\"\")","v":2030},{"$f":"IF('NW country'!$K$4<4,F6+6,\"\")","v":2031},{"$f":"IF('NW country'!$K$4<3,F6+7,\"\")","v":2032},{"$f":"IF('NW country'!$K$4<3,F6+8,\"\")","v":2033},{"$f":"IF('NW country'!$K$4<3,F6+9,\"\")","v":2034},{"$f":"IF('NW country'!$K$4<2,F6+10,\"\")","v":2035},{"$f":"IF('NW country'!$K$4<2,F6+11,\"\")","v":2036},{"$f":"IF('NW country'!$K$4<2,F6+12,\"\")","v":2037},null,null,null,null,{"$f":"SUM(W7:W199)","v":6},{"$f":"SUM(X7:X199)","v":0},1,3,0,3,2,2,1,0,0,1,57]
[{"$f":"IFERROR(priorit!A6,\"\")","v":"DCA-Sur-1-8"},{"$f":"IFERROR(LEFT(A7,3),\"\")","v":"DCA"},{"$f":"IFERROR(VLOOKUP($A7,masterlist!$C$2:$AA$207,2,FALSE),\"\")","v":"Surveillance"},{"$f":"IFERROR(VLOOKUP($A7,masterlist!$C$2:$AA$207,3,FALSE),\"\")","v":1},{"$f":"IFERROR(VLOOKUP($A7,masterlist!$C$2:$AD$207,28,FALSE),\"\")","v":"Communiquer chaque année toutes les données relatives à la rage animale à l’OMSA."},{"$f":"IF($D7>6,\"\",IF(F$5<=(VLOOKUP($A7,masterlist!$C$2:$AC$207,27,FALSE)),1,\"\"))","v":1},{"$f":"IF($D7>6,\"\",IF(G$5<=(VLOOKUP($A7,masterlist!$C$2:$AC$207,27,FALSE)),1,\"\"))","v":1},{"$f":"IF($D7>6,\"\",IF(H$5<=(VLOOKUP($A7,masterlist!$C$2:$AC$207,27,FALSE)),1,\"\"))","v":1},{"$f":"IF($D7>6,\"\",IF(I$5<=(VLOOKUP($A7,masterlist!$C$2:$AC$207,27,FALSE)),1,\"\"))","v":1},{"$f":"IF($D7>6,\"\",IF(J$5<=(VLOOKUP($A7,masterlist!$C$2:$AC$207,27,FALSE)),1,\"\"))","v":1},{"$f":"IF($D7>6,\"\",IF(K$5<=(VLOOKUP($A7,masterlist!$C$2:$AC$207,27,FALSE)),1,\"\"))","v":1},{"$f":"IF($D7>6,\"\",IF(L$5<=(VLOOKUP($A7,masterlist!$C$2:$AC$207,27,FALSE)),1,\"\"))","v":1},{"$f":"IF($D7>6,\"\",IF(M$5<=(VLOOKUP($A7,masterlist!$C$2:$AC$207,27,FALSE)),1,\"\"))","v":1},{"$f":"IF($D7>6,\"\",IF(N$5<=(VLOOKUP($A7,masterlist!$C$2:$AC$207,27,FALSE)),1,\"\"))","v":1},{"$f":"IF($D7>6,\"\",IF(O$5<=(VLOOKUP($A7,masterlist!$C$2:$AC$207,27,FALSE)),1,\"\"))","v":1},{"$f":"IF($D7>6,\"\",IF(P$5<=(VLOOKUP($A7,masterlist!$C$2:$AC$207,27,FALSE)),1,\"\"))","v":1},{"$f":"IF($D7>6,\"\",IF(Q$5<=(VLOOKUP($A7,masterlist!$C$2:$AC$207,27,FALSE)),1,\"\"))","v":1},{"$f":"IF($D7>6,\"\",IF(R$5<=(VLOOKUP($A7,masterlist!$C$2:$AC$207,27,FALSE)),1,\"\"))","v":1},null,null,null,null,{"$f":"IF(F7=1,1,0)-IF(G7=1,1,0)","v":0},{"$f":"IF(G7=1,1,0)-IF(H7=1,1,0)","v":0},0,0,0,0,0,0,0,0,0,0,1]
[{"$f":"IFERROR(priorit!A7,\"\")","v":"DCA-Sur-1-10"},"DCA",{"$f":"IFERROR(VLOOKUP($A8,masterlist!$C$2:$AA$207,2,FALSE),\"\")","v":"Surveillance"},{"$f":"IFERROR(VLOOKUP($A8,masterlist!$C$2:$AA$207,3,FALSE),\"\")","v":1},{"$f":"IFERROR(VLOOKUP($A8,masterlist!$C$2:$AD$207,28,FALSE),\"\")","v":"Communiquer toutes les données relatives à la rage humaine à l’OMS chaque année."},{"$f":"IF($D8>6,\"\",IF(F$5<=(VLOOKUP($A8,masterlist!$C$2:$AC$207,27,FALSE)),1,\"\"))","v":1},{"$f":"IF($D8>6,\"\",IF(G$5<=(VLOOKUP($A8,masterlist!$C$2:$AC$207,27,FALSE)),1,\"\"))","v":1},{"$f":"IF($D8>6,\"\",IF(H$5<=(VLOOKUP($A8,masterlist!$C$2:$AC$207,27,FALSE)),1,\"\"))","v":1},{"$f":"IF($D8>6,\"\",IF(I$5<=(VLOOKUP($A8,masterlist!$C$2:$AC$207,27,FALSE)),1,\"\"))","v":1},{"$f":"IF($D8>6,\"\",IF(J$5<=(VLOOKUP($A8,masterlist!$C$2:$AC$207,27,FALSE)),1,\"\"))","v":1},{"$f":"IF($D8>6,\"\",IF(K$5<=(VLOOKUP($A8,masterlist!$C$2:$AC$207,27,FALSE)),1,\"\"))","v":1},{"$f":"IF($D8>6,\"\",IF(L$5<=(VLOOKUP($A8,masterlist!$C$2:$AC$207,27,FALSE)),1,\"\"))","v":1},{"$f":"IF($D8>6,\"\",IF(M$5<=(VLOOKUP($A8,masterlist!$C$2:$AC$207,27,FALSE)),1,\"\"))","v":1},{"$f":"IF($D8>6,\"\",IF(N$5<=(VLOOKUP($A8,masterlist!$C$2:$AC$207,27,FALSE)),1,\"\"))","v":1},{"$f":"IF($D8>6,\"\",IF(O$5<=(VLOOKUP($A8,masterlist!$C$2:$AC$207,27,FALSE)),1,\"\"))","v":1},{"$f":"IF($D8>6,\"\",IF(P$5<=(VLOOKUP($A8,masterlist!$C$2:$AC$207,27,FALSE)),1,\"\"))","v":1},{"$f":"IF($D8>6,\"\",IF(Q$5<=(VLOOKUP($A8,masterlist!$C$2:$AC$207,27,FALSE)),1,\"\"))","v":1},{"$f":"IF($D8>6,\"\",IF(R$5<=(VLOOKUP($A8,masterlist!$C$2:$AC$207,27,FALSE)),1,\"\"))","v":1},null,null,null,null,{"$f":"IF(F8=1,1,0)-IF(G8=1,1,0)","v":0},{"$f":"IF(G8=1,1,0)-IF(H8=1,1,0)","v":0},{"$f":"IF(H8=1,1,0)-IF(I8=1,1,0)","v":0},{"$f":"IF(I8=1,1,0)-IF(J8=1,1,0)","v":0},{"$f":"IF(J8=1,1,0)-IF(K8=1,1,0)","v":0},{"$f":"IF(K8=1,1,0)-IF(L8=1,1,0)","v":0},{"$f":"IF(L8=1,1,0)-IF(M8=1,1,0)","v":0},{"$f":"IF(M8=1,1,0)-IF(N8=1,1,0)","v":0},{"$f":"IF(N8=1,1,0)-IF(O8=1,1,0)","v":0},{"$f":"IF(O8=1,1,0)-IF(P8=1,1,0)","v":0},{"$f":"IF(P8=1,1,0)-IF(Q8=1,1,0)","v":0},{"$f":"IF(Q8=1,1,0)-IF(R8=1,1,0)","v":0},{"$f":"IF(R8=1,1,0)-IF(S8=1,1,0)","v":1}]
[{"$f":"IFERROR(priorit!A8,\"\")","v":"DCA-Sur-1-12"},"DCA",{"$f":"IFERROR(VLOOKUP($A9,masterlist!$C$2:$AA$207,2,FALSE),\"\")","v":"Surveillance"},{"$f":"IFERROR(VLOOKUP($A9,masterlist!$C$2:$AA$207,3,FALSE),\"\")","v":1},{"$f":"IFERROR(VLOOKUP($A9,masterlist!$C$2:$AD$207,28,FALSE),\"\")","v":"Entreprendre une étude sur la taille et l’accessibilité de la population canine dans une région du pays."},{"$f":"IF($D9>6,\"\",IF(F$5<=(VLOOKUP($A9,masterlist!$C$2:$AC$207,27,FALSE)),1,\"\"))","v":1},{"$f":"IF($D9>6,\"\",IF(G$5<=(VLOOKUP($A9,masterlist!$C$2:$AC$207,27,FALSE)),1,\"\"))","v":1},{"$f":"IF($D9>6,\"\",IF(H$5<=(VLOOKUP($A9,masterlist!$C$2:$AC$207,27,FALSE)),1,\"\"))","v":1},{"$f":"IF($D9>6,\"\",IF(I$5<=(VLOOKUP($A9,masterlist!$C$2:$AC$207,27,FALSE)),1,\"\"))","v":1},{"$f":"IF($D9>6,\"\",IF(J$5<=(VLOOKUP($A9,masterlist!$C$2:$AC$207,27,FALSE)),1,\"\"))","v":1},{"$f":"IF($D9>6,\"\",IF(K$5<=(VLOOKUP($A9,masterlist!$C$2:$AC$207,27,FALSE)),1,\"\"))","v":1},{"$f":"IF($D9>6,\"\",IF(L$5<=(VLOOKUP($A9,masterlist!$C$2:$AC$207,27,FALSE)),1,\"\"))","v":1},{"$f":"IF($D9>6,\"\",IF(M$5<=(VLOOKUP($A9,masterlist!$C$2:$AC$207,27,FALSE)),1,\"\"))","v":1},{"$f":"IF($D9>6,\"\",IF(N$5<=(VLOOKUP($A9,masterlist!$C$2:$AC$207,27,FALSE)),1,\"\"))","v":1},{"$f":"IF($D9>6,\"\",IF(O$5<=(VLOOKUP($A9,masterlist!$C$2:$AC$207,27,FALSE)),1,\"\"))","v":1},{"$f":"IF($D9>6,\"\",IF(P$5<=(VLOOKUP($A9,masterlist!$C$2:$AC$207,27,FALSE)),1,\"\"))","v":1},{"$f":"IF($D9>6,\"\",IF(Q$5<=(VLOOKUP($A9,masterlist!$C$2:$AC$207,27,FALSE)),1,\"\"))","v":1},{"$f":"IF($D9>6,\"\",IF(R$5<=(VLOOKUP($A9,masterlist!$C$2:$AC$207,27,FALSE)),1,\"\"))","v":1},null,null,null,null,0,0,0,0,0,0,0,0,0,0,0,0,1]
[{"$f":"IFERROR(priorit!A9,\"\")","v":"DCA-Sur-2-15"},"DCA",{"$f":"IFERROR(VLOOKUP($A10,masterlist!$C$2:$AA$207,2,FALSE),\"\")","v":"Surveillance"},{"$f":"IFERROR(VLOOKUP($A10,masterlist!$C$2:$AA$207,3,FALSE),\"\")","v":2},{"$f":"IFERROR(VLOOKUP($A10,masterlist!$C$2:$AD$207,28,FALSE),\"\")","v":"Partager régulièrement TOUTES des données disponibles sur la rage (humaine et animale) avec toutes les autres parties prenantes."},{"$f":"IF($D10>6,\"\",IF(F$5<=(VLOOKUP($A10,masterlist!$C$2:$AC$207,27,FALSE)),1,\"\"))","v":1},{"$f":"IF($D10>6,\"\",IF(G$5<=(VLOOKUP($A10,masterlist!$C$2:$AC$207,27,FALSE)),1,\"\"))","v":1},{"$f":"IF($D10>6,\"\",IF(H$5<=(VLOOKUP($A10,masterlist!$C$2:$AC$207,27,FALSE)),1,\"\"))","v":1},{"$f":"IF($D10>6,\"\",IF(I$5<=(VLOOKUP($A10,masterlist!$C$2:$AC$207,27,FALSE)),1,\"\"))","v":1},{"$f":"IF($D10>6,\"\",IF(J$5<=(VLOOKUP($A10,masterlist!$C$2:$AC$207,27,FALSE)),1,\"\"))","v":1},{"$f":"IF($D10>6,\"\",IF(K$5<=(VLOOKUP($A10,masterlist!$C$2:$AC$207,27,FALSE)),1,\"\"))","v":1},{"$f":"IF($D10>6,\"\",IF(L$5<=(VLOOKUP($A10,masterlist!$C$2:$AC$207,27,FALSE)),1,\"\"))","v":1},{"$f":"IF($D10>6,\"\",IF(M$5<=(VLOOKUP($A10,masterlist!$C$2:$AC$207,27,FALSE)),1,\"\"))","v":1},{"$f":"IF($D10>6,\"\",IF(N$5<=(VLOOKUP($A10,masterlist!$C$2:$AC$207,27,FALSE)),1,\"\"))","v":1},{"$f":"IF($D10>6,\"\",IF(O$5<=(VLOOKUP($A10,masterlist!$C$2:$AC$207,27,FALSE)),1,\"\"))","v":1},{"$f":"IF($D10>6,\"\",IF(P$5<=(VLOOKUP($A10,masterlist!$C$2:$AC$207,27,FALSE)),1,\"\"))","v":1},{"$f":"IF($D10>6,\"\",IF(Q$5<=(VLOOKUP($A10,masterlist!$C$2:$AC$207,27,FALSE)),1,\"\"))","v":1},{"$f":"IF($D10>6,\"\",IF(R$5<=(VLOOKUP($A10,masterlist!$C$2:$AC$207,27,FALSE)),1,\"\"))","v":1},null,null,null,null,0,0,0,0,0,0,0,0,0,0,0,0,1]
[{"$f":"IFERROR(priorit!A10,\"\")","v":"DCA-Sur-2-16"},"DCA",{"$f":"IFERROR(VLOOKUP($A11,masterlist!$C$2:$AA$207,2,FALSE),\"\")","v":"Surveillance"},{"$f":"IFERROR(VLOOKUP($A11,masterlist!$C$2:$AA$207,3,FALSE),\"\")","v":2},{"$f":"IFERROR(VLOOKUP($A11,masterlist!$C$2:$AD$207,28,FALSE),\"\")","v":"Mettre en place un système One Health de surveillance de la rage comprenant des données de surveillance humaine et animale à tous les niveaux, \n\nOU\n\nCréer une structure formelle pour le partage régulier et en temps opportun de TOUTES les données pertinentes entre les systèmes de surveillance de la santé humaine et animale qui sont opérationnels. "},{"$f":"IF($D11>6,\"\",IF(F$5<=(VLOOKUP($A11,masterlist!$C$2:$AC$207,27,FALSE)),1,\"\"))","v":1},{"$f":"IF($D11>6,\"\",IF(G$5<=(VLOOKUP($A11,masterlist!$C$2:$AC$207,27,FALSE)),1,\"\"))","v":1},{"$f":"IF($D11>6,\"\",IF(H$5<=(VLOOKUP($A11,masterlist!$C$2:$AC$207,27,FALSE)),1,\"\"))","v":1},{"$f":"IF($D11>6,\"\",IF(I$5<=(VLOOKUP($A11,masterlist!$C$2:$AC$207,27,FALSE)),1,\"\"))","v":1},{"$f":"IF($D11>6,\"\",IF(J$5<=(VLOOKUP($A11,masterlist!$C$2:$AC$207,27,FALSE)),1,\"\"))","v":1},{"$f":"IF($D11>6,\"\",IF(K$5<=(VLOOKUP($A11,masterlist!$C$2:$AC$207,27,FALSE)),1,\"\"))","v":1},{"$f":"IF($D11>6,\"\",IF(L$5<=(VLOOKUP($A11,masterlist!$C$2:$AC$207,27,FALSE)),1,\"\"))","v":1},{"$f":"IF($D11>6,\"\",IF(M$5<=(VLOOKUP($A11,masterlist!$C$2:$AC$207,27,FALSE)),1,\"\"))","v":1},{"$f":"IF($D11>6,\"\",IF(N$5<=(VLOOKUP($A11,masterlist!$C$2:$AC$207,27,FALSE)),1,\"\"))","v":1},{"$f":"IF($D11>6,\"\",IF(O$5<=(VLOOKUP($A11,masterlist!$C$2:$AC$207,27,FALSE)),1,\"\"))","v":1},{"$f":"IF($D11>6,\"\",IF(P$5<=(VLOOKUP($A11,masterlist!$C$2:$AC$207,27,FALSE)),1,\"\"))","v":1},{"$f":"IF($D11>6,\"\",IF(Q$5<=(VLOOKUP($A11,masterlist!$C$2:$AC$207,27,FALSE)),1,\"\"))","v":1},{"$f":"IF($D11>6,\"\",IF(R$5<=(VLOOKUP($A11,masterlist!$C$2:$AC$207,27,FALSE)),1,\"\"))","v":1},null,null,null,null,0,0,0,0,0,0,0,0,0,0,0,0,1]
[{"$f":"IFERROR(priorit!A11,\"\")","v":"DCA-Sur-3-17"},"DCA",{"$f":"IFERROR(VLOOKUP($A12,masterlist!$C$2:$AA$207,2,FALSE),\"\")","v":"Surveillance"},{"$f":"IFERROR(VLOOKUP($A12,masterlist!$C$2:$AA$207,3,FALSE),\"\")","v":3},{"$f":"IFERROR(VLOOKUP($A12,masterlist!$C$2:$AD$207,28,FALSE),\"\")","v":"Observer une diminution des prélèvements positifs pour la rage tout en maintenant un taux élevé de soumission de prélèvements à travers tout le pays. "},{"$f":"IF($D12>6,\"\",IF(F$5<=(VLOOKUP($A12,masterlist!$C$2:$AC$207,27,FALSE)),1,\"\"))","v":1},{"$f":"IF($D12>6,\"\",IF(G$5<=(VLOOKUP($A12,masterlist!$C$2:$AC$207,27,FALSE)),1,\"\"))","v":1},{"$f":"IF($D12>6,\"\",IF(H$5<=(VLOOKUP($A12,masterlist!$C$2:$AC$207,27,FALSE)),1,\"\"))","v":1},{"$f":"IF($D12>6,\"\",IF(I$5<=(VLOOKUP($A12,masterlist!$C$2:$AC$207,27,FALSE)),1,\"\"))","v":1},{"$f":"IF($D12>6,\"\",IF(J$5<=(VLOOKUP($A12,masterlist!$C$2:$AC$207,27,FALSE)),1,\"\"))","v":1},{"$f":"IF($D12>6,\"\",IF(K$5<=(VLOOKUP($A12,masterlist!$C$2:$AC$207,27,FALSE)),1,\"\"))","v":1},{"$f":"IF($D12>6,\"\",IF(L$5<=(VLOOKUP($A12,masterlist!$C$2:$AC$207,27,FALSE)),1,\"\"))","v":1},{"$f":"IF($D12>6,\"\",IF(M$5<=(VLOOKUP($A12,masterlist!$C$2:$AC$207,27,FALSE)),1,\"\"))","v":1},{"$f":"IF($D12>6,\"\",IF(N$5<=(VLOOKUP($A12,masterlist!$C$2:$AC$207,27,FALSE)),1,\"\"))","v":1},{"$f":"IF($D12>6,\"\",IF(O$5<=(VLOOKUP($A12,masterlist!$C$2:$AC$207,27,FALSE)),1,\"\"))","v":1},{"$f":"IF($D12>6,\"\",IF(P$5<=(VLOOKUP($A12,masterlist!$C$2:$AC$207,27,FALSE)),1,\"\"))","v":1},{"$f":"IF($D12>6,\"\",IF(Q$5<=(VLOOKUP($A12,masterlist!$C$2:$AC$207,27,FALSE)),1,\"\"))","v":1},{"$f":"IF($D12>6,\"\",IF(R$5<=(VLOOKUP($A12,masterlist!$C$2:$AC$207,27,FALSE)),1,\"\"))","v":1},null,null,null,null,0,0,0,0,0,0,0,0,0,0,0,0,1]
[{"$f":"IFERROR(priorit!A12,\"\")","v":"DCA-Sur-3-18"},"DCA",{"$f":"IFERROR(VLOOKUP($A13,masterlist!$C$2:$AA$207,2,FALSE),\"\")","v":"Surveillance"},{"$f":"IFERROR(VLOOKUP($A13,masterlist!$C$2:$AA$207,3,FALSE),\"\")","v":3},{"$f":"IFERROR(VLOOKUP($A13,masterlist!$C$2:$AD$207,28,FALSE),\"\")","v":"À mesure que le pays se rapproche de l'élimination de la rage humaine, rassembler les preuves épidémiologiques nécessaires pour déclarer des zones exemptes de rage humaine transmise par les chiens."},{"$f":"IF($D13>6,\"\",IF(F$5<=(VLOOKUP($A13,masterlist!$C$2:$AC$207,27,FALSE)),1,\"\"))","v":1},{"$f":"IF($D13>6,\"\",IF(G$5<=(VLOOKUP($A13,masterlist!$C$2:$AC$207,27,FALSE)),1,\"\"))","v":1},{"$f":"IF($D13>6,\"\",IF(H$5<=(VLOOKUP($A13,masterlist!$C$2:$AC$207,27,FALSE)),1,\"\"))","v":1},{"$f":"IF($D13>6,\"\",IF(I$5<=(VLOOKUP($A13,masterlist!$C$2:$AC$207,27,FALSE)),1,\"\"))","v":1},{"$f":"IF($D13>6,\"\",IF(J$5<=(VLOOKUP($A13,masterlist!$C$2:$AC$207,27,FALSE)),1,\"\"))","v":1},{"$f":"IF($D13>6,\"\",IF(K$5<=(VLOOKUP($A13,masterlist!$C$2:$AC$207,27,FALSE)),1,\"\"))","v":1},{"$f":"IF($D13>6,\"\",IF(L$5<=(VLOOKUP($A13,masterlist!$C$2:$AC$207,27,FALSE)),1,\"\"))","v":1},{"$f":"IF($D13>6,\"\",IF(M$5<=(VLOOKUP($A13,masterlist!$C$2:$AC$207,27,FALSE)),1,\"\"))","v":1},{"$f":"IF($D13>6,\"\",IF(N$5<=(VLOOKUP($A13,masterlist!$C$2:$AC$207,27,FALSE)),1,\"\"))","v":1},{"$f":"IF($D13>6,\"\",IF(O$5<=(VLOOKUP($A13,masterlist!$C$2:$AC$207,27,FALSE)),1,\"\"))","v":1},{"$f":"IF($D13>6,\"\",IF(P$5<=(VLOOKUP($A13,masterlist!$C$2:$AC$207,27,FALSE)),1,\"\"))","v":1},{"$f":"IF($D13>6,\"\",IF(Q$5<=(VLOOKUP($A13,masterlist!$C$2:$AC$207,27,FALSE)),1,\"\"))","v":1},{"$f":"IF($D13>6,\"\",IF(R$5<=(VLOOKUP($A13,masterlist!$C$2:$AC$207,27,FALSE)),1,\"\"))","v":1},null,null,null,null,0,0,0,0,0,0,0,0,0,0,0,0,1]
[{"$f":"IFERROR(priorit!A13,\"\")","v":"DCA-Sur-3-19"},"DCA",{"$f":"IFERROR(VLOOKUP($A14,masterlist!$C$2:$AA$207,2,FALSE),\"\")","v":"Surveillance"},{"$f":"IFERROR(VLOOKUP($A14,masterlist!$C$2:$AA$207,3,FALSE),\"\")","v":3},{"$f":"IFERROR(VLOOKUP($A14,masterlist!$C$2:$AD$207,28,FALSE),\"\")","v":"Identifier les zones potentiellement exemptes de rage où les cas de rage animale (causés par le variant de la rage canine) sont absents depuis au moins deux ans."},{"$f":"IF($D14>6,\"\",IF(F$5<=(VLOOKUP($A14,masterlist!$C$2:$AC$207,27,FALSE)),1,\"\"))","v":1},{"$f":"IF($D14>6,\"\",IF(G$5<=(VLOOKUP($A14,masterlist!$C$2:$AC$207,27,FALSE)),1,\"\"))","v":1},{"$f":"IF($D14>6,\"\",IF(H$5<=(VLOOKUP($A14,masterlist!$C$2:$AC$207,27,FALSE)),1,\"\"))","v":1},{"$f":"IF($D14>6,\"\",IF(I$5<=(VLOOKUP($A14,masterlist!$C$2:$AC$207,27,FALSE)),1,\"\"))","v":1},{"$f":"IF($D14>6,\"\",IF(J$5<=(VLOOKUP($A14,masterlist!$C$2:$AC$207,27,FALSE)),1,\"\"))","v":1},{"$f":"IF($D14>6,\"\",IF(K$5<=(VLOOKUP($A14,masterlist!$C$2:$AC$207,27,FALSE)),1,\"\"))","v":1},{"$f":"IF($D14>6,\"\",IF(L$5<=(VLOOKUP($A14,masterlist!$C$2:$AC$207,27,FALSE)),1,\"\"))","v":1},{"$f":"IF($D14>6,\"\",IF(M$5<=(VLOOKUP($A14,masterlist!$C$2:$AC$207,27,FALSE)),1,\"\"))","v":1},{"$f":"IF($D14>6,\"\",IF(N$5<=(VLOOKUP($A14,masterlist!$C$2:$AC$207,27,FALSE)),1,\"\"))","v":1},{"$f":"IF($D14>6,\"\",IF(O$5<=(VLOOKUP($A14,masterlist!$C$2:$AC$207,27,FALSE)),1,\"\"))","v":1},{"$f":"IF($D14>6,\"\",IF(P$5<=(VLOOKUP($A14,masterlist!$C$2:$AC$207,27,FALSE)),1,\"\"))","v":1},{"$f":"IF($D14>6,\"\",IF(Q$5<=(VLOOKUP($A14,masterlist!$C$2:$AC$207,27,FALSE)),1,\"\"))","v":1},{"$f":"IF($D14>6,\"\",IF(R$5<=(VLOOKUP($A14,masterlist!$C$2:$AC$207,27,FALSE)),1,\"\"))","v":1},null,null,null,null,0,0,0,0,0,0,0,0,0,0,0,0,1]
[{"$f":"IFERROR(priorit!A14,\"\")","v":"DCA-Sur-4-20"},"DCA",{"$f":"IFERROR(VLOOKUP($A15,masterlist!$C$2:$AA$207,2,FALSE),\"\")","v":"Surveillance"},{"$f":"IFERROR(VLOOKUP($A15,masterlist!$C$2:$AA$207,3,FALSE),\"\")","v":4},{"$f":"IFERROR(VLOOKUP($A15,masterlist!$C$2:$AD$207,28,FALSE),\"\")","v":"À mesure que le pays se rapproche de l'élimination de la rage canine, affiner la stratégie nationale de lutte contre la rage en utilisant les données épidémiologiques issues de la surveillance de routine de tous les animaux (et pas seulement des chiens)."},{"$f":"IF($D15>6,\"\",IF(F$5<=(VLOOKUP($A15,masterlist!$C$2:$AC$207,27,FALSE)),1,\"\"))","v":1},{"$f":"IF($D15>6,\"\",IF(G$5<=(VLOOKUP($A15,masterlist!$C$2:$AC$207,27,FALSE)),1,\"\"))","v":1},{"$f":"IF($D15>6,\"\",IF(H$5<=(VLOOKUP($A15,masterlist!$C$2:$AC$207,27,FALSE)),1,\"\"))","v":1},{"$f":"IF($D15>6,\"\",IF(I$5<=(VLOOKUP($A15,masterlist!$C$2:$AC$207,27,FALSE)),1,\"\"))","v":1},{"$f":"IF($D15>6,\"\",IF(J$5<=(VLOOKUP($A15,masterlist!$C$2:$AC$207,27,FALSE)),1,\"\"))","v":1},{"$f":"IF($D15>6,\"\",IF(K$5<=(VLOOKUP($A15,masterlist!$C$2:$AC$207,27,FALSE)),1,\"\"))","v":1},{"$f":"IF($D15>6,\"\",IF(L$5<=(VLOOKUP($A15,masterlist!$C$2:$AC$207,27,FALSE)),1,\"\"))","v":1},{"$f":"IF($D15>6,\"\",IF(M$5<=(VLOOKUP($A15,masterlist!$C$2:$AC$207,27,FALSE)),1,\"\"))","v":1},{"$f":"IF($D15>6,\"\",IF(N$5<=(VLOOKUP($A15,masterlist!$C$2:$AC$207,27,FALSE)),1,\"\"))","v":1},{"$f":"IF($D15>6,\"\",IF(O$5<=(VLOOKUP($A15,masterlist!$C$2:$AC$207,27,FALSE)),1,\"\"))","v":1},{"$f":"IF($D15>6,\"\",IF(P$5<=(VLOOKUP($A15,masterlist!$C$2:$AC$207,27,FALSE)),1,\"\"))","v":1},{"$f":"IF($D15>6,\"\",IF(Q$5<=(VLOOKUP($A15,masterlist!$C$2:$AC$207,27,FALSE)),1,\"\"))","v":1},{"$f":"IF($D15>6,\"\",IF(R$5<=(VLOOKUP($A15,masterlist!$C$2:$AC$207,27,FALSE)),1,\"\"))","v":1},null,null,null,null,0,0,0,0,0,0,0,0,0,0,0,0,1]
[{"$f":"IFERROR(priorit!A15,\"\")","v":"DCA-Sur-5-21"},"DCA",{"$f":"IFERROR(VLOOKUP($A16,masterlist!$C$2:$AA$207,2,FALSE),\"\")","v":"Surveillance"},{"$f":"IFERROR(VLOOKUP($A16,masterlist!$C$2:$AA$207,3,FALSE),\"\")","v":5},{"$f":"IFERROR(VLOOKUP($A16,masterlist!$C$2:$AD$207,28,FALSE),\"\")","v":"Vérifier que l'ensemble du pays est exempt de la variante canine de la rage depuis au moins deux ans."},{"$f":"IF($D16>6,\"\",IF(F$5<=(VLOOKUP($A16,masterlist!$C$2:$AC$207,27,FALSE)),1,\"\"))","v":1},{"$f":"IF($D16>6,\"\",IF(G$5<=(VLOOKUP($A16,masterlist!$C$2:$AC$207,27,FALSE)),1,\"\"))","v":1},{"$f":"IF($D16>6,\"\",IF(H$5<=(VLOOKUP($A16,masterlist!$C$2:$AC$207,27,FALSE)),1,\"\"))","v":1},{"$f":"IF($D16>6,\"\",IF(I$5<=(VLOOKUP($A16,masterlist!$C$2:$AC$207,27,FALSE)),1,\"\"))","v":1},{"$f":"IF($D16>6,\"\",IF(J$5<=(VLOOKUP($A16,masterlist!$C$2:$AC$207,27,FALSE)),1,\"\"))","v":1},{"$f":"IF($D16>6,\"\",IF(K$5<=(VLOOKUP($A16,masterlist!$C$2:$AC$207,27,FALSE)),1,\"\"))","v":1},{"$f":"IF($D16>6,\"\",IF(L$5<=(VLOOKUP($A16,masterlist!$C$2:$AC$207,27,FALSE)),1,\"\"))","v":1},{"$f":"IF($D16>6,\"\",IF(M$5<=(VLOOKUP($A16,masterlist!$C$2:$AC$207,27,FALSE)),1,\"\"))","v":1},{"$f":"IF($D16>6,\"\",IF(N$5<=(VLOOKUP($A16,masterlist!$C$2:$AC$207,27,FALSE)),1,\"\"))","v":1},{"$f":"IF($D16>6,\"\",IF(O$5<=(VLOOKUP($A16,masterlist!$C$2:$AC$207,27,FALSE)),1,\"\"))","v":1},{"$f":"IF($D16>6,\"\",IF(P$5<=(VLOOKUP($A16,masterlist!$C$2:$AC$207,27,FALSE)),1,\"\"))","v":1},{"$f":"IF($D16>6,\"\",IF(Q$5<=(VLOOKUP($A16,masterlist!$C$2:$AC$207,27,FALSE)),1,\"\"))","v":1},{"$f":"IF($D16>6,\"\",IF(R$5<=(VLOOKUP($A16,masterlist!$C$2:$AC$207,27,FALSE)),1,\"\"))","v":1},null,null,null,null,0,0,0,0,0,0,0,0,0,0,0,0,1]
[{"$f":"IFERROR(priorit!A16,\"\")","v":"PCO-Vac-2-5"},"PCO",{"$f":"IFERROR(VLOOKUP($A17,masterlist!$C$2:$AA$207,2,FALSE),\"\")","v":"Vaccins humains"},{"$f":"IFERROR(VLOOKUP($A17,masterlist!$C$2:$AA$207,3,FALSE),\"\")","v":2},{"$f":"IFERROR(VLOOKUP($A17,masterlist!$C$2:$AD$207,28,FALSE),\"\")","v":"Veiller à ce que la PPE soit gratuite ou partiellement subventionnée pour toute personne potentiellement exposée dans le pays."},{"$f":"IF($D17>6,\"\",IF(F$5<=(VLOOKUP($A17,masterlist!$C$2:$AC$207,27,FALSE)),1,\"\"))","v":1},{"$f":"IF($D17>6,\"\",IF(G$5<=(VLOOKUP($A17,masterlist!$C$2:$AC$207,27,FALSE)),1,\"\"))","v":1},{"$f":"IF($D17>6,\"\",IF(H$5<=(VLOOKUP($A17,masterlist!$C$2:$AC$207,27,FALSE)),1,\"\"))","v":1},{"$f":"IF($D17>6,\"\",IF(I$5<=(VLOOKUP($A17,masterlist!$C$2:$AC$207,27,FALSE)),1,\"\"))","v":1},{"$f":"IF($D17>6,\"\",IF(J$5<=(VLOOKUP($A17,masterlist!$C$2:$AC$207,27,FALSE)),1,\"\"))","v":1},{"$f":"IF($D17>6,\"\",IF(K$5<=(VLOOKUP($A17,masterlist!$C$2:$AC$207,27,FALSE)),1,\"\"))","v":1},{"$f":"IF($D17>6,\"\",IF(L$5<=(VLOOKUP($A17,masterlist!$C$2:$AC$207,27,FALSE)),1,\"\"))","v":1},{"$f":"IF($D17>6,\"\",IF(M$5<=(VLOOKUP($A17,masterlist!$C$2:$AC$207,27,FALSE)),1,\"\"))","v":1},{"$f":"IF($D17>6,\"\",IF(N$5<=(VLOOKUP($A17,masterlist!$C$2:$AC$207,27,FALSE)),1,\"\"))","v":1},{"$f":"IF($D17>6,\"\",IF(O$5<=(VLOOKUP($A17,masterlist!$C$2:$AC$207,27,FALSE)),1,\"\"))","v":1},{"$f":"IF($D17>6,\"\",IF(P$5<=(VLOOKUP($A17,masterlist!$C$2:$AC$207,27,FALSE)),1,\"\"))","v":1},{"$f":"IF($D17>6,\"\",IF(Q$5<=(VLOOKUP($A17,masterlist!$C$2:$AC$207,27,FALSE)),1,\"\"))","v":1},{"$f":"IF($D17>6,\"\",IF(R$5<=(VLOOKUP($A17,masterlist!$C$2:$AC$207,27,FALSE)),1,\"\"))","v":1},null,null,null,null,0,0,0,0,0,0,0,0,0,0,0,0,1]
[{"$f":"IFERROR(priorit!A28,\"\")","v":"PCO-Rép-2-21"},"PCO",{"$f":"IFERROR(VLOOKUP($A18,masterlist!$C$2:$AA$207,2,FALSE),\"\")","v":"Réponse à l'apparition d'un foyer et autres activités de lutte contre la rage"},{"$f":"IFERROR(VLOOKUP($A18,masterlist!$C$2:$AA$207,3,FALSE),\"\")","v":2},{"$f":"IFERROR(VLOOKUP($A18,masterlist!$C$2:$AD$207,28,FALSE),\"\")","v":"Mettre en œuvre toute réponse active aux foyers conformément aux protocoles d'enquête conjointe établis."},{"$f":"IF($D18>6,\"\",IF(F$5<=(VLOOKUP($A18,masterlist!$C$2:$AC$207,27,FALSE)),1,\"\"))","v":1},{"$f":"IF($D18>6,\"\",IF(G$5<=(VLOOKUP($A18,masterlist!$C$2:$AC$207,27,FALSE)),1,\"\"))","v":1},{"$f":"IF($D18>6,\"\",IF(H$5<=(VLOOKUP($A18,masterlist!$C$2:$AC$207,27,FALSE)),1,\"\"))","v":1},{"$f":"IF($D18>6,\"\",IF(I$5<=(VLOOKUP($A18,masterlist!$C$2:$AC$207,27,FALSE)),1,\"\"))","v":1},{"$f":"IF($D18>6,\"\",IF(J$5<=(VLOOKUP($A18,masterlist!$C$2:$AC$207,27,FALSE)),1,\"\"))","v":1},{"$f":"IF($D18>6,\"\",IF(K$5<=(VLOOKUP($A18,masterlist!$C$2:$AC$207,27,FALSE)),1,\"\"))","v":1},{"$f":"IF($D18>6,\"\",IF(L$5<=(VLOOKUP($A18,masterlist!$C$2:$AC$207,27,FALSE)),1,\"\"))","v":1},{"$f":"IF($D18>6,\"\",IF(M$5<=(VLOOKUP($A18,masterlist!$C$2:$AC$207,27,FALSE)),1,\"\"))","v":1},{"$f":"IF($D18>6,\"\",IF(N$5<=(VLOOKUP($A18,masterlist!$C$2:$AC$207,27,FALSE)),1,\"\"))","v":1},{"$f":"IF($D18>6,\"\",IF(O$5<=(VLOOKUP($A18,masterlist!$C$2:$AC$207,27,FALSE)),1,\"\"))","v":1},{"$f":"IF($D18>6,\"\",IF(P$5<=(VLOOKUP($A18,masterlist!$C$2:$AC$207,27,FALSE)),1,\"\"))","v":1},{"$f":"IF($D18>6,\"\",IF(Q$5<=(VLOOKUP($A18,masterlist!$C$2:$AC$207,27,FALSE)),1,\"\"))","v":1},{"$f":"IF($D18>6,\"\",IF(R$5<=(VLOOKUP($A18,masterlist!$C$2:$AC$207,27,FALSE)),1,\"\"))","v":1},null,null,null,null,0,0,0,0,0,0,0,0,0,0,0,0,1]
[{"$f":"IFERROR(priorit!A29,\"\")","v":"PCO-Rép-2-22"},"PCO",{"$f":"IFERROR(VLOOKUP($A19,masterlist!$C$2:$AA$207,2,FALSE),\"\")","v":"Réponse à l'apparition d'un foyer et autres activités de lutte contre la rage"},{"$f":"IFERROR(VLOOKUP($A19,masterlist!$C$2:$AA$207,3,FALSE),\"\")","v":2},{"$f":"IFERROR(VLOOKUP($A19,masterlist!$C$2:$AD$207,28,FALSE),\"\")","v":"Élaborer des protocoles pour l'observation des chiens suspects d'être enragés."},{"$f":"IF($D19>6,\"\",IF(F$5<=(VLOOKUP($A19,masterlist!$C$2:$AC$207,27,FALSE)),1,\"\"))","v":1},{"$f":"IF($D19>6,\"\",IF(G$5<=(VLOOKUP($A19,masterlist!$C$2:$AC$207,27,FALSE)),1,\"\"))","v":1},{"$f":"IF($D19>6,\"\",IF(H$5<=(VLOOKUP($A19,masterlist!$C$2:$AC$207,27,FALSE)),1,\"\"))","v":1},{"$f":"IF($D19>6,\"\",IF(I$5<=(VLOOKUP($A19,masterlist!$C$2:$AC$207,27,FALSE)),1,\"\"))","v":1},{"$f":"IF($D19>6,\"\",IF(J$5<=(VLOOKUP($A19,masterlist!$C$2:$AC$207,27,FALSE)),1,\"\"))","v":1},{"$f":"IF($D19>6,\"\",IF(K$5<=(VLOOKUP($A19,masterlist!$C$2:$AC$207,27,FALSE)),1,\"\"))","v":1},{"$f":"IF($D19>6,\"\",IF(L$5<=(VLOOKUP($A19,masterlist!$C$2:$AC$207,27,FALSE)),1,\"\"))","v":1},{"$f":"IF($D19>6,\"\",IF(M$5<=(VLOOKUP($A19,masterlist!$C$2:$AC$207,27,FALSE)),1,\"\"))","v":1},{"$f":"IF($D19>6,\"\",IF(N$5<=(VLOOKUP($A19,masterlist!$C$2:$AC$207,27,FALSE)),1,\"\"))","v":1},{"$f":"IF($D19>6,\"\",IF(O$5<=(VLOOKUP($A19,masterlist!$C$2:$AC$207,27,FALSE)),1,\"\"))","v":1},{"$f":"IF($D19>6,\"\",IF(P$5<=(VLOOKUP($A19,masterlist!$C$2:$AC$207,27,FALSE)),1,\"\"))","v":1},{"$f":"IF($D19>6,\"\",IF(Q$5<=(VLOOKUP($A19,masterlist!$C$2:$AC$207,27,FALSE)),1,\"\"))","v":1},{"$f":"IF($D19>6,\"\",IF(R$5<=(VLOOKUP($A19,masterlist!$C$2:$AC$207,27,FALSE)),1,\"\"))","v":1},null,null,null,null,0,0,0,0,0,0,0,0,0,0,0,0,1]
[{"$f":"IFERROR(priorit!A35,\"\")","v":"PCO-Rép-3-28"},"PCO",{"$f":"IFERROR(VLOOKUP($A20,masterlist!$C$2:$AA$207,2,FALSE),\"\")","v":"Réponse à l'apparition d'un foyer et autres activités de lutte contre la rage"},{"$f":"IFERROR(VLOOKUP($A20,masterlist!$C$2:$AA$207,3,FALSE),\"\")","v":3},{"$f":"IFERROR(VLOOKUP($A20,masterlist!$C$2:$AD$207,28,FALSE),\"\")","v":"Alors que le pays se rapproche de l'élimination de la rage humaine, il convient de mener des enquêtes sur le terrain pour TOUS les cas suspects de rage humaine dans l'ensemble du pays."},{"$f":"IF($D20>6,\"\",IF(F$5<=(VLOOKUP($A20,masterlist!$C$2:$AC$207,27,FALSE)),1,\"\"))","v":1},{"$f":"IF($D20>6,\"\",IF(G$5<=(VLOOKUP($A20,masterlist!$C$2:$AC$207,27,FALSE)),1,\"\"))","v":1},{"$f":"IF($D20>6,\"\",IF(H$5<=(VLOOKUP($A20,masterlist!$C$2:$AC$207,27,FALSE)),1,\"\"))","v":1},{"$f":"IF($D20>6,\"\",IF(I$5<=(VLOOKUP($A20,masterlist!$C$2:$AC$207,27,FALSE)),1,\"\"))","v":1},{"$f":"IF($D20>6,\"\",IF(J$5<=(VLOOKUP($A20,masterlist!$C$2:$AC$207,27,FALSE)),1,\"\"))","v":1},{"$f":"IF($D20>6,\"\",IF(K$5<=(VLOOKUP($A20,masterlist!$C$2:$AC$207,27,FALSE)),1,\"\"))","v":1},{"$f":"IF($D20>6,\"\",IF(L$5<=(VLOOKUP($A20,masterlist!$C$2:$AC$207,27,FALSE)),1,\"\"))","v":1},{"$f":"IF($D20>6,\"\",IF(M$5<=(VLOOKUP($A20,masterlist!$C$2:$AC$207,27,FALSE)),1,\"\"))","v":1},{"$f":"IF($D20>6,\"\",IF(N$5<=(VLOOKUP($A20,masterlist!$C$2:$AC$207,27,FALSE)),1,\"\"))","v":1},{"$f":"IF($D20>6,\"\",IF(O$5<=(VLOOKUP($A20,masterlist!$C$2:$AC$207,27,FALSE)),1,\"\"))","v":1},{"$f":"IF($D20>6,\"\",IF(P$5<=(VLOOKUP($A20,masterlist!$C$2:$AC$207,27,FALSE)),1,\"\"))","v":1},{"$f":"IF($D20>6,\"\",IF(Q$5<=(VLOOKUP($A20,masterlist!$C$2:$AC$207,27,FALSE)),1,\"\"))","v":1},{"$f":"IF($D20>6,\"\",IF(R$5<=(VLOOKUP($A20,masterlist!$C$2:$AC$207,27,FALSE)),1,\"\"))","v":1},null,null,null,null,0,0,0,0,0,0,0,0,0,0,0,0,1]
[{"$f":"IFERROR(priorit!A36,\"\")","v":"PCO-Rép-4-29"},"PCO",{"$f":"IFERROR(VLOOKUP($A21,masterlist!$C$2:$AA$207,2,FALSE),\"\")","v":"Réponse à l'apparition d'un foyer et autres activités de lutte contre la rage"},{"$f":"IFERROR(VLOOKUP($A21,masterlist!$C$2:$AA$207,3,FALSE),\"\")","v":4},{"$f":"IFERROR(VLOOKUP($A21,masterlist!$C$2:$AD$207,28,FALSE),\"\")","v":"Alors que le pays se rapproche de l'élimination de la rage canine, mener des enquêtes sur le terrain pour TOUS les cas suspects de rage canine dans l'ensemble du pays."},{"$f":"IF($D21>6,\"\",IF(F$5<=(VLOOKUP($A21,masterlist!$C$2:$AC$207,27,FALSE)),1,\"\"))","v":1},{"$f":"IF($D21>6,\"\",IF(G$5<=(VLOOKUP($A21,masterlist!$C$2:$AC$207,27,FALSE)),1,\"\"))","v":1},{"$f":"IF($D21>6,\"\",IF(H$5<=(VLOOKUP($A21,masterlist!$C$2:$AC$207,27,FALSE)),1,\"\"))","v":1},{"$f":"IF($D21>6,\"\",IF(I$5<=(VLOOKUP($A21,masterlist!$C$2:$AC$207,27,FALSE)),1,\"\"))","v":1},{"$f":"IF($D21>6,\"\",IF(J$5<=(VLOOKUP($A21,masterlist!$C$2:$AC$207,27,FALSE)),1,\"\"))","v":1},{"$f":"IF($D21>6,\"\",IF(K$5<=(VLOOKUP($A21,masterlist!$C$2:$AC$207,27,FALSE)),1,\"\"))","v":1},{"$f":"IF($D21>6,\"\",IF(L$5<=(VLOOKUP($A21,masterlist!$C$2:$AC$207,27,FALSE)),1,\"\"))","v":1},{"$f":"IF($D21>6,\"\",IF(M$5<=(VLOOKUP($A21,masterlist!$C$2:$AC$207,27,FALSE)),1,\"\"))","v":1},{"$f":"IF($D21>6,\"\",IF(N$5<=(VLOOKUP($A21,masterlist!$C$2:$AC$207,27,FALSE)),1,\"\"))","v":1},{"$f":"IF($D21>6,\"\",IF(O$5<=(VLOOKUP($A21,masterlist!$C$2:$AC$207,27,FALSE)),1,\"\"))","v":1},{"$f":"IF($D21>6,\"\",IF(P$5<=(VLOOKUP($A21,masterlist!$C$2:$AC$207,27,FALSE)),1,\"\"))","v":1},{"$f":"IF($D21>6,\"\",IF(Q$5<=(VLOOKUP($A21,masterlist!$C$2:$AC$207,27,FALSE)),1,\"\"))","v":1},{"$f":"IF($D21>6,\"\",IF(R$5<=(VLOOKUP($A21,masterlist!$C$2:$AC$207,27,FALSE)),1,\"\"))","v":1},null,null,null,null,0,0,0,0,0,0,0,0,0,0,0,0,1]
[{"$f":"IFERROR(priorit!A42,\"\")","v":"LAB-Cap-2-7"},"LAB",{"$f":"IFERROR(VLOOKUP($A22,masterlist!$C$2:$AA$207,2,FALSE),\"\")","v":"Capacités des laboratoires et tests"},{"$f":"IFERROR(VLOOKUP($A22,masterlist!$C$2:$AA$207,3,FALSE),\"\")","v":2},{"$f":"IFERROR(VLOOKUP($A22,masterlist!$C$2:$AD$207,28,FALSE),\"\")","v":"Diagnostiquer les prélèvements suspects de rage animale dans le pays la plupart (sinon tous) des mois de l'année."},{"$f":"IF($D22>6,\"\",IF(F$5<=(VLOOKUP($A22,masterlist!$C$2:$AC$207,27,FALSE)),1,\"\"))","v":1},{"$f":"IF($D22>6,\"\",IF(G$5<=(VLOOKUP($A22,masterlist!$C$2:$AC$207,27,FALSE)),1,\"\"))","v":1},{"$f":"IF($D22>6,\"\",IF(H$5<=(VLOOKUP($A22,masterlist!$C$2:$AC$207,27,FALSE)),1,\"\"))","v":1},{"$f":"IF($D22>6,\"\",IF(I$5<=(VLOOKUP($A22,masterlist!$C$2:$AC$207,27,FALSE)),1,\"\"))","v":1},{"$f":"IF($D22>6,\"\",IF(J$5<=(VLOOKUP($A22,masterlist!$C$2:$AC$207,27,FALSE)),1,\"\"))","v":1},{"$f":"IF($D22>6,\"\",IF(K$5<=(VLOOKUP($A22,masterlist!$C$2:$AC$207,27,FALSE)),1,\"\"))","v":1},{"$f":"IF($D22>6,\"\",IF(L$5<=(VLOOKUP($A22,masterlist!$C$2:$AC$207,27,FALSE)),1,\"\"))","v":1},{"$f":"IF($D22>6,\"\",IF(M$5<=(VLOOKUP($A22,masterlist!$C$2:$AC$207,27,FALSE)),1,\"\"))","v":1},{"$f":"IF($D22>6,\"\",IF(N$5<=(VLOOKUP($A22,masterlist!$C$2:$AC$207,27,FALSE)),1,\"\"))","v":1},{"$f":"IF($D22>6,\"\",IF(O$5<=(VLOOKUP($A22,masterlist!$C$2:$AC$207,27,FALSE)),1,\"\"))","v":1},{"$f":"IF($D22>6,\"\",IF(P$5<=(VLOOKUP($A22,masterlist!$C$2:$AC$207,27,FALSE)),1,\"\"))","v":1},{"$f":"IF($D22>6,\"\",IF(Q$5<=(VLOOKUP($A22,masterlist!$C$2:$AC$207,27,FALSE)),1,\"\"))","v":1},{"$f":"IF($D22>6,\"\",IF(R$5<=(VLOOKUP($A22,masterlist!$C$2:$AC$207,27,FALSE)),1,\"\"))","v":1},null,null,null,null,0,0,0,0,0,0,0,0,0,0,0,0,1]
[{"$f":"IFERROR(priorit!A43,\"\")","v":"LAB-Cap-2-8"},"LAB",{"$f":"IFERROR(VLOOKUP($A23,masterlist!$C$2:$AA$207,2,FALSE),\"\")","v":"Capacités des laboratoires et tests"},{"$f":"IFERROR(VLOOKUP($A23,masterlist!$C$2:$AA$207,3,FALSE),\"\")","v":2},{"$f":"IFERROR(VLOOKUP($A23,masterlist!$C$2:$AD$207,28,FALSE),\"\")","v":"Inclure la surveillance active (animaux trouvés morts, animaux tués sur la route, etc.) dans vos activités de surveillance de routine dans l'ensemble du pays."},{"$f":"IF($D23>6,\"\",IF(F$5<=(VLOOKUP($A23,masterlist!$C$2:$AC$207,27,FALSE)),1,\"\"))","v":1},{"$f":"IF($D23>6,\"\",IF(G$5<=(VLOOKUP($A23,masterlist!$C$2:$AC$207,27,FALSE)),1,\"\"))","v":1},{"$f":"IF($D23>6,\"\",IF(H$5<=(VLOOKUP($A23,masterlist!$C$2:$AC$207,27,FALSE)),1,\"\"))","v":1},{"$f":"IF($D23>6,\"\",IF(I$5<=(VLOOKUP($A23,masterlist!$C$2:$AC$207,27,FALSE)),1,\"\"))","v":1},{"$f":"IF($D23>6,\"\",IF(J$5<=(VLOOKUP($A23,masterlist!$C$2:$AC$207,27,FALSE)),1,\"\"))","v":1},{"$f":"IF($D23>6,\"\",IF(K$5<=(VLOOKUP($A23,masterlist!$C$2:$AC$207,27,FALSE)),1,\"\"))","v":1},{"$f":"IF($D23>6,\"\",IF(L$5<=(VLOOKUP($A23,masterlist!$C$2:$AC$207,27,FALSE)),1,\"\"))","v":1},{"$f":"IF($D23>6,\"\",IF(M$5<=(VLOOKUP($A23,masterlist!$C$2:$AC$207,27,FALSE)),1,\"\"))","v":1},{"$f":"IF($D23>6,\"\",IF(N$5<=(VLOOKUP($A23,masterlist!$C$2:$AC$207,27,FALSE)),1,\"\"))","v":1},{"$f":"IF($D23>6,\"\",IF(O$5<=(VLOOKUP($A23,masterlist!$C$2:$AC$207,27,FALSE)),1,\"\"))","v":1},{"$f":"IF($D23>6,\"\",IF(P$5<=(VLOOKUP($A23,masterlist!$C$2:$AC$207,27,FALSE)),1,\"\"))","v":1},{"$f":"IF($D23>6,\"\",IF(Q$5<=(VLOOKUP($A23,masterlist!$C$2:$AC$207,27,FALSE)),1,\"\"))","v":1},{"$f":"IF($D23>6,\"\",IF(R$5<=(VLOOKUP($A23,masterlist!$C$2:$AC$207,27,FALSE)),1,\"\"))","v":1},null,null,null,null,0,0,0,0,0,0,0,0,0,0,0,0,1]
[{"$f":"IFERROR(priorit!A17,\"\")","v":"PCO-Vac-2-6"},"PCO",{"$f":"IFERROR(VLOOKUP($A24,masterlist!$C$2:$AA$207,2,FALSE),\"\")","v":"Vaccins humains"},{"$f":"IFERROR(VLOOKUP($A24,masterlist!$C$2:$AA$207,3,FALSE),\"\")","v":2},{"$f":"IFERROR(VLOOKUP($A24,masterlist!$C$2:$AD$207,28,FALSE),\"\")","v":"Veiller à ce que le gouvernement n'utilise que des vaccins antirabiques humains préqualifiés par l'OMS dans le pays."},{"$f":"IF($D24>6,\"\",IF(F$5<=(VLOOKUP($A24,masterlist!$C$2:$AC$207,27,FALSE)),1,\"\"))","v":1},{"$f":"IF($D24>6,\"\",IF(G$5<=(VLOOKUP($A24,masterlist!$C$2:$AC$207,27,FALSE)),1,\"\"))","v":1},{"$f":"IF($D24>6,\"\",IF(H$5<=(VLOOKUP($A24,masterlist!$C$2:$AC$207,27,FALSE)),1,\"\"))","v":1},{"$f":"IF($D24>6,\"\",IF(I$5<=(VLOOKUP($A24,masterlist!$C$2:$AC$207,27,FALSE)),1,\"\"))","v":1},{"$f":"IF($D24>6,\"\",IF(J$5<=(VLOOKUP($A24,masterlist!$C$2:$AC$207,27,FALSE)),1,\"\"))","v":1},{"$f":"IF($D24>6,\"\",IF(K$5<=(VLOOKUP($A24,masterlist!$C$2:$AC$207,27,FALSE)),1,\"\"))","v":1},{"$f":"IF($D24>6,\"\",IF(L$5<=(VLOOKUP($A24,masterlist!$C$2:$AC$207,27,FALSE)),1,\"\"))","v":1},{"$f":"IF($D24>6,\"\",IF(M$5<=(VLOOKUP($A24,masterlist!$C$2:$AC$207,27,FALSE)),1,\"\"))","v":1},{"$f":"IF($D24>6,\"\",IF(N$5<=(VLOOKUP($A24,masterlist!$C$2:$AC$207,27,FALSE)),1,\"\"))","v":1},{"$f":"IF($D24>6,\"\",IF(O$5<=(VLOOKUP($A24,masterlist!$C$2:$AC$207,27,FALSE)),1,\"\"))","v":1},{"$f":"IF($D24>6,\"\",IF(P$5<=(VLOOKUP($A24,masterlist!$C$2:$AC$207,27,FALSE)),1,\"\"))","v":1},{"$f":"IF($D24>6,\"\",IF(Q$5<=(VLOOKUP($A24,masterlist!$C$2:$AC$207,27,FALSE)),1,\"\"))","v":1},{"$f":"IF($D24>6,\"\",IF(R$5<=(VLOOKUP($A24,masterlist!$C$2:$AC$207,27,FALSE)),1,\"\"))","v":1},null,null,null,null,0,0,0,0,0,0,0,0,0,0,0,0,1]
[{"$f":"IFERROR(priorit!A18,\"\")","v":"PCO-Vac-5-8"},"PCO",{"$f":"IFERROR(VLOOKUP($A25,masterlist!$C$2:$AA$207,2,FALSE),\"\")","v":"Vaccins humains"},{"$f":"IFERROR(VLOOKUP($A25,masterlist!$C$2:$AA$207,3,FALSE),\"\")","v":5},{"$f":"IFERROR(VLOOKUP($A25,masterlist!$C$2:$AD$207,28,FALSE),\"\")","v":"Maintenant que le pays est débarrassé de la rage humaine et animale, mettre en œuvre des protocoles modifiés pour l'administration de la PPE dans les zones exemptes de rage."},{"$f":"IF($D25>6,\"\",IF(F$5<=(VLOOKUP($A25,masterlist!$C$2:$AC$207,27,FALSE)),1,\"\"))","v":1},{"$f":"IF($D25>6,\"\",IF(G$5<=(VLOOKUP($A25,masterlist!$C$2:$AC$207,27,FALSE)),1,\"\"))","v":1},{"$f":"IF($D25>6,\"\",IF(H$5<=(VLOOKUP($A25,masterlist!$C$2:$AC$207,27,FALSE)),1,\"\"))","v":1},{"$f":"IF($D25>6,\"\",IF(I$5<=(VLOOKUP($A25,masterlist!$C$2:$AC$207,27,FALSE)),1,\"\"))","v":1},{"$f":"IF($D25>6,\"\",IF(J$5<=(VLOOKUP($A25,masterlist!$C$2:$AC$207,27,FALSE)),1,\"\"))","v":1},{"$f":"IF($D25>6,\"\",IF(K$5<=(VLOOKUP($A25,masterlist!$C$2:$AC$207,27,FALSE)),1,\"\"))","v":1},{"$f":"IF($D25>6,\"\",IF(L$5<=(VLOOKUP($A25,masterlist!$C$2:$AC$207,27,FALSE)),1,\"\"))","v":1},{"$f":"IF($D25>6,\"\",IF(M$5<=(VLOOKUP($A25,masterlist!$C$2:$AC$207,27,FALSE)),1,\"\"))","v":1},{"$f":"IF($D25>6,\"\",IF(N$5<=(VLOOKUP($A25,masterlist!$C$2:$AC$207,27,FALSE)),1,\"\"))","v":1},{"$f":"IF($D25>6,\"\",IF(O$5<=(VLOOKUP($A25,masterlist!$C$2:$AC$207,27,FALSE)),1,\"\"))","v":1},{"$f":"IF($D25>6,\"\",IF(P$5<=(VLOOKUP($A25,masterlist!$C$2:$AC$207,27,FALSE)),1,\"\"))","v":1},{"$f":"IF($D25>6,\"\",IF(Q$5<=(VLOOKUP($A25,masterlist!$C$2:$AC$207,27,FALSE)),1,\"\"))","v":1},{"$f":"IF($D25>6,\"\",IF(R$5<=(VLOOKUP($A25,masterlist!$C$2:$AC$207,27,FALSE)),1,\"\"))","v":1},null,null,null,null,0,0,0,0,0,0,0,0,0,0,0,0,1]
[{"$f":"IFERROR(priorit!A19,\"\")","v":"PCO-Vac-2-12"},"PCO",{"$f":"IFERROR(VLOOKUP($A26,masterlist!$C$2:$AA$207,2,FALSE),\"\")","v":"Vaccins canins"},{"$f":"IFERROR(VLOOKUP($A26,masterlist!$C$2:$AA$207,3,FALSE),\"\")","v":2},{"$f":"IFERROR(VLOOKUP($A26,masterlist!$C$2:$AD$207,28,FALSE),\"\")","v":"Augmenter régulièrement l'ampleur et l'intensité des campagnes gouvernementales de vaccination des chiens."},{"$f":"IF($D26>6,\"\",IF(F$5<=(VLOOKUP($A26,masterlist!$C$2:$AC$207,27,FALSE)),1,\"\"))","v":1},{"$f":"IF($D26>6,\"\",IF(G$5<=(VLOOKUP($A26,masterlist!$C$2:$AC$207,27,FALSE)),1,\"\"))","v":1},{"$f":"IF($D26>6,\"\",IF(H$5<=(VLOOKUP($A26,masterlist!$C$2:$AC$207,27,FALSE)),1,\"\"))","v":1},{"$f":"IF($D26>6,\"\",IF(I$5<=(VLOOKUP($A26,masterlist!$C$2:$AC$207,27,FALSE)),1,\"\"))","v":1},{"$f":"IF($D26>6,\"\",IF(J$5<=(VLOOKUP($A26,masterlist!$C$2:$AC$207,27,FALSE)),1,\"\"))","v":1},{"$f":"IF($D26>6,\"\",IF(K$5<=(VLOOKUP($A26,masterlist!$C$2:$AC$207,27,FALSE)),1,\"\"))","v":1},{"$f":"IF($D26>6,\"\",IF(L$5<=(VLOOKUP($A26,masterlist!$C$2:$AC$207,27,FALSE)),1,\"\"))","v":1},{"$f":"IF($D26>6,\"\",IF(M$5<=(VLOOKUP($A26,masterlist!$C$2:$AC$207,27,FALSE)),1,\"\"))","v":1},{"$f":"IF($D26>6,\"\",IF(N$5<=(VLOOKUP($A26,masterlist!$C$2:$AC$207,27,FALSE)),1,\"\"))","v":1},{"$f":"IF($D26>6,\"\",IF(O$5<=(VLOOKUP($A26,masterlist!$C$2:$AC$207,27,FALSE)),1,\"\"))","v":1},{"$f":"IF($D26>6,\"\",IF(P$5<=(VLOOKUP($A26,masterlist!$C$2:$AC$207,27,FALSE)),1,\"\"))","v":1},{"$f":"IF($D26>6,\"\",IF(Q$5<=(VLOOKUP($A26,masterlist!$C$2:$AC$207,27,FALSE)),1,\"\"))","v":1},{"$f":"IF($D26>6,\"\",IF(R$5<=(VLOOKUP($A26,masterlist!$C$2:$AC$207,27,FALSE)),1,\"\"))","v":1},null,null,null,null,0,0,0,0,0,0,0,0,0,0,0,0,1]
[{"$f":"IFERROR(priorit!A20,\"\")","v":"PCO-Vac-3-13"},"PCO",{"$f":"IFERROR(VLOOKUP($A27,masterlist!$C$2:$AA$207,2,FALSE),\"\")","v":"Vaccins canins"},{"$f":"IFERROR(VLOOKUP($A27,masterlist!$C$2:$AA$207,3,FALSE),\"\")","v":3},{"$f":"IFERROR(VLOOKUP($A27,masterlist!$C$2:$AD$207,28,FALSE),\"\")","v":"Mettre en place les capacités (personnel formé, véhicules, aiguilles, seringues, etc.) permettant d'obtenir une couverture vaccinale de 70 % de tous les chiens à risque du pays chaque année."},{"$f":"IF($D27>6,\"\",IF(F$5<=(VLOOKUP($A27,masterlist!$C$2:$AC$207,27,FALSE)),1,\"\"))","v":1},{"$f":"IF($D27>6,\"\",IF(G$5<=(VLOOKUP($A27,masterlist!$C$2:$AC$207,27,FALSE)),1,\"\"))","v":1},{"$f":"IF($D27>6,\"\",IF(H$5<=(VLOOKUP($A27,masterlist!$C$2:$AC$207,27,FALSE)),1,\"\"))","v":1},{"$f":"IF($D27>6,\"\",IF(I$5<=(VLOOKUP($A27,masterlist!$C$2:$AC$207,27,FALSE)),1,\"\"))","v":1},{"$f":"IF($D27>6,\"\",IF(J$5<=(VLOOKUP($A27,masterlist!$C$2:$AC$207,27,FALSE)),1,\"\"))","v":1},{"$f":"IF($D27>6,\"\",IF(K$5<=(VLOOKUP($A27,masterlist!$C$2:$AC$207,27,FALSE)),1,\"\"))","v":1},{"$f":"IF($D27>6,\"\",IF(L$5<=(VLOOKUP($A27,masterlist!$C$2:$AC$207,27,FALSE)),1,\"\"))","v":1},{"$f":"IF($D27>6,\"\",IF(M$5<=(VLOOKUP($A27,masterlist!$C$2:$AC$207,27,FALSE)),1,\"\"))","v":1},{"$f":"IF($D27>6,\"\",IF(N$5<=(VLOOKUP($A27,masterlist!$C$2:$AC$207,27,FALSE)),1,\"\"))","v":1},{"$f":"IF($D27>6,\"\",IF(O$5<=(VLOOKUP($A27,masterlist!$C$2:$AC$207,27,FALSE)),1,\"\"))","v":1},{"$f":"IF($D27>6,\"\",IF(P$5<=(VLOOKUP($A27,masterlist!$C$2:$AC$207,27,FALSE)),1,\"\"))","v":1},{"$f":"IF($D27>6,\"\",IF(Q$5<=(VLOOKUP($A27,masterlist!$C$2:$AC$207,27,FALSE)),1,\"\"))","v":1},{"$f":"IF($D27>6,\"\",IF(R$5<=(VLOOKUP($A27,masterlist!$C$2:$AC$207,27,FALSE)),1,\"\"))","v":1},null,null,null,null,0,0,0,0,0,0,0,0,0,0,0,0,1]
[{"$f":"IFERROR(priorit!A21,\"\")","v":"PCO-Vac-3-14"},"PCO",{"$f":"IFERROR(VLOOKUP($A28,masterlist!$C$2:$AA$207,2,FALSE),\"\")","v":"Vaccins canins"},{"$f":"IFERROR(VLOOKUP($A28,masterlist!$C$2:$AA$207,3,FALSE),\"\")","v":3},{"$f":"IFERROR(VLOOKUP($A28,masterlist!$C$2:$AD$207,28,FALSE),\"\")","v":"Mettre en œuvre des campagnes de vaccination de masse des chiens qui touchent chaque année au moins 70 % de la population canine à risque dans le pays."},{"$f":"IF($D28>6,\"\",IF(F$5<=(VLOOKUP($A28,masterlist!$C$2:$AC$207,27,FALSE)),1,\"\"))","v":1},{"$f":"IF($D28>6,\"\",IF(G$5<=(VLOOKUP($A28,masterlist!$C$2:$AC$207,27,FALSE)),1,\"\"))","v":1},{"$f":"IF($D28>6,\"\",IF(H$5<=(VLOOKUP($A28,masterlist!$C$2:$AC$207,27,FALSE)),1,\"\"))","v":1},{"$f":"IF($D28>6,\"\",IF(I$5<=(VLOOKUP($A28,masterlist!$C$2:$AC$207,27,FALSE)),1,\"\"))","v":1},{"$f":"IF($D28>6,\"\",IF(J$5<=(VLOOKUP($A28,masterlist!$C$2:$AC$207,27,FALSE)),1,\"\"))","v":1},{"$f":"IF($D28>6,\"\",IF(K$5<=(VLOOKUP($A28,masterlist!$C$2:$AC$207,27,FALSE)),1,\"\"))","v":1},{"$f":"IF($D28>6,\"\",IF(L$5<=(VLOOKUP($A28,masterlist!$C$2:$AC$207,27,FALSE)),1,\"\"))","v":1},{"$f":"IF($D28>6,\"\",IF(M$5<=(VLOOKUP($A28,masterlist!$C$2:$AC$207,27,FALSE)),1,\"\"))","v":1},{"$f":"IF($D28>6,\"\",IF(N$5<=(VLOOKUP($A28,masterlist!$C$2:$AC$207,27,FALSE)),1,\"\"))","v":1},{"$f":"IF($D28>6,\"\",IF(O$5<=(VLOOKUP($A28,masterlist!$C$2:$AC$207,27,FALSE)),1,\"\"))","v":1},{"$f":"IF($D28>6,\"\",IF(P$5<=(VLOOKUP($A28,masterlist!$C$2:$AC$207,27,FALSE)),1,\"\"))","v":1},{"$f":"IF($D28>6,\"\",IF(Q$5<=(VLOOKUP($A28,masterlist!$C$2:$AC$207,27,FALSE)),1,\"\"))","v":1},{"$f":"IF($D28>6,\"\",IF(R$5<=(VLOOKUP($A28,masterlist!$C$2:$AC$207,27,FALSE)),1,\"\"))","v":1},null,null,null,null,0,0,0,0,0,0,0,0,0,0,0,0,1]
[{"$f":"IFERROR(priorit!A30,\"\")","v":"PCO-Rép-2-23"},"PCO",{"$f":"IFERROR(VLOOKUP($A29,masterlist!$C$2:$AA$207,2,FALSE),\"\")","v":"Réponse à l'apparition d'un foyer et autres activités de lutte contre la rage"},{"$f":"IFERROR(VLOOKUP($A29,masterlist!$C$2:$AA$207,3,FALSE),\"\")","v":2},{"$f":"IFERROR(VLOOKUP($A29,masterlist!$C$2:$AD$207,28,FALSE),\"\")","v":"Mettre en place des installations d'observation ou élaborer des protocoles de quarantaine à domicile pour les chiens suspects d'être enragés."},{"$f":"IF($D29>6,\"\",IF(F$5<=(VLOOKUP($A29,masterlist!$C$2:$AC$207,27,FALSE)),1,\"\"))","v":1},{"$f":"IF($D29>6,\"\",IF(G$5<=(VLOOKUP($A29,masterlist!$C$2:$AC$207,27,FALSE)),1,\"\"))","v":1},{"$f":"IF($D29>6,\"\",IF(H$5<=(VLOOKUP($A29,masterlist!$C$2:$AC$207,27,FALSE)),1,\"\"))","v":1},{"$f":"IF($D29>6,\"\",IF(I$5<=(VLOOKUP($A29,masterlist!$C$2:$AC$207,27,FALSE)),1,\"\"))","v":1},{"$f":"IF($D29>6,\"\",IF(J$5<=(VLOOKUP($A29,masterlist!$C$2:$AC$207,27,FALSE)),1,\"\"))","v":1},{"$f":"IF($D29>6,\"\",IF(K$5<=(VLOOKUP($A29,masterlist!$C$2:$AC$207,27,FALSE)),1,\"\"))","v":1},{"$f":"IF($D29>6,\"\",IF(L$5<=(VLOOKUP($A29,masterlist!$C$2:$AC$207,27,FALSE)),1,\"\"))","v":1},{"$f":"IF($D29>6,\"\",IF(M$5<=(VLOOKUP($A29,masterlist!$C$2:$AC$207,27,FALSE)),1,\"\"))","v":1},{"$f":"IF($D29>6,\"\",IF(N$5<=(VLOOKUP($A29,masterlist!$C$2:$AC$207,27,FALSE)),1,\"\"))","v":1},{"$f":"IF($D29>6,\"\",IF(O$5<=(VLOOKUP($A29,masterlist!$C$2:$AC$207,27,FALSE)),1,\"\"))","v":1},{"$f":"IF($D29>6,\"\",IF(P$5<=(VLOOKUP($A29,masterlist!$C$2:$AC$207,27,FALSE)),1,\"\"))","v":1},{"$f":"IF($D29>6,\"\",IF(Q$5<=(VLOOKUP($A29,masterlist!$C$2:$AC$207,27,FALSE)),1,\"\"))","v":1},{"$f":"IF($D29>6,\"\",IF(R$5<=(VLOOKUP($A29,masterlist!$C$2:$AC$207,27,FALSE)),1,\"\"))","v":1},null,null,null,null,0,0,0,0,0,0,0,0,0,0,0,0,1]
[{"$f":"IFERROR(priorit!A31,\"\")","v":"PCO-Rép-2-24"},"PCO",{"$f":"IFERROR(VLOOKUP($A30,masterlist!$C$2:$AA$207,2,FALSE),\"\")","v":"Réponse à l'apparition d'un foyer et autres activités de lutte contre la rage"},{"$f":"IFERROR(VLOOKUP($A30,masterlist!$C$2:$AA$207,3,FALSE),\"\")","v":2},{"$f":"IFERROR(VLOOKUP($A30,masterlist!$C$2:$AD$207,28,FALSE),\"\")","v":"Mettre en œuvre des mesures vétérinaires d'inspection aux frontières et de quarantaine à tous les points d'entrée officiels dans le pays."},{"$f":"IF($D30>6,\"\",IF(F$5<=(VLOOKUP($A30,masterlist!$C$2:$AC$207,27,FALSE)),1,\"\"))","v":1},{"$f":"IF($D30>6,\"\",IF(G$5<=(VLOOKUP($A30,masterlist!$C$2:$AC$207,27,FALSE)),1,\"\"))","v":1},{"$f":"IF($D30>6,\"\",IF(H$5<=(VLOOKUP($A30,masterlist!$C$2:$AC$207,27,FALSE)),1,\"\"))","v":1},{"$f":"IF($D30>6,\"\",IF(I$5<=(VLOOKUP($A30,masterlist!$C$2:$AC$207,27,FALSE)),1,\"\"))","v":1},{"$f":"IF($D30>6,\"\",IF(J$5<=(VLOOKUP($A30,masterlist!$C$2:$AC$207,27,FALSE)),1,\"\"))","v":1},{"$f":"IF($D30>6,\"\",IF(K$5<=(VLOOKUP($A30,masterlist!$C$2:$AC$207,27,FALSE)),1,\"\"))","v":1},{"$f":"IF($D30>6,\"\",IF(L$5<=(VLOOKUP($A30,masterlist!$C$2:$AC$207,27,FALSE)),1,\"\"))","v":1},{"$f":"IF($D30>6,\"\",IF(M$5<=(VLOOKUP($A30,masterlist!$C$2:$AC$207,27,FALSE)),1,\"\"))","v":1},{"$f":"IF($D30>6,\"\",IF(N$5<=(VLOOKUP($A30,masterlist!$C$2:$AC$207,27,FALSE)),1,\"\"))","v":1},{"$f":"IF($D30>6,\"\",IF(O$5<=(VLOOKUP($A30,masterlist!$C$2:$AC$207,27,FALSE)),1,\"\"))","v":1},{"$f":"IF($D30>6,\"\",IF(P$5<=(VLOOKUP($A30,masterlist!$C$2:$AC$207,27,FALSE)),1,\"\"))","v":1},{"$f":"IF($D30>6,\"\",IF(Q$5<=(VLOOKUP($A30,masterlist!$C$2:$AC$207,27,FALSE)),1,\"\"))","v":1},{"$f":"IF($D30>6,\"\",IF(R$5<=(VLOOKUP($A30,masterlist!$C$2:$AC$207,27,FALSE)),1,\"\"))","v":1},null,null,null,null,0,0,0,0,0,0,0,0,0,0,0,0,1]
[{"$f":"IFERROR(priorit!A32,\"\")","v":"PCO-Rép-3-25"},"PCO",{"$f":"IFERROR(VLOOKUP($A31,masterlist!$C$2:$AA$207,2,FALSE),\"\")","v":"Réponse à l'apparition d'un foyer et autres activités de lutte contre la rage"},{"$f":"IFERROR(VLOOKUP($A31,masterlist!$C$2:$AA$207,3,FALSE),\"\")","v":3},{"$f":"IFERROR(VLOOKUP($A31,masterlist!$C$2:$AD$207,28,FALSE),\"\")","v":"Mettre en place les capacités nécessaires pour mener des enquêtes conjointes sur le terrain et des réponses planifiées aux foyers de rage humaine dans l'ensemble du pays"},{"$f":"IF($D31>6,\"\",IF(F$5<=(VLOOKUP($A31,masterlist!$C$2:$AC$207,27,FALSE)),1,\"\"))","v":1},{"$f":"IF($D31>6,\"\",IF(G$5<=(VLOOKUP($A31,masterlist!$C$2:$AC$207,27,FALSE)),1,\"\"))","v":1},{"$f":"IF($D31>6,\"\",IF(H$5<=(VLOOKUP($A31,masterlist!$C$2:$AC$207,27,FALSE)),1,\"\"))","v":1},{"$f":"IF($D31>6,\"\",IF(I$5<=(VLOOKUP($A31,masterlist!$C$2:$AC$207,27,FALSE)),1,\"\"))","v":1},{"$f":"IF($D31>6,\"\",IF(J$5<=(VLOOKUP($A31,masterlist!$C$2:$AC$207,27,FALSE)),1,\"\"))","v":1},{"$f":"IF($D31>6,\"\",IF(K$5<=(VLOOKUP($A31,masterlist!$C$2:$AC$207,27,FALSE)),1,\"\"))","v":1},{"$f":"IF($D31>6,\"\",IF(L$5<=(VLOOKUP($A31,masterlist!$C$2:$AC$207,27,FALSE)),1,\"\"))","v":1},{"$f":"IF($D31>6,\"\",IF(M$5<=(VLOOKUP($A31,masterlist!$C$2:$AC$207,27,FALSE)),1,\"\"))","v":1},{"$f":"IF($D31>6,\"\",IF(N$5<=(VLOOKUP($A31,masterlist!$C$2:$AC$207,27,FALSE)),1,\"\"))","v":1},{"$f":"IF($D31>6,\"\",IF(O$5<=(VLOOKUP($A31,masterlist!$C$2:$AC$207,27,FALSE)),1,\"\"))","v":1},{"$f":"IF($D31>6,\"\",IF(P$5<=(VLOOKUP($A31,masterlist!$C$2:$AC$207,27,FALSE)),1,\"\"))","v":1},{"$f":"IF($D31>6,\"\",IF(Q$5<=(VLOOKUP($A31,masterlist!$C$2:$AC$207,27,FALSE)),1,\"\"))","v":1},{"$f":"IF($D31>6,\"\",IF(R$5<=(VLOOKUP($A31,masterlist!$C$2:$AC$207,27,FALSE)),1,\"\"))","v":1},null,null,null,null,0,0,0,0,0,0,0,0,0,0,0,0,1]
[{"$f":"IFERROR(priorit!A37,\"\")","v":"PCO-Rép-4-30"},"PCO",{"$f":"IFERROR(VLOOKUP($A32,masterlist!$C$2:$AA$207,2,FALSE),\"\")","v":"Réponse à l'apparition d'un foyer et autres activités de lutte contre la rage"},{"$f":"IFERROR(VLOOKUP($A32,masterlist!$C$2:$AA$207,3,FALSE),\"\")","v":4},{"$f":"IFERROR(VLOOKUP($A32,masterlist!$C$2:$AD$207,28,FALSE),\"\")","v":"Étant donné qu'il n'y a plus de cas de rage humaine confirmés en laboratoire, maintenir les activités de surveillance existantes pour tous les cas suspects chez l'homme dans le pays."},{"$f":"IF($D32>6,\"\",IF(F$5<=(VLOOKUP($A32,masterlist!$C$2:$AC$207,27,FALSE)),1,\"\"))","v":1},{"$f":"IF($D32>6,\"\",IF(G$5<=(VLOOKUP($A32,masterlist!$C$2:$AC$207,27,FALSE)),1,\"\"))","v":1},{"$f":"IF($D32>6,\"\",IF(H$5<=(VLOOKUP($A32,masterlist!$C$2:$AC$207,27,FALSE)),1,\"\"))","v":1},{"$f":"IF($D32>6,\"\",IF(I$5<=(VLOOKUP($A32,masterlist!$C$2:$AC$207,27,FALSE)),1,\"\"))","v":1},{"$f":"IF($D32>6,\"\",IF(J$5<=(VLOOKUP($A32,masterlist!$C$2:$AC$207,27,FALSE)),1,\"\"))","v":1},{"$f":"IF($D32>6,\"\",IF(K$5<=(VLOOKUP($A32,masterlist!$C$2:$AC$207,27,FALSE)),1,\"\"))","v":1},{"$f":"IF($D32>6,\"\",IF(L$5<=(VLOOKUP($A32,masterlist!$C$2:$AC$207,27,FALSE)),1,\"\"))","v":1},{"$f":"IF($D32>6,\"\",IF(M$5<=(VLOOKUP($A32,masterlist!$C$2:$AC$207,27,FALSE)),1,\"\"))","v":1},{"$f":"IF($D32>6,\"\",IF(N$5<=(VLOOKUP($A32,masterlist!$C$2:$AC$207,27,FALSE)),1,\"\"))","v":1},{"$f":"IF($D32>6,\"\",IF(O$5<=(VLOOKUP($A32,masterlist!$C$2:$AC$207,27,FALSE)),1,\"\"))","v":1},{"$f":"IF($D32>6,\"\",IF(P$5<=(VLOOKUP($A32,masterlist!$C$2:$AC$207,27,FALSE)),1,\"\"))","v":1},{"$f":"IF($D32>6,\"\",IF(Q$5<=(VLOOKUP($A32,masterlist!$C$2:$AC$207,27,FALSE)),1,\"\"))","v":1},{"$f":"IF($D32>6,\"\",IF(R$5<=(VLOOKUP($A32,masterlist!$C$2:$AC$207,27,FALSE)),1,\"\"))","v":1},null,null,null,null,0,0,0,0,0,0,0,0,0,0,0,0,1]
[{"$f":"IFERROR(priorit!A44,\"\")","v":"LAB-Cap-3-9"},"LAB",{"$f":"IFERROR(VLOOKUP($A33,masterlist!$C$2:$AA$207,2,FALSE),\"\")","v":"Capacités des laboratoires et tests"},{"$f":"IFERROR(VLOOKUP($A33,masterlist!$C$2:$AA$207,3,FALSE),\"\")","v":3},{"$f":"IFERROR(VLOOKUP($A33,masterlist!$C$2:$AD$207,28,FALSE),\"\")","v":"Garantir l'accès à des diagnostics de laboratoire fiables et rapides dans tout le pays pour les prélèvements d'animaux (et si possible également pour les prélèvements humains et d'animaux sauvages)."},{"$f":"IF($D33>6,\"\",IF(F$5<=(VLOOKUP($A33,masterlist!$C$2:$AC$207,27,FALSE)),1,\"\"))","v":1},{"$f":"IF($D33>6,\"\",IF(G$5<=(VLOOKUP($A33,masterlist!$C$2:$AC$207,27,FALSE)),1,\"\"))","v":1},{"$f":"IF($D33>6,\"\",IF(H$5<=(VLOOKUP($A33,masterlist!$C$2:$AC$207,27,FALSE)),1,\"\"))","v":1},{"$f":"IF($D33>6,\"\",IF(I$5<=(VLOOKUP($A33,masterlist!$C$2:$AC$207,27,FALSE)),1,\"\"))","v":1},{"$f":"IF($D33>6,\"\",IF(J$5<=(VLOOKUP($A33,masterlist!$C$2:$AC$207,27,FALSE)),1,\"\"))","v":1},{"$f":"IF($D33>6,\"\",IF(K$5<=(VLOOKUP($A33,masterlist!$C$2:$AC$207,27,FALSE)),1,\"\"))","v":1},{"$f":"IF($D33>6,\"\",IF(L$5<=(VLOOKUP($A33,masterlist!$C$2:$AC$207,27,FALSE)),1,\"\"))","v":1},{"$f":"IF($D33>6,\"\",IF(M$5<=(VLOOKUP($A33,masterlist!$C$2:$AC$207,27,FALSE)),1,\"\"))","v":1},{"$f":"IF($D33>6,\"\",IF(N$5<=(VLOOKUP($A33,masterlist!$C$2:$AC$207,27,FALSE)),1,\"\"))","v":1},{"$f":"IF($D33>6,\"\",IF(O$5<=(VLOOKUP($A33,masterlist!$C$2:$AC$207,27,FALSE)),1,\"\"))","v":1},{"$f":"IF($D33>6,\"\",IF(P$5<=(VLOOKUP($A33,masterlist!$C$2:$AC$207,27,FALSE)),1,\"\"))","v":1},{"$f":"IF($D33>6,\"\",IF(Q$5<=(VLOOKUP($A33,masterlist!$C$2:$AC$207,27,FALSE)),1,\"\"))","v":1},{"$f":"IF($D33>6,\"\",IF(R$5<=(VLOOKUP($A33,masterlist!$C$2:$AC$207,27,FALSE)),1,\"\"))","v":1},null,null,null,null,0,0,0,0,0,0,0,0,0,0,0,0,1]
[{"$f":"IFERROR(priorit!A45,\"\")","v":"LAB-Cap-3-10"},"LAB",{"$f":"IFERROR(VLOOKUP($A34,masterlist!$C$2:$AA$207,2,FALSE),\"\")","v":"Capacités des laboratoires et tests"},{"$f":"IFERROR(VLOOKUP($A34,masterlist!$C$2:$AA$207,3,FALSE),\"\")","v":3},{"$f":"IFERROR(VLOOKUP($A34,masterlist!$C$2:$AD$207,28,FALSE),\"\")","v":"Évaluer régulièrement la capacité du pays à diagnostiquer avec certitude les échantillons suspects de rage."},{"$f":"IF($D34>6,\"\",IF(F$5<=(VLOOKUP($A34,masterlist!$C$2:$AC$207,27,FALSE)),1,\"\"))","v":1},{"$f":"IF($D34>6,\"\",IF(G$5<=(VLOOKUP($A34,masterlist!$C$2:$AC$207,27,FALSE)),1,\"\"))","v":1},{"$f":"IF($D34>6,\"\",IF(H$5<=(VLOOKUP($A34,masterlist!$C$2:$AC$207,27,FALSE)),1,\"\"))","v":1},{"$f":"IF($D34>6,\"\",IF(I$5<=(VLOOKUP($A34,masterlist!$C$2:$AC$207,27,FALSE)),1,\"\"))","v":1},{"$f":"IF($D34>6,\"\",IF(J$5<=(VLOOKUP($A34,masterlist!$C$2:$AC$207,27,FALSE)),1,\"\"))","v":1},{"$f":"IF($D34>6,\"\",IF(K$5<=(VLOOKUP($A34,masterlist!$C$2:$AC$207,27,FALSE)),1,\"\"))","v":1},{"$f":"IF($D34>6,\"\",IF(L$5<=(VLOOKUP($A34,masterlist!$C$2:$AC$207,27,FALSE)),1,\"\"))","v":1},{"$f":"IF($D34>6,\"\",IF(M$5<=(VLOOKUP($A34,masterlist!$C$2:$AC$207,27,FALSE)),1,\"\"))","v":1},{"$f":"IF($D34>6,\"\",IF(N$5<=(VLOOKUP($A34,masterlist!$C$2:$AC$207,27,FALSE)),1,\"\"))","v":1},{"$f":"IF($D34>6,\"\",IF(O$5<=(VLOOKUP($A34,masterlist!$C$2:$AC$207,27,FALSE)),1,\"\"))","v":1},{"$f":"IF($D34>6,\"\",IF(P$5<=(VLOOKUP($A34,masterlist!$C$2:$AC$207,27,FALSE)),1,\"\"))","v":1},{"$f":"IF($D34>6,\"\",IF(Q$5<=(VLOOKUP($A34,masterlist!$C$2:$AC$207,27,FALSE)),1,\"\"))","v":1},{"$f":"IF($D34>6,\"\",IF(R$5<=(VLOOKUP($A34,masterlist!$C$2:$AC$207,27,FALSE)),1,\"\"))","v":1},null,null,null,null,0,0,0,0,0,0,0,0,0,0,0,0,1]
[{"$f":"IFERROR(priorit!A46,\"\")","v":"LAB-Cap-4-11"},"LAB",{"$f":"IFERROR(VLOOKUP($A35,masterlist!$C$2:$AA$207,2,FALSE),\"\")","v":"Capacités des laboratoires et tests"},{"$f":"IFERROR(VLOOKUP($A35,masterlist!$C$2:$AA$207,3,FALSE),\"\")","v":4},{"$f":"IFERROR(VLOOKUP($A35,masterlist!$C$2:$AD$207,28,FALSE),\"\")","v":"Maintenant qu'il y a très peu de cas de rage animale dans le pays, il faut s'assurer qu'un diagnostic de laboratoire est opérationnel pour tous les cas suspects chez les chiens dans le pays."},{"$f":"IF($D35>6,\"\",IF(F$5<=(VLOOKUP($A35,masterlist!$C$2:$AC$207,27,FALSE)),1,\"\"))","v":1},{"$f":"IF($D35>6,\"\",IF(G$5<=(VLOOKUP($A35,masterlist!$C$2:$AC$207,27,FALSE)),1,\"\"))","v":1},{"$f":"IF($D35>6,\"\",IF(H$5<=(VLOOKUP($A35,masterlist!$C$2:$AC$207,27,FALSE)),1,\"\"))","v":1},{"$f":"IF($D35>6,\"\",IF(I$5<=(VLOOKUP($A35,masterlist!$C$2:$AC$207,27,FALSE)),1,\"\"))","v":1},{"$f":"IF($D35>6,\"\",IF(J$5<=(VLOOKUP($A35,masterlist!$C$2:$AC$207,27,FALSE)),1,\"\"))","v":1},{"$f":"IF($D35>6,\"\",IF(K$5<=(VLOOKUP($A35,masterlist!$C$2:$AC$207,27,FALSE)),1,\"\"))","v":1},{"$f":"IF($D35>6,\"\",IF(L$5<=(VLOOKUP($A35,masterlist!$C$2:$AC$207,27,FALSE)),1,\"\"))","v":1},{"$f":"IF($D35>6,\"\",IF(M$5<=(VLOOKUP($A35,masterlist!$C$2:$AC$207,27,FALSE)),1,\"\"))","v":1},{"$f":"IF($D35>6,\"\",IF(N$5<=(VLOOKUP($A35,masterlist!$C$2:$AC$207,27,FALSE)),1,\"\"))","v":1},{"$f":"IF($D35>6,\"\",IF(O$5<=(VLOOKUP($A35,masterlist!$C$2:$AC$207,27,FALSE)),1,\"\"))","v":1},{"$f":"IF($D35>6,\"\",IF(P$5<=(VLOOKUP($A35,masterlist!$C$2:$AC$207,27,FALSE)),1,\"\"))","v":1},{"$f":"IF($D35>6,\"\",IF(Q$5<=(VLOOKUP($A35,masterlist!$C$2:$AC$207,27,FALSE)),1,\"\"))","v":1},{"$f":"IF($D35>6,\"\",IF(R$5<=(VLOOKUP($A35,masterlist!$C$2:$AC$207,27,FALSE)),1,\"\"))","v":1},null,null,null,null,0,0,0,0,0,0,0,0,0,0,0,0,1]
[{"$f":"IFERROR(priorit!A47,\"\")","v":"LAB-Cap-4-12"},"LAB",{"$f":"IFERROR(VLOOKUP($A36,masterlist!$C$2:$AA$207,2,FALSE),\"\")","v":"Capacités des laboratoires et tests"},{"$f":"IFERROR(VLOOKUP($A36,masterlist!$C$2:$AA$207,3,FALSE),\"\")","v":4},{"$f":"IFERROR(VLOOKUP($A36,masterlist!$C$2:$AD$207,28,FALSE),\"\")","v":"Caractériser et analyser régulièrement les variants du virus de la rage en circulation dans un laboratoire national ou international."},{"$f":"IF($D36>6,\"\",IF(F$5<=(VLOOKUP($A36,masterlist!$C$2:$AC$207,27,FALSE)),1,\"\"))","v":1},{"$f":"IF($D36>6,\"\",IF(G$5<=(VLOOKUP($A36,masterlist!$C$2:$AC$207,27,FALSE)),1,\"\"))","v":1},{"$f":"IF($D36>6,\"\",IF(H$5<=(VLOOKUP($A36,masterlist!$C$2:$AC$207,27,FALSE)),1,\"\"))","v":1},{"$f":"IF($D36>6,\"\",IF(I$5<=(VLOOKUP($A36,masterlist!$C$2:$AC$207,27,FALSE)),1,\"\"))","v":1},{"$f":"IF($D36>6,\"\",IF(J$5<=(VLOOKUP($A36,masterlist!$C$2:$AC$207,27,FALSE)),1,\"\"))","v":1},{"$f":"IF($D36>6,\"\",IF(K$5<=(VLOOKUP($A36,masterlist!$C$2:$AC$207,27,FALSE)),1,\"\"))","v":1},{"$f":"IF($D36>6,\"\",IF(L$5<=(VLOOKUP($A36,masterlist!$C$2:$AC$207,27,FALSE)),1,\"\"))","v":1},{"$f":"IF($D36>6,\"\",IF(M$5<=(VLOOKUP($A36,masterlist!$C$2:$AC$207,27,FALSE)),1,\"\"))","v":1},{"$f":"IF($D36>6,\"\",IF(N$5<=(VLOOKUP($A36,masterlist!$C$2:$AC$207,27,FALSE)),1,\"\"))","v":1},{"$f":"IF($D36>6,\"\",IF(O$5<=(VLOOKUP($A36,masterlist!$C$2:$AC$207,27,FALSE)),1,\"\"))","v":1},{"$f":"IF($D36>6,\"\",IF(P$5<=(VLOOKUP($A36,masterlist!$C$2:$AC$207,27,FALSE)),1,\"\"))","v":1},{"$f":"IF($D36>6,\"\",IF(Q$5<=(VLOOKUP($A36,masterlist!$C$2:$AC$207,27,FALSE)),1,\"\"))","v":1},{"$f":"IF($D36>6,\"\",IF(R$5<=(VLOOKUP($A36,masterlist!$C$2:$AC$207,27,FALSE)),1,\"\"))","v":1},null,null,null,null,0,0,0,0,0,0,0,0,0,0,0,0,1]
[{"$f":"IFERROR(priorit!A22,\"\")","v":"PCO-Vac-3-15"},"PCO",{"$f":"IFERROR(VLOOKUP($A37,masterlist!$C$2:$AA$207,2,FALSE),\"\")","v":"Vaccins canins"},{"$f":"IFERROR(VLOOKUP($A37,masterlist!$C$2:$AA$207,3,FALSE),\"\")","v":3},{"$f":"IFERROR(VLOOKUP($A37,masterlist!$C$2:$AD$207,28,FALSE),\"\")","v":"Entreprendre des enquêtes post-vaccination pour évaluer la couverture vaccinale des chiens dans le pays."},{"$f":"IF($D37>6,\"\",IF(F$5<=(VLOOKUP($A37,masterlist!$C$2:$AC$207,27,FALSE)),1,\"\"))","v":1},{"$f":"IF($D37>6,\"\",IF(G$5<=(VLOOKUP($A37,masterlist!$C$2:$AC$207,27,FALSE)),1,\"\"))","v":1},{"$f":"IF($D37>6,\"\",IF(H$5<=(VLOOKUP($A37,masterlist!$C$2:$AC$207,27,FALSE)),1,\"\"))","v":1},{"$f":"IF($D37>6,\"\",IF(I$5<=(VLOOKUP($A37,masterlist!$C$2:$AC$207,27,FALSE)),1,\"\"))","v":1},{"$f":"IF($D37>6,\"\",IF(J$5<=(VLOOKUP($A37,masterlist!$C$2:$AC$207,27,FALSE)),1,\"\"))","v":1},{"$f":"IF($D37>6,\"\",IF(K$5<=(VLOOKUP($A37,masterlist!$C$2:$AC$207,27,FALSE)),1,\"\"))","v":1},{"$f":"IF($D37>6,\"\",IF(L$5<=(VLOOKUP($A37,masterlist!$C$2:$AC$207,27,FALSE)),1,\"\"))","v":1},{"$f":"IF($D37>6,\"\",IF(M$5<=(VLOOKUP($A37,masterlist!$C$2:$AC$207,27,FALSE)),1,\"\"))","v":1},{"$f":"IF($D37>6,\"\",IF(N$5<=(VLOOKUP($A37,masterlist!$C$2:$AC$207,27,FALSE)),1,\"\"))","v":1},{"$f":"IF($D37>6,\"\",IF(O$5<=(VLOOKUP($A37,masterlist!$C$2:$AC$207,27,FALSE)),1,\"\"))","v":1},{"$f":"IF($D37>6,\"\",IF(P$5<=(VLOOKUP($A37,masterlist!$C$2:$AC$207,27,FALSE)),1,\"\"))","v":1},{"$f":"IF($D37>6,\"\",IF(Q$5<=(VLOOKUP($A37,masterlist!$C$2:$AC$207,27,FALSE)),1,\"\"))","v":1},{"$f":"IF($D37>6,\"\",IF(R$5<=(VLOOKUP($A37,masterlist!$C$2:$AC$207,27,FALSE)),1,\"\"))","v":1},null,null,null,null,0,0,0,0,0,0,0,0,0,0,0,0,1]
[{"$f":"IFERROR(priorit!A23,\"\")","v":"PCO-Vac-4-16"},"PCO",{"$f":"IFERROR(VLOOKUP($A38,masterlist!$C$2:$AA$207,2,FALSE),\"\")","v":"Vaccins canins"},{"$f":"IFERROR(VLOOKUP($A38,masterlist!$C$2:$AA$207,3,FALSE),\"\")","v":4},{"$f":"IFERROR(VLOOKUP($A38,masterlist!$C$2:$AD$207,28,FALSE),\"\")","v":"Maintenant qu'il y a très peu de cas de rage animale dans le pays, les campagnes de vaccination des chiens sont maintenues dans les zones où la rage canine est encore présente ou lorsque cela se justifie (par exemple, risque d'introduction)."},{"$f":"IF($D38>6,\"\",IF(F$5<=(VLOOKUP($A38,masterlist!$C$2:$AC$207,27,FALSE)),1,\"\"))","v":1},{"$f":"IF($D38>6,\"\",IF(G$5<=(VLOOKUP($A38,masterlist!$C$2:$AC$207,27,FALSE)),1,\"\"))","v":1},{"$f":"IF($D38>6,\"\",IF(H$5<=(VLOOKUP($A38,masterlist!$C$2:$AC$207,27,FALSE)),1,\"\"))","v":1},{"$f":"IF($D38>6,\"\",IF(I$5<=(VLOOKUP($A38,masterlist!$C$2:$AC$207,27,FALSE)),1,\"\"))","v":1},{"$f":"IF($D38>6,\"\",IF(J$5<=(VLOOKUP($A38,masterlist!$C$2:$AC$207,27,FALSE)),1,\"\"))","v":1},{"$f":"IF($D38>6,\"\",IF(K$5<=(VLOOKUP($A38,masterlist!$C$2:$AC$207,27,FALSE)),1,\"\"))","v":1},{"$f":"IF($D38>6,\"\",IF(L$5<=(VLOOKUP($A38,masterlist!$C$2:$AC$207,27,FALSE)),1,\"\"))","v":1},{"$f":"IF($D38>6,\"\",IF(M$5<=(VLOOKUP($A38,masterlist!$C$2:$AC$207,27,FALSE)),1,\"\"))","v":1},{"$f":"IF($D38>6,\"\",IF(N$5<=(VLOOKUP($A38,masterlist!$C$2:$AC$207,27,FALSE)),1,\"\"))","v":1},{"$f":"IF($D38>6,\"\",IF(O$5<=(VLOOKUP($A38,masterlist!$C$2:$AC$207,27,FALSE)),1,\"\"))","v":1},{"$f":"IF($D38>6,\"\",IF(P$5<=(VLOOKUP($A38,masterlist!$C$2:$AC$207,27,FALSE)),1,\"\"))","v":1},{"$f":"IF($D38>6,\"\",IF(Q$5<=(VLOOKUP($A38,masterlist!$C$2:$AC$207,27,FALSE)),1,\"\"))","v":1},{"$f":"IF($D38>6,\"\",IF(R$5<=(VLOOKUP($A38,masterlist!$C$2:$AC$207,27,FALSE)),1,\"\"))","v":1},null,null,null,null,0,0,0,0,0,0,0,0,0,0,0,0,1]
[{"$f":"IFERROR(priorit!A24,\"\")","v":"PCO-Vac-5-17"},"PCO",{"$f":"IFERROR(VLOOKUP($A39,masterlist!$C$2:$AA$207,2,FALSE),\"\")","v":"Vaccins canins"},{"$f":"IFERROR(VLOOKUP($A39,masterlist!$C$2:$AA$207,3,FALSE),\"\")","v":5},{"$f":"IFERROR(VLOOKUP($A39,masterlist!$C$2:$AD$207,28,FALSE),\"\")","v":"Bien que le pays soit indemne de rage grâce à des campagnes de vaccination de masse réussies, des campagnes stratégiques de vaccination des chiens sont maintenues lorsque cela se justifie."},{"$f":"IF($D39>6,\"\",IF(F$5<=(VLOOKUP($A39,masterlist!$C$2:$AC$207,27,FALSE)),1,\"\"))","v":1},{"$f":"IF($D39>6,\"\",IF(G$5<=(VLOOKUP($A39,masterlist!$C$2:$AC$207,27,FALSE)),1,\"\"))","v":1},{"$f":"IF($D39>6,\"\",IF(H$5<=(VLOOKUP($A39,masterlist!$C$2:$AC$207,27,FALSE)),1,\"\"))","v":1},{"$f":"IF($D39>6,\"\",IF(I$5<=(VLOOKUP($A39,masterlist!$C$2:$AC$207,27,FALSE)),1,\"\"))","v":1},{"$f":"IF($D39>6,\"\",IF(J$5<=(VLOOKUP($A39,masterlist!$C$2:$AC$207,27,FALSE)),1,\"\"))","v":1},{"$f":"IF($D39>6,\"\",IF(K$5<=(VLOOKUP($A39,masterlist!$C$2:$AC$207,27,FALSE)),1,\"\"))","v":1},{"$f":"IF($D39>6,\"\",IF(L$5<=(VLOOKUP($A39,masterlist!$C$2:$AC$207,27,FALSE)),1,\"\"))","v":1},{"$f":"IF($D39>6,\"\",IF(M$5<=(VLOOKUP($A39,masterlist!$C$2:$AC$207,27,FALSE)),1,\"\"))","v":1},{"$f":"IF($D39>6,\"\",IF(N$5<=(VLOOKUP($A39,masterlist!$C$2:$AC$207,27,FALSE)),1,\"\"))","v":1},{"$f":"IF($D39>6,\"\",IF(O$5<=(VLOOKUP($A39,masterlist!$C$2:$AC$207,27,FALSE)),1,\"\"))","v":1},{"$f":"IF($D39>6,\"\",IF(P$5<=(VLOOKUP($A39,masterlist!$C$2:$AC$207,27,FALSE)),1,\"\"))","v":1},{"$f":"IF($D39>6,\"\",IF(Q$5<=(VLOOKUP($A39,masterlist!$C$2:$AC$207,27,FALSE)),1,\"\"))","v":1},{"$f":"IF($D39>6,\"\",IF(R$5<=(VLOOKUP($A39,masterlist!$C$2:$AC$207,27,FALSE)),1,\"\"))","v":1},null,null,null,null,0,0,0,0,0,0,0,0,0,0,0,0,1]
[{"$f":"IFERROR(priorit!A33,\"\")","v":"PCO-Rép-3-26"},"PCO",{"$f":"IFERROR(VLOOKUP($A40,masterlist!$C$2:$AA$207,2,FALSE),\"\")","v":"Réponse à l'apparition d'un foyer et autres activités de lutte contre la rage"},{"$f":"IFERROR(VLOOKUP($A40,masterlist!$C$2:$AA$207,3,FALSE),\"\")","v":3},{"$f":"IFERROR(VLOOKUP($A40,masterlist!$C$2:$AD$207,28,FALSE),\"\")","v":"Engager un dialogue avec les pays voisins pour empêcher la réintroduction de la rage dans les zones désignées comme exemptes de rage."},{"$f":"IF($D40>6,\"\",IF(F$5<=(VLOOKUP($A40,masterlist!$C$2:$AC$207,27,FALSE)),1,\"\"))","v":1},{"$f":"IF($D40>6,\"\",IF(G$5<=(VLOOKUP($A40,masterlist!$C$2:$AC$207,27,FALSE)),1,\"\"))","v":1},{"$f":"IF($D40>6,\"\",IF(H$5<=(VLOOKUP($A40,masterlist!$C$2:$AC$207,27,FALSE)),1,\"\"))","v":1},{"$f":"IF($D40>6,\"\",IF(I$5<=(VLOOKUP($A40,masterlist!$C$2:$AC$207,27,FALSE)),1,\"\"))","v":1},{"$f":"IF($D40>6,\"\",IF(J$5<=(VLOOKUP($A40,masterlist!$C$2:$AC$207,27,FALSE)),1,\"\"))","v":1},{"$f":"IF($D40>6,\"\",IF(K$5<=(VLOOKUP($A40,masterlist!$C$2:$AC$207,27,FALSE)),1,\"\"))","v":1},{"$f":"IF($D40>6,\"\",IF(L$5<=(VLOOKUP($A40,masterlist!$C$2:$AC$207,27,FALSE)),1,\"\"))","v":1},{"$f":"IF($D40>6,\"\",IF(M$5<=(VLOOKUP($A40,masterlist!$C$2:$AC$207,27,FALSE)),1,\"\"))","v":1},{"$f":"IF($D40>6,\"\",IF(N$5<=(VLOOKUP($A40,masterlist!$C$2:$AC$207,27,FALSE)),1,\"\"))","v":1},{"$f":"IF($D40>6,\"\",IF(O$5<=(VLOOKUP($A40,masterlist!$C$2:$AC$207,27,FALSE)),1,\"\"))","v":1},{"$f":"IF($D40>6,\"\",IF(P$5<=(VLOOKUP($A40,masterlist!$C$2:$AC$207,27,FALSE)),1,\"\"))","v":1},{"$f":"IF($D40>6,\"\",IF(Q$5<=(VLOOKUP($A40,masterlist!$C$2:$AC$207,27,FALSE)),1,\"\"))","v":1},{"$f":"IF($D40>6,\"\",IF(R$5<=(VLOOKUP($A40,masterlist!$C$2:$AC$207,27,FALSE)),1,\"\"))","v":1},null,null,null,null,0,0,0,0,0,0,0,0,0,0,0,0,1]
[{"$f":"IFERROR(priorit!A38,\"\")","v":"PCO-Rép-4-31"},"PCO",{"$f":"IFERROR(VLOOKUP($A41,masterlist!$C$2:$AA$207,2,FALSE),\"\")","v":"Réponse à l'apparition d'un foyer et autres activités de lutte contre la rage"},{"$f":"IFERROR(VLOOKUP($A41,masterlist!$C$2:$AA$207,3,FALSE),\"\")","v":4},{"$f":"IFERROR(VLOOKUP($A41,masterlist!$C$2:$AD$207,28,FALSE),\"\")","v":"Maintenant qu'il y a très peu de cas de rage animale dans le pays, élaborer une réponse d'urgence ou un plan de secours au cas où la variante canine de la rage serait réintroduite dans les zones exemptes de rage."},{"$f":"IF($D41>6,\"\",IF(F$5<=(VLOOKUP($A41,masterlist!$C$2:$AC$207,27,FALSE)),1,\"\"))","v":1},{"$f":"IF($D41>6,\"\",IF(G$5<=(VLOOKUP($A41,masterlist!$C$2:$AC$207,27,FALSE)),1,\"\"))","v":1},{"$f":"IF($D41>6,\"\",IF(H$5<=(VLOOKUP($A41,masterlist!$C$2:$AC$207,27,FALSE)),1,\"\"))","v":1},{"$f":"IF($D41>6,\"\",IF(I$5<=(VLOOKUP($A41,masterlist!$C$2:$AC$207,27,FALSE)),1,\"\"))","v":1},{"$f":"IF($D41>6,\"\",IF(J$5<=(VLOOKUP($A41,masterlist!$C$2:$AC$207,27,FALSE)),1,\"\"))","v":1},{"$f":"IF($D41>6,\"\",IF(K$5<=(VLOOKUP($A41,masterlist!$C$2:$AC$207,27,FALSE)),1,\"\"))","v":1},{"$f":"IF($D41>6,\"\",IF(L$5<=(VLOOKUP($A41,masterlist!$C$2:$AC$207,27,FALSE)),1,\"\"))","v":1},{"$f":"IF($D41>6,\"\",IF(M$5<=(VLOOKUP($A41,masterlist!$C$2:$AC$207,27,FALSE)),1,\"\"))","v":1},{"$f":"IF($D41>6,\"\",IF(N$5<=(VLOOKUP($A41,masterlist!$C$2:$AC$207,27,FALSE)),1,\"\"))","v":1},{"$f":"IF($D41>6,\"\",IF(O$5<=(VLOOKUP($A41,masterlist!$C$2:$AC$207,27,FALSE)),1,\"\"))","v":1},{"$f":"IF($D41>6,\"\",IF(P$5<=(VLOOKUP($A41,masterlist!$C$2:$AC$207,27,FALSE)),1,\"\"))","v":1},{"$f":"IF($D41>6,\"\",IF(Q$5<=(VLOOKUP($A41,masterlist!$C$2:$AC$207,27,FALSE)),1,\"\"))","v":1},{"$f":"IF($D41>6,\"\",IF(R$5<=(VLOOKUP($A41,masterlist!$C$2:$AC$207,27,FALSE)),1,\"\"))","v":1},null,null,null,null,0,0,0,0,0,0,0,0,0,0,0,0,1]
[{"$f":"IFERROR(priorit!A39,\"\")","v":"PCO-Rép-5-32"},"PCO",{"$f":"IFERROR(VLOOKUP($A42,masterlist!$C$2:$AA$207,2,FALSE),\"\")","v":"Réponse à l'apparition d'un foyer et autres activités de lutte contre la rage"},{"$f":"IFERROR(VLOOKUP($A42,masterlist!$C$2:$AA$207,3,FALSE),\"\")","v":5},{"$f":"IFERROR(VLOOKUP($A42,masterlist!$C$2:$AD$207,28,FALSE),\"\")","v":"Même si vous êtes débarrassé de la rage canine grâce à des campagnes de vaccination de masse réussies, maintenir la capacité d'intervention conjointe en cas d'épidémie."},{"$f":"IF($D42>6,\"\",IF(F$5<=(VLOOKUP($A42,masterlist!$C$2:$AC$207,27,FALSE)),1,\"\"))","v":1},{"$f":"IF($D42>6,\"\",IF(G$5<=(VLOOKUP($A42,masterlist!$C$2:$AC$207,27,FALSE)),1,\"\"))","v":1},{"$f":"IF($D42>6,\"\",IF(H$5<=(VLOOKUP($A42,masterlist!$C$2:$AC$207,27,FALSE)),1,\"\"))","v":1},{"$f":"IF($D42>6,\"\",IF(I$5<=(VLOOKUP($A42,masterlist!$C$2:$AC$207,27,FALSE)),1,\"\"))","v":1},{"$f":"IF($D42>6,\"\",IF(J$5<=(VLOOKUP($A42,masterlist!$C$2:$AC$207,27,FALSE)),1,\"\"))","v":1},{"$f":"IF($D42>6,\"\",IF(K$5<=(VLOOKUP($A42,masterlist!$C$2:$AC$207,27,FALSE)),1,\"\"))","v":1},{"$f":"IF($D42>6,\"\",IF(L$5<=(VLOOKUP($A42,masterlist!$C$2:$AC$207,27,FALSE)),1,\"\"))","v":1},{"$f":"IF($D42>6,\"\",IF(M$5<=(VLOOKUP($A42,masterlist!$C$2:$AC$207,27,FALSE)),1,\"\"))","v":1},{"$f":"IF($D42>6,\"\",IF(N$5<=(VLOOKUP($A42,masterlist!$C$2:$AC$207,27,FALSE)),1,\"\"))","v":1},{"$f":"IF($D42>6,\"\",IF(O$5<=(VLOOKUP($A42,masterlist!$C$2:$AC$207,27,FALSE)),1,\"\"))","v":1},{"$f":"IF($D42>6,\"\",IF(P$5<=(VLOOKUP($A42,masterlist!$C$2:$AC$207,27,FALSE)),1,\"\"))","v":1},{"$f":"IF($D42>6,\"\",IF(Q$5<=(VLOOKUP($A42,masterlist!$C$2:$AC$207,27,FALSE)),1,\"\"))","v":1},{"$f":"IF($D42>6,\"\",IF(R$5<=(VLOOKUP($A42,masterlist!$C$2:$AC$207,27,FALSE)),1,\"\"))","v":1},null,null,null,null,0,0,0,0,0,0,0,0,0,0,0,0,1]
[{"$f":"IFERROR(priorit!A48,\"\")","v":"LAB-Cap-4-13"},"LAB",{"$f":"IFERROR(VLOOKUP($A43,masterlist!$C$2:$AA$207,2,FALSE),\"\")","v":"Capacités des laboratoires et tests"},{"$f":"IFERROR(VLOOKUP($A43,masterlist!$C$2:$AA$207,3,FALSE),\"\")","v":4},{"$f":"IFERROR(VLOOKUP($A43,masterlist!$C$2:$AD$207,28,FALSE),\"\")","v":"Si des variantes terrestres de la rage sont présentes dans le pays, veiller à ce que des prélèvements d'animaux sauvages soient régulièrement soumis à un diagnostic de rage en laboratoire."},{"$f":"IF($D43>6,\"\",IF(F$5<=(VLOOKUP($A43,masterlist!$C$2:$AC$207,27,FALSE)),1,\"\"))","v":1},{"$f":"IF($D43>6,\"\",IF(G$5<=(VLOOKUP($A43,masterlist!$C$2:$AC$207,27,FALSE)),1,\"\"))","v":1},{"$f":"IF($D43>6,\"\",IF(H$5<=(VLOOKUP($A43,masterlist!$C$2:$AC$207,27,FALSE)),1,\"\"))","v":1},{"$f":"IF($D43>6,\"\",IF(I$5<=(VLOOKUP($A43,masterlist!$C$2:$AC$207,27,FALSE)),1,\"\"))","v":1},{"$f":"IF($D43>6,\"\",IF(J$5<=(VLOOKUP($A43,masterlist!$C$2:$AC$207,27,FALSE)),1,\"\"))","v":1},{"$f":"IF($D43>6,\"\",IF(K$5<=(VLOOKUP($A43,masterlist!$C$2:$AC$207,27,FALSE)),1,\"\"))","v":1},{"$f":"IF($D43>6,\"\",IF(L$5<=(VLOOKUP($A43,masterlist!$C$2:$AC$207,27,FALSE)),1,\"\"))","v":1},{"$f":"IF($D43>6,\"\",IF(M$5<=(VLOOKUP($A43,masterlist!$C$2:$AC$207,27,FALSE)),1,\"\"))","v":1},{"$f":"IF($D43>6,\"\",IF(N$5<=(VLOOKUP($A43,masterlist!$C$2:$AC$207,27,FALSE)),1,\"\"))","v":1},{"$f":"IF($D43>6,\"\",IF(O$5<=(VLOOKUP($A43,masterlist!$C$2:$AC$207,27,FALSE)),1,\"\"))","v":1},{"$f":"IF($D43>6,\"\",IF(P$5<=(VLOOKUP($A43,masterlist!$C$2:$AC$207,27,FALSE)),1,\"\"))","v":1},{"$f":"IF($D43>6,\"\",IF(Q$5<=(VLOOKUP($A43,masterlist!$C$2:$AC$207,27,FALSE)),1,\"\"))","v":1},{"$f":"IF($D43>6,\"\",IF(R$5<=(VLOOKUP($A43,masterlist!$C$2:$AC$207,27,FALSE)),1,\"\"))","v":1},null,null,null,null,0,0,0,0,0,0,0,0,0,0,0,0,1]
[{"$f":"IFERROR(priorit!A25,\"\")","v":"PCO-Rép-1-18"},"PCO",{"$f":"IFERROR(VLOOKUP($A44,masterlist!$C$2:$AA$207,2,FALSE),\"\")","v":"Réponse à l'apparition d'un foyer et autres activités de lutte contre la rage"},{"$f":"IFERROR(VLOOKUP($A44,masterlist!$C$2:$AA$207,3,FALSE),\"\")","v":1},{"$f":"IFERROR(VLOOKUP($A44,masterlist!$C$2:$AD$207,28,FALSE),\"\")","v":"Établir des protocoles pour les enquêtes conjointes sur les cas de rage."},{"$f":"IF($D44>6,\"\",IF(F$5<=(VLOOKUP($A44,masterlist!$C$2:$AC$207,27,FALSE)),1,\"\"))","v":1},{"$f":"IF($D44>6,\"\",IF(G$5<=(VLOOKUP($A44,masterlist!$C$2:$AC$207,27,FALSE)),1,\"\"))","v":1},{"$f":"IF($D44>6,\"\",IF(H$5<=(VLOOKUP($A44,masterlist!$C$2:$AC$207,27,FALSE)),1,\"\"))","v":1},{"$f":"IF($D44>6,\"\",IF(I$5<=(VLOOKUP($A44,masterlist!$C$2:$AC$207,27,FALSE)),1,\"\"))","v":1},{"$f":"IF($D44>6,\"\",IF(J$5<=(VLOOKUP($A44,masterlist!$C$2:$AC$207,27,FALSE)),1,\"\"))","v":1},{"$f":"IF($D44>6,\"\",IF(K$5<=(VLOOKUP($A44,masterlist!$C$2:$AC$207,27,FALSE)),1,\"\"))","v":1},{"$f":"IF($D44>6,\"\",IF(L$5<=(VLOOKUP($A44,masterlist!$C$2:$AC$207,27,FALSE)),1,\"\"))","v":1},{"$f":"IF($D44>6,\"\",IF(M$5<=(VLOOKUP($A44,masterlist!$C$2:$AC$207,27,FALSE)),1,\"\"))","v":1},{"$f":"IF($D44>6,\"\",IF(N$5<=(VLOOKUP($A44,masterlist!$C$2:$AC$207,27,FALSE)),1,\"\"))","v":1},{"$f":"IF($D44>6,\"\",IF(O$5<=(VLOOKUP($A44,masterlist!$C$2:$AC$207,27,FALSE)),1,\"\"))","v":1},{"$f":"IF($D44>6,\"\",IF(P$5<=(VLOOKUP($A44,masterlist!$C$2:$AC$207,27,FALSE)),1,\"\"))","v":1},{"$f":"IF($D44>6,\"\",IF(Q$5<=(VLOOKUP($A44,masterlist!$C$2:$AC$207,27,FALSE)),1,\"\"))","v":1},{"$f":"IF($D44>6,\"\",IF(R$5<=(VLOOKUP($A44,masterlist!$C$2:$AC$207,27,FALSE)),1,\"\"))","v":1},null,null,null,null,0,0,0,0,0,0,0,0,0,0,0,0,1]
[{"$f":"IFERROR(priorit!A26,\"\")","v":"PCO-Rép-1-19"},"PCO",{"$f":"IFERROR(VLOOKUP($A45,masterlist!$C$2:$AA$207,2,FALSE),\"\")","v":"Réponse à l'apparition d'un foyer et autres activités de lutte contre la rage"},{"$f":"IFERROR(VLOOKUP($A45,masterlist!$C$2:$AA$207,3,FALSE),\"\")","v":1},{"$f":"IFERROR(VLOOKUP($A45,masterlist!$C$2:$AD$207,28,FALSE),\"\")","v":"Mettre en œuvre les protocoles communs d'investigation des cas de rage dans au moins une région du pays."},{"$f":"IF($D45>6,\"\",IF(F$5<=(VLOOKUP($A45,masterlist!$C$2:$AC$207,27,FALSE)),1,\"\"))","v":1},{"$f":"IF($D45>6,\"\",IF(G$5<=(VLOOKUP($A45,masterlist!$C$2:$AC$207,27,FALSE)),1,\"\"))","v":1},{"$f":"IF($D45>6,\"\",IF(H$5<=(VLOOKUP($A45,masterlist!$C$2:$AC$207,27,FALSE)),1,\"\"))","v":1},{"$f":"IF($D45>6,\"\",IF(I$5<=(VLOOKUP($A45,masterlist!$C$2:$AC$207,27,FALSE)),1,\"\"))","v":1},{"$f":"IF($D45>6,\"\",IF(J$5<=(VLOOKUP($A45,masterlist!$C$2:$AC$207,27,FALSE)),1,\"\"))","v":1},{"$f":"IF($D45>6,\"\",IF(K$5<=(VLOOKUP($A45,masterlist!$C$2:$AC$207,27,FALSE)),1,\"\"))","v":1},{"$f":"IF($D45>6,\"\",IF(L$5<=(VLOOKUP($A45,masterlist!$C$2:$AC$207,27,FALSE)),1,\"\"))","v":1},{"$f":"IF($D45>6,\"\",IF(M$5<=(VLOOKUP($A45,masterlist!$C$2:$AC$207,27,FALSE)),1,\"\"))","v":1},{"$f":"IF($D45>6,\"\",IF(N$5<=(VLOOKUP($A45,masterlist!$C$2:$AC$207,27,FALSE)),1,\"\"))","v":1},{"$f":"IF($D45>6,\"\",IF(O$5<=(VLOOKUP($A45,masterlist!$C$2:$AC$207,27,FALSE)),1,\"\"))","v":1},{"$f":"IF($D45>6,\"\",IF(P$5<=(VLOOKUP($A45,masterlist!$C$2:$AC$207,27,FALSE)),1,\"\"))","v":1},{"$f":"IF($D45>6,\"\",IF(Q$5<=(VLOOKUP($A45,masterlist!$C$2:$AC$207,27,FALSE)),1,\"\"))","v":1},{"$f":"IF($D45>6,\"\",IF(R$5<=(VLOOKUP($A45,masterlist!$C$2:$AC$207,27,FALSE)),1,\"\"))","v":1},null,null,null,null,0,0,0,0,0,0,0,0,0,0,0,0,1]
[{"$f":"IFERROR(priorit!A40,\"\")","v":"LAB-Cap-2-5"},"LAB",{"$f":"IFERROR(VLOOKUP($A46,masterlist!$C$2:$AA$207,2,FALSE),\"\")","v":"Capacités des laboratoires et tests"},{"$f":"IFERROR(VLOOKUP($A46,masterlist!$C$2:$AA$207,3,FALSE),\"\")","v":2},{"$f":"IFERROR(VLOOKUP($A46,masterlist!$C$2:$AD$207,28,FALSE),\"\")","v":"Effectuer des essais de compétence avec un laboratoire reconnu à l'échelle internationale."},{"$f":"IF($D46>6,\"\",IF(F$5<=(VLOOKUP($A46,masterlist!$C$2:$AC$207,27,FALSE)),1,\"\"))","v":1},{"$f":"IF($D46>6,\"\",IF(G$5<=(VLOOKUP($A46,masterlist!$C$2:$AC$207,27,FALSE)),1,\"\"))","v":1},{"$f":"IF($D46>6,\"\",IF(H$5<=(VLOOKUP($A46,masterlist!$C$2:$AC$207,27,FALSE)),1,\"\"))","v":1},{"$f":"IF($D46>6,\"\",IF(I$5<=(VLOOKUP($A46,masterlist!$C$2:$AC$207,27,FALSE)),1,\"\"))","v":1},{"$f":"IF($D46>6,\"\",IF(J$5<=(VLOOKUP($A46,masterlist!$C$2:$AC$207,27,FALSE)),1,\"\"))","v":1},{"$f":"IF($D46>6,\"\",IF(K$5<=(VLOOKUP($A46,masterlist!$C$2:$AC$207,27,FALSE)),1,\"\"))","v":1},{"$f":"IF($D46>6,\"\",IF(L$5<=(VLOOKUP($A46,masterlist!$C$2:$AC$207,27,FALSE)),1,\"\"))","v":1},{"$f":"IF($D46>6,\"\",IF(M$5<=(VLOOKUP($A46,masterlist!$C$2:$AC$207,27,FALSE)),1,\"\"))","v":1},{"$f":"IF($D46>6,\"\",IF(N$5<=(VLOOKUP($A46,masterlist!$C$2:$AC$207,27,FALSE)),1,\"\"))","v":1},{"$f":"IF($D46>6,\"\",IF(O$5<=(VLOOKUP($A46,masterlist!$C$2:$AC$207,27,FALSE)),1,\"\"))","v":1},{"$f":"IF($D46>6,\"\",IF(P$5<=(VLOOKUP($A46,masterlist!$C$2:$AC$207,27,FALSE)),1,\"\"))","v":1},{"$f":"IF($D46>6,\"\",IF(Q$5<=(VLOOKUP($A46,masterlist!$C$2:$AC$207,27,FALSE)),1,\"\"))","v":1},{"$f":"IF($D46>6,\"\",IF(R$5<=(VLOOKUP($A46,masterlist!$C$2:$AC$207,27,FALSE)),1,\"\"))","v":1},null,null,null,null,0,0,0,0,0,0,0,0,0,0,0,0,1]
[{"$f":"IFERROR(priorit!A27,\"\")","v":"PCO-Rép-2-20"},"PCO",{"$f":"IFERROR(VLOOKUP($A47,masterlist!$C$2:$AA$207,2,FALSE),\"\")","v":"Réponse à l'apparition d'un foyer et autres activités de lutte contre la rage"},{"$f":"IFERROR(VLOOKUP($A47,masterlist!$C$2:$AA$207,3,FALSE),\"\")","v":2},{"$f":"IFERROR(VLOOKUP($A47,masterlist!$C$2:$AD$207,28,FALSE),\"\")","v":"Finaliser les protocoles d'enquête conjointe sur les cas de rage - y compris le partage d'informations entre les secteurs - au niveau national."},{"$f":"IF($D47>6,\"\",IF(F$5<=(VLOOKUP($A47,masterlist!$C$2:$AC$207,27,FALSE)),1,\"\"))","v":1},{"$f":"IF($D47>6,\"\",IF(G$5<=(VLOOKUP($A47,masterlist!$C$2:$AC$207,27,FALSE)),1,\"\"))","v":1},{"$f":"IF($D47>6,\"\",IF(H$5<=(VLOOKUP($A47,masterlist!$C$2:$AC$207,27,FALSE)),1,\"\"))","v":1},{"$f":"IF($D47>6,\"\",IF(I$5<=(VLOOKUP($A47,masterlist!$C$2:$AC$207,27,FALSE)),1,\"\"))","v":1},{"$f":"IF($D47>6,\"\",IF(J$5<=(VLOOKUP($A47,masterlist!$C$2:$AC$207,27,FALSE)),1,\"\"))","v":1},{"$f":"IF($D47>6,\"\",IF(K$5<=(VLOOKUP($A47,masterlist!$C$2:$AC$207,27,FALSE)),1,\"\"))","v":1},{"$f":"IF($D47>6,\"\",IF(L$5<=(VLOOKUP($A47,masterlist!$C$2:$AC$207,27,FALSE)),1,\"\"))","v":1},{"$f":"IF($D47>6,\"\",IF(M$5<=(VLOOKUP($A47,masterlist!$C$2:$AC$207,27,FALSE)),1,\"\"))","v":1},{"$f":"IF($D47>6,\"\",IF(N$5<=(VLOOKUP($A47,masterlist!$C$2:$AC$207,27,FALSE)),1,\"\"))","v":1},{"$f":"IF($D47>6,\"\",IF(O$5<=(VLOOKUP($A47,masterlist!$C$2:$AC$207,27,FALSE)),1,\"\"))","v":1},{"$f":"IF($D47>6,\"\",IF(P$5<=(VLOOKUP($A47,masterlist!$C$2:$AC$207,27,FALSE)),1,\"\"))","v":1},{"$f":"IF($D47>6,\"\",IF(Q$5<=(VLOOKUP($A47,masterlist!$C$2:$AC$207,27,FALSE)),1,\"\"))","v":1},{"$f":"IF($D47>6,\"\",IF(R$5<=(VLOOKUP($A47,masterlist!$C$2:$AC$207,27,FALSE)),1,\"\"))","v":1},null,null,null,null,0,0,0,0,0,0,0,0,0,0,0,0,1]
[{"$f":"IFERROR(priorit!A34,\"\")","v":"PCO-Rép-3-27"},"PCO",{"$f":"IFERROR(VLOOKUP($A48,masterlist!$C$2:$AA$207,2,FALSE),\"\")","v":"Réponse à l'apparition d'un foyer et autres activités de lutte contre la rage"},{"$f":"IFERROR(VLOOKUP($A48,masterlist!$C$2:$AA$207,3,FALSE),\"\")","v":3},{"$f":"IFERROR(VLOOKUP($A48,masterlist!$C$2:$AD$207,28,FALSE),\"\")","v":"Mettre en place les capacités nécessaires pour mener des enquêtes conjointes sur le terrain et des réponses planifiées aux foyers de rage animale dans l'ensemble du pays."},{"$f":"IF($D48>6,\"\",IF(F$5<=(VLOOKUP($A48,masterlist!$C$2:$AC$207,27,FALSE)),1,\"\"))","v":1},{"$f":"IF($D48>6,\"\",IF(G$5<=(VLOOKUP($A48,masterlist!$C$2:$AC$207,27,FALSE)),1,\"\"))","v":1},{"$f":"IF($D48>6,\"\",IF(H$5<=(VLOOKUP($A48,masterlist!$C$2:$AC$207,27,FALSE)),1,\"\"))","v":1},{"$f":"IF($D48>6,\"\",IF(I$5<=(VLOOKUP($A48,masterlist!$C$2:$AC$207,27,FALSE)),1,\"\"))","v":1},{"$f":"IF($D48>6,\"\",IF(J$5<=(VLOOKUP($A48,masterlist!$C$2:$AC$207,27,FALSE)),1,\"\"))","v":1},{"$f":"IF($D48>6,\"\",IF(K$5<=(VLOOKUP($A48,masterlist!$C$2:$AC$207,27,FALSE)),1,\"\"))","v":1},{"$f":"IF($D48>6,\"\",IF(L$5<=(VLOOKUP($A48,masterlist!$C$2:$AC$207,27,FALSE)),1,\"\"))","v":1},{"$f":"IF($D48>6,\"\",IF(M$5<=(VLOOKUP($A48,masterlist!$C$2:$AC$207,27,FALSE)),1,\"\"))","v":1},{"$f":"IF($D48>6,\"\",IF(N$5<=(VLOOKUP($A48,masterlist!$C$2:$AC$207,27,FALSE)),1,\"\"))","v":1},{"$f":"IF($D48>6,\"\",IF(O$5<=(VLOOKUP($A48,masterlist!$C$2:$AC$207,27,FALSE)),1,\"\"))","v":1},{"$f":"IF($D48>6,\"\",IF(P$5<=(VLOOKUP($A48,masterlist!$C$2:$AC$207,27,FALSE)),1,\"\"))","v":1},{"$f":"IF($D48>6,\"\",IF(Q$5<=(VLOOKUP($A48,masterlist!$C$2:$AC$207,27,FALSE)),1,\"\"))","v":1},{"$f":"IF($D48>6,\"\",IF(R$5<=(VLOOKUP($A48,masterlist!$C$2:$AC$207,27,FALSE)),1,\"\"))","v":1},null,null,null,null,0,0,0,0,0,0,0,0,0,0,0,0,1]
[{"$f":"IFERROR(priorit!A41,\"\")","v":"LAB-Cap-2-6"},"LAB",{"$f":"IFERROR(VLOOKUP($A49,masterlist!$C$2:$AA$207,2,FALSE),\"\")","v":"Capacités des laboratoires et tests"},{"$f":"IFERROR(VLOOKUP($A49,masterlist!$C$2:$AA$207,3,FALSE),\"\")","v":2},{"$f":"IFERROR(VLOOKUP($A49,masterlist!$C$2:$AD$207,28,FALSE),\"\")","v":"Mettre en place un système régulier de collecte et de transport de prélèvements dans tout le pays."},{"$f":"IF($D49>6,\"\",IF(F$5<=(VLOOKUP($A49,masterlist!$C$2:$AC$207,27,FALSE)),1,\"\"))","v":1},{"$f":"IF($D49>6,\"\",IF(G$5<=(VLOOKUP($A49,masterlist!$C$2:$AC$207,27,FALSE)),1,\"\"))","v":1},{"$f":"IF($D49>6,\"\",IF(H$5<=(VLOOKUP($A49,masterlist!$C$2:$AC$207,27,FALSE)),1,\"\"))","v":1},{"$f":"IF($D49>6,\"\",IF(I$5<=(VLOOKUP($A49,masterlist!$C$2:$AC$207,27,FALSE)),1,\"\"))","v":1},{"$f":"IF($D49>6,\"\",IF(J$5<=(VLOOKUP($A49,masterlist!$C$2:$AC$207,27,FALSE)),1,\"\"))","v":1},{"$f":"IF($D49>6,\"\",IF(K$5<=(VLOOKUP($A49,masterlist!$C$2:$AC$207,27,FALSE)),1,\"\"))","v":1},{"$f":"IF($D49>6,\"\",IF(L$5<=(VLOOKUP($A49,masterlist!$C$2:$AC$207,27,FALSE)),1,\"\"))","v":1},{"$f":"IF($D49>6,\"\",IF(M$5<=(VLOOKUP($A49,masterlist!$C$2:$AC$207,27,FALSE)),1,\"\"))","v":1},{"$f":"IF($D49>6,\"\",IF(N$5<=(VLOOKUP($A49,masterlist!$C$2:$AC$207,27,FALSE)),1,\"\"))","v":1},{"$f":"IF($D49>6,\"\",IF(O$5<=(VLOOKUP($A49,masterlist!$C$2:$AC$207,27,FALSE)),1,\"\"))","v":1},{"$f":"IF($D49>6,\"\",IF(P$5<=(VLOOKUP($A49,masterlist!$C$2:$AC$207,27,FALSE)),1,\"\"))","v":1},{"$f":"IF($D49>6,\"\",IF(Q$5<=(VLOOKUP($A49,masterlist!$C$2:$AC$207,27,FALSE)),1,\"\"))","v":1},{"$f":"IF($D49>6,\"\",IF(R$5<=(VLOOKUP($A49,masterlist!$C$2:$AC$207,27,FALSE)),1,\"\"))","v":1},null,null,null,null,0,0,0,0,0,0,0,0,0,0,0,0,1]
[{"$f":"IFERROR(priorit!A49,\"\")","v":"LAB-Cap-5-14"},{"$f":"IFERROR(LEFT(A50,3),\"\")","v":"LAB"},{"$f":"IFERROR(VLOOKUP($A50,masterlist!$C$2:$AA$207,2,FALSE),\"\")","v":"Capacités des laboratoires et tests"},{"$f":"IFERROR(VLOOKUP($A50,masterlist!$C$2:$AA$207,3,FALSE),\"\")","v":5},{"$f":"IFERROR(VLOOKUP($A50,masterlist!$C$2:$AD$207,28,FALSE),\"\")","v":"Même si le pays est exempt de rage canine grâce à des campagnes de vaccination de masse réussies, il convient de veiller à ce que tous les cas suspects chez les espèces domestiques et celles de la faune sauvage terrestre fassent l'objet d'enquêtes de laboratoire permanentes dans le pays."},{"$f":"IF($D50>6,\"\",IF(F$5<=(VLOOKUP($A50,masterlist!$C$2:$AC$207,27,FALSE)),1,\"\"))","v":1},{"$f":"IF($D50>6,\"\",IF(G$5<=(VLOOKUP($A50,masterlist!$C$2:$AC$207,27,FALSE)),1,\"\"))","v":1},{"$f":"IF($D50>6,\"\",IF(H$5<=(VLOOKUP($A50,masterlist!$C$2:$AC$207,27,FALSE)),1,\"\"))","v":1},{"$f":"IF($D50>6,\"\",IF(I$5<=(VLOOKUP($A50,masterlist!$C$2:$AC$207,27,FALSE)),1,\"\"))","v":1},{"$f":"IF($D50>6,\"\",IF(J$5<=(VLOOKUP($A50,masterlist!$C$2:$AC$207,27,FALSE)),1,\"\"))","v":1},{"$f":"IF($D50>6,\"\",IF(K$5<=(VLOOKUP($A50,masterlist!$C$2:$AC$207,27,FALSE)),1,\"\"))","v":1},{"$f":"IF($D50>6,\"\",IF(L$5<=(VLOOKUP($A50,masterlist!$C$2:$AC$207,27,FALSE)),1,\"\"))","v":1},{"$f":"IF($D50>6,\"\",IF(M$5<=(VLOOKUP($A50,masterlist!$C$2:$AC$207,27,FALSE)),1,\"\"))","v":1},{"$f":"IF($D50>6,\"\",IF(N$5<=(VLOOKUP($A50,masterlist!$C$2:$AC$207,27,FALSE)),1,\"\"))","v":1},{"$f":"IF($D50>6,\"\",IF(O$5<=(VLOOKUP($A50,masterlist!$C$2:$AC$207,27,FALSE)),1,\"\"))","v":1},{"$f":"IF($D50>6,\"\",IF(P$5<=(VLOOKUP($A50,masterlist!$C$2:$AC$207,27,FALSE)),1,\"\"))","v":1},{"$f":"IF($D50>6,\"\",IF(Q$5<=(VLOOKUP($A50,masterlist!$C$2:$AC$207,27,FALSE)),1,\"\"))","v":1},{"$f":"IF($D50>6,\"\",IF(R$5<=(VLOOKUP($A50,masterlist!$C$2:$AC$207,27,FALSE)),1,\"\"))","v":1},null,null,null,null,0,0,0,0,0,0,0,0,0,0,0,0,1]
[{"$f":"IFERROR(priorit!A50,\"\")","v":"DPM--0-1"},"DPM",{"$f":"IFERROR(VLOOKUP($A51,masterlist!$C$2:$AA$207,2,FALSE),\"\")","v":0},{"$f":"IFERROR(VLOOKUP($A51,masterlist!$C$2:$AA$207,3,FALSE),\"\")","v":0},{"$f":"IFERROR(VLOOKUP($A51,masterlist!$C$2:$AD$207,28,FALSE),\"\")","v":"Faire en sorte qu'une des parties prenantes entreprenne des activités de gestion compassionnelle de la population canine dans au moins une région du pays."},{"$f":"IF($D51>6,\"\",IF(F$5<=(VLOOKUP($A51,masterlist!$C$2:$AC$207,27,FALSE)),1,\"\"))","v":1},{"$f":"IF($D51>6,\"\",IF(G$5<=(VLOOKUP($A51,masterlist!$C$2:$AC$207,27,FALSE)),1,\"\"))","v":""},{"$f":"IF($D51>6,\"\",IF(H$5<=(VLOOKUP($A51,masterlist!$C$2:$AC$207,27,FALSE)),1,\"\"))","v":""},{"$f":"IF($D51>6,\"\",IF(I$5<=(VLOOKUP($A51,masterlist!$C$2:$AC$207,27,FALSE)),1,\"\"))","v":""},{"$f":"IF($D51>6,\"\",IF(J$5<=(VLOOKUP($A51,masterlist!$C$2:$AC$207,27,FALSE)),1,\"\"))","v":""},{"$f":"IF($D51>6,\"\",IF(K$5<=(VLOOKUP($A51,masterlist!$C$2:$AC$207,27,FALSE)),1,\"\"))","v":""},{"$f":"IF($D51>6,\"\",IF(L$5<=(VLOOKUP($A51,masterlist!$C$2:$AC$207,27,FALSE)),1,\"\"))","v":""},{"$f":"IF($D51>6,\"\",IF(M$5<=(VLOOKUP($A51,masterlist!$C$2:$AC$207,27,FALSE)),1,\"\"))","v":""},{"$f":"IF($D51>6,\"\",IF(N$5<=(VLOOKUP($A51,masterlist!$C$2:$AC$207,27,FALSE)),1,\"\"))","v":""},{"$f":"IF($D51>6,\"\",IF(O$5<=(VLOOKUP($A51,masterlist!$C$2:$AC$207,27,FALSE)),1,\"\"))","v":""},{"$f":"IF($D51>6,\"\",IF(P$5<=(VLOOKUP($A51,masterlist!$C$2:$AC$207,27,FALSE)),1,\"\"))","v":""},{"$f":"IF($D51>6,\"\",IF(Q$5<=(VLOOKUP($A51,masterlist!$C$2:$AC$207,27,FALSE)),1,\"\"))","v":""},{"$f":"IF($D51>6,\"\",IF(R$5<=(VLOOKUP($A51,masterlist!$C$2:$AC$207,27,FALSE)),1,\"\"))","v":""},null,null,null,null,1,0,0,0,0,0,0,0,0,0,0,0,0]
[{"$f":"IFERROR(priorit!A51,\"\")","v":"DPM--1-2"},"DPM",{"$f":"IFERROR(VLOOKUP($A52,masterlist!$C$2:$AA$207,2,FALSE),\"\")","v":0},{"$f":"IFERROR(VLOOKUP($A52,masterlist!$C$2:$AA$207,3,FALSE),\"\")","v":1},{"$f":"IFERROR(VLOOKUP($A52,masterlist!$C$2:$AD$207,28,FALSE),\"\")","v":"Travailler activement à mettre fin à l'abattage indiscriminé des chiens dans le cadre de la gestion des populations canines ou de la lutte contre la rage."},{"$f":"IF($D52>6,\"\",IF(F$5<=(VLOOKUP($A52,masterlist!$C$2:$AC$207,27,FALSE)),1,\"\"))","v":1},{"$f":"IF($D52>6,\"\",IF(G$5<=(VLOOKUP($A52,masterlist!$C$2:$AC$207,27,FALSE)),1,\"\"))","v":""},{"$f":"IF($D52>6,\"\",IF(H$5<=(VLOOKUP($A52,masterlist!$C$2:$AC$207,27,FALSE)),1,\"\"))","v":""},{"$f":"IF($D52>6,\"\",IF(I$5<=(VLOOKUP($A52,masterlist!$C$2:$AC$207,27,FALSE)),1,\"\"))","v":""},{"$f":"IF($D52>6,\"\",IF(J$5<=(VLOOKUP($A52,masterlist!$C$2:$AC$207,27,FALSE)),1,\"\"))","v":""},{"$f":"IF($D52>6,\"\",IF(K$5<=(VLOOKUP($A52,masterlist!$C$2:$AC$207,27,FALSE)),1,\"\"))","v":""},{"$f":"IF($D52>6,\"\",IF(L$5<=(VLOOKUP($A52,masterlist!$C$2:$AC$207,27,FALSE)),1,\"\"))","v":""},{"$f":"IF($D52>6,\"\",IF(M$5<=(VLOOKUP($A52,masterlist!$C$2:$AC$207,27,FALSE)),1,\"\"))","v":""},{"$f":"IF($D52>6,\"\",IF(N$5<=(VLOOKUP($A52,masterlist!$C$2:$AC$207,27,FALSE)),1,\"\"))","v":""},{"$f":"IF($D52>6,\"\",IF(O$5<=(VLOOKUP($A52,masterlist!$C$2:$AC$207,27,FALSE)),1,\"\"))","v":""},{"$f":"IF($D52>6,\"\",IF(P$5<=(VLOOKUP($A52,masterlist!$C$2:$AC$207,27,FALSE)),1,\"\"))","v":""},{"$f":"IF($D52>6,\"\",IF(Q$5<=(VLOOKUP($A52,masterlist!$C$2:$AC$207,27,FALSE)),1,\"\"))","v":""},{"$f":"IF($D52>6,\"\",IF(R$5<=(VLOOKUP($A52,masterlist!$C$2:$AC$207,27,FALSE)),1,\"\"))","v":""},null,null,null,null,1,0,0,0,0,0,0,0,0,0,0,0,0]
[{"$f":"IFERROR(priorit!A52,\"\")","v":"DPM- -1-4"},"DPM",{"$f":"IFERROR(VLOOKUP($A53,masterlist!$C$2:$AA$207,2,FALSE),\"\")","v":" "},{"$f":"IFERROR(VLOOKUP($A53,masterlist!$C$2:$AA$207,3,FALSE),\"\")","v":1},{"$f":"IFERROR(VLOOKUP($A53,masterlist!$C$2:$AD$207,28,FALSE),\"\")","v":"Impliquer les acteurs municipaux dans les discussions concernant la gestion compassionnelle de la population canine."},{"$f":"IF($D53>6,\"\",IF(F$5<=(VLOOKUP($A53,masterlist!$C$2:$AC$207,27,FALSE)),1,\"\"))","v":1},{"$f":"IF($D53>6,\"\",IF(G$5<=(VLOOKUP($A53,masterlist!$C$2:$AC$207,27,FALSE)),1,\"\"))","v":""},{"$f":"IF($D53>6,\"\",IF(H$5<=(VLOOKUP($A53,masterlist!$C$2:$AC$207,27,FALSE)),1,\"\"))","v":""},{"$f":"IF($D53>6,\"\",IF(I$5<=(VLOOKUP($A53,masterlist!$C$2:$AC$207,27,FALSE)),1,\"\"))","v":""},{"$f":"IF($D53>6,\"\",IF(J$5<=(VLOOKUP($A53,masterlist!$C$2:$AC$207,27,FALSE)),1,\"\"))","v":""},{"$f":"IF($D53>6,\"\",IF(K$5<=(VLOOKUP($A53,masterlist!$C$2:$AC$207,27,FALSE)),1,\"\"))","v":""},{"$f":"IF($D53>6,\"\",IF(L$5<=(VLOOKUP($A53,masterlist!$C$2:$AC$207,27,FALSE)),1,\"\"))","v":""},{"$f":"IF($D53>6,\"\",IF(M$5<=(VLOOKUP($A53,masterlist!$C$2:$AC$207,27,FALSE)),1,\"\"))","v":""},{"$f":"IF($D53>6,\"\",IF(N$5<=(VLOOKUP($A53,masterlist!$C$2:$AC$207,27,FALSE)),1,\"\"))","v":""},{"$f":"IF($D53>6,\"\",IF(O$5<=(VLOOKUP($A53,masterlist!$C$2:$AC$207,27,FALSE)),1,\"\"))","v":""},{"$f":"IF($D53>6,\"\",IF(P$5<=(VLOOKUP($A53,masterlist!$C$2:$AC$207,27,FALSE)),1,\"\"))","v":""},{"$f":"IF($D53>6,\"\",IF(Q$5<=(VLOOKUP($A53,masterlist!$C$2:$AC$207,27,FALSE)),1,\"\"))","v":""},{"$f":"IF($D53>6,\"\",IF(R$5<=(VLOOKUP($A53,masterlist!$C$2:$AC$207,27,FALSE)),1,\"\"))","v":""},null,null,null,null,1,0,0,0,0,0,0,0,0,0,0,0,0]
[{"$f":"IFERROR(priorit!A53,\"\")","v":"DPM- -1-5"},"DPM",{"$f":"IFERROR(VLOOKUP($A54,masterlist!$C$2:$AA$207,2,FALSE),\"\")","v":" "},{"$f":"IFERROR(VLOOKUP($A54,masterlist!$C$2:$AA$207,3,FALSE),\"\")","v":1},{"$f":"IFERROR(VLOOKUP($A54,masterlist!$C$2:$AD$207,28,FALSE),\"\")","v":"Déterminer un nombre de référence de chiens dans une zone (par exemple, un projet pilote)."},{"$f":"IF($D54>6,\"\",IF(F$5<=(VLOOKUP($A54,masterlist!$C$2:$AC$207,27,FALSE)),1,\"\"))","v":1},{"$f":"IF($D54>6,\"\",IF(G$5<=(VLOOKUP($A54,masterlist!$C$2:$AC$207,27,FALSE)),1,\"\"))","v":""},{"$f":"IF($D54>6,\"\",IF(H$5<=(VLOOKUP($A54,masterlist!$C$2:$AC$207,27,FALSE)),1,\"\"))","v":""},{"$f":"IF($D54>6,\"\",IF(I$5<=(VLOOKUP($A54,masterlist!$C$2:$AC$207,27,FALSE)),1,\"\"))","v":""},{"$f":"IF($D54>6,\"\",IF(J$5<=(VLOOKUP($A54,masterlist!$C$2:$AC$207,27,FALSE)),1,\"\"))","v":""},{"$f":"IF($D54>6,\"\",IF(K$5<=(VLOOKUP($A54,masterlist!$C$2:$AC$207,27,FALSE)),1,\"\"))","v":""},{"$f":"IF($D54>6,\"\",IF(L$5<=(VLOOKUP($A54,masterlist!$C$2:$AC$207,27,FALSE)),1,\"\"))","v":""},{"$f":"IF($D54>6,\"\",IF(M$5<=(VLOOKUP($A54,masterlist!$C$2:$AC$207,27,FALSE)),1,\"\"))","v":""},{"$f":"IF($D54>6,\"\",IF(N$5<=(VLOOKUP($A54,masterlist!$C$2:$AC$207,27,FALSE)),1,\"\"))","v":""},{"$f":"IF($D54>6,\"\",IF(O$5<=(VLOOKUP($A54,masterlist!$C$2:$AC$207,27,FALSE)),1,\"\"))","v":""},{"$f":"IF($D54>6,\"\",IF(P$5<=(VLOOKUP($A54,masterlist!$C$2:$AC$207,27,FALSE)),1,\"\"))","v":""},{"$f":"IF($D54>6,\"\",IF(Q$5<=(VLOOKUP($A54,masterlist!$C$2:$AC$207,27,FALSE)),1,\"\"))","v":""},{"$f":"IF($D54>6,\"\",IF(R$5<=(VLOOKUP($A54,masterlist!$C$2:$AC$207,27,FALSE)),1,\"\"))","v":""},null,null,null,null,1,0,0,0,0,0,0,0,0,0,0,0,0]
[{"$f":"IFERROR(priorit!A54,\"\")","v":"DPM- -2-6"},"DPM",{"$f":"IFERROR(VLOOKUP($A55,masterlist!$C$2:$AA$207,2,FALSE),\"\")","v":" "},{"$f":"IFERROR(VLOOKUP($A55,masterlist!$C$2:$AA$207,3,FALSE),\"\")","v":2},{"$f":"IFERROR(VLOOKUP($A55,masterlist!$C$2:$AD$207,28,FALSE),\"\")","v":"Rédiger et partager une stratégie de GCPC avec toutes les parties prenantes concernées pour une zone donnée (par exemple, un projet pilote)."},{"$f":"IF($D55>6,\"\",IF(F$5<=(VLOOKUP($A55,masterlist!$C$2:$AC$207,27,FALSE)),1,\"\"))","v":1},{"$f":"IF($D55>6,\"\",IF(G$5<=(VLOOKUP($A55,masterlist!$C$2:$AC$207,27,FALSE)),1,\"\"))","v":1},{"$f":"IF($D55>6,\"\",IF(H$5<=(VLOOKUP($A55,masterlist!$C$2:$AC$207,27,FALSE)),1,\"\"))","v":1},{"$f":"IF($D55>6,\"\",IF(I$5<=(VLOOKUP($A55,masterlist!$C$2:$AC$207,27,FALSE)),1,\"\"))","v":1},{"$f":"IF($D55>6,\"\",IF(J$5<=(VLOOKUP($A55,masterlist!$C$2:$AC$207,27,FALSE)),1,\"\"))","v":""},{"$f":"IF($D55>6,\"\",IF(K$5<=(VLOOKUP($A55,masterlist!$C$2:$AC$207,27,FALSE)),1,\"\"))","v":""},{"$f":"IF($D55>6,\"\",IF(L$5<=(VLOOKUP($A55,masterlist!$C$2:$AC$207,27,FALSE)),1,\"\"))","v":""},{"$f":"IF($D55>6,\"\",IF(M$5<=(VLOOKUP($A55,masterlist!$C$2:$AC$207,27,FALSE)),1,\"\"))","v":""},{"$f":"IF($D55>6,\"\",IF(N$5<=(VLOOKUP($A55,masterlist!$C$2:$AC$207,27,FALSE)),1,\"\"))","v":""},{"$f":"IF($D55>6,\"\",IF(O$5<=(VLOOKUP($A55,masterlist!$C$2:$AC$207,27,FALSE)),1,\"\"))","v":""},{"$f":"IF($D55>6,\"\",IF(P$5<=(VLOOKUP($A55,masterlist!$C$2:$AC$207,27,FALSE)),1,\"\"))","v":""},{"$f":"IF($D55>6,\"\",IF(Q$5<=(VLOOKUP($A55,masterlist!$C$2:$AC$207,27,FALSE)),1,\"\"))","v":""},{"$f":"IF($D55>6,\"\",IF(R$5<=(VLOOKUP($A55,masterlist!$C$2:$AC$207,27,FALSE)),1,\"\"))","v":""},null,null,null,null,0,0,0,1,0,0,0,0,0,0,0,0,0]
[{"$f":"IFERROR(priorit!A55,\"\")","v":"DPM- -2-7"},"DPM",{"$f":"IFERROR(VLOOKUP($A56,masterlist!$C$2:$AA$207,2,FALSE),\"\")","v":" "},{"$f":"IFERROR(VLOOKUP($A56,masterlist!$C$2:$AA$207,3,FALSE),\"\")","v":2},{"$f":"IFERROR(VLOOKUP($A56,masterlist!$C$2:$AD$207,28,FALSE),\"\")","v":"Finaliser et mettre en œuvre la stratégie de gestion compassionnelle des populations canines dans une zone (par exemple, un projet pilote)."},{"$f":"IF($D56>6,\"\",IF(F$5<=(VLOOKUP($A56,masterlist!$C$2:$AC$207,27,FALSE)),1,\"\"))","v":1},{"$f":"IF($D56>6,\"\",IF(G$5<=(VLOOKUP($A56,masterlist!$C$2:$AC$207,27,FALSE)),1,\"\"))","v":1},{"$f":"IF($D56>6,\"\",IF(H$5<=(VLOOKUP($A56,masterlist!$C$2:$AC$207,27,FALSE)),1,\"\"))","v":1},{"$f":"IF($D56>6,\"\",IF(I$5<=(VLOOKUP($A56,masterlist!$C$2:$AC$207,27,FALSE)),1,\"\"))","v":1},{"$f":"IF($D56>6,\"\",IF(J$5<=(VLOOKUP($A56,masterlist!$C$2:$AC$207,27,FALSE)),1,\"\"))","v":1},{"$f":"IF($D56>6,\"\",IF(K$5<=(VLOOKUP($A56,masterlist!$C$2:$AC$207,27,FALSE)),1,\"\"))","v":1},{"$f":"IF($D56>6,\"\",IF(L$5<=(VLOOKUP($A56,masterlist!$C$2:$AC$207,27,FALSE)),1,\"\"))","v":""},{"$f":"IF($D56>6,\"\",IF(M$5<=(VLOOKUP($A56,masterlist!$C$2:$AC$207,27,FALSE)),1,\"\"))","v":""},{"$f":"IF($D56>6,\"\",IF(N$5<=(VLOOKUP($A56,masterlist!$C$2:$AC$207,27,FALSE)),1,\"\"))","v":""},{"$f":"IF($D56>6,\"\",IF(O$5<=(VLOOKUP($A56,masterlist!$C$2:$AC$207,27,FALSE)),1,\"\"))","v":""},{"$f":"IF($D56>6,\"\",IF(P$5<=(VLOOKUP($A56,masterlist!$C$2:$AC$207,27,FALSE)),1,\"\"))","v":""},{"$f":"IF($D56>6,\"\",IF(Q$5<=(VLOOKUP($A56,masterlist!$C$2:$AC$207,27,FALSE)),1,\"\"))","v":""},{"$f":"IF($D56>6,\"\",IF(R$5<=(VLOOKUP($A56,masterlist!$C$2:$AC$207,27,FALSE)),1,\"\"))","v":""},null,null,null,null,0,0,0,0,0,1,0,0,0,0,0,0,0]
[{"$f":"IFERROR(priorit!A56,\"\")","v":"DPM- -2-8"},"DPM",{"$f":"IFERROR(VLOOKUP($A57,masterlist!$C$2:$AA$207,2,FALSE),\"\")","v":" "},{"$f":"IFERROR(VLOOKUP($A57,masterlist!$C$2:$AA$207,3,FALSE),\"\")","v":2},{"$f":"IFERROR(VLOOKUP($A57,masterlist!$C$2:$AD$207,28,FALSE),\"\")","v":"Former ou éduquer les professionnels à la gestion compassionnelle des populations canines dans une région (par exemple, un projet pilote)."},{"$f":"IF($D57>6,\"\",IF(F$5<=(VLOOKUP($A57,masterlist!$C$2:$AC$207,27,FALSE)),1,\"\"))","v":1},{"$f":"IF($D57>6,\"\",IF(G$5<=(VLOOKUP($A57,masterlist!$C$2:$AC$207,27,FALSE)),1,\"\"))","v":1},{"$f":"IF($D57>6,\"\",IF(H$5<=(VLOOKUP($A57,masterlist!$C$2:$AC$207,27,FALSE)),1,\"\"))","v":1},{"$f":"IF($D57>6,\"\",IF(I$5<=(VLOOKUP($A57,masterlist!$C$2:$AC$207,27,FALSE)),1,\"\"))","v":1},{"$f":"IF($D57>6,\"\",IF(J$5<=(VLOOKUP($A57,masterlist!$C$2:$AC$207,27,FALSE)),1,\"\"))","v":1},{"$f":"IF($D57>6,\"\",IF(K$5<=(VLOOKUP($A57,masterlist!$C$2:$AC$207,27,FALSE)),1,\"\"))","v":1},{"$f":"IF($D57>6,\"\",IF(L$5<=(VLOOKUP($A57,masterlist!$C$2:$AC$207,27,FALSE)),1,\"\"))","v":""},{"$f":"IF($D57>6,\"\",IF(M$5<=(VLOOKUP($A57,masterlist!$C$2:$AC$207,27,FALSE)),1,\"\"))","v":""},{"$f":"IF($D57>6,\"\",IF(N$5<=(VLOOKUP($A57,masterlist!$C$2:$AC$207,27,FALSE)),1,\"\"))","v":""},{"$f":"IF($D57>6,\"\",IF(O$5<=(VLOOKUP($A57,masterlist!$C$2:$AC$207,27,FALSE)),1,\"\"))","v":""},{"$f":"IF($D57>6,\"\",IF(P$5<=(VLOOKUP($A57,masterlist!$C$2:$AC$207,27,FALSE)),1,\"\"))","v":""},{"$f":"IF($D57>6,\"\",IF(Q$5<=(VLOOKUP($A57,masterlist!$C$2:$AC$207,27,FALSE)),1,\"\"))","v":""},{"$f":"IF($D57>6,\"\",IF(R$5<=(VLOOKUP($A57,masterlist!$C$2:$AC$207,27,FALSE)),1,\"\"))","v":""},null,null,null,null,0,0,0,0,0,1,0,0,0,0,0,0,0]
[{"$f":"IFERROR(priorit!A57,\"\")","v":"DPM- -2-9"},"DPM",{"$f":"IFERROR(VLOOKUP($A58,masterlist!$C$2:$AA$207,2,FALSE),\"\")","v":" "},{"$f":"IFERROR(VLOOKUP($A58,masterlist!$C$2:$AA$207,3,FALSE),\"\")","v":2},{"$f":"IFERROR(VLOOKUP($A58,masterlist!$C$2:$AD$207,28,FALSE),\"\")","v":"Mettre en œuvre des campagnes de sensibilisation du public à la GCPC dans une région (par exemple, projet pilote)."},{"$f":"IF($D58>6,\"\",IF(F$5<=(VLOOKUP($A58,masterlist!$C$2:$AC$207,27,FALSE)),1,\"\"))","v":1},{"$f":"IF($D58>6,\"\",IF(G$5<=(VLOOKUP($A58,masterlist!$C$2:$AC$207,27,FALSE)),1,\"\"))","v":1},{"$f":"IF($D58>6,\"\",IF(H$5<=(VLOOKUP($A58,masterlist!$C$2:$AC$207,27,FALSE)),1,\"\"))","v":1},{"$f":"IF($D58>6,\"\",IF(I$5<=(VLOOKUP($A58,masterlist!$C$2:$AC$207,27,FALSE)),1,\"\"))","v":1},{"$f":"IF($D58>6,\"\",IF(J$5<=(VLOOKUP($A58,masterlist!$C$2:$AC$207,27,FALSE)),1,\"\"))","v":1},{"$f":"IF($D58>6,\"\",IF(K$5<=(VLOOKUP($A58,masterlist!$C$2:$AC$207,27,FALSE)),1,\"\"))","v":1},{"$f":"IF($D58>6,\"\",IF(L$5<=(VLOOKUP($A58,masterlist!$C$2:$AC$207,27,FALSE)),1,\"\"))","v":1},{"$f":"IF($D58>6,\"\",IF(M$5<=(VLOOKUP($A58,masterlist!$C$2:$AC$207,27,FALSE)),1,\"\"))","v":""},{"$f":"IF($D58>6,\"\",IF(N$5<=(VLOOKUP($A58,masterlist!$C$2:$AC$207,27,FALSE)),1,\"\"))","v":""},{"$f":"IF($D58>6,\"\",IF(O$5<=(VLOOKUP($A58,masterlist!$C$2:$AC$207,27,FALSE)),1,\"\"))","v":""},{"$f":"IF($D58>6,\"\",IF(P$5<=(VLOOKUP($A58,masterlist!$C$2:$AC$207,27,FALSE)),1,\"\"))","v":""},{"$f":"IF($D58>6,\"\",IF(Q$5<=(VLOOKUP($A58,masterlist!$C$2:$AC$207,27,FALSE)),1,\"\"))","v":""},{"$f":"IF($D58>6,\"\",IF(R$5<=(VLOOKUP($A58,masterlist!$C$2:$AC$207,27,FALSE)),1,\"\"))","v":""},null,null,null,null,0,0,0,0,0,0,1,0,0,0,0,0,0]
[{"$f":"IFERROR(priorit!A58,\"\")","v":"DPM- -3-10"},"DPM",{"$f":"IFERROR(VLOOKUP($A59,masterlist!$C$2:$AA$207,2,FALSE),\"\")","v":" "},{"$f":"IFERROR(VLOOKUP($A59,masterlist!$C$2:$AA$207,3,FALSE),\"\")","v":3},{"$f":"IFERROR(VLOOKUP($A59,masterlist!$C$2:$AD$207,28,FALSE),\"\")","v":"Évaluer et affiner la stratégie de GCPC sur la base des résultats obtenus dans la zone du projet (par exemple, le projet pilote)."},{"$f":"IF($D59>6,\"\",IF(F$5<=(VLOOKUP($A59,masterlist!$C$2:$AC$207,27,FALSE)),1,\"\"))","v":1},{"$f":"IF($D59>6,\"\",IF(G$5<=(VLOOKUP($A59,masterlist!$C$2:$AC$207,27,FALSE)),1,\"\"))","v":1},{"$f":"IF($D59>6,\"\",IF(H$5<=(VLOOKUP($A59,masterlist!$C$2:$AC$207,27,FALSE)),1,\"\"))","v":1},{"$f":"IF($D59>6,\"\",IF(I$5<=(VLOOKUP($A59,masterlist!$C$2:$AC$207,27,FALSE)),1,\"\"))","v":1},{"$f":"IF($D59>6,\"\",IF(J$5<=(VLOOKUP($A59,masterlist!$C$2:$AC$207,27,FALSE)),1,\"\"))","v":1},{"$f":"IF($D59>6,\"\",IF(K$5<=(VLOOKUP($A59,masterlist!$C$2:$AC$207,27,FALSE)),1,\"\"))","v":1},{"$f":"IF($D59>6,\"\",IF(L$5<=(VLOOKUP($A59,masterlist!$C$2:$AC$207,27,FALSE)),1,\"\"))","v":1},{"$f":"IF($D59>6,\"\",IF(M$5<=(VLOOKUP($A59,masterlist!$C$2:$AC$207,27,FALSE)),1,\"\"))","v":1},{"$f":"IF($D59>6,\"\",IF(N$5<=(VLOOKUP($A59,masterlist!$C$2:$AC$207,27,FALSE)),1,\"\"))","v":""},{"$f":"IF($D59>6,\"\",IF(O$5<=(VLOOKUP($A59,masterlist!$C$2:$AC$207,27,FALSE)),1,\"\"))","v":""},{"$f":"IF($D59>6,\"\",IF(P$5<=(VLOOKUP($A59,masterlist!$C$2:$AC$207,27,FALSE)),1,\"\"))","v":""},{"$f":"IF($D59>6,\"\",IF(Q$5<=(VLOOKUP($A59,masterlist!$C$2:$AC$207,27,FALSE)),1,\"\"))","v":""},{"$f":"IF($D59>6,\"\",IF(R$5<=(VLOOKUP($A59,masterlist!$C$2:$AC$207,27,FALSE)),1,\"\"))","v":""},null,null,null,null,0,0,0,0,0,0,0,1,0,0,0,0,0]
[{"$f":"IFERROR(priorit!A59,\"\")","v":"DPM- -3-11"},"DPM",{"$f":"IFERROR(VLOOKUP($A60,masterlist!$C$2:$AA$207,2,FALSE),\"\")","v":" "},{"$f":"IFERROR(VLOOKUP($A60,masterlist!$C$2:$AA$207,3,FALSE),\"\")","v":3},{"$f":"IFERROR(VLOOKUP($A60,masterlist!$C$2:$AD$207,28,FALSE),\"\")","v":"Étendre à d'autres régions du pays les campagnes de sensibilisation du public à la GCPC."},{"$f":"IF($D60>6,\"\",IF(F$5<=(VLOOKUP($A60,masterlist!$C$2:$AC$207,27,FALSE)),1,\"\"))","v":1},{"$f":"IF($D60>6,\"\",IF(G$5<=(VLOOKUP($A60,masterlist!$C$2:$AC$207,27,FALSE)),1,\"\"))","v":1},{"$f":"IF($D60>6,\"\",IF(H$5<=(VLOOKUP($A60,masterlist!$C$2:$AC$207,27,FALSE)),1,\"\"))","v":1},{"$f":"IF($D60>6,\"\",IF(I$5<=(VLOOKUP($A60,masterlist!$C$2:$AC$207,27,FALSE)),1,\"\"))","v":1},{"$f":"IF($D60>6,\"\",IF(J$5<=(VLOOKUP($A60,masterlist!$C$2:$AC$207,27,FALSE)),1,\"\"))","v":1},{"$f":"IF($D60>6,\"\",IF(K$5<=(VLOOKUP($A60,masterlist!$C$2:$AC$207,27,FALSE)),1,\"\"))","v":1},{"$f":"IF($D60>6,\"\",IF(L$5<=(VLOOKUP($A60,masterlist!$C$2:$AC$207,27,FALSE)),1,\"\"))","v":1},{"$f":"IF($D60>6,\"\",IF(M$5<=(VLOOKUP($A60,masterlist!$C$2:$AC$207,27,FALSE)),1,\"\"))","v":""},{"$f":"IF($D60>6,\"\",IF(N$5<=(VLOOKUP($A60,masterlist!$C$2:$AC$207,27,FALSE)),1,\"\"))","v":""},{"$f":"IF($D60>6,\"\",IF(O$5<=(VLOOKUP($A60,masterlist!$C$2:$AC$207,27,FALSE)),1,\"\"))","v":""},{"$f":"IF($D60>6,\"\",IF(P$5<=(VLOOKUP($A60,masterlist!$C$2:$AC$207,27,FALSE)),1,\"\"))","v":""},{"$f":"IF($D60>6,\"\",IF(Q$5<=(VLOOKUP($A60,masterlist!$C$2:$AC$207,27,FALSE)),1,\"\"))","v":""},{"$f":"IF($D60>6,\"\",IF(R$5<=(VLOOKUP($A60,masterlist!$C$2:$AC$207,27,FALSE)),1,\"\"))","v":""},null,null,null,null,0,0,0,0,0,0,1,0,0,0,0,0,0]
[{"$f":"IFERROR(priorit!A60,\"\")","v":"DPM- -3-12"},"DPM",{"$f":"IFERROR(VLOOKUP($A61,masterlist!$C$2:$AA$207,2,FALSE),\"\")","v":" "},{"$f":"IFERROR(VLOOKUP($A61,masterlist!$C$2:$AA$207,3,FALSE),\"\")","v":3},{"$f":"IFERROR(VLOOKUP($A61,masterlist!$C$2:$AD$207,28,FALSE),\"\")","v":"Former les professionnels vétérinaires et animaliers concernés à la mise en œuvre de la GCPC dans l'ensemble du pays."},{"$f":"IF($D61>6,\"\",IF(F$5<=(VLOOKUP($A61,masterlist!$C$2:$AC$207,27,FALSE)),1,\"\"))","v":1},{"$f":"IF($D61>6,\"\",IF(G$5<=(VLOOKUP($A61,masterlist!$C$2:$AC$207,27,FALSE)),1,\"\"))","v":1},{"$f":"IF($D61>6,\"\",IF(H$5<=(VLOOKUP($A61,masterlist!$C$2:$AC$207,27,FALSE)),1,\"\"))","v":1},{"$f":"IF($D61>6,\"\",IF(I$5<=(VLOOKUP($A61,masterlist!$C$2:$AC$207,27,FALSE)),1,\"\"))","v":1},{"$f":"IF($D61>6,\"\",IF(J$5<=(VLOOKUP($A61,masterlist!$C$2:$AC$207,27,FALSE)),1,\"\"))","v":1},{"$f":"IF($D61>6,\"\",IF(K$5<=(VLOOKUP($A61,masterlist!$C$2:$AC$207,27,FALSE)),1,\"\"))","v":1},{"$f":"IF($D61>6,\"\",IF(L$5<=(VLOOKUP($A61,masterlist!$C$2:$AC$207,27,FALSE)),1,\"\"))","v":1},{"$f":"IF($D61>6,\"\",IF(M$5<=(VLOOKUP($A61,masterlist!$C$2:$AC$207,27,FALSE)),1,\"\"))","v":1},{"$f":"IF($D61>6,\"\",IF(N$5<=(VLOOKUP($A61,masterlist!$C$2:$AC$207,27,FALSE)),1,\"\"))","v":""},{"$f":"IF($D61>6,\"\",IF(O$5<=(VLOOKUP($A61,masterlist!$C$2:$AC$207,27,FALSE)),1,\"\"))","v":""},{"$f":"IF($D61>6,\"\",IF(P$5<=(VLOOKUP($A61,masterlist!$C$2:$AC$207,27,FALSE)),1,\"\"))","v":""},{"$f":"IF($D61>6,\"\",IF(Q$5<=(VLOOKUP($A61,masterlist!$C$2:$AC$207,27,FALSE)),1,\"\"))","v":""},{"$f":"IF($D61>6,\"\",IF(R$5<=(VLOOKUP($A61,masterlist!$C$2:$AC$207,27,FALSE)),1,\"\"))","v":""},null,null,null,null,0,0,0,0,0,0,0,1,0,0,0,0,0]
[{"$f":"IFERROR(priorit!A61,\"\")","v":"DPM- -5-13"},"DPM",{"$f":"IFERROR(VLOOKUP($A62,masterlist!$C$2:$AA$207,2,FALSE),\"\")","v":" "},{"$f":"IFERROR(VLOOKUP($A62,masterlist!$C$2:$AA$207,3,FALSE),\"\")","v":5},{"$f":"IFERROR(VLOOKUP($A62,masterlist!$C$2:$AD$207,28,FALSE),\"\")","v":"Mettre en œuvre la stratégie finalisée de GCPC dans l'ensemble du pays."},{"$f":"IF($D62>6,\"\",IF(F$5<=(VLOOKUP($A62,masterlist!$C$2:$AC$207,27,FALSE)),1,\"\"))","v":1},{"$f":"IF($D62>6,\"\",IF(G$5<=(VLOOKUP($A62,masterlist!$C$2:$AC$207,27,FALSE)),1,\"\"))","v":1},{"$f":"IF($D62>6,\"\",IF(H$5<=(VLOOKUP($A62,masterlist!$C$2:$AC$207,27,FALSE)),1,\"\"))","v":1},{"$f":"IF($D62>6,\"\",IF(I$5<=(VLOOKUP($A62,masterlist!$C$2:$AC$207,27,FALSE)),1,\"\"))","v":1},{"$f":"IF($D62>6,\"\",IF(J$5<=(VLOOKUP($A62,masterlist!$C$2:$AC$207,27,FALSE)),1,\"\"))","v":1},{"$f":"IF($D62>6,\"\",IF(K$5<=(VLOOKUP($A62,masterlist!$C$2:$AC$207,27,FALSE)),1,\"\"))","v":1},{"$f":"IF($D62>6,\"\",IF(L$5<=(VLOOKUP($A62,masterlist!$C$2:$AC$207,27,FALSE)),1,\"\"))","v":1},{"$f":"IF($D62>6,\"\",IF(M$5<=(VLOOKUP($A62,masterlist!$C$2:$AC$207,27,FALSE)),1,\"\"))","v":1},{"$f":"IF($D62>6,\"\",IF(N$5<=(VLOOKUP($A62,masterlist!$C$2:$AC$207,27,FALSE)),1,\"\"))","v":1},{"$f":"IF($D62>6,\"\",IF(O$5<=(VLOOKUP($A62,masterlist!$C$2:$AC$207,27,FALSE)),1,\"\"))","v":1},{"$f":"IF($D62>6,\"\",IF(P$5<=(VLOOKUP($A62,masterlist!$C$2:$AC$207,27,FALSE)),1,\"\"))","v":1},{"$f":"IF($D62>6,\"\",IF(Q$5<=(VLOOKUP($A62,masterlist!$C$2:$AC$207,27,FALSE)),1,\"\"))","v":1},{"$f":"IF($D62>6,\"\",IF(R$5<=(VLOOKUP($A62,masterlist!$C$2:$AC$207,27,FALSE)),1,\"\"))","v":""},null,null,null,null,0,0,0,0,0,0,0,0,0,0,0,1,0]
[{"$f":"IFERROR(priorit!A62,\"\")","v":"DPM- -5-14"},"DPM",{"$f":"IFERROR(VLOOKUP($A63,masterlist!$C$2:$AA$207,2,FALSE),\"\")","v":" "},{"$f":"IFERROR(VLOOKUP($A63,masterlist!$C$2:$AA$207,3,FALSE),\"\")","v":5},{"$f":"IFERROR(VLOOKUP($A63,masterlist!$C$2:$AD$207,28,FALSE),\"\")","v":"Veiller à ce que les campagnes de GCPC se poursuivent dans tout le pays après l'élimination de la rage canine."},{"$f":"IF($D63>6,\"\",IF(F$5<=(VLOOKUP($A63,masterlist!$C$2:$AC$207,27,FALSE)),1,\"\"))","v":1},{"$f":"IF($D63>6,\"\",IF(G$5<=(VLOOKUP($A63,masterlist!$C$2:$AC$207,27,FALSE)),1,\"\"))","v":1},{"$f":"IF($D63>6,\"\",IF(H$5<=(VLOOKUP($A63,masterlist!$C$2:$AC$207,27,FALSE)),1,\"\"))","v":1},{"$f":"IF($D63>6,\"\",IF(I$5<=(VLOOKUP($A63,masterlist!$C$2:$AC$207,27,FALSE)),1,\"\"))","v":1},{"$f":"IF($D63>6,\"\",IF(J$5<=(VLOOKUP($A63,masterlist!$C$2:$AC$207,27,FALSE)),1,\"\"))","v":1},{"$f":"IF($D63>6,\"\",IF(K$5<=(VLOOKUP($A63,masterlist!$C$2:$AC$207,27,FALSE)),1,\"\"))","v":1},{"$f":"IF($D63>6,\"\",IF(L$5<=(VLOOKUP($A63,masterlist!$C$2:$AC$207,27,FALSE)),1,\"\"))","v":1},{"$f":"IF($D63>6,\"\",IF(M$5<=(VLOOKUP($A63,masterlist!$C$2:$AC$207,27,FALSE)),1,\"\"))","v":1},{"$f":"IF($D63>6,\"\",IF(N$5<=(VLOOKUP($A63,masterlist!$C$2:$AC$207,27,FALSE)),1,\"\"))","v":1},{"$f":"IF($D63>6,\"\",IF(O$5<=(VLOOKUP($A63,masterlist!$C$2:$AC$207,27,FALSE)),1,\"\"))","v":1},{"$f":"IF($D63>6,\"\",IF(P$5<=(VLOOKUP($A63,masterlist!$C$2:$AC$207,27,FALSE)),1,\"\"))","v":1},{"$f":"IF($D63>6,\"\",IF(Q$5<=(VLOOKUP($A63,masterlist!$C$2:$AC$207,27,FALSE)),1,\"\"))","v":1},{"$f":"IF($D63>6,\"\",IF(R$5<=(VLOOKUP($A63,masterlist!$C$2:$AC$207,27,FALSE)),1,\"\"))","v":1},null,null,null,null,0,0,0,0,0,0,0,0,0,0,0,0,1]
[{"$f":"IFERROR(priorit!A63,\"\")","v":"IEC-Sen-1-3"},"IEC",{"$f":"IFERROR(VLOOKUP($A64,masterlist!$C$2:$AA$207,2,FALSE),\"\")","v":"Sensibilisation du public"},{"$f":"IFERROR(VLOOKUP($A64,masterlist!$C$2:$AA$207,3,FALSE),\"\")","v":1},{"$f":"IFERROR(VLOOKUP($A64,masterlist!$C$2:$AD$207,28,FALSE),\"\")","v":"Développer et tester un plan structuré d'IEC décrivant les publics cibles, les messages clés, les moyens de diffusion et les résultats souhaités en matière d'éducation, de sensibilisation et de prise de conscience - pour la rage et le bien-être des chiens dans une zone de projet pilote."},{"$f":"IF($D64>6,\"\",IF(F$5<=(VLOOKUP($A64,masterlist!$C$2:$AC$207,27,FALSE)),1,\"\"))","v":1},{"$f":"IF($D64>6,\"\",IF(G$5<=(VLOOKUP($A64,masterlist!$C$2:$AC$207,27,FALSE)),1,\"\"))","v":1},{"$f":"IF($D64>6,\"\",IF(H$5<=(VLOOKUP($A64,masterlist!$C$2:$AC$207,27,FALSE)),1,\"\"))","v":1},{"$f":"IF($D64>6,\"\",IF(I$5<=(VLOOKUP($A64,masterlist!$C$2:$AC$207,27,FALSE)),1,\"\"))","v":1},{"$f":"IF($D64>6,\"\",IF(J$5<=(VLOOKUP($A64,masterlist!$C$2:$AC$207,27,FALSE)),1,\"\"))","v":1},{"$f":"IF($D64>6,\"\",IF(K$5<=(VLOOKUP($A64,masterlist!$C$2:$AC$207,27,FALSE)),1,\"\"))","v":1},{"$f":"IF($D64>6,\"\",IF(L$5<=(VLOOKUP($A64,masterlist!$C$2:$AC$207,27,FALSE)),1,\"\"))","v":1},{"$f":"IF($D64>6,\"\",IF(M$5<=(VLOOKUP($A64,masterlist!$C$2:$AC$207,27,FALSE)),1,\"\"))","v":1},{"$f":"IF($D64>6,\"\",IF(N$5<=(VLOOKUP($A64,masterlist!$C$2:$AC$207,27,FALSE)),1,\"\"))","v":1},{"$f":"IF($D64>6,\"\",IF(O$5<=(VLOOKUP($A64,masterlist!$C$2:$AC$207,27,FALSE)),1,\"\"))","v":1},{"$f":"IF($D64>6,\"\",IF(P$5<=(VLOOKUP($A64,masterlist!$C$2:$AC$207,27,FALSE)),1,\"\"))","v":1},{"$f":"IF($D64>6,\"\",IF(Q$5<=(VLOOKUP($A64,masterlist!$C$2:$AC$207,27,FALSE)),1,\"\"))","v":1},{"$f":"IF($D64>6,\"\",IF(R$5<=(VLOOKUP($A64,masterlist!$C$2:$AC$207,27,FALSE)),1,\"\"))","v":1},null,null,null,null,0,0,0,0,0,0,0,0,0,0,0,0,1]
[{"$f":"IFERROR(priorit!A64,\"\")","v":"IEC-Sen-2-5"},"IEC",{"$f":"IFERROR(VLOOKUP($A65,masterlist!$C$2:$AA$207,2,FALSE),\"\")","v":"Sensibilisation du public"},{"$f":"IFERROR(VLOOKUP($A65,masterlist!$C$2:$AA$207,3,FALSE),\"\")","v":2},{"$f":"IFERROR(VLOOKUP($A65,masterlist!$C$2:$AD$207,28,FALSE),\"\")","v":"Actualiser (si nécessaire) et mettre en œuvre le plan d'IEC dans l'ensemble du pays."},{"$f":"IF($D65>6,\"\",IF(F$5<=(VLOOKUP($A65,masterlist!$C$2:$AC$207,27,FALSE)),1,\"\"))","v":1},{"$f":"IF($D65>6,\"\",IF(G$5<=(VLOOKUP($A65,masterlist!$C$2:$AC$207,27,FALSE)),1,\"\"))","v":1},{"$f":"IF($D65>6,\"\",IF(H$5<=(VLOOKUP($A65,masterlist!$C$2:$AC$207,27,FALSE)),1,\"\"))","v":1},{"$f":"IF($D65>6,\"\",IF(I$5<=(VLOOKUP($A65,masterlist!$C$2:$AC$207,27,FALSE)),1,\"\"))","v":1},{"$f":"IF($D65>6,\"\",IF(J$5<=(VLOOKUP($A65,masterlist!$C$2:$AC$207,27,FALSE)),1,\"\"))","v":1},{"$f":"IF($D65>6,\"\",IF(K$5<=(VLOOKUP($A65,masterlist!$C$2:$AC$207,27,FALSE)),1,\"\"))","v":1},{"$f":"IF($D65>6,\"\",IF(L$5<=(VLOOKUP($A65,masterlist!$C$2:$AC$207,27,FALSE)),1,\"\"))","v":1},{"$f":"IF($D65>6,\"\",IF(M$5<=(VLOOKUP($A65,masterlist!$C$2:$AC$207,27,FALSE)),1,\"\"))","v":1},{"$f":"IF($D65>6,\"\",IF(N$5<=(VLOOKUP($A65,masterlist!$C$2:$AC$207,27,FALSE)),1,\"\"))","v":1},{"$f":"IF($D65>6,\"\",IF(O$5<=(VLOOKUP($A65,masterlist!$C$2:$AC$207,27,FALSE)),1,\"\"))","v":1},{"$f":"IF($D65>6,\"\",IF(P$5<=(VLOOKUP($A65,masterlist!$C$2:$AC$207,27,FALSE)),1,\"\"))","v":1},{"$f":"IF($D65>6,\"\",IF(Q$5<=(VLOOKUP($A65,masterlist!$C$2:$AC$207,27,FALSE)),1,\"\"))","v":1},{"$f":"IF($D65>6,\"\",IF(R$5<=(VLOOKUP($A65,masterlist!$C$2:$AC$207,27,FALSE)),1,\"\"))","v":1},null,null,null,null,0,0,0,0,0,0,0,0,0,0,0,0,1]
[{"$f":"IFERROR(priorit!A65,\"\")","v":"IEC-Sen-5-6"},"IEC",{"$f":"IFERROR(VLOOKUP($A66,masterlist!$C$2:$AA$207,2,FALSE),\"\")","v":"Sensibilisation du public"},{"$f":"IFERROR(VLOOKUP($A66,masterlist!$C$2:$AA$207,3,FALSE),\"\")","v":5},{"$f":"IFERROR(VLOOKUP($A66,masterlist!$C$2:$AD$207,28,FALSE),\"\")","v":"Maintenant que le pays est indemne de rage humaine et animale, mettre en œuvre des programmes de sensibilisation axés sur le maintien de l'absence de rage canine et de rage humaine transmise par les chiens."},{"$f":"IF($D66>6,\"\",IF(F$5<=(VLOOKUP($A66,masterlist!$C$2:$AC$207,27,FALSE)),1,\"\"))","v":1},{"$f":"IF($D66>6,\"\",IF(G$5<=(VLOOKUP($A66,masterlist!$C$2:$AC$207,27,FALSE)),1,\"\"))","v":1},{"$f":"IF($D66>6,\"\",IF(H$5<=(VLOOKUP($A66,masterlist!$C$2:$AC$207,27,FALSE)),1,\"\"))","v":1},{"$f":"IF($D66>6,\"\",IF(I$5<=(VLOOKUP($A66,masterlist!$C$2:$AC$207,27,FALSE)),1,\"\"))","v":1},{"$f":"IF($D66>6,\"\",IF(J$5<=(VLOOKUP($A66,masterlist!$C$2:$AC$207,27,FALSE)),1,\"\"))","v":1},{"$f":"IF($D66>6,\"\",IF(K$5<=(VLOOKUP($A66,masterlist!$C$2:$AC$207,27,FALSE)),1,\"\"))","v":1},{"$f":"IF($D66>6,\"\",IF(L$5<=(VLOOKUP($A66,masterlist!$C$2:$AC$207,27,FALSE)),1,\"\"))","v":1},{"$f":"IF($D66>6,\"\",IF(M$5<=(VLOOKUP($A66,masterlist!$C$2:$AC$207,27,FALSE)),1,\"\"))","v":1},{"$f":"IF($D66>6,\"\",IF(N$5<=(VLOOKUP($A66,masterlist!$C$2:$AC$207,27,FALSE)),1,\"\"))","v":1},{"$f":"IF($D66>6,\"\",IF(O$5<=(VLOOKUP($A66,masterlist!$C$2:$AC$207,27,FALSE)),1,\"\"))","v":1},{"$f":"IF($D66>6,\"\",IF(P$5<=(VLOOKUP($A66,masterlist!$C$2:$AC$207,27,FALSE)),1,\"\"))","v":1},{"$f":"IF($D66>6,\"\",IF(Q$5<=(VLOOKUP($A66,masterlist!$C$2:$AC$207,27,FALSE)),1,\"\"))","v":1},{"$f":"IF($D66>6,\"\",IF(R$5<=(VLOOKUP($A66,masterlist!$C$2:$AC$207,27,FALSE)),1,\"\"))","v":1},null,null,null,null,0,0,0,0,0,0,0,0,0,0,0,0,1]
[{"$f":"IFERROR(priorit!A66,\"\")","v":"IEC-For-1-8"},"IEC",{"$f":"IFERROR(VLOOKUP($A67,masterlist!$C$2:$AA$207,2,FALSE),\"\")","v":"Formation professionnelle"},{"$f":"IFERROR(VLOOKUP($A67,masterlist!$C$2:$AA$207,3,FALSE),\"\")","v":1},{"$f":"IFERROR(VLOOKUP($A67,masterlist!$C$2:$AD$207,28,FALSE),\"\")","v":"Déterminer les besoins en matière de formation et d'éducation des professionnels de la santé animale et humaine impliqués dans l'élimination de la rage."},{"$f":"IF($D67>6,\"\",IF(F$5<=(VLOOKUP($A67,masterlist!$C$2:$AC$207,27,FALSE)),1,\"\"))","v":1},{"$f":"IF($D67>6,\"\",IF(G$5<=(VLOOKUP($A67,masterlist!$C$2:$AC$207,27,FALSE)),1,\"\"))","v":1},{"$f":"IF($D67>6,\"\",IF(H$5<=(VLOOKUP($A67,masterlist!$C$2:$AC$207,27,FALSE)),1,\"\"))","v":1},{"$f":"IF($D67>6,\"\",IF(I$5<=(VLOOKUP($A67,masterlist!$C$2:$AC$207,27,FALSE)),1,\"\"))","v":1},{"$f":"IF($D67>6,\"\",IF(J$5<=(VLOOKUP($A67,masterlist!$C$2:$AC$207,27,FALSE)),1,\"\"))","v":1},{"$f":"IF($D67>6,\"\",IF(K$5<=(VLOOKUP($A67,masterlist!$C$2:$AC$207,27,FALSE)),1,\"\"))","v":1},{"$f":"IF($D67>6,\"\",IF(L$5<=(VLOOKUP($A67,masterlist!$C$2:$AC$207,27,FALSE)),1,\"\"))","v":1},{"$f":"IF($D67>6,\"\",IF(M$5<=(VLOOKUP($A67,masterlist!$C$2:$AC$207,27,FALSE)),1,\"\"))","v":1},{"$f":"IF($D67>6,\"\",IF(N$5<=(VLOOKUP($A67,masterlist!$C$2:$AC$207,27,FALSE)),1,\"\"))","v":1},{"$f":"IF($D67>6,\"\",IF(O$5<=(VLOOKUP($A67,masterlist!$C$2:$AC$207,27,FALSE)),1,\"\"))","v":1},{"$f":"IF($D67>6,\"\",IF(P$5<=(VLOOKUP($A67,masterlist!$C$2:$AC$207,27,FALSE)),1,\"\"))","v":1},{"$f":"IF($D67>6,\"\",IF(Q$5<=(VLOOKUP($A67,masterlist!$C$2:$AC$207,27,FALSE)),1,\"\"))","v":1},{"$f":"IF($D67>6,\"\",IF(R$5<=(VLOOKUP($A67,masterlist!$C$2:$AC$207,27,FALSE)),1,\"\"))","v":1},null,null,null,null,0,0,0,0,0,0,0,0,0,0,0,0,1]
[{"$f":"IFERROR(priorit!A67,\"\")","v":"IEC-For-1-9"},"IEC",{"$f":"IFERROR(VLOOKUP($A68,masterlist!$C$2:$AA$207,2,FALSE),\"\")","v":"Formation professionnelle"},{"$f":"IFERROR(VLOOKUP($A68,masterlist!$C$2:$AA$207,3,FALSE),\"\")","v":1},{"$f":"IFERROR(VLOOKUP($A68,masterlist!$C$2:$AD$207,28,FALSE),\"\")","v":"Élaborer un plan structuré de formation et d'éducation décrivant les publics cibles, les principaux besoins, les moyens de formation et d'éducation, et les résultats souhaités pour les professionnels de la santé humaine et animale dans le pays."},{"$f":"IF($D68>6,\"\",IF(F$5<=(VLOOKUP($A68,masterlist!$C$2:$AC$207,27,FALSE)),1,\"\"))","v":1},{"$f":"IF($D68>6,\"\",IF(G$5<=(VLOOKUP($A68,masterlist!$C$2:$AC$207,27,FALSE)),1,\"\"))","v":1},{"$f":"IF($D68>6,\"\",IF(H$5<=(VLOOKUP($A68,masterlist!$C$2:$AC$207,27,FALSE)),1,\"\"))","v":1},{"$f":"IF($D68>6,\"\",IF(I$5<=(VLOOKUP($A68,masterlist!$C$2:$AC$207,27,FALSE)),1,\"\"))","v":1},{"$f":"IF($D68>6,\"\",IF(J$5<=(VLOOKUP($A68,masterlist!$C$2:$AC$207,27,FALSE)),1,\"\"))","v":1},{"$f":"IF($D68>6,\"\",IF(K$5<=(VLOOKUP($A68,masterlist!$C$2:$AC$207,27,FALSE)),1,\"\"))","v":1},{"$f":"IF($D68>6,\"\",IF(L$5<=(VLOOKUP($A68,masterlist!$C$2:$AC$207,27,FALSE)),1,\"\"))","v":1},{"$f":"IF($D68>6,\"\",IF(M$5<=(VLOOKUP($A68,masterlist!$C$2:$AC$207,27,FALSE)),1,\"\"))","v":1},{"$f":"IF($D68>6,\"\",IF(N$5<=(VLOOKUP($A68,masterlist!$C$2:$AC$207,27,FALSE)),1,\"\"))","v":1},{"$f":"IF($D68>6,\"\",IF(O$5<=(VLOOKUP($A68,masterlist!$C$2:$AC$207,27,FALSE)),1,\"\"))","v":1},{"$f":"IF($D68>6,\"\",IF(P$5<=(VLOOKUP($A68,masterlist!$C$2:$AC$207,27,FALSE)),1,\"\"))","v":1},{"$f":"IF($D68>6,\"\",IF(Q$5<=(VLOOKUP($A68,masterlist!$C$2:$AC$207,27,FALSE)),1,\"\"))","v":1},{"$f":"IF($D68>6,\"\",IF(R$5<=(VLOOKUP($A68,masterlist!$C$2:$AC$207,27,FALSE)),1,\"\"))","v":1},null,null,null,null,0,0,0,0,0,0,0,0,0,0,0,0,1]
[{"$f":"IFERROR(priorit!A68,\"\")","v":"IEC-For-2-11"},"IEC",{"$f":"IFERROR(VLOOKUP($A69,masterlist!$C$2:$AA$207,2,FALSE),\"\")","v":"Formation professionnelle"},{"$f":"IFERROR(VLOOKUP($A69,masterlist!$C$2:$AA$207,3,FALSE),\"\")","v":2},{"$f":"IFERROR(VLOOKUP($A69,masterlist!$C$2:$AD$207,28,FALSE),\"\")","v":"Mettre en œuvre la formation structurée des professionnels de la santé humaine et animale dans la plupart des régions du pays."},{"$f":"IF($D69>6,\"\",IF(F$5<=(VLOOKUP($A69,masterlist!$C$2:$AC$207,27,FALSE)),1,\"\"))","v":1},{"$f":"IF($D69>6,\"\",IF(G$5<=(VLOOKUP($A69,masterlist!$C$2:$AC$207,27,FALSE)),1,\"\"))","v":1},{"$f":"IF($D69>6,\"\",IF(H$5<=(VLOOKUP($A69,masterlist!$C$2:$AC$207,27,FALSE)),1,\"\"))","v":1},{"$f":"IF($D69>6,\"\",IF(I$5<=(VLOOKUP($A69,masterlist!$C$2:$AC$207,27,FALSE)),1,\"\"))","v":1},{"$f":"IF($D69>6,\"\",IF(J$5<=(VLOOKUP($A69,masterlist!$C$2:$AC$207,27,FALSE)),1,\"\"))","v":1},{"$f":"IF($D69>6,\"\",IF(K$5<=(VLOOKUP($A69,masterlist!$C$2:$AC$207,27,FALSE)),1,\"\"))","v":1},{"$f":"IF($D69>6,\"\",IF(L$5<=(VLOOKUP($A69,masterlist!$C$2:$AC$207,27,FALSE)),1,\"\"))","v":1},{"$f":"IF($D69>6,\"\",IF(M$5<=(VLOOKUP($A69,masterlist!$C$2:$AC$207,27,FALSE)),1,\"\"))","v":1},{"$f":"IF($D69>6,\"\",IF(N$5<=(VLOOKUP($A69,masterlist!$C$2:$AC$207,27,FALSE)),1,\"\"))","v":1},{"$f":"IF($D69>6,\"\",IF(O$5<=(VLOOKUP($A69,masterlist!$C$2:$AC$207,27,FALSE)),1,\"\"))","v":1},{"$f":"IF($D69>6,\"\",IF(P$5<=(VLOOKUP($A69,masterlist!$C$2:$AC$207,27,FALSE)),1,\"\"))","v":1},{"$f":"IF($D69>6,\"\",IF(Q$5<=(VLOOKUP($A69,masterlist!$C$2:$AC$207,27,FALSE)),1,\"\"))","v":1},{"$f":"IF($D69>6,\"\",IF(R$5<=(VLOOKUP($A69,masterlist!$C$2:$AC$207,27,FALSE)),1,\"\"))","v":1},null,null,null,null,0,0,0,0,0,0,0,0,0,0,0,0,1]
[{"$f":"IFERROR(priorit!A69,\"\")","v":"IEC-Pla-2-15"},"IEC",{"$f":"IFERROR(VLOOKUP($A70,masterlist!$C$2:$AA$207,2,FALSE),\"\")","v":"Plaidoyer"},{"$f":"IFERROR(VLOOKUP($A70,masterlist!$C$2:$AA$207,3,FALSE),\"\")","v":2},{"$f":"IFERROR(VLOOKUP($A70,masterlist!$C$2:$AD$207,28,FALSE),\"\")","v":"Faire connaître les succès du programme d'élimination de la rage aux parties prenantes identifiées."},{"$f":"IF($D70>6,\"\",IF(F$5<=(VLOOKUP($A70,masterlist!$C$2:$AC$207,27,FALSE)),1,\"\"))","v":1},{"$f":"IF($D70>6,\"\",IF(G$5<=(VLOOKUP($A70,masterlist!$C$2:$AC$207,27,FALSE)),1,\"\"))","v":1},{"$f":"IF($D70>6,\"\",IF(H$5<=(VLOOKUP($A70,masterlist!$C$2:$AC$207,27,FALSE)),1,\"\"))","v":1},{"$f":"IF($D70>6,\"\",IF(I$5<=(VLOOKUP($A70,masterlist!$C$2:$AC$207,27,FALSE)),1,\"\"))","v":1},{"$f":"IF($D70>6,\"\",IF(J$5<=(VLOOKUP($A70,masterlist!$C$2:$AC$207,27,FALSE)),1,\"\"))","v":1},{"$f":"IF($D70>6,\"\",IF(K$5<=(VLOOKUP($A70,masterlist!$C$2:$AC$207,27,FALSE)),1,\"\"))","v":1},{"$f":"IF($D70>6,\"\",IF(L$5<=(VLOOKUP($A70,masterlist!$C$2:$AC$207,27,FALSE)),1,\"\"))","v":1},{"$f":"IF($D70>6,\"\",IF(M$5<=(VLOOKUP($A70,masterlist!$C$2:$AC$207,27,FALSE)),1,\"\"))","v":1},{"$f":"IF($D70>6,\"\",IF(N$5<=(VLOOKUP($A70,masterlist!$C$2:$AC$207,27,FALSE)),1,\"\"))","v":1},{"$f":"IF($D70>6,\"\",IF(O$5<=(VLOOKUP($A70,masterlist!$C$2:$AC$207,27,FALSE)),1,\"\"))","v":1},{"$f":"IF($D70>6,\"\",IF(P$5<=(VLOOKUP($A70,masterlist!$C$2:$AC$207,27,FALSE)),1,\"\"))","v":1},{"$f":"IF($D70>6,\"\",IF(Q$5<=(VLOOKUP($A70,masterlist!$C$2:$AC$207,27,FALSE)),1,\"\"))","v":1},{"$f":"IF($D70>6,\"\",IF(R$5<=(VLOOKUP($A70,masterlist!$C$2:$AC$207,27,FALSE)),1,\"\"))","v":1},null,null,null,null,0,0,0,0,0,0,0,0,0,0,0,0,1]
[{"$f":"IFERROR(priorit!A70,\"\")","v":"IEC-Pla-2-16"},"IEC",{"$f":"IFERROR(VLOOKUP($A71,masterlist!$C$2:$AA$207,2,FALSE),\"\")","v":"Plaidoyer"},{"$f":"IFERROR(VLOOKUP($A71,masterlist!$C$2:$AA$207,3,FALSE),\"\")","v":2},{"$f":"IFERROR(VLOOKUP($A71,masterlist!$C$2:$AD$207,28,FALSE),\"\")","v":"Plaider pour obtenir l'intérêt actif d'au moins une partie prenante de l'action de plaidoyer."},{"$f":"IF($D71>6,\"\",IF(F$5<=(VLOOKUP($A71,masterlist!$C$2:$AC$207,27,FALSE)),1,\"\"))","v":1},{"$f":"IF($D71>6,\"\",IF(G$5<=(VLOOKUP($A71,masterlist!$C$2:$AC$207,27,FALSE)),1,\"\"))","v":1},{"$f":"IF($D71>6,\"\",IF(H$5<=(VLOOKUP($A71,masterlist!$C$2:$AC$207,27,FALSE)),1,\"\"))","v":1},{"$f":"IF($D71>6,\"\",IF(I$5<=(VLOOKUP($A71,masterlist!$C$2:$AC$207,27,FALSE)),1,\"\"))","v":1},{"$f":"IF($D71>6,\"\",IF(J$5<=(VLOOKUP($A71,masterlist!$C$2:$AC$207,27,FALSE)),1,\"\"))","v":1},{"$f":"IF($D71>6,\"\",IF(K$5<=(VLOOKUP($A71,masterlist!$C$2:$AC$207,27,FALSE)),1,\"\"))","v":1},{"$f":"IF($D71>6,\"\",IF(L$5<=(VLOOKUP($A71,masterlist!$C$2:$AC$207,27,FALSE)),1,\"\"))","v":1},{"$f":"IF($D71>6,\"\",IF(M$5<=(VLOOKUP($A71,masterlist!$C$2:$AC$207,27,FALSE)),1,\"\"))","v":1},{"$f":"IF($D71>6,\"\",IF(N$5<=(VLOOKUP($A71,masterlist!$C$2:$AC$207,27,FALSE)),1,\"\"))","v":1},{"$f":"IF($D71>6,\"\",IF(O$5<=(VLOOKUP($A71,masterlist!$C$2:$AC$207,27,FALSE)),1,\"\"))","v":1},{"$f":"IF($D71>6,\"\",IF(P$5<=(VLOOKUP($A71,masterlist!$C$2:$AC$207,27,FALSE)),1,\"\"))","v":1},{"$f":"IF($D71>6,\"\",IF(Q$5<=(VLOOKUP($A71,masterlist!$C$2:$AC$207,27,FALSE)),1,\"\"))","v":1},{"$f":"IF($D71>6,\"\",IF(R$5<=(VLOOKUP($A71,masterlist!$C$2:$AC$207,27,FALSE)),1,\"\"))","v":1},null,null,null,null,0,0,0,0,0,0,0,0,0,0,0,0,1]
[{"$f":"IFERROR(priorit!A71,\"\")","v":"IEC-Pla-3-17"},{"$f":"IFERROR(LEFT(A72,3),\"\")","v":"IEC"},{"$f":"IFERROR(VLOOKUP($A72,masterlist!$C$2:$AA$207,2,FALSE),\"\")","v":"Plaidoyer"},{"$f":"IFERROR(VLOOKUP($A72,masterlist!$C$2:$AA$207,3,FALSE),\"\")","v":3},{"$f":"IFERROR(VLOOKUP($A72,masterlist!$C$2:$AD$207,28,FALSE),\"\")","v":"Déclarer publiquement les zones exemptes de rage humaine transmise par les chiens."},{"$f":"IF($D72>6,\"\",IF(F$5<=(VLOOKUP($A72,masterlist!$C$2:$AC$207,27,FALSE)),1,\"\"))","v":1},{"$f":"IF($D72>6,\"\",IF(G$5<=(VLOOKUP($A72,masterlist!$C$2:$AC$207,27,FALSE)),1,\"\"))","v":1},{"$f":"IF($D72>6,\"\",IF(H$5<=(VLOOKUP($A72,masterlist!$C$2:$AC$207,27,FALSE)),1,\"\"))","v":1},{"$f":"IF($D72>6,\"\",IF(I$5<=(VLOOKUP($A72,masterlist!$C$2:$AC$207,27,FALSE)),1,\"\"))","v":1},{"$f":"IF($D72>6,\"\",IF(J$5<=(VLOOKUP($A72,masterlist!$C$2:$AC$207,27,FALSE)),1,\"\"))","v":1},{"$f":"IF($D72>6,\"\",IF(K$5<=(VLOOKUP($A72,masterlist!$C$2:$AC$207,27,FALSE)),1,\"\"))","v":1},{"$f":"IF($D72>6,\"\",IF(L$5<=(VLOOKUP($A72,masterlist!$C$2:$AC$207,27,FALSE)),1,\"\"))","v":1},{"$f":"IF($D72>6,\"\",IF(M$5<=(VLOOKUP($A72,masterlist!$C$2:$AC$207,27,FALSE)),1,\"\"))","v":1},{"$f":"IF($D72>6,\"\",IF(N$5<=(VLOOKUP($A72,masterlist!$C$2:$AC$207,27,FALSE)),1,\"\"))","v":1},{"$f":"IF($D72>6,\"\",IF(O$5<=(VLOOKUP($A72,masterlist!$C$2:$AC$207,27,FALSE)),1,\"\"))","v":1},{"$f":"IF($D72>6,\"\",IF(P$5<=(VLOOKUP($A72,masterlist!$C$2:$AC$207,27,FALSE)),1,\"\"))","v":1},{"$f":"IF($D72>6,\"\",IF(Q$5<=(VLOOKUP($A72,masterlist!$C$2:$AC$207,27,FALSE)),1,\"\"))","v":1},{"$f":"IF($D72>6,\"\",IF(R$5<=(VLOOKUP($A72,masterlist!$C$2:$AC$207,27,FALSE)),1,\"\"))","v":1},null,null,null,null,{"$f":"IF(F72=1,1,0)-IF(G72=1,1,0)","v":0},{"$f":"IF(G72=1,1,0)-IF(H72=1,1,0)","v":0},{"$f":"IF(H72=1,1,0)-IF(I72=1,1,0)","v":0},{"$f":"IF(I72=1,1,0)-IF(J72=1,1,0)","v":0},{"$f":"IF(J72=1,1,0)-IF(K72=1,1,0)","v":0},{"$f":"IF(K72=1,1,0)-IF(L72=1,1,0)","v":0},{"$f":"IF(L72=1,1,0)-IF(M72=1,1,0)","v":0},{"$f":"IF(M72=1,1,0)-IF(N72=1,1,0)","v":0},{"$f":"IF(N72=1,1,0)-IF(O72=1,1,0)","v":0},{"$f":"IF(O72=1,1,0)-IF(P72=1,1,0)","v":0},{"$f":"IF(P72=1,1,0)-IF(Q72=1,1,0)","v":0},{"$f":"IF(Q72=1,1,0)-IF(R72=1,1,0)","v":0},{"$f":"IF(R72=1,1,0)-IF(S72=1,1,0)","v":1}]
[{"$f":"IFERROR(priorit!A72,\"\")","v":"IEC-Pla-4-18"},"IEC",{"$f":"IFERROR(VLOOKUP($A73,masterlist!$C$2:$AA$207,2,FALSE),\"\")","v":"Plaidoyer"},{"$f":"IFERROR(VLOOKUP($A73,masterlist!$C$2:$AA$207,3,FALSE),\"\")","v":4},{"$f":"IFERROR(VLOOKUP($A73,masterlist!$C$2:$AD$207,28,FALSE),\"\")","v":"Déclarer publiquement que l'ensemble du pays est exempt de rage humaine transmise par les chiens."},{"$f":"IF($D73>6,\"\",IF(F$5<=(VLOOKUP($A73,masterlist!$C$2:$AC$207,27,FALSE)),1,\"\"))","v":1},{"$f":"IF($D73>6,\"\",IF(G$5<=(VLOOKUP($A73,masterlist!$C$2:$AC$207,27,FALSE)),1,\"\"))","v":1},{"$f":"IF($D73>6,\"\",IF(H$5<=(VLOOKUP($A73,masterlist!$C$2:$AC$207,27,FALSE)),1,\"\"))","v":1},{"$f":"IF($D73>6,\"\",IF(I$5<=(VLOOKUP($A73,masterlist!$C$2:$AC$207,27,FALSE)),1,\"\"))","v":1},{"$f":"IF($D73>6,\"\",IF(J$5<=(VLOOKUP($A73,masterlist!$C$2:$AC$207,27,FALSE)),1,\"\"))","v":1},{"$f":"IF($D73>6,\"\",IF(K$5<=(VLOOKUP($A73,masterlist!$C$2:$AC$207,27,FALSE)),1,\"\"))","v":1},{"$f":"IF($D73>6,\"\",IF(L$5<=(VLOOKUP($A73,masterlist!$C$2:$AC$207,27,FALSE)),1,\"\"))","v":1},{"$f":"IF($D73>6,\"\",IF(M$5<=(VLOOKUP($A73,masterlist!$C$2:$AC$207,27,FALSE)),1,\"\"))","v":1},{"$f":"IF($D73>6,\"\",IF(N$5<=(VLOOKUP($A73,masterlist!$C$2:$AC$207,27,FALSE)),1,\"\"))","v":1},{"$f":"IF($D73>6,\"\",IF(O$5<=(VLOOKUP($A73,masterlist!$C$2:$AC$207,27,FALSE)),1,\"\"))","v":1},{"$f":"IF($D73>6,\"\",IF(P$5<=(VLOOKUP($A73,masterlist!$C$2:$AC$207,27,FALSE)),1,\"\"))","v":1},{"$f":"IF($D73>6,\"\",IF(Q$5<=(VLOOKUP($A73,masterlist!$C$2:$AC$207,27,FALSE)),1,\"\"))","v":1},{"$f":"IF($D73>6,\"\",IF(R$5<=(VLOOKUP($A73,masterlist!$C$2:$AC$207,27,FALSE)),1,\"\"))","v":1},null,null,null,null,0,0,0,0,0,0,0,0,0,0,0,0,1]
[{"$f":"IFERROR(priorit!A73,\"\")","v":"IEC-Pla-5-19"},"IEC",{"$f":"IFERROR(VLOOKUP($A74,masterlist!$C$2:$AA$207,2,FALSE),\"\")","v":"Plaidoyer"},{"$f":"IFERROR(VLOOKUP($A74,masterlist!$C$2:$AA$207,3,FALSE),\"\")","v":5},{"$f":"IFERROR(VLOOKUP($A74,masterlist!$C$2:$AD$207,28,FALSE),\"\")","v":"Déclarer publiquement que l'ensemble du pays est débarrassé de la rage canine transmise par les chiens."},{"$f":"IF($D74>6,\"\",IF(F$5<=(VLOOKUP($A74,masterlist!$C$2:$AC$207,27,FALSE)),1,\"\"))","v":1},{"$f":"IF($D74>6,\"\",IF(G$5<=(VLOOKUP($A74,masterlist!$C$2:$AC$207,27,FALSE)),1,\"\"))","v":1},{"$f":"IF($D74>6,\"\",IF(H$5<=(VLOOKUP($A74,masterlist!$C$2:$AC$207,27,FALSE)),1,\"\"))","v":1},{"$f":"IF($D74>6,\"\",IF(I$5<=(VLOOKUP($A74,masterlist!$C$2:$AC$207,27,FALSE)),1,\"\"))","v":1},{"$f":"IF($D74>6,\"\",IF(J$5<=(VLOOKUP($A74,masterlist!$C$2:$AC$207,27,FALSE)),1,\"\"))","v":1},{"$f":"IF($D74>6,\"\",IF(K$5<=(VLOOKUP($A74,masterlist!$C$2:$AC$207,27,FALSE)),1,\"\"))","v":1},{"$f":"IF($D74>6,\"\",IF(L$5<=(VLOOKUP($A74,masterlist!$C$2:$AC$207,27,FALSE)),1,\"\"))","v":1},{"$f":"IF($D74>6,\"\",IF(M$5<=(VLOOKUP($A74,masterlist!$C$2:$AC$207,27,FALSE)),1,\"\"))","v":1},{"$f":"IF($D74>6,\"\",IF(N$5<=(VLOOKUP($A74,masterlist!$C$2:$AC$207,27,FALSE)),1,\"\"))","v":1},{"$f":"IF($D74>6,\"\",IF(O$5<=(VLOOKUP($A74,masterlist!$C$2:$AC$207,27,FALSE)),1,\"\"))","v":1},{"$f":"IF($D74>6,\"\",IF(P$5<=(VLOOKUP($A74,masterlist!$C$2:$AC$207,27,FALSE)),1,\"\"))","v":1},{"$f":"IF($D74>6,\"\",IF(Q$5<=(VLOOKUP($A74,masterlist!$C$2:$AC$207,27,FALSE)),1,\"\"))","v":1},{"$f":"IF($D74>6,\"\",IF(R$5<=(VLOOKUP($A74,masterlist!$C$2:$AC$207,27,FALSE)),1,\"\"))","v":1},null,null,null,null,0,0,0,0,0,0,0,0,0,0,0,0,1]
[{"$f":"IFERROR(priorit!A74,\"\")","v":"CCI-Cré-0-1"},"CCI",{"$f":"IFERROR(VLOOKUP($A75,masterlist!$C$2:$AA$207,2,FALSE),\"\")","v":"Création d’un groupe de travail intersectoriel sur la rage"},{"$f":"IFERROR(VLOOKUP($A75,masterlist!$C$2:$AA$207,3,FALSE),\"\")","v":0},{"$f":"IFERROR(VLOOKUP($A75,masterlist!$C$2:$AD$207,28,FALSE),\"\")","v":"Informer en permanence les parties prenantes au niveau national des activités programmatiques liées à la rage mises en œuvre dans le pays."},{"$f":"IF($D75>6,\"\",IF(F$5<=(VLOOKUP($A75,masterlist!$C$2:$AC$207,27,FALSE)),1,\"\"))","v":1},{"$f":"IF($D75>6,\"\",IF(G$5<=(VLOOKUP($A75,masterlist!$C$2:$AC$207,27,FALSE)),1,\"\"))","v":""},{"$f":"IF($D75>6,\"\",IF(H$5<=(VLOOKUP($A75,masterlist!$C$2:$AC$207,27,FALSE)),1,\"\"))","v":""},{"$f":"IF($D75>6,\"\",IF(I$5<=(VLOOKUP($A75,masterlist!$C$2:$AC$207,27,FALSE)),1,\"\"))","v":""},{"$f":"IF($D75>6,\"\",IF(J$5<=(VLOOKUP($A75,masterlist!$C$2:$AC$207,27,FALSE)),1,\"\"))","v":""},{"$f":"IF($D75>6,\"\",IF(K$5<=(VLOOKUP($A75,masterlist!$C$2:$AC$207,27,FALSE)),1,\"\"))","v":""},{"$f":"IF($D75>6,\"\",IF(L$5<=(VLOOKUP($A75,masterlist!$C$2:$AC$207,27,FALSE)),1,\"\"))","v":""},{"$f":"IF($D75>6,\"\",IF(M$5<=(VLOOKUP($A75,masterlist!$C$2:$AC$207,27,FALSE)),1,\"\"))","v":""},{"$f":"IF($D75>6,\"\",IF(N$5<=(VLOOKUP($A75,masterlist!$C$2:$AC$207,27,FALSE)),1,\"\"))","v":""},{"$f":"IF($D75>6,\"\",IF(O$5<=(VLOOKUP($A75,masterlist!$C$2:$AC$207,27,FALSE)),1,\"\"))","v":""},{"$f":"IF($D75>6,\"\",IF(P$5<=(VLOOKUP($A75,masterlist!$C$2:$AC$207,27,FALSE)),1,\"\"))","v":""},{"$f":"IF($D75>6,\"\",IF(Q$5<=(VLOOKUP($A75,masterlist!$C$2:$AC$207,27,FALSE)),1,\"\"))","v":""},{"$f":"IF($D75>6,\"\",IF(R$5<=(VLOOKUP($A75,masterlist!$C$2:$AC$207,27,FALSE)),1,\"\"))","v":""},null,null,null,null,1,0,0,0,0,0,0,0,0,0,0,0,0]
[{"$f":"IFERROR(priorit!A75,\"\")","v":"CCI-Cré-1-2"},"CCI",{"$f":"IFERROR(VLOOKUP($A76,masterlist!$C$2:$AA$207,2,FALSE),\"\")","v":"Création d’un groupe de travail intersectoriel sur la rage"},{"$f":"IFERROR(VLOOKUP($A76,masterlist!$C$2:$AA$207,3,FALSE),\"\")","v":1},{"$f":"IFERROR(VLOOKUP($A76,masterlist!$C$2:$AD$207,28,FALSE),\"\")","v":"Identifier et énumérer TOUTES les parties prenantes nationales impliquées dans l'élimination de la rage."},{"$f":"IF($D76>6,\"\",IF(F$5<=(VLOOKUP($A76,masterlist!$C$2:$AC$207,27,FALSE)),1,\"\"))","v":1},{"$f":"IF($D76>6,\"\",IF(G$5<=(VLOOKUP($A76,masterlist!$C$2:$AC$207,27,FALSE)),1,\"\"))","v":""},{"$f":"IF($D76>6,\"\",IF(H$5<=(VLOOKUP($A76,masterlist!$C$2:$AC$207,27,FALSE)),1,\"\"))","v":""},{"$f":"IF($D76>6,\"\",IF(I$5<=(VLOOKUP($A76,masterlist!$C$2:$AC$207,27,FALSE)),1,\"\"))","v":""},{"$f":"IF($D76>6,\"\",IF(J$5<=(VLOOKUP($A76,masterlist!$C$2:$AC$207,27,FALSE)),1,\"\"))","v":""},{"$f":"IF($D76>6,\"\",IF(K$5<=(VLOOKUP($A76,masterlist!$C$2:$AC$207,27,FALSE)),1,\"\"))","v":""},{"$f":"IF($D76>6,\"\",IF(L$5<=(VLOOKUP($A76,masterlist!$C$2:$AC$207,27,FALSE)),1,\"\"))","v":""},{"$f":"IF($D76>6,\"\",IF(M$5<=(VLOOKUP($A76,masterlist!$C$2:$AC$207,27,FALSE)),1,\"\"))","v":""},{"$f":"IF($D76>6,\"\",IF(N$5<=(VLOOKUP($A76,masterlist!$C$2:$AC$207,27,FALSE)),1,\"\"))","v":""},{"$f":"IF($D76>6,\"\",IF(O$5<=(VLOOKUP($A76,masterlist!$C$2:$AC$207,27,FALSE)),1,\"\"))","v":""},{"$f":"IF($D76>6,\"\",IF(P$5<=(VLOOKUP($A76,masterlist!$C$2:$AC$207,27,FALSE)),1,\"\"))","v":""},{"$f":"IF($D76>6,\"\",IF(Q$5<=(VLOOKUP($A76,masterlist!$C$2:$AC$207,27,FALSE)),1,\"\"))","v":""},{"$f":"IF($D76>6,\"\",IF(R$5<=(VLOOKUP($A76,masterlist!$C$2:$AC$207,27,FALSE)),1,\"\"))","v":""},null,null,null,null,1,0,0,0,0,0,0,0,0,0,0,0,0]
[{"$f":"IFERROR(priorit!A76,\"\")","v":"CCI-Cré-1-3"},"CCI",{"$f":"IFERROR(VLOOKUP($A77,masterlist!$C$2:$AA$207,2,FALSE),\"\")","v":"Création d’un groupe de travail intersectoriel sur la rage"},{"$f":"IFERROR(VLOOKUP($A77,masterlist!$C$2:$AA$207,3,FALSE),\"\")","v":1},{"$f":"IFERROR(VLOOKUP($A77,masterlist!$C$2:$AD$207,28,FALSE),\"\")","v":"Veiller à ce que toutes les parties prenantes identifiées au niveau national participent activement à l'élimination de la rage."},{"$f":"IF($D77>6,\"\",IF(F$5<=(VLOOKUP($A77,masterlist!$C$2:$AC$207,27,FALSE)),1,\"\"))","v":1},{"$f":"IF($D77>6,\"\",IF(G$5<=(VLOOKUP($A77,masterlist!$C$2:$AC$207,27,FALSE)),1,\"\"))","v":1},{"$f":"IF($D77>6,\"\",IF(H$5<=(VLOOKUP($A77,masterlist!$C$2:$AC$207,27,FALSE)),1,\"\"))","v":1},{"$f":"IF($D77>6,\"\",IF(I$5<=(VLOOKUP($A77,masterlist!$C$2:$AC$207,27,FALSE)),1,\"\"))","v":""},{"$f":"IF($D77>6,\"\",IF(J$5<=(VLOOKUP($A77,masterlist!$C$2:$AC$207,27,FALSE)),1,\"\"))","v":""},{"$f":"IF($D77>6,\"\",IF(K$5<=(VLOOKUP($A77,masterlist!$C$2:$AC$207,27,FALSE)),1,\"\"))","v":""},{"$f":"IF($D77>6,\"\",IF(L$5<=(VLOOKUP($A77,masterlist!$C$2:$AC$207,27,FALSE)),1,\"\"))","v":""},{"$f":"IF($D77>6,\"\",IF(M$5<=(VLOOKUP($A77,masterlist!$C$2:$AC$207,27,FALSE)),1,\"\"))","v":""},{"$f":"IF($D77>6,\"\",IF(N$5<=(VLOOKUP($A77,masterlist!$C$2:$AC$207,27,FALSE)),1,\"\"))","v":""},{"$f":"IF($D77>6,\"\",IF(O$5<=(VLOOKUP($A77,masterlist!$C$2:$AC$207,27,FALSE)),1,\"\"))","v":""},{"$f":"IF($D77>6,\"\",IF(P$5<=(VLOOKUP($A77,masterlist!$C$2:$AC$207,27,FALSE)),1,\"\"))","v":""},{"$f":"IF($D77>6,\"\",IF(Q$5<=(VLOOKUP($A77,masterlist!$C$2:$AC$207,27,FALSE)),1,\"\"))","v":""},{"$f":"IF($D77>6,\"\",IF(R$5<=(VLOOKUP($A77,masterlist!$C$2:$AC$207,27,FALSE)),1,\"\"))","v":""},null,null,null,null,0,0,1,0,0,0,0,0,0,0,0,0,0]
[{"$f":"IFERROR(priorit!A77,\"\")","v":"CCI-Cré-2-5"},"CCI",{"$f":"IFERROR(VLOOKUP($A78,masterlist!$C$2:$AA$207,2,FALSE),\"\")","v":"Création d’un groupe de travail intersectoriel sur la rage"},{"$f":"IFERROR(VLOOKUP($A78,masterlist!$C$2:$AA$207,3,FALSE),\"\")","v":2},{"$f":"IFERROR(VLOOKUP($A78,masterlist!$C$2:$AD$207,28,FALSE),\"\")","v":"Inclure le secteur privé dans le groupe de travail intersectoriel."},{"$f":"IF($D78>6,\"\",IF(F$5<=(VLOOKUP($A78,masterlist!$C$2:$AC$207,27,FALSE)),1,\"\"))","v":1},{"$f":"IF($D78>6,\"\",IF(G$5<=(VLOOKUP($A78,masterlist!$C$2:$AC$207,27,FALSE)),1,\"\"))","v":1},{"$f":"IF($D78>6,\"\",IF(H$5<=(VLOOKUP($A78,masterlist!$C$2:$AC$207,27,FALSE)),1,\"\"))","v":1},{"$f":"IF($D78>6,\"\",IF(I$5<=(VLOOKUP($A78,masterlist!$C$2:$AC$207,27,FALSE)),1,\"\"))","v":1},{"$f":"IF($D78>6,\"\",IF(J$5<=(VLOOKUP($A78,masterlist!$C$2:$AC$207,27,FALSE)),1,\"\"))","v":""},{"$f":"IF($D78>6,\"\",IF(K$5<=(VLOOKUP($A78,masterlist!$C$2:$AC$207,27,FALSE)),1,\"\"))","v":""},{"$f":"IF($D78>6,\"\",IF(L$5<=(VLOOKUP($A78,masterlist!$C$2:$AC$207,27,FALSE)),1,\"\"))","v":""},{"$f":"IF($D78>6,\"\",IF(M$5<=(VLOOKUP($A78,masterlist!$C$2:$AC$207,27,FALSE)),1,\"\"))","v":""},{"$f":"IF($D78>6,\"\",IF(N$5<=(VLOOKUP($A78,masterlist!$C$2:$AC$207,27,FALSE)),1,\"\"))","v":""},{"$f":"IF($D78>6,\"\",IF(O$5<=(VLOOKUP($A78,masterlist!$C$2:$AC$207,27,FALSE)),1,\"\"))","v":""},{"$f":"IF($D78>6,\"\",IF(P$5<=(VLOOKUP($A78,masterlist!$C$2:$AC$207,27,FALSE)),1,\"\"))","v":""},{"$f":"IF($D78>6,\"\",IF(Q$5<=(VLOOKUP($A78,masterlist!$C$2:$AC$207,27,FALSE)),1,\"\"))","v":""},{"$f":"IF($D78>6,\"\",IF(R$5<=(VLOOKUP($A78,masterlist!$C$2:$AC$207,27,FALSE)),1,\"\"))","v":""},null,null,null,null,0,0,0,1,0,0,0,0,0,0,0,0,0]
[{"$f":"IFERROR(priorit!A78,\"\")","v":"CCI-Pro-2-8"},"CCI",{"$f":"IFERROR(VLOOKUP($A79,masterlist!$C$2:$AA$207,2,FALSE),\"\")","v":"Programme et stratégie nationales"},{"$f":"IFERROR(VLOOKUP($A79,masterlist!$C$2:$AA$207,3,FALSE),\"\")","v":2},{"$f":"IFERROR(VLOOKUP($A79,masterlist!$C$2:$AD$207,28,FALSE),\"\")","v":"Rédiger et finaliser un plan stratégique national pour la rage."},{"$f":"IF($D79>6,\"\",IF(F$5<=(VLOOKUP($A79,masterlist!$C$2:$AC$207,27,FALSE)),1,\"\"))","v":1},{"$f":"IF($D79>6,\"\",IF(G$5<=(VLOOKUP($A79,masterlist!$C$2:$AC$207,27,FALSE)),1,\"\"))","v":1},{"$f":"IF($D79>6,\"\",IF(H$5<=(VLOOKUP($A79,masterlist!$C$2:$AC$207,27,FALSE)),1,\"\"))","v":1},{"$f":"IF($D79>6,\"\",IF(I$5<=(VLOOKUP($A79,masterlist!$C$2:$AC$207,27,FALSE)),1,\"\"))","v":1},{"$f":"IF($D79>6,\"\",IF(J$5<=(VLOOKUP($A79,masterlist!$C$2:$AC$207,27,FALSE)),1,\"\"))","v":""},{"$f":"IF($D79>6,\"\",IF(K$5<=(VLOOKUP($A79,masterlist!$C$2:$AC$207,27,FALSE)),1,\"\"))","v":""},{"$f":"IF($D79>6,\"\",IF(L$5<=(VLOOKUP($A79,masterlist!$C$2:$AC$207,27,FALSE)),1,\"\"))","v":""},{"$f":"IF($D79>6,\"\",IF(M$5<=(VLOOKUP($A79,masterlist!$C$2:$AC$207,27,FALSE)),1,\"\"))","v":""},{"$f":"IF($D79>6,\"\",IF(N$5<=(VLOOKUP($A79,masterlist!$C$2:$AC$207,27,FALSE)),1,\"\"))","v":""},{"$f":"IF($D79>6,\"\",IF(O$5<=(VLOOKUP($A79,masterlist!$C$2:$AC$207,27,FALSE)),1,\"\"))","v":""},{"$f":"IF($D79>6,\"\",IF(P$5<=(VLOOKUP($A79,masterlist!$C$2:$AC$207,27,FALSE)),1,\"\"))","v":""},{"$f":"IF($D79>6,\"\",IF(Q$5<=(VLOOKUP($A79,masterlist!$C$2:$AC$207,27,FALSE)),1,\"\"))","v":""},{"$f":"IF($D79>6,\"\",IF(R$5<=(VLOOKUP($A79,masterlist!$C$2:$AC$207,27,FALSE)),1,\"\"))","v":""},null,null,null,null,0,0,0,1,0,0,0,0,0,0,0,0,0]
[{"$f":"IFERROR(priorit!A79,\"\")","v":"CCI-Pro-2-9"},"CCI",{"$f":"IFERROR(VLOOKUP($A80,masterlist!$C$2:$AA$207,2,FALSE),\"\")","v":"Programme et stratégie nationales"},{"$f":"IFERROR(VLOOKUP($A80,masterlist!$C$2:$AA$207,3,FALSE),\"\")","v":2},{"$f":"IFERROR(VLOOKUP($A80,masterlist!$C$2:$AD$207,28,FALSE),\"\")","v":"Garantir et allouer de manière appropriée les ressources gouvernementales pour soutenir le plan stratégique national de lutte contre la rage."},{"$f":"IF($D80>6,\"\",IF(F$5<=(VLOOKUP($A80,masterlist!$C$2:$AC$207,27,FALSE)),1,\"\"))","v":1},{"$f":"IF($D80>6,\"\",IF(G$5<=(VLOOKUP($A80,masterlist!$C$2:$AC$207,27,FALSE)),1,\"\"))","v":1},{"$f":"IF($D80>6,\"\",IF(H$5<=(VLOOKUP($A80,masterlist!$C$2:$AC$207,27,FALSE)),1,\"\"))","v":1},{"$f":"IF($D80>6,\"\",IF(I$5<=(VLOOKUP($A80,masterlist!$C$2:$AC$207,27,FALSE)),1,\"\"))","v":1},{"$f":"IF($D80>6,\"\",IF(J$5<=(VLOOKUP($A80,masterlist!$C$2:$AC$207,27,FALSE)),1,\"\"))","v":1},{"$f":"IF($D80>6,\"\",IF(K$5<=(VLOOKUP($A80,masterlist!$C$2:$AC$207,27,FALSE)),1,\"\"))","v":1},{"$f":"IF($D80>6,\"\",IF(L$5<=(VLOOKUP($A80,masterlist!$C$2:$AC$207,27,FALSE)),1,\"\"))","v":""},{"$f":"IF($D80>6,\"\",IF(M$5<=(VLOOKUP($A80,masterlist!$C$2:$AC$207,27,FALSE)),1,\"\"))","v":""},{"$f":"IF($D80>6,\"\",IF(N$5<=(VLOOKUP($A80,masterlist!$C$2:$AC$207,27,FALSE)),1,\"\"))","v":""},{"$f":"IF($D80>6,\"\",IF(O$5<=(VLOOKUP($A80,masterlist!$C$2:$AC$207,27,FALSE)),1,\"\"))","v":""},{"$f":"IF($D80>6,\"\",IF(P$5<=(VLOOKUP($A80,masterlist!$C$2:$AC$207,27,FALSE)),1,\"\"))","v":""},{"$f":"IF($D80>6,\"\",IF(Q$5<=(VLOOKUP($A80,masterlist!$C$2:$AC$207,27,FALSE)),1,\"\"))","v":""},{"$f":"IF($D80>6,\"\",IF(R$5<=(VLOOKUP($A80,masterlist!$C$2:$AC$207,27,FALSE)),1,\"\"))","v":""},null,null,null,null,0,0,0,0,0,1,0,0,0,0,0,0,0]
[{"$f":"IFERROR(priorit!A80,\"\")","v":"CCI-Pro-3-10"},"CCI",{"$f":"IFERROR(VLOOKUP($A81,masterlist!$C$2:$AA$207,2,FALSE),\"\")","v":"Programme et stratégie nationales"},{"$f":"IFERROR(VLOOKUP($A81,masterlist!$C$2:$AA$207,3,FALSE),\"\")","v":3},{"$f":"IFERROR(VLOOKUP($A81,masterlist!$C$2:$AD$207,28,FALSE),\"\")","v":"Maintenant qu'il y a très peu de cas de rage animale dans le pays, affiner la stratégie nationale sur la base des données actuelles."},{"$f":"IF($D81>6,\"\",IF(F$5<=(VLOOKUP($A81,masterlist!$C$2:$AC$207,27,FALSE)),1,\"\"))","v":1},{"$f":"IF($D81>6,\"\",IF(G$5<=(VLOOKUP($A81,masterlist!$C$2:$AC$207,27,FALSE)),1,\"\"))","v":1},{"$f":"IF($D81>6,\"\",IF(H$5<=(VLOOKUP($A81,masterlist!$C$2:$AC$207,27,FALSE)),1,\"\"))","v":1},{"$f":"IF($D81>6,\"\",IF(I$5<=(VLOOKUP($A81,masterlist!$C$2:$AC$207,27,FALSE)),1,\"\"))","v":1},{"$f":"IF($D81>6,\"\",IF(J$5<=(VLOOKUP($A81,masterlist!$C$2:$AC$207,27,FALSE)),1,\"\"))","v":1},{"$f":"IF($D81>6,\"\",IF(K$5<=(VLOOKUP($A81,masterlist!$C$2:$AC$207,27,FALSE)),1,\"\"))","v":1},{"$f":"IF($D81>6,\"\",IF(L$5<=(VLOOKUP($A81,masterlist!$C$2:$AC$207,27,FALSE)),1,\"\"))","v":1},{"$f":"IF($D81>6,\"\",IF(M$5<=(VLOOKUP($A81,masterlist!$C$2:$AC$207,27,FALSE)),1,\"\"))","v":1},{"$f":"IF($D81>6,\"\",IF(N$5<=(VLOOKUP($A81,masterlist!$C$2:$AC$207,27,FALSE)),1,\"\"))","v":1},{"$f":"IF($D81>6,\"\",IF(O$5<=(VLOOKUP($A81,masterlist!$C$2:$AC$207,27,FALSE)),1,\"\"))","v":""},{"$f":"IF($D81>6,\"\",IF(P$5<=(VLOOKUP($A81,masterlist!$C$2:$AC$207,27,FALSE)),1,\"\"))","v":""},{"$f":"IF($D81>6,\"\",IF(Q$5<=(VLOOKUP($A81,masterlist!$C$2:$AC$207,27,FALSE)),1,\"\"))","v":""},{"$f":"IF($D81>6,\"\",IF(R$5<=(VLOOKUP($A81,masterlist!$C$2:$AC$207,27,FALSE)),1,\"\"))","v":""},null,null,null,null,0,0,0,0,0,0,0,0,1,0,0,0,0]
[{"$f":"IFERROR(priorit!A81,\"\")","v":"LEG-Cad-2-10"},"LEG",{"$f":"IFERROR(VLOOKUP($A82,masterlist!$C$2:$AA$207,2,FALSE),\"\")","v":"Cadre légal"},{"$f":"IFERROR(VLOOKUP($A82,masterlist!$C$2:$AA$207,3,FALSE),\"\")","v":2},{"$f":"IFERROR(VLOOKUP($A82,masterlist!$C$2:$AD$207,28,FALSE),\"\")","v":"Adapter la législation relative aux vaccins homologués au niveau national pour tenir compte des lignes directrices internationales."},{"$f":"IF($D82>6,\"\",IF(F$5<=(VLOOKUP($A82,masterlist!$C$2:$AC$207,27,FALSE)),1,\"\"))","v":1},{"$f":"IF($D82>6,\"\",IF(G$5<=(VLOOKUP($A82,masterlist!$C$2:$AC$207,27,FALSE)),1,\"\"))","v":1},{"$f":"IF($D82>6,\"\",IF(H$5<=(VLOOKUP($A82,masterlist!$C$2:$AC$207,27,FALSE)),1,\"\"))","v":1},{"$f":"IF($D82>6,\"\",IF(I$5<=(VLOOKUP($A82,masterlist!$C$2:$AC$207,27,FALSE)),1,\"\"))","v":1},{"$f":"IF($D82>6,\"\",IF(J$5<=(VLOOKUP($A82,masterlist!$C$2:$AC$207,27,FALSE)),1,\"\"))","v":1},{"$f":"IF($D82>6,\"\",IF(K$5<=(VLOOKUP($A82,masterlist!$C$2:$AC$207,27,FALSE)),1,\"\"))","v":1},{"$f":"IF($D82>6,\"\",IF(L$5<=(VLOOKUP($A82,masterlist!$C$2:$AC$207,27,FALSE)),1,\"\"))","v":1},{"$f":"IF($D82>6,\"\",IF(M$5<=(VLOOKUP($A82,masterlist!$C$2:$AC$207,27,FALSE)),1,\"\"))","v":1},{"$f":"IF($D82>6,\"\",IF(N$5<=(VLOOKUP($A82,masterlist!$C$2:$AC$207,27,FALSE)),1,\"\"))","v":1},{"$f":"IF($D82>6,\"\",IF(O$5<=(VLOOKUP($A82,masterlist!$C$2:$AC$207,27,FALSE)),1,\"\"))","v":1},{"$f":"IF($D82>6,\"\",IF(P$5<=(VLOOKUP($A82,masterlist!$C$2:$AC$207,27,FALSE)),1,\"\"))","v":1},{"$f":"IF($D82>6,\"\",IF(Q$5<=(VLOOKUP($A82,masterlist!$C$2:$AC$207,27,FALSE)),1,\"\"))","v":1},{"$f":"IF($D82>6,\"\",IF(R$5<=(VLOOKUP($A82,masterlist!$C$2:$AC$207,27,FALSE)),1,\"\"))","v":1},null,null,null,null,0,0,0,0,0,0,0,0,0,0,0,0,1]
[{"$f":"IFERROR(priorit!A82,\"\")","v":""},"",{"$f":"IFERROR(VLOOKUP($A83,masterlist!$C$2:$AA$207,2,FALSE),\"\")","v":""},{"$f":"IFERROR(VLOOKUP($A83,masterlist!$C$2:$AA$207,3,FALSE),\"\")","v":""},{"$f":"IFERROR(VLOOKUP($A83,masterlist!$C$2:$AD$207,28,FALSE),\"\")","v":""},{"$f":"IF($D83>6,\"\",IF(F$5<=(VLOOKUP($A83,masterlist!$C$2:$AC$207,27,FALSE)),1,\"\"))","v":""},{"$f":"IF($D83>6,\"\",IF(G$5<=(VLOOKUP($A83,masterlist!$C$2:$AC$207,27,FALSE)),1,\"\"))","v":""},{"$f":"IF($D83>6,\"\",IF(H$5<=(VLOOKUP($A83,masterlist!$C$2:$AC$207,27,FALSE)),1,\"\"))","v":""},{"$f":"IF($D83>6,\"\",IF(I$5<=(VLOOKUP($A83,masterlist!$C$2:$AC$207,27,FALSE)),1,\"\"))","v":""},{"$f":"IF($D83>6,\"\",IF(J$5<=(VLOOKUP($A83,masterlist!$C$2:$AC$207,27,FALSE)),1,\"\"))","v":""},{"$f":"IF($D83>6,\"\",IF(K$5<=(VLOOKUP($A83,masterlist!$C$2:$AC$207,27,FALSE)),1,\"\"))","v":""},{"$f":"IF($D83>6,\"\",IF(L$5<=(VLOOKUP($A83,masterlist!$C$2:$AC$207,27,FALSE)),1,\"\"))","v":""},{"$f":"IF($D83>6,\"\",IF(M$5<=(VLOOKUP($A83,masterlist!$C$2:$AC$207,27,FALSE)),1,\"\"))","v":""},{"$f":"IF($D83>6,\"\",IF(N$5<=(VLOOKUP($A83,masterlist!$C$2:$AC$207,27,FALSE)),1,\"\"))","v":""},{"$f":"IF($D83>6,\"\",IF(O$5<=(VLOOKUP($A83,masterlist!$C$2:$AC$207,27,FALSE)),1,\"\"))","v":""},{"$f":"IF($D83>6,\"\",IF(P$5<=(VLOOKUP($A83,masterlist!$C$2:$AC$207,27,FALSE)),1,\"\"))","v":""},{"$f":"IF($D83>6,\"\",IF(Q$5<=(VLOOKUP($A83,masterlist!$C$2:$AC$207,27,FALSE)),1,\"\"))","v":""},{"$f":"IF($D83>6,\"\",IF(R$5<=(VLOOKUP($A83,masterlist!$C$2:$AC$207,27,FALSE)),1,\"\"))","v":""},null,null,null,null,0,0,0,0,0,0,0,0,0,0,0,0,0]
[{"$f":"IFERROR(priorit!A83,\"\")","v":""},"",{"$f":"IFERROR(VLOOKUP($A84,masterlist!$C$2:$AA$207,2,FALSE),\"\")","v":""},{"$f":"IFERROR(VLOOKUP($A84,masterlist!$C$2:$AA$207,3,FALSE),\"\")","v":""},{"$f":"IFERROR(VLOOKUP($A84,masterlist!$C$2:$AD$207,28,FALSE),\"\")","v":""},{"$f":"IF($D84>6,\"\",IF(F$5<=(VLOOKUP($A84,masterlist!$C$2:$AC$207,27,FALSE)),1,\"\"))","v":""},{"$f":"IF($D84>6,\"\",IF(G$5<=(VLOOKUP($A84,masterlist!$C$2:$AC$207,27,FALSE)),1,\"\"))","v":""},{"$f":"IF($D84>6,\"\",IF(H$5<=(VLOOKUP($A84,masterlist!$C$2:$AC$207,27,FALSE)),1,\"\"))","v":""},{"$f":"IF($D84>6,\"\",IF(I$5<=(VLOOKUP($A84,masterlist!$C$2:$AC$207,27,FALSE)),1,\"\"))","v":""},{"$f":"IF($D84>6,\"\",IF(J$5<=(VLOOKUP($A84,masterlist!$C$2:$AC$207,27,FALSE)),1,\"\"))","v":""},{"$f":"IF($D84>6,\"\",IF(K$5<=(VLOOKUP($A84,masterlist!$C$2:$AC$207,27,FALSE)),1,\"\"))","v":""},{"$f":"IF($D84>6,\"\",IF(L$5<=(VLOOKUP($A84,masterlist!$C$2:$AC$207,27,FALSE)),1,\"\"))","v":""},{"$f":"IF($D84>6,\"\",IF(M$5<=(VLOOKUP($A84,masterlist!$C$2:$AC$207,27,FALSE)),1,\"\"))","v":""},{"$f":"IF($D84>6,\"\",IF(N$5<=(VLOOKUP($A84,masterlist!$C$2:$AC$207,27,FALSE)),1,\"\"))","v":""},{"$f":"IF($D84>6,\"\",IF(O$5<=(VLOOKUP($A84,masterlist!$C$2:$AC$207,27,FALSE)),1,\"\"))","v":""},{"$f":"IF($D84>6,\"\",IF(P$5<=(VLOOKUP($A84,masterlist!$C$2:$AC$207,27,FALSE)),1,\"\"))","v":""},{"$f":"IF($D84>6,\"\",IF(Q$5<=(VLOOKUP($A84,masterlist!$C$2:$AC$207,27,FALSE)),1,\"\"))","v":""},{"$f":"IF($D84>6,\"\",IF(R$5<=(VLOOKUP($A84,masterlist!$C$2:$AC$207,27,FALSE)),1,\"\"))","v":""},null,null,null,null,0,0,0,0,0,0,0,0,0,0,0,0,0]
[{"$f":"IFERROR(priorit!A84,\"\")","v":""},"",{"$f":"IFERROR(VLOOKUP($A85,masterlist!$C$2:$AA$207,2,FALSE),\"\")","v":""},{"$f":"IFERROR(VLOOKUP($A85,masterlist!$C$2:$AA$207,3,FALSE),\"\")","v":""},{"$f":"IFERROR(VLOOKUP($A85,masterlist!$C$2:$AD$207,28,FALSE),\"\")","v":""},{"$f":"IF($D85>6,\"\",IF(F$5<=(VLOOKUP($A85,masterlist!$C$2:$AC$207,27,FALSE)),1,\"\"))","v":""},{"$f":"IF($D85>6,\"\",IF(G$5<=(VLOOKUP($A85,masterlist!$C$2:$AC$207,27,FALSE)),1,\"\"))","v":""},{"$f":"IF($D85>6,\"\",IF(H$5<=(VLOOKUP($A85,masterlist!$C$2:$AC$207,27,FALSE)),1,\"\"))","v":""},{"$f":"IF($D85>6,\"\",IF(I$5<=(VLOOKUP($A85,masterlist!$C$2:$AC$207,27,FALSE)),1,\"\"))","v":""},{"$f":"IF($D85>6,\"\",IF(J$5<=(VLOOKUP($A85,masterlist!$C$2:$AC$207,27,FALSE)),1,\"\"))","v":""},{"$f":"IF($D85>6,\"\",IF(K$5<=(VLOOKUP($A85,masterlist!$C$2:$AC$207,27,FALSE)),1,\"\"))","v":""},{"$f":"IF($D85>6,\"\",IF(L$5<=(VLOOKUP($A85,masterlist!$C$2:$AC$207,27,FALSE)),1,\"\"))","v":""},{"$f":"IF($D85>6,\"\",IF(M$5<=(VLOOKUP($A85,masterlist!$C$2:$AC$207,27,FALSE)),1,\"\"))","v":""},{"$f":"IF($D85>6,\"\",IF(N$5<=(VLOOKUP($A85,masterlist!$C$2:$AC$207,27,FALSE)),1,\"\"))","v":""},{"$f":"IF($D85>6,\"\",IF(O$5<=(VLOOKUP($A85,masterlist!$C$2:$AC$207,27,FALSE)),1,\"\"))","v":""},{"$f":"IF($D85>6,\"\",IF(P$5<=(VLOOKUP($A85,masterlist!$C$2:$AC$207,27,FALSE)),1,\"\"))","v":""},{"$f":"IF($D85>6,\"\",IF(Q$5<=(VLOOKUP($A85,masterlist!$C$2:$AC$207,27,FALSE)),1,\"\"))","v":""},{"$f":"IF($D85>6,\"\",IF(R$5<=(VLOOKUP($A85,masterlist!$C$2:$AC$207,27,FALSE)),1,\"\"))","v":""},null,null,null,null,0,0,0,0,0,0,0,0,0,0,0,0,0]
[{"$f":"IFERROR(priorit!A85,\"\")","v":""},"",{"$f":"IFERROR(VLOOKUP($A86,masterlist!$C$2:$AA$207,2,FALSE),\"\")","v":""},{"$f":"IFERROR(VLOOKUP($A86,masterlist!$C$2:$AA$207,3,FALSE),\"\")","v":""},{"$f":"IFERROR(VLOOKUP($A86,masterlist!$C$2:$AD$207,28,FALSE),\"\")","v":""},{"$f":"IF($D86>6,\"\",IF(F$5<=(VLOOKUP($A86,masterlist!$C$2:$AC$207,27,FALSE)),1,\"\"))","v":""},{"$f":"IF($D86>6,\"\",IF(G$5<=(VLOOKUP($A86,masterlist!$C$2:$AC$207,27,FALSE)),1,\"\"))","v":""},{"$f":"IF($D86>6,\"\",IF(H$5<=(VLOOKUP($A86,masterlist!$C$2:$AC$207,27,FALSE)),1,\"\"))","v":""},{"$f":"IF($D86>6,\"\",IF(I$5<=(VLOOKUP($A86,masterlist!$C$2:$AC$207,27,FALSE)),1,\"\"))","v":""},{"$f":"IF($D86>6,\"\",IF(J$5<=(VLOOKUP($A86,masterlist!$C$2:$AC$207,27,FALSE)),1,\"\"))","v":""},{"$f":"IF($D86>6,\"\",IF(K$5<=(VLOOKUP($A86,masterlist!$C$2:$AC$207,27,FALSE)),1,\"\"))","v":""},{"$f":"IF($D86>6,\"\",IF(L$5<=(VLOOKUP($A86,masterlist!$C$2:$AC$207,27,FALSE)),1,\"\"))","v":""},{"$f":"IF($D86>6,\"\",IF(M$5<=(VLOOKUP($A86,masterlist!$C$2:$AC$207,27,FALSE)),1,\"\"))","v":""},{"$f":"IF($D86>6,\"\",IF(N$5<=(VLOOKUP($A86,masterlist!$C$2:$AC$207,27,FALSE)),1,\"\"))","v":""},{"$f":"IF($D86>6,\"\",IF(O$5<=(VLOOKUP($A86,masterlist!$C$2:$AC$207,27,FALSE)),1,\"\"))","v":""},{"$f":"IF($D86>6,\"\",IF(P$5<=(VLOOKUP($A86,masterlist!$C$2:$AC$207,27,FALSE)),1,\"\"))","v":""},{"$f":"IF($D86>6,\"\",IF(Q$5<=(VLOOKUP($A86,masterlist!$C$2:$AC$207,27,FALSE)),1,\"\"))","v":""},{"$f":"IF($D86>6,\"\",IF(R$5<=(VLOOKUP($A86,masterlist!$C$2:$AC$207,27,FALSE)),1,\"\"))","v":""},null,null,null,null,0,0,0,0,0,0,0,0,0,0,0,0,0]
[{"$f":"IFERROR(priorit!A86,\"\")","v":""},"",{"$f":"IFERROR(VLOOKUP($A87,masterlist!$C$2:$AA$207,2,FALSE),\"\")","v":""},{"$f":"IFERROR(VLOOKUP($A87,masterlist!$C$2:$AA$207,3,FALSE),\"\")","v":""},{"$f":"IFERROR(VLOOKUP($A87,masterlist!$C$2:$AD$207,28,FALSE),\"\")","v":""},{"$f":"IF($D87>6,\"\",IF(F$5<=(VLOOKUP($A87,masterlist!$C$2:$AC$207,27,FALSE)),1,\"\"))","v":""},{"$f":"IF($D87>6,\"\",IF(G$5<=(VLOOKUP($A87,masterlist!$C$2:$AC$207,27,FALSE)),1,\"\"))","v":""},{"$f":"IF($D87>6,\"\",IF(H$5<=(VLOOKUP($A87,masterlist!$C$2:$AC$207,27,FALSE)),1,\"\"))","v":""},{"$f":"IF($D87>6,\"\",IF(I$5<=(VLOOKUP($A87,masterlist!$C$2:$AC$207,27,FALSE)),1,\"\"))","v":""},{"$f":"IF($D87>6,\"\",IF(J$5<=(VLOOKUP($A87,masterlist!$C$2:$AC$207,27,FALSE)),1,\"\"))","v":""},{"$f":"IF($D87>6,\"\",IF(K$5<=(VLOOKUP($A87,masterlist!$C$2:$AC$207,27,FALSE)),1,\"\"))","v":""},{"$f":"IF($D87>6,\"\",IF(L$5<=(VLOOKUP($A87,masterlist!$C$2:$AC$207,27,FALSE)),1,\"\"))","v":""},{"$f":"IF($D87>6,\"\",IF(M$5<=(VLOOKUP($A87,masterlist!$C$2:$AC$207,27,FALSE)),1,\"\"))","v":""},{"$f":"IF($D87>6,\"\",IF(N$5<=(VLOOKUP($A87,masterlist!$C$2:$AC$207,27,FALSE)),1,\"\"))","v":""},{"$f":"IF($D87>6,\"\",IF(O$5<=(VLOOKUP($A87,masterlist!$C$2:$AC$207,27,FALSE)),1,\"\"))","v":""},{"$f":"IF($D87>6,\"\",IF(P$5<=(VLOOKUP($A87,masterlist!$C$2:$AC$207,27,FALSE)),1,\"\"))","v":""},{"$f":"IF($D87>6,\"\",IF(Q$5<=(VLOOKUP($A87,masterlist!$C$2:$AC$207,27,FALSE)),1,\"\"))","v":""},{"$f":"IF($D87>6,\"\",IF(R$5<=(VLOOKUP($A87,masterlist!$C$2:$AC$207,27,FALSE)),1,\"\"))","v":""},null,null,null,null,0,0,0,0,0,0,0,0,0,0,0,0,0]
[{"$f":"IFERROR(priorit!A87,\"\")","v":""},"",{"$f":"IFERROR(VLOOKUP($A88,masterlist!$C$2:$AA$207,2,FALSE),\"\")","v":""},{"$f":"IFERROR(VLOOKUP($A88,masterlist!$C$2:$AA$207,3,FALSE),\"\")","v":""},{"$f":"IFERROR(VLOOKUP($A88,masterlist!$C$2:$AD$207,28,FALSE),\"\")","v":""},{"$f":"IF($D88>6,\"\",IF(F$5<=(VLOOKUP($A88,masterlist!$C$2:$AC$207,27,FALSE)),1,\"\"))","v":""},{"$f":"IF($D88>6,\"\",IF(G$5<=(VLOOKUP($A88,masterlist!$C$2:$AC$207,27,FALSE)),1,\"\"))","v":""},{"$f":"IF($D88>6,\"\",IF(H$5<=(VLOOKUP($A88,masterlist!$C$2:$AC$207,27,FALSE)),1,\"\"))","v":""},{"$f":"IF($D88>6,\"\",IF(I$5<=(VLOOKUP($A88,masterlist!$C$2:$AC$207,27,FALSE)),1,\"\"))","v":""},{"$f":"IF($D88>6,\"\",IF(J$5<=(VLOOKUP($A88,masterlist!$C$2:$AC$207,27,FALSE)),1,\"\"))","v":""},{"$f":"IF($D88>6,\"\",IF(K$5<=(VLOOKUP($A88,masterlist!$C$2:$AC$207,27,FALSE)),1,\"\"))","v":""},{"$f":"IF($D88>6,\"\",IF(L$5<=(VLOOKUP($A88,masterlist!$C$2:$AC$207,27,FALSE)),1,\"\"))","v":""},{"$f":"IF($D88>6,\"\",IF(M$5<=(VLOOKUP($A88,masterlist!$C$2:$AC$207,27,FALSE)),1,\"\"))","v":""},{"$f":"IF($D88>6,\"\",IF(N$5<=(VLOOKUP($A88,masterlist!$C$2:$AC$207,27,FALSE)),1,\"\"))","v":""},{"$f":"IF($D88>6,\"\",IF(O$5<=(VLOOKUP($A88,masterlist!$C$2:$AC$207,27,FALSE)),1,\"\"))","v":""},{"$f":"IF($D88>6,\"\",IF(P$5<=(VLOOKUP($A88,masterlist!$C$2:$AC$207,27,FALSE)),1,\"\"))","v":""},{"$f":"IF($D88>6,\"\",IF(Q$5<=(VLOOKUP($A88,masterlist!$C$2:$AC$207,27,FALSE)),1,\"\"))","v":""},{"$f":"IF($D88>6,\"\",IF(R$5<=(VLOOKUP($A88,masterlist!$C$2:$AC$207,27,FALSE)),1,\"\"))","v":""},null,null,null,null,0,0,0,0,0,0,0,0,0,0,0,0,0]
[{"$f":"IFERROR(priorit!A88,\"\")","v":""},"",{"$f":"IFERROR(VLOOKUP($A89,masterlist!$C$2:$AA$207,2,FALSE),\"\")","v":""},{"$f":"IFERROR(VLOOKUP($A89,masterlist!$C$2:$AA$207,3,FALSE),\"\")","v":""},{"$f":"IFERROR(VLOOKUP($A89,masterlist!$C$2:$AD$207,28,FALSE),\"\")","v":""},{"$f":"IF($D89>6,\"\",IF(F$5<=(VLOOKUP($A89,masterlist!$C$2:$AC$207,27,FALSE)),1,\"\"))","v":""},{"$f":"IF($D89>6,\"\",IF(G$5<=(VLOOKUP($A89,masterlist!$C$2:$AC$207,27,FALSE)),1,\"\"))","v":""},{"$f":"IF($D89>6,\"\",IF(H$5<=(VLOOKUP($A89,masterlist!$C$2:$AC$207,27,FALSE)),1,\"\"))","v":""},{"$f":"IF($D89>6,\"\",IF(I$5<=(VLOOKUP($A89,masterlist!$C$2:$AC$207,27,FALSE)),1,\"\"))","v":""},{"$f":"IF($D89>6,\"\",IF(J$5<=(VLOOKUP($A89,masterlist!$C$2:$AC$207,27,FALSE)),1,\"\"))","v":""},{"$f":"IF($D89>6,\"\",IF(K$5<=(VLOOKUP($A89,masterlist!$C$2:$AC$207,27,FALSE)),1,\"\"))","v":""},{"$f":"IF($D89>6,\"\",IF(L$5<=(VLOOKUP($A89,masterlist!$C$2:$AC$207,27,FALSE)),1,\"\"))","v":""},{"$f":"IF($D89>6,\"\",IF(M$5<=(VLOOKUP($A89,masterlist!$C$2:$AC$207,27,FALSE)),1,\"\"))","v":""},{"$f":"IF($D89>6,\"\",IF(N$5<=(VLOOKUP($A89,masterlist!$C$2:$AC$207,27,FALSE)),1,\"\"))","v":""},{"$f":"IF($D89>6,\"\",IF(O$5<=(VLOOKUP($A89,masterlist!$C$2:$AC$207,27,FALSE)),1,\"\"))","v":""},{"$f":"IF($D89>6,\"\",IF(P$5<=(VLOOKUP($A89,masterlist!$C$2:$AC$207,27,FALSE)),1,\"\"))","v":""},{"$f":"IF($D89>6,\"\",IF(Q$5<=(VLOOKUP($A89,masterlist!$C$2:$AC$207,27,FALSE)),1,\"\"))","v":""},{"$f":"IF($D89>6,\"\",IF(R$5<=(VLOOKUP($A89,masterlist!$C$2:$AC$207,27,FALSE)),1,\"\"))","v":""},null,null,null,null,0,0,0,0,0,0,0,0,0,0,0,0,0]
[{"$f":"IFERROR(priorit!A89,\"\")","v":""},"",{"$f":"IFERROR(VLOOKUP($A90,masterlist!$C$2:$AA$207,2,FALSE),\"\")","v":""},{"$f":"IFERROR(VLOOKUP($A90,masterlist!$C$2:$AA$207,3,FALSE),\"\")","v":""},{"$f":"IFERROR(VLOOKUP($A90,masterlist!$C$2:$AD$207,28,FALSE),\"\")","v":""},{"$f":"IF($D90>6,\"\",IF(F$5<=(VLOOKUP($A90,masterlist!$C$2:$AC$207,27,FALSE)),1,\"\"))","v":""},{"$f":"IF($D90>6,\"\",IF(G$5<=(VLOOKUP($A90,masterlist!$C$2:$AC$207,27,FALSE)),1,\"\"))","v":""},{"$f":"IF($D90>6,\"\",IF(H$5<=(VLOOKUP($A90,masterlist!$C$2:$AC$207,27,FALSE)),1,\"\"))","v":""},{"$f":"IF($D90>6,\"\",IF(I$5<=(VLOOKUP($A90,masterlist!$C$2:$AC$207,27,FALSE)),1,\"\"))","v":""},{"$f":"IF($D90>6,\"\",IF(J$5<=(VLOOKUP($A90,masterlist!$C$2:$AC$207,27,FALSE)),1,\"\"))","v":""},{"$f":"IF($D90>6,\"\",IF(K$5<=(VLOOKUP($A90,masterlist!$C$2:$AC$207,27,FALSE)),1,\"\"))","v":""},{"$f":"IF($D90>6,\"\",IF(L$5<=(VLOOKUP($A90,masterlist!$C$2:$AC$207,27,FALSE)),1,\"\"))","v":""},{"$f":"IF($D90>6,\"\",IF(M$5<=(VLOOKUP($A90,masterlist!$C$2:$AC$207,27,FALSE)),1,\"\"))","v":""},{"$f":"IF($D90>6,\"\",IF(N$5<=(VLOOKUP($A90,masterlist!$C$2:$AC$207,27,FALSE)),1,\"\"))","v":""},{"$f":"IF($D90>6,\"\",IF(O$5<=(VLOOKUP($A90,masterlist!$C$2:$AC$207,27,FALSE)),1,\"\"))","v":""},{"$f":"IF($D90>6,\"\",IF(P$5<=(VLOOKUP($A90,masterlist!$C$2:$AC$207,27,FALSE)),1,\"\"))","v":""},{"$f":"IF($D90>6,\"\",IF(Q$5<=(VLOOKUP($A90,masterlist!$C$2:$AC$207,27,FALSE)),1,\"\"))","v":""},{"$f":"IF($D90>6,\"\",IF(R$5<=(VLOOKUP($A90,masterlist!$C$2:$AC$207,27,FALSE)),1,\"\"))","v":""},null,null,null,null,0,0,0,0,0,0,0,0,0,0,0,0,0]
[{"$f":"IFERROR(priorit!A90,\"\")","v":""},"",{"$f":"IFERROR(VLOOKUP($A91,masterlist!$C$2:$AA$207,2,FALSE),\"\")","v":""},{"$f":"IFERROR(VLOOKUP($A91,masterlist!$C$2:$AA$207,3,FALSE),\"\")","v":""},{"$f":"IFERROR(VLOOKUP($A91,masterlist!$C$2:$AD$207,28,FALSE),\"\")","v":""},{"$f":"IF($D91>6,\"\",IF(F$5<=(VLOOKUP($A91,masterlist!$C$2:$AC$207,27,FALSE)),1,\"\"))","v":""},{"$f":"IF($D91>6,\"\",IF(G$5<=(VLOOKUP($A91,masterlist!$C$2:$AC$207,27,FALSE)),1,\"\"))","v":""},{"$f":"IF($D91>6,\"\",IF(H$5<=(VLOOKUP($A91,masterlist!$C$2:$AC$207,27,FALSE)),1,\"\"))","v":""},{"$f":"IF($D91>6,\"\",IF(I$5<=(VLOOKUP($A91,masterlist!$C$2:$AC$207,27,FALSE)),1,\"\"))","v":""},{"$f":"IF($D91>6,\"\",IF(J$5<=(VLOOKUP($A91,masterlist!$C$2:$AC$207,27,FALSE)),1,\"\"))","v":""},{"$f":"IF($D91>6,\"\",IF(K$5<=(VLOOKUP($A91,masterlist!$C$2:$AC$207,27,FALSE)),1,\"\"))","v":""},{"$f":"IF($D91>6,\"\",IF(L$5<=(VLOOKUP($A91,masterlist!$C$2:$AC$207,27,FALSE)),1,\"\"))","v":""},{"$f":"IF($D91>6,\"\",IF(M$5<=(VLOOKUP($A91,masterlist!$C$2:$AC$207,27,FALSE)),1,\"\"))","v":""},{"$f":"IF($D91>6,\"\",IF(N$5<=(VLOOKUP($A91,masterlist!$C$2:$AC$207,27,FALSE)),1,\"\"))","v":""},{"$f":"IF($D91>6,\"\",IF(O$5<=(VLOOKUP($A91,masterlist!$C$2:$AC$207,27,FALSE)),1,\"\"))","v":""},{"$f":"IF($D91>6,\"\",IF(P$5<=(VLOOKUP($A91,masterlist!$C$2:$AC$207,27,FALSE)),1,\"\"))","v":""},{"$f":"IF($D91>6,\"\",IF(Q$5<=(VLOOKUP($A91,masterlist!$C$2:$AC$207,27,FALSE)),1,\"\"))","v":""},{"$f":"IF($D91>6,\"\",IF(R$5<=(VLOOKUP($A91,masterlist!$C$2:$AC$207,27,FALSE)),1,\"\"))","v":""},null,null,null,null,0,0,0,0,0,0,0,0,0,0,0,0,0]
[{"$f":"IFERROR(priorit!A91,\"\")","v":""},"",{"$f":"IFERROR(VLOOKUP($A92,masterlist!$C$2:$AA$207,2,FALSE),\"\")","v":""},{"$f":"IFERROR(VLOOKUP($A92,masterlist!$C$2:$AA$207,3,FALSE),\"\")","v":""},{"$f":"IFERROR(VLOOKUP($A92,masterlist!$C$2:$AD$207,28,FALSE),\"\")","v":""},{"$f":"IF($D92>6,\"\",IF(F$5<=(VLOOKUP($A92,masterlist!$C$2:$AC$207,27,FALSE)),1,\"\"))","v":""},{"$f":"IF($D92>6,\"\",IF(G$5<=(VLOOKUP($A92,masterlist!$C$2:$AC$207,27,FALSE)),1,\"\"))","v":""},{"$f":"IF($D92>6,\"\",IF(H$5<=(VLOOKUP($A92,masterlist!$C$2:$AC$207,27,FALSE)),1,\"\"))","v":""},{"$f":"IF($D92>6,\"\",IF(I$5<=(VLOOKUP($A92,masterlist!$C$2:$AC$207,27,FALSE)),1,\"\"))","v":""},{"$f":"IF($D92>6,\"\",IF(J$5<=(VLOOKUP($A92,masterlist!$C$2:$AC$207,27,FALSE)),1,\"\"))","v":""},{"$f":"IF($D92>6,\"\",IF(K$5<=(VLOOKUP($A92,masterlist!$C$2:$AC$207,27,FALSE)),1,\"\"))","v":""},{"$f":"IF($D92>6,\"\",IF(L$5<=(VLOOKUP($A92,masterlist!$C$2:$AC$207,27,FALSE)),1,\"\"))","v":""},{"$f":"IF($D92>6,\"\",IF(M$5<=(VLOOKUP($A92,masterlist!$C$2:$AC$207,27,FALSE)),1,\"\"))","v":""},{"$f":"IF($D92>6,\"\",IF(N$5<=(VLOOKUP($A92,masterlist!$C$2:$AC$207,27,FALSE)),1,\"\"))","v":""},{"$f":"IF($D92>6,\"\",IF(O$5<=(VLOOKUP($A92,masterlist!$C$2:$AC$207,27,FALSE)),1,\"\"))","v":""},{"$f":"IF($D92>6,\"\",IF(P$5<=(VLOOKUP($A92,masterlist!$C$2:$AC$207,27,FALSE)),1,\"\"))","v":""},{"$f":"IF($D92>6,\"\",IF(Q$5<=(VLOOKUP($A92,masterlist!$C$2:$AC$207,27,FALSE)),1,\"\"))","v":""},{"$f":"IF($D92>6,\"\",IF(R$5<=(VLOOKUP($A92,masterlist!$C$2:$AC$207,27,FALSE)),1,\"\"))","v":""},null,null,null,null,0,0,0,0,0,0,0,0,0,0,0,0,0]
[{"$f":"IFERROR(priorit!A92,\"\")","v":""},"",{"$f":"IFERROR(VLOOKUP($A93,masterlist!$C$2:$AA$207,2,FALSE),\"\")","v":""},{"$f":"IFERROR(VLOOKUP($A93,masterlist!$C$2:$AA$207,3,FALSE),\"\")","v":""},{"$f":"IFERROR(VLOOKUP($A93,masterlist!$C$2:$AD$207,28,FALSE),\"\")","v":""},{"$f":"IF($D93>6,\"\",IF(F$5<=(VLOOKUP($A93,masterlist!$C$2:$AC$207,27,FALSE)),1,\"\"))","v":""},{"$f":"IF($D93>6,\"\",IF(G$5<=(VLOOKUP($A93,masterlist!$C$2:$AC$207,27,FALSE)),1,\"\"))","v":""},{"$f":"IF($D93>6,\"\",IF(H$5<=(VLOOKUP($A93,masterlist!$C$2:$AC$207,27,FALSE)),1,\"\"))","v":""},{"$f":"IF($D93>6,\"\",IF(I$5<=(VLOOKUP($A93,masterlist!$C$2:$AC$207,27,FALSE)),1,\"\"))","v":""},{"$f":"IF($D93>6,\"\",IF(J$5<=(VLOOKUP($A93,masterlist!$C$2:$AC$207,27,FALSE)),1,\"\"))","v":""},{"$f":"IF($D93>6,\"\",IF(K$5<=(VLOOKUP($A93,masterlist!$C$2:$AC$207,27,FALSE)),1,\"\"))","v":""},{"$f":"IF($D93>6,\"\",IF(L$5<=(VLOOKUP($A93,masterlist!$C$2:$AC$207,27,FALSE)),1,\"\"))","v":""},{"$f":"IF($D93>6,\"\",IF(M$5<=(VLOOKUP($A93,masterlist!$C$2:$AC$207,27,FALSE)),1,\"\"))","v":""},{"$f":"IF($D93>6,\"\",IF(N$5<=(VLOOKUP($A93,masterlist!$C$2:$AC$207,27,FALSE)),1,\"\"))","v":""},{"$f":"IF($D93>6,\"\",IF(O$5<=(VLOOKUP($A93,masterlist!$C$2:$AC$207,27,FALSE)),1,\"\"))","v":""},{"$f":"IF($D93>6,\"\",IF(P$5<=(VLOOKUP($A93,masterlist!$C$2:$AC$207,27,FALSE)),1,\"\"))","v":""},{"$f":"IF($D93>6,\"\",IF(Q$5<=(VLOOKUP($A93,masterlist!$C$2:$AC$207,27,FALSE)),1,\"\"))","v":""},{"$f":"IF($D93>6,\"\",IF(R$5<=(VLOOKUP($A93,masterlist!$C$2:$AC$207,27,FALSE)),1,\"\"))","v":""},null,null,null,null,0,0,0,0,0,0,0,0,0,0,0,0,0]
[{"$f":"IFERROR(priorit!A93,\"\")","v":""},"",{"$f":"IFERROR(VLOOKUP($A94,masterlist!$C$2:$AA$207,2,FALSE),\"\")","v":""},{"$f":"IFERROR(VLOOKUP($A94,masterlist!$C$2:$AA$207,3,FALSE),\"\")","v":""},{"$f":"IFERROR(VLOOKUP($A94,masterlist!$C$2:$AD$207,28,FALSE),\"\")","v":""},{"$f":"IF($D94>6,\"\",IF(F$5<=(VLOOKUP($A94,masterlist!$C$2:$AC$207,27,FALSE)),1,\"\"))","v":""},{"$f":"IF($D94>6,\"\",IF(G$5<=(VLOOKUP($A94,masterlist!$C$2:$AC$207,27,FALSE)),1,\"\"))","v":""},{"$f":"IF($D94>6,\"\",IF(H$5<=(VLOOKUP($A94,masterlist!$C$2:$AC$207,27,FALSE)),1,\"\"))","v":""},{"$f":"IF($D94>6,\"\",IF(I$5<=(VLOOKUP($A94,masterlist!$C$2:$AC$207,27,FALSE)),1,\"\"))","v":""},{"$f":"IF($D94>6,\"\",IF(J$5<=(VLOOKUP($A94,masterlist!$C$2:$AC$207,27,FALSE)),1,\"\"))","v":""},{"$f":"IF($D94>6,\"\",IF(K$5<=(VLOOKUP($A94,masterlist!$C$2:$AC$207,27,FALSE)),1,\"\"))","v":""},{"$f":"IF($D94>6,\"\",IF(L$5<=(VLOOKUP($A94,masterlist!$C$2:$AC$207,27,FALSE)),1,\"\"))","v":""},{"$f":"IF($D94>6,\"\",IF(M$5<=(VLOOKUP($A94,masterlist!$C$2:$AC$207,27,FALSE)),1,\"\"))","v":""},{"$f":"IF($D94>6,\"\",IF(N$5<=(VLOOKUP($A94,masterlist!$C$2:$AC$207,27,FALSE)),1,\"\"))","v":""},{"$f":"IF($D94>6,\"\",IF(O$5<=(VLOOKUP($A94,masterlist!$C$2:$AC$207,27,FALSE)),1,\"\"))","v":""},{"$f":"IF($D94>6,\"\",IF(P$5<=(VLOOKUP($A94,masterlist!$C$2:$AC$207,27,FALSE)),1,\"\"))","v":""},{"$f":"IF($D94>6,\"\",IF(Q$5<=(VLOOKUP($A94,masterlist!$C$2:$AC$207,27,FALSE)),1,\"\"))","v":""},{"$f":"IF($D94>6,\"\",IF(R$5<=(VLOOKUP($A94,masterlist!$C$2:$AC$207,27,FALSE)),1,\"\"))","v":""},null,null,null,null,0,0,0,0,0,0,0,0,0,0,0,0,0]
[{"$f":"IFERROR(priorit!A94,\"\")","v":""},"",{"$f":"IFERROR(VLOOKUP($A95,masterlist!$C$2:$AA$207,2,FALSE),\"\")","v":""},{"$f":"IFERROR(VLOOKUP($A95,masterlist!$C$2:$AA$207,3,FALSE),\"\")","v":""},{"$f":"IFERROR(VLOOKUP($A95,masterlist!$C$2:$AD$207,28,FALSE),\"\")","v":""},{"$f":"IF($D95>6,\"\",IF(F$5<=(VLOOKUP($A95,masterlist!$C$2:$AC$207,27,FALSE)),1,\"\"))","v":""},{"$f":"IF($D95>6,\"\",IF(G$5<=(VLOOKUP($A95,masterlist!$C$2:$AC$207,27,FALSE)),1,\"\"))","v":""},{"$f":"IF($D95>6,\"\",IF(H$5<=(VLOOKUP($A95,masterlist!$C$2:$AC$207,27,FALSE)),1,\"\"))","v":""},{"$f":"IF($D95>6,\"\",IF(I$5<=(VLOOKUP($A95,masterlist!$C$2:$AC$207,27,FALSE)),1,\"\"))","v":""},{"$f":"IF($D95>6,\"\",IF(J$5<=(VLOOKUP($A95,masterlist!$C$2:$AC$207,27,FALSE)),1,\"\"))","v":""},{"$f":"IF($D95>6,\"\",IF(K$5<=(VLOOKUP($A95,masterlist!$C$2:$AC$207,27,FALSE)),1,\"\"))","v":""},{"$f":"IF($D95>6,\"\",IF(L$5<=(VLOOKUP($A95,masterlist!$C$2:$AC$207,27,FALSE)),1,\"\"))","v":""},{"$f":"IF($D95>6,\"\",IF(M$5<=(VLOOKUP($A95,masterlist!$C$2:$AC$207,27,FALSE)),1,\"\"))","v":""},{"$f":"IF($D95>6,\"\",IF(N$5<=(VLOOKUP($A95,masterlist!$C$2:$AC$207,27,FALSE)),1,\"\"))","v":""},{"$f":"IF($D95>6,\"\",IF(O$5<=(VLOOKUP($A95,masterlist!$C$2:$AC$207,27,FALSE)),1,\"\"))","v":""},{"$f":"IF($D95>6,\"\",IF(P$5<=(VLOOKUP($A95,masterlist!$C$2:$AC$207,27,FALSE)),1,\"\"))","v":""},{"$f":"IF($D95>6,\"\",IF(Q$5<=(VLOOKUP($A95,masterlist!$C$2:$AC$207,27,FALSE)),1,\"\"))","v":""},{"$f":"IF($D95>6,\"\",IF(R$5<=(VLOOKUP($A95,masterlist!$C$2:$AC$207,27,FALSE)),1,\"\"))","v":""},null,null,null,null,0,0,0,0,0,0,0,0,0,0,0,0,0]
[{"$f":"IFERROR(priorit!A95,\"\")","v":""},"",{"$f":"IFERROR(VLOOKUP($A96,masterlist!$C$2:$AA$207,2,FALSE),\"\")","v":""},{"$f":"IFERROR(VLOOKUP($A96,masterlist!$C$2:$AA$207,3,FALSE),\"\")","v":""},{"$f":"IFERROR(VLOOKUP($A96,masterlist!$C$2:$AD$207,28,FALSE),\"\")","v":""},{"$f":"IF($D96>6,\"\",IF(F$5<=(VLOOKUP($A96,masterlist!$C$2:$AC$207,27,FALSE)),1,\"\"))","v":""},{"$f":"IF($D96>6,\"\",IF(G$5<=(VLOOKUP($A96,masterlist!$C$2:$AC$207,27,FALSE)),1,\"\"))","v":""},{"$f":"IF($D96>6,\"\",IF(H$5<=(VLOOKUP($A96,masterlist!$C$2:$AC$207,27,FALSE)),1,\"\"))","v":""},{"$f":"IF($D96>6,\"\",IF(I$5<=(VLOOKUP($A96,masterlist!$C$2:$AC$207,27,FALSE)),1,\"\"))","v":""},{"$f":"IF($D96>6,\"\",IF(J$5<=(VLOOKUP($A96,masterlist!$C$2:$AC$207,27,FALSE)),1,\"\"))","v":""},{"$f":"IF($D96>6,\"\",IF(K$5<=(VLOOKUP($A96,masterlist!$C$2:$AC$207,27,FALSE)),1,\"\"))","v":""},{"$f":"IF($D96>6,\"\",IF(L$5<=(VLOOKUP($A96,masterlist!$C$2:$AC$207,27,FALSE)),1,\"\"))","v":""},{"$f":"IF($D96>6,\"\",IF(M$5<=(VLOOKUP($A96,masterlist!$C$2:$AC$207,27,FALSE)),1,\"\"))","v":""},{"$f":"IF($D96>6,\"\",IF(N$5<=(VLOOKUP($A96,masterlist!$C$2:$AC$207,27,FALSE)),1,\"\"))","v":""},{"$f":"IF($D96>6,\"\",IF(O$5<=(VLOOKUP($A96,masterlist!$C$2:$AC$207,27,FALSE)),1,\"\"))","v":""},{"$f":"IF($D96>6,\"\",IF(P$5<=(VLOOKUP($A96,masterlist!$C$2:$AC$207,27,FALSE)),1,\"\"))","v":""},{"$f":"IF($D96>6,\"\",IF(Q$5<=(VLOOKUP($A96,masterlist!$C$2:$AC$207,27,FALSE)),1,\"\"))","v":""},{"$f":"IF($D96>6,\"\",IF(R$5<=(VLOOKUP($A96,masterlist!$C$2:$AC$207,27,FALSE)),1,\"\"))","v":""},null,null,null,null,0,0,0,0,0,0,0,0,0,0,0,0,0]
[{"$f":"IFERROR(priorit!A96,\"\")","v":""},"",{"$f":"IFERROR(VLOOKUP($A97,masterlist!$C$2:$AA$207,2,FALSE),\"\")","v":""},{"$f":"IFERROR(VLOOKUP($A97,masterlist!$C$2:$AA$207,3,FALSE),\"\")","v":""},{"$f":"IFERROR(VLOOKUP($A97,masterlist!$C$2:$AD$207,28,FALSE),\"\")","v":""},{"$f":"IF($D97>6,\"\",IF(F$5<=(VLOOKUP($A97,masterlist!$C$2:$AC$207,27,FALSE)),1,\"\"))","v":""},{"$f":"IF($D97>6,\"\",IF(G$5<=(VLOOKUP($A97,masterlist!$C$2:$AC$207,27,FALSE)),1,\"\"))","v":""},{"$f":"IF($D97>6,\"\",IF(H$5<=(VLOOKUP($A97,masterlist!$C$2:$AC$207,27,FALSE)),1,\"\"))","v":""},{"$f":"IF($D97>6,\"\",IF(I$5<=(VLOOKUP($A97,masterlist!$C$2:$AC$207,27,FALSE)),1,\"\"))","v":""},{"$f":"IF($D97>6,\"\",IF(J$5<=(VLOOKUP($A97,masterlist!$C$2:$AC$207,27,FALSE)),1,\"\"))","v":""},{"$f":"IF($D97>6,\"\",IF(K$5<=(VLOOKUP($A97,masterlist!$C$2:$AC$207,27,FALSE)),1,\"\"))","v":""},{"$f":"IF($D97>6,\"\",IF(L$5<=(VLOOKUP($A97,masterlist!$C$2:$AC$207,27,FALSE)),1,\"\"))","v":""},{"$f":"IF($D97>6,\"\",IF(M$5<=(VLOOKUP($A97,masterlist!$C$2:$AC$207,27,FALSE)),1,\"\"))","v":""},{"$f":"IF($D97>6,\"\",IF(N$5<=(VLOOKUP($A97,masterlist!$C$2:$AC$207,27,FALSE)),1,\"\"))","v":""},{"$f":"IF($D97>6,\"\",IF(O$5<=(VLOOKUP($A97,masterlist!$C$2:$AC$207,27,FALSE)),1,\"\"))","v":""},{"$f":"IF($D97>6,\"\",IF(P$5<=(VLOOKUP($A97,masterlist!$C$2:$AC$207,27,FALSE)),1,\"\"))","v":""},{"$f":"IF($D97>6,\"\",IF(Q$5<=(VLOOKUP($A97,masterlist!$C$2:$AC$207,27,FALSE)),1,\"\"))","v":""},{"$f":"IF($D97>6,\"\",IF(R$5<=(VLOOKUP($A97,masterlist!$C$2:$AC$207,27,FALSE)),1,\"\"))","v":""},null,null,null,null,0,0,0,0,0,0,0,0,0,0,0,0,0]
[{"$f":"IFERROR(priorit!A97,\"\")","v":""},"",{"$f":"IFERROR(VLOOKUP($A98,masterlist!$C$2:$AA$207,2,FALSE),\"\")","v":""},{"$f":"IFERROR(VLOOKUP($A98,masterlist!$C$2:$AA$207,3,FALSE),\"\")","v":""},{"$f":"IFERROR(VLOOKUP($A98,masterlist!$C$2:$AD$207,28,FALSE),\"\")","v":""},{"$f":"IF($D98>6,\"\",IF(F$5<=(VLOOKUP($A98,masterlist!$C$2:$AC$207,27,FALSE)),1,\"\"))","v":""},{"$f":"IF($D98>6,\"\",IF(G$5<=(VLOOKUP($A98,masterlist!$C$2:$AC$207,27,FALSE)),1,\"\"))","v":""},{"$f":"IF($D98>6,\"\",IF(H$5<=(VLOOKUP($A98,masterlist!$C$2:$AC$207,27,FALSE)),1,\"\"))","v":""},{"$f":"IF($D98>6,\"\",IF(I$5<=(VLOOKUP($A98,masterlist!$C$2:$AC$207,27,FALSE)),1,\"\"))","v":""},{"$f":"IF($D98>6,\"\",IF(J$5<=(VLOOKUP($A98,masterlist!$C$2:$AC$207,27,FALSE)),1,\"\"))","v":""},{"$f":"IF($D98>6,\"\",IF(K$5<=(VLOOKUP($A98,masterlist!$C$2:$AC$207,27,FALSE)),1,\"\"))","v":""},{"$f":"IF($D98>6,\"\",IF(L$5<=(VLOOKUP($A98,masterlist!$C$2:$AC$207,27,FALSE)),1,\"\"))","v":""},{"$f":"IF($D98>6,\"\",IF(M$5<=(VLOOKUP($A98,masterlist!$C$2:$AC$207,27,FALSE)),1,\"\"))","v":""},{"$f":"IF($D98>6,\"\",IF(N$5<=(VLOOKUP($A98,masterlist!$C$2:$AC$207,27,FALSE)),1,\"\"))","v":""},{"$f":"IF($D98>6,\"\",IF(O$5<=(VLOOKUP($A98,masterlist!$C$2:$AC$207,27,FALSE)),1,\"\"))","v":""},{"$f":"IF($D98>6,\"\",IF(P$5<=(VLOOKUP($A98,masterlist!$C$2:$AC$207,27,FALSE)),1,\"\"))","v":""},{"$f":"IF($D98>6,\"\",IF(Q$5<=(VLOOKUP($A98,masterlist!$C$2:$AC$207,27,FALSE)),1,\"\"))","v":""},{"$f":"IF($D98>6,\"\",IF(R$5<=(VLOOKUP($A98,masterlist!$C$2:$AC$207,27,FALSE)),1,\"\"))","v":""},null,null,null,null,0,0,0,0,0,0,0,0,0,0,0,0,0]
[{"$f":"IFERROR(priorit!A98,\"\")","v":""},"",{"$f":"IFERROR(VLOOKUP($A99,masterlist!$C$2:$AA$207,2,FALSE),\"\")","v":""},{"$f":"IFERROR(VLOOKUP($A99,masterlist!$C$2:$AA$207,3,FALSE),\"\")","v":""},{"$f":"IFERROR(VLOOKUP($A99,masterlist!$C$2:$AD$207,28,FALSE),\"\")","v":""},{"$f":"IF($D99>6,\"\",IF(F$5<=(VLOOKUP($A99,masterlist!$C$2:$AC$207,27,FALSE)),1,\"\"))","v":""},{"$f":"IF($D99>6,\"\",IF(G$5<=(VLOOKUP($A99,masterlist!$C$2:$AC$207,27,FALSE)),1,\"\"))","v":""},{"$f":"IF($D99>6,\"\",IF(H$5<=(VLOOKUP($A99,masterlist!$C$2:$AC$207,27,FALSE)),1,\"\"))","v":""},{"$f":"IF($D99>6,\"\",IF(I$5<=(VLOOKUP($A99,masterlist!$C$2:$AC$207,27,FALSE)),1,\"\"))","v":""},{"$f":"IF($D99>6,\"\",IF(J$5<=(VLOOKUP($A99,masterlist!$C$2:$AC$207,27,FALSE)),1,\"\"))","v":""},{"$f":"IF($D99>6,\"\",IF(K$5<=(VLOOKUP($A99,masterlist!$C$2:$AC$207,27,FALSE)),1,\"\"))","v":""},{"$f":"IF($D99>6,\"\",IF(L$5<=(VLOOKUP($A99,masterlist!$C$2:$AC$207,27,FALSE)),1,\"\"))","v":""},{"$f":"IF($D99>6,\"\",IF(M$5<=(VLOOKUP($A99,masterlist!$C$2:$AC$207,27,FALSE)),1,\"\"))","v":""},{"$f":"IF($D99>6,\"\",IF(N$5<=(VLOOKUP($A99,masterlist!$C$2:$AC$207,27,FALSE)),1,\"\"))","v":""},{"$f":"IF($D99>6,\"\",IF(O$5<=(VLOOKUP($A99,masterlist!$C$2:$AC$207,27,FALSE)),1,\"\"))","v":""},{"$f":"IF($D99>6,\"\",IF(P$5<=(VLOOKUP($A99,masterlist!$C$2:$AC$207,27,FALSE)),1,\"\"))","v":""},{"$f":"IF($D99>6,\"\",IF(Q$5<=(VLOOKUP($A99,masterlist!$C$2:$AC$207,27,FALSE)),1,\"\"))","v":""},{"$f":"IF($D99>6,\"\",IF(R$5<=(VLOOKUP($A99,masterlist!$C$2:$AC$207,27,FALSE)),1,\"\"))","v":""},null,null,null,null,0,0,0,0,0,0,0,0,0,0,0,0,0]
[{"$f":"IFERROR(priorit!A99,\"\")","v":""},"",{"$f":"IFERROR(VLOOKUP($A100,masterlist!$C$2:$AA$207,2,FALSE),\"\")","v":""},{"$f":"IFERROR(VLOOKUP($A100,masterlist!$C$2:$AA$207,3,FALSE),\"\")","v":""},{"$f":"IFERROR(VLOOKUP($A100,masterlist!$C$2:$AD$207,28,FALSE),\"\")","v":""},{"$f":"IF($D100>6,\"\",IF(F$5<=(VLOOKUP($A100,masterlist!$C$2:$AC$207,27,FALSE)),1,\"\"))","v":""},{"$f":"IF($D100>6,\"\",IF(G$5<=(VLOOKUP($A100,masterlist!$C$2:$AC$207,27,FALSE)),1,\"\"))","v":""},{"$f":"IF($D100>6,\"\",IF(H$5<=(VLOOKUP($A100,masterlist!$C$2:$AC$207,27,FALSE)),1,\"\"))","v":""},{"$f":"IF($D100>6,\"\",IF(I$5<=(VLOOKUP($A100,masterlist!$C$2:$AC$207,27,FALSE)),1,\"\"))","v":""},{"$f":"IF($D100>6,\"\",IF(J$5<=(VLOOKUP($A100,masterlist!$C$2:$AC$207,27,FALSE)),1,\"\"))","v":""},{"$f":"IF($D100>6,\"\",IF(K$5<=(VLOOKUP($A100,masterlist!$C$2:$AC$207,27,FALSE)),1,\"\"))","v":""},{"$f":"IF($D100>6,\"\",IF(L$5<=(VLOOKUP($A100,masterlist!$C$2:$AC$207,27,FALSE)),1,\"\"))","v":""},{"$f":"IF($D100>6,\"\",IF(M$5<=(VLOOKUP($A100,masterlist!$C$2:$AC$207,27,FALSE)),1,\"\"))","v":""},{"$f":"IF($D100>6,\"\",IF(N$5<=(VLOOKUP($A100,masterlist!$C$2:$AC$207,27,FALSE)),1,\"\"))","v":""},{"$f":"IF($D100>6,\"\",IF(O$5<=(VLOOKUP($A100,masterlist!$C$2:$AC$207,27,FALSE)),1,\"\"))","v":""},{"$f":"IF($D100>6,\"\",IF(P$5<=(VLOOKUP($A100,masterlist!$C$2:$AC$207,27,FALSE)),1,\"\"))","v":""},{"$f":"IF($D100>6,\"\",IF(Q$5<=(VLOOKUP($A100,masterlist!$C$2:$AC$207,27,FALSE)),1,\"\"))","v":""},{"$f":"IF($D100>6,\"\",IF(R$5<=(VLOOKUP($A100,masterlist!$C$2:$AC$207,27,FALSE)),1,\"\"))","v":""},null,null,null,null,0,0,0,0,0,0,0,0,0,0,0,0,0]
[{"$f":"IFERROR(priorit!A100,\"\")","v":""},"",{"$f":"IFERROR(VLOOKUP($A101,masterlist!$C$2:$AA$207,2,FALSE),\"\")","v":""},{"$f":"IFERROR(VLOOKUP($A101,masterlist!$C$2:$AA$207,3,FALSE),\"\")","v":""},{"$f":"IFERROR(VLOOKUP($A101,masterlist!$C$2:$AD$207,28,FALSE),\"\")","v":""},{"$f":"IF($D101>6,\"\",IF(F$5<=(VLOOKUP($A101,masterlist!$C$2:$AC$207,27,FALSE)),1,\"\"))","v":""},{"$f":"IF($D101>6,\"\",IF(G$5<=(VLOOKUP($A101,masterlist!$C$2:$AC$207,27,FALSE)),1,\"\"))","v":""},{"$f":"IF($D101>6,\"\",IF(H$5<=(VLOOKUP($A101,masterlist!$C$2:$AC$207,27,FALSE)),1,\"\"))","v":""},{"$f":"IF($D101>6,\"\",IF(I$5<=(VLOOKUP($A101,masterlist!$C$2:$AC$207,27,FALSE)),1,\"\"))","v":""},{"$f":"IF($D101>6,\"\",IF(J$5<=(VLOOKUP($A101,masterlist!$C$2:$AC$207,27,FALSE)),1,\"\"))","v":""},{"$f":"IF($D101>6,\"\",IF(K$5<=(VLOOKUP($A101,masterlist!$C$2:$AC$207,27,FALSE)),1,\"\"))","v":""},{"$f":"IF($D101>6,\"\",IF(L$5<=(VLOOKUP($A101,masterlist!$C$2:$AC$207,27,FALSE)),1,\"\"))","v":""},{"$f":"IF($D101>6,\"\",IF(M$5<=(VLOOKUP($A101,masterlist!$C$2:$AC$207,27,FALSE)),1,\"\"))","v":""},{"$f":"IF($D101>6,\"\",IF(N$5<=(VLOOKUP($A101,masterlist!$C$2:$AC$207,27,FALSE)),1,\"\"))","v":""},{"$f":"IF($D101>6,\"\",IF(O$5<=(VLOOKUP($A101,masterlist!$C$2:$AC$207,27,FALSE)),1,\"\"))","v":""},{"$f":"IF($D101>6,\"\",IF(P$5<=(VLOOKUP($A101,masterlist!$C$2:$AC$207,27,FALSE)),1,\"\"))","v":""},{"$f":"IF($D101>6,\"\",IF(Q$5<=(VLOOKUP($A101,masterlist!$C$2:$AC$207,27,FALSE)),1,\"\"))","v":""},{"$f":"IF($D101>6,\"\",IF(R$5<=(VLOOKUP($A101,masterlist!$C$2:$AC$207,27,FALSE)),1,\"\"))","v":""},null,null,null,null,0,0,0,0,0,0,0,0,0,0,0,0,0]
[{"$f":"IFERROR(priorit!A101,\"\")","v":""},"",{"$f":"IFERROR(VLOOKUP($A102,masterlist!$C$2:$AA$207,2,FALSE),\"\")","v":""},{"$f":"IFERROR(VLOOKUP($A102,masterlist!$C$2:$AA$207,3,FALSE),\"\")","v":""},{"$f":"IFERROR(VLOOKUP($A102,masterlist!$C$2:$AD$207,28,FALSE),\"\")","v":""},{"$f":"IF($D102>6,\"\",IF(F$5<=(VLOOKUP($A102,masterlist!$C$2:$AC$207,27,FALSE)),1,\"\"))","v":""},{"$f":"IF($D102>6,\"\",IF(G$5<=(VLOOKUP($A102,masterlist!$C$2:$AC$207,27,FALSE)),1,\"\"))","v":""},{"$f":"IF($D102>6,\"\",IF(H$5<=(VLOOKUP($A102,masterlist!$C$2:$AC$207,27,FALSE)),1,\"\"))","v":""},{"$f":"IF($D102>6,\"\",IF(I$5<=(VLOOKUP($A102,masterlist!$C$2:$AC$207,27,FALSE)),1,\"\"))","v":""},{"$f":"IF($D102>6,\"\",IF(J$5<=(VLOOKUP($A102,masterlist!$C$2:$AC$207,27,FALSE)),1,\"\"))","v":""},{"$f":"IF($D102>6,\"\",IF(K$5<=(VLOOKUP($A102,masterlist!$C$2:$AC$207,27,FALSE)),1,\"\"))","v":""},{"$f":"IF($D102>6,\"\",IF(L$5<=(VLOOKUP($A102,masterlist!$C$2:$AC$207,27,FALSE)),1,\"\"))","v":""},{"$f":"IF($D102>6,\"\",IF(M$5<=(VLOOKUP($A102,masterlist!$C$2:$AC$207,27,FALSE)),1,\"\"))","v":""},{"$f":"IF($D102>6,\"\",IF(N$5<=(VLOOKUP($A102,masterlist!$C$2:$AC$207,27,FALSE)),1,\"\"))","v":""},{"$f":"IF($D102>6,\"\",IF(O$5<=(VLOOKUP($A102,masterlist!$C$2:$AC$207,27,FALSE)),1,\"\"))","v":""},{"$f":"IF($D102>6,\"\",IF(P$5<=(VLOOKUP($A102,masterlist!$C$2:$AC$207,27,FALSE)),1,\"\"))","v":""},{"$f":"IF($D102>6,\"\",IF(Q$5<=(VLOOKUP($A102,masterlist!$C$2:$AC$207,27,FALSE)),1,\"\"))","v":""},{"$f":"IF($D102>6,\"\",IF(R$5<=(VLOOKUP($A102,masterlist!$C$2:$AC$207,27,FALSE)),1,\"\"))","v":""},null,null,null,null,0,0,0,0,0,0,0,0,0,0,0,0,0]
[{"$f":"IFERROR(priorit!A102,\"\")","v":""},"",{"$f":"IFERROR(VLOOKUP($A103,masterlist!$C$2:$AA$207,2,FALSE),\"\")","v":""},{"$f":"IFERROR(VLOOKUP($A103,masterlist!$C$2:$AA$207,3,FALSE),\"\")","v":""},{"$f":"IFERROR(VLOOKUP($A103,masterlist!$C$2:$AD$207,28,FALSE),\"\")","v":""},{"$f":"IF($D103>6,\"\",IF(F$5<=(VLOOKUP($A103,masterlist!$C$2:$AC$207,27,FALSE)),1,\"\"))","v":""},{"$f":"IF($D103>6,\"\",IF(G$5<=(VLOOKUP($A103,masterlist!$C$2:$AC$207,27,FALSE)),1,\"\"))","v":""},{"$f":"IF($D103>6,\"\",IF(H$5<=(VLOOKUP($A103,masterlist!$C$2:$AC$207,27,FALSE)),1,\"\"))","v":""},{"$f":"IF($D103>6,\"\",IF(I$5<=(VLOOKUP($A103,masterlist!$C$2:$AC$207,27,FALSE)),1,\"\"))","v":""},{"$f":"IF($D103>6,\"\",IF(J$5<=(VLOOKUP($A103,masterlist!$C$2:$AC$207,27,FALSE)),1,\"\"))","v":""},{"$f":"IF($D103>6,\"\",IF(K$5<=(VLOOKUP($A103,masterlist!$C$2:$AC$207,27,FALSE)),1,\"\"))","v":""},{"$f":"IF($D103>6,\"\",IF(L$5<=(VLOOKUP($A103,masterlist!$C$2:$AC$207,27,FALSE)),1,\"\"))","v":""},{"$f":"IF($D103>6,\"\",IF(M$5<=(VLOOKUP($A103,masterlist!$C$2:$AC$207,27,FALSE)),1,\"\"))","v":""},{"$f":"IF($D103>6,\"\",IF(N$5<=(VLOOKUP($A103,masterlist!$C$2:$AC$207,27,FALSE)),1,\"\"))","v":""},{"$f":"IF($D103>6,\"\",IF(O$5<=(VLOOKUP($A103,masterlist!$C$2:$AC$207,27,FALSE)),1,\"\"))","v":""},{"$f":"IF($D103>6,\"\",IF(P$5<=(VLOOKUP($A103,masterlist!$C$2:$AC$207,27,FALSE)),1,\"\"))","v":""},{"$f":"IF($D103>6,\"\",IF(Q$5<=(VLOOKUP($A103,masterlist!$C$2:$AC$207,27,FALSE)),1,\"\"))","v":""},{"$f":"IF($D103>6,\"\",IF(R$5<=(VLOOKUP($A103,masterlist!$C$2:$AC$207,27,FALSE)),1,\"\"))","v":""},null,null,null,null,0,0,0,0,0,0,0,0,0,0,0,0,0]
[{"$f":"IFERROR(priorit!A103,\"\")","v":""},"",{"$f":"IFERROR(VLOOKUP($A104,masterlist!$C$2:$AA$207,2,FALSE),\"\")","v":""},{"$f":"IFERROR(VLOOKUP($A104,masterlist!$C$2:$AA$207,3,FALSE),\"\")","v":""},{"$f":"IFERROR(VLOOKUP($A104,masterlist!$C$2:$AD$207,28,FALSE),\"\")","v":""},{"$f":"IF($D104>6,\"\",IF(F$5<=(VLOOKUP($A104,masterlist!$C$2:$AC$207,27,FALSE)),1,\"\"))","v":""},{"$f":"IF($D104>6,\"\",IF(G$5<=(VLOOKUP($A104,masterlist!$C$2:$AC$207,27,FALSE)),1,\"\"))","v":""},{"$f":"IF($D104>6,\"\",IF(H$5<=(VLOOKUP($A104,masterlist!$C$2:$AC$207,27,FALSE)),1,\"\"))","v":""},{"$f":"IF($D104>6,\"\",IF(I$5<=(VLOOKUP($A104,masterlist!$C$2:$AC$207,27,FALSE)),1,\"\"))","v":""},{"$f":"IF($D104>6,\"\",IF(J$5<=(VLOOKUP($A104,masterlist!$C$2:$AC$207,27,FALSE)),1,\"\"))","v":""},{"$f":"IF($D104>6,\"\",IF(K$5<=(VLOOKUP($A104,masterlist!$C$2:$AC$207,27,FALSE)),1,\"\"))","v":""},{"$f":"IF($D104>6,\"\",IF(L$5<=(VLOOKUP($A104,masterlist!$C$2:$AC$207,27,FALSE)),1,\"\"))","v":""},{"$f":"IF($D104>6,\"\",IF(M$5<=(VLOOKUP($A104,masterlist!$C$2:$AC$207,27,FALSE)),1,\"\"))","v":""},{"$f":"IF($D104>6,\"\",IF(N$5<=(VLOOKUP($A104,masterlist!$C$2:$AC$207,27,FALSE)),1,\"\"))","v":""},{"$f":"IF($D104>6,\"\",IF(O$5<=(VLOOKUP($A104,masterlist!$C$2:$AC$207,27,FALSE)),1,\"\"))","v":""},{"$f":"IF($D104>6,\"\",IF(P$5<=(VLOOKUP($A104,masterlist!$C$2:$AC$207,27,FALSE)),1,\"\"))","v":""},{"$f":"IF($D104>6,\"\",IF(Q$5<=(VLOOKUP($A104,masterlist!$C$2:$AC$207,27,FALSE)),1,\"\"))","v":""},{"$f":"IF($D104>6,\"\",IF(R$5<=(VLOOKUP($A104,masterlist!$C$2:$AC$207,27,FALSE)),1,\"\"))","v":""},null,null,null,null,0,0,0,0,0,0,0,0,0,0,0,0,0]
[{"$f":"IFERROR(priorit!A104,\"\")","v":""},"",{"$f":"IFERROR(VLOOKUP($A105,masterlist!$C$2:$AA$207,2,FALSE),\"\")","v":""},{"$f":"IFERROR(VLOOKUP($A105,masterlist!$C$2:$AA$207,3,FALSE),\"\")","v":""},{"$f":"IFERROR(VLOOKUP($A105,masterlist!$C$2:$AD$207,28,FALSE),\"\")","v":""},{"$f":"IF($D105>6,\"\",IF(F$5<=(VLOOKUP($A105,masterlist!$C$2:$AC$207,27,FALSE)),1,\"\"))","v":""},{"$f":"IF($D105>6,\"\",IF(G$5<=(VLOOKUP($A105,masterlist!$C$2:$AC$207,27,FALSE)),1,\"\"))","v":""},{"$f":"IF($D105>6,\"\",IF(H$5<=(VLOOKUP($A105,masterlist!$C$2:$AC$207,27,FALSE)),1,\"\"))","v":""},{"$f":"IF($D105>6,\"\",IF(I$5<=(VLOOKUP($A105,masterlist!$C$2:$AC$207,27,FALSE)),1,\"\"))","v":""},{"$f":"IF($D105>6,\"\",IF(J$5<=(VLOOKUP($A105,masterlist!$C$2:$AC$207,27,FALSE)),1,\"\"))","v":""},{"$f":"IF($D105>6,\"\",IF(K$5<=(VLOOKUP($A105,masterlist!$C$2:$AC$207,27,FALSE)),1,\"\"))","v":""},{"$f":"IF($D105>6,\"\",IF(L$5<=(VLOOKUP($A105,masterlist!$C$2:$AC$207,27,FALSE)),1,\"\"))","v":""},{"$f":"IF($D105>6,\"\",IF(M$5<=(VLOOKUP($A105,masterlist!$C$2:$AC$207,27,FALSE)),1,\"\"))","v":""},{"$f":"IF($D105>6,\"\",IF(N$5<=(VLOOKUP($A105,masterlist!$C$2:$AC$207,27,FALSE)),1,\"\"))","v":""},{"$f":"IF($D105>6,\"\",IF(O$5<=(VLOOKUP($A105,masterlist!$C$2:$AC$207,27,FALSE)),1,\"\"))","v":""},{"$f":"IF($D105>6,\"\",IF(P$5<=(VLOOKUP($A105,masterlist!$C$2:$AC$207,27,FALSE)),1,\"\"))","v":""},{"$f":"IF($D105>6,\"\",IF(Q$5<=(VLOOKUP($A105,masterlist!$C$2:$AC$207,27,FALSE)),1,\"\"))","v":""},{"$f":"IF($D105>6,\"\",IF(R$5<=(VLOOKUP($A105,masterlist!$C$2:$AC$207,27,FALSE)),1,\"\"))","v":""},null,null,null,null,0,0,0,0,0,0,0,0,0,0,0,0,0]
[{"$f":"IFERROR(priorit!A105,\"\")","v":""},"",{"$f":"IFERROR(VLOOKUP($A106,masterlist!$C$2:$AA$207,2,FALSE),\"\")","v":""},{"$f":"IFERROR(VLOOKUP($A106,masterlist!$C$2:$AA$207,3,FALSE),\"\")","v":""},{"$f":"IFERROR(VLOOKUP($A106,masterlist!$C$2:$AD$207,28,FALSE),\"\")","v":""},{"$f":"IF($D106>6,\"\",IF(F$5<=(VLOOKUP($A106,masterlist!$C$2:$AC$207,27,FALSE)),1,\"\"))","v":""},{"$f":"IF($D106>6,\"\",IF(G$5<=(VLOOKUP($A106,masterlist!$C$2:$AC$207,27,FALSE)),1,\"\"))","v":""},{"$f":"IF($D106>6,\"\",IF(H$5<=(VLOOKUP($A106,masterlist!$C$2:$AC$207,27,FALSE)),1,\"\"))","v":""},{"$f":"IF($D106>6,\"\",IF(I$5<=(VLOOKUP($A106,masterlist!$C$2:$AC$207,27,FALSE)),1,\"\"))","v":""},{"$f":"IF($D106>6,\"\",IF(J$5<=(VLOOKUP($A106,masterlist!$C$2:$AC$207,27,FALSE)),1,\"\"))","v":""},{"$f":"IF($D106>6,\"\",IF(K$5<=(VLOOKUP($A106,masterlist!$C$2:$AC$207,27,FALSE)),1,\"\"))","v":""},{"$f":"IF($D106>6,\"\",IF(L$5<=(VLOOKUP($A106,masterlist!$C$2:$AC$207,27,FALSE)),1,\"\"))","v":""},{"$f":"IF($D106>6,\"\",IF(M$5<=(VLOOKUP($A106,masterlist!$C$2:$AC$207,27,FALSE)),1,\"\"))","v":""},{"$f":"IF($D106>6,\"\",IF(N$5<=(VLOOKUP($A106,masterlist!$C$2:$AC$207,27,FALSE)),1,\"\"))","v":""},{"$f":"IF($D106>6,\"\",IF(O$5<=(VLOOKUP($A106,masterlist!$C$2:$AC$207,27,FALSE)),1,\"\"))","v":""},{"$f":"IF($D106>6,\"\",IF(P$5<=(VLOOKUP($A106,masterlist!$C$2:$AC$207,27,FALSE)),1,\"\"))","v":""},{"$f":"IF($D106>6,\"\",IF(Q$5<=(VLOOKUP($A106,masterlist!$C$2:$AC$207,27,FALSE)),1,\"\"))","v":""},{"$f":"IF($D106>6,\"\",IF(R$5<=(VLOOKUP($A106,masterlist!$C$2:$AC$207,27,FALSE)),1,\"\"))","v":""},null,null,null,null,0,0,0,0,0,0,0,0,0,0,0,0,0]
[{"$f":"IFERROR(priorit!A106,\"\")","v":""},"",{"$f":"IFERROR(VLOOKUP($A107,masterlist!$C$2:$AA$207,2,FALSE),\"\")","v":""},{"$f":"IFERROR(VLOOKUP($A107,masterlist!$C$2:$AA$207,3,FALSE),\"\")","v":""},{"$f":"IFERROR(VLOOKUP($A107,masterlist!$C$2:$AD$207,28,FALSE),\"\")","v":""},{"$f":"IF($D107>6,\"\",IF(F$5<=(VLOOKUP($A107,masterlist!$C$2:$AC$207,27,FALSE)),1,\"\"))","v":""},{"$f":"IF($D107>6,\"\",IF(G$5<=(VLOOKUP($A107,masterlist!$C$2:$AC$207,27,FALSE)),1,\"\"))","v":""},{"$f":"IF($D107>6,\"\",IF(H$5<=(VLOOKUP($A107,masterlist!$C$2:$AC$207,27,FALSE)),1,\"\"))","v":""},{"$f":"IF($D107>6,\"\",IF(I$5<=(VLOOKUP($A107,masterlist!$C$2:$AC$207,27,FALSE)),1,\"\"))","v":""},{"$f":"IF($D107>6,\"\",IF(J$5<=(VLOOKUP($A107,masterlist!$C$2:$AC$207,27,FALSE)),1,\"\"))","v":""},{"$f":"IF($D107>6,\"\",IF(K$5<=(VLOOKUP($A107,masterlist!$C$2:$AC$207,27,FALSE)),1,\"\"))","v":""},{"$f":"IF($D107>6,\"\",IF(L$5<=(VLOOKUP($A107,masterlist!$C$2:$AC$207,27,FALSE)),1,\"\"))","v":""},{"$f":"IF($D107>6,\"\",IF(M$5<=(VLOOKUP($A107,masterlist!$C$2:$AC$207,27,FALSE)),1,\"\"))","v":""},{"$f":"IF($D107>6,\"\",IF(N$5<=(VLOOKUP($A107,masterlist!$C$2:$AC$207,27,FALSE)),1,\"\"))","v":""},{"$f":"IF($D107>6,\"\",IF(O$5<=(VLOOKUP($A107,masterlist!$C$2:$AC$207,27,FALSE)),1,\"\"))","v":""},{"$f":"IF($D107>6,\"\",IF(P$5<=(VLOOKUP($A107,masterlist!$C$2:$AC$207,27,FALSE)),1,\"\"))","v":""},{"$f":"IF($D107>6,\"\",IF(Q$5<=(VLOOKUP($A107,masterlist!$C$2:$AC$207,27,FALSE)),1,\"\"))","v":""},{"$f":"IF($D107>6,\"\",IF(R$5<=(VLOOKUP($A107,masterlist!$C$2:$AC$207,27,FALSE)),1,\"\"))","v":""},null,null,null,null,0,0,0,0,0,0,0,0,0,0,0,0,0]
[{"$f":"IFERROR(priorit!A107,\"\")","v":""},"",{"$f":"IFERROR(VLOOKUP($A108,masterlist!$C$2:$AA$207,2,FALSE),\"\")","v":""},{"$f":"IFERROR(VLOOKUP($A108,masterlist!$C$2:$AA$207,3,FALSE),\"\")","v":""},{"$f":"IFERROR(VLOOKUP($A108,masterlist!$C$2:$AD$207,28,FALSE),\"\")","v":""},{"$f":"IF($D108>6,\"\",IF(F$5<=(VLOOKUP($A108,masterlist!$C$2:$AC$207,27,FALSE)),1,\"\"))","v":""},{"$f":"IF($D108>6,\"\",IF(G$5<=(VLOOKUP($A108,masterlist!$C$2:$AC$207,27,FALSE)),1,\"\"))","v":""},{"$f":"IF($D108>6,\"\",IF(H$5<=(VLOOKUP($A108,masterlist!$C$2:$AC$207,27,FALSE)),1,\"\"))","v":""},{"$f":"IF($D108>6,\"\",IF(I$5<=(VLOOKUP($A108,masterlist!$C$2:$AC$207,27,FALSE)),1,\"\"))","v":""},{"$f":"IF($D108>6,\"\",IF(J$5<=(VLOOKUP($A108,masterlist!$C$2:$AC$207,27,FALSE)),1,\"\"))","v":""},{"$f":"IF($D108>6,\"\",IF(K$5<=(VLOOKUP($A108,masterlist!$C$2:$AC$207,27,FALSE)),1,\"\"))","v":""},{"$f":"IF($D108>6,\"\",IF(L$5<=(VLOOKUP($A108,masterlist!$C$2:$AC$207,27,FALSE)),1,\"\"))","v":""},{"$f":"IF($D108>6,\"\",IF(M$5<=(VLOOKUP($A108,masterlist!$C$2:$AC$207,27,FALSE)),1,\"\"))","v":""},{"$f":"IF($D108>6,\"\",IF(N$5<=(VLOOKUP($A108,masterlist!$C$2:$AC$207,27,FALSE)),1,\"\"))","v":""},{"$f":"IF($D108>6,\"\",IF(O$5<=(VLOOKUP($A108,masterlist!$C$2:$AC$207,27,FALSE)),1,\"\"))","v":""},{"$f":"IF($D108>6,\"\",IF(P$5<=(VLOOKUP($A108,masterlist!$C$2:$AC$207,27,FALSE)),1,\"\"))","v":""},{"$f":"IF($D108>6,\"\",IF(Q$5<=(VLOOKUP($A108,masterlist!$C$2:$AC$207,27,FALSE)),1,\"\"))","v":""},{"$f":"IF($D108>6,\"\",IF(R$5<=(VLOOKUP($A108,masterlist!$C$2:$AC$207,27,FALSE)),1,\"\"))","v":""},null,null,null,null,0,0,0,0,0,0,0,0,0,0,0,0,0]
[{"$f":"IFERROR(priorit!A108,\"\")","v":""},"",{"$f":"IFERROR(VLOOKUP($A109,masterlist!$C$2:$AA$207,2,FALSE),\"\")","v":""},{"$f":"IFERROR(VLOOKUP($A109,masterlist!$C$2:$AA$207,3,FALSE),\"\")","v":""},{"$f":"IFERROR(VLOOKUP($A109,masterlist!$C$2:$AD$207,28,FALSE),\"\")","v":""},{"$f":"IF($D109>6,\"\",IF(F$5<=(VLOOKUP($A109,masterlist!$C$2:$AC$207,27,FALSE)),1,\"\"))","v":""},{"$f":"IF($D109>6,\"\",IF(G$5<=(VLOOKUP($A109,masterlist!$C$2:$AC$207,27,FALSE)),1,\"\"))","v":""},{"$f":"IF($D109>6,\"\",IF(H$5<=(VLOOKUP($A109,masterlist!$C$2:$AC$207,27,FALSE)),1,\"\"))","v":""},{"$f":"IF($D109>6,\"\",IF(I$5<=(VLOOKUP($A109,masterlist!$C$2:$AC$207,27,FALSE)),1,\"\"))","v":""},{"$f":"IF($D109>6,\"\",IF(J$5<=(VLOOKUP($A109,masterlist!$C$2:$AC$207,27,FALSE)),1,\"\"))","v":""},{"$f":"IF($D109>6,\"\",IF(K$5<=(VLOOKUP($A109,masterlist!$C$2:$AC$207,27,FALSE)),1,\"\"))","v":""},{"$f":"IF($D109>6,\"\",IF(L$5<=(VLOOKUP($A109,masterlist!$C$2:$AC$207,27,FALSE)),1,\"\"))","v":""},{"$f":"IF($D109>6,\"\",IF(M$5<=(VLOOKUP($A109,masterlist!$C$2:$AC$207,27,FALSE)),1,\"\"))","v":""},{"$f":"IF($D109>6,\"\",IF(N$5<=(VLOOKUP($A109,masterlist!$C$2:$AC$207,27,FALSE)),1,\"\"))","v":""},{"$f":"IF($D109>6,\"\",IF(O$5<=(VLOOKUP($A109,masterlist!$C$2:$AC$207,27,FALSE)),1,\"\"))","v":""},{"$f":"IF($D109>6,\"\",IF(P$5<=(VLOOKUP($A109,masterlist!$C$2:$AC$207,27,FALSE)),1,\"\"))","v":""},{"$f":"IF($D109>6,\"\",IF(Q$5<=(VLOOKUP($A109,masterlist!$C$2:$AC$207,27,FALSE)),1,\"\"))","v":""},{"$f":"IF($D109>6,\"\",IF(R$5<=(VLOOKUP($A109,masterlist!$C$2:$AC$207,27,FALSE)),1,\"\"))","v":""},null,null,null,null,0,0,0,0,0,0,0,0,0,0,0,0,0]
[{"$f":"IFERROR(priorit!A109,\"\")","v":""},"",{"$f":"IFERROR(VLOOKUP($A110,masterlist!$C$2:$AA$207,2,FALSE),\"\")","v":""},{"$f":"IFERROR(VLOOKUP($A110,masterlist!$C$2:$AA$207,3,FALSE),\"\")","v":""},{"$f":"IFERROR(VLOOKUP($A110,masterlist!$C$2:$AD$207,28,FALSE),\"\")","v":""},{"$f":"IF($D110>6,\"\",IF(F$5<=(VLOOKUP($A110,masterlist!$C$2:$AC$207,27,FALSE)),1,\"\"))","v":""},{"$f":"IF($D110>6,\"\",IF(G$5<=(VLOOKUP($A110,masterlist!$C$2:$AC$207,27,FALSE)),1,\"\"))","v":""},{"$f":"IF($D110>6,\"\",IF(H$5<=(VLOOKUP($A110,masterlist!$C$2:$AC$207,27,FALSE)),1,\"\"))","v":""},{"$f":"IF($D110>6,\"\",IF(I$5<=(VLOOKUP($A110,masterlist!$C$2:$AC$207,27,FALSE)),1,\"\"))","v":""},{"$f":"IF($D110>6,\"\",IF(J$5<=(VLOOKUP($A110,masterlist!$C$2:$AC$207,27,FALSE)),1,\"\"))","v":""},{"$f":"IF($D110>6,\"\",IF(K$5<=(VLOOKUP($A110,masterlist!$C$2:$AC$207,27,FALSE)),1,\"\"))","v":""},{"$f":"IF($D110>6,\"\",IF(L$5<=(VLOOKUP($A110,masterlist!$C$2:$AC$207,27,FALSE)),1,\"\"))","v":""},{"$f":"IF($D110>6,\"\",IF(M$5<=(VLOOKUP($A110,masterlist!$C$2:$AC$207,27,FALSE)),1,\"\"))","v":""},{"$f":"IF($D110>6,\"\",IF(N$5<=(VLOOKUP($A110,masterlist!$C$2:$AC$207,27,FALSE)),1,\"\"))","v":""},{"$f":"IF($D110>6,\"\",IF(O$5<=(VLOOKUP($A110,masterlist!$C$2:$AC$207,27,FALSE)),1,\"\"))","v":""},{"$f":"IF($D110>6,\"\",IF(P$5<=(VLOOKUP($A110,masterlist!$C$2:$AC$207,27,FALSE)),1,\"\"))","v":""},{"$f":"IF($D110>6,\"\",IF(Q$5<=(VLOOKUP($A110,masterlist!$C$2:$AC$207,27,FALSE)),1,\"\"))","v":""},{"$f":"IF($D110>6,\"\",IF(R$5<=(VLOOKUP($A110,masterlist!$C$2:$AC$207,27,FALSE)),1,\"\"))","v":""},null,null,null,null,0,0,0,0,0,0,0,0,0,0,0,0,0]
[{"$f":"IFERROR(priorit!A110,\"\")","v":""},"",{"$f":"IFERROR(VLOOKUP($A111,masterlist!$C$2:$AA$207,2,FALSE),\"\")","v":""},{"$f":"IFERROR(VLOOKUP($A111,masterlist!$C$2:$AA$207,3,FALSE),\"\")","v":""},{"$f":"IFERROR(VLOOKUP($A111,masterlist!$C$2:$AD$207,28,FALSE),\"\")","v":""},{"$f":"IF($D111>6,\"\",IF(F$5<=(VLOOKUP($A111,masterlist!$C$2:$AC$207,27,FALSE)),1,\"\"))","v":""},{"$f":"IF($D111>6,\"\",IF(G$5<=(VLOOKUP($A111,masterlist!$C$2:$AC$207,27,FALSE)),1,\"\"))","v":""},{"$f":"IF($D111>6,\"\",IF(H$5<=(VLOOKUP($A111,masterlist!$C$2:$AC$207,27,FALSE)),1,\"\"))","v":""},{"$f":"IF($D111>6,\"\",IF(I$5<=(VLOOKUP($A111,masterlist!$C$2:$AC$207,27,FALSE)),1,\"\"))","v":""},{"$f":"IF($D111>6,\"\",IF(J$5<=(VLOOKUP($A111,masterlist!$C$2:$AC$207,27,FALSE)),1,\"\"))","v":""},{"$f":"IF($D111>6,\"\",IF(K$5<=(VLOOKUP($A111,masterlist!$C$2:$AC$207,27,FALSE)),1,\"\"))","v":""},{"$f":"IF($D111>6,\"\",IF(L$5<=(VLOOKUP($A111,masterlist!$C$2:$AC$207,27,FALSE)),1,\"\"))","v":""},{"$f":"IF($D111>6,\"\",IF(M$5<=(VLOOKUP($A111,masterlist!$C$2:$AC$207,27,FALSE)),1,\"\"))","v":""},{"$f":"IF($D111>6,\"\",IF(N$5<=(VLOOKUP($A111,masterlist!$C$2:$AC$207,27,FALSE)),1,\"\"))","v":""},{"$f":"IF($D111>6,\"\",IF(O$5<=(VLOOKUP($A111,masterlist!$C$2:$AC$207,27,FALSE)),1,\"\"))","v":""},{"$f":"IF($D111>6,\"\",IF(P$5<=(VLOOKUP($A111,masterlist!$C$2:$AC$207,27,FALSE)),1,\"\"))","v":""},{"$f":"IF($D111>6,\"\",IF(Q$5<=(VLOOKUP($A111,masterlist!$C$2:$AC$207,27,FALSE)),1,\"\"))","v":""},{"$f":"IF($D111>6,\"\",IF(R$5<=(VLOOKUP($A111,masterlist!$C$2:$AC$207,27,FALSE)),1,\"\"))","v":""},null,null,null,null,0,0,0,0,0,0,0,0,0,0,0,0,0]
[{"$f":"IFERROR(priorit!A111,\"\")","v":""},"",{"$f":"IFERROR(VLOOKUP($A112,masterlist!$C$2:$AA$207,2,FALSE),\"\")","v":""},{"$f":"IFERROR(VLOOKUP($A112,masterlist!$C$2:$AA$207,3,FALSE),\"\")","v":""},{"$f":"IFERROR(VLOOKUP($A112,masterlist!$C$2:$AD$207,28,FALSE),\"\")","v":""},{"$f":"IF($D112>6,\"\",IF(F$5<=(VLOOKUP($A112,masterlist!$C$2:$AC$207,27,FALSE)),1,\"\"))","v":""},{"$f":"IF($D112>6,\"\",IF(G$5<=(VLOOKUP($A112,masterlist!$C$2:$AC$207,27,FALSE)),1,\"\"))","v":""},{"$f":"IF($D112>6,\"\",IF(H$5<=(VLOOKUP($A112,masterlist!$C$2:$AC$207,27,FALSE)),1,\"\"))","v":""},{"$f":"IF($D112>6,\"\",IF(I$5<=(VLOOKUP($A112,masterlist!$C$2:$AC$207,27,FALSE)),1,\"\"))","v":""},{"$f":"IF($D112>6,\"\",IF(J$5<=(VLOOKUP($A112,masterlist!$C$2:$AC$207,27,FALSE)),1,\"\"))","v":""},{"$f":"IF($D112>6,\"\",IF(K$5<=(VLOOKUP($A112,masterlist!$C$2:$AC$207,27,FALSE)),1,\"\"))","v":""},{"$f":"IF($D112>6,\"\",IF(L$5<=(VLOOKUP($A112,masterlist!$C$2:$AC$207,27,FALSE)),1,\"\"))","v":""},{"$f":"IF($D112>6,\"\",IF(M$5<=(VLOOKUP($A112,masterlist!$C$2:$AC$207,27,FALSE)),1,\"\"))","v":""},{"$f":"IF($D112>6,\"\",IF(N$5<=(VLOOKUP($A112,masterlist!$C$2:$AC$207,27,FALSE)),1,\"\"))","v":""},{"$f":"IF($D112>6,\"\",IF(O$5<=(VLOOKUP($A112,masterlist!$C$2:$AC$207,27,FALSE)),1,\"\"))","v":""},{"$f":"IF($D112>6,\"\",IF(P$5<=(VLOOKUP($A112,masterlist!$C$2:$AC$207,27,FALSE)),1,\"\"))","v":""},{"$f":"IF($D112>6,\"\",IF(Q$5<=(VLOOKUP($A112,masterlist!$C$2:$AC$207,27,FALSE)),1,\"\"))","v":""},{"$f":"IF($D112>6,\"\",IF(R$5<=(VLOOKUP($A112,masterlist!$C$2:$AC$207,27,FALSE)),1,\"\"))","v":""},null,null,null,null,0,0,0,0,0,0,0,0,0,0,0,0,0]
[{"$f":"IFERROR(priorit!A112,\"\")","v":""},"",{"$f":"IFERROR(VLOOKUP($A113,masterlist!$C$2:$AA$207,2,FALSE),\"\")","v":""},{"$f":"IFERROR(VLOOKUP($A113,masterlist!$C$2:$AA$207,3,FALSE),\"\")","v":""},{"$f":"IFERROR(VLOOKUP($A113,masterlist!$C$2:$AD$207,28,FALSE),\"\")","v":""},{"$f":"IF($D113>6,\"\",IF(F$5<=(VLOOKUP($A113,masterlist!$C$2:$AC$207,27,FALSE)),1,\"\"))","v":""},{"$f":"IF($D113>6,\"\",IF(G$5<=(VLOOKUP($A113,masterlist!$C$2:$AC$207,27,FALSE)),1,\"\"))","v":""},{"$f":"IF($D113>6,\"\",IF(H$5<=(VLOOKUP($A113,masterlist!$C$2:$AC$207,27,FALSE)),1,\"\"))","v":""},{"$f":"IF($D113>6,\"\",IF(I$5<=(VLOOKUP($A113,masterlist!$C$2:$AC$207,27,FALSE)),1,\"\"))","v":""},{"$f":"IF($D113>6,\"\",IF(J$5<=(VLOOKUP($A113,masterlist!$C$2:$AC$207,27,FALSE)),1,\"\"))","v":""},{"$f":"IF($D113>6,\"\",IF(K$5<=(VLOOKUP($A113,masterlist!$C$2:$AC$207,27,FALSE)),1,\"\"))","v":""},{"$f":"IF($D113>6,\"\",IF(L$5<=(VLOOKUP($A113,masterlist!$C$2:$AC$207,27,FALSE)),1,\"\"))","v":""},{"$f":"IF($D113>6,\"\",IF(M$5<=(VLOOKUP($A113,masterlist!$C$2:$AC$207,27,FALSE)),1,\"\"))","v":""},{"$f":"IF($D113>6,\"\",IF(N$5<=(VLOOKUP($A113,masterlist!$C$2:$AC$207,27,FALSE)),1,\"\"))","v":""},{"$f":"IF($D113>6,\"\",IF(O$5<=(VLOOKUP($A113,masterlist!$C$2:$AC$207,27,FALSE)),1,\"\"))","v":""},{"$f":"IF($D113>6,\"\",IF(P$5<=(VLOOKUP($A113,masterlist!$C$2:$AC$207,27,FALSE)),1,\"\"))","v":""},{"$f":"IF($D113>6,\"\",IF(Q$5<=(VLOOKUP($A113,masterlist!$C$2:$AC$207,27,FALSE)),1,\"\"))","v":""},{"$f":"IF($D113>6,\"\",IF(R$5<=(VLOOKUP($A113,masterlist!$C$2:$AC$207,27,FALSE)),1,\"\"))","v":""},null,null,null,null,0,0,0,0,0,0,0,0,0,0,0,0,0]
[{"$f":"IFERROR(priorit!A113,\"\")","v":""},"",{"$f":"IFERROR(VLOOKUP($A114,masterlist!$C$2:$AA$207,2,FALSE),\"\")","v":""},{"$f":"IFERROR(VLOOKUP($A114,masterlist!$C$2:$AA$207,3,FALSE),\"\")","v":""},{"$f":"IFERROR(VLOOKUP($A114,masterlist!$C$2:$AD$207,28,FALSE),\"\")","v":""},{"$f":"IF($D114>6,\"\",IF(F$5<=(VLOOKUP($A114,masterlist!$C$2:$AC$207,27,FALSE)),1,\"\"))","v":""},{"$f":"IF($D114>6,\"\",IF(G$5<=(VLOOKUP($A114,masterlist!$C$2:$AC$207,27,FALSE)),1,\"\"))","v":""},{"$f":"IF($D114>6,\"\",IF(H$5<=(VLOOKUP($A114,masterlist!$C$2:$AC$207,27,FALSE)),1,\"\"))","v":""},{"$f":"IF($D114>6,\"\",IF(I$5<=(VLOOKUP($A114,masterlist!$C$2:$AC$207,27,FALSE)),1,\"\"))","v":""},{"$f":"IF($D114>6,\"\",IF(J$5<=(VLOOKUP($A114,masterlist!$C$2:$AC$207,27,FALSE)),1,\"\"))","v":""},{"$f":"IF($D114>6,\"\",IF(K$5<=(VLOOKUP($A114,masterlist!$C$2:$AC$207,27,FALSE)),1,\"\"))","v":""},{"$f":"IF($D114>6,\"\",IF(L$5<=(VLOOKUP($A114,masterlist!$C$2:$AC$207,27,FALSE)),1,\"\"))","v":""},{"$f":"IF($D114>6,\"\",IF(M$5<=(VLOOKUP($A114,masterlist!$C$2:$AC$207,27,FALSE)),1,\"\"))","v":""},{"$f":"IF($D114>6,\"\",IF(N$5<=(VLOOKUP($A114,masterlist!$C$2:$AC$207,27,FALSE)),1,\"\"))","v":""},{"$f":"IF($D114>6,\"\",IF(O$5<=(VLOOKUP($A114,masterlist!$C$2:$AC$207,27,FALSE)),1,\"\"))","v":""},{"$f":"IF($D114>6,\"\",IF(P$5<=(VLOOKUP($A114,masterlist!$C$2:$AC$207,27,FALSE)),1,\"\"))","v":""},{"$f":"IF($D114>6,\"\",IF(Q$5<=(VLOOKUP($A114,masterlist!$C$2:$AC$207,27,FALSE)),1,\"\"))","v":""},{"$f":"IF($D114>6,\"\",IF(R$5<=(VLOOKUP($A114,masterlist!$C$2:$AC$207,27,FALSE)),1,\"\"))","v":""},null,null,null,null,0,0,0,0,0,0,0,0,0,0,0,0,0]
[{"$f":"IFERROR(priorit!A114,\"\")","v":""},"",{"$f":"IFERROR(VLOOKUP($A115,masterlist!$C$2:$AA$207,2,FALSE),\"\")","v":""},{"$f":"IFERROR(VLOOKUP($A115,masterlist!$C$2:$AA$207,3,FALSE),\"\")","v":""},{"$f":"IFERROR(VLOOKUP($A115,masterlist!$C$2:$AD$207,28,FALSE),\"\")","v":""},{"$f":"IF($D115>6,\"\",IF(F$5<=(VLOOKUP($A115,masterlist!$C$2:$AC$207,27,FALSE)),1,\"\"))","v":""},{"$f":"IF($D115>6,\"\",IF(G$5<=(VLOOKUP($A115,masterlist!$C$2:$AC$207,27,FALSE)),1,\"\"))","v":""},{"$f":"IF($D115>6,\"\",IF(H$5<=(VLOOKUP($A115,masterlist!$C$2:$AC$207,27,FALSE)),1,\"\"))","v":""},{"$f":"IF($D115>6,\"\",IF(I$5<=(VLOOKUP($A115,masterlist!$C$2:$AC$207,27,FALSE)),1,\"\"))","v":""},{"$f":"IF($D115>6,\"\",IF(J$5<=(VLOOKUP($A115,masterlist!$C$2:$AC$207,27,FALSE)),1,\"\"))","v":""},{"$f":"IF($D115>6,\"\",IF(K$5<=(VLOOKUP($A115,masterlist!$C$2:$AC$207,27,FALSE)),1,\"\"))","v":""},{"$f":"IF($D115>6,\"\",IF(L$5<=(VLOOKUP($A115,masterlist!$C$2:$AC$207,27,FALSE)),1,\"\"))","v":""},{"$f":"IF($D115>6,\"\",IF(M$5<=(VLOOKUP($A115,masterlist!$C$2:$AC$207,27,FALSE)),1,\"\"))","v":""},{"$f":"IF($D115>6,\"\",IF(N$5<=(VLOOKUP($A115,masterlist!$C$2:$AC$207,27,FALSE)),1,\"\"))","v":""},{"$f":"IF($D115>6,\"\",IF(O$5<=(VLOOKUP($A115,masterlist!$C$2:$AC$207,27,FALSE)),1,\"\"))","v":""},{"$f":"IF($D115>6,\"\",IF(P$5<=(VLOOKUP($A115,masterlist!$C$2:$AC$207,27,FALSE)),1,\"\"))","v":""},{"$f":"IF($D115>6,\"\",IF(Q$5<=(VLOOKUP($A115,masterlist!$C$2:$AC$207,27,FALSE)),1,\"\"))","v":""},{"$f":"IF($D115>6,\"\",IF(R$5<=(VLOOKUP($A115,masterlist!$C$2:$AC$207,27,FALSE)),1,\"\"))","v":""},null,null,null,null,0,0,0,0,0,0,0,0,0,0,0,0,0]
[{"$f":"IFERROR(priorit!A115,\"\")","v":""},"",{"$f":"IFERROR(VLOOKUP($A116,masterlist!$C$2:$AA$207,2,FALSE),\"\")","v":""},{"$f":"IFERROR(VLOOKUP($A116,masterlist!$C$2:$AA$207,3,FALSE),\"\")","v":""},{"$f":"IFERROR(VLOOKUP($A116,masterlist!$C$2:$AD$207,28,FALSE),\"\")","v":""},{"$f":"IF($D116>6,\"\",IF(F$5<=(VLOOKUP($A116,masterlist!$C$2:$AC$207,27,FALSE)),1,\"\"))","v":""},{"$f":"IF($D116>6,\"\",IF(G$5<=(VLOOKUP($A116,masterlist!$C$2:$AC$207,27,FALSE)),1,\"\"))","v":""},{"$f":"IF($D116>6,\"\",IF(H$5<=(VLOOKUP($A116,masterlist!$C$2:$AC$207,27,FALSE)),1,\"\"))","v":""},{"$f":"IF($D116>6,\"\",IF(I$5<=(VLOOKUP($A116,masterlist!$C$2:$AC$207,27,FALSE)),1,\"\"))","v":""},{"$f":"IF($D116>6,\"\",IF(J$5<=(VLOOKUP($A116,masterlist!$C$2:$AC$207,27,FALSE)),1,\"\"))","v":""},{"$f":"IF($D116>6,\"\",IF(K$5<=(VLOOKUP($A116,masterlist!$C$2:$AC$207,27,FALSE)),1,\"\"))","v":""},{"$f":"IF($D116>6,\"\",IF(L$5<=(VLOOKUP($A116,masterlist!$C$2:$AC$207,27,FALSE)),1,\"\"))","v":""},{"$f":"IF($D116>6,\"\",IF(M$5<=(VLOOKUP($A116,masterlist!$C$2:$AC$207,27,FALSE)),1,\"\"))","v":""},{"$f":"IF($D116>6,\"\",IF(N$5<=(VLOOKUP($A116,masterlist!$C$2:$AC$207,27,FALSE)),1,\"\"))","v":""},{"$f":"IF($D116>6,\"\",IF(O$5<=(VLOOKUP($A116,masterlist!$C$2:$AC$207,27,FALSE)),1,\"\"))","v":""},{"$f":"IF($D116>6,\"\",IF(P$5<=(VLOOKUP($A116,masterlist!$C$2:$AC$207,27,FALSE)),1,\"\"))","v":""},{"$f":"IF($D116>6,\"\",IF(Q$5<=(VLOOKUP($A116,masterlist!$C$2:$AC$207,27,FALSE)),1,\"\"))","v":""},{"$f":"IF($D116>6,\"\",IF(R$5<=(VLOOKUP($A116,masterlist!$C$2:$AC$207,27,FALSE)),1,\"\"))","v":""},null,null,null,null,0,0,0,0,0,0,0,0,0,0,0,0,0]
[{"$f":"IFERROR(priorit!A116,\"\")","v":""},"",{"$f":"IFERROR(VLOOKUP($A117,masterlist!$C$2:$AA$207,2,FALSE),\"\")","v":""},{"$f":"IFERROR(VLOOKUP($A117,masterlist!$C$2:$AA$207,3,FALSE),\"\")","v":""},{"$f":"IFERROR(VLOOKUP($A117,masterlist!$C$2:$AD$207,28,FALSE),\"\")","v":""},{"$f":"IF($D117>6,\"\",IF(F$5<=(VLOOKUP($A117,masterlist!$C$2:$AC$207,27,FALSE)),1,\"\"))","v":""},{"$f":"IF($D117>6,\"\",IF(G$5<=(VLOOKUP($A117,masterlist!$C$2:$AC$207,27,FALSE)),1,\"\"))","v":""},{"$f":"IF($D117>6,\"\",IF(H$5<=(VLOOKUP($A117,masterlist!$C$2:$AC$207,27,FALSE)),1,\"\"))","v":""},{"$f":"IF($D117>6,\"\",IF(I$5<=(VLOOKUP($A117,masterlist!$C$2:$AC$207,27,FALSE)),1,\"\"))","v":""},{"$f":"IF($D117>6,\"\",IF(J$5<=(VLOOKUP($A117,masterlist!$C$2:$AC$207,27,FALSE)),1,\"\"))","v":""},{"$f":"IF($D117>6,\"\",IF(K$5<=(VLOOKUP($A117,masterlist!$C$2:$AC$207,27,FALSE)),1,\"\"))","v":""},{"$f":"IF($D117>6,\"\",IF(L$5<=(VLOOKUP($A117,masterlist!$C$2:$AC$207,27,FALSE)),1,\"\"))","v":""},{"$f":"IF($D117>6,\"\",IF(M$5<=(VLOOKUP($A117,masterlist!$C$2:$AC$207,27,FALSE)),1,\"\"))","v":""},{"$f":"IF($D117>6,\"\",IF(N$5<=(VLOOKUP($A117,masterlist!$C$2:$AC$207,27,FALSE)),1,\"\"))","v":""},{"$f":"IF($D117>6,\"\",IF(O$5<=(VLOOKUP($A117,masterlist!$C$2:$AC$207,27,FALSE)),1,\"\"))","v":""},{"$f":"IF($D117>6,\"\",IF(P$5<=(VLOOKUP($A117,masterlist!$C$2:$AC$207,27,FALSE)),1,\"\"))","v":""},{"$f":"IF($D117>6,\"\",IF(Q$5<=(VLOOKUP($A117,masterlist!$C$2:$AC$207,27,FALSE)),1,\"\"))","v":""},{"$f":"IF($D117>6,\"\",IF(R$5<=(VLOOKUP($A117,masterlist!$C$2:$AC$207,27,FALSE)),1,\"\"))","v":""},null,null,null,null,0,0,0,0,0,0,0,0,0,0,0,0,0]
[{"$f":"IFERROR(priorit!A117,\"\")","v":""},"",{"$f":"IFERROR(VLOOKUP($A118,masterlist!$C$2:$AA$207,2,FALSE),\"\")","v":""},{"$f":"IFERROR(VLOOKUP($A118,masterlist!$C$2:$AA$207,3,FALSE),\"\")","v":""},{"$f":"IFERROR(VLOOKUP($A118,masterlist!$C$2:$AD$207,28,FALSE),\"\")","v":""},{"$f":"IF($D118>6,\"\",IF(F$5<=(VLOOKUP($A118,masterlist!$C$2:$AC$207,27,FALSE)),1,\"\"))","v":""},{"$f":"IF($D118>6,\"\",IF(G$5<=(VLOOKUP($A118,masterlist!$C$2:$AC$207,27,FALSE)),1,\"\"))","v":""},{"$f":"IF($D118>6,\"\",IF(H$5<=(VLOOKUP($A118,masterlist!$C$2:$AC$207,27,FALSE)),1,\"\"))","v":""},{"$f":"IF($D118>6,\"\",IF(I$5<=(VLOOKUP($A118,masterlist!$C$2:$AC$207,27,FALSE)),1,\"\"))","v":""},{"$f":"IF($D118>6,\"\",IF(J$5<=(VLOOKUP($A118,masterlist!$C$2:$AC$207,27,FALSE)),1,\"\"))","v":""},{"$f":"IF($D118>6,\"\",IF(K$5<=(VLOOKUP($A118,masterlist!$C$2:$AC$207,27,FALSE)),1,\"\"))","v":""},{"$f":"IF($D118>6,\"\",IF(L$5<=(VLOOKUP($A118,masterlist!$C$2:$AC$207,27,FALSE)),1,\"\"))","v":""},{"$f":"IF($D118>6,\"\",IF(M$5<=(VLOOKUP($A118,masterlist!$C$2:$AC$207,27,FALSE)),1,\"\"))","v":""},{"$f":"IF($D118>6,\"\",IF(N$5<=(VLOOKUP($A118,masterlist!$C$2:$AC$207,27,FALSE)),1,\"\"))","v":""},{"$f":"IF($D118>6,\"\",IF(O$5<=(VLOOKUP($A118,masterlist!$C$2:$AC$207,27,FALSE)),1,\"\"))","v":""},{"$f":"IF($D118>6,\"\",IF(P$5<=(VLOOKUP($A118,masterlist!$C$2:$AC$207,27,FALSE)),1,\"\"))","v":""},{"$f":"IF($D118>6,\"\",IF(Q$5<=(VLOOKUP($A118,masterlist!$C$2:$AC$207,27,FALSE)),1,\"\"))","v":""},{"$f":"IF($D118>6,\"\",IF(R$5<=(VLOOKUP($A118,masterlist!$C$2:$AC$207,27,FALSE)),1,\"\"))","v":""},null,null,null,null,0,0,0,0,0,0,0,0,0,0,0,0,0]
[{"$f":"IFERROR(priorit!A118,\"\")","v":""},"",{"$f":"IFERROR(VLOOKUP($A119,masterlist!$C$2:$AA$207,2,FALSE),\"\")","v":""},{"$f":"IFERROR(VLOOKUP($A119,masterlist!$C$2:$AA$207,3,FALSE),\"\")","v":""},{"$f":"IFERROR(VLOOKUP($A119,masterlist!$C$2:$AD$207,28,FALSE),\"\")","v":""},{"$f":"IF($D119>6,\"\",IF(F$5<=(VLOOKUP($A119,masterlist!$C$2:$AC$207,27,FALSE)),1,\"\"))","v":""},{"$f":"IF($D119>6,\"\",IF(G$5<=(VLOOKUP($A119,masterlist!$C$2:$AC$207,27,FALSE)),1,\"\"))","v":""},{"$f":"IF($D119>6,\"\",IF(H$5<=(VLOOKUP($A119,masterlist!$C$2:$AC$207,27,FALSE)),1,\"\"))","v":""},{"$f":"IF($D119>6,\"\",IF(I$5<=(VLOOKUP($A119,masterlist!$C$2:$AC$207,27,FALSE)),1,\"\"))","v":""},{"$f":"IF($D119>6,\"\",IF(J$5<=(VLOOKUP($A119,masterlist!$C$2:$AC$207,27,FALSE)),1,\"\"))","v":""},{"$f":"IF($D119>6,\"\",IF(K$5<=(VLOOKUP($A119,masterlist!$C$2:$AC$207,27,FALSE)),1,\"\"))","v":""},{"$f":"IF($D119>6,\"\",IF(L$5<=(VLOOKUP($A119,masterlist!$C$2:$AC$207,27,FALSE)),1,\"\"))","v":""},{"$f":"IF($D119>6,\"\",IF(M$5<=(VLOOKUP($A119,masterlist!$C$2:$AC$207,27,FALSE)),1,\"\"))","v":""},{"$f":"IF($D119>6,\"\",IF(N$5<=(VLOOKUP($A119,masterlist!$C$2:$AC$207,27,FALSE)),1,\"\"))","v":""},{"$f":"IF($D119>6,\"\",IF(O$5<=(VLOOKUP($A119,masterlist!$C$2:$AC$207,27,FALSE)),1,\"\"))","v":""},{"$f":"IF($D119>6,\"\",IF(P$5<=(VLOOKUP($A119,masterlist!$C$2:$AC$207,27,FALSE)),1,\"\"))","v":""},{"$f":"IF($D119>6,\"\",IF(Q$5<=(VLOOKUP($A119,masterlist!$C$2:$AC$207,27,FALSE)),1,\"\"))","v":""},{"$f":"IF($D119>6,\"\",IF(R$5<=(VLOOKUP($A119,masterlist!$C$2:$AC$207,27,FALSE)),1,\"\"))","v":""},null,null,null,null,0,0,0,0,0,0,0,0,0,0,0,0,0]
[{"$f":"IFERROR(priorit!A119,\"\")","v":""},"",{"$f":"IFERROR(VLOOKUP($A120,masterlist!$C$2:$AA$207,2,FALSE),\"\")","v":""},{"$f":"IFERROR(VLOOKUP($A120,masterlist!$C$2:$AA$207,3,FALSE),\"\")","v":""},{"$f":"IFERROR(VLOOKUP($A120,masterlist!$C$2:$AD$207,28,FALSE),\"\")","v":""},{"$f":"IF($D120>6,\"\",IF(F$5<=(VLOOKUP($A120,masterlist!$C$2:$AC$207,27,FALSE)),1,\"\"))","v":""},{"$f":"IF($D120>6,\"\",IF(G$5<=(VLOOKUP($A120,masterlist!$C$2:$AC$207,27,FALSE)),1,\"\"))","v":""},{"$f":"IF($D120>6,\"\",IF(H$5<=(VLOOKUP($A120,masterlist!$C$2:$AC$207,27,FALSE)),1,\"\"))","v":""},{"$f":"IF($D120>6,\"\",IF(I$5<=(VLOOKUP($A120,masterlist!$C$2:$AC$207,27,FALSE)),1,\"\"))","v":""},{"$f":"IF($D120>6,\"\",IF(J$5<=(VLOOKUP($A120,masterlist!$C$2:$AC$207,27,FALSE)),1,\"\"))","v":""},{"$f":"IF($D120>6,\"\",IF(K$5<=(VLOOKUP($A120,masterlist!$C$2:$AC$207,27,FALSE)),1,\"\"))","v":""},{"$f":"IF($D120>6,\"\",IF(L$5<=(VLOOKUP($A120,masterlist!$C$2:$AC$207,27,FALSE)),1,\"\"))","v":""},{"$f":"IF($D120>6,\"\",IF(M$5<=(VLOOKUP($A120,masterlist!$C$2:$AC$207,27,FALSE)),1,\"\"))","v":""},{"$f":"IF($D120>6,\"\",IF(N$5<=(VLOOKUP($A120,masterlist!$C$2:$AC$207,27,FALSE)),1,\"\"))","v":""},{"$f":"IF($D120>6,\"\",IF(O$5<=(VLOOKUP($A120,masterlist!$C$2:$AC$207,27,FALSE)),1,\"\"))","v":""},{"$f":"IF($D120>6,\"\",IF(P$5<=(VLOOKUP($A120,masterlist!$C$2:$AC$207,27,FALSE)),1,\"\"))","v":""},{"$f":"IF($D120>6,\"\",IF(Q$5<=(VLOOKUP($A120,masterlist!$C$2:$AC$207,27,FALSE)),1,\"\"))","v":""},{"$f":"IF($D120>6,\"\",IF(R$5<=(VLOOKUP($A120,masterlist!$C$2:$AC$207,27,FALSE)),1,\"\"))","v":""},null,null,null,null,0,0,0,0,0,0,0,0,0,0,0,0,0]
[{"$f":"IFERROR(priorit!A120,\"\")","v":""},"",{"$f":"IFERROR(VLOOKUP($A121,masterlist!$C$2:$AA$207,2,FALSE),\"\")","v":""},{"$f":"IFERROR(VLOOKUP($A121,masterlist!$C$2:$AA$207,3,FALSE),\"\")","v":""},{"$f":"IFERROR(VLOOKUP($A121,masterlist!$C$2:$AD$207,28,FALSE),\"\")","v":""},{"$f":"IF($D121>6,\"\",IF(F$5<=(VLOOKUP($A121,masterlist!$C$2:$AC$207,27,FALSE)),1,\"\"))","v":""},{"$f":"IF($D121>6,\"\",IF(G$5<=(VLOOKUP($A121,masterlist!$C$2:$AC$207,27,FALSE)),1,\"\"))","v":""},{"$f":"IF($D121>6,\"\",IF(H$5<=(VLOOKUP($A121,masterlist!$C$2:$AC$207,27,FALSE)),1,\"\"))","v":""},{"$f":"IF($D121>6,\"\",IF(I$5<=(VLOOKUP($A121,masterlist!$C$2:$AC$207,27,FALSE)),1,\"\"))","v":""},{"$f":"IF($D121>6,\"\",IF(J$5<=(VLOOKUP($A121,masterlist!$C$2:$AC$207,27,FALSE)),1,\"\"))","v":""},{"$f":"IF($D121>6,\"\",IF(K$5<=(VLOOKUP($A121,masterlist!$C$2:$AC$207,27,FALSE)),1,\"\"))","v":""},{"$f":"IF($D121>6,\"\",IF(L$5<=(VLOOKUP($A121,masterlist!$C$2:$AC$207,27,FALSE)),1,\"\"))","v":""},{"$f":"IF($D121>6,\"\",IF(M$5<=(VLOOKUP($A121,masterlist!$C$2:$AC$207,27,FALSE)),1,\"\"))","v":""},{"$f":"IF($D121>6,\"\",IF(N$5<=(VLOOKUP($A121,masterlist!$C$2:$AC$207,27,FALSE)),1,\"\"))","v":""},{"$f":"IF($D121>6,\"\",IF(O$5<=(VLOOKUP($A121,masterlist!$C$2:$AC$207,27,FALSE)),1,\"\"))","v":""},{"$f":"IF($D121>6,\"\",IF(P$5<=(VLOOKUP($A121,masterlist!$C$2:$AC$207,27,FALSE)),1,\"\"))","v":""},{"$f":"IF($D121>6,\"\",IF(Q$5<=(VLOOKUP($A121,masterlist!$C$2:$AC$207,27,FALSE)),1,\"\"))","v":""},{"$f":"IF($D121>6,\"\",IF(R$5<=(VLOOKUP($A121,masterlist!$C$2:$AC$207,27,FALSE)),1,\"\"))","v":""},null,null,null,null,0,0,0,0,0,0,0,0,0,0,0,0,0]
[{"$f":"IFERROR(priorit!A121,\"\")","v":""},"",{"$f":"IFERROR(VLOOKUP($A122,masterlist!$C$2:$AA$207,2,FALSE),\"\")","v":""},{"$f":"IFERROR(VLOOKUP($A122,masterlist!$C$2:$AA$207,3,FALSE),\"\")","v":""},{"$f":"IFERROR(VLOOKUP($A122,masterlist!$C$2:$AD$207,28,FALSE),\"\")","v":""},{"$f":"IF($D122>6,\"\",IF(F$5<=(VLOOKUP($A122,masterlist!$C$2:$AC$207,27,FALSE)),1,\"\"))","v":""},{"$f":"IF($D122>6,\"\",IF(G$5<=(VLOOKUP($A122,masterlist!$C$2:$AC$207,27,FALSE)),1,\"\"))","v":""},{"$f":"IF($D122>6,\"\",IF(H$5<=(VLOOKUP($A122,masterlist!$C$2:$AC$207,27,FALSE)),1,\"\"))","v":""},{"$f":"IF($D122>6,\"\",IF(I$5<=(VLOOKUP($A122,masterlist!$C$2:$AC$207,27,FALSE)),1,\"\"))","v":""},{"$f":"IF($D122>6,\"\",IF(J$5<=(VLOOKUP($A122,masterlist!$C$2:$AC$207,27,FALSE)),1,\"\"))","v":""},{"$f":"IF($D122>6,\"\",IF(K$5<=(VLOOKUP($A122,masterlist!$C$2:$AC$207,27,FALSE)),1,\"\"))","v":""},{"$f":"IF($D122>6,\"\",IF(L$5<=(VLOOKUP($A122,masterlist!$C$2:$AC$207,27,FALSE)),1,\"\"))","v":""},{"$f":"IF($D122>6,\"\",IF(M$5<=(VLOOKUP($A122,masterlist!$C$2:$AC$207,27,FALSE)),1,\"\"))","v":""},{"$f":"IF($D122>6,\"\",IF(N$5<=(VLOOKUP($A122,masterlist!$C$2:$AC$207,27,FALSE)),1,\"\"))","v":""},{"$f":"IF($D122>6,\"\",IF(O$5<=(VLOOKUP($A122,masterlist!$C$2:$AC$207,27,FALSE)),1,\"\"))","v":""},{"$f":"IF($D122>6,\"\",IF(P$5<=(VLOOKUP($A122,masterlist!$C$2:$AC$207,27,FALSE)),1,\"\"))","v":""},{"$f":"IF($D122>6,\"\",IF(Q$5<=(VLOOKUP($A122,masterlist!$C$2:$AC$207,27,FALSE)),1,\"\"))","v":""},{"$f":"IF($D122>6,\"\",IF(R$5<=(VLOOKUP($A122,masterlist!$C$2:$AC$207,27,FALSE)),1,\"\"))","v":""},null,null,null,null,0,0,0,0,0,0,0,0,0,0,0,0,0]
[{"$f":"IFERROR(priorit!A122,\"\")","v":""},"",{"$f":"IFERROR(VLOOKUP($A123,masterlist!$C$2:$AA$207,2,FALSE),\"\")","v":""},{"$f":"IFERROR(VLOOKUP($A123,masterlist!$C$2:$AA$207,3,FALSE),\"\")","v":""},{"$f":"IFERROR(VLOOKUP($A123,masterlist!$C$2:$AD$207,28,FALSE),\"\")","v":""},{"$f":"IF($D123>6,\"\",IF(F$5<=(VLOOKUP($A123,masterlist!$C$2:$AC$207,27,FALSE)),1,\"\"))","v":""},{"$f":"IF($D123>6,\"\",IF(G$5<=(VLOOKUP($A123,masterlist!$C$2:$AC$207,27,FALSE)),1,\"\"))","v":""},{"$f":"IF($D123>6,\"\",IF(H$5<=(VLOOKUP($A123,masterlist!$C$2:$AC$207,27,FALSE)),1,\"\"))","v":""},{"$f":"IF($D123>6,\"\",IF(I$5<=(VLOOKUP($A123,masterlist!$C$2:$AC$207,27,FALSE)),1,\"\"))","v":""},{"$f":"IF($D123>6,\"\",IF(J$5<=(VLOOKUP($A123,masterlist!$C$2:$AC$207,27,FALSE)),1,\"\"))","v":""},{"$f":"IF($D123>6,\"\",IF(K$5<=(VLOOKUP($A123,masterlist!$C$2:$AC$207,27,FALSE)),1,\"\"))","v":""},{"$f":"IF($D123>6,\"\",IF(L$5<=(VLOOKUP($A123,masterlist!$C$2:$AC$207,27,FALSE)),1,\"\"))","v":""},{"$f":"IF($D123>6,\"\",IF(M$5<=(VLOOKUP($A123,masterlist!$C$2:$AC$207,27,FALSE)),1,\"\"))","v":""},{"$f":"IF($D123>6,\"\",IF(N$5<=(VLOOKUP($A123,masterlist!$C$2:$AC$207,27,FALSE)),1,\"\"))","v":""},{"$f":"IF($D123>6,\"\",IF(O$5<=(VLOOKUP($A123,masterlist!$C$2:$AC$207,27,FALSE)),1,\"\"))","v":""},{"$f":"IF($D123>6,\"\",IF(P$5<=(VLOOKUP($A123,masterlist!$C$2:$AC$207,27,FALSE)),1,\"\"))","v":""},{"$f":"IF($D123>6,\"\",IF(Q$5<=(VLOOKUP($A123,masterlist!$C$2:$AC$207,27,FALSE)),1,\"\"))","v":""},{"$f":"IF($D123>6,\"\",IF(R$5<=(VLOOKUP($A123,masterlist!$C$2:$AC$207,27,FALSE)),1,\"\"))","v":""},null,null,null,null,0,0,0,0,0,0,0,0,0,0,0,0,0]
[{"$f":"IFERROR(priorit!A123,\"\")","v":""},"",{"$f":"IFERROR(VLOOKUP($A124,masterlist!$C$2:$AA$207,2,FALSE),\"\")","v":""},{"$f":"IFERROR(VLOOKUP($A124,masterlist!$C$2:$AA$207,3,FALSE),\"\")","v":""},{"$f":"IFERROR(VLOOKUP($A124,masterlist!$C$2:$AD$207,28,FALSE),\"\")","v":""},{"$f":"IF($D124>6,\"\",IF(F$5<=(VLOOKUP($A124,masterlist!$C$2:$AC$207,27,FALSE)),1,\"\"))","v":""},{"$f":"IF($D124>6,\"\",IF(G$5<=(VLOOKUP($A124,masterlist!$C$2:$AC$207,27,FALSE)),1,\"\"))","v":""},{"$f":"IF($D124>6,\"\",IF(H$5<=(VLOOKUP($A124,masterlist!$C$2:$AC$207,27,FALSE)),1,\"\"))","v":""},{"$f":"IF($D124>6,\"\",IF(I$5<=(VLOOKUP($A124,masterlist!$C$2:$AC$207,27,FALSE)),1,\"\"))","v":""},{"$f":"IF($D124>6,\"\",IF(J$5<=(VLOOKUP($A124,masterlist!$C$2:$AC$207,27,FALSE)),1,\"\"))","v":""},{"$f":"IF($D124>6,\"\",IF(K$5<=(VLOOKUP($A124,masterlist!$C$2:$AC$207,27,FALSE)),1,\"\"))","v":""},{"$f":"IF($D124>6,\"\",IF(L$5<=(VLOOKUP($A124,masterlist!$C$2:$AC$207,27,FALSE)),1,\"\"))","v":""},{"$f":"IF($D124>6,\"\",IF(M$5<=(VLOOKUP($A124,masterlist!$C$2:$AC$207,27,FALSE)),1,\"\"))","v":""},{"$f":"IF($D124>6,\"\",IF(N$5<=(VLOOKUP($A124,masterlist!$C$2:$AC$207,27,FALSE)),1,\"\"))","v":""},{"$f":"IF($D124>6,\"\",IF(O$5<=(VLOOKUP($A124,masterlist!$C$2:$AC$207,27,FALSE)),1,\"\"))","v":""},{"$f":"IF($D124>6,\"\",IF(P$5<=(VLOOKUP($A124,masterlist!$C$2:$AC$207,27,FALSE)),1,\"\"))","v":""},{"$f":"IF($D124>6,\"\",IF(Q$5<=(VLOOKUP($A124,masterlist!$C$2:$AC$207,27,FALSE)),1,\"\"))","v":""},{"$f":"IF($D124>6,\"\",IF(R$5<=(VLOOKUP($A124,masterlist!$C$2:$AC$207,27,FALSE)),1,\"\"))","v":""},null,null,null,null,0,0,0,0,0,0,0,0,0,0,0,0,0]
[{"$f":"IFERROR(priorit!A124,\"\")","v":""},"",{"$f":"IFERROR(VLOOKUP($A125,masterlist!$C$2:$AA$207,2,FALSE),\"\")","v":""},{"$f":"IFERROR(VLOOKUP($A125,masterlist!$C$2:$AA$207,3,FALSE),\"\")","v":""},{"$f":"IFERROR(VLOOKUP($A125,masterlist!$C$2:$AD$207,28,FALSE),\"\")","v":""},{"$f":"IF($D125>6,\"\",IF(F$5<=(VLOOKUP($A125,masterlist!$C$2:$AC$207,27,FALSE)),1,\"\"))","v":""},{"$f":"IF($D125>6,\"\",IF(G$5<=(VLOOKUP($A125,masterlist!$C$2:$AC$207,27,FALSE)),1,\"\"))","v":""},{"$f":"IF($D125>6,\"\",IF(H$5<=(VLOOKUP($A125,masterlist!$C$2:$AC$207,27,FALSE)),1,\"\"))","v":""},{"$f":"IF($D125>6,\"\",IF(I$5<=(VLOOKUP($A125,masterlist!$C$2:$AC$207,27,FALSE)),1,\"\"))","v":""},{"$f":"IF($D125>6,\"\",IF(J$5<=(VLOOKUP($A125,masterlist!$C$2:$AC$207,27,FALSE)),1,\"\"))","v":""},{"$f":"IF($D125>6,\"\",IF(K$5<=(VLOOKUP($A125,masterlist!$C$2:$AC$207,27,FALSE)),1,\"\"))","v":""},{"$f":"IF($D125>6,\"\",IF(L$5<=(VLOOKUP($A125,masterlist!$C$2:$AC$207,27,FALSE)),1,\"\"))","v":""},{"$f":"IF($D125>6,\"\",IF(M$5<=(VLOOKUP($A125,masterlist!$C$2:$AC$207,27,FALSE)),1,\"\"))","v":""},{"$f":"IF($D125>6,\"\",IF(N$5<=(VLOOKUP($A125,masterlist!$C$2:$AC$207,27,FALSE)),1,\"\"))","v":""},{"$f":"IF($D125>6,\"\",IF(O$5<=(VLOOKUP($A125,masterlist!$C$2:$AC$207,27,FALSE)),1,\"\"))","v":""},{"$f":"IF($D125>6,\"\",IF(P$5<=(VLOOKUP($A125,masterlist!$C$2:$AC$207,27,FALSE)),1,\"\"))","v":""},{"$f":"IF($D125>6,\"\",IF(Q$5<=(VLOOKUP($A125,masterlist!$C$2:$AC$207,27,FALSE)),1,\"\"))","v":""},{"$f":"IF($D125>6,\"\",IF(R$5<=(VLOOKUP($A125,masterlist!$C$2:$AC$207,27,FALSE)),1,\"\"))","v":""},null,null,null,null,0,0,0,0,0,0,0,0,0,0,0,0,0]
[{"$f":"IFERROR(priorit!A125,\"\")","v":""},"",{"$f":"IFERROR(VLOOKUP($A126,masterlist!$C$2:$AA$207,2,FALSE),\"\")","v":""},{"$f":"IFERROR(VLOOKUP($A126,masterlist!$C$2:$AA$207,3,FALSE),\"\")","v":""},{"$f":"IFERROR(VLOOKUP($A126,masterlist!$C$2:$AD$207,28,FALSE),\"\")","v":""},{"$f":"IF($D126>6,\"\",IF(F$5<=(VLOOKUP($A126,masterlist!$C$2:$AC$207,27,FALSE)),1,\"\"))","v":""},{"$f":"IF($D126>6,\"\",IF(G$5<=(VLOOKUP($A126,masterlist!$C$2:$AC$207,27,FALSE)),1,\"\"))","v":""},{"$f":"IF($D126>6,\"\",IF(H$5<=(VLOOKUP($A126,masterlist!$C$2:$AC$207,27,FALSE)),1,\"\"))","v":""},{"$f":"IF($D126>6,\"\",IF(I$5<=(VLOOKUP($A126,masterlist!$C$2:$AC$207,27,FALSE)),1,\"\"))","v":""},{"$f":"IF($D126>6,\"\",IF(J$5<=(VLOOKUP($A126,masterlist!$C$2:$AC$207,27,FALSE)),1,\"\"))","v":""},{"$f":"IF($D126>6,\"\",IF(K$5<=(VLOOKUP($A126,masterlist!$C$2:$AC$207,27,FALSE)),1,\"\"))","v":""},{"$f":"IF($D126>6,\"\",IF(L$5<=(VLOOKUP($A126,masterlist!$C$2:$AC$207,27,FALSE)),1,\"\"))","v":""},{"$f":"IF($D126>6,\"\",IF(M$5<=(VLOOKUP($A126,masterlist!$C$2:$AC$207,27,FALSE)),1,\"\"))","v":""},{"$f":"IF($D126>6,\"\",IF(N$5<=(VLOOKUP($A126,masterlist!$C$2:$AC$207,27,FALSE)),1,\"\"))","v":""},{"$f":"IF($D126>6,\"\",IF(O$5<=(VLOOKUP($A126,masterlist!$C$2:$AC$207,27,FALSE)),1,\"\"))","v":""},{"$f":"IF($D126>6,\"\",IF(P$5<=(VLOOKUP($A126,masterlist!$C$2:$AC$207,27,FALSE)),1,\"\"))","v":""},{"$f":"IF($D126>6,\"\",IF(Q$5<=(VLOOKUP($A126,masterlist!$C$2:$AC$207,27,FALSE)),1,\"\"))","v":""},{"$f":"IF($D126>6,\"\",IF(R$5<=(VLOOKUP($A126,masterlist!$C$2:$AC$207,27,FALSE)),1,\"\"))","v":""},null,null,null,null,0,0,0,0,0,0,0,0,0,0,0,0,0]
[{"$f":"IFERROR(priorit!A126,\"\")","v":""},"",{"$f":"IFERROR(VLOOKUP($A127,masterlist!$C$2:$AA$207,2,FALSE),\"\")","v":""},{"$f":"IFERROR(VLOOKUP($A127,masterlist!$C$2:$AA$207,3,FALSE),\"\")","v":""},{"$f":"IFERROR(VLOOKUP($A127,masterlist!$C$2:$AD$207,28,FALSE),\"\")","v":""},{"$f":"IF($D127>6,\"\",IF(F$5<=(VLOOKUP($A127,masterlist!$C$2:$AC$207,27,FALSE)),1,\"\"))","v":""},{"$f":"IF($D127>6,\"\",IF(G$5<=(VLOOKUP($A127,masterlist!$C$2:$AC$207,27,FALSE)),1,\"\"))","v":""},{"$f":"IF($D127>6,\"\",IF(H$5<=(VLOOKUP($A127,masterlist!$C$2:$AC$207,27,FALSE)),1,\"\"))","v":""},{"$f":"IF($D127>6,\"\",IF(I$5<=(VLOOKUP($A127,masterlist!$C$2:$AC$207,27,FALSE)),1,\"\"))","v":""},{"$f":"IF($D127>6,\"\",IF(J$5<=(VLOOKUP($A127,masterlist!$C$2:$AC$207,27,FALSE)),1,\"\"))","v":""},{"$f":"IF($D127>6,\"\",IF(K$5<=(VLOOKUP($A127,masterlist!$C$2:$AC$207,27,FALSE)),1,\"\"))","v":""},{"$f":"IF($D127>6,\"\",IF(L$5<=(VLOOKUP($A127,masterlist!$C$2:$AC$207,27,FALSE)),1,\"\"))","v":""},{"$f":"IF($D127>6,\"\",IF(M$5<=(VLOOKUP($A127,masterlist!$C$2:$AC$207,27,FALSE)),1,\"\"))","v":""},{"$f":"IF($D127>6,\"\",IF(N$5<=(VLOOKUP($A127,masterlist!$C$2:$AC$207,27,FALSE)),1,\"\"))","v":""},{"$f":"IF($D127>6,\"\",IF(O$5<=(VLOOKUP($A127,masterlist!$C$2:$AC$207,27,FALSE)),1,\"\"))","v":""},{"$f":"IF($D127>6,\"\",IF(P$5<=(VLOOKUP($A127,masterlist!$C$2:$AC$207,27,FALSE)),1,\"\"))","v":""},{"$f":"IF($D127>6,\"\",IF(Q$5<=(VLOOKUP($A127,masterlist!$C$2:$AC$207,27,FALSE)),1,\"\"))","v":""},{"$f":"IF($D127>6,\"\",IF(R$5<=(VLOOKUP($A127,masterlist!$C$2:$AC$207,27,FALSE)),1,\"\"))","v":""},null,null,null,null,0,0,0,0,0,0,0,0,0,0,0,0,0]
[{"$f":"IFERROR(priorit!A127,\"\")","v":""},"",{"$f":"IFERROR(VLOOKUP($A128,masterlist!$C$2:$AA$207,2,FALSE),\"\")","v":""},{"$f":"IFERROR(VLOOKUP($A128,masterlist!$C$2:$AA$207,3,FALSE),\"\")","v":""},{"$f":"IFERROR(VLOOKUP($A128,masterlist!$C$2:$AD$207,28,FALSE),\"\")","v":""},{"$f":"IF($D128>6,\"\",IF(F$5<=(VLOOKUP($A128,masterlist!$C$2:$AC$207,27,FALSE)),1,\"\"))","v":""},{"$f":"IF($D128>6,\"\",IF(G$5<=(VLOOKUP($A128,masterlist!$C$2:$AC$207,27,FALSE)),1,\"\"))","v":""},{"$f":"IF($D128>6,\"\",IF(H$5<=(VLOOKUP($A128,masterlist!$C$2:$AC$207,27,FALSE)),1,\"\"))","v":""},{"$f":"IF($D128>6,\"\",IF(I$5<=(VLOOKUP($A128,masterlist!$C$2:$AC$207,27,FALSE)),1,\"\"))","v":""},{"$f":"IF($D128>6,\"\",IF(J$5<=(VLOOKUP($A128,masterlist!$C$2:$AC$207,27,FALSE)),1,\"\"))","v":""},{"$f":"IF($D128>6,\"\",IF(K$5<=(VLOOKUP($A128,masterlist!$C$2:$AC$207,27,FALSE)),1,\"\"))","v":""},{"$f":"IF($D128>6,\"\",IF(L$5<=(VLOOKUP($A128,masterlist!$C$2:$AC$207,27,FALSE)),1,\"\"))","v":""},{"$f":"IF($D128>6,\"\",IF(M$5<=(VLOOKUP($A128,masterlist!$C$2:$AC$207,27,FALSE)),1,\"\"))","v":""},{"$f":"IF($D128>6,\"\",IF(N$5<=(VLOOKUP($A128,masterlist!$C$2:$AC$207,27,FALSE)),1,\"\"))","v":""},{"$f":"IF($D128>6,\"\",IF(O$5<=(VLOOKUP($A128,masterlist!$C$2:$AC$207,27,FALSE)),1,\"\"))","v":""},{"$f":"IF($D128>6,\"\",IF(P$5<=(VLOOKUP($A128,masterlist!$C$2:$AC$207,27,FALSE)),1,\"\"))","v":""},{"$f":"IF($D128>6,\"\",IF(Q$5<=(VLOOKUP($A128,masterlist!$C$2:$AC$207,27,FALSE)),1,\"\"))","v":""},{"$f":"IF($D128>6,\"\",IF(R$5<=(VLOOKUP($A128,masterlist!$C$2:$AC$207,27,FALSE)),1,\"\"))","v":""},null,null,null,null,0,0,0,0,0,0,0,0,0,0,0,0,0]
[{"$f":"IFERROR(priorit!A128,\"\")","v":""},"",{"$f":"IFERROR(VLOOKUP($A129,masterlist!$C$2:$AA$207,2,FALSE),\"\")","v":""},{"$f":"IFERROR(VLOOKUP($A129,masterlist!$C$2:$AA$207,3,FALSE),\"\")","v":""},{"$f":"IFERROR(VLOOKUP($A129,masterlist!$C$2:$AD$207,28,FALSE),\"\")","v":""},{"$f":"IF($D129>6,\"\",IF(F$5<=(VLOOKUP($A129,masterlist!$C$2:$AC$207,27,FALSE)),1,\"\"))","v":""},{"$f":"IF($D129>6,\"\",IF(G$5<=(VLOOKUP($A129,masterlist!$C$2:$AC$207,27,FALSE)),1,\"\"))","v":""},{"$f":"IF($D129>6,\"\",IF(H$5<=(VLOOKUP($A129,masterlist!$C$2:$AC$207,27,FALSE)),1,\"\"))","v":""},{"$f":"IF($D129>6,\"\",IF(I$5<=(VLOOKUP($A129,masterlist!$C$2:$AC$207,27,FALSE)),1,\"\"))","v":""},{"$f":"IF($D129>6,\"\",IF(J$5<=(VLOOKUP($A129,masterlist!$C$2:$AC$207,27,FALSE)),1,\"\"))","v":""},{"$f":"IF($D129>6,\"\",IF(K$5<=(VLOOKUP($A129,masterlist!$C$2:$AC$207,27,FALSE)),1,\"\"))","v":""},{"$f":"IF($D129>6,\"\",IF(L$5<=(VLOOKUP($A129,masterlist!$C$2:$AC$207,27,FALSE)),1,\"\"))","v":""},{"$f":"IF($D129>6,\"\",IF(M$5<=(VLOOKUP($A129,masterlist!$C$2:$AC$207,27,FALSE)),1,\"\"))","v":""},{"$f":"IF($D129>6,\"\",IF(N$5<=(VLOOKUP($A129,masterlist!$C$2:$AC$207,27,FALSE)),1,\"\"))","v":""},{"$f":"IF($D129>6,\"\",IF(O$5<=(VLOOKUP($A129,masterlist!$C$2:$AC$207,27,FALSE)),1,\"\"))","v":""},{"$f":"IF($D129>6,\"\",IF(P$5<=(VLOOKUP($A129,masterlist!$C$2:$AC$207,27,FALSE)),1,\"\"))","v":""},{"$f":"IF($D129>6,\"\",IF(Q$5<=(VLOOKUP($A129,masterlist!$C$2:$AC$207,27,FALSE)),1,\"\"))","v":""},{"$f":"IF($D129>6,\"\",IF(R$5<=(VLOOKUP($A129,masterlist!$C$2:$AC$207,27,FALSE)),1,\"\"))","v":""},null,null,null,null,0,0,0,0,0,0,0,0,0,0,0,0,0]
[{"$f":"IFERROR(priorit!A129,\"\")","v":""},"",{"$f":"IFERROR(VLOOKUP($A130,masterlist!$C$2:$AA$207,2,FALSE),\"\")","v":""},{"$f":"IFERROR(VLOOKUP($A130,masterlist!$C$2:$AA$207,3,FALSE),\"\")","v":""},{"$f":"IFERROR(VLOOKUP($A130,masterlist!$C$2:$AD$207,28,FALSE),\"\")","v":""},{"$f":"IF($D130>6,\"\",IF(F$5<=(VLOOKUP($A130,masterlist!$C$2:$AC$207,27,FALSE)),1,\"\"))","v":""},{"$f":"IF($D130>6,\"\",IF(G$5<=(VLOOKUP($A130,masterlist!$C$2:$AC$207,27,FALSE)),1,\"\"))","v":""},{"$f":"IF($D130>6,\"\",IF(H$5<=(VLOOKUP($A130,masterlist!$C$2:$AC$207,27,FALSE)),1,\"\"))","v":""},{"$f":"IF($D130>6,\"\",IF(I$5<=(VLOOKUP($A130,masterlist!$C$2:$AC$207,27,FALSE)),1,\"\"))","v":""},{"$f":"IF($D130>6,\"\",IF(J$5<=(VLOOKUP($A130,masterlist!$C$2:$AC$207,27,FALSE)),1,\"\"))","v":""},{"$f":"IF($D130>6,\"\",IF(K$5<=(VLOOKUP($A130,masterlist!$C$2:$AC$207,27,FALSE)),1,\"\"))","v":""},{"$f":"IF($D130>6,\"\",IF(L$5<=(VLOOKUP($A130,masterlist!$C$2:$AC$207,27,FALSE)),1,\"\"))","v":""},{"$f":"IF($D130>6,\"\",IF(M$5<=(VLOOKUP($A130,masterlist!$C$2:$AC$207,27,FALSE)),1,\"\"))","v":""},{"$f":"IF($D130>6,\"\",IF(N$5<=(VLOOKUP($A130,masterlist!$C$2:$AC$207,27,FALSE)),1,\"\"))","v":""},{"$f":"IF($D130>6,\"\",IF(O$5<=(VLOOKUP($A130,masterlist!$C$2:$AC$207,27,FALSE)),1,\"\"))","v":""},{"$f":"IF($D130>6,\"\",IF(P$5<=(VLOOKUP($A130,masterlist!$C$2:$AC$207,27,FALSE)),1,\"\"))","v":""},{"$f":"IF($D130>6,\"\",IF(Q$5<=(VLOOKUP($A130,masterlist!$C$2:$AC$207,27,FALSE)),1,\"\"))","v":""},{"$f":"IF($D130>6,\"\",IF(R$5<=(VLOOKUP($A130,masterlist!$C$2:$AC$207,27,FALSE)),1,\"\"))","v":""},null,null,null,null,0,0,0,0,0,0,0,0,0,0,0,0,0]
[{"$f":"IFERROR(priorit!A130,\"\")","v":""},"",{"$f":"IFERROR(VLOOKUP($A131,masterlist!$C$2:$AA$207,2,FALSE),\"\")","v":""},{"$f":"IFERROR(VLOOKUP($A131,masterlist!$C$2:$AA$207,3,FALSE),\"\")","v":""},{"$f":"IFERROR(VLOOKUP($A131,masterlist!$C$2:$AD$207,28,FALSE),\"\")","v":""},{"$f":"IF($D131>6,\"\",IF(F$5<=(VLOOKUP($A131,masterlist!$C$2:$AC$207,27,FALSE)),1,\"\"))","v":""},{"$f":"IF($D131>6,\"\",IF(G$5<=(VLOOKUP($A131,masterlist!$C$2:$AC$207,27,FALSE)),1,\"\"))","v":""},{"$f":"IF($D131>6,\"\",IF(H$5<=(VLOOKUP($A131,masterlist!$C$2:$AC$207,27,FALSE)),1,\"\"))","v":""},{"$f":"IF($D131>6,\"\",IF(I$5<=(VLOOKUP($A131,masterlist!$C$2:$AC$207,27,FALSE)),1,\"\"))","v":""},{"$f":"IF($D131>6,\"\",IF(J$5<=(VLOOKUP($A131,masterlist!$C$2:$AC$207,27,FALSE)),1,\"\"))","v":""},{"$f":"IF($D131>6,\"\",IF(K$5<=(VLOOKUP($A131,masterlist!$C$2:$AC$207,27,FALSE)),1,\"\"))","v":""},{"$f":"IF($D131>6,\"\",IF(L$5<=(VLOOKUP($A131,masterlist!$C$2:$AC$207,27,FALSE)),1,\"\"))","v":""},{"$f":"IF($D131>6,\"\",IF(M$5<=(VLOOKUP($A131,masterlist!$C$2:$AC$207,27,FALSE)),1,\"\"))","v":""},{"$f":"IF($D131>6,\"\",IF(N$5<=(VLOOKUP($A131,masterlist!$C$2:$AC$207,27,FALSE)),1,\"\"))","v":""},{"$f":"IF($D131>6,\"\",IF(O$5<=(VLOOKUP($A131,masterlist!$C$2:$AC$207,27,FALSE)),1,\"\"))","v":""},{"$f":"IF($D131>6,\"\",IF(P$5<=(VLOOKUP($A131,masterlist!$C$2:$AC$207,27,FALSE)),1,\"\"))","v":""},{"$f":"IF($D131>6,\"\",IF(Q$5<=(VLOOKUP($A131,masterlist!$C$2:$AC$207,27,FALSE)),1,\"\"))","v":""},{"$f":"IF($D131>6,\"\",IF(R$5<=(VLOOKUP($A131,masterlist!$C$2:$AC$207,27,FALSE)),1,\"\"))","v":""},null,null,null,null,0,0,0,0,0,0,0,0,0,0,0,0,0]
[{"$f":"IFERROR(priorit!A131,\"\")","v":""},"",{"$f":"IFERROR(VLOOKUP($A132,masterlist!$C$2:$AA$207,2,FALSE),\"\")","v":""},{"$f":"IFERROR(VLOOKUP($A132,masterlist!$C$2:$AA$207,3,FALSE),\"\")","v":""},{"$f":"IFERROR(VLOOKUP($A132,masterlist!$C$2:$AD$207,28,FALSE),\"\")","v":""},{"$f":"IF($D132>6,\"\",IF(F$5<=(VLOOKUP($A132,masterlist!$C$2:$AC$207,27,FALSE)),1,\"\"))","v":""},{"$f":"IF($D132>6,\"\",IF(G$5<=(VLOOKUP($A132,masterlist!$C$2:$AC$207,27,FALSE)),1,\"\"))","v":""},{"$f":"IF($D132>6,\"\",IF(H$5<=(VLOOKUP($A132,masterlist!$C$2:$AC$207,27,FALSE)),1,\"\"))","v":""},{"$f":"IF($D132>6,\"\",IF(I$5<=(VLOOKUP($A132,masterlist!$C$2:$AC$207,27,FALSE)),1,\"\"))","v":""},{"$f":"IF($D132>6,\"\",IF(J$5<=(VLOOKUP($A132,masterlist!$C$2:$AC$207,27,FALSE)),1,\"\"))","v":""},{"$f":"IF($D132>6,\"\",IF(K$5<=(VLOOKUP($A132,masterlist!$C$2:$AC$207,27,FALSE)),1,\"\"))","v":""},{"$f":"IF($D132>6,\"\",IF(L$5<=(VLOOKUP($A132,masterlist!$C$2:$AC$207,27,FALSE)),1,\"\"))","v":""},{"$f":"IF($D132>6,\"\",IF(M$5<=(VLOOKUP($A132,masterlist!$C$2:$AC$207,27,FALSE)),1,\"\"))","v":""},{"$f":"IF($D132>6,\"\",IF(N$5<=(VLOOKUP($A132,masterlist!$C$2:$AC$207,27,FALSE)),1,\"\"))","v":""},{"$f":"IF($D132>6,\"\",IF(O$5<=(VLOOKUP($A132,masterlist!$C$2:$AC$207,27,FALSE)),1,\"\"))","v":""},{"$f":"IF($D132>6,\"\",IF(P$5<=(VLOOKUP($A132,masterlist!$C$2:$AC$207,27,FALSE)),1,\"\"))","v":""},{"$f":"IF($D132>6,\"\",IF(Q$5<=(VLOOKUP($A132,masterlist!$C$2:$AC$207,27,FALSE)),1,\"\"))","v":""},{"$f":"IF($D132>6,\"\",IF(R$5<=(VLOOKUP($A132,masterlist!$C$2:$AC$207,27,FALSE)),1,\"\"))","v":""},null,null,null,null,0,0,0,0,0,0,0,0,0,0,0,0,0]
[{"$f":"IFERROR(priorit!A132,\"\")","v":""},"",{"$f":"IFERROR(VLOOKUP($A133,masterlist!$C$2:$AA$207,2,FALSE),\"\")","v":""},{"$f":"IFERROR(VLOOKUP($A133,masterlist!$C$2:$AA$207,3,FALSE),\"\")","v":""},{"$f":"IFERROR(VLOOKUP($A133,masterlist!$C$2:$AD$207,28,FALSE),\"\")","v":""},{"$f":"IF($D133>6,\"\",IF(F$5<=(VLOOKUP($A133,masterlist!$C$2:$AC$207,27,FALSE)),1,\"\"))","v":""},{"$f":"IF($D133>6,\"\",IF(G$5<=(VLOOKUP($A133,masterlist!$C$2:$AC$207,27,FALSE)),1,\"\"))","v":""},{"$f":"IF($D133>6,\"\",IF(H$5<=(VLOOKUP($A133,masterlist!$C$2:$AC$207,27,FALSE)),1,\"\"))","v":""},{"$f":"IF($D133>6,\"\",IF(I$5<=(VLOOKUP($A133,masterlist!$C$2:$AC$207,27,FALSE)),1,\"\"))","v":""},{"$f":"IF($D133>6,\"\",IF(J$5<=(VLOOKUP($A133,masterlist!$C$2:$AC$207,27,FALSE)),1,\"\"))","v":""},{"$f":"IF($D133>6,\"\",IF(K$5<=(VLOOKUP($A133,masterlist!$C$2:$AC$207,27,FALSE)),1,\"\"))","v":""},{"$f":"IF($D133>6,\"\",IF(L$5<=(VLOOKUP($A133,masterlist!$C$2:$AC$207,27,FALSE)),1,\"\"))","v":""},{"$f":"IF($D133>6,\"\",IF(M$5<=(VLOOKUP($A133,masterlist!$C$2:$AC$207,27,FALSE)),1,\"\"))","v":""},{"$f":"IF($D133>6,\"\",IF(N$5<=(VLOOKUP($A133,masterlist!$C$2:$AC$207,27,FALSE)),1,\"\"))","v":""},{"$f":"IF($D133>6,\"\",IF(O$5<=(VLOOKUP($A133,masterlist!$C$2:$AC$207,27,FALSE)),1,\"\"))","v":""},{"$f":"IF($D133>6,\"\",IF(P$5<=(VLOOKUP($A133,masterlist!$C$2:$AC$207,27,FALSE)),1,\"\"))","v":""},{"$f":"IF($D133>6,\"\",IF(Q$5<=(VLOOKUP($A133,masterlist!$C$2:$AC$207,27,FALSE)),1,\"\"))","v":""},{"$f":"IF($D133>6,\"\",IF(R$5<=(VLOOKUP($A133,masterlist!$C$2:$AC$207,27,FALSE)),1,\"\"))","v":""},null,null,null,null,0,0,0,0,0,0,0,0,0,0,0,0,0]
[{"$f":"IFERROR(priorit!A133,\"\")","v":""},"",{"$f":"IFERROR(VLOOKUP($A134,masterlist!$C$2:$AA$207,2,FALSE),\"\")","v":""},{"$f":"IFERROR(VLOOKUP($A134,masterlist!$C$2:$AA$207,3,FALSE),\"\")","v":""},{"$f":"IFERROR(VLOOKUP($A134,masterlist!$C$2:$AD$207,28,FALSE),\"\")","v":""},{"$f":"IF($D134>6,\"\",IF(F$5<=(VLOOKUP($A134,masterlist!$C$2:$AC$207,27,FALSE)),1,\"\"))","v":""},{"$f":"IF($D134>6,\"\",IF(G$5<=(VLOOKUP($A134,masterlist!$C$2:$AC$207,27,FALSE)),1,\"\"))","v":""},{"$f":"IF($D134>6,\"\",IF(H$5<=(VLOOKUP($A134,masterlist!$C$2:$AC$207,27,FALSE)),1,\"\"))","v":""},{"$f":"IF($D134>6,\"\",IF(I$5<=(VLOOKUP($A134,masterlist!$C$2:$AC$207,27,FALSE)),1,\"\"))","v":""},{"$f":"IF($D134>6,\"\",IF(J$5<=(VLOOKUP($A134,masterlist!$C$2:$AC$207,27,FALSE)),1,\"\"))","v":""},{"$f":"IF($D134>6,\"\",IF(K$5<=(VLOOKUP($A134,masterlist!$C$2:$AC$207,27,FALSE)),1,\"\"))","v":""},{"$f":"IF($D134>6,\"\",IF(L$5<=(VLOOKUP($A134,masterlist!$C$2:$AC$207,27,FALSE)),1,\"\"))","v":""},{"$f":"IF($D134>6,\"\",IF(M$5<=(VLOOKUP($A134,masterlist!$C$2:$AC$207,27,FALSE)),1,\"\"))","v":""},{"$f":"IF($D134>6,\"\",IF(N$5<=(VLOOKUP($A134,masterlist!$C$2:$AC$207,27,FALSE)),1,\"\"))","v":""},{"$f":"IF($D134>6,\"\",IF(O$5<=(VLOOKUP($A134,masterlist!$C$2:$AC$207,27,FALSE)),1,\"\"))","v":""},{"$f":"IF($D134>6,\"\",IF(P$5<=(VLOOKUP($A134,masterlist!$C$2:$AC$207,27,FALSE)),1,\"\"))","v":""},{"$f":"IF($D134>6,\"\",IF(Q$5<=(VLOOKUP($A134,masterlist!$C$2:$AC$207,27,FALSE)),1,\"\"))","v":""},{"$f":"IF($D134>6,\"\",IF(R$5<=(VLOOKUP($A134,masterlist!$C$2:$AC$207,27,FALSE)),1,\"\"))","v":""},null,null,null,null,0,0,0,0,0,0,0,0,0,0,0,0,0]
[{"$f":"IFERROR(priorit!A134,\"\")","v":""},"",{"$f":"IFERROR(VLOOKUP($A135,masterlist!$C$2:$AA$207,2,FALSE),\"\")","v":""},{"$f":"IFERROR(VLOOKUP($A135,masterlist!$C$2:$AA$207,3,FALSE),\"\")","v":""},{"$f":"IFERROR(VLOOKUP($A135,masterlist!$C$2:$AD$207,28,FALSE),\"\")","v":""},{"$f":"IF($D135>6,\"\",IF(F$5<=(VLOOKUP($A135,masterlist!$C$2:$AC$207,27,FALSE)),1,\"\"))","v":""},{"$f":"IF($D135>6,\"\",IF(G$5<=(VLOOKUP($A135,masterlist!$C$2:$AC$207,27,FALSE)),1,\"\"))","v":""},{"$f":"IF($D135>6,\"\",IF(H$5<=(VLOOKUP($A135,masterlist!$C$2:$AC$207,27,FALSE)),1,\"\"))","v":""},{"$f":"IF($D135>6,\"\",IF(I$5<=(VLOOKUP($A135,masterlist!$C$2:$AC$207,27,FALSE)),1,\"\"))","v":""},{"$f":"IF($D135>6,\"\",IF(J$5<=(VLOOKUP($A135,masterlist!$C$2:$AC$207,27,FALSE)),1,\"\"))","v":""},{"$f":"IF($D135>6,\"\",IF(K$5<=(VLOOKUP($A135,masterlist!$C$2:$AC$207,27,FALSE)),1,\"\"))","v":""},{"$f":"IF($D135>6,\"\",IF(L$5<=(VLOOKUP($A135,masterlist!$C$2:$AC$207,27,FALSE)),1,\"\"))","v":""},{"$f":"IF($D135>6,\"\",IF(M$5<=(VLOOKUP($A135,masterlist!$C$2:$AC$207,27,FALSE)),1,\"\"))","v":""},{"$f":"IF($D135>6,\"\",IF(N$5<=(VLOOKUP($A135,masterlist!$C$2:$AC$207,27,FALSE)),1,\"\"))","v":""},{"$f":"IF($D135>6,\"\",IF(O$5<=(VLOOKUP($A135,masterlist!$C$2:$AC$207,27,FALSE)),1,\"\"))","v":""},{"$f":"IF($D135>6,\"\",IF(P$5<=(VLOOKUP($A135,masterlist!$C$2:$AC$207,27,FALSE)),1,\"\"))","v":""},{"$f":"IF($D135>6,\"\",IF(Q$5<=(VLOOKUP($A135,masterlist!$C$2:$AC$207,27,FALSE)),1,\"\"))","v":""},{"$f":"IF($D135>6,\"\",IF(R$5<=(VLOOKUP($A135,masterlist!$C$2:$AC$207,27,FALSE)),1,\"\"))","v":""},null,null,null,null,0,0,0,0,0,0,0,0,0,0,0,0,0]
[{"$f":"IFERROR(priorit!A135,\"\")","v":""},{"$f":"IFERROR(LEFT(A136,3),\"\")","v":""},{"$f":"IFERROR(VLOOKUP($A136,masterlist!$C$2:$AA$207,2,FALSE),\"\")","v":""},{"$f":"IFERROR(VLOOKUP($A136,masterlist!$C$2:$AA$207,3,FALSE),\"\")","v":""},{"$f":"IFERROR(VLOOKUP($A136,masterlist!$C$2:$AD$207,28,FALSE),\"\")","v":""},{"$f":"IF($D136>6,\"\",IF(F$5<=(VLOOKUP($A136,masterlist!$C$2:$AC$207,27,FALSE)),1,\"\"))","v":""},{"$f":"IF($D136>6,\"\",IF(G$5<=(VLOOKUP($A136,masterlist!$C$2:$AC$207,27,FALSE)),1,\"\"))","v":""},{"$f":"IF($D136>6,\"\",IF(H$5<=(VLOOKUP($A136,masterlist!$C$2:$AC$207,27,FALSE)),1,\"\"))","v":""},{"$f":"IF($D136>6,\"\",IF(I$5<=(VLOOKUP($A136,masterlist!$C$2:$AC$207,27,FALSE)),1,\"\"))","v":""},{"$f":"IF($D136>6,\"\",IF(J$5<=(VLOOKUP($A136,masterlist!$C$2:$AC$207,27,FALSE)),1,\"\"))","v":""},{"$f":"IF($D136>6,\"\",IF(K$5<=(VLOOKUP($A136,masterlist!$C$2:$AC$207,27,FALSE)),1,\"\"))","v":""},{"$f":"IF($D136>6,\"\",IF(L$5<=(VLOOKUP($A136,masterlist!$C$2:$AC$207,27,FALSE)),1,\"\"))","v":""},{"$f":"IF($D136>6,\"\",IF(M$5<=(VLOOKUP($A136,masterlist!$C$2:$AC$207,27,FALSE)),1,\"\"))","v":""},{"$f":"IF($D136>6,\"\",IF(N$5<=(VLOOKUP($A136,masterlist!$C$2:$AC$207,27,FALSE)),1,\"\"))","v":""},{"$f":"IF($D136>6,\"\",IF(O$5<=(VLOOKUP($A136,masterlist!$C$2:$AC$207,27,FALSE)),1,\"\"))","v":""},{"$f":"IF($D136>6,\"\",IF(P$5<=(VLOOKUP($A136,masterlist!$C$2:$AC$207,27,FALSE)),1,\"\"))","v":""},{"$f":"IF($D136>6,\"\",IF(Q$5<=(VLOOKUP($A136,masterlist!$C$2:$AC$207,27,FALSE)),1,\"\"))","v":""},{"$f":"IF($D136>6,\"\",IF(R$5<=(VLOOKUP($A136,masterlist!$C$2:$AC$207,27,FALSE)),1,\"\"))","v":""},null,null,null,null,{"$f":"IF(F136=1,1,0)-IF(G136=1,1,0)","v":0},{"$f":"IF(G136=1,1,0)-IF(H136=1,1,0)","v":0},{"$f":"IF(H136=1,1,0)-IF(I136=1,1,0)","v":0},{"$f":"IF(I136=1,1,0)-IF(J136=1,1,0)","v":0},{"$f":"IF(J136=1,1,0)-IF(K136=1,1,0)","v":0},{"$f":"IF(K136=1,1,0)-IF(L136=1,1,0)","v":0},{"$f":"IF(L136=1,1,0)-IF(M136=1,1,0)","v":0},{"$f":"IF(M136=1,1,0)-IF(N136=1,1,0)","v":0},{"$f":"IF(N136=1,1,0)-IF(O136=1,1,0)","v":0},{"$f":"IF(O136=1,1,0)-IF(P136=1,1,0)","v":0},{"$f":"IF(P136=1,1,0)-IF(Q136=1,1,0)","v":0},{"$f":"IF(Q136=1,1,0)-IF(R136=1,1,0)","v":0},{"$f":"IF(R136=1,1,0)-IF(S136=1,1,0)","v":0}]
[{"$f":"IFERROR(priorit!A136,\"\")","v":""},"",{"$f":"IFERROR(VLOOKUP($A137,masterlist!$C$2:$AA$207,2,FALSE),\"\")","v":""},{"$f":"IFERROR(VLOOKUP($A137,masterlist!$C$2:$AA$207,3,FALSE),\"\")","v":""},{"$f":"IFERROR(VLOOKUP($A137,masterlist!$C$2:$AD$207,28,FALSE),\"\")","v":""},{"$f":"IF($D137>6,\"\",IF(F$5<=(VLOOKUP($A137,masterlist!$C$2:$AC$207,27,FALSE)),1,\"\"))","v":""},{"$f":"IF($D137>6,\"\",IF(G$5<=(VLOOKUP($A137,masterlist!$C$2:$AC$207,27,FALSE)),1,\"\"))","v":""},{"$f":"IF($D137>6,\"\",IF(H$5<=(VLOOKUP($A137,masterlist!$C$2:$AC$207,27,FALSE)),1,\"\"))","v":""},{"$f":"IF($D137>6,\"\",IF(I$5<=(VLOOKUP($A137,masterlist!$C$2:$AC$207,27,FALSE)),1,\"\"))","v":""},{"$f":"IF($D137>6,\"\",IF(J$5<=(VLOOKUP($A137,masterlist!$C$2:$AC$207,27,FALSE)),1,\"\"))","v":""},{"$f":"IF($D137>6,\"\",IF(K$5<=(VLOOKUP($A137,masterlist!$C$2:$AC$207,27,FALSE)),1,\"\"))","v":""},{"$f":"IF($D137>6,\"\",IF(L$5<=(VLOOKUP($A137,masterlist!$C$2:$AC$207,27,FALSE)),1,\"\"))","v":""},{"$f":"IF($D137>6,\"\",IF(M$5<=(VLOOKUP($A137,masterlist!$C$2:$AC$207,27,FALSE)),1,\"\"))","v":""},{"$f":"IF($D137>6,\"\",IF(N$5<=(VLOOKUP($A137,masterlist!$C$2:$AC$207,27,FALSE)),1,\"\"))","v":""},{"$f":"IF($D137>6,\"\",IF(O$5<=(VLOOKUP($A137,masterlist!$C$2:$AC$207,27,FALSE)),1,\"\"))","v":""},{"$f":"IF($D137>6,\"\",IF(P$5<=(VLOOKUP($A137,masterlist!$C$2:$AC$207,27,FALSE)),1,\"\"))","v":""},{"$f":"IF($D137>6,\"\",IF(Q$5<=(VLOOKUP($A137,masterlist!$C$2:$AC$207,27,FALSE)),1,\"\"))","v":""},{"$f":"IF($D137>6,\"\",IF(R$5<=(VLOOKUP($A137,masterlist!$C$2:$AC$207,27,FALSE)),1,\"\"))","v":""},null,null,null,null,0,0,0,0,0,0,0,0,0,0,0,0,0]
[{"$f":"IFERROR(priorit!A137,\"\")","v":""},"",{"$f":"IFERROR(VLOOKUP($A138,masterlist!$C$2:$AA$207,2,FALSE),\"\")","v":""},{"$f":"IFERROR(VLOOKUP($A138,masterlist!$C$2:$AA$207,3,FALSE),\"\")","v":""},{"$f":"IFERROR(VLOOKUP($A138,masterlist!$C$2:$AD$207,28,FALSE),\"\")","v":""},{"$f":"IF($D138>6,\"\",IF(F$5<=(VLOOKUP($A138,masterlist!$C$2:$AC$207,27,FALSE)),1,\"\"))","v":""},{"$f":"IF($D138>6,\"\",IF(G$5<=(VLOOKUP($A138,masterlist!$C$2:$AC$207,27,FALSE)),1,\"\"))","v":""},{"$f":"IF($D138>6,\"\",IF(H$5<=(VLOOKUP($A138,masterlist!$C$2:$AC$207,27,FALSE)),1,\"\"))","v":""},{"$f":"IF($D138>6,\"\",IF(I$5<=(VLOOKUP($A138,masterlist!$C$2:$AC$207,27,FALSE)),1,\"\"))","v":""},{"$f":"IF($D138>6,\"\",IF(J$5<=(VLOOKUP($A138,masterlist!$C$2:$AC$207,27,FALSE)),1,\"\"))","v":""},{"$f":"IF($D138>6,\"\",IF(K$5<=(VLOOKUP($A138,masterlist!$C$2:$AC$207,27,FALSE)),1,\"\"))","v":""},{"$f":"IF($D138>6,\"\",IF(L$5<=(VLOOKUP($A138,masterlist!$C$2:$AC$207,27,FALSE)),1,\"\"))","v":""},{"$f":"IF($D138>6,\"\",IF(M$5<=(VLOOKUP($A138,masterlist!$C$2:$AC$207,27,FALSE)),1,\"\"))","v":""},{"$f":"IF($D138>6,\"\",IF(N$5<=(VLOOKUP($A138,masterlist!$C$2:$AC$207,27,FALSE)),1,\"\"))","v":""},{"$f":"IF($D138>6,\"\",IF(O$5<=(VLOOKUP($A138,masterlist!$C$2:$AC$207,27,FALSE)),1,\"\"))","v":""},{"$f":"IF($D138>6,\"\",IF(P$5<=(VLOOKUP($A138,masterlist!$C$2:$AC$207,27,FALSE)),1,\"\"))","v":""},{"$f":"IF($D138>6,\"\",IF(Q$5<=(VLOOKUP($A138,masterlist!$C$2:$AC$207,27,FALSE)),1,\"\"))","v":""},{"$f":"IF($D138>6,\"\",IF(R$5<=(VLOOKUP($A138,masterlist!$C$2:$AC$207,27,FALSE)),1,\"\"))","v":""},null,null,null,null,0,0,0,0,0,0,0,0,0,0,0,0,0]
[{"$f":"IFERROR(priorit!A138,\"\")","v":""},"",{"$f":"IFERROR(VLOOKUP($A139,masterlist!$C$2:$AA$207,2,FALSE),\"\")","v":""},{"$f":"IFERROR(VLOOKUP($A139,masterlist!$C$2:$AA$207,3,FALSE),\"\")","v":""},{"$f":"IFERROR(VLOOKUP($A139,masterlist!$C$2:$AD$207,28,FALSE),\"\")","v":""},{"$f":"IF($D139>6,\"\",IF(F$5<=(VLOOKUP($A139,masterlist!$C$2:$AC$207,27,FALSE)),1,\"\"))","v":""},{"$f":"IF($D139>6,\"\",IF(G$5<=(VLOOKUP($A139,masterlist!$C$2:$AC$207,27,FALSE)),1,\"\"))","v":""},{"$f":"IF($D139>6,\"\",IF(H$5<=(VLOOKUP($A139,masterlist!$C$2:$AC$207,27,FALSE)),1,\"\"))","v":""},{"$f":"IF($D139>6,\"\",IF(I$5<=(VLOOKUP($A139,masterlist!$C$2:$AC$207,27,FALSE)),1,\"\"))","v":""},{"$f":"IF($D139>6,\"\",IF(J$5<=(VLOOKUP($A139,masterlist!$C$2:$AC$207,27,FALSE)),1,\"\"))","v":""},{"$f":"IF($D139>6,\"\",IF(K$5<=(VLOOKUP($A139,masterlist!$C$2:$AC$207,27,FALSE)),1,\"\"))","v":""},{"$f":"IF($D139>6,\"\",IF(L$5<=(VLOOKUP($A139,masterlist!$C$2:$AC$207,27,FALSE)),1,\"\"))","v":""},{"$f":"IF($D139>6,\"\",IF(M$5<=(VLOOKUP($A139,masterlist!$C$2:$AC$207,27,FALSE)),1,\"\"))","v":""},{"$f":"IF($D139>6,\"\",IF(N$5<=(VLOOKUP($A139,masterlist!$C$2:$AC$207,27,FALSE)),1,\"\"))","v":""},{"$f":"IF($D139>6,\"\",IF(O$5<=(VLOOKUP($A139,masterlist!$C$2:$AC$207,27,FALSE)),1,\"\"))","v":""},{"$f":"IF($D139>6,\"\",IF(P$5<=(VLOOKUP($A139,masterlist!$C$2:$AC$207,27,FALSE)),1,\"\"))","v":""},{"$f":"IF($D139>6,\"\",IF(Q$5<=(VLOOKUP($A139,masterlist!$C$2:$AC$207,27,FALSE)),1,\"\"))","v":""},{"$f":"IF($D139>6,\"\",IF(R$5<=(VLOOKUP($A139,masterlist!$C$2:$AC$207,27,FALSE)),1,\"\"))","v":""},null,null,null,null,0,0,0,0,0,0,0,0,0,0,0,0,0]
[{"$f":"IFERROR(priorit!A139,\"\")","v":""},"",{"$f":"IFERROR(VLOOKUP($A140,masterlist!$C$2:$AA$207,2,FALSE),\"\")","v":""},{"$f":"IFERROR(VLOOKUP($A140,masterlist!$C$2:$AA$207,3,FALSE),\"\")","v":""},{"$f":"IFERROR(VLOOKUP($A140,masterlist!$C$2:$AD$207,28,FALSE),\"\")","v":""},{"$f":"IF($D140>6,\"\",IF(F$5<=(VLOOKUP($A140,masterlist!$C$2:$AC$207,27,FALSE)),1,\"\"))","v":""},{"$f":"IF($D140>6,\"\",IF(G$5<=(VLOOKUP($A140,masterlist!$C$2:$AC$207,27,FALSE)),1,\"\"))","v":""},{"$f":"IF($D140>6,\"\",IF(H$5<=(VLOOKUP($A140,masterlist!$C$2:$AC$207,27,FALSE)),1,\"\"))","v":""},{"$f":"IF($D140>6,\"\",IF(I$5<=(VLOOKUP($A140,masterlist!$C$2:$AC$207,27,FALSE)),1,\"\"))","v":""},{"$f":"IF($D140>6,\"\",IF(J$5<=(VLOOKUP($A140,masterlist!$C$2:$AC$207,27,FALSE)),1,\"\"))","v":""},{"$f":"IF($D140>6,\"\",IF(K$5<=(VLOOKUP($A140,masterlist!$C$2:$AC$207,27,FALSE)),1,\"\"))","v":""},{"$f":"IF($D140>6,\"\",IF(L$5<=(VLOOKUP($A140,masterlist!$C$2:$AC$207,27,FALSE)),1,\"\"))","v":""},{"$f":"IF($D140>6,\"\",IF(M$5<=(VLOOKUP($A140,masterlist!$C$2:$AC$207,27,FALSE)),1,\"\"))","v":""},{"$f":"IF($D140>6,\"\",IF(N$5<=(VLOOKUP($A140,masterlist!$C$2:$AC$207,27,FALSE)),1,\"\"))","v":""},{"$f":"IF($D140>6,\"\",IF(O$5<=(VLOOKUP($A140,masterlist!$C$2:$AC$207,27,FALSE)),1,\"\"))","v":""},{"$f":"IF($D140>6,\"\",IF(P$5<=(VLOOKUP($A140,masterlist!$C$2:$AC$207,27,FALSE)),1,\"\"))","v":""},{"$f":"IF($D140>6,\"\",IF(Q$5<=(VLOOKUP($A140,masterlist!$C$2:$AC$207,27,FALSE)),1,\"\"))","v":""},{"$f":"IF($D140>6,\"\",IF(R$5<=(VLOOKUP($A140,masterlist!$C$2:$AC$207,27,FALSE)),1,\"\"))","v":""},null,null,null,null,0,0,0,0,0,0,0,0,0,0,0,0,0]
[{"$f":"IFERROR(priorit!A140,\"\")","v":""},"",{"$f":"IFERROR(VLOOKUP($A141,masterlist!$C$2:$AA$207,2,FALSE),\"\")","v":""},{"$f":"IFERROR(VLOOKUP($A141,masterlist!$C$2:$AA$207,3,FALSE),\"\")","v":""},{"$f":"IFERROR(VLOOKUP($A141,masterlist!$C$2:$AD$207,28,FALSE),\"\")","v":""},{"$f":"IF($D141>6,\"\",IF(F$5<=(VLOOKUP($A141,masterlist!$C$2:$AC$207,27,FALSE)),1,\"\"))","v":""},{"$f":"IF($D141>6,\"\",IF(G$5<=(VLOOKUP($A141,masterlist!$C$2:$AC$207,27,FALSE)),1,\"\"))","v":""},{"$f":"IF($D141>6,\"\",IF(H$5<=(VLOOKUP($A141,masterlist!$C$2:$AC$207,27,FALSE)),1,\"\"))","v":""},{"$f":"IF($D141>6,\"\",IF(I$5<=(VLOOKUP($A141,masterlist!$C$2:$AC$207,27,FALSE)),1,\"\"))","v":""},{"$f":"IF($D141>6,\"\",IF(J$5<=(VLOOKUP($A141,masterlist!$C$2:$AC$207,27,FALSE)),1,\"\"))","v":""},{"$f":"IF($D141>6,\"\",IF(K$5<=(VLOOKUP($A141,masterlist!$C$2:$AC$207,27,FALSE)),1,\"\"))","v":""},{"$f":"IF($D141>6,\"\",IF(L$5<=(VLOOKUP($A141,masterlist!$C$2:$AC$207,27,FALSE)),1,\"\"))","v":""},{"$f":"IF($D141>6,\"\",IF(M$5<=(VLOOKUP($A141,masterlist!$C$2:$AC$207,27,FALSE)),1,\"\"))","v":""},{"$f":"IF($D141>6,\"\",IF(N$5<=(VLOOKUP($A141,masterlist!$C$2:$AC$207,27,FALSE)),1,\"\"))","v":""},{"$f":"IF($D141>6,\"\",IF(O$5<=(VLOOKUP($A141,masterlist!$C$2:$AC$207,27,FALSE)),1,\"\"))","v":""},{"$f":"IF($D141>6,\"\",IF(P$5<=(VLOOKUP($A141,masterlist!$C$2:$AC$207,27,FALSE)),1,\"\"))","v":""},{"$f":"IF($D141>6,\"\",IF(Q$5<=(VLOOKUP($A141,masterlist!$C$2:$AC$207,27,FALSE)),1,\"\"))","v":""},{"$f":"IF($D141>6,\"\",IF(R$5<=(VLOOKUP($A141,masterlist!$C$2:$AC$207,27,FALSE)),1,\"\"))","v":""},null,null,null,null,0,0,0,0,0,0,0,0,0,0,0,0,0]
[{"$f":"IFERROR(priorit!A141,\"\")","v":""},"",{"$f":"IFERROR(VLOOKUP($A142,masterlist!$C$2:$AA$207,2,FALSE),\"\")","v":""},{"$f":"IFERROR(VLOOKUP($A142,masterlist!$C$2:$AA$207,3,FALSE),\"\")","v":""},{"$f":"IFERROR(VLOOKUP($A142,masterlist!$C$2:$AD$207,28,FALSE),\"\")","v":""},{"$f":"IF($D142>6,\"\",IF(F$5<=(VLOOKUP($A142,masterlist!$C$2:$AC$207,27,FALSE)),1,\"\"))","v":""},{"$f":"IF($D142>6,\"\",IF(G$5<=(VLOOKUP($A142,masterlist!$C$2:$AC$207,27,FALSE)),1,\"\"))","v":""},{"$f":"IF($D142>6,\"\",IF(H$5<=(VLOOKUP($A142,masterlist!$C$2:$AC$207,27,FALSE)),1,\"\"))","v":""},{"$f":"IF($D142>6,\"\",IF(I$5<=(VLOOKUP($A142,masterlist!$C$2:$AC$207,27,FALSE)),1,\"\"))","v":""},{"$f":"IF($D142>6,\"\",IF(J$5<=(VLOOKUP($A142,masterlist!$C$2:$AC$207,27,FALSE)),1,\"\"))","v":""},{"$f":"IF($D142>6,\"\",IF(K$5<=(VLOOKUP($A142,masterlist!$C$2:$AC$207,27,FALSE)),1,\"\"))","v":""},{"$f":"IF($D142>6,\"\",IF(L$5<=(VLOOKUP($A142,masterlist!$C$2:$AC$207,27,FALSE)),1,\"\"))","v":""},{"$f":"IF($D142>6,\"\",IF(M$5<=(VLOOKUP($A142,masterlist!$C$2:$AC$207,27,FALSE)),1,\"\"))","v":""},{"$f":"IF($D142>6,\"\",IF(N$5<=(VLOOKUP($A142,masterlist!$C$2:$AC$207,27,FALSE)),1,\"\"))","v":""},{"$f":"IF($D142>6,\"\",IF(O$5<=(VLOOKUP($A142,masterlist!$C$2:$AC$207,27,FALSE)),1,\"\"))","v":""},{"$f":"IF($D142>6,\"\",IF(P$5<=(VLOOKUP($A142,masterlist!$C$2:$AC$207,27,FALSE)),1,\"\"))","v":""},{"$f":"IF($D142>6,\"\",IF(Q$5<=(VLOOKUP($A142,masterlist!$C$2:$AC$207,27,FALSE)),1,\"\"))","v":""},{"$f":"IF($D142>6,\"\",IF(R$5<=(VLOOKUP($A142,masterlist!$C$2:$AC$207,27,FALSE)),1,\"\"))","v":""},null,null,null,null,0,0,0,0,0,0,0,0,0,0,0,0,0]
[{"$f":"IFERROR(priorit!A142,\"\")","v":""},"",{"$f":"IFERROR(VLOOKUP($A143,masterlist!$C$2:$AA$207,2,FALSE),\"\")","v":""},{"$f":"IFERROR(VLOOKUP($A143,masterlist!$C$2:$AA$207,3,FALSE),\"\")","v":""},{"$f":"IFERROR(VLOOKUP($A143,masterlist!$C$2:$AD$207,28,FALSE),\"\")","v":""},{"$f":"IF($D143>6,\"\",IF(F$5<=(VLOOKUP($A143,masterlist!$C$2:$AC$207,27,FALSE)),1,\"\"))","v":""},{"$f":"IF($D143>6,\"\",IF(G$5<=(VLOOKUP($A143,masterlist!$C$2:$AC$207,27,FALSE)),1,\"\"))","v":""},{"$f":"IF($D143>6,\"\",IF(H$5<=(VLOOKUP($A143,masterlist!$C$2:$AC$207,27,FALSE)),1,\"\"))","v":""},{"$f":"IF($D143>6,\"\",IF(I$5<=(VLOOKUP($A143,masterlist!$C$2:$AC$207,27,FALSE)),1,\"\"))","v":""},{"$f":"IF($D143>6,\"\",IF(J$5<=(VLOOKUP($A143,masterlist!$C$2:$AC$207,27,FALSE)),1,\"\"))","v":""},{"$f":"IF($D143>6,\"\",IF(K$5<=(VLOOKUP($A143,masterlist!$C$2:$AC$207,27,FALSE)),1,\"\"))","v":""},{"$f":"IF($D143>6,\"\",IF(L$5<=(VLOOKUP($A143,masterlist!$C$2:$AC$207,27,FALSE)),1,\"\"))","v":""},{"$f":"IF($D143>6,\"\",IF(M$5<=(VLOOKUP($A143,masterlist!$C$2:$AC$207,27,FALSE)),1,\"\"))","v":""},{"$f":"IF($D143>6,\"\",IF(N$5<=(VLOOKUP($A143,masterlist!$C$2:$AC$207,27,FALSE)),1,\"\"))","v":""},{"$f":"IF($D143>6,\"\",IF(O$5<=(VLOOKUP($A143,masterlist!$C$2:$AC$207,27,FALSE)),1,\"\"))","v":""},{"$f":"IF($D143>6,\"\",IF(P$5<=(VLOOKUP($A143,masterlist!$C$2:$AC$207,27,FALSE)),1,\"\"))","v":""},{"$f":"IF($D143>6,\"\",IF(Q$5<=(VLOOKUP($A143,masterlist!$C$2:$AC$207,27,FALSE)),1,\"\"))","v":""},{"$f":"IF($D143>6,\"\",IF(R$5<=(VLOOKUP($A143,masterlist!$C$2:$AC$207,27,FALSE)),1,\"\"))","v":""},null,null,null,null,0,0,0,0,0,0,0,0,0,0,0,0,0]
[{"$f":"IFERROR(priorit!A143,\"\")","v":""},"",{"$f":"IFERROR(VLOOKUP($A144,masterlist!$C$2:$AA$207,2,FALSE),\"\")","v":""},{"$f":"IFERROR(VLOOKUP($A144,masterlist!$C$2:$AA$207,3,FALSE),\"\")","v":""},{"$f":"IFERROR(VLOOKUP($A144,masterlist!$C$2:$AD$207,28,FALSE),\"\")","v":""},{"$f":"IF($D144>6,\"\",IF(F$5<=(VLOOKUP($A144,masterlist!$C$2:$AC$207,27,FALSE)),1,\"\"))","v":""},{"$f":"IF($D144>6,\"\",IF(G$5<=(VLOOKUP($A144,masterlist!$C$2:$AC$207,27,FALSE)),1,\"\"))","v":""},{"$f":"IF($D144>6,\"\",IF(H$5<=(VLOOKUP($A144,masterlist!$C$2:$AC$207,27,FALSE)),1,\"\"))","v":""},{"$f":"IF($D144>6,\"\",IF(I$5<=(VLOOKUP($A144,masterlist!$C$2:$AC$207,27,FALSE)),1,\"\"))","v":""},{"$f":"IF($D144>6,\"\",IF(J$5<=(VLOOKUP($A144,masterlist!$C$2:$AC$207,27,FALSE)),1,\"\"))","v":""},{"$f":"IF($D144>6,\"\",IF(K$5<=(VLOOKUP($A144,masterlist!$C$2:$AC$207,27,FALSE)),1,\"\"))","v":""},{"$f":"IF($D144>6,\"\",IF(L$5<=(VLOOKUP($A144,masterlist!$C$2:$AC$207,27,FALSE)),1,\"\"))","v":""},{"$f":"IF($D144>6,\"\",IF(M$5<=(VLOOKUP($A144,masterlist!$C$2:$AC$207,27,FALSE)),1,\"\"))","v":""},{"$f":"IF($D144>6,\"\",IF(N$5<=(VLOOKUP($A144,masterlist!$C$2:$AC$207,27,FALSE)),1,\"\"))","v":""},{"$f":"IF($D144>6,\"\",IF(O$5<=(VLOOKUP($A144,masterlist!$C$2:$AC$207,27,FALSE)),1,\"\"))","v":""},{"$f":"IF($D144>6,\"\",IF(P$5<=(VLOOKUP($A144,masterlist!$C$2:$AC$207,27,FALSE)),1,\"\"))","v":""},{"$f":"IF($D144>6,\"\",IF(Q$5<=(VLOOKUP($A144,masterlist!$C$2:$AC$207,27,FALSE)),1,\"\"))","v":""},{"$f":"IF($D144>6,\"\",IF(R$5<=(VLOOKUP($A144,masterlist!$C$2:$AC$207,27,FALSE)),1,\"\"))","v":""},null,null,null,null,0,0,0,0,0,0,0,0,0,0,0,0,0]
[{"$f":"IFERROR(priorit!A144,\"\")","v":""},"",{"$f":"IFERROR(VLOOKUP($A145,masterlist!$C$2:$AA$207,2,FALSE),\"\")","v":""},{"$f":"IFERROR(VLOOKUP($A145,masterlist!$C$2:$AA$207,3,FALSE),\"\")","v":""},{"$f":"IFERROR(VLOOKUP($A145,masterlist!$C$2:$AD$207,28,FALSE),\"\")","v":""},{"$f":"IF($D145>6,\"\",IF(F$5<=(VLOOKUP($A145,masterlist!$C$2:$AC$207,27,FALSE)),1,\"\"))","v":""},{"$f":"IF($D145>6,\"\",IF(G$5<=(VLOOKUP($A145,masterlist!$C$2:$AC$207,27,FALSE)),1,\"\"))","v":""},{"$f":"IF($D145>6,\"\",IF(H$5<=(VLOOKUP($A145,masterlist!$C$2:$AC$207,27,FALSE)),1,\"\"))","v":""},{"$f":"IF($D145>6,\"\",IF(I$5<=(VLOOKUP($A145,masterlist!$C$2:$AC$207,27,FALSE)),1,\"\"))","v":""},{"$f":"IF($D145>6,\"\",IF(J$5<=(VLOOKUP($A145,masterlist!$C$2:$AC$207,27,FALSE)),1,\"\"))","v":""},{"$f":"IF($D145>6,\"\",IF(K$5<=(VLOOKUP($A145,masterlist!$C$2:$AC$207,27,FALSE)),1,\"\"))","v":""},{"$f":"IF($D145>6,\"\",IF(L$5<=(VLOOKUP($A145,masterlist!$C$2:$AC$207,27,FALSE)),1,\"\"))","v":""},{"$f":"IF($D145>6,\"\",IF(M$5<=(VLOOKUP($A145,masterlist!$C$2:$AC$207,27,FALSE)),1,\"\"))","v":""},{"$f":"IF($D145>6,\"\",IF(N$5<=(VLOOKUP($A145,masterlist!$C$2:$AC$207,27,FALSE)),1,\"\"))","v":""},{"$f":"IF($D145>6,\"\",IF(O$5<=(VLOOKUP($A145,masterlist!$C$2:$AC$207,27,FALSE)),1,\"\"))","v":""},{"$f":"IF($D145>6,\"\",IF(P$5<=(VLOOKUP($A145,masterlist!$C$2:$AC$207,27,FALSE)),1,\"\"))","v":""},{"$f":"IF($D145>6,\"\",IF(Q$5<=(VLOOKUP($A145,masterlist!$C$2:$AC$207,27,FALSE)),1,\"\"))","v":""},{"$f":"IF($D145>6,\"\",IF(R$5<=(VLOOKUP($A145,masterlist!$C$2:$AC$207,27,FALSE)),1,\"\"))","v":""},null,null,null,null,0,0,0,0,0,0,0,0,0,0,0,0,0]
[{"$f":"IFERROR(priorit!A145,\"\")","v":""},"",{"$f":"IFERROR(VLOOKUP($A146,masterlist!$C$2:$AA$207,2,FALSE),\"\")","v":""},{"$f":"IFERROR(VLOOKUP($A146,masterlist!$C$2:$AA$207,3,FALSE),\"\")","v":""},{"$f":"IFERROR(VLOOKUP($A146,masterlist!$C$2:$AD$207,28,FALSE),\"\")","v":""},{"$f":"IF($D146>6,\"\",IF(F$5<=(VLOOKUP($A146,masterlist!$C$2:$AC$207,27,FALSE)),1,\"\"))","v":""},{"$f":"IF($D146>6,\"\",IF(G$5<=(VLOOKUP($A146,masterlist!$C$2:$AC$207,27,FALSE)),1,\"\"))","v":""},{"$f":"IF($D146>6,\"\",IF(H$5<=(VLOOKUP($A146,masterlist!$C$2:$AC$207,27,FALSE)),1,\"\"))","v":""},{"$f":"IF($D146>6,\"\",IF(I$5<=(VLOOKUP($A146,masterlist!$C$2:$AC$207,27,FALSE)),1,\"\"))","v":""},{"$f":"IF($D146>6,\"\",IF(J$5<=(VLOOKUP($A146,masterlist!$C$2:$AC$207,27,FALSE)),1,\"\"))","v":""},{"$f":"IF($D146>6,\"\",IF(K$5<=(VLOOKUP($A146,masterlist!$C$2:$AC$207,27,FALSE)),1,\"\"))","v":""},{"$f":"IF($D146>6,\"\",IF(L$5<=(VLOOKUP($A146,masterlist!$C$2:$AC$207,27,FALSE)),1,\"\"))","v":""},{"$f":"IF($D146>6,\"\",IF(M$5<=(VLOOKUP($A146,masterlist!$C$2:$AC$207,27,FALSE)),1,\"\"))","v":""},{"$f":"IF($D146>6,\"\",IF(N$5<=(VLOOKUP($A146,masterlist!$C$2:$AC$207,27,FALSE)),1,\"\"))","v":""},{"$f":"IF($D146>6,\"\",IF(O$5<=(VLOOKUP($A146,masterlist!$C$2:$AC$207,27,FALSE)),1,\"\"))","v":""},{"$f":"IF($D146>6,\"\",IF(P$5<=(VLOOKUP($A146,masterlist!$C$2:$AC$207,27,FALSE)),1,\"\"))","v":""},{"$f":"IF($D146>6,\"\",IF(Q$5<=(VLOOKUP($A146,masterlist!$C$2:$AC$207,27,FALSE)),1,\"\"))","v":""},{"$f":"IF($D146>6,\"\",IF(R$5<=(VLOOKUP($A146,masterlist!$C$2:$AC$207,27,FALSE)),1,\"\"))","v":""},null,null,null,null,0,0,0,0,0,0,0,0,0,0,0,0,0]
[{"$f":"IFERROR(priorit!A146,\"\")","v":""},"",{"$f":"IFERROR(VLOOKUP($A147,masterlist!$C$2:$AA$207,2,FALSE),\"\")","v":""},{"$f":"IFERROR(VLOOKUP($A147,masterlist!$C$2:$AA$207,3,FALSE),\"\")","v":""},{"$f":"IFERROR(VLOOKUP($A147,masterlist!$C$2:$AD$207,28,FALSE),\"\")","v":""},{"$f":"IF($D147>6,\"\",IF(F$5<=(VLOOKUP($A147,masterlist!$C$2:$AC$207,27,FALSE)),1,\"\"))","v":""},{"$f":"IF($D147>6,\"\",IF(G$5<=(VLOOKUP($A147,masterlist!$C$2:$AC$207,27,FALSE)),1,\"\"))","v":""},{"$f":"IF($D147>6,\"\",IF(H$5<=(VLOOKUP($A147,masterlist!$C$2:$AC$207,27,FALSE)),1,\"\"))","v":""},{"$f":"IF($D147>6,\"\",IF(I$5<=(VLOOKUP($A147,masterlist!$C$2:$AC$207,27,FALSE)),1,\"\"))","v":""},{"$f":"IF($D147>6,\"\",IF(J$5<=(VLOOKUP($A147,masterlist!$C$2:$AC$207,27,FALSE)),1,\"\"))","v":""},{"$f":"IF($D147>6,\"\",IF(K$5<=(VLOOKUP($A147,masterlist!$C$2:$AC$207,27,FALSE)),1,\"\"))","v":""},{"$f":"IF($D147>6,\"\",IF(L$5<=(VLOOKUP($A147,masterlist!$C$2:$AC$207,27,FALSE)),1,\"\"))","v":""},{"$f":"IF($D147>6,\"\",IF(M$5<=(VLOOKUP($A147,masterlist!$C$2:$AC$207,27,FALSE)),1,\"\"))","v":""},{"$f":"IF($D147>6,\"\",IF(N$5<=(VLOOKUP($A147,masterlist!$C$2:$AC$207,27,FALSE)),1,\"\"))","v":""},{"$f":"IF($D147>6,\"\",IF(O$5<=(VLOOKUP($A147,masterlist!$C$2:$AC$207,27,FALSE)),1,\"\"))","v":""},{"$f":"IF($D147>6,\"\",IF(P$5<=(VLOOKUP($A147,masterlist!$C$2:$AC$207,27,FALSE)),1,\"\"))","v":""},{"$f":"IF($D147>6,\"\",IF(Q$5<=(VLOOKUP($A147,masterlist!$C$2:$AC$207,27,FALSE)),1,\"\"))","v":""},{"$f":"IF($D147>6,\"\",IF(R$5<=(VLOOKUP($A147,masterlist!$C$2:$AC$207,27,FALSE)),1,\"\"))","v":""},null,null,null,null,0,0,0,0,0,0,0,0,0,0,0,0,0]
[{"$f":"IFERROR(priorit!A147,\"\")","v":""},"",{"$f":"IFERROR(VLOOKUP($A148,masterlist!$C$2:$AA$207,2,FALSE),\"\")","v":""},{"$f":"IFERROR(VLOOKUP($A148,masterlist!$C$2:$AA$207,3,FALSE),\"\")","v":""},{"$f":"IFERROR(VLOOKUP($A148,masterlist!$C$2:$AD$207,28,FALSE),\"\")","v":""},{"$f":"IF($D148>6,\"\",IF(F$5<=(VLOOKUP($A148,masterlist!$C$2:$AC$207,27,FALSE)),1,\"\"))","v":""},{"$f":"IF($D148>6,\"\",IF(G$5<=(VLOOKUP($A148,masterlist!$C$2:$AC$207,27,FALSE)),1,\"\"))","v":""},{"$f":"IF($D148>6,\"\",IF(H$5<=(VLOOKUP($A148,masterlist!$C$2:$AC$207,27,FALSE)),1,\"\"))","v":""},{"$f":"IF($D148>6,\"\",IF(I$5<=(VLOOKUP($A148,masterlist!$C$2:$AC$207,27,FALSE)),1,\"\"))","v":""},{"$f":"IF($D148>6,\"\",IF(J$5<=(VLOOKUP($A148,masterlist!$C$2:$AC$207,27,FALSE)),1,\"\"))","v":""},{"$f":"IF($D148>6,\"\",IF(K$5<=(VLOOKUP($A148,masterlist!$C$2:$AC$207,27,FALSE)),1,\"\"))","v":""},{"$f":"IF($D148>6,\"\",IF(L$5<=(VLOOKUP($A148,masterlist!$C$2:$AC$207,27,FALSE)),1,\"\"))","v":""},{"$f":"IF($D148>6,\"\",IF(M$5<=(VLOOKUP($A148,masterlist!$C$2:$AC$207,27,FALSE)),1,\"\"))","v":""},{"$f":"IF($D148>6,\"\",IF(N$5<=(VLOOKUP($A148,masterlist!$C$2:$AC$207,27,FALSE)),1,\"\"))","v":""},{"$f":"IF($D148>6,\"\",IF(O$5<=(VLOOKUP($A148,masterlist!$C$2:$AC$207,27,FALSE)),1,\"\"))","v":""},{"$f":"IF($D148>6,\"\",IF(P$5<=(VLOOKUP($A148,masterlist!$C$2:$AC$207,27,FALSE)),1,\"\"))","v":""},{"$f":"IF($D148>6,\"\",IF(Q$5<=(VLOOKUP($A148,masterlist!$C$2:$AC$207,27,FALSE)),1,\"\"))","v":""},{"$f":"IF($D148>6,\"\",IF(R$5<=(VLOOKUP($A148,masterlist!$C$2:$AC$207,27,FALSE)),1,\"\"))","v":""},null,null,null,null,0,0,0,0,0,0,0,0,0,0,0,0,0]
[{"$f":"IFERROR(priorit!A148,\"\")","v":""},"",{"$f":"IFERROR(VLOOKUP($A149,masterlist!$C$2:$AA$207,2,FALSE),\"\")","v":""},{"$f":"IFERROR(VLOOKUP($A149,masterlist!$C$2:$AA$207,3,FALSE),\"\")","v":""},{"$f":"IFERROR(VLOOKUP($A149,masterlist!$C$2:$AD$207,28,FALSE),\"\")","v":""},{"$f":"IF($D149>6,\"\",IF(F$5<=(VLOOKUP($A149,masterlist!$C$2:$AC$207,27,FALSE)),1,\"\"))","v":""},{"$f":"IF($D149>6,\"\",IF(G$5<=(VLOOKUP($A149,masterlist!$C$2:$AC$207,27,FALSE)),1,\"\"))","v":""},{"$f":"IF($D149>6,\"\",IF(H$5<=(VLOOKUP($A149,masterlist!$C$2:$AC$207,27,FALSE)),1,\"\"))","v":""},{"$f":"IF($D149>6,\"\",IF(I$5<=(VLOOKUP($A149,masterlist!$C$2:$AC$207,27,FALSE)),1,\"\"))","v":""},{"$f":"IF($D149>6,\"\",IF(J$5<=(VLOOKUP($A149,masterlist!$C$2:$AC$207,27,FALSE)),1,\"\"))","v":""},{"$f":"IF($D149>6,\"\",IF(K$5<=(VLOOKUP($A149,masterlist!$C$2:$AC$207,27,FALSE)),1,\"\"))","v":""},{"$f":"IF($D149>6,\"\",IF(L$5<=(VLOOKUP($A149,masterlist!$C$2:$AC$207,27,FALSE)),1,\"\"))","v":""},{"$f":"IF($D149>6,\"\",IF(M$5<=(VLOOKUP($A149,masterlist!$C$2:$AC$207,27,FALSE)),1,\"\"))","v":""},{"$f":"IF($D149>6,\"\",IF(N$5<=(VLOOKUP($A149,masterlist!$C$2:$AC$207,27,FALSE)),1,\"\"))","v":""},{"$f":"IF($D149>6,\"\",IF(O$5<=(VLOOKUP($A149,masterlist!$C$2:$AC$207,27,FALSE)),1,\"\"))","v":""},{"$f":"IF($D149>6,\"\",IF(P$5<=(VLOOKUP($A149,masterlist!$C$2:$AC$207,27,FALSE)),1,\"\"))","v":""},{"$f":"IF($D149>6,\"\",IF(Q$5<=(VLOOKUP($A149,masterlist!$C$2:$AC$207,27,FALSE)),1,\"\"))","v":""},{"$f":"IF($D149>6,\"\",IF(R$5<=(VLOOKUP($A149,masterlist!$C$2:$AC$207,27,FALSE)),1,\"\"))","v":""},null,null,null,null,0,0,0,0,0,0,0,0,0,0,0,0,0]
[{"$f":"IFERROR(priorit!A149,\"\")","v":""},"",{"$f":"IFERROR(VLOOKUP($A150,masterlist!$C$2:$AA$207,2,FALSE),\"\")","v":""},{"$f":"IFERROR(VLOOKUP($A150,masterlist!$C$2:$AA$207,3,FALSE),\"\")","v":""},{"$f":"IFERROR(VLOOKUP($A150,masterlist!$C$2:$AD$207,28,FALSE),\"\")","v":""},{"$f":"IF($D150>6,\"\",IF(F$5<=(VLOOKUP($A150,masterlist!$C$2:$AC$207,27,FALSE)),1,\"\"))","v":""},{"$f":"IF($D150>6,\"\",IF(G$5<=(VLOOKUP($A150,masterlist!$C$2:$AC$207,27,FALSE)),1,\"\"))","v":""},{"$f":"IF($D150>6,\"\",IF(H$5<=(VLOOKUP($A150,masterlist!$C$2:$AC$207,27,FALSE)),1,\"\"))","v":""},{"$f":"IF($D150>6,\"\",IF(I$5<=(VLOOKUP($A150,masterlist!$C$2:$AC$207,27,FALSE)),1,\"\"))","v":""},{"$f":"IF($D150>6,\"\",IF(J$5<=(VLOOKUP($A150,masterlist!$C$2:$AC$207,27,FALSE)),1,\"\"))","v":""},{"$f":"IF($D150>6,\"\",IF(K$5<=(VLOOKUP($A150,masterlist!$C$2:$AC$207,27,FALSE)),1,\"\"))","v":""},{"$f":"IF($D150>6,\"\",IF(L$5<=(VLOOKUP($A150,masterlist!$C$2:$AC$207,27,FALSE)),1,\"\"))","v":""},{"$f":"IF($D150>6,\"\",IF(M$5<=(VLOOKUP($A150,masterlist!$C$2:$AC$207,27,FALSE)),1,\"\"))","v":""},{"$f":"IF($D150>6,\"\",IF(N$5<=(VLOOKUP($A150,masterlist!$C$2:$AC$207,27,FALSE)),1,\"\"))","v":""},{"$f":"IF($D150>6,\"\",IF(O$5<=(VLOOKUP($A150,masterlist!$C$2:$AC$207,27,FALSE)),1,\"\"))","v":""},{"$f":"IF($D150>6,\"\",IF(P$5<=(VLOOKUP($A150,masterlist!$C$2:$AC$207,27,FALSE)),1,\"\"))","v":""},{"$f":"IF($D150>6,\"\",IF(Q$5<=(VLOOKUP($A150,masterlist!$C$2:$AC$207,27,FALSE)),1,\"\"))","v":""},{"$f":"IF($D150>6,\"\",IF(R$5<=(VLOOKUP($A150,masterlist!$C$2:$AC$207,27,FALSE)),1,\"\"))","v":""},null,null,null,null,0,0,0,0,0,0,0,0,0,0,0,0,0]
[{"$f":"IFERROR(priorit!A150,\"\")","v":""},"",{"$f":"IFERROR(VLOOKUP($A151,masterlist!$C$2:$AA$207,2,FALSE),\"\")","v":""},{"$f":"IFERROR(VLOOKUP($A151,masterlist!$C$2:$AA$207,3,FALSE),\"\")","v":""},{"$f":"IFERROR(VLOOKUP($A151,masterlist!$C$2:$AD$207,28,FALSE),\"\")","v":""},{"$f":"IF($D151>6,\"\",IF(F$5<=(VLOOKUP($A151,masterlist!$C$2:$AC$207,27,FALSE)),1,\"\"))","v":""},{"$f":"IF($D151>6,\"\",IF(G$5<=(VLOOKUP($A151,masterlist!$C$2:$AC$207,27,FALSE)),1,\"\"))","v":""},{"$f":"IF($D151>6,\"\",IF(H$5<=(VLOOKUP($A151,masterlist!$C$2:$AC$207,27,FALSE)),1,\"\"))","v":""},{"$f":"IF($D151>6,\"\",IF(I$5<=(VLOOKUP($A151,masterlist!$C$2:$AC$207,27,FALSE)),1,\"\"))","v":""},{"$f":"IF($D151>6,\"\",IF(J$5<=(VLOOKUP($A151,masterlist!$C$2:$AC$207,27,FALSE)),1,\"\"))","v":""},{"$f":"IF($D151>6,\"\",IF(K$5<=(VLOOKUP($A151,masterlist!$C$2:$AC$207,27,FALSE)),1,\"\"))","v":""},{"$f":"IF($D151>6,\"\",IF(L$5<=(VLOOKUP($A151,masterlist!$C$2:$AC$207,27,FALSE)),1,\"\"))","v":""},{"$f":"IF($D151>6,\"\",IF(M$5<=(VLOOKUP($A151,masterlist!$C$2:$AC$207,27,FALSE)),1,\"\"))","v":""},{"$f":"IF($D151>6,\"\",IF(N$5<=(VLOOKUP($A151,masterlist!$C$2:$AC$207,27,FALSE)),1,\"\"))","v":""},{"$f":"IF($D151>6,\"\",IF(O$5<=(VLOOKUP($A151,masterlist!$C$2:$AC$207,27,FALSE)),1,\"\"))","v":""},{"$f":"IF($D151>6,\"\",IF(P$5<=(VLOOKUP($A151,masterlist!$C$2:$AC$207,27,FALSE)),1,\"\"))","v":""},{"$f":"IF($D151>6,\"\",IF(Q$5<=(VLOOKUP($A151,masterlist!$C$2:$AC$207,27,FALSE)),1,\"\"))","v":""},{"$f":"IF($D151>6,\"\",IF(R$5<=(VLOOKUP($A151,masterlist!$C$2:$AC$207,27,FALSE)),1,\"\"))","v":""},null,null,null,null,0,0,0,0,0,0,0,0,0,0,0,0,0]
[{"$f":"IFERROR(priorit!A151,\"\")","v":""},"",{"$f":"IFERROR(VLOOKUP($A152,masterlist!$C$2:$AA$207,2,FALSE),\"\")","v":""},{"$f":"IFERROR(VLOOKUP($A152,masterlist!$C$2:$AA$207,3,FALSE),\"\")","v":""},{"$f":"IFERROR(VLOOKUP($A152,masterlist!$C$2:$AD$207,28,FALSE),\"\")","v":""},{"$f":"IF($D152>6,\"\",IF(F$5<=(VLOOKUP($A152,masterlist!$C$2:$AC$207,27,FALSE)),1,\"\"))","v":""},{"$f":"IF($D152>6,\"\",IF(G$5<=(VLOOKUP($A152,masterlist!$C$2:$AC$207,27,FALSE)),1,\"\"))","v":""},{"$f":"IF($D152>6,\"\",IF(H$5<=(VLOOKUP($A152,masterlist!$C$2:$AC$207,27,FALSE)),1,\"\"))","v":""},{"$f":"IF($D152>6,\"\",IF(I$5<=(VLOOKUP($A152,masterlist!$C$2:$AC$207,27,FALSE)),1,\"\"))","v":""},{"$f":"IF($D152>6,\"\",IF(J$5<=(VLOOKUP($A152,masterlist!$C$2:$AC$207,27,FALSE)),1,\"\"))","v":""},{"$f":"IF($D152>6,\"\",IF(K$5<=(VLOOKUP($A152,masterlist!$C$2:$AC$207,27,FALSE)),1,\"\"))","v":""},{"$f":"IF($D152>6,\"\",IF(L$5<=(VLOOKUP($A152,masterlist!$C$2:$AC$207,27,FALSE)),1,\"\"))","v":""},{"$f":"IF($D152>6,\"\",IF(M$5<=(VLOOKUP($A152,masterlist!$C$2:$AC$207,27,FALSE)),1,\"\"))","v":""},{"$f":"IF($D152>6,\"\",IF(N$5<=(VLOOKUP($A152,masterlist!$C$2:$AC$207,27,FALSE)),1,\"\"))","v":""},{"$f":"IF($D152>6,\"\",IF(O$5<=(VLOOKUP($A152,masterlist!$C$2:$AC$207,27,FALSE)),1,\"\"))","v":""},{"$f":"IF($D152>6,\"\",IF(P$5<=(VLOOKUP($A152,masterlist!$C$2:$AC$207,27,FALSE)),1,\"\"))","v":""},{"$f":"IF($D152>6,\"\",IF(Q$5<=(VLOOKUP($A152,masterlist!$C$2:$AC$207,27,FALSE)),1,\"\"))","v":""},{"$f":"IF($D152>6,\"\",IF(R$5<=(VLOOKUP($A152,masterlist!$C$2:$AC$207,27,FALSE)),1,\"\"))","v":""},null,null,null,null,0,0,0,0,0,0,0,0,0,0,0,0,0]
[{"$f":"IFERROR(priorit!A152,\"\")","v":""},"",{"$f":"IFERROR(VLOOKUP($A153,masterlist!$C$2:$AA$207,2,FALSE),\"\")","v":""},{"$f":"IFERROR(VLOOKUP($A153,masterlist!$C$2:$AA$207,3,FALSE),\"\")","v":""},{"$f":"IFERROR(VLOOKUP($A153,masterlist!$C$2:$AD$207,28,FALSE),\"\")","v":""},{"$f":"IF($D153>6,\"\",IF(F$5<=(VLOOKUP($A153,masterlist!$C$2:$AC$207,27,FALSE)),1,\"\"))","v":""},{"$f":"IF($D153>6,\"\",IF(G$5<=(VLOOKUP($A153,masterlist!$C$2:$AC$207,27,FALSE)),1,\"\"))","v":""},{"$f":"IF($D153>6,\"\",IF(H$5<=(VLOOKUP($A153,masterlist!$C$2:$AC$207,27,FALSE)),1,\"\"))","v":""},{"$f":"IF($D153>6,\"\",IF(I$5<=(VLOOKUP($A153,masterlist!$C$2:$AC$207,27,FALSE)),1,\"\"))","v":""},{"$f":"IF($D153>6,\"\",IF(J$5<=(VLOOKUP($A153,masterlist!$C$2:$AC$207,27,FALSE)),1,\"\"))","v":""},{"$f":"IF($D153>6,\"\",IF(K$5<=(VLOOKUP($A153,masterlist!$C$2:$AC$207,27,FALSE)),1,\"\"))","v":""},{"$f":"IF($D153>6,\"\",IF(L$5<=(VLOOKUP($A153,masterlist!$C$2:$AC$207,27,FALSE)),1,\"\"))","v":""},{"$f":"IF($D153>6,\"\",IF(M$5<=(VLOOKUP($A153,masterlist!$C$2:$AC$207,27,FALSE)),1,\"\"))","v":""},{"$f":"IF($D153>6,\"\",IF(N$5<=(VLOOKUP($A153,masterlist!$C$2:$AC$207,27,FALSE)),1,\"\"))","v":""},{"$f":"IF($D153>6,\"\",IF(O$5<=(VLOOKUP($A153,masterlist!$C$2:$AC$207,27,FALSE)),1,\"\"))","v":""},{"$f":"IF($D153>6,\"\",IF(P$5<=(VLOOKUP($A153,masterlist!$C$2:$AC$207,27,FALSE)),1,\"\"))","v":""},{"$f":"IF($D153>6,\"\",IF(Q$5<=(VLOOKUP($A153,masterlist!$C$2:$AC$207,27,FALSE)),1,\"\"))","v":""},{"$f":"IF($D153>6,\"\",IF(R$5<=(VLOOKUP($A153,masterlist!$C$2:$AC$207,27,FALSE)),1,\"\"))","v":""},null,null,null,null,0,0,0,0,0,0,0,0,0,0,0,0,0]
[{"$f":"IFERROR(priorit!A153,\"\")","v":""},"",{"$f":"IFERROR(VLOOKUP($A154,masterlist!$C$2:$AA$207,2,FALSE),\"\")","v":""},{"$f":"IFERROR(VLOOKUP($A154,masterlist!$C$2:$AA$207,3,FALSE),\"\")","v":""},{"$f":"IFERROR(VLOOKUP($A154,masterlist!$C$2:$AD$207,28,FALSE),\"\")","v":""},{"$f":"IF($D154>6,\"\",IF(F$5<=(VLOOKUP($A154,masterlist!$C$2:$AC$207,27,FALSE)),1,\"\"))","v":""},{"$f":"IF($D154>6,\"\",IF(G$5<=(VLOOKUP($A154,masterlist!$C$2:$AC$207,27,FALSE)),1,\"\"))","v":""},{"$f":"IF($D154>6,\"\",IF(H$5<=(VLOOKUP($A154,masterlist!$C$2:$AC$207,27,FALSE)),1,\"\"))","v":""},{"$f":"IF($D154>6,\"\",IF(I$5<=(VLOOKUP($A154,masterlist!$C$2:$AC$207,27,FALSE)),1,\"\"))","v":""},{"$f":"IF($D154>6,\"\",IF(J$5<=(VLOOKUP($A154,masterlist!$C$2:$AC$207,27,FALSE)),1,\"\"))","v":""},{"$f":"IF($D154>6,\"\",IF(K$5<=(VLOOKUP($A154,masterlist!$C$2:$AC$207,27,FALSE)),1,\"\"))","v":""},{"$f":"IF($D154>6,\"\",IF(L$5<=(VLOOKUP($A154,masterlist!$C$2:$AC$207,27,FALSE)),1,\"\"))","v":""},{"$f":"IF($D154>6,\"\",IF(M$5<=(VLOOKUP($A154,masterlist!$C$2:$AC$207,27,FALSE)),1,\"\"))","v":""},{"$f":"IF($D154>6,\"\",IF(N$5<=(VLOOKUP($A154,masterlist!$C$2:$AC$207,27,FALSE)),1,\"\"))","v":""},{"$f":"IF($D154>6,\"\",IF(O$5<=(VLOOKUP($A154,masterlist!$C$2:$AC$207,27,FALSE)),1,\"\"))","v":""},{"$f":"IF($D154>6,\"\",IF(P$5<=(VLOOKUP($A154,masterlist!$C$2:$AC$207,27,FALSE)),1,\"\"))","v":""},{"$f":"IF($D154>6,\"\",IF(Q$5<=(VLOOKUP($A154,masterlist!$C$2:$AC$207,27,FALSE)),1,\"\"))","v":""},{"$f":"IF($D154>6,\"\",IF(R$5<=(VLOOKUP($A154,masterlist!$C$2:$AC$207,27,FALSE)),1,\"\"))","v":""},null,null,null,null,0,0,0,0,0,0,0,0,0,0,0,0,0]
[{"$f":"IFERROR(priorit!A154,\"\")","v":""},"",{"$f":"IFERROR(VLOOKUP($A155,masterlist!$C$2:$AA$207,2,FALSE),\"\")","v":""},{"$f":"IFERROR(VLOOKUP($A155,masterlist!$C$2:$AA$207,3,FALSE),\"\")","v":""},{"$f":"IFERROR(VLOOKUP($A155,masterlist!$C$2:$AD$207,28,FALSE),\"\")","v":""},{"$f":"IF($D155>6,\"\",IF(F$5<=(VLOOKUP($A155,masterlist!$C$2:$AC$207,27,FALSE)),1,\"\"))","v":""},{"$f":"IF($D155>6,\"\",IF(G$5<=(VLOOKUP($A155,masterlist!$C$2:$AC$207,27,FALSE)),1,\"\"))","v":""},{"$f":"IF($D155>6,\"\",IF(H$5<=(VLOOKUP($A155,masterlist!$C$2:$AC$207,27,FALSE)),1,\"\"))","v":""},{"$f":"IF($D155>6,\"\",IF(I$5<=(VLOOKUP($A155,masterlist!$C$2:$AC$207,27,FALSE)),1,\"\"))","v":""},{"$f":"IF($D155>6,\"\",IF(J$5<=(VLOOKUP($A155,masterlist!$C$2:$AC$207,27,FALSE)),1,\"\"))","v":""},{"$f":"IF($D155>6,\"\",IF(K$5<=(VLOOKUP($A155,masterlist!$C$2:$AC$207,27,FALSE)),1,\"\"))","v":""},{"$f":"IF($D155>6,\"\",IF(L$5<=(VLOOKUP($A155,masterlist!$C$2:$AC$207,27,FALSE)),1,\"\"))","v":""},{"$f":"IF($D155>6,\"\",IF(M$5<=(VLOOKUP($A155,masterlist!$C$2:$AC$207,27,FALSE)),1,\"\"))","v":""},{"$f":"IF($D155>6,\"\",IF(N$5<=(VLOOKUP($A155,masterlist!$C$2:$AC$207,27,FALSE)),1,\"\"))","v":""},{"$f":"IF($D155>6,\"\",IF(O$5<=(VLOOKUP($A155,masterlist!$C$2:$AC$207,27,FALSE)),1,\"\"))","v":""},{"$f":"IF($D155>6,\"\",IF(P$5<=(VLOOKUP($A155,masterlist!$C$2:$AC$207,27,FALSE)),1,\"\"))","v":""},{"$f":"IF($D155>6,\"\",IF(Q$5<=(VLOOKUP($A155,masterlist!$C$2:$AC$207,27,FALSE)),1,\"\"))","v":""},{"$f":"IF($D155>6,\"\",IF(R$5<=(VLOOKUP($A155,masterlist!$C$2:$AC$207,27,FALSE)),1,\"\"))","v":""},null,null,null,null,0,0,0,0,0,0,0,0,0,0,0,0,0]
[{"$f":"IFERROR(priorit!A155,\"\")","v":""},"",{"$f":"IFERROR(VLOOKUP($A156,masterlist!$C$2:$AA$207,2,FALSE),\"\")","v":""},{"$f":"IFERROR(VLOOKUP($A156,masterlist!$C$2:$AA$207,3,FALSE),\"\")","v":""},{"$f":"IFERROR(VLOOKUP($A156,masterlist!$C$2:$AD$207,28,FALSE),\"\")","v":""},{"$f":"IF($D156>6,\"\",IF(F$5<=(VLOOKUP($A156,masterlist!$C$2:$AC$207,27,FALSE)),1,\"\"))","v":""},{"$f":"IF($D156>6,\"\",IF(G$5<=(VLOOKUP($A156,masterlist!$C$2:$AC$207,27,FALSE)),1,\"\"))","v":""},{"$f":"IF($D156>6,\"\",IF(H$5<=(VLOOKUP($A156,masterlist!$C$2:$AC$207,27,FALSE)),1,\"\"))","v":""},{"$f":"IF($D156>6,\"\",IF(I$5<=(VLOOKUP($A156,masterlist!$C$2:$AC$207,27,FALSE)),1,\"\"))","v":""},{"$f":"IF($D156>6,\"\",IF(J$5<=(VLOOKUP($A156,masterlist!$C$2:$AC$207,27,FALSE)),1,\"\"))","v":""},{"$f":"IF($D156>6,\"\",IF(K$5<=(VLOOKUP($A156,masterlist!$C$2:$AC$207,27,FALSE)),1,\"\"))","v":""},{"$f":"IF($D156>6,\"\",IF(L$5<=(VLOOKUP($A156,masterlist!$C$2:$AC$207,27,FALSE)),1,\"\"))","v":""},{"$f":"IF($D156>6,\"\",IF(M$5<=(VLOOKUP($A156,masterlist!$C$2:$AC$207,27,FALSE)),1,\"\"))","v":""},{"$f":"IF($D156>6,\"\",IF(N$5<=(VLOOKUP($A156,masterlist!$C$2:$AC$207,27,FALSE)),1,\"\"))","v":""},{"$f":"IF($D156>6,\"\",IF(O$5<=(VLOOKUP($A156,masterlist!$C$2:$AC$207,27,FALSE)),1,\"\"))","v":""},{"$f":"IF($D156>6,\"\",IF(P$5<=(VLOOKUP($A156,masterlist!$C$2:$AC$207,27,FALSE)),1,\"\"))","v":""},{"$f":"IF($D156>6,\"\",IF(Q$5<=(VLOOKUP($A156,masterlist!$C$2:$AC$207,27,FALSE)),1,\"\"))","v":""},{"$f":"IF($D156>6,\"\",IF(R$5<=(VLOOKUP($A156,masterlist!$C$2:$AC$207,27,FALSE)),1,\"\"))","v":""},null,null,null,null,0,0,0,0,0,0,0,0,0,0,0,0,0]
[{"$f":"IFERROR(priorit!A156,\"\")","v":""},"",{"$f":"IFERROR(VLOOKUP($A157,masterlist!$C$2:$AA$207,2,FALSE),\"\")","v":""},{"$f":"IFERROR(VLOOKUP($A157,masterlist!$C$2:$AA$207,3,FALSE),\"\")","v":""},{"$f":"IFERROR(VLOOKUP($A157,masterlist!$C$2:$AD$207,28,FALSE),\"\")","v":""},{"$f":"IF($D157>6,\"\",IF(F$5<=(VLOOKUP($A157,masterlist!$C$2:$AC$207,27,FALSE)),1,\"\"))","v":""},{"$f":"IF($D157>6,\"\",IF(G$5<=(VLOOKUP($A157,masterlist!$C$2:$AC$207,27,FALSE)),1,\"\"))","v":""},{"$f":"IF($D157>6,\"\",IF(H$5<=(VLOOKUP($A157,masterlist!$C$2:$AC$207,27,FALSE)),1,\"\"))","v":""},{"$f":"IF($D157>6,\"\",IF(I$5<=(VLOOKUP($A157,masterlist!$C$2:$AC$207,27,FALSE)),1,\"\"))","v":""},{"$f":"IF($D157>6,\"\",IF(J$5<=(VLOOKUP($A157,masterlist!$C$2:$AC$207,27,FALSE)),1,\"\"))","v":""},{"$f":"IF($D157>6,\"\",IF(K$5<=(VLOOKUP($A157,masterlist!$C$2:$AC$207,27,FALSE)),1,\"\"))","v":""},{"$f":"IF($D157>6,\"\",IF(L$5<=(VLOOKUP($A157,masterlist!$C$2:$AC$207,27,FALSE)),1,\"\"))","v":""},{"$f":"IF($D157>6,\"\",IF(M$5<=(VLOOKUP($A157,masterlist!$C$2:$AC$207,27,FALSE)),1,\"\"))","v":""},{"$f":"IF($D157>6,\"\",IF(N$5<=(VLOOKUP($A157,masterlist!$C$2:$AC$207,27,FALSE)),1,\"\"))","v":""},{"$f":"IF($D157>6,\"\",IF(O$5<=(VLOOKUP($A157,masterlist!$C$2:$AC$207,27,FALSE)),1,\"\"))","v":""},{"$f":"IF($D157>6,\"\",IF(P$5<=(VLOOKUP($A157,masterlist!$C$2:$AC$207,27,FALSE)),1,\"\"))","v":""},{"$f":"IF($D157>6,\"\",IF(Q$5<=(VLOOKUP($A157,masterlist!$C$2:$AC$207,27,FALSE)),1,\"\"))","v":""},{"$f":"IF($D157>6,\"\",IF(R$5<=(VLOOKUP($A157,masterlist!$C$2:$AC$207,27,FALSE)),1,\"\"))","v":""},null,null,null,null,0,0,0,0,0,0,0,0,0,0,0,0,0]
[{"$f":"IFERROR(priorit!A157,\"\")","v":""},"",{"$f":"IFERROR(VLOOKUP($A158,masterlist!$C$2:$AA$207,2,FALSE),\"\")","v":""},{"$f":"IFERROR(VLOOKUP($A158,masterlist!$C$2:$AA$207,3,FALSE),\"\")","v":""},{"$f":"IFERROR(VLOOKUP($A158,masterlist!$C$2:$AD$207,28,FALSE),\"\")","v":""},{"$f":"IF($D158>6,\"\",IF(F$5<=(VLOOKUP($A158,masterlist!$C$2:$AC$207,27,FALSE)),1,\"\"))","v":""},{"$f":"IF($D158>6,\"\",IF(G$5<=(VLOOKUP($A158,masterlist!$C$2:$AC$207,27,FALSE)),1,\"\"))","v":""},{"$f":"IF($D158>6,\"\",IF(H$5<=(VLOOKUP($A158,masterlist!$C$2:$AC$207,27,FALSE)),1,\"\"))","v":""},{"$f":"IF($D158>6,\"\",IF(I$5<=(VLOOKUP($A158,masterlist!$C$2:$AC$207,27,FALSE)),1,\"\"))","v":""},{"$f":"IF($D158>6,\"\",IF(J$5<=(VLOOKUP($A158,masterlist!$C$2:$AC$207,27,FALSE)),1,\"\"))","v":""},{"$f":"IF($D158>6,\"\",IF(K$5<=(VLOOKUP($A158,masterlist!$C$2:$AC$207,27,FALSE)),1,\"\"))","v":""},{"$f":"IF($D158>6,\"\",IF(L$5<=(VLOOKUP($A158,masterlist!$C$2:$AC$207,27,FALSE)),1,\"\"))","v":""},{"$f":"IF($D158>6,\"\",IF(M$5<=(VLOOKUP($A158,masterlist!$C$2:$AC$207,27,FALSE)),1,\"\"))","v":""},{"$f":"IF($D158>6,\"\",IF(N$5<=(VLOOKUP($A158,masterlist!$C$2:$AC$207,27,FALSE)),1,\"\"))","v":""},{"$f":"IF($D158>6,\"\",IF(O$5<=(VLOOKUP($A158,masterlist!$C$2:$AC$207,27,FALSE)),1,\"\"))","v":""},{"$f":"IF($D158>6,\"\",IF(P$5<=(VLOOKUP($A158,masterlist!$C$2:$AC$207,27,FALSE)),1,\"\"))","v":""},{"$f":"IF($D158>6,\"\",IF(Q$5<=(VLOOKUP($A158,masterlist!$C$2:$AC$207,27,FALSE)),1,\"\"))","v":""},{"$f":"IF($D158>6,\"\",IF(R$5<=(VLOOKUP($A158,masterlist!$C$2:$AC$207,27,FALSE)),1,\"\"))","v":""},null,null,null,null,0,0,0,0,0,0,0,0,0,0,0,0,0]
[{"$f":"IFERROR(priorit!A158,\"\")","v":""},"",{"$f":"IFERROR(VLOOKUP($A159,masterlist!$C$2:$AA$207,2,FALSE),\"\")","v":""},{"$f":"IFERROR(VLOOKUP($A159,masterlist!$C$2:$AA$207,3,FALSE),\"\")","v":""},{"$f":"IFERROR(VLOOKUP($A159,masterlist!$C$2:$AD$207,28,FALSE),\"\")","v":""},{"$f":"IF($D159>6,\"\",IF(F$5<=(VLOOKUP($A159,masterlist!$C$2:$AC$207,27,FALSE)),1,\"\"))","v":""},{"$f":"IF($D159>6,\"\",IF(G$5<=(VLOOKUP($A159,masterlist!$C$2:$AC$207,27,FALSE)),1,\"\"))","v":""},{"$f":"IF($D159>6,\"\",IF(H$5<=(VLOOKUP($A159,masterlist!$C$2:$AC$207,27,FALSE)),1,\"\"))","v":""},{"$f":"IF($D159>6,\"\",IF(I$5<=(VLOOKUP($A159,masterlist!$C$2:$AC$207,27,FALSE)),1,\"\"))","v":""},{"$f":"IF($D159>6,\"\",IF(J$5<=(VLOOKUP($A159,masterlist!$C$2:$AC$207,27,FALSE)),1,\"\"))","v":""},{"$f":"IF($D159>6,\"\",IF(K$5<=(VLOOKUP($A159,masterlist!$C$2:$AC$207,27,FALSE)),1,\"\"))","v":""},{"$f":"IF($D159>6,\"\",IF(L$5<=(VLOOKUP($A159,masterlist!$C$2:$AC$207,27,FALSE)),1,\"\"))","v":""},{"$f":"IF($D159>6,\"\",IF(M$5<=(VLOOKUP($A159,masterlist!$C$2:$AC$207,27,FALSE)),1,\"\"))","v":""},{"$f":"IF($D159>6,\"\",IF(N$5<=(VLOOKUP($A159,masterlist!$C$2:$AC$207,27,FALSE)),1,\"\"))","v":""},{"$f":"IF($D159>6,\"\",IF(O$5<=(VLOOKUP($A159,masterlist!$C$2:$AC$207,27,FALSE)),1,\"\"))","v":""},{"$f":"IF($D159>6,\"\",IF(P$5<=(VLOOKUP($A159,masterlist!$C$2:$AC$207,27,FALSE)),1,\"\"))","v":""},{"$f":"IF($D159>6,\"\",IF(Q$5<=(VLOOKUP($A159,masterlist!$C$2:$AC$207,27,FALSE)),1,\"\"))","v":""},{"$f":"IF($D159>6,\"\",IF(R$5<=(VLOOKUP($A159,masterlist!$C$2:$AC$207,27,FALSE)),1,\"\"))","v":""},null,null,null,null,0,0,0,0,0,0,0,0,0,0,0,0,0]
[{"$f":"IFERROR(priorit!A159,\"\")","v":""},"",{"$f":"IFERROR(VLOOKUP($A160,masterlist!$C$2:$AA$207,2,FALSE),\"\")","v":""},{"$f":"IFERROR(VLOOKUP($A160,masterlist!$C$2:$AA$207,3,FALSE),\"\")","v":""},{"$f":"IFERROR(VLOOKUP($A160,masterlist!$C$2:$AD$207,28,FALSE),\"\")","v":""},{"$f":"IF($D160>6,\"\",IF(F$5<=(VLOOKUP($A160,masterlist!$C$2:$AC$207,27,FALSE)),1,\"\"))","v":""},{"$f":"IF($D160>6,\"\",IF(G$5<=(VLOOKUP($A160,masterlist!$C$2:$AC$207,27,FALSE)),1,\"\"))","v":""},{"$f":"IF($D160>6,\"\",IF(H$5<=(VLOOKUP($A160,masterlist!$C$2:$AC$207,27,FALSE)),1,\"\"))","v":""},{"$f":"IF($D160>6,\"\",IF(I$5<=(VLOOKUP($A160,masterlist!$C$2:$AC$207,27,FALSE)),1,\"\"))","v":""},{"$f":"IF($D160>6,\"\",IF(J$5<=(VLOOKUP($A160,masterlist!$C$2:$AC$207,27,FALSE)),1,\"\"))","v":""},{"$f":"IF($D160>6,\"\",IF(K$5<=(VLOOKUP($A160,masterlist!$C$2:$AC$207,27,FALSE)),1,\"\"))","v":""},{"$f":"IF($D160>6,\"\",IF(L$5<=(VLOOKUP($A160,masterlist!$C$2:$AC$207,27,FALSE)),1,\"\"))","v":""},{"$f":"IF($D160>6,\"\",IF(M$5<=(VLOOKUP($A160,masterlist!$C$2:$AC$207,27,FALSE)),1,\"\"))","v":""},{"$f":"IF($D160>6,\"\",IF(N$5<=(VLOOKUP($A160,masterlist!$C$2:$AC$207,27,FALSE)),1,\"\"))","v":""},{"$f":"IF($D160>6,\"\",IF(O$5<=(VLOOKUP($A160,masterlist!$C$2:$AC$207,27,FALSE)),1,\"\"))","v":""},{"$f":"IF($D160>6,\"\",IF(P$5<=(VLOOKUP($A160,masterlist!$C$2:$AC$207,27,FALSE)),1,\"\"))","v":""},{"$f":"IF($D160>6,\"\",IF(Q$5<=(VLOOKUP($A160,masterlist!$C$2:$AC$207,27,FALSE)),1,\"\"))","v":""},{"$f":"IF($D160>6,\"\",IF(R$5<=(VLOOKUP($A160,masterlist!$C$2:$AC$207,27,FALSE)),1,\"\"))","v":""},null,null,null,null,0,0,0,0,0,0,0,0,0,0,0,0,0]
[{"$f":"IFERROR(priorit!A160,\"\")","v":""},"",{"$f":"IFERROR(VLOOKUP($A161,masterlist!$C$2:$AA$207,2,FALSE),\"\")","v":""},{"$f":"IFERROR(VLOOKUP($A161,masterlist!$C$2:$AA$207,3,FALSE),\"\")","v":""},{"$f":"IFERROR(VLOOKUP($A161,masterlist!$C$2:$AD$207,28,FALSE),\"\")","v":""},{"$f":"IF($D161>6,\"\",IF(F$5<=(VLOOKUP($A161,masterlist!$C$2:$AC$207,27,FALSE)),1,\"\"))","v":""},{"$f":"IF($D161>6,\"\",IF(G$5<=(VLOOKUP($A161,masterlist!$C$2:$AC$207,27,FALSE)),1,\"\"))","v":""},{"$f":"IF($D161>6,\"\",IF(H$5<=(VLOOKUP($A161,masterlist!$C$2:$AC$207,27,FALSE)),1,\"\"))","v":""},{"$f":"IF($D161>6,\"\",IF(I$5<=(VLOOKUP($A161,masterlist!$C$2:$AC$207,27,FALSE)),1,\"\"))","v":""},{"$f":"IF($D161>6,\"\",IF(J$5<=(VLOOKUP($A161,masterlist!$C$2:$AC$207,27,FALSE)),1,\"\"))","v":""},{"$f":"IF($D161>6,\"\",IF(K$5<=(VLOOKUP($A161,masterlist!$C$2:$AC$207,27,FALSE)),1,\"\"))","v":""},{"$f":"IF($D161>6,\"\",IF(L$5<=(VLOOKUP($A161,masterlist!$C$2:$AC$207,27,FALSE)),1,\"\"))","v":""},{"$f":"IF($D161>6,\"\",IF(M$5<=(VLOOKUP($A161,masterlist!$C$2:$AC$207,27,FALSE)),1,\"\"))","v":""},{"$f":"IF($D161>6,\"\",IF(N$5<=(VLOOKUP($A161,masterlist!$C$2:$AC$207,27,FALSE)),1,\"\"))","v":""},{"$f":"IF($D161>6,\"\",IF(O$5<=(VLOOKUP($A161,masterlist!$C$2:$AC$207,27,FALSE)),1,\"\"))","v":""},{"$f":"IF($D161>6,\"\",IF(P$5<=(VLOOKUP($A161,masterlist!$C$2:$AC$207,27,FALSE)),1,\"\"))","v":""},{"$f":"IF($D161>6,\"\",IF(Q$5<=(VLOOKUP($A161,masterlist!$C$2:$AC$207,27,FALSE)),1,\"\"))","v":""},{"$f":"IF($D161>6,\"\",IF(R$5<=(VLOOKUP($A161,masterlist!$C$2:$AC$207,27,FALSE)),1,\"\"))","v":""},null,null,null,null,0,0,0,0,0,0,0,0,0,0,0,0,0]
[{"$f":"IFERROR(priorit!A161,\"\")","v":""},"",{"$f":"IFERROR(VLOOKUP($A162,masterlist!$C$2:$AA$207,2,FALSE),\"\")","v":""},{"$f":"IFERROR(VLOOKUP($A162,masterlist!$C$2:$AA$207,3,FALSE),\"\")","v":""},{"$f":"IFERROR(VLOOKUP($A162,masterlist!$C$2:$AD$207,28,FALSE),\"\")","v":""},{"$f":"IF($D162>6,\"\",IF(F$5<=(VLOOKUP($A162,masterlist!$C$2:$AC$207,27,FALSE)),1,\"\"))","v":""},{"$f":"IF($D162>6,\"\",IF(G$5<=(VLOOKUP($A162,masterlist!$C$2:$AC$207,27,FALSE)),1,\"\"))","v":""},{"$f":"IF($D162>6,\"\",IF(H$5<=(VLOOKUP($A162,masterlist!$C$2:$AC$207,27,FALSE)),1,\"\"))","v":""},{"$f":"IF($D162>6,\"\",IF(I$5<=(VLOOKUP($A162,masterlist!$C$2:$AC$207,27,FALSE)),1,\"\"))","v":""},{"$f":"IF($D162>6,\"\",IF(J$5<=(VLOOKUP($A162,masterlist!$C$2:$AC$207,27,FALSE)),1,\"\"))","v":""},{"$f":"IF($D162>6,\"\",IF(K$5<=(VLOOKUP($A162,masterlist!$C$2:$AC$207,27,FALSE)),1,\"\"))","v":""},{"$f":"IF($D162>6,\"\",IF(L$5<=(VLOOKUP($A162,masterlist!$C$2:$AC$207,27,FALSE)),1,\"\"))","v":""},{"$f":"IF($D162>6,\"\",IF(M$5<=(VLOOKUP($A162,masterlist!$C$2:$AC$207,27,FALSE)),1,\"\"))","v":""},{"$f":"IF($D162>6,\"\",IF(N$5<=(VLOOKUP($A162,masterlist!$C$2:$AC$207,27,FALSE)),1,\"\"))","v":""},{"$f":"IF($D162>6,\"\",IF(O$5<=(VLOOKUP($A162,masterlist!$C$2:$AC$207,27,FALSE)),1,\"\"))","v":""},{"$f":"IF($D162>6,\"\",IF(P$5<=(VLOOKUP($A162,masterlist!$C$2:$AC$207,27,FALSE)),1,\"\"))","v":""},{"$f":"IF($D162>6,\"\",IF(Q$5<=(VLOOKUP($A162,masterlist!$C$2:$AC$207,27,FALSE)),1,\"\"))","v":""},{"$f":"IF($D162>6,\"\",IF(R$5<=(VLOOKUP($A162,masterlist!$C$2:$AC$207,27,FALSE)),1,\"\"))","v":""},null,null,null,null,0,0,0,0,0,0,0,0,0,0,0,0,0]
[{"$f":"IFERROR(priorit!A162,\"\")","v":""},"",{"$f":"IFERROR(VLOOKUP($A163,masterlist!$C$2:$AA$207,2,FALSE),\"\")","v":""},{"$f":"IFERROR(VLOOKUP($A163,masterlist!$C$2:$AA$207,3,FALSE),\"\")","v":""},{"$f":"IFERROR(VLOOKUP($A163,masterlist!$C$2:$AD$207,28,FALSE),\"\")","v":""},{"$f":"IF($D163>6,\"\",IF(F$5<=(VLOOKUP($A163,masterlist!$C$2:$AC$207,27,FALSE)),1,\"\"))","v":""},{"$f":"IF($D163>6,\"\",IF(G$5<=(VLOOKUP($A163,masterlist!$C$2:$AC$207,27,FALSE)),1,\"\"))","v":""},{"$f":"IF($D163>6,\"\",IF(H$5<=(VLOOKUP($A163,masterlist!$C$2:$AC$207,27,FALSE)),1,\"\"))","v":""},{"$f":"IF($D163>6,\"\",IF(I$5<=(VLOOKUP($A163,masterlist!$C$2:$AC$207,27,FALSE)),1,\"\"))","v":""},{"$f":"IF($D163>6,\"\",IF(J$5<=(VLOOKUP($A163,masterlist!$C$2:$AC$207,27,FALSE)),1,\"\"))","v":""},{"$f":"IF($D163>6,\"\",IF(K$5<=(VLOOKUP($A163,masterlist!$C$2:$AC$207,27,FALSE)),1,\"\"))","v":""},{"$f":"IF($D163>6,\"\",IF(L$5<=(VLOOKUP($A163,masterlist!$C$2:$AC$207,27,FALSE)),1,\"\"))","v":""},{"$f":"IF($D163>6,\"\",IF(M$5<=(VLOOKUP($A163,masterlist!$C$2:$AC$207,27,FALSE)),1,\"\"))","v":""},{"$f":"IF($D163>6,\"\",IF(N$5<=(VLOOKUP($A163,masterlist!$C$2:$AC$207,27,FALSE)),1,\"\"))","v":""},{"$f":"IF($D163>6,\"\",IF(O$5<=(VLOOKUP($A163,masterlist!$C$2:$AC$207,27,FALSE)),1,\"\"))","v":""},{"$f":"IF($D163>6,\"\",IF(P$5<=(VLOOKUP($A163,masterlist!$C$2:$AC$207,27,FALSE)),1,\"\"))","v":""},{"$f":"IF($D163>6,\"\",IF(Q$5<=(VLOOKUP($A163,masterlist!$C$2:$AC$207,27,FALSE)),1,\"\"))","v":""},{"$f":"IF($D163>6,\"\",IF(R$5<=(VLOOKUP($A163,masterlist!$C$2:$AC$207,27,FALSE)),1,\"\"))","v":""},null,null,null,null,0,0,0,0,0,0,0,0,0,0,0,0,0]
[{"$f":"IFERROR(priorit!A163,\"\")","v":""},"",{"$f":"IFERROR(VLOOKUP($A164,masterlist!$C$2:$AA$207,2,FALSE),\"\")","v":""},{"$f":"IFERROR(VLOOKUP($A164,masterlist!$C$2:$AA$207,3,FALSE),\"\")","v":""},{"$f":"IFERROR(VLOOKUP($A164,masterlist!$C$2:$AD$207,28,FALSE),\"\")","v":""},{"$f":"IF($D164>6,\"\",IF(F$5<=(VLOOKUP($A164,masterlist!$C$2:$AC$207,27,FALSE)),1,\"\"))","v":""},{"$f":"IF($D164>6,\"\",IF(G$5<=(VLOOKUP($A164,masterlist!$C$2:$AC$207,27,FALSE)),1,\"\"))","v":""},{"$f":"IF($D164>6,\"\",IF(H$5<=(VLOOKUP($A164,masterlist!$C$2:$AC$207,27,FALSE)),1,\"\"))","v":""},{"$f":"IF($D164>6,\"\",IF(I$5<=(VLOOKUP($A164,masterlist!$C$2:$AC$207,27,FALSE)),1,\"\"))","v":""},{"$f":"IF($D164>6,\"\",IF(J$5<=(VLOOKUP($A164,masterlist!$C$2:$AC$207,27,FALSE)),1,\"\"))","v":""},{"$f":"IF($D164>6,\"\",IF(K$5<=(VLOOKUP($A164,masterlist!$C$2:$AC$207,27,FALSE)),1,\"\"))","v":""},{"$f":"IF($D164>6,\"\",IF(L$5<=(VLOOKUP($A164,masterlist!$C$2:$AC$207,27,FALSE)),1,\"\"))","v":""},{"$f":"IF($D164>6,\"\",IF(M$5<=(VLOOKUP($A164,masterlist!$C$2:$AC$207,27,FALSE)),1,\"\"))","v":""},{"$f":"IF($D164>6,\"\",IF(N$5<=(VLOOKUP($A164,masterlist!$C$2:$AC$207,27,FALSE)),1,\"\"))","v":""},{"$f":"IF($D164>6,\"\",IF(O$5<=(VLOOKUP($A164,masterlist!$C$2:$AC$207,27,FALSE)),1,\"\"))","v":""},{"$f":"IF($D164>6,\"\",IF(P$5<=(VLOOKUP($A164,masterlist!$C$2:$AC$207,27,FALSE)),1,\"\"))","v":""},{"$f":"IF($D164>6,\"\",IF(Q$5<=(VLOOKUP($A164,masterlist!$C$2:$AC$207,27,FALSE)),1,\"\"))","v":""},{"$f":"IF($D164>6,\"\",IF(R$5<=(VLOOKUP($A164,masterlist!$C$2:$AC$207,27,FALSE)),1,\"\"))","v":""},null,null,null,null,0,0,0,0,0,0,0,0,0,0,0,0,0]
[{"$f":"IFERROR(priorit!A164,\"\")","v":""},"",{"$f":"IFERROR(VLOOKUP($A165,masterlist!$C$2:$AA$207,2,FALSE),\"\")","v":""},{"$f":"IFERROR(VLOOKUP($A165,masterlist!$C$2:$AA$207,3,FALSE),\"\")","v":""},{"$f":"IFERROR(VLOOKUP($A165,masterlist!$C$2:$AD$207,28,FALSE),\"\")","v":""},{"$f":"IF($D165>6,\"\",IF(F$5<=(VLOOKUP($A165,masterlist!$C$2:$AC$207,27,FALSE)),1,\"\"))","v":""},{"$f":"IF($D165>6,\"\",IF(G$5<=(VLOOKUP($A165,masterlist!$C$2:$AC$207,27,FALSE)),1,\"\"))","v":""},{"$f":"IF($D165>6,\"\",IF(H$5<=(VLOOKUP($A165,masterlist!$C$2:$AC$207,27,FALSE)),1,\"\"))","v":""},{"$f":"IF($D165>6,\"\",IF(I$5<=(VLOOKUP($A165,masterlist!$C$2:$AC$207,27,FALSE)),1,\"\"))","v":""},{"$f":"IF($D165>6,\"\",IF(J$5<=(VLOOKUP($A165,masterlist!$C$2:$AC$207,27,FALSE)),1,\"\"))","v":""},{"$f":"IF($D165>6,\"\",IF(K$5<=(VLOOKUP($A165,masterlist!$C$2:$AC$207,27,FALSE)),1,\"\"))","v":""},{"$f":"IF($D165>6,\"\",IF(L$5<=(VLOOKUP($A165,masterlist!$C$2:$AC$207,27,FALSE)),1,\"\"))","v":""},{"$f":"IF($D165>6,\"\",IF(M$5<=(VLOOKUP($A165,masterlist!$C$2:$AC$207,27,FALSE)),1,\"\"))","v":""},{"$f":"IF($D165>6,\"\",IF(N$5<=(VLOOKUP($A165,masterlist!$C$2:$AC$207,27,FALSE)),1,\"\"))","v":""},{"$f":"IF($D165>6,\"\",IF(O$5<=(VLOOKUP($A165,masterlist!$C$2:$AC$207,27,FALSE)),1,\"\"))","v":""},{"$f":"IF($D165>6,\"\",IF(P$5<=(VLOOKUP($A165,masterlist!$C$2:$AC$207,27,FALSE)),1,\"\"))","v":""},{"$f":"IF($D165>6,\"\",IF(Q$5<=(VLOOKUP($A165,masterlist!$C$2:$AC$207,27,FALSE)),1,\"\"))","v":""},{"$f":"IF($D165>6,\"\",IF(R$5<=(VLOOKUP($A165,masterlist!$C$2:$AC$207,27,FALSE)),1,\"\"))","v":""},null,null,null,null,0,0,0,0,0,0,0,0,0,0,0,0,0]
[{"$f":"IFERROR(priorit!A165,\"\")","v":""},"",{"$f":"IFERROR(VLOOKUP($A166,masterlist!$C$2:$AA$207,2,FALSE),\"\")","v":""},{"$f":"IFERROR(VLOOKUP($A166,masterlist!$C$2:$AA$207,3,FALSE),\"\")","v":""},{"$f":"IFERROR(VLOOKUP($A166,masterlist!$C$2:$AD$207,28,FALSE),\"\")","v":""},{"$f":"IF($D166>6,\"\",IF(F$5<=(VLOOKUP($A166,masterlist!$C$2:$AC$207,27,FALSE)),1,\"\"))","v":""},{"$f":"IF($D166>6,\"\",IF(G$5<=(VLOOKUP($A166,masterlist!$C$2:$AC$207,27,FALSE)),1,\"\"))","v":""},{"$f":"IF($D166>6,\"\",IF(H$5<=(VLOOKUP($A166,masterlist!$C$2:$AC$207,27,FALSE)),1,\"\"))","v":""},{"$f":"IF($D166>6,\"\",IF(I$5<=(VLOOKUP($A166,masterlist!$C$2:$AC$207,27,FALSE)),1,\"\"))","v":""},{"$f":"IF($D166>6,\"\",IF(J$5<=(VLOOKUP($A166,masterlist!$C$2:$AC$207,27,FALSE)),1,\"\"))","v":""},{"$f":"IF($D166>6,\"\",IF(K$5<=(VLOOKUP($A166,masterlist!$C$2:$AC$207,27,FALSE)),1,\"\"))","v":""},{"$f":"IF($D166>6,\"\",IF(L$5<=(VLOOKUP($A166,masterlist!$C$2:$AC$207,27,FALSE)),1,\"\"))","v":""},{"$f":"IF($D166>6,\"\",IF(M$5<=(VLOOKUP($A166,masterlist!$C$2:$AC$207,27,FALSE)),1,\"\"))","v":""},{"$f":"IF($D166>6,\"\",IF(N$5<=(VLOOKUP($A166,masterlist!$C$2:$AC$207,27,FALSE)),1,\"\"))","v":""},{"$f":"IF($D166>6,\"\",IF(O$5<=(VLOOKUP($A166,masterlist!$C$2:$AC$207,27,FALSE)),1,\"\"))","v":""},{"$f":"IF($D166>6,\"\",IF(P$5<=(VLOOKUP($A166,masterlist!$C$2:$AC$207,27,FALSE)),1,\"\"))","v":""},{"$f":"IF($D166>6,\"\",IF(Q$5<=(VLOOKUP($A166,masterlist!$C$2:$AC$207,27,FALSE)),1,\"\"))","v":""},{"$f":"IF($D166>6,\"\",IF(R$5<=(VLOOKUP($A166,masterlist!$C$2:$AC$207,27,FALSE)),1,\"\"))","v":""},null,null,null,null,0,0,0,0,0,0,0,0,0,0,0,0,0]
[{"$f":"IFERROR(priorit!A166,\"\")","v":""},"",{"$f":"IFERROR(VLOOKUP($A167,masterlist!$C$2:$AA$207,2,FALSE),\"\")","v":""},{"$f":"IFERROR(VLOOKUP($A167,masterlist!$C$2:$AA$207,3,FALSE),\"\")","v":""},{"$f":"IFERROR(VLOOKUP($A167,masterlist!$C$2:$AD$207,28,FALSE),\"\")","v":""},{"$f":"IF($D167>6,\"\",IF(F$5<=(VLOOKUP($A167,masterlist!$C$2:$AC$207,27,FALSE)),1,\"\"))","v":""},{"$f":"IF($D167>6,\"\",IF(G$5<=(VLOOKUP($A167,masterlist!$C$2:$AC$207,27,FALSE)),1,\"\"))","v":""},{"$f":"IF($D167>6,\"\",IF(H$5<=(VLOOKUP($A167,masterlist!$C$2:$AC$207,27,FALSE)),1,\"\"))","v":""},{"$f":"IF($D167>6,\"\",IF(I$5<=(VLOOKUP($A167,masterlist!$C$2:$AC$207,27,FALSE)),1,\"\"))","v":""},{"$f":"IF($D167>6,\"\",IF(J$5<=(VLOOKUP($A167,masterlist!$C$2:$AC$207,27,FALSE)),1,\"\"))","v":""},{"$f":"IF($D167>6,\"\",IF(K$5<=(VLOOKUP($A167,masterlist!$C$2:$AC$207,27,FALSE)),1,\"\"))","v":""},{"$f":"IF($D167>6,\"\",IF(L$5<=(VLOOKUP($A167,masterlist!$C$2:$AC$207,27,FALSE)),1,\"\"))","v":""},{"$f":"IF($D167>6,\"\",IF(M$5<=(VLOOKUP($A167,masterlist!$C$2:$AC$207,27,FALSE)),1,\"\"))","v":""},{"$f":"IF($D167>6,\"\",IF(N$5<=(VLOOKUP($A167,masterlist!$C$2:$AC$207,27,FALSE)),1,\"\"))","v":""},{"$f":"IF($D167>6,\"\",IF(O$5<=(VLOOKUP($A167,masterlist!$C$2:$AC$207,27,FALSE)),1,\"\"))","v":""},{"$f":"IF($D167>6,\"\",IF(P$5<=(VLOOKUP($A167,masterlist!$C$2:$AC$207,27,FALSE)),1,\"\"))","v":""},{"$f":"IF($D167>6,\"\",IF(Q$5<=(VLOOKUP($A167,masterlist!$C$2:$AC$207,27,FALSE)),1,\"\"))","v":""},{"$f":"IF($D167>6,\"\",IF(R$5<=(VLOOKUP($A167,masterlist!$C$2:$AC$207,27,FALSE)),1,\"\"))","v":""},null,null,null,null,0,0,0,0,0,0,0,0,0,0,0,0,0]
[{"$f":"IFERROR(priorit!A167,\"\")","v":""},"",{"$f":"IFERROR(VLOOKUP($A168,masterlist!$C$2:$AA$207,2,FALSE),\"\")","v":""},{"$f":"IFERROR(VLOOKUP($A168,masterlist!$C$2:$AA$207,3,FALSE),\"\")","v":""},{"$f":"IFERROR(VLOOKUP($A168,masterlist!$C$2:$AD$207,28,FALSE),\"\")","v":""},{"$f":"IF($D168>6,\"\",IF(F$5<=(VLOOKUP($A168,masterlist!$C$2:$AC$207,27,FALSE)),1,\"\"))","v":""},{"$f":"IF($D168>6,\"\",IF(G$5<=(VLOOKUP($A168,masterlist!$C$2:$AC$207,27,FALSE)),1,\"\"))","v":""},{"$f":"IF($D168>6,\"\",IF(H$5<=(VLOOKUP($A168,masterlist!$C$2:$AC$207,27,FALSE)),1,\"\"))","v":""},{"$f":"IF($D168>6,\"\",IF(I$5<=(VLOOKUP($A168,masterlist!$C$2:$AC$207,27,FALSE)),1,\"\"))","v":""},{"$f":"IF($D168>6,\"\",IF(J$5<=(VLOOKUP($A168,masterlist!$C$2:$AC$207,27,FALSE)),1,\"\"))","v":""},{"$f":"IF($D168>6,\"\",IF(K$5<=(VLOOKUP($A168,masterlist!$C$2:$AC$207,27,FALSE)),1,\"\"))","v":""},{"$f":"IF($D168>6,\"\",IF(L$5<=(VLOOKUP($A168,masterlist!$C$2:$AC$207,27,FALSE)),1,\"\"))","v":""},{"$f":"IF($D168>6,\"\",IF(M$5<=(VLOOKUP($A168,masterlist!$C$2:$AC$207,27,FALSE)),1,\"\"))","v":""},{"$f":"IF($D168>6,\"\",IF(N$5<=(VLOOKUP($A168,masterlist!$C$2:$AC$207,27,FALSE)),1,\"\"))","v":""},{"$f":"IF($D168>6,\"\",IF(O$5<=(VLOOKUP($A168,masterlist!$C$2:$AC$207,27,FALSE)),1,\"\"))","v":""},{"$f":"IF($D168>6,\"\",IF(P$5<=(VLOOKUP($A168,masterlist!$C$2:$AC$207,27,FALSE)),1,\"\"))","v":""},{"$f":"IF($D168>6,\"\",IF(Q$5<=(VLOOKUP($A168,masterlist!$C$2:$AC$207,27,FALSE)),1,\"\"))","v":""},{"$f":"IF($D168>6,\"\",IF(R$5<=(VLOOKUP($A168,masterlist!$C$2:$AC$207,27,FALSE)),1,\"\"))","v":""},null,null,null,null,0,0,0,0,0,0,0,0,0,0,0,0,0]
[{"$f":"IFERROR(priorit!A168,\"\")","v":""},"",{"$f":"IFERROR(VLOOKUP($A169,masterlist!$C$2:$AA$207,2,FALSE),\"\")","v":""},{"$f":"IFERROR(VLOOKUP($A169,masterlist!$C$2:$AA$207,3,FALSE),\"\")","v":""},{"$f":"IFERROR(VLOOKUP($A169,masterlist!$C$2:$AD$207,28,FALSE),\"\")","v":""},{"$f":"IF($D169>6,\"\",IF(F$5<=(VLOOKUP($A169,masterlist!$C$2:$AC$207,27,FALSE)),1,\"\"))","v":""},{"$f":"IF($D169>6,\"\",IF(G$5<=(VLOOKUP($A169,masterlist!$C$2:$AC$207,27,FALSE)),1,\"\"))","v":""},{"$f":"IF($D169>6,\"\",IF(H$5<=(VLOOKUP($A169,masterlist!$C$2:$AC$207,27,FALSE)),1,\"\"))","v":""},{"$f":"IF($D169>6,\"\",IF(I$5<=(VLOOKUP($A169,masterlist!$C$2:$AC$207,27,FALSE)),1,\"\"))","v":""},{"$f":"IF($D169>6,\"\",IF(J$5<=(VLOOKUP($A169,masterlist!$C$2:$AC$207,27,FALSE)),1,\"\"))","v":""},{"$f":"IF($D169>6,\"\",IF(K$5<=(VLOOKUP($A169,masterlist!$C$2:$AC$207,27,FALSE)),1,\"\"))","v":""},{"$f":"IF($D169>6,\"\",IF(L$5<=(VLOOKUP($A169,masterlist!$C$2:$AC$207,27,FALSE)),1,\"\"))","v":""},{"$f":"IF($D169>6,\"\",IF(M$5<=(VLOOKUP($A169,masterlist!$C$2:$AC$207,27,FALSE)),1,\"\"))","v":""},{"$f":"IF($D169>6,\"\",IF(N$5<=(VLOOKUP($A169,masterlist!$C$2:$AC$207,27,FALSE)),1,\"\"))","v":""},{"$f":"IF($D169>6,\"\",IF(O$5<=(VLOOKUP($A169,masterlist!$C$2:$AC$207,27,FALSE)),1,\"\"))","v":""},{"$f":"IF($D169>6,\"\",IF(P$5<=(VLOOKUP($A169,masterlist!$C$2:$AC$207,27,FALSE)),1,\"\"))","v":""},{"$f":"IF($D169>6,\"\",IF(Q$5<=(VLOOKUP($A169,masterlist!$C$2:$AC$207,27,FALSE)),1,\"\"))","v":""},{"$f":"IF($D169>6,\"\",IF(R$5<=(VLOOKUP($A169,masterlist!$C$2:$AC$207,27,FALSE)),1,\"\"))","v":""},null,null,null,null,0,0,0,0,0,0,0,0,0,0,0,0,0]
[{"$f":"IFERROR(priorit!A169,\"\")","v":""},"",{"$f":"IFERROR(VLOOKUP($A170,masterlist!$C$2:$AA$207,2,FALSE),\"\")","v":""},{"$f":"IFERROR(VLOOKUP($A170,masterlist!$C$2:$AA$207,3,FALSE),\"\")","v":""},{"$f":"IFERROR(VLOOKUP($A170,masterlist!$C$2:$AD$207,28,FALSE),\"\")","v":""},{"$f":"IF($D170>6,\"\",IF(F$5<=(VLOOKUP($A170,masterlist!$C$2:$AC$207,27,FALSE)),1,\"\"))","v":""},{"$f":"IF($D170>6,\"\",IF(G$5<=(VLOOKUP($A170,masterlist!$C$2:$AC$207,27,FALSE)),1,\"\"))","v":""},{"$f":"IF($D170>6,\"\",IF(H$5<=(VLOOKUP($A170,masterlist!$C$2:$AC$207,27,FALSE)),1,\"\"))","v":""},{"$f":"IF($D170>6,\"\",IF(I$5<=(VLOOKUP($A170,masterlist!$C$2:$AC$207,27,FALSE)),1,\"\"))","v":""},{"$f":"IF($D170>6,\"\",IF(J$5<=(VLOOKUP($A170,masterlist!$C$2:$AC$207,27,FALSE)),1,\"\"))","v":""},{"$f":"IF($D170>6,\"\",IF(K$5<=(VLOOKUP($A170,masterlist!$C$2:$AC$207,27,FALSE)),1,\"\"))","v":""},{"$f":"IF($D170>6,\"\",IF(L$5<=(VLOOKUP($A170,masterlist!$C$2:$AC$207,27,FALSE)),1,\"\"))","v":""},{"$f":"IF($D170>6,\"\",IF(M$5<=(VLOOKUP($A170,masterlist!$C$2:$AC$207,27,FALSE)),1,\"\"))","v":""},{"$f":"IF($D170>6,\"\",IF(N$5<=(VLOOKUP($A170,masterlist!$C$2:$AC$207,27,FALSE)),1,\"\"))","v":""},{"$f":"IF($D170>6,\"\",IF(O$5<=(VLOOKUP($A170,masterlist!$C$2:$AC$207,27,FALSE)),1,\"\"))","v":""},{"$f":"IF($D170>6,\"\",IF(P$5<=(VLOOKUP($A170,masterlist!$C$2:$AC$207,27,FALSE)),1,\"\"))","v":""},{"$f":"IF($D170>6,\"\",IF(Q$5<=(VLOOKUP($A170,masterlist!$C$2:$AC$207,27,FALSE)),1,\"\"))","v":""},{"$f":"IF($D170>6,\"\",IF(R$5<=(VLOOKUP($A170,masterlist!$C$2:$AC$207,27,FALSE)),1,\"\"))","v":""},null,null,null,null,0,0,0,0,0,0,0,0,0,0,0,0,0]
[{"$f":"IFERROR(priorit!A170,\"\")","v":""},"",{"$f":"IFERROR(VLOOKUP($A171,masterlist!$C$2:$AA$207,2,FALSE),\"\")","v":""},{"$f":"IFERROR(VLOOKUP($A171,masterlist!$C$2:$AA$207,3,FALSE),\"\")","v":""},{"$f":"IFERROR(VLOOKUP($A171,masterlist!$C$2:$AD$207,28,FALSE),\"\")","v":""},{"$f":"IF($D171>6,\"\",IF(F$5<=(VLOOKUP($A171,masterlist!$C$2:$AC$207,27,FALSE)),1,\"\"))","v":""},{"$f":"IF($D171>6,\"\",IF(G$5<=(VLOOKUP($A171,masterlist!$C$2:$AC$207,27,FALSE)),1,\"\"))","v":""},{"$f":"IF($D171>6,\"\",IF(H$5<=(VLOOKUP($A171,masterlist!$C$2:$AC$207,27,FALSE)),1,\"\"))","v":""},{"$f":"IF($D171>6,\"\",IF(I$5<=(VLOOKUP($A171,masterlist!$C$2:$AC$207,27,FALSE)),1,\"\"))","v":""},{"$f":"IF($D171>6,\"\",IF(J$5<=(VLOOKUP($A171,masterlist!$C$2:$AC$207,27,FALSE)),1,\"\"))","v":""},{"$f":"IF($D171>6,\"\",IF(K$5<=(VLOOKUP($A171,masterlist!$C$2:$AC$207,27,FALSE)),1,\"\"))","v":""},{"$f":"IF($D171>6,\"\",IF(L$5<=(VLOOKUP($A171,masterlist!$C$2:$AC$207,27,FALSE)),1,\"\"))","v":""},{"$f":"IF($D171>6,\"\",IF(M$5<=(VLOOKUP($A171,masterlist!$C$2:$AC$207,27,FALSE)),1,\"\"))","v":""},{"$f":"IF($D171>6,\"\",IF(N$5<=(VLOOKUP($A171,masterlist!$C$2:$AC$207,27,FALSE)),1,\"\"))","v":""},{"$f":"IF($D171>6,\"\",IF(O$5<=(VLOOKUP($A171,masterlist!$C$2:$AC$207,27,FALSE)),1,\"\"))","v":""},{"$f":"IF($D171>6,\"\",IF(P$5<=(VLOOKUP($A171,masterlist!$C$2:$AC$207,27,FALSE)),1,\"\"))","v":""},{"$f":"IF($D171>6,\"\",IF(Q$5<=(VLOOKUP($A171,masterlist!$C$2:$AC$207,27,FALSE)),1,\"\"))","v":""},{"$f":"IF($D171>6,\"\",IF(R$5<=(VLOOKUP($A171,masterlist!$C$2:$AC$207,27,FALSE)),1,\"\"))","v":""},null,null,null,null,0,0,0,0,0,0,0,0,0,0,0,0,0]
[{"$f":"IFERROR(priorit!A171,\"\")","v":""},"",{"$f":"IFERROR(VLOOKUP($A172,masterlist!$C$2:$AA$207,2,FALSE),\"\")","v":""},{"$f":"IFERROR(VLOOKUP($A172,masterlist!$C$2:$AA$207,3,FALSE),\"\")","v":""},{"$f":"IFERROR(VLOOKUP($A172,masterlist!$C$2:$AD$207,28,FALSE),\"\")","v":""},{"$f":"IF($D172>6,\"\",IF(F$5<=(VLOOKUP($A172,masterlist!$C$2:$AC$207,27,FALSE)),1,\"\"))","v":""},{"$f":"IF($D172>6,\"\",IF(G$5<=(VLOOKUP($A172,masterlist!$C$2:$AC$207,27,FALSE)),1,\"\"))","v":""},{"$f":"IF($D172>6,\"\",IF(H$5<=(VLOOKUP($A172,masterlist!$C$2:$AC$207,27,FALSE)),1,\"\"))","v":""},{"$f":"IF($D172>6,\"\",IF(I$5<=(VLOOKUP($A172,masterlist!$C$2:$AC$207,27,FALSE)),1,\"\"))","v":""},{"$f":"IF($D172>6,\"\",IF(J$5<=(VLOOKUP($A172,masterlist!$C$2:$AC$207,27,FALSE)),1,\"\"))","v":""},{"$f":"IF($D172>6,\"\",IF(K$5<=(VLOOKUP($A172,masterlist!$C$2:$AC$207,27,FALSE)),1,\"\"))","v":""},{"$f":"IF($D172>6,\"\",IF(L$5<=(VLOOKUP($A172,masterlist!$C$2:$AC$207,27,FALSE)),1,\"\"))","v":""},{"$f":"IF($D172>6,\"\",IF(M$5<=(VLOOKUP($A172,masterlist!$C$2:$AC$207,27,FALSE)),1,\"\"))","v":""},{"$f":"IF($D172>6,\"\",IF(N$5<=(VLOOKUP($A172,masterlist!$C$2:$AC$207,27,FALSE)),1,\"\"))","v":""},{"$f":"IF($D172>6,\"\",IF(O$5<=(VLOOKUP($A172,masterlist!$C$2:$AC$207,27,FALSE)),1,\"\"))","v":""},{"$f":"IF($D172>6,\"\",IF(P$5<=(VLOOKUP($A172,masterlist!$C$2:$AC$207,27,FALSE)),1,\"\"))","v":""},{"$f":"IF($D172>6,\"\",IF(Q$5<=(VLOOKUP($A172,masterlist!$C$2:$AC$207,27,FALSE)),1,\"\"))","v":""},{"$f":"IF($D172>6,\"\",IF(R$5<=(VLOOKUP($A172,masterlist!$C$2:$AC$207,27,FALSE)),1,\"\"))","v":""},null,null,null,null,0,0,0,0,0,0,0,0,0,0,0,0,0]
[{"$f":"IFERROR(priorit!A172,\"\")","v":""},"",{"$f":"IFERROR(VLOOKUP($A173,masterlist!$C$2:$AA$207,2,FALSE),\"\")","v":""},{"$f":"IFERROR(VLOOKUP($A173,masterlist!$C$2:$AA$207,3,FALSE),\"\")","v":""},{"$f":"IFERROR(VLOOKUP($A173,masterlist!$C$2:$AD$207,28,FALSE),\"\")","v":""},{"$f":"IF($D173>6,\"\",IF(F$5<=(VLOOKUP($A173,masterlist!$C$2:$AC$207,27,FALSE)),1,\"\"))","v":""},{"$f":"IF($D173>6,\"\",IF(G$5<=(VLOOKUP($A173,masterlist!$C$2:$AC$207,27,FALSE)),1,\"\"))","v":""},{"$f":"IF($D173>6,\"\",IF(H$5<=(VLOOKUP($A173,masterlist!$C$2:$AC$207,27,FALSE)),1,\"\"))","v":""},{"$f":"IF($D173>6,\"\",IF(I$5<=(VLOOKUP($A173,masterlist!$C$2:$AC$207,27,FALSE)),1,\"\"))","v":""},{"$f":"IF($D173>6,\"\",IF(J$5<=(VLOOKUP($A173,masterlist!$C$2:$AC$207,27,FALSE)),1,\"\"))","v":""},{"$f":"IF($D173>6,\"\",IF(K$5<=(VLOOKUP($A173,masterlist!$C$2:$AC$207,27,FALSE)),1,\"\"))","v":""},{"$f":"IF($D173>6,\"\",IF(L$5<=(VLOOKUP($A173,masterlist!$C$2:$AC$207,27,FALSE)),1,\"\"))","v":""},{"$f":"IF($D173>6,\"\",IF(M$5<=(VLOOKUP($A173,masterlist!$C$2:$AC$207,27,FALSE)),1,\"\"))","v":""},{"$f":"IF($D173>6,\"\",IF(N$5<=(VLOOKUP($A173,masterlist!$C$2:$AC$207,27,FALSE)),1,\"\"))","v":""},{"$f":"IF($D173>6,\"\",IF(O$5<=(VLOOKUP($A173,masterlist!$C$2:$AC$207,27,FALSE)),1,\"\"))","v":""},{"$f":"IF($D173>6,\"\",IF(P$5<=(VLOOKUP($A173,masterlist!$C$2:$AC$207,27,FALSE)),1,\"\"))","v":""},{"$f":"IF($D173>6,\"\",IF(Q$5<=(VLOOKUP($A173,masterlist!$C$2:$AC$207,27,FALSE)),1,\"\"))","v":""},{"$f":"IF($D173>6,\"\",IF(R$5<=(VLOOKUP($A173,masterlist!$C$2:$AC$207,27,FALSE)),1,\"\"))","v":""},null,null,null,null,0,0,0,0,0,0,0,0,0,0,0,0,0]
[{"$f":"IFERROR(priorit!A173,\"\")","v":""},"",{"$f":"IFERROR(VLOOKUP($A174,masterlist!$C$2:$AA$207,2,FALSE),\"\")","v":""},{"$f":"IFERROR(VLOOKUP($A174,masterlist!$C$2:$AA$207,3,FALSE),\"\")","v":""},{"$f":"IFERROR(VLOOKUP($A174,masterlist!$C$2:$AD$207,28,FALSE),\"\")","v":""},{"$f":"IF($D174>6,\"\",IF(F$5<=(VLOOKUP($A174,masterlist!$C$2:$AC$207,27,FALSE)),1,\"\"))","v":""},{"$f":"IF($D174>6,\"\",IF(G$5<=(VLOOKUP($A174,masterlist!$C$2:$AC$207,27,FALSE)),1,\"\"))","v":""},{"$f":"IF($D174>6,\"\",IF(H$5<=(VLOOKUP($A174,masterlist!$C$2:$AC$207,27,FALSE)),1,\"\"))","v":""},{"$f":"IF($D174>6,\"\",IF(I$5<=(VLOOKUP($A174,masterlist!$C$2:$AC$207,27,FALSE)),1,\"\"))","v":""},{"$f":"IF($D174>6,\"\",IF(J$5<=(VLOOKUP($A174,masterlist!$C$2:$AC$207,27,FALSE)),1,\"\"))","v":""},{"$f":"IF($D174>6,\"\",IF(K$5<=(VLOOKUP($A174,masterlist!$C$2:$AC$207,27,FALSE)),1,\"\"))","v":""},{"$f":"IF($D174>6,\"\",IF(L$5<=(VLOOKUP($A174,masterlist!$C$2:$AC$207,27,FALSE)),1,\"\"))","v":""},{"$f":"IF($D174>6,\"\",IF(M$5<=(VLOOKUP($A174,masterlist!$C$2:$AC$207,27,FALSE)),1,\"\"))","v":""},{"$f":"IF($D174>6,\"\",IF(N$5<=(VLOOKUP($A174,masterlist!$C$2:$AC$207,27,FALSE)),1,\"\"))","v":""},{"$f":"IF($D174>6,\"\",IF(O$5<=(VLOOKUP($A174,masterlist!$C$2:$AC$207,27,FALSE)),1,\"\"))","v":""},{"$f":"IF($D174>6,\"\",IF(P$5<=(VLOOKUP($A174,masterlist!$C$2:$AC$207,27,FALSE)),1,\"\"))","v":""},{"$f":"IF($D174>6,\"\",IF(Q$5<=(VLOOKUP($A174,masterlist!$C$2:$AC$207,27,FALSE)),1,\"\"))","v":""},{"$f":"IF($D174>6,\"\",IF(R$5<=(VLOOKUP($A174,masterlist!$C$2:$AC$207,27,FALSE)),1,\"\"))","v":""},null,null,null,null,0,0,0,0,0,0,0,0,0,0,0,0,0]
[{"$f":"IFERROR(priorit!A174,\"\")","v":""},"",{"$f":"IFERROR(VLOOKUP($A175,masterlist!$C$2:$AA$207,2,FALSE),\"\")","v":""},{"$f":"IFERROR(VLOOKUP($A175,masterlist!$C$2:$AA$207,3,FALSE),\"\")","v":""},{"$f":"IFERROR(VLOOKUP($A175,masterlist!$C$2:$AD$207,28,FALSE),\"\")","v":""},{"$f":"IF($D175>6,\"\",IF(F$5<=(VLOOKUP($A175,masterlist!$C$2:$AC$207,27,FALSE)),1,\"\"))","v":""},{"$f":"IF($D175>6,\"\",IF(G$5<=(VLOOKUP($A175,masterlist!$C$2:$AC$207,27,FALSE)),1,\"\"))","v":""},{"$f":"IF($D175>6,\"\",IF(H$5<=(VLOOKUP($A175,masterlist!$C$2:$AC$207,27,FALSE)),1,\"\"))","v":""},{"$f":"IF($D175>6,\"\",IF(I$5<=(VLOOKUP($A175,masterlist!$C$2:$AC$207,27,FALSE)),1,\"\"))","v":""},{"$f":"IF($D175>6,\"\",IF(J$5<=(VLOOKUP($A175,masterlist!$C$2:$AC$207,27,FALSE)),1,\"\"))","v":""},{"$f":"IF($D175>6,\"\",IF(K$5<=(VLOOKUP($A175,masterlist!$C$2:$AC$207,27,FALSE)),1,\"\"))","v":""},{"$f":"IF($D175>6,\"\",IF(L$5<=(VLOOKUP($A175,masterlist!$C$2:$AC$207,27,FALSE)),1,\"\"))","v":""},{"$f":"IF($D175>6,\"\",IF(M$5<=(VLOOKUP($A175,masterlist!$C$2:$AC$207,27,FALSE)),1,\"\"))","v":""},{"$f":"IF($D175>6,\"\",IF(N$5<=(VLOOKUP($A175,masterlist!$C$2:$AC$207,27,FALSE)),1,\"\"))","v":""},{"$f":"IF($D175>6,\"\",IF(O$5<=(VLOOKUP($A175,masterlist!$C$2:$AC$207,27,FALSE)),1,\"\"))","v":""},{"$f":"IF($D175>6,\"\",IF(P$5<=(VLOOKUP($A175,masterlist!$C$2:$AC$207,27,FALSE)),1,\"\"))","v":""},{"$f":"IF($D175>6,\"\",IF(Q$5<=(VLOOKUP($A175,masterlist!$C$2:$AC$207,27,FALSE)),1,\"\"))","v":""},{"$f":"IF($D175>6,\"\",IF(R$5<=(VLOOKUP($A175,masterlist!$C$2:$AC$207,27,FALSE)),1,\"\"))","v":""},null,null,null,null,0,0,0,0,0,0,0,0,0,0,0,0,0]
[{"$f":"IFERROR(priorit!A175,\"\")","v":""},"",{"$f":"IFERROR(VLOOKUP($A176,masterlist!$C$2:$AA$207,2,FALSE),\"\")","v":""},{"$f":"IFERROR(VLOOKUP($A176,masterlist!$C$2:$AA$207,3,FALSE),\"\")","v":""},{"$f":"IFERROR(VLOOKUP($A176,masterlist!$C$2:$AD$207,28,FALSE),\"\")","v":""},{"$f":"IF($D176>6,\"\",IF(F$5<=(VLOOKUP($A176,masterlist!$C$2:$AC$207,27,FALSE)),1,\"\"))","v":""},{"$f":"IF($D176>6,\"\",IF(G$5<=(VLOOKUP($A176,masterlist!$C$2:$AC$207,27,FALSE)),1,\"\"))","v":""},{"$f":"IF($D176>6,\"\",IF(H$5<=(VLOOKUP($A176,masterlist!$C$2:$AC$207,27,FALSE)),1,\"\"))","v":""},{"$f":"IF($D176>6,\"\",IF(I$5<=(VLOOKUP($A176,masterlist!$C$2:$AC$207,27,FALSE)),1,\"\"))","v":""},{"$f":"IF($D176>6,\"\",IF(J$5<=(VLOOKUP($A176,masterlist!$C$2:$AC$207,27,FALSE)),1,\"\"))","v":""},{"$f":"IF($D176>6,\"\",IF(K$5<=(VLOOKUP($A176,masterlist!$C$2:$AC$207,27,FALSE)),1,\"\"))","v":""},{"$f":"IF($D176>6,\"\",IF(L$5<=(VLOOKUP($A176,masterlist!$C$2:$AC$207,27,FALSE)),1,\"\"))","v":""},{"$f":"IF($D176>6,\"\",IF(M$5<=(VLOOKUP($A176,masterlist!$C$2:$AC$207,27,FALSE)),1,\"\"))","v":""},{"$f":"IF($D176>6,\"\",IF(N$5<=(VLOOKUP($A176,masterlist!$C$2:$AC$207,27,FALSE)),1,\"\"))","v":""},{"$f":"IF($D176>6,\"\",IF(O$5<=(VLOOKUP($A176,masterlist!$C$2:$AC$207,27,FALSE)),1,\"\"))","v":""},{"$f":"IF($D176>6,\"\",IF(P$5<=(VLOOKUP($A176,masterlist!$C$2:$AC$207,27,FALSE)),1,\"\"))","v":""},{"$f":"IF($D176>6,\"\",IF(Q$5<=(VLOOKUP($A176,masterlist!$C$2:$AC$207,27,FALSE)),1,\"\"))","v":""},{"$f":"IF($D176>6,\"\",IF(R$5<=(VLOOKUP($A176,masterlist!$C$2:$AC$207,27,FALSE)),1,\"\"))","v":""},null,null,null,null,0,0,0,0,0,0,0,0,0,0,0,0,0]
[{"$f":"IFERROR(priorit!A176,\"\")","v":""},"",{"$f":"IFERROR(VLOOKUP($A177,masterlist!$C$2:$AA$207,2,FALSE),\"\")","v":""},{"$f":"IFERROR(VLOOKUP($A177,masterlist!$C$2:$AA$207,3,FALSE),\"\")","v":""},{"$f":"IFERROR(VLOOKUP($A177,masterlist!$C$2:$AD$207,28,FALSE),\"\")","v":""},{"$f":"IF($D177>6,\"\",IF(F$5<=(VLOOKUP($A177,masterlist!$C$2:$AC$207,27,FALSE)),1,\"\"))","v":""},{"$f":"IF($D177>6,\"\",IF(G$5<=(VLOOKUP($A177,masterlist!$C$2:$AC$207,27,FALSE)),1,\"\"))","v":""},{"$f":"IF($D177>6,\"\",IF(H$5<=(VLOOKUP($A177,masterlist!$C$2:$AC$207,27,FALSE)),1,\"\"))","v":""},{"$f":"IF($D177>6,\"\",IF(I$5<=(VLOOKUP($A177,masterlist!$C$2:$AC$207,27,FALSE)),1,\"\"))","v":""},{"$f":"IF($D177>6,\"\",IF(J$5<=(VLOOKUP($A177,masterlist!$C$2:$AC$207,27,FALSE)),1,\"\"))","v":""},{"$f":"IF($D177>6,\"\",IF(K$5<=(VLOOKUP($A177,masterlist!$C$2:$AC$207,27,FALSE)),1,\"\"))","v":""},{"$f":"IF($D177>6,\"\",IF(L$5<=(VLOOKUP($A177,masterlist!$C$2:$AC$207,27,FALSE)),1,\"\"))","v":""},{"$f":"IF($D177>6,\"\",IF(M$5<=(VLOOKUP($A177,masterlist!$C$2:$AC$207,27,FALSE)),1,\"\"))","v":""},{"$f":"IF($D177>6,\"\",IF(N$5<=(VLOOKUP($A177,masterlist!$C$2:$AC$207,27,FALSE)),1,\"\"))","v":""},{"$f":"IF($D177>6,\"\",IF(O$5<=(VLOOKUP($A177,masterlist!$C$2:$AC$207,27,FALSE)),1,\"\"))","v":""},{"$f":"IF($D177>6,\"\",IF(P$5<=(VLOOKUP($A177,masterlist!$C$2:$AC$207,27,FALSE)),1,\"\"))","v":""},{"$f":"IF($D177>6,\"\",IF(Q$5<=(VLOOKUP($A177,masterlist!$C$2:$AC$207,27,FALSE)),1,\"\"))","v":""},{"$f":"IF($D177>6,\"\",IF(R$5<=(VLOOKUP($A177,masterlist!$C$2:$AC$207,27,FALSE)),1,\"\"))","v":""},null,null,null,null,0,0,0,0,0,0,0,0,0,0,0,0,0]
[{"$f":"IFERROR(priorit!A177,\"\")","v":""},"",{"$f":"IFERROR(VLOOKUP($A178,masterlist!$C$2:$AA$207,2,FALSE),\"\")","v":""},{"$f":"IFERROR(VLOOKUP($A178,masterlist!$C$2:$AA$207,3,FALSE),\"\")","v":""},{"$f":"IFERROR(VLOOKUP($A178,masterlist!$C$2:$AD$207,28,FALSE),\"\")","v":""},{"$f":"IF($D178>6,\"\",IF(F$5<=(VLOOKUP($A178,masterlist!$C$2:$AC$207,27,FALSE)),1,\"\"))","v":""},{"$f":"IF($D178>6,\"\",IF(G$5<=(VLOOKUP($A178,masterlist!$C$2:$AC$207,27,FALSE)),1,\"\"))","v":""},{"$f":"IF($D178>6,\"\",IF(H$5<=(VLOOKUP($A178,masterlist!$C$2:$AC$207,27,FALSE)),1,\"\"))","v":""},{"$f":"IF($D178>6,\"\",IF(I$5<=(VLOOKUP($A178,masterlist!$C$2:$AC$207,27,FALSE)),1,\"\"))","v":""},{"$f":"IF($D178>6,\"\",IF(J$5<=(VLOOKUP($A178,masterlist!$C$2:$AC$207,27,FALSE)),1,\"\"))","v":""},{"$f":"IF($D178>6,\"\",IF(K$5<=(VLOOKUP($A178,masterlist!$C$2:$AC$207,27,FALSE)),1,\"\"))","v":""},{"$f":"IF($D178>6,\"\",IF(L$5<=(VLOOKUP($A178,masterlist!$C$2:$AC$207,27,FALSE)),1,\"\"))","v":""},{"$f":"IF($D178>6,\"\",IF(M$5<=(VLOOKUP($A178,masterlist!$C$2:$AC$207,27,FALSE)),1,\"\"))","v":""},{"$f":"IF($D178>6,\"\",IF(N$5<=(VLOOKUP($A178,masterlist!$C$2:$AC$207,27,FALSE)),1,\"\"))","v":""},{"$f":"IF($D178>6,\"\",IF(O$5<=(VLOOKUP($A178,masterlist!$C$2:$AC$207,27,FALSE)),1,\"\"))","v":""},{"$f":"IF($D178>6,\"\",IF(P$5<=(VLOOKUP($A178,masterlist!$C$2:$AC$207,27,FALSE)),1,\"\"))","v":""},{"$f":"IF($D178>6,\"\",IF(Q$5<=(VLOOKUP($A178,masterlist!$C$2:$AC$207,27,FALSE)),1,\"\"))","v":""},{"$f":"IF($D178>6,\"\",IF(R$5<=(VLOOKUP($A178,masterlist!$C$2:$AC$207,27,FALSE)),1,\"\"))","v":""},null,null,null,null,0,0,0,0,0,0,0,0,0,0,0,0,0]
[{"$f":"IFERROR(priorit!A178,\"\")","v":""},"",{"$f":"IFERROR(VLOOKUP($A179,masterlist!$C$2:$AA$207,2,FALSE),\"\")","v":""},{"$f":"IFERROR(VLOOKUP($A179,masterlist!$C$2:$AA$207,3,FALSE),\"\")","v":""},{"$f":"IFERROR(VLOOKUP($A179,masterlist!$C$2:$AD$207,28,FALSE),\"\")","v":""},{"$f":"IF($D179>6,\"\",IF(F$5<=(VLOOKUP($A179,masterlist!$C$2:$AC$207,27,FALSE)),1,\"\"))","v":""},{"$f":"IF($D179>6,\"\",IF(G$5<=(VLOOKUP($A179,masterlist!$C$2:$AC$207,27,FALSE)),1,\"\"))","v":""},{"$f":"IF($D179>6,\"\",IF(H$5<=(VLOOKUP($A179,masterlist!$C$2:$AC$207,27,FALSE)),1,\"\"))","v":""},{"$f":"IF($D179>6,\"\",IF(I$5<=(VLOOKUP($A179,masterlist!$C$2:$AC$207,27,FALSE)),1,\"\"))","v":""},{"$f":"IF($D179>6,\"\",IF(J$5<=(VLOOKUP($A179,masterlist!$C$2:$AC$207,27,FALSE)),1,\"\"))","v":""},{"$f":"IF($D179>6,\"\",IF(K$5<=(VLOOKUP($A179,masterlist!$C$2:$AC$207,27,FALSE)),1,\"\"))","v":""},{"$f":"IF($D179>6,\"\",IF(L$5<=(VLOOKUP($A179,masterlist!$C$2:$AC$207,27,FALSE)),1,\"\"))","v":""},{"$f":"IF($D179>6,\"\",IF(M$5<=(VLOOKUP($A179,masterlist!$C$2:$AC$207,27,FALSE)),1,\"\"))","v":""},{"$f":"IF($D179>6,\"\",IF(N$5<=(VLOOKUP($A179,masterlist!$C$2:$AC$207,27,FALSE)),1,\"\"))","v":""},{"$f":"IF($D179>6,\"\",IF(O$5<=(VLOOKUP($A179,masterlist!$C$2:$AC$207,27,FALSE)),1,\"\"))","v":""},{"$f":"IF($D179>6,\"\",IF(P$5<=(VLOOKUP($A179,masterlist!$C$2:$AC$207,27,FALSE)),1,\"\"))","v":""},{"$f":"IF($D179>6,\"\",IF(Q$5<=(VLOOKUP($A179,masterlist!$C$2:$AC$207,27,FALSE)),1,\"\"))","v":""},{"$f":"IF($D179>6,\"\",IF(R$5<=(VLOOKUP($A179,masterlist!$C$2:$AC$207,27,FALSE)),1,\"\"))","v":""},null,null,null,null,0,0,0,0,0,0,0,0,0,0,0,0,0]
[{"$f":"IFERROR(priorit!A179,\"\")","v":""},"",{"$f":"IFERROR(VLOOKUP($A180,masterlist!$C$2:$AA$207,2,FALSE),\"\")","v":""},{"$f":"IFERROR(VLOOKUP($A180,masterlist!$C$2:$AA$207,3,FALSE),\"\")","v":""},{"$f":"IFERROR(VLOOKUP($A180,masterlist!$C$2:$AD$207,28,FALSE),\"\")","v":""},{"$f":"IF($D180>6,\"\",IF(F$5<=(VLOOKUP($A180,masterlist!$C$2:$AC$207,27,FALSE)),1,\"\"))","v":""},{"$f":"IF($D180>6,\"\",IF(G$5<=(VLOOKUP($A180,masterlist!$C$2:$AC$207,27,FALSE)),1,\"\"))","v":""},{"$f":"IF($D180>6,\"\",IF(H$5<=(VLOOKUP($A180,masterlist!$C$2:$AC$207,27,FALSE)),1,\"\"))","v":""},{"$f":"IF($D180>6,\"\",IF(I$5<=(VLOOKUP($A180,masterlist!$C$2:$AC$207,27,FALSE)),1,\"\"))","v":""},{"$f":"IF($D180>6,\"\",IF(J$5<=(VLOOKUP($A180,masterlist!$C$2:$AC$207,27,FALSE)),1,\"\"))","v":""},{"$f":"IF($D180>6,\"\",IF(K$5<=(VLOOKUP($A180,masterlist!$C$2:$AC$207,27,FALSE)),1,\"\"))","v":""},{"$f":"IF($D180>6,\"\",IF(L$5<=(VLOOKUP($A180,masterlist!$C$2:$AC$207,27,FALSE)),1,\"\"))","v":""},{"$f":"IF($D180>6,\"\",IF(M$5<=(VLOOKUP($A180,masterlist!$C$2:$AC$207,27,FALSE)),1,\"\"))","v":""},{"$f":"IF($D180>6,\"\",IF(N$5<=(VLOOKUP($A180,masterlist!$C$2:$AC$207,27,FALSE)),1,\"\"))","v":""},{"$f":"IF($D180>6,\"\",IF(O$5<=(VLOOKUP($A180,masterlist!$C$2:$AC$207,27,FALSE)),1,\"\"))","v":""},{"$f":"IF($D180>6,\"\",IF(P$5<=(VLOOKUP($A180,masterlist!$C$2:$AC$207,27,FALSE)),1,\"\"))","v":""},{"$f":"IF($D180>6,\"\",IF(Q$5<=(VLOOKUP($A180,masterlist!$C$2:$AC$207,27,FALSE)),1,\"\"))","v":""},{"$f":"IF($D180>6,\"\",IF(R$5<=(VLOOKUP($A180,masterlist!$C$2:$AC$207,27,FALSE)),1,\"\"))","v":""},null,null,null,null,0,0,0,0,0,0,0,0,0,0,0,0,0]
[{"$f":"IFERROR(priorit!A180,\"\")","v":""},"",{"$f":"IFERROR(VLOOKUP($A181,masterlist!$C$2:$AA$207,2,FALSE),\"\")","v":""},{"$f":"IFERROR(VLOOKUP($A181,masterlist!$C$2:$AA$207,3,FALSE),\"\")","v":""},{"$f":"IFERROR(VLOOKUP($A181,masterlist!$C$2:$AD$207,28,FALSE),\"\")","v":""},{"$f":"IF($D181>6,\"\",IF(F$5<=(VLOOKUP($A181,masterlist!$C$2:$AC$207,27,FALSE)),1,\"\"))","v":""},{"$f":"IF($D181>6,\"\",IF(G$5<=(VLOOKUP($A181,masterlist!$C$2:$AC$207,27,FALSE)),1,\"\"))","v":""},{"$f":"IF($D181>6,\"\",IF(H$5<=(VLOOKUP($A181,masterlist!$C$2:$AC$207,27,FALSE)),1,\"\"))","v":""},{"$f":"IF($D181>6,\"\",IF(I$5<=(VLOOKUP($A181,masterlist!$C$2:$AC$207,27,FALSE)),1,\"\"))","v":""},{"$f":"IF($D181>6,\"\",IF(J$5<=(VLOOKUP($A181,masterlist!$C$2:$AC$207,27,FALSE)),1,\"\"))","v":""},{"$f":"IF($D181>6,\"\",IF(K$5<=(VLOOKUP($A181,masterlist!$C$2:$AC$207,27,FALSE)),1,\"\"))","v":""},{"$f":"IF($D181>6,\"\",IF(L$5<=(VLOOKUP($A181,masterlist!$C$2:$AC$207,27,FALSE)),1,\"\"))","v":""},{"$f":"IF($D181>6,\"\",IF(M$5<=(VLOOKUP($A181,masterlist!$C$2:$AC$207,27,FALSE)),1,\"\"))","v":""},{"$f":"IF($D181>6,\"\",IF(N$5<=(VLOOKUP($A181,masterlist!$C$2:$AC$207,27,FALSE)),1,\"\"))","v":""},{"$f":"IF($D181>6,\"\",IF(O$5<=(VLOOKUP($A181,masterlist!$C$2:$AC$207,27,FALSE)),1,\"\"))","v":""},{"$f":"IF($D181>6,\"\",IF(P$5<=(VLOOKUP($A181,masterlist!$C$2:$AC$207,27,FALSE)),1,\"\"))","v":""},{"$f":"IF($D181>6,\"\",IF(Q$5<=(VLOOKUP($A181,masterlist!$C$2:$AC$207,27,FALSE)),1,\"\"))","v":""},{"$f":"IF($D181>6,\"\",IF(R$5<=(VLOOKUP($A181,masterlist!$C$2:$AC$207,27,FALSE)),1,\"\"))","v":""},null,null,null,null,0,0,0,0,0,0,0,0,0,0,0,0,0]
[{"$f":"IFERROR(priorit!A181,\"\")","v":""},"",{"$f":"IFERROR(VLOOKUP($A182,masterlist!$C$2:$AA$207,2,FALSE),\"\")","v":""},{"$f":"IFERROR(VLOOKUP($A182,masterlist!$C$2:$AA$207,3,FALSE),\"\")","v":""},{"$f":"IFERROR(VLOOKUP($A182,masterlist!$C$2:$AD$207,28,FALSE),\"\")","v":""},{"$f":"IF($D182>6,\"\",IF(F$5<=(VLOOKUP($A182,masterlist!$C$2:$AC$207,27,FALSE)),1,\"\"))","v":""},{"$f":"IF($D182>6,\"\",IF(G$5<=(VLOOKUP($A182,masterlist!$C$2:$AC$207,27,FALSE)),1,\"\"))","v":""},{"$f":"IF($D182>6,\"\",IF(H$5<=(VLOOKUP($A182,masterlist!$C$2:$AC$207,27,FALSE)),1,\"\"))","v":""},{"$f":"IF($D182>6,\"\",IF(I$5<=(VLOOKUP($A182,masterlist!$C$2:$AC$207,27,FALSE)),1,\"\"))","v":""},{"$f":"IF($D182>6,\"\",IF(J$5<=(VLOOKUP($A182,masterlist!$C$2:$AC$207,27,FALSE)),1,\"\"))","v":""},{"$f":"IF($D182>6,\"\",IF(K$5<=(VLOOKUP($A182,masterlist!$C$2:$AC$207,27,FALSE)),1,\"\"))","v":""},{"$f":"IF($D182>6,\"\",IF(L$5<=(VLOOKUP($A182,masterlist!$C$2:$AC$207,27,FALSE)),1,\"\"))","v":""},{"$f":"IF($D182>6,\"\",IF(M$5<=(VLOOKUP($A182,masterlist!$C$2:$AC$207,27,FALSE)),1,\"\"))","v":""},{"$f":"IF($D182>6,\"\",IF(N$5<=(VLOOKUP($A182,masterlist!$C$2:$AC$207,27,FALSE)),1,\"\"))","v":""},{"$f":"IF($D182>6,\"\",IF(O$5<=(VLOOKUP($A182,masterlist!$C$2:$AC$207,27,FALSE)),1,\"\"))","v":""},{"$f":"IF($D182>6,\"\",IF(P$5<=(VLOOKUP($A182,masterlist!$C$2:$AC$207,27,FALSE)),1,\"\"))","v":""},{"$f":"IF($D182>6,\"\",IF(Q$5<=(VLOOKUP($A182,masterlist!$C$2:$AC$207,27,FALSE)),1,\"\"))","v":""},{"$f":"IF($D182>6,\"\",IF(R$5<=(VLOOKUP($A182,masterlist!$C$2:$AC$207,27,FALSE)),1,\"\"))","v":""},null,null,null,null,0,0,0,0,0,0,0,0,0,0,0,0,0]
[{"$f":"IFERROR(priorit!A182,\"\")","v":""},"",{"$f":"IFERROR(VLOOKUP($A183,masterlist!$C$2:$AA$207,2,FALSE),\"\")","v":""},{"$f":"IFERROR(VLOOKUP($A183,masterlist!$C$2:$AA$207,3,FALSE),\"\")","v":""},{"$f":"IFERROR(VLOOKUP($A183,masterlist!$C$2:$AD$207,28,FALSE),\"\")","v":""},{"$f":"IF($D183>6,\"\",IF(F$5<=(VLOOKUP($A183,masterlist!$C$2:$AC$207,27,FALSE)),1,\"\"))","v":""},{"$f":"IF($D183>6,\"\",IF(G$5<=(VLOOKUP($A183,masterlist!$C$2:$AC$207,27,FALSE)),1,\"\"))","v":""},{"$f":"IF($D183>6,\"\",IF(H$5<=(VLOOKUP($A183,masterlist!$C$2:$AC$207,27,FALSE)),1,\"\"))","v":""},{"$f":"IF($D183>6,\"\",IF(I$5<=(VLOOKUP($A183,masterlist!$C$2:$AC$207,27,FALSE)),1,\"\"))","v":""},{"$f":"IF($D183>6,\"\",IF(J$5<=(VLOOKUP($A183,masterlist!$C$2:$AC$207,27,FALSE)),1,\"\"))","v":""},{"$f":"IF($D183>6,\"\",IF(K$5<=(VLOOKUP($A183,masterlist!$C$2:$AC$207,27,FALSE)),1,\"\"))","v":""},{"$f":"IF($D183>6,\"\",IF(L$5<=(VLOOKUP($A183,masterlist!$C$2:$AC$207,27,FALSE)),1,\"\"))","v":""},{"$f":"IF($D183>6,\"\",IF(M$5<=(VLOOKUP($A183,masterlist!$C$2:$AC$207,27,FALSE)),1,\"\"))","v":""},{"$f":"IF($D183>6,\"\",IF(N$5<=(VLOOKUP($A183,masterlist!$C$2:$AC$207,27,FALSE)),1,\"\"))","v":""},{"$f":"IF($D183>6,\"\",IF(O$5<=(VLOOKUP($A183,masterlist!$C$2:$AC$207,27,FALSE)),1,\"\"))","v":""},{"$f":"IF($D183>6,\"\",IF(P$5<=(VLOOKUP($A183,masterlist!$C$2:$AC$207,27,FALSE)),1,\"\"))","v":""},{"$f":"IF($D183>6,\"\",IF(Q$5<=(VLOOKUP($A183,masterlist!$C$2:$AC$207,27,FALSE)),1,\"\"))","v":""},{"$f":"IF($D183>6,\"\",IF(R$5<=(VLOOKUP($A183,masterlist!$C$2:$AC$207,27,FALSE)),1,\"\"))","v":""},null,null,null,null,0,0,0,0,0,0,0,0,0,0,0,0,0]
[{"$f":"IFERROR(priorit!A183,\"\")","v":""},"",{"$f":"IFERROR(VLOOKUP($A184,masterlist!$C$2:$AA$207,2,FALSE),\"\")","v":""},{"$f":"IFERROR(VLOOKUP($A184,masterlist!$C$2:$AA$207,3,FALSE),\"\")","v":""},{"$f":"IFERROR(VLOOKUP($A184,masterlist!$C$2:$AD$207,28,FALSE),\"\")","v":""},{"$f":"IF($D184>6,\"\",IF(F$5<=(VLOOKUP($A184,masterlist!$C$2:$AC$207,27,FALSE)),1,\"\"))","v":""},{"$f":"IF($D184>6,\"\",IF(G$5<=(VLOOKUP($A184,masterlist!$C$2:$AC$207,27,FALSE)),1,\"\"))","v":""},{"$f":"IF($D184>6,\"\",IF(H$5<=(VLOOKUP($A184,masterlist!$C$2:$AC$207,27,FALSE)),1,\"\"))","v":""},{"$f":"IF($D184>6,\"\",IF(I$5<=(VLOOKUP($A184,masterlist!$C$2:$AC$207,27,FALSE)),1,\"\"))","v":""},{"$f":"IF($D184>6,\"\",IF(J$5<=(VLOOKUP($A184,masterlist!$C$2:$AC$207,27,FALSE)),1,\"\"))","v":""},{"$f":"IF($D184>6,\"\",IF(K$5<=(VLOOKUP($A184,masterlist!$C$2:$AC$207,27,FALSE)),1,\"\"))","v":""},{"$f":"IF($D184>6,\"\",IF(L$5<=(VLOOKUP($A184,masterlist!$C$2:$AC$207,27,FALSE)),1,\"\"))","v":""},{"$f":"IF($D184>6,\"\",IF(M$5<=(VLOOKUP($A184,masterlist!$C$2:$AC$207,27,FALSE)),1,\"\"))","v":""},{"$f":"IF($D184>6,\"\",IF(N$5<=(VLOOKUP($A184,masterlist!$C$2:$AC$207,27,FALSE)),1,\"\"))","v":""},{"$f":"IF($D184>6,\"\",IF(O$5<=(VLOOKUP($A184,masterlist!$C$2:$AC$207,27,FALSE)),1,\"\"))","v":""},{"$f":"IF($D184>6,\"\",IF(P$5<=(VLOOKUP($A184,masterlist!$C$2:$AC$207,27,FALSE)),1,\"\"))","v":""},{"$f":"IF($D184>6,\"\",IF(Q$5<=(VLOOKUP($A184,masterlist!$C$2:$AC$207,27,FALSE)),1,\"\"))","v":""},{"$f":"IF($D184>6,\"\",IF(R$5<=(VLOOKUP($A184,masterlist!$C$2:$AC$207,27,FALSE)),1,\"\"))","v":""},null,null,null,null,0,0,0,0,0,0,0,0,0,0,0,0,0]
[{"$f":"IFERROR(priorit!A184,\"\")","v":""},"",{"$f":"IFERROR(VLOOKUP($A185,masterlist!$C$2:$AA$207,2,FALSE),\"\")","v":""},{"$f":"IFERROR(VLOOKUP($A185,masterlist!$C$2:$AA$207,3,FALSE),\"\")","v":""},{"$f":"IFERROR(VLOOKUP($A185,masterlist!$C$2:$AD$207,28,FALSE),\"\")","v":""},{"$f":"IF($D185>6,\"\",IF(F$5<=(VLOOKUP($A185,masterlist!$C$2:$AC$207,27,FALSE)),1,\"\"))","v":""},{"$f":"IF($D185>6,\"\",IF(G$5<=(VLOOKUP($A185,masterlist!$C$2:$AC$207,27,FALSE)),1,\"\"))","v":""},{"$f":"IF($D185>6,\"\",IF(H$5<=(VLOOKUP($A185,masterlist!$C$2:$AC$207,27,FALSE)),1,\"\"))","v":""},{"$f":"IF($D185>6,\"\",IF(I$5<=(VLOOKUP($A185,masterlist!$C$2:$AC$207,27,FALSE)),1,\"\"))","v":""},{"$f":"IF($D185>6,\"\",IF(J$5<=(VLOOKUP($A185,masterlist!$C$2:$AC$207,27,FALSE)),1,\"\"))","v":""},{"$f":"IF($D185>6,\"\",IF(K$5<=(VLOOKUP($A185,masterlist!$C$2:$AC$207,27,FALSE)),1,\"\"))","v":""},{"$f":"IF($D185>6,\"\",IF(L$5<=(VLOOKUP($A185,masterlist!$C$2:$AC$207,27,FALSE)),1,\"\"))","v":""},{"$f":"IF($D185>6,\"\",IF(M$5<=(VLOOKUP($A185,masterlist!$C$2:$AC$207,27,FALSE)),1,\"\"))","v":""},{"$f":"IF($D185>6,\"\",IF(N$5<=(VLOOKUP($A185,masterlist!$C$2:$AC$207,27,FALSE)),1,\"\"))","v":""},{"$f":"IF($D185>6,\"\",IF(O$5<=(VLOOKUP($A185,masterlist!$C$2:$AC$207,27,FALSE)),1,\"\"))","v":""},{"$f":"IF($D185>6,\"\",IF(P$5<=(VLOOKUP($A185,masterlist!$C$2:$AC$207,27,FALSE)),1,\"\"))","v":""},{"$f":"IF($D185>6,\"\",IF(Q$5<=(VLOOKUP($A185,masterlist!$C$2:$AC$207,27,FALSE)),1,\"\"))","v":""},{"$f":"IF($D185>6,\"\",IF(R$5<=(VLOOKUP($A185,masterlist!$C$2:$AC$207,27,FALSE)),1,\"\"))","v":""},null,null,null,null,0,0,0,0,0,0,0,0,0,0,0,0,0]
[{"$f":"IFERROR(priorit!A185,\"\")","v":""},"",{"$f":"IFERROR(VLOOKUP($A186,masterlist!$C$2:$AA$207,2,FALSE),\"\")","v":""},{"$f":"IFERROR(VLOOKUP($A186,masterlist!$C$2:$AA$207,3,FALSE),\"\")","v":""},{"$f":"IFERROR(VLOOKUP($A186,masterlist!$C$2:$AD$207,28,FALSE),\"\")","v":""},{"$f":"IF($D186>6,\"\",IF(F$5<=(VLOOKUP($A186,masterlist!$C$2:$AC$207,27,FALSE)),1,\"\"))","v":""},{"$f":"IF($D186>6,\"\",IF(G$5<=(VLOOKUP($A186,masterlist!$C$2:$AC$207,27,FALSE)),1,\"\"))","v":""},{"$f":"IF($D186>6,\"\",IF(H$5<=(VLOOKUP($A186,masterlist!$C$2:$AC$207,27,FALSE)),1,\"\"))","v":""},{"$f":"IF($D186>6,\"\",IF(I$5<=(VLOOKUP($A186,masterlist!$C$2:$AC$207,27,FALSE)),1,\"\"))","v":""},{"$f":"IF($D186>6,\"\",IF(J$5<=(VLOOKUP($A186,masterlist!$C$2:$AC$207,27,FALSE)),1,\"\"))","v":""},{"$f":"IF($D186>6,\"\",IF(K$5<=(VLOOKUP($A186,masterlist!$C$2:$AC$207,27,FALSE)),1,\"\"))","v":""},{"$f":"IF($D186>6,\"\",IF(L$5<=(VLOOKUP($A186,masterlist!$C$2:$AC$207,27,FALSE)),1,\"\"))","v":""},{"$f":"IF($D186>6,\"\",IF(M$5<=(VLOOKUP($A186,masterlist!$C$2:$AC$207,27,FALSE)),1,\"\"))","v":""},{"$f":"IF($D186>6,\"\",IF(N$5<=(VLOOKUP($A186,masterlist!$C$2:$AC$207,27,FALSE)),1,\"\"))","v":""},{"$f":"IF($D186>6,\"\",IF(O$5<=(VLOOKUP($A186,masterlist!$C$2:$AC$207,27,FALSE)),1,\"\"))","v":""},{"$f":"IF($D186>6,\"\",IF(P$5<=(VLOOKUP($A186,masterlist!$C$2:$AC$207,27,FALSE)),1,\"\"))","v":""},{"$f":"IF($D186>6,\"\",IF(Q$5<=(VLOOKUP($A186,masterlist!$C$2:$AC$207,27,FALSE)),1,\"\"))","v":""},{"$f":"IF($D186>6,\"\",IF(R$5<=(VLOOKUP($A186,masterlist!$C$2:$AC$207,27,FALSE)),1,\"\"))","v":""},null,null,null,null,0,0,0,0,0,0,0,0,0,0,0,0,0]
[{"$f":"IFERROR(priorit!A186,\"\")","v":""},"",{"$f":"IFERROR(VLOOKUP($A187,masterlist!$C$2:$AA$207,2,FALSE),\"\")","v":""},{"$f":"IFERROR(VLOOKUP($A187,masterlist!$C$2:$AA$207,3,FALSE),\"\")","v":""},{"$f":"IFERROR(VLOOKUP($A187,masterlist!$C$2:$AD$207,28,FALSE),\"\")","v":""},{"$f":"IF($D187>6,\"\",IF(F$5<=(VLOOKUP($A187,masterlist!$C$2:$AC$207,27,FALSE)),1,\"\"))","v":""},{"$f":"IF($D187>6,\"\",IF(G$5<=(VLOOKUP($A187,masterlist!$C$2:$AC$207,27,FALSE)),1,\"\"))","v":""},{"$f":"IF($D187>6,\"\",IF(H$5<=(VLOOKUP($A187,masterlist!$C$2:$AC$207,27,FALSE)),1,\"\"))","v":""},{"$f":"IF($D187>6,\"\",IF(I$5<=(VLOOKUP($A187,masterlist!$C$2:$AC$207,27,FALSE)),1,\"\"))","v":""},{"$f":"IF($D187>6,\"\",IF(J$5<=(VLOOKUP($A187,masterlist!$C$2:$AC$207,27,FALSE)),1,\"\"))","v":""},{"$f":"IF($D187>6,\"\",IF(K$5<=(VLOOKUP($A187,masterlist!$C$2:$AC$207,27,FALSE)),1,\"\"))","v":""},{"$f":"IF($D187>6,\"\",IF(L$5<=(VLOOKUP($A187,masterlist!$C$2:$AC$207,27,FALSE)),1,\"\"))","v":""},{"$f":"IF($D187>6,\"\",IF(M$5<=(VLOOKUP($A187,masterlist!$C$2:$AC$207,27,FALSE)),1,\"\"))","v":""},{"$f":"IF($D187>6,\"\",IF(N$5<=(VLOOKUP($A187,masterlist!$C$2:$AC$207,27,FALSE)),1,\"\"))","v":""},{"$f":"IF($D187>6,\"\",IF(O$5<=(VLOOKUP($A187,masterlist!$C$2:$AC$207,27,FALSE)),1,\"\"))","v":""},{"$f":"IF($D187>6,\"\",IF(P$5<=(VLOOKUP($A187,masterlist!$C$2:$AC$207,27,FALSE)),1,\"\"))","v":""},{"$f":"IF($D187>6,\"\",IF(Q$5<=(VLOOKUP($A187,masterlist!$C$2:$AC$207,27,FALSE)),1,\"\"))","v":""},{"$f":"IF($D187>6,\"\",IF(R$5<=(VLOOKUP($A187,masterlist!$C$2:$AC$207,27,FALSE)),1,\"\"))","v":""},null,null,null,null,0,0,0,0,0,0,0,0,0,0,0,0,0]
[{"$f":"IFERROR(priorit!A187,\"\")","v":""},"",{"$f":"IFERROR(VLOOKUP($A188,masterlist!$C$2:$AA$207,2,FALSE),\"\")","v":""},{"$f":"IFERROR(VLOOKUP($A188,masterlist!$C$2:$AA$207,3,FALSE),\"\")","v":""},{"$f":"IFERROR(VLOOKUP($A188,masterlist!$C$2:$AD$207,28,FALSE),\"\")","v":""},{"$f":"IF($D188>6,\"\",IF(F$5<=(VLOOKUP($A188,masterlist!$C$2:$AC$207,27,FALSE)),1,\"\"))","v":""},{"$f":"IF($D188>6,\"\",IF(G$5<=(VLOOKUP($A188,masterlist!$C$2:$AC$207,27,FALSE)),1,\"\"))","v":""},{"$f":"IF($D188>6,\"\",IF(H$5<=(VLOOKUP($A188,masterlist!$C$2:$AC$207,27,FALSE)),1,\"\"))","v":""},{"$f":"IF($D188>6,\"\",IF(I$5<=(VLOOKUP($A188,masterlist!$C$2:$AC$207,27,FALSE)),1,\"\"))","v":""},{"$f":"IF($D188>6,\"\",IF(J$5<=(VLOOKUP($A188,masterlist!$C$2:$AC$207,27,FALSE)),1,\"\"))","v":""},{"$f":"IF($D188>6,\"\",IF(K$5<=(VLOOKUP($A188,masterlist!$C$2:$AC$207,27,FALSE)),1,\"\"))","v":""},{"$f":"IF($D188>6,\"\",IF(L$5<=(VLOOKUP($A188,masterlist!$C$2:$AC$207,27,FALSE)),1,\"\"))","v":""},{"$f":"IF($D188>6,\"\",IF(M$5<=(VLOOKUP($A188,masterlist!$C$2:$AC$207,27,FALSE)),1,\"\"))","v":""},{"$f":"IF($D188>6,\"\",IF(N$5<=(VLOOKUP($A188,masterlist!$C$2:$AC$207,27,FALSE)),1,\"\"))","v":""},{"$f":"IF($D188>6,\"\",IF(O$5<=(VLOOKUP($A188,masterlist!$C$2:$AC$207,27,FALSE)),1,\"\"))","v":""},{"$f":"IF($D188>6,\"\",IF(P$5<=(VLOOKUP($A188,masterlist!$C$2:$AC$207,27,FALSE)),1,\"\"))","v":""},{"$f":"IF($D188>6,\"\",IF(Q$5<=(VLOOKUP($A188,masterlist!$C$2:$AC$207,27,FALSE)),1,\"\"))","v":""},{"$f":"IF($D188>6,\"\",IF(R$5<=(VLOOKUP($A188,masterlist!$C$2:$AC$207,27,FALSE)),1,\"\"))","v":""},null,null,null,null,0,0,0,0,0,0,0,0,0,0,0,0,0]
[{"$f":"IFERROR(priorit!A188,\"\")","v":""},"",{"$f":"IFERROR(VLOOKUP($A189,masterlist!$C$2:$AA$207,2,FALSE),\"\")","v":""},{"$f":"IFERROR(VLOOKUP($A189,masterlist!$C$2:$AA$207,3,FALSE),\"\")","v":""},{"$f":"IFERROR(VLOOKUP($A189,masterlist!$C$2:$AD$207,28,FALSE),\"\")","v":""},{"$f":"IF($D189>6,\"\",IF(F$5<=(VLOOKUP($A189,masterlist!$C$2:$AC$207,27,FALSE)),1,\"\"))","v":""},{"$f":"IF($D189>6,\"\",IF(G$5<=(VLOOKUP($A189,masterlist!$C$2:$AC$207,27,FALSE)),1,\"\"))","v":""},{"$f":"IF($D189>6,\"\",IF(H$5<=(VLOOKUP($A189,masterlist!$C$2:$AC$207,27,FALSE)),1,\"\"))","v":""},{"$f":"IF($D189>6,\"\",IF(I$5<=(VLOOKUP($A189,masterlist!$C$2:$AC$207,27,FALSE)),1,\"\"))","v":""},{"$f":"IF($D189>6,\"\",IF(J$5<=(VLOOKUP($A189,masterlist!$C$2:$AC$207,27,FALSE)),1,\"\"))","v":""},{"$f":"IF($D189>6,\"\",IF(K$5<=(VLOOKUP($A189,masterlist!$C$2:$AC$207,27,FALSE)),1,\"\"))","v":""},{"$f":"IF($D189>6,\"\",IF(L$5<=(VLOOKUP($A189,masterlist!$C$2:$AC$207,27,FALSE)),1,\"\"))","v":""},{"$f":"IF($D189>6,\"\",IF(M$5<=(VLOOKUP($A189,masterlist!$C$2:$AC$207,27,FALSE)),1,\"\"))","v":""},{"$f":"IF($D189>6,\"\",IF(N$5<=(VLOOKUP($A189,masterlist!$C$2:$AC$207,27,FALSE)),1,\"\"))","v":""},{"$f":"IF($D189>6,\"\",IF(O$5<=(VLOOKUP($A189,masterlist!$C$2:$AC$207,27,FALSE)),1,\"\"))","v":""},{"$f":"IF($D189>6,\"\",IF(P$5<=(VLOOKUP($A189,masterlist!$C$2:$AC$207,27,FALSE)),1,\"\"))","v":""},{"$f":"IF($D189>6,\"\",IF(Q$5<=(VLOOKUP($A189,masterlist!$C$2:$AC$207,27,FALSE)),1,\"\"))","v":""},{"$f":"IF($D189>6,\"\",IF(R$5<=(VLOOKUP($A189,masterlist!$C$2:$AC$207,27,FALSE)),1,\"\"))","v":""},null,null,null,null,0,0,0,0,0,0,0,0,0,0,0,0,0]
[{"$f":"IFERROR(priorit!A189,\"\")","v":""},"",{"$f":"IFERROR(VLOOKUP($A190,masterlist!$C$2:$AA$207,2,FALSE),\"\")","v":""},{"$f":"IFERROR(VLOOKUP($A190,masterlist!$C$2:$AA$207,3,FALSE),\"\")","v":""},{"$f":"IFERROR(VLOOKUP($A190,masterlist!$C$2:$AD$207,28,FALSE),\"\")","v":""},{"$f":"IF($D190>6,\"\",IF(F$5<=(VLOOKUP($A190,masterlist!$C$2:$AC$207,27,FALSE)),1,\"\"))","v":""},{"$f":"IF($D190>6,\"\",IF(G$5<=(VLOOKUP($A190,masterlist!$C$2:$AC$207,27,FALSE)),1,\"\"))","v":""},{"$f":"IF($D190>6,\"\",IF(H$5<=(VLOOKUP($A190,masterlist!$C$2:$AC$207,27,FALSE)),1,\"\"))","v":""},{"$f":"IF($D190>6,\"\",IF(I$5<=(VLOOKUP($A190,masterlist!$C$2:$AC$207,27,FALSE)),1,\"\"))","v":""},{"$f":"IF($D190>6,\"\",IF(J$5<=(VLOOKUP($A190,masterlist!$C$2:$AC$207,27,FALSE)),1,\"\"))","v":""},{"$f":"IF($D190>6,\"\",IF(K$5<=(VLOOKUP($A190,masterlist!$C$2:$AC$207,27,FALSE)),1,\"\"))","v":""},{"$f":"IF($D190>6,\"\",IF(L$5<=(VLOOKUP($A190,masterlist!$C$2:$AC$207,27,FALSE)),1,\"\"))","v":""},{"$f":"IF($D190>6,\"\",IF(M$5<=(VLOOKUP($A190,masterlist!$C$2:$AC$207,27,FALSE)),1,\"\"))","v":""},{"$f":"IF($D190>6,\"\",IF(N$5<=(VLOOKUP($A190,masterlist!$C$2:$AC$207,27,FALSE)),1,\"\"))","v":""},{"$f":"IF($D190>6,\"\",IF(O$5<=(VLOOKUP($A190,masterlist!$C$2:$AC$207,27,FALSE)),1,\"\"))","v":""},{"$f":"IF($D190>6,\"\",IF(P$5<=(VLOOKUP($A190,masterlist!$C$2:$AC$207,27,FALSE)),1,\"\"))","v":""},{"$f":"IF($D190>6,\"\",IF(Q$5<=(VLOOKUP($A190,masterlist!$C$2:$AC$207,27,FALSE)),1,\"\"))","v":""},{"$f":"IF($D190>6,\"\",IF(R$5<=(VLOOKUP($A190,masterlist!$C$2:$AC$207,27,FALSE)),1,\"\"))","v":""},null,null,null,null,0,0,0,0,0,0,0,0,0,0,0,0,0]
[{"$f":"IFERROR(priorit!A190,\"\")","v":""},"",{"$f":"IFERROR(VLOOKUP($A191,masterlist!$C$2:$AA$207,2,FALSE),\"\")","v":""},{"$f":"IFERROR(VLOOKUP($A191,masterlist!$C$2:$AA$207,3,FALSE),\"\")","v":""},{"$f":"IFERROR(VLOOKUP($A191,masterlist!$C$2:$AD$207,28,FALSE),\"\")","v":""},{"$f":"IF($D191>6,\"\",IF(F$5<=(VLOOKUP($A191,masterlist!$C$2:$AC$207,27,FALSE)),1,\"\"))","v":""},{"$f":"IF($D191>6,\"\",IF(G$5<=(VLOOKUP($A191,masterlist!$C$2:$AC$207,27,FALSE)),1,\"\"))","v":""},{"$f":"IF($D191>6,\"\",IF(H$5<=(VLOOKUP($A191,masterlist!$C$2:$AC$207,27,FALSE)),1,\"\"))","v":""},{"$f":"IF($D191>6,\"\",IF(I$5<=(VLOOKUP($A191,masterlist!$C$2:$AC$207,27,FALSE)),1,\"\"))","v":""},{"$f":"IF($D191>6,\"\",IF(J$5<=(VLOOKUP($A191,masterlist!$C$2:$AC$207,27,FALSE)),1,\"\"))","v":""},{"$f":"IF($D191>6,\"\",IF(K$5<=(VLOOKUP($A191,masterlist!$C$2:$AC$207,27,FALSE)),1,\"\"))","v":""},{"$f":"IF($D191>6,\"\",IF(L$5<=(VLOOKUP($A191,masterlist!$C$2:$AC$207,27,FALSE)),1,\"\"))","v":""},{"$f":"IF($D191>6,\"\",IF(M$5<=(VLOOKUP($A191,masterlist!$C$2:$AC$207,27,FALSE)),1,\"\"))","v":""},{"$f":"IF($D191>6,\"\",IF(N$5<=(VLOOKUP($A191,masterlist!$C$2:$AC$207,27,FALSE)),1,\"\"))","v":""},{"$f":"IF($D191>6,\"\",IF(O$5<=(VLOOKUP($A191,masterlist!$C$2:$AC$207,27,FALSE)),1,\"\"))","v":""},{"$f":"IF($D191>6,\"\",IF(P$5<=(VLOOKUP($A191,masterlist!$C$2:$AC$207,27,FALSE)),1,\"\"))","v":""},{"$f":"IF($D191>6,\"\",IF(Q$5<=(VLOOKUP($A191,masterlist!$C$2:$AC$207,27,FALSE)),1,\"\"))","v":""},{"$f":"IF($D191>6,\"\",IF(R$5<=(VLOOKUP($A191,masterlist!$C$2:$AC$207,27,FALSE)),1,\"\"))","v":""},null,null,null,null,0,0,0,0,0,0,0,0,0,0,0,0,0]
[{"$f":"IFERROR(priorit!A191,\"\")","v":""},"",{"$f":"IFERROR(VLOOKUP($A192,masterlist!$C$2:$AA$207,2,FALSE),\"\")","v":""},{"$f":"IFERROR(VLOOKUP($A192,masterlist!$C$2:$AA$207,3,FALSE),\"\")","v":""},{"$f":"IFERROR(VLOOKUP($A192,masterlist!$C$2:$AD$207,28,FALSE),\"\")","v":""},{"$f":"IF($D192>6,\"\",IF(F$5<=(VLOOKUP($A192,masterlist!$C$2:$AC$207,27,FALSE)),1,\"\"))","v":""},{"$f":"IF($D192>6,\"\",IF(G$5<=(VLOOKUP($A192,masterlist!$C$2:$AC$207,27,FALSE)),1,\"\"))","v":""},{"$f":"IF($D192>6,\"\",IF(H$5<=(VLOOKUP($A192,masterlist!$C$2:$AC$207,27,FALSE)),1,\"\"))","v":""},{"$f":"IF($D192>6,\"\",IF(I$5<=(VLOOKUP($A192,masterlist!$C$2:$AC$207,27,FALSE)),1,\"\"))","v":""},{"$f":"IF($D192>6,\"\",IF(J$5<=(VLOOKUP($A192,masterlist!$C$2:$AC$207,27,FALSE)),1,\"\"))","v":""},{"$f":"IF($D192>6,\"\",IF(K$5<=(VLOOKUP($A192,masterlist!$C$2:$AC$207,27,FALSE)),1,\"\"))","v":""},{"$f":"IF($D192>6,\"\",IF(L$5<=(VLOOKUP($A192,masterlist!$C$2:$AC$207,27,FALSE)),1,\"\"))","v":""},{"$f":"IF($D192>6,\"\",IF(M$5<=(VLOOKUP($A192,masterlist!$C$2:$AC$207,27,FALSE)),1,\"\"))","v":""},{"$f":"IF($D192>6,\"\",IF(N$5<=(VLOOKUP($A192,masterlist!$C$2:$AC$207,27,FALSE)),1,\"\"))","v":""},{"$f":"IF($D192>6,\"\",IF(O$5<=(VLOOKUP($A192,masterlist!$C$2:$AC$207,27,FALSE)),1,\"\"))","v":""},{"$f":"IF($D192>6,\"\",IF(P$5<=(VLOOKUP($A192,masterlist!$C$2:$AC$207,27,FALSE)),1,\"\"))","v":""},{"$f":"IF($D192>6,\"\",IF(Q$5<=(VLOOKUP($A192,masterlist!$C$2:$AC$207,27,FALSE)),1,\"\"))","v":""},{"$f":"IF($D192>6,\"\",IF(R$5<=(VLOOKUP($A192,masterlist!$C$2:$AC$207,27,FALSE)),1,\"\"))","v":""},null,null,null,null,0,0,0,0,0,0,0,0,0,0,0,0,0]
[{"$f":"IFERROR(priorit!A192,\"\")","v":""},"",{"$f":"IFERROR(VLOOKUP($A193,masterlist!$C$2:$AA$207,2,FALSE),\"\")","v":""},{"$f":"IFERROR(VLOOKUP($A193,masterlist!$C$2:$AA$207,3,FALSE),\"\")","v":""},{"$f":"IFERROR(VLOOKUP($A193,masterlist!$C$2:$AD$207,28,FALSE),\"\")","v":""},{"$f":"IF($D193>6,\"\",IF(F$5<=(VLOOKUP($A193,masterlist!$C$2:$AC$207,27,FALSE)),1,\"\"))","v":""},{"$f":"IF($D193>6,\"\",IF(G$5<=(VLOOKUP($A193,masterlist!$C$2:$AC$207,27,FALSE)),1,\"\"))","v":""},{"$f":"IF($D193>6,\"\",IF(H$5<=(VLOOKUP($A193,masterlist!$C$2:$AC$207,27,FALSE)),1,\"\"))","v":""},{"$f":"IF($D193>6,\"\",IF(I$5<=(VLOOKUP($A193,masterlist!$C$2:$AC$207,27,FALSE)),1,\"\"))","v":""},{"$f":"IF($D193>6,\"\",IF(J$5<=(VLOOKUP($A193,masterlist!$C$2:$AC$207,27,FALSE)),1,\"\"))","v":""},{"$f":"IF($D193>6,\"\",IF(K$5<=(VLOOKUP($A193,masterlist!$C$2:$AC$207,27,FALSE)),1,\"\"))","v":""},{"$f":"IF($D193>6,\"\",IF(L$5<=(VLOOKUP($A193,masterlist!$C$2:$AC$207,27,FALSE)),1,\"\"))","v":""},{"$f":"IF($D193>6,\"\",IF(M$5<=(VLOOKUP($A193,masterlist!$C$2:$AC$207,27,FALSE)),1,\"\"))","v":""},{"$f":"IF($D193>6,\"\",IF(N$5<=(VLOOKUP($A193,masterlist!$C$2:$AC$207,27,FALSE)),1,\"\"))","v":""},{"$f":"IF($D193>6,\"\",IF(O$5<=(VLOOKUP($A193,masterlist!$C$2:$AC$207,27,FALSE)),1,\"\"))","v":""},{"$f":"IF($D193>6,\"\",IF(P$5<=(VLOOKUP($A193,masterlist!$C$2:$AC$207,27,FALSE)),1,\"\"))","v":""},{"$f":"IF($D193>6,\"\",IF(Q$5<=(VLOOKUP($A193,masterlist!$C$2:$AC$207,27,FALSE)),1,\"\"))","v":""},{"$f":"IF($D193>6,\"\",IF(R$5<=(VLOOKUP($A193,masterlist!$C$2:$AC$207,27,FALSE)),1,\"\"))","v":""},null,null,null,null,0,0,0,0,0,0,0,0,0,0,0,0,0]
[{"$f":"IFERROR(priorit!A193,\"\")","v":""},"",{"$f":"IFERROR(VLOOKUP($A194,masterlist!$C$2:$AA$207,2,FALSE),\"\")","v":""},{"$f":"IFERROR(VLOOKUP($A194,masterlist!$C$2:$AA$207,3,FALSE),\"\")","v":""},{"$f":"IFERROR(VLOOKUP($A194,masterlist!$C$2:$AD$207,28,FALSE),\"\")","v":""},{"$f":"IF($D194>6,\"\",IF(F$5<=(VLOOKUP($A194,masterlist!$C$2:$AC$207,27,FALSE)),1,\"\"))","v":""},{"$f":"IF($D194>6,\"\",IF(G$5<=(VLOOKUP($A194,masterlist!$C$2:$AC$207,27,FALSE)),1,\"\"))","v":""},{"$f":"IF($D194>6,\"\",IF(H$5<=(VLOOKUP($A194,masterlist!$C$2:$AC$207,27,FALSE)),1,\"\"))","v":""},{"$f":"IF($D194>6,\"\",IF(I$5<=(VLOOKUP($A194,masterlist!$C$2:$AC$207,27,FALSE)),1,\"\"))","v":""},{"$f":"IF($D194>6,\"\",IF(J$5<=(VLOOKUP($A194,masterlist!$C$2:$AC$207,27,FALSE)),1,\"\"))","v":""},{"$f":"IF($D194>6,\"\",IF(K$5<=(VLOOKUP($A194,masterlist!$C$2:$AC$207,27,FALSE)),1,\"\"))","v":""},{"$f":"IF($D194>6,\"\",IF(L$5<=(VLOOKUP($A194,masterlist!$C$2:$AC$207,27,FALSE)),1,\"\"))","v":""},{"$f":"IF($D194>6,\"\",IF(M$5<=(VLOOKUP($A194,masterlist!$C$2:$AC$207,27,FALSE)),1,\"\"))","v":""},{"$f":"IF($D194>6,\"\",IF(N$5<=(VLOOKUP($A194,masterlist!$C$2:$AC$207,27,FALSE)),1,\"\"))","v":""},{"$f":"IF($D194>6,\"\",IF(O$5<=(VLOOKUP($A194,masterlist!$C$2:$AC$207,27,FALSE)),1,\"\"))","v":""},{"$f":"IF($D194>6,\"\",IF(P$5<=(VLOOKUP($A194,masterlist!$C$2:$AC$207,27,FALSE)),1,\"\"))","v":""},{"$f":"IF($D194>6,\"\",IF(Q$5<=(VLOOKUP($A194,masterlist!$C$2:$AC$207,27,FALSE)),1,\"\"))","v":""},{"$f":"IF($D194>6,\"\",IF(R$5<=(VLOOKUP($A194,masterlist!$C$2:$AC$207,27,FALSE)),1,\"\"))","v":""},null,null,null,null,0,0,0,0,0,0,0,0,0,0,0,0,0]
[{"$f":"IFERROR(priorit!A194,\"\")","v":""},"",{"$f":"IFERROR(VLOOKUP($A195,masterlist!$C$2:$AA$207,2,FALSE),\"\")","v":""},{"$f":"IFERROR(VLOOKUP($A195,masterlist!$C$2:$AA$207,3,FALSE),\"\")","v":""},{"$f":"IFERROR(VLOOKUP($A195,masterlist!$C$2:$AD$207,28,FALSE),\"\")","v":""},{"$f":"IF($D195>6,\"\",IF(F$5<=(VLOOKUP($A195,masterlist!$C$2:$AC$207,27,FALSE)),1,\"\"))","v":""},{"$f":"IF($D195>6,\"\",IF(G$5<=(VLOOKUP($A195,masterlist!$C$2:$AC$207,27,FALSE)),1,\"\"))","v":""},{"$f":"IF($D195>6,\"\",IF(H$5<=(VLOOKUP($A195,masterlist!$C$2:$AC$207,27,FALSE)),1,\"\"))","v":""},{"$f":"IF($D195>6,\"\",IF(I$5<=(VLOOKUP($A195,masterlist!$C$2:$AC$207,27,FALSE)),1,\"\"))","v":""},{"$f":"IF($D195>6,\"\",IF(J$5<=(VLOOKUP($A195,masterlist!$C$2:$AC$207,27,FALSE)),1,\"\"))","v":""},{"$f":"IF($D195>6,\"\",IF(K$5<=(VLOOKUP($A195,masterlist!$C$2:$AC$207,27,FALSE)),1,\"\"))","v":""},{"$f":"IF($D195>6,\"\",IF(L$5<=(VLOOKUP($A195,masterlist!$C$2:$AC$207,27,FALSE)),1,\"\"))","v":""},{"$f":"IF($D195>6,\"\",IF(M$5<=(VLOOKUP($A195,masterlist!$C$2:$AC$207,27,FALSE)),1,\"\"))","v":""},{"$f":"IF($D195>6,\"\",IF(N$5<=(VLOOKUP($A195,masterlist!$C$2:$AC$207,27,FALSE)),1,\"\"))","v":""},{"$f":"IF($D195>6,\"\",IF(O$5<=(VLOOKUP($A195,masterlist!$C$2:$AC$207,27,FALSE)),1,\"\"))","v":""},{"$f":"IF($D195>6,\"\",IF(P$5<=(VLOOKUP($A195,masterlist!$C$2:$AC$207,27,FALSE)),1,\"\"))","v":""},{"$f":"IF($D195>6,\"\",IF(Q$5<=(VLOOKUP($A195,masterlist!$C$2:$AC$207,27,FALSE)),1,\"\"))","v":""},{"$f":"IF($D195>6,\"\",IF(R$5<=(VLOOKUP($A195,masterlist!$C$2:$AC$207,27,FALSE)),1,\"\"))","v":""},null,null,null,null,0,0,0,0,0,0,0,0,0,0,0,0,0]
[{"$f":"IFERROR(priorit!A195,\"\")","v":""},"",{"$f":"IFERROR(VLOOKUP($A196,masterlist!$C$2:$AA$207,2,FALSE),\"\")","v":""},{"$f":"IFERROR(VLOOKUP($A196,masterlist!$C$2:$AA$207,3,FALSE),\"\")","v":""},{"$f":"IFERROR(VLOOKUP($A196,masterlist!$C$2:$AD$207,28,FALSE),\"\")","v":""},{"$f":"IF($D196>6,\"\",IF(F$5<=(VLOOKUP($A196,masterlist!$C$2:$AC$207,27,FALSE)),1,\"\"))","v":""},{"$f":"IF($D196>6,\"\",IF(G$5<=(VLOOKUP($A196,masterlist!$C$2:$AC$207,27,FALSE)),1,\"\"))","v":""},{"$f":"IF($D196>6,\"\",IF(H$5<=(VLOOKUP($A196,masterlist!$C$2:$AC$207,27,FALSE)),1,\"\"))","v":""},{"$f":"IF($D196>6,\"\",IF(I$5<=(VLOOKUP($A196,masterlist!$C$2:$AC$207,27,FALSE)),1,\"\"))","v":""},{"$f":"IF($D196>6,\"\",IF(J$5<=(VLOOKUP($A196,masterlist!$C$2:$AC$207,27,FALSE)),1,\"\"))","v":""},{"$f":"IF($D196>6,\"\",IF(K$5<=(VLOOKUP($A196,masterlist!$C$2:$AC$207,27,FALSE)),1,\"\"))","v":""},{"$f":"IF($D196>6,\"\",IF(L$5<=(VLOOKUP($A196,masterlist!$C$2:$AC$207,27,FALSE)),1,\"\"))","v":""},{"$f":"IF($D196>6,\"\",IF(M$5<=(VLOOKUP($A196,masterlist!$C$2:$AC$207,27,FALSE)),1,\"\"))","v":""},{"$f":"IF($D196>6,\"\",IF(N$5<=(VLOOKUP($A196,masterlist!$C$2:$AC$207,27,FALSE)),1,\"\"))","v":""},{"$f":"IF($D196>6,\"\",IF(O$5<=(VLOOKUP($A196,masterlist!$C$2:$AC$207,27,FALSE)),1,\"\"))","v":""},{"$f":"IF($D196>6,\"\",IF(P$5<=(VLOOKUP($A196,masterlist!$C$2:$AC$207,27,FALSE)),1,\"\"))","v":""},{"$f":"IF($D196>6,\"\",IF(Q$5<=(VLOOKUP($A196,masterlist!$C$2:$AC$207,27,FALSE)),1,\"\"))","v":""},{"$f":"IF($D196>6,\"\",IF(R$5<=(VLOOKUP($A196,masterlist!$C$2:$AC$207,27,FALSE)),1,\"\"))","v":""},null,null,null,null,0,0,0,0,0,0,0,0,0,0,0,0,0]
[{"$f":"IFERROR(priorit!A196,\"\")","v":""},"",{"$f":"IFERROR(VLOOKUP($A197,masterlist!$C$2:$AA$207,2,FALSE),\"\")","v":""},{"$f":"IFERROR(VLOOKUP($A197,masterlist!$C$2:$AA$207,3,FALSE),\"\")","v":""},{"$f":"IFERROR(VLOOKUP($A197,masterlist!$C$2:$AD$207,28,FALSE),\"\")","v":""},{"$f":"IF($D197>6,\"\",IF(F$5<=(VLOOKUP($A197,masterlist!$C$2:$AC$207,27,FALSE)),1,\"\"))","v":""},{"$f":"IF($D197>6,\"\",IF(G$5<=(VLOOKUP($A197,masterlist!$C$2:$AC$207,27,FALSE)),1,\"\"))","v":""},{"$f":"IF($D197>6,\"\",IF(H$5<=(VLOOKUP($A197,masterlist!$C$2:$AC$207,27,FALSE)),1,\"\"))","v":""},{"$f":"IF($D197>6,\"\",IF(I$5<=(VLOOKUP($A197,masterlist!$C$2:$AC$207,27,FALSE)),1,\"\"))","v":""},{"$f":"IF($D197>6,\"\",IF(J$5<=(VLOOKUP($A197,masterlist!$C$2:$AC$207,27,FALSE)),1,\"\"))","v":""},{"$f":"IF($D197>6,\"\",IF(K$5<=(VLOOKUP($A197,masterlist!$C$2:$AC$207,27,FALSE)),1,\"\"))","v":""},{"$f":"IF($D197>6,\"\",IF(L$5<=(VLOOKUP($A197,masterlist!$C$2:$AC$207,27,FALSE)),1,\"\"))","v":""},{"$f":"IF($D197>6,\"\",IF(M$5<=(VLOOKUP($A197,masterlist!$C$2:$AC$207,27,FALSE)),1,\"\"))","v":""},{"$f":"IF($D197>6,\"\",IF(N$5<=(VLOOKUP($A197,masterlist!$C$2:$AC$207,27,FALSE)),1,\"\"))","v":""},{"$f":"IF($D197>6,\"\",IF(O$5<=(VLOOKUP($A197,masterlist!$C$2:$AC$207,27,FALSE)),1,\"\"))","v":""},{"$f":"IF($D197>6,\"\",IF(P$5<=(VLOOKUP($A197,masterlist!$C$2:$AC$207,27,FALSE)),1,\"\"))","v":""},{"$f":"IF($D197>6,\"\",IF(Q$5<=(VLOOKUP($A197,masterlist!$C$2:$AC$207,27,FALSE)),1,\"\"))","v":""},{"$f":"IF($D197>6,\"\",IF(R$5<=(VLOOKUP($A197,masterlist!$C$2:$AC$207,27,FALSE)),1,\"\"))","v":""},null,null,null,null,0,0,0,0,0,0,0,0,0,0,0,0,0]
[{"$f":"IFERROR(priorit!A197,\"\")","v":""},"",{"$f":"IFERROR(VLOOKUP($A198,masterlist!$C$2:$AA$207,2,FALSE),\"\")","v":""},{"$f":"IFERROR(VLOOKUP($A198,masterlist!$C$2:$AA$207,3,FALSE),\"\")","v":""},{"$f":"IFERROR(VLOOKUP($A198,masterlist!$C$2:$AD$207,28,FALSE),\"\")","v":""},{"$f":"IF($D198>6,\"\",IF(F$5<=(VLOOKUP($A198,masterlist!$C$2:$AC$207,27,FALSE)),1,\"\"))","v":""},{"$f":"IF($D198>6,\"\",IF(G$5<=(VLOOKUP($A198,masterlist!$C$2:$AC$207,27,FALSE)),1,\"\"))","v":""},{"$f":"IF($D198>6,\"\",IF(H$5<=(VLOOKUP($A198,masterlist!$C$2:$AC$207,27,FALSE)),1,\"\"))","v":""},{"$f":"IF($D198>6,\"\",IF(I$5<=(VLOOKUP($A198,masterlist!$C$2:$AC$207,27,FALSE)),1,\"\"))","v":""},{"$f":"IF($D198>6,\"\",IF(J$5<=(VLOOKUP($A198,masterlist!$C$2:$AC$207,27,FALSE)),1,\"\"))","v":""},{"$f":"IF($D198>6,\"\",IF(K$5<=(VLOOKUP($A198,masterlist!$C$2:$AC$207,27,FALSE)),1,\"\"))","v":""},{"$f":"IF($D198>6,\"\",IF(L$5<=(VLOOKUP($A198,masterlist!$C$2:$AC$207,27,FALSE)),1,\"\"))","v":""},{"$f":"IF($D198>6,\"\",IF(M$5<=(VLOOKUP($A198,masterlist!$C$2:$AC$207,27,FALSE)),1,\"\"))","v":""},{"$f":"IF($D198>6,\"\",IF(N$5<=(VLOOKUP($A198,masterlist!$C$2:$AC$207,27,FALSE)),1,\"\"))","v":""},{"$f":"IF($D198>6,\"\",IF(O$5<=(VLOOKUP($A198,masterlist!$C$2:$AC$207,27,FALSE)),1,\"\"))","v":""},{"$f":"IF($D198>6,\"\",IF(P$5<=(VLOOKUP($A198,masterlist!$C$2:$AC$207,27,FALSE)),1,\"\"))","v":""},{"$f":"IF($D198>6,\"\",IF(Q$5<=(VLOOKUP($A198,masterlist!$C$2:$AC$207,27,FALSE)),1,\"\"))","v":""},{"$f":"IF($D198>6,\"\",IF(R$5<=(VLOOKUP($A198,masterlist!$C$2:$AC$207,27,FALSE)),1,\"\"))","v":""},null,null,null,null,0,0,0,0,0,0,0,0,0,0,0,0,0]
[{"$f":"IFERROR(priorit!A198,\"\")","v":""},"",{"$f":"IFERROR(VLOOKUP($A199,masterlist!$C$2:$AA$207,2,FALSE),\"\")","v":""},{"$f":"IFERROR(VLOOKUP($A199,masterlist!$C$2:$AA$207,3,FALSE),\"\")","v":""},{"$f":"IFERROR(VLOOKUP($A199,masterlist!$C$2:$AD$207,28,FALSE),\"\")","v":""},{"$f":"IF($D199>6,\"\",IF(F$5<=(VLOOKUP($A199,masterlist!$C$2:$AC$207,27,FALSE)),1,\"\"))","v":""},{"$f":"IF($D199>6,\"\",IF(G$5<=(VLOOKUP($A199,masterlist!$C$2:$AC$207,27,FALSE)),1,\"\"))","v":""},{"$f":"IF($D199>6,\"\",IF(H$5<=(VLOOKUP($A199,masterlist!$C$2:$AC$207,27,FALSE)),1,\"\"))","v":""},{"$f":"IF($D199>6,\"\",IF(I$5<=(VLOOKUP($A199,masterlist!$C$2:$AC$207,27,FALSE)),1,\"\"))","v":""},{"$f":"IF($D199>6,\"\",IF(J$5<=(VLOOKUP($A199,masterlist!$C$2:$AC$207,27,FALSE)),1,\"\"))","v":""},{"$f":"IF($D199>6,\"\",IF(K$5<=(VLOOKUP($A199,masterlist!$C$2:$AC$207,27,FALSE)),1,\"\"))","v":""},{"$f":"IF($D199>6,\"\",IF(L$5<=(VLOOKUP($A199,masterlist!$C$2:$AC$207,27,FALSE)),1,\"\"))","v":""},{"$f":"IF($D199>6,\"\",IF(M$5<=(VLOOKUP($A199,masterlist!$C$2:$AC$207,27,FALSE)),1,\"\"))","v":""},{"$f":"IF($D199>6,\"\",IF(N$5<=(VLOOKUP($A199,masterlist!$C$2:$AC$207,27,FALSE)),1,\"\"))","v":""},{"$f":"IF($D199>6,\"\",IF(O$5<=(VLOOKUP($A199,masterlist!$C$2:$AC$207,27,FALSE)),1,\"\"))","v":""},{"$f":"IF($D199>6,\"\",IF(P$5<=(VLOOKUP($A199,masterlist!$C$2:$AC$207,27,FALSE)),1,\"\"))","v":""},{"$f":"IF($D199>6,\"\",IF(Q$5<=(VLOOKUP($A199,masterlist!$C$2:$AC$207,27,FALSE)),1,\"\"))","v":""},{"$f":"IF($D199>6,\"\",IF(R$5<=(VLOOKUP($A199,masterlist!$C$2:$AC$207,27,FALSE)),1,\"\"))","v":""},null,null,null,null,0,0,0,0,0,0,0,0,0,0,0,0,0]

{"sheet":"Gantt (stage)","index":45,"n_rows":199,"n_cols":18,"rows_kept":199,"cut":false,"hidden":true,"merged":[[0,1,0,17],[1,1,1,7],[2,1,2,17]]}
[null,"Plan de travail national pour l’élimination de la rage"]
[]
[null,"DIAGRAMME DE GANTT par étape de SARE"]
[]
[]
[null,"Composante ","Theme","Étape","Activité",2025,2026,2027,2028,2029,2030,2031,2032,2033,2034,2035,2036,2037]
["DCA-Sur-0-1","DCA","Surveillance",0,"Confirm (either formally or informally) that rabies is present in the country.",1,1,1,1,1,1,1,1,1,1,1,1,1]
["DCA-Sur-0-2","DCA","Surveillance",0,"The national authority must report at least one confirmed rabies case to the WHO OR WOAH.",1,1,1,1,1,1,1,1,1,1,1,1,1]
["LAB-Env-0-1","LAB","Envoi de prélèvements",0,"Establish contact with an international rabies reference laboratory (WOAH), collaborating center (WHO) or reference center (FAO).",1,1,1,1,1,1,1,1,1,1,1,1,1]
["LAB-Env-0-2","LAB","Envoi de prélèvements",0,"Confirm the presence of either animal or human rabies in the country using laboratory diagnosis.",1,1,1,1,1,1,1,1,1,1,1,1,1]
["DPM--0-1","DPM",0,0,"Have any stakeholder undertake humane dog population management activities in at least one area of the country.",1,1,1,1,1,1,1,1,1,1,1,1,1]
["IEC-Pla-0-12","IEC","Plaidoyer",0,"Have rabies recognized as a priority disease in the country.",1,1,1,1,1,1,1,1,1,1,1,1,1]
["CCI-Cré-0-1","CCI","Création d’un groupe de travail intersectoriel sur la rage",0,"Continuously inform stakeholders at the national level of ANY rabies-related programmatic activities that are being implemented in the country.",1,1,1,1,1,1,1,1,1,1,1,1,1]
["LEG-Déf-0-1","LEG","Définition nationale d’un cas de rage animale ",0,"Draft an animal rabies case definition that is consistent with (or similar to) the WHO guidelines.",1,1,1,1,1,1,1,1,1,1,1,1,1]
["LEG-Déf-0-3","LEG","Définition nationale d’un cas de rage humaine",0,"Draft a human rabies case definition that is consistent with (or similar to) the WHO guidelines.",1,1,1,1,1,1,1,1,1,1,1,1,1]
["DCA-Sur-1-3","DCA","Surveillance",1,"Report dog rabies cases from the local to the national level.",1,1,1,1,1,1,1,1,1,1,1,1,1]
["DCA-Sur-1-4","DCA","Surveillance",1,"Report human rabies cases from the local to the national level.",1,1,1,1,1,1,1,1,1,1,1,1,1]
["DCA-Sur-1-5","DCA","Surveillance",1,"Build the capacity needed to analyze dog rabies data at the national level.",1,1,1,1,1,1,1,1,1,1,1,1,1]
["DCA-Sur-1-6","DCA","Surveillance",1,"Build the capacity needed to analyze human rabies data at the national level.",1,1,1,1,1,1,1,1,1,1,1,1,1]
["DCA-Sur-1-7","DCA","Surveillance",1,"Establish an animal rabies surveillance system.",1,1,1,1,1,1,1,1,1,1,1,1,1]
["DCA-Sur-1-8","DCA","Surveillance",1,"Report all the animal rabies data to WOAH every year.",1,1,1,1,1,1,1,1,1,1,1,1,1]
["DCA-Sur-1-9","DCA","Surveillance",1,"Report all the human rabies data to WHO every year.",1,1,1,1,1,1,1,1,1,1,1,1,1]
["DCA-Sur-1-10","DCA","Surveillance",1,"Report all the human rabies data to WHO every year.",1,1,1,1,1,1,1,1,1,1,1,1,1]
["DCA-Sur-1-11","DCA","Surveillance",1,"Gather and use bite case data for decision-making.",1,1,1,1,1,1,1,1,1,1,1,1,1]
["PCO-Vac-1-2","PCO","Vaccins humains",1,"Develop the capacity to ensure that at-risk professionals in at least one area can receive PrEP.",1,1,1,1,1,1,1,1,1,1,1,1,1]
["PCO-Vac-1-9","PCO","Vaccins canins",1,"Provide dog rabies vaccines in at least one area in the country.",1,1,1,1,1,1,1,1,1,1,1,1,1]
["PCO-Vac-1-10","PCO","Vaccins canins",1,"Initiate dog vaccinations in at least one area in the country.",1,1,1,1,1,1,1,1,1,1,1,1,1]
["DCA-Sur-1-12","DCA","Surveillance",1,"Undertake a dog population size and accessibility study in the country.",1,1,1,1,1,1,1,1,1,1,1,1,1]
["PCO-Rép-1-18","PCO","Réponse à l'apparition d'un foyer et autres activités de lutte contre la rage",1,"Establish protocols for joint rabies case investigations.",1,1,1,1,1,1,1,1,1,1,1,1,1]
["PCO-Rép-1-19","PCO","Réponse à l'apparition d'un foyer et autres activités de lutte contre la rage",1,"Implement the joint rabies case investigation protocols in at least one area in the country.",1,1,1,1,1,1,1,1,1,1,1,1,1]
["PCO-Vac-1-1","PCO","Vaccins humains",1,"Provide vaccines for human rabies prophylaxis in at least one area  in the country.",1,1,1,1,1,1,1,1,1,1,1,1,1]
["LAB-Cap-1-3","LAB","Capacités des laboratoires et tests",1,"Conduct rabies diagnosis using a WOAH-recommended test in at least one national laboratory (veterinary OR human health laboratory).",1,1,1,1,1,1,1,1,1,1,1,1,1]
["LAB-Cap-1-4","LAB","Capacités des laboratoires et tests",1,"Diagnose rabies suspect samples – originating from either animals OR humans – in the country several times a year.",1,1,1,1,1,1,1,1,1,1,1,1,1]
["DPM--1-2","DPM",0,1,"Actively work towards ending the indiscriminate culling of dogs for dog population management or rabies control.",1,1,1,1,1,1,1,1,1,1,1,1,1]
["DPM- -1-3","DPM"," ",1,"Hold discussions with stakeholders to create a humane dog population management strategy in one area (e.g., pilot project).",1,1,1,1,1,1,1,1,1,1,1,1,1]
["DPM- -1-4","DPM"," ",1,"Involve municipal stakeholders in stakeholder discussions regarding humane dog population management.",1,1,1,1,1,1,1,1,1,1,1,1,1]
["DPM- -1-5","DPM"," ",1,"Determine a baseline number of dogs in one area (e.g., pilot project).",1,1,1,1,1,1,1,1,1,1,1,1,1]
["IEC-Sen-1-1","IEC","Sensibilisation du public",1,"Create a list of ALL the target audiences that would need to be educated on dog welfare, rabies and its prevention.",1,1,1,1,1,1,1,1,1,1,1,1,1]
["IEC-Sen-1-2","IEC","Sensibilisation du public",1,"Determine what messages should be communicated to each of the identified target audiences that would need to be educated on dog welfare, rabies and its prevention.",1,1,1,1,1,1,1,1,1,1,1,1,1]
["IEC-Sen-1-3","IEC","Sensibilisation du public",1,"Develop and test a structured IEC plan – outlining the target audiences, key messages, means of dissemination and desired outcomes for education, sensitization and awareness – for rabies and dog welfare in a pilot project area.",1,1,1,1,1,1,1,1,1,1,1,1,1]
["IEC-Sen-1-4","IEC","Sensibilisation du public",1,"Start broad public awareness messaging about responsible dog ownership, rabies or bite prevention at the national level.",1,1,1,1,1,1,1,1,1,1,1,1,1]
["IEC-For-1-7","IEC","Formation professionnelle",1,"Create a list of ALL the human and animal health professionals involved in rabies control that need to be educated and trained.",1,1,1,1,1,1,1,1,1,1,1,1,1]
["IEC-For-1-8","IEC","Formation professionnelle",1,"Determine the training and education needs for the identified animal and human health professionals involved in rabies elimination.",1,1,1,1,1,1,1,1,1,1,1,1,1]
["IEC-For-1-9","IEC","Formation professionnelle",1,"Develop a structured training and education plan outlining the target audiences, key needs, means of training and education, and desired outcomes for human and animal health professionals in the country.",1,1,1,1,1,1,1,1,1,1,1,1,1]
["IEC-For-1-10","IEC","Formation professionnelle",1,"Implement the structured training of human and animal health professionals in one part of the country (e.g., a pilot project area).",1,1,1,1,1,1,1,1,1,1,1,1,1]
["IEC-Pla-1-13","IEC","Plaidoyer",1,"Create a list of all the advocacy stakeholders for rabies elimination in the country.",1,1,1,1,1,1,1,1,1,1,1,1,1]
["IEC-Pla-1-14","IEC","Plaidoyer",1,"Develop and implement a structured advocacy plan – outlining the target stakeholders, key messages, means of engagement and desired outcomes. ",1,1,1,1,1,1,1,1,1,1,1,1,1]
["CCI-Cré-1-2","CCI","Création d’un groupe de travail intersectoriel sur la rage",1,"Identify and list ALL the national stakeholders involved in rabies elimination.",1,1,1,1,1,1,1,1,1,1,1,1,1]
["CCI-Cré-1-3","CCI","Création d’un groupe de travail intersectoriel sur la rage",1,"Ensure that all the identified national-level stakeholders are actively involved in rabies elimination.",1,1,1,1,1,1,1,1,1,1,1,1,1]
["CCI-Cré-1-4","CCI","Création d’un groupe de travail intersectoriel sur la rage",1,"Establish an intersectoral rabies task force, committee or working group (including all identified national-level stakeholders) and ensure that they meet or communicate regularly.",1,1,1,1,1,1,1,1,1,1,1,1,1]
["CCI-Pro-1-6","CCI","Programme et stratégie nationales",1,"Develop a short-term rabies action plan for any area (e.g., pilot project OR national level).",1,1,1,1,1,1,1,1,1,1,1,1,1]
["CCI-Pro-1-7","CCI","Programme et stratégie nationales",1,"Identify mechanisms for mobilizing emergency funds that could be used in addition to the overall rabies elimination budget.",1,1,1,1,1,1,1,1,1,1,1,1,1]
["LEG-Déf-1-2","LEG","Définition nationale d’un cas de rage animale ",1,"Share the animal rabies case definition with all the relevant professionals and ensure that any new professionals in the future receive the case definition. ",1,1,1,1,1,1,1,1,1,1,1,1,1]
["LEG-Déf-1-4","LEG","Définition nationale d’un cas de rage humaine",1,"Share the human rabies case definition with all the relevant professionals and ensure that any new professionals in the future receive the case definition. ",1,1,1,1,1,1,1,1,1,1,1,1,1]
["LEG-Cad-1-5","LEG","Cadre légal",1,"Adopt national legislation that is relevant to rabies prevention and control.",1,1,1,1,1,1,1,1,1,1,1,1,1]
["LEG-Cad-1-6","LEG","Cadre légal",1,"Review and update (if necessary) the national legislation that is relevant to rabies prevention and control.",1,1,1,1,1,1,1,1,1,1,1,1,1]
["LEG-Cad-1-7","LEG","Cadre légal",1,"Make animal rabies a notifiable disease in the country.",1,1,1,1,1,1,1,1,1,1,1,1,1]
["LEG-Cad-1-8","LEG","Cadre légal",1,"Make human rabies a notifiable disease in the country.",1,1,1,1,1,1,1,1,1,1,1,1,1]
["LEG-Cad-1-9","LEG","Cadre légal",1,"Amend legislation to include measures for rabies outbreak response.",1,1,1,1,1,1,1,1,1,1,1,1,1]
["PCO-Vac-2-3","PCO","Vaccins humains",2,"Undertake an evaluation, assessment or investigation to determine how human rabies vaccines should be distributed across the country.",1,1,1,1,1,1,1,1,1,1,1,1,1]
["DCA-Sur-2-13","DCA","Surveillance",2,"Update or modify the human rabies surveillance system so that it captures all the appropriate rabies data and is fully functional with feedback mechanisms between administrative levels (national, province, district, municipal, etc.).",1,1,1,1,1,1,1,1,1,1,1,1,1]
["DCA-Sur-2-14","DCA","Surveillance",2,"Update or modify the animal rabies surveillance system so that it captures all the appropriate rabies data and is fully functional with feedback mechanisms between administrative levels (national, province, district, municipal, etc.).",1,1,1,1,1,1,1,1,1,1,1,1,1]
["DCA-Sur-2-15","DCA","Surveillance",2,"Regularly share ALL available rabies data (human and animal) with all other stakeholders.",1,1,1,1,1,1,1,1,1,1,1,1,1]
["DCA-Sur-2-16","DCA","Surveillance",2,"Establish a One Health rabies surveillance system containing human and animal surveillance data at all levels. \n\nOR\n\nCreate a formal structure for regular and timely data sharing of ALL the relevant data between the well-functioning human and animal health surveillance systems.  ",1,1,1,1,1,1,1,1,1,1,1,1,1]
["PCO-Vac-2-4","PCO","Vaccins humains",2,"Ensure that WHO prequalified (i.e., high quality) human rabies vaccines are available and accessible in most parts of the country.",1,1,1,1,1,1,1,1,1,1,1,1,1]
["PCO-Vac-2-5","PCO","Vaccins humains",2,"Ensure that PEP is either free or partially subsidized for any potentially exposed individual in the country. ",1,1,1,1,1,1,1,1,1,1,1,1,1]
["PCO-Vac-2-6","PCO","Vaccins humains",2,"Ensure that the government is only using WHO prequalified human rabies vaccines in the country.",1,1,1,1,1,1,1,1,1,1,1,1,1]
["PCO-Vac-2-11","PCO","Vaccins canins",2,"Ensure that the government is only using high-quality dog vaccines in accordance with WOAH standards.",1,1,1,1,1,1,1,1,1,1,1,1,1]
["PCO-Rép-2-20","PCO","Réponse à l'apparition d'un foyer et autres activités de lutte contre la rage",2,"Finalize the joint rabies case investigation protocols – including sharing of information between sectors – at the national level.",1,1,1,1,1,1,1,1,1,1,1,1,1]
["PCO-Rép-2-21","PCO","Réponse à l'apparition d'un foyer et autres activités de lutte contre la rage",2,"Implement any active responses to outbreaks in line with the established joint investigation protocols.",1,1,1,1,1,1,1,1,1,1,1,1,1]
["PCO-Vac-2-12","PCO","Vaccins canins",2,"Regularly increase the scale and intensity of governmental dog vaccination campaigns.",1,1,1,1,1,1,1,1,1,1,1,1,1]
["PCO-Rép-2-22","PCO","Réponse à l'apparition d'un foyer et autres activités de lutte contre la rage",2,"Develop protocols for the observation of suspect rabid dogs.",1,1,1,1,1,1,1,1,1,1,1,1,1]
["PCO-Rép-2-23","PCO","Réponse à l'apparition d'un foyer et autres activités de lutte contre la rage",2,"Establish observation facilities or develop home quarantine protocols for suspect rabid dogs.",1,1,1,1,1,1,1,1,1,1,1,1,1]
["PCO-Rép-2-24","PCO","Réponse à l'apparition d'un foyer et autres activités de lutte contre la rage",2,"Implement veterinary border inspection and quarantine measures at all official points of entry into the country.",1,1,1,1,1,1,1,1,1,1,1,1,1]
["LAB-Cap-2-5","LAB","Capacités des laboratoires et tests",2,"Undergo proficiency testing with an internationally recognized laboratory.",1,1,1,1,1,1,1,1,1,1,1,1,1]
["LAB-Cap-2-6","LAB","Capacités des laboratoires et tests",2,"Establish regular sample collection and transportation throughout the country.",1,1,1,1,1,1,1,1,1,1,1,1,1]
["LAB-Cap-2-7","LAB","Capacités des laboratoires et tests",2,"Diagnose animal rabies suspect samples in the country most (if not all) months of the year.",1,1,1,1,1,1,1,1,1,1,1,1,1]
["LAB-Cap-2-8","LAB","Capacités des laboratoires et tests",2,"Include active surveillance (animals found dead, roadkill, etc.) in your routine surveillance activities across the entire country.",1,1,1,1,1,1,1,1,1,1,1,1,1]
["DPM- -2-6","DPM"," ",2,"Draft and share a humane DPM strategy with all relevant stakeholders for one area (e.g., pilot project).",1,1,1,1,1,1,1,1,1,1,1,1,1]
["DPM- -2-7","DPM"," ",2,"Finalize and implement the humane DPM strategy in one area (e.g., pilot project).",1,1,1,1,1,1,1,1,1,1,1,1,1]
["DPM- -2-8","DPM"," ",2,"Train or educate professionals about humane DPM in one area (e.g., pilot project).",1,1,1,1,1,1,1,1,1,1,1,1,1]
["DPM- -2-9","DPM"," ",2,"Implement public sensitization campaigns about humane DPM in one area (e.g., pilot project).",1,1,1,1,1,1,1,1,1,1,1,1,1]
["IEC-Sen-2-5","IEC","Sensibilisation du public",2,"Update (if necessary) and implement the IEC plan across the country.",1,1,1,1,1,1,1,1,1,1,1,1,1]
["IEC-For-2-11","IEC","Formation professionnelle",2,"Implement the structured training of human and animal health professionals in most parts of the country.",1,1,1,1,1,1,1,1,1,1,1,1,1]
["IEC-Pla-2-15","IEC","Plaidoyer",2,"Promote any rabies elimination program successes to the identified advocacy stakeholders.",1,1,1,1,1,1,1,1,1,1,1,1,1]
["IEC-Pla-2-16","IEC","Plaidoyer",2,"Advocate to secure active interest from at least one advocacy stakeholder.",1,1,1,1,1,1,1,1,1,1,1,1,1]
["CCI-Cré-2-5","CCI","Création d’un groupe de travail intersectoriel sur la rage",2,"Include the private sector in the intersectoral task force.",1,1,1,1,1,1,1,1,1,1,1,1,1]
["CCI-Pro-2-8","CCI","Programme et stratégie nationales",2,"Draft and finalize a national strategic plan for rabies.",1,1,1,1,1,1,1,1,1,1,1,1,1]
["CCI-Pro-2-9","CCI","Programme et stratégie nationales",2,"Secure and appropriately allocate government resources in support of the national strategic plan for rabies.  ",1,1,1,1,1,1,1,1,1,1,1,1,1]
["LEG-Cad-2-10","LEG","Cadre légal",2,"Adapt the legislation regarding nationally licensed vaccines to reflect that of international guidelines.",1,1,1,1,1,1,1,1,1,1,1,1,1]
["DCA-Sur-3-17","DCA","Surveillance",3,"Observe a decrease in positive rabies samples while maintaining a high sample submission rate across the country. ",1,1,1,1,1,1,1,1,1,1,1,1,1]
["DCA-Sur-3-18","DCA","Surveillance",3,"As the country nears human rabies elimination, compile the epidemiological evidence necessary to declare zones free from dog-transmitted human rabies.",1,1,1,1,1,1,1,1,1,1,1,1,1]
["DCA-Sur-3-19","DCA","Surveillance",3,"Identify potential rabies-free zones where animal rabies cases (caused by the canine rabies variant) have been absent for at least a 2-year period.",1,1,1,1,1,1,1,1,1,1,1,1,1]
["PCO-Vac-3-7","PCO","Vaccins humains",3,"Ensure that WHO prequalified (i.e., high quality) human rabies vaccines AND RIG are available and accessible throughout the country.",1,1,1,1,1,1,1,1,1,1,1,1,1]
["PCO-Vac-3-13","PCO","Vaccins canins",3,"Establish the capacity (trained personnel, vehicles, needles, syringes, etc.) to obtain a 70% vaccination coverage of all at-risk dogs in the country every year.",1,1,1,1,1,1,1,1,1,1,1,1,1]
["PCO-Vac-3-14","PCO","Vaccins canins",3,"Implement mass dog vaccination campaigns that reach at least 70% of the at-risk dog population in the country every year.",1,1,1,1,1,1,1,1,1,1,1,1,1]
["PCO-Vac-3-15","PCO","Vaccins canins",3,"Undertake post-vaccination surveys to evaluate the dog vaccination coverage in the country.",1,1,1,1,1,1,1,1,1,1,1,1,1]
["PCO-Rép-3-25","PCO","Réponse à l'apparition d'un foyer et autres activités de lutte contre la rage",3,"Establish the capacity needed to conduct joint field investigations and planned outbreak responses for human rabies cases in the entire country.",1,1,1,1,1,1,1,1,1,1,1,1,1]
["PCO-Rép-3-26","PCO","Réponse à l'apparition d'un foyer et autres activités de lutte contre la rage",3,"Initiate dialogue with neighboring countries to prevent the re-introduction of rabies into designated rabies-free zones.",1,1,1,1,1,1,1,1,1,1,1,1,1]
["PCO-Rép-3-27","PCO","Réponse à l'apparition d'un foyer et autres activités de lutte contre la rage",3,"Establish the capacity needed to conduct joint field investigations and planned outbreak responses for animal rabies cases in the entire country.",1,1,1,1,1,1,1,1,1,1,1,1,1]
["PCO-Rép-3-28","PCO","Réponse à l'apparition d'un foyer et autres activités de lutte contre la rage",3,"As the country nears human rabies elimination, conduct field investigations  for ALL suspected human rabies cases everywhere in the country.",1,1,1,1,1,1,1,1,1,1,1,1,1]
["LAB-Cap-3-9","LAB","Capacités des laboratoires et tests",3,"Ensure that there is access to reliable and timely laboratory diagnosis throughout the country for animal samples (and if possible also for human and wildlife samples).",1,1,1,1,1,1,1,1,1,1,1,1,1]
["LAB-Cap-3-10","LAB","Capacités des laboratoires et tests",3,"Regularly assess the country’s capacity to accurately diagnose suspect rabies samples.",1,1,1,1,1,1,1,1,1,1,1,1,1]
["DPM- -3-10","DPM"," ",3,"Assess and refine the humane DPM strategy based on the outcomes from the project area (e.g., pilot project).",1,1,1,1,1,1,1,1,1,1,1,1,1]
["DPM- -3-11","DPM"," ",3,"Expand public sensitization campaigns about humane DPM to more areas in the country.",1,1,1,1,1,1,1,1,1,1,1,1,1]
["DPM- -3-12","DPM"," ",3,"Train relevant veterinary and animal professionals on the implementation of humane DPM across the country.",1,1,1,1,1,1,1,1,1,1,1,1,1]
["IEC-Pla-3-17","IEC","Plaidoyer",3,"Publicly declare dog-transmitted human rabies free zones.",1,1,1,1,1,1,1,1,1,1,1,1,1]
["CCI-Pro-3-10","CCI","Programme et stratégie nationales",3,"Now that there are very few animal rabies cases in the country, refine the national strategy based on current data.",1,1,1,1,1,1,1,1,1,1,1,1,1]
["LEG-Cad-3-11","LEG","Cadre légal",3,"Adopt legislation that includes specifications on the international movement of dogs (including the compulsory vaccination of these dogs).",1,1,1,1,1,1,1,1,1,1,1,1,1]
["LEG-Cad-3-12","LEG","Cadre légal",3,"Enforce the relevant legislation nationally.",1,1,1,1,1,1,1,1,1,1,1,1,1]
["PCO-Vac-4-16","PCO","Vaccins canins",4,"Now that there are very few animal rabies cases in the country, dog vaccination campaigns are maintained in zones where dog rabies is still present or where otherwise justified (e.g., risk of introduction).",1,1,1,1,1,1,1,1,1,1,1,1,1]
["DCA-Sur-4-20","DCA","Surveillance",4,"As the country nears dog-rabies elimination, refine the national rabies strategy using the epidemiological data from the routine surveillance of all animals (not only dogs).",1,1,1,1,1,1,1,1,1,1,1,1,1]
["PCO-Rép-4-29","PCO","Réponse à l'apparition d'un foyer et autres activités de lutte contre la rage",4,"As the country nears dog rabies elimination, conduct field investigations for ALL suspected dog rabies cases everywhere in the country.",1,1,1,1,1,1,1,1,1,1,1,1,1]
["PCO-Rép-4-30","PCO","Réponse à l'apparition d'un foyer et autres activités de lutte contre la rage",4,"As there are no more laboratory confirmed human rabies cases, maintain the existing surveillance activities for all suspected cases in humans in the country.",1,1,1,1,1,1,1,1,1,1,1,1,1]
["PCO-Rép-4-31","PCO","Réponse à l'apparition d'un foyer et autres activités de lutte contre la rage",4,"Now that there are very few animal rabies cases in the country, develop an emergency response or contingency plan in case the canine variant of rabies is reintroduced into the rabies-free zones.",1,1,1,1,1,1,1,1,1,1,1,1,1]
["LAB-Cap-4-11","LAB","Capacités des laboratoires et tests",4,"Now that there are very few animal rabies cases in the country, ensure that there is ongoing laboratory diagnosis for all suspected cases in dogs in the country.",1,1,1,1,1,1,1,1,1,1,1,1,1]
["LAB-Cap-4-12","LAB","Capacités des laboratoires et tests",4,"Regularly characterize and analyze circulating rabies virus variants by a national or international laboratory.",1,1,1,1,1,1,1,1,1,1,1,1,1]
["LAB-Cap-4-13","LAB","Capacités des laboratoires et tests",4,"If terrestrial wildlife rabies variants are present in the country, ensure that wildlife samples are regularly submitted for rabies laboratory diagnosis.",1,1,1,1,1,1,1,1,1,1,1,1,1]
["IEC-Pla-4-18","IEC","Plaidoyer",4,"Publicly declare that the entire country is free from dog-transmitted human rabies.",1,1,1,1,1,1,1,1,1,1,1,1,1]
["PCO-Vac-5-17","PCO","Vaccins canins",5,"Even though the country is rabies free based on successful mass vaccination campaigns, strategic dog vaccination campaigns are maintained where justifiable.",1,1,1,1,1,1,1,1,1,1,1,1,1]
["DCA-Sur-5-21","DCA","Surveillance",5,"Verify that the entire country has been free from the canine variant of rabies for at least a 2-year period.",1,1,1,1,1,1,1,1,1,1,1,1,1]
["PCO-Vac-5-8","PCO","Vaccins humains",5,"Now that the country is free from human and animal rabies, implement modified protocols for PEP administration in rabies-free areas.",1,1,1,1,1,1,1,1,1,1,1,1,1]
["PCO-Rép-5-32","PCO","Réponse à l'apparition d'un foyer et autres activités de lutte contre la rage",5,"Even though you are dog rabies-free based on successful mass vaccination campaigns, maintain the capacity for joint outbreak response. ",1,1,1,1,1,1,1,1,1,1,1,1,1]
["LAB-Cap-5-14","LAB","Capacités des laboratoires et tests",5,"Even though the country is dog rabies-free based on successful mass vaccination campaigns, ensure the on-going laboratory investigations of all suspected cases in domestic and terrestrial wildlife species in the country.",1,1,1,1,1,1,1,1,1,1,1,1,1]
["DPM- -5-13","DPM"," ",5,"Implement the final humane DPM strategy across the country.",1,1,1,1,1,1,1,1,1,1,1,1,1]
["DPM- -5-14","DPM"," ",5,"Ensure that the humane DPM campaigns continue across the country after the elimination of dog rabies.",1,1,1,1,1,1,1,1,1,1,1,1,1]
["IEC-Sen-5-6","IEC","Sensibilisation du public",5,"Now that the country is free from human and animal rabies, implement awareness programs focusing on the maintenance of freedom from dog and dog-transmitted human rabies.",1,1,1,1,1,1,1,1,1,1,1,1,1]
["IEC-Pla-5-19","IEC","Plaidoyer",5,"Publicly declare that the entire country is free from dog-transmitted dog rabies.",1,1,1,1,1,1,1,1,1,1,1,1,1]
["","","","","","","","","","","","","","","","","",""]
["","","","","","","","","","","","","","","","","",""]
["","","","","","","","","","","","","","","","","",""]
["","","","","","","","","","","","","","","","","",""]
["","","","","","","","","","","","","","","","","",""]
["","","","","","","","","","","","","","","","","",""]
["","","","","","","","","","","","","","","","","",""]
["","","","","","","","","","","","","","","","","",""]
["","","","","","","","","","","","","","","","","",""]
["","","","","","","","","","","","","","","","","",""]
["","","","","","","","","","","","","","","","","",""]
["","","","","","","","","","","","","","","","","",""]
["","","","","","","","","","","","","","","","","",""]
["","","","","","","","","","","","","","","","","",""]
["","","","","","","","","","","","","","","","","",""]
["","","","","","","","","","","","","","","","","",""]
["","","","","","","","","","","","","","","","","",""]
["","","","","","","","","","","","","","","","","",""]
["","","","","","","","","","","","","","","","","",""]
["","","","","","","","","","","","","","","","","",""]
["","","","","","","","","","","","","","","","","",""]
["","","","","","","","","","","","","","","","","",""]
["","","","","","","","","","","","","","","","","",""]
["","","","","","","","","","","","","","","","","",""]
["","","","","","","","","","","","","","","","","",""]
["","","","","","","","","","","","","","","","","",""]
["","","","","","","","","","","","","","","","","",""]
["","","","","","","","","","","","","","","","","",""]
["","","","","","","","","","","","","","","","","",""]
["","","","","","","","","","","","","","","","","",""]
["","","","","","","","","","","","","","","","","",""]
["","","","","","","","","","","","","","","","","",""]
["","","","","","","","","","","","","","","","","",""]
["","","","","","","","","","","","","","","","","",""]
["","","","","","","","","","","","","","","","","",""]
["","","","","","","","","","","","","","","","","",""]
["","","","","","","","","","","","","","","","","",""]
["","","","","","","","","","","","","","","","","",""]
["","","","","","","","","","","","","","","","","",""]
["","","","","","","","","","","","","","","","","",""]
["","","","","","","","","","","","","","","","","",""]
["","","","","","","","","","","","","","","","","",""]
["","","","","","","","","","","","","","","","","",""]
["","","","","","","","","","","","","","","","","",""]
["","","","","","","","","","","","","","","","","",""]
["","","","","","","","","","","","","","","","","",""]
["","","","","","","","","","","","","","","","","",""]
["","","","","","","","","","","","","","","","","",""]
["","","","","","","","","","","","","","","","","",""]
["","","","","","","","","","","","","","","","","",""]
["","","","","","","","","","","","","","","","","",""]
["","","","","","","","","","","","","","","","","",""]
["","","","","","","","","","","","","","","","","",""]
["","","","","","","","","","","","","","","","","",""]
["","","","","","","","","","","","","","","","","",""]
["","","","","","","","","","","","","","","","","",""]
["","","","","","","","","","","","","","","","","",""]
["","","","","","","","","","","","","","","","","",""]
["","","","","","","","","","","","","","","","","",""]
["","","","","","","","","","","","","","","","","",""]
["","","","","","","","","","","","","","","","","",""]
["","","","","","","","","","","","","","","","","",""]
["","","","","","","","","","","","","","","","","",""]
["","","","","","","","","","","","","","","","","",""]
["","","","","","","","","","","","","","","","","",""]
["","","","","","","","","","","","","","","","","",""]
["","","","","","","","","","","","","","","","","",""]
["","","","","","","","","","","","","","","","","",""]
["","","","","","","","","","","","","","","","","",""]
["","","","","","","","","","","","","","","","","",""]
["","","","","","","","","","","","","","","","","",""]

{"sheet":"Gantt (component)","index":46,"n_rows":199,"n_cols":18,"rows_kept":199,"cut":false,"hidden":true,"merged":[[0,1,0,17],[1,1,1,7],[2,1,2,17]]}
[null,"Plan de travail national pour l’élimination de la rage"]
[]
[null,"DIAGRAMME DE GANTT par composante de SARE "]
[]
[]
[null,"Composante ","Theme","Étape","Activité",2025,2026,2027,2028,2029,2030,2031,2032,2033,2034,2035,2036,2037]
["CCI-Cré-0-1","CCI","Création d’un groupe de travail intersectoriel sur la rage",0,"Continuously inform stakeholders at the national level of ANY rabies-related programmatic activities that are being implemented in the country.",1,1,1,1,1,1,1,1,1,1,1,1,1]
["CCI-Cré-1-2","CCI","Création d’un groupe de travail intersectoriel sur la rage",1,"Identify and list ALL the national stakeholders involved in rabies elimination.",1,1,1,1,1,1,1,1,1,1,1,1,1]
["CCI-Cré-1-3","CCI","Création d’un groupe de travail intersectoriel sur la rage",1,"Ensure that all the identified national-level stakeholders are actively involved in rabies elimination.",1,1,1,1,1,1,1,1,1,1,1,1,1]
["CCI-Cré-1-4","CCI","Création d’un groupe de travail intersectoriel sur la rage",1,"Establish an intersectoral rabies task force, committee or working group (including all identified national-level stakeholders) and ensure that they meet or communicate regularly.",1,1,1,1,1,1,1,1,1,1,1,1,1]
["CCI-Cré-2-5","CCI","Création d’un groupe de travail intersectoriel sur la rage",2,"Include the private sector in the intersectoral task force.",1,1,1,1,1,1,1,1,1,1,1,1,1]
["CCI-Pro-1-6","CCI","Programme et stratégie nationales",1,"Develop a short-term rabies action plan for any area (e.g., pilot project OR national level).",1,1,1,1,1,1,1,1,1,1,1,1,1]
["CCI-Pro-1-7","CCI","Programme et stratégie nationales",1,"Identify mechanisms for mobilizing emergency funds that could be used in addition to the overall rabies elimination budget.",1,1,1,1,1,1,1,1,1,1,1,1,1]
["CCI-Pro-2-8","CCI","Programme et stratégie nationales",2,"Draft and finalize a national strategic plan for rabies.",1,1,1,1,1,1,1,1,1,1,1,1,1]
["CCI-Pro-2-9","CCI","Programme et stratégie nationales",2,"Secure and appropriately allocate government resources in support of the national strategic plan for rabies.  ",1,1,1,1,1,1,1,1,1,1,1,1,1]
["CCI-Pro-3-10","CCI","Programme et stratégie nationales",3,"Now that there are very few animal rabies cases in the country, refine the national strategy based on current data.",1,1,1,1,1,1,1,1,1,1,1,1,1]
["DCA-Sur-0-1","DCA","Surveillance",0,"Confirm (either formally or informally) that rabies is present in the country.",1,1,1,1,1,1,1,1,1,1,1,1,1]
["DCA-Sur-0-2","DCA","Surveillance",0,"The national authority must report at least one confirmed rabies case to the WHO OR WOAH.",1,1,1,1,1,1,1,1,1,1,1,1,1]
["DCA-Sur-1-3","DCA","Surveillance",1,"Report dog rabies cases from the local to the national level.",1,1,1,1,1,1,1,1,1,1,1,1,1]
["DCA-Sur-1-4","DCA","Surveillance",1,"Report human rabies cases from the local to the national level.",1,1,1,1,1,1,1,1,1,1,1,1,1]
["DCA-Sur-1-5","DCA","Surveillance",1,"Build the capacity needed to analyze dog rabies data at the national level.",1,1,1,1,1,1,1,1,1,1,1,1,1]
["DCA-Sur-1-6","DCA","Surveillance",1,"Build the capacity needed to analyze human rabies data at the national level.",1,1,1,1,1,1,1,1,1,1,1,1,1]
["DCA-Sur-1-7","DCA","Surveillance",1,"Establish an animal rabies surveillance system.",1,1,1,1,1,1,1,1,1,1,1,1,1]
["DCA-Sur-1-8","DCA","Surveillance",1,"Report all the animal rabies data to WOAH every year.",1,1,1,1,1,1,1,1,1,1,1,1,1]
["DCA-Sur-1-9","DCA","Surveillance",1,"Report all the human rabies data to WHO every year.",1,1,1,1,1,1,1,1,1,1,1,1,1]
["DCA-Sur-1-10","DCA","Surveillance",1,"Report all the human rabies data to WHO every year.",1,1,1,1,1,1,1,1,1,1,1,1,1]
["DCA-Sur-1-11","DCA","Surveillance",1,"Gather and use bite case data for decision-making.",1,1,1,1,1,1,1,1,1,1,1,1,1]
["DCA-Sur-1-12","DCA","Surveillance",1,"Undertake a dog population size and accessibility study in the country.",1,1,1,1,1,1,1,1,1,1,1,1,1]
["DCA-Sur-2-13","DCA","Surveillance",2,"Update or modify the human rabies surveillance system so that it captures all the appropriate rabies data and is fully functional with feedback mechanisms between administrative levels (national, province, district, municipal, etc.).",1,1,1,1,1,1,1,1,1,1,1,1,1]
["DCA-Sur-2-14","DCA","Surveillance",2,"Update or modify the animal rabies surveillance system so that it captures all the appropriate rabies data and is fully functional with feedback mechanisms between administrative levels (national, province, district, municipal, etc.).",1,1,1,1,1,1,1,1,1,1,1,1,1]
["DCA-Sur-2-15","DCA","Surveillance",2,"Regularly share ALL available rabies data (human and animal) with all other stakeholders.",1,1,1,1,1,1,1,1,1,1,1,1,1]
["DCA-Sur-2-16","DCA","Surveillance",2,"Establish a One Health rabies surveillance system containing human and animal surveillance data at all levels. \n\nOR\n\nCreate a formal structure for regular and timely data sharing of ALL the relevant data between the well-functioning human and animal health surveillance systems.  ",1,1,1,1,1,1,1,1,1,1,1,1,1]
["DCA-Sur-3-17","DCA","Surveillance",3,"Observe a decrease in positive rabies samples while maintaining a high sample submission rate across the country. ",1,1,1,1,1,1,1,1,1,1,1,1,1]
["DCA-Sur-3-18","DCA","Surveillance",3,"As the country nears human rabies elimination, compile the epidemiological evidence necessary to declare zones free from dog-transmitted human rabies.",1,1,1,1,1,1,1,1,1,1,1,1,1]
["DCA-Sur-3-19","DCA","Surveillance",3,"Identify potential rabies-free zones where animal rabies cases (caused by the canine rabies variant) have been absent for at least a 2-year period.",1,1,1,1,1,1,1,1,1,1,1,1,1]
["DCA-Sur-4-20","DCA","Surveillance",4,"As the country nears dog-rabies elimination, refine the national rabies strategy using the epidemiological data from the routine surveillance of all animals (not only dogs).",1,1,1,1,1,1,1,1,1,1,1,1,1]
["DCA-Sur-5-21","DCA","Surveillance",5,"Verify that the entire country has been free from the canine variant of rabies for at least a 2-year period.",1,1,1,1,1,1,1,1,1,1,1,1,1]
["DPM--0-1","DPM",0,0,"Have any stakeholder undertake humane dog population management activities in at least one area of the country.",1,1,1,1,1,1,1,1,1,1,1,1,1]
["DPM--1-2","DPM",0,1,"Actively work towards ending the indiscriminate culling of dogs for dog population management or rabies control.",1,1,1,1,1,1,1,1,1,1,1,1,1]
["DPM- -1-3","DPM"," ",1,"Hold discussions with stakeholders to create a humane dog population management strategy in one area (e.g., pilot project).",1,1,1,1,1,1,1,1,1,1,1,1,1]
["DPM- -1-4","DPM"," ",1,"Involve municipal stakeholders in stakeholder discussions regarding humane dog population management.",1,1,1,1,1,1,1,1,1,1,1,1,1]
["DPM- -1-5","DPM"," ",1,"Determine a baseline number of dogs in one area (e.g., pilot project).",1,1,1,1,1,1,1,1,1,1,1,1,1]
["DPM- -2-6","DPM"," ",2,"Draft and share a humane DPM strategy with all relevant stakeholders for one area (e.g., pilot project).",1,1,1,1,1,1,1,1,1,1,1,1,1]
["DPM- -2-7","DPM"," ",2,"Finalize and implement the humane DPM strategy in one area (e.g., pilot project).",1,1,1,1,1,1,1,1,1,1,1,1,1]
["DPM- -2-8","DPM"," ",2,"Train or educate professionals about humane DPM in one area (e.g., pilot project).",1,1,1,1,1,1,1,1,1,1,1,1,1]
["DPM- -2-9","DPM"," ",2,"Implement public sensitization campaigns about humane DPM in one area (e.g., pilot project).",1,1,1,1,1,1,1,1,1,1,1,1,1]
["DPM- -3-10","DPM"," ",3,"Assess and refine the humane DPM strategy based on the outcomes from the project area (e.g., pilot project).",1,1,1,1,1,1,1,1,1,1,1,1,1]
["DPM- -3-11","DPM"," ",3,"Expand public sensitization campaigns about humane DPM to more areas in the country.",1,1,1,1,1,1,1,1,1,1,1,1,1]
["DPM- -3-12","DPM"," ",3,"Train relevant veterinary and animal professionals on the implementation of humane DPM across the country.",1,1,1,1,1,1,1,1,1,1,1,1,1]
["DPM- -5-13","DPM"," ",5,"Implement the final humane DPM strategy across the country.",1,1,1,1,1,1,1,1,1,1,1,1,1]
["DPM- -5-14","DPM"," ",5,"Ensure that the humane DPM campaigns continue across the country after the elimination of dog rabies.",1,1,1,1,1,1,1,1,1,1,1,1,1]
["IEC-Sen-1-1","IEC","Sensibilisation du public",1,"Create a list of ALL the target audiences that would need to be educated on dog welfare, rabies and its prevention.",1,1,1,1,1,1,1,1,1,1,1,1,1]
["IEC-Sen-1-2","IEC","Sensibilisation du public",1,"Determine what messages should be communicated to each of the identified target audiences that would need to be educated on dog welfare, rabies and its prevention.",1,1,1,1,1,1,1,1,1,1,1,1,1]
["IEC-Sen-1-3","IEC","Sensibilisation du public",1,"Develop and test a structured IEC plan – outlining the target audiences, key messages, means of dissemination and desired outcomes for education, sensitization and awareness – for rabies and dog welfare in a pilot project area.",1,1,1,1,1,1,1,1,1,1,1,1,1]
["IEC-Sen-1-4","IEC","Sensibilisation du public",1,"Start broad public awareness messaging about responsible dog ownership, rabies or bite prevention at the national level.",1,1,1,1,1,1,1,1,1,1,1,1,1]
["IEC-Sen-2-5","IEC","Sensibilisation du public",2,"Update (if necessary) and implement the IEC plan across the country.",1,1,1,1,1,1,1,1,1,1,1,1,1]
["IEC-Sen-5-6","IEC","Sensibilisation du public",5,"Now that the country is free from human and animal rabies, implement awareness programs focusing on the maintenance of freedom from dog and dog-transmitted human rabies.",1,1,1,1,1,1,1,1,1,1,1,1,1]
["IEC-For-1-7","IEC","Formation professionnelle",1,"Create a list of ALL the human and animal health professionals involved in rabies control that need to be educated and trained.",1,1,1,1,1,1,1,1,1,1,1,1,1]
["IEC-For-1-8","IEC","Formation professionnelle",1,"Determine the training and education needs for the identified animal and human health professionals involved in rabies elimination.",1,1,1,1,1,1,1,1,1,1,1,1,1]
["IEC-For-1-9","IEC","Formation professionnelle",1,"Develop a structured training and education plan outlining the target audiences, key needs, means of training and education, and desired outcomes for human and animal health professionals in the country.",1,1,1,1,1,1,1,1,1,1,1,1,1]
["IEC-For-1-10","IEC","Formation professionnelle",1,"Implement the structured training of human and animal health professionals in one part of the country (e.g., a pilot project area).",1,1,1,1,1,1,1,1,1,1,1,1,1]
["IEC-For-2-11","IEC","Formation professionnelle",2,"Implement the structured training of human and animal health professionals in most parts of the country.",1,1,1,1,1,1,1,1,1,1,1,1,1]
["IEC-Pla-0-12","IEC","Plaidoyer",0,"Have rabies recognized as a priority disease in the country.",1,1,1,1,1,1,1,1,1,1,1,1,1]
["IEC-Pla-1-13","IEC","Plaidoyer",1,"Create a list of all the advocacy stakeholders for rabies elimination in the country.",1,1,1,1,1,1,1,1,1,1,1,1,1]
["IEC-Pla-1-14","IEC","Plaidoyer",1,"Develop and implement a structured advocacy plan – outlining the target stakeholders, key messages, means of engagement and desired outcomes. ",1,1,1,1,1,1,1,1,1,1,1,1,1]
["IEC-Pla-2-15","IEC","Plaidoyer",2,"Promote any rabies elimination program successes to the identified advocacy stakeholders.",1,1,1,1,1,1,1,1,1,1,1,1,1]
["IEC-Pla-2-16","IEC","Plaidoyer",2,"Advocate to secure active interest from at least one advocacy stakeholder.",1,1,1,1,1,1,1,1,1,1,1,1,1]
["IEC-Pla-3-17","IEC","Plaidoyer",3,"Publicly declare dog-transmitted human rabies free zones.",1,1,1,1,1,1,1,1,1,1,1,1,1]
["IEC-Pla-4-18","IEC","Plaidoyer",4,"Publicly declare that the entire country is free from dog-transmitted human rabies.",1,1,1,1,1,1,1,1,1,1,1,1,1]
["IEC-Pla-5-19","IEC","Plaidoyer",5,"Publicly declare that the entire country is free from dog-transmitted dog rabies.",1,1,1,1,1,1,1,1,1,1,1,1,1]
["LAB-Env-0-1","LAB","Envoi de prélèvements",0,"Establish contact with an international rabies reference laboratory (WOAH), collaborating center (WHO) or reference center (FAO).",1,1,1,1,1,1,1,1,1,1,1,1,1]
["LAB-Env-0-2","LAB","Envoi de prélèvements",0,"Confirm the presence of either animal or human rabies in the country using laboratory diagnosis.",1,1,1,1,1,1,1,1,1,1,1,1,1]
["LAB-Cap-1-3","LAB","Capacités des laboratoires et tests",1,"Conduct rabies diagnosis using a WOAH-recommended test in at least one national laboratory (veterinary OR human health laboratory).",1,1,1,1,1,1,1,1,1,1,1,1,1]
["LAB-Cap-1-4","LAB","Capacités des laboratoires et tests",1,"Diagnose rabies suspect samples – originating from either animals OR humans – in the country several times a year.",1,1,1,1,1,1,1,1,1,1,1,1,1]
["LAB-Cap-2-5","LAB","Capacités des laboratoires et tests",2,"Undergo proficiency testing with an internationally recognized laboratory.",1,1,1,1,1,1,1,1,1,1,1,1,1]
["LAB-Cap-2-6","LAB","Capacités des laboratoires et tests",2,"Establish regular sample collection and transportation throughout the country.",1,1,1,1,1,1,1,1,1,1,1,1,1]
["LAB-Cap-2-7","LAB","Capacités des laboratoires et tests",2,"Diagnose animal rabies suspect samples in the country most (if not all) months of the year.",1,1,1,1,1,1,1,1,1,1,1,1,1]
["LAB-Cap-2-8","LAB","Capacités des laboratoires et tests",2,"Include active surveillance (animals found dead, roadkill, etc.) in your routine surveillance activities across the entire country.",1,1,1,1,1,1,1,1,1,1,1,1,1]
["LAB-Cap-3-9","LAB","Capacités des laboratoires et tests",3,"Ensure that there is access to reliable and timely laboratory diagnosis throughout the country for animal samples (and if possible also for human and wildlife samples).",1,1,1,1,1,1,1,1,1,1,1,1,1]
["LAB-Cap-3-10","LAB","Capacités des laboratoires et tests",3,"Regularly assess the country’s capacity to accurately diagnose suspect rabies samples.",1,1,1,1,1,1,1,1,1,1,1,1,1]
["LAB-Cap-4-11","LAB","Capacités des laboratoires et tests",4,"Now that there are very few animal rabies cases in the country, ensure that there is ongoing laboratory diagnosis for all suspected cases in dogs in the country.",1,1,1,1,1,1,1,1,1,1,1,1,1]
["LAB-Cap-4-12","LAB","Capacités des laboratoires et tests",4,"Regularly characterize and analyze circulating rabies virus variants by a national or international laboratory.",1,1,1,1,1,1,1,1,1,1,1,1,1]
["LAB-Cap-4-13","LAB","Capacités des laboratoires et tests",4,"If terrestrial wildlife rabies variants are present in the country, ensure that wildlife samples are regularly submitted for rabies laboratory diagnosis.",1,1,1,1,1,1,1,1,1,1,1,1,1]
["LAB-Cap-5-14","LAB","Capacités des laboratoires et tests",5,"Even though the country is dog rabies-free based on successful mass vaccination campaigns, ensure the on-going laboratory investigations of all suspected cases in domestic and terrestrial wildlife species in the country.",1,1,1,1,1,1,1,1,1,1,1,1,1]
["LEG-Déf-0-1","LEG","Définition nationale d’un cas de rage animale ",0,"Draft an animal rabies case definition that is consistent with (or similar to) the WHO guidelines.",1,1,1,1,1,1,1,1,1,1,1,1,1]
["LEG-Déf-1-2","LEG","Définition nationale d’un cas de rage animale ",1,"Share the animal rabies case definition with all the relevant professionals and ensure that any new professionals in the future receive the case definition. ",1,1,1,1,1,1,1,1,1,1,1,1,1]
["LEG-Déf-0-3","LEG","Définition nationale d’un cas de rage humaine",0,"Draft a human rabies case definition that is consistent with (or similar to) the WHO guidelines.",1,1,1,1,1,1,1,1,1,1,1,1,1]
["LEG-Déf-1-4","LEG","Définition nationale d’un cas de rage humaine",1,"Share the human rabies case definition with all the relevant professionals and ensure that any new professionals in the future receive the case definition. ",1,1,1,1,1,1,1,1,1,1,1,1,1]
["LEG-Cad-1-5","LEG","Cadre légal",1,"Adopt national legislation that is relevant to rabies prevention and control.",1,1,1,1,1,1,1,1,1,1,1,1,1]
["LEG-Cad-1-6","LEG","Cadre légal",1,"Review and update (if necessary) the national legislation that is relevant to rabies prevention and control.",1,1,1,1,1,1,1,1,1,1,1,1,1]
["LEG-Cad-1-7","LEG","Cadre légal",1,"Make animal rabies a notifiable disease in the country.",1,1,1,1,1,1,1,1,1,1,1,1,1]
["LEG-Cad-1-8","LEG","Cadre légal",1,"Make human rabies a notifiable disease in the country.",1,1,1,1,1,1,1,1,1,1,1,1,1]
["LEG-Cad-1-9","LEG","Cadre légal",1,"Amend legislation to include measures for rabies outbreak response.",1,1,1,1,1,1,1,1,1,1,1,1,1]
["LEG-Cad-2-10","LEG","Cadre légal",2,"Adapt the legislation regarding nationally licensed vaccines to reflect that of international guidelines.",1,1,1,1,1,1,1,1,1,1,1,1,1]
["LEG-Cad-3-11","LEG","Cadre légal",3,"Adopt legislation that includes specifications on the international movement of dogs (including the compulsory vaccination of these dogs).",1,1,1,1,1,1,1,1,1,1,1,1,1]
["LEG-Cad-3-12","LEG","Cadre légal",3,"Enforce the relevant legislation nationally.",1,1,1,1,1,1,1,1,1,1,1,1,1]
["PCO-Vac-1-2","PCO","Vaccins humains",1,"Develop the capacity to ensure that at-risk professionals in at least one area can receive PrEP.",1,1,1,1,1,1,1,1,1,1,1,1,1]
["PCO-Vac-2-3","PCO","Vaccins humains",2,"Undertake an evaluation, assessment or investigation to determine how human rabies vaccines should be distributed across the country.",1,1,1,1,1,1,1,1,1,1,1,1,1]
["PCO-Vac-1-9","PCO","Vaccins canins",1,"Provide dog rabies vaccines in at least one area in the country.",1,1,1,1,1,1,1,1,1,1,1,1,1]
["PCO-Vac-1-10","PCO","Vaccins canins",1,"Initiate dog vaccinations in at least one area in the country.",1,1,1,1,1,1,1,1,1,1,1,1,1]
["PCO-Vac-4-16","PCO","Vaccins canins",4,"Now that there are very few animal rabies cases in the country, dog vaccination campaigns are maintained in zones where dog rabies is still present or where otherwise justified (e.g., risk of introduction).",1,1,1,1,1,1,1,1,1,1,1,1,1]
["PCO-Vac-5-17","PCO","Vaccins canins",5,"Even though the country is rabies free based on successful mass vaccination campaigns, strategic dog vaccination campaigns are maintained where justifiable.",1,1,1,1,1,1,1,1,1,1,1,1,1]
["PCO-Vac-2-4","PCO","Vaccins humains",2,"Ensure that WHO prequalified (i.e., high quality) human rabies vaccines are available and accessible in most parts of the country.",1,1,1,1,1,1,1,1,1,1,1,1,1]
["PCO-Vac-2-5","PCO","Vaccins humains",2,"Ensure that PEP is either free or partially subsidized for any potentially exposed individual in the country. ",1,1,1,1,1,1,1,1,1,1,1,1,1]
["PCO-Vac-2-6","PCO","Vaccins humains",2,"Ensure that the government is only using WHO prequalified human rabies vaccines in the country.",1,1,1,1,1,1,1,1,1,1,1,1,1]
["PCO-Vac-2-11","PCO","Vaccins canins",2,"Ensure that the government is only using high-quality dog vaccines in accordance with WOAH standards.",1,1,1,1,1,1,1,1,1,1,1,1,1]
["PCO-Rép-1-18","PCO","Réponse à l'apparition d'un foyer et autres activités de lutte contre la rage",1,"Establish protocols for joint rabies case investigations.",1,1,1,1,1,1,1,1,1,1,1,1,1]
["PCO-Rép-1-19","PCO","Réponse à l'apparition d'un foyer et autres activités de lutte contre la rage",1,"Implement the joint rabies case investigation protocols in at least one area in the country.",1,1,1,1,1,1,1,1,1,1,1,1,1]
["PCO-Rép-2-20","PCO","Réponse à l'apparition d'un foyer et autres activités de lutte contre la rage",2,"Finalize the joint rabies case investigation protocols – including sharing of information between sectors – at the national level.",1,1,1,1,1,1,1,1,1,1,1,1,1]
["PCO-Rép-2-21","PCO","Réponse à l'apparition d'un foyer et autres activités de lutte contre la rage",2,"Implement any active responses to outbreaks in line with the established joint investigation protocols.",1,1,1,1,1,1,1,1,1,1,1,1,1]
["PCO-Vac-3-7","PCO","Vaccins humains",3,"Ensure that WHO prequalified (i.e., high quality) human rabies vaccines AND RIG are available and accessible throughout the country.",1,1,1,1,1,1,1,1,1,1,1,1,1]
["PCO-Vac-2-12","PCO","Vaccins canins",2,"Regularly increase the scale and intensity of governmental dog vaccination campaigns.",1,1,1,1,1,1,1,1,1,1,1,1,1]
["PCO-Vac-3-13","PCO","Vaccins canins",3,"Establish the capacity (trained personnel, vehicles, needles, syringes, etc.) to obtain a 70% vaccination coverage of all at-risk dogs in the country every year.",1,1,1,1,1,1,1,1,1,1,1,1,1]
["PCO-Rép-2-22","PCO","Réponse à l'apparition d'un foyer et autres activités de lutte contre la rage",2,"Develop protocols for the observation of suspect rabid dogs.",1,1,1,1,1,1,1,1,1,1,1,1,1]
["PCO-Vac-3-14","PCO","Vaccins canins",3,"Implement mass dog vaccination campaigns that reach at least 70% of the at-risk dog population in the country every year.",1,1,1,1,1,1,1,1,1,1,1,1,1]
["PCO-Vac-1-1","PCO","Vaccins humains",1,"Provide vaccines for human rabies prophylaxis in at least one area  in the country.",1,1,1,1,1,1,1,1,1,1,1,1,1]
["PCO-Vac-5-8","PCO","Vaccins humains",5,"Now that the country is free from human and animal rabies, implement modified protocols for PEP administration in rabies-free areas.",1,1,1,1,1,1,1,1,1,1,1,1,1]
["PCO-Vac-3-15","PCO","Vaccins canins",3,"Undertake post-vaccination surveys to evaluate the dog vaccination coverage in the country.",1,1,1,1,1,1,1,1,1,1,1,1,1]
["PCO-Rép-2-23","PCO","Réponse à l'apparition d'un foyer et autres activités de lutte contre la rage",2,"Establish observation facilities or develop home quarantine protocols for suspect rabid dogs.",1,1,1,1,1,1,1,1,1,1,1,1,1]
["PCO-Rép-2-24","PCO","Réponse à l'apparition d'un foyer et autres activités de lutte contre la rage",2,"Implement veterinary border inspection and quarantine measures at all official points of entry into the country.",1,1,1,1,1,1,1,1,1,1,1,1,1]
["PCO-Rép-3-25","PCO","Réponse à l'apparition d'un foyer et autres activités de lutte contre la rage",3,"Establish the capacity needed to conduct joint field investigations and planned outbreak responses for human rabies cases in the entire country.",1,1,1,1,1,1,1,1,1,1,1,1,1]
["PCO-Rép-3-26","PCO","Réponse à l'apparition d'un foyer et autres activités de lutte contre la rage",3,"Initiate dialogue with neighboring countries to prevent the re-introduction of rabies into designated rabies-free zones.",1,1,1,1,1,1,1,1,1,1,1,1,1]
["PCO-Rép-3-27","PCO","Réponse à l'apparition d'un foyer et autres activités de lutte contre la rage",3,"Establish the capacity needed to conduct joint field investigations and planned outbreak responses for animal rabies cases in the entire country.",1,1,1,1,1,1,1,1,1,1,1,1,1]
["PCO-Rép-3-28","PCO","Réponse à l'apparition d'un foyer et autres activités de lutte contre la rage",3,"As the country nears human rabies elimination, conduct field investigations  for ALL suspected human rabies cases everywhere in the country.",1,1,1,1,1,1,1,1,1,1,1,1,1]
["PCO-Rép-4-29","PCO","Réponse à l'apparition d'un foyer et autres activités de lutte contre la rage",4,"As the country nears dog rabies elimination, conduct field investigations for ALL suspected dog rabies cases everywhere in the country.",1,1,1,1,1,1,1,1,1,1,1,1,1]
["PCO-Rép-4-30","PCO","Réponse à l'apparition d'un foyer et autres activités de lutte contre la rage",4,"As there are no more laboratory confirmed human rabies cases, maintain the existing surveillance activities for all suspected cases in humans in the country.",1,1,1,1,1,1,1,1,1,1,1,1,1]
["PCO-Rép-4-31","PCO","Réponse à l'apparition d'un foyer et autres activités de lutte contre la rage",4,"Now that there are very few animal rabies cases in the country, develop an emergency response or contingency plan in case the canine variant of rabies is reintroduced into the rabies-free zones.",1,1,1,1,1,1,1,1,1,1,1,1,1]
["PCO-Rép-5-32","PCO","Réponse à l'apparition d'un foyer et autres activités de lutte contre la rage",5,"Even though you are dog rabies-free based on successful mass vaccination campaigns, maintain the capacity for joint outbreak response. ",1,1,1,1,1,1,1,1,1,1,1,1,1]
["","","","","","","","","","","","","","","","","",""]
["","","","","","","","","","","","","","","","","",""]
["","","","","","","","","","","","","","","","","",""]
["","","","","","","","","","","","","","","","","",""]
["","","","","","","","","","","","","","","","","",""]
["","","","","","","","","","","","","","","","","",""]
["","","","","","","","","","","","","","","","","",""]
["","","","","","","","","","","","","","","","","",""]
["","","","","","","","","","","","","","","","","",""]
["","","","","","","","","","","","","","","","","",""]
["","","","","","","","","","","","","","","","","",""]
["","","","","","","","","","","","","","","","","",""]
["","","","","","","","","","","","","","","","","",""]
["","","","","","","","","","","","","","","","","",""]
["","","","","","","","","","","","","","","","","",""]
["","","","","","","","","","","","","","","","","",""]
["","","","","","","","","","","","","","","","","",""]
["","","","","","","","","","","","","","","","","",""]
["","","","","","","","","","","","","","","","","",""]
["","","","","","","","","","","","","","","","","",""]
["","","","","","","","","","","","","","","","","",""]
["","","","","","","","","","","","","","","","","",""]
["","","","","","","","","","","","","","","","","",""]
["","","","","","","","","","","","","","","","","",""]
["","","","","","","","","","","","","","","","","",""]
["","","","","","","","","","","","","","","","","",""]
["","","","","","","","","","","","","","","","","",""]
["","","","","","","","","","","","","","","","","",""]
["","","","","","","","","","","","","","","","","",""]
["","","","","","","","","","","","","","","","","",""]
["","","","","","","","","","","","","","","","","",""]
["","","","","","","","","","","","","","","","","",""]
["","","","","","","","","","","","","","","","","",""]
["","","","","","","","","","","","","","","","","",""]
["","","","","","","","","","","","","","","","","",""]
["","","","","","","","","","","","","","","","","",""]
["","","","","","","","","","","","","","","","","",""]
["","","","","","","","","","","","","","","","","",""]
["","","","","","","","","","","","","","","","","",""]
["","","","","","","","","","","","","","","","","",""]
["","","","","","","","","","","","","","","","","",""]
["","","","","","","","","","","","","","","","","",""]
["","","","","","","","","","","","","","","","","",""]
["","","","","","","","","","","","","","","","","",""]
["","","","","","","","","","","","","","","","","",""]
["","","","","","","","","","","","","","","","","",""]
["","","","","","","","","","","","","","","","","",""]
["","","","","","","","","","","","","","","","","",""]
["","","","","","","","","","","","","","","","","",""]
["","","","","","","","","","","","","","","","","",""]
["","","","","","","","","","","","","","","","","",""]
["","","","","","","","","","","","","","","","","",""]
["","","","","","","","","","","","","","","","","",""]
["","","","","","","","","","","","","","","","","",""]
["","","","","","","","","","","","","","","","","",""]
["","","","","","","","","","","","","","","","","",""]
["","","","","","","","","","","","","","","","","",""]
["","","","","","","","","","","","","","","","","",""]
["","","","","","","","","","","","","","","","","",""]
["","","","","","","","","","","","","","","","","",""]
["","","","","","","","","","","","","","","","","",""]
["","","","","","","","","","","","","","","","","",""]
["","","","","","","","","","","","","","","","","",""]
["","","","","","","","","","","","","","","","","",""]
["","","","","","","","","","","","","","","","","",""]
["","","","","","","","","","","","","","","","","",""]
["","","","","","","","","","","","","","","","","",""]
["","","","","","","","","","","","","","","","","",""]
["","","","","","","","","","","","","","","","","",""]
["","","","","","","","","","","","","","","","","",""]
["","","","","","","","","","","","","","","","","",""]

{"sheet":"Distribution graph","index":47,"n_rows":3,"n_cols":2,"rows_kept":3,"cut":false,"hidden":true,"merged":[[0,1,0,17],[1,1,1,7],[2,1,2,17]]}
[null,"Plan de travail national pour l’élimination de la rage"]
[]
[null,"Aperçu des activités prévues par an"]

{"sheet":"Budget","index":48,"n_rows":4,"n_cols":1,"rows_kept":4,"cut":false,"hidden":true,"merged":[[1,0,1,9],[2,0,2,6],[3,0,3,9]]}
[]
["Practical Workplan towards Achieving Rabies Elimination"]
[]
[{"$f":"\"BUDGET\"&IF(ISBLANK('Country profile'!E3),\"\",\"   -  \")&'Country profile'!E3&IF(ISBLANK('Country profile'!K9),IF(ISBLANK('Country profile'!K14),\"\",\" - \"&'Country profile'!K14),\" - \"&'Country profile'!K9)","v":"BUDGET   -  Algeria"}]